{"text_format":"1","workbook":"xlsx","n_sheets":8,"sheets":["Cover","About this model","F_Inputs","Inputs","Time","Calcs","Outputs","F_Outputs"],"not_rendered":{"charts":0,"images":1,"macros":1,"external_links":0,"defined_names":66,"comments":0,"pivot_tables":0},"unopened":[],"bounds":{"document_bytes":16777216,"sheet_cells":100000,"rows_first":2000,"rows_last":500,"rows_between":2000,"halvings":0,"cell_chars":16384,"cell_head_chars":4096},"cells_cut":0,"cells_raw":0,"read":"whole","date_system":"1900"}

{"sheet":"Cover","index":0,"n_rows":0,"n_cols":0,"rows_kept":0,"cut":false,"hidden":false,"merged":[]}

{"sheet":"About this model","index":1,"n_rows":21,"n_cols":3,"rows_kept":21,"cut":false,"hidden":false,"merged":[]}
[{"$f":" RIGHT(CELL(\"filename\", $A$1), LEN(CELL(\"filename\", $A$1)) - SEARCH(\"]\", CELL(\"filename\", $A$1)))","v":"About this model"}]
[]
[null,"Model name:","PR24PD22 Green recovery time value of money adjustment model"]
[null,"Version number:",1.3]
[null,"Filename:",{"$f":" MID(CELL(\"filename\"), FIND(\"[\", CELL(\"filename\"), 1) + 1, FIND(\"]\", CELL(\"filename\"), 1) - FIND(\"[\", CELL(\"filename\"), 1) - 1)","v":"PR24PD22 - Green-recovery-time-value-of-money-adjustment-model-v1.4 UUW.xlsm"}]
[null,"Date:","December 2024"]
[null,"Author: ","Ofwat"]
[null,"Author contact information:","PR24@ofwat.gov.uk"]
[]
[]
[null,"Summary of model:","This model compares revenue received in period to fund the green recovery with allowed expenditure. The allowed expenditure is expenditure adjusted to take account of delivery of schemes"]
[null,null,"It makes an adjustment to RCV to reflect the difference between revenue received and delivery adjusted allowed expenditure."]
[null,null,"It also calculates a time value of money adjustment for green recovery expenditure"]
[null,null,"The time value of money approach mirrors that used in the Ofwat PR19 cost sharing reconciliation model "]
[null,null,"All financial values are expressed in 2017/18 FYA CPIH deflated prices. "]
[null,null,"Coproration tax inputs are excluded from this model."]
[]
[null,"Known limitations of the model:","There are no known issues in the model."]
[]
[]
["END OF SHEET"]

{"sheet":"F_Inputs","index":2,"n_rows":10,"n_cols":11,"rows_kept":10,"cut":false,"hidden":false,"merged":[]}
[null,null,"PR24PD22_IN",null,"Run on 25 Oct 2024 11:52"]
["Acronym","Reference","Item description","Unit","Model","2019-20","2020-21","2021-22","2022-23","2023-24","2024-25"]
[]
[null,null,null,null,null,"Price Review 2024","Price Review 2024","Price Review 2024","Price Review 2024","Price Review 2024","Price Review 2024"]
[null,null,null,null,null,"Run 11 - PR24 FD Data","Run 11 - PR24 FD Data","Run 11 - PR24 FD Data","Run 11 - PR24 FD Data","Run 11 - PR24 FD Data","Run 11 - PR24 FD Data"]
[null,null,null,null,null,"Latest","Latest","Latest","Latest","Latest","Latest"]
["SWB","C_PR24PD21_01WR_PR24","Total adjusted cost allowance - WR - real","£m","Price Review 2024",0,1.1168861581508514E-2,1.8042522482557528,2.8468251741011477,2.0310067214371217,2.0612917146244696]
["SWB","C_PR24PD21_01WN_PR24","Total adjusted cost allowance - WN+ - real","£m","Price Review 2024",0,9.2115033395728546E-2,7.7737807385332669,13.360399378448111,12.655922490908232,12.905697558714666]
["SWB","C_PR24PD21_01WWN_PR24","Total adjusted cost allowance - WWN+ - real","£m","Price Review 2024",0,0,0,0,0,0]
["SWB","C_PR24PD21_01BIO_PR24","Total adjusted cost allowance - BR - real","£m","Price Review 2024",0,0,0,0,0,0]

{"sheet":"Inputs","index":3,"n_rows":56,"n_cols":16384,"rows_kept":56,"cut":false,"hidden":false,"merged":[]}
[{"$f":" RIGHT(CELL(\"filename\", $A$1), LEN(CELL(\"filename\", $A$1)) - SEARCH(\"]\", CELL(\"filename\", $A$1)))","v":"Inputs"}]
[null,null,null,null,{"$f":"Time!E$22","v":"Model Period BEG"},null,null,null,null,{"$f":"Time!J$22","v":"2019-04-01"},{"$f":"Time!K$22","v":"2020-04-01"},{"$f":"Time!L$22","v":"2021-04-01"},{"$f":"Time!M$22","v":"2022-04-01"},{"$f":"Time!N$22","v":"2023-04-01"},{"$f":"Time!O$22","v":"2024-04-01"}]
[null,null,null,null,{"$f":"Time!E$23","v":"Model Period END"},null,"Error chks",null,null,{"$f":"Time!J$23","v":"2020-03-31"},{"$f":"Time!K$23","v":"2021-03-31"},{"$f":"Time!L$23","v":"2022-03-31"},{"$f":"Time!M$23","v":"2023-03-31"},{"$f":"Time!N$23","v":"2024-03-31"},{"$f":"Time!O$23","v":"2025-03-31"}]
[null,null,null,null,{"$f":"Time!E$59","v":"Pre Forecast vs Forecast"},null,"Track checks",null,null,{"$f":"Time!J$59","v":"Pre Fcst"},{"$f":"Time!K$59","v":"Forecast"},{"$f":"Time!L$59","v":"Forecast"},{"$f":"Time!M$59","v":"Forecast"},{"$f":"Time!N$59","v":"Forecast"},{"$f":"Time!O$59","v":"Forecast"}]
[null,null,null,null,{"$f":"Time!E$86","v":"Financial Year Ending"},null,null,null,null,{"$f":"Time!J$86","v":2020},{"$f":"Time!K$86","v":2021},{"$f":"Time!L$86","v":2022},{"$f":"Time!M$86","v":2023},{"$f":"Time!N$86","v":2024},{"$f":"Time!O$86","v":2025}]
[null,null,null,null,{"$f":"Time!E$11","v":"Model column counter"},"Constant","Unit","Total",null,{"$f":"Time!J$11","v":1},{"$f":"Time!K$11","v":2},{"$f":"Time!L$11","v":3},{"$f":"Time!M$11","v":4},{"$f":"Time!N$11","v":5},{"$f":"Time!O$11","v":6}]
[]
["TIME"]
[]
[null,null,null,null,"First date of time ruler","2019-04-01","date"]
[]
[null,null,null,null,"Last Pre Forecast Date","2020-03-31","date"]
[]
[null,null,null,null,"Acquisition date (midnight)","2020-03-31","date"]
[null,null,null,null,"Length of forecast period",5,"years"]
[null,null,null,null,"Last forecast date",{"$f":"DATE(YEAR(F14)+F15,MONTH(F14),DAY(F14))","v":"2025-03-31"},"date"]
[]
[null,null,null,null,"Operation Start Date (midnight)","2021-03-31","date"]
[null,null,null,null,"Operation Finish Date (midnight)","2025-03-31","date"]
[null,null,null,null,"First Modelling Column Financial Year Number",2020,"year"]
[null,null,null,null,"Financial Year End Month Number",3,"month #"]
[]
["CORE INPUTS"]
[]
[null,null,"These values should not be overwritten"]
[null,null,null,null,"Financing cost index",0,"Index",0,0,null,4,3,2,1,0]
[]
[null,"Real wholesale WACC"]
[]
[null,null,null,null,"Real WACC CPIH deflated - WR",2.92E-2,"%"]
[null,null,null,null,"Real WACC CPIH deflated - WN",2.92E-2,"%"]
[null,null,null,null,"Real WACC CPIH deflated - WWN",2.92E-2,"%"]
[null,null,null,null,"Real WACC CPIH deflated - BR",2.92E-2,"%"]
[]
[null,"Delivery adjusted allowed expenditure"]
[]
[null,null,null,null,"Delivery adjusted allowed expenditure - WR - real",null,"£m",null,null,null,{"$f":"F_Inputs!G7","v":1.1168861581508514E-2},{"$f":"F_Inputs!H7","v":1.8042522482557528},{"$f":"F_Inputs!I7","v":2.8468251741011477},{"$f":"F_Inputs!J7","v":2.0310067214371217},{"$f":"F_Inputs!K7","v":2.0612917146244696},{"$f":"F_Inputs!L7","v":0},{"$f":"F_Inputs!M7","v":0},{"$f":"F_Inputs!N7","v":0},{"$f":"F_Inputs!O7","v":0},{"$f":"F_Inputs!P7","v":0},{"$f":"F_Inputs!Q7","v":0},{"$f":"F_Inputs!R7","v":0},{"$f":"F_Inputs!S7","v":0},{"$f":"F_Inputs!T7","v":0},{"$f":"F_Inputs!U7","v":0},{"$f":"F_Inputs!V7","v":0},{"$f":"F_Inputs!W7","v":0},{"$f":"F_Inputs!X7","v":0},{"$f":"F_Inputs!Y7","v":0},{"$f":"F_Inputs!Z7","v":0},{"$f":"F_Inputs!AA7","v":0},{"$f":"F_Inputs!AB7","v":0},{"$f":"F_Inputs!AC7","v":0},{"$f":"F_Inputs!AD7","v":0},{"$f":"F_Inputs!AE7","v":0},{"$f":"F_Inputs!AF7","v":0},{"$f":"F_Inputs!AG7","v":0},{"$f":"F_Inputs!AH7","v":0},{"$f":"F_Inputs!AI7","v":0},{"$f":"F_Inputs!AJ7","v":0},{"$f":"F_Inputs!AK7","v":0},{"$f":"F_Inputs!AL7","v":0},{"$f":"F_Inputs!AM7","v":0},{"$f":"F_Inputs!AN7","v":0},{"$f":"F_Inputs!AO7","v":0},{"$f":"F_Inputs!AP7","v":0},{"$f":"F_Inputs!AQ7","v":0},{"$f":"F_Inputs!AR7","v":0},{"$f":"F_Inputs!AS7","v":0},{"$f":"F_Inputs!AT7","v":0},{"$f":"F_Inputs!AU7","v":0},{"$f":"F_Inputs!AV7","v":0},{"$f":"F_Inputs!AW7","v":0},{"$f":"F_Inputs!AX7","v":0},{"$f":"F_Inputs!AY7","v":0},{"$f":"F_Inputs!AZ7","v":0},{"$f":"F_Inputs!BA7","v":0},{"$f":"F_Inputs!BB7","v":0},{"$f":"F_Inputs!BC7","v":0},{"$f":"F_Inputs!BD7","v":0},{"$f":"F_Inputs!BE7","v":0},{"$f":"F_Inputs!BF7","v":0},{"$f":"F_Inputs!BG7","v":0},{"$f":"F_Inputs!BH7","v":0},{"$f":"F_Inputs!BI7","v":0},{"$f":"F_Inputs!BJ7","v":0},{"$f":"F_Inputs!BK7","v":0},{"$f":"F_Inputs!BL7","v":0},{"$f":"F_Inputs!BM7","v":0},{"$f":"F_Inputs!BN7","v":0},{"$f":"F_Inputs!BO7","v":0},{"$f":"F_Inputs!BP7","v":0},{"$f":"F_Inputs!BQ7","v":0},{"$f":"F_Inputs!BR7","v":0},{"$f":"F_Inputs!BS7","v":0},{"$f":"F_Inputs!BT7","v":0},{"$f":"F_Inputs!BU7","v":0},{"$f":"F_Inputs!BV7","v":0},{"$f":"F_Inputs!BW7","v":0},{"$f":"F_Inputs!BX7","v":0},{"$f":"F_Inputs!BY7","v":0},{"$f":"F_Inputs!BZ7","v":0},{"$f":"F_Inputs!CA7","v":0},{"$f":"F_Inputs!CB7","v":0},{"$f":"F_Inputs!CC7","v":0},{"$f":"F_Inputs!CD7","v":0},{"$f":"F_Inputs!CE7","v":0},{"$f":"F_Inputs!CF7","v":0},{"$f":"F_Inputs!CG7","v":0},{"$f":"F_Inputs!CH7","v":0},{"$f":"F_Inputs!CI7","v":0},{"$f":"F_Inputs!CJ7","v":0},{"$f":"F_Inputs!CK7","v":0},{"$f":"F_Inputs!CL7","v":0},{"$f":"F_Inputs!CM7","v":0},{"$f":"F_Inputs!CN7","v":0},{"$f":"F_Inputs!CO7","v":0},{"$f":"F_Inputs!CP7","v":0},{"$f":"F_Inputs!CQ7","v":0},{"$f":"F_Inputs!CR7","v":0},{"$f":"F_Inputs!CS7","v":0},{"$f":"F_Inputs!CT7","v":0},{"$f":"F_Inputs!CU7","v":0},{"$f":"F_Inputs!CV7","v":0},{"$f":"F_Inputs!CW7","v":0},{"$f":"F_Inputs!CX7","v":0},{"$f":"F_Inputs!CY7","v":0},{"$f":"F_Inputs!CZ7","v":0},{"$f":"F_Inputs!DA7","v":0},{"$f":"F_Inputs!DB7","v":0},{"$f":"F_Inputs!DC7","v":0},{"$f":"F_Inputs!DD7","v":0},{"$f":"F_Inputs!DE7","v":0},{"$f":"F_Inputs!DF7","v":0},{"$f":"F_Inputs!DG7","v":0},{"$f":"F_Inputs!DH7","v":0},{"$f":"F_Inputs!DI7","v":0},{"$f":"F_Inputs!DJ7","v":0},{"$f":"F_Inputs!DK7","v":0},{"$f":"F_Inputs!DL7","v":0},{"$f":"F_Inputs!DM7","v":0},{"$f":"F_Inputs!DN7","v":0},{"$f":"F_Inputs!DO7","v":0},{"$f":"F_Inputs!DP7","v":0},{"$f":"F_Inputs!DQ7","v":0},{"$f":"F_Inputs!DR7","v":0},{"$f":"F_Inputs!DS7","v":0},{"$f":"F_Inputs!DT7","v":0},{"$f":"F_Inputs!DU7","v":0},{"$f":"F_Inputs!DV7","v":0},{"$f":"F_Inputs!DW7","v":0},{"$f":"F_Inputs!DX7","v":0},{"$f":"F_Inputs!DY7","v":0},{"$f":"F_Inputs!DZ7","v":0},{"$f":"F_Inputs!EA7","v":0},{"$f":"F_Inputs!EB7","v":0},{"$f":"F_Inputs!EC7","v":0},{"$f":"F_Inputs!ED7","v":0},{"$f":"F_Inputs!EE7","v":0},{"$f":"F_Inputs!EF7","v":0},{"$f":"F_Inputs!EG7","v":0},{"$f":"F_Inputs!EH7","v":0},{"$f":"F_Inputs!EI7","v":0},{"$f":"F_Inputs!EJ7","v":0},{"$f":"F_Inputs!EK7","v":0},{"$f":"F_Inputs!EL7","v":0},{"$f":"F_Inputs!EM7","v":0},{"$f":"F_Inputs!EN7","v":0},{"$f":"F_Inputs!EO7","v":0},{"$f":"F_Inputs!EP7","v":0},{"$f":"F_Inputs!EQ7","v":0},{"$f":"F_Inputs!ER7","v":0},{"$f":"F_Inputs!ES7","v":0},{"$f":"F_Inputs!ET7","v":0},{"$f":"F_Inputs!EU7","v":0},{"$f":"F_Inputs!EV7","v":0},{"$f":"F_Inputs!EW7","v":0},{"$f":"F_Inputs!EX7","v":0},{"$f":"F_Inputs!EY7","v":0},{"$f":"F_Inputs!EZ7","v":0},{"$f":"F_Inputs!FA7","v":0},{"$f":"F_Inputs!FB7","v":0},{"$f":"F_Inputs!FC7","v":0},{"$f":"F_Inputs!FD7","v":0},{"$f":"F_Inputs!FE7","v":0},{"$f":"F_Inputs!FF7","v":0},{"$f":"F_Inputs!FG7","v":0},{"$f":"F_Inputs!FH7","v":0},{"$f":"F_Inputs!FI7","v":0},{"$f":"F_Inputs!FJ7","v":0},{"$f":"F_Inputs!FK7","v":0},{"$f":"F_Inputs!FL7","v":0},{"$f":"F_Inputs!FM7","v":0},{"$f":"F_Inputs!FN7","v":0},{"$f":"F_Inputs!FO7","v":0},{"$f":"F_Inputs!FP7","v":0},{"$f":"F_Inputs!FQ7","v":0},{"$f":"F_Inputs!FR7","v":0},{"$f":"F_Inputs!FS7","v":0},{"$f":"F_Inputs!FT7","v":0},{"$f":"F_Inputs!FU7","v":0},{"$f":"F_Inputs!FV7","v":0},{"$f":"F_Inputs!FW7","v":0},{"$f":"F_Inputs!FX7","v":0},{"$f":"F_Inputs!FY7","v":0},{"$f":"F_Inputs!FZ7","v":0},{"$f":"F_Inputs!GA7","v":0},{"$f":"F_Inputs!GB7","v":0},{"$f":"F_Inputs!GC7","v":0},{"$f":"F_Inputs!GD7","v":0},{"$f":"F_Inputs!GE7","v":0},{"$f":"F_Inputs!GF7","v":0},{"$f":"F_Inputs!GG7","v":0},{"$f":"F_Inputs!GH7","v":0},{"$f":"F_Inputs!GI7","v":0},{"$f":"F_Inputs!GJ7","v":0},{"$f":"F_Inputs!GK7","v":0},{"$f":"F_Inputs!GL7","v":0},{"$f":"F_Inputs!GM7","v":0},{"$f":"F_Inputs!GN7","v":0},{"$f":"F_Inputs!GO7","v":0},{"$f":"F_Inputs!GP7","v":0},{"$f":"F_Inputs!GQ7","v":0},{"$f":"F_Inputs!GR7","v":0},{"$f":"F_Inputs!GS7","v":0},{"$f":"F_Inputs!GT7","v":0},{"$f":"F_Inputs!GU7","v":0},{"$f":"F_Inputs!GV7","v":0},{"$f":"F_Inputs!GW7","v":0},{"$f":"F_Inputs!GX7","v":0},{"$f":"F_Inputs!GY7","v":0},{"$f":"F_Inputs!GZ7","v":0},{"$f":"F_Inputs!HA7","v":0},{"$f":"F_Inputs!HB7","v":0},{"$f":"F_Inputs!HC7","v":0},{"$f":"F_Inputs!HD7","v":0},{"$f":"F_Inputs!HE7","v":0},{"$f":"F_Inputs!HF7","v":0},{"$f":"F_Inputs!HG7","v":0},{"$f":"F_Inputs!HH7","v":0},{"$f":"F_Inputs!HI7","v":0},{"$f":"F_Inputs!HJ7","v":0},{"$f":"F_Inputs!HK7","v":0},{"$f":"F_Inputs!HL7","v":0},{"$f":"F_Inputs!HM7","v":0},{"$f":"F_Inputs!HN7","v":0},{"$f":"F_Inputs!HO7","v":0},{"$f":"F_Inputs!HP7","v":0},{"$f":"F_Inputs!HQ7","v":0},{"$f":"F_Inputs!HR7","v":0},{"$f":"F_Inputs!HS7","v":0},{"$f":"F_Inputs!HT7","v":0},{"$f":"F_Inputs!HU7","v":0},{"$f":"F_Inputs!HV7","v":0},{"$f":"F_Inputs!HW7","v":0},{"$f":"F_Inputs!HX7","v":0},{"$f":"F_Inputs!HY7","v":0},{"$f":"F_Inputs!HZ7","v":0},{"$f":"F_Inputs!IA7","v":0},{"$f":"F_Inputs!IB7","v":0},{"$f":"F_Inputs!IC7","v":0},{"$f":"F_Inputs!ID7","v":0},{"$f":"F_Inputs!IE7","v":0},{"$f":"F_Inputs!IF7","v":0},{"$f":"F_Inputs!IG7","v":0},{"$f":"F_Inputs!IH7","v":0},{"$f":"F_Inputs!II7","v":0},{"$f":"F_Inputs!IJ7","v":0},{"$f":"F_Inputs!IK7","v":0},{"$f":"F_Inputs!IL7","v":0},{"$f":"F_Inputs!IM7","v":0},{"$f":"F_Inputs!IN7","v":0},{"$f":"F_Inputs!IO7","v":0},{"$f":"F_Inputs!IP7","v":0},{"$f":"F_Inputs!IQ7","v":0},{"$f":"F_Inputs!IR7","v":0},{"$f":"F_Inputs!IS7","v":0},{"$f":"F_Inputs!IT7","v":0},{"$f":"F_Inputs!IU7","v":0},{"$f":"F_Inputs!IV7","v":0},{"$f":"F_Inputs!IW7","v":0},{"$f":"F_Inputs!IX7","v":0},{"$f":"F_Inputs!IY7","v":0},{"$f":"F_Inputs!IZ7","v":0},{"$f":"F_Inputs!JA7","v":0},{"$f":"F_Inputs!JB7","v":0},{"$f":"F_Inputs!JC7","v":0},{"$f":"F_Inputs!JD7","v":0},{"$f":"F_Inputs!JE7","v":0},{"$f":"F_Inputs!JF7","v":0},{"$f":"F_Inputs!JG7","v":0},{"$f":"F_Inputs!JH7","v":0},{"$f":"F_Inputs!JI7","v":0},{"$f":"F_Inputs!JJ7","v":0},{"$f":"F_Inputs!JK7","v":0},{"$f":"F_Inputs!JL7","v":0},{"$f":"F_Inputs!JM7","v":0},{"$f":"F_Inputs!JN7","v":0},{"$f":"F_Inputs!JO7","v":0},{"$f":"F_Inputs!JP7","v":0},{"$f":"F_Inputs!JQ7","v":0},{"$f":"F_Inputs!JR7","v":0},{"$f":"F_Inputs!JS7","v":0},{"$f":"F_Inputs!JT7","v":0},{"$f":"F_Inputs!JU7","v":0},{"$f":"F_Inputs!JV7","v":0},{"$f":"F_Inputs!JW7","v":0},{"$f":"F_Inputs!JX7","v":0},{"$f":"F_Inputs!JY7","v":0},{"$f":"F_Inputs!JZ7","v":0},{"$f":"F_Inputs!KA7","v":0},{"$f":"F_Inputs!KB7","v":0},{"$f":"F_Inputs!KC7","v":0},{"$f":"F_Inputs!KD7","v":0},{"$f":"F_Inputs!KE7","v":0},{"$f":"F_Inputs!KF7","v":0},{"$f":"F_Inputs!KG7","v":0},{"$f":"F_Inputs!KH7","v":0},{"$f":"F_Inputs!KI7","v":0},{"$f":"F_Inputs!KJ7","v":0},{"$f":"F_Inputs!KK7","v":0},{"$f":"F_Inputs!KL7","v":0},{"$f":"F_Inputs!KM7","v":0},{"$f":"F_Inputs!KN7","v":0},{"$f":"F_Inputs!KO7","v":0},{"$f":"F_Inputs!KP7","v":0},{"$f":"F_Inputs!KQ7","v":0},{"$f":"F_Inputs!KR7","v":0},{"$f":"F_Inputs!KS7","v":0},{"$f":"F_Inputs!KT7","v":0},{"$f":"F_Inputs!KU7","v":0},{"$f":"F_Inputs!KV7","v":0},{"$f":"F_Inputs!KW7","v":0},{"$f":"F_Inputs!KX7","v":0},{"$f":"F_Inputs!KY7","v":0},{"$f":"F_Inputs!KZ7","v":0},{"$f":"F_Inputs!LA7","v":0},{"$f":"F_Inputs!LB7","v":0},{"$f":"F_Inputs!LC7","v":0},{"$f":"F_Inputs!LD7","v":0},{"$f":"F_Inputs!LE7","v":0},{"$f":"F_Inputs!LF7","v":0},{"$f":"F_Inputs!LG7","v":0},{"$f":"F_Inputs!LH7","v":0},{"$f":"F_Inputs!LI7","v":0},{"$f":"F_Inputs!LJ7","v":0},{"$f":"F_Inputs!LK7","v":0},{"$f":"F_Inputs!LL7","v":0},{"$f":"F_Inputs!LM7","v":0},{"$f":"F_Inputs!LN7","v":0},{"$f":"F_Inputs!LO7","v":0},{"$f":"F_Inputs!LP7","v":0},{"$f":"F_Inputs!LQ7","v":0},{"$f":"F_Inputs!LR7","v":0},{"$f":"F_Inputs!LS7","v":0},{"$f":"F_Inputs!LT7","v":0},{"$f":"F_Inputs!LU7","v":0},{"$f":"F_Inputs!LV7","v":0},{"$f":"F_Inputs!LW7","v":0},{"$f":"F_Inputs!LX7","v":0},{"$f":"F_Inputs!LY7","v":0},{"$f":"F_Inputs!LZ7","v":0},{"$f":"F_Inputs!MA7","v":0},{"$f":"F_Inputs!MB7","v":0},{"$f":"F_Inputs!MC7","v":0},{"$f":"F_Inputs!MD7","v":0},{"$f":"F_Inputs!ME7","v":0},{"$f":"F_Inputs!MF7","v":0},{"$f":"F_Inputs!MG7","v":0},{"$f":"F_Inputs!MH7","v":0},{"$f":"F_Inputs!MI7","v":0},{"$f":"F_Inputs!MJ7","v":0},{"$f":"F_Inputs!MK7","v":0},{"$f":"F_Inputs!ML7","v":0},{"$f":"F_Inputs!MM7","v":0},{"$f":"F_Inputs!MN7","v":0},{"$f":"F_Inputs!MO7","v":0},{"$f":"F_Inputs!MP7","v":0},{"$f":"F_Inputs!MQ7","v":0},{"$f":"F_Inputs!MR7","v":0},{"$f":"F_Inputs!MS7","v":0},{"$f":"F_Inputs!MT7","v":0},{"$f":"F_Inputs!MU7","v":0},{"$f":"F_Inputs!MV7","v":0},{"$f":"F_Inputs!MW7","v":0},{"$f":"F_Inputs!MX7","v":0},{"$f":"F_Inputs!MY7","v":0},{"$f":"F_Inputs!MZ7","v":0},{"$f":"F_Inputs!NA7","v":0},{"$f":"F_Inputs!NB7","v":0},{"$f":"F_Inputs!NC7","v":0},{"$f":"F_Inputs!ND7","v":0},{"$f":"F_Inputs!NE7","v":0},{"$f":"F_Inputs!NF7","v":0},{"$f":"F_Inputs!NG7","v":0},{"$f":"F_Inputs!NH7","v":0},{"$f":"F_Inputs!NI7","v":0},{"$f":"F_Inputs!NJ7","v":0},{"$f":"F_Inputs!NK7","v":0},{"$f":"F_Inputs!NL7","v":0},{"$f":"F_Inputs!NM7","v":0},{"$f":"F_Inputs!NN7","v":0},{"$f":"F_Inputs!NO7","v":0},{"$f":"F_Inputs!NP7","v":0},{"$f":"F_Inputs!NQ7","v":0},{"$f":"F_Inputs!NR7","v":0},{"$f":"F_Inputs!NS7","v":0},{"$f":"F_Inputs!NT7","v":0},{"$f":"F_Inputs!NU7","v":0},{"$f":"F_Inputs!NV7","v":0},{"$f":"F_Inputs!NW7","v":0},{"$f":"F_Inputs!NX7","v":0},{"$f":"F_Inputs!NY7","v":0},{"$f":"F_Inputs!NZ7","v":0},{"$f":"F_Inputs!OA7","v":0},{"$f":"F_Inputs!OB7","v":0},{"$f":"F_Inputs!OC7","v":0},{"$f":"F_Inputs!OD7","v":0},{"$f":"F_Inputs!OE7","v":0},{"$f":"F_Inputs!OF7","v":0},{"$f":"F_Inputs!OG7","v":0},{"$f":"F_Inputs!OH7","v":0},{"$f":"F_Inputs!OI7","v":0},{"$f":"F_Inputs!OJ7","v":0},{"$f":"F_Inputs!OK7","v":0},{"$f":"F_Inputs!OL7","v":0},{"$f":"F_Inputs!OM7","v":0},{"$f":"F_Inputs!ON7","v":0},{"$f":"F_Inputs!OO7","v":0},{"$f":"F_Inputs!OP7","v":0},{"$f":"F_Inputs!OQ7","v":0},{"$f":"F_Inputs!OR7","v":0},{"$f":"F_Inputs!OS7","v":0},{"$f":"F_Inputs!OT7","v":0},{"$f":"F_Inputs!OU7","v":0},{"$f":"F_Inputs!OV7","v":0},{"$f":"F_Inputs!OW7","v":0},{"$f":"F_Inputs!OX7","v":0},{"$f":"F_Inputs!OY7","v":0},{"$f":"F_Inputs!OZ7","v":0},{"$f":"F_Inputs!PA7","v":0},{"$f":"F_Inputs!PB7","v":0},{"$f":"F_Inputs!PC7","v":0},{"$f":"F_Inputs!PD7","v":0},{"$f":"F_Inputs!PE7","v":0},{"$f":"F_Inputs!PF7","v":0},{"$f":"F_Inputs!PG7","v":0},{"$f":"F_Inputs!PH7","v":0},{"$f":"F_Inputs!PI7","v":0},{"$f":"F_Inputs!PJ7","v":0},{"$f":"F_Inputs!PK7","v":0},{"$f":"F_Inputs!PL7","v":0},{"$f":"F_Inputs!PM7","v":0},{"$f":"F_Inputs!PN7","v":0},{"$f":"F_Inputs!PO7","v":0},{"$f":"F_Inputs!PP7","v":0},{"$f":"F_Inputs!PQ7","v":0},{"$f":"F_Inputs!PR7","v":0},{"$f":"F_Inputs!PS7","v":0},{"$f":"F_Inputs!PT7","v":0},{"$f":"F_Inputs!PU7","v":0},{"$f":"F_Inputs!PV7","v":0},{"$f":"F_Inputs!PW7","v":0},{"$f":"F_Inputs!PX7","v":0},{"$f":"F_Inputs!PY7","v":0},{"$f":"F_Inputs!PZ7","v":0},{"$f":"F_Inputs!QA7","v":0},{"$f":"F_Inputs!QB7","v":0},{"$f":"F_Inputs!QC7","v":0},{"$f":"F_Inputs!QD7","v":0},{"$f":"F_Inputs!QE7","v":0},{"$f":"F_Inputs!QF7","v":0},{"$f":"F_Inputs!QG7","v":0},{"$f":"F_Inputs!QH7","v":0},{"$f":"F_Inputs!QI7","v":0},{"$f":"F_Inputs!QJ7","v":0},{"$f":"F_Inputs!QK7","v":0},{"$f":"F_Inputs!QL7","v":0},{"$f":"F_Inputs!QM7","v":0},{"$f":"F_Inputs!QN7","v":0},{"$f":"F_Inputs!QO7","v":0},{"$f":"F_Inputs!QP7","v":0},{"$f":"F_Inputs!QQ7","v":0},{"$f":"F_Inputs!QR7","v":0},{"$f":"F_Inputs!QS7","v":0},{"$f":"F_Inputs!QT7","v":0},{"$f":"F_Inputs!QU7","v":0},{"$f":"F_Inputs!QV7","v":0},{"$f":"F_Inputs!QW7","v":0},{"$f":"F_Inputs!QX7","v":0},{"$f":"F_Inputs!QY7","v":0},{"$f":"F_Inputs!QZ7","v":0},{"$f":"F_Inputs!RA7","v":0},{"$f":"F_Inputs!RB7","v":0},{"$f":"F_Inputs!RC7","v":0},{"$f":"F_Inputs!RD7","v":0},{"$f":"F_Inputs!RE7","v":0},{"$f":"F_Inputs!RF7","v":0},{"$f":"F_Inputs!RG7","v":0},{"$f":"F_Inputs!RH7","v":0},{"$f":"F_Inputs!RI7","v":0},{"$f":"F_Inputs!RJ7","v":0},{"$f":"F_Inputs!RK7","v":0},{"$f":"F_Inputs!RL7","v":0},{"$f":"F_Inputs!RM7","v":0},{"$f":"F_Inputs!RN7","v":0},{"$f":"F_Inputs!RO7","v":0},{"$f":"F_Inputs!RP7","v":0},{"$f":"F_Inputs!RQ7","v":0},{"$f":"F_Inputs!RR7","v":0},{"$f":"F_Inputs!RS7","v":0},{"$f":"F_Inputs!RT7","v":0},{"$f":"F_Inputs!RU7","v":0},{"$f":"F_Inputs!RV7","v":0},{"$f":"F_Inputs!RW7","v":0},{"$f":"F_Inputs!RX7","v":0},{"$f":"F_Inputs!RY7","v":0},{"$f":"F_Inputs!RZ7","v":0},{"$f":"F_Inputs!SA7","v":0},{"$f":"F_Inputs!SB7","v":0},{"$f":"F_Inputs!SC7","v":0},{"$f":"F_Inputs!SD7","v":0},{"$f":"F_Inputs!SE7","v":0},{"$f":"F_Inputs!SF7","v":0},{"$f":"F_Inputs!SG7","v":0},{"$f":"F_Inputs!SH7","v":0},{"$f":"F_Inputs!SI7","v":0},{"$f":"F_Inputs!SJ7","v":0},{"$f":"F_Inputs!SK7","v":0},{"$f":"F_Inputs!SL7","v":0},{"$f":"F_Inputs!SM7","v":0},{"$f":"F_Inputs!SN7","v":0},{"$f":"F_Inputs!SO7","v":0},{"$f":"F_Inputs!SP7","v":0},{"$f":"F_Inputs!SQ7","v":0},{"$f":"F_Inputs!SR7","v":0},{"$f":"F_Inputs!SS7","v":0},{"$f":"F_Inputs!ST7","v":0},{"$f":"F_Inputs!SU7","v":0},{"$f":"F_Inputs!SV7","v":0},{"$f":"F_Inputs!SW7","v":0},{"$f":"F_Inputs!SX7","v":0},{"$f":"F_Inputs!SY7","v":0},{"$f":"F_Inputs!SZ7","v":0},{"$f":"F_Inputs!TA7","v":0},{"$f":"F_Inputs!TB7","v":0},{"$f":"F_Inputs!TC7","v":0},{"$f":"F_Inputs!TD7","v":0},{"$f":"F_Inputs!TE7","v":0},{"$f":"F_Inputs!TF7","v":0},{"$f":"F_Inputs!TG7","v":0},{"$f":"F_Inputs!TH7","v":0},{"$f":"F_Inputs!TI7","v":0},{"$f":"F_Inputs!TJ7","v":0},{"$f":"F_Inputs!TK7","v":0},{"$f":"F_Inputs!TL7","v":0},{"$f":"F_Inputs!TM7","v":0},{"$f":"F_Inputs!TN7","v":0},{"$f":"F_Inputs!TO7","v":0},{"$f":"F_Inputs!TP7","v":0},{"$f":"F_Inputs!TQ7","v":0},{"$f":"F_Inputs!TR7","v":0},{"$f":"F_Inputs!TS7","v":0},{"$f":"F_Inputs!TT7","v":0},{"$f":"F_Inputs!TU7","v":0},{"$f":"F_Inputs!TV7","v":0},{"$f":"F_Inputs!TW7","v":0},{"$f":"F_Inputs!TX7","v":0},{"$f":"F_Inputs!TY7","v":0},{"$f":"F_Inputs!TZ7","v":0},{"$f":"F_Inputs!UA7","v":0},{"$f":"F_Inputs!UB7","v":0},{"$f":"F_Inputs!UC7","v":0},{"$f":"F_Inputs!UD7","v":0},{"$f":"F_Inputs!UE7","v":0},{"$f":"F_Inputs!UF7","v":0},{"$f":"F_Inputs!UG7","v":0},{"$f":"F_Inputs!UH7","v":0},{"$f":"F_Inputs!UI7","v":0},{"$f":"F_Inputs!UJ7","v":0},{"$f":"F_Inputs!UK7","v":0},{"$f":"F_Inputs!UL7","v":0},{"$f":"F_Inputs!UM7","v":0},{"$f":"F_Inputs!UN7","v":0},{"$f":"F_Inputs!UO7","v":0},{"$f":"F_Inputs!UP7","v":0},{"$f":"F_Inputs!UQ7","v":0},{"$f":"F_Inputs!UR7","v":0},{"$f":"F_Inputs!US7","v":0},{"$f":"F_Inputs!UT7","v":0},{"$f":"F_Inputs!UU7","v":0},{"$f":"F_Inputs!UV7","v":0},{"$f":"F_Inputs!UW7","v":0},{"$f":"F_Inputs!UX7","v":0},{"$f":"F_Inputs!UY7","v":0},{"$f":"F_Inputs!UZ7","v":0},{"$f":"F_Inputs!VA7","v":0},{"$f":"F_Inputs!VB7","v":0},{"$f":"F_Inputs!VC7","v":0},{"$f":"F_Inputs!VD7","v":0},{"$f":"F_Inputs!VE7","v":0},{"$f":"F_Inputs!VF7","v":0},{"$f":"F_Inputs!VG7","v":0},{"$f":"F_Inputs!VH7","v":0},{"$f":"F_Inputs!VI7","v":0},{"$f":"F_Inputs!VJ7","v":0},{"$f":"F_Inputs!VK7","v":0},{"$f":"F_Inputs!VL7","v":0},{"$f":"F_Inputs!VM7","v":0},{"$f":"F_Inputs!VN7","v":0},{"$f":"F_Inputs!VO7","v":0},{"$f":"F_Inputs!VP7","v":0},{"$f":"F_Inputs!VQ7","v":0},{"$f":"F_Inputs!VR7","v":0},{"$f":"F_Inputs!VS7","v":0},{"$f":"F_Inputs!VT7","v":0},{"$f":"F_Inputs!VU7","v":0},{"$f":"F_Inputs!VV7","v":0},{"$f":"F_Inputs!VW7","v":0},{"$f":"F_Inputs!VX7","v":0},{"$f":"F_Inputs!VY7","v":0},{"$f":"F_Inputs!VZ7","v":0},{"$f":"F_Inputs!WA7","v":0},{"$f":"F_Inputs!WB7","v":0},{"$f":"F_Inputs!WC7","v":0},{"$f":"F_Inputs!WD7","v":0},{"$f":"F_Inputs!WE7","v":0},{"$f":"F_Inputs!WF7","v":0},{"$f":"F_Inputs!WG7","v":0},{"$f":"F_Inputs!WH7","v":0},{"$f":"F_Inputs!WI7","v":0},{"$f":"F_Inputs!WJ7","v":0},{"$f":"F_Inputs!WK7","v":0},{"$f":"F_Inputs!WL7","v":0},{"$f":"F_Inputs!WM7","v":0},{"$f":"F_Inputs!WN7","v":0},{"$f":"F_Inputs!WO7","v":0},{"$f":"F_Inputs!WP7","v":0},{"$f":"F_Inputs!WQ7","v":0},{"$f":"F_Inputs!WR7","v":0},{"$f":"F_Inputs!WS7","v":0},{"$f":"F_Inputs!WT7","v":0},{"$f":"F_Inputs!WU7","v":0},{"$f":"F_Inputs!WV7","v":0},{"$f":"F_Inputs!WW7","v":0},{"$f":"F_Inputs!WX7","v":0},{"$f":"F_Inputs!WY7","v":0},{"$f":"F_Inputs!WZ7","v":0},{"$f":"F_Inputs!XA7","v":0},{"$f":"F_Inputs!XB7","v":0},{"$f":"F_Inputs!XC7","v":0},{"$f":"F_Inputs!XD7","v":0},{"$f":"F_Inputs!XE7","v":0},{"$f":"F_Inputs!XF7","v":0},{"$f":"F_Inputs!XG7","v":0},{"$f":"F_Inputs!XH7","v":0},{"$f":"F_Inputs!XI7","v":0},{"$f":"F_Inputs!XJ7","v":0},{"$f":"F_Inputs!XK7","v":0},{"$f":"F_Inputs!XL7","v":0},{"$f":"F_Inputs!XM7","v":0},{"$f":"F_Inputs!XN7","v":0},{"$f":"F_Inputs!XO7","v":0},{"$f":"F_Inputs!XP7","v":0},{"$f":"F_Inputs!XQ7","v":0},{"$f":"F_Inputs!XR7","v":0},{"$f":"F_Inputs!XS7","v":0},{"$f":"F_Inputs!XT7","v":0},{"$f":"F_Inputs!XU7","v":0},{"$f":"F_Inputs!XV7","v":0},{"$f":"F_Inputs!XW7","v":0},{"$f":"F_Inputs!XX7","v":0},{"$f":"F_Inputs!XY7","v":0},{"$f":"F_Inputs!XZ7","v":0},{"$f":"F_Inputs!YA7","v":0},{"$f":"F_Inputs!YB7","v":0},{"$f":"F_Inputs!YC7","v":0},{"$f":"F_Inputs!YD7","v":0},{"$f":"F_Inputs!YE7","v":0},{"$f":"F_Inputs!YF7","v":0},{"$f":"F_Inputs!YG7","v":0},{"$f":"F_Inputs!YH7","v":0},{"$f":"F_Inputs!YI7","v":0},{"$f":"F_Inputs!YJ7","v":0},{"$f":"F_Inputs!YK7","v":0},{"$f":"F_Inputs!YL7","v":0},{"$f":"F_Inputs!YM7","v":0},{"$f":"F_Inputs!YN7","v":0},{"$f":"F_Inputs!YO7","v":0},{"$f":"F_Inputs!YP7","v":0},{"$f":"F_Inputs!YQ7","v":0},{"$f":"F_Inputs!YR7","v":0},{"$f":"F_Inputs!YS7","v":0},{"$f":"F_Inputs!YT7","v":0},{"$f":"F_Inputs!YU7","v":0},{"$f":"F_Inputs!YV7","v":0},{"$f":"F_Inputs!YW7","v":0},{"$f":"F_Inputs!YX7","v":0},{"$f":"F_Inputs!YY7","v":0},{"$f":"F_Inputs!YZ7","v":0},{"$f":"F_Inputs!ZA7","v":0},{"$f":"F_Inputs!ZB7","v":0},{"$f":"F_Inputs!ZC7","v":0},{"$f":"F_Inputs!ZD7","v":0},{"$f":"F_Inputs!ZE7","v":0},{"$f":"F_Inputs!ZF7","v":0},{"$f":"F_Inputs!ZG7","v":0},{"$f":"F_Inputs!ZH7","v":0},{"$f":"F_Inputs!ZI7","v":0},{"$f":"F_Inputs!ZJ7","v":0},{"$f":"F_Inputs!ZK7","v":0},{"$f":"F_Inputs!ZL7","v":0},{"$f":"F_Inputs!ZM7","v":0},{"$f":"F_Inputs!ZN7","v":0},{"$f":"F_Inputs!ZO7","v":0},{"$f":"F_Inputs!ZP7","v":0},{"$f":"F_Inputs!ZQ7","v":0},{"$f":"F_Inputs!ZR7","v":0},{"$f":"F_Inputs!ZS7","v":0},{"$f":"F_Inputs!ZT7","v":0},{"$f":"F_Inputs!ZU7","v":0},{"$f":"F_Inputs!ZV7","v":0},{"$f":"F_Inputs!ZW7","v":0},{"$f":"F_Inputs!ZX7","v":0},{"$f":"F_Inputs!ZY7","v":0},{"$f":"F_Inputs!ZZ7","v":0},{"$f":"F_Inputs!AAA7","v":0},{"$f":"F_Inputs!AAB7","v":0},{"$f":"F_Inputs!AAC7","v":0},{"$f":"F_Inputs!AAD7","v":0},{"$f":"F_Inputs!AAE7","v":0},{"$f":"F_Inputs!AAF7","v":0},{"$f":"F_Inputs!AAG7","v":0},{"$f":"F_Inputs!AAH7","v":0},{"$f":"F_Inputs!AAI7","v":0},{"$f":"F_Inputs!AAJ7","v":0},{"$f":"F_Inputs!AAK7","v":0},{"$f":"F_Inputs!AAL7","v":0},{"$f":"F_Inputs!AAM7","v":0},{"$f":"F_Inputs!AAN7","v":0},{"$f":"F_Inputs!AAO7","v":0},{"$f":"F_Inputs!AAP7","v":0},{"$f":"F_Inputs!AAQ7","v":0},{"$f":"F_Inputs!AAR7","v":0},{"$f":"F_Inputs!AAS7","v":0},{"$f":"F_Inputs!AAT7","v":0},{"$f":"F_Inputs!AAU7","v":0},{"$f":"F_Inputs!AAV7","v":0},{"$f":"F_Inputs!AAW7","v":0},{"$f":"F_Inputs!AAX7","v":0},{"$f":"F_Inputs!AAY7","v":0},{"$f":"F_Inputs!AAZ7","v":0},{"$f":"F_Inputs!ABA7","v":0},{"$f":"F_Inputs!ABB7","v":0},{"$f":"F_Inputs!ABC7","v":0},{"$f":"F_Inputs!ABD7","v":0},{"$f":"F_Inputs!ABE7","v":0},{"$f":"F_Inputs!ABF7","v":0},{"$f":"F_Inputs!ABG7","v":0},{"$f":"F_Inputs!ABH7","v":0},{"$f":"F_Inputs!ABI7","v":0},{"$f":"F_Inputs!ABJ7","v":0},{"$f":"F_Inputs!ABK7","v":0},{"$f":"F_Inputs!ABL7","v":0},{"$f":"F_Inputs!ABM7","v":0},{"$f":"F_Inputs!ABN7","v":0},{"$f":"F_Inputs!ABO7","v":0},{"$f":"F_Inputs!ABP7","v":0},{"$f":"F_Inputs!ABQ7","v":0},{"$f":"F_Inputs!ABR7","v":0},{"$f":"F_Inputs!ABS7","v":0},{"$f":"F_Inputs!ABT7","v":0},{"$f":"F_Inputs!ABU7","v":0},{"$f":"F_Inputs!ABV7","v":0},{"$f":"F_Inputs!ABW7","v":0},{"$f":"F_Inputs!ABX7","v":0},{"$f":"F_Inputs!ABY7","v":0},{"$f":"F_Inputs!ABZ7","v":0},{"$f":"F_Inputs!ACA7","v":0},{"$f":"F_Inputs!ACB7","v":0},{"$f":"F_Inputs!ACC7","v":0},{"$f":"F_Inputs!ACD7","v":0},{"$f":"F_Inputs!ACE7","v":0},{"$f":"F_Inputs!ACF7","v":0},{"$f":"F_Inputs!ACG7","v":0},{"$f":"F_Inputs!ACH7","v":0},{"$f":"F_Inputs!ACI7","v":0},{"$f":"F_Inputs!ACJ7","v":0},{"$f":"F_Inputs!ACK7","v":0},{"$f":"F_Inputs!ACL7","v":0},{"$f":"F_Inputs!ACM7","v":0},{"$f":"F_Inputs!ACN7","v":0},{"$f":"F_Inputs!ACO7","v":0},{"$f":"F_Inputs!ACP7","v":0},{"$f":"F_Inputs!ACQ7","v":0},{"$f":"F_Inputs!ACR7","v":0},{"$f":"F_Inputs!ACS7","v":0},{"$f":"F_Inputs!ACT7","v":0},{"$f":"F_Inputs!ACU7","v":0},{"$f":"F_Inputs!ACV7","v":0},{"$f":"F_Inputs!ACW7","v":0},{"$f":"F_Inputs!ACX7","v":0},{"$f":"F_Inputs!ACY7","v":0},{"$f":"F_Inputs!ACZ7","v":0},{"$f":"F_Inputs!ADA7","v":0},{"$f":"F_Inputs!ADB7","v":0},{"$f":"F_Inputs!ADC7","v":0},{"$f":"F_Inputs!ADD7","v":0},{"$f":"F_Inputs!ADE7","v":0},{"$f":"F_Inputs!ADF7","v":0},{"$f":"F_Inputs!ADG7","v":0},{"$f":"F_Inputs!ADH7","v":0},{"$f":"F_Inputs!ADI7","v":0},{"$f":"F_Inputs!ADJ7","v":0},{"$f":"F_Inputs!ADK7","v":0},{"$f":"F_Inputs!ADL7","v":0},{"$f":"F_Inputs!ADM7","v":0},{"$f":"F_Inputs!ADN7","v":0},{"$f":"F_Inputs!ADO7","v":0},{"$f":"F_Inputs!ADP7","v":0},{"$f":"F_Inputs!ADQ7","v":0},{"$f":"F_Inputs!ADR7","v":0},{"$f":"F_Inputs!ADS7","v":0},{"$f":"F_Inputs!ADT7","v":0},{"$f":"F_Inputs!ADU7","v":0},{"$f":"F_Inputs!ADV7","v":0},{"$f":"F_Inputs!ADW7","v":0},{"$f":"F_Inputs!ADX7","v":0},{"$f":"F_Inputs!ADY7","v":0},{"$f":"F_Inputs!ADZ7","v":0},{"$f":"F_Inputs!AEA7","v":0},{"$f":"F_Inputs!AEB7","v":0},{"$f":"F_Inputs!AEC7","v":0},{"$f":"F_Inputs!AED7","v":0},{"$f":"F_Inputs!AEE7","v":0},{"$f":"F_Inputs!AEF7","v":0},{"$f":"F_Inputs!AEG7","v":0},{"$f":"F_Inputs!AEH7","v":0},{"$f":"F_Inputs!AEI7","v":0},{"$f":"F_Inputs!AEJ7","v":0},{"$f":"F_Inputs!AEK7","v":0},{"$f":"F_Inputs!AEL7","v":0},{"$f":"F_Inputs!AEM7","v":0},{"$f":"F_Inputs!AEN7","v":0},{"$f":"F_Inputs!AEO7","v":0},{"$f":"F_Inputs!AEP7","v":0},{"$f":"F_Inputs!AEQ7","v":0},{"$f":"F_Inputs!AER7","v":0},{"$f":"F_Inputs!AES7","v":0},{"$f":"F_Inputs!AET7","v":0},{"$f":"F_Inputs!AEU7","v":0},{"$f":"F_Inputs!AEV7","v":0},{"$f":"F_Inputs!AEW7","v":0},{"$f":"F_Inputs!AEX7","v":0},{"$f":"F_Inputs!AEY7","v":0},{"$f":"F_Inputs!AEZ7","v":0},{"$f":"F_Inputs!AFA7","v":0},{"$f":"F_Inputs!AFB7","v":0},{"$f":"F_Inputs!AFC7","v":0},{"$f":"F_Inputs!AFD7","v":0},{"$f":"F_Inputs!AFE7","v":0},{"$f":"F_Inputs!AFF7","v":0},{"$f":"F_Inputs!AFG7","v":0},{"$f":"F_Inputs!AFH7","v":0},{"$f":"F_Inputs!AFI7","v":0},{"$f":"F_Inputs!AFJ7","v":0},{"$f":"F_Inputs!AFK7","v":0},{"$f":"F_Inputs!AFL7","v":0},{"$f":"F_Inputs!AFM7","v":0},{"$f":"F_Inputs!AFN7","v":0},{"$f":"F_Inputs!AFO7","v":0},{"$f":"F_Inputs!AFP7","v":0},{"$f":"F_Inputs!AFQ7","v":0},{"$f":"F_Inputs!AFR7","v":0},{"$f":"F_Inputs!AFS7","v":0},{"$f":"F_Inputs!AFT7","v":0},{"$f":"F_Inputs!AFU7","v":0},{"$f":"F_Inputs!AFV7","v":0},{"$f":"F_Inputs!AFW7","v":0},{"$f":"F_Inputs!AFX7","v":0},{"$f":"F_Inputs!AFY7","v":0},{"$f":"F_Inputs!AFZ7","v":0},{"$f":"F_Inputs!AGA7","v":0},{"$f":"F_Inputs!AGB7","v":0},{"$f":"F_Inputs!AGC7","v":0},{"$f":"F_Inputs!AGD7","v":0},{"$f":"F_Inputs!AGE7","v":0},{"$f":"F_Inputs!AGF7","v":0},{"$f":"F_Inputs!AGG7","v":0},{"$f":"F_Inputs!AGH7","v":0},{"$f":"F_Inputs!AGI7","v":0},{"$f":"F_Inputs!AGJ7","v":0},{"$f":"F_Inputs!AGK7","v":0},{"$f":"F_Inputs!AGL7","v":0},{"$f":"F_Inputs!AGM7","v":0},{"$f":"F_Inputs!AGN7","v":0},{"$f":"F_Inputs!AGO7","v":0},{"$f":"F_Inputs!AGP7","v":0},{"$f":"F_Inputs!AGQ7","v":0},{"$f":"F_Inputs!AGR7","v":0},{"$f":"F_Inputs!AGS7","v":0},{"$f":"F_Inputs!AGT7","v":0},{"$f":"F_Inputs!AGU7","v":0},{"$f":"F_Inputs!AGV7","v":0},{"$f":"F_Inputs!AGW7","v":0},{"$f":"F_Inputs!AGX7","v":0},{"$f":"F_Inputs!AGY7","v":0},{"$f":"F_Inputs!AGZ7","v":0},{"$f":"F_Inputs!AHA7","v":0},{"$f":"F_Inputs!AHB7","v":0},{"$f":"F_Inputs!AHC7","v":0},{"$f":"F_Inputs!AHD7","v":0},{"$f":"F_Inputs!AHE7","v":0},{"$f":"F_Inputs!AHF7","v":0},{"$f":"F_Inputs!AHG7","v":0},{"$f":"F_Inputs!AHH7","v":0},{"$f":"F_Inputs!AHI7","v":0},{"$f":"F_Inputs!AHJ7","v":0},{"$f":"F_Inputs!AHK7","v":0},{"$f":"F_Inputs!AHL7","v":0},{"$f":"F_Inputs!AHM7","v":0},{"$f":"F_Inputs!AHN7","v":0},{"$f":"F_Inputs!AHO7","v":0},{"$f":"F_Inputs!AHP7","v":0},{"$f":"F_Inputs!AHQ7","v":0},{"$f":"F_Inputs!AHR7","v":0},{"$f":"F_Inputs!AHS7","v":0},{"$f":"F_Inputs!AHT7","v":0},{"$f":"F_Inputs!AHU7","v":0},{"$f":"F_Inputs!AHV7","v":0},{"$f":"F_Inputs!AHW7","v":0},{"$f":"F_Inputs!AHX7","v":0},{"$f":"F_Inputs!AHY7","v":0},{"$f":"F_Inputs!AHZ7","v":0},{"$f":"F_Inputs!AIA7","v":0},{"$f":"F_Inputs!AIB7","v":0},{"$f":"F_Inputs!AIC7","v":0},{"$f":"F_Inputs!AID7","v":0},{"$f":"F_Inputs!AIE7","v":0},{"$f":"F_Inputs!AIF7","v":0},{"$f":"F_Inputs!AIG7","v":0},{"$f":"F_Inputs!AIH7","v":0},{"$f":"F_Inputs!AII7","v":0},{"$f":"F_Inputs!AIJ7","v":0},{"$f":"F_Inputs!AIK7","v":0},{"$f":"F_Inputs!AIL7","v":0},{"$f":"F_Inputs!AIM7","v":0},{"$f":"F_Inputs!AIN7","v":0},{"$f":"F_Inputs!AIO7","v":0},{"$f":"F_Inputs!AIP7","v":0},{"$f":"F_Inputs!AIQ7","v":0},{"$f":"F_Inputs!AIR7","v":0},{"$f":"F_Inputs!AIS7","v":0},{"$f":"F_Inputs!AIT7","v":0},{"$f":"F_Inputs!AIU7","v":0},{"$f":"F_Inputs!AIV7","v":0},{"$f":"F_Inputs!AIW7","v":0},{"$f":"F_Inputs!AIX7","v":0},{"$f":"F_Inputs!AIY7","v":0},{"$f":"F_Inputs!AIZ7","v":0},{"$f":"F_Inputs!AJA7","v":0},{"$f":"F_Inputs!AJB7","v":0},{"$f":"F_Inputs!AJC7","v":0},{"$f":"F_Inputs!AJD7","v":0},{"$f":"F_Inputs!AJE7","v":0},{"$f":"F_Inputs!AJF7","v":0},{"$f":"F_Inputs!AJG7","v":0},{"$f":"F_Inputs!AJH7","v":0},{"$f":"F_Inputs!AJI7","v":0},{"$f":"F_Inputs!AJJ7","v":0},{"$f":"F_Inputs!AJK7","v":0},{"$f":"F_Inputs!AJL7","v":0},{"$f":"F_Inputs!AJM7","v":0},{"$f":"F_Inputs!AJN7","v":0},{"$f":"F_Inputs!AJO7","v":0},{"$f":"F_Inputs!AJP7","v":0},{"$f":"F_Inputs!AJQ7","v":0},{"$f":"F_Inputs!AJR7","v":0},{"$f":"F_Inputs!AJS7","v":0},{"$f":"F_Inputs!AJT7","v":0},{"$f":"F_Inputs!AJU7","v":0},{"$f":"F_Inputs!AJV7","v":0},{"$f":"F_Inputs!AJW7","v":0},{"$f":"F_Inputs!AJX7","v":0},{"$f":"F_Inputs!AJY7","v":0},{"$f":"F_Inputs!AJZ7","v":0},{"$f":"F_Inputs!AKA7","v":0},{"$f":"F_Inputs!AKB7","v":0},{"$f":"F_Inputs!AKC7","v":0},{"$f":"F_Inputs!AKD7","v":0},{"$f":"F_Inputs!AKE7","v":0},{"$f":"F_Inputs!AKF7","v":0},{"$f":"F_Inputs!AKG7","v":0},{"$f":"F_Inputs!AKH7","v":0},{"$f":"F_Inputs!AKI7","v":0},{"$f":"F_Inputs!AKJ7","v":0},{"$f":"F_Inputs!AKK7","v":0},{"$f":"F_Inputs!AKL7","v":0},{"$f":"F_Inputs!AKM7","v":0},{"$f":"F_Inputs!AKN7","v":0},{"$f":"F_Inputs!AKO7","v":0},{"$f":"F_Inputs!AKP7","v":0},{"$f":"F_Inputs!AKQ7","v":0},{"$f":"F_Inputs!AKR7","v":0},{"$f":"F_Inputs!AKS7","v":0},{"$f":"F_Inputs!AKT7","v":0},{"$f":"F_Inputs!AKU7","v":0},{"$f":"F_Inputs!AKV7","v":0},{"$f":"F_Inputs!AKW7","v":0},{"$f":"F_Inputs!AKX7","v":0},{"$f":"F_Inputs!AKY7","v":0},{"$f":"F_Inputs!AKZ7","v":0},{"$f":"F_Inputs!ALA7","v":0},{"$f":"F_Inputs!ALB7","v":0},{"$f":"F_Inputs!ALC7","v":0},{"$f":"F_Inputs!ALD7","v":0},{"$f":"F_Inputs!ALE7","v":0},{"$f":"F_Inputs!ALF7","v":0},{"$f":"F_Inputs!ALG7","v":0},{"$f":"F_Inputs!ALH7","v":0},{"$f":"F_Inputs!ALI7","v":0},{"$f":"F_Inputs!ALJ7","v":0},{"$f":"F_Inputs!ALK7","v":0},{"$f":"F_Inputs!ALL7","v":0},{"$f":"F_Inputs!ALM7","v":0},{"$f":"F_Inputs!ALN7","v":0},{"$f":"F_Inputs!ALO7","v":0},{"$f":"F_Inputs!ALP7","v":0},{"$f":"F_Inputs!ALQ7","v":0},{"$f":"F_Inputs!ALR7","v":0},{"$f":"F_Inputs!ALS7","v":0},{"$f":"F_Inputs!ALT7","v":0},{"$f":"F_Inputs!ALU7","v":0},{"$f":"F_Inputs!ALV7","v":0},{"$f":"F_Inputs!ALW7","v":0},{"$f":"F_Inputs!ALX7","v":0},{"$f":"F_Inputs!ALY7","v":0},{"$f":"F_Inputs!ALZ7","v":0},{"$f":"F_Inputs!AMA7","v":0},{"$f":"F_Inputs!AMB7","v":0},{"$f":"F_Inputs!AMC7","v":0},{"$f":"F_Inputs!AMD7","v":0},{"$f":"F_Inputs!AME7","v":0},{"$f":"F_Inputs!AMF7","v":0},{"$f":"F_Inputs!AMG7","v":0},{"$f":"F_Inputs!AMH7","v":0},{"$f":"F_Inputs!AMI7","v":0},{"$f":"F_Inputs!AMJ7","v":0},{"$f":"F_Inputs!AMK7","v":0},{"$f":"F_Inputs!AML7","v":0},{"$f":"F_Inputs!AMM7","v":0},{"$f":"F_Inputs!AMN7","v":0},{"$f":"F_Inputs!AMO7","v":0},{"$f":"F_Inputs!AMP7","v":0},{"$f":"F_Inputs!AMQ7","v":0},{"$f":"F_Inputs!AMR7","v":0},{"$f":"F_Inputs!AMS7","v":0},{"$f":"F_Inputs!AMT7","v":0},{"$f":"F_Inputs!AMU7","v":0},{"$f":"F_Inputs!AMV7","v":0},{"$f":"F_Inputs!AMW7","v":0},{"$f":"F_Inputs!AMX7","v":0},{"$f":"F_Inputs!AMY7","v":0},{"$f":"F_Inputs!AMZ7","v":0},{"$f":"F_Inputs!ANA7","v":0},{"$f":"F_Inputs!ANB7","v":0},{"$f":"F_Inputs!ANC7","v":0},{"$f":"F_Inputs!AND7","v":0},{"$f":"F_Inputs!ANE7","v":0},{"$f":"F_Inputs!ANF7","v":0},{"$f":"F_Inputs!ANG7","v":0},{"$f":"F_Inputs!ANH7","v":0},{"$f":"F_Inputs!ANI7","v":0},{"$f":"F_Inputs!ANJ7","v":0},{"$f":"F_Inputs!ANK7","v":0},{"$f":"F_Inputs!ANL7","v":0},{"$f":"F_Inputs!ANM7","v":0},{"$f":"F_Inputs!ANN7","v":0},{"$f":"F_Inputs!ANO7","v":0},{"$f":"F_Inputs!ANP7","v":0},{"$f":"F_Inputs!ANQ7","v":0},{"$f":"F_Inputs!ANR7","v":0},{"$f":"F_Inputs!ANS7","v":0},{"$f":"F_Inputs!ANT7","v":0},{"$f":"F_Inputs!ANU7","v":0},{"$f":"F_Inputs!ANV7","v":0},{"$f":"F_Inputs!ANW7","v":0},{"$f":"F_Inputs!ANX7","v":0},{"$f":"F_Inputs!ANY7","v":0},{"$f":"F_Inputs!ANZ7","v":0},{"$f":"F_Inputs!AOA7","v":0},{"$f":"F_Inputs!AOB7","v":0},{"$f":"F_Inputs!AOC7","v":0},{"$f":"F_Inputs!AOD7","v":0},{"$f":"F_Inputs!AOE7","v":0},{"$f":"F_Inputs!AOF7","v":0},{"$f":"F_Inputs!AOG7","v":0},{"$f":"F_Inputs!AOH7","v":0},{"$f":"F_Inputs!AOI7","v":0},{"$f":"F_Inputs!AOJ7","v":0},{"$f":"F_Inputs!AOK7","v":0},{"$f":"F_Inputs!AOL7","v":0},{"$f":"F_Inputs!AOM7","v":0},{"$f":"F_Inputs!AON7","v":0},{"$f":"F_Inputs!AOO7","v":0},{"$f":"F_Inputs!AOP7","v":0},{"$f":"F_Inputs!AOQ7","v":0},{"$f":"F_Inputs!AOR7","v":0},{"$f":"F_Inputs!AOS7","v":0},{"$f":"F_Inputs!AOT7","v":0},{"$f":"F_Inputs!AOU7","v":0},{"$f":"F_Inputs!AOV7","v":0},{"$f":"F_Inputs!AOW7","v":0},{"$f":"F_Inputs!AOX7","v":0},{"$f":"F_Inputs!AOY7","v":0},{"$f":"F_Inputs!AOZ7","v":0},{"$f":"F_Inputs!APA7","v":0},{"$f":"F_Inputs!APB7","v":0},{"$f":"F_Inputs!APC7","v":0},{"$f":"F_Inputs!APD7","v":0},{"$f":"F_Inputs!APE7","v":0},{"$f":"F_Inputs!APF7","v":0},{"$f":"F_Inputs!APG7","v":0},{"$f":"F_Inputs!APH7","v":0},{"$f":"F_Inputs!API7","v":0},{"$f":"F_Inputs!APJ7","v":0},{"$f":"F_Inputs!APK7","v":0},{"$f":"F_Inputs!APL7","v":0},{"$f":"F_Inputs!APM7","v":0},{"$f":"F_Inputs!APN7","v":0},{"$f":"F_Inputs!APO7","v":0},{"$f":"F_Inputs!APP7","v":0},{"$f":"F_Inputs!APQ7","v":0},{"$f":"F_Inputs!APR7","v":0},{"$f":"F_Inputs!APS7","v":0},{"$f":"F_Inputs!APT7","v":0},{"$f":"F_Inputs!APU7","v":0},{"$f":"F_Inputs!APV7","v":0},{"$f":"F_Inputs!APW7","v":0},{"$f":"F_Inputs!APX7","v":0},{"$f":"F_Inputs!APY7","v":0},{"$f":"F_Inputs!APZ7","v":0},{"$f":"F_Inputs!AQA7","v":0},{"$f":"F_Inputs!AQB7","v":0},{"$f":"F_Inputs!AQC7","v":0},{"$f":"F_Inputs!AQD7","v":0},{"$f":"F_Inputs!AQE7","v":0},{"$f":"F_Inputs!AQF7","v":0},{"$f":"F_Inputs!AQG7","v":0},{"$f":"F_Inputs!AQH7","v":0},{"$f":"F_Inputs!AQI7","v":0},{"$f":"F_Inputs!AQJ7","v":0},{"$f":"F_Inputs!AQK7","v":0},{"$f":"F_Inputs!AQL7","v":0},{"$f":"F_Inputs!AQM7","v":0},{"$f":"F_Inputs!AQN7","v":0},{"$f":"F_Inputs!AQO7","v":0},{"$f":"F_Inputs!AQP7","v":0},{"$f":"F_Inputs!AQQ7","v":0},{"$f":"F_Inputs!AQR7","v":0},{"$f":"F_Inputs!AQS7","v":0},{"$f":"F_Inputs!AQT7","v":0},{"$f":"F_Inputs!AQU7","v":0},{"$f":"F_Inputs!AQV7","v":0},{"$f":"F_Inputs!AQW7","v":0},{"$f":"F_Inputs!AQX7","v":0},{"$f":"F_Inputs!AQY7","v":0},{"$f":"F_Inputs!AQZ7","v":0},{"$f":"F_Inputs!ARA7","v":0},{"$f":"F_Inputs!ARB7","v":0},{"$f":"F_Inputs!ARC7","v":0},{"$f":"F_Inputs!ARD7","v":0},{"$f":"F_Inputs!ARE7","v":0},{"$f":"F_Inputs!ARF7","v":0},{"$f":"F_Inputs!ARG7","v":0},{"$f":"F_Inputs!ARH7","v":0},{"$f":"F_Inputs!ARI7","v":0},{"$f":"F_Inputs!ARJ7","v":0},{"$f":"F_Inputs!ARK7","v":0},{"$f":"F_Inputs!ARL7","v":0},{"$f":"F_Inputs!ARM7","v":0},{"$f":"F_Inputs!ARN7","v":0},{"$f":"F_Inputs!ARO7","v":0},{"$f":"F_Inputs!ARP7","v":0},{"$f":"F_Inputs!ARQ7","v":0},{"$f":"F_Inputs!ARR7","v":0},{"$f":"F_Inputs!ARS7","v":0},{"$f":"F_Inputs!ART7","v":0},{"$f":"F_Inputs!ARU7","v":0},{"$f":"F_Inputs!ARV7","v":0},{"$f":"F_Inputs!ARW7","v":0},{"$f":"F_Inputs!ARX7","v":0},{"$f":"F_Inputs!ARY7","v":0},{"$f":"F_Inputs!ARZ7","v":0},{"$f":"F_Inputs!ASA7","v":0},{"$f":"F_Inputs!ASB7","v":0},{"$f":"F_Inputs!ASC7","v":0},{"$f":"F_Inputs!ASD7","v":0},{"$f":"F_Inputs!ASE7","v":0},{"$f":"F_Inputs!ASF7","v":0},{"$f":"F_Inputs!ASG7","v":0},{"$f":"F_Inputs!ASH7","v":0},{"$f":"F_Inputs!ASI7","v":0},{"$f":"F_Inputs!ASJ7","v":0},{"$f":"F_Inputs!ASK7","v":0},{"$f":"F_Inputs!ASL7","v":0},{"$f":"F_Inputs!ASM7","v":0},{"$f":"F_Inputs!ASN7","v":0},{"$f":"F_Inputs!ASO7","v":0},{"$f":"F_Inputs!ASP7","v":0},{"$f":"F_Inputs!ASQ7","v":0},{"$f":"F_Inputs!ASR7","v":0},{"$f":"F_Inputs!ASS7","v":0},{"$f":"F_Inputs!AST7","v":0},{"$f":"F_Inputs!ASU7","v":0},{"$f":"F_Inputs!ASV7","v":0},{"$f":"F_Inputs!ASW7","v":0},{"$f":"F_Inputs!ASX7","v":0},{"$f":"F_Inputs!ASY7","v":0},{"$f":"F_Inputs!ASZ7","v":0},{"$f":"F_Inputs!ATA7","v":0},{"$f":"F_Inputs!ATB7","v":0},{"$f":"F_Inputs!ATC7","v":0},{"$f":"F_Inputs!ATD7","v":0},{"$f":"F_Inputs!ATE7","v":0},{"$f":"F_Inputs!ATF7","v":0},{"$f":"F_Inputs!ATG7","v":0},{"$f":"F_Inputs!ATH7","v":0},{"$f":"F_Inputs!ATI7","v":0},{"$f":"F_Inputs!ATJ7","v":0},{"$f":"F_Inputs!ATK7","v":0},{"$f":"F_Inputs!ATL7","v":0},{"$f":"F_Inputs!ATM7","v":0},{"$f":"F_Inputs!ATN7","v":0},{"$f":"F_Inputs!ATO7","v":0},{"$f":"F_Inputs!ATP7","v":0},{"$f":"F_Inputs!ATQ7","v":0},{"$f":"F_Inputs!ATR7","v":0},{"$f":"F_Inputs!ATS7","v":0},{"$f":"F_Inputs!ATT7","v":0},{"$f":"F_Inputs!ATU7","v":0},{"$f":"F_Inputs!ATV7","v":0},{"$f":"F_Inputs!ATW7","v":0},{"$f":"F_Inputs!ATX7","v":0},{"$f":"F_Inputs!ATY7","v":0},{"$f":"F_Inputs!ATZ7","v":0},{"$f":"F_Inputs!AUA7","v":0},{"$f":"F_Inputs!AUB7","v":0},{"$f":"F_Inputs!AUC7","v":0},{"$f":"F_Inputs!AUD7","v":0},{"$f":"F_Inputs!AUE7","v":0},{"$f":"F_Inputs!AUF7","v":0},{"$f":"F_Inputs!AUG7","v":0},{"$f":"F_Inputs!AUH7","v":0},{"$f":"F_Inputs!AUI7","v":0},{"$f":"F_Inputs!AUJ7","v":0},{"$f":"F_Inputs!AUK7","v":0},{"$f":"F_Inputs!AUL7","v":0},{"$f":"F_Inputs!AUM7","v":0},{"$f":"F_Inputs!AUN7","v":0},{"$f":"F_Inputs!AUO7","v":0},{"$f":"F_Inputs!AUP7","v":0},{"$f":"F_Inputs!AUQ7","v":0},{"$f":"F_Inputs!AUR7","v":0},{"$f":"F_Inputs!AUS7","v":0},{"$f":"F_Inputs!AUT7","v":0},{"$f":"F_Inputs!AUU7","v":0},{"$f":"F_Inputs!AUV7","v":0},{"$f":"F_Inputs!AUW7","v":0},{"$f":"F_Inputs!AUX7","v":0},{"$f":"F_Inputs!AUY7","v":0},{"$f":"F_Inputs!AUZ7","v":0},{"$f":"F_Inputs!AVA7","v":0},{"$f":"F_Inputs!AVB7","v":0},{"$f":"F_Inputs!AVC7","v":0},{"$f":"F_Inputs!AVD7","v":0},{"$f":"F_Inputs!AVE7","v":0},{"$f":"F_Inputs!AVF7","v":0},{"$f":"F_Inputs!AVG7","v":0},{"$f":"F_Inputs!AVH7","v":0},{"$f":"F_Inputs!AVI7","v":0},{"$f":"F_Inputs!AVJ7","v":0},{"$f":"F_Inputs!AVK7","v":0},{"$f":"F_Inputs!AVL7","v":0},{"$f":"F_Inputs!AVM7","v":0},{"$f":"F_Inputs!AVN7","v":0},{"$f":"F_Inputs!AVO7","v":0},{"$f":"F_Inputs!AVP7","v":0},{"$f":"F_Inputs!AVQ7","v":0},{"$f":"F_Inputs!AVR7","v":0},{"$f":"F_Inputs!AVS7","v":0},{"$f":"F_Inputs!AVT7","v":0},{"$f":"F_Inputs!AVU7","v":0},{"$f":"F_Inputs!AVV7","v":0},{"$f":"F_Inputs!AVW7","v":0},{"$f":"F_Inputs!AVX7","v":0},{"$f":"F_Inputs!AVY7","v":0},{"$f":"F_Inputs!AVZ7","v":0},{"$f":"F_Inputs!AWA7","v":0},{"$f":"F_Inputs!AWB7","v":0},{"$f":"F_Inputs!AWC7","v":0},{"$f":"F_Inputs!AWD7","v":0},{"$f":"F_Inputs!AWE7","v":0},{"$f":"F_Inputs!AWF7","v":0},{"$f":"F_Inputs!AWG7","v":0},{"$f":"F_Inputs!AWH7","v":0},{"$f":"F_Inputs!AWI7","v":0},{"$f":"F_Inputs!AWJ7","v":0},{"$f":"F_Inputs!AWK7","v":0},{"$f":"F_Inputs!AWL7","v":0},{"$f":"F_Inputs!AWM7","v":0},{"$f":"F_Inputs!AWN7","v":0},{"$f":"F_Inputs!AWO7","v":0},{"$f":"F_Inputs!AWP7","v":0},{"$f":"F_Inputs!AWQ7","v":0},{"$f":"F_Inputs!AWR7","v":0},{"$f":"F_Inputs!AWS7","v":0},{"$f":"F_Inputs!AWT7","v":0},{"$f":"F_Inputs!AWU7","v":0},{"$f":"F_Inputs!AWV7","v":0},{"$f":"F_Inputs!AWW7","v":0},{"$f":"F_Inputs!AWX7","v":0},{"$f":"F_Inputs!AWY7","v":0},{"$f":"F_Inputs!AWZ7","v":0},{"$f":"F_Inputs!AXA7","v":0},{"$f":"F_Inputs!AXB7","v":0},{"$f":"F_Inputs!AXC7","v":0},{"$f":"F_Inputs!AXD7","v":0},{"$f":"F_Inputs!AXE7","v":0},{"$f":"F_Inputs!AXF7","v":0},{"$f":"F_Inputs!AXG7","v":0},{"$f":"F_Inputs!AXH7","v":0},{"$f":"F_Inputs!AXI7","v":0},{"$f":"F_Inputs!AXJ7","v":0},{"$f":"F_Inputs!AXK7","v":0},{"$f":"F_Inputs!AXL7","v":0},{"$f":"F_Inputs!AXM7","v":0},{"$f":"F_Inputs!AXN7","v":0},{"$f":"F_Inputs!AXO7","v":0},{"$f":"F_Inputs!AXP7","v":0},{"$f":"F_Inputs!AXQ7","v":0},{"$f":"F_Inputs!AXR7","v":0},{"$f":"F_Inputs!AXS7","v":0},{"$f":"F_Inputs!AXT7","v":0},{"$f":"F_Inputs!AXU7","v":0},{"$f":"F_Inputs!AXV7","v":0},{"$f":"F_Inputs!AXW7","v":0},{"$f":"F_Inputs!AXX7","v":0},{"$f":"F_Inputs!AXY7","v":0},{"$f":"F_Inputs!AXZ7","v":0},{"$f":"F_Inputs!AYA7","v":0},{"$f":"F_Inputs!AYB7","v":0},{"$f":"F_Inputs!AYC7","v":0},{"$f":"F_Inputs!AYD7","v":0},{"$f":"F_Inputs!AYE7","v":0},{"$f":"F_Inputs!AYF7","v":0},{"$f":"F_Inputs!AYG7","v":0},{"$f":"F_Inputs!AYH7","v":0},{"$f":"F_Inputs!AYI7","v":0},{"$f":"F_Inputs!AYJ7","v":0},{"$f":"F_Inputs!AYK7","v":0},{"$f":"F_Inputs!AYL7","v":0},{"$f":"F_Inputs!AYM7","v":0},{"$f":"F_Inputs!AYN7","v":0},{"$f":"F_Inputs!AYO7","v":0},{"$f":"F_Inputs!AYP7","v":0},{"$f":"F_Inputs!AYQ7","v":0},{"$f":"F_Inputs!AYR7","v":0},{"$f":"F_Inputs!AYS7","v":0},{"$f":"F_Inputs!AYT7","v":0},{"$f":"F_Inputs!AYU7","v":0},{"$f":"F_Inputs!AYV7","v":0},{"$f":"F_Inputs!AYW7","v":0},{"$f":"F_Inputs!AYX7","v":0},{"$f":"F_Inputs!AYY7","v":0},{"$f":"F_Inputs!AYZ7","v":0},{"$f":"F_Inputs!AZA7","v":0},{"$f":"F_Inputs!AZB7","v":0},{"$f":"F_Inputs!AZC7","v":0},{"$f":"F_Inputs!AZD7","v":0},{"$f":"F_Inputs!AZE7","v":0},{"$f":"F_Inputs!AZF7","v":0},{"$f":"F_Inputs!AZG7","v":0},{"$f":"F_Inputs!AZH7","v":0},{"$f":"F_Inputs!AZI7","v":0},{"$f":"F_Inputs!AZJ7","v":0},{"$f":"F_Inputs!AZK7","v":0},{"$f":"F_Inputs!AZL7","v":0},{"$f":"F_Inputs!AZM7","v":0},{"$f":"F_Inputs!AZN7","v":0},{"$f":"F_Inputs!AZO7","v":0},{"$f":"F_Inputs!AZP7","v":0},{"$f":"F_Inputs!AZQ7","v":0},{"$f":"F_Inputs!AZR7","v":0},{"$f":"F_Inputs!AZS7","v":0},{"$f":"F_Inputs!AZT7","v":0},{"$f":"F_Inputs!AZU7","v":0},{"$f":"F_Inputs!AZV7","v":0},{"$f":"F_Inputs!AZW7","v":0},{"$f":"F_Inputs!AZX7","v":0},{"$f":"F_Inputs!AZY7","v":0},{"$f":"F_Inputs!AZZ7","v":0},{"$f":"F_Inputs!BAA7","v":0},{"$f":"F_Inputs!BAB7","v":0},{"$f":"F_Inputs!BAC7","v":0},{"$f":"F_Inputs!BAD7","v":0},{"$f":"F_Inputs!BAE7","v":0},{"$f":"F_Inputs!BAF7","v":0},{"$f":"F_Inputs!BAG7","v":0},{"$f":"F_Inputs!BAH7","v":0},{"$f":"F_Inputs!BAI7","v":0},{"$f":"F_Inputs!BAJ7","v":0},{"$f":"F_Inputs!BAK7","v":0},{"$f":"F_Inputs!BAL7","v":0},{"$f":"F_Inputs!BAM7","v":0},{"$f":"F_Inputs!BAN7","v":0},{"$f":"F_Inputs!BAO7","v":0},{"$f":"F_Inputs!BAP7","v":0},{"$f":"F_Inputs!BAQ7","v":0},{"$f":"F_Inputs!BAR7","v":0},{"$f":"F_Inputs!BAS7","v":0},{"$f":"F_Inputs!BAT7","v":0},{"$f":"F_Inputs!BAU7","v":0},{"$f":"F_Inputs!BAV7","v":0},{"$f":"F_Inputs!BAW7","v":0},{"$f":"F_Inputs!BAX7","v":0},{"$f":"F_Inputs!BAY7","v":0},{"$f":"F_Inputs!BAZ7","v":0},{"$f":"F_Inputs!BBA7","v":0},{"$f":"F_Inputs!BBB7","v":0},{"$f":"F_Inputs!BBC7","v":0},{"$f":"F_Inputs!BBD7","v":0},{"$f":"F_Inputs!BBE7","v":0},{"$f":"F_Inputs!BBF7","v":0},{"$f":"F_Inputs!BBG7","v":0},{"$f":"F_Inputs!BBH7","v":0},{"$f":"F_Inputs!BBI7","v":0},{"$f":"F_Inputs!BBJ7","v":0},{"$f":"F_Inputs!BBK7","v":0},{"$f":"F_Inputs!BBL7","v":0},{"$f":"F_Inputs!BBM7","v":0},{"$f":"F_Inputs!BBN7","v":0},{"$f":"F_Inputs!BBO7","v":0},{"$f":"F_Inputs!BBP7","v":0},{"$f":"F_Inputs!BBQ7","v":0},{"$f":"F_Inputs!BBR7","v":0},{"$f":"F_Inputs!BBS7","v":0},{"$f":"F_Inputs!BBT7","v":0},{"$f":"F_Inputs!BBU7","v":0},{"$f":"F_Inputs!BBV7","v":0},{"$f":"F_Inputs!BBW7","v":0},{"$f":"F_Inputs!BBX7","v":0},{"$f":"F_Inputs!BBY7","v":0},{"$f":"F_Inputs!BBZ7","v":0},{"$f":"F_Inputs!BCA7","v":0},{"$f":"F_Inputs!BCB7","v":0},{"$f":"F_Inputs!BCC7","v":0},{"$f":"F_Inputs!BCD7","v":0},{"$f":"F_Inputs!BCE7","v":0},{"$f":"F_Inputs!BCF7","v":0},{"$f":"F_Inputs!BCG7","v":0},{"$f":"F_Inputs!BCH7","v":0},{"$f":"F_Inputs!BCI7","v":0},{"$f":"F_Inputs!BCJ7","v":0},{"$f":"F_Inputs!BCK7","v":0},{"$f":"F_Inputs!BCL7","v":0},{"$f":"F_Inputs!BCM7","v":0},{"$f":"F_Inputs!BCN7","v":0},{"$f":"F_Inputs!BCO7","v":0},{"$f":"F_Inputs!BCP7","v":0},{"$f":"F_Inputs!BCQ7","v":0},{"$f":"F_Inputs!BCR7","v":0},{"$f":"F_Inputs!BCS7","v":0},{"$f":"F_Inputs!BCT7","v":0},{"$f":"F_Inputs!BCU7","v":0},{"$f":"F_Inputs!BCV7","v":0},{"$f":"F_Inputs!BCW7","v":0},{"$f":"F_Inputs!BCX7","v":0},{"$f":"F_Inputs!BCY7","v":0},{"$f":"F_Inputs!BCZ7","v":0},{"$f":"F_Inputs!BDA7","v":0},{"$f":"F_Inputs!BDB7","v":0},{"$f":"F_Inputs!BDC7","v":0},{"$f":"F_Inputs!BDD7","v":0},{"$f":"F_Inputs!BDE7","v":0},{"$f":"F_Inputs!BDF7","v":0},{"$f":"F_Inputs!BDG7","v":0},{"$f":"F_Inputs!BDH7","v":0},{"$f":"F_Inputs!BDI7","v":0},{"$f":"F_Inputs!BDJ7","v":0},{"$f":"F_Inputs!BDK7","v":0},{"$f":"F_Inputs!BDL7","v":0},{"$f":"F_Inputs!BDM7","v":0},{"$f":"F_Inputs!BDN7","v":0},{"$f":"F_Inputs!BDO7","v":0},{"$f":"F_Inputs!BDP7","v":0},{"$f":"F_Inputs!BDQ7","v":0},{"$f":"F_Inputs!BDR7","v":0},{"$f":"F_Inputs!BDS7","v":0},{"$f":"F_Inputs!BDT7","v":0},{"$f":"F_Inputs!BDU7","v":0},{"$f":"F_Inputs!BDV7","v":0},{"$f":"F_Inputs!BDW7","v":0},{"$f":"F_Inputs!BDX7","v":0},{"$f":"F_Inputs!BDY7","v":0},{"$f":"F_Inputs!BDZ7","v":0},{"$f":"F_Inputs!BEA7","v":0},{"$f":"F_Inputs!BEB7","v":0},{"$f":"F_Inputs!BEC7","v":0},{"$f":"F_Inputs!BED7","v":0},{"$f":"F_Inputs!BEE7","v":0},{"$f":"F_Inputs!BEF7","v":0},{"$f":"F_Inputs!BEG7","v":0},{"$f":"F_Inputs!BEH7","v":0},{"$f":"F_Inputs!BEI7","v":0},{"$f":"F_Inputs!BEJ7","v":0},{"$f":"F_Inputs!BEK7","v":0},{"$f":"F_Inputs!BEL7","v":0},{"$f":"F_Inputs!BEM7","v":0},{"$f":"F_Inputs!BEN7","v":0},{"$f":"F_Inputs!BEO7","v":0},{"$f":"F_Inputs!BEP7","v":0},{"$f":"F_Inputs!BEQ7","v":0},{"$f":"F_Inputs!BER7","v":0},{"$f":"F_Inputs!BES7","v":0},{"$f":"F_Inputs!BET7","v":0},{"$f":"F_Inputs!BEU7","v":0},{"$f":"F_Inputs!BEV7","v":0},{"$f":"F_Inputs!BEW7","v":0},{"$f":"F_Inputs!BEX7","v":0},{"$f":"F_Inputs!BEY7","v":0},{"$f":"F_Inputs!BEZ7","v":0},{"$f":"F_Inputs!BFA7","v":0},{"$f":"F_Inputs!BFB7","v":0},{"$f":"F_Inputs!BFC7","v":0},{"$f":"F_Inputs!BFD7","v":0},{"$f":"F_Inputs!BFE7","v":0},{"$f":"F_Inputs!BFF7","v":0},{"$f":"F_Inputs!BFG7","v":0},{"$f":"F_Inputs!BFH7","v":0},{"$f":"F_Inputs!BFI7","v":0},{"$f":"F_Inputs!BFJ7","v":0},{"$f":"F_Inputs!BFK7","v":0},{"$f":"F_Inputs!BFL7","v":0},{"$f":"F_Inputs!BFM7","v":0},{"$f":"F_Inputs!BFN7","v":0},{"$f":"F_Inputs!BFO7","v":0},{"$f":"F_Inputs!BFP7","v":0},{"$f":"F_Inputs!BFQ7","v":0},{"$f":"F_Inputs!BFR7","v":0},{"$f":"F_Inputs!BFS7","v":0},{"$f":"F_Inputs!BFT7","v":0},{"$f":"F_Inputs!BFU7","v":0},{"$f":"F_Inputs!BFV7","v":0},{"$f":"F_Inputs!BFW7","v":0},{"$f":"F_Inputs!BFX7","v":0},{"$f":"F_Inputs!BFY7","v":0},{"$f":"F_Inputs!BFZ7","v":0},{"$f":"F_Inputs!BGA7","v":0},{"$f":"F_Inputs!BGB7","v":0},{"$f":"F_Inputs!BGC7","v":0},{"$f":"F_Inputs!BGD7","v":0},{"$f":"F_Inputs!BGE7","v":0},{"$f":"F_Inputs!BGF7","v":0},{"$f":"F_Inputs!BGG7","v":0},{"$f":"F_Inputs!BGH7","v":0},{"$f":"F_Inputs!BGI7","v":0},{"$f":"F_Inputs!BGJ7","v":0},{"$f":"F_Inputs!BGK7","v":0},{"$f":"F_Inputs!BGL7","v":0},{"$f":"F_Inputs!BGM7","v":0},{"$f":"F_Inputs!BGN7","v":0},{"$f":"F_Inputs!BGO7","v":0},{"$f":"F_Inputs!BGP7","v":0},{"$f":"F_Inputs!BGQ7","v":0},{"$f":"F_Inputs!BGR7","v":0},{"$f":"F_Inputs!BGS7","v":0},{"$f":"F_Inputs!BGT7","v":0},{"$f":"F_Inputs!BGU7","v":0},{"$f":"F_Inputs!BGV7","v":0},{"$f":"F_Inputs!BGW7","v":0},{"$f":"F_Inputs!BGX7","v":0},{"$f":"F_Inputs!BGY7","v":0},{"$f":"F_Inputs!BGZ7","v":0},{"$f":"F_Inputs!BHA7","v":0},{"$f":"F_Inputs!BHB7","v":0},{"$f":"F_Inputs!BHC7","v":0},{"$f":"F_Inputs!BHD7","v":0},{"$f":"F_Inputs!BHE7","v":0},{"$f":"F_Inputs!BHF7","v":0},{"$f":"F_Inputs!BHG7","v":0},{"$f":"F_Inputs!BHH7","v":0},{"$f":"F_Inputs!BHI7","v":0},{"$f":"F_Inputs!BHJ7","v":0},{"$f":"F_Inputs!BHK7","v":0},{"$f":"F_Inputs!BHL7","v":0},{"$f":"F_Inputs!BHM7","v":0},{"$f":"F_Inputs!BHN7","v":0},{"$f":"F_Inputs!BHO7","v":0},{"$f":"F_Inputs!BHP7","v":0},{"$f":"F_Inputs!BHQ7","v":0},{"$f":"F_Inputs!BHR7","v":0},{"$f":"F_Inputs!BHS7","v":0},{"$f":"F_Inputs!BHT7","v":0},{"$f":"F_Inputs!BHU7","v":0},{"$f":"F_Inputs!BHV7","v":0},{"$f":"F_Inputs!BHW7","v":0},{"$f":"F_Inputs!BHX7","v":0},{"$f":"F_Inputs!BHY7","v":0},{"$f":"F_Inputs!BHZ7","v":0},{"$f":"F_Inputs!BIA7","v":0},{"$f":"F_Inputs!BIB7","v":0},{"$f":"F_Inputs!BIC7","v":0},{"$f":"F_Inputs!BID7","v":0},{"$f":"F_Inputs!BIE7","v":0},{"$f":"F_Inputs!BIF7","v":0},{"$f":"F_Inputs!BIG7","v":0},{"$f":"F_Inputs!BIH7","v":0},{"$f":"F_Inputs!BII7","v":0},{"$f":"F_Inputs!BIJ7","v":0},{"$f":"F_Inputs!BIK7","v":0},{"$f":"F_Inputs!BIL7","v":0},{"$f":"F_Inputs!BIM7","v":0},{"$f":"F_Inputs!BIN7","v":0},{"$f":"F_Inputs!BIO7","v":0},{"$f":"F_Inputs!BIP7","v":0},{"$f":"F_Inputs!BIQ7","v":0},{"$f":"F_Inputs!BIR7","v":0},{"$f":"F_Inputs!BIS7","v":0},{"$f":"F_Inputs!BIT7","v":0},{"$f":"F_Inputs!BIU7","v":0},{"$f":"F_Inputs!BIV7","v":0},{"$f":"F_Inputs!BIW7","v":0},{"$f":"F_Inputs!BIX7","v":0},{"$f":"F_Inputs!BIY7","v":0},{"$f":"F_Inputs!BIZ7","v":0},{"$f":"F_Inputs!BJA7","v":0},{"$f":"F_Inputs!BJB7","v":0},{"$f":"F_Inputs!BJC7","v":0},{"$f":"F_Inputs!BJD7","v":0},{"$f":"F_Inputs!BJE7","v":0},{"$f":"F_Inputs!BJF7","v":0},{"$f":"F_Inputs!BJG7","v":0},{"$f":"F_Inputs!BJH7","v":0},{"$f":"F_Inputs!BJI7","v":0},{"$f":"F_Inputs!BJJ7","v":0},{"$f":"F_Inputs!BJK7","v":0},{"$f":"F_Inputs!BJL7","v":0},{"$f":"F_Inputs!BJM7","v":0},{"$f":"F_Inputs!BJN7","v":0},{"$f":"F_Inputs!BJO7","v":0},{"$f":"F_Inputs!BJP7","v":0},{"$f":"F_Inputs!BJQ7","v":0},{"$f":"F_Inputs!BJR7","v":0},{"$f":"F_Inputs!BJS7","v":0},{"$f":"F_Inputs!BJT7","v":0},{"$f":"F_Inputs!BJU7","v":0},{"$f":"F_Inputs!BJV7","v":0},{"$f":"F_Inputs!BJW7","v":0},{"$f":"F_Inputs!BJX7","v":0},{"$f":"F_Inputs!BJY7","v":0},{"$f":"F_Inputs!BJZ7","v":0},{"$f":"F_Inputs!BKA7","v":0},{"$f":"F_Inputs!BKB7","v":0},{"$f":"F_Inputs!BKC7","v":0},{"$f":"F_Inputs!BKD7","v":0},{"$f":"F_Inputs!BKE7","v":0},{"$f":"F_Inputs!BKF7","v":0},{"$f":"F_Inputs!BKG7","v":0},{"$f":"F_Inputs!BKH7","v":0},{"$f":"F_Inputs!BKI7","v":0},{"$f":"F_Inputs!BKJ7","v":0},{"$f":"F_Inputs!BKK7","v":0},{"$f":"F_Inputs!BKL7","v":0},{"$f":"F_Inputs!BKM7","v":0},{"$f":"F_Inputs!BKN7","v":0},{"$f":"F_Inputs!BKO7","v":0},{"$f":"F_Inputs!BKP7","v":0},{"$f":"F_Inputs!BKQ7","v":0},{"$f":"F_Inputs!BKR7","v":0},{"$f":"F_Inputs!BKS7","v":0},{"$f":"F_Inputs!BKT7","v":0},{"$f":"F_Inputs!BKU7","v":0},{"$f":"F_Inputs!BKV7","v":0},{"$f":"F_Inputs!BKW7","v":0},{"$f":"F_Inputs!BKX7","v":0},{"$f":"F_Inputs!BKY7","v":0},{"$f":"F_Inputs!BKZ7","v":0},{"$f":"F_Inputs!BLA7","v":0},{"$f":"F_Inputs!BLB7","v":0},{"$f":"F_Inputs!BLC7","v":0},{"$f":"F_Inputs!BLD7","v":0},{"$f":"F_Inputs!BLE7","v":0},{"$f":"F_Inputs!BLF7","v":0},{"$f":"F_Inputs!BLG7","v":0},{"$f":"F_Inputs!BLH7","v":0},{"$f":"F_Inputs!BLI7","v":0},{"$f":"F_Inputs!BLJ7","v":0},{"$f":"F_Inputs!BLK7","v":0},{"$f":"F_Inputs!BLL7","v":0},{"$f":"F_Inputs!BLM7","v":0},{"$f":"F_Inputs!BLN7","v":0},{"$f":"F_Inputs!BLO7","v":0},{"$f":"F_Inputs!BLP7","v":0},{"$f":"F_Inputs!BLQ7","v":0},{"$f":"F_Inputs!BLR7","v":0},{"$f":"F_Inputs!BLS7","v":0},{"$f":"F_Inputs!BLT7","v":0},{"$f":"F_Inputs!BLU7","v":0},{"$f":"F_Inputs!BLV7","v":0},{"$f":"F_Inputs!BLW7","v":0},{"$f":"F_Inputs!BLX7","v":0},{"$f":"F_Inputs!BLY7","v":0},{"$f":"F_Inputs!BLZ7","v":0},{"$f":"F_Inputs!BMA7","v":0},{"$f":"F_Inputs!BMB7","v":0},{"$f":"F_Inputs!BMC7","v":0},{"$f":"F_Inputs!BMD7","v":0},{"$f":"F_Inputs!BME7","v":0},{"$f":"F_Inputs!BMF7","v":0},{"$f":"F_Inputs!BMG7","v":0},{"$f":"F_Inputs!BMH7","v":0},{"$f":"F_Inputs!BMI7","v":0},{"$f":"F_Inputs!BMJ7","v":0},{"$f":"F_Inputs!BMK7","v":0},{"$f":"F_Inputs!BML7","v":0},{"$f":"F_Inputs!BMM7","v":0},{"$f":"F_Inputs!BMN7","v":0},{"$f":"F_Inputs!BMO7","v":0},{"$f":"F_Inputs!BMP7","v":0},{"$f":"F_Inputs!BMQ7","v":0},{"$f":"F_Inputs!BMR7","v":0},{"$f":"F_Inputs!BMS7","v":0},{"$f":"F_Inputs!BMT7","v":0},{"$f":"F_Inputs!BMU7","v":0},{"$f":"F_Inputs!BMV7","v":0},{"$f":"F_Inputs!BMW7","v":0},{"$f":"F_Inputs!BMX7","v":0},{"$f":"F_Inputs!BMY7","v":0},{"$f":"F_Inputs!BMZ7","v":0},{"$f":"F_Inputs!BNA7","v":0},{"$f":"F_Inputs!BNB7","v":0},{"$f":"F_Inputs!BNC7","v":0},{"$f":"F_Inputs!BND7","v":0},{"$f":"F_Inputs!BNE7","v":0},{"$f":"F_Inputs!BNF7","v":0},{"$f":"F_Inputs!BNG7","v":0},{"$f":"F_Inputs!BNH7","v":0},{"$f":"F_Inputs!BNI7","v":0},{"$f":"F_Inputs!BNJ7","v":0},{"$f":"F_Inputs!BNK7","v":0},{"$f":"F_Inputs!BNL7","v":0},{"$f":"F_Inputs!BNM7","v":0},{"$f":"F_Inputs!BNN7","v":0},{"$f":"F_Inputs!BNO7","v":0},{"$f":"F_Inputs!BNP7","v":0},{"$f":"F_Inputs!BNQ7","v":0},{"$f":"F_Inputs!BNR7","v":0},{"$f":"F_Inputs!BNS7","v":0},{"$f":"F_Inputs!BNT7","v":0},{"$f":"F_Inputs!BNU7","v":0},{"$f":"F_Inputs!BNV7","v":0},{"$f":"F_Inputs!BNW7","v":0},{"$f":"F_Inputs!BNX7","v":0},{"$f":"F_Inputs!BNY7","v":0},{"$f":"F_Inputs!BNZ7","v":0},{"$f":"F_Inputs!BOA7","v":0},{"$f":"F_Inputs!BOB7","v":0},{"$f":"F_Inputs!BOC7","v":0},{"$f":"F_Inputs!BOD7","v":0},{"$f":"F_Inputs!BOE7","v":0},{"$f":"F_Inputs!BOF7","v":0},{"$f":"F_Inputs!BOG7","v":0},{"$f":"F_Inputs!BOH7","v":0},{"$f":"F_Inputs!BOI7","v":0},{"$f":"F_Inputs!BOJ7","v":0},{"$f":"F_Inputs!BOK7","v":0},{"$f":"F_Inputs!BOL7","v":0},{"$f":"F_Inputs!BOM7","v":0},{"$f":"F_Inputs!BON7","v":0},{"$f":"F_Inputs!BOO7","v":0},{"$f":"F_Inputs!BOP7","v":0},{"$f":"F_Inputs!BOQ7","v":0},{"$f":"F_Inputs!BOR7","v":0},{"$f":"F_Inputs!BOS7","v":0},{"$f":"F_Inputs!BOT7","v":0},{"$f":"F_Inputs!BOU7","v":0},{"$f":"F_Inputs!BOV7","v":0},{"$f":"F_Inputs!BOW7","v":0},{"$f":"F_Inputs!BOX7","v":0},{"$f":"F_Inputs!BOY7","v":0},{"$f":"F_Inputs!BOZ7","v":0},{"$f":"F_Inputs!BPA7","v":0},{"$f":"F_Inputs!BPB7","v":0},{"$f":"F_Inputs!BPC7","v":0},{"$f":"F_Inputs!BPD7","v":0},{"$f":"F_Inputs!BPE7","v":0},{"$f":"F_Inputs!BPF7","v":0},{"$f":"F_Inputs!BPG7","v":0},{"$f":"F_Inputs!BPH7","v":0},{"$f":"F_Inputs!BPI7","v":0},{"$f":"F_Inputs!BPJ7","v":0},{"$f":"F_Inputs!BPK7","v":0},{"$f":"F_Inputs!BPL7","v":0},{"$f":"F_Inputs!BPM7","v":0},{"$f":"F_Inputs!BPN7","v":0},{"$f":"F_Inputs!BPO7","v":0},{"$f":"F_Inputs!BPP7","v":0},{"$f":"F_Inputs!BPQ7","v":0},{"$f":"F_Inputs!BPR7","v":0},{"$f":"F_Inputs!BPS7","v":0},{"$f":"F_Inputs!BPT7","v":0},{"$f":"F_Inputs!BPU7","v":0},{"$f":"F_Inputs!BPV7","v":0},{"$f":"F_Inputs!BPW7","v":0},{"$f":"F_Inputs!BPX7","v":0},{"$f":"F_Inputs!BPY7","v":0},{"$f":"F_Inputs!BPZ7","v":0},{"$f":"F_Inputs!BQA7","v":0},{"$f":"F_Inputs!BQB7","v":0},{"$f":"F_Inputs!BQC7","v":0},{"$f":"F_Inputs!BQD7","v":0},{"$f":"F_Inputs!BQE7","v":0},{"$f":"F_Inputs!BQF7","v":0},{"$f":"F_Inputs!BQG7","v":0},{"$f":"F_Inputs!BQH7","v":0},{"$f":"F_Inputs!BQI7","v":0},{"$f":"F_Inputs!BQJ7","v":0},{"$f":"F_Inputs!BQK7","v":0},{"$f":"F_Inputs!BQL7","v":0},{"$f":"F_Inputs!BQM7","v":0},{"$f":"F_Inputs!BQN7","v":0},{"$f":"F_Inputs!BQO7","v":0},{"$f":"F_Inputs!BQP7","v":0},{"$f":"F_Inputs!BQQ7","v":0},{"$f":"F_Inputs!BQR7","v":0},{"$f":"F_Inputs!BQS7","v":0},{"$f":"F_Inputs!BQT7","v":0},{"$f":"F_Inputs!BQU7","v":0},{"$f":"F_Inputs!BQV7","v":0},{"$f":"F_Inputs!BQW7","v":0},{"$f":"F_Inputs!BQX7","v":0},{"$f":"F_Inputs!BQY7","v":0},{"$f":"F_Inputs!BQZ7","v":0},{"$f":"F_Inputs!BRA7","v":0},{"$f":"F_Inputs!BRB7","v":0},{"$f":"F_Inputs!BRC7","v":0},{"$f":"F_Inputs!BRD7","v":0},{"$f":"F_Inputs!BRE7","v":0},{"$f":"F_Inputs!BRF7","v":0},{"$f":"F_Inputs!BRG7","v":0},{"$f":"F_Inputs!BRH7","v":0},{"$f":"F_Inputs!BRI7","v":0},{"$f":"F_Inputs!BRJ7","v":0},{"$f":"F_Inputs!BRK7","v":0},{"$f":"F_Inputs!BRL7","v":0},{"$f":"F_Inputs!BRM7","v":0},{"$f":"F_Inputs!BRN7","v":0},{"$f":"F_Inputs!BRO7","v":0},{"$f":"F_Inputs!BRP7","v":0},{"$f":"F_Inputs!BRQ7","v":0},{"$f":"F_Inputs!BRR7","v":0},{"$f":"F_Inputs!BRS7","v":0},{"$f":"F_Inputs!BRT7","v":0},{"$f":"F_Inputs!BRU7","v":0},{"$f":"F_Inputs!BRV7","v":0},{"$f":"F_Inputs!BRW7","v":0},{"$f":"F_Inputs!BRX7","v":0},{"$f":"F_Inputs!BRY7","v":0},{"$f":"F_Inputs!BRZ7","v":0},{"$f":"F_Inputs!BSA7","v":0},{"$f":"F_Inputs!BSB7","v":0},{"$f":"F_Inputs!BSC7","v":0},{"$f":"F_Inputs!BSD7","v":0},{"$f":"F_Inputs!BSE7","v":0},{"$f":"F_Inputs!BSF7","v":0},{"$f":"F_Inputs!BSG7","v":0},{"$f":"F_Inputs!BSH7","v":0},{"$f":"F_Inputs!BSI7","v":0},{"$f":"F_Inputs!BSJ7","v":0},{"$f":"F_Inputs!BSK7","v":0},{"$f":"F_Inputs!BSL7","v":0},{"$f":"F_Inputs!BSM7","v":0},{"$f":"F_Inputs!BSN7","v":0},{"$f":"F_Inputs!BSO7","v":0},{"$f":"F_Inputs!BSP7","v":0},{"$f":"F_Inputs!BSQ7","v":0},{"$f":"F_Inputs!BSR7","v":0},{"$f":"F_Inputs!BSS7","v":0},{"$f":"F_Inputs!BST7","v":0},{"$f":"F_Inputs!BSU7","v":0},{"$f":"F_Inputs!BSV7","v":0},{"$f":"F_Inputs!BSW7","v":0},{"$f":"F_Inputs!BSX7","v":0},{"$f":"F_Inputs!BSY7","v":0},{"$f":"F_Inputs!BSZ7","v":0},{"$f":"F_Inputs!BTA7","v":0},{"$f":"F_Inputs!BTB7","v":0},{"$f":"F_Inputs!BTC7","v":0},{"$f":"F_Inputs!BTD7","v":0},{"$f":"F_Inputs!BTE7","v":0},{"$f":"F_Inputs!BTF7","v":0},{"$f":"F_Inputs!BTG7","v":0},{"$f":"F_Inputs!BTH7","v":0},{"$f":"F_Inputs!BTI7","v":0},{"$f":"F_Inputs!BTJ7","v":0},{"$f":"F_Inputs!BTK7","v":0},{"$f":"F_Inputs!BTL7","v":0},{"$f":"F_Inputs!BTM7","v":0},{"$f":"F_Inputs!BTN7","v":0},{"$f":"F_Inputs!BTO7","v":0},{"$f":"F_Inputs!BTP7","v":0},{"$f":"F_Inputs!BTQ7","v":0},{"$f":"F_Inputs!BTR7","v":0},{"$f":"F_Inputs!BTS7","v":0},{"$f":"F_Inputs!BTT7","v":0},{"$f":"F_Inputs!BTU7","v":0},{"$f":"F_Inputs!BTV7","v":0},{"$f":"F_Inputs!BTW7","v":0},{"$f":"F_Inputs!BTX7","v":0},{"$f":"F_Inputs!BTY7","v":0},{"$f":"F_Inputs!BTZ7","v":0},{"$f":"F_Inputs!BUA7","v":0},{"$f":"F_Inputs!BUB7","v":0},{"$f":"F_Inputs!BUC7","v":0},{"$f":"F_Inputs!BUD7","v":0},{"$f":"F_Inputs!BUE7","v":0},{"$f":"F_Inputs!BUF7","v":0},{"$f":"F_Inputs!BUG7","v":0},{"$f":"F_Inputs!BUH7","v":0},{"$f":"F_Inputs!BUI7","v":0},{"$f":"F_Inputs!BUJ7","v":0},{"$f":"F_Inputs!BUK7","v":0},{"$f":"F_Inputs!BUL7","v":0},{"$f":"F_Inputs!BUM7","v":0},{"$f":"F_Inputs!BUN7","v":0},{"$f":"F_Inputs!BUO7","v":0},{"$f":"F_Inputs!BUP7","v":0},{"$f":"F_Inputs!BUQ7","v":0},{"$f":"F_Inputs!BUR7","v":0},{"$f":"F_Inputs!BUS7","v":0},{"$f":"F_Inputs!BUT7","v":0},{"$f":"F_Inputs!BUU7","v":0},{"$f":"F_Inputs!BUV7","v":0},{"$f":"F_Inputs!BUW7","v":0},{"$f":"F_Inputs!BUX7","v":0},{"$f":"F_Inputs!BUY7","v":0},{"$f":"F_Inputs!BUZ7","v":0},{"$f":"F_Inputs!BVA7","v":0},{"$f":"F_Inputs!BVB7","v":0},{"$f":"F_Inputs!BVC7","v":0},{"$f":"F_Inputs!BVD7","v":0},{"$f":"F_Inputs!BVE7","v":0},{"$f":"F_Inputs!BVF7","v":0},{"$f":"F_Inputs!BVG7","v":0},{"$f":"F_Inputs!BVH7","v":0},{"$f":"F_Inputs!BVI7","v":0},{"$f":"F_Inputs!BVJ7","v":0},{"$f":"F_Inputs!BVK7","v":0},{"$f":"F_Inputs!BVL7","v":0},{"$f":"F_Inputs!BVM7","v":0},{"$f":"F_Inputs!BVN7","v":0},{"$f":"F_Inputs!BVO7","v":0},{"$f":"F_Inputs!BVP7","v":0},{"$f":"F_Inputs!BVQ7","v":0},{"$f":"F_Inputs!BVR7","v":0},{"$f":"F_Inputs!BVS7","v":0},{"$f":"F_Inputs!BVT7","v":0},{"$f":"F_Inputs!BVU7","v":0},{"$f":"F_Inputs!BVV7","v":0},{"$f":"F_Inputs!BVW7","v":0},{"$f":"F_Inputs!BVX7","v":0},{"$f":"F_Inputs!BVY7","v":0},{"$f":"F_Inputs!BVZ7","v":0},{"$f":"F_Inputs!BWA7","v":0},{"$f":"F_Inputs!BWB7","v":0},{"$f":"F_Inputs!BWC7","v":0},{"$f":"F_Inputs!BWD7","v":0},{"$f":"F_Inputs!BWE7","v":0},{"$f":"F_Inputs!BWF7","v":0},{"$f":"F_Inputs!BWG7","v":0},{"$f":"F_Inputs!BWH7","v":0},{"$f":"F_Inputs!BWI7","v":0},{"$f":"F_Inputs!BWJ7","v":0},{"$f":"F_Inputs!BWK7","v":0},{"$f":"F_Inputs!BWL7","v":0},{"$f":"F_Inputs!BWM7","v":0},{"$f":"F_Inputs!BWN7","v":0},{"$f":"F_Inputs!BWO7","v":0},{"$f":"F_Inputs!BWP7","v":0},{"$f":"F_Inputs!BWQ7","v":0},{"$f":"F_Inputs!BWR7","v":0},{"$f":"F_Inputs!BWS7","v":0},{"$f":"F_Inputs!BWT7","v":0},{"$f":"F_Inputs!BWU7","v":0},{"$f":"F_Inputs!BWV7","v":0},{"$f":"F_Inputs!BWW7","v":0},{"$f":"F_Inputs!BWX7","v":0},{"$f":"F_Inputs!BWY7","v":0},{"$f":"F_Inputs!BWZ7","v":0},{"$f":"F_Inputs!BXA7","v":0},{"$f":"F_Inputs!BXB7","v":0},{"$f":"F_Inputs!BXC7","v":0},{"$f":"F_Inputs!BXD7","v":0},{"$f":"F_Inputs!BXE7","v":0},{"$f":"F_Inputs!BXF7","v":0},{"$f":"F_Inputs!BXG7","v":0},{"$f":"F_Inputs!BXH7","v":0},{"$f":"F_Inputs!BXI7","v":0},{"$f":"F_Inputs!BXJ7","v":0},{"$f":"F_Inputs!BXK7","v":0},{"$f":"F_Inputs!BXL7","v":0},{"$f":"F_Inputs!BXM7","v":0},{"$f":"F_Inputs!BXN7","v":0},{"$f":"F_Inputs!BXO7","v":0},{"$f":"F_Inputs!BXP7","v":0},{"$f":"F_Inputs!BXQ7","v":0},{"$f":"F_Inputs!BXR7","v":0},{"$f":"F_Inputs!BXS7","v":0},{"$f":"F_Inputs!BXT7","v":0},{"$f":"F_Inputs!BXU7","v":0},{"$f":"F_Inputs!BXV7","v":0},{"$f":"F_Inputs!BXW7","v":0},{"$f":"F_Inputs!BXX7","v":0},{"$f":"F_Inputs!BXY7","v":0},{"$f":"F_Inputs!BXZ7","v":0},{"$f":"F_Inputs!BYA7","v":0},{"$f":"F_Inputs!BYB7","v":0},{"$f":"F_Inputs!BYC7","v":0},{"$f":"F_Inputs!BYD7","v":0},{"$f":"F_Inputs!BYE7","v":0},{"$f":"F_Inputs!BYF7","v":0},{"$f":"F_Inputs!BYG7","v":0},{"$f":"F_Inputs!BYH7","v":0},{"$f":"F_Inputs!BYI7","v":0},{"$f":"F_Inputs!BYJ7","v":0},{"$f":"F_Inputs!BYK7","v":0},{"$f":"F_Inputs!BYL7","v":0},{"$f":"F_Inputs!BYM7","v":0},{"$f":"F_Inputs!BYN7","v":0},{"$f":"F_Inputs!BYO7","v":0},{"$f":"F_Inputs!BYP7","v":0},{"$f":"F_Inputs!BYQ7","v":0},{"$f":"F_Inputs!BYR7","v":0},{"$f":"F_Inputs!BYS7","v":0},{"$f":"F_Inputs!BYT7","v":0},{"$f":"F_Inputs!BYU7","v":0},{"$f":"F_Inputs!BYV7","v":0},{"$f":"F_Inputs!BYW7","v":0},{"$f":"F_Inputs!BYX7","v":0},{"$f":"F_Inputs!BYY7","v":0},{"$f":"F_Inputs!BYZ7","v":0},{"$f":"F_Inputs!BZA7","v":0},{"$f":"F_Inputs!BZB7","v":0},{"$f":"F_Inputs!BZC7","v":0},{"$f":"F_Inputs!BZD7","v":0},{"$f":"F_Inputs!BZE7","v":0},{"$f":"F_Inputs!BZF7","v":0},{"$f":"F_Inputs!BZG7","v":0},{"$f":"F_Inputs!BZH7","v":0},{"$f":"F_Inputs!BZI7","v":0},{"$f":"F_Inputs!BZJ7","v":0},{"$f":"F_Inputs!BZK7","v":0},{"$f":"F_Inputs!BZL7","v":0},{"$f":"F_Inputs!BZM7","v":0},{"$f":"F_Inputs!BZN7","v":0},{"$f":"F_Inputs!BZO7","v":0},{"$f":"F_Inputs!BZP7","v":0},{"$f":"F_Inputs!BZQ7","v":0},{"$f":"F_Inputs!BZR7","v":0},{"$f":"F_Inputs!BZS7","v":0},{"$f":"F_Inputs!BZT7","v":0},{"$f":"F_Inputs!BZU7","v":0},{"$f":"F_Inputs!BZV7","v":0},{"$f":"F_Inputs!BZW7","v":0},{"$f":"F_Inputs!BZX7","v":0},{"$f":"F_Inputs!BZY7","v":0},{"$f":"F_Inputs!BZZ7","v":0},{"$f":"F_Inputs!CAA7","v":0},{"$f":"F_Inputs!CAB7","v":0},{"$f":"F_Inputs!CAC7","v":0},{"$f":"F_Inputs!CAD7","v":0},{"$f":"F_Inputs!CAE7","v":0},{"$f":"F_Inputs!CAF7","v":0},{"$f":"F_Inputs!CAG7","v":0},{"$f":"F_Inputs!CAH7","v":0},{"$f":"F_Inputs!CAI7","v":0},{"$f":"F_Inputs!CAJ7","v":0},{"$f":"F_Inputs!CAK7","v":0},{"$f":"F_Inputs!CAL7","v":0},{"$f":"F_Inputs!CAM7","v":0},{"$f":"F_Inputs!CAN7","v":0},{"$f":"F_Inputs!CAO7","v":0},{"$f":"F_Inputs!CAP7","v":0},{"$f":"F_Inputs!CAQ7","v":0},{"$f":"F_Inputs!CAR7","v":0},{"$f":"F_Inputs!CAS7","v":0},{"$f":"F_Inputs!CAT7","v":0},{"$f":"F_Inputs!CAU7","v":0},{"$f":"F_Inputs!CAV7","v":0},{"$f":"F_Inputs!CAW7","v":0},{"$f":"F_Inputs!CAX7","v":0},{"$f":"F_Inputs!CAY7","v":0},{"$f":"F_Inputs!CAZ7","v":0},{"$f":"F_Inputs!CBA7","v":0},{"$f":"F_Inputs!CBB7","v":0},{"$f":"F_Inputs!CBC7","v":0},{"$f":"F_Inputs!CBD7","v":0},{"$f":"F_Inputs!CBE7","v":0},{"$f":"F_Inputs!CBF7","v":0},{"$f":"F_Inputs!CBG7","v":0},{"$f":"F_Inputs!CBH7","v":0},{"$f":"F_Inputs!CBI7","v":0},{"$f":"F_Inputs!CBJ7","v":0},{"$f":"F_Inputs!CBK7","v":0},{"$f":"F_Inputs!CBL7","v":0},{"$f":"F_Inputs!CBM7","v":0},{"$f":"F_Inputs!CBN7","v":0},{"$f":"F_Inputs!CBO7","v":0},{"$f":"F_Inputs!CBP7","v":0},{"$f":"F_Inputs!CBQ7","v":0},{"$f":"F_Inputs!CBR7","v":0},{"$f":"F_Inputs!CBS7","v":0},{"$f":"F_Inputs!CBT7","v":0},{"$f":"F_Inputs!CBU7","v":0},{"$f":"F_Inputs!CBV7","v":0},{"$f":"F_Inputs!CBW7","v":0},{"$f":"F_Inputs!CBX7","v":0},{"$f":"F_Inputs!CBY7","v":0},{"$f":"F_Inputs!CBZ7","v":0},{"$f":"F_Inputs!CCA7","v":0},{"$f":"F_Inputs!CCB7","v":0},{"$f":"F_Inputs!CCC7","v":0},{"$f":"F_Inputs!CCD7","v":0},{"$f":"F_Inputs!CCE7","v":0},{"$f":"F_Inputs!CCF7","v":0},{"$f":"F_Inputs!CCG7","v":0},{"$f":"F_Inputs!CCH7","v":0},{"$f":"F_Inputs!CCI7","v":0},{"$f":"F_Inputs!CCJ7","v":0},{"$f":"F_Inputs!CCK7","v":0},{"$f":"F_Inputs!CCL7","v":0},{"$f":"F_Inputs!CCM7","v":0},{"$f":"F_Inputs!CCN7","v":0},{"$f":"F_Inputs!CCO7","v":0},{"$f":"F_Inputs!CCP7","v":0},{"$f":"F_Inputs!CCQ7","v":0},{"$f":"F_Inputs!CCR7","v":0},{"$f":"F_Inputs!CCS7","v":0},{"$f":"F_Inputs!CCT7","v":0},{"$f":"F_Inputs!CCU7","v":0},{"$f":"F_Inputs!CCV7","v":0},{"$f":"F_Inputs!CCW7","v":0},{"$f":"F_Inputs!CCX7","v":0},{"$f":"F_Inputs!CCY7","v":0},{"$f":"F_Inputs!CCZ7","v":0},{"$f":"F_Inputs!CDA7","v":0},{"$f":"F_Inputs!CDB7","v":0},{"$f":"F_Inputs!CDC7","v":0},{"$f":"F_Inputs!CDD7","v":0},{"$f":"F_Inputs!CDE7","v":0},{"$f":"F_Inputs!CDF7","v":0},{"$f":"F_Inputs!CDG7","v":0},{"$f":"F_Inputs!CDH7","v":0},{"$f":"F_Inputs!CDI7","v":0},{"$f":"F_Inputs!CDJ7","v":0},{"$f":"F_Inputs!CDK7","v":0},{"$f":"F_Inputs!CDL7","v":0},{"$f":"F_Inputs!CDM7","v":0},{"$f":"F_Inputs!CDN7","v":0},{"$f":"F_Inputs!CDO7","v":0},{"$f":"F_Inputs!CDP7","v":0},{"$f":"F_Inputs!CDQ7","v":0},{"$f":"F_Inputs!CDR7","v":0},{"$f":"F_Inputs!CDS7","v":0},{"$f":"F_Inputs!CDT7","v":0},{"$f":"F_Inputs!CDU7","v":0},{"$f":"F_Inputs!CDV7","v":0},{"$f":"F_Inputs!CDW7","v":0},{"$f":"F_Inputs!CDX7","v":0},{"$f":"F_Inputs!CDY7","v":0},{"$f":"F_Inputs!CDZ7","v":0},{"$f":"F_Inputs!CEA7","v":0},{"$f":"F_Inputs!CEB7","v":0},{"$f":"F_Inputs!CEC7","v":0},{"$f":"F_Inputs!CED7","v":0},{"$f":"F_Inputs!CEE7","v":0},{"$f":"F_Inputs!CEF7","v":0},{"$f":"F_Inputs!CEG7","v":0},{"$f":"F_Inputs!CEH7","v":0},{"$f":"F_Inputs!CEI7","v":0},{"$f":"F_Inputs!CEJ7","v":0},{"$f":"F_Inputs!CEK7","v":0},{"$f":"F_Inputs!CEL7","v":0},{"$f":"F_Inputs!CEM7","v":0},{"$f":"F_Inputs!CEN7","v":0},{"$f":"F_Inputs!CEO7","v":0},{"$f":"F_Inputs!CEP7","v":0},{"$f":"F_Inputs!CEQ7","v":0},{"$f":"F_Inputs!CER7","v":0},{"$f":"F_Inputs!CES7","v":0},{"$f":"F_Inputs!CET7","v":0},{"$f":"F_Inputs!CEU7","v":0},{"$f":"F_Inputs!CEV7","v":0},{"$f":"F_Inputs!CEW7","v":0},{"$f":"F_Inputs!CEX7","v":0},{"$f":"F_Inputs!CEY7","v":0},{"$f":"F_Inputs!CEZ7","v":0},{"$f":"F_Inputs!CFA7","v":0},{"$f":"F_Inputs!CFB7","v":0},{"$f":"F_Inputs!CFC7","v":0},{"$f":"F_Inputs!CFD7","v":0},{"$f":"F_Inputs!CFE7","v":0},{"$f":"F_Inputs!CFF7","v":0},{"$f":"F_Inputs!CFG7","v":0},{"$f":"F_Inputs!CFH7","v":0},{"$f":"F_Inputs!CFI7","v":0},{"$f":"F_Inputs!CFJ7","v":0},{"$f":"F_Inputs!CFK7","v":0},{"$f":"F_Inputs!CFL7","v":0},{"$f":"F_Inputs!CFM7","v":0},{"$f":"F_Inputs!CFN7","v":0},{"$f":"F_Inputs!CFO7","v":0},{"$f":"F_Inputs!CFP7","v":0},{"$f":"F_Inputs!CFQ7","v":0},{"$f":"F_Inputs!CFR7","v":0},{"$f":"F_Inputs!CFS7","v":0},{"$f":"F_Inputs!CFT7","v":0},{"$f":"F_Inputs!CFU7","v":0},{"$f":"F_Inputs!CFV7","v":0},{"$f":"F_Inputs!CFW7","v":0},{"$f":"F_Inputs!CFX7","v":0},{"$f":"F_Inputs!CFY7","v":0},{"$f":"F_Inputs!CFZ7","v":0},{"$f":"F_Inputs!CGA7","v":0},{"$f":"F_Inputs!CGB7","v":0},{"$f":"F_Inputs!CGC7","v":0},{"$f":"F_Inputs!CGD7","v":0},{"$f":"F_Inputs!CGE7","v":0},{"$f":"F_Inputs!CGF7","v":0},{"$f":"F_Inputs!CGG7","v":0},{"$f":"F_Inputs!CGH7","v":0},{"$f":"F_Inputs!CGI7","v":0},{"$f":"F_Inputs!CGJ7","v":0},{"$f":"F_Inputs!CGK7","v":0},{"$f":"F_Inputs!CGL7","v":0},{"$f":"F_Inputs!CGM7","v":0},{"$f":"F_Inputs!CGN7","v":0},{"$f":"F_Inputs!CGO7","v":0},{"$f":"F_Inputs!CGP7","v":0},{"$f":"F_Inputs!CGQ7","v":0},{"$f":"F_Inputs!CGR7","v":0},{"$f":"F_Inputs!CGS7","v":0},{"$f":"F_Inputs!CGT7","v":0},{"$f":"F_Inputs!CGU7","v":0},{"$f":"F_Inputs!CGV7","v":0},{"$f":"F_Inputs!CGW7","v":0},{"$f":"F_Inputs!CGX7","v":0},{"$f":"F_Inputs!CGY7","v":0},{"$f":"F_Inputs!CGZ7","v":0},{"$f":"F_Inputs!CHA7","v":0},{"$f":"F_Inputs!CHB7","v":0},{"$f":"F_Inputs!CHC7","v":0},{"$f":"F_Inputs!CHD7","v":0},{"$f":"F_Inputs!CHE7","v":0},{"$f":"F_Inputs!CHF7","v":0},{"$f":"F_Inputs!CHG7","v":0},{"$f":"F_Inputs!CHH7","v":0},{"$f":"F_Inputs!CHI7","v":0},{"$f":"F_Inputs!CHJ7","v":0},{"$f":"F_Inputs!CHK7","v":0},{"$f":"F_Inputs!CHL7","v":0},{"$f":"F_Inputs!CHM7","v":0},{"$f":"F_Inputs!CHN7","v":0},{"$f":"F_Inputs!CHO7","v":0},{"$f":"F_Inputs!CHP7","v":0},{"$f":"F_Inputs!CHQ7","v":0},{"$f":"F_Inputs!CHR7","v":0},{"$f":"F_Inputs!CHS7","v":0},{"$f":"F_Inputs!CHT7","v":0},{"$f":"F_Inputs!CHU7","v":0},{"$f":"F_Inputs!CHV7","v":0},{"$f":"F_Inputs!CHW7","v":0},{"$f":"F_Inputs!CHX7","v":0},{"$f":"F_Inputs!CHY7","v":0},{"$f":"F_Inputs!CHZ7","v":0},{"$f":"F_Inputs!CIA7","v":0},{"$f":"F_Inputs!CIB7","v":0},{"$f":"F_Inputs!CIC7","v":0},{"$f":"F_Inputs!CID7","v":0},{"$f":"F_Inputs!CIE7","v":0},{"$f":"F_Inputs!CIF7","v":0},{"$f":"F_Inputs!CIG7","v":0},{"$f":"F_Inputs!CIH7","v":0},{"$f":"F_Inputs!CII7","v":0},{"$f":"F_Inputs!CIJ7","v":0},{"$f":"F_Inputs!CIK7","v":0},{"$f":"F_Inputs!CIL7","v":0},{"$f":"F_Inputs!CIM7","v":0},{"$f":"F_Inputs!CIN7","v":0},{"$f":"F_Inputs!CIO7","v":0},{"$f":"F_Inputs!CIP7","v":0},{"$f":"F_Inputs!CIQ7","v":0},{"$f":"F_Inputs!CIR7","v":0},{"$f":"F_Inputs!CIS7","v":0},{"$f":"F_Inputs!CIT7","v":0},{"$f":"F_Inputs!CIU7","v":0},{"$f":"F_Inputs!CIV7","v":0},{"$f":"F_Inputs!CIW7","v":0},{"$f":"F_Inputs!CIX7","v":0},{"$f":"F_Inputs!CIY7","v":0},{"$f":"F_Inputs!CIZ7","v":0},{"$f":"F_Inputs!CJA7","v":0},{"$f":"F_Inputs!CJB7","v":0},{"$f":"F_Inputs!CJC7","v":0},{"$f":"F_Inputs!CJD7","v":0},{"$f":"F_Inputs!CJE7","v":0},{"$f":"F_Inputs!CJF7","v":0},{"$f":"F_Inputs!CJG7","v":0},{"$f":"F_Inputs!CJH7","v":0},{"$f":"F_Inputs!CJI7","v":0},{"$f":"F_Inputs!CJJ7","v":0},{"$f":"F_Inputs!CJK7","v":0},{"$f":"F_Inputs!CJL7","v":0},{"$f":"F_Inputs!CJM7","v":0},{"$f":"F_Inputs!CJN7","v":0},{"$f":"F_Inputs!CJO7","v":0},{"$f":"F_Inputs!CJP7","v":0},{"$f":"F_Inputs!CJQ7","v":0},{"$f":"F_Inputs!CJR7","v":0},{"$f":"F_Inputs!CJS7","v":0},{"$f":"F_Inputs!CJT7","v":0},{"$f":"F_Inputs!CJU7","v":0},{"$f":"F_Inputs!CJV7","v":0},{"$f":"F_Inputs!CJW7","v":0},{"$f":"F_Inputs!CJX7","v":0},{"$f":"F_Inputs!CJY7","v":0},{"$f":"F_Inputs!CJZ7","v":0},{"$f":"F_Inputs!CKA7","v":0},{"$f":"F_Inputs!CKB7","v":0},{"$f":"F_Inputs!CKC7","v":0},{"$f":"F_Inputs!CKD7","v":0},{"$f":"F_Inputs!CKE7","v":0},{"$f":"F_Inputs!CKF7","v":0},{"$f":"F_Inputs!CKG7","v":0},{"$f":"F_Inputs!CKH7","v":0},{"$f":"F_Inputs!CKI7","v":0},{"$f":"F_Inputs!CKJ7","v":0},{"$f":"F_Inputs!CKK7","v":0},{"$f":"F_Inputs!CKL7","v":0},{"$f":"F_Inputs!CKM7","v":0},{"$f":"F_Inputs!CKN7","v":0},{"$f":"F_Inputs!CKO7","v":0},{"$f":"F_Inputs!CKP7","v":0},{"$f":"F_Inputs!CKQ7","v":0},{"$f":"F_Inputs!CKR7","v":0},{"$f":"F_Inputs!CKS7","v":0},{"$f":"F_Inputs!CKT7","v":0},{"$f":"F_Inputs!CKU7","v":0},{"$f":"F_Inputs!CKV7","v":0},{"$f":"F_Inputs!CKW7","v":0},{"$f":"F_Inputs!CKX7","v":0},{"$f":"F_Inputs!CKY7","v":0},{"$f":"F_Inputs!CKZ7","v":0},{"$f":"F_Inputs!CLA7","v":0},{"$f":"F_Inputs!CLB7","v":0},{"$f":"F_Inputs!CLC7","v":0},{"$f":"F_Inputs!CLD7","v":0},{"$f":"F_Inputs!CLE7","v":0},{"$f":"F_Inputs!CLF7","v":0},{"$f":"F_Inputs!CLG7","v":0},{"$f":"F_Inputs!CLH7","v":0},{"$f":"F_Inputs!CLI7","v":0},{"$f":"F_Inputs!CLJ7","v":0},{"$f":"F_Inputs!CLK7","v":0},{"$f":"F_Inputs!CLL7","v":0},{"$f":"F_Inputs!CLM7","v":0},{"$f":"F_Inputs!CLN7","v":0},{"$f":"F_Inputs!CLO7","v":0},{"$f":"F_Inputs!CLP7","v":0},{"$f":"F_Inputs!CLQ7","v":0},{"$f":"F_Inputs!CLR7","v":0},{"$f":"F_Inputs!CLS7","v":0},{"$f":"F_Inputs!CLT7","v":0},{"$f":"F_Inputs!CLU7","v":0},{"$f":"F_Inputs!CLV7","v":0},{"$f":"F_Inputs!CLW7","v":0},{"$f":"F_Inputs!CLX7","v":0},{"$f":"F_Inputs!CLY7","v":0},{"$f":"F_Inputs!CLZ7","v":0},{"$f":"F_Inputs!CMA7","v":0},{"$f":"F_Inputs!CMB7","v":0},{"$f":"F_Inputs!CMC7","v":0},{"$f":"F_Inputs!CMD7","v":0},{"$f":"F_Inputs!CME7","v":0},{"$f":"F_Inputs!CMF7","v":0},{"$f":"F_Inputs!CMG7","v":0},{"$f":"F_Inputs!CMH7","v":0},{"$f":"F_Inputs!CMI7","v":0},{"$f":"F_Inputs!CMJ7","v":0},{"$f":"F_Inputs!CMK7","v":0},{"$f":"F_Inputs!CML7","v":0},{"$f":"F_Inputs!CMM7","v":0},{"$f":"F_Inputs!CMN7","v":0},{"$f":"F_Inputs!CMO7","v":0},{"$f":"F_Inputs!CMP7","v":0},{"$f":"F_Inputs!CMQ7","v":0},{"$f":"F_Inputs!CMR7","v":0},{"$f":"F_Inputs!CMS7","v":0},{"$f":"F_Inputs!CMT7","v":0},{"$f":"F_Inputs!CMU7","v":0},{"$f":"F_Inputs!CMV7","v":0},{"$f":"F_Inputs!CMW7","v":0},{"$f":"F_Inputs!CMX7","v":0},{"$f":"F_Inputs!CMY7","v":0},{"$f":"F_Inputs!CMZ7","v":0},{"$f":"F_Inputs!CNA7","v":0},{"$f":"F_Inputs!CNB7","v":0},{"$f":"F_Inputs!CNC7","v":0},{"$f":"F_Inputs!CND7","v":0},{"$f":"F_Inputs!CNE7","v":0},{"$f":"F_Inputs!CNF7","v":0},{"$f":"F_Inputs!CNG7","v":0},{"$f":"F_Inputs!CNH7","v":0},{"$f":"F_Inputs!CNI7","v":0},{"$f":"F_Inputs!CNJ7","v":0},{"$f":"F_Inputs!CNK7","v":0},{"$f":"F_Inputs!CNL7","v":0},{"$f":"F_Inputs!CNM7","v":0},{"$f":"F_Inputs!CNN7","v":0},{"$f":"F_Inputs!CNO7","v":0},{"$f":"F_Inputs!CNP7","v":0},{"$f":"F_Inputs!CNQ7","v":0},{"$f":"F_Inputs!CNR7","v":0},{"$f":"F_Inputs!CNS7","v":0},{"$f":"F_Inputs!CNT7","v":0},{"$f":"F_Inputs!CNU7","v":0},{"$f":"F_Inputs!CNV7","v":0},{"$f":"F_Inputs!CNW7","v":0},{"$f":"F_Inputs!CNX7","v":0},{"$f":"F_Inputs!CNY7","v":0},{"$f":"F_Inputs!CNZ7","v":0},{"$f":"F_Inputs!COA7","v":0},{"$f":"F_Inputs!COB7","v":0},{"$f":"F_Inputs!COC7","v":0},{"$f":"F_Inputs!COD7","v":0},{"$f":"F_Inputs!COE7","v":0},{"$f":"F_Inputs!COF7","v":0},{"$f":"F_Inputs!COG7","v":0},{"$f":"F_Inputs!COH7","v":0},{"$f":"F_Inputs!COI7","v":0},{"$f":"F_Inputs!COJ7","v":0},{"$f":"F_Inputs!COK7","v":0},{"$f":"F_Inputs!COL7","v":0},{"$f":"F_Inputs!COM7","v":0},{"$f":"F_Inputs!CON7","v":0},{"$f":"F_Inputs!COO7","v":0},{"$f":"F_Inputs!COP7","v":0},{"$f":"F_Inputs!COQ7","v":0},{"$f":"F_Inputs!COR7","v":0},{"$f":"F_Inputs!COS7","v":0},{"$f":"F_Inputs!COT7","v":0},{"$f":"F_Inputs!COU7","v":0},{"$f":"F_Inputs!COV7","v":0},{"$f":"F_Inputs!COW7","v":0},{"$f":"F_Inputs!COX7","v":0},{"$f":"F_Inputs!COY7","v":0},{"$f":"F_Inputs!COZ7","v":0},{"$f":"F_Inputs!CPA7","v":0},{"$f":"F_Inputs!CPB7","v":0},{"$f":"F_Inputs!CPC7","v":0},{"$f":"F_Inputs!CPD7","v":0},{"$f":"F_Inputs!CPE7","v":0},{"$f":"F_Inputs!CPF7","v":0},{"$f":"F_Inputs!CPG7","v":0},{"$f":"F_Inputs!CPH7","v":0},{"$f":"F_Inputs!CPI7","v":0},{"$f":"F_Inputs!CPJ7","v":0},{"$f":"F_Inputs!CPK7","v":0},{"$f":"F_Inputs!CPL7","v":0},{"$f":"F_Inputs!CPM7","v":0},{"$f":"F_Inputs!CPN7","v":0},{"$f":"F_Inputs!CPO7","v":0},{"$f":"F_Inputs!CPP7","v":0},{"$f":"F_Inputs!CPQ7","v":0},{"$f":"F_Inputs!CPR7","v":0},{"$f":"F_Inputs!CPS7","v":0},{"$f":"F_Inputs!CPT7","v":0},{"$f":"F_Inputs!CPU7","v":0},{"$f":"F_Inputs!CPV7","v":0},{"$f":"F_Inputs!CPW7","v":0},{"$f":"F_Inputs!CPX7","v":0},{"$f":"F_Inputs!CPY7","v":0},{"$f":"F_Inputs!CPZ7","v":0},{"$f":"F_Inputs!CQA7","v":0},{"$f":"F_Inputs!CQB7","v":0},{"$f":"F_Inputs!CQC7","v":0},{"$f":"F_Inputs!CQD7","v":0},{"$f":"F_Inputs!CQE7","v":0},{"$f":"F_Inputs!CQF7","v":0},{"$f":"F_Inputs!CQG7","v":0},{"$f":"F_Inputs!CQH7","v":0},{"$f":"F_Inputs!CQI7","v":0},{"$f":"F_Inputs!CQJ7","v":0},{"$f":"F_Inputs!CQK7","v":0},{"$f":"F_Inputs!CQL7","v":0},{"$f":"F_Inputs!CQM7","v":0},{"$f":"F_Inputs!CQN7","v":0},{"$f":"F_Inputs!CQO7","v":0},{"$f":"F_Inputs!CQP7","v":0},{"$f":"F_Inputs!CQQ7","v":0},{"$f":"F_Inputs!CQR7","v":0},{"$f":"F_Inputs!CQS7","v":0},{"$f":"F_Inputs!CQT7","v":0},{"$f":"F_Inputs!CQU7","v":0},{"$f":"F_Inputs!CQV7","v":0},{"$f":"F_Inputs!CQW7","v":0},{"$f":"F_Inputs!CQX7","v":0},{"$f":"F_Inputs!CQY7","v":0},{"$f":"F_Inputs!CQZ7","v":0},{"$f":"F_Inputs!CRA7","v":0},{"$f":"F_Inputs!CRB7","v":0},{"$f":"F_Inputs!CRC7","v":0},{"$f":"F_Inputs!CRD7","v":0},{"$f":"F_Inputs!CRE7","v":0},{"$f":"F_Inputs!CRF7","v":0},{"$f":"F_Inputs!CRG7","v":0},{"$f":"F_Inputs!CRH7","v":0},{"$f":"F_Inputs!CRI7","v":0},{"$f":"F_Inputs!CRJ7","v":0},{"$f":"F_Inputs!CRK7","v":0},{"$f":"F_Inputs!CRL7","v":0},{"$f":"F_Inputs!CRM7","v":0},{"$f":"F_Inputs!CRN7","v":0},{"$f":"F_Inputs!CRO7","v":0},{"$f":"F_Inputs!CRP7","v":0},{"$f":"F_Inputs!CRQ7","v":0},{"$f":"F_Inputs!CRR7","v":0},{"$f":"F_Inputs!CRS7","v":0},{"$f":"F_Inputs!CRT7","v":0},{"$f":"F_Inputs!CRU7","v":0},{"$f":"F_Inputs!CRV7","v":0},{"$f":"F_Inputs!CRW7","v":0},{"$f":"F_Inputs!CRX7","v":0},{"$f":"F_Inputs!CRY7","v":0},{"$f":"F_Inputs!CRZ7","v":0},{"$f":"F_Inputs!CSA7","v":0},{"$f":"F_Inputs!CSB7","v":0},{"$f":"F_Inputs!CSC7","v":0},{"$f":"F_Inputs!CSD7","v":0},{"$f":"F_Inputs!CSE7","v":0},{"$f":"F_Inputs!CSF7","v":0},{"$f":"F_Inputs!CSG7","v":0},{"$f":"F_Inputs!CSH7","v":0},{"$f":"F_Inputs!CSI7","v":0},{"$f":"F_Inputs!CSJ7","v":0},{"$f":"F_Inputs!CSK7","v":0},{"$f":"F_Inputs!CSL7","v":0},{"$f":"F_Inputs!CSM7","v":0},{"$f":"F_Inputs!CSN7","v":0},{"$f":"F_Inputs!CSO7","v":0},{"$f":"F_Inputs!CSP7","v":0},{"$f":"F_Inputs!CSQ7","v":0},{"$f":"F_Inputs!CSR7","v":0},{"$f":"F_Inputs!CSS7","v":0},{"$f":"F_Inputs!CST7","v":0},{"$f":"F_Inputs!CSU7","v":0},{"$f":"F_Inputs!CSV7","v":0},{"$f":"F_Inputs!CSW7","v":0},{"$f":"F_Inputs!CSX7","v":0},{"$f":"F_Inputs!CSY7","v":0},{"$f":"F_Inputs!CSZ7","v":0},{"$f":"F_Inputs!CTA7","v":0},{"$f":"F_Inputs!CTB7","v":0},{"$f":"F_Inputs!CTC7","v":0},{"$f":"F_Inputs!CTD7","v":0},{"$f":"F_Inputs!CTE7","v":0},{"$f":"F_Inputs!CTF7","v":0},{"$f":"F_Inputs!CTG7","v":0},{"$f":"F_Inputs!CTH7","v":0},{"$f":"F_Inputs!CTI7","v":0},{"$f":"F_Inputs!CTJ7","v":0},{"$f":"F_Inputs!CTK7","v":0},{"$f":"F_Inputs!CTL7","v":0},{"$f":"F_Inputs!CTM7","v":0},{"$f":"F_Inputs!CTN7","v":0},{"$f":"F_Inputs!CTO7","v":0},{"$f":"F_Inputs!CTP7","v":0},{"$f":"F_Inputs!CTQ7","v":0},{"$f":"F_Inputs!CTR7","v":0},{"$f":"F_Inputs!CTS7","v":0},{"$f":"F_Inputs!CTT7","v":0},{"$f":"F_Inputs!CTU7","v":0},{"$f":"F_Inputs!CTV7","v":0},{"$f":"F_Inputs!CTW7","v":0},{"$f":"F_Inputs!CTX7","v":0},{"$f":"F_Inputs!CTY7","v":0},{"$f":"F_Inputs!CTZ7","v":0},{"$f":"F_Inputs!CUA7","v":0},{"$f":"F_Inputs!CUB7","v":0},{"$f":"F_Inputs!CUC7","v":0},{"$f":"F_Inputs!CUD7","v":0},{"$f":"F_Inputs!CUE7","v":0},{"$f":"F_Inputs!CUF7","v":0},{"$f":"F_Inputs!CUG7","v":0},{"$f":"F_Inputs!CUH7","v":0},{"$f":"F_Inputs!CUI7","v":0},{"$f":"F_Inputs!CUJ7","v":0},{"$f":"F_Inputs!CUK7","v":0},{"$f":"F_Inputs!CUL7","v":0},{"$f":"F_Inputs!CUM7","v":0},{"$f":"F_Inputs!CUN7","v":0},{"$f":"F_Inputs!CUO7","v":0},{"$f":"F_Inputs!CUP7","v":0},{"$f":"F_Inputs!CUQ7","v":0},{"$f":"F_Inputs!CUR7","v":0},{"$f":"F_Inputs!CUS7","v":0},{"$f":"F_Inputs!CUT7","v":0},{"$f":"F_Inputs!CUU7","v":0},{"$f":"F_Inputs!CUV7","v":0},{"$f":"F_Inputs!CUW7","v":0},{"$f":"F_Inputs!CUX7","v":0},{"$f":"F_Inputs!CUY7","v":0},{"$f":"F_Inputs!CUZ7","v":0},{"$f":"F_Inputs!CVA7","v":0},{"$f":"F_Inputs!CVB7","v":0},{"$f":"F_Inputs!CVC7","v":0},{"$f":"F_Inputs!CVD7","v":0},{"$f":"F_Inputs!CVE7","v":0},{"$f":"F_Inputs!CVF7","v":0},{"$f":"F_Inputs!CVG7","v":0},{"$f":"F_Inputs!CVH7","v":0},{"$f":"F_Inputs!CVI7","v":0},{"$f":"F_Inputs!CVJ7","v":0},{"$f":"F_Inputs!CVK7","v":0},{"$f":"F_Inputs!CVL7","v":0},{"$f":"F_Inputs!CVM7","v":0},{"$f":"F_Inputs!CVN7","v":0},{"$f":"F_Inputs!CVO7","v":0},{"$f":"F_Inputs!CVP7","v":0},{"$f":"F_Inputs!CVQ7","v":0},{"$f":"F_Inputs!CVR7","v":0},{"$f":"F_Inputs!CVS7","v":0},{"$f":"F_Inputs!CVT7","v":0},{"$f":"F_Inputs!CVU7","v":0},{"$f":"F_Inputs!CVV7","v":0},{"$f":"F_Inputs!CVW7","v":0},{"$f":"F_Inputs!CVX7","v":0},{"$f":"F_Inputs!CVY7","v":0},{"$f":"F_Inputs!CVZ7","v":0},{"$f":"F_Inputs!CWA7","v":0},{"$f":"F_Inputs!CWB7","v":0},{"$f":"F_Inputs!CWC7","v":0},{"$f":"F_Inputs!CWD7","v":0},{"$f":"F_Inputs!CWE7","v":0},{"$f":"F_Inputs!CWF7","v":0},{"$f":"F_Inputs!CWG7","v":0},{"$f":"F_Inputs!CWH7","v":0},{"$f":"F_Inputs!CWI7","v":0},{"$f":"F_Inputs!CWJ7","v":0},{"$f":"F_Inputs!CWK7","v":0},{"$f":"F_Inputs!CWL7","v":0},{"$f":"F_Inputs!CWM7","v":0},{"$f":"F_Inputs!CWN7","v":0},{"$f":"F_Inputs!CWO7","v":0},{"$f":"F_Inputs!CWP7","v":0},{"$f":"F_Inputs!CWQ7","v":0},{"$f":"F_Inputs!CWR7","v":0},{"$f":"F_Inputs!CWS7","v":0},{"$f":"F_Inputs!CWT7","v":0},{"$f":"F_Inputs!CWU7","v":0},{"$f":"F_Inputs!CWV7","v":0},{"$f":"F_Inputs!CWW7","v":0},{"$f":"F_Inputs!CWX7","v":0},{"$f":"F_Inputs!CWY7","v":0},{"$f":"F_Inputs!CWZ7","v":0},{"$f":"F_Inputs!CXA7","v":0},{"$f":"F_Inputs!CXB7","v":0},{"$f":"F_Inputs!CXC7","v":0},{"$f":"F_Inputs!CXD7","v":0},{"$f":"F_Inputs!CXE7","v":0},{"$f":"F_Inputs!CXF7","v":0},{"$f":"F_Inputs!CXG7","v":0},{"$f":"F_Inputs!CXH7","v":0},{"$f":"F_Inputs!CXI7","v":0},{"$f":"F_Inputs!CXJ7","v":0},{"$f":"F_Inputs!CXK7","v":0},{"$f":"F_Inputs!CXL7","v":0},{"$f":"F_Inputs!CXM7","v":0},{"$f":"F_Inputs!CXN7","v":0},{"$f":"F_Inputs!CXO7","v":0},{"$f":"F_Inputs!CXP7","v":0},{"$f":"F_Inputs!CXQ7","v":0},{"$f":"F_Inputs!CXR7","v":0},{"$f":"F_Inputs!CXS7","v":0},{"$f":"F_Inputs!CXT7","v":0},{"$f":"F_Inputs!CXU7","v":0},{"$f":"F_Inputs!CXV7","v":0},{"$f":"F_Inputs!CXW7","v":0},{"$f":"F_Inputs!CXX7","v":0},{"$f":"F_Inputs!CXY7","v":0},{"$f":"F_Inputs!CXZ7","v":0},{"$f":"F_Inputs!CYA7","v":0},{"$f":"F_Inputs!CYB7","v":0},{"$f":"F_Inputs!CYC7","v":0},{"$f":"F_Inputs!CYD7","v":0},{"$f":"F_Inputs!CYE7","v":0},{"$f":"F_Inputs!CYF7","v":0},{"$f":"F_Inputs!CYG7","v":0},{"$f":"F_Inputs!CYH7","v":0},{"$f":"F_Inputs!CYI7","v":0},{"$f":"F_Inputs!CYJ7","v":0},{"$f":"F_Inputs!CYK7","v":0},{"$f":"F_Inputs!CYL7","v":0},{"$f":"F_Inputs!CYM7","v":0},{"$f":"F_Inputs!CYN7","v":0},{"$f":"F_Inputs!CYO7","v":0},{"$f":"F_Inputs!CYP7","v":0},{"$f":"F_Inputs!CYQ7","v":0},{"$f":"F_Inputs!CYR7","v":0},{"$f":"F_Inputs!CYS7","v":0},{"$f":"F_Inputs!CYT7","v":0},{"$f":"F_Inputs!CYU7","v":0},{"$f":"F_Inputs!CYV7","v":0},{"$f":"F_Inputs!CYW7","v":0},{"$f":"F_Inputs!CYX7","v":0},{"$f":"F_Inputs!CYY7","v":0},{"$f":"F_Inputs!CYZ7","v":0},{"$f":"F_Inputs!CZA7","v":0},{"$f":"F_Inputs!CZB7","v":0},{"$f":"F_Inputs!CZC7","v":0},{"$f":"F_Inputs!CZD7","v":0},{"$f":"F_Inputs!CZE7","v":0},{"$f":"F_Inputs!CZF7","v":0},{"$f":"F_Inputs!CZG7","v":0},{"$f":"F_Inputs!CZH7","v":0},{"$f":"F_Inputs!CZI7","v":0},{"$f":"F_Inputs!CZJ7","v":0},{"$f":"F_Inputs!CZK7","v":0},{"$f":"F_Inputs!CZL7","v":0},{"$f":"F_Inputs!CZM7","v":0},{"$f":"F_Inputs!CZN7","v":0},{"$f":"F_Inputs!CZO7","v":0},{"$f":"F_Inputs!CZP7","v":0},{"$f":"F_Inputs!CZQ7","v":0},{"$f":"F_Inputs!CZR7","v":0},{"$f":"F_Inputs!CZS7","v":0},{"$f":"F_Inputs!CZT7","v":0},{"$f":"F_Inputs!CZU7","v":0},{"$f":"F_Inputs!CZV7","v":0},{"$f":"F_Inputs!CZW7","v":0},{"$f":"F_Inputs!CZX7","v":0},{"$f":"F_Inputs!CZY7","v":0},{"$f":"F_Inputs!CZZ7","v":0},{"$f":"F_Inputs!DAA7","v":0},{"$f":"F_Inputs!DAB7","v":0},{"$f":"F_Inputs!DAC7","v":0},{"$f":"F_Inputs!DAD7","v":0},{"$f":"F_Inputs!DAE7","v":0},{"$f":"F_Inputs!DAF7","v":0},{"$f":"F_Inputs!DAG7","v":0},{"$f":"F_Inputs!DAH7","v":0},{"$f":"F_Inputs!DAI7","v":0},{"$f":"F_Inputs!DAJ7","v":0},{"$f":"F_Inputs!DAK7","v":0},{"$f":"F_Inputs!DAL7","v":0},{"$f":"F_Inputs!DAM7","v":0},{"$f":"F_Inputs!DAN7","v":0},{"$f":"F_Inputs!DAO7","v":0},{"$f":"F_Inputs!DAP7","v":0},{"$f":"F_Inputs!DAQ7","v":0},{"$f":"F_Inputs!DAR7","v":0},{"$f":"F_Inputs!DAS7","v":0},{"$f":"F_Inputs!DAT7","v":0},{"$f":"F_Inputs!DAU7","v":0},{"$f":"F_Inputs!DAV7","v":0},{"$f":"F_Inputs!DAW7","v":0},{"$f":"F_Inputs!DAX7","v":0},{"$f":"F_Inputs!DAY7","v":0},{"$f":"F_Inputs!DAZ7","v":0},{"$f":"F_Inputs!DBA7","v":0},{"$f":"F_Inputs!DBB7","v":0},{"$f":"F_Inputs!DBC7","v":0},{"$f":"F_Inputs!DBD7","v":0},{"$f":"F_Inputs!DBE7","v":0},{"$f":"F_Inputs!DBF7","v":0},{"$f":"F_Inputs!DBG7","v":0},{"$f":"F_Inputs!DBH7","v":0},{"$f":"F_Inputs!DBI7","v":0},{"$f":"F_Inputs!DBJ7","v":0},{"$f":"F_Inputs!DBK7","v":0},{"$f":"F_Inputs!DBL7","v":0},{"$f":"F_Inputs!DBM7","v":0},{"$f":"F_Inputs!DBN7","v":0},{"$f":"F_Inputs!DBO7","v":0},{"$f":"F_Inputs!DBP7","v":0},{"$f":"F_Inputs!DBQ7","v":0},{"$f":"F_Inputs!DBR7","v":0},{"$f":"F_Inputs!DBS7","v":0},{"$f":"F_Inputs!DBT7","v":0},{"$f":"F_Inputs!DBU7","v":0},{"$f":"F_Inputs!DBV7","v":0},{"$f":"F_Inputs!DBW7","v":0},{"$f":"F_Inputs!DBX7","v":0},{"$f":"F_Inputs!DBY7","v":0},{"$f":"F_Inputs!DBZ7","v":0},{"$f":"F_Inputs!DCA7","v":0},{"$f":"F_Inputs!DCB7","v":0},{"$f":"F_Inputs!DCC7","v":0},{"$f":"F_Inputs!DCD7","v":0},{"$f":"F_Inputs!DCE7","v":0},{"$f":"F_Inputs!DCF7","v":0},{"$f":"F_Inputs!DCG7","v":0},{"$f":"F_Inputs!DCH7","v":0},{"$f":"F_Inputs!DCI7","v":0},{"$f":"F_Inputs!DCJ7","v":0},{"$f":"F_Inputs!DCK7","v":0},{"$f":"F_Inputs!DCL7","v":0},{"$f":"F_Inputs!DCM7","v":0},{"$f":"F_Inputs!DCN7","v":0},{"$f":"F_Inputs!DCO7","v":0},{"$f":"F_Inputs!DCP7","v":0},{"$f":"F_Inputs!DCQ7","v":0},{"$f":"F_Inputs!DCR7","v":0},{"$f":"F_Inputs!DCS7","v":0},{"$f":"F_Inputs!DCT7","v":0},{"$f":"F_Inputs!DCU7","v":0},{"$f":"F_Inputs!DCV7","v":0},{"$f":"F_Inputs!DCW7","v":0},{"$f":"F_Inputs!DCX7","v":0},{"$f":"F_Inputs!DCY7","v":0},{"$f":"F_Inputs!DCZ7","v":0},{"$f":"F_Inputs!DDA7","v":0},{"$f":"F_Inputs!DDB7","v":0},{"$f":"F_Inputs!DDC7","v":0},{"$f":"F_Inputs!DDD7","v":0},{"$f":"F_Inputs!DDE7","v":0},{"$f":"F_Inputs!DDF7","v":0},{"$f":"F_Inputs!DDG7","v":0},{"$f":"F_Inputs!DDH7","v":0},{"$f":"F_Inputs!DDI7","v":0},{"$f":"F_Inputs!DDJ7","v":0},{"$f":"F_Inputs!DDK7","v":0},{"$f":"F_Inputs!DDL7","v":0},{"$f":"F_Inputs!DDM7","v":0},{"$f":"F_Inputs!DDN7","v":0},{"$f":"F_Inputs!DDO7","v":0},{"$f":"F_Inputs!DDP7","v":0},{"$f":"F_Inputs!DDQ7","v":0},{"$f":"F_Inputs!DDR7","v":0},{"$f":"F_Inputs!DDS7","v":0},{"$f":"F_Inputs!DDT7","v":0},{"$f":"F_Inputs!DDU7","v":0},{"$f":"F_Inputs!DDV7","v":0},{"$f":"F_Inputs!DDW7","v":0},{"$f":"F_Inputs!DDX7","v":0},{"$f":"F_Inputs!DDY7","v":0},{"$f":"F_Inputs!DDZ7","v":0},{"$f":"F_Inputs!DEA7","v":0},{"$f":"F_Inputs!DEB7","v":0},{"$f":"F_Inputs!DEC7","v":0},{"$f":"F_Inputs!DED7","v":0},{"$f":"F_Inputs!DEE7","v":0},{"$f":"F_Inputs!DEF7","v":0},{"$f":"F_Inputs!DEG7","v":0},{"$f":"F_Inputs!DEH7","v":0},{"$f":"F_Inputs!DEI7","v":0},{"$f":"F_Inputs!DEJ7","v":0},{"$f":"F_Inputs!DEK7","v":0},{"$f":"F_Inputs!DEL7","v":0},{"$f":"F_Inputs!DEM7","v":0},{"$f":"F_Inputs!DEN7","v":0},{"$f":"F_Inputs!DEO7","v":0},{"$f":"F_Inputs!DEP7","v":0},{"$f":"F_Inputs!DEQ7","v":0},{"$f":"F_Inputs!DER7","v":0},{"$f":"F_Inputs!DES7","v":0},{"$f":"F_Inputs!DET7","v":0},{"$f":"F_Inputs!DEU7","v":0},{"$f":"F_Inputs!DEV7","v":0},{"$f":"F_Inputs!DEW7","v":0},{"$f":"F_Inputs!DEX7","v":0},{"$f":"F_Inputs!DEY7","v":0},{"$f":"F_Inputs!DEZ7","v":0},{"$f":"F_Inputs!DFA7","v":0},{"$f":"F_Inputs!DFB7","v":0},{"$f":"F_Inputs!DFC7","v":0},{"$f":"F_Inputs!DFD7","v":0},{"$f":"F_Inputs!DFE7","v":0},{"$f":"F_Inputs!DFF7","v":0},{"$f":"F_Inputs!DFG7","v":0},{"$f":"F_Inputs!DFH7","v":0},{"$f":"F_Inputs!DFI7","v":0},{"$f":"F_Inputs!DFJ7","v":0},{"$f":"F_Inputs!DFK7","v":0},{"$f":"F_Inputs!DFL7","v":0},{"$f":"F_Inputs!DFM7","v":0},{"$f":"F_Inputs!DFN7","v":0},{"$f":"F_Inputs!DFO7","v":0},{"$f":"F_Inputs!DFP7","v":0},{"$f":"F_Inputs!DFQ7","v":0},{"$f":"F_Inputs!DFR7","v":0},{"$f":"F_Inputs!DFS7","v":0},{"$f":"F_Inputs!DFT7","v":0},{"$f":"F_Inputs!DFU7","v":0},{"$f":"F_Inputs!DFV7","v":0},{"$f":"F_Inputs!DFW7","v":0},{"$f":"F_Inputs!DFX7","v":0},{"$f":"F_Inputs!DFY7","v":0},{"$f":"F_Inputs!DFZ7","v":0},{"$f":"F_Inputs!DGA7","v":0},{"$f":"F_Inputs!DGB7","v":0},{"$f":"F_Inputs!DGC7","v":0},{"$f":"F_Inputs!DGD7","v":0},{"$f":"F_Inputs!DGE7","v":0},{"$f":"F_Inputs!DGF7","v":0},{"$f":"F_Inputs!DGG7","v":0},{"$f":"F_Inputs!DGH7","v":0},{"$f":"F_Inputs!DGI7","v":0},{"$f":"F_Inputs!DGJ7","v":0},{"$f":"F_Inputs!DGK7","v":0},{"$f":"F_Inputs!DGL7","v":0},{"$f":"F_Inputs!DGM7","v":0},{"$f":"F_Inputs!DGN7","v":0},{"$f":"F_Inputs!DGO7","v":0},{"$f":"F_Inputs!DGP7","v":0},{"$f":"F_Inputs!DGQ7","v":0},{"$f":"F_Inputs!DGR7","v":0},{"$f":"F_Inputs!DGS7","v":0},{"$f":"F_Inputs!DGT7","v":0},{"$f":"F_Inputs!DGU7","v":0},{"$f":"F_Inputs!DGV7","v":0},{"$f":"F_Inputs!DGW7","v":0},{"$f":"F_Inputs!DGX7","v":0},{"$f":"F_Inputs!DGY7","v":0},{"$f":"F_Inputs!DGZ7","v":0},{"$f":"F_Inputs!DHA7","v":0},{"$f":"F_Inputs!DHB7","v":0},{"$f":"F_Inputs!DHC7","v":0},{"$f":"F_Inputs!DHD7","v":0},{"$f":"F_Inputs!DHE7","v":0},{"$f":"F_Inputs!DHF7","v":0},{"$f":"F_Inputs!DHG7","v":0},{"$f":"F_Inputs!DHH7","v":0},{"$f":"F_Inputs!DHI7","v":0},{"$f":"F_Inputs!DHJ7","v":0},{"$f":"F_Inputs!DHK7","v":0},{"$f":"F_Inputs!DHL7","v":0},{"$f":"F_Inputs!DHM7","v":0},{"$f":"F_Inputs!DHN7","v":0},{"$f":"F_Inputs!DHO7","v":0},{"$f":"F_Inputs!DHP7","v":0},{"$f":"F_Inputs!DHQ7","v":0},{"$f":"F_Inputs!DHR7","v":0},{"$f":"F_Inputs!DHS7","v":0},{"$f":"F_Inputs!DHT7","v":0},{"$f":"F_Inputs!DHU7","v":0},{"$f":"F_Inputs!DHV7","v":0},{"$f":"F_Inputs!DHW7","v":0},{"$f":"F_Inputs!DHX7","v":0},{"$f":"F_Inputs!DHY7","v":0},{"$f":"F_Inputs!DHZ7","v":0},{"$f":"F_Inputs!DIA7","v":0},{"$f":"F_Inputs!DIB7","v":0},{"$f":"F_Inputs!DIC7","v":0},{"$f":"F_Inputs!DID7","v":0},{"$f":"F_Inputs!DIE7","v":0},{"$f":"F_Inputs!DIF7","v":0},{"$f":"F_Inputs!DIG7","v":0},{"$f":"F_Inputs!DIH7","v":0},{"$f":"F_Inputs!DII7","v":0},{"$f":"F_Inputs!DIJ7","v":0},{"$f":"F_Inputs!DIK7","v":0},{"$f":"F_Inputs!DIL7","v":0},{"$f":"F_Inputs!DIM7","v":0},{"$f":"F_Inputs!DIN7","v":0},{"$f":"F_Inputs!DIO7","v":0},{"$f":"F_Inputs!DIP7","v":0},{"$f":"F_Inputs!DIQ7","v":0},{"$f":"F_Inputs!DIR7","v":0},{"$f":"F_Inputs!DIS7","v":0},{"$f":"F_Inputs!DIT7","v":0},{"$f":"F_Inputs!DIU7","v":0},{"$f":"F_Inputs!DIV7","v":0},{"$f":"F_Inputs!DIW7","v":0},{"$f":"F_Inputs!DIX7","v":0},{"$f":"F_Inputs!DIY7","v":0},{"$f":"F_Inputs!DIZ7","v":0},{"$f":"F_Inputs!DJA7","v":0},{"$f":"F_Inputs!DJB7","v":0},{"$f":"F_Inputs!DJC7","v":0},{"$f":"F_Inputs!DJD7","v":0},{"$f":"F_Inputs!DJE7","v":0},{"$f":"F_Inputs!DJF7","v":0},{"$f":"F_Inputs!DJG7","v":0},{"$f":"F_Inputs!DJH7","v":0},{"$f":"F_Inputs!DJI7","v":0},{"$f":"F_Inputs!DJJ7","v":0},{"$f":"F_Inputs!DJK7","v":0},{"$f":"F_Inputs!DJL7","v":0},{"$f":"F_Inputs!DJM7","v":0},{"$f":"F_Inputs!DJN7","v":0},{"$f":"F_Inputs!DJO7","v":0},{"$f":"F_Inputs!DJP7","v":0},{"$f":"F_Inputs!DJQ7","v":0},{"$f":"F_Inputs!DJR7","v":0},{"$f":"F_Inputs!DJS7","v":0},{"$f":"F_Inputs!DJT7","v":0},{"$f":"F_Inputs!DJU7","v":0},{"$f":"F_Inputs!DJV7","v":0},{"$f":"F_Inputs!DJW7","v":0},{"$f":"F_Inputs!DJX7","v":0},{"$f":"F_Inputs!DJY7","v":0},{"$f":"F_Inputs!DJZ7","v":0},{"$f":"F_Inputs!DKA7","v":0},{"$f":"F_Inputs!DKB7","v":0},{"$f":"F_Inputs!DKC7","v":0},{"$f":"F_Inputs!DKD7","v":0},{"$f":"F_Inputs!DKE7","v":0},{"$f":"F_Inputs!DKF7","v":0},{"$f":"F_Inputs!DKG7","v":0},{"$f":"F_Inputs!DKH7","v":0},{"$f":"F_Inputs!DKI7","v":0},{"$f":"F_Inputs!DKJ7","v":0},{"$f":"F_Inputs!DKK7","v":0},{"$f":"F_Inputs!DKL7","v":0},{"$f":"F_Inputs!DKM7","v":0},{"$f":"F_Inputs!DKN7","v":0},{"$f":"F_Inputs!DKO7","v":0},{"$f":"F_Inputs!DKP7","v":0},{"$f":"F_Inputs!DKQ7","v":0},{"$f":"F_Inputs!DKR7","v":0},{"$f":"F_Inputs!DKS7","v":0},{"$f":"F_Inputs!DKT7","v":0},{"$f":"F_Inputs!DKU7","v":0},{"$f":"F_Inputs!DKV7","v":0},{"$f":"F_Inputs!DKW7","v":0},{"$f":"F_Inputs!DKX7","v":0},{"$f":"F_Inputs!DKY7","v":0},{"$f":"F_Inputs!DKZ7","v":0},{"$f":"F_Inputs!DLA7","v":0},{"$f":"F_Inputs!DLB7","v":0},{"$f":"F_Inputs!DLC7","v":0},{"$f":"F_Inputs!DLD7","v":0},{"$f":"F_Inputs!DLE7","v":0},{"$f":"F_Inputs!DLF7","v":0},{"$f":"F_Inputs!DLG7","v":0},{"$f":"F_Inputs!DLH7","v":0},{"$f":"F_Inputs!DLI7","v":0},{"$f":"F_Inputs!DLJ7","v":0},{"$f":"F_Inputs!DLK7","v":0},{"$f":"F_Inputs!DLL7","v":0},{"$f":"F_Inputs!DLM7","v":0},{"$f":"F_Inputs!DLN7","v":0},{"$f":"F_Inputs!DLO7","v":0},{"$f":"F_Inputs!DLP7","v":0},{"$f":"F_Inputs!DLQ7","v":0},{"$f":"F_Inputs!DLR7","v":0},{"$f":"F_Inputs!DLS7","v":0},{"$f":"F_Inputs!DLT7","v":0},{"$f":"F_Inputs!DLU7","v":0},{"$f":"F_Inputs!DLV7","v":0},{"$f":"F_Inputs!DLW7","v":0},{"$f":"F_Inputs!DLX7","v":0},{"$f":"F_Inputs!DLY7","v":0},{"$f":"F_Inputs!DLZ7","v":0},{"$f":"F_Inputs!DMA7","v":0},{"$f":"F_Inputs!DMB7","v":0},{"$f":"F_Inputs!DMC7","v":0},{"$f":"F_Inputs!DMD7","v":0},{"$f":"F_Inputs!DME7","v":0},{"$f":"F_Inputs!DMF7","v":0},{"$f":"F_Inputs!DMG7","v":0},{"$f":"F_Inputs!DMH7","v":0},{"$f":"F_Inputs!DMI7","v":0},{"$f":"F_Inputs!DMJ7","v":0},{"$f":"F_Inputs!DMK7","v":0},{"$f":"F_Inputs!DML7","v":0},{"$f":"F_Inputs!DMM7","v":0},{"$f":"F_Inputs!DMN7","v":0},{"$f":"F_Inputs!DMO7","v":0},{"$f":"F_Inputs!DMP7","v":0},{"$f":"F_Inputs!DMQ7","v":0},{"$f":"F_Inputs!DMR7","v":0},{"$f":"F_Inputs!DMS7","v":0},{"$f":"F_Inputs!DMT7","v":0},{"$f":"F_Inputs!DMU7","v":0},{"$f":"F_Inputs!DMV7","v":0},{"$f":"F_Inputs!DMW7","v":0},{"$f":"F_Inputs!DMX7","v":0},{"$f":"F_Inputs!DMY7","v":0},{"$f":"F_Inputs!DMZ7","v":0},{"$f":"F_Inputs!DNA7","v":0},{"$f":"F_Inputs!DNB7","v":0},{"$f":"F_Inputs!DNC7","v":0},{"$f":"F_Inputs!DND7","v":0},{"$f":"F_Inputs!DNE7","v":0},{"$f":"F_Inputs!DNF7","v":0},{"$f":"F_Inputs!DNG7","v":0},{"$f":"F_Inputs!DNH7","v":0},{"$f":"F_Inputs!DNI7","v":0},{"$f":"F_Inputs!DNJ7","v":0},{"$f":"F_Inputs!DNK7","v":0},{"$f":"F_Inputs!DNL7","v":0},{"$f":"F_Inputs!DNM7","v":0},{"$f":"F_Inputs!DNN7","v":0},{"$f":"F_Inputs!DNO7","v":0},{"$f":"F_Inputs!DNP7","v":0},{"$f":"F_Inputs!DNQ7","v":0},{"$f":"F_Inputs!DNR7","v":0},{"$f":"F_Inputs!DNS7","v":0},{"$f":"F_Inputs!DNT7","v":0},{"$f":"F_Inputs!DNU7","v":0},{"$f":"F_Inputs!DNV7","v":0},{"$f":"F_Inputs!DNW7","v":0},{"$f":"F_Inputs!DNX7","v":0},{"$f":"F_Inputs!DNY7","v":0},{"$f":"F_Inputs!DNZ7","v":0},{"$f":"F_Inputs!DOA7","v":0},{"$f":"F_Inputs!DOB7","v":0},{"$f":"F_Inputs!DOC7","v":0},{"$f":"F_Inputs!DOD7","v":0},{"$f":"F_Inputs!DOE7","v":0},{"$f":"F_Inputs!DOF7","v":0},{"$f":"F_Inputs!DOG7","v":0},{"$f":"F_Inputs!DOH7","v":0},{"$f":"F_Inputs!DOI7","v":0},{"$f":"F_Inputs!DOJ7","v":0},{"$f":"F_Inputs!DOK7","v":0},{"$f":"F_Inputs!DOL7","v":0},{"$f":"F_Inputs!DOM7","v":0},{"$f":"F_Inputs!DON7","v":0},{"$f":"F_Inputs!DOO7","v":0},{"$f":"F_Inputs!DOP7","v":0},{"$f":"F_Inputs!DOQ7","v":0},{"$f":"F_Inputs!DOR7","v":0},{"$f":"F_Inputs!DOS7","v":0},{"$f":"F_Inputs!DOT7","v":0},{"$f":"F_Inputs!DOU7","v":0},{"$f":"F_Inputs!DOV7","v":0},{"$f":"F_Inputs!DOW7","v":0},{"$f":"F_Inputs!DOX7","v":0},{"$f":"F_Inputs!DOY7","v":0},{"$f":"F_Inputs!DOZ7","v":0},{"$f":"F_Inputs!DPA7","v":0},{"$f":"F_Inputs!DPB7","v":0},{"$f":"F_Inputs!DPC7","v":0},{"$f":"F_Inputs!DPD7","v":0},{"$f":"F_Inputs!DPE7","v":0},{"$f":"F_Inputs!DPF7","v":0},{"$f":"F_Inputs!DPG7","v":0},{"$f":"F_Inputs!DPH7","v":0},{"$f":"F_Inputs!DPI7","v":0},{"$f":"F_Inputs!DPJ7","v":0},{"$f":"F_Inputs!DPK7","v":0},{"$f":"F_Inputs!DPL7","v":0},{"$f":"F_Inputs!DPM7","v":0},{"$f":"F_Inputs!DPN7","v":0},{"$f":"F_Inputs!DPO7","v":0},{"$f":"F_Inputs!DPP7","v":0},{"$f":"F_Inputs!DPQ7","v":0},{"$f":"F_Inputs!DPR7","v":0},{"$f":"F_Inputs!DPS7","v":0},{"$f":"F_Inputs!DPT7","v":0},{"$f":"F_Inputs!DPU7","v":0},{"$f":"F_Inputs!DPV7","v":0},{"$f":"F_Inputs!DPW7","v":0},{"$f":"F_Inputs!DPX7","v":0},{"$f":"F_Inputs!DPY7","v":0},{"$f":"F_Inputs!DPZ7","v":0},{"$f":"F_Inputs!DQA7","v":0},{"$f":"F_Inputs!DQB7","v":0},{"$f":"F_Inputs!DQC7","v":0},{"$f":"F_Inputs!DQD7","v":0},{"$f":"F_Inputs!DQE7","v":0},{"$f":"F_Inputs!DQF7","v":0},{"$f":"F_Inputs!DQG7","v":0},{"$f":"F_Inputs!DQH7","v":0},{"$f":"F_Inputs!DQI7","v":0},{"$f":"F_Inputs!DQJ7","v":0},{"$f":"F_Inputs!DQK7","v":0},{"$f":"F_Inputs!DQL7","v":0},{"$f":"F_Inputs!DQM7","v":0},{"$f":"F_Inputs!DQN7","v":0},{"$f":"F_Inputs!DQO7","v":0},{"$f":"F_Inputs!DQP7","v":0},{"$f":"F_Inputs!DQQ7","v":0},{"$f":"F_Inputs!DQR7","v":0},{"$f":"F_Inputs!DQS7","v":0},{"$f":"F_Inputs!DQT7","v":0},{"$f":"F_Inputs!DQU7","v":0},{"$f":"F_Inputs!DQV7","v":0},{"$f":"F_Inputs!DQW7","v":0},{"$f":"F_Inputs!DQX7","v":0},{"$f":"F_Inputs!DQY7","v":0},{"$f":"F_Inputs!DQZ7","v":0},{"$f":"F_Inputs!DRA7","v":0},{"$f":"F_Inputs!DRB7","v":0},{"$f":"F_Inputs!DRC7","v":0},{"$f":"F_Inputs!DRD7","v":0},{"$f":"F_Inputs!DRE7","v":0},{"$f":"F_Inputs!DRF7","v":0},{"$f":"F_Inputs!DRG7","v":0},{"$f":"F_Inputs!DRH7","v":0},{"$f":"F_Inputs!DRI7","v":0},{"$f":"F_Inputs!DRJ7","v":0},{"$f":"F_Inputs!DRK7","v":0},{"$f":"F_Inputs!DRL7","v":0},{"$f":"F_Inputs!DRM7","v":0},{"$f":"F_Inputs!DRN7","v":0},{"$f":"F_Inputs!DRO7","v":0},{"$f":"F_Inputs!DRP7","v":0},{"$f":"F_Inputs!DRQ7","v":0},{"$f":"F_Inputs!DRR7","v":0},{"$f":"F_Inputs!DRS7","v":0},{"$f":"F_Inputs!DRT7","v":0},{"$f":"F_Inputs!DRU7","v":0},{"$f":"F_Inputs!DRV7","v":0},{"$f":"F_Inputs!DRW7","v":0},{"$f":"F_Inputs!DRX7","v":0},{"$f":"F_Inputs!DRY7","v":0},{"$f":"F_Inputs!DRZ7","v":0},{"$f":"F_Inputs!DSA7","v":0},{"$f":"F_Inputs!DSB7","v":0},{"$f":"F_Inputs!DSC7","v":0},{"$f":"F_Inputs!DSD7","v":0},{"$f":"F_Inputs!DSE7","v":0},{"$f":"F_Inputs!DSF7","v":0},{"$f":"F_Inputs!DSG7","v":0},{"$f":"F_Inputs!DSH7","v":0},{"$f":"F_Inputs!DSI7","v":0},{"$f":"F_Inputs!DSJ7","v":0},{"$f":"F_Inputs!DSK7","v":0},{"$f":"F_Inputs!DSL7","v":0},{"$f":"F_Inputs!DSM7","v":0},{"$f":"F_Inputs!DSN7","v":0},{"$f":"F_Inputs!DSO7","v":0},{"$f":"F_Inputs!DSP7","v":0},{"$f":"F_Inputs!DSQ7","v":0},{"$f":"F_Inputs!DSR7","v":0},{"$f":"F_Inputs!DSS7","v":0},{"$f":"F_Inputs!DST7","v":0},{"$f":"F_Inputs!DSU7","v":0},{"$f":"F_Inputs!DSV7","v":0},{"$f":"F_Inputs!DSW7","v":0},{"$f":"F_Inputs!DSX7","v":0},{"$f":"F_Inputs!DSY7","v":0},{"$f":"F_Inputs!DSZ7","v":0},{"$f":"F_Inputs!DTA7","v":0},{"$f":"F_Inputs!DTB7","v":0},{"$f":"F_Inputs!DTC7","v":0},{"$f":"F_Inputs!DTD7","v":0},{"$f":"F_Inputs!DTE7","v":0},{"$f":"F_Inputs!DTF7","v":0},{"$f":"F_Inputs!DTG7","v":0},{"$f":"F_Inputs!DTH7","v":0},{"$f":"F_Inputs!DTI7","v":0},{"$f":"F_Inputs!DTJ7","v":0},{"$f":"F_Inputs!DTK7","v":0},{"$f":"F_Inputs!DTL7","v":0},{"$f":"F_Inputs!DTM7","v":0},{"$f":"F_Inputs!DTN7","v":0},{"$f":"F_Inputs!DTO7","v":0},{"$f":"F_Inputs!DTP7","v":0},{"$f":"F_Inputs!DTQ7","v":0},{"$f":"F_Inputs!DTR7","v":0},{"$f":"F_Inputs!DTS7","v":0},{"$f":"F_Inputs!DTT7","v":0},{"$f":"F_Inputs!DTU7","v":0},{"$f":"F_Inputs!DTV7","v":0},{"$f":"F_Inputs!DTW7","v":0},{"$f":"F_Inputs!DTX7","v":0},{"$f":"F_Inputs!DTY7","v":0},{"$f":"F_Inputs!DTZ7","v":0},{"$f":"F_Inputs!DUA7","v":0},{"$f":"F_Inputs!DUB7","v":0},{"$f":"F_Inputs!DUC7","v":0},{"$f":"F_Inputs!DUD7","v":0},{"$f":"F_Inputs!DUE7","v":0},{"$f":"F_Inputs!DUF7","v":0},{"$f":"F_Inputs!DUG7","v":0},{"$f":"F_Inputs!DUH7","v":0},{"$f":"F_Inputs!DUI7","v":0},{"$f":"F_Inputs!DUJ7","v":0},{"$f":"F_Inputs!DUK7","v":0},{"$f":"F_Inputs!DUL7","v":0},{"$f":"F_Inputs!DUM7","v":0},{"$f":"F_Inputs!DUN7","v":0},{"$f":"F_Inputs!DUO7","v":0},{"$f":"F_Inputs!DUP7","v":0},{"$f":"F_Inputs!DUQ7","v":0},{"$f":"F_Inputs!DUR7","v":0},{"$f":"F_Inputs!DUS7","v":0},{"$f":"F_Inputs!DUT7","v":0},{"$f":"F_Inputs!DUU7","v":0},{"$f":"F_Inputs!DUV7","v":0},{"$f":"F_Inputs!DUW7","v":0},{"$f":"F_Inputs!DUX7","v":0},{"$f":"F_Inputs!DUY7","v":0},{"$f":"F_Inputs!DUZ7","v":0},{"$f":"F_Inputs!DVA7","v":0},{"$f":"F_Inputs!DVB7","v":0},{"$f":"F_Inputs!DVC7","v":0},{"$f":"F_Inputs!DVD7","v":0},{"$f":"F_Inputs!DVE7","v":0},{"$f":"F_Inputs!DVF7","v":0},{"$f":"F_Inputs!DVG7","v":0},{"$f":"F_Inputs!DVH7","v":0},{"$f":"F_Inputs!DVI7","v":0},{"$f":"F_Inputs!DVJ7","v":0},{"$f":"F_Inputs!DVK7","v":0},{"$f":"F_Inputs!DVL7","v":0},{"$f":"F_Inputs!DVM7","v":0},{"$f":"F_Inputs!DVN7","v":0},{"$f":"F_Inputs!DVO7","v":0},{"$f":"F_Inputs!DVP7","v":0},{"$f":"F_Inputs!DVQ7","v":0},{"$f":"F_Inputs!DVR7","v":0},{"$f":"F_Inputs!DVS7","v":0},{"$f":"F_Inputs!DVT7","v":0},{"$f":"F_Inputs!DVU7","v":0},{"$f":"F_Inputs!DVV7","v":0},{"$f":"F_Inputs!DVW7","v":0},{"$f":"F_Inputs!DVX7","v":0},{"$f":"F_Inputs!DVY7","v":0},{"$f":"F_Inputs!DVZ7","v":0},{"$f":"F_Inputs!DWA7","v":0},{"$f":"F_Inputs!DWB7","v":0},{"$f":"F_Inputs!DWC7","v":0},{"$f":"F_Inputs!DWD7","v":0},{"$f":"F_Inputs!DWE7","v":0},{"$f":"F_Inputs!DWF7","v":0},{"$f":"F_Inputs!DWG7","v":0},{"$f":"F_Inputs!DWH7","v":0},{"$f":"F_Inputs!DWI7","v":0},{"$f":"F_Inputs!DWJ7","v":0},{"$f":"F_Inputs!DWK7","v":0},{"$f":"F_Inputs!DWL7","v":0},{"$f":"F_Inputs!DWM7","v":0},{"$f":"F_Inputs!DWN7","v":0},{"$f":"F_Inputs!DWO7","v":0},{"$f":"F_Inputs!DWP7","v":0},{"$f":"F_Inputs!DWQ7","v":0},{"$f":"F_Inputs!DWR7","v":0},{"$f":"F_Inputs!DWS7","v":0},{"$f":"F_Inputs!DWT7","v":0},{"$f":"F_Inputs!DWU7","v":0},{"$f":"F_Inputs!DWV7","v":0},{"$f":"F_Inputs!DWW7","v":0},{"$f":"F_Inputs!DWX7","v":0},{"$f":"F_Inputs!DWY7","v":0},{"$f":"F_Inputs!DWZ7","v":0},{"$f":"F_Inputs!DXA7","v":0},{"$f":"F_Inputs!DXB7","v":0},{"$f":"F_Inputs!DXC7","v":0},{"$f":"F_Inputs!DXD7","v":0},{"$f":"F_Inputs!DXE7","v":0},{"$f":"F_Inputs!DXF7","v":0},{"$f":"F_Inputs!DXG7","v":0},{"$f":"F_Inputs!DXH7","v":0},{"$f":"F_Inputs!DXI7","v":0},{"$f":"F_Inputs!DXJ7","v":0},{"$f":"F_Inputs!DXK7","v":0},{"$f":"F_Inputs!DXL7","v":0},{"$f":"F_Inputs!DXM7","v":0},{"$f":"F_Inputs!DXN7","v":0},{"$f":"F_Inputs!DXO7","v":0},{"$f":"F_Inputs!DXP7","v":0},{"$f":"F_Inputs!DXQ7","v":0},{"$f":"F_Inputs!DXR7","v":0},{"$f":"F_Inputs!DXS7","v":0},{"$f":"F_Inputs!DXT7","v":0},{"$f":"F_Inputs!DXU7","v":0},{"$f":"F_Inputs!DXV7","v":0},{"$f":"F_Inputs!DXW7","v":0},{"$f":"F_Inputs!DXX7","v":0},{"$f":"F_Inputs!DXY7","v":0},{"$f":"F_Inputs!DXZ7","v":0},{"$f":"F_Inputs!DYA7","v":0},{"$f":"F_Inputs!DYB7","v":0},{"$f":"F_Inputs!DYC7","v":0},{"$f":"F_Inputs!DYD7","v":0},{"$f":"F_Inputs!DYE7","v":0},{"$f":"F_Inputs!DYF7","v":0},{"$f":"F_Inputs!DYG7","v":0},{"$f":"F_Inputs!DYH7","v":0},{"$f":"F_Inputs!DYI7","v":0},{"$f":"F_Inputs!DYJ7","v":0},{"$f":"F_Inputs!DYK7","v":0},{"$f":"F_Inputs!DYL7","v":0},{"$f":"F_Inputs!DYM7","v":0},{"$f":"F_Inputs!DYN7","v":0},{"$f":"F_Inputs!DYO7","v":0},{"$f":"F_Inputs!DYP7","v":0},{"$f":"F_Inputs!DYQ7","v":0},{"$f":"F_Inputs!DYR7","v":0},{"$f":"F_Inputs!DYS7","v":0},{"$f":"F_Inputs!DYT7","v":0},{"$f":"F_Inputs!DYU7","v":0},{"$f":"F_Inputs!DYV7","v":0},{"$f":"F_Inputs!DYW7","v":0},{"$f":"F_Inputs!DYX7","v":0},{"$f":"F_Inputs!DYY7","v":0},{"$f":"F_Inputs!DYZ7","v":0},{"$f":"F_Inputs!DZA7","v":0},{"$f":"F_Inputs!DZB7","v":0},{"$f":"F_Inputs!DZC7","v":0},{"$f":"F_Inputs!DZD7","v":0},{"$f":"F_Inputs!DZE7","v":0},{"$f":"F_Inputs!DZF7","v":0},{"$f":"F_Inputs!DZG7","v":0},{"$f":"F_Inputs!DZH7","v":0},{"$f":"F_Inputs!DZI7","v":0},{"$f":"F_Inputs!DZJ7","v":0},{"$f":"F_Inputs!DZK7","v":0},{"$f":"F_Inputs!DZL7","v":0},{"$f":"F_Inputs!DZM7","v":0},{"$f":"F_Inputs!DZN7","v":0},{"$f":"F_Inputs!DZO7","v":0},{"$f":"F_Inputs!DZP7","v":0},{"$f":"F_Inputs!DZQ7","v":0},{"$f":"F_Inputs!DZR7","v":0},{"$f":"F_Inputs!DZS7","v":0},{"$f":"F_Inputs!DZT7","v":0},{"$f":"F_Inputs!DZU7","v":0},{"$f":"F_Inputs!DZV7","v":0},{"$f":"F_Inputs!DZW7","v":0},{"$f":"F_Inputs!DZX7","v":0},{"$f":"F_Inputs!DZY7","v":0},{"$f":"F_Inputs!DZZ7","v":0},{"$f":"F_Inputs!EAA7","v":0},{"$f":"F_Inputs!EAB7","v":0},{"$f":"F_Inputs!EAC7","v":0},{"$f":"F_Inputs!EAD7","v":0},{"$f":"F_Inputs!EAE7","v":0},{"$f":"F_Inputs!EAF7","v":0},{"$f":"F_Inputs!EAG7","v":0},{"$f":"F_Inputs!EAH7","v":0},{"$f":"F_Inputs!EAI7","v":0},{"$f":"F_Inputs!EAJ7","v":0},{"$f":"F_Inputs!EAK7","v":0},{"$f":"F_Inputs!EAL7","v":0},{"$f":"F_Inputs!EAM7","v":0},{"$f":"F_Inputs!EAN7","v":0},{"$f":"F_Inputs!EAO7","v":0},{"$f":"F_Inputs!EAP7","v":0},{"$f":"F_Inputs!EAQ7","v":0},{"$f":"F_Inputs!EAR7","v":0},{"$f":"F_Inputs!EAS7","v":0},{"$f":"F_Inputs!EAT7","v":0},{"$f":"F_Inputs!EAU7","v":0},{"$f":"F_Inputs!EAV7","v":0},{"$f":"F_Inputs!EAW7","v":0},{"$f":"F_Inputs!EAX7","v":0},{"$f":"F_Inputs!EAY7","v":0},{"$f":"F_Inputs!EAZ7","v":0},{"$f":"F_Inputs!EBA7","v":0},{"$f":"F_Inputs!EBB7","v":0},{"$f":"F_Inputs!EBC7","v":0},{"$f":"F_Inputs!EBD7","v":0},{"$f":"F_Inputs!EBE7","v":0},{"$f":"F_Inputs!EBF7","v":0},{"$f":"F_Inputs!EBG7","v":0},{"$f":"F_Inputs!EBH7","v":0},{"$f":"F_Inputs!EBI7","v":0},{"$f":"F_Inputs!EBJ7","v":0},{"$f":"F_Inputs!EBK7","v":0},{"$f":"F_Inputs!EBL7","v":0},{"$f":"F_Inputs!EBM7","v":0},{"$f":"F_Inputs!EBN7","v":0},{"$f":"F_Inputs!EBO7","v":0},{"$f":"F_Inputs!EBP7","v":0},{"$f":"F_Inputs!EBQ7","v":0},{"$f":"F_Inputs!EBR7","v":0},{"$f":"F_Inputs!EBS7","v":0},{"$f":"F_Inputs!EBT7","v":0},{"$f":"F_Inputs!EBU7","v":0},{"$f":"F_Inputs!EBV7","v":0},{"$f":"F_Inputs!EBW7","v":0},{"$f":"F_Inputs!EBX7","v":0},{"$f":"F_Inputs!EBY7","v":0},{"$f":"F_Inputs!EBZ7","v":0},{"$f":"F_Inputs!ECA7","v":0},{"$f":"F_Inputs!ECB7","v":0},{"$f":"F_Inputs!ECC7","v":0},{"$f":"F_Inputs!ECD7","v":0},{"$f":"F_Inputs!ECE7","v":0},{"$f":"F_Inputs!ECF7","v":0},{"$f":"F_Inputs!ECG7","v":0},{"$f":"F_Inputs!ECH7","v":0},{"$f":"F_Inputs!ECI7","v":0},{"$f":"F_Inputs!ECJ7","v":0},{"$f":"F_Inputs!ECK7","v":0},{"$f":"F_Inputs!ECL7","v":0},{"$f":"F_Inputs!ECM7","v":0},{"$f":"F_Inputs!ECN7","v":0},{"$f":"F_Inputs!ECO7","v":0},{"$f":"F_Inputs!ECP7","v":0},{"$f":"F_Inputs!ECQ7","v":0},{"$f":"F_Inputs!ECR7","v":0},{"$f":"F_Inputs!ECS7","v":0},{"$f":"F_Inputs!ECT7","v":0},{"$f":"F_Inputs!ECU7","v":0},{"$f":"F_Inputs!ECV7","v":0},{"$f":"F_Inputs!ECW7","v":0},{"$f":"F_Inputs!ECX7","v":0},{"$f":"F_Inputs!ECY7","v":0},{"$f":"F_Inputs!ECZ7","v":0},{"$f":"F_Inputs!EDA7","v":0},{"$f":"F_Inputs!EDB7","v":0},{"$f":"F_Inputs!EDC7","v":0},{"$f":"F_Inputs!EDD7","v":0},{"$f":"F_Inputs!EDE7","v":0},{"$f":"F_Inputs!EDF7","v":0},{"$f":"F_Inputs!EDG7","v":0},{"$f":"F_Inputs!EDH7","v":0},{"$f":"F_Inputs!EDI7","v":0},{"$f":"F_Inputs!EDJ7","v":0},{"$f":"F_Inputs!EDK7","v":0},{"$f":"F_Inputs!EDL7","v":0},{"$f":"F_Inputs!EDM7","v":0},{"$f":"F_Inputs!EDN7","v":0},{"$f":"F_Inputs!EDO7","v":0},{"$f":"F_Inputs!EDP7","v":0},{"$f":"F_Inputs!EDQ7","v":0},{"$f":"F_Inputs!EDR7","v":0},{"$f":"F_Inputs!EDS7","v":0},{"$f":"F_Inputs!EDT7","v":0},{"$f":"F_Inputs!EDU7","v":0},{"$f":"F_Inputs!EDV7","v":0},{"$f":"F_Inputs!EDW7","v":0},{"$f":"F_Inputs!EDX7","v":0},{"$f":"F_Inputs!EDY7","v":0},{"$f":"F_Inputs!EDZ7","v":0},{"$f":"F_Inputs!EEA7","v":0},{"$f":"F_Inputs!EEB7","v":0},{"$f":"F_Inputs!EEC7","v":0},{"$f":"F_Inputs!EED7","v":0},{"$f":"F_Inputs!EEE7","v":0},{"$f":"F_Inputs!EEF7","v":0},{"$f":"F_Inputs!EEG7","v":0},{"$f":"F_Inputs!EEH7","v":0},{"$f":"F_Inputs!EEI7","v":0},{"$f":"F_Inputs!EEJ7","v":0},{"$f":"F_Inputs!EEK7","v":0},{"$f":"F_Inputs!EEL7","v":0},{"$f":"F_Inputs!EEM7","v":0},{"$f":"F_Inputs!EEN7","v":0},{"$f":"F_Inputs!EEO7","v":0},{"$f":"F_Inputs!EEP7","v":0},{"$f":"F_Inputs!EEQ7","v":0},{"$f":"F_Inputs!EER7","v":0},{"$f":"F_Inputs!EES7","v":0},{"$f":"F_Inputs!EET7","v":0},{"$f":"F_Inputs!EEU7","v":0},{"$f":"F_Inputs!EEV7","v":0},{"$f":"F_Inputs!EEW7","v":0},{"$f":"F_Inputs!EEX7","v":0},{"$f":"F_Inputs!EEY7","v":0},{"$f":"F_Inputs!EEZ7","v":0},{"$f":"F_Inputs!EFA7","v":0},{"$f":"F_Inputs!EFB7","v":0},{"$f":"F_Inputs!EFC7","v":0},{"$f":"F_Inputs!EFD7","v":0},{"$f":"F_Inputs!EFE7","v":0},{"$f":"F_Inputs!EFF7","v":0},{"$f":"F_Inputs!EFG7","v":0},{"$f":"F_Inputs!EFH7","v":0},{"$f":"F_Inputs!EFI7","v":0},{"$f":"F_Inputs!EFJ7","v":0},{"$f":"F_Inputs!EFK7","v":0},{"$f":"F_Inputs!EFL7","v":0},{"$f":"F_Inputs!EFM7","v":0},{"$f":"F_Inputs!EFN7","v":0},{"$f":"F_Inputs!EFO7","v":0},{"$f":"F_Inputs!EFP7","v":0},{"$f":"F_Inputs!EFQ7","v":0},{"$f":"F_Inputs!EFR7","v":0},{"$f":"F_Inputs!EFS7","v":0},{"$f":"F_Inputs!EFT7","v":0},{"$f":"F_Inputs!EFU7","v":0},{"$f":"F_Inputs!EFV7","v":0},{"$f":"F_Inputs!EFW7","v":0},{"$f":"F_Inputs!EFX7","v":0},{"$f":"F_Inputs!EFY7","v":0},{"$f":"F_Inputs!EFZ7","v":0},{"$f":"F_Inputs!EGA7","v":0},{"$f":"F_Inputs!EGB7","v":0},{"$f":"F_Inputs!EGC7","v":0},{"$f":"F_Inputs!EGD7","v":0},{"$f":"F_Inputs!EGE7","v":0},{"$f":"F_Inputs!EGF7","v":0},{"$f":"F_Inputs!EGG7","v":0},{"$f":"F_Inputs!EGH7","v":0},{"$f":"F_Inputs!EGI7","v":0},{"$f":"F_Inputs!EGJ7","v":0},{"$f":"F_Inputs!EGK7","v":0},{"$f":"F_Inputs!EGL7","v":0},{"$f":"F_Inputs!EGM7","v":0},{"$f":"F_Inputs!EGN7","v":0},{"$f":"F_Inputs!EGO7","v":0},{"$f":"F_Inputs!EGP7","v":0},{"$f":"F_Inputs!EGQ7","v":0},{"$f":"F_Inputs!EGR7","v":0},{"$f":"F_Inputs!EGS7","v":0},{"$f":"F_Inputs!EGT7","v":0},{"$f":"F_Inputs!EGU7","v":0},{"$f":"F_Inputs!EGV7","v":0},{"$f":"F_Inputs!EGW7","v":0},{"$f":"F_Inputs!EGX7","v":0},{"$f":"F_Inputs!EGY7","v":0},{"$f":"F_Inputs!EGZ7","v":0},{"$f":"F_Inputs!EHA7","v":0},{"$f":"F_Inputs!EHB7","v":0},{"$f":"F_Inputs!EHC7","v":0},{"$f":"F_Inputs!EHD7","v":0},{"$f":"F_Inputs!EHE7","v":0},{"$f":"F_Inputs!EHF7","v":0},{"$f":"F_Inputs!EHG7","v":0},{"$f":"F_Inputs!EHH7","v":0},{"$f":"F_Inputs!EHI7","v":0},{"$f":"F_Inputs!EHJ7","v":0},{"$f":"F_Inputs!EHK7","v":0},{"$f":"F_Inputs!EHL7","v":0},{"$f":"F_Inputs!EHM7","v":0},{"$f":"F_Inputs!EHN7","v":0},{"$f":"F_Inputs!EHO7","v":0},{"$f":"F_Inputs!EHP7","v":0},{"$f":"F_Inputs!EHQ7","v":0},{"$f":"F_Inputs!EHR7","v":0},{"$f":"F_Inputs!EHS7","v":0},{"$f":"F_Inputs!EHT7","v":0},{"$f":"F_Inputs!EHU7","v":0},{"$f":"F_Inputs!EHV7","v":0},{"$f":"F_Inputs!EHW7","v":0},{"$f":"F_Inputs!EHX7","v":0},{"$f":"F_Inputs!EHY7","v":0},{"$f":"F_Inputs!EHZ7","v":0},{"$f":"F_Inputs!EIA7","v":0},{"$f":"F_Inputs!EIB7","v":0},{"$f":"F_Inputs!EIC7","v":0},{"$f":"F_Inputs!EID7","v":0},{"$f":"F_Inputs!EIE7","v":0},{"$f":"F_Inputs!EIF7","v":0},{"$f":"F_Inputs!EIG7","v":0},{"$f":"F_Inputs!EIH7","v":0},{"$f":"F_Inputs!EII7","v":0},{"$f":"F_Inputs!EIJ7","v":0},{"$f":"F_Inputs!EIK7","v":0},{"$f":"F_Inputs!EIL7","v":0},{"$f":"F_Inputs!EIM7","v":0},{"$f":"F_Inputs!EIN7","v":0},{"$f":"F_Inputs!EIO7","v":0},{"$f":"F_Inputs!EIP7","v":0},{"$f":"F_Inputs!EIQ7","v":0},{"$f":"F_Inputs!EIR7","v":0},{"$f":"F_Inputs!EIS7","v":0},{"$f":"F_Inputs!EIT7","v":0},{"$f":"F_Inputs!EIU7","v":0},{"$f":"F_Inputs!EIV7","v":0},{"$f":"F_Inputs!EIW7","v":0},{"$f":"F_Inputs!EIX7","v":0},{"$f":"F_Inputs!EIY7","v":0},{"$f":"F_Inputs!EIZ7","v":0},{"$f":"F_Inputs!EJA7","v":0},{"$f":"F_Inputs!EJB7","v":0},{"$f":"F_Inputs!EJC7","v":0},{"$f":"F_Inputs!EJD7","v":0},{"$f":"F_Inputs!EJE7","v":0},{"$f":"F_Inputs!EJF7","v":0},{"$f":"F_Inputs!EJG7","v":0},{"$f":"F_Inputs!EJH7","v":0},{"$f":"F_Inputs!EJI7","v":0},{"$f":"F_Inputs!EJJ7","v":0},{"$f":"F_Inputs!EJK7","v":0},{"$f":"F_Inputs!EJL7","v":0},{"$f":"F_Inputs!EJM7","v":0},{"$f":"F_Inputs!EJN7","v":0},{"$f":"F_Inputs!EJO7","v":0},{"$f":"F_Inputs!EJP7","v":0},{"$f":"F_Inputs!EJQ7","v":0},{"$f":"F_Inputs!EJR7","v":0},{"$f":"F_Inputs!EJS7","v":0},{"$f":"F_Inputs!EJT7","v":0},{"$f":"F_Inputs!EJU7","v":0},{"$f":"F_Inputs!EJV7","v":0},{"$f":"F_Inputs!EJW7","v":0},{"$f":"F_Inputs!EJX7","v":0},{"$f":"F_Inputs!EJY7","v":0},{"$f":"F_Inputs!EJZ7","v":0},{"$f":"F_Inputs!EKA7","v":0},{"$f":"F_Inputs!EKB7","v":0},{"$f":"F_Inputs!EKC7","v":0},{"$f":"F_Inputs!EKD7","v":0},{"$f":"F_Inputs!EKE7","v":0},{"$f":"F_Inputs!EKF7","v":0},{"$f":"F_Inputs!EKG7","v":0},{"$f":"F_Inputs!EKH7","v":0},{"$f":"F_Inputs!EKI7","v":0},{"$f":"F_Inputs!EKJ7","v":0},{"$f":"F_Inputs!EKK7","v":0},{"$f":"F_Inputs!EKL7","v":0},{"$f":"F_Inputs!EKM7","v":0},{"$f":"F_Inputs!EKN7","v":0},{"$f":"F_Inputs!EKO7","v":0},{"$f":"F_Inputs!EKP7","v":0},{"$f":"F_Inputs!EKQ7","v":0},{"$f":"F_Inputs!EKR7","v":0},{"$f":"F_Inputs!EKS7","v":0},{"$f":"F_Inputs!EKT7","v":0},{"$f":"F_Inputs!EKU7","v":0},{"$f":"F_Inputs!EKV7","v":0},{"$f":"F_Inputs!EKW7","v":0},{"$f":"F_Inputs!EKX7","v":0},{"$f":"F_Inputs!EKY7","v":0},{"$f":"F_Inputs!EKZ7","v":0},{"$f":"F_Inputs!ELA7","v":0},{"$f":"F_Inputs!ELB7","v":0},{"$f":"F_Inputs!ELC7","v":0},{"$f":"F_Inputs!ELD7","v":0},{"$f":"F_Inputs!ELE7","v":0},{"$f":"F_Inputs!ELF7","v":0},{"$f":"F_Inputs!ELG7","v":0},{"$f":"F_Inputs!ELH7","v":0},{"$f":"F_Inputs!ELI7","v":0},{"$f":"F_Inputs!ELJ7","v":0},{"$f":"F_Inputs!ELK7","v":0},{"$f":"F_Inputs!ELL7","v":0},{"$f":"F_Inputs!ELM7","v":0},{"$f":"F_Inputs!ELN7","v":0},{"$f":"F_Inputs!ELO7","v":0},{"$f":"F_Inputs!ELP7","v":0},{"$f":"F_Inputs!ELQ7","v":0},{"$f":"F_Inputs!ELR7","v":0},{"$f":"F_Inputs!ELS7","v":0},{"$f":"F_Inputs!ELT7","v":0},{"$f":"F_Inputs!ELU7","v":0},{"$f":"F_Inputs!ELV7","v":0},{"$f":"F_Inputs!ELW7","v":0},{"$f":"F_Inputs!ELX7","v":0},{"$f":"F_Inputs!ELY7","v":0},{"$f":"F_Inputs!ELZ7","v":0},{"$f":"F_Inputs!EMA7","v":0},{"$f":"F_Inputs!EMB7","v":0},{"$f":"F_Inputs!EMC7","v":0},{"$f":"F_Inputs!EMD7","v":0},{"$f":"F_Inputs!EME7","v":0},{"$f":"F_Inputs!EMF7","v":0},{"$f":"F_Inputs!EMG7","v":0},{"$f":"F_Inputs!EMH7","v":0},{"$f":"F_Inputs!EMI7","v":0},{"$f":"F_Inputs!EMJ7","v":0},{"$f":"F_Inputs!EMK7","v":0},{"$f":"F_Inputs!EML7","v":0},{"$f":"F_Inputs!EMM7","v":0},{"$f":"F_Inputs!EMN7","v":0},{"$f":"F_Inputs!EMO7","v":0},{"$f":"F_Inputs!EMP7","v":0},{"$f":"F_Inputs!EMQ7","v":0},{"$f":"F_Inputs!EMR7","v":0},{"$f":"F_Inputs!EMS7","v":0},{"$f":"F_Inputs!EMT7","v":0},{"$f":"F_Inputs!EMU7","v":0},{"$f":"F_Inputs!EMV7","v":0},{"$f":"F_Inputs!EMW7","v":0},{"$f":"F_Inputs!EMX7","v":0},{"$f":"F_Inputs!EMY7","v":0},{"$f":"F_Inputs!EMZ7","v":0},{"$f":"F_Inputs!ENA7","v":0},{"$f":"F_Inputs!ENB7","v":0},{"$f":"F_Inputs!ENC7","v":0},{"$f":"F_Inputs!END7","v":0},{"$f":"F_Inputs!ENE7","v":0},{"$f":"F_Inputs!ENF7","v":0},{"$f":"F_Inputs!ENG7","v":0},{"$f":"F_Inputs!ENH7","v":0},{"$f":"F_Inputs!ENI7","v":0},{"$f":"F_Inputs!ENJ7","v":0},{"$f":"F_Inputs!ENK7","v":0},{"$f":"F_Inputs!ENL7","v":0},{"$f":"F_Inputs!ENM7","v":0},{"$f":"F_Inputs!ENN7","v":0},{"$f":"F_Inputs!ENO7","v":0},{"$f":"F_Inputs!ENP7","v":0},{"$f":"F_Inputs!ENQ7","v":0},{"$f":"F_Inputs!ENR7","v":0},{"$f":"F_Inputs!ENS7","v":0},{"$f":"F_Inputs!ENT7","v":0},{"$f":"F_Inputs!ENU7","v":0},{"$f":"F_Inputs!ENV7","v":0},{"$f":"F_Inputs!ENW7","v":0},{"$f":"F_Inputs!ENX7","v":0},{"$f":"F_Inputs!ENY7","v":0},{"$f":"F_Inputs!ENZ7","v":0},{"$f":"F_Inputs!EOA7","v":0},{"$f":"F_Inputs!EOB7","v":0},{"$f":"F_Inputs!EOC7","v":0},{"$f":"F_Inputs!EOD7","v":0},{"$f":"F_Inputs!EOE7","v":0},{"$f":"F_Inputs!EOF7","v":0},{"$f":"F_Inputs!EOG7","v":0},{"$f":"F_Inputs!EOH7","v":0},{"$f":"F_Inputs!EOI7","v":0},{"$f":"F_Inputs!EOJ7","v":0},{"$f":"F_Inputs!EOK7","v":0},{"$f":"F_Inputs!EOL7","v":0},{"$f":"F_Inputs!EOM7","v":0},{"$f":"F_Inputs!EON7","v":0},{"$f":"F_Inputs!EOO7","v":0},{"$f":"F_Inputs!EOP7","v":0},{"$f":"F_Inputs!EOQ7","v":0},{"$f":"F_Inputs!EOR7","v":0},{"$f":"F_Inputs!EOS7","v":0},{"$f":"F_Inputs!EOT7","v":0},{"$f":"F_Inputs!EOU7","v":0},{"$f":"F_Inputs!EOV7","v":0},{"$f":"F_Inputs!EOW7","v":0},{"$f":"F_Inputs!EOX7","v":0},{"$f":"F_Inputs!EOY7","v":0},{"$f":"F_Inputs!EOZ7","v":0},{"$f":"F_Inputs!EPA7","v":0},{"$f":"F_Inputs!EPB7","v":0},{"$f":"F_Inputs!EPC7","v":0},{"$f":"F_Inputs!EPD7","v":0},{"$f":"F_Inputs!EPE7","v":0},{"$f":"F_Inputs!EPF7","v":0},{"$f":"F_Inputs!EPG7","v":0},{"$f":"F_Inputs!EPH7","v":0},{"$f":"F_Inputs!EPI7","v":0},{"$f":"F_Inputs!EPJ7","v":0},{"$f":"F_Inputs!EPK7","v":0},{"$f":"F_Inputs!EPL7","v":0},{"$f":"F_Inputs!EPM7","v":0},{"$f":"F_Inputs!EPN7","v":0},{"$f":"F_Inputs!EPO7","v":0},{"$f":"F_Inputs!EPP7","v":0},{"$f":"F_Inputs!EPQ7","v":0},{"$f":"F_Inputs!EPR7","v":0},{"$f":"F_Inputs!EPS7","v":0},{"$f":"F_Inputs!EPT7","v":0},{"$f":"F_Inputs!EPU7","v":0},{"$f":"F_Inputs!EPV7","v":0},{"$f":"F_Inputs!EPW7","v":0},{"$f":"F_Inputs!EPX7","v":0},{"$f":"F_Inputs!EPY7","v":0},{"$f":"F_Inputs!EPZ7","v":0},{"$f":"F_Inputs!EQA7","v":0},{"$f":"F_Inputs!EQB7","v":0},{"$f":"F_Inputs!EQC7","v":0},{"$f":"F_Inputs!EQD7","v":0},{"$f":"F_Inputs!EQE7","v":0},{"$f":"F_Inputs!EQF7","v":0},{"$f":"F_Inputs!EQG7","v":0},{"$f":"F_Inputs!EQH7","v":0},{"$f":"F_Inputs!EQI7","v":0},{"$f":"F_Inputs!EQJ7","v":0},{"$f":"F_Inputs!EQK7","v":0},{"$f":"F_Inputs!EQL7","v":0},{"$f":"F_Inputs!EQM7","v":0},{"$f":"F_Inputs!EQN7","v":0},{"$f":"F_Inputs!EQO7","v":0},{"$f":"F_Inputs!EQP7","v":0},{"$f":"F_Inputs!EQQ7","v":0},{"$f":"F_Inputs!EQR7","v":0},{"$f":"F_Inputs!EQS7","v":0},{"$f":"F_Inputs!EQT7","v":0},{"$f":"F_Inputs!EQU7","v":0},{"$f":"F_Inputs!EQV7","v":0},{"$f":"F_Inputs!EQW7","v":0},{"$f":"F_Inputs!EQX7","v":0},{"$f":"F_Inputs!EQY7","v":0},{"$f":"F_Inputs!EQZ7","v":0},{"$f":"F_Inputs!ERA7","v":0},{"$f":"F_Inputs!ERB7","v":0},{"$f":"F_Inputs!ERC7","v":0},{"$f":"F_Inputs!ERD7","v":0},{"$f":"F_Inputs!ERE7","v":0},{"$f":"F_Inputs!ERF7","v":0},{"$f":"F_Inputs!ERG7","v":0},{"$f":"F_Inputs!ERH7","v":0},{"$f":"F_Inputs!ERI7","v":0},{"$f":"F_Inputs!ERJ7","v":0},{"$f":"F_Inputs!ERK7","v":0},{"$f":"F_Inputs!ERL7","v":0},{"$f":"F_Inputs!ERM7","v":0},{"$f":"F_Inputs!ERN7","v":0},{"$f":"F_Inputs!ERO7","v":0},{"$f":"F_Inputs!ERP7","v":0},{"$f":"F_Inputs!ERQ7","v":0},{"$f":"F_Inputs!ERR7","v":0},{"$f":"F_Inputs!ERS7","v":0},{"$f":"F_Inputs!ERT7","v":0},{"$f":"F_Inputs!ERU7","v":0},{"$f":"F_Inputs!ERV7","v":0},{"$f":"F_Inputs!ERW7","v":0},{"$f":"F_Inputs!ERX7","v":0},{"$f":"F_Inputs!ERY7","v":0},{"$f":"F_Inputs!ERZ7","v":0},{"$f":"F_Inputs!ESA7","v":0},{"$f":"F_Inputs!ESB7","v":0},{"$f":"F_Inputs!ESC7","v":0},{"$f":"F_Inputs!ESD7","v":0},{"$f":"F_Inputs!ESE7","v":0},{"$f":"F_Inputs!ESF7","v":0},{"$f":"F_Inputs!ESG7","v":0},{"$f":"F_Inputs!ESH7","v":0},{"$f":"F_Inputs!ESI7","v":0},{"$f":"F_Inputs!ESJ7","v":0},{"$f":"F_Inputs!ESK7","v":0},{"$f":"F_Inputs!ESL7","v":0},{"$f":"F_Inputs!ESM7","v":0},{"$f":"F_Inputs!ESN7","v":0},{"$f":"F_Inputs!ESO7","v":0},{"$f":"F_Inputs!ESP7","v":0},{"$f":"F_Inputs!ESQ7","v":0},{"$f":"F_Inputs!ESR7","v":0},{"$f":"F_Inputs!ESS7","v":0},{"$f":"F_Inputs!EST7","v":0},{"$f":"F_Inputs!ESU7","v":0},{"$f":"F_Inputs!ESV7","v":0},{"$f":"F_Inputs!ESW7","v":0},{"$f":"F_Inputs!ESX7","v":0},{"$f":"F_Inputs!ESY7","v":0},{"$f":"F_Inputs!ESZ7","v":0},{"$f":"F_Inputs!ETA7","v":0},{"$f":"F_Inputs!ETB7","v":0},{"$f":"F_Inputs!ETC7","v":0},{"$f":"F_Inputs!ETD7","v":0},{"$f":"F_Inputs!ETE7","v":0},{"$f":"F_Inputs!ETF7","v":0},{"$f":"F_Inputs!ETG7","v":0},{"$f":"F_Inputs!ETH7","v":0},{"$f":"F_Inputs!ETI7","v":0},{"$f":"F_Inputs!ETJ7","v":0},{"$f":"F_Inputs!ETK7","v":0},{"$f":"F_Inputs!ETL7","v":0},{"$f":"F_Inputs!ETM7","v":0},{"$f":"F_Inputs!ETN7","v":0},{"$f":"F_Inputs!ETO7","v":0},{"$f":"F_Inputs!ETP7","v":0},{"$f":"F_Inputs!ETQ7","v":0},{"$f":"F_Inputs!ETR7","v":0},{"$f":"F_Inputs!ETS7","v":0},{"$f":"F_Inputs!ETT7","v":0},{"$f":"F_Inputs!ETU7","v":0},{"$f":"F_Inputs!ETV7","v":0},{"$f":"F_Inputs!ETW7","v":0},{"$f":"F_Inputs!ETX7","v":0},{"$f":"F_Inputs!ETY7","v":0},{"$f":"F_Inputs!ETZ7","v":0},{"$f":"F_Inputs!EUA7","v":0},{"$f":"F_Inputs!EUB7","v":0},{"$f":"F_Inputs!EUC7","v":0},{"$f":"F_Inputs!EUD7","v":0},{"$f":"F_Inputs!EUE7","v":0},{"$f":"F_Inputs!EUF7","v":0},{"$f":"F_Inputs!EUG7","v":0},{"$f":"F_Inputs!EUH7","v":0},{"$f":"F_Inputs!EUI7","v":0},{"$f":"F_Inputs!EUJ7","v":0},{"$f":"F_Inputs!EUK7","v":0},{"$f":"F_Inputs!EUL7","v":0},{"$f":"F_Inputs!EUM7","v":0},{"$f":"F_Inputs!EUN7","v":0},{"$f":"F_Inputs!EUO7","v":0},{"$f":"F_Inputs!EUP7","v":0},{"$f":"F_Inputs!EUQ7","v":0},{"$f":"F_Inputs!EUR7","v":0},{"$f":"F_Inputs!EUS7","v":0},{"$f":"F_Inputs!EUT7","v":0},{"$f":"F_Inputs!EUU7","v":0},{"$f":"F_Inputs!EUV7","v":0},{"$f":"F_Inputs!EUW7","v":0},{"$f":"F_Inputs!EUX7","v":0},{"$f":"F_Inputs!EUY7","v":0},{"$f":"F_Inputs!EUZ7","v":0},{"$f":"F_Inputs!EVA7","v":0},{"$f":"F_Inputs!EVB7","v":0},{"$f":"F_Inputs!EVC7","v":0},{"$f":"F_Inputs!EVD7","v":0},{"$f":"F_Inputs!EVE7","v":0},{"$f":"F_Inputs!EVF7","v":0},{"$f":"F_Inputs!EVG7","v":0},{"$f":"F_Inputs!EVH7","v":0},{"$f":"F_Inputs!EVI7","v":0},{"$f":"F_Inputs!EVJ7","v":0},{"$f":"F_Inputs!EVK7","v":0},{"$f":"F_Inputs!EVL7","v":0},{"$f":"F_Inputs!EVM7","v":0},{"$f":"F_Inputs!EVN7","v":0},{"$f":"F_Inputs!EVO7","v":0},{"$f":"F_Inputs!EVP7","v":0},{"$f":"F_Inputs!EVQ7","v":0},{"$f":"F_Inputs!EVR7","v":0},{"$f":"F_Inputs!EVS7","v":0},{"$f":"F_Inputs!EVT7","v":0},{"$f":"F_Inputs!EVU7","v":0},{"$f":"F_Inputs!EVV7","v":0},{"$f":"F_Inputs!EVW7","v":0},{"$f":"F_Inputs!EVX7","v":0},{"$f":"F_Inputs!EVY7","v":0},{"$f":"F_Inputs!EVZ7","v":0},{"$f":"F_Inputs!EWA7","v":0},{"$f":"F_Inputs!EWB7","v":0},{"$f":"F_Inputs!EWC7","v":0},{"$f":"F_Inputs!EWD7","v":0},{"$f":"F_Inputs!EWE7","v":0},{"$f":"F_Inputs!EWF7","v":0},{"$f":"F_Inputs!EWG7","v":0},{"$f":"F_Inputs!EWH7","v":0},{"$f":"F_Inputs!EWI7","v":0},{"$f":"F_Inputs!EWJ7","v":0},{"$f":"F_Inputs!EWK7","v":0},{"$f":"F_Inputs!EWL7","v":0},{"$f":"F_Inputs!EWM7","v":0},{"$f":"F_Inputs!EWN7","v":0},{"$f":"F_Inputs!EWO7","v":0},{"$f":"F_Inputs!EWP7","v":0},{"$f":"F_Inputs!EWQ7","v":0},{"$f":"F_Inputs!EWR7","v":0},{"$f":"F_Inputs!EWS7","v":0},{"$f":"F_Inputs!EWT7","v":0},{"$f":"F_Inputs!EWU7","v":0},{"$f":"F_Inputs!EWV7","v":0},{"$f":"F_Inputs!EWW7","v":0},{"$f":"F_Inputs!EWX7","v":0},{"$f":"F_Inputs!EWY7","v":0},{"$f":"F_Inputs!EWZ7","v":0},{"$f":"F_Inputs!EXA7","v":0},{"$f":"F_Inputs!EXB7","v":0},{"$f":"F_Inputs!EXC7","v":0},{"$f":"F_Inputs!EXD7","v":0},{"$f":"F_Inputs!EXE7","v":0},{"$f":"F_Inputs!EXF7","v":0},{"$f":"F_Inputs!EXG7","v":0},{"$f":"F_Inputs!EXH7","v":0},{"$f":"F_Inputs!EXI7","v":0},{"$f":"F_Inputs!EXJ7","v":0},{"$f":"F_Inputs!EXK7","v":0},{"$f":"F_Inputs!EXL7","v":0},{"$f":"F_Inputs!EXM7","v":0},{"$f":"F_Inputs!EXN7","v":0},{"$f":"F_Inputs!EXO7","v":0},{"$f":"F_Inputs!EXP7","v":0},{"$f":"F_Inputs!EXQ7","v":0},{"$f":"F_Inputs!EXR7","v":0},{"$f":"F_Inputs!EXS7","v":0},{"$f":"F_Inputs!EXT7","v":0},{"$f":"F_Inputs!EXU7","v":0},{"$f":"F_Inputs!EXV7","v":0},{"$f":"F_Inputs!EXW7","v":0},{"$f":"F_Inputs!EXX7","v":0},{"$f":"F_Inputs!EXY7","v":0},{"$f":"F_Inputs!EXZ7","v":0},{"$f":"F_Inputs!EYA7","v":0},{"$f":"F_Inputs!EYB7","v":0},{"$f":"F_Inputs!EYC7","v":0},{"$f":"F_Inputs!EYD7","v":0},{"$f":"F_Inputs!EYE7","v":0},{"$f":"F_Inputs!EYF7","v":0},{"$f":"F_Inputs!EYG7","v":0},{"$f":"F_Inputs!EYH7","v":0},{"$f":"F_Inputs!EYI7","v":0},{"$f":"F_Inputs!EYJ7","v":0},{"$f":"F_Inputs!EYK7","v":0},{"$f":"F_Inputs!EYL7","v":0},{"$f":"F_Inputs!EYM7","v":0},{"$f":"F_Inputs!EYN7","v":0},{"$f":"F_Inputs!EYO7","v":0},{"$f":"F_Inputs!EYP7","v":0},{"$f":"F_Inputs!EYQ7","v":0},{"$f":"F_Inputs!EYR7","v":0},{"$f":"F_Inputs!EYS7","v":0},{"$f":"F_Inputs!EYT7","v":0},{"$f":"F_Inputs!EYU7","v":0},{"$f":"F_Inputs!EYV7","v":0},{"$f":"F_Inputs!EYW7","v":0},{"$f":"F_Inputs!EYX7","v":0},{"$f":"F_Inputs!EYY7","v":0},{"$f":"F_Inputs!EYZ7","v":0},{"$f":"F_Inputs!EZA7","v":0},{"$f":"F_Inputs!EZB7","v":0},{"$f":"F_Inputs!EZC7","v":0},{"$f":"F_Inputs!EZD7","v":0},{"$f":"F_Inputs!EZE7","v":0},{"$f":"F_Inputs!EZF7","v":0},{"$f":"F_Inputs!EZG7","v":0},{"$f":"F_Inputs!EZH7","v":0},{"$f":"F_Inputs!EZI7","v":0},{"$f":"F_Inputs!EZJ7","v":0},{"$f":"F_Inputs!EZK7","v":0},{"$f":"F_Inputs!EZL7","v":0},{"$f":"F_Inputs!EZM7","v":0},{"$f":"F_Inputs!EZN7","v":0},{"$f":"F_Inputs!EZO7","v":0},{"$f":"F_Inputs!EZP7","v":0},{"$f":"F_Inputs!EZQ7","v":0},{"$f":"F_Inputs!EZR7","v":0},{"$f":"F_Inputs!EZS7","v":0},{"$f":"F_Inputs!EZT7","v":0},{"$f":"F_Inputs!EZU7","v":0},{"$f":"F_Inputs!EZV7","v":0},{"$f":"F_Inputs!EZW7","v":0},{"$f":"F_Inputs!EZX7","v":0},{"$f":"F_Inputs!EZY7","v":0},{"$f":"F_Inputs!EZZ7","v":0},{"$f":"F_Inputs!FAA7","v":0},{"$f":"F_Inputs!FAB7","v":0},{"$f":"F_Inputs!FAC7","v":0},{"$f":"F_Inputs!FAD7","v":0},{"$f":"F_Inputs!FAE7","v":0},{"$f":"F_Inputs!FAF7","v":0},{"$f":"F_Inputs!FAG7","v":0},{"$f":"F_Inputs!FAH7","v":0},{"$f":"F_Inputs!FAI7","v":0},{"$f":"F_Inputs!FAJ7","v":0},{"$f":"F_Inputs!FAK7","v":0},{"$f":"F_Inputs!FAL7","v":0},{"$f":"F_Inputs!FAM7","v":0},{"$f":"F_Inputs!FAN7","v":0},{"$f":"F_Inputs!FAO7","v":0},{"$f":"F_Inputs!FAP7","v":0},{"$f":"F_Inputs!FAQ7","v":0},{"$f":"F_Inputs!FAR7","v":0},{"$f":"F_Inputs!FAS7","v":0},{"$f":"F_Inputs!FAT7","v":0},{"$f":"F_Inputs!FAU7","v":0},{"$f":"F_Inputs!FAV7","v":0},{"$f":"F_Inputs!FAW7","v":0},{"$f":"F_Inputs!FAX7","v":0},{"$f":"F_Inputs!FAY7","v":0},{"$f":"F_Inputs!FAZ7","v":0},{"$f":"F_Inputs!FBA7","v":0},{"$f":"F_Inputs!FBB7","v":0},{"$f":"F_Inputs!FBC7","v":0},{"$f":"F_Inputs!FBD7","v":0},{"$f":"F_Inputs!FBE7","v":0},{"$f":"F_Inputs!FBF7","v":0},{"$f":"F_Inputs!FBG7","v":0},{"$f":"F_Inputs!FBH7","v":0},{"$f":"F_Inputs!FBI7","v":0},{"$f":"F_Inputs!FBJ7","v":0},{"$f":"F_Inputs!FBK7","v":0},{"$f":"F_Inputs!FBL7","v":0},{"$f":"F_Inputs!FBM7","v":0},{"$f":"F_Inputs!FBN7","v":0},{"$f":"F_Inputs!FBO7","v":0},{"$f":"F_Inputs!FBP7","v":0},{"$f":"F_Inputs!FBQ7","v":0},{"$f":"F_Inputs!FBR7","v":0},{"$f":"F_Inputs!FBS7","v":0},{"$f":"F_Inputs!FBT7","v":0},{"$f":"F_Inputs!FBU7","v":0},{"$f":"F_Inputs!FBV7","v":0},{"$f":"F_Inputs!FBW7","v":0},{"$f":"F_Inputs!FBX7","v":0},{"$f":"F_Inputs!FBY7","v":0},{"$f":"F_Inputs!FBZ7","v":0},{"$f":"F_Inputs!FCA7","v":0},{"$f":"F_Inputs!FCB7","v":0},{"$f":"F_Inputs!FCC7","v":0},{"$f":"F_Inputs!FCD7","v":0},{"$f":"F_Inputs!FCE7","v":0},{"$f":"F_Inputs!FCF7","v":0},{"$f":"F_Inputs!FCG7","v":0},{"$f":"F_Inputs!FCH7","v":0},{"$f":"F_Inputs!FCI7","v":0},{"$f":"F_Inputs!FCJ7","v":0},{"$f":"F_Inputs!FCK7","v":0},{"$f":"F_Inputs!FCL7","v":0},{"$f":"F_Inputs!FCM7","v":0},{"$f":"F_Inputs!FCN7","v":0},{"$f":"F_Inputs!FCO7","v":0},{"$f":"F_Inputs!FCP7","v":0},{"$f":"F_Inputs!FCQ7","v":0},{"$f":"F_Inputs!FCR7","v":0},{"$f":"F_Inputs!FCS7","v":0},{"$f":"F_Inputs!FCT7","v":0},{"$f":"F_Inputs!FCU7","v":0},{"$f":"F_Inputs!FCV7","v":0},{"$f":"F_Inputs!FCW7","v":0},{"$f":"F_Inputs!FCX7","v":0},{"$f":"F_Inputs!FCY7","v":0},{"$f":"F_Inputs!FCZ7","v":0},{"$f":"F_Inputs!FDA7","v":0},{"$f":"F_Inputs!FDB7","v":0},{"$f":"F_Inputs!FDC7","v":0},{"$f":"F_Inputs!FDD7","v":0},{"$f":"F_Inputs!FDE7","v":0},{"$f":"F_Inputs!FDF7","v":0},{"$f":"F_Inputs!FDG7","v":0},{"$f":"F_Inputs!FDH7","v":0},{"$f":"F_Inputs!FDI7","v":0},{"$f":"F_Inputs!FDJ7","v":0},{"$f":"F_Inputs!FDK7","v":0},{"$f":"F_Inputs!FDL7","v":0},{"$f":"F_Inputs!FDM7","v":0},{"$f":"F_Inputs!FDN7","v":0},{"$f":"F_Inputs!FDO7","v":0},{"$f":"F_Inputs!FDP7","v":0},{"$f":"F_Inputs!FDQ7","v":0},{"$f":"F_Inputs!FDR7","v":0},{"$f":"F_Inputs!FDS7","v":0},{"$f":"F_Inputs!FDT7","v":0},{"$f":"F_Inputs!FDU7","v":0},{"$f":"F_Inputs!FDV7","v":0},{"$f":"F_Inputs!FDW7","v":0},{"$f":"F_Inputs!FDX7","v":0},{"$f":"F_Inputs!FDY7","v":0},{"$f":"F_Inputs!FDZ7","v":0},{"$f":"F_Inputs!FEA7","v":0},{"$f":"F_Inputs!FEB7","v":0},{"$f":"F_Inputs!FEC7","v":0},{"$f":"F_Inputs!FED7","v":0},{"$f":"F_Inputs!FEE7","v":0},{"$f":"F_Inputs!FEF7","v":0},{"$f":"F_Inputs!FEG7","v":0},{"$f":"F_Inputs!FEH7","v":0},{"$f":"F_Inputs!FEI7","v":0},{"$f":"F_Inputs!FEJ7","v":0},{"$f":"F_Inputs!FEK7","v":0},{"$f":"F_Inputs!FEL7","v":0},{"$f":"F_Inputs!FEM7","v":0},{"$f":"F_Inputs!FEN7","v":0},{"$f":"F_Inputs!FEO7","v":0},{"$f":"F_Inputs!FEP7","v":0},{"$f":"F_Inputs!FEQ7","v":0},{"$f":"F_Inputs!FER7","v":0},{"$f":"F_Inputs!FES7","v":0},{"$f":"F_Inputs!FET7","v":0},{"$f":"F_Inputs!FEU7","v":0},{"$f":"F_Inputs!FEV7","v":0},{"$f":"F_Inputs!FEW7","v":0},{"$f":"F_Inputs!FEX7","v":0},{"$f":"F_Inputs!FEY7","v":0},{"$f":"F_Inputs!FEZ7","v":0},{"$f":"F_Inputs!FFA7","v":0},{"$f":"F_Inputs!FFB7","v":0},{"$f":"F_Inputs!FFC7","v":0},{"$f":"F_Inputs!FFD7","v":0},{"$f":"F_Inputs!FFE7","v":0},{"$f":"F_Inputs!FFF7","v":0},{"$f":"F_Inputs!FFG7","v":0},{"$f":"F_Inputs!FFH7","v":0},{"$f":"F_Inputs!FFI7","v":0},{"$f":"F_Inputs!FFJ7","v":0},{"$f":"F_Inputs!FFK7","v":0},{"$f":"F_Inputs!FFL7","v":0},{"$f":"F_Inputs!FFM7","v":0},{"$f":"F_Inputs!FFN7","v":0},{"$f":"F_Inputs!FFO7","v":0},{"$f":"F_Inputs!FFP7","v":0},{"$f":"F_Inputs!FFQ7","v":0},{"$f":"F_Inputs!FFR7","v":0},{"$f":"F_Inputs!FFS7","v":0},{"$f":"F_Inputs!FFT7","v":0},{"$f":"F_Inputs!FFU7","v":0},{"$f":"F_Inputs!FFV7","v":0},{"$f":"F_Inputs!FFW7","v":0},{"$f":"F_Inputs!FFX7","v":0},{"$f":"F_Inputs!FFY7","v":0},{"$f":"F_Inputs!FFZ7","v":0},{"$f":"F_Inputs!FGA7","v":0},{"$f":"F_Inputs!FGB7","v":0},{"$f":"F_Inputs!FGC7","v":0},{"$f":"F_Inputs!FGD7","v":0},{"$f":"F_Inputs!FGE7","v":0},{"$f":"F_Inputs!FGF7","v":0},{"$f":"F_Inputs!FGG7","v":0},{"$f":"F_Inputs!FGH7","v":0},{"$f":"F_Inputs!FGI7","v":0},{"$f":"F_Inputs!FGJ7","v":0},{"$f":"F_Inputs!FGK7","v":0},{"$f":"F_Inputs!FGL7","v":0},{"$f":"F_Inputs!FGM7","v":0},{"$f":"F_Inputs!FGN7","v":0},{"$f":"F_Inputs!FGO7","v":0},{"$f":"F_Inputs!FGP7","v":0},{"$f":"F_Inputs!FGQ7","v":0},{"$f":"F_Inputs!FGR7","v":0},{"$f":"F_Inputs!FGS7","v":0},{"$f":"F_Inputs!FGT7","v":0},{"$f":"F_Inputs!FGU7","v":0},{"$f":"F_Inputs!FGV7","v":0},{"$f":"F_Inputs!FGW7","v":0},{"$f":"F_Inputs!FGX7","v":0},{"$f":"F_Inputs!FGY7","v":0},{"$f":"F_Inputs!FGZ7","v":0},{"$f":"F_Inputs!FHA7","v":0},{"$f":"F_Inputs!FHB7","v":0},{"$f":"F_Inputs!FHC7","v":0},{"$f":"F_Inputs!FHD7","v":0},{"$f":"F_Inputs!FHE7","v":0},{"$f":"F_Inputs!FHF7","v":0},{"$f":"F_Inputs!FHG7","v":0},{"$f":"F_Inputs!FHH7","v":0},{"$f":"F_Inputs!FHI7","v":0},{"$f":"F_Inputs!FHJ7","v":0},{"$f":"F_Inputs!FHK7","v":0},{"$f":"F_Inputs!FHL7","v":0},{"$f":"F_Inputs!FHM7","v":0},{"$f":"F_Inputs!FHN7","v":0},{"$f":"F_Inputs!FHO7","v":0},{"$f":"F_Inputs!FHP7","v":0},{"$f":"F_Inputs!FHQ7","v":0},{"$f":"F_Inputs!FHR7","v":0},{"$f":"F_Inputs!FHS7","v":0},{"$f":"F_Inputs!FHT7","v":0},{"$f":"F_Inputs!FHU7","v":0},{"$f":"F_Inputs!FHV7","v":0},{"$f":"F_Inputs!FHW7","v":0},{"$f":"F_Inputs!FHX7","v":0},{"$f":"F_Inputs!FHY7","v":0},{"$f":"F_Inputs!FHZ7","v":0},{"$f":"F_Inputs!FIA7","v":0},{"$f":"F_Inputs!FIB7","v":0},{"$f":"F_Inputs!FIC7","v":0},{"$f":"F_Inputs!FID7","v":0},{"$f":"F_Inputs!FIE7","v":0},{"$f":"F_Inputs!FIF7","v":0},{"$f":"F_Inputs!FIG7","v":0},{"$f":"F_Inputs!FIH7","v":0},{"$f":"F_Inputs!FII7","v":0},{"$f":"F_Inputs!FIJ7","v":0},{"$f":"F_Inputs!FIK7","v":0},{"$f":"F_Inputs!FIL7","v":0},{"$f":"F_Inputs!FIM7","v":0},{"$f":"F_Inputs!FIN7","v":0},{"$f":"F_Inputs!FIO7","v":0},{"$f":"F_Inputs!FIP7","v":0},{"$f":"F_Inputs!FIQ7","v":0},{"$f":"F_Inputs!FIR7","v":0},{"$f":"F_Inputs!FIS7","v":0},{"$f":"F_Inputs!FIT7","v":0},{"$f":"F_Inputs!FIU7","v":0},{"$f":"F_Inputs!FIV7","v":0},{"$f":"F_Inputs!FIW7","v":0},{"$f":"F_Inputs!FIX7","v":0},{"$f":"F_Inputs!FIY7","v":0},{"$f":"F_Inputs!FIZ7","v":0},{"$f":"F_Inputs!FJA7","v":0},{"$f":"F_Inputs!FJB7","v":0},{"$f":"F_Inputs!FJC7","v":0},{"$f":"F_Inputs!FJD7","v":0},{"$f":"F_Inputs!FJE7","v":0},{"$f":"F_Inputs!FJF7","v":0},{"$f":"F_Inputs!FJG7","v":0},{"$f":"F_Inputs!FJH7","v":0},{"$f":"F_Inputs!FJI7","v":0},{"$f":"F_Inputs!FJJ7","v":0},{"$f":"F_Inputs!FJK7","v":0},{"$f":"F_Inputs!FJL7","v":0},{"$f":"F_Inputs!FJM7","v":0},{"$f":"F_Inputs!FJN7","v":0},{"$f":"F_Inputs!FJO7","v":0},{"$f":"F_Inputs!FJP7","v":0},{"$f":"F_Inputs!FJQ7","v":0},{"$f":"F_Inputs!FJR7","v":0},{"$f":"F_Inputs!FJS7","v":0},{"$f":"F_Inputs!FJT7","v":0},{"$f":"F_Inputs!FJU7","v":0},{"$f":"F_Inputs!FJV7","v":0},{"$f":"F_Inputs!FJW7","v":0},{"$f":"F_Inputs!FJX7","v":0},{"$f":"F_Inputs!FJY7","v":0},{"$f":"F_Inputs!FJZ7","v":0},{"$f":"F_Inputs!FKA7","v":0},{"$f":"F_Inputs!FKB7","v":0},{"$f":"F_Inputs!FKC7","v":0},{"$f":"F_Inputs!FKD7","v":0},{"$f":"F_Inputs!FKE7","v":0},{"$f":"F_Inputs!FKF7","v":0},{"$f":"F_Inputs!FKG7","v":0},{"$f":"F_Inputs!FKH7","v":0},{"$f":"F_Inputs!FKI7","v":0},{"$f":"F_Inputs!FKJ7","v":0},{"$f":"F_Inputs!FKK7","v":0},{"$f":"F_Inputs!FKL7","v":0},{"$f":"F_Inputs!FKM7","v":0},{"$f":"F_Inputs!FKN7","v":0},{"$f":"F_Inputs!FKO7","v":0},{"$f":"F_Inputs!FKP7","v":0},{"$f":"F_Inputs!FKQ7","v":0},{"$f":"F_Inputs!FKR7","v":0},{"$f":"F_Inputs!FKS7","v":0},{"$f":"F_Inputs!FKT7","v":0},{"$f":"F_Inputs!FKU7","v":0},{"$f":"F_Inputs!FKV7","v":0},{"$f":"F_Inputs!FKW7","v":0},{"$f":"F_Inputs!FKX7","v":0},{"$f":"F_Inputs!FKY7","v":0},{"$f":"F_Inputs!FKZ7","v":0},{"$f":"F_Inputs!FLA7","v":0},{"$f":"F_Inputs!FLB7","v":0},{"$f":"F_Inputs!FLC7","v":0},{"$f":"F_Inputs!FLD7","v":0},{"$f":"F_Inputs!FLE7","v":0},{"$f":"F_Inputs!FLF7","v":0},{"$f":"F_Inputs!FLG7","v":0},{"$f":"F_Inputs!FLH7","v":0},{"$f":"F_Inputs!FLI7","v":0},{"$f":"F_Inputs!FLJ7","v":0},{"$f":"F_Inputs!FLK7","v":0},{"$f":"F_Inputs!FLL7","v":0},{"$f":"F_Inputs!FLM7","v":0},{"$f":"F_Inputs!FLN7","v":0},{"$f":"F_Inputs!FLO7","v":0},{"$f":"F_Inputs!FLP7","v":0},{"$f":"F_Inputs!FLQ7","v":0},{"$f":"F_Inputs!FLR7","v":0},{"$f":"F_Inputs!FLS7","v":0},{"$f":"F_Inputs!FLT7","v":0},{"$f":"F_Inputs!FLU7","v":0},{"$f":"F_Inputs!FLV7","v":0},{"$f":"F_Inputs!FLW7","v":0},{"$f":"F_Inputs!FLX7","v":0},{"$f":"F_Inputs!FLY7","v":0},{"$f":"F_Inputs!FLZ7","v":0},{"$f":"F_Inputs!FMA7","v":0},{"$f":"F_Inputs!FMB7","v":0},{"$f":"F_Inputs!FMC7","v":0},{"$f":"F_Inputs!FMD7","v":0},{"$f":"F_Inputs!FME7","v":0},{"$f":"F_Inputs!FMF7","v":0},{"$f":"F_Inputs!FMG7","v":0},{"$f":"F_Inputs!FMH7","v":0},{"$f":"F_Inputs!FMI7","v":0},{"$f":"F_Inputs!FMJ7","v":0},{"$f":"F_Inputs!FMK7","v":0},{"$f":"F_Inputs!FML7","v":0},{"$f":"F_Inputs!FMM7","v":0},{"$f":"F_Inputs!FMN7","v":0},{"$f":"F_Inputs!FMO7","v":0},{"$f":"F_Inputs!FMP7","v":0},{"$f":"F_Inputs!FMQ7","v":0},{"$f":"F_Inputs!FMR7","v":0},{"$f":"F_Inputs!FMS7","v":0},{"$f":"F_Inputs!FMT7","v":0},{"$f":"F_Inputs!FMU7","v":0},{"$f":"F_Inputs!FMV7","v":0},{"$f":"F_Inputs!FMW7","v":0},{"$f":"F_Inputs!FMX7","v":0},{"$f":"F_Inputs!FMY7","v":0},{"$f":"F_Inputs!FMZ7","v":0},{"$f":"F_Inputs!FNA7","v":0},{"$f":"F_Inputs!FNB7","v":0},{"$f":"F_Inputs!FNC7","v":0},{"$f":"F_Inputs!FND7","v":0},{"$f":"F_Inputs!FNE7","v":0},{"$f":"F_Inputs!FNF7","v":0},{"$f":"F_Inputs!FNG7","v":0},{"$f":"F_Inputs!FNH7","v":0},{"$f":"F_Inputs!FNI7","v":0},{"$f":"F_Inputs!FNJ7","v":0},{"$f":"F_Inputs!FNK7","v":0},{"$f":"F_Inputs!FNL7","v":0},{"$f":"F_Inputs!FNM7","v":0},{"$f":"F_Inputs!FNN7","v":0},{"$f":"F_Inputs!FNO7","v":0},{"$f":"F_Inputs!FNP7","v":0},{"$f":"F_Inputs!FNQ7","v":0},{"$f":"F_Inputs!FNR7","v":0},{"$f":"F_Inputs!FNS7","v":0},{"$f":"F_Inputs!FNT7","v":0},{"$f":"F_Inputs!FNU7","v":0},{"$f":"F_Inputs!FNV7","v":0},{"$f":"F_Inputs!FNW7","v":0},{"$f":"F_Inputs!FNX7","v":0},{"$f":"F_Inputs!FNY7","v":0},{"$f":"F_Inputs!FNZ7","v":0},{"$f":"F_Inputs!FOA7","v":0},{"$f":"F_Inputs!FOB7","v":0},{"$f":"F_Inputs!FOC7","v":0},{"$f":"F_Inputs!FOD7","v":0},{"$f":"F_Inputs!FOE7","v":0},{"$f":"F_Inputs!FOF7","v":0},{"$f":"F_Inputs!FOG7","v":0},{"$f":"F_Inputs!FOH7","v":0},{"$f":"F_Inputs!FOI7","v":0},{"$f":"F_Inputs!FOJ7","v":0},{"$f":"F_Inputs!FOK7","v":0},{"$f":"F_Inputs!FOL7","v":0},{"$f":"F_Inputs!FOM7","v":0},{"$f":"F_Inputs!FON7","v":0},{"$f":"F_Inputs!FOO7","v":0},{"$f":"F_Inputs!FOP7","v":0},{"$f":"F_Inputs!FOQ7","v":0},{"$f":"F_Inputs!FOR7","v":0},{"$f":"F_Inputs!FOS7","v":0},{"$f":"F_Inputs!FOT7","v":0},{"$f":"F_Inputs!FOU7","v":0},{"$f":"F_Inputs!FOV7","v":0},{"$f":"F_Inputs!FOW7","v":0},{"$f":"F_Inputs!FOX7","v":0},{"$f":"F_Inputs!FOY7","v":0},{"$f":"F_Inputs!FOZ7","v":0},{"$f":"F_Inputs!FPA7","v":0},{"$f":"F_Inputs!FPB7","v":0},{"$f":"F_Inputs!FPC7","v":0},{"$f":"F_Inputs!FPD7","v":0},{"$f":"F_Inputs!FPE7","v":0},{"$f":"F_Inputs!FPF7","v":0},{"$f":"F_Inputs!FPG7","v":0},{"$f":"F_Inputs!FPH7","v":0},{"$f":"F_Inputs!FPI7","v":0},{"$f":"F_Inputs!FPJ7","v":0},{"$f":"F_Inputs!FPK7","v":0},{"$f":"F_Inputs!FPL7","v":0},{"$f":"F_Inputs!FPM7","v":0},{"$f":"F_Inputs!FPN7","v":0},{"$f":"F_Inputs!FPO7","v":0},{"$f":"F_Inputs!FPP7","v":0},{"$f":"F_Inputs!FPQ7","v":0},{"$f":"F_Inputs!FPR7","v":0},{"$f":"F_Inputs!FPS7","v":0},{"$f":"F_Inputs!FPT7","v":0},{"$f":"F_Inputs!FPU7","v":0},{"$f":"F_Inputs!FPV7","v":0},{"$f":"F_Inputs!FPW7","v":0},{"$f":"F_Inputs!FPX7","v":0},{"$f":"F_Inputs!FPY7","v":0},{"$f":"F_Inputs!FPZ7","v":0},{"$f":"F_Inputs!FQA7","v":0},{"$f":"F_Inputs!FQB7","v":0},{"$f":"F_Inputs!FQC7","v":0},{"$f":"F_Inputs!FQD7","v":0},{"$f":"F_Inputs!FQE7","v":0},{"$f":"F_Inputs!FQF7","v":0},{"$f":"F_Inputs!FQG7","v":0},{"$f":"F_Inputs!FQH7","v":0},{"$f":"F_Inputs!FQI7","v":0},{"$f":"F_Inputs!FQJ7","v":0},{"$f":"F_Inputs!FQK7","v":0},{"$f":"F_Inputs!FQL7","v":0},{"$f":"F_Inputs!FQM7","v":0},{"$f":"F_Inputs!FQN7","v":0},{"$f":"F_Inputs!FQO7","v":0},{"$f":"F_Inputs!FQP7","v":0},{"$f":"F_Inputs!FQQ7","v":0},{"$f":"F_Inputs!FQR7","v":0},{"$f":"F_Inputs!FQS7","v":0},{"$f":"F_Inputs!FQT7","v":0},{"$f":"F_Inputs!FQU7","v":0},{"$f":"F_Inputs!FQV7","v":0},{"$f":"F_Inputs!FQW7","v":0},{"$f":"F_Inputs!FQX7","v":0},{"$f":"F_Inputs!FQY7","v":0},{"$f":"F_Inputs!FQZ7","v":0},{"$f":"F_Inputs!FRA7","v":0},{"$f":"F_Inputs!FRB7","v":0},{"$f":"F_Inputs!FRC7","v":0},{"$f":"F_Inputs!FRD7","v":0},{"$f":"F_Inputs!FRE7","v":0},{"$f":"F_Inputs!FRF7","v":0},{"$f":"F_Inputs!FRG7","v":0},{"$f":"F_Inputs!FRH7","v":0},{"$f":"F_Inputs!FRI7","v":0},{"$f":"F_Inputs!FRJ7","v":0},{"$f":"F_Inputs!FRK7","v":0},{"$f":"F_Inputs!FRL7","v":0},{"$f":"F_Inputs!FRM7","v":0},{"$f":"F_Inputs!FRN7","v":0},{"$f":"F_Inputs!FRO7","v":0},{"$f":"F_Inputs!FRP7","v":0},{"$f":"F_Inputs!FRQ7","v":0},{"$f":"F_Inputs!FRR7","v":0},{"$f":"F_Inputs!FRS7","v":0},{"$f":"F_Inputs!FRT7","v":0},{"$f":"F_Inputs!FRU7","v":0},{"$f":"F_Inputs!FRV7","v":0},{"$f":"F_Inputs!FRW7","v":0},{"$f":"F_Inputs!FRX7","v":0},{"$f":"F_Inputs!FRY7","v":0},{"$f":"F_Inputs!FRZ7","v":0},{"$f":"F_Inputs!FSA7","v":0},{"$f":"F_Inputs!FSB7","v":0},{"$f":"F_Inputs!FSC7","v":0},{"$f":"F_Inputs!FSD7","v":0},{"$f":"F_Inputs!FSE7","v":0},{"$f":"F_Inputs!FSF7","v":0},{"$f":"F_Inputs!FSG7","v":0},{"$f":"F_Inputs!FSH7","v":0},{"$f":"F_Inputs!FSI7","v":0},{"$f":"F_Inputs!FSJ7","v":0},{"$f":"F_Inputs!FSK7","v":0},{"$f":"F_Inputs!FSL7","v":0},{"$f":"F_Inputs!FSM7","v":0},{"$f":"F_Inputs!FSN7","v":0},{"$f":"F_Inputs!FSO7","v":0},{"$f":"F_Inputs!FSP7","v":0},{"$f":"F_Inputs!FSQ7","v":0},{"$f":"F_Inputs!FSR7","v":0},{"$f":"F_Inputs!FSS7","v":0},{"$f":"F_Inputs!FST7","v":0},{"$f":"F_Inputs!FSU7","v":0},{"$f":"F_Inputs!FSV7","v":0},{"$f":"F_Inputs!FSW7","v":0},{"$f":"F_Inputs!FSX7","v":0},{"$f":"F_Inputs!FSY7","v":0},{"$f":"F_Inputs!FSZ7","v":0},{"$f":"F_Inputs!FTA7","v":0},{"$f":"F_Inputs!FTB7","v":0},{"$f":"F_Inputs!FTC7","v":0},{"$f":"F_Inputs!FTD7","v":0},{"$f":"F_Inputs!FTE7","v":0},{"$f":"F_Inputs!FTF7","v":0},{"$f":"F_Inputs!FTG7","v":0},{"$f":"F_Inputs!FTH7","v":0},{"$f":"F_Inputs!FTI7","v":0},{"$f":"F_Inputs!FTJ7","v":0},{"$f":"F_Inputs!FTK7","v":0},{"$f":"F_Inputs!FTL7","v":0},{"$f":"F_Inputs!FTM7","v":0},{"$f":"F_Inputs!FTN7","v":0},{"$f":"F_Inputs!FTO7","v":0},{"$f":"F_Inputs!FTP7","v":0},{"$f":"F_Inputs!FTQ7","v":0},{"$f":"F_Inputs!FTR7","v":0},{"$f":"F_Inputs!FTS7","v":0},{"$f":"F_Inputs!FTT7","v":0},{"$f":"F_Inputs!FTU7","v":0},{"$f":"F_Inputs!FTV7","v":0},{"$f":"F_Inputs!FTW7","v":0},{"$f":"F_Inputs!FTX7","v":0},{"$f":"F_Inputs!FTY7","v":0},{"$f":"F_Inputs!FTZ7","v":0},{"$f":"F_Inputs!FUA7","v":0},{"$f":"F_Inputs!FUB7","v":0},{"$f":"F_Inputs!FUC7","v":0},{"$f":"F_Inputs!FUD7","v":0},{"$f":"F_Inputs!FUE7","v":0},{"$f":"F_Inputs!FUF7","v":0},{"$f":"F_Inputs!FUG7","v":0},{"$f":"F_Inputs!FUH7","v":0},{"$f":"F_Inputs!FUI7","v":0},{"$f":"F_Inputs!FUJ7","v":0},{"$f":"F_Inputs!FUK7","v":0},{"$f":"F_Inputs!FUL7","v":0},{"$f":"F_Inputs!FUM7","v":0},{"$f":"F_Inputs!FUN7","v":0},{"$f":"F_Inputs!FUO7","v":0},{"$f":"F_Inputs!FUP7","v":0},{"$f":"F_Inputs!FUQ7","v":0},{"$f":"F_Inputs!FUR7","v":0},{"$f":"F_Inputs!FUS7","v":0},{"$f":"F_Inputs!FUT7","v":0},{"$f":"F_Inputs!FUU7","v":0},{"$f":"F_Inputs!FUV7","v":0},{"$f":"F_Inputs!FUW7","v":0},{"$f":"F_Inputs!FUX7","v":0},{"$f":"F_Inputs!FUY7","v":0},{"$f":"F_Inputs!FUZ7","v":0},{"$f":"F_Inputs!FVA7","v":0},{"$f":"F_Inputs!FVB7","v":0},{"$f":"F_Inputs!FVC7","v":0},{"$f":"F_Inputs!FVD7","v":0},{"$f":"F_Inputs!FVE7","v":0},{"$f":"F_Inputs!FVF7","v":0},{"$f":"F_Inputs!FVG7","v":0},{"$f":"F_Inputs!FVH7","v":0},{"$f":"F_Inputs!FVI7","v":0},{"$f":"F_Inputs!FVJ7","v":0},{"$f":"F_Inputs!FVK7","v":0},{"$f":"F_Inputs!FVL7","v":0},{"$f":"F_Inputs!FVM7","v":0},{"$f":"F_Inputs!FVN7","v":0},{"$f":"F_Inputs!FVO7","v":0},{"$f":"F_Inputs!FVP7","v":0},{"$f":"F_Inputs!FVQ7","v":0},{"$f":"F_Inputs!FVR7","v":0},{"$f":"F_Inputs!FVS7","v":0},{"$f":"F_Inputs!FVT7","v":0},{"$f":"F_Inputs!FVU7","v":0},{"$f":"F_Inputs!FVV7","v":0},{"$f":"F_Inputs!FVW7","v":0},{"$f":"F_Inputs!FVX7","v":0},{"$f":"F_Inputs!FVY7","v":0},{"$f":"F_Inputs!FVZ7","v":0},{"$f":"F_Inputs!FWA7","v":0},{"$f":"F_Inputs!FWB7","v":0},{"$f":"F_Inputs!FWC7","v":0},{"$f":"F_Inputs!FWD7","v":0},{"$f":"F_Inputs!FWE7","v":0},{"$f":"F_Inputs!FWF7","v":0},{"$f":"F_Inputs!FWG7","v":0},{"$f":"F_Inputs!FWH7","v":0},{"$f":"F_Inputs!FWI7","v":0},{"$f":"F_Inputs!FWJ7","v":0},{"$f":"F_Inputs!FWK7","v":0},{"$f":"F_Inputs!FWL7","v":0},{"$f":"F_Inputs!FWM7","v":0},{"$f":"F_Inputs!FWN7","v":0},{"$f":"F_Inputs!FWO7","v":0},{"$f":"F_Inputs!FWP7","v":0},{"$f":"F_Inputs!FWQ7","v":0},{"$f":"F_Inputs!FWR7","v":0},{"$f":"F_Inputs!FWS7","v":0},{"$f":"F_Inputs!FWT7","v":0},{"$f":"F_Inputs!FWU7","v":0},{"$f":"F_Inputs!FWV7","v":0},{"$f":"F_Inputs!FWW7","v":0},{"$f":"F_Inputs!FWX7","v":0},{"$f":"F_Inputs!FWY7","v":0},{"$f":"F_Inputs!FWZ7","v":0},{"$f":"F_Inputs!FXA7","v":0},{"$f":"F_Inputs!FXB7","v":0},{"$f":"F_Inputs!FXC7","v":0},{"$f":"F_Inputs!FXD7","v":0},{"$f":"F_Inputs!FXE7","v":0},{"$f":"F_Inputs!FXF7","v":0},{"$f":"F_Inputs!FXG7","v":0},{"$f":"F_Inputs!FXH7","v":0},{"$f":"F_Inputs!FXI7","v":0},{"$f":"F_Inputs!FXJ7","v":0},{"$f":"F_Inputs!FXK7","v":0},{"$f":"F_Inputs!FXL7","v":0},{"$f":"F_Inputs!FXM7","v":0},{"$f":"F_Inputs!FXN7","v":0},{"$f":"F_Inputs!FXO7","v":0},{"$f":"F_Inputs!FXP7","v":0},{"$f":"F_Inputs!FXQ7","v":0},{"$f":"F_Inputs!FXR7","v":0},{"$f":"F_Inputs!FXS7","v":0},{"$f":"F_Inputs!FXT7","v":0},{"$f":"F_Inputs!FXU7","v":0},{"$f":"F_Inputs!FXV7","v":0},{"$f":"F_Inputs!FXW7","v":0},{"$f":"F_Inputs!FXX7","v":0},{"$f":"F_Inputs!FXY7","v":0},{"$f":"F_Inputs!FXZ7","v":0},{"$f":"F_Inputs!FYA7","v":0},{"$f":"F_Inputs!FYB7","v":0},{"$f":"F_Inputs!FYC7","v":0},{"$f":"F_Inputs!FYD7","v":0},{"$f":"F_Inputs!FYE7","v":0},{"$f":"F_Inputs!FYF7","v":0},{"$f":"F_Inputs!FYG7","v":0},{"$f":"F_Inputs!FYH7","v":0},{"$f":"F_Inputs!FYI7","v":0},{"$f":"F_Inputs!FYJ7","v":0},{"$f":"F_Inputs!FYK7","v":0},{"$f":"F_Inputs!FYL7","v":0},{"$f":"F_Inputs!FYM7","v":0},{"$f":"F_Inputs!FYN7","v":0},{"$f":"F_Inputs!FYO7","v":0},{"$f":"F_Inputs!FYP7","v":0},{"$f":"F_Inputs!FYQ7","v":0},{"$f":"F_Inputs!FYR7","v":0},{"$f":"F_Inputs!FYS7","v":0},{"$f":"F_Inputs!FYT7","v":0},{"$f":"F_Inputs!FYU7","v":0},{"$f":"F_Inputs!FYV7","v":0},{"$f":"F_Inputs!FYW7","v":0},{"$f":"F_Inputs!FYX7","v":0},{"$f":"F_Inputs!FYY7","v":0},{"$f":"F_Inputs!FYZ7","v":0},{"$f":"F_Inputs!FZA7","v":0},{"$f":"F_Inputs!FZB7","v":0},{"$f":"F_Inputs!FZC7","v":0},{"$f":"F_Inputs!FZD7","v":0},{"$f":"F_Inputs!FZE7","v":0},{"$f":"F_Inputs!FZF7","v":0},{"$f":"F_Inputs!FZG7","v":0},{"$f":"F_Inputs!FZH7","v":0},{"$f":"F_Inputs!FZI7","v":0},{"$f":"F_Inputs!FZJ7","v":0},{"$f":"F_Inputs!FZK7","v":0},{"$f":"F_Inputs!FZL7","v":0},{"$f":"F_Inputs!FZM7","v":0},{"$f":"F_Inputs!FZN7","v":0},{"$f":"F_Inputs!FZO7","v":0},{"$f":"F_Inputs!FZP7","v":0},{"$f":"F_Inputs!FZQ7","v":0},{"$f":"F_Inputs!FZR7","v":0},{"$f":"F_Inputs!FZS7","v":0},{"$f":"F_Inputs!FZT7","v":0},{"$f":"F_Inputs!FZU7","v":0},{"$f":"F_Inputs!FZV7","v":0},{"$f":"F_Inputs!FZW7","v":0},{"$f":"F_Inputs!FZX7","v":0},{"$f":"F_Inputs!FZY7","v":0},{"$f":"F_Inputs!FZZ7","v":0},{"$f":"F_Inputs!GAA7","v":0},{"$f":"F_Inputs!GAB7","v":0},{"$f":"F_Inputs!GAC7","v":0},{"$f":"F_Inputs!GAD7","v":0},{"$f":"F_Inputs!GAE7","v":0},{"$f":"F_Inputs!GAF7","v":0},{"$f":"F_Inputs!GAG7","v":0},{"$f":"F_Inputs!GAH7","v":0},{"$f":"F_Inputs!GAI7","v":0},{"$f":"F_Inputs!GAJ7","v":0},{"$f":"F_Inputs!GAK7","v":0},{"$f":"F_Inputs!GAL7","v":0},{"$f":"F_Inputs!GAM7","v":0},{"$f":"F_Inputs!GAN7","v":0},{"$f":"F_Inputs!GAO7","v":0},{"$f":"F_Inputs!GAP7","v":0},{"$f":"F_Inputs!GAQ7","v":0},{"$f":"F_Inputs!GAR7","v":0},{"$f":"F_Inputs!GAS7","v":0},{"$f":"F_Inputs!GAT7","v":0},{"$f":"F_Inputs!GAU7","v":0},{"$f":"F_Inputs!GAV7","v":0},{"$f":"F_Inputs!GAW7","v":0},{"$f":"F_Inputs!GAX7","v":0},{"$f":"F_Inputs!GAY7","v":0},{"$f":"F_Inputs!GAZ7","v":0},{"$f":"F_Inputs!GBA7","v":0},{"$f":"F_Inputs!GBB7","v":0},{"$f":"F_Inputs!GBC7","v":0},{"$f":"F_Inputs!GBD7","v":0},{"$f":"F_Inputs!GBE7","v":0},{"$f":"F_Inputs!GBF7","v":0},{"$f":"F_Inputs!GBG7","v":0},{"$f":"F_Inputs!GBH7","v":0},{"$f":"F_Inputs!GBI7","v":0},{"$f":"F_Inputs!GBJ7","v":0},{"$f":"F_Inputs!GBK7","v":0},{"$f":"F_Inputs!GBL7","v":0},{"$f":"F_Inputs!GBM7","v":0},{"$f":"F_Inputs!GBN7","v":0},{"$f":"F_Inputs!GBO7","v":0},{"$f":"F_Inputs!GBP7","v":0},{"$f":"F_Inputs!GBQ7","v":0},{"$f":"F_Inputs!GBR7","v":0},{"$f":"F_Inputs!GBS7","v":0},{"$f":"F_Inputs!GBT7","v":0},{"$f":"F_Inputs!GBU7","v":0},{"$f":"F_Inputs!GBV7","v":0},{"$f":"F_Inputs!GBW7","v":0},{"$f":"F_Inputs!GBX7","v":0},{"$f":"F_Inputs!GBY7","v":0},{"$f":"F_Inputs!GBZ7","v":0},{"$f":"F_Inputs!GCA7","v":0},{"$f":"F_Inputs!GCB7","v":0},{"$f":"F_Inputs!GCC7","v":0},{"$f":"F_Inputs!GCD7","v":0},{"$f":"F_Inputs!GCE7","v":0},{"$f":"F_Inputs!GCF7","v":0},{"$f":"F_Inputs!GCG7","v":0},{"$f":"F_Inputs!GCH7","v":0},{"$f":"F_Inputs!GCI7","v":0},{"$f":"F_Inputs!GCJ7","v":0},{"$f":"F_Inputs!GCK7","v":0},{"$f":"F_Inputs!GCL7","v":0},{"$f":"F_Inputs!GCM7","v":0},{"$f":"F_Inputs!GCN7","v":0},{"$f":"F_Inputs!GCO7","v":0},{"$f":"F_Inputs!GCP7","v":0},{"$f":"F_Inputs!GCQ7","v":0},{"$f":"F_Inputs!GCR7","v":0},{"$f":"F_Inputs!GCS7","v":0},{"$f":"F_Inputs!GCT7","v":0},{"$f":"F_Inputs!GCU7","v":0},{"$f":"F_Inputs!GCV7","v":0},{"$f":"F_Inputs!GCW7","v":0},{"$f":"F_Inputs!GCX7","v":0},{"$f":"F_Inputs!GCY7","v":0},{"$f":"F_Inputs!GCZ7","v":0},{"$f":"F_Inputs!GDA7","v":0},{"$f":"F_Inputs!GDB7","v":0},{"$f":"F_Inputs!GDC7","v":0},{"$f":"F_Inputs!GDD7","v":0},{"$f":"F_Inputs!GDE7","v":0},{"$f":"F_Inputs!GDF7","v":0},{"$f":"F_Inputs!GDG7","v":0},{"$f":"F_Inputs!GDH7","v":0},{"$f":"F_Inputs!GDI7","v":0},{"$f":"F_Inputs!GDJ7","v":0},{"$f":"F_Inputs!GDK7","v":0},{"$f":"F_Inputs!GDL7","v":0},{"$f":"F_Inputs!GDM7","v":0},{"$f":"F_Inputs!GDN7","v":0},{"$f":"F_Inputs!GDO7","v":0},{"$f":"F_Inputs!GDP7","v":0},{"$f":"F_Inputs!GDQ7","v":0},{"$f":"F_Inputs!GDR7","v":0},{"$f":"F_Inputs!GDS7","v":0},{"$f":"F_Inputs!GDT7","v":0},{"$f":"F_Inputs!GDU7","v":0},{"$f":"F_Inputs!GDV7","v":0},{"$f":"F_Inputs!GDW7","v":0},{"$f":"F_Inputs!GDX7","v":0},{"$f":"F_Inputs!GDY7","v":0},{"$f":"F_Inputs!GDZ7","v":0},{"$f":"F_Inputs!GEA7","v":0},{"$f":"F_Inputs!GEB7","v":0},{"$f":"F_Inputs!GEC7","v":0},{"$f":"F_Inputs!GED7","v":0},{"$f":"F_Inputs!GEE7","v":0},{"$f":"F_Inputs!GEF7","v":0},{"$f":"F_Inputs!GEG7","v":0},{"$f":"F_Inputs!GEH7","v":0},{"$f":"F_Inputs!GEI7","v":0},{"$f":"F_Inputs!GEJ7","v":0},{"$f":"F_Inputs!GEK7","v":0},{"$f":"F_Inputs!GEL7","v":0},{"$f":"F_Inputs!GEM7","v":0},{"$f":"F_Inputs!GEN7","v":0},{"$f":"F_Inputs!GEO7","v":0},{"$f":"F_Inputs!GEP7","v":0},{"$f":"F_Inputs!GEQ7","v":0},{"$f":"F_Inputs!GER7","v":0},{"$f":"F_Inputs!GES7","v":0},{"$f":"F_Inputs!GET7","v":0},{"$f":"F_Inputs!GEU7","v":0},{"$f":"F_Inputs!GEV7","v":0},{"$f":"F_Inputs!GEW7","v":0},{"$f":"F_Inputs!GEX7","v":0},{"$f":"F_Inputs!GEY7","v":0},{"$f":"F_Inputs!GEZ7","v":0},{"$f":"F_Inputs!GFA7","v":0},{"$f":"F_Inputs!GFB7","v":0},{"$f":"F_Inputs!GFC7","v":0},{"$f":"F_Inputs!GFD7","v":0},{"$f":"F_Inputs!GFE7","v":0},{"$f":"F_Inputs!GFF7","v":0},{"$f":"F_Inputs!GFG7","v":0},{"$f":"F_Inputs!GFH7","v":0},{"$f":"F_Inputs!GFI7","v":0},{"$f":"F_Inputs!GFJ7","v":0},{"$f":"F_Inputs!GFK7","v":0},{"$f":"F_Inputs!GFL7","v":0},{"$f":"F_Inputs!GFM7","v":0},{"$f":"F_Inputs!GFN7","v":0},{"$f":"F_Inputs!GFO7","v":0},{"$f":"F_Inputs!GFP7","v":0},{"$f":"F_Inputs!GFQ7","v":0},{"$f":"F_Inputs!GFR7","v":0},{"$f":"F_Inputs!GFS7","v":0},{"$f":"F_Inputs!GFT7","v":0},{"$f":"F_Inputs!GFU7","v":0},{"$f":"F_Inputs!GFV7","v":0},{"$f":"F_Inputs!GFW7","v":0},{"$f":"F_Inputs!GFX7","v":0},{"$f":"F_Inputs!GFY7","v":0},{"$f":"F_Inputs!GFZ7","v":0},{"$f":"F_Inputs!GGA7","v":0},{"$f":"F_Inputs!GGB7","v":0},{"$f":"F_Inputs!GGC7","v":0},{"$f":"F_Inputs!GGD7","v":0},{"$f":"F_Inputs!GGE7","v":0},{"$f":"F_Inputs!GGF7","v":0},{"$f":"F_Inputs!GGG7","v":0},{"$f":"F_Inputs!GGH7","v":0},{"$f":"F_Inputs!GGI7","v":0},{"$f":"F_Inputs!GGJ7","v":0},{"$f":"F_Inputs!GGK7","v":0},{"$f":"F_Inputs!GGL7","v":0},{"$f":"F_Inputs!GGM7","v":0},{"$f":"F_Inputs!GGN7","v":0},{"$f":"F_Inputs!GGO7","v":0},{"$f":"F_Inputs!GGP7","v":0},{"$f":"F_Inputs!GGQ7","v":0},{"$f":"F_Inputs!GGR7","v":0},{"$f":"F_Inputs!GGS7","v":0},{"$f":"F_Inputs!GGT7","v":0},{"$f":"F_Inputs!GGU7","v":0},{"$f":"F_Inputs!GGV7","v":0},{"$f":"F_Inputs!GGW7","v":0},{"$f":"F_Inputs!GGX7","v":0},{"$f":"F_Inputs!GGY7","v":0},{"$f":"F_Inputs!GGZ7","v":0},{"$f":"F_Inputs!GHA7","v":0},{"$f":"F_Inputs!GHB7","v":0},{"$f":"F_Inputs!GHC7","v":0},{"$f":"F_Inputs!GHD7","v":0},{"$f":"F_Inputs!GHE7","v":0},{"$f":"F_Inputs!GHF7","v":0},{"$f":"F_Inputs!GHG7","v":0},{"$f":"F_Inputs!GHH7","v":0},{"$f":"F_Inputs!GHI7","v":0},{"$f":"F_Inputs!GHJ7","v":0},{"$f":"F_Inputs!GHK7","v":0},{"$f":"F_Inputs!GHL7","v":0},{"$f":"F_Inputs!GHM7","v":0},{"$f":"F_Inputs!GHN7","v":0},{"$f":"F_Inputs!GHO7","v":0},{"$f":"F_Inputs!GHP7","v":0},{"$f":"F_Inputs!GHQ7","v":0},{"$f":"F_Inputs!GHR7","v":0},{"$f":"F_Inputs!GHS7","v":0},{"$f":"F_Inputs!GHT7","v":0},{"$f":"F_Inputs!GHU7","v":0},{"$f":"F_Inputs!GHV7","v":0},{"$f":"F_Inputs!GHW7","v":0},{"$f":"F_Inputs!GHX7","v":0},{"$f":"F_Inputs!GHY7","v":0},{"$f":"F_Inputs!GHZ7","v":0},{"$f":"F_Inputs!GIA7","v":0},{"$f":"F_Inputs!GIB7","v":0},{"$f":"F_Inputs!GIC7","v":0},{"$f":"F_Inputs!GID7","v":0},{"$f":"F_Inputs!GIE7","v":0},{"$f":"F_Inputs!GIF7","v":0},{"$f":"F_Inputs!GIG7","v":0},{"$f":"F_Inputs!GIH7","v":0},{"$f":"F_Inputs!GII7","v":0},{"$f":"F_Inputs!GIJ7","v":0},{"$f":"F_Inputs!GIK7","v":0},{"$f":"F_Inputs!GIL7","v":0},{"$f":"F_Inputs!GIM7","v":0},{"$f":"F_Inputs!GIN7","v":0},{"$f":"F_Inputs!GIO7","v":0},{"$f":"F_Inputs!GIP7","v":0},{"$f":"F_Inputs!GIQ7","v":0},{"$f":"F_Inputs!GIR7","v":0},{"$f":"F_Inputs!GIS7","v":0},{"$f":"F_Inputs!GIT7","v":0},{"$f":"F_Inputs!GIU7","v":0},{"$f":"F_Inputs!GIV7","v":0},{"$f":"F_Inputs!GIW7","v":0},{"$f":"F_Inputs!GIX7","v":0},{"$f":"F_Inputs!GIY7","v":0},{"$f":"F_Inputs!GIZ7","v":0},{"$f":"F_Inputs!GJA7","v":0},{"$f":"F_Inputs!GJB7","v":0},{"$f":"F_Inputs!GJC7","v":0},{"$f":"F_Inputs!GJD7","v":0},{"$f":"F_Inputs!GJE7","v":0},{"$f":"F_Inputs!GJF7","v":0},{"$f":"F_Inputs!GJG7","v":0},{"$f":"F_Inputs!GJH7","v":0},{"$f":"F_Inputs!GJI7","v":0},{"$f":"F_Inputs!GJJ7","v":0},{"$f":"F_Inputs!GJK7","v":0},{"$f":"F_Inputs!GJL7","v":0},{"$f":"F_Inputs!GJM7","v":0},{"$f":"F_Inputs!GJN7","v":0},{"$f":"F_Inputs!GJO7","v":0},{"$f":"F_Inputs!GJP7","v":0},{"$f":"F_Inputs!GJQ7","v":0},{"$f":"F_Inputs!GJR7","v":0},{"$f":"F_Inputs!GJS7","v":0},{"$f":"F_Inputs!GJT7","v":0},{"$f":"F_Inputs!GJU7","v":0},{"$f":"F_Inputs!GJV7","v":0},{"$f":"F_Inputs!GJW7","v":0},{"$f":"F_Inputs!GJX7","v":0},{"$f":"F_Inputs!GJY7","v":0},{"$f":"F_Inputs!GJZ7","v":0},{"$f":"F_Inputs!GKA7","v":0},{"$f":"F_Inputs!GKB7","v":0},{"$f":"F_Inputs!GKC7","v":0},{"$f":"F_Inputs!GKD7","v":0},{"$f":"F_Inputs!GKE7","v":0},{"$f":"F_Inputs!GKF7","v":0},{"$f":"F_Inputs!GKG7","v":0},{"$f":"F_Inputs!GKH7","v":0},{"$f":"F_Inputs!GKI7","v":0},{"$f":"F_Inputs!GKJ7","v":0},{"$f":"F_Inputs!GKK7","v":0},{"$f":"F_Inputs!GKL7","v":0},{"$f":"F_Inputs!GKM7","v":0},{"$f":"F_Inputs!GKN7","v":0},{"$f":"F_Inputs!GKO7","v":0},{"$f":"F_Inputs!GKP7","v":0},{"$f":"F_Inputs!GKQ7","v":0},{"$f":"F_Inputs!GKR7","v":0},{"$f":"F_Inputs!GKS7","v":0},{"$f":"F_Inputs!GKT7","v":0},{"$f":"F_Inputs!GKU7","v":0},{"$f":"F_Inputs!GKV7","v":0},{"$f":"F_Inputs!GKW7","v":0},{"$f":"F_Inputs!GKX7","v":0},{"$f":"F_Inputs!GKY7","v":0},{"$f":"F_Inputs!GKZ7","v":0},{"$f":"F_Inputs!GLA7","v":0},{"$f":"F_Inputs!GLB7","v":0},{"$f":"F_Inputs!GLC7","v":0},{"$f":"F_Inputs!GLD7","v":0},{"$f":"F_Inputs!GLE7","v":0},{"$f":"F_Inputs!GLF7","v":0},{"$f":"F_Inputs!GLG7","v":0},{"$f":"F_Inputs!GLH7","v":0},{"$f":"F_Inputs!GLI7","v":0},{"$f":"F_Inputs!GLJ7","v":0},{"$f":"F_Inputs!GLK7","v":0},{"$f":"F_Inputs!GLL7","v":0},{"$f":"F_Inputs!GLM7","v":0},{"$f":"F_Inputs!GLN7","v":0},{"$f":"F_Inputs!GLO7","v":0},{"$f":"F_Inputs!GLP7","v":0},{"$f":"F_Inputs!GLQ7","v":0},{"$f":"F_Inputs!GLR7","v":0},{"$f":"F_Inputs!GLS7","v":0},{"$f":"F_Inputs!GLT7","v":0},{"$f":"F_Inputs!GLU7","v":0},{"$f":"F_Inputs!GLV7","v":0},{"$f":"F_Inputs!GLW7","v":0},{"$f":"F_Inputs!GLX7","v":0},{"$f":"F_Inputs!GLY7","v":0},{"$f":"F_Inputs!GLZ7","v":0},{"$f":"F_Inputs!GMA7","v":0},{"$f":"F_Inputs!GMB7","v":0},{"$f":"F_Inputs!GMC7","v":0},{"$f":"F_Inputs!GMD7","v":0},{"$f":"F_Inputs!GME7","v":0},{"$f":"F_Inputs!GMF7","v":0},{"$f":"F_Inputs!GMG7","v":0},{"$f":"F_Inputs!GMH7","v":0},{"$f":"F_Inputs!GMI7","v":0},{"$f":"F_Inputs!GMJ7","v":0},{"$f":"F_Inputs!GMK7","v":0},{"$f":"F_Inputs!GML7","v":0},{"$f":"F_Inputs!GMM7","v":0},{"$f":"F_Inputs!GMN7","v":0},{"$f":"F_Inputs!GMO7","v":0},{"$f":"F_Inputs!GMP7","v":0},{"$f":"F_Inputs!GMQ7","v":0},{"$f":"F_Inputs!GMR7","v":0},{"$f":"F_Inputs!GMS7","v":0},{"$f":"F_Inputs!GMT7","v":0},{"$f":"F_Inputs!GMU7","v":0},{"$f":"F_Inputs!GMV7","v":0},{"$f":"F_Inputs!GMW7","v":0},{"$f":"F_Inputs!GMX7","v":0},{"$f":"F_Inputs!GMY7","v":0},{"$f":"F_Inputs!GMZ7","v":0},{"$f":"F_Inputs!GNA7","v":0},{"$f":"F_Inputs!GNB7","v":0},{"$f":"F_Inputs!GNC7","v":0},{"$f":"F_Inputs!GND7","v":0},{"$f":"F_Inputs!GNE7","v":0},{"$f":"F_Inputs!GNF7","v":0},{"$f":"F_Inputs!GNG7","v":0},{"$f":"F_Inputs!GNH7","v":0},{"$f":"F_Inputs!GNI7","v":0},{"$f":"F_Inputs!GNJ7","v":0},{"$f":"F_Inputs!GNK7","v":0},{"$f":"F_Inputs!GNL7","v":0},{"$f":"F_Inputs!GNM7","v":0},{"$f":"F_Inputs!GNN7","v":0},{"$f":"F_Inputs!GNO7","v":0},{"$f":"F_Inputs!GNP7","v":0},{"$f":"F_Inputs!GNQ7","v":0},{"$f":"F_Inputs!GNR7","v":0},{"$f":"F_Inputs!GNS7","v":0},{"$f":"F_Inputs!GNT7","v":0},{"$f":"F_Inputs!GNU7","v":0},{"$f":"F_Inputs!GNV7","v":0},{"$f":"F_Inputs!GNW7","v":0},{"$f":"F_Inputs!GNX7","v":0},{"$f":"F_Inputs!GNY7","v":0},{"$f":"F_Inputs!GNZ7","v":0},{"$f":"F_Inputs!GOA7","v":0},{"$f":"F_Inputs!GOB7","v":0},{"$f":"F_Inputs!GOC7","v":0},{"$f":"F_Inputs!GOD7","v":0},{"$f":"F_Inputs!GOE7","v":0},{"$f":"F_Inputs!GOF7","v":0},{"$f":"F_Inputs!GOG7","v":0},{"$f":"F_Inputs!GOH7","v":0},{"$f":"F_Inputs!GOI7","v":0},{"$f":"F_Inputs!GOJ7","v":0},{"$f":"F_Inputs!GOK7","v":0},{"$f":"F_Inputs!GOL7","v":0},{"$f":"F_Inputs!GOM7","v":0},{"$f":"F_Inputs!GON7","v":0},{"$f":"F_Inputs!GOO7","v":0},{"$f":"F_Inputs!GOP7","v":0},{"$f":"F_Inputs!GOQ7","v":0},{"$f":"F_Inputs!GOR7","v":0},{"$f":"F_Inputs!GOS7","v":0},{"$f":"F_Inputs!GOT7","v":0},{"$f":"F_Inputs!GOU7","v":0},{"$f":"F_Inputs!GOV7","v":0},{"$f":"F_Inputs!GOW7","v":0},{"$f":"F_Inputs!GOX7","v":0},{"$f":"F_Inputs!GOY7","v":0},{"$f":"F_Inputs!GOZ7","v":0},{"$f":"F_Inputs!GPA7","v":0},{"$f":"F_Inputs!GPB7","v":0},{"$f":"F_Inputs!GPC7","v":0},{"$f":"F_Inputs!GPD7","v":0},{"$f":"F_Inputs!GPE7","v":0},{"$f":"F_Inputs!GPF7","v":0},{"$f":"F_Inputs!GPG7","v":0},{"$f":"F_Inputs!GPH7","v":0},{"$f":"F_Inputs!GPI7","v":0},{"$f":"F_Inputs!GPJ7","v":0},{"$f":"F_Inputs!GPK7","v":0},{"$f":"F_Inputs!GPL7","v":0},{"$f":"F_Inputs!GPM7","v":0},{"$f":"F_Inputs!GPN7","v":0},{"$f":"F_Inputs!GPO7","v":0},{"$f":"F_Inputs!GPP7","v":0},{"$f":"F_Inputs!GPQ7","v":0},{"$f":"F_Inputs!GPR7","v":0},{"$f":"F_Inputs!GPS7","v":0},{"$f":"F_Inputs!GPT7","v":0},{"$f":"F_Inputs!GPU7","v":0},{"$f":"F_Inputs!GPV7","v":0},{"$f":"F_Inputs!GPW7","v":0},{"$f":"F_Inputs!GPX7","v":0},{"$f":"F_Inputs!GPY7","v":0},{"$f":"F_Inputs!GPZ7","v":0},{"$f":"F_Inputs!GQA7","v":0},{"$f":"F_Inputs!GQB7","v":0},{"$f":"F_Inputs!GQC7","v":0},{"$f":"F_Inputs!GQD7","v":0},{"$f":"F_Inputs!GQE7","v":0},{"$f":"F_Inputs!GQF7","v":0},{"$f":"F_Inputs!GQG7","v":0},{"$f":"F_Inputs!GQH7","v":0},{"$f":"F_Inputs!GQI7","v":0},{"$f":"F_Inputs!GQJ7","v":0},{"$f":"F_Inputs!GQK7","v":0},{"$f":"F_Inputs!GQL7","v":0},{"$f":"F_Inputs!GQM7","v":0},{"$f":"F_Inputs!GQN7","v":0},{"$f":"F_Inputs!GQO7","v":0},{"$f":"F_Inputs!GQP7","v":0},{"$f":"F_Inputs!GQQ7","v":0},{"$f":"F_Inputs!GQR7","v":0},{"$f":"F_Inputs!GQS7","v":0},{"$f":"F_Inputs!GQT7","v":0},{"$f":"F_Inputs!GQU7","v":0},{"$f":"F_Inputs!GQV7","v":0},{"$f":"F_Inputs!GQW7","v":0},{"$f":"F_Inputs!GQX7","v":0},{"$f":"F_Inputs!GQY7","v":0},{"$f":"F_Inputs!GQZ7","v":0},{"$f":"F_Inputs!GRA7","v":0},{"$f":"F_Inputs!GRB7","v":0},{"$f":"F_Inputs!GRC7","v":0},{"$f":"F_Inputs!GRD7","v":0},{"$f":"F_Inputs!GRE7","v":0},{"$f":"F_Inputs!GRF7","v":0},{"$f":"F_Inputs!GRG7","v":0},{"$f":"F_Inputs!GRH7","v":0},{"$f":"F_Inputs!GRI7","v":0},{"$f":"F_Inputs!GRJ7","v":0},{"$f":"F_Inputs!GRK7","v":0},{"$f":"F_Inputs!GRL7","v":0},{"$f":"F_Inputs!GRM7","v":0},{"$f":"F_Inputs!GRN7","v":0},{"$f":"F_Inputs!GRO7","v":0},{"$f":"F_Inputs!GRP7","v":0},{"$f":"F_Inputs!GRQ7","v":0},{"$f":"F_Inputs!GRR7","v":0},{"$f":"F_Inputs!GRS7","v":0},{"$f":"F_Inputs!GRT7","v":0},{"$f":"F_Inputs!GRU7","v":0},{"$f":"F_Inputs!GRV7","v":0},{"$f":"F_Inputs!GRW7","v":0},{"$f":"F_Inputs!GRX7","v":0},{"$f":"F_Inputs!GRY7","v":0},{"$f":"F_Inputs!GRZ7","v":0},{"$f":"F_Inputs!GSA7","v":0},{"$f":"F_Inputs!GSB7","v":0},{"$f":"F_Inputs!GSC7","v":0},{"$f":"F_Inputs!GSD7","v":0},{"$f":"F_Inputs!GSE7","v":0},{"$f":"F_Inputs!GSF7","v":0},{"$f":"F_Inputs!GSG7","v":0},{"$f":"F_Inputs!GSH7","v":0},{"$f":"F_Inputs!GSI7","v":0},{"$f":"F_Inputs!GSJ7","v":0},{"$f":"F_Inputs!GSK7","v":0},{"$f":"F_Inputs!GSL7","v":0},{"$f":"F_Inputs!GSM7","v":0},{"$f":"F_Inputs!GSN7","v":0},{"$f":"F_Inputs!GSO7","v":0},{"$f":"F_Inputs!GSP7","v":0},{"$f":"F_Inputs!GSQ7","v":0},{"$f":"F_Inputs!GSR7","v":0},{"$f":"F_Inputs!GSS7","v":0},{"$f":"F_Inputs!GST7","v":0},{"$f":"F_Inputs!GSU7","v":0},{"$f":"F_Inputs!GSV7","v":0},{"$f":"F_Inputs!GSW7","v":0},{"$f":"F_Inputs!GSX7","v":0},{"$f":"F_Inputs!GSY7","v":0},{"$f":"F_Inputs!GSZ7","v":0},{"$f":"F_Inputs!GTA7","v":0},{"$f":"F_Inputs!GTB7","v":0},{"$f":"F_Inputs!GTC7","v":0},{"$f":"F_Inputs!GTD7","v":0},{"$f":"F_Inputs!GTE7","v":0},{"$f":"F_Inputs!GTF7","v":0},{"$f":"F_Inputs!GTG7","v":0},{"$f":"F_Inputs!GTH7","v":0},{"$f":"F_Inputs!GTI7","v":0},{"$f":"F_Inputs!GTJ7","v":0},{"$f":"F_Inputs!GTK7","v":0},{"$f":"F_Inputs!GTL7","v":0},{"$f":"F_Inputs!GTM7","v":0},{"$f":"F_Inputs!GTN7","v":0},{"$f":"F_Inputs!GTO7","v":0},{"$f":"F_Inputs!GTP7","v":0},{"$f":"F_Inputs!GTQ7","v":0},{"$f":"F_Inputs!GTR7","v":0},{"$f":"F_Inputs!GTS7","v":0},{"$f":"F_Inputs!GTT7","v":0},{"$f":"F_Inputs!GTU7","v":0},{"$f":"F_Inputs!GTV7","v":0},{"$f":"F_Inputs!GTW7","v":0},{"$f":"F_Inputs!GTX7","v":0},{"$f":"F_Inputs!GTY7","v":0},{"$f":"F_Inputs!GTZ7","v":0},{"$f":"F_Inputs!GUA7","v":0},{"$f":"F_Inputs!GUB7","v":0},{"$f":"F_Inputs!GUC7","v":0},{"$f":"F_Inputs!GUD7","v":0},{"$f":"F_Inputs!GUE7","v":0},{"$f":"F_Inputs!GUF7","v":0},{"$f":"F_Inputs!GUG7","v":0},{"$f":"F_Inputs!GUH7","v":0},{"$f":"F_Inputs!GUI7","v":0},{"$f":"F_Inputs!GUJ7","v":0},{"$f":"F_Inputs!GUK7","v":0},{"$f":"F_Inputs!GUL7","v":0},{"$f":"F_Inputs!GUM7","v":0},{"$f":"F_Inputs!GUN7","v":0},{"$f":"F_Inputs!GUO7","v":0},{"$f":"F_Inputs!GUP7","v":0},{"$f":"F_Inputs!GUQ7","v":0},{"$f":"F_Inputs!GUR7","v":0},{"$f":"F_Inputs!GUS7","v":0},{"$f":"F_Inputs!GUT7","v":0},{"$f":"F_Inputs!GUU7","v":0},{"$f":"F_Inputs!GUV7","v":0},{"$f":"F_Inputs!GUW7","v":0},{"$f":"F_Inputs!GUX7","v":0},{"$f":"F_Inputs!GUY7","v":0},{"$f":"F_Inputs!GUZ7","v":0},{"$f":"F_Inputs!GVA7","v":0},{"$f":"F_Inputs!GVB7","v":0},{"$f":"F_Inputs!GVC7","v":0},{"$f":"F_Inputs!GVD7","v":0},{"$f":"F_Inputs!GVE7","v":0},{"$f":"F_Inputs!GVF7","v":0},{"$f":"F_Inputs!GVG7","v":0},{"$f":"F_Inputs!GVH7","v":0},{"$f":"F_Inputs!GVI7","v":0},{"$f":"F_Inputs!GVJ7","v":0},{"$f":"F_Inputs!GVK7","v":0},{"$f":"F_Inputs!GVL7","v":0},{"$f":"F_Inputs!GVM7","v":0},{"$f":"F_Inputs!GVN7","v":0},{"$f":"F_Inputs!GVO7","v":0},{"$f":"F_Inputs!GVP7","v":0},{"$f":"F_Inputs!GVQ7","v":0},{"$f":"F_Inputs!GVR7","v":0},{"$f":"F_Inputs!GVS7","v":0},{"$f":"F_Inputs!GVT7","v":0},{"$f":"F_Inputs!GVU7","v":0},{"$f":"F_Inputs!GVV7","v":0},{"$f":"F_Inputs!GVW7","v":0},{"$f":"F_Inputs!GVX7","v":0},{"$f":"F_Inputs!GVY7","v":0},{"$f":"F_Inputs!GVZ7","v":0},{"$f":"F_Inputs!GWA7","v":0},{"$f":"F_Inputs!GWB7","v":0},{"$f":"F_Inputs!GWC7","v":0},{"$f":"F_Inputs!GWD7","v":0},{"$f":"F_Inputs!GWE7","v":0},{"$f":"F_Inputs!GWF7","v":0},{"$f":"F_Inputs!GWG7","v":0},{"$f":"F_Inputs!GWH7","v":0},{"$f":"F_Inputs!GWI7","v":0},{"$f":"F_Inputs!GWJ7","v":0},{"$f":"F_Inputs!GWK7","v":0},{"$f":"F_Inputs!GWL7","v":0},{"$f":"F_Inputs!GWM7","v":0},{"$f":"F_Inputs!GWN7","v":0},{"$f":"F_Inputs!GWO7","v":0},{"$f":"F_Inputs!GWP7","v":0},{"$f":"F_Inputs!GWQ7","v":0},{"$f":"F_Inputs!GWR7","v":0},{"$f":"F_Inputs!GWS7","v":0},{"$f":"F_Inputs!GWT7","v":0},{"$f":"F_Inputs!GWU7","v":0},{"$f":"F_Inputs!GWV7","v":0},{"$f":"F_Inputs!GWW7","v":0},{"$f":"F_Inputs!GWX7","v":0},{"$f":"F_Inputs!GWY7","v":0},{"$f":"F_Inputs!GWZ7","v":0},{"$f":"F_Inputs!GXA7","v":0},{"$f":"F_Inputs!GXB7","v":0},{"$f":"F_Inputs!GXC7","v":0},{"$f":"F_Inputs!GXD7","v":0},{"$f":"F_Inputs!GXE7","v":0},{"$f":"F_Inputs!GXF7","v":0},{"$f":"F_Inputs!GXG7","v":0},{"$f":"F_Inputs!GXH7","v":0},{"$f":"F_Inputs!GXI7","v":0},{"$f":"F_Inputs!GXJ7","v":0},{"$f":"F_Inputs!GXK7","v":0},{"$f":"F_Inputs!GXL7","v":0},{"$f":"F_Inputs!GXM7","v":0},{"$f":"F_Inputs!GXN7","v":0},{"$f":"F_Inputs!GXO7","v":0},{"$f":"F_Inputs!GXP7","v":0},{"$f":"F_Inputs!GXQ7","v":0},{"$f":"F_Inputs!GXR7","v":0},{"$f":"F_Inputs!GXS7","v":0},{"$f":"F_Inputs!GXT7","v":0},{"$f":"F_Inputs!GXU7","v":0},{"$f":"F_Inputs!GXV7","v":0},{"$f":"F_Inputs!GXW7","v":0},{"$f":"F_Inputs!GXX7","v":0},{"$f":"F_Inputs!GXY7","v":0},{"$f":"F_Inputs!GXZ7","v":0},{"$f":"F_Inputs!GYA7","v":0},{"$f":"F_Inputs!GYB7","v":0},{"$f":"F_Inputs!GYC7","v":0},{"$f":"F_Inputs!GYD7","v":0},{"$f":"F_Inputs!GYE7","v":0},{"$f":"F_Inputs!GYF7","v":0},{"$f":"F_Inputs!GYG7","v":0},{"$f":"F_Inputs!GYH7","v":0},{"$f":"F_Inputs!GYI7","v":0},{"$f":"F_Inputs!GYJ7","v":0},{"$f":"F_Inputs!GYK7","v":0},{"$f":"F_Inputs!GYL7","v":0},{"$f":"F_Inputs!GYM7","v":0},{"$f":"F_Inputs!GYN7","v":0},{"$f":"F_Inputs!GYO7","v":0},{"$f":"F_Inputs!GYP7","v":0},{"$f":"F_Inputs!GYQ7","v":0},{"$f":"F_Inputs!GYR7","v":0},{"$f":"F_Inputs!GYS7","v":0},{"$f":"F_Inputs!GYT7","v":0},{"$f":"F_Inputs!GYU7","v":0},{"$f":"F_Inputs!GYV7","v":0},{"$f":"F_Inputs!GYW7","v":0},{"$f":"F_Inputs!GYX7","v":0},{"$f":"F_Inputs!GYY7","v":0},{"$f":"F_Inputs!GYZ7","v":0},{"$f":"F_Inputs!GZA7","v":0},{"$f":"F_Inputs!GZB7","v":0},{"$f":"F_Inputs!GZC7","v":0},{"$f":"F_Inputs!GZD7","v":0},{"$f":"F_Inputs!GZE7","v":0},{"$f":"F_Inputs!GZF7","v":0},{"$f":"F_Inputs!GZG7","v":0},{"$f":"F_Inputs!GZH7","v":0},{"$f":"F_Inputs!GZI7","v":0},{"$f":"F_Inputs!GZJ7","v":0},{"$f":"F_Inputs!GZK7","v":0},{"$f":"F_Inputs!GZL7","v":0},{"$f":"F_Inputs!GZM7","v":0},{"$f":"F_Inputs!GZN7","v":0},{"$f":"F_Inputs!GZO7","v":0},{"$f":"F_Inputs!GZP7","v":0},{"$f":"F_Inputs!GZQ7","v":0},{"$f":"F_Inputs!GZR7","v":0},{"$f":"F_Inputs!GZS7","v":0},{"$f":"F_Inputs!GZT7","v":0},{"$f":"F_Inputs!GZU7","v":0},{"$f":"F_Inputs!GZV7","v":0},{"$f":"F_Inputs!GZW7","v":0},{"$f":"F_Inputs!GZX7","v":0},{"$f":"F_Inputs!GZY7","v":0},{"$f":"F_Inputs!GZZ7","v":0},{"$f":"F_Inputs!HAA7","v":0},{"$f":"F_Inputs!HAB7","v":0},{"$f":"F_Inputs!HAC7","v":0},{"$f":"F_Inputs!HAD7","v":0},{"$f":"F_Inputs!HAE7","v":0},{"$f":"F_Inputs!HAF7","v":0},{"$f":"F_Inputs!HAG7","v":0},{"$f":"F_Inputs!HAH7","v":0},{"$f":"F_Inputs!HAI7","v":0},{"$f":"F_Inputs!HAJ7","v":0},{"$f":"F_Inputs!HAK7","v":0},{"$f":"F_Inputs!HAL7","v":0},{"$f":"F_Inputs!HAM7","v":0},{"$f":"F_Inputs!HAN7","v":0},{"$f":"F_Inputs!HAO7","v":0},{"$f":"F_Inputs!HAP7","v":0},{"$f":"F_Inputs!HAQ7","v":0},{"$f":"F_Inputs!HAR7","v":0},{"$f":"F_Inputs!HAS7","v":0},{"$f":"F_Inputs!HAT7","v":0},{"$f":"F_Inputs!HAU7","v":0},{"$f":"F_Inputs!HAV7","v":0},{"$f":"F_Inputs!HAW7","v":0},{"$f":"F_Inputs!HAX7","v":0},{"$f":"F_Inputs!HAY7","v":0},{"$f":"F_Inputs!HAZ7","v":0},{"$f":"F_Inputs!HBA7","v":0},{"$f":"F_Inputs!HBB7","v":0},{"$f":"F_Inputs!HBC7","v":0},{"$f":"F_Inputs!HBD7","v":0},{"$f":"F_Inputs!HBE7","v":0},{"$f":"F_Inputs!HBF7","v":0},{"$f":"F_Inputs!HBG7","v":0},{"$f":"F_Inputs!HBH7","v":0},{"$f":"F_Inputs!HBI7","v":0},{"$f":"F_Inputs!HBJ7","v":0},{"$f":"F_Inputs!HBK7","v":0},{"$f":"F_Inputs!HBL7","v":0},{"$f":"F_Inputs!HBM7","v":0},{"$f":"F_Inputs!HBN7","v":0},{"$f":"F_Inputs!HBO7","v":0},{"$f":"F_Inputs!HBP7","v":0},{"$f":"F_Inputs!HBQ7","v":0},{"$f":"F_Inputs!HBR7","v":0},{"$f":"F_Inputs!HBS7","v":0},{"$f":"F_Inputs!HBT7","v":0},{"$f":"F_Inputs!HBU7","v":0},{"$f":"F_Inputs!HBV7","v":0},{"$f":"F_Inputs!HBW7","v":0},{"$f":"F_Inputs!HBX7","v":0},{"$f":"F_Inputs!HBY7","v":0},{"$f":"F_Inputs!HBZ7","v":0},{"$f":"F_Inputs!HCA7","v":0},{"$f":"F_Inputs!HCB7","v":0},{"$f":"F_Inputs!HCC7","v":0},{"$f":"F_Inputs!HCD7","v":0},{"$f":"F_Inputs!HCE7","v":0},{"$f":"F_Inputs!HCF7","v":0},{"$f":"F_Inputs!HCG7","v":0},{"$f":"F_Inputs!HCH7","v":0},{"$f":"F_Inputs!HCI7","v":0},{"$f":"F_Inputs!HCJ7","v":0},{"$f":"F_Inputs!HCK7","v":0},{"$f":"F_Inputs!HCL7","v":0},{"$f":"F_Inputs!HCM7","v":0},{"$f":"F_Inputs!HCN7","v":0},{"$f":"F_Inputs!HCO7","v":0},{"$f":"F_Inputs!HCP7","v":0},{"$f":"F_Inputs!HCQ7","v":0},{"$f":"F_Inputs!HCR7","v":0},{"$f":"F_Inputs!HCS7","v":0},{"$f":"F_Inputs!HCT7","v":0},{"$f":"F_Inputs!HCU7","v":0},{"$f":"F_Inputs!HCV7","v":0},{"$f":"F_Inputs!HCW7","v":0},{"$f":"F_Inputs!HCX7","v":0},{"$f":"F_Inputs!HCY7","v":0},{"$f":"F_Inputs!HCZ7","v":0},{"$f":"F_Inputs!HDA7","v":0},{"$f":"F_Inputs!HDB7","v":0},{"$f":"F_Inputs!HDC7","v":0},{"$f":"F_Inputs!HDD7","v":0},{"$f":"F_Inputs!HDE7","v":0},{"$f":"F_Inputs!HDF7","v":0},{"$f":"F_Inputs!HDG7","v":0},{"$f":"F_Inputs!HDH7","v":0},{"$f":"F_Inputs!HDI7","v":0},{"$f":"F_Inputs!HDJ7","v":0},{"$f":"F_Inputs!HDK7","v":0},{"$f":"F_Inputs!HDL7","v":0},{"$f":"F_Inputs!HDM7","v":0},{"$f":"F_Inputs!HDN7","v":0},{"$f":"F_Inputs!HDO7","v":0},{"$f":"F_Inputs!HDP7","v":0},{"$f":"F_Inputs!HDQ7","v":0},{"$f":"F_Inputs!HDR7","v":0},{"$f":"F_Inputs!HDS7","v":0},{"$f":"F_Inputs!HDT7","v":0},{"$f":"F_Inputs!HDU7","v":0},{"$f":"F_Inputs!HDV7","v":0},{"$f":"F_Inputs!HDW7","v":0},{"$f":"F_Inputs!HDX7","v":0},{"$f":"F_Inputs!HDY7","v":0},{"$f":"F_Inputs!HDZ7","v":0},{"$f":"F_Inputs!HEA7","v":0},{"$f":"F_Inputs!HEB7","v":0},{"$f":"F_Inputs!HEC7","v":0},{"$f":"F_Inputs!HED7","v":0},{"$f":"F_Inputs!HEE7","v":0},{"$f":"F_Inputs!HEF7","v":0},{"$f":"F_Inputs!HEG7","v":0},{"$f":"F_Inputs!HEH7","v":0},{"$f":"F_Inputs!HEI7","v":0},{"$f":"F_Inputs!HEJ7","v":0},{"$f":"F_Inputs!HEK7","v":0},{"$f":"F_Inputs!HEL7","v":0},{"$f":"F_Inputs!HEM7","v":0},{"$f":"F_Inputs!HEN7","v":0},{"$f":"F_Inputs!HEO7","v":0},{"$f":"F_Inputs!HEP7","v":0},{"$f":"F_Inputs!HEQ7","v":0},{"$f":"F_Inputs!HER7","v":0},{"$f":"F_Inputs!HES7","v":0},{"$f":"F_Inputs!HET7","v":0},{"$f":"F_Inputs!HEU7","v":0},{"$f":"F_Inputs!HEV7","v":0},{"$f":"F_Inputs!HEW7","v":0},{"$f":"F_Inputs!HEX7","v":0},{"$f":"F_Inputs!HEY7","v":0},{"$f":"F_Inputs!HEZ7","v":0},{"$f":"F_Inputs!HFA7","v":0},{"$f":"F_Inputs!HFB7","v":0},{"$f":"F_Inputs!HFC7","v":0},{"$f":"F_Inputs!HFD7","v":0},{"$f":"F_Inputs!HFE7","v":0},{"$f":"F_Inputs!HFF7","v":0},{"$f":"F_Inputs!HFG7","v":0},{"$f":"F_Inputs!HFH7","v":0},{"$f":"F_Inputs!HFI7","v":0},{"$f":"F_Inputs!HFJ7","v":0},{"$f":"F_Inputs!HFK7","v":0},{"$f":"F_Inputs!HFL7","v":0},{"$f":"F_Inputs!HFM7","v":0},{"$f":"F_Inputs!HFN7","v":0},{"$f":"F_Inputs!HFO7","v":0},{"$f":"F_Inputs!HFP7","v":0},{"$f":"F_Inputs!HFQ7","v":0},{"$f":"F_Inputs!HFR7","v":0},{"$f":"F_Inputs!HFS7","v":0},{"$f":"F_Inputs!HFT7","v":0},{"$f":"F_Inputs!HFU7","v":0},{"$f":"F_Inputs!HFV7","v":0},{"$f":"F_Inputs!HFW7","v":0},{"$f":"F_Inputs!HFX7","v":0},{"$f":"F_Inputs!HFY7","v":0},{"$f":"F_Inputs!HFZ7","v":0},{"$f":"F_Inputs!HGA7","v":0},{"$f":"F_Inputs!HGB7","v":0},{"$f":"F_Inputs!HGC7","v":0},{"$f":"F_Inputs!HGD7","v":0},{"$f":"F_Inputs!HGE7","v":0},{"$f":"F_Inputs!HGF7","v":0},{"$f":"F_Inputs!HGG7","v":0},{"$f":"F_Inputs!HGH7","v":0},{"$f":"F_Inputs!HGI7","v":0},{"$f":"F_Inputs!HGJ7","v":0},{"$f":"F_Inputs!HGK7","v":0},{"$f":"F_Inputs!HGL7","v":0},{"$f":"F_Inputs!HGM7","v":0},{"$f":"F_Inputs!HGN7","v":0},{"$f":"F_Inputs!HGO7","v":0},{"$f":"F_Inputs!HGP7","v":0},{"$f":"F_Inputs!HGQ7","v":0},{"$f":"F_Inputs!HGR7","v":0},{"$f":"F_Inputs!HGS7","v":0},{"$f":"F_Inputs!HGT7","v":0},{"$f":"F_Inputs!HGU7","v":0},{"$f":"F_Inputs!HGV7","v":0},{"$f":"F_Inputs!HGW7","v":0},{"$f":"F_Inputs!HGX7","v":0},{"$f":"F_Inputs!HGY7","v":0},{"$f":"F_Inputs!HGZ7","v":0},{"$f":"F_Inputs!HHA7","v":0},{"$f":"F_Inputs!HHB7","v":0},{"$f":"F_Inputs!HHC7","v":0},{"$f":"F_Inputs!HHD7","v":0},{"$f":"F_Inputs!HHE7","v":0},{"$f":"F_Inputs!HHF7","v":0},{"$f":"F_Inputs!HHG7","v":0},{"$f":"F_Inputs!HHH7","v":0},{"$f":"F_Inputs!HHI7","v":0},{"$f":"F_Inputs!HHJ7","v":0},{"$f":"F_Inputs!HHK7","v":0},{"$f":"F_Inputs!HHL7","v":0},{"$f":"F_Inputs!HHM7","v":0},{"$f":"F_Inputs!HHN7","v":0},{"$f":"F_Inputs!HHO7","v":0},{"$f":"F_Inputs!HHP7","v":0},{"$f":"F_Inputs!HHQ7","v":0},{"$f":"F_Inputs!HHR7","v":0},{"$f":"F_Inputs!HHS7","v":0},{"$f":"F_Inputs!HHT7","v":0},{"$f":"F_Inputs!HHU7","v":0},{"$f":"F_Inputs!HHV7","v":0},{"$f":"F_Inputs!HHW7","v":0},{"$f":"F_Inputs!HHX7","v":0},{"$f":"F_Inputs!HHY7","v":0},{"$f":"F_Inputs!HHZ7","v":0},{"$f":"F_Inputs!HIA7","v":0},{"$f":"F_Inputs!HIB7","v":0},{"$f":"F_Inputs!HIC7","v":0},{"$f":"F_Inputs!HID7","v":0},{"$f":"F_Inputs!HIE7","v":0},{"$f":"F_Inputs!HIF7","v":0},{"$f":"F_Inputs!HIG7","v":0},{"$f":"F_Inputs!HIH7","v":0},{"$f":"F_Inputs!HII7","v":0},{"$f":"F_Inputs!HIJ7","v":0},{"$f":"F_Inputs!HIK7","v":0},{"$f":"F_Inputs!HIL7","v":0},{"$f":"F_Inputs!HIM7","v":0},{"$f":"F_Inputs!HIN7","v":0},{"$f":"F_Inputs!HIO7","v":0},{"$f":"F_Inputs!HIP7","v":0},{"$f":"F_Inputs!HIQ7","v":0},{"$f":"F_Inputs!HIR7","v":0},{"$f":"F_Inputs!HIS7","v":0},{"$f":"F_Inputs!HIT7","v":0},{"$f":"F_Inputs!HIU7","v":0},{"$f":"F_Inputs!HIV7","v":0},{"$f":"F_Inputs!HIW7","v":0},{"$f":"F_Inputs!HIX7","v":0},{"$f":"F_Inputs!HIY7","v":0},{"$f":"F_Inputs!HIZ7","v":0},{"$f":"F_Inputs!HJA7","v":0},{"$f":"F_Inputs!HJB7","v":0},{"$f":"F_Inputs!HJC7","v":0},{"$f":"F_Inputs!HJD7","v":0},{"$f":"F_Inputs!HJE7","v":0},{"$f":"F_Inputs!HJF7","v":0},{"$f":"F_Inputs!HJG7","v":0},{"$f":"F_Inputs!HJH7","v":0},{"$f":"F_Inputs!HJI7","v":0},{"$f":"F_Inputs!HJJ7","v":0},{"$f":"F_Inputs!HJK7","v":0},{"$f":"F_Inputs!HJL7","v":0},{"$f":"F_Inputs!HJM7","v":0},{"$f":"F_Inputs!HJN7","v":0},{"$f":"F_Inputs!HJO7","v":0},{"$f":"F_Inputs!HJP7","v":0},{"$f":"F_Inputs!HJQ7","v":0},{"$f":"F_Inputs!HJR7","v":0},{"$f":"F_Inputs!HJS7","v":0},{"$f":"F_Inputs!HJT7","v":0},{"$f":"F_Inputs!HJU7","v":0},{"$f":"F_Inputs!HJV7","v":0},{"$f":"F_Inputs!HJW7","v":0},{"$f":"F_Inputs!HJX7","v":0},{"$f":"F_Inputs!HJY7","v":0},{"$f":"F_Inputs!HJZ7","v":0},{"$f":"F_Inputs!HKA7","v":0},{"$f":"F_Inputs!HKB7","v":0},{"$f":"F_Inputs!HKC7","v":0},{"$f":"F_Inputs!HKD7","v":0},{"$f":"F_Inputs!HKE7","v":0},{"$f":"F_Inputs!HKF7","v":0},{"$f":"F_Inputs!HKG7","v":0},{"$f":"F_Inputs!HKH7","v":0},{"$f":"F_Inputs!HKI7","v":0},{"$f":"F_Inputs!HKJ7","v":0},{"$f":"F_Inputs!HKK7","v":0},{"$f":"F_Inputs!HKL7","v":0},{"$f":"F_Inputs!HKM7","v":0},{"$f":"F_Inputs!HKN7","v":0},{"$f":"F_Inputs!HKO7","v":0},{"$f":"F_Inputs!HKP7","v":0},{"$f":"F_Inputs!HKQ7","v":0},{"$f":"F_Inputs!HKR7","v":0},{"$f":"F_Inputs!HKS7","v":0},{"$f":"F_Inputs!HKT7","v":0},{"$f":"F_Inputs!HKU7","v":0},{"$f":"F_Inputs!HKV7","v":0},{"$f":"F_Inputs!HKW7","v":0},{"$f":"F_Inputs!HKX7","v":0},{"$f":"F_Inputs!HKY7","v":0},{"$f":"F_Inputs!HKZ7","v":0},{"$f":"F_Inputs!HLA7","v":0},{"$f":"F_Inputs!HLB7","v":0},{"$f":"F_Inputs!HLC7","v":0},{"$f":"F_Inputs!HLD7","v":0},{"$f":"F_Inputs!HLE7","v":0},{"$f":"F_Inputs!HLF7","v":0},{"$f":"F_Inputs!HLG7","v":0},{"$f":"F_Inputs!HLH7","v":0},{"$f":"F_Inputs!HLI7","v":0},{"$f":"F_Inputs!HLJ7","v":0},{"$f":"F_Inputs!HLK7","v":0},{"$f":"F_Inputs!HLL7","v":0},{"$f":"F_Inputs!HLM7","v":0},{"$f":"F_Inputs!HLN7","v":0},{"$f":"F_Inputs!HLO7","v":0},{"$f":"F_Inputs!HLP7","v":0},{"$f":"F_Inputs!HLQ7","v":0},{"$f":"F_Inputs!HLR7","v":0},{"$f":"F_Inputs!HLS7","v":0},{"$f":"F_Inputs!HLT7","v":0},{"$f":"F_Inputs!HLU7","v":0},{"$f":"F_Inputs!HLV7","v":0},{"$f":"F_Inputs!HLW7","v":0},{"$f":"F_Inputs!HLX7","v":0},{"$f":"F_Inputs!HLY7","v":0},{"$f":"F_Inputs!HLZ7","v":0},{"$f":"F_Inputs!HMA7","v":0},{"$f":"F_Inputs!HMB7","v":0},{"$f":"F_Inputs!HMC7","v":0},{"$f":"F_Inputs!HMD7","v":0},{"$f":"F_Inputs!HME7","v":0},{"$f":"F_Inputs!HMF7","v":0},{"$f":"F_Inputs!HMG7","v":0},{"$f":"F_Inputs!HMH7","v":0},{"$f":"F_Inputs!HMI7","v":0},{"$f":"F_Inputs!HMJ7","v":0},{"$f":"F_Inputs!HMK7","v":0},{"$f":"F_Inputs!HML7","v":0},{"$f":"F_Inputs!HMM7","v":0},{"$f":"F_Inputs!HMN7","v":0},{"$f":"F_Inputs!HMO7","v":0},{"$f":"F_Inputs!HMP7","v":0},{"$f":"F_Inputs!HMQ7","v":0},{"$f":"F_Inputs!HMR7","v":0},{"$f":"F_Inputs!HMS7","v":0},{"$f":"F_Inputs!HMT7","v":0},{"$f":"F_Inputs!HMU7","v":0},{"$f":"F_Inputs!HMV7","v":0},{"$f":"F_Inputs!HMW7","v":0},{"$f":"F_Inputs!HMX7","v":0},{"$f":"F_Inputs!HMY7","v":0},{"$f":"F_Inputs!HMZ7","v":0},{"$f":"F_Inputs!HNA7","v":0},{"$f":"F_Inputs!HNB7","v":0},{"$f":"F_Inputs!HNC7","v":0},{"$f":"F_Inputs!HND7","v":0},{"$f":"F_Inputs!HNE7","v":0},{"$f":"F_Inputs!HNF7","v":0},{"$f":"F_Inputs!HNG7","v":0},{"$f":"F_Inputs!HNH7","v":0},{"$f":"F_Inputs!HNI7","v":0},{"$f":"F_Inputs!HNJ7","v":0},{"$f":"F_Inputs!HNK7","v":0},{"$f":"F_Inputs!HNL7","v":0},{"$f":"F_Inputs!HNM7","v":0},{"$f":"F_Inputs!HNN7","v":0},{"$f":"F_Inputs!HNO7","v":0},{"$f":"F_Inputs!HNP7","v":0},{"$f":"F_Inputs!HNQ7","v":0},{"$f":"F_Inputs!HNR7","v":0},{"$f":"F_Inputs!HNS7","v":0},{"$f":"F_Inputs!HNT7","v":0},{"$f":"F_Inputs!HNU7","v":0},{"$f":"F_Inputs!HNV7","v":0},{"$f":"F_Inputs!HNW7","v":0},{"$f":"F_Inputs!HNX7","v":0},{"$f":"F_Inputs!HNY7","v":0},{"$f":"F_Inputs!HNZ7","v":0},{"$f":"F_Inputs!HOA7","v":0},{"$f":"F_Inputs!HOB7","v":0},{"$f":"F_Inputs!HOC7","v":0},{"$f":"F_Inputs!HOD7","v":0},{"$f":"F_Inputs!HOE7","v":0},{"$f":"F_Inputs!HOF7","v":0},{"$f":"F_Inputs!HOG7","v":0},{"$f":"F_Inputs!HOH7","v":0},{"$f":"F_Inputs!HOI7","v":0},{"$f":"F_Inputs!HOJ7","v":0},{"$f":"F_Inputs!HOK7","v":0},{"$f":"F_Inputs!HOL7","v":0},{"$f":"F_Inputs!HOM7","v":0},{"$f":"F_Inputs!HON7","v":0},{"$f":"F_Inputs!HOO7","v":0},{"$f":"F_Inputs!HOP7","v":0},{"$f":"F_Inputs!HOQ7","v":0},{"$f":"F_Inputs!HOR7","v":0},{"$f":"F_Inputs!HOS7","v":0},{"$f":"F_Inputs!HOT7","v":0},{"$f":"F_Inputs!HOU7","v":0},{"$f":"F_Inputs!HOV7","v":0},{"$f":"F_Inputs!HOW7","v":0},{"$f":"F_Inputs!HOX7","v":0},{"$f":"F_Inputs!HOY7","v":0},{"$f":"F_Inputs!HOZ7","v":0},{"$f":"F_Inputs!HPA7","v":0},{"$f":"F_Inputs!HPB7","v":0},{"$f":"F_Inputs!HPC7","v":0},{"$f":"F_Inputs!HPD7","v":0},{"$f":"F_Inputs!HPE7","v":0},{"$f":"F_Inputs!HPF7","v":0},{"$f":"F_Inputs!HPG7","v":0},{"$f":"F_Inputs!HPH7","v":0},{"$f":"F_Inputs!HPI7","v":0},{"$f":"F_Inputs!HPJ7","v":0},{"$f":"F_Inputs!HPK7","v":0},{"$f":"F_Inputs!HPL7","v":0},{"$f":"F_Inputs!HPM7","v":0},{"$f":"F_Inputs!HPN7","v":0},{"$f":"F_Inputs!HPO7","v":0},{"$f":"F_Inputs!HPP7","v":0},{"$f":"F_Inputs!HPQ7","v":0},{"$f":"F_Inputs!HPR7","v":0},{"$f":"F_Inputs!HPS7","v":0},{"$f":"F_Inputs!HPT7","v":0},{"$f":"F_Inputs!HPU7","v":0},{"$f":"F_Inputs!HPV7","v":0},{"$f":"F_Inputs!HPW7","v":0},{"$f":"F_Inputs!HPX7","v":0},{"$f":"F_Inputs!HPY7","v":0},{"$f":"F_Inputs!HPZ7","v":0},{"$f":"F_Inputs!HQA7","v":0},{"$f":"F_Inputs!HQB7","v":0},{"$f":"F_Inputs!HQC7","v":0},{"$f":"F_Inputs!HQD7","v":0},{"$f":"F_Inputs!HQE7","v":0},{"$f":"F_Inputs!HQF7","v":0},{"$f":"F_Inputs!HQG7","v":0},{"$f":"F_Inputs!HQH7","v":0},{"$f":"F_Inputs!HQI7","v":0},{"$f":"F_Inputs!HQJ7","v":0},{"$f":"F_Inputs!HQK7","v":0},{"$f":"F_Inputs!HQL7","v":0},{"$f":"F_Inputs!HQM7","v":0},{"$f":"F_Inputs!HQN7","v":0},{"$f":"F_Inputs!HQO7","v":0},{"$f":"F_Inputs!HQP7","v":0},{"$f":"F_Inputs!HQQ7","v":0},{"$f":"F_Inputs!HQR7","v":0},{"$f":"F_Inputs!HQS7","v":0},{"$f":"F_Inputs!HQT7","v":0},{"$f":"F_Inputs!HQU7","v":0},{"$f":"F_Inputs!HQV7","v":0},{"$f":"F_Inputs!HQW7","v":0},{"$f":"F_Inputs!HQX7","v":0},{"$f":"F_Inputs!HQY7","v":0},{"$f":"F_Inputs!HQZ7","v":0},{"$f":"F_Inputs!HRA7","v":0},{"$f":"F_Inputs!HRB7","v":0},{"$f":"F_Inputs!HRC7","v":0},{"$f":"F_Inputs!HRD7","v":0},{"$f":"F_Inputs!HRE7","v":0},{"$f":"F_Inputs!HRF7","v":0},{"$f":"F_Inputs!HRG7","v":0},{"$f":"F_Inputs!HRH7","v":0},{"$f":"F_Inputs!HRI7","v":0},{"$f":"F_Inputs!HRJ7","v":0},{"$f":"F_Inputs!HRK7","v":0},{"$f":"F_Inputs!HRL7","v":0},{"$f":"F_Inputs!HRM7","v":0},{"$f":"F_Inputs!HRN7","v":0},{"$f":"F_Inputs!HRO7","v":0},{"$f":"F_Inputs!HRP7","v":0},{"$f":"F_Inputs!HRQ7","v":0},{"$f":"F_Inputs!HRR7","v":0},{"$f":"F_Inputs!HRS7","v":0},{"$f":"F_Inputs!HRT7","v":0},{"$f":"F_Inputs!HRU7","v":0},{"$f":"F_Inputs!HRV7","v":0},{"$f":"F_Inputs!HRW7","v":0},{"$f":"F_Inputs!HRX7","v":0},{"$f":"F_Inputs!HRY7","v":0},{"$f":"F_Inputs!HRZ7","v":0},{"$f":"F_Inputs!HSA7","v":0},{"$f":"F_Inputs!HSB7","v":0},{"$f":"F_Inputs!HSC7","v":0},{"$f":"F_Inputs!HSD7","v":0},{"$f":"F_Inputs!HSE7","v":0},{"$f":"F_Inputs!HSF7","v":0},{"$f":"F_Inputs!HSG7","v":0},{"$f":"F_Inputs!HSH7","v":0},{"$f":"F_Inputs!HSI7","v":0},{"$f":"F_Inputs!HSJ7","v":0},{"$f":"F_Inputs!HSK7","v":0},{"$f":"F_Inputs!HSL7","v":0},{"$f":"F_Inputs!HSM7","v":0},{"$f":"F_Inputs!HSN7","v":0},{"$f":"F_Inputs!HSO7","v":0},{"$f":"F_Inputs!HSP7","v":0},{"$f":"F_Inputs!HSQ7","v":0},{"$f":"F_Inputs!HSR7","v":0},{"$f":"F_Inputs!HSS7","v":0},{"$f":"F_Inputs!HST7","v":0},{"$f":"F_Inputs!HSU7","v":0},{"$f":"F_Inputs!HSV7","v":0},{"$f":"F_Inputs!HSW7","v":0},{"$f":"F_Inputs!HSX7","v":0},{"$f":"F_Inputs!HSY7","v":0},{"$f":"F_Inputs!HSZ7","v":0},{"$f":"F_Inputs!HTA7","v":0},{"$f":"F_Inputs!HTB7","v":0},{"$f":"F_Inputs!HTC7","v":0},{"$f":"F_Inputs!HTD7","v":0},{"$f":"F_Inputs!HTE7","v":0},{"$f":"F_Inputs!HTF7","v":0},{"$f":"F_Inputs!HTG7","v":0},{"$f":"F_Inputs!HTH7","v":0},{"$f":"F_Inputs!HTI7","v":0},{"$f":"F_Inputs!HTJ7","v":0},{"$f":"F_Inputs!HTK7","v":0},{"$f":"F_Inputs!HTL7","v":0},{"$f":"F_Inputs!HTM7","v":0},{"$f":"F_Inputs!HTN7","v":0},{"$f":"F_Inputs!HTO7","v":0},{"$f":"F_Inputs!HTP7","v":0},{"$f":"F_Inputs!HTQ7","v":0},{"$f":"F_Inputs!HTR7","v":0},{"$f":"F_Inputs!HTS7","v":0},{"$f":"F_Inputs!HTT7","v":0},{"$f":"F_Inputs!HTU7","v":0},{"$f":"F_Inputs!HTV7","v":0},{"$f":"F_Inputs!HTW7","v":0},{"$f":"F_Inputs!HTX7","v":0},{"$f":"F_Inputs!HTY7","v":0},{"$f":"F_Inputs!HTZ7","v":0},{"$f":"F_Inputs!HUA7","v":0},{"$f":"F_Inputs!HUB7","v":0},{"$f":"F_Inputs!HUC7","v":0},{"$f":"F_Inputs!HUD7","v":0},{"$f":"F_Inputs!HUE7","v":0},{"$f":"F_Inputs!HUF7","v":0},{"$f":"F_Inputs!HUG7","v":0},{"$f":"F_Inputs!HUH7","v":0},{"$f":"F_Inputs!HUI7","v":0},{"$f":"F_Inputs!HUJ7","v":0},{"$f":"F_Inputs!HUK7","v":0},{"$f":"F_Inputs!HUL7","v":0},{"$f":"F_Inputs!HUM7","v":0},{"$f":"F_Inputs!HUN7","v":0},{"$f":"F_Inputs!HUO7","v":0},{"$f":"F_Inputs!HUP7","v":0},{"$f":"F_Inputs!HUQ7","v":0},{"$f":"F_Inputs!HUR7","v":0},{"$f":"F_Inputs!HUS7","v":0},{"$f":"F_Inputs!HUT7","v":0},{"$f":"F_Inputs!HUU7","v":0},{"$f":"F_Inputs!HUV7","v":0},{"$f":"F_Inputs!HUW7","v":0},{"$f":"F_Inputs!HUX7","v":0},{"$f":"F_Inputs!HUY7","v":0},{"$f":"F_Inputs!HUZ7","v":0},{"$f":"F_Inputs!HVA7","v":0},{"$f":"F_Inputs!HVB7","v":0},{"$f":"F_Inputs!HVC7","v":0},{"$f":"F_Inputs!HVD7","v":0},{"$f":"F_Inputs!HVE7","v":0},{"$f":"F_Inputs!HVF7","v":0},{"$f":"F_Inputs!HVG7","v":0},{"$f":"F_Inputs!HVH7","v":0},{"$f":"F_Inputs!HVI7","v":0},{"$f":"F_Inputs!HVJ7","v":0},{"$f":"F_Inputs!HVK7","v":0},{"$f":"F_Inputs!HVL7","v":0},{"$f":"F_Inputs!HVM7","v":0},{"$f":"F_Inputs!HVN7","v":0},{"$f":"F_Inputs!HVO7","v":0},{"$f":"F_Inputs!HVP7","v":0},{"$f":"F_Inputs!HVQ7","v":0},{"$f":"F_Inputs!HVR7","v":0},{"$f":"F_Inputs!HVS7","v":0},{"$f":"F_Inputs!HVT7","v":0},{"$f":"F_Inputs!HVU7","v":0},{"$f":"F_Inputs!HVV7","v":0},{"$f":"F_Inputs!HVW7","v":0},{"$f":"F_Inputs!HVX7","v":0},{"$f":"F_Inputs!HVY7","v":0},{"$f":"F_Inputs!HVZ7","v":0},{"$f":"F_Inputs!HWA7","v":0},{"$f":"F_Inputs!HWB7","v":0},{"$f":"F_Inputs!HWC7","v":0},{"$f":"F_Inputs!HWD7","v":0},{"$f":"F_Inputs!HWE7","v":0},{"$f":"F_Inputs!HWF7","v":0},{"$f":"F_Inputs!HWG7","v":0},{"$f":"F_Inputs!HWH7","v":0},{"$f":"F_Inputs!HWI7","v":0},{"$f":"F_Inputs!HWJ7","v":0},{"$f":"F_Inputs!HWK7","v":0},{"$f":"F_Inputs!HWL7","v":0},{"$f":"F_Inputs!HWM7","v":0},{"$f":"F_Inputs!HWN7","v":0},{"$f":"F_Inputs!HWO7","v":0},{"$f":"F_Inputs!HWP7","v":0},{"$f":"F_Inputs!HWQ7","v":0},{"$f":"F_Inputs!HWR7","v":0},{"$f":"F_Inputs!HWS7","v":0},{"$f":"F_Inputs!HWT7","v":0},{"$f":"F_Inputs!HWU7","v":0},{"$f":"F_Inputs!HWV7","v":0},{"$f":"F_Inputs!HWW7","v":0},{"$f":"F_Inputs!HWX7","v":0},{"$f":"F_Inputs!HWY7","v":0},{"$f":"F_Inputs!HWZ7","v":0},{"$f":"F_Inputs!HXA7","v":0},{"$f":"F_Inputs!HXB7","v":0},{"$f":"F_Inputs!HXC7","v":0},{"$f":"F_Inputs!HXD7","v":0},{"$f":"F_Inputs!HXE7","v":0},{"$f":"F_Inputs!HXF7","v":0},{"$f":"F_Inputs!HXG7","v":0},{"$f":"F_Inputs!HXH7","v":0},{"$f":"F_Inputs!HXI7","v":0},{"$f":"F_Inputs!HXJ7","v":0},{"$f":"F_Inputs!HXK7","v":0},{"$f":"F_Inputs!HXL7","v":0},{"$f":"F_Inputs!HXM7","v":0},{"$f":"F_Inputs!HXN7","v":0},{"$f":"F_Inputs!HXO7","v":0},{"$f":"F_Inputs!HXP7","v":0},{"$f":"F_Inputs!HXQ7","v":0},{"$f":"F_Inputs!HXR7","v":0},{"$f":"F_Inputs!HXS7","v":0},{"$f":"F_Inputs!HXT7","v":0},{"$f":"F_Inputs!HXU7","v":0},{"$f":"F_Inputs!HXV7","v":0},{"$f":"F_Inputs!HXW7","v":0},{"$f":"F_Inputs!HXX7","v":0},{"$f":"F_Inputs!HXY7","v":0},{"$f":"F_Inputs!HXZ7","v":0},{"$f":"F_Inputs!HYA7","v":0},{"$f":"F_Inputs!HYB7","v":0},{"$f":"F_Inputs!HYC7","v":0},{"$f":"F_Inputs!HYD7","v":0},{"$f":"F_Inputs!HYE7","v":0},{"$f":"F_Inputs!HYF7","v":0},{"$f":"F_Inputs!HYG7","v":0},{"$f":"F_Inputs!HYH7","v":0},{"$f":"F_Inputs!HYI7","v":0},{"$f":"F_Inputs!HYJ7","v":0},{"$f":"F_Inputs!HYK7","v":0},{"$f":"F_Inputs!HYL7","v":0},{"$f":"F_Inputs!HYM7","v":0},{"$f":"F_Inputs!HYN7","v":0},{"$f":"F_Inputs!HYO7","v":0},{"$f":"F_Inputs!HYP7","v":0},{"$f":"F_Inputs!HYQ7","v":0},{"$f":"F_Inputs!HYR7","v":0},{"$f":"F_Inputs!HYS7","v":0},{"$f":"F_Inputs!HYT7","v":0},{"$f":"F_Inputs!HYU7","v":0},{"$f":"F_Inputs!HYV7","v":0},{"$f":"F_Inputs!HYW7","v":0},{"$f":"F_Inputs!HYX7","v":0},{"$f":"F_Inputs!HYY7","v":0},{"$f":"F_Inputs!HYZ7","v":0},{"$f":"F_Inputs!HZA7","v":0},{"$f":"F_Inputs!HZB7","v":0},{"$f":"F_Inputs!HZC7","v":0},{"$f":"F_Inputs!HZD7","v":0},{"$f":"F_Inputs!HZE7","v":0},{"$f":"F_Inputs!HZF7","v":0},{"$f":"F_Inputs!HZG7","v":0},{"$f":"F_Inputs!HZH7","v":0},{"$f":"F_Inputs!HZI7","v":0},{"$f":"F_Inputs!HZJ7","v":0},{"$f":"F_Inputs!HZK7","v":0},{"$f":"F_Inputs!HZL7","v":0},{"$f":"F_Inputs!HZM7","v":0},{"$f":"F_Inputs!HZN7","v":0},{"$f":"F_Inputs!HZO7","v":0},{"$f":"F_Inputs!HZP7","v":0},{"$f":"F_Inputs!HZQ7","v":0},{"$f":"F_Inputs!HZR7","v":0},{"$f":"F_Inputs!HZS7","v":0},{"$f":"F_Inputs!HZT7","v":0},{"$f":"F_Inputs!HZU7","v":0},{"$f":"F_Inputs!HZV7","v":0},{"$f":"F_Inputs!HZW7","v":0},{"$f":"F_Inputs!HZX7","v":0},{"$f":"F_Inputs!HZY7","v":0},{"$f":"F_Inputs!HZZ7","v":0},{"$f":"F_Inputs!IAA7","v":0},{"$f":"F_Inputs!IAB7","v":0},{"$f":"F_Inputs!IAC7","v":0},{"$f":"F_Inputs!IAD7","v":0},{"$f":"F_Inputs!IAE7","v":0},{"$f":"F_Inputs!IAF7","v":0},{"$f":"F_Inputs!IAG7","v":0},{"$f":"F_Inputs!IAH7","v":0},{"$f":"F_Inputs!IAI7","v":0},{"$f":"F_Inputs!IAJ7","v":0},{"$f":"F_Inputs!IAK7","v":0},{"$f":"F_Inputs!IAL7","v":0},{"$f":"F_Inputs!IAM7","v":0},{"$f":"F_Inputs!IAN7","v":0},{"$f":"F_Inputs!IAO7","v":0},{"$f":"F_Inputs!IAP7","v":0},{"$f":"F_Inputs!IAQ7","v":0},{"$f":"F_Inputs!IAR7","v":0},{"$f":"F_Inputs!IAS7","v":0},{"$f":"F_Inputs!IAT7","v":0},{"$f":"F_Inputs!IAU7","v":0},{"$f":"F_Inputs!IAV7","v":0},{"$f":"F_Inputs!IAW7","v":0},{"$f":"F_Inputs!IAX7","v":0},{"$f":"F_Inputs!IAY7","v":0},{"$f":"F_Inputs!IAZ7","v":0},{"$f":"F_Inputs!IBA7","v":0},{"$f":"F_Inputs!IBB7","v":0},{"$f":"F_Inputs!IBC7","v":0},{"$f":"F_Inputs!IBD7","v":0},{"$f":"F_Inputs!IBE7","v":0},{"$f":"F_Inputs!IBF7","v":0},{"$f":"F_Inputs!IBG7","v":0},{"$f":"F_Inputs!IBH7","v":0},{"$f":"F_Inputs!IBI7","v":0},{"$f":"F_Inputs!IBJ7","v":0},{"$f":"F_Inputs!IBK7","v":0},{"$f":"F_Inputs!IBL7","v":0},{"$f":"F_Inputs!IBM7","v":0},{"$f":"F_Inputs!IBN7","v":0},{"$f":"F_Inputs!IBO7","v":0},{"$f":"F_Inputs!IBP7","v":0},{"$f":"F_Inputs!IBQ7","v":0},{"$f":"F_Inputs!IBR7","v":0},{"$f":"F_Inputs!IBS7","v":0},{"$f":"F_Inputs!IBT7","v":0},{"$f":"F_Inputs!IBU7","v":0},{"$f":"F_Inputs!IBV7","v":0},{"$f":"F_Inputs!IBW7","v":0},{"$f":"F_Inputs!IBX7","v":0},{"$f":"F_Inputs!IBY7","v":0},{"$f":"F_Inputs!IBZ7","v":0},{"$f":"F_Inputs!ICA7","v":0},{"$f":"F_Inputs!ICB7","v":0},{"$f":"F_Inputs!ICC7","v":0},{"$f":"F_Inputs!ICD7","v":0},{"$f":"F_Inputs!ICE7","v":0},{"$f":"F_Inputs!ICF7","v":0},{"$f":"F_Inputs!ICG7","v":0},{"$f":"F_Inputs!ICH7","v":0},{"$f":"F_Inputs!ICI7","v":0},{"$f":"F_Inputs!ICJ7","v":0},{"$f":"F_Inputs!ICK7","v":0},{"$f":"F_Inputs!ICL7","v":0},{"$f":"F_Inputs!ICM7","v":0},{"$f":"F_Inputs!ICN7","v":0},{"$f":"F_Inputs!ICO7","v":0},{"$f":"F_Inputs!ICP7","v":0},{"$f":"F_Inputs!ICQ7","v":0},{"$f":"F_Inputs!ICR7","v":0},{"$f":"F_Inputs!ICS7","v":0},{"$f":"F_Inputs!ICT7","v":0},{"$f":"F_Inputs!ICU7","v":0},{"$f":"F_Inputs!ICV7","v":0},{"$f":"F_Inputs!ICW7","v":0},{"$f":"F_Inputs!ICX7","v":0},{"$f":"F_Inputs!ICY7","v":0},{"$f":"F_Inputs!ICZ7","v":0},{"$f":"F_Inputs!IDA7","v":0},{"$f":"F_Inputs!IDB7","v":0},{"$f":"F_Inputs!IDC7","v":0},{"$f":"F_Inputs!IDD7","v":0},{"$f":"F_Inputs!IDE7","v":0},{"$f":"F_Inputs!IDF7","v":0},{"$f":"F_Inputs!IDG7","v":0},{"$f":"F_Inputs!IDH7","v":0},{"$f":"F_Inputs!IDI7","v":0},{"$f":"F_Inputs!IDJ7","v":0},{"$f":"F_Inputs!IDK7","v":0},{"$f":"F_Inputs!IDL7","v":0},{"$f":"F_Inputs!IDM7","v":0},{"$f":"F_Inputs!IDN7","v":0},{"$f":"F_Inputs!IDO7","v":0},{"$f":"F_Inputs!IDP7","v":0},{"$f":"F_Inputs!IDQ7","v":0},{"$f":"F_Inputs!IDR7","v":0},{"$f":"F_Inputs!IDS7","v":0},{"$f":"F_Inputs!IDT7","v":0},{"$f":"F_Inputs!IDU7","v":0},{"$f":"F_Inputs!IDV7","v":0},{"$f":"F_Inputs!IDW7","v":0},{"$f":"F_Inputs!IDX7","v":0},{"$f":"F_Inputs!IDY7","v":0},{"$f":"F_Inputs!IDZ7","v":0},{"$f":"F_Inputs!IEA7","v":0},{"$f":"F_Inputs!IEB7","v":0},{"$f":"F_Inputs!IEC7","v":0},{"$f":"F_Inputs!IED7","v":0},{"$f":"F_Inputs!IEE7","v":0},{"$f":"F_Inputs!IEF7","v":0},{"$f":"F_Inputs!IEG7","v":0},{"$f":"F_Inputs!IEH7","v":0},{"$f":"F_Inputs!IEI7","v":0},{"$f":"F_Inputs!IEJ7","v":0},{"$f":"F_Inputs!IEK7","v":0},{"$f":"F_Inputs!IEL7","v":0},{"$f":"F_Inputs!IEM7","v":0},{"$f":"F_Inputs!IEN7","v":0},{"$f":"F_Inputs!IEO7","v":0},{"$f":"F_Inputs!IEP7","v":0},{"$f":"F_Inputs!IEQ7","v":0},{"$f":"F_Inputs!IER7","v":0},{"$f":"F_Inputs!IES7","v":0},{"$f":"F_Inputs!IET7","v":0},{"$f":"F_Inputs!IEU7","v":0},{"$f":"F_Inputs!IEV7","v":0},{"$f":"F_Inputs!IEW7","v":0},{"$f":"F_Inputs!IEX7","v":0},{"$f":"F_Inputs!IEY7","v":0},{"$f":"F_Inputs!IEZ7","v":0},{"$f":"F_Inputs!IFA7","v":0},{"$f":"F_Inputs!IFB7","v":0},{"$f":"F_Inputs!IFC7","v":0},{"$f":"F_Inputs!IFD7","v":0},{"$f":"F_Inputs!IFE7","v":0},{"$f":"F_Inputs!IFF7","v":0},{"$f":"F_Inputs!IFG7","v":0},{"$f":"F_Inputs!IFH7","v":0},{"$f":"F_Inputs!IFI7","v":0},{"$f":"F_Inputs!IFJ7","v":0},{"$f":"F_Inputs!IFK7","v":0},{"$f":"F_Inputs!IFL7","v":0},{"$f":"F_Inputs!IFM7","v":0},{"$f":"F_Inputs!IFN7","v":0},{"$f":"F_Inputs!IFO7","v":0},{"$f":"F_Inputs!IFP7","v":0},{"$f":"F_Inputs!IFQ7","v":0},{"$f":"F_Inputs!IFR7","v":0},{"$f":"F_Inputs!IFS7","v":0},{"$f":"F_Inputs!IFT7","v":0},{"$f":"F_Inputs!IFU7","v":0},{"$f":"F_Inputs!IFV7","v":0},{"$f":"F_Inputs!IFW7","v":0},{"$f":"F_Inputs!IFX7","v":0},{"$f":"F_Inputs!IFY7","v":0},{"$f":"F_Inputs!IFZ7","v":0},{"$f":"F_Inputs!IGA7","v":0},{"$f":"F_Inputs!IGB7","v":0},{"$f":"F_Inputs!IGC7","v":0},{"$f":"F_Inputs!IGD7","v":0},{"$f":"F_Inputs!IGE7","v":0},{"$f":"F_Inputs!IGF7","v":0},{"$f":"F_Inputs!IGG7","v":0},{"$f":"F_Inputs!IGH7","v":0},{"$f":"F_Inputs!IGI7","v":0},{"$f":"F_Inputs!IGJ7","v":0},{"$f":"F_Inputs!IGK7","v":0},{"$f":"F_Inputs!IGL7","v":0},{"$f":"F_Inputs!IGM7","v":0},{"$f":"F_Inputs!IGN7","v":0},{"$f":"F_Inputs!IGO7","v":0},{"$f":"F_Inputs!IGP7","v":0},{"$f":"F_Inputs!IGQ7","v":0},{"$f":"F_Inputs!IGR7","v":0},{"$f":"F_Inputs!IGS7","v":0},{"$f":"F_Inputs!IGT7","v":0},{"$f":"F_Inputs!IGU7","v":0},{"$f":"F_Inputs!IGV7","v":0},{"$f":"F_Inputs!IGW7","v":0},{"$f":"F_Inputs!IGX7","v":0},{"$f":"F_Inputs!IGY7","v":0},{"$f":"F_Inputs!IGZ7","v":0},{"$f":"F_Inputs!IHA7","v":0},{"$f":"F_Inputs!IHB7","v":0},{"$f":"F_Inputs!IHC7","v":0},{"$f":"F_Inputs!IHD7","v":0},{"$f":"F_Inputs!IHE7","v":0},{"$f":"F_Inputs!IHF7","v":0},{"$f":"F_Inputs!IHG7","v":0},{"$f":"F_Inputs!IHH7","v":0},{"$f":"F_Inputs!IHI7","v":0},{"$f":"F_Inputs!IHJ7","v":0},{"$f":"F_Inputs!IHK7","v":0},{"$f":"F_Inputs!IHL7","v":0},{"$f":"F_Inputs!IHM7","v":0},{"$f":"F_Inputs!IHN7","v":0},{"$f":"F_Inputs!IHO7","v":0},{"$f":"F_Inputs!IHP7","v":0},{"$f":"F_Inputs!IHQ7","v":0},{"$f":"F_Inputs!IHR7","v":0},{"$f":"F_Inputs!IHS7","v":0},{"$f":"F_Inputs!IHT7","v":0},{"$f":"F_Inputs!IHU7","v":0},{"$f":"F_Inputs!IHV7","v":0},{"$f":"F_Inputs!IHW7","v":0},{"$f":"F_Inputs!IHX7","v":0},{"$f":"F_Inputs!IHY7","v":0},{"$f":"F_Inputs!IHZ7","v":0},{"$f":"F_Inputs!IIA7","v":0},{"$f":"F_Inputs!IIB7","v":0},{"$f":"F_Inputs!IIC7","v":0},{"$f":"F_Inputs!IID7","v":0},{"$f":"F_Inputs!IIE7","v":0},{"$f":"F_Inputs!IIF7","v":0},{"$f":"F_Inputs!IIG7","v":0},{"$f":"F_Inputs!IIH7","v":0},{"$f":"F_Inputs!III7","v":0},{"$f":"F_Inputs!IIJ7","v":0},{"$f":"F_Inputs!IIK7","v":0},{"$f":"F_Inputs!IIL7","v":0},{"$f":"F_Inputs!IIM7","v":0},{"$f":"F_Inputs!IIN7","v":0},{"$f":"F_Inputs!IIO7","v":0},{"$f":"F_Inputs!IIP7","v":0},{"$f":"F_Inputs!IIQ7","v":0},{"$f":"F_Inputs!IIR7","v":0},{"$f":"F_Inputs!IIS7","v":0},{"$f":"F_Inputs!IIT7","v":0},{"$f":"F_Inputs!IIU7","v":0},{"$f":"F_Inputs!IIV7","v":0},{"$f":"F_Inputs!IIW7","v":0},{"$f":"F_Inputs!IIX7","v":0},{"$f":"F_Inputs!IIY7","v":0},{"$f":"F_Inputs!IIZ7","v":0},{"$f":"F_Inputs!IJA7","v":0},{"$f":"F_Inputs!IJB7","v":0},{"$f":"F_Inputs!IJC7","v":0},{"$f":"F_Inputs!IJD7","v":0},{"$f":"F_Inputs!IJE7","v":0},{"$f":"F_Inputs!IJF7","v":0},{"$f":"F_Inputs!IJG7","v":0},{"$f":"F_Inputs!IJH7","v":0},{"$f":"F_Inputs!IJI7","v":0},{"$f":"F_Inputs!IJJ7","v":0},{"$f":"F_Inputs!IJK7","v":0},{"$f":"F_Inputs!IJL7","v":0},{"$f":"F_Inputs!IJM7","v":0},{"$f":"F_Inputs!IJN7","v":0},{"$f":"F_Inputs!IJO7","v":0},{"$f":"F_Inputs!IJP7","v":0},{"$f":"F_Inputs!IJQ7","v":0},{"$f":"F_Inputs!IJR7","v":0},{"$f":"F_Inputs!IJS7","v":0},{"$f":"F_Inputs!IJT7","v":0},{"$f":"F_Inputs!IJU7","v":0},{"$f":"F_Inputs!IJV7","v":0},{"$f":"F_Inputs!IJW7","v":0},{"$f":"F_Inputs!IJX7","v":0},{"$f":"F_Inputs!IJY7","v":0},{"$f":"F_Inputs!IJZ7","v":0},{"$f":"F_Inputs!IKA7","v":0},{"$f":"F_Inputs!IKB7","v":0},{"$f":"F_Inputs!IKC7","v":0},{"$f":"F_Inputs!IKD7","v":0},{"$f":"F_Inputs!IKE7","v":0},{"$f":"F_Inputs!IKF7","v":0},{"$f":"F_Inputs!IKG7","v":0},{"$f":"F_Inputs!IKH7","v":0},{"$f":"F_Inputs!IKI7","v":0},{"$f":"F_Inputs!IKJ7","v":0},{"$f":"F_Inputs!IKK7","v":0},{"$f":"F_Inputs!IKL7","v":0},{"$f":"F_Inputs!IKM7","v":0},{"$f":"F_Inputs!IKN7","v":0},{"$f":"F_Inputs!IKO7","v":0},{"$f":"F_Inputs!IKP7","v":0},{"$f":"F_Inputs!IKQ7","v":0},{"$f":"F_Inputs!IKR7","v":0},{"$f":"F_Inputs!IKS7","v":0},{"$f":"F_Inputs!IKT7","v":0},{"$f":"F_Inputs!IKU7","v":0},{"$f":"F_Inputs!IKV7","v":0},{"$f":"F_Inputs!IKW7","v":0},{"$f":"F_Inputs!IKX7","v":0},{"$f":"F_Inputs!IKY7","v":0},{"$f":"F_Inputs!IKZ7","v":0},{"$f":"F_Inputs!ILA7","v":0},{"$f":"F_Inputs!ILB7","v":0},{"$f":"F_Inputs!ILC7","v":0},{"$f":"F_Inputs!ILD7","v":0},{"$f":"F_Inputs!ILE7","v":0},{"$f":"F_Inputs!ILF7","v":0},{"$f":"F_Inputs!ILG7","v":0},{"$f":"F_Inputs!ILH7","v":0},{"$f":"F_Inputs!ILI7","v":0},{"$f":"F_Inputs!ILJ7","v":0},{"$f":"F_Inputs!ILK7","v":0},{"$f":"F_Inputs!ILL7","v":0},{"$f":"F_Inputs!ILM7","v":0},{"$f":"F_Inputs!ILN7","v":0},{"$f":"F_Inputs!ILO7","v":0},{"$f":"F_Inputs!ILP7","v":0},{"$f":"F_Inputs!ILQ7","v":0},{"$f":"F_Inputs!ILR7","v":0},{"$f":"F_Inputs!ILS7","v":0},{"$f":"F_Inputs!ILT7","v":0},{"$f":"F_Inputs!ILU7","v":0},{"$f":"F_Inputs!ILV7","v":0},{"$f":"F_Inputs!ILW7","v":0},{"$f":"F_Inputs!ILX7","v":0},{"$f":"F_Inputs!ILY7","v":0},{"$f":"F_Inputs!ILZ7","v":0},{"$f":"F_Inputs!IMA7","v":0},{"$f":"F_Inputs!IMB7","v":0},{"$f":"F_Inputs!IMC7","v":0},{"$f":"F_Inputs!IMD7","v":0},{"$f":"F_Inputs!IME7","v":0},{"$f":"F_Inputs!IMF7","v":0},{"$f":"F_Inputs!IMG7","v":0},{"$f":"F_Inputs!IMH7","v":0},{"$f":"F_Inputs!IMI7","v":0},{"$f":"F_Inputs!IMJ7","v":0},{"$f":"F_Inputs!IMK7","v":0},{"$f":"F_Inputs!IML7","v":0},{"$f":"F_Inputs!IMM7","v":0},{"$f":"F_Inputs!IMN7","v":0},{"$f":"F_Inputs!IMO7","v":0},{"$f":"F_Inputs!IMP7","v":0},{"$f":"F_Inputs!IMQ7","v":0},{"$f":"F_Inputs!IMR7","v":0},{"$f":"F_Inputs!IMS7","v":0},{"$f":"F_Inputs!IMT7","v":0},{"$f":"F_Inputs!IMU7","v":0},{"$f":"F_Inputs!IMV7","v":0},{"$f":"F_Inputs!IMW7","v":0},{"$f":"F_Inputs!IMX7","v":0},{"$f":"F_Inputs!IMY7","v":0},{"$f":"F_Inputs!IMZ7","v":0},{"$f":"F_Inputs!INA7","v":0},{"$f":"F_Inputs!INB7","v":0},{"$f":"F_Inputs!INC7","v":0},{"$f":"F_Inputs!IND7","v":0},{"$f":"F_Inputs!INE7","v":0},{"$f":"F_Inputs!INF7","v":0},{"$f":"F_Inputs!ING7","v":0},{"$f":"F_Inputs!INH7","v":0},{"$f":"F_Inputs!INI7","v":0},{"$f":"F_Inputs!INJ7","v":0},{"$f":"F_Inputs!INK7","v":0},{"$f":"F_Inputs!INL7","v":0},{"$f":"F_Inputs!INM7","v":0},{"$f":"F_Inputs!INN7","v":0},{"$f":"F_Inputs!INO7","v":0},{"$f":"F_Inputs!INP7","v":0},{"$f":"F_Inputs!INQ7","v":0},{"$f":"F_Inputs!INR7","v":0},{"$f":"F_Inputs!INS7","v":0},{"$f":"F_Inputs!INT7","v":0},{"$f":"F_Inputs!INU7","v":0},{"$f":"F_Inputs!INV7","v":0},{"$f":"F_Inputs!INW7","v":0},{"$f":"F_Inputs!INX7","v":0},{"$f":"F_Inputs!INY7","v":0},{"$f":"F_Inputs!INZ7","v":0},{"$f":"F_Inputs!IOA7","v":0},{"$f":"F_Inputs!IOB7","v":0},{"$f":"F_Inputs!IOC7","v":0},{"$f":"F_Inputs!IOD7","v":0},{"$f":"F_Inputs!IOE7","v":0},{"$f":"F_Inputs!IOF7","v":0},{"$f":"F_Inputs!IOG7","v":0},{"$f":"F_Inputs!IOH7","v":0},{"$f":"F_Inputs!IOI7","v":0},{"$f":"F_Inputs!IOJ7","v":0},{"$f":"F_Inputs!IOK7","v":0},{"$f":"F_Inputs!IOL7","v":0},{"$f":"F_Inputs!IOM7","v":0},{"$f":"F_Inputs!ION7","v":0},{"$f":"F_Inputs!IOO7","v":0},{"$f":"F_Inputs!IOP7","v":0},{"$f":"F_Inputs!IOQ7","v":0},{"$f":"F_Inputs!IOR7","v":0},{"$f":"F_Inputs!IOS7","v":0},{"$f":"F_Inputs!IOT7","v":0},{"$f":"F_Inputs!IOU7","v":0},{"$f":"F_Inputs!IOV7","v":0},{"$f":"F_Inputs!IOW7","v":0},{"$f":"F_Inputs!IOX7","v":0},{"$f":"F_Inputs!IOY7","v":0},{"$f":"F_Inputs!IOZ7","v":0},{"$f":"F_Inputs!IPA7","v":0},{"$f":"F_Inputs!IPB7","v":0},{"$f":"F_Inputs!IPC7","v":0},{"$f":"F_Inputs!IPD7","v":0},{"$f":"F_Inputs!IPE7","v":0},{"$f":"F_Inputs!IPF7","v":0},{"$f":"F_Inputs!IPG7","v":0},{"$f":"F_Inputs!IPH7","v":0},{"$f":"F_Inputs!IPI7","v":0},{"$f":"F_Inputs!IPJ7","v":0},{"$f":"F_Inputs!IPK7","v":0},{"$f":"F_Inputs!IPL7","v":0},{"$f":"F_Inputs!IPM7","v":0},{"$f":"F_Inputs!IPN7","v":0},{"$f":"F_Inputs!IPO7","v":0},{"$f":"F_Inputs!IPP7","v":0},{"$f":"F_Inputs!IPQ7","v":0},{"$f":"F_Inputs!IPR7","v":0},{"$f":"F_Inputs!IPS7","v":0},{"$f":"F_Inputs!IPT7","v":0},{"$f":"F_Inputs!IPU7","v":0},{"$f":"F_Inputs!IPV7","v":0},{"$f":"F_Inputs!IPW7","v":0},{"$f":"F_Inputs!IPX7","v":0},{"$f":"F_Inputs!IPY7","v":0},{"$f":"F_Inputs!IPZ7","v":0},{"$f":"F_Inputs!IQA7","v":0},{"$f":"F_Inputs!IQB7","v":0},{"$f":"F_Inputs!IQC7","v":0},{"$f":"F_Inputs!IQD7","v":0},{"$f":"F_Inputs!IQE7","v":0},{"$f":"F_Inputs!IQF7","v":0},{"$f":"F_Inputs!IQG7","v":0},{"$f":"F_Inputs!IQH7","v":0},{"$f":"F_Inputs!IQI7","v":0},{"$f":"F_Inputs!IQJ7","v":0},{"$f":"F_Inputs!IQK7","v":0},{"$f":"F_Inputs!IQL7","v":0},{"$f":"F_Inputs!IQM7","v":0},{"$f":"F_Inputs!IQN7","v":0},{"$f":"F_Inputs!IQO7","v":0},{"$f":"F_Inputs!IQP7","v":0},{"$f":"F_Inputs!IQQ7","v":0},{"$f":"F_Inputs!IQR7","v":0},{"$f":"F_Inputs!IQS7","v":0},{"$f":"F_Inputs!IQT7","v":0},{"$f":"F_Inputs!IQU7","v":0},{"$f":"F_Inputs!IQV7","v":0},{"$f":"F_Inputs!IQW7","v":0},{"$f":"F_Inputs!IQX7","v":0},{"$f":"F_Inputs!IQY7","v":0},{"$f":"F_Inputs!IQZ7","v":0},{"$f":"F_Inputs!IRA7","v":0},{"$f":"F_Inputs!IRB7","v":0},{"$f":"F_Inputs!IRC7","v":0},{"$f":"F_Inputs!IRD7","v":0},{"$f":"F_Inputs!IRE7","v":0},{"$f":"F_Inputs!IRF7","v":0},{"$f":"F_Inputs!IRG7","v":0},{"$f":"F_Inputs!IRH7","v":0},{"$f":"F_Inputs!IRI7","v":0},{"$f":"F_Inputs!IRJ7","v":0},{"$f":"F_Inputs!IRK7","v":0},{"$f":"F_Inputs!IRL7","v":0},{"$f":"F_Inputs!IRM7","v":0},{"$f":"F_Inputs!IRN7","v":0},{"$f":"F_Inputs!IRO7","v":0},{"$f":"F_Inputs!IRP7","v":0},{"$f":"F_Inputs!IRQ7","v":0},{"$f":"F_Inputs!IRR7","v":0},{"$f":"F_Inputs!IRS7","v":0},{"$f":"F_Inputs!IRT7","v":0},{"$f":"F_Inputs!IRU7","v":0},{"$f":"F_Inputs!IRV7","v":0},{"$f":"F_Inputs!IRW7","v":0},{"$f":"F_Inputs!IRX7","v":0},{"$f":"F_Inputs!IRY7","v":0},{"$f":"F_Inputs!IRZ7","v":0},{"$f":"F_Inputs!ISA7","v":0},{"$f":"F_Inputs!ISB7","v":0},{"$f":"F_Inputs!ISC7","v":0},{"$f":"F_Inputs!ISD7","v":0},{"$f":"F_Inputs!ISE7","v":0},{"$f":"F_Inputs!ISF7","v":0},{"$f":"F_Inputs!ISG7","v":0},{"$f":"F_Inputs!ISH7","v":0},{"$f":"F_Inputs!ISI7","v":0},{"$f":"F_Inputs!ISJ7","v":0},{"$f":"F_Inputs!ISK7","v":0},{"$f":"F_Inputs!ISL7","v":0},{"$f":"F_Inputs!ISM7","v":0},{"$f":"F_Inputs!ISN7","v":0},{"$f":"F_Inputs!ISO7","v":0},{"$f":"F_Inputs!ISP7","v":0},{"$f":"F_Inputs!ISQ7","v":0},{"$f":"F_Inputs!ISR7","v":0},{"$f":"F_Inputs!ISS7","v":0},{"$f":"F_Inputs!IST7","v":0},{"$f":"F_Inputs!ISU7","v":0},{"$f":"F_Inputs!ISV7","v":0},{"$f":"F_Inputs!ISW7","v":0},{"$f":"F_Inputs!ISX7","v":0},{"$f":"F_Inputs!ISY7","v":0},{"$f":"F_Inputs!ISZ7","v":0},{"$f":"F_Inputs!ITA7","v":0},{"$f":"F_Inputs!ITB7","v":0},{"$f":"F_Inputs!ITC7","v":0},{"$f":"F_Inputs!ITD7","v":0},{"$f":"F_Inputs!ITE7","v":0},{"$f":"F_Inputs!ITF7","v":0},{"$f":"F_Inputs!ITG7","v":0},{"$f":"F_Inputs!ITH7","v":0},{"$f":"F_Inputs!ITI7","v":0},{"$f":"F_Inputs!ITJ7","v":0},{"$f":"F_Inputs!ITK7","v":0},{"$f":"F_Inputs!ITL7","v":0},{"$f":"F_Inputs!ITM7","v":0},{"$f":"F_Inputs!ITN7","v":0},{"$f":"F_Inputs!ITO7","v":0},{"$f":"F_Inputs!ITP7","v":0},{"$f":"F_Inputs!ITQ7","v":0},{"$f":"F_Inputs!ITR7","v":0},{"$f":"F_Inputs!ITS7","v":0},{"$f":"F_Inputs!ITT7","v":0},{"$f":"F_Inputs!ITU7","v":0},{"$f":"F_Inputs!ITV7","v":0},{"$f":"F_Inputs!ITW7","v":0},{"$f":"F_Inputs!ITX7","v":0},{"$f":"F_Inputs!ITY7","v":0},{"$f":"F_Inputs!ITZ7","v":0},{"$f":"F_Inputs!IUA7","v":0},{"$f":"F_Inputs!IUB7","v":0},{"$f":"F_Inputs!IUC7","v":0},{"$f":"F_Inputs!IUD7","v":0},{"$f":"F_Inputs!IUE7","v":0},{"$f":"F_Inputs!IUF7","v":0},{"$f":"F_Inputs!IUG7","v":0},{"$f":"F_Inputs!IUH7","v":0},{"$f":"F_Inputs!IUI7","v":0},{"$f":"F_Inputs!IUJ7","v":0},{"$f":"F_Inputs!IUK7","v":0},{"$f":"F_Inputs!IUL7","v":0},{"$f":"F_Inputs!IUM7","v":0},{"$f":"F_Inputs!IUN7","v":0},{"$f":"F_Inputs!IUO7","v":0},{"$f":"F_Inputs!IUP7","v":0},{"$f":"F_Inputs!IUQ7","v":0},{"$f":"F_Inputs!IUR7","v":0},{"$f":"F_Inputs!IUS7","v":0},{"$f":"F_Inputs!IUT7","v":0},{"$f":"F_Inputs!IUU7","v":0},{"$f":"F_Inputs!IUV7","v":0},{"$f":"F_Inputs!IUW7","v":0},{"$f":"F_Inputs!IUX7","v":0},{"$f":"F_Inputs!IUY7","v":0},{"$f":"F_Inputs!IUZ7","v":0},{"$f":"F_Inputs!IVA7","v":0},{"$f":"F_Inputs!IVB7","v":0},{"$f":"F_Inputs!IVC7","v":0},{"$f":"F_Inputs!IVD7","v":0},{"$f":"F_Inputs!IVE7","v":0},{"$f":"F_Inputs!IVF7","v":0},{"$f":"F_Inputs!IVG7","v":0},{"$f":"F_Inputs!IVH7","v":0},{"$f":"F_Inputs!IVI7","v":0},{"$f":"F_Inputs!IVJ7","v":0},{"$f":"F_Inputs!IVK7","v":0},{"$f":"F_Inputs!IVL7","v":0},{"$f":"F_Inputs!IVM7","v":0},{"$f":"F_Inputs!IVN7","v":0},{"$f":"F_Inputs!IVO7","v":0},{"$f":"F_Inputs!IVP7","v":0},{"$f":"F_Inputs!IVQ7","v":0},{"$f":"F_Inputs!IVR7","v":0},{"$f":"F_Inputs!IVS7","v":0},{"$f":"F_Inputs!IVT7","v":0},{"$f":"F_Inputs!IVU7","v":0},{"$f":"F_Inputs!IVV7","v":0},{"$f":"F_Inputs!IVW7","v":0},{"$f":"F_Inputs!IVX7","v":0},{"$f":"F_Inputs!IVY7","v":0},{"$f":"F_Inputs!IVZ7","v":0},{"$f":"F_Inputs!IWA7","v":0},{"$f":"F_Inputs!IWB7","v":0},{"$f":"F_Inputs!IWC7","v":0},{"$f":"F_Inputs!IWD7","v":0},{"$f":"F_Inputs!IWE7","v":0},{"$f":"F_Inputs!IWF7","v":0},{"$f":"F_Inputs!IWG7","v":0},{"$f":"F_Inputs!IWH7","v":0},{"$f":"F_Inputs!IWI7","v":0},{"$f":"F_Inputs!IWJ7","v":0},{"$f":"F_Inputs!IWK7","v":0},{"$f":"F_Inputs!IWL7","v":0},{"$f":"F_Inputs!IWM7","v":0},{"$f":"F_Inputs!IWN7","v":0},{"$f":"F_Inputs!IWO7","v":0},{"$f":"F_Inputs!IWP7","v":0},{"$f":"F_Inputs!IWQ7","v":0},{"$f":"F_Inputs!IWR7","v":0},{"$f":"F_Inputs!IWS7","v":0},{"$f":"F_Inputs!IWT7","v":0},{"$f":"F_Inputs!IWU7","v":0},{"$f":"F_Inputs!IWV7","v":0},{"$f":"F_Inputs!IWW7","v":0},{"$f":"F_Inputs!IWX7","v":0},{"$f":"F_Inputs!IWY7","v":0},{"$f":"F_Inputs!IWZ7","v":0},{"$f":"F_Inputs!IXA7","v":0},{"$f":"F_Inputs!IXB7","v":0},{"$f":"F_Inputs!IXC7","v":0},{"$f":"F_Inputs!IXD7","v":0},{"$f":"F_Inputs!IXE7","v":0},{"$f":"F_Inputs!IXF7","v":0},{"$f":"F_Inputs!IXG7","v":0},{"$f":"F_Inputs!IXH7","v":0},{"$f":"F_Inputs!IXI7","v":0},{"$f":"F_Inputs!IXJ7","v":0},{"$f":"F_Inputs!IXK7","v":0},{"$f":"F_Inputs!IXL7","v":0},{"$f":"F_Inputs!IXM7","v":0},{"$f":"F_Inputs!IXN7","v":0},{"$f":"F_Inputs!IXO7","v":0},{"$f":"F_Inputs!IXP7","v":0},{"$f":"F_Inputs!IXQ7","v":0},{"$f":"F_Inputs!IXR7","v":0},{"$f":"F_Inputs!IXS7","v":0},{"$f":"F_Inputs!IXT7","v":0},{"$f":"F_Inputs!IXU7","v":0},{"$f":"F_Inputs!IXV7","v":0},{"$f":"F_Inputs!IXW7","v":0},{"$f":"F_Inputs!IXX7","v":0},{"$f":"F_Inputs!IXY7","v":0},{"$f":"F_Inputs!IXZ7","v":0},{"$f":"F_Inputs!IYA7","v":0},{"$f":"F_Inputs!IYB7","v":0},{"$f":"F_Inputs!IYC7","v":0},{"$f":"F_Inputs!IYD7","v":0},{"$f":"F_Inputs!IYE7","v":0},{"$f":"F_Inputs!IYF7","v":0},{"$f":"F_Inputs!IYG7","v":0},{"$f":"F_Inputs!IYH7","v":0},{"$f":"F_Inputs!IYI7","v":0},{"$f":"F_Inputs!IYJ7","v":0},{"$f":"F_Inputs!IYK7","v":0},{"$f":"F_Inputs!IYL7","v":0},{"$f":"F_Inputs!IYM7","v":0},{"$f":"F_Inputs!IYN7","v":0},{"$f":"F_Inputs!IYO7","v":0},{"$f":"F_Inputs!IYP7","v":0},{"$f":"F_Inputs!IYQ7","v":0},{"$f":"F_Inputs!IYR7","v":0},{"$f":"F_Inputs!IYS7","v":0},{"$f":"F_Inputs!IYT7","v":0},{"$f":"F_Inputs!IYU7","v":0},{"$f":"F_Inputs!IYV7","v":0},{"$f":"F_Inputs!IYW7","v":0},{"$f":"F_Inputs!IYX7","v":0},{"$f":"F_Inputs!IYY7","v":0},{"$f":"F_Inputs!IYZ7","v":0},{"$f":"F_Inputs!IZA7","v":0},{"$f":"F_Inputs!IZB7","v":0},{"$f":"F_Inputs!IZC7","v":0},{"$f":"F_Inputs!IZD7","v":0},{"$f":"F_Inputs!IZE7","v":0},{"$f":"F_Inputs!IZF7","v":0},{"$f":"F_Inputs!IZG7","v":0},{"$f":"F_Inputs!IZH7","v":0},{"$f":"F_Inputs!IZI7","v":0},{"$f":"F_Inputs!IZJ7","v":0},{"$f":"F_Inputs!IZK7","v":0},{"$f":"F_Inputs!IZL7","v":0},{"$f":"F_Inputs!IZM7","v":0},{"$f":"F_Inputs!IZN7","v":0},{"$f":"F_Inputs!IZO7","v":0},{"$f":"F_Inputs!IZP7","v":0},{"$f":"F_Inputs!IZQ7","v":0},{"$f":"F_Inputs!IZR7","v":0},{"$f":"F_Inputs!IZS7","v":0},{"$f":"F_Inputs!IZT7","v":0},{"$f":"F_Inputs!IZU7","v":0},{"$f":"F_Inputs!IZV7","v":0},{"$f":"F_Inputs!IZW7","v":0},{"$f":"F_Inputs!IZX7","v":0},{"$f":"F_Inputs!IZY7","v":0},{"$f":"F_Inputs!IZZ7","v":0},{"$f":"F_Inputs!JAA7","v":0},{"$f":"F_Inputs!JAB7","v":0},{"$f":"F_Inputs!JAC7","v":0},{"$f":"F_Inputs!JAD7","v":0},{"$f":"F_Inputs!JAE7","v":0},{"$f":"F_Inputs!JAF7","v":0},{"$f":"F_Inputs!JAG7","v":0},{"$f":"F_Inputs!JAH7","v":0},{"$f":"F_Inputs!JAI7","v":0},{"$f":"F_Inputs!JAJ7","v":0},{"$f":"F_Inputs!JAK7","v":0},{"$f":"F_Inputs!JAL7","v":0},{"$f":"F_Inputs!JAM7","v":0},{"$f":"F_Inputs!JAN7","v":0},{"$f":"F_Inputs!JAO7","v":0},{"$f":"F_Inputs!JAP7","v":0},{"$f":"F_Inputs!JAQ7","v":0},{"$f":"F_Inputs!JAR7","v":0},{"$f":"F_Inputs!JAS7","v":0},{"$f":"F_Inputs!JAT7","v":0},{"$f":"F_Inputs!JAU7","v":0},{"$f":"F_Inputs!JAV7","v":0},{"$f":"F_Inputs!JAW7","v":0},{"$f":"F_Inputs!JAX7","v":0},{"$f":"F_Inputs!JAY7","v":0},{"$f":"F_Inputs!JAZ7","v":0},{"$f":"F_Inputs!JBA7","v":0},{"$f":"F_Inputs!JBB7","v":0},{"$f":"F_Inputs!JBC7","v":0},{"$f":"F_Inputs!JBD7","v":0},{"$f":"F_Inputs!JBE7","v":0},{"$f":"F_Inputs!JBF7","v":0},{"$f":"F_Inputs!JBG7","v":0},{"$f":"F_Inputs!JBH7","v":0},{"$f":"F_Inputs!JBI7","v":0},{"$f":"F_Inputs!JBJ7","v":0},{"$f":"F_Inputs!JBK7","v":0},{"$f":"F_Inputs!JBL7","v":0},{"$f":"F_Inputs!JBM7","v":0},{"$f":"F_Inputs!JBN7","v":0},{"$f":"F_Inputs!JBO7","v":0},{"$f":"F_Inputs!JBP7","v":0},{"$f":"F_Inputs!JBQ7","v":0},{"$f":"F_Inputs!JBR7","v":0},{"$f":"F_Inputs!JBS7","v":0},{"$f":"F_Inputs!JBT7","v":0},{"$f":"F_Inputs!JBU7","v":0},{"$f":"F_Inputs!JBV7","v":0},{"$f":"F_Inputs!JBW7","v":0},{"$f":"F_Inputs!JBX7","v":0},{"$f":"F_Inputs!JBY7","v":0},{"$f":"F_Inputs!JBZ7","v":0},{"$f":"F_Inputs!JCA7","v":0},{"$f":"F_Inputs!JCB7","v":0},{"$f":"F_Inputs!JCC7","v":0},{"$f":"F_Inputs!JCD7","v":0},{"$f":"F_Inputs!JCE7","v":0},{"$f":"F_Inputs!JCF7","v":0},{"$f":"F_Inputs!JCG7","v":0},{"$f":"F_Inputs!JCH7","v":0},{"$f":"F_Inputs!JCI7","v":0},{"$f":"F_Inputs!JCJ7","v":0},{"$f":"F_Inputs!JCK7","v":0},{"$f":"F_Inputs!JCL7","v":0},{"$f":"F_Inputs!JCM7","v":0},{"$f":"F_Inputs!JCN7","v":0},{"$f":"F_Inputs!JCO7","v":0},{"$f":"F_Inputs!JCP7","v":0},{"$f":"F_Inputs!JCQ7","v":0},{"$f":"F_Inputs!JCR7","v":0},{"$f":"F_Inputs!JCS7","v":0},{"$f":"F_Inputs!JCT7","v":0},{"$f":"F_Inputs!JCU7","v":0},{"$f":"F_Inputs!JCV7","v":0},{"$f":"F_Inputs!JCW7","v":0},{"$f":"F_Inputs!JCX7","v":0},{"$f":"F_Inputs!JCY7","v":0},{"$f":"F_Inputs!JCZ7","v":0},{"$f":"F_Inputs!JDA7","v":0},{"$f":"F_Inputs!JDB7","v":0},{"$f":"F_Inputs!JDC7","v":0},{"$f":"F_Inputs!JDD7","v":0},{"$f":"F_Inputs!JDE7","v":0},{"$f":"F_Inputs!JDF7","v":0},{"$f":"F_Inputs!JDG7","v":0},{"$f":"F_Inputs!JDH7","v":0},{"$f":"F_Inputs!JDI7","v":0},{"$f":"F_Inputs!JDJ7","v":0},{"$f":"F_Inputs!JDK7","v":0},{"$f":"F_Inputs!JDL7","v":0},{"$f":"F_Inputs!JDM7","v":0},{"$f":"F_Inputs!JDN7","v":0},{"$f":"F_Inputs!JDO7","v":0},{"$f":"F_Inputs!JDP7","v":0},{"$f":"F_Inputs!JDQ7","v":0},{"$f":"F_Inputs!JDR7","v":0},{"$f":"F_Inputs!JDS7","v":0},{"$f":"F_Inputs!JDT7","v":0},{"$f":"F_Inputs!JDU7","v":0},{"$f":"F_Inputs!JDV7","v":0},{"$f":"F_Inputs!JDW7","v":0},{"$f":"F_Inputs!JDX7","v":0},{"$f":"F_Inputs!JDY7","v":0},{"$f":"F_Inputs!JDZ7","v":0},{"$f":"F_Inputs!JEA7","v":0},{"$f":"F_Inputs!JEB7","v":0},{"$f":"F_Inputs!JEC7","v":0},{"$f":"F_Inputs!JED7","v":0},{"$f":"F_Inputs!JEE7","v":0},{"$f":"F_Inputs!JEF7","v":0},{"$f":"F_Inputs!JEG7","v":0},{"$f":"F_Inputs!JEH7","v":0},{"$f":"F_Inputs!JEI7","v":0},{"$f":"F_Inputs!JEJ7","v":0},{"$f":"F_Inputs!JEK7","v":0},{"$f":"F_Inputs!JEL7","v":0},{"$f":"F_Inputs!JEM7","v":0},{"$f":"F_Inputs!JEN7","v":0},{"$f":"F_Inputs!JEO7","v":0},{"$f":"F_Inputs!JEP7","v":0},{"$f":"F_Inputs!JEQ7","v":0},{"$f":"F_Inputs!JER7","v":0},{"$f":"F_Inputs!JES7","v":0},{"$f":"F_Inputs!JET7","v":0},{"$f":"F_Inputs!JEU7","v":0},{"$f":"F_Inputs!JEV7","v":0},{"$f":"F_Inputs!JEW7","v":0},{"$f":"F_Inputs!JEX7","v":0},{"$f":"F_Inputs!JEY7","v":0},{"$f":"F_Inputs!JEZ7","v":0},{"$f":"F_Inputs!JFA7","v":0},{"$f":"F_Inputs!JFB7","v":0},{"$f":"F_Inputs!JFC7","v":0},{"$f":"F_Inputs!JFD7","v":0},{"$f":"F_Inputs!JFE7","v":0},{"$f":"F_Inputs!JFF7","v":0},{"$f":"F_Inputs!JFG7","v":0},{"$f":"F_Inputs!JFH7","v":0},{"$f":"F_Inputs!JFI7","v":0},{"$f":"F_Inputs!JFJ7","v":0},{"$f":"F_Inputs!JFK7","v":0},{"$f":"F_Inputs!JFL7","v":0},{"$f":"F_Inputs!JFM7","v":0},{"$f":"F_Inputs!JFN7","v":0},{"$f":"F_Inputs!JFO7","v":0},{"$f":"F_Inputs!JFP7","v":0},{"$f":"F_Inputs!JFQ7","v":0},{"$f":"F_Inputs!JFR7","v":0},{"$f":"F_Inputs!JFS7","v":0},{"$f":"F_Inputs!JFT7","v":0},{"$f":"F_Inputs!JFU7","v":0},{"$f":"F_Inputs!JFV7","v":0},{"$f":"F_Inputs!JFW7","v":0},{"$f":"F_Inputs!JFX7","v":0},{"$f":"F_Inputs!JFY7","v":0},{"$f":"F_Inputs!JFZ7","v":0},{"$f":"F_Inputs!JGA7","v":0},{"$f":"F_Inputs!JGB7","v":0},{"$f":"F_Inputs!JGC7","v":0},{"$f":"F_Inputs!JGD7","v":0},{"$f":"F_Inputs!JGE7","v":0},{"$f":"F_Inputs!JGF7","v":0},{"$f":"F_Inputs!JGG7","v":0},{"$f":"F_Inputs!JGH7","v":0},{"$f":"F_Inputs!JGI7","v":0},{"$f":"F_Inputs!JGJ7","v":0},{"$f":"F_Inputs!JGK7","v":0},{"$f":"F_Inputs!JGL7","v":0},{"$f":"F_Inputs!JGM7","v":0},{"$f":"F_Inputs!JGN7","v":0},{"$f":"F_Inputs!JGO7","v":0},{"$f":"F_Inputs!JGP7","v":0},{"$f":"F_Inputs!JGQ7","v":0},{"$f":"F_Inputs!JGR7","v":0},{"$f":"F_Inputs!JGS7","v":0},{"$f":"F_Inputs!JGT7","v":0},{"$f":"F_Inputs!JGU7","v":0},{"$f":"F_Inputs!JGV7","v":0},{"$f":"F_Inputs!JGW7","v":0},{"$f":"F_Inputs!JGX7","v":0},{"$f":"F_Inputs!JGY7","v":0},{"$f":"F_Inputs!JGZ7","v":0},{"$f":"F_Inputs!JHA7","v":0},{"$f":"F_Inputs!JHB7","v":0},{"$f":"F_Inputs!JHC7","v":0},{"$f":"F_Inputs!JHD7","v":0},{"$f":"F_Inputs!JHE7","v":0},{"$f":"F_Inputs!JHF7","v":0},{"$f":"F_Inputs!JHG7","v":0},{"$f":"F_Inputs!JHH7","v":0},{"$f":"F_Inputs!JHI7","v":0},{"$f":"F_Inputs!JHJ7","v":0},{"$f":"F_Inputs!JHK7","v":0},{"$f":"F_Inputs!JHL7","v":0},{"$f":"F_Inputs!JHM7","v":0},{"$f":"F_Inputs!JHN7","v":0},{"$f":"F_Inputs!JHO7","v":0},{"$f":"F_Inputs!JHP7","v":0},{"$f":"F_Inputs!JHQ7","v":0},{"$f":"F_Inputs!JHR7","v":0},{"$f":"F_Inputs!JHS7","v":0},{"$f":"F_Inputs!JHT7","v":0},{"$f":"F_Inputs!JHU7","v":0},{"$f":"F_Inputs!JHV7","v":0},{"$f":"F_Inputs!JHW7","v":0},{"$f":"F_Inputs!JHX7","v":0},{"$f":"F_Inputs!JHY7","v":0},{"$f":"F_Inputs!JHZ7","v":0},{"$f":"F_Inputs!JIA7","v":0},{"$f":"F_Inputs!JIB7","v":0},{"$f":"F_Inputs!JIC7","v":0},{"$f":"F_Inputs!JID7","v":0},{"$f":"F_Inputs!JIE7","v":0},{"$f":"F_Inputs!JIF7","v":0},{"$f":"F_Inputs!JIG7","v":0},{"$f":"F_Inputs!JIH7","v":0},{"$f":"F_Inputs!JII7","v":0},{"$f":"F_Inputs!JIJ7","v":0},{"$f":"F_Inputs!JIK7","v":0},{"$f":"F_Inputs!JIL7","v":0},{"$f":"F_Inputs!JIM7","v":0},{"$f":"F_Inputs!JIN7","v":0},{"$f":"F_Inputs!JIO7","v":0},{"$f":"F_Inputs!JIP7","v":0},{"$f":"F_Inputs!JIQ7","v":0},{"$f":"F_Inputs!JIR7","v":0},{"$f":"F_Inputs!JIS7","v":0},{"$f":"F_Inputs!JIT7","v":0},{"$f":"F_Inputs!JIU7","v":0},{"$f":"F_Inputs!JIV7","v":0},{"$f":"F_Inputs!JIW7","v":0},{"$f":"F_Inputs!JIX7","v":0},{"$f":"F_Inputs!JIY7","v":0},{"$f":"F_Inputs!JIZ7","v":0},{"$f":"F_Inputs!JJA7","v":0},{"$f":"F_Inputs!JJB7","v":0},{"$f":"F_Inputs!JJC7","v":0},{"$f":"F_Inputs!JJD7","v":0},{"$f":"F_Inputs!JJE7","v":0},{"$f":"F_Inputs!JJF7","v":0},{"$f":"F_Inputs!JJG7","v":0},{"$f":"F_Inputs!JJH7","v":0},{"$f":"F_Inputs!JJI7","v":0},{"$f":"F_Inputs!JJJ7","v":0},{"$f":"F_Inputs!JJK7","v":0},{"$f":"F_Inputs!JJL7","v":0},{"$f":"F_Inputs!JJM7","v":0},{"$f":"F_Inputs!JJN7","v":0},{"$f":"F_Inputs!JJO7","v":0},{"$f":"F_Inputs!JJP7","v":0},{"$f":"F_Inputs!JJQ7","v":0},{"$f":"F_Inputs!JJR7","v":0},{"$f":"F_Inputs!JJS7","v":0},{"$f":"F_Inputs!JJT7","v":0},{"$f":"F_Inputs!JJU7","v":0},{"$f":"F_Inputs!JJV7","v":0},{"$f":"F_Inputs!JJW7","v":0},{"$f":"F_Inputs!JJX7","v":0},{"$f":"F_Inputs!JJY7","v":0},{"$f":"F_Inputs!JJZ7","v":0},{"$f":"F_Inputs!JKA7","v":0},{"$f":"F_Inputs!JKB7","v":0},{"$f":"F_Inputs!JKC7","v":0},{"$f":"F_Inputs!JKD7","v":0},{"$f":"F_Inputs!JKE7","v":0},{"$f":"F_Inputs!JKF7","v":0},{"$f":"F_Inputs!JKG7","v":0},{"$f":"F_Inputs!JKH7","v":0},{"$f":"F_Inputs!JKI7","v":0},{"$f":"F_Inputs!JKJ7","v":0},{"$f":"F_Inputs!JKK7","v":0},{"$f":"F_Inputs!JKL7","v":0},{"$f":"F_Inputs!JKM7","v":0},{"$f":"F_Inputs!JKN7","v":0},{"$f":"F_Inputs!JKO7","v":0},{"$f":"F_Inputs!JKP7","v":0},{"$f":"F_Inputs!JKQ7","v":0},{"$f":"F_Inputs!JKR7","v":0},{"$f":"F_Inputs!JKS7","v":0},{"$f":"F_Inputs!JKT7","v":0},{"$f":"F_Inputs!JKU7","v":0},{"$f":"F_Inputs!JKV7","v":0},{"$f":"F_Inputs!JKW7","v":0},{"$f":"F_Inputs!JKX7","v":0},{"$f":"F_Inputs!JKY7","v":0},{"$f":"F_Inputs!JKZ7","v":0},{"$f":"F_Inputs!JLA7","v":0},{"$f":"F_Inputs!JLB7","v":0},{"$f":"F_Inputs!JLC7","v":0},{"$f":"F_Inputs!JLD7","v":0},{"$f":"F_Inputs!JLE7","v":0},{"$f":"F_Inputs!JLF7","v":0},{"$f":"F_Inputs!JLG7","v":0},{"$f":"F_Inputs!JLH7","v":0},{"$f":"F_Inputs!JLI7","v":0},{"$f":"F_Inputs!JLJ7","v":0},{"$f":"F_Inputs!JLK7","v":0},{"$f":"F_Inputs!JLL7","v":0},{"$f":"F_Inputs!JLM7","v":0},{"$f":"F_Inputs!JLN7","v":0},{"$f":"F_Inputs!JLO7","v":0},{"$f":"F_Inputs!JLP7","v":0},{"$f":"F_Inputs!JLQ7","v":0},{"$f":"F_Inputs!JLR7","v":0},{"$f":"F_Inputs!JLS7","v":0},{"$f":"F_Inputs!JLT7","v":0},{"$f":"F_Inputs!JLU7","v":0},{"$f":"F_Inputs!JLV7","v":0},{"$f":"F_Inputs!JLW7","v":0},{"$f":"F_Inputs!JLX7","v":0},{"$f":"F_Inputs!JLY7","v":0},{"$f":"F_Inputs!JLZ7","v":0},{"$f":"F_Inputs!JMA7","v":0},{"$f":"F_Inputs!JMB7","v":0},{"$f":"F_Inputs!JMC7","v":0},{"$f":"F_Inputs!JMD7","v":0},{"$f":"F_Inputs!JME7","v":0},{"$f":"F_Inputs!JMF7","v":0},{"$f":"F_Inputs!JMG7","v":0},{"$f":"F_Inputs!JMH7","v":0},{"$f":"F_Inputs!JMI7","v":0},{"$f":"F_Inputs!JMJ7","v":0},{"$f":"F_Inputs!JMK7","v":0},{"$f":"F_Inputs!JML7","v":0},{"$f":"F_Inputs!JMM7","v":0},{"$f":"F_Inputs!JMN7","v":0},{"$f":"F_Inputs!JMO7","v":0},{"$f":"F_Inputs!JMP7","v":0},{"$f":"F_Inputs!JMQ7","v":0},{"$f":"F_Inputs!JMR7","v":0},{"$f":"F_Inputs!JMS7","v":0},{"$f":"F_Inputs!JMT7","v":0},{"$f":"F_Inputs!JMU7","v":0},{"$f":"F_Inputs!JMV7","v":0},{"$f":"F_Inputs!JMW7","v":0},{"$f":"F_Inputs!JMX7","v":0},{"$f":"F_Inputs!JMY7","v":0},{"$f":"F_Inputs!JMZ7","v":0},{"$f":"F_Inputs!JNA7","v":0},{"$f":"F_Inputs!JNB7","v":0},{"$f":"F_Inputs!JNC7","v":0},{"$f":"F_Inputs!JND7","v":0},{"$f":"F_Inputs!JNE7","v":0},{"$f":"F_Inputs!JNF7","v":0},{"$f":"F_Inputs!JNG7","v":0},{"$f":"F_Inputs!JNH7","v":0},{"$f":"F_Inputs!JNI7","v":0},{"$f":"F_Inputs!JNJ7","v":0},{"$f":"F_Inputs!JNK7","v":0},{"$f":"F_Inputs!JNL7","v":0},{"$f":"F_Inputs!JNM7","v":0},{"$f":"F_Inputs!JNN7","v":0},{"$f":"F_Inputs!JNO7","v":0},{"$f":"F_Inputs!JNP7","v":0},{"$f":"F_Inputs!JNQ7","v":0},{"$f":"F_Inputs!JNR7","v":0},{"$f":"F_Inputs!JNS7","v":0},{"$f":"F_Inputs!JNT7","v":0},{"$f":"F_Inputs!JNU7","v":0},{"$f":"F_Inputs!JNV7","v":0},{"$f":"F_Inputs!JNW7","v":0},{"$f":"F_Inputs!JNX7","v":0},{"$f":"F_Inputs!JNY7","v":0},{"$f":"F_Inputs!JNZ7","v":0},{"$f":"F_Inputs!JOA7","v":0},{"$f":"F_Inputs!JOB7","v":0},{"$f":"F_Inputs!JOC7","v":0},{"$f":"F_Inputs!JOD7","v":0},{"$f":"F_Inputs!JOE7","v":0},{"$f":"F_Inputs!JOF7","v":0},{"$f":"F_Inputs!JOG7","v":0},{"$f":"F_Inputs!JOH7","v":0},{"$f":"F_Inputs!JOI7","v":0},{"$f":"F_Inputs!JOJ7","v":0},{"$f":"F_Inputs!JOK7","v":0},{"$f":"F_Inputs!JOL7","v":0},{"$f":"F_Inputs!JOM7","v":0},{"$f":"F_Inputs!JON7","v":0},{"$f":"F_Inputs!JOO7","v":0},{"$f":"F_Inputs!JOP7","v":0},{"$f":"F_Inputs!JOQ7","v":0},{"$f":"F_Inputs!JOR7","v":0},{"$f":"F_Inputs!JOS7","v":0},{"$f":"F_Inputs!JOT7","v":0},{"$f":"F_Inputs!JOU7","v":0},{"$f":"F_Inputs!JOV7","v":0},{"$f":"F_Inputs!JOW7","v":0},{"$f":"F_Inputs!JOX7","v":0},{"$f":"F_Inputs!JOY7","v":0},{"$f":"F_Inputs!JOZ7","v":0},{"$f":"F_Inputs!JPA7","v":0},{"$f":"F_Inputs!JPB7","v":0},{"$f":"F_Inputs!JPC7","v":0},{"$f":"F_Inputs!JPD7","v":0},{"$f":"F_Inputs!JPE7","v":0},{"$f":"F_Inputs!JPF7","v":0},{"$f":"F_Inputs!JPG7","v":0},{"$f":"F_Inputs!JPH7","v":0},{"$f":"F_Inputs!JPI7","v":0},{"$f":"F_Inputs!JPJ7","v":0},{"$f":"F_Inputs!JPK7","v":0},{"$f":"F_Inputs!JPL7","v":0},{"$f":"F_Inputs!JPM7","v":0},{"$f":"F_Inputs!JPN7","v":0},{"$f":"F_Inputs!JPO7","v":0},{"$f":"F_Inputs!JPP7","v":0},{"$f":"F_Inputs!JPQ7","v":0},{"$f":"F_Inputs!JPR7","v":0},{"$f":"F_Inputs!JPS7","v":0},{"$f":"F_Inputs!JPT7","v":0},{"$f":"F_Inputs!JPU7","v":0},{"$f":"F_Inputs!JPV7","v":0},{"$f":"F_Inputs!JPW7","v":0},{"$f":"F_Inputs!JPX7","v":0},{"$f":"F_Inputs!JPY7","v":0},{"$f":"F_Inputs!JPZ7","v":0},{"$f":"F_Inputs!JQA7","v":0},{"$f":"F_Inputs!JQB7","v":0},{"$f":"F_Inputs!JQC7","v":0},{"$f":"F_Inputs!JQD7","v":0},{"$f":"F_Inputs!JQE7","v":0},{"$f":"F_Inputs!JQF7","v":0},{"$f":"F_Inputs!JQG7","v":0},{"$f":"F_Inputs!JQH7","v":0},{"$f":"F_Inputs!JQI7","v":0},{"$f":"F_Inputs!JQJ7","v":0},{"$f":"F_Inputs!JQK7","v":0},{"$f":"F_Inputs!JQL7","v":0},{"$f":"F_Inputs!JQM7","v":0},{"$f":"F_Inputs!JQN7","v":0},{"$f":"F_Inputs!JQO7","v":0},{"$f":"F_Inputs!JQP7","v":0},{"$f":"F_Inputs!JQQ7","v":0},{"$f":"F_Inputs!JQR7","v":0},{"$f":"F_Inputs!JQS7","v":0},{"$f":"F_Inputs!JQT7","v":0},{"$f":"F_Inputs!JQU7","v":0},{"$f":"F_Inputs!JQV7","v":0},{"$f":"F_Inputs!JQW7","v":0},{"$f":"F_Inputs!JQX7","v":0},{"$f":"F_Inputs!JQY7","v":0},{"$f":"F_Inputs!JQZ7","v":0},{"$f":"F_Inputs!JRA7","v":0},{"$f":"F_Inputs!JRB7","v":0},{"$f":"F_Inputs!JRC7","v":0},{"$f":"F_Inputs!JRD7","v":0},{"$f":"F_Inputs!JRE7","v":0},{"$f":"F_Inputs!JRF7","v":0},{"$f":"F_Inputs!JRG7","v":0},{"$f":"F_Inputs!JRH7","v":0},{"$f":"F_Inputs!JRI7","v":0},{"$f":"F_Inputs!JRJ7","v":0},{"$f":"F_Inputs!JRK7","v":0},{"$f":"F_Inputs!JRL7","v":0},{"$f":"F_Inputs!JRM7","v":0},{"$f":"F_Inputs!JRN7","v":0},{"$f":"F_Inputs!JRO7","v":0},{"$f":"F_Inputs!JRP7","v":0},{"$f":"F_Inputs!JRQ7","v":0},{"$f":"F_Inputs!JRR7","v":0},{"$f":"F_Inputs!JRS7","v":0},{"$f":"F_Inputs!JRT7","v":0},{"$f":"F_Inputs!JRU7","v":0},{"$f":"F_Inputs!JRV7","v":0},{"$f":"F_Inputs!JRW7","v":0},{"$f":"F_Inputs!JRX7","v":0},{"$f":"F_Inputs!JRY7","v":0},{"$f":"F_Inputs!JRZ7","v":0},{"$f":"F_Inputs!JSA7","v":0},{"$f":"F_Inputs!JSB7","v":0},{"$f":"F_Inputs!JSC7","v":0},{"$f":"F_Inputs!JSD7","v":0},{"$f":"F_Inputs!JSE7","v":0},{"$f":"F_Inputs!JSF7","v":0},{"$f":"F_Inputs!JSG7","v":0},{"$f":"F_Inputs!JSH7","v":0},{"$f":"F_Inputs!JSI7","v":0},{"$f":"F_Inputs!JSJ7","v":0},{"$f":"F_Inputs!JSK7","v":0},{"$f":"F_Inputs!JSL7","v":0},{"$f":"F_Inputs!JSM7","v":0},{"$f":"F_Inputs!JSN7","v":0},{"$f":"F_Inputs!JSO7","v":0},{"$f":"F_Inputs!JSP7","v":0},{"$f":"F_Inputs!JSQ7","v":0},{"$f":"F_Inputs!JSR7","v":0},{"$f":"F_Inputs!JSS7","v":0},{"$f":"F_Inputs!JST7","v":0},{"$f":"F_Inputs!JSU7","v":0},{"$f":"F_Inputs!JSV7","v":0},{"$f":"F_Inputs!JSW7","v":0},{"$f":"F_Inputs!JSX7","v":0},{"$f":"F_Inputs!JSY7","v":0},{"$f":"F_Inputs!JSZ7","v":0},{"$f":"F_Inputs!JTA7","v":0},{"$f":"F_Inputs!JTB7","v":0},{"$f":"F_Inputs!JTC7","v":0},{"$f":"F_Inputs!JTD7","v":0},{"$f":"F_Inputs!JTE7","v":0},{"$f":"F_Inputs!JTF7","v":0},{"$f":"F_Inputs!JTG7","v":0},{"$f":"F_Inputs!JTH7","v":0},{"$f":"F_Inputs!JTI7","v":0},{"$f":"F_Inputs!JTJ7","v":0},{"$f":"F_Inputs!JTK7","v":0},{"$f":"F_Inputs!JTL7","v":0},{"$f":"F_Inputs!JTM7","v":0},{"$f":"F_Inputs!JTN7","v":0},{"$f":"F_Inputs!JTO7","v":0},{"$f":"F_Inputs!JTP7","v":0},{"$f":"F_Inputs!JTQ7","v":0},{"$f":"F_Inputs!JTR7","v":0},{"$f":"F_Inputs!JTS7","v":0},{"$f":"F_Inputs!JTT7","v":0},{"$f":"F_Inputs!JTU7","v":0},{"$f":"F_Inputs!JTV7","v":0},{"$f":"F_Inputs!JTW7","v":0},{"$f":"F_Inputs!JTX7","v":0},{"$f":"F_Inputs!JTY7","v":0},{"$f":"F_Inputs!JTZ7","v":0},{"$f":"F_Inputs!JUA7","v":0},{"$f":"F_Inputs!JUB7","v":0},{"$f":"F_Inputs!JUC7","v":0},{"$f":"F_Inputs!JUD7","v":0},{"$f":"F_Inputs!JUE7","v":0},{"$f":"F_Inputs!JUF7","v":0},{"$f":"F_Inputs!JUG7","v":0},{"$f":"F_Inputs!JUH7","v":0},{"$f":"F_Inputs!JUI7","v":0},{"$f":"F_Inputs!JUJ7","v":0},{"$f":"F_Inputs!JUK7","v":0},{"$f":"F_Inputs!JUL7","v":0},{"$f":"F_Inputs!JUM7","v":0},{"$f":"F_Inputs!JUN7","v":0},{"$f":"F_Inputs!JUO7","v":0},{"$f":"F_Inputs!JUP7","v":0},{"$f":"F_Inputs!JUQ7","v":0},{"$f":"F_Inputs!JUR7","v":0},{"$f":"F_Inputs!JUS7","v":0},{"$f":"F_Inputs!JUT7","v":0},{"$f":"F_Inputs!JUU7","v":0},{"$f":"F_Inputs!JUV7","v":0},{"$f":"F_Inputs!JUW7","v":0},{"$f":"F_Inputs!JUX7","v":0},{"$f":"F_Inputs!JUY7","v":0},{"$f":"F_Inputs!JUZ7","v":0},{"$f":"F_Inputs!JVA7","v":0},{"$f":"F_Inputs!JVB7","v":0},{"$f":"F_Inputs!JVC7","v":0},{"$f":"F_Inputs!JVD7","v":0},{"$f":"F_Inputs!JVE7","v":0},{"$f":"F_Inputs!JVF7","v":0},{"$f":"F_Inputs!JVG7","v":0},{"$f":"F_Inputs!JVH7","v":0},{"$f":"F_Inputs!JVI7","v":0},{"$f":"F_Inputs!JVJ7","v":0},{"$f":"F_Inputs!JVK7","v":0},{"$f":"F_Inputs!JVL7","v":0},{"$f":"F_Inputs!JVM7","v":0},{"$f":"F_Inputs!JVN7","v":0},{"$f":"F_Inputs!JVO7","v":0},{"$f":"F_Inputs!JVP7","v":0},{"$f":"F_Inputs!JVQ7","v":0},{"$f":"F_Inputs!JVR7","v":0},{"$f":"F_Inputs!JVS7","v":0},{"$f":"F_Inputs!JVT7","v":0},{"$f":"F_Inputs!JVU7","v":0},{"$f":"F_Inputs!JVV7","v":0},{"$f":"F_Inputs!JVW7","v":0},{"$f":"F_Inputs!JVX7","v":0},{"$f":"F_Inputs!JVY7","v":0},{"$f":"F_Inputs!JVZ7","v":0},{"$f":"F_Inputs!JWA7","v":0},{"$f":"F_Inputs!JWB7","v":0},{"$f":"F_Inputs!JWC7","v":0},{"$f":"F_Inputs!JWD7","v":0},{"$f":"F_Inputs!JWE7","v":0},{"$f":"F_Inputs!JWF7","v":0},{"$f":"F_Inputs!JWG7","v":0},{"$f":"F_Inputs!JWH7","v":0},{"$f":"F_Inputs!JWI7","v":0},{"$f":"F_Inputs!JWJ7","v":0},{"$f":"F_Inputs!JWK7","v":0},{"$f":"F_Inputs!JWL7","v":0},{"$f":"F_Inputs!JWM7","v":0},{"$f":"F_Inputs!JWN7","v":0},{"$f":"F_Inputs!JWO7","v":0},{"$f":"F_Inputs!JWP7","v":0},{"$f":"F_Inputs!JWQ7","v":0},{"$f":"F_Inputs!JWR7","v":0},{"$f":"F_Inputs!JWS7","v":0},{"$f":"F_Inputs!JWT7","v":0},{"$f":"F_Inputs!JWU7","v":0},{"$f":"F_Inputs!JWV7","v":0},{"$f":"F_Inputs!JWW7","v":0},{"$f":"F_Inputs!JWX7","v":0},{"$f":"F_Inputs!JWY7","v":0},{"$f":"F_Inputs!JWZ7","v":0},{"$f":"F_Inputs!JXA7","v":0},{"$f":"F_Inputs!JXB7","v":0},{"$f":"F_Inputs!JXC7","v":0},{"$f":"F_Inputs!JXD7","v":0},{"$f":"F_Inputs!JXE7","v":0},{"$f":"F_Inputs!JXF7","v":0},{"$f":"F_Inputs!JXG7","v":0},{"$f":"F_Inputs!JXH7","v":0},{"$f":"F_Inputs!JXI7","v":0},{"$f":"F_Inputs!JXJ7","v":0},{"$f":"F_Inputs!JXK7","v":0},{"$f":"F_Inputs!JXL7","v":0},{"$f":"F_Inputs!JXM7","v":0},{"$f":"F_Inputs!JXN7","v":0},{"$f":"F_Inputs!JXO7","v":0},{"$f":"F_Inputs!JXP7","v":0},{"$f":"F_Inputs!JXQ7","v":0},{"$f":"F_Inputs!JXR7","v":0},{"$f":"F_Inputs!JXS7","v":0},{"$f":"F_Inputs!JXT7","v":0},{"$f":"F_Inputs!JXU7","v":0},{"$f":"F_Inputs!JXV7","v":0},{"$f":"F_Inputs!JXW7","v":0},{"$f":"F_Inputs!JXX7","v":0},{"$f":"F_Inputs!JXY7","v":0},{"$f":"F_Inputs!JXZ7","v":0},{"$f":"F_Inputs!JYA7","v":0},{"$f":"F_Inputs!JYB7","v":0},{"$f":"F_Inputs!JYC7","v":0},{"$f":"F_Inputs!JYD7","v":0},{"$f":"F_Inputs!JYE7","v":0},{"$f":"F_Inputs!JYF7","v":0},{"$f":"F_Inputs!JYG7","v":0},{"$f":"F_Inputs!JYH7","v":0},{"$f":"F_Inputs!JYI7","v":0},{"$f":"F_Inputs!JYJ7","v":0},{"$f":"F_Inputs!JYK7","v":0},{"$f":"F_Inputs!JYL7","v":0},{"$f":"F_Inputs!JYM7","v":0},{"$f":"F_Inputs!JYN7","v":0},{"$f":"F_Inputs!JYO7","v":0},{"$f":"F_Inputs!JYP7","v":0},{"$f":"F_Inputs!JYQ7","v":0},{"$f":"F_Inputs!JYR7","v":0},{"$f":"F_Inputs!JYS7","v":0},{"$f":"F_Inputs!JYT7","v":0},{"$f":"F_Inputs!JYU7","v":0},{"$f":"F_Inputs!JYV7","v":0},{"$f":"F_Inputs!JYW7","v":0},{"$f":"F_Inputs!JYX7","v":0},{"$f":"F_Inputs!JYY7","v":0},{"$f":"F_Inputs!JYZ7","v":0},{"$f":"F_Inputs!JZA7","v":0},{"$f":"F_Inputs!JZB7","v":0},{"$f":"F_Inputs!JZC7","v":0},{"$f":"F_Inputs!JZD7","v":0},{"$f":"F_Inputs!JZE7","v":0},{"$f":"F_Inputs!JZF7","v":0},{"$f":"F_Inputs!JZG7","v":0},{"$f":"F_Inputs!JZH7","v":0},{"$f":"F_Inputs!JZI7","v":0},{"$f":"F_Inputs!JZJ7","v":0},{"$f":"F_Inputs!JZK7","v":0},{"$f":"F_Inputs!JZL7","v":0},{"$f":"F_Inputs!JZM7","v":0},{"$f":"F_Inputs!JZN7","v":0},{"$f":"F_Inputs!JZO7","v":0},{"$f":"F_Inputs!JZP7","v":0},{"$f":"F_Inputs!JZQ7","v":0},{"$f":"F_Inputs!JZR7","v":0},{"$f":"F_Inputs!JZS7","v":0},{"$f":"F_Inputs!JZT7","v":0},{"$f":"F_Inputs!JZU7","v":0},{"$f":"F_Inputs!JZV7","v":0},{"$f":"F_Inputs!JZW7","v":0},{"$f":"F_Inputs!JZX7","v":0},{"$f":"F_Inputs!JZY7","v":0},{"$f":"F_Inputs!JZZ7","v":0},{"$f":"F_Inputs!KAA7","v":0},{"$f":"F_Inputs!KAB7","v":0},{"$f":"F_Inputs!KAC7","v":0},{"$f":"F_Inputs!KAD7","v":0},{"$f":"F_Inputs!KAE7","v":0},{"$f":"F_Inputs!KAF7","v":0},{"$f":"F_Inputs!KAG7","v":0},{"$f":"F_Inputs!KAH7","v":0},{"$f":"F_Inputs!KAI7","v":0},{"$f":"F_Inputs!KAJ7","v":0},{"$f":"F_Inputs!KAK7","v":0},{"$f":"F_Inputs!KAL7","v":0},{"$f":"F_Inputs!KAM7","v":0},{"$f":"F_Inputs!KAN7","v":0},{"$f":"F_Inputs!KAO7","v":0},{"$f":"F_Inputs!KAP7","v":0},{"$f":"F_Inputs!KAQ7","v":0},{"$f":"F_Inputs!KAR7","v":0},{"$f":"F_Inputs!KAS7","v":0},{"$f":"F_Inputs!KAT7","v":0},{"$f":"F_Inputs!KAU7","v":0},{"$f":"F_Inputs!KAV7","v":0},{"$f":"F_Inputs!KAW7","v":0},{"$f":"F_Inputs!KAX7","v":0},{"$f":"F_Inputs!KAY7","v":0},{"$f":"F_Inputs!KAZ7","v":0},{"$f":"F_Inputs!KBA7","v":0},{"$f":"F_Inputs!KBB7","v":0},{"$f":"F_Inputs!KBC7","v":0},{"$f":"F_Inputs!KBD7","v":0},{"$f":"F_Inputs!KBE7","v":0},{"$f":"F_Inputs!KBF7","v":0},{"$f":"F_Inputs!KBG7","v":0},{"$f":"F_Inputs!KBH7","v":0},{"$f":"F_Inputs!KBI7","v":0},{"$f":"F_Inputs!KBJ7","v":0},{"$f":"F_Inputs!KBK7","v":0},{"$f":"F_Inputs!KBL7","v":0},{"$f":"F_Inputs!KBM7","v":0},{"$f":"F_Inputs!KBN7","v":0},{"$f":"F_Inputs!KBO7","v":0},{"$f":"F_Inputs!KBP7","v":0},{"$f":"F_Inputs!KBQ7","v":0},{"$f":"F_Inputs!KBR7","v":0},{"$f":"F_Inputs!KBS7","v":0},{"$f":"F_Inputs!KBT7","v":0},{"$f":"F_Inputs!KBU7","v":0},{"$f":"F_Inputs!KBV7","v":0},{"$f":"F_Inputs!KBW7","v":0},{"$f":"F_Inputs!KBX7","v":0},{"$f":"F_Inputs!KBY7","v":0},{"$f":"F_Inputs!KBZ7","v":0},{"$f":"F_Inputs!KCA7","v":0},{"$f":"F_Inputs!KCB7","v":0},{"$f":"F_Inputs!KCC7","v":0},{"$f":"F_Inputs!KCD7","v":0},{"$f":"F_Inputs!KCE7","v":0},{"$f":"F_Inputs!KCF7","v":0},{"$f":"F_Inputs!KCG7","v":0},{"$f":"F_Inputs!KCH7","v":0},{"$f":"F_Inputs!KCI7","v":0},{"$f":"F_Inputs!KCJ7","v":0},{"$f":"F_Inputs!KCK7","v":0},{"$f":"F_Inputs!KCL7","v":0},{"$f":"F_Inputs!KCM7","v":0},{"$f":"F_Inputs!KCN7","v":0},{"$f":"F_Inputs!KCO7","v":0},{"$f":"F_Inputs!KCP7","v":0},{"$f":"F_Inputs!KCQ7","v":0},{"$f":"F_Inputs!KCR7","v":0},{"$f":"F_Inputs!KCS7","v":0},{"$f":"F_Inputs!KCT7","v":0},{"$f":"F_Inputs!KCU7","v":0},{"$f":"F_Inputs!KCV7","v":0},{"$f":"F_Inputs!KCW7","v":0},{"$f":"F_Inputs!KCX7","v":0},{"$f":"F_Inputs!KCY7","v":0},{"$f":"F_Inputs!KCZ7","v":0},{"$f":"F_Inputs!KDA7","v":0},{"$f":"F_Inputs!KDB7","v":0},{"$f":"F_Inputs!KDC7","v":0},{"$f":"F_Inputs!KDD7","v":0},{"$f":"F_Inputs!KDE7","v":0},{"$f":"F_Inputs!KDF7","v":0},{"$f":"F_Inputs!KDG7","v":0},{"$f":"F_Inputs!KDH7","v":0},{"$f":"F_Inputs!KDI7","v":0},{"$f":"F_Inputs!KDJ7","v":0},{"$f":"F_Inputs!KDK7","v":0},{"$f":"F_Inputs!KDL7","v":0},{"$f":"F_Inputs!KDM7","v":0},{"$f":"F_Inputs!KDN7","v":0},{"$f":"F_Inputs!KDO7","v":0},{"$f":"F_Inputs!KDP7","v":0},{"$f":"F_Inputs!KDQ7","v":0},{"$f":"F_Inputs!KDR7","v":0},{"$f":"F_Inputs!KDS7","v":0},{"$f":"F_Inputs!KDT7","v":0},{"$f":"F_Inputs!KDU7","v":0},{"$f":"F_Inputs!KDV7","v":0},{"$f":"F_Inputs!KDW7","v":0},{"$f":"F_Inputs!KDX7","v":0},{"$f":"F_Inputs!KDY7","v":0},{"$f":"F_Inputs!KDZ7","v":0},{"$f":"F_Inputs!KEA7","v":0},{"$f":"F_Inputs!KEB7","v":0},{"$f":"F_Inputs!KEC7","v":0},{"$f":"F_Inputs!KED7","v":0},{"$f":"F_Inputs!KEE7","v":0},{"$f":"F_Inputs!KEF7","v":0},{"$f":"F_Inputs!KEG7","v":0},{"$f":"F_Inputs!KEH7","v":0},{"$f":"F_Inputs!KEI7","v":0},{"$f":"F_Inputs!KEJ7","v":0},{"$f":"F_Inputs!KEK7","v":0},{"$f":"F_Inputs!KEL7","v":0},{"$f":"F_Inputs!KEM7","v":0},{"$f":"F_Inputs!KEN7","v":0},{"$f":"F_Inputs!KEO7","v":0},{"$f":"F_Inputs!KEP7","v":0},{"$f":"F_Inputs!KEQ7","v":0},{"$f":"F_Inputs!KER7","v":0},{"$f":"F_Inputs!KES7","v":0},{"$f":"F_Inputs!KET7","v":0},{"$f":"F_Inputs!KEU7","v":0},{"$f":"F_Inputs!KEV7","v":0},{"$f":"F_Inputs!KEW7","v":0},{"$f":"F_Inputs!KEX7","v":0},{"$f":"F_Inputs!KEY7","v":0},{"$f":"F_Inputs!KEZ7","v":0},{"$f":"F_Inputs!KFA7","v":0},{"$f":"F_Inputs!KFB7","v":0},{"$f":"F_Inputs!KFC7","v":0},{"$f":"F_Inputs!KFD7","v":0},{"$f":"F_Inputs!KFE7","v":0},{"$f":"F_Inputs!KFF7","v":0},{"$f":"F_Inputs!KFG7","v":0},{"$f":"F_Inputs!KFH7","v":0},{"$f":"F_Inputs!KFI7","v":0},{"$f":"F_Inputs!KFJ7","v":0},{"$f":"F_Inputs!KFK7","v":0},{"$f":"F_Inputs!KFL7","v":0},{"$f":"F_Inputs!KFM7","v":0},{"$f":"F_Inputs!KFN7","v":0},{"$f":"F_Inputs!KFO7","v":0},{"$f":"F_Inputs!KFP7","v":0},{"$f":"F_Inputs!KFQ7","v":0},{"$f":"F_Inputs!KFR7","v":0},{"$f":"F_Inputs!KFS7","v":0},{"$f":"F_Inputs!KFT7","v":0},{"$f":"F_Inputs!KFU7","v":0},{"$f":"F_Inputs!KFV7","v":0},{"$f":"F_Inputs!KFW7","v":0},{"$f":"F_Inputs!KFX7","v":0},{"$f":"F_Inputs!KFY7","v":0},{"$f":"F_Inputs!KFZ7","v":0},{"$f":"F_Inputs!KGA7","v":0},{"$f":"F_Inputs!KGB7","v":0},{"$f":"F_Inputs!KGC7","v":0},{"$f":"F_Inputs!KGD7","v":0},{"$f":"F_Inputs!KGE7","v":0},{"$f":"F_Inputs!KGF7","v":0},{"$f":"F_Inputs!KGG7","v":0},{"$f":"F_Inputs!KGH7","v":0},{"$f":"F_Inputs!KGI7","v":0},{"$f":"F_Inputs!KGJ7","v":0},{"$f":"F_Inputs!KGK7","v":0},{"$f":"F_Inputs!KGL7","v":0},{"$f":"F_Inputs!KGM7","v":0},{"$f":"F_Inputs!KGN7","v":0},{"$f":"F_Inputs!KGO7","v":0},{"$f":"F_Inputs!KGP7","v":0},{"$f":"F_Inputs!KGQ7","v":0},{"$f":"F_Inputs!KGR7","v":0},{"$f":"F_Inputs!KGS7","v":0},{"$f":"F_Inputs!KGT7","v":0},{"$f":"F_Inputs!KGU7","v":0},{"$f":"F_Inputs!KGV7","v":0},{"$f":"F_Inputs!KGW7","v":0},{"$f":"F_Inputs!KGX7","v":0},{"$f":"F_Inputs!KGY7","v":0},{"$f":"F_Inputs!KGZ7","v":0},{"$f":"F_Inputs!KHA7","v":0},{"$f":"F_Inputs!KHB7","v":0},{"$f":"F_Inputs!KHC7","v":0},{"$f":"F_Inputs!KHD7","v":0},{"$f":"F_Inputs!KHE7","v":0},{"$f":"F_Inputs!KHF7","v":0},{"$f":"F_Inputs!KHG7","v":0},{"$f":"F_Inputs!KHH7","v":0},{"$f":"F_Inputs!KHI7","v":0},{"$f":"F_Inputs!KHJ7","v":0},{"$f":"F_Inputs!KHK7","v":0},{"$f":"F_Inputs!KHL7","v":0},{"$f":"F_Inputs!KHM7","v":0},{"$f":"F_Inputs!KHN7","v":0},{"$f":"F_Inputs!KHO7","v":0},{"$f":"F_Inputs!KHP7","v":0},{"$f":"F_Inputs!KHQ7","v":0},{"$f":"F_Inputs!KHR7","v":0},{"$f":"F_Inputs!KHS7","v":0},{"$f":"F_Inputs!KHT7","v":0},{"$f":"F_Inputs!KHU7","v":0},{"$f":"F_Inputs!KHV7","v":0},{"$f":"F_Inputs!KHW7","v":0},{"$f":"F_Inputs!KHX7","v":0},{"$f":"F_Inputs!KHY7","v":0},{"$f":"F_Inputs!KHZ7","v":0},{"$f":"F_Inputs!KIA7","v":0},{"$f":"F_Inputs!KIB7","v":0},{"$f":"F_Inputs!KIC7","v":0},{"$f":"F_Inputs!KID7","v":0},{"$f":"F_Inputs!KIE7","v":0},{"$f":"F_Inputs!KIF7","v":0},{"$f":"F_Inputs!KIG7","v":0},{"$f":"F_Inputs!KIH7","v":0},{"$f":"F_Inputs!KII7","v":0},{"$f":"F_Inputs!KIJ7","v":0},{"$f":"F_Inputs!KIK7","v":0},{"$f":"F_Inputs!KIL7","v":0},{"$f":"F_Inputs!KIM7","v":0},{"$f":"F_Inputs!KIN7","v":0},{"$f":"F_Inputs!KIO7","v":0},{"$f":"F_Inputs!KIP7","v":0},{"$f":"F_Inputs!KIQ7","v":0},{"$f":"F_Inputs!KIR7","v":0},{"$f":"F_Inputs!KIS7","v":0},{"$f":"F_Inputs!KIT7","v":0},{"$f":"F_Inputs!KIU7","v":0},{"$f":"F_Inputs!KIV7","v":0},{"$f":"F_Inputs!KIW7","v":0},{"$f":"F_Inputs!KIX7","v":0},{"$f":"F_Inputs!KIY7","v":0},{"$f":"F_Inputs!KIZ7","v":0},{"$f":"F_Inputs!KJA7","v":0},{"$f":"F_Inputs!KJB7","v":0},{"$f":"F_Inputs!KJC7","v":0},{"$f":"F_Inputs!KJD7","v":0},{"$f":"F_Inputs!KJE7","v":0},{"$f":"F_Inputs!KJF7","v":0},{"$f":"F_Inputs!KJG7","v":0},{"$f":"F_Inputs!KJH7","v":0},{"$f":"F_Inputs!KJI7","v":0},{"$f":"F_Inputs!KJJ7","v":0},{"$f":"F_Inputs!KJK7","v":0},{"$f":"F_Inputs!KJL7","v":0},{"$f":"F_Inputs!KJM7","v":0},{"$f":"F_Inputs!KJN7","v":0},{"$f":"F_Inputs!KJO7","v":0},{"$f":"F_Inputs!KJP7","v":0},{"$f":"F_Inputs!KJQ7","v":0},{"$f":"F_Inputs!KJR7","v":0},{"$f":"F_Inputs!KJS7","v":0},{"$f":"F_Inputs!KJT7","v":0},{"$f":"F_Inputs!KJU7","v":0},{"$f":"F_Inputs!KJV7","v":0},{"$f":"F_Inputs!KJW7","v":0},{"$f":"F_Inputs!KJX7","v":0},{"$f":"F_Inputs!KJY7","v":0},{"$f":"F_Inputs!KJZ7","v":0},{"$f":"F_Inputs!KKA7","v":0},{"$f":"F_Inputs!KKB7","v":0},{"$f":"F_Inputs!KKC7","v":0},{"$f":"F_Inputs!KKD7","v":0},{"$f":"F_Inputs!KKE7","v":0},{"$f":"F_Inputs!KKF7","v":0},{"$f":"F_Inputs!KKG7","v":0},{"$f":"F_Inputs!KKH7","v":0},{"$f":"F_Inputs!KKI7","v":0},{"$f":"F_Inputs!KKJ7","v":0},{"$f":"F_Inputs!KKK7","v":0},{"$f":"F_Inputs!KKL7","v":0},{"$f":"F_Inputs!KKM7","v":0},{"$f":"F_Inputs!KKN7","v":0},{"$f":"F_Inputs!KKO7","v":0},{"$f":"F_Inputs!KKP7","v":0},{"$f":"F_Inputs!KKQ7","v":0},{"$f":"F_Inputs!KKR7","v":0},{"$f":"F_Inputs!KKS7","v":0},{"$f":"F_Inputs!KKT7","v":0},{"$f":"F_Inputs!KKU7","v":0},{"$f":"F_Inputs!KKV7","v":0},{"$f":"F_Inputs!KKW7","v":0},{"$f":"F_Inputs!KKX7","v":0},{"$f":"F_Inputs!KKY7","v":0},{"$f":"F_Inputs!KKZ7","v":0},{"$f":"F_Inputs!KLA7","v":0},{"$f":"F_Inputs!KLB7","v":0},{"$f":"F_Inputs!KLC7","v":0},{"$f":"F_Inputs!KLD7","v":0},{"$f":"F_Inputs!KLE7","v":0},{"$f":"F_Inputs!KLF7","v":0},{"$f":"F_Inputs!KLG7","v":0},{"$f":"F_Inputs!KLH7","v":0},{"$f":"F_Inputs!KLI7","v":0},{"$f":"F_Inputs!KLJ7","v":0},{"$f":"F_Inputs!KLK7","v":0},{"$f":"F_Inputs!KLL7","v":0},{"$f":"F_Inputs!KLM7","v":0},{"$f":"F_Inputs!KLN7","v":0},{"$f":"F_Inputs!KLO7","v":0},{"$f":"F_Inputs!KLP7","v":0},{"$f":"F_Inputs!KLQ7","v":0},{"$f":"F_Inputs!KLR7","v":0},{"$f":"F_Inputs!KLS7","v":0},{"$f":"F_Inputs!KLT7","v":0},{"$f":"F_Inputs!KLU7","v":0},{"$f":"F_Inputs!KLV7","v":0},{"$f":"F_Inputs!KLW7","v":0},{"$f":"F_Inputs!KLX7","v":0},{"$f":"F_Inputs!KLY7","v":0},{"$f":"F_Inputs!KLZ7","v":0},{"$f":"F_Inputs!KMA7","v":0},{"$f":"F_Inputs!KMB7","v":0},{"$f":"F_Inputs!KMC7","v":0},{"$f":"F_Inputs!KMD7","v":0},{"$f":"F_Inputs!KME7","v":0},{"$f":"F_Inputs!KMF7","v":0},{"$f":"F_Inputs!KMG7","v":0},{"$f":"F_Inputs!KMH7","v":0},{"$f":"F_Inputs!KMI7","v":0},{"$f":"F_Inputs!KMJ7","v":0},{"$f":"F_Inputs!KMK7","v":0},{"$f":"F_Inputs!KML7","v":0},{"$f":"F_Inputs!KMM7","v":0},{"$f":"F_Inputs!KMN7","v":0},{"$f":"F_Inputs!KMO7","v":0},{"$f":"F_Inputs!KMP7","v":0},{"$f":"F_Inputs!KMQ7","v":0},{"$f":"F_Inputs!KMR7","v":0},{"$f":"F_Inputs!KMS7","v":0},{"$f":"F_Inputs!KMT7","v":0},{"$f":"F_Inputs!KMU7","v":0},{"$f":"F_Inputs!KMV7","v":0},{"$f":"F_Inputs!KMW7","v":0},{"$f":"F_Inputs!KMX7","v":0},{"$f":"F_Inputs!KMY7","v":0},{"$f":"F_Inputs!KMZ7","v":0},{"$f":"F_Inputs!KNA7","v":0},{"$f":"F_Inputs!KNB7","v":0},{"$f":"F_Inputs!KNC7","v":0},{"$f":"F_Inputs!KND7","v":0},{"$f":"F_Inputs!KNE7","v":0},{"$f":"F_Inputs!KNF7","v":0},{"$f":"F_Inputs!KNG7","v":0},{"$f":"F_Inputs!KNH7","v":0},{"$f":"F_Inputs!KNI7","v":0},{"$f":"F_Inputs!KNJ7","v":0},{"$f":"F_Inputs!KNK7","v":0},{"$f":"F_Inputs!KNL7","v":0},{"$f":"F_Inputs!KNM7","v":0},{"$f":"F_Inputs!KNN7","v":0},{"$f":"F_Inputs!KNO7","v":0},{"$f":"F_Inputs!KNP7","v":0},{"$f":"F_Inputs!KNQ7","v":0},{"$f":"F_Inputs!KNR7","v":0},{"$f":"F_Inputs!KNS7","v":0},{"$f":"F_Inputs!KNT7","v":0},{"$f":"F_Inputs!KNU7","v":0},{"$f":"F_Inputs!KNV7","v":0},{"$f":"F_Inputs!KNW7","v":0},{"$f":"F_Inputs!KNX7","v":0},{"$f":"F_Inputs!KNY7","v":0},{"$f":"F_Inputs!KNZ7","v":0},{"$f":"F_Inputs!KOA7","v":0},{"$f":"F_Inputs!KOB7","v":0},{"$f":"F_Inputs!KOC7","v":0},{"$f":"F_Inputs!KOD7","v":0},{"$f":"F_Inputs!KOE7","v":0},{"$f":"F_Inputs!KOF7","v":0},{"$f":"F_Inputs!KOG7","v":0},{"$f":"F_Inputs!KOH7","v":0},{"$f":"F_Inputs!KOI7","v":0},{"$f":"F_Inputs!KOJ7","v":0},{"$f":"F_Inputs!KOK7","v":0},{"$f":"F_Inputs!KOL7","v":0},{"$f":"F_Inputs!KOM7","v":0},{"$f":"F_Inputs!KON7","v":0},{"$f":"F_Inputs!KOO7","v":0},{"$f":"F_Inputs!KOP7","v":0},{"$f":"F_Inputs!KOQ7","v":0},{"$f":"F_Inputs!KOR7","v":0},{"$f":"F_Inputs!KOS7","v":0},{"$f":"F_Inputs!KOT7","v":0},{"$f":"F_Inputs!KOU7","v":0},{"$f":"F_Inputs!KOV7","v":0},{"$f":"F_Inputs!KOW7","v":0},{"$f":"F_Inputs!KOX7","v":0},{"$f":"F_Inputs!KOY7","v":0},{"$f":"F_Inputs!KOZ7","v":0},{"$f":"F_Inputs!KPA7","v":0},{"$f":"F_Inputs!KPB7","v":0},{"$f":"F_Inputs!KPC7","v":0},{"$f":"F_Inputs!KPD7","v":0},{"$f":"F_Inputs!KPE7","v":0},{"$f":"F_Inputs!KPF7","v":0},{"$f":"F_Inputs!KPG7","v":0},{"$f":"F_Inputs!KPH7","v":0},{"$f":"F_Inputs!KPI7","v":0},{"$f":"F_Inputs!KPJ7","v":0},{"$f":"F_Inputs!KPK7","v":0},{"$f":"F_Inputs!KPL7","v":0},{"$f":"F_Inputs!KPM7","v":0},{"$f":"F_Inputs!KPN7","v":0},{"$f":"F_Inputs!KPO7","v":0},{"$f":"F_Inputs!KPP7","v":0},{"$f":"F_Inputs!KPQ7","v":0},{"$f":"F_Inputs!KPR7","v":0},{"$f":"F_Inputs!KPS7","v":0},{"$f":"F_Inputs!KPT7","v":0},{"$f":"F_Inputs!KPU7","v":0},{"$f":"F_Inputs!KPV7","v":0},{"$f":"F_Inputs!KPW7","v":0},{"$f":"F_Inputs!KPX7","v":0},{"$f":"F_Inputs!KPY7","v":0},{"$f":"F_Inputs!KPZ7","v":0},{"$f":"F_Inputs!KQA7","v":0},{"$f":"F_Inputs!KQB7","v":0},{"$f":"F_Inputs!KQC7","v":0},{"$f":"F_Inputs!KQD7","v":0},{"$f":"F_Inputs!KQE7","v":0},{"$f":"F_Inputs!KQF7","v":0},{"$f":"F_Inputs!KQG7","v":0},{"$f":"F_Inputs!KQH7","v":0},{"$f":"F_Inputs!KQI7","v":0},{"$f":"F_Inputs!KQJ7","v":0},{"$f":"F_Inputs!KQK7","v":0},{"$f":"F_Inputs!KQL7","v":0},{"$f":"F_Inputs!KQM7","v":0},{"$f":"F_Inputs!KQN7","v":0},{"$f":"F_Inputs!KQO7","v":0},{"$f":"F_Inputs!KQP7","v":0},{"$f":"F_Inputs!KQQ7","v":0},{"$f":"F_Inputs!KQR7","v":0},{"$f":"F_Inputs!KQS7","v":0},{"$f":"F_Inputs!KQT7","v":0},{"$f":"F_Inputs!KQU7","v":0},{"$f":"F_Inputs!KQV7","v":0},{"$f":"F_Inputs!KQW7","v":0},{"$f":"F_Inputs!KQX7","v":0},{"$f":"F_Inputs!KQY7","v":0},{"$f":"F_Inputs!KQZ7","v":0},{"$f":"F_Inputs!KRA7","v":0},{"$f":"F_Inputs!KRB7","v":0},{"$f":"F_Inputs!KRC7","v":0},{"$f":"F_Inputs!KRD7","v":0},{"$f":"F_Inputs!KRE7","v":0},{"$f":"F_Inputs!KRF7","v":0},{"$f":"F_Inputs!KRG7","v":0},{"$f":"F_Inputs!KRH7","v":0},{"$f":"F_Inputs!KRI7","v":0},{"$f":"F_Inputs!KRJ7","v":0},{"$f":"F_Inputs!KRK7","v":0},{"$f":"F_Inputs!KRL7","v":0},{"$f":"F_Inputs!KRM7","v":0},{"$f":"F_Inputs!KRN7","v":0},{"$f":"F_Inputs!KRO7","v":0},{"$f":"F_Inputs!KRP7","v":0},{"$f":"F_Inputs!KRQ7","v":0},{"$f":"F_Inputs!KRR7","v":0},{"$f":"F_Inputs!KRS7","v":0},{"$f":"F_Inputs!KRT7","v":0},{"$f":"F_Inputs!KRU7","v":0},{"$f":"F_Inputs!KRV7","v":0},{"$f":"F_Inputs!KRW7","v":0},{"$f":"F_Inputs!KRX7","v":0},{"$f":"F_Inputs!KRY7","v":0},{"$f":"F_Inputs!KRZ7","v":0},{"$f":"F_Inputs!KSA7","v":0},{"$f":"F_Inputs!KSB7","v":0},{"$f":"F_Inputs!KSC7","v":0},{"$f":"F_Inputs!KSD7","v":0},{"$f":"F_Inputs!KSE7","v":0},{"$f":"F_Inputs!KSF7","v":0},{"$f":"F_Inputs!KSG7","v":0},{"$f":"F_Inputs!KSH7","v":0},{"$f":"F_Inputs!KSI7","v":0},{"$f":"F_Inputs!KSJ7","v":0},{"$f":"F_Inputs!KSK7","v":0},{"$f":"F_Inputs!KSL7","v":0},{"$f":"F_Inputs!KSM7","v":0},{"$f":"F_Inputs!KSN7","v":0},{"$f":"F_Inputs!KSO7","v":0},{"$f":"F_Inputs!KSP7","v":0},{"$f":"F_Inputs!KSQ7","v":0},{"$f":"F_Inputs!KSR7","v":0},{"$f":"F_Inputs!KSS7","v":0},{"$f":"F_Inputs!KST7","v":0},{"$f":"F_Inputs!KSU7","v":0},{"$f":"F_Inputs!KSV7","v":0},{"$f":"F_Inputs!KSW7","v":0},{"$f":"F_Inputs!KSX7","v":0},{"$f":"F_Inputs!KSY7","v":0},{"$f":"F_Inputs!KSZ7","v":0},{"$f":"F_Inputs!KTA7","v":0},{"$f":"F_Inputs!KTB7","v":0},{"$f":"F_Inputs!KTC7","v":0},{"$f":"F_Inputs!KTD7","v":0},{"$f":"F_Inputs!KTE7","v":0},{"$f":"F_Inputs!KTF7","v":0},{"$f":"F_Inputs!KTG7","v":0},{"$f":"F_Inputs!KTH7","v":0},{"$f":"F_Inputs!KTI7","v":0},{"$f":"F_Inputs!KTJ7","v":0},{"$f":"F_Inputs!KTK7","v":0},{"$f":"F_Inputs!KTL7","v":0},{"$f":"F_Inputs!KTM7","v":0},{"$f":"F_Inputs!KTN7","v":0},{"$f":"F_Inputs!KTO7","v":0},{"$f":"F_Inputs!KTP7","v":0},{"$f":"F_Inputs!KTQ7","v":0},{"$f":"F_Inputs!KTR7","v":0},{"$f":"F_Inputs!KTS7","v":0},{"$f":"F_Inputs!KTT7","v":0},{"$f":"F_Inputs!KTU7","v":0},{"$f":"F_Inputs!KTV7","v":0},{"$f":"F_Inputs!KTW7","v":0},{"$f":"F_Inputs!KTX7","v":0},{"$f":"F_Inputs!KTY7","v":0},{"$f":"F_Inputs!KTZ7","v":0},{"$f":"F_Inputs!KUA7","v":0},{"$f":"F_Inputs!KUB7","v":0},{"$f":"F_Inputs!KUC7","v":0},{"$f":"F_Inputs!KUD7","v":0},{"$f":"F_Inputs!KUE7","v":0},{"$f":"F_Inputs!KUF7","v":0},{"$f":"F_Inputs!KUG7","v":0},{"$f":"F_Inputs!KUH7","v":0},{"$f":"F_Inputs!KUI7","v":0},{"$f":"F_Inputs!KUJ7","v":0},{"$f":"F_Inputs!KUK7","v":0},{"$f":"F_Inputs!KUL7","v":0},{"$f":"F_Inputs!KUM7","v":0},{"$f":"F_Inputs!KUN7","v":0},{"$f":"F_Inputs!KUO7","v":0},{"$f":"F_Inputs!KUP7","v":0},{"$f":"F_Inputs!KUQ7","v":0},{"$f":"F_Inputs!KUR7","v":0},{"$f":"F_Inputs!KUS7","v":0},{"$f":"F_Inputs!KUT7","v":0},{"$f":"F_Inputs!KUU7","v":0},{"$f":"F_Inputs!KUV7","v":0},{"$f":"F_Inputs!KUW7","v":0},{"$f":"F_Inputs!KUX7","v":0},{"$f":"F_Inputs!KUY7","v":0},{"$f":"F_Inputs!KUZ7","v":0},{"$f":"F_Inputs!KVA7","v":0},{"$f":"F_Inputs!KVB7","v":0},{"$f":"F_Inputs!KVC7","v":0},{"$f":"F_Inputs!KVD7","v":0},{"$f":"F_Inputs!KVE7","v":0},{"$f":"F_Inputs!KVF7","v":0},{"$f":"F_Inputs!KVG7","v":0},{"$f":"F_Inputs!KVH7","v":0},{"$f":"F_Inputs!KVI7","v":0},{"$f":"F_Inputs!KVJ7","v":0},{"$f":"F_Inputs!KVK7","v":0},{"$f":"F_Inputs!KVL7","v":0},{"$f":"F_Inputs!KVM7","v":0},{"$f":"F_Inputs!KVN7","v":0},{"$f":"F_Inputs!KVO7","v":0},{"$f":"F_Inputs!KVP7","v":0},{"$f":"F_Inputs!KVQ7","v":0},{"$f":"F_Inputs!KVR7","v":0},{"$f":"F_Inputs!KVS7","v":0},{"$f":"F_Inputs!KVT7","v":0},{"$f":"F_Inputs!KVU7","v":0},{"$f":"F_Inputs!KVV7","v":0},{"$f":"F_Inputs!KVW7","v":0},{"$f":"F_Inputs!KVX7","v":0},{"$f":"F_Inputs!KVY7","v":0},{"$f":"F_Inputs!KVZ7","v":0},{"$f":"F_Inputs!KWA7","v":0},{"$f":"F_Inputs!KWB7","v":0},{"$f":"F_Inputs!KWC7","v":0},{"$f":"F_Inputs!KWD7","v":0},{"$f":"F_Inputs!KWE7","v":0},{"$f":"F_Inputs!KWF7","v":0},{"$f":"F_Inputs!KWG7","v":0},{"$f":"F_Inputs!KWH7","v":0},{"$f":"F_Inputs!KWI7","v":0},{"$f":"F_Inputs!KWJ7","v":0},{"$f":"F_Inputs!KWK7","v":0},{"$f":"F_Inputs!KWL7","v":0},{"$f":"F_Inputs!KWM7","v":0},{"$f":"F_Inputs!KWN7","v":0},{"$f":"F_Inputs!KWO7","v":0},{"$f":"F_Inputs!KWP7","v":0},{"$f":"F_Inputs!KWQ7","v":0},{"$f":"F_Inputs!KWR7","v":0},{"$f":"F_Inputs!KWS7","v":0},{"$f":"F_Inputs!KWT7","v":0},{"$f":"F_Inputs!KWU7","v":0},{"$f":"F_Inputs!KWV7","v":0},{"$f":"F_Inputs!KWW7","v":0},{"$f":"F_Inputs!KWX7","v":0},{"$f":"F_Inputs!KWY7","v":0},{"$f":"F_Inputs!KWZ7","v":0},{"$f":"F_Inputs!KXA7","v":0},{"$f":"F_Inputs!KXB7","v":0},{"$f":"F_Inputs!KXC7","v":0},{"$f":"F_Inputs!KXD7","v":0},{"$f":"F_Inputs!KXE7","v":0},{"$f":"F_Inputs!KXF7","v":0},{"$f":"F_Inputs!KXG7","v":0},{"$f":"F_Inputs!KXH7","v":0},{"$f":"F_Inputs!KXI7","v":0},{"$f":"F_Inputs!KXJ7","v":0},{"$f":"F_Inputs!KXK7","v":0},{"$f":"F_Inputs!KXL7","v":0},{"$f":"F_Inputs!KXM7","v":0},{"$f":"F_Inputs!KXN7","v":0},{"$f":"F_Inputs!KXO7","v":0},{"$f":"F_Inputs!KXP7","v":0},{"$f":"F_Inputs!KXQ7","v":0},{"$f":"F_Inputs!KXR7","v":0},{"$f":"F_Inputs!KXS7","v":0},{"$f":"F_Inputs!KXT7","v":0},{"$f":"F_Inputs!KXU7","v":0},{"$f":"F_Inputs!KXV7","v":0},{"$f":"F_Inputs!KXW7","v":0},{"$f":"F_Inputs!KXX7","v":0},{"$f":"F_Inputs!KXY7","v":0},{"$f":"F_Inputs!KXZ7","v":0},{"$f":"F_Inputs!KYA7","v":0},{"$f":"F_Inputs!KYB7","v":0},{"$f":"F_Inputs!KYC7","v":0},{"$f":"F_Inputs!KYD7","v":0},{"$f":"F_Inputs!KYE7","v":0},{"$f":"F_Inputs!KYF7","v":0},{"$f":"F_Inputs!KYG7","v":0},{"$f":"F_Inputs!KYH7","v":0},{"$f":"F_Inputs!KYI7","v":0},{"$f":"F_Inputs!KYJ7","v":0},{"$f":"F_Inputs!KYK7","v":0},{"$f":"F_Inputs!KYL7","v":0},{"$f":"F_Inputs!KYM7","v":0},{"$f":"F_Inputs!KYN7","v":0},{"$f":"F_Inputs!KYO7","v":0},{"$f":"F_Inputs!KYP7","v":0},{"$f":"F_Inputs!KYQ7","v":0},{"$f":"F_Inputs!KYR7","v":0},{"$f":"F_Inputs!KYS7","v":0},{"$f":"F_Inputs!KYT7","v":0},{"$f":"F_Inputs!KYU7","v":0},{"$f":"F_Inputs!KYV7","v":0},{"$f":"F_Inputs!KYW7","v":0},{"$f":"F_Inputs!KYX7","v":0},{"$f":"F_Inputs!KYY7","v":0},{"$f":"F_Inputs!KYZ7","v":0},{"$f":"F_Inputs!KZA7","v":0},{"$f":"F_Inputs!KZB7","v":0},{"$f":"F_Inputs!KZC7","v":0},{"$f":"F_Inputs!KZD7","v":0},{"$f":"F_Inputs!KZE7","v":0},{"$f":"F_Inputs!KZF7","v":0},{"$f":"F_Inputs!KZG7","v":0},{"$f":"F_Inputs!KZH7","v":0},{"$f":"F_Inputs!KZI7","v":0},{"$f":"F_Inputs!KZJ7","v":0},{"$f":"F_Inputs!KZK7","v":0},{"$f":"F_Inputs!KZL7","v":0},{"$f":"F_Inputs!KZM7","v":0},{"$f":"F_Inputs!KZN7","v":0},{"$f":"F_Inputs!KZO7","v":0},{"$f":"F_Inputs!KZP7","v":0},{"$f":"F_Inputs!KZQ7","v":0},{"$f":"F_Inputs!KZR7","v":0},{"$f":"F_Inputs!KZS7","v":0},{"$f":"F_Inputs!KZT7","v":0},{"$f":"F_Inputs!KZU7","v":0},{"$f":"F_Inputs!KZV7","v":0},{"$f":"F_Inputs!KZW7","v":0},{"$f":"F_Inputs!KZX7","v":0},{"$f":"F_Inputs!KZY7","v":0},{"$f":"F_Inputs!KZZ7","v":0},{"$f":"F_Inputs!LAA7","v":0},{"$f":"F_Inputs!LAB7","v":0},{"$f":"F_Inputs!LAC7","v":0},{"$f":"F_Inputs!LAD7","v":0},{"$f":"F_Inputs!LAE7","v":0},{"$f":"F_Inputs!LAF7","v":0},{"$f":"F_Inputs!LAG7","v":0},{"$f":"F_Inputs!LAH7","v":0},{"$f":"F_Inputs!LAI7","v":0},{"$f":"F_Inputs!LAJ7","v":0},{"$f":"F_Inputs!LAK7","v":0},{"$f":"F_Inputs!LAL7","v":0},{"$f":"F_Inputs!LAM7","v":0},{"$f":"F_Inputs!LAN7","v":0},{"$f":"F_Inputs!LAO7","v":0},{"$f":"F_Inputs!LAP7","v":0},{"$f":"F_Inputs!LAQ7","v":0},{"$f":"F_Inputs!LAR7","v":0},{"$f":"F_Inputs!LAS7","v":0},{"$f":"F_Inputs!LAT7","v":0},{"$f":"F_Inputs!LAU7","v":0},{"$f":"F_Inputs!LAV7","v":0},{"$f":"F_Inputs!LAW7","v":0},{"$f":"F_Inputs!LAX7","v":0},{"$f":"F_Inputs!LAY7","v":0},{"$f":"F_Inputs!LAZ7","v":0},{"$f":"F_Inputs!LBA7","v":0},{"$f":"F_Inputs!LBB7","v":0},{"$f":"F_Inputs!LBC7","v":0},{"$f":"F_Inputs!LBD7","v":0},{"$f":"F_Inputs!LBE7","v":0},{"$f":"F_Inputs!LBF7","v":0},{"$f":"F_Inputs!LBG7","v":0},{"$f":"F_Inputs!LBH7","v":0},{"$f":"F_Inputs!LBI7","v":0},{"$f":"F_Inputs!LBJ7","v":0},{"$f":"F_Inputs!LBK7","v":0},{"$f":"F_Inputs!LBL7","v":0},{"$f":"F_Inputs!LBM7","v":0},{"$f":"F_Inputs!LBN7","v":0},{"$f":"F_Inputs!LBO7","v":0},{"$f":"F_Inputs!LBP7","v":0},{"$f":"F_Inputs!LBQ7","v":0},{"$f":"F_Inputs!LBR7","v":0},{"$f":"F_Inputs!LBS7","v":0},{"$f":"F_Inputs!LBT7","v":0},{"$f":"F_Inputs!LBU7","v":0},{"$f":"F_Inputs!LBV7","v":0},{"$f":"F_Inputs!LBW7","v":0},{"$f":"F_Inputs!LBX7","v":0},{"$f":"F_Inputs!LBY7","v":0},{"$f":"F_Inputs!LBZ7","v":0},{"$f":"F_Inputs!LCA7","v":0},{"$f":"F_Inputs!LCB7","v":0},{"$f":"F_Inputs!LCC7","v":0},{"$f":"F_Inputs!LCD7","v":0},{"$f":"F_Inputs!LCE7","v":0},{"$f":"F_Inputs!LCF7","v":0},{"$f":"F_Inputs!LCG7","v":0},{"$f":"F_Inputs!LCH7","v":0},{"$f":"F_Inputs!LCI7","v":0},{"$f":"F_Inputs!LCJ7","v":0},{"$f":"F_Inputs!LCK7","v":0},{"$f":"F_Inputs!LCL7","v":0},{"$f":"F_Inputs!LCM7","v":0},{"$f":"F_Inputs!LCN7","v":0},{"$f":"F_Inputs!LCO7","v":0},{"$f":"F_Inputs!LCP7","v":0},{"$f":"F_Inputs!LCQ7","v":0},{"$f":"F_Inputs!LCR7","v":0},{"$f":"F_Inputs!LCS7","v":0},{"$f":"F_Inputs!LCT7","v":0},{"$f":"F_Inputs!LCU7","v":0},{"$f":"F_Inputs!LCV7","v":0},{"$f":"F_Inputs!LCW7","v":0},{"$f":"F_Inputs!LCX7","v":0},{"$f":"F_Inputs!LCY7","v":0},{"$f":"F_Inputs!LCZ7","v":0},{"$f":"F_Inputs!LDA7","v":0},{"$f":"F_Inputs!LDB7","v":0},{"$f":"F_Inputs!LDC7","v":0},{"$f":"F_Inputs!LDD7","v":0},{"$f":"F_Inputs!LDE7","v":0},{"$f":"F_Inputs!LDF7","v":0},{"$f":"F_Inputs!LDG7","v":0},{"$f":"F_Inputs!LDH7","v":0},{"$f":"F_Inputs!LDI7","v":0},{"$f":"F_Inputs!LDJ7","v":0},{"$f":"F_Inputs!LDK7","v":0},{"$f":"F_Inputs!LDL7","v":0},{"$f":"F_Inputs!LDM7","v":0},{"$f":"F_Inputs!LDN7","v":0},{"$f":"F_Inputs!LDO7","v":0},{"$f":"F_Inputs!LDP7","v":0},{"$f":"F_Inputs!LDQ7","v":0},{"$f":"F_Inputs!LDR7","v":0},{"$f":"F_Inputs!LDS7","v":0},{"$f":"F_Inputs!LDT7","v":0},{"$f":"F_Inputs!LDU7","v":0},{"$f":"F_Inputs!LDV7","v":0},{"$f":"F_Inputs!LDW7","v":0},{"$f":"F_Inputs!LDX7","v":0},{"$f":"F_Inputs!LDY7","v":0},{"$f":"F_Inputs!LDZ7","v":0},{"$f":"F_Inputs!LEA7","v":0},{"$f":"F_Inputs!LEB7","v":0},{"$f":"F_Inputs!LEC7","v":0},{"$f":"F_Inputs!LED7","v":0},{"$f":"F_Inputs!LEE7","v":0},{"$f":"F_Inputs!LEF7","v":0},{"$f":"F_Inputs!LEG7","v":0},{"$f":"F_Inputs!LEH7","v":0},{"$f":"F_Inputs!LEI7","v":0},{"$f":"F_Inputs!LEJ7","v":0},{"$f":"F_Inputs!LEK7","v":0},{"$f":"F_Inputs!LEL7","v":0},{"$f":"F_Inputs!LEM7","v":0},{"$f":"F_Inputs!LEN7","v":0},{"$f":"F_Inputs!LEO7","v":0},{"$f":"F_Inputs!LEP7","v":0},{"$f":"F_Inputs!LEQ7","v":0},{"$f":"F_Inputs!LER7","v":0},{"$f":"F_Inputs!LES7","v":0},{"$f":"F_Inputs!LET7","v":0},{"$f":"F_Inputs!LEU7","v":0},{"$f":"F_Inputs!LEV7","v":0},{"$f":"F_Inputs!LEW7","v":0},{"$f":"F_Inputs!LEX7","v":0},{"$f":"F_Inputs!LEY7","v":0},{"$f":"F_Inputs!LEZ7","v":0},{"$f":"F_Inputs!LFA7","v":0},{"$f":"F_Inputs!LFB7","v":0},{"$f":"F_Inputs!LFC7","v":0},{"$f":"F_Inputs!LFD7","v":0},{"$f":"F_Inputs!LFE7","v":0},{"$f":"F_Inputs!LFF7","v":0},{"$f":"F_Inputs!LFG7","v":0},{"$f":"F_Inputs!LFH7","v":0},{"$f":"F_Inputs!LFI7","v":0},{"$f":"F_Inputs!LFJ7","v":0},{"$f":"F_Inputs!LFK7","v":0},{"$f":"F_Inputs!LFL7","v":0},{"$f":"F_Inputs!LFM7","v":0},{"$f":"F_Inputs!LFN7","v":0},{"$f":"F_Inputs!LFO7","v":0},{"$f":"F_Inputs!LFP7","v":0},{"$f":"F_Inputs!LFQ7","v":0},{"$f":"F_Inputs!LFR7","v":0},{"$f":"F_Inputs!LFS7","v":0},{"$f":"F_Inputs!LFT7","v":0},{"$f":"F_Inputs!LFU7","v":0},{"$f":"F_Inputs!LFV7","v":0},{"$f":"F_Inputs!LFW7","v":0},{"$f":"F_Inputs!LFX7","v":0},{"$f":"F_Inputs!LFY7","v":0},{"$f":"F_Inputs!LFZ7","v":0},{"$f":"F_Inputs!LGA7","v":0},{"$f":"F_Inputs!LGB7","v":0},{"$f":"F_Inputs!LGC7","v":0},{"$f":"F_Inputs!LGD7","v":0},{"$f":"F_Inputs!LGE7","v":0},{"$f":"F_Inputs!LGF7","v":0},{"$f":"F_Inputs!LGG7","v":0},{"$f":"F_Inputs!LGH7","v":0},{"$f":"F_Inputs!LGI7","v":0},{"$f":"F_Inputs!LGJ7","v":0},{"$f":"F_Inputs!LGK7","v":0},{"$f":"F_Inputs!LGL7","v":0},{"$f":"F_Inputs!LGM7","v":0},{"$f":"F_Inputs!LGN7","v":0},{"$f":"F_Inputs!LGO7","v":0},{"$f":"F_Inputs!LGP7","v":0},{"$f":"F_Inputs!LGQ7","v":0},{"$f":"F_Inputs!LGR7","v":0},{"$f":"F_Inputs!LGS7","v":0},{"$f":"F_Inputs!LGT7","v":0},{"$f":"F_Inputs!LGU7","v":0},{"$f":"F_Inputs!LGV7","v":0},{"$f":"F_Inputs!LGW7","v":0},{"$f":"F_Inputs!LGX7","v":0},{"$f":"F_Inputs!LGY7","v":0},{"$f":"F_Inputs!LGZ7","v":0},{"$f":"F_Inputs!LHA7","v":0},{"$f":"F_Inputs!LHB7","v":0},{"$f":"F_Inputs!LHC7","v":0},{"$f":"F_Inputs!LHD7","v":0},{"$f":"F_Inputs!LHE7","v":0},{"$f":"F_Inputs!LHF7","v":0},{"$f":"F_Inputs!LHG7","v":0},{"$f":"F_Inputs!LHH7","v":0},{"$f":"F_Inputs!LHI7","v":0},{"$f":"F_Inputs!LHJ7","v":0},{"$f":"F_Inputs!LHK7","v":0},{"$f":"F_Inputs!LHL7","v":0},{"$f":"F_Inputs!LHM7","v":0},{"$f":"F_Inputs!LHN7","v":0},{"$f":"F_Inputs!LHO7","v":0},{"$f":"F_Inputs!LHP7","v":0},{"$f":"F_Inputs!LHQ7","v":0},{"$f":"F_Inputs!LHR7","v":0},{"$f":"F_Inputs!LHS7","v":0},{"$f":"F_Inputs!LHT7","v":0},{"$f":"F_Inputs!LHU7","v":0},{"$f":"F_Inputs!LHV7","v":0},{"$f":"F_Inputs!LHW7","v":0},{"$f":"F_Inputs!LHX7","v":0},{"$f":"F_Inputs!LHY7","v":0},{"$f":"F_Inputs!LHZ7","v":0},{"$f":"F_Inputs!LIA7","v":0},{"$f":"F_Inputs!LIB7","v":0},{"$f":"F_Inputs!LIC7","v":0},{"$f":"F_Inputs!LID7","v":0},{"$f":"F_Inputs!LIE7","v":0},{"$f":"F_Inputs!LIF7","v":0},{"$f":"F_Inputs!LIG7","v":0},{"$f":"F_Inputs!LIH7","v":0},{"$f":"F_Inputs!LII7","v":0},{"$f":"F_Inputs!LIJ7","v":0},{"$f":"F_Inputs!LIK7","v":0},{"$f":"F_Inputs!LIL7","v":0},{"$f":"F_Inputs!LIM7","v":0},{"$f":"F_Inputs!LIN7","v":0},{"$f":"F_Inputs!LIO7","v":0},{"$f":"F_Inputs!LIP7","v":0},{"$f":"F_Inputs!LIQ7","v":0},{"$f":"F_Inputs!LIR7","v":0},{"$f":"F_Inputs!LIS7","v":0},{"$f":"F_Inputs!LIT7","v":0},{"$f":"F_Inputs!LIU7","v":0},{"$f":"F_Inputs!LIV7","v":0},{"$f":"F_Inputs!LIW7","v":0},{"$f":"F_Inputs!LIX7","v":0},{"$f":"F_Inputs!LIY7","v":0},{"$f":"F_Inputs!LIZ7","v":0},{"$f":"F_Inputs!LJA7","v":0},{"$f":"F_Inputs!LJB7","v":0},{"$f":"F_Inputs!LJC7","v":0},{"$f":"F_Inputs!LJD7","v":0},{"$f":"F_Inputs!LJE7","v":0},{"$f":"F_Inputs!LJF7","v":0},{"$f":"F_Inputs!LJG7","v":0},{"$f":"F_Inputs!LJH7","v":0},{"$f":"F_Inputs!LJI7","v":0},{"$f":"F_Inputs!LJJ7","v":0},{"$f":"F_Inputs!LJK7","v":0},{"$f":"F_Inputs!LJL7","v":0},{"$f":"F_Inputs!LJM7","v":0},{"$f":"F_Inputs!LJN7","v":0},{"$f":"F_Inputs!LJO7","v":0},{"$f":"F_Inputs!LJP7","v":0},{"$f":"F_Inputs!LJQ7","v":0},{"$f":"F_Inputs!LJR7","v":0},{"$f":"F_Inputs!LJS7","v":0},{"$f":"F_Inputs!LJT7","v":0},{"$f":"F_Inputs!LJU7","v":0},{"$f":"F_Inputs!LJV7","v":0},{"$f":"F_Inputs!LJW7","v":0},{"$f":"F_Inputs!LJX7","v":0},{"$f":"F_Inputs!LJY7","v":0},{"$f":"F_Inputs!LJZ7","v":0},{"$f":"F_Inputs!LKA7","v":0},{"$f":"F_Inputs!LKB7","v":0},{"$f":"F_Inputs!LKC7","v":0},{"$f":"F_Inputs!LKD7","v":0},{"$f":"F_Inputs!LKE7","v":0},{"$f":"F_Inputs!LKF7","v":0},{"$f":"F_Inputs!LKG7","v":0},{"$f":"F_Inputs!LKH7","v":0},{"$f":"F_Inputs!LKI7","v":0},{"$f":"F_Inputs!LKJ7","v":0},{"$f":"F_Inputs!LKK7","v":0},{"$f":"F_Inputs!LKL7","v":0},{"$f":"F_Inputs!LKM7","v":0},{"$f":"F_Inputs!LKN7","v":0},{"$f":"F_Inputs!LKO7","v":0},{"$f":"F_Inputs!LKP7","v":0},{"$f":"F_Inputs!LKQ7","v":0},{"$f":"F_Inputs!LKR7","v":0},{"$f":"F_Inputs!LKS7","v":0},{"$f":"F_Inputs!LKT7","v":0},{"$f":"F_Inputs!LKU7","v":0},{"$f":"F_Inputs!LKV7","v":0},{"$f":"F_Inputs!LKW7","v":0},{"$f":"F_Inputs!LKX7","v":0},{"$f":"F_Inputs!LKY7","v":0},{"$f":"F_Inputs!LKZ7","v":0},{"$f":"F_Inputs!LLA7","v":0},{"$f":"F_Inputs!LLB7","v":0},{"$f":"F_Inputs!LLC7","v":0},{"$f":"F_Inputs!LLD7","v":0},{"$f":"F_Inputs!LLE7","v":0},{"$f":"F_Inputs!LLF7","v":0},{"$f":"F_Inputs!LLG7","v":0},{"$f":"F_Inputs!LLH7","v":0},{"$f":"F_Inputs!LLI7","v":0},{"$f":"F_Inputs!LLJ7","v":0},{"$f":"F_Inputs!LLK7","v":0},{"$f":"F_Inputs!LLL7","v":0},{"$f":"F_Inputs!LLM7","v":0},{"$f":"F_Inputs!LLN7","v":0},{"$f":"F_Inputs!LLO7","v":0},{"$f":"F_Inputs!LLP7","v":0},{"$f":"F_Inputs!LLQ7","v":0},{"$f":"F_Inputs!LLR7","v":0},{"$f":"F_Inputs!LLS7","v":0},{"$f":"F_Inputs!LLT7","v":0},{"$f":"F_Inputs!LLU7","v":0},{"$f":"F_Inputs!LLV7","v":0},{"$f":"F_Inputs!LLW7","v":0},{"$f":"F_Inputs!LLX7","v":0},{"$f":"F_Inputs!LLY7","v":0},{"$f":"F_Inputs!LLZ7","v":0},{"$f":"F_Inputs!LMA7","v":0},{"$f":"F_Inputs!LMB7","v":0},{"$f":"F_Inputs!LMC7","v":0},{"$f":"F_Inputs!LMD7","v":0},{"$f":"F_Inputs!LME7","v":0},{"$f":"F_Inputs!LMF7","v":0},{"$f":"F_Inputs!LMG7","v":0},{"$f":"F_Inputs!LMH7","v":0},{"$f":"F_Inputs!LMI7","v":0},{"$f":"F_Inputs!LMJ7","v":0},{"$f":"F_Inputs!LMK7","v":0},{"$f":"F_Inputs!LML7","v":0},{"$f":"F_Inputs!LMM7","v":0},{"$f":"F_Inputs!LMN7","v":0},{"$f":"F_Inputs!LMO7","v":0},{"$f":"F_Inputs!LMP7","v":0},{"$f":"F_Inputs!LMQ7","v":0},{"$f":"F_Inputs!LMR7","v":0},{"$f":"F_Inputs!LMS7","v":0},{"$f":"F_Inputs!LMT7","v":0},{"$f":"F_Inputs!LMU7","v":0},{"$f":"F_Inputs!LMV7","v":0},{"$f":"F_Inputs!LMW7","v":0},{"$f":"F_Inputs!LMX7","v":0},{"$f":"F_Inputs!LMY7","v":0},{"$f":"F_Inputs!LMZ7","v":0},{"$f":"F_Inputs!LNA7","v":0},{"$f":"F_Inputs!LNB7","v":0},{"$f":"F_Inputs!LNC7","v":0},{"$f":"F_Inputs!LND7","v":0},{"$f":"F_Inputs!LNE7","v":0},{"$f":"F_Inputs!LNF7","v":0},{"$f":"F_Inputs!LNG7","v":0},{"$f":"F_Inputs!LNH7","v":0},{"$f":"F_Inputs!LNI7","v":0},{"$f":"F_Inputs!LNJ7","v":0},{"$f":"F_Inputs!LNK7","v":0},{"$f":"F_Inputs!LNL7","v":0},{"$f":"F_Inputs!LNM7","v":0},{"$f":"F_Inputs!LNN7","v":0},{"$f":"F_Inputs!LNO7","v":0},{"$f":"F_Inputs!LNP7","v":0},{"$f":"F_Inputs!LNQ7","v":0},{"$f":"F_Inputs!LNR7","v":0},{"$f":"F_Inputs!LNS7","v":0},{"$f":"F_Inputs!LNT7","v":0},{"$f":"F_Inputs!LNU7","v":0},{"$f":"F_Inputs!LNV7","v":0},{"$f":"F_Inputs!LNW7","v":0},{"$f":"F_Inputs!LNX7","v":0},{"$f":"F_Inputs!LNY7","v":0},{"$f":"F_Inputs!LNZ7","v":0},{"$f":"F_Inputs!LOA7","v":0},{"$f":"F_Inputs!LOB7","v":0},{"$f":"F_Inputs!LOC7","v":0},{"$f":"F_Inputs!LOD7","v":0},{"$f":"F_Inputs!LOE7","v":0},{"$f":"F_Inputs!LOF7","v":0},{"$f":"F_Inputs!LOG7","v":0},{"$f":"F_Inputs!LOH7","v":0},{"$f":"F_Inputs!LOI7","v":0},{"$f":"F_Inputs!LOJ7","v":0},{"$f":"F_Inputs!LOK7","v":0},{"$f":"F_Inputs!LOL7","v":0},{"$f":"F_Inputs!LOM7","v":0},{"$f":"F_Inputs!LON7","v":0},{"$f":"F_Inputs!LOO7","v":0},{"$f":"F_Inputs!LOP7","v":0},{"$f":"F_Inputs!LOQ7","v":0},{"$f":"F_Inputs!LOR7","v":0},{"$f":"F_Inputs!LOS7","v":0},{"$f":"F_Inputs!LOT7","v":0},{"$f":"F_Inputs!LOU7","v":0},{"$f":"F_Inputs!LOV7","v":0},{"$f":"F_Inputs!LOW7","v":0},{"$f":"F_Inputs!LOX7","v":0},{"$f":"F_Inputs!LOY7","v":0},{"$f":"F_Inputs!LOZ7","v":0},{"$f":"F_Inputs!LPA7","v":0},{"$f":"F_Inputs!LPB7","v":0},{"$f":"F_Inputs!LPC7","v":0},{"$f":"F_Inputs!LPD7","v":0},{"$f":"F_Inputs!LPE7","v":0},{"$f":"F_Inputs!LPF7","v":0},{"$f":"F_Inputs!LPG7","v":0},{"$f":"F_Inputs!LPH7","v":0},{"$f":"F_Inputs!LPI7","v":0},{"$f":"F_Inputs!LPJ7","v":0},{"$f":"F_Inputs!LPK7","v":0},{"$f":"F_Inputs!LPL7","v":0},{"$f":"F_Inputs!LPM7","v":0},{"$f":"F_Inputs!LPN7","v":0},{"$f":"F_Inputs!LPO7","v":0},{"$f":"F_Inputs!LPP7","v":0},{"$f":"F_Inputs!LPQ7","v":0},{"$f":"F_Inputs!LPR7","v":0},{"$f":"F_Inputs!LPS7","v":0},{"$f":"F_Inputs!LPT7","v":0},{"$f":"F_Inputs!LPU7","v":0},{"$f":"F_Inputs!LPV7","v":0},{"$f":"F_Inputs!LPW7","v":0},{"$f":"F_Inputs!LPX7","v":0},{"$f":"F_Inputs!LPY7","v":0},{"$f":"F_Inputs!LPZ7","v":0},{"$f":"F_Inputs!LQA7","v":0},{"$f":"F_Inputs!LQB7","v":0},{"$f":"F_Inputs!LQC7","v":0},{"$f":"F_Inputs!LQD7","v":0},{"$f":"F_Inputs!LQE7","v":0},{"$f":"F_Inputs!LQF7","v":0},{"$f":"F_Inputs!LQG7","v":0},{"$f":"F_Inputs!LQH7","v":0},{"$f":"F_Inputs!LQI7","v":0},{"$f":"F_Inputs!LQJ7","v":0},{"$f":"F_Inputs!LQK7","v":0},{"$f":"F_Inputs!LQL7","v":0},{"$f":"F_Inputs!LQM7","v":0},{"$f":"F_Inputs!LQN7","v":0},{"$f":"F_Inputs!LQO7","v":0},{"$f":"F_Inputs!LQP7","v":0},{"$f":"F_Inputs!LQQ7","v":0},{"$f":"F_Inputs!LQR7","v":0},{"$f":"F_Inputs!LQS7","v":0},{"$f":"F_Inputs!LQT7","v":0},{"$f":"F_Inputs!LQU7","v":0},{"$f":"F_Inputs!LQV7","v":0},{"$f":"F_Inputs!LQW7","v":0},{"$f":"F_Inputs!LQX7","v":0},{"$f":"F_Inputs!LQY7","v":0},{"$f":"F_Inputs!LQZ7","v":0},{"$f":"F_Inputs!LRA7","v":0},{"$f":"F_Inputs!LRB7","v":0},{"$f":"F_Inputs!LRC7","v":0},{"$f":"F_Inputs!LRD7","v":0},{"$f":"F_Inputs!LRE7","v":0},{"$f":"F_Inputs!LRF7","v":0},{"$f":"F_Inputs!LRG7","v":0},{"$f":"F_Inputs!LRH7","v":0},{"$f":"F_Inputs!LRI7","v":0},{"$f":"F_Inputs!LRJ7","v":0},{"$f":"F_Inputs!LRK7","v":0},{"$f":"F_Inputs!LRL7","v":0},{"$f":"F_Inputs!LRM7","v":0},{"$f":"F_Inputs!LRN7","v":0},{"$f":"F_Inputs!LRO7","v":0},{"$f":"F_Inputs!LRP7","v":0},{"$f":"F_Inputs!LRQ7","v":0},{"$f":"F_Inputs!LRR7","v":0},{"$f":"F_Inputs!LRS7","v":0},{"$f":"F_Inputs!LRT7","v":0},{"$f":"F_Inputs!LRU7","v":0},{"$f":"F_Inputs!LRV7","v":0},{"$f":"F_Inputs!LRW7","v":0},{"$f":"F_Inputs!LRX7","v":0},{"$f":"F_Inputs!LRY7","v":0},{"$f":"F_Inputs!LRZ7","v":0},{"$f":"F_Inputs!LSA7","v":0},{"$f":"F_Inputs!LSB7","v":0},{"$f":"F_Inputs!LSC7","v":0},{"$f":"F_Inputs!LSD7","v":0},{"$f":"F_Inputs!LSE7","v":0},{"$f":"F_Inputs!LSF7","v":0},{"$f":"F_Inputs!LSG7","v":0},{"$f":"F_Inputs!LSH7","v":0},{"$f":"F_Inputs!LSI7","v":0},{"$f":"F_Inputs!LSJ7","v":0},{"$f":"F_Inputs!LSK7","v":0},{"$f":"F_Inputs!LSL7","v":0},{"$f":"F_Inputs!LSM7","v":0},{"$f":"F_Inputs!LSN7","v":0},{"$f":"F_Inputs!LSO7","v":0},{"$f":"F_Inputs!LSP7","v":0},{"$f":"F_Inputs!LSQ7","v":0},{"$f":"F_Inputs!LSR7","v":0},{"$f":"F_Inputs!LSS7","v":0},{"$f":"F_Inputs!LST7","v":0},{"$f":"F_Inputs!LSU7","v":0},{"$f":"F_Inputs!LSV7","v":0},{"$f":"F_Inputs!LSW7","v":0},{"$f":"F_Inputs!LSX7","v":0},{"$f":"F_Inputs!LSY7","v":0},{"$f":"F_Inputs!LSZ7","v":0},{"$f":"F_Inputs!LTA7","v":0},{"$f":"F_Inputs!LTB7","v":0},{"$f":"F_Inputs!LTC7","v":0},{"$f":"F_Inputs!LTD7","v":0},{"$f":"F_Inputs!LTE7","v":0},{"$f":"F_Inputs!LTF7","v":0},{"$f":"F_Inputs!LTG7","v":0},{"$f":"F_Inputs!LTH7","v":0},{"$f":"F_Inputs!LTI7","v":0},{"$f":"F_Inputs!LTJ7","v":0},{"$f":"F_Inputs!LTK7","v":0},{"$f":"F_Inputs!LTL7","v":0},{"$f":"F_Inputs!LTM7","v":0},{"$f":"F_Inputs!LTN7","v":0},{"$f":"F_Inputs!LTO7","v":0},{"$f":"F_Inputs!LTP7","v":0},{"$f":"F_Inputs!LTQ7","v":0},{"$f":"F_Inputs!LTR7","v":0},{"$f":"F_Inputs!LTS7","v":0},{"$f":"F_Inputs!LTT7","v":0},{"$f":"F_Inputs!LTU7","v":0},{"$f":"F_Inputs!LTV7","v":0},{"$f":"F_Inputs!LTW7","v":0},{"$f":"F_Inputs!LTX7","v":0},{"$f":"F_Inputs!LTY7","v":0},{"$f":"F_Inputs!LTZ7","v":0},{"$f":"F_Inputs!LUA7","v":0},{"$f":"F_Inputs!LUB7","v":0},{"$f":"F_Inputs!LUC7","v":0},{"$f":"F_Inputs!LUD7","v":0},{"$f":"F_Inputs!LUE7","v":0},{"$f":"F_Inputs!LUF7","v":0},{"$f":"F_Inputs!LUG7","v":0},{"$f":"F_Inputs!LUH7","v":0},{"$f":"F_Inputs!LUI7","v":0},{"$f":"F_Inputs!LUJ7","v":0},{"$f":"F_Inputs!LUK7","v":0},{"$f":"F_Inputs!LUL7","v":0},{"$f":"F_Inputs!LUM7","v":0},{"$f":"F_Inputs!LUN7","v":0},{"$f":"F_Inputs!LUO7","v":0},{"$f":"F_Inputs!LUP7","v":0},{"$f":"F_Inputs!LUQ7","v":0},{"$f":"F_Inputs!LUR7","v":0},{"$f":"F_Inputs!LUS7","v":0},{"$f":"F_Inputs!LUT7","v":0},{"$f":"F_Inputs!LUU7","v":0},{"$f":"F_Inputs!LUV7","v":0},{"$f":"F_Inputs!LUW7","v":0},{"$f":"F_Inputs!LUX7","v":0},{"$f":"F_Inputs!LUY7","v":0},{"$f":"F_Inputs!LUZ7","v":0},{"$f":"F_Inputs!LVA7","v":0},{"$f":"F_Inputs!LVB7","v":0},{"$f":"F_Inputs!LVC7","v":0},{"$f":"F_Inputs!LVD7","v":0},{"$f":"F_Inputs!LVE7","v":0},{"$f":"F_Inputs!LVF7","v":0},{"$f":"F_Inputs!LVG7","v":0},{"$f":"F_Inputs!LVH7","v":0},{"$f":"F_Inputs!LVI7","v":0},{"$f":"F_Inputs!LVJ7","v":0},{"$f":"F_Inputs!LVK7","v":0},{"$f":"F_Inputs!LVL7","v":0},{"$f":"F_Inputs!LVM7","v":0},{"$f":"F_Inputs!LVN7","v":0},{"$f":"F_Inputs!LVO7","v":0},{"$f":"F_Inputs!LVP7","v":0},{"$f":"F_Inputs!LVQ7","v":0},{"$f":"F_Inputs!LVR7","v":0},{"$f":"F_Inputs!LVS7","v":0},{"$f":"F_Inputs!LVT7","v":0},{"$f":"F_Inputs!LVU7","v":0},{"$f":"F_Inputs!LVV7","v":0},{"$f":"F_Inputs!LVW7","v":0},{"$f":"F_Inputs!LVX7","v":0},{"$f":"F_Inputs!LVY7","v":0},{"$f":"F_Inputs!LVZ7","v":0},{"$f":"F_Inputs!LWA7","v":0},{"$f":"F_Inputs!LWB7","v":0},{"$f":"F_Inputs!LWC7","v":0},{"$f":"F_Inputs!LWD7","v":0},{"$f":"F_Inputs!LWE7","v":0},{"$f":"F_Inputs!LWF7","v":0},{"$f":"F_Inputs!LWG7","v":0},{"$f":"F_Inputs!LWH7","v":0},{"$f":"F_Inputs!LWI7","v":0},{"$f":"F_Inputs!LWJ7","v":0},{"$f":"F_Inputs!LWK7","v":0},{"$f":"F_Inputs!LWL7","v":0},{"$f":"F_Inputs!LWM7","v":0},{"$f":"F_Inputs!LWN7","v":0},{"$f":"F_Inputs!LWO7","v":0},{"$f":"F_Inputs!LWP7","v":0},{"$f":"F_Inputs!LWQ7","v":0},{"$f":"F_Inputs!LWR7","v":0},{"$f":"F_Inputs!LWS7","v":0},{"$f":"F_Inputs!LWT7","v":0},{"$f":"F_Inputs!LWU7","v":0},{"$f":"F_Inputs!LWV7","v":0},{"$f":"F_Inputs!LWW7","v":0},{"$f":"F_Inputs!LWX7","v":0},{"$f":"F_Inputs!LWY7","v":0},{"$f":"F_Inputs!LWZ7","v":0},{"$f":"F_Inputs!LXA7","v":0},{"$f":"F_Inputs!LXB7","v":0},{"$f":"F_Inputs!LXC7","v":0},{"$f":"F_Inputs!LXD7","v":0},{"$f":"F_Inputs!LXE7","v":0},{"$f":"F_Inputs!LXF7","v":0},{"$f":"F_Inputs!LXG7","v":0},{"$f":"F_Inputs!LXH7","v":0},{"$f":"F_Inputs!LXI7","v":0},{"$f":"F_Inputs!LXJ7","v":0},{"$f":"F_Inputs!LXK7","v":0},{"$f":"F_Inputs!LXL7","v":0},{"$f":"F_Inputs!LXM7","v":0},{"$f":"F_Inputs!LXN7","v":0},{"$f":"F_Inputs!LXO7","v":0},{"$f":"F_Inputs!LXP7","v":0},{"$f":"F_Inputs!LXQ7","v":0},{"$f":"F_Inputs!LXR7","v":0},{"$f":"F_Inputs!LXS7","v":0},{"$f":"F_Inputs!LXT7","v":0},{"$f":"F_Inputs!LXU7","v":0},{"$f":"F_Inputs!LXV7","v":0},{"$f":"F_Inputs!LXW7","v":0},{"$f":"F_Inputs!LXX7","v":0},{"$f":"F_Inputs!LXY7","v":0},{"$f":"F_Inputs!LXZ7","v":0},{"$f":"F_Inputs!LYA7","v":0},{"$f":"F_Inputs!LYB7","v":0},{"$f":"F_Inputs!LYC7","v":0},{"$f":"F_Inputs!LYD7","v":0},{"$f":"F_Inputs!LYE7","v":0},{"$f":"F_Inputs!LYF7","v":0},{"$f":"F_Inputs!LYG7","v":0},{"$f":"F_Inputs!LYH7","v":0},{"$f":"F_Inputs!LYI7","v":0},{"$f":"F_Inputs!LYJ7","v":0},{"$f":"F_Inputs!LYK7","v":0},{"$f":"F_Inputs!LYL7","v":0},{"$f":"F_Inputs!LYM7","v":0},{"$f":"F_Inputs!LYN7","v":0},{"$f":"F_Inputs!LYO7","v":0},{"$f":"F_Inputs!LYP7","v":0},{"$f":"F_Inputs!LYQ7","v":0},{"$f":"F_Inputs!LYR7","v":0},{"$f":"F_Inputs!LYS7","v":0},{"$f":"F_Inputs!LYT7","v":0},{"$f":"F_Inputs!LYU7","v":0},{"$f":"F_Inputs!LYV7","v":0},{"$f":"F_Inputs!LYW7","v":0},{"$f":"F_Inputs!LYX7","v":0},{"$f":"F_Inputs!LYY7","v":0},{"$f":"F_Inputs!LYZ7","v":0},{"$f":"F_Inputs!LZA7","v":0},{"$f":"F_Inputs!LZB7","v":0},{"$f":"F_Inputs!LZC7","v":0},{"$f":"F_Inputs!LZD7","v":0},{"$f":"F_Inputs!LZE7","v":0},{"$f":"F_Inputs!LZF7","v":0},{"$f":"F_Inputs!LZG7","v":0},{"$f":"F_Inputs!LZH7","v":0},{"$f":"F_Inputs!LZI7","v":0},{"$f":"F_Inputs!LZJ7","v":0},{"$f":"F_Inputs!LZK7","v":0},{"$f":"F_Inputs!LZL7","v":0},{"$f":"F_Inputs!LZM7","v":0},{"$f":"F_Inputs!LZN7","v":0},{"$f":"F_Inputs!LZO7","v":0},{"$f":"F_Inputs!LZP7","v":0},{"$f":"F_Inputs!LZQ7","v":0},{"$f":"F_Inputs!LZR7","v":0},{"$f":"F_Inputs!LZS7","v":0},{"$f":"F_Inputs!LZT7","v":0},{"$f":"F_Inputs!LZU7","v":0},{"$f":"F_Inputs!LZV7","v":0},{"$f":"F_Inputs!LZW7","v":0},{"$f":"F_Inputs!LZX7","v":0},{"$f":"F_Inputs!LZY7","v":0},{"$f":"F_Inputs!LZZ7","v":0},{"$f":"F_Inputs!MAA7","v":0},{"$f":"F_Inputs!MAB7","v":0},{"$f":"F_Inputs!MAC7","v":0},{"$f":"F_Inputs!MAD7","v":0},{"$f":"F_Inputs!MAE7","v":0},{"$f":"F_Inputs!MAF7","v":0},{"$f":"F_Inputs!MAG7","v":0},{"$f":"F_Inputs!MAH7","v":0},{"$f":"F_Inputs!MAI7","v":0},{"$f":"F_Inputs!MAJ7","v":0},{"$f":"F_Inputs!MAK7","v":0},{"$f":"F_Inputs!MAL7","v":0},{"$f":"F_Inputs!MAM7","v":0},{"$f":"F_Inputs!MAN7","v":0},{"$f":"F_Inputs!MAO7","v":0},{"$f":"F_Inputs!MAP7","v":0},{"$f":"F_Inputs!MAQ7","v":0},{"$f":"F_Inputs!MAR7","v":0},{"$f":"F_Inputs!MAS7","v":0},{"$f":"F_Inputs!MAT7","v":0},{"$f":"F_Inputs!MAU7","v":0},{"$f":"F_Inputs!MAV7","v":0},{"$f":"F_Inputs!MAW7","v":0},{"$f":"F_Inputs!MAX7","v":0},{"$f":"F_Inputs!MAY7","v":0},{"$f":"F_Inputs!MAZ7","v":0},{"$f":"F_Inputs!MBA7","v":0},{"$f":"F_Inputs!MBB7","v":0},{"$f":"F_Inputs!MBC7","v":0},{"$f":"F_Inputs!MBD7","v":0},{"$f":"F_Inputs!MBE7","v":0},{"$f":"F_Inputs!MBF7","v":0},{"$f":"F_Inputs!MBG7","v":0},{"$f":"F_Inputs!MBH7","v":0},{"$f":"F_Inputs!MBI7","v":0},{"$f":"F_Inputs!MBJ7","v":0},{"$f":"F_Inputs!MBK7","v":0},{"$f":"F_Inputs!MBL7","v":0},{"$f":"F_Inputs!MBM7","v":0},{"$f":"F_Inputs!MBN7","v":0},{"$f":"F_Inputs!MBO7","v":0},{"$f":"F_Inputs!MBP7","v":0},{"$f":"F_Inputs!MBQ7","v":0},{"$f":"F_Inputs!MBR7","v":0},{"$f":"F_Inputs!MBS7","v":0},{"$f":"F_Inputs!MBT7","v":0},{"$f":"F_Inputs!MBU7","v":0},{"$f":"F_Inputs!MBV7","v":0},{"$f":"F_Inputs!MBW7","v":0},{"$f":"F_Inputs!MBX7","v":0},{"$f":"F_Inputs!MBY7","v":0},{"$f":"F_Inputs!MBZ7","v":0},{"$f":"F_Inputs!MCA7","v":0},{"$f":"F_Inputs!MCB7","v":0},{"$f":"F_Inputs!MCC7","v":0},{"$f":"F_Inputs!MCD7","v":0},{"$f":"F_Inputs!MCE7","v":0},{"$f":"F_Inputs!MCF7","v":0},{"$f":"F_Inputs!MCG7","v":0},{"$f":"F_Inputs!MCH7","v":0},{"$f":"F_Inputs!MCI7","v":0},{"$f":"F_Inputs!MCJ7","v":0},{"$f":"F_Inputs!MCK7","v":0},{"$f":"F_Inputs!MCL7","v":0},{"$f":"F_Inputs!MCM7","v":0},{"$f":"F_Inputs!MCN7","v":0},{"$f":"F_Inputs!MCO7","v":0},{"$f":"F_Inputs!MCP7","v":0},{"$f":"F_Inputs!MCQ7","v":0},{"$f":"F_Inputs!MCR7","v":0},{"$f":"F_Inputs!MCS7","v":0},{"$f":"F_Inputs!MCT7","v":0},{"$f":"F_Inputs!MCU7","v":0},{"$f":"F_Inputs!MCV7","v":0},{"$f":"F_Inputs!MCW7","v":0},{"$f":"F_Inputs!MCX7","v":0},{"$f":"F_Inputs!MCY7","v":0},{"$f":"F_Inputs!MCZ7","v":0},{"$f":"F_Inputs!MDA7","v":0},{"$f":"F_Inputs!MDB7","v":0},{"$f":"F_Inputs!MDC7","v":0},{"$f":"F_Inputs!MDD7","v":0},{"$f":"F_Inputs!MDE7","v":0},{"$f":"F_Inputs!MDF7","v":0},{"$f":"F_Inputs!MDG7","v":0},{"$f":"F_Inputs!MDH7","v":0},{"$f":"F_Inputs!MDI7","v":0},{"$f":"F_Inputs!MDJ7","v":0},{"$f":"F_Inputs!MDK7","v":0},{"$f":"F_Inputs!MDL7","v":0},{"$f":"F_Inputs!MDM7","v":0},{"$f":"F_Inputs!MDN7","v":0},{"$f":"F_Inputs!MDO7","v":0},{"$f":"F_Inputs!MDP7","v":0},{"$f":"F_Inputs!MDQ7","v":0},{"$f":"F_Inputs!MDR7","v":0},{"$f":"F_Inputs!MDS7","v":0},{"$f":"F_Inputs!MDT7","v":0},{"$f":"F_Inputs!MDU7","v":0},{"$f":"F_Inputs!MDV7","v":0},{"$f":"F_Inputs!MDW7","v":0},{"$f":"F_Inputs!MDX7","v":0},{"$f":"F_Inputs!MDY7","v":0},{"$f":"F_Inputs!MDZ7","v":0},{"$f":"F_Inputs!MEA7","v":0},{"$f":"F_Inputs!MEB7","v":0},{"$f":"F_Inputs!MEC7","v":0},{"$f":"F_Inputs!MED7","v":0},{"$f":"F_Inputs!MEE7","v":0},{"$f":"F_Inputs!MEF7","v":0},{"$f":"F_Inputs!MEG7","v":0},{"$f":"F_Inputs!MEH7","v":0},{"$f":"F_Inputs!MEI7","v":0},{"$f":"F_Inputs!MEJ7","v":0},{"$f":"F_Inputs!MEK7","v":0},{"$f":"F_Inputs!MEL7","v":0},{"$f":"F_Inputs!MEM7","v":0},{"$f":"F_Inputs!MEN7","v":0},{"$f":"F_Inputs!MEO7","v":0},{"$f":"F_Inputs!MEP7","v":0},{"$f":"F_Inputs!MEQ7","v":0},{"$f":"F_Inputs!MER7","v":0},{"$f":"F_Inputs!MES7","v":0},{"$f":"F_Inputs!MET7","v":0},{"$f":"F_Inputs!MEU7","v":0},{"$f":"F_Inputs!MEV7","v":0},{"$f":"F_Inputs!MEW7","v":0},{"$f":"F_Inputs!MEX7","v":0},{"$f":"F_Inputs!MEY7","v":0},{"$f":"F_Inputs!MEZ7","v":0},{"$f":"F_Inputs!MFA7","v":0},{"$f":"F_Inputs!MFB7","v":0},{"$f":"F_Inputs!MFC7","v":0},{"$f":"F_Inputs!MFD7","v":0},{"$f":"F_Inputs!MFE7","v":0},{"$f":"F_Inputs!MFF7","v":0},{"$f":"F_Inputs!MFG7","v":0},{"$f":"F_Inputs!MFH7","v":0},{"$f":"F_Inputs!MFI7","v":0},{"$f":"F_Inputs!MFJ7","v":0},{"$f":"F_Inputs!MFK7","v":0},{"$f":"F_Inputs!MFL7","v":0},{"$f":"F_Inputs!MFM7","v":0},{"$f":"F_Inputs!MFN7","v":0},{"$f":"F_Inputs!MFO7","v":0},{"$f":"F_Inputs!MFP7","v":0},{"$f":"F_Inputs!MFQ7","v":0},{"$f":"F_Inputs!MFR7","v":0},{"$f":"F_Inputs!MFS7","v":0},{"$f":"F_Inputs!MFT7","v":0},{"$f":"F_Inputs!MFU7","v":0},{"$f":"F_Inputs!MFV7","v":0},{"$f":"F_Inputs!MFW7","v":0},{"$f":"F_Inputs!MFX7","v":0},{"$f":"F_Inputs!MFY7","v":0},{"$f":"F_Inputs!MFZ7","v":0},{"$f":"F_Inputs!MGA7","v":0},{"$f":"F_Inputs!MGB7","v":0},{"$f":"F_Inputs!MGC7","v":0},{"$f":"F_Inputs!MGD7","v":0},{"$f":"F_Inputs!MGE7","v":0},{"$f":"F_Inputs!MGF7","v":0},{"$f":"F_Inputs!MGG7","v":0},{"$f":"F_Inputs!MGH7","v":0},{"$f":"F_Inputs!MGI7","v":0},{"$f":"F_Inputs!MGJ7","v":0},{"$f":"F_Inputs!MGK7","v":0},{"$f":"F_Inputs!MGL7","v":0},{"$f":"F_Inputs!MGM7","v":0},{"$f":"F_Inputs!MGN7","v":0},{"$f":"F_Inputs!MGO7","v":0},{"$f":"F_Inputs!MGP7","v":0},{"$f":"F_Inputs!MGQ7","v":0},{"$f":"F_Inputs!MGR7","v":0},{"$f":"F_Inputs!MGS7","v":0},{"$f":"F_Inputs!MGT7","v":0},{"$f":"F_Inputs!MGU7","v":0},{"$f":"F_Inputs!MGV7","v":0},{"$f":"F_Inputs!MGW7","v":0},{"$f":"F_Inputs!MGX7","v":0},{"$f":"F_Inputs!MGY7","v":0},{"$f":"F_Inputs!MGZ7","v":0},{"$f":"F_Inputs!MHA7","v":0},{"$f":"F_Inputs!MHB7","v":0},{"$f":"F_Inputs!MHC7","v":0},{"$f":"F_Inputs!MHD7","v":0},{"$f":"F_Inputs!MHE7","v":0},{"$f":"F_Inputs!MHF7","v":0},{"$f":"F_Inputs!MHG7","v":0},{"$f":"F_Inputs!MHH7","v":0},{"$f":"F_Inputs!MHI7","v":0},{"$f":"F_Inputs!MHJ7","v":0},{"$f":"F_Inputs!MHK7","v":0},{"$f":"F_Inputs!MHL7","v":0},{"$f":"F_Inputs!MHM7","v":0},{"$f":"F_Inputs!MHN7","v":0},{"$f":"F_Inputs!MHO7","v":0},{"$f":"F_Inputs!MHP7","v":0},{"$f":"F_Inputs!MHQ7","v":0},{"$f":"F_Inputs!MHR7","v":0},{"$f":"F_Inputs!MHS7","v":0},{"$f":"F_Inputs!MHT7","v":0},{"$f":"F_Inputs!MHU7","v":0},{"$f":"F_Inputs!MHV7","v":0},{"$f":"F_Inputs!MHW7","v":0},{"$f":"F_Inputs!MHX7","v":0},{"$f":"F_Inputs!MHY7","v":0},{"$f":"F_Inputs!MHZ7","v":0},{"$f":"F_Inputs!MIA7","v":0},{"$f":"F_Inputs!MIB7","v":0},{"$f":"F_Inputs!MIC7","v":0},{"$f":"F_Inputs!MID7","v":0},{"$f":"F_Inputs!MIE7","v":0},{"$f":"F_Inputs!MIF7","v":0},{"$f":"F_Inputs!MIG7","v":0},{"$f":"F_Inputs!MIH7","v":0},{"$f":"F_Inputs!MII7","v":0},{"$f":"F_Inputs!MIJ7","v":0},{"$f":"F_Inputs!MIK7","v":0},{"$f":"F_Inputs!MIL7","v":0},{"$f":"F_Inputs!MIM7","v":0},{"$f":"F_Inputs!MIN7","v":0},{"$f":"F_Inputs!MIO7","v":0},{"$f":"F_Inputs!MIP7","v":0},{"$f":"F_Inputs!MIQ7","v":0},{"$f":"F_Inputs!MIR7","v":0},{"$f":"F_Inputs!MIS7","v":0},{"$f":"F_Inputs!MIT7","v":0},{"$f":"F_Inputs!MIU7","v":0},{"$f":"F_Inputs!MIV7","v":0},{"$f":"F_Inputs!MIW7","v":0},{"$f":"F_Inputs!MIX7","v":0},{"$f":"F_Inputs!MIY7","v":0},{"$f":"F_Inputs!MIZ7","v":0},{"$f":"F_Inputs!MJA7","v":0},{"$f":"F_Inputs!MJB7","v":0},{"$f":"F_Inputs!MJC7","v":0},{"$f":"F_Inputs!MJD7","v":0},{"$f":"F_Inputs!MJE7","v":0},{"$f":"F_Inputs!MJF7","v":0},{"$f":"F_Inputs!MJG7","v":0},{"$f":"F_Inputs!MJH7","v":0},{"$f":"F_Inputs!MJI7","v":0},{"$f":"F_Inputs!MJJ7","v":0},{"$f":"F_Inputs!MJK7","v":0},{"$f":"F_Inputs!MJL7","v":0},{"$f":"F_Inputs!MJM7","v":0},{"$f":"F_Inputs!MJN7","v":0},{"$f":"F_Inputs!MJO7","v":0},{"$f":"F_Inputs!MJP7","v":0},{"$f":"F_Inputs!MJQ7","v":0},{"$f":"F_Inputs!MJR7","v":0},{"$f":"F_Inputs!MJS7","v":0},{"$f":"F_Inputs!MJT7","v":0},{"$f":"F_Inputs!MJU7","v":0},{"$f":"F_Inputs!MJV7","v":0},{"$f":"F_Inputs!MJW7","v":0},{"$f":"F_Inputs!MJX7","v":0},{"$f":"F_Inputs!MJY7","v":0},{"$f":"F_Inputs!MJZ7","v":0},{"$f":"F_Inputs!MKA7","v":0},{"$f":"F_Inputs!MKB7","v":0},{"$f":"F_Inputs!MKC7","v":0},{"$f":"F_Inputs!MKD7","v":0},{"$f":"F_Inputs!MKE7","v":0},{"$f":"F_Inputs!MKF7","v":0},{"$f":"F_Inputs!MKG7","v":0},{"$f":"F_Inputs!MKH7","v":0},{"$f":"F_Inputs!MKI7","v":0},{"$f":"F_Inputs!MKJ7","v":0},{"$f":"F_Inputs!MKK7","v":0},{"$f":"F_Inputs!MKL7","v":0},{"$f":"F_Inputs!MKM7","v":0},{"$f":"F_Inputs!MKN7","v":0},{"$f":"F_Inputs!MKO7","v":0},{"$f":"F_Inputs!MKP7","v":0},{"$f":"F_Inputs!MKQ7","v":0},{"$f":"F_Inputs!MKR7","v":0},{"$f":"F_Inputs!MKS7","v":0},{"$f":"F_Inputs!MKT7","v":0},{"$f":"F_Inputs!MKU7","v":0},{"$f":"F_Inputs!MKV7","v":0},{"$f":"F_Inputs!MKW7","v":0},{"$f":"F_Inputs!MKX7","v":0},{"$f":"F_Inputs!MKY7","v":0},{"$f":"F_Inputs!MKZ7","v":0},{"$f":"F_Inputs!MLA7","v":0},{"$f":"F_Inputs!MLB7","v":0},{"$f":"F_Inputs!MLC7","v":0},{"$f":"F_Inputs!MLD7","v":0},{"$f":"F_Inputs!MLE7","v":0},{"$f":"F_Inputs!MLF7","v":0},{"$f":"F_Inputs!MLG7","v":0},{"$f":"F_Inputs!MLH7","v":0},{"$f":"F_Inputs!MLI7","v":0},{"$f":"F_Inputs!MLJ7","v":0},{"$f":"F_Inputs!MLK7","v":0},{"$f":"F_Inputs!MLL7","v":0},{"$f":"F_Inputs!MLM7","v":0},{"$f":"F_Inputs!MLN7","v":0},{"$f":"F_Inputs!MLO7","v":0},{"$f":"F_Inputs!MLP7","v":0},{"$f":"F_Inputs!MLQ7","v":0},{"$f":"F_Inputs!MLR7","v":0},{"$f":"F_Inputs!MLS7","v":0},{"$f":"F_Inputs!MLT7","v":0},{"$f":"F_Inputs!MLU7","v":0},{"$f":"F_Inputs!MLV7","v":0},{"$f":"F_Inputs!MLW7","v":0},{"$f":"F_Inputs!MLX7","v":0},{"$f":"F_Inputs!MLY7","v":0},{"$f":"F_Inputs!MLZ7","v":0},{"$f":"F_Inputs!MMA7","v":0},{"$f":"F_Inputs!MMB7","v":0},{"$f":"F_Inputs!MMC7","v":0},{"$f":"F_Inputs!MMD7","v":0},{"$f":"F_Inputs!MME7","v":0},{"$f":"F_Inputs!MMF7","v":0},{"$f":"F_Inputs!MMG7","v":0},{"$f":"F_Inputs!MMH7","v":0},{"$f":"F_Inputs!MMI7","v":0},{"$f":"F_Inputs!MMJ7","v":0},{"$f":"F_Inputs!MMK7","v":0},{"$f":"F_Inputs!MML7","v":0},{"$f":"F_Inputs!MMM7","v":0},{"$f":"F_Inputs!MMN7","v":0},{"$f":"F_Inputs!MMO7","v":0},{"$f":"F_Inputs!MMP7","v":0},{"$f":"F_Inputs!MMQ7","v":0},{"$f":"F_Inputs!MMR7","v":0},{"$f":"F_Inputs!MMS7","v":0},{"$f":"F_Inputs!MMT7","v":0},{"$f":"F_Inputs!MMU7","v":0},{"$f":"F_Inputs!MMV7","v":0},{"$f":"F_Inputs!MMW7","v":0},{"$f":"F_Inputs!MMX7","v":0},{"$f":"F_Inputs!MMY7","v":0},{"$f":"F_Inputs!MMZ7","v":0},{"$f":"F_Inputs!MNA7","v":0},{"$f":"F_Inputs!MNB7","v":0},{"$f":"F_Inputs!MNC7","v":0},{"$f":"F_Inputs!MND7","v":0},{"$f":"F_Inputs!MNE7","v":0},{"$f":"F_Inputs!MNF7","v":0},{"$f":"F_Inputs!MNG7","v":0},{"$f":"F_Inputs!MNH7","v":0},{"$f":"F_Inputs!MNI7","v":0},{"$f":"F_Inputs!MNJ7","v":0},{"$f":"F_Inputs!MNK7","v":0},{"$f":"F_Inputs!MNL7","v":0},{"$f":"F_Inputs!MNM7","v":0},{"$f":"F_Inputs!MNN7","v":0},{"$f":"F_Inputs!MNO7","v":0},{"$f":"F_Inputs!MNP7","v":0},{"$f":"F_Inputs!MNQ7","v":0},{"$f":"F_Inputs!MNR7","v":0},{"$f":"F_Inputs!MNS7","v":0},{"$f":"F_Inputs!MNT7","v":0},{"$f":"F_Inputs!MNU7","v":0},{"$f":"F_Inputs!MNV7","v":0},{"$f":"F_Inputs!MNW7","v":0},{"$f":"F_Inputs!MNX7","v":0},{"$f":"F_Inputs!MNY7","v":0},{"$f":"F_Inputs!MNZ7","v":0},{"$f":"F_Inputs!MOA7","v":0},{"$f":"F_Inputs!MOB7","v":0},{"$f":"F_Inputs!MOC7","v":0},{"$f":"F_Inputs!MOD7","v":0},{"$f":"F_Inputs!MOE7","v":0},{"$f":"F_Inputs!MOF7","v":0},{"$f":"F_Inputs!MOG7","v":0},{"$f":"F_Inputs!MOH7","v":0},{"$f":"F_Inputs!MOI7","v":0},{"$f":"F_Inputs!MOJ7","v":0},{"$f":"F_Inputs!MOK7","v":0},{"$f":"F_Inputs!MOL7","v":0},{"$f":"F_Inputs!MOM7","v":0},{"$f":"F_Inputs!MON7","v":0},{"$f":"F_Inputs!MOO7","v":0},{"$f":"F_Inputs!MOP7","v":0},{"$f":"F_Inputs!MOQ7","v":0},{"$f":"F_Inputs!MOR7","v":0},{"$f":"F_Inputs!MOS7","v":0},{"$f":"F_Inputs!MOT7","v":0},{"$f":"F_Inputs!MOU7","v":0},{"$f":"F_Inputs!MOV7","v":0},{"$f":"F_Inputs!MOW7","v":0},{"$f":"F_Inputs!MOX7","v":0},{"$f":"F_Inputs!MOY7","v":0},{"$f":"F_Inputs!MOZ7","v":0},{"$f":"F_Inputs!MPA7","v":0},{"$f":"F_Inputs!MPB7","v":0},{"$f":"F_Inputs!MPC7","v":0},{"$f":"F_Inputs!MPD7","v":0},{"$f":"F_Inputs!MPE7","v":0},{"$f":"F_Inputs!MPF7","v":0},{"$f":"F_Inputs!MPG7","v":0},{"$f":"F_Inputs!MPH7","v":0},{"$f":"F_Inputs!MPI7","v":0},{"$f":"F_Inputs!MPJ7","v":0},{"$f":"F_Inputs!MPK7","v":0},{"$f":"F_Inputs!MPL7","v":0},{"$f":"F_Inputs!MPM7","v":0},{"$f":"F_Inputs!MPN7","v":0},{"$f":"F_Inputs!MPO7","v":0},{"$f":"F_Inputs!MPP7","v":0},{"$f":"F_Inputs!MPQ7","v":0},{"$f":"F_Inputs!MPR7","v":0},{"$f":"F_Inputs!MPS7","v":0},{"$f":"F_Inputs!MPT7","v":0},{"$f":"F_Inputs!MPU7","v":0},{"$f":"F_Inputs!MPV7","v":0},{"$f":"F_Inputs!MPW7","v":0},{"$f":"F_Inputs!MPX7","v":0},{"$f":"F_Inputs!MPY7","v":0},{"$f":"F_Inputs!MPZ7","v":0},{"$f":"F_Inputs!MQA7","v":0},{"$f":"F_Inputs!MQB7","v":0},{"$f":"F_Inputs!MQC7","v":0},{"$f":"F_Inputs!MQD7","v":0},{"$f":"F_Inputs!MQE7","v":0},{"$f":"F_Inputs!MQF7","v":0},{"$f":"F_Inputs!MQG7","v":0},{"$f":"F_Inputs!MQH7","v":0},{"$f":"F_Inputs!MQI7","v":0},{"$f":"F_Inputs!MQJ7","v":0},{"$f":"F_Inputs!MQK7","v":0},{"$f":"F_Inputs!MQL7","v":0},{"$f":"F_Inputs!MQM7","v":0},{"$f":"F_Inputs!MQN7","v":0},{"$f":"F_Inputs!MQO7","v":0},{"$f":"F_Inputs!MQP7","v":0},{"$f":"F_Inputs!MQQ7","v":0},{"$f":"F_Inputs!MQR7","v":0},{"$f":"F_Inputs!MQS7","v":0},{"$f":"F_Inputs!MQT7","v":0},{"$f":"F_Inputs!MQU7","v":0},{"$f":"F_Inputs!MQV7","v":0},{"$f":"F_Inputs!MQW7","v":0},{"$f":"F_Inputs!MQX7","v":0},{"$f":"F_Inputs!MQY7","v":0},{"$f":"F_Inputs!MQZ7","v":0},{"$f":"F_Inputs!MRA7","v":0},{"$f":"F_Inputs!MRB7","v":0},{"$f":"F_Inputs!MRC7","v":0},{"$f":"F_Inputs!MRD7","v":0},{"$f":"F_Inputs!MRE7","v":0},{"$f":"F_Inputs!MRF7","v":0},{"$f":"F_Inputs!MRG7","v":0},{"$f":"F_Inputs!MRH7","v":0},{"$f":"F_Inputs!MRI7","v":0},{"$f":"F_Inputs!MRJ7","v":0},{"$f":"F_Inputs!MRK7","v":0},{"$f":"F_Inputs!MRL7","v":0},{"$f":"F_Inputs!MRM7","v":0},{"$f":"F_Inputs!MRN7","v":0},{"$f":"F_Inputs!MRO7","v":0},{"$f":"F_Inputs!MRP7","v":0},{"$f":"F_Inputs!MRQ7","v":0},{"$f":"F_Inputs!MRR7","v":0},{"$f":"F_Inputs!MRS7","v":0},{"$f":"F_Inputs!MRT7","v":0},{"$f":"F_Inputs!MRU7","v":0},{"$f":"F_Inputs!MRV7","v":0},{"$f":"F_Inputs!MRW7","v":0},{"$f":"F_Inputs!MRX7","v":0},{"$f":"F_Inputs!MRY7","v":0},{"$f":"F_Inputs!MRZ7","v":0},{"$f":"F_Inputs!MSA7","v":0},{"$f":"F_Inputs!MSB7","v":0},{"$f":"F_Inputs!MSC7","v":0},{"$f":"F_Inputs!MSD7","v":0},{"$f":"F_Inputs!MSE7","v":0},{"$f":"F_Inputs!MSF7","v":0},{"$f":"F_Inputs!MSG7","v":0},{"$f":"F_Inputs!MSH7","v":0},{"$f":"F_Inputs!MSI7","v":0},{"$f":"F_Inputs!MSJ7","v":0},{"$f":"F_Inputs!MSK7","v":0},{"$f":"F_Inputs!MSL7","v":0},{"$f":"F_Inputs!MSM7","v":0},{"$f":"F_Inputs!MSN7","v":0},{"$f":"F_Inputs!MSO7","v":0},{"$f":"F_Inputs!MSP7","v":0},{"$f":"F_Inputs!MSQ7","v":0},{"$f":"F_Inputs!MSR7","v":0},{"$f":"F_Inputs!MSS7","v":0},{"$f":"F_Inputs!MST7","v":0},{"$f":"F_Inputs!MSU7","v":0},{"$f":"F_Inputs!MSV7","v":0},{"$f":"F_Inputs!MSW7","v":0},{"$f":"F_Inputs!MSX7","v":0},{"$f":"F_Inputs!MSY7","v":0},{"$f":"F_Inputs!MSZ7","v":0},{"$f":"F_Inputs!MTA7","v":0},{"$f":"F_Inputs!MTB7","v":0},{"$f":"F_Inputs!MTC7","v":0},{"$f":"F_Inputs!MTD7","v":0},{"$f":"F_Inputs!MTE7","v":0},{"$f":"F_Inputs!MTF7","v":0},{"$f":"F_Inputs!MTG7","v":0},{"$f":"F_Inputs!MTH7","v":0},{"$f":"F_Inputs!MTI7","v":0},{"$f":"F_Inputs!MTJ7","v":0},{"$f":"F_Inputs!MTK7","v":0},{"$f":"F_Inputs!MTL7","v":0},{"$f":"F_Inputs!MTM7","v":0},{"$f":"F_Inputs!MTN7","v":0},{"$f":"F_Inputs!MTO7","v":0},{"$f":"F_Inputs!MTP7","v":0},{"$f":"F_Inputs!MTQ7","v":0},{"$f":"F_Inputs!MTR7","v":0},{"$f":"F_Inputs!MTS7","v":0},{"$f":"F_Inputs!MTT7","v":0},{"$f":"F_Inputs!MTU7","v":0},{"$f":"F_Inputs!MTV7","v":0},{"$f":"F_Inputs!MTW7","v":0},{"$f":"F_Inputs!MTX7","v":0},{"$f":"F_Inputs!MTY7","v":0},{"$f":"F_Inputs!MTZ7","v":0},{"$f":"F_Inputs!MUA7","v":0},{"$f":"F_Inputs!MUB7","v":0},{"$f":"F_Inputs!MUC7","v":0},{"$f":"F_Inputs!MUD7","v":0},{"$f":"F_Inputs!MUE7","v":0},{"$f":"F_Inputs!MUF7","v":0},{"$f":"F_Inputs!MUG7","v":0},{"$f":"F_Inputs!MUH7","v":0},{"$f":"F_Inputs!MUI7","v":0},{"$f":"F_Inputs!MUJ7","v":0},{"$f":"F_Inputs!MUK7","v":0},{"$f":"F_Inputs!MUL7","v":0},{"$f":"F_Inputs!MUM7","v":0},{"$f":"F_Inputs!MUN7","v":0},{"$f":"F_Inputs!MUO7","v":0},{"$f":"F_Inputs!MUP7","v":0},{"$f":"F_Inputs!MUQ7","v":0},{"$f":"F_Inputs!MUR7","v":0},{"$f":"F_Inputs!MUS7","v":0},{"$f":"F_Inputs!MUT7","v":0},{"$f":"F_Inputs!MUU7","v":0},{"$f":"F_Inputs!MUV7","v":0},{"$f":"F_Inputs!MUW7","v":0},{"$f":"F_Inputs!MUX7","v":0},{"$f":"F_Inputs!MUY7","v":0},{"$f":"F_Inputs!MUZ7","v":0},{"$f":"F_Inputs!MVA7","v":0},{"$f":"F_Inputs!MVB7","v":0},{"$f":"F_Inputs!MVC7","v":0},{"$f":"F_Inputs!MVD7","v":0},{"$f":"F_Inputs!MVE7","v":0},{"$f":"F_Inputs!MVF7","v":0},{"$f":"F_Inputs!MVG7","v":0},{"$f":"F_Inputs!MVH7","v":0},{"$f":"F_Inputs!MVI7","v":0},{"$f":"F_Inputs!MVJ7","v":0},{"$f":"F_Inputs!MVK7","v":0},{"$f":"F_Inputs!MVL7","v":0},{"$f":"F_Inputs!MVM7","v":0},{"$f":"F_Inputs!MVN7","v":0},{"$f":"F_Inputs!MVO7","v":0},{"$f":"F_Inputs!MVP7","v":0},{"$f":"F_Inputs!MVQ7","v":0},{"$f":"F_Inputs!MVR7","v":0},{"$f":"F_Inputs!MVS7","v":0},{"$f":"F_Inputs!MVT7","v":0},{"$f":"F_Inputs!MVU7","v":0},{"$f":"F_Inputs!MVV7","v":0},{"$f":"F_Inputs!MVW7","v":0},{"$f":"F_Inputs!MVX7","v":0},{"$f":"F_Inputs!MVY7","v":0},{"$f":"F_Inputs!MVZ7","v":0},{"$f":"F_Inputs!MWA7","v":0},{"$f":"F_Inputs!MWB7","v":0},{"$f":"F_Inputs!MWC7","v":0},{"$f":"F_Inputs!MWD7","v":0},{"$f":"F_Inputs!MWE7","v":0},{"$f":"F_Inputs!MWF7","v":0},{"$f":"F_Inputs!MWG7","v":0},{"$f":"F_Inputs!MWH7","v":0},{"$f":"F_Inputs!MWI7","v":0},{"$f":"F_Inputs!MWJ7","v":0},{"$f":"F_Inputs!MWK7","v":0},{"$f":"F_Inputs!MWL7","v":0},{"$f":"F_Inputs!MWM7","v":0},{"$f":"F_Inputs!MWN7","v":0},{"$f":"F_Inputs!MWO7","v":0},{"$f":"F_Inputs!MWP7","v":0},{"$f":"F_Inputs!MWQ7","v":0},{"$f":"F_Inputs!MWR7","v":0},{"$f":"F_Inputs!MWS7","v":0},{"$f":"F_Inputs!MWT7","v":0},{"$f":"F_Inputs!MWU7","v":0},{"$f":"F_Inputs!MWV7","v":0},{"$f":"F_Inputs!MWW7","v":0},{"$f":"F_Inputs!MWX7","v":0},{"$f":"F_Inputs!MWY7","v":0},{"$f":"F_Inputs!MWZ7","v":0},{"$f":"F_Inputs!MXA7","v":0},{"$f":"F_Inputs!MXB7","v":0},{"$f":"F_Inputs!MXC7","v":0},{"$f":"F_Inputs!MXD7","v":0},{"$f":"F_Inputs!MXE7","v":0},{"$f":"F_Inputs!MXF7","v":0},{"$f":"F_Inputs!MXG7","v":0},{"$f":"F_Inputs!MXH7","v":0},{"$f":"F_Inputs!MXI7","v":0},{"$f":"F_Inputs!MXJ7","v":0},{"$f":"F_Inputs!MXK7","v":0},{"$f":"F_Inputs!MXL7","v":0},{"$f":"F_Inputs!MXM7","v":0},{"$f":"F_Inputs!MXN7","v":0},{"$f":"F_Inputs!MXO7","v":0},{"$f":"F_Inputs!MXP7","v":0},{"$f":"F_Inputs!MXQ7","v":0},{"$f":"F_Inputs!MXR7","v":0},{"$f":"F_Inputs!MXS7","v":0},{"$f":"F_Inputs!MXT7","v":0},{"$f":"F_Inputs!MXU7","v":0},{"$f":"F_Inputs!MXV7","v":0},{"$f":"F_Inputs!MXW7","v":0},{"$f":"F_Inputs!MXX7","v":0},{"$f":"F_Inputs!MXY7","v":0},{"$f":"F_Inputs!MXZ7","v":0},{"$f":"F_Inputs!MYA7","v":0},{"$f":"F_Inputs!MYB7","v":0},{"$f":"F_Inputs!MYC7","v":0},{"$f":"F_Inputs!MYD7","v":0},{"$f":"F_Inputs!MYE7","v":0},{"$f":"F_Inputs!MYF7","v":0},{"$f":"F_Inputs!MYG7","v":0},{"$f":"F_Inputs!MYH7","v":0},{"$f":"F_Inputs!MYI7","v":0},{"$f":"F_Inputs!MYJ7","v":0},{"$f":"F_Inputs!MYK7","v":0},{"$f":"F_Inputs!MYL7","v":0},{"$f":"F_Inputs!MYM7","v":0},{"$f":"F_Inputs!MYN7","v":0},{"$f":"F_Inputs!MYO7","v":0},{"$f":"F_Inputs!MYP7","v":0},{"$f":"F_Inputs!MYQ7","v":0},{"$f":"F_Inputs!MYR7","v":0},{"$f":"F_Inputs!MYS7","v":0},{"$f":"F_Inputs!MYT7","v":0},{"$f":"F_Inputs!MYU7","v":0},{"$f":"F_Inputs!MYV7","v":0},{"$f":"F_Inputs!MYW7","v":0},{"$f":"F_Inputs!MYX7","v":0},{"$f":"F_Inputs!MYY7","v":0},{"$f":"F_Inputs!MYZ7","v":0},{"$f":"F_Inputs!MZA7","v":0},{"$f":"F_Inputs!MZB7","v":0},{"$f":"F_Inputs!MZC7","v":0},{"$f":"F_Inputs!MZD7","v":0},{"$f":"F_Inputs!MZE7","v":0},{"$f":"F_Inputs!MZF7","v":0},{"$f":"F_Inputs!MZG7","v":0},{"$f":"F_Inputs!MZH7","v":0},{"$f":"F_Inputs!MZI7","v":0},{"$f":"F_Inputs!MZJ7","v":0},{"$f":"F_Inputs!MZK7","v":0},{"$f":"F_Inputs!MZL7","v":0},{"$f":"F_Inputs!MZM7","v":0},{"$f":"F_Inputs!MZN7","v":0},{"$f":"F_Inputs!MZO7","v":0},{"$f":"F_Inputs!MZP7","v":0},{"$f":"F_Inputs!MZQ7","v":0},{"$f":"F_Inputs!MZR7","v":0},{"$f":"F_Inputs!MZS7","v":0},{"$f":"F_Inputs!MZT7","v":0},{"$f":"F_Inputs!MZU7","v":0},{"$f":"F_Inputs!MZV7","v":0},{"$f":"F_Inputs!MZW7","v":0},{"$f":"F_Inputs!MZX7","v":0},{"$f":"F_Inputs!MZY7","v":0},{"$f":"F_Inputs!MZZ7","v":0},{"$f":"F_Inputs!NAA7","v":0},{"$f":"F_Inputs!NAB7","v":0},{"$f":"F_Inputs!NAC7","v":0},{"$f":"F_Inputs!NAD7","v":0},{"$f":"F_Inputs!NAE7","v":0},{"$f":"F_Inputs!NAF7","v":0},{"$f":"F_Inputs!NAG7","v":0},{"$f":"F_Inputs!NAH7","v":0},{"$f":"F_Inputs!NAI7","v":0},{"$f":"F_Inputs!NAJ7","v":0},{"$f":"F_Inputs!NAK7","v":0},{"$f":"F_Inputs!NAL7","v":0},{"$f":"F_Inputs!NAM7","v":0},{"$f":"F_Inputs!NAN7","v":0},{"$f":"F_Inputs!NAO7","v":0},{"$f":"F_Inputs!NAP7","v":0},{"$f":"F_Inputs!NAQ7","v":0},{"$f":"F_Inputs!NAR7","v":0},{"$f":"F_Inputs!NAS7","v":0},{"$f":"F_Inputs!NAT7","v":0},{"$f":"F_Inputs!NAU7","v":0},{"$f":"F_Inputs!NAV7","v":0},{"$f":"F_Inputs!NAW7","v":0},{"$f":"F_Inputs!NAX7","v":0},{"$f":"F_Inputs!NAY7","v":0},{"$f":"F_Inputs!NAZ7","v":0},{"$f":"F_Inputs!NBA7","v":0},{"$f":"F_Inputs!NBB7","v":0},{"$f":"F_Inputs!NBC7","v":0},{"$f":"F_Inputs!NBD7","v":0},{"$f":"F_Inputs!NBE7","v":0},{"$f":"F_Inputs!NBF7","v":0},{"$f":"F_Inputs!NBG7","v":0},{"$f":"F_Inputs!NBH7","v":0},{"$f":"F_Inputs!NBI7","v":0},{"$f":"F_Inputs!NBJ7","v":0},{"$f":"F_Inputs!NBK7","v":0},{"$f":"F_Inputs!NBL7","v":0},{"$f":"F_Inputs!NBM7","v":0},{"$f":"F_Inputs!NBN7","v":0},{"$f":"F_Inputs!NBO7","v":0},{"$f":"F_Inputs!NBP7","v":0},{"$f":"F_Inputs!NBQ7","v":0},{"$f":"F_Inputs!NBR7","v":0},{"$f":"F_Inputs!NBS7","v":0},{"$f":"F_Inputs!NBT7","v":0},{"$f":"F_Inputs!NBU7","v":0},{"$f":"F_Inputs!NBV7","v":0},{"$f":"F_Inputs!NBW7","v":0},{"$f":"F_Inputs!NBX7","v":0},{"$f":"F_Inputs!NBY7","v":0},{"$f":"F_Inputs!NBZ7","v":0},{"$f":"F_Inputs!NCA7","v":0},{"$f":"F_Inputs!NCB7","v":0},{"$f":"F_Inputs!NCC7","v":0},{"$f":"F_Inputs!NCD7","v":0},{"$f":"F_Inputs!NCE7","v":0},{"$f":"F_Inputs!NCF7","v":0},{"$f":"F_Inputs!NCG7","v":0},{"$f":"F_Inputs!NCH7","v":0},{"$f":"F_Inputs!NCI7","v":0},{"$f":"F_Inputs!NCJ7","v":0},{"$f":"F_Inputs!NCK7","v":0},{"$f":"F_Inputs!NCL7","v":0},{"$f":"F_Inputs!NCM7","v":0},{"$f":"F_Inputs!NCN7","v":0},{"$f":"F_Inputs!NCO7","v":0},{"$f":"F_Inputs!NCP7","v":0},{"$f":"F_Inputs!NCQ7","v":0},{"$f":"F_Inputs!NCR7","v":0},{"$f":"F_Inputs!NCS7","v":0},{"$f":"F_Inputs!NCT7","v":0},{"$f":"F_Inputs!NCU7","v":0},{"$f":"F_Inputs!NCV7","v":0},{"$f":"F_Inputs!NCW7","v":0},{"$f":"F_Inputs!NCX7","v":0},{"$f":"F_Inputs!NCY7","v":0},{"$f":"F_Inputs!NCZ7","v":0},{"$f":"F_Inputs!NDA7","v":0},{"$f":"F_Inputs!NDB7","v":0},{"$f":"F_Inputs!NDC7","v":0},{"$f":"F_Inputs!NDD7","v":0},{"$f":"F_Inputs!NDE7","v":0},{"$f":"F_Inputs!NDF7","v":0},{"$f":"F_Inputs!NDG7","v":0},{"$f":"F_Inputs!NDH7","v":0},{"$f":"F_Inputs!NDI7","v":0},{"$f":"F_Inputs!NDJ7","v":0},{"$f":"F_Inputs!NDK7","v":0},{"$f":"F_Inputs!NDL7","v":0},{"$f":"F_Inputs!NDM7","v":0},{"$f":"F_Inputs!NDN7","v":0},{"$f":"F_Inputs!NDO7","v":0},{"$f":"F_Inputs!NDP7","v":0},{"$f":"F_Inputs!NDQ7","v":0},{"$f":"F_Inputs!NDR7","v":0},{"$f":"F_Inputs!NDS7","v":0},{"$f":"F_Inputs!NDT7","v":0},{"$f":"F_Inputs!NDU7","v":0},{"$f":"F_Inputs!NDV7","v":0},{"$f":"F_Inputs!NDW7","v":0},{"$f":"F_Inputs!NDX7","v":0},{"$f":"F_Inputs!NDY7","v":0},{"$f":"F_Inputs!NDZ7","v":0},{"$f":"F_Inputs!NEA7","v":0},{"$f":"F_Inputs!NEB7","v":0},{"$f":"F_Inputs!NEC7","v":0},{"$f":"F_Inputs!NED7","v":0},{"$f":"F_Inputs!NEE7","v":0},{"$f":"F_Inputs!NEF7","v":0},{"$f":"F_Inputs!NEG7","v":0},{"$f":"F_Inputs!NEH7","v":0},{"$f":"F_Inputs!NEI7","v":0},{"$f":"F_Inputs!NEJ7","v":0},{"$f":"F_Inputs!NEK7","v":0},{"$f":"F_Inputs!NEL7","v":0},{"$f":"F_Inputs!NEM7","v":0},{"$f":"F_Inputs!NEN7","v":0},{"$f":"F_Inputs!NEO7","v":0},{"$f":"F_Inputs!NEP7","v":0},{"$f":"F_Inputs!NEQ7","v":0},{"$f":"F_Inputs!NER7","v":0},{"$f":"F_Inputs!NES7","v":0},{"$f":"F_Inputs!NET7","v":0},{"$f":"F_Inputs!NEU7","v":0},{"$f":"F_Inputs!NEV7","v":0},{"$f":"F_Inputs!NEW7","v":0},{"$f":"F_Inputs!NEX7","v":0},{"$f":"F_Inputs!NEY7","v":0},{"$f":"F_Inputs!NEZ7","v":0},{"$f":"F_Inputs!NFA7","v":0},{"$f":"F_Inputs!NFB7","v":0},{"$f":"F_Inputs!NFC7","v":0},{"$f":"F_Inputs!NFD7","v":0},{"$f":"F_Inputs!NFE7","v":0},{"$f":"F_Inputs!NFF7","v":0},{"$f":"F_Inputs!NFG7","v":0},{"$f":"F_Inputs!NFH7","v":0},{"$f":"F_Inputs!NFI7","v":0},{"$f":"F_Inputs!NFJ7","v":0},{"$f":"F_Inputs!NFK7","v":0},{"$f":"F_Inputs!NFL7","v":0},{"$f":"F_Inputs!NFM7","v":0},{"$f":"F_Inputs!NFN7","v":0},{"$f":"F_Inputs!NFO7","v":0},{"$f":"F_Inputs!NFP7","v":0},{"$f":"F_Inputs!NFQ7","v":0},{"$f":"F_Inputs!NFR7","v":0},{"$f":"F_Inputs!NFS7","v":0},{"$f":"F_Inputs!NFT7","v":0},{"$f":"F_Inputs!NFU7","v":0},{"$f":"F_Inputs!NFV7","v":0},{"$f":"F_Inputs!NFW7","v":0},{"$f":"F_Inputs!NFX7","v":0},{"$f":"F_Inputs!NFY7","v":0},{"$f":"F_Inputs!NFZ7","v":0},{"$f":"F_Inputs!NGA7","v":0},{"$f":"F_Inputs!NGB7","v":0},{"$f":"F_Inputs!NGC7","v":0},{"$f":"F_Inputs!NGD7","v":0},{"$f":"F_Inputs!NGE7","v":0},{"$f":"F_Inputs!NGF7","v":0},{"$f":"F_Inputs!NGG7","v":0},{"$f":"F_Inputs!NGH7","v":0},{"$f":"F_Inputs!NGI7","v":0},{"$f":"F_Inputs!NGJ7","v":0},{"$f":"F_Inputs!NGK7","v":0},{"$f":"F_Inputs!NGL7","v":0},{"$f":"F_Inputs!NGM7","v":0},{"$f":"F_Inputs!NGN7","v":0},{"$f":"F_Inputs!NGO7","v":0},{"$f":"F_Inputs!NGP7","v":0},{"$f":"F_Inputs!NGQ7","v":0},{"$f":"F_Inputs!NGR7","v":0},{"$f":"F_Inputs!NGS7","v":0},{"$f":"F_Inputs!NGT7","v":0},{"$f":"F_Inputs!NGU7","v":0},{"$f":"F_Inputs!NGV7","v":0},{"$f":"F_Inputs!NGW7","v":0},{"$f":"F_Inputs!NGX7","v":0},{"$f":"F_Inputs!NGY7","v":0},{"$f":"F_Inputs!NGZ7","v":0},{"$f":"F_Inputs!NHA7","v":0},{"$f":"F_Inputs!NHB7","v":0},{"$f":"F_Inputs!NHC7","v":0},{"$f":"F_Inputs!NHD7","v":0},{"$f":"F_Inputs!NHE7","v":0},{"$f":"F_Inputs!NHF7","v":0},{"$f":"F_Inputs!NHG7","v":0},{"$f":"F_Inputs!NHH7","v":0},{"$f":"F_Inputs!NHI7","v":0},{"$f":"F_Inputs!NHJ7","v":0},{"$f":"F_Inputs!NHK7","v":0},{"$f":"F_Inputs!NHL7","v":0},{"$f":"F_Inputs!NHM7","v":0},{"$f":"F_Inputs!NHN7","v":0},{"$f":"F_Inputs!NHO7","v":0},{"$f":"F_Inputs!NHP7","v":0},{"$f":"F_Inputs!NHQ7","v":0},{"$f":"F_Inputs!NHR7","v":0},{"$f":"F_Inputs!NHS7","v":0},{"$f":"F_Inputs!NHT7","v":0},{"$f":"F_Inputs!NHU7","v":0},{"$f":"F_Inputs!NHV7","v":0},{"$f":"F_Inputs!NHW7","v":0},{"$f":"F_Inputs!NHX7","v":0},{"$f":"F_Inputs!NHY7","v":0},{"$f":"F_Inputs!NHZ7","v":0},{"$f":"F_Inputs!NIA7","v":0},{"$f":"F_Inputs!NIB7","v":0},{"$f":"F_Inputs!NIC7","v":0},{"$f":"F_Inputs!NID7","v":0},{"$f":"F_Inputs!NIE7","v":0},{"$f":"F_Inputs!NIF7","v":0},{"$f":"F_Inputs!NIG7","v":0},{"$f":"F_Inputs!NIH7","v":0},{"$f":"F_Inputs!NII7","v":0},{"$f":"F_Inputs!NIJ7","v":0},{"$f":"F_Inputs!NIK7","v":0},{"$f":"F_Inputs!NIL7","v":0},{"$f":"F_Inputs!NIM7","v":0},{"$f":"F_Inputs!NIN7","v":0},{"$f":"F_Inputs!NIO7","v":0},{"$f":"F_Inputs!NIP7","v":0},{"$f":"F_Inputs!NIQ7","v":0},{"$f":"F_Inputs!NIR7","v":0},{"$f":"F_Inputs!NIS7","v":0},{"$f":"F_Inputs!NIT7","v":0},{"$f":"F_Inputs!NIU7","v":0},{"$f":"F_Inputs!NIV7","v":0},{"$f":"F_Inputs!NIW7","v":0},{"$f":"F_Inputs!NIX7","v":0},{"$f":"F_Inputs!NIY7","v":0},{"$f":"F_Inputs!NIZ7","v":0},{"$f":"F_Inputs!NJA7","v":0},{"$f":"F_Inputs!NJB7","v":0},{"$f":"F_Inputs!NJC7","v":0},{"$f":"F_Inputs!NJD7","v":0},{"$f":"F_Inputs!NJE7","v":0},{"$f":"F_Inputs!NJF7","v":0},{"$f":"F_Inputs!NJG7","v":0},{"$f":"F_Inputs!NJH7","v":0},{"$f":"F_Inputs!NJI7","v":0},{"$f":"F_Inputs!NJJ7","v":0},{"$f":"F_Inputs!NJK7","v":0},{"$f":"F_Inputs!NJL7","v":0},{"$f":"F_Inputs!NJM7","v":0},{"$f":"F_Inputs!NJN7","v":0},{"$f":"F_Inputs!NJO7","v":0},{"$f":"F_Inputs!NJP7","v":0},{"$f":"F_Inputs!NJQ7","v":0},{"$f":"F_Inputs!NJR7","v":0},{"$f":"F_Inputs!NJS7","v":0},{"$f":"F_Inputs!NJT7","v":0},{"$f":"F_Inputs!NJU7","v":0},{"$f":"F_Inputs!NJV7","v":0},{"$f":"F_Inputs!NJW7","v":0},{"$f":"F_Inputs!NJX7","v":0},{"$f":"F_Inputs!NJY7","v":0},{"$f":"F_Inputs!NJZ7","v":0},{"$f":"F_Inputs!NKA7","v":0},{"$f":"F_Inputs!NKB7","v":0},{"$f":"F_Inputs!NKC7","v":0},{"$f":"F_Inputs!NKD7","v":0},{"$f":"F_Inputs!NKE7","v":0},{"$f":"F_Inputs!NKF7","v":0},{"$f":"F_Inputs!NKG7","v":0},{"$f":"F_Inputs!NKH7","v":0},{"$f":"F_Inputs!NKI7","v":0},{"$f":"F_Inputs!NKJ7","v":0},{"$f":"F_Inputs!NKK7","v":0},{"$f":"F_Inputs!NKL7","v":0},{"$f":"F_Inputs!NKM7","v":0},{"$f":"F_Inputs!NKN7","v":0},{"$f":"F_Inputs!NKO7","v":0},{"$f":"F_Inputs!NKP7","v":0},{"$f":"F_Inputs!NKQ7","v":0},{"$f":"F_Inputs!NKR7","v":0},{"$f":"F_Inputs!NKS7","v":0},{"$f":"F_Inputs!NKT7","v":0},{"$f":"F_Inputs!NKU7","v":0},{"$f":"F_Inputs!NKV7","v":0},{"$f":"F_Inputs!NKW7","v":0},{"$f":"F_Inputs!NKX7","v":0},{"$f":"F_Inputs!NKY7","v":0},{"$f":"F_Inputs!NKZ7","v":0},{"$f":"F_Inputs!NLA7","v":0},{"$f":"F_Inputs!NLB7","v":0},{"$f":"F_Inputs!NLC7","v":0},{"$f":"F_Inputs!NLD7","v":0},{"$f":"F_Inputs!NLE7","v":0},{"$f":"F_Inputs!NLF7","v":0},{"$f":"F_Inputs!NLG7","v":0},{"$f":"F_Inputs!NLH7","v":0},{"$f":"F_Inputs!NLI7","v":0},{"$f":"F_Inputs!NLJ7","v":0},{"$f":"F_Inputs!NLK7","v":0},{"$f":"F_Inputs!NLL7","v":0},{"$f":"F_Inputs!NLM7","v":0},{"$f":"F_Inputs!NLN7","v":0},{"$f":"F_Inputs!NLO7","v":0},{"$f":"F_Inputs!NLP7","v":0},{"$f":"F_Inputs!NLQ7","v":0},{"$f":"F_Inputs!NLR7","v":0},{"$f":"F_Inputs!NLS7","v":0},{"$f":"F_Inputs!NLT7","v":0},{"$f":"F_Inputs!NLU7","v":0},{"$f":"F_Inputs!NLV7","v":0},{"$f":"F_Inputs!NLW7","v":0},{"$f":"F_Inputs!NLX7","v":0},{"$f":"F_Inputs!NLY7","v":0},{"$f":"F_Inputs!NLZ7","v":0},{"$f":"F_Inputs!NMA7","v":0},{"$f":"F_Inputs!NMB7","v":0},{"$f":"F_Inputs!NMC7","v":0},{"$f":"F_Inputs!NMD7","v":0},{"$f":"F_Inputs!NME7","v":0},{"$f":"F_Inputs!NMF7","v":0},{"$f":"F_Inputs!NMG7","v":0},{"$f":"F_Inputs!NMH7","v":0},{"$f":"F_Inputs!NMI7","v":0},{"$f":"F_Inputs!NMJ7","v":0},{"$f":"F_Inputs!NMK7","v":0},{"$f":"F_Inputs!NML7","v":0},{"$f":"F_Inputs!NMM7","v":0},{"$f":"F_Inputs!NMN7","v":0},{"$f":"F_Inputs!NMO7","v":0},{"$f":"F_Inputs!NMP7","v":0},{"$f":"F_Inputs!NMQ7","v":0},{"$f":"F_Inputs!NMR7","v":0},{"$f":"F_Inputs!NMS7","v":0},{"$f":"F_Inputs!NMT7","v":0},{"$f":"F_Inputs!NMU7","v":0},{"$f":"F_Inputs!NMV7","v":0},{"$f":"F_Inputs!NMW7","v":0},{"$f":"F_Inputs!NMX7","v":0},{"$f":"F_Inputs!NMY7","v":0},{"$f":"F_Inputs!NMZ7","v":0},{"$f":"F_Inputs!NNA7","v":0},{"$f":"F_Inputs!NNB7","v":0},{"$f":"F_Inputs!NNC7","v":0},{"$f":"F_Inputs!NND7","v":0},{"$f":"F_Inputs!NNE7","v":0},{"$f":"F_Inputs!NNF7","v":0},{"$f":"F_Inputs!NNG7","v":0},{"$f":"F_Inputs!NNH7","v":0},{"$f":"F_Inputs!NNI7","v":0},{"$f":"F_Inputs!NNJ7","v":0},{"$f":"F_Inputs!NNK7","v":0},{"$f":"F_Inputs!NNL7","v":0},{"$f":"F_Inputs!NNM7","v":0},{"$f":"F_Inputs!NNN7","v":0},{"$f":"F_Inputs!NNO7","v":0},{"$f":"F_Inputs!NNP7","v":0},{"$f":"F_Inputs!NNQ7","v":0},{"$f":"F_Inputs!NNR7","v":0},{"$f":"F_Inputs!NNS7","v":0},{"$f":"F_Inputs!NNT7","v":0},{"$f":"F_Inputs!NNU7","v":0},{"$f":"F_Inputs!NNV7","v":0},{"$f":"F_Inputs!NNW7","v":0},{"$f":"F_Inputs!NNX7","v":0},{"$f":"F_Inputs!NNY7","v":0},{"$f":"F_Inputs!NNZ7","v":0},{"$f":"F_Inputs!NOA7","v":0},{"$f":"F_Inputs!NOB7","v":0},{"$f":"F_Inputs!NOC7","v":0},{"$f":"F_Inputs!NOD7","v":0},{"$f":"F_Inputs!NOE7","v":0},{"$f":"F_Inputs!NOF7","v":0},{"$f":"F_Inputs!NOG7","v":0},{"$f":"F_Inputs!NOH7","v":0},{"$f":"F_Inputs!NOI7","v":0},{"$f":"F_Inputs!NOJ7","v":0},{"$f":"F_Inputs!NOK7","v":0},{"$f":"F_Inputs!NOL7","v":0},{"$f":"F_Inputs!NOM7","v":0},{"$f":"F_Inputs!NON7","v":0},{"$f":"F_Inputs!NOO7","v":0},{"$f":"F_Inputs!NOP7","v":0},{"$f":"F_Inputs!NOQ7","v":0},{"$f":"F_Inputs!NOR7","v":0},{"$f":"F_Inputs!NOS7","v":0},{"$f":"F_Inputs!NOT7","v":0},{"$f":"F_Inputs!NOU7","v":0},{"$f":"F_Inputs!NOV7","v":0},{"$f":"F_Inputs!NOW7","v":0},{"$f":"F_Inputs!NOX7","v":0},{"$f":"F_Inputs!NOY7","v":0},{"$f":"F_Inputs!NOZ7","v":0},{"$f":"F_Inputs!NPA7","v":0},{"$f":"F_Inputs!NPB7","v":0},{"$f":"F_Inputs!NPC7","v":0},{"$f":"F_Inputs!NPD7","v":0},{"$f":"F_Inputs!NPE7","v":0},{"$f":"F_Inputs!NPF7","v":0},{"$f":"F_Inputs!NPG7","v":0},{"$f":"F_Inputs!NPH7","v":0},{"$f":"F_Inputs!NPI7","v":0},{"$f":"F_Inputs!NPJ7","v":0},{"$f":"F_Inputs!NPK7","v":0},{"$f":"F_Inputs!NPL7","v":0},{"$f":"F_Inputs!NPM7","v":0},{"$f":"F_Inputs!NPN7","v":0},{"$f":"F_Inputs!NPO7","v":0},{"$f":"F_Inputs!NPP7","v":0},{"$f":"F_Inputs!NPQ7","v":0},{"$f":"F_Inputs!NPR7","v":0},{"$f":"F_Inputs!NPS7","v":0},{"$f":"F_Inputs!NPT7","v":0},{"$f":"F_Inputs!NPU7","v":0},{"$f":"F_Inputs!NPV7","v":0},{"$f":"F_Inputs!NPW7","v":0},{"$f":"F_Inputs!NPX7","v":0},{"$f":"F_Inputs!NPY7","v":0},{"$f":"F_Inputs!NPZ7","v":0},{"$f":"F_Inputs!NQA7","v":0},{"$f":"F_Inputs!NQB7","v":0},{"$f":"F_Inputs!NQC7","v":0},{"$f":"F_Inputs!NQD7","v":0},{"$f":"F_Inputs!NQE7","v":0},{"$f":"F_Inputs!NQF7","v":0},{"$f":"F_Inputs!NQG7","v":0},{"$f":"F_Inputs!NQH7","v":0},{"$f":"F_Inputs!NQI7","v":0},{"$f":"F_Inputs!NQJ7","v":0},{"$f":"F_Inputs!NQK7","v":0},{"$f":"F_Inputs!NQL7","v":0},{"$f":"F_Inputs!NQM7","v":0},{"$f":"F_Inputs!NQN7","v":0},{"$f":"F_Inputs!NQO7","v":0},{"$f":"F_Inputs!NQP7","v":0},{"$f":"F_Inputs!NQQ7","v":0},{"$f":"F_Inputs!NQR7","v":0},{"$f":"F_Inputs!NQS7","v":0},{"$f":"F_Inputs!NQT7","v":0},{"$f":"F_Inputs!NQU7","v":0},{"$f":"F_Inputs!NQV7","v":0},{"$f":"F_Inputs!NQW7","v":0},{"$f":"F_Inputs!NQX7","v":0},{"$f":"F_Inputs!NQY7","v":0},{"$f":"F_Inputs!NQZ7","v":0},{"$f":"F_Inputs!NRA7","v":0},{"$f":"F_Inputs!NRB7","v":0},{"$f":"F_Inputs!NRC7","v":0},{"$f":"F_Inputs!NRD7","v":0},{"$f":"F_Inputs!NRE7","v":0},{"$f":"F_Inputs!NRF7","v":0},{"$f":"F_Inputs!NRG7","v":0},{"$f":"F_Inputs!NRH7","v":0},{"$f":"F_Inputs!NRI7","v":0},{"$f":"F_Inputs!NRJ7","v":0},{"$f":"F_Inputs!NRK7","v":0},{"$f":"F_Inputs!NRL7","v":0},{"$f":"F_Inputs!NRM7","v":0},{"$f":"F_Inputs!NRN7","v":0},{"$f":"F_Inputs!NRO7","v":0},{"$f":"F_Inputs!NRP7","v":0},{"$f":"F_Inputs!NRQ7","v":0},{"$f":"F_Inputs!NRR7","v":0},{"$f":"F_Inputs!NRS7","v":0},{"$f":"F_Inputs!NRT7","v":0},{"$f":"F_Inputs!NRU7","v":0},{"$f":"F_Inputs!NRV7","v":0},{"$f":"F_Inputs!NRW7","v":0},{"$f":"F_Inputs!NRX7","v":0},{"$f":"F_Inputs!NRY7","v":0},{"$f":"F_Inputs!NRZ7","v":0},{"$f":"F_Inputs!NSA7","v":0},{"$f":"F_Inputs!NSB7","v":0},{"$f":"F_Inputs!NSC7","v":0},{"$f":"F_Inputs!NSD7","v":0},{"$f":"F_Inputs!NSE7","v":0},{"$f":"F_Inputs!NSF7","v":0},{"$f":"F_Inputs!NSG7","v":0},{"$f":"F_Inputs!NSH7","v":0},{"$f":"F_Inputs!NSI7","v":0},{"$f":"F_Inputs!NSJ7","v":0},{"$f":"F_Inputs!NSK7","v":0},{"$f":"F_Inputs!NSL7","v":0},{"$f":"F_Inputs!NSM7","v":0},{"$f":"F_Inputs!NSN7","v":0},{"$f":"F_Inputs!NSO7","v":0},{"$f":"F_Inputs!NSP7","v":0},{"$f":"F_Inputs!NSQ7","v":0},{"$f":"F_Inputs!NSR7","v":0},{"$f":"F_Inputs!NSS7","v":0},{"$f":"F_Inputs!NST7","v":0},{"$f":"F_Inputs!NSU7","v":0},{"$f":"F_Inputs!NSV7","v":0},{"$f":"F_Inputs!NSW7","v":0},{"$f":"F_Inputs!NSX7","v":0},{"$f":"F_Inputs!NSY7","v":0},{"$f":"F_Inputs!NSZ7","v":0},{"$f":"F_Inputs!NTA7","v":0},{"$f":"F_Inputs!NTB7","v":0},{"$f":"F_Inputs!NTC7","v":0},{"$f":"F_Inputs!NTD7","v":0},{"$f":"F_Inputs!NTE7","v":0},{"$f":"F_Inputs!NTF7","v":0},{"$f":"F_Inputs!NTG7","v":0},{"$f":"F_Inputs!NTH7","v":0},{"$f":"F_Inputs!NTI7","v":0},{"$f":"F_Inputs!NTJ7","v":0},{"$f":"F_Inputs!NTK7","v":0},{"$f":"F_Inputs!NTL7","v":0},{"$f":"F_Inputs!NTM7","v":0},{"$f":"F_Inputs!NTN7","v":0},{"$f":"F_Inputs!NTO7","v":0},{"$f":"F_Inputs!NTP7","v":0},{"$f":"F_Inputs!NTQ7","v":0},{"$f":"F_Inputs!NTR7","v":0},{"$f":"F_Inputs!NTS7","v":0},{"$f":"F_Inputs!NTT7","v":0},{"$f":"F_Inputs!NTU7","v":0},{"$f":"F_Inputs!NTV7","v":0},{"$f":"F_Inputs!NTW7","v":0},{"$f":"F_Inputs!NTX7","v":0},{"$f":"F_Inputs!NTY7","v":0},{"$f":"F_Inputs!NTZ7","v":0},{"$f":"F_Inputs!NUA7","v":0},{"$f":"F_Inputs!NUB7","v":0},{"$f":"F_Inputs!NUC7","v":0},{"$f":"F_Inputs!NUD7","v":0},{"$f":"F_Inputs!NUE7","v":0},{"$f":"F_Inputs!NUF7","v":0},{"$f":"F_Inputs!NUG7","v":0},{"$f":"F_Inputs!NUH7","v":0},{"$f":"F_Inputs!NUI7","v":0},{"$f":"F_Inputs!NUJ7","v":0},{"$f":"F_Inputs!NUK7","v":0},{"$f":"F_Inputs!NUL7","v":0},{"$f":"F_Inputs!NUM7","v":0},{"$f":"F_Inputs!NUN7","v":0},{"$f":"F_Inputs!NUO7","v":0},{"$f":"F_Inputs!NUP7","v":0},{"$f":"F_Inputs!NUQ7","v":0},{"$f":"F_Inputs!NUR7","v":0},{"$f":"F_Inputs!NUS7","v":0},{"$f":"F_Inputs!NUT7","v":0},{"$f":"F_Inputs!NUU7","v":0},{"$f":"F_Inputs!NUV7","v":0},{"$f":"F_Inputs!NUW7","v":0},{"$f":"F_Inputs!NUX7","v":0},{"$f":"F_Inputs!NUY7","v":0},{"$f":"F_Inputs!NUZ7","v":0},{"$f":"F_Inputs!NVA7","v":0},{"$f":"F_Inputs!NVB7","v":0},{"$f":"F_Inputs!NVC7","v":0},{"$f":"F_Inputs!NVD7","v":0},{"$f":"F_Inputs!NVE7","v":0},{"$f":"F_Inputs!NVF7","v":0},{"$f":"F_Inputs!NVG7","v":0},{"$f":"F_Inputs!NVH7","v":0},{"$f":"F_Inputs!NVI7","v":0},{"$f":"F_Inputs!NVJ7","v":0},{"$f":"F_Inputs!NVK7","v":0},{"$f":"F_Inputs!NVL7","v":0},{"$f":"F_Inputs!NVM7","v":0},{"$f":"F_Inputs!NVN7","v":0},{"$f":"F_Inputs!NVO7","v":0},{"$f":"F_Inputs!NVP7","v":0},{"$f":"F_Inputs!NVQ7","v":0},{"$f":"F_Inputs!NVR7","v":0},{"$f":"F_Inputs!NVS7","v":0},{"$f":"F_Inputs!NVT7","v":0},{"$f":"F_Inputs!NVU7","v":0},{"$f":"F_Inputs!NVV7","v":0},{"$f":"F_Inputs!NVW7","v":0},{"$f":"F_Inputs!NVX7","v":0},{"$f":"F_Inputs!NVY7","v":0},{"$f":"F_Inputs!NVZ7","v":0},{"$f":"F_Inputs!NWA7","v":0},{"$f":"F_Inputs!NWB7","v":0},{"$f":"F_Inputs!NWC7","v":0},{"$f":"F_Inputs!NWD7","v":0},{"$f":"F_Inputs!NWE7","v":0},{"$f":"F_Inputs!NWF7","v":0},{"$f":"F_Inputs!NWG7","v":0},{"$f":"F_Inputs!NWH7","v":0},{"$f":"F_Inputs!NWI7","v":0},{"$f":"F_Inputs!NWJ7","v":0},{"$f":"F_Inputs!NWK7","v":0},{"$f":"F_Inputs!NWL7","v":0},{"$f":"F_Inputs!NWM7","v":0},{"$f":"F_Inputs!NWN7","v":0},{"$f":"F_Inputs!NWO7","v":0},{"$f":"F_Inputs!NWP7","v":0},{"$f":"F_Inputs!NWQ7","v":0},{"$f":"F_Inputs!NWR7","v":0},{"$f":"F_Inputs!NWS7","v":0},{"$f":"F_Inputs!NWT7","v":0},{"$f":"F_Inputs!NWU7","v":0},{"$f":"F_Inputs!NWV7","v":0},{"$f":"F_Inputs!NWW7","v":0},{"$f":"F_Inputs!NWX7","v":0},{"$f":"F_Inputs!NWY7","v":0},{"$f":"F_Inputs!NWZ7","v":0},{"$f":"F_Inputs!NXA7","v":0},{"$f":"F_Inputs!NXB7","v":0},{"$f":"F_Inputs!NXC7","v":0},{"$f":"F_Inputs!NXD7","v":0},{"$f":"F_Inputs!NXE7","v":0},{"$f":"F_Inputs!NXF7","v":0},{"$f":"F_Inputs!NXG7","v":0},{"$f":"F_Inputs!NXH7","v":0},{"$f":"F_Inputs!NXI7","v":0},{"$f":"F_Inputs!NXJ7","v":0},{"$f":"F_Inputs!NXK7","v":0},{"$f":"F_Inputs!NXL7","v":0},{"$f":"F_Inputs!NXM7","v":0},{"$f":"F_Inputs!NXN7","v":0},{"$f":"F_Inputs!NXO7","v":0},{"$f":"F_Inputs!NXP7","v":0},{"$f":"F_Inputs!NXQ7","v":0},{"$f":"F_Inputs!NXR7","v":0},{"$f":"F_Inputs!NXS7","v":0},{"$f":"F_Inputs!NXT7","v":0},{"$f":"F_Inputs!NXU7","v":0},{"$f":"F_Inputs!NXV7","v":0},{"$f":"F_Inputs!NXW7","v":0},{"$f":"F_Inputs!NXX7","v":0},{"$f":"F_Inputs!NXY7","v":0},{"$f":"F_Inputs!NXZ7","v":0},{"$f":"F_Inputs!NYA7","v":0},{"$f":"F_Inputs!NYB7","v":0},{"$f":"F_Inputs!NYC7","v":0},{"$f":"F_Inputs!NYD7","v":0},{"$f":"F_Inputs!NYE7","v":0},{"$f":"F_Inputs!NYF7","v":0},{"$f":"F_Inputs!NYG7","v":0},{"$f":"F_Inputs!NYH7","v":0},{"$f":"F_Inputs!NYI7","v":0},{"$f":"F_Inputs!NYJ7","v":0},{"$f":"F_Inputs!NYK7","v":0},{"$f":"F_Inputs!NYL7","v":0},{"$f":"F_Inputs!NYM7","v":0},{"$f":"F_Inputs!NYN7","v":0},{"$f":"F_Inputs!NYO7","v":0},{"$f":"F_Inputs!NYP7","v":0},{"$f":"F_Inputs!NYQ7","v":0},{"$f":"F_Inputs!NYR7","v":0},{"$f":"F_Inputs!NYS7","v":0},{"$f":"F_Inputs!NYT7","v":0},{"$f":"F_Inputs!NYU7","v":0},{"$f":"F_Inputs!NYV7","v":0},{"$f":"F_Inputs!NYW7","v":0},{"$f":"F_Inputs!NYX7","v":0},{"$f":"F_Inputs!NYY7","v":0},{"$f":"F_Inputs!NYZ7","v":0},{"$f":"F_Inputs!NZA7","v":0},{"$f":"F_Inputs!NZB7","v":0},{"$f":"F_Inputs!NZC7","v":0},{"$f":"F_Inputs!NZD7","v":0},{"$f":"F_Inputs!NZE7","v":0},{"$f":"F_Inputs!NZF7","v":0},{"$f":"F_Inputs!NZG7","v":0},{"$f":"F_Inputs!NZH7","v":0},{"$f":"F_Inputs!NZI7","v":0},{"$f":"F_Inputs!NZJ7","v":0},{"$f":"F_Inputs!NZK7","v":0},{"$f":"F_Inputs!NZL7","v":0},{"$f":"F_Inputs!NZM7","v":0},{"$f":"F_Inputs!NZN7","v":0},{"$f":"F_Inputs!NZO7","v":0},{"$f":"F_Inputs!NZP7","v":0},{"$f":"F_Inputs!NZQ7","v":0},{"$f":"F_Inputs!NZR7","v":0},{"$f":"F_Inputs!NZS7","v":0},{"$f":"F_Inputs!NZT7","v":0},{"$f":"F_Inputs!NZU7","v":0},{"$f":"F_Inputs!NZV7","v":0},{"$f":"F_Inputs!NZW7","v":0},{"$f":"F_Inputs!NZX7","v":0},{"$f":"F_Inputs!NZY7","v":0},{"$f":"F_Inputs!NZZ7","v":0},{"$f":"F_Inputs!OAA7","v":0},{"$f":"F_Inputs!OAB7","v":0},{"$f":"F_Inputs!OAC7","v":0},{"$f":"F_Inputs!OAD7","v":0},{"$f":"F_Inputs!OAE7","v":0},{"$f":"F_Inputs!OAF7","v":0},{"$f":"F_Inputs!OAG7","v":0},{"$f":"F_Inputs!OAH7","v":0},{"$f":"F_Inputs!OAI7","v":0},{"$f":"F_Inputs!OAJ7","v":0},{"$f":"F_Inputs!OAK7","v":0},{"$f":"F_Inputs!OAL7","v":0},{"$f":"F_Inputs!OAM7","v":0},{"$f":"F_Inputs!OAN7","v":0},{"$f":"F_Inputs!OAO7","v":0},{"$f":"F_Inputs!OAP7","v":0},{"$f":"F_Inputs!OAQ7","v":0},{"$f":"F_Inputs!OAR7","v":0},{"$f":"F_Inputs!OAS7","v":0},{"$f":"F_Inputs!OAT7","v":0},{"$f":"F_Inputs!OAU7","v":0},{"$f":"F_Inputs!OAV7","v":0},{"$f":"F_Inputs!OAW7","v":0},{"$f":"F_Inputs!OAX7","v":0},{"$f":"F_Inputs!OAY7","v":0},{"$f":"F_Inputs!OAZ7","v":0},{"$f":"F_Inputs!OBA7","v":0},{"$f":"F_Inputs!OBB7","v":0},{"$f":"F_Inputs!OBC7","v":0},{"$f":"F_Inputs!OBD7","v":0},{"$f":"F_Inputs!OBE7","v":0},{"$f":"F_Inputs!OBF7","v":0},{"$f":"F_Inputs!OBG7","v":0},{"$f":"F_Inputs!OBH7","v":0},{"$f":"F_Inputs!OBI7","v":0},{"$f":"F_Inputs!OBJ7","v":0},{"$f":"F_Inputs!OBK7","v":0},{"$f":"F_Inputs!OBL7","v":0},{"$f":"F_Inputs!OBM7","v":0},{"$f":"F_Inputs!OBN7","v":0},{"$f":"F_Inputs!OBO7","v":0},{"$f":"F_Inputs!OBP7","v":0},{"$f":"F_Inputs!OBQ7","v":0},{"$f":"F_Inputs!OBR7","v":0},{"$f":"F_Inputs!OBS7","v":0},{"$f":"F_Inputs!OBT7","v":0},{"$f":"F_Inputs!OBU7","v":0},{"$f":"F_Inputs!OBV7","v":0},{"$f":"F_Inputs!OBW7","v":0},{"$f":"F_Inputs!OBX7","v":0},{"$f":"F_Inputs!OBY7","v":0},{"$f":"F_Inputs!OBZ7","v":0},{"$f":"F_Inputs!OCA7","v":0},{"$f":"F_Inputs!OCB7","v":0},{"$f":"F_Inputs!OCC7","v":0},{"$f":"F_Inputs!OCD7","v":0},{"$f":"F_Inputs!OCE7","v":0},{"$f":"F_Inputs!OCF7","v":0},{"$f":"F_Inputs!OCG7","v":0},{"$f":"F_Inputs!OCH7","v":0},{"$f":"F_Inputs!OCI7","v":0},{"$f":"F_Inputs!OCJ7","v":0},{"$f":"F_Inputs!OCK7","v":0},{"$f":"F_Inputs!OCL7","v":0},{"$f":"F_Inputs!OCM7","v":0},{"$f":"F_Inputs!OCN7","v":0},{"$f":"F_Inputs!OCO7","v":0},{"$f":"F_Inputs!OCP7","v":0},{"$f":"F_Inputs!OCQ7","v":0},{"$f":"F_Inputs!OCR7","v":0},{"$f":"F_Inputs!OCS7","v":0},{"$f":"F_Inputs!OCT7","v":0},{"$f":"F_Inputs!OCU7","v":0},{"$f":"F_Inputs!OCV7","v":0},{"$f":"F_Inputs!OCW7","v":0},{"$f":"F_Inputs!OCX7","v":0},{"$f":"F_Inputs!OCY7","v":0},{"$f":"F_Inputs!OCZ7","v":0},{"$f":"F_Inputs!ODA7","v":0},{"$f":"F_Inputs!ODB7","v":0},{"$f":"F_Inputs!ODC7","v":0},{"$f":"F_Inputs!ODD7","v":0},{"$f":"F_Inputs!ODE7","v":0},{"$f":"F_Inputs!ODF7","v":0},{"$f":"F_Inputs!ODG7","v":0},{"$f":"F_Inputs!ODH7","v":0},{"$f":"F_Inputs!ODI7","v":0},{"$f":"F_Inputs!ODJ7","v":0},{"$f":"F_Inputs!ODK7","v":0},{"$f":"F_Inputs!ODL7","v":0},{"$f":"F_Inputs!ODM7","v":0},{"$f":"F_Inputs!ODN7","v":0},{"$f":"F_Inputs!ODO7","v":0},{"$f":"F_Inputs!ODP7","v":0},{"$f":"F_Inputs!ODQ7","v":0},{"$f":"F_Inputs!ODR7","v":0},{"$f":"F_Inputs!ODS7","v":0},{"$f":"F_Inputs!ODT7","v":0},{"$f":"F_Inputs!ODU7","v":0},{"$f":"F_Inputs!ODV7","v":0},{"$f":"F_Inputs!ODW7","v":0},{"$f":"F_Inputs!ODX7","v":0},{"$f":"F_Inputs!ODY7","v":0},{"$f":"F_Inputs!ODZ7","v":0},{"$f":"F_Inputs!OEA7","v":0},{"$f":"F_Inputs!OEB7","v":0},{"$f":"F_Inputs!OEC7","v":0},{"$f":"F_Inputs!OED7","v":0},{"$f":"F_Inputs!OEE7","v":0},{"$f":"F_Inputs!OEF7","v":0},{"$f":"F_Inputs!OEG7","v":0},{"$f":"F_Inputs!OEH7","v":0},{"$f":"F_Inputs!OEI7","v":0},{"$f":"F_Inputs!OEJ7","v":0},{"$f":"F_Inputs!OEK7","v":0},{"$f":"F_Inputs!OEL7","v":0},{"$f":"F_Inputs!OEM7","v":0},{"$f":"F_Inputs!OEN7","v":0},{"$f":"F_Inputs!OEO7","v":0},{"$f":"F_Inputs!OEP7","v":0},{"$f":"F_Inputs!OEQ7","v":0},{"$f":"F_Inputs!OER7","v":0},{"$f":"F_Inputs!OES7","v":0},{"$f":"F_Inputs!OET7","v":0},{"$f":"F_Inputs!OEU7","v":0},{"$f":"F_Inputs!OEV7","v":0},{"$f":"F_Inputs!OEW7","v":0},{"$f":"F_Inputs!OEX7","v":0},{"$f":"F_Inputs!OEY7","v":0},{"$f":"F_Inputs!OEZ7","v":0},{"$f":"F_Inputs!OFA7","v":0},{"$f":"F_Inputs!OFB7","v":0},{"$f":"F_Inputs!OFC7","v":0},{"$f":"F_Inputs!OFD7","v":0},{"$f":"F_Inputs!OFE7","v":0},{"$f":"F_Inputs!OFF7","v":0},{"$f":"F_Inputs!OFG7","v":0},{"$f":"F_Inputs!OFH7","v":0},{"$f":"F_Inputs!OFI7","v":0},{"$f":"F_Inputs!OFJ7","v":0},{"$f":"F_Inputs!OFK7","v":0},{"$f":"F_Inputs!OFL7","v":0},{"$f":"F_Inputs!OFM7","v":0},{"$f":"F_Inputs!OFN7","v":0},{"$f":"F_Inputs!OFO7","v":0},{"$f":"F_Inputs!OFP7","v":0},{"$f":"F_Inputs!OFQ7","v":0},{"$f":"F_Inputs!OFR7","v":0},{"$f":"F_Inputs!OFS7","v":0},{"$f":"F_Inputs!OFT7","v":0},{"$f":"F_Inputs!OFU7","v":0},{"$f":"F_Inputs!OFV7","v":0},{"$f":"F_Inputs!OFW7","v":0},{"$f":"F_Inputs!OFX7","v":0},{"$f":"F_Inputs!OFY7","v":0},{"$f":"F_Inputs!OFZ7","v":0},{"$f":"F_Inputs!OGA7","v":0},{"$f":"F_Inputs!OGB7","v":0},{"$f":"F_Inputs!OGC7","v":0},{"$f":"F_Inputs!OGD7","v":0},{"$f":"F_Inputs!OGE7","v":0},{"$f":"F_Inputs!OGF7","v":0},{"$f":"F_Inputs!OGG7","v":0},{"$f":"F_Inputs!OGH7","v":0},{"$f":"F_Inputs!OGI7","v":0},{"$f":"F_Inputs!OGJ7","v":0},{"$f":"F_Inputs!OGK7","v":0},{"$f":"F_Inputs!OGL7","v":0},{"$f":"F_Inputs!OGM7","v":0},{"$f":"F_Inputs!OGN7","v":0},{"$f":"F_Inputs!OGO7","v":0},{"$f":"F_Inputs!OGP7","v":0},{"$f":"F_Inputs!OGQ7","v":0},{"$f":"F_Inputs!OGR7","v":0},{"$f":"F_Inputs!OGS7","v":0},{"$f":"F_Inputs!OGT7","v":0},{"$f":"F_Inputs!OGU7","v":0},{"$f":"F_Inputs!OGV7","v":0},{"$f":"F_Inputs!OGW7","v":0},{"$f":"F_Inputs!OGX7","v":0},{"$f":"F_Inputs!OGY7","v":0},{"$f":"F_Inputs!OGZ7","v":0},{"$f":"F_Inputs!OHA7","v":0},{"$f":"F_Inputs!OHB7","v":0},{"$f":"F_Inputs!OHC7","v":0},{"$f":"F_Inputs!OHD7","v":0},{"$f":"F_Inputs!OHE7","v":0},{"$f":"F_Inputs!OHF7","v":0},{"$f":"F_Inputs!OHG7","v":0},{"$f":"F_Inputs!OHH7","v":0},{"$f":"F_Inputs!OHI7","v":0},{"$f":"F_Inputs!OHJ7","v":0},{"$f":"F_Inputs!OHK7","v":0},{"$f":"F_Inputs!OHL7","v":0},{"$f":"F_Inputs!OHM7","v":0},{"$f":"F_Inputs!OHN7","v":0},{"$f":"F_Inputs!OHO7","v":0},{"$f":"F_Inputs!OHP7","v":0},{"$f":"F_Inputs!OHQ7","v":0},{"$f":"F_Inputs!OHR7","v":0},{"$f":"F_Inputs!OHS7","v":0},{"$f":"F_Inputs!OHT7","v":0},{"$f":"F_Inputs!OHU7","v":0},{"$f":"F_Inputs!OHV7","v":0},{"$f":"F_Inputs!OHW7","v":0},{"$f":"F_Inputs!OHX7","v":0},{"$f":"F_Inputs!OHY7","v":0},{"$f":"F_Inputs!OHZ7","v":0},{"$f":"F_Inputs!OIA7","v":0},{"$f":"F_Inputs!OIB7","v":0},{"$f":"F_Inputs!OIC7","v":0},{"$f":"F_Inputs!OID7","v":0},{"$f":"F_Inputs!OIE7","v":0},{"$f":"F_Inputs!OIF7","v":0},{"$f":"F_Inputs!OIG7","v":0},{"$f":"F_Inputs!OIH7","v":0},{"$f":"F_Inputs!OII7","v":0},{"$f":"F_Inputs!OIJ7","v":0},{"$f":"F_Inputs!OIK7","v":0},{"$f":"F_Inputs!OIL7","v":0},{"$f":"F_Inputs!OIM7","v":0},{"$f":"F_Inputs!OIN7","v":0},{"$f":"F_Inputs!OIO7","v":0},{"$f":"F_Inputs!OIP7","v":0},{"$f":"F_Inputs!OIQ7","v":0},{"$f":"F_Inputs!OIR7","v":0},{"$f":"F_Inputs!OIS7","v":0},{"$f":"F_Inputs!OIT7","v":0},{"$f":"F_Inputs!OIU7","v":0},{"$f":"F_Inputs!OIV7","v":0},{"$f":"F_Inputs!OIW7","v":0},{"$f":"F_Inputs!OIX7","v":0},{"$f":"F_Inputs!OIY7","v":0},{"$f":"F_Inputs!OIZ7","v":0},{"$f":"F_Inputs!OJA7","v":0},{"$f":"F_Inputs!OJB7","v":0},{"$f":"F_Inputs!OJC7","v":0},{"$f":"F_Inputs!OJD7","v":0},{"$f":"F_Inputs!OJE7","v":0},{"$f":"F_Inputs!OJF7","v":0},{"$f":"F_Inputs!OJG7","v":0},{"$f":"F_Inputs!OJH7","v":0},{"$f":"F_Inputs!OJI7","v":0},{"$f":"F_Inputs!OJJ7","v":0},{"$f":"F_Inputs!OJK7","v":0},{"$f":"F_Inputs!OJL7","v":0},{"$f":"F_Inputs!OJM7","v":0},{"$f":"F_Inputs!OJN7","v":0},{"$f":"F_Inputs!OJO7","v":0},{"$f":"F_Inputs!OJP7","v":0},{"$f":"F_Inputs!OJQ7","v":0},{"$f":"F_Inputs!OJR7","v":0},{"$f":"F_Inputs!OJS7","v":0},{"$f":"F_Inputs!OJT7","v":0},{"$f":"F_Inputs!OJU7","v":0},{"$f":"F_Inputs!OJV7","v":0},{"$f":"F_Inputs!OJW7","v":0},{"$f":"F_Inputs!OJX7","v":0},{"$f":"F_Inputs!OJY7","v":0},{"$f":"F_Inputs!OJZ7","v":0},{"$f":"F_Inputs!OKA7","v":0},{"$f":"F_Inputs!OKB7","v":0},{"$f":"F_Inputs!OKC7","v":0},{"$f":"F_Inputs!OKD7","v":0},{"$f":"F_Inputs!OKE7","v":0},{"$f":"F_Inputs!OKF7","v":0},{"$f":"F_Inputs!OKG7","v":0},{"$f":"F_Inputs!OKH7","v":0},{"$f":"F_Inputs!OKI7","v":0},{"$f":"F_Inputs!OKJ7","v":0},{"$f":"F_Inputs!OKK7","v":0},{"$f":"F_Inputs!OKL7","v":0},{"$f":"F_Inputs!OKM7","v":0},{"$f":"F_Inputs!OKN7","v":0},{"$f":"F_Inputs!OKO7","v":0},{"$f":"F_Inputs!OKP7","v":0},{"$f":"F_Inputs!OKQ7","v":0},{"$f":"F_Inputs!OKR7","v":0},{"$f":"F_Inputs!OKS7","v":0},{"$f":"F_Inputs!OKT7","v":0},{"$f":"F_Inputs!OKU7","v":0},{"$f":"F_Inputs!OKV7","v":0},{"$f":"F_Inputs!OKW7","v":0},{"$f":"F_Inputs!OKX7","v":0},{"$f":"F_Inputs!OKY7","v":0},{"$f":"F_Inputs!OKZ7","v":0},{"$f":"F_Inputs!OLA7","v":0},{"$f":"F_Inputs!OLB7","v":0},{"$f":"F_Inputs!OLC7","v":0},{"$f":"F_Inputs!OLD7","v":0},{"$f":"F_Inputs!OLE7","v":0},{"$f":"F_Inputs!OLF7","v":0},{"$f":"F_Inputs!OLG7","v":0},{"$f":"F_Inputs!OLH7","v":0},{"$f":"F_Inputs!OLI7","v":0},{"$f":"F_Inputs!OLJ7","v":0},{"$f":"F_Inputs!OLK7","v":0},{"$f":"F_Inputs!OLL7","v":0},{"$f":"F_Inputs!OLM7","v":0},{"$f":"F_Inputs!OLN7","v":0},{"$f":"F_Inputs!OLO7","v":0},{"$f":"F_Inputs!OLP7","v":0},{"$f":"F_Inputs!OLQ7","v":0},{"$f":"F_Inputs!OLR7","v":0},{"$f":"F_Inputs!OLS7","v":0},{"$f":"F_Inputs!OLT7","v":0},{"$f":"F_Inputs!OLU7","v":0},{"$f":"F_Inputs!OLV7","v":0},{"$f":"F_Inputs!OLW7","v":0},{"$f":"F_Inputs!OLX7","v":0},{"$f":"F_Inputs!OLY7","v":0},{"$f":"F_Inputs!OLZ7","v":0},{"$f":"F_Inputs!OMA7","v":0},{"$f":"F_Inputs!OMB7","v":0},{"$f":"F_Inputs!OMC7","v":0},{"$f":"F_Inputs!OMD7","v":0},{"$f":"F_Inputs!OME7","v":0},{"$f":"F_Inputs!OMF7","v":0},{"$f":"F_Inputs!OMG7","v":0},{"$f":"F_Inputs!OMH7","v":0},{"$f":"F_Inputs!OMI7","v":0},{"$f":"F_Inputs!OMJ7","v":0},{"$f":"F_Inputs!OMK7","v":0},{"$f":"F_Inputs!OML7","v":0},{"$f":"F_Inputs!OMM7","v":0},{"$f":"F_Inputs!OMN7","v":0},{"$f":"F_Inputs!OMO7","v":0},{"$f":"F_Inputs!OMP7","v":0},{"$f":"F_Inputs!OMQ7","v":0},{"$f":"F_Inputs!OMR7","v":0},{"$f":"F_Inputs!OMS7","v":0},{"$f":"F_Inputs!OMT7","v":0},{"$f":"F_Inputs!OMU7","v":0},{"$f":"F_Inputs!OMV7","v":0},{"$f":"F_Inputs!OMW7","v":0},{"$f":"F_Inputs!OMX7","v":0},{"$f":"F_Inputs!OMY7","v":0},{"$f":"F_Inputs!OMZ7","v":0},{"$f":"F_Inputs!ONA7","v":0},{"$f":"F_Inputs!ONB7","v":0},{"$f":"F_Inputs!ONC7","v":0},{"$f":"F_Inputs!OND7","v":0},{"$f":"F_Inputs!ONE7","v":0},{"$f":"F_Inputs!ONF7","v":0},{"$f":"F_Inputs!ONG7","v":0},{"$f":"F_Inputs!ONH7","v":0},{"$f":"F_Inputs!ONI7","v":0},{"$f":"F_Inputs!ONJ7","v":0},{"$f":"F_Inputs!ONK7","v":0},{"$f":"F_Inputs!ONL7","v":0},{"$f":"F_Inputs!ONM7","v":0},{"$f":"F_Inputs!ONN7","v":0},{"$f":"F_Inputs!ONO7","v":0},{"$f":"F_Inputs!ONP7","v":0},{"$f":"F_Inputs!ONQ7","v":0},{"$f":"F_Inputs!ONR7","v":0},{"$f":"F_Inputs!ONS7","v":0},{"$f":"F_Inputs!ONT7","v":0},{"$f":"F_Inputs!ONU7","v":0},{"$f":"F_Inputs!ONV7","v":0},{"$f":"F_Inputs!ONW7","v":0},{"$f":"F_Inputs!ONX7","v":0},{"$f":"F_Inputs!ONY7","v":0},{"$f":"F_Inputs!ONZ7","v":0},{"$f":"F_Inputs!OOA7","v":0},{"$f":"F_Inputs!OOB7","v":0},{"$f":"F_Inputs!OOC7","v":0},{"$f":"F_Inputs!OOD7","v":0},{"$f":"F_Inputs!OOE7","v":0},{"$f":"F_Inputs!OOF7","v":0},{"$f":"F_Inputs!OOG7","v":0},{"$f":"F_Inputs!OOH7","v":0},{"$f":"F_Inputs!OOI7","v":0},{"$f":"F_Inputs!OOJ7","v":0},{"$f":"F_Inputs!OOK7","v":0},{"$f":"F_Inputs!OOL7","v":0},{"$f":"F_Inputs!OOM7","v":0},{"$f":"F_Inputs!OON7","v":0},{"$f":"F_Inputs!OOO7","v":0},{"$f":"F_Inputs!OOP7","v":0},{"$f":"F_Inputs!OOQ7","v":0},{"$f":"F_Inputs!OOR7","v":0},{"$f":"F_Inputs!OOS7","v":0},{"$f":"F_Inputs!OOT7","v":0},{"$f":"F_Inputs!OOU7","v":0},{"$f":"F_Inputs!OOV7","v":0},{"$f":"F_Inputs!OOW7","v":0},{"$f":"F_Inputs!OOX7","v":0},{"$f":"F_Inputs!OOY7","v":0},{"$f":"F_Inputs!OOZ7","v":0},{"$f":"F_Inputs!OPA7","v":0},{"$f":"F_Inputs!OPB7","v":0},{"$f":"F_Inputs!OPC7","v":0},{"$f":"F_Inputs!OPD7","v":0},{"$f":"F_Inputs!OPE7","v":0},{"$f":"F_Inputs!OPF7","v":0},{"$f":"F_Inputs!OPG7","v":0},{"$f":"F_Inputs!OPH7","v":0},{"$f":"F_Inputs!OPI7","v":0},{"$f":"F_Inputs!OPJ7","v":0},{"$f":"F_Inputs!OPK7","v":0},{"$f":"F_Inputs!OPL7","v":0},{"$f":"F_Inputs!OPM7","v":0},{"$f":"F_Inputs!OPN7","v":0},{"$f":"F_Inputs!OPO7","v":0},{"$f":"F_Inputs!OPP7","v":0},{"$f":"F_Inputs!OPQ7","v":0},{"$f":"F_Inputs!OPR7","v":0},{"$f":"F_Inputs!OPS7","v":0},{"$f":"F_Inputs!OPT7","v":0},{"$f":"F_Inputs!OPU7","v":0},{"$f":"F_Inputs!OPV7","v":0},{"$f":"F_Inputs!OPW7","v":0},{"$f":"F_Inputs!OPX7","v":0},{"$f":"F_Inputs!OPY7","v":0},{"$f":"F_Inputs!OPZ7","v":0},{"$f":"F_Inputs!OQA7","v":0},{"$f":"F_Inputs!OQB7","v":0},{"$f":"F_Inputs!OQC7","v":0},{"$f":"F_Inputs!OQD7","v":0},{"$f":"F_Inputs!OQE7","v":0},{"$f":"F_Inputs!OQF7","v":0},{"$f":"F_Inputs!OQG7","v":0},{"$f":"F_Inputs!OQH7","v":0},{"$f":"F_Inputs!OQI7","v":0},{"$f":"F_Inputs!OQJ7","v":0},{"$f":"F_Inputs!OQK7","v":0},{"$f":"F_Inputs!OQL7","v":0},{"$f":"F_Inputs!OQM7","v":0},{"$f":"F_Inputs!OQN7","v":0},{"$f":"F_Inputs!OQO7","v":0},{"$f":"F_Inputs!OQP7","v":0},{"$f":"F_Inputs!OQQ7","v":0},{"$f":"F_Inputs!OQR7","v":0},{"$f":"F_Inputs!OQS7","v":0},{"$f":"F_Inputs!OQT7","v":0},{"$f":"F_Inputs!OQU7","v":0},{"$f":"F_Inputs!OQV7","v":0},{"$f":"F_Inputs!OQW7","v":0},{"$f":"F_Inputs!OQX7","v":0},{"$f":"F_Inputs!OQY7","v":0},{"$f":"F_Inputs!OQZ7","v":0},{"$f":"F_Inputs!ORA7","v":0},{"$f":"F_Inputs!ORB7","v":0},{"$f":"F_Inputs!ORC7","v":0},{"$f":"F_Inputs!ORD7","v":0},{"$f":"F_Inputs!ORE7","v":0},{"$f":"F_Inputs!ORF7","v":0},{"$f":"F_Inputs!ORG7","v":0},{"$f":"F_Inputs!ORH7","v":0},{"$f":"F_Inputs!ORI7","v":0},{"$f":"F_Inputs!ORJ7","v":0},{"$f":"F_Inputs!ORK7","v":0},{"$f":"F_Inputs!ORL7","v":0},{"$f":"F_Inputs!ORM7","v":0},{"$f":"F_Inputs!ORN7","v":0},{"$f":"F_Inputs!ORO7","v":0},{"$f":"F_Inputs!ORP7","v":0},{"$f":"F_Inputs!ORQ7","v":0},{"$f":"F_Inputs!ORR7","v":0},{"$f":"F_Inputs!ORS7","v":0},{"$f":"F_Inputs!ORT7","v":0},{"$f":"F_Inputs!ORU7","v":0},{"$f":"F_Inputs!ORV7","v":0},{"$f":"F_Inputs!ORW7","v":0},{"$f":"F_Inputs!ORX7","v":0},{"$f":"F_Inputs!ORY7","v":0},{"$f":"F_Inputs!ORZ7","v":0},{"$f":"F_Inputs!OSA7","v":0},{"$f":"F_Inputs!OSB7","v":0},{"$f":"F_Inputs!OSC7","v":0},{"$f":"F_Inputs!OSD7","v":0},{"$f":"F_Inputs!OSE7","v":0},{"$f":"F_Inputs!OSF7","v":0},{"$f":"F_Inputs!OSG7","v":0},{"$f":"F_Inputs!OSH7","v":0},{"$f":"F_Inputs!OSI7","v":0},{"$f":"F_Inputs!OSJ7","v":0},{"$f":"F_Inputs!OSK7","v":0},{"$f":"F_Inputs!OSL7","v":0},{"$f":"F_Inputs!OSM7","v":0},{"$f":"F_Inputs!OSN7","v":0},{"$f":"F_Inputs!OSO7","v":0},{"$f":"F_Inputs!OSP7","v":0},{"$f":"F_Inputs!OSQ7","v":0},{"$f":"F_Inputs!OSR7","v":0},{"$f":"F_Inputs!OSS7","v":0},{"$f":"F_Inputs!OST7","v":0},{"$f":"F_Inputs!OSU7","v":0},{"$f":"F_Inputs!OSV7","v":0},{"$f":"F_Inputs!OSW7","v":0},{"$f":"F_Inputs!OSX7","v":0},{"$f":"F_Inputs!OSY7","v":0},{"$f":"F_Inputs!OSZ7","v":0},{"$f":"F_Inputs!OTA7","v":0},{"$f":"F_Inputs!OTB7","v":0},{"$f":"F_Inputs!OTC7","v":0},{"$f":"F_Inputs!OTD7","v":0},{"$f":"F_Inputs!OTE7","v":0},{"$f":"F_Inputs!OTF7","v":0},{"$f":"F_Inputs!OTG7","v":0},{"$f":"F_Inputs!OTH7","v":0},{"$f":"F_Inputs!OTI7","v":0},{"$f":"F_Inputs!OTJ7","v":0},{"$f":"F_Inputs!OTK7","v":0},{"$f":"F_Inputs!OTL7","v":0},{"$f":"F_Inputs!OTM7","v":0},{"$f":"F_Inputs!OTN7","v":0},{"$f":"F_Inputs!OTO7","v":0},{"$f":"F_Inputs!OTP7","v":0},{"$f":"F_Inputs!OTQ7","v":0},{"$f":"F_Inputs!OTR7","v":0},{"$f":"F_Inputs!OTS7","v":0},{"$f":"F_Inputs!OTT7","v":0},{"$f":"F_Inputs!OTU7","v":0},{"$f":"F_Inputs!OTV7","v":0},{"$f":"F_Inputs!OTW7","v":0},{"$f":"F_Inputs!OTX7","v":0},{"$f":"F_Inputs!OTY7","v":0},{"$f":"F_Inputs!OTZ7","v":0},{"$f":"F_Inputs!OUA7","v":0},{"$f":"F_Inputs!OUB7","v":0},{"$f":"F_Inputs!OUC7","v":0},{"$f":"F_Inputs!OUD7","v":0},{"$f":"F_Inputs!OUE7","v":0},{"$f":"F_Inputs!OUF7","v":0},{"$f":"F_Inputs!OUG7","v":0},{"$f":"F_Inputs!OUH7","v":0},{"$f":"F_Inputs!OUI7","v":0},{"$f":"F_Inputs!OUJ7","v":0},{"$f":"F_Inputs!OUK7","v":0},{"$f":"F_Inputs!OUL7","v":0},{"$f":"F_Inputs!OUM7","v":0},{"$f":"F_Inputs!OUN7","v":0},{"$f":"F_Inputs!OUO7","v":0},{"$f":"F_Inputs!OUP7","v":0},{"$f":"F_Inputs!OUQ7","v":0},{"$f":"F_Inputs!OUR7","v":0},{"$f":"F_Inputs!OUS7","v":0},{"$f":"F_Inputs!OUT7","v":0},{"$f":"F_Inputs!OUU7","v":0},{"$f":"F_Inputs!OUV7","v":0},{"$f":"F_Inputs!OUW7","v":0},{"$f":"F_Inputs!OUX7","v":0},{"$f":"F_Inputs!OUY7","v":0},{"$f":"F_Inputs!OUZ7","v":0},{"$f":"F_Inputs!OVA7","v":0},{"$f":"F_Inputs!OVB7","v":0},{"$f":"F_Inputs!OVC7","v":0},{"$f":"F_Inputs!OVD7","v":0},{"$f":"F_Inputs!OVE7","v":0},{"$f":"F_Inputs!OVF7","v":0},{"$f":"F_Inputs!OVG7","v":0},{"$f":"F_Inputs!OVH7","v":0},{"$f":"F_Inputs!OVI7","v":0},{"$f":"F_Inputs!OVJ7","v":0},{"$f":"F_Inputs!OVK7","v":0},{"$f":"F_Inputs!OVL7","v":0},{"$f":"F_Inputs!OVM7","v":0},{"$f":"F_Inputs!OVN7","v":0},{"$f":"F_Inputs!OVO7","v":0},{"$f":"F_Inputs!OVP7","v":0},{"$f":"F_Inputs!OVQ7","v":0},{"$f":"F_Inputs!OVR7","v":0},{"$f":"F_Inputs!OVS7","v":0},{"$f":"F_Inputs!OVT7","v":0},{"$f":"F_Inputs!OVU7","v":0},{"$f":"F_Inputs!OVV7","v":0},{"$f":"F_Inputs!OVW7","v":0},{"$f":"F_Inputs!OVX7","v":0},{"$f":"F_Inputs!OVY7","v":0},{"$f":"F_Inputs!OVZ7","v":0},{"$f":"F_Inputs!OWA7","v":0},{"$f":"F_Inputs!OWB7","v":0},{"$f":"F_Inputs!OWC7","v":0},{"$f":"F_Inputs!OWD7","v":0},{"$f":"F_Inputs!OWE7","v":0},{"$f":"F_Inputs!OWF7","v":0},{"$f":"F_Inputs!OWG7","v":0},{"$f":"F_Inputs!OWH7","v":0},{"$f":"F_Inputs!OWI7","v":0},{"$f":"F_Inputs!OWJ7","v":0},{"$f":"F_Inputs!OWK7","v":0},{"$f":"F_Inputs!OWL7","v":0},{"$f":"F_Inputs!OWM7","v":0},{"$f":"F_Inputs!OWN7","v":0},{"$f":"F_Inputs!OWO7","v":0},{"$f":"F_Inputs!OWP7","v":0},{"$f":"F_Inputs!OWQ7","v":0},{"$f":"F_Inputs!OWR7","v":0},{"$f":"F_Inputs!OWS7","v":0},{"$f":"F_Inputs!OWT7","v":0},{"$f":"F_Inputs!OWU7","v":0},{"$f":"F_Inputs!OWV7","v":0},{"$f":"F_Inputs!OWW7","v":0},{"$f":"F_Inputs!OWX7","v":0},{"$f":"F_Inputs!OWY7","v":0},{"$f":"F_Inputs!OWZ7","v":0},{"$f":"F_Inputs!OXA7","v":0},{"$f":"F_Inputs!OXB7","v":0},{"$f":"F_Inputs!OXC7","v":0},{"$f":"F_Inputs!OXD7","v":0},{"$f":"F_Inputs!OXE7","v":0},{"$f":"F_Inputs!OXF7","v":0},{"$f":"F_Inputs!OXG7","v":0},{"$f":"F_Inputs!OXH7","v":0},{"$f":"F_Inputs!OXI7","v":0},{"$f":"F_Inputs!OXJ7","v":0},{"$f":"F_Inputs!OXK7","v":0},{"$f":"F_Inputs!OXL7","v":0},{"$f":"F_Inputs!OXM7","v":0},{"$f":"F_Inputs!OXN7","v":0},{"$f":"F_Inputs!OXO7","v":0},{"$f":"F_Inputs!OXP7","v":0},{"$f":"F_Inputs!OXQ7","v":0},{"$f":"F_Inputs!OXR7","v":0},{"$f":"F_Inputs!OXS7","v":0},{"$f":"F_Inputs!OXT7","v":0},{"$f":"F_Inputs!OXU7","v":0},{"$f":"F_Inputs!OXV7","v":0},{"$f":"F_Inputs!OXW7","v":0},{"$f":"F_Inputs!OXX7","v":0},{"$f":"F_Inputs!OXY7","v":0},{"$f":"F_Inputs!OXZ7","v":0},{"$f":"F_Inputs!OYA7","v":0},{"$f":"F_Inputs!OYB7","v":0},{"$f":"F_Inputs!OYC7","v":0},{"$f":"F_Inputs!OYD7","v":0},{"$f":"F_Inputs!OYE7","v":0},{"$f":"F_Inputs!OYF7","v":0},{"$f":"F_Inputs!OYG7","v":0},{"$f":"F_Inputs!OYH7","v":0},{"$f":"F_Inputs!OYI7","v":0},{"$f":"F_Inputs!OYJ7","v":0},{"$f":"F_Inputs!OYK7","v":0},{"$f":"F_Inputs!OYL7","v":0},{"$f":"F_Inputs!OYM7","v":0},{"$f":"F_Inputs!OYN7","v":0},{"$f":"F_Inputs!OYO7","v":0},{"$f":"F_Inputs!OYP7","v":0},{"$f":"F_Inputs!OYQ7","v":0},{"$f":"F_Inputs!OYR7","v":0},{"$f":"F_Inputs!OYS7","v":0},{"$f":"F_Inputs!OYT7","v":0},{"$f":"F_Inputs!OYU7","v":0},{"$f":"F_Inputs!OYV7","v":0},{"$f":"F_Inputs!OYW7","v":0},{"$f":"F_Inputs!OYX7","v":0},{"$f":"F_Inputs!OYY7","v":0},{"$f":"F_Inputs!OYZ7","v":0},{"$f":"F_Inputs!OZA7","v":0},{"$f":"F_Inputs!OZB7","v":0},{"$f":"F_Inputs!OZC7","v":0},{"$f":"F_Inputs!OZD7","v":0},{"$f":"F_Inputs!OZE7","v":0},{"$f":"F_Inputs!OZF7","v":0},{"$f":"F_Inputs!OZG7","v":0},{"$f":"F_Inputs!OZH7","v":0},{"$f":"F_Inputs!OZI7","v":0},{"$f":"F_Inputs!OZJ7","v":0},{"$f":"F_Inputs!OZK7","v":0},{"$f":"F_Inputs!OZL7","v":0},{"$f":"F_Inputs!OZM7","v":0},{"$f":"F_Inputs!OZN7","v":0},{"$f":"F_Inputs!OZO7","v":0},{"$f":"F_Inputs!OZP7","v":0},{"$f":"F_Inputs!OZQ7","v":0},{"$f":"F_Inputs!OZR7","v":0},{"$f":"F_Inputs!OZS7","v":0},{"$f":"F_Inputs!OZT7","v":0},{"$f":"F_Inputs!OZU7","v":0},{"$f":"F_Inputs!OZV7","v":0},{"$f":"F_Inputs!OZW7","v":0},{"$f":"F_Inputs!OZX7","v":0},{"$f":"F_Inputs!OZY7","v":0},{"$f":"F_Inputs!OZZ7","v":0},{"$f":"F_Inputs!PAA7","v":0},{"$f":"F_Inputs!PAB7","v":0},{"$f":"F_Inputs!PAC7","v":0},{"$f":"F_Inputs!PAD7","v":0},{"$f":"F_Inputs!PAE7","v":0},{"$f":"F_Inputs!PAF7","v":0},{"$f":"F_Inputs!PAG7","v":0},{"$f":"F_Inputs!PAH7","v":0},{"$f":"F_Inputs!PAI7","v":0},{"$f":"F_Inputs!PAJ7","v":0},{"$f":"F_Inputs!PAK7","v":0},{"$f":"F_Inputs!PAL7","v":0},{"$f":"F_Inputs!PAM7","v":0},{"$f":"F_Inputs!PAN7","v":0},{"$f":"F_Inputs!PAO7","v":0},{"$f":"F_Inputs!PAP7","v":0},{"$f":"F_Inputs!PAQ7","v":0},{"$f":"F_Inputs!PAR7","v":0},{"$f":"F_Inputs!PAS7","v":0},{"$f":"F_Inputs!PAT7","v":0},{"$f":"F_Inputs!PAU7","v":0},{"$f":"F_Inputs!PAV7","v":0},{"$f":"F_Inputs!PAW7","v":0},{"$f":"F_Inputs!PAX7","v":0},{"$f":"F_Inputs!PAY7","v":0},{"$f":"F_Inputs!PAZ7","v":0},{"$f":"F_Inputs!PBA7","v":0},{"$f":"F_Inputs!PBB7","v":0},{"$f":"F_Inputs!PBC7","v":0},{"$f":"F_Inputs!PBD7","v":0},{"$f":"F_Inputs!PBE7","v":0},{"$f":"F_Inputs!PBF7","v":0},{"$f":"F_Inputs!PBG7","v":0},{"$f":"F_Inputs!PBH7","v":0},{"$f":"F_Inputs!PBI7","v":0},{"$f":"F_Inputs!PBJ7","v":0},{"$f":"F_Inputs!PBK7","v":0},{"$f":"F_Inputs!PBL7","v":0},{"$f":"F_Inputs!PBM7","v":0},{"$f":"F_Inputs!PBN7","v":0},{"$f":"F_Inputs!PBO7","v":0},{"$f":"F_Inputs!PBP7","v":0},{"$f":"F_Inputs!PBQ7","v":0},{"$f":"F_Inputs!PBR7","v":0},{"$f":"F_Inputs!PBS7","v":0},{"$f":"F_Inputs!PBT7","v":0},{"$f":"F_Inputs!PBU7","v":0},{"$f":"F_Inputs!PBV7","v":0},{"$f":"F_Inputs!PBW7","v":0},{"$f":"F_Inputs!PBX7","v":0},{"$f":"F_Inputs!PBY7","v":0},{"$f":"F_Inputs!PBZ7","v":0},{"$f":"F_Inputs!PCA7","v":0},{"$f":"F_Inputs!PCB7","v":0},{"$f":"F_Inputs!PCC7","v":0},{"$f":"F_Inputs!PCD7","v":0},{"$f":"F_Inputs!PCE7","v":0},{"$f":"F_Inputs!PCF7","v":0},{"$f":"F_Inputs!PCG7","v":0},{"$f":"F_Inputs!PCH7","v":0},{"$f":"F_Inputs!PCI7","v":0},{"$f":"F_Inputs!PCJ7","v":0},{"$f":"F_Inputs!PCK7","v":0},{"$f":"F_Inputs!PCL7","v":0},{"$f":"F_Inputs!PCM7","v":0},{"$f":"F_Inputs!PCN7","v":0},{"$f":"F_Inputs!PCO7","v":0},{"$f":"F_Inputs!PCP7","v":0},{"$f":"F_Inputs!PCQ7","v":0},{"$f":"F_Inputs!PCR7","v":0},{"$f":"F_Inputs!PCS7","v":0},{"$f":"F_Inputs!PCT7","v":0},{"$f":"F_Inputs!PCU7","v":0},{"$f":"F_Inputs!PCV7","v":0},{"$f":"F_Inputs!PCW7","v":0},{"$f":"F_Inputs!PCX7","v":0},{"$f":"F_Inputs!PCY7","v":0},{"$f":"F_Inputs!PCZ7","v":0},{"$f":"F_Inputs!PDA7","v":0},{"$f":"F_Inputs!PDB7","v":0},{"$f":"F_Inputs!PDC7","v":0},{"$f":"F_Inputs!PDD7","v":0},{"$f":"F_Inputs!PDE7","v":0},{"$f":"F_Inputs!PDF7","v":0},{"$f":"F_Inputs!PDG7","v":0},{"$f":"F_Inputs!PDH7","v":0},{"$f":"F_Inputs!PDI7","v":0},{"$f":"F_Inputs!PDJ7","v":0},{"$f":"F_Inputs!PDK7","v":0},{"$f":"F_Inputs!PDL7","v":0},{"$f":"F_Inputs!PDM7","v":0},{"$f":"F_Inputs!PDN7","v":0},{"$f":"F_Inputs!PDO7","v":0},{"$f":"F_Inputs!PDP7","v":0},{"$f":"F_Inputs!PDQ7","v":0},{"$f":"F_Inputs!PDR7","v":0},{"$f":"F_Inputs!PDS7","v":0},{"$f":"F_Inputs!PDT7","v":0},{"$f":"F_Inputs!PDU7","v":0},{"$f":"F_Inputs!PDV7","v":0},{"$f":"F_Inputs!PDW7","v":0},{"$f":"F_Inputs!PDX7","v":0},{"$f":"F_Inputs!PDY7","v":0},{"$f":"F_Inputs!PDZ7","v":0},{"$f":"F_Inputs!PEA7","v":0},{"$f":"F_Inputs!PEB7","v":0},{"$f":"F_Inputs!PEC7","v":0},{"$f":"F_Inputs!PED7","v":0},{"$f":"F_Inputs!PEE7","v":0},{"$f":"F_Inputs!PEF7","v":0},{"$f":"F_Inputs!PEG7","v":0},{"$f":"F_Inputs!PEH7","v":0},{"$f":"F_Inputs!PEI7","v":0},{"$f":"F_Inputs!PEJ7","v":0},{"$f":"F_Inputs!PEK7","v":0},{"$f":"F_Inputs!PEL7","v":0},{"$f":"F_Inputs!PEM7","v":0},{"$f":"F_Inputs!PEN7","v":0},{"$f":"F_Inputs!PEO7","v":0},{"$f":"F_Inputs!PEP7","v":0},{"$f":"F_Inputs!PEQ7","v":0},{"$f":"F_Inputs!PER7","v":0},{"$f":"F_Inputs!PES7","v":0},{"$f":"F_Inputs!PET7","v":0},{"$f":"F_Inputs!PEU7","v":0},{"$f":"F_Inputs!PEV7","v":0},{"$f":"F_Inputs!PEW7","v":0},{"$f":"F_Inputs!PEX7","v":0},{"$f":"F_Inputs!PEY7","v":0},{"$f":"F_Inputs!PEZ7","v":0},{"$f":"F_Inputs!PFA7","v":0},{"$f":"F_Inputs!PFB7","v":0},{"$f":"F_Inputs!PFC7","v":0},{"$f":"F_Inputs!PFD7","v":0},{"$f":"F_Inputs!PFE7","v":0},{"$f":"F_Inputs!PFF7","v":0},{"$f":"F_Inputs!PFG7","v":0},{"$f":"F_Inputs!PFH7","v":0},{"$f":"F_Inputs!PFI7","v":0},{"$f":"F_Inputs!PFJ7","v":0},{"$f":"F_Inputs!PFK7","v":0},{"$f":"F_Inputs!PFL7","v":0},{"$f":"F_Inputs!PFM7","v":0},{"$f":"F_Inputs!PFN7","v":0},{"$f":"F_Inputs!PFO7","v":0},{"$f":"F_Inputs!PFP7","v":0},{"$f":"F_Inputs!PFQ7","v":0},{"$f":"F_Inputs!PFR7","v":0},{"$f":"F_Inputs!PFS7","v":0},{"$f":"F_Inputs!PFT7","v":0},{"$f":"F_Inputs!PFU7","v":0},{"$f":"F_Inputs!PFV7","v":0},{"$f":"F_Inputs!PFW7","v":0},{"$f":"F_Inputs!PFX7","v":0},{"$f":"F_Inputs!PFY7","v":0},{"$f":"F_Inputs!PFZ7","v":0},{"$f":"F_Inputs!PGA7","v":0},{"$f":"F_Inputs!PGB7","v":0},{"$f":"F_Inputs!PGC7","v":0},{"$f":"F_Inputs!PGD7","v":0},{"$f":"F_Inputs!PGE7","v":0},{"$f":"F_Inputs!PGF7","v":0},{"$f":"F_Inputs!PGG7","v":0},{"$f":"F_Inputs!PGH7","v":0},{"$f":"F_Inputs!PGI7","v":0},{"$f":"F_Inputs!PGJ7","v":0},{"$f":"F_Inputs!PGK7","v":0},{"$f":"F_Inputs!PGL7","v":0},{"$f":"F_Inputs!PGM7","v":0},{"$f":"F_Inputs!PGN7","v":0},{"$f":"F_Inputs!PGO7","v":0},{"$f":"F_Inputs!PGP7","v":0},{"$f":"F_Inputs!PGQ7","v":0},{"$f":"F_Inputs!PGR7","v":0},{"$f":"F_Inputs!PGS7","v":0},{"$f":"F_Inputs!PGT7","v":0},{"$f":"F_Inputs!PGU7","v":0},{"$f":"F_Inputs!PGV7","v":0},{"$f":"F_Inputs!PGW7","v":0},{"$f":"F_Inputs!PGX7","v":0},{"$f":"F_Inputs!PGY7","v":0},{"$f":"F_Inputs!PGZ7","v":0},{"$f":"F_Inputs!PHA7","v":0},{"$f":"F_Inputs!PHB7","v":0},{"$f":"F_Inputs!PHC7","v":0},{"$f":"F_Inputs!PHD7","v":0},{"$f":"F_Inputs!PHE7","v":0},{"$f":"F_Inputs!PHF7","v":0},{"$f":"F_Inputs!PHG7","v":0},{"$f":"F_Inputs!PHH7","v":0},{"$f":"F_Inputs!PHI7","v":0},{"$f":"F_Inputs!PHJ7","v":0},{"$f":"F_Inputs!PHK7","v":0},{"$f":"F_Inputs!PHL7","v":0},{"$f":"F_Inputs!PHM7","v":0},{"$f":"F_Inputs!PHN7","v":0},{"$f":"F_Inputs!PHO7","v":0},{"$f":"F_Inputs!PHP7","v":0},{"$f":"F_Inputs!PHQ7","v":0},{"$f":"F_Inputs!PHR7","v":0},{"$f":"F_Inputs!PHS7","v":0},{"$f":"F_Inputs!PHT7","v":0},{"$f":"F_Inputs!PHU7","v":0},{"$f":"F_Inputs!PHV7","v":0},{"$f":"F_Inputs!PHW7","v":0},{"$f":"F_Inputs!PHX7","v":0},{"$f":"F_Inputs!PHY7","v":0},{"$f":"F_Inputs!PHZ7","v":0},{"$f":"F_Inputs!PIA7","v":0},{"$f":"F_Inputs!PIB7","v":0},{"$f":"F_Inputs!PIC7","v":0},{"$f":"F_Inputs!PID7","v":0},{"$f":"F_Inputs!PIE7","v":0},{"$f":"F_Inputs!PIF7","v":0},{"$f":"F_Inputs!PIG7","v":0},{"$f":"F_Inputs!PIH7","v":0},{"$f":"F_Inputs!PII7","v":0},{"$f":"F_Inputs!PIJ7","v":0},{"$f":"F_Inputs!PIK7","v":0},{"$f":"F_Inputs!PIL7","v":0},{"$f":"F_Inputs!PIM7","v":0},{"$f":"F_Inputs!PIN7","v":0},{"$f":"F_Inputs!PIO7","v":0},{"$f":"F_Inputs!PIP7","v":0},{"$f":"F_Inputs!PIQ7","v":0},{"$f":"F_Inputs!PIR7","v":0},{"$f":"F_Inputs!PIS7","v":0},{"$f":"F_Inputs!PIT7","v":0},{"$f":"F_Inputs!PIU7","v":0},{"$f":"F_Inputs!PIV7","v":0},{"$f":"F_Inputs!PIW7","v":0},{"$f":"F_Inputs!PIX7","v":0},{"$f":"F_Inputs!PIY7","v":0},{"$f":"F_Inputs!PIZ7","v":0},{"$f":"F_Inputs!PJA7","v":0},{"$f":"F_Inputs!PJB7","v":0},{"$f":"F_Inputs!PJC7","v":0},{"$f":"F_Inputs!PJD7","v":0},{"$f":"F_Inputs!PJE7","v":0},{"$f":"F_Inputs!PJF7","v":0},{"$f":"F_Inputs!PJG7","v":0},{"$f":"F_Inputs!PJH7","v":0},{"$f":"F_Inputs!PJI7","v":0},{"$f":"F_Inputs!PJJ7","v":0},{"$f":"F_Inputs!PJK7","v":0},{"$f":"F_Inputs!PJL7","v":0},{"$f":"F_Inputs!PJM7","v":0},{"$f":"F_Inputs!PJN7","v":0},{"$f":"F_Inputs!PJO7","v":0},{"$f":"F_Inputs!PJP7","v":0},{"$f":"F_Inputs!PJQ7","v":0},{"$f":"F_Inputs!PJR7","v":0},{"$f":"F_Inputs!PJS7","v":0},{"$f":"F_Inputs!PJT7","v":0},{"$f":"F_Inputs!PJU7","v":0},{"$f":"F_Inputs!PJV7","v":0},{"$f":"F_Inputs!PJW7","v":0},{"$f":"F_Inputs!PJX7","v":0},{"$f":"F_Inputs!PJY7","v":0},{"$f":"F_Inputs!PJZ7","v":0},{"$f":"F_Inputs!PKA7","v":0},{"$f":"F_Inputs!PKB7","v":0},{"$f":"F_Inputs!PKC7","v":0},{"$f":"F_Inputs!PKD7","v":0},{"$f":"F_Inputs!PKE7","v":0},{"$f":"F_Inputs!PKF7","v":0},{"$f":"F_Inputs!PKG7","v":0},{"$f":"F_Inputs!PKH7","v":0},{"$f":"F_Inputs!PKI7","v":0},{"$f":"F_Inputs!PKJ7","v":0},{"$f":"F_Inputs!PKK7","v":0},{"$f":"F_Inputs!PKL7","v":0},{"$f":"F_Inputs!PKM7","v":0},{"$f":"F_Inputs!PKN7","v":0},{"$f":"F_Inputs!PKO7","v":0},{"$f":"F_Inputs!PKP7","v":0},{"$f":"F_Inputs!PKQ7","v":0},{"$f":"F_Inputs!PKR7","v":0},{"$f":"F_Inputs!PKS7","v":0},{"$f":"F_Inputs!PKT7","v":0},{"$f":"F_Inputs!PKU7","v":0},{"$f":"F_Inputs!PKV7","v":0},{"$f":"F_Inputs!PKW7","v":0},{"$f":"F_Inputs!PKX7","v":0},{"$f":"F_Inputs!PKY7","v":0},{"$f":"F_Inputs!PKZ7","v":0},{"$f":"F_Inputs!PLA7","v":0},{"$f":"F_Inputs!PLB7","v":0},{"$f":"F_Inputs!PLC7","v":0},{"$f":"F_Inputs!PLD7","v":0},{"$f":"F_Inputs!PLE7","v":0},{"$f":"F_Inputs!PLF7","v":0},{"$f":"F_Inputs!PLG7","v":0},{"$f":"F_Inputs!PLH7","v":0},{"$f":"F_Inputs!PLI7","v":0},{"$f":"F_Inputs!PLJ7","v":0},{"$f":"F_Inputs!PLK7","v":0},{"$f":"F_Inputs!PLL7","v":0},{"$f":"F_Inputs!PLM7","v":0},{"$f":"F_Inputs!PLN7","v":0},{"$f":"F_Inputs!PLO7","v":0},{"$f":"F_Inputs!PLP7","v":0},{"$f":"F_Inputs!PLQ7","v":0},{"$f":"F_Inputs!PLR7","v":0},{"$f":"F_Inputs!PLS7","v":0},{"$f":"F_Inputs!PLT7","v":0},{"$f":"F_Inputs!PLU7","v":0},{"$f":"F_Inputs!PLV7","v":0},{"$f":"F_Inputs!PLW7","v":0},{"$f":"F_Inputs!PLX7","v":0},{"$f":"F_Inputs!PLY7","v":0},{"$f":"F_Inputs!PLZ7","v":0},{"$f":"F_Inputs!PMA7","v":0},{"$f":"F_Inputs!PMB7","v":0},{"$f":"F_Inputs!PMC7","v":0},{"$f":"F_Inputs!PMD7","v":0},{"$f":"F_Inputs!PME7","v":0},{"$f":"F_Inputs!PMF7","v":0},{"$f":"F_Inputs!PMG7","v":0},{"$f":"F_Inputs!PMH7","v":0},{"$f":"F_Inputs!PMI7","v":0},{"$f":"F_Inputs!PMJ7","v":0},{"$f":"F_Inputs!PMK7","v":0},{"$f":"F_Inputs!PML7","v":0},{"$f":"F_Inputs!PMM7","v":0},{"$f":"F_Inputs!PMN7","v":0},{"$f":"F_Inputs!PMO7","v":0},{"$f":"F_Inputs!PMP7","v":0},{"$f":"F_Inputs!PMQ7","v":0},{"$f":"F_Inputs!PMR7","v":0},{"$f":"F_Inputs!PMS7","v":0},{"$f":"F_Inputs!PMT7","v":0},{"$f":"F_Inputs!PMU7","v":0},{"$f":"F_Inputs!PMV7","v":0},{"$f":"F_Inputs!PMW7","v":0},{"$f":"F_Inputs!PMX7","v":0},{"$f":"F_Inputs!PMY7","v":0},{"$f":"F_Inputs!PMZ7","v":0},{"$f":"F_Inputs!PNA7","v":0},{"$f":"F_Inputs!PNB7","v":0},{"$f":"F_Inputs!PNC7","v":0},{"$f":"F_Inputs!PND7","v":0},{"$f":"F_Inputs!PNE7","v":0},{"$f":"F_Inputs!PNF7","v":0},{"$f":"F_Inputs!PNG7","v":0},{"$f":"F_Inputs!PNH7","v":0},{"$f":"F_Inputs!PNI7","v":0},{"$f":"F_Inputs!PNJ7","v":0},{"$f":"F_Inputs!PNK7","v":0},{"$f":"F_Inputs!PNL7","v":0},{"$f":"F_Inputs!PNM7","v":0},{"$f":"F_Inputs!PNN7","v":0},{"$f":"F_Inputs!PNO7","v":0},{"$f":"F_Inputs!PNP7","v":0},{"$f":"F_Inputs!PNQ7","v":0},{"$f":"F_Inputs!PNR7","v":0},{"$f":"F_Inputs!PNS7","v":0},{"$f":"F_Inputs!PNT7","v":0},{"$f":"F_Inputs!PNU7","v":0},{"$f":"F_Inputs!PNV7","v":0},{"$f":"F_Inputs!PNW7","v":0},{"$f":"F_Inputs!PNX7","v":0},{"$f":"F_Inputs!PNY7","v":0},{"$f":"F_Inputs!PNZ7","v":0},{"$f":"F_Inputs!POA7","v":0},{"$f":"F_Inputs!POB7","v":0},{"$f":"F_Inputs!POC7","v":0},{"$f":"F_Inputs!POD7","v":0},{"$f":"F_Inputs!POE7","v":0},{"$f":"F_Inputs!POF7","v":0},{"$f":"F_Inputs!POG7","v":0},{"$f":"F_Inputs!POH7","v":0},{"$f":"F_Inputs!POI7","v":0},{"$f":"F_Inputs!POJ7","v":0},{"$f":"F_Inputs!POK7","v":0},{"$f":"F_Inputs!POL7","v":0},{"$f":"F_Inputs!POM7","v":0},{"$f":"F_Inputs!PON7","v":0},{"$f":"F_Inputs!POO7","v":0},{"$f":"F_Inputs!POP7","v":0},{"$f":"F_Inputs!POQ7","v":0},{"$f":"F_Inputs!POR7","v":0},{"$f":"F_Inputs!POS7","v":0},{"$f":"F_Inputs!POT7","v":0},{"$f":"F_Inputs!POU7","v":0},{"$f":"F_Inputs!POV7","v":0},{"$f":"F_Inputs!POW7","v":0},{"$f":"F_Inputs!POX7","v":0},{"$f":"F_Inputs!POY7","v":0},{"$f":"F_Inputs!POZ7","v":0},{"$f":"F_Inputs!PPA7","v":0},{"$f":"F_Inputs!PPB7","v":0},{"$f":"F_Inputs!PPC7","v":0},{"$f":"F_Inputs!PPD7","v":0},{"$f":"F_Inputs!PPE7","v":0},{"$f":"F_Inputs!PPF7","v":0},{"$f":"F_Inputs!PPG7","v":0},{"$f":"F_Inputs!PPH7","v":0},{"$f":"F_Inputs!PPI7","v":0},{"$f":"F_Inputs!PPJ7","v":0},{"$f":"F_Inputs!PPK7","v":0},{"$f":"F_Inputs!PPL7","v":0},{"$f":"F_Inputs!PPM7","v":0},{"$f":"F_Inputs!PPN7","v":0},{"$f":"F_Inputs!PPO7","v":0},{"$f":"F_Inputs!PPP7","v":0},{"$f":"F_Inputs!PPQ7","v":0},{"$f":"F_Inputs!PPR7","v":0},{"$f":"F_Inputs!PPS7","v":0},{"$f":"F_Inputs!PPT7","v":0},{"$f":"F_Inputs!PPU7","v":0},{"$f":"F_Inputs!PPV7","v":0},{"$f":"F_Inputs!PPW7","v":0},{"$f":"F_Inputs!PPX7","v":0},{"$f":"F_Inputs!PPY7","v":0},{"$f":"F_Inputs!PPZ7","v":0},{"$f":"F_Inputs!PQA7","v":0},{"$f":"F_Inputs!PQB7","v":0},{"$f":"F_Inputs!PQC7","v":0},{"$f":"F_Inputs!PQD7","v":0},{"$f":"F_Inputs!PQE7","v":0},{"$f":"F_Inputs!PQF7","v":0},{"$f":"F_Inputs!PQG7","v":0},{"$f":"F_Inputs!PQH7","v":0},{"$f":"F_Inputs!PQI7","v":0},{"$f":"F_Inputs!PQJ7","v":0},{"$f":"F_Inputs!PQK7","v":0},{"$f":"F_Inputs!PQL7","v":0},{"$f":"F_Inputs!PQM7","v":0},{"$f":"F_Inputs!PQN7","v":0},{"$f":"F_Inputs!PQO7","v":0},{"$f":"F_Inputs!PQP7","v":0},{"$f":"F_Inputs!PQQ7","v":0},{"$f":"F_Inputs!PQR7","v":0},{"$f":"F_Inputs!PQS7","v":0},{"$f":"F_Inputs!PQT7","v":0},{"$f":"F_Inputs!PQU7","v":0},{"$f":"F_Inputs!PQV7","v":0},{"$f":"F_Inputs!PQW7","v":0},{"$f":"F_Inputs!PQX7","v":0},{"$f":"F_Inputs!PQY7","v":0},{"$f":"F_Inputs!PQZ7","v":0},{"$f":"F_Inputs!PRA7","v":0},{"$f":"F_Inputs!PRB7","v":0},{"$f":"F_Inputs!PRC7","v":0},{"$f":"F_Inputs!PRD7","v":0},{"$f":"F_Inputs!PRE7","v":0},{"$f":"F_Inputs!PRF7","v":0},{"$f":"F_Inputs!PRG7","v":0},{"$f":"F_Inputs!PRH7","v":0},{"$f":"F_Inputs!PRI7","v":0},{"$f":"F_Inputs!PRJ7","v":0},{"$f":"F_Inputs!PRK7","v":0},{"$f":"F_Inputs!PRL7","v":0},{"$f":"F_Inputs!PRM7","v":0},{"$f":"F_Inputs!PRN7","v":0},{"$f":"F_Inputs!PRO7","v":0},{"$f":"F_Inputs!PRP7","v":0},{"$f":"F_Inputs!PRQ7","v":0},{"$f":"F_Inputs!PRR7","v":0},{"$f":"F_Inputs!PRS7","v":0},{"$f":"F_Inputs!PRT7","v":0},{"$f":"F_Inputs!PRU7","v":0},{"$f":"F_Inputs!PRV7","v":0},{"$f":"F_Inputs!PRW7","v":0},{"$f":"F_Inputs!PRX7","v":0},{"$f":"F_Inputs!PRY7","v":0},{"$f":"F_Inputs!PRZ7","v":0},{"$f":"F_Inputs!PSA7","v":0},{"$f":"F_Inputs!PSB7","v":0},{"$f":"F_Inputs!PSC7","v":0},{"$f":"F_Inputs!PSD7","v":0},{"$f":"F_Inputs!PSE7","v":0},{"$f":"F_Inputs!PSF7","v":0},{"$f":"F_Inputs!PSG7","v":0},{"$f":"F_Inputs!PSH7","v":0},{"$f":"F_Inputs!PSI7","v":0},{"$f":"F_Inputs!PSJ7","v":0},{"$f":"F_Inputs!PSK7","v":0},{"$f":"F_Inputs!PSL7","v":0},{"$f":"F_Inputs!PSM7","v":0},{"$f":"F_Inputs!PSN7","v":0},{"$f":"F_Inputs!PSO7","v":0},{"$f":"F_Inputs!PSP7","v":0},{"$f":"F_Inputs!PSQ7","v":0},{"$f":"F_Inputs!PSR7","v":0},{"$f":"F_Inputs!PSS7","v":0},{"$f":"F_Inputs!PST7","v":0},{"$f":"F_Inputs!PSU7","v":0},{"$f":"F_Inputs!PSV7","v":0},{"$f":"F_Inputs!PSW7","v":0},{"$f":"F_Inputs!PSX7","v":0},{"$f":"F_Inputs!PSY7","v":0},{"$f":"F_Inputs!PSZ7","v":0},{"$f":"F_Inputs!PTA7","v":0},{"$f":"F_Inputs!PTB7","v":0},{"$f":"F_Inputs!PTC7","v":0},{"$f":"F_Inputs!PTD7","v":0},{"$f":"F_Inputs!PTE7","v":0},{"$f":"F_Inputs!PTF7","v":0},{"$f":"F_Inputs!PTG7","v":0},{"$f":"F_Inputs!PTH7","v":0},{"$f":"F_Inputs!PTI7","v":0},{"$f":"F_Inputs!PTJ7","v":0},{"$f":"F_Inputs!PTK7","v":0},{"$f":"F_Inputs!PTL7","v":0},{"$f":"F_Inputs!PTM7","v":0},{"$f":"F_Inputs!PTN7","v":0},{"$f":"F_Inputs!PTO7","v":0},{"$f":"F_Inputs!PTP7","v":0},{"$f":"F_Inputs!PTQ7","v":0},{"$f":"F_Inputs!PTR7","v":0},{"$f":"F_Inputs!PTS7","v":0},{"$f":"F_Inputs!PTT7","v":0},{"$f":"F_Inputs!PTU7","v":0},{"$f":"F_Inputs!PTV7","v":0},{"$f":"F_Inputs!PTW7","v":0},{"$f":"F_Inputs!PTX7","v":0},{"$f":"F_Inputs!PTY7","v":0},{"$f":"F_Inputs!PTZ7","v":0},{"$f":"F_Inputs!PUA7","v":0},{"$f":"F_Inputs!PUB7","v":0},{"$f":"F_Inputs!PUC7","v":0},{"$f":"F_Inputs!PUD7","v":0},{"$f":"F_Inputs!PUE7","v":0},{"$f":"F_Inputs!PUF7","v":0},{"$f":"F_Inputs!PUG7","v":0},{"$f":"F_Inputs!PUH7","v":0},{"$f":"F_Inputs!PUI7","v":0},{"$f":"F_Inputs!PUJ7","v":0},{"$f":"F_Inputs!PUK7","v":0},{"$f":"F_Inputs!PUL7","v":0},{"$f":"F_Inputs!PUM7","v":0},{"$f":"F_Inputs!PUN7","v":0},{"$f":"F_Inputs!PUO7","v":0},{"$f":"F_Inputs!PUP7","v":0},{"$f":"F_Inputs!PUQ7","v":0},{"$f":"F_Inputs!PUR7","v":0},{"$f":"F_Inputs!PUS7","v":0},{"$f":"F_Inputs!PUT7","v":0},{"$f":"F_Inputs!PUU7","v":0},{"$f":"F_Inputs!PUV7","v":0},{"$f":"F_Inputs!PUW7","v":0},{"$f":"F_Inputs!PUX7","v":0},{"$f":"F_Inputs!PUY7","v":0},{"$f":"F_Inputs!PUZ7","v":0},{"$f":"F_Inputs!PVA7","v":0},{"$f":"F_Inputs!PVB7","v":0},{"$f":"F_Inputs!PVC7","v":0},{"$f":"F_Inputs!PVD7","v":0},{"$f":"F_Inputs!PVE7","v":0},{"$f":"F_Inputs!PVF7","v":0},{"$f":"F_Inputs!PVG7","v":0},{"$f":"F_Inputs!PVH7","v":0},{"$f":"F_Inputs!PVI7","v":0},{"$f":"F_Inputs!PVJ7","v":0},{"$f":"F_Inputs!PVK7","v":0},{"$f":"F_Inputs!PVL7","v":0},{"$f":"F_Inputs!PVM7","v":0},{"$f":"F_Inputs!PVN7","v":0},{"$f":"F_Inputs!PVO7","v":0},{"$f":"F_Inputs!PVP7","v":0},{"$f":"F_Inputs!PVQ7","v":0},{"$f":"F_Inputs!PVR7","v":0},{"$f":"F_Inputs!PVS7","v":0},{"$f":"F_Inputs!PVT7","v":0},{"$f":"F_Inputs!PVU7","v":0},{"$f":"F_Inputs!PVV7","v":0},{"$f":"F_Inputs!PVW7","v":0},{"$f":"F_Inputs!PVX7","v":0},{"$f":"F_Inputs!PVY7","v":0},{"$f":"F_Inputs!PVZ7","v":0},{"$f":"F_Inputs!PWA7","v":0},{"$f":"F_Inputs!PWB7","v":0},{"$f":"F_Inputs!PWC7","v":0},{"$f":"F_Inputs!PWD7","v":0},{"$f":"F_Inputs!PWE7","v":0},{"$f":"F_Inputs!PWF7","v":0},{"$f":"F_Inputs!PWG7","v":0},{"$f":"F_Inputs!PWH7","v":0},{"$f":"F_Inputs!PWI7","v":0},{"$f":"F_Inputs!PWJ7","v":0},{"$f":"F_Inputs!PWK7","v":0},{"$f":"F_Inputs!PWL7","v":0},{"$f":"F_Inputs!PWM7","v":0},{"$f":"F_Inputs!PWN7","v":0},{"$f":"F_Inputs!PWO7","v":0},{"$f":"F_Inputs!PWP7","v":0},{"$f":"F_Inputs!PWQ7","v":0},{"$f":"F_Inputs!PWR7","v":0},{"$f":"F_Inputs!PWS7","v":0},{"$f":"F_Inputs!PWT7","v":0},{"$f":"F_Inputs!PWU7","v":0},{"$f":"F_Inputs!PWV7","v":0},{"$f":"F_Inputs!PWW7","v":0},{"$f":"F_Inputs!PWX7","v":0},{"$f":"F_Inputs!PWY7","v":0},{"$f":"F_Inputs!PWZ7","v":0},{"$f":"F_Inputs!PXA7","v":0},{"$f":"F_Inputs!PXB7","v":0},{"$f":"F_Inputs!PXC7","v":0},{"$f":"F_Inputs!PXD7","v":0},{"$f":"F_Inputs!PXE7","v":0},{"$f":"F_Inputs!PXF7","v":0},{"$f":"F_Inputs!PXG7","v":0},{"$f":"F_Inputs!PXH7","v":0},{"$f":"F_Inputs!PXI7","v":0},{"$f":"F_Inputs!PXJ7","v":0},{"$f":"F_Inputs!PXK7","v":0},{"$f":"F_Inputs!PXL7","v":0},{"$f":"F_Inputs!PXM7","v":0},{"$f":"F_Inputs!PXN7","v":0},{"$f":"F_Inputs!PXO7","v":0},{"$f":"F_Inputs!PXP7","v":0},{"$f":"F_Inputs!PXQ7","v":0},{"$f":"F_Inputs!PXR7","v":0},{"$f":"F_Inputs!PXS7","v":0},{"$f":"F_Inputs!PXT7","v":0},{"$f":"F_Inputs!PXU7","v":0},{"$f":"F_Inputs!PXV7","v":0},{"$f":"F_Inputs!PXW7","v":0},{"$f":"F_Inputs!PXX7","v":0},{"$f":"F_Inputs!PXY7","v":0},{"$f":"F_Inputs!PXZ7","v":0},{"$f":"F_Inputs!PYA7","v":0},{"$f":"F_Inputs!PYB7","v":0},{"$f":"F_Inputs!PYC7","v":0},{"$f":"F_Inputs!PYD7","v":0},{"$f":"F_Inputs!PYE7","v":0},{"$f":"F_Inputs!PYF7","v":0},{"$f":"F_Inputs!PYG7","v":0},{"$f":"F_Inputs!PYH7","v":0},{"$f":"F_Inputs!PYI7","v":0},{"$f":"F_Inputs!PYJ7","v":0},{"$f":"F_Inputs!PYK7","v":0},{"$f":"F_Inputs!PYL7","v":0},{"$f":"F_Inputs!PYM7","v":0},{"$f":"F_Inputs!PYN7","v":0},{"$f":"F_Inputs!PYO7","v":0},{"$f":"F_Inputs!PYP7","v":0},{"$f":"F_Inputs!PYQ7","v":0},{"$f":"F_Inputs!PYR7","v":0},{"$f":"F_Inputs!PYS7","v":0},{"$f":"F_Inputs!PYT7","v":0},{"$f":"F_Inputs!PYU7","v":0},{"$f":"F_Inputs!PYV7","v":0},{"$f":"F_Inputs!PYW7","v":0},{"$f":"F_Inputs!PYX7","v":0},{"$f":"F_Inputs!PYY7","v":0},{"$f":"F_Inputs!PYZ7","v":0},{"$f":"F_Inputs!PZA7","v":0},{"$f":"F_Inputs!PZB7","v":0},{"$f":"F_Inputs!PZC7","v":0},{"$f":"F_Inputs!PZD7","v":0},{"$f":"F_Inputs!PZE7","v":0},{"$f":"F_Inputs!PZF7","v":0},{"$f":"F_Inputs!PZG7","v":0},{"$f":"F_Inputs!PZH7","v":0},{"$f":"F_Inputs!PZI7","v":0},{"$f":"F_Inputs!PZJ7","v":0},{"$f":"F_Inputs!PZK7","v":0},{"$f":"F_Inputs!PZL7","v":0},{"$f":"F_Inputs!PZM7","v":0},{"$f":"F_Inputs!PZN7","v":0},{"$f":"F_Inputs!PZO7","v":0},{"$f":"F_Inputs!PZP7","v":0},{"$f":"F_Inputs!PZQ7","v":0},{"$f":"F_Inputs!PZR7","v":0},{"$f":"F_Inputs!PZS7","v":0},{"$f":"F_Inputs!PZT7","v":0},{"$f":"F_Inputs!PZU7","v":0},{"$f":"F_Inputs!PZV7","v":0},{"$f":"F_Inputs!PZW7","v":0},{"$f":"F_Inputs!PZX7","v":0},{"$f":"F_Inputs!PZY7","v":0},{"$f":"F_Inputs!PZZ7","v":0},{"$f":"F_Inputs!QAA7","v":0},{"$f":"F_Inputs!QAB7","v":0},{"$f":"F_Inputs!QAC7","v":0},{"$f":"F_Inputs!QAD7","v":0},{"$f":"F_Inputs!QAE7","v":0},{"$f":"F_Inputs!QAF7","v":0},{"$f":"F_Inputs!QAG7","v":0},{"$f":"F_Inputs!QAH7","v":0},{"$f":"F_Inputs!QAI7","v":0},{"$f":"F_Inputs!QAJ7","v":0},{"$f":"F_Inputs!QAK7","v":0},{"$f":"F_Inputs!QAL7","v":0},{"$f":"F_Inputs!QAM7","v":0},{"$f":"F_Inputs!QAN7","v":0},{"$f":"F_Inputs!QAO7","v":0},{"$f":"F_Inputs!QAP7","v":0},{"$f":"F_Inputs!QAQ7","v":0},{"$f":"F_Inputs!QAR7","v":0},{"$f":"F_Inputs!QAS7","v":0},{"$f":"F_Inputs!QAT7","v":0},{"$f":"F_Inputs!QAU7","v":0},{"$f":"F_Inputs!QAV7","v":0},{"$f":"F_Inputs!QAW7","v":0},{"$f":"F_Inputs!QAX7","v":0},{"$f":"F_Inputs!QAY7","v":0},{"$f":"F_Inputs!QAZ7","v":0},{"$f":"F_Inputs!QBA7","v":0},{"$f":"F_Inputs!QBB7","v":0},{"$f":"F_Inputs!QBC7","v":0},{"$f":"F_Inputs!QBD7","v":0},{"$f":"F_Inputs!QBE7","v":0},{"$f":"F_Inputs!QBF7","v":0},{"$f":"F_Inputs!QBG7","v":0},{"$f":"F_Inputs!QBH7","v":0},{"$f":"F_Inputs!QBI7","v":0},{"$f":"F_Inputs!QBJ7","v":0},{"$f":"F_Inputs!QBK7","v":0},{"$f":"F_Inputs!QBL7","v":0},{"$f":"F_Inputs!QBM7","v":0},{"$f":"F_Inputs!QBN7","v":0},{"$f":"F_Inputs!QBO7","v":0},{"$f":"F_Inputs!QBP7","v":0},{"$f":"F_Inputs!QBQ7","v":0},{"$f":"F_Inputs!QBR7","v":0},{"$f":"F_Inputs!QBS7","v":0},{"$f":"F_Inputs!QBT7","v":0},{"$f":"F_Inputs!QBU7","v":0},{"$f":"F_Inputs!QBV7","v":0},{"$f":"F_Inputs!QBW7","v":0},{"$f":"F_Inputs!QBX7","v":0},{"$f":"F_Inputs!QBY7","v":0},{"$f":"F_Inputs!QBZ7","v":0},{"$f":"F_Inputs!QCA7","v":0},{"$f":"F_Inputs!QCB7","v":0},{"$f":"F_Inputs!QCC7","v":0},{"$f":"F_Inputs!QCD7","v":0},{"$f":"F_Inputs!QCE7","v":0},{"$f":"F_Inputs!QCF7","v":0},{"$f":"F_Inputs!QCG7","v":0},{"$f":"F_Inputs!QCH7","v":0},{"$f":"F_Inputs!QCI7","v":0},{"$f":"F_Inputs!QCJ7","v":0},{"$f":"F_Inputs!QCK7","v":0},{"$f":"F_Inputs!QCL7","v":0},{"$f":"F_Inputs!QCM7","v":0},{"$f":"F_Inputs!QCN7","v":0},{"$f":"F_Inputs!QCO7","v":0},{"$f":"F_Inputs!QCP7","v":0},{"$f":"F_Inputs!QCQ7","v":0},{"$f":"F_Inputs!QCR7","v":0},{"$f":"F_Inputs!QCS7","v":0},{"$f":"F_Inputs!QCT7","v":0},{"$f":"F_Inputs!QCU7","v":0},{"$f":"F_Inputs!QCV7","v":0},{"$f":"F_Inputs!QCW7","v":0},{"$f":"F_Inputs!QCX7","v":0},{"$f":"F_Inputs!QCY7","v":0},{"$f":"F_Inputs!QCZ7","v":0},{"$f":"F_Inputs!QDA7","v":0},{"$f":"F_Inputs!QDB7","v":0},{"$f":"F_Inputs!QDC7","v":0},{"$f":"F_Inputs!QDD7","v":0},{"$f":"F_Inputs!QDE7","v":0},{"$f":"F_Inputs!QDF7","v":0},{"$f":"F_Inputs!QDG7","v":0},{"$f":"F_Inputs!QDH7","v":0},{"$f":"F_Inputs!QDI7","v":0},{"$f":"F_Inputs!QDJ7","v":0},{"$f":"F_Inputs!QDK7","v":0},{"$f":"F_Inputs!QDL7","v":0},{"$f":"F_Inputs!QDM7","v":0},{"$f":"F_Inputs!QDN7","v":0},{"$f":"F_Inputs!QDO7","v":0},{"$f":"F_Inputs!QDP7","v":0},{"$f":"F_Inputs!QDQ7","v":0},{"$f":"F_Inputs!QDR7","v":0},{"$f":"F_Inputs!QDS7","v":0},{"$f":"F_Inputs!QDT7","v":0},{"$f":"F_Inputs!QDU7","v":0},{"$f":"F_Inputs!QDV7","v":0},{"$f":"F_Inputs!QDW7","v":0},{"$f":"F_Inputs!QDX7","v":0},{"$f":"F_Inputs!QDY7","v":0},{"$f":"F_Inputs!QDZ7","v":0},{"$f":"F_Inputs!QEA7","v":0},{"$f":"F_Inputs!QEB7","v":0},{"$f":"F_Inputs!QEC7","v":0},{"$f":"F_Inputs!QED7","v":0},{"$f":"F_Inputs!QEE7","v":0},{"$f":"F_Inputs!QEF7","v":0},{"$f":"F_Inputs!QEG7","v":0},{"$f":"F_Inputs!QEH7","v":0},{"$f":"F_Inputs!QEI7","v":0},{"$f":"F_Inputs!QEJ7","v":0},{"$f":"F_Inputs!QEK7","v":0},{"$f":"F_Inputs!QEL7","v":0},{"$f":"F_Inputs!QEM7","v":0},{"$f":"F_Inputs!QEN7","v":0},{"$f":"F_Inputs!QEO7","v":0},{"$f":"F_Inputs!QEP7","v":0},{"$f":"F_Inputs!QEQ7","v":0},{"$f":"F_Inputs!QER7","v":0},{"$f":"F_Inputs!QES7","v":0},{"$f":"F_Inputs!QET7","v":0},{"$f":"F_Inputs!QEU7","v":0},{"$f":"F_Inputs!QEV7","v":0},{"$f":"F_Inputs!QEW7","v":0},{"$f":"F_Inputs!QEX7","v":0},{"$f":"F_Inputs!QEY7","v":0},{"$f":"F_Inputs!QEZ7","v":0},{"$f":"F_Inputs!QFA7","v":0},{"$f":"F_Inputs!QFB7","v":0},{"$f":"F_Inputs!QFC7","v":0},{"$f":"F_Inputs!QFD7","v":0},{"$f":"F_Inputs!QFE7","v":0},{"$f":"F_Inputs!QFF7","v":0},{"$f":"F_Inputs!QFG7","v":0},{"$f":"F_Inputs!QFH7","v":0},{"$f":"F_Inputs!QFI7","v":0},{"$f":"F_Inputs!QFJ7","v":0},{"$f":"F_Inputs!QFK7","v":0},{"$f":"F_Inputs!QFL7","v":0},{"$f":"F_Inputs!QFM7","v":0},{"$f":"F_Inputs!QFN7","v":0},{"$f":"F_Inputs!QFO7","v":0},{"$f":"F_Inputs!QFP7","v":0},{"$f":"F_Inputs!QFQ7","v":0},{"$f":"F_Inputs!QFR7","v":0},{"$f":"F_Inputs!QFS7","v":0},{"$f":"F_Inputs!QFT7","v":0},{"$f":"F_Inputs!QFU7","v":0},{"$f":"F_Inputs!QFV7","v":0},{"$f":"F_Inputs!QFW7","v":0},{"$f":"F_Inputs!QFX7","v":0},{"$f":"F_Inputs!QFY7","v":0},{"$f":"F_Inputs!QFZ7","v":0},{"$f":"F_Inputs!QGA7","v":0},{"$f":"F_Inputs!QGB7","v":0},{"$f":"F_Inputs!QGC7","v":0},{"$f":"F_Inputs!QGD7","v":0},{"$f":"F_Inputs!QGE7","v":0},{"$f":"F_Inputs!QGF7","v":0},{"$f":"F_Inputs!QGG7","v":0},{"$f":"F_Inputs!QGH7","v":0},{"$f":"F_Inputs!QGI7","v":0},{"$f":"F_Inputs!QGJ7","v":0},{"$f":"F_Inputs!QGK7","v":0},{"$f":"F_Inputs!QGL7","v":0},{"$f":"F_Inputs!QGM7","v":0},{"$f":"F_Inputs!QGN7","v":0},{"$f":"F_Inputs!QGO7","v":0},{"$f":"F_Inputs!QGP7","v":0},{"$f":"F_Inputs!QGQ7","v":0},{"$f":"F_Inputs!QGR7","v":0},{"$f":"F_Inputs!QGS7","v":0},{"$f":"F_Inputs!QGT7","v":0},{"$f":"F_Inputs!QGU7","v":0},{"$f":"F_Inputs!QGV7","v":0},{"$f":"F_Inputs!QGW7","v":0},{"$f":"F_Inputs!QGX7","v":0},{"$f":"F_Inputs!QGY7","v":0},{"$f":"F_Inputs!QGZ7","v":0},{"$f":"F_Inputs!QHA7","v":0},{"$f":"F_Inputs!QHB7","v":0},{"$f":"F_Inputs!QHC7","v":0},{"$f":"F_Inputs!QHD7","v":0},{"$f":"F_Inputs!QHE7","v":0},{"$f":"F_Inputs!QHF7","v":0},{"$f":"F_Inputs!QHG7","v":0},{"$f":"F_Inputs!QHH7","v":0},{"$f":"F_Inputs!QHI7","v":0},{"$f":"F_Inputs!QHJ7","v":0},{"$f":"F_Inputs!QHK7","v":0},{"$f":"F_Inputs!QHL7","v":0},{"$f":"F_Inputs!QHM7","v":0},{"$f":"F_Inputs!QHN7","v":0},{"$f":"F_Inputs!QHO7","v":0},{"$f":"F_Inputs!QHP7","v":0},{"$f":"F_Inputs!QHQ7","v":0},{"$f":"F_Inputs!QHR7","v":0},{"$f":"F_Inputs!QHS7","v":0},{"$f":"F_Inputs!QHT7","v":0},{"$f":"F_Inputs!QHU7","v":0},{"$f":"F_Inputs!QHV7","v":0},{"$f":"F_Inputs!QHW7","v":0},{"$f":"F_Inputs!QHX7","v":0},{"$f":"F_Inputs!QHY7","v":0},{"$f":"F_Inputs!QHZ7","v":0},{"$f":"F_Inputs!QIA7","v":0},{"$f":"F_Inputs!QIB7","v":0},{"$f":"F_Inputs!QIC7","v":0},{"$f":"F_Inputs!QID7","v":0},{"$f":"F_Inputs!QIE7","v":0},{"$f":"F_Inputs!QIF7","v":0},{"$f":"F_Inputs!QIG7","v":0},{"$f":"F_Inputs!QIH7","v":0},{"$f":"F_Inputs!QII7","v":0},{"$f":"F_Inputs!QIJ7","v":0},{"$f":"F_Inputs!QIK7","v":0},{"$f":"F_Inputs!QIL7","v":0},{"$f":"F_Inputs!QIM7","v":0},{"$f":"F_Inputs!QIN7","v":0},{"$f":"F_Inputs!QIO7","v":0},{"$f":"F_Inputs!QIP7","v":0},{"$f":"F_Inputs!QIQ7","v":0},{"$f":"F_Inputs!QIR7","v":0},{"$f":"F_Inputs!QIS7","v":0},{"$f":"F_Inputs!QIT7","v":0},{"$f":"F_Inputs!QIU7","v":0},{"$f":"F_Inputs!QIV7","v":0},{"$f":"F_Inputs!QIW7","v":0},{"$f":"F_Inputs!QIX7","v":0},{"$f":"F_Inputs!QIY7","v":0},{"$f":"F_Inputs!QIZ7","v":0},{"$f":"F_Inputs!QJA7","v":0},{"$f":"F_Inputs!QJB7","v":0},{"$f":"F_Inputs!QJC7","v":0},{"$f":"F_Inputs!QJD7","v":0},{"$f":"F_Inputs!QJE7","v":0},{"$f":"F_Inputs!QJF7","v":0},{"$f":"F_Inputs!QJG7","v":0},{"$f":"F_Inputs!QJH7","v":0},{"$f":"F_Inputs!QJI7","v":0},{"$f":"F_Inputs!QJJ7","v":0},{"$f":"F_Inputs!QJK7","v":0},{"$f":"F_Inputs!QJL7","v":0},{"$f":"F_Inputs!QJM7","v":0},{"$f":"F_Inputs!QJN7","v":0},{"$f":"F_Inputs!QJO7","v":0},{"$f":"F_Inputs!QJP7","v":0},{"$f":"F_Inputs!QJQ7","v":0},{"$f":"F_Inputs!QJR7","v":0},{"$f":"F_Inputs!QJS7","v":0},{"$f":"F_Inputs!QJT7","v":0},{"$f":"F_Inputs!QJU7","v":0},{"$f":"F_Inputs!QJV7","v":0},{"$f":"F_Inputs!QJW7","v":0},{"$f":"F_Inputs!QJX7","v":0},{"$f":"F_Inputs!QJY7","v":0},{"$f":"F_Inputs!QJZ7","v":0},{"$f":"F_Inputs!QKA7","v":0},{"$f":"F_Inputs!QKB7","v":0},{"$f":"F_Inputs!QKC7","v":0},{"$f":"F_Inputs!QKD7","v":0},{"$f":"F_Inputs!QKE7","v":0},{"$f":"F_Inputs!QKF7","v":0},{"$f":"F_Inputs!QKG7","v":0},{"$f":"F_Inputs!QKH7","v":0},{"$f":"F_Inputs!QKI7","v":0},{"$f":"F_Inputs!QKJ7","v":0},{"$f":"F_Inputs!QKK7","v":0},{"$f":"F_Inputs!QKL7","v":0},{"$f":"F_Inputs!QKM7","v":0},{"$f":"F_Inputs!QKN7","v":0},{"$f":"F_Inputs!QKO7","v":0},{"$f":"F_Inputs!QKP7","v":0},{"$f":"F_Inputs!QKQ7","v":0},{"$f":"F_Inputs!QKR7","v":0},{"$f":"F_Inputs!QKS7","v":0},{"$f":"F_Inputs!QKT7","v":0},{"$f":"F_Inputs!QKU7","v":0},{"$f":"F_Inputs!QKV7","v":0},{"$f":"F_Inputs!QKW7","v":0},{"$f":"F_Inputs!QKX7","v":0},{"$f":"F_Inputs!QKY7","v":0},{"$f":"F_Inputs!QKZ7","v":0},{"$f":"F_Inputs!QLA7","v":0},{"$f":"F_Inputs!QLB7","v":0},{"$f":"F_Inputs!QLC7","v":0},{"$f":"F_Inputs!QLD7","v":0},{"$f":"F_Inputs!QLE7","v":0},{"$f":"F_Inputs!QLF7","v":0},{"$f":"F_Inputs!QLG7","v":0},{"$f":"F_Inputs!QLH7","v":0},{"$f":"F_Inputs!QLI7","v":0},{"$f":"F_Inputs!QLJ7","v":0},{"$f":"F_Inputs!QLK7","v":0},{"$f":"F_Inputs!QLL7","v":0},{"$f":"F_Inputs!QLM7","v":0},{"$f":"F_Inputs!QLN7","v":0},{"$f":"F_Inputs!QLO7","v":0},{"$f":"F_Inputs!QLP7","v":0},{"$f":"F_Inputs!QLQ7","v":0},{"$f":"F_Inputs!QLR7","v":0},{"$f":"F_Inputs!QLS7","v":0},{"$f":"F_Inputs!QLT7","v":0},{"$f":"F_Inputs!QLU7","v":0},{"$f":"F_Inputs!QLV7","v":0},{"$f":"F_Inputs!QLW7","v":0},{"$f":"F_Inputs!QLX7","v":0},{"$f":"F_Inputs!QLY7","v":0},{"$f":"F_Inputs!QLZ7","v":0},{"$f":"F_Inputs!QMA7","v":0},{"$f":"F_Inputs!QMB7","v":0},{"$f":"F_Inputs!QMC7","v":0},{"$f":"F_Inputs!QMD7","v":0},{"$f":"F_Inputs!QME7","v":0},{"$f":"F_Inputs!QMF7","v":0},{"$f":"F_Inputs!QMG7","v":0},{"$f":"F_Inputs!QMH7","v":0},{"$f":"F_Inputs!QMI7","v":0},{"$f":"F_Inputs!QMJ7","v":0},{"$f":"F_Inputs!QMK7","v":0},{"$f":"F_Inputs!QML7","v":0},{"$f":"F_Inputs!QMM7","v":0},{"$f":"F_Inputs!QMN7","v":0},{"$f":"F_Inputs!QMO7","v":0},{"$f":"F_Inputs!QMP7","v":0},{"$f":"F_Inputs!QMQ7","v":0},{"$f":"F_Inputs!QMR7","v":0},{"$f":"F_Inputs!QMS7","v":0},{"$f":"F_Inputs!QMT7","v":0},{"$f":"F_Inputs!QMU7","v":0},{"$f":"F_Inputs!QMV7","v":0},{"$f":"F_Inputs!QMW7","v":0},{"$f":"F_Inputs!QMX7","v":0},{"$f":"F_Inputs!QMY7","v":0},{"$f":"F_Inputs!QMZ7","v":0},{"$f":"F_Inputs!QNA7","v":0},{"$f":"F_Inputs!QNB7","v":0},{"$f":"F_Inputs!QNC7","v":0},{"$f":"F_Inputs!QND7","v":0},{"$f":"F_Inputs!QNE7","v":0},{"$f":"F_Inputs!QNF7","v":0},{"$f":"F_Inputs!QNG7","v":0},{"$f":"F_Inputs!QNH7","v":0},{"$f":"F_Inputs!QNI7","v":0},{"$f":"F_Inputs!QNJ7","v":0},{"$f":"F_Inputs!QNK7","v":0},{"$f":"F_Inputs!QNL7","v":0},{"$f":"F_Inputs!QNM7","v":0},{"$f":"F_Inputs!QNN7","v":0},{"$f":"F_Inputs!QNO7","v":0},{"$f":"F_Inputs!QNP7","v":0},{"$f":"F_Inputs!QNQ7","v":0},{"$f":"F_Inputs!QNR7","v":0},{"$f":"F_Inputs!QNS7","v":0},{"$f":"F_Inputs!QNT7","v":0},{"$f":"F_Inputs!QNU7","v":0},{"$f":"F_Inputs!QNV7","v":0},{"$f":"F_Inputs!QNW7","v":0},{"$f":"F_Inputs!QNX7","v":0},{"$f":"F_Inputs!QNY7","v":0},{"$f":"F_Inputs!QNZ7","v":0},{"$f":"F_Inputs!QOA7","v":0},{"$f":"F_Inputs!QOB7","v":0},{"$f":"F_Inputs!QOC7","v":0},{"$f":"F_Inputs!QOD7","v":0},{"$f":"F_Inputs!QOE7","v":0},{"$f":"F_Inputs!QOF7","v":0},{"$f":"F_Inputs!QOG7","v":0},{"$f":"F_Inputs!QOH7","v":0},{"$f":"F_Inputs!QOI7","v":0},{"$f":"F_Inputs!QOJ7","v":0},{"$f":"F_Inputs!QOK7","v":0},{"$f":"F_Inputs!QOL7","v":0},{"$f":"F_Inputs!QOM7","v":0},{"$f":"F_Inputs!QON7","v":0},{"$f":"F_Inputs!QOO7","v":0},{"$f":"F_Inputs!QOP7","v":0},{"$f":"F_Inputs!QOQ7","v":0},{"$f":"F_Inputs!QOR7","v":0},{"$f":"F_Inputs!QOS7","v":0},{"$f":"F_Inputs!QOT7","v":0},{"$f":"F_Inputs!QOU7","v":0},{"$f":"F_Inputs!QOV7","v":0},{"$f":"F_Inputs!QOW7","v":0},{"$f":"F_Inputs!QOX7","v":0},{"$f":"F_Inputs!QOY7","v":0},{"$f":"F_Inputs!QOZ7","v":0},{"$f":"F_Inputs!QPA7","v":0},{"$f":"F_Inputs!QPB7","v":0},{"$f":"F_Inputs!QPC7","v":0},{"$f":"F_Inputs!QPD7","v":0},{"$f":"F_Inputs!QPE7","v":0},{"$f":"F_Inputs!QPF7","v":0},{"$f":"F_Inputs!QPG7","v":0},{"$f":"F_Inputs!QPH7","v":0},{"$f":"F_Inputs!QPI7","v":0},{"$f":"F_Inputs!QPJ7","v":0},{"$f":"F_Inputs!QPK7","v":0},{"$f":"F_Inputs!QPL7","v":0},{"$f":"F_Inputs!QPM7","v":0},{"$f":"F_Inputs!QPN7","v":0},{"$f":"F_Inputs!QPO7","v":0},{"$f":"F_Inputs!QPP7","v":0},{"$f":"F_Inputs!QPQ7","v":0},{"$f":"F_Inputs!QPR7","v":0},{"$f":"F_Inputs!QPS7","v":0},{"$f":"F_Inputs!QPT7","v":0},{"$f":"F_Inputs!QPU7","v":0},{"$f":"F_Inputs!QPV7","v":0},{"$f":"F_Inputs!QPW7","v":0},{"$f":"F_Inputs!QPX7","v":0},{"$f":"F_Inputs!QPY7","v":0},{"$f":"F_Inputs!QPZ7","v":0},{"$f":"F_Inputs!QQA7","v":0},{"$f":"F_Inputs!QQB7","v":0},{"$f":"F_Inputs!QQC7","v":0},{"$f":"F_Inputs!QQD7","v":0},{"$f":"F_Inputs!QQE7","v":0},{"$f":"F_Inputs!QQF7","v":0},{"$f":"F_Inputs!QQG7","v":0},{"$f":"F_Inputs!QQH7","v":0},{"$f":"F_Inputs!QQI7","v":0},{"$f":"F_Inputs!QQJ7","v":0},{"$f":"F_Inputs!QQK7","v":0},{"$f":"F_Inputs!QQL7","v":0},{"$f":"F_Inputs!QQM7","v":0},{"$f":"F_Inputs!QQN7","v":0},{"$f":"F_Inputs!QQO7","v":0},{"$f":"F_Inputs!QQP7","v":0},{"$f":"F_Inputs!QQQ7","v":0},{"$f":"F_Inputs!QQR7","v":0},{"$f":"F_Inputs!QQS7","v":0},{"$f":"F_Inputs!QQT7","v":0},{"$f":"F_Inputs!QQU7","v":0},{"$f":"F_Inputs!QQV7","v":0},{"$f":"F_Inputs!QQW7","v":0},{"$f":"F_Inputs!QQX7","v":0},{"$f":"F_Inputs!QQY7","v":0},{"$f":"F_Inputs!QQZ7","v":0},{"$f":"F_Inputs!QRA7","v":0},{"$f":"F_Inputs!QRB7","v":0},{"$f":"F_Inputs!QRC7","v":0},{"$f":"F_Inputs!QRD7","v":0},{"$f":"F_Inputs!QRE7","v":0},{"$f":"F_Inputs!QRF7","v":0},{"$f":"F_Inputs!QRG7","v":0},{"$f":"F_Inputs!QRH7","v":0},{"$f":"F_Inputs!QRI7","v":0},{"$f":"F_Inputs!QRJ7","v":0},{"$f":"F_Inputs!QRK7","v":0},{"$f":"F_Inputs!QRL7","v":0},{"$f":"F_Inputs!QRM7","v":0},{"$f":"F_Inputs!QRN7","v":0},{"$f":"F_Inputs!QRO7","v":0},{"$f":"F_Inputs!QRP7","v":0},{"$f":"F_Inputs!QRQ7","v":0},{"$f":"F_Inputs!QRR7","v":0},{"$f":"F_Inputs!QRS7","v":0},{"$f":"F_Inputs!QRT7","v":0},{"$f":"F_Inputs!QRU7","v":0},{"$f":"F_Inputs!QRV7","v":0},{"$f":"F_Inputs!QRW7","v":0},{"$f":"F_Inputs!QRX7","v":0},{"$f":"F_Inputs!QRY7","v":0},{"$f":"F_Inputs!QRZ7","v":0},{"$f":"F_Inputs!QSA7","v":0},{"$f":"F_Inputs!QSB7","v":0},{"$f":"F_Inputs!QSC7","v":0},{"$f":"F_Inputs!QSD7","v":0},{"$f":"F_Inputs!QSE7","v":0},{"$f":"F_Inputs!QSF7","v":0},{"$f":"F_Inputs!QSG7","v":0},{"$f":"F_Inputs!QSH7","v":0},{"$f":"F_Inputs!QSI7","v":0},{"$f":"F_Inputs!QSJ7","v":0},{"$f":"F_Inputs!QSK7","v":0},{"$f":"F_Inputs!QSL7","v":0},{"$f":"F_Inputs!QSM7","v":0},{"$f":"F_Inputs!QSN7","v":0},{"$f":"F_Inputs!QSO7","v":0},{"$f":"F_Inputs!QSP7","v":0},{"$f":"F_Inputs!QSQ7","v":0},{"$f":"F_Inputs!QSR7","v":0},{"$f":"F_Inputs!QSS7","v":0},{"$f":"F_Inputs!QST7","v":0},{"$f":"F_Inputs!QSU7","v":0},{"$f":"F_Inputs!QSV7","v":0},{"$f":"F_Inputs!QSW7","v":0},{"$f":"F_Inputs!QSX7","v":0},{"$f":"F_Inputs!QSY7","v":0},{"$f":"F_Inputs!QSZ7","v":0},{"$f":"F_Inputs!QTA7","v":0},{"$f":"F_Inputs!QTB7","v":0},{"$f":"F_Inputs!QTC7","v":0},{"$f":"F_Inputs!QTD7","v":0},{"$f":"F_Inputs!QTE7","v":0},{"$f":"F_Inputs!QTF7","v":0},{"$f":"F_Inputs!QTG7","v":0},{"$f":"F_Inputs!QTH7","v":0},{"$f":"F_Inputs!QTI7","v":0},{"$f":"F_Inputs!QTJ7","v":0},{"$f":"F_Inputs!QTK7","v":0},{"$f":"F_Inputs!QTL7","v":0},{"$f":"F_Inputs!QTM7","v":0},{"$f":"F_Inputs!QTN7","v":0},{"$f":"F_Inputs!QTO7","v":0},{"$f":"F_Inputs!QTP7","v":0},{"$f":"F_Inputs!QTQ7","v":0},{"$f":"F_Inputs!QTR7","v":0},{"$f":"F_Inputs!QTS7","v":0},{"$f":"F_Inputs!QTT7","v":0},{"$f":"F_Inputs!QTU7","v":0},{"$f":"F_Inputs!QTV7","v":0},{"$f":"F_Inputs!QTW7","v":0},{"$f":"F_Inputs!QTX7","v":0},{"$f":"F_Inputs!QTY7","v":0},{"$f":"F_Inputs!QTZ7","v":0},{"$f":"F_Inputs!QUA7","v":0},{"$f":"F_Inputs!QUB7","v":0},{"$f":"F_Inputs!QUC7","v":0},{"$f":"F_Inputs!QUD7","v":0},{"$f":"F_Inputs!QUE7","v":0},{"$f":"F_Inputs!QUF7","v":0},{"$f":"F_Inputs!QUG7","v":0},{"$f":"F_Inputs!QUH7","v":0},{"$f":"F_Inputs!QUI7","v":0},{"$f":"F_Inputs!QUJ7","v":0},{"$f":"F_Inputs!QUK7","v":0},{"$f":"F_Inputs!QUL7","v":0},{"$f":"F_Inputs!QUM7","v":0},{"$f":"F_Inputs!QUN7","v":0},{"$f":"F_Inputs!QUO7","v":0},{"$f":"F_Inputs!QUP7","v":0},{"$f":"F_Inputs!QUQ7","v":0},{"$f":"F_Inputs!QUR7","v":0},{"$f":"F_Inputs!QUS7","v":0},{"$f":"F_Inputs!QUT7","v":0},{"$f":"F_Inputs!QUU7","v":0},{"$f":"F_Inputs!QUV7","v":0},{"$f":"F_Inputs!QUW7","v":0},{"$f":"F_Inputs!QUX7","v":0},{"$f":"F_Inputs!QUY7","v":0},{"$f":"F_Inputs!QUZ7","v":0},{"$f":"F_Inputs!QVA7","v":0},{"$f":"F_Inputs!QVB7","v":0},{"$f":"F_Inputs!QVC7","v":0},{"$f":"F_Inputs!QVD7","v":0},{"$f":"F_Inputs!QVE7","v":0},{"$f":"F_Inputs!QVF7","v":0},{"$f":"F_Inputs!QVG7","v":0},{"$f":"F_Inputs!QVH7","v":0},{"$f":"F_Inputs!QVI7","v":0},{"$f":"F_Inputs!QVJ7","v":0},{"$f":"F_Inputs!QVK7","v":0},{"$f":"F_Inputs!QVL7","v":0},{"$f":"F_Inputs!QVM7","v":0},{"$f":"F_Inputs!QVN7","v":0},{"$f":"F_Inputs!QVO7","v":0},{"$f":"F_Inputs!QVP7","v":0},{"$f":"F_Inputs!QVQ7","v":0},{"$f":"F_Inputs!QVR7","v":0},{"$f":"F_Inputs!QVS7","v":0},{"$f":"F_Inputs!QVT7","v":0},{"$f":"F_Inputs!QVU7","v":0},{"$f":"F_Inputs!QVV7","v":0},{"$f":"F_Inputs!QVW7","v":0},{"$f":"F_Inputs!QVX7","v":0},{"$f":"F_Inputs!QVY7","v":0},{"$f":"F_Inputs!QVZ7","v":0},{"$f":"F_Inputs!QWA7","v":0},{"$f":"F_Inputs!QWB7","v":0},{"$f":"F_Inputs!QWC7","v":0},{"$f":"F_Inputs!QWD7","v":0},{"$f":"F_Inputs!QWE7","v":0},{"$f":"F_Inputs!QWF7","v":0},{"$f":"F_Inputs!QWG7","v":0},{"$f":"F_Inputs!QWH7","v":0},{"$f":"F_Inputs!QWI7","v":0},{"$f":"F_Inputs!QWJ7","v":0},{"$f":"F_Inputs!QWK7","v":0},{"$f":"F_Inputs!QWL7","v":0},{"$f":"F_Inputs!QWM7","v":0},{"$f":"F_Inputs!QWN7","v":0},{"$f":"F_Inputs!QWO7","v":0},{"$f":"F_Inputs!QWP7","v":0},{"$f":"F_Inputs!QWQ7","v":0},{"$f":"F_Inputs!QWR7","v":0},{"$f":"F_Inputs!QWS7","v":0},{"$f":"F_Inputs!QWT7","v":0},{"$f":"F_Inputs!QWU7","v":0},{"$f":"F_Inputs!QWV7","v":0},{"$f":"F_Inputs!QWW7","v":0},{"$f":"F_Inputs!QWX7","v":0},{"$f":"F_Inputs!QWY7","v":0},{"$f":"F_Inputs!QWZ7","v":0},{"$f":"F_Inputs!QXA7","v":0},{"$f":"F_Inputs!QXB7","v":0},{"$f":"F_Inputs!QXC7","v":0},{"$f":"F_Inputs!QXD7","v":0},{"$f":"F_Inputs!QXE7","v":0},{"$f":"F_Inputs!QXF7","v":0},{"$f":"F_Inputs!QXG7","v":0},{"$f":"F_Inputs!QXH7","v":0},{"$f":"F_Inputs!QXI7","v":0},{"$f":"F_Inputs!QXJ7","v":0},{"$f":"F_Inputs!QXK7","v":0},{"$f":"F_Inputs!QXL7","v":0},{"$f":"F_Inputs!QXM7","v":0},{"$f":"F_Inputs!QXN7","v":0},{"$f":"F_Inputs!QXO7","v":0},{"$f":"F_Inputs!QXP7","v":0},{"$f":"F_Inputs!QXQ7","v":0},{"$f":"F_Inputs!QXR7","v":0},{"$f":"F_Inputs!QXS7","v":0},{"$f":"F_Inputs!QXT7","v":0},{"$f":"F_Inputs!QXU7","v":0},{"$f":"F_Inputs!QXV7","v":0},{"$f":"F_Inputs!QXW7","v":0},{"$f":"F_Inputs!QXX7","v":0},{"$f":"F_Inputs!QXY7","v":0},{"$f":"F_Inputs!QXZ7","v":0},{"$f":"F_Inputs!QYA7","v":0},{"$f":"F_Inputs!QYB7","v":0},{"$f":"F_Inputs!QYC7","v":0},{"$f":"F_Inputs!QYD7","v":0},{"$f":"F_Inputs!QYE7","v":0},{"$f":"F_Inputs!QYF7","v":0},{"$f":"F_Inputs!QYG7","v":0},{"$f":"F_Inputs!QYH7","v":0},{"$f":"F_Inputs!QYI7","v":0},{"$f":"F_Inputs!QYJ7","v":0},{"$f":"F_Inputs!QYK7","v":0},{"$f":"F_Inputs!QYL7","v":0},{"$f":"F_Inputs!QYM7","v":0},{"$f":"F_Inputs!QYN7","v":0},{"$f":"F_Inputs!QYO7","v":0},{"$f":"F_Inputs!QYP7","v":0},{"$f":"F_Inputs!QYQ7","v":0},{"$f":"F_Inputs!QYR7","v":0},{"$f":"F_Inputs!QYS7","v":0},{"$f":"F_Inputs!QYT7","v":0},{"$f":"F_Inputs!QYU7","v":0},{"$f":"F_Inputs!QYV7","v":0},{"$f":"F_Inputs!QYW7","v":0},{"$f":"F_Inputs!QYX7","v":0},{"$f":"F_Inputs!QYY7","v":0},{"$f":"F_Inputs!QYZ7","v":0},{"$f":"F_Inputs!QZA7","v":0},{"$f":"F_Inputs!QZB7","v":0},{"$f":"F_Inputs!QZC7","v":0},{"$f":"F_Inputs!QZD7","v":0},{"$f":"F_Inputs!QZE7","v":0},{"$f":"F_Inputs!QZF7","v":0},{"$f":"F_Inputs!QZG7","v":0},{"$f":"F_Inputs!QZH7","v":0},{"$f":"F_Inputs!QZI7","v":0},{"$f":"F_Inputs!QZJ7","v":0},{"$f":"F_Inputs!QZK7","v":0},{"$f":"F_Inputs!QZL7","v":0},{"$f":"F_Inputs!QZM7","v":0},{"$f":"F_Inputs!QZN7","v":0},{"$f":"F_Inputs!QZO7","v":0},{"$f":"F_Inputs!QZP7","v":0},{"$f":"F_Inputs!QZQ7","v":0},{"$f":"F_Inputs!QZR7","v":0},{"$f":"F_Inputs!QZS7","v":0},{"$f":"F_Inputs!QZT7","v":0},{"$f":"F_Inputs!QZU7","v":0},{"$f":"F_Inputs!QZV7","v":0},{"$f":"F_Inputs!QZW7","v":0},{"$f":"F_Inputs!QZX7","v":0},{"$f":"F_Inputs!QZY7","v":0},{"$f":"F_Inputs!QZZ7","v":0},{"$f":"F_Inputs!RAA7","v":0},{"$f":"F_Inputs!RAB7","v":0},{"$f":"F_Inputs!RAC7","v":0},{"$f":"F_Inputs!RAD7","v":0},{"$f":"F_Inputs!RAE7","v":0},{"$f":"F_Inputs!RAF7","v":0},{"$f":"F_Inputs!RAG7","v":0},{"$f":"F_Inputs!RAH7","v":0},{"$f":"F_Inputs!RAI7","v":0},{"$f":"F_Inputs!RAJ7","v":0},{"$f":"F_Inputs!RAK7","v":0},{"$f":"F_Inputs!RAL7","v":0},{"$f":"F_Inputs!RAM7","v":0},{"$f":"F_Inputs!RAN7","v":0},{"$f":"F_Inputs!RAO7","v":0},{"$f":"F_Inputs!RAP7","v":0},{"$f":"F_Inputs!RAQ7","v":0},{"$f":"F_Inputs!RAR7","v":0},{"$f":"F_Inputs!RAS7","v":0},{"$f":"F_Inputs!RAT7","v":0},{"$f":"F_Inputs!RAU7","v":0},{"$f":"F_Inputs!RAV7","v":0},{"$f":"F_Inputs!RAW7","v":0},{"$f":"F_Inputs!RAX7","v":0},{"$f":"F_Inputs!RAY7","v":0},{"$f":"F_Inputs!RAZ7","v":0},{"$f":"F_Inputs!RBA7","v":0},{"$f":"F_Inputs!RBB7","v":0},{"$f":"F_Inputs!RBC7","v":0},{"$f":"F_Inputs!RBD7","v":0},{"$f":"F_Inputs!RBE7","v":0},{"$f":"F_Inputs!RBF7","v":0},{"$f":"F_Inputs!RBG7","v":0},{"$f":"F_Inputs!RBH7","v":0},{"$f":"F_Inputs!RBI7","v":0},{"$f":"F_Inputs!RBJ7","v":0},{"$f":"F_Inputs!RBK7","v":0},{"$f":"F_Inputs!RBL7","v":0},{"$f":"F_Inputs!RBM7","v":0},{"$f":"F_Inputs!RBN7","v":0},{"$f":"F_Inputs!RBO7","v":0},{"$f":"F_Inputs!RBP7","v":0},{"$f":"F_Inputs!RBQ7","v":0},{"$f":"F_Inputs!RBR7","v":0},{"$f":"F_Inputs!RBS7","v":0},{"$f":"F_Inputs!RBT7","v":0},{"$f":"F_Inputs!RBU7","v":0},{"$f":"F_Inputs!RBV7","v":0},{"$f":"F_Inputs!RBW7","v":0},{"$f":"F_Inputs!RBX7","v":0},{"$f":"F_Inputs!RBY7","v":0},{"$f":"F_Inputs!RBZ7","v":0},{"$f":"F_Inputs!RCA7","v":0},{"$f":"F_Inputs!RCB7","v":0},{"$f":"F_Inputs!RCC7","v":0},{"$f":"F_Inputs!RCD7","v":0},{"$f":"F_Inputs!RCE7","v":0},{"$f":"F_Inputs!RCF7","v":0},{"$f":"F_Inputs!RCG7","v":0},{"$f":"F_Inputs!RCH7","v":0},{"$f":"F_Inputs!RCI7","v":0},{"$f":"F_Inputs!RCJ7","v":0},{"$f":"F_Inputs!RCK7","v":0},{"$f":"F_Inputs!RCL7","v":0},{"$f":"F_Inputs!RCM7","v":0},{"$f":"F_Inputs!RCN7","v":0},{"$f":"F_Inputs!RCO7","v":0},{"$f":"F_Inputs!RCP7","v":0},{"$f":"F_Inputs!RCQ7","v":0},{"$f":"F_Inputs!RCR7","v":0},{"$f":"F_Inputs!RCS7","v":0},{"$f":"F_Inputs!RCT7","v":0},{"$f":"F_Inputs!RCU7","v":0},{"$f":"F_Inputs!RCV7","v":0},{"$f":"F_Inputs!RCW7","v":0},{"$f":"F_Inputs!RCX7","v":0},{"$f":"F_Inputs!RCY7","v":0},{"$f":"F_Inputs!RCZ7","v":0},{"$f":"F_Inputs!RDA7","v":0},{"$f":"F_Inputs!RDB7","v":0},{"$f":"F_Inputs!RDC7","v":0},{"$f":"F_Inputs!RDD7","v":0},{"$f":"F_Inputs!RDE7","v":0},{"$f":"F_Inputs!RDF7","v":0},{"$f":"F_Inputs!RDG7","v":0},{"$f":"F_Inputs!RDH7","v":0},{"$f":"F_Inputs!RDI7","v":0},{"$f":"F_Inputs!RDJ7","v":0},{"$f":"F_Inputs!RDK7","v":0},{"$f":"F_Inputs!RDL7","v":0},{"$f":"F_Inputs!RDM7","v":0},{"$f":"F_Inputs!RDN7","v":0},{"$f":"F_Inputs!RDO7","v":0},{"$f":"F_Inputs!RDP7","v":0},{"$f":"F_Inputs!RDQ7","v":0},{"$f":"F_Inputs!RDR7","v":0},{"$f":"F_Inputs!RDS7","v":0},{"$f":"F_Inputs!RDT7","v":0},{"$f":"F_Inputs!RDU7","v":0},{"$f":"F_Inputs!RDV7","v":0},{"$f":"F_Inputs!RDW7","v":0},{"$f":"F_Inputs!RDX7","v":0},{"$f":"F_Inputs!RDY7","v":0},{"$f":"F_Inputs!RDZ7","v":0},{"$f":"F_Inputs!REA7","v":0},{"$f":"F_Inputs!REB7","v":0},{"$f":"F_Inputs!REC7","v":0},{"$f":"F_Inputs!RED7","v":0},{"$f":"F_Inputs!REE7","v":0},{"$f":"F_Inputs!REF7","v":0},{"$f":"F_Inputs!REG7","v":0},{"$f":"F_Inputs!REH7","v":0},{"$f":"F_Inputs!REI7","v":0},{"$f":"F_Inputs!REJ7","v":0},{"$f":"F_Inputs!REK7","v":0},{"$f":"F_Inputs!REL7","v":0},{"$f":"F_Inputs!REM7","v":0},{"$f":"F_Inputs!REN7","v":0},{"$f":"F_Inputs!REO7","v":0},{"$f":"F_Inputs!REP7","v":0},{"$f":"F_Inputs!REQ7","v":0},{"$f":"F_Inputs!RER7","v":0},{"$f":"F_Inputs!RES7","v":0},{"$f":"F_Inputs!RET7","v":0},{"$f":"F_Inputs!REU7","v":0},{"$f":"F_Inputs!REV7","v":0},{"$f":"F_Inputs!REW7","v":0},{"$f":"F_Inputs!REX7","v":0},{"$f":"F_Inputs!REY7","v":0},{"$f":"F_Inputs!REZ7","v":0},{"$f":"F_Inputs!RFA7","v":0},{"$f":"F_Inputs!RFB7","v":0},{"$f":"F_Inputs!RFC7","v":0},{"$f":"F_Inputs!RFD7","v":0},{"$f":"F_Inputs!RFE7","v":0},{"$f":"F_Inputs!RFF7","v":0},{"$f":"F_Inputs!RFG7","v":0},{"$f":"F_Inputs!RFH7","v":0},{"$f":"F_Inputs!RFI7","v":0},{"$f":"F_Inputs!RFJ7","v":0},{"$f":"F_Inputs!RFK7","v":0},{"$f":"F_Inputs!RFL7","v":0},{"$f":"F_Inputs!RFM7","v":0},{"$f":"F_Inputs!RFN7","v":0},{"$f":"F_Inputs!RFO7","v":0},{"$f":"F_Inputs!RFP7","v":0},{"$f":"F_Inputs!RFQ7","v":0},{"$f":"F_Inputs!RFR7","v":0},{"$f":"F_Inputs!RFS7","v":0},{"$f":"F_Inputs!RFT7","v":0},{"$f":"F_Inputs!RFU7","v":0},{"$f":"F_Inputs!RFV7","v":0},{"$f":"F_Inputs!RFW7","v":0},{"$f":"F_Inputs!RFX7","v":0},{"$f":"F_Inputs!RFY7","v":0},{"$f":"F_Inputs!RFZ7","v":0},{"$f":"F_Inputs!RGA7","v":0},{"$f":"F_Inputs!RGB7","v":0},{"$f":"F_Inputs!RGC7","v":0},{"$f":"F_Inputs!RGD7","v":0},{"$f":"F_Inputs!RGE7","v":0},{"$f":"F_Inputs!RGF7","v":0},{"$f":"F_Inputs!RGG7","v":0},{"$f":"F_Inputs!RGH7","v":0},{"$f":"F_Inputs!RGI7","v":0},{"$f":"F_Inputs!RGJ7","v":0},{"$f":"F_Inputs!RGK7","v":0},{"$f":"F_Inputs!RGL7","v":0},{"$f":"F_Inputs!RGM7","v":0},{"$f":"F_Inputs!RGN7","v":0},{"$f":"F_Inputs!RGO7","v":0},{"$f":"F_Inputs!RGP7","v":0},{"$f":"F_Inputs!RGQ7","v":0},{"$f":"F_Inputs!RGR7","v":0},{"$f":"F_Inputs!RGS7","v":0},{"$f":"F_Inputs!RGT7","v":0},{"$f":"F_Inputs!RGU7","v":0},{"$f":"F_Inputs!RGV7","v":0},{"$f":"F_Inputs!RGW7","v":0},{"$f":"F_Inputs!RGX7","v":0},{"$f":"F_Inputs!RGY7","v":0},{"$f":"F_Inputs!RGZ7","v":0},{"$f":"F_Inputs!RHA7","v":0},{"$f":"F_Inputs!RHB7","v":0},{"$f":"F_Inputs!RHC7","v":0},{"$f":"F_Inputs!RHD7","v":0},{"$f":"F_Inputs!RHE7","v":0},{"$f":"F_Inputs!RHF7","v":0},{"$f":"F_Inputs!RHG7","v":0},{"$f":"F_Inputs!RHH7","v":0},{"$f":"F_Inputs!RHI7","v":0},{"$f":"F_Inputs!RHJ7","v":0},{"$f":"F_Inputs!RHK7","v":0},{"$f":"F_Inputs!RHL7","v":0},{"$f":"F_Inputs!RHM7","v":0},{"$f":"F_Inputs!RHN7","v":0},{"$f":"F_Inputs!RHO7","v":0},{"$f":"F_Inputs!RHP7","v":0},{"$f":"F_Inputs!RHQ7","v":0},{"$f":"F_Inputs!RHR7","v":0},{"$f":"F_Inputs!RHS7","v":0},{"$f":"F_Inputs!RHT7","v":0},{"$f":"F_Inputs!RHU7","v":0},{"$f":"F_Inputs!RHV7","v":0},{"$f":"F_Inputs!RHW7","v":0},{"$f":"F_Inputs!RHX7","v":0},{"$f":"F_Inputs!RHY7","v":0},{"$f":"F_Inputs!RHZ7","v":0},{"$f":"F_Inputs!RIA7","v":0},{"$f":"F_Inputs!RIB7","v":0},{"$f":"F_Inputs!RIC7","v":0},{"$f":"F_Inputs!RID7","v":0},{"$f":"F_Inputs!RIE7","v":0},{"$f":"F_Inputs!RIF7","v":0},{"$f":"F_Inputs!RIG7","v":0},{"$f":"F_Inputs!RIH7","v":0},{"$f":"F_Inputs!RII7","v":0},{"$f":"F_Inputs!RIJ7","v":0},{"$f":"F_Inputs!RIK7","v":0},{"$f":"F_Inputs!RIL7","v":0},{"$f":"F_Inputs!RIM7","v":0},{"$f":"F_Inputs!RIN7","v":0},{"$f":"F_Inputs!RIO7","v":0},{"$f":"F_Inputs!RIP7","v":0},{"$f":"F_Inputs!RIQ7","v":0},{"$f":"F_Inputs!RIR7","v":0},{"$f":"F_Inputs!RIS7","v":0},{"$f":"F_Inputs!RIT7","v":0},{"$f":"F_Inputs!RIU7","v":0},{"$f":"F_Inputs!RIV7","v":0},{"$f":"F_Inputs!RIW7","v":0},{"$f":"F_Inputs!RIX7","v":0},{"$f":"F_Inputs!RIY7","v":0},{"$f":"F_Inputs!RIZ7","v":0},{"$f":"F_Inputs!RJA7","v":0},{"$f":"F_Inputs!RJB7","v":0},{"$f":"F_Inputs!RJC7","v":0},{"$f":"F_Inputs!RJD7","v":0},{"$f":"F_Inputs!RJE7","v":0},{"$f":"F_Inputs!RJF7","v":0},{"$f":"F_Inputs!RJG7","v":0},{"$f":"F_Inputs!RJH7","v":0},{"$f":"F_Inputs!RJI7","v":0},{"$f":"F_Inputs!RJJ7","v":0},{"$f":"F_Inputs!RJK7","v":0},{"$f":"F_Inputs!RJL7","v":0},{"$f":"F_Inputs!RJM7","v":0},{"$f":"F_Inputs!RJN7","v":0},{"$f":"F_Inputs!RJO7","v":0},{"$f":"F_Inputs!RJP7","v":0},{"$f":"F_Inputs!RJQ7","v":0},{"$f":"F_Inputs!RJR7","v":0},{"$f":"F_Inputs!RJS7","v":0},{"$f":"F_Inputs!RJT7","v":0},{"$f":"F_Inputs!RJU7","v":0},{"$f":"F_Inputs!RJV7","v":0},{"$f":"F_Inputs!RJW7","v":0},{"$f":"F_Inputs!RJX7","v":0},{"$f":"F_Inputs!RJY7","v":0},{"$f":"F_Inputs!RJZ7","v":0},{"$f":"F_Inputs!RKA7","v":0},{"$f":"F_Inputs!RKB7","v":0},{"$f":"F_Inputs!RKC7","v":0},{"$f":"F_Inputs!RKD7","v":0},{"$f":"F_Inputs!RKE7","v":0},{"$f":"F_Inputs!RKF7","v":0},{"$f":"F_Inputs!RKG7","v":0},{"$f":"F_Inputs!RKH7","v":0},{"$f":"F_Inputs!RKI7","v":0},{"$f":"F_Inputs!RKJ7","v":0},{"$f":"F_Inputs!RKK7","v":0},{"$f":"F_Inputs!RKL7","v":0},{"$f":"F_Inputs!RKM7","v":0},{"$f":"F_Inputs!RKN7","v":0},{"$f":"F_Inputs!RKO7","v":0},{"$f":"F_Inputs!RKP7","v":0},{"$f":"F_Inputs!RKQ7","v":0},{"$f":"F_Inputs!RKR7","v":0},{"$f":"F_Inputs!RKS7","v":0},{"$f":"F_Inputs!RKT7","v":0},{"$f":"F_Inputs!RKU7","v":0},{"$f":"F_Inputs!RKV7","v":0},{"$f":"F_Inputs!RKW7","v":0},{"$f":"F_Inputs!RKX7","v":0},{"$f":"F_Inputs!RKY7","v":0},{"$f":"F_Inputs!RKZ7","v":0},{"$f":"F_Inputs!RLA7","v":0},{"$f":"F_Inputs!RLB7","v":0},{"$f":"F_Inputs!RLC7","v":0},{"$f":"F_Inputs!RLD7","v":0},{"$f":"F_Inputs!RLE7","v":0},{"$f":"F_Inputs!RLF7","v":0},{"$f":"F_Inputs!RLG7","v":0},{"$f":"F_Inputs!RLH7","v":0},{"$f":"F_Inputs!RLI7","v":0},{"$f":"F_Inputs!RLJ7","v":0},{"$f":"F_Inputs!RLK7","v":0},{"$f":"F_Inputs!RLL7","v":0},{"$f":"F_Inputs!RLM7","v":0},{"$f":"F_Inputs!RLN7","v":0},{"$f":"F_Inputs!RLO7","v":0},{"$f":"F_Inputs!RLP7","v":0},{"$f":"F_Inputs!RLQ7","v":0},{"$f":"F_Inputs!RLR7","v":0},{"$f":"F_Inputs!RLS7","v":0},{"$f":"F_Inputs!RLT7","v":0},{"$f":"F_Inputs!RLU7","v":0},{"$f":"F_Inputs!RLV7","v":0},{"$f":"F_Inputs!RLW7","v":0},{"$f":"F_Inputs!RLX7","v":0},{"$f":"F_Inputs!RLY7","v":0},{"$f":"F_Inputs!RLZ7","v":0},{"$f":"F_Inputs!RMA7","v":0},{"$f":"F_Inputs!RMB7","v":0},{"$f":"F_Inputs!RMC7","v":0},{"$f":"F_Inputs!RMD7","v":0},{"$f":"F_Inputs!RME7","v":0},{"$f":"F_Inputs!RMF7","v":0},{"$f":"F_Inputs!RMG7","v":0},{"$f":"F_Inputs!RMH7","v":0},{"$f":"F_Inputs!RMI7","v":0},{"$f":"F_Inputs!RMJ7","v":0},{"$f":"F_Inputs!RMK7","v":0},{"$f":"F_Inputs!RML7","v":0},{"$f":"F_Inputs!RMM7","v":0},{"$f":"F_Inputs!RMN7","v":0},{"$f":"F_Inputs!RMO7","v":0},{"$f":"F_Inputs!RMP7","v":0},{"$f":"F_Inputs!RMQ7","v":0},{"$f":"F_Inputs!RMR7","v":0},{"$f":"F_Inputs!RMS7","v":0},{"$f":"F_Inputs!RMT7","v":0},{"$f":"F_Inputs!RMU7","v":0},{"$f":"F_Inputs!RMV7","v":0},{"$f":"F_Inputs!RMW7","v":0},{"$f":"F_Inputs!RMX7","v":0},{"$f":"F_Inputs!RMY7","v":0},{"$f":"F_Inputs!RMZ7","v":0},{"$f":"F_Inputs!RNA7","v":0},{"$f":"F_Inputs!RNB7","v":0},{"$f":"F_Inputs!RNC7","v":0},{"$f":"F_Inputs!RND7","v":0},{"$f":"F_Inputs!RNE7","v":0},{"$f":"F_Inputs!RNF7","v":0},{"$f":"F_Inputs!RNG7","v":0},{"$f":"F_Inputs!RNH7","v":0},{"$f":"F_Inputs!RNI7","v":0},{"$f":"F_Inputs!RNJ7","v":0},{"$f":"F_Inputs!RNK7","v":0},{"$f":"F_Inputs!RNL7","v":0},{"$f":"F_Inputs!RNM7","v":0},{"$f":"F_Inputs!RNN7","v":0},{"$f":"F_Inputs!RNO7","v":0},{"$f":"F_Inputs!RNP7","v":0},{"$f":"F_Inputs!RNQ7","v":0},{"$f":"F_Inputs!RNR7","v":0},{"$f":"F_Inputs!RNS7","v":0},{"$f":"F_Inputs!RNT7","v":0},{"$f":"F_Inputs!RNU7","v":0},{"$f":"F_Inputs!RNV7","v":0},{"$f":"F_Inputs!RNW7","v":0},{"$f":"F_Inputs!RNX7","v":0},{"$f":"F_Inputs!RNY7","v":0},{"$f":"F_Inputs!RNZ7","v":0},{"$f":"F_Inputs!ROA7","v":0},{"$f":"F_Inputs!ROB7","v":0},{"$f":"F_Inputs!ROC7","v":0},{"$f":"F_Inputs!ROD7","v":0},{"$f":"F_Inputs!ROE7","v":0},{"$f":"F_Inputs!ROF7","v":0},{"$f":"F_Inputs!ROG7","v":0},{"$f":"F_Inputs!ROH7","v":0},{"$f":"F_Inputs!ROI7","v":0},{"$f":"F_Inputs!ROJ7","v":0},{"$f":"F_Inputs!ROK7","v":0},{"$f":"F_Inputs!ROL7","v":0},{"$f":"F_Inputs!ROM7","v":0},{"$f":"F_Inputs!RON7","v":0},{"$f":"F_Inputs!ROO7","v":0},{"$f":"F_Inputs!ROP7","v":0},{"$f":"F_Inputs!ROQ7","v":0},{"$f":"F_Inputs!ROR7","v":0},{"$f":"F_Inputs!ROS7","v":0},{"$f":"F_Inputs!ROT7","v":0},{"$f":"F_Inputs!ROU7","v":0},{"$f":"F_Inputs!ROV7","v":0},{"$f":"F_Inputs!ROW7","v":0},{"$f":"F_Inputs!ROX7","v":0},{"$f":"F_Inputs!ROY7","v":0},{"$f":"F_Inputs!ROZ7","v":0},{"$f":"F_Inputs!RPA7","v":0},{"$f":"F_Inputs!RPB7","v":0},{"$f":"F_Inputs!RPC7","v":0},{"$f":"F_Inputs!RPD7","v":0},{"$f":"F_Inputs!RPE7","v":0},{"$f":"F_Inputs!RPF7","v":0},{"$f":"F_Inputs!RPG7","v":0},{"$f":"F_Inputs!RPH7","v":0},{"$f":"F_Inputs!RPI7","v":0},{"$f":"F_Inputs!RPJ7","v":0},{"$f":"F_Inputs!RPK7","v":0},{"$f":"F_Inputs!RPL7","v":0},{"$f":"F_Inputs!RPM7","v":0},{"$f":"F_Inputs!RPN7","v":0},{"$f":"F_Inputs!RPO7","v":0},{"$f":"F_Inputs!RPP7","v":0},{"$f":"F_Inputs!RPQ7","v":0},{"$f":"F_Inputs!RPR7","v":0},{"$f":"F_Inputs!RPS7","v":0},{"$f":"F_Inputs!RPT7","v":0},{"$f":"F_Inputs!RPU7","v":0},{"$f":"F_Inputs!RPV7","v":0},{"$f":"F_Inputs!RPW7","v":0},{"$f":"F_Inputs!RPX7","v":0},{"$f":"F_Inputs!RPY7","v":0},{"$f":"F_Inputs!RPZ7","v":0},{"$f":"F_Inputs!RQA7","v":0},{"$f":"F_Inputs!RQB7","v":0},{"$f":"F_Inputs!RQC7","v":0},{"$f":"F_Inputs!RQD7","v":0},{"$f":"F_Inputs!RQE7","v":0},{"$f":"F_Inputs!RQF7","v":0},{"$f":"F_Inputs!RQG7","v":0},{"$f":"F_Inputs!RQH7","v":0},{"$f":"F_Inputs!RQI7","v":0},{"$f":"F_Inputs!RQJ7","v":0},{"$f":"F_Inputs!RQK7","v":0},{"$f":"F_Inputs!RQL7","v":0},{"$f":"F_Inputs!RQM7","v":0},{"$f":"F_Inputs!RQN7","v":0},{"$f":"F_Inputs!RQO7","v":0},{"$f":"F_Inputs!RQP7","v":0},{"$f":"F_Inputs!RQQ7","v":0},{"$f":"F_Inputs!RQR7","v":0},{"$f":"F_Inputs!RQS7","v":0},{"$f":"F_Inputs!RQT7","v":0},{"$f":"F_Inputs!RQU7","v":0},{"$f":"F_Inputs!RQV7","v":0},{"$f":"F_Inputs!RQW7","v":0},{"$f":"F_Inputs!RQX7","v":0},{"$f":"F_Inputs!RQY7","v":0},{"$f":"F_Inputs!RQZ7","v":0},{"$f":"F_Inputs!RRA7","v":0},{"$f":"F_Inputs!RRB7","v":0},{"$f":"F_Inputs!RRC7","v":0},{"$f":"F_Inputs!RRD7","v":0},{"$f":"F_Inputs!RRE7","v":0},{"$f":"F_Inputs!RRF7","v":0},{"$f":"F_Inputs!RRG7","v":0},{"$f":"F_Inputs!RRH7","v":0},{"$f":"F_Inputs!RRI7","v":0},{"$f":"F_Inputs!RRJ7","v":0},{"$f":"F_Inputs!RRK7","v":0},{"$f":"F_Inputs!RRL7","v":0},{"$f":"F_Inputs!RRM7","v":0},{"$f":"F_Inputs!RRN7","v":0},{"$f":"F_Inputs!RRO7","v":0},{"$f":"F_Inputs!RRP7","v":0},{"$f":"F_Inputs!RRQ7","v":0},{"$f":"F_Inputs!RRR7","v":0},{"$f":"F_Inputs!RRS7","v":0},{"$f":"F_Inputs!RRT7","v":0},{"$f":"F_Inputs!RRU7","v":0},{"$f":"F_Inputs!RRV7","v":0},{"$f":"F_Inputs!RRW7","v":0},{"$f":"F_Inputs!RRX7","v":0},{"$f":"F_Inputs!RRY7","v":0},{"$f":"F_Inputs!RRZ7","v":0},{"$f":"F_Inputs!RSA7","v":0},{"$f":"F_Inputs!RSB7","v":0},{"$f":"F_Inputs!RSC7","v":0},{"$f":"F_Inputs!RSD7","v":0},{"$f":"F_Inputs!RSE7","v":0},{"$f":"F_Inputs!RSF7","v":0},{"$f":"F_Inputs!RSG7","v":0},{"$f":"F_Inputs!RSH7","v":0},{"$f":"F_Inputs!RSI7","v":0},{"$f":"F_Inputs!RSJ7","v":0},{"$f":"F_Inputs!RSK7","v":0},{"$f":"F_Inputs!RSL7","v":0},{"$f":"F_Inputs!RSM7","v":0},{"$f":"F_Inputs!RSN7","v":0},{"$f":"F_Inputs!RSO7","v":0},{"$f":"F_Inputs!RSP7","v":0},{"$f":"F_Inputs!RSQ7","v":0},{"$f":"F_Inputs!RSR7","v":0},{"$f":"F_Inputs!RSS7","v":0},{"$f":"F_Inputs!RST7","v":0},{"$f":"F_Inputs!RSU7","v":0},{"$f":"F_Inputs!RSV7","v":0},{"$f":"F_Inputs!RSW7","v":0},{"$f":"F_Inputs!RSX7","v":0},{"$f":"F_Inputs!RSY7","v":0},{"$f":"F_Inputs!RSZ7","v":0},{"$f":"F_Inputs!RTA7","v":0},{"$f":"F_Inputs!RTB7","v":0},{"$f":"F_Inputs!RTC7","v":0},{"$f":"F_Inputs!RTD7","v":0},{"$f":"F_Inputs!RTE7","v":0},{"$f":"F_Inputs!RTF7","v":0},{"$f":"F_Inputs!RTG7","v":0},{"$f":"F_Inputs!RTH7","v":0},{"$f":"F_Inputs!RTI7","v":0},{"$f":"F_Inputs!RTJ7","v":0},{"$f":"F_Inputs!RTK7","v":0},{"$f":"F_Inputs!RTL7","v":0},{"$f":"F_Inputs!RTM7","v":0},{"$f":"F_Inputs!RTN7","v":0},{"$f":"F_Inputs!RTO7","v":0},{"$f":"F_Inputs!RTP7","v":0},{"$f":"F_Inputs!RTQ7","v":0},{"$f":"F_Inputs!RTR7","v":0},{"$f":"F_Inputs!RTS7","v":0},{"$f":"F_Inputs!RTT7","v":0},{"$f":"F_Inputs!RTU7","v":0},{"$f":"F_Inputs!RTV7","v":0},{"$f":"F_Inputs!RTW7","v":0},{"$f":"F_Inputs!RTX7","v":0},{"$f":"F_Inputs!RTY7","v":0},{"$f":"F_Inputs!RTZ7","v":0},{"$f":"F_Inputs!RUA7","v":0},{"$f":"F_Inputs!RUB7","v":0},{"$f":"F_Inputs!RUC7","v":0},{"$f":"F_Inputs!RUD7","v":0},{"$f":"F_Inputs!RUE7","v":0},{"$f":"F_Inputs!RUF7","v":0},{"$f":"F_Inputs!RUG7","v":0},{"$f":"F_Inputs!RUH7","v":0},{"$f":"F_Inputs!RUI7","v":0},{"$f":"F_Inputs!RUJ7","v":0},{"$f":"F_Inputs!RUK7","v":0},{"$f":"F_Inputs!RUL7","v":0},{"$f":"F_Inputs!RUM7","v":0},{"$f":"F_Inputs!RUN7","v":0},{"$f":"F_Inputs!RUO7","v":0},{"$f":"F_Inputs!RUP7","v":0},{"$f":"F_Inputs!RUQ7","v":0},{"$f":"F_Inputs!RUR7","v":0},{"$f":"F_Inputs!RUS7","v":0},{"$f":"F_Inputs!RUT7","v":0},{"$f":"F_Inputs!RUU7","v":0},{"$f":"F_Inputs!RUV7","v":0},{"$f":"F_Inputs!RUW7","v":0},{"$f":"F_Inputs!RUX7","v":0},{"$f":"F_Inputs!RUY7","v":0},{"$f":"F_Inputs!RUZ7","v":0},{"$f":"F_Inputs!RVA7","v":0},{"$f":"F_Inputs!RVB7","v":0},{"$f":"F_Inputs!RVC7","v":0},{"$f":"F_Inputs!RVD7","v":0},{"$f":"F_Inputs!RVE7","v":0},{"$f":"F_Inputs!RVF7","v":0},{"$f":"F_Inputs!RVG7","v":0},{"$f":"F_Inputs!RVH7","v":0},{"$f":"F_Inputs!RVI7","v":0},{"$f":"F_Inputs!RVJ7","v":0},{"$f":"F_Inputs!RVK7","v":0},{"$f":"F_Inputs!RVL7","v":0},{"$f":"F_Inputs!RVM7","v":0},{"$f":"F_Inputs!RVN7","v":0},{"$f":"F_Inputs!RVO7","v":0},{"$f":"F_Inputs!RVP7","v":0},{"$f":"F_Inputs!RVQ7","v":0},{"$f":"F_Inputs!RVR7","v":0},{"$f":"F_Inputs!RVS7","v":0},{"$f":"F_Inputs!RVT7","v":0},{"$f":"F_Inputs!RVU7","v":0},{"$f":"F_Inputs!RVV7","v":0},{"$f":"F_Inputs!RVW7","v":0},{"$f":"F_Inputs!RVX7","v":0},{"$f":"F_Inputs!RVY7","v":0},{"$f":"F_Inputs!RVZ7","v":0},{"$f":"F_Inputs!RWA7","v":0},{"$f":"F_Inputs!RWB7","v":0},{"$f":"F_Inputs!RWC7","v":0},{"$f":"F_Inputs!RWD7","v":0},{"$f":"F_Inputs!RWE7","v":0},{"$f":"F_Inputs!RWF7","v":0},{"$f":"F_Inputs!RWG7","v":0},{"$f":"F_Inputs!RWH7","v":0},{"$f":"F_Inputs!RWI7","v":0},{"$f":"F_Inputs!RWJ7","v":0},{"$f":"F_Inputs!RWK7","v":0},{"$f":"F_Inputs!RWL7","v":0},{"$f":"F_Inputs!RWM7","v":0},{"$f":"F_Inputs!RWN7","v":0},{"$f":"F_Inputs!RWO7","v":0},{"$f":"F_Inputs!RWP7","v":0},{"$f":"F_Inputs!RWQ7","v":0},{"$f":"F_Inputs!RWR7","v":0},{"$f":"F_Inputs!RWS7","v":0},{"$f":"F_Inputs!RWT7","v":0},{"$f":"F_Inputs!RWU7","v":0},{"$f":"F_Inputs!RWV7","v":0},{"$f":"F_Inputs!RWW7","v":0},{"$f":"F_Inputs!RWX7","v":0},{"$f":"F_Inputs!RWY7","v":0},{"$f":"F_Inputs!RWZ7","v":0},{"$f":"F_Inputs!RXA7","v":0},{"$f":"F_Inputs!RXB7","v":0},{"$f":"F_Inputs!RXC7","v":0},{"$f":"F_Inputs!RXD7","v":0},{"$f":"F_Inputs!RXE7","v":0},{"$f":"F_Inputs!RXF7","v":0},{"$f":"F_Inputs!RXG7","v":0},{"$f":"F_Inputs!RXH7","v":0},{"$f":"F_Inputs!RXI7","v":0},{"$f":"F_Inputs!RXJ7","v":0},{"$f":"F_Inputs!RXK7","v":0},{"$f":"F_Inputs!RXL7","v":0},{"$f":"F_Inputs!RXM7","v":0},{"$f":"F_Inputs!RXN7","v":0},{"$f":"F_Inputs!RXO7","v":0},{"$f":"F_Inputs!RXP7","v":0},{"$f":"F_Inputs!RXQ7","v":0},{"$f":"F_Inputs!RXR7","v":0},{"$f":"F_Inputs!RXS7","v":0},{"$f":"F_Inputs!RXT7","v":0},{"$f":"F_Inputs!RXU7","v":0},{"$f":"F_Inputs!RXV7","v":0},{"$f":"F_Inputs!RXW7","v":0},{"$f":"F_Inputs!RXX7","v":0},{"$f":"F_Inputs!RXY7","v":0},{"$f":"F_Inputs!RXZ7","v":0},{"$f":"F_Inputs!RYA7","v":0},{"$f":"F_Inputs!RYB7","v":0},{"$f":"F_Inputs!RYC7","v":0},{"$f":"F_Inputs!RYD7","v":0},{"$f":"F_Inputs!RYE7","v":0},{"$f":"F_Inputs!RYF7","v":0},{"$f":"F_Inputs!RYG7","v":0},{"$f":"F_Inputs!RYH7","v":0},{"$f":"F_Inputs!RYI7","v":0},{"$f":"F_Inputs!RYJ7","v":0},{"$f":"F_Inputs!RYK7","v":0},{"$f":"F_Inputs!RYL7","v":0},{"$f":"F_Inputs!RYM7","v":0},{"$f":"F_Inputs!RYN7","v":0},{"$f":"F_Inputs!RYO7","v":0},{"$f":"F_Inputs!RYP7","v":0},{"$f":"F_Inputs!RYQ7","v":0},{"$f":"F_Inputs!RYR7","v":0},{"$f":"F_Inputs!RYS7","v":0},{"$f":"F_Inputs!RYT7","v":0},{"$f":"F_Inputs!RYU7","v":0},{"$f":"F_Inputs!RYV7","v":0},{"$f":"F_Inputs!RYW7","v":0},{"$f":"F_Inputs!RYX7","v":0},{"$f":"F_Inputs!RYY7","v":0},{"$f":"F_Inputs!RYZ7","v":0},{"$f":"F_Inputs!RZA7","v":0},{"$f":"F_Inputs!RZB7","v":0},{"$f":"F_Inputs!RZC7","v":0},{"$f":"F_Inputs!RZD7","v":0},{"$f":"F_Inputs!RZE7","v":0},{"$f":"F_Inputs!RZF7","v":0},{"$f":"F_Inputs!RZG7","v":0},{"$f":"F_Inputs!RZH7","v":0},{"$f":"F_Inputs!RZI7","v":0},{"$f":"F_Inputs!RZJ7","v":0},{"$f":"F_Inputs!RZK7","v":0},{"$f":"F_Inputs!RZL7","v":0},{"$f":"F_Inputs!RZM7","v":0},{"$f":"F_Inputs!RZN7","v":0},{"$f":"F_Inputs!RZO7","v":0},{"$f":"F_Inputs!RZP7","v":0},{"$f":"F_Inputs!RZQ7","v":0},{"$f":"F_Inputs!RZR7","v":0},{"$f":"F_Inputs!RZS7","v":0},{"$f":"F_Inputs!RZT7","v":0},{"$f":"F_Inputs!RZU7","v":0},{"$f":"F_Inputs!RZV7","v":0},{"$f":"F_Inputs!RZW7","v":0},{"$f":"F_Inputs!RZX7","v":0},{"$f":"F_Inputs!RZY7","v":0},{"$f":"F_Inputs!RZZ7","v":0},{"$f":"F_Inputs!SAA7","v":0},{"$f":"F_Inputs!SAB7","v":0},{"$f":"F_Inputs!SAC7","v":0},{"$f":"F_Inputs!SAD7","v":0},{"$f":"F_Inputs!SAE7","v":0},{"$f":"F_Inputs!SAF7","v":0},{"$f":"F_Inputs!SAG7","v":0},{"$f":"F_Inputs!SAH7","v":0},{"$f":"F_Inputs!SAI7","v":0},{"$f":"F_Inputs!SAJ7","v":0},{"$f":"F_Inputs!SAK7","v":0},{"$f":"F_Inputs!SAL7","v":0},{"$f":"F_Inputs!SAM7","v":0},{"$f":"F_Inputs!SAN7","v":0},{"$f":"F_Inputs!SAO7","v":0},{"$f":"F_Inputs!SAP7","v":0},{"$f":"F_Inputs!SAQ7","v":0},{"$f":"F_Inputs!SAR7","v":0},{"$f":"F_Inputs!SAS7","v":0},{"$f":"F_Inputs!SAT7","v":0},{"$f":"F_Inputs!SAU7","v":0},{"$f":"F_Inputs!SAV7","v":0},{"$f":"F_Inputs!SAW7","v":0},{"$f":"F_Inputs!SAX7","v":0},{"$f":"F_Inputs!SAY7","v":0},{"$f":"F_Inputs!SAZ7","v":0},{"$f":"F_Inputs!SBA7","v":0},{"$f":"F_Inputs!SBB7","v":0},{"$f":"F_Inputs!SBC7","v":0},{"$f":"F_Inputs!SBD7","v":0},{"$f":"F_Inputs!SBE7","v":0},{"$f":"F_Inputs!SBF7","v":0},{"$f":"F_Inputs!SBG7","v":0},{"$f":"F_Inputs!SBH7","v":0},{"$f":"F_Inputs!SBI7","v":0},{"$f":"F_Inputs!SBJ7","v":0},{"$f":"F_Inputs!SBK7","v":0},{"$f":"F_Inputs!SBL7","v":0},{"$f":"F_Inputs!SBM7","v":0},{"$f":"F_Inputs!SBN7","v":0},{"$f":"F_Inputs!SBO7","v":0},{"$f":"F_Inputs!SBP7","v":0},{"$f":"F_Inputs!SBQ7","v":0},{"$f":"F_Inputs!SBR7","v":0},{"$f":"F_Inputs!SBS7","v":0},{"$f":"F_Inputs!SBT7","v":0},{"$f":"F_Inputs!SBU7","v":0},{"$f":"F_Inputs!SBV7","v":0},{"$f":"F_Inputs!SBW7","v":0},{"$f":"F_Inputs!SBX7","v":0},{"$f":"F_Inputs!SBY7","v":0},{"$f":"F_Inputs!SBZ7","v":0},{"$f":"F_Inputs!SCA7","v":0},{"$f":"F_Inputs!SCB7","v":0},{"$f":"F_Inputs!SCC7","v":0},{"$f":"F_Inputs!SCD7","v":0},{"$f":"F_Inputs!SCE7","v":0},{"$f":"F_Inputs!SCF7","v":0},{"$f":"F_Inputs!SCG7","v":0},{"$f":"F_Inputs!SCH7","v":0},{"$f":"F_Inputs!SCI7","v":0},{"$f":"F_Inputs!SCJ7","v":0},{"$f":"F_Inputs!SCK7","v":0},{"$f":"F_Inputs!SCL7","v":0},{"$f":"F_Inputs!SCM7","v":0},{"$f":"F_Inputs!SCN7","v":0},{"$f":"F_Inputs!SCO7","v":0},{"$f":"F_Inputs!SCP7","v":0},{"$f":"F_Inputs!SCQ7","v":0},{"$f":"F_Inputs!SCR7","v":0},{"$f":"F_Inputs!SCS7","v":0},{"$f":"F_Inputs!SCT7","v":0},{"$f":"F_Inputs!SCU7","v":0},{"$f":"F_Inputs!SCV7","v":0},{"$f":"F_Inputs!SCW7","v":0},{"$f":"F_Inputs!SCX7","v":0},{"$f":"F_Inputs!SCY7","v":0},{"$f":"F_Inputs!SCZ7","v":0},{"$f":"F_Inputs!SDA7","v":0},{"$f":"F_Inputs!SDB7","v":0},{"$f":"F_Inputs!SDC7","v":0},{"$f":"F_Inputs!SDD7","v":0},{"$f":"F_Inputs!SDE7","v":0},{"$f":"F_Inputs!SDF7","v":0},{"$f":"F_Inputs!SDG7","v":0},{"$f":"F_Inputs!SDH7","v":0},{"$f":"F_Inputs!SDI7","v":0},{"$f":"F_Inputs!SDJ7","v":0},{"$f":"F_Inputs!SDK7","v":0},{"$f":"F_Inputs!SDL7","v":0},{"$f":"F_Inputs!SDM7","v":0},{"$f":"F_Inputs!SDN7","v":0},{"$f":"F_Inputs!SDO7","v":0},{"$f":"F_Inputs!SDP7","v":0},{"$f":"F_Inputs!SDQ7","v":0},{"$f":"F_Inputs!SDR7","v":0},{"$f":"F_Inputs!SDS7","v":0},{"$f":"F_Inputs!SDT7","v":0},{"$f":"F_Inputs!SDU7","v":0},{"$f":"F_Inputs!SDV7","v":0},{"$f":"F_Inputs!SDW7","v":0},{"$f":"F_Inputs!SDX7","v":0},{"$f":"F_Inputs!SDY7","v":0},{"$f":"F_Inputs!SDZ7","v":0},{"$f":"F_Inputs!SEA7","v":0},{"$f":"F_Inputs!SEB7","v":0},{"$f":"F_Inputs!SEC7","v":0},{"$f":"F_Inputs!SED7","v":0},{"$f":"F_Inputs!SEE7","v":0},{"$f":"F_Inputs!SEF7","v":0},{"$f":"F_Inputs!SEG7","v":0},{"$f":"F_Inputs!SEH7","v":0},{"$f":"F_Inputs!SEI7","v":0},{"$f":"F_Inputs!SEJ7","v":0},{"$f":"F_Inputs!SEK7","v":0},{"$f":"F_Inputs!SEL7","v":0},{"$f":"F_Inputs!SEM7","v":0},{"$f":"F_Inputs!SEN7","v":0},{"$f":"F_Inputs!SEO7","v":0},{"$f":"F_Inputs!SEP7","v":0},{"$f":"F_Inputs!SEQ7","v":0},{"$f":"F_Inputs!SER7","v":0},{"$f":"F_Inputs!SES7","v":0},{"$f":"F_Inputs!SET7","v":0},{"$f":"F_Inputs!SEU7","v":0},{"$f":"F_Inputs!SEV7","v":0},{"$f":"F_Inputs!SEW7","v":0},{"$f":"F_Inputs!SEX7","v":0},{"$f":"F_Inputs!SEY7","v":0},{"$f":"F_Inputs!SEZ7","v":0},{"$f":"F_Inputs!SFA7","v":0},{"$f":"F_Inputs!SFB7","v":0},{"$f":"F_Inputs!SFC7","v":0},{"$f":"F_Inputs!SFD7","v":0},{"$f":"F_Inputs!SFE7","v":0},{"$f":"F_Inputs!SFF7","v":0},{"$f":"F_Inputs!SFG7","v":0},{"$f":"F_Inputs!SFH7","v":0},{"$f":"F_Inputs!SFI7","v":0},{"$f":"F_Inputs!SFJ7","v":0},{"$f":"F_Inputs!SFK7","v":0},{"$f":"F_Inputs!SFL7","v":0},{"$f":"F_Inputs!SFM7","v":0},{"$f":"F_Inputs!SFN7","v":0},{"$f":"F_Inputs!SFO7","v":0},{"$f":"F_Inputs!SFP7","v":0},{"$f":"F_Inputs!SFQ7","v":0},{"$f":"F_Inputs!SFR7","v":0},{"$f":"F_Inputs!SFS7","v":0},{"$f":"F_Inputs!SFT7","v":0},{"$f":"F_Inputs!SFU7","v":0},{"$f":"F_Inputs!SFV7","v":0},{"$f":"F_Inputs!SFW7","v":0},{"$f":"F_Inputs!SFX7","v":0},{"$f":"F_Inputs!SFY7","v":0},{"$f":"F_Inputs!SFZ7","v":0},{"$f":"F_Inputs!SGA7","v":0},{"$f":"F_Inputs!SGB7","v":0},{"$f":"F_Inputs!SGC7","v":0},{"$f":"F_Inputs!SGD7","v":0},{"$f":"F_Inputs!SGE7","v":0},{"$f":"F_Inputs!SGF7","v":0},{"$f":"F_Inputs!SGG7","v":0},{"$f":"F_Inputs!SGH7","v":0},{"$f":"F_Inputs!SGI7","v":0},{"$f":"F_Inputs!SGJ7","v":0},{"$f":"F_Inputs!SGK7","v":0},{"$f":"F_Inputs!SGL7","v":0},{"$f":"F_Inputs!SGM7","v":0},{"$f":"F_Inputs!SGN7","v":0},{"$f":"F_Inputs!SGO7","v":0},{"$f":"F_Inputs!SGP7","v":0},{"$f":"F_Inputs!SGQ7","v":0},{"$f":"F_Inputs!SGR7","v":0},{"$f":"F_Inputs!SGS7","v":0},{"$f":"F_Inputs!SGT7","v":0},{"$f":"F_Inputs!SGU7","v":0},{"$f":"F_Inputs!SGV7","v":0},{"$f":"F_Inputs!SGW7","v":0},{"$f":"F_Inputs!SGX7","v":0},{"$f":"F_Inputs!SGY7","v":0},{"$f":"F_Inputs!SGZ7","v":0},{"$f":"F_Inputs!SHA7","v":0},{"$f":"F_Inputs!SHB7","v":0},{"$f":"F_Inputs!SHC7","v":0},{"$f":"F_Inputs!SHD7","v":0},{"$f":"F_Inputs!SHE7","v":0},{"$f":"F_Inputs!SHF7","v":0},{"$f":"F_Inputs!SHG7","v":0},{"$f":"F_Inputs!SHH7","v":0},{"$f":"F_Inputs!SHI7","v":0},{"$f":"F_Inputs!SHJ7","v":0},{"$f":"F_Inputs!SHK7","v":0},{"$f":"F_Inputs!SHL7","v":0},{"$f":"F_Inputs!SHM7","v":0},{"$f":"F_Inputs!SHN7","v":0},{"$f":"F_Inputs!SHO7","v":0},{"$f":"F_Inputs!SHP7","v":0},{"$f":"F_Inputs!SHQ7","v":0},{"$f":"F_Inputs!SHR7","v":0},{"$f":"F_Inputs!SHS7","v":0},{"$f":"F_Inputs!SHT7","v":0},{"$f":"F_Inputs!SHU7","v":0},{"$f":"F_Inputs!SHV7","v":0},{"$f":"F_Inputs!SHW7","v":0},{"$f":"F_Inputs!SHX7","v":0},{"$f":"F_Inputs!SHY7","v":0},{"$f":"F_Inputs!SHZ7","v":0},{"$f":"F_Inputs!SIA7","v":0},{"$f":"F_Inputs!SIB7","v":0},{"$f":"F_Inputs!SIC7","v":0},{"$f":"F_Inputs!SID7","v":0},{"$f":"F_Inputs!SIE7","v":0},{"$f":"F_Inputs!SIF7","v":0},{"$f":"F_Inputs!SIG7","v":0},{"$f":"F_Inputs!SIH7","v":0},{"$f":"F_Inputs!SII7","v":0},{"$f":"F_Inputs!SIJ7","v":0},{"$f":"F_Inputs!SIK7","v":0},{"$f":"F_Inputs!SIL7","v":0},{"$f":"F_Inputs!SIM7","v":0},{"$f":"F_Inputs!SIN7","v":0},{"$f":"F_Inputs!SIO7","v":0},{"$f":"F_Inputs!SIP7","v":0},{"$f":"F_Inputs!SIQ7","v":0},{"$f":"F_Inputs!SIR7","v":0},{"$f":"F_Inputs!SIS7","v":0},{"$f":"F_Inputs!SIT7","v":0},{"$f":"F_Inputs!SIU7","v":0},{"$f":"F_Inputs!SIV7","v":0},{"$f":"F_Inputs!SIW7","v":0},{"$f":"F_Inputs!SIX7","v":0},{"$f":"F_Inputs!SIY7","v":0},{"$f":"F_Inputs!SIZ7","v":0},{"$f":"F_Inputs!SJA7","v":0},{"$f":"F_Inputs!SJB7","v":0},{"$f":"F_Inputs!SJC7","v":0},{"$f":"F_Inputs!SJD7","v":0},{"$f":"F_Inputs!SJE7","v":0},{"$f":"F_Inputs!SJF7","v":0},{"$f":"F_Inputs!SJG7","v":0},{"$f":"F_Inputs!SJH7","v":0},{"$f":"F_Inputs!SJI7","v":0},{"$f":"F_Inputs!SJJ7","v":0},{"$f":"F_Inputs!SJK7","v":0},{"$f":"F_Inputs!SJL7","v":0},{"$f":"F_Inputs!SJM7","v":0},{"$f":"F_Inputs!SJN7","v":0},{"$f":"F_Inputs!SJO7","v":0},{"$f":"F_Inputs!SJP7","v":0},{"$f":"F_Inputs!SJQ7","v":0},{"$f":"F_Inputs!SJR7","v":0},{"$f":"F_Inputs!SJS7","v":0},{"$f":"F_Inputs!SJT7","v":0},{"$f":"F_Inputs!SJU7","v":0},{"$f":"F_Inputs!SJV7","v":0},{"$f":"F_Inputs!SJW7","v":0},{"$f":"F_Inputs!SJX7","v":0},{"$f":"F_Inputs!SJY7","v":0},{"$f":"F_Inputs!SJZ7","v":0},{"$f":"F_Inputs!SKA7","v":0},{"$f":"F_Inputs!SKB7","v":0},{"$f":"F_Inputs!SKC7","v":0},{"$f":"F_Inputs!SKD7","v":0},{"$f":"F_Inputs!SKE7","v":0},{"$f":"F_Inputs!SKF7","v":0},{"$f":"F_Inputs!SKG7","v":0},{"$f":"F_Inputs!SKH7","v":0},{"$f":"F_Inputs!SKI7","v":0},{"$f":"F_Inputs!SKJ7","v":0},{"$f":"F_Inputs!SKK7","v":0},{"$f":"F_Inputs!SKL7","v":0},{"$f":"F_Inputs!SKM7","v":0},{"$f":"F_Inputs!SKN7","v":0},{"$f":"F_Inputs!SKO7","v":0},{"$f":"F_Inputs!SKP7","v":0},{"$f":"F_Inputs!SKQ7","v":0},{"$f":"F_Inputs!SKR7","v":0},{"$f":"F_Inputs!SKS7","v":0},{"$f":"F_Inputs!SKT7","v":0},{"$f":"F_Inputs!SKU7","v":0},{"$f":"F_Inputs!SKV7","v":0},{"$f":"F_Inputs!SKW7","v":0},{"$f":"F_Inputs!SKX7","v":0},{"$f":"F_Inputs!SKY7","v":0},{"$f":"F_Inputs!SKZ7","v":0},{"$f":"F_Inputs!SLA7","v":0},{"$f":"F_Inputs!SLB7","v":0},{"$f":"F_Inputs!SLC7","v":0},{"$f":"F_Inputs!SLD7","v":0},{"$f":"F_Inputs!SLE7","v":0},{"$f":"F_Inputs!SLF7","v":0},{"$f":"F_Inputs!SLG7","v":0},{"$f":"F_Inputs!SLH7","v":0},{"$f":"F_Inputs!SLI7","v":0},{"$f":"F_Inputs!SLJ7","v":0},{"$f":"F_Inputs!SLK7","v":0},{"$f":"F_Inputs!SLL7","v":0},{"$f":"F_Inputs!SLM7","v":0},{"$f":"F_Inputs!SLN7","v":0},{"$f":"F_Inputs!SLO7","v":0},{"$f":"F_Inputs!SLP7","v":0},{"$f":"F_Inputs!SLQ7","v":0},{"$f":"F_Inputs!SLR7","v":0},{"$f":"F_Inputs!SLS7","v":0},{"$f":"F_Inputs!SLT7","v":0},{"$f":"F_Inputs!SLU7","v":0},{"$f":"F_Inputs!SLV7","v":0},{"$f":"F_Inputs!SLW7","v":0},{"$f":"F_Inputs!SLX7","v":0},{"$f":"F_Inputs!SLY7","v":0},{"$f":"F_Inputs!SLZ7","v":0},{"$f":"F_Inputs!SMA7","v":0},{"$f":"F_Inputs!SMB7","v":0},{"$f":"F_Inputs!SMC7","v":0},{"$f":"F_Inputs!SMD7","v":0},{"$f":"F_Inputs!SME7","v":0},{"$f":"F_Inputs!SMF7","v":0},{"$f":"F_Inputs!SMG7","v":0},{"$f":"F_Inputs!SMH7","v":0},{"$f":"F_Inputs!SMI7","v":0},{"$f":"F_Inputs!SMJ7","v":0},{"$f":"F_Inputs!SMK7","v":0},{"$f":"F_Inputs!SML7","v":0},{"$f":"F_Inputs!SMM7","v":0},{"$f":"F_Inputs!SMN7","v":0},{"$f":"F_Inputs!SMO7","v":0},{"$f":"F_Inputs!SMP7","v":0},{"$f":"F_Inputs!SMQ7","v":0},{"$f":"F_Inputs!SMR7","v":0},{"$f":"F_Inputs!SMS7","v":0},{"$f":"F_Inputs!SMT7","v":0},{"$f":"F_Inputs!SMU7","v":0},{"$f":"F_Inputs!SMV7","v":0},{"$f":"F_Inputs!SMW7","v":0},{"$f":"F_Inputs!SMX7","v":0},{"$f":"F_Inputs!SMY7","v":0},{"$f":"F_Inputs!SMZ7","v":0},{"$f":"F_Inputs!SNA7","v":0},{"$f":"F_Inputs!SNB7","v":0},{"$f":"F_Inputs!SNC7","v":0},{"$f":"F_Inputs!SND7","v":0},{"$f":"F_Inputs!SNE7","v":0},{"$f":"F_Inputs!SNF7","v":0},{"$f":"F_Inputs!SNG7","v":0},{"$f":"F_Inputs!SNH7","v":0},{"$f":"F_Inputs!SNI7","v":0},{"$f":"F_Inputs!SNJ7","v":0},{"$f":"F_Inputs!SNK7","v":0},{"$f":"F_Inputs!SNL7","v":0},{"$f":"F_Inputs!SNM7","v":0},{"$f":"F_Inputs!SNN7","v":0},{"$f":"F_Inputs!SNO7","v":0},{"$f":"F_Inputs!SNP7","v":0},{"$f":"F_Inputs!SNQ7","v":0},{"$f":"F_Inputs!SNR7","v":0},{"$f":"F_Inputs!SNS7","v":0},{"$f":"F_Inputs!SNT7","v":0},{"$f":"F_Inputs!SNU7","v":0},{"$f":"F_Inputs!SNV7","v":0},{"$f":"F_Inputs!SNW7","v":0},{"$f":"F_Inputs!SNX7","v":0},{"$f":"F_Inputs!SNY7","v":0},{"$f":"F_Inputs!SNZ7","v":0},{"$f":"F_Inputs!SOA7","v":0},{"$f":"F_Inputs!SOB7","v":0},{"$f":"F_Inputs!SOC7","v":0},{"$f":"F_Inputs!SOD7","v":0},{"$f":"F_Inputs!SOE7","v":0},{"$f":"F_Inputs!SOF7","v":0},{"$f":"F_Inputs!SOG7","v":0},{"$f":"F_Inputs!SOH7","v":0},{"$f":"F_Inputs!SOI7","v":0},{"$f":"F_Inputs!SOJ7","v":0},{"$f":"F_Inputs!SOK7","v":0},{"$f":"F_Inputs!SOL7","v":0},{"$f":"F_Inputs!SOM7","v":0},{"$f":"F_Inputs!SON7","v":0},{"$f":"F_Inputs!SOO7","v":0},{"$f":"F_Inputs!SOP7","v":0},{"$f":"F_Inputs!SOQ7","v":0},{"$f":"F_Inputs!SOR7","v":0},{"$f":"F_Inputs!SOS7","v":0},{"$f":"F_Inputs!SOT7","v":0},{"$f":"F_Inputs!SOU7","v":0},{"$f":"F_Inputs!SOV7","v":0},{"$f":"F_Inputs!SOW7","v":0},{"$f":"F_Inputs!SOX7","v":0},{"$f":"F_Inputs!SOY7","v":0},{"$f":"F_Inputs!SOZ7","v":0},{"$f":"F_Inputs!SPA7","v":0},{"$f":"F_Inputs!SPB7","v":0},{"$f":"F_Inputs!SPC7","v":0},{"$f":"F_Inputs!SPD7","v":0},{"$f":"F_Inputs!SPE7","v":0},{"$f":"F_Inputs!SPF7","v":0},{"$f":"F_Inputs!SPG7","v":0},{"$f":"F_Inputs!SPH7","v":0},{"$f":"F_Inputs!SPI7","v":0},{"$f":"F_Inputs!SPJ7","v":0},{"$f":"F_Inputs!SPK7","v":0},{"$f":"F_Inputs!SPL7","v":0},{"$f":"F_Inputs!SPM7","v":0},{"$f":"F_Inputs!SPN7","v":0},{"$f":"F_Inputs!SPO7","v":0},{"$f":"F_Inputs!SPP7","v":0},{"$f":"F_Inputs!SPQ7","v":0},{"$f":"F_Inputs!SPR7","v":0},{"$f":"F_Inputs!SPS7","v":0},{"$f":"F_Inputs!SPT7","v":0},{"$f":"F_Inputs!SPU7","v":0},{"$f":"F_Inputs!SPV7","v":0},{"$f":"F_Inputs!SPW7","v":0},{"$f":"F_Inputs!SPX7","v":0},{"$f":"F_Inputs!SPY7","v":0},{"$f":"F_Inputs!SPZ7","v":0},{"$f":"F_Inputs!SQA7","v":0},{"$f":"F_Inputs!SQB7","v":0},{"$f":"F_Inputs!SQC7","v":0},{"$f":"F_Inputs!SQD7","v":0},{"$f":"F_Inputs!SQE7","v":0},{"$f":"F_Inputs!SQF7","v":0},{"$f":"F_Inputs!SQG7","v":0},{"$f":"F_Inputs!SQH7","v":0},{"$f":"F_Inputs!SQI7","v":0},{"$f":"F_Inputs!SQJ7","v":0},{"$f":"F_Inputs!SQK7","v":0},{"$f":"F_Inputs!SQL7","v":0},{"$f":"F_Inputs!SQM7","v":0},{"$f":"F_Inputs!SQN7","v":0},{"$f":"F_Inputs!SQO7","v":0},{"$f":"F_Inputs!SQP7","v":0},{"$f":"F_Inputs!SQQ7","v":0},{"$f":"F_Inputs!SQR7","v":0},{"$f":"F_Inputs!SQS7","v":0},{"$f":"F_Inputs!SQT7","v":0},{"$f":"F_Inputs!SQU7","v":0},{"$f":"F_Inputs!SQV7","v":0},{"$f":"F_Inputs!SQW7","v":0},{"$f":"F_Inputs!SQX7","v":0},{"$f":"F_Inputs!SQY7","v":0},{"$f":"F_Inputs!SQZ7","v":0},{"$f":"F_Inputs!SRA7","v":0},{"$f":"F_Inputs!SRB7","v":0},{"$f":"F_Inputs!SRC7","v":0},{"$f":"F_Inputs!SRD7","v":0},{"$f":"F_Inputs!SRE7","v":0},{"$f":"F_Inputs!SRF7","v":0},{"$f":"F_Inputs!SRG7","v":0},{"$f":"F_Inputs!SRH7","v":0},{"$f":"F_Inputs!SRI7","v":0},{"$f":"F_Inputs!SRJ7","v":0},{"$f":"F_Inputs!SRK7","v":0},{"$f":"F_Inputs!SRL7","v":0},{"$f":"F_Inputs!SRM7","v":0},{"$f":"F_Inputs!SRN7","v":0},{"$f":"F_Inputs!SRO7","v":0},{"$f":"F_Inputs!SRP7","v":0},{"$f":"F_Inputs!SRQ7","v":0},{"$f":"F_Inputs!SRR7","v":0},{"$f":"F_Inputs!SRS7","v":0},{"$f":"F_Inputs!SRT7","v":0},{"$f":"F_Inputs!SRU7","v":0},{"$f":"F_Inputs!SRV7","v":0},{"$f":"F_Inputs!SRW7","v":0},{"$f":"F_Inputs!SRX7","v":0},{"$f":"F_Inputs!SRY7","v":0},{"$f":"F_Inputs!SRZ7","v":0},{"$f":"F_Inputs!SSA7","v":0},{"$f":"F_Inputs!SSB7","v":0},{"$f":"F_Inputs!SSC7","v":0},{"$f":"F_Inputs!SSD7","v":0},{"$f":"F_Inputs!SSE7","v":0},{"$f":"F_Inputs!SSF7","v":0},{"$f":"F_Inputs!SSG7","v":0},{"$f":"F_Inputs!SSH7","v":0},{"$f":"F_Inputs!SSI7","v":0},{"$f":"F_Inputs!SSJ7","v":0},{"$f":"F_Inputs!SSK7","v":0},{"$f":"F_Inputs!SSL7","v":0},{"$f":"F_Inputs!SSM7","v":0},{"$f":"F_Inputs!SSN7","v":0},{"$f":"F_Inputs!SSO7","v":0},{"$f":"F_Inputs!SSP7","v":0},{"$f":"F_Inputs!SSQ7","v":0},{"$f":"F_Inputs!SSR7","v":0},{"$f":"F_Inputs!SSS7","v":0},{"$f":"F_Inputs!SST7","v":0},{"$f":"F_Inputs!SSU7","v":0},{"$f":"F_Inputs!SSV7","v":0},{"$f":"F_Inputs!SSW7","v":0},{"$f":"F_Inputs!SSX7","v":0},{"$f":"F_Inputs!SSY7","v":0},{"$f":"F_Inputs!SSZ7","v":0},{"$f":"F_Inputs!STA7","v":0},{"$f":"F_Inputs!STB7","v":0},{"$f":"F_Inputs!STC7","v":0},{"$f":"F_Inputs!STD7","v":0},{"$f":"F_Inputs!STE7","v":0},{"$f":"F_Inputs!STF7","v":0},{"$f":"F_Inputs!STG7","v":0},{"$f":"F_Inputs!STH7","v":0},{"$f":"F_Inputs!STI7","v":0},{"$f":"F_Inputs!STJ7","v":0},{"$f":"F_Inputs!STK7","v":0},{"$f":"F_Inputs!STL7","v":0},{"$f":"F_Inputs!STM7","v":0},{"$f":"F_Inputs!STN7","v":0},{"$f":"F_Inputs!STO7","v":0},{"$f":"F_Inputs!STP7","v":0},{"$f":"F_Inputs!STQ7","v":0},{"$f":"F_Inputs!STR7","v":0},{"$f":"F_Inputs!STS7","v":0},{"$f":"F_Inputs!STT7","v":0},{"$f":"F_Inputs!STU7","v":0},{"$f":"F_Inputs!STV7","v":0},{"$f":"F_Inputs!STW7","v":0},{"$f":"F_Inputs!STX7","v":0},{"$f":"F_Inputs!STY7","v":0},{"$f":"F_Inputs!STZ7","v":0},{"$f":"F_Inputs!SUA7","v":0},{"$f":"F_Inputs!SUB7","v":0},{"$f":"F_Inputs!SUC7","v":0},{"$f":"F_Inputs!SUD7","v":0},{"$f":"F_Inputs!SUE7","v":0},{"$f":"F_Inputs!SUF7","v":0},{"$f":"F_Inputs!SUG7","v":0},{"$f":"F_Inputs!SUH7","v":0},{"$f":"F_Inputs!SUI7","v":0},{"$f":"F_Inputs!SUJ7","v":0},{"$f":"F_Inputs!SUK7","v":0},{"$f":"F_Inputs!SUL7","v":0},{"$f":"F_Inputs!SUM7","v":0},{"$f":"F_Inputs!SUN7","v":0},{"$f":"F_Inputs!SUO7","v":0},{"$f":"F_Inputs!SUP7","v":0},{"$f":"F_Inputs!SUQ7","v":0},{"$f":"F_Inputs!SUR7","v":0},{"$f":"F_Inputs!SUS7","v":0},{"$f":"F_Inputs!SUT7","v":0},{"$f":"F_Inputs!SUU7","v":0},{"$f":"F_Inputs!SUV7","v":0},{"$f":"F_Inputs!SUW7","v":0},{"$f":"F_Inputs!SUX7","v":0},{"$f":"F_Inputs!SUY7","v":0},{"$f":"F_Inputs!SUZ7","v":0},{"$f":"F_Inputs!SVA7","v":0},{"$f":"F_Inputs!SVB7","v":0},{"$f":"F_Inputs!SVC7","v":0},{"$f":"F_Inputs!SVD7","v":0},{"$f":"F_Inputs!SVE7","v":0},{"$f":"F_Inputs!SVF7","v":0},{"$f":"F_Inputs!SVG7","v":0},{"$f":"F_Inputs!SVH7","v":0},{"$f":"F_Inputs!SVI7","v":0},{"$f":"F_Inputs!SVJ7","v":0},{"$f":"F_Inputs!SVK7","v":0},{"$f":"F_Inputs!SVL7","v":0},{"$f":"F_Inputs!SVM7","v":0},{"$f":"F_Inputs!SVN7","v":0},{"$f":"F_Inputs!SVO7","v":0},{"$f":"F_Inputs!SVP7","v":0},{"$f":"F_Inputs!SVQ7","v":0},{"$f":"F_Inputs!SVR7","v":0},{"$f":"F_Inputs!SVS7","v":0},{"$f":"F_Inputs!SVT7","v":0},{"$f":"F_Inputs!SVU7","v":0},{"$f":"F_Inputs!SVV7","v":0},{"$f":"F_Inputs!SVW7","v":0},{"$f":"F_Inputs!SVX7","v":0},{"$f":"F_Inputs!SVY7","v":0},{"$f":"F_Inputs!SVZ7","v":0},{"$f":"F_Inputs!SWA7","v":0},{"$f":"F_Inputs!SWB7","v":0},{"$f":"F_Inputs!SWC7","v":0},{"$f":"F_Inputs!SWD7","v":0},{"$f":"F_Inputs!SWE7","v":0},{"$f":"F_Inputs!SWF7","v":0},{"$f":"F_Inputs!SWG7","v":0},{"$f":"F_Inputs!SWH7","v":0},{"$f":"F_Inputs!SWI7","v":0},{"$f":"F_Inputs!SWJ7","v":0},{"$f":"F_Inputs!SWK7","v":0},{"$f":"F_Inputs!SWL7","v":0},{"$f":"F_Inputs!SWM7","v":0},{"$f":"F_Inputs!SWN7","v":0},{"$f":"F_Inputs!SWO7","v":0},{"$f":"F_Inputs!SWP7","v":0},{"$f":"F_Inputs!SWQ7","v":0},{"$f":"F_Inputs!SWR7","v":0},{"$f":"F_Inputs!SWS7","v":0},{"$f":"F_Inputs!SWT7","v":0},{"$f":"F_Inputs!SWU7","v":0},{"$f":"F_Inputs!SWV7","v":0},{"$f":"F_Inputs!SWW7","v":0},{"$f":"F_Inputs!SWX7","v":0},{"$f":"F_Inputs!SWY7","v":0},{"$f":"F_Inputs!SWZ7","v":0},{"$f":"F_Inputs!SXA7","v":0},{"$f":"F_Inputs!SXB7","v":0},{"$f":"F_Inputs!SXC7","v":0},{"$f":"F_Inputs!SXD7","v":0},{"$f":"F_Inputs!SXE7","v":0},{"$f":"F_Inputs!SXF7","v":0},{"$f":"F_Inputs!SXG7","v":0},{"$f":"F_Inputs!SXH7","v":0},{"$f":"F_Inputs!SXI7","v":0},{"$f":"F_Inputs!SXJ7","v":0},{"$f":"F_Inputs!SXK7","v":0},{"$f":"F_Inputs!SXL7","v":0},{"$f":"F_Inputs!SXM7","v":0},{"$f":"F_Inputs!SXN7","v":0},{"$f":"F_Inputs!SXO7","v":0},{"$f":"F_Inputs!SXP7","v":0},{"$f":"F_Inputs!SXQ7","v":0},{"$f":"F_Inputs!SXR7","v":0},{"$f":"F_Inputs!SXS7","v":0},{"$f":"F_Inputs!SXT7","v":0},{"$f":"F_Inputs!SXU7","v":0},{"$f":"F_Inputs!SXV7","v":0},{"$f":"F_Inputs!SXW7","v":0},{"$f":"F_Inputs!SXX7","v":0},{"$f":"F_Inputs!SXY7","v":0},{"$f":"F_Inputs!SXZ7","v":0},{"$f":"F_Inputs!SYA7","v":0},{"$f":"F_Inputs!SYB7","v":0},{"$f":"F_Inputs!SYC7","v":0},{"$f":"F_Inputs!SYD7","v":0},{"$f":"F_Inputs!SYE7","v":0},{"$f":"F_Inputs!SYF7","v":0},{"$f":"F_Inputs!SYG7","v":0},{"$f":"F_Inputs!SYH7","v":0},{"$f":"F_Inputs!SYI7","v":0},{"$f":"F_Inputs!SYJ7","v":0},{"$f":"F_Inputs!SYK7","v":0},{"$f":"F_Inputs!SYL7","v":0},{"$f":"F_Inputs!SYM7","v":0},{"$f":"F_Inputs!SYN7","v":0},{"$f":"F_Inputs!SYO7","v":0},{"$f":"F_Inputs!SYP7","v":0},{"$f":"F_Inputs!SYQ7","v":0},{"$f":"F_Inputs!SYR7","v":0},{"$f":"F_Inputs!SYS7","v":0},{"$f":"F_Inputs!SYT7","v":0},{"$f":"F_Inputs!SYU7","v":0},{"$f":"F_Inputs!SYV7","v":0},{"$f":"F_Inputs!SYW7","v":0},{"$f":"F_Inputs!SYX7","v":0},{"$f":"F_Inputs!SYY7","v":0},{"$f":"F_Inputs!SYZ7","v":0},{"$f":"F_Inputs!SZA7","v":0},{"$f":"F_Inputs!SZB7","v":0},{"$f":"F_Inputs!SZC7","v":0},{"$f":"F_Inputs!SZD7","v":0},{"$f":"F_Inputs!SZE7","v":0},{"$f":"F_Inputs!SZF7","v":0},{"$f":"F_Inputs!SZG7","v":0},{"$f":"F_Inputs!SZH7","v":0},{"$f":"F_Inputs!SZI7","v":0},{"$f":"F_Inputs!SZJ7","v":0},{"$f":"F_Inputs!SZK7","v":0},{"$f":"F_Inputs!SZL7","v":0},{"$f":"F_Inputs!SZM7","v":0},{"$f":"F_Inputs!SZN7","v":0},{"$f":"F_Inputs!SZO7","v":0},{"$f":"F_Inputs!SZP7","v":0},{"$f":"F_Inputs!SZQ7","v":0},{"$f":"F_Inputs!SZR7","v":0},{"$f":"F_Inputs!SZS7","v":0},{"$f":"F_Inputs!SZT7","v":0},{"$f":"F_Inputs!SZU7","v":0},{"$f":"F_Inputs!SZV7","v":0},{"$f":"F_Inputs!SZW7","v":0},{"$f":"F_Inputs!SZX7","v":0},{"$f":"F_Inputs!SZY7","v":0},{"$f":"F_Inputs!SZZ7","v":0},{"$f":"F_Inputs!TAA7","v":0},{"$f":"F_Inputs!TAB7","v":0},{"$f":"F_Inputs!TAC7","v":0},{"$f":"F_Inputs!TAD7","v":0},{"$f":"F_Inputs!TAE7","v":0},{"$f":"F_Inputs!TAF7","v":0},{"$f":"F_Inputs!TAG7","v":0},{"$f":"F_Inputs!TAH7","v":0},{"$f":"F_Inputs!TAI7","v":0},{"$f":"F_Inputs!TAJ7","v":0},{"$f":"F_Inputs!TAK7","v":0},{"$f":"F_Inputs!TAL7","v":0},{"$f":"F_Inputs!TAM7","v":0},{"$f":"F_Inputs!TAN7","v":0},{"$f":"F_Inputs!TAO7","v":0},{"$f":"F_Inputs!TAP7","v":0},{"$f":"F_Inputs!TAQ7","v":0},{"$f":"F_Inputs!TAR7","v":0},{"$f":"F_Inputs!TAS7","v":0},{"$f":"F_Inputs!TAT7","v":0},{"$f":"F_Inputs!TAU7","v":0},{"$f":"F_Inputs!TAV7","v":0},{"$f":"F_Inputs!TAW7","v":0},{"$f":"F_Inputs!TAX7","v":0},{"$f":"F_Inputs!TAY7","v":0},{"$f":"F_Inputs!TAZ7","v":0},{"$f":"F_Inputs!TBA7","v":0},{"$f":"F_Inputs!TBB7","v":0},{"$f":"F_Inputs!TBC7","v":0},{"$f":"F_Inputs!TBD7","v":0},{"$f":"F_Inputs!TBE7","v":0},{"$f":"F_Inputs!TBF7","v":0},{"$f":"F_Inputs!TBG7","v":0},{"$f":"F_Inputs!TBH7","v":0},{"$f":"F_Inputs!TBI7","v":0},{"$f":"F_Inputs!TBJ7","v":0},{"$f":"F_Inputs!TBK7","v":0},{"$f":"F_Inputs!TBL7","v":0},{"$f":"F_Inputs!TBM7","v":0},{"$f":"F_Inputs!TBN7","v":0},{"$f":"F_Inputs!TBO7","v":0},{"$f":"F_Inputs!TBP7","v":0},{"$f":"F_Inputs!TBQ7","v":0},{"$f":"F_Inputs!TBR7","v":0},{"$f":"F_Inputs!TBS7","v":0},{"$f":"F_Inputs!TBT7","v":0},{"$f":"F_Inputs!TBU7","v":0},{"$f":"F_Inputs!TBV7","v":0},{"$f":"F_Inputs!TBW7","v":0},{"$f":"F_Inputs!TBX7","v":0},{"$f":"F_Inputs!TBY7","v":0},{"$f":"F_Inputs!TBZ7","v":0},{"$f":"F_Inputs!TCA7","v":0},{"$f":"F_Inputs!TCB7","v":0},{"$f":"F_Inputs!TCC7","v":0},{"$f":"F_Inputs!TCD7","v":0},{"$f":"F_Inputs!TCE7","v":0},{"$f":"F_Inputs!TCF7","v":0},{"$f":"F_Inputs!TCG7","v":0},{"$f":"F_Inputs!TCH7","v":0},{"$f":"F_Inputs!TCI7","v":0},{"$f":"F_Inputs!TCJ7","v":0},{"$f":"F_Inputs!TCK7","v":0},{"$f":"F_Inputs!TCL7","v":0},{"$f":"F_Inputs!TCM7","v":0},{"$f":"F_Inputs!TCN7","v":0},{"$f":"F_Inputs!TCO7","v":0},{"$f":"F_Inputs!TCP7","v":0},{"$f":"F_Inputs!TCQ7","v":0},{"$f":"F_Inputs!TCR7","v":0},{"$f":"F_Inputs!TCS7","v":0},{"$f":"F_Inputs!TCT7","v":0},{"$f":"F_Inputs!TCU7","v":0},{"$f":"F_Inputs!TCV7","v":0},{"$f":"F_Inputs!TCW7","v":0},{"$f":"F_Inputs!TCX7","v":0},{"$f":"F_Inputs!TCY7","v":0},{"$f":"F_Inputs!TCZ7","v":0},{"$f":"F_Inputs!TDA7","v":0},{"$f":"F_Inputs!TDB7","v":0},{"$f":"F_Inputs!TDC7","v":0},{"$f":"F_Inputs!TDD7","v":0},{"$f":"F_Inputs!TDE7","v":0},{"$f":"F_Inputs!TDF7","v":0},{"$f":"F_Inputs!TDG7","v":0},{"$f":"F_Inputs!TDH7","v":0},{"$f":"F_Inputs!TDI7","v":0},{"$f":"F_Inputs!TDJ7","v":0},{"$f":"F_Inputs!TDK7","v":0},{"$f":"F_Inputs!TDL7","v":0},{"$f":"F_Inputs!TDM7","v":0},{"$f":"F_Inputs!TDN7","v":0},{"$f":"F_Inputs!TDO7","v":0},{"$f":"F_Inputs!TDP7","v":0},{"$f":"F_Inputs!TDQ7","v":0},{"$f":"F_Inputs!TDR7","v":0},{"$f":"F_Inputs!TDS7","v":0},{"$f":"F_Inputs!TDT7","v":0},{"$f":"F_Inputs!TDU7","v":0},{"$f":"F_Inputs!TDV7","v":0},{"$f":"F_Inputs!TDW7","v":0},{"$f":"F_Inputs!TDX7","v":0},{"$f":"F_Inputs!TDY7","v":0},{"$f":"F_Inputs!TDZ7","v":0},{"$f":"F_Inputs!TEA7","v":0},{"$f":"F_Inputs!TEB7","v":0},{"$f":"F_Inputs!TEC7","v":0},{"$f":"F_Inputs!TED7","v":0},{"$f":"F_Inputs!TEE7","v":0},{"$f":"F_Inputs!TEF7","v":0},{"$f":"F_Inputs!TEG7","v":0},{"$f":"F_Inputs!TEH7","v":0},{"$f":"F_Inputs!TEI7","v":0},{"$f":"F_Inputs!TEJ7","v":0},{"$f":"F_Inputs!TEK7","v":0},{"$f":"F_Inputs!TEL7","v":0},{"$f":"F_Inputs!TEM7","v":0},{"$f":"F_Inputs!TEN7","v":0},{"$f":"F_Inputs!TEO7","v":0},{"$f":"F_Inputs!TEP7","v":0},{"$f":"F_Inputs!TEQ7","v":0},{"$f":"F_Inputs!TER7","v":0},{"$f":"F_Inputs!TES7","v":0},{"$f":"F_Inputs!TET7","v":0},{"$f":"F_Inputs!TEU7","v":0},{"$f":"F_Inputs!TEV7","v":0},{"$f":"F_Inputs!TEW7","v":0},{"$f":"F_Inputs!TEX7","v":0},{"$f":"F_Inputs!TEY7","v":0},{"$f":"F_Inputs!TEZ7","v":0},{"$f":"F_Inputs!TFA7","v":0},{"$f":"F_Inputs!TFB7","v":0},{"$f":"F_Inputs!TFC7","v":0},{"$f":"F_Inputs!TFD7","v":0},{"$f":"F_Inputs!TFE7","v":0},{"$f":"F_Inputs!TFF7","v":0},{"$f":"F_Inputs!TFG7","v":0},{"$f":"F_Inputs!TFH7","v":0},{"$f":"F_Inputs!TFI7","v":0},{"$f":"F_Inputs!TFJ7","v":0},{"$f":"F_Inputs!TFK7","v":0},{"$f":"F_Inputs!TFL7","v":0},{"$f":"F_Inputs!TFM7","v":0},{"$f":"F_Inputs!TFN7","v":0},{"$f":"F_Inputs!TFO7","v":0},{"$f":"F_Inputs!TFP7","v":0},{"$f":"F_Inputs!TFQ7","v":0},{"$f":"F_Inputs!TFR7","v":0},{"$f":"F_Inputs!TFS7","v":0},{"$f":"F_Inputs!TFT7","v":0},{"$f":"F_Inputs!TFU7","v":0},{"$f":"F_Inputs!TFV7","v":0},{"$f":"F_Inputs!TFW7","v":0},{"$f":"F_Inputs!TFX7","v":0},{"$f":"F_Inputs!TFY7","v":0},{"$f":"F_Inputs!TFZ7","v":0},{"$f":"F_Inputs!TGA7","v":0},{"$f":"F_Inputs!TGB7","v":0},{"$f":"F_Inputs!TGC7","v":0},{"$f":"F_Inputs!TGD7","v":0},{"$f":"F_Inputs!TGE7","v":0},{"$f":"F_Inputs!TGF7","v":0},{"$f":"F_Inputs!TGG7","v":0},{"$f":"F_Inputs!TGH7","v":0},{"$f":"F_Inputs!TGI7","v":0},{"$f":"F_Inputs!TGJ7","v":0},{"$f":"F_Inputs!TGK7","v":0},{"$f":"F_Inputs!TGL7","v":0},{"$f":"F_Inputs!TGM7","v":0},{"$f":"F_Inputs!TGN7","v":0},{"$f":"F_Inputs!TGO7","v":0},{"$f":"F_Inputs!TGP7","v":0},{"$f":"F_Inputs!TGQ7","v":0},{"$f":"F_Inputs!TGR7","v":0},{"$f":"F_Inputs!TGS7","v":0},{"$f":"F_Inputs!TGT7","v":0},{"$f":"F_Inputs!TGU7","v":0},{"$f":"F_Inputs!TGV7","v":0},{"$f":"F_Inputs!TGW7","v":0},{"$f":"F_Inputs!TGX7","v":0},{"$f":"F_Inputs!TGY7","v":0},{"$f":"F_Inputs!TGZ7","v":0},{"$f":"F_Inputs!THA7","v":0},{"$f":"F_Inputs!THB7","v":0},{"$f":"F_Inputs!THC7","v":0},{"$f":"F_Inputs!THD7","v":0},{"$f":"F_Inputs!THE7","v":0},{"$f":"F_Inputs!THF7","v":0},{"$f":"F_Inputs!THG7","v":0},{"$f":"F_Inputs!THH7","v":0},{"$f":"F_Inputs!THI7","v":0},{"$f":"F_Inputs!THJ7","v":0},{"$f":"F_Inputs!THK7","v":0},{"$f":"F_Inputs!THL7","v":0},{"$f":"F_Inputs!THM7","v":0},{"$f":"F_Inputs!THN7","v":0},{"$f":"F_Inputs!THO7","v":0},{"$f":"F_Inputs!THP7","v":0},{"$f":"F_Inputs!THQ7","v":0},{"$f":"F_Inputs!THR7","v":0},{"$f":"F_Inputs!THS7","v":0},{"$f":"F_Inputs!THT7","v":0},{"$f":"F_Inputs!THU7","v":0},{"$f":"F_Inputs!THV7","v":0},{"$f":"F_Inputs!THW7","v":0},{"$f":"F_Inputs!THX7","v":0},{"$f":"F_Inputs!THY7","v":0},{"$f":"F_Inputs!THZ7","v":0},{"$f":"F_Inputs!TIA7","v":0},{"$f":"F_Inputs!TIB7","v":0},{"$f":"F_Inputs!TIC7","v":0},{"$f":"F_Inputs!TID7","v":0},{"$f":"F_Inputs!TIE7","v":0},{"$f":"F_Inputs!TIF7","v":0},{"$f":"F_Inputs!TIG7","v":0},{"$f":"F_Inputs!TIH7","v":0},{"$f":"F_Inputs!TII7","v":0},{"$f":"F_Inputs!TIJ7","v":0},{"$f":"F_Inputs!TIK7","v":0},{"$f":"F_Inputs!TIL7","v":0},{"$f":"F_Inputs!TIM7","v":0},{"$f":"F_Inputs!TIN7","v":0},{"$f":"F_Inputs!TIO7","v":0},{"$f":"F_Inputs!TIP7","v":0},{"$f":"F_Inputs!TIQ7","v":0},{"$f":"F_Inputs!TIR7","v":0},{"$f":"F_Inputs!TIS7","v":0},{"$f":"F_Inputs!TIT7","v":0},{"$f":"F_Inputs!TIU7","v":0},{"$f":"F_Inputs!TIV7","v":0},{"$f":"F_Inputs!TIW7","v":0},{"$f":"F_Inputs!TIX7","v":0},{"$f":"F_Inputs!TIY7","v":0},{"$f":"F_Inputs!TIZ7","v":0},{"$f":"F_Inputs!TJA7","v":0},{"$f":"F_Inputs!TJB7","v":0},{"$f":"F_Inputs!TJC7","v":0},{"$f":"F_Inputs!TJD7","v":0},{"$f":"F_Inputs!TJE7","v":0},{"$f":"F_Inputs!TJF7","v":0},{"$f":"F_Inputs!TJG7","v":0},{"$f":"F_Inputs!TJH7","v":0},{"$f":"F_Inputs!TJI7","v":0},{"$f":"F_Inputs!TJJ7","v":0},{"$f":"F_Inputs!TJK7","v":0},{"$f":"F_Inputs!TJL7","v":0},{"$f":"F_Inputs!TJM7","v":0},{"$f":"F_Inputs!TJN7","v":0},{"$f":"F_Inputs!TJO7","v":0},{"$f":"F_Inputs!TJP7","v":0},{"$f":"F_Inputs!TJQ7","v":0},{"$f":"F_Inputs!TJR7","v":0},{"$f":"F_Inputs!TJS7","v":0},{"$f":"F_Inputs!TJT7","v":0},{"$f":"F_Inputs!TJU7","v":0},{"$f":"F_Inputs!TJV7","v":0},{"$f":"F_Inputs!TJW7","v":0},{"$f":"F_Inputs!TJX7","v":0},{"$f":"F_Inputs!TJY7","v":0},{"$f":"F_Inputs!TJZ7","v":0},{"$f":"F_Inputs!TKA7","v":0},{"$f":"F_Inputs!TKB7","v":0},{"$f":"F_Inputs!TKC7","v":0},{"$f":"F_Inputs!TKD7","v":0},{"$f":"F_Inputs!TKE7","v":0},{"$f":"F_Inputs!TKF7","v":0},{"$f":"F_Inputs!TKG7","v":0},{"$f":"F_Inputs!TKH7","v":0},{"$f":"F_Inputs!TKI7","v":0},{"$f":"F_Inputs!TKJ7","v":0},{"$f":"F_Inputs!TKK7","v":0},{"$f":"F_Inputs!TKL7","v":0},{"$f":"F_Inputs!TKM7","v":0},{"$f":"F_Inputs!TKN7","v":0},{"$f":"F_Inputs!TKO7","v":0},{"$f":"F_Inputs!TKP7","v":0},{"$f":"F_Inputs!TKQ7","v":0},{"$f":"F_Inputs!TKR7","v":0},{"$f":"F_Inputs!TKS7","v":0},{"$f":"F_Inputs!TKT7","v":0},{"$f":"F_Inputs!TKU7","v":0},{"$f":"F_Inputs!TKV7","v":0},{"$f":"F_Inputs!TKW7","v":0},{"$f":"F_Inputs!TKX7","v":0},{"$f":"F_Inputs!TKY7","v":0},{"$f":"F_Inputs!TKZ7","v":0},{"$f":"F_Inputs!TLA7","v":0},{"$f":"F_Inputs!TLB7","v":0},{"$f":"F_Inputs!TLC7","v":0},{"$f":"F_Inputs!TLD7","v":0},{"$f":"F_Inputs!TLE7","v":0},{"$f":"F_Inputs!TLF7","v":0},{"$f":"F_Inputs!TLG7","v":0},{"$f":"F_Inputs!TLH7","v":0},{"$f":"F_Inputs!TLI7","v":0},{"$f":"F_Inputs!TLJ7","v":0},{"$f":"F_Inputs!TLK7","v":0},{"$f":"F_Inputs!TLL7","v":0},{"$f":"F_Inputs!TLM7","v":0},{"$f":"F_Inputs!TLN7","v":0},{"$f":"F_Inputs!TLO7","v":0},{"$f":"F_Inputs!TLP7","v":0},{"$f":"F_Inputs!TLQ7","v":0},{"$f":"F_Inputs!TLR7","v":0},{"$f":"F_Inputs!TLS7","v":0},{"$f":"F_Inputs!TLT7","v":0},{"$f":"F_Inputs!TLU7","v":0},{"$f":"F_Inputs!TLV7","v":0},{"$f":"F_Inputs!TLW7","v":0},{"$f":"F_Inputs!TLX7","v":0},{"$f":"F_Inputs!TLY7","v":0},{"$f":"F_Inputs!TLZ7","v":0},{"$f":"F_Inputs!TMA7","v":0},{"$f":"F_Inputs!TMB7","v":0},{"$f":"F_Inputs!TMC7","v":0},{"$f":"F_Inputs!TMD7","v":0},{"$f":"F_Inputs!TME7","v":0},{"$f":"F_Inputs!TMF7","v":0},{"$f":"F_Inputs!TMG7","v":0},{"$f":"F_Inputs!TMH7","v":0},{"$f":"F_Inputs!TMI7","v":0},{"$f":"F_Inputs!TMJ7","v":0},{"$f":"F_Inputs!TMK7","v":0},{"$f":"F_Inputs!TML7","v":0},{"$f":"F_Inputs!TMM7","v":0},{"$f":"F_Inputs!TMN7","v":0},{"$f":"F_Inputs!TMO7","v":0},{"$f":"F_Inputs!TMP7","v":0},{"$f":"F_Inputs!TMQ7","v":0},{"$f":"F_Inputs!TMR7","v":0},{"$f":"F_Inputs!TMS7","v":0},{"$f":"F_Inputs!TMT7","v":0},{"$f":"F_Inputs!TMU7","v":0},{"$f":"F_Inputs!TMV7","v":0},{"$f":"F_Inputs!TMW7","v":0},{"$f":"F_Inputs!TMX7","v":0},{"$f":"F_Inputs!TMY7","v":0},{"$f":"F_Inputs!TMZ7","v":0},{"$f":"F_Inputs!TNA7","v":0},{"$f":"F_Inputs!TNB7","v":0},{"$f":"F_Inputs!TNC7","v":0},{"$f":"F_Inputs!TND7","v":0},{"$f":"F_Inputs!TNE7","v":0},{"$f":"F_Inputs!TNF7","v":0},{"$f":"F_Inputs!TNG7","v":0},{"$f":"F_Inputs!TNH7","v":0},{"$f":"F_Inputs!TNI7","v":0},{"$f":"F_Inputs!TNJ7","v":0},{"$f":"F_Inputs!TNK7","v":0},{"$f":"F_Inputs!TNL7","v":0},{"$f":"F_Inputs!TNM7","v":0},{"$f":"F_Inputs!TNN7","v":0},{"$f":"F_Inputs!TNO7","v":0},{"$f":"F_Inputs!TNP7","v":0},{"$f":"F_Inputs!TNQ7","v":0},{"$f":"F_Inputs!TNR7","v":0},{"$f":"F_Inputs!TNS7","v":0},{"$f":"F_Inputs!TNT7","v":0},{"$f":"F_Inputs!TNU7","v":0},{"$f":"F_Inputs!TNV7","v":0},{"$f":"F_Inputs!TNW7","v":0},{"$f":"F_Inputs!TNX7","v":0},{"$f":"F_Inputs!TNY7","v":0},{"$f":"F_Inputs!TNZ7","v":0},{"$f":"F_Inputs!TOA7","v":0},{"$f":"F_Inputs!TOB7","v":0},{"$f":"F_Inputs!TOC7","v":0},{"$f":"F_Inputs!TOD7","v":0},{"$f":"F_Inputs!TOE7","v":0},{"$f":"F_Inputs!TOF7","v":0},{"$f":"F_Inputs!TOG7","v":0},{"$f":"F_Inputs!TOH7","v":0},{"$f":"F_Inputs!TOI7","v":0},{"$f":"F_Inputs!TOJ7","v":0},{"$f":"F_Inputs!TOK7","v":0},{"$f":"F_Inputs!TOL7","v":0},{"$f":"F_Inputs!TOM7","v":0},{"$f":"F_Inputs!TON7","v":0},{"$f":"F_Inputs!TOO7","v":0},{"$f":"F_Inputs!TOP7","v":0},{"$f":"F_Inputs!TOQ7","v":0},{"$f":"F_Inputs!TOR7","v":0},{"$f":"F_Inputs!TOS7","v":0},{"$f":"F_Inputs!TOT7","v":0},{"$f":"F_Inputs!TOU7","v":0},{"$f":"F_Inputs!TOV7","v":0},{"$f":"F_Inputs!TOW7","v":0},{"$f":"F_Inputs!TOX7","v":0},{"$f":"F_Inputs!TOY7","v":0},{"$f":"F_Inputs!TOZ7","v":0},{"$f":"F_Inputs!TPA7","v":0},{"$f":"F_Inputs!TPB7","v":0},{"$f":"F_Inputs!TPC7","v":0},{"$f":"F_Inputs!TPD7","v":0},{"$f":"F_Inputs!TPE7","v":0},{"$f":"F_Inputs!TPF7","v":0},{"$f":"F_Inputs!TPG7","v":0},{"$f":"F_Inputs!TPH7","v":0},{"$f":"F_Inputs!TPI7","v":0},{"$f":"F_Inputs!TPJ7","v":0},{"$f":"F_Inputs!TPK7","v":0},{"$f":"F_Inputs!TPL7","v":0},{"$f":"F_Inputs!TPM7","v":0},{"$f":"F_Inputs!TPN7","v":0},{"$f":"F_Inputs!TPO7","v":0},{"$f":"F_Inputs!TPP7","v":0},{"$f":"F_Inputs!TPQ7","v":0},{"$f":"F_Inputs!TPR7","v":0},{"$f":"F_Inputs!TPS7","v":0},{"$f":"F_Inputs!TPT7","v":0},{"$f":"F_Inputs!TPU7","v":0},{"$f":"F_Inputs!TPV7","v":0},{"$f":"F_Inputs!TPW7","v":0},{"$f":"F_Inputs!TPX7","v":0},{"$f":"F_Inputs!TPY7","v":0},{"$f":"F_Inputs!TPZ7","v":0},{"$f":"F_Inputs!TQA7","v":0},{"$f":"F_Inputs!TQB7","v":0},{"$f":"F_Inputs!TQC7","v":0},{"$f":"F_Inputs!TQD7","v":0},{"$f":"F_Inputs!TQE7","v":0},{"$f":"F_Inputs!TQF7","v":0},{"$f":"F_Inputs!TQG7","v":0},{"$f":"F_Inputs!TQH7","v":0},{"$f":"F_Inputs!TQI7","v":0},{"$f":"F_Inputs!TQJ7","v":0},{"$f":"F_Inputs!TQK7","v":0},{"$f":"F_Inputs!TQL7","v":0},{"$f":"F_Inputs!TQM7","v":0},{"$f":"F_Inputs!TQN7","v":0},{"$f":"F_Inputs!TQO7","v":0},{"$f":"F_Inputs!TQP7","v":0},{"$f":"F_Inputs!TQQ7","v":0},{"$f":"F_Inputs!TQR7","v":0},{"$f":"F_Inputs!TQS7","v":0},{"$f":"F_Inputs!TQT7","v":0},{"$f":"F_Inputs!TQU7","v":0},{"$f":"F_Inputs!TQV7","v":0},{"$f":"F_Inputs!TQW7","v":0},{"$f":"F_Inputs!TQX7","v":0},{"$f":"F_Inputs!TQY7","v":0},{"$f":"F_Inputs!TQZ7","v":0},{"$f":"F_Inputs!TRA7","v":0},{"$f":"F_Inputs!TRB7","v":0},{"$f":"F_Inputs!TRC7","v":0},{"$f":"F_Inputs!TRD7","v":0},{"$f":"F_Inputs!TRE7","v":0},{"$f":"F_Inputs!TRF7","v":0},{"$f":"F_Inputs!TRG7","v":0},{"$f":"F_Inputs!TRH7","v":0},{"$f":"F_Inputs!TRI7","v":0},{"$f":"F_Inputs!TRJ7","v":0},{"$f":"F_Inputs!TRK7","v":0},{"$f":"F_Inputs!TRL7","v":0},{"$f":"F_Inputs!TRM7","v":0},{"$f":"F_Inputs!TRN7","v":0},{"$f":"F_Inputs!TRO7","v":0},{"$f":"F_Inputs!TRP7","v":0},{"$f":"F_Inputs!TRQ7","v":0},{"$f":"F_Inputs!TRR7","v":0},{"$f":"F_Inputs!TRS7","v":0},{"$f":"F_Inputs!TRT7","v":0},{"$f":"F_Inputs!TRU7","v":0},{"$f":"F_Inputs!TRV7","v":0},{"$f":"F_Inputs!TRW7","v":0},{"$f":"F_Inputs!TRX7","v":0},{"$f":"F_Inputs!TRY7","v":0},{"$f":"F_Inputs!TRZ7","v":0},{"$f":"F_Inputs!TSA7","v":0},{"$f":"F_Inputs!TSB7","v":0},{"$f":"F_Inputs!TSC7","v":0},{"$f":"F_Inputs!TSD7","v":0},{"$f":"F_Inputs!TSE7","v":0},{"$f":"F_Inputs!TSF7","v":0},{"$f":"F_Inputs!TSG7","v":0},{"$f":"F_Inputs!TSH7","v":0},{"$f":"F_Inputs!TSI7","v":0},{"$f":"F_Inputs!TSJ7","v":0},{"$f":"F_Inputs!TSK7","v":0},{"$f":"F_Inputs!TSL7","v":0},{"$f":"F_Inputs!TSM7","v":0},{"$f":"F_Inputs!TSN7","v":0},{"$f":"F_Inputs!TSO7","v":0},{"$f":"F_Inputs!TSP7","v":0},{"$f":"F_Inputs!TSQ7","v":0},{"$f":"F_Inputs!TSR7","v":0},{"$f":"F_Inputs!TSS7","v":0},{"$f":"F_Inputs!TST7","v":0},{"$f":"F_Inputs!TSU7","v":0},{"$f":"F_Inputs!TSV7","v":0},{"$f":"F_Inputs!TSW7","v":0},{"$f":"F_Inputs!TSX7","v":0},{"$f":"F_Inputs!TSY7","v":0},{"$f":"F_Inputs!TSZ7","v":0},{"$f":"F_Inputs!TTA7","v":0},{"$f":"F_Inputs!TTB7","v":0},{"$f":"F_Inputs!TTC7","v":0},{"$f":"F_Inputs!TTD7","v":0},{"$f":"F_Inputs!TTE7","v":0},{"$f":"F_Inputs!TTF7","v":0},{"$f":"F_Inputs!TTG7","v":0},{"$f":"F_Inputs!TTH7","v":0},{"$f":"F_Inputs!TTI7","v":0},{"$f":"F_Inputs!TTJ7","v":0},{"$f":"F_Inputs!TTK7","v":0},{"$f":"F_Inputs!TTL7","v":0},{"$f":"F_Inputs!TTM7","v":0},{"$f":"F_Inputs!TTN7","v":0},{"$f":"F_Inputs!TTO7","v":0},{"$f":"F_Inputs!TTP7","v":0},{"$f":"F_Inputs!TTQ7","v":0},{"$f":"F_Inputs!TTR7","v":0},{"$f":"F_Inputs!TTS7","v":0},{"$f":"F_Inputs!TTT7","v":0},{"$f":"F_Inputs!TTU7","v":0},{"$f":"F_Inputs!TTV7","v":0},{"$f":"F_Inputs!TTW7","v":0},{"$f":"F_Inputs!TTX7","v":0},{"$f":"F_Inputs!TTY7","v":0},{"$f":"F_Inputs!TTZ7","v":0},{"$f":"F_Inputs!TUA7","v":0},{"$f":"F_Inputs!TUB7","v":0},{"$f":"F_Inputs!TUC7","v":0},{"$f":"F_Inputs!TUD7","v":0},{"$f":"F_Inputs!TUE7","v":0},{"$f":"F_Inputs!TUF7","v":0},{"$f":"F_Inputs!TUG7","v":0},{"$f":"F_Inputs!TUH7","v":0},{"$f":"F_Inputs!TUI7","v":0},{"$f":"F_Inputs!TUJ7","v":0},{"$f":"F_Inputs!TUK7","v":0},{"$f":"F_Inputs!TUL7","v":0},{"$f":"F_Inputs!TUM7","v":0},{"$f":"F_Inputs!TUN7","v":0},{"$f":"F_Inputs!TUO7","v":0},{"$f":"F_Inputs!TUP7","v":0},{"$f":"F_Inputs!TUQ7","v":0},{"$f":"F_Inputs!TUR7","v":0},{"$f":"F_Inputs!TUS7","v":0},{"$f":"F_Inputs!TUT7","v":0},{"$f":"F_Inputs!TUU7","v":0},{"$f":"F_Inputs!TUV7","v":0},{"$f":"F_Inputs!TUW7","v":0},{"$f":"F_Inputs!TUX7","v":0},{"$f":"F_Inputs!TUY7","v":0},{"$f":"F_Inputs!TUZ7","v":0},{"$f":"F_Inputs!TVA7","v":0},{"$f":"F_Inputs!TVB7","v":0},{"$f":"F_Inputs!TVC7","v":0},{"$f":"F_Inputs!TVD7","v":0},{"$f":"F_Inputs!TVE7","v":0},{"$f":"F_Inputs!TVF7","v":0},{"$f":"F_Inputs!TVG7","v":0},{"$f":"F_Inputs!TVH7","v":0},{"$f":"F_Inputs!TVI7","v":0},{"$f":"F_Inputs!TVJ7","v":0},{"$f":"F_Inputs!TVK7","v":0},{"$f":"F_Inputs!TVL7","v":0},{"$f":"F_Inputs!TVM7","v":0},{"$f":"F_Inputs!TVN7","v":0},{"$f":"F_Inputs!TVO7","v":0},{"$f":"F_Inputs!TVP7","v":0},{"$f":"F_Inputs!TVQ7","v":0},{"$f":"F_Inputs!TVR7","v":0},{"$f":"F_Inputs!TVS7","v":0},{"$f":"F_Inputs!TVT7","v":0},{"$f":"F_Inputs!TVU7","v":0},{"$f":"F_Inputs!TVV7","v":0},{"$f":"F_Inputs!TVW7","v":0},{"$f":"F_Inputs!TVX7","v":0},{"$f":"F_Inputs!TVY7","v":0},{"$f":"F_Inputs!TVZ7","v":0},{"$f":"F_Inputs!TWA7","v":0},{"$f":"F_Inputs!TWB7","v":0},{"$f":"F_Inputs!TWC7","v":0},{"$f":"F_Inputs!TWD7","v":0},{"$f":"F_Inputs!TWE7","v":0},{"$f":"F_Inputs!TWF7","v":0},{"$f":"F_Inputs!TWG7","v":0},{"$f":"F_Inputs!TWH7","v":0},{"$f":"F_Inputs!TWI7","v":0},{"$f":"F_Inputs!TWJ7","v":0},{"$f":"F_Inputs!TWK7","v":0},{"$f":"F_Inputs!TWL7","v":0},{"$f":"F_Inputs!TWM7","v":0},{"$f":"F_Inputs!TWN7","v":0},{"$f":"F_Inputs!TWO7","v":0},{"$f":"F_Inputs!TWP7","v":0},{"$f":"F_Inputs!TWQ7","v":0},{"$f":"F_Inputs!TWR7","v":0},{"$f":"F_Inputs!TWS7","v":0},{"$f":"F_Inputs!TWT7","v":0},{"$f":"F_Inputs!TWU7","v":0},{"$f":"F_Inputs!TWV7","v":0},{"$f":"F_Inputs!TWW7","v":0},{"$f":"F_Inputs!TWX7","v":0},{"$f":"F_Inputs!TWY7","v":0},{"$f":"F_Inputs!TWZ7","v":0},{"$f":"F_Inputs!TXA7","v":0},{"$f":"F_Inputs!TXB7","v":0},{"$f":"F_Inputs!TXC7","v":0},{"$f":"F_Inputs!TXD7","v":0},{"$f":"F_Inputs!TXE7","v":0},{"$f":"F_Inputs!TXF7","v":0},{"$f":"F_Inputs!TXG7","v":0},{"$f":"F_Inputs!TXH7","v":0},{"$f":"F_Inputs!TXI7","v":0},{"$f":"F_Inputs!TXJ7","v":0},{"$f":"F_Inputs!TXK7","v":0},{"$f":"F_Inputs!TXL7","v":0},{"$f":"F_Inputs!TXM7","v":0},{"$f":"F_Inputs!TXN7","v":0},{"$f":"F_Inputs!TXO7","v":0},{"$f":"F_Inputs!TXP7","v":0},{"$f":"F_Inputs!TXQ7","v":0},{"$f":"F_Inputs!TXR7","v":0},{"$f":"F_Inputs!TXS7","v":0},{"$f":"F_Inputs!TXT7","v":0},{"$f":"F_Inputs!TXU7","v":0},{"$f":"F_Inputs!TXV7","v":0},{"$f":"F_Inputs!TXW7","v":0},{"$f":"F_Inputs!TXX7","v":0},{"$f":"F_Inputs!TXY7","v":0},{"$f":"F_Inputs!TXZ7","v":0},{"$f":"F_Inputs!TYA7","v":0},{"$f":"F_Inputs!TYB7","v":0},{"$f":"F_Inputs!TYC7","v":0},{"$f":"F_Inputs!TYD7","v":0},{"$f":"F_Inputs!TYE7","v":0},{"$f":"F_Inputs!TYF7","v":0},{"$f":"F_Inputs!TYG7","v":0},{"$f":"F_Inputs!TYH7","v":0},{"$f":"F_Inputs!TYI7","v":0},{"$f":"F_Inputs!TYJ7","v":0},{"$f":"F_Inputs!TYK7","v":0},{"$f":"F_Inputs!TYL7","v":0},{"$f":"F_Inputs!TYM7","v":0},{"$f":"F_Inputs!TYN7","v":0},{"$f":"F_Inputs!TYO7","v":0},{"$f":"F_Inputs!TYP7","v":0},{"$f":"F_Inputs!TYQ7","v":0},{"$f":"F_Inputs!TYR7","v":0},{"$f":"F_Inputs!TYS7","v":0},{"$f":"F_Inputs!TYT7","v":0},{"$f":"F_Inputs!TYU7","v":0},{"$f":"F_Inputs!TYV7","v":0},{"$f":"F_Inputs!TYW7","v":0},{"$f":"F_Inputs!TYX7","v":0},{"$f":"F_Inputs!TYY7","v":0},{"$f":"F_Inputs!TYZ7","v":0},{"$f":"F_Inputs!TZA7","v":0},{"$f":"F_Inputs!TZB7","v":0},{"$f":"F_Inputs!TZC7","v":0},{"$f":"F_Inputs!TZD7","v":0},{"$f":"F_Inputs!TZE7","v":0},{"$f":"F_Inputs!TZF7","v":0},{"$f":"F_Inputs!TZG7","v":0},{"$f":"F_Inputs!TZH7","v":0},{"$f":"F_Inputs!TZI7","v":0},{"$f":"F_Inputs!TZJ7","v":0},{"$f":"F_Inputs!TZK7","v":0},{"$f":"F_Inputs!TZL7","v":0},{"$f":"F_Inputs!TZM7","v":0},{"$f":"F_Inputs!TZN7","v":0},{"$f":"F_Inputs!TZO7","v":0},{"$f":"F_Inputs!TZP7","v":0},{"$f":"F_Inputs!TZQ7","v":0},{"$f":"F_Inputs!TZR7","v":0},{"$f":"F_Inputs!TZS7","v":0},{"$f":"F_Inputs!TZT7","v":0},{"$f":"F_Inputs!TZU7","v":0},{"$f":"F_Inputs!TZV7","v":0},{"$f":"F_Inputs!TZW7","v":0},{"$f":"F_Inputs!TZX7","v":0},{"$f":"F_Inputs!TZY7","v":0},{"$f":"F_Inputs!TZZ7","v":0},{"$f":"F_Inputs!UAA7","v":0},{"$f":"F_Inputs!UAB7","v":0},{"$f":"F_Inputs!UAC7","v":0},{"$f":"F_Inputs!UAD7","v":0},{"$f":"F_Inputs!UAE7","v":0},{"$f":"F_Inputs!UAF7","v":0},{"$f":"F_Inputs!UAG7","v":0},{"$f":"F_Inputs!UAH7","v":0},{"$f":"F_Inputs!UAI7","v":0},{"$f":"F_Inputs!UAJ7","v":0},{"$f":"F_Inputs!UAK7","v":0},{"$f":"F_Inputs!UAL7","v":0},{"$f":"F_Inputs!UAM7","v":0},{"$f":"F_Inputs!UAN7","v":0},{"$f":"F_Inputs!UAO7","v":0},{"$f":"F_Inputs!UAP7","v":0},{"$f":"F_Inputs!UAQ7","v":0},{"$f":"F_Inputs!UAR7","v":0},{"$f":"F_Inputs!UAS7","v":0},{"$f":"F_Inputs!UAT7","v":0},{"$f":"F_Inputs!UAU7","v":0},{"$f":"F_Inputs!UAV7","v":0},{"$f":"F_Inputs!UAW7","v":0},{"$f":"F_Inputs!UAX7","v":0},{"$f":"F_Inputs!UAY7","v":0},{"$f":"F_Inputs!UAZ7","v":0},{"$f":"F_Inputs!UBA7","v":0},{"$f":"F_Inputs!UBB7","v":0},{"$f":"F_Inputs!UBC7","v":0},{"$f":"F_Inputs!UBD7","v":0},{"$f":"F_Inputs!UBE7","v":0},{"$f":"F_Inputs!UBF7","v":0},{"$f":"F_Inputs!UBG7","v":0},{"$f":"F_Inputs!UBH7","v":0},{"$f":"F_Inputs!UBI7","v":0},{"$f":"F_Inputs!UBJ7","v":0},{"$f":"F_Inputs!UBK7","v":0},{"$f":"F_Inputs!UBL7","v":0},{"$f":"F_Inputs!UBM7","v":0},{"$f":"F_Inputs!UBN7","v":0},{"$f":"F_Inputs!UBO7","v":0},{"$f":"F_Inputs!UBP7","v":0},{"$f":"F_Inputs!UBQ7","v":0},{"$f":"F_Inputs!UBR7","v":0},{"$f":"F_Inputs!UBS7","v":0},{"$f":"F_Inputs!UBT7","v":0},{"$f":"F_Inputs!UBU7","v":0},{"$f":"F_Inputs!UBV7","v":0},{"$f":"F_Inputs!UBW7","v":0},{"$f":"F_Inputs!UBX7","v":0},{"$f":"F_Inputs!UBY7","v":0},{"$f":"F_Inputs!UBZ7","v":0},{"$f":"F_Inputs!UCA7","v":0},{"$f":"F_Inputs!UCB7","v":0},{"$f":"F_Inputs!UCC7","v":0},{"$f":"F_Inputs!UCD7","v":0},{"$f":"F_Inputs!UCE7","v":0},{"$f":"F_Inputs!UCF7","v":0},{"$f":"F_Inputs!UCG7","v":0},{"$f":"F_Inputs!UCH7","v":0},{"$f":"F_Inputs!UCI7","v":0},{"$f":"F_Inputs!UCJ7","v":0},{"$f":"F_Inputs!UCK7","v":0},{"$f":"F_Inputs!UCL7","v":0},{"$f":"F_Inputs!UCM7","v":0},{"$f":"F_Inputs!UCN7","v":0},{"$f":"F_Inputs!UCO7","v":0},{"$f":"F_Inputs!UCP7","v":0},{"$f":"F_Inputs!UCQ7","v":0},{"$f":"F_Inputs!UCR7","v":0},{"$f":"F_Inputs!UCS7","v":0},{"$f":"F_Inputs!UCT7","v":0},{"$f":"F_Inputs!UCU7","v":0},{"$f":"F_Inputs!UCV7","v":0},{"$f":"F_Inputs!UCW7","v":0},{"$f":"F_Inputs!UCX7","v":0},{"$f":"F_Inputs!UCY7","v":0},{"$f":"F_Inputs!UCZ7","v":0},{"$f":"F_Inputs!UDA7","v":0},{"$f":"F_Inputs!UDB7","v":0},{"$f":"F_Inputs!UDC7","v":0},{"$f":"F_Inputs!UDD7","v":0},{"$f":"F_Inputs!UDE7","v":0},{"$f":"F_Inputs!UDF7","v":0},{"$f":"F_Inputs!UDG7","v":0},{"$f":"F_Inputs!UDH7","v":0},{"$f":"F_Inputs!UDI7","v":0},{"$f":"F_Inputs!UDJ7","v":0},{"$f":"F_Inputs!UDK7","v":0},{"$f":"F_Inputs!UDL7","v":0},{"$f":"F_Inputs!UDM7","v":0},{"$f":"F_Inputs!UDN7","v":0},{"$f":"F_Inputs!UDO7","v":0},{"$f":"F_Inputs!UDP7","v":0},{"$f":"F_Inputs!UDQ7","v":0},{"$f":"F_Inputs!UDR7","v":0},{"$f":"F_Inputs!UDS7","v":0},{"$f":"F_Inputs!UDT7","v":0},{"$f":"F_Inputs!UDU7","v":0},{"$f":"F_Inputs!UDV7","v":0},{"$f":"F_Inputs!UDW7","v":0},{"$f":"F_Inputs!UDX7","v":0},{"$f":"F_Inputs!UDY7","v":0},{"$f":"F_Inputs!UDZ7","v":0},{"$f":"F_Inputs!UEA7","v":0},{"$f":"F_Inputs!UEB7","v":0},{"$f":"F_Inputs!UEC7","v":0},{"$f":"F_Inputs!UED7","v":0},{"$f":"F_Inputs!UEE7","v":0},{"$f":"F_Inputs!UEF7","v":0},{"$f":"F_Inputs!UEG7","v":0},{"$f":"F_Inputs!UEH7","v":0},{"$f":"F_Inputs!UEI7","v":0},{"$f":"F_Inputs!UEJ7","v":0},{"$f":"F_Inputs!UEK7","v":0},{"$f":"F_Inputs!UEL7","v":0},{"$f":"F_Inputs!UEM7","v":0},{"$f":"F_Inputs!UEN7","v":0},{"$f":"F_Inputs!UEO7","v":0},{"$f":"F_Inputs!UEP7","v":0},{"$f":"F_Inputs!UEQ7","v":0},{"$f":"F_Inputs!UER7","v":0},{"$f":"F_Inputs!UES7","v":0},{"$f":"F_Inputs!UET7","v":0},{"$f":"F_Inputs!UEU7","v":0},{"$f":"F_Inputs!UEV7","v":0},{"$f":"F_Inputs!UEW7","v":0},{"$f":"F_Inputs!UEX7","v":0},{"$f":"F_Inputs!UEY7","v":0},{"$f":"F_Inputs!UEZ7","v":0},{"$f":"F_Inputs!UFA7","v":0},{"$f":"F_Inputs!UFB7","v":0},{"$f":"F_Inputs!UFC7","v":0},{"$f":"F_Inputs!UFD7","v":0},{"$f":"F_Inputs!UFE7","v":0},{"$f":"F_Inputs!UFF7","v":0},{"$f":"F_Inputs!UFG7","v":0},{"$f":"F_Inputs!UFH7","v":0},{"$f":"F_Inputs!UFI7","v":0},{"$f":"F_Inputs!UFJ7","v":0},{"$f":"F_Inputs!UFK7","v":0},{"$f":"F_Inputs!UFL7","v":0},{"$f":"F_Inputs!UFM7","v":0},{"$f":"F_Inputs!UFN7","v":0},{"$f":"F_Inputs!UFO7","v":0},{"$f":"F_Inputs!UFP7","v":0},{"$f":"F_Inputs!UFQ7","v":0},{"$f":"F_Inputs!UFR7","v":0},{"$f":"F_Inputs!UFS7","v":0},{"$f":"F_Inputs!UFT7","v":0},{"$f":"F_Inputs!UFU7","v":0},{"$f":"F_Inputs!UFV7","v":0},{"$f":"F_Inputs!UFW7","v":0},{"$f":"F_Inputs!UFX7","v":0},{"$f":"F_Inputs!UFY7","v":0},{"$f":"F_Inputs!UFZ7","v":0},{"$f":"F_Inputs!UGA7","v":0},{"$f":"F_Inputs!UGB7","v":0},{"$f":"F_Inputs!UGC7","v":0},{"$f":"F_Inputs!UGD7","v":0},{"$f":"F_Inputs!UGE7","v":0},{"$f":"F_Inputs!UGF7","v":0},{"$f":"F_Inputs!UGG7","v":0},{"$f":"F_Inputs!UGH7","v":0},{"$f":"F_Inputs!UGI7","v":0},{"$f":"F_Inputs!UGJ7","v":0},{"$f":"F_Inputs!UGK7","v":0},{"$f":"F_Inputs!UGL7","v":0},{"$f":"F_Inputs!UGM7","v":0},{"$f":"F_Inputs!UGN7","v":0},{"$f":"F_Inputs!UGO7","v":0},{"$f":"F_Inputs!UGP7","v":0},{"$f":"F_Inputs!UGQ7","v":0},{"$f":"F_Inputs!UGR7","v":0},{"$f":"F_Inputs!UGS7","v":0},{"$f":"F_Inputs!UGT7","v":0},{"$f":"F_Inputs!UGU7","v":0},{"$f":"F_Inputs!UGV7","v":0},{"$f":"F_Inputs!UGW7","v":0},{"$f":"F_Inputs!UGX7","v":0},{"$f":"F_Inputs!UGY7","v":0},{"$f":"F_Inputs!UGZ7","v":0},{"$f":"F_Inputs!UHA7","v":0},{"$f":"F_Inputs!UHB7","v":0},{"$f":"F_Inputs!UHC7","v":0},{"$f":"F_Inputs!UHD7","v":0},{"$f":"F_Inputs!UHE7","v":0},{"$f":"F_Inputs!UHF7","v":0},{"$f":"F_Inputs!UHG7","v":0},{"$f":"F_Inputs!UHH7","v":0},{"$f":"F_Inputs!UHI7","v":0},{"$f":"F_Inputs!UHJ7","v":0},{"$f":"F_Inputs!UHK7","v":0},{"$f":"F_Inputs!UHL7","v":0},{"$f":"F_Inputs!UHM7","v":0},{"$f":"F_Inputs!UHN7","v":0},{"$f":"F_Inputs!UHO7","v":0},{"$f":"F_Inputs!UHP7","v":0},{"$f":"F_Inputs!UHQ7","v":0},{"$f":"F_Inputs!UHR7","v":0},{"$f":"F_Inputs!UHS7","v":0},{"$f":"F_Inputs!UHT7","v":0},{"$f":"F_Inputs!UHU7","v":0},{"$f":"F_Inputs!UHV7","v":0},{"$f":"F_Inputs!UHW7","v":0},{"$f":"F_Inputs!UHX7","v":0},{"$f":"F_Inputs!UHY7","v":0},{"$f":"F_Inputs!UHZ7","v":0},{"$f":"F_Inputs!UIA7","v":0},{"$f":"F_Inputs!UIB7","v":0},{"$f":"F_Inputs!UIC7","v":0},{"$f":"F_Inputs!UID7","v":0},{"$f":"F_Inputs!UIE7","v":0},{"$f":"F_Inputs!UIF7","v":0},{"$f":"F_Inputs!UIG7","v":0},{"$f":"F_Inputs!UIH7","v":0},{"$f":"F_Inputs!UII7","v":0},{"$f":"F_Inputs!UIJ7","v":0},{"$f":"F_Inputs!UIK7","v":0},{"$f":"F_Inputs!UIL7","v":0},{"$f":"F_Inputs!UIM7","v":0},{"$f":"F_Inputs!UIN7","v":0},{"$f":"F_Inputs!UIO7","v":0},{"$f":"F_Inputs!UIP7","v":0},{"$f":"F_Inputs!UIQ7","v":0},{"$f":"F_Inputs!UIR7","v":0},{"$f":"F_Inputs!UIS7","v":0},{"$f":"F_Inputs!UIT7","v":0},{"$f":"F_Inputs!UIU7","v":0},{"$f":"F_Inputs!UIV7","v":0},{"$f":"F_Inputs!UIW7","v":0},{"$f":"F_Inputs!UIX7","v":0},{"$f":"F_Inputs!UIY7","v":0},{"$f":"F_Inputs!UIZ7","v":0},{"$f":"F_Inputs!UJA7","v":0},{"$f":"F_Inputs!UJB7","v":0},{"$f":"F_Inputs!UJC7","v":0},{"$f":"F_Inputs!UJD7","v":0},{"$f":"F_Inputs!UJE7","v":0},{"$f":"F_Inputs!UJF7","v":0},{"$f":"F_Inputs!UJG7","v":0},{"$f":"F_Inputs!UJH7","v":0},{"$f":"F_Inputs!UJI7","v":0},{"$f":"F_Inputs!UJJ7","v":0},{"$f":"F_Inputs!UJK7","v":0},{"$f":"F_Inputs!UJL7","v":0},{"$f":"F_Inputs!UJM7","v":0},{"$f":"F_Inputs!UJN7","v":0},{"$f":"F_Inputs!UJO7","v":0},{"$f":"F_Inputs!UJP7","v":0},{"$f":"F_Inputs!UJQ7","v":0},{"$f":"F_Inputs!UJR7","v":0},{"$f":"F_Inputs!UJS7","v":0},{"$f":"F_Inputs!UJT7","v":0},{"$f":"F_Inputs!UJU7","v":0},{"$f":"F_Inputs!UJV7","v":0},{"$f":"F_Inputs!UJW7","v":0},{"$f":"F_Inputs!UJX7","v":0},{"$f":"F_Inputs!UJY7","v":0},{"$f":"F_Inputs!UJZ7","v":0},{"$f":"F_Inputs!UKA7","v":0},{"$f":"F_Inputs!UKB7","v":0},{"$f":"F_Inputs!UKC7","v":0},{"$f":"F_Inputs!UKD7","v":0},{"$f":"F_Inputs!UKE7","v":0},{"$f":"F_Inputs!UKF7","v":0},{"$f":"F_Inputs!UKG7","v":0},{"$f":"F_Inputs!UKH7","v":0},{"$f":"F_Inputs!UKI7","v":0},{"$f":"F_Inputs!UKJ7","v":0},{"$f":"F_Inputs!UKK7","v":0},{"$f":"F_Inputs!UKL7","v":0},{"$f":"F_Inputs!UKM7","v":0},{"$f":"F_Inputs!UKN7","v":0},{"$f":"F_Inputs!UKO7","v":0},{"$f":"F_Inputs!UKP7","v":0},{"$f":"F_Inputs!UKQ7","v":0},{"$f":"F_Inputs!UKR7","v":0},{"$f":"F_Inputs!UKS7","v":0},{"$f":"F_Inputs!UKT7","v":0},{"$f":"F_Inputs!UKU7","v":0},{"$f":"F_Inputs!UKV7","v":0},{"$f":"F_Inputs!UKW7","v":0},{"$f":"F_Inputs!UKX7","v":0},{"$f":"F_Inputs!UKY7","v":0},{"$f":"F_Inputs!UKZ7","v":0},{"$f":"F_Inputs!ULA7","v":0},{"$f":"F_Inputs!ULB7","v":0},{"$f":"F_Inputs!ULC7","v":0},{"$f":"F_Inputs!ULD7","v":0},{"$f":"F_Inputs!ULE7","v":0},{"$f":"F_Inputs!ULF7","v":0},{"$f":"F_Inputs!ULG7","v":0},{"$f":"F_Inputs!ULH7","v":0},{"$f":"F_Inputs!ULI7","v":0},{"$f":"F_Inputs!ULJ7","v":0},{"$f":"F_Inputs!ULK7","v":0},{"$f":"F_Inputs!ULL7","v":0},{"$f":"F_Inputs!ULM7","v":0},{"$f":"F_Inputs!ULN7","v":0},{"$f":"F_Inputs!ULO7","v":0},{"$f":"F_Inputs!ULP7","v":0},{"$f":"F_Inputs!ULQ7","v":0},{"$f":"F_Inputs!ULR7","v":0},{"$f":"F_Inputs!ULS7","v":0},{"$f":"F_Inputs!ULT7","v":0},{"$f":"F_Inputs!ULU7","v":0},{"$f":"F_Inputs!ULV7","v":0},{"$f":"F_Inputs!ULW7","v":0},{"$f":"F_Inputs!ULX7","v":0},{"$f":"F_Inputs!ULY7","v":0},{"$f":"F_Inputs!ULZ7","v":0},{"$f":"F_Inputs!UMA7","v":0},{"$f":"F_Inputs!UMB7","v":0},{"$f":"F_Inputs!UMC7","v":0},{"$f":"F_Inputs!UMD7","v":0},{"$f":"F_Inputs!UME7","v":0},{"$f":"F_Inputs!UMF7","v":0},{"$f":"F_Inputs!UMG7","v":0},{"$f":"F_Inputs!UMH7","v":0},{"$f":"F_Inputs!UMI7","v":0},{"$f":"F_Inputs!UMJ7","v":0},{"$f":"F_Inputs!UMK7","v":0},{"$f":"F_Inputs!UML7","v":0},{"$f":"F_Inputs!UMM7","v":0},{"$f":"F_Inputs!UMN7","v":0},{"$f":"F_Inputs!UMO7","v":0},{"$f":"F_Inputs!UMP7","v":0},{"$f":"F_Inputs!UMQ7","v":0},{"$f":"F_Inputs!UMR7","v":0},{"$f":"F_Inputs!UMS7","v":0},{"$f":"F_Inputs!UMT7","v":0},{"$f":"F_Inputs!UMU7","v":0},{"$f":"F_Inputs!UMV7","v":0},{"$f":"F_Inputs!UMW7","v":0},{"$f":"F_Inputs!UMX7","v":0},{"$f":"F_Inputs!UMY7","v":0},{"$f":"F_Inputs!UMZ7","v":0},{"$f":"F_Inputs!UNA7","v":0},{"$f":"F_Inputs!UNB7","v":0},{"$f":"F_Inputs!UNC7","v":0},{"$f":"F_Inputs!UND7","v":0},{"$f":"F_Inputs!UNE7","v":0},{"$f":"F_Inputs!UNF7","v":0},{"$f":"F_Inputs!UNG7","v":0},{"$f":"F_Inputs!UNH7","v":0},{"$f":"F_Inputs!UNI7","v":0},{"$f":"F_Inputs!UNJ7","v":0},{"$f":"F_Inputs!UNK7","v":0},{"$f":"F_Inputs!UNL7","v":0},{"$f":"F_Inputs!UNM7","v":0},{"$f":"F_Inputs!UNN7","v":0},{"$f":"F_Inputs!UNO7","v":0},{"$f":"F_Inputs!UNP7","v":0},{"$f":"F_Inputs!UNQ7","v":0},{"$f":"F_Inputs!UNR7","v":0},{"$f":"F_Inputs!UNS7","v":0},{"$f":"F_Inputs!UNT7","v":0},{"$f":"F_Inputs!UNU7","v":0},{"$f":"F_Inputs!UNV7","v":0},{"$f":"F_Inputs!UNW7","v":0},{"$f":"F_Inputs!UNX7","v":0},{"$f":"F_Inputs!UNY7","v":0},{"$f":"F_Inputs!UNZ7","v":0},{"$f":"F_Inputs!UOA7","v":0},{"$f":"F_Inputs!UOB7","v":0},{"$f":"F_Inputs!UOC7","v":0},{"$f":"F_Inputs!UOD7","v":0},{"$f":"F_Inputs!UOE7","v":0},{"$f":"F_Inputs!UOF7","v":0},{"$f":"F_Inputs!UOG7","v":0},{"$f":"F_Inputs!UOH7","v":0},{"$f":"F_Inputs!UOI7","v":0},{"$f":"F_Inputs!UOJ7","v":0},{"$f":"F_Inputs!UOK7","v":0},{"$f":"F_Inputs!UOL7","v":0},{"$f":"F_Inputs!UOM7","v":0},{"$f":"F_Inputs!UON7","v":0},{"$f":"F_Inputs!UOO7","v":0},{"$f":"F_Inputs!UOP7","v":0},{"$f":"F_Inputs!UOQ7","v":0},{"$f":"F_Inputs!UOR7","v":0},{"$f":"F_Inputs!UOS7","v":0},{"$f":"F_Inputs!UOT7","v":0},{"$f":"F_Inputs!UOU7","v":0},{"$f":"F_Inputs!UOV7","v":0},{"$f":"F_Inputs!UOW7","v":0},{"$f":"F_Inputs!UOX7","v":0},{"$f":"F_Inputs!UOY7","v":0},{"$f":"F_Inputs!UOZ7","v":0},{"$f":"F_Inputs!UPA7","v":0},{"$f":"F_Inputs!UPB7","v":0},{"$f":"F_Inputs!UPC7","v":0},{"$f":"F_Inputs!UPD7","v":0},{"$f":"F_Inputs!UPE7","v":0},{"$f":"F_Inputs!UPF7","v":0},{"$f":"F_Inputs!UPG7","v":0},{"$f":"F_Inputs!UPH7","v":0},{"$f":"F_Inputs!UPI7","v":0},{"$f":"F_Inputs!UPJ7","v":0},{"$f":"F_Inputs!UPK7","v":0},{"$f":"F_Inputs!UPL7","v":0},{"$f":"F_Inputs!UPM7","v":0},{"$f":"F_Inputs!UPN7","v":0},{"$f":"F_Inputs!UPO7","v":0},{"$f":"F_Inputs!UPP7","v":0},{"$f":"F_Inputs!UPQ7","v":0},{"$f":"F_Inputs!UPR7","v":0},{"$f":"F_Inputs!UPS7","v":0},{"$f":"F_Inputs!UPT7","v":0},{"$f":"F_Inputs!UPU7","v":0},{"$f":"F_Inputs!UPV7","v":0},{"$f":"F_Inputs!UPW7","v":0},{"$f":"F_Inputs!UPX7","v":0},{"$f":"F_Inputs!UPY7","v":0},{"$f":"F_Inputs!UPZ7","v":0},{"$f":"F_Inputs!UQA7","v":0},{"$f":"F_Inputs!UQB7","v":0},{"$f":"F_Inputs!UQC7","v":0},{"$f":"F_Inputs!UQD7","v":0},{"$f":"F_Inputs!UQE7","v":0},{"$f":"F_Inputs!UQF7","v":0},{"$f":"F_Inputs!UQG7","v":0},{"$f":"F_Inputs!UQH7","v":0},{"$f":"F_Inputs!UQI7","v":0},{"$f":"F_Inputs!UQJ7","v":0},{"$f":"F_Inputs!UQK7","v":0},{"$f":"F_Inputs!UQL7","v":0},{"$f":"F_Inputs!UQM7","v":0},{"$f":"F_Inputs!UQN7","v":0},{"$f":"F_Inputs!UQO7","v":0},{"$f":"F_Inputs!UQP7","v":0},{"$f":"F_Inputs!UQQ7","v":0},{"$f":"F_Inputs!UQR7","v":0},{"$f":"F_Inputs!UQS7","v":0},{"$f":"F_Inputs!UQT7","v":0},{"$f":"F_Inputs!UQU7","v":0},{"$f":"F_Inputs!UQV7","v":0},{"$f":"F_Inputs!UQW7","v":0},{"$f":"F_Inputs!UQX7","v":0},{"$f":"F_Inputs!UQY7","v":0},{"$f":"F_Inputs!UQZ7","v":0},{"$f":"F_Inputs!URA7","v":0},{"$f":"F_Inputs!URB7","v":0},{"$f":"F_Inputs!URC7","v":0},{"$f":"F_Inputs!URD7","v":0},{"$f":"F_Inputs!URE7","v":0},{"$f":"F_Inputs!URF7","v":0},{"$f":"F_Inputs!URG7","v":0},{"$f":"F_Inputs!URH7","v":0},{"$f":"F_Inputs!URI7","v":0},{"$f":"F_Inputs!URJ7","v":0},{"$f":"F_Inputs!URK7","v":0},{"$f":"F_Inputs!URL7","v":0},{"$f":"F_Inputs!URM7","v":0},{"$f":"F_Inputs!URN7","v":0},{"$f":"F_Inputs!URO7","v":0},{"$f":"F_Inputs!URP7","v":0},{"$f":"F_Inputs!URQ7","v":0},{"$f":"F_Inputs!URR7","v":0},{"$f":"F_Inputs!URS7","v":0},{"$f":"F_Inputs!URT7","v":0},{"$f":"F_Inputs!URU7","v":0},{"$f":"F_Inputs!URV7","v":0},{"$f":"F_Inputs!URW7","v":0},{"$f":"F_Inputs!URX7","v":0},{"$f":"F_Inputs!URY7","v":0},{"$f":"F_Inputs!URZ7","v":0},{"$f":"F_Inputs!USA7","v":0},{"$f":"F_Inputs!USB7","v":0},{"$f":"F_Inputs!USC7","v":0},{"$f":"F_Inputs!USD7","v":0},{"$f":"F_Inputs!USE7","v":0},{"$f":"F_Inputs!USF7","v":0},{"$f":"F_Inputs!USG7","v":0},{"$f":"F_Inputs!USH7","v":0},{"$f":"F_Inputs!USI7","v":0},{"$f":"F_Inputs!USJ7","v":0},{"$f":"F_Inputs!USK7","v":0},{"$f":"F_Inputs!USL7","v":0},{"$f":"F_Inputs!USM7","v":0},{"$f":"F_Inputs!USN7","v":0},{"$f":"F_Inputs!USO7","v":0},{"$f":"F_Inputs!USP7","v":0},{"$f":"F_Inputs!USQ7","v":0},{"$f":"F_Inputs!USR7","v":0},{"$f":"F_Inputs!USS7","v":0},{"$f":"F_Inputs!UST7","v":0},{"$f":"F_Inputs!USU7","v":0},{"$f":"F_Inputs!USV7","v":0},{"$f":"F_Inputs!USW7","v":0},{"$f":"F_Inputs!USX7","v":0},{"$f":"F_Inputs!USY7","v":0},{"$f":"F_Inputs!USZ7","v":0},{"$f":"F_Inputs!UTA7","v":0},{"$f":"F_Inputs!UTB7","v":0},{"$f":"F_Inputs!UTC7","v":0},{"$f":"F_Inputs!UTD7","v":0},{"$f":"F_Inputs!UTE7","v":0},{"$f":"F_Inputs!UTF7","v":0},{"$f":"F_Inputs!UTG7","v":0},{"$f":"F_Inputs!UTH7","v":0},{"$f":"F_Inputs!UTI7","v":0},{"$f":"F_Inputs!UTJ7","v":0},{"$f":"F_Inputs!UTK7","v":0},{"$f":"F_Inputs!UTL7","v":0},{"$f":"F_Inputs!UTM7","v":0},{"$f":"F_Inputs!UTN7","v":0},{"$f":"F_Inputs!UTO7","v":0},{"$f":"F_Inputs!UTP7","v":0},{"$f":"F_Inputs!UTQ7","v":0},{"$f":"F_Inputs!UTR7","v":0},{"$f":"F_Inputs!UTS7","v":0},{"$f":"F_Inputs!UTT7","v":0},{"$f":"F_Inputs!UTU7","v":0},{"$f":"F_Inputs!UTV7","v":0},{"$f":"F_Inputs!UTW7","v":0},{"$f":"F_Inputs!UTX7","v":0},{"$f":"F_Inputs!UTY7","v":0},{"$f":"F_Inputs!UTZ7","v":0},{"$f":"F_Inputs!UUA7","v":0},{"$f":"F_Inputs!UUB7","v":0},{"$f":"F_Inputs!UUC7","v":0},{"$f":"F_Inputs!UUD7","v":0},{"$f":"F_Inputs!UUE7","v":0},{"$f":"F_Inputs!UUF7","v":0},{"$f":"F_Inputs!UUG7","v":0},{"$f":"F_Inputs!UUH7","v":0},{"$f":"F_Inputs!UUI7","v":0},{"$f":"F_Inputs!UUJ7","v":0},{"$f":"F_Inputs!UUK7","v":0},{"$f":"F_Inputs!UUL7","v":0},{"$f":"F_Inputs!UUM7","v":0},{"$f":"F_Inputs!UUN7","v":0},{"$f":"F_Inputs!UUO7","v":0},{"$f":"F_Inputs!UUP7","v":0},{"$f":"F_Inputs!UUQ7","v":0},{"$f":"F_Inputs!UUR7","v":0},{"$f":"F_Inputs!UUS7","v":0},{"$f":"F_Inputs!UUT7","v":0},{"$f":"F_Inputs!UUU7","v":0},{"$f":"F_Inputs!UUV7","v":0},{"$f":"F_Inputs!UUW7","v":0},{"$f":"F_Inputs!UUX7","v":0},{"$f":"F_Inputs!UUY7","v":0},{"$f":"F_Inputs!UUZ7","v":0},{"$f":"F_Inputs!UVA7","v":0},{"$f":"F_Inputs!UVB7","v":0},{"$f":"F_Inputs!UVC7","v":0},{"$f":"F_Inputs!UVD7","v":0},{"$f":"F_Inputs!UVE7","v":0},{"$f":"F_Inputs!UVF7","v":0},{"$f":"F_Inputs!UVG7","v":0},{"$f":"F_Inputs!UVH7","v":0},{"$f":"F_Inputs!UVI7","v":0},{"$f":"F_Inputs!UVJ7","v":0},{"$f":"F_Inputs!UVK7","v":0},{"$f":"F_Inputs!UVL7","v":0},{"$f":"F_Inputs!UVM7","v":0},{"$f":"F_Inputs!UVN7","v":0},{"$f":"F_Inputs!UVO7","v":0},{"$f":"F_Inputs!UVP7","v":0},{"$f":"F_Inputs!UVQ7","v":0},{"$f":"F_Inputs!UVR7","v":0},{"$f":"F_Inputs!UVS7","v":0},{"$f":"F_Inputs!UVT7","v":0},{"$f":"F_Inputs!UVU7","v":0},{"$f":"F_Inputs!UVV7","v":0},{"$f":"F_Inputs!UVW7","v":0},{"$f":"F_Inputs!UVX7","v":0},{"$f":"F_Inputs!UVY7","v":0},{"$f":"F_Inputs!UVZ7","v":0},{"$f":"F_Inputs!UWA7","v":0},{"$f":"F_Inputs!UWB7","v":0},{"$f":"F_Inputs!UWC7","v":0},{"$f":"F_Inputs!UWD7","v":0},{"$f":"F_Inputs!UWE7","v":0},{"$f":"F_Inputs!UWF7","v":0},{"$f":"F_Inputs!UWG7","v":0},{"$f":"F_Inputs!UWH7","v":0},{"$f":"F_Inputs!UWI7","v":0},{"$f":"F_Inputs!UWJ7","v":0},{"$f":"F_Inputs!UWK7","v":0},{"$f":"F_Inputs!UWL7","v":0},{"$f":"F_Inputs!UWM7","v":0},{"$f":"F_Inputs!UWN7","v":0},{"$f":"F_Inputs!UWO7","v":0},{"$f":"F_Inputs!UWP7","v":0},{"$f":"F_Inputs!UWQ7","v":0},{"$f":"F_Inputs!UWR7","v":0},{"$f":"F_Inputs!UWS7","v":0},{"$f":"F_Inputs!UWT7","v":0},{"$f":"F_Inputs!UWU7","v":0},{"$f":"F_Inputs!UWV7","v":0},{"$f":"F_Inputs!UWW7","v":0},{"$f":"F_Inputs!UWX7","v":0},{"$f":"F_Inputs!UWY7","v":0},{"$f":"F_Inputs!UWZ7","v":0},{"$f":"F_Inputs!UXA7","v":0},{"$f":"F_Inputs!UXB7","v":0},{"$f":"F_Inputs!UXC7","v":0},{"$f":"F_Inputs!UXD7","v":0},{"$f":"F_Inputs!UXE7","v":0},{"$f":"F_Inputs!UXF7","v":0},{"$f":"F_Inputs!UXG7","v":0},{"$f":"F_Inputs!UXH7","v":0},{"$f":"F_Inputs!UXI7","v":0},{"$f":"F_Inputs!UXJ7","v":0},{"$f":"F_Inputs!UXK7","v":0},{"$f":"F_Inputs!UXL7","v":0},{"$f":"F_Inputs!UXM7","v":0},{"$f":"F_Inputs!UXN7","v":0},{"$f":"F_Inputs!UXO7","v":0},{"$f":"F_Inputs!UXP7","v":0},{"$f":"F_Inputs!UXQ7","v":0},{"$f":"F_Inputs!UXR7","v":0},{"$f":"F_Inputs!UXS7","v":0},{"$f":"F_Inputs!UXT7","v":0},{"$f":"F_Inputs!UXU7","v":0},{"$f":"F_Inputs!UXV7","v":0},{"$f":"F_Inputs!UXW7","v":0},{"$f":"F_Inputs!UXX7","v":0},{"$f":"F_Inputs!UXY7","v":0},{"$f":"F_Inputs!UXZ7","v":0},{"$f":"F_Inputs!UYA7","v":0},{"$f":"F_Inputs!UYB7","v":0},{"$f":"F_Inputs!UYC7","v":0},{"$f":"F_Inputs!UYD7","v":0},{"$f":"F_Inputs!UYE7","v":0},{"$f":"F_Inputs!UYF7","v":0},{"$f":"F_Inputs!UYG7","v":0},{"$f":"F_Inputs!UYH7","v":0},{"$f":"F_Inputs!UYI7","v":0},{"$f":"F_Inputs!UYJ7","v":0},{"$f":"F_Inputs!UYK7","v":0},{"$f":"F_Inputs!UYL7","v":0},{"$f":"F_Inputs!UYM7","v":0},{"$f":"F_Inputs!UYN7","v":0},{"$f":"F_Inputs!UYO7","v":0},{"$f":"F_Inputs!UYP7","v":0},{"$f":"F_Inputs!UYQ7","v":0},{"$f":"F_Inputs!UYR7","v":0},{"$f":"F_Inputs!UYS7","v":0},{"$f":"F_Inputs!UYT7","v":0},{"$f":"F_Inputs!UYU7","v":0},{"$f":"F_Inputs!UYV7","v":0},{"$f":"F_Inputs!UYW7","v":0},{"$f":"F_Inputs!UYX7","v":0},{"$f":"F_Inputs!UYY7","v":0},{"$f":"F_Inputs!UYZ7","v":0},{"$f":"F_Inputs!UZA7","v":0},{"$f":"F_Inputs!UZB7","v":0},{"$f":"F_Inputs!UZC7","v":0},{"$f":"F_Inputs!UZD7","v":0},{"$f":"F_Inputs!UZE7","v":0},{"$f":"F_Inputs!UZF7","v":0},{"$f":"F_Inputs!UZG7","v":0},{"$f":"F_Inputs!UZH7","v":0},{"$f":"F_Inputs!UZI7","v":0},{"$f":"F_Inputs!UZJ7","v":0},{"$f":"F_Inputs!UZK7","v":0},{"$f":"F_Inputs!UZL7","v":0},{"$f":"F_Inputs!UZM7","v":0},{"$f":"F_Inputs!UZN7","v":0},{"$f":"F_Inputs!UZO7","v":0},{"$f":"F_Inputs!UZP7","v":0},{"$f":"F_Inputs!UZQ7","v":0},{"$f":"F_Inputs!UZR7","v":0},{"$f":"F_Inputs!UZS7","v":0},{"$f":"F_Inputs!UZT7","v":0},{"$f":"F_Inputs!UZU7","v":0},{"$f":"F_Inputs!UZV7","v":0},{"$f":"F_Inputs!UZW7","v":0},{"$f":"F_Inputs!UZX7","v":0},{"$f":"F_Inputs!UZY7","v":0},{"$f":"F_Inputs!UZZ7","v":0},{"$f":"F_Inputs!VAA7","v":0},{"$f":"F_Inputs!VAB7","v":0},{"$f":"F_Inputs!VAC7","v":0},{"$f":"F_Inputs!VAD7","v":0},{"$f":"F_Inputs!VAE7","v":0},{"$f":"F_Inputs!VAF7","v":0},{"$f":"F_Inputs!VAG7","v":0},{"$f":"F_Inputs!VAH7","v":0},{"$f":"F_Inputs!VAI7","v":0},{"$f":"F_Inputs!VAJ7","v":0},{"$f":"F_Inputs!VAK7","v":0},{"$f":"F_Inputs!VAL7","v":0},{"$f":"F_Inputs!VAM7","v":0},{"$f":"F_Inputs!VAN7","v":0},{"$f":"F_Inputs!VAO7","v":0},{"$f":"F_Inputs!VAP7","v":0},{"$f":"F_Inputs!VAQ7","v":0},{"$f":"F_Inputs!VAR7","v":0},{"$f":"F_Inputs!VAS7","v":0},{"$f":"F_Inputs!VAT7","v":0},{"$f":"F_Inputs!VAU7","v":0},{"$f":"F_Inputs!VAV7","v":0},{"$f":"F_Inputs!VAW7","v":0},{"$f":"F_Inputs!VAX7","v":0},{"$f":"F_Inputs!VAY7","v":0},{"$f":"F_Inputs!VAZ7","v":0},{"$f":"F_Inputs!VBA7","v":0},{"$f":"F_Inputs!VBB7","v":0},{"$f":"F_Inputs!VBC7","v":0},{"$f":"F_Inputs!VBD7","v":0},{"$f":"F_Inputs!VBE7","v":0},{"$f":"F_Inputs!VBF7","v":0},{"$f":"F_Inputs!VBG7","v":0},{"$f":"F_Inputs!VBH7","v":0},{"$f":"F_Inputs!VBI7","v":0},{"$f":"F_Inputs!VBJ7","v":0},{"$f":"F_Inputs!VBK7","v":0},{"$f":"F_Inputs!VBL7","v":0},{"$f":"F_Inputs!VBM7","v":0},{"$f":"F_Inputs!VBN7","v":0},{"$f":"F_Inputs!VBO7","v":0},{"$f":"F_Inputs!VBP7","v":0},{"$f":"F_Inputs!VBQ7","v":0},{"$f":"F_Inputs!VBR7","v":0},{"$f":"F_Inputs!VBS7","v":0},{"$f":"F_Inputs!VBT7","v":0},{"$f":"F_Inputs!VBU7","v":0},{"$f":"F_Inputs!VBV7","v":0},{"$f":"F_Inputs!VBW7","v":0},{"$f":"F_Inputs!VBX7","v":0},{"$f":"F_Inputs!VBY7","v":0},{"$f":"F_Inputs!VBZ7","v":0},{"$f":"F_Inputs!VCA7","v":0},{"$f":"F_Inputs!VCB7","v":0},{"$f":"F_Inputs!VCC7","v":0},{"$f":"F_Inputs!VCD7","v":0},{"$f":"F_Inputs!VCE7","v":0},{"$f":"F_Inputs!VCF7","v":0},{"$f":"F_Inputs!VCG7","v":0},{"$f":"F_Inputs!VCH7","v":0},{"$f":"F_Inputs!VCI7","v":0},{"$f":"F_Inputs!VCJ7","v":0},{"$f":"F_Inputs!VCK7","v":0},{"$f":"F_Inputs!VCL7","v":0},{"$f":"F_Inputs!VCM7","v":0},{"$f":"F_Inputs!VCN7","v":0},{"$f":"F_Inputs!VCO7","v":0},{"$f":"F_Inputs!VCP7","v":0},{"$f":"F_Inputs!VCQ7","v":0},{"$f":"F_Inputs!VCR7","v":0},{"$f":"F_Inputs!VCS7","v":0},{"$f":"F_Inputs!VCT7","v":0},{"$f":"F_Inputs!VCU7","v":0},{"$f":"F_Inputs!VCV7","v":0},{"$f":"F_Inputs!VCW7","v":0},{"$f":"F_Inputs!VCX7","v":0},{"$f":"F_Inputs!VCY7","v":0},{"$f":"F_Inputs!VCZ7","v":0},{"$f":"F_Inputs!VDA7","v":0},{"$f":"F_Inputs!VDB7","v":0},{"$f":"F_Inputs!VDC7","v":0},{"$f":"F_Inputs!VDD7","v":0},{"$f":"F_Inputs!VDE7","v":0},{"$f":"F_Inputs!VDF7","v":0},{"$f":"F_Inputs!VDG7","v":0},{"$f":"F_Inputs!VDH7","v":0},{"$f":"F_Inputs!VDI7","v":0},{"$f":"F_Inputs!VDJ7","v":0},{"$f":"F_Inputs!VDK7","v":0},{"$f":"F_Inputs!VDL7","v":0},{"$f":"F_Inputs!VDM7","v":0},{"$f":"F_Inputs!VDN7","v":0},{"$f":"F_Inputs!VDO7","v":0},{"$f":"F_Inputs!VDP7","v":0},{"$f":"F_Inputs!VDQ7","v":0},{"$f":"F_Inputs!VDR7","v":0},{"$f":"F_Inputs!VDS7","v":0},{"$f":"F_Inputs!VDT7","v":0},{"$f":"F_Inputs!VDU7","v":0},{"$f":"F_Inputs!VDV7","v":0},{"$f":"F_Inputs!VDW7","v":0},{"$f":"F_Inputs!VDX7","v":0},{"$f":"F_Inputs!VDY7","v":0},{"$f":"F_Inputs!VDZ7","v":0},{"$f":"F_Inputs!VEA7","v":0},{"$f":"F_Inputs!VEB7","v":0},{"$f":"F_Inputs!VEC7","v":0},{"$f":"F_Inputs!VED7","v":0},{"$f":"F_Inputs!VEE7","v":0},{"$f":"F_Inputs!VEF7","v":0},{"$f":"F_Inputs!VEG7","v":0},{"$f":"F_Inputs!VEH7","v":0},{"$f":"F_Inputs!VEI7","v":0},{"$f":"F_Inputs!VEJ7","v":0},{"$f":"F_Inputs!VEK7","v":0},{"$f":"F_Inputs!VEL7","v":0},{"$f":"F_Inputs!VEM7","v":0},{"$f":"F_Inputs!VEN7","v":0},{"$f":"F_Inputs!VEO7","v":0},{"$f":"F_Inputs!VEP7","v":0},{"$f":"F_Inputs!VEQ7","v":0},{"$f":"F_Inputs!VER7","v":0},{"$f":"F_Inputs!VES7","v":0},{"$f":"F_Inputs!VET7","v":0},{"$f":"F_Inputs!VEU7","v":0},{"$f":"F_Inputs!VEV7","v":0},{"$f":"F_Inputs!VEW7","v":0},{"$f":"F_Inputs!VEX7","v":0},{"$f":"F_Inputs!VEY7","v":0},{"$f":"F_Inputs!VEZ7","v":0},{"$f":"F_Inputs!VFA7","v":0},{"$f":"F_Inputs!VFB7","v":0},{"$f":"F_Inputs!VFC7","v":0},{"$f":"F_Inputs!VFD7","v":0},{"$f":"F_Inputs!VFE7","v":0},{"$f":"F_Inputs!VFF7","v":0},{"$f":"F_Inputs!VFG7","v":0},{"$f":"F_Inputs!VFH7","v":0},{"$f":"F_Inputs!VFI7","v":0},{"$f":"F_Inputs!VFJ7","v":0},{"$f":"F_Inputs!VFK7","v":0},{"$f":"F_Inputs!VFL7","v":0},{"$f":"F_Inputs!VFM7","v":0},{"$f":"F_Inputs!VFN7","v":0},{"$f":"F_Inputs!VFO7","v":0},{"$f":"F_Inputs!VFP7","v":0},{"$f":"F_Inputs!VFQ7","v":0},{"$f":"F_Inputs!VFR7","v":0},{"$f":"F_Inputs!VFS7","v":0},{"$f":"F_Inputs!VFT7","v":0},{"$f":"F_Inputs!VFU7","v":0},{"$f":"F_Inputs!VFV7","v":0},{"$f":"F_Inputs!VFW7","v":0},{"$f":"F_Inputs!VFX7","v":0},{"$f":"F_Inputs!VFY7","v":0},{"$f":"F_Inputs!VFZ7","v":0},{"$f":"F_Inputs!VGA7","v":0},{"$f":"F_Inputs!VGB7","v":0},{"$f":"F_Inputs!VGC7","v":0},{"$f":"F_Inputs!VGD7","v":0},{"$f":"F_Inputs!VGE7","v":0},{"$f":"F_Inputs!VGF7","v":0},{"$f":"F_Inputs!VGG7","v":0},{"$f":"F_Inputs!VGH7","v":0},{"$f":"F_Inputs!VGI7","v":0},{"$f":"F_Inputs!VGJ7","v":0},{"$f":"F_Inputs!VGK7","v":0},{"$f":"F_Inputs!VGL7","v":0},{"$f":"F_Inputs!VGM7","v":0},{"$f":"F_Inputs!VGN7","v":0},{"$f":"F_Inputs!VGO7","v":0},{"$f":"F_Inputs!VGP7","v":0},{"$f":"F_Inputs!VGQ7","v":0},{"$f":"F_Inputs!VGR7","v":0},{"$f":"F_Inputs!VGS7","v":0},{"$f":"F_Inputs!VGT7","v":0},{"$f":"F_Inputs!VGU7","v":0},{"$f":"F_Inputs!VGV7","v":0},{"$f":"F_Inputs!VGW7","v":0},{"$f":"F_Inputs!VGX7","v":0},{"$f":"F_Inputs!VGY7","v":0},{"$f":"F_Inputs!VGZ7","v":0},{"$f":"F_Inputs!VHA7","v":0},{"$f":"F_Inputs!VHB7","v":0},{"$f":"F_Inputs!VHC7","v":0},{"$f":"F_Inputs!VHD7","v":0},{"$f":"F_Inputs!VHE7","v":0},{"$f":"F_Inputs!VHF7","v":0},{"$f":"F_Inputs!VHG7","v":0},{"$f":"F_Inputs!VHH7","v":0},{"$f":"F_Inputs!VHI7","v":0},{"$f":"F_Inputs!VHJ7","v":0},{"$f":"F_Inputs!VHK7","v":0},{"$f":"F_Inputs!VHL7","v":0},{"$f":"F_Inputs!VHM7","v":0},{"$f":"F_Inputs!VHN7","v":0},{"$f":"F_Inputs!VHO7","v":0},{"$f":"F_Inputs!VHP7","v":0},{"$f":"F_Inputs!VHQ7","v":0},{"$f":"F_Inputs!VHR7","v":0},{"$f":"F_Inputs!VHS7","v":0},{"$f":"F_Inputs!VHT7","v":0},{"$f":"F_Inputs!VHU7","v":0},{"$f":"F_Inputs!VHV7","v":0},{"$f":"F_Inputs!VHW7","v":0},{"$f":"F_Inputs!VHX7","v":0},{"$f":"F_Inputs!VHY7","v":0},{"$f":"F_Inputs!VHZ7","v":0},{"$f":"F_Inputs!VIA7","v":0},{"$f":"F_Inputs!VIB7","v":0},{"$f":"F_Inputs!VIC7","v":0},{"$f":"F_Inputs!VID7","v":0},{"$f":"F_Inputs!VIE7","v":0},{"$f":"F_Inputs!VIF7","v":0},{"$f":"F_Inputs!VIG7","v":0},{"$f":"F_Inputs!VIH7","v":0},{"$f":"F_Inputs!VII7","v":0},{"$f":"F_Inputs!VIJ7","v":0},{"$f":"F_Inputs!VIK7","v":0},{"$f":"F_Inputs!VIL7","v":0},{"$f":"F_Inputs!VIM7","v":0},{"$f":"F_Inputs!VIN7","v":0},{"$f":"F_Inputs!VIO7","v":0},{"$f":"F_Inputs!VIP7","v":0},{"$f":"F_Inputs!VIQ7","v":0},{"$f":"F_Inputs!VIR7","v":0},{"$f":"F_Inputs!VIS7","v":0},{"$f":"F_Inputs!VIT7","v":0},{"$f":"F_Inputs!VIU7","v":0},{"$f":"F_Inputs!VIV7","v":0},{"$f":"F_Inputs!VIW7","v":0},{"$f":"F_Inputs!VIX7","v":0},{"$f":"F_Inputs!VIY7","v":0},{"$f":"F_Inputs!VIZ7","v":0},{"$f":"F_Inputs!VJA7","v":0},{"$f":"F_Inputs!VJB7","v":0},{"$f":"F_Inputs!VJC7","v":0},{"$f":"F_Inputs!VJD7","v":0},{"$f":"F_Inputs!VJE7","v":0},{"$f":"F_Inputs!VJF7","v":0},{"$f":"F_Inputs!VJG7","v":0},{"$f":"F_Inputs!VJH7","v":0},{"$f":"F_Inputs!VJI7","v":0},{"$f":"F_Inputs!VJJ7","v":0},{"$f":"F_Inputs!VJK7","v":0},{"$f":"F_Inputs!VJL7","v":0},{"$f":"F_Inputs!VJM7","v":0},{"$f":"F_Inputs!VJN7","v":0},{"$f":"F_Inputs!VJO7","v":0},{"$f":"F_Inputs!VJP7","v":0},{"$f":"F_Inputs!VJQ7","v":0},{"$f":"F_Inputs!VJR7","v":0},{"$f":"F_Inputs!VJS7","v":0},{"$f":"F_Inputs!VJT7","v":0},{"$f":"F_Inputs!VJU7","v":0},{"$f":"F_Inputs!VJV7","v":0},{"$f":"F_Inputs!VJW7","v":0},{"$f":"F_Inputs!VJX7","v":0},{"$f":"F_Inputs!VJY7","v":0},{"$f":"F_Inputs!VJZ7","v":0},{"$f":"F_Inputs!VKA7","v":0},{"$f":"F_Inputs!VKB7","v":0},{"$f":"F_Inputs!VKC7","v":0},{"$f":"F_Inputs!VKD7","v":0},{"$f":"F_Inputs!VKE7","v":0},{"$f":"F_Inputs!VKF7","v":0},{"$f":"F_Inputs!VKG7","v":0},{"$f":"F_Inputs!VKH7","v":0},{"$f":"F_Inputs!VKI7","v":0},{"$f":"F_Inputs!VKJ7","v":0},{"$f":"F_Inputs!VKK7","v":0},{"$f":"F_Inputs!VKL7","v":0},{"$f":"F_Inputs!VKM7","v":0},{"$f":"F_Inputs!VKN7","v":0},{"$f":"F_Inputs!VKO7","v":0},{"$f":"F_Inputs!VKP7","v":0},{"$f":"F_Inputs!VKQ7","v":0},{"$f":"F_Inputs!VKR7","v":0},{"$f":"F_Inputs!VKS7","v":0},{"$f":"F_Inputs!VKT7","v":0},{"$f":"F_Inputs!VKU7","v":0},{"$f":"F_Inputs!VKV7","v":0},{"$f":"F_Inputs!VKW7","v":0},{"$f":"F_Inputs!VKX7","v":0},{"$f":"F_Inputs!VKY7","v":0},{"$f":"F_Inputs!VKZ7","v":0},{"$f":"F_Inputs!VLA7","v":0},{"$f":"F_Inputs!VLB7","v":0},{"$f":"F_Inputs!VLC7","v":0},{"$f":"F_Inputs!VLD7","v":0},{"$f":"F_Inputs!VLE7","v":0},{"$f":"F_Inputs!VLF7","v":0},{"$f":"F_Inputs!VLG7","v":0},{"$f":"F_Inputs!VLH7","v":0},{"$f":"F_Inputs!VLI7","v":0},{"$f":"F_Inputs!VLJ7","v":0},{"$f":"F_Inputs!VLK7","v":0},{"$f":"F_Inputs!VLL7","v":0},{"$f":"F_Inputs!VLM7","v":0},{"$f":"F_Inputs!VLN7","v":0},{"$f":"F_Inputs!VLO7","v":0},{"$f":"F_Inputs!VLP7","v":0},{"$f":"F_Inputs!VLQ7","v":0},{"$f":"F_Inputs!VLR7","v":0},{"$f":"F_Inputs!VLS7","v":0},{"$f":"F_Inputs!VLT7","v":0},{"$f":"F_Inputs!VLU7","v":0},{"$f":"F_Inputs!VLV7","v":0},{"$f":"F_Inputs!VLW7","v":0},{"$f":"F_Inputs!VLX7","v":0},{"$f":"F_Inputs!VLY7","v":0},{"$f":"F_Inputs!VLZ7","v":0},{"$f":"F_Inputs!VMA7","v":0},{"$f":"F_Inputs!VMB7","v":0},{"$f":"F_Inputs!VMC7","v":0},{"$f":"F_Inputs!VMD7","v":0},{"$f":"F_Inputs!VME7","v":0},{"$f":"F_Inputs!VMF7","v":0},{"$f":"F_Inputs!VMG7","v":0},{"$f":"F_Inputs!VMH7","v":0},{"$f":"F_Inputs!VMI7","v":0},{"$f":"F_Inputs!VMJ7","v":0},{"$f":"F_Inputs!VMK7","v":0},{"$f":"F_Inputs!VML7","v":0},{"$f":"F_Inputs!VMM7","v":0},{"$f":"F_Inputs!VMN7","v":0},{"$f":"F_Inputs!VMO7","v":0},{"$f":"F_Inputs!VMP7","v":0},{"$f":"F_Inputs!VMQ7","v":0},{"$f":"F_Inputs!VMR7","v":0},{"$f":"F_Inputs!VMS7","v":0},{"$f":"F_Inputs!VMT7","v":0},{"$f":"F_Inputs!VMU7","v":0},{"$f":"F_Inputs!VMV7","v":0},{"$f":"F_Inputs!VMW7","v":0},{"$f":"F_Inputs!VMX7","v":0},{"$f":"F_Inputs!VMY7","v":0},{"$f":"F_Inputs!VMZ7","v":0},{"$f":"F_Inputs!VNA7","v":0},{"$f":"F_Inputs!VNB7","v":0},{"$f":"F_Inputs!VNC7","v":0},{"$f":"F_Inputs!VND7","v":0},{"$f":"F_Inputs!VNE7","v":0},{"$f":"F_Inputs!VNF7","v":0},{"$f":"F_Inputs!VNG7","v":0},{"$f":"F_Inputs!VNH7","v":0},{"$f":"F_Inputs!VNI7","v":0},{"$f":"F_Inputs!VNJ7","v":0},{"$f":"F_Inputs!VNK7","v":0},{"$f":"F_Inputs!VNL7","v":0},{"$f":"F_Inputs!VNM7","v":0},{"$f":"F_Inputs!VNN7","v":0},{"$f":"F_Inputs!VNO7","v":0},{"$f":"F_Inputs!VNP7","v":0},{"$f":"F_Inputs!VNQ7","v":0},{"$f":"F_Inputs!VNR7","v":0},{"$f":"F_Inputs!VNS7","v":0},{"$f":"F_Inputs!VNT7","v":0},{"$f":"F_Inputs!VNU7","v":0},{"$f":"F_Inputs!VNV7","v":0},{"$f":"F_Inputs!VNW7","v":0},{"$f":"F_Inputs!VNX7","v":0},{"$f":"F_Inputs!VNY7","v":0},{"$f":"F_Inputs!VNZ7","v":0},{"$f":"F_Inputs!VOA7","v":0},{"$f":"F_Inputs!VOB7","v":0},{"$f":"F_Inputs!VOC7","v":0},{"$f":"F_Inputs!VOD7","v":0},{"$f":"F_Inputs!VOE7","v":0},{"$f":"F_Inputs!VOF7","v":0},{"$f":"F_Inputs!VOG7","v":0},{"$f":"F_Inputs!VOH7","v":0},{"$f":"F_Inputs!VOI7","v":0},{"$f":"F_Inputs!VOJ7","v":0},{"$f":"F_Inputs!VOK7","v":0},{"$f":"F_Inputs!VOL7","v":0},{"$f":"F_Inputs!VOM7","v":0},{"$f":"F_Inputs!VON7","v":0},{"$f":"F_Inputs!VOO7","v":0},{"$f":"F_Inputs!VOP7","v":0},{"$f":"F_Inputs!VOQ7","v":0},{"$f":"F_Inputs!VOR7","v":0},{"$f":"F_Inputs!VOS7","v":0},{"$f":"F_Inputs!VOT7","v":0},{"$f":"F_Inputs!VOU7","v":0},{"$f":"F_Inputs!VOV7","v":0},{"$f":"F_Inputs!VOW7","v":0},{"$f":"F_Inputs!VOX7","v":0},{"$f":"F_Inputs!VOY7","v":0},{"$f":"F_Inputs!VOZ7","v":0},{"$f":"F_Inputs!VPA7","v":0},{"$f":"F_Inputs!VPB7","v":0},{"$f":"F_Inputs!VPC7","v":0},{"$f":"F_Inputs!VPD7","v":0},{"$f":"F_Inputs!VPE7","v":0},{"$f":"F_Inputs!VPF7","v":0},{"$f":"F_Inputs!VPG7","v":0},{"$f":"F_Inputs!VPH7","v":0},{"$f":"F_Inputs!VPI7","v":0},{"$f":"F_Inputs!VPJ7","v":0},{"$f":"F_Inputs!VPK7","v":0},{"$f":"F_Inputs!VPL7","v":0},{"$f":"F_Inputs!VPM7","v":0},{"$f":"F_Inputs!VPN7","v":0},{"$f":"F_Inputs!VPO7","v":0},{"$f":"F_Inputs!VPP7","v":0},{"$f":"F_Inputs!VPQ7","v":0},{"$f":"F_Inputs!VPR7","v":0},{"$f":"F_Inputs!VPS7","v":0},{"$f":"F_Inputs!VPT7","v":0},{"$f":"F_Inputs!VPU7","v":0},{"$f":"F_Inputs!VPV7","v":0},{"$f":"F_Inputs!VPW7","v":0},{"$f":"F_Inputs!VPX7","v":0},{"$f":"F_Inputs!VPY7","v":0},{"$f":"F_Inputs!VPZ7","v":0},{"$f":"F_Inputs!VQA7","v":0},{"$f":"F_Inputs!VQB7","v":0},{"$f":"F_Inputs!VQC7","v":0},{"$f":"F_Inputs!VQD7","v":0},{"$f":"F_Inputs!VQE7","v":0},{"$f":"F_Inputs!VQF7","v":0},{"$f":"F_Inputs!VQG7","v":0},{"$f":"F_Inputs!VQH7","v":0},{"$f":"F_Inputs!VQI7","v":0},{"$f":"F_Inputs!VQJ7","v":0},{"$f":"F_Inputs!VQK7","v":0},{"$f":"F_Inputs!VQL7","v":0},{"$f":"F_Inputs!VQM7","v":0},{"$f":"F_Inputs!VQN7","v":0},{"$f":"F_Inputs!VQO7","v":0},{"$f":"F_Inputs!VQP7","v":0},{"$f":"F_Inputs!VQQ7","v":0},{"$f":"F_Inputs!VQR7","v":0},{"$f":"F_Inputs!VQS7","v":0},{"$f":"F_Inputs!VQT7","v":0},{"$f":"F_Inputs!VQU7","v":0},{"$f":"F_Inputs!VQV7","v":0},{"$f":"F_Inputs!VQW7","v":0},{"$f":"F_Inputs!VQX7","v":0},{"$f":"F_Inputs!VQY7","v":0},{"$f":"F_Inputs!VQZ7","v":0},{"$f":"F_Inputs!VRA7","v":0},{"$f":"F_Inputs!VRB7","v":0},{"$f":"F_Inputs!VRC7","v":0},{"$f":"F_Inputs!VRD7","v":0},{"$f":"F_Inputs!VRE7","v":0},{"$f":"F_Inputs!VRF7","v":0},{"$f":"F_Inputs!VRG7","v":0},{"$f":"F_Inputs!VRH7","v":0},{"$f":"F_Inputs!VRI7","v":0},{"$f":"F_Inputs!VRJ7","v":0},{"$f":"F_Inputs!VRK7","v":0},{"$f":"F_Inputs!VRL7","v":0},{"$f":"F_Inputs!VRM7","v":0},{"$f":"F_Inputs!VRN7","v":0},{"$f":"F_Inputs!VRO7","v":0},{"$f":"F_Inputs!VRP7","v":0},{"$f":"F_Inputs!VRQ7","v":0},{"$f":"F_Inputs!VRR7","v":0},{"$f":"F_Inputs!VRS7","v":0},{"$f":"F_Inputs!VRT7","v":0},{"$f":"F_Inputs!VRU7","v":0},{"$f":"F_Inputs!VRV7","v":0},{"$f":"F_Inputs!VRW7","v":0},{"$f":"F_Inputs!VRX7","v":0},{"$f":"F_Inputs!VRY7","v":0},{"$f":"F_Inputs!VRZ7","v":0},{"$f":"F_Inputs!VSA7","v":0},{"$f":"F_Inputs!VSB7","v":0},{"$f":"F_Inputs!VSC7","v":0},{"$f":"F_Inputs!VSD7","v":0},{"$f":"F_Inputs!VSE7","v":0},{"$f":"F_Inputs!VSF7","v":0},{"$f":"F_Inputs!VSG7","v":0},{"$f":"F_Inputs!VSH7","v":0},{"$f":"F_Inputs!VSI7","v":0},{"$f":"F_Inputs!VSJ7","v":0},{"$f":"F_Inputs!VSK7","v":0},{"$f":"F_Inputs!VSL7","v":0},{"$f":"F_Inputs!VSM7","v":0},{"$f":"F_Inputs!VSN7","v":0},{"$f":"F_Inputs!VSO7","v":0},{"$f":"F_Inputs!VSP7","v":0},{"$f":"F_Inputs!VSQ7","v":0},{"$f":"F_Inputs!VSR7","v":0},{"$f":"F_Inputs!VSS7","v":0},{"$f":"F_Inputs!VST7","v":0},{"$f":"F_Inputs!VSU7","v":0},{"$f":"F_Inputs!VSV7","v":0},{"$f":"F_Inputs!VSW7","v":0},{"$f":"F_Inputs!VSX7","v":0},{"$f":"F_Inputs!VSY7","v":0},{"$f":"F_Inputs!VSZ7","v":0},{"$f":"F_Inputs!VTA7","v":0},{"$f":"F_Inputs!VTB7","v":0},{"$f":"F_Inputs!VTC7","v":0},{"$f":"F_Inputs!VTD7","v":0},{"$f":"F_Inputs!VTE7","v":0},{"$f":"F_Inputs!VTF7","v":0},{"$f":"F_Inputs!VTG7","v":0},{"$f":"F_Inputs!VTH7","v":0},{"$f":"F_Inputs!VTI7","v":0},{"$f":"F_Inputs!VTJ7","v":0},{"$f":"F_Inputs!VTK7","v":0},{"$f":"F_Inputs!VTL7","v":0},{"$f":"F_Inputs!VTM7","v":0},{"$f":"F_Inputs!VTN7","v":0},{"$f":"F_Inputs!VTO7","v":0},{"$f":"F_Inputs!VTP7","v":0},{"$f":"F_Inputs!VTQ7","v":0},{"$f":"F_Inputs!VTR7","v":0},{"$f":"F_Inputs!VTS7","v":0},{"$f":"F_Inputs!VTT7","v":0},{"$f":"F_Inputs!VTU7","v":0},{"$f":"F_Inputs!VTV7","v":0},{"$f":"F_Inputs!VTW7","v":0},{"$f":"F_Inputs!VTX7","v":0},{"$f":"F_Inputs!VTY7","v":0},{"$f":"F_Inputs!VTZ7","v":0},{"$f":"F_Inputs!VUA7","v":0},{"$f":"F_Inputs!VUB7","v":0},{"$f":"F_Inputs!VUC7","v":0},{"$f":"F_Inputs!VUD7","v":0},{"$f":"F_Inputs!VUE7","v":0},{"$f":"F_Inputs!VUF7","v":0},{"$f":"F_Inputs!VUG7","v":0},{"$f":"F_Inputs!VUH7","v":0},{"$f":"F_Inputs!VUI7","v":0},{"$f":"F_Inputs!VUJ7","v":0},{"$f":"F_Inputs!VUK7","v":0},{"$f":"F_Inputs!VUL7","v":0},{"$f":"F_Inputs!VUM7","v":0},{"$f":"F_Inputs!VUN7","v":0},{"$f":"F_Inputs!VUO7","v":0},{"$f":"F_Inputs!VUP7","v":0},{"$f":"F_Inputs!VUQ7","v":0},{"$f":"F_Inputs!VUR7","v":0},{"$f":"F_Inputs!VUS7","v":0},{"$f":"F_Inputs!VUT7","v":0},{"$f":"F_Inputs!VUU7","v":0},{"$f":"F_Inputs!VUV7","v":0},{"$f":"F_Inputs!VUW7","v":0},{"$f":"F_Inputs!VUX7","v":0},{"$f":"F_Inputs!VUY7","v":0},{"$f":"F_Inputs!VUZ7","v":0},{"$f":"F_Inputs!VVA7","v":0},{"$f":"F_Inputs!VVB7","v":0},{"$f":"F_Inputs!VVC7","v":0},{"$f":"F_Inputs!VVD7","v":0},{"$f":"F_Inputs!VVE7","v":0},{"$f":"F_Inputs!VVF7","v":0},{"$f":"F_Inputs!VVG7","v":0},{"$f":"F_Inputs!VVH7","v":0},{"$f":"F_Inputs!VVI7","v":0},{"$f":"F_Inputs!VVJ7","v":0},{"$f":"F_Inputs!VVK7","v":0},{"$f":"F_Inputs!VVL7","v":0},{"$f":"F_Inputs!VVM7","v":0},{"$f":"F_Inputs!VVN7","v":0},{"$f":"F_Inputs!VVO7","v":0},{"$f":"F_Inputs!VVP7","v":0},{"$f":"F_Inputs!VVQ7","v":0},{"$f":"F_Inputs!VVR7","v":0},{"$f":"F_Inputs!VVS7","v":0},{"$f":"F_Inputs!VVT7","v":0},{"$f":"F_Inputs!VVU7","v":0},{"$f":"F_Inputs!VVV7","v":0},{"$f":"F_Inputs!VVW7","v":0},{"$f":"F_Inputs!VVX7","v":0},{"$f":"F_Inputs!VVY7","v":0},{"$f":"F_Inputs!VVZ7","v":0},{"$f":"F_Inputs!VWA7","v":0},{"$f":"F_Inputs!VWB7","v":0},{"$f":"F_Inputs!VWC7","v":0},{"$f":"F_Inputs!VWD7","v":0},{"$f":"F_Inputs!VWE7","v":0},{"$f":"F_Inputs!VWF7","v":0},{"$f":"F_Inputs!VWG7","v":0},{"$f":"F_Inputs!VWH7","v":0},{"$f":"F_Inputs!VWI7","v":0},{"$f":"F_Inputs!VWJ7","v":0},{"$f":"F_Inputs!VWK7","v":0},{"$f":"F_Inputs!VWL7","v":0},{"$f":"F_Inputs!VWM7","v":0},{"$f":"F_Inputs!VWN7","v":0},{"$f":"F_Inputs!VWO7","v":0},{"$f":"F_Inputs!VWP7","v":0},{"$f":"F_Inputs!VWQ7","v":0},{"$f":"F_Inputs!VWR7","v":0},{"$f":"F_Inputs!VWS7","v":0},{"$f":"F_Inputs!VWT7","v":0},{"$f":"F_Inputs!VWU7","v":0},{"$f":"F_Inputs!VWV7","v":0},{"$f":"F_Inputs!VWW7","v":0},{"$f":"F_Inputs!VWX7","v":0},{"$f":"F_Inputs!VWY7","v":0},{"$f":"F_Inputs!VWZ7","v":0},{"$f":"F_Inputs!VXA7","v":0},{"$f":"F_Inputs!VXB7","v":0},{"$f":"F_Inputs!VXC7","v":0},{"$f":"F_Inputs!VXD7","v":0},{"$f":"F_Inputs!VXE7","v":0},{"$f":"F_Inputs!VXF7","v":0},{"$f":"F_Inputs!VXG7","v":0},{"$f":"F_Inputs!VXH7","v":0},{"$f":"F_Inputs!VXI7","v":0},{"$f":"F_Inputs!VXJ7","v":0},{"$f":"F_Inputs!VXK7","v":0},{"$f":"F_Inputs!VXL7","v":0},{"$f":"F_Inputs!VXM7","v":0},{"$f":"F_Inputs!VXN7","v":0},{"$f":"F_Inputs!VXO7","v":0},{"$f":"F_Inputs!VXP7","v":0},{"$f":"F_Inputs!VXQ7","v":0},{"$f":"F_Inputs!VXR7","v":0},{"$f":"F_Inputs!VXS7","v":0},{"$f":"F_Inputs!VXT7","v":0},{"$f":"F_Inputs!VXU7","v":0},{"$f":"F_Inputs!VXV7","v":0},{"$f":"F_Inputs!VXW7","v":0},{"$f":"F_Inputs!VXX7","v":0},{"$f":"F_Inputs!VXY7","v":0},{"$f":"F_Inputs!VXZ7","v":0},{"$f":"F_Inputs!VYA7","v":0},{"$f":"F_Inputs!VYB7","v":0},{"$f":"F_Inputs!VYC7","v":0},{"$f":"F_Inputs!VYD7","v":0},{"$f":"F_Inputs!VYE7","v":0},{"$f":"F_Inputs!VYF7","v":0},{"$f":"F_Inputs!VYG7","v":0},{"$f":"F_Inputs!VYH7","v":0},{"$f":"F_Inputs!VYI7","v":0},{"$f":"F_Inputs!VYJ7","v":0},{"$f":"F_Inputs!VYK7","v":0},{"$f":"F_Inputs!VYL7","v":0},{"$f":"F_Inputs!VYM7","v":0},{"$f":"F_Inputs!VYN7","v":0},{"$f":"F_Inputs!VYO7","v":0},{"$f":"F_Inputs!VYP7","v":0},{"$f":"F_Inputs!VYQ7","v":0},{"$f":"F_Inputs!VYR7","v":0},{"$f":"F_Inputs!VYS7","v":0},{"$f":"F_Inputs!VYT7","v":0},{"$f":"F_Inputs!VYU7","v":0},{"$f":"F_Inputs!VYV7","v":0},{"$f":"F_Inputs!VYW7","v":0},{"$f":"F_Inputs!VYX7","v":0},{"$f":"F_Inputs!VYY7","v":0},{"$f":"F_Inputs!VYZ7","v":0},{"$f":"F_Inputs!VZA7","v":0},{"$f":"F_Inputs!VZB7","v":0},{"$f":"F_Inputs!VZC7","v":0},{"$f":"F_Inputs!VZD7","v":0},{"$f":"F_Inputs!VZE7","v":0},{"$f":"F_Inputs!VZF7","v":0},{"$f":"F_Inputs!VZG7","v":0},{"$f":"F_Inputs!VZH7","v":0},{"$f":"F_Inputs!VZI7","v":0},{"$f":"F_Inputs!VZJ7","v":0},{"$f":"F_Inputs!VZK7","v":0},{"$f":"F_Inputs!VZL7","v":0},{"$f":"F_Inputs!VZM7","v":0},{"$f":"F_Inputs!VZN7","v":0},{"$f":"F_Inputs!VZO7","v":0},{"$f":"F_Inputs!VZP7","v":0},{"$f":"F_Inputs!VZQ7","v":0},{"$f":"F_Inputs!VZR7","v":0},{"$f":"F_Inputs!VZS7","v":0},{"$f":"F_Inputs!VZT7","v":0},{"$f":"F_Inputs!VZU7","v":0},{"$f":"F_Inputs!VZV7","v":0},{"$f":"F_Inputs!VZW7","v":0},{"$f":"F_Inputs!VZX7","v":0},{"$f":"F_Inputs!VZY7","v":0},{"$f":"F_Inputs!VZZ7","v":0},{"$f":"F_Inputs!WAA7","v":0},{"$f":"F_Inputs!WAB7","v":0},{"$f":"F_Inputs!WAC7","v":0},{"$f":"F_Inputs!WAD7","v":0},{"$f":"F_Inputs!WAE7","v":0},{"$f":"F_Inputs!WAF7","v":0},{"$f":"F_Inputs!WAG7","v":0},{"$f":"F_Inputs!WAH7","v":0},{"$f":"F_Inputs!WAI7","v":0},{"$f":"F_Inputs!WAJ7","v":0},{"$f":"F_Inputs!WAK7","v":0},{"$f":"F_Inputs!WAL7","v":0},{"$f":"F_Inputs!WAM7","v":0},{"$f":"F_Inputs!WAN7","v":0},{"$f":"F_Inputs!WAO7","v":0},{"$f":"F_Inputs!WAP7","v":0},{"$f":"F_Inputs!WAQ7","v":0},{"$f":"F_Inputs!WAR7","v":0},{"$f":"F_Inputs!WAS7","v":0},{"$f":"F_Inputs!WAT7","v":0},{"$f":"F_Inputs!WAU7","v":0},{"$f":"F_Inputs!WAV7","v":0},{"$f":"F_Inputs!WAW7","v":0},{"$f":"F_Inputs!WAX7","v":0},{"$f":"F_Inputs!WAY7","v":0},{"$f":"F_Inputs!WAZ7","v":0},{"$f":"F_Inputs!WBA7","v":0},{"$f":"F_Inputs!WBB7","v":0},{"$f":"F_Inputs!WBC7","v":0},{"$f":"F_Inputs!WBD7","v":0},{"$f":"F_Inputs!WBE7","v":0},{"$f":"F_Inputs!WBF7","v":0},{"$f":"F_Inputs!WBG7","v":0},{"$f":"F_Inputs!WBH7","v":0},{"$f":"F_Inputs!WBI7","v":0},{"$f":"F_Inputs!WBJ7","v":0},{"$f":"F_Inputs!WBK7","v":0},{"$f":"F_Inputs!WBL7","v":0},{"$f":"F_Inputs!WBM7","v":0},{"$f":"F_Inputs!WBN7","v":0},{"$f":"F_Inputs!WBO7","v":0},{"$f":"F_Inputs!WBP7","v":0},{"$f":"F_Inputs!WBQ7","v":0},{"$f":"F_Inputs!WBR7","v":0},{"$f":"F_Inputs!WBS7","v":0},{"$f":"F_Inputs!WBT7","v":0},{"$f":"F_Inputs!WBU7","v":0},{"$f":"F_Inputs!WBV7","v":0},{"$f":"F_Inputs!WBW7","v":0},{"$f":"F_Inputs!WBX7","v":0},{"$f":"F_Inputs!WBY7","v":0},{"$f":"F_Inputs!WBZ7","v":0},{"$f":"F_Inputs!WCA7","v":0},{"$f":"F_Inputs!WCB7","v":0},{"$f":"F_Inputs!WCC7","v":0},{"$f":"F_Inputs!WCD7","v":0},{"$f":"F_Inputs!WCE7","v":0},{"$f":"F_Inputs!WCF7","v":0},{"$f":"F_Inputs!WCG7","v":0},{"$f":"F_Inputs!WCH7","v":0},{"$f":"F_Inputs!WCI7","v":0},{"$f":"F_Inputs!WCJ7","v":0},{"$f":"F_Inputs!WCK7","v":0},{"$f":"F_Inputs!WCL7","v":0},{"$f":"F_Inputs!WCM7","v":0},{"$f":"F_Inputs!WCN7","v":0},{"$f":"F_Inputs!WCO7","v":0},{"$f":"F_Inputs!WCP7","v":0},{"$f":"F_Inputs!WCQ7","v":0},{"$f":"F_Inputs!WCR7","v":0},{"$f":"F_Inputs!WCS7","v":0},{"$f":"F_Inputs!WCT7","v":0},{"$f":"F_Inputs!WCU7","v":0},{"$f":"F_Inputs!WCV7","v":0},{"$f":"F_Inputs!WCW7","v":0},{"$f":"F_Inputs!WCX7","v":0},{"$f":"F_Inputs!WCY7","v":0},{"$f":"F_Inputs!WCZ7","v":0},{"$f":"F_Inputs!WDA7","v":0},{"$f":"F_Inputs!WDB7","v":0},{"$f":"F_Inputs!WDC7","v":0},{"$f":"F_Inputs!WDD7","v":0},{"$f":"F_Inputs!WDE7","v":0},{"$f":"F_Inputs!WDF7","v":0},{"$f":"F_Inputs!WDG7","v":0},{"$f":"F_Inputs!WDH7","v":0},{"$f":"F_Inputs!WDI7","v":0},{"$f":"F_Inputs!WDJ7","v":0},{"$f":"F_Inputs!WDK7","v":0},{"$f":"F_Inputs!WDL7","v":0},{"$f":"F_Inputs!WDM7","v":0},{"$f":"F_Inputs!WDN7","v":0},{"$f":"F_Inputs!WDO7","v":0},{"$f":"F_Inputs!WDP7","v":0},{"$f":"F_Inputs!WDQ7","v":0},{"$f":"F_Inputs!WDR7","v":0},{"$f":"F_Inputs!WDS7","v":0},{"$f":"F_Inputs!WDT7","v":0},{"$f":"F_Inputs!WDU7","v":0},{"$f":"F_Inputs!WDV7","v":0},{"$f":"F_Inputs!WDW7","v":0},{"$f":"F_Inputs!WDX7","v":0},{"$f":"F_Inputs!WDY7","v":0},{"$f":"F_Inputs!WDZ7","v":0},{"$f":"F_Inputs!WEA7","v":0},{"$f":"F_Inputs!WEB7","v":0},{"$f":"F_Inputs!WEC7","v":0},{"$f":"F_Inputs!WED7","v":0},{"$f":"F_Inputs!WEE7","v":0},{"$f":"F_Inputs!WEF7","v":0},{"$f":"F_Inputs!WEG7","v":0},{"$f":"F_Inputs!WEH7","v":0},{"$f":"F_Inputs!WEI7","v":0},{"$f":"F_Inputs!WEJ7","v":0},{"$f":"F_Inputs!WEK7","v":0},{"$f":"F_Inputs!WEL7","v":0},{"$f":"F_Inputs!WEM7","v":0},{"$f":"F_Inputs!WEN7","v":0},{"$f":"F_Inputs!WEO7","v":0},{"$f":"F_Inputs!WEP7","v":0},{"$f":"F_Inputs!WEQ7","v":0},{"$f":"F_Inputs!WER7","v":0},{"$f":"F_Inputs!WES7","v":0},{"$f":"F_Inputs!WET7","v":0},{"$f":"F_Inputs!WEU7","v":0},{"$f":"F_Inputs!WEV7","v":0},{"$f":"F_Inputs!WEW7","v":0},{"$f":"F_Inputs!WEX7","v":0},{"$f":"F_Inputs!WEY7","v":0},{"$f":"F_Inputs!WEZ7","v":0},{"$f":"F_Inputs!WFA7","v":0},{"$f":"F_Inputs!WFB7","v":0},{"$f":"F_Inputs!WFC7","v":0},{"$f":"F_Inputs!WFD7","v":0},{"$f":"F_Inputs!WFE7","v":0},{"$f":"F_Inputs!WFF7","v":0},{"$f":"F_Inputs!WFG7","v":0},{"$f":"F_Inputs!WFH7","v":0},{"$f":"F_Inputs!WFI7","v":0},{"$f":"F_Inputs!WFJ7","v":0},{"$f":"F_Inputs!WFK7","v":0},{"$f":"F_Inputs!WFL7","v":0},{"$f":"F_Inputs!WFM7","v":0},{"$f":"F_Inputs!WFN7","v":0},{"$f":"F_Inputs!WFO7","v":0},{"$f":"F_Inputs!WFP7","v":0},{"$f":"F_Inputs!WFQ7","v":0},{"$f":"F_Inputs!WFR7","v":0},{"$f":"F_Inputs!WFS7","v":0},{"$f":"F_Inputs!WFT7","v":0},{"$f":"F_Inputs!WFU7","v":0},{"$f":"F_Inputs!WFV7","v":0},{"$f":"F_Inputs!WFW7","v":0},{"$f":"F_Inputs!WFX7","v":0},{"$f":"F_Inputs!WFY7","v":0},{"$f":"F_Inputs!WFZ7","v":0},{"$f":"F_Inputs!WGA7","v":0},{"$f":"F_Inputs!WGB7","v":0},{"$f":"F_Inputs!WGC7","v":0},{"$f":"F_Inputs!WGD7","v":0},{"$f":"F_Inputs!WGE7","v":0},{"$f":"F_Inputs!WGF7","v":0},{"$f":"F_Inputs!WGG7","v":0},{"$f":"F_Inputs!WGH7","v":0},{"$f":"F_Inputs!WGI7","v":0},{"$f":"F_Inputs!WGJ7","v":0},{"$f":"F_Inputs!WGK7","v":0},{"$f":"F_Inputs!WGL7","v":0},{"$f":"F_Inputs!WGM7","v":0},{"$f":"F_Inputs!WGN7","v":0},{"$f":"F_Inputs!WGO7","v":0},{"$f":"F_Inputs!WGP7","v":0},{"$f":"F_Inputs!WGQ7","v":0},{"$f":"F_Inputs!WGR7","v":0},{"$f":"F_Inputs!WGS7","v":0},{"$f":"F_Inputs!WGT7","v":0},{"$f":"F_Inputs!WGU7","v":0},{"$f":"F_Inputs!WGV7","v":0},{"$f":"F_Inputs!WGW7","v":0},{"$f":"F_Inputs!WGX7","v":0},{"$f":"F_Inputs!WGY7","v":0},{"$f":"F_Inputs!WGZ7","v":0},{"$f":"F_Inputs!WHA7","v":0},{"$f":"F_Inputs!WHB7","v":0},{"$f":"F_Inputs!WHC7","v":0},{"$f":"F_Inputs!WHD7","v":0},{"$f":"F_Inputs!WHE7","v":0},{"$f":"F_Inputs!WHF7","v":0},{"$f":"F_Inputs!WHG7","v":0},{"$f":"F_Inputs!WHH7","v":0},{"$f":"F_Inputs!WHI7","v":0},{"$f":"F_Inputs!WHJ7","v":0},{"$f":"F_Inputs!WHK7","v":0},{"$f":"F_Inputs!WHL7","v":0},{"$f":"F_Inputs!WHM7","v":0},{"$f":"F_Inputs!WHN7","v":0},{"$f":"F_Inputs!WHO7","v":0},{"$f":"F_Inputs!WHP7","v":0},{"$f":"F_Inputs!WHQ7","v":0},{"$f":"F_Inputs!WHR7","v":0},{"$f":"F_Inputs!WHS7","v":0},{"$f":"F_Inputs!WHT7","v":0},{"$f":"F_Inputs!WHU7","v":0},{"$f":"F_Inputs!WHV7","v":0},{"$f":"F_Inputs!WHW7","v":0},{"$f":"F_Inputs!WHX7","v":0},{"$f":"F_Inputs!WHY7","v":0},{"$f":"F_Inputs!WHZ7","v":0},{"$f":"F_Inputs!WIA7","v":0},{"$f":"F_Inputs!WIB7","v":0},{"$f":"F_Inputs!WIC7","v":0},{"$f":"F_Inputs!WID7","v":0},{"$f":"F_Inputs!WIE7","v":0},{"$f":"F_Inputs!WIF7","v":0},{"$f":"F_Inputs!WIG7","v":0},{"$f":"F_Inputs!WIH7","v":0},{"$f":"F_Inputs!WII7","v":0},{"$f":"F_Inputs!WIJ7","v":0},{"$f":"F_Inputs!WIK7","v":0},{"$f":"F_Inputs!WIL7","v":0},{"$f":"F_Inputs!WIM7","v":0},{"$f":"F_Inputs!WIN7","v":0},{"$f":"F_Inputs!WIO7","v":0},{"$f":"F_Inputs!WIP7","v":0},{"$f":"F_Inputs!WIQ7","v":0},{"$f":"F_Inputs!WIR7","v":0},{"$f":"F_Inputs!WIS7","v":0},{"$f":"F_Inputs!WIT7","v":0},{"$f":"F_Inputs!WIU7","v":0},{"$f":"F_Inputs!WIV7","v":0},{"$f":"F_Inputs!WIW7","v":0},{"$f":"F_Inputs!WIX7","v":0},{"$f":"F_Inputs!WIY7","v":0},{"$f":"F_Inputs!WIZ7","v":0},{"$f":"F_Inputs!WJA7","v":0},{"$f":"F_Inputs!WJB7","v":0},{"$f":"F_Inputs!WJC7","v":0},{"$f":"F_Inputs!WJD7","v":0},{"$f":"F_Inputs!WJE7","v":0},{"$f":"F_Inputs!WJF7","v":0},{"$f":"F_Inputs!WJG7","v":0},{"$f":"F_Inputs!WJH7","v":0},{"$f":"F_Inputs!WJI7","v":0},{"$f":"F_Inputs!WJJ7","v":0},{"$f":"F_Inputs!WJK7","v":0},{"$f":"F_Inputs!WJL7","v":0},{"$f":"F_Inputs!WJM7","v":0},{"$f":"F_Inputs!WJN7","v":0},{"$f":"F_Inputs!WJO7","v":0},{"$f":"F_Inputs!WJP7","v":0},{"$f":"F_Inputs!WJQ7","v":0},{"$f":"F_Inputs!WJR7","v":0},{"$f":"F_Inputs!WJS7","v":0},{"$f":"F_Inputs!WJT7","v":0},{"$f":"F_Inputs!WJU7","v":0},{"$f":"F_Inputs!WJV7","v":0},{"$f":"F_Inputs!WJW7","v":0},{"$f":"F_Inputs!WJX7","v":0},{"$f":"F_Inputs!WJY7","v":0},{"$f":"F_Inputs!WJZ7","v":0},{"$f":"F_Inputs!WKA7","v":0},{"$f":"F_Inputs!WKB7","v":0},{"$f":"F_Inputs!WKC7","v":0},{"$f":"F_Inputs!WKD7","v":0},{"$f":"F_Inputs!WKE7","v":0},{"$f":"F_Inputs!WKF7","v":0},{"$f":"F_Inputs!WKG7","v":0},{"$f":"F_Inputs!WKH7","v":0},{"$f":"F_Inputs!WKI7","v":0},{"$f":"F_Inputs!WKJ7","v":0},{"$f":"F_Inputs!WKK7","v":0},{"$f":"F_Inputs!WKL7","v":0},{"$f":"F_Inputs!WKM7","v":0},{"$f":"F_Inputs!WKN7","v":0},{"$f":"F_Inputs!WKO7","v":0},{"$f":"F_Inputs!WKP7","v":0},{"$f":"F_Inputs!WKQ7","v":0},{"$f":"F_Inputs!WKR7","v":0},{"$f":"F_Inputs!WKS7","v":0},{"$f":"F_Inputs!WKT7","v":0},{"$f":"F_Inputs!WKU7","v":0},{"$f":"F_Inputs!WKV7","v":0},{"$f":"F_Inputs!WKW7","v":0},{"$f":"F_Inputs!WKX7","v":0},{"$f":"F_Inputs!WKY7","v":0},{"$f":"F_Inputs!WKZ7","v":0},{"$f":"F_Inputs!WLA7","v":0},{"$f":"F_Inputs!WLB7","v":0},{"$f":"F_Inputs!WLC7","v":0},{"$f":"F_Inputs!WLD7","v":0},{"$f":"F_Inputs!WLE7","v":0},{"$f":"F_Inputs!WLF7","v":0},{"$f":"F_Inputs!WLG7","v":0},{"$f":"F_Inputs!WLH7","v":0},{"$f":"F_Inputs!WLI7","v":0},{"$f":"F_Inputs!WLJ7","v":0},{"$f":"F_Inputs!WLK7","v":0},{"$f":"F_Inputs!WLL7","v":0},{"$f":"F_Inputs!WLM7","v":0},{"$f":"F_Inputs!WLN7","v":0},{"$f":"F_Inputs!WLO7","v":0},{"$f":"F_Inputs!WLP7","v":0},{"$f":"F_Inputs!WLQ7","v":0},{"$f":"F_Inputs!WLR7","v":0},{"$f":"F_Inputs!WLS7","v":0},{"$f":"F_Inputs!WLT7","v":0},{"$f":"F_Inputs!WLU7","v":0},{"$f":"F_Inputs!WLV7","v":0},{"$f":"F_Inputs!WLW7","v":0},{"$f":"F_Inputs!WLX7","v":0},{"$f":"F_Inputs!WLY7","v":0},{"$f":"F_Inputs!WLZ7","v":0},{"$f":"F_Inputs!WMA7","v":0},{"$f":"F_Inputs!WMB7","v":0},{"$f":"F_Inputs!WMC7","v":0},{"$f":"F_Inputs!WMD7","v":0},{"$f":"F_Inputs!WME7","v":0},{"$f":"F_Inputs!WMF7","v":0},{"$f":"F_Inputs!WMG7","v":0},{"$f":"F_Inputs!WMH7","v":0},{"$f":"F_Inputs!WMI7","v":0},{"$f":"F_Inputs!WMJ7","v":0},{"$f":"F_Inputs!WMK7","v":0},{"$f":"F_Inputs!WML7","v":0},{"$f":"F_Inputs!WMM7","v":0},{"$f":"F_Inputs!WMN7","v":0},{"$f":"F_Inputs!WMO7","v":0},{"$f":"F_Inputs!WMP7","v":0},{"$f":"F_Inputs!WMQ7","v":0},{"$f":"F_Inputs!WMR7","v":0},{"$f":"F_Inputs!WMS7","v":0},{"$f":"F_Inputs!WMT7","v":0},{"$f":"F_Inputs!WMU7","v":0},{"$f":"F_Inputs!WMV7","v":0},{"$f":"F_Inputs!WMW7","v":0},{"$f":"F_Inputs!WMX7","v":0},{"$f":"F_Inputs!WMY7","v":0},{"$f":"F_Inputs!WMZ7","v":0},{"$f":"F_Inputs!WNA7","v":0},{"$f":"F_Inputs!WNB7","v":0},{"$f":"F_Inputs!WNC7","v":0},{"$f":"F_Inputs!WND7","v":0},{"$f":"F_Inputs!WNE7","v":0},{"$f":"F_Inputs!WNF7","v":0},{"$f":"F_Inputs!WNG7","v":0},{"$f":"F_Inputs!WNH7","v":0},{"$f":"F_Inputs!WNI7","v":0},{"$f":"F_Inputs!WNJ7","v":0},{"$f":"F_Inputs!WNK7","v":0},{"$f":"F_Inputs!WNL7","v":0},{"$f":"F_Inputs!WNM7","v":0},{"$f":"F_Inputs!WNN7","v":0},{"$f":"F_Inputs!WNO7","v":0},{"$f":"F_Inputs!WNP7","v":0},{"$f":"F_Inputs!WNQ7","v":0},{"$f":"F_Inputs!WNR7","v":0},{"$f":"F_Inputs!WNS7","v":0},{"$f":"F_Inputs!WNT7","v":0},{"$f":"F_Inputs!WNU7","v":0},{"$f":"F_Inputs!WNV7","v":0},{"$f":"F_Inputs!WNW7","v":0},{"$f":"F_Inputs!WNX7","v":0},{"$f":"F_Inputs!WNY7","v":0},{"$f":"F_Inputs!WNZ7","v":0},{"$f":"F_Inputs!WOA7","v":0},{"$f":"F_Inputs!WOB7","v":0},{"$f":"F_Inputs!WOC7","v":0},{"$f":"F_Inputs!WOD7","v":0},{"$f":"F_Inputs!WOE7","v":0},{"$f":"F_Inputs!WOF7","v":0},{"$f":"F_Inputs!WOG7","v":0},{"$f":"F_Inputs!WOH7","v":0},{"$f":"F_Inputs!WOI7","v":0},{"$f":"F_Inputs!WOJ7","v":0},{"$f":"F_Inputs!WOK7","v":0},{"$f":"F_Inputs!WOL7","v":0},{"$f":"F_Inputs!WOM7","v":0},{"$f":"F_Inputs!WON7","v":0},{"$f":"F_Inputs!WOO7","v":0},{"$f":"F_Inputs!WOP7","v":0},{"$f":"F_Inputs!WOQ7","v":0},{"$f":"F_Inputs!WOR7","v":0},{"$f":"F_Inputs!WOS7","v":0},{"$f":"F_Inputs!WOT7","v":0},{"$f":"F_Inputs!WOU7","v":0},{"$f":"F_Inputs!WOV7","v":0},{"$f":"F_Inputs!WOW7","v":0},{"$f":"F_Inputs!WOX7","v":0},{"$f":"F_Inputs!WOY7","v":0},{"$f":"F_Inputs!WOZ7","v":0},{"$f":"F_Inputs!WPA7","v":0},{"$f":"F_Inputs!WPB7","v":0},{"$f":"F_Inputs!WPC7","v":0},{"$f":"F_Inputs!WPD7","v":0},{"$f":"F_Inputs!WPE7","v":0},{"$f":"F_Inputs!WPF7","v":0},{"$f":"F_Inputs!WPG7","v":0},{"$f":"F_Inputs!WPH7","v":0},{"$f":"F_Inputs!WPI7","v":0},{"$f":"F_Inputs!WPJ7","v":0},{"$f":"F_Inputs!WPK7","v":0},{"$f":"F_Inputs!WPL7","v":0},{"$f":"F_Inputs!WPM7","v":0},{"$f":"F_Inputs!WPN7","v":0},{"$f":"F_Inputs!WPO7","v":0},{"$f":"F_Inputs!WPP7","v":0},{"$f":"F_Inputs!WPQ7","v":0},{"$f":"F_Inputs!WPR7","v":0},{"$f":"F_Inputs!WPS7","v":0},{"$f":"F_Inputs!WPT7","v":0},{"$f":"F_Inputs!WPU7","v":0},{"$f":"F_Inputs!WPV7","v":0},{"$f":"F_Inputs!WPW7","v":0},{"$f":"F_Inputs!WPX7","v":0},{"$f":"F_Inputs!WPY7","v":0},{"$f":"F_Inputs!WPZ7","v":0},{"$f":"F_Inputs!WQA7","v":0},{"$f":"F_Inputs!WQB7","v":0},{"$f":"F_Inputs!WQC7","v":0},{"$f":"F_Inputs!WQD7","v":0},{"$f":"F_Inputs!WQE7","v":0},{"$f":"F_Inputs!WQF7","v":0},{"$f":"F_Inputs!WQG7","v":0},{"$f":"F_Inputs!WQH7","v":0},{"$f":"F_Inputs!WQI7","v":0},{"$f":"F_Inputs!WQJ7","v":0},{"$f":"F_Inputs!WQK7","v":0},{"$f":"F_Inputs!WQL7","v":0},{"$f":"F_Inputs!WQM7","v":0},{"$f":"F_Inputs!WQN7","v":0},{"$f":"F_Inputs!WQO7","v":0},{"$f":"F_Inputs!WQP7","v":0},{"$f":"F_Inputs!WQQ7","v":0},{"$f":"F_Inputs!WQR7","v":0},{"$f":"F_Inputs!WQS7","v":0},{"$f":"F_Inputs!WQT7","v":0},{"$f":"F_Inputs!WQU7","v":0},{"$f":"F_Inputs!WQV7","v":0},{"$f":"F_Inputs!WQW7","v":0},{"$f":"F_Inputs!WQX7","v":0},{"$f":"F_Inputs!WQY7","v":0},{"$f":"F_Inputs!WQZ7","v":0},{"$f":"F_Inputs!WRA7","v":0},{"$f":"F_Inputs!WRB7","v":0},{"$f":"F_Inputs!WRC7","v":0},{"$f":"F_Inputs!WRD7","v":0},{"$f":"F_Inputs!WRE7","v":0},{"$f":"F_Inputs!WRF7","v":0},{"$f":"F_Inputs!WRG7","v":0},{"$f":"F_Inputs!WRH7","v":0},{"$f":"F_Inputs!WRI7","v":0},{"$f":"F_Inputs!WRJ7","v":0},{"$f":"F_Inputs!WRK7","v":0},{"$f":"F_Inputs!WRL7","v":0},{"$f":"F_Inputs!WRM7","v":0},{"$f":"F_Inputs!WRN7","v":0},{"$f":"F_Inputs!WRO7","v":0},{"$f":"F_Inputs!WRP7","v":0},{"$f":"F_Inputs!WRQ7","v":0},{"$f":"F_Inputs!WRR7","v":0},{"$f":"F_Inputs!WRS7","v":0},{"$f":"F_Inputs!WRT7","v":0},{"$f":"F_Inputs!WRU7","v":0},{"$f":"F_Inputs!WRV7","v":0},{"$f":"F_Inputs!WRW7","v":0},{"$f":"F_Inputs!WRX7","v":0},{"$f":"F_Inputs!WRY7","v":0},{"$f":"F_Inputs!WRZ7","v":0},{"$f":"F_Inputs!WSA7","v":0},{"$f":"F_Inputs!WSB7","v":0},{"$f":"F_Inputs!WSC7","v":0},{"$f":"F_Inputs!WSD7","v":0},{"$f":"F_Inputs!WSE7","v":0},{"$f":"F_Inputs!WSF7","v":0},{"$f":"F_Inputs!WSG7","v":0},{"$f":"F_Inputs!WSH7","v":0},{"$f":"F_Inputs!WSI7","v":0},{"$f":"F_Inputs!WSJ7","v":0},{"$f":"F_Inputs!WSK7","v":0},{"$f":"F_Inputs!WSL7","v":0},{"$f":"F_Inputs!WSM7","v":0},{"$f":"F_Inputs!WSN7","v":0},{"$f":"F_Inputs!WSO7","v":0},{"$f":"F_Inputs!WSP7","v":0},{"$f":"F_Inputs!WSQ7","v":0},{"$f":"F_Inputs!WSR7","v":0},{"$f":"F_Inputs!WSS7","v":0},{"$f":"F_Inputs!WST7","v":0},{"$f":"F_Inputs!WSU7","v":0},{"$f":"F_Inputs!WSV7","v":0},{"$f":"F_Inputs!WSW7","v":0},{"$f":"F_Inputs!WSX7","v":0},{"$f":"F_Inputs!WSY7","v":0},{"$f":"F_Inputs!WSZ7","v":0},{"$f":"F_Inputs!WTA7","v":0},{"$f":"F_Inputs!WTB7","v":0},{"$f":"F_Inputs!WTC7","v":0},{"$f":"F_Inputs!WTD7","v":0},{"$f":"F_Inputs!WTE7","v":0},{"$f":"F_Inputs!WTF7","v":0},{"$f":"F_Inputs!WTG7","v":0},{"$f":"F_Inputs!WTH7","v":0},{"$f":"F_Inputs!WTI7","v":0},{"$f":"F_Inputs!WTJ7","v":0},{"$f":"F_Inputs!WTK7","v":0},{"$f":"F_Inputs!WTL7","v":0},{"$f":"F_Inputs!WTM7","v":0},{"$f":"F_Inputs!WTN7","v":0},{"$f":"F_Inputs!WTO7","v":0},{"$f":"F_Inputs!WTP7","v":0},{"$f":"F_Inputs!WTQ7","v":0},{"$f":"F_Inputs!WTR7","v":0},{"$f":"F_Inputs!WTS7","v":0},{"$f":"F_Inputs!WTT7","v":0},{"$f":"F_Inputs!WTU7","v":0},{"$f":"F_Inputs!WTV7","v":0},{"$f":"F_Inputs!WTW7","v":0},{"$f":"F_Inputs!WTX7","v":0},{"$f":"F_Inputs!WTY7","v":0},{"$f":"F_Inputs!WTZ7","v":0},{"$f":"F_Inputs!WUA7","v":0},{"$f":"F_Inputs!WUB7","v":0},{"$f":"F_Inputs!WUC7","v":0},{"$f":"F_Inputs!WUD7","v":0},{"$f":"F_Inputs!WUE7","v":0},{"$f":"F_Inputs!WUF7","v":0},{"$f":"F_Inputs!WUG7","v":0},{"$f":"F_Inputs!WUH7","v":0},{"$f":"F_Inputs!WUI7","v":0},{"$f":"F_Inputs!WUJ7","v":0},{"$f":"F_Inputs!WUK7","v":0},{"$f":"F_Inputs!WUL7","v":0},{"$f":"F_Inputs!WUM7","v":0},{"$f":"F_Inputs!WUN7","v":0},{"$f":"F_Inputs!WUO7","v":0},{"$f":"F_Inputs!WUP7","v":0},{"$f":"F_Inputs!WUQ7","v":0},{"$f":"F_Inputs!WUR7","v":0},{"$f":"F_Inputs!WUS7","v":0},{"$f":"F_Inputs!WUT7","v":0},{"$f":"F_Inputs!WUU7","v":0},{"$f":"F_Inputs!WUV7","v":0},{"$f":"F_Inputs!WUW7","v":0},{"$f":"F_Inputs!WUX7","v":0},{"$f":"F_Inputs!WUY7","v":0},{"$f":"F_Inputs!WUZ7","v":0},{"$f":"F_Inputs!WVA7","v":0},{"$f":"F_Inputs!WVB7","v":0},{"$f":"F_Inputs!WVC7","v":0},{"$f":"F_Inputs!WVD7","v":0},{"$f":"F_Inputs!WVE7","v":0},{"$f":"F_Inputs!WVF7","v":0},{"$f":"F_Inputs!WVG7","v":0},{"$f":"F_Inputs!WVH7","v":0},{"$f":"F_Inputs!WVI7","v":0},{"$f":"F_Inputs!WVJ7","v":0},{"$f":"F_Inputs!WVK7","v":0},{"$f":"F_Inputs!WVL7","v":0},{"$f":"F_Inputs!WVM7","v":0},{"$f":"F_Inputs!WVN7","v":0},{"$f":"F_Inputs!WVO7","v":0},{"$f":"F_Inputs!WVP7","v":0},{"$f":"F_Inputs!WVQ7","v":0},{"$f":"F_Inputs!WVR7","v":0},{"$f":"F_Inputs!WVS7","v":0},{"$f":"F_Inputs!WVT7","v":0},{"$f":"F_Inputs!WVU7","v":0},{"$f":"F_Inputs!WVV7","v":0},{"$f":"F_Inputs!WVW7","v":0},{"$f":"F_Inputs!WVX7","v":0},{"$f":"F_Inputs!WVY7","v":0},{"$f":"F_Inputs!WVZ7","v":0},{"$f":"F_Inputs!WWA7","v":0},{"$f":"F_Inputs!WWB7","v":0},{"$f":"F_Inputs!WWC7","v":0},{"$f":"F_Inputs!WWD7","v":0},{"$f":"F_Inputs!WWE7","v":0},{"$f":"F_Inputs!WWF7","v":0},{"$f":"F_Inputs!WWG7","v":0},{"$f":"F_Inputs!WWH7","v":0},{"$f":"F_Inputs!WWI7","v":0},{"$f":"F_Inputs!WWJ7","v":0},{"$f":"F_Inputs!WWK7","v":0},{"$f":"F_Inputs!WWL7","v":0},{"$f":"F_Inputs!WWM7","v":0},{"$f":"F_Inputs!WWN7","v":0},{"$f":"F_Inputs!WWO7","v":0},{"$f":"F_Inputs!WWP7","v":0},{"$f":"F_Inputs!WWQ7","v":0},{"$f":"F_Inputs!WWR7","v":0},{"$f":"F_Inputs!WWS7","v":0},{"$f":"F_Inputs!WWT7","v":0},{"$f":"F_Inputs!WWU7","v":0},{"$f":"F_Inputs!WWV7","v":0},{"$f":"F_Inputs!WWW7","v":0},{"$f":"F_Inputs!WWX7","v":0},{"$f":"F_Inputs!WWY7","v":0},{"$f":"F_Inputs!WWZ7","v":0},{"$f":"F_Inputs!WXA7","v":0},{"$f":"F_Inputs!WXB7","v":0},{"$f":"F_Inputs!WXC7","v":0},{"$f":"F_Inputs!WXD7","v":0},{"$f":"F_Inputs!WXE7","v":0},{"$f":"F_Inputs!WXF7","v":0},{"$f":"F_Inputs!WXG7","v":0},{"$f":"F_Inputs!WXH7","v":0},{"$f":"F_Inputs!WXI7","v":0},{"$f":"F_Inputs!WXJ7","v":0},{"$f":"F_Inputs!WXK7","v":0},{"$f":"F_Inputs!WXL7","v":0},{"$f":"F_Inputs!WXM7","v":0},{"$f":"F_Inputs!WXN7","v":0},{"$f":"F_Inputs!WXO7","v":0},{"$f":"F_Inputs!WXP7","v":0},{"$f":"F_Inputs!WXQ7","v":0},{"$f":"F_Inputs!WXR7","v":0},{"$f":"F_Inputs!WXS7","v":0},{"$f":"F_Inputs!WXT7","v":0},{"$f":"F_Inputs!WXU7","v":0},{"$f":"F_Inputs!WXV7","v":0},{"$f":"F_Inputs!WXW7","v":0},{"$f":"F_Inputs!WXX7","v":0},{"$f":"F_Inputs!WXY7","v":0},{"$f":"F_Inputs!WXZ7","v":0},{"$f":"F_Inputs!WYA7","v":0},{"$f":"F_Inputs!WYB7","v":0},{"$f":"F_Inputs!WYC7","v":0},{"$f":"F_Inputs!WYD7","v":0},{"$f":"F_Inputs!WYE7","v":0},{"$f":"F_Inputs!WYF7","v":0},{"$f":"F_Inputs!WYG7","v":0},{"$f":"F_Inputs!WYH7","v":0},{"$f":"F_Inputs!WYI7","v":0},{"$f":"F_Inputs!WYJ7","v":0},{"$f":"F_Inputs!WYK7","v":0},{"$f":"F_Inputs!WYL7","v":0},{"$f":"F_Inputs!WYM7","v":0},{"$f":"F_Inputs!WYN7","v":0},{"$f":"F_Inputs!WYO7","v":0},{"$f":"F_Inputs!WYP7","v":0},{"$f":"F_Inputs!WYQ7","v":0},{"$f":"F_Inputs!WYR7","v":0},{"$f":"F_Inputs!WYS7","v":0},{"$f":"F_Inputs!WYT7","v":0},{"$f":"F_Inputs!WYU7","v":0},{"$f":"F_Inputs!WYV7","v":0},{"$f":"F_Inputs!WYW7","v":0},{"$f":"F_Inputs!WYX7","v":0},{"$f":"F_Inputs!WYY7","v":0},{"$f":"F_Inputs!WYZ7","v":0},{"$f":"F_Inputs!WZA7","v":0},{"$f":"F_Inputs!WZB7","v":0},{"$f":"F_Inputs!WZC7","v":0},{"$f":"F_Inputs!WZD7","v":0},{"$f":"F_Inputs!WZE7","v":0},{"$f":"F_Inputs!WZF7","v":0},{"$f":"F_Inputs!WZG7","v":0},{"$f":"F_Inputs!WZH7","v":0},{"$f":"F_Inputs!WZI7","v":0},{"$f":"F_Inputs!WZJ7","v":0},{"$f":"F_Inputs!WZK7","v":0},{"$f":"F_Inputs!WZL7","v":0},{"$f":"F_Inputs!WZM7","v":0},{"$f":"F_Inputs!WZN7","v":0},{"$f":"F_Inputs!WZO7","v":0},{"$f":"F_Inputs!WZP7","v":0},{"$f":"F_Inputs!WZQ7","v":0},{"$f":"F_Inputs!WZR7","v":0},{"$f":"F_Inputs!WZS7","v":0},{"$f":"F_Inputs!WZT7","v":0},{"$f":"F_Inputs!WZU7","v":0},{"$f":"F_Inputs!WZV7","v":0},{"$f":"F_Inputs!WZW7","v":0},{"$f":"F_Inputs!WZX7","v":0},{"$f":"F_Inputs!WZY7","v":0},{"$f":"F_Inputs!WZZ7","v":0},{"$f":"F_Inputs!XAA7","v":0},{"$f":"F_Inputs!XAB7","v":0},{"$f":"F_Inputs!XAC7","v":0},{"$f":"F_Inputs!XAD7","v":0},{"$f":"F_Inputs!XAE7","v":0},{"$f":"F_Inputs!XAF7","v":0},{"$f":"F_Inputs!XAG7","v":0},{"$f":"F_Inputs!XAH7","v":0},{"$f":"F_Inputs!XAI7","v":0},{"$f":"F_Inputs!XAJ7","v":0},{"$f":"F_Inputs!XAK7","v":0},{"$f":"F_Inputs!XAL7","v":0},{"$f":"F_Inputs!XAM7","v":0},{"$f":"F_Inputs!XAN7","v":0},{"$f":"F_Inputs!XAO7","v":0},{"$f":"F_Inputs!XAP7","v":0},{"$f":"F_Inputs!XAQ7","v":0},{"$f":"F_Inputs!XAR7","v":0},{"$f":"F_Inputs!XAS7","v":0},{"$f":"F_Inputs!XAT7","v":0},{"$f":"F_Inputs!XAU7","v":0},{"$f":"F_Inputs!XAV7","v":0},{"$f":"F_Inputs!XAW7","v":0},{"$f":"F_Inputs!XAX7","v":0},{"$f":"F_Inputs!XAY7","v":0},{"$f":"F_Inputs!XAZ7","v":0},{"$f":"F_Inputs!XBA7","v":0},{"$f":"F_Inputs!XBB7","v":0},{"$f":"F_Inputs!XBC7","v":0},{"$f":"F_Inputs!XBD7","v":0},{"$f":"F_Inputs!XBE7","v":0},{"$f":"F_Inputs!XBF7","v":0},{"$f":"F_Inputs!XBG7","v":0},{"$f":"F_Inputs!XBH7","v":0},{"$f":"F_Inputs!XBI7","v":0},{"$f":"F_Inputs!XBJ7","v":0},{"$f":"F_Inputs!XBK7","v":0},{"$f":"F_Inputs!XBL7","v":0},{"$f":"F_Inputs!XBM7","v":0},{"$f":"F_Inputs!XBN7","v":0},{"$f":"F_Inputs!XBO7","v":0},{"$f":"F_Inputs!XBP7","v":0},{"$f":"F_Inputs!XBQ7","v":0},{"$f":"F_Inputs!XBR7","v":0},{"$f":"F_Inputs!XBS7","v":0},{"$f":"F_Inputs!XBT7","v":0},{"$f":"F_Inputs!XBU7","v":0},{"$f":"F_Inputs!XBV7","v":0},{"$f":"F_Inputs!XBW7","v":0},{"$f":"F_Inputs!XBX7","v":0},{"$f":"F_Inputs!XBY7","v":0},{"$f":"F_Inputs!XBZ7","v":0},{"$f":"F_Inputs!XCA7","v":0},{"$f":"F_Inputs!XCB7","v":0},{"$f":"F_Inputs!XCC7","v":0},{"$f":"F_Inputs!XCD7","v":0},{"$f":"F_Inputs!XCE7","v":0},{"$f":"F_Inputs!XCF7","v":0},{"$f":"F_Inputs!XCG7","v":0},{"$f":"F_Inputs!XCH7","v":0},{"$f":"F_Inputs!XCI7","v":0},{"$f":"F_Inputs!XCJ7","v":0},{"$f":"F_Inputs!XCK7","v":0},{"$f":"F_Inputs!XCL7","v":0},{"$f":"F_Inputs!XCM7","v":0},{"$f":"F_Inputs!XCN7","v":0},{"$f":"F_Inputs!XCO7","v":0},{"$f":"F_Inputs!XCP7","v":0},{"$f":"F_Inputs!XCQ7","v":0},{"$f":"F_Inputs!XCR7","v":0},{"$f":"F_Inputs!XCS7","v":0},{"$f":"F_Inputs!XCT7","v":0},{"$f":"F_Inputs!XCU7","v":0},{"$f":"F_Inputs!XCV7","v":0},{"$f":"F_Inputs!XCW7","v":0},{"$f":"F_Inputs!XCX7","v":0},{"$f":"F_Inputs!XCY7","v":0},{"$f":"F_Inputs!XCZ7","v":0},{"$f":"F_Inputs!XDA7","v":0},{"$f":"F_Inputs!XDB7","v":0},{"$f":"F_Inputs!XDC7","v":0},{"$f":"F_Inputs!XDD7","v":0},{"$f":"F_Inputs!XDE7","v":0},{"$f":"F_Inputs!XDF7","v":0},{"$f":"F_Inputs!XDG7","v":0},{"$f":"F_Inputs!XDH7","v":0},{"$f":"F_Inputs!XDI7","v":0},{"$f":"F_Inputs!XDJ7","v":0},{"$f":"F_Inputs!XDK7","v":0},{"$f":"F_Inputs!XDL7","v":0},{"$f":"F_Inputs!XDM7","v":0},{"$f":"F_Inputs!XDN7","v":0},{"$f":"F_Inputs!XDO7","v":0},{"$f":"F_Inputs!XDP7","v":0},{"$f":"F_Inputs!XDQ7","v":0},{"$f":"F_Inputs!XDR7","v":0},{"$f":"F_Inputs!XDS7","v":0},{"$f":"F_Inputs!XDT7","v":0},{"$f":"F_Inputs!XDU7","v":0},{"$f":"F_Inputs!XDV7","v":0},{"$f":"F_Inputs!XDW7","v":0},{"$f":"F_Inputs!XDX7","v":0},{"$f":"F_Inputs!XDY7","v":0},{"$f":"F_Inputs!XDZ7","v":0},{"$f":"F_Inputs!XEA7","v":0},{"$f":"F_Inputs!XEB7","v":0},{"$f":"F_Inputs!XEC7","v":0},{"$f":"F_Inputs!XED7","v":0},{"$f":"F_Inputs!XEE7","v":0},{"$f":"F_Inputs!XEF7","v":0},{"$f":"F_Inputs!XEG7","v":0},{"$f":"F_Inputs!XEH7","v":0},{"$f":"F_Inputs!XEI7","v":0},{"$f":"F_Inputs!XEJ7","v":0},{"$f":"F_Inputs!XEK7","v":0},{"$f":"F_Inputs!XEL7","v":0},{"$f":"F_Inputs!XEM7","v":0},{"$f":"F_Inputs!XEN7","v":0},{"$f":"F_Inputs!XEO7","v":0},{"$f":"F_Inputs!XEP7","v":0},{"$f":"F_Inputs!XEQ7","v":0},{"$f":"F_Inputs!XER7","v":0},{"$f":"F_Inputs!XES7","v":0},{"$f":"F_Inputs!XET7","v":0},{"$f":"F_Inputs!XEU7","v":0},{"$f":"F_Inputs!XEV7","v":0},{"$f":"F_Inputs!XEW7","v":0},{"$f":"F_Inputs!XEX7","v":0},{"$f":"F_Inputs!XEY7","v":0},{"$f":"F_Inputs!XEZ7","v":0}]
[null,null,null,null,"Delivery adjusted allowed expenditure - WN - real",null,"£m",null,null,null,{"$f":"F_Inputs!G8","v":9.2115033395728546E-2},{"$f":"F_Inputs!H8","v":7.7737807385332669},{"$f":"F_Inputs!I8","v":13.360399378448111},{"$f":"F_Inputs!J8","v":12.655922490908232},{"$f":"F_Inputs!K8","v":12.905697558714666}]
[null,null,null,null,"Delivery adjusted allowed expenditure - WWN - real",null,"£m",null,null,null,{"$f":"F_Inputs!G9","v":0},{"$f":"F_Inputs!H9","v":0},{"$f":"F_Inputs!I9","v":0},{"$f":"F_Inputs!J9","v":0},{"$f":"F_Inputs!K9","v":0}]
[null,null,null,null,"Delivery adjusted allowed expenditure - BR - real",null,"£m",null,null,null,{"$f":"F_Inputs!G10","v":0},{"$f":"F_Inputs!H10","v":0},{"$f":"F_Inputs!I10","v":0},{"$f":"F_Inputs!J10","v":0},{"$f":"F_Inputs!K10","v":0}]
[]
[null,"Green recovery revenue received in period"]
[]
[null,null,null,null,"Green recovery revenue received in period - WR - real",null,"£m"]
[null,null,null,null,"Green recovery revenue received in period - WN - real",null,"£m"]
[null,null,null,null,"Green recovery revenue received in period - WWN - real",null,"£m"]
[null,null,null,null,"Green recovery revenue received in period - BR - real",null,"£m"]
[]
["NON CHANGEABLE INPUTS"]
[]
[null,"Model Tolerance"]
[null,null,null,null,"Model Check Tolerance Level",1E-4,"tolerance"]
[]
[null,null,null,null,"Model Track Tolerance Level",1E-3,"tolerance"]
[]
["END OF SHEET"]

{"sheet":"Time","index":4,"n_rows":89,"n_cols":18,"rows_kept":89,"cut":false,"hidden":false,"merged":[]}
[{"$f":" RIGHT(CELL(\"filename\", $A$1), LEN(CELL(\"filename\", $A$1)) - SEARCH(\"]\", CELL(\"filename\", $A$1)))","v":"Time"}]
[null,null,null,null,{"$f":"Time!E$22","v":"Model Period BEG"},null,null,null,null,{"$f":"Time!J$22","v":"2019-04-01"},{"$f":"Time!K$22","v":"2020-04-01"},{"$f":"Time!L$22","v":"2021-04-01"},{"$f":"Time!M$22","v":"2022-04-01"},{"$f":"Time!N$22","v":"2023-04-01"},{"$f":"Time!O$22","v":"2024-04-01"},{"$f":"Time!P$22","v":"2025-04-01"},{"$f":"Time!Q$22","v":"2026-04-01"},{"$f":"Time!R$22","v":"2027-04-01"}]
[null,null,null,null,{"$f":"Time!E$23","v":"Model Period END"},null,null,null,null,{"$f":"Time!J$23","v":"2020-03-31"},{"$f":"Time!K$23","v":"2021-03-31"},{"$f":"Time!L$23","v":"2022-03-31"},{"$f":"Time!M$23","v":"2023-03-31"},{"$f":"Time!N$23","v":"2024-03-31"},{"$f":"Time!O$23","v":"2025-03-31"},{"$f":"Time!P$23","v":"2026-03-31"},{"$f":"Time!Q$23","v":"2027-03-31"},{"$f":"Time!R$23","v":"2028-03-31"}]
[null,null,null,null,{"$f":"Time!E$59","v":"Pre Forecast vs Forecast"},null,null,null,null,{"$f":"Time!J$59","v":"Pre Fcst"},{"$f":"Time!K$59","v":"Forecast"},{"$f":"Time!L$59","v":"Forecast"},{"$f":"Time!M$59","v":"Forecast"},{"$f":"Time!N$59","v":"Forecast"},{"$f":"Time!O$59","v":"Forecast"},{"$f":"Time!P$59","v":"Post-Fcst"},{"$f":"Time!Q$59","v":"Post-Fcst"},{"$f":"Time!R$59","v":"Post-Fcst"}]
[null,null,null,null,{"$f":"Time!E$86","v":"Financial Year Ending"},null,null,null,null,{"$f":"Time!J$86","v":2020},{"$f":"Time!K$86","v":2021},{"$f":"Time!L$86","v":2022},{"$f":"Time!M$86","v":2023},{"$f":"Time!N$86","v":2024},{"$f":"Time!O$86","v":2025},{"$f":"Time!P$86","v":2026},{"$f":"Time!Q$86","v":2027},{"$f":"Time!R$86","v":2028}]
[null,null,null,null,{"$f":"Time!E$11","v":"Model column counter"},"Constant","Unit","Total",null,{"$f":"Time!J$11","v":1},{"$f":"Time!K$11","v":2},{"$f":"Time!L$11","v":3},{"$f":"Time!M$11","v":4},{"$f":"Time!N$11","v":5},{"$f":"Time!O$11","v":6},{"$f":"Time!P$11","v":7},{"$f":"Time!Q$11","v":8},{"$f":"Time!R$11","v":9}]
[]
["MODEL PERIOD"]
[]
[null,"Model Column Counter "]
[null,null,null,null,"Model column counter",null,"counter",null,null,{"$f":" I11 + 1","v":1},{"$f":" J11 + 1","v":2},3,4,5,6,7,{"$f":" P11 + 1","v":8},{"$f":" Q11 + 1","v":9}]
[null,null,null,null,"Model Column Total",{"$f":" MAX(J11:BU11)","v":9},"column"]
[]
[null,null,null,null,{"$f":" E$11","v":"Model column counter"},0,"counter",0,0,1,2,3,4,5,6,7,8,9]
[null,null,null,null,"First model column flag",null,"flag",{"$f":" SUM(J15:BU15)","v":1},null,{"$f":" IF( J14 = 1, 1, 0)","v":1},0,0,0,0,0,0,{"$f":" IF( Q14 = 1, 1, 0)","v":0},{"$f":" IF( R14 = 1, 1, 0)","v":0}]
[]
[null,null,null,null,{"$f":" Inputs!E$10","v":"First date of time ruler"},{"$f":" Inputs!F$10","v":"2019-04-01"},{"$f":" Inputs!G$10","v":"date"}]
[null,null,null,null,"First model period BEG",{"$f":" DATE(YEAR(F17), MONTH(F17), 1)","v":"2019-04-01"},"month"]
[]
[null,null,null,null,{"$f":" E$18","v":"First model period BEG"},{"$f":" F$18","v":"2019-04-01"},{"$f":" G$18","v":"month"}]
[null,null,null,null,{"$f":" E$15","v":"First model column flag"},0,"flag",1,0,1,0,0,0,0,0,0,0,0]
[null,null,null,null,"Model Period BEG",null,"date",null,null,{"$f":" IF( J21 = 1, $F20, I23 + 1)","v":"2019-04-01"},"2020-04-01","2021-04-01","2022-04-01","2023-04-01","2024-04-01","2025-04-01",{"$f":" IF( Q21 = 1, $F20, P23 + 1)","v":"2026-04-01"},{"$f":" IF( R21 = 1, $F20, Q23 + 1)","v":"2027-04-01"}]
[null,null,null,null,"Model Period END",null,"date",null,null,{"$f":" DATE(YEAR(J22), MONTH(J22) + 12, DAY(1) - 1)","v":"2020-03-31"},"2021-03-31","2022-03-31","2023-03-31","2024-03-31","2025-03-31","2026-03-31",{"$f":" DATE(YEAR(Q22), MONTH(Q22) + 12, DAY(1) - 1)","v":"2027-03-31"},{"$f":" DATE(YEAR(R22), MONTH(R22) + 12, DAY(1) - 1)","v":"2028-03-31"}]
[]
[null,null,null,null,{"$f":" E$23","v":"Model Period END"},"00:00:00","date","00:00:00","00:00:00","2020-03-31","2021-03-31","2022-03-31","2023-03-31","2024-03-31","2025-03-31","2026-03-31","2027-03-31","2028-03-31"]
[null,null,null,"less",{"$f":" E$22","v":"Model Period BEG"},"00:00:00","date","00:00:00","00:00:00","2019-04-01","2020-04-01","2021-04-01","2022-04-01","2023-04-01","2024-04-01","2025-04-01","2026-04-01","2027-04-01"]
[null,null,null,null,"Days in Model Period",null,"days",{"$f":" SUM(J27:BU27)","v":3288},null,{"$f":" J25 - J26 + 1","v":366},365,365,365,366,365,365,{"$f":" Q25 - Q26 + 1","v":365},{"$f":" R25 - R26 + 1","v":366}]
[]
[]
["PRE FORECAST PERIOD"]
[]
[null,null,null,null,{"$f":" Inputs!E$12","v":"Last Pre Forecast Date"},{"$f":" Inputs!F$12","v":"2020-03-31"},{"$f":" Inputs!G$12","v":"date"}]
[null,null,null,null,{"$f":" E$23","v":"Model Period END"},"00:00:00","date","00:00:00","00:00:00","2020-03-31","2021-03-31","2022-03-31","2023-03-31","2024-03-31","2025-03-31","2026-03-31","2027-03-31","2028-03-31"]
[null,null,null,null,"Last Pre Forecast Flag",null,"flag",{"$f":" SUM(J34:BU34)","v":1},null,{"$f":" IF(J33 = $F32, 1, 0)","v":1},0,0,0,0,0,0,{"$f":" IF(Q33 = $F32, 1, 0)","v":0},{"$f":" IF(R33 = $F32, 1, 0)","v":0}]
[null,null,null,null,"Pre Forecast Period Flag",null,"flag",{"$f":" SUM(J35:BU35)","v":1},null,{"$f":" IF($F32 >= J33, 1, 0)","v":1},{"$f":" IF($F32 >= K33, 1, 0)","v":0},0,0,0,0,0,{"$f":" IF($F32 >= Q33, 1, 0)","v":0},{"$f":" IF($F32 >= R33, 1, 0)","v":0}]
[null,null,null,null,"Pre Forecast Period Total",{"$f":" SUM(J35:BU35)","v":1},"columns"]
[]
[null,null,null,null,{"$f":" Inputs!E$14","v":"Acquisition date (midnight)"},{"$f":" Inputs!F$14","v":"2020-03-31"},{"$f":" Inputs!G$14","v":"date"}]
[null,null,null,null,{"$f":" E$23","v":"Model Period END"},"00:00:00","date","00:00:00","00:00:00","2020-03-31","2021-03-31","2022-03-31","2023-03-31","2024-03-31","2025-03-31","2026-03-31","2027-03-31","2028-03-31"]
[null,null,null,null,"Acquisition / initial balance date flag",null,"flag",{"$f":" SUM(J40:BU40)","v":1},null,{"$f":" IF(J39 = $F38, 1, 0)","v":1},0,0,0,0,0,0,{"$f":" IF(Q39 = $F38, 1, 0)","v":0},{"$f":" IF(R39 = $F38, 1, 0)","v":0}]
[]
[]
["FORECAST PERIOD"]
[]
[null,null,null,null,{"$f":" E$34","v":"Last Pre Forecast Flag"},0,"flag",1,0,1,0,0,0,0,0,0,0,0]
[null,null,null,null,"1st Forecast Period Flag",null,"flag",{"$f":" SUM(J46:BU46)","v":1},null,{"$f":" I45","v":0},1,0,0,0,0,0,{"$f":" P45","v":0},{"$f":" Q45","v":0}]
[]
[null,null,null,null,{"$f":"Inputs!E$16","v":"Last forecast date"},{"$f":"Inputs!F$16","v":"2025-03-31"},{"$f":"Inputs!G$16","v":"date"}]
[null,null,null,null,{"$f":" E$23","v":"Model Period END"},"00:00:00","date","00:00:00","00:00:00","2020-03-31","2021-03-31","2022-03-31","2023-03-31","2024-03-31","2025-03-31","2026-03-31","2027-03-31","2028-03-31"]
[null,null,null,null,"Last Forecast Period Flag",null,"flag",{"$f":" SUM(J50:BU50)","v":1},null,{"$f":" IF(AND($F48 > I49, $F48 <= J49), 1, 0)","v":0},0,0,0,0,1,0,{"$f":" IF(AND($F48 > P49, $F48 <= Q49), 1, 0)","v":0},{"$f":" IF(AND($F48 > Q49, $F48 <= R49), 1, 0)","v":0}]
[]
[null,null,null,null,{"$f":" E$46","v":"1st Forecast Period Flag"},0,"flag",1,0,0,1,0,0,0,0,0,0,0]
[null,null,null,null,{"$f":" E$50","v":"Last Forecast Period Flag"},0,"flag",1,0,0,0,0,0,0,1,0,0,0]
[null,null,null,null,"Forecast Period Flag",null,"flag",{"$f":" SUM(J54:BU54)","v":5},null,{"$f":" J52 - I53 + I54","v":0},1,1,1,1,1,0,{"$f":" Q52 - P53 + P54","v":0},{"$f":" R52 - Q53 + Q54","v":0}]
[null,null,null,null,"Forecast Period Total ",{"$f":" SUM(J54:BU54)","v":5},"columns"]
[]
[null,null,null,null,{"$f":" E$35","v":"Pre Forecast Period Flag"},0,"flag",1,0,1,0,0,0,0,0,0,0,0]
[null,null,null,null,{"$f":" E$54","v":"Forecast Period Flag"},0,"flag",5,0,0,1,1,1,1,1,0,0,0]
[null,null,null,null,"Pre Forecast vs Forecast",null,"flag",null,null,{"$f":" IF(J57 = 1, \"Pre Fcst\", IF(J58 = 1, \"Forecast\", \"Post-Fcst\"))","v":"Pre Fcst"},"Forecast","Forecast","Forecast","Forecast","Forecast","Post-Fcst",{"$f":" IF(Q57 = 1, \"Pre Fcst\", IF(Q58 = 1, \"Forecast\", \"Post-Fcst\"))","v":"Post-Fcst"},{"$f":" IF(R57 = 1, \"Pre Fcst\", IF(R58 = 1, \"Forecast\", \"Post-Fcst\"))","v":"Post-Fcst"}]
[]
[]
["POST FORECAST PERIOD"]
[]
[null,null,null,null,{"$f":" E$50","v":"Last Forecast Period Flag"},0,"flag",1,0,0,0,0,0,0,1,0,0,0]
[null,null,null,null,"1st Post Last Forecast Period Flag",null,"flag",{"$f":" SUM(J65:BU65)","v":1},null,{"$f":" I64","v":0},0,0,0,0,0,1,{"$f":" P64","v":0},{"$f":" Q64","v":0}]
[]
[null,null,null,null,{"$f":" E$65","v":"1st Post Last Forecast Period Flag"},0,"flag",1,0,0,0,0,0,0,0,1,0,0]
[null,null,null,null,"Post Forecast Period Flag",null,"flag",{"$f":" SUM(J68:BU68)","v":3},null,{"$f":" I68 + J67","v":0},0,0,0,0,0,1,{"$f":" P68 + Q67","v":1},{"$f":" Q68 + R67","v":1}]
[null,null,null,null,"Post Forecast Period Total",{"$f":" SUM(J68:BU68)","v":3},"columns"]
[]
[]
["MODELLING PERIOD CHECK"]
[]
[null,null,null,null,{"$f":" E$12","v":"Model Column Total"},{"$f":" F$12","v":9},{"$f":" G$12","v":"column"}]
[null,null,null,"less",{"$f":" E$36","v":"Pre Forecast Period Total"},{"$f":" F$36","v":1},{"$f":" G$36","v":"columns"}]
[null,null,null,"less",{"$f":" E$55","v":"Forecast Period Total "},{"$f":" F$55","v":5},{"$f":" G$55","v":"columns"}]
[null,null,null,"less",{"$f":" E$69","v":"Post Forecast Period Total"},{"$f":" F$69","v":3},{"$f":" G$69","v":"columns"}]
[null,null,null,null,"Modelling Period Check",{"$f":" IF(F74 - SUM(F75:F77) <> 0, 1, 0)","v":0},"check"]
[]
["FINANCIAL YEAR"]
[]
[null,null,null,null,{"$f":"Inputs!E20","v":"First Modelling Column Financial Year Number"},{"$f":"Inputs!F20","v":2020},{"$f":"Inputs!G20","v":"year"}]
[null,null,null,null,{"$f":"Inputs!E21","v":"Financial Year End Month Number"},{"$f":"Inputs!F21","v":3},{"$f":"Inputs!G21","v":"month #"}]
[null,null,null,null,{"$f":" E$23","v":"Model Period END"},"00:00:00","date","00:00:00","00:00:00","2020-03-31","2021-03-31","2022-03-31","2023-03-31","2024-03-31","2025-03-31","2026-03-31","2027-03-31","2028-03-31"]
[null,null,null,null,{"$f":" E$15","v":"First model column flag"},0,"flag",1,0,1,0,0,0,0,0,0,0,0]
[null,null,null,null,"Financial Year Ending",null,"year #",null,null,{"$f":" IF(J85 = 1, $F82, IF(J84 > (DATE(I86, $F83 + 1, 1) - 1), I86 + 1, I86))","v":2020},{"$f":" IF(K85 = 1, $F82, IF(K84 > (DATE(J86, $F83 + 1, 1) - 1), J86 + 1, J86))","v":2021},2022,2023,2024,2025,2026,{"$f":" IF(Q85 = 1, $F82, IF(Q84 > (DATE(P86, $F83 + 1, 1) - 1), P86 + 1, P86))","v":2027},{"$f":" IF(R85 = 1, $F82, IF(R84 > (DATE(Q86, $F83 + 1, 1) - 1), Q86 + 1, Q86))","v":2028}]
[]
[]
["END OF SHEET"]

{"sheet":"Calcs","index":5,"n_rows":97,"n_cols":15,"rows_kept":97,"cut":false,"hidden":false,"merged":[]}
[{"$f":" RIGHT(CELL(\"filename\", $A$1), LEN(CELL(\"filename\", $A$1)) - SEARCH(\"]\", CELL(\"filename\", $A$1)))","v":"Calcs"}]
[null,null,null,null,{"$f":"Time!E$22","v":"Model Period BEG"},null,null,null,null,{"$f":"Time!J$22","v":"2019-04-01"},{"$f":"Time!K$22","v":"2020-04-01"},{"$f":"Time!L$22","v":"2021-04-01"},{"$f":"Time!M$22","v":"2022-04-01"},{"$f":"Time!N$22","v":"2023-04-01"},{"$f":"Time!O$22","v":"2024-04-01"}]
[null,null,null,null,{"$f":"Time!E$23","v":"Model Period END"},null,null,null,null,{"$f":"Time!J$23","v":"2020-03-31"},{"$f":"Time!K$23","v":"2021-03-31"},{"$f":"Time!L$23","v":"2022-03-31"},{"$f":"Time!M$23","v":"2023-03-31"},{"$f":"Time!N$23","v":"2024-03-31"},{"$f":"Time!O$23","v":"2025-03-31"}]
[null,null,null,null,{"$f":"Time!E$59","v":"Pre Forecast vs Forecast"},null,null,null,null,{"$f":"Time!J$59","v":"Pre Fcst"},{"$f":"Time!K$59","v":"Forecast"},{"$f":"Time!L$59","v":"Forecast"},{"$f":"Time!M$59","v":"Forecast"},{"$f":"Time!N$59","v":"Forecast"},{"$f":"Time!O$59","v":"Forecast"}]
[null,null,null,null,{"$f":"Time!E$86","v":"Financial Year Ending"},null,null,null,null,{"$f":"Time!J$86","v":2020},{"$f":"Time!K$86","v":2021},{"$f":"Time!L$86","v":2022},{"$f":"Time!M$86","v":2023},{"$f":"Time!N$86","v":2024},{"$f":"Time!O$86","v":2025}]
[null,null,null,null,{"$f":"Time!E$11","v":"Model column counter"},"Constant","Unit","Total",null,{"$f":"Time!J$11","v":1},{"$f":"Time!K$11","v":2},{"$f":"Time!L$11","v":3},{"$f":"Time!M$11","v":4},{"$f":"Time!N$11","v":5},{"$f":"Time!O$11","v":6}]
[]
["TIME VALUE OF MONEY FACTORS"]
[]
[null,null,"The time value of money approach in the cost sharing reconciliation model has been applied to ensure consistency between the two models"]
[]
[null,null,null,null,{"$f":" Inputs!E$26","v":"Financing cost index"},{"$f":" Inputs!F$26","v":0},{"$f":" Inputs!G$26","v":"Index"},{"$f":" Inputs!H$26","v":0},{"$f":" Inputs!I$26","v":0},{"$f":" Inputs!J$26","v":0},{"$f":" Inputs!K$26","v":4},{"$f":" Inputs!L$26","v":3},{"$f":" Inputs!M$26","v":2},{"$f":" Inputs!N$26","v":1},{"$f":" Inputs!O$26","v":0}]
[null,null,null,null,{"$f":" Inputs!E$30","v":"Real WACC CPIH deflated - WR"},{"$f":" Inputs!F$30","v":2.92E-2},{"$f":" Inputs!G$30","v":"%"}]
[null,null,null,null,"Time value of money factor - WR",null,"Factor",null,null,{"$f":"(1+$F13) ^ J12","v":1},1.122016155346969,1.0901828170879997,1.0592526399999997,1.0291999999999999,1]
[]
[null,null,null,null,{"$f":" Inputs!E$26","v":"Financing cost index"},{"$f":" Inputs!F$26","v":0},{"$f":" Inputs!G$26","v":"Index"},{"$f":" Inputs!H$26","v":0},{"$f":" Inputs!I$26","v":0},{"$f":" Inputs!J$26","v":0},{"$f":" Inputs!K$26","v":4},{"$f":" Inputs!L$26","v":3},{"$f":" Inputs!M$26","v":2},{"$f":" Inputs!N$26","v":1},{"$f":" Inputs!O$26","v":0}]
[null,null,null,null,{"$f":" Inputs!E$31","v":"Real WACC CPIH deflated - WN"},{"$f":" Inputs!F$31","v":2.92E-2},{"$f":" Inputs!G$31","v":"%"}]
[null,null,null,null,"Time value of money factor - WN",null,"Factor",null,null,{"$f":"(1+$F17) ^ J16","v":1},1.122016155346969,1.0901828170879997,1.0592526399999997,1.0291999999999999,1]
[]
[null,null,null,null,{"$f":" Inputs!E$26","v":"Financing cost index"},{"$f":" Inputs!F$26","v":0},{"$f":" Inputs!G$26","v":"Index"},{"$f":" Inputs!H$26","v":0},{"$f":" Inputs!I$26","v":0},{"$f":" Inputs!J$26","v":0},{"$f":" Inputs!K$26","v":4},{"$f":" Inputs!L$26","v":3},{"$f":" Inputs!M$26","v":2},{"$f":" Inputs!N$26","v":1},{"$f":" Inputs!O$26","v":0}]
[null,null,null,null,{"$f":" Inputs!E$32","v":"Real WACC CPIH deflated - WWN"},{"$f":" Inputs!F$32","v":2.92E-2},{"$f":" Inputs!G$32","v":"%"}]
[null,null,null,null,"Time value of money factor - WWN",null,"Factor",null,null,{"$f":"(1+$F21) ^ J20","v":1},1.122016155346969,1.0901828170879997,1.0592526399999997,1.0291999999999999,1]
[]
[null,null,null,null,{"$f":" Inputs!E$26","v":"Financing cost index"},{"$f":" Inputs!F$26","v":0},{"$f":" Inputs!G$26","v":"Index"},{"$f":" Inputs!H$26","v":0},{"$f":" Inputs!I$26","v":0},{"$f":" Inputs!J$26","v":0},{"$f":" Inputs!K$26","v":4},{"$f":" Inputs!L$26","v":3},{"$f":" Inputs!M$26","v":2},{"$f":" Inputs!N$26","v":1},{"$f":" Inputs!O$26","v":0}]
[null,null,null,null,{"$f":" Inputs!E$33","v":"Real WACC CPIH deflated - BR"},{"$f":" Inputs!F$33","v":2.92E-2},{"$f":" Inputs!G$33","v":"%"}]
[null,null,null,null,"Time value of money factor - BR",null,"Factor",null,null,{"$f":"(1+$F25) ^ J24","v":1},1.122016155346969,1.0901828170879997,1.0592526399999997,1.0291999999999999,1]
[]
["REVENUE AND EXPENDITURE"]
[]
[null,null,"This compares revenue received with delivery adjusted allowed expenditure. "]
[null,null,"The delta between delivery adjusted allowed expenditure and revenues received is added to the RCV. A further time value of money adjustment is made further down in the model."]
[null,null,"Deltas between allowed expenditure and actual expenditure are dealt with in the cost sharing model"]
[null,null,"Costs and revenue are experessed in 2017/18 FYA CPIH deflated prices."]
[]
[null,null,null,null,{"$f":" Inputs!E$37","v":"Delivery adjusted allowed expenditure - WR - real"},{"$f":" Inputs!F$37","v":0},{"$f":" Inputs!G$37","v":"£m"},{"$f":" Inputs!H$37","v":0},{"$f":" Inputs!I$37","v":0},{"$f":" Inputs!J$37","v":0},{"$f":" Inputs!K$37","v":1.1168861581508514E-2},{"$f":" Inputs!L$37","v":1.8042522482557528},{"$f":" Inputs!M$37","v":2.8468251741011477},{"$f":" Inputs!N$37","v":2.0310067214371217},{"$f":" Inputs!O$37","v":2.0612917146244696}]
[null,null,null,"less:",{"$f":" Inputs!E$44","v":"Green recovery revenue received in period - WR - real"},{"$f":" Inputs!F$44","v":0},{"$f":" Inputs!G$44","v":"£m"},{"$f":" Inputs!H$44","v":0},{"$f":" Inputs!I$44","v":0},{"$f":" Inputs!J$44","v":0},{"$f":" Inputs!K$44","v":0},{"$f":" Inputs!L$44","v":0},{"$f":" Inputs!M$44","v":0},{"$f":" Inputs!N$44","v":0},{"$f":" Inputs!O$44","v":0}]
[null,null,null,null,"Net expenditure position - WR - real",null,"£m",{"$f":"SUM(J37:O37)","v":8.7545447199999984},null,{"$f":"J35-J36","v":0},1.1168861581508514E-2,1.8042522482557528,2.8468251741011477,2.0310067214371217,2.0612917146244696]
[]
[null,null,null,null,{"$f":" Inputs!E$38","v":"Delivery adjusted allowed expenditure - WN - real"},{"$f":" Inputs!F$38","v":0},{"$f":" Inputs!G$38","v":"£m"},{"$f":" Inputs!H$38","v":0},{"$f":" Inputs!I$38","v":0},{"$f":" Inputs!J$38","v":0},{"$f":" Inputs!K$38","v":9.2115033395728546E-2},{"$f":" Inputs!L$38","v":7.7737807385332669},{"$f":" Inputs!M$38","v":13.360399378448111},{"$f":" Inputs!N$38","v":12.655922490908232},{"$f":" Inputs!O$38","v":12.905697558714666}]
[null,null,null,"less:",{"$f":" Inputs!E$45","v":"Green recovery revenue received in period - WN - real"},{"$f":" Inputs!F$45","v":0},{"$f":" Inputs!G$45","v":"£m"},{"$f":" Inputs!H$45","v":0},{"$f":" Inputs!I$45","v":0},{"$f":" Inputs!J$45","v":0},{"$f":" Inputs!K$45","v":0},{"$f":" Inputs!L$45","v":0},{"$f":" Inputs!M$45","v":0},{"$f":" Inputs!N$45","v":0},{"$f":" Inputs!O$45","v":0}]
[null,null,null,null,"Net expenditure position - WN - real",null,"£m",{"$f":"SUM(J41:O41)","v":46.7879152},null,{"$f":"J39-J40","v":0},9.2115033395728546E-2,7.7737807385332669,13.360399378448111,12.655922490908232,12.905697558714666]
[]
[null,null,null,null,{"$f":" Inputs!E$39","v":"Delivery adjusted allowed expenditure - WWN - real"},{"$f":" Inputs!F$39","v":0},{"$f":" Inputs!G$39","v":"£m"},{"$f":" Inputs!H$39","v":0},{"$f":" Inputs!I$39","v":0},{"$f":" Inputs!J$39","v":0},{"$f":" Inputs!K$39","v":0},{"$f":" Inputs!L$39","v":0},{"$f":" Inputs!M$39","v":0},{"$f":" Inputs!N$39","v":0},{"$f":" Inputs!O$39","v":0}]
[null,null,null,"less:",{"$f":" Inputs!E$46","v":"Green recovery revenue received in period - WWN - real"},{"$f":" Inputs!F$46","v":0},{"$f":" Inputs!G$46","v":"£m"},{"$f":" Inputs!H$46","v":0},{"$f":" Inputs!I$46","v":0},{"$f":" Inputs!J$46","v":0},{"$f":" Inputs!K$46","v":0},{"$f":" Inputs!L$46","v":0},{"$f":" Inputs!M$46","v":0},{"$f":" Inputs!N$46","v":0},{"$f":" Inputs!O$46","v":0}]
[null,null,null,null,"Net expenditure position - WWN - real",null,"£m",{"$f":"SUM(J45:O45)","v":0},null,{"$f":"J43-J44","v":0},0,0,0,0,0]
[]
[null,null,null,null,{"$f":" Inputs!E$40","v":"Delivery adjusted allowed expenditure - BR - real"},{"$f":" Inputs!F$40","v":0},{"$f":" Inputs!G$40","v":"£m"},{"$f":" Inputs!H$40","v":0},{"$f":" Inputs!I$40","v":0},{"$f":" Inputs!J$40","v":0},{"$f":" Inputs!K$40","v":0},{"$f":" Inputs!L$40","v":0},{"$f":" Inputs!M$40","v":0},{"$f":" Inputs!N$40","v":0},{"$f":" Inputs!O$40","v":0}]
[null,null,null,"less:",{"$f":" Inputs!E$47","v":"Green recovery revenue received in period - BR - real"},{"$f":" Inputs!F$47","v":0},{"$f":" Inputs!G$47","v":"£m"},{"$f":" Inputs!H$47","v":0},{"$f":" Inputs!I$47","v":0},{"$f":" Inputs!J$47","v":0},{"$f":" Inputs!K$47","v":0},{"$f":" Inputs!L$47","v":0},{"$f":" Inputs!M$47","v":0},{"$f":" Inputs!N$47","v":0},{"$f":" Inputs!O$47","v":0}]
[null,null,null,null,"Net expenditure position - BR - real",null,"£m",{"$f":"SUM(J49:O49)","v":0},null,{"$f":"J47-J48","v":0},0,0,0,0,0]
[]
[null,null,null,null,{"$f":" E$37","v":"Net expenditure position - WR - real"},0,"£m",8.7545447199999984,0,0,1.1168861581508514E-2,1.8042522482557528,2.8468251741011477,2.0310067214371217,2.0612917146244696]
[null,null,null,null,{"$f":" E$41","v":"Net expenditure position - WN - real"},0,"£m",46.7879152,0,0,9.2115033395728546E-2,7.7737807385332669,13.360399378448111,12.655922490908232,12.905697558714666]
[null,null,null,null,{"$f":" E$45","v":"Net expenditure position - WWN - real"},0,"£m",0,0,0,0,0,0,0,0]
[null,null,null,null,{"$f":" E$49","v":"Net expenditure position - BR - real"},0,"£m",0,0,0,0,0,0,0,0]
[null,null,null,null,"RCV adjustment (pre time value of money) - WR - real",{"$f":"SUM(J51:O51)","v":8.7545447199999984},"£m"]
[null,null,null,null,"RCV adjustment (pre time value of money) - WN - real",{"$f":"SUM(J52:O52)","v":46.7879152},"£m"]
[null,null,null,null,"RCV adjustment (pre time value of money) - WWN - real",{"$f":"SUM(J53:O53)","v":0},"£m"]
[null,null,null,null,"RCV adjustment (pre time value of money) - BR - real",{"$f":"SUM(J54:O54)","v":0},"£m"]
[]
["ADJUSTMENT"]
[]
[null,null,"This adjustment multiplies the net expenditure position by the time value of money factor"]
[]
[null,"WR"]
[null,null,null,null,{"$f":" E$37","v":"Net expenditure position - WR - real"},0,"£m",8.7545447199999984,0,0,1.1168861581508514E-2,1.8042522482557528,2.8468251741011477,2.0310067214371217,2.0612917146244696]
[null,null,null,null,{"$f":" E$14","v":"Time value of money factor - WR"},0,"Factor",0,0,1,1.122016155346969,1.0901828170879997,1.0592526399999997,1.0291999999999999,1]
[null,null,null,null,"Time value of money (TVM) adjustment by year - WR - real",null,"£m",{"$f":"SUM(J67:O67)","v":0.39206263548475451},null,{"$f":"J65 * (J66-1)","v":0},1.3627815497781364E-3,0.16271255048506075,0.1686819071839519,5.9305396265963733E-2,0]
[]
[null,null,null,null,{"$f":" E$67","v":"Time value of money (TVM) adjustment by year - WR - real"},0,"£m",0.39206263548475451,0,0,1.3627815497781364E-3,0.16271255048506075,0.1686819071839519,5.9305396265963733E-2,0]
[null,null,null,null,"Total TVM adjustment - WR - real",{"$f":"SUM(K69:O69)","v":0.39206263548475451},"£m"]
[]
[null,"WN"]
[null,null,null,null,{"$f":" E$41","v":"Net expenditure position - WN - real"},0,"£m",46.7879152,0,0,9.2115033395728546E-2,7.7737807385332669,13.360399378448111,12.655922490908232,12.905697558714666]
[null,null,null,null,{"$f":" E$18","v":"Time value of money factor - WN"},0,"Factor",0,0,1,1.122016155346969,1.0901828170879997,1.0592526399999997,1.0291999999999999,1]
[null,null,null,null,"Time value of money (TVM) adjustment by year - WN - real",null,"£m",{"$f":"SUM(J75:O75)","v":1.8734928400118904},null,{"$f":"J73 * (J74-1)","v":0},1.1239522224604448E-2,0.70106144642536072,0.79163893462740631,0.369552936734519,0]
[]
[null,null,null,null,{"$f":" E$75","v":"Time value of money (TVM) adjustment by year - WN - real"},{"$f":" F$75","v":0},"£m",1.8734928400118904,0,0,1.1239522224604448E-2,0.70106144642536072,0.79163893462740631,0.369552936734519,0]
[null,null,null,null,"Total TVM adjustment - WN - real",{"$f":"SUM(K77:O77)","v":1.8734928400118904},"£m"]
[]
[null,"WWN"]
[null,null,null,null,{"$f":" E$45","v":"Net expenditure position - WWN - real"},0,"£m",0,0,0,0,0,0,0,0]
[null,null,null,null,{"$f":" E$22","v":"Time value of money factor - WWN"},{"$f":" F$22","v":0},"Factor",0,0,1,1.122016155346969,1.0901828170879997,1.0592526399999997,1.0291999999999999,1]
[null,null,null,null,"Time value of money (TVM) adjustment by year - WWN - real",null,"£m",{"$f":"SUM(J83:O83)","v":0},null,{"$f":"J81 * (J82-1)","v":0},0,0,0,0,0]
[]
[null,null,null,null,{"$f":" E$83","v":"Time value of money (TVM) adjustment by year - WWN - real"},0,"£m",0,0,0,0,0,0,0,0]
[null,null,null,null,"Total TVM adjustment - WWN - real",{"$f":"SUM(K85:O85)","v":0},"£m"]
[]
[null,"BR"]
[null,null,null,null,{"$f":" E$49","v":"Net expenditure position - BR - real"},0,"£m",0,0,0,0,0,0,0,0]
[null,null,null,null,{"$f":" E$26","v":"Time value of money factor - BR"},0,"Factor",0,0,1,1.122016155346969,1.0901828170879997,1.0592526399999997,1.0291999999999999,1]
[null,null,null,null,"Time value of money (TVM) adjustment by year - BR - real",null,"£m",{"$f":"SUM(J91:O91)","v":0},null,{"$f":"J89 * (J90-1)","v":0},0,0,0,0,0]
[]
[null,null,null,null,{"$f":" E$91","v":"Time value of money (TVM) adjustment by year - BR - real"},0,"£m",0,0,0,0,0,0,0,0]
[null,null,null,null,"Total TVM adjustment - BR - real",{"$f":"SUM(K93:O93)","v":0},"£m"]
[]
[]
["END OF SHEET"]

{"sheet":"Outputs","index":6,"n_rows":25,"n_cols":16384,"rows_kept":25,"cut":false,"hidden":false,"merged":[]}
[{"$f":" RIGHT(CELL(\"filename\", $A$1), LEN(CELL(\"filename\", $A$1)) - SEARCH(\"]\", CELL(\"filename\", $A$1)))","v":"Outputs"}]
[null,null,null,null,{"$f":"Time!E$22","v":"Model Period BEG"},null,null,null,null,{"$f":"Time!J$22","v":"2019-04-01"},{"$f":"Time!K$22","v":"2020-04-01"},{"$f":"Time!L$22","v":"2021-04-01"},{"$f":"Time!M$22","v":"2022-04-01"},{"$f":"Time!N$22","v":"2023-04-01"},{"$f":"Time!O$22","v":"2024-04-01"},{"$f":"Time!P$22","v":"2025-04-01"},{"$f":"Time!Q$22","v":"2026-04-01"},{"$f":"Time!R$22","v":"2027-04-01"},{"$f":"Time!S$22","v":"00:00:00"},{"$f":"Time!T$22","v":"00:00:00"},{"$f":"Time!U$22","v":"00:00:00"},{"$f":"Time!V$22","v":"00:00:00"},{"$f":"Time!W$22","v":"00:00:00"},{"$f":"Time!X$22","v":"00:00:00"},{"$f":"Time!Y$22","v":"00:00:00"},{"$f":"Time!Z$22","v":"00:00:00"},{"$f":"Time!AA$22","v":"00:00:00"},{"$f":"Time!AB$22","v":"00:00:00"},{"$f":"Time!AC$22","v":"00:00:00"},{"$f":"Time!AD$22","v":"00:00:00"},{"$f":"Time!AE$22","v":"00:00:00"},{"$f":"Time!AF$22","v":"00:00:00"},{"$f":"Time!AG$22","v":"00:00:00"},{"$f":"Time!AH$22","v":"00:00:00"},{"$f":"Time!AI$22","v":"00:00:00"},{"$f":"Time!AJ$22","v":"00:00:00"},{"$f":"Time!AK$22","v":"00:00:00"},{"$f":"Time!AL$22","v":"00:00:00"},{"$f":"Time!AM$22","v":"00:00:00"},{"$f":"Time!AN$22","v":"00:00:00"},{"$f":"Time!AO$22","v":"00:00:00"},{"$f":"Time!AP$22","v":"00:00:00"},{"$f":"Time!AQ$22","v":"00:00:00"},{"$f":"Time!AR$22","v":"00:00:00"},{"$f":"Time!AS$22","v":"00:00:00"},{"$f":"Time!AT$22","v":"00:00:00"},{"$f":"Time!AU$22","v":"00:00:00"},{"$f":"Time!AV$22","v":"00:00:00"},{"$f":"Time!AW$22","v":"00:00:00"},{"$f":"Time!AX$22","v":"00:00:00"},{"$f":"Time!AY$22","v":"00:00:00"},{"$f":"Time!AZ$22","v":"00:00:00"},{"$f":"Time!BA$22","v":"00:00:00"},{"$f":"Time!BB$22","v":"00:00:00"},{"$f":"Time!BC$22","v":"00:00:00"},{"$f":"Time!BD$22","v":"00:00:00"},{"$f":"Time!BE$22","v":"00:00:00"},{"$f":"Time!BF$22","v":"00:00:00"},{"$f":"Time!BG$22","v":"00:00:00"},{"$f":"Time!BH$22","v":"00:00:00"},{"$f":"Time!BI$22","v":"00:00:00"},{"$f":"Time!BJ$22","v":"00:00:00"},{"$f":"Time!BK$22","v":"00:00:00"},{"$f":"Time!BL$22","v":"00:00:00"},{"$f":"Time!BM$22","v":"00:00:00"},{"$f":"Time!BN$22","v":"00:00:00"},{"$f":"Time!BO$22","v":"00:00:00"},{"$f":"Time!BP$22","v":"00:00:00"},{"$f":"Time!BQ$22","v":"00:00:00"},{"$f":"Time!BR$22","v":"00:00:00"},{"$f":"Time!BS$22","v":"00:00:00"},{"$f":"Time!BT$22","v":"00:00:00"},{"$f":"Time!BU$22","v":"00:00:00"},{"$f":"Time!BV$22","v":"00:00:00"},{"$f":"Time!BW$22","v":"00:00:00"},{"$f":"Time!BX$22","v":"00:00:00"},{"$f":"Time!BY$22","v":"00:00:00"},{"$f":"Time!BZ$22","v":"00:00:00"},{"$f":"Time!CA$22","v":"00:00:00"},{"$f":"Time!CB$22","v":"00:00:00"},{"$f":"Time!CC$22","v":"00:00:00"},{"$f":"Time!CD$22","v":"00:00:00"},{"$f":"Time!CE$22","v":"00:00:00"},{"$f":"Time!CF$22","v":"00:00:00"},{"$f":"Time!CG$22","v":"00:00:00"},{"$f":"Time!CH$22","v":"00:00:00"},{"$f":"Time!CI$22","v":"00:00:00"},{"$f":"Time!CJ$22","v":"00:00:00"},{"$f":"Time!CK$22","v":"00:00:00"},{"$f":"Time!CL$22","v":"00:00:00"},{"$f":"Time!CM$22","v":"00:00:00"},{"$f":"Time!CN$22","v":"00:00:00"},{"$f":"Time!CO$22","v":"00:00:00"},{"$f":"Time!CP$22","v":"00:00:00"},{"$f":"Time!CQ$22","v":"00:00:00"},{"$f":"Time!CR$22","v":"00:00:00"},{"$f":"Time!CS$22","v":"00:00:00"},{"$f":"Time!CT$22","v":"00:00:00"},{"$f":"Time!CU$22","v":"00:00:00"},{"$f":"Time!CV$22","v":"00:00:00"},{"$f":"Time!CW$22","v":"00:00:00"},{"$f":"Time!CX$22","v":"00:00:00"},{"$f":"Time!CY$22","v":"00:00:00"},{"$f":"Time!CZ$22","v":"00:00:00"},{"$f":"Time!DA$22","v":"00:00:00"},{"$f":"Time!DB$22","v":"00:00:00"},{"$f":"Time!DC$22","v":"00:00:00"},{"$f":"Time!DD$22","v":"00:00:00"},{"$f":"Time!DE$22","v":"00:00:00"},{"$f":"Time!DF$22","v":"00:00:00"},{"$f":"Time!DG$22","v":"00:00:00"},{"$f":"Time!DH$22","v":"00:00:00"},{"$f":"Time!DI$22","v":"00:00:00"},{"$f":"Time!DJ$22","v":"00:00:00"},{"$f":"Time!DK$22","v":"00:00:00"},{"$f":"Time!DL$22","v":"00:00:00"},{"$f":"Time!DM$22","v":"00:00:00"},{"$f":"Time!DN$22","v":"00:00:00"},{"$f":"Time!DO$22","v":"00:00:00"},{"$f":"Time!DP$22","v":"00:00:00"},{"$f":"Time!DQ$22","v":"00:00:00"},{"$f":"Time!DR$22","v":"00:00:00"},{"$f":"Time!DS$22","v":"00:00:00"},{"$f":"Time!DT$22","v":"00:00:00"},{"$f":"Time!DU$22","v":"00:00:00"},{"$f":"Time!DV$22","v":"00:00:00"},{"$f":"Time!DW$22","v":"00:00:00"},{"$f":"Time!DX$22","v":"00:00:00"},{"$f":"Time!DY$22","v":"00:00:00"},{"$f":"Time!DZ$22","v":"00:00:00"},{"$f":"Time!EA$22","v":"00:00:00"},{"$f":"Time!EB$22","v":"00:00:00"},{"$f":"Time!EC$22","v":"00:00:00"},{"$f":"Time!ED$22","v":"00:00:00"},{"$f":"Time!EE$22","v":"00:00:00"},{"$f":"Time!EF$22","v":"00:00:00"},{"$f":"Time!EG$22","v":"00:00:00"},{"$f":"Time!EH$22","v":"00:00:00"},{"$f":"Time!EI$22","v":"00:00:00"},{"$f":"Time!EJ$22","v":"00:00:00"},{"$f":"Time!EK$22","v":"00:00:00"},{"$f":"Time!EL$22","v":"00:00:00"},{"$f":"Time!EM$22","v":"00:00:00"},{"$f":"Time!EN$22","v":"00:00:00"},{"$f":"Time!EO$22","v":"00:00:00"},{"$f":"Time!EP$22","v":"00:00:00"},{"$f":"Time!EQ$22","v":"00:00:00"},{"$f":"Time!ER$22","v":"00:00:00"},{"$f":"Time!ES$22","v":"00:00:00"},{"$f":"Time!ET$22","v":"00:00:00"},{"$f":"Time!EU$22","v":"00:00:00"},{"$f":"Time!EV$22","v":"00:00:00"},{"$f":"Time!EW$22","v":"00:00:00"},{"$f":"Time!EX$22","v":"00:00:00"},{"$f":"Time!EY$22","v":"00:00:00"},{"$f":"Time!EZ$22","v":"00:00:00"},{"$f":"Time!FA$22","v":"00:00:00"},{"$f":"Time!FB$22","v":"00:00:00"},{"$f":"Time!FC$22","v":"00:00:00"},{"$f":"Time!FD$22","v":"00:00:00"},{"$f":"Time!FE$22","v":"00:00:00"},{"$f":"Time!FF$22","v":"00:00:00"},{"$f":"Time!FG$22","v":"00:00:00"},{"$f":"Time!FH$22","v":"00:00:00"},{"$f":"Time!FI$22","v":"00:00:00"},{"$f":"Time!FJ$22","v":"00:00:00"},{"$f":"Time!FK$22","v":"00:00:00"},{"$f":"Time!FL$22","v":"00:00:00"},{"$f":"Time!FM$22","v":"00:00:00"},{"$f":"Time!FN$22","v":"00:00:00"},{"$f":"Time!FO$22","v":"00:00:00"},{"$f":"Time!FP$22","v":"00:00:00"},{"$f":"Time!FQ$22","v":"00:00:00"},{"$f":"Time!FR$22","v":"00:00:00"},{"$f":"Time!FS$22","v":"00:00:00"},{"$f":"Time!FT$22","v":"00:00:00"},{"$f":"Time!FU$22","v":"00:00:00"},{"$f":"Time!FV$22","v":"00:00:00"},{"$f":"Time!FW$22","v":"00:00:00"},{"$f":"Time!FX$22","v":"00:00:00"},{"$f":"Time!FY$22","v":"00:00:00"},{"$f":"Time!FZ$22","v":"00:00:00"},{"$f":"Time!GA$22","v":"00:00:00"},{"$f":"Time!GB$22","v":"00:00:00"},{"$f":"Time!GC$22","v":"00:00:00"},{"$f":"Time!GD$22","v":"00:00:00"},{"$f":"Time!GE$22","v":"00:00:00"},{"$f":"Time!GF$22","v":"00:00:00"},{"$f":"Time!GG$22","v":"00:00:00"},{"$f":"Time!GH$22","v":"00:00:00"},{"$f":"Time!GI$22","v":"00:00:00"},{"$f":"Time!GJ$22","v":"00:00:00"},{"$f":"Time!GK$22","v":"00:00:00"},{"$f":"Time!GL$22","v":"00:00:00"},{"$f":"Time!GM$22","v":"00:00:00"},{"$f":"Time!GN$22","v":"00:00:00"},{"$f":"Time!GO$22","v":"00:00:00"},{"$f":"Time!GP$22","v":"00:00:00"},{"$f":"Time!GQ$22","v":"00:00:00"},{"$f":"Time!GR$22","v":"00:00:00"},{"$f":"Time!GS$22","v":"00:00:00"},{"$f":"Time!GT$22","v":"00:00:00"},{"$f":"Time!GU$22","v":"00:00:00"},{"$f":"Time!GV$22","v":"00:00:00"},{"$f":"Time!GW$22","v":"00:00:00"},{"$f":"Time!GX$22","v":"00:00:00"},{"$f":"Time!GY$22","v":"00:00:00"},{"$f":"Time!GZ$22","v":"00:00:00"},{"$f":"Time!HA$22","v":"00:00:00"},{"$f":"Time!HB$22","v":"00:00:00"},{"$f":"Time!HC$22","v":"00:00:00"},{"$f":"Time!HD$22","v":"00:00:00"},{"$f":"Time!HE$22","v":"00:00:00"},{"$f":"Time!HF$22","v":"00:00:00"},{"$f":"Time!HG$22","v":"00:00:00"},{"$f":"Time!HH$22","v":"00:00:00"},{"$f":"Time!HI$22","v":"00:00:00"},{"$f":"Time!HJ$22","v":"00:00:00"},{"$f":"Time!HK$22","v":"00:00:00"},{"$f":"Time!HL$22","v":"00:00:00"},{"$f":"Time!HM$22","v":"00:00:00"},{"$f":"Time!HN$22","v":"00:00:00"},{"$f":"Time!HO$22","v":"00:00:00"},{"$f":"Time!HP$22","v":"00:00:00"},{"$f":"Time!HQ$22","v":"00:00:00"},{"$f":"Time!HR$22","v":"00:00:00"},{"$f":"Time!HS$22","v":"00:00:00"},{"$f":"Time!HT$22","v":"00:00:00"},{"$f":"Time!HU$22","v":"00:00:00"},{"$f":"Time!HV$22","v":"00:00:00"},{"$f":"Time!HW$22","v":"00:00:00"},{"$f":"Time!HX$22","v":"00:00:00"},{"$f":"Time!HY$22","v":"00:00:00"},{"$f":"Time!HZ$22","v":"00:00:00"},{"$f":"Time!IA$22","v":"00:00:00"},{"$f":"Time!IB$22","v":"00:00:00"},{"$f":"Time!IC$22","v":"00:00:00"},{"$f":"Time!ID$22","v":"00:00:00"},{"$f":"Time!IE$22","v":"00:00:00"},{"$f":"Time!IF$22","v":"00:00:00"},{"$f":"Time!IG$22","v":"00:00:00"},{"$f":"Time!IH$22","v":"00:00:00"},{"$f":"Time!II$22","v":"00:00:00"},{"$f":"Time!IJ$22","v":"00:00:00"},{"$f":"Time!IK$22","v":"00:00:00"},{"$f":"Time!IL$22","v":"00:00:00"},{"$f":"Time!IM$22","v":"00:00:00"},{"$f":"Time!IN$22","v":"00:00:00"},{"$f":"Time!IO$22","v":"00:00:00"},{"$f":"Time!IP$22","v":"00:00:00"},{"$f":"Time!IQ$22","v":"00:00:00"},{"$f":"Time!IR$22","v":"00:00:00"},{"$f":"Time!IS$22","v":"00:00:00"},{"$f":"Time!IT$22","v":"00:00:00"},{"$f":"Time!IU$22","v":"00:00:00"},{"$f":"Time!IV$22","v":"00:00:00"},{"$f":"Time!IW$22","v":"00:00:00"},{"$f":"Time!IX$22","v":"00:00:00"},{"$f":"Time!IY$22","v":"00:00:00"},{"$f":"Time!IZ$22","v":"00:00:00"},{"$f":"Time!JA$22","v":"00:00:00"},{"$f":"Time!JB$22","v":"00:00:00"},{"$f":"Time!JC$22","v":"00:00:00"},{"$f":"Time!JD$22","v":"00:00:00"},{"$f":"Time!JE$22","v":"00:00:00"},{"$f":"Time!JF$22","v":"00:00:00"},{"$f":"Time!JG$22","v":"00:00:00"},{"$f":"Time!JH$22","v":"00:00:00"},{"$f":"Time!JI$22","v":"00:00:00"},{"$f":"Time!JJ$22","v":"00:00:00"},{"$f":"Time!JK$22","v":"00:00:00"},{"$f":"Time!JL$22","v":"00:00:00"},{"$f":"Time!JM$22","v":"00:00:00"},{"$f":"Time!JN$22","v":"00:00:00"},{"$f":"Time!JO$22","v":"00:00:00"},{"$f":"Time!JP$22","v":"00:00:00"},{"$f":"Time!JQ$22","v":"00:00:00"},{"$f":"Time!JR$22","v":"00:00:00"},{"$f":"Time!JS$22","v":"00:00:00"},{"$f":"Time!JT$22","v":"00:00:00"},{"$f":"Time!JU$22","v":"00:00:00"},{"$f":"Time!JV$22","v":"00:00:00"},{"$f":"Time!JW$22","v":"00:00:00"},{"$f":"Time!JX$22","v":"00:00:00"},{"$f":"Time!JY$22","v":"00:00:00"},{"$f":"Time!JZ$22","v":"00:00:00"},{"$f":"Time!KA$22","v":"00:00:00"},{"$f":"Time!KB$22","v":"00:00:00"},{"$f":"Time!KC$22","v":"00:00:00"},{"$f":"Time!KD$22","v":"00:00:00"},{"$f":"Time!KE$22","v":"00:00:00"},{"$f":"Time!KF$22","v":"00:00:00"},{"$f":"Time!KG$22","v":"00:00:00"},{"$f":"Time!KH$22","v":"00:00:00"},{"$f":"Time!KI$22","v":"00:00:00"},{"$f":"Time!KJ$22","v":"00:00:00"},{"$f":"Time!KK$22","v":"00:00:00"},{"$f":"Time!KL$22","v":"00:00:00"},{"$f":"Time!KM$22","v":"00:00:00"},{"$f":"Time!KN$22","v":"00:00:00"},{"$f":"Time!KO$22","v":"00:00:00"},{"$f":"Time!KP$22","v":"00:00:00"},{"$f":"Time!KQ$22","v":"00:00:00"},{"$f":"Time!KR$22","v":"00:00:00"},{"$f":"Time!KS$22","v":"00:00:00"},{"$f":"Time!KT$22","v":"00:00:00"},{"$f":"Time!KU$22","v":"00:00:00"},{"$f":"Time!KV$22","v":"00:00:00"},{"$f":"Time!KW$22","v":"00:00:00"},{"$f":"Time!KX$22","v":"00:00:00"},{"$f":"Time!KY$22","v":"00:00:00"},{"$f":"Time!KZ$22","v":"00:00:00"},{"$f":"Time!LA$22","v":"00:00:00"},{"$f":"Time!LB$22","v":"00:00:00"},{"$f":"Time!LC$22","v":"00:00:00"},{"$f":"Time!LD$22","v":"00:00:00"},{"$f":"Time!LE$22","v":"00:00:00"},{"$f":"Time!LF$22","v":"00:00:00"},{"$f":"Time!LG$22","v":"00:00:00"},{"$f":"Time!LH$22","v":"00:00:00"},{"$f":"Time!LI$22","v":"00:00:00"},{"$f":"Time!LJ$22","v":"00:00:00"},{"$f":"Time!LK$22","v":"00:00:00"},{"$f":"Time!LL$22","v":"00:00:00"},{"$f":"Time!LM$22","v":"00:00:00"},{"$f":"Time!LN$22","v":"00:00:00"},{"$f":"Time!LO$22","v":"00:00:00"},{"$f":"Time!LP$22","v":"00:00:00"},{"$f":"Time!LQ$22","v":"00:00:00"},{"$f":"Time!LR$22","v":"00:00:00"},{"$f":"Time!LS$22","v":"00:00:00"},{"$f":"Time!LT$22","v":"00:00:00"},{"$f":"Time!LU$22","v":"00:00:00"},{"$f":"Time!LV$22","v":"00:00:00"},{"$f":"Time!LW$22","v":"00:00:00"},{"$f":"Time!LX$22","v":"00:00:00"},{"$f":"Time!LY$22","v":"00:00:00"},{"$f":"Time!LZ$22","v":"00:00:00"},{"$f":"Time!MA$22","v":"00:00:00"},{"$f":"Time!MB$22","v":"00:00:00"},{"$f":"Time!MC$22","v":"00:00:00"},{"$f":"Time!MD$22","v":"00:00:00"},{"$f":"Time!ME$22","v":"00:00:00"},{"$f":"Time!MF$22","v":"00:00:00"},{"$f":"Time!MG$22","v":"00:00:00"},{"$f":"Time!MH$22","v":"00:00:00"},{"$f":"Time!MI$22","v":"00:00:00"},{"$f":"Time!MJ$22","v":"00:00:00"},{"$f":"Time!MK$22","v":"00:00:00"},{"$f":"Time!ML$22","v":"00:00:00"},{"$f":"Time!MM$22","v":"00:00:00"},{"$f":"Time!MN$22","v":"00:00:00"},{"$f":"Time!MO$22","v":"00:00:00"},{"$f":"Time!MP$22","v":"00:00:00"},{"$f":"Time!MQ$22","v":"00:00:00"},{"$f":"Time!MR$22","v":"00:00:00"},{"$f":"Time!MS$22","v":"00:00:00"},{"$f":"Time!MT$22","v":"00:00:00"},{"$f":"Time!MU$22","v":"00:00:00"},{"$f":"Time!MV$22","v":"00:00:00"},{"$f":"Time!MW$22","v":"00:00:00"},{"$f":"Time!MX$22","v":"00:00:00"},{"$f":"Time!MY$22","v":"00:00:00"},{"$f":"Time!MZ$22","v":"00:00:00"},{"$f":"Time!NA$22","v":"00:00:00"},{"$f":"Time!NB$22","v":"00:00:00"},{"$f":"Time!NC$22","v":"00:00:00"},{"$f":"Time!ND$22","v":"00:00:00"},{"$f":"Time!NE$22","v":"00:00:00"},{"$f":"Time!NF$22","v":"00:00:00"},{"$f":"Time!NG$22","v":"00:00:00"},{"$f":"Time!NH$22","v":"00:00:00"},{"$f":"Time!NI$22","v":"00:00:00"},{"$f":"Time!NJ$22","v":"00:00:00"},{"$f":"Time!NK$22","v":"00:00:00"},{"$f":"Time!NL$22","v":"00:00:00"},{"$f":"Time!NM$22","v":"00:00:00"},{"$f":"Time!NN$22","v":"00:00:00"},{"$f":"Time!NO$22","v":"00:00:00"},{"$f":"Time!NP$22","v":"00:00:00"},{"$f":"Time!NQ$22","v":"00:00:00"},{"$f":"Time!NR$22","v":"00:00:00"},{"$f":"Time!NS$22","v":"00:00:00"},{"$f":"Time!NT$22","v":"00:00:00"},{"$f":"Time!NU$22","v":"00:00:00"},{"$f":"Time!NV$22","v":"00:00:00"},{"$f":"Time!NW$22","v":"00:00:00"},{"$f":"Time!NX$22","v":"00:00:00"},{"$f":"Time!NY$22","v":"00:00:00"},{"$f":"Time!NZ$22","v":"00:00:00"},{"$f":"Time!OA$22","v":"00:00:00"},{"$f":"Time!OB$22","v":"00:00:00"},{"$f":"Time!OC$22","v":"00:00:00"},{"$f":"Time!OD$22","v":"00:00:00"},{"$f":"Time!OE$22","v":"00:00:00"},{"$f":"Time!OF$22","v":"00:00:00"},{"$f":"Time!OG$22","v":"00:00:00"},{"$f":"Time!OH$22","v":"00:00:00"},{"$f":"Time!OI$22","v":"00:00:00"},{"$f":"Time!OJ$22","v":"00:00:00"},{"$f":"Time!OK$22","v":"00:00:00"},{"$f":"Time!OL$22","v":"00:00:00"},{"$f":"Time!OM$22","v":"00:00:00"},{"$f":"Time!ON$22","v":"00:00:00"},{"$f":"Time!OO$22","v":"00:00:00"},{"$f":"Time!OP$22","v":"00:00:00"},{"$f":"Time!OQ$22","v":"00:00:00"},{"$f":"Time!OR$22","v":"00:00:00"},{"$f":"Time!OS$22","v":"00:00:00"},{"$f":"Time!OT$22","v":"00:00:00"},{"$f":"Time!OU$22","v":"00:00:00"},{"$f":"Time!OV$22","v":"00:00:00"},{"$f":"Time!OW$22","v":"00:00:00"},{"$f":"Time!OX$22","v":"00:00:00"},{"$f":"Time!OY$22","v":"00:00:00"},{"$f":"Time!OZ$22","v":"00:00:00"},{"$f":"Time!PA$22","v":"00:00:00"},{"$f":"Time!PB$22","v":"00:00:00"},{"$f":"Time!PC$22","v":"00:00:00"},{"$f":"Time!PD$22","v":"00:00:00"},{"$f":"Time!PE$22","v":"00:00:00"},{"$f":"Time!PF$22","v":"00:00:00"},{"$f":"Time!PG$22","v":"00:00:00"},{"$f":"Time!PH$22","v":"00:00:00"},{"$f":"Time!PI$22","v":"00:00:00"},{"$f":"Time!PJ$22","v":"00:00:00"},{"$f":"Time!PK$22","v":"00:00:00"},{"$f":"Time!PL$22","v":"00:00:00"},{"$f":"Time!PM$22","v":"00:00:00"},{"$f":"Time!PN$22","v":"00:00:00"},{"$f":"Time!PO$22","v":"00:00:00"},{"$f":"Time!PP$22","v":"00:00:00"},{"$f":"Time!PQ$22","v":"00:00:00"},{"$f":"Time!PR$22","v":"00:00:00"},{"$f":"Time!PS$22","v":"00:00:00"},{"$f":"Time!PT$22","v":"00:00:00"},{"$f":"Time!PU$22","v":"00:00:00"},{"$f":"Time!PV$22","v":"00:00:00"},{"$f":"Time!PW$22","v":"00:00:00"},{"$f":"Time!PX$22","v":"00:00:00"},{"$f":"Time!PY$22","v":"00:00:00"},{"$f":"Time!PZ$22","v":"00:00:00"},{"$f":"Time!QA$22","v":"00:00:00"},{"$f":"Time!QB$22","v":"00:00:00"},{"$f":"Time!QC$22","v":"00:00:00"},{"$f":"Time!QD$22","v":"00:00:00"},{"$f":"Time!QE$22","v":"00:00:00"},{"$f":"Time!QF$22","v":"00:00:00"},{"$f":"Time!QG$22","v":"00:00:00"},{"$f":"Time!QH$22","v":"00:00:00"},{"$f":"Time!QI$22","v":"00:00:00"},{"$f":"Time!QJ$22","v":"00:00:00"},{"$f":"Time!QK$22","v":"00:00:00"},{"$f":"Time!QL$22","v":"00:00:00"},{"$f":"Time!QM$22","v":"00:00:00"},{"$f":"Time!QN$22","v":"00:00:00"},{"$f":"Time!QO$22","v":"00:00:00"},{"$f":"Time!QP$22","v":"00:00:00"},{"$f":"Time!QQ$22","v":"00:00:00"},{"$f":"Time!QR$22","v":"00:00:00"},{"$f":"Time!QS$22","v":"00:00:00"},{"$f":"Time!QT$22","v":"00:00:00"},{"$f":"Time!QU$22","v":"00:00:00"},{"$f":"Time!QV$22","v":"00:00:00"},{"$f":"Time!QW$22","v":"00:00:00"},{"$f":"Time!QX$22","v":"00:00:00"},{"$f":"Time!QY$22","v":"00:00:00"},{"$f":"Time!QZ$22","v":"00:00:00"},{"$f":"Time!RA$22","v":"00:00:00"},{"$f":"Time!RB$22","v":"00:00:00"},{"$f":"Time!RC$22","v":"00:00:00"},{"$f":"Time!RD$22","v":"00:00:00"},{"$f":"Time!RE$22","v":"00:00:00"},{"$f":"Time!RF$22","v":"00:00:00"},{"$f":"Time!RG$22","v":"00:00:00"},{"$f":"Time!RH$22","v":"00:00:00"},{"$f":"Time!RI$22","v":"00:00:00"},{"$f":"Time!RJ$22","v":"00:00:00"},{"$f":"Time!RK$22","v":"00:00:00"},{"$f":"Time!RL$22","v":"00:00:00"},{"$f":"Time!RM$22","v":"00:00:00"},{"$f":"Time!RN$22","v":"00:00:00"},{"$f":"Time!RO$22","v":"00:00:00"},{"$f":"Time!RP$22","v":"00:00:00"},{"$f":"Time!RQ$22","v":"00:00:00"},{"$f":"Time!RR$22","v":"00:00:00"},{"$f":"Time!RS$22","v":"00:00:00"},{"$f":"Time!RT$22","v":"00:00:00"},{"$f":"Time!RU$22","v":"00:00:00"},{"$f":"Time!RV$22","v":"00:00:00"},{"$f":"Time!RW$22","v":"00:00:00"},{"$f":"Time!RX$22","v":"00:00:00"},{"$f":"Time!RY$22","v":"00:00:00"},{"$f":"Time!RZ$22","v":"00:00:00"},{"$f":"Time!SA$22","v":"00:00:00"},{"$f":"Time!SB$22","v":"00:00:00"},{"$f":"Time!SC$22","v":"00:00:00"},{"$f":"Time!SD$22","v":"00:00:00"},{"$f":"Time!SE$22","v":"00:00:00"},{"$f":"Time!SF$22","v":"00:00:00"},{"$f":"Time!SG$22","v":"00:00:00"},{"$f":"Time!SH$22","v":"00:00:00"},{"$f":"Time!SI$22","v":"00:00:00"},{"$f":"Time!SJ$22","v":"00:00:00"},{"$f":"Time!SK$22","v":"00:00:00"},{"$f":"Time!SL$22","v":"00:00:00"},{"$f":"Time!SM$22","v":"00:00:00"},{"$f":"Time!SN$22","v":"00:00:00"},{"$f":"Time!SO$22","v":"00:00:00"},{"$f":"Time!SP$22","v":"00:00:00"},{"$f":"Time!SQ$22","v":"00:00:00"},{"$f":"Time!SR$22","v":"00:00:00"},{"$f":"Time!SS$22","v":"00:00:00"},{"$f":"Time!ST$22","v":"00:00:00"},{"$f":"Time!SU$22","v":"00:00:00"},{"$f":"Time!SV$22","v":"00:00:00"},{"$f":"Time!SW$22","v":"00:00:00"},{"$f":"Time!SX$22","v":"00:00:00"},{"$f":"Time!SY$22","v":"00:00:00"},{"$f":"Time!SZ$22","v":"00:00:00"},{"$f":"Time!TA$22","v":"00:00:00"},{"$f":"Time!TB$22","v":"00:00:00"},{"$f":"Time!TC$22","v":"00:00:00"},{"$f":"Time!TD$22","v":"00:00:00"},{"$f":"Time!TE$22","v":"00:00:00"},{"$f":"Time!TF$22","v":"00:00:00"},{"$f":"Time!TG$22","v":"00:00:00"},{"$f":"Time!TH$22","v":"00:00:00"},{"$f":"Time!TI$22","v":"00:00:00"},{"$f":"Time!TJ$22","v":"00:00:00"},{"$f":"Time!TK$22","v":"00:00:00"},{"$f":"Time!TL$22","v":"00:00:00"},{"$f":"Time!TM$22","v":"00:00:00"},{"$f":"Time!TN$22","v":"00:00:00"},{"$f":"Time!TO$22","v":"00:00:00"},{"$f":"Time!TP$22","v":"00:00:00"},{"$f":"Time!TQ$22","v":"00:00:00"},{"$f":"Time!TR$22","v":"00:00:00"},{"$f":"Time!TS$22","v":"00:00:00"},{"$f":"Time!TT$22","v":"00:00:00"},{"$f":"Time!TU$22","v":"00:00:00"},{"$f":"Time!TV$22","v":"00:00:00"},{"$f":"Time!TW$22","v":"00:00:00"},{"$f":"Time!TX$22","v":"00:00:00"},{"$f":"Time!TY$22","v":"00:00:00"},{"$f":"Time!TZ$22","v":"00:00:00"},{"$f":"Time!UA$22","v":"00:00:00"},{"$f":"Time!UB$22","v":"00:00:00"},{"$f":"Time!UC$22","v":"00:00:00"},{"$f":"Time!UD$22","v":"00:00:00"},{"$f":"Time!UE$22","v":"00:00:00"},{"$f":"Time!UF$22","v":"00:00:00"},{"$f":"Time!UG$22","v":"00:00:00"},{"$f":"Time!UH$22","v":"00:00:00"},{"$f":"Time!UI$22","v":"00:00:00"},{"$f":"Time!UJ$22","v":"00:00:00"},{"$f":"Time!UK$22","v":"00:00:00"},{"$f":"Time!UL$22","v":"00:00:00"},{"$f":"Time!UM$22","v":"00:00:00"},{"$f":"Time!UN$22","v":"00:00:00"},{"$f":"Time!UO$22","v":"00:00:00"},{"$f":"Time!UP$22","v":"00:00:00"},{"$f":"Time!UQ$22","v":"00:00:00"},{"$f":"Time!UR$22","v":"00:00:00"},{"$f":"Time!US$22","v":"00:00:00"},{"$f":"Time!UT$22","v":"00:00:00"},{"$f":"Time!UU$22","v":"00:00:00"},{"$f":"Time!UV$22","v":"00:00:00"},{"$f":"Time!UW$22","v":"00:00:00"},{"$f":"Time!UX$22","v":"00:00:00"},{"$f":"Time!UY$22","v":"00:00:00"},{"$f":"Time!UZ$22","v":"00:00:00"},{"$f":"Time!VA$22","v":"00:00:00"},{"$f":"Time!VB$22","v":"00:00:00"},{"$f":"Time!VC$22","v":"00:00:00"},{"$f":"Time!VD$22","v":"00:00:00"},{"$f":"Time!VE$22","v":"00:00:00"},{"$f":"Time!VF$22","v":"00:00:00"},{"$f":"Time!VG$22","v":"00:00:00"},{"$f":"Time!VH$22","v":"00:00:00"},{"$f":"Time!VI$22","v":"00:00:00"},{"$f":"Time!VJ$22","v":"00:00:00"},{"$f":"Time!VK$22","v":"00:00:00"},{"$f":"Time!VL$22","v":"00:00:00"},{"$f":"Time!VM$22","v":"00:00:00"},{"$f":"Time!VN$22","v":"00:00:00"},{"$f":"Time!VO$22","v":"00:00:00"},{"$f":"Time!VP$22","v":"00:00:00"},{"$f":"Time!VQ$22","v":"00:00:00"},{"$f":"Time!VR$22","v":"00:00:00"},{"$f":"Time!VS$22","v":"00:00:00"},{"$f":"Time!VT$22","v":"00:00:00"},{"$f":"Time!VU$22","v":"00:00:00"},{"$f":"Time!VV$22","v":"00:00:00"},{"$f":"Time!VW$22","v":"00:00:00"},{"$f":"Time!VX$22","v":"00:00:00"},{"$f":"Time!VY$22","v":"00:00:00"},{"$f":"Time!VZ$22","v":"00:00:00"},{"$f":"Time!WA$22","v":"00:00:00"},{"$f":"Time!WB$22","v":"00:00:00"},{"$f":"Time!WC$22","v":"00:00:00"},{"$f":"Time!WD$22","v":"00:00:00"},{"$f":"Time!WE$22","v":"00:00:00"},{"$f":"Time!WF$22","v":"00:00:00"},{"$f":"Time!WG$22","v":"00:00:00"},{"$f":"Time!WH$22","v":"00:00:00"},{"$f":"Time!WI$22","v":"00:00:00"},{"$f":"Time!WJ$22","v":"00:00:00"},{"$f":"Time!WK$22","v":"00:00:00"},{"$f":"Time!WL$22","v":"00:00:00"},{"$f":"Time!WM$22","v":"00:00:00"},{"$f":"Time!WN$22","v":"00:00:00"},{"$f":"Time!WO$22","v":"00:00:00"},{"$f":"Time!WP$22","v":"00:00:00"},{"$f":"Time!WQ$22","v":"00:00:00"},{"$f":"Time!WR$22","v":"00:00:00"},{"$f":"Time!WS$22","v":"00:00:00"},{"$f":"Time!WT$22","v":"00:00:00"},{"$f":"Time!WU$22","v":"00:00:00"},{"$f":"Time!WV$22","v":"00:00:00"},{"$f":"Time!WW$22","v":"00:00:00"},{"$f":"Time!WX$22","v":"00:00:00"},{"$f":"Time!WY$22","v":"00:00:00"},{"$f":"Time!WZ$22","v":"00:00:00"},{"$f":"Time!XA$22","v":"00:00:00"},{"$f":"Time!XB$22","v":"00:00:00"},{"$f":"Time!XC$22","v":"00:00:00"},{"$f":"Time!XD$22","v":"00:00:00"},{"$f":"Time!XE$22","v":"00:00:00"},{"$f":"Time!XF$22","v":"00:00:00"},{"$f":"Time!XG$22","v":"00:00:00"},{"$f":"Time!XH$22","v":"00:00:00"},{"$f":"Time!XI$22","v":"00:00:00"},{"$f":"Time!XJ$22","v":"00:00:00"},{"$f":"Time!XK$22","v":"00:00:00"},{"$f":"Time!XL$22","v":"00:00:00"},{"$f":"Time!XM$22","v":"00:00:00"},{"$f":"Time!XN$22","v":"00:00:00"},{"$f":"Time!XO$22","v":"00:00:00"},{"$f":"Time!XP$22","v":"00:00:00"},{"$f":"Time!XQ$22","v":"00:00:00"},{"$f":"Time!XR$22","v":"00:00:00"},{"$f":"Time!XS$22","v":"00:00:00"},{"$f":"Time!XT$22","v":"00:00:00"},{"$f":"Time!XU$22","v":"00:00:00"},{"$f":"Time!XV$22","v":"00:00:00"},{"$f":"Time!XW$22","v":"00:00:00"},{"$f":"Time!XX$22","v":"00:00:00"},{"$f":"Time!XY$22","v":"00:00:00"},{"$f":"Time!XZ$22","v":"00:00:00"},{"$f":"Time!YA$22","v":"00:00:00"},{"$f":"Time!YB$22","v":"00:00:00"},{"$f":"Time!YC$22","v":"00:00:00"},{"$f":"Time!YD$22","v":"00:00:00"},{"$f":"Time!YE$22","v":"00:00:00"},{"$f":"Time!YF$22","v":"00:00:00"},{"$f":"Time!YG$22","v":"00:00:00"},{"$f":"Time!YH$22","v":"00:00:00"},{"$f":"Time!YI$22","v":"00:00:00"},{"$f":"Time!YJ$22","v":"00:00:00"},{"$f":"Time!YK$22","v":"00:00:00"},{"$f":"Time!YL$22","v":"00:00:00"},{"$f":"Time!YM$22","v":"00:00:00"},{"$f":"Time!YN$22","v":"00:00:00"},{"$f":"Time!YO$22","v":"00:00:00"},{"$f":"Time!YP$22","v":"00:00:00"},{"$f":"Time!YQ$22","v":"00:00:00"},{"$f":"Time!YR$22","v":"00:00:00"},{"$f":"Time!YS$22","v":"00:00:00"},{"$f":"Time!YT$22","v":"00:00:00"},{"$f":"Time!YU$22","v":"00:00:00"},{"$f":"Time!YV$22","v":"00:00:00"},{"$f":"Time!YW$22","v":"00:00:00"},{"$f":"Time!YX$22","v":"00:00:00"},{"$f":"Time!YY$22","v":"00:00:00"},{"$f":"Time!YZ$22","v":"00:00:00"},{"$f":"Time!ZA$22","v":"00:00:00"},{"$f":"Time!ZB$22","v":"00:00:00"},{"$f":"Time!ZC$22","v":"00:00:00"},{"$f":"Time!ZD$22","v":"00:00:00"},{"$f":"Time!ZE$22","v":"00:00:00"},{"$f":"Time!ZF$22","v":"00:00:00"},{"$f":"Time!ZG$22","v":"00:00:00"},{"$f":"Time!ZH$22","v":"00:00:00"},{"$f":"Time!ZI$22","v":"00:00:00"},{"$f":"Time!ZJ$22","v":"00:00:00"},{"$f":"Time!ZK$22","v":"00:00:00"},{"$f":"Time!ZL$22","v":"00:00:00"},{"$f":"Time!ZM$22","v":"00:00:00"},{"$f":"Time!ZN$22","v":"00:00:00"},{"$f":"Time!ZO$22","v":"00:00:00"},{"$f":"Time!ZP$22","v":"00:00:00"},{"$f":"Time!ZQ$22","v":"00:00:00"},{"$f":"Time!ZR$22","v":"00:00:00"},{"$f":"Time!ZS$22","v":"00:00:00"},{"$f":"Time!ZT$22","v":"00:00:00"},{"$f":"Time!ZU$22","v":"00:00:00"},{"$f":"Time!ZV$22","v":"00:00:00"},{"$f":"Time!ZW$22","v":"00:00:00"},{"$f":"Time!ZX$22","v":"00:00:00"},{"$f":"Time!ZY$22","v":"00:00:00"},{"$f":"Time!ZZ$22","v":"00:00:00"},{"$f":"Time!AAA$22","v":"00:00:00"},{"$f":"Time!AAB$22","v":"00:00:00"},{"$f":"Time!AAC$22","v":"00:00:00"},{"$f":"Time!AAD$22","v":"00:00:00"},{"$f":"Time!AAE$22","v":"00:00:00"},{"$f":"Time!AAF$22","v":"00:00:00"},{"$f":"Time!AAG$22","v":"00:00:00"},{"$f":"Time!AAH$22","v":"00:00:00"},{"$f":"Time!AAI$22","v":"00:00:00"},{"$f":"Time!AAJ$22","v":"00:00:00"},{"$f":"Time!AAK$22","v":"00:00:00"},{"$f":"Time!AAL$22","v":"00:00:00"},{"$f":"Time!AAM$22","v":"00:00:00"},{"$f":"Time!AAN$22","v":"00:00:00"},{"$f":"Time!AAO$22","v":"00:00:00"},{"$f":"Time!AAP$22","v":"00:00:00"},{"$f":"Time!AAQ$22","v":"00:00:00"},{"$f":"Time!AAR$22","v":"00:00:00"},{"$f":"Time!AAS$22","v":"00:00:00"},{"$f":"Time!AAT$22","v":"00:00:00"},{"$f":"Time!AAU$22","v":"00:00:00"},{"$f":"Time!AAV$22","v":"00:00:00"},{"$f":"Time!AAW$22","v":"00:00:00"},{"$f":"Time!AAX$22","v":"00:00:00"},{"$f":"Time!AAY$22","v":"00:00:00"},{"$f":"Time!AAZ$22","v":"00:00:00"},{"$f":"Time!ABA$22","v":"00:00:00"},{"$f":"Time!ABB$22","v":"00:00:00"},{"$f":"Time!ABC$22","v":"00:00:00"},{"$f":"Time!ABD$22","v":"00:00:00"},{"$f":"Time!ABE$22","v":"00:00:00"},{"$f":"Time!ABF$22","v":"00:00:00"},{"$f":"Time!ABG$22","v":"00:00:00"},{"$f":"Time!ABH$22","v":"00:00:00"},{"$f":"Time!ABI$22","v":"00:00:00"},{"$f":"Time!ABJ$22","v":"00:00:00"},{"$f":"Time!ABK$22","v":"00:00:00"},{"$f":"Time!ABL$22","v":"00:00:00"},{"$f":"Time!ABM$22","v":"00:00:00"},{"$f":"Time!ABN$22","v":"00:00:00"},{"$f":"Time!ABO$22","v":"00:00:00"},{"$f":"Time!ABP$22","v":"00:00:00"},{"$f":"Time!ABQ$22","v":"00:00:00"},{"$f":"Time!ABR$22","v":"00:00:00"},{"$f":"Time!ABS$22","v":"00:00:00"},{"$f":"Time!ABT$22","v":"00:00:00"},{"$f":"Time!ABU$22","v":"00:00:00"},{"$f":"Time!ABV$22","v":"00:00:00"},{"$f":"Time!ABW$22","v":"00:00:00"},{"$f":"Time!ABX$22","v":"00:00:00"},{"$f":"Time!ABY$22","v":"00:00:00"},{"$f":"Time!ABZ$22","v":"00:00:00"},{"$f":"Time!ACA$22","v":"00:00:00"},{"$f":"Time!ACB$22","v":"00:00:00"},{"$f":"Time!ACC$22","v":"00:00:00"},{"$f":"Time!ACD$22","v":"00:00:00"},{"$f":"Time!ACE$22","v":"00:00:00"},{"$f":"Time!ACF$22","v":"00:00:00"},{"$f":"Time!ACG$22","v":"00:00:00"},{"$f":"Time!ACH$22","v":"00:00:00"},{"$f":"Time!ACI$22","v":"00:00:00"},{"$f":"Time!ACJ$22","v":"00:00:00"},{"$f":"Time!ACK$22","v":"00:00:00"},{"$f":"Time!ACL$22","v":"00:00:00"},{"$f":"Time!ACM$22","v":"00:00:00"},{"$f":"Time!ACN$22","v":"00:00:00"},{"$f":"Time!ACO$22","v":"00:00:00"},{"$f":"Time!ACP$22","v":"00:00:00"},{"$f":"Time!ACQ$22","v":"00:00:00"},{"$f":"Time!ACR$22","v":"00:00:00"},{"$f":"Time!ACS$22","v":"00:00:00"},{"$f":"Time!ACT$22","v":"00:00:00"},{"$f":"Time!ACU$22","v":"00:00:00"},{"$f":"Time!ACV$22","v":"00:00:00"},{"$f":"Time!ACW$22","v":"00:00:00"},{"$f":"Time!ACX$22","v":"00:00:00"},{"$f":"Time!ACY$22","v":"00:00:00"},{"$f":"Time!ACZ$22","v":"00:00:00"},{"$f":"Time!ADA$22","v":"00:00:00"},{"$f":"Time!ADB$22","v":"00:00:00"},{"$f":"Time!ADC$22","v":"00:00:00"},{"$f":"Time!ADD$22","v":"00:00:00"},{"$f":"Time!ADE$22","v":"00:00:00"},{"$f":"Time!ADF$22","v":"00:00:00"},{"$f":"Time!ADG$22","v":"00:00:00"},{"$f":"Time!ADH$22","v":"00:00:00"},{"$f":"Time!ADI$22","v":"00:00:00"},{"$f":"Time!ADJ$22","v":"00:00:00"},{"$f":"Time!ADK$22","v":"00:00:00"},{"$f":"Time!ADL$22","v":"00:00:00"},{"$f":"Time!ADM$22","v":"00:00:00"},{"$f":"Time!ADN$22","v":"00:00:00"},{"$f":"Time!ADO$22","v":"00:00:00"},{"$f":"Time!ADP$22","v":"00:00:00"},{"$f":"Time!ADQ$22","v":"00:00:00"},{"$f":"Time!ADR$22","v":"00:00:00"},{"$f":"Time!ADS$22","v":"00:00:00"},{"$f":"Time!ADT$22","v":"00:00:00"},{"$f":"Time!ADU$22","v":"00:00:00"},{"$f":"Time!ADV$22","v":"00:00:00"},{"$f":"Time!ADW$22","v":"00:00:00"},{"$f":"Time!ADX$22","v":"00:00:00"},{"$f":"Time!ADY$22","v":"00:00:00"},{"$f":"Time!ADZ$22","v":"00:00:00"},{"$f":"Time!AEA$22","v":"00:00:00"},{"$f":"Time!AEB$22","v":"00:00:00"},{"$f":"Time!AEC$22","v":"00:00:00"},{"$f":"Time!AED$22","v":"00:00:00"},{"$f":"Time!AEE$22","v":"00:00:00"},{"$f":"Time!AEF$22","v":"00:00:00"},{"$f":"Time!AEG$22","v":"00:00:00"},{"$f":"Time!AEH$22","v":"00:00:00"},{"$f":"Time!AEI$22","v":"00:00:00"},{"$f":"Time!AEJ$22","v":"00:00:00"},{"$f":"Time!AEK$22","v":"00:00:00"},{"$f":"Time!AEL$22","v":"00:00:00"},{"$f":"Time!AEM$22","v":"00:00:00"},{"$f":"Time!AEN$22","v":"00:00:00"},{"$f":"Time!AEO$22","v":"00:00:00"},{"$f":"Time!AEP$22","v":"00:00:00"},{"$f":"Time!AEQ$22","v":"00:00:00"},{"$f":"Time!AER$22","v":"00:00:00"},{"$f":"Time!AES$22","v":"00:00:00"},{"$f":"Time!AET$22","v":"00:00:00"},{"$f":"Time!AEU$22","v":"00:00:00"},{"$f":"Time!AEV$22","v":"00:00:00"},{"$f":"Time!AEW$22","v":"00:00:00"},{"$f":"Time!AEX$22","v":"00:00:00"},{"$f":"Time!AEY$22","v":"00:00:00"},{"$f":"Time!AEZ$22","v":"00:00:00"},{"$f":"Time!AFA$22","v":"00:00:00"},{"$f":"Time!AFB$22","v":"00:00:00"},{"$f":"Time!AFC$22","v":"00:00:00"},{"$f":"Time!AFD$22","v":"00:00:00"},{"$f":"Time!AFE$22","v":"00:00:00"},{"$f":"Time!AFF$22","v":"00:00:00"},{"$f":"Time!AFG$22","v":"00:00:00"},{"$f":"Time!AFH$22","v":"00:00:00"},{"$f":"Time!AFI$22","v":"00:00:00"},{"$f":"Time!AFJ$22","v":"00:00:00"},{"$f":"Time!AFK$22","v":"00:00:00"},{"$f":"Time!AFL$22","v":"00:00:00"},{"$f":"Time!AFM$22","v":"00:00:00"},{"$f":"Time!AFN$22","v":"00:00:00"},{"$f":"Time!AFO$22","v":"00:00:00"},{"$f":"Time!AFP$22","v":"00:00:00"},{"$f":"Time!AFQ$22","v":"00:00:00"},{"$f":"Time!AFR$22","v":"00:00:00"},{"$f":"Time!AFS$22","v":"00:00:00"},{"$f":"Time!AFT$22","v":"00:00:00"},{"$f":"Time!AFU$22","v":"00:00:00"},{"$f":"Time!AFV$22","v":"00:00:00"},{"$f":"Time!AFW$22","v":"00:00:00"},{"$f":"Time!AFX$22","v":"00:00:00"},{"$f":"Time!AFY$22","v":"00:00:00"},{"$f":"Time!AFZ$22","v":"00:00:00"},{"$f":"Time!AGA$22","v":"00:00:00"},{"$f":"Time!AGB$22","v":"00:00:00"},{"$f":"Time!AGC$22","v":"00:00:00"},{"$f":"Time!AGD$22","v":"00:00:00"},{"$f":"Time!AGE$22","v":"00:00:00"},{"$f":"Time!AGF$22","v":"00:00:00"},{"$f":"Time!AGG$22","v":"00:00:00"},{"$f":"Time!AGH$22","v":"00:00:00"},{"$f":"Time!AGI$22","v":"00:00:00"},{"$f":"Time!AGJ$22","v":"00:00:00"},{"$f":"Time!AGK$22","v":"00:00:00"},{"$f":"Time!AGL$22","v":"00:00:00"},{"$f":"Time!AGM$22","v":"00:00:00"},{"$f":"Time!AGN$22","v":"00:00:00"},{"$f":"Time!AGO$22","v":"00:00:00"},{"$f":"Time!AGP$22","v":"00:00:00"},{"$f":"Time!AGQ$22","v":"00:00:00"},{"$f":"Time!AGR$22","v":"00:00:00"},{"$f":"Time!AGS$22","v":"00:00:00"},{"$f":"Time!AGT$22","v":"00:00:00"},{"$f":"Time!AGU$22","v":"00:00:00"},{"$f":"Time!AGV$22","v":"00:00:00"},{"$f":"Time!AGW$22","v":"00:00:00"},{"$f":"Time!AGX$22","v":"00:00:00"},{"$f":"Time!AGY$22","v":"00:00:00"},{"$f":"Time!AGZ$22","v":"00:00:00"},{"$f":"Time!AHA$22","v":"00:00:00"},{"$f":"Time!AHB$22","v":"00:00:00"},{"$f":"Time!AHC$22","v":"00:00:00"},{"$f":"Time!AHD$22","v":"00:00:00"},{"$f":"Time!AHE$22","v":"00:00:00"},{"$f":"Time!AHF$22","v":"00:00:00"},{"$f":"Time!AHG$22","v":"00:00:00"},{"$f":"Time!AHH$22","v":"00:00:00"},{"$f":"Time!AHI$22","v":"00:00:00"},{"$f":"Time!AHJ$22","v":"00:00:00"},{"$f":"Time!AHK$22","v":"00:00:00"},{"$f":"Time!AHL$22","v":"00:00:00"},{"$f":"Time!AHM$22","v":"00:00:00"},{"$f":"Time!AHN$22","v":"00:00:00"},{"$f":"Time!AHO$22","v":"00:00:00"},{"$f":"Time!AHP$22","v":"00:00:00"},{"$f":"Time!AHQ$22","v":"00:00:00"},{"$f":"Time!AHR$22","v":"00:00:00"},{"$f":"Time!AHS$22","v":"00:00:00"},{"$f":"Time!AHT$22","v":"00:00:00"},{"$f":"Time!AHU$22","v":"00:00:00"},{"$f":"Time!AHV$22","v":"00:00:00"},{"$f":"Time!AHW$22","v":"00:00:00"},{"$f":"Time!AHX$22","v":"00:00:00"},{"$f":"Time!AHY$22","v":"00:00:00"},{"$f":"Time!AHZ$22","v":"00:00:00"},{"$f":"Time!AIA$22","v":"00:00:00"},{"$f":"Time!AIB$22","v":"00:00:00"},{"$f":"Time!AIC$22","v":"00:00:00"},{"$f":"Time!AID$22","v":"00:00:00"},{"$f":"Time!AIE$22","v":"00:00:00"},{"$f":"Time!AIF$22","v":"00:00:00"},{"$f":"Time!AIG$22","v":"00:00:00"},{"$f":"Time!AIH$22","v":"00:00:00"},{"$f":"Time!AII$22","v":"00:00:00"},{"$f":"Time!AIJ$22","v":"00:00:00"},{"$f":"Time!AIK$22","v":"00:00:00"},{"$f":"Time!AIL$22","v":"00:00:00"},{"$f":"Time!AIM$22","v":"00:00:00"},{"$f":"Time!AIN$22","v":"00:00:00"},{"$f":"Time!AIO$22","v":"00:00:00"},{"$f":"Time!AIP$22","v":"00:00:00"},{"$f":"Time!AIQ$22","v":"00:00:00"},{"$f":"Time!AIR$22","v":"00:00:00"},{"$f":"Time!AIS$22","v":"00:00:00"},{"$f":"Time!AIT$22","v":"00:00:00"},{"$f":"Time!AIU$22","v":"00:00:00"},{"$f":"Time!AIV$22","v":"00:00:00"},{"$f":"Time!AIW$22","v":"00:00:00"},{"$f":"Time!AIX$22","v":"00:00:00"},{"$f":"Time!AIY$22","v":"00:00:00"},{"$f":"Time!AIZ$22","v":"00:00:00"},{"$f":"Time!AJA$22","v":"00:00:00"},{"$f":"Time!AJB$22","v":"00:00:00"},{"$f":"Time!AJC$22","v":"00:00:00"},{"$f":"Time!AJD$22","v":"00:00:00"},{"$f":"Time!AJE$22","v":"00:00:00"},{"$f":"Time!AJF$22","v":"00:00:00"},{"$f":"Time!AJG$22","v":"00:00:00"},{"$f":"Time!AJH$22","v":"00:00:00"},{"$f":"Time!AJI$22","v":"00:00:00"},{"$f":"Time!AJJ$22","v":"00:00:00"},{"$f":"Time!AJK$22","v":"00:00:00"},{"$f":"Time!AJL$22","v":"00:00:00"},{"$f":"Time!AJM$22","v":"00:00:00"},{"$f":"Time!AJN$22","v":"00:00:00"},{"$f":"Time!AJO$22","v":"00:00:00"},{"$f":"Time!AJP$22","v":"00:00:00"},{"$f":"Time!AJQ$22","v":"00:00:00"},{"$f":"Time!AJR$22","v":"00:00:00"},{"$f":"Time!AJS$22","v":"00:00:00"},{"$f":"Time!AJT$22","v":"00:00:00"},{"$f":"Time!AJU$22","v":"00:00:00"},{"$f":"Time!AJV$22","v":"00:00:00"},{"$f":"Time!AJW$22","v":"00:00:00"},{"$f":"Time!AJX$22","v":"00:00:00"},{"$f":"Time!AJY$22","v":"00:00:00"},{"$f":"Time!AJZ$22","v":"00:00:00"},{"$f":"Time!AKA$22","v":"00:00:00"},{"$f":"Time!AKB$22","v":"00:00:00"},{"$f":"Time!AKC$22","v":"00:00:00"},{"$f":"Time!AKD$22","v":"00:00:00"},{"$f":"Time!AKE$22","v":"00:00:00"},{"$f":"Time!AKF$22","v":"00:00:00"},{"$f":"Time!AKG$22","v":"00:00:00"},{"$f":"Time!AKH$22","v":"00:00:00"},{"$f":"Time!AKI$22","v":"00:00:00"},{"$f":"Time!AKJ$22","v":"00:00:00"},{"$f":"Time!AKK$22","v":"00:00:00"},{"$f":"Time!AKL$22","v":"00:00:00"},{"$f":"Time!AKM$22","v":"00:00:00"},{"$f":"Time!AKN$22","v":"00:00:00"},{"$f":"Time!AKO$22","v":"00:00:00"},{"$f":"Time!AKP$22","v":"00:00:00"},{"$f":"Time!AKQ$22","v":"00:00:00"},{"$f":"Time!AKR$22","v":"00:00:00"},{"$f":"Time!AKS$22","v":"00:00:00"},{"$f":"Time!AKT$22","v":"00:00:00"},{"$f":"Time!AKU$22","v":"00:00:00"},{"$f":"Time!AKV$22","v":"00:00:00"},{"$f":"Time!AKW$22","v":"00:00:00"},{"$f":"Time!AKX$22","v":"00:00:00"},{"$f":"Time!AKY$22","v":"00:00:00"},{"$f":"Time!AKZ$22","v":"00:00:00"},{"$f":"Time!ALA$22","v":"00:00:00"},{"$f":"Time!ALB$22","v":"00:00:00"},{"$f":"Time!ALC$22","v":"00:00:00"},{"$f":"Time!ALD$22","v":"00:00:00"},{"$f":"Time!ALE$22","v":"00:00:00"},{"$f":"Time!ALF$22","v":"00:00:00"},{"$f":"Time!ALG$22","v":"00:00:00"},{"$f":"Time!ALH$22","v":"00:00:00"},{"$f":"Time!ALI$22","v":"00:00:00"},{"$f":"Time!ALJ$22","v":"00:00:00"},{"$f":"Time!ALK$22","v":"00:00:00"},{"$f":"Time!ALL$22","v":"00:00:00"},{"$f":"Time!ALM$22","v":"00:00:00"},{"$f":"Time!ALN$22","v":"00:00:00"},{"$f":"Time!ALO$22","v":"00:00:00"},{"$f":"Time!ALP$22","v":"00:00:00"},{"$f":"Time!ALQ$22","v":"00:00:00"},{"$f":"Time!ALR$22","v":"00:00:00"},{"$f":"Time!ALS$22","v":"00:00:00"},{"$f":"Time!ALT$22","v":"00:00:00"},{"$f":"Time!ALU$22","v":"00:00:00"},{"$f":"Time!ALV$22","v":"00:00:00"},{"$f":"Time!ALW$22","v":"00:00:00"},{"$f":"Time!ALX$22","v":"00:00:00"},{"$f":"Time!ALY$22","v":"00:00:00"},{"$f":"Time!ALZ$22","v":"00:00:00"},{"$f":"Time!AMA$22","v":"00:00:00"},{"$f":"Time!AMB$22","v":"00:00:00"},{"$f":"Time!AMC$22","v":"00:00:00"},{"$f":"Time!AMD$22","v":"00:00:00"},{"$f":"Time!AME$22","v":"00:00:00"},{"$f":"Time!AMF$22","v":"00:00:00"},{"$f":"Time!AMG$22","v":"00:00:00"},{"$f":"Time!AMH$22","v":"00:00:00"},{"$f":"Time!AMI$22","v":"00:00:00"},{"$f":"Time!AMJ$22","v":"00:00:00"},{"$f":"Time!AMK$22","v":"00:00:00"},{"$f":"Time!AML$22","v":"00:00:00"},{"$f":"Time!AMM$22","v":"00:00:00"},{"$f":"Time!AMN$22","v":"00:00:00"},{"$f":"Time!AMO$22","v":"00:00:00"},{"$f":"Time!AMP$22","v":"00:00:00"},{"$f":"Time!AMQ$22","v":"00:00:00"},{"$f":"Time!AMR$22","v":"00:00:00"},{"$f":"Time!AMS$22","v":"00:00:00"},{"$f":"Time!AMT$22","v":"00:00:00"},{"$f":"Time!AMU$22","v":"00:00:00"},{"$f":"Time!AMV$22","v":"00:00:00"},{"$f":"Time!AMW$22","v":"00:00:00"},{"$f":"Time!AMX$22","v":"00:00:00"},{"$f":"Time!AMY$22","v":"00:00:00"},{"$f":"Time!AMZ$22","v":"00:00:00"},{"$f":"Time!ANA$22","v":"00:00:00"},{"$f":"Time!ANB$22","v":"00:00:00"},{"$f":"Time!ANC$22","v":"00:00:00"},{"$f":"Time!AND$22","v":"00:00:00"},{"$f":"Time!ANE$22","v":"00:00:00"},{"$f":"Time!ANF$22","v":"00:00:00"},{"$f":"Time!ANG$22","v":"00:00:00"},{"$f":"Time!ANH$22","v":"00:00:00"},{"$f":"Time!ANI$22","v":"00:00:00"},{"$f":"Time!ANJ$22","v":"00:00:00"},{"$f":"Time!ANK$22","v":"00:00:00"},{"$f":"Time!ANL$22","v":"00:00:00"},{"$f":"Time!ANM$22","v":"00:00:00"},{"$f":"Time!ANN$22","v":"00:00:00"},{"$f":"Time!ANO$22","v":"00:00:00"},{"$f":"Time!ANP$22","v":"00:00:00"},{"$f":"Time!ANQ$22","v":"00:00:00"},{"$f":"Time!ANR$22","v":"00:00:00"},{"$f":"Time!ANS$22","v":"00:00:00"},{"$f":"Time!ANT$22","v":"00:00:00"},{"$f":"Time!ANU$22","v":"00:00:00"},{"$f":"Time!ANV$22","v":"00:00:00"},{"$f":"Time!ANW$22","v":"00:00:00"},{"$f":"Time!ANX$22","v":"00:00:00"},{"$f":"Time!ANY$22","v":"00:00:00"},{"$f":"Time!ANZ$22","v":"00:00:00"},{"$f":"Time!AOA$22","v":"00:00:00"},{"$f":"Time!AOB$22","v":"00:00:00"},{"$f":"Time!AOC$22","v":"00:00:00"},{"$f":"Time!AOD$22","v":"00:00:00"},{"$f":"Time!AOE$22","v":"00:00:00"},{"$f":"Time!AOF$22","v":"00:00:00"},{"$f":"Time!AOG$22","v":"00:00:00"},{"$f":"Time!AOH$22","v":"00:00:00"},{"$f":"Time!AOI$22","v":"00:00:00"},{"$f":"Time!AOJ$22","v":"00:00:00"},{"$f":"Time!AOK$22","v":"00:00:00"},{"$f":"Time!AOL$22","v":"00:00:00"},{"$f":"Time!AOM$22","v":"00:00:00"},{"$f":"Time!AON$22","v":"00:00:00"},{"$f":"Time!AOO$22","v":"00:00:00"},{"$f":"Time!AOP$22","v":"00:00:00"},{"$f":"Time!AOQ$22","v":"00:00:00"},{"$f":"Time!AOR$22","v":"00:00:00"},{"$f":"Time!AOS$22","v":"00:00:00"},{"$f":"Time!AOT$22","v":"00:00:00"},{"$f":"Time!AOU$22","v":"00:00:00"},{"$f":"Time!AOV$22","v":"00:00:00"},{"$f":"Time!AOW$22","v":"00:00:00"},{"$f":"Time!AOX$22","v":"00:00:00"},{"$f":"Time!AOY$22","v":"00:00:00"},{"$f":"Time!AOZ$22","v":"00:00:00"},{"$f":"Time!APA$22","v":"00:00:00"},{"$f":"Time!APB$22","v":"00:00:00"},{"$f":"Time!APC$22","v":"00:00:00"},{"$f":"Time!APD$22","v":"00:00:00"},{"$f":"Time!APE$22","v":"00:00:00"},{"$f":"Time!APF$22","v":"00:00:00"},{"$f":"Time!APG$22","v":"00:00:00"},{"$f":"Time!APH$22","v":"00:00:00"},{"$f":"Time!API$22","v":"00:00:00"},{"$f":"Time!APJ$22","v":"00:00:00"},{"$f":"Time!APK$22","v":"00:00:00"},{"$f":"Time!APL$22","v":"00:00:00"},{"$f":"Time!APM$22","v":"00:00:00"},{"$f":"Time!APN$22","v":"00:00:00"},{"$f":"Time!APO$22","v":"00:00:00"},{"$f":"Time!APP$22","v":"00:00:00"},{"$f":"Time!APQ$22","v":"00:00:00"},{"$f":"Time!APR$22","v":"00:00:00"},{"$f":"Time!APS$22","v":"00:00:00"},{"$f":"Time!APT$22","v":"00:00:00"},{"$f":"Time!APU$22","v":"00:00:00"},{"$f":"Time!APV$22","v":"00:00:00"},{"$f":"Time!APW$22","v":"00:00:00"},{"$f":"Time!APX$22","v":"00:00:00"},{"$f":"Time!APY$22","v":"00:00:00"},{"$f":"Time!APZ$22","v":"00:00:00"},{"$f":"Time!AQA$22","v":"00:00:00"},{"$f":"Time!AQB$22","v":"00:00:00"},{"$f":"Time!AQC$22","v":"00:00:00"},{"$f":"Time!AQD$22","v":"00:00:00"},{"$f":"Time!AQE$22","v":"00:00:00"},{"$f":"Time!AQF$22","v":"00:00:00"},{"$f":"Time!AQG$22","v":"00:00:00"},{"$f":"Time!AQH$22","v":"00:00:00"},{"$f":"Time!AQI$22","v":"00:00:00"},{"$f":"Time!AQJ$22","v":"00:00:00"},{"$f":"Time!AQK$22","v":"00:00:00"},{"$f":"Time!AQL$22","v":"00:00:00"},{"$f":"Time!AQM$22","v":"00:00:00"},{"$f":"Time!AQN$22","v":"00:00:00"},{"$f":"Time!AQO$22","v":"00:00:00"},{"$f":"Time!AQP$22","v":"00:00:00"},{"$f":"Time!AQQ$22","v":"00:00:00"},{"$f":"Time!AQR$22","v":"00:00:00"},{"$f":"Time!AQS$22","v":"00:00:00"},{"$f":"Time!AQT$22","v":"00:00:00"},{"$f":"Time!AQU$22","v":"00:00:00"},{"$f":"Time!AQV$22","v":"00:00:00"},{"$f":"Time!AQW$22","v":"00:00:00"},{"$f":"Time!AQX$22","v":"00:00:00"},{"$f":"Time!AQY$22","v":"00:00:00"},{"$f":"Time!AQZ$22","v":"00:00:00"},{"$f":"Time!ARA$22","v":"00:00:00"},{"$f":"Time!ARB$22","v":"00:00:00"},{"$f":"Time!ARC$22","v":"00:00:00"},{"$f":"Time!ARD$22","v":"00:00:00"},{"$f":"Time!ARE$22","v":"00:00:00"},{"$f":"Time!ARF$22","v":"00:00:00"},{"$f":"Time!ARG$22","v":"00:00:00"},{"$f":"Time!ARH$22","v":"00:00:00"},{"$f":"Time!ARI$22","v":"00:00:00"},{"$f":"Time!ARJ$22","v":"00:00:00"},{"$f":"Time!ARK$22","v":"00:00:00"},{"$f":"Time!ARL$22","v":"00:00:00"},{"$f":"Time!ARM$22","v":"00:00:00"},{"$f":"Time!ARN$22","v":"00:00:00"},{"$f":"Time!ARO$22","v":"00:00:00"},{"$f":"Time!ARP$22","v":"00:00:00"},{"$f":"Time!ARQ$22","v":"00:00:00"},{"$f":"Time!ARR$22","v":"00:00:00"},{"$f":"Time!ARS$22","v":"00:00:00"},{"$f":"Time!ART$22","v":"00:00:00"},{"$f":"Time!ARU$22","v":"00:00:00"},{"$f":"Time!ARV$22","v":"00:00:00"},{"$f":"Time!ARW$22","v":"00:00:00"},{"$f":"Time!ARX$22","v":"00:00:00"},{"$f":"Time!ARY$22","v":"00:00:00"},{"$f":"Time!ARZ$22","v":"00:00:00"},{"$f":"Time!ASA$22","v":"00:00:00"},{"$f":"Time!ASB$22","v":"00:00:00"},{"$f":"Time!ASC$22","v":"00:00:00"},{"$f":"Time!ASD$22","v":"00:00:00"},{"$f":"Time!ASE$22","v":"00:00:00"},{"$f":"Time!ASF$22","v":"00:00:00"},{"$f":"Time!ASG$22","v":"00:00:00"},{"$f":"Time!ASH$22","v":"00:00:00"},{"$f":"Time!ASI$22","v":"00:00:00"},{"$f":"Time!ASJ$22","v":"00:00:00"},{"$f":"Time!ASK$22","v":"00:00:00"},{"$f":"Time!ASL$22","v":"00:00:00"},{"$f":"Time!ASM$22","v":"00:00:00"},{"$f":"Time!ASN$22","v":"00:00:00"},{"$f":"Time!ASO$22","v":"00:00:00"},{"$f":"Time!ASP$22","v":"00:00:00"},{"$f":"Time!ASQ$22","v":"00:00:00"},{"$f":"Time!ASR$22","v":"00:00:00"},{"$f":"Time!ASS$22","v":"00:00:00"},{"$f":"Time!AST$22","v":"00:00:00"},{"$f":"Time!ASU$22","v":"00:00:00"},{"$f":"Time!ASV$22","v":"00:00:00"},{"$f":"Time!ASW$22","v":"00:00:00"},{"$f":"Time!ASX$22","v":"00:00:00"},{"$f":"Time!ASY$22","v":"00:00:00"},{"$f":"Time!ASZ$22","v":"00:00:00"},{"$f":"Time!ATA$22","v":"00:00:00"},{"$f":"Time!ATB$22","v":"00:00:00"},{"$f":"Time!ATC$22","v":"00:00:00"},{"$f":"Time!ATD$22","v":"00:00:00"},{"$f":"Time!ATE$22","v":"00:00:00"},{"$f":"Time!ATF$22","v":"00:00:00"},{"$f":"Time!ATG$22","v":"00:00:00"},{"$f":"Time!ATH$22","v":"00:00:00"},{"$f":"Time!ATI$22","v":"00:00:00"},{"$f":"Time!ATJ$22","v":"00:00:00"},{"$f":"Time!ATK$22","v":"00:00:00"},{"$f":"Time!ATL$22","v":"00:00:00"},{"$f":"Time!ATM$22","v":"00:00:00"},{"$f":"Time!ATN$22","v":"00:00:00"},{"$f":"Time!ATO$22","v":"00:00:00"},{"$f":"Time!ATP$22","v":"00:00:00"},{"$f":"Time!ATQ$22","v":"00:00:00"},{"$f":"Time!ATR$22","v":"00:00:00"},{"$f":"Time!ATS$22","v":"00:00:00"},{"$f":"Time!ATT$22","v":"00:00:00"},{"$f":"Time!ATU$22","v":"00:00:00"},{"$f":"Time!ATV$22","v":"00:00:00"},{"$f":"Time!ATW$22","v":"00:00:00"},{"$f":"Time!ATX$22","v":"00:00:00"},{"$f":"Time!ATY$22","v":"00:00:00"},{"$f":"Time!ATZ$22","v":"00:00:00"},{"$f":"Time!AUA$22","v":"00:00:00"},{"$f":"Time!AUB$22","v":"00:00:00"},{"$f":"Time!AUC$22","v":"00:00:00"},{"$f":"Time!AUD$22","v":"00:00:00"},{"$f":"Time!AUE$22","v":"00:00:00"},{"$f":"Time!AUF$22","v":"00:00:00"},{"$f":"Time!AUG$22","v":"00:00:00"},{"$f":"Time!AUH$22","v":"00:00:00"},{"$f":"Time!AUI$22","v":"00:00:00"},{"$f":"Time!AUJ$22","v":"00:00:00"},{"$f":"Time!AUK$22","v":"00:00:00"},{"$f":"Time!AUL$22","v":"00:00:00"},{"$f":"Time!AUM$22","v":"00:00:00"},{"$f":"Time!AUN$22","v":"00:00:00"},{"$f":"Time!AUO$22","v":"00:00:00"},{"$f":"Time!AUP$22","v":"00:00:00"},{"$f":"Time!AUQ$22","v":"00:00:00"},{"$f":"Time!AUR$22","v":"00:00:00"},{"$f":"Time!AUS$22","v":"00:00:00"},{"$f":"Time!AUT$22","v":"00:00:00"},{"$f":"Time!AUU$22","v":"00:00:00"},{"$f":"Time!AUV$22","v":"00:00:00"},{"$f":"Time!AUW$22","v":"00:00:00"},{"$f":"Time!AUX$22","v":"00:00:00"},{"$f":"Time!AUY$22","v":"00:00:00"},{"$f":"Time!AUZ$22","v":"00:00:00"},{"$f":"Time!AVA$22","v":"00:00:00"},{"$f":"Time!AVB$22","v":"00:00:00"},{"$f":"Time!AVC$22","v":"00:00:00"},{"$f":"Time!AVD$22","v":"00:00:00"},{"$f":"Time!AVE$22","v":"00:00:00"},{"$f":"Time!AVF$22","v":"00:00:00"},{"$f":"Time!AVG$22","v":"00:00:00"},{"$f":"Time!AVH$22","v":"00:00:00"},{"$f":"Time!AVI$22","v":"00:00:00"},{"$f":"Time!AVJ$22","v":"00:00:00"},{"$f":"Time!AVK$22","v":"00:00:00"},{"$f":"Time!AVL$22","v":"00:00:00"},{"$f":"Time!AVM$22","v":"00:00:00"},{"$f":"Time!AVN$22","v":"00:00:00"},{"$f":"Time!AVO$22","v":"00:00:00"},{"$f":"Time!AVP$22","v":"00:00:00"},{"$f":"Time!AVQ$22","v":"00:00:00"},{"$f":"Time!AVR$22","v":"00:00:00"},{"$f":"Time!AVS$22","v":"00:00:00"},{"$f":"Time!AVT$22","v":"00:00:00"},{"$f":"Time!AVU$22","v":"00:00:00"},{"$f":"Time!AVV$22","v":"00:00:00"},{"$f":"Time!AVW$22","v":"00:00:00"},{"$f":"Time!AVX$22","v":"00:00:00"},{"$f":"Time!AVY$22","v":"00:00:00"},{"$f":"Time!AVZ$22","v":"00:00:00"},{"$f":"Time!AWA$22","v":"00:00:00"},{"$f":"Time!AWB$22","v":"00:00:00"},{"$f":"Time!AWC$22","v":"00:00:00"},{"$f":"Time!AWD$22","v":"00:00:00"},{"$f":"Time!AWE$22","v":"00:00:00"},{"$f":"Time!AWF$22","v":"00:00:00"},{"$f":"Time!AWG$22","v":"00:00:00"},{"$f":"Time!AWH$22","v":"00:00:00"},{"$f":"Time!AWI$22","v":"00:00:00"},{"$f":"Time!AWJ$22","v":"00:00:00"},{"$f":"Time!AWK$22","v":"00:00:00"},{"$f":"Time!AWL$22","v":"00:00:00"},{"$f":"Time!AWM$22","v":"00:00:00"},{"$f":"Time!AWN$22","v":"00:00:00"},{"$f":"Time!AWO$22","v":"00:00:00"},{"$f":"Time!AWP$22","v":"00:00:00"},{"$f":"Time!AWQ$22","v":"00:00:00"},{"$f":"Time!AWR$22","v":"00:00:00"},{"$f":"Time!AWS$22","v":"00:00:00"},{"$f":"Time!AWT$22","v":"00:00:00"},{"$f":"Time!AWU$22","v":"00:00:00"},{"$f":"Time!AWV$22","v":"00:00:00"},{"$f":"Time!AWW$22","v":"00:00:00"},{"$f":"Time!AWX$22","v":"00:00:00"},{"$f":"Time!AWY$22","v":"00:00:00"},{"$f":"Time!AWZ$22","v":"00:00:00"},{"$f":"Time!AXA$22","v":"00:00:00"},{"$f":"Time!AXB$22","v":"00:00:00"},{"$f":"Time!AXC$22","v":"00:00:00"},{"$f":"Time!AXD$22","v":"00:00:00"},{"$f":"Time!AXE$22","v":"00:00:00"},{"$f":"Time!AXF$22","v":"00:00:00"},{"$f":"Time!AXG$22","v":"00:00:00"},{"$f":"Time!AXH$22","v":"00:00:00"},{"$f":"Time!AXI$22","v":"00:00:00"},{"$f":"Time!AXJ$22","v":"00:00:00"},{"$f":"Time!AXK$22","v":"00:00:00"},{"$f":"Time!AXL$22","v":"00:00:00"},{"$f":"Time!AXM$22","v":"00:00:00"},{"$f":"Time!AXN$22","v":"00:00:00"},{"$f":"Time!AXO$22","v":"00:00:00"},{"$f":"Time!AXP$22","v":"00:00:00"},{"$f":"Time!AXQ$22","v":"00:00:00"},{"$f":"Time!AXR$22","v":"00:00:00"},{"$f":"Time!AXS$22","v":"00:00:00"},{"$f":"Time!AXT$22","v":"00:00:00"},{"$f":"Time!AXU$22","v":"00:00:00"},{"$f":"Time!AXV$22","v":"00:00:00"},{"$f":"Time!AXW$22","v":"00:00:00"},{"$f":"Time!AXX$22","v":"00:00:00"},{"$f":"Time!AXY$22","v":"00:00:00"},{"$f":"Time!AXZ$22","v":"00:00:00"},{"$f":"Time!AYA$22","v":"00:00:00"},{"$f":"Time!AYB$22","v":"00:00:00"},{"$f":"Time!AYC$22","v":"00:00:00"},{"$f":"Time!AYD$22","v":"00:00:00"},{"$f":"Time!AYE$22","v":"00:00:00"},{"$f":"Time!AYF$22","v":"00:00:00"},{"$f":"Time!AYG$22","v":"00:00:00"},{"$f":"Time!AYH$22","v":"00:00:00"},{"$f":"Time!AYI$22","v":"00:00:00"},{"$f":"Time!AYJ$22","v":"00:00:00"},{"$f":"Time!AYK$22","v":"00:00:00"},{"$f":"Time!AYL$22","v":"00:00:00"},{"$f":"Time!AYM$22","v":"00:00:00"},{"$f":"Time!AYN$22","v":"00:00:00"},{"$f":"Time!AYO$22","v":"00:00:00"},{"$f":"Time!AYP$22","v":"00:00:00"},{"$f":"Time!AYQ$22","v":"00:00:00"},{"$f":"Time!AYR$22","v":"00:00:00"},{"$f":"Time!AYS$22","v":"00:00:00"},{"$f":"Time!AYT$22","v":"00:00:00"},{"$f":"Time!AYU$22","v":"00:00:00"},{"$f":"Time!AYV$22","v":"00:00:00"},{"$f":"Time!AYW$22","v":"00:00:00"},{"$f":"Time!AYX$22","v":"00:00:00"},{"$f":"Time!AYY$22","v":"00:00:00"},{"$f":"Time!AYZ$22","v":"00:00:00"},{"$f":"Time!AZA$22","v":"00:00:00"},{"$f":"Time!AZB$22","v":"00:00:00"},{"$f":"Time!AZC$22","v":"00:00:00"},{"$f":"Time!AZD$22","v":"00:00:00"},{"$f":"Time!AZE$22","v":"00:00:00"},{"$f":"Time!AZF$22","v":"00:00:00"},{"$f":"Time!AZG$22","v":"00:00:00"},{"$f":"Time!AZH$22","v":"00:00:00"},{"$f":"Time!AZI$22","v":"00:00:00"},{"$f":"Time!AZJ$22","v":"00:00:00"},{"$f":"Time!AZK$22","v":"00:00:00"},{"$f":"Time!AZL$22","v":"00:00:00"},{"$f":"Time!AZM$22","v":"00:00:00"},{"$f":"Time!AZN$22","v":"00:00:00"},{"$f":"Time!AZO$22","v":"00:00:00"},{"$f":"Time!AZP$22","v":"00:00:00"},{"$f":"Time!AZQ$22","v":"00:00:00"},{"$f":"Time!AZR$22","v":"00:00:00"},{"$f":"Time!AZS$22","v":"00:00:00"},{"$f":"Time!AZT$22","v":"00:00:00"},{"$f":"Time!AZU$22","v":"00:00:00"},{"$f":"Time!AZV$22","v":"00:00:00"},{"$f":"Time!AZW$22","v":"00:00:00"},{"$f":"Time!AZX$22","v":"00:00:00"},{"$f":"Time!AZY$22","v":"00:00:00"},{"$f":"Time!AZZ$22","v":"00:00:00"},{"$f":"Time!BAA$22","v":"00:00:00"},{"$f":"Time!BAB$22","v":"00:00:00"},{"$f":"Time!BAC$22","v":"00:00:00"},{"$f":"Time!BAD$22","v":"00:00:00"},{"$f":"Time!BAE$22","v":"00:00:00"},{"$f":"Time!BAF$22","v":"00:00:00"},{"$f":"Time!BAG$22","v":"00:00:00"},{"$f":"Time!BAH$22","v":"00:00:00"},{"$f":"Time!BAI$22","v":"00:00:00"},{"$f":"Time!BAJ$22","v":"00:00:00"},{"$f":"Time!BAK$22","v":"00:00:00"},{"$f":"Time!BAL$22","v":"00:00:00"},{"$f":"Time!BAM$22","v":"00:00:00"},{"$f":"Time!BAN$22","v":"00:00:00"},{"$f":"Time!BAO$22","v":"00:00:00"},{"$f":"Time!BAP$22","v":"00:00:00"},{"$f":"Time!BAQ$22","v":"00:00:00"},{"$f":"Time!BAR$22","v":"00:00:00"},{"$f":"Time!BAS$22","v":"00:00:00"},{"$f":"Time!BAT$22","v":"00:00:00"},{"$f":"Time!BAU$22","v":"00:00:00"},{"$f":"Time!BAV$22","v":"00:00:00"},{"$f":"Time!BAW$22","v":"00:00:00"},{"$f":"Time!BAX$22","v":"00:00:00"},{"$f":"Time!BAY$22","v":"00:00:00"},{"$f":"Time!BAZ$22","v":"00:00:00"},{"$f":"Time!BBA$22","v":"00:00:00"},{"$f":"Time!BBB$22","v":"00:00:00"},{"$f":"Time!BBC$22","v":"00:00:00"},{"$f":"Time!BBD$22","v":"00:00:00"},{"$f":"Time!BBE$22","v":"00:00:00"},{"$f":"Time!BBF$22","v":"00:00:00"},{"$f":"Time!BBG$22","v":"00:00:00"},{"$f":"Time!BBH$22","v":"00:00:00"},{"$f":"Time!BBI$22","v":"00:00:00"},{"$f":"Time!BBJ$22","v":"00:00:00"},{"$f":"Time!BBK$22","v":"00:00:00"},{"$f":"Time!BBL$22","v":"00:00:00"},{"$f":"Time!BBM$22","v":"00:00:00"},{"$f":"Time!BBN$22","v":"00:00:00"},{"$f":"Time!BBO$22","v":"00:00:00"},{"$f":"Time!BBP$22","v":"00:00:00"},{"$f":"Time!BBQ$22","v":"00:00:00"},{"$f":"Time!BBR$22","v":"00:00:00"},{"$f":"Time!BBS$22","v":"00:00:00"},{"$f":"Time!BBT$22","v":"00:00:00"},{"$f":"Time!BBU$22","v":"00:00:00"},{"$f":"Time!BBV$22","v":"00:00:00"},{"$f":"Time!BBW$22","v":"00:00:00"},{"$f":"Time!BBX$22","v":"00:00:00"},{"$f":"Time!BBY$22","v":"00:00:00"},{"$f":"Time!BBZ$22","v":"00:00:00"},{"$f":"Time!BCA$22","v":"00:00:00"},{"$f":"Time!BCB$22","v":"00:00:00"},{"$f":"Time!BCC$22","v":"00:00:00"},{"$f":"Time!BCD$22","v":"00:00:00"},{"$f":"Time!BCE$22","v":"00:00:00"},{"$f":"Time!BCF$22","v":"00:00:00"},{"$f":"Time!BCG$22","v":"00:00:00"},{"$f":"Time!BCH$22","v":"00:00:00"},{"$f":"Time!BCI$22","v":"00:00:00"},{"$f":"Time!BCJ$22","v":"00:00:00"},{"$f":"Time!BCK$22","v":"00:00:00"},{"$f":"Time!BCL$22","v":"00:00:00"},{"$f":"Time!BCM$22","v":"00:00:00"},{"$f":"Time!BCN$22","v":"00:00:00"},{"$f":"Time!BCO$22","v":"00:00:00"},{"$f":"Time!BCP$22","v":"00:00:00"},{"$f":"Time!BCQ$22","v":"00:00:00"},{"$f":"Time!BCR$22","v":"00:00:00"},{"$f":"Time!BCS$22","v":"00:00:00"},{"$f":"Time!BCT$22","v":"00:00:00"},{"$f":"Time!BCU$22","v":"00:00:00"},{"$f":"Time!BCV$22","v":"00:00:00"},{"$f":"Time!BCW$22","v":"00:00:00"},{"$f":"Time!BCX$22","v":"00:00:00"},{"$f":"Time!BCY$22","v":"00:00:00"},{"$f":"Time!BCZ$22","v":"00:00:00"},{"$f":"Time!BDA$22","v":"00:00:00"},{"$f":"Time!BDB$22","v":"00:00:00"},{"$f":"Time!BDC$22","v":"00:00:00"},{"$f":"Time!BDD$22","v":"00:00:00"},{"$f":"Time!BDE$22","v":"00:00:00"},{"$f":"Time!BDF$22","v":"00:00:00"},{"$f":"Time!BDG$22","v":"00:00:00"},{"$f":"Time!BDH$22","v":"00:00:00"},{"$f":"Time!BDI$22","v":"00:00:00"},{"$f":"Time!BDJ$22","v":"00:00:00"},{"$f":"Time!BDK$22","v":"00:00:00"},{"$f":"Time!BDL$22","v":"00:00:00"},{"$f":"Time!BDM$22","v":"00:00:00"},{"$f":"Time!BDN$22","v":"00:00:00"},{"$f":"Time!BDO$22","v":"00:00:00"},{"$f":"Time!BDP$22","v":"00:00:00"},{"$f":"Time!BDQ$22","v":"00:00:00"},{"$f":"Time!BDR$22","v":"00:00:00"},{"$f":"Time!BDS$22","v":"00:00:00"},{"$f":"Time!BDT$22","v":"00:00:00"},{"$f":"Time!BDU$22","v":"00:00:00"},{"$f":"Time!BDV$22","v":"00:00:00"},{"$f":"Time!BDW$22","v":"00:00:00"},{"$f":"Time!BDX$22","v":"00:00:00"},{"$f":"Time!BDY$22","v":"00:00:00"},{"$f":"Time!BDZ$22","v":"00:00:00"},{"$f":"Time!BEA$22","v":"00:00:00"},{"$f":"Time!BEB$22","v":"00:00:00"},{"$f":"Time!BEC$22","v":"00:00:00"},{"$f":"Time!BED$22","v":"00:00:00"},{"$f":"Time!BEE$22","v":"00:00:00"},{"$f":"Time!BEF$22","v":"00:00:00"},{"$f":"Time!BEG$22","v":"00:00:00"},{"$f":"Time!BEH$22","v":"00:00:00"},{"$f":"Time!BEI$22","v":"00:00:00"},{"$f":"Time!BEJ$22","v":"00:00:00"},{"$f":"Time!BEK$22","v":"00:00:00"},{"$f":"Time!BEL$22","v":"00:00:00"},{"$f":"Time!BEM$22","v":"00:00:00"},{"$f":"Time!BEN$22","v":"00:00:00"},{"$f":"Time!BEO$22","v":"00:00:00"},{"$f":"Time!BEP$22","v":"00:00:00"},{"$f":"Time!BEQ$22","v":"00:00:00"},{"$f":"Time!BER$22","v":"00:00:00"},{"$f":"Time!BES$22","v":"00:00:00"},{"$f":"Time!BET$22","v":"00:00:00"},{"$f":"Time!BEU$22","v":"00:00:00"},{"$f":"Time!BEV$22","v":"00:00:00"},{"$f":"Time!BEW$22","v":"00:00:00"},{"$f":"Time!BEX$22","v":"00:00:00"},{"$f":"Time!BEY$22","v":"00:00:00"},{"$f":"Time!BEZ$22","v":"00:00:00"},{"$f":"Time!BFA$22","v":"00:00:00"},{"$f":"Time!BFB$22","v":"00:00:00"},{"$f":"Time!BFC$22","v":"00:00:00"},{"$f":"Time!BFD$22","v":"00:00:00"},{"$f":"Time!BFE$22","v":"00:00:00"},{"$f":"Time!BFF$22","v":"00:00:00"},{"$f":"Time!BFG$22","v":"00:00:00"},{"$f":"Time!BFH$22","v":"00:00:00"},{"$f":"Time!BFI$22","v":"00:00:00"},{"$f":"Time!BFJ$22","v":"00:00:00"},{"$f":"Time!BFK$22","v":"00:00:00"},{"$f":"Time!BFL$22","v":"00:00:00"},{"$f":"Time!BFM$22","v":"00:00:00"},{"$f":"Time!BFN$22","v":"00:00:00"},{"$f":"Time!BFO$22","v":"00:00:00"},{"$f":"Time!BFP$22","v":"00:00:00"},{"$f":"Time!BFQ$22","v":"00:00:00"},{"$f":"Time!BFR$22","v":"00:00:00"},{"$f":"Time!BFS$22","v":"00:00:00"},{"$f":"Time!BFT$22","v":"00:00:00"},{"$f":"Time!BFU$22","v":"00:00:00"},{"$f":"Time!BFV$22","v":"00:00:00"},{"$f":"Time!BFW$22","v":"00:00:00"},{"$f":"Time!BFX$22","v":"00:00:00"},{"$f":"Time!BFY$22","v":"00:00:00"},{"$f":"Time!BFZ$22","v":"00:00:00"},{"$f":"Time!BGA$22","v":"00:00:00"},{"$f":"Time!BGB$22","v":"00:00:00"},{"$f":"Time!BGC$22","v":"00:00:00"},{"$f":"Time!BGD$22","v":"00:00:00"},{"$f":"Time!BGE$22","v":"00:00:00"},{"$f":"Time!BGF$22","v":"00:00:00"},{"$f":"Time!BGG$22","v":"00:00:00"},{"$f":"Time!BGH$22","v":"00:00:00"},{"$f":"Time!BGI$22","v":"00:00:00"},{"$f":"Time!BGJ$22","v":"00:00:00"},{"$f":"Time!BGK$22","v":"00:00:00"},{"$f":"Time!BGL$22","v":"00:00:00"},{"$f":"Time!BGM$22","v":"00:00:00"},{"$f":"Time!BGN$22","v":"00:00:00"},{"$f":"Time!BGO$22","v":"00:00:00"},{"$f":"Time!BGP$22","v":"00:00:00"},{"$f":"Time!BGQ$22","v":"00:00:00"},{"$f":"Time!BGR$22","v":"00:00:00"},{"$f":"Time!BGS$22","v":"00:00:00"},{"$f":"Time!BGT$22","v":"00:00:00"},{"$f":"Time!BGU$22","v":"00:00:00"},{"$f":"Time!BGV$22","v":"00:00:00"},{"$f":"Time!BGW$22","v":"00:00:00"},{"$f":"Time!BGX$22","v":"00:00:00"},{"$f":"Time!BGY$22","v":"00:00:00"},{"$f":"Time!BGZ$22","v":"00:00:00"},{"$f":"Time!BHA$22","v":"00:00:00"},{"$f":"Time!BHB$22","v":"00:00:00"},{"$f":"Time!BHC$22","v":"00:00:00"},{"$f":"Time!BHD$22","v":"00:00:00"},{"$f":"Time!BHE$22","v":"00:00:00"},{"$f":"Time!BHF$22","v":"00:00:00"},{"$f":"Time!BHG$22","v":"00:00:00"},{"$f":"Time!BHH$22","v":"00:00:00"},{"$f":"Time!BHI$22","v":"00:00:00"},{"$f":"Time!BHJ$22","v":"00:00:00"},{"$f":"Time!BHK$22","v":"00:00:00"},{"$f":"Time!BHL$22","v":"00:00:00"},{"$f":"Time!BHM$22","v":"00:00:00"},{"$f":"Time!BHN$22","v":"00:00:00"},{"$f":"Time!BHO$22","v":"00:00:00"},{"$f":"Time!BHP$22","v":"00:00:00"},{"$f":"Time!BHQ$22","v":"00:00:00"},{"$f":"Time!BHR$22","v":"00:00:00"},{"$f":"Time!BHS$22","v":"00:00:00"},{"$f":"Time!BHT$22","v":"00:00:00"},{"$f":"Time!BHU$22","v":"00:00:00"},{"$f":"Time!BHV$22","v":"00:00:00"},{"$f":"Time!BHW$22","v":"00:00:00"},{"$f":"Time!BHX$22","v":"00:00:00"},{"$f":"Time!BHY$22","v":"00:00:00"},{"$f":"Time!BHZ$22","v":"00:00:00"},{"$f":"Time!BIA$22","v":"00:00:00"},{"$f":"Time!BIB$22","v":"00:00:00"},{"$f":"Time!BIC$22","v":"00:00:00"},{"$f":"Time!BID$22","v":"00:00:00"},{"$f":"Time!BIE$22","v":"00:00:00"},{"$f":"Time!BIF$22","v":"00:00:00"},{"$f":"Time!BIG$22","v":"00:00:00"},{"$f":"Time!BIH$22","v":"00:00:00"},{"$f":"Time!BII$22","v":"00:00:00"},{"$f":"Time!BIJ$22","v":"00:00:00"},{"$f":"Time!BIK$22","v":"00:00:00"},{"$f":"Time!BIL$22","v":"00:00:00"},{"$f":"Time!BIM$22","v":"00:00:00"},{"$f":"Time!BIN$22","v":"00:00:00"},{"$f":"Time!BIO$22","v":"00:00:00"},{"$f":"Time!BIP$22","v":"00:00:00"},{"$f":"Time!BIQ$22","v":"00:00:00"},{"$f":"Time!BIR$22","v":"00:00:00"},{"$f":"Time!BIS$22","v":"00:00:00"},{"$f":"Time!BIT$22","v":"00:00:00"},{"$f":"Time!BIU$22","v":"00:00:00"},{"$f":"Time!BIV$22","v":"00:00:00"},{"$f":"Time!BIW$22","v":"00:00:00"},{"$f":"Time!BIX$22","v":"00:00:00"},{"$f":"Time!BIY$22","v":"00:00:00"},{"$f":"Time!BIZ$22","v":"00:00:00"},{"$f":"Time!BJA$22","v":"00:00:00"},{"$f":"Time!BJB$22","v":"00:00:00"},{"$f":"Time!BJC$22","v":"00:00:00"},{"$f":"Time!BJD$22","v":"00:00:00"},{"$f":"Time!BJE$22","v":"00:00:00"},{"$f":"Time!BJF$22","v":"00:00:00"},{"$f":"Time!BJG$22","v":"00:00:00"},{"$f":"Time!BJH$22","v":"00:00:00"},{"$f":"Time!BJI$22","v":"00:00:00"},{"$f":"Time!BJJ$22","v":"00:00:00"},{"$f":"Time!BJK$22","v":"00:00:00"},{"$f":"Time!BJL$22","v":"00:00:00"},{"$f":"Time!BJM$22","v":"00:00:00"},{"$f":"Time!BJN$22","v":"00:00:00"},{"$f":"Time!BJO$22","v":"00:00:00"},{"$f":"Time!BJP$22","v":"00:00:00"},{"$f":"Time!BJQ$22","v":"00:00:00"},{"$f":"Time!BJR$22","v":"00:00:00"},{"$f":"Time!BJS$22","v":"00:00:00"},{"$f":"Time!BJT$22","v":"00:00:00"},{"$f":"Time!BJU$22","v":"00:00:00"},{"$f":"Time!BJV$22","v":"00:00:00"},{"$f":"Time!BJW$22","v":"00:00:00"},{"$f":"Time!BJX$22","v":"00:00:00"},{"$f":"Time!BJY$22","v":"00:00:00"},{"$f":"Time!BJZ$22","v":"00:00:00"},{"$f":"Time!BKA$22","v":"00:00:00"},{"$f":"Time!BKB$22","v":"00:00:00"},{"$f":"Time!BKC$22","v":"00:00:00"},{"$f":"Time!BKD$22","v":"00:00:00"},{"$f":"Time!BKE$22","v":"00:00:00"},{"$f":"Time!BKF$22","v":"00:00:00"},{"$f":"Time!BKG$22","v":"00:00:00"},{"$f":"Time!BKH$22","v":"00:00:00"},{"$f":"Time!BKI$22","v":"00:00:00"},{"$f":"Time!BKJ$22","v":"00:00:00"},{"$f":"Time!BKK$22","v":"00:00:00"},{"$f":"Time!BKL$22","v":"00:00:00"},{"$f":"Time!BKM$22","v":"00:00:00"},{"$f":"Time!BKN$22","v":"00:00:00"},{"$f":"Time!BKO$22","v":"00:00:00"},{"$f":"Time!BKP$22","v":"00:00:00"},{"$f":"Time!BKQ$22","v":"00:00:00"},{"$f":"Time!BKR$22","v":"00:00:00"},{"$f":"Time!BKS$22","v":"00:00:00"},{"$f":"Time!BKT$22","v":"00:00:00"},{"$f":"Time!BKU$22","v":"00:00:00"},{"$f":"Time!BKV$22","v":"00:00:00"},{"$f":"Time!BKW$22","v":"00:00:00"},{"$f":"Time!BKX$22","v":"00:00:00"},{"$f":"Time!BKY$22","v":"00:00:00"},{"$f":"Time!BKZ$22","v":"00:00:00"},{"$f":"Time!BLA$22","v":"00:00:00"},{"$f":"Time!BLB$22","v":"00:00:00"},{"$f":"Time!BLC$22","v":"00:00:00"},{"$f":"Time!BLD$22","v":"00:00:00"},{"$f":"Time!BLE$22","v":"00:00:00"},{"$f":"Time!BLF$22","v":"00:00:00"},{"$f":"Time!BLG$22","v":"00:00:00"},{"$f":"Time!BLH$22","v":"00:00:00"},{"$f":"Time!BLI$22","v":"00:00:00"},{"$f":"Time!BLJ$22","v":"00:00:00"},{"$f":"Time!BLK$22","v":"00:00:00"},{"$f":"Time!BLL$22","v":"00:00:00"},{"$f":"Time!BLM$22","v":"00:00:00"},{"$f":"Time!BLN$22","v":"00:00:00"},{"$f":"Time!BLO$22","v":"00:00:00"},{"$f":"Time!BLP$22","v":"00:00:00"},{"$f":"Time!BLQ$22","v":"00:00:00"},{"$f":"Time!BLR$22","v":"00:00:00"},{"$f":"Time!BLS$22","v":"00:00:00"},{"$f":"Time!BLT$22","v":"00:00:00"},{"$f":"Time!BLU$22","v":"00:00:00"},{"$f":"Time!BLV$22","v":"00:00:00"},{"$f":"Time!BLW$22","v":"00:00:00"},{"$f":"Time!BLX$22","v":"00:00:00"},{"$f":"Time!BLY$22","v":"00:00:00"},{"$f":"Time!BLZ$22","v":"00:00:00"},{"$f":"Time!BMA$22","v":"00:00:00"},{"$f":"Time!BMB$22","v":"00:00:00"},{"$f":"Time!BMC$22","v":"00:00:00"},{"$f":"Time!BMD$22","v":"00:00:00"},{"$f":"Time!BME$22","v":"00:00:00"},{"$f":"Time!BMF$22","v":"00:00:00"},{"$f":"Time!BMG$22","v":"00:00:00"},{"$f":"Time!BMH$22","v":"00:00:00"},{"$f":"Time!BMI$22","v":"00:00:00"},{"$f":"Time!BMJ$22","v":"00:00:00"},{"$f":"Time!BMK$22","v":"00:00:00"},{"$f":"Time!BML$22","v":"00:00:00"},{"$f":"Time!BMM$22","v":"00:00:00"},{"$f":"Time!BMN$22","v":"00:00:00"},{"$f":"Time!BMO$22","v":"00:00:00"},{"$f":"Time!BMP$22","v":"00:00:00"},{"$f":"Time!BMQ$22","v":"00:00:00"},{"$f":"Time!BMR$22","v":"00:00:00"},{"$f":"Time!BMS$22","v":"00:00:00"},{"$f":"Time!BMT$22","v":"00:00:00"},{"$f":"Time!BMU$22","v":"00:00:00"},{"$f":"Time!BMV$22","v":"00:00:00"},{"$f":"Time!BMW$22","v":"00:00:00"},{"$f":"Time!BMX$22","v":"00:00:00"},{"$f":"Time!BMY$22","v":"00:00:00"},{"$f":"Time!BMZ$22","v":"00:00:00"},{"$f":"Time!BNA$22","v":"00:00:00"},{"$f":"Time!BNB$22","v":"00:00:00"},{"$f":"Time!BNC$22","v":"00:00:00"},{"$f":"Time!BND$22","v":"00:00:00"},{"$f":"Time!BNE$22","v":"00:00:00"},{"$f":"Time!BNF$22","v":"00:00:00"},{"$f":"Time!BNG$22","v":"00:00:00"},{"$f":"Time!BNH$22","v":"00:00:00"},{"$f":"Time!BNI$22","v":"00:00:00"},{"$f":"Time!BNJ$22","v":"00:00:00"},{"$f":"Time!BNK$22","v":"00:00:00"},{"$f":"Time!BNL$22","v":"00:00:00"},{"$f":"Time!BNM$22","v":"00:00:00"},{"$f":"Time!BNN$22","v":"00:00:00"},{"$f":"Time!BNO$22","v":"00:00:00"},{"$f":"Time!BNP$22","v":"00:00:00"},{"$f":"Time!BNQ$22","v":"00:00:00"},{"$f":"Time!BNR$22","v":"00:00:00"},{"$f":"Time!BNS$22","v":"00:00:00"},{"$f":"Time!BNT$22","v":"00:00:00"},{"$f":"Time!BNU$22","v":"00:00:00"},{"$f":"Time!BNV$22","v":"00:00:00"},{"$f":"Time!BNW$22","v":"00:00:00"},{"$f":"Time!BNX$22","v":"00:00:00"},{"$f":"Time!BNY$22","v":"00:00:00"},{"$f":"Time!BNZ$22","v":"00:00:00"},{"$f":"Time!BOA$22","v":"00:00:00"},{"$f":"Time!BOB$22","v":"00:00:00"},{"$f":"Time!BOC$22","v":"00:00:00"},{"$f":"Time!BOD$22","v":"00:00:00"},{"$f":"Time!BOE$22","v":"00:00:00"},{"$f":"Time!BOF$22","v":"00:00:00"},{"$f":"Time!BOG$22","v":"00:00:00"},{"$f":"Time!BOH$22","v":"00:00:00"},{"$f":"Time!BOI$22","v":"00:00:00"},{"$f":"Time!BOJ$22","v":"00:00:00"},{"$f":"Time!BOK$22","v":"00:00:00"},{"$f":"Time!BOL$22","v":"00:00:00"},{"$f":"Time!BOM$22","v":"00:00:00"},{"$f":"Time!BON$22","v":"00:00:00"},{"$f":"Time!BOO$22","v":"00:00:00"},{"$f":"Time!BOP$22","v":"00:00:00"},{"$f":"Time!BOQ$22","v":"00:00:00"},{"$f":"Time!BOR$22","v":"00:00:00"},{"$f":"Time!BOS$22","v":"00:00:00"},{"$f":"Time!BOT$22","v":"00:00:00"},{"$f":"Time!BOU$22","v":"00:00:00"},{"$f":"Time!BOV$22","v":"00:00:00"},{"$f":"Time!BOW$22","v":"00:00:00"},{"$f":"Time!BOX$22","v":"00:00:00"},{"$f":"Time!BOY$22","v":"00:00:00"},{"$f":"Time!BOZ$22","v":"00:00:00"},{"$f":"Time!BPA$22","v":"00:00:00"},{"$f":"Time!BPB$22","v":"00:00:00"},{"$f":"Time!BPC$22","v":"00:00:00"},{"$f":"Time!BPD$22","v":"00:00:00"},{"$f":"Time!BPE$22","v":"00:00:00"},{"$f":"Time!BPF$22","v":"00:00:00"},{"$f":"Time!BPG$22","v":"00:00:00"},{"$f":"Time!BPH$22","v":"00:00:00"},{"$f":"Time!BPI$22","v":"00:00:00"},{"$f":"Time!BPJ$22","v":"00:00:00"},{"$f":"Time!BPK$22","v":"00:00:00"},{"$f":"Time!BPL$22","v":"00:00:00"},{"$f":"Time!BPM$22","v":"00:00:00"},{"$f":"Time!BPN$22","v":"00:00:00"},{"$f":"Time!BPO$22","v":"00:00:00"},{"$f":"Time!BPP$22","v":"00:00:00"},{"$f":"Time!BPQ$22","v":"00:00:00"},{"$f":"Time!BPR$22","v":"00:00:00"},{"$f":"Time!BPS$22","v":"00:00:00"},{"$f":"Time!BPT$22","v":"00:00:00"},{"$f":"Time!BPU$22","v":"00:00:00"},{"$f":"Time!BPV$22","v":"00:00:00"},{"$f":"Time!BPW$22","v":"00:00:00"},{"$f":"Time!BPX$22","v":"00:00:00"},{"$f":"Time!BPY$22","v":"00:00:00"},{"$f":"Time!BPZ$22","v":"00:00:00"},{"$f":"Time!BQA$22","v":"00:00:00"},{"$f":"Time!BQB$22","v":"00:00:00"},{"$f":"Time!BQC$22","v":"00:00:00"},{"$f":"Time!BQD$22","v":"00:00:00"},{"$f":"Time!BQE$22","v":"00:00:00"},{"$f":"Time!BQF$22","v":"00:00:00"},{"$f":"Time!BQG$22","v":"00:00:00"},{"$f":"Time!BQH$22","v":"00:00:00"},{"$f":"Time!BQI$22","v":"00:00:00"},{"$f":"Time!BQJ$22","v":"00:00:00"},{"$f":"Time!BQK$22","v":"00:00:00"},{"$f":"Time!BQL$22","v":"00:00:00"},{"$f":"Time!BQM$22","v":"00:00:00"},{"$f":"Time!BQN$22","v":"00:00:00"},{"$f":"Time!BQO$22","v":"00:00:00"},{"$f":"Time!BQP$22","v":"00:00:00"},{"$f":"Time!BQQ$22","v":"00:00:00"},{"$f":"Time!BQR$22","v":"00:00:00"},{"$f":"Time!BQS$22","v":"00:00:00"},{"$f":"Time!BQT$22","v":"00:00:00"},{"$f":"Time!BQU$22","v":"00:00:00"},{"$f":"Time!BQV$22","v":"00:00:00"},{"$f":"Time!BQW$22","v":"00:00:00"},{"$f":"Time!BQX$22","v":"00:00:00"},{"$f":"Time!BQY$22","v":"00:00:00"},{"$f":"Time!BQZ$22","v":"00:00:00"},{"$f":"Time!BRA$22","v":"00:00:00"},{"$f":"Time!BRB$22","v":"00:00:00"},{"$f":"Time!BRC$22","v":"00:00:00"},{"$f":"Time!BRD$22","v":"00:00:00"},{"$f":"Time!BRE$22","v":"00:00:00"},{"$f":"Time!BRF$22","v":"00:00:00"},{"$f":"Time!BRG$22","v":"00:00:00"},{"$f":"Time!BRH$22","v":"00:00:00"},{"$f":"Time!BRI$22","v":"00:00:00"},{"$f":"Time!BRJ$22","v":"00:00:00"},{"$f":"Time!BRK$22","v":"00:00:00"},{"$f":"Time!BRL$22","v":"00:00:00"},{"$f":"Time!BRM$22","v":"00:00:00"},{"$f":"Time!BRN$22","v":"00:00:00"},{"$f":"Time!BRO$22","v":"00:00:00"},{"$f":"Time!BRP$22","v":"00:00:00"},{"$f":"Time!BRQ$22","v":"00:00:00"},{"$f":"Time!BRR$22","v":"00:00:00"},{"$f":"Time!BRS$22","v":"00:00:00"},{"$f":"Time!BRT$22","v":"00:00:00"},{"$f":"Time!BRU$22","v":"00:00:00"},{"$f":"Time!BRV$22","v":"00:00:00"},{"$f":"Time!BRW$22","v":"00:00:00"},{"$f":"Time!BRX$22","v":"00:00:00"},{"$f":"Time!BRY$22","v":"00:00:00"},{"$f":"Time!BRZ$22","v":"00:00:00"},{"$f":"Time!BSA$22","v":"00:00:00"},{"$f":"Time!BSB$22","v":"00:00:00"},{"$f":"Time!BSC$22","v":"00:00:00"},{"$f":"Time!BSD$22","v":"00:00:00"},{"$f":"Time!BSE$22","v":"00:00:00"},{"$f":"Time!BSF$22","v":"00:00:00"},{"$f":"Time!BSG$22","v":"00:00:00"},{"$f":"Time!BSH$22","v":"00:00:00"},{"$f":"Time!BSI$22","v":"00:00:00"},{"$f":"Time!BSJ$22","v":"00:00:00"},{"$f":"Time!BSK$22","v":"00:00:00"},{"$f":"Time!BSL$22","v":"00:00:00"},{"$f":"Time!BSM$22","v":"00:00:00"},{"$f":"Time!BSN$22","v":"00:00:00"},{"$f":"Time!BSO$22","v":"00:00:00"},{"$f":"Time!BSP$22","v":"00:00:00"},{"$f":"Time!BSQ$22","v":"00:00:00"},{"$f":"Time!BSR$22","v":"00:00:00"},{"$f":"Time!BSS$22","v":"00:00:00"},{"$f":"Time!BST$22","v":"00:00:00"},{"$f":"Time!BSU$22","v":"00:00:00"},{"$f":"Time!BSV$22","v":"00:00:00"},{"$f":"Time!BSW$22","v":"00:00:00"},{"$f":"Time!BSX$22","v":"00:00:00"},{"$f":"Time!BSY$22","v":"00:00:00"},{"$f":"Time!BSZ$22","v":"00:00:00"},{"$f":"Time!BTA$22","v":"00:00:00"},{"$f":"Time!BTB$22","v":"00:00:00"},{"$f":"Time!BTC$22","v":"00:00:00"},{"$f":"Time!BTD$22","v":"00:00:00"},{"$f":"Time!BTE$22","v":"00:00:00"},{"$f":"Time!BTF$22","v":"00:00:00"},{"$f":"Time!BTG$22","v":"00:00:00"},{"$f":"Time!BTH$22","v":"00:00:00"},{"$f":"Time!BTI$22","v":"00:00:00"},{"$f":"Time!BTJ$22","v":"00:00:00"},{"$f":"Time!BTK$22","v":"00:00:00"},{"$f":"Time!BTL$22","v":"00:00:00"},{"$f":"Time!BTM$22","v":"00:00:00"},{"$f":"Time!BTN$22","v":"00:00:00"},{"$f":"Time!BTO$22","v":"00:00:00"},{"$f":"Time!BTP$22","v":"00:00:00"},{"$f":"Time!BTQ$22","v":"00:00:00"},{"$f":"Time!BTR$22","v":"00:00:00"},{"$f":"Time!BTS$22","v":"00:00:00"},{"$f":"Time!BTT$22","v":"00:00:00"},{"$f":"Time!BTU$22","v":"00:00:00"},{"$f":"Time!BTV$22","v":"00:00:00"},{"$f":"Time!BTW$22","v":"00:00:00"},{"$f":"Time!BTX$22","v":"00:00:00"},{"$f":"Time!BTY$22","v":"00:00:00"},{"$f":"Time!BTZ$22","v":"00:00:00"},{"$f":"Time!BUA$22","v":"00:00:00"},{"$f":"Time!BUB$22","v":"00:00:00"},{"$f":"Time!BUC$22","v":"00:00:00"},{"$f":"Time!BUD$22","v":"00:00:00"},{"$f":"Time!BUE$22","v":"00:00:00"},{"$f":"Time!BUF$22","v":"00:00:00"},{"$f":"Time!BUG$22","v":"00:00:00"},{"$f":"Time!BUH$22","v":"00:00:00"},{"$f":"Time!BUI$22","v":"00:00:00"},{"$f":"Time!BUJ$22","v":"00:00:00"},{"$f":"Time!BUK$22","v":"00:00:00"},{"$f":"Time!BUL$22","v":"00:00:00"},{"$f":"Time!BUM$22","v":"00:00:00"},{"$f":"Time!BUN$22","v":"00:00:00"},{"$f":"Time!BUO$22","v":"00:00:00"},{"$f":"Time!BUP$22","v":"00:00:00"},{"$f":"Time!BUQ$22","v":"00:00:00"},{"$f":"Time!BUR$22","v":"00:00:00"},{"$f":"Time!BUS$22","v":"00:00:00"},{"$f":"Time!BUT$22","v":"00:00:00"},{"$f":"Time!BUU$22","v":"00:00:00"},{"$f":"Time!BUV$22","v":"00:00:00"},{"$f":"Time!BUW$22","v":"00:00:00"},{"$f":"Time!BUX$22","v":"00:00:00"},{"$f":"Time!BUY$22","v":"00:00:00"},{"$f":"Time!BUZ$22","v":"00:00:00"},{"$f":"Time!BVA$22","v":"00:00:00"},{"$f":"Time!BVB$22","v":"00:00:00"},{"$f":"Time!BVC$22","v":"00:00:00"},{"$f":"Time!BVD$22","v":"00:00:00"},{"$f":"Time!BVE$22","v":"00:00:00"},{"$f":"Time!BVF$22","v":"00:00:00"},{"$f":"Time!BVG$22","v":"00:00:00"},{"$f":"Time!BVH$22","v":"00:00:00"},{"$f":"Time!BVI$22","v":"00:00:00"},{"$f":"Time!BVJ$22","v":"00:00:00"},{"$f":"Time!BVK$22","v":"00:00:00"},{"$f":"Time!BVL$22","v":"00:00:00"},{"$f":"Time!BVM$22","v":"00:00:00"},{"$f":"Time!BVN$22","v":"00:00:00"},{"$f":"Time!BVO$22","v":"00:00:00"},{"$f":"Time!BVP$22","v":"00:00:00"},{"$f":"Time!BVQ$22","v":"00:00:00"},{"$f":"Time!BVR$22","v":"00:00:00"},{"$f":"Time!BVS$22","v":"00:00:00"},{"$f":"Time!BVT$22","v":"00:00:00"},{"$f":"Time!BVU$22","v":"00:00:00"},{"$f":"Time!BVV$22","v":"00:00:00"},{"$f":"Time!BVW$22","v":"00:00:00"},{"$f":"Time!BVX$22","v":"00:00:00"},{"$f":"Time!BVY$22","v":"00:00:00"},{"$f":"Time!BVZ$22","v":"00:00:00"},{"$f":"Time!BWA$22","v":"00:00:00"},{"$f":"Time!BWB$22","v":"00:00:00"},{"$f":"Time!BWC$22","v":"00:00:00"},{"$f":"Time!BWD$22","v":"00:00:00"},{"$f":"Time!BWE$22","v":"00:00:00"},{"$f":"Time!BWF$22","v":"00:00:00"},{"$f":"Time!BWG$22","v":"00:00:00"},{"$f":"Time!BWH$22","v":"00:00:00"},{"$f":"Time!BWI$22","v":"00:00:00"},{"$f":"Time!BWJ$22","v":"00:00:00"},{"$f":"Time!BWK$22","v":"00:00:00"},{"$f":"Time!BWL$22","v":"00:00:00"},{"$f":"Time!BWM$22","v":"00:00:00"},{"$f":"Time!BWN$22","v":"00:00:00"},{"$f":"Time!BWO$22","v":"00:00:00"},{"$f":"Time!BWP$22","v":"00:00:00"},{"$f":"Time!BWQ$22","v":"00:00:00"},{"$f":"Time!BWR$22","v":"00:00:00"},{"$f":"Time!BWS$22","v":"00:00:00"},{"$f":"Time!BWT$22","v":"00:00:00"},{"$f":"Time!BWU$22","v":"00:00:00"},{"$f":"Time!BWV$22","v":"00:00:00"},{"$f":"Time!BWW$22","v":"00:00:00"},{"$f":"Time!BWX$22","v":"00:00:00"},{"$f":"Time!BWY$22","v":"00:00:00"},{"$f":"Time!BWZ$22","v":"00:00:00"},{"$f":"Time!BXA$22","v":"00:00:00"},{"$f":"Time!BXB$22","v":"00:00:00"},{"$f":"Time!BXC$22","v":"00:00:00"},{"$f":"Time!BXD$22","v":"00:00:00"},{"$f":"Time!BXE$22","v":"00:00:00"},{"$f":"Time!BXF$22","v":"00:00:00"},{"$f":"Time!BXG$22","v":"00:00:00"},{"$f":"Time!BXH$22","v":"00:00:00"},{"$f":"Time!BXI$22","v":"00:00:00"},{"$f":"Time!BXJ$22","v":"00:00:00"},{"$f":"Time!BXK$22","v":"00:00:00"},{"$f":"Time!BXL$22","v":"00:00:00"},{"$f":"Time!BXM$22","v":"00:00:00"},{"$f":"Time!BXN$22","v":"00:00:00"},{"$f":"Time!BXO$22","v":"00:00:00"},{"$f":"Time!BXP$22","v":"00:00:00"},{"$f":"Time!BXQ$22","v":"00:00:00"},{"$f":"Time!BXR$22","v":"00:00:00"},{"$f":"Time!BXS$22","v":"00:00:00"},{"$f":"Time!BXT$22","v":"00:00:00"},{"$f":"Time!BXU$22","v":"00:00:00"},{"$f":"Time!BXV$22","v":"00:00:00"},{"$f":"Time!BXW$22","v":"00:00:00"},{"$f":"Time!BXX$22","v":"00:00:00"},{"$f":"Time!BXY$22","v":"00:00:00"},{"$f":"Time!BXZ$22","v":"00:00:00"},{"$f":"Time!BYA$22","v":"00:00:00"},{"$f":"Time!BYB$22","v":"00:00:00"},{"$f":"Time!BYC$22","v":"00:00:00"},{"$f":"Time!BYD$22","v":"00:00:00"},{"$f":"Time!BYE$22","v":"00:00:00"},{"$f":"Time!BYF$22","v":"00:00:00"},{"$f":"Time!BYG$22","v":"00:00:00"},{"$f":"Time!BYH$22","v":"00:00:00"},{"$f":"Time!BYI$22","v":"00:00:00"},{"$f":"Time!BYJ$22","v":"00:00:00"},{"$f":"Time!BYK$22","v":"00:00:00"},{"$f":"Time!BYL$22","v":"00:00:00"},{"$f":"Time!BYM$22","v":"00:00:00"},{"$f":"Time!BYN$22","v":"00:00:00"},{"$f":"Time!BYO$22","v":"00:00:00"},{"$f":"Time!BYP$22","v":"00:00:00"},{"$f":"Time!BYQ$22","v":"00:00:00"},{"$f":"Time!BYR$22","v":"00:00:00"},{"$f":"Time!BYS$22","v":"00:00:00"},{"$f":"Time!BYT$22","v":"00:00:00"},{"$f":"Time!BYU$22","v":"00:00:00"},{"$f":"Time!BYV$22","v":"00:00:00"},{"$f":"Time!BYW$22","v":"00:00:00"},{"$f":"Time!BYX$22","v":"00:00:00"},{"$f":"Time!BYY$22","v":"00:00:00"},{"$f":"Time!BYZ$22","v":"00:00:00"},{"$f":"Time!BZA$22","v":"00:00:00"},{"$f":"Time!BZB$22","v":"00:00:00"},{"$f":"Time!BZC$22","v":"00:00:00"},{"$f":"Time!BZD$22","v":"00:00:00"},{"$f":"Time!BZE$22","v":"00:00:00"},{"$f":"Time!BZF$22","v":"00:00:00"},{"$f":"Time!BZG$22","v":"00:00:00"},{"$f":"Time!BZH$22","v":"00:00:00"},{"$f":"Time!BZI$22","v":"00:00:00"},{"$f":"Time!BZJ$22","v":"00:00:00"},{"$f":"Time!BZK$22","v":"00:00:00"},{"$f":"Time!BZL$22","v":"00:00:00"},{"$f":"Time!BZM$22","v":"00:00:00"},{"$f":"Time!BZN$22","v":"00:00:00"},{"$f":"Time!BZO$22","v":"00:00:00"},{"$f":"Time!BZP$22","v":"00:00:00"},{"$f":"Time!BZQ$22","v":"00:00:00"},{"$f":"Time!BZR$22","v":"00:00:00"},{"$f":"Time!BZS$22","v":"00:00:00"},{"$f":"Time!BZT$22","v":"00:00:00"},{"$f":"Time!BZU$22","v":"00:00:00"},{"$f":"Time!BZV$22","v":"00:00:00"},{"$f":"Time!BZW$22","v":"00:00:00"},{"$f":"Time!BZX$22","v":"00:00:00"},{"$f":"Time!BZY$22","v":"00:00:00"},{"$f":"Time!BZZ$22","v":"00:00:00"},{"$f":"Time!CAA$22","v":"00:00:00"},{"$f":"Time!CAB$22","v":"00:00:00"},{"$f":"Time!CAC$22","v":"00:00:00"},{"$f":"Time!CAD$22","v":"00:00:00"},{"$f":"Time!CAE$22","v":"00:00:00"},{"$f":"Time!CAF$22","v":"00:00:00"},{"$f":"Time!CAG$22","v":"00:00:00"},{"$f":"Time!CAH$22","v":"00:00:00"},{"$f":"Time!CAI$22","v":"00:00:00"},{"$f":"Time!CAJ$22","v":"00:00:00"},{"$f":"Time!CAK$22","v":"00:00:00"},{"$f":"Time!CAL$22","v":"00:00:00"},{"$f":"Time!CAM$22","v":"00:00:00"},{"$f":"Time!CAN$22","v":"00:00:00"},{"$f":"Time!CAO$22","v":"00:00:00"},{"$f":"Time!CAP$22","v":"00:00:00"},{"$f":"Time!CAQ$22","v":"00:00:00"},{"$f":"Time!CAR$22","v":"00:00:00"},{"$f":"Time!CAS$22","v":"00:00:00"},{"$f":"Time!CAT$22","v":"00:00:00"},{"$f":"Time!CAU$22","v":"00:00:00"},{"$f":"Time!CAV$22","v":"00:00:00"},{"$f":"Time!CAW$22","v":"00:00:00"},{"$f":"Time!CAX$22","v":"00:00:00"},{"$f":"Time!CAY$22","v":"00:00:00"},{"$f":"Time!CAZ$22","v":"00:00:00"},{"$f":"Time!CBA$22","v":"00:00:00"},{"$f":"Time!CBB$22","v":"00:00:00"},{"$f":"Time!CBC$22","v":"00:00:00"},{"$f":"Time!CBD$22","v":"00:00:00"},{"$f":"Time!CBE$22","v":"00:00:00"},{"$f":"Time!CBF$22","v":"00:00:00"},{"$f":"Time!CBG$22","v":"00:00:00"},{"$f":"Time!CBH$22","v":"00:00:00"},{"$f":"Time!CBI$22","v":"00:00:00"},{"$f":"Time!CBJ$22","v":"00:00:00"},{"$f":"Time!CBK$22","v":"00:00:00"},{"$f":"Time!CBL$22","v":"00:00:00"},{"$f":"Time!CBM$22","v":"00:00:00"},{"$f":"Time!CBN$22","v":"00:00:00"},{"$f":"Time!CBO$22","v":"00:00:00"},{"$f":"Time!CBP$22","v":"00:00:00"},{"$f":"Time!CBQ$22","v":"00:00:00"},{"$f":"Time!CBR$22","v":"00:00:00"},{"$f":"Time!CBS$22","v":"00:00:00"},{"$f":"Time!CBT$22","v":"00:00:00"},{"$f":"Time!CBU$22","v":"00:00:00"},{"$f":"Time!CBV$22","v":"00:00:00"},{"$f":"Time!CBW$22","v":"00:00:00"},{"$f":"Time!CBX$22","v":"00:00:00"},{"$f":"Time!CBY$22","v":"00:00:00"},{"$f":"Time!CBZ$22","v":"00:00:00"},{"$f":"Time!CCA$22","v":"00:00:00"},{"$f":"Time!CCB$22","v":"00:00:00"},{"$f":"Time!CCC$22","v":"00:00:00"},{"$f":"Time!CCD$22","v":"00:00:00"},{"$f":"Time!CCE$22","v":"00:00:00"},{"$f":"Time!CCF$22","v":"00:00:00"},{"$f":"Time!CCG$22","v":"00:00:00"},{"$f":"Time!CCH$22","v":"00:00:00"},{"$f":"Time!CCI$22","v":"00:00:00"},{"$f":"Time!CCJ$22","v":"00:00:00"},{"$f":"Time!CCK$22","v":"00:00:00"},{"$f":"Time!CCL$22","v":"00:00:00"},{"$f":"Time!CCM$22","v":"00:00:00"},{"$f":"Time!CCN$22","v":"00:00:00"},{"$f":"Time!CCO$22","v":"00:00:00"},{"$f":"Time!CCP$22","v":"00:00:00"},{"$f":"Time!CCQ$22","v":"00:00:00"},{"$f":"Time!CCR$22","v":"00:00:00"},{"$f":"Time!CCS$22","v":"00:00:00"},{"$f":"Time!CCT$22","v":"00:00:00"},{"$f":"Time!CCU$22","v":"00:00:00"},{"$f":"Time!CCV$22","v":"00:00:00"},{"$f":"Time!CCW$22","v":"00:00:00"},{"$f":"Time!CCX$22","v":"00:00:00"},{"$f":"Time!CCY$22","v":"00:00:00"},{"$f":"Time!CCZ$22","v":"00:00:00"},{"$f":"Time!CDA$22","v":"00:00:00"},{"$f":"Time!CDB$22","v":"00:00:00"},{"$f":"Time!CDC$22","v":"00:00:00"},{"$f":"Time!CDD$22","v":"00:00:00"},{"$f":"Time!CDE$22","v":"00:00:00"},{"$f":"Time!CDF$22","v":"00:00:00"},{"$f":"Time!CDG$22","v":"00:00:00"},{"$f":"Time!CDH$22","v":"00:00:00"},{"$f":"Time!CDI$22","v":"00:00:00"},{"$f":"Time!CDJ$22","v":"00:00:00"},{"$f":"Time!CDK$22","v":"00:00:00"},{"$f":"Time!CDL$22","v":"00:00:00"},{"$f":"Time!CDM$22","v":"00:00:00"},{"$f":"Time!CDN$22","v":"00:00:00"},{"$f":"Time!CDO$22","v":"00:00:00"},{"$f":"Time!CDP$22","v":"00:00:00"},{"$f":"Time!CDQ$22","v":"00:00:00"},{"$f":"Time!CDR$22","v":"00:00:00"},{"$f":"Time!CDS$22","v":"00:00:00"},{"$f":"Time!CDT$22","v":"00:00:00"},{"$f":"Time!CDU$22","v":"00:00:00"},{"$f":"Time!CDV$22","v":"00:00:00"},{"$f":"Time!CDW$22","v":"00:00:00"},{"$f":"Time!CDX$22","v":"00:00:00"},{"$f":"Time!CDY$22","v":"00:00:00"},{"$f":"Time!CDZ$22","v":"00:00:00"},{"$f":"Time!CEA$22","v":"00:00:00"},{"$f":"Time!CEB$22","v":"00:00:00"},{"$f":"Time!CEC$22","v":"00:00:00"},{"$f":"Time!CED$22","v":"00:00:00"},{"$f":"Time!CEE$22","v":"00:00:00"},{"$f":"Time!CEF$22","v":"00:00:00"},{"$f":"Time!CEG$22","v":"00:00:00"},{"$f":"Time!CEH$22","v":"00:00:00"},{"$f":"Time!CEI$22","v":"00:00:00"},{"$f":"Time!CEJ$22","v":"00:00:00"},{"$f":"Time!CEK$22","v":"00:00:00"},{"$f":"Time!CEL$22","v":"00:00:00"},{"$f":"Time!CEM$22","v":"00:00:00"},{"$f":"Time!CEN$22","v":"00:00:00"},{"$f":"Time!CEO$22","v":"00:00:00"},{"$f":"Time!CEP$22","v":"00:00:00"},{"$f":"Time!CEQ$22","v":"00:00:00"},{"$f":"Time!CER$22","v":"00:00:00"},{"$f":"Time!CES$22","v":"00:00:00"},{"$f":"Time!CET$22","v":"00:00:00"},{"$f":"Time!CEU$22","v":"00:00:00"},{"$f":"Time!CEV$22","v":"00:00:00"},{"$f":"Time!CEW$22","v":"00:00:00"},{"$f":"Time!CEX$22","v":"00:00:00"},{"$f":"Time!CEY$22","v":"00:00:00"},{"$f":"Time!CEZ$22","v":"00:00:00"},{"$f":"Time!CFA$22","v":"00:00:00"},{"$f":"Time!CFB$22","v":"00:00:00"},{"$f":"Time!CFC$22","v":"00:00:00"},{"$f":"Time!CFD$22","v":"00:00:00"},{"$f":"Time!CFE$22","v":"00:00:00"},{"$f":"Time!CFF$22","v":"00:00:00"},{"$f":"Time!CFG$22","v":"00:00:00"},{"$f":"Time!CFH$22","v":"00:00:00"},{"$f":"Time!CFI$22","v":"00:00:00"},{"$f":"Time!CFJ$22","v":"00:00:00"},{"$f":"Time!CFK$22","v":"00:00:00"},{"$f":"Time!CFL$22","v":"00:00:00"},{"$f":"Time!CFM$22","v":"00:00:00"},{"$f":"Time!CFN$22","v":"00:00:00"},{"$f":"Time!CFO$22","v":"00:00:00"},{"$f":"Time!CFP$22","v":"00:00:00"},{"$f":"Time!CFQ$22","v":"00:00:00"},{"$f":"Time!CFR$22","v":"00:00:00"},{"$f":"Time!CFS$22","v":"00:00:00"},{"$f":"Time!CFT$22","v":"00:00:00"},{"$f":"Time!CFU$22","v":"00:00:00"},{"$f":"Time!CFV$22","v":"00:00:00"},{"$f":"Time!CFW$22","v":"00:00:00"},{"$f":"Time!CFX$22","v":"00:00:00"},{"$f":"Time!CFY$22","v":"00:00:00"},{"$f":"Time!CFZ$22","v":"00:00:00"},{"$f":"Time!CGA$22","v":"00:00:00"},{"$f":"Time!CGB$22","v":"00:00:00"},{"$f":"Time!CGC$22","v":"00:00:00"},{"$f":"Time!CGD$22","v":"00:00:00"},{"$f":"Time!CGE$22","v":"00:00:00"},{"$f":"Time!CGF$22","v":"00:00:00"},{"$f":"Time!CGG$22","v":"00:00:00"},{"$f":"Time!CGH$22","v":"00:00:00"},{"$f":"Time!CGI$22","v":"00:00:00"},{"$f":"Time!CGJ$22","v":"00:00:00"},{"$f":"Time!CGK$22","v":"00:00:00"},{"$f":"Time!CGL$22","v":"00:00:00"},{"$f":"Time!CGM$22","v":"00:00:00"},{"$f":"Time!CGN$22","v":"00:00:00"},{"$f":"Time!CGO$22","v":"00:00:00"},{"$f":"Time!CGP$22","v":"00:00:00"},{"$f":"Time!CGQ$22","v":"00:00:00"},{"$f":"Time!CGR$22","v":"00:00:00"},{"$f":"Time!CGS$22","v":"00:00:00"},{"$f":"Time!CGT$22","v":"00:00:00"},{"$f":"Time!CGU$22","v":"00:00:00"},{"$f":"Time!CGV$22","v":"00:00:00"},{"$f":"Time!CGW$22","v":"00:00:00"},{"$f":"Time!CGX$22","v":"00:00:00"},{"$f":"Time!CGY$22","v":"00:00:00"},{"$f":"Time!CGZ$22","v":"00:00:00"},{"$f":"Time!CHA$22","v":"00:00:00"},{"$f":"Time!CHB$22","v":"00:00:00"},{"$f":"Time!CHC$22","v":"00:00:00"},{"$f":"Time!CHD$22","v":"00:00:00"},{"$f":"Time!CHE$22","v":"00:00:00"},{"$f":"Time!CHF$22","v":"00:00:00"},{"$f":"Time!CHG$22","v":"00:00:00"},{"$f":"Time!CHH$22","v":"00:00:00"},{"$f":"Time!CHI$22","v":"00:00:00"},{"$f":"Time!CHJ$22","v":"00:00:00"},{"$f":"Time!CHK$22","v":"00:00:00"},{"$f":"Time!CHL$22","v":"00:00:00"},{"$f":"Time!CHM$22","v":"00:00:00"},{"$f":"Time!CHN$22","v":"00:00:00"},{"$f":"Time!CHO$22","v":"00:00:00"},{"$f":"Time!CHP$22","v":"00:00:00"},{"$f":"Time!CHQ$22","v":"00:00:00"},{"$f":"Time!CHR$22","v":"00:00:00"},{"$f":"Time!CHS$22","v":"00:00:00"},{"$f":"Time!CHT$22","v":"00:00:00"},{"$f":"Time!CHU$22","v":"00:00:00"},{"$f":"Time!CHV$22","v":"00:00:00"},{"$f":"Time!CHW$22","v":"00:00:00"},{"$f":"Time!CHX$22","v":"00:00:00"},{"$f":"Time!CHY$22","v":"00:00:00"},{"$f":"Time!CHZ$22","v":"00:00:00"},{"$f":"Time!CIA$22","v":"00:00:00"},{"$f":"Time!CIB$22","v":"00:00:00"},{"$f":"Time!CIC$22","v":"00:00:00"},{"$f":"Time!CID$22","v":"00:00:00"},{"$f":"Time!CIE$22","v":"00:00:00"},{"$f":"Time!CIF$22","v":"00:00:00"},{"$f":"Time!CIG$22","v":"00:00:00"},{"$f":"Time!CIH$22","v":"00:00:00"},{"$f":"Time!CII$22","v":"00:00:00"},{"$f":"Time!CIJ$22","v":"00:00:00"},{"$f":"Time!CIK$22","v":"00:00:00"},{"$f":"Time!CIL$22","v":"00:00:00"},{"$f":"Time!CIM$22","v":"00:00:00"},{"$f":"Time!CIN$22","v":"00:00:00"},{"$f":"Time!CIO$22","v":"00:00:00"},{"$f":"Time!CIP$22","v":"00:00:00"},{"$f":"Time!CIQ$22","v":"00:00:00"},{"$f":"Time!CIR$22","v":"00:00:00"},{"$f":"Time!CIS$22","v":"00:00:00"},{"$f":"Time!CIT$22","v":"00:00:00"},{"$f":"Time!CIU$22","v":"00:00:00"},{"$f":"Time!CIV$22","v":"00:00:00"},{"$f":"Time!CIW$22","v":"00:00:00"},{"$f":"Time!CIX$22","v":"00:00:00"},{"$f":"Time!CIY$22","v":"00:00:00"},{"$f":"Time!CIZ$22","v":"00:00:00"},{"$f":"Time!CJA$22","v":"00:00:00"},{"$f":"Time!CJB$22","v":"00:00:00"},{"$f":"Time!CJC$22","v":"00:00:00"},{"$f":"Time!CJD$22","v":"00:00:00"},{"$f":"Time!CJE$22","v":"00:00:00"},{"$f":"Time!CJF$22","v":"00:00:00"},{"$f":"Time!CJG$22","v":"00:00:00"},{"$f":"Time!CJH$22","v":"00:00:00"},{"$f":"Time!CJI$22","v":"00:00:00"},{"$f":"Time!CJJ$22","v":"00:00:00"},{"$f":"Time!CJK$22","v":"00:00:00"},{"$f":"Time!CJL$22","v":"00:00:00"},{"$f":"Time!CJM$22","v":"00:00:00"},{"$f":"Time!CJN$22","v":"00:00:00"},{"$f":"Time!CJO$22","v":"00:00:00"},{"$f":"Time!CJP$22","v":"00:00:00"},{"$f":"Time!CJQ$22","v":"00:00:00"},{"$f":"Time!CJR$22","v":"00:00:00"},{"$f":"Time!CJS$22","v":"00:00:00"},{"$f":"Time!CJT$22","v":"00:00:00"},{"$f":"Time!CJU$22","v":"00:00:00"},{"$f":"Time!CJV$22","v":"00:00:00"},{"$f":"Time!CJW$22","v":"00:00:00"},{"$f":"Time!CJX$22","v":"00:00:00"},{"$f":"Time!CJY$22","v":"00:00:00"},{"$f":"Time!CJZ$22","v":"00:00:00"},{"$f":"Time!CKA$22","v":"00:00:00"},{"$f":"Time!CKB$22","v":"00:00:00"},{"$f":"Time!CKC$22","v":"00:00:00"},{"$f":"Time!CKD$22","v":"00:00:00"},{"$f":"Time!CKE$22","v":"00:00:00"},{"$f":"Time!CKF$22","v":"00:00:00"},{"$f":"Time!CKG$22","v":"00:00:00"},{"$f":"Time!CKH$22","v":"00:00:00"},{"$f":"Time!CKI$22","v":"00:00:00"},{"$f":"Time!CKJ$22","v":"00:00:00"},{"$f":"Time!CKK$22","v":"00:00:00"},{"$f":"Time!CKL$22","v":"00:00:00"},{"$f":"Time!CKM$22","v":"00:00:00"},{"$f":"Time!CKN$22","v":"00:00:00"},{"$f":"Time!CKO$22","v":"00:00:00"},{"$f":"Time!CKP$22","v":"00:00:00"},{"$f":"Time!CKQ$22","v":"00:00:00"},{"$f":"Time!CKR$22","v":"00:00:00"},{"$f":"Time!CKS$22","v":"00:00:00"},{"$f":"Time!CKT$22","v":"00:00:00"},{"$f":"Time!CKU$22","v":"00:00:00"},{"$f":"Time!CKV$22","v":"00:00:00"},{"$f":"Time!CKW$22","v":"00:00:00"},{"$f":"Time!CKX$22","v":"00:00:00"},{"$f":"Time!CKY$22","v":"00:00:00"},{"$f":"Time!CKZ$22","v":"00:00:00"},{"$f":"Time!CLA$22","v":"00:00:00"},{"$f":"Time!CLB$22","v":"00:00:00"},{"$f":"Time!CLC$22","v":"00:00:00"},{"$f":"Time!CLD$22","v":"00:00:00"},{"$f":"Time!CLE$22","v":"00:00:00"},{"$f":"Time!CLF$22","v":"00:00:00"},{"$f":"Time!CLG$22","v":"00:00:00"},{"$f":"Time!CLH$22","v":"00:00:00"},{"$f":"Time!CLI$22","v":"00:00:00"},{"$f":"Time!CLJ$22","v":"00:00:00"},{"$f":"Time!CLK$22","v":"00:00:00"},{"$f":"Time!CLL$22","v":"00:00:00"},{"$f":"Time!CLM$22","v":"00:00:00"},{"$f":"Time!CLN$22","v":"00:00:00"},{"$f":"Time!CLO$22","v":"00:00:00"},{"$f":"Time!CLP$22","v":"00:00:00"},{"$f":"Time!CLQ$22","v":"00:00:00"},{"$f":"Time!CLR$22","v":"00:00:00"},{"$f":"Time!CLS$22","v":"00:00:00"},{"$f":"Time!CLT$22","v":"00:00:00"},{"$f":"Time!CLU$22","v":"00:00:00"},{"$f":"Time!CLV$22","v":"00:00:00"},{"$f":"Time!CLW$22","v":"00:00:00"},{"$f":"Time!CLX$22","v":"00:00:00"},{"$f":"Time!CLY$22","v":"00:00:00"},{"$f":"Time!CLZ$22","v":"00:00:00"},{"$f":"Time!CMA$22","v":"00:00:00"},{"$f":"Time!CMB$22","v":"00:00:00"},{"$f":"Time!CMC$22","v":"00:00:00"},{"$f":"Time!CMD$22","v":"00:00:00"},{"$f":"Time!CME$22","v":"00:00:00"},{"$f":"Time!CMF$22","v":"00:00:00"},{"$f":"Time!CMG$22","v":"00:00:00"},{"$f":"Time!CMH$22","v":"00:00:00"},{"$f":"Time!CMI$22","v":"00:00:00"},{"$f":"Time!CMJ$22","v":"00:00:00"},{"$f":"Time!CMK$22","v":"00:00:00"},{"$f":"Time!CML$22","v":"00:00:00"},{"$f":"Time!CMM$22","v":"00:00:00"},{"$f":"Time!CMN$22","v":"00:00:00"},{"$f":"Time!CMO$22","v":"00:00:00"},{"$f":"Time!CMP$22","v":"00:00:00"},{"$f":"Time!CMQ$22","v":"00:00:00"},{"$f":"Time!CMR$22","v":"00:00:00"},{"$f":"Time!CMS$22","v":"00:00:00"},{"$f":"Time!CMT$22","v":"00:00:00"},{"$f":"Time!CMU$22","v":"00:00:00"},{"$f":"Time!CMV$22","v":"00:00:00"},{"$f":"Time!CMW$22","v":"00:00:00"},{"$f":"Time!CMX$22","v":"00:00:00"},{"$f":"Time!CMY$22","v":"00:00:00"},{"$f":"Time!CMZ$22","v":"00:00:00"},{"$f":"Time!CNA$22","v":"00:00:00"},{"$f":"Time!CNB$22","v":"00:00:00"},{"$f":"Time!CNC$22","v":"00:00:00"},{"$f":"Time!CND$22","v":"00:00:00"},{"$f":"Time!CNE$22","v":"00:00:00"},{"$f":"Time!CNF$22","v":"00:00:00"},{"$f":"Time!CNG$22","v":"00:00:00"},{"$f":"Time!CNH$22","v":"00:00:00"},{"$f":"Time!CNI$22","v":"00:00:00"},{"$f":"Time!CNJ$22","v":"00:00:00"},{"$f":"Time!CNK$22","v":"00:00:00"},{"$f":"Time!CNL$22","v":"00:00:00"},{"$f":"Time!CNM$22","v":"00:00:00"},{"$f":"Time!CNN$22","v":"00:00:00"},{"$f":"Time!CNO$22","v":"00:00:00"},{"$f":"Time!CNP$22","v":"00:00:00"},{"$f":"Time!CNQ$22","v":"00:00:00"},{"$f":"Time!CNR$22","v":"00:00:00"},{"$f":"Time!CNS$22","v":"00:00:00"},{"$f":"Time!CNT$22","v":"00:00:00"},{"$f":"Time!CNU$22","v":"00:00:00"},{"$f":"Time!CNV$22","v":"00:00:00"},{"$f":"Time!CNW$22","v":"00:00:00"},{"$f":"Time!CNX$22","v":"00:00:00"},{"$f":"Time!CNY$22","v":"00:00:00"},{"$f":"Time!CNZ$22","v":"00:00:00"},{"$f":"Time!COA$22","v":"00:00:00"},{"$f":"Time!COB$22","v":"00:00:00"},{"$f":"Time!COC$22","v":"00:00:00"},{"$f":"Time!COD$22","v":"00:00:00"},{"$f":"Time!COE$22","v":"00:00:00"},{"$f":"Time!COF$22","v":"00:00:00"},{"$f":"Time!COG$22","v":"00:00:00"},{"$f":"Time!COH$22","v":"00:00:00"},{"$f":"Time!COI$22","v":"00:00:00"},{"$f":"Time!COJ$22","v":"00:00:00"},{"$f":"Time!COK$22","v":"00:00:00"},{"$f":"Time!COL$22","v":"00:00:00"},{"$f":"Time!COM$22","v":"00:00:00"},{"$f":"Time!CON$22","v":"00:00:00"},{"$f":"Time!COO$22","v":"00:00:00"},{"$f":"Time!COP$22","v":"00:00:00"},{"$f":"Time!COQ$22","v":"00:00:00"},{"$f":"Time!COR$22","v":"00:00:00"},{"$f":"Time!COS$22","v":"00:00:00"},{"$f":"Time!COT$22","v":"00:00:00"},{"$f":"Time!COU$22","v":"00:00:00"},{"$f":"Time!COV$22","v":"00:00:00"},{"$f":"Time!COW$22","v":"00:00:00"},{"$f":"Time!COX$22","v":"00:00:00"},{"$f":"Time!COY$22","v":"00:00:00"},{"$f":"Time!COZ$22","v":"00:00:00"},{"$f":"Time!CPA$22","v":"00:00:00"},{"$f":"Time!CPB$22","v":"00:00:00"},{"$f":"Time!CPC$22","v":"00:00:00"},{"$f":"Time!CPD$22","v":"00:00:00"},{"$f":"Time!CPE$22","v":"00:00:00"},{"$f":"Time!CPF$22","v":"00:00:00"},{"$f":"Time!CPG$22","v":"00:00:00"},{"$f":"Time!CPH$22","v":"00:00:00"},{"$f":"Time!CPI$22","v":"00:00:00"},{"$f":"Time!CPJ$22","v":"00:00:00"},{"$f":"Time!CPK$22","v":"00:00:00"},{"$f":"Time!CPL$22","v":"00:00:00"},{"$f":"Time!CPM$22","v":"00:00:00"},{"$f":"Time!CPN$22","v":"00:00:00"},{"$f":"Time!CPO$22","v":"00:00:00"},{"$f":"Time!CPP$22","v":"00:00:00"},{"$f":"Time!CPQ$22","v":"00:00:00"},{"$f":"Time!CPR$22","v":"00:00:00"},{"$f":"Time!CPS$22","v":"00:00:00"},{"$f":"Time!CPT$22","v":"00:00:00"},{"$f":"Time!CPU$22","v":"00:00:00"},{"$f":"Time!CPV$22","v":"00:00:00"},{"$f":"Time!CPW$22","v":"00:00:00"},{"$f":"Time!CPX$22","v":"00:00:00"},{"$f":"Time!CPY$22","v":"00:00:00"},{"$f":"Time!CPZ$22","v":"00:00:00"},{"$f":"Time!CQA$22","v":"00:00:00"},{"$f":"Time!CQB$22","v":"00:00:00"},{"$f":"Time!CQC$22","v":"00:00:00"},{"$f":"Time!CQD$22","v":"00:00:00"},{"$f":"Time!CQE$22","v":"00:00:00"},{"$f":"Time!CQF$22","v":"00:00:00"},{"$f":"Time!CQG$22","v":"00:00:00"},{"$f":"Time!CQH$22","v":"00:00:00"},{"$f":"Time!CQI$22","v":"00:00:00"},{"$f":"Time!CQJ$22","v":"00:00:00"},{"$f":"Time!CQK$22","v":"00:00:00"},{"$f":"Time!CQL$22","v":"00:00:00"},{"$f":"Time!CQM$22","v":"00:00:00"},{"$f":"Time!CQN$22","v":"00:00:00"},{"$f":"Time!CQO$22","v":"00:00:00"},{"$f":"Time!CQP$22","v":"00:00:00"},{"$f":"Time!CQQ$22","v":"00:00:00"},{"$f":"Time!CQR$22","v":"00:00:00"},{"$f":"Time!CQS$22","v":"00:00:00"},{"$f":"Time!CQT$22","v":"00:00:00"},{"$f":"Time!CQU$22","v":"00:00:00"},{"$f":"Time!CQV$22","v":"00:00:00"},{"$f":"Time!CQW$22","v":"00:00:00"},{"$f":"Time!CQX$22","v":"00:00:00"},{"$f":"Time!CQY$22","v":"00:00:00"},{"$f":"Time!CQZ$22","v":"00:00:00"},{"$f":"Time!CRA$22","v":"00:00:00"},{"$f":"Time!CRB$22","v":"00:00:00"},{"$f":"Time!CRC$22","v":"00:00:00"},{"$f":"Time!CRD$22","v":"00:00:00"},{"$f":"Time!CRE$22","v":"00:00:00"},{"$f":"Time!CRF$22","v":"00:00:00"},{"$f":"Time!CRG$22","v":"00:00:00"},{"$f":"Time!CRH$22","v":"00:00:00"},{"$f":"Time!CRI$22","v":"00:00:00"},{"$f":"Time!CRJ$22","v":"00:00:00"},{"$f":"Time!CRK$22","v":"00:00:00"},{"$f":"Time!CRL$22","v":"00:00:00"},{"$f":"Time!CRM$22","v":"00:00:00"},{"$f":"Time!CRN$22","v":"00:00:00"},{"$f":"Time!CRO$22","v":"00:00:00"},{"$f":"Time!CRP$22","v":"00:00:00"},{"$f":"Time!CRQ$22","v":"00:00:00"},{"$f":"Time!CRR$22","v":"00:00:00"},{"$f":"Time!CRS$22","v":"00:00:00"},{"$f":"Time!CRT$22","v":"00:00:00"},{"$f":"Time!CRU$22","v":"00:00:00"},{"$f":"Time!CRV$22","v":"00:00:00"},{"$f":"Time!CRW$22","v":"00:00:00"},{"$f":"Time!CRX$22","v":"00:00:00"},{"$f":"Time!CRY$22","v":"00:00:00"},{"$f":"Time!CRZ$22","v":"00:00:00"},{"$f":"Time!CSA$22","v":"00:00:00"},{"$f":"Time!CSB$22","v":"00:00:00"},{"$f":"Time!CSC$22","v":"00:00:00"},{"$f":"Time!CSD$22","v":"00:00:00"},{"$f":"Time!CSE$22","v":"00:00:00"},{"$f":"Time!CSF$22","v":"00:00:00"},{"$f":"Time!CSG$22","v":"00:00:00"},{"$f":"Time!CSH$22","v":"00:00:00"},{"$f":"Time!CSI$22","v":"00:00:00"},{"$f":"Time!CSJ$22","v":"00:00:00"},{"$f":"Time!CSK$22","v":"00:00:00"},{"$f":"Time!CSL$22","v":"00:00:00"},{"$f":"Time!CSM$22","v":"00:00:00"},{"$f":"Time!CSN$22","v":"00:00:00"},{"$f":"Time!CSO$22","v":"00:00:00"},{"$f":"Time!CSP$22","v":"00:00:00"},{"$f":"Time!CSQ$22","v":"00:00:00"},{"$f":"Time!CSR$22","v":"00:00:00"},{"$f":"Time!CSS$22","v":"00:00:00"},{"$f":"Time!CST$22","v":"00:00:00"},{"$f":"Time!CSU$22","v":"00:00:00"},{"$f":"Time!CSV$22","v":"00:00:00"},{"$f":"Time!CSW$22","v":"00:00:00"},{"$f":"Time!CSX$22","v":"00:00:00"},{"$f":"Time!CSY$22","v":"00:00:00"},{"$f":"Time!CSZ$22","v":"00:00:00"},{"$f":"Time!CTA$22","v":"00:00:00"},{"$f":"Time!CTB$22","v":"00:00:00"},{"$f":"Time!CTC$22","v":"00:00:00"},{"$f":"Time!CTD$22","v":"00:00:00"},{"$f":"Time!CTE$22","v":"00:00:00"},{"$f":"Time!CTF$22","v":"00:00:00"},{"$f":"Time!CTG$22","v":"00:00:00"},{"$f":"Time!CTH$22","v":"00:00:00"},{"$f":"Time!CTI$22","v":"00:00:00"},{"$f":"Time!CTJ$22","v":"00:00:00"},{"$f":"Time!CTK$22","v":"00:00:00"},{"$f":"Time!CTL$22","v":"00:00:00"},{"$f":"Time!CTM$22","v":"00:00:00"},{"$f":"Time!CTN$22","v":"00:00:00"},{"$f":"Time!CTO$22","v":"00:00:00"},{"$f":"Time!CTP$22","v":"00:00:00"},{"$f":"Time!CTQ$22","v":"00:00:00"},{"$f":"Time!CTR$22","v":"00:00:00"},{"$f":"Time!CTS$22","v":"00:00:00"},{"$f":"Time!CTT$22","v":"00:00:00"},{"$f":"Time!CTU$22","v":"00:00:00"},{"$f":"Time!CTV$22","v":"00:00:00"},{"$f":"Time!CTW$22","v":"00:00:00"},{"$f":"Time!CTX$22","v":"00:00:00"},{"$f":"Time!CTY$22","v":"00:00:00"},{"$f":"Time!CTZ$22","v":"00:00:00"},{"$f":"Time!CUA$22","v":"00:00:00"},{"$f":"Time!CUB$22","v":"00:00:00"},{"$f":"Time!CUC$22","v":"00:00:00"},{"$f":"Time!CUD$22","v":"00:00:00"},{"$f":"Time!CUE$22","v":"00:00:00"},{"$f":"Time!CUF$22","v":"00:00:00"},{"$f":"Time!CUG$22","v":"00:00:00"},{"$f":"Time!CUH$22","v":"00:00:00"},{"$f":"Time!CUI$22","v":"00:00:00"},{"$f":"Time!CUJ$22","v":"00:00:00"},{"$f":"Time!CUK$22","v":"00:00:00"},{"$f":"Time!CUL$22","v":"00:00:00"},{"$f":"Time!CUM$22","v":"00:00:00"},{"$f":"Time!CUN$22","v":"00:00:00"},{"$f":"Time!CUO$22","v":"00:00:00"},{"$f":"Time!CUP$22","v":"00:00:00"},{"$f":"Time!CUQ$22","v":"00:00:00"},{"$f":"Time!CUR$22","v":"00:00:00"},{"$f":"Time!CUS$22","v":"00:00:00"},{"$f":"Time!CUT$22","v":"00:00:00"},{"$f":"Time!CUU$22","v":"00:00:00"},{"$f":"Time!CUV$22","v":"00:00:00"},{"$f":"Time!CUW$22","v":"00:00:00"},{"$f":"Time!CUX$22","v":"00:00:00"},{"$f":"Time!CUY$22","v":"00:00:00"},{"$f":"Time!CUZ$22","v":"00:00:00"},{"$f":"Time!CVA$22","v":"00:00:00"},{"$f":"Time!CVB$22","v":"00:00:00"},{"$f":"Time!CVC$22","v":"00:00:00"},{"$f":"Time!CVD$22","v":"00:00:00"},{"$f":"Time!CVE$22","v":"00:00:00"},{"$f":"Time!CVF$22","v":"00:00:00"},{"$f":"Time!CVG$22","v":"00:00:00"},{"$f":"Time!CVH$22","v":"00:00:00"},{"$f":"Time!CVI$22","v":"00:00:00"},{"$f":"Time!CVJ$22","v":"00:00:00"},{"$f":"Time!CVK$22","v":"00:00:00"},{"$f":"Time!CVL$22","v":"00:00:00"},{"$f":"Time!CVM$22","v":"00:00:00"},{"$f":"Time!CVN$22","v":"00:00:00"},{"$f":"Time!CVO$22","v":"00:00:00"},{"$f":"Time!CVP$22","v":"00:00:00"},{"$f":"Time!CVQ$22","v":"00:00:00"},{"$f":"Time!CVR$22","v":"00:00:00"},{"$f":"Time!CVS$22","v":"00:00:00"},{"$f":"Time!CVT$22","v":"00:00:00"},{"$f":"Time!CVU$22","v":"00:00:00"},{"$f":"Time!CVV$22","v":"00:00:00"},{"$f":"Time!CVW$22","v":"00:00:00"},{"$f":"Time!CVX$22","v":"00:00:00"},{"$f":"Time!CVY$22","v":"00:00:00"},{"$f":"Time!CVZ$22","v":"00:00:00"},{"$f":"Time!CWA$22","v":"00:00:00"},{"$f":"Time!CWB$22","v":"00:00:00"},{"$f":"Time!CWC$22","v":"00:00:00"},{"$f":"Time!CWD$22","v":"00:00:00"},{"$f":"Time!CWE$22","v":"00:00:00"},{"$f":"Time!CWF$22","v":"00:00:00"},{"$f":"Time!CWG$22","v":"00:00:00"},{"$f":"Time!CWH$22","v":"00:00:00"},{"$f":"Time!CWI$22","v":"00:00:00"},{"$f":"Time!CWJ$22","v":"00:00:00"},{"$f":"Time!CWK$22","v":"00:00:00"},{"$f":"Time!CWL$22","v":"00:00:00"},{"$f":"Time!CWM$22","v":"00:00:00"},{"$f":"Time!CWN$22","v":"00:00:00"},{"$f":"Time!CWO$22","v":"00:00:00"},{"$f":"Time!CWP$22","v":"00:00:00"},{"$f":"Time!CWQ$22","v":"00:00:00"},{"$f":"Time!CWR$22","v":"00:00:00"},{"$f":"Time!CWS$22","v":"00:00:00"},{"$f":"Time!CWT$22","v":"00:00:00"},{"$f":"Time!CWU$22","v":"00:00:00"},{"$f":"Time!CWV$22","v":"00:00:00"},{"$f":"Time!CWW$22","v":"00:00:00"},{"$f":"Time!CWX$22","v":"00:00:00"},{"$f":"Time!CWY$22","v":"00:00:00"},{"$f":"Time!CWZ$22","v":"00:00:00"},{"$f":"Time!CXA$22","v":"00:00:00"},{"$f":"Time!CXB$22","v":"00:00:00"},{"$f":"Time!CXC$22","v":"00:00:00"},{"$f":"Time!CXD$22","v":"00:00:00"},{"$f":"Time!CXE$22","v":"00:00:00"},{"$f":"Time!CXF$22","v":"00:00:00"},{"$f":"Time!CXG$22","v":"00:00:00"},{"$f":"Time!CXH$22","v":"00:00:00"},{"$f":"Time!CXI$22","v":"00:00:00"},{"$f":"Time!CXJ$22","v":"00:00:00"},{"$f":"Time!CXK$22","v":"00:00:00"},{"$f":"Time!CXL$22","v":"00:00:00"},{"$f":"Time!CXM$22","v":"00:00:00"},{"$f":"Time!CXN$22","v":"00:00:00"},{"$f":"Time!CXO$22","v":"00:00:00"},{"$f":"Time!CXP$22","v":"00:00:00"},{"$f":"Time!CXQ$22","v":"00:00:00"},{"$f":"Time!CXR$22","v":"00:00:00"},{"$f":"Time!CXS$22","v":"00:00:00"},{"$f":"Time!CXT$22","v":"00:00:00"},{"$f":"Time!CXU$22","v":"00:00:00"},{"$f":"Time!CXV$22","v":"00:00:00"},{"$f":"Time!CXW$22","v":"00:00:00"},{"$f":"Time!CXX$22","v":"00:00:00"},{"$f":"Time!CXY$22","v":"00:00:00"},{"$f":"Time!CXZ$22","v":"00:00:00"},{"$f":"Time!CYA$22","v":"00:00:00"},{"$f":"Time!CYB$22","v":"00:00:00"},{"$f":"Time!CYC$22","v":"00:00:00"},{"$f":"Time!CYD$22","v":"00:00:00"},{"$f":"Time!CYE$22","v":"00:00:00"},{"$f":"Time!CYF$22","v":"00:00:00"},{"$f":"Time!CYG$22","v":"00:00:00"},{"$f":"Time!CYH$22","v":"00:00:00"},{"$f":"Time!CYI$22","v":"00:00:00"},{"$f":"Time!CYJ$22","v":"00:00:00"},{"$f":"Time!CYK$22","v":"00:00:00"},{"$f":"Time!CYL$22","v":"00:00:00"},{"$f":"Time!CYM$22","v":"00:00:00"},{"$f":"Time!CYN$22","v":"00:00:00"},{"$f":"Time!CYO$22","v":"00:00:00"},{"$f":"Time!CYP$22","v":"00:00:00"},{"$f":"Time!CYQ$22","v":"00:00:00"},{"$f":"Time!CYR$22","v":"00:00:00"},{"$f":"Time!CYS$22","v":"00:00:00"},{"$f":"Time!CYT$22","v":"00:00:00"},{"$f":"Time!CYU$22","v":"00:00:00"},{"$f":"Time!CYV$22","v":"00:00:00"},{"$f":"Time!CYW$22","v":"00:00:00"},{"$f":"Time!CYX$22","v":"00:00:00"},{"$f":"Time!CYY$22","v":"00:00:00"},{"$f":"Time!CYZ$22","v":"00:00:00"},{"$f":"Time!CZA$22","v":"00:00:00"},{"$f":"Time!CZB$22","v":"00:00:00"},{"$f":"Time!CZC$22","v":"00:00:00"},{"$f":"Time!CZD$22","v":"00:00:00"},{"$f":"Time!CZE$22","v":"00:00:00"},{"$f":"Time!CZF$22","v":"00:00:00"},{"$f":"Time!CZG$22","v":"00:00:00"},{"$f":"Time!CZH$22","v":"00:00:00"},{"$f":"Time!CZI$22","v":"00:00:00"},{"$f":"Time!CZJ$22","v":"00:00:00"},{"$f":"Time!CZK$22","v":"00:00:00"},{"$f":"Time!CZL$22","v":"00:00:00"},{"$f":"Time!CZM$22","v":"00:00:00"},{"$f":"Time!CZN$22","v":"00:00:00"},{"$f":"Time!CZO$22","v":"00:00:00"},{"$f":"Time!CZP$22","v":"00:00:00"},{"$f":"Time!CZQ$22","v":"00:00:00"},{"$f":"Time!CZR$22","v":"00:00:00"},{"$f":"Time!CZS$22","v":"00:00:00"},{"$f":"Time!CZT$22","v":"00:00:00"},{"$f":"Time!CZU$22","v":"00:00:00"},{"$f":"Time!CZV$22","v":"00:00:00"},{"$f":"Time!CZW$22","v":"00:00:00"},{"$f":"Time!CZX$22","v":"00:00:00"},{"$f":"Time!CZY$22","v":"00:00:00"},{"$f":"Time!CZZ$22","v":"00:00:00"},{"$f":"Time!DAA$22","v":"00:00:00"},{"$f":"Time!DAB$22","v":"00:00:00"},{"$f":"Time!DAC$22","v":"00:00:00"},{"$f":"Time!DAD$22","v":"00:00:00"},{"$f":"Time!DAE$22","v":"00:00:00"},{"$f":"Time!DAF$22","v":"00:00:00"},{"$f":"Time!DAG$22","v":"00:00:00"},{"$f":"Time!DAH$22","v":"00:00:00"},{"$f":"Time!DAI$22","v":"00:00:00"},{"$f":"Time!DAJ$22","v":"00:00:00"},{"$f":"Time!DAK$22","v":"00:00:00"},{"$f":"Time!DAL$22","v":"00:00:00"},{"$f":"Time!DAM$22","v":"00:00:00"},{"$f":"Time!DAN$22","v":"00:00:00"},{"$f":"Time!DAO$22","v":"00:00:00"},{"$f":"Time!DAP$22","v":"00:00:00"},{"$f":"Time!DAQ$22","v":"00:00:00"},{"$f":"Time!DAR$22","v":"00:00:00"},{"$f":"Time!DAS$22","v":"00:00:00"},{"$f":"Time!DAT$22","v":"00:00:00"},{"$f":"Time!DAU$22","v":"00:00:00"},{"$f":"Time!DAV$22","v":"00:00:00"},{"$f":"Time!DAW$22","v":"00:00:00"},{"$f":"Time!DAX$22","v":"00:00:00"},{"$f":"Time!DAY$22","v":"00:00:00"},{"$f":"Time!DAZ$22","v":"00:00:00"},{"$f":"Time!DBA$22","v":"00:00:00"},{"$f":"Time!DBB$22","v":"00:00:00"},{"$f":"Time!DBC$22","v":"00:00:00"},{"$f":"Time!DBD$22","v":"00:00:00"},{"$f":"Time!DBE$22","v":"00:00:00"},{"$f":"Time!DBF$22","v":"00:00:00"},{"$f":"Time!DBG$22","v":"00:00:00"},{"$f":"Time!DBH$22","v":"00:00:00"},{"$f":"Time!DBI$22","v":"00:00:00"},{"$f":"Time!DBJ$22","v":"00:00:00"},{"$f":"Time!DBK$22","v":"00:00:00"},{"$f":"Time!DBL$22","v":"00:00:00"},{"$f":"Time!DBM$22","v":"00:00:00"},{"$f":"Time!DBN$22","v":"00:00:00"},{"$f":"Time!DBO$22","v":"00:00:00"},{"$f":"Time!DBP$22","v":"00:00:00"},{"$f":"Time!DBQ$22","v":"00:00:00"},{"$f":"Time!DBR$22","v":"00:00:00"},{"$f":"Time!DBS$22","v":"00:00:00"},{"$f":"Time!DBT$22","v":"00:00:00"},{"$f":"Time!DBU$22","v":"00:00:00"},{"$f":"Time!DBV$22","v":"00:00:00"},{"$f":"Time!DBW$22","v":"00:00:00"},{"$f":"Time!DBX$22","v":"00:00:00"},{"$f":"Time!DBY$22","v":"00:00:00"},{"$f":"Time!DBZ$22","v":"00:00:00"},{"$f":"Time!DCA$22","v":"00:00:00"},{"$f":"Time!DCB$22","v":"00:00:00"},{"$f":"Time!DCC$22","v":"00:00:00"},{"$f":"Time!DCD$22","v":"00:00:00"},{"$f":"Time!DCE$22","v":"00:00:00"},{"$f":"Time!DCF$22","v":"00:00:00"},{"$f":"Time!DCG$22","v":"00:00:00"},{"$f":"Time!DCH$22","v":"00:00:00"},{"$f":"Time!DCI$22","v":"00:00:00"},{"$f":"Time!DCJ$22","v":"00:00:00"},{"$f":"Time!DCK$22","v":"00:00:00"},{"$f":"Time!DCL$22","v":"00:00:00"},{"$f":"Time!DCM$22","v":"00:00:00"},{"$f":"Time!DCN$22","v":"00:00:00"},{"$f":"Time!DCO$22","v":"00:00:00"},{"$f":"Time!DCP$22","v":"00:00:00"},{"$f":"Time!DCQ$22","v":"00:00:00"},{"$f":"Time!DCR$22","v":"00:00:00"},{"$f":"Time!DCS$22","v":"00:00:00"},{"$f":"Time!DCT$22","v":"00:00:00"},{"$f":"Time!DCU$22","v":"00:00:00"},{"$f":"Time!DCV$22","v":"00:00:00"},{"$f":"Time!DCW$22","v":"00:00:00"},{"$f":"Time!DCX$22","v":"00:00:00"},{"$f":"Time!DCY$22","v":"00:00:00"},{"$f":"Time!DCZ$22","v":"00:00:00"},{"$f":"Time!DDA$22","v":"00:00:00"},{"$f":"Time!DDB$22","v":"00:00:00"},{"$f":"Time!DDC$22","v":"00:00:00"},{"$f":"Time!DDD$22","v":"00:00:00"},{"$f":"Time!DDE$22","v":"00:00:00"},{"$f":"Time!DDF$22","v":"00:00:00"},{"$f":"Time!DDG$22","v":"00:00:00"},{"$f":"Time!DDH$22","v":"00:00:00"},{"$f":"Time!DDI$22","v":"00:00:00"},{"$f":"Time!DDJ$22","v":"00:00:00"},{"$f":"Time!DDK$22","v":"00:00:00"},{"$f":"Time!DDL$22","v":"00:00:00"},{"$f":"Time!DDM$22","v":"00:00:00"},{"$f":"Time!DDN$22","v":"00:00:00"},{"$f":"Time!DDO$22","v":"00:00:00"},{"$f":"Time!DDP$22","v":"00:00:00"},{"$f":"Time!DDQ$22","v":"00:00:00"},{"$f":"Time!DDR$22","v":"00:00:00"},{"$f":"Time!DDS$22","v":"00:00:00"},{"$f":"Time!DDT$22","v":"00:00:00"},{"$f":"Time!DDU$22","v":"00:00:00"},{"$f":"Time!DDV$22","v":"00:00:00"},{"$f":"Time!DDW$22","v":"00:00:00"},{"$f":"Time!DDX$22","v":"00:00:00"},{"$f":"Time!DDY$22","v":"00:00:00"},{"$f":"Time!DDZ$22","v":"00:00:00"},{"$f":"Time!DEA$22","v":"00:00:00"},{"$f":"Time!DEB$22","v":"00:00:00"},{"$f":"Time!DEC$22","v":"00:00:00"},{"$f":"Time!DED$22","v":"00:00:00"},{"$f":"Time!DEE$22","v":"00:00:00"},{"$f":"Time!DEF$22","v":"00:00:00"},{"$f":"Time!DEG$22","v":"00:00:00"},{"$f":"Time!DEH$22","v":"00:00:00"},{"$f":"Time!DEI$22","v":"00:00:00"},{"$f":"Time!DEJ$22","v":"00:00:00"},{"$f":"Time!DEK$22","v":"00:00:00"},{"$f":"Time!DEL$22","v":"00:00:00"},{"$f":"Time!DEM$22","v":"00:00:00"},{"$f":"Time!DEN$22","v":"00:00:00"},{"$f":"Time!DEO$22","v":"00:00:00"},{"$f":"Time!DEP$22","v":"00:00:00"},{"$f":"Time!DEQ$22","v":"00:00:00"},{"$f":"Time!DER$22","v":"00:00:00"},{"$f":"Time!DES$22","v":"00:00:00"},{"$f":"Time!DET$22","v":"00:00:00"},{"$f":"Time!DEU$22","v":"00:00:00"},{"$f":"Time!DEV$22","v":"00:00:00"},{"$f":"Time!DEW$22","v":"00:00:00"},{"$f":"Time!DEX$22","v":"00:00:00"},{"$f":"Time!DEY$22","v":"00:00:00"},{"$f":"Time!DEZ$22","v":"00:00:00"},{"$f":"Time!DFA$22","v":"00:00:00"},{"$f":"Time!DFB$22","v":"00:00:00"},{"$f":"Time!DFC$22","v":"00:00:00"},{"$f":"Time!DFD$22","v":"00:00:00"},{"$f":"Time!DFE$22","v":"00:00:00"},{"$f":"Time!DFF$22","v":"00:00:00"},{"$f":"Time!DFG$22","v":"00:00:00"},{"$f":"Time!DFH$22","v":"00:00:00"},{"$f":"Time!DFI$22","v":"00:00:00"},{"$f":"Time!DFJ$22","v":"00:00:00"},{"$f":"Time!DFK$22","v":"00:00:00"},{"$f":"Time!DFL$22","v":"00:00:00"},{"$f":"Time!DFM$22","v":"00:00:00"},{"$f":"Time!DFN$22","v":"00:00:00"},{"$f":"Time!DFO$22","v":"00:00:00"},{"$f":"Time!DFP$22","v":"00:00:00"},{"$f":"Time!DFQ$22","v":"00:00:00"},{"$f":"Time!DFR$22","v":"00:00:00"},{"$f":"Time!DFS$22","v":"00:00:00"},{"$f":"Time!DFT$22","v":"00:00:00"},{"$f":"Time!DFU$22","v":"00:00:00"},{"$f":"Time!DFV$22","v":"00:00:00"},{"$f":"Time!DFW$22","v":"00:00:00"},{"$f":"Time!DFX$22","v":"00:00:00"},{"$f":"Time!DFY$22","v":"00:00:00"},{"$f":"Time!DFZ$22","v":"00:00:00"},{"$f":"Time!DGA$22","v":"00:00:00"},{"$f":"Time!DGB$22","v":"00:00:00"},{"$f":"Time!DGC$22","v":"00:00:00"},{"$f":"Time!DGD$22","v":"00:00:00"},{"$f":"Time!DGE$22","v":"00:00:00"},{"$f":"Time!DGF$22","v":"00:00:00"},{"$f":"Time!DGG$22","v":"00:00:00"},{"$f":"Time!DGH$22","v":"00:00:00"},{"$f":"Time!DGI$22","v":"00:00:00"},{"$f":"Time!DGJ$22","v":"00:00:00"},{"$f":"Time!DGK$22","v":"00:00:00"},{"$f":"Time!DGL$22","v":"00:00:00"},{"$f":"Time!DGM$22","v":"00:00:00"},{"$f":"Time!DGN$22","v":"00:00:00"},{"$f":"Time!DGO$22","v":"00:00:00"},{"$f":"Time!DGP$22","v":"00:00:00"},{"$f":"Time!DGQ$22","v":"00:00:00"},{"$f":"Time!DGR$22","v":"00:00:00"},{"$f":"Time!DGS$22","v":"00:00:00"},{"$f":"Time!DGT$22","v":"00:00:00"},{"$f":"Time!DGU$22","v":"00:00:00"},{"$f":"Time!DGV$22","v":"00:00:00"},{"$f":"Time!DGW$22","v":"00:00:00"},{"$f":"Time!DGX$22","v":"00:00:00"},{"$f":"Time!DGY$22","v":"00:00:00"},{"$f":"Time!DGZ$22","v":"00:00:00"},{"$f":"Time!DHA$22","v":"00:00:00"},{"$f":"Time!DHB$22","v":"00:00:00"},{"$f":"Time!DHC$22","v":"00:00:00"},{"$f":"Time!DHD$22","v":"00:00:00"},{"$f":"Time!DHE$22","v":"00:00:00"},{"$f":"Time!DHF$22","v":"00:00:00"},{"$f":"Time!DHG$22","v":"00:00:00"},{"$f":"Time!DHH$22","v":"00:00:00"},{"$f":"Time!DHI$22","v":"00:00:00"},{"$f":"Time!DHJ$22","v":"00:00:00"},{"$f":"Time!DHK$22","v":"00:00:00"},{"$f":"Time!DHL$22","v":"00:00:00"},{"$f":"Time!DHM$22","v":"00:00:00"},{"$f":"Time!DHN$22","v":"00:00:00"},{"$f":"Time!DHO$22","v":"00:00:00"},{"$f":"Time!DHP$22","v":"00:00:00"},{"$f":"Time!DHQ$22","v":"00:00:00"},{"$f":"Time!DHR$22","v":"00:00:00"},{"$f":"Time!DHS$22","v":"00:00:00"},{"$f":"Time!DHT$22","v":"00:00:00"},{"$f":"Time!DHU$22","v":"00:00:00"},{"$f":"Time!DHV$22","v":"00:00:00"},{"$f":"Time!DHW$22","v":"00:00:00"},{"$f":"Time!DHX$22","v":"00:00:00"},{"$f":"Time!DHY$22","v":"00:00:00"},{"$f":"Time!DHZ$22","v":"00:00:00"},{"$f":"Time!DIA$22","v":"00:00:00"},{"$f":"Time!DIB$22","v":"00:00:00"},{"$f":"Time!DIC$22","v":"00:00:00"},{"$f":"Time!DID$22","v":"00:00:00"},{"$f":"Time!DIE$22","v":"00:00:00"},{"$f":"Time!DIF$22","v":"00:00:00"},{"$f":"Time!DIG$22","v":"00:00:00"},{"$f":"Time!DIH$22","v":"00:00:00"},{"$f":"Time!DII$22","v":"00:00:00"},{"$f":"Time!DIJ$22","v":"00:00:00"},{"$f":"Time!DIK$22","v":"00:00:00"},{"$f":"Time!DIL$22","v":"00:00:00"},{"$f":"Time!DIM$22","v":"00:00:00"},{"$f":"Time!DIN$22","v":"00:00:00"},{"$f":"Time!DIO$22","v":"00:00:00"},{"$f":"Time!DIP$22","v":"00:00:00"},{"$f":"Time!DIQ$22","v":"00:00:00"},{"$f":"Time!DIR$22","v":"00:00:00"},{"$f":"Time!DIS$22","v":"00:00:00"},{"$f":"Time!DIT$22","v":"00:00:00"},{"$f":"Time!DIU$22","v":"00:00:00"},{"$f":"Time!DIV$22","v":"00:00:00"},{"$f":"Time!DIW$22","v":"00:00:00"},{"$f":"Time!DIX$22","v":"00:00:00"},{"$f":"Time!DIY$22","v":"00:00:00"},{"$f":"Time!DIZ$22","v":"00:00:00"},{"$f":"Time!DJA$22","v":"00:00:00"},{"$f":"Time!DJB$22","v":"00:00:00"},{"$f":"Time!DJC$22","v":"00:00:00"},{"$f":"Time!DJD$22","v":"00:00:00"},{"$f":"Time!DJE$22","v":"00:00:00"},{"$f":"Time!DJF$22","v":"00:00:00"},{"$f":"Time!DJG$22","v":"00:00:00"},{"$f":"Time!DJH$22","v":"00:00:00"},{"$f":"Time!DJI$22","v":"00:00:00"},{"$f":"Time!DJJ$22","v":"00:00:00"},{"$f":"Time!DJK$22","v":"00:00:00"},{"$f":"Time!DJL$22","v":"00:00:00"},{"$f":"Time!DJM$22","v":"00:00:00"},{"$f":"Time!DJN$22","v":"00:00:00"},{"$f":"Time!DJO$22","v":"00:00:00"},{"$f":"Time!DJP$22","v":"00:00:00"},{"$f":"Time!DJQ$22","v":"00:00:00"},{"$f":"Time!DJR$22","v":"00:00:00"},{"$f":"Time!DJS$22","v":"00:00:00"},{"$f":"Time!DJT$22","v":"00:00:00"},{"$f":"Time!DJU$22","v":"00:00:00"},{"$f":"Time!DJV$22","v":"00:00:00"},{"$f":"Time!DJW$22","v":"00:00:00"},{"$f":"Time!DJX$22","v":"00:00:00"},{"$f":"Time!DJY$22","v":"00:00:00"},{"$f":"Time!DJZ$22","v":"00:00:00"},{"$f":"Time!DKA$22","v":"00:00:00"},{"$f":"Time!DKB$22","v":"00:00:00"},{"$f":"Time!DKC$22","v":"00:00:00"},{"$f":"Time!DKD$22","v":"00:00:00"},{"$f":"Time!DKE$22","v":"00:00:00"},{"$f":"Time!DKF$22","v":"00:00:00"},{"$f":"Time!DKG$22","v":"00:00:00"},{"$f":"Time!DKH$22","v":"00:00:00"},{"$f":"Time!DKI$22","v":"00:00:00"},{"$f":"Time!DKJ$22","v":"00:00:00"},{"$f":"Time!DKK$22","v":"00:00:00"},{"$f":"Time!DKL$22","v":"00:00:00"},{"$f":"Time!DKM$22","v":"00:00:00"},{"$f":"Time!DKN$22","v":"00:00:00"},{"$f":"Time!DKO$22","v":"00:00:00"},{"$f":"Time!DKP$22","v":"00:00:00"},{"$f":"Time!DKQ$22","v":"00:00:00"},{"$f":"Time!DKR$22","v":"00:00:00"},{"$f":"Time!DKS$22","v":"00:00:00"},{"$f":"Time!DKT$22","v":"00:00:00"},{"$f":"Time!DKU$22","v":"00:00:00"},{"$f":"Time!DKV$22","v":"00:00:00"},{"$f":"Time!DKW$22","v":"00:00:00"},{"$f":"Time!DKX$22","v":"00:00:00"},{"$f":"Time!DKY$22","v":"00:00:00"},{"$f":"Time!DKZ$22","v":"00:00:00"},{"$f":"Time!DLA$22","v":"00:00:00"},{"$f":"Time!DLB$22","v":"00:00:00"},{"$f":"Time!DLC$22","v":"00:00:00"},{"$f":"Time!DLD$22","v":"00:00:00"},{"$f":"Time!DLE$22","v":"00:00:00"},{"$f":"Time!DLF$22","v":"00:00:00"},{"$f":"Time!DLG$22","v":"00:00:00"},{"$f":"Time!DLH$22","v":"00:00:00"},{"$f":"Time!DLI$22","v":"00:00:00"},{"$f":"Time!DLJ$22","v":"00:00:00"},{"$f":"Time!DLK$22","v":"00:00:00"},{"$f":"Time!DLL$22","v":"00:00:00"},{"$f":"Time!DLM$22","v":"00:00:00"},{"$f":"Time!DLN$22","v":"00:00:00"},{"$f":"Time!DLO$22","v":"00:00:00"},{"$f":"Time!DLP$22","v":"00:00:00"},{"$f":"Time!DLQ$22","v":"00:00:00"},{"$f":"Time!DLR$22","v":"00:00:00"},{"$f":"Time!DLS$22","v":"00:00:00"},{"$f":"Time!DLT$22","v":"00:00:00"},{"$f":"Time!DLU$22","v":"00:00:00"},{"$f":"Time!DLV$22","v":"00:00:00"},{"$f":"Time!DLW$22","v":"00:00:00"},{"$f":"Time!DLX$22","v":"00:00:00"},{"$f":"Time!DLY$22","v":"00:00:00"},{"$f":"Time!DLZ$22","v":"00:00:00"},{"$f":"Time!DMA$22","v":"00:00:00"},{"$f":"Time!DMB$22","v":"00:00:00"},{"$f":"Time!DMC$22","v":"00:00:00"},{"$f":"Time!DMD$22","v":"00:00:00"},{"$f":"Time!DME$22","v":"00:00:00"},{"$f":"Time!DMF$22","v":"00:00:00"},{"$f":"Time!DMG$22","v":"00:00:00"},{"$f":"Time!DMH$22","v":"00:00:00"},{"$f":"Time!DMI$22","v":"00:00:00"},{"$f":"Time!DMJ$22","v":"00:00:00"},{"$f":"Time!DMK$22","v":"00:00:00"},{"$f":"Time!DML$22","v":"00:00:00"},{"$f":"Time!DMM$22","v":"00:00:00"},{"$f":"Time!DMN$22","v":"00:00:00"},{"$f":"Time!DMO$22","v":"00:00:00"},{"$f":"Time!DMP$22","v":"00:00:00"},{"$f":"Time!DMQ$22","v":"00:00:00"},{"$f":"Time!DMR$22","v":"00:00:00"},{"$f":"Time!DMS$22","v":"00:00:00"},{"$f":"Time!DMT$22","v":"00:00:00"},{"$f":"Time!DMU$22","v":"00:00:00"},{"$f":"Time!DMV$22","v":"00:00:00"},{"$f":"Time!DMW$22","v":"00:00:00"},{"$f":"Time!DMX$22","v":"00:00:00"},{"$f":"Time!DMY$22","v":"00:00:00"},{"$f":"Time!DMZ$22","v":"00:00:00"},{"$f":"Time!DNA$22","v":"00:00:00"},{"$f":"Time!DNB$22","v":"00:00:00"},{"$f":"Time!DNC$22","v":"00:00:00"},{"$f":"Time!DND$22","v":"00:00:00"},{"$f":"Time!DNE$22","v":"00:00:00"},{"$f":"Time!DNF$22","v":"00:00:00"},{"$f":"Time!DNG$22","v":"00:00:00"},{"$f":"Time!DNH$22","v":"00:00:00"},{"$f":"Time!DNI$22","v":"00:00:00"},{"$f":"Time!DNJ$22","v":"00:00:00"},{"$f":"Time!DNK$22","v":"00:00:00"},{"$f":"Time!DNL$22","v":"00:00:00"},{"$f":"Time!DNM$22","v":"00:00:00"},{"$f":"Time!DNN$22","v":"00:00:00"},{"$f":"Time!DNO$22","v":"00:00:00"},{"$f":"Time!DNP$22","v":"00:00:00"},{"$f":"Time!DNQ$22","v":"00:00:00"},{"$f":"Time!DNR$22","v":"00:00:00"},{"$f":"Time!DNS$22","v":"00:00:00"},{"$f":"Time!DNT$22","v":"00:00:00"},{"$f":"Time!DNU$22","v":"00:00:00"},{"$f":"Time!DNV$22","v":"00:00:00"},{"$f":"Time!DNW$22","v":"00:00:00"},{"$f":"Time!DNX$22","v":"00:00:00"},{"$f":"Time!DNY$22","v":"00:00:00"},{"$f":"Time!DNZ$22","v":"00:00:00"},{"$f":"Time!DOA$22","v":"00:00:00"},{"$f":"Time!DOB$22","v":"00:00:00"},{"$f":"Time!DOC$22","v":"00:00:00"},{"$f":"Time!DOD$22","v":"00:00:00"},{"$f":"Time!DOE$22","v":"00:00:00"},{"$f":"Time!DOF$22","v":"00:00:00"},{"$f":"Time!DOG$22","v":"00:00:00"},{"$f":"Time!DOH$22","v":"00:00:00"},{"$f":"Time!DOI$22","v":"00:00:00"},{"$f":"Time!DOJ$22","v":"00:00:00"},{"$f":"Time!DOK$22","v":"00:00:00"},{"$f":"Time!DOL$22","v":"00:00:00"},{"$f":"Time!DOM$22","v":"00:00:00"},{"$f":"Time!DON$22","v":"00:00:00"},{"$f":"Time!DOO$22","v":"00:00:00"},{"$f":"Time!DOP$22","v":"00:00:00"},{"$f":"Time!DOQ$22","v":"00:00:00"},{"$f":"Time!DOR$22","v":"00:00:00"},{"$f":"Time!DOS$22","v":"00:00:00"},{"$f":"Time!DOT$22","v":"00:00:00"},{"$f":"Time!DOU$22","v":"00:00:00"},{"$f":"Time!DOV$22","v":"00:00:00"},{"$f":"Time!DOW$22","v":"00:00:00"},{"$f":"Time!DOX$22","v":"00:00:00"},{"$f":"Time!DOY$22","v":"00:00:00"},{"$f":"Time!DOZ$22","v":"00:00:00"},{"$f":"Time!DPA$22","v":"00:00:00"},{"$f":"Time!DPB$22","v":"00:00:00"},{"$f":"Time!DPC$22","v":"00:00:00"},{"$f":"Time!DPD$22","v":"00:00:00"},{"$f":"Time!DPE$22","v":"00:00:00"},{"$f":"Time!DPF$22","v":"00:00:00"},{"$f":"Time!DPG$22","v":"00:00:00"},{"$f":"Time!DPH$22","v":"00:00:00"},{"$f":"Time!DPI$22","v":"00:00:00"},{"$f":"Time!DPJ$22","v":"00:00:00"},{"$f":"Time!DPK$22","v":"00:00:00"},{"$f":"Time!DPL$22","v":"00:00:00"},{"$f":"Time!DPM$22","v":"00:00:00"},{"$f":"Time!DPN$22","v":"00:00:00"},{"$f":"Time!DPO$22","v":"00:00:00"},{"$f":"Time!DPP$22","v":"00:00:00"},{"$f":"Time!DPQ$22","v":"00:00:00"},{"$f":"Time!DPR$22","v":"00:00:00"},{"$f":"Time!DPS$22","v":"00:00:00"},{"$f":"Time!DPT$22","v":"00:00:00"},{"$f":"Time!DPU$22","v":"00:00:00"},{"$f":"Time!DPV$22","v":"00:00:00"},{"$f":"Time!DPW$22","v":"00:00:00"},{"$f":"Time!DPX$22","v":"00:00:00"},{"$f":"Time!DPY$22","v":"00:00:00"},{"$f":"Time!DPZ$22","v":"00:00:00"},{"$f":"Time!DQA$22","v":"00:00:00"},{"$f":"Time!DQB$22","v":"00:00:00"},{"$f":"Time!DQC$22","v":"00:00:00"},{"$f":"Time!DQD$22","v":"00:00:00"},{"$f":"Time!DQE$22","v":"00:00:00"},{"$f":"Time!DQF$22","v":"00:00:00"},{"$f":"Time!DQG$22","v":"00:00:00"},{"$f":"Time!DQH$22","v":"00:00:00"},{"$f":"Time!DQI$22","v":"00:00:00"},{"$f":"Time!DQJ$22","v":"00:00:00"},{"$f":"Time!DQK$22","v":"00:00:00"},{"$f":"Time!DQL$22","v":"00:00:00"},{"$f":"Time!DQM$22","v":"00:00:00"},{"$f":"Time!DQN$22","v":"00:00:00"},{"$f":"Time!DQO$22","v":"00:00:00"},{"$f":"Time!DQP$22","v":"00:00:00"},{"$f":"Time!DQQ$22","v":"00:00:00"},{"$f":"Time!DQR$22","v":"00:00:00"},{"$f":"Time!DQS$22","v":"00:00:00"},{"$f":"Time!DQT$22","v":"00:00:00"},{"$f":"Time!DQU$22","v":"00:00:00"},{"$f":"Time!DQV$22","v":"00:00:00"},{"$f":"Time!DQW$22","v":"00:00:00"},{"$f":"Time!DQX$22","v":"00:00:00"},{"$f":"Time!DQY$22","v":"00:00:00"},{"$f":"Time!DQZ$22","v":"00:00:00"},{"$f":"Time!DRA$22","v":"00:00:00"},{"$f":"Time!DRB$22","v":"00:00:00"},{"$f":"Time!DRC$22","v":"00:00:00"},{"$f":"Time!DRD$22","v":"00:00:00"},{"$f":"Time!DRE$22","v":"00:00:00"},{"$f":"Time!DRF$22","v":"00:00:00"},{"$f":"Time!DRG$22","v":"00:00:00"},{"$f":"Time!DRH$22","v":"00:00:00"},{"$f":"Time!DRI$22","v":"00:00:00"},{"$f":"Time!DRJ$22","v":"00:00:00"},{"$f":"Time!DRK$22","v":"00:00:00"},{"$f":"Time!DRL$22","v":"00:00:00"},{"$f":"Time!DRM$22","v":"00:00:00"},{"$f":"Time!DRN$22","v":"00:00:00"},{"$f":"Time!DRO$22","v":"00:00:00"},{"$f":"Time!DRP$22","v":"00:00:00"},{"$f":"Time!DRQ$22","v":"00:00:00"},{"$f":"Time!DRR$22","v":"00:00:00"},{"$f":"Time!DRS$22","v":"00:00:00"},{"$f":"Time!DRT$22","v":"00:00:00"},{"$f":"Time!DRU$22","v":"00:00:00"},{"$f":"Time!DRV$22","v":"00:00:00"},{"$f":"Time!DRW$22","v":"00:00:00"},{"$f":"Time!DRX$22","v":"00:00:00"},{"$f":"Time!DRY$22","v":"00:00:00"},{"$f":"Time!DRZ$22","v":"00:00:00"},{"$f":"Time!DSA$22","v":"00:00:00"},{"$f":"Time!DSB$22","v":"00:00:00"},{"$f":"Time!DSC$22","v":"00:00:00"},{"$f":"Time!DSD$22","v":"00:00:00"},{"$f":"Time!DSE$22","v":"00:00:00"},{"$f":"Time!DSF$22","v":"00:00:00"},{"$f":"Time!DSG$22","v":"00:00:00"},{"$f":"Time!DSH$22","v":"00:00:00"},{"$f":"Time!DSI$22","v":"00:00:00"},{"$f":"Time!DSJ$22","v":"00:00:00"},{"$f":"Time!DSK$22","v":"00:00:00"},{"$f":"Time!DSL$22","v":"00:00:00"},{"$f":"Time!DSM$22","v":"00:00:00"},{"$f":"Time!DSN$22","v":"00:00:00"},{"$f":"Time!DSO$22","v":"00:00:00"},{"$f":"Time!DSP$22","v":"00:00:00"},{"$f":"Time!DSQ$22","v":"00:00:00"},{"$f":"Time!DSR$22","v":"00:00:00"},{"$f":"Time!DSS$22","v":"00:00:00"},{"$f":"Time!DST$22","v":"00:00:00"},{"$f":"Time!DSU$22","v":"00:00:00"},{"$f":"Time!DSV$22","v":"00:00:00"},{"$f":"Time!DSW$22","v":"00:00:00"},{"$f":"Time!DSX$22","v":"00:00:00"},{"$f":"Time!DSY$22","v":"00:00:00"},{"$f":"Time!DSZ$22","v":"00:00:00"},{"$f":"Time!DTA$22","v":"00:00:00"},{"$f":"Time!DTB$22","v":"00:00:00"},{"$f":"Time!DTC$22","v":"00:00:00"},{"$f":"Time!DTD$22","v":"00:00:00"},{"$f":"Time!DTE$22","v":"00:00:00"},{"$f":"Time!DTF$22","v":"00:00:00"},{"$f":"Time!DTG$22","v":"00:00:00"},{"$f":"Time!DTH$22","v":"00:00:00"},{"$f":"Time!DTI$22","v":"00:00:00"},{"$f":"Time!DTJ$22","v":"00:00:00"},{"$f":"Time!DTK$22","v":"00:00:00"},{"$f":"Time!DTL$22","v":"00:00:00"},{"$f":"Time!DTM$22","v":"00:00:00"},{"$f":"Time!DTN$22","v":"00:00:00"},{"$f":"Time!DTO$22","v":"00:00:00"},{"$f":"Time!DTP$22","v":"00:00:00"},{"$f":"Time!DTQ$22","v":"00:00:00"},{"$f":"Time!DTR$22","v":"00:00:00"},{"$f":"Time!DTS$22","v":"00:00:00"},{"$f":"Time!DTT$22","v":"00:00:00"},{"$f":"Time!DTU$22","v":"00:00:00"},{"$f":"Time!DTV$22","v":"00:00:00"},{"$f":"Time!DTW$22","v":"00:00:00"},{"$f":"Time!DTX$22","v":"00:00:00"},{"$f":"Time!DTY$22","v":"00:00:00"},{"$f":"Time!DTZ$22","v":"00:00:00"},{"$f":"Time!DUA$22","v":"00:00:00"},{"$f":"Time!DUB$22","v":"00:00:00"},{"$f":"Time!DUC$22","v":"00:00:00"},{"$f":"Time!DUD$22","v":"00:00:00"},{"$f":"Time!DUE$22","v":"00:00:00"},{"$f":"Time!DUF$22","v":"00:00:00"},{"$f":"Time!DUG$22","v":"00:00:00"},{"$f":"Time!DUH$22","v":"00:00:00"},{"$f":"Time!DUI$22","v":"00:00:00"},{"$f":"Time!DUJ$22","v":"00:00:00"},{"$f":"Time!DUK$22","v":"00:00:00"},{"$f":"Time!DUL$22","v":"00:00:00"},{"$f":"Time!DUM$22","v":"00:00:00"},{"$f":"Time!DUN$22","v":"00:00:00"},{"$f":"Time!DUO$22","v":"00:00:00"},{"$f":"Time!DUP$22","v":"00:00:00"},{"$f":"Time!DUQ$22","v":"00:00:00"},{"$f":"Time!DUR$22","v":"00:00:00"},{"$f":"Time!DUS$22","v":"00:00:00"},{"$f":"Time!DUT$22","v":"00:00:00"},{"$f":"Time!DUU$22","v":"00:00:00"},{"$f":"Time!DUV$22","v":"00:00:00"},{"$f":"Time!DUW$22","v":"00:00:00"},{"$f":"Time!DUX$22","v":"00:00:00"},{"$f":"Time!DUY$22","v":"00:00:00"},{"$f":"Time!DUZ$22","v":"00:00:00"},{"$f":"Time!DVA$22","v":"00:00:00"},{"$f":"Time!DVB$22","v":"00:00:00"},{"$f":"Time!DVC$22","v":"00:00:00"},{"$f":"Time!DVD$22","v":"00:00:00"},{"$f":"Time!DVE$22","v":"00:00:00"},{"$f":"Time!DVF$22","v":"00:00:00"},{"$f":"Time!DVG$22","v":"00:00:00"},{"$f":"Time!DVH$22","v":"00:00:00"},{"$f":"Time!DVI$22","v":"00:00:00"},{"$f":"Time!DVJ$22","v":"00:00:00"},{"$f":"Time!DVK$22","v":"00:00:00"},{"$f":"Time!DVL$22","v":"00:00:00"},{"$f":"Time!DVM$22","v":"00:00:00"},{"$f":"Time!DVN$22","v":"00:00:00"},{"$f":"Time!DVO$22","v":"00:00:00"},{"$f":"Time!DVP$22","v":"00:00:00"},{"$f":"Time!DVQ$22","v":"00:00:00"},{"$f":"Time!DVR$22","v":"00:00:00"},{"$f":"Time!DVS$22","v":"00:00:00"},{"$f":"Time!DVT$22","v":"00:00:00"},{"$f":"Time!DVU$22","v":"00:00:00"},{"$f":"Time!DVV$22","v":"00:00:00"},{"$f":"Time!DVW$22","v":"00:00:00"},{"$f":"Time!DVX$22","v":"00:00:00"},{"$f":"Time!DVY$22","v":"00:00:00"},{"$f":"Time!DVZ$22","v":"00:00:00"},{"$f":"Time!DWA$22","v":"00:00:00"},{"$f":"Time!DWB$22","v":"00:00:00"},{"$f":"Time!DWC$22","v":"00:00:00"},{"$f":"Time!DWD$22","v":"00:00:00"},{"$f":"Time!DWE$22","v":"00:00:00"},{"$f":"Time!DWF$22","v":"00:00:00"},{"$f":"Time!DWG$22","v":"00:00:00"},{"$f":"Time!DWH$22","v":"00:00:00"},{"$f":"Time!DWI$22","v":"00:00:00"},{"$f":"Time!DWJ$22","v":"00:00:00"},{"$f":"Time!DWK$22","v":"00:00:00"},{"$f":"Time!DWL$22","v":"00:00:00"},{"$f":"Time!DWM$22","v":"00:00:00"},{"$f":"Time!DWN$22","v":"00:00:00"},{"$f":"Time!DWO$22","v":"00:00:00"},{"$f":"Time!DWP$22","v":"00:00:00"},{"$f":"Time!DWQ$22","v":"00:00:00"},{"$f":"Time!DWR$22","v":"00:00:00"},{"$f":"Time!DWS$22","v":"00:00:00"},{"$f":"Time!DWT$22","v":"00:00:00"},{"$f":"Time!DWU$22","v":"00:00:00"},{"$f":"Time!DWV$22","v":"00:00:00"},{"$f":"Time!DWW$22","v":"00:00:00"},{"$f":"Time!DWX$22","v":"00:00:00"},{"$f":"Time!DWY$22","v":"00:00:00"},{"$f":"Time!DWZ$22","v":"00:00:00"},{"$f":"Time!DXA$22","v":"00:00:00"},{"$f":"Time!DXB$22","v":"00:00:00"},{"$f":"Time!DXC$22","v":"00:00:00"},{"$f":"Time!DXD$22","v":"00:00:00"},{"$f":"Time!DXE$22","v":"00:00:00"},{"$f":"Time!DXF$22","v":"00:00:00"},{"$f":"Time!DXG$22","v":"00:00:00"},{"$f":"Time!DXH$22","v":"00:00:00"},{"$f":"Time!DXI$22","v":"00:00:00"},{"$f":"Time!DXJ$22","v":"00:00:00"},{"$f":"Time!DXK$22","v":"00:00:00"},{"$f":"Time!DXL$22","v":"00:00:00"},{"$f":"Time!DXM$22","v":"00:00:00"},{"$f":"Time!DXN$22","v":"00:00:00"},{"$f":"Time!DXO$22","v":"00:00:00"},{"$f":"Time!DXP$22","v":"00:00:00"},{"$f":"Time!DXQ$22","v":"00:00:00"},{"$f":"Time!DXR$22","v":"00:00:00"},{"$f":"Time!DXS$22","v":"00:00:00"},{"$f":"Time!DXT$22","v":"00:00:00"},{"$f":"Time!DXU$22","v":"00:00:00"},{"$f":"Time!DXV$22","v":"00:00:00"},{"$f":"Time!DXW$22","v":"00:00:00"},{"$f":"Time!DXX$22","v":"00:00:00"},{"$f":"Time!DXY$22","v":"00:00:00"},{"$f":"Time!DXZ$22","v":"00:00:00"},{"$f":"Time!DYA$22","v":"00:00:00"},{"$f":"Time!DYB$22","v":"00:00:00"},{"$f":"Time!DYC$22","v":"00:00:00"},{"$f":"Time!DYD$22","v":"00:00:00"},{"$f":"Time!DYE$22","v":"00:00:00"},{"$f":"Time!DYF$22","v":"00:00:00"},{"$f":"Time!DYG$22","v":"00:00:00"},{"$f":"Time!DYH$22","v":"00:00:00"},{"$f":"Time!DYI$22","v":"00:00:00"},{"$f":"Time!DYJ$22","v":"00:00:00"},{"$f":"Time!DYK$22","v":"00:00:00"},{"$f":"Time!DYL$22","v":"00:00:00"},{"$f":"Time!DYM$22","v":"00:00:00"},{"$f":"Time!DYN$22","v":"00:00:00"},{"$f":"Time!DYO$22","v":"00:00:00"},{"$f":"Time!DYP$22","v":"00:00:00"},{"$f":"Time!DYQ$22","v":"00:00:00"},{"$f":"Time!DYR$22","v":"00:00:00"},{"$f":"Time!DYS$22","v":"00:00:00"},{"$f":"Time!DYT$22","v":"00:00:00"},{"$f":"Time!DYU$22","v":"00:00:00"},{"$f":"Time!DYV$22","v":"00:00:00"},{"$f":"Time!DYW$22","v":"00:00:00"},{"$f":"Time!DYX$22","v":"00:00:00"},{"$f":"Time!DYY$22","v":"00:00:00"},{"$f":"Time!DYZ$22","v":"00:00:00"},{"$f":"Time!DZA$22","v":"00:00:00"},{"$f":"Time!DZB$22","v":"00:00:00"},{"$f":"Time!DZC$22","v":"00:00:00"},{"$f":"Time!DZD$22","v":"00:00:00"},{"$f":"Time!DZE$22","v":"00:00:00"},{"$f":"Time!DZF$22","v":"00:00:00"},{"$f":"Time!DZG$22","v":"00:00:00"},{"$f":"Time!DZH$22","v":"00:00:00"},{"$f":"Time!DZI$22","v":"00:00:00"},{"$f":"Time!DZJ$22","v":"00:00:00"},{"$f":"Time!DZK$22","v":"00:00:00"},{"$f":"Time!DZL$22","v":"00:00:00"},{"$f":"Time!DZM$22","v":"00:00:00"},{"$f":"Time!DZN$22","v":"00:00:00"},{"$f":"Time!DZO$22","v":"00:00:00"},{"$f":"Time!DZP$22","v":"00:00:00"},{"$f":"Time!DZQ$22","v":"00:00:00"},{"$f":"Time!DZR$22","v":"00:00:00"},{"$f":"Time!DZS$22","v":"00:00:00"},{"$f":"Time!DZT$22","v":"00:00:00"},{"$f":"Time!DZU$22","v":"00:00:00"},{"$f":"Time!DZV$22","v":"00:00:00"},{"$f":"Time!DZW$22","v":"00:00:00"},{"$f":"Time!DZX$22","v":"00:00:00"},{"$f":"Time!DZY$22","v":"00:00:00"},{"$f":"Time!DZZ$22","v":"00:00:00"},{"$f":"Time!EAA$22","v":"00:00:00"},{"$f":"Time!EAB$22","v":"00:00:00"},{"$f":"Time!EAC$22","v":"00:00:00"},{"$f":"Time!EAD$22","v":"00:00:00"},{"$f":"Time!EAE$22","v":"00:00:00"},{"$f":"Time!EAF$22","v":"00:00:00"},{"$f":"Time!EAG$22","v":"00:00:00"},{"$f":"Time!EAH$22","v":"00:00:00"},{"$f":"Time!EAI$22","v":"00:00:00"},{"$f":"Time!EAJ$22","v":"00:00:00"},{"$f":"Time!EAK$22","v":"00:00:00"},{"$f":"Time!EAL$22","v":"00:00:00"},{"$f":"Time!EAM$22","v":"00:00:00"},{"$f":"Time!EAN$22","v":"00:00:00"},{"$f":"Time!EAO$22","v":"00:00:00"},{"$f":"Time!EAP$22","v":"00:00:00"},{"$f":"Time!EAQ$22","v":"00:00:00"},{"$f":"Time!EAR$22","v":"00:00:00"},{"$f":"Time!EAS$22","v":"00:00:00"},{"$f":"Time!EAT$22","v":"00:00:00"},{"$f":"Time!EAU$22","v":"00:00:00"},{"$f":"Time!EAV$22","v":"00:00:00"},{"$f":"Time!EAW$22","v":"00:00:00"},{"$f":"Time!EAX$22","v":"00:00:00"},{"$f":"Time!EAY$22","v":"00:00:00"},{"$f":"Time!EAZ$22","v":"00:00:00"},{"$f":"Time!EBA$22","v":"00:00:00"},{"$f":"Time!EBB$22","v":"00:00:00"},{"$f":"Time!EBC$22","v":"00:00:00"},{"$f":"Time!EBD$22","v":"00:00:00"},{"$f":"Time!EBE$22","v":"00:00:00"},{"$f":"Time!EBF$22","v":"00:00:00"},{"$f":"Time!EBG$22","v":"00:00:00"},{"$f":"Time!EBH$22","v":"00:00:00"},{"$f":"Time!EBI$22","v":"00:00:00"},{"$f":"Time!EBJ$22","v":"00:00:00"},{"$f":"Time!EBK$22","v":"00:00:00"},{"$f":"Time!EBL$22","v":"00:00:00"},{"$f":"Time!EBM$22","v":"00:00:00"},{"$f":"Time!EBN$22","v":"00:00:00"},{"$f":"Time!EBO$22","v":"00:00:00"},{"$f":"Time!EBP$22","v":"00:00:00"},{"$f":"Time!EBQ$22","v":"00:00:00"},{"$f":"Time!EBR$22","v":"00:00:00"},{"$f":"Time!EBS$22","v":"00:00:00"},{"$f":"Time!EBT$22","v":"00:00:00"},{"$f":"Time!EBU$22","v":"00:00:00"},{"$f":"Time!EBV$22","v":"00:00:00"},{"$f":"Time!EBW$22","v":"00:00:00"},{"$f":"Time!EBX$22","v":"00:00:00"},{"$f":"Time!EBY$22","v":"00:00:00"},{"$f":"Time!EBZ$22","v":"00:00:00"},{"$f":"Time!ECA$22","v":"00:00:00"},{"$f":"Time!ECB$22","v":"00:00:00"},{"$f":"Time!ECC$22","v":"00:00:00"},{"$f":"Time!ECD$22","v":"00:00:00"},{"$f":"Time!ECE$22","v":"00:00:00"},{"$f":"Time!ECF$22","v":"00:00:00"},{"$f":"Time!ECG$22","v":"00:00:00"},{"$f":"Time!ECH$22","v":"00:00:00"},{"$f":"Time!ECI$22","v":"00:00:00"},{"$f":"Time!ECJ$22","v":"00:00:00"},{"$f":"Time!ECK$22","v":"00:00:00"},{"$f":"Time!ECL$22","v":"00:00:00"},{"$f":"Time!ECM$22","v":"00:00:00"},{"$f":"Time!ECN$22","v":"00:00:00"},{"$f":"Time!ECO$22","v":"00:00:00"},{"$f":"Time!ECP$22","v":"00:00:00"},{"$f":"Time!ECQ$22","v":"00:00:00"},{"$f":"Time!ECR$22","v":"00:00:00"},{"$f":"Time!ECS$22","v":"00:00:00"},{"$f":"Time!ECT$22","v":"00:00:00"},{"$f":"Time!ECU$22","v":"00:00:00"},{"$f":"Time!ECV$22","v":"00:00:00"},{"$f":"Time!ECW$22","v":"00:00:00"},{"$f":"Time!ECX$22","v":"00:00:00"},{"$f":"Time!ECY$22","v":"00:00:00"},{"$f":"Time!ECZ$22","v":"00:00:00"},{"$f":"Time!EDA$22","v":"00:00:00"},{"$f":"Time!EDB$22","v":"00:00:00"},{"$f":"Time!EDC$22","v":"00:00:00"},{"$f":"Time!EDD$22","v":"00:00:00"},{"$f":"Time!EDE$22","v":"00:00:00"},{"$f":"Time!EDF$22","v":"00:00:00"},{"$f":"Time!EDG$22","v":"00:00:00"},{"$f":"Time!EDH$22","v":"00:00:00"},{"$f":"Time!EDI$22","v":"00:00:00"},{"$f":"Time!EDJ$22","v":"00:00:00"},{"$f":"Time!EDK$22","v":"00:00:00"},{"$f":"Time!EDL$22","v":"00:00:00"},{"$f":"Time!EDM$22","v":"00:00:00"},{"$f":"Time!EDN$22","v":"00:00:00"},{"$f":"Time!EDO$22","v":"00:00:00"},{"$f":"Time!EDP$22","v":"00:00:00"},{"$f":"Time!EDQ$22","v":"00:00:00"},{"$f":"Time!EDR$22","v":"00:00:00"},{"$f":"Time!EDS$22","v":"00:00:00"},{"$f":"Time!EDT$22","v":"00:00:00"},{"$f":"Time!EDU$22","v":"00:00:00"},{"$f":"Time!EDV$22","v":"00:00:00"},{"$f":"Time!EDW$22","v":"00:00:00"},{"$f":"Time!EDX$22","v":"00:00:00"},{"$f":"Time!EDY$22","v":"00:00:00"},{"$f":"Time!EDZ$22","v":"00:00:00"},{"$f":"Time!EEA$22","v":"00:00:00"},{"$f":"Time!EEB$22","v":"00:00:00"},{"$f":"Time!EEC$22","v":"00:00:00"},{"$f":"Time!EED$22","v":"00:00:00"},{"$f":"Time!EEE$22","v":"00:00:00"},{"$f":"Time!EEF$22","v":"00:00:00"},{"$f":"Time!EEG$22","v":"00:00:00"},{"$f":"Time!EEH$22","v":"00:00:00"},{"$f":"Time!EEI$22","v":"00:00:00"},{"$f":"Time!EEJ$22","v":"00:00:00"},{"$f":"Time!EEK$22","v":"00:00:00"},{"$f":"Time!EEL$22","v":"00:00:00"},{"$f":"Time!EEM$22","v":"00:00:00"},{"$f":"Time!EEN$22","v":"00:00:00"},{"$f":"Time!EEO$22","v":"00:00:00"},{"$f":"Time!EEP$22","v":"00:00:00"},{"$f":"Time!EEQ$22","v":"00:00:00"},{"$f":"Time!EER$22","v":"00:00:00"},{"$f":"Time!EES$22","v":"00:00:00"},{"$f":"Time!EET$22","v":"00:00:00"},{"$f":"Time!EEU$22","v":"00:00:00"},{"$f":"Time!EEV$22","v":"00:00:00"},{"$f":"Time!EEW$22","v":"00:00:00"},{"$f":"Time!EEX$22","v":"00:00:00"},{"$f":"Time!EEY$22","v":"00:00:00"},{"$f":"Time!EEZ$22","v":"00:00:00"},{"$f":"Time!EFA$22","v":"00:00:00"},{"$f":"Time!EFB$22","v":"00:00:00"},{"$f":"Time!EFC$22","v":"00:00:00"},{"$f":"Time!EFD$22","v":"00:00:00"},{"$f":"Time!EFE$22","v":"00:00:00"},{"$f":"Time!EFF$22","v":"00:00:00"},{"$f":"Time!EFG$22","v":"00:00:00"},{"$f":"Time!EFH$22","v":"00:00:00"},{"$f":"Time!EFI$22","v":"00:00:00"},{"$f":"Time!EFJ$22","v":"00:00:00"},{"$f":"Time!EFK$22","v":"00:00:00"},{"$f":"Time!EFL$22","v":"00:00:00"},{"$f":"Time!EFM$22","v":"00:00:00"},{"$f":"Time!EFN$22","v":"00:00:00"},{"$f":"Time!EFO$22","v":"00:00:00"},{"$f":"Time!EFP$22","v":"00:00:00"},{"$f":"Time!EFQ$22","v":"00:00:00"},{"$f":"Time!EFR$22","v":"00:00:00"},{"$f":"Time!EFS$22","v":"00:00:00"},{"$f":"Time!EFT$22","v":"00:00:00"},{"$f":"Time!EFU$22","v":"00:00:00"},{"$f":"Time!EFV$22","v":"00:00:00"},{"$f":"Time!EFW$22","v":"00:00:00"},{"$f":"Time!EFX$22","v":"00:00:00"},{"$f":"Time!EFY$22","v":"00:00:00"},{"$f":"Time!EFZ$22","v":"00:00:00"},{"$f":"Time!EGA$22","v":"00:00:00"},{"$f":"Time!EGB$22","v":"00:00:00"},{"$f":"Time!EGC$22","v":"00:00:00"},{"$f":"Time!EGD$22","v":"00:00:00"},{"$f":"Time!EGE$22","v":"00:00:00"},{"$f":"Time!EGF$22","v":"00:00:00"},{"$f":"Time!EGG$22","v":"00:00:00"},{"$f":"Time!EGH$22","v":"00:00:00"},{"$f":"Time!EGI$22","v":"00:00:00"},{"$f":"Time!EGJ$22","v":"00:00:00"},{"$f":"Time!EGK$22","v":"00:00:00"},{"$f":"Time!EGL$22","v":"00:00:00"},{"$f":"Time!EGM$22","v":"00:00:00"},{"$f":"Time!EGN$22","v":"00:00:00"},{"$f":"Time!EGO$22","v":"00:00:00"},{"$f":"Time!EGP$22","v":"00:00:00"},{"$f":"Time!EGQ$22","v":"00:00:00"},{"$f":"Time!EGR$22","v":"00:00:00"},{"$f":"Time!EGS$22","v":"00:00:00"},{"$f":"Time!EGT$22","v":"00:00:00"},{"$f":"Time!EGU$22","v":"00:00:00"},{"$f":"Time!EGV$22","v":"00:00:00"},{"$f":"Time!EGW$22","v":"00:00:00"},{"$f":"Time!EGX$22","v":"00:00:00"},{"$f":"Time!EGY$22","v":"00:00:00"},{"$f":"Time!EGZ$22","v":"00:00:00"},{"$f":"Time!EHA$22","v":"00:00:00"},{"$f":"Time!EHB$22","v":"00:00:00"},{"$f":"Time!EHC$22","v":"00:00:00"},{"$f":"Time!EHD$22","v":"00:00:00"},{"$f":"Time!EHE$22","v":"00:00:00"},{"$f":"Time!EHF$22","v":"00:00:00"},{"$f":"Time!EHG$22","v":"00:00:00"},{"$f":"Time!EHH$22","v":"00:00:00"},{"$f":"Time!EHI$22","v":"00:00:00"},{"$f":"Time!EHJ$22","v":"00:00:00"},{"$f":"Time!EHK$22","v":"00:00:00"},{"$f":"Time!EHL$22","v":"00:00:00"},{"$f":"Time!EHM$22","v":"00:00:00"},{"$f":"Time!EHN$22","v":"00:00:00"},{"$f":"Time!EHO$22","v":"00:00:00"},{"$f":"Time!EHP$22","v":"00:00:00"},{"$f":"Time!EHQ$22","v":"00:00:00"},{"$f":"Time!EHR$22","v":"00:00:00"},{"$f":"Time!EHS$22","v":"00:00:00"},{"$f":"Time!EHT$22","v":"00:00:00"},{"$f":"Time!EHU$22","v":"00:00:00"},{"$f":"Time!EHV$22","v":"00:00:00"},{"$f":"Time!EHW$22","v":"00:00:00"},{"$f":"Time!EHX$22","v":"00:00:00"},{"$f":"Time!EHY$22","v":"00:00:00"},{"$f":"Time!EHZ$22","v":"00:00:00"},{"$f":"Time!EIA$22","v":"00:00:00"},{"$f":"Time!EIB$22","v":"00:00:00"},{"$f":"Time!EIC$22","v":"00:00:00"},{"$f":"Time!EID$22","v":"00:00:00"},{"$f":"Time!EIE$22","v":"00:00:00"},{"$f":"Time!EIF$22","v":"00:00:00"},{"$f":"Time!EIG$22","v":"00:00:00"},{"$f":"Time!EIH$22","v":"00:00:00"},{"$f":"Time!EII$22","v":"00:00:00"},{"$f":"Time!EIJ$22","v":"00:00:00"},{"$f":"Time!EIK$22","v":"00:00:00"},{"$f":"Time!EIL$22","v":"00:00:00"},{"$f":"Time!EIM$22","v":"00:00:00"},{"$f":"Time!EIN$22","v":"00:00:00"},{"$f":"Time!EIO$22","v":"00:00:00"},{"$f":"Time!EIP$22","v":"00:00:00"},{"$f":"Time!EIQ$22","v":"00:00:00"},{"$f":"Time!EIR$22","v":"00:00:00"},{"$f":"Time!EIS$22","v":"00:00:00"},{"$f":"Time!EIT$22","v":"00:00:00"},{"$f":"Time!EIU$22","v":"00:00:00"},{"$f":"Time!EIV$22","v":"00:00:00"},{"$f":"Time!EIW$22","v":"00:00:00"},{"$f":"Time!EIX$22","v":"00:00:00"},{"$f":"Time!EIY$22","v":"00:00:00"},{"$f":"Time!EIZ$22","v":"00:00:00"},{"$f":"Time!EJA$22","v":"00:00:00"},{"$f":"Time!EJB$22","v":"00:00:00"},{"$f":"Time!EJC$22","v":"00:00:00"},{"$f":"Time!EJD$22","v":"00:00:00"},{"$f":"Time!EJE$22","v":"00:00:00"},{"$f":"Time!EJF$22","v":"00:00:00"},{"$f":"Time!EJG$22","v":"00:00:00"},{"$f":"Time!EJH$22","v":"00:00:00"},{"$f":"Time!EJI$22","v":"00:00:00"},{"$f":"Time!EJJ$22","v":"00:00:00"},{"$f":"Time!EJK$22","v":"00:00:00"},{"$f":"Time!EJL$22","v":"00:00:00"},{"$f":"Time!EJM$22","v":"00:00:00"},{"$f":"Time!EJN$22","v":"00:00:00"},{"$f":"Time!EJO$22","v":"00:00:00"},{"$f":"Time!EJP$22","v":"00:00:00"},{"$f":"Time!EJQ$22","v":"00:00:00"},{"$f":"Time!EJR$22","v":"00:00:00"},{"$f":"Time!EJS$22","v":"00:00:00"},{"$f":"Time!EJT$22","v":"00:00:00"},{"$f":"Time!EJU$22","v":"00:00:00"},{"$f":"Time!EJV$22","v":"00:00:00"},{"$f":"Time!EJW$22","v":"00:00:00"},{"$f":"Time!EJX$22","v":"00:00:00"},{"$f":"Time!EJY$22","v":"00:00:00"},{"$f":"Time!EJZ$22","v":"00:00:00"},{"$f":"Time!EKA$22","v":"00:00:00"},{"$f":"Time!EKB$22","v":"00:00:00"},{"$f":"Time!EKC$22","v":"00:00:00"},{"$f":"Time!EKD$22","v":"00:00:00"},{"$f":"Time!EKE$22","v":"00:00:00"},{"$f":"Time!EKF$22","v":"00:00:00"},{"$f":"Time!EKG$22","v":"00:00:00"},{"$f":"Time!EKH$22","v":"00:00:00"},{"$f":"Time!EKI$22","v":"00:00:00"},{"$f":"Time!EKJ$22","v":"00:00:00"},{"$f":"Time!EKK$22","v":"00:00:00"},{"$f":"Time!EKL$22","v":"00:00:00"},{"$f":"Time!EKM$22","v":"00:00:00"},{"$f":"Time!EKN$22","v":"00:00:00"},{"$f":"Time!EKO$22","v":"00:00:00"},{"$f":"Time!EKP$22","v":"00:00:00"},{"$f":"Time!EKQ$22","v":"00:00:00"},{"$f":"Time!EKR$22","v":"00:00:00"},{"$f":"Time!EKS$22","v":"00:00:00"},{"$f":"Time!EKT$22","v":"00:00:00"},{"$f":"Time!EKU$22","v":"00:00:00"},{"$f":"Time!EKV$22","v":"00:00:00"},{"$f":"Time!EKW$22","v":"00:00:00"},{"$f":"Time!EKX$22","v":"00:00:00"},{"$f":"Time!EKY$22","v":"00:00:00"},{"$f":"Time!EKZ$22","v":"00:00:00"},{"$f":"Time!ELA$22","v":"00:00:00"},{"$f":"Time!ELB$22","v":"00:00:00"},{"$f":"Time!ELC$22","v":"00:00:00"},{"$f":"Time!ELD$22","v":"00:00:00"},{"$f":"Time!ELE$22","v":"00:00:00"},{"$f":"Time!ELF$22","v":"00:00:00"},{"$f":"Time!ELG$22","v":"00:00:00"},{"$f":"Time!ELH$22","v":"00:00:00"},{"$f":"Time!ELI$22","v":"00:00:00"},{"$f":"Time!ELJ$22","v":"00:00:00"},{"$f":"Time!ELK$22","v":"00:00:00"},{"$f":"Time!ELL$22","v":"00:00:00"},{"$f":"Time!ELM$22","v":"00:00:00"},{"$f":"Time!ELN$22","v":"00:00:00"},{"$f":"Time!ELO$22","v":"00:00:00"},{"$f":"Time!ELP$22","v":"00:00:00"},{"$f":"Time!ELQ$22","v":"00:00:00"},{"$f":"Time!ELR$22","v":"00:00:00"},{"$f":"Time!ELS$22","v":"00:00:00"},{"$f":"Time!ELT$22","v":"00:00:00"},{"$f":"Time!ELU$22","v":"00:00:00"},{"$f":"Time!ELV$22","v":"00:00:00"},{"$f":"Time!ELW$22","v":"00:00:00"},{"$f":"Time!ELX$22","v":"00:00:00"},{"$f":"Time!ELY$22","v":"00:00:00"},{"$f":"Time!ELZ$22","v":"00:00:00"},{"$f":"Time!EMA$22","v":"00:00:00"},{"$f":"Time!EMB$22","v":"00:00:00"},{"$f":"Time!EMC$22","v":"00:00:00"},{"$f":"Time!EMD$22","v":"00:00:00"},{"$f":"Time!EME$22","v":"00:00:00"},{"$f":"Time!EMF$22","v":"00:00:00"},{"$f":"Time!EMG$22","v":"00:00:00"},{"$f":"Time!EMH$22","v":"00:00:00"},{"$f":"Time!EMI$22","v":"00:00:00"},{"$f":"Time!EMJ$22","v":"00:00:00"},{"$f":"Time!EMK$22","v":"00:00:00"},{"$f":"Time!EML$22","v":"00:00:00"},{"$f":"Time!EMM$22","v":"00:00:00"},{"$f":"Time!EMN$22","v":"00:00:00"},{"$f":"Time!EMO$22","v":"00:00:00"},{"$f":"Time!EMP$22","v":"00:00:00"},{"$f":"Time!EMQ$22","v":"00:00:00"},{"$f":"Time!EMR$22","v":"00:00:00"},{"$f":"Time!EMS$22","v":"00:00:00"},{"$f":"Time!EMT$22","v":"00:00:00"},{"$f":"Time!EMU$22","v":"00:00:00"},{"$f":"Time!EMV$22","v":"00:00:00"},{"$f":"Time!EMW$22","v":"00:00:00"},{"$f":"Time!EMX$22","v":"00:00:00"},{"$f":"Time!EMY$22","v":"00:00:00"},{"$f":"Time!EMZ$22","v":"00:00:00"},{"$f":"Time!ENA$22","v":"00:00:00"},{"$f":"Time!ENB$22","v":"00:00:00"},{"$f":"Time!ENC$22","v":"00:00:00"},{"$f":"Time!END$22","v":"00:00:00"},{"$f":"Time!ENE$22","v":"00:00:00"},{"$f":"Time!ENF$22","v":"00:00:00"},{"$f":"Time!ENG$22","v":"00:00:00"},{"$f":"Time!ENH$22","v":"00:00:00"},{"$f":"Time!ENI$22","v":"00:00:00"},{"$f":"Time!ENJ$22","v":"00:00:00"},{"$f":"Time!ENK$22","v":"00:00:00"},{"$f":"Time!ENL$22","v":"00:00:00"},{"$f":"Time!ENM$22","v":"00:00:00"},{"$f":"Time!ENN$22","v":"00:00:00"},{"$f":"Time!ENO$22","v":"00:00:00"},{"$f":"Time!ENP$22","v":"00:00:00"},{"$f":"Time!ENQ$22","v":"00:00:00"},{"$f":"Time!ENR$22","v":"00:00:00"},{"$f":"Time!ENS$22","v":"00:00:00"},{"$f":"Time!ENT$22","v":"00:00:00"},{"$f":"Time!ENU$22","v":"00:00:00"},{"$f":"Time!ENV$22","v":"00:00:00"},{"$f":"Time!ENW$22","v":"00:00:00"},{"$f":"Time!ENX$22","v":"00:00:00"},{"$f":"Time!ENY$22","v":"00:00:00"},{"$f":"Time!ENZ$22","v":"00:00:00"},{"$f":"Time!EOA$22","v":"00:00:00"},{"$f":"Time!EOB$22","v":"00:00:00"},{"$f":"Time!EOC$22","v":"00:00:00"},{"$f":"Time!EOD$22","v":"00:00:00"},{"$f":"Time!EOE$22","v":"00:00:00"},{"$f":"Time!EOF$22","v":"00:00:00"},{"$f":"Time!EOG$22","v":"00:00:00"},{"$f":"Time!EOH$22","v":"00:00:00"},{"$f":"Time!EOI$22","v":"00:00:00"},{"$f":"Time!EOJ$22","v":"00:00:00"},{"$f":"Time!EOK$22","v":"00:00:00"},{"$f":"Time!EOL$22","v":"00:00:00"},{"$f":"Time!EOM$22","v":"00:00:00"},{"$f":"Time!EON$22","v":"00:00:00"},{"$f":"Time!EOO$22","v":"00:00:00"},{"$f":"Time!EOP$22","v":"00:00:00"},{"$f":"Time!EOQ$22","v":"00:00:00"},{"$f":"Time!EOR$22","v":"00:00:00"},{"$f":"Time!EOS$22","v":"00:00:00"},{"$f":"Time!EOT$22","v":"00:00:00"},{"$f":"Time!EOU$22","v":"00:00:00"},{"$f":"Time!EOV$22","v":"00:00:00"},{"$f":"Time!EOW$22","v":"00:00:00"},{"$f":"Time!EOX$22","v":"00:00:00"},{"$f":"Time!EOY$22","v":"00:00:00"},{"$f":"Time!EOZ$22","v":"00:00:00"},{"$f":"Time!EPA$22","v":"00:00:00"},{"$f":"Time!EPB$22","v":"00:00:00"},{"$f":"Time!EPC$22","v":"00:00:00"},{"$f":"Time!EPD$22","v":"00:00:00"},{"$f":"Time!EPE$22","v":"00:00:00"},{"$f":"Time!EPF$22","v":"00:00:00"},{"$f":"Time!EPG$22","v":"00:00:00"},{"$f":"Time!EPH$22","v":"00:00:00"},{"$f":"Time!EPI$22","v":"00:00:00"},{"$f":"Time!EPJ$22","v":"00:00:00"},{"$f":"Time!EPK$22","v":"00:00:00"},{"$f":"Time!EPL$22","v":"00:00:00"},{"$f":"Time!EPM$22","v":"00:00:00"},{"$f":"Time!EPN$22","v":"00:00:00"},{"$f":"Time!EPO$22","v":"00:00:00"},{"$f":"Time!EPP$22","v":"00:00:00"},{"$f":"Time!EPQ$22","v":"00:00:00"},{"$f":"Time!EPR$22","v":"00:00:00"},{"$f":"Time!EPS$22","v":"00:00:00"},{"$f":"Time!EPT$22","v":"00:00:00"},{"$f":"Time!EPU$22","v":"00:00:00"},{"$f":"Time!EPV$22","v":"00:00:00"},{"$f":"Time!EPW$22","v":"00:00:00"},{"$f":"Time!EPX$22","v":"00:00:00"},{"$f":"Time!EPY$22","v":"00:00:00"},{"$f":"Time!EPZ$22","v":"00:00:00"},{"$f":"Time!EQA$22","v":"00:00:00"},{"$f":"Time!EQB$22","v":"00:00:00"},{"$f":"Time!EQC$22","v":"00:00:00"},{"$f":"Time!EQD$22","v":"00:00:00"},{"$f":"Time!EQE$22","v":"00:00:00"},{"$f":"Time!EQF$22","v":"00:00:00"},{"$f":"Time!EQG$22","v":"00:00:00"},{"$f":"Time!EQH$22","v":"00:00:00"},{"$f":"Time!EQI$22","v":"00:00:00"},{"$f":"Time!EQJ$22","v":"00:00:00"},{"$f":"Time!EQK$22","v":"00:00:00"},{"$f":"Time!EQL$22","v":"00:00:00"},{"$f":"Time!EQM$22","v":"00:00:00"},{"$f":"Time!EQN$22","v":"00:00:00"},{"$f":"Time!EQO$22","v":"00:00:00"},{"$f":"Time!EQP$22","v":"00:00:00"},{"$f":"Time!EQQ$22","v":"00:00:00"},{"$f":"Time!EQR$22","v":"00:00:00"},{"$f":"Time!EQS$22","v":"00:00:00"},{"$f":"Time!EQT$22","v":"00:00:00"},{"$f":"Time!EQU$22","v":"00:00:00"},{"$f":"Time!EQV$22","v":"00:00:00"},{"$f":"Time!EQW$22","v":"00:00:00"},{"$f":"Time!EQX$22","v":"00:00:00"},{"$f":"Time!EQY$22","v":"00:00:00"},{"$f":"Time!EQZ$22","v":"00:00:00"},{"$f":"Time!ERA$22","v":"00:00:00"},{"$f":"Time!ERB$22","v":"00:00:00"},{"$f":"Time!ERC$22","v":"00:00:00"},{"$f":"Time!ERD$22","v":"00:00:00"},{"$f":"Time!ERE$22","v":"00:00:00"},{"$f":"Time!ERF$22","v":"00:00:00"},{"$f":"Time!ERG$22","v":"00:00:00"},{"$f":"Time!ERH$22","v":"00:00:00"},{"$f":"Time!ERI$22","v":"00:00:00"},{"$f":"Time!ERJ$22","v":"00:00:00"},{"$f":"Time!ERK$22","v":"00:00:00"},{"$f":"Time!ERL$22","v":"00:00:00"},{"$f":"Time!ERM$22","v":"00:00:00"},{"$f":"Time!ERN$22","v":"00:00:00"},{"$f":"Time!ERO$22","v":"00:00:00"},{"$f":"Time!ERP$22","v":"00:00:00"},{"$f":"Time!ERQ$22","v":"00:00:00"},{"$f":"Time!ERR$22","v":"00:00:00"},{"$f":"Time!ERS$22","v":"00:00:00"},{"$f":"Time!ERT$22","v":"00:00:00"},{"$f":"Time!ERU$22","v":"00:00:00"},{"$f":"Time!ERV$22","v":"00:00:00"},{"$f":"Time!ERW$22","v":"00:00:00"},{"$f":"Time!ERX$22","v":"00:00:00"},{"$f":"Time!ERY$22","v":"00:00:00"},{"$f":"Time!ERZ$22","v":"00:00:00"},{"$f":"Time!ESA$22","v":"00:00:00"},{"$f":"Time!ESB$22","v":"00:00:00"},{"$f":"Time!ESC$22","v":"00:00:00"},{"$f":"Time!ESD$22","v":"00:00:00"},{"$f":"Time!ESE$22","v":"00:00:00"},{"$f":"Time!ESF$22","v":"00:00:00"},{"$f":"Time!ESG$22","v":"00:00:00"},{"$f":"Time!ESH$22","v":"00:00:00"},{"$f":"Time!ESI$22","v":"00:00:00"},{"$f":"Time!ESJ$22","v":"00:00:00"},{"$f":"Time!ESK$22","v":"00:00:00"},{"$f":"Time!ESL$22","v":"00:00:00"},{"$f":"Time!ESM$22","v":"00:00:00"},{"$f":"Time!ESN$22","v":"00:00:00"},{"$f":"Time!ESO$22","v":"00:00:00"},{"$f":"Time!ESP$22","v":"00:00:00"},{"$f":"Time!ESQ$22","v":"00:00:00"},{"$f":"Time!ESR$22","v":"00:00:00"},{"$f":"Time!ESS$22","v":"00:00:00"},{"$f":"Time!EST$22","v":"00:00:00"},{"$f":"Time!ESU$22","v":"00:00:00"},{"$f":"Time!ESV$22","v":"00:00:00"},{"$f":"Time!ESW$22","v":"00:00:00"},{"$f":"Time!ESX$22","v":"00:00:00"},{"$f":"Time!ESY$22","v":"00:00:00"},{"$f":"Time!ESZ$22","v":"00:00:00"},{"$f":"Time!ETA$22","v":"00:00:00"},{"$f":"Time!ETB$22","v":"00:00:00"},{"$f":"Time!ETC$22","v":"00:00:00"},{"$f":"Time!ETD$22","v":"00:00:00"},{"$f":"Time!ETE$22","v":"00:00:00"},{"$f":"Time!ETF$22","v":"00:00:00"},{"$f":"Time!ETG$22","v":"00:00:00"},{"$f":"Time!ETH$22","v":"00:00:00"},{"$f":"Time!ETI$22","v":"00:00:00"},{"$f":"Time!ETJ$22","v":"00:00:00"},{"$f":"Time!ETK$22","v":"00:00:00"},{"$f":"Time!ETL$22","v":"00:00:00"},{"$f":"Time!ETM$22","v":"00:00:00"},{"$f":"Time!ETN$22","v":"00:00:00"},{"$f":"Time!ETO$22","v":"00:00:00"},{"$f":"Time!ETP$22","v":"00:00:00"},{"$f":"Time!ETQ$22","v":"00:00:00"},{"$f":"Time!ETR$22","v":"00:00:00"},{"$f":"Time!ETS$22","v":"00:00:00"},{"$f":"Time!ETT$22","v":"00:00:00"},{"$f":"Time!ETU$22","v":"00:00:00"},{"$f":"Time!ETV$22","v":"00:00:00"},{"$f":"Time!ETW$22","v":"00:00:00"},{"$f":"Time!ETX$22","v":"00:00:00"},{"$f":"Time!ETY$22","v":"00:00:00"},{"$f":"Time!ETZ$22","v":"00:00:00"},{"$f":"Time!EUA$22","v":"00:00:00"},{"$f":"Time!EUB$22","v":"00:00:00"},{"$f":"Time!EUC$22","v":"00:00:00"},{"$f":"Time!EUD$22","v":"00:00:00"},{"$f":"Time!EUE$22","v":"00:00:00"},{"$f":"Time!EUF$22","v":"00:00:00"},{"$f":"Time!EUG$22","v":"00:00:00"},{"$f":"Time!EUH$22","v":"00:00:00"},{"$f":"Time!EUI$22","v":"00:00:00"},{"$f":"Time!EUJ$22","v":"00:00:00"},{"$f":"Time!EUK$22","v":"00:00:00"},{"$f":"Time!EUL$22","v":"00:00:00"},{"$f":"Time!EUM$22","v":"00:00:00"},{"$f":"Time!EUN$22","v":"00:00:00"},{"$f":"Time!EUO$22","v":"00:00:00"},{"$f":"Time!EUP$22","v":"00:00:00"},{"$f":"Time!EUQ$22","v":"00:00:00"},{"$f":"Time!EUR$22","v":"00:00:00"},{"$f":"Time!EUS$22","v":"00:00:00"},{"$f":"Time!EUT$22","v":"00:00:00"},{"$f":"Time!EUU$22","v":"00:00:00"},{"$f":"Time!EUV$22","v":"00:00:00"},{"$f":"Time!EUW$22","v":"00:00:00"},{"$f":"Time!EUX$22","v":"00:00:00"},{"$f":"Time!EUY$22","v":"00:00:00"},{"$f":"Time!EUZ$22","v":"00:00:00"},{"$f":"Time!EVA$22","v":"00:00:00"},{"$f":"Time!EVB$22","v":"00:00:00"},{"$f":"Time!EVC$22","v":"00:00:00"},{"$f":"Time!EVD$22","v":"00:00:00"},{"$f":"Time!EVE$22","v":"00:00:00"},{"$f":"Time!EVF$22","v":"00:00:00"},{"$f":"Time!EVG$22","v":"00:00:00"},{"$f":"Time!EVH$22","v":"00:00:00"},{"$f":"Time!EVI$22","v":"00:00:00"},{"$f":"Time!EVJ$22","v":"00:00:00"},{"$f":"Time!EVK$22","v":"00:00:00"},{"$f":"Time!EVL$22","v":"00:00:00"},{"$f":"Time!EVM$22","v":"00:00:00"},{"$f":"Time!EVN$22","v":"00:00:00"},{"$f":"Time!EVO$22","v":"00:00:00"},{"$f":"Time!EVP$22","v":"00:00:00"},{"$f":"Time!EVQ$22","v":"00:00:00"},{"$f":"Time!EVR$22","v":"00:00:00"},{"$f":"Time!EVS$22","v":"00:00:00"},{"$f":"Time!EVT$22","v":"00:00:00"},{"$f":"Time!EVU$22","v":"00:00:00"},{"$f":"Time!EVV$22","v":"00:00:00"},{"$f":"Time!EVW$22","v":"00:00:00"},{"$f":"Time!EVX$22","v":"00:00:00"},{"$f":"Time!EVY$22","v":"00:00:00"},{"$f":"Time!EVZ$22","v":"00:00:00"},{"$f":"Time!EWA$22","v":"00:00:00"},{"$f":"Time!EWB$22","v":"00:00:00"},{"$f":"Time!EWC$22","v":"00:00:00"},{"$f":"Time!EWD$22","v":"00:00:00"},{"$f":"Time!EWE$22","v":"00:00:00"},{"$f":"Time!EWF$22","v":"00:00:00"},{"$f":"Time!EWG$22","v":"00:00:00"},{"$f":"Time!EWH$22","v":"00:00:00"},{"$f":"Time!EWI$22","v":"00:00:00"},{"$f":"Time!EWJ$22","v":"00:00:00"},{"$f":"Time!EWK$22","v":"00:00:00"},{"$f":"Time!EWL$22","v":"00:00:00"},{"$f":"Time!EWM$22","v":"00:00:00"},{"$f":"Time!EWN$22","v":"00:00:00"},{"$f":"Time!EWO$22","v":"00:00:00"},{"$f":"Time!EWP$22","v":"00:00:00"},{"$f":"Time!EWQ$22","v":"00:00:00"},{"$f":"Time!EWR$22","v":"00:00:00"},{"$f":"Time!EWS$22","v":"00:00:00"},{"$f":"Time!EWT$22","v":"00:00:00"},{"$f":"Time!EWU$22","v":"00:00:00"},{"$f":"Time!EWV$22","v":"00:00:00"},{"$f":"Time!EWW$22","v":"00:00:00"},{"$f":"Time!EWX$22","v":"00:00:00"},{"$f":"Time!EWY$22","v":"00:00:00"},{"$f":"Time!EWZ$22","v":"00:00:00"},{"$f":"Time!EXA$22","v":"00:00:00"},{"$f":"Time!EXB$22","v":"00:00:00"},{"$f":"Time!EXC$22","v":"00:00:00"},{"$f":"Time!EXD$22","v":"00:00:00"},{"$f":"Time!EXE$22","v":"00:00:00"},{"$f":"Time!EXF$22","v":"00:00:00"},{"$f":"Time!EXG$22","v":"00:00:00"},{"$f":"Time!EXH$22","v":"00:00:00"},{"$f":"Time!EXI$22","v":"00:00:00"},{"$f":"Time!EXJ$22","v":"00:00:00"},{"$f":"Time!EXK$22","v":"00:00:00"},{"$f":"Time!EXL$22","v":"00:00:00"},{"$f":"Time!EXM$22","v":"00:00:00"},{"$f":"Time!EXN$22","v":"00:00:00"},{"$f":"Time!EXO$22","v":"00:00:00"},{"$f":"Time!EXP$22","v":"00:00:00"},{"$f":"Time!EXQ$22","v":"00:00:00"},{"$f":"Time!EXR$22","v":"00:00:00"},{"$f":"Time!EXS$22","v":"00:00:00"},{"$f":"Time!EXT$22","v":"00:00:00"},{"$f":"Time!EXU$22","v":"00:00:00"},{"$f":"Time!EXV$22","v":"00:00:00"},{"$f":"Time!EXW$22","v":"00:00:00"},{"$f":"Time!EXX$22","v":"00:00:00"},{"$f":"Time!EXY$22","v":"00:00:00"},{"$f":"Time!EXZ$22","v":"00:00:00"},{"$f":"Time!EYA$22","v":"00:00:00"},{"$f":"Time!EYB$22","v":"00:00:00"},{"$f":"Time!EYC$22","v":"00:00:00"},{"$f":"Time!EYD$22","v":"00:00:00"},{"$f":"Time!EYE$22","v":"00:00:00"},{"$f":"Time!EYF$22","v":"00:00:00"},{"$f":"Time!EYG$22","v":"00:00:00"},{"$f":"Time!EYH$22","v":"00:00:00"},{"$f":"Time!EYI$22","v":"00:00:00"},{"$f":"Time!EYJ$22","v":"00:00:00"},{"$f":"Time!EYK$22","v":"00:00:00"},{"$f":"Time!EYL$22","v":"00:00:00"},{"$f":"Time!EYM$22","v":"00:00:00"},{"$f":"Time!EYN$22","v":"00:00:00"},{"$f":"Time!EYO$22","v":"00:00:00"},{"$f":"Time!EYP$22","v":"00:00:00"},{"$f":"Time!EYQ$22","v":"00:00:00"},{"$f":"Time!EYR$22","v":"00:00:00"},{"$f":"Time!EYS$22","v":"00:00:00"},{"$f":"Time!EYT$22","v":"00:00:00"},{"$f":"Time!EYU$22","v":"00:00:00"},{"$f":"Time!EYV$22","v":"00:00:00"},{"$f":"Time!EYW$22","v":"00:00:00"},{"$f":"Time!EYX$22","v":"00:00:00"},{"$f":"Time!EYY$22","v":"00:00:00"},{"$f":"Time!EYZ$22","v":"00:00:00"},{"$f":"Time!EZA$22","v":"00:00:00"},{"$f":"Time!EZB$22","v":"00:00:00"},{"$f":"Time!EZC$22","v":"00:00:00"},{"$f":"Time!EZD$22","v":"00:00:00"},{"$f":"Time!EZE$22","v":"00:00:00"},{"$f":"Time!EZF$22","v":"00:00:00"},{"$f":"Time!EZG$22","v":"00:00:00"},{"$f":"Time!EZH$22","v":"00:00:00"},{"$f":"Time!EZI$22","v":"00:00:00"},{"$f":"Time!EZJ$22","v":"00:00:00"},{"$f":"Time!EZK$22","v":"00:00:00"},{"$f":"Time!EZL$22","v":"00:00:00"},{"$f":"Time!EZM$22","v":"00:00:00"},{"$f":"Time!EZN$22","v":"00:00:00"},{"$f":"Time!EZO$22","v":"00:00:00"},{"$f":"Time!EZP$22","v":"00:00:00"},{"$f":"Time!EZQ$22","v":"00:00:00"},{"$f":"Time!EZR$22","v":"00:00:00"},{"$f":"Time!EZS$22","v":"00:00:00"},{"$f":"Time!EZT$22","v":"00:00:00"},{"$f":"Time!EZU$22","v":"00:00:00"},{"$f":"Time!EZV$22","v":"00:00:00"},{"$f":"Time!EZW$22","v":"00:00:00"},{"$f":"Time!EZX$22","v":"00:00:00"},{"$f":"Time!EZY$22","v":"00:00:00"},{"$f":"Time!EZZ$22","v":"00:00:00"},{"$f":"Time!FAA$22","v":"00:00:00"},{"$f":"Time!FAB$22","v":"00:00:00"},{"$f":"Time!FAC$22","v":"00:00:00"},{"$f":"Time!FAD$22","v":"00:00:00"},{"$f":"Time!FAE$22","v":"00:00:00"},{"$f":"Time!FAF$22","v":"00:00:00"},{"$f":"Time!FAG$22","v":"00:00:00"},{"$f":"Time!FAH$22","v":"00:00:00"},{"$f":"Time!FAI$22","v":"00:00:00"},{"$f":"Time!FAJ$22","v":"00:00:00"},{"$f":"Time!FAK$22","v":"00:00:00"},{"$f":"Time!FAL$22","v":"00:00:00"},{"$f":"Time!FAM$22","v":"00:00:00"},{"$f":"Time!FAN$22","v":"00:00:00"},{"$f":"Time!FAO$22","v":"00:00:00"},{"$f":"Time!FAP$22","v":"00:00:00"},{"$f":"Time!FAQ$22","v":"00:00:00"},{"$f":"Time!FAR$22","v":"00:00:00"},{"$f":"Time!FAS$22","v":"00:00:00"},{"$f":"Time!FAT$22","v":"00:00:00"},{"$f":"Time!FAU$22","v":"00:00:00"},{"$f":"Time!FAV$22","v":"00:00:00"},{"$f":"Time!FAW$22","v":"00:00:00"},{"$f":"Time!FAX$22","v":"00:00:00"},{"$f":"Time!FAY$22","v":"00:00:00"},{"$f":"Time!FAZ$22","v":"00:00:00"},{"$f":"Time!FBA$22","v":"00:00:00"},{"$f":"Time!FBB$22","v":"00:00:00"},{"$f":"Time!FBC$22","v":"00:00:00"},{"$f":"Time!FBD$22","v":"00:00:00"},{"$f":"Time!FBE$22","v":"00:00:00"},{"$f":"Time!FBF$22","v":"00:00:00"},{"$f":"Time!FBG$22","v":"00:00:00"},{"$f":"Time!FBH$22","v":"00:00:00"},{"$f":"Time!FBI$22","v":"00:00:00"},{"$f":"Time!FBJ$22","v":"00:00:00"},{"$f":"Time!FBK$22","v":"00:00:00"},{"$f":"Time!FBL$22","v":"00:00:00"},{"$f":"Time!FBM$22","v":"00:00:00"},{"$f":"Time!FBN$22","v":"00:00:00"},{"$f":"Time!FBO$22","v":"00:00:00"},{"$f":"Time!FBP$22","v":"00:00:00"},{"$f":"Time!FBQ$22","v":"00:00:00"},{"$f":"Time!FBR$22","v":"00:00:00"},{"$f":"Time!FBS$22","v":"00:00:00"},{"$f":"Time!FBT$22","v":"00:00:00"},{"$f":"Time!FBU$22","v":"00:00:00"},{"$f":"Time!FBV$22","v":"00:00:00"},{"$f":"Time!FBW$22","v":"00:00:00"},{"$f":"Time!FBX$22","v":"00:00:00"},{"$f":"Time!FBY$22","v":"00:00:00"},{"$f":"Time!FBZ$22","v":"00:00:00"},{"$f":"Time!FCA$22","v":"00:00:00"},{"$f":"Time!FCB$22","v":"00:00:00"},{"$f":"Time!FCC$22","v":"00:00:00"},{"$f":"Time!FCD$22","v":"00:00:00"},{"$f":"Time!FCE$22","v":"00:00:00"},{"$f":"Time!FCF$22","v":"00:00:00"},{"$f":"Time!FCG$22","v":"00:00:00"},{"$f":"Time!FCH$22","v":"00:00:00"},{"$f":"Time!FCI$22","v":"00:00:00"},{"$f":"Time!FCJ$22","v":"00:00:00"},{"$f":"Time!FCK$22","v":"00:00:00"},{"$f":"Time!FCL$22","v":"00:00:00"},{"$f":"Time!FCM$22","v":"00:00:00"},{"$f":"Time!FCN$22","v":"00:00:00"},{"$f":"Time!FCO$22","v":"00:00:00"},{"$f":"Time!FCP$22","v":"00:00:00"},{"$f":"Time!FCQ$22","v":"00:00:00"},{"$f":"Time!FCR$22","v":"00:00:00"},{"$f":"Time!FCS$22","v":"00:00:00"},{"$f":"Time!FCT$22","v":"00:00:00"},{"$f":"Time!FCU$22","v":"00:00:00"},{"$f":"Time!FCV$22","v":"00:00:00"},{"$f":"Time!FCW$22","v":"00:00:00"},{"$f":"Time!FCX$22","v":"00:00:00"},{"$f":"Time!FCY$22","v":"00:00:00"},{"$f":"Time!FCZ$22","v":"00:00:00"},{"$f":"Time!FDA$22","v":"00:00:00"},{"$f":"Time!FDB$22","v":"00:00:00"},{"$f":"Time!FDC$22","v":"00:00:00"},{"$f":"Time!FDD$22","v":"00:00:00"},{"$f":"Time!FDE$22","v":"00:00:00"},{"$f":"Time!FDF$22","v":"00:00:00"},{"$f":"Time!FDG$22","v":"00:00:00"},{"$f":"Time!FDH$22","v":"00:00:00"},{"$f":"Time!FDI$22","v":"00:00:00"},{"$f":"Time!FDJ$22","v":"00:00:00"},{"$f":"Time!FDK$22","v":"00:00:00"},{"$f":"Time!FDL$22","v":"00:00:00"},{"$f":"Time!FDM$22","v":"00:00:00"},{"$f":"Time!FDN$22","v":"00:00:00"},{"$f":"Time!FDO$22","v":"00:00:00"},{"$f":"Time!FDP$22","v":"00:00:00"},{"$f":"Time!FDQ$22","v":"00:00:00"},{"$f":"Time!FDR$22","v":"00:00:00"},{"$f":"Time!FDS$22","v":"00:00:00"},{"$f":"Time!FDT$22","v":"00:00:00"},{"$f":"Time!FDU$22","v":"00:00:00"},{"$f":"Time!FDV$22","v":"00:00:00"},{"$f":"Time!FDW$22","v":"00:00:00"},{"$f":"Time!FDX$22","v":"00:00:00"},{"$f":"Time!FDY$22","v":"00:00:00"},{"$f":"Time!FDZ$22","v":"00:00:00"},{"$f":"Time!FEA$22","v":"00:00:00"},{"$f":"Time!FEB$22","v":"00:00:00"},{"$f":"Time!FEC$22","v":"00:00:00"},{"$f":"Time!FED$22","v":"00:00:00"},{"$f":"Time!FEE$22","v":"00:00:00"},{"$f":"Time!FEF$22","v":"00:00:00"},{"$f":"Time!FEG$22","v":"00:00:00"},{"$f":"Time!FEH$22","v":"00:00:00"},{"$f":"Time!FEI$22","v":"00:00:00"},{"$f":"Time!FEJ$22","v":"00:00:00"},{"$f":"Time!FEK$22","v":"00:00:00"},{"$f":"Time!FEL$22","v":"00:00:00"},{"$f":"Time!FEM$22","v":"00:00:00"},{"$f":"Time!FEN$22","v":"00:00:00"},{"$f":"Time!FEO$22","v":"00:00:00"},{"$f":"Time!FEP$22","v":"00:00:00"},{"$f":"Time!FEQ$22","v":"00:00:00"},{"$f":"Time!FER$22","v":"00:00:00"},{"$f":"Time!FES$22","v":"00:00:00"},{"$f":"Time!FET$22","v":"00:00:00"},{"$f":"Time!FEU$22","v":"00:00:00"},{"$f":"Time!FEV$22","v":"00:00:00"},{"$f":"Time!FEW$22","v":"00:00:00"},{"$f":"Time!FEX$22","v":"00:00:00"},{"$f":"Time!FEY$22","v":"00:00:00"},{"$f":"Time!FEZ$22","v":"00:00:00"},{"$f":"Time!FFA$22","v":"00:00:00"},{"$f":"Time!FFB$22","v":"00:00:00"},{"$f":"Time!FFC$22","v":"00:00:00"},{"$f":"Time!FFD$22","v":"00:00:00"},{"$f":"Time!FFE$22","v":"00:00:00"},{"$f":"Time!FFF$22","v":"00:00:00"},{"$f":"Time!FFG$22","v":"00:00:00"},{"$f":"Time!FFH$22","v":"00:00:00"},{"$f":"Time!FFI$22","v":"00:00:00"},{"$f":"Time!FFJ$22","v":"00:00:00"},{"$f":"Time!FFK$22","v":"00:00:00"},{"$f":"Time!FFL$22","v":"00:00:00"},{"$f":"Time!FFM$22","v":"00:00:00"},{"$f":"Time!FFN$22","v":"00:00:00"},{"$f":"Time!FFO$22","v":"00:00:00"},{"$f":"Time!FFP$22","v":"00:00:00"},{"$f":"Time!FFQ$22","v":"00:00:00"},{"$f":"Time!FFR$22","v":"00:00:00"},{"$f":"Time!FFS$22","v":"00:00:00"},{"$f":"Time!FFT$22","v":"00:00:00"},{"$f":"Time!FFU$22","v":"00:00:00"},{"$f":"Time!FFV$22","v":"00:00:00"},{"$f":"Time!FFW$22","v":"00:00:00"},{"$f":"Time!FFX$22","v":"00:00:00"},{"$f":"Time!FFY$22","v":"00:00:00"},{"$f":"Time!FFZ$22","v":"00:00:00"},{"$f":"Time!FGA$22","v":"00:00:00"},{"$f":"Time!FGB$22","v":"00:00:00"},{"$f":"Time!FGC$22","v":"00:00:00"},{"$f":"Time!FGD$22","v":"00:00:00"},{"$f":"Time!FGE$22","v":"00:00:00"},{"$f":"Time!FGF$22","v":"00:00:00"},{"$f":"Time!FGG$22","v":"00:00:00"},{"$f":"Time!FGH$22","v":"00:00:00"},{"$f":"Time!FGI$22","v":"00:00:00"},{"$f":"Time!FGJ$22","v":"00:00:00"},{"$f":"Time!FGK$22","v":"00:00:00"},{"$f":"Time!FGL$22","v":"00:00:00"},{"$f":"Time!FGM$22","v":"00:00:00"},{"$f":"Time!FGN$22","v":"00:00:00"},{"$f":"Time!FGO$22","v":"00:00:00"},{"$f":"Time!FGP$22","v":"00:00:00"},{"$f":"Time!FGQ$22","v":"00:00:00"},{"$f":"Time!FGR$22","v":"00:00:00"},{"$f":"Time!FGS$22","v":"00:00:00"},{"$f":"Time!FGT$22","v":"00:00:00"},{"$f":"Time!FGU$22","v":"00:00:00"},{"$f":"Time!FGV$22","v":"00:00:00"},{"$f":"Time!FGW$22","v":"00:00:00"},{"$f":"Time!FGX$22","v":"00:00:00"},{"$f":"Time!FGY$22","v":"00:00:00"},{"$f":"Time!FGZ$22","v":"00:00:00"},{"$f":"Time!FHA$22","v":"00:00:00"},{"$f":"Time!FHB$22","v":"00:00:00"},{"$f":"Time!FHC$22","v":"00:00:00"},{"$f":"Time!FHD$22","v":"00:00:00"},{"$f":"Time!FHE$22","v":"00:00:00"},{"$f":"Time!FHF$22","v":"00:00:00"},{"$f":"Time!FHG$22","v":"00:00:00"},{"$f":"Time!FHH$22","v":"00:00:00"},{"$f":"Time!FHI$22","v":"00:00:00"},{"$f":"Time!FHJ$22","v":"00:00:00"},{"$f":"Time!FHK$22","v":"00:00:00"},{"$f":"Time!FHL$22","v":"00:00:00"},{"$f":"Time!FHM$22","v":"00:00:00"},{"$f":"Time!FHN$22","v":"00:00:00"},{"$f":"Time!FHO$22","v":"00:00:00"},{"$f":"Time!FHP$22","v":"00:00:00"},{"$f":"Time!FHQ$22","v":"00:00:00"},{"$f":"Time!FHR$22","v":"00:00:00"},{"$f":"Time!FHS$22","v":"00:00:00"},{"$f":"Time!FHT$22","v":"00:00:00"},{"$f":"Time!FHU$22","v":"00:00:00"},{"$f":"Time!FHV$22","v":"00:00:00"},{"$f":"Time!FHW$22","v":"00:00:00"},{"$f":"Time!FHX$22","v":"00:00:00"},{"$f":"Time!FHY$22","v":"00:00:00"},{"$f":"Time!FHZ$22","v":"00:00:00"},{"$f":"Time!FIA$22","v":"00:00:00"},{"$f":"Time!FIB$22","v":"00:00:00"},{"$f":"Time!FIC$22","v":"00:00:00"},{"$f":"Time!FID$22","v":"00:00:00"},{"$f":"Time!FIE$22","v":"00:00:00"},{"$f":"Time!FIF$22","v":"00:00:00"},{"$f":"Time!FIG$22","v":"00:00:00"},{"$f":"Time!FIH$22","v":"00:00:00"},{"$f":"Time!FII$22","v":"00:00:00"},{"$f":"Time!FIJ$22","v":"00:00:00"},{"$f":"Time!FIK$22","v":"00:00:00"},{"$f":"Time!FIL$22","v":"00:00:00"},{"$f":"Time!FIM$22","v":"00:00:00"},{"$f":"Time!FIN$22","v":"00:00:00"},{"$f":"Time!FIO$22","v":"00:00:00"},{"$f":"Time!FIP$22","v":"00:00:00"},{"$f":"Time!FIQ$22","v":"00:00:00"},{"$f":"Time!FIR$22","v":"00:00:00"},{"$f":"Time!FIS$22","v":"00:00:00"},{"$f":"Time!FIT$22","v":"00:00:00"},{"$f":"Time!FIU$22","v":"00:00:00"},{"$f":"Time!FIV$22","v":"00:00:00"},{"$f":"Time!FIW$22","v":"00:00:00"},{"$f":"Time!FIX$22","v":"00:00:00"},{"$f":"Time!FIY$22","v":"00:00:00"},{"$f":"Time!FIZ$22","v":"00:00:00"},{"$f":"Time!FJA$22","v":"00:00:00"},{"$f":"Time!FJB$22","v":"00:00:00"},{"$f":"Time!FJC$22","v":"00:00:00"},{"$f":"Time!FJD$22","v":"00:00:00"},{"$f":"Time!FJE$22","v":"00:00:00"},{"$f":"Time!FJF$22","v":"00:00:00"},{"$f":"Time!FJG$22","v":"00:00:00"},{"$f":"Time!FJH$22","v":"00:00:00"},{"$f":"Time!FJI$22","v":"00:00:00"},{"$f":"Time!FJJ$22","v":"00:00:00"},{"$f":"Time!FJK$22","v":"00:00:00"},{"$f":"Time!FJL$22","v":"00:00:00"},{"$f":"Time!FJM$22","v":"00:00:00"},{"$f":"Time!FJN$22","v":"00:00:00"},{"$f":"Time!FJO$22","v":"00:00:00"},{"$f":"Time!FJP$22","v":"00:00:00"},{"$f":"Time!FJQ$22","v":"00:00:00"},{"$f":"Time!FJR$22","v":"00:00:00"},{"$f":"Time!FJS$22","v":"00:00:00"},{"$f":"Time!FJT$22","v":"00:00:00"},{"$f":"Time!FJU$22","v":"00:00:00"},{"$f":"Time!FJV$22","v":"00:00:00"},{"$f":"Time!FJW$22","v":"00:00:00"},{"$f":"Time!FJX$22","v":"00:00:00"},{"$f":"Time!FJY$22","v":"00:00:00"},{"$f":"Time!FJZ$22","v":"00:00:00"},{"$f":"Time!FKA$22","v":"00:00:00"},{"$f":"Time!FKB$22","v":"00:00:00"},{"$f":"Time!FKC$22","v":"00:00:00"},{"$f":"Time!FKD$22","v":"00:00:00"},{"$f":"Time!FKE$22","v":"00:00:00"},{"$f":"Time!FKF$22","v":"00:00:00"},{"$f":"Time!FKG$22","v":"00:00:00"},{"$f":"Time!FKH$22","v":"00:00:00"},{"$f":"Time!FKI$22","v":"00:00:00"},{"$f":"Time!FKJ$22","v":"00:00:00"},{"$f":"Time!FKK$22","v":"00:00:00"},{"$f":"Time!FKL$22","v":"00:00:00"},{"$f":"Time!FKM$22","v":"00:00:00"},{"$f":"Time!FKN$22","v":"00:00:00"},{"$f":"Time!FKO$22","v":"00:00:00"},{"$f":"Time!FKP$22","v":"00:00:00"},{"$f":"Time!FKQ$22","v":"00:00:00"},{"$f":"Time!FKR$22","v":"00:00:00"},{"$f":"Time!FKS$22","v":"00:00:00"},{"$f":"Time!FKT$22","v":"00:00:00"},{"$f":"Time!FKU$22","v":"00:00:00"},{"$f":"Time!FKV$22","v":"00:00:00"},{"$f":"Time!FKW$22","v":"00:00:00"},{"$f":"Time!FKX$22","v":"00:00:00"},{"$f":"Time!FKY$22","v":"00:00:00"},{"$f":"Time!FKZ$22","v":"00:00:00"},{"$f":"Time!FLA$22","v":"00:00:00"},{"$f":"Time!FLB$22","v":"00:00:00"},{"$f":"Time!FLC$22","v":"00:00:00"},{"$f":"Time!FLD$22","v":"00:00:00"},{"$f":"Time!FLE$22","v":"00:00:00"},{"$f":"Time!FLF$22","v":"00:00:00"},{"$f":"Time!FLG$22","v":"00:00:00"},{"$f":"Time!FLH$22","v":"00:00:00"},{"$f":"Time!FLI$22","v":"00:00:00"},{"$f":"Time!FLJ$22","v":"00:00:00"},{"$f":"Time!FLK$22","v":"00:00:00"},{"$f":"Time!FLL$22","v":"00:00:00"},{"$f":"Time!FLM$22","v":"00:00:00"},{"$f":"Time!FLN$22","v":"00:00:00"},{"$f":"Time!FLO$22","v":"00:00:00"},{"$f":"Time!FLP$22","v":"00:00:00"},{"$f":"Time!FLQ$22","v":"00:00:00"},{"$f":"Time!FLR$22","v":"00:00:00"},{"$f":"Time!FLS$22","v":"00:00:00"},{"$f":"Time!FLT$22","v":"00:00:00"},{"$f":"Time!FLU$22","v":"00:00:00"},{"$f":"Time!FLV$22","v":"00:00:00"},{"$f":"Time!FLW$22","v":"00:00:00"},{"$f":"Time!FLX$22","v":"00:00:00"},{"$f":"Time!FLY$22","v":"00:00:00"},{"$f":"Time!FLZ$22","v":"00:00:00"},{"$f":"Time!FMA$22","v":"00:00:00"},{"$f":"Time!FMB$22","v":"00:00:00"},{"$f":"Time!FMC$22","v":"00:00:00"},{"$f":"Time!FMD$22","v":"00:00:00"},{"$f":"Time!FME$22","v":"00:00:00"},{"$f":"Time!FMF$22","v":"00:00:00"},{"$f":"Time!FMG$22","v":"00:00:00"},{"$f":"Time!FMH$22","v":"00:00:00"},{"$f":"Time!FMI$22","v":"00:00:00"},{"$f":"Time!FMJ$22","v":"00:00:00"},{"$f":"Time!FMK$22","v":"00:00:00"},{"$f":"Time!FML$22","v":"00:00:00"},{"$f":"Time!FMM$22","v":"00:00:00"},{"$f":"Time!FMN$22","v":"00:00:00"},{"$f":"Time!FMO$22","v":"00:00:00"},{"$f":"Time!FMP$22","v":"00:00:00"},{"$f":"Time!FMQ$22","v":"00:00:00"},{"$f":"Time!FMR$22","v":"00:00:00"},{"$f":"Time!FMS$22","v":"00:00:00"},{"$f":"Time!FMT$22","v":"00:00:00"},{"$f":"Time!FMU$22","v":"00:00:00"},{"$f":"Time!FMV$22","v":"00:00:00"},{"$f":"Time!FMW$22","v":"00:00:00"},{"$f":"Time!FMX$22","v":"00:00:00"},{"$f":"Time!FMY$22","v":"00:00:00"},{"$f":"Time!FMZ$22","v":"00:00:00"},{"$f":"Time!FNA$22","v":"00:00:00"},{"$f":"Time!FNB$22","v":"00:00:00"},{"$f":"Time!FNC$22","v":"00:00:00"},{"$f":"Time!FND$22","v":"00:00:00"},{"$f":"Time!FNE$22","v":"00:00:00"},{"$f":"Time!FNF$22","v":"00:00:00"},{"$f":"Time!FNG$22","v":"00:00:00"},{"$f":"Time!FNH$22","v":"00:00:00"},{"$f":"Time!FNI$22","v":"00:00:00"},{"$f":"Time!FNJ$22","v":"00:00:00"},{"$f":"Time!FNK$22","v":"00:00:00"},{"$f":"Time!FNL$22","v":"00:00:00"},{"$f":"Time!FNM$22","v":"00:00:00"},{"$f":"Time!FNN$22","v":"00:00:00"},{"$f":"Time!FNO$22","v":"00:00:00"},{"$f":"Time!FNP$22","v":"00:00:00"},{"$f":"Time!FNQ$22","v":"00:00:00"},{"$f":"Time!FNR$22","v":"00:00:00"},{"$f":"Time!FNS$22","v":"00:00:00"},{"$f":"Time!FNT$22","v":"00:00:00"},{"$f":"Time!FNU$22","v":"00:00:00"},{"$f":"Time!FNV$22","v":"00:00:00"},{"$f":"Time!FNW$22","v":"00:00:00"},{"$f":"Time!FNX$22","v":"00:00:00"},{"$f":"Time!FNY$22","v":"00:00:00"},{"$f":"Time!FNZ$22","v":"00:00:00"},{"$f":"Time!FOA$22","v":"00:00:00"},{"$f":"Time!FOB$22","v":"00:00:00"},{"$f":"Time!FOC$22","v":"00:00:00"},{"$f":"Time!FOD$22","v":"00:00:00"},{"$f":"Time!FOE$22","v":"00:00:00"},{"$f":"Time!FOF$22","v":"00:00:00"},{"$f":"Time!FOG$22","v":"00:00:00"},{"$f":"Time!FOH$22","v":"00:00:00"},{"$f":"Time!FOI$22","v":"00:00:00"},{"$f":"Time!FOJ$22","v":"00:00:00"},{"$f":"Time!FOK$22","v":"00:00:00"},{"$f":"Time!FOL$22","v":"00:00:00"},{"$f":"Time!FOM$22","v":"00:00:00"},{"$f":"Time!FON$22","v":"00:00:00"},{"$f":"Time!FOO$22","v":"00:00:00"},{"$f":"Time!FOP$22","v":"00:00:00"},{"$f":"Time!FOQ$22","v":"00:00:00"},{"$f":"Time!FOR$22","v":"00:00:00"},{"$f":"Time!FOS$22","v":"00:00:00"},{"$f":"Time!FOT$22","v":"00:00:00"},{"$f":"Time!FOU$22","v":"00:00:00"},{"$f":"Time!FOV$22","v":"00:00:00"},{"$f":"Time!FOW$22","v":"00:00:00"},{"$f":"Time!FOX$22","v":"00:00:00"},{"$f":"Time!FOY$22","v":"00:00:00"},{"$f":"Time!FOZ$22","v":"00:00:00"},{"$f":"Time!FPA$22","v":"00:00:00"},{"$f":"Time!FPB$22","v":"00:00:00"},{"$f":"Time!FPC$22","v":"00:00:00"},{"$f":"Time!FPD$22","v":"00:00:00"},{"$f":"Time!FPE$22","v":"00:00:00"},{"$f":"Time!FPF$22","v":"00:00:00"},{"$f":"Time!FPG$22","v":"00:00:00"},{"$f":"Time!FPH$22","v":"00:00:00"},{"$f":"Time!FPI$22","v":"00:00:00"},{"$f":"Time!FPJ$22","v":"00:00:00"},{"$f":"Time!FPK$22","v":"00:00:00"},{"$f":"Time!FPL$22","v":"00:00:00"},{"$f":"Time!FPM$22","v":"00:00:00"},{"$f":"Time!FPN$22","v":"00:00:00"},{"$f":"Time!FPO$22","v":"00:00:00"},{"$f":"Time!FPP$22","v":"00:00:00"},{"$f":"Time!FPQ$22","v":"00:00:00"},{"$f":"Time!FPR$22","v":"00:00:00"},{"$f":"Time!FPS$22","v":"00:00:00"},{"$f":"Time!FPT$22","v":"00:00:00"},{"$f":"Time!FPU$22","v":"00:00:00"},{"$f":"Time!FPV$22","v":"00:00:00"},{"$f":"Time!FPW$22","v":"00:00:00"},{"$f":"Time!FPX$22","v":"00:00:00"},{"$f":"Time!FPY$22","v":"00:00:00"},{"$f":"Time!FPZ$22","v":"00:00:00"},{"$f":"Time!FQA$22","v":"00:00:00"},{"$f":"Time!FQB$22","v":"00:00:00"},{"$f":"Time!FQC$22","v":"00:00:00"},{"$f":"Time!FQD$22","v":"00:00:00"},{"$f":"Time!FQE$22","v":"00:00:00"},{"$f":"Time!FQF$22","v":"00:00:00"},{"$f":"Time!FQG$22","v":"00:00:00"},{"$f":"Time!FQH$22","v":"00:00:00"},{"$f":"Time!FQI$22","v":"00:00:00"},{"$f":"Time!FQJ$22","v":"00:00:00"},{"$f":"Time!FQK$22","v":"00:00:00"},{"$f":"Time!FQL$22","v":"00:00:00"},{"$f":"Time!FQM$22","v":"00:00:00"},{"$f":"Time!FQN$22","v":"00:00:00"},{"$f":"Time!FQO$22","v":"00:00:00"},{"$f":"Time!FQP$22","v":"00:00:00"},{"$f":"Time!FQQ$22","v":"00:00:00"},{"$f":"Time!FQR$22","v":"00:00:00"},{"$f":"Time!FQS$22","v":"00:00:00"},{"$f":"Time!FQT$22","v":"00:00:00"},{"$f":"Time!FQU$22","v":"00:00:00"},{"$f":"Time!FQV$22","v":"00:00:00"},{"$f":"Time!FQW$22","v":"00:00:00"},{"$f":"Time!FQX$22","v":"00:00:00"},{"$f":"Time!FQY$22","v":"00:00:00"},{"$f":"Time!FQZ$22","v":"00:00:00"},{"$f":"Time!FRA$22","v":"00:00:00"},{"$f":"Time!FRB$22","v":"00:00:00"},{"$f":"Time!FRC$22","v":"00:00:00"},{"$f":"Time!FRD$22","v":"00:00:00"},{"$f":"Time!FRE$22","v":"00:00:00"},{"$f":"Time!FRF$22","v":"00:00:00"},{"$f":"Time!FRG$22","v":"00:00:00"},{"$f":"Time!FRH$22","v":"00:00:00"},{"$f":"Time!FRI$22","v":"00:00:00"},{"$f":"Time!FRJ$22","v":"00:00:00"},{"$f":"Time!FRK$22","v":"00:00:00"},{"$f":"Time!FRL$22","v":"00:00:00"},{"$f":"Time!FRM$22","v":"00:00:00"},{"$f":"Time!FRN$22","v":"00:00:00"},{"$f":"Time!FRO$22","v":"00:00:00"},{"$f":"Time!FRP$22","v":"00:00:00"},{"$f":"Time!FRQ$22","v":"00:00:00"},{"$f":"Time!FRR$22","v":"00:00:00"},{"$f":"Time!FRS$22","v":"00:00:00"},{"$f":"Time!FRT$22","v":"00:00:00"},{"$f":"Time!FRU$22","v":"00:00:00"},{"$f":"Time!FRV$22","v":"00:00:00"},{"$f":"Time!FRW$22","v":"00:00:00"},{"$f":"Time!FRX$22","v":"00:00:00"},{"$f":"Time!FRY$22","v":"00:00:00"},{"$f":"Time!FRZ$22","v":"00:00:00"},{"$f":"Time!FSA$22","v":"00:00:00"},{"$f":"Time!FSB$22","v":"00:00:00"},{"$f":"Time!FSC$22","v":"00:00:00"},{"$f":"Time!FSD$22","v":"00:00:00"},{"$f":"Time!FSE$22","v":"00:00:00"},{"$f":"Time!FSF$22","v":"00:00:00"},{"$f":"Time!FSG$22","v":"00:00:00"},{"$f":"Time!FSH$22","v":"00:00:00"},{"$f":"Time!FSI$22","v":"00:00:00"},{"$f":"Time!FSJ$22","v":"00:00:00"},{"$f":"Time!FSK$22","v":"00:00:00"},{"$f":"Time!FSL$22","v":"00:00:00"},{"$f":"Time!FSM$22","v":"00:00:00"},{"$f":"Time!FSN$22","v":"00:00:00"},{"$f":"Time!FSO$22","v":"00:00:00"},{"$f":"Time!FSP$22","v":"00:00:00"},{"$f":"Time!FSQ$22","v":"00:00:00"},{"$f":"Time!FSR$22","v":"00:00:00"},{"$f":"Time!FSS$22","v":"00:00:00"},{"$f":"Time!FST$22","v":"00:00:00"},{"$f":"Time!FSU$22","v":"00:00:00"},{"$f":"Time!FSV$22","v":"00:00:00"},{"$f":"Time!FSW$22","v":"00:00:00"},{"$f":"Time!FSX$22","v":"00:00:00"},{"$f":"Time!FSY$22","v":"00:00:00"},{"$f":"Time!FSZ$22","v":"00:00:00"},{"$f":"Time!FTA$22","v":"00:00:00"},{"$f":"Time!FTB$22","v":"00:00:00"},{"$f":"Time!FTC$22","v":"00:00:00"},{"$f":"Time!FTD$22","v":"00:00:00"},{"$f":"Time!FTE$22","v":"00:00:00"},{"$f":"Time!FTF$22","v":"00:00:00"},{"$f":"Time!FTG$22","v":"00:00:00"},{"$f":"Time!FTH$22","v":"00:00:00"},{"$f":"Time!FTI$22","v":"00:00:00"},{"$f":"Time!FTJ$22","v":"00:00:00"},{"$f":"Time!FTK$22","v":"00:00:00"},{"$f":"Time!FTL$22","v":"00:00:00"},{"$f":"Time!FTM$22","v":"00:00:00"},{"$f":"Time!FTN$22","v":"00:00:00"},{"$f":"Time!FTO$22","v":"00:00:00"},{"$f":"Time!FTP$22","v":"00:00:00"},{"$f":"Time!FTQ$22","v":"00:00:00"},{"$f":"Time!FTR$22","v":"00:00:00"},{"$f":"Time!FTS$22","v":"00:00:00"},{"$f":"Time!FTT$22","v":"00:00:00"},{"$f":"Time!FTU$22","v":"00:00:00"},{"$f":"Time!FTV$22","v":"00:00:00"},{"$f":"Time!FTW$22","v":"00:00:00"},{"$f":"Time!FTX$22","v":"00:00:00"},{"$f":"Time!FTY$22","v":"00:00:00"},{"$f":"Time!FTZ$22","v":"00:00:00"},{"$f":"Time!FUA$22","v":"00:00:00"},{"$f":"Time!FUB$22","v":"00:00:00"},{"$f":"Time!FUC$22","v":"00:00:00"},{"$f":"Time!FUD$22","v":"00:00:00"},{"$f":"Time!FUE$22","v":"00:00:00"},{"$f":"Time!FUF$22","v":"00:00:00"},{"$f":"Time!FUG$22","v":"00:00:00"},{"$f":"Time!FUH$22","v":"00:00:00"},{"$f":"Time!FUI$22","v":"00:00:00"},{"$f":"Time!FUJ$22","v":"00:00:00"},{"$f":"Time!FUK$22","v":"00:00:00"},{"$f":"Time!FUL$22","v":"00:00:00"},{"$f":"Time!FUM$22","v":"00:00:00"},{"$f":"Time!FUN$22","v":"00:00:00"},{"$f":"Time!FUO$22","v":"00:00:00"},{"$f":"Time!FUP$22","v":"00:00:00"},{"$f":"Time!FUQ$22","v":"00:00:00"},{"$f":"Time!FUR$22","v":"00:00:00"},{"$f":"Time!FUS$22","v":"00:00:00"},{"$f":"Time!FUT$22","v":"00:00:00"},{"$f":"Time!FUU$22","v":"00:00:00"},{"$f":"Time!FUV$22","v":"00:00:00"},{"$f":"Time!FUW$22","v":"00:00:00"},{"$f":"Time!FUX$22","v":"00:00:00"},{"$f":"Time!FUY$22","v":"00:00:00"},{"$f":"Time!FUZ$22","v":"00:00:00"},{"$f":"Time!FVA$22","v":"00:00:00"},{"$f":"Time!FVB$22","v":"00:00:00"},{"$f":"Time!FVC$22","v":"00:00:00"},{"$f":"Time!FVD$22","v":"00:00:00"},{"$f":"Time!FVE$22","v":"00:00:00"},{"$f":"Time!FVF$22","v":"00:00:00"},{"$f":"Time!FVG$22","v":"00:00:00"},{"$f":"Time!FVH$22","v":"00:00:00"},{"$f":"Time!FVI$22","v":"00:00:00"},{"$f":"Time!FVJ$22","v":"00:00:00"},{"$f":"Time!FVK$22","v":"00:00:00"},{"$f":"Time!FVL$22","v":"00:00:00"},{"$f":"Time!FVM$22","v":"00:00:00"},{"$f":"Time!FVN$22","v":"00:00:00"},{"$f":"Time!FVO$22","v":"00:00:00"},{"$f":"Time!FVP$22","v":"00:00:00"},{"$f":"Time!FVQ$22","v":"00:00:00"},{"$f":"Time!FVR$22","v":"00:00:00"},{"$f":"Time!FVS$22","v":"00:00:00"},{"$f":"Time!FVT$22","v":"00:00:00"},{"$f":"Time!FVU$22","v":"00:00:00"},{"$f":"Time!FVV$22","v":"00:00:00"},{"$f":"Time!FVW$22","v":"00:00:00"},{"$f":"Time!FVX$22","v":"00:00:00"},{"$f":"Time!FVY$22","v":"00:00:00"},{"$f":"Time!FVZ$22","v":"00:00:00"},{"$f":"Time!FWA$22","v":"00:00:00"},{"$f":"Time!FWB$22","v":"00:00:00"},{"$f":"Time!FWC$22","v":"00:00:00"},{"$f":"Time!FWD$22","v":"00:00:00"},{"$f":"Time!FWE$22","v":"00:00:00"},{"$f":"Time!FWF$22","v":"00:00:00"},{"$f":"Time!FWG$22","v":"00:00:00"},{"$f":"Time!FWH$22","v":"00:00:00"},{"$f":"Time!FWI$22","v":"00:00:00"},{"$f":"Time!FWJ$22","v":"00:00:00"},{"$f":"Time!FWK$22","v":"00:00:00"},{"$f":"Time!FWL$22","v":"00:00:00"},{"$f":"Time!FWM$22","v":"00:00:00"},{"$f":"Time!FWN$22","v":"00:00:00"},{"$f":"Time!FWO$22","v":"00:00:00"},{"$f":"Time!FWP$22","v":"00:00:00"},{"$f":"Time!FWQ$22","v":"00:00:00"},{"$f":"Time!FWR$22","v":"00:00:00"},{"$f":"Time!FWS$22","v":"00:00:00"},{"$f":"Time!FWT$22","v":"00:00:00"},{"$f":"Time!FWU$22","v":"00:00:00"},{"$f":"Time!FWV$22","v":"00:00:00"},{"$f":"Time!FWW$22","v":"00:00:00"},{"$f":"Time!FWX$22","v":"00:00:00"},{"$f":"Time!FWY$22","v":"00:00:00"},{"$f":"Time!FWZ$22","v":"00:00:00"},{"$f":"Time!FXA$22","v":"00:00:00"},{"$f":"Time!FXB$22","v":"00:00:00"},{"$f":"Time!FXC$22","v":"00:00:00"},{"$f":"Time!FXD$22","v":"00:00:00"},{"$f":"Time!FXE$22","v":"00:00:00"},{"$f":"Time!FXF$22","v":"00:00:00"},{"$f":"Time!FXG$22","v":"00:00:00"},{"$f":"Time!FXH$22","v":"00:00:00"},{"$f":"Time!FXI$22","v":"00:00:00"},{"$f":"Time!FXJ$22","v":"00:00:00"},{"$f":"Time!FXK$22","v":"00:00:00"},{"$f":"Time!FXL$22","v":"00:00:00"},{"$f":"Time!FXM$22","v":"00:00:00"},{"$f":"Time!FXN$22","v":"00:00:00"},{"$f":"Time!FXO$22","v":"00:00:00"},{"$f":"Time!FXP$22","v":"00:00:00"},{"$f":"Time!FXQ$22","v":"00:00:00"},{"$f":"Time!FXR$22","v":"00:00:00"},{"$f":"Time!FXS$22","v":"00:00:00"},{"$f":"Time!FXT$22","v":"00:00:00"},{"$f":"Time!FXU$22","v":"00:00:00"},{"$f":"Time!FXV$22","v":"00:00:00"},{"$f":"Time!FXW$22","v":"00:00:00"},{"$f":"Time!FXX$22","v":"00:00:00"},{"$f":"Time!FXY$22","v":"00:00:00"},{"$f":"Time!FXZ$22","v":"00:00:00"},{"$f":"Time!FYA$22","v":"00:00:00"},{"$f":"Time!FYB$22","v":"00:00:00"},{"$f":"Time!FYC$22","v":"00:00:00"},{"$f":"Time!FYD$22","v":"00:00:00"},{"$f":"Time!FYE$22","v":"00:00:00"},{"$f":"Time!FYF$22","v":"00:00:00"},{"$f":"Time!FYG$22","v":"00:00:00"},{"$f":"Time!FYH$22","v":"00:00:00"},{"$f":"Time!FYI$22","v":"00:00:00"},{"$f":"Time!FYJ$22","v":"00:00:00"},{"$f":"Time!FYK$22","v":"00:00:00"},{"$f":"Time!FYL$22","v":"00:00:00"},{"$f":"Time!FYM$22","v":"00:00:00"},{"$f":"Time!FYN$22","v":"00:00:00"},{"$f":"Time!FYO$22","v":"00:00:00"},{"$f":"Time!FYP$22","v":"00:00:00"},{"$f":"Time!FYQ$22","v":"00:00:00"},{"$f":"Time!FYR$22","v":"00:00:00"},{"$f":"Time!FYS$22","v":"00:00:00"},{"$f":"Time!FYT$22","v":"00:00:00"},{"$f":"Time!FYU$22","v":"00:00:00"},{"$f":"Time!FYV$22","v":"00:00:00"},{"$f":"Time!FYW$22","v":"00:00:00"},{"$f":"Time!FYX$22","v":"00:00:00"},{"$f":"Time!FYY$22","v":"00:00:00"},{"$f":"Time!FYZ$22","v":"00:00:00"},{"$f":"Time!FZA$22","v":"00:00:00"},{"$f":"Time!FZB$22","v":"00:00:00"},{"$f":"Time!FZC$22","v":"00:00:00"},{"$f":"Time!FZD$22","v":"00:00:00"},{"$f":"Time!FZE$22","v":"00:00:00"},{"$f":"Time!FZF$22","v":"00:00:00"},{"$f":"Time!FZG$22","v":"00:00:00"},{"$f":"Time!FZH$22","v":"00:00:00"},{"$f":"Time!FZI$22","v":"00:00:00"},{"$f":"Time!FZJ$22","v":"00:00:00"},{"$f":"Time!FZK$22","v":"00:00:00"},{"$f":"Time!FZL$22","v":"00:00:00"},{"$f":"Time!FZM$22","v":"00:00:00"},{"$f":"Time!FZN$22","v":"00:00:00"},{"$f":"Time!FZO$22","v":"00:00:00"},{"$f":"Time!FZP$22","v":"00:00:00"},{"$f":"Time!FZQ$22","v":"00:00:00"},{"$f":"Time!FZR$22","v":"00:00:00"},{"$f":"Time!FZS$22","v":"00:00:00"},{"$f":"Time!FZT$22","v":"00:00:00"},{"$f":"Time!FZU$22","v":"00:00:00"},{"$f":"Time!FZV$22","v":"00:00:00"},{"$f":"Time!FZW$22","v":"00:00:00"},{"$f":"Time!FZX$22","v":"00:00:00"},{"$f":"Time!FZY$22","v":"00:00:00"},{"$f":"Time!FZZ$22","v":"00:00:00"},{"$f":"Time!GAA$22","v":"00:00:00"},{"$f":"Time!GAB$22","v":"00:00:00"},{"$f":"Time!GAC$22","v":"00:00:00"},{"$f":"Time!GAD$22","v":"00:00:00"},{"$f":"Time!GAE$22","v":"00:00:00"},{"$f":"Time!GAF$22","v":"00:00:00"},{"$f":"Time!GAG$22","v":"00:00:00"},{"$f":"Time!GAH$22","v":"00:00:00"},{"$f":"Time!GAI$22","v":"00:00:00"},{"$f":"Time!GAJ$22","v":"00:00:00"},{"$f":"Time!GAK$22","v":"00:00:00"},{"$f":"Time!GAL$22","v":"00:00:00"},{"$f":"Time!GAM$22","v":"00:00:00"},{"$f":"Time!GAN$22","v":"00:00:00"},{"$f":"Time!GAO$22","v":"00:00:00"},{"$f":"Time!GAP$22","v":"00:00:00"},{"$f":"Time!GAQ$22","v":"00:00:00"},{"$f":"Time!GAR$22","v":"00:00:00"},{"$f":"Time!GAS$22","v":"00:00:00"},{"$f":"Time!GAT$22","v":"00:00:00"},{"$f":"Time!GAU$22","v":"00:00:00"},{"$f":"Time!GAV$22","v":"00:00:00"},{"$f":"Time!GAW$22","v":"00:00:00"},{"$f":"Time!GAX$22","v":"00:00:00"},{"$f":"Time!GAY$22","v":"00:00:00"},{"$f":"Time!GAZ$22","v":"00:00:00"},{"$f":"Time!GBA$22","v":"00:00:00"},{"$f":"Time!GBB$22","v":"00:00:00"},{"$f":"Time!GBC$22","v":"00:00:00"},{"$f":"Time!GBD$22","v":"00:00:00"},{"$f":"Time!GBE$22","v":"00:00:00"},{"$f":"Time!GBF$22","v":"00:00:00"},{"$f":"Time!GBG$22","v":"00:00:00"},{"$f":"Time!GBH$22","v":"00:00:00"},{"$f":"Time!GBI$22","v":"00:00:00"},{"$f":"Time!GBJ$22","v":"00:00:00"},{"$f":"Time!GBK$22","v":"00:00:00"},{"$f":"Time!GBL$22","v":"00:00:00"},{"$f":"Time!GBM$22","v":"00:00:00"},{"$f":"Time!GBN$22","v":"00:00:00"},{"$f":"Time!GBO$22","v":"00:00:00"},{"$f":"Time!GBP$22","v":"00:00:00"},{"$f":"Time!GBQ$22","v":"00:00:00"},{"$f":"Time!GBR$22","v":"00:00:00"},{"$f":"Time!GBS$22","v":"00:00:00"},{"$f":"Time!GBT$22","v":"00:00:00"},{"$f":"Time!GBU$22","v":"00:00:00"},{"$f":"Time!GBV$22","v":"00:00:00"},{"$f":"Time!GBW$22","v":"00:00:00"},{"$f":"Time!GBX$22","v":"00:00:00"},{"$f":"Time!GBY$22","v":"00:00:00"},{"$f":"Time!GBZ$22","v":"00:00:00"},{"$f":"Time!GCA$22","v":"00:00:00"},{"$f":"Time!GCB$22","v":"00:00:00"},{"$f":"Time!GCC$22","v":"00:00:00"},{"$f":"Time!GCD$22","v":"00:00:00"},{"$f":"Time!GCE$22","v":"00:00:00"},{"$f":"Time!GCF$22","v":"00:00:00"},{"$f":"Time!GCG$22","v":"00:00:00"},{"$f":"Time!GCH$22","v":"00:00:00"},{"$f":"Time!GCI$22","v":"00:00:00"},{"$f":"Time!GCJ$22","v":"00:00:00"},{"$f":"Time!GCK$22","v":"00:00:00"},{"$f":"Time!GCL$22","v":"00:00:00"},{"$f":"Time!GCM$22","v":"00:00:00"},{"$f":"Time!GCN$22","v":"00:00:00"},{"$f":"Time!GCO$22","v":"00:00:00"},{"$f":"Time!GCP$22","v":"00:00:00"},{"$f":"Time!GCQ$22","v":"00:00:00"},{"$f":"Time!GCR$22","v":"00:00:00"},{"$f":"Time!GCS$22","v":"00:00:00"},{"$f":"Time!GCT$22","v":"00:00:00"},{"$f":"Time!GCU$22","v":"00:00:00"},{"$f":"Time!GCV$22","v":"00:00:00"},{"$f":"Time!GCW$22","v":"00:00:00"},{"$f":"Time!GCX$22","v":"00:00:00"},{"$f":"Time!GCY$22","v":"00:00:00"},{"$f":"Time!GCZ$22","v":"00:00:00"},{"$f":"Time!GDA$22","v":"00:00:00"},{"$f":"Time!GDB$22","v":"00:00:00"},{"$f":"Time!GDC$22","v":"00:00:00"},{"$f":"Time!GDD$22","v":"00:00:00"},{"$f":"Time!GDE$22","v":"00:00:00"},{"$f":"Time!GDF$22","v":"00:00:00"},{"$f":"Time!GDG$22","v":"00:00:00"},{"$f":"Time!GDH$22","v":"00:00:00"},{"$f":"Time!GDI$22","v":"00:00:00"},{"$f":"Time!GDJ$22","v":"00:00:00"},{"$f":"Time!GDK$22","v":"00:00:00"},{"$f":"Time!GDL$22","v":"00:00:00"},{"$f":"Time!GDM$22","v":"00:00:00"},{"$f":"Time!GDN$22","v":"00:00:00"},{"$f":"Time!GDO$22","v":"00:00:00"},{"$f":"Time!GDP$22","v":"00:00:00"},{"$f":"Time!GDQ$22","v":"00:00:00"},{"$f":"Time!GDR$22","v":"00:00:00"},{"$f":"Time!GDS$22","v":"00:00:00"},{"$f":"Time!GDT$22","v":"00:00:00"},{"$f":"Time!GDU$22","v":"00:00:00"},{"$f":"Time!GDV$22","v":"00:00:00"},{"$f":"Time!GDW$22","v":"00:00:00"},{"$f":"Time!GDX$22","v":"00:00:00"},{"$f":"Time!GDY$22","v":"00:00:00"},{"$f":"Time!GDZ$22","v":"00:00:00"},{"$f":"Time!GEA$22","v":"00:00:00"},{"$f":"Time!GEB$22","v":"00:00:00"},{"$f":"Time!GEC$22","v":"00:00:00"},{"$f":"Time!GED$22","v":"00:00:00"},{"$f":"Time!GEE$22","v":"00:00:00"},{"$f":"Time!GEF$22","v":"00:00:00"},{"$f":"Time!GEG$22","v":"00:00:00"},{"$f":"Time!GEH$22","v":"00:00:00"},{"$f":"Time!GEI$22","v":"00:00:00"},{"$f":"Time!GEJ$22","v":"00:00:00"},{"$f":"Time!GEK$22","v":"00:00:00"},{"$f":"Time!GEL$22","v":"00:00:00"},{"$f":"Time!GEM$22","v":"00:00:00"},{"$f":"Time!GEN$22","v":"00:00:00"},{"$f":"Time!GEO$22","v":"00:00:00"},{"$f":"Time!GEP$22","v":"00:00:00"},{"$f":"Time!GEQ$22","v":"00:00:00"},{"$f":"Time!GER$22","v":"00:00:00"},{"$f":"Time!GES$22","v":"00:00:00"},{"$f":"Time!GET$22","v":"00:00:00"},{"$f":"Time!GEU$22","v":"00:00:00"},{"$f":"Time!GEV$22","v":"00:00:00"},{"$f":"Time!GEW$22","v":"00:00:00"},{"$f":"Time!GEX$22","v":"00:00:00"},{"$f":"Time!GEY$22","v":"00:00:00"},{"$f":"Time!GEZ$22","v":"00:00:00"},{"$f":"Time!GFA$22","v":"00:00:00"},{"$f":"Time!GFB$22","v":"00:00:00"},{"$f":"Time!GFC$22","v":"00:00:00"},{"$f":"Time!GFD$22","v":"00:00:00"},{"$f":"Time!GFE$22","v":"00:00:00"},{"$f":"Time!GFF$22","v":"00:00:00"},{"$f":"Time!GFG$22","v":"00:00:00"},{"$f":"Time!GFH$22","v":"00:00:00"},{"$f":"Time!GFI$22","v":"00:00:00"},{"$f":"Time!GFJ$22","v":"00:00:00"},{"$f":"Time!GFK$22","v":"00:00:00"},{"$f":"Time!GFL$22","v":"00:00:00"},{"$f":"Time!GFM$22","v":"00:00:00"},{"$f":"Time!GFN$22","v":"00:00:00"},{"$f":"Time!GFO$22","v":"00:00:00"},{"$f":"Time!GFP$22","v":"00:00:00"},{"$f":"Time!GFQ$22","v":"00:00:00"},{"$f":"Time!GFR$22","v":"00:00:00"},{"$f":"Time!GFS$22","v":"00:00:00"},{"$f":"Time!GFT$22","v":"00:00:00"},{"$f":"Time!GFU$22","v":"00:00:00"},{"$f":"Time!GFV$22","v":"00:00:00"},{"$f":"Time!GFW$22","v":"00:00:00"},{"$f":"Time!GFX$22","v":"00:00:00"},{"$f":"Time!GFY$22","v":"00:00:00"},{"$f":"Time!GFZ$22","v":"00:00:00"},{"$f":"Time!GGA$22","v":"00:00:00"},{"$f":"Time!GGB$22","v":"00:00:00"},{"$f":"Time!GGC$22","v":"00:00:00"},{"$f":"Time!GGD$22","v":"00:00:00"},{"$f":"Time!GGE$22","v":"00:00:00"},{"$f":"Time!GGF$22","v":"00:00:00"},{"$f":"Time!GGG$22","v":"00:00:00"},{"$f":"Time!GGH$22","v":"00:00:00"},{"$f":"Time!GGI$22","v":"00:00:00"},{"$f":"Time!GGJ$22","v":"00:00:00"},{"$f":"Time!GGK$22","v":"00:00:00"},{"$f":"Time!GGL$22","v":"00:00:00"},{"$f":"Time!GGM$22","v":"00:00:00"},{"$f":"Time!GGN$22","v":"00:00:00"},{"$f":"Time!GGO$22","v":"00:00:00"},{"$f":"Time!GGP$22","v":"00:00:00"},{"$f":"Time!GGQ$22","v":"00:00:00"},{"$f":"Time!GGR$22","v":"00:00:00"},{"$f":"Time!GGS$22","v":"00:00:00"},{"$f":"Time!GGT$22","v":"00:00:00"},{"$f":"Time!GGU$22","v":"00:00:00"},{"$f":"Time!GGV$22","v":"00:00:00"},{"$f":"Time!GGW$22","v":"00:00:00"},{"$f":"Time!GGX$22","v":"00:00:00"},{"$f":"Time!GGY$22","v":"00:00:00"},{"$f":"Time!GGZ$22","v":"00:00:00"},{"$f":"Time!GHA$22","v":"00:00:00"},{"$f":"Time!GHB$22","v":"00:00:00"},{"$f":"Time!GHC$22","v":"00:00:00"},{"$f":"Time!GHD$22","v":"00:00:00"},{"$f":"Time!GHE$22","v":"00:00:00"},{"$f":"Time!GHF$22","v":"00:00:00"},{"$f":"Time!GHG$22","v":"00:00:00"},{"$f":"Time!GHH$22","v":"00:00:00"},{"$f":"Time!GHI$22","v":"00:00:00"},{"$f":"Time!GHJ$22","v":"00:00:00"},{"$f":"Time!GHK$22","v":"00:00:00"},{"$f":"Time!GHL$22","v":"00:00:00"},{"$f":"Time!GHM$22","v":"00:00:00"},{"$f":"Time!GHN$22","v":"00:00:00"},{"$f":"Time!GHO$22","v":"00:00:00"},{"$f":"Time!GHP$22","v":"00:00:00"},{"$f":"Time!GHQ$22","v":"00:00:00"},{"$f":"Time!GHR$22","v":"00:00:00"},{"$f":"Time!GHS$22","v":"00:00:00"},{"$f":"Time!GHT$22","v":"00:00:00"},{"$f":"Time!GHU$22","v":"00:00:00"},{"$f":"Time!GHV$22","v":"00:00:00"},{"$f":"Time!GHW$22","v":"00:00:00"},{"$f":"Time!GHX$22","v":"00:00:00"},{"$f":"Time!GHY$22","v":"00:00:00"},{"$f":"Time!GHZ$22","v":"00:00:00"},{"$f":"Time!GIA$22","v":"00:00:00"},{"$f":"Time!GIB$22","v":"00:00:00"},{"$f":"Time!GIC$22","v":"00:00:00"},{"$f":"Time!GID$22","v":"00:00:00"},{"$f":"Time!GIE$22","v":"00:00:00"},{"$f":"Time!GIF$22","v":"00:00:00"},{"$f":"Time!GIG$22","v":"00:00:00"},{"$f":"Time!GIH$22","v":"00:00:00"},{"$f":"Time!GII$22","v":"00:00:00"},{"$f":"Time!GIJ$22","v":"00:00:00"},{"$f":"Time!GIK$22","v":"00:00:00"},{"$f":"Time!GIL$22","v":"00:00:00"},{"$f":"Time!GIM$22","v":"00:00:00"},{"$f":"Time!GIN$22","v":"00:00:00"},{"$f":"Time!GIO$22","v":"00:00:00"},{"$f":"Time!GIP$22","v":"00:00:00"},{"$f":"Time!GIQ$22","v":"00:00:00"},{"$f":"Time!GIR$22","v":"00:00:00"},{"$f":"Time!GIS$22","v":"00:00:00"},{"$f":"Time!GIT$22","v":"00:00:00"},{"$f":"Time!GIU$22","v":"00:00:00"},{"$f":"Time!GIV$22","v":"00:00:00"},{"$f":"Time!GIW$22","v":"00:00:00"},{"$f":"Time!GIX$22","v":"00:00:00"},{"$f":"Time!GIY$22","v":"00:00:00"},{"$f":"Time!GIZ$22","v":"00:00:00"},{"$f":"Time!GJA$22","v":"00:00:00"},{"$f":"Time!GJB$22","v":"00:00:00"},{"$f":"Time!GJC$22","v":"00:00:00"},{"$f":"Time!GJD$22","v":"00:00:00"},{"$f":"Time!GJE$22","v":"00:00:00"},{"$f":"Time!GJF$22","v":"00:00:00"},{"$f":"Time!GJG$22","v":"00:00:00"},{"$f":"Time!GJH$22","v":"00:00:00"},{"$f":"Time!GJI$22","v":"00:00:00"},{"$f":"Time!GJJ$22","v":"00:00:00"},{"$f":"Time!GJK$22","v":"00:00:00"},{"$f":"Time!GJL$22","v":"00:00:00"},{"$f":"Time!GJM$22","v":"00:00:00"},{"$f":"Time!GJN$22","v":"00:00:00"},{"$f":"Time!GJO$22","v":"00:00:00"},{"$f":"Time!GJP$22","v":"00:00:00"},{"$f":"Time!GJQ$22","v":"00:00:00"},{"$f":"Time!GJR$22","v":"00:00:00"},{"$f":"Time!GJS$22","v":"00:00:00"},{"$f":"Time!GJT$22","v":"00:00:00"},{"$f":"Time!GJU$22","v":"00:00:00"},{"$f":"Time!GJV$22","v":"00:00:00"},{"$f":"Time!GJW$22","v":"00:00:00"},{"$f":"Time!GJX$22","v":"00:00:00"},{"$f":"Time!GJY$22","v":"00:00:00"},{"$f":"Time!GJZ$22","v":"00:00:00"},{"$f":"Time!GKA$22","v":"00:00:00"},{"$f":"Time!GKB$22","v":"00:00:00"},{"$f":"Time!GKC$22","v":"00:00:00"},{"$f":"Time!GKD$22","v":"00:00:00"},{"$f":"Time!GKE$22","v":"00:00:00"},{"$f":"Time!GKF$22","v":"00:00:00"},{"$f":"Time!GKG$22","v":"00:00:00"},{"$f":"Time!GKH$22","v":"00:00:00"},{"$f":"Time!GKI$22","v":"00:00:00"},{"$f":"Time!GKJ$22","v":"00:00:00"},{"$f":"Time!GKK$22","v":"00:00:00"},{"$f":"Time!GKL$22","v":"00:00:00"},{"$f":"Time!GKM$22","v":"00:00:00"},{"$f":"Time!GKN$22","v":"00:00:00"},{"$f":"Time!GKO$22","v":"00:00:00"},{"$f":"Time!GKP$22","v":"00:00:00"},{"$f":"Time!GKQ$22","v":"00:00:00"},{"$f":"Time!GKR$22","v":"00:00:00"},{"$f":"Time!GKS$22","v":"00:00:00"},{"$f":"Time!GKT$22","v":"00:00:00"},{"$f":"Time!GKU$22","v":"00:00:00"},{"$f":"Time!GKV$22","v":"00:00:00"},{"$f":"Time!GKW$22","v":"00:00:00"},{"$f":"Time!GKX$22","v":"00:00:00"},{"$f":"Time!GKY$22","v":"00:00:00"},{"$f":"Time!GKZ$22","v":"00:00:00"},{"$f":"Time!GLA$22","v":"00:00:00"},{"$f":"Time!GLB$22","v":"00:00:00"},{"$f":"Time!GLC$22","v":"00:00:00"},{"$f":"Time!GLD$22","v":"00:00:00"},{"$f":"Time!GLE$22","v":"00:00:00"},{"$f":"Time!GLF$22","v":"00:00:00"},{"$f":"Time!GLG$22","v":"00:00:00"},{"$f":"Time!GLH$22","v":"00:00:00"},{"$f":"Time!GLI$22","v":"00:00:00"},{"$f":"Time!GLJ$22","v":"00:00:00"},{"$f":"Time!GLK$22","v":"00:00:00"},{"$f":"Time!GLL$22","v":"00:00:00"},{"$f":"Time!GLM$22","v":"00:00:00"},{"$f":"Time!GLN$22","v":"00:00:00"},{"$f":"Time!GLO$22","v":"00:00:00"},{"$f":"Time!GLP$22","v":"00:00:00"},{"$f":"Time!GLQ$22","v":"00:00:00"},{"$f":"Time!GLR$22","v":"00:00:00"},{"$f":"Time!GLS$22","v":"00:00:00"},{"$f":"Time!GLT$22","v":"00:00:00"},{"$f":"Time!GLU$22","v":"00:00:00"},{"$f":"Time!GLV$22","v":"00:00:00"},{"$f":"Time!GLW$22","v":"00:00:00"},{"$f":"Time!GLX$22","v":"00:00:00"},{"$f":"Time!GLY$22","v":"00:00:00"},{"$f":"Time!GLZ$22","v":"00:00:00"},{"$f":"Time!GMA$22","v":"00:00:00"},{"$f":"Time!GMB$22","v":"00:00:00"},{"$f":"Time!GMC$22","v":"00:00:00"},{"$f":"Time!GMD$22","v":"00:00:00"},{"$f":"Time!GME$22","v":"00:00:00"},{"$f":"Time!GMF$22","v":"00:00:00"},{"$f":"Time!GMG$22","v":"00:00:00"},{"$f":"Time!GMH$22","v":"00:00:00"},{"$f":"Time!GMI$22","v":"00:00:00"},{"$f":"Time!GMJ$22","v":"00:00:00"},{"$f":"Time!GMK$22","v":"00:00:00"},{"$f":"Time!GML$22","v":"00:00:00"},{"$f":"Time!GMM$22","v":"00:00:00"},{"$f":"Time!GMN$22","v":"00:00:00"},{"$f":"Time!GMO$22","v":"00:00:00"},{"$f":"Time!GMP$22","v":"00:00:00"},{"$f":"Time!GMQ$22","v":"00:00:00"},{"$f":"Time!GMR$22","v":"00:00:00"},{"$f":"Time!GMS$22","v":"00:00:00"},{"$f":"Time!GMT$22","v":"00:00:00"},{"$f":"Time!GMU$22","v":"00:00:00"},{"$f":"Time!GMV$22","v":"00:00:00"},{"$f":"Time!GMW$22","v":"00:00:00"},{"$f":"Time!GMX$22","v":"00:00:00"},{"$f":"Time!GMY$22","v":"00:00:00"},{"$f":"Time!GMZ$22","v":"00:00:00"},{"$f":"Time!GNA$22","v":"00:00:00"},{"$f":"Time!GNB$22","v":"00:00:00"},{"$f":"Time!GNC$22","v":"00:00:00"},{"$f":"Time!GND$22","v":"00:00:00"},{"$f":"Time!GNE$22","v":"00:00:00"},{"$f":"Time!GNF$22","v":"00:00:00"},{"$f":"Time!GNG$22","v":"00:00:00"},{"$f":"Time!GNH$22","v":"00:00:00"},{"$f":"Time!GNI$22","v":"00:00:00"},{"$f":"Time!GNJ$22","v":"00:00:00"},{"$f":"Time!GNK$22","v":"00:00:00"},{"$f":"Time!GNL$22","v":"00:00:00"},{"$f":"Time!GNM$22","v":"00:00:00"},{"$f":"Time!GNN$22","v":"00:00:00"},{"$f":"Time!GNO$22","v":"00:00:00"},{"$f":"Time!GNP$22","v":"00:00:00"},{"$f":"Time!GNQ$22","v":"00:00:00"},{"$f":"Time!GNR$22","v":"00:00:00"},{"$f":"Time!GNS$22","v":"00:00:00"},{"$f":"Time!GNT$22","v":"00:00:00"},{"$f":"Time!GNU$22","v":"00:00:00"},{"$f":"Time!GNV$22","v":"00:00:00"},{"$f":"Time!GNW$22","v":"00:00:00"},{"$f":"Time!GNX$22","v":"00:00:00"},{"$f":"Time!GNY$22","v":"00:00:00"},{"$f":"Time!GNZ$22","v":"00:00:00"},{"$f":"Time!GOA$22","v":"00:00:00"},{"$f":"Time!GOB$22","v":"00:00:00"},{"$f":"Time!GOC$22","v":"00:00:00"},{"$f":"Time!GOD$22","v":"00:00:00"},{"$f":"Time!GOE$22","v":"00:00:00"},{"$f":"Time!GOF$22","v":"00:00:00"},{"$f":"Time!GOG$22","v":"00:00:00"},{"$f":"Time!GOH$22","v":"00:00:00"},{"$f":"Time!GOI$22","v":"00:00:00"},{"$f":"Time!GOJ$22","v":"00:00:00"},{"$f":"Time!GOK$22","v":"00:00:00"},{"$f":"Time!GOL$22","v":"00:00:00"},{"$f":"Time!GOM$22","v":"00:00:00"},{"$f":"Time!GON$22","v":"00:00:00"},{"$f":"Time!GOO$22","v":"00:00:00"},{"$f":"Time!GOP$22","v":"00:00:00"},{"$f":"Time!GOQ$22","v":"00:00:00"},{"$f":"Time!GOR$22","v":"00:00:00"},{"$f":"Time!GOS$22","v":"00:00:00"},{"$f":"Time!GOT$22","v":"00:00:00"},{"$f":"Time!GOU$22","v":"00:00:00"},{"$f":"Time!GOV$22","v":"00:00:00"},{"$f":"Time!GOW$22","v":"00:00:00"},{"$f":"Time!GOX$22","v":"00:00:00"},{"$f":"Time!GOY$22","v":"00:00:00"},{"$f":"Time!GOZ$22","v":"00:00:00"},{"$f":"Time!GPA$22","v":"00:00:00"},{"$f":"Time!GPB$22","v":"00:00:00"},{"$f":"Time!GPC$22","v":"00:00:00"},{"$f":"Time!GPD$22","v":"00:00:00"},{"$f":"Time!GPE$22","v":"00:00:00"},{"$f":"Time!GPF$22","v":"00:00:00"},{"$f":"Time!GPG$22","v":"00:00:00"},{"$f":"Time!GPH$22","v":"00:00:00"},{"$f":"Time!GPI$22","v":"00:00:00"},{"$f":"Time!GPJ$22","v":"00:00:00"},{"$f":"Time!GPK$22","v":"00:00:00"},{"$f":"Time!GPL$22","v":"00:00:00"},{"$f":"Time!GPM$22","v":"00:00:00"},{"$f":"Time!GPN$22","v":"00:00:00"},{"$f":"Time!GPO$22","v":"00:00:00"},{"$f":"Time!GPP$22","v":"00:00:00"},{"$f":"Time!GPQ$22","v":"00:00:00"},{"$f":"Time!GPR$22","v":"00:00:00"},{"$f":"Time!GPS$22","v":"00:00:00"},{"$f":"Time!GPT$22","v":"00:00:00"},{"$f":"Time!GPU$22","v":"00:00:00"},{"$f":"Time!GPV$22","v":"00:00:00"},{"$f":"Time!GPW$22","v":"00:00:00"},{"$f":"Time!GPX$22","v":"00:00:00"},{"$f":"Time!GPY$22","v":"00:00:00"},{"$f":"Time!GPZ$22","v":"00:00:00"},{"$f":"Time!GQA$22","v":"00:00:00"},{"$f":"Time!GQB$22","v":"00:00:00"},{"$f":"Time!GQC$22","v":"00:00:00"},{"$f":"Time!GQD$22","v":"00:00:00"},{"$f":"Time!GQE$22","v":"00:00:00"},{"$f":"Time!GQF$22","v":"00:00:00"},{"$f":"Time!GQG$22","v":"00:00:00"},{"$f":"Time!GQH$22","v":"00:00:00"},{"$f":"Time!GQI$22","v":"00:00:00"},{"$f":"Time!GQJ$22","v":"00:00:00"},{"$f":"Time!GQK$22","v":"00:00:00"},{"$f":"Time!GQL$22","v":"00:00:00"},{"$f":"Time!GQM$22","v":"00:00:00"},{"$f":"Time!GQN$22","v":"00:00:00"},{"$f":"Time!GQO$22","v":"00:00:00"},{"$f":"Time!GQP$22","v":"00:00:00"},{"$f":"Time!GQQ$22","v":"00:00:00"},{"$f":"Time!GQR$22","v":"00:00:00"},{"$f":"Time!GQS$22","v":"00:00:00"},{"$f":"Time!GQT$22","v":"00:00:00"},{"$f":"Time!GQU$22","v":"00:00:00"},{"$f":"Time!GQV$22","v":"00:00:00"},{"$f":"Time!GQW$22","v":"00:00:00"},{"$f":"Time!GQX$22","v":"00:00:00"},{"$f":"Time!GQY$22","v":"00:00:00"},{"$f":"Time!GQZ$22","v":"00:00:00"},{"$f":"Time!GRA$22","v":"00:00:00"},{"$f":"Time!GRB$22","v":"00:00:00"},{"$f":"Time!GRC$22","v":"00:00:00"},{"$f":"Time!GRD$22","v":"00:00:00"},{"$f":"Time!GRE$22","v":"00:00:00"},{"$f":"Time!GRF$22","v":"00:00:00"},{"$f":"Time!GRG$22","v":"00:00:00"},{"$f":"Time!GRH$22","v":"00:00:00"},{"$f":"Time!GRI$22","v":"00:00:00"},{"$f":"Time!GRJ$22","v":"00:00:00"},{"$f":"Time!GRK$22","v":"00:00:00"},{"$f":"Time!GRL$22","v":"00:00:00"},{"$f":"Time!GRM$22","v":"00:00:00"},{"$f":"Time!GRN$22","v":"00:00:00"},{"$f":"Time!GRO$22","v":"00:00:00"},{"$f":"Time!GRP$22","v":"00:00:00"},{"$f":"Time!GRQ$22","v":"00:00:00"},{"$f":"Time!GRR$22","v":"00:00:00"},{"$f":"Time!GRS$22","v":"00:00:00"},{"$f":"Time!GRT$22","v":"00:00:00"},{"$f":"Time!GRU$22","v":"00:00:00"},{"$f":"Time!GRV$22","v":"00:00:00"},{"$f":"Time!GRW$22","v":"00:00:00"},{"$f":"Time!GRX$22","v":"00:00:00"},{"$f":"Time!GRY$22","v":"00:00:00"},{"$f":"Time!GRZ$22","v":"00:00:00"},{"$f":"Time!GSA$22","v":"00:00:00"},{"$f":"Time!GSB$22","v":"00:00:00"},{"$f":"Time!GSC$22","v":"00:00:00"},{"$f":"Time!GSD$22","v":"00:00:00"},{"$f":"Time!GSE$22","v":"00:00:00"},{"$f":"Time!GSF$22","v":"00:00:00"},{"$f":"Time!GSG$22","v":"00:00:00"},{"$f":"Time!GSH$22","v":"00:00:00"},{"$f":"Time!GSI$22","v":"00:00:00"},{"$f":"Time!GSJ$22","v":"00:00:00"},{"$f":"Time!GSK$22","v":"00:00:00"},{"$f":"Time!GSL$22","v":"00:00:00"},{"$f":"Time!GSM$22","v":"00:00:00"},{"$f":"Time!GSN$22","v":"00:00:00"},{"$f":"Time!GSO$22","v":"00:00:00"},{"$f":"Time!GSP$22","v":"00:00:00"},{"$f":"Time!GSQ$22","v":"00:00:00"},{"$f":"Time!GSR$22","v":"00:00:00"},{"$f":"Time!GSS$22","v":"00:00:00"},{"$f":"Time!GST$22","v":"00:00:00"},{"$f":"Time!GSU$22","v":"00:00:00"},{"$f":"Time!GSV$22","v":"00:00:00"},{"$f":"Time!GSW$22","v":"00:00:00"},{"$f":"Time!GSX$22","v":"00:00:00"},{"$f":"Time!GSY$22","v":"00:00:00"},{"$f":"Time!GSZ$22","v":"00:00:00"},{"$f":"Time!GTA$22","v":"00:00:00"},{"$f":"Time!GTB$22","v":"00:00:00"},{"$f":"Time!GTC$22","v":"00:00:00"},{"$f":"Time!GTD$22","v":"00:00:00"},{"$f":"Time!GTE$22","v":"00:00:00"},{"$f":"Time!GTF$22","v":"00:00:00"},{"$f":"Time!GTG$22","v":"00:00:00"},{"$f":"Time!GTH$22","v":"00:00:00"},{"$f":"Time!GTI$22","v":"00:00:00"},{"$f":"Time!GTJ$22","v":"00:00:00"},{"$f":"Time!GTK$22","v":"00:00:00"},{"$f":"Time!GTL$22","v":"00:00:00"},{"$f":"Time!GTM$22","v":"00:00:00"},{"$f":"Time!GTN$22","v":"00:00:00"},{"$f":"Time!GTO$22","v":"00:00:00"},{"$f":"Time!GTP$22","v":"00:00:00"},{"$f":"Time!GTQ$22","v":"00:00:00"},{"$f":"Time!GTR$22","v":"00:00:00"},{"$f":"Time!GTS$22","v":"00:00:00"},{"$f":"Time!GTT$22","v":"00:00:00"},{"$f":"Time!GTU$22","v":"00:00:00"},{"$f":"Time!GTV$22","v":"00:00:00"},{"$f":"Time!GTW$22","v":"00:00:00"},{"$f":"Time!GTX$22","v":"00:00:00"},{"$f":"Time!GTY$22","v":"00:00:00"},{"$f":"Time!GTZ$22","v":"00:00:00"},{"$f":"Time!GUA$22","v":"00:00:00"},{"$f":"Time!GUB$22","v":"00:00:00"},{"$f":"Time!GUC$22","v":"00:00:00"},{"$f":"Time!GUD$22","v":"00:00:00"},{"$f":"Time!GUE$22","v":"00:00:00"},{"$f":"Time!GUF$22","v":"00:00:00"},{"$f":"Time!GUG$22","v":"00:00:00"},{"$f":"Time!GUH$22","v":"00:00:00"},{"$f":"Time!GUI$22","v":"00:00:00"},{"$f":"Time!GUJ$22","v":"00:00:00"},{"$f":"Time!GUK$22","v":"00:00:00"},{"$f":"Time!GUL$22","v":"00:00:00"},{"$f":"Time!GUM$22","v":"00:00:00"},{"$f":"Time!GUN$22","v":"00:00:00"},{"$f":"Time!GUO$22","v":"00:00:00"},{"$f":"Time!GUP$22","v":"00:00:00"},{"$f":"Time!GUQ$22","v":"00:00:00"},{"$f":"Time!GUR$22","v":"00:00:00"},{"$f":"Time!GUS$22","v":"00:00:00"},{"$f":"Time!GUT$22","v":"00:00:00"},{"$f":"Time!GUU$22","v":"00:00:00"},{"$f":"Time!GUV$22","v":"00:00:00"},{"$f":"Time!GUW$22","v":"00:00:00"},{"$f":"Time!GUX$22","v":"00:00:00"},{"$f":"Time!GUY$22","v":"00:00:00"},{"$f":"Time!GUZ$22","v":"00:00:00"},{"$f":"Time!GVA$22","v":"00:00:00"},{"$f":"Time!GVB$22","v":"00:00:00"},{"$f":"Time!GVC$22","v":"00:00:00"},{"$f":"Time!GVD$22","v":"00:00:00"},{"$f":"Time!GVE$22","v":"00:00:00"},{"$f":"Time!GVF$22","v":"00:00:00"},{"$f":"Time!GVG$22","v":"00:00:00"},{"$f":"Time!GVH$22","v":"00:00:00"},{"$f":"Time!GVI$22","v":"00:00:00"},{"$f":"Time!GVJ$22","v":"00:00:00"},{"$f":"Time!GVK$22","v":"00:00:00"},{"$f":"Time!GVL$22","v":"00:00:00"},{"$f":"Time!GVM$22","v":"00:00:00"},{"$f":"Time!GVN$22","v":"00:00:00"},{"$f":"Time!GVO$22","v":"00:00:00"},{"$f":"Time!GVP$22","v":"00:00:00"},{"$f":"Time!GVQ$22","v":"00:00:00"},{"$f":"Time!GVR$22","v":"00:00:00"},{"$f":"Time!GVS$22","v":"00:00:00"},{"$f":"Time!GVT$22","v":"00:00:00"},{"$f":"Time!GVU$22","v":"00:00:00"},{"$f":"Time!GVV$22","v":"00:00:00"},{"$f":"Time!GVW$22","v":"00:00:00"},{"$f":"Time!GVX$22","v":"00:00:00"},{"$f":"Time!GVY$22","v":"00:00:00"},{"$f":"Time!GVZ$22","v":"00:00:00"},{"$f":"Time!GWA$22","v":"00:00:00"},{"$f":"Time!GWB$22","v":"00:00:00"},{"$f":"Time!GWC$22","v":"00:00:00"},{"$f":"Time!GWD$22","v":"00:00:00"},{"$f":"Time!GWE$22","v":"00:00:00"},{"$f":"Time!GWF$22","v":"00:00:00"},{"$f":"Time!GWG$22","v":"00:00:00"},{"$f":"Time!GWH$22","v":"00:00:00"},{"$f":"Time!GWI$22","v":"00:00:00"},{"$f":"Time!GWJ$22","v":"00:00:00"},{"$f":"Time!GWK$22","v":"00:00:00"},{"$f":"Time!GWL$22","v":"00:00:00"},{"$f":"Time!GWM$22","v":"00:00:00"},{"$f":"Time!GWN$22","v":"00:00:00"},{"$f":"Time!GWO$22","v":"00:00:00"},{"$f":"Time!GWP$22","v":"00:00:00"},{"$f":"Time!GWQ$22","v":"00:00:00"},{"$f":"Time!GWR$22","v":"00:00:00"},{"$f":"Time!GWS$22","v":"00:00:00"},{"$f":"Time!GWT$22","v":"00:00:00"},{"$f":"Time!GWU$22","v":"00:00:00"},{"$f":"Time!GWV$22","v":"00:00:00"},{"$f":"Time!GWW$22","v":"00:00:00"},{"$f":"Time!GWX$22","v":"00:00:00"},{"$f":"Time!GWY$22","v":"00:00:00"},{"$f":"Time!GWZ$22","v":"00:00:00"},{"$f":"Time!GXA$22","v":"00:00:00"},{"$f":"Time!GXB$22","v":"00:00:00"},{"$f":"Time!GXC$22","v":"00:00:00"},{"$f":"Time!GXD$22","v":"00:00:00"},{"$f":"Time!GXE$22","v":"00:00:00"},{"$f":"Time!GXF$22","v":"00:00:00"},{"$f":"Time!GXG$22","v":"00:00:00"},{"$f":"Time!GXH$22","v":"00:00:00"},{"$f":"Time!GXI$22","v":"00:00:00"},{"$f":"Time!GXJ$22","v":"00:00:00"},{"$f":"Time!GXK$22","v":"00:00:00"},{"$f":"Time!GXL$22","v":"00:00:00"},{"$f":"Time!GXM$22","v":"00:00:00"},{"$f":"Time!GXN$22","v":"00:00:00"},{"$f":"Time!GXO$22","v":"00:00:00"},{"$f":"Time!GXP$22","v":"00:00:00"},{"$f":"Time!GXQ$22","v":"00:00:00"},{"$f":"Time!GXR$22","v":"00:00:00"},{"$f":"Time!GXS$22","v":"00:00:00"},{"$f":"Time!GXT$22","v":"00:00:00"},{"$f":"Time!GXU$22","v":"00:00:00"},{"$f":"Time!GXV$22","v":"00:00:00"},{"$f":"Time!GXW$22","v":"00:00:00"},{"$f":"Time!GXX$22","v":"00:00:00"},{"$f":"Time!GXY$22","v":"00:00:00"},{"$f":"Time!GXZ$22","v":"00:00:00"},{"$f":"Time!GYA$22","v":"00:00:00"},{"$f":"Time!GYB$22","v":"00:00:00"},{"$f":"Time!GYC$22","v":"00:00:00"},{"$f":"Time!GYD$22","v":"00:00:00"},{"$f":"Time!GYE$22","v":"00:00:00"},{"$f":"Time!GYF$22","v":"00:00:00"},{"$f":"Time!GYG$22","v":"00:00:00"},{"$f":"Time!GYH$22","v":"00:00:00"},{"$f":"Time!GYI$22","v":"00:00:00"},{"$f":"Time!GYJ$22","v":"00:00:00"},{"$f":"Time!GYK$22","v":"00:00:00"},{"$f":"Time!GYL$22","v":"00:00:00"},{"$f":"Time!GYM$22","v":"00:00:00"},{"$f":"Time!GYN$22","v":"00:00:00"},{"$f":"Time!GYO$22","v":"00:00:00"},{"$f":"Time!GYP$22","v":"00:00:00"},{"$f":"Time!GYQ$22","v":"00:00:00"},{"$f":"Time!GYR$22","v":"00:00:00"},{"$f":"Time!GYS$22","v":"00:00:00"},{"$f":"Time!GYT$22","v":"00:00:00"},{"$f":"Time!GYU$22","v":"00:00:00"},{"$f":"Time!GYV$22","v":"00:00:00"},{"$f":"Time!GYW$22","v":"00:00:00"},{"$f":"Time!GYX$22","v":"00:00:00"},{"$f":"Time!GYY$22","v":"00:00:00"},{"$f":"Time!GYZ$22","v":"00:00:00"},{"$f":"Time!GZA$22","v":"00:00:00"},{"$f":"Time!GZB$22","v":"00:00:00"},{"$f":"Time!GZC$22","v":"00:00:00"},{"$f":"Time!GZD$22","v":"00:00:00"},{"$f":"Time!GZE$22","v":"00:00:00"},{"$f":"Time!GZF$22","v":"00:00:00"},{"$f":"Time!GZG$22","v":"00:00:00"},{"$f":"Time!GZH$22","v":"00:00:00"},{"$f":"Time!GZI$22","v":"00:00:00"},{"$f":"Time!GZJ$22","v":"00:00:00"},{"$f":"Time!GZK$22","v":"00:00:00"},{"$f":"Time!GZL$22","v":"00:00:00"},{"$f":"Time!GZM$22","v":"00:00:00"},{"$f":"Time!GZN$22","v":"00:00:00"},{"$f":"Time!GZO$22","v":"00:00:00"},{"$f":"Time!GZP$22","v":"00:00:00"},{"$f":"Time!GZQ$22","v":"00:00:00"},{"$f":"Time!GZR$22","v":"00:00:00"},{"$f":"Time!GZS$22","v":"00:00:00"},{"$f":"Time!GZT$22","v":"00:00:00"},{"$f":"Time!GZU$22","v":"00:00:00"},{"$f":"Time!GZV$22","v":"00:00:00"},{"$f":"Time!GZW$22","v":"00:00:00"},{"$f":"Time!GZX$22","v":"00:00:00"},{"$f":"Time!GZY$22","v":"00:00:00"},{"$f":"Time!GZZ$22","v":"00:00:00"},{"$f":"Time!HAA$22","v":"00:00:00"},{"$f":"Time!HAB$22","v":"00:00:00"},{"$f":"Time!HAC$22","v":"00:00:00"},{"$f":"Time!HAD$22","v":"00:00:00"},{"$f":"Time!HAE$22","v":"00:00:00"},{"$f":"Time!HAF$22","v":"00:00:00"},{"$f":"Time!HAG$22","v":"00:00:00"},{"$f":"Time!HAH$22","v":"00:00:00"},{"$f":"Time!HAI$22","v":"00:00:00"},{"$f":"Time!HAJ$22","v":"00:00:00"},{"$f":"Time!HAK$22","v":"00:00:00"},{"$f":"Time!HAL$22","v":"00:00:00"},{"$f":"Time!HAM$22","v":"00:00:00"},{"$f":"Time!HAN$22","v":"00:00:00"},{"$f":"Time!HAO$22","v":"00:00:00"},{"$f":"Time!HAP$22","v":"00:00:00"},{"$f":"Time!HAQ$22","v":"00:00:00"},{"$f":"Time!HAR$22","v":"00:00:00"},{"$f":"Time!HAS$22","v":"00:00:00"},{"$f":"Time!HAT$22","v":"00:00:00"},{"$f":"Time!HAU$22","v":"00:00:00"},{"$f":"Time!HAV$22","v":"00:00:00"},{"$f":"Time!HAW$22","v":"00:00:00"},{"$f":"Time!HAX$22","v":"00:00:00"},{"$f":"Time!HAY$22","v":"00:00:00"},{"$f":"Time!HAZ$22","v":"00:00:00"},{"$f":"Time!HBA$22","v":"00:00:00"},{"$f":"Time!HBB$22","v":"00:00:00"},{"$f":"Time!HBC$22","v":"00:00:00"},{"$f":"Time!HBD$22","v":"00:00:00"},{"$f":"Time!HBE$22","v":"00:00:00"},{"$f":"Time!HBF$22","v":"00:00:00"},{"$f":"Time!HBG$22","v":"00:00:00"},{"$f":"Time!HBH$22","v":"00:00:00"},{"$f":"Time!HBI$22","v":"00:00:00"},{"$f":"Time!HBJ$22","v":"00:00:00"},{"$f":"Time!HBK$22","v":"00:00:00"},{"$f":"Time!HBL$22","v":"00:00:00"},{"$f":"Time!HBM$22","v":"00:00:00"},{"$f":"Time!HBN$22","v":"00:00:00"},{"$f":"Time!HBO$22","v":"00:00:00"},{"$f":"Time!HBP$22","v":"00:00:00"},{"$f":"Time!HBQ$22","v":"00:00:00"},{"$f":"Time!HBR$22","v":"00:00:00"},{"$f":"Time!HBS$22","v":"00:00:00"},{"$f":"Time!HBT$22","v":"00:00:00"},{"$f":"Time!HBU$22","v":"00:00:00"},{"$f":"Time!HBV$22","v":"00:00:00"},{"$f":"Time!HBW$22","v":"00:00:00"},{"$f":"Time!HBX$22","v":"00:00:00"},{"$f":"Time!HBY$22","v":"00:00:00"},{"$f":"Time!HBZ$22","v":"00:00:00"},{"$f":"Time!HCA$22","v":"00:00:00"},{"$f":"Time!HCB$22","v":"00:00:00"},{"$f":"Time!HCC$22","v":"00:00:00"},{"$f":"Time!HCD$22","v":"00:00:00"},{"$f":"Time!HCE$22","v":"00:00:00"},{"$f":"Time!HCF$22","v":"00:00:00"},{"$f":"Time!HCG$22","v":"00:00:00"},{"$f":"Time!HCH$22","v":"00:00:00"},{"$f":"Time!HCI$22","v":"00:00:00"},{"$f":"Time!HCJ$22","v":"00:00:00"},{"$f":"Time!HCK$22","v":"00:00:00"},{"$f":"Time!HCL$22","v":"00:00:00"},{"$f":"Time!HCM$22","v":"00:00:00"},{"$f":"Time!HCN$22","v":"00:00:00"},{"$f":"Time!HCO$22","v":"00:00:00"},{"$f":"Time!HCP$22","v":"00:00:00"},{"$f":"Time!HCQ$22","v":"00:00:00"},{"$f":"Time!HCR$22","v":"00:00:00"},{"$f":"Time!HCS$22","v":"00:00:00"},{"$f":"Time!HCT$22","v":"00:00:00"},{"$f":"Time!HCU$22","v":"00:00:00"},{"$f":"Time!HCV$22","v":"00:00:00"},{"$f":"Time!HCW$22","v":"00:00:00"},{"$f":"Time!HCX$22","v":"00:00:00"},{"$f":"Time!HCY$22","v":"00:00:00"},{"$f":"Time!HCZ$22","v":"00:00:00"},{"$f":"Time!HDA$22","v":"00:00:00"},{"$f":"Time!HDB$22","v":"00:00:00"},{"$f":"Time!HDC$22","v":"00:00:00"},{"$f":"Time!HDD$22","v":"00:00:00"},{"$f":"Time!HDE$22","v":"00:00:00"},{"$f":"Time!HDF$22","v":"00:00:00"},{"$f":"Time!HDG$22","v":"00:00:00"},{"$f":"Time!HDH$22","v":"00:00:00"},{"$f":"Time!HDI$22","v":"00:00:00"},{"$f":"Time!HDJ$22","v":"00:00:00"},{"$f":"Time!HDK$22","v":"00:00:00"},{"$f":"Time!HDL$22","v":"00:00:00"},{"$f":"Time!HDM$22","v":"00:00:00"},{"$f":"Time!HDN$22","v":"00:00:00"},{"$f":"Time!HDO$22","v":"00:00:00"},{"$f":"Time!HDP$22","v":"00:00:00"},{"$f":"Time!HDQ$22","v":"00:00:00"},{"$f":"Time!HDR$22","v":"00:00:00"},{"$f":"Time!HDS$22","v":"00:00:00"},{"$f":"Time!HDT$22","v":"00:00:00"},{"$f":"Time!HDU$22","v":"00:00:00"},{"$f":"Time!HDV$22","v":"00:00:00"},{"$f":"Time!HDW$22","v":"00:00:00"},{"$f":"Time!HDX$22","v":"00:00:00"},{"$f":"Time!HDY$22","v":"00:00:00"},{"$f":"Time!HDZ$22","v":"00:00:00"},{"$f":"Time!HEA$22","v":"00:00:00"},{"$f":"Time!HEB$22","v":"00:00:00"},{"$f":"Time!HEC$22","v":"00:00:00"},{"$f":"Time!HED$22","v":"00:00:00"},{"$f":"Time!HEE$22","v":"00:00:00"},{"$f":"Time!HEF$22","v":"00:00:00"},{"$f":"Time!HEG$22","v":"00:00:00"},{"$f":"Time!HEH$22","v":"00:00:00"},{"$f":"Time!HEI$22","v":"00:00:00"},{"$f":"Time!HEJ$22","v":"00:00:00"},{"$f":"Time!HEK$22","v":"00:00:00"},{"$f":"Time!HEL$22","v":"00:00:00"},{"$f":"Time!HEM$22","v":"00:00:00"},{"$f":"Time!HEN$22","v":"00:00:00"},{"$f":"Time!HEO$22","v":"00:00:00"},{"$f":"Time!HEP$22","v":"00:00:00"},{"$f":"Time!HEQ$22","v":"00:00:00"},{"$f":"Time!HER$22","v":"00:00:00"},{"$f":"Time!HES$22","v":"00:00:00"},{"$f":"Time!HET$22","v":"00:00:00"},{"$f":"Time!HEU$22","v":"00:00:00"},{"$f":"Time!HEV$22","v":"00:00:00"},{"$f":"Time!HEW$22","v":"00:00:00"},{"$f":"Time!HEX$22","v":"00:00:00"},{"$f":"Time!HEY$22","v":"00:00:00"},{"$f":"Time!HEZ$22","v":"00:00:00"},{"$f":"Time!HFA$22","v":"00:00:00"},{"$f":"Time!HFB$22","v":"00:00:00"},{"$f":"Time!HFC$22","v":"00:00:00"},{"$f":"Time!HFD$22","v":"00:00:00"},{"$f":"Time!HFE$22","v":"00:00:00"},{"$f":"Time!HFF$22","v":"00:00:00"},{"$f":"Time!HFG$22","v":"00:00:00"},{"$f":"Time!HFH$22","v":"00:00:00"},{"$f":"Time!HFI$22","v":"00:00:00"},{"$f":"Time!HFJ$22","v":"00:00:00"},{"$f":"Time!HFK$22","v":"00:00:00"},{"$f":"Time!HFL$22","v":"00:00:00"},{"$f":"Time!HFM$22","v":"00:00:00"},{"$f":"Time!HFN$22","v":"00:00:00"},{"$f":"Time!HFO$22","v":"00:00:00"},{"$f":"Time!HFP$22","v":"00:00:00"},{"$f":"Time!HFQ$22","v":"00:00:00"},{"$f":"Time!HFR$22","v":"00:00:00"},{"$f":"Time!HFS$22","v":"00:00:00"},{"$f":"Time!HFT$22","v":"00:00:00"},{"$f":"Time!HFU$22","v":"00:00:00"},{"$f":"Time!HFV$22","v":"00:00:00"},{"$f":"Time!HFW$22","v":"00:00:00"},{"$f":"Time!HFX$22","v":"00:00:00"},{"$f":"Time!HFY$22","v":"00:00:00"},{"$f":"Time!HFZ$22","v":"00:00:00"},{"$f":"Time!HGA$22","v":"00:00:00"},{"$f":"Time!HGB$22","v":"00:00:00"},{"$f":"Time!HGC$22","v":"00:00:00"},{"$f":"Time!HGD$22","v":"00:00:00"},{"$f":"Time!HGE$22","v":"00:00:00"},{"$f":"Time!HGF$22","v":"00:00:00"},{"$f":"Time!HGG$22","v":"00:00:00"},{"$f":"Time!HGH$22","v":"00:00:00"},{"$f":"Time!HGI$22","v":"00:00:00"},{"$f":"Time!HGJ$22","v":"00:00:00"},{"$f":"Time!HGK$22","v":"00:00:00"},{"$f":"Time!HGL$22","v":"00:00:00"},{"$f":"Time!HGM$22","v":"00:00:00"},{"$f":"Time!HGN$22","v":"00:00:00"},{"$f":"Time!HGO$22","v":"00:00:00"},{"$f":"Time!HGP$22","v":"00:00:00"},{"$f":"Time!HGQ$22","v":"00:00:00"},{"$f":"Time!HGR$22","v":"00:00:00"},{"$f":"Time!HGS$22","v":"00:00:00"},{"$f":"Time!HGT$22","v":"00:00:00"},{"$f":"Time!HGU$22","v":"00:00:00"},{"$f":"Time!HGV$22","v":"00:00:00"},{"$f":"Time!HGW$22","v":"00:00:00"},{"$f":"Time!HGX$22","v":"00:00:00"},{"$f":"Time!HGY$22","v":"00:00:00"},{"$f":"Time!HGZ$22","v":"00:00:00"},{"$f":"Time!HHA$22","v":"00:00:00"},{"$f":"Time!HHB$22","v":"00:00:00"},{"$f":"Time!HHC$22","v":"00:00:00"},{"$f":"Time!HHD$22","v":"00:00:00"},{"$f":"Time!HHE$22","v":"00:00:00"},{"$f":"Time!HHF$22","v":"00:00:00"},{"$f":"Time!HHG$22","v":"00:00:00"},{"$f":"Time!HHH$22","v":"00:00:00"},{"$f":"Time!HHI$22","v":"00:00:00"},{"$f":"Time!HHJ$22","v":"00:00:00"},{"$f":"Time!HHK$22","v":"00:00:00"},{"$f":"Time!HHL$22","v":"00:00:00"},{"$f":"Time!HHM$22","v":"00:00:00"},{"$f":"Time!HHN$22","v":"00:00:00"},{"$f":"Time!HHO$22","v":"00:00:00"},{"$f":"Time!HHP$22","v":"00:00:00"},{"$f":"Time!HHQ$22","v":"00:00:00"},{"$f":"Time!HHR$22","v":"00:00:00"},{"$f":"Time!HHS$22","v":"00:00:00"},{"$f":"Time!HHT$22","v":"00:00:00"},{"$f":"Time!HHU$22","v":"00:00:00"},{"$f":"Time!HHV$22","v":"00:00:00"},{"$f":"Time!HHW$22","v":"00:00:00"},{"$f":"Time!HHX$22","v":"00:00:00"},{"$f":"Time!HHY$22","v":"00:00:00"},{"$f":"Time!HHZ$22","v":"00:00:00"},{"$f":"Time!HIA$22","v":"00:00:00"},{"$f":"Time!HIB$22","v":"00:00:00"},{"$f":"Time!HIC$22","v":"00:00:00"},{"$f":"Time!HID$22","v":"00:00:00"},{"$f":"Time!HIE$22","v":"00:00:00"},{"$f":"Time!HIF$22","v":"00:00:00"},{"$f":"Time!HIG$22","v":"00:00:00"},{"$f":"Time!HIH$22","v":"00:00:00"},{"$f":"Time!HII$22","v":"00:00:00"},{"$f":"Time!HIJ$22","v":"00:00:00"},{"$f":"Time!HIK$22","v":"00:00:00"},{"$f":"Time!HIL$22","v":"00:00:00"},{"$f":"Time!HIM$22","v":"00:00:00"},{"$f":"Time!HIN$22","v":"00:00:00"},{"$f":"Time!HIO$22","v":"00:00:00"},{"$f":"Time!HIP$22","v":"00:00:00"},{"$f":"Time!HIQ$22","v":"00:00:00"},{"$f":"Time!HIR$22","v":"00:00:00"},{"$f":"Time!HIS$22","v":"00:00:00"},{"$f":"Time!HIT$22","v":"00:00:00"},{"$f":"Time!HIU$22","v":"00:00:00"},{"$f":"Time!HIV$22","v":"00:00:00"},{"$f":"Time!HIW$22","v":"00:00:00"},{"$f":"Time!HIX$22","v":"00:00:00"},{"$f":"Time!HIY$22","v":"00:00:00"},{"$f":"Time!HIZ$22","v":"00:00:00"},{"$f":"Time!HJA$22","v":"00:00:00"},{"$f":"Time!HJB$22","v":"00:00:00"},{"$f":"Time!HJC$22","v":"00:00:00"},{"$f":"Time!HJD$22","v":"00:00:00"},{"$f":"Time!HJE$22","v":"00:00:00"},{"$f":"Time!HJF$22","v":"00:00:00"},{"$f":"Time!HJG$22","v":"00:00:00"},{"$f":"Time!HJH$22","v":"00:00:00"},{"$f":"Time!HJI$22","v":"00:00:00"},{"$f":"Time!HJJ$22","v":"00:00:00"},{"$f":"Time!HJK$22","v":"00:00:00"},{"$f":"Time!HJL$22","v":"00:00:00"},{"$f":"Time!HJM$22","v":"00:00:00"},{"$f":"Time!HJN$22","v":"00:00:00"},{"$f":"Time!HJO$22","v":"00:00:00"},{"$f":"Time!HJP$22","v":"00:00:00"},{"$f":"Time!HJQ$22","v":"00:00:00"},{"$f":"Time!HJR$22","v":"00:00:00"},{"$f":"Time!HJS$22","v":"00:00:00"},{"$f":"Time!HJT$22","v":"00:00:00"},{"$f":"Time!HJU$22","v":"00:00:00"},{"$f":"Time!HJV$22","v":"00:00:00"},{"$f":"Time!HJW$22","v":"00:00:00"},{"$f":"Time!HJX$22","v":"00:00:00"},{"$f":"Time!HJY$22","v":"00:00:00"},{"$f":"Time!HJZ$22","v":"00:00:00"},{"$f":"Time!HKA$22","v":"00:00:00"},{"$f":"Time!HKB$22","v":"00:00:00"},{"$f":"Time!HKC$22","v":"00:00:00"},{"$f":"Time!HKD$22","v":"00:00:00"},{"$f":"Time!HKE$22","v":"00:00:00"},{"$f":"Time!HKF$22","v":"00:00:00"},{"$f":"Time!HKG$22","v":"00:00:00"},{"$f":"Time!HKH$22","v":"00:00:00"},{"$f":"Time!HKI$22","v":"00:00:00"},{"$f":"Time!HKJ$22","v":"00:00:00"},{"$f":"Time!HKK$22","v":"00:00:00"},{"$f":"Time!HKL$22","v":"00:00:00"},{"$f":"Time!HKM$22","v":"00:00:00"},{"$f":"Time!HKN$22","v":"00:00:00"},{"$f":"Time!HKO$22","v":"00:00:00"},{"$f":"Time!HKP$22","v":"00:00:00"},{"$f":"Time!HKQ$22","v":"00:00:00"},{"$f":"Time!HKR$22","v":"00:00:00"},{"$f":"Time!HKS$22","v":"00:00:00"},{"$f":"Time!HKT$22","v":"00:00:00"},{"$f":"Time!HKU$22","v":"00:00:00"},{"$f":"Time!HKV$22","v":"00:00:00"},{"$f":"Time!HKW$22","v":"00:00:00"},{"$f":"Time!HKX$22","v":"00:00:00"},{"$f":"Time!HKY$22","v":"00:00:00"},{"$f":"Time!HKZ$22","v":"00:00:00"},{"$f":"Time!HLA$22","v":"00:00:00"},{"$f":"Time!HLB$22","v":"00:00:00"},{"$f":"Time!HLC$22","v":"00:00:00"},{"$f":"Time!HLD$22","v":"00:00:00"},{"$f":"Time!HLE$22","v":"00:00:00"},{"$f":"Time!HLF$22","v":"00:00:00"},{"$f":"Time!HLG$22","v":"00:00:00"},{"$f":"Time!HLH$22","v":"00:00:00"},{"$f":"Time!HLI$22","v":"00:00:00"},{"$f":"Time!HLJ$22","v":"00:00:00"},{"$f":"Time!HLK$22","v":"00:00:00"},{"$f":"Time!HLL$22","v":"00:00:00"},{"$f":"Time!HLM$22","v":"00:00:00"},{"$f":"Time!HLN$22","v":"00:00:00"},{"$f":"Time!HLO$22","v":"00:00:00"},{"$f":"Time!HLP$22","v":"00:00:00"},{"$f":"Time!HLQ$22","v":"00:00:00"},{"$f":"Time!HLR$22","v":"00:00:00"},{"$f":"Time!HLS$22","v":"00:00:00"},{"$f":"Time!HLT$22","v":"00:00:00"},{"$f":"Time!HLU$22","v":"00:00:00"},{"$f":"Time!HLV$22","v":"00:00:00"},{"$f":"Time!HLW$22","v":"00:00:00"},{"$f":"Time!HLX$22","v":"00:00:00"},{"$f":"Time!HLY$22","v":"00:00:00"},{"$f":"Time!HLZ$22","v":"00:00:00"},{"$f":"Time!HMA$22","v":"00:00:00"},{"$f":"Time!HMB$22","v":"00:00:00"},{"$f":"Time!HMC$22","v":"00:00:00"},{"$f":"Time!HMD$22","v":"00:00:00"},{"$f":"Time!HME$22","v":"00:00:00"},{"$f":"Time!HMF$22","v":"00:00:00"},{"$f":"Time!HMG$22","v":"00:00:00"},{"$f":"Time!HMH$22","v":"00:00:00"},{"$f":"Time!HMI$22","v":"00:00:00"},{"$f":"Time!HMJ$22","v":"00:00:00"},{"$f":"Time!HMK$22","v":"00:00:00"},{"$f":"Time!HML$22","v":"00:00:00"},{"$f":"Time!HMM$22","v":"00:00:00"},{"$f":"Time!HMN$22","v":"00:00:00"},{"$f":"Time!HMO$22","v":"00:00:00"},{"$f":"Time!HMP$22","v":"00:00:00"},{"$f":"Time!HMQ$22","v":"00:00:00"},{"$f":"Time!HMR$22","v":"00:00:00"},{"$f":"Time!HMS$22","v":"00:00:00"},{"$f":"Time!HMT$22","v":"00:00:00"},{"$f":"Time!HMU$22","v":"00:00:00"},{"$f":"Time!HMV$22","v":"00:00:00"},{"$f":"Time!HMW$22","v":"00:00:00"},{"$f":"Time!HMX$22","v":"00:00:00"},{"$f":"Time!HMY$22","v":"00:00:00"},{"$f":"Time!HMZ$22","v":"00:00:00"},{"$f":"Time!HNA$22","v":"00:00:00"},{"$f":"Time!HNB$22","v":"00:00:00"},{"$f":"Time!HNC$22","v":"00:00:00"},{"$f":"Time!HND$22","v":"00:00:00"},{"$f":"Time!HNE$22","v":"00:00:00"},{"$f":"Time!HNF$22","v":"00:00:00"},{"$f":"Time!HNG$22","v":"00:00:00"},{"$f":"Time!HNH$22","v":"00:00:00"},{"$f":"Time!HNI$22","v":"00:00:00"},{"$f":"Time!HNJ$22","v":"00:00:00"},{"$f":"Time!HNK$22","v":"00:00:00"},{"$f":"Time!HNL$22","v":"00:00:00"},{"$f":"Time!HNM$22","v":"00:00:00"},{"$f":"Time!HNN$22","v":"00:00:00"},{"$f":"Time!HNO$22","v":"00:00:00"},{"$f":"Time!HNP$22","v":"00:00:00"},{"$f":"Time!HNQ$22","v":"00:00:00"},{"$f":"Time!HNR$22","v":"00:00:00"},{"$f":"Time!HNS$22","v":"00:00:00"},{"$f":"Time!HNT$22","v":"00:00:00"},{"$f":"Time!HNU$22","v":"00:00:00"},{"$f":"Time!HNV$22","v":"00:00:00"},{"$f":"Time!HNW$22","v":"00:00:00"},{"$f":"Time!HNX$22","v":"00:00:00"},{"$f":"Time!HNY$22","v":"00:00:00"},{"$f":"Time!HNZ$22","v":"00:00:00"},{"$f":"Time!HOA$22","v":"00:00:00"},{"$f":"Time!HOB$22","v":"00:00:00"},{"$f":"Time!HOC$22","v":"00:00:00"},{"$f":"Time!HOD$22","v":"00:00:00"},{"$f":"Time!HOE$22","v":"00:00:00"},{"$f":"Time!HOF$22","v":"00:00:00"},{"$f":"Time!HOG$22","v":"00:00:00"},{"$f":"Time!HOH$22","v":"00:00:00"},{"$f":"Time!HOI$22","v":"00:00:00"},{"$f":"Time!HOJ$22","v":"00:00:00"},{"$f":"Time!HOK$22","v":"00:00:00"},{"$f":"Time!HOL$22","v":"00:00:00"},{"$f":"Time!HOM$22","v":"00:00:00"},{"$f":"Time!HON$22","v":"00:00:00"},{"$f":"Time!HOO$22","v":"00:00:00"},{"$f":"Time!HOP$22","v":"00:00:00"},{"$f":"Time!HOQ$22","v":"00:00:00"},{"$f":"Time!HOR$22","v":"00:00:00"},{"$f":"Time!HOS$22","v":"00:00:00"},{"$f":"Time!HOT$22","v":"00:00:00"},{"$f":"Time!HOU$22","v":"00:00:00"},{"$f":"Time!HOV$22","v":"00:00:00"},{"$f":"Time!HOW$22","v":"00:00:00"},{"$f":"Time!HOX$22","v":"00:00:00"},{"$f":"Time!HOY$22","v":"00:00:00"},{"$f":"Time!HOZ$22","v":"00:00:00"},{"$f":"Time!HPA$22","v":"00:00:00"},{"$f":"Time!HPB$22","v":"00:00:00"},{"$f":"Time!HPC$22","v":"00:00:00"},{"$f":"Time!HPD$22","v":"00:00:00"},{"$f":"Time!HPE$22","v":"00:00:00"},{"$f":"Time!HPF$22","v":"00:00:00"},{"$f":"Time!HPG$22","v":"00:00:00"},{"$f":"Time!HPH$22","v":"00:00:00"},{"$f":"Time!HPI$22","v":"00:00:00"},{"$f":"Time!HPJ$22","v":"00:00:00"},{"$f":"Time!HPK$22","v":"00:00:00"},{"$f":"Time!HPL$22","v":"00:00:00"},{"$f":"Time!HPM$22","v":"00:00:00"},{"$f":"Time!HPN$22","v":"00:00:00"},{"$f":"Time!HPO$22","v":"00:00:00"},{"$f":"Time!HPP$22","v":"00:00:00"},{"$f":"Time!HPQ$22","v":"00:00:00"},{"$f":"Time!HPR$22","v":"00:00:00"},{"$f":"Time!HPS$22","v":"00:00:00"},{"$f":"Time!HPT$22","v":"00:00:00"},{"$f":"Time!HPU$22","v":"00:00:00"},{"$f":"Time!HPV$22","v":"00:00:00"},{"$f":"Time!HPW$22","v":"00:00:00"},{"$f":"Time!HPX$22","v":"00:00:00"},{"$f":"Time!HPY$22","v":"00:00:00"},{"$f":"Time!HPZ$22","v":"00:00:00"},{"$f":"Time!HQA$22","v":"00:00:00"},{"$f":"Time!HQB$22","v":"00:00:00"},{"$f":"Time!HQC$22","v":"00:00:00"},{"$f":"Time!HQD$22","v":"00:00:00"},{"$f":"Time!HQE$22","v":"00:00:00"},{"$f":"Time!HQF$22","v":"00:00:00"},{"$f":"Time!HQG$22","v":"00:00:00"},{"$f":"Time!HQH$22","v":"00:00:00"},{"$f":"Time!HQI$22","v":"00:00:00"},{"$f":"Time!HQJ$22","v":"00:00:00"},{"$f":"Time!HQK$22","v":"00:00:00"},{"$f":"Time!HQL$22","v":"00:00:00"},{"$f":"Time!HQM$22","v":"00:00:00"},{"$f":"Time!HQN$22","v":"00:00:00"},{"$f":"Time!HQO$22","v":"00:00:00"},{"$f":"Time!HQP$22","v":"00:00:00"},{"$f":"Time!HQQ$22","v":"00:00:00"},{"$f":"Time!HQR$22","v":"00:00:00"},{"$f":"Time!HQS$22","v":"00:00:00"},{"$f":"Time!HQT$22","v":"00:00:00"},{"$f":"Time!HQU$22","v":"00:00:00"},{"$f":"Time!HQV$22","v":"00:00:00"},{"$f":"Time!HQW$22","v":"00:00:00"},{"$f":"Time!HQX$22","v":"00:00:00"},{"$f":"Time!HQY$22","v":"00:00:00"},{"$f":"Time!HQZ$22","v":"00:00:00"},{"$f":"Time!HRA$22","v":"00:00:00"},{"$f":"Time!HRB$22","v":"00:00:00"},{"$f":"Time!HRC$22","v":"00:00:00"},{"$f":"Time!HRD$22","v":"00:00:00"},{"$f":"Time!HRE$22","v":"00:00:00"},{"$f":"Time!HRF$22","v":"00:00:00"},{"$f":"Time!HRG$22","v":"00:00:00"},{"$f":"Time!HRH$22","v":"00:00:00"},{"$f":"Time!HRI$22","v":"00:00:00"},{"$f":"Time!HRJ$22","v":"00:00:00"},{"$f":"Time!HRK$22","v":"00:00:00"},{"$f":"Time!HRL$22","v":"00:00:00"},{"$f":"Time!HRM$22","v":"00:00:00"},{"$f":"Time!HRN$22","v":"00:00:00"},{"$f":"Time!HRO$22","v":"00:00:00"},{"$f":"Time!HRP$22","v":"00:00:00"},{"$f":"Time!HRQ$22","v":"00:00:00"},{"$f":"Time!HRR$22","v":"00:00:00"},{"$f":"Time!HRS$22","v":"00:00:00"},{"$f":"Time!HRT$22","v":"00:00:00"},{"$f":"Time!HRU$22","v":"00:00:00"},{"$f":"Time!HRV$22","v":"00:00:00"},{"$f":"Time!HRW$22","v":"00:00:00"},{"$f":"Time!HRX$22","v":"00:00:00"},{"$f":"Time!HRY$22","v":"00:00:00"},{"$f":"Time!HRZ$22","v":"00:00:00"},{"$f":"Time!HSA$22","v":"00:00:00"},{"$f":"Time!HSB$22","v":"00:00:00"},{"$f":"Time!HSC$22","v":"00:00:00"},{"$f":"Time!HSD$22","v":"00:00:00"},{"$f":"Time!HSE$22","v":"00:00:00"},{"$f":"Time!HSF$22","v":"00:00:00"},{"$f":"Time!HSG$22","v":"00:00:00"},{"$f":"Time!HSH$22","v":"00:00:00"},{"$f":"Time!HSI$22","v":"00:00:00"},{"$f":"Time!HSJ$22","v":"00:00:00"},{"$f":"Time!HSK$22","v":"00:00:00"},{"$f":"Time!HSL$22","v":"00:00:00"},{"$f":"Time!HSM$22","v":"00:00:00"},{"$f":"Time!HSN$22","v":"00:00:00"},{"$f":"Time!HSO$22","v":"00:00:00"},{"$f":"Time!HSP$22","v":"00:00:00"},{"$f":"Time!HSQ$22","v":"00:00:00"},{"$f":"Time!HSR$22","v":"00:00:00"},{"$f":"Time!HSS$22","v":"00:00:00"},{"$f":"Time!HST$22","v":"00:00:00"},{"$f":"Time!HSU$22","v":"00:00:00"},{"$f":"Time!HSV$22","v":"00:00:00"},{"$f":"Time!HSW$22","v":"00:00:00"},{"$f":"Time!HSX$22","v":"00:00:00"},{"$f":"Time!HSY$22","v":"00:00:00"},{"$f":"Time!HSZ$22","v":"00:00:00"},{"$f":"Time!HTA$22","v":"00:00:00"},{"$f":"Time!HTB$22","v":"00:00:00"},{"$f":"Time!HTC$22","v":"00:00:00"},{"$f":"Time!HTD$22","v":"00:00:00"},{"$f":"Time!HTE$22","v":"00:00:00"},{"$f":"Time!HTF$22","v":"00:00:00"},{"$f":"Time!HTG$22","v":"00:00:00"},{"$f":"Time!HTH$22","v":"00:00:00"},{"$f":"Time!HTI$22","v":"00:00:00"},{"$f":"Time!HTJ$22","v":"00:00:00"},{"$f":"Time!HTK$22","v":"00:00:00"},{"$f":"Time!HTL$22","v":"00:00:00"},{"$f":"Time!HTM$22","v":"00:00:00"},{"$f":"Time!HTN$22","v":"00:00:00"},{"$f":"Time!HTO$22","v":"00:00:00"},{"$f":"Time!HTP$22","v":"00:00:00"},{"$f":"Time!HTQ$22","v":"00:00:00"},{"$f":"Time!HTR$22","v":"00:00:00"},{"$f":"Time!HTS$22","v":"00:00:00"},{"$f":"Time!HTT$22","v":"00:00:00"},{"$f":"Time!HTU$22","v":"00:00:00"},{"$f":"Time!HTV$22","v":"00:00:00"},{"$f":"Time!HTW$22","v":"00:00:00"},{"$f":"Time!HTX$22","v":"00:00:00"},{"$f":"Time!HTY$22","v":"00:00:00"},{"$f":"Time!HTZ$22","v":"00:00:00"},{"$f":"Time!HUA$22","v":"00:00:00"},{"$f":"Time!HUB$22","v":"00:00:00"},{"$f":"Time!HUC$22","v":"00:00:00"},{"$f":"Time!HUD$22","v":"00:00:00"},{"$f":"Time!HUE$22","v":"00:00:00"},{"$f":"Time!HUF$22","v":"00:00:00"},{"$f":"Time!HUG$22","v":"00:00:00"},{"$f":"Time!HUH$22","v":"00:00:00"},{"$f":"Time!HUI$22","v":"00:00:00"},{"$f":"Time!HUJ$22","v":"00:00:00"},{"$f":"Time!HUK$22","v":"00:00:00"},{"$f":"Time!HUL$22","v":"00:00:00"},{"$f":"Time!HUM$22","v":"00:00:00"},{"$f":"Time!HUN$22","v":"00:00:00"},{"$f":"Time!HUO$22","v":"00:00:00"},{"$f":"Time!HUP$22","v":"00:00:00"},{"$f":"Time!HUQ$22","v":"00:00:00"},{"$f":"Time!HUR$22","v":"00:00:00"},{"$f":"Time!HUS$22","v":"00:00:00"},{"$f":"Time!HUT$22","v":"00:00:00"},{"$f":"Time!HUU$22","v":"00:00:00"},{"$f":"Time!HUV$22","v":"00:00:00"},{"$f":"Time!HUW$22","v":"00:00:00"},{"$f":"Time!HUX$22","v":"00:00:00"},{"$f":"Time!HUY$22","v":"00:00:00"},{"$f":"Time!HUZ$22","v":"00:00:00"},{"$f":"Time!HVA$22","v":"00:00:00"},{"$f":"Time!HVB$22","v":"00:00:00"},{"$f":"Time!HVC$22","v":"00:00:00"},{"$f":"Time!HVD$22","v":"00:00:00"},{"$f":"Time!HVE$22","v":"00:00:00"},{"$f":"Time!HVF$22","v":"00:00:00"},{"$f":"Time!HVG$22","v":"00:00:00"},{"$f":"Time!HVH$22","v":"00:00:00"},{"$f":"Time!HVI$22","v":"00:00:00"},{"$f":"Time!HVJ$22","v":"00:00:00"},{"$f":"Time!HVK$22","v":"00:00:00"},{"$f":"Time!HVL$22","v":"00:00:00"},{"$f":"Time!HVM$22","v":"00:00:00"},{"$f":"Time!HVN$22","v":"00:00:00"},{"$f":"Time!HVO$22","v":"00:00:00"},{"$f":"Time!HVP$22","v":"00:00:00"},{"$f":"Time!HVQ$22","v":"00:00:00"},{"$f":"Time!HVR$22","v":"00:00:00"},{"$f":"Time!HVS$22","v":"00:00:00"},{"$f":"Time!HVT$22","v":"00:00:00"},{"$f":"Time!HVU$22","v":"00:00:00"},{"$f":"Time!HVV$22","v":"00:00:00"},{"$f":"Time!HVW$22","v":"00:00:00"},{"$f":"Time!HVX$22","v":"00:00:00"},{"$f":"Time!HVY$22","v":"00:00:00"},{"$f":"Time!HVZ$22","v":"00:00:00"},{"$f":"Time!HWA$22","v":"00:00:00"},{"$f":"Time!HWB$22","v":"00:00:00"},{"$f":"Time!HWC$22","v":"00:00:00"},{"$f":"Time!HWD$22","v":"00:00:00"},{"$f":"Time!HWE$22","v":"00:00:00"},{"$f":"Time!HWF$22","v":"00:00:00"},{"$f":"Time!HWG$22","v":"00:00:00"},{"$f":"Time!HWH$22","v":"00:00:00"},{"$f":"Time!HWI$22","v":"00:00:00"},{"$f":"Time!HWJ$22","v":"00:00:00"},{"$f":"Time!HWK$22","v":"00:00:00"},{"$f":"Time!HWL$22","v":"00:00:00"},{"$f":"Time!HWM$22","v":"00:00:00"},{"$f":"Time!HWN$22","v":"00:00:00"},{"$f":"Time!HWO$22","v":"00:00:00"},{"$f":"Time!HWP$22","v":"00:00:00"},{"$f":"Time!HWQ$22","v":"00:00:00"},{"$f":"Time!HWR$22","v":"00:00:00"},{"$f":"Time!HWS$22","v":"00:00:00"},{"$f":"Time!HWT$22","v":"00:00:00"},{"$f":"Time!HWU$22","v":"00:00:00"},{"$f":"Time!HWV$22","v":"00:00:00"},{"$f":"Time!HWW$22","v":"00:00:00"},{"$f":"Time!HWX$22","v":"00:00:00"},{"$f":"Time!HWY$22","v":"00:00:00"},{"$f":"Time!HWZ$22","v":"00:00:00"},{"$f":"Time!HXA$22","v":"00:00:00"},{"$f":"Time!HXB$22","v":"00:00:00"},{"$f":"Time!HXC$22","v":"00:00:00"},{"$f":"Time!HXD$22","v":"00:00:00"},{"$f":"Time!HXE$22","v":"00:00:00"},{"$f":"Time!HXF$22","v":"00:00:00"},{"$f":"Time!HXG$22","v":"00:00:00"},{"$f":"Time!HXH$22","v":"00:00:00"},{"$f":"Time!HXI$22","v":"00:00:00"},{"$f":"Time!HXJ$22","v":"00:00:00"},{"$f":"Time!HXK$22","v":"00:00:00"},{"$f":"Time!HXL$22","v":"00:00:00"},{"$f":"Time!HXM$22","v":"00:00:00"},{"$f":"Time!HXN$22","v":"00:00:00"},{"$f":"Time!HXO$22","v":"00:00:00"},{"$f":"Time!HXP$22","v":"00:00:00"},{"$f":"Time!HXQ$22","v":"00:00:00"},{"$f":"Time!HXR$22","v":"00:00:00"},{"$f":"Time!HXS$22","v":"00:00:00"},{"$f":"Time!HXT$22","v":"00:00:00"},{"$f":"Time!HXU$22","v":"00:00:00"},{"$f":"Time!HXV$22","v":"00:00:00"},{"$f":"Time!HXW$22","v":"00:00:00"},{"$f":"Time!HXX$22","v":"00:00:00"},{"$f":"Time!HXY$22","v":"00:00:00"},{"$f":"Time!HXZ$22","v":"00:00:00"},{"$f":"Time!HYA$22","v":"00:00:00"},{"$f":"Time!HYB$22","v":"00:00:00"},{"$f":"Time!HYC$22","v":"00:00:00"},{"$f":"Time!HYD$22","v":"00:00:00"},{"$f":"Time!HYE$22","v":"00:00:00"},{"$f":"Time!HYF$22","v":"00:00:00"},{"$f":"Time!HYG$22","v":"00:00:00"},{"$f":"Time!HYH$22","v":"00:00:00"},{"$f":"Time!HYI$22","v":"00:00:00"},{"$f":"Time!HYJ$22","v":"00:00:00"},{"$f":"Time!HYK$22","v":"00:00:00"},{"$f":"Time!HYL$22","v":"00:00:00"},{"$f":"Time!HYM$22","v":"00:00:00"},{"$f":"Time!HYN$22","v":"00:00:00"},{"$f":"Time!HYO$22","v":"00:00:00"},{"$f":"Time!HYP$22","v":"00:00:00"},{"$f":"Time!HYQ$22","v":"00:00:00"},{"$f":"Time!HYR$22","v":"00:00:00"},{"$f":"Time!HYS$22","v":"00:00:00"},{"$f":"Time!HYT$22","v":"00:00:00"},{"$f":"Time!HYU$22","v":"00:00:00"},{"$f":"Time!HYV$22","v":"00:00:00"},{"$f":"Time!HYW$22","v":"00:00:00"},{"$f":"Time!HYX$22","v":"00:00:00"},{"$f":"Time!HYY$22","v":"00:00:00"},{"$f":"Time!HYZ$22","v":"00:00:00"},{"$f":"Time!HZA$22","v":"00:00:00"},{"$f":"Time!HZB$22","v":"00:00:00"},{"$f":"Time!HZC$22","v":"00:00:00"},{"$f":"Time!HZD$22","v":"00:00:00"},{"$f":"Time!HZE$22","v":"00:00:00"},{"$f":"Time!HZF$22","v":"00:00:00"},{"$f":"Time!HZG$22","v":"00:00:00"},{"$f":"Time!HZH$22","v":"00:00:00"},{"$f":"Time!HZI$22","v":"00:00:00"},{"$f":"Time!HZJ$22","v":"00:00:00"},{"$f":"Time!HZK$22","v":"00:00:00"},{"$f":"Time!HZL$22","v":"00:00:00"},{"$f":"Time!HZM$22","v":"00:00:00"},{"$f":"Time!HZN$22","v":"00:00:00"},{"$f":"Time!HZO$22","v":"00:00:00"},{"$f":"Time!HZP$22","v":"00:00:00"},{"$f":"Time!HZQ$22","v":"00:00:00"},{"$f":"Time!HZR$22","v":"00:00:00"},{"$f":"Time!HZS$22","v":"00:00:00"},{"$f":"Time!HZT$22","v":"00:00:00"},{"$f":"Time!HZU$22","v":"00:00:00"},{"$f":"Time!HZV$22","v":"00:00:00"},{"$f":"Time!HZW$22","v":"00:00:00"},{"$f":"Time!HZX$22","v":"00:00:00"},{"$f":"Time!HZY$22","v":"00:00:00"},{"$f":"Time!HZZ$22","v":"00:00:00"},{"$f":"Time!IAA$22","v":"00:00:00"},{"$f":"Time!IAB$22","v":"00:00:00"},{"$f":"Time!IAC$22","v":"00:00:00"},{"$f":"Time!IAD$22","v":"00:00:00"},{"$f":"Time!IAE$22","v":"00:00:00"},{"$f":"Time!IAF$22","v":"00:00:00"},{"$f":"Time!IAG$22","v":"00:00:00"},{"$f":"Time!IAH$22","v":"00:00:00"},{"$f":"Time!IAI$22","v":"00:00:00"},{"$f":"Time!IAJ$22","v":"00:00:00"},{"$f":"Time!IAK$22","v":"00:00:00"},{"$f":"Time!IAL$22","v":"00:00:00"},{"$f":"Time!IAM$22","v":"00:00:00"},{"$f":"Time!IAN$22","v":"00:00:00"},{"$f":"Time!IAO$22","v":"00:00:00"},{"$f":"Time!IAP$22","v":"00:00:00"},{"$f":"Time!IAQ$22","v":"00:00:00"},{"$f":"Time!IAR$22","v":"00:00:00"},{"$f":"Time!IAS$22","v":"00:00:00"},{"$f":"Time!IAT$22","v":"00:00:00"},{"$f":"Time!IAU$22","v":"00:00:00"},{"$f":"Time!IAV$22","v":"00:00:00"},{"$f":"Time!IAW$22","v":"00:00:00"},{"$f":"Time!IAX$22","v":"00:00:00"},{"$f":"Time!IAY$22","v":"00:00:00"},{"$f":"Time!IAZ$22","v":"00:00:00"},{"$f":"Time!IBA$22","v":"00:00:00"},{"$f":"Time!IBB$22","v":"00:00:00"},{"$f":"Time!IBC$22","v":"00:00:00"},{"$f":"Time!IBD$22","v":"00:00:00"},{"$f":"Time!IBE$22","v":"00:00:00"},{"$f":"Time!IBF$22","v":"00:00:00"},{"$f":"Time!IBG$22","v":"00:00:00"},{"$f":"Time!IBH$22","v":"00:00:00"},{"$f":"Time!IBI$22","v":"00:00:00"},{"$f":"Time!IBJ$22","v":"00:00:00"},{"$f":"Time!IBK$22","v":"00:00:00"},{"$f":"Time!IBL$22","v":"00:00:00"},{"$f":"Time!IBM$22","v":"00:00:00"},{"$f":"Time!IBN$22","v":"00:00:00"},{"$f":"Time!IBO$22","v":"00:00:00"},{"$f":"Time!IBP$22","v":"00:00:00"},{"$f":"Time!IBQ$22","v":"00:00:00"},{"$f":"Time!IBR$22","v":"00:00:00"},{"$f":"Time!IBS$22","v":"00:00:00"},{"$f":"Time!IBT$22","v":"00:00:00"},{"$f":"Time!IBU$22","v":"00:00:00"},{"$f":"Time!IBV$22","v":"00:00:00"},{"$f":"Time!IBW$22","v":"00:00:00"},{"$f":"Time!IBX$22","v":"00:00:00"},{"$f":"Time!IBY$22","v":"00:00:00"},{"$f":"Time!IBZ$22","v":"00:00:00"},{"$f":"Time!ICA$22","v":"00:00:00"},{"$f":"Time!ICB$22","v":"00:00:00"},{"$f":"Time!ICC$22","v":"00:00:00"},{"$f":"Time!ICD$22","v":"00:00:00"},{"$f":"Time!ICE$22","v":"00:00:00"},{"$f":"Time!ICF$22","v":"00:00:00"},{"$f":"Time!ICG$22","v":"00:00:00"},{"$f":"Time!ICH$22","v":"00:00:00"},{"$f":"Time!ICI$22","v":"00:00:00"},{"$f":"Time!ICJ$22","v":"00:00:00"},{"$f":"Time!ICK$22","v":"00:00:00"},{"$f":"Time!ICL$22","v":"00:00:00"},{"$f":"Time!ICM$22","v":"00:00:00"},{"$f":"Time!ICN$22","v":"00:00:00"},{"$f":"Time!ICO$22","v":"00:00:00"},{"$f":"Time!ICP$22","v":"00:00:00"},{"$f":"Time!ICQ$22","v":"00:00:00"},{"$f":"Time!ICR$22","v":"00:00:00"},{"$f":"Time!ICS$22","v":"00:00:00"},{"$f":"Time!ICT$22","v":"00:00:00"},{"$f":"Time!ICU$22","v":"00:00:00"},{"$f":"Time!ICV$22","v":"00:00:00"},{"$f":"Time!ICW$22","v":"00:00:00"},{"$f":"Time!ICX$22","v":"00:00:00"},{"$f":"Time!ICY$22","v":"00:00:00"},{"$f":"Time!ICZ$22","v":"00:00:00"},{"$f":"Time!IDA$22","v":"00:00:00"},{"$f":"Time!IDB$22","v":"00:00:00"},{"$f":"Time!IDC$22","v":"00:00:00"},{"$f":"Time!IDD$22","v":"00:00:00"},{"$f":"Time!IDE$22","v":"00:00:00"},{"$f":"Time!IDF$22","v":"00:00:00"},{"$f":"Time!IDG$22","v":"00:00:00"},{"$f":"Time!IDH$22","v":"00:00:00"},{"$f":"Time!IDI$22","v":"00:00:00"},{"$f":"Time!IDJ$22","v":"00:00:00"},{"$f":"Time!IDK$22","v":"00:00:00"},{"$f":"Time!IDL$22","v":"00:00:00"},{"$f":"Time!IDM$22","v":"00:00:00"},{"$f":"Time!IDN$22","v":"00:00:00"},{"$f":"Time!IDO$22","v":"00:00:00"},{"$f":"Time!IDP$22","v":"00:00:00"},{"$f":"Time!IDQ$22","v":"00:00:00"},{"$f":"Time!IDR$22","v":"00:00:00"},{"$f":"Time!IDS$22","v":"00:00:00"},{"$f":"Time!IDT$22","v":"00:00:00"},{"$f":"Time!IDU$22","v":"00:00:00"},{"$f":"Time!IDV$22","v":"00:00:00"},{"$f":"Time!IDW$22","v":"00:00:00"},{"$f":"Time!IDX$22","v":"00:00:00"},{"$f":"Time!IDY$22","v":"00:00:00"},{"$f":"Time!IDZ$22","v":"00:00:00"},{"$f":"Time!IEA$22","v":"00:00:00"},{"$f":"Time!IEB$22","v":"00:00:00"},{"$f":"Time!IEC$22","v":"00:00:00"},{"$f":"Time!IED$22","v":"00:00:00"},{"$f":"Time!IEE$22","v":"00:00:00"},{"$f":"Time!IEF$22","v":"00:00:00"},{"$f":"Time!IEG$22","v":"00:00:00"},{"$f":"Time!IEH$22","v":"00:00:00"},{"$f":"Time!IEI$22","v":"00:00:00"},{"$f":"Time!IEJ$22","v":"00:00:00"},{"$f":"Time!IEK$22","v":"00:00:00"},{"$f":"Time!IEL$22","v":"00:00:00"},{"$f":"Time!IEM$22","v":"00:00:00"},{"$f":"Time!IEN$22","v":"00:00:00"},{"$f":"Time!IEO$22","v":"00:00:00"},{"$f":"Time!IEP$22","v":"00:00:00"},{"$f":"Time!IEQ$22","v":"00:00:00"},{"$f":"Time!IER$22","v":"00:00:00"},{"$f":"Time!IES$22","v":"00:00:00"},{"$f":"Time!IET$22","v":"00:00:00"},{"$f":"Time!IEU$22","v":"00:00:00"},{"$f":"Time!IEV$22","v":"00:00:00"},{"$f":"Time!IEW$22","v":"00:00:00"},{"$f":"Time!IEX$22","v":"00:00:00"},{"$f":"Time!IEY$22","v":"00:00:00"},{"$f":"Time!IEZ$22","v":"00:00:00"},{"$f":"Time!IFA$22","v":"00:00:00"},{"$f":"Time!IFB$22","v":"00:00:00"},{"$f":"Time!IFC$22","v":"00:00:00"},{"$f":"Time!IFD$22","v":"00:00:00"},{"$f":"Time!IFE$22","v":"00:00:00"},{"$f":"Time!IFF$22","v":"00:00:00"},{"$f":"Time!IFG$22","v":"00:00:00"},{"$f":"Time!IFH$22","v":"00:00:00"},{"$f":"Time!IFI$22","v":"00:00:00"},{"$f":"Time!IFJ$22","v":"00:00:00"},{"$f":"Time!IFK$22","v":"00:00:00"},{"$f":"Time!IFL$22","v":"00:00:00"},{"$f":"Time!IFM$22","v":"00:00:00"},{"$f":"Time!IFN$22","v":"00:00:00"},{"$f":"Time!IFO$22","v":"00:00:00"},{"$f":"Time!IFP$22","v":"00:00:00"},{"$f":"Time!IFQ$22","v":"00:00:00"},{"$f":"Time!IFR$22","v":"00:00:00"},{"$f":"Time!IFS$22","v":"00:00:00"},{"$f":"Time!IFT$22","v":"00:00:00"},{"$f":"Time!IFU$22","v":"00:00:00"},{"$f":"Time!IFV$22","v":"00:00:00"},{"$f":"Time!IFW$22","v":"00:00:00"},{"$f":"Time!IFX$22","v":"00:00:00"},{"$f":"Time!IFY$22","v":"00:00:00"},{"$f":"Time!IFZ$22","v":"00:00:00"},{"$f":"Time!IGA$22","v":"00:00:00"},{"$f":"Time!IGB$22","v":"00:00:00"},{"$f":"Time!IGC$22","v":"00:00:00"},{"$f":"Time!IGD$22","v":"00:00:00"},{"$f":"Time!IGE$22","v":"00:00:00"},{"$f":"Time!IGF$22","v":"00:00:00"},{"$f":"Time!IGG$22","v":"00:00:00"},{"$f":"Time!IGH$22","v":"00:00:00"},{"$f":"Time!IGI$22","v":"00:00:00"},{"$f":"Time!IGJ$22","v":"00:00:00"},{"$f":"Time!IGK$22","v":"00:00:00"},{"$f":"Time!IGL$22","v":"00:00:00"},{"$f":"Time!IGM$22","v":"00:00:00"},{"$f":"Time!IGN$22","v":"00:00:00"},{"$f":"Time!IGO$22","v":"00:00:00"},{"$f":"Time!IGP$22","v":"00:00:00"},{"$f":"Time!IGQ$22","v":"00:00:00"},{"$f":"Time!IGR$22","v":"00:00:00"},{"$f":"Time!IGS$22","v":"00:00:00"},{"$f":"Time!IGT$22","v":"00:00:00"},{"$f":"Time!IGU$22","v":"00:00:00"},{"$f":"Time!IGV$22","v":"00:00:00"},{"$f":"Time!IGW$22","v":"00:00:00"},{"$f":"Time!IGX$22","v":"00:00:00"},{"$f":"Time!IGY$22","v":"00:00:00"},{"$f":"Time!IGZ$22","v":"00:00:00"},{"$f":"Time!IHA$22","v":"00:00:00"},{"$f":"Time!IHB$22","v":"00:00:00"},{"$f":"Time!IHC$22","v":"00:00:00"},{"$f":"Time!IHD$22","v":"00:00:00"},{"$f":"Time!IHE$22","v":"00:00:00"},{"$f":"Time!IHF$22","v":"00:00:00"},{"$f":"Time!IHG$22","v":"00:00:00"},{"$f":"Time!IHH$22","v":"00:00:00"},{"$f":"Time!IHI$22","v":"00:00:00"},{"$f":"Time!IHJ$22","v":"00:00:00"},{"$f":"Time!IHK$22","v":"00:00:00"},{"$f":"Time!IHL$22","v":"00:00:00"},{"$f":"Time!IHM$22","v":"00:00:00"},{"$f":"Time!IHN$22","v":"00:00:00"},{"$f":"Time!IHO$22","v":"00:00:00"},{"$f":"Time!IHP$22","v":"00:00:00"},{"$f":"Time!IHQ$22","v":"00:00:00"},{"$f":"Time!IHR$22","v":"00:00:00"},{"$f":"Time!IHS$22","v":"00:00:00"},{"$f":"Time!IHT$22","v":"00:00:00"},{"$f":"Time!IHU$22","v":"00:00:00"},{"$f":"Time!IHV$22","v":"00:00:00"},{"$f":"Time!IHW$22","v":"00:00:00"},{"$f":"Time!IHX$22","v":"00:00:00"},{"$f":"Time!IHY$22","v":"00:00:00"},{"$f":"Time!IHZ$22","v":"00:00:00"},{"$f":"Time!IIA$22","v":"00:00:00"},{"$f":"Time!IIB$22","v":"00:00:00"},{"$f":"Time!IIC$22","v":"00:00:00"},{"$f":"Time!IID$22","v":"00:00:00"},{"$f":"Time!IIE$22","v":"00:00:00"},{"$f":"Time!IIF$22","v":"00:00:00"},{"$f":"Time!IIG$22","v":"00:00:00"},{"$f":"Time!IIH$22","v":"00:00:00"},{"$f":"Time!III$22","v":"00:00:00"},{"$f":"Time!IIJ$22","v":"00:00:00"},{"$f":"Time!IIK$22","v":"00:00:00"},{"$f":"Time!IIL$22","v":"00:00:00"},{"$f":"Time!IIM$22","v":"00:00:00"},{"$f":"Time!IIN$22","v":"00:00:00"},{"$f":"Time!IIO$22","v":"00:00:00"},{"$f":"Time!IIP$22","v":"00:00:00"},{"$f":"Time!IIQ$22","v":"00:00:00"},{"$f":"Time!IIR$22","v":"00:00:00"},{"$f":"Time!IIS$22","v":"00:00:00"},{"$f":"Time!IIT$22","v":"00:00:00"},{"$f":"Time!IIU$22","v":"00:00:00"},{"$f":"Time!IIV$22","v":"00:00:00"},{"$f":"Time!IIW$22","v":"00:00:00"},{"$f":"Time!IIX$22","v":"00:00:00"},{"$f":"Time!IIY$22","v":"00:00:00"},{"$f":"Time!IIZ$22","v":"00:00:00"},{"$f":"Time!IJA$22","v":"00:00:00"},{"$f":"Time!IJB$22","v":"00:00:00"},{"$f":"Time!IJC$22","v":"00:00:00"},{"$f":"Time!IJD$22","v":"00:00:00"},{"$f":"Time!IJE$22","v":"00:00:00"},{"$f":"Time!IJF$22","v":"00:00:00"},{"$f":"Time!IJG$22","v":"00:00:00"},{"$f":"Time!IJH$22","v":"00:00:00"},{"$f":"Time!IJI$22","v":"00:00:00"},{"$f":"Time!IJJ$22","v":"00:00:00"},{"$f":"Time!IJK$22","v":"00:00:00"},{"$f":"Time!IJL$22","v":"00:00:00"},{"$f":"Time!IJM$22","v":"00:00:00"},{"$f":"Time!IJN$22","v":"00:00:00"},{"$f":"Time!IJO$22","v":"00:00:00"},{"$f":"Time!IJP$22","v":"00:00:00"},{"$f":"Time!IJQ$22","v":"00:00:00"},{"$f":"Time!IJR$22","v":"00:00:00"},{"$f":"Time!IJS$22","v":"00:00:00"},{"$f":"Time!IJT$22","v":"00:00:00"},{"$f":"Time!IJU$22","v":"00:00:00"},{"$f":"Time!IJV$22","v":"00:00:00"},{"$f":"Time!IJW$22","v":"00:00:00"},{"$f":"Time!IJX$22","v":"00:00:00"},{"$f":"Time!IJY$22","v":"00:00:00"},{"$f":"Time!IJZ$22","v":"00:00:00"},{"$f":"Time!IKA$22","v":"00:00:00"},{"$f":"Time!IKB$22","v":"00:00:00"},{"$f":"Time!IKC$22","v":"00:00:00"},{"$f":"Time!IKD$22","v":"00:00:00"},{"$f":"Time!IKE$22","v":"00:00:00"},{"$f":"Time!IKF$22","v":"00:00:00"},{"$f":"Time!IKG$22","v":"00:00:00"},{"$f":"Time!IKH$22","v":"00:00:00"},{"$f":"Time!IKI$22","v":"00:00:00"},{"$f":"Time!IKJ$22","v":"00:00:00"},{"$f":"Time!IKK$22","v":"00:00:00"},{"$f":"Time!IKL$22","v":"00:00:00"},{"$f":"Time!IKM$22","v":"00:00:00"},{"$f":"Time!IKN$22","v":"00:00:00"},{"$f":"Time!IKO$22","v":"00:00:00"},{"$f":"Time!IKP$22","v":"00:00:00"},{"$f":"Time!IKQ$22","v":"00:00:00"},{"$f":"Time!IKR$22","v":"00:00:00"},{"$f":"Time!IKS$22","v":"00:00:00"},{"$f":"Time!IKT$22","v":"00:00:00"},{"$f":"Time!IKU$22","v":"00:00:00"},{"$f":"Time!IKV$22","v":"00:00:00"},{"$f":"Time!IKW$22","v":"00:00:00"},{"$f":"Time!IKX$22","v":"00:00:00"},{"$f":"Time!IKY$22","v":"00:00:00"},{"$f":"Time!IKZ$22","v":"00:00:00"},{"$f":"Time!ILA$22","v":"00:00:00"},{"$f":"Time!ILB$22","v":"00:00:00"},{"$f":"Time!ILC$22","v":"00:00:00"},{"$f":"Time!ILD$22","v":"00:00:00"},{"$f":"Time!ILE$22","v":"00:00:00"},{"$f":"Time!ILF$22","v":"00:00:00"},{"$f":"Time!ILG$22","v":"00:00:00"},{"$f":"Time!ILH$22","v":"00:00:00"},{"$f":"Time!ILI$22","v":"00:00:00"},{"$f":"Time!ILJ$22","v":"00:00:00"},{"$f":"Time!ILK$22","v":"00:00:00"},{"$f":"Time!ILL$22","v":"00:00:00"},{"$f":"Time!ILM$22","v":"00:00:00"},{"$f":"Time!ILN$22","v":"00:00:00"},{"$f":"Time!ILO$22","v":"00:00:00"},{"$f":"Time!ILP$22","v":"00:00:00"},{"$f":"Time!ILQ$22","v":"00:00:00"},{"$f":"Time!ILR$22","v":"00:00:00"},{"$f":"Time!ILS$22","v":"00:00:00"},{"$f":"Time!ILT$22","v":"00:00:00"},{"$f":"Time!ILU$22","v":"00:00:00"},{"$f":"Time!ILV$22","v":"00:00:00"},{"$f":"Time!ILW$22","v":"00:00:00"},{"$f":"Time!ILX$22","v":"00:00:00"},{"$f":"Time!ILY$22","v":"00:00:00"},{"$f":"Time!ILZ$22","v":"00:00:00"},{"$f":"Time!IMA$22","v":"00:00:00"},{"$f":"Time!IMB$22","v":"00:00:00"},{"$f":"Time!IMC$22","v":"00:00:00"},{"$f":"Time!IMD$22","v":"00:00:00"},{"$f":"Time!IME$22","v":"00:00:00"},{"$f":"Time!IMF$22","v":"00:00:00"},{"$f":"Time!IMG$22","v":"00:00:00"},{"$f":"Time!IMH$22","v":"00:00:00"},{"$f":"Time!IMI$22","v":"00:00:00"},{"$f":"Time!IMJ$22","v":"00:00:00"},{"$f":"Time!IMK$22","v":"00:00:00"},{"$f":"Time!IML$22","v":"00:00:00"},{"$f":"Time!IMM$22","v":"00:00:00"},{"$f":"Time!IMN$22","v":"00:00:00"},{"$f":"Time!IMO$22","v":"00:00:00"},{"$f":"Time!IMP$22","v":"00:00:00"},{"$f":"Time!IMQ$22","v":"00:00:00"},{"$f":"Time!IMR$22","v":"00:00:00"},{"$f":"Time!IMS$22","v":"00:00:00"},{"$f":"Time!IMT$22","v":"00:00:00"},{"$f":"Time!IMU$22","v":"00:00:00"},{"$f":"Time!IMV$22","v":"00:00:00"},{"$f":"Time!IMW$22","v":"00:00:00"},{"$f":"Time!IMX$22","v":"00:00:00"},{"$f":"Time!IMY$22","v":"00:00:00"},{"$f":"Time!IMZ$22","v":"00:00:00"},{"$f":"Time!INA$22","v":"00:00:00"},{"$f":"Time!INB$22","v":"00:00:00"},{"$f":"Time!INC$22","v":"00:00:00"},{"$f":"Time!IND$22","v":"00:00:00"},{"$f":"Time!INE$22","v":"00:00:00"},{"$f":"Time!INF$22","v":"00:00:00"},{"$f":"Time!ING$22","v":"00:00:00"},{"$f":"Time!INH$22","v":"00:00:00"},{"$f":"Time!INI$22","v":"00:00:00"},{"$f":"Time!INJ$22","v":"00:00:00"},{"$f":"Time!INK$22","v":"00:00:00"},{"$f":"Time!INL$22","v":"00:00:00"},{"$f":"Time!INM$22","v":"00:00:00"},{"$f":"Time!INN$22","v":"00:00:00"},{"$f":"Time!INO$22","v":"00:00:00"},{"$f":"Time!INP$22","v":"00:00:00"},{"$f":"Time!INQ$22","v":"00:00:00"},{"$f":"Time!INR$22","v":"00:00:00"},{"$f":"Time!INS$22","v":"00:00:00"},{"$f":"Time!INT$22","v":"00:00:00"},{"$f":"Time!INU$22","v":"00:00:00"},{"$f":"Time!INV$22","v":"00:00:00"},{"$f":"Time!INW$22","v":"00:00:00"},{"$f":"Time!INX$22","v":"00:00:00"},{"$f":"Time!INY$22","v":"00:00:00"},{"$f":"Time!INZ$22","v":"00:00:00"},{"$f":"Time!IOA$22","v":"00:00:00"},{"$f":"Time!IOB$22","v":"00:00:00"},{"$f":"Time!IOC$22","v":"00:00:00"},{"$f":"Time!IOD$22","v":"00:00:00"},{"$f":"Time!IOE$22","v":"00:00:00"},{"$f":"Time!IOF$22","v":"00:00:00"},{"$f":"Time!IOG$22","v":"00:00:00"},{"$f":"Time!IOH$22","v":"00:00:00"},{"$f":"Time!IOI$22","v":"00:00:00"},{"$f":"Time!IOJ$22","v":"00:00:00"},{"$f":"Time!IOK$22","v":"00:00:00"},{"$f":"Time!IOL$22","v":"00:00:00"},{"$f":"Time!IOM$22","v":"00:00:00"},{"$f":"Time!ION$22","v":"00:00:00"},{"$f":"Time!IOO$22","v":"00:00:00"},{"$f":"Time!IOP$22","v":"00:00:00"},{"$f":"Time!IOQ$22","v":"00:00:00"},{"$f":"Time!IOR$22","v":"00:00:00"},{"$f":"Time!IOS$22","v":"00:00:00"},{"$f":"Time!IOT$22","v":"00:00:00"},{"$f":"Time!IOU$22","v":"00:00:00"},{"$f":"Time!IOV$22","v":"00:00:00"},{"$f":"Time!IOW$22","v":"00:00:00"},{"$f":"Time!IOX$22","v":"00:00:00"},{"$f":"Time!IOY$22","v":"00:00:00"},{"$f":"Time!IOZ$22","v":"00:00:00"},{"$f":"Time!IPA$22","v":"00:00:00"},{"$f":"Time!IPB$22","v":"00:00:00"},{"$f":"Time!IPC$22","v":"00:00:00"},{"$f":"Time!IPD$22","v":"00:00:00"},{"$f":"Time!IPE$22","v":"00:00:00"},{"$f":"Time!IPF$22","v":"00:00:00"},{"$f":"Time!IPG$22","v":"00:00:00"},{"$f":"Time!IPH$22","v":"00:00:00"},{"$f":"Time!IPI$22","v":"00:00:00"},{"$f":"Time!IPJ$22","v":"00:00:00"},{"$f":"Time!IPK$22","v":"00:00:00"},{"$f":"Time!IPL$22","v":"00:00:00"},{"$f":"Time!IPM$22","v":"00:00:00"},{"$f":"Time!IPN$22","v":"00:00:00"},{"$f":"Time!IPO$22","v":"00:00:00"},{"$f":"Time!IPP$22","v":"00:00:00"},{"$f":"Time!IPQ$22","v":"00:00:00"},{"$f":"Time!IPR$22","v":"00:00:00"},{"$f":"Time!IPS$22","v":"00:00:00"},{"$f":"Time!IPT$22","v":"00:00:00"},{"$f":"Time!IPU$22","v":"00:00:00"},{"$f":"Time!IPV$22","v":"00:00:00"},{"$f":"Time!IPW$22","v":"00:00:00"},{"$f":"Time!IPX$22","v":"00:00:00"},{"$f":"Time!IPY$22","v":"00:00:00"},{"$f":"Time!IPZ$22","v":"00:00:00"},{"$f":"Time!IQA$22","v":"00:00:00"},{"$f":"Time!IQB$22","v":"00:00:00"},{"$f":"Time!IQC$22","v":"00:00:00"},{"$f":"Time!IQD$22","v":"00:00:00"},{"$f":"Time!IQE$22","v":"00:00:00"},{"$f":"Time!IQF$22","v":"00:00:00"},{"$f":"Time!IQG$22","v":"00:00:00"},{"$f":"Time!IQH$22","v":"00:00:00"},{"$f":"Time!IQI$22","v":"00:00:00"},{"$f":"Time!IQJ$22","v":"00:00:00"},{"$f":"Time!IQK$22","v":"00:00:00"},{"$f":"Time!IQL$22","v":"00:00:00"},{"$f":"Time!IQM$22","v":"00:00:00"},{"$f":"Time!IQN$22","v":"00:00:00"},{"$f":"Time!IQO$22","v":"00:00:00"},{"$f":"Time!IQP$22","v":"00:00:00"},{"$f":"Time!IQQ$22","v":"00:00:00"},{"$f":"Time!IQR$22","v":"00:00:00"},{"$f":"Time!IQS$22","v":"00:00:00"},{"$f":"Time!IQT$22","v":"00:00:00"},{"$f":"Time!IQU$22","v":"00:00:00"},{"$f":"Time!IQV$22","v":"00:00:00"},{"$f":"Time!IQW$22","v":"00:00:00"},{"$f":"Time!IQX$22","v":"00:00:00"},{"$f":"Time!IQY$22","v":"00:00:00"},{"$f":"Time!IQZ$22","v":"00:00:00"},{"$f":"Time!IRA$22","v":"00:00:00"},{"$f":"Time!IRB$22","v":"00:00:00"},{"$f":"Time!IRC$22","v":"00:00:00"},{"$f":"Time!IRD$22","v":"00:00:00"},{"$f":"Time!IRE$22","v":"00:00:00"},{"$f":"Time!IRF$22","v":"00:00:00"},{"$f":"Time!IRG$22","v":"00:00:00"},{"$f":"Time!IRH$22","v":"00:00:00"},{"$f":"Time!IRI$22","v":"00:00:00"},{"$f":"Time!IRJ$22","v":"00:00:00"},{"$f":"Time!IRK$22","v":"00:00:00"},{"$f":"Time!IRL$22","v":"00:00:00"},{"$f":"Time!IRM$22","v":"00:00:00"},{"$f":"Time!IRN$22","v":"00:00:00"},{"$f":"Time!IRO$22","v":"00:00:00"},{"$f":"Time!IRP$22","v":"00:00:00"},{"$f":"Time!IRQ$22","v":"00:00:00"},{"$f":"Time!IRR$22","v":"00:00:00"},{"$f":"Time!IRS$22","v":"00:00:00"},{"$f":"Time!IRT$22","v":"00:00:00"},{"$f":"Time!IRU$22","v":"00:00:00"},{"$f":"Time!IRV$22","v":"00:00:00"},{"$f":"Time!IRW$22","v":"00:00:00"},{"$f":"Time!IRX$22","v":"00:00:00"},{"$f":"Time!IRY$22","v":"00:00:00"},{"$f":"Time!IRZ$22","v":"00:00:00"},{"$f":"Time!ISA$22","v":"00:00:00"},{"$f":"Time!ISB$22","v":"00:00:00"},{"$f":"Time!ISC$22","v":"00:00:00"},{"$f":"Time!ISD$22","v":"00:00:00"},{"$f":"Time!ISE$22","v":"00:00:00"},{"$f":"Time!ISF$22","v":"00:00:00"},{"$f":"Time!ISG$22","v":"00:00:00"},{"$f":"Time!ISH$22","v":"00:00:00"},{"$f":"Time!ISI$22","v":"00:00:00"},{"$f":"Time!ISJ$22","v":"00:00:00"},{"$f":"Time!ISK$22","v":"00:00:00"},{"$f":"Time!ISL$22","v":"00:00:00"},{"$f":"Time!ISM$22","v":"00:00:00"},{"$f":"Time!ISN$22","v":"00:00:00"},{"$f":"Time!ISO$22","v":"00:00:00"},{"$f":"Time!ISP$22","v":"00:00:00"},{"$f":"Time!ISQ$22","v":"00:00:00"},{"$f":"Time!ISR$22","v":"00:00:00"},{"$f":"Time!ISS$22","v":"00:00:00"},{"$f":"Time!IST$22","v":"00:00:00"},{"$f":"Time!ISU$22","v":"00:00:00"},{"$f":"Time!ISV$22","v":"00:00:00"},{"$f":"Time!ISW$22","v":"00:00:00"},{"$f":"Time!ISX$22","v":"00:00:00"},{"$f":"Time!ISY$22","v":"00:00:00"},{"$f":"Time!ISZ$22","v":"00:00:00"},{"$f":"Time!ITA$22","v":"00:00:00"},{"$f":"Time!ITB$22","v":"00:00:00"},{"$f":"Time!ITC$22","v":"00:00:00"},{"$f":"Time!ITD$22","v":"00:00:00"},{"$f":"Time!ITE$22","v":"00:00:00"},{"$f":"Time!ITF$22","v":"00:00:00"},{"$f":"Time!ITG$22","v":"00:00:00"},{"$f":"Time!ITH$22","v":"00:00:00"},{"$f":"Time!ITI$22","v":"00:00:00"},{"$f":"Time!ITJ$22","v":"00:00:00"},{"$f":"Time!ITK$22","v":"00:00:00"},{"$f":"Time!ITL$22","v":"00:00:00"},{"$f":"Time!ITM$22","v":"00:00:00"},{"$f":"Time!ITN$22","v":"00:00:00"},{"$f":"Time!ITO$22","v":"00:00:00"},{"$f":"Time!ITP$22","v":"00:00:00"},{"$f":"Time!ITQ$22","v":"00:00:00"},{"$f":"Time!ITR$22","v":"00:00:00"},{"$f":"Time!ITS$22","v":"00:00:00"},{"$f":"Time!ITT$22","v":"00:00:00"},{"$f":"Time!ITU$22","v":"00:00:00"},{"$f":"Time!ITV$22","v":"00:00:00"},{"$f":"Time!ITW$22","v":"00:00:00"},{"$f":"Time!ITX$22","v":"00:00:00"},{"$f":"Time!ITY$22","v":"00:00:00"},{"$f":"Time!ITZ$22","v":"00:00:00"},{"$f":"Time!IUA$22","v":"00:00:00"},{"$f":"Time!IUB$22","v":"00:00:00"},{"$f":"Time!IUC$22","v":"00:00:00"},{"$f":"Time!IUD$22","v":"00:00:00"},{"$f":"Time!IUE$22","v":"00:00:00"},{"$f":"Time!IUF$22","v":"00:00:00"},{"$f":"Time!IUG$22","v":"00:00:00"},{"$f":"Time!IUH$22","v":"00:00:00"},{"$f":"Time!IUI$22","v":"00:00:00"},{"$f":"Time!IUJ$22","v":"00:00:00"},{"$f":"Time!IUK$22","v":"00:00:00"},{"$f":"Time!IUL$22","v":"00:00:00"},{"$f":"Time!IUM$22","v":"00:00:00"},{"$f":"Time!IUN$22","v":"00:00:00"},{"$f":"Time!IUO$22","v":"00:00:00"},{"$f":"Time!IUP$22","v":"00:00:00"},{"$f":"Time!IUQ$22","v":"00:00:00"},{"$f":"Time!IUR$22","v":"00:00:00"},{"$f":"Time!IUS$22","v":"00:00:00"},{"$f":"Time!IUT$22","v":"00:00:00"},{"$f":"Time!IUU$22","v":"00:00:00"},{"$f":"Time!IUV$22","v":"00:00:00"},{"$f":"Time!IUW$22","v":"00:00:00"},{"$f":"Time!IUX$22","v":"00:00:00"},{"$f":"Time!IUY$22","v":"00:00:00"},{"$f":"Time!IUZ$22","v":"00:00:00"},{"$f":"Time!IVA$22","v":"00:00:00"},{"$f":"Time!IVB$22","v":"00:00:00"},{"$f":"Time!IVC$22","v":"00:00:00"},{"$f":"Time!IVD$22","v":"00:00:00"},{"$f":"Time!IVE$22","v":"00:00:00"},{"$f":"Time!IVF$22","v":"00:00:00"},{"$f":"Time!IVG$22","v":"00:00:00"},{"$f":"Time!IVH$22","v":"00:00:00"},{"$f":"Time!IVI$22","v":"00:00:00"},{"$f":"Time!IVJ$22","v":"00:00:00"},{"$f":"Time!IVK$22","v":"00:00:00"},{"$f":"Time!IVL$22","v":"00:00:00"},{"$f":"Time!IVM$22","v":"00:00:00"},{"$f":"Time!IVN$22","v":"00:00:00"},{"$f":"Time!IVO$22","v":"00:00:00"},{"$f":"Time!IVP$22","v":"00:00:00"},{"$f":"Time!IVQ$22","v":"00:00:00"},{"$f":"Time!IVR$22","v":"00:00:00"},{"$f":"Time!IVS$22","v":"00:00:00"},{"$f":"Time!IVT$22","v":"00:00:00"},{"$f":"Time!IVU$22","v":"00:00:00"},{"$f":"Time!IVV$22","v":"00:00:00"},{"$f":"Time!IVW$22","v":"00:00:00"},{"$f":"Time!IVX$22","v":"00:00:00"},{"$f":"Time!IVY$22","v":"00:00:00"},{"$f":"Time!IVZ$22","v":"00:00:00"},{"$f":"Time!IWA$22","v":"00:00:00"},{"$f":"Time!IWB$22","v":"00:00:00"},{"$f":"Time!IWC$22","v":"00:00:00"},{"$f":"Time!IWD$22","v":"00:00:00"},{"$f":"Time!IWE$22","v":"00:00:00"},{"$f":"Time!IWF$22","v":"00:00:00"},{"$f":"Time!IWG$22","v":"00:00:00"},{"$f":"Time!IWH$22","v":"00:00:00"},{"$f":"Time!IWI$22","v":"00:00:00"},{"$f":"Time!IWJ$22","v":"00:00:00"},{"$f":"Time!IWK$22","v":"00:00:00"},{"$f":"Time!IWL$22","v":"00:00:00"},{"$f":"Time!IWM$22","v":"00:00:00"},{"$f":"Time!IWN$22","v":"00:00:00"},{"$f":"Time!IWO$22","v":"00:00:00"},{"$f":"Time!IWP$22","v":"00:00:00"},{"$f":"Time!IWQ$22","v":"00:00:00"},{"$f":"Time!IWR$22","v":"00:00:00"},{"$f":"Time!IWS$22","v":"00:00:00"},{"$f":"Time!IWT$22","v":"00:00:00"},{"$f":"Time!IWU$22","v":"00:00:00"},{"$f":"Time!IWV$22","v":"00:00:00"},{"$f":"Time!IWW$22","v":"00:00:00"},{"$f":"Time!IWX$22","v":"00:00:00"},{"$f":"Time!IWY$22","v":"00:00:00"},{"$f":"Time!IWZ$22","v":"00:00:00"},{"$f":"Time!IXA$22","v":"00:00:00"},{"$f":"Time!IXB$22","v":"00:00:00"},{"$f":"Time!IXC$22","v":"00:00:00"},{"$f":"Time!IXD$22","v":"00:00:00"},{"$f":"Time!IXE$22","v":"00:00:00"},{"$f":"Time!IXF$22","v":"00:00:00"},{"$f":"Time!IXG$22","v":"00:00:00"},{"$f":"Time!IXH$22","v":"00:00:00"},{"$f":"Time!IXI$22","v":"00:00:00"},{"$f":"Time!IXJ$22","v":"00:00:00"},{"$f":"Time!IXK$22","v":"00:00:00"},{"$f":"Time!IXL$22","v":"00:00:00"},{"$f":"Time!IXM$22","v":"00:00:00"},{"$f":"Time!IXN$22","v":"00:00:00"},{"$f":"Time!IXO$22","v":"00:00:00"},{"$f":"Time!IXP$22","v":"00:00:00"},{"$f":"Time!IXQ$22","v":"00:00:00"},{"$f":"Time!IXR$22","v":"00:00:00"},{"$f":"Time!IXS$22","v":"00:00:00"},{"$f":"Time!IXT$22","v":"00:00:00"},{"$f":"Time!IXU$22","v":"00:00:00"},{"$f":"Time!IXV$22","v":"00:00:00"},{"$f":"Time!IXW$22","v":"00:00:00"},{"$f":"Time!IXX$22","v":"00:00:00"},{"$f":"Time!IXY$22","v":"00:00:00"},{"$f":"Time!IXZ$22","v":"00:00:00"},{"$f":"Time!IYA$22","v":"00:00:00"},{"$f":"Time!IYB$22","v":"00:00:00"},{"$f":"Time!IYC$22","v":"00:00:00"},{"$f":"Time!IYD$22","v":"00:00:00"},{"$f":"Time!IYE$22","v":"00:00:00"},{"$f":"Time!IYF$22","v":"00:00:00"},{"$f":"Time!IYG$22","v":"00:00:00"},{"$f":"Time!IYH$22","v":"00:00:00"},{"$f":"Time!IYI$22","v":"00:00:00"},{"$f":"Time!IYJ$22","v":"00:00:00"},{"$f":"Time!IYK$22","v":"00:00:00"},{"$f":"Time!IYL$22","v":"00:00:00"},{"$f":"Time!IYM$22","v":"00:00:00"},{"$f":"Time!IYN$22","v":"00:00:00"},{"$f":"Time!IYO$22","v":"00:00:00"},{"$f":"Time!IYP$22","v":"00:00:00"},{"$f":"Time!IYQ$22","v":"00:00:00"},{"$f":"Time!IYR$22","v":"00:00:00"},{"$f":"Time!IYS$22","v":"00:00:00"},{"$f":"Time!IYT$22","v":"00:00:00"},{"$f":"Time!IYU$22","v":"00:00:00"},{"$f":"Time!IYV$22","v":"00:00:00"},{"$f":"Time!IYW$22","v":"00:00:00"},{"$f":"Time!IYX$22","v":"00:00:00"},{"$f":"Time!IYY$22","v":"00:00:00"},{"$f":"Time!IYZ$22","v":"00:00:00"},{"$f":"Time!IZA$22","v":"00:00:00"},{"$f":"Time!IZB$22","v":"00:00:00"},{"$f":"Time!IZC$22","v":"00:00:00"},{"$f":"Time!IZD$22","v":"00:00:00"},{"$f":"Time!IZE$22","v":"00:00:00"},{"$f":"Time!IZF$22","v":"00:00:00"},{"$f":"Time!IZG$22","v":"00:00:00"},{"$f":"Time!IZH$22","v":"00:00:00"},{"$f":"Time!IZI$22","v":"00:00:00"},{"$f":"Time!IZJ$22","v":"00:00:00"},{"$f":"Time!IZK$22","v":"00:00:00"},{"$f":"Time!IZL$22","v":"00:00:00"},{"$f":"Time!IZM$22","v":"00:00:00"},{"$f":"Time!IZN$22","v":"00:00:00"},{"$f":"Time!IZO$22","v":"00:00:00"},{"$f":"Time!IZP$22","v":"00:00:00"},{"$f":"Time!IZQ$22","v":"00:00:00"},{"$f":"Time!IZR$22","v":"00:00:00"},{"$f":"Time!IZS$22","v":"00:00:00"},{"$f":"Time!IZT$22","v":"00:00:00"},{"$f":"Time!IZU$22","v":"00:00:00"},{"$f":"Time!IZV$22","v":"00:00:00"},{"$f":"Time!IZW$22","v":"00:00:00"},{"$f":"Time!IZX$22","v":"00:00:00"},{"$f":"Time!IZY$22","v":"00:00:00"},{"$f":"Time!IZZ$22","v":"00:00:00"},{"$f":"Time!JAA$22","v":"00:00:00"},{"$f":"Time!JAB$22","v":"00:00:00"},{"$f":"Time!JAC$22","v":"00:00:00"},{"$f":"Time!JAD$22","v":"00:00:00"},{"$f":"Time!JAE$22","v":"00:00:00"},{"$f":"Time!JAF$22","v":"00:00:00"},{"$f":"Time!JAG$22","v":"00:00:00"},{"$f":"Time!JAH$22","v":"00:00:00"},{"$f":"Time!JAI$22","v":"00:00:00"},{"$f":"Time!JAJ$22","v":"00:00:00"},{"$f":"Time!JAK$22","v":"00:00:00"},{"$f":"Time!JAL$22","v":"00:00:00"},{"$f":"Time!JAM$22","v":"00:00:00"},{"$f":"Time!JAN$22","v":"00:00:00"},{"$f":"Time!JAO$22","v":"00:00:00"},{"$f":"Time!JAP$22","v":"00:00:00"},{"$f":"Time!JAQ$22","v":"00:00:00"},{"$f":"Time!JAR$22","v":"00:00:00"},{"$f":"Time!JAS$22","v":"00:00:00"},{"$f":"Time!JAT$22","v":"00:00:00"},{"$f":"Time!JAU$22","v":"00:00:00"},{"$f":"Time!JAV$22","v":"00:00:00"},{"$f":"Time!JAW$22","v":"00:00:00"},{"$f":"Time!JAX$22","v":"00:00:00"},{"$f":"Time!JAY$22","v":"00:00:00"},{"$f":"Time!JAZ$22","v":"00:00:00"},{"$f":"Time!JBA$22","v":"00:00:00"},{"$f":"Time!JBB$22","v":"00:00:00"},{"$f":"Time!JBC$22","v":"00:00:00"},{"$f":"Time!JBD$22","v":"00:00:00"},{"$f":"Time!JBE$22","v":"00:00:00"},{"$f":"Time!JBF$22","v":"00:00:00"},{"$f":"Time!JBG$22","v":"00:00:00"},{"$f":"Time!JBH$22","v":"00:00:00"},{"$f":"Time!JBI$22","v":"00:00:00"},{"$f":"Time!JBJ$22","v":"00:00:00"},{"$f":"Time!JBK$22","v":"00:00:00"},{"$f":"Time!JBL$22","v":"00:00:00"},{"$f":"Time!JBM$22","v":"00:00:00"},{"$f":"Time!JBN$22","v":"00:00:00"},{"$f":"Time!JBO$22","v":"00:00:00"},{"$f":"Time!JBP$22","v":"00:00:00"},{"$f":"Time!JBQ$22","v":"00:00:00"},{"$f":"Time!JBR$22","v":"00:00:00"},{"$f":"Time!JBS$22","v":"00:00:00"},{"$f":"Time!JBT$22","v":"00:00:00"},{"$f":"Time!JBU$22","v":"00:00:00"},{"$f":"Time!JBV$22","v":"00:00:00"},{"$f":"Time!JBW$22","v":"00:00:00"},{"$f":"Time!JBX$22","v":"00:00:00"},{"$f":"Time!JBY$22","v":"00:00:00"},{"$f":"Time!JBZ$22","v":"00:00:00"},{"$f":"Time!JCA$22","v":"00:00:00"},{"$f":"Time!JCB$22","v":"00:00:00"},{"$f":"Time!JCC$22","v":"00:00:00"},{"$f":"Time!JCD$22","v":"00:00:00"},{"$f":"Time!JCE$22","v":"00:00:00"},{"$f":"Time!JCF$22","v":"00:00:00"},{"$f":"Time!JCG$22","v":"00:00:00"},{"$f":"Time!JCH$22","v":"00:00:00"},{"$f":"Time!JCI$22","v":"00:00:00"},{"$f":"Time!JCJ$22","v":"00:00:00"},{"$f":"Time!JCK$22","v":"00:00:00"},{"$f":"Time!JCL$22","v":"00:00:00"},{"$f":"Time!JCM$22","v":"00:00:00"},{"$f":"Time!JCN$22","v":"00:00:00"},{"$f":"Time!JCO$22","v":"00:00:00"},{"$f":"Time!JCP$22","v":"00:00:00"},{"$f":"Time!JCQ$22","v":"00:00:00"},{"$f":"Time!JCR$22","v":"00:00:00"},{"$f":"Time!JCS$22","v":"00:00:00"},{"$f":"Time!JCT$22","v":"00:00:00"},{"$f":"Time!JCU$22","v":"00:00:00"},{"$f":"Time!JCV$22","v":"00:00:00"},{"$f":"Time!JCW$22","v":"00:00:00"},{"$f":"Time!JCX$22","v":"00:00:00"},{"$f":"Time!JCY$22","v":"00:00:00"},{"$f":"Time!JCZ$22","v":"00:00:00"},{"$f":"Time!JDA$22","v":"00:00:00"},{"$f":"Time!JDB$22","v":"00:00:00"},{"$f":"Time!JDC$22","v":"00:00:00"},{"$f":"Time!JDD$22","v":"00:00:00"},{"$f":"Time!JDE$22","v":"00:00:00"},{"$f":"Time!JDF$22","v":"00:00:00"},{"$f":"Time!JDG$22","v":"00:00:00"},{"$f":"Time!JDH$22","v":"00:00:00"},{"$f":"Time!JDI$22","v":"00:00:00"},{"$f":"Time!JDJ$22","v":"00:00:00"},{"$f":"Time!JDK$22","v":"00:00:00"},{"$f":"Time!JDL$22","v":"00:00:00"},{"$f":"Time!JDM$22","v":"00:00:00"},{"$f":"Time!JDN$22","v":"00:00:00"},{"$f":"Time!JDO$22","v":"00:00:00"},{"$f":"Time!JDP$22","v":"00:00:00"},{"$f":"Time!JDQ$22","v":"00:00:00"},{"$f":"Time!JDR$22","v":"00:00:00"},{"$f":"Time!JDS$22","v":"00:00:00"},{"$f":"Time!JDT$22","v":"00:00:00"},{"$f":"Time!JDU$22","v":"00:00:00"},{"$f":"Time!JDV$22","v":"00:00:00"},{"$f":"Time!JDW$22","v":"00:00:00"},{"$f":"Time!JDX$22","v":"00:00:00"},{"$f":"Time!JDY$22","v":"00:00:00"},{"$f":"Time!JDZ$22","v":"00:00:00"},{"$f":"Time!JEA$22","v":"00:00:00"},{"$f":"Time!JEB$22","v":"00:00:00"},{"$f":"Time!JEC$22","v":"00:00:00"},{"$f":"Time!JED$22","v":"00:00:00"},{"$f":"Time!JEE$22","v":"00:00:00"},{"$f":"Time!JEF$22","v":"00:00:00"},{"$f":"Time!JEG$22","v":"00:00:00"},{"$f":"Time!JEH$22","v":"00:00:00"},{"$f":"Time!JEI$22","v":"00:00:00"},{"$f":"Time!JEJ$22","v":"00:00:00"},{"$f":"Time!JEK$22","v":"00:00:00"},{"$f":"Time!JEL$22","v":"00:00:00"},{"$f":"Time!JEM$22","v":"00:00:00"},{"$f":"Time!JEN$22","v":"00:00:00"},{"$f":"Time!JEO$22","v":"00:00:00"},{"$f":"Time!JEP$22","v":"00:00:00"},{"$f":"Time!JEQ$22","v":"00:00:00"},{"$f":"Time!JER$22","v":"00:00:00"},{"$f":"Time!JES$22","v":"00:00:00"},{"$f":"Time!JET$22","v":"00:00:00"},{"$f":"Time!JEU$22","v":"00:00:00"},{"$f":"Time!JEV$22","v":"00:00:00"},{"$f":"Time!JEW$22","v":"00:00:00"},{"$f":"Time!JEX$22","v":"00:00:00"},{"$f":"Time!JEY$22","v":"00:00:00"},{"$f":"Time!JEZ$22","v":"00:00:00"},{"$f":"Time!JFA$22","v":"00:00:00"},{"$f":"Time!JFB$22","v":"00:00:00"},{"$f":"Time!JFC$22","v":"00:00:00"},{"$f":"Time!JFD$22","v":"00:00:00"},{"$f":"Time!JFE$22","v":"00:00:00"},{"$f":"Time!JFF$22","v":"00:00:00"},{"$f":"Time!JFG$22","v":"00:00:00"},{"$f":"Time!JFH$22","v":"00:00:00"},{"$f":"Time!JFI$22","v":"00:00:00"},{"$f":"Time!JFJ$22","v":"00:00:00"},{"$f":"Time!JFK$22","v":"00:00:00"},{"$f":"Time!JFL$22","v":"00:00:00"},{"$f":"Time!JFM$22","v":"00:00:00"},{"$f":"Time!JFN$22","v":"00:00:00"},{"$f":"Time!JFO$22","v":"00:00:00"},{"$f":"Time!JFP$22","v":"00:00:00"},{"$f":"Time!JFQ$22","v":"00:00:00"},{"$f":"Time!JFR$22","v":"00:00:00"},{"$f":"Time!JFS$22","v":"00:00:00"},{"$f":"Time!JFT$22","v":"00:00:00"},{"$f":"Time!JFU$22","v":"00:00:00"},{"$f":"Time!JFV$22","v":"00:00:00"},{"$f":"Time!JFW$22","v":"00:00:00"},{"$f":"Time!JFX$22","v":"00:00:00"},{"$f":"Time!JFY$22","v":"00:00:00"},{"$f":"Time!JFZ$22","v":"00:00:00"},{"$f":"Time!JGA$22","v":"00:00:00"},{"$f":"Time!JGB$22","v":"00:00:00"},{"$f":"Time!JGC$22","v":"00:00:00"},{"$f":"Time!JGD$22","v":"00:00:00"},{"$f":"Time!JGE$22","v":"00:00:00"},{"$f":"Time!JGF$22","v":"00:00:00"},{"$f":"Time!JGG$22","v":"00:00:00"},{"$f":"Time!JGH$22","v":"00:00:00"},{"$f":"Time!JGI$22","v":"00:00:00"},{"$f":"Time!JGJ$22","v":"00:00:00"},{"$f":"Time!JGK$22","v":"00:00:00"},{"$f":"Time!JGL$22","v":"00:00:00"},{"$f":"Time!JGM$22","v":"00:00:00"},{"$f":"Time!JGN$22","v":"00:00:00"},{"$f":"Time!JGO$22","v":"00:00:00"},{"$f":"Time!JGP$22","v":"00:00:00"},{"$f":"Time!JGQ$22","v":"00:00:00"},{"$f":"Time!JGR$22","v":"00:00:00"},{"$f":"Time!JGS$22","v":"00:00:00"},{"$f":"Time!JGT$22","v":"00:00:00"},{"$f":"Time!JGU$22","v":"00:00:00"},{"$f":"Time!JGV$22","v":"00:00:00"},{"$f":"Time!JGW$22","v":"00:00:00"},{"$f":"Time!JGX$22","v":"00:00:00"},{"$f":"Time!JGY$22","v":"00:00:00"},{"$f":"Time!JGZ$22","v":"00:00:00"},{"$f":"Time!JHA$22","v":"00:00:00"},{"$f":"Time!JHB$22","v":"00:00:00"},{"$f":"Time!JHC$22","v":"00:00:00"},{"$f":"Time!JHD$22","v":"00:00:00"},{"$f":"Time!JHE$22","v":"00:00:00"},{"$f":"Time!JHF$22","v":"00:00:00"},{"$f":"Time!JHG$22","v":"00:00:00"},{"$f":"Time!JHH$22","v":"00:00:00"},{"$f":"Time!JHI$22","v":"00:00:00"},{"$f":"Time!JHJ$22","v":"00:00:00"},{"$f":"Time!JHK$22","v":"00:00:00"},{"$f":"Time!JHL$22","v":"00:00:00"},{"$f":"Time!JHM$22","v":"00:00:00"},{"$f":"Time!JHN$22","v":"00:00:00"},{"$f":"Time!JHO$22","v":"00:00:00"},{"$f":"Time!JHP$22","v":"00:00:00"},{"$f":"Time!JHQ$22","v":"00:00:00"},{"$f":"Time!JHR$22","v":"00:00:00"},{"$f":"Time!JHS$22","v":"00:00:00"},{"$f":"Time!JHT$22","v":"00:00:00"},{"$f":"Time!JHU$22","v":"00:00:00"},{"$f":"Time!JHV$22","v":"00:00:00"},{"$f":"Time!JHW$22","v":"00:00:00"},{"$f":"Time!JHX$22","v":"00:00:00"},{"$f":"Time!JHY$22","v":"00:00:00"},{"$f":"Time!JHZ$22","v":"00:00:00"},{"$f":"Time!JIA$22","v":"00:00:00"},{"$f":"Time!JIB$22","v":"00:00:00"},{"$f":"Time!JIC$22","v":"00:00:00"},{"$f":"Time!JID$22","v":"00:00:00"},{"$f":"Time!JIE$22","v":"00:00:00"},{"$f":"Time!JIF$22","v":"00:00:00"},{"$f":"Time!JIG$22","v":"00:00:00"},{"$f":"Time!JIH$22","v":"00:00:00"},{"$f":"Time!JII$22","v":"00:00:00"},{"$f":"Time!JIJ$22","v":"00:00:00"},{"$f":"Time!JIK$22","v":"00:00:00"},{"$f":"Time!JIL$22","v":"00:00:00"},{"$f":"Time!JIM$22","v":"00:00:00"},{"$f":"Time!JIN$22","v":"00:00:00"},{"$f":"Time!JIO$22","v":"00:00:00"},{"$f":"Time!JIP$22","v":"00:00:00"},{"$f":"Time!JIQ$22","v":"00:00:00"},{"$f":"Time!JIR$22","v":"00:00:00"},{"$f":"Time!JIS$22","v":"00:00:00"},{"$f":"Time!JIT$22","v":"00:00:00"},{"$f":"Time!JIU$22","v":"00:00:00"},{"$f":"Time!JIV$22","v":"00:00:00"},{"$f":"Time!JIW$22","v":"00:00:00"},{"$f":"Time!JIX$22","v":"00:00:00"},{"$f":"Time!JIY$22","v":"00:00:00"},{"$f":"Time!JIZ$22","v":"00:00:00"},{"$f":"Time!JJA$22","v":"00:00:00"},{"$f":"Time!JJB$22","v":"00:00:00"},{"$f":"Time!JJC$22","v":"00:00:00"},{"$f":"Time!JJD$22","v":"00:00:00"},{"$f":"Time!JJE$22","v":"00:00:00"},{"$f":"Time!JJF$22","v":"00:00:00"},{"$f":"Time!JJG$22","v":"00:00:00"},{"$f":"Time!JJH$22","v":"00:00:00"},{"$f":"Time!JJI$22","v":"00:00:00"},{"$f":"Time!JJJ$22","v":"00:00:00"},{"$f":"Time!JJK$22","v":"00:00:00"},{"$f":"Time!JJL$22","v":"00:00:00"},{"$f":"Time!JJM$22","v":"00:00:00"},{"$f":"Time!JJN$22","v":"00:00:00"},{"$f":"Time!JJO$22","v":"00:00:00"},{"$f":"Time!JJP$22","v":"00:00:00"},{"$f":"Time!JJQ$22","v":"00:00:00"},{"$f":"Time!JJR$22","v":"00:00:00"},{"$f":"Time!JJS$22","v":"00:00:00"},{"$f":"Time!JJT$22","v":"00:00:00"},{"$f":"Time!JJU$22","v":"00:00:00"},{"$f":"Time!JJV$22","v":"00:00:00"},{"$f":"Time!JJW$22","v":"00:00:00"},{"$f":"Time!JJX$22","v":"00:00:00"},{"$f":"Time!JJY$22","v":"00:00:00"},{"$f":"Time!JJZ$22","v":"00:00:00"},{"$f":"Time!JKA$22","v":"00:00:00"},{"$f":"Time!JKB$22","v":"00:00:00"},{"$f":"Time!JKC$22","v":"00:00:00"},{"$f":"Time!JKD$22","v":"00:00:00"},{"$f":"Time!JKE$22","v":"00:00:00"},{"$f":"Time!JKF$22","v":"00:00:00"},{"$f":"Time!JKG$22","v":"00:00:00"},{"$f":"Time!JKH$22","v":"00:00:00"},{"$f":"Time!JKI$22","v":"00:00:00"},{"$f":"Time!JKJ$22","v":"00:00:00"},{"$f":"Time!JKK$22","v":"00:00:00"},{"$f":"Time!JKL$22","v":"00:00:00"},{"$f":"Time!JKM$22","v":"00:00:00"},{"$f":"Time!JKN$22","v":"00:00:00"},{"$f":"Time!JKO$22","v":"00:00:00"},{"$f":"Time!JKP$22","v":"00:00:00"},{"$f":"Time!JKQ$22","v":"00:00:00"},{"$f":"Time!JKR$22","v":"00:00:00"},{"$f":"Time!JKS$22","v":"00:00:00"},{"$f":"Time!JKT$22","v":"00:00:00"},{"$f":"Time!JKU$22","v":"00:00:00"},{"$f":"Time!JKV$22","v":"00:00:00"},{"$f":"Time!JKW$22","v":"00:00:00"},{"$f":"Time!JKX$22","v":"00:00:00"},{"$f":"Time!JKY$22","v":"00:00:00"},{"$f":"Time!JKZ$22","v":"00:00:00"},{"$f":"Time!JLA$22","v":"00:00:00"},{"$f":"Time!JLB$22","v":"00:00:00"},{"$f":"Time!JLC$22","v":"00:00:00"},{"$f":"Time!JLD$22","v":"00:00:00"},{"$f":"Time!JLE$22","v":"00:00:00"},{"$f":"Time!JLF$22","v":"00:00:00"},{"$f":"Time!JLG$22","v":"00:00:00"},{"$f":"Time!JLH$22","v":"00:00:00"},{"$f":"Time!JLI$22","v":"00:00:00"},{"$f":"Time!JLJ$22","v":"00:00:00"},{"$f":"Time!JLK$22","v":"00:00:00"},{"$f":"Time!JLL$22","v":"00:00:00"},{"$f":"Time!JLM$22","v":"00:00:00"},{"$f":"Time!JLN$22","v":"00:00:00"},{"$f":"Time!JLO$22","v":"00:00:00"},{"$f":"Time!JLP$22","v":"00:00:00"},{"$f":"Time!JLQ$22","v":"00:00:00"},{"$f":"Time!JLR$22","v":"00:00:00"},{"$f":"Time!JLS$22","v":"00:00:00"},{"$f":"Time!JLT$22","v":"00:00:00"},{"$f":"Time!JLU$22","v":"00:00:00"},{"$f":"Time!JLV$22","v":"00:00:00"},{"$f":"Time!JLW$22","v":"00:00:00"},{"$f":"Time!JLX$22","v":"00:00:00"},{"$f":"Time!JLY$22","v":"00:00:00"},{"$f":"Time!JLZ$22","v":"00:00:00"},{"$f":"Time!JMA$22","v":"00:00:00"},{"$f":"Time!JMB$22","v":"00:00:00"},{"$f":"Time!JMC$22","v":"00:00:00"},{"$f":"Time!JMD$22","v":"00:00:00"},{"$f":"Time!JME$22","v":"00:00:00"},{"$f":"Time!JMF$22","v":"00:00:00"},{"$f":"Time!JMG$22","v":"00:00:00"},{"$f":"Time!JMH$22","v":"00:00:00"},{"$f":"Time!JMI$22","v":"00:00:00"},{"$f":"Time!JMJ$22","v":"00:00:00"},{"$f":"Time!JMK$22","v":"00:00:00"},{"$f":"Time!JML$22","v":"00:00:00"},{"$f":"Time!JMM$22","v":"00:00:00"},{"$f":"Time!JMN$22","v":"00:00:00"},{"$f":"Time!JMO$22","v":"00:00:00"},{"$f":"Time!JMP$22","v":"00:00:00"},{"$f":"Time!JMQ$22","v":"00:00:00"},{"$f":"Time!JMR$22","v":"00:00:00"},{"$f":"Time!JMS$22","v":"00:00:00"},{"$f":"Time!JMT$22","v":"00:00:00"},{"$f":"Time!JMU$22","v":"00:00:00"},{"$f":"Time!JMV$22","v":"00:00:00"},{"$f":"Time!JMW$22","v":"00:00:00"},{"$f":"Time!JMX$22","v":"00:00:00"},{"$f":"Time!JMY$22","v":"00:00:00"},{"$f":"Time!JMZ$22","v":"00:00:00"},{"$f":"Time!JNA$22","v":"00:00:00"},{"$f":"Time!JNB$22","v":"00:00:00"},{"$f":"Time!JNC$22","v":"00:00:00"},{"$f":"Time!JND$22","v":"00:00:00"},{"$f":"Time!JNE$22","v":"00:00:00"},{"$f":"Time!JNF$22","v":"00:00:00"},{"$f":"Time!JNG$22","v":"00:00:00"},{"$f":"Time!JNH$22","v":"00:00:00"},{"$f":"Time!JNI$22","v":"00:00:00"},{"$f":"Time!JNJ$22","v":"00:00:00"},{"$f":"Time!JNK$22","v":"00:00:00"},{"$f":"Time!JNL$22","v":"00:00:00"},{"$f":"Time!JNM$22","v":"00:00:00"},{"$f":"Time!JNN$22","v":"00:00:00"},{"$f":"Time!JNO$22","v":"00:00:00"},{"$f":"Time!JNP$22","v":"00:00:00"},{"$f":"Time!JNQ$22","v":"00:00:00"},{"$f":"Time!JNR$22","v":"00:00:00"},{"$f":"Time!JNS$22","v":"00:00:00"},{"$f":"Time!JNT$22","v":"00:00:00"},{"$f":"Time!JNU$22","v":"00:00:00"},{"$f":"Time!JNV$22","v":"00:00:00"},{"$f":"Time!JNW$22","v":"00:00:00"},{"$f":"Time!JNX$22","v":"00:00:00"},{"$f":"Time!JNY$22","v":"00:00:00"},{"$f":"Time!JNZ$22","v":"00:00:00"},{"$f":"Time!JOA$22","v":"00:00:00"},{"$f":"Time!JOB$22","v":"00:00:00"},{"$f":"Time!JOC$22","v":"00:00:00"},{"$f":"Time!JOD$22","v":"00:00:00"},{"$f":"Time!JOE$22","v":"00:00:00"},{"$f":"Time!JOF$22","v":"00:00:00"},{"$f":"Time!JOG$22","v":"00:00:00"},{"$f":"Time!JOH$22","v":"00:00:00"},{"$f":"Time!JOI$22","v":"00:00:00"},{"$f":"Time!JOJ$22","v":"00:00:00"},{"$f":"Time!JOK$22","v":"00:00:00"},{"$f":"Time!JOL$22","v":"00:00:00"},{"$f":"Time!JOM$22","v":"00:00:00"},{"$f":"Time!JON$22","v":"00:00:00"},{"$f":"Time!JOO$22","v":"00:00:00"},{"$f":"Time!JOP$22","v":"00:00:00"},{"$f":"Time!JOQ$22","v":"00:00:00"},{"$f":"Time!JOR$22","v":"00:00:00"},{"$f":"Time!JOS$22","v":"00:00:00"},{"$f":"Time!JOT$22","v":"00:00:00"},{"$f":"Time!JOU$22","v":"00:00:00"},{"$f":"Time!JOV$22","v":"00:00:00"},{"$f":"Time!JOW$22","v":"00:00:00"},{"$f":"Time!JOX$22","v":"00:00:00"},{"$f":"Time!JOY$22","v":"00:00:00"},{"$f":"Time!JOZ$22","v":"00:00:00"},{"$f":"Time!JPA$22","v":"00:00:00"},{"$f":"Time!JPB$22","v":"00:00:00"},{"$f":"Time!JPC$22","v":"00:00:00"},{"$f":"Time!JPD$22","v":"00:00:00"},{"$f":"Time!JPE$22","v":"00:00:00"},{"$f":"Time!JPF$22","v":"00:00:00"},{"$f":"Time!JPG$22","v":"00:00:00"},{"$f":"Time!JPH$22","v":"00:00:00"},{"$f":"Time!JPI$22","v":"00:00:00"},{"$f":"Time!JPJ$22","v":"00:00:00"},{"$f":"Time!JPK$22","v":"00:00:00"},{"$f":"Time!JPL$22","v":"00:00:00"},{"$f":"Time!JPM$22","v":"00:00:00"},{"$f":"Time!JPN$22","v":"00:00:00"},{"$f":"Time!JPO$22","v":"00:00:00"},{"$f":"Time!JPP$22","v":"00:00:00"},{"$f":"Time!JPQ$22","v":"00:00:00"},{"$f":"Time!JPR$22","v":"00:00:00"},{"$f":"Time!JPS$22","v":"00:00:00"},{"$f":"Time!JPT$22","v":"00:00:00"},{"$f":"Time!JPU$22","v":"00:00:00"},{"$f":"Time!JPV$22","v":"00:00:00"},{"$f":"Time!JPW$22","v":"00:00:00"},{"$f":"Time!JPX$22","v":"00:00:00"},{"$f":"Time!JPY$22","v":"00:00:00"},{"$f":"Time!JPZ$22","v":"00:00:00"},{"$f":"Time!JQA$22","v":"00:00:00"},{"$f":"Time!JQB$22","v":"00:00:00"},{"$f":"Time!JQC$22","v":"00:00:00"},{"$f":"Time!JQD$22","v":"00:00:00"},{"$f":"Time!JQE$22","v":"00:00:00"},{"$f":"Time!JQF$22","v":"00:00:00"},{"$f":"Time!JQG$22","v":"00:00:00"},{"$f":"Time!JQH$22","v":"00:00:00"},{"$f":"Time!JQI$22","v":"00:00:00"},{"$f":"Time!JQJ$22","v":"00:00:00"},{"$f":"Time!JQK$22","v":"00:00:00"},{"$f":"Time!JQL$22","v":"00:00:00"},{"$f":"Time!JQM$22","v":"00:00:00"},{"$f":"Time!JQN$22","v":"00:00:00"},{"$f":"Time!JQO$22","v":"00:00:00"},{"$f":"Time!JQP$22","v":"00:00:00"},{"$f":"Time!JQQ$22","v":"00:00:00"},{"$f":"Time!JQR$22","v":"00:00:00"},{"$f":"Time!JQS$22","v":"00:00:00"},{"$f":"Time!JQT$22","v":"00:00:00"},{"$f":"Time!JQU$22","v":"00:00:00"},{"$f":"Time!JQV$22","v":"00:00:00"},{"$f":"Time!JQW$22","v":"00:00:00"},{"$f":"Time!JQX$22","v":"00:00:00"},{"$f":"Time!JQY$22","v":"00:00:00"},{"$f":"Time!JQZ$22","v":"00:00:00"},{"$f":"Time!JRA$22","v":"00:00:00"},{"$f":"Time!JRB$22","v":"00:00:00"},{"$f":"Time!JRC$22","v":"00:00:00"},{"$f":"Time!JRD$22","v":"00:00:00"},{"$f":"Time!JRE$22","v":"00:00:00"},{"$f":"Time!JRF$22","v":"00:00:00"},{"$f":"Time!JRG$22","v":"00:00:00"},{"$f":"Time!JRH$22","v":"00:00:00"},{"$f":"Time!JRI$22","v":"00:00:00"},{"$f":"Time!JRJ$22","v":"00:00:00"},{"$f":"Time!JRK$22","v":"00:00:00"},{"$f":"Time!JRL$22","v":"00:00:00"},{"$f":"Time!JRM$22","v":"00:00:00"},{"$f":"Time!JRN$22","v":"00:00:00"},{"$f":"Time!JRO$22","v":"00:00:00"},{"$f":"Time!JRP$22","v":"00:00:00"},{"$f":"Time!JRQ$22","v":"00:00:00"},{"$f":"Time!JRR$22","v":"00:00:00"},{"$f":"Time!JRS$22","v":"00:00:00"},{"$f":"Time!JRT$22","v":"00:00:00"},{"$f":"Time!JRU$22","v":"00:00:00"},{"$f":"Time!JRV$22","v":"00:00:00"},{"$f":"Time!JRW$22","v":"00:00:00"},{"$f":"Time!JRX$22","v":"00:00:00"},{"$f":"Time!JRY$22","v":"00:00:00"},{"$f":"Time!JRZ$22","v":"00:00:00"},{"$f":"Time!JSA$22","v":"00:00:00"},{"$f":"Time!JSB$22","v":"00:00:00"},{"$f":"Time!JSC$22","v":"00:00:00"},{"$f":"Time!JSD$22","v":"00:00:00"},{"$f":"Time!JSE$22","v":"00:00:00"},{"$f":"Time!JSF$22","v":"00:00:00"},{"$f":"Time!JSG$22","v":"00:00:00"},{"$f":"Time!JSH$22","v":"00:00:00"},{"$f":"Time!JSI$22","v":"00:00:00"},{"$f":"Time!JSJ$22","v":"00:00:00"},{"$f":"Time!JSK$22","v":"00:00:00"},{"$f":"Time!JSL$22","v":"00:00:00"},{"$f":"Time!JSM$22","v":"00:00:00"},{"$f":"Time!JSN$22","v":"00:00:00"},{"$f":"Time!JSO$22","v":"00:00:00"},{"$f":"Time!JSP$22","v":"00:00:00"},{"$f":"Time!JSQ$22","v":"00:00:00"},{"$f":"Time!JSR$22","v":"00:00:00"},{"$f":"Time!JSS$22","v":"00:00:00"},{"$f":"Time!JST$22","v":"00:00:00"},{"$f":"Time!JSU$22","v":"00:00:00"},{"$f":"Time!JSV$22","v":"00:00:00"},{"$f":"Time!JSW$22","v":"00:00:00"},{"$f":"Time!JSX$22","v":"00:00:00"},{"$f":"Time!JSY$22","v":"00:00:00"},{"$f":"Time!JSZ$22","v":"00:00:00"},{"$f":"Time!JTA$22","v":"00:00:00"},{"$f":"Time!JTB$22","v":"00:00:00"},{"$f":"Time!JTC$22","v":"00:00:00"},{"$f":"Time!JTD$22","v":"00:00:00"},{"$f":"Time!JTE$22","v":"00:00:00"},{"$f":"Time!JTF$22","v":"00:00:00"},{"$f":"Time!JTG$22","v":"00:00:00"},{"$f":"Time!JTH$22","v":"00:00:00"},{"$f":"Time!JTI$22","v":"00:00:00"},{"$f":"Time!JTJ$22","v":"00:00:00"},{"$f":"Time!JTK$22","v":"00:00:00"},{"$f":"Time!JTL$22","v":"00:00:00"},{"$f":"Time!JTM$22","v":"00:00:00"},{"$f":"Time!JTN$22","v":"00:00:00"},{"$f":"Time!JTO$22","v":"00:00:00"},{"$f":"Time!JTP$22","v":"00:00:00"},{"$f":"Time!JTQ$22","v":"00:00:00"},{"$f":"Time!JTR$22","v":"00:00:00"},{"$f":"Time!JTS$22","v":"00:00:00"},{"$f":"Time!JTT$22","v":"00:00:00"},{"$f":"Time!JTU$22","v":"00:00:00"},{"$f":"Time!JTV$22","v":"00:00:00"},{"$f":"Time!JTW$22","v":"00:00:00"},{"$f":"Time!JTX$22","v":"00:00:00"},{"$f":"Time!JTY$22","v":"00:00:00"},{"$f":"Time!JTZ$22","v":"00:00:00"},{"$f":"Time!JUA$22","v":"00:00:00"},{"$f":"Time!JUB$22","v":"00:00:00"},{"$f":"Time!JUC$22","v":"00:00:00"},{"$f":"Time!JUD$22","v":"00:00:00"},{"$f":"Time!JUE$22","v":"00:00:00"},{"$f":"Time!JUF$22","v":"00:00:00"},{"$f":"Time!JUG$22","v":"00:00:00"},{"$f":"Time!JUH$22","v":"00:00:00"},{"$f":"Time!JUI$22","v":"00:00:00"},{"$f":"Time!JUJ$22","v":"00:00:00"},{"$f":"Time!JUK$22","v":"00:00:00"},{"$f":"Time!JUL$22","v":"00:00:00"},{"$f":"Time!JUM$22","v":"00:00:00"},{"$f":"Time!JUN$22","v":"00:00:00"},{"$f":"Time!JUO$22","v":"00:00:00"},{"$f":"Time!JUP$22","v":"00:00:00"},{"$f":"Time!JUQ$22","v":"00:00:00"},{"$f":"Time!JUR$22","v":"00:00:00"},{"$f":"Time!JUS$22","v":"00:00:00"},{"$f":"Time!JUT$22","v":"00:00:00"},{"$f":"Time!JUU$22","v":"00:00:00"},{"$f":"Time!JUV$22","v":"00:00:00"},{"$f":"Time!JUW$22","v":"00:00:00"},{"$f":"Time!JUX$22","v":"00:00:00"},{"$f":"Time!JUY$22","v":"00:00:00"},{"$f":"Time!JUZ$22","v":"00:00:00"},{"$f":"Time!JVA$22","v":"00:00:00"},{"$f":"Time!JVB$22","v":"00:00:00"},{"$f":"Time!JVC$22","v":"00:00:00"},{"$f":"Time!JVD$22","v":"00:00:00"},{"$f":"Time!JVE$22","v":"00:00:00"},{"$f":"Time!JVF$22","v":"00:00:00"},{"$f":"Time!JVG$22","v":"00:00:00"},{"$f":"Time!JVH$22","v":"00:00:00"},{"$f":"Time!JVI$22","v":"00:00:00"},{"$f":"Time!JVJ$22","v":"00:00:00"},{"$f":"Time!JVK$22","v":"00:00:00"},{"$f":"Time!JVL$22","v":"00:00:00"},{"$f":"Time!JVM$22","v":"00:00:00"},{"$f":"Time!JVN$22","v":"00:00:00"},{"$f":"Time!JVO$22","v":"00:00:00"},{"$f":"Time!JVP$22","v":"00:00:00"},{"$f":"Time!JVQ$22","v":"00:00:00"},{"$f":"Time!JVR$22","v":"00:00:00"},{"$f":"Time!JVS$22","v":"00:00:00"},{"$f":"Time!JVT$22","v":"00:00:00"},{"$f":"Time!JVU$22","v":"00:00:00"},{"$f":"Time!JVV$22","v":"00:00:00"},{"$f":"Time!JVW$22","v":"00:00:00"},{"$f":"Time!JVX$22","v":"00:00:00"},{"$f":"Time!JVY$22","v":"00:00:00"},{"$f":"Time!JVZ$22","v":"00:00:00"},{"$f":"Time!JWA$22","v":"00:00:00"},{"$f":"Time!JWB$22","v":"00:00:00"},{"$f":"Time!JWC$22","v":"00:00:00"},{"$f":"Time!JWD$22","v":"00:00:00"},{"$f":"Time!JWE$22","v":"00:00:00"},{"$f":"Time!JWF$22","v":"00:00:00"},{"$f":"Time!JWG$22","v":"00:00:00"},{"$f":"Time!JWH$22","v":"00:00:00"},{"$f":"Time!JWI$22","v":"00:00:00"},{"$f":"Time!JWJ$22","v":"00:00:00"},{"$f":"Time!JWK$22","v":"00:00:00"},{"$f":"Time!JWL$22","v":"00:00:00"},{"$f":"Time!JWM$22","v":"00:00:00"},{"$f":"Time!JWN$22","v":"00:00:00"},{"$f":"Time!JWO$22","v":"00:00:00"},{"$f":"Time!JWP$22","v":"00:00:00"},{"$f":"Time!JWQ$22","v":"00:00:00"},{"$f":"Time!JWR$22","v":"00:00:00"},{"$f":"Time!JWS$22","v":"00:00:00"},{"$f":"Time!JWT$22","v":"00:00:00"},{"$f":"Time!JWU$22","v":"00:00:00"},{"$f":"Time!JWV$22","v":"00:00:00"},{"$f":"Time!JWW$22","v":"00:00:00"},{"$f":"Time!JWX$22","v":"00:00:00"},{"$f":"Time!JWY$22","v":"00:00:00"},{"$f":"Time!JWZ$22","v":"00:00:00"},{"$f":"Time!JXA$22","v":"00:00:00"},{"$f":"Time!JXB$22","v":"00:00:00"},{"$f":"Time!JXC$22","v":"00:00:00"},{"$f":"Time!JXD$22","v":"00:00:00"},{"$f":"Time!JXE$22","v":"00:00:00"},{"$f":"Time!JXF$22","v":"00:00:00"},{"$f":"Time!JXG$22","v":"00:00:00"},{"$f":"Time!JXH$22","v":"00:00:00"},{"$f":"Time!JXI$22","v":"00:00:00"},{"$f":"Time!JXJ$22","v":"00:00:00"},{"$f":"Time!JXK$22","v":"00:00:00"},{"$f":"Time!JXL$22","v":"00:00:00"},{"$f":"Time!JXM$22","v":"00:00:00"},{"$f":"Time!JXN$22","v":"00:00:00"},{"$f":"Time!JXO$22","v":"00:00:00"},{"$f":"Time!JXP$22","v":"00:00:00"},{"$f":"Time!JXQ$22","v":"00:00:00"},{"$f":"Time!JXR$22","v":"00:00:00"},{"$f":"Time!JXS$22","v":"00:00:00"},{"$f":"Time!JXT$22","v":"00:00:00"},{"$f":"Time!JXU$22","v":"00:00:00"},{"$f":"Time!JXV$22","v":"00:00:00"},{"$f":"Time!JXW$22","v":"00:00:00"},{"$f":"Time!JXX$22","v":"00:00:00"},{"$f":"Time!JXY$22","v":"00:00:00"},{"$f":"Time!JXZ$22","v":"00:00:00"},{"$f":"Time!JYA$22","v":"00:00:00"},{"$f":"Time!JYB$22","v":"00:00:00"},{"$f":"Time!JYC$22","v":"00:00:00"},{"$f":"Time!JYD$22","v":"00:00:00"},{"$f":"Time!JYE$22","v":"00:00:00"},{"$f":"Time!JYF$22","v":"00:00:00"},{"$f":"Time!JYG$22","v":"00:00:00"},{"$f":"Time!JYH$22","v":"00:00:00"},{"$f":"Time!JYI$22","v":"00:00:00"},{"$f":"Time!JYJ$22","v":"00:00:00"},{"$f":"Time!JYK$22","v":"00:00:00"},{"$f":"Time!JYL$22","v":"00:00:00"},{"$f":"Time!JYM$22","v":"00:00:00"},{"$f":"Time!JYN$22","v":"00:00:00"},{"$f":"Time!JYO$22","v":"00:00:00"},{"$f":"Time!JYP$22","v":"00:00:00"},{"$f":"Time!JYQ$22","v":"00:00:00"},{"$f":"Time!JYR$22","v":"00:00:00"},{"$f":"Time!JYS$22","v":"00:00:00"},{"$f":"Time!JYT$22","v":"00:00:00"},{"$f":"Time!JYU$22","v":"00:00:00"},{"$f":"Time!JYV$22","v":"00:00:00"},{"$f":"Time!JYW$22","v":"00:00:00"},{"$f":"Time!JYX$22","v":"00:00:00"},{"$f":"Time!JYY$22","v":"00:00:00"},{"$f":"Time!JYZ$22","v":"00:00:00"},{"$f":"Time!JZA$22","v":"00:00:00"},{"$f":"Time!JZB$22","v":"00:00:00"},{"$f":"Time!JZC$22","v":"00:00:00"},{"$f":"Time!JZD$22","v":"00:00:00"},{"$f":"Time!JZE$22","v":"00:00:00"},{"$f":"Time!JZF$22","v":"00:00:00"},{"$f":"Time!JZG$22","v":"00:00:00"},{"$f":"Time!JZH$22","v":"00:00:00"},{"$f":"Time!JZI$22","v":"00:00:00"},{"$f":"Time!JZJ$22","v":"00:00:00"},{"$f":"Time!JZK$22","v":"00:00:00"},{"$f":"Time!JZL$22","v":"00:00:00"},{"$f":"Time!JZM$22","v":"00:00:00"},{"$f":"Time!JZN$22","v":"00:00:00"},{"$f":"Time!JZO$22","v":"00:00:00"},{"$f":"Time!JZP$22","v":"00:00:00"},{"$f":"Time!JZQ$22","v":"00:00:00"},{"$f":"Time!JZR$22","v":"00:00:00"},{"$f":"Time!JZS$22","v":"00:00:00"},{"$f":"Time!JZT$22","v":"00:00:00"},{"$f":"Time!JZU$22","v":"00:00:00"},{"$f":"Time!JZV$22","v":"00:00:00"},{"$f":"Time!JZW$22","v":"00:00:00"},{"$f":"Time!JZX$22","v":"00:00:00"},{"$f":"Time!JZY$22","v":"00:00:00"},{"$f":"Time!JZZ$22","v":"00:00:00"},{"$f":"Time!KAA$22","v":"00:00:00"},{"$f":"Time!KAB$22","v":"00:00:00"},{"$f":"Time!KAC$22","v":"00:00:00"},{"$f":"Time!KAD$22","v":"00:00:00"},{"$f":"Time!KAE$22","v":"00:00:00"},{"$f":"Time!KAF$22","v":"00:00:00"},{"$f":"Time!KAG$22","v":"00:00:00"},{"$f":"Time!KAH$22","v":"00:00:00"},{"$f":"Time!KAI$22","v":"00:00:00"},{"$f":"Time!KAJ$22","v":"00:00:00"},{"$f":"Time!KAK$22","v":"00:00:00"},{"$f":"Time!KAL$22","v":"00:00:00"},{"$f":"Time!KAM$22","v":"00:00:00"},{"$f":"Time!KAN$22","v":"00:00:00"},{"$f":"Time!KAO$22","v":"00:00:00"},{"$f":"Time!KAP$22","v":"00:00:00"},{"$f":"Time!KAQ$22","v":"00:00:00"},{"$f":"Time!KAR$22","v":"00:00:00"},{"$f":"Time!KAS$22","v":"00:00:00"},{"$f":"Time!KAT$22","v":"00:00:00"},{"$f":"Time!KAU$22","v":"00:00:00"},{"$f":"Time!KAV$22","v":"00:00:00"},{"$f":"Time!KAW$22","v":"00:00:00"},{"$f":"Time!KAX$22","v":"00:00:00"},{"$f":"Time!KAY$22","v":"00:00:00"},{"$f":"Time!KAZ$22","v":"00:00:00"},{"$f":"Time!KBA$22","v":"00:00:00"},{"$f":"Time!KBB$22","v":"00:00:00"},{"$f":"Time!KBC$22","v":"00:00:00"},{"$f":"Time!KBD$22","v":"00:00:00"},{"$f":"Time!KBE$22","v":"00:00:00"},{"$f":"Time!KBF$22","v":"00:00:00"},{"$f":"Time!KBG$22","v":"00:00:00"},{"$f":"Time!KBH$22","v":"00:00:00"},{"$f":"Time!KBI$22","v":"00:00:00"},{"$f":"Time!KBJ$22","v":"00:00:00"},{"$f":"Time!KBK$22","v":"00:00:00"},{"$f":"Time!KBL$22","v":"00:00:00"},{"$f":"Time!KBM$22","v":"00:00:00"},{"$f":"Time!KBN$22","v":"00:00:00"},{"$f":"Time!KBO$22","v":"00:00:00"},{"$f":"Time!KBP$22","v":"00:00:00"},{"$f":"Time!KBQ$22","v":"00:00:00"},{"$f":"Time!KBR$22","v":"00:00:00"},{"$f":"Time!KBS$22","v":"00:00:00"},{"$f":"Time!KBT$22","v":"00:00:00"},{"$f":"Time!KBU$22","v":"00:00:00"},{"$f":"Time!KBV$22","v":"00:00:00"},{"$f":"Time!KBW$22","v":"00:00:00"},{"$f":"Time!KBX$22","v":"00:00:00"},{"$f":"Time!KBY$22","v":"00:00:00"},{"$f":"Time!KBZ$22","v":"00:00:00"},{"$f":"Time!KCA$22","v":"00:00:00"},{"$f":"Time!KCB$22","v":"00:00:00"},{"$f":"Time!KCC$22","v":"00:00:00"},{"$f":"Time!KCD$22","v":"00:00:00"},{"$f":"Time!KCE$22","v":"00:00:00"},{"$f":"Time!KCF$22","v":"00:00:00"},{"$f":"Time!KCG$22","v":"00:00:00"},{"$f":"Time!KCH$22","v":"00:00:00"},{"$f":"Time!KCI$22","v":"00:00:00"},{"$f":"Time!KCJ$22","v":"00:00:00"},{"$f":"Time!KCK$22","v":"00:00:00"},{"$f":"Time!KCL$22","v":"00:00:00"},{"$f":"Time!KCM$22","v":"00:00:00"},{"$f":"Time!KCN$22","v":"00:00:00"},{"$f":"Time!KCO$22","v":"00:00:00"},{"$f":"Time!KCP$22","v":"00:00:00"},{"$f":"Time!KCQ$22","v":"00:00:00"},{"$f":"Time!KCR$22","v":"00:00:00"},{"$f":"Time!KCS$22","v":"00:00:00"},{"$f":"Time!KCT$22","v":"00:00:00"},{"$f":"Time!KCU$22","v":"00:00:00"},{"$f":"Time!KCV$22","v":"00:00:00"},{"$f":"Time!KCW$22","v":"00:00:00"},{"$f":"Time!KCX$22","v":"00:00:00"},{"$f":"Time!KCY$22","v":"00:00:00"},{"$f":"Time!KCZ$22","v":"00:00:00"},{"$f":"Time!KDA$22","v":"00:00:00"},{"$f":"Time!KDB$22","v":"00:00:00"},{"$f":"Time!KDC$22","v":"00:00:00"},{"$f":"Time!KDD$22","v":"00:00:00"},{"$f":"Time!KDE$22","v":"00:00:00"},{"$f":"Time!KDF$22","v":"00:00:00"},{"$f":"Time!KDG$22","v":"00:00:00"},{"$f":"Time!KDH$22","v":"00:00:00"},{"$f":"Time!KDI$22","v":"00:00:00"},{"$f":"Time!KDJ$22","v":"00:00:00"},{"$f":"Time!KDK$22","v":"00:00:00"},{"$f":"Time!KDL$22","v":"00:00:00"},{"$f":"Time!KDM$22","v":"00:00:00"},{"$f":"Time!KDN$22","v":"00:00:00"},{"$f":"Time!KDO$22","v":"00:00:00"},{"$f":"Time!KDP$22","v":"00:00:00"},{"$f":"Time!KDQ$22","v":"00:00:00"},{"$f":"Time!KDR$22","v":"00:00:00"},{"$f":"Time!KDS$22","v":"00:00:00"},{"$f":"Time!KDT$22","v":"00:00:00"},{"$f":"Time!KDU$22","v":"00:00:00"},{"$f":"Time!KDV$22","v":"00:00:00"},{"$f":"Time!KDW$22","v":"00:00:00"},{"$f":"Time!KDX$22","v":"00:00:00"},{"$f":"Time!KDY$22","v":"00:00:00"},{"$f":"Time!KDZ$22","v":"00:00:00"},{"$f":"Time!KEA$22","v":"00:00:00"},{"$f":"Time!KEB$22","v":"00:00:00"},{"$f":"Time!KEC$22","v":"00:00:00"},{"$f":"Time!KED$22","v":"00:00:00"},{"$f":"Time!KEE$22","v":"00:00:00"},{"$f":"Time!KEF$22","v":"00:00:00"},{"$f":"Time!KEG$22","v":"00:00:00"},{"$f":"Time!KEH$22","v":"00:00:00"},{"$f":"Time!KEI$22","v":"00:00:00"},{"$f":"Time!KEJ$22","v":"00:00:00"},{"$f":"Time!KEK$22","v":"00:00:00"},{"$f":"Time!KEL$22","v":"00:00:00"},{"$f":"Time!KEM$22","v":"00:00:00"},{"$f":"Time!KEN$22","v":"00:00:00"},{"$f":"Time!KEO$22","v":"00:00:00"},{"$f":"Time!KEP$22","v":"00:00:00"},{"$f":"Time!KEQ$22","v":"00:00:00"},{"$f":"Time!KER$22","v":"00:00:00"},{"$f":"Time!KES$22","v":"00:00:00"},{"$f":"Time!KET$22","v":"00:00:00"},{"$f":"Time!KEU$22","v":"00:00:00"},{"$f":"Time!KEV$22","v":"00:00:00"},{"$f":"Time!KEW$22","v":"00:00:00"},{"$f":"Time!KEX$22","v":"00:00:00"},{"$f":"Time!KEY$22","v":"00:00:00"},{"$f":"Time!KEZ$22","v":"00:00:00"},{"$f":"Time!KFA$22","v":"00:00:00"},{"$f":"Time!KFB$22","v":"00:00:00"},{"$f":"Time!KFC$22","v":"00:00:00"},{"$f":"Time!KFD$22","v":"00:00:00"},{"$f":"Time!KFE$22","v":"00:00:00"},{"$f":"Time!KFF$22","v":"00:00:00"},{"$f":"Time!KFG$22","v":"00:00:00"},{"$f":"Time!KFH$22","v":"00:00:00"},{"$f":"Time!KFI$22","v":"00:00:00"},{"$f":"Time!KFJ$22","v":"00:00:00"},{"$f":"Time!KFK$22","v":"00:00:00"},{"$f":"Time!KFL$22","v":"00:00:00"},{"$f":"Time!KFM$22","v":"00:00:00"},{"$f":"Time!KFN$22","v":"00:00:00"},{"$f":"Time!KFO$22","v":"00:00:00"},{"$f":"Time!KFP$22","v":"00:00:00"},{"$f":"Time!KFQ$22","v":"00:00:00"},{"$f":"Time!KFR$22","v":"00:00:00"},{"$f":"Time!KFS$22","v":"00:00:00"},{"$f":"Time!KFT$22","v":"00:00:00"},{"$f":"Time!KFU$22","v":"00:00:00"},{"$f":"Time!KFV$22","v":"00:00:00"},{"$f":"Time!KFW$22","v":"00:00:00"},{"$f":"Time!KFX$22","v":"00:00:00"},{"$f":"Time!KFY$22","v":"00:00:00"},{"$f":"Time!KFZ$22","v":"00:00:00"},{"$f":"Time!KGA$22","v":"00:00:00"},{"$f":"Time!KGB$22","v":"00:00:00"},{"$f":"Time!KGC$22","v":"00:00:00"},{"$f":"Time!KGD$22","v":"00:00:00"},{"$f":"Time!KGE$22","v":"00:00:00"},{"$f":"Time!KGF$22","v":"00:00:00"},{"$f":"Time!KGG$22","v":"00:00:00"},{"$f":"Time!KGH$22","v":"00:00:00"},{"$f":"Time!KGI$22","v":"00:00:00"},{"$f":"Time!KGJ$22","v":"00:00:00"},{"$f":"Time!KGK$22","v":"00:00:00"},{"$f":"Time!KGL$22","v":"00:00:00"},{"$f":"Time!KGM$22","v":"00:00:00"},{"$f":"Time!KGN$22","v":"00:00:00"},{"$f":"Time!KGO$22","v":"00:00:00"},{"$f":"Time!KGP$22","v":"00:00:00"},{"$f":"Time!KGQ$22","v":"00:00:00"},{"$f":"Time!KGR$22","v":"00:00:00"},{"$f":"Time!KGS$22","v":"00:00:00"},{"$f":"Time!KGT$22","v":"00:00:00"},{"$f":"Time!KGU$22","v":"00:00:00"},{"$f":"Time!KGV$22","v":"00:00:00"},{"$f":"Time!KGW$22","v":"00:00:00"},{"$f":"Time!KGX$22","v":"00:00:00"},{"$f":"Time!KGY$22","v":"00:00:00"},{"$f":"Time!KGZ$22","v":"00:00:00"},{"$f":"Time!KHA$22","v":"00:00:00"},{"$f":"Time!KHB$22","v":"00:00:00"},{"$f":"Time!KHC$22","v":"00:00:00"},{"$f":"Time!KHD$22","v":"00:00:00"},{"$f":"Time!KHE$22","v":"00:00:00"},{"$f":"Time!KHF$22","v":"00:00:00"},{"$f":"Time!KHG$22","v":"00:00:00"},{"$f":"Time!KHH$22","v":"00:00:00"},{"$f":"Time!KHI$22","v":"00:00:00"},{"$f":"Time!KHJ$22","v":"00:00:00"},{"$f":"Time!KHK$22","v":"00:00:00"},{"$f":"Time!KHL$22","v":"00:00:00"},{"$f":"Time!KHM$22","v":"00:00:00"},{"$f":"Time!KHN$22","v":"00:00:00"},{"$f":"Time!KHO$22","v":"00:00:00"},{"$f":"Time!KHP$22","v":"00:00:00"},{"$f":"Time!KHQ$22","v":"00:00:00"},{"$f":"Time!KHR$22","v":"00:00:00"},{"$f":"Time!KHS$22","v":"00:00:00"},{"$f":"Time!KHT$22","v":"00:00:00"},{"$f":"Time!KHU$22","v":"00:00:00"},{"$f":"Time!KHV$22","v":"00:00:00"},{"$f":"Time!KHW$22","v":"00:00:00"},{"$f":"Time!KHX$22","v":"00:00:00"},{"$f":"Time!KHY$22","v":"00:00:00"},{"$f":"Time!KHZ$22","v":"00:00:00"},{"$f":"Time!KIA$22","v":"00:00:00"},{"$f":"Time!KIB$22","v":"00:00:00"},{"$f":"Time!KIC$22","v":"00:00:00"},{"$f":"Time!KID$22","v":"00:00:00"},{"$f":"Time!KIE$22","v":"00:00:00"},{"$f":"Time!KIF$22","v":"00:00:00"},{"$f":"Time!KIG$22","v":"00:00:00"},{"$f":"Time!KIH$22","v":"00:00:00"},{"$f":"Time!KII$22","v":"00:00:00"},{"$f":"Time!KIJ$22","v":"00:00:00"},{"$f":"Time!KIK$22","v":"00:00:00"},{"$f":"Time!KIL$22","v":"00:00:00"},{"$f":"Time!KIM$22","v":"00:00:00"},{"$f":"Time!KIN$22","v":"00:00:00"},{"$f":"Time!KIO$22","v":"00:00:00"},{"$f":"Time!KIP$22","v":"00:00:00"},{"$f":"Time!KIQ$22","v":"00:00:00"},{"$f":"Time!KIR$22","v":"00:00:00"},{"$f":"Time!KIS$22","v":"00:00:00"},{"$f":"Time!KIT$22","v":"00:00:00"},{"$f":"Time!KIU$22","v":"00:00:00"},{"$f":"Time!KIV$22","v":"00:00:00"},{"$f":"Time!KIW$22","v":"00:00:00"},{"$f":"Time!KIX$22","v":"00:00:00"},{"$f":"Time!KIY$22","v":"00:00:00"},{"$f":"Time!KIZ$22","v":"00:00:00"},{"$f":"Time!KJA$22","v":"00:00:00"},{"$f":"Time!KJB$22","v":"00:00:00"},{"$f":"Time!KJC$22","v":"00:00:00"},{"$f":"Time!KJD$22","v":"00:00:00"},{"$f":"Time!KJE$22","v":"00:00:00"},{"$f":"Time!KJF$22","v":"00:00:00"},{"$f":"Time!KJG$22","v":"00:00:00"},{"$f":"Time!KJH$22","v":"00:00:00"},{"$f":"Time!KJI$22","v":"00:00:00"},{"$f":"Time!KJJ$22","v":"00:00:00"},{"$f":"Time!KJK$22","v":"00:00:00"},{"$f":"Time!KJL$22","v":"00:00:00"},{"$f":"Time!KJM$22","v":"00:00:00"},{"$f":"Time!KJN$22","v":"00:00:00"},{"$f":"Time!KJO$22","v":"00:00:00"},{"$f":"Time!KJP$22","v":"00:00:00"},{"$f":"Time!KJQ$22","v":"00:00:00"},{"$f":"Time!KJR$22","v":"00:00:00"},{"$f":"Time!KJS$22","v":"00:00:00"},{"$f":"Time!KJT$22","v":"00:00:00"},{"$f":"Time!KJU$22","v":"00:00:00"},{"$f":"Time!KJV$22","v":"00:00:00"},{"$f":"Time!KJW$22","v":"00:00:00"},{"$f":"Time!KJX$22","v":"00:00:00"},{"$f":"Time!KJY$22","v":"00:00:00"},{"$f":"Time!KJZ$22","v":"00:00:00"},{"$f":"Time!KKA$22","v":"00:00:00"},{"$f":"Time!KKB$22","v":"00:00:00"},{"$f":"Time!KKC$22","v":"00:00:00"},{"$f":"Time!KKD$22","v":"00:00:00"},{"$f":"Time!KKE$22","v":"00:00:00"},{"$f":"Time!KKF$22","v":"00:00:00"},{"$f":"Time!KKG$22","v":"00:00:00"},{"$f":"Time!KKH$22","v":"00:00:00"},{"$f":"Time!KKI$22","v":"00:00:00"},{"$f":"Time!KKJ$22","v":"00:00:00"},{"$f":"Time!KKK$22","v":"00:00:00"},{"$f":"Time!KKL$22","v":"00:00:00"},{"$f":"Time!KKM$22","v":"00:00:00"},{"$f":"Time!KKN$22","v":"00:00:00"},{"$f":"Time!KKO$22","v":"00:00:00"},{"$f":"Time!KKP$22","v":"00:00:00"},{"$f":"Time!KKQ$22","v":"00:00:00"},{"$f":"Time!KKR$22","v":"00:00:00"},{"$f":"Time!KKS$22","v":"00:00:00"},{"$f":"Time!KKT$22","v":"00:00:00"},{"$f":"Time!KKU$22","v":"00:00:00"},{"$f":"Time!KKV$22","v":"00:00:00"},{"$f":"Time!KKW$22","v":"00:00:00"},{"$f":"Time!KKX$22","v":"00:00:00"},{"$f":"Time!KKY$22","v":"00:00:00"},{"$f":"Time!KKZ$22","v":"00:00:00"},{"$f":"Time!KLA$22","v":"00:00:00"},{"$f":"Time!KLB$22","v":"00:00:00"},{"$f":"Time!KLC$22","v":"00:00:00"},{"$f":"Time!KLD$22","v":"00:00:00"},{"$f":"Time!KLE$22","v":"00:00:00"},{"$f":"Time!KLF$22","v":"00:00:00"},{"$f":"Time!KLG$22","v":"00:00:00"},{"$f":"Time!KLH$22","v":"00:00:00"},{"$f":"Time!KLI$22","v":"00:00:00"},{"$f":"Time!KLJ$22","v":"00:00:00"},{"$f":"Time!KLK$22","v":"00:00:00"},{"$f":"Time!KLL$22","v":"00:00:00"},{"$f":"Time!KLM$22","v":"00:00:00"},{"$f":"Time!KLN$22","v":"00:00:00"},{"$f":"Time!KLO$22","v":"00:00:00"},{"$f":"Time!KLP$22","v":"00:00:00"},{"$f":"Time!KLQ$22","v":"00:00:00"},{"$f":"Time!KLR$22","v":"00:00:00"},{"$f":"Time!KLS$22","v":"00:00:00"},{"$f":"Time!KLT$22","v":"00:00:00"},{"$f":"Time!KLU$22","v":"00:00:00"},{"$f":"Time!KLV$22","v":"00:00:00"},{"$f":"Time!KLW$22","v":"00:00:00"},{"$f":"Time!KLX$22","v":"00:00:00"},{"$f":"Time!KLY$22","v":"00:00:00"},{"$f":"Time!KLZ$22","v":"00:00:00"},{"$f":"Time!KMA$22","v":"00:00:00"},{"$f":"Time!KMB$22","v":"00:00:00"},{"$f":"Time!KMC$22","v":"00:00:00"},{"$f":"Time!KMD$22","v":"00:00:00"},{"$f":"Time!KME$22","v":"00:00:00"},{"$f":"Time!KMF$22","v":"00:00:00"},{"$f":"Time!KMG$22","v":"00:00:00"},{"$f":"Time!KMH$22","v":"00:00:00"},{"$f":"Time!KMI$22","v":"00:00:00"},{"$f":"Time!KMJ$22","v":"00:00:00"},{"$f":"Time!KMK$22","v":"00:00:00"},{"$f":"Time!KML$22","v":"00:00:00"},{"$f":"Time!KMM$22","v":"00:00:00"},{"$f":"Time!KMN$22","v":"00:00:00"},{"$f":"Time!KMO$22","v":"00:00:00"},{"$f":"Time!KMP$22","v":"00:00:00"},{"$f":"Time!KMQ$22","v":"00:00:00"},{"$f":"Time!KMR$22","v":"00:00:00"},{"$f":"Time!KMS$22","v":"00:00:00"},{"$f":"Time!KMT$22","v":"00:00:00"},{"$f":"Time!KMU$22","v":"00:00:00"},{"$f":"Time!KMV$22","v":"00:00:00"},{"$f":"Time!KMW$22","v":"00:00:00"},{"$f":"Time!KMX$22","v":"00:00:00"},{"$f":"Time!KMY$22","v":"00:00:00"},{"$f":"Time!KMZ$22","v":"00:00:00"},{"$f":"Time!KNA$22","v":"00:00:00"},{"$f":"Time!KNB$22","v":"00:00:00"},{"$f":"Time!KNC$22","v":"00:00:00"},{"$f":"Time!KND$22","v":"00:00:00"},{"$f":"Time!KNE$22","v":"00:00:00"},{"$f":"Time!KNF$22","v":"00:00:00"},{"$f":"Time!KNG$22","v":"00:00:00"},{"$f":"Time!KNH$22","v":"00:00:00"},{"$f":"Time!KNI$22","v":"00:00:00"},{"$f":"Time!KNJ$22","v":"00:00:00"},{"$f":"Time!KNK$22","v":"00:00:00"},{"$f":"Time!KNL$22","v":"00:00:00"},{"$f":"Time!KNM$22","v":"00:00:00"},{"$f":"Time!KNN$22","v":"00:00:00"},{"$f":"Time!KNO$22","v":"00:00:00"},{"$f":"Time!KNP$22","v":"00:00:00"},{"$f":"Time!KNQ$22","v":"00:00:00"},{"$f":"Time!KNR$22","v":"00:00:00"},{"$f":"Time!KNS$22","v":"00:00:00"},{"$f":"Time!KNT$22","v":"00:00:00"},{"$f":"Time!KNU$22","v":"00:00:00"},{"$f":"Time!KNV$22","v":"00:00:00"},{"$f":"Time!KNW$22","v":"00:00:00"},{"$f":"Time!KNX$22","v":"00:00:00"},{"$f":"Time!KNY$22","v":"00:00:00"},{"$f":"Time!KNZ$22","v":"00:00:00"},{"$f":"Time!KOA$22","v":"00:00:00"},{"$f":"Time!KOB$22","v":"00:00:00"},{"$f":"Time!KOC$22","v":"00:00:00"},{"$f":"Time!KOD$22","v":"00:00:00"},{"$f":"Time!KOE$22","v":"00:00:00"},{"$f":"Time!KOF$22","v":"00:00:00"},{"$f":"Time!KOG$22","v":"00:00:00"},{"$f":"Time!KOH$22","v":"00:00:00"},{"$f":"Time!KOI$22","v":"00:00:00"},{"$f":"Time!KOJ$22","v":"00:00:00"},{"$f":"Time!KOK$22","v":"00:00:00"},{"$f":"Time!KOL$22","v":"00:00:00"},{"$f":"Time!KOM$22","v":"00:00:00"},{"$f":"Time!KON$22","v":"00:00:00"},{"$f":"Time!KOO$22","v":"00:00:00"},{"$f":"Time!KOP$22","v":"00:00:00"},{"$f":"Time!KOQ$22","v":"00:00:00"},{"$f":"Time!KOR$22","v":"00:00:00"},{"$f":"Time!KOS$22","v":"00:00:00"},{"$f":"Time!KOT$22","v":"00:00:00"},{"$f":"Time!KOU$22","v":"00:00:00"},{"$f":"Time!KOV$22","v":"00:00:00"},{"$f":"Time!KOW$22","v":"00:00:00"},{"$f":"Time!KOX$22","v":"00:00:00"},{"$f":"Time!KOY$22","v":"00:00:00"},{"$f":"Time!KOZ$22","v":"00:00:00"},{"$f":"Time!KPA$22","v":"00:00:00"},{"$f":"Time!KPB$22","v":"00:00:00"},{"$f":"Time!KPC$22","v":"00:00:00"},{"$f":"Time!KPD$22","v":"00:00:00"},{"$f":"Time!KPE$22","v":"00:00:00"},{"$f":"Time!KPF$22","v":"00:00:00"},{"$f":"Time!KPG$22","v":"00:00:00"},{"$f":"Time!KPH$22","v":"00:00:00"},{"$f":"Time!KPI$22","v":"00:00:00"},{"$f":"Time!KPJ$22","v":"00:00:00"},{"$f":"Time!KPK$22","v":"00:00:00"},{"$f":"Time!KPL$22","v":"00:00:00"},{"$f":"Time!KPM$22","v":"00:00:00"},{"$f":"Time!KPN$22","v":"00:00:00"},{"$f":"Time!KPO$22","v":"00:00:00"},{"$f":"Time!KPP$22","v":"00:00:00"},{"$f":"Time!KPQ$22","v":"00:00:00"},{"$f":"Time!KPR$22","v":"00:00:00"},{"$f":"Time!KPS$22","v":"00:00:00"},{"$f":"Time!KPT$22","v":"00:00:00"},{"$f":"Time!KPU$22","v":"00:00:00"},{"$f":"Time!KPV$22","v":"00:00:00"},{"$f":"Time!KPW$22","v":"00:00:00"},{"$f":"Time!KPX$22","v":"00:00:00"},{"$f":"Time!KPY$22","v":"00:00:00"},{"$f":"Time!KPZ$22","v":"00:00:00"},{"$f":"Time!KQA$22","v":"00:00:00"},{"$f":"Time!KQB$22","v":"00:00:00"},{"$f":"Time!KQC$22","v":"00:00:00"},{"$f":"Time!KQD$22","v":"00:00:00"},{"$f":"Time!KQE$22","v":"00:00:00"},{"$f":"Time!KQF$22","v":"00:00:00"},{"$f":"Time!KQG$22","v":"00:00:00"},{"$f":"Time!KQH$22","v":"00:00:00"},{"$f":"Time!KQI$22","v":"00:00:00"},{"$f":"Time!KQJ$22","v":"00:00:00"},{"$f":"Time!KQK$22","v":"00:00:00"},{"$f":"Time!KQL$22","v":"00:00:00"},{"$f":"Time!KQM$22","v":"00:00:00"},{"$f":"Time!KQN$22","v":"00:00:00"},{"$f":"Time!KQO$22","v":"00:00:00"},{"$f":"Time!KQP$22","v":"00:00:00"},{"$f":"Time!KQQ$22","v":"00:00:00"},{"$f":"Time!KQR$22","v":"00:00:00"},{"$f":"Time!KQS$22","v":"00:00:00"},{"$f":"Time!KQT$22","v":"00:00:00"},{"$f":"Time!KQU$22","v":"00:00:00"},{"$f":"Time!KQV$22","v":"00:00:00"},{"$f":"Time!KQW$22","v":"00:00:00"},{"$f":"Time!KQX$22","v":"00:00:00"},{"$f":"Time!KQY$22","v":"00:00:00"},{"$f":"Time!KQZ$22","v":"00:00:00"},{"$f":"Time!KRA$22","v":"00:00:00"},{"$f":"Time!KRB$22","v":"00:00:00"},{"$f":"Time!KRC$22","v":"00:00:00"},{"$f":"Time!KRD$22","v":"00:00:00"},{"$f":"Time!KRE$22","v":"00:00:00"},{"$f":"Time!KRF$22","v":"00:00:00"},{"$f":"Time!KRG$22","v":"00:00:00"},{"$f":"Time!KRH$22","v":"00:00:00"},{"$f":"Time!KRI$22","v":"00:00:00"},{"$f":"Time!KRJ$22","v":"00:00:00"},{"$f":"Time!KRK$22","v":"00:00:00"},{"$f":"Time!KRL$22","v":"00:00:00"},{"$f":"Time!KRM$22","v":"00:00:00"},{"$f":"Time!KRN$22","v":"00:00:00"},{"$f":"Time!KRO$22","v":"00:00:00"},{"$f":"Time!KRP$22","v":"00:00:00"},{"$f":"Time!KRQ$22","v":"00:00:00"},{"$f":"Time!KRR$22","v":"00:00:00"},{"$f":"Time!KRS$22","v":"00:00:00"},{"$f":"Time!KRT$22","v":"00:00:00"},{"$f":"Time!KRU$22","v":"00:00:00"},{"$f":"Time!KRV$22","v":"00:00:00"},{"$f":"Time!KRW$22","v":"00:00:00"},{"$f":"Time!KRX$22","v":"00:00:00"},{"$f":"Time!KRY$22","v":"00:00:00"},{"$f":"Time!KRZ$22","v":"00:00:00"},{"$f":"Time!KSA$22","v":"00:00:00"},{"$f":"Time!KSB$22","v":"00:00:00"},{"$f":"Time!KSC$22","v":"00:00:00"},{"$f":"Time!KSD$22","v":"00:00:00"},{"$f":"Time!KSE$22","v":"00:00:00"},{"$f":"Time!KSF$22","v":"00:00:00"},{"$f":"Time!KSG$22","v":"00:00:00"},{"$f":"Time!KSH$22","v":"00:00:00"},{"$f":"Time!KSI$22","v":"00:00:00"},{"$f":"Time!KSJ$22","v":"00:00:00"},{"$f":"Time!KSK$22","v":"00:00:00"},{"$f":"Time!KSL$22","v":"00:00:00"},{"$f":"Time!KSM$22","v":"00:00:00"},{"$f":"Time!KSN$22","v":"00:00:00"},{"$f":"Time!KSO$22","v":"00:00:00"},{"$f":"Time!KSP$22","v":"00:00:00"},{"$f":"Time!KSQ$22","v":"00:00:00"},{"$f":"Time!KSR$22","v":"00:00:00"},{"$f":"Time!KSS$22","v":"00:00:00"},{"$f":"Time!KST$22","v":"00:00:00"},{"$f":"Time!KSU$22","v":"00:00:00"},{"$f":"Time!KSV$22","v":"00:00:00"},{"$f":"Time!KSW$22","v":"00:00:00"},{"$f":"Time!KSX$22","v":"00:00:00"},{"$f":"Time!KSY$22","v":"00:00:00"},{"$f":"Time!KSZ$22","v":"00:00:00"},{"$f":"Time!KTA$22","v":"00:00:00"},{"$f":"Time!KTB$22","v":"00:00:00"},{"$f":"Time!KTC$22","v":"00:00:00"},{"$f":"Time!KTD$22","v":"00:00:00"},{"$f":"Time!KTE$22","v":"00:00:00"},{"$f":"Time!KTF$22","v":"00:00:00"},{"$f":"Time!KTG$22","v":"00:00:00"},{"$f":"Time!KTH$22","v":"00:00:00"},{"$f":"Time!KTI$22","v":"00:00:00"},{"$f":"Time!KTJ$22","v":"00:00:00"},{"$f":"Time!KTK$22","v":"00:00:00"},{"$f":"Time!KTL$22","v":"00:00:00"},{"$f":"Time!KTM$22","v":"00:00:00"},{"$f":"Time!KTN$22","v":"00:00:00"},{"$f":"Time!KTO$22","v":"00:00:00"},{"$f":"Time!KTP$22","v":"00:00:00"},{"$f":"Time!KTQ$22","v":"00:00:00"},{"$f":"Time!KTR$22","v":"00:00:00"},{"$f":"Time!KTS$22","v":"00:00:00"},{"$f":"Time!KTT$22","v":"00:00:00"},{"$f":"Time!KTU$22","v":"00:00:00"},{"$f":"Time!KTV$22","v":"00:00:00"},{"$f":"Time!KTW$22","v":"00:00:00"},{"$f":"Time!KTX$22","v":"00:00:00"},{"$f":"Time!KTY$22","v":"00:00:00"},{"$f":"Time!KTZ$22","v":"00:00:00"},{"$f":"Time!KUA$22","v":"00:00:00"},{"$f":"Time!KUB$22","v":"00:00:00"},{"$f":"Time!KUC$22","v":"00:00:00"},{"$f":"Time!KUD$22","v":"00:00:00"},{"$f":"Time!KUE$22","v":"00:00:00"},{"$f":"Time!KUF$22","v":"00:00:00"},{"$f":"Time!KUG$22","v":"00:00:00"},{"$f":"Time!KUH$22","v":"00:00:00"},{"$f":"Time!KUI$22","v":"00:00:00"},{"$f":"Time!KUJ$22","v":"00:00:00"},{"$f":"Time!KUK$22","v":"00:00:00"},{"$f":"Time!KUL$22","v":"00:00:00"},{"$f":"Time!KUM$22","v":"00:00:00"},{"$f":"Time!KUN$22","v":"00:00:00"},{"$f":"Time!KUO$22","v":"00:00:00"},{"$f":"Time!KUP$22","v":"00:00:00"},{"$f":"Time!KUQ$22","v":"00:00:00"},{"$f":"Time!KUR$22","v":"00:00:00"},{"$f":"Time!KUS$22","v":"00:00:00"},{"$f":"Time!KUT$22","v":"00:00:00"},{"$f":"Time!KUU$22","v":"00:00:00"},{"$f":"Time!KUV$22","v":"00:00:00"},{"$f":"Time!KUW$22","v":"00:00:00"},{"$f":"Time!KUX$22","v":"00:00:00"},{"$f":"Time!KUY$22","v":"00:00:00"},{"$f":"Time!KUZ$22","v":"00:00:00"},{"$f":"Time!KVA$22","v":"00:00:00"},{"$f":"Time!KVB$22","v":"00:00:00"},{"$f":"Time!KVC$22","v":"00:00:00"},{"$f":"Time!KVD$22","v":"00:00:00"},{"$f":"Time!KVE$22","v":"00:00:00"},{"$f":"Time!KVF$22","v":"00:00:00"},{"$f":"Time!KVG$22","v":"00:00:00"},{"$f":"Time!KVH$22","v":"00:00:00"},{"$f":"Time!KVI$22","v":"00:00:00"},{"$f":"Time!KVJ$22","v":"00:00:00"},{"$f":"Time!KVK$22","v":"00:00:00"},{"$f":"Time!KVL$22","v":"00:00:00"},{"$f":"Time!KVM$22","v":"00:00:00"},{"$f":"Time!KVN$22","v":"00:00:00"},{"$f":"Time!KVO$22","v":"00:00:00"},{"$f":"Time!KVP$22","v":"00:00:00"},{"$f":"Time!KVQ$22","v":"00:00:00"},{"$f":"Time!KVR$22","v":"00:00:00"},{"$f":"Time!KVS$22","v":"00:00:00"},{"$f":"Time!KVT$22","v":"00:00:00"},{"$f":"Time!KVU$22","v":"00:00:00"},{"$f":"Time!KVV$22","v":"00:00:00"},{"$f":"Time!KVW$22","v":"00:00:00"},{"$f":"Time!KVX$22","v":"00:00:00"},{"$f":"Time!KVY$22","v":"00:00:00"},{"$f":"Time!KVZ$22","v":"00:00:00"},{"$f":"Time!KWA$22","v":"00:00:00"},{"$f":"Time!KWB$22","v":"00:00:00"},{"$f":"Time!KWC$22","v":"00:00:00"},{"$f":"Time!KWD$22","v":"00:00:00"},{"$f":"Time!KWE$22","v":"00:00:00"},{"$f":"Time!KWF$22","v":"00:00:00"},{"$f":"Time!KWG$22","v":"00:00:00"},{"$f":"Time!KWH$22","v":"00:00:00"},{"$f":"Time!KWI$22","v":"00:00:00"},{"$f":"Time!KWJ$22","v":"00:00:00"},{"$f":"Time!KWK$22","v":"00:00:00"},{"$f":"Time!KWL$22","v":"00:00:00"},{"$f":"Time!KWM$22","v":"00:00:00"},{"$f":"Time!KWN$22","v":"00:00:00"},{"$f":"Time!KWO$22","v":"00:00:00"},{"$f":"Time!KWP$22","v":"00:00:00"},{"$f":"Time!KWQ$22","v":"00:00:00"},{"$f":"Time!KWR$22","v":"00:00:00"},{"$f":"Time!KWS$22","v":"00:00:00"},{"$f":"Time!KWT$22","v":"00:00:00"},{"$f":"Time!KWU$22","v":"00:00:00"},{"$f":"Time!KWV$22","v":"00:00:00"},{"$f":"Time!KWW$22","v":"00:00:00"},{"$f":"Time!KWX$22","v":"00:00:00"},{"$f":"Time!KWY$22","v":"00:00:00"},{"$f":"Time!KWZ$22","v":"00:00:00"},{"$f":"Time!KXA$22","v":"00:00:00"},{"$f":"Time!KXB$22","v":"00:00:00"},{"$f":"Time!KXC$22","v":"00:00:00"},{"$f":"Time!KXD$22","v":"00:00:00"},{"$f":"Time!KXE$22","v":"00:00:00"},{"$f":"Time!KXF$22","v":"00:00:00"},{"$f":"Time!KXG$22","v":"00:00:00"},{"$f":"Time!KXH$22","v":"00:00:00"},{"$f":"Time!KXI$22","v":"00:00:00"},{"$f":"Time!KXJ$22","v":"00:00:00"},{"$f":"Time!KXK$22","v":"00:00:00"},{"$f":"Time!KXL$22","v":"00:00:00"},{"$f":"Time!KXM$22","v":"00:00:00"},{"$f":"Time!KXN$22","v":"00:00:00"},{"$f":"Time!KXO$22","v":"00:00:00"},{"$f":"Time!KXP$22","v":"00:00:00"},{"$f":"Time!KXQ$22","v":"00:00:00"},{"$f":"Time!KXR$22","v":"00:00:00"},{"$f":"Time!KXS$22","v":"00:00:00"},{"$f":"Time!KXT$22","v":"00:00:00"},{"$f":"Time!KXU$22","v":"00:00:00"},{"$f":"Time!KXV$22","v":"00:00:00"},{"$f":"Time!KXW$22","v":"00:00:00"},{"$f":"Time!KXX$22","v":"00:00:00"},{"$f":"Time!KXY$22","v":"00:00:00"},{"$f":"Time!KXZ$22","v":"00:00:00"},{"$f":"Time!KYA$22","v":"00:00:00"},{"$f":"Time!KYB$22","v":"00:00:00"},{"$f":"Time!KYC$22","v":"00:00:00"},{"$f":"Time!KYD$22","v":"00:00:00"},{"$f":"Time!KYE$22","v":"00:00:00"},{"$f":"Time!KYF$22","v":"00:00:00"},{"$f":"Time!KYG$22","v":"00:00:00"},{"$f":"Time!KYH$22","v":"00:00:00"},{"$f":"Time!KYI$22","v":"00:00:00"},{"$f":"Time!KYJ$22","v":"00:00:00"},{"$f":"Time!KYK$22","v":"00:00:00"},{"$f":"Time!KYL$22","v":"00:00:00"},{"$f":"Time!KYM$22","v":"00:00:00"},{"$f":"Time!KYN$22","v":"00:00:00"},{"$f":"Time!KYO$22","v":"00:00:00"},{"$f":"Time!KYP$22","v":"00:00:00"},{"$f":"Time!KYQ$22","v":"00:00:00"},{"$f":"Time!KYR$22","v":"00:00:00"},{"$f":"Time!KYS$22","v":"00:00:00"},{"$f":"Time!KYT$22","v":"00:00:00"},{"$f":"Time!KYU$22","v":"00:00:00"},{"$f":"Time!KYV$22","v":"00:00:00"},{"$f":"Time!KYW$22","v":"00:00:00"},{"$f":"Time!KYX$22","v":"00:00:00"},{"$f":"Time!KYY$22","v":"00:00:00"},{"$f":"Time!KYZ$22","v":"00:00:00"},{"$f":"Time!KZA$22","v":"00:00:00"},{"$f":"Time!KZB$22","v":"00:00:00"},{"$f":"Time!KZC$22","v":"00:00:00"},{"$f":"Time!KZD$22","v":"00:00:00"},{"$f":"Time!KZE$22","v":"00:00:00"},{"$f":"Time!KZF$22","v":"00:00:00"},{"$f":"Time!KZG$22","v":"00:00:00"},{"$f":"Time!KZH$22","v":"00:00:00"},{"$f":"Time!KZI$22","v":"00:00:00"},{"$f":"Time!KZJ$22","v":"00:00:00"},{"$f":"Time!KZK$22","v":"00:00:00"},{"$f":"Time!KZL$22","v":"00:00:00"},{"$f":"Time!KZM$22","v":"00:00:00"},{"$f":"Time!KZN$22","v":"00:00:00"},{"$f":"Time!KZO$22","v":"00:00:00"},{"$f":"Time!KZP$22","v":"00:00:00"},{"$f":"Time!KZQ$22","v":"00:00:00"},{"$f":"Time!KZR$22","v":"00:00:00"},{"$f":"Time!KZS$22","v":"00:00:00"},{"$f":"Time!KZT$22","v":"00:00:00"},{"$f":"Time!KZU$22","v":"00:00:00"},{"$f":"Time!KZV$22","v":"00:00:00"},{"$f":"Time!KZW$22","v":"00:00:00"},{"$f":"Time!KZX$22","v":"00:00:00"},{"$f":"Time!KZY$22","v":"00:00:00"},{"$f":"Time!KZZ$22","v":"00:00:00"},{"$f":"Time!LAA$22","v":"00:00:00"},{"$f":"Time!LAB$22","v":"00:00:00"},{"$f":"Time!LAC$22","v":"00:00:00"},{"$f":"Time!LAD$22","v":"00:00:00"},{"$f":"Time!LAE$22","v":"00:00:00"},{"$f":"Time!LAF$22","v":"00:00:00"},{"$f":"Time!LAG$22","v":"00:00:00"},{"$f":"Time!LAH$22","v":"00:00:00"},{"$f":"Time!LAI$22","v":"00:00:00"},{"$f":"Time!LAJ$22","v":"00:00:00"},{"$f":"Time!LAK$22","v":"00:00:00"},{"$f":"Time!LAL$22","v":"00:00:00"},{"$f":"Time!LAM$22","v":"00:00:00"},{"$f":"Time!LAN$22","v":"00:00:00"},{"$f":"Time!LAO$22","v":"00:00:00"},{"$f":"Time!LAP$22","v":"00:00:00"},{"$f":"Time!LAQ$22","v":"00:00:00"},{"$f":"Time!LAR$22","v":"00:00:00"},{"$f":"Time!LAS$22","v":"00:00:00"},{"$f":"Time!LAT$22","v":"00:00:00"},{"$f":"Time!LAU$22","v":"00:00:00"},{"$f":"Time!LAV$22","v":"00:00:00"},{"$f":"Time!LAW$22","v":"00:00:00"},{"$f":"Time!LAX$22","v":"00:00:00"},{"$f":"Time!LAY$22","v":"00:00:00"},{"$f":"Time!LAZ$22","v":"00:00:00"},{"$f":"Time!LBA$22","v":"00:00:00"},{"$f":"Time!LBB$22","v":"00:00:00"},{"$f":"Time!LBC$22","v":"00:00:00"},{"$f":"Time!LBD$22","v":"00:00:00"},{"$f":"Time!LBE$22","v":"00:00:00"},{"$f":"Time!LBF$22","v":"00:00:00"},{"$f":"Time!LBG$22","v":"00:00:00"},{"$f":"Time!LBH$22","v":"00:00:00"},{"$f":"Time!LBI$22","v":"00:00:00"},{"$f":"Time!LBJ$22","v":"00:00:00"},{"$f":"Time!LBK$22","v":"00:00:00"},{"$f":"Time!LBL$22","v":"00:00:00"},{"$f":"Time!LBM$22","v":"00:00:00"},{"$f":"Time!LBN$22","v":"00:00:00"},{"$f":"Time!LBO$22","v":"00:00:00"},{"$f":"Time!LBP$22","v":"00:00:00"},{"$f":"Time!LBQ$22","v":"00:00:00"},{"$f":"Time!LBR$22","v":"00:00:00"},{"$f":"Time!LBS$22","v":"00:00:00"},{"$f":"Time!LBT$22","v":"00:00:00"},{"$f":"Time!LBU$22","v":"00:00:00"},{"$f":"Time!LBV$22","v":"00:00:00"},{"$f":"Time!LBW$22","v":"00:00:00"},{"$f":"Time!LBX$22","v":"00:00:00"},{"$f":"Time!LBY$22","v":"00:00:00"},{"$f":"Time!LBZ$22","v":"00:00:00"},{"$f":"Time!LCA$22","v":"00:00:00"},{"$f":"Time!LCB$22","v":"00:00:00"},{"$f":"Time!LCC$22","v":"00:00:00"},{"$f":"Time!LCD$22","v":"00:00:00"},{"$f":"Time!LCE$22","v":"00:00:00"},{"$f":"Time!LCF$22","v":"00:00:00"},{"$f":"Time!LCG$22","v":"00:00:00"},{"$f":"Time!LCH$22","v":"00:00:00"},{"$f":"Time!LCI$22","v":"00:00:00"},{"$f":"Time!LCJ$22","v":"00:00:00"},{"$f":"Time!LCK$22","v":"00:00:00"},{"$f":"Time!LCL$22","v":"00:00:00"},{"$f":"Time!LCM$22","v":"00:00:00"},{"$f":"Time!LCN$22","v":"00:00:00"},{"$f":"Time!LCO$22","v":"00:00:00"},{"$f":"Time!LCP$22","v":"00:00:00"},{"$f":"Time!LCQ$22","v":"00:00:00"},{"$f":"Time!LCR$22","v":"00:00:00"},{"$f":"Time!LCS$22","v":"00:00:00"},{"$f":"Time!LCT$22","v":"00:00:00"},{"$f":"Time!LCU$22","v":"00:00:00"},{"$f":"Time!LCV$22","v":"00:00:00"},{"$f":"Time!LCW$22","v":"00:00:00"},{"$f":"Time!LCX$22","v":"00:00:00"},{"$f":"Time!LCY$22","v":"00:00:00"},{"$f":"Time!LCZ$22","v":"00:00:00"},{"$f":"Time!LDA$22","v":"00:00:00"},{"$f":"Time!LDB$22","v":"00:00:00"},{"$f":"Time!LDC$22","v":"00:00:00"},{"$f":"Time!LDD$22","v":"00:00:00"},{"$f":"Time!LDE$22","v":"00:00:00"},{"$f":"Time!LDF$22","v":"00:00:00"},{"$f":"Time!LDG$22","v":"00:00:00"},{"$f":"Time!LDH$22","v":"00:00:00"},{"$f":"Time!LDI$22","v":"00:00:00"},{"$f":"Time!LDJ$22","v":"00:00:00"},{"$f":"Time!LDK$22","v":"00:00:00"},{"$f":"Time!LDL$22","v":"00:00:00"},{"$f":"Time!LDM$22","v":"00:00:00"},{"$f":"Time!LDN$22","v":"00:00:00"},{"$f":"Time!LDO$22","v":"00:00:00"},{"$f":"Time!LDP$22","v":"00:00:00"},{"$f":"Time!LDQ$22","v":"00:00:00"},{"$f":"Time!LDR$22","v":"00:00:00"},{"$f":"Time!LDS$22","v":"00:00:00"},{"$f":"Time!LDT$22","v":"00:00:00"},{"$f":"Time!LDU$22","v":"00:00:00"},{"$f":"Time!LDV$22","v":"00:00:00"},{"$f":"Time!LDW$22","v":"00:00:00"},{"$f":"Time!LDX$22","v":"00:00:00"},{"$f":"Time!LDY$22","v":"00:00:00"},{"$f":"Time!LDZ$22","v":"00:00:00"},{"$f":"Time!LEA$22","v":"00:00:00"},{"$f":"Time!LEB$22","v":"00:00:00"},{"$f":"Time!LEC$22","v":"00:00:00"},{"$f":"Time!LED$22","v":"00:00:00"},{"$f":"Time!LEE$22","v":"00:00:00"},{"$f":"Time!LEF$22","v":"00:00:00"},{"$f":"Time!LEG$22","v":"00:00:00"},{"$f":"Time!LEH$22","v":"00:00:00"},{"$f":"Time!LEI$22","v":"00:00:00"},{"$f":"Time!LEJ$22","v":"00:00:00"},{"$f":"Time!LEK$22","v":"00:00:00"},{"$f":"Time!LEL$22","v":"00:00:00"},{"$f":"Time!LEM$22","v":"00:00:00"},{"$f":"Time!LEN$22","v":"00:00:00"},{"$f":"Time!LEO$22","v":"00:00:00"},{"$f":"Time!LEP$22","v":"00:00:00"},{"$f":"Time!LEQ$22","v":"00:00:00"},{"$f":"Time!LER$22","v":"00:00:00"},{"$f":"Time!LES$22","v":"00:00:00"},{"$f":"Time!LET$22","v":"00:00:00"},{"$f":"Time!LEU$22","v":"00:00:00"},{"$f":"Time!LEV$22","v":"00:00:00"},{"$f":"Time!LEW$22","v":"00:00:00"},{"$f":"Time!LEX$22","v":"00:00:00"},{"$f":"Time!LEY$22","v":"00:00:00"},{"$f":"Time!LEZ$22","v":"00:00:00"},{"$f":"Time!LFA$22","v":"00:00:00"},{"$f":"Time!LFB$22","v":"00:00:00"},{"$f":"Time!LFC$22","v":"00:00:00"},{"$f":"Time!LFD$22","v":"00:00:00"},{"$f":"Time!LFE$22","v":"00:00:00"},{"$f":"Time!LFF$22","v":"00:00:00"},{"$f":"Time!LFG$22","v":"00:00:00"},{"$f":"Time!LFH$22","v":"00:00:00"},{"$f":"Time!LFI$22","v":"00:00:00"},{"$f":"Time!LFJ$22","v":"00:00:00"},{"$f":"Time!LFK$22","v":"00:00:00"},{"$f":"Time!LFL$22","v":"00:00:00"},{"$f":"Time!LFM$22","v":"00:00:00"},{"$f":"Time!LFN$22","v":"00:00:00"},{"$f":"Time!LFO$22","v":"00:00:00"},{"$f":"Time!LFP$22","v":"00:00:00"},{"$f":"Time!LFQ$22","v":"00:00:00"},{"$f":"Time!LFR$22","v":"00:00:00"},{"$f":"Time!LFS$22","v":"00:00:00"},{"$f":"Time!LFT$22","v":"00:00:00"},{"$f":"Time!LFU$22","v":"00:00:00"},{"$f":"Time!LFV$22","v":"00:00:00"},{"$f":"Time!LFW$22","v":"00:00:00"},{"$f":"Time!LFX$22","v":"00:00:00"},{"$f":"Time!LFY$22","v":"00:00:00"},{"$f":"Time!LFZ$22","v":"00:00:00"},{"$f":"Time!LGA$22","v":"00:00:00"},{"$f":"Time!LGB$22","v":"00:00:00"},{"$f":"Time!LGC$22","v":"00:00:00"},{"$f":"Time!LGD$22","v":"00:00:00"},{"$f":"Time!LGE$22","v":"00:00:00"},{"$f":"Time!LGF$22","v":"00:00:00"},{"$f":"Time!LGG$22","v":"00:00:00"},{"$f":"Time!LGH$22","v":"00:00:00"},{"$f":"Time!LGI$22","v":"00:00:00"},{"$f":"Time!LGJ$22","v":"00:00:00"},{"$f":"Time!LGK$22","v":"00:00:00"},{"$f":"Time!LGL$22","v":"00:00:00"},{"$f":"Time!LGM$22","v":"00:00:00"},{"$f":"Time!LGN$22","v":"00:00:00"},{"$f":"Time!LGO$22","v":"00:00:00"},{"$f":"Time!LGP$22","v":"00:00:00"},{"$f":"Time!LGQ$22","v":"00:00:00"},{"$f":"Time!LGR$22","v":"00:00:00"},{"$f":"Time!LGS$22","v":"00:00:00"},{"$f":"Time!LGT$22","v":"00:00:00"},{"$f":"Time!LGU$22","v":"00:00:00"},{"$f":"Time!LGV$22","v":"00:00:00"},{"$f":"Time!LGW$22","v":"00:00:00"},{"$f":"Time!LGX$22","v":"00:00:00"},{"$f":"Time!LGY$22","v":"00:00:00"},{"$f":"Time!LGZ$22","v":"00:00:00"},{"$f":"Time!LHA$22","v":"00:00:00"},{"$f":"Time!LHB$22","v":"00:00:00"},{"$f":"Time!LHC$22","v":"00:00:00"},{"$f":"Time!LHD$22","v":"00:00:00"},{"$f":"Time!LHE$22","v":"00:00:00"},{"$f":"Time!LHF$22","v":"00:00:00"},{"$f":"Time!LHG$22","v":"00:00:00"},{"$f":"Time!LHH$22","v":"00:00:00"},{"$f":"Time!LHI$22","v":"00:00:00"},{"$f":"Time!LHJ$22","v":"00:00:00"},{"$f":"Time!LHK$22","v":"00:00:00"},{"$f":"Time!LHL$22","v":"00:00:00"},{"$f":"Time!LHM$22","v":"00:00:00"},{"$f":"Time!LHN$22","v":"00:00:00"},{"$f":"Time!LHO$22","v":"00:00:00"},{"$f":"Time!LHP$22","v":"00:00:00"},{"$f":"Time!LHQ$22","v":"00:00:00"},{"$f":"Time!LHR$22","v":"00:00:00"},{"$f":"Time!LHS$22","v":"00:00:00"},{"$f":"Time!LHT$22","v":"00:00:00"},{"$f":"Time!LHU$22","v":"00:00:00"},{"$f":"Time!LHV$22","v":"00:00:00"},{"$f":"Time!LHW$22","v":"00:00:00"},{"$f":"Time!LHX$22","v":"00:00:00"},{"$f":"Time!LHY$22","v":"00:00:00"},{"$f":"Time!LHZ$22","v":"00:00:00"},{"$f":"Time!LIA$22","v":"00:00:00"},{"$f":"Time!LIB$22","v":"00:00:00"},{"$f":"Time!LIC$22","v":"00:00:00"},{"$f":"Time!LID$22","v":"00:00:00"},{"$f":"Time!LIE$22","v":"00:00:00"},{"$f":"Time!LIF$22","v":"00:00:00"},{"$f":"Time!LIG$22","v":"00:00:00"},{"$f":"Time!LIH$22","v":"00:00:00"},{"$f":"Time!LII$22","v":"00:00:00"},{"$f":"Time!LIJ$22","v":"00:00:00"},{"$f":"Time!LIK$22","v":"00:00:00"},{"$f":"Time!LIL$22","v":"00:00:00"},{"$f":"Time!LIM$22","v":"00:00:00"},{"$f":"Time!LIN$22","v":"00:00:00"},{"$f":"Time!LIO$22","v":"00:00:00"},{"$f":"Time!LIP$22","v":"00:00:00"},{"$f":"Time!LIQ$22","v":"00:00:00"},{"$f":"Time!LIR$22","v":"00:00:00"},{"$f":"Time!LIS$22","v":"00:00:00"},{"$f":"Time!LIT$22","v":"00:00:00"},{"$f":"Time!LIU$22","v":"00:00:00"},{"$f":"Time!LIV$22","v":"00:00:00"},{"$f":"Time!LIW$22","v":"00:00:00"},{"$f":"Time!LIX$22","v":"00:00:00"},{"$f":"Time!LIY$22","v":"00:00:00"},{"$f":"Time!LIZ$22","v":"00:00:00"},{"$f":"Time!LJA$22","v":"00:00:00"},{"$f":"Time!LJB$22","v":"00:00:00"},{"$f":"Time!LJC$22","v":"00:00:00"},{"$f":"Time!LJD$22","v":"00:00:00"},{"$f":"Time!LJE$22","v":"00:00:00"},{"$f":"Time!LJF$22","v":"00:00:00"},{"$f":"Time!LJG$22","v":"00:00:00"},{"$f":"Time!LJH$22","v":"00:00:00"},{"$f":"Time!LJI$22","v":"00:00:00"},{"$f":"Time!LJJ$22","v":"00:00:00"},{"$f":"Time!LJK$22","v":"00:00:00"},{"$f":"Time!LJL$22","v":"00:00:00"},{"$f":"Time!LJM$22","v":"00:00:00"},{"$f":"Time!LJN$22","v":"00:00:00"},{"$f":"Time!LJO$22","v":"00:00:00"},{"$f":"Time!LJP$22","v":"00:00:00"},{"$f":"Time!LJQ$22","v":"00:00:00"},{"$f":"Time!LJR$22","v":"00:00:00"},{"$f":"Time!LJS$22","v":"00:00:00"},{"$f":"Time!LJT$22","v":"00:00:00"},{"$f":"Time!LJU$22","v":"00:00:00"},{"$f":"Time!LJV$22","v":"00:00:00"},{"$f":"Time!LJW$22","v":"00:00:00"},{"$f":"Time!LJX$22","v":"00:00:00"},{"$f":"Time!LJY$22","v":"00:00:00"},{"$f":"Time!LJZ$22","v":"00:00:00"},{"$f":"Time!LKA$22","v":"00:00:00"},{"$f":"Time!LKB$22","v":"00:00:00"},{"$f":"Time!LKC$22","v":"00:00:00"},{"$f":"Time!LKD$22","v":"00:00:00"},{"$f":"Time!LKE$22","v":"00:00:00"},{"$f":"Time!LKF$22","v":"00:00:00"},{"$f":"Time!LKG$22","v":"00:00:00"},{"$f":"Time!LKH$22","v":"00:00:00"},{"$f":"Time!LKI$22","v":"00:00:00"},{"$f":"Time!LKJ$22","v":"00:00:00"},{"$f":"Time!LKK$22","v":"00:00:00"},{"$f":"Time!LKL$22","v":"00:00:00"},{"$f":"Time!LKM$22","v":"00:00:00"},{"$f":"Time!LKN$22","v":"00:00:00"},{"$f":"Time!LKO$22","v":"00:00:00"},{"$f":"Time!LKP$22","v":"00:00:00"},{"$f":"Time!LKQ$22","v":"00:00:00"},{"$f":"Time!LKR$22","v":"00:00:00"},{"$f":"Time!LKS$22","v":"00:00:00"},{"$f":"Time!LKT$22","v":"00:00:00"},{"$f":"Time!LKU$22","v":"00:00:00"},{"$f":"Time!LKV$22","v":"00:00:00"},{"$f":"Time!LKW$22","v":"00:00:00"},{"$f":"Time!LKX$22","v":"00:00:00"},{"$f":"Time!LKY$22","v":"00:00:00"},{"$f":"Time!LKZ$22","v":"00:00:00"},{"$f":"Time!LLA$22","v":"00:00:00"},{"$f":"Time!LLB$22","v":"00:00:00"},{"$f":"Time!LLC$22","v":"00:00:00"},{"$f":"Time!LLD$22","v":"00:00:00"},{"$f":"Time!LLE$22","v":"00:00:00"},{"$f":"Time!LLF$22","v":"00:00:00"},{"$f":"Time!LLG$22","v":"00:00:00"},{"$f":"Time!LLH$22","v":"00:00:00"},{"$f":"Time!LLI$22","v":"00:00:00"},{"$f":"Time!LLJ$22","v":"00:00:00"},{"$f":"Time!LLK$22","v":"00:00:00"},{"$f":"Time!LLL$22","v":"00:00:00"},{"$f":"Time!LLM$22","v":"00:00:00"},{"$f":"Time!LLN$22","v":"00:00:00"},{"$f":"Time!LLO$22","v":"00:00:00"},{"$f":"Time!LLP$22","v":"00:00:00"},{"$f":"Time!LLQ$22","v":"00:00:00"},{"$f":"Time!LLR$22","v":"00:00:00"},{"$f":"Time!LLS$22","v":"00:00:00"},{"$f":"Time!LLT$22","v":"00:00:00"},{"$f":"Time!LLU$22","v":"00:00:00"},{"$f":"Time!LLV$22","v":"00:00:00"},{"$f":"Time!LLW$22","v":"00:00:00"},{"$f":"Time!LLX$22","v":"00:00:00"},{"$f":"Time!LLY$22","v":"00:00:00"},{"$f":"Time!LLZ$22","v":"00:00:00"},{"$f":"Time!LMA$22","v":"00:00:00"},{"$f":"Time!LMB$22","v":"00:00:00"},{"$f":"Time!LMC$22","v":"00:00:00"},{"$f":"Time!LMD$22","v":"00:00:00"},{"$f":"Time!LME$22","v":"00:00:00"},{"$f":"Time!LMF$22","v":"00:00:00"},{"$f":"Time!LMG$22","v":"00:00:00"},{"$f":"Time!LMH$22","v":"00:00:00"},{"$f":"Time!LMI$22","v":"00:00:00"},{"$f":"Time!LMJ$22","v":"00:00:00"},{"$f":"Time!LMK$22","v":"00:00:00"},{"$f":"Time!LML$22","v":"00:00:00"},{"$f":"Time!LMM$22","v":"00:00:00"},{"$f":"Time!LMN$22","v":"00:00:00"},{"$f":"Time!LMO$22","v":"00:00:00"},{"$f":"Time!LMP$22","v":"00:00:00"},{"$f":"Time!LMQ$22","v":"00:00:00"},{"$f":"Time!LMR$22","v":"00:00:00"},{"$f":"Time!LMS$22","v":"00:00:00"},{"$f":"Time!LMT$22","v":"00:00:00"},{"$f":"Time!LMU$22","v":"00:00:00"},{"$f":"Time!LMV$22","v":"00:00:00"},{"$f":"Time!LMW$22","v":"00:00:00"},{"$f":"Time!LMX$22","v":"00:00:00"},{"$f":"Time!LMY$22","v":"00:00:00"},{"$f":"Time!LMZ$22","v":"00:00:00"},{"$f":"Time!LNA$22","v":"00:00:00"},{"$f":"Time!LNB$22","v":"00:00:00"},{"$f":"Time!LNC$22","v":"00:00:00"},{"$f":"Time!LND$22","v":"00:00:00"},{"$f":"Time!LNE$22","v":"00:00:00"},{"$f":"Time!LNF$22","v":"00:00:00"},{"$f":"Time!LNG$22","v":"00:00:00"},{"$f":"Time!LNH$22","v":"00:00:00"},{"$f":"Time!LNI$22","v":"00:00:00"},{"$f":"Time!LNJ$22","v":"00:00:00"},{"$f":"Time!LNK$22","v":"00:00:00"},{"$f":"Time!LNL$22","v":"00:00:00"},{"$f":"Time!LNM$22","v":"00:00:00"},{"$f":"Time!LNN$22","v":"00:00:00"},{"$f":"Time!LNO$22","v":"00:00:00"},{"$f":"Time!LNP$22","v":"00:00:00"},{"$f":"Time!LNQ$22","v":"00:00:00"},{"$f":"Time!LNR$22","v":"00:00:00"},{"$f":"Time!LNS$22","v":"00:00:00"},{"$f":"Time!LNT$22","v":"00:00:00"},{"$f":"Time!LNU$22","v":"00:00:00"},{"$f":"Time!LNV$22","v":"00:00:00"},{"$f":"Time!LNW$22","v":"00:00:00"},{"$f":"Time!LNX$22","v":"00:00:00"},{"$f":"Time!LNY$22","v":"00:00:00"},{"$f":"Time!LNZ$22","v":"00:00:00"},{"$f":"Time!LOA$22","v":"00:00:00"},{"$f":"Time!LOB$22","v":"00:00:00"},{"$f":"Time!LOC$22","v":"00:00:00"},{"$f":"Time!LOD$22","v":"00:00:00"},{"$f":"Time!LOE$22","v":"00:00:00"},{"$f":"Time!LOF$22","v":"00:00:00"},{"$f":"Time!LOG$22","v":"00:00:00"},{"$f":"Time!LOH$22","v":"00:00:00"},{"$f":"Time!LOI$22","v":"00:00:00"},{"$f":"Time!LOJ$22","v":"00:00:00"},{"$f":"Time!LOK$22","v":"00:00:00"},{"$f":"Time!LOL$22","v":"00:00:00"},{"$f":"Time!LOM$22","v":"00:00:00"},{"$f":"Time!LON$22","v":"00:00:00"},{"$f":"Time!LOO$22","v":"00:00:00"},{"$f":"Time!LOP$22","v":"00:00:00"},{"$f":"Time!LOQ$22","v":"00:00:00"},{"$f":"Time!LOR$22","v":"00:00:00"},{"$f":"Time!LOS$22","v":"00:00:00"},{"$f":"Time!LOT$22","v":"00:00:00"},{"$f":"Time!LOU$22","v":"00:00:00"},{"$f":"Time!LOV$22","v":"00:00:00"},{"$f":"Time!LOW$22","v":"00:00:00"},{"$f":"Time!LOX$22","v":"00:00:00"},{"$f":"Time!LOY$22","v":"00:00:00"},{"$f":"Time!LOZ$22","v":"00:00:00"},{"$f":"Time!LPA$22","v":"00:00:00"},{"$f":"Time!LPB$22","v":"00:00:00"},{"$f":"Time!LPC$22","v":"00:00:00"},{"$f":"Time!LPD$22","v":"00:00:00"},{"$f":"Time!LPE$22","v":"00:00:00"},{"$f":"Time!LPF$22","v":"00:00:00"},{"$f":"Time!LPG$22","v":"00:00:00"},{"$f":"Time!LPH$22","v":"00:00:00"},{"$f":"Time!LPI$22","v":"00:00:00"},{"$f":"Time!LPJ$22","v":"00:00:00"},{"$f":"Time!LPK$22","v":"00:00:00"},{"$f":"Time!LPL$22","v":"00:00:00"},{"$f":"Time!LPM$22","v":"00:00:00"},{"$f":"Time!LPN$22","v":"00:00:00"},{"$f":"Time!LPO$22","v":"00:00:00"},{"$f":"Time!LPP$22","v":"00:00:00"},{"$f":"Time!LPQ$22","v":"00:00:00"},{"$f":"Time!LPR$22","v":"00:00:00"},{"$f":"Time!LPS$22","v":"00:00:00"},{"$f":"Time!LPT$22","v":"00:00:00"},{"$f":"Time!LPU$22","v":"00:00:00"},{"$f":"Time!LPV$22","v":"00:00:00"},{"$f":"Time!LPW$22","v":"00:00:00"},{"$f":"Time!LPX$22","v":"00:00:00"},{"$f":"Time!LPY$22","v":"00:00:00"},{"$f":"Time!LPZ$22","v":"00:00:00"},{"$f":"Time!LQA$22","v":"00:00:00"},{"$f":"Time!LQB$22","v":"00:00:00"},{"$f":"Time!LQC$22","v":"00:00:00"},{"$f":"Time!LQD$22","v":"00:00:00"},{"$f":"Time!LQE$22","v":"00:00:00"},{"$f":"Time!LQF$22","v":"00:00:00"},{"$f":"Time!LQG$22","v":"00:00:00"},{"$f":"Time!LQH$22","v":"00:00:00"},{"$f":"Time!LQI$22","v":"00:00:00"},{"$f":"Time!LQJ$22","v":"00:00:00"},{"$f":"Time!LQK$22","v":"00:00:00"},{"$f":"Time!LQL$22","v":"00:00:00"},{"$f":"Time!LQM$22","v":"00:00:00"},{"$f":"Time!LQN$22","v":"00:00:00"},{"$f":"Time!LQO$22","v":"00:00:00"},{"$f":"Time!LQP$22","v":"00:00:00"},{"$f":"Time!LQQ$22","v":"00:00:00"},{"$f":"Time!LQR$22","v":"00:00:00"},{"$f":"Time!LQS$22","v":"00:00:00"},{"$f":"Time!LQT$22","v":"00:00:00"},{"$f":"Time!LQU$22","v":"00:00:00"},{"$f":"Time!LQV$22","v":"00:00:00"},{"$f":"Time!LQW$22","v":"00:00:00"},{"$f":"Time!LQX$22","v":"00:00:00"},{"$f":"Time!LQY$22","v":"00:00:00"},{"$f":"Time!LQZ$22","v":"00:00:00"},{"$f":"Time!LRA$22","v":"00:00:00"},{"$f":"Time!LRB$22","v":"00:00:00"},{"$f":"Time!LRC$22","v":"00:00:00"},{"$f":"Time!LRD$22","v":"00:00:00"},{"$f":"Time!LRE$22","v":"00:00:00"},{"$f":"Time!LRF$22","v":"00:00:00"},{"$f":"Time!LRG$22","v":"00:00:00"},{"$f":"Time!LRH$22","v":"00:00:00"},{"$f":"Time!LRI$22","v":"00:00:00"},{"$f":"Time!LRJ$22","v":"00:00:00"},{"$f":"Time!LRK$22","v":"00:00:00"},{"$f":"Time!LRL$22","v":"00:00:00"},{"$f":"Time!LRM$22","v":"00:00:00"},{"$f":"Time!LRN$22","v":"00:00:00"},{"$f":"Time!LRO$22","v":"00:00:00"},{"$f":"Time!LRP$22","v":"00:00:00"},{"$f":"Time!LRQ$22","v":"00:00:00"},{"$f":"Time!LRR$22","v":"00:00:00"},{"$f":"Time!LRS$22","v":"00:00:00"},{"$f":"Time!LRT$22","v":"00:00:00"},{"$f":"Time!LRU$22","v":"00:00:00"},{"$f":"Time!LRV$22","v":"00:00:00"},{"$f":"Time!LRW$22","v":"00:00:00"},{"$f":"Time!LRX$22","v":"00:00:00"},{"$f":"Time!LRY$22","v":"00:00:00"},{"$f":"Time!LRZ$22","v":"00:00:00"},{"$f":"Time!LSA$22","v":"00:00:00"},{"$f":"Time!LSB$22","v":"00:00:00"},{"$f":"Time!LSC$22","v":"00:00:00"},{"$f":"Time!LSD$22","v":"00:00:00"},{"$f":"Time!LSE$22","v":"00:00:00"},{"$f":"Time!LSF$22","v":"00:00:00"},{"$f":"Time!LSG$22","v":"00:00:00"},{"$f":"Time!LSH$22","v":"00:00:00"},{"$f":"Time!LSI$22","v":"00:00:00"},{"$f":"Time!LSJ$22","v":"00:00:00"},{"$f":"Time!LSK$22","v":"00:00:00"},{"$f":"Time!LSL$22","v":"00:00:00"},{"$f":"Time!LSM$22","v":"00:00:00"},{"$f":"Time!LSN$22","v":"00:00:00"},{"$f":"Time!LSO$22","v":"00:00:00"},{"$f":"Time!LSP$22","v":"00:00:00"},{"$f":"Time!LSQ$22","v":"00:00:00"},{"$f":"Time!LSR$22","v":"00:00:00"},{"$f":"Time!LSS$22","v":"00:00:00"},{"$f":"Time!LST$22","v":"00:00:00"},{"$f":"Time!LSU$22","v":"00:00:00"},{"$f":"Time!LSV$22","v":"00:00:00"},{"$f":"Time!LSW$22","v":"00:00:00"},{"$f":"Time!LSX$22","v":"00:00:00"},{"$f":"Time!LSY$22","v":"00:00:00"},{"$f":"Time!LSZ$22","v":"00:00:00"},{"$f":"Time!LTA$22","v":"00:00:00"},{"$f":"Time!LTB$22","v":"00:00:00"},{"$f":"Time!LTC$22","v":"00:00:00"},{"$f":"Time!LTD$22","v":"00:00:00"},{"$f":"Time!LTE$22","v":"00:00:00"},{"$f":"Time!LTF$22","v":"00:00:00"},{"$f":"Time!LTG$22","v":"00:00:00"},{"$f":"Time!LTH$22","v":"00:00:00"},{"$f":"Time!LTI$22","v":"00:00:00"},{"$f":"Time!LTJ$22","v":"00:00:00"},{"$f":"Time!LTK$22","v":"00:00:00"},{"$f":"Time!LTL$22","v":"00:00:00"},{"$f":"Time!LTM$22","v":"00:00:00"},{"$f":"Time!LTN$22","v":"00:00:00"},{"$f":"Time!LTO$22","v":"00:00:00"},{"$f":"Time!LTP$22","v":"00:00:00"},{"$f":"Time!LTQ$22","v":"00:00:00"},{"$f":"Time!LTR$22","v":"00:00:00"},{"$f":"Time!LTS$22","v":"00:00:00"},{"$f":"Time!LTT$22","v":"00:00:00"},{"$f":"Time!LTU$22","v":"00:00:00"},{"$f":"Time!LTV$22","v":"00:00:00"},{"$f":"Time!LTW$22","v":"00:00:00"},{"$f":"Time!LTX$22","v":"00:00:00"},{"$f":"Time!LTY$22","v":"00:00:00"},{"$f":"Time!LTZ$22","v":"00:00:00"},{"$f":"Time!LUA$22","v":"00:00:00"},{"$f":"Time!LUB$22","v":"00:00:00"},{"$f":"Time!LUC$22","v":"00:00:00"},{"$f":"Time!LUD$22","v":"00:00:00"},{"$f":"Time!LUE$22","v":"00:00:00"},{"$f":"Time!LUF$22","v":"00:00:00"},{"$f":"Time!LUG$22","v":"00:00:00"},{"$f":"Time!LUH$22","v":"00:00:00"},{"$f":"Time!LUI$22","v":"00:00:00"},{"$f":"Time!LUJ$22","v":"00:00:00"},{"$f":"Time!LUK$22","v":"00:00:00"},{"$f":"Time!LUL$22","v":"00:00:00"},{"$f":"Time!LUM$22","v":"00:00:00"},{"$f":"Time!LUN$22","v":"00:00:00"},{"$f":"Time!LUO$22","v":"00:00:00"},{"$f":"Time!LUP$22","v":"00:00:00"},{"$f":"Time!LUQ$22","v":"00:00:00"},{"$f":"Time!LUR$22","v":"00:00:00"},{"$f":"Time!LUS$22","v":"00:00:00"},{"$f":"Time!LUT$22","v":"00:00:00"},{"$f":"Time!LUU$22","v":"00:00:00"},{"$f":"Time!LUV$22","v":"00:00:00"},{"$f":"Time!LUW$22","v":"00:00:00"},{"$f":"Time!LUX$22","v":"00:00:00"},{"$f":"Time!LUY$22","v":"00:00:00"},{"$f":"Time!LUZ$22","v":"00:00:00"},{"$f":"Time!LVA$22","v":"00:00:00"},{"$f":"Time!LVB$22","v":"00:00:00"},{"$f":"Time!LVC$22","v":"00:00:00"},{"$f":"Time!LVD$22","v":"00:00:00"},{"$f":"Time!LVE$22","v":"00:00:00"},{"$f":"Time!LVF$22","v":"00:00:00"},{"$f":"Time!LVG$22","v":"00:00:00"},{"$f":"Time!LVH$22","v":"00:00:00"},{"$f":"Time!LVI$22","v":"00:00:00"},{"$f":"Time!LVJ$22","v":"00:00:00"},{"$f":"Time!LVK$22","v":"00:00:00"},{"$f":"Time!LVL$22","v":"00:00:00"},{"$f":"Time!LVM$22","v":"00:00:00"},{"$f":"Time!LVN$22","v":"00:00:00"},{"$f":"Time!LVO$22","v":"00:00:00"},{"$f":"Time!LVP$22","v":"00:00:00"},{"$f":"Time!LVQ$22","v":"00:00:00"},{"$f":"Time!LVR$22","v":"00:00:00"},{"$f":"Time!LVS$22","v":"00:00:00"},{"$f":"Time!LVT$22","v":"00:00:00"},{"$f":"Time!LVU$22","v":"00:00:00"},{"$f":"Time!LVV$22","v":"00:00:00"},{"$f":"Time!LVW$22","v":"00:00:00"},{"$f":"Time!LVX$22","v":"00:00:00"},{"$f":"Time!LVY$22","v":"00:00:00"},{"$f":"Time!LVZ$22","v":"00:00:00"},{"$f":"Time!LWA$22","v":"00:00:00"},{"$f":"Time!LWB$22","v":"00:00:00"},{"$f":"Time!LWC$22","v":"00:00:00"},{"$f":"Time!LWD$22","v":"00:00:00"},{"$f":"Time!LWE$22","v":"00:00:00"},{"$f":"Time!LWF$22","v":"00:00:00"},{"$f":"Time!LWG$22","v":"00:00:00"},{"$f":"Time!LWH$22","v":"00:00:00"},{"$f":"Time!LWI$22","v":"00:00:00"},{"$f":"Time!LWJ$22","v":"00:00:00"},{"$f":"Time!LWK$22","v":"00:00:00"},{"$f":"Time!LWL$22","v":"00:00:00"},{"$f":"Time!LWM$22","v":"00:00:00"},{"$f":"Time!LWN$22","v":"00:00:00"},{"$f":"Time!LWO$22","v":"00:00:00"},{"$f":"Time!LWP$22","v":"00:00:00"},{"$f":"Time!LWQ$22","v":"00:00:00"},{"$f":"Time!LWR$22","v":"00:00:00"},{"$f":"Time!LWS$22","v":"00:00:00"},{"$f":"Time!LWT$22","v":"00:00:00"},{"$f":"Time!LWU$22","v":"00:00:00"},{"$f":"Time!LWV$22","v":"00:00:00"},{"$f":"Time!LWW$22","v":"00:00:00"},{"$f":"Time!LWX$22","v":"00:00:00"},{"$f":"Time!LWY$22","v":"00:00:00"},{"$f":"Time!LWZ$22","v":"00:00:00"},{"$f":"Time!LXA$22","v":"00:00:00"},{"$f":"Time!LXB$22","v":"00:00:00"},{"$f":"Time!LXC$22","v":"00:00:00"},{"$f":"Time!LXD$22","v":"00:00:00"},{"$f":"Time!LXE$22","v":"00:00:00"},{"$f":"Time!LXF$22","v":"00:00:00"},{"$f":"Time!LXG$22","v":"00:00:00"},{"$f":"Time!LXH$22","v":"00:00:00"},{"$f":"Time!LXI$22","v":"00:00:00"},{"$f":"Time!LXJ$22","v":"00:00:00"},{"$f":"Time!LXK$22","v":"00:00:00"},{"$f":"Time!LXL$22","v":"00:00:00"},{"$f":"Time!LXM$22","v":"00:00:00"},{"$f":"Time!LXN$22","v":"00:00:00"},{"$f":"Time!LXO$22","v":"00:00:00"},{"$f":"Time!LXP$22","v":"00:00:00"},{"$f":"Time!LXQ$22","v":"00:00:00"},{"$f":"Time!LXR$22","v":"00:00:00"},{"$f":"Time!LXS$22","v":"00:00:00"},{"$f":"Time!LXT$22","v":"00:00:00"},{"$f":"Time!LXU$22","v":"00:00:00"},{"$f":"Time!LXV$22","v":"00:00:00"},{"$f":"Time!LXW$22","v":"00:00:00"},{"$f":"Time!LXX$22","v":"00:00:00"},{"$f":"Time!LXY$22","v":"00:00:00"},{"$f":"Time!LXZ$22","v":"00:00:00"},{"$f":"Time!LYA$22","v":"00:00:00"},{"$f":"Time!LYB$22","v":"00:00:00"},{"$f":"Time!LYC$22","v":"00:00:00"},{"$f":"Time!LYD$22","v":"00:00:00"},{"$f":"Time!LYE$22","v":"00:00:00"},{"$f":"Time!LYF$22","v":"00:00:00"},{"$f":"Time!LYG$22","v":"00:00:00"},{"$f":"Time!LYH$22","v":"00:00:00"},{"$f":"Time!LYI$22","v":"00:00:00"},{"$f":"Time!LYJ$22","v":"00:00:00"},{"$f":"Time!LYK$22","v":"00:00:00"},{"$f":"Time!LYL$22","v":"00:00:00"},{"$f":"Time!LYM$22","v":"00:00:00"},{"$f":"Time!LYN$22","v":"00:00:00"},{"$f":"Time!LYO$22","v":"00:00:00"},{"$f":"Time!LYP$22","v":"00:00:00"},{"$f":"Time!LYQ$22","v":"00:00:00"},{"$f":"Time!LYR$22","v":"00:00:00"},{"$f":"Time!LYS$22","v":"00:00:00"},{"$f":"Time!LYT$22","v":"00:00:00"},{"$f":"Time!LYU$22","v":"00:00:00"},{"$f":"Time!LYV$22","v":"00:00:00"},{"$f":"Time!LYW$22","v":"00:00:00"},{"$f":"Time!LYX$22","v":"00:00:00"},{"$f":"Time!LYY$22","v":"00:00:00"},{"$f":"Time!LYZ$22","v":"00:00:00"},{"$f":"Time!LZA$22","v":"00:00:00"},{"$f":"Time!LZB$22","v":"00:00:00"},{"$f":"Time!LZC$22","v":"00:00:00"},{"$f":"Time!LZD$22","v":"00:00:00"},{"$f":"Time!LZE$22","v":"00:00:00"},{"$f":"Time!LZF$22","v":"00:00:00"},{"$f":"Time!LZG$22","v":"00:00:00"},{"$f":"Time!LZH$22","v":"00:00:00"},{"$f":"Time!LZI$22","v":"00:00:00"},{"$f":"Time!LZJ$22","v":"00:00:00"},{"$f":"Time!LZK$22","v":"00:00:00"},{"$f":"Time!LZL$22","v":"00:00:00"},{"$f":"Time!LZM$22","v":"00:00:00"},{"$f":"Time!LZN$22","v":"00:00:00"},{"$f":"Time!LZO$22","v":"00:00:00"},{"$f":"Time!LZP$22","v":"00:00:00"},{"$f":"Time!LZQ$22","v":"00:00:00"},{"$f":"Time!LZR$22","v":"00:00:00"},{"$f":"Time!LZS$22","v":"00:00:00"},{"$f":"Time!LZT$22","v":"00:00:00"},{"$f":"Time!LZU$22","v":"00:00:00"},{"$f":"Time!LZV$22","v":"00:00:00"},{"$f":"Time!LZW$22","v":"00:00:00"},{"$f":"Time!LZX$22","v":"00:00:00"},{"$f":"Time!LZY$22","v":"00:00:00"},{"$f":"Time!LZZ$22","v":"00:00:00"},{"$f":"Time!MAA$22","v":"00:00:00"},{"$f":"Time!MAB$22","v":"00:00:00"},{"$f":"Time!MAC$22","v":"00:00:00"},{"$f":"Time!MAD$22","v":"00:00:00"},{"$f":"Time!MAE$22","v":"00:00:00"},{"$f":"Time!MAF$22","v":"00:00:00"},{"$f":"Time!MAG$22","v":"00:00:00"},{"$f":"Time!MAH$22","v":"00:00:00"},{"$f":"Time!MAI$22","v":"00:00:00"},{"$f":"Time!MAJ$22","v":"00:00:00"},{"$f":"Time!MAK$22","v":"00:00:00"},{"$f":"Time!MAL$22","v":"00:00:00"},{"$f":"Time!MAM$22","v":"00:00:00"},{"$f":"Time!MAN$22","v":"00:00:00"},{"$f":"Time!MAO$22","v":"00:00:00"},{"$f":"Time!MAP$22","v":"00:00:00"},{"$f":"Time!MAQ$22","v":"00:00:00"},{"$f":"Time!MAR$22","v":"00:00:00"},{"$f":"Time!MAS$22","v":"00:00:00"},{"$f":"Time!MAT$22","v":"00:00:00"},{"$f":"Time!MAU$22","v":"00:00:00"},{"$f":"Time!MAV$22","v":"00:00:00"},{"$f":"Time!MAW$22","v":"00:00:00"},{"$f":"Time!MAX$22","v":"00:00:00"},{"$f":"Time!MAY$22","v":"00:00:00"},{"$f":"Time!MAZ$22","v":"00:00:00"},{"$f":"Time!MBA$22","v":"00:00:00"},{"$f":"Time!MBB$22","v":"00:00:00"},{"$f":"Time!MBC$22","v":"00:00:00"},{"$f":"Time!MBD$22","v":"00:00:00"},{"$f":"Time!MBE$22","v":"00:00:00"},{"$f":"Time!MBF$22","v":"00:00:00"},{"$f":"Time!MBG$22","v":"00:00:00"},{"$f":"Time!MBH$22","v":"00:00:00"},{"$f":"Time!MBI$22","v":"00:00:00"},{"$f":"Time!MBJ$22","v":"00:00:00"},{"$f":"Time!MBK$22","v":"00:00:00"},{"$f":"Time!MBL$22","v":"00:00:00"},{"$f":"Time!MBM$22","v":"00:00:00"},{"$f":"Time!MBN$22","v":"00:00:00"},{"$f":"Time!MBO$22","v":"00:00:00"},{"$f":"Time!MBP$22","v":"00:00:00"},{"$f":"Time!MBQ$22","v":"00:00:00"},{"$f":"Time!MBR$22","v":"00:00:00"},{"$f":"Time!MBS$22","v":"00:00:00"},{"$f":"Time!MBT$22","v":"00:00:00"},{"$f":"Time!MBU$22","v":"00:00:00"},{"$f":"Time!MBV$22","v":"00:00:00"},{"$f":"Time!MBW$22","v":"00:00:00"},{"$f":"Time!MBX$22","v":"00:00:00"},{"$f":"Time!MBY$22","v":"00:00:00"},{"$f":"Time!MBZ$22","v":"00:00:00"},{"$f":"Time!MCA$22","v":"00:00:00"},{"$f":"Time!MCB$22","v":"00:00:00"},{"$f":"Time!MCC$22","v":"00:00:00"},{"$f":"Time!MCD$22","v":"00:00:00"},{"$f":"Time!MCE$22","v":"00:00:00"},{"$f":"Time!MCF$22","v":"00:00:00"},{"$f":"Time!MCG$22","v":"00:00:00"},{"$f":"Time!MCH$22","v":"00:00:00"},{"$f":"Time!MCI$22","v":"00:00:00"},{"$f":"Time!MCJ$22","v":"00:00:00"},{"$f":"Time!MCK$22","v":"00:00:00"},{"$f":"Time!MCL$22","v":"00:00:00"},{"$f":"Time!MCM$22","v":"00:00:00"},{"$f":"Time!MCN$22","v":"00:00:00"},{"$f":"Time!MCO$22","v":"00:00:00"},{"$f":"Time!MCP$22","v":"00:00:00"},{"$f":"Time!MCQ$22","v":"00:00:00"},{"$f":"Time!MCR$22","v":"00:00:00"},{"$f":"Time!MCS$22","v":"00:00:00"},{"$f":"Time!MCT$22","v":"00:00:00"},{"$f":"Time!MCU$22","v":"00:00:00"},{"$f":"Time!MCV$22","v":"00:00:00"},{"$f":"Time!MCW$22","v":"00:00:00"},{"$f":"Time!MCX$22","v":"00:00:00"},{"$f":"Time!MCY$22","v":"00:00:00"},{"$f":"Time!MCZ$22","v":"00:00:00"},{"$f":"Time!MDA$22","v":"00:00:00"},{"$f":"Time!MDB$22","v":"00:00:00"},{"$f":"Time!MDC$22","v":"00:00:00"},{"$f":"Time!MDD$22","v":"00:00:00"},{"$f":"Time!MDE$22","v":"00:00:00"},{"$f":"Time!MDF$22","v":"00:00:00"},{"$f":"Time!MDG$22","v":"00:00:00"},{"$f":"Time!MDH$22","v":"00:00:00"},{"$f":"Time!MDI$22","v":"00:00:00"},{"$f":"Time!MDJ$22","v":"00:00:00"},{"$f":"Time!MDK$22","v":"00:00:00"},{"$f":"Time!MDL$22","v":"00:00:00"},{"$f":"Time!MDM$22","v":"00:00:00"},{"$f":"Time!MDN$22","v":"00:00:00"},{"$f":"Time!MDO$22","v":"00:00:00"},{"$f":"Time!MDP$22","v":"00:00:00"},{"$f":"Time!MDQ$22","v":"00:00:00"},{"$f":"Time!MDR$22","v":"00:00:00"},{"$f":"Time!MDS$22","v":"00:00:00"},{"$f":"Time!MDT$22","v":"00:00:00"},{"$f":"Time!MDU$22","v":"00:00:00"},{"$f":"Time!MDV$22","v":"00:00:00"},{"$f":"Time!MDW$22","v":"00:00:00"},{"$f":"Time!MDX$22","v":"00:00:00"},{"$f":"Time!MDY$22","v":"00:00:00"},{"$f":"Time!MDZ$22","v":"00:00:00"},{"$f":"Time!MEA$22","v":"00:00:00"},{"$f":"Time!MEB$22","v":"00:00:00"},{"$f":"Time!MEC$22","v":"00:00:00"},{"$f":"Time!MED$22","v":"00:00:00"},{"$f":"Time!MEE$22","v":"00:00:00"},{"$f":"Time!MEF$22","v":"00:00:00"},{"$f":"Time!MEG$22","v":"00:00:00"},{"$f":"Time!MEH$22","v":"00:00:00"},{"$f":"Time!MEI$22","v":"00:00:00"},{"$f":"Time!MEJ$22","v":"00:00:00"},{"$f":"Time!MEK$22","v":"00:00:00"},{"$f":"Time!MEL$22","v":"00:00:00"},{"$f":"Time!MEM$22","v":"00:00:00"},{"$f":"Time!MEN$22","v":"00:00:00"},{"$f":"Time!MEO$22","v":"00:00:00"},{"$f":"Time!MEP$22","v":"00:00:00"},{"$f":"Time!MEQ$22","v":"00:00:00"},{"$f":"Time!MER$22","v":"00:00:00"},{"$f":"Time!MES$22","v":"00:00:00"},{"$f":"Time!MET$22","v":"00:00:00"},{"$f":"Time!MEU$22","v":"00:00:00"},{"$f":"Time!MEV$22","v":"00:00:00"},{"$f":"Time!MEW$22","v":"00:00:00"},{"$f":"Time!MEX$22","v":"00:00:00"},{"$f":"Time!MEY$22","v":"00:00:00"},{"$f":"Time!MEZ$22","v":"00:00:00"},{"$f":"Time!MFA$22","v":"00:00:00"},{"$f":"Time!MFB$22","v":"00:00:00"},{"$f":"Time!MFC$22","v":"00:00:00"},{"$f":"Time!MFD$22","v":"00:00:00"},{"$f":"Time!MFE$22","v":"00:00:00"},{"$f":"Time!MFF$22","v":"00:00:00"},{"$f":"Time!MFG$22","v":"00:00:00"},{"$f":"Time!MFH$22","v":"00:00:00"},{"$f":"Time!MFI$22","v":"00:00:00"},{"$f":"Time!MFJ$22","v":"00:00:00"},{"$f":"Time!MFK$22","v":"00:00:00"},{"$f":"Time!MFL$22","v":"00:00:00"},{"$f":"Time!MFM$22","v":"00:00:00"},{"$f":"Time!MFN$22","v":"00:00:00"},{"$f":"Time!MFO$22","v":"00:00:00"},{"$f":"Time!MFP$22","v":"00:00:00"},{"$f":"Time!MFQ$22","v":"00:00:00"},{"$f":"Time!MFR$22","v":"00:00:00"},{"$f":"Time!MFS$22","v":"00:00:00"},{"$f":"Time!MFT$22","v":"00:00:00"},{"$f":"Time!MFU$22","v":"00:00:00"},{"$f":"Time!MFV$22","v":"00:00:00"},{"$f":"Time!MFW$22","v":"00:00:00"},{"$f":"Time!MFX$22","v":"00:00:00"},{"$f":"Time!MFY$22","v":"00:00:00"},{"$f":"Time!MFZ$22","v":"00:00:00"},{"$f":"Time!MGA$22","v":"00:00:00"},{"$f":"Time!MGB$22","v":"00:00:00"},{"$f":"Time!MGC$22","v":"00:00:00"},{"$f":"Time!MGD$22","v":"00:00:00"},{"$f":"Time!MGE$22","v":"00:00:00"},{"$f":"Time!MGF$22","v":"00:00:00"},{"$f":"Time!MGG$22","v":"00:00:00"},{"$f":"Time!MGH$22","v":"00:00:00"},{"$f":"Time!MGI$22","v":"00:00:00"},{"$f":"Time!MGJ$22","v":"00:00:00"},{"$f":"Time!MGK$22","v":"00:00:00"},{"$f":"Time!MGL$22","v":"00:00:00"},{"$f":"Time!MGM$22","v":"00:00:00"},{"$f":"Time!MGN$22","v":"00:00:00"},{"$f":"Time!MGO$22","v":"00:00:00"},{"$f":"Time!MGP$22","v":"00:00:00"},{"$f":"Time!MGQ$22","v":"00:00:00"},{"$f":"Time!MGR$22","v":"00:00:00"},{"$f":"Time!MGS$22","v":"00:00:00"},{"$f":"Time!MGT$22","v":"00:00:00"},{"$f":"Time!MGU$22","v":"00:00:00"},{"$f":"Time!MGV$22","v":"00:00:00"},{"$f":"Time!MGW$22","v":"00:00:00"},{"$f":"Time!MGX$22","v":"00:00:00"},{"$f":"Time!MGY$22","v":"00:00:00"},{"$f":"Time!MGZ$22","v":"00:00:00"},{"$f":"Time!MHA$22","v":"00:00:00"},{"$f":"Time!MHB$22","v":"00:00:00"},{"$f":"Time!MHC$22","v":"00:00:00"},{"$f":"Time!MHD$22","v":"00:00:00"},{"$f":"Time!MHE$22","v":"00:00:00"},{"$f":"Time!MHF$22","v":"00:00:00"},{"$f":"Time!MHG$22","v":"00:00:00"},{"$f":"Time!MHH$22","v":"00:00:00"},{"$f":"Time!MHI$22","v":"00:00:00"},{"$f":"Time!MHJ$22","v":"00:00:00"},{"$f":"Time!MHK$22","v":"00:00:00"},{"$f":"Time!MHL$22","v":"00:00:00"},{"$f":"Time!MHM$22","v":"00:00:00"},{"$f":"Time!MHN$22","v":"00:00:00"},{"$f":"Time!MHO$22","v":"00:00:00"},{"$f":"Time!MHP$22","v":"00:00:00"},{"$f":"Time!MHQ$22","v":"00:00:00"},{"$f":"Time!MHR$22","v":"00:00:00"},{"$f":"Time!MHS$22","v":"00:00:00"},{"$f":"Time!MHT$22","v":"00:00:00"},{"$f":"Time!MHU$22","v":"00:00:00"},{"$f":"Time!MHV$22","v":"00:00:00"},{"$f":"Time!MHW$22","v":"00:00:00"},{"$f":"Time!MHX$22","v":"00:00:00"},{"$f":"Time!MHY$22","v":"00:00:00"},{"$f":"Time!MHZ$22","v":"00:00:00"},{"$f":"Time!MIA$22","v":"00:00:00"},{"$f":"Time!MIB$22","v":"00:00:00"},{"$f":"Time!MIC$22","v":"00:00:00"},{"$f":"Time!MID$22","v":"00:00:00"},{"$f":"Time!MIE$22","v":"00:00:00"},{"$f":"Time!MIF$22","v":"00:00:00"},{"$f":"Time!MIG$22","v":"00:00:00"},{"$f":"Time!MIH$22","v":"00:00:00"},{"$f":"Time!MII$22","v":"00:00:00"},{"$f":"Time!MIJ$22","v":"00:00:00"},{"$f":"Time!MIK$22","v":"00:00:00"},{"$f":"Time!MIL$22","v":"00:00:00"},{"$f":"Time!MIM$22","v":"00:00:00"},{"$f":"Time!MIN$22","v":"00:00:00"},{"$f":"Time!MIO$22","v":"00:00:00"},{"$f":"Time!MIP$22","v":"00:00:00"},{"$f":"Time!MIQ$22","v":"00:00:00"},{"$f":"Time!MIR$22","v":"00:00:00"},{"$f":"Time!MIS$22","v":"00:00:00"},{"$f":"Time!MIT$22","v":"00:00:00"},{"$f":"Time!MIU$22","v":"00:00:00"},{"$f":"Time!MIV$22","v":"00:00:00"},{"$f":"Time!MIW$22","v":"00:00:00"},{"$f":"Time!MIX$22","v":"00:00:00"},{"$f":"Time!MIY$22","v":"00:00:00"},{"$f":"Time!MIZ$22","v":"00:00:00"},{"$f":"Time!MJA$22","v":"00:00:00"},{"$f":"Time!MJB$22","v":"00:00:00"},{"$f":"Time!MJC$22","v":"00:00:00"},{"$f":"Time!MJD$22","v":"00:00:00"},{"$f":"Time!MJE$22","v":"00:00:00"},{"$f":"Time!MJF$22","v":"00:00:00"},{"$f":"Time!MJG$22","v":"00:00:00"},{"$f":"Time!MJH$22","v":"00:00:00"},{"$f":"Time!MJI$22","v":"00:00:00"},{"$f":"Time!MJJ$22","v":"00:00:00"},{"$f":"Time!MJK$22","v":"00:00:00"},{"$f":"Time!MJL$22","v":"00:00:00"},{"$f":"Time!MJM$22","v":"00:00:00"},{"$f":"Time!MJN$22","v":"00:00:00"},{"$f":"Time!MJO$22","v":"00:00:00"},{"$f":"Time!MJP$22","v":"00:00:00"},{"$f":"Time!MJQ$22","v":"00:00:00"},{"$f":"Time!MJR$22","v":"00:00:00"},{"$f":"Time!MJS$22","v":"00:00:00"},{"$f":"Time!MJT$22","v":"00:00:00"},{"$f":"Time!MJU$22","v":"00:00:00"},{"$f":"Time!MJV$22","v":"00:00:00"},{"$f":"Time!MJW$22","v":"00:00:00"},{"$f":"Time!MJX$22","v":"00:00:00"},{"$f":"Time!MJY$22","v":"00:00:00"},{"$f":"Time!MJZ$22","v":"00:00:00"},{"$f":"Time!MKA$22","v":"00:00:00"},{"$f":"Time!MKB$22","v":"00:00:00"},{"$f":"Time!MKC$22","v":"00:00:00"},{"$f":"Time!MKD$22","v":"00:00:00"},{"$f":"Time!MKE$22","v":"00:00:00"},{"$f":"Time!MKF$22","v":"00:00:00"},{"$f":"Time!MKG$22","v":"00:00:00"},{"$f":"Time!MKH$22","v":"00:00:00"},{"$f":"Time!MKI$22","v":"00:00:00"},{"$f":"Time!MKJ$22","v":"00:00:00"},{"$f":"Time!MKK$22","v":"00:00:00"},{"$f":"Time!MKL$22","v":"00:00:00"},{"$f":"Time!MKM$22","v":"00:00:00"},{"$f":"Time!MKN$22","v":"00:00:00"},{"$f":"Time!MKO$22","v":"00:00:00"},{"$f":"Time!MKP$22","v":"00:00:00"},{"$f":"Time!MKQ$22","v":"00:00:00"},{"$f":"Time!MKR$22","v":"00:00:00"},{"$f":"Time!MKS$22","v":"00:00:00"},{"$f":"Time!MKT$22","v":"00:00:00"},{"$f":"Time!MKU$22","v":"00:00:00"},{"$f":"Time!MKV$22","v":"00:00:00"},{"$f":"Time!MKW$22","v":"00:00:00"},{"$f":"Time!MKX$22","v":"00:00:00"},{"$f":"Time!MKY$22","v":"00:00:00"},{"$f":"Time!MKZ$22","v":"00:00:00"},{"$f":"Time!MLA$22","v":"00:00:00"},{"$f":"Time!MLB$22","v":"00:00:00"},{"$f":"Time!MLC$22","v":"00:00:00"},{"$f":"Time!MLD$22","v":"00:00:00"},{"$f":"Time!MLE$22","v":"00:00:00"},{"$f":"Time!MLF$22","v":"00:00:00"},{"$f":"Time!MLG$22","v":"00:00:00"},{"$f":"Time!MLH$22","v":"00:00:00"},{"$f":"Time!MLI$22","v":"00:00:00"},{"$f":"Time!MLJ$22","v":"00:00:00"},{"$f":"Time!MLK$22","v":"00:00:00"},{"$f":"Time!MLL$22","v":"00:00:00"},{"$f":"Time!MLM$22","v":"00:00:00"},{"$f":"Time!MLN$22","v":"00:00:00"},{"$f":"Time!MLO$22","v":"00:00:00"},{"$f":"Time!MLP$22","v":"00:00:00"},{"$f":"Time!MLQ$22","v":"00:00:00"},{"$f":"Time!MLR$22","v":"00:00:00"},{"$f":"Time!MLS$22","v":"00:00:00"},{"$f":"Time!MLT$22","v":"00:00:00"},{"$f":"Time!MLU$22","v":"00:00:00"},{"$f":"Time!MLV$22","v":"00:00:00"},{"$f":"Time!MLW$22","v":"00:00:00"},{"$f":"Time!MLX$22","v":"00:00:00"},{"$f":"Time!MLY$22","v":"00:00:00"},{"$f":"Time!MLZ$22","v":"00:00:00"},{"$f":"Time!MMA$22","v":"00:00:00"},{"$f":"Time!MMB$22","v":"00:00:00"},{"$f":"Time!MMC$22","v":"00:00:00"},{"$f":"Time!MMD$22","v":"00:00:00"},{"$f":"Time!MME$22","v":"00:00:00"},{"$f":"Time!MMF$22","v":"00:00:00"},{"$f":"Time!MMG$22","v":"00:00:00"},{"$f":"Time!MMH$22","v":"00:00:00"},{"$f":"Time!MMI$22","v":"00:00:00"},{"$f":"Time!MMJ$22","v":"00:00:00"},{"$f":"Time!MMK$22","v":"00:00:00"},{"$f":"Time!MML$22","v":"00:00:00"},{"$f":"Time!MMM$22","v":"00:00:00"},{"$f":"Time!MMN$22","v":"00:00:00"},{"$f":"Time!MMO$22","v":"00:00:00"},{"$f":"Time!MMP$22","v":"00:00:00"},{"$f":"Time!MMQ$22","v":"00:00:00"},{"$f":"Time!MMR$22","v":"00:00:00"},{"$f":"Time!MMS$22","v":"00:00:00"},{"$f":"Time!MMT$22","v":"00:00:00"},{"$f":"Time!MMU$22","v":"00:00:00"},{"$f":"Time!MMV$22","v":"00:00:00"},{"$f":"Time!MMW$22","v":"00:00:00"},{"$f":"Time!MMX$22","v":"00:00:00"},{"$f":"Time!MMY$22","v":"00:00:00"},{"$f":"Time!MMZ$22","v":"00:00:00"},{"$f":"Time!MNA$22","v":"00:00:00"},{"$f":"Time!MNB$22","v":"00:00:00"},{"$f":"Time!MNC$22","v":"00:00:00"},{"$f":"Time!MND$22","v":"00:00:00"},{"$f":"Time!MNE$22","v":"00:00:00"},{"$f":"Time!MNF$22","v":"00:00:00"},{"$f":"Time!MNG$22","v":"00:00:00"},{"$f":"Time!MNH$22","v":"00:00:00"},{"$f":"Time!MNI$22","v":"00:00:00"},{"$f":"Time!MNJ$22","v":"00:00:00"},{"$f":"Time!MNK$22","v":"00:00:00"},{"$f":"Time!MNL$22","v":"00:00:00"},{"$f":"Time!MNM$22","v":"00:00:00"},{"$f":"Time!MNN$22","v":"00:00:00"},{"$f":"Time!MNO$22","v":"00:00:00"},{"$f":"Time!MNP$22","v":"00:00:00"},{"$f":"Time!MNQ$22","v":"00:00:00"},{"$f":"Time!MNR$22","v":"00:00:00"},{"$f":"Time!MNS$22","v":"00:00:00"},{"$f":"Time!MNT$22","v":"00:00:00"},{"$f":"Time!MNU$22","v":"00:00:00"},{"$f":"Time!MNV$22","v":"00:00:00"},{"$f":"Time!MNW$22","v":"00:00:00"},{"$f":"Time!MNX$22","v":"00:00:00"},{"$f":"Time!MNY$22","v":"00:00:00"},{"$f":"Time!MNZ$22","v":"00:00:00"},{"$f":"Time!MOA$22","v":"00:00:00"},{"$f":"Time!MOB$22","v":"00:00:00"},{"$f":"Time!MOC$22","v":"00:00:00"},{"$f":"Time!MOD$22","v":"00:00:00"},{"$f":"Time!MOE$22","v":"00:00:00"},{"$f":"Time!MOF$22","v":"00:00:00"},{"$f":"Time!MOG$22","v":"00:00:00"},{"$f":"Time!MOH$22","v":"00:00:00"},{"$f":"Time!MOI$22","v":"00:00:00"},{"$f":"Time!MOJ$22","v":"00:00:00"},{"$f":"Time!MOK$22","v":"00:00:00"},{"$f":"Time!MOL$22","v":"00:00:00"},{"$f":"Time!MOM$22","v":"00:00:00"},{"$f":"Time!MON$22","v":"00:00:00"},{"$f":"Time!MOO$22","v":"00:00:00"},{"$f":"Time!MOP$22","v":"00:00:00"},{"$f":"Time!MOQ$22","v":"00:00:00"},{"$f":"Time!MOR$22","v":"00:00:00"},{"$f":"Time!MOS$22","v":"00:00:00"},{"$f":"Time!MOT$22","v":"00:00:00"},{"$f":"Time!MOU$22","v":"00:00:00"},{"$f":"Time!MOV$22","v":"00:00:00"},{"$f":"Time!MOW$22","v":"00:00:00"},{"$f":"Time!MOX$22","v":"00:00:00"},{"$f":"Time!MOY$22","v":"00:00:00"},{"$f":"Time!MOZ$22","v":"00:00:00"},{"$f":"Time!MPA$22","v":"00:00:00"},{"$f":"Time!MPB$22","v":"00:00:00"},{"$f":"Time!MPC$22","v":"00:00:00"},{"$f":"Time!MPD$22","v":"00:00:00"},{"$f":"Time!MPE$22","v":"00:00:00"},{"$f":"Time!MPF$22","v":"00:00:00"},{"$f":"Time!MPG$22","v":"00:00:00"},{"$f":"Time!MPH$22","v":"00:00:00"},{"$f":"Time!MPI$22","v":"00:00:00"},{"$f":"Time!MPJ$22","v":"00:00:00"},{"$f":"Time!MPK$22","v":"00:00:00"},{"$f":"Time!MPL$22","v":"00:00:00"},{"$f":"Time!MPM$22","v":"00:00:00"},{"$f":"Time!MPN$22","v":"00:00:00"},{"$f":"Time!MPO$22","v":"00:00:00"},{"$f":"Time!MPP$22","v":"00:00:00"},{"$f":"Time!MPQ$22","v":"00:00:00"},{"$f":"Time!MPR$22","v":"00:00:00"},{"$f":"Time!MPS$22","v":"00:00:00"},{"$f":"Time!MPT$22","v":"00:00:00"},{"$f":"Time!MPU$22","v":"00:00:00"},{"$f":"Time!MPV$22","v":"00:00:00"},{"$f":"Time!MPW$22","v":"00:00:00"},{"$f":"Time!MPX$22","v":"00:00:00"},{"$f":"Time!MPY$22","v":"00:00:00"},{"$f":"Time!MPZ$22","v":"00:00:00"},{"$f":"Time!MQA$22","v":"00:00:00"},{"$f":"Time!MQB$22","v":"00:00:00"},{"$f":"Time!MQC$22","v":"00:00:00"},{"$f":"Time!MQD$22","v":"00:00:00"},{"$f":"Time!MQE$22","v":"00:00:00"},{"$f":"Time!MQF$22","v":"00:00:00"},{"$f":"Time!MQG$22","v":"00:00:00"},{"$f":"Time!MQH$22","v":"00:00:00"},{"$f":"Time!MQI$22","v":"00:00:00"},{"$f":"Time!MQJ$22","v":"00:00:00"},{"$f":"Time!MQK$22","v":"00:00:00"},{"$f":"Time!MQL$22","v":"00:00:00"},{"$f":"Time!MQM$22","v":"00:00:00"},{"$f":"Time!MQN$22","v":"00:00:00"},{"$f":"Time!MQO$22","v":"00:00:00"},{"$f":"Time!MQP$22","v":"00:00:00"},{"$f":"Time!MQQ$22","v":"00:00:00"},{"$f":"Time!MQR$22","v":"00:00:00"},{"$f":"Time!MQS$22","v":"00:00:00"},{"$f":"Time!MQT$22","v":"00:00:00"},{"$f":"Time!MQU$22","v":"00:00:00"},{"$f":"Time!MQV$22","v":"00:00:00"},{"$f":"Time!MQW$22","v":"00:00:00"},{"$f":"Time!MQX$22","v":"00:00:00"},{"$f":"Time!MQY$22","v":"00:00:00"},{"$f":"Time!MQZ$22","v":"00:00:00"},{"$f":"Time!MRA$22","v":"00:00:00"},{"$f":"Time!MRB$22","v":"00:00:00"},{"$f":"Time!MRC$22","v":"00:00:00"},{"$f":"Time!MRD$22","v":"00:00:00"},{"$f":"Time!MRE$22","v":"00:00:00"},{"$f":"Time!MRF$22","v":"00:00:00"},{"$f":"Time!MRG$22","v":"00:00:00"},{"$f":"Time!MRH$22","v":"00:00:00"},{"$f":"Time!MRI$22","v":"00:00:00"},{"$f":"Time!MRJ$22","v":"00:00:00"},{"$f":"Time!MRK$22","v":"00:00:00"},{"$f":"Time!MRL$22","v":"00:00:00"},{"$f":"Time!MRM$22","v":"00:00:00"},{"$f":"Time!MRN$22","v":"00:00:00"},{"$f":"Time!MRO$22","v":"00:00:00"},{"$f":"Time!MRP$22","v":"00:00:00"},{"$f":"Time!MRQ$22","v":"00:00:00"},{"$f":"Time!MRR$22","v":"00:00:00"},{"$f":"Time!MRS$22","v":"00:00:00"},{"$f":"Time!MRT$22","v":"00:00:00"},{"$f":"Time!MRU$22","v":"00:00:00"},{"$f":"Time!MRV$22","v":"00:00:00"},{"$f":"Time!MRW$22","v":"00:00:00"},{"$f":"Time!MRX$22","v":"00:00:00"},{"$f":"Time!MRY$22","v":"00:00:00"},{"$f":"Time!MRZ$22","v":"00:00:00"},{"$f":"Time!MSA$22","v":"00:00:00"},{"$f":"Time!MSB$22","v":"00:00:00"},{"$f":"Time!MSC$22","v":"00:00:00"},{"$f":"Time!MSD$22","v":"00:00:00"},{"$f":"Time!MSE$22","v":"00:00:00"},{"$f":"Time!MSF$22","v":"00:00:00"},{"$f":"Time!MSG$22","v":"00:00:00"},{"$f":"Time!MSH$22","v":"00:00:00"},{"$f":"Time!MSI$22","v":"00:00:00"},{"$f":"Time!MSJ$22","v":"00:00:00"},{"$f":"Time!MSK$22","v":"00:00:00"},{"$f":"Time!MSL$22","v":"00:00:00"},{"$f":"Time!MSM$22","v":"00:00:00"},{"$f":"Time!MSN$22","v":"00:00:00"},{"$f":"Time!MSO$22","v":"00:00:00"},{"$f":"Time!MSP$22","v":"00:00:00"},{"$f":"Time!MSQ$22","v":"00:00:00"},{"$f":"Time!MSR$22","v":"00:00:00"},{"$f":"Time!MSS$22","v":"00:00:00"},{"$f":"Time!MST$22","v":"00:00:00"},{"$f":"Time!MSU$22","v":"00:00:00"},{"$f":"Time!MSV$22","v":"00:00:00"},{"$f":"Time!MSW$22","v":"00:00:00"},{"$f":"Time!MSX$22","v":"00:00:00"},{"$f":"Time!MSY$22","v":"00:00:00"},{"$f":"Time!MSZ$22","v":"00:00:00"},{"$f":"Time!MTA$22","v":"00:00:00"},{"$f":"Time!MTB$22","v":"00:00:00"},{"$f":"Time!MTC$22","v":"00:00:00"},{"$f":"Time!MTD$22","v":"00:00:00"},{"$f":"Time!MTE$22","v":"00:00:00"},{"$f":"Time!MTF$22","v":"00:00:00"},{"$f":"Time!MTG$22","v":"00:00:00"},{"$f":"Time!MTH$22","v":"00:00:00"},{"$f":"Time!MTI$22","v":"00:00:00"},{"$f":"Time!MTJ$22","v":"00:00:00"},{"$f":"Time!MTK$22","v":"00:00:00"},{"$f":"Time!MTL$22","v":"00:00:00"},{"$f":"Time!MTM$22","v":"00:00:00"},{"$f":"Time!MTN$22","v":"00:00:00"},{"$f":"Time!MTO$22","v":"00:00:00"},{"$f":"Time!MTP$22","v":"00:00:00"},{"$f":"Time!MTQ$22","v":"00:00:00"},{"$f":"Time!MTR$22","v":"00:00:00"},{"$f":"Time!MTS$22","v":"00:00:00"},{"$f":"Time!MTT$22","v":"00:00:00"},{"$f":"Time!MTU$22","v":"00:00:00"},{"$f":"Time!MTV$22","v":"00:00:00"},{"$f":"Time!MTW$22","v":"00:00:00"},{"$f":"Time!MTX$22","v":"00:00:00"},{"$f":"Time!MTY$22","v":"00:00:00"},{"$f":"Time!MTZ$22","v":"00:00:00"},{"$f":"Time!MUA$22","v":"00:00:00"},{"$f":"Time!MUB$22","v":"00:00:00"},{"$f":"Time!MUC$22","v":"00:00:00"},{"$f":"Time!MUD$22","v":"00:00:00"},{"$f":"Time!MUE$22","v":"00:00:00"},{"$f":"Time!MUF$22","v":"00:00:00"},{"$f":"Time!MUG$22","v":"00:00:00"},{"$f":"Time!MUH$22","v":"00:00:00"},{"$f":"Time!MUI$22","v":"00:00:00"},{"$f":"Time!MUJ$22","v":"00:00:00"},{"$f":"Time!MUK$22","v":"00:00:00"},{"$f":"Time!MUL$22","v":"00:00:00"},{"$f":"Time!MUM$22","v":"00:00:00"},{"$f":"Time!MUN$22","v":"00:00:00"},{"$f":"Time!MUO$22","v":"00:00:00"},{"$f":"Time!MUP$22","v":"00:00:00"},{"$f":"Time!MUQ$22","v":"00:00:00"},{"$f":"Time!MUR$22","v":"00:00:00"},{"$f":"Time!MUS$22","v":"00:00:00"},{"$f":"Time!MUT$22","v":"00:00:00"},{"$f":"Time!MUU$22","v":"00:00:00"},{"$f":"Time!MUV$22","v":"00:00:00"},{"$f":"Time!MUW$22","v":"00:00:00"},{"$f":"Time!MUX$22","v":"00:00:00"},{"$f":"Time!MUY$22","v":"00:00:00"},{"$f":"Time!MUZ$22","v":"00:00:00"},{"$f":"Time!MVA$22","v":"00:00:00"},{"$f":"Time!MVB$22","v":"00:00:00"},{"$f":"Time!MVC$22","v":"00:00:00"},{"$f":"Time!MVD$22","v":"00:00:00"},{"$f":"Time!MVE$22","v":"00:00:00"},{"$f":"Time!MVF$22","v":"00:00:00"},{"$f":"Time!MVG$22","v":"00:00:00"},{"$f":"Time!MVH$22","v":"00:00:00"},{"$f":"Time!MVI$22","v":"00:00:00"},{"$f":"Time!MVJ$22","v":"00:00:00"},{"$f":"Time!MVK$22","v":"00:00:00"},{"$f":"Time!MVL$22","v":"00:00:00"},{"$f":"Time!MVM$22","v":"00:00:00"},{"$f":"Time!MVN$22","v":"00:00:00"},{"$f":"Time!MVO$22","v":"00:00:00"},{"$f":"Time!MVP$22","v":"00:00:00"},{"$f":"Time!MVQ$22","v":"00:00:00"},{"$f":"Time!MVR$22","v":"00:00:00"},{"$f":"Time!MVS$22","v":"00:00:00"},{"$f":"Time!MVT$22","v":"00:00:00"},{"$f":"Time!MVU$22","v":"00:00:00"},{"$f":"Time!MVV$22","v":"00:00:00"},{"$f":"Time!MVW$22","v":"00:00:00"},{"$f":"Time!MVX$22","v":"00:00:00"},{"$f":"Time!MVY$22","v":"00:00:00"},{"$f":"Time!MVZ$22","v":"00:00:00"},{"$f":"Time!MWA$22","v":"00:00:00"},{"$f":"Time!MWB$22","v":"00:00:00"},{"$f":"Time!MWC$22","v":"00:00:00"},{"$f":"Time!MWD$22","v":"00:00:00"},{"$f":"Time!MWE$22","v":"00:00:00"},{"$f":"Time!MWF$22","v":"00:00:00"},{"$f":"Time!MWG$22","v":"00:00:00"},{"$f":"Time!MWH$22","v":"00:00:00"},{"$f":"Time!MWI$22","v":"00:00:00"},{"$f":"Time!MWJ$22","v":"00:00:00"},{"$f":"Time!MWK$22","v":"00:00:00"},{"$f":"Time!MWL$22","v":"00:00:00"},{"$f":"Time!MWM$22","v":"00:00:00"},{"$f":"Time!MWN$22","v":"00:00:00"},{"$f":"Time!MWO$22","v":"00:00:00"},{"$f":"Time!MWP$22","v":"00:00:00"},{"$f":"Time!MWQ$22","v":"00:00:00"},{"$f":"Time!MWR$22","v":"00:00:00"},{"$f":"Time!MWS$22","v":"00:00:00"},{"$f":"Time!MWT$22","v":"00:00:00"},{"$f":"Time!MWU$22","v":"00:00:00"},{"$f":"Time!MWV$22","v":"00:00:00"},{"$f":"Time!MWW$22","v":"00:00:00"},{"$f":"Time!MWX$22","v":"00:00:00"},{"$f":"Time!MWY$22","v":"00:00:00"},{"$f":"Time!MWZ$22","v":"00:00:00"},{"$f":"Time!MXA$22","v":"00:00:00"},{"$f":"Time!MXB$22","v":"00:00:00"},{"$f":"Time!MXC$22","v":"00:00:00"},{"$f":"Time!MXD$22","v":"00:00:00"},{"$f":"Time!MXE$22","v":"00:00:00"},{"$f":"Time!MXF$22","v":"00:00:00"},{"$f":"Time!MXG$22","v":"00:00:00"},{"$f":"Time!MXH$22","v":"00:00:00"},{"$f":"Time!MXI$22","v":"00:00:00"},{"$f":"Time!MXJ$22","v":"00:00:00"},{"$f":"Time!MXK$22","v":"00:00:00"},{"$f":"Time!MXL$22","v":"00:00:00"},{"$f":"Time!MXM$22","v":"00:00:00"},{"$f":"Time!MXN$22","v":"00:00:00"},{"$f":"Time!MXO$22","v":"00:00:00"},{"$f":"Time!MXP$22","v":"00:00:00"},{"$f":"Time!MXQ$22","v":"00:00:00"},{"$f":"Time!MXR$22","v":"00:00:00"},{"$f":"Time!MXS$22","v":"00:00:00"},{"$f":"Time!MXT$22","v":"00:00:00"},{"$f":"Time!MXU$22","v":"00:00:00"},{"$f":"Time!MXV$22","v":"00:00:00"},{"$f":"Time!MXW$22","v":"00:00:00"},{"$f":"Time!MXX$22","v":"00:00:00"},{"$f":"Time!MXY$22","v":"00:00:00"},{"$f":"Time!MXZ$22","v":"00:00:00"},{"$f":"Time!MYA$22","v":"00:00:00"},{"$f":"Time!MYB$22","v":"00:00:00"},{"$f":"Time!MYC$22","v":"00:00:00"},{"$f":"Time!MYD$22","v":"00:00:00"},{"$f":"Time!MYE$22","v":"00:00:00"},{"$f":"Time!MYF$22","v":"00:00:00"},{"$f":"Time!MYG$22","v":"00:00:00"},{"$f":"Time!MYH$22","v":"00:00:00"},{"$f":"Time!MYI$22","v":"00:00:00"},{"$f":"Time!MYJ$22","v":"00:00:00"},{"$f":"Time!MYK$22","v":"00:00:00"},{"$f":"Time!MYL$22","v":"00:00:00"},{"$f":"Time!MYM$22","v":"00:00:00"},{"$f":"Time!MYN$22","v":"00:00:00"},{"$f":"Time!MYO$22","v":"00:00:00"},{"$f":"Time!MYP$22","v":"00:00:00"},{"$f":"Time!MYQ$22","v":"00:00:00"},{"$f":"Time!MYR$22","v":"00:00:00"},{"$f":"Time!MYS$22","v":"00:00:00"},{"$f":"Time!MYT$22","v":"00:00:00"},{"$f":"Time!MYU$22","v":"00:00:00"},{"$f":"Time!MYV$22","v":"00:00:00"},{"$f":"Time!MYW$22","v":"00:00:00"},{"$f":"Time!MYX$22","v":"00:00:00"},{"$f":"Time!MYY$22","v":"00:00:00"},{"$f":"Time!MYZ$22","v":"00:00:00"},{"$f":"Time!MZA$22","v":"00:00:00"},{"$f":"Time!MZB$22","v":"00:00:00"},{"$f":"Time!MZC$22","v":"00:00:00"},{"$f":"Time!MZD$22","v":"00:00:00"},{"$f":"Time!MZE$22","v":"00:00:00"},{"$f":"Time!MZF$22","v":"00:00:00"},{"$f":"Time!MZG$22","v":"00:00:00"},{"$f":"Time!MZH$22","v":"00:00:00"},{"$f":"Time!MZI$22","v":"00:00:00"},{"$f":"Time!MZJ$22","v":"00:00:00"},{"$f":"Time!MZK$22","v":"00:00:00"},{"$f":"Time!MZL$22","v":"00:00:00"},{"$f":"Time!MZM$22","v":"00:00:00"},{"$f":"Time!MZN$22","v":"00:00:00"},{"$f":"Time!MZO$22","v":"00:00:00"},{"$f":"Time!MZP$22","v":"00:00:00"},{"$f":"Time!MZQ$22","v":"00:00:00"},{"$f":"Time!MZR$22","v":"00:00:00"},{"$f":"Time!MZS$22","v":"00:00:00"},{"$f":"Time!MZT$22","v":"00:00:00"},{"$f":"Time!MZU$22","v":"00:00:00"},{"$f":"Time!MZV$22","v":"00:00:00"},{"$f":"Time!MZW$22","v":"00:00:00"},{"$f":"Time!MZX$22","v":"00:00:00"},{"$f":"Time!MZY$22","v":"00:00:00"},{"$f":"Time!MZZ$22","v":"00:00:00"},{"$f":"Time!NAA$22","v":"00:00:00"},{"$f":"Time!NAB$22","v":"00:00:00"},{"$f":"Time!NAC$22","v":"00:00:00"},{"$f":"Time!NAD$22","v":"00:00:00"},{"$f":"Time!NAE$22","v":"00:00:00"},{"$f":"Time!NAF$22","v":"00:00:00"},{"$f":"Time!NAG$22","v":"00:00:00"},{"$f":"Time!NAH$22","v":"00:00:00"},{"$f":"Time!NAI$22","v":"00:00:00"},{"$f":"Time!NAJ$22","v":"00:00:00"},{"$f":"Time!NAK$22","v":"00:00:00"},{"$f":"Time!NAL$22","v":"00:00:00"},{"$f":"Time!NAM$22","v":"00:00:00"},{"$f":"Time!NAN$22","v":"00:00:00"},{"$f":"Time!NAO$22","v":"00:00:00"},{"$f":"Time!NAP$22","v":"00:00:00"},{"$f":"Time!NAQ$22","v":"00:00:00"},{"$f":"Time!NAR$22","v":"00:00:00"},{"$f":"Time!NAS$22","v":"00:00:00"},{"$f":"Time!NAT$22","v":"00:00:00"},{"$f":"Time!NAU$22","v":"00:00:00"},{"$f":"Time!NAV$22","v":"00:00:00"},{"$f":"Time!NAW$22","v":"00:00:00"},{"$f":"Time!NAX$22","v":"00:00:00"},{"$f":"Time!NAY$22","v":"00:00:00"},{"$f":"Time!NAZ$22","v":"00:00:00"},{"$f":"Time!NBA$22","v":"00:00:00"},{"$f":"Time!NBB$22","v":"00:00:00"},{"$f":"Time!NBC$22","v":"00:00:00"},{"$f":"Time!NBD$22","v":"00:00:00"},{"$f":"Time!NBE$22","v":"00:00:00"},{"$f":"Time!NBF$22","v":"00:00:00"},{"$f":"Time!NBG$22","v":"00:00:00"},{"$f":"Time!NBH$22","v":"00:00:00"},{"$f":"Time!NBI$22","v":"00:00:00"},{"$f":"Time!NBJ$22","v":"00:00:00"},{"$f":"Time!NBK$22","v":"00:00:00"},{"$f":"Time!NBL$22","v":"00:00:00"},{"$f":"Time!NBM$22","v":"00:00:00"},{"$f":"Time!NBN$22","v":"00:00:00"},{"$f":"Time!NBO$22","v":"00:00:00"},{"$f":"Time!NBP$22","v":"00:00:00"},{"$f":"Time!NBQ$22","v":"00:00:00"},{"$f":"Time!NBR$22","v":"00:00:00"},{"$f":"Time!NBS$22","v":"00:00:00"},{"$f":"Time!NBT$22","v":"00:00:00"},{"$f":"Time!NBU$22","v":"00:00:00"},{"$f":"Time!NBV$22","v":"00:00:00"},{"$f":"Time!NBW$22","v":"00:00:00"},{"$f":"Time!NBX$22","v":"00:00:00"},{"$f":"Time!NBY$22","v":"00:00:00"},{"$f":"Time!NBZ$22","v":"00:00:00"},{"$f":"Time!NCA$22","v":"00:00:00"},{"$f":"Time!NCB$22","v":"00:00:00"},{"$f":"Time!NCC$22","v":"00:00:00"},{"$f":"Time!NCD$22","v":"00:00:00"},{"$f":"Time!NCE$22","v":"00:00:00"},{"$f":"Time!NCF$22","v":"00:00:00"},{"$f":"Time!NCG$22","v":"00:00:00"},{"$f":"Time!NCH$22","v":"00:00:00"},{"$f":"Time!NCI$22","v":"00:00:00"},{"$f":"Time!NCJ$22","v":"00:00:00"},{"$f":"Time!NCK$22","v":"00:00:00"},{"$f":"Time!NCL$22","v":"00:00:00"},{"$f":"Time!NCM$22","v":"00:00:00"},{"$f":"Time!NCN$22","v":"00:00:00"},{"$f":"Time!NCO$22","v":"00:00:00"},{"$f":"Time!NCP$22","v":"00:00:00"},{"$f":"Time!NCQ$22","v":"00:00:00"},{"$f":"Time!NCR$22","v":"00:00:00"},{"$f":"Time!NCS$22","v":"00:00:00"},{"$f":"Time!NCT$22","v":"00:00:00"},{"$f":"Time!NCU$22","v":"00:00:00"},{"$f":"Time!NCV$22","v":"00:00:00"},{"$f":"Time!NCW$22","v":"00:00:00"},{"$f":"Time!NCX$22","v":"00:00:00"},{"$f":"Time!NCY$22","v":"00:00:00"},{"$f":"Time!NCZ$22","v":"00:00:00"},{"$f":"Time!NDA$22","v":"00:00:00"},{"$f":"Time!NDB$22","v":"00:00:00"},{"$f":"Time!NDC$22","v":"00:00:00"},{"$f":"Time!NDD$22","v":"00:00:00"},{"$f":"Time!NDE$22","v":"00:00:00"},{"$f":"Time!NDF$22","v":"00:00:00"},{"$f":"Time!NDG$22","v":"00:00:00"},{"$f":"Time!NDH$22","v":"00:00:00"},{"$f":"Time!NDI$22","v":"00:00:00"},{"$f":"Time!NDJ$22","v":"00:00:00"},{"$f":"Time!NDK$22","v":"00:00:00"},{"$f":"Time!NDL$22","v":"00:00:00"},{"$f":"Time!NDM$22","v":"00:00:00"},{"$f":"Time!NDN$22","v":"00:00:00"},{"$f":"Time!NDO$22","v":"00:00:00"},{"$f":"Time!NDP$22","v":"00:00:00"},{"$f":"Time!NDQ$22","v":"00:00:00"},{"$f":"Time!NDR$22","v":"00:00:00"},{"$f":"Time!NDS$22","v":"00:00:00"},{"$f":"Time!NDT$22","v":"00:00:00"},{"$f":"Time!NDU$22","v":"00:00:00"},{"$f":"Time!NDV$22","v":"00:00:00"},{"$f":"Time!NDW$22","v":"00:00:00"},{"$f":"Time!NDX$22","v":"00:00:00"},{"$f":"Time!NDY$22","v":"00:00:00"},{"$f":"Time!NDZ$22","v":"00:00:00"},{"$f":"Time!NEA$22","v":"00:00:00"},{"$f":"Time!NEB$22","v":"00:00:00"},{"$f":"Time!NEC$22","v":"00:00:00"},{"$f":"Time!NED$22","v":"00:00:00"},{"$f":"Time!NEE$22","v":"00:00:00"},{"$f":"Time!NEF$22","v":"00:00:00"},{"$f":"Time!NEG$22","v":"00:00:00"},{"$f":"Time!NEH$22","v":"00:00:00"},{"$f":"Time!NEI$22","v":"00:00:00"},{"$f":"Time!NEJ$22","v":"00:00:00"},{"$f":"Time!NEK$22","v":"00:00:00"},{"$f":"Time!NEL$22","v":"00:00:00"},{"$f":"Time!NEM$22","v":"00:00:00"},{"$f":"Time!NEN$22","v":"00:00:00"},{"$f":"Time!NEO$22","v":"00:00:00"},{"$f":"Time!NEP$22","v":"00:00:00"},{"$f":"Time!NEQ$22","v":"00:00:00"},{"$f":"Time!NER$22","v":"00:00:00"},{"$f":"Time!NES$22","v":"00:00:00"},{"$f":"Time!NET$22","v":"00:00:00"},{"$f":"Time!NEU$22","v":"00:00:00"},{"$f":"Time!NEV$22","v":"00:00:00"},{"$f":"Time!NEW$22","v":"00:00:00"},{"$f":"Time!NEX$22","v":"00:00:00"},{"$f":"Time!NEY$22","v":"00:00:00"},{"$f":"Time!NEZ$22","v":"00:00:00"},{"$f":"Time!NFA$22","v":"00:00:00"},{"$f":"Time!NFB$22","v":"00:00:00"},{"$f":"Time!NFC$22","v":"00:00:00"},{"$f":"Time!NFD$22","v":"00:00:00"},{"$f":"Time!NFE$22","v":"00:00:00"},{"$f":"Time!NFF$22","v":"00:00:00"},{"$f":"Time!NFG$22","v":"00:00:00"},{"$f":"Time!NFH$22","v":"00:00:00"},{"$f":"Time!NFI$22","v":"00:00:00"},{"$f":"Time!NFJ$22","v":"00:00:00"},{"$f":"Time!NFK$22","v":"00:00:00"},{"$f":"Time!NFL$22","v":"00:00:00"},{"$f":"Time!NFM$22","v":"00:00:00"},{"$f":"Time!NFN$22","v":"00:00:00"},{"$f":"Time!NFO$22","v":"00:00:00"},{"$f":"Time!NFP$22","v":"00:00:00"},{"$f":"Time!NFQ$22","v":"00:00:00"},{"$f":"Time!NFR$22","v":"00:00:00"},{"$f":"Time!NFS$22","v":"00:00:00"},{"$f":"Time!NFT$22","v":"00:00:00"},{"$f":"Time!NFU$22","v":"00:00:00"},{"$f":"Time!NFV$22","v":"00:00:00"},{"$f":"Time!NFW$22","v":"00:00:00"},{"$f":"Time!NFX$22","v":"00:00:00"},{"$f":"Time!NFY$22","v":"00:00:00"},{"$f":"Time!NFZ$22","v":"00:00:00"},{"$f":"Time!NGA$22","v":"00:00:00"},{"$f":"Time!NGB$22","v":"00:00:00"},{"$f":"Time!NGC$22","v":"00:00:00"},{"$f":"Time!NGD$22","v":"00:00:00"},{"$f":"Time!NGE$22","v":"00:00:00"},{"$f":"Time!NGF$22","v":"00:00:00"},{"$f":"Time!NGG$22","v":"00:00:00"},{"$f":"Time!NGH$22","v":"00:00:00"},{"$f":"Time!NGI$22","v":"00:00:00"},{"$f":"Time!NGJ$22","v":"00:00:00"},{"$f":"Time!NGK$22","v":"00:00:00"},{"$f":"Time!NGL$22","v":"00:00:00"},{"$f":"Time!NGM$22","v":"00:00:00"},{"$f":"Time!NGN$22","v":"00:00:00"},{"$f":"Time!NGO$22","v":"00:00:00"},{"$f":"Time!NGP$22","v":"00:00:00"},{"$f":"Time!NGQ$22","v":"00:00:00"},{"$f":"Time!NGR$22","v":"00:00:00"},{"$f":"Time!NGS$22","v":"00:00:00"},{"$f":"Time!NGT$22","v":"00:00:00"},{"$f":"Time!NGU$22","v":"00:00:00"},{"$f":"Time!NGV$22","v":"00:00:00"},{"$f":"Time!NGW$22","v":"00:00:00"},{"$f":"Time!NGX$22","v":"00:00:00"},{"$f":"Time!NGY$22","v":"00:00:00"},{"$f":"Time!NGZ$22","v":"00:00:00"},{"$f":"Time!NHA$22","v":"00:00:00"},{"$f":"Time!NHB$22","v":"00:00:00"},{"$f":"Time!NHC$22","v":"00:00:00"},{"$f":"Time!NHD$22","v":"00:00:00"},{"$f":"Time!NHE$22","v":"00:00:00"},{"$f":"Time!NHF$22","v":"00:00:00"},{"$f":"Time!NHG$22","v":"00:00:00"},{"$f":"Time!NHH$22","v":"00:00:00"},{"$f":"Time!NHI$22","v":"00:00:00"},{"$f":"Time!NHJ$22","v":"00:00:00"},{"$f":"Time!NHK$22","v":"00:00:00"},{"$f":"Time!NHL$22","v":"00:00:00"},{"$f":"Time!NHM$22","v":"00:00:00"},{"$f":"Time!NHN$22","v":"00:00:00"},{"$f":"Time!NHO$22","v":"00:00:00"},{"$f":"Time!NHP$22","v":"00:00:00"},{"$f":"Time!NHQ$22","v":"00:00:00"},{"$f":"Time!NHR$22","v":"00:00:00"},{"$f":"Time!NHS$22","v":"00:00:00"},{"$f":"Time!NHT$22","v":"00:00:00"},{"$f":"Time!NHU$22","v":"00:00:00"},{"$f":"Time!NHV$22","v":"00:00:00"},{"$f":"Time!NHW$22","v":"00:00:00"},{"$f":"Time!NHX$22","v":"00:00:00"},{"$f":"Time!NHY$22","v":"00:00:00"},{"$f":"Time!NHZ$22","v":"00:00:00"},{"$f":"Time!NIA$22","v":"00:00:00"},{"$f":"Time!NIB$22","v":"00:00:00"},{"$f":"Time!NIC$22","v":"00:00:00"},{"$f":"Time!NID$22","v":"00:00:00"},{"$f":"Time!NIE$22","v":"00:00:00"},{"$f":"Time!NIF$22","v":"00:00:00"},{"$f":"Time!NIG$22","v":"00:00:00"},{"$f":"Time!NIH$22","v":"00:00:00"},{"$f":"Time!NII$22","v":"00:00:00"},{"$f":"Time!NIJ$22","v":"00:00:00"},{"$f":"Time!NIK$22","v":"00:00:00"},{"$f":"Time!NIL$22","v":"00:00:00"},{"$f":"Time!NIM$22","v":"00:00:00"},{"$f":"Time!NIN$22","v":"00:00:00"},{"$f":"Time!NIO$22","v":"00:00:00"},{"$f":"Time!NIP$22","v":"00:00:00"},{"$f":"Time!NIQ$22","v":"00:00:00"},{"$f":"Time!NIR$22","v":"00:00:00"},{"$f":"Time!NIS$22","v":"00:00:00"},{"$f":"Time!NIT$22","v":"00:00:00"},{"$f":"Time!NIU$22","v":"00:00:00"},{"$f":"Time!NIV$22","v":"00:00:00"},{"$f":"Time!NIW$22","v":"00:00:00"},{"$f":"Time!NIX$22","v":"00:00:00"},{"$f":"Time!NIY$22","v":"00:00:00"},{"$f":"Time!NIZ$22","v":"00:00:00"},{"$f":"Time!NJA$22","v":"00:00:00"},{"$f":"Time!NJB$22","v":"00:00:00"},{"$f":"Time!NJC$22","v":"00:00:00"},{"$f":"Time!NJD$22","v":"00:00:00"},{"$f":"Time!NJE$22","v":"00:00:00"},{"$f":"Time!NJF$22","v":"00:00:00"},{"$f":"Time!NJG$22","v":"00:00:00"},{"$f":"Time!NJH$22","v":"00:00:00"},{"$f":"Time!NJI$22","v":"00:00:00"},{"$f":"Time!NJJ$22","v":"00:00:00"},{"$f":"Time!NJK$22","v":"00:00:00"},{"$f":"Time!NJL$22","v":"00:00:00"},{"$f":"Time!NJM$22","v":"00:00:00"},{"$f":"Time!NJN$22","v":"00:00:00"},{"$f":"Time!NJO$22","v":"00:00:00"},{"$f":"Time!NJP$22","v":"00:00:00"},{"$f":"Time!NJQ$22","v":"00:00:00"},{"$f":"Time!NJR$22","v":"00:00:00"},{"$f":"Time!NJS$22","v":"00:00:00"},{"$f":"Time!NJT$22","v":"00:00:00"},{"$f":"Time!NJU$22","v":"00:00:00"},{"$f":"Time!NJV$22","v":"00:00:00"},{"$f":"Time!NJW$22","v":"00:00:00"},{"$f":"Time!NJX$22","v":"00:00:00"},{"$f":"Time!NJY$22","v":"00:00:00"},{"$f":"Time!NJZ$22","v":"00:00:00"},{"$f":"Time!NKA$22","v":"00:00:00"},{"$f":"Time!NKB$22","v":"00:00:00"},{"$f":"Time!NKC$22","v":"00:00:00"},{"$f":"Time!NKD$22","v":"00:00:00"},{"$f":"Time!NKE$22","v":"00:00:00"},{"$f":"Time!NKF$22","v":"00:00:00"},{"$f":"Time!NKG$22","v":"00:00:00"},{"$f":"Time!NKH$22","v":"00:00:00"},{"$f":"Time!NKI$22","v":"00:00:00"},{"$f":"Time!NKJ$22","v":"00:00:00"},{"$f":"Time!NKK$22","v":"00:00:00"},{"$f":"Time!NKL$22","v":"00:00:00"},{"$f":"Time!NKM$22","v":"00:00:00"},{"$f":"Time!NKN$22","v":"00:00:00"},{"$f":"Time!NKO$22","v":"00:00:00"},{"$f":"Time!NKP$22","v":"00:00:00"},{"$f":"Time!NKQ$22","v":"00:00:00"},{"$f":"Time!NKR$22","v":"00:00:00"},{"$f":"Time!NKS$22","v":"00:00:00"},{"$f":"Time!NKT$22","v":"00:00:00"},{"$f":"Time!NKU$22","v":"00:00:00"},{"$f":"Time!NKV$22","v":"00:00:00"},{"$f":"Time!NKW$22","v":"00:00:00"},{"$f":"Time!NKX$22","v":"00:00:00"},{"$f":"Time!NKY$22","v":"00:00:00"},{"$f":"Time!NKZ$22","v":"00:00:00"},{"$f":"Time!NLA$22","v":"00:00:00"},{"$f":"Time!NLB$22","v":"00:00:00"},{"$f":"Time!NLC$22","v":"00:00:00"},{"$f":"Time!NLD$22","v":"00:00:00"},{"$f":"Time!NLE$22","v":"00:00:00"},{"$f":"Time!NLF$22","v":"00:00:00"},{"$f":"Time!NLG$22","v":"00:00:00"},{"$f":"Time!NLH$22","v":"00:00:00"},{"$f":"Time!NLI$22","v":"00:00:00"},{"$f":"Time!NLJ$22","v":"00:00:00"},{"$f":"Time!NLK$22","v":"00:00:00"},{"$f":"Time!NLL$22","v":"00:00:00"},{"$f":"Time!NLM$22","v":"00:00:00"},{"$f":"Time!NLN$22","v":"00:00:00"},{"$f":"Time!NLO$22","v":"00:00:00"},{"$f":"Time!NLP$22","v":"00:00:00"},{"$f":"Time!NLQ$22","v":"00:00:00"},{"$f":"Time!NLR$22","v":"00:00:00"},{"$f":"Time!NLS$22","v":"00:00:00"},{"$f":"Time!NLT$22","v":"00:00:00"},{"$f":"Time!NLU$22","v":"00:00:00"},{"$f":"Time!NLV$22","v":"00:00:00"},{"$f":"Time!NLW$22","v":"00:00:00"},{"$f":"Time!NLX$22","v":"00:00:00"},{"$f":"Time!NLY$22","v":"00:00:00"},{"$f":"Time!NLZ$22","v":"00:00:00"},{"$f":"Time!NMA$22","v":"00:00:00"},{"$f":"Time!NMB$22","v":"00:00:00"},{"$f":"Time!NMC$22","v":"00:00:00"},{"$f":"Time!NMD$22","v":"00:00:00"},{"$f":"Time!NME$22","v":"00:00:00"},{"$f":"Time!NMF$22","v":"00:00:00"},{"$f":"Time!NMG$22","v":"00:00:00"},{"$f":"Time!NMH$22","v":"00:00:00"},{"$f":"Time!NMI$22","v":"00:00:00"},{"$f":"Time!NMJ$22","v":"00:00:00"},{"$f":"Time!NMK$22","v":"00:00:00"},{"$f":"Time!NML$22","v":"00:00:00"},{"$f":"Time!NMM$22","v":"00:00:00"},{"$f":"Time!NMN$22","v":"00:00:00"},{"$f":"Time!NMO$22","v":"00:00:00"},{"$f":"Time!NMP$22","v":"00:00:00"},{"$f":"Time!NMQ$22","v":"00:00:00"},{"$f":"Time!NMR$22","v":"00:00:00"},{"$f":"Time!NMS$22","v":"00:00:00"},{"$f":"Time!NMT$22","v":"00:00:00"},{"$f":"Time!NMU$22","v":"00:00:00"},{"$f":"Time!NMV$22","v":"00:00:00"},{"$f":"Time!NMW$22","v":"00:00:00"},{"$f":"Time!NMX$22","v":"00:00:00"},{"$f":"Time!NMY$22","v":"00:00:00"},{"$f":"Time!NMZ$22","v":"00:00:00"},{"$f":"Time!NNA$22","v":"00:00:00"},{"$f":"Time!NNB$22","v":"00:00:00"},{"$f":"Time!NNC$22","v":"00:00:00"},{"$f":"Time!NND$22","v":"00:00:00"},{"$f":"Time!NNE$22","v":"00:00:00"},{"$f":"Time!NNF$22","v":"00:00:00"},{"$f":"Time!NNG$22","v":"00:00:00"},{"$f":"Time!NNH$22","v":"00:00:00"},{"$f":"Time!NNI$22","v":"00:00:00"},{"$f":"Time!NNJ$22","v":"00:00:00"},{"$f":"Time!NNK$22","v":"00:00:00"},{"$f":"Time!NNL$22","v":"00:00:00"},{"$f":"Time!NNM$22","v":"00:00:00"},{"$f":"Time!NNN$22","v":"00:00:00"},{"$f":"Time!NNO$22","v":"00:00:00"},{"$f":"Time!NNP$22","v":"00:00:00"},{"$f":"Time!NNQ$22","v":"00:00:00"},{"$f":"Time!NNR$22","v":"00:00:00"},{"$f":"Time!NNS$22","v":"00:00:00"},{"$f":"Time!NNT$22","v":"00:00:00"},{"$f":"Time!NNU$22","v":"00:00:00"},{"$f":"Time!NNV$22","v":"00:00:00"},{"$f":"Time!NNW$22","v":"00:00:00"},{"$f":"Time!NNX$22","v":"00:00:00"},{"$f":"Time!NNY$22","v":"00:00:00"},{"$f":"Time!NNZ$22","v":"00:00:00"},{"$f":"Time!NOA$22","v":"00:00:00"},{"$f":"Time!NOB$22","v":"00:00:00"},{"$f":"Time!NOC$22","v":"00:00:00"},{"$f":"Time!NOD$22","v":"00:00:00"},{"$f":"Time!NOE$22","v":"00:00:00"},{"$f":"Time!NOF$22","v":"00:00:00"},{"$f":"Time!NOG$22","v":"00:00:00"},{"$f":"Time!NOH$22","v":"00:00:00"},{"$f":"Time!NOI$22","v":"00:00:00"},{"$f":"Time!NOJ$22","v":"00:00:00"},{"$f":"Time!NOK$22","v":"00:00:00"},{"$f":"Time!NOL$22","v":"00:00:00"},{"$f":"Time!NOM$22","v":"00:00:00"},{"$f":"Time!NON$22","v":"00:00:00"},{"$f":"Time!NOO$22","v":"00:00:00"},{"$f":"Time!NOP$22","v":"00:00:00"},{"$f":"Time!NOQ$22","v":"00:00:00"},{"$f":"Time!NOR$22","v":"00:00:00"},{"$f":"Time!NOS$22","v":"00:00:00"},{"$f":"Time!NOT$22","v":"00:00:00"},{"$f":"Time!NOU$22","v":"00:00:00"},{"$f":"Time!NOV$22","v":"00:00:00"},{"$f":"Time!NOW$22","v":"00:00:00"},{"$f":"Time!NOX$22","v":"00:00:00"},{"$f":"Time!NOY$22","v":"00:00:00"},{"$f":"Time!NOZ$22","v":"00:00:00"},{"$f":"Time!NPA$22","v":"00:00:00"},{"$f":"Time!NPB$22","v":"00:00:00"},{"$f":"Time!NPC$22","v":"00:00:00"},{"$f":"Time!NPD$22","v":"00:00:00"},{"$f":"Time!NPE$22","v":"00:00:00"},{"$f":"Time!NPF$22","v":"00:00:00"},{"$f":"Time!NPG$22","v":"00:00:00"},{"$f":"Time!NPH$22","v":"00:00:00"},{"$f":"Time!NPI$22","v":"00:00:00"},{"$f":"Time!NPJ$22","v":"00:00:00"},{"$f":"Time!NPK$22","v":"00:00:00"},{"$f":"Time!NPL$22","v":"00:00:00"},{"$f":"Time!NPM$22","v":"00:00:00"},{"$f":"Time!NPN$22","v":"00:00:00"},{"$f":"Time!NPO$22","v":"00:00:00"},{"$f":"Time!NPP$22","v":"00:00:00"},{"$f":"Time!NPQ$22","v":"00:00:00"},{"$f":"Time!NPR$22","v":"00:00:00"},{"$f":"Time!NPS$22","v":"00:00:00"},{"$f":"Time!NPT$22","v":"00:00:00"},{"$f":"Time!NPU$22","v":"00:00:00"},{"$f":"Time!NPV$22","v":"00:00:00"},{"$f":"Time!NPW$22","v":"00:00:00"},{"$f":"Time!NPX$22","v":"00:00:00"},{"$f":"Time!NPY$22","v":"00:00:00"},{"$f":"Time!NPZ$22","v":"00:00:00"},{"$f":"Time!NQA$22","v":"00:00:00"},{"$f":"Time!NQB$22","v":"00:00:00"},{"$f":"Time!NQC$22","v":"00:00:00"},{"$f":"Time!NQD$22","v":"00:00:00"},{"$f":"Time!NQE$22","v":"00:00:00"},{"$f":"Time!NQF$22","v":"00:00:00"},{"$f":"Time!NQG$22","v":"00:00:00"},{"$f":"Time!NQH$22","v":"00:00:00"},{"$f":"Time!NQI$22","v":"00:00:00"},{"$f":"Time!NQJ$22","v":"00:00:00"},{"$f":"Time!NQK$22","v":"00:00:00"},{"$f":"Time!NQL$22","v":"00:00:00"},{"$f":"Time!NQM$22","v":"00:00:00"},{"$f":"Time!NQN$22","v":"00:00:00"},{"$f":"Time!NQO$22","v":"00:00:00"},{"$f":"Time!NQP$22","v":"00:00:00"},{"$f":"Time!NQQ$22","v":"00:00:00"},{"$f":"Time!NQR$22","v":"00:00:00"},{"$f":"Time!NQS$22","v":"00:00:00"},{"$f":"Time!NQT$22","v":"00:00:00"},{"$f":"Time!NQU$22","v":"00:00:00"},{"$f":"Time!NQV$22","v":"00:00:00"},{"$f":"Time!NQW$22","v":"00:00:00"},{"$f":"Time!NQX$22","v":"00:00:00"},{"$f":"Time!NQY$22","v":"00:00:00"},{"$f":"Time!NQZ$22","v":"00:00:00"},{"$f":"Time!NRA$22","v":"00:00:00"},{"$f":"Time!NRB$22","v":"00:00:00"},{"$f":"Time!NRC$22","v":"00:00:00"},{"$f":"Time!NRD$22","v":"00:00:00"},{"$f":"Time!NRE$22","v":"00:00:00"},{"$f":"Time!NRF$22","v":"00:00:00"},{"$f":"Time!NRG$22","v":"00:00:00"},{"$f":"Time!NRH$22","v":"00:00:00"},{"$f":"Time!NRI$22","v":"00:00:00"},{"$f":"Time!NRJ$22","v":"00:00:00"},{"$f":"Time!NRK$22","v":"00:00:00"},{"$f":"Time!NRL$22","v":"00:00:00"},{"$f":"Time!NRM$22","v":"00:00:00"},{"$f":"Time!NRN$22","v":"00:00:00"},{"$f":"Time!NRO$22","v":"00:00:00"},{"$f":"Time!NRP$22","v":"00:00:00"},{"$f":"Time!NRQ$22","v":"00:00:00"},{"$f":"Time!NRR$22","v":"00:00:00"},{"$f":"Time!NRS$22","v":"00:00:00"},{"$f":"Time!NRT$22","v":"00:00:00"},{"$f":"Time!NRU$22","v":"00:00:00"},{"$f":"Time!NRV$22","v":"00:00:00"},{"$f":"Time!NRW$22","v":"00:00:00"},{"$f":"Time!NRX$22","v":"00:00:00"},{"$f":"Time!NRY$22","v":"00:00:00"},{"$f":"Time!NRZ$22","v":"00:00:00"},{"$f":"Time!NSA$22","v":"00:00:00"},{"$f":"Time!NSB$22","v":"00:00:00"},{"$f":"Time!NSC$22","v":"00:00:00"},{"$f":"Time!NSD$22","v":"00:00:00"},{"$f":"Time!NSE$22","v":"00:00:00"},{"$f":"Time!NSF$22","v":"00:00:00"},{"$f":"Time!NSG$22","v":"00:00:00"},{"$f":"Time!NSH$22","v":"00:00:00"},{"$f":"Time!NSI$22","v":"00:00:00"},{"$f":"Time!NSJ$22","v":"00:00:00"},{"$f":"Time!NSK$22","v":"00:00:00"},{"$f":"Time!NSL$22","v":"00:00:00"},{"$f":"Time!NSM$22","v":"00:00:00"},{"$f":"Time!NSN$22","v":"00:00:00"},{"$f":"Time!NSO$22","v":"00:00:00"},{"$f":"Time!NSP$22","v":"00:00:00"},{"$f":"Time!NSQ$22","v":"00:00:00"},{"$f":"Time!NSR$22","v":"00:00:00"},{"$f":"Time!NSS$22","v":"00:00:00"},{"$f":"Time!NST$22","v":"00:00:00"},{"$f":"Time!NSU$22","v":"00:00:00"},{"$f":"Time!NSV$22","v":"00:00:00"},{"$f":"Time!NSW$22","v":"00:00:00"},{"$f":"Time!NSX$22","v":"00:00:00"},{"$f":"Time!NSY$22","v":"00:00:00"},{"$f":"Time!NSZ$22","v":"00:00:00"},{"$f":"Time!NTA$22","v":"00:00:00"},{"$f":"Time!NTB$22","v":"00:00:00"},{"$f":"Time!NTC$22","v":"00:00:00"},{"$f":"Time!NTD$22","v":"00:00:00"},{"$f":"Time!NTE$22","v":"00:00:00"},{"$f":"Time!NTF$22","v":"00:00:00"},{"$f":"Time!NTG$22","v":"00:00:00"},{"$f":"Time!NTH$22","v":"00:00:00"},{"$f":"Time!NTI$22","v":"00:00:00"},{"$f":"Time!NTJ$22","v":"00:00:00"},{"$f":"Time!NTK$22","v":"00:00:00"},{"$f":"Time!NTL$22","v":"00:00:00"},{"$f":"Time!NTM$22","v":"00:00:00"},{"$f":"Time!NTN$22","v":"00:00:00"},{"$f":"Time!NTO$22","v":"00:00:00"},{"$f":"Time!NTP$22","v":"00:00:00"},{"$f":"Time!NTQ$22","v":"00:00:00"},{"$f":"Time!NTR$22","v":"00:00:00"},{"$f":"Time!NTS$22","v":"00:00:00"},{"$f":"Time!NTT$22","v":"00:00:00"},{"$f":"Time!NTU$22","v":"00:00:00"},{"$f":"Time!NTV$22","v":"00:00:00"},{"$f":"Time!NTW$22","v":"00:00:00"},{"$f":"Time!NTX$22","v":"00:00:00"},{"$f":"Time!NTY$22","v":"00:00:00"},{"$f":"Time!NTZ$22","v":"00:00:00"},{"$f":"Time!NUA$22","v":"00:00:00"},{"$f":"Time!NUB$22","v":"00:00:00"},{"$f":"Time!NUC$22","v":"00:00:00"},{"$f":"Time!NUD$22","v":"00:00:00"},{"$f":"Time!NUE$22","v":"00:00:00"},{"$f":"Time!NUF$22","v":"00:00:00"},{"$f":"Time!NUG$22","v":"00:00:00"},{"$f":"Time!NUH$22","v":"00:00:00"},{"$f":"Time!NUI$22","v":"00:00:00"},{"$f":"Time!NUJ$22","v":"00:00:00"},{"$f":"Time!NUK$22","v":"00:00:00"},{"$f":"Time!NUL$22","v":"00:00:00"},{"$f":"Time!NUM$22","v":"00:00:00"},{"$f":"Time!NUN$22","v":"00:00:00"},{"$f":"Time!NUO$22","v":"00:00:00"},{"$f":"Time!NUP$22","v":"00:00:00"},{"$f":"Time!NUQ$22","v":"00:00:00"},{"$f":"Time!NUR$22","v":"00:00:00"},{"$f":"Time!NUS$22","v":"00:00:00"},{"$f":"Time!NUT$22","v":"00:00:00"},{"$f":"Time!NUU$22","v":"00:00:00"},{"$f":"Time!NUV$22","v":"00:00:00"},{"$f":"Time!NUW$22","v":"00:00:00"},{"$f":"Time!NUX$22","v":"00:00:00"},{"$f":"Time!NUY$22","v":"00:00:00"},{"$f":"Time!NUZ$22","v":"00:00:00"},{"$f":"Time!NVA$22","v":"00:00:00"},{"$f":"Time!NVB$22","v":"00:00:00"},{"$f":"Time!NVC$22","v":"00:00:00"},{"$f":"Time!NVD$22","v":"00:00:00"},{"$f":"Time!NVE$22","v":"00:00:00"},{"$f":"Time!NVF$22","v":"00:00:00"},{"$f":"Time!NVG$22","v":"00:00:00"},{"$f":"Time!NVH$22","v":"00:00:00"},{"$f":"Time!NVI$22","v":"00:00:00"},{"$f":"Time!NVJ$22","v":"00:00:00"},{"$f":"Time!NVK$22","v":"00:00:00"},{"$f":"Time!NVL$22","v":"00:00:00"},{"$f":"Time!NVM$22","v":"00:00:00"},{"$f":"Time!NVN$22","v":"00:00:00"},{"$f":"Time!NVO$22","v":"00:00:00"},{"$f":"Time!NVP$22","v":"00:00:00"},{"$f":"Time!NVQ$22","v":"00:00:00"},{"$f":"Time!NVR$22","v":"00:00:00"},{"$f":"Time!NVS$22","v":"00:00:00"},{"$f":"Time!NVT$22","v":"00:00:00"},{"$f":"Time!NVU$22","v":"00:00:00"},{"$f":"Time!NVV$22","v":"00:00:00"},{"$f":"Time!NVW$22","v":"00:00:00"},{"$f":"Time!NVX$22","v":"00:00:00"},{"$f":"Time!NVY$22","v":"00:00:00"},{"$f":"Time!NVZ$22","v":"00:00:00"},{"$f":"Time!NWA$22","v":"00:00:00"},{"$f":"Time!NWB$22","v":"00:00:00"},{"$f":"Time!NWC$22","v":"00:00:00"},{"$f":"Time!NWD$22","v":"00:00:00"},{"$f":"Time!NWE$22","v":"00:00:00"},{"$f":"Time!NWF$22","v":"00:00:00"},{"$f":"Time!NWG$22","v":"00:00:00"},{"$f":"Time!NWH$22","v":"00:00:00"},{"$f":"Time!NWI$22","v":"00:00:00"},{"$f":"Time!NWJ$22","v":"00:00:00"},{"$f":"Time!NWK$22","v":"00:00:00"},{"$f":"Time!NWL$22","v":"00:00:00"},{"$f":"Time!NWM$22","v":"00:00:00"},{"$f":"Time!NWN$22","v":"00:00:00"},{"$f":"Time!NWO$22","v":"00:00:00"},{"$f":"Time!NWP$22","v":"00:00:00"},{"$f":"Time!NWQ$22","v":"00:00:00"},{"$f":"Time!NWR$22","v":"00:00:00"},{"$f":"Time!NWS$22","v":"00:00:00"},{"$f":"Time!NWT$22","v":"00:00:00"},{"$f":"Time!NWU$22","v":"00:00:00"},{"$f":"Time!NWV$22","v":"00:00:00"},{"$f":"Time!NWW$22","v":"00:00:00"},{"$f":"Time!NWX$22","v":"00:00:00"},{"$f":"Time!NWY$22","v":"00:00:00"},{"$f":"Time!NWZ$22","v":"00:00:00"},{"$f":"Time!NXA$22","v":"00:00:00"},{"$f":"Time!NXB$22","v":"00:00:00"},{"$f":"Time!NXC$22","v":"00:00:00"},{"$f":"Time!NXD$22","v":"00:00:00"},{"$f":"Time!NXE$22","v":"00:00:00"},{"$f":"Time!NXF$22","v":"00:00:00"},{"$f":"Time!NXG$22","v":"00:00:00"},{"$f":"Time!NXH$22","v":"00:00:00"},{"$f":"Time!NXI$22","v":"00:00:00"},{"$f":"Time!NXJ$22","v":"00:00:00"},{"$f":"Time!NXK$22","v":"00:00:00"},{"$f":"Time!NXL$22","v":"00:00:00"},{"$f":"Time!NXM$22","v":"00:00:00"},{"$f":"Time!NXN$22","v":"00:00:00"},{"$f":"Time!NXO$22","v":"00:00:00"},{"$f":"Time!NXP$22","v":"00:00:00"},{"$f":"Time!NXQ$22","v":"00:00:00"},{"$f":"Time!NXR$22","v":"00:00:00"},{"$f":"Time!NXS$22","v":"00:00:00"},{"$f":"Time!NXT$22","v":"00:00:00"},{"$f":"Time!NXU$22","v":"00:00:00"},{"$f":"Time!NXV$22","v":"00:00:00"},{"$f":"Time!NXW$22","v":"00:00:00"},{"$f":"Time!NXX$22","v":"00:00:00"},{"$f":"Time!NXY$22","v":"00:00:00"},{"$f":"Time!NXZ$22","v":"00:00:00"},{"$f":"Time!NYA$22","v":"00:00:00"},{"$f":"Time!NYB$22","v":"00:00:00"},{"$f":"Time!NYC$22","v":"00:00:00"},{"$f":"Time!NYD$22","v":"00:00:00"},{"$f":"Time!NYE$22","v":"00:00:00"},{"$f":"Time!NYF$22","v":"00:00:00"},{"$f":"Time!NYG$22","v":"00:00:00"},{"$f":"Time!NYH$22","v":"00:00:00"},{"$f":"Time!NYI$22","v":"00:00:00"},{"$f":"Time!NYJ$22","v":"00:00:00"},{"$f":"Time!NYK$22","v":"00:00:00"},{"$f":"Time!NYL$22","v":"00:00:00"},{"$f":"Time!NYM$22","v":"00:00:00"},{"$f":"Time!NYN$22","v":"00:00:00"},{"$f":"Time!NYO$22","v":"00:00:00"},{"$f":"Time!NYP$22","v":"00:00:00"},{"$f":"Time!NYQ$22","v":"00:00:00"},{"$f":"Time!NYR$22","v":"00:00:00"},{"$f":"Time!NYS$22","v":"00:00:00"},{"$f":"Time!NYT$22","v":"00:00:00"},{"$f":"Time!NYU$22","v":"00:00:00"},{"$f":"Time!NYV$22","v":"00:00:00"},{"$f":"Time!NYW$22","v":"00:00:00"},{"$f":"Time!NYX$22","v":"00:00:00"},{"$f":"Time!NYY$22","v":"00:00:00"},{"$f":"Time!NYZ$22","v":"00:00:00"},{"$f":"Time!NZA$22","v":"00:00:00"},{"$f":"Time!NZB$22","v":"00:00:00"},{"$f":"Time!NZC$22","v":"00:00:00"},{"$f":"Time!NZD$22","v":"00:00:00"},{"$f":"Time!NZE$22","v":"00:00:00"},{"$f":"Time!NZF$22","v":"00:00:00"},{"$f":"Time!NZG$22","v":"00:00:00"},{"$f":"Time!NZH$22","v":"00:00:00"},{"$f":"Time!NZI$22","v":"00:00:00"},{"$f":"Time!NZJ$22","v":"00:00:00"},{"$f":"Time!NZK$22","v":"00:00:00"},{"$f":"Time!NZL$22","v":"00:00:00"},{"$f":"Time!NZM$22","v":"00:00:00"},{"$f":"Time!NZN$22","v":"00:00:00"},{"$f":"Time!NZO$22","v":"00:00:00"},{"$f":"Time!NZP$22","v":"00:00:00"},{"$f":"Time!NZQ$22","v":"00:00:00"},{"$f":"Time!NZR$22","v":"00:00:00"},{"$f":"Time!NZS$22","v":"00:00:00"},{"$f":"Time!NZT$22","v":"00:00:00"},{"$f":"Time!NZU$22","v":"00:00:00"},{"$f":"Time!NZV$22","v":"00:00:00"},{"$f":"Time!NZW$22","v":"00:00:00"},{"$f":"Time!NZX$22","v":"00:00:00"},{"$f":"Time!NZY$22","v":"00:00:00"},{"$f":"Time!NZZ$22","v":"00:00:00"},{"$f":"Time!OAA$22","v":"00:00:00"},{"$f":"Time!OAB$22","v":"00:00:00"},{"$f":"Time!OAC$22","v":"00:00:00"},{"$f":"Time!OAD$22","v":"00:00:00"},{"$f":"Time!OAE$22","v":"00:00:00"},{"$f":"Time!OAF$22","v":"00:00:00"},{"$f":"Time!OAG$22","v":"00:00:00"},{"$f":"Time!OAH$22","v":"00:00:00"},{"$f":"Time!OAI$22","v":"00:00:00"},{"$f":"Time!OAJ$22","v":"00:00:00"},{"$f":"Time!OAK$22","v":"00:00:00"},{"$f":"Time!OAL$22","v":"00:00:00"},{"$f":"Time!OAM$22","v":"00:00:00"},{"$f":"Time!OAN$22","v":"00:00:00"},{"$f":"Time!OAO$22","v":"00:00:00"},{"$f":"Time!OAP$22","v":"00:00:00"},{"$f":"Time!OAQ$22","v":"00:00:00"},{"$f":"Time!OAR$22","v":"00:00:00"},{"$f":"Time!OAS$22","v":"00:00:00"},{"$f":"Time!OAT$22","v":"00:00:00"},{"$f":"Time!OAU$22","v":"00:00:00"},{"$f":"Time!OAV$22","v":"00:00:00"},{"$f":"Time!OAW$22","v":"00:00:00"},{"$f":"Time!OAX$22","v":"00:00:00"},{"$f":"Time!OAY$22","v":"00:00:00"},{"$f":"Time!OAZ$22","v":"00:00:00"},{"$f":"Time!OBA$22","v":"00:00:00"},{"$f":"Time!OBB$22","v":"00:00:00"},{"$f":"Time!OBC$22","v":"00:00:00"},{"$f":"Time!OBD$22","v":"00:00:00"},{"$f":"Time!OBE$22","v":"00:00:00"},{"$f":"Time!OBF$22","v":"00:00:00"},{"$f":"Time!OBG$22","v":"00:00:00"},{"$f":"Time!OBH$22","v":"00:00:00"},{"$f":"Time!OBI$22","v":"00:00:00"},{"$f":"Time!OBJ$22","v":"00:00:00"},{"$f":"Time!OBK$22","v":"00:00:00"},{"$f":"Time!OBL$22","v":"00:00:00"},{"$f":"Time!OBM$22","v":"00:00:00"},{"$f":"Time!OBN$22","v":"00:00:00"},{"$f":"Time!OBO$22","v":"00:00:00"},{"$f":"Time!OBP$22","v":"00:00:00"},{"$f":"Time!OBQ$22","v":"00:00:00"},{"$f":"Time!OBR$22","v":"00:00:00"},{"$f":"Time!OBS$22","v":"00:00:00"},{"$f":"Time!OBT$22","v":"00:00:00"},{"$f":"Time!OBU$22","v":"00:00:00"},{"$f":"Time!OBV$22","v":"00:00:00"},{"$f":"Time!OBW$22","v":"00:00:00"},{"$f":"Time!OBX$22","v":"00:00:00"},{"$f":"Time!OBY$22","v":"00:00:00"},{"$f":"Time!OBZ$22","v":"00:00:00"},{"$f":"Time!OCA$22","v":"00:00:00"},{"$f":"Time!OCB$22","v":"00:00:00"},{"$f":"Time!OCC$22","v":"00:00:00"},{"$f":"Time!OCD$22","v":"00:00:00"},{"$f":"Time!OCE$22","v":"00:00:00"},{"$f":"Time!OCF$22","v":"00:00:00"},{"$f":"Time!OCG$22","v":"00:00:00"},{"$f":"Time!OCH$22","v":"00:00:00"},{"$f":"Time!OCI$22","v":"00:00:00"},{"$f":"Time!OCJ$22","v":"00:00:00"},{"$f":"Time!OCK$22","v":"00:00:00"},{"$f":"Time!OCL$22","v":"00:00:00"},{"$f":"Time!OCM$22","v":"00:00:00"},{"$f":"Time!OCN$22","v":"00:00:00"},{"$f":"Time!OCO$22","v":"00:00:00"},{"$f":"Time!OCP$22","v":"00:00:00"},{"$f":"Time!OCQ$22","v":"00:00:00"},{"$f":"Time!OCR$22","v":"00:00:00"},{"$f":"Time!OCS$22","v":"00:00:00"},{"$f":"Time!OCT$22","v":"00:00:00"},{"$f":"Time!OCU$22","v":"00:00:00"},{"$f":"Time!OCV$22","v":"00:00:00"},{"$f":"Time!OCW$22","v":"00:00:00"},{"$f":"Time!OCX$22","v":"00:00:00"},{"$f":"Time!OCY$22","v":"00:00:00"},{"$f":"Time!OCZ$22","v":"00:00:00"},{"$f":"Time!ODA$22","v":"00:00:00"},{"$f":"Time!ODB$22","v":"00:00:00"},{"$f":"Time!ODC$22","v":"00:00:00"},{"$f":"Time!ODD$22","v":"00:00:00"},{"$f":"Time!ODE$22","v":"00:00:00"},{"$f":"Time!ODF$22","v":"00:00:00"},{"$f":"Time!ODG$22","v":"00:00:00"},{"$f":"Time!ODH$22","v":"00:00:00"},{"$f":"Time!ODI$22","v":"00:00:00"},{"$f":"Time!ODJ$22","v":"00:00:00"},{"$f":"Time!ODK$22","v":"00:00:00"},{"$f":"Time!ODL$22","v":"00:00:00"},{"$f":"Time!ODM$22","v":"00:00:00"},{"$f":"Time!ODN$22","v":"00:00:00"},{"$f":"Time!ODO$22","v":"00:00:00"},{"$f":"Time!ODP$22","v":"00:00:00"},{"$f":"Time!ODQ$22","v":"00:00:00"},{"$f":"Time!ODR$22","v":"00:00:00"},{"$f":"Time!ODS$22","v":"00:00:00"},{"$f":"Time!ODT$22","v":"00:00:00"},{"$f":"Time!ODU$22","v":"00:00:00"},{"$f":"Time!ODV$22","v":"00:00:00"},{"$f":"Time!ODW$22","v":"00:00:00"},{"$f":"Time!ODX$22","v":"00:00:00"},{"$f":"Time!ODY$22","v":"00:00:00"},{"$f":"Time!ODZ$22","v":"00:00:00"},{"$f":"Time!OEA$22","v":"00:00:00"},{"$f":"Time!OEB$22","v":"00:00:00"},{"$f":"Time!OEC$22","v":"00:00:00"},{"$f":"Time!OED$22","v":"00:00:00"},{"$f":"Time!OEE$22","v":"00:00:00"},{"$f":"Time!OEF$22","v":"00:00:00"},{"$f":"Time!OEG$22","v":"00:00:00"},{"$f":"Time!OEH$22","v":"00:00:00"},{"$f":"Time!OEI$22","v":"00:00:00"},{"$f":"Time!OEJ$22","v":"00:00:00"},{"$f":"Time!OEK$22","v":"00:00:00"},{"$f":"Time!OEL$22","v":"00:00:00"},{"$f":"Time!OEM$22","v":"00:00:00"},{"$f":"Time!OEN$22","v":"00:00:00"},{"$f":"Time!OEO$22","v":"00:00:00"},{"$f":"Time!OEP$22","v":"00:00:00"},{"$f":"Time!OEQ$22","v":"00:00:00"},{"$f":"Time!OER$22","v":"00:00:00"},{"$f":"Time!OES$22","v":"00:00:00"},{"$f":"Time!OET$22","v":"00:00:00"},{"$f":"Time!OEU$22","v":"00:00:00"},{"$f":"Time!OEV$22","v":"00:00:00"},{"$f":"Time!OEW$22","v":"00:00:00"},{"$f":"Time!OEX$22","v":"00:00:00"},{"$f":"Time!OEY$22","v":"00:00:00"},{"$f":"Time!OEZ$22","v":"00:00:00"},{"$f":"Time!OFA$22","v":"00:00:00"},{"$f":"Time!OFB$22","v":"00:00:00"},{"$f":"Time!OFC$22","v":"00:00:00"},{"$f":"Time!OFD$22","v":"00:00:00"},{"$f":"Time!OFE$22","v":"00:00:00"},{"$f":"Time!OFF$22","v":"00:00:00"},{"$f":"Time!OFG$22","v":"00:00:00"},{"$f":"Time!OFH$22","v":"00:00:00"},{"$f":"Time!OFI$22","v":"00:00:00"},{"$f":"Time!OFJ$22","v":"00:00:00"},{"$f":"Time!OFK$22","v":"00:00:00"},{"$f":"Time!OFL$22","v":"00:00:00"},{"$f":"Time!OFM$22","v":"00:00:00"},{"$f":"Time!OFN$22","v":"00:00:00"},{"$f":"Time!OFO$22","v":"00:00:00"},{"$f":"Time!OFP$22","v":"00:00:00"},{"$f":"Time!OFQ$22","v":"00:00:00"},{"$f":"Time!OFR$22","v":"00:00:00"},{"$f":"Time!OFS$22","v":"00:00:00"},{"$f":"Time!OFT$22","v":"00:00:00"},{"$f":"Time!OFU$22","v":"00:00:00"},{"$f":"Time!OFV$22","v":"00:00:00"},{"$f":"Time!OFW$22","v":"00:00:00"},{"$f":"Time!OFX$22","v":"00:00:00"},{"$f":"Time!OFY$22","v":"00:00:00"},{"$f":"Time!OFZ$22","v":"00:00:00"},{"$f":"Time!OGA$22","v":"00:00:00"},{"$f":"Time!OGB$22","v":"00:00:00"},{"$f":"Time!OGC$22","v":"00:00:00"},{"$f":"Time!OGD$22","v":"00:00:00"},{"$f":"Time!OGE$22","v":"00:00:00"},{"$f":"Time!OGF$22","v":"00:00:00"},{"$f":"Time!OGG$22","v":"00:00:00"},{"$f":"Time!OGH$22","v":"00:00:00"},{"$f":"Time!OGI$22","v":"00:00:00"},{"$f":"Time!OGJ$22","v":"00:00:00"},{"$f":"Time!OGK$22","v":"00:00:00"},{"$f":"Time!OGL$22","v":"00:00:00"},{"$f":"Time!OGM$22","v":"00:00:00"},{"$f":"Time!OGN$22","v":"00:00:00"},{"$f":"Time!OGO$22","v":"00:00:00"},{"$f":"Time!OGP$22","v":"00:00:00"},{"$f":"Time!OGQ$22","v":"00:00:00"},{"$f":"Time!OGR$22","v":"00:00:00"},{"$f":"Time!OGS$22","v":"00:00:00"},{"$f":"Time!OGT$22","v":"00:00:00"},{"$f":"Time!OGU$22","v":"00:00:00"},{"$f":"Time!OGV$22","v":"00:00:00"},{"$f":"Time!OGW$22","v":"00:00:00"},{"$f":"Time!OGX$22","v":"00:00:00"},{"$f":"Time!OGY$22","v":"00:00:00"},{"$f":"Time!OGZ$22","v":"00:00:00"},{"$f":"Time!OHA$22","v":"00:00:00"},{"$f":"Time!OHB$22","v":"00:00:00"},{"$f":"Time!OHC$22","v":"00:00:00"},{"$f":"Time!OHD$22","v":"00:00:00"},{"$f":"Time!OHE$22","v":"00:00:00"},{"$f":"Time!OHF$22","v":"00:00:00"},{"$f":"Time!OHG$22","v":"00:00:00"},{"$f":"Time!OHH$22","v":"00:00:00"},{"$f":"Time!OHI$22","v":"00:00:00"},{"$f":"Time!OHJ$22","v":"00:00:00"},{"$f":"Time!OHK$22","v":"00:00:00"},{"$f":"Time!OHL$22","v":"00:00:00"},{"$f":"Time!OHM$22","v":"00:00:00"},{"$f":"Time!OHN$22","v":"00:00:00"},{"$f":"Time!OHO$22","v":"00:00:00"},{"$f":"Time!OHP$22","v":"00:00:00"},{"$f":"Time!OHQ$22","v":"00:00:00"},{"$f":"Time!OHR$22","v":"00:00:00"},{"$f":"Time!OHS$22","v":"00:00:00"},{"$f":"Time!OHT$22","v":"00:00:00"},{"$f":"Time!OHU$22","v":"00:00:00"},{"$f":"Time!OHV$22","v":"00:00:00"},{"$f":"Time!OHW$22","v":"00:00:00"},{"$f":"Time!OHX$22","v":"00:00:00"},{"$f":"Time!OHY$22","v":"00:00:00"},{"$f":"Time!OHZ$22","v":"00:00:00"},{"$f":"Time!OIA$22","v":"00:00:00"},{"$f":"Time!OIB$22","v":"00:00:00"},{"$f":"Time!OIC$22","v":"00:00:00"},{"$f":"Time!OID$22","v":"00:00:00"},{"$f":"Time!OIE$22","v":"00:00:00"},{"$f":"Time!OIF$22","v":"00:00:00"},{"$f":"Time!OIG$22","v":"00:00:00"},{"$f":"Time!OIH$22","v":"00:00:00"},{"$f":"Time!OII$22","v":"00:00:00"},{"$f":"Time!OIJ$22","v":"00:00:00"},{"$f":"Time!OIK$22","v":"00:00:00"},{"$f":"Time!OIL$22","v":"00:00:00"},{"$f":"Time!OIM$22","v":"00:00:00"},{"$f":"Time!OIN$22","v":"00:00:00"},{"$f":"Time!OIO$22","v":"00:00:00"},{"$f":"Time!OIP$22","v":"00:00:00"},{"$f":"Time!OIQ$22","v":"00:00:00"},{"$f":"Time!OIR$22","v":"00:00:00"},{"$f":"Time!OIS$22","v":"00:00:00"},{"$f":"Time!OIT$22","v":"00:00:00"},{"$f":"Time!OIU$22","v":"00:00:00"},{"$f":"Time!OIV$22","v":"00:00:00"},{"$f":"Time!OIW$22","v":"00:00:00"},{"$f":"Time!OIX$22","v":"00:00:00"},{"$f":"Time!OIY$22","v":"00:00:00"},{"$f":"Time!OIZ$22","v":"00:00:00"},{"$f":"Time!OJA$22","v":"00:00:00"},{"$f":"Time!OJB$22","v":"00:00:00"},{"$f":"Time!OJC$22","v":"00:00:00"},{"$f":"Time!OJD$22","v":"00:00:00"},{"$f":"Time!OJE$22","v":"00:00:00"},{"$f":"Time!OJF$22","v":"00:00:00"},{"$f":"Time!OJG$22","v":"00:00:00"},{"$f":"Time!OJH$22","v":"00:00:00"},{"$f":"Time!OJI$22","v":"00:00:00"},{"$f":"Time!OJJ$22","v":"00:00:00"},{"$f":"Time!OJK$22","v":"00:00:00"},{"$f":"Time!OJL$22","v":"00:00:00"},{"$f":"Time!OJM$22","v":"00:00:00"},{"$f":"Time!OJN$22","v":"00:00:00"},{"$f":"Time!OJO$22","v":"00:00:00"},{"$f":"Time!OJP$22","v":"00:00:00"},{"$f":"Time!OJQ$22","v":"00:00:00"},{"$f":"Time!OJR$22","v":"00:00:00"},{"$f":"Time!OJS$22","v":"00:00:00"},{"$f":"Time!OJT$22","v":"00:00:00"},{"$f":"Time!OJU$22","v":"00:00:00"},{"$f":"Time!OJV$22","v":"00:00:00"},{"$f":"Time!OJW$22","v":"00:00:00"},{"$f":"Time!OJX$22","v":"00:00:00"},{"$f":"Time!OJY$22","v":"00:00:00"},{"$f":"Time!OJZ$22","v":"00:00:00"},{"$f":"Time!OKA$22","v":"00:00:00"},{"$f":"Time!OKB$22","v":"00:00:00"},{"$f":"Time!OKC$22","v":"00:00:00"},{"$f":"Time!OKD$22","v":"00:00:00"},{"$f":"Time!OKE$22","v":"00:00:00"},{"$f":"Time!OKF$22","v":"00:00:00"},{"$f":"Time!OKG$22","v":"00:00:00"},{"$f":"Time!OKH$22","v":"00:00:00"},{"$f":"Time!OKI$22","v":"00:00:00"},{"$f":"Time!OKJ$22","v":"00:00:00"},{"$f":"Time!OKK$22","v":"00:00:00"},{"$f":"Time!OKL$22","v":"00:00:00"},{"$f":"Time!OKM$22","v":"00:00:00"},{"$f":"Time!OKN$22","v":"00:00:00"},{"$f":"Time!OKO$22","v":"00:00:00"},{"$f":"Time!OKP$22","v":"00:00:00"},{"$f":"Time!OKQ$22","v":"00:00:00"},{"$f":"Time!OKR$22","v":"00:00:00"},{"$f":"Time!OKS$22","v":"00:00:00"},{"$f":"Time!OKT$22","v":"00:00:00"},{"$f":"Time!OKU$22","v":"00:00:00"},{"$f":"Time!OKV$22","v":"00:00:00"},{"$f":"Time!OKW$22","v":"00:00:00"},{"$f":"Time!OKX$22","v":"00:00:00"},{"$f":"Time!OKY$22","v":"00:00:00"},{"$f":"Time!OKZ$22","v":"00:00:00"},{"$f":"Time!OLA$22","v":"00:00:00"},{"$f":"Time!OLB$22","v":"00:00:00"},{"$f":"Time!OLC$22","v":"00:00:00"},{"$f":"Time!OLD$22","v":"00:00:00"},{"$f":"Time!OLE$22","v":"00:00:00"},{"$f":"Time!OLF$22","v":"00:00:00"},{"$f":"Time!OLG$22","v":"00:00:00"},{"$f":"Time!OLH$22","v":"00:00:00"},{"$f":"Time!OLI$22","v":"00:00:00"},{"$f":"Time!OLJ$22","v":"00:00:00"},{"$f":"Time!OLK$22","v":"00:00:00"},{"$f":"Time!OLL$22","v":"00:00:00"},{"$f":"Time!OLM$22","v":"00:00:00"},{"$f":"Time!OLN$22","v":"00:00:00"},{"$f":"Time!OLO$22","v":"00:00:00"},{"$f":"Time!OLP$22","v":"00:00:00"},{"$f":"Time!OLQ$22","v":"00:00:00"},{"$f":"Time!OLR$22","v":"00:00:00"},{"$f":"Time!OLS$22","v":"00:00:00"},{"$f":"Time!OLT$22","v":"00:00:00"},{"$f":"Time!OLU$22","v":"00:00:00"},{"$f":"Time!OLV$22","v":"00:00:00"},{"$f":"Time!OLW$22","v":"00:00:00"},{"$f":"Time!OLX$22","v":"00:00:00"},{"$f":"Time!OLY$22","v":"00:00:00"},{"$f":"Time!OLZ$22","v":"00:00:00"},{"$f":"Time!OMA$22","v":"00:00:00"},{"$f":"Time!OMB$22","v":"00:00:00"},{"$f":"Time!OMC$22","v":"00:00:00"},{"$f":"Time!OMD$22","v":"00:00:00"},{"$f":"Time!OME$22","v":"00:00:00"},{"$f":"Time!OMF$22","v":"00:00:00"},{"$f":"Time!OMG$22","v":"00:00:00"},{"$f":"Time!OMH$22","v":"00:00:00"},{"$f":"Time!OMI$22","v":"00:00:00"},{"$f":"Time!OMJ$22","v":"00:00:00"},{"$f":"Time!OMK$22","v":"00:00:00"},{"$f":"Time!OML$22","v":"00:00:00"},{"$f":"Time!OMM$22","v":"00:00:00"},{"$f":"Time!OMN$22","v":"00:00:00"},{"$f":"Time!OMO$22","v":"00:00:00"},{"$f":"Time!OMP$22","v":"00:00:00"},{"$f":"Time!OMQ$22","v":"00:00:00"},{"$f":"Time!OMR$22","v":"00:00:00"},{"$f":"Time!OMS$22","v":"00:00:00"},{"$f":"Time!OMT$22","v":"00:00:00"},{"$f":"Time!OMU$22","v":"00:00:00"},{"$f":"Time!OMV$22","v":"00:00:00"},{"$f":"Time!OMW$22","v":"00:00:00"},{"$f":"Time!OMX$22","v":"00:00:00"},{"$f":"Time!OMY$22","v":"00:00:00"},{"$f":"Time!OMZ$22","v":"00:00:00"},{"$f":"Time!ONA$22","v":"00:00:00"},{"$f":"Time!ONB$22","v":"00:00:00"},{"$f":"Time!ONC$22","v":"00:00:00"},{"$f":"Time!OND$22","v":"00:00:00"},{"$f":"Time!ONE$22","v":"00:00:00"},{"$f":"Time!ONF$22","v":"00:00:00"},{"$f":"Time!ONG$22","v":"00:00:00"},{"$f":"Time!ONH$22","v":"00:00:00"},{"$f":"Time!ONI$22","v":"00:00:00"},{"$f":"Time!ONJ$22","v":"00:00:00"},{"$f":"Time!ONK$22","v":"00:00:00"},{"$f":"Time!ONL$22","v":"00:00:00"},{"$f":"Time!ONM$22","v":"00:00:00"},{"$f":"Time!ONN$22","v":"00:00:00"},{"$f":"Time!ONO$22","v":"00:00:00"},{"$f":"Time!ONP$22","v":"00:00:00"},{"$f":"Time!ONQ$22","v":"00:00:00"},{"$f":"Time!ONR$22","v":"00:00:00"},{"$f":"Time!ONS$22","v":"00:00:00"},{"$f":"Time!ONT$22","v":"00:00:00"},{"$f":"Time!ONU$22","v":"00:00:00"},{"$f":"Time!ONV$22","v":"00:00:00"},{"$f":"Time!ONW$22","v":"00:00:00"},{"$f":"Time!ONX$22","v":"00:00:00"},{"$f":"Time!ONY$22","v":"00:00:00"},{"$f":"Time!ONZ$22","v":"00:00:00"},{"$f":"Time!OOA$22","v":"00:00:00"},{"$f":"Time!OOB$22","v":"00:00:00"},{"$f":"Time!OOC$22","v":"00:00:00"},{"$f":"Time!OOD$22","v":"00:00:00"},{"$f":"Time!OOE$22","v":"00:00:00"},{"$f":"Time!OOF$22","v":"00:00:00"},{"$f":"Time!OOG$22","v":"00:00:00"},{"$f":"Time!OOH$22","v":"00:00:00"},{"$f":"Time!OOI$22","v":"00:00:00"},{"$f":"Time!OOJ$22","v":"00:00:00"},{"$f":"Time!OOK$22","v":"00:00:00"},{"$f":"Time!OOL$22","v":"00:00:00"},{"$f":"Time!OOM$22","v":"00:00:00"},{"$f":"Time!OON$22","v":"00:00:00"},{"$f":"Time!OOO$22","v":"00:00:00"},{"$f":"Time!OOP$22","v":"00:00:00"},{"$f":"Time!OOQ$22","v":"00:00:00"},{"$f":"Time!OOR$22","v":"00:00:00"},{"$f":"Time!OOS$22","v":"00:00:00"},{"$f":"Time!OOT$22","v":"00:00:00"},{"$f":"Time!OOU$22","v":"00:00:00"},{"$f":"Time!OOV$22","v":"00:00:00"},{"$f":"Time!OOW$22","v":"00:00:00"},{"$f":"Time!OOX$22","v":"00:00:00"},{"$f":"Time!OOY$22","v":"00:00:00"},{"$f":"Time!OOZ$22","v":"00:00:00"},{"$f":"Time!OPA$22","v":"00:00:00"},{"$f":"Time!OPB$22","v":"00:00:00"},{"$f":"Time!OPC$22","v":"00:00:00"},{"$f":"Time!OPD$22","v":"00:00:00"},{"$f":"Time!OPE$22","v":"00:00:00"},{"$f":"Time!OPF$22","v":"00:00:00"},{"$f":"Time!OPG$22","v":"00:00:00"},{"$f":"Time!OPH$22","v":"00:00:00"},{"$f":"Time!OPI$22","v":"00:00:00"},{"$f":"Time!OPJ$22","v":"00:00:00"},{"$f":"Time!OPK$22","v":"00:00:00"},{"$f":"Time!OPL$22","v":"00:00:00"},{"$f":"Time!OPM$22","v":"00:00:00"},{"$f":"Time!OPN$22","v":"00:00:00"},{"$f":"Time!OPO$22","v":"00:00:00"},{"$f":"Time!OPP$22","v":"00:00:00"},{"$f":"Time!OPQ$22","v":"00:00:00"},{"$f":"Time!OPR$22","v":"00:00:00"},{"$f":"Time!OPS$22","v":"00:00:00"},{"$f":"Time!OPT$22","v":"00:00:00"},{"$f":"Time!OPU$22","v":"00:00:00"},{"$f":"Time!OPV$22","v":"00:00:00"},{"$f":"Time!OPW$22","v":"00:00:00"},{"$f":"Time!OPX$22","v":"00:00:00"},{"$f":"Time!OPY$22","v":"00:00:00"},{"$f":"Time!OPZ$22","v":"00:00:00"},{"$f":"Time!OQA$22","v":"00:00:00"},{"$f":"Time!OQB$22","v":"00:00:00"},{"$f":"Time!OQC$22","v":"00:00:00"},{"$f":"Time!OQD$22","v":"00:00:00"},{"$f":"Time!OQE$22","v":"00:00:00"},{"$f":"Time!OQF$22","v":"00:00:00"},{"$f":"Time!OQG$22","v":"00:00:00"},{"$f":"Time!OQH$22","v":"00:00:00"},{"$f":"Time!OQI$22","v":"00:00:00"},{"$f":"Time!OQJ$22","v":"00:00:00"},{"$f":"Time!OQK$22","v":"00:00:00"},{"$f":"Time!OQL$22","v":"00:00:00"},{"$f":"Time!OQM$22","v":"00:00:00"},{"$f":"Time!OQN$22","v":"00:00:00"},{"$f":"Time!OQO$22","v":"00:00:00"},{"$f":"Time!OQP$22","v":"00:00:00"},{"$f":"Time!OQQ$22","v":"00:00:00"},{"$f":"Time!OQR$22","v":"00:00:00"},{"$f":"Time!OQS$22","v":"00:00:00"},{"$f":"Time!OQT$22","v":"00:00:00"},{"$f":"Time!OQU$22","v":"00:00:00"},{"$f":"Time!OQV$22","v":"00:00:00"},{"$f":"Time!OQW$22","v":"00:00:00"},{"$f":"Time!OQX$22","v":"00:00:00"},{"$f":"Time!OQY$22","v":"00:00:00"},{"$f":"Time!OQZ$22","v":"00:00:00"},{"$f":"Time!ORA$22","v":"00:00:00"},{"$f":"Time!ORB$22","v":"00:00:00"},{"$f":"Time!ORC$22","v":"00:00:00"},{"$f":"Time!ORD$22","v":"00:00:00"},{"$f":"Time!ORE$22","v":"00:00:00"},{"$f":"Time!ORF$22","v":"00:00:00"},{"$f":"Time!ORG$22","v":"00:00:00"},{"$f":"Time!ORH$22","v":"00:00:00"},{"$f":"Time!ORI$22","v":"00:00:00"},{"$f":"Time!ORJ$22","v":"00:00:00"},{"$f":"Time!ORK$22","v":"00:00:00"},{"$f":"Time!ORL$22","v":"00:00:00"},{"$f":"Time!ORM$22","v":"00:00:00"},{"$f":"Time!ORN$22","v":"00:00:00"},{"$f":"Time!ORO$22","v":"00:00:00"},{"$f":"Time!ORP$22","v":"00:00:00"},{"$f":"Time!ORQ$22","v":"00:00:00"},{"$f":"Time!ORR$22","v":"00:00:00"},{"$f":"Time!ORS$22","v":"00:00:00"},{"$f":"Time!ORT$22","v":"00:00:00"},{"$f":"Time!ORU$22","v":"00:00:00"},{"$f":"Time!ORV$22","v":"00:00:00"},{"$f":"Time!ORW$22","v":"00:00:00"},{"$f":"Time!ORX$22","v":"00:00:00"},{"$f":"Time!ORY$22","v":"00:00:00"},{"$f":"Time!ORZ$22","v":"00:00:00"},{"$f":"Time!OSA$22","v":"00:00:00"},{"$f":"Time!OSB$22","v":"00:00:00"},{"$f":"Time!OSC$22","v":"00:00:00"},{"$f":"Time!OSD$22","v":"00:00:00"},{"$f":"Time!OSE$22","v":"00:00:00"},{"$f":"Time!OSF$22","v":"00:00:00"},{"$f":"Time!OSG$22","v":"00:00:00"},{"$f":"Time!OSH$22","v":"00:00:00"},{"$f":"Time!OSI$22","v":"00:00:00"},{"$f":"Time!OSJ$22","v":"00:00:00"},{"$f":"Time!OSK$22","v":"00:00:00"},{"$f":"Time!OSL$22","v":"00:00:00"},{"$f":"Time!OSM$22","v":"00:00:00"},{"$f":"Time!OSN$22","v":"00:00:00"},{"$f":"Time!OSO$22","v":"00:00:00"},{"$f":"Time!OSP$22","v":"00:00:00"},{"$f":"Time!OSQ$22","v":"00:00:00"},{"$f":"Time!OSR$22","v":"00:00:00"},{"$f":"Time!OSS$22","v":"00:00:00"},{"$f":"Time!OST$22","v":"00:00:00"},{"$f":"Time!OSU$22","v":"00:00:00"},{"$f":"Time!OSV$22","v":"00:00:00"},{"$f":"Time!OSW$22","v":"00:00:00"},{"$f":"Time!OSX$22","v":"00:00:00"},{"$f":"Time!OSY$22","v":"00:00:00"},{"$f":"Time!OSZ$22","v":"00:00:00"},{"$f":"Time!OTA$22","v":"00:00:00"},{"$f":"Time!OTB$22","v":"00:00:00"},{"$f":"Time!OTC$22","v":"00:00:00"},{"$f":"Time!OTD$22","v":"00:00:00"},{"$f":"Time!OTE$22","v":"00:00:00"},{"$f":"Time!OTF$22","v":"00:00:00"},{"$f":"Time!OTG$22","v":"00:00:00"},{"$f":"Time!OTH$22","v":"00:00:00"},{"$f":"Time!OTI$22","v":"00:00:00"},{"$f":"Time!OTJ$22","v":"00:00:00"},{"$f":"Time!OTK$22","v":"00:00:00"},{"$f":"Time!OTL$22","v":"00:00:00"},{"$f":"Time!OTM$22","v":"00:00:00"},{"$f":"Time!OTN$22","v":"00:00:00"},{"$f":"Time!OTO$22","v":"00:00:00"},{"$f":"Time!OTP$22","v":"00:00:00"},{"$f":"Time!OTQ$22","v":"00:00:00"},{"$f":"Time!OTR$22","v":"00:00:00"},{"$f":"Time!OTS$22","v":"00:00:00"},{"$f":"Time!OTT$22","v":"00:00:00"},{"$f":"Time!OTU$22","v":"00:00:00"},{"$f":"Time!OTV$22","v":"00:00:00"},{"$f":"Time!OTW$22","v":"00:00:00"},{"$f":"Time!OTX$22","v":"00:00:00"},{"$f":"Time!OTY$22","v":"00:00:00"},{"$f":"Time!OTZ$22","v":"00:00:00"},{"$f":"Time!OUA$22","v":"00:00:00"},{"$f":"Time!OUB$22","v":"00:00:00"},{"$f":"Time!OUC$22","v":"00:00:00"},{"$f":"Time!OUD$22","v":"00:00:00"},{"$f":"Time!OUE$22","v":"00:00:00"},{"$f":"Time!OUF$22","v":"00:00:00"},{"$f":"Time!OUG$22","v":"00:00:00"},{"$f":"Time!OUH$22","v":"00:00:00"},{"$f":"Time!OUI$22","v":"00:00:00"},{"$f":"Time!OUJ$22","v":"00:00:00"},{"$f":"Time!OUK$22","v":"00:00:00"},{"$f":"Time!OUL$22","v":"00:00:00"},{"$f":"Time!OUM$22","v":"00:00:00"},{"$f":"Time!OUN$22","v":"00:00:00"},{"$f":"Time!OUO$22","v":"00:00:00"},{"$f":"Time!OUP$22","v":"00:00:00"},{"$f":"Time!OUQ$22","v":"00:00:00"},{"$f":"Time!OUR$22","v":"00:00:00"},{"$f":"Time!OUS$22","v":"00:00:00"},{"$f":"Time!OUT$22","v":"00:00:00"},{"$f":"Time!OUU$22","v":"00:00:00"},{"$f":"Time!OUV$22","v":"00:00:00"},{"$f":"Time!OUW$22","v":"00:00:00"},{"$f":"Time!OUX$22","v":"00:00:00"},{"$f":"Time!OUY$22","v":"00:00:00"},{"$f":"Time!OUZ$22","v":"00:00:00"},{"$f":"Time!OVA$22","v":"00:00:00"},{"$f":"Time!OVB$22","v":"00:00:00"},{"$f":"Time!OVC$22","v":"00:00:00"},{"$f":"Time!OVD$22","v":"00:00:00"},{"$f":"Time!OVE$22","v":"00:00:00"},{"$f":"Time!OVF$22","v":"00:00:00"},{"$f":"Time!OVG$22","v":"00:00:00"},{"$f":"Time!OVH$22","v":"00:00:00"},{"$f":"Time!OVI$22","v":"00:00:00"},{"$f":"Time!OVJ$22","v":"00:00:00"},{"$f":"Time!OVK$22","v":"00:00:00"},{"$f":"Time!OVL$22","v":"00:00:00"},{"$f":"Time!OVM$22","v":"00:00:00"},{"$f":"Time!OVN$22","v":"00:00:00"},{"$f":"Time!OVO$22","v":"00:00:00"},{"$f":"Time!OVP$22","v":"00:00:00"},{"$f":"Time!OVQ$22","v":"00:00:00"},{"$f":"Time!OVR$22","v":"00:00:00"},{"$f":"Time!OVS$22","v":"00:00:00"},{"$f":"Time!OVT$22","v":"00:00:00"},{"$f":"Time!OVU$22","v":"00:00:00"},{"$f":"Time!OVV$22","v":"00:00:00"},{"$f":"Time!OVW$22","v":"00:00:00"},{"$f":"Time!OVX$22","v":"00:00:00"},{"$f":"Time!OVY$22","v":"00:00:00"},{"$f":"Time!OVZ$22","v":"00:00:00"},{"$f":"Time!OWA$22","v":"00:00:00"},{"$f":"Time!OWB$22","v":"00:00:00"},{"$f":"Time!OWC$22","v":"00:00:00"},{"$f":"Time!OWD$22","v":"00:00:00"},{"$f":"Time!OWE$22","v":"00:00:00"},{"$f":"Time!OWF$22","v":"00:00:00"},{"$f":"Time!OWG$22","v":"00:00:00"},{"$f":"Time!OWH$22","v":"00:00:00"},{"$f":"Time!OWI$22","v":"00:00:00"},{"$f":"Time!OWJ$22","v":"00:00:00"},{"$f":"Time!OWK$22","v":"00:00:00"},{"$f":"Time!OWL$22","v":"00:00:00"},{"$f":"Time!OWM$22","v":"00:00:00"},{"$f":"Time!OWN$22","v":"00:00:00"},{"$f":"Time!OWO$22","v":"00:00:00"},{"$f":"Time!OWP$22","v":"00:00:00"},{"$f":"Time!OWQ$22","v":"00:00:00"},{"$f":"Time!OWR$22","v":"00:00:00"},{"$f":"Time!OWS$22","v":"00:00:00"},{"$f":"Time!OWT$22","v":"00:00:00"},{"$f":"Time!OWU$22","v":"00:00:00"},{"$f":"Time!OWV$22","v":"00:00:00"},{"$f":"Time!OWW$22","v":"00:00:00"},{"$f":"Time!OWX$22","v":"00:00:00"},{"$f":"Time!OWY$22","v":"00:00:00"},{"$f":"Time!OWZ$22","v":"00:00:00"},{"$f":"Time!OXA$22","v":"00:00:00"},{"$f":"Time!OXB$22","v":"00:00:00"},{"$f":"Time!OXC$22","v":"00:00:00"},{"$f":"Time!OXD$22","v":"00:00:00"},{"$f":"Time!OXE$22","v":"00:00:00"},{"$f":"Time!OXF$22","v":"00:00:00"},{"$f":"Time!OXG$22","v":"00:00:00"},{"$f":"Time!OXH$22","v":"00:00:00"},{"$f":"Time!OXI$22","v":"00:00:00"},{"$f":"Time!OXJ$22","v":"00:00:00"},{"$f":"Time!OXK$22","v":"00:00:00"},{"$f":"Time!OXL$22","v":"00:00:00"},{"$f":"Time!OXM$22","v":"00:00:00"},{"$f":"Time!OXN$22","v":"00:00:00"},{"$f":"Time!OXO$22","v":"00:00:00"},{"$f":"Time!OXP$22","v":"00:00:00"},{"$f":"Time!OXQ$22","v":"00:00:00"},{"$f":"Time!OXR$22","v":"00:00:00"},{"$f":"Time!OXS$22","v":"00:00:00"},{"$f":"Time!OXT$22","v":"00:00:00"},{"$f":"Time!OXU$22","v":"00:00:00"},{"$f":"Time!OXV$22","v":"00:00:00"},{"$f":"Time!OXW$22","v":"00:00:00"},{"$f":"Time!OXX$22","v":"00:00:00"},{"$f":"Time!OXY$22","v":"00:00:00"},{"$f":"Time!OXZ$22","v":"00:00:00"},{"$f":"Time!OYA$22","v":"00:00:00"},{"$f":"Time!OYB$22","v":"00:00:00"},{"$f":"Time!OYC$22","v":"00:00:00"},{"$f":"Time!OYD$22","v":"00:00:00"},{"$f":"Time!OYE$22","v":"00:00:00"},{"$f":"Time!OYF$22","v":"00:00:00"},{"$f":"Time!OYG$22","v":"00:00:00"},{"$f":"Time!OYH$22","v":"00:00:00"},{"$f":"Time!OYI$22","v":"00:00:00"},{"$f":"Time!OYJ$22","v":"00:00:00"},{"$f":"Time!OYK$22","v":"00:00:00"},{"$f":"Time!OYL$22","v":"00:00:00"},{"$f":"Time!OYM$22","v":"00:00:00"},{"$f":"Time!OYN$22","v":"00:00:00"},{"$f":"Time!OYO$22","v":"00:00:00"},{"$f":"Time!OYP$22","v":"00:00:00"},{"$f":"Time!OYQ$22","v":"00:00:00"},{"$f":"Time!OYR$22","v":"00:00:00"},{"$f":"Time!OYS$22","v":"00:00:00"},{"$f":"Time!OYT$22","v":"00:00:00"},{"$f":"Time!OYU$22","v":"00:00:00"},{"$f":"Time!OYV$22","v":"00:00:00"},{"$f":"Time!OYW$22","v":"00:00:00"},{"$f":"Time!OYX$22","v":"00:00:00"},{"$f":"Time!OYY$22","v":"00:00:00"},{"$f":"Time!OYZ$22","v":"00:00:00"},{"$f":"Time!OZA$22","v":"00:00:00"},{"$f":"Time!OZB$22","v":"00:00:00"},{"$f":"Time!OZC$22","v":"00:00:00"},{"$f":"Time!OZD$22","v":"00:00:00"},{"$f":"Time!OZE$22","v":"00:00:00"},{"$f":"Time!OZF$22","v":"00:00:00"},{"$f":"Time!OZG$22","v":"00:00:00"},{"$f":"Time!OZH$22","v":"00:00:00"},{"$f":"Time!OZI$22","v":"00:00:00"},{"$f":"Time!OZJ$22","v":"00:00:00"},{"$f":"Time!OZK$22","v":"00:00:00"},{"$f":"Time!OZL$22","v":"00:00:00"},{"$f":"Time!OZM$22","v":"00:00:00"},{"$f":"Time!OZN$22","v":"00:00:00"},{"$f":"Time!OZO$22","v":"00:00:00"},{"$f":"Time!OZP$22","v":"00:00:00"},{"$f":"Time!OZQ$22","v":"00:00:00"},{"$f":"Time!OZR$22","v":"00:00:00"},{"$f":"Time!OZS$22","v":"00:00:00"},{"$f":"Time!OZT$22","v":"00:00:00"},{"$f":"Time!OZU$22","v":"00:00:00"},{"$f":"Time!OZV$22","v":"00:00:00"},{"$f":"Time!OZW$22","v":"00:00:00"},{"$f":"Time!OZX$22","v":"00:00:00"},{"$f":"Time!OZY$22","v":"00:00:00"},{"$f":"Time!OZZ$22","v":"00:00:00"},{"$f":"Time!PAA$22","v":"00:00:00"},{"$f":"Time!PAB$22","v":"00:00:00"},{"$f":"Time!PAC$22","v":"00:00:00"},{"$f":"Time!PAD$22","v":"00:00:00"},{"$f":"Time!PAE$22","v":"00:00:00"},{"$f":"Time!PAF$22","v":"00:00:00"},{"$f":"Time!PAG$22","v":"00:00:00"},{"$f":"Time!PAH$22","v":"00:00:00"},{"$f":"Time!PAI$22","v":"00:00:00"},{"$f":"Time!PAJ$22","v":"00:00:00"},{"$f":"Time!PAK$22","v":"00:00:00"},{"$f":"Time!PAL$22","v":"00:00:00"},{"$f":"Time!PAM$22","v":"00:00:00"},{"$f":"Time!PAN$22","v":"00:00:00"},{"$f":"Time!PAO$22","v":"00:00:00"},{"$f":"Time!PAP$22","v":"00:00:00"},{"$f":"Time!PAQ$22","v":"00:00:00"},{"$f":"Time!PAR$22","v":"00:00:00"},{"$f":"Time!PAS$22","v":"00:00:00"},{"$f":"Time!PAT$22","v":"00:00:00"},{"$f":"Time!PAU$22","v":"00:00:00"},{"$f":"Time!PAV$22","v":"00:00:00"},{"$f":"Time!PAW$22","v":"00:00:00"},{"$f":"Time!PAX$22","v":"00:00:00"},{"$f":"Time!PAY$22","v":"00:00:00"},{"$f":"Time!PAZ$22","v":"00:00:00"},{"$f":"Time!PBA$22","v":"00:00:00"},{"$f":"Time!PBB$22","v":"00:00:00"},{"$f":"Time!PBC$22","v":"00:00:00"},{"$f":"Time!PBD$22","v":"00:00:00"},{"$f":"Time!PBE$22","v":"00:00:00"},{"$f":"Time!PBF$22","v":"00:00:00"},{"$f":"Time!PBG$22","v":"00:00:00"},{"$f":"Time!PBH$22","v":"00:00:00"},{"$f":"Time!PBI$22","v":"00:00:00"},{"$f":"Time!PBJ$22","v":"00:00:00"},{"$f":"Time!PBK$22","v":"00:00:00"},{"$f":"Time!PBL$22","v":"00:00:00"},{"$f":"Time!PBM$22","v":"00:00:00"},{"$f":"Time!PBN$22","v":"00:00:00"},{"$f":"Time!PBO$22","v":"00:00:00"},{"$f":"Time!PBP$22","v":"00:00:00"},{"$f":"Time!PBQ$22","v":"00:00:00"},{"$f":"Time!PBR$22","v":"00:00:00"},{"$f":"Time!PBS$22","v":"00:00:00"},{"$f":"Time!PBT$22","v":"00:00:00"},{"$f":"Time!PBU$22","v":"00:00:00"},{"$f":"Time!PBV$22","v":"00:00:00"},{"$f":"Time!PBW$22","v":"00:00:00"},{"$f":"Time!PBX$22","v":"00:00:00"},{"$f":"Time!PBY$22","v":"00:00:00"},{"$f":"Time!PBZ$22","v":"00:00:00"},{"$f":"Time!PCA$22","v":"00:00:00"},{"$f":"Time!PCB$22","v":"00:00:00"},{"$f":"Time!PCC$22","v":"00:00:00"},{"$f":"Time!PCD$22","v":"00:00:00"},{"$f":"Time!PCE$22","v":"00:00:00"},{"$f":"Time!PCF$22","v":"00:00:00"},{"$f":"Time!PCG$22","v":"00:00:00"},{"$f":"Time!PCH$22","v":"00:00:00"},{"$f":"Time!PCI$22","v":"00:00:00"},{"$f":"Time!PCJ$22","v":"00:00:00"},{"$f":"Time!PCK$22","v":"00:00:00"},{"$f":"Time!PCL$22","v":"00:00:00"},{"$f":"Time!PCM$22","v":"00:00:00"},{"$f":"Time!PCN$22","v":"00:00:00"},{"$f":"Time!PCO$22","v":"00:00:00"},{"$f":"Time!PCP$22","v":"00:00:00"},{"$f":"Time!PCQ$22","v":"00:00:00"},{"$f":"Time!PCR$22","v":"00:00:00"},{"$f":"Time!PCS$22","v":"00:00:00"},{"$f":"Time!PCT$22","v":"00:00:00"},{"$f":"Time!PCU$22","v":"00:00:00"},{"$f":"Time!PCV$22","v":"00:00:00"},{"$f":"Time!PCW$22","v":"00:00:00"},{"$f":"Time!PCX$22","v":"00:00:00"},{"$f":"Time!PCY$22","v":"00:00:00"},{"$f":"Time!PCZ$22","v":"00:00:00"},{"$f":"Time!PDA$22","v":"00:00:00"},{"$f":"Time!PDB$22","v":"00:00:00"},{"$f":"Time!PDC$22","v":"00:00:00"},{"$f":"Time!PDD$22","v":"00:00:00"},{"$f":"Time!PDE$22","v":"00:00:00"},{"$f":"Time!PDF$22","v":"00:00:00"},{"$f":"Time!PDG$22","v":"00:00:00"},{"$f":"Time!PDH$22","v":"00:00:00"},{"$f":"Time!PDI$22","v":"00:00:00"},{"$f":"Time!PDJ$22","v":"00:00:00"},{"$f":"Time!PDK$22","v":"00:00:00"},{"$f":"Time!PDL$22","v":"00:00:00"},{"$f":"Time!PDM$22","v":"00:00:00"},{"$f":"Time!PDN$22","v":"00:00:00"},{"$f":"Time!PDO$22","v":"00:00:00"},{"$f":"Time!PDP$22","v":"00:00:00"},{"$f":"Time!PDQ$22","v":"00:00:00"},{"$f":"Time!PDR$22","v":"00:00:00"},{"$f":"Time!PDS$22","v":"00:00:00"},{"$f":"Time!PDT$22","v":"00:00:00"},{"$f":"Time!PDU$22","v":"00:00:00"},{"$f":"Time!PDV$22","v":"00:00:00"},{"$f":"Time!PDW$22","v":"00:00:00"},{"$f":"Time!PDX$22","v":"00:00:00"},{"$f":"Time!PDY$22","v":"00:00:00"},{"$f":"Time!PDZ$22","v":"00:00:00"},{"$f":"Time!PEA$22","v":"00:00:00"},{"$f":"Time!PEB$22","v":"00:00:00"},{"$f":"Time!PEC$22","v":"00:00:00"},{"$f":"Time!PED$22","v":"00:00:00"},{"$f":"Time!PEE$22","v":"00:00:00"},{"$f":"Time!PEF$22","v":"00:00:00"},{"$f":"Time!PEG$22","v":"00:00:00"},{"$f":"Time!PEH$22","v":"00:00:00"},{"$f":"Time!PEI$22","v":"00:00:00"},{"$f":"Time!PEJ$22","v":"00:00:00"},{"$f":"Time!PEK$22","v":"00:00:00"},{"$f":"Time!PEL$22","v":"00:00:00"},{"$f":"Time!PEM$22","v":"00:00:00"},{"$f":"Time!PEN$22","v":"00:00:00"},{"$f":"Time!PEO$22","v":"00:00:00"},{"$f":"Time!PEP$22","v":"00:00:00"},{"$f":"Time!PEQ$22","v":"00:00:00"},{"$f":"Time!PER$22","v":"00:00:00"},{"$f":"Time!PES$22","v":"00:00:00"},{"$f":"Time!PET$22","v":"00:00:00"},{"$f":"Time!PEU$22","v":"00:00:00"},{"$f":"Time!PEV$22","v":"00:00:00"},{"$f":"Time!PEW$22","v":"00:00:00"},{"$f":"Time!PEX$22","v":"00:00:00"},{"$f":"Time!PEY$22","v":"00:00:00"},{"$f":"Time!PEZ$22","v":"00:00:00"},{"$f":"Time!PFA$22","v":"00:00:00"},{"$f":"Time!PFB$22","v":"00:00:00"},{"$f":"Time!PFC$22","v":"00:00:00"},{"$f":"Time!PFD$22","v":"00:00:00"},{"$f":"Time!PFE$22","v":"00:00:00"},{"$f":"Time!PFF$22","v":"00:00:00"},{"$f":"Time!PFG$22","v":"00:00:00"},{"$f":"Time!PFH$22","v":"00:00:00"},{"$f":"Time!PFI$22","v":"00:00:00"},{"$f":"Time!PFJ$22","v":"00:00:00"},{"$f":"Time!PFK$22","v":"00:00:00"},{"$f":"Time!PFL$22","v":"00:00:00"},{"$f":"Time!PFM$22","v":"00:00:00"},{"$f":"Time!PFN$22","v":"00:00:00"},{"$f":"Time!PFO$22","v":"00:00:00"},{"$f":"Time!PFP$22","v":"00:00:00"},{"$f":"Time!PFQ$22","v":"00:00:00"},{"$f":"Time!PFR$22","v":"00:00:00"},{"$f":"Time!PFS$22","v":"00:00:00"},{"$f":"Time!PFT$22","v":"00:00:00"},{"$f":"Time!PFU$22","v":"00:00:00"},{"$f":"Time!PFV$22","v":"00:00:00"},{"$f":"Time!PFW$22","v":"00:00:00"},{"$f":"Time!PFX$22","v":"00:00:00"},{"$f":"Time!PFY$22","v":"00:00:00"},{"$f":"Time!PFZ$22","v":"00:00:00"},{"$f":"Time!PGA$22","v":"00:00:00"},{"$f":"Time!PGB$22","v":"00:00:00"},{"$f":"Time!PGC$22","v":"00:00:00"},{"$f":"Time!PGD$22","v":"00:00:00"},{"$f":"Time!PGE$22","v":"00:00:00"},{"$f":"Time!PGF$22","v":"00:00:00"},{"$f":"Time!PGG$22","v":"00:00:00"},{"$f":"Time!PGH$22","v":"00:00:00"},{"$f":"Time!PGI$22","v":"00:00:00"},{"$f":"Time!PGJ$22","v":"00:00:00"},{"$f":"Time!PGK$22","v":"00:00:00"},{"$f":"Time!PGL$22","v":"00:00:00"},{"$f":"Time!PGM$22","v":"00:00:00"},{"$f":"Time!PGN$22","v":"00:00:00"},{"$f":"Time!PGO$22","v":"00:00:00"},{"$f":"Time!PGP$22","v":"00:00:00"},{"$f":"Time!PGQ$22","v":"00:00:00"},{"$f":"Time!PGR$22","v":"00:00:00"},{"$f":"Time!PGS$22","v":"00:00:00"},{"$f":"Time!PGT$22","v":"00:00:00"},{"$f":"Time!PGU$22","v":"00:00:00"},{"$f":"Time!PGV$22","v":"00:00:00"},{"$f":"Time!PGW$22","v":"00:00:00"},{"$f":"Time!PGX$22","v":"00:00:00"},{"$f":"Time!PGY$22","v":"00:00:00"},{"$f":"Time!PGZ$22","v":"00:00:00"},{"$f":"Time!PHA$22","v":"00:00:00"},{"$f":"Time!PHB$22","v":"00:00:00"},{"$f":"Time!PHC$22","v":"00:00:00"},{"$f":"Time!PHD$22","v":"00:00:00"},{"$f":"Time!PHE$22","v":"00:00:00"},{"$f":"Time!PHF$22","v":"00:00:00"},{"$f":"Time!PHG$22","v":"00:00:00"},{"$f":"Time!PHH$22","v":"00:00:00"},{"$f":"Time!PHI$22","v":"00:00:00"},{"$f":"Time!PHJ$22","v":"00:00:00"},{"$f":"Time!PHK$22","v":"00:00:00"},{"$f":"Time!PHL$22","v":"00:00:00"},{"$f":"Time!PHM$22","v":"00:00:00"},{"$f":"Time!PHN$22","v":"00:00:00"},{"$f":"Time!PHO$22","v":"00:00:00"},{"$f":"Time!PHP$22","v":"00:00:00"},{"$f":"Time!PHQ$22","v":"00:00:00"},{"$f":"Time!PHR$22","v":"00:00:00"},{"$f":"Time!PHS$22","v":"00:00:00"},{"$f":"Time!PHT$22","v":"00:00:00"},{"$f":"Time!PHU$22","v":"00:00:00"},{"$f":"Time!PHV$22","v":"00:00:00"},{"$f":"Time!PHW$22","v":"00:00:00"},{"$f":"Time!PHX$22","v":"00:00:00"},{"$f":"Time!PHY$22","v":"00:00:00"},{"$f":"Time!PHZ$22","v":"00:00:00"},{"$f":"Time!PIA$22","v":"00:00:00"},{"$f":"Time!PIB$22","v":"00:00:00"},{"$f":"Time!PIC$22","v":"00:00:00"},{"$f":"Time!PID$22","v":"00:00:00"},{"$f":"Time!PIE$22","v":"00:00:00"},{"$f":"Time!PIF$22","v":"00:00:00"},{"$f":"Time!PIG$22","v":"00:00:00"},{"$f":"Time!PIH$22","v":"00:00:00"},{"$f":"Time!PII$22","v":"00:00:00"},{"$f":"Time!PIJ$22","v":"00:00:00"},{"$f":"Time!PIK$22","v":"00:00:00"},{"$f":"Time!PIL$22","v":"00:00:00"},{"$f":"Time!PIM$22","v":"00:00:00"},{"$f":"Time!PIN$22","v":"00:00:00"},{"$f":"Time!PIO$22","v":"00:00:00"},{"$f":"Time!PIP$22","v":"00:00:00"},{"$f":"Time!PIQ$22","v":"00:00:00"},{"$f":"Time!PIR$22","v":"00:00:00"},{"$f":"Time!PIS$22","v":"00:00:00"},{"$f":"Time!PIT$22","v":"00:00:00"},{"$f":"Time!PIU$22","v":"00:00:00"},{"$f":"Time!PIV$22","v":"00:00:00"},{"$f":"Time!PIW$22","v":"00:00:00"},{"$f":"Time!PIX$22","v":"00:00:00"},{"$f":"Time!PIY$22","v":"00:00:00"},{"$f":"Time!PIZ$22","v":"00:00:00"},{"$f":"Time!PJA$22","v":"00:00:00"},{"$f":"Time!PJB$22","v":"00:00:00"},{"$f":"Time!PJC$22","v":"00:00:00"},{"$f":"Time!PJD$22","v":"00:00:00"},{"$f":"Time!PJE$22","v":"00:00:00"},{"$f":"Time!PJF$22","v":"00:00:00"},{"$f":"Time!PJG$22","v":"00:00:00"},{"$f":"Time!PJH$22","v":"00:00:00"},{"$f":"Time!PJI$22","v":"00:00:00"},{"$f":"Time!PJJ$22","v":"00:00:00"},{"$f":"Time!PJK$22","v":"00:00:00"},{"$f":"Time!PJL$22","v":"00:00:00"},{"$f":"Time!PJM$22","v":"00:00:00"},{"$f":"Time!PJN$22","v":"00:00:00"},{"$f":"Time!PJO$22","v":"00:00:00"},{"$f":"Time!PJP$22","v":"00:00:00"},{"$f":"Time!PJQ$22","v":"00:00:00"},{"$f":"Time!PJR$22","v":"00:00:00"},{"$f":"Time!PJS$22","v":"00:00:00"},{"$f":"Time!PJT$22","v":"00:00:00"},{"$f":"Time!PJU$22","v":"00:00:00"},{"$f":"Time!PJV$22","v":"00:00:00"},{"$f":"Time!PJW$22","v":"00:00:00"},{"$f":"Time!PJX$22","v":"00:00:00"},{"$f":"Time!PJY$22","v":"00:00:00"},{"$f":"Time!PJZ$22","v":"00:00:00"},{"$f":"Time!PKA$22","v":"00:00:00"},{"$f":"Time!PKB$22","v":"00:00:00"},{"$f":"Time!PKC$22","v":"00:00:00"},{"$f":"Time!PKD$22","v":"00:00:00"},{"$f":"Time!PKE$22","v":"00:00:00"},{"$f":"Time!PKF$22","v":"00:00:00"},{"$f":"Time!PKG$22","v":"00:00:00"},{"$f":"Time!PKH$22","v":"00:00:00"},{"$f":"Time!PKI$22","v":"00:00:00"},{"$f":"Time!PKJ$22","v":"00:00:00"},{"$f":"Time!PKK$22","v":"00:00:00"},{"$f":"Time!PKL$22","v":"00:00:00"},{"$f":"Time!PKM$22","v":"00:00:00"},{"$f":"Time!PKN$22","v":"00:00:00"},{"$f":"Time!PKO$22","v":"00:00:00"},{"$f":"Time!PKP$22","v":"00:00:00"},{"$f":"Time!PKQ$22","v":"00:00:00"},{"$f":"Time!PKR$22","v":"00:00:00"},{"$f":"Time!PKS$22","v":"00:00:00"},{"$f":"Time!PKT$22","v":"00:00:00"},{"$f":"Time!PKU$22","v":"00:00:00"},{"$f":"Time!PKV$22","v":"00:00:00"},{"$f":"Time!PKW$22","v":"00:00:00"},{"$f":"Time!PKX$22","v":"00:00:00"},{"$f":"Time!PKY$22","v":"00:00:00"},{"$f":"Time!PKZ$22","v":"00:00:00"},{"$f":"Time!PLA$22","v":"00:00:00"},{"$f":"Time!PLB$22","v":"00:00:00"},{"$f":"Time!PLC$22","v":"00:00:00"},{"$f":"Time!PLD$22","v":"00:00:00"},{"$f":"Time!PLE$22","v":"00:00:00"},{"$f":"Time!PLF$22","v":"00:00:00"},{"$f":"Time!PLG$22","v":"00:00:00"},{"$f":"Time!PLH$22","v":"00:00:00"},{"$f":"Time!PLI$22","v":"00:00:00"},{"$f":"Time!PLJ$22","v":"00:00:00"},{"$f":"Time!PLK$22","v":"00:00:00"},{"$f":"Time!PLL$22","v":"00:00:00"},{"$f":"Time!PLM$22","v":"00:00:00"},{"$f":"Time!PLN$22","v":"00:00:00"},{"$f":"Time!PLO$22","v":"00:00:00"},{"$f":"Time!PLP$22","v":"00:00:00"},{"$f":"Time!PLQ$22","v":"00:00:00"},{"$f":"Time!PLR$22","v":"00:00:00"},{"$f":"Time!PLS$22","v":"00:00:00"},{"$f":"Time!PLT$22","v":"00:00:00"},{"$f":"Time!PLU$22","v":"00:00:00"},{"$f":"Time!PLV$22","v":"00:00:00"},{"$f":"Time!PLW$22","v":"00:00:00"},{"$f":"Time!PLX$22","v":"00:00:00"},{"$f":"Time!PLY$22","v":"00:00:00"},{"$f":"Time!PLZ$22","v":"00:00:00"},{"$f":"Time!PMA$22","v":"00:00:00"},{"$f":"Time!PMB$22","v":"00:00:00"},{"$f":"Time!PMC$22","v":"00:00:00"},{"$f":"Time!PMD$22","v":"00:00:00"},{"$f":"Time!PME$22","v":"00:00:00"},{"$f":"Time!PMF$22","v":"00:00:00"},{"$f":"Time!PMG$22","v":"00:00:00"},{"$f":"Time!PMH$22","v":"00:00:00"},{"$f":"Time!PMI$22","v":"00:00:00"},{"$f":"Time!PMJ$22","v":"00:00:00"},{"$f":"Time!PMK$22","v":"00:00:00"},{"$f":"Time!PML$22","v":"00:00:00"},{"$f":"Time!PMM$22","v":"00:00:00"},{"$f":"Time!PMN$22","v":"00:00:00"},{"$f":"Time!PMO$22","v":"00:00:00"},{"$f":"Time!PMP$22","v":"00:00:00"},{"$f":"Time!PMQ$22","v":"00:00:00"},{"$f":"Time!PMR$22","v":"00:00:00"},{"$f":"Time!PMS$22","v":"00:00:00"},{"$f":"Time!PMT$22","v":"00:00:00"},{"$f":"Time!PMU$22","v":"00:00:00"},{"$f":"Time!PMV$22","v":"00:00:00"},{"$f":"Time!PMW$22","v":"00:00:00"},{"$f":"Time!PMX$22","v":"00:00:00"},{"$f":"Time!PMY$22","v":"00:00:00"},{"$f":"Time!PMZ$22","v":"00:00:00"},{"$f":"Time!PNA$22","v":"00:00:00"},{"$f":"Time!PNB$22","v":"00:00:00"},{"$f":"Time!PNC$22","v":"00:00:00"},{"$f":"Time!PND$22","v":"00:00:00"},{"$f":"Time!PNE$22","v":"00:00:00"},{"$f":"Time!PNF$22","v":"00:00:00"},{"$f":"Time!PNG$22","v":"00:00:00"},{"$f":"Time!PNH$22","v":"00:00:00"},{"$f":"Time!PNI$22","v":"00:00:00"},{"$f":"Time!PNJ$22","v":"00:00:00"},{"$f":"Time!PNK$22","v":"00:00:00"},{"$f":"Time!PNL$22","v":"00:00:00"},{"$f":"Time!PNM$22","v":"00:00:00"},{"$f":"Time!PNN$22","v":"00:00:00"},{"$f":"Time!PNO$22","v":"00:00:00"},{"$f":"Time!PNP$22","v":"00:00:00"},{"$f":"Time!PNQ$22","v":"00:00:00"},{"$f":"Time!PNR$22","v":"00:00:00"},{"$f":"Time!PNS$22","v":"00:00:00"},{"$f":"Time!PNT$22","v":"00:00:00"},{"$f":"Time!PNU$22","v":"00:00:00"},{"$f":"Time!PNV$22","v":"00:00:00"},{"$f":"Time!PNW$22","v":"00:00:00"},{"$f":"Time!PNX$22","v":"00:00:00"},{"$f":"Time!PNY$22","v":"00:00:00"},{"$f":"Time!PNZ$22","v":"00:00:00"},{"$f":"Time!POA$22","v":"00:00:00"},{"$f":"Time!POB$22","v":"00:00:00"},{"$f":"Time!POC$22","v":"00:00:00"},{"$f":"Time!POD$22","v":"00:00:00"},{"$f":"Time!POE$22","v":"00:00:00"},{"$f":"Time!POF$22","v":"00:00:00"},{"$f":"Time!POG$22","v":"00:00:00"},{"$f":"Time!POH$22","v":"00:00:00"},{"$f":"Time!POI$22","v":"00:00:00"},{"$f":"Time!POJ$22","v":"00:00:00"},{"$f":"Time!POK$22","v":"00:00:00"},{"$f":"Time!POL$22","v":"00:00:00"},{"$f":"Time!POM$22","v":"00:00:00"},{"$f":"Time!PON$22","v":"00:00:00"},{"$f":"Time!POO$22","v":"00:00:00"},{"$f":"Time!POP$22","v":"00:00:00"},{"$f":"Time!POQ$22","v":"00:00:00"},{"$f":"Time!POR$22","v":"00:00:00"},{"$f":"Time!POS$22","v":"00:00:00"},{"$f":"Time!POT$22","v":"00:00:00"},{"$f":"Time!POU$22","v":"00:00:00"},{"$f":"Time!POV$22","v":"00:00:00"},{"$f":"Time!POW$22","v":"00:00:00"},{"$f":"Time!POX$22","v":"00:00:00"},{"$f":"Time!POY$22","v":"00:00:00"},{"$f":"Time!POZ$22","v":"00:00:00"},{"$f":"Time!PPA$22","v":"00:00:00"},{"$f":"Time!PPB$22","v":"00:00:00"},{"$f":"Time!PPC$22","v":"00:00:00"},{"$f":"Time!PPD$22","v":"00:00:00"},{"$f":"Time!PPE$22","v":"00:00:00"},{"$f":"Time!PPF$22","v":"00:00:00"},{"$f":"Time!PPG$22","v":"00:00:00"},{"$f":"Time!PPH$22","v":"00:00:00"},{"$f":"Time!PPI$22","v":"00:00:00"},{"$f":"Time!PPJ$22","v":"00:00:00"},{"$f":"Time!PPK$22","v":"00:00:00"},{"$f":"Time!PPL$22","v":"00:00:00"},{"$f":"Time!PPM$22","v":"00:00:00"},{"$f":"Time!PPN$22","v":"00:00:00"},{"$f":"Time!PPO$22","v":"00:00:00"},{"$f":"Time!PPP$22","v":"00:00:00"},{"$f":"Time!PPQ$22","v":"00:00:00"},{"$f":"Time!PPR$22","v":"00:00:00"},{"$f":"Time!PPS$22","v":"00:00:00"},{"$f":"Time!PPT$22","v":"00:00:00"},{"$f":"Time!PPU$22","v":"00:00:00"},{"$f":"Time!PPV$22","v":"00:00:00"},{"$f":"Time!PPW$22","v":"00:00:00"},{"$f":"Time!PPX$22","v":"00:00:00"},{"$f":"Time!PPY$22","v":"00:00:00"},{"$f":"Time!PPZ$22","v":"00:00:00"},{"$f":"Time!PQA$22","v":"00:00:00"},{"$f":"Time!PQB$22","v":"00:00:00"},{"$f":"Time!PQC$22","v":"00:00:00"},{"$f":"Time!PQD$22","v":"00:00:00"},{"$f":"Time!PQE$22","v":"00:00:00"},{"$f":"Time!PQF$22","v":"00:00:00"},{"$f":"Time!PQG$22","v":"00:00:00"},{"$f":"Time!PQH$22","v":"00:00:00"},{"$f":"Time!PQI$22","v":"00:00:00"},{"$f":"Time!PQJ$22","v":"00:00:00"},{"$f":"Time!PQK$22","v":"00:00:00"},{"$f":"Time!PQL$22","v":"00:00:00"},{"$f":"Time!PQM$22","v":"00:00:00"},{"$f":"Time!PQN$22","v":"00:00:00"},{"$f":"Time!PQO$22","v":"00:00:00"},{"$f":"Time!PQP$22","v":"00:00:00"},{"$f":"Time!PQQ$22","v":"00:00:00"},{"$f":"Time!PQR$22","v":"00:00:00"},{"$f":"Time!PQS$22","v":"00:00:00"},{"$f":"Time!PQT$22","v":"00:00:00"},{"$f":"Time!PQU$22","v":"00:00:00"},{"$f":"Time!PQV$22","v":"00:00:00"},{"$f":"Time!PQW$22","v":"00:00:00"},{"$f":"Time!PQX$22","v":"00:00:00"},{"$f":"Time!PQY$22","v":"00:00:00"},{"$f":"Time!PQZ$22","v":"00:00:00"},{"$f":"Time!PRA$22","v":"00:00:00"},{"$f":"Time!PRB$22","v":"00:00:00"},{"$f":"Time!PRC$22","v":"00:00:00"},{"$f":"Time!PRD$22","v":"00:00:00"},{"$f":"Time!PRE$22","v":"00:00:00"},{"$f":"Time!PRF$22","v":"00:00:00"},{"$f":"Time!PRG$22","v":"00:00:00"},{"$f":"Time!PRH$22","v":"00:00:00"},{"$f":"Time!PRI$22","v":"00:00:00"},{"$f":"Time!PRJ$22","v":"00:00:00"},{"$f":"Time!PRK$22","v":"00:00:00"},{"$f":"Time!PRL$22","v":"00:00:00"},{"$f":"Time!PRM$22","v":"00:00:00"},{"$f":"Time!PRN$22","v":"00:00:00"},{"$f":"Time!PRO$22","v":"00:00:00"},{"$f":"Time!PRP$22","v":"00:00:00"},{"$f":"Time!PRQ$22","v":"00:00:00"},{"$f":"Time!PRR$22","v":"00:00:00"},{"$f":"Time!PRS$22","v":"00:00:00"},{"$f":"Time!PRT$22","v":"00:00:00"},{"$f":"Time!PRU$22","v":"00:00:00"},{"$f":"Time!PRV$22","v":"00:00:00"},{"$f":"Time!PRW$22","v":"00:00:00"},{"$f":"Time!PRX$22","v":"00:00:00"},{"$f":"Time!PRY$22","v":"00:00:00"},{"$f":"Time!PRZ$22","v":"00:00:00"},{"$f":"Time!PSA$22","v":"00:00:00"},{"$f":"Time!PSB$22","v":"00:00:00"},{"$f":"Time!PSC$22","v":"00:00:00"},{"$f":"Time!PSD$22","v":"00:00:00"},{"$f":"Time!PSE$22","v":"00:00:00"},{"$f":"Time!PSF$22","v":"00:00:00"},{"$f":"Time!PSG$22","v":"00:00:00"},{"$f":"Time!PSH$22","v":"00:00:00"},{"$f":"Time!PSI$22","v":"00:00:00"},{"$f":"Time!PSJ$22","v":"00:00:00"},{"$f":"Time!PSK$22","v":"00:00:00"},{"$f":"Time!PSL$22","v":"00:00:00"},{"$f":"Time!PSM$22","v":"00:00:00"},{"$f":"Time!PSN$22","v":"00:00:00"},{"$f":"Time!PSO$22","v":"00:00:00"},{"$f":"Time!PSP$22","v":"00:00:00"},{"$f":"Time!PSQ$22","v":"00:00:00"},{"$f":"Time!PSR$22","v":"00:00:00"},{"$f":"Time!PSS$22","v":"00:00:00"},{"$f":"Time!PST$22","v":"00:00:00"},{"$f":"Time!PSU$22","v":"00:00:00"},{"$f":"Time!PSV$22","v":"00:00:00"},{"$f":"Time!PSW$22","v":"00:00:00"},{"$f":"Time!PSX$22","v":"00:00:00"},{"$f":"Time!PSY$22","v":"00:00:00"},{"$f":"Time!PSZ$22","v":"00:00:00"},{"$f":"Time!PTA$22","v":"00:00:00"},{"$f":"Time!PTB$22","v":"00:00:00"},{"$f":"Time!PTC$22","v":"00:00:00"},{"$f":"Time!PTD$22","v":"00:00:00"},{"$f":"Time!PTE$22","v":"00:00:00"},{"$f":"Time!PTF$22","v":"00:00:00"},{"$f":"Time!PTG$22","v":"00:00:00"},{"$f":"Time!PTH$22","v":"00:00:00"},{"$f":"Time!PTI$22","v":"00:00:00"},{"$f":"Time!PTJ$22","v":"00:00:00"},{"$f":"Time!PTK$22","v":"00:00:00"},{"$f":"Time!PTL$22","v":"00:00:00"},{"$f":"Time!PTM$22","v":"00:00:00"},{"$f":"Time!PTN$22","v":"00:00:00"},{"$f":"Time!PTO$22","v":"00:00:00"},{"$f":"Time!PTP$22","v":"00:00:00"},{"$f":"Time!PTQ$22","v":"00:00:00"},{"$f":"Time!PTR$22","v":"00:00:00"},{"$f":"Time!PTS$22","v":"00:00:00"},{"$f":"Time!PTT$22","v":"00:00:00"},{"$f":"Time!PTU$22","v":"00:00:00"},{"$f":"Time!PTV$22","v":"00:00:00"},{"$f":"Time!PTW$22","v":"00:00:00"},{"$f":"Time!PTX$22","v":"00:00:00"},{"$f":"Time!PTY$22","v":"00:00:00"},{"$f":"Time!PTZ$22","v":"00:00:00"},{"$f":"Time!PUA$22","v":"00:00:00"},{"$f":"Time!PUB$22","v":"00:00:00"},{"$f":"Time!PUC$22","v":"00:00:00"},{"$f":"Time!PUD$22","v":"00:00:00"},{"$f":"Time!PUE$22","v":"00:00:00"},{"$f":"Time!PUF$22","v":"00:00:00"},{"$f":"Time!PUG$22","v":"00:00:00"},{"$f":"Time!PUH$22","v":"00:00:00"},{"$f":"Time!PUI$22","v":"00:00:00"},{"$f":"Time!PUJ$22","v":"00:00:00"},{"$f":"Time!PUK$22","v":"00:00:00"},{"$f":"Time!PUL$22","v":"00:00:00"},{"$f":"Time!PUM$22","v":"00:00:00"},{"$f":"Time!PUN$22","v":"00:00:00"},{"$f":"Time!PUO$22","v":"00:00:00"},{"$f":"Time!PUP$22","v":"00:00:00"},{"$f":"Time!PUQ$22","v":"00:00:00"},{"$f":"Time!PUR$22","v":"00:00:00"},{"$f":"Time!PUS$22","v":"00:00:00"},{"$f":"Time!PUT$22","v":"00:00:00"},{"$f":"Time!PUU$22","v":"00:00:00"},{"$f":"Time!PUV$22","v":"00:00:00"},{"$f":"Time!PUW$22","v":"00:00:00"},{"$f":"Time!PUX$22","v":"00:00:00"},{"$f":"Time!PUY$22","v":"00:00:00"},{"$f":"Time!PUZ$22","v":"00:00:00"},{"$f":"Time!PVA$22","v":"00:00:00"},{"$f":"Time!PVB$22","v":"00:00:00"},{"$f":"Time!PVC$22","v":"00:00:00"},{"$f":"Time!PVD$22","v":"00:00:00"},{"$f":"Time!PVE$22","v":"00:00:00"},{"$f":"Time!PVF$22","v":"00:00:00"},{"$f":"Time!PVG$22","v":"00:00:00"},{"$f":"Time!PVH$22","v":"00:00:00"},{"$f":"Time!PVI$22","v":"00:00:00"},{"$f":"Time!PVJ$22","v":"00:00:00"},{"$f":"Time!PVK$22","v":"00:00:00"},{"$f":"Time!PVL$22","v":"00:00:00"},{"$f":"Time!PVM$22","v":"00:00:00"},{"$f":"Time!PVN$22","v":"00:00:00"},{"$f":"Time!PVO$22","v":"00:00:00"},{"$f":"Time!PVP$22","v":"00:00:00"},{"$f":"Time!PVQ$22","v":"00:00:00"},{"$f":"Time!PVR$22","v":"00:00:00"},{"$f":"Time!PVS$22","v":"00:00:00"},{"$f":"Time!PVT$22","v":"00:00:00"},{"$f":"Time!PVU$22","v":"00:00:00"},{"$f":"Time!PVV$22","v":"00:00:00"},{"$f":"Time!PVW$22","v":"00:00:00"},{"$f":"Time!PVX$22","v":"00:00:00"},{"$f":"Time!PVY$22","v":"00:00:00"},{"$f":"Time!PVZ$22","v":"00:00:00"},{"$f":"Time!PWA$22","v":"00:00:00"},{"$f":"Time!PWB$22","v":"00:00:00"},{"$f":"Time!PWC$22","v":"00:00:00"},{"$f":"Time!PWD$22","v":"00:00:00"},{"$f":"Time!PWE$22","v":"00:00:00"},{"$f":"Time!PWF$22","v":"00:00:00"},{"$f":"Time!PWG$22","v":"00:00:00"},{"$f":"Time!PWH$22","v":"00:00:00"},{"$f":"Time!PWI$22","v":"00:00:00"},{"$f":"Time!PWJ$22","v":"00:00:00"},{"$f":"Time!PWK$22","v":"00:00:00"},{"$f":"Time!PWL$22","v":"00:00:00"},{"$f":"Time!PWM$22","v":"00:00:00"},{"$f":"Time!PWN$22","v":"00:00:00"},{"$f":"Time!PWO$22","v":"00:00:00"},{"$f":"Time!PWP$22","v":"00:00:00"},{"$f":"Time!PWQ$22","v":"00:00:00"},{"$f":"Time!PWR$22","v":"00:00:00"},{"$f":"Time!PWS$22","v":"00:00:00"},{"$f":"Time!PWT$22","v":"00:00:00"},{"$f":"Time!PWU$22","v":"00:00:00"},{"$f":"Time!PWV$22","v":"00:00:00"},{"$f":"Time!PWW$22","v":"00:00:00"},{"$f":"Time!PWX$22","v":"00:00:00"},{"$f":"Time!PWY$22","v":"00:00:00"},{"$f":"Time!PWZ$22","v":"00:00:00"},{"$f":"Time!PXA$22","v":"00:00:00"},{"$f":"Time!PXB$22","v":"00:00:00"},{"$f":"Time!PXC$22","v":"00:00:00"},{"$f":"Time!PXD$22","v":"00:00:00"},{"$f":"Time!PXE$22","v":"00:00:00"},{"$f":"Time!PXF$22","v":"00:00:00"},{"$f":"Time!PXG$22","v":"00:00:00"},{"$f":"Time!PXH$22","v":"00:00:00"},{"$f":"Time!PXI$22","v":"00:00:00"},{"$f":"Time!PXJ$22","v":"00:00:00"},{"$f":"Time!PXK$22","v":"00:00:00"},{"$f":"Time!PXL$22","v":"00:00:00"},{"$f":"Time!PXM$22","v":"00:00:00"},{"$f":"Time!PXN$22","v":"00:00:00"},{"$f":"Time!PXO$22","v":"00:00:00"},{"$f":"Time!PXP$22","v":"00:00:00"},{"$f":"Time!PXQ$22","v":"00:00:00"},{"$f":"Time!PXR$22","v":"00:00:00"},{"$f":"Time!PXS$22","v":"00:00:00"},{"$f":"Time!PXT$22","v":"00:00:00"},{"$f":"Time!PXU$22","v":"00:00:00"},{"$f":"Time!PXV$22","v":"00:00:00"},{"$f":"Time!PXW$22","v":"00:00:00"},{"$f":"Time!PXX$22","v":"00:00:00"},{"$f":"Time!PXY$22","v":"00:00:00"},{"$f":"Time!PXZ$22","v":"00:00:00"},{"$f":"Time!PYA$22","v":"00:00:00"},{"$f":"Time!PYB$22","v":"00:00:00"},{"$f":"Time!PYC$22","v":"00:00:00"},{"$f":"Time!PYD$22","v":"00:00:00"},{"$f":"Time!PYE$22","v":"00:00:00"},{"$f":"Time!PYF$22","v":"00:00:00"},{"$f":"Time!PYG$22","v":"00:00:00"},{"$f":"Time!PYH$22","v":"00:00:00"},{"$f":"Time!PYI$22","v":"00:00:00"},{"$f":"Time!PYJ$22","v":"00:00:00"},{"$f":"Time!PYK$22","v":"00:00:00"},{"$f":"Time!PYL$22","v":"00:00:00"},{"$f":"Time!PYM$22","v":"00:00:00"},{"$f":"Time!PYN$22","v":"00:00:00"},{"$f":"Time!PYO$22","v":"00:00:00"},{"$f":"Time!PYP$22","v":"00:00:00"},{"$f":"Time!PYQ$22","v":"00:00:00"},{"$f":"Time!PYR$22","v":"00:00:00"},{"$f":"Time!PYS$22","v":"00:00:00"},{"$f":"Time!PYT$22","v":"00:00:00"},{"$f":"Time!PYU$22","v":"00:00:00"},{"$f":"Time!PYV$22","v":"00:00:00"},{"$f":"Time!PYW$22","v":"00:00:00"},{"$f":"Time!PYX$22","v":"00:00:00"},{"$f":"Time!PYY$22","v":"00:00:00"},{"$f":"Time!PYZ$22","v":"00:00:00"},{"$f":"Time!PZA$22","v":"00:00:00"},{"$f":"Time!PZB$22","v":"00:00:00"},{"$f":"Time!PZC$22","v":"00:00:00"},{"$f":"Time!PZD$22","v":"00:00:00"},{"$f":"Time!PZE$22","v":"00:00:00"},{"$f":"Time!PZF$22","v":"00:00:00"},{"$f":"Time!PZG$22","v":"00:00:00"},{"$f":"Time!PZH$22","v":"00:00:00"},{"$f":"Time!PZI$22","v":"00:00:00"},{"$f":"Time!PZJ$22","v":"00:00:00"},{"$f":"Time!PZK$22","v":"00:00:00"},{"$f":"Time!PZL$22","v":"00:00:00"},{"$f":"Time!PZM$22","v":"00:00:00"},{"$f":"Time!PZN$22","v":"00:00:00"},{"$f":"Time!PZO$22","v":"00:00:00"},{"$f":"Time!PZP$22","v":"00:00:00"},{"$f":"Time!PZQ$22","v":"00:00:00"},{"$f":"Time!PZR$22","v":"00:00:00"},{"$f":"Time!PZS$22","v":"00:00:00"},{"$f":"Time!PZT$22","v":"00:00:00"},{"$f":"Time!PZU$22","v":"00:00:00"},{"$f":"Time!PZV$22","v":"00:00:00"},{"$f":"Time!PZW$22","v":"00:00:00"},{"$f":"Time!PZX$22","v":"00:00:00"},{"$f":"Time!PZY$22","v":"00:00:00"},{"$f":"Time!PZZ$22","v":"00:00:00"},{"$f":"Time!QAA$22","v":"00:00:00"},{"$f":"Time!QAB$22","v":"00:00:00"},{"$f":"Time!QAC$22","v":"00:00:00"},{"$f":"Time!QAD$22","v":"00:00:00"},{"$f":"Time!QAE$22","v":"00:00:00"},{"$f":"Time!QAF$22","v":"00:00:00"},{"$f":"Time!QAG$22","v":"00:00:00"},{"$f":"Time!QAH$22","v":"00:00:00"},{"$f":"Time!QAI$22","v":"00:00:00"},{"$f":"Time!QAJ$22","v":"00:00:00"},{"$f":"Time!QAK$22","v":"00:00:00"},{"$f":"Time!QAL$22","v":"00:00:00"},{"$f":"Time!QAM$22","v":"00:00:00"},{"$f":"Time!QAN$22","v":"00:00:00"},{"$f":"Time!QAO$22","v":"00:00:00"},{"$f":"Time!QAP$22","v":"00:00:00"},{"$f":"Time!QAQ$22","v":"00:00:00"},{"$f":"Time!QAR$22","v":"00:00:00"},{"$f":"Time!QAS$22","v":"00:00:00"},{"$f":"Time!QAT$22","v":"00:00:00"},{"$f":"Time!QAU$22","v":"00:00:00"},{"$f":"Time!QAV$22","v":"00:00:00"},{"$f":"Time!QAW$22","v":"00:00:00"},{"$f":"Time!QAX$22","v":"00:00:00"},{"$f":"Time!QAY$22","v":"00:00:00"},{"$f":"Time!QAZ$22","v":"00:00:00"},{"$f":"Time!QBA$22","v":"00:00:00"},{"$f":"Time!QBB$22","v":"00:00:00"},{"$f":"Time!QBC$22","v":"00:00:00"},{"$f":"Time!QBD$22","v":"00:00:00"},{"$f":"Time!QBE$22","v":"00:00:00"},{"$f":"Time!QBF$22","v":"00:00:00"},{"$f":"Time!QBG$22","v":"00:00:00"},{"$f":"Time!QBH$22","v":"00:00:00"},{"$f":"Time!QBI$22","v":"00:00:00"},{"$f":"Time!QBJ$22","v":"00:00:00"},{"$f":"Time!QBK$22","v":"00:00:00"},{"$f":"Time!QBL$22","v":"00:00:00"},{"$f":"Time!QBM$22","v":"00:00:00"},{"$f":"Time!QBN$22","v":"00:00:00"},{"$f":"Time!QBO$22","v":"00:00:00"},{"$f":"Time!QBP$22","v":"00:00:00"},{"$f":"Time!QBQ$22","v":"00:00:00"},{"$f":"Time!QBR$22","v":"00:00:00"},{"$f":"Time!QBS$22","v":"00:00:00"},{"$f":"Time!QBT$22","v":"00:00:00"},{"$f":"Time!QBU$22","v":"00:00:00"},{"$f":"Time!QBV$22","v":"00:00:00"},{"$f":"Time!QBW$22","v":"00:00:00"},{"$f":"Time!QBX$22","v":"00:00:00"},{"$f":"Time!QBY$22","v":"00:00:00"},{"$f":"Time!QBZ$22","v":"00:00:00"},{"$f":"Time!QCA$22","v":"00:00:00"},{"$f":"Time!QCB$22","v":"00:00:00"},{"$f":"Time!QCC$22","v":"00:00:00"},{"$f":"Time!QCD$22","v":"00:00:00"},{"$f":"Time!QCE$22","v":"00:00:00"},{"$f":"Time!QCF$22","v":"00:00:00"},{"$f":"Time!QCG$22","v":"00:00:00"},{"$f":"Time!QCH$22","v":"00:00:00"},{"$f":"Time!QCI$22","v":"00:00:00"},{"$f":"Time!QCJ$22","v":"00:00:00"},{"$f":"Time!QCK$22","v":"00:00:00"},{"$f":"Time!QCL$22","v":"00:00:00"},{"$f":"Time!QCM$22","v":"00:00:00"},{"$f":"Time!QCN$22","v":"00:00:00"},{"$f":"Time!QCO$22","v":"00:00:00"},{"$f":"Time!QCP$22","v":"00:00:00"},{"$f":"Time!QCQ$22","v":"00:00:00"},{"$f":"Time!QCR$22","v":"00:00:00"},{"$f":"Time!QCS$22","v":"00:00:00"},{"$f":"Time!QCT$22","v":"00:00:00"},{"$f":"Time!QCU$22","v":"00:00:00"},{"$f":"Time!QCV$22","v":"00:00:00"},{"$f":"Time!QCW$22","v":"00:00:00"},{"$f":"Time!QCX$22","v":"00:00:00"},{"$f":"Time!QCY$22","v":"00:00:00"},{"$f":"Time!QCZ$22","v":"00:00:00"},{"$f":"Time!QDA$22","v":"00:00:00"},{"$f":"Time!QDB$22","v":"00:00:00"},{"$f":"Time!QDC$22","v":"00:00:00"},{"$f":"Time!QDD$22","v":"00:00:00"},{"$f":"Time!QDE$22","v":"00:00:00"},{"$f":"Time!QDF$22","v":"00:00:00"},{"$f":"Time!QDG$22","v":"00:00:00"},{"$f":"Time!QDH$22","v":"00:00:00"},{"$f":"Time!QDI$22","v":"00:00:00"},{"$f":"Time!QDJ$22","v":"00:00:00"},{"$f":"Time!QDK$22","v":"00:00:00"},{"$f":"Time!QDL$22","v":"00:00:00"},{"$f":"Time!QDM$22","v":"00:00:00"},{"$f":"Time!QDN$22","v":"00:00:00"},{"$f":"Time!QDO$22","v":"00:00:00"},{"$f":"Time!QDP$22","v":"00:00:00"},{"$f":"Time!QDQ$22","v":"00:00:00"},{"$f":"Time!QDR$22","v":"00:00:00"},{"$f":"Time!QDS$22","v":"00:00:00"},{"$f":"Time!QDT$22","v":"00:00:00"},{"$f":"Time!QDU$22","v":"00:00:00"},{"$f":"Time!QDV$22","v":"00:00:00"},{"$f":"Time!QDW$22","v":"00:00:00"},{"$f":"Time!QDX$22","v":"00:00:00"},{"$f":"Time!QDY$22","v":"00:00:00"},{"$f":"Time!QDZ$22","v":"00:00:00"},{"$f":"Time!QEA$22","v":"00:00:00"},{"$f":"Time!QEB$22","v":"00:00:00"},{"$f":"Time!QEC$22","v":"00:00:00"},{"$f":"Time!QED$22","v":"00:00:00"},{"$f":"Time!QEE$22","v":"00:00:00"},{"$f":"Time!QEF$22","v":"00:00:00"},{"$f":"Time!QEG$22","v":"00:00:00"},{"$f":"Time!QEH$22","v":"00:00:00"},{"$f":"Time!QEI$22","v":"00:00:00"},{"$f":"Time!QEJ$22","v":"00:00:00"},{"$f":"Time!QEK$22","v":"00:00:00"},{"$f":"Time!QEL$22","v":"00:00:00"},{"$f":"Time!QEM$22","v":"00:00:00"},{"$f":"Time!QEN$22","v":"00:00:00"},{"$f":"Time!QEO$22","v":"00:00:00"},{"$f":"Time!QEP$22","v":"00:00:00"},{"$f":"Time!QEQ$22","v":"00:00:00"},{"$f":"Time!QER$22","v":"00:00:00"},{"$f":"Time!QES$22","v":"00:00:00"},{"$f":"Time!QET$22","v":"00:00:00"},{"$f":"Time!QEU$22","v":"00:00:00"},{"$f":"Time!QEV$22","v":"00:00:00"},{"$f":"Time!QEW$22","v":"00:00:00"},{"$f":"Time!QEX$22","v":"00:00:00"},{"$f":"Time!QEY$22","v":"00:00:00"},{"$f":"Time!QEZ$22","v":"00:00:00"},{"$f":"Time!QFA$22","v":"00:00:00"},{"$f":"Time!QFB$22","v":"00:00:00"},{"$f":"Time!QFC$22","v":"00:00:00"},{"$f":"Time!QFD$22","v":"00:00:00"},{"$f":"Time!QFE$22","v":"00:00:00"},{"$f":"Time!QFF$22","v":"00:00:00"},{"$f":"Time!QFG$22","v":"00:00:00"},{"$f":"Time!QFH$22","v":"00:00:00"},{"$f":"Time!QFI$22","v":"00:00:00"},{"$f":"Time!QFJ$22","v":"00:00:00"},{"$f":"Time!QFK$22","v":"00:00:00"},{"$f":"Time!QFL$22","v":"00:00:00"},{"$f":"Time!QFM$22","v":"00:00:00"},{"$f":"Time!QFN$22","v":"00:00:00"},{"$f":"Time!QFO$22","v":"00:00:00"},{"$f":"Time!QFP$22","v":"00:00:00"},{"$f":"Time!QFQ$22","v":"00:00:00"},{"$f":"Time!QFR$22","v":"00:00:00"},{"$f":"Time!QFS$22","v":"00:00:00"},{"$f":"Time!QFT$22","v":"00:00:00"},{"$f":"Time!QFU$22","v":"00:00:00"},{"$f":"Time!QFV$22","v":"00:00:00"},{"$f":"Time!QFW$22","v":"00:00:00"},{"$f":"Time!QFX$22","v":"00:00:00"},{"$f":"Time!QFY$22","v":"00:00:00"},{"$f":"Time!QFZ$22","v":"00:00:00"},{"$f":"Time!QGA$22","v":"00:00:00"},{"$f":"Time!QGB$22","v":"00:00:00"},{"$f":"Time!QGC$22","v":"00:00:00"},{"$f":"Time!QGD$22","v":"00:00:00"},{"$f":"Time!QGE$22","v":"00:00:00"},{"$f":"Time!QGF$22","v":"00:00:00"},{"$f":"Time!QGG$22","v":"00:00:00"},{"$f":"Time!QGH$22","v":"00:00:00"},{"$f":"Time!QGI$22","v":"00:00:00"},{"$f":"Time!QGJ$22","v":"00:00:00"},{"$f":"Time!QGK$22","v":"00:00:00"},{"$f":"Time!QGL$22","v":"00:00:00"},{"$f":"Time!QGM$22","v":"00:00:00"},{"$f":"Time!QGN$22","v":"00:00:00"},{"$f":"Time!QGO$22","v":"00:00:00"},{"$f":"Time!QGP$22","v":"00:00:00"},{"$f":"Time!QGQ$22","v":"00:00:00"},{"$f":"Time!QGR$22","v":"00:00:00"},{"$f":"Time!QGS$22","v":"00:00:00"},{"$f":"Time!QGT$22","v":"00:00:00"},{"$f":"Time!QGU$22","v":"00:00:00"},{"$f":"Time!QGV$22","v":"00:00:00"},{"$f":"Time!QGW$22","v":"00:00:00"},{"$f":"Time!QGX$22","v":"00:00:00"},{"$f":"Time!QGY$22","v":"00:00:00"},{"$f":"Time!QGZ$22","v":"00:00:00"},{"$f":"Time!QHA$22","v":"00:00:00"},{"$f":"Time!QHB$22","v":"00:00:00"},{"$f":"Time!QHC$22","v":"00:00:00"},{"$f":"Time!QHD$22","v":"00:00:00"},{"$f":"Time!QHE$22","v":"00:00:00"},{"$f":"Time!QHF$22","v":"00:00:00"},{"$f":"Time!QHG$22","v":"00:00:00"},{"$f":"Time!QHH$22","v":"00:00:00"},{"$f":"Time!QHI$22","v":"00:00:00"},{"$f":"Time!QHJ$22","v":"00:00:00"},{"$f":"Time!QHK$22","v":"00:00:00"},{"$f":"Time!QHL$22","v":"00:00:00"},{"$f":"Time!QHM$22","v":"00:00:00"},{"$f":"Time!QHN$22","v":"00:00:00"},{"$f":"Time!QHO$22","v":"00:00:00"},{"$f":"Time!QHP$22","v":"00:00:00"},{"$f":"Time!QHQ$22","v":"00:00:00"},{"$f":"Time!QHR$22","v":"00:00:00"},{"$f":"Time!QHS$22","v":"00:00:00"},{"$f":"Time!QHT$22","v":"00:00:00"},{"$f":"Time!QHU$22","v":"00:00:00"},{"$f":"Time!QHV$22","v":"00:00:00"},{"$f":"Time!QHW$22","v":"00:00:00"},{"$f":"Time!QHX$22","v":"00:00:00"},{"$f":"Time!QHY$22","v":"00:00:00"},{"$f":"Time!QHZ$22","v":"00:00:00"},{"$f":"Time!QIA$22","v":"00:00:00"},{"$f":"Time!QIB$22","v":"00:00:00"},{"$f":"Time!QIC$22","v":"00:00:00"},{"$f":"Time!QID$22","v":"00:00:00"},{"$f":"Time!QIE$22","v":"00:00:00"},{"$f":"Time!QIF$22","v":"00:00:00"},{"$f":"Time!QIG$22","v":"00:00:00"},{"$f":"Time!QIH$22","v":"00:00:00"},{"$f":"Time!QII$22","v":"00:00:00"},{"$f":"Time!QIJ$22","v":"00:00:00"},{"$f":"Time!QIK$22","v":"00:00:00"},{"$f":"Time!QIL$22","v":"00:00:00"},{"$f":"Time!QIM$22","v":"00:00:00"},{"$f":"Time!QIN$22","v":"00:00:00"},{"$f":"Time!QIO$22","v":"00:00:00"},{"$f":"Time!QIP$22","v":"00:00:00"},{"$f":"Time!QIQ$22","v":"00:00:00"},{"$f":"Time!QIR$22","v":"00:00:00"},{"$f":"Time!QIS$22","v":"00:00:00"},{"$f":"Time!QIT$22","v":"00:00:00"},{"$f":"Time!QIU$22","v":"00:00:00"},{"$f":"Time!QIV$22","v":"00:00:00"},{"$f":"Time!QIW$22","v":"00:00:00"},{"$f":"Time!QIX$22","v":"00:00:00"},{"$f":"Time!QIY$22","v":"00:00:00"},{"$f":"Time!QIZ$22","v":"00:00:00"},{"$f":"Time!QJA$22","v":"00:00:00"},{"$f":"Time!QJB$22","v":"00:00:00"},{"$f":"Time!QJC$22","v":"00:00:00"},{"$f":"Time!QJD$22","v":"00:00:00"},{"$f":"Time!QJE$22","v":"00:00:00"},{"$f":"Time!QJF$22","v":"00:00:00"},{"$f":"Time!QJG$22","v":"00:00:00"},{"$f":"Time!QJH$22","v":"00:00:00"},{"$f":"Time!QJI$22","v":"00:00:00"},{"$f":"Time!QJJ$22","v":"00:00:00"},{"$f":"Time!QJK$22","v":"00:00:00"},{"$f":"Time!QJL$22","v":"00:00:00"},{"$f":"Time!QJM$22","v":"00:00:00"},{"$f":"Time!QJN$22","v":"00:00:00"},{"$f":"Time!QJO$22","v":"00:00:00"},{"$f":"Time!QJP$22","v":"00:00:00"},{"$f":"Time!QJQ$22","v":"00:00:00"},{"$f":"Time!QJR$22","v":"00:00:00"},{"$f":"Time!QJS$22","v":"00:00:00"},{"$f":"Time!QJT$22","v":"00:00:00"},{"$f":"Time!QJU$22","v":"00:00:00"},{"$f":"Time!QJV$22","v":"00:00:00"},{"$f":"Time!QJW$22","v":"00:00:00"},{"$f":"Time!QJX$22","v":"00:00:00"},{"$f":"Time!QJY$22","v":"00:00:00"},{"$f":"Time!QJZ$22","v":"00:00:00"},{"$f":"Time!QKA$22","v":"00:00:00"},{"$f":"Time!QKB$22","v":"00:00:00"},{"$f":"Time!QKC$22","v":"00:00:00"},{"$f":"Time!QKD$22","v":"00:00:00"},{"$f":"Time!QKE$22","v":"00:00:00"},{"$f":"Time!QKF$22","v":"00:00:00"},{"$f":"Time!QKG$22","v":"00:00:00"},{"$f":"Time!QKH$22","v":"00:00:00"},{"$f":"Time!QKI$22","v":"00:00:00"},{"$f":"Time!QKJ$22","v":"00:00:00"},{"$f":"Time!QKK$22","v":"00:00:00"},{"$f":"Time!QKL$22","v":"00:00:00"},{"$f":"Time!QKM$22","v":"00:00:00"},{"$f":"Time!QKN$22","v":"00:00:00"},{"$f":"Time!QKO$22","v":"00:00:00"},{"$f":"Time!QKP$22","v":"00:00:00"},{"$f":"Time!QKQ$22","v":"00:00:00"},{"$f":"Time!QKR$22","v":"00:00:00"},{"$f":"Time!QKS$22","v":"00:00:00"},{"$f":"Time!QKT$22","v":"00:00:00"},{"$f":"Time!QKU$22","v":"00:00:00"},{"$f":"Time!QKV$22","v":"00:00:00"},{"$f":"Time!QKW$22","v":"00:00:00"},{"$f":"Time!QKX$22","v":"00:00:00"},{"$f":"Time!QKY$22","v":"00:00:00"},{"$f":"Time!QKZ$22","v":"00:00:00"},{"$f":"Time!QLA$22","v":"00:00:00"},{"$f":"Time!QLB$22","v":"00:00:00"},{"$f":"Time!QLC$22","v":"00:00:00"},{"$f":"Time!QLD$22","v":"00:00:00"},{"$f":"Time!QLE$22","v":"00:00:00"},{"$f":"Time!QLF$22","v":"00:00:00"},{"$f":"Time!QLG$22","v":"00:00:00"},{"$f":"Time!QLH$22","v":"00:00:00"},{"$f":"Time!QLI$22","v":"00:00:00"},{"$f":"Time!QLJ$22","v":"00:00:00"},{"$f":"Time!QLK$22","v":"00:00:00"},{"$f":"Time!QLL$22","v":"00:00:00"},{"$f":"Time!QLM$22","v":"00:00:00"},{"$f":"Time!QLN$22","v":"00:00:00"},{"$f":"Time!QLO$22","v":"00:00:00"},{"$f":"Time!QLP$22","v":"00:00:00"},{"$f":"Time!QLQ$22","v":"00:00:00"},{"$f":"Time!QLR$22","v":"00:00:00"},{"$f":"Time!QLS$22","v":"00:00:00"},{"$f":"Time!QLT$22","v":"00:00:00"},{"$f":"Time!QLU$22","v":"00:00:00"},{"$f":"Time!QLV$22","v":"00:00:00"},{"$f":"Time!QLW$22","v":"00:00:00"},{"$f":"Time!QLX$22","v":"00:00:00"},{"$f":"Time!QLY$22","v":"00:00:00"},{"$f":"Time!QLZ$22","v":"00:00:00"},{"$f":"Time!QMA$22","v":"00:00:00"},{"$f":"Time!QMB$22","v":"00:00:00"},{"$f":"Time!QMC$22","v":"00:00:00"},{"$f":"Time!QMD$22","v":"00:00:00"},{"$f":"Time!QME$22","v":"00:00:00"},{"$f":"Time!QMF$22","v":"00:00:00"},{"$f":"Time!QMG$22","v":"00:00:00"},{"$f":"Time!QMH$22","v":"00:00:00"},{"$f":"Time!QMI$22","v":"00:00:00"},{"$f":"Time!QMJ$22","v":"00:00:00"},{"$f":"Time!QMK$22","v":"00:00:00"},{"$f":"Time!QML$22","v":"00:00:00"},{"$f":"Time!QMM$22","v":"00:00:00"},{"$f":"Time!QMN$22","v":"00:00:00"},{"$f":"Time!QMO$22","v":"00:00:00"},{"$f":"Time!QMP$22","v":"00:00:00"},{"$f":"Time!QMQ$22","v":"00:00:00"},{"$f":"Time!QMR$22","v":"00:00:00"},{"$f":"Time!QMS$22","v":"00:00:00"},{"$f":"Time!QMT$22","v":"00:00:00"},{"$f":"Time!QMU$22","v":"00:00:00"},{"$f":"Time!QMV$22","v":"00:00:00"},{"$f":"Time!QMW$22","v":"00:00:00"},{"$f":"Time!QMX$22","v":"00:00:00"},{"$f":"Time!QMY$22","v":"00:00:00"},{"$f":"Time!QMZ$22","v":"00:00:00"},{"$f":"Time!QNA$22","v":"00:00:00"},{"$f":"Time!QNB$22","v":"00:00:00"},{"$f":"Time!QNC$22","v":"00:00:00"},{"$f":"Time!QND$22","v":"00:00:00"},{"$f":"Time!QNE$22","v":"00:00:00"},{"$f":"Time!QNF$22","v":"00:00:00"},{"$f":"Time!QNG$22","v":"00:00:00"},{"$f":"Time!QNH$22","v":"00:00:00"},{"$f":"Time!QNI$22","v":"00:00:00"},{"$f":"Time!QNJ$22","v":"00:00:00"},{"$f":"Time!QNK$22","v":"00:00:00"},{"$f":"Time!QNL$22","v":"00:00:00"},{"$f":"Time!QNM$22","v":"00:00:00"},{"$f":"Time!QNN$22","v":"00:00:00"},{"$f":"Time!QNO$22","v":"00:00:00"},{"$f":"Time!QNP$22","v":"00:00:00"},{"$f":"Time!QNQ$22","v":"00:00:00"},{"$f":"Time!QNR$22","v":"00:00:00"},{"$f":"Time!QNS$22","v":"00:00:00"},{"$f":"Time!QNT$22","v":"00:00:00"},{"$f":"Time!QNU$22","v":"00:00:00"},{"$f":"Time!QNV$22","v":"00:00:00"},{"$f":"Time!QNW$22","v":"00:00:00"},{"$f":"Time!QNX$22","v":"00:00:00"},{"$f":"Time!QNY$22","v":"00:00:00"},{"$f":"Time!QNZ$22","v":"00:00:00"},{"$f":"Time!QOA$22","v":"00:00:00"},{"$f":"Time!QOB$22","v":"00:00:00"},{"$f":"Time!QOC$22","v":"00:00:00"},{"$f":"Time!QOD$22","v":"00:00:00"},{"$f":"Time!QOE$22","v":"00:00:00"},{"$f":"Time!QOF$22","v":"00:00:00"},{"$f":"Time!QOG$22","v":"00:00:00"},{"$f":"Time!QOH$22","v":"00:00:00"},{"$f":"Time!QOI$22","v":"00:00:00"},{"$f":"Time!QOJ$22","v":"00:00:00"},{"$f":"Time!QOK$22","v":"00:00:00"},{"$f":"Time!QOL$22","v":"00:00:00"},{"$f":"Time!QOM$22","v":"00:00:00"},{"$f":"Time!QON$22","v":"00:00:00"},{"$f":"Time!QOO$22","v":"00:00:00"},{"$f":"Time!QOP$22","v":"00:00:00"},{"$f":"Time!QOQ$22","v":"00:00:00"},{"$f":"Time!QOR$22","v":"00:00:00"},{"$f":"Time!QOS$22","v":"00:00:00"},{"$f":"Time!QOT$22","v":"00:00:00"},{"$f":"Time!QOU$22","v":"00:00:00"},{"$f":"Time!QOV$22","v":"00:00:00"},{"$f":"Time!QOW$22","v":"00:00:00"},{"$f":"Time!QOX$22","v":"00:00:00"},{"$f":"Time!QOY$22","v":"00:00:00"},{"$f":"Time!QOZ$22","v":"00:00:00"},{"$f":"Time!QPA$22","v":"00:00:00"},{"$f":"Time!QPB$22","v":"00:00:00"},{"$f":"Time!QPC$22","v":"00:00:00"},{"$f":"Time!QPD$22","v":"00:00:00"},{"$f":"Time!QPE$22","v":"00:00:00"},{"$f":"Time!QPF$22","v":"00:00:00"},{"$f":"Time!QPG$22","v":"00:00:00"},{"$f":"Time!QPH$22","v":"00:00:00"},{"$f":"Time!QPI$22","v":"00:00:00"},{"$f":"Time!QPJ$22","v":"00:00:00"},{"$f":"Time!QPK$22","v":"00:00:00"},{"$f":"Time!QPL$22","v":"00:00:00"},{"$f":"Time!QPM$22","v":"00:00:00"},{"$f":"Time!QPN$22","v":"00:00:00"},{"$f":"Time!QPO$22","v":"00:00:00"},{"$f":"Time!QPP$22","v":"00:00:00"},{"$f":"Time!QPQ$22","v":"00:00:00"},{"$f":"Time!QPR$22","v":"00:00:00"},{"$f":"Time!QPS$22","v":"00:00:00"},{"$f":"Time!QPT$22","v":"00:00:00"},{"$f":"Time!QPU$22","v":"00:00:00"},{"$f":"Time!QPV$22","v":"00:00:00"},{"$f":"Time!QPW$22","v":"00:00:00"},{"$f":"Time!QPX$22","v":"00:00:00"},{"$f":"Time!QPY$22","v":"00:00:00"},{"$f":"Time!QPZ$22","v":"00:00:00"},{"$f":"Time!QQA$22","v":"00:00:00"},{"$f":"Time!QQB$22","v":"00:00:00"},{"$f":"Time!QQC$22","v":"00:00:00"},{"$f":"Time!QQD$22","v":"00:00:00"},{"$f":"Time!QQE$22","v":"00:00:00"},{"$f":"Time!QQF$22","v":"00:00:00"},{"$f":"Time!QQG$22","v":"00:00:00"},{"$f":"Time!QQH$22","v":"00:00:00"},{"$f":"Time!QQI$22","v":"00:00:00"},{"$f":"Time!QQJ$22","v":"00:00:00"},{"$f":"Time!QQK$22","v":"00:00:00"},{"$f":"Time!QQL$22","v":"00:00:00"},{"$f":"Time!QQM$22","v":"00:00:00"},{"$f":"Time!QQN$22","v":"00:00:00"},{"$f":"Time!QQO$22","v":"00:00:00"},{"$f":"Time!QQP$22","v":"00:00:00"},{"$f":"Time!QQQ$22","v":"00:00:00"},{"$f":"Time!QQR$22","v":"00:00:00"},{"$f":"Time!QQS$22","v":"00:00:00"},{"$f":"Time!QQT$22","v":"00:00:00"},{"$f":"Time!QQU$22","v":"00:00:00"},{"$f":"Time!QQV$22","v":"00:00:00"},{"$f":"Time!QQW$22","v":"00:00:00"},{"$f":"Time!QQX$22","v":"00:00:00"},{"$f":"Time!QQY$22","v":"00:00:00"},{"$f":"Time!QQZ$22","v":"00:00:00"},{"$f":"Time!QRA$22","v":"00:00:00"},{"$f":"Time!QRB$22","v":"00:00:00"},{"$f":"Time!QRC$22","v":"00:00:00"},{"$f":"Time!QRD$22","v":"00:00:00"},{"$f":"Time!QRE$22","v":"00:00:00"},{"$f":"Time!QRF$22","v":"00:00:00"},{"$f":"Time!QRG$22","v":"00:00:00"},{"$f":"Time!QRH$22","v":"00:00:00"},{"$f":"Time!QRI$22","v":"00:00:00"},{"$f":"Time!QRJ$22","v":"00:00:00"},{"$f":"Time!QRK$22","v":"00:00:00"},{"$f":"Time!QRL$22","v":"00:00:00"},{"$f":"Time!QRM$22","v":"00:00:00"},{"$f":"Time!QRN$22","v":"00:00:00"},{"$f":"Time!QRO$22","v":"00:00:00"},{"$f":"Time!QRP$22","v":"00:00:00"},{"$f":"Time!QRQ$22","v":"00:00:00"},{"$f":"Time!QRR$22","v":"00:00:00"},{"$f":"Time!QRS$22","v":"00:00:00"},{"$f":"Time!QRT$22","v":"00:00:00"},{"$f":"Time!QRU$22","v":"00:00:00"},{"$f":"Time!QRV$22","v":"00:00:00"},{"$f":"Time!QRW$22","v":"00:00:00"},{"$f":"Time!QRX$22","v":"00:00:00"},{"$f":"Time!QRY$22","v":"00:00:00"},{"$f":"Time!QRZ$22","v":"00:00:00"},{"$f":"Time!QSA$22","v":"00:00:00"},{"$f":"Time!QSB$22","v":"00:00:00"},{"$f":"Time!QSC$22","v":"00:00:00"},{"$f":"Time!QSD$22","v":"00:00:00"},{"$f":"Time!QSE$22","v":"00:00:00"},{"$f":"Time!QSF$22","v":"00:00:00"},{"$f":"Time!QSG$22","v":"00:00:00"},{"$f":"Time!QSH$22","v":"00:00:00"},{"$f":"Time!QSI$22","v":"00:00:00"},{"$f":"Time!QSJ$22","v":"00:00:00"},{"$f":"Time!QSK$22","v":"00:00:00"},{"$f":"Time!QSL$22","v":"00:00:00"},{"$f":"Time!QSM$22","v":"00:00:00"},{"$f":"Time!QSN$22","v":"00:00:00"},{"$f":"Time!QSO$22","v":"00:00:00"},{"$f":"Time!QSP$22","v":"00:00:00"},{"$f":"Time!QSQ$22","v":"00:00:00"},{"$f":"Time!QSR$22","v":"00:00:00"},{"$f":"Time!QSS$22","v":"00:00:00"},{"$f":"Time!QST$22","v":"00:00:00"},{"$f":"Time!QSU$22","v":"00:00:00"},{"$f":"Time!QSV$22","v":"00:00:00"},{"$f":"Time!QSW$22","v":"00:00:00"},{"$f":"Time!QSX$22","v":"00:00:00"},{"$f":"Time!QSY$22","v":"00:00:00"},{"$f":"Time!QSZ$22","v":"00:00:00"},{"$f":"Time!QTA$22","v":"00:00:00"},{"$f":"Time!QTB$22","v":"00:00:00"},{"$f":"Time!QTC$22","v":"00:00:00"},{"$f":"Time!QTD$22","v":"00:00:00"},{"$f":"Time!QTE$22","v":"00:00:00"},{"$f":"Time!QTF$22","v":"00:00:00"},{"$f":"Time!QTG$22","v":"00:00:00"},{"$f":"Time!QTH$22","v":"00:00:00"},{"$f":"Time!QTI$22","v":"00:00:00"},{"$f":"Time!QTJ$22","v":"00:00:00"},{"$f":"Time!QTK$22","v":"00:00:00"},{"$f":"Time!QTL$22","v":"00:00:00"},{"$f":"Time!QTM$22","v":"00:00:00"},{"$f":"Time!QTN$22","v":"00:00:00"},{"$f":"Time!QTO$22","v":"00:00:00"},{"$f":"Time!QTP$22","v":"00:00:00"},{"$f":"Time!QTQ$22","v":"00:00:00"},{"$f":"Time!QTR$22","v":"00:00:00"},{"$f":"Time!QTS$22","v":"00:00:00"},{"$f":"Time!QTT$22","v":"00:00:00"},{"$f":"Time!QTU$22","v":"00:00:00"},{"$f":"Time!QTV$22","v":"00:00:00"},{"$f":"Time!QTW$22","v":"00:00:00"},{"$f":"Time!QTX$22","v":"00:00:00"},{"$f":"Time!QTY$22","v":"00:00:00"},{"$f":"Time!QTZ$22","v":"00:00:00"},{"$f":"Time!QUA$22","v":"00:00:00"},{"$f":"Time!QUB$22","v":"00:00:00"},{"$f":"Time!QUC$22","v":"00:00:00"},{"$f":"Time!QUD$22","v":"00:00:00"},{"$f":"Time!QUE$22","v":"00:00:00"},{"$f":"Time!QUF$22","v":"00:00:00"},{"$f":"Time!QUG$22","v":"00:00:00"},{"$f":"Time!QUH$22","v":"00:00:00"},{"$f":"Time!QUI$22","v":"00:00:00"},{"$f":"Time!QUJ$22","v":"00:00:00"},{"$f":"Time!QUK$22","v":"00:00:00"},{"$f":"Time!QUL$22","v":"00:00:00"},{"$f":"Time!QUM$22","v":"00:00:00"},{"$f":"Time!QUN$22","v":"00:00:00"},{"$f":"Time!QUO$22","v":"00:00:00"},{"$f":"Time!QUP$22","v":"00:00:00"},{"$f":"Time!QUQ$22","v":"00:00:00"},{"$f":"Time!QUR$22","v":"00:00:00"},{"$f":"Time!QUS$22","v":"00:00:00"},{"$f":"Time!QUT$22","v":"00:00:00"},{"$f":"Time!QUU$22","v":"00:00:00"},{"$f":"Time!QUV$22","v":"00:00:00"},{"$f":"Time!QUW$22","v":"00:00:00"},{"$f":"Time!QUX$22","v":"00:00:00"},{"$f":"Time!QUY$22","v":"00:00:00"},{"$f":"Time!QUZ$22","v":"00:00:00"},{"$f":"Time!QVA$22","v":"00:00:00"},{"$f":"Time!QVB$22","v":"00:00:00"},{"$f":"Time!QVC$22","v":"00:00:00"},{"$f":"Time!QVD$22","v":"00:00:00"},{"$f":"Time!QVE$22","v":"00:00:00"},{"$f":"Time!QVF$22","v":"00:00:00"},{"$f":"Time!QVG$22","v":"00:00:00"},{"$f":"Time!QVH$22","v":"00:00:00"},{"$f":"Time!QVI$22","v":"00:00:00"},{"$f":"Time!QVJ$22","v":"00:00:00"},{"$f":"Time!QVK$22","v":"00:00:00"},{"$f":"Time!QVL$22","v":"00:00:00"},{"$f":"Time!QVM$22","v":"00:00:00"},{"$f":"Time!QVN$22","v":"00:00:00"},{"$f":"Time!QVO$22","v":"00:00:00"},{"$f":"Time!QVP$22","v":"00:00:00"},{"$f":"Time!QVQ$22","v":"00:00:00"},{"$f":"Time!QVR$22","v":"00:00:00"},{"$f":"Time!QVS$22","v":"00:00:00"},{"$f":"Time!QVT$22","v":"00:00:00"},{"$f":"Time!QVU$22","v":"00:00:00"},{"$f":"Time!QVV$22","v":"00:00:00"},{"$f":"Time!QVW$22","v":"00:00:00"},{"$f":"Time!QVX$22","v":"00:00:00"},{"$f":"Time!QVY$22","v":"00:00:00"},{"$f":"Time!QVZ$22","v":"00:00:00"},{"$f":"Time!QWA$22","v":"00:00:00"},{"$f":"Time!QWB$22","v":"00:00:00"},{"$f":"Time!QWC$22","v":"00:00:00"},{"$f":"Time!QWD$22","v":"00:00:00"},{"$f":"Time!QWE$22","v":"00:00:00"},{"$f":"Time!QWF$22","v":"00:00:00"},{"$f":"Time!QWG$22","v":"00:00:00"},{"$f":"Time!QWH$22","v":"00:00:00"},{"$f":"Time!QWI$22","v":"00:00:00"},{"$f":"Time!QWJ$22","v":"00:00:00"},{"$f":"Time!QWK$22","v":"00:00:00"},{"$f":"Time!QWL$22","v":"00:00:00"},{"$f":"Time!QWM$22","v":"00:00:00"},{"$f":"Time!QWN$22","v":"00:00:00"},{"$f":"Time!QWO$22","v":"00:00:00"},{"$f":"Time!QWP$22","v":"00:00:00"},{"$f":"Time!QWQ$22","v":"00:00:00"},{"$f":"Time!QWR$22","v":"00:00:00"},{"$f":"Time!QWS$22","v":"00:00:00"},{"$f":"Time!QWT$22","v":"00:00:00"},{"$f":"Time!QWU$22","v":"00:00:00"},{"$f":"Time!QWV$22","v":"00:00:00"},{"$f":"Time!QWW$22","v":"00:00:00"},{"$f":"Time!QWX$22","v":"00:00:00"},{"$f":"Time!QWY$22","v":"00:00:00"},{"$f":"Time!QWZ$22","v":"00:00:00"},{"$f":"Time!QXA$22","v":"00:00:00"},{"$f":"Time!QXB$22","v":"00:00:00"},{"$f":"Time!QXC$22","v":"00:00:00"},{"$f":"Time!QXD$22","v":"00:00:00"},{"$f":"Time!QXE$22","v":"00:00:00"},{"$f":"Time!QXF$22","v":"00:00:00"},{"$f":"Time!QXG$22","v":"00:00:00"},{"$f":"Time!QXH$22","v":"00:00:00"},{"$f":"Time!QXI$22","v":"00:00:00"},{"$f":"Time!QXJ$22","v":"00:00:00"},{"$f":"Time!QXK$22","v":"00:00:00"},{"$f":"Time!QXL$22","v":"00:00:00"},{"$f":"Time!QXM$22","v":"00:00:00"},{"$f":"Time!QXN$22","v":"00:00:00"},{"$f":"Time!QXO$22","v":"00:00:00"},{"$f":"Time!QXP$22","v":"00:00:00"},{"$f":"Time!QXQ$22","v":"00:00:00"},{"$f":"Time!QXR$22","v":"00:00:00"},{"$f":"Time!QXS$22","v":"00:00:00"},{"$f":"Time!QXT$22","v":"00:00:00"},{"$f":"Time!QXU$22","v":"00:00:00"},{"$f":"Time!QXV$22","v":"00:00:00"},{"$f":"Time!QXW$22","v":"00:00:00"},{"$f":"Time!QXX$22","v":"00:00:00"},{"$f":"Time!QXY$22","v":"00:00:00"},{"$f":"Time!QXZ$22","v":"00:00:00"},{"$f":"Time!QYA$22","v":"00:00:00"},{"$f":"Time!QYB$22","v":"00:00:00"},{"$f":"Time!QYC$22","v":"00:00:00"},{"$f":"Time!QYD$22","v":"00:00:00"},{"$f":"Time!QYE$22","v":"00:00:00"},{"$f":"Time!QYF$22","v":"00:00:00"},{"$f":"Time!QYG$22","v":"00:00:00"},{"$f":"Time!QYH$22","v":"00:00:00"},{"$f":"Time!QYI$22","v":"00:00:00"},{"$f":"Time!QYJ$22","v":"00:00:00"},{"$f":"Time!QYK$22","v":"00:00:00"},{"$f":"Time!QYL$22","v":"00:00:00"},{"$f":"Time!QYM$22","v":"00:00:00"},{"$f":"Time!QYN$22","v":"00:00:00"},{"$f":"Time!QYO$22","v":"00:00:00"},{"$f":"Time!QYP$22","v":"00:00:00"},{"$f":"Time!QYQ$22","v":"00:00:00"},{"$f":"Time!QYR$22","v":"00:00:00"},{"$f":"Time!QYS$22","v":"00:00:00"},{"$f":"Time!QYT$22","v":"00:00:00"},{"$f":"Time!QYU$22","v":"00:00:00"},{"$f":"Time!QYV$22","v":"00:00:00"},{"$f":"Time!QYW$22","v":"00:00:00"},{"$f":"Time!QYX$22","v":"00:00:00"},{"$f":"Time!QYY$22","v":"00:00:00"},{"$f":"Time!QYZ$22","v":"00:00:00"},{"$f":"Time!QZA$22","v":"00:00:00"},{"$f":"Time!QZB$22","v":"00:00:00"},{"$f":"Time!QZC$22","v":"00:00:00"},{"$f":"Time!QZD$22","v":"00:00:00"},{"$f":"Time!QZE$22","v":"00:00:00"},{"$f":"Time!QZF$22","v":"00:00:00"},{"$f":"Time!QZG$22","v":"00:00:00"},{"$f":"Time!QZH$22","v":"00:00:00"},{"$f":"Time!QZI$22","v":"00:00:00"},{"$f":"Time!QZJ$22","v":"00:00:00"},{"$f":"Time!QZK$22","v":"00:00:00"},{"$f":"Time!QZL$22","v":"00:00:00"},{"$f":"Time!QZM$22","v":"00:00:00"},{"$f":"Time!QZN$22","v":"00:00:00"},{"$f":"Time!QZO$22","v":"00:00:00"},{"$f":"Time!QZP$22","v":"00:00:00"},{"$f":"Time!QZQ$22","v":"00:00:00"},{"$f":"Time!QZR$22","v":"00:00:00"},{"$f":"Time!QZS$22","v":"00:00:00"},{"$f":"Time!QZT$22","v":"00:00:00"},{"$f":"Time!QZU$22","v":"00:00:00"},{"$f":"Time!QZV$22","v":"00:00:00"},{"$f":"Time!QZW$22","v":"00:00:00"},{"$f":"Time!QZX$22","v":"00:00:00"},{"$f":"Time!QZY$22","v":"00:00:00"},{"$f":"Time!QZZ$22","v":"00:00:00"},{"$f":"Time!RAA$22","v":"00:00:00"},{"$f":"Time!RAB$22","v":"00:00:00"},{"$f":"Time!RAC$22","v":"00:00:00"},{"$f":"Time!RAD$22","v":"00:00:00"},{"$f":"Time!RAE$22","v":"00:00:00"},{"$f":"Time!RAF$22","v":"00:00:00"},{"$f":"Time!RAG$22","v":"00:00:00"},{"$f":"Time!RAH$22","v":"00:00:00"},{"$f":"Time!RAI$22","v":"00:00:00"},{"$f":"Time!RAJ$22","v":"00:00:00"},{"$f":"Time!RAK$22","v":"00:00:00"},{"$f":"Time!RAL$22","v":"00:00:00"},{"$f":"Time!RAM$22","v":"00:00:00"},{"$f":"Time!RAN$22","v":"00:00:00"},{"$f":"Time!RAO$22","v":"00:00:00"},{"$f":"Time!RAP$22","v":"00:00:00"},{"$f":"Time!RAQ$22","v":"00:00:00"},{"$f":"Time!RAR$22","v":"00:00:00"},{"$f":"Time!RAS$22","v":"00:00:00"},{"$f":"Time!RAT$22","v":"00:00:00"},{"$f":"Time!RAU$22","v":"00:00:00"},{"$f":"Time!RAV$22","v":"00:00:00"},{"$f":"Time!RAW$22","v":"00:00:00"},{"$f":"Time!RAX$22","v":"00:00:00"},{"$f":"Time!RAY$22","v":"00:00:00"},{"$f":"Time!RAZ$22","v":"00:00:00"},{"$f":"Time!RBA$22","v":"00:00:00"},{"$f":"Time!RBB$22","v":"00:00:00"},{"$f":"Time!RBC$22","v":"00:00:00"},{"$f":"Time!RBD$22","v":"00:00:00"},{"$f":"Time!RBE$22","v":"00:00:00"},{"$f":"Time!RBF$22","v":"00:00:00"},{"$f":"Time!RBG$22","v":"00:00:00"},{"$f":"Time!RBH$22","v":"00:00:00"},{"$f":"Time!RBI$22","v":"00:00:00"},{"$f":"Time!RBJ$22","v":"00:00:00"},{"$f":"Time!RBK$22","v":"00:00:00"},{"$f":"Time!RBL$22","v":"00:00:00"},{"$f":"Time!RBM$22","v":"00:00:00"},{"$f":"Time!RBN$22","v":"00:00:00"},{"$f":"Time!RBO$22","v":"00:00:00"},{"$f":"Time!RBP$22","v":"00:00:00"},{"$f":"Time!RBQ$22","v":"00:00:00"},{"$f":"Time!RBR$22","v":"00:00:00"},{"$f":"Time!RBS$22","v":"00:00:00"},{"$f":"Time!RBT$22","v":"00:00:00"},{"$f":"Time!RBU$22","v":"00:00:00"},{"$f":"Time!RBV$22","v":"00:00:00"},{"$f":"Time!RBW$22","v":"00:00:00"},{"$f":"Time!RBX$22","v":"00:00:00"},{"$f":"Time!RBY$22","v":"00:00:00"},{"$f":"Time!RBZ$22","v":"00:00:00"},{"$f":"Time!RCA$22","v":"00:00:00"},{"$f":"Time!RCB$22","v":"00:00:00"},{"$f":"Time!RCC$22","v":"00:00:00"},{"$f":"Time!RCD$22","v":"00:00:00"},{"$f":"Time!RCE$22","v":"00:00:00"},{"$f":"Time!RCF$22","v":"00:00:00"},{"$f":"Time!RCG$22","v":"00:00:00"},{"$f":"Time!RCH$22","v":"00:00:00"},{"$f":"Time!RCI$22","v":"00:00:00"},{"$f":"Time!RCJ$22","v":"00:00:00"},{"$f":"Time!RCK$22","v":"00:00:00"},{"$f":"Time!RCL$22","v":"00:00:00"},{"$f":"Time!RCM$22","v":"00:00:00"},{"$f":"Time!RCN$22","v":"00:00:00"},{"$f":"Time!RCO$22","v":"00:00:00"},{"$f":"Time!RCP$22","v":"00:00:00"},{"$f":"Time!RCQ$22","v":"00:00:00"},{"$f":"Time!RCR$22","v":"00:00:00"},{"$f":"Time!RCS$22","v":"00:00:00"},{"$f":"Time!RCT$22","v":"00:00:00"},{"$f":"Time!RCU$22","v":"00:00:00"},{"$f":"Time!RCV$22","v":"00:00:00"},{"$f":"Time!RCW$22","v":"00:00:00"},{"$f":"Time!RCX$22","v":"00:00:00"},{"$f":"Time!RCY$22","v":"00:00:00"},{"$f":"Time!RCZ$22","v":"00:00:00"},{"$f":"Time!RDA$22","v":"00:00:00"},{"$f":"Time!RDB$22","v":"00:00:00"},{"$f":"Time!RDC$22","v":"00:00:00"},{"$f":"Time!RDD$22","v":"00:00:00"},{"$f":"Time!RDE$22","v":"00:00:00"},{"$f":"Time!RDF$22","v":"00:00:00"},{"$f":"Time!RDG$22","v":"00:00:00"},{"$f":"Time!RDH$22","v":"00:00:00"},{"$f":"Time!RDI$22","v":"00:00:00"},{"$f":"Time!RDJ$22","v":"00:00:00"},{"$f":"Time!RDK$22","v":"00:00:00"},{"$f":"Time!RDL$22","v":"00:00:00"},{"$f":"Time!RDM$22","v":"00:00:00"},{"$f":"Time!RDN$22","v":"00:00:00"},{"$f":"Time!RDO$22","v":"00:00:00"},{"$f":"Time!RDP$22","v":"00:00:00"},{"$f":"Time!RDQ$22","v":"00:00:00"},{"$f":"Time!RDR$22","v":"00:00:00"},{"$f":"Time!RDS$22","v":"00:00:00"},{"$f":"Time!RDT$22","v":"00:00:00"},{"$f":"Time!RDU$22","v":"00:00:00"},{"$f":"Time!RDV$22","v":"00:00:00"},{"$f":"Time!RDW$22","v":"00:00:00"},{"$f":"Time!RDX$22","v":"00:00:00"},{"$f":"Time!RDY$22","v":"00:00:00"},{"$f":"Time!RDZ$22","v":"00:00:00"},{"$f":"Time!REA$22","v":"00:00:00"},{"$f":"Time!REB$22","v":"00:00:00"},{"$f":"Time!REC$22","v":"00:00:00"},{"$f":"Time!RED$22","v":"00:00:00"},{"$f":"Time!REE$22","v":"00:00:00"},{"$f":"Time!REF$22","v":"00:00:00"},{"$f":"Time!REG$22","v":"00:00:00"},{"$f":"Time!REH$22","v":"00:00:00"},{"$f":"Time!REI$22","v":"00:00:00"},{"$f":"Time!REJ$22","v":"00:00:00"},{"$f":"Time!REK$22","v":"00:00:00"},{"$f":"Time!REL$22","v":"00:00:00"},{"$f":"Time!REM$22","v":"00:00:00"},{"$f":"Time!REN$22","v":"00:00:00"},{"$f":"Time!REO$22","v":"00:00:00"},{"$f":"Time!REP$22","v":"00:00:00"},{"$f":"Time!REQ$22","v":"00:00:00"},{"$f":"Time!RER$22","v":"00:00:00"},{"$f":"Time!RES$22","v":"00:00:00"},{"$f":"Time!RET$22","v":"00:00:00"},{"$f":"Time!REU$22","v":"00:00:00"},{"$f":"Time!REV$22","v":"00:00:00"},{"$f":"Time!REW$22","v":"00:00:00"},{"$f":"Time!REX$22","v":"00:00:00"},{"$f":"Time!REY$22","v":"00:00:00"},{"$f":"Time!REZ$22","v":"00:00:00"},{"$f":"Time!RFA$22","v":"00:00:00"},{"$f":"Time!RFB$22","v":"00:00:00"},{"$f":"Time!RFC$22","v":"00:00:00"},{"$f":"Time!RFD$22","v":"00:00:00"},{"$f":"Time!RFE$22","v":"00:00:00"},{"$f":"Time!RFF$22","v":"00:00:00"},{"$f":"Time!RFG$22","v":"00:00:00"},{"$f":"Time!RFH$22","v":"00:00:00"},{"$f":"Time!RFI$22","v":"00:00:00"},{"$f":"Time!RFJ$22","v":"00:00:00"},{"$f":"Time!RFK$22","v":"00:00:00"},{"$f":"Time!RFL$22","v":"00:00:00"},{"$f":"Time!RFM$22","v":"00:00:00"},{"$f":"Time!RFN$22","v":"00:00:00"},{"$f":"Time!RFO$22","v":"00:00:00"},{"$f":"Time!RFP$22","v":"00:00:00"},{"$f":"Time!RFQ$22","v":"00:00:00"},{"$f":"Time!RFR$22","v":"00:00:00"},{"$f":"Time!RFS$22","v":"00:00:00"},{"$f":"Time!RFT$22","v":"00:00:00"},{"$f":"Time!RFU$22","v":"00:00:00"},{"$f":"Time!RFV$22","v":"00:00:00"},{"$f":"Time!RFW$22","v":"00:00:00"},{"$f":"Time!RFX$22","v":"00:00:00"},{"$f":"Time!RFY$22","v":"00:00:00"},{"$f":"Time!RFZ$22","v":"00:00:00"},{"$f":"Time!RGA$22","v":"00:00:00"},{"$f":"Time!RGB$22","v":"00:00:00"},{"$f":"Time!RGC$22","v":"00:00:00"},{"$f":"Time!RGD$22","v":"00:00:00"},{"$f":"Time!RGE$22","v":"00:00:00"},{"$f":"Time!RGF$22","v":"00:00:00"},{"$f":"Time!RGG$22","v":"00:00:00"},{"$f":"Time!RGH$22","v":"00:00:00"},{"$f":"Time!RGI$22","v":"00:00:00"},{"$f":"Time!RGJ$22","v":"00:00:00"},{"$f":"Time!RGK$22","v":"00:00:00"},{"$f":"Time!RGL$22","v":"00:00:00"},{"$f":"Time!RGM$22","v":"00:00:00"},{"$f":"Time!RGN$22","v":"00:00:00"},{"$f":"Time!RGO$22","v":"00:00:00"},{"$f":"Time!RGP$22","v":"00:00:00"},{"$f":"Time!RGQ$22","v":"00:00:00"},{"$f":"Time!RGR$22","v":"00:00:00"},{"$f":"Time!RGS$22","v":"00:00:00"},{"$f":"Time!RGT$22","v":"00:00:00"},{"$f":"Time!RGU$22","v":"00:00:00"},{"$f":"Time!RGV$22","v":"00:00:00"},{"$f":"Time!RGW$22","v":"00:00:00"},{"$f":"Time!RGX$22","v":"00:00:00"},{"$f":"Time!RGY$22","v":"00:00:00"},{"$f":"Time!RGZ$22","v":"00:00:00"},{"$f":"Time!RHA$22","v":"00:00:00"},{"$f":"Time!RHB$22","v":"00:00:00"},{"$f":"Time!RHC$22","v":"00:00:00"},{"$f":"Time!RHD$22","v":"00:00:00"},{"$f":"Time!RHE$22","v":"00:00:00"},{"$f":"Time!RHF$22","v":"00:00:00"},{"$f":"Time!RHG$22","v":"00:00:00"},{"$f":"Time!RHH$22","v":"00:00:00"},{"$f":"Time!RHI$22","v":"00:00:00"},{"$f":"Time!RHJ$22","v":"00:00:00"},{"$f":"Time!RHK$22","v":"00:00:00"},{"$f":"Time!RHL$22","v":"00:00:00"},{"$f":"Time!RHM$22","v":"00:00:00"},{"$f":"Time!RHN$22","v":"00:00:00"},{"$f":"Time!RHO$22","v":"00:00:00"},{"$f":"Time!RHP$22","v":"00:00:00"},{"$f":"Time!RHQ$22","v":"00:00:00"},{"$f":"Time!RHR$22","v":"00:00:00"},{"$f":"Time!RHS$22","v":"00:00:00"},{"$f":"Time!RHT$22","v":"00:00:00"},{"$f":"Time!RHU$22","v":"00:00:00"},{"$f":"Time!RHV$22","v":"00:00:00"},{"$f":"Time!RHW$22","v":"00:00:00"},{"$f":"Time!RHX$22","v":"00:00:00"},{"$f":"Time!RHY$22","v":"00:00:00"},{"$f":"Time!RHZ$22","v":"00:00:00"},{"$f":"Time!RIA$22","v":"00:00:00"},{"$f":"Time!RIB$22","v":"00:00:00"},{"$f":"Time!RIC$22","v":"00:00:00"},{"$f":"Time!RID$22","v":"00:00:00"},{"$f":"Time!RIE$22","v":"00:00:00"},{"$f":"Time!RIF$22","v":"00:00:00"},{"$f":"Time!RIG$22","v":"00:00:00"},{"$f":"Time!RIH$22","v":"00:00:00"},{"$f":"Time!RII$22","v":"00:00:00"},{"$f":"Time!RIJ$22","v":"00:00:00"},{"$f":"Time!RIK$22","v":"00:00:00"},{"$f":"Time!RIL$22","v":"00:00:00"},{"$f":"Time!RIM$22","v":"00:00:00"},{"$f":"Time!RIN$22","v":"00:00:00"},{"$f":"Time!RIO$22","v":"00:00:00"},{"$f":"Time!RIP$22","v":"00:00:00"},{"$f":"Time!RIQ$22","v":"00:00:00"},{"$f":"Time!RIR$22","v":"00:00:00"},{"$f":"Time!RIS$22","v":"00:00:00"},{"$f":"Time!RIT$22","v":"00:00:00"},{"$f":"Time!RIU$22","v":"00:00:00"},{"$f":"Time!RIV$22","v":"00:00:00"},{"$f":"Time!RIW$22","v":"00:00:00"},{"$f":"Time!RIX$22","v":"00:00:00"},{"$f":"Time!RIY$22","v":"00:00:00"},{"$f":"Time!RIZ$22","v":"00:00:00"},{"$f":"Time!RJA$22","v":"00:00:00"},{"$f":"Time!RJB$22","v":"00:00:00"},{"$f":"Time!RJC$22","v":"00:00:00"},{"$f":"Time!RJD$22","v":"00:00:00"},{"$f":"Time!RJE$22","v":"00:00:00"},{"$f":"Time!RJF$22","v":"00:00:00"},{"$f":"Time!RJG$22","v":"00:00:00"},{"$f":"Time!RJH$22","v":"00:00:00"},{"$f":"Time!RJI$22","v":"00:00:00"},{"$f":"Time!RJJ$22","v":"00:00:00"},{"$f":"Time!RJK$22","v":"00:00:00"},{"$f":"Time!RJL$22","v":"00:00:00"},{"$f":"Time!RJM$22","v":"00:00:00"},{"$f":"Time!RJN$22","v":"00:00:00"},{"$f":"Time!RJO$22","v":"00:00:00"},{"$f":"Time!RJP$22","v":"00:00:00"},{"$f":"Time!RJQ$22","v":"00:00:00"},{"$f":"Time!RJR$22","v":"00:00:00"},{"$f":"Time!RJS$22","v":"00:00:00"},{"$f":"Time!RJT$22","v":"00:00:00"},{"$f":"Time!RJU$22","v":"00:00:00"},{"$f":"Time!RJV$22","v":"00:00:00"},{"$f":"Time!RJW$22","v":"00:00:00"},{"$f":"Time!RJX$22","v":"00:00:00"},{"$f":"Time!RJY$22","v":"00:00:00"},{"$f":"Time!RJZ$22","v":"00:00:00"},{"$f":"Time!RKA$22","v":"00:00:00"},{"$f":"Time!RKB$22","v":"00:00:00"},{"$f":"Time!RKC$22","v":"00:00:00"},{"$f":"Time!RKD$22","v":"00:00:00"},{"$f":"Time!RKE$22","v":"00:00:00"},{"$f":"Time!RKF$22","v":"00:00:00"},{"$f":"Time!RKG$22","v":"00:00:00"},{"$f":"Time!RKH$22","v":"00:00:00"},{"$f":"Time!RKI$22","v":"00:00:00"},{"$f":"Time!RKJ$22","v":"00:00:00"},{"$f":"Time!RKK$22","v":"00:00:00"},{"$f":"Time!RKL$22","v":"00:00:00"},{"$f":"Time!RKM$22","v":"00:00:00"},{"$f":"Time!RKN$22","v":"00:00:00"},{"$f":"Time!RKO$22","v":"00:00:00"},{"$f":"Time!RKP$22","v":"00:00:00"},{"$f":"Time!RKQ$22","v":"00:00:00"},{"$f":"Time!RKR$22","v":"00:00:00"},{"$f":"Time!RKS$22","v":"00:00:00"},{"$f":"Time!RKT$22","v":"00:00:00"},{"$f":"Time!RKU$22","v":"00:00:00"},{"$f":"Time!RKV$22","v":"00:00:00"},{"$f":"Time!RKW$22","v":"00:00:00"},{"$f":"Time!RKX$22","v":"00:00:00"},{"$f":"Time!RKY$22","v":"00:00:00"},{"$f":"Time!RKZ$22","v":"00:00:00"},{"$f":"Time!RLA$22","v":"00:00:00"},{"$f":"Time!RLB$22","v":"00:00:00"},{"$f":"Time!RLC$22","v":"00:00:00"},{"$f":"Time!RLD$22","v":"00:00:00"},{"$f":"Time!RLE$22","v":"00:00:00"},{"$f":"Time!RLF$22","v":"00:00:00"},{"$f":"Time!RLG$22","v":"00:00:00"},{"$f":"Time!RLH$22","v":"00:00:00"},{"$f":"Time!RLI$22","v":"00:00:00"},{"$f":"Time!RLJ$22","v":"00:00:00"},{"$f":"Time!RLK$22","v":"00:00:00"},{"$f":"Time!RLL$22","v":"00:00:00"},{"$f":"Time!RLM$22","v":"00:00:00"},{"$f":"Time!RLN$22","v":"00:00:00"},{"$f":"Time!RLO$22","v":"00:00:00"},{"$f":"Time!RLP$22","v":"00:00:00"},{"$f":"Time!RLQ$22","v":"00:00:00"},{"$f":"Time!RLR$22","v":"00:00:00"},{"$f":"Time!RLS$22","v":"00:00:00"},{"$f":"Time!RLT$22","v":"00:00:00"},{"$f":"Time!RLU$22","v":"00:00:00"},{"$f":"Time!RLV$22","v":"00:00:00"},{"$f":"Time!RLW$22","v":"00:00:00"},{"$f":"Time!RLX$22","v":"00:00:00"},{"$f":"Time!RLY$22","v":"00:00:00"},{"$f":"Time!RLZ$22","v":"00:00:00"},{"$f":"Time!RMA$22","v":"00:00:00"},{"$f":"Time!RMB$22","v":"00:00:00"},{"$f":"Time!RMC$22","v":"00:00:00"},{"$f":"Time!RMD$22","v":"00:00:00"},{"$f":"Time!RME$22","v":"00:00:00"},{"$f":"Time!RMF$22","v":"00:00:00"},{"$f":"Time!RMG$22","v":"00:00:00"},{"$f":"Time!RMH$22","v":"00:00:00"},{"$f":"Time!RMI$22","v":"00:00:00"},{"$f":"Time!RMJ$22","v":"00:00:00"},{"$f":"Time!RMK$22","v":"00:00:00"},{"$f":"Time!RML$22","v":"00:00:00"},{"$f":"Time!RMM$22","v":"00:00:00"},{"$f":"Time!RMN$22","v":"00:00:00"},{"$f":"Time!RMO$22","v":"00:00:00"},{"$f":"Time!RMP$22","v":"00:00:00"},{"$f":"Time!RMQ$22","v":"00:00:00"},{"$f":"Time!RMR$22","v":"00:00:00"},{"$f":"Time!RMS$22","v":"00:00:00"},{"$f":"Time!RMT$22","v":"00:00:00"},{"$f":"Time!RMU$22","v":"00:00:00"},{"$f":"Time!RMV$22","v":"00:00:00"},{"$f":"Time!RMW$22","v":"00:00:00"},{"$f":"Time!RMX$22","v":"00:00:00"},{"$f":"Time!RMY$22","v":"00:00:00"},{"$f":"Time!RMZ$22","v":"00:00:00"},{"$f":"Time!RNA$22","v":"00:00:00"},{"$f":"Time!RNB$22","v":"00:00:00"},{"$f":"Time!RNC$22","v":"00:00:00"},{"$f":"Time!RND$22","v":"00:00:00"},{"$f":"Time!RNE$22","v":"00:00:00"},{"$f":"Time!RNF$22","v":"00:00:00"},{"$f":"Time!RNG$22","v":"00:00:00"},{"$f":"Time!RNH$22","v":"00:00:00"},{"$f":"Time!RNI$22","v":"00:00:00"},{"$f":"Time!RNJ$22","v":"00:00:00"},{"$f":"Time!RNK$22","v":"00:00:00"},{"$f":"Time!RNL$22","v":"00:00:00"},{"$f":"Time!RNM$22","v":"00:00:00"},{"$f":"Time!RNN$22","v":"00:00:00"},{"$f":"Time!RNO$22","v":"00:00:00"},{"$f":"Time!RNP$22","v":"00:00:00"},{"$f":"Time!RNQ$22","v":"00:00:00"},{"$f":"Time!RNR$22","v":"00:00:00"},{"$f":"Time!RNS$22","v":"00:00:00"},{"$f":"Time!RNT$22","v":"00:00:00"},{"$f":"Time!RNU$22","v":"00:00:00"},{"$f":"Time!RNV$22","v":"00:00:00"},{"$f":"Time!RNW$22","v":"00:00:00"},{"$f":"Time!RNX$22","v":"00:00:00"},{"$f":"Time!RNY$22","v":"00:00:00"},{"$f":"Time!RNZ$22","v":"00:00:00"},{"$f":"Time!ROA$22","v":"00:00:00"},{"$f":"Time!ROB$22","v":"00:00:00"},{"$f":"Time!ROC$22","v":"00:00:00"},{"$f":"Time!ROD$22","v":"00:00:00"},{"$f":"Time!ROE$22","v":"00:00:00"},{"$f":"Time!ROF$22","v":"00:00:00"},{"$f":"Time!ROG$22","v":"00:00:00"},{"$f":"Time!ROH$22","v":"00:00:00"},{"$f":"Time!ROI$22","v":"00:00:00"},{"$f":"Time!ROJ$22","v":"00:00:00"},{"$f":"Time!ROK$22","v":"00:00:00"},{"$f":"Time!ROL$22","v":"00:00:00"},{"$f":"Time!ROM$22","v":"00:00:00"},{"$f":"Time!RON$22","v":"00:00:00"},{"$f":"Time!ROO$22","v":"00:00:00"},{"$f":"Time!ROP$22","v":"00:00:00"},{"$f":"Time!ROQ$22","v":"00:00:00"},{"$f":"Time!ROR$22","v":"00:00:00"},{"$f":"Time!ROS$22","v":"00:00:00"},{"$f":"Time!ROT$22","v":"00:00:00"},{"$f":"Time!ROU$22","v":"00:00:00"},{"$f":"Time!ROV$22","v":"00:00:00"},{"$f":"Time!ROW$22","v":"00:00:00"},{"$f":"Time!ROX$22","v":"00:00:00"},{"$f":"Time!ROY$22","v":"00:00:00"},{"$f":"Time!ROZ$22","v":"00:00:00"},{"$f":"Time!RPA$22","v":"00:00:00"},{"$f":"Time!RPB$22","v":"00:00:00"},{"$f":"Time!RPC$22","v":"00:00:00"},{"$f":"Time!RPD$22","v":"00:00:00"},{"$f":"Time!RPE$22","v":"00:00:00"},{"$f":"Time!RPF$22","v":"00:00:00"},{"$f":"Time!RPG$22","v":"00:00:00"},{"$f":"Time!RPH$22","v":"00:00:00"},{"$f":"Time!RPI$22","v":"00:00:00"},{"$f":"Time!RPJ$22","v":"00:00:00"},{"$f":"Time!RPK$22","v":"00:00:00"},{"$f":"Time!RPL$22","v":"00:00:00"},{"$f":"Time!RPM$22","v":"00:00:00"},{"$f":"Time!RPN$22","v":"00:00:00"},{"$f":"Time!RPO$22","v":"00:00:00"},{"$f":"Time!RPP$22","v":"00:00:00"},{"$f":"Time!RPQ$22","v":"00:00:00"},{"$f":"Time!RPR$22","v":"00:00:00"},{"$f":"Time!RPS$22","v":"00:00:00"},{"$f":"Time!RPT$22","v":"00:00:00"},{"$f":"Time!RPU$22","v":"00:00:00"},{"$f":"Time!RPV$22","v":"00:00:00"},{"$f":"Time!RPW$22","v":"00:00:00"},{"$f":"Time!RPX$22","v":"00:00:00"},{"$f":"Time!RPY$22","v":"00:00:00"},{"$f":"Time!RPZ$22","v":"00:00:00"},{"$f":"Time!RQA$22","v":"00:00:00"},{"$f":"Time!RQB$22","v":"00:00:00"},{"$f":"Time!RQC$22","v":"00:00:00"},{"$f":"Time!RQD$22","v":"00:00:00"},{"$f":"Time!RQE$22","v":"00:00:00"},{"$f":"Time!RQF$22","v":"00:00:00"},{"$f":"Time!RQG$22","v":"00:00:00"},{"$f":"Time!RQH$22","v":"00:00:00"},{"$f":"Time!RQI$22","v":"00:00:00"},{"$f":"Time!RQJ$22","v":"00:00:00"},{"$f":"Time!RQK$22","v":"00:00:00"},{"$f":"Time!RQL$22","v":"00:00:00"},{"$f":"Time!RQM$22","v":"00:00:00"},{"$f":"Time!RQN$22","v":"00:00:00"},{"$f":"Time!RQO$22","v":"00:00:00"},{"$f":"Time!RQP$22","v":"00:00:00"},{"$f":"Time!RQQ$22","v":"00:00:00"},{"$f":"Time!RQR$22","v":"00:00:00"},{"$f":"Time!RQS$22","v":"00:00:00"},{"$f":"Time!RQT$22","v":"00:00:00"},{"$f":"Time!RQU$22","v":"00:00:00"},{"$f":"Time!RQV$22","v":"00:00:00"},{"$f":"Time!RQW$22","v":"00:00:00"},{"$f":"Time!RQX$22","v":"00:00:00"},{"$f":"Time!RQY$22","v":"00:00:00"},{"$f":"Time!RQZ$22","v":"00:00:00"},{"$f":"Time!RRA$22","v":"00:00:00"},{"$f":"Time!RRB$22","v":"00:00:00"},{"$f":"Time!RRC$22","v":"00:00:00"},{"$f":"Time!RRD$22","v":"00:00:00"},{"$f":"Time!RRE$22","v":"00:00:00"},{"$f":"Time!RRF$22","v":"00:00:00"},{"$f":"Time!RRG$22","v":"00:00:00"},{"$f":"Time!RRH$22","v":"00:00:00"},{"$f":"Time!RRI$22","v":"00:00:00"},{"$f":"Time!RRJ$22","v":"00:00:00"},{"$f":"Time!RRK$22","v":"00:00:00"},{"$f":"Time!RRL$22","v":"00:00:00"},{"$f":"Time!RRM$22","v":"00:00:00"},{"$f":"Time!RRN$22","v":"00:00:00"},{"$f":"Time!RRO$22","v":"00:00:00"},{"$f":"Time!RRP$22","v":"00:00:00"},{"$f":"Time!RRQ$22","v":"00:00:00"},{"$f":"Time!RRR$22","v":"00:00:00"},{"$f":"Time!RRS$22","v":"00:00:00"},{"$f":"Time!RRT$22","v":"00:00:00"},{"$f":"Time!RRU$22","v":"00:00:00"},{"$f":"Time!RRV$22","v":"00:00:00"},{"$f":"Time!RRW$22","v":"00:00:00"},{"$f":"Time!RRX$22","v":"00:00:00"},{"$f":"Time!RRY$22","v":"00:00:00"},{"$f":"Time!RRZ$22","v":"00:00:00"},{"$f":"Time!RSA$22","v":"00:00:00"},{"$f":"Time!RSB$22","v":"00:00:00"},{"$f":"Time!RSC$22","v":"00:00:00"},{"$f":"Time!RSD$22","v":"00:00:00"},{"$f":"Time!RSE$22","v":"00:00:00"},{"$f":"Time!RSF$22","v":"00:00:00"},{"$f":"Time!RSG$22","v":"00:00:00"},{"$f":"Time!RSH$22","v":"00:00:00"},{"$f":"Time!RSI$22","v":"00:00:00"},{"$f":"Time!RSJ$22","v":"00:00:00"},{"$f":"Time!RSK$22","v":"00:00:00"},{"$f":"Time!RSL$22","v":"00:00:00"},{"$f":"Time!RSM$22","v":"00:00:00"},{"$f":"Time!RSN$22","v":"00:00:00"},{"$f":"Time!RSO$22","v":"00:00:00"},{"$f":"Time!RSP$22","v":"00:00:00"},{"$f":"Time!RSQ$22","v":"00:00:00"},{"$f":"Time!RSR$22","v":"00:00:00"},{"$f":"Time!RSS$22","v":"00:00:00"},{"$f":"Time!RST$22","v":"00:00:00"},{"$f":"Time!RSU$22","v":"00:00:00"},{"$f":"Time!RSV$22","v":"00:00:00"},{"$f":"Time!RSW$22","v":"00:00:00"},{"$f":"Time!RSX$22","v":"00:00:00"},{"$f":"Time!RSY$22","v":"00:00:00"},{"$f":"Time!RSZ$22","v":"00:00:00"},{"$f":"Time!RTA$22","v":"00:00:00"},{"$f":"Time!RTB$22","v":"00:00:00"},{"$f":"Time!RTC$22","v":"00:00:00"},{"$f":"Time!RTD$22","v":"00:00:00"},{"$f":"Time!RTE$22","v":"00:00:00"},{"$f":"Time!RTF$22","v":"00:00:00"},{"$f":"Time!RTG$22","v":"00:00:00"},{"$f":"Time!RTH$22","v":"00:00:00"},{"$f":"Time!RTI$22","v":"00:00:00"},{"$f":"Time!RTJ$22","v":"00:00:00"},{"$f":"Time!RTK$22","v":"00:00:00"},{"$f":"Time!RTL$22","v":"00:00:00"},{"$f":"Time!RTM$22","v":"00:00:00"},{"$f":"Time!RTN$22","v":"00:00:00"},{"$f":"Time!RTO$22","v":"00:00:00"},{"$f":"Time!RTP$22","v":"00:00:00"},{"$f":"Time!RTQ$22","v":"00:00:00"},{"$f":"Time!RTR$22","v":"00:00:00"},{"$f":"Time!RTS$22","v":"00:00:00"},{"$f":"Time!RTT$22","v":"00:00:00"},{"$f":"Time!RTU$22","v":"00:00:00"},{"$f":"Time!RTV$22","v":"00:00:00"},{"$f":"Time!RTW$22","v":"00:00:00"},{"$f":"Time!RTX$22","v":"00:00:00"},{"$f":"Time!RTY$22","v":"00:00:00"},{"$f":"Time!RTZ$22","v":"00:00:00"},{"$f":"Time!RUA$22","v":"00:00:00"},{"$f":"Time!RUB$22","v":"00:00:00"},{"$f":"Time!RUC$22","v":"00:00:00"},{"$f":"Time!RUD$22","v":"00:00:00"},{"$f":"Time!RUE$22","v":"00:00:00"},{"$f":"Time!RUF$22","v":"00:00:00"},{"$f":"Time!RUG$22","v":"00:00:00"},{"$f":"Time!RUH$22","v":"00:00:00"},{"$f":"Time!RUI$22","v":"00:00:00"},{"$f":"Time!RUJ$22","v":"00:00:00"},{"$f":"Time!RUK$22","v":"00:00:00"},{"$f":"Time!RUL$22","v":"00:00:00"},{"$f":"Time!RUM$22","v":"00:00:00"},{"$f":"Time!RUN$22","v":"00:00:00"},{"$f":"Time!RUO$22","v":"00:00:00"},{"$f":"Time!RUP$22","v":"00:00:00"},{"$f":"Time!RUQ$22","v":"00:00:00"},{"$f":"Time!RUR$22","v":"00:00:00"},{"$f":"Time!RUS$22","v":"00:00:00"},{"$f":"Time!RUT$22","v":"00:00:00"},{"$f":"Time!RUU$22","v":"00:00:00"},{"$f":"Time!RUV$22","v":"00:00:00"},{"$f":"Time!RUW$22","v":"00:00:00"},{"$f":"Time!RUX$22","v":"00:00:00"},{"$f":"Time!RUY$22","v":"00:00:00"},{"$f":"Time!RUZ$22","v":"00:00:00"},{"$f":"Time!RVA$22","v":"00:00:00"},{"$f":"Time!RVB$22","v":"00:00:00"},{"$f":"Time!RVC$22","v":"00:00:00"},{"$f":"Time!RVD$22","v":"00:00:00"},{"$f":"Time!RVE$22","v":"00:00:00"},{"$f":"Time!RVF$22","v":"00:00:00"},{"$f":"Time!RVG$22","v":"00:00:00"},{"$f":"Time!RVH$22","v":"00:00:00"},{"$f":"Time!RVI$22","v":"00:00:00"},{"$f":"Time!RVJ$22","v":"00:00:00"},{"$f":"Time!RVK$22","v":"00:00:00"},{"$f":"Time!RVL$22","v":"00:00:00"},{"$f":"Time!RVM$22","v":"00:00:00"},{"$f":"Time!RVN$22","v":"00:00:00"},{"$f":"Time!RVO$22","v":"00:00:00"},{"$f":"Time!RVP$22","v":"00:00:00"},{"$f":"Time!RVQ$22","v":"00:00:00"},{"$f":"Time!RVR$22","v":"00:00:00"},{"$f":"Time!RVS$22","v":"00:00:00"},{"$f":"Time!RVT$22","v":"00:00:00"},{"$f":"Time!RVU$22","v":"00:00:00"},{"$f":"Time!RVV$22","v":"00:00:00"},{"$f":"Time!RVW$22","v":"00:00:00"},{"$f":"Time!RVX$22","v":"00:00:00"},{"$f":"Time!RVY$22","v":"00:00:00"},{"$f":"Time!RVZ$22","v":"00:00:00"},{"$f":"Time!RWA$22","v":"00:00:00"},{"$f":"Time!RWB$22","v":"00:00:00"},{"$f":"Time!RWC$22","v":"00:00:00"},{"$f":"Time!RWD$22","v":"00:00:00"},{"$f":"Time!RWE$22","v":"00:00:00"},{"$f":"Time!RWF$22","v":"00:00:00"},{"$f":"Time!RWG$22","v":"00:00:00"},{"$f":"Time!RWH$22","v":"00:00:00"},{"$f":"Time!RWI$22","v":"00:00:00"},{"$f":"Time!RWJ$22","v":"00:00:00"},{"$f":"Time!RWK$22","v":"00:00:00"},{"$f":"Time!RWL$22","v":"00:00:00"},{"$f":"Time!RWM$22","v":"00:00:00"},{"$f":"Time!RWN$22","v":"00:00:00"},{"$f":"Time!RWO$22","v":"00:00:00"},{"$f":"Time!RWP$22","v":"00:00:00"},{"$f":"Time!RWQ$22","v":"00:00:00"},{"$f":"Time!RWR$22","v":"00:00:00"},{"$f":"Time!RWS$22","v":"00:00:00"},{"$f":"Time!RWT$22","v":"00:00:00"},{"$f":"Time!RWU$22","v":"00:00:00"},{"$f":"Time!RWV$22","v":"00:00:00"},{"$f":"Time!RWW$22","v":"00:00:00"},{"$f":"Time!RWX$22","v":"00:00:00"},{"$f":"Time!RWY$22","v":"00:00:00"},{"$f":"Time!RWZ$22","v":"00:00:00"},{"$f":"Time!RXA$22","v":"00:00:00"},{"$f":"Time!RXB$22","v":"00:00:00"},{"$f":"Time!RXC$22","v":"00:00:00"},{"$f":"Time!RXD$22","v":"00:00:00"},{"$f":"Time!RXE$22","v":"00:00:00"},{"$f":"Time!RXF$22","v":"00:00:00"},{"$f":"Time!RXG$22","v":"00:00:00"},{"$f":"Time!RXH$22","v":"00:00:00"},{"$f":"Time!RXI$22","v":"00:00:00"},{"$f":"Time!RXJ$22","v":"00:00:00"},{"$f":"Time!RXK$22","v":"00:00:00"},{"$f":"Time!RXL$22","v":"00:00:00"},{"$f":"Time!RXM$22","v":"00:00:00"},{"$f":"Time!RXN$22","v":"00:00:00"},{"$f":"Time!RXO$22","v":"00:00:00"},{"$f":"Time!RXP$22","v":"00:00:00"},{"$f":"Time!RXQ$22","v":"00:00:00"},{"$f":"Time!RXR$22","v":"00:00:00"},{"$f":"Time!RXS$22","v":"00:00:00"},{"$f":"Time!RXT$22","v":"00:00:00"},{"$f":"Time!RXU$22","v":"00:00:00"},{"$f":"Time!RXV$22","v":"00:00:00"},{"$f":"Time!RXW$22","v":"00:00:00"},{"$f":"Time!RXX$22","v":"00:00:00"},{"$f":"Time!RXY$22","v":"00:00:00"},{"$f":"Time!RXZ$22","v":"00:00:00"},{"$f":"Time!RYA$22","v":"00:00:00"},{"$f":"Time!RYB$22","v":"00:00:00"},{"$f":"Time!RYC$22","v":"00:00:00"},{"$f":"Time!RYD$22","v":"00:00:00"},{"$f":"Time!RYE$22","v":"00:00:00"},{"$f":"Time!RYF$22","v":"00:00:00"},{"$f":"Time!RYG$22","v":"00:00:00"},{"$f":"Time!RYH$22","v":"00:00:00"},{"$f":"Time!RYI$22","v":"00:00:00"},{"$f":"Time!RYJ$22","v":"00:00:00"},{"$f":"Time!RYK$22","v":"00:00:00"},{"$f":"Time!RYL$22","v":"00:00:00"},{"$f":"Time!RYM$22","v":"00:00:00"},{"$f":"Time!RYN$22","v":"00:00:00"},{"$f":"Time!RYO$22","v":"00:00:00"},{"$f":"Time!RYP$22","v":"00:00:00"},{"$f":"Time!RYQ$22","v":"00:00:00"},{"$f":"Time!RYR$22","v":"00:00:00"},{"$f":"Time!RYS$22","v":"00:00:00"},{"$f":"Time!RYT$22","v":"00:00:00"},{"$f":"Time!RYU$22","v":"00:00:00"},{"$f":"Time!RYV$22","v":"00:00:00"},{"$f":"Time!RYW$22","v":"00:00:00"},{"$f":"Time!RYX$22","v":"00:00:00"},{"$f":"Time!RYY$22","v":"00:00:00"},{"$f":"Time!RYZ$22","v":"00:00:00"},{"$f":"Time!RZA$22","v":"00:00:00"},{"$f":"Time!RZB$22","v":"00:00:00"},{"$f":"Time!RZC$22","v":"00:00:00"},{"$f":"Time!RZD$22","v":"00:00:00"},{"$f":"Time!RZE$22","v":"00:00:00"},{"$f":"Time!RZF$22","v":"00:00:00"},{"$f":"Time!RZG$22","v":"00:00:00"},{"$f":"Time!RZH$22","v":"00:00:00"},{"$f":"Time!RZI$22","v":"00:00:00"},{"$f":"Time!RZJ$22","v":"00:00:00"},{"$f":"Time!RZK$22","v":"00:00:00"},{"$f":"Time!RZL$22","v":"00:00:00"},{"$f":"Time!RZM$22","v":"00:00:00"},{"$f":"Time!RZN$22","v":"00:00:00"},{"$f":"Time!RZO$22","v":"00:00:00"},{"$f":"Time!RZP$22","v":"00:00:00"},{"$f":"Time!RZQ$22","v":"00:00:00"},{"$f":"Time!RZR$22","v":"00:00:00"},{"$f":"Time!RZS$22","v":"00:00:00"},{"$f":"Time!RZT$22","v":"00:00:00"},{"$f":"Time!RZU$22","v":"00:00:00"},{"$f":"Time!RZV$22","v":"00:00:00"},{"$f":"Time!RZW$22","v":"00:00:00"},{"$f":"Time!RZX$22","v":"00:00:00"},{"$f":"Time!RZY$22","v":"00:00:00"},{"$f":"Time!RZZ$22","v":"00:00:00"},{"$f":"Time!SAA$22","v":"00:00:00"},{"$f":"Time!SAB$22","v":"00:00:00"},{"$f":"Time!SAC$22","v":"00:00:00"},{"$f":"Time!SAD$22","v":"00:00:00"},{"$f":"Time!SAE$22","v":"00:00:00"},{"$f":"Time!SAF$22","v":"00:00:00"},{"$f":"Time!SAG$22","v":"00:00:00"},{"$f":"Time!SAH$22","v":"00:00:00"},{"$f":"Time!SAI$22","v":"00:00:00"},{"$f":"Time!SAJ$22","v":"00:00:00"},{"$f":"Time!SAK$22","v":"00:00:00"},{"$f":"Time!SAL$22","v":"00:00:00"},{"$f":"Time!SAM$22","v":"00:00:00"},{"$f":"Time!SAN$22","v":"00:00:00"},{"$f":"Time!SAO$22","v":"00:00:00"},{"$f":"Time!SAP$22","v":"00:00:00"},{"$f":"Time!SAQ$22","v":"00:00:00"},{"$f":"Time!SAR$22","v":"00:00:00"},{"$f":"Time!SAS$22","v":"00:00:00"},{"$f":"Time!SAT$22","v":"00:00:00"},{"$f":"Time!SAU$22","v":"00:00:00"},{"$f":"Time!SAV$22","v":"00:00:00"},{"$f":"Time!SAW$22","v":"00:00:00"},{"$f":"Time!SAX$22","v":"00:00:00"},{"$f":"Time!SAY$22","v":"00:00:00"},{"$f":"Time!SAZ$22","v":"00:00:00"},{"$f":"Time!SBA$22","v":"00:00:00"},{"$f":"Time!SBB$22","v":"00:00:00"},{"$f":"Time!SBC$22","v":"00:00:00"},{"$f":"Time!SBD$22","v":"00:00:00"},{"$f":"Time!SBE$22","v":"00:00:00"},{"$f":"Time!SBF$22","v":"00:00:00"},{"$f":"Time!SBG$22","v":"00:00:00"},{"$f":"Time!SBH$22","v":"00:00:00"},{"$f":"Time!SBI$22","v":"00:00:00"},{"$f":"Time!SBJ$22","v":"00:00:00"},{"$f":"Time!SBK$22","v":"00:00:00"},{"$f":"Time!SBL$22","v":"00:00:00"},{"$f":"Time!SBM$22","v":"00:00:00"},{"$f":"Time!SBN$22","v":"00:00:00"},{"$f":"Time!SBO$22","v":"00:00:00"},{"$f":"Time!SBP$22","v":"00:00:00"},{"$f":"Time!SBQ$22","v":"00:00:00"},{"$f":"Time!SBR$22","v":"00:00:00"},{"$f":"Time!SBS$22","v":"00:00:00"},{"$f":"Time!SBT$22","v":"00:00:00"},{"$f":"Time!SBU$22","v":"00:00:00"},{"$f":"Time!SBV$22","v":"00:00:00"},{"$f":"Time!SBW$22","v":"00:00:00"},{"$f":"Time!SBX$22","v":"00:00:00"},{"$f":"Time!SBY$22","v":"00:00:00"},{"$f":"Time!SBZ$22","v":"00:00:00"},{"$f":"Time!SCA$22","v":"00:00:00"},{"$f":"Time!SCB$22","v":"00:00:00"},{"$f":"Time!SCC$22","v":"00:00:00"},{"$f":"Time!SCD$22","v":"00:00:00"},{"$f":"Time!SCE$22","v":"00:00:00"},{"$f":"Time!SCF$22","v":"00:00:00"},{"$f":"Time!SCG$22","v":"00:00:00"},{"$f":"Time!SCH$22","v":"00:00:00"},{"$f":"Time!SCI$22","v":"00:00:00"},{"$f":"Time!SCJ$22","v":"00:00:00"},{"$f":"Time!SCK$22","v":"00:00:00"},{"$f":"Time!SCL$22","v":"00:00:00"},{"$f":"Time!SCM$22","v":"00:00:00"},{"$f":"Time!SCN$22","v":"00:00:00"},{"$f":"Time!SCO$22","v":"00:00:00"},{"$f":"Time!SCP$22","v":"00:00:00"},{"$f":"Time!SCQ$22","v":"00:00:00"},{"$f":"Time!SCR$22","v":"00:00:00"},{"$f":"Time!SCS$22","v":"00:00:00"},{"$f":"Time!SCT$22","v":"00:00:00"},{"$f":"Time!SCU$22","v":"00:00:00"},{"$f":"Time!SCV$22","v":"00:00:00"},{"$f":"Time!SCW$22","v":"00:00:00"},{"$f":"Time!SCX$22","v":"00:00:00"},{"$f":"Time!SCY$22","v":"00:00:00"},{"$f":"Time!SCZ$22","v":"00:00:00"},{"$f":"Time!SDA$22","v":"00:00:00"},{"$f":"Time!SDB$22","v":"00:00:00"},{"$f":"Time!SDC$22","v":"00:00:00"},{"$f":"Time!SDD$22","v":"00:00:00"},{"$f":"Time!SDE$22","v":"00:00:00"},{"$f":"Time!SDF$22","v":"00:00:00"},{"$f":"Time!SDG$22","v":"00:00:00"},{"$f":"Time!SDH$22","v":"00:00:00"},{"$f":"Time!SDI$22","v":"00:00:00"},{"$f":"Time!SDJ$22","v":"00:00:00"},{"$f":"Time!SDK$22","v":"00:00:00"},{"$f":"Time!SDL$22","v":"00:00:00"},{"$f":"Time!SDM$22","v":"00:00:00"},{"$f":"Time!SDN$22","v":"00:00:00"},{"$f":"Time!SDO$22","v":"00:00:00"},{"$f":"Time!SDP$22","v":"00:00:00"},{"$f":"Time!SDQ$22","v":"00:00:00"},{"$f":"Time!SDR$22","v":"00:00:00"},{"$f":"Time!SDS$22","v":"00:00:00"},{"$f":"Time!SDT$22","v":"00:00:00"},{"$f":"Time!SDU$22","v":"00:00:00"},{"$f":"Time!SDV$22","v":"00:00:00"},{"$f":"Time!SDW$22","v":"00:00:00"},{"$f":"Time!SDX$22","v":"00:00:00"},{"$f":"Time!SDY$22","v":"00:00:00"},{"$f":"Time!SDZ$22","v":"00:00:00"},{"$f":"Time!SEA$22","v":"00:00:00"},{"$f":"Time!SEB$22","v":"00:00:00"},{"$f":"Time!SEC$22","v":"00:00:00"},{"$f":"Time!SED$22","v":"00:00:00"},{"$f":"Time!SEE$22","v":"00:00:00"},{"$f":"Time!SEF$22","v":"00:00:00"},{"$f":"Time!SEG$22","v":"00:00:00"},{"$f":"Time!SEH$22","v":"00:00:00"},{"$f":"Time!SEI$22","v":"00:00:00"},{"$f":"Time!SEJ$22","v":"00:00:00"},{"$f":"Time!SEK$22","v":"00:00:00"},{"$f":"Time!SEL$22","v":"00:00:00"},{"$f":"Time!SEM$22","v":"00:00:00"},{"$f":"Time!SEN$22","v":"00:00:00"},{"$f":"Time!SEO$22","v":"00:00:00"},{"$f":"Time!SEP$22","v":"00:00:00"},{"$f":"Time!SEQ$22","v":"00:00:00"},{"$f":"Time!SER$22","v":"00:00:00"},{"$f":"Time!SES$22","v":"00:00:00"},{"$f":"Time!SET$22","v":"00:00:00"},{"$f":"Time!SEU$22","v":"00:00:00"},{"$f":"Time!SEV$22","v":"00:00:00"},{"$f":"Time!SEW$22","v":"00:00:00"},{"$f":"Time!SEX$22","v":"00:00:00"},{"$f":"Time!SEY$22","v":"00:00:00"},{"$f":"Time!SEZ$22","v":"00:00:00"},{"$f":"Time!SFA$22","v":"00:00:00"},{"$f":"Time!SFB$22","v":"00:00:00"},{"$f":"Time!SFC$22","v":"00:00:00"},{"$f":"Time!SFD$22","v":"00:00:00"},{"$f":"Time!SFE$22","v":"00:00:00"},{"$f":"Time!SFF$22","v":"00:00:00"},{"$f":"Time!SFG$22","v":"00:00:00"},{"$f":"Time!SFH$22","v":"00:00:00"},{"$f":"Time!SFI$22","v":"00:00:00"},{"$f":"Time!SFJ$22","v":"00:00:00"},{"$f":"Time!SFK$22","v":"00:00:00"},{"$f":"Time!SFL$22","v":"00:00:00"},{"$f":"Time!SFM$22","v":"00:00:00"},{"$f":"Time!SFN$22","v":"00:00:00"},{"$f":"Time!SFO$22","v":"00:00:00"},{"$f":"Time!SFP$22","v":"00:00:00"},{"$f":"Time!SFQ$22","v":"00:00:00"},{"$f":"Time!SFR$22","v":"00:00:00"},{"$f":"Time!SFS$22","v":"00:00:00"},{"$f":"Time!SFT$22","v":"00:00:00"},{"$f":"Time!SFU$22","v":"00:00:00"},{"$f":"Time!SFV$22","v":"00:00:00"},{"$f":"Time!SFW$22","v":"00:00:00"},{"$f":"Time!SFX$22","v":"00:00:00"},{"$f":"Time!SFY$22","v":"00:00:00"},{"$f":"Time!SFZ$22","v":"00:00:00"},{"$f":"Time!SGA$22","v":"00:00:00"},{"$f":"Time!SGB$22","v":"00:00:00"},{"$f":"Time!SGC$22","v":"00:00:00"},{"$f":"Time!SGD$22","v":"00:00:00"},{"$f":"Time!SGE$22","v":"00:00:00"},{"$f":"Time!SGF$22","v":"00:00:00"},{"$f":"Time!SGG$22","v":"00:00:00"},{"$f":"Time!SGH$22","v":"00:00:00"},{"$f":"Time!SGI$22","v":"00:00:00"},{"$f":"Time!SGJ$22","v":"00:00:00"},{"$f":"Time!SGK$22","v":"00:00:00"},{"$f":"Time!SGL$22","v":"00:00:00"},{"$f":"Time!SGM$22","v":"00:00:00"},{"$f":"Time!SGN$22","v":"00:00:00"},{"$f":"Time!SGO$22","v":"00:00:00"},{"$f":"Time!SGP$22","v":"00:00:00"},{"$f":"Time!SGQ$22","v":"00:00:00"},{"$f":"Time!SGR$22","v":"00:00:00"},{"$f":"Time!SGS$22","v":"00:00:00"},{"$f":"Time!SGT$22","v":"00:00:00"},{"$f":"Time!SGU$22","v":"00:00:00"},{"$f":"Time!SGV$22","v":"00:00:00"},{"$f":"Time!SGW$22","v":"00:00:00"},{"$f":"Time!SGX$22","v":"00:00:00"},{"$f":"Time!SGY$22","v":"00:00:00"},{"$f":"Time!SGZ$22","v":"00:00:00"},{"$f":"Time!SHA$22","v":"00:00:00"},{"$f":"Time!SHB$22","v":"00:00:00"},{"$f":"Time!SHC$22","v":"00:00:00"},{"$f":"Time!SHD$22","v":"00:00:00"},{"$f":"Time!SHE$22","v":"00:00:00"},{"$f":"Time!SHF$22","v":"00:00:00"},{"$f":"Time!SHG$22","v":"00:00:00"},{"$f":"Time!SHH$22","v":"00:00:00"},{"$f":"Time!SHI$22","v":"00:00:00"},{"$f":"Time!SHJ$22","v":"00:00:00"},{"$f":"Time!SHK$22","v":"00:00:00"},{"$f":"Time!SHL$22","v":"00:00:00"},{"$f":"Time!SHM$22","v":"00:00:00"},{"$f":"Time!SHN$22","v":"00:00:00"},{"$f":"Time!SHO$22","v":"00:00:00"},{"$f":"Time!SHP$22","v":"00:00:00"},{"$f":"Time!SHQ$22","v":"00:00:00"},{"$f":"Time!SHR$22","v":"00:00:00"},{"$f":"Time!SHS$22","v":"00:00:00"},{"$f":"Time!SHT$22","v":"00:00:00"},{"$f":"Time!SHU$22","v":"00:00:00"},{"$f":"Time!SHV$22","v":"00:00:00"},{"$f":"Time!SHW$22","v":"00:00:00"},{"$f":"Time!SHX$22","v":"00:00:00"},{"$f":"Time!SHY$22","v":"00:00:00"},{"$f":"Time!SHZ$22","v":"00:00:00"},{"$f":"Time!SIA$22","v":"00:00:00"},{"$f":"Time!SIB$22","v":"00:00:00"},{"$f":"Time!SIC$22","v":"00:00:00"},{"$f":"Time!SID$22","v":"00:00:00"},{"$f":"Time!SIE$22","v":"00:00:00"},{"$f":"Time!SIF$22","v":"00:00:00"},{"$f":"Time!SIG$22","v":"00:00:00"},{"$f":"Time!SIH$22","v":"00:00:00"},{"$f":"Time!SII$22","v":"00:00:00"},{"$f":"Time!SIJ$22","v":"00:00:00"},{"$f":"Time!SIK$22","v":"00:00:00"},{"$f":"Time!SIL$22","v":"00:00:00"},{"$f":"Time!SIM$22","v":"00:00:00"},{"$f":"Time!SIN$22","v":"00:00:00"},{"$f":"Time!SIO$22","v":"00:00:00"},{"$f":"Time!SIP$22","v":"00:00:00"},{"$f":"Time!SIQ$22","v":"00:00:00"},{"$f":"Time!SIR$22","v":"00:00:00"},{"$f":"Time!SIS$22","v":"00:00:00"},{"$f":"Time!SIT$22","v":"00:00:00"},{"$f":"Time!SIU$22","v":"00:00:00"},{"$f":"Time!SIV$22","v":"00:00:00"},{"$f":"Time!SIW$22","v":"00:00:00"},{"$f":"Time!SIX$22","v":"00:00:00"},{"$f":"Time!SIY$22","v":"00:00:00"},{"$f":"Time!SIZ$22","v":"00:00:00"},{"$f":"Time!SJA$22","v":"00:00:00"},{"$f":"Time!SJB$22","v":"00:00:00"},{"$f":"Time!SJC$22","v":"00:00:00"},{"$f":"Time!SJD$22","v":"00:00:00"},{"$f":"Time!SJE$22","v":"00:00:00"},{"$f":"Time!SJF$22","v":"00:00:00"},{"$f":"Time!SJG$22","v":"00:00:00"},{"$f":"Time!SJH$22","v":"00:00:00"},{"$f":"Time!SJI$22","v":"00:00:00"},{"$f":"Time!SJJ$22","v":"00:00:00"},{"$f":"Time!SJK$22","v":"00:00:00"},{"$f":"Time!SJL$22","v":"00:00:00"},{"$f":"Time!SJM$22","v":"00:00:00"},{"$f":"Time!SJN$22","v":"00:00:00"},{"$f":"Time!SJO$22","v":"00:00:00"},{"$f":"Time!SJP$22","v":"00:00:00"},{"$f":"Time!SJQ$22","v":"00:00:00"},{"$f":"Time!SJR$22","v":"00:00:00"},{"$f":"Time!SJS$22","v":"00:00:00"},{"$f":"Time!SJT$22","v":"00:00:00"},{"$f":"Time!SJU$22","v":"00:00:00"},{"$f":"Time!SJV$22","v":"00:00:00"},{"$f":"Time!SJW$22","v":"00:00:00"},{"$f":"Time!SJX$22","v":"00:00:00"},{"$f":"Time!SJY$22","v":"00:00:00"},{"$f":"Time!SJZ$22","v":"00:00:00"},{"$f":"Time!SKA$22","v":"00:00:00"},{"$f":"Time!SKB$22","v":"00:00:00"},{"$f":"Time!SKC$22","v":"00:00:00"},{"$f":"Time!SKD$22","v":"00:00:00"},{"$f":"Time!SKE$22","v":"00:00:00"},{"$f":"Time!SKF$22","v":"00:00:00"},{"$f":"Time!SKG$22","v":"00:00:00"},{"$f":"Time!SKH$22","v":"00:00:00"},{"$f":"Time!SKI$22","v":"00:00:00"},{"$f":"Time!SKJ$22","v":"00:00:00"},{"$f":"Time!SKK$22","v":"00:00:00"},{"$f":"Time!SKL$22","v":"00:00:00"},{"$f":"Time!SKM$22","v":"00:00:00"},{"$f":"Time!SKN$22","v":"00:00:00"},{"$f":"Time!SKO$22","v":"00:00:00"},{"$f":"Time!SKP$22","v":"00:00:00"},{"$f":"Time!SKQ$22","v":"00:00:00"},{"$f":"Time!SKR$22","v":"00:00:00"},{"$f":"Time!SKS$22","v":"00:00:00"},{"$f":"Time!SKT$22","v":"00:00:00"},{"$f":"Time!SKU$22","v":"00:00:00"},{"$f":"Time!SKV$22","v":"00:00:00"},{"$f":"Time!SKW$22","v":"00:00:00"},{"$f":"Time!SKX$22","v":"00:00:00"},{"$f":"Time!SKY$22","v":"00:00:00"},{"$f":"Time!SKZ$22","v":"00:00:00"},{"$f":"Time!SLA$22","v":"00:00:00"},{"$f":"Time!SLB$22","v":"00:00:00"},{"$f":"Time!SLC$22","v":"00:00:00"},{"$f":"Time!SLD$22","v":"00:00:00"},{"$f":"Time!SLE$22","v":"00:00:00"},{"$f":"Time!SLF$22","v":"00:00:00"},{"$f":"Time!SLG$22","v":"00:00:00"},{"$f":"Time!SLH$22","v":"00:00:00"},{"$f":"Time!SLI$22","v":"00:00:00"},{"$f":"Time!SLJ$22","v":"00:00:00"},{"$f":"Time!SLK$22","v":"00:00:00"},{"$f":"Time!SLL$22","v":"00:00:00"},{"$f":"Time!SLM$22","v":"00:00:00"},{"$f":"Time!SLN$22","v":"00:00:00"},{"$f":"Time!SLO$22","v":"00:00:00"},{"$f":"Time!SLP$22","v":"00:00:00"},{"$f":"Time!SLQ$22","v":"00:00:00"},{"$f":"Time!SLR$22","v":"00:00:00"},{"$f":"Time!SLS$22","v":"00:00:00"},{"$f":"Time!SLT$22","v":"00:00:00"},{"$f":"Time!SLU$22","v":"00:00:00"},{"$f":"Time!SLV$22","v":"00:00:00"},{"$f":"Time!SLW$22","v":"00:00:00"},{"$f":"Time!SLX$22","v":"00:00:00"},{"$f":"Time!SLY$22","v":"00:00:00"},{"$f":"Time!SLZ$22","v":"00:00:00"},{"$f":"Time!SMA$22","v":"00:00:00"},{"$f":"Time!SMB$22","v":"00:00:00"},{"$f":"Time!SMC$22","v":"00:00:00"},{"$f":"Time!SMD$22","v":"00:00:00"},{"$f":"Time!SME$22","v":"00:00:00"},{"$f":"Time!SMF$22","v":"00:00:00"},{"$f":"Time!SMG$22","v":"00:00:00"},{"$f":"Time!SMH$22","v":"00:00:00"},{"$f":"Time!SMI$22","v":"00:00:00"},{"$f":"Time!SMJ$22","v":"00:00:00"},{"$f":"Time!SMK$22","v":"00:00:00"},{"$f":"Time!SML$22","v":"00:00:00"},{"$f":"Time!SMM$22","v":"00:00:00"},{"$f":"Time!SMN$22","v":"00:00:00"},{"$f":"Time!SMO$22","v":"00:00:00"},{"$f":"Time!SMP$22","v":"00:00:00"},{"$f":"Time!SMQ$22","v":"00:00:00"},{"$f":"Time!SMR$22","v":"00:00:00"},{"$f":"Time!SMS$22","v":"00:00:00"},{"$f":"Time!SMT$22","v":"00:00:00"},{"$f":"Time!SMU$22","v":"00:00:00"},{"$f":"Time!SMV$22","v":"00:00:00"},{"$f":"Time!SMW$22","v":"00:00:00"},{"$f":"Time!SMX$22","v":"00:00:00"},{"$f":"Time!SMY$22","v":"00:00:00"},{"$f":"Time!SMZ$22","v":"00:00:00"},{"$f":"Time!SNA$22","v":"00:00:00"},{"$f":"Time!SNB$22","v":"00:00:00"},{"$f":"Time!SNC$22","v":"00:00:00"},{"$f":"Time!SND$22","v":"00:00:00"},{"$f":"Time!SNE$22","v":"00:00:00"},{"$f":"Time!SNF$22","v":"00:00:00"},{"$f":"Time!SNG$22","v":"00:00:00"},{"$f":"Time!SNH$22","v":"00:00:00"},{"$f":"Time!SNI$22","v":"00:00:00"},{"$f":"Time!SNJ$22","v":"00:00:00"},{"$f":"Time!SNK$22","v":"00:00:00"},{"$f":"Time!SNL$22","v":"00:00:00"},{"$f":"Time!SNM$22","v":"00:00:00"},{"$f":"Time!SNN$22","v":"00:00:00"},{"$f":"Time!SNO$22","v":"00:00:00"},{"$f":"Time!SNP$22","v":"00:00:00"},{"$f":"Time!SNQ$22","v":"00:00:00"},{"$f":"Time!SNR$22","v":"00:00:00"},{"$f":"Time!SNS$22","v":"00:00:00"},{"$f":"Time!SNT$22","v":"00:00:00"},{"$f":"Time!SNU$22","v":"00:00:00"},{"$f":"Time!SNV$22","v":"00:00:00"},{"$f":"Time!SNW$22","v":"00:00:00"},{"$f":"Time!SNX$22","v":"00:00:00"},{"$f":"Time!SNY$22","v":"00:00:00"},{"$f":"Time!SNZ$22","v":"00:00:00"},{"$f":"Time!SOA$22","v":"00:00:00"},{"$f":"Time!SOB$22","v":"00:00:00"},{"$f":"Time!SOC$22","v":"00:00:00"},{"$f":"Time!SOD$22","v":"00:00:00"},{"$f":"Time!SOE$22","v":"00:00:00"},{"$f":"Time!SOF$22","v":"00:00:00"},{"$f":"Time!SOG$22","v":"00:00:00"},{"$f":"Time!SOH$22","v":"00:00:00"},{"$f":"Time!SOI$22","v":"00:00:00"},{"$f":"Time!SOJ$22","v":"00:00:00"},{"$f":"Time!SOK$22","v":"00:00:00"},{"$f":"Time!SOL$22","v":"00:00:00"},{"$f":"Time!SOM$22","v":"00:00:00"},{"$f":"Time!SON$22","v":"00:00:00"},{"$f":"Time!SOO$22","v":"00:00:00"},{"$f":"Time!SOP$22","v":"00:00:00"},{"$f":"Time!SOQ$22","v":"00:00:00"},{"$f":"Time!SOR$22","v":"00:00:00"},{"$f":"Time!SOS$22","v":"00:00:00"},{"$f":"Time!SOT$22","v":"00:00:00"},{"$f":"Time!SOU$22","v":"00:00:00"},{"$f":"Time!SOV$22","v":"00:00:00"},{"$f":"Time!SOW$22","v":"00:00:00"},{"$f":"Time!SOX$22","v":"00:00:00"},{"$f":"Time!SOY$22","v":"00:00:00"},{"$f":"Time!SOZ$22","v":"00:00:00"},{"$f":"Time!SPA$22","v":"00:00:00"},{"$f":"Time!SPB$22","v":"00:00:00"},{"$f":"Time!SPC$22","v":"00:00:00"},{"$f":"Time!SPD$22","v":"00:00:00"},{"$f":"Time!SPE$22","v":"00:00:00"},{"$f":"Time!SPF$22","v":"00:00:00"},{"$f":"Time!SPG$22","v":"00:00:00"},{"$f":"Time!SPH$22","v":"00:00:00"},{"$f":"Time!SPI$22","v":"00:00:00"},{"$f":"Time!SPJ$22","v":"00:00:00"},{"$f":"Time!SPK$22","v":"00:00:00"},{"$f":"Time!SPL$22","v":"00:00:00"},{"$f":"Time!SPM$22","v":"00:00:00"},{"$f":"Time!SPN$22","v":"00:00:00"},{"$f":"Time!SPO$22","v":"00:00:00"},{"$f":"Time!SPP$22","v":"00:00:00"},{"$f":"Time!SPQ$22","v":"00:00:00"},{"$f":"Time!SPR$22","v":"00:00:00"},{"$f":"Time!SPS$22","v":"00:00:00"},{"$f":"Time!SPT$22","v":"00:00:00"},{"$f":"Time!SPU$22","v":"00:00:00"},{"$f":"Time!SPV$22","v":"00:00:00"},{"$f":"Time!SPW$22","v":"00:00:00"},{"$f":"Time!SPX$22","v":"00:00:00"},{"$f":"Time!SPY$22","v":"00:00:00"},{"$f":"Time!SPZ$22","v":"00:00:00"},{"$f":"Time!SQA$22","v":"00:00:00"},{"$f":"Time!SQB$22","v":"00:00:00"},{"$f":"Time!SQC$22","v":"00:00:00"},{"$f":"Time!SQD$22","v":"00:00:00"},{"$f":"Time!SQE$22","v":"00:00:00"},{"$f":"Time!SQF$22","v":"00:00:00"},{"$f":"Time!SQG$22","v":"00:00:00"},{"$f":"Time!SQH$22","v":"00:00:00"},{"$f":"Time!SQI$22","v":"00:00:00"},{"$f":"Time!SQJ$22","v":"00:00:00"},{"$f":"Time!SQK$22","v":"00:00:00"},{"$f":"Time!SQL$22","v":"00:00:00"},{"$f":"Time!SQM$22","v":"00:00:00"},{"$f":"Time!SQN$22","v":"00:00:00"},{"$f":"Time!SQO$22","v":"00:00:00"},{"$f":"Time!SQP$22","v":"00:00:00"},{"$f":"Time!SQQ$22","v":"00:00:00"},{"$f":"Time!SQR$22","v":"00:00:00"},{"$f":"Time!SQS$22","v":"00:00:00"},{"$f":"Time!SQT$22","v":"00:00:00"},{"$f":"Time!SQU$22","v":"00:00:00"},{"$f":"Time!SQV$22","v":"00:00:00"},{"$f":"Time!SQW$22","v":"00:00:00"},{"$f":"Time!SQX$22","v":"00:00:00"},{"$f":"Time!SQY$22","v":"00:00:00"},{"$f":"Time!SQZ$22","v":"00:00:00"},{"$f":"Time!SRA$22","v":"00:00:00"},{"$f":"Time!SRB$22","v":"00:00:00"},{"$f":"Time!SRC$22","v":"00:00:00"},{"$f":"Time!SRD$22","v":"00:00:00"},{"$f":"Time!SRE$22","v":"00:00:00"},{"$f":"Time!SRF$22","v":"00:00:00"},{"$f":"Time!SRG$22","v":"00:00:00"},{"$f":"Time!SRH$22","v":"00:00:00"},{"$f":"Time!SRI$22","v":"00:00:00"},{"$f":"Time!SRJ$22","v":"00:00:00"},{"$f":"Time!SRK$22","v":"00:00:00"},{"$f":"Time!SRL$22","v":"00:00:00"},{"$f":"Time!SRM$22","v":"00:00:00"},{"$f":"Time!SRN$22","v":"00:00:00"},{"$f":"Time!SRO$22","v":"00:00:00"},{"$f":"Time!SRP$22","v":"00:00:00"},{"$f":"Time!SRQ$22","v":"00:00:00"},{"$f":"Time!SRR$22","v":"00:00:00"},{"$f":"Time!SRS$22","v":"00:00:00"},{"$f":"Time!SRT$22","v":"00:00:00"},{"$f":"Time!SRU$22","v":"00:00:00"},{"$f":"Time!SRV$22","v":"00:00:00"},{"$f":"Time!SRW$22","v":"00:00:00"},{"$f":"Time!SRX$22","v":"00:00:00"},{"$f":"Time!SRY$22","v":"00:00:00"},{"$f":"Time!SRZ$22","v":"00:00:00"},{"$f":"Time!SSA$22","v":"00:00:00"},{"$f":"Time!SSB$22","v":"00:00:00"},{"$f":"Time!SSC$22","v":"00:00:00"},{"$f":"Time!SSD$22","v":"00:00:00"},{"$f":"Time!SSE$22","v":"00:00:00"},{"$f":"Time!SSF$22","v":"00:00:00"},{"$f":"Time!SSG$22","v":"00:00:00"},{"$f":"Time!SSH$22","v":"00:00:00"},{"$f":"Time!SSI$22","v":"00:00:00"},{"$f":"Time!SSJ$22","v":"00:00:00"},{"$f":"Time!SSK$22","v":"00:00:00"},{"$f":"Time!SSL$22","v":"00:00:00"},{"$f":"Time!SSM$22","v":"00:00:00"},{"$f":"Time!SSN$22","v":"00:00:00"},{"$f":"Time!SSO$22","v":"00:00:00"},{"$f":"Time!SSP$22","v":"00:00:00"},{"$f":"Time!SSQ$22","v":"00:00:00"},{"$f":"Time!SSR$22","v":"00:00:00"},{"$f":"Time!SSS$22","v":"00:00:00"},{"$f":"Time!SST$22","v":"00:00:00"},{"$f":"Time!SSU$22","v":"00:00:00"},{"$f":"Time!SSV$22","v":"00:00:00"},{"$f":"Time!SSW$22","v":"00:00:00"},{"$f":"Time!SSX$22","v":"00:00:00"},{"$f":"Time!SSY$22","v":"00:00:00"},{"$f":"Time!SSZ$22","v":"00:00:00"},{"$f":"Time!STA$22","v":"00:00:00"},{"$f":"Time!STB$22","v":"00:00:00"},{"$f":"Time!STC$22","v":"00:00:00"},{"$f":"Time!STD$22","v":"00:00:00"},{"$f":"Time!STE$22","v":"00:00:00"},{"$f":"Time!STF$22","v":"00:00:00"},{"$f":"Time!STG$22","v":"00:00:00"},{"$f":"Time!STH$22","v":"00:00:00"},{"$f":"Time!STI$22","v":"00:00:00"},{"$f":"Time!STJ$22","v":"00:00:00"},{"$f":"Time!STK$22","v":"00:00:00"},{"$f":"Time!STL$22","v":"00:00:00"},{"$f":"Time!STM$22","v":"00:00:00"},{"$f":"Time!STN$22","v":"00:00:00"},{"$f":"Time!STO$22","v":"00:00:00"},{"$f":"Time!STP$22","v":"00:00:00"},{"$f":"Time!STQ$22","v":"00:00:00"},{"$f":"Time!STR$22","v":"00:00:00"},{"$f":"Time!STS$22","v":"00:00:00"},{"$f":"Time!STT$22","v":"00:00:00"},{"$f":"Time!STU$22","v":"00:00:00"},{"$f":"Time!STV$22","v":"00:00:00"},{"$f":"Time!STW$22","v":"00:00:00"},{"$f":"Time!STX$22","v":"00:00:00"},{"$f":"Time!STY$22","v":"00:00:00"},{"$f":"Time!STZ$22","v":"00:00:00"},{"$f":"Time!SUA$22","v":"00:00:00"},{"$f":"Time!SUB$22","v":"00:00:00"},{"$f":"Time!SUC$22","v":"00:00:00"},{"$f":"Time!SUD$22","v":"00:00:00"},{"$f":"Time!SUE$22","v":"00:00:00"},{"$f":"Time!SUF$22","v":"00:00:00"},{"$f":"Time!SUG$22","v":"00:00:00"},{"$f":"Time!SUH$22","v":"00:00:00"},{"$f":"Time!SUI$22","v":"00:00:00"},{"$f":"Time!SUJ$22","v":"00:00:00"},{"$f":"Time!SUK$22","v":"00:00:00"},{"$f":"Time!SUL$22","v":"00:00:00"},{"$f":"Time!SUM$22","v":"00:00:00"},{"$f":"Time!SUN$22","v":"00:00:00"},{"$f":"Time!SUO$22","v":"00:00:00"},{"$f":"Time!SUP$22","v":"00:00:00"},{"$f":"Time!SUQ$22","v":"00:00:00"},{"$f":"Time!SUR$22","v":"00:00:00"},{"$f":"Time!SUS$22","v":"00:00:00"},{"$f":"Time!SUT$22","v":"00:00:00"},{"$f":"Time!SUU$22","v":"00:00:00"},{"$f":"Time!SUV$22","v":"00:00:00"},{"$f":"Time!SUW$22","v":"00:00:00"},{"$f":"Time!SUX$22","v":"00:00:00"},{"$f":"Time!SUY$22","v":"00:00:00"},{"$f":"Time!SUZ$22","v":"00:00:00"},{"$f":"Time!SVA$22","v":"00:00:00"},{"$f":"Time!SVB$22","v":"00:00:00"},{"$f":"Time!SVC$22","v":"00:00:00"},{"$f":"Time!SVD$22","v":"00:00:00"},{"$f":"Time!SVE$22","v":"00:00:00"},{"$f":"Time!SVF$22","v":"00:00:00"},{"$f":"Time!SVG$22","v":"00:00:00"},{"$f":"Time!SVH$22","v":"00:00:00"},{"$f":"Time!SVI$22","v":"00:00:00"},{"$f":"Time!SVJ$22","v":"00:00:00"},{"$f":"Time!SVK$22","v":"00:00:00"},{"$f":"Time!SVL$22","v":"00:00:00"},{"$f":"Time!SVM$22","v":"00:00:00"},{"$f":"Time!SVN$22","v":"00:00:00"},{"$f":"Time!SVO$22","v":"00:00:00"},{"$f":"Time!SVP$22","v":"00:00:00"},{"$f":"Time!SVQ$22","v":"00:00:00"},{"$f":"Time!SVR$22","v":"00:00:00"},{"$f":"Time!SVS$22","v":"00:00:00"},{"$f":"Time!SVT$22","v":"00:00:00"},{"$f":"Time!SVU$22","v":"00:00:00"},{"$f":"Time!SVV$22","v":"00:00:00"},{"$f":"Time!SVW$22","v":"00:00:00"},{"$f":"Time!SVX$22","v":"00:00:00"},{"$f":"Time!SVY$22","v":"00:00:00"},{"$f":"Time!SVZ$22","v":"00:00:00"},{"$f":"Time!SWA$22","v":"00:00:00"},{"$f":"Time!SWB$22","v":"00:00:00"},{"$f":"Time!SWC$22","v":"00:00:00"},{"$f":"Time!SWD$22","v":"00:00:00"},{"$f":"Time!SWE$22","v":"00:00:00"},{"$f":"Time!SWF$22","v":"00:00:00"},{"$f":"Time!SWG$22","v":"00:00:00"},{"$f":"Time!SWH$22","v":"00:00:00"},{"$f":"Time!SWI$22","v":"00:00:00"},{"$f":"Time!SWJ$22","v":"00:00:00"},{"$f":"Time!SWK$22","v":"00:00:00"},{"$f":"Time!SWL$22","v":"00:00:00"},{"$f":"Time!SWM$22","v":"00:00:00"},{"$f":"Time!SWN$22","v":"00:00:00"},{"$f":"Time!SWO$22","v":"00:00:00"},{"$f":"Time!SWP$22","v":"00:00:00"},{"$f":"Time!SWQ$22","v":"00:00:00"},{"$f":"Time!SWR$22","v":"00:00:00"},{"$f":"Time!SWS$22","v":"00:00:00"},{"$f":"Time!SWT$22","v":"00:00:00"},{"$f":"Time!SWU$22","v":"00:00:00"},{"$f":"Time!SWV$22","v":"00:00:00"},{"$f":"Time!SWW$22","v":"00:00:00"},{"$f":"Time!SWX$22","v":"00:00:00"},{"$f":"Time!SWY$22","v":"00:00:00"},{"$f":"Time!SWZ$22","v":"00:00:00"},{"$f":"Time!SXA$22","v":"00:00:00"},{"$f":"Time!SXB$22","v":"00:00:00"},{"$f":"Time!SXC$22","v":"00:00:00"},{"$f":"Time!SXD$22","v":"00:00:00"},{"$f":"Time!SXE$22","v":"00:00:00"},{"$f":"Time!SXF$22","v":"00:00:00"},{"$f":"Time!SXG$22","v":"00:00:00"},{"$f":"Time!SXH$22","v":"00:00:00"},{"$f":"Time!SXI$22","v":"00:00:00"},{"$f":"Time!SXJ$22","v":"00:00:00"},{"$f":"Time!SXK$22","v":"00:00:00"},{"$f":"Time!SXL$22","v":"00:00:00"},{"$f":"Time!SXM$22","v":"00:00:00"},{"$f":"Time!SXN$22","v":"00:00:00"},{"$f":"Time!SXO$22","v":"00:00:00"},{"$f":"Time!SXP$22","v":"00:00:00"},{"$f":"Time!SXQ$22","v":"00:00:00"},{"$f":"Time!SXR$22","v":"00:00:00"},{"$f":"Time!SXS$22","v":"00:00:00"},{"$f":"Time!SXT$22","v":"00:00:00"},{"$f":"Time!SXU$22","v":"00:00:00"},{"$f":"Time!SXV$22","v":"00:00:00"},{"$f":"Time!SXW$22","v":"00:00:00"},{"$f":"Time!SXX$22","v":"00:00:00"},{"$f":"Time!SXY$22","v":"00:00:00"},{"$f":"Time!SXZ$22","v":"00:00:00"},{"$f":"Time!SYA$22","v":"00:00:00"},{"$f":"Time!SYB$22","v":"00:00:00"},{"$f":"Time!SYC$22","v":"00:00:00"},{"$f":"Time!SYD$22","v":"00:00:00"},{"$f":"Time!SYE$22","v":"00:00:00"},{"$f":"Time!SYF$22","v":"00:00:00"},{"$f":"Time!SYG$22","v":"00:00:00"},{"$f":"Time!SYH$22","v":"00:00:00"},{"$f":"Time!SYI$22","v":"00:00:00"},{"$f":"Time!SYJ$22","v":"00:00:00"},{"$f":"Time!SYK$22","v":"00:00:00"},{"$f":"Time!SYL$22","v":"00:00:00"},{"$f":"Time!SYM$22","v":"00:00:00"},{"$f":"Time!SYN$22","v":"00:00:00"},{"$f":"Time!SYO$22","v":"00:00:00"},{"$f":"Time!SYP$22","v":"00:00:00"},{"$f":"Time!SYQ$22","v":"00:00:00"},{"$f":"Time!SYR$22","v":"00:00:00"},{"$f":"Time!SYS$22","v":"00:00:00"},{"$f":"Time!SYT$22","v":"00:00:00"},{"$f":"Time!SYU$22","v":"00:00:00"},{"$f":"Time!SYV$22","v":"00:00:00"},{"$f":"Time!SYW$22","v":"00:00:00"},{"$f":"Time!SYX$22","v":"00:00:00"},{"$f":"Time!SYY$22","v":"00:00:00"},{"$f":"Time!SYZ$22","v":"00:00:00"},{"$f":"Time!SZA$22","v":"00:00:00"},{"$f":"Time!SZB$22","v":"00:00:00"},{"$f":"Time!SZC$22","v":"00:00:00"},{"$f":"Time!SZD$22","v":"00:00:00"},{"$f":"Time!SZE$22","v":"00:00:00"},{"$f":"Time!SZF$22","v":"00:00:00"},{"$f":"Time!SZG$22","v":"00:00:00"},{"$f":"Time!SZH$22","v":"00:00:00"},{"$f":"Time!SZI$22","v":"00:00:00"},{"$f":"Time!SZJ$22","v":"00:00:00"},{"$f":"Time!SZK$22","v":"00:00:00"},{"$f":"Time!SZL$22","v":"00:00:00"},{"$f":"Time!SZM$22","v":"00:00:00"},{"$f":"Time!SZN$22","v":"00:00:00"},{"$f":"Time!SZO$22","v":"00:00:00"},{"$f":"Time!SZP$22","v":"00:00:00"},{"$f":"Time!SZQ$22","v":"00:00:00"},{"$f":"Time!SZR$22","v":"00:00:00"},{"$f":"Time!SZS$22","v":"00:00:00"},{"$f":"Time!SZT$22","v":"00:00:00"},{"$f":"Time!SZU$22","v":"00:00:00"},{"$f":"Time!SZV$22","v":"00:00:00"},{"$f":"Time!SZW$22","v":"00:00:00"},{"$f":"Time!SZX$22","v":"00:00:00"},{"$f":"Time!SZY$22","v":"00:00:00"},{"$f":"Time!SZZ$22","v":"00:00:00"},{"$f":"Time!TAA$22","v":"00:00:00"},{"$f":"Time!TAB$22","v":"00:00:00"},{"$f":"Time!TAC$22","v":"00:00:00"},{"$f":"Time!TAD$22","v":"00:00:00"},{"$f":"Time!TAE$22","v":"00:00:00"},{"$f":"Time!TAF$22","v":"00:00:00"},{"$f":"Time!TAG$22","v":"00:00:00"},{"$f":"Time!TAH$22","v":"00:00:00"},{"$f":"Time!TAI$22","v":"00:00:00"},{"$f":"Time!TAJ$22","v":"00:00:00"},{"$f":"Time!TAK$22","v":"00:00:00"},{"$f":"Time!TAL$22","v":"00:00:00"},{"$f":"Time!TAM$22","v":"00:00:00"},{"$f":"Time!TAN$22","v":"00:00:00"},{"$f":"Time!TAO$22","v":"00:00:00"},{"$f":"Time!TAP$22","v":"00:00:00"},{"$f":"Time!TAQ$22","v":"00:00:00"},{"$f":"Time!TAR$22","v":"00:00:00"},{"$f":"Time!TAS$22","v":"00:00:00"},{"$f":"Time!TAT$22","v":"00:00:00"},{"$f":"Time!TAU$22","v":"00:00:00"},{"$f":"Time!TAV$22","v":"00:00:00"},{"$f":"Time!TAW$22","v":"00:00:00"},{"$f":"Time!TAX$22","v":"00:00:00"},{"$f":"Time!TAY$22","v":"00:00:00"},{"$f":"Time!TAZ$22","v":"00:00:00"},{"$f":"Time!TBA$22","v":"00:00:00"},{"$f":"Time!TBB$22","v":"00:00:00"},{"$f":"Time!TBC$22","v":"00:00:00"},{"$f":"Time!TBD$22","v":"00:00:00"},{"$f":"Time!TBE$22","v":"00:00:00"},{"$f":"Time!TBF$22","v":"00:00:00"},{"$f":"Time!TBG$22","v":"00:00:00"},{"$f":"Time!TBH$22","v":"00:00:00"},{"$f":"Time!TBI$22","v":"00:00:00"},{"$f":"Time!TBJ$22","v":"00:00:00"},{"$f":"Time!TBK$22","v":"00:00:00"},{"$f":"Time!TBL$22","v":"00:00:00"},{"$f":"Time!TBM$22","v":"00:00:00"},{"$f":"Time!TBN$22","v":"00:00:00"},{"$f":"Time!TBO$22","v":"00:00:00"},{"$f":"Time!TBP$22","v":"00:00:00"},{"$f":"Time!TBQ$22","v":"00:00:00"},{"$f":"Time!TBR$22","v":"00:00:00"},{"$f":"Time!TBS$22","v":"00:00:00"},{"$f":"Time!TBT$22","v":"00:00:00"},{"$f":"Time!TBU$22","v":"00:00:00"},{"$f":"Time!TBV$22","v":"00:00:00"},{"$f":"Time!TBW$22","v":"00:00:00"},{"$f":"Time!TBX$22","v":"00:00:00"},{"$f":"Time!TBY$22","v":"00:00:00"},{"$f":"Time!TBZ$22","v":"00:00:00"},{"$f":"Time!TCA$22","v":"00:00:00"},{"$f":"Time!TCB$22","v":"00:00:00"},{"$f":"Time!TCC$22","v":"00:00:00"},{"$f":"Time!TCD$22","v":"00:00:00"},{"$f":"Time!TCE$22","v":"00:00:00"},{"$f":"Time!TCF$22","v":"00:00:00"},{"$f":"Time!TCG$22","v":"00:00:00"},{"$f":"Time!TCH$22","v":"00:00:00"},{"$f":"Time!TCI$22","v":"00:00:00"},{"$f":"Time!TCJ$22","v":"00:00:00"},{"$f":"Time!TCK$22","v":"00:00:00"},{"$f":"Time!TCL$22","v":"00:00:00"},{"$f":"Time!TCM$22","v":"00:00:00"},{"$f":"Time!TCN$22","v":"00:00:00"},{"$f":"Time!TCO$22","v":"00:00:00"},{"$f":"Time!TCP$22","v":"00:00:00"},{"$f":"Time!TCQ$22","v":"00:00:00"},{"$f":"Time!TCR$22","v":"00:00:00"},{"$f":"Time!TCS$22","v":"00:00:00"},{"$f":"Time!TCT$22","v":"00:00:00"},{"$f":"Time!TCU$22","v":"00:00:00"},{"$f":"Time!TCV$22","v":"00:00:00"},{"$f":"Time!TCW$22","v":"00:00:00"},{"$f":"Time!TCX$22","v":"00:00:00"},{"$f":"Time!TCY$22","v":"00:00:00"},{"$f":"Time!TCZ$22","v":"00:00:00"},{"$f":"Time!TDA$22","v":"00:00:00"},{"$f":"Time!TDB$22","v":"00:00:00"},{"$f":"Time!TDC$22","v":"00:00:00"},{"$f":"Time!TDD$22","v":"00:00:00"},{"$f":"Time!TDE$22","v":"00:00:00"},{"$f":"Time!TDF$22","v":"00:00:00"},{"$f":"Time!TDG$22","v":"00:00:00"},{"$f":"Time!TDH$22","v":"00:00:00"},{"$f":"Time!TDI$22","v":"00:00:00"},{"$f":"Time!TDJ$22","v":"00:00:00"},{"$f":"Time!TDK$22","v":"00:00:00"},{"$f":"Time!TDL$22","v":"00:00:00"},{"$f":"Time!TDM$22","v":"00:00:00"},{"$f":"Time!TDN$22","v":"00:00:00"},{"$f":"Time!TDO$22","v":"00:00:00"},{"$f":"Time!TDP$22","v":"00:00:00"},{"$f":"Time!TDQ$22","v":"00:00:00"},{"$f":"Time!TDR$22","v":"00:00:00"},{"$f":"Time!TDS$22","v":"00:00:00"},{"$f":"Time!TDT$22","v":"00:00:00"},{"$f":"Time!TDU$22","v":"00:00:00"},{"$f":"Time!TDV$22","v":"00:00:00"},{"$f":"Time!TDW$22","v":"00:00:00"},{"$f":"Time!TDX$22","v":"00:00:00"},{"$f":"Time!TDY$22","v":"00:00:00"},{"$f":"Time!TDZ$22","v":"00:00:00"},{"$f":"Time!TEA$22","v":"00:00:00"},{"$f":"Time!TEB$22","v":"00:00:00"},{"$f":"Time!TEC$22","v":"00:00:00"},{"$f":"Time!TED$22","v":"00:00:00"},{"$f":"Time!TEE$22","v":"00:00:00"},{"$f":"Time!TEF$22","v":"00:00:00"},{"$f":"Time!TEG$22","v":"00:00:00"},{"$f":"Time!TEH$22","v":"00:00:00"},{"$f":"Time!TEI$22","v":"00:00:00"},{"$f":"Time!TEJ$22","v":"00:00:00"},{"$f":"Time!TEK$22","v":"00:00:00"},{"$f":"Time!TEL$22","v":"00:00:00"},{"$f":"Time!TEM$22","v":"00:00:00"},{"$f":"Time!TEN$22","v":"00:00:00"},{"$f":"Time!TEO$22","v":"00:00:00"},{"$f":"Time!TEP$22","v":"00:00:00"},{"$f":"Time!TEQ$22","v":"00:00:00"},{"$f":"Time!TER$22","v":"00:00:00"},{"$f":"Time!TES$22","v":"00:00:00"},{"$f":"Time!TET$22","v":"00:00:00"},{"$f":"Time!TEU$22","v":"00:00:00"},{"$f":"Time!TEV$22","v":"00:00:00"},{"$f":"Time!TEW$22","v":"00:00:00"},{"$f":"Time!TEX$22","v":"00:00:00"},{"$f":"Time!TEY$22","v":"00:00:00"},{"$f":"Time!TEZ$22","v":"00:00:00"},{"$f":"Time!TFA$22","v":"00:00:00"},{"$f":"Time!TFB$22","v":"00:00:00"},{"$f":"Time!TFC$22","v":"00:00:00"},{"$f":"Time!TFD$22","v":"00:00:00"},{"$f":"Time!TFE$22","v":"00:00:00"},{"$f":"Time!TFF$22","v":"00:00:00"},{"$f":"Time!TFG$22","v":"00:00:00"},{"$f":"Time!TFH$22","v":"00:00:00"},{"$f":"Time!TFI$22","v":"00:00:00"},{"$f":"Time!TFJ$22","v":"00:00:00"},{"$f":"Time!TFK$22","v":"00:00:00"},{"$f":"Time!TFL$22","v":"00:00:00"},{"$f":"Time!TFM$22","v":"00:00:00"},{"$f":"Time!TFN$22","v":"00:00:00"},{"$f":"Time!TFO$22","v":"00:00:00"},{"$f":"Time!TFP$22","v":"00:00:00"},{"$f":"Time!TFQ$22","v":"00:00:00"},{"$f":"Time!TFR$22","v":"00:00:00"},{"$f":"Time!TFS$22","v":"00:00:00"},{"$f":"Time!TFT$22","v":"00:00:00"},{"$f":"Time!TFU$22","v":"00:00:00"},{"$f":"Time!TFV$22","v":"00:00:00"},{"$f":"Time!TFW$22","v":"00:00:00"},{"$f":"Time!TFX$22","v":"00:00:00"},{"$f":"Time!TFY$22","v":"00:00:00"},{"$f":"Time!TFZ$22","v":"00:00:00"},{"$f":"Time!TGA$22","v":"00:00:00"},{"$f":"Time!TGB$22","v":"00:00:00"},{"$f":"Time!TGC$22","v":"00:00:00"},{"$f":"Time!TGD$22","v":"00:00:00"},{"$f":"Time!TGE$22","v":"00:00:00"},{"$f":"Time!TGF$22","v":"00:00:00"},{"$f":"Time!TGG$22","v":"00:00:00"},{"$f":"Time!TGH$22","v":"00:00:00"},{"$f":"Time!TGI$22","v":"00:00:00"},{"$f":"Time!TGJ$22","v":"00:00:00"},{"$f":"Time!TGK$22","v":"00:00:00"},{"$f":"Time!TGL$22","v":"00:00:00"},{"$f":"Time!TGM$22","v":"00:00:00"},{"$f":"Time!TGN$22","v":"00:00:00"},{"$f":"Time!TGO$22","v":"00:00:00"},{"$f":"Time!TGP$22","v":"00:00:00"},{"$f":"Time!TGQ$22","v":"00:00:00"},{"$f":"Time!TGR$22","v":"00:00:00"},{"$f":"Time!TGS$22","v":"00:00:00"},{"$f":"Time!TGT$22","v":"00:00:00"},{"$f":"Time!TGU$22","v":"00:00:00"},{"$f":"Time!TGV$22","v":"00:00:00"},{"$f":"Time!TGW$22","v":"00:00:00"},{"$f":"Time!TGX$22","v":"00:00:00"},{"$f":"Time!TGY$22","v":"00:00:00"},{"$f":"Time!TGZ$22","v":"00:00:00"},{"$f":"Time!THA$22","v":"00:00:00"},{"$f":"Time!THB$22","v":"00:00:00"},{"$f":"Time!THC$22","v":"00:00:00"},{"$f":"Time!THD$22","v":"00:00:00"},{"$f":"Time!THE$22","v":"00:00:00"},{"$f":"Time!THF$22","v":"00:00:00"},{"$f":"Time!THG$22","v":"00:00:00"},{"$f":"Time!THH$22","v":"00:00:00"},{"$f":"Time!THI$22","v":"00:00:00"},{"$f":"Time!THJ$22","v":"00:00:00"},{"$f":"Time!THK$22","v":"00:00:00"},{"$f":"Time!THL$22","v":"00:00:00"},{"$f":"Time!THM$22","v":"00:00:00"},{"$f":"Time!THN$22","v":"00:00:00"},{"$f":"Time!THO$22","v":"00:00:00"},{"$f":"Time!THP$22","v":"00:00:00"},{"$f":"Time!THQ$22","v":"00:00:00"},{"$f":"Time!THR$22","v":"00:00:00"},{"$f":"Time!THS$22","v":"00:00:00"},{"$f":"Time!THT$22","v":"00:00:00"},{"$f":"Time!THU$22","v":"00:00:00"},{"$f":"Time!THV$22","v":"00:00:00"},{"$f":"Time!THW$22","v":"00:00:00"},{"$f":"Time!THX$22","v":"00:00:00"},{"$f":"Time!THY$22","v":"00:00:00"},{"$f":"Time!THZ$22","v":"00:00:00"},{"$f":"Time!TIA$22","v":"00:00:00"},{"$f":"Time!TIB$22","v":"00:00:00"},{"$f":"Time!TIC$22","v":"00:00:00"},{"$f":"Time!TID$22","v":"00:00:00"},{"$f":"Time!TIE$22","v":"00:00:00"},{"$f":"Time!TIF$22","v":"00:00:00"},{"$f":"Time!TIG$22","v":"00:00:00"},{"$f":"Time!TIH$22","v":"00:00:00"},{"$f":"Time!TII$22","v":"00:00:00"},{"$f":"Time!TIJ$22","v":"00:00:00"},{"$f":"Time!TIK$22","v":"00:00:00"},{"$f":"Time!TIL$22","v":"00:00:00"},{"$f":"Time!TIM$22","v":"00:00:00"},{"$f":"Time!TIN$22","v":"00:00:00"},{"$f":"Time!TIO$22","v":"00:00:00"},{"$f":"Time!TIP$22","v":"00:00:00"},{"$f":"Time!TIQ$22","v":"00:00:00"},{"$f":"Time!TIR$22","v":"00:00:00"},{"$f":"Time!TIS$22","v":"00:00:00"},{"$f":"Time!TIT$22","v":"00:00:00"},{"$f":"Time!TIU$22","v":"00:00:00"},{"$f":"Time!TIV$22","v":"00:00:00"},{"$f":"Time!TIW$22","v":"00:00:00"},{"$f":"Time!TIX$22","v":"00:00:00"},{"$f":"Time!TIY$22","v":"00:00:00"},{"$f":"Time!TIZ$22","v":"00:00:00"},{"$f":"Time!TJA$22","v":"00:00:00"},{"$f":"Time!TJB$22","v":"00:00:00"},{"$f":"Time!TJC$22","v":"00:00:00"},{"$f":"Time!TJD$22","v":"00:00:00"},{"$f":"Time!TJE$22","v":"00:00:00"},{"$f":"Time!TJF$22","v":"00:00:00"},{"$f":"Time!TJG$22","v":"00:00:00"},{"$f":"Time!TJH$22","v":"00:00:00"},{"$f":"Time!TJI$22","v":"00:00:00"},{"$f":"Time!TJJ$22","v":"00:00:00"},{"$f":"Time!TJK$22","v":"00:00:00"},{"$f":"Time!TJL$22","v":"00:00:00"},{"$f":"Time!TJM$22","v":"00:00:00"},{"$f":"Time!TJN$22","v":"00:00:00"},{"$f":"Time!TJO$22","v":"00:00:00"},{"$f":"Time!TJP$22","v":"00:00:00"},{"$f":"Time!TJQ$22","v":"00:00:00"},{"$f":"Time!TJR$22","v":"00:00:00"},{"$f":"Time!TJS$22","v":"00:00:00"},{"$f":"Time!TJT$22","v":"00:00:00"},{"$f":"Time!TJU$22","v":"00:00:00"},{"$f":"Time!TJV$22","v":"00:00:00"},{"$f":"Time!TJW$22","v":"00:00:00"},{"$f":"Time!TJX$22","v":"00:00:00"},{"$f":"Time!TJY$22","v":"00:00:00"},{"$f":"Time!TJZ$22","v":"00:00:00"},{"$f":"Time!TKA$22","v":"00:00:00"},{"$f":"Time!TKB$22","v":"00:00:00"},{"$f":"Time!TKC$22","v":"00:00:00"},{"$f":"Time!TKD$22","v":"00:00:00"},{"$f":"Time!TKE$22","v":"00:00:00"},{"$f":"Time!TKF$22","v":"00:00:00"},{"$f":"Time!TKG$22","v":"00:00:00"},{"$f":"Time!TKH$22","v":"00:00:00"},{"$f":"Time!TKI$22","v":"00:00:00"},{"$f":"Time!TKJ$22","v":"00:00:00"},{"$f":"Time!TKK$22","v":"00:00:00"},{"$f":"Time!TKL$22","v":"00:00:00"},{"$f":"Time!TKM$22","v":"00:00:00"},{"$f":"Time!TKN$22","v":"00:00:00"},{"$f":"Time!TKO$22","v":"00:00:00"},{"$f":"Time!TKP$22","v":"00:00:00"},{"$f":"Time!TKQ$22","v":"00:00:00"},{"$f":"Time!TKR$22","v":"00:00:00"},{"$f":"Time!TKS$22","v":"00:00:00"},{"$f":"Time!TKT$22","v":"00:00:00"},{"$f":"Time!TKU$22","v":"00:00:00"},{"$f":"Time!TKV$22","v":"00:00:00"},{"$f":"Time!TKW$22","v":"00:00:00"},{"$f":"Time!TKX$22","v":"00:00:00"},{"$f":"Time!TKY$22","v":"00:00:00"},{"$f":"Time!TKZ$22","v":"00:00:00"},{"$f":"Time!TLA$22","v":"00:00:00"},{"$f":"Time!TLB$22","v":"00:00:00"},{"$f":"Time!TLC$22","v":"00:00:00"},{"$f":"Time!TLD$22","v":"00:00:00"},{"$f":"Time!TLE$22","v":"00:00:00"},{"$f":"Time!TLF$22","v":"00:00:00"},{"$f":"Time!TLG$22","v":"00:00:00"},{"$f":"Time!TLH$22","v":"00:00:00"},{"$f":"Time!TLI$22","v":"00:00:00"},{"$f":"Time!TLJ$22","v":"00:00:00"},{"$f":"Time!TLK$22","v":"00:00:00"},{"$f":"Time!TLL$22","v":"00:00:00"},{"$f":"Time!TLM$22","v":"00:00:00"},{"$f":"Time!TLN$22","v":"00:00:00"},{"$f":"Time!TLO$22","v":"00:00:00"},{"$f":"Time!TLP$22","v":"00:00:00"},{"$f":"Time!TLQ$22","v":"00:00:00"},{"$f":"Time!TLR$22","v":"00:00:00"},{"$f":"Time!TLS$22","v":"00:00:00"},{"$f":"Time!TLT$22","v":"00:00:00"},{"$f":"Time!TLU$22","v":"00:00:00"},{"$f":"Time!TLV$22","v":"00:00:00"},{"$f":"Time!TLW$22","v":"00:00:00"},{"$f":"Time!TLX$22","v":"00:00:00"},{"$f":"Time!TLY$22","v":"00:00:00"},{"$f":"Time!TLZ$22","v":"00:00:00"},{"$f":"Time!TMA$22","v":"00:00:00"},{"$f":"Time!TMB$22","v":"00:00:00"},{"$f":"Time!TMC$22","v":"00:00:00"},{"$f":"Time!TMD$22","v":"00:00:00"},{"$f":"Time!TME$22","v":"00:00:00"},{"$f":"Time!TMF$22","v":"00:00:00"},{"$f":"Time!TMG$22","v":"00:00:00"},{"$f":"Time!TMH$22","v":"00:00:00"},{"$f":"Time!TMI$22","v":"00:00:00"},{"$f":"Time!TMJ$22","v":"00:00:00"},{"$f":"Time!TMK$22","v":"00:00:00"},{"$f":"Time!TML$22","v":"00:00:00"},{"$f":"Time!TMM$22","v":"00:00:00"},{"$f":"Time!TMN$22","v":"00:00:00"},{"$f":"Time!TMO$22","v":"00:00:00"},{"$f":"Time!TMP$22","v":"00:00:00"},{"$f":"Time!TMQ$22","v":"00:00:00"},{"$f":"Time!TMR$22","v":"00:00:00"},{"$f":"Time!TMS$22","v":"00:00:00"},{"$f":"Time!TMT$22","v":"00:00:00"},{"$f":"Time!TMU$22","v":"00:00:00"},{"$f":"Time!TMV$22","v":"00:00:00"},{"$f":"Time!TMW$22","v":"00:00:00"},{"$f":"Time!TMX$22","v":"00:00:00"},{"$f":"Time!TMY$22","v":"00:00:00"},{"$f":"Time!TMZ$22","v":"00:00:00"},{"$f":"Time!TNA$22","v":"00:00:00"},{"$f":"Time!TNB$22","v":"00:00:00"},{"$f":"Time!TNC$22","v":"00:00:00"},{"$f":"Time!TND$22","v":"00:00:00"},{"$f":"Time!TNE$22","v":"00:00:00"},{"$f":"Time!TNF$22","v":"00:00:00"},{"$f":"Time!TNG$22","v":"00:00:00"},{"$f":"Time!TNH$22","v":"00:00:00"},{"$f":"Time!TNI$22","v":"00:00:00"},{"$f":"Time!TNJ$22","v":"00:00:00"},{"$f":"Time!TNK$22","v":"00:00:00"},{"$f":"Time!TNL$22","v":"00:00:00"},{"$f":"Time!TNM$22","v":"00:00:00"},{"$f":"Time!TNN$22","v":"00:00:00"},{"$f":"Time!TNO$22","v":"00:00:00"},{"$f":"Time!TNP$22","v":"00:00:00"},{"$f":"Time!TNQ$22","v":"00:00:00"},{"$f":"Time!TNR$22","v":"00:00:00"},{"$f":"Time!TNS$22","v":"00:00:00"},{"$f":"Time!TNT$22","v":"00:00:00"},{"$f":"Time!TNU$22","v":"00:00:00"},{"$f":"Time!TNV$22","v":"00:00:00"},{"$f":"Time!TNW$22","v":"00:00:00"},{"$f":"Time!TNX$22","v":"00:00:00"},{"$f":"Time!TNY$22","v":"00:00:00"},{"$f":"Time!TNZ$22","v":"00:00:00"},{"$f":"Time!TOA$22","v":"00:00:00"},{"$f":"Time!TOB$22","v":"00:00:00"},{"$f":"Time!TOC$22","v":"00:00:00"},{"$f":"Time!TOD$22","v":"00:00:00"},{"$f":"Time!TOE$22","v":"00:00:00"},{"$f":"Time!TOF$22","v":"00:00:00"},{"$f":"Time!TOG$22","v":"00:00:00"},{"$f":"Time!TOH$22","v":"00:00:00"},{"$f":"Time!TOI$22","v":"00:00:00"},{"$f":"Time!TOJ$22","v":"00:00:00"},{"$f":"Time!TOK$22","v":"00:00:00"},{"$f":"Time!TOL$22","v":"00:00:00"},{"$f":"Time!TOM$22","v":"00:00:00"},{"$f":"Time!TON$22","v":"00:00:00"},{"$f":"Time!TOO$22","v":"00:00:00"},{"$f":"Time!TOP$22","v":"00:00:00"},{"$f":"Time!TOQ$22","v":"00:00:00"},{"$f":"Time!TOR$22","v":"00:00:00"},{"$f":"Time!TOS$22","v":"00:00:00"},{"$f":"Time!TOT$22","v":"00:00:00"},{"$f":"Time!TOU$22","v":"00:00:00"},{"$f":"Time!TOV$22","v":"00:00:00"},{"$f":"Time!TOW$22","v":"00:00:00"},{"$f":"Time!TOX$22","v":"00:00:00"},{"$f":"Time!TOY$22","v":"00:00:00"},{"$f":"Time!TOZ$22","v":"00:00:00"},{"$f":"Time!TPA$22","v":"00:00:00"},{"$f":"Time!TPB$22","v":"00:00:00"},{"$f":"Time!TPC$22","v":"00:00:00"},{"$f":"Time!TPD$22","v":"00:00:00"},{"$f":"Time!TPE$22","v":"00:00:00"},{"$f":"Time!TPF$22","v":"00:00:00"},{"$f":"Time!TPG$22","v":"00:00:00"},{"$f":"Time!TPH$22","v":"00:00:00"},{"$f":"Time!TPI$22","v":"00:00:00"},{"$f":"Time!TPJ$22","v":"00:00:00"},{"$f":"Time!TPK$22","v":"00:00:00"},{"$f":"Time!TPL$22","v":"00:00:00"},{"$f":"Time!TPM$22","v":"00:00:00"},{"$f":"Time!TPN$22","v":"00:00:00"},{"$f":"Time!TPO$22","v":"00:00:00"},{"$f":"Time!TPP$22","v":"00:00:00"},{"$f":"Time!TPQ$22","v":"00:00:00"},{"$f":"Time!TPR$22","v":"00:00:00"},{"$f":"Time!TPS$22","v":"00:00:00"},{"$f":"Time!TPT$22","v":"00:00:00"},{"$f":"Time!TPU$22","v":"00:00:00"},{"$f":"Time!TPV$22","v":"00:00:00"},{"$f":"Time!TPW$22","v":"00:00:00"},{"$f":"Time!TPX$22","v":"00:00:00"},{"$f":"Time!TPY$22","v":"00:00:00"},{"$f":"Time!TPZ$22","v":"00:00:00"},{"$f":"Time!TQA$22","v":"00:00:00"},{"$f":"Time!TQB$22","v":"00:00:00"},{"$f":"Time!TQC$22","v":"00:00:00"},{"$f":"Time!TQD$22","v":"00:00:00"},{"$f":"Time!TQE$22","v":"00:00:00"},{"$f":"Time!TQF$22","v":"00:00:00"},{"$f":"Time!TQG$22","v":"00:00:00"},{"$f":"Time!TQH$22","v":"00:00:00"},{"$f":"Time!TQI$22","v":"00:00:00"},{"$f":"Time!TQJ$22","v":"00:00:00"},{"$f":"Time!TQK$22","v":"00:00:00"},{"$f":"Time!TQL$22","v":"00:00:00"},{"$f":"Time!TQM$22","v":"00:00:00"},{"$f":"Time!TQN$22","v":"00:00:00"},{"$f":"Time!TQO$22","v":"00:00:00"},{"$f":"Time!TQP$22","v":"00:00:00"},{"$f":"Time!TQQ$22","v":"00:00:00"},{"$f":"Time!TQR$22","v":"00:00:00"},{"$f":"Time!TQS$22","v":"00:00:00"},{"$f":"Time!TQT$22","v":"00:00:00"},{"$f":"Time!TQU$22","v":"00:00:00"},{"$f":"Time!TQV$22","v":"00:00:00"},{"$f":"Time!TQW$22","v":"00:00:00"},{"$f":"Time!TQX$22","v":"00:00:00"},{"$f":"Time!TQY$22","v":"00:00:00"},{"$f":"Time!TQZ$22","v":"00:00:00"},{"$f":"Time!TRA$22","v":"00:00:00"},{"$f":"Time!TRB$22","v":"00:00:00"},{"$f":"Time!TRC$22","v":"00:00:00"},{"$f":"Time!TRD$22","v":"00:00:00"},{"$f":"Time!TRE$22","v":"00:00:00"},{"$f":"Time!TRF$22","v":"00:00:00"},{"$f":"Time!TRG$22","v":"00:00:00"},{"$f":"Time!TRH$22","v":"00:00:00"},{"$f":"Time!TRI$22","v":"00:00:00"},{"$f":"Time!TRJ$22","v":"00:00:00"},{"$f":"Time!TRK$22","v":"00:00:00"},{"$f":"Time!TRL$22","v":"00:00:00"},{"$f":"Time!TRM$22","v":"00:00:00"},{"$f":"Time!TRN$22","v":"00:00:00"},{"$f":"Time!TRO$22","v":"00:00:00"},{"$f":"Time!TRP$22","v":"00:00:00"},{"$f":"Time!TRQ$22","v":"00:00:00"},{"$f":"Time!TRR$22","v":"00:00:00"},{"$f":"Time!TRS$22","v":"00:00:00"},{"$f":"Time!TRT$22","v":"00:00:00"},{"$f":"Time!TRU$22","v":"00:00:00"},{"$f":"Time!TRV$22","v":"00:00:00"},{"$f":"Time!TRW$22","v":"00:00:00"},{"$f":"Time!TRX$22","v":"00:00:00"},{"$f":"Time!TRY$22","v":"00:00:00"},{"$f":"Time!TRZ$22","v":"00:00:00"},{"$f":"Time!TSA$22","v":"00:00:00"},{"$f":"Time!TSB$22","v":"00:00:00"},{"$f":"Time!TSC$22","v":"00:00:00"},{"$f":"Time!TSD$22","v":"00:00:00"},{"$f":"Time!TSE$22","v":"00:00:00"},{"$f":"Time!TSF$22","v":"00:00:00"},{"$f":"Time!TSG$22","v":"00:00:00"},{"$f":"Time!TSH$22","v":"00:00:00"},{"$f":"Time!TSI$22","v":"00:00:00"},{"$f":"Time!TSJ$22","v":"00:00:00"},{"$f":"Time!TSK$22","v":"00:00:00"},{"$f":"Time!TSL$22","v":"00:00:00"},{"$f":"Time!TSM$22","v":"00:00:00"},{"$f":"Time!TSN$22","v":"00:00:00"},{"$f":"Time!TSO$22","v":"00:00:00"},{"$f":"Time!TSP$22","v":"00:00:00"},{"$f":"Time!TSQ$22","v":"00:00:00"},{"$f":"Time!TSR$22","v":"00:00:00"},{"$f":"Time!TSS$22","v":"00:00:00"},{"$f":"Time!TST$22","v":"00:00:00"},{"$f":"Time!TSU$22","v":"00:00:00"},{"$f":"Time!TSV$22","v":"00:00:00"},{"$f":"Time!TSW$22","v":"00:00:00"},{"$f":"Time!TSX$22","v":"00:00:00"},{"$f":"Time!TSY$22","v":"00:00:00"},{"$f":"Time!TSZ$22","v":"00:00:00"},{"$f":"Time!TTA$22","v":"00:00:00"},{"$f":"Time!TTB$22","v":"00:00:00"},{"$f":"Time!TTC$22","v":"00:00:00"},{"$f":"Time!TTD$22","v":"00:00:00"},{"$f":"Time!TTE$22","v":"00:00:00"},{"$f":"Time!TTF$22","v":"00:00:00"},{"$f":"Time!TTG$22","v":"00:00:00"},{"$f":"Time!TTH$22","v":"00:00:00"},{"$f":"Time!TTI$22","v":"00:00:00"},{"$f":"Time!TTJ$22","v":"00:00:00"},{"$f":"Time!TTK$22","v":"00:00:00"},{"$f":"Time!TTL$22","v":"00:00:00"},{"$f":"Time!TTM$22","v":"00:00:00"},{"$f":"Time!TTN$22","v":"00:00:00"},{"$f":"Time!TTO$22","v":"00:00:00"},{"$f":"Time!TTP$22","v":"00:00:00"},{"$f":"Time!TTQ$22","v":"00:00:00"},{"$f":"Time!TTR$22","v":"00:00:00"},{"$f":"Time!TTS$22","v":"00:00:00"},{"$f":"Time!TTT$22","v":"00:00:00"},{"$f":"Time!TTU$22","v":"00:00:00"},{"$f":"Time!TTV$22","v":"00:00:00"},{"$f":"Time!TTW$22","v":"00:00:00"},{"$f":"Time!TTX$22","v":"00:00:00"},{"$f":"Time!TTY$22","v":"00:00:00"},{"$f":"Time!TTZ$22","v":"00:00:00"},{"$f":"Time!TUA$22","v":"00:00:00"},{"$f":"Time!TUB$22","v":"00:00:00"},{"$f":"Time!TUC$22","v":"00:00:00"},{"$f":"Time!TUD$22","v":"00:00:00"},{"$f":"Time!TUE$22","v":"00:00:00"},{"$f":"Time!TUF$22","v":"00:00:00"},{"$f":"Time!TUG$22","v":"00:00:00"},{"$f":"Time!TUH$22","v":"00:00:00"},{"$f":"Time!TUI$22","v":"00:00:00"},{"$f":"Time!TUJ$22","v":"00:00:00"},{"$f":"Time!TUK$22","v":"00:00:00"},{"$f":"Time!TUL$22","v":"00:00:00"},{"$f":"Time!TUM$22","v":"00:00:00"},{"$f":"Time!TUN$22","v":"00:00:00"},{"$f":"Time!TUO$22","v":"00:00:00"},{"$f":"Time!TUP$22","v":"00:00:00"},{"$f":"Time!TUQ$22","v":"00:00:00"},{"$f":"Time!TUR$22","v":"00:00:00"},{"$f":"Time!TUS$22","v":"00:00:00"},{"$f":"Time!TUT$22","v":"00:00:00"},{"$f":"Time!TUU$22","v":"00:00:00"},{"$f":"Time!TUV$22","v":"00:00:00"},{"$f":"Time!TUW$22","v":"00:00:00"},{"$f":"Time!TUX$22","v":"00:00:00"},{"$f":"Time!TUY$22","v":"00:00:00"},{"$f":"Time!TUZ$22","v":"00:00:00"},{"$f":"Time!TVA$22","v":"00:00:00"},{"$f":"Time!TVB$22","v":"00:00:00"},{"$f":"Time!TVC$22","v":"00:00:00"},{"$f":"Time!TVD$22","v":"00:00:00"},{"$f":"Time!TVE$22","v":"00:00:00"},{"$f":"Time!TVF$22","v":"00:00:00"},{"$f":"Time!TVG$22","v":"00:00:00"},{"$f":"Time!TVH$22","v":"00:00:00"},{"$f":"Time!TVI$22","v":"00:00:00"},{"$f":"Time!TVJ$22","v":"00:00:00"},{"$f":"Time!TVK$22","v":"00:00:00"},{"$f":"Time!TVL$22","v":"00:00:00"},{"$f":"Time!TVM$22","v":"00:00:00"},{"$f":"Time!TVN$22","v":"00:00:00"},{"$f":"Time!TVO$22","v":"00:00:00"},{"$f":"Time!TVP$22","v":"00:00:00"},{"$f":"Time!TVQ$22","v":"00:00:00"},{"$f":"Time!TVR$22","v":"00:00:00"},{"$f":"Time!TVS$22","v":"00:00:00"},{"$f":"Time!TVT$22","v":"00:00:00"},{"$f":"Time!TVU$22","v":"00:00:00"},{"$f":"Time!TVV$22","v":"00:00:00"},{"$f":"Time!TVW$22","v":"00:00:00"},{"$f":"Time!TVX$22","v":"00:00:00"},{"$f":"Time!TVY$22","v":"00:00:00"},{"$f":"Time!TVZ$22","v":"00:00:00"},{"$f":"Time!TWA$22","v":"00:00:00"},{"$f":"Time!TWB$22","v":"00:00:00"},{"$f":"Time!TWC$22","v":"00:00:00"},{"$f":"Time!TWD$22","v":"00:00:00"},{"$f":"Time!TWE$22","v":"00:00:00"},{"$f":"Time!TWF$22","v":"00:00:00"},{"$f":"Time!TWG$22","v":"00:00:00"},{"$f":"Time!TWH$22","v":"00:00:00"},{"$f":"Time!TWI$22","v":"00:00:00"},{"$f":"Time!TWJ$22","v":"00:00:00"},{"$f":"Time!TWK$22","v":"00:00:00"},{"$f":"Time!TWL$22","v":"00:00:00"},{"$f":"Time!TWM$22","v":"00:00:00"},{"$f":"Time!TWN$22","v":"00:00:00"},{"$f":"Time!TWO$22","v":"00:00:00"},{"$f":"Time!TWP$22","v":"00:00:00"},{"$f":"Time!TWQ$22","v":"00:00:00"},{"$f":"Time!TWR$22","v":"00:00:00"},{"$f":"Time!TWS$22","v":"00:00:00"},{"$f":"Time!TWT$22","v":"00:00:00"},{"$f":"Time!TWU$22","v":"00:00:00"},{"$f":"Time!TWV$22","v":"00:00:00"},{"$f":"Time!TWW$22","v":"00:00:00"},{"$f":"Time!TWX$22","v":"00:00:00"},{"$f":"Time!TWY$22","v":"00:00:00"},{"$f":"Time!TWZ$22","v":"00:00:00"},{"$f":"Time!TXA$22","v":"00:00:00"},{"$f":"Time!TXB$22","v":"00:00:00"},{"$f":"Time!TXC$22","v":"00:00:00"},{"$f":"Time!TXD$22","v":"00:00:00"},{"$f":"Time!TXE$22","v":"00:00:00"},{"$f":"Time!TXF$22","v":"00:00:00"},{"$f":"Time!TXG$22","v":"00:00:00"},{"$f":"Time!TXH$22","v":"00:00:00"},{"$f":"Time!TXI$22","v":"00:00:00"},{"$f":"Time!TXJ$22","v":"00:00:00"},{"$f":"Time!TXK$22","v":"00:00:00"},{"$f":"Time!TXL$22","v":"00:00:00"},{"$f":"Time!TXM$22","v":"00:00:00"},{"$f":"Time!TXN$22","v":"00:00:00"},{"$f":"Time!TXO$22","v":"00:00:00"},{"$f":"Time!TXP$22","v":"00:00:00"},{"$f":"Time!TXQ$22","v":"00:00:00"},{"$f":"Time!TXR$22","v":"00:00:00"},{"$f":"Time!TXS$22","v":"00:00:00"},{"$f":"Time!TXT$22","v":"00:00:00"},{"$f":"Time!TXU$22","v":"00:00:00"},{"$f":"Time!TXV$22","v":"00:00:00"},{"$f":"Time!TXW$22","v":"00:00:00"},{"$f":"Time!TXX$22","v":"00:00:00"},{"$f":"Time!TXY$22","v":"00:00:00"},{"$f":"Time!TXZ$22","v":"00:00:00"},{"$f":"Time!TYA$22","v":"00:00:00"},{"$f":"Time!TYB$22","v":"00:00:00"},{"$f":"Time!TYC$22","v":"00:00:00"},{"$f":"Time!TYD$22","v":"00:00:00"},{"$f":"Time!TYE$22","v":"00:00:00"},{"$f":"Time!TYF$22","v":"00:00:00"},{"$f":"Time!TYG$22","v":"00:00:00"},{"$f":"Time!TYH$22","v":"00:00:00"},{"$f":"Time!TYI$22","v":"00:00:00"},{"$f":"Time!TYJ$22","v":"00:00:00"},{"$f":"Time!TYK$22","v":"00:00:00"},{"$f":"Time!TYL$22","v":"00:00:00"},{"$f":"Time!TYM$22","v":"00:00:00"},{"$f":"Time!TYN$22","v":"00:00:00"},{"$f":"Time!TYO$22","v":"00:00:00"},{"$f":"Time!TYP$22","v":"00:00:00"},{"$f":"Time!TYQ$22","v":"00:00:00"},{"$f":"Time!TYR$22","v":"00:00:00"},{"$f":"Time!TYS$22","v":"00:00:00"},{"$f":"Time!TYT$22","v":"00:00:00"},{"$f":"Time!TYU$22","v":"00:00:00"},{"$f":"Time!TYV$22","v":"00:00:00"},{"$f":"Time!TYW$22","v":"00:00:00"},{"$f":"Time!TYX$22","v":"00:00:00"},{"$f":"Time!TYY$22","v":"00:00:00"},{"$f":"Time!TYZ$22","v":"00:00:00"},{"$f":"Time!TZA$22","v":"00:00:00"},{"$f":"Time!TZB$22","v":"00:00:00"},{"$f":"Time!TZC$22","v":"00:00:00"},{"$f":"Time!TZD$22","v":"00:00:00"},{"$f":"Time!TZE$22","v":"00:00:00"},{"$f":"Time!TZF$22","v":"00:00:00"},{"$f":"Time!TZG$22","v":"00:00:00"},{"$f":"Time!TZH$22","v":"00:00:00"},{"$f":"Time!TZI$22","v":"00:00:00"},{"$f":"Time!TZJ$22","v":"00:00:00"},{"$f":"Time!TZK$22","v":"00:00:00"},{"$f":"Time!TZL$22","v":"00:00:00"},{"$f":"Time!TZM$22","v":"00:00:00"},{"$f":"Time!TZN$22","v":"00:00:00"},{"$f":"Time!TZO$22","v":"00:00:00"},{"$f":"Time!TZP$22","v":"00:00:00"},{"$f":"Time!TZQ$22","v":"00:00:00"},{"$f":"Time!TZR$22","v":"00:00:00"},{"$f":"Time!TZS$22","v":"00:00:00"},{"$f":"Time!TZT$22","v":"00:00:00"},{"$f":"Time!TZU$22","v":"00:00:00"},{"$f":"Time!TZV$22","v":"00:00:00"},{"$f":"Time!TZW$22","v":"00:00:00"},{"$f":"Time!TZX$22","v":"00:00:00"},{"$f":"Time!TZY$22","v":"00:00:00"},{"$f":"Time!TZZ$22","v":"00:00:00"},{"$f":"Time!UAA$22","v":"00:00:00"},{"$f":"Time!UAB$22","v":"00:00:00"},{"$f":"Time!UAC$22","v":"00:00:00"},{"$f":"Time!UAD$22","v":"00:00:00"},{"$f":"Time!UAE$22","v":"00:00:00"},{"$f":"Time!UAF$22","v":"00:00:00"},{"$f":"Time!UAG$22","v":"00:00:00"},{"$f":"Time!UAH$22","v":"00:00:00"},{"$f":"Time!UAI$22","v":"00:00:00"},{"$f":"Time!UAJ$22","v":"00:00:00"},{"$f":"Time!UAK$22","v":"00:00:00"},{"$f":"Time!UAL$22","v":"00:00:00"},{"$f":"Time!UAM$22","v":"00:00:00"},{"$f":"Time!UAN$22","v":"00:00:00"},{"$f":"Time!UAO$22","v":"00:00:00"},{"$f":"Time!UAP$22","v":"00:00:00"},{"$f":"Time!UAQ$22","v":"00:00:00"},{"$f":"Time!UAR$22","v":"00:00:00"},{"$f":"Time!UAS$22","v":"00:00:00"},{"$f":"Time!UAT$22","v":"00:00:00"},{"$f":"Time!UAU$22","v":"00:00:00"},{"$f":"Time!UAV$22","v":"00:00:00"},{"$f":"Time!UAW$22","v":"00:00:00"},{"$f":"Time!UAX$22","v":"00:00:00"},{"$f":"Time!UAY$22","v":"00:00:00"},{"$f":"Time!UAZ$22","v":"00:00:00"},{"$f":"Time!UBA$22","v":"00:00:00"},{"$f":"Time!UBB$22","v":"00:00:00"},{"$f":"Time!UBC$22","v":"00:00:00"},{"$f":"Time!UBD$22","v":"00:00:00"},{"$f":"Time!UBE$22","v":"00:00:00"},{"$f":"Time!UBF$22","v":"00:00:00"},{"$f":"Time!UBG$22","v":"00:00:00"},{"$f":"Time!UBH$22","v":"00:00:00"},{"$f":"Time!UBI$22","v":"00:00:00"},{"$f":"Time!UBJ$22","v":"00:00:00"},{"$f":"Time!UBK$22","v":"00:00:00"},{"$f":"Time!UBL$22","v":"00:00:00"},{"$f":"Time!UBM$22","v":"00:00:00"},{"$f":"Time!UBN$22","v":"00:00:00"},{"$f":"Time!UBO$22","v":"00:00:00"},{"$f":"Time!UBP$22","v":"00:00:00"},{"$f":"Time!UBQ$22","v":"00:00:00"},{"$f":"Time!UBR$22","v":"00:00:00"},{"$f":"Time!UBS$22","v":"00:00:00"},{"$f":"Time!UBT$22","v":"00:00:00"},{"$f":"Time!UBU$22","v":"00:00:00"},{"$f":"Time!UBV$22","v":"00:00:00"},{"$f":"Time!UBW$22","v":"00:00:00"},{"$f":"Time!UBX$22","v":"00:00:00"},{"$f":"Time!UBY$22","v":"00:00:00"},{"$f":"Time!UBZ$22","v":"00:00:00"},{"$f":"Time!UCA$22","v":"00:00:00"},{"$f":"Time!UCB$22","v":"00:00:00"},{"$f":"Time!UCC$22","v":"00:00:00"},{"$f":"Time!UCD$22","v":"00:00:00"},{"$f":"Time!UCE$22","v":"00:00:00"},{"$f":"Time!UCF$22","v":"00:00:00"},{"$f":"Time!UCG$22","v":"00:00:00"},{"$f":"Time!UCH$22","v":"00:00:00"},{"$f":"Time!UCI$22","v":"00:00:00"},{"$f":"Time!UCJ$22","v":"00:00:00"},{"$f":"Time!UCK$22","v":"00:00:00"},{"$f":"Time!UCL$22","v":"00:00:00"},{"$f":"Time!UCM$22","v":"00:00:00"},{"$f":"Time!UCN$22","v":"00:00:00"},{"$f":"Time!UCO$22","v":"00:00:00"},{"$f":"Time!UCP$22","v":"00:00:00"},{"$f":"Time!UCQ$22","v":"00:00:00"},{"$f":"Time!UCR$22","v":"00:00:00"},{"$f":"Time!UCS$22","v":"00:00:00"},{"$f":"Time!UCT$22","v":"00:00:00"},{"$f":"Time!UCU$22","v":"00:00:00"},{"$f":"Time!UCV$22","v":"00:00:00"},{"$f":"Time!UCW$22","v":"00:00:00"},{"$f":"Time!UCX$22","v":"00:00:00"},{"$f":"Time!UCY$22","v":"00:00:00"},{"$f":"Time!UCZ$22","v":"00:00:00"},{"$f":"Time!UDA$22","v":"00:00:00"},{"$f":"Time!UDB$22","v":"00:00:00"},{"$f":"Time!UDC$22","v":"00:00:00"},{"$f":"Time!UDD$22","v":"00:00:00"},{"$f":"Time!UDE$22","v":"00:00:00"},{"$f":"Time!UDF$22","v":"00:00:00"},{"$f":"Time!UDG$22","v":"00:00:00"},{"$f":"Time!UDH$22","v":"00:00:00"},{"$f":"Time!UDI$22","v":"00:00:00"},{"$f":"Time!UDJ$22","v":"00:00:00"},{"$f":"Time!UDK$22","v":"00:00:00"},{"$f":"Time!UDL$22","v":"00:00:00"},{"$f":"Time!UDM$22","v":"00:00:00"},{"$f":"Time!UDN$22","v":"00:00:00"},{"$f":"Time!UDO$22","v":"00:00:00"},{"$f":"Time!UDP$22","v":"00:00:00"},{"$f":"Time!UDQ$22","v":"00:00:00"},{"$f":"Time!UDR$22","v":"00:00:00"},{"$f":"Time!UDS$22","v":"00:00:00"},{"$f":"Time!UDT$22","v":"00:00:00"},{"$f":"Time!UDU$22","v":"00:00:00"},{"$f":"Time!UDV$22","v":"00:00:00"},{"$f":"Time!UDW$22","v":"00:00:00"},{"$f":"Time!UDX$22","v":"00:00:00"},{"$f":"Time!UDY$22","v":"00:00:00"},{"$f":"Time!UDZ$22","v":"00:00:00"},{"$f":"Time!UEA$22","v":"00:00:00"},{"$f":"Time!UEB$22","v":"00:00:00"},{"$f":"Time!UEC$22","v":"00:00:00"},{"$f":"Time!UED$22","v":"00:00:00"},{"$f":"Time!UEE$22","v":"00:00:00"},{"$f":"Time!UEF$22","v":"00:00:00"},{"$f":"Time!UEG$22","v":"00:00:00"},{"$f":"Time!UEH$22","v":"00:00:00"},{"$f":"Time!UEI$22","v":"00:00:00"},{"$f":"Time!UEJ$22","v":"00:00:00"},{"$f":"Time!UEK$22","v":"00:00:00"},{"$f":"Time!UEL$22","v":"00:00:00"},{"$f":"Time!UEM$22","v":"00:00:00"},{"$f":"Time!UEN$22","v":"00:00:00"},{"$f":"Time!UEO$22","v":"00:00:00"},{"$f":"Time!UEP$22","v":"00:00:00"},{"$f":"Time!UEQ$22","v":"00:00:00"},{"$f":"Time!UER$22","v":"00:00:00"},{"$f":"Time!UES$22","v":"00:00:00"},{"$f":"Time!UET$22","v":"00:00:00"},{"$f":"Time!UEU$22","v":"00:00:00"},{"$f":"Time!UEV$22","v":"00:00:00"},{"$f":"Time!UEW$22","v":"00:00:00"},{"$f":"Time!UEX$22","v":"00:00:00"},{"$f":"Time!UEY$22","v":"00:00:00"},{"$f":"Time!UEZ$22","v":"00:00:00"},{"$f":"Time!UFA$22","v":"00:00:00"},{"$f":"Time!UFB$22","v":"00:00:00"},{"$f":"Time!UFC$22","v":"00:00:00"},{"$f":"Time!UFD$22","v":"00:00:00"},{"$f":"Time!UFE$22","v":"00:00:00"},{"$f":"Time!UFF$22","v":"00:00:00"},{"$f":"Time!UFG$22","v":"00:00:00"},{"$f":"Time!UFH$22","v":"00:00:00"},{"$f":"Time!UFI$22","v":"00:00:00"},{"$f":"Time!UFJ$22","v":"00:00:00"},{"$f":"Time!UFK$22","v":"00:00:00"},{"$f":"Time!UFL$22","v":"00:00:00"},{"$f":"Time!UFM$22","v":"00:00:00"},{"$f":"Time!UFN$22","v":"00:00:00"},{"$f":"Time!UFO$22","v":"00:00:00"},{"$f":"Time!UFP$22","v":"00:00:00"},{"$f":"Time!UFQ$22","v":"00:00:00"},{"$f":"Time!UFR$22","v":"00:00:00"},{"$f":"Time!UFS$22","v":"00:00:00"},{"$f":"Time!UFT$22","v":"00:00:00"},{"$f":"Time!UFU$22","v":"00:00:00"},{"$f":"Time!UFV$22","v":"00:00:00"},{"$f":"Time!UFW$22","v":"00:00:00"},{"$f":"Time!UFX$22","v":"00:00:00"},{"$f":"Time!UFY$22","v":"00:00:00"},{"$f":"Time!UFZ$22","v":"00:00:00"},{"$f":"Time!UGA$22","v":"00:00:00"},{"$f":"Time!UGB$22","v":"00:00:00"},{"$f":"Time!UGC$22","v":"00:00:00"},{"$f":"Time!UGD$22","v":"00:00:00"},{"$f":"Time!UGE$22","v":"00:00:00"},{"$f":"Time!UGF$22","v":"00:00:00"},{"$f":"Time!UGG$22","v":"00:00:00"},{"$f":"Time!UGH$22","v":"00:00:00"},{"$f":"Time!UGI$22","v":"00:00:00"},{"$f":"Time!UGJ$22","v":"00:00:00"},{"$f":"Time!UGK$22","v":"00:00:00"},{"$f":"Time!UGL$22","v":"00:00:00"},{"$f":"Time!UGM$22","v":"00:00:00"},{"$f":"Time!UGN$22","v":"00:00:00"},{"$f":"Time!UGO$22","v":"00:00:00"},{"$f":"Time!UGP$22","v":"00:00:00"},{"$f":"Time!UGQ$22","v":"00:00:00"},{"$f":"Time!UGR$22","v":"00:00:00"},{"$f":"Time!UGS$22","v":"00:00:00"},{"$f":"Time!UGT$22","v":"00:00:00"},{"$f":"Time!UGU$22","v":"00:00:00"},{"$f":"Time!UGV$22","v":"00:00:00"},{"$f":"Time!UGW$22","v":"00:00:00"},{"$f":"Time!UGX$22","v":"00:00:00"},{"$f":"Time!UGY$22","v":"00:00:00"},{"$f":"Time!UGZ$22","v":"00:00:00"},{"$f":"Time!UHA$22","v":"00:00:00"},{"$f":"Time!UHB$22","v":"00:00:00"},{"$f":"Time!UHC$22","v":"00:00:00"},{"$f":"Time!UHD$22","v":"00:00:00"},{"$f":"Time!UHE$22","v":"00:00:00"},{"$f":"Time!UHF$22","v":"00:00:00"},{"$f":"Time!UHG$22","v":"00:00:00"},{"$f":"Time!UHH$22","v":"00:00:00"},{"$f":"Time!UHI$22","v":"00:00:00"},{"$f":"Time!UHJ$22","v":"00:00:00"},{"$f":"Time!UHK$22","v":"00:00:00"},{"$f":"Time!UHL$22","v":"00:00:00"},{"$f":"Time!UHM$22","v":"00:00:00"},{"$f":"Time!UHN$22","v":"00:00:00"},{"$f":"Time!UHO$22","v":"00:00:00"},{"$f":"Time!UHP$22","v":"00:00:00"},{"$f":"Time!UHQ$22","v":"00:00:00"},{"$f":"Time!UHR$22","v":"00:00:00"},{"$f":"Time!UHS$22","v":"00:00:00"},{"$f":"Time!UHT$22","v":"00:00:00"},{"$f":"Time!UHU$22","v":"00:00:00"},{"$f":"Time!UHV$22","v":"00:00:00"},{"$f":"Time!UHW$22","v":"00:00:00"},{"$f":"Time!UHX$22","v":"00:00:00"},{"$f":"Time!UHY$22","v":"00:00:00"},{"$f":"Time!UHZ$22","v":"00:00:00"},{"$f":"Time!UIA$22","v":"00:00:00"},{"$f":"Time!UIB$22","v":"00:00:00"},{"$f":"Time!UIC$22","v":"00:00:00"},{"$f":"Time!UID$22","v":"00:00:00"},{"$f":"Time!UIE$22","v":"00:00:00"},{"$f":"Time!UIF$22","v":"00:00:00"},{"$f":"Time!UIG$22","v":"00:00:00"},{"$f":"Time!UIH$22","v":"00:00:00"},{"$f":"Time!UII$22","v":"00:00:00"},{"$f":"Time!UIJ$22","v":"00:00:00"},{"$f":"Time!UIK$22","v":"00:00:00"},{"$f":"Time!UIL$22","v":"00:00:00"},{"$f":"Time!UIM$22","v":"00:00:00"},{"$f":"Time!UIN$22","v":"00:00:00"},{"$f":"Time!UIO$22","v":"00:00:00"},{"$f":"Time!UIP$22","v":"00:00:00"},{"$f":"Time!UIQ$22","v":"00:00:00"},{"$f":"Time!UIR$22","v":"00:00:00"},{"$f":"Time!UIS$22","v":"00:00:00"},{"$f":"Time!UIT$22","v":"00:00:00"},{"$f":"Time!UIU$22","v":"00:00:00"},{"$f":"Time!UIV$22","v":"00:00:00"},{"$f":"Time!UIW$22","v":"00:00:00"},{"$f":"Time!UIX$22","v":"00:00:00"},{"$f":"Time!UIY$22","v":"00:00:00"},{"$f":"Time!UIZ$22","v":"00:00:00"},{"$f":"Time!UJA$22","v":"00:00:00"},{"$f":"Time!UJB$22","v":"00:00:00"},{"$f":"Time!UJC$22","v":"00:00:00"},{"$f":"Time!UJD$22","v":"00:00:00"},{"$f":"Time!UJE$22","v":"00:00:00"},{"$f":"Time!UJF$22","v":"00:00:00"},{"$f":"Time!UJG$22","v":"00:00:00"},{"$f":"Time!UJH$22","v":"00:00:00"},{"$f":"Time!UJI$22","v":"00:00:00"},{"$f":"Time!UJJ$22","v":"00:00:00"},{"$f":"Time!UJK$22","v":"00:00:00"},{"$f":"Time!UJL$22","v":"00:00:00"},{"$f":"Time!UJM$22","v":"00:00:00"},{"$f":"Time!UJN$22","v":"00:00:00"},{"$f":"Time!UJO$22","v":"00:00:00"},{"$f":"Time!UJP$22","v":"00:00:00"},{"$f":"Time!UJQ$22","v":"00:00:00"},{"$f":"Time!UJR$22","v":"00:00:00"},{"$f":"Time!UJS$22","v":"00:00:00"},{"$f":"Time!UJT$22","v":"00:00:00"},{"$f":"Time!UJU$22","v":"00:00:00"},{"$f":"Time!UJV$22","v":"00:00:00"},{"$f":"Time!UJW$22","v":"00:00:00"},{"$f":"Time!UJX$22","v":"00:00:00"},{"$f":"Time!UJY$22","v":"00:00:00"},{"$f":"Time!UJZ$22","v":"00:00:00"},{"$f":"Time!UKA$22","v":"00:00:00"},{"$f":"Time!UKB$22","v":"00:00:00"},{"$f":"Time!UKC$22","v":"00:00:00"},{"$f":"Time!UKD$22","v":"00:00:00"},{"$f":"Time!UKE$22","v":"00:00:00"},{"$f":"Time!UKF$22","v":"00:00:00"},{"$f":"Time!UKG$22","v":"00:00:00"},{"$f":"Time!UKH$22","v":"00:00:00"},{"$f":"Time!UKI$22","v":"00:00:00"},{"$f":"Time!UKJ$22","v":"00:00:00"},{"$f":"Time!UKK$22","v":"00:00:00"},{"$f":"Time!UKL$22","v":"00:00:00"},{"$f":"Time!UKM$22","v":"00:00:00"},{"$f":"Time!UKN$22","v":"00:00:00"},{"$f":"Time!UKO$22","v":"00:00:00"},{"$f":"Time!UKP$22","v":"00:00:00"},{"$f":"Time!UKQ$22","v":"00:00:00"},{"$f":"Time!UKR$22","v":"00:00:00"},{"$f":"Time!UKS$22","v":"00:00:00"},{"$f":"Time!UKT$22","v":"00:00:00"},{"$f":"Time!UKU$22","v":"00:00:00"},{"$f":"Time!UKV$22","v":"00:00:00"},{"$f":"Time!UKW$22","v":"00:00:00"},{"$f":"Time!UKX$22","v":"00:00:00"},{"$f":"Time!UKY$22","v":"00:00:00"},{"$f":"Time!UKZ$22","v":"00:00:00"},{"$f":"Time!ULA$22","v":"00:00:00"},{"$f":"Time!ULB$22","v":"00:00:00"},{"$f":"Time!ULC$22","v":"00:00:00"},{"$f":"Time!ULD$22","v":"00:00:00"},{"$f":"Time!ULE$22","v":"00:00:00"},{"$f":"Time!ULF$22","v":"00:00:00"},{"$f":"Time!ULG$22","v":"00:00:00"},{"$f":"Time!ULH$22","v":"00:00:00"},{"$f":"Time!ULI$22","v":"00:00:00"},{"$f":"Time!ULJ$22","v":"00:00:00"},{"$f":"Time!ULK$22","v":"00:00:00"},{"$f":"Time!ULL$22","v":"00:00:00"},{"$f":"Time!ULM$22","v":"00:00:00"},{"$f":"Time!ULN$22","v":"00:00:00"},{"$f":"Time!ULO$22","v":"00:00:00"},{"$f":"Time!ULP$22","v":"00:00:00"},{"$f":"Time!ULQ$22","v":"00:00:00"},{"$f":"Time!ULR$22","v":"00:00:00"},{"$f":"Time!ULS$22","v":"00:00:00"},{"$f":"Time!ULT$22","v":"00:00:00"},{"$f":"Time!ULU$22","v":"00:00:00"},{"$f":"Time!ULV$22","v":"00:00:00"},{"$f":"Time!ULW$22","v":"00:00:00"},{"$f":"Time!ULX$22","v":"00:00:00"},{"$f":"Time!ULY$22","v":"00:00:00"},{"$f":"Time!ULZ$22","v":"00:00:00"},{"$f":"Time!UMA$22","v":"00:00:00"},{"$f":"Time!UMB$22","v":"00:00:00"},{"$f":"Time!UMC$22","v":"00:00:00"},{"$f":"Time!UMD$22","v":"00:00:00"},{"$f":"Time!UME$22","v":"00:00:00"},{"$f":"Time!UMF$22","v":"00:00:00"},{"$f":"Time!UMG$22","v":"00:00:00"},{"$f":"Time!UMH$22","v":"00:00:00"},{"$f":"Time!UMI$22","v":"00:00:00"},{"$f":"Time!UMJ$22","v":"00:00:00"},{"$f":"Time!UMK$22","v":"00:00:00"},{"$f":"Time!UML$22","v":"00:00:00"},{"$f":"Time!UMM$22","v":"00:00:00"},{"$f":"Time!UMN$22","v":"00:00:00"},{"$f":"Time!UMO$22","v":"00:00:00"},{"$f":"Time!UMP$22","v":"00:00:00"},{"$f":"Time!UMQ$22","v":"00:00:00"},{"$f":"Time!UMR$22","v":"00:00:00"},{"$f":"Time!UMS$22","v":"00:00:00"},{"$f":"Time!UMT$22","v":"00:00:00"},{"$f":"Time!UMU$22","v":"00:00:00"},{"$f":"Time!UMV$22","v":"00:00:00"},{"$f":"Time!UMW$22","v":"00:00:00"},{"$f":"Time!UMX$22","v":"00:00:00"},{"$f":"Time!UMY$22","v":"00:00:00"},{"$f":"Time!UMZ$22","v":"00:00:00"},{"$f":"Time!UNA$22","v":"00:00:00"},{"$f":"Time!UNB$22","v":"00:00:00"},{"$f":"Time!UNC$22","v":"00:00:00"},{"$f":"Time!UND$22","v":"00:00:00"},{"$f":"Time!UNE$22","v":"00:00:00"},{"$f":"Time!UNF$22","v":"00:00:00"},{"$f":"Time!UNG$22","v":"00:00:00"},{"$f":"Time!UNH$22","v":"00:00:00"},{"$f":"Time!UNI$22","v":"00:00:00"},{"$f":"Time!UNJ$22","v":"00:00:00"},{"$f":"Time!UNK$22","v":"00:00:00"},{"$f":"Time!UNL$22","v":"00:00:00"},{"$f":"Time!UNM$22","v":"00:00:00"},{"$f":"Time!UNN$22","v":"00:00:00"},{"$f":"Time!UNO$22","v":"00:00:00"},{"$f":"Time!UNP$22","v":"00:00:00"},{"$f":"Time!UNQ$22","v":"00:00:00"},{"$f":"Time!UNR$22","v":"00:00:00"},{"$f":"Time!UNS$22","v":"00:00:00"},{"$f":"Time!UNT$22","v":"00:00:00"},{"$f":"Time!UNU$22","v":"00:00:00"},{"$f":"Time!UNV$22","v":"00:00:00"},{"$f":"Time!UNW$22","v":"00:00:00"},{"$f":"Time!UNX$22","v":"00:00:00"},{"$f":"Time!UNY$22","v":"00:00:00"},{"$f":"Time!UNZ$22","v":"00:00:00"},{"$f":"Time!UOA$22","v":"00:00:00"},{"$f":"Time!UOB$22","v":"00:00:00"},{"$f":"Time!UOC$22","v":"00:00:00"},{"$f":"Time!UOD$22","v":"00:00:00"},{"$f":"Time!UOE$22","v":"00:00:00"},{"$f":"Time!UOF$22","v":"00:00:00"},{"$f":"Time!UOG$22","v":"00:00:00"},{"$f":"Time!UOH$22","v":"00:00:00"},{"$f":"Time!UOI$22","v":"00:00:00"},{"$f":"Time!UOJ$22","v":"00:00:00"},{"$f":"Time!UOK$22","v":"00:00:00"},{"$f":"Time!UOL$22","v":"00:00:00"},{"$f":"Time!UOM$22","v":"00:00:00"},{"$f":"Time!UON$22","v":"00:00:00"},{"$f":"Time!UOO$22","v":"00:00:00"},{"$f":"Time!UOP$22","v":"00:00:00"},{"$f":"Time!UOQ$22","v":"00:00:00"},{"$f":"Time!UOR$22","v":"00:00:00"},{"$f":"Time!UOS$22","v":"00:00:00"},{"$f":"Time!UOT$22","v":"00:00:00"},{"$f":"Time!UOU$22","v":"00:00:00"},{"$f":"Time!UOV$22","v":"00:00:00"},{"$f":"Time!UOW$22","v":"00:00:00"},{"$f":"Time!UOX$22","v":"00:00:00"},{"$f":"Time!UOY$22","v":"00:00:00"},{"$f":"Time!UOZ$22","v":"00:00:00"},{"$f":"Time!UPA$22","v":"00:00:00"},{"$f":"Time!UPB$22","v":"00:00:00"},{"$f":"Time!UPC$22","v":"00:00:00"},{"$f":"Time!UPD$22","v":"00:00:00"},{"$f":"Time!UPE$22","v":"00:00:00"},{"$f":"Time!UPF$22","v":"00:00:00"},{"$f":"Time!UPG$22","v":"00:00:00"},{"$f":"Time!UPH$22","v":"00:00:00"},{"$f":"Time!UPI$22","v":"00:00:00"},{"$f":"Time!UPJ$22","v":"00:00:00"},{"$f":"Time!UPK$22","v":"00:00:00"},{"$f":"Time!UPL$22","v":"00:00:00"},{"$f":"Time!UPM$22","v":"00:00:00"},{"$f":"Time!UPN$22","v":"00:00:00"},{"$f":"Time!UPO$22","v":"00:00:00"},{"$f":"Time!UPP$22","v":"00:00:00"},{"$f":"Time!UPQ$22","v":"00:00:00"},{"$f":"Time!UPR$22","v":"00:00:00"},{"$f":"Time!UPS$22","v":"00:00:00"},{"$f":"Time!UPT$22","v":"00:00:00"},{"$f":"Time!UPU$22","v":"00:00:00"},{"$f":"Time!UPV$22","v":"00:00:00"},{"$f":"Time!UPW$22","v":"00:00:00"},{"$f":"Time!UPX$22","v":"00:00:00"},{"$f":"Time!UPY$22","v":"00:00:00"},{"$f":"Time!UPZ$22","v":"00:00:00"},{"$f":"Time!UQA$22","v":"00:00:00"},{"$f":"Time!UQB$22","v":"00:00:00"},{"$f":"Time!UQC$22","v":"00:00:00"},{"$f":"Time!UQD$22","v":"00:00:00"},{"$f":"Time!UQE$22","v":"00:00:00"},{"$f":"Time!UQF$22","v":"00:00:00"},{"$f":"Time!UQG$22","v":"00:00:00"},{"$f":"Time!UQH$22","v":"00:00:00"},{"$f":"Time!UQI$22","v":"00:00:00"},{"$f":"Time!UQJ$22","v":"00:00:00"},{"$f":"Time!UQK$22","v":"00:00:00"},{"$f":"Time!UQL$22","v":"00:00:00"},{"$f":"Time!UQM$22","v":"00:00:00"},{"$f":"Time!UQN$22","v":"00:00:00"},{"$f":"Time!UQO$22","v":"00:00:00"},{"$f":"Time!UQP$22","v":"00:00:00"},{"$f":"Time!UQQ$22","v":"00:00:00"},{"$f":"Time!UQR$22","v":"00:00:00"},{"$f":"Time!UQS$22","v":"00:00:00"},{"$f":"Time!UQT$22","v":"00:00:00"},{"$f":"Time!UQU$22","v":"00:00:00"},{"$f":"Time!UQV$22","v":"00:00:00"},{"$f":"Time!UQW$22","v":"00:00:00"},{"$f":"Time!UQX$22","v":"00:00:00"},{"$f":"Time!UQY$22","v":"00:00:00"},{"$f":"Time!UQZ$22","v":"00:00:00"},{"$f":"Time!URA$22","v":"00:00:00"},{"$f":"Time!URB$22","v":"00:00:00"},{"$f":"Time!URC$22","v":"00:00:00"},{"$f":"Time!URD$22","v":"00:00:00"},{"$f":"Time!URE$22","v":"00:00:00"},{"$f":"Time!URF$22","v":"00:00:00"},{"$f":"Time!URG$22","v":"00:00:00"},{"$f":"Time!URH$22","v":"00:00:00"},{"$f":"Time!URI$22","v":"00:00:00"},{"$f":"Time!URJ$22","v":"00:00:00"},{"$f":"Time!URK$22","v":"00:00:00"},{"$f":"Time!URL$22","v":"00:00:00"},{"$f":"Time!URM$22","v":"00:00:00"},{"$f":"Time!URN$22","v":"00:00:00"},{"$f":"Time!URO$22","v":"00:00:00"},{"$f":"Time!URP$22","v":"00:00:00"},{"$f":"Time!URQ$22","v":"00:00:00"},{"$f":"Time!URR$22","v":"00:00:00"},{"$f":"Time!URS$22","v":"00:00:00"},{"$f":"Time!URT$22","v":"00:00:00"},{"$f":"Time!URU$22","v":"00:00:00"},{"$f":"Time!URV$22","v":"00:00:00"},{"$f":"Time!URW$22","v":"00:00:00"},{"$f":"Time!URX$22","v":"00:00:00"},{"$f":"Time!URY$22","v":"00:00:00"},{"$f":"Time!URZ$22","v":"00:00:00"},{"$f":"Time!USA$22","v":"00:00:00"},{"$f":"Time!USB$22","v":"00:00:00"},{"$f":"Time!USC$22","v":"00:00:00"},{"$f":"Time!USD$22","v":"00:00:00"},{"$f":"Time!USE$22","v":"00:00:00"},{"$f":"Time!USF$22","v":"00:00:00"},{"$f":"Time!USG$22","v":"00:00:00"},{"$f":"Time!USH$22","v":"00:00:00"},{"$f":"Time!USI$22","v":"00:00:00"},{"$f":"Time!USJ$22","v":"00:00:00"},{"$f":"Time!USK$22","v":"00:00:00"},{"$f":"Time!USL$22","v":"00:00:00"},{"$f":"Time!USM$22","v":"00:00:00"},{"$f":"Time!USN$22","v":"00:00:00"},{"$f":"Time!USO$22","v":"00:00:00"},{"$f":"Time!USP$22","v":"00:00:00"},{"$f":"Time!USQ$22","v":"00:00:00"},{"$f":"Time!USR$22","v":"00:00:00"},{"$f":"Time!USS$22","v":"00:00:00"},{"$f":"Time!UST$22","v":"00:00:00"},{"$f":"Time!USU$22","v":"00:00:00"},{"$f":"Time!USV$22","v":"00:00:00"},{"$f":"Time!USW$22","v":"00:00:00"},{"$f":"Time!USX$22","v":"00:00:00"},{"$f":"Time!USY$22","v":"00:00:00"},{"$f":"Time!USZ$22","v":"00:00:00"},{"$f":"Time!UTA$22","v":"00:00:00"},{"$f":"Time!UTB$22","v":"00:00:00"},{"$f":"Time!UTC$22","v":"00:00:00"},{"$f":"Time!UTD$22","v":"00:00:00"},{"$f":"Time!UTE$22","v":"00:00:00"},{"$f":"Time!UTF$22","v":"00:00:00"},{"$f":"Time!UTG$22","v":"00:00:00"},{"$f":"Time!UTH$22","v":"00:00:00"},{"$f":"Time!UTI$22","v":"00:00:00"},{"$f":"Time!UTJ$22","v":"00:00:00"},{"$f":"Time!UTK$22","v":"00:00:00"},{"$f":"Time!UTL$22","v":"00:00:00"},{"$f":"Time!UTM$22","v":"00:00:00"},{"$f":"Time!UTN$22","v":"00:00:00"},{"$f":"Time!UTO$22","v":"00:00:00"},{"$f":"Time!UTP$22","v":"00:00:00"},{"$f":"Time!UTQ$22","v":"00:00:00"},{"$f":"Time!UTR$22","v":"00:00:00"},{"$f":"Time!UTS$22","v":"00:00:00"},{"$f":"Time!UTT$22","v":"00:00:00"},{"$f":"Time!UTU$22","v":"00:00:00"},{"$f":"Time!UTV$22","v":"00:00:00"},{"$f":"Time!UTW$22","v":"00:00:00"},{"$f":"Time!UTX$22","v":"00:00:00"},{"$f":"Time!UTY$22","v":"00:00:00"},{"$f":"Time!UTZ$22","v":"00:00:00"},{"$f":"Time!UUA$22","v":"00:00:00"},{"$f":"Time!UUB$22","v":"00:00:00"},{"$f":"Time!UUC$22","v":"00:00:00"},{"$f":"Time!UUD$22","v":"00:00:00"},{"$f":"Time!UUE$22","v":"00:00:00"},{"$f":"Time!UUF$22","v":"00:00:00"},{"$f":"Time!UUG$22","v":"00:00:00"},{"$f":"Time!UUH$22","v":"00:00:00"},{"$f":"Time!UUI$22","v":"00:00:00"},{"$f":"Time!UUJ$22","v":"00:00:00"},{"$f":"Time!UUK$22","v":"00:00:00"},{"$f":"Time!UUL$22","v":"00:00:00"},{"$f":"Time!UUM$22","v":"00:00:00"},{"$f":"Time!UUN$22","v":"00:00:00"},{"$f":"Time!UUO$22","v":"00:00:00"},{"$f":"Time!UUP$22","v":"00:00:00"},{"$f":"Time!UUQ$22","v":"00:00:00"},{"$f":"Time!UUR$22","v":"00:00:00"},{"$f":"Time!UUS$22","v":"00:00:00"},{"$f":"Time!UUT$22","v":"00:00:00"},{"$f":"Time!UUU$22","v":"00:00:00"},{"$f":"Time!UUV$22","v":"00:00:00"},{"$f":"Time!UUW$22","v":"00:00:00"},{"$f":"Time!UUX$22","v":"00:00:00"},{"$f":"Time!UUY$22","v":"00:00:00"},{"$f":"Time!UUZ$22","v":"00:00:00"},{"$f":"Time!UVA$22","v":"00:00:00"},{"$f":"Time!UVB$22","v":"00:00:00"},{"$f":"Time!UVC$22","v":"00:00:00"},{"$f":"Time!UVD$22","v":"00:00:00"},{"$f":"Time!UVE$22","v":"00:00:00"},{"$f":"Time!UVF$22","v":"00:00:00"},{"$f":"Time!UVG$22","v":"00:00:00"},{"$f":"Time!UVH$22","v":"00:00:00"},{"$f":"Time!UVI$22","v":"00:00:00"},{"$f":"Time!UVJ$22","v":"00:00:00"},{"$f":"Time!UVK$22","v":"00:00:00"},{"$f":"Time!UVL$22","v":"00:00:00"},{"$f":"Time!UVM$22","v":"00:00:00"},{"$f":"Time!UVN$22","v":"00:00:00"},{"$f":"Time!UVO$22","v":"00:00:00"},{"$f":"Time!UVP$22","v":"00:00:00"},{"$f":"Time!UVQ$22","v":"00:00:00"},{"$f":"Time!UVR$22","v":"00:00:00"},{"$f":"Time!UVS$22","v":"00:00:00"},{"$f":"Time!UVT$22","v":"00:00:00"},{"$f":"Time!UVU$22","v":"00:00:00"},{"$f":"Time!UVV$22","v":"00:00:00"},{"$f":"Time!UVW$22","v":"00:00:00"},{"$f":"Time!UVX$22","v":"00:00:00"},{"$f":"Time!UVY$22","v":"00:00:00"},{"$f":"Time!UVZ$22","v":"00:00:00"},{"$f":"Time!UWA$22","v":"00:00:00"},{"$f":"Time!UWB$22","v":"00:00:00"},{"$f":"Time!UWC$22","v":"00:00:00"},{"$f":"Time!UWD$22","v":"00:00:00"},{"$f":"Time!UWE$22","v":"00:00:00"},{"$f":"Time!UWF$22","v":"00:00:00"},{"$f":"Time!UWG$22","v":"00:00:00"},{"$f":"Time!UWH$22","v":"00:00:00"},{"$f":"Time!UWI$22","v":"00:00:00"},{"$f":"Time!UWJ$22","v":"00:00:00"},{"$f":"Time!UWK$22","v":"00:00:00"},{"$f":"Time!UWL$22","v":"00:00:00"},{"$f":"Time!UWM$22","v":"00:00:00"},{"$f":"Time!UWN$22","v":"00:00:00"},{"$f":"Time!UWO$22","v":"00:00:00"},{"$f":"Time!UWP$22","v":"00:00:00"},{"$f":"Time!UWQ$22","v":"00:00:00"},{"$f":"Time!UWR$22","v":"00:00:00"},{"$f":"Time!UWS$22","v":"00:00:00"},{"$f":"Time!UWT$22","v":"00:00:00"},{"$f":"Time!UWU$22","v":"00:00:00"},{"$f":"Time!UWV$22","v":"00:00:00"},{"$f":"Time!UWW$22","v":"00:00:00"},{"$f":"Time!UWX$22","v":"00:00:00"},{"$f":"Time!UWY$22","v":"00:00:00"},{"$f":"Time!UWZ$22","v":"00:00:00"},{"$f":"Time!UXA$22","v":"00:00:00"},{"$f":"Time!UXB$22","v":"00:00:00"},{"$f":"Time!UXC$22","v":"00:00:00"},{"$f":"Time!UXD$22","v":"00:00:00"},{"$f":"Time!UXE$22","v":"00:00:00"},{"$f":"Time!UXF$22","v":"00:00:00"},{"$f":"Time!UXG$22","v":"00:00:00"},{"$f":"Time!UXH$22","v":"00:00:00"},{"$f":"Time!UXI$22","v":"00:00:00"},{"$f":"Time!UXJ$22","v":"00:00:00"},{"$f":"Time!UXK$22","v":"00:00:00"},{"$f":"Time!UXL$22","v":"00:00:00"},{"$f":"Time!UXM$22","v":"00:00:00"},{"$f":"Time!UXN$22","v":"00:00:00"},{"$f":"Time!UXO$22","v":"00:00:00"},{"$f":"Time!UXP$22","v":"00:00:00"},{"$f":"Time!UXQ$22","v":"00:00:00"},{"$f":"Time!UXR$22","v":"00:00:00"},{"$f":"Time!UXS$22","v":"00:00:00"},{"$f":"Time!UXT$22","v":"00:00:00"},{"$f":"Time!UXU$22","v":"00:00:00"},{"$f":"Time!UXV$22","v":"00:00:00"},{"$f":"Time!UXW$22","v":"00:00:00"},{"$f":"Time!UXX$22","v":"00:00:00"},{"$f":"Time!UXY$22","v":"00:00:00"},{"$f":"Time!UXZ$22","v":"00:00:00"},{"$f":"Time!UYA$22","v":"00:00:00"},{"$f":"Time!UYB$22","v":"00:00:00"},{"$f":"Time!UYC$22","v":"00:00:00"},{"$f":"Time!UYD$22","v":"00:00:00"},{"$f":"Time!UYE$22","v":"00:00:00"},{"$f":"Time!UYF$22","v":"00:00:00"},{"$f":"Time!UYG$22","v":"00:00:00"},{"$f":"Time!UYH$22","v":"00:00:00"},{"$f":"Time!UYI$22","v":"00:00:00"},{"$f":"Time!UYJ$22","v":"00:00:00"},{"$f":"Time!UYK$22","v":"00:00:00"},{"$f":"Time!UYL$22","v":"00:00:00"},{"$f":"Time!UYM$22","v":"00:00:00"},{"$f":"Time!UYN$22","v":"00:00:00"},{"$f":"Time!UYO$22","v":"00:00:00"},{"$f":"Time!UYP$22","v":"00:00:00"},{"$f":"Time!UYQ$22","v":"00:00:00"},{"$f":"Time!UYR$22","v":"00:00:00"},{"$f":"Time!UYS$22","v":"00:00:00"},{"$f":"Time!UYT$22","v":"00:00:00"},{"$f":"Time!UYU$22","v":"00:00:00"},{"$f":"Time!UYV$22","v":"00:00:00"},{"$f":"Time!UYW$22","v":"00:00:00"},{"$f":"Time!UYX$22","v":"00:00:00"},{"$f":"Time!UYY$22","v":"00:00:00"},{"$f":"Time!UYZ$22","v":"00:00:00"},{"$f":"Time!UZA$22","v":"00:00:00"},{"$f":"Time!UZB$22","v":"00:00:00"},{"$f":"Time!UZC$22","v":"00:00:00"},{"$f":"Time!UZD$22","v":"00:00:00"},{"$f":"Time!UZE$22","v":"00:00:00"},{"$f":"Time!UZF$22","v":"00:00:00"},{"$f":"Time!UZG$22","v":"00:00:00"},{"$f":"Time!UZH$22","v":"00:00:00"},{"$f":"Time!UZI$22","v":"00:00:00"},{"$f":"Time!UZJ$22","v":"00:00:00"},{"$f":"Time!UZK$22","v":"00:00:00"},{"$f":"Time!UZL$22","v":"00:00:00"},{"$f":"Time!UZM$22","v":"00:00:00"},{"$f":"Time!UZN$22","v":"00:00:00"},{"$f":"Time!UZO$22","v":"00:00:00"},{"$f":"Time!UZP$22","v":"00:00:00"},{"$f":"Time!UZQ$22","v":"00:00:00"},{"$f":"Time!UZR$22","v":"00:00:00"},{"$f":"Time!UZS$22","v":"00:00:00"},{"$f":"Time!UZT$22","v":"00:00:00"},{"$f":"Time!UZU$22","v":"00:00:00"},{"$f":"Time!UZV$22","v":"00:00:00"},{"$f":"Time!UZW$22","v":"00:00:00"},{"$f":"Time!UZX$22","v":"00:00:00"},{"$f":"Time!UZY$22","v":"00:00:00"},{"$f":"Time!UZZ$22","v":"00:00:00"},{"$f":"Time!VAA$22","v":"00:00:00"},{"$f":"Time!VAB$22","v":"00:00:00"},{"$f":"Time!VAC$22","v":"00:00:00"},{"$f":"Time!VAD$22","v":"00:00:00"},{"$f":"Time!VAE$22","v":"00:00:00"},{"$f":"Time!VAF$22","v":"00:00:00"},{"$f":"Time!VAG$22","v":"00:00:00"},{"$f":"Time!VAH$22","v":"00:00:00"},{"$f":"Time!VAI$22","v":"00:00:00"},{"$f":"Time!VAJ$22","v":"00:00:00"},{"$f":"Time!VAK$22","v":"00:00:00"},{"$f":"Time!VAL$22","v":"00:00:00"},{"$f":"Time!VAM$22","v":"00:00:00"},{"$f":"Time!VAN$22","v":"00:00:00"},{"$f":"Time!VAO$22","v":"00:00:00"},{"$f":"Time!VAP$22","v":"00:00:00"},{"$f":"Time!VAQ$22","v":"00:00:00"},{"$f":"Time!VAR$22","v":"00:00:00"},{"$f":"Time!VAS$22","v":"00:00:00"},{"$f":"Time!VAT$22","v":"00:00:00"},{"$f":"Time!VAU$22","v":"00:00:00"},{"$f":"Time!VAV$22","v":"00:00:00"},{"$f":"Time!VAW$22","v":"00:00:00"},{"$f":"Time!VAX$22","v":"00:00:00"},{"$f":"Time!VAY$22","v":"00:00:00"},{"$f":"Time!VAZ$22","v":"00:00:00"},{"$f":"Time!VBA$22","v":"00:00:00"},{"$f":"Time!VBB$22","v":"00:00:00"},{"$f":"Time!VBC$22","v":"00:00:00"},{"$f":"Time!VBD$22","v":"00:00:00"},{"$f":"Time!VBE$22","v":"00:00:00"},{"$f":"Time!VBF$22","v":"00:00:00"},{"$f":"Time!VBG$22","v":"00:00:00"},{"$f":"Time!VBH$22","v":"00:00:00"},{"$f":"Time!VBI$22","v":"00:00:00"},{"$f":"Time!VBJ$22","v":"00:00:00"},{"$f":"Time!VBK$22","v":"00:00:00"},{"$f":"Time!VBL$22","v":"00:00:00"},{"$f":"Time!VBM$22","v":"00:00:00"},{"$f":"Time!VBN$22","v":"00:00:00"},{"$f":"Time!VBO$22","v":"00:00:00"},{"$f":"Time!VBP$22","v":"00:00:00"},{"$f":"Time!VBQ$22","v":"00:00:00"},{"$f":"Time!VBR$22","v":"00:00:00"},{"$f":"Time!VBS$22","v":"00:00:00"},{"$f":"Time!VBT$22","v":"00:00:00"},{"$f":"Time!VBU$22","v":"00:00:00"},{"$f":"Time!VBV$22","v":"00:00:00"},{"$f":"Time!VBW$22","v":"00:00:00"},{"$f":"Time!VBX$22","v":"00:00:00"},{"$f":"Time!VBY$22","v":"00:00:00"},{"$f":"Time!VBZ$22","v":"00:00:00"},{"$f":"Time!VCA$22","v":"00:00:00"},{"$f":"Time!VCB$22","v":"00:00:00"},{"$f":"Time!VCC$22","v":"00:00:00"},{"$f":"Time!VCD$22","v":"00:00:00"},{"$f":"Time!VCE$22","v":"00:00:00"},{"$f":"Time!VCF$22","v":"00:00:00"},{"$f":"Time!VCG$22","v":"00:00:00"},{"$f":"Time!VCH$22","v":"00:00:00"},{"$f":"Time!VCI$22","v":"00:00:00"},{"$f":"Time!VCJ$22","v":"00:00:00"},{"$f":"Time!VCK$22","v":"00:00:00"},{"$f":"Time!VCL$22","v":"00:00:00"},{"$f":"Time!VCM$22","v":"00:00:00"},{"$f":"Time!VCN$22","v":"00:00:00"},{"$f":"Time!VCO$22","v":"00:00:00"},{"$f":"Time!VCP$22","v":"00:00:00"},{"$f":"Time!VCQ$22","v":"00:00:00"},{"$f":"Time!VCR$22","v":"00:00:00"},{"$f":"Time!VCS$22","v":"00:00:00"},{"$f":"Time!VCT$22","v":"00:00:00"},{"$f":"Time!VCU$22","v":"00:00:00"},{"$f":"Time!VCV$22","v":"00:00:00"},{"$f":"Time!VCW$22","v":"00:00:00"},{"$f":"Time!VCX$22","v":"00:00:00"},{"$f":"Time!VCY$22","v":"00:00:00"},{"$f":"Time!VCZ$22","v":"00:00:00"},{"$f":"Time!VDA$22","v":"00:00:00"},{"$f":"Time!VDB$22","v":"00:00:00"},{"$f":"Time!VDC$22","v":"00:00:00"},{"$f":"Time!VDD$22","v":"00:00:00"},{"$f":"Time!VDE$22","v":"00:00:00"},{"$f":"Time!VDF$22","v":"00:00:00"},{"$f":"Time!VDG$22","v":"00:00:00"},{"$f":"Time!VDH$22","v":"00:00:00"},{"$f":"Time!VDI$22","v":"00:00:00"},{"$f":"Time!VDJ$22","v":"00:00:00"},{"$f":"Time!VDK$22","v":"00:00:00"},{"$f":"Time!VDL$22","v":"00:00:00"},{"$f":"Time!VDM$22","v":"00:00:00"},{"$f":"Time!VDN$22","v":"00:00:00"},{"$f":"Time!VDO$22","v":"00:00:00"},{"$f":"Time!VDP$22","v":"00:00:00"},{"$f":"Time!VDQ$22","v":"00:00:00"},{"$f":"Time!VDR$22","v":"00:00:00"},{"$f":"Time!VDS$22","v":"00:00:00"},{"$f":"Time!VDT$22","v":"00:00:00"},{"$f":"Time!VDU$22","v":"00:00:00"},{"$f":"Time!VDV$22","v":"00:00:00"},{"$f":"Time!VDW$22","v":"00:00:00"},{"$f":"Time!VDX$22","v":"00:00:00"},{"$f":"Time!VDY$22","v":"00:00:00"},{"$f":"Time!VDZ$22","v":"00:00:00"},{"$f":"Time!VEA$22","v":"00:00:00"},{"$f":"Time!VEB$22","v":"00:00:00"},{"$f":"Time!VEC$22","v":"00:00:00"},{"$f":"Time!VED$22","v":"00:00:00"},{"$f":"Time!VEE$22","v":"00:00:00"},{"$f":"Time!VEF$22","v":"00:00:00"},{"$f":"Time!VEG$22","v":"00:00:00"},{"$f":"Time!VEH$22","v":"00:00:00"},{"$f":"Time!VEI$22","v":"00:00:00"},{"$f":"Time!VEJ$22","v":"00:00:00"},{"$f":"Time!VEK$22","v":"00:00:00"},{"$f":"Time!VEL$22","v":"00:00:00"},{"$f":"Time!VEM$22","v":"00:00:00"},{"$f":"Time!VEN$22","v":"00:00:00"},{"$f":"Time!VEO$22","v":"00:00:00"},{"$f":"Time!VEP$22","v":"00:00:00"},{"$f":"Time!VEQ$22","v":"00:00:00"},{"$f":"Time!VER$22","v":"00:00:00"},{"$f":"Time!VES$22","v":"00:00:00"},{"$f":"Time!VET$22","v":"00:00:00"},{"$f":"Time!VEU$22","v":"00:00:00"},{"$f":"Time!VEV$22","v":"00:00:00"},{"$f":"Time!VEW$22","v":"00:00:00"},{"$f":"Time!VEX$22","v":"00:00:00"},{"$f":"Time!VEY$22","v":"00:00:00"},{"$f":"Time!VEZ$22","v":"00:00:00"},{"$f":"Time!VFA$22","v":"00:00:00"},{"$f":"Time!VFB$22","v":"00:00:00"},{"$f":"Time!VFC$22","v":"00:00:00"},{"$f":"Time!VFD$22","v":"00:00:00"},{"$f":"Time!VFE$22","v":"00:00:00"},{"$f":"Time!VFF$22","v":"00:00:00"},{"$f":"Time!VFG$22","v":"00:00:00"},{"$f":"Time!VFH$22","v":"00:00:00"},{"$f":"Time!VFI$22","v":"00:00:00"},{"$f":"Time!VFJ$22","v":"00:00:00"},{"$f":"Time!VFK$22","v":"00:00:00"},{"$f":"Time!VFL$22","v":"00:00:00"},{"$f":"Time!VFM$22","v":"00:00:00"},{"$f":"Time!VFN$22","v":"00:00:00"},{"$f":"Time!VFO$22","v":"00:00:00"},{"$f":"Time!VFP$22","v":"00:00:00"},{"$f":"Time!VFQ$22","v":"00:00:00"},{"$f":"Time!VFR$22","v":"00:00:00"},{"$f":"Time!VFS$22","v":"00:00:00"},{"$f":"Time!VFT$22","v":"00:00:00"},{"$f":"Time!VFU$22","v":"00:00:00"},{"$f":"Time!VFV$22","v":"00:00:00"},{"$f":"Time!VFW$22","v":"00:00:00"},{"$f":"Time!VFX$22","v":"00:00:00"},{"$f":"Time!VFY$22","v":"00:00:00"},{"$f":"Time!VFZ$22","v":"00:00:00"},{"$f":"Time!VGA$22","v":"00:00:00"},{"$f":"Time!VGB$22","v":"00:00:00"},{"$f":"Time!VGC$22","v":"00:00:00"},{"$f":"Time!VGD$22","v":"00:00:00"},{"$f":"Time!VGE$22","v":"00:00:00"},{"$f":"Time!VGF$22","v":"00:00:00"},{"$f":"Time!VGG$22","v":"00:00:00"},{"$f":"Time!VGH$22","v":"00:00:00"},{"$f":"Time!VGI$22","v":"00:00:00"},{"$f":"Time!VGJ$22","v":"00:00:00"},{"$f":"Time!VGK$22","v":"00:00:00"},{"$f":"Time!VGL$22","v":"00:00:00"},{"$f":"Time!VGM$22","v":"00:00:00"},{"$f":"Time!VGN$22","v":"00:00:00"},{"$f":"Time!VGO$22","v":"00:00:00"},{"$f":"Time!VGP$22","v":"00:00:00"},{"$f":"Time!VGQ$22","v":"00:00:00"},{"$f":"Time!VGR$22","v":"00:00:00"},{"$f":"Time!VGS$22","v":"00:00:00"},{"$f":"Time!VGT$22","v":"00:00:00"},{"$f":"Time!VGU$22","v":"00:00:00"},{"$f":"Time!VGV$22","v":"00:00:00"},{"$f":"Time!VGW$22","v":"00:00:00"},{"$f":"Time!VGX$22","v":"00:00:00"},{"$f":"Time!VGY$22","v":"00:00:00"},{"$f":"Time!VGZ$22","v":"00:00:00"},{"$f":"Time!VHA$22","v":"00:00:00"},{"$f":"Time!VHB$22","v":"00:00:00"},{"$f":"Time!VHC$22","v":"00:00:00"},{"$f":"Time!VHD$22","v":"00:00:00"},{"$f":"Time!VHE$22","v":"00:00:00"},{"$f":"Time!VHF$22","v":"00:00:00"},{"$f":"Time!VHG$22","v":"00:00:00"},{"$f":"Time!VHH$22","v":"00:00:00"},{"$f":"Time!VHI$22","v":"00:00:00"},{"$f":"Time!VHJ$22","v":"00:00:00"},{"$f":"Time!VHK$22","v":"00:00:00"},{"$f":"Time!VHL$22","v":"00:00:00"},{"$f":"Time!VHM$22","v":"00:00:00"},{"$f":"Time!VHN$22","v":"00:00:00"},{"$f":"Time!VHO$22","v":"00:00:00"},{"$f":"Time!VHP$22","v":"00:00:00"},{"$f":"Time!VHQ$22","v":"00:00:00"},{"$f":"Time!VHR$22","v":"00:00:00"},{"$f":"Time!VHS$22","v":"00:00:00"},{"$f":"Time!VHT$22","v":"00:00:00"},{"$f":"Time!VHU$22","v":"00:00:00"},{"$f":"Time!VHV$22","v":"00:00:00"},{"$f":"Time!VHW$22","v":"00:00:00"},{"$f":"Time!VHX$22","v":"00:00:00"},{"$f":"Time!VHY$22","v":"00:00:00"},{"$f":"Time!VHZ$22","v":"00:00:00"},{"$f":"Time!VIA$22","v":"00:00:00"},{"$f":"Time!VIB$22","v":"00:00:00"},{"$f":"Time!VIC$22","v":"00:00:00"},{"$f":"Time!VID$22","v":"00:00:00"},{"$f":"Time!VIE$22","v":"00:00:00"},{"$f":"Time!VIF$22","v":"00:00:00"},{"$f":"Time!VIG$22","v":"00:00:00"},{"$f":"Time!VIH$22","v":"00:00:00"},{"$f":"Time!VII$22","v":"00:00:00"},{"$f":"Time!VIJ$22","v":"00:00:00"},{"$f":"Time!VIK$22","v":"00:00:00"},{"$f":"Time!VIL$22","v":"00:00:00"},{"$f":"Time!VIM$22","v":"00:00:00"},{"$f":"Time!VIN$22","v":"00:00:00"},{"$f":"Time!VIO$22","v":"00:00:00"},{"$f":"Time!VIP$22","v":"00:00:00"},{"$f":"Time!VIQ$22","v":"00:00:00"},{"$f":"Time!VIR$22","v":"00:00:00"},{"$f":"Time!VIS$22","v":"00:00:00"},{"$f":"Time!VIT$22","v":"00:00:00"},{"$f":"Time!VIU$22","v":"00:00:00"},{"$f":"Time!VIV$22","v":"00:00:00"},{"$f":"Time!VIW$22","v":"00:00:00"},{"$f":"Time!VIX$22","v":"00:00:00"},{"$f":"Time!VIY$22","v":"00:00:00"},{"$f":"Time!VIZ$22","v":"00:00:00"},{"$f":"Time!VJA$22","v":"00:00:00"},{"$f":"Time!VJB$22","v":"00:00:00"},{"$f":"Time!VJC$22","v":"00:00:00"},{"$f":"Time!VJD$22","v":"00:00:00"},{"$f":"Time!VJE$22","v":"00:00:00"},{"$f":"Time!VJF$22","v":"00:00:00"},{"$f":"Time!VJG$22","v":"00:00:00"},{"$f":"Time!VJH$22","v":"00:00:00"},{"$f":"Time!VJI$22","v":"00:00:00"},{"$f":"Time!VJJ$22","v":"00:00:00"},{"$f":"Time!VJK$22","v":"00:00:00"},{"$f":"Time!VJL$22","v":"00:00:00"},{"$f":"Time!VJM$22","v":"00:00:00"},{"$f":"Time!VJN$22","v":"00:00:00"},{"$f":"Time!VJO$22","v":"00:00:00"},{"$f":"Time!VJP$22","v":"00:00:00"},{"$f":"Time!VJQ$22","v":"00:00:00"},{"$f":"Time!VJR$22","v":"00:00:00"},{"$f":"Time!VJS$22","v":"00:00:00"},{"$f":"Time!VJT$22","v":"00:00:00"},{"$f":"Time!VJU$22","v":"00:00:00"},{"$f":"Time!VJV$22","v":"00:00:00"},{"$f":"Time!VJW$22","v":"00:00:00"},{"$f":"Time!VJX$22","v":"00:00:00"},{"$f":"Time!VJY$22","v":"00:00:00"},{"$f":"Time!VJZ$22","v":"00:00:00"},{"$f":"Time!VKA$22","v":"00:00:00"},{"$f":"Time!VKB$22","v":"00:00:00"},{"$f":"Time!VKC$22","v":"00:00:00"},{"$f":"Time!VKD$22","v":"00:00:00"},{"$f":"Time!VKE$22","v":"00:00:00"},{"$f":"Time!VKF$22","v":"00:00:00"},{"$f":"Time!VKG$22","v":"00:00:00"},{"$f":"Time!VKH$22","v":"00:00:00"},{"$f":"Time!VKI$22","v":"00:00:00"},{"$f":"Time!VKJ$22","v":"00:00:00"},{"$f":"Time!VKK$22","v":"00:00:00"},{"$f":"Time!VKL$22","v":"00:00:00"},{"$f":"Time!VKM$22","v":"00:00:00"},{"$f":"Time!VKN$22","v":"00:00:00"},{"$f":"Time!VKO$22","v":"00:00:00"},{"$f":"Time!VKP$22","v":"00:00:00"},{"$f":"Time!VKQ$22","v":"00:00:00"},{"$f":"Time!VKR$22","v":"00:00:00"},{"$f":"Time!VKS$22","v":"00:00:00"},{"$f":"Time!VKT$22","v":"00:00:00"},{"$f":"Time!VKU$22","v":"00:00:00"},{"$f":"Time!VKV$22","v":"00:00:00"},{"$f":"Time!VKW$22","v":"00:00:00"},{"$f":"Time!VKX$22","v":"00:00:00"},{"$f":"Time!VKY$22","v":"00:00:00"},{"$f":"Time!VKZ$22","v":"00:00:00"},{"$f":"Time!VLA$22","v":"00:00:00"},{"$f":"Time!VLB$22","v":"00:00:00"},{"$f":"Time!VLC$22","v":"00:00:00"},{"$f":"Time!VLD$22","v":"00:00:00"},{"$f":"Time!VLE$22","v":"00:00:00"},{"$f":"Time!VLF$22","v":"00:00:00"},{"$f":"Time!VLG$22","v":"00:00:00"},{"$f":"Time!VLH$22","v":"00:00:00"},{"$f":"Time!VLI$22","v":"00:00:00"},{"$f":"Time!VLJ$22","v":"00:00:00"},{"$f":"Time!VLK$22","v":"00:00:00"},{"$f":"Time!VLL$22","v":"00:00:00"},{"$f":"Time!VLM$22","v":"00:00:00"},{"$f":"Time!VLN$22","v":"00:00:00"},{"$f":"Time!VLO$22","v":"00:00:00"},{"$f":"Time!VLP$22","v":"00:00:00"},{"$f":"Time!VLQ$22","v":"00:00:00"},{"$f":"Time!VLR$22","v":"00:00:00"},{"$f":"Time!VLS$22","v":"00:00:00"},{"$f":"Time!VLT$22","v":"00:00:00"},{"$f":"Time!VLU$22","v":"00:00:00"},{"$f":"Time!VLV$22","v":"00:00:00"},{"$f":"Time!VLW$22","v":"00:00:00"},{"$f":"Time!VLX$22","v":"00:00:00"},{"$f":"Time!VLY$22","v":"00:00:00"},{"$f":"Time!VLZ$22","v":"00:00:00"},{"$f":"Time!VMA$22","v":"00:00:00"},{"$f":"Time!VMB$22","v":"00:00:00"},{"$f":"Time!VMC$22","v":"00:00:00"},{"$f":"Time!VMD$22","v":"00:00:00"},{"$f":"Time!VME$22","v":"00:00:00"},{"$f":"Time!VMF$22","v":"00:00:00"},{"$f":"Time!VMG$22","v":"00:00:00"},{"$f":"Time!VMH$22","v":"00:00:00"},{"$f":"Time!VMI$22","v":"00:00:00"},{"$f":"Time!VMJ$22","v":"00:00:00"},{"$f":"Time!VMK$22","v":"00:00:00"},{"$f":"Time!VML$22","v":"00:00:00"},{"$f":"Time!VMM$22","v":"00:00:00"},{"$f":"Time!VMN$22","v":"00:00:00"},{"$f":"Time!VMO$22","v":"00:00:00"},{"$f":"Time!VMP$22","v":"00:00:00"},{"$f":"Time!VMQ$22","v":"00:00:00"},{"$f":"Time!VMR$22","v":"00:00:00"},{"$f":"Time!VMS$22","v":"00:00:00"},{"$f":"Time!VMT$22","v":"00:00:00"},{"$f":"Time!VMU$22","v":"00:00:00"},{"$f":"Time!VMV$22","v":"00:00:00"},{"$f":"Time!VMW$22","v":"00:00:00"},{"$f":"Time!VMX$22","v":"00:00:00"},{"$f":"Time!VMY$22","v":"00:00:00"},{"$f":"Time!VMZ$22","v":"00:00:00"},{"$f":"Time!VNA$22","v":"00:00:00"},{"$f":"Time!VNB$22","v":"00:00:00"},{"$f":"Time!VNC$22","v":"00:00:00"},{"$f":"Time!VND$22","v":"00:00:00"},{"$f":"Time!VNE$22","v":"00:00:00"},{"$f":"Time!VNF$22","v":"00:00:00"},{"$f":"Time!VNG$22","v":"00:00:00"},{"$f":"Time!VNH$22","v":"00:00:00"},{"$f":"Time!VNI$22","v":"00:00:00"},{"$f":"Time!VNJ$22","v":"00:00:00"},{"$f":"Time!VNK$22","v":"00:00:00"},{"$f":"Time!VNL$22","v":"00:00:00"},{"$f":"Time!VNM$22","v":"00:00:00"},{"$f":"Time!VNN$22","v":"00:00:00"},{"$f":"Time!VNO$22","v":"00:00:00"},{"$f":"Time!VNP$22","v":"00:00:00"},{"$f":"Time!VNQ$22","v":"00:00:00"},{"$f":"Time!VNR$22","v":"00:00:00"},{"$f":"Time!VNS$22","v":"00:00:00"},{"$f":"Time!VNT$22","v":"00:00:00"},{"$f":"Time!VNU$22","v":"00:00:00"},{"$f":"Time!VNV$22","v":"00:00:00"},{"$f":"Time!VNW$22","v":"00:00:00"},{"$f":"Time!VNX$22","v":"00:00:00"},{"$f":"Time!VNY$22","v":"00:00:00"},{"$f":"Time!VNZ$22","v":"00:00:00"},{"$f":"Time!VOA$22","v":"00:00:00"},{"$f":"Time!VOB$22","v":"00:00:00"},{"$f":"Time!VOC$22","v":"00:00:00"},{"$f":"Time!VOD$22","v":"00:00:00"},{"$f":"Time!VOE$22","v":"00:00:00"},{"$f":"Time!VOF$22","v":"00:00:00"},{"$f":"Time!VOG$22","v":"00:00:00"},{"$f":"Time!VOH$22","v":"00:00:00"},{"$f":"Time!VOI$22","v":"00:00:00"},{"$f":"Time!VOJ$22","v":"00:00:00"},{"$f":"Time!VOK$22","v":"00:00:00"},{"$f":"Time!VOL$22","v":"00:00:00"},{"$f":"Time!VOM$22","v":"00:00:00"},{"$f":"Time!VON$22","v":"00:00:00"},{"$f":"Time!VOO$22","v":"00:00:00"},{"$f":"Time!VOP$22","v":"00:00:00"},{"$f":"Time!VOQ$22","v":"00:00:00"},{"$f":"Time!VOR$22","v":"00:00:00"},{"$f":"Time!VOS$22","v":"00:00:00"},{"$f":"Time!VOT$22","v":"00:00:00"},{"$f":"Time!VOU$22","v":"00:00:00"},{"$f":"Time!VOV$22","v":"00:00:00"},{"$f":"Time!VOW$22","v":"00:00:00"},{"$f":"Time!VOX$22","v":"00:00:00"},{"$f":"Time!VOY$22","v":"00:00:00"},{"$f":"Time!VOZ$22","v":"00:00:00"},{"$f":"Time!VPA$22","v":"00:00:00"},{"$f":"Time!VPB$22","v":"00:00:00"},{"$f":"Time!VPC$22","v":"00:00:00"},{"$f":"Time!VPD$22","v":"00:00:00"},{"$f":"Time!VPE$22","v":"00:00:00"},{"$f":"Time!VPF$22","v":"00:00:00"},{"$f":"Time!VPG$22","v":"00:00:00"},{"$f":"Time!VPH$22","v":"00:00:00"},{"$f":"Time!VPI$22","v":"00:00:00"},{"$f":"Time!VPJ$22","v":"00:00:00"},{"$f":"Time!VPK$22","v":"00:00:00"},{"$f":"Time!VPL$22","v":"00:00:00"},{"$f":"Time!VPM$22","v":"00:00:00"},{"$f":"Time!VPN$22","v":"00:00:00"},{"$f":"Time!VPO$22","v":"00:00:00"},{"$f":"Time!VPP$22","v":"00:00:00"},{"$f":"Time!VPQ$22","v":"00:00:00"},{"$f":"Time!VPR$22","v":"00:00:00"},{"$f":"Time!VPS$22","v":"00:00:00"},{"$f":"Time!VPT$22","v":"00:00:00"},{"$f":"Time!VPU$22","v":"00:00:00"},{"$f":"Time!VPV$22","v":"00:00:00"},{"$f":"Time!VPW$22","v":"00:00:00"},{"$f":"Time!VPX$22","v":"00:00:00"},{"$f":"Time!VPY$22","v":"00:00:00"},{"$f":"Time!VPZ$22","v":"00:00:00"},{"$f":"Time!VQA$22","v":"00:00:00"},{"$f":"Time!VQB$22","v":"00:00:00"},{"$f":"Time!VQC$22","v":"00:00:00"},{"$f":"Time!VQD$22","v":"00:00:00"},{"$f":"Time!VQE$22","v":"00:00:00"},{"$f":"Time!VQF$22","v":"00:00:00"},{"$f":"Time!VQG$22","v":"00:00:00"},{"$f":"Time!VQH$22","v":"00:00:00"},{"$f":"Time!VQI$22","v":"00:00:00"},{"$f":"Time!VQJ$22","v":"00:00:00"},{"$f":"Time!VQK$22","v":"00:00:00"},{"$f":"Time!VQL$22","v":"00:00:00"},{"$f":"Time!VQM$22","v":"00:00:00"},{"$f":"Time!VQN$22","v":"00:00:00"},{"$f":"Time!VQO$22","v":"00:00:00"},{"$f":"Time!VQP$22","v":"00:00:00"},{"$f":"Time!VQQ$22","v":"00:00:00"},{"$f":"Time!VQR$22","v":"00:00:00"},{"$f":"Time!VQS$22","v":"00:00:00"},{"$f":"Time!VQT$22","v":"00:00:00"},{"$f":"Time!VQU$22","v":"00:00:00"},{"$f":"Time!VQV$22","v":"00:00:00"},{"$f":"Time!VQW$22","v":"00:00:00"},{"$f":"Time!VQX$22","v":"00:00:00"},{"$f":"Time!VQY$22","v":"00:00:00"},{"$f":"Time!VQZ$22","v":"00:00:00"},{"$f":"Time!VRA$22","v":"00:00:00"},{"$f":"Time!VRB$22","v":"00:00:00"},{"$f":"Time!VRC$22","v":"00:00:00"},{"$f":"Time!VRD$22","v":"00:00:00"},{"$f":"Time!VRE$22","v":"00:00:00"},{"$f":"Time!VRF$22","v":"00:00:00"},{"$f":"Time!VRG$22","v":"00:00:00"},{"$f":"Time!VRH$22","v":"00:00:00"},{"$f":"Time!VRI$22","v":"00:00:00"},{"$f":"Time!VRJ$22","v":"00:00:00"},{"$f":"Time!VRK$22","v":"00:00:00"},{"$f":"Time!VRL$22","v":"00:00:00"},{"$f":"Time!VRM$22","v":"00:00:00"},{"$f":"Time!VRN$22","v":"00:00:00"},{"$f":"Time!VRO$22","v":"00:00:00"},{"$f":"Time!VRP$22","v":"00:00:00"},{"$f":"Time!VRQ$22","v":"00:00:00"},{"$f":"Time!VRR$22","v":"00:00:00"},{"$f":"Time!VRS$22","v":"00:00:00"},{"$f":"Time!VRT$22","v":"00:00:00"},{"$f":"Time!VRU$22","v":"00:00:00"},{"$f":"Time!VRV$22","v":"00:00:00"},{"$f":"Time!VRW$22","v":"00:00:00"},{"$f":"Time!VRX$22","v":"00:00:00"},{"$f":"Time!VRY$22","v":"00:00:00"},{"$f":"Time!VRZ$22","v":"00:00:00"},{"$f":"Time!VSA$22","v":"00:00:00"},{"$f":"Time!VSB$22","v":"00:00:00"},{"$f":"Time!VSC$22","v":"00:00:00"},{"$f":"Time!VSD$22","v":"00:00:00"},{"$f":"Time!VSE$22","v":"00:00:00"},{"$f":"Time!VSF$22","v":"00:00:00"},{"$f":"Time!VSG$22","v":"00:00:00"},{"$f":"Time!VSH$22","v":"00:00:00"},{"$f":"Time!VSI$22","v":"00:00:00"},{"$f":"Time!VSJ$22","v":"00:00:00"},{"$f":"Time!VSK$22","v":"00:00:00"},{"$f":"Time!VSL$22","v":"00:00:00"},{"$f":"Time!VSM$22","v":"00:00:00"},{"$f":"Time!VSN$22","v":"00:00:00"},{"$f":"Time!VSO$22","v":"00:00:00"},{"$f":"Time!VSP$22","v":"00:00:00"},{"$f":"Time!VSQ$22","v":"00:00:00"},{"$f":"Time!VSR$22","v":"00:00:00"},{"$f":"Time!VSS$22","v":"00:00:00"},{"$f":"Time!VST$22","v":"00:00:00"},{"$f":"Time!VSU$22","v":"00:00:00"},{"$f":"Time!VSV$22","v":"00:00:00"},{"$f":"Time!VSW$22","v":"00:00:00"},{"$f":"Time!VSX$22","v":"00:00:00"},{"$f":"Time!VSY$22","v":"00:00:00"},{"$f":"Time!VSZ$22","v":"00:00:00"},{"$f":"Time!VTA$22","v":"00:00:00"},{"$f":"Time!VTB$22","v":"00:00:00"},{"$f":"Time!VTC$22","v":"00:00:00"},{"$f":"Time!VTD$22","v":"00:00:00"},{"$f":"Time!VTE$22","v":"00:00:00"},{"$f":"Time!VTF$22","v":"00:00:00"},{"$f":"Time!VTG$22","v":"00:00:00"},{"$f":"Time!VTH$22","v":"00:00:00"},{"$f":"Time!VTI$22","v":"00:00:00"},{"$f":"Time!VTJ$22","v":"00:00:00"},{"$f":"Time!VTK$22","v":"00:00:00"},{"$f":"Time!VTL$22","v":"00:00:00"},{"$f":"Time!VTM$22","v":"00:00:00"},{"$f":"Time!VTN$22","v":"00:00:00"},{"$f":"Time!VTO$22","v":"00:00:00"},{"$f":"Time!VTP$22","v":"00:00:00"},{"$f":"Time!VTQ$22","v":"00:00:00"},{"$f":"Time!VTR$22","v":"00:00:00"},{"$f":"Time!VTS$22","v":"00:00:00"},{"$f":"Time!VTT$22","v":"00:00:00"},{"$f":"Time!VTU$22","v":"00:00:00"},{"$f":"Time!VTV$22","v":"00:00:00"},{"$f":"Time!VTW$22","v":"00:00:00"},{"$f":"Time!VTX$22","v":"00:00:00"},{"$f":"Time!VTY$22","v":"00:00:00"},{"$f":"Time!VTZ$22","v":"00:00:00"},{"$f":"Time!VUA$22","v":"00:00:00"},{"$f":"Time!VUB$22","v":"00:00:00"},{"$f":"Time!VUC$22","v":"00:00:00"},{"$f":"Time!VUD$22","v":"00:00:00"},{"$f":"Time!VUE$22","v":"00:00:00"},{"$f":"Time!VUF$22","v":"00:00:00"},{"$f":"Time!VUG$22","v":"00:00:00"},{"$f":"Time!VUH$22","v":"00:00:00"},{"$f":"Time!VUI$22","v":"00:00:00"},{"$f":"Time!VUJ$22","v":"00:00:00"},{"$f":"Time!VUK$22","v":"00:00:00"},{"$f":"Time!VUL$22","v":"00:00:00"},{"$f":"Time!VUM$22","v":"00:00:00"},{"$f":"Time!VUN$22","v":"00:00:00"},{"$f":"Time!VUO$22","v":"00:00:00"},{"$f":"Time!VUP$22","v":"00:00:00"},{"$f":"Time!VUQ$22","v":"00:00:00"},{"$f":"Time!VUR$22","v":"00:00:00"},{"$f":"Time!VUS$22","v":"00:00:00"},{"$f":"Time!VUT$22","v":"00:00:00"},{"$f":"Time!VUU$22","v":"00:00:00"},{"$f":"Time!VUV$22","v":"00:00:00"},{"$f":"Time!VUW$22","v":"00:00:00"},{"$f":"Time!VUX$22","v":"00:00:00"},{"$f":"Time!VUY$22","v":"00:00:00"},{"$f":"Time!VUZ$22","v":"00:00:00"},{"$f":"Time!VVA$22","v":"00:00:00"},{"$f":"Time!VVB$22","v":"00:00:00"},{"$f":"Time!VVC$22","v":"00:00:00"},{"$f":"Time!VVD$22","v":"00:00:00"},{"$f":"Time!VVE$22","v":"00:00:00"},{"$f":"Time!VVF$22","v":"00:00:00"},{"$f":"Time!VVG$22","v":"00:00:00"},{"$f":"Time!VVH$22","v":"00:00:00"},{"$f":"Time!VVI$22","v":"00:00:00"},{"$f":"Time!VVJ$22","v":"00:00:00"},{"$f":"Time!VVK$22","v":"00:00:00"},{"$f":"Time!VVL$22","v":"00:00:00"},{"$f":"Time!VVM$22","v":"00:00:00"},{"$f":"Time!VVN$22","v":"00:00:00"},{"$f":"Time!VVO$22","v":"00:00:00"},{"$f":"Time!VVP$22","v":"00:00:00"},{"$f":"Time!VVQ$22","v":"00:00:00"},{"$f":"Time!VVR$22","v":"00:00:00"},{"$f":"Time!VVS$22","v":"00:00:00"},{"$f":"Time!VVT$22","v":"00:00:00"},{"$f":"Time!VVU$22","v":"00:00:00"},{"$f":"Time!VVV$22","v":"00:00:00"},{"$f":"Time!VVW$22","v":"00:00:00"},{"$f":"Time!VVX$22","v":"00:00:00"},{"$f":"Time!VVY$22","v":"00:00:00"},{"$f":"Time!VVZ$22","v":"00:00:00"},{"$f":"Time!VWA$22","v":"00:00:00"},{"$f":"Time!VWB$22","v":"00:00:00"},{"$f":"Time!VWC$22","v":"00:00:00"},{"$f":"Time!VWD$22","v":"00:00:00"},{"$f":"Time!VWE$22","v":"00:00:00"},{"$f":"Time!VWF$22","v":"00:00:00"},{"$f":"Time!VWG$22","v":"00:00:00"},{"$f":"Time!VWH$22","v":"00:00:00"},{"$f":"Time!VWI$22","v":"00:00:00"},{"$f":"Time!VWJ$22","v":"00:00:00"},{"$f":"Time!VWK$22","v":"00:00:00"},{"$f":"Time!VWL$22","v":"00:00:00"},{"$f":"Time!VWM$22","v":"00:00:00"},{"$f":"Time!VWN$22","v":"00:00:00"},{"$f":"Time!VWO$22","v":"00:00:00"},{"$f":"Time!VWP$22","v":"00:00:00"},{"$f":"Time!VWQ$22","v":"00:00:00"},{"$f":"Time!VWR$22","v":"00:00:00"},{"$f":"Time!VWS$22","v":"00:00:00"},{"$f":"Time!VWT$22","v":"00:00:00"},{"$f":"Time!VWU$22","v":"00:00:00"},{"$f":"Time!VWV$22","v":"00:00:00"},{"$f":"Time!VWW$22","v":"00:00:00"},{"$f":"Time!VWX$22","v":"00:00:00"},{"$f":"Time!VWY$22","v":"00:00:00"},{"$f":"Time!VWZ$22","v":"00:00:00"},{"$f":"Time!VXA$22","v":"00:00:00"},{"$f":"Time!VXB$22","v":"00:00:00"},{"$f":"Time!VXC$22","v":"00:00:00"},{"$f":"Time!VXD$22","v":"00:00:00"},{"$f":"Time!VXE$22","v":"00:00:00"},{"$f":"Time!VXF$22","v":"00:00:00"},{"$f":"Time!VXG$22","v":"00:00:00"},{"$f":"Time!VXH$22","v":"00:00:00"},{"$f":"Time!VXI$22","v":"00:00:00"},{"$f":"Time!VXJ$22","v":"00:00:00"},{"$f":"Time!VXK$22","v":"00:00:00"},{"$f":"Time!VXL$22","v":"00:00:00"},{"$f":"Time!VXM$22","v":"00:00:00"},{"$f":"Time!VXN$22","v":"00:00:00"},{"$f":"Time!VXO$22","v":"00:00:00"},{"$f":"Time!VXP$22","v":"00:00:00"},{"$f":"Time!VXQ$22","v":"00:00:00"},{"$f":"Time!VXR$22","v":"00:00:00"},{"$f":"Time!VXS$22","v":"00:00:00"},{"$f":"Time!VXT$22","v":"00:00:00"},{"$f":"Time!VXU$22","v":"00:00:00"},{"$f":"Time!VXV$22","v":"00:00:00"},{"$f":"Time!VXW$22","v":"00:00:00"},{"$f":"Time!VXX$22","v":"00:00:00"},{"$f":"Time!VXY$22","v":"00:00:00"},{"$f":"Time!VXZ$22","v":"00:00:00"},{"$f":"Time!VYA$22","v":"00:00:00"},{"$f":"Time!VYB$22","v":"00:00:00"},{"$f":"Time!VYC$22","v":"00:00:00"},{"$f":"Time!VYD$22","v":"00:00:00"},{"$f":"Time!VYE$22","v":"00:00:00"},{"$f":"Time!VYF$22","v":"00:00:00"},{"$f":"Time!VYG$22","v":"00:00:00"},{"$f":"Time!VYH$22","v":"00:00:00"},{"$f":"Time!VYI$22","v":"00:00:00"},{"$f":"Time!VYJ$22","v":"00:00:00"},{"$f":"Time!VYK$22","v":"00:00:00"},{"$f":"Time!VYL$22","v":"00:00:00"},{"$f":"Time!VYM$22","v":"00:00:00"},{"$f":"Time!VYN$22","v":"00:00:00"},{"$f":"Time!VYO$22","v":"00:00:00"},{"$f":"Time!VYP$22","v":"00:00:00"},{"$f":"Time!VYQ$22","v":"00:00:00"},{"$f":"Time!VYR$22","v":"00:00:00"},{"$f":"Time!VYS$22","v":"00:00:00"},{"$f":"Time!VYT$22","v":"00:00:00"},{"$f":"Time!VYU$22","v":"00:00:00"},{"$f":"Time!VYV$22","v":"00:00:00"},{"$f":"Time!VYW$22","v":"00:00:00"},{"$f":"Time!VYX$22","v":"00:00:00"},{"$f":"Time!VYY$22","v":"00:00:00"},{"$f":"Time!VYZ$22","v":"00:00:00"},{"$f":"Time!VZA$22","v":"00:00:00"},{"$f":"Time!VZB$22","v":"00:00:00"},{"$f":"Time!VZC$22","v":"00:00:00"},{"$f":"Time!VZD$22","v":"00:00:00"},{"$f":"Time!VZE$22","v":"00:00:00"},{"$f":"Time!VZF$22","v":"00:00:00"},{"$f":"Time!VZG$22","v":"00:00:00"},{"$f":"Time!VZH$22","v":"00:00:00"},{"$f":"Time!VZI$22","v":"00:00:00"},{"$f":"Time!VZJ$22","v":"00:00:00"},{"$f":"Time!VZK$22","v":"00:00:00"},{"$f":"Time!VZL$22","v":"00:00:00"},{"$f":"Time!VZM$22","v":"00:00:00"},{"$f":"Time!VZN$22","v":"00:00:00"},{"$f":"Time!VZO$22","v":"00:00:00"},{"$f":"Time!VZP$22","v":"00:00:00"},{"$f":"Time!VZQ$22","v":"00:00:00"},{"$f":"Time!VZR$22","v":"00:00:00"},{"$f":"Time!VZS$22","v":"00:00:00"},{"$f":"Time!VZT$22","v":"00:00:00"},{"$f":"Time!VZU$22","v":"00:00:00"},{"$f":"Time!VZV$22","v":"00:00:00"},{"$f":"Time!VZW$22","v":"00:00:00"},{"$f":"Time!VZX$22","v":"00:00:00"},{"$f":"Time!VZY$22","v":"00:00:00"},{"$f":"Time!VZZ$22","v":"00:00:00"},{"$f":"Time!WAA$22","v":"00:00:00"},{"$f":"Time!WAB$22","v":"00:00:00"},{"$f":"Time!WAC$22","v":"00:00:00"},{"$f":"Time!WAD$22","v":"00:00:00"},{"$f":"Time!WAE$22","v":"00:00:00"},{"$f":"Time!WAF$22","v":"00:00:00"},{"$f":"Time!WAG$22","v":"00:00:00"},{"$f":"Time!WAH$22","v":"00:00:00"},{"$f":"Time!WAI$22","v":"00:00:00"},{"$f":"Time!WAJ$22","v":"00:00:00"},{"$f":"Time!WAK$22","v":"00:00:00"},{"$f":"Time!WAL$22","v":"00:00:00"},{"$f":"Time!WAM$22","v":"00:00:00"},{"$f":"Time!WAN$22","v":"00:00:00"},{"$f":"Time!WAO$22","v":"00:00:00"},{"$f":"Time!WAP$22","v":"00:00:00"},{"$f":"Time!WAQ$22","v":"00:00:00"},{"$f":"Time!WAR$22","v":"00:00:00"},{"$f":"Time!WAS$22","v":"00:00:00"},{"$f":"Time!WAT$22","v":"00:00:00"},{"$f":"Time!WAU$22","v":"00:00:00"},{"$f":"Time!WAV$22","v":"00:00:00"},{"$f":"Time!WAW$22","v":"00:00:00"},{"$f":"Time!WAX$22","v":"00:00:00"},{"$f":"Time!WAY$22","v":"00:00:00"},{"$f":"Time!WAZ$22","v":"00:00:00"},{"$f":"Time!WBA$22","v":"00:00:00"},{"$f":"Time!WBB$22","v":"00:00:00"},{"$f":"Time!WBC$22","v":"00:00:00"},{"$f":"Time!WBD$22","v":"00:00:00"},{"$f":"Time!WBE$22","v":"00:00:00"},{"$f":"Time!WBF$22","v":"00:00:00"},{"$f":"Time!WBG$22","v":"00:00:00"},{"$f":"Time!WBH$22","v":"00:00:00"},{"$f":"Time!WBI$22","v":"00:00:00"},{"$f":"Time!WBJ$22","v":"00:00:00"},{"$f":"Time!WBK$22","v":"00:00:00"},{"$f":"Time!WBL$22","v":"00:00:00"},{"$f":"Time!WBM$22","v":"00:00:00"},{"$f":"Time!WBN$22","v":"00:00:00"},{"$f":"Time!WBO$22","v":"00:00:00"},{"$f":"Time!WBP$22","v":"00:00:00"},{"$f":"Time!WBQ$22","v":"00:00:00"},{"$f":"Time!WBR$22","v":"00:00:00"},{"$f":"Time!WBS$22","v":"00:00:00"},{"$f":"Time!WBT$22","v":"00:00:00"},{"$f":"Time!WBU$22","v":"00:00:00"},{"$f":"Time!WBV$22","v":"00:00:00"},{"$f":"Time!WBW$22","v":"00:00:00"},{"$f":"Time!WBX$22","v":"00:00:00"},{"$f":"Time!WBY$22","v":"00:00:00"},{"$f":"Time!WBZ$22","v":"00:00:00"},{"$f":"Time!WCA$22","v":"00:00:00"},{"$f":"Time!WCB$22","v":"00:00:00"},{"$f":"Time!WCC$22","v":"00:00:00"},{"$f":"Time!WCD$22","v":"00:00:00"},{"$f":"Time!WCE$22","v":"00:00:00"},{"$f":"Time!WCF$22","v":"00:00:00"},{"$f":"Time!WCG$22","v":"00:00:00"},{"$f":"Time!WCH$22","v":"00:00:00"},{"$f":"Time!WCI$22","v":"00:00:00"},{"$f":"Time!WCJ$22","v":"00:00:00"},{"$f":"Time!WCK$22","v":"00:00:00"},{"$f":"Time!WCL$22","v":"00:00:00"},{"$f":"Time!WCM$22","v":"00:00:00"},{"$f":"Time!WCN$22","v":"00:00:00"},{"$f":"Time!WCO$22","v":"00:00:00"},{"$f":"Time!WCP$22","v":"00:00:00"},{"$f":"Time!WCQ$22","v":"00:00:00"},{"$f":"Time!WCR$22","v":"00:00:00"},{"$f":"Time!WCS$22","v":"00:00:00"},{"$f":"Time!WCT$22","v":"00:00:00"},{"$f":"Time!WCU$22","v":"00:00:00"},{"$f":"Time!WCV$22","v":"00:00:00"},{"$f":"Time!WCW$22","v":"00:00:00"},{"$f":"Time!WCX$22","v":"00:00:00"},{"$f":"Time!WCY$22","v":"00:00:00"},{"$f":"Time!WCZ$22","v":"00:00:00"},{"$f":"Time!WDA$22","v":"00:00:00"},{"$f":"Time!WDB$22","v":"00:00:00"},{"$f":"Time!WDC$22","v":"00:00:00"},{"$f":"Time!WDD$22","v":"00:00:00"},{"$f":"Time!WDE$22","v":"00:00:00"},{"$f":"Time!WDF$22","v":"00:00:00"},{"$f":"Time!WDG$22","v":"00:00:00"},{"$f":"Time!WDH$22","v":"00:00:00"},{"$f":"Time!WDI$22","v":"00:00:00"},{"$f":"Time!WDJ$22","v":"00:00:00"},{"$f":"Time!WDK$22","v":"00:00:00"},{"$f":"Time!WDL$22","v":"00:00:00"},{"$f":"Time!WDM$22","v":"00:00:00"},{"$f":"Time!WDN$22","v":"00:00:00"},{"$f":"Time!WDO$22","v":"00:00:00"},{"$f":"Time!WDP$22","v":"00:00:00"},{"$f":"Time!WDQ$22","v":"00:00:00"},{"$f":"Time!WDR$22","v":"00:00:00"},{"$f":"Time!WDS$22","v":"00:00:00"},{"$f":"Time!WDT$22","v":"00:00:00"},{"$f":"Time!WDU$22","v":"00:00:00"},{"$f":"Time!WDV$22","v":"00:00:00"},{"$f":"Time!WDW$22","v":"00:00:00"},{"$f":"Time!WDX$22","v":"00:00:00"},{"$f":"Time!WDY$22","v":"00:00:00"},{"$f":"Time!WDZ$22","v":"00:00:00"},{"$f":"Time!WEA$22","v":"00:00:00"},{"$f":"Time!WEB$22","v":"00:00:00"},{"$f":"Time!WEC$22","v":"00:00:00"},{"$f":"Time!WED$22","v":"00:00:00"},{"$f":"Time!WEE$22","v":"00:00:00"},{"$f":"Time!WEF$22","v":"00:00:00"},{"$f":"Time!WEG$22","v":"00:00:00"},{"$f":"Time!WEH$22","v":"00:00:00"},{"$f":"Time!WEI$22","v":"00:00:00"},{"$f":"Time!WEJ$22","v":"00:00:00"},{"$f":"Time!WEK$22","v":"00:00:00"},{"$f":"Time!WEL$22","v":"00:00:00"},{"$f":"Time!WEM$22","v":"00:00:00"},{"$f":"Time!WEN$22","v":"00:00:00"},{"$f":"Time!WEO$22","v":"00:00:00"},{"$f":"Time!WEP$22","v":"00:00:00"},{"$f":"Time!WEQ$22","v":"00:00:00"},{"$f":"Time!WER$22","v":"00:00:00"},{"$f":"Time!WES$22","v":"00:00:00"},{"$f":"Time!WET$22","v":"00:00:00"},{"$f":"Time!WEU$22","v":"00:00:00"},{"$f":"Time!WEV$22","v":"00:00:00"},{"$f":"Time!WEW$22","v":"00:00:00"},{"$f":"Time!WEX$22","v":"00:00:00"},{"$f":"Time!WEY$22","v":"00:00:00"},{"$f":"Time!WEZ$22","v":"00:00:00"},{"$f":"Time!WFA$22","v":"00:00:00"},{"$f":"Time!WFB$22","v":"00:00:00"},{"$f":"Time!WFC$22","v":"00:00:00"},{"$f":"Time!WFD$22","v":"00:00:00"},{"$f":"Time!WFE$22","v":"00:00:00"},{"$f":"Time!WFF$22","v":"00:00:00"},{"$f":"Time!WFG$22","v":"00:00:00"},{"$f":"Time!WFH$22","v":"00:00:00"},{"$f":"Time!WFI$22","v":"00:00:00"},{"$f":"Time!WFJ$22","v":"00:00:00"},{"$f":"Time!WFK$22","v":"00:00:00"},{"$f":"Time!WFL$22","v":"00:00:00"},{"$f":"Time!WFM$22","v":"00:00:00"},{"$f":"Time!WFN$22","v":"00:00:00"},{"$f":"Time!WFO$22","v":"00:00:00"},{"$f":"Time!WFP$22","v":"00:00:00"},{"$f":"Time!WFQ$22","v":"00:00:00"},{"$f":"Time!WFR$22","v":"00:00:00"},{"$f":"Time!WFS$22","v":"00:00:00"},{"$f":"Time!WFT$22","v":"00:00:00"},{"$f":"Time!WFU$22","v":"00:00:00"},{"$f":"Time!WFV$22","v":"00:00:00"},{"$f":"Time!WFW$22","v":"00:00:00"},{"$f":"Time!WFX$22","v":"00:00:00"},{"$f":"Time!WFY$22","v":"00:00:00"},{"$f":"Time!WFZ$22","v":"00:00:00"},{"$f":"Time!WGA$22","v":"00:00:00"},{"$f":"Time!WGB$22","v":"00:00:00"},{"$f":"Time!WGC$22","v":"00:00:00"},{"$f":"Time!WGD$22","v":"00:00:00"},{"$f":"Time!WGE$22","v":"00:00:00"},{"$f":"Time!WGF$22","v":"00:00:00"},{"$f":"Time!WGG$22","v":"00:00:00"},{"$f":"Time!WGH$22","v":"00:00:00"},{"$f":"Time!WGI$22","v":"00:00:00"},{"$f":"Time!WGJ$22","v":"00:00:00"},{"$f":"Time!WGK$22","v":"00:00:00"},{"$f":"Time!WGL$22","v":"00:00:00"},{"$f":"Time!WGM$22","v":"00:00:00"},{"$f":"Time!WGN$22","v":"00:00:00"},{"$f":"Time!WGO$22","v":"00:00:00"},{"$f":"Time!WGP$22","v":"00:00:00"},{"$f":"Time!WGQ$22","v":"00:00:00"},{"$f":"Time!WGR$22","v":"00:00:00"},{"$f":"Time!WGS$22","v":"00:00:00"},{"$f":"Time!WGT$22","v":"00:00:00"},{"$f":"Time!WGU$22","v":"00:00:00"},{"$f":"Time!WGV$22","v":"00:00:00"},{"$f":"Time!WGW$22","v":"00:00:00"},{"$f":"Time!WGX$22","v":"00:00:00"},{"$f":"Time!WGY$22","v":"00:00:00"},{"$f":"Time!WGZ$22","v":"00:00:00"},{"$f":"Time!WHA$22","v":"00:00:00"},{"$f":"Time!WHB$22","v":"00:00:00"},{"$f":"Time!WHC$22","v":"00:00:00"},{"$f":"Time!WHD$22","v":"00:00:00"},{"$f":"Time!WHE$22","v":"00:00:00"},{"$f":"Time!WHF$22","v":"00:00:00"},{"$f":"Time!WHG$22","v":"00:00:00"},{"$f":"Time!WHH$22","v":"00:00:00"},{"$f":"Time!WHI$22","v":"00:00:00"},{"$f":"Time!WHJ$22","v":"00:00:00"},{"$f":"Time!WHK$22","v":"00:00:00"},{"$f":"Time!WHL$22","v":"00:00:00"},{"$f":"Time!WHM$22","v":"00:00:00"},{"$f":"Time!WHN$22","v":"00:00:00"},{"$f":"Time!WHO$22","v":"00:00:00"},{"$f":"Time!WHP$22","v":"00:00:00"},{"$f":"Time!WHQ$22","v":"00:00:00"},{"$f":"Time!WHR$22","v":"00:00:00"},{"$f":"Time!WHS$22","v":"00:00:00"},{"$f":"Time!WHT$22","v":"00:00:00"},{"$f":"Time!WHU$22","v":"00:00:00"},{"$f":"Time!WHV$22","v":"00:00:00"},{"$f":"Time!WHW$22","v":"00:00:00"},{"$f":"Time!WHX$22","v":"00:00:00"},{"$f":"Time!WHY$22","v":"00:00:00"},{"$f":"Time!WHZ$22","v":"00:00:00"},{"$f":"Time!WIA$22","v":"00:00:00"},{"$f":"Time!WIB$22","v":"00:00:00"},{"$f":"Time!WIC$22","v":"00:00:00"},{"$f":"Time!WID$22","v":"00:00:00"},{"$f":"Time!WIE$22","v":"00:00:00"},{"$f":"Time!WIF$22","v":"00:00:00"},{"$f":"Time!WIG$22","v":"00:00:00"},{"$f":"Time!WIH$22","v":"00:00:00"},{"$f":"Time!WII$22","v":"00:00:00"},{"$f":"Time!WIJ$22","v":"00:00:00"},{"$f":"Time!WIK$22","v":"00:00:00"},{"$f":"Time!WIL$22","v":"00:00:00"},{"$f":"Time!WIM$22","v":"00:00:00"},{"$f":"Time!WIN$22","v":"00:00:00"},{"$f":"Time!WIO$22","v":"00:00:00"},{"$f":"Time!WIP$22","v":"00:00:00"},{"$f":"Time!WIQ$22","v":"00:00:00"},{"$f":"Time!WIR$22","v":"00:00:00"},{"$f":"Time!WIS$22","v":"00:00:00"},{"$f":"Time!WIT$22","v":"00:00:00"},{"$f":"Time!WIU$22","v":"00:00:00"},{"$f":"Time!WIV$22","v":"00:00:00"},{"$f":"Time!WIW$22","v":"00:00:00"},{"$f":"Time!WIX$22","v":"00:00:00"},{"$f":"Time!WIY$22","v":"00:00:00"},{"$f":"Time!WIZ$22","v":"00:00:00"},{"$f":"Time!WJA$22","v":"00:00:00"},{"$f":"Time!WJB$22","v":"00:00:00"},{"$f":"Time!WJC$22","v":"00:00:00"},{"$f":"Time!WJD$22","v":"00:00:00"},{"$f":"Time!WJE$22","v":"00:00:00"},{"$f":"Time!WJF$22","v":"00:00:00"},{"$f":"Time!WJG$22","v":"00:00:00"},{"$f":"Time!WJH$22","v":"00:00:00"},{"$f":"Time!WJI$22","v":"00:00:00"},{"$f":"Time!WJJ$22","v":"00:00:00"},{"$f":"Time!WJK$22","v":"00:00:00"},{"$f":"Time!WJL$22","v":"00:00:00"},{"$f":"Time!WJM$22","v":"00:00:00"},{"$f":"Time!WJN$22","v":"00:00:00"},{"$f":"Time!WJO$22","v":"00:00:00"},{"$f":"Time!WJP$22","v":"00:00:00"},{"$f":"Time!WJQ$22","v":"00:00:00"},{"$f":"Time!WJR$22","v":"00:00:00"},{"$f":"Time!WJS$22","v":"00:00:00"},{"$f":"Time!WJT$22","v":"00:00:00"},{"$f":"Time!WJU$22","v":"00:00:00"},{"$f":"Time!WJV$22","v":"00:00:00"},{"$f":"Time!WJW$22","v":"00:00:00"},{"$f":"Time!WJX$22","v":"00:00:00"},{"$f":"Time!WJY$22","v":"00:00:00"},{"$f":"Time!WJZ$22","v":"00:00:00"},{"$f":"Time!WKA$22","v":"00:00:00"},{"$f":"Time!WKB$22","v":"00:00:00"},{"$f":"Time!WKC$22","v":"00:00:00"},{"$f":"Time!WKD$22","v":"00:00:00"},{"$f":"Time!WKE$22","v":"00:00:00"},{"$f":"Time!WKF$22","v":"00:00:00"},{"$f":"Time!WKG$22","v":"00:00:00"},{"$f":"Time!WKH$22","v":"00:00:00"},{"$f":"Time!WKI$22","v":"00:00:00"},{"$f":"Time!WKJ$22","v":"00:00:00"},{"$f":"Time!WKK$22","v":"00:00:00"},{"$f":"Time!WKL$22","v":"00:00:00"},{"$f":"Time!WKM$22","v":"00:00:00"},{"$f":"Time!WKN$22","v":"00:00:00"},{"$f":"Time!WKO$22","v":"00:00:00"},{"$f":"Time!WKP$22","v":"00:00:00"},{"$f":"Time!WKQ$22","v":"00:00:00"},{"$f":"Time!WKR$22","v":"00:00:00"},{"$f":"Time!WKS$22","v":"00:00:00"},{"$f":"Time!WKT$22","v":"00:00:00"},{"$f":"Time!WKU$22","v":"00:00:00"},{"$f":"Time!WKV$22","v":"00:00:00"},{"$f":"Time!WKW$22","v":"00:00:00"},{"$f":"Time!WKX$22","v":"00:00:00"},{"$f":"Time!WKY$22","v":"00:00:00"},{"$f":"Time!WKZ$22","v":"00:00:00"},{"$f":"Time!WLA$22","v":"00:00:00"},{"$f":"Time!WLB$22","v":"00:00:00"},{"$f":"Time!WLC$22","v":"00:00:00"},{"$f":"Time!WLD$22","v":"00:00:00"},{"$f":"Time!WLE$22","v":"00:00:00"},{"$f":"Time!WLF$22","v":"00:00:00"},{"$f":"Time!WLG$22","v":"00:00:00"},{"$f":"Time!WLH$22","v":"00:00:00"},{"$f":"Time!WLI$22","v":"00:00:00"},{"$f":"Time!WLJ$22","v":"00:00:00"},{"$f":"Time!WLK$22","v":"00:00:00"},{"$f":"Time!WLL$22","v":"00:00:00"},{"$f":"Time!WLM$22","v":"00:00:00"},{"$f":"Time!WLN$22","v":"00:00:00"},{"$f":"Time!WLO$22","v":"00:00:00"},{"$f":"Time!WLP$22","v":"00:00:00"},{"$f":"Time!WLQ$22","v":"00:00:00"},{"$f":"Time!WLR$22","v":"00:00:00"},{"$f":"Time!WLS$22","v":"00:00:00"},{"$f":"Time!WLT$22","v":"00:00:00"},{"$f":"Time!WLU$22","v":"00:00:00"},{"$f":"Time!WLV$22","v":"00:00:00"},{"$f":"Time!WLW$22","v":"00:00:00"},{"$f":"Time!WLX$22","v":"00:00:00"},{"$f":"Time!WLY$22","v":"00:00:00"},{"$f":"Time!WLZ$22","v":"00:00:00"},{"$f":"Time!WMA$22","v":"00:00:00"},{"$f":"Time!WMB$22","v":"00:00:00"},{"$f":"Time!WMC$22","v":"00:00:00"},{"$f":"Time!WMD$22","v":"00:00:00"},{"$f":"Time!WME$22","v":"00:00:00"},{"$f":"Time!WMF$22","v":"00:00:00"},{"$f":"Time!WMG$22","v":"00:00:00"},{"$f":"Time!WMH$22","v":"00:00:00"},{"$f":"Time!WMI$22","v":"00:00:00"},{"$f":"Time!WMJ$22","v":"00:00:00"},{"$f":"Time!WMK$22","v":"00:00:00"},{"$f":"Time!WML$22","v":"00:00:00"},{"$f":"Time!WMM$22","v":"00:00:00"},{"$f":"Time!WMN$22","v":"00:00:00"},{"$f":"Time!WMO$22","v":"00:00:00"},{"$f":"Time!WMP$22","v":"00:00:00"},{"$f":"Time!WMQ$22","v":"00:00:00"},{"$f":"Time!WMR$22","v":"00:00:00"},{"$f":"Time!WMS$22","v":"00:00:00"},{"$f":"Time!WMT$22","v":"00:00:00"},{"$f":"Time!WMU$22","v":"00:00:00"},{"$f":"Time!WMV$22","v":"00:00:00"},{"$f":"Time!WMW$22","v":"00:00:00"},{"$f":"Time!WMX$22","v":"00:00:00"},{"$f":"Time!WMY$22","v":"00:00:00"},{"$f":"Time!WMZ$22","v":"00:00:00"},{"$f":"Time!WNA$22","v":"00:00:00"},{"$f":"Time!WNB$22","v":"00:00:00"},{"$f":"Time!WNC$22","v":"00:00:00"},{"$f":"Time!WND$22","v":"00:00:00"},{"$f":"Time!WNE$22","v":"00:00:00"},{"$f":"Time!WNF$22","v":"00:00:00"},{"$f":"Time!WNG$22","v":"00:00:00"},{"$f":"Time!WNH$22","v":"00:00:00"},{"$f":"Time!WNI$22","v":"00:00:00"},{"$f":"Time!WNJ$22","v":"00:00:00"},{"$f":"Time!WNK$22","v":"00:00:00"},{"$f":"Time!WNL$22","v":"00:00:00"},{"$f":"Time!WNM$22","v":"00:00:00"},{"$f":"Time!WNN$22","v":"00:00:00"},{"$f":"Time!WNO$22","v":"00:00:00"},{"$f":"Time!WNP$22","v":"00:00:00"},{"$f":"Time!WNQ$22","v":"00:00:00"},{"$f":"Time!WNR$22","v":"00:00:00"},{"$f":"Time!WNS$22","v":"00:00:00"},{"$f":"Time!WNT$22","v":"00:00:00"},{"$f":"Time!WNU$22","v":"00:00:00"},{"$f":"Time!WNV$22","v":"00:00:00"},{"$f":"Time!WNW$22","v":"00:00:00"},{"$f":"Time!WNX$22","v":"00:00:00"},{"$f":"Time!WNY$22","v":"00:00:00"},{"$f":"Time!WNZ$22","v":"00:00:00"},{"$f":"Time!WOA$22","v":"00:00:00"},{"$f":"Time!WOB$22","v":"00:00:00"},{"$f":"Time!WOC$22","v":"00:00:00"},{"$f":"Time!WOD$22","v":"00:00:00"},{"$f":"Time!WOE$22","v":"00:00:00"},{"$f":"Time!WOF$22","v":"00:00:00"},{"$f":"Time!WOG$22","v":"00:00:00"},{"$f":"Time!WOH$22","v":"00:00:00"},{"$f":"Time!WOI$22","v":"00:00:00"},{"$f":"Time!WOJ$22","v":"00:00:00"},{"$f":"Time!WOK$22","v":"00:00:00"},{"$f":"Time!WOL$22","v":"00:00:00"},{"$f":"Time!WOM$22","v":"00:00:00"},{"$f":"Time!WON$22","v":"00:00:00"},{"$f":"Time!WOO$22","v":"00:00:00"},{"$f":"Time!WOP$22","v":"00:00:00"},{"$f":"Time!WOQ$22","v":"00:00:00"},{"$f":"Time!WOR$22","v":"00:00:00"},{"$f":"Time!WOS$22","v":"00:00:00"},{"$f":"Time!WOT$22","v":"00:00:00"},{"$f":"Time!WOU$22","v":"00:00:00"},{"$f":"Time!WOV$22","v":"00:00:00"},{"$f":"Time!WOW$22","v":"00:00:00"},{"$f":"Time!WOX$22","v":"00:00:00"},{"$f":"Time!WOY$22","v":"00:00:00"},{"$f":"Time!WOZ$22","v":"00:00:00"},{"$f":"Time!WPA$22","v":"00:00:00"},{"$f":"Time!WPB$22","v":"00:00:00"},{"$f":"Time!WPC$22","v":"00:00:00"},{"$f":"Time!WPD$22","v":"00:00:00"},{"$f":"Time!WPE$22","v":"00:00:00"},{"$f":"Time!WPF$22","v":"00:00:00"},{"$f":"Time!WPG$22","v":"00:00:00"},{"$f":"Time!WPH$22","v":"00:00:00"},{"$f":"Time!WPI$22","v":"00:00:00"},{"$f":"Time!WPJ$22","v":"00:00:00"},{"$f":"Time!WPK$22","v":"00:00:00"},{"$f":"Time!WPL$22","v":"00:00:00"},{"$f":"Time!WPM$22","v":"00:00:00"},{"$f":"Time!WPN$22","v":"00:00:00"},{"$f":"Time!WPO$22","v":"00:00:00"},{"$f":"Time!WPP$22","v":"00:00:00"},{"$f":"Time!WPQ$22","v":"00:00:00"},{"$f":"Time!WPR$22","v":"00:00:00"},{"$f":"Time!WPS$22","v":"00:00:00"},{"$f":"Time!WPT$22","v":"00:00:00"},{"$f":"Time!WPU$22","v":"00:00:00"},{"$f":"Time!WPV$22","v":"00:00:00"},{"$f":"Time!WPW$22","v":"00:00:00"},{"$f":"Time!WPX$22","v":"00:00:00"},{"$f":"Time!WPY$22","v":"00:00:00"},{"$f":"Time!WPZ$22","v":"00:00:00"},{"$f":"Time!WQA$22","v":"00:00:00"},{"$f":"Time!WQB$22","v":"00:00:00"},{"$f":"Time!WQC$22","v":"00:00:00"},{"$f":"Time!WQD$22","v":"00:00:00"},{"$f":"Time!WQE$22","v":"00:00:00"},{"$f":"Time!WQF$22","v":"00:00:00"},{"$f":"Time!WQG$22","v":"00:00:00"},{"$f":"Time!WQH$22","v":"00:00:00"},{"$f":"Time!WQI$22","v":"00:00:00"},{"$f":"Time!WQJ$22","v":"00:00:00"},{"$f":"Time!WQK$22","v":"00:00:00"},{"$f":"Time!WQL$22","v":"00:00:00"},{"$f":"Time!WQM$22","v":"00:00:00"},{"$f":"Time!WQN$22","v":"00:00:00"},{"$f":"Time!WQO$22","v":"00:00:00"},{"$f":"Time!WQP$22","v":"00:00:00"},{"$f":"Time!WQQ$22","v":"00:00:00"},{"$f":"Time!WQR$22","v":"00:00:00"},{"$f":"Time!WQS$22","v":"00:00:00"},{"$f":"Time!WQT$22","v":"00:00:00"},{"$f":"Time!WQU$22","v":"00:00:00"},{"$f":"Time!WQV$22","v":"00:00:00"},{"$f":"Time!WQW$22","v":"00:00:00"},{"$f":"Time!WQX$22","v":"00:00:00"},{"$f":"Time!WQY$22","v":"00:00:00"},{"$f":"Time!WQZ$22","v":"00:00:00"},{"$f":"Time!WRA$22","v":"00:00:00"},{"$f":"Time!WRB$22","v":"00:00:00"},{"$f":"Time!WRC$22","v":"00:00:00"},{"$f":"Time!WRD$22","v":"00:00:00"},{"$f":"Time!WRE$22","v":"00:00:00"},{"$f":"Time!WRF$22","v":"00:00:00"},{"$f":"Time!WRG$22","v":"00:00:00"},{"$f":"Time!WRH$22","v":"00:00:00"},{"$f":"Time!WRI$22","v":"00:00:00"},{"$f":"Time!WRJ$22","v":"00:00:00"},{"$f":"Time!WRK$22","v":"00:00:00"},{"$f":"Time!WRL$22","v":"00:00:00"},{"$f":"Time!WRM$22","v":"00:00:00"},{"$f":"Time!WRN$22","v":"00:00:00"},{"$f":"Time!WRO$22","v":"00:00:00"},{"$f":"Time!WRP$22","v":"00:00:00"},{"$f":"Time!WRQ$22","v":"00:00:00"},{"$f":"Time!WRR$22","v":"00:00:00"},{"$f":"Time!WRS$22","v":"00:00:00"},{"$f":"Time!WRT$22","v":"00:00:00"},{"$f":"Time!WRU$22","v":"00:00:00"},{"$f":"Time!WRV$22","v":"00:00:00"},{"$f":"Time!WRW$22","v":"00:00:00"},{"$f":"Time!WRX$22","v":"00:00:00"},{"$f":"Time!WRY$22","v":"00:00:00"},{"$f":"Time!WRZ$22","v":"00:00:00"},{"$f":"Time!WSA$22","v":"00:00:00"},{"$f":"Time!WSB$22","v":"00:00:00"},{"$f":"Time!WSC$22","v":"00:00:00"},{"$f":"Time!WSD$22","v":"00:00:00"},{"$f":"Time!WSE$22","v":"00:00:00"},{"$f":"Time!WSF$22","v":"00:00:00"},{"$f":"Time!WSG$22","v":"00:00:00"},{"$f":"Time!WSH$22","v":"00:00:00"},{"$f":"Time!WSI$22","v":"00:00:00"},{"$f":"Time!WSJ$22","v":"00:00:00"},{"$f":"Time!WSK$22","v":"00:00:00"},{"$f":"Time!WSL$22","v":"00:00:00"},{"$f":"Time!WSM$22","v":"00:00:00"},{"$f":"Time!WSN$22","v":"00:00:00"},{"$f":"Time!WSO$22","v":"00:00:00"},{"$f":"Time!WSP$22","v":"00:00:00"},{"$f":"Time!WSQ$22","v":"00:00:00"},{"$f":"Time!WSR$22","v":"00:00:00"},{"$f":"Time!WSS$22","v":"00:00:00"},{"$f":"Time!WST$22","v":"00:00:00"},{"$f":"Time!WSU$22","v":"00:00:00"},{"$f":"Time!WSV$22","v":"00:00:00"},{"$f":"Time!WSW$22","v":"00:00:00"},{"$f":"Time!WSX$22","v":"00:00:00"},{"$f":"Time!WSY$22","v":"00:00:00"},{"$f":"Time!WSZ$22","v":"00:00:00"},{"$f":"Time!WTA$22","v":"00:00:00"},{"$f":"Time!WTB$22","v":"00:00:00"},{"$f":"Time!WTC$22","v":"00:00:00"},{"$f":"Time!WTD$22","v":"00:00:00"},{"$f":"Time!WTE$22","v":"00:00:00"},{"$f":"Time!WTF$22","v":"00:00:00"},{"$f":"Time!WTG$22","v":"00:00:00"},{"$f":"Time!WTH$22","v":"00:00:00"},{"$f":"Time!WTI$22","v":"00:00:00"},{"$f":"Time!WTJ$22","v":"00:00:00"},{"$f":"Time!WTK$22","v":"00:00:00"},{"$f":"Time!WTL$22","v":"00:00:00"},{"$f":"Time!WTM$22","v":"00:00:00"},{"$f":"Time!WTN$22","v":"00:00:00"},{"$f":"Time!WTO$22","v":"00:00:00"},{"$f":"Time!WTP$22","v":"00:00:00"},{"$f":"Time!WTQ$22","v":"00:00:00"},{"$f":"Time!WTR$22","v":"00:00:00"},{"$f":"Time!WTS$22","v":"00:00:00"},{"$f":"Time!WTT$22","v":"00:00:00"},{"$f":"Time!WTU$22","v":"00:00:00"},{"$f":"Time!WTV$22","v":"00:00:00"},{"$f":"Time!WTW$22","v":"00:00:00"},{"$f":"Time!WTX$22","v":"00:00:00"},{"$f":"Time!WTY$22","v":"00:00:00"},{"$f":"Time!WTZ$22","v":"00:00:00"},{"$f":"Time!WUA$22","v":"00:00:00"},{"$f":"Time!WUB$22","v":"00:00:00"},{"$f":"Time!WUC$22","v":"00:00:00"},{"$f":"Time!WUD$22","v":"00:00:00"},{"$f":"Time!WUE$22","v":"00:00:00"},{"$f":"Time!WUF$22","v":"00:00:00"},{"$f":"Time!WUG$22","v":"00:00:00"},{"$f":"Time!WUH$22","v":"00:00:00"},{"$f":"Time!WUI$22","v":"00:00:00"},{"$f":"Time!WUJ$22","v":"00:00:00"},{"$f":"Time!WUK$22","v":"00:00:00"},{"$f":"Time!WUL$22","v":"00:00:00"},{"$f":"Time!WUM$22","v":"00:00:00"},{"$f":"Time!WUN$22","v":"00:00:00"},{"$f":"Time!WUO$22","v":"00:00:00"},{"$f":"Time!WUP$22","v":"00:00:00"},{"$f":"Time!WUQ$22","v":"00:00:00"},{"$f":"Time!WUR$22","v":"00:00:00"},{"$f":"Time!WUS$22","v":"00:00:00"},{"$f":"Time!WUT$22","v":"00:00:00"},{"$f":"Time!WUU$22","v":"00:00:00"},{"$f":"Time!WUV$22","v":"00:00:00"},{"$f":"Time!WUW$22","v":"00:00:00"},{"$f":"Time!WUX$22","v":"00:00:00"},{"$f":"Time!WUY$22","v":"00:00:00"},{"$f":"Time!WUZ$22","v":"00:00:00"},{"$f":"Time!WVA$22","v":"00:00:00"},{"$f":"Time!WVB$22","v":"00:00:00"},{"$f":"Time!WVC$22","v":"00:00:00"},{"$f":"Time!WVD$22","v":"00:00:00"},{"$f":"Time!WVE$22","v":"00:00:00"},{"$f":"Time!WVF$22","v":"00:00:00"},{"$f":"Time!WVG$22","v":"00:00:00"},{"$f":"Time!WVH$22","v":"00:00:00"},{"$f":"Time!WVI$22","v":"00:00:00"},{"$f":"Time!WVJ$22","v":"00:00:00"},{"$f":"Time!WVK$22","v":"00:00:00"},{"$f":"Time!WVL$22","v":"00:00:00"},{"$f":"Time!WVM$22","v":"00:00:00"},{"$f":"Time!WVN$22","v":"00:00:00"},{"$f":"Time!WVO$22","v":"00:00:00"},{"$f":"Time!WVP$22","v":"00:00:00"},{"$f":"Time!WVQ$22","v":"00:00:00"},{"$f":"Time!WVR$22","v":"00:00:00"},{"$f":"Time!WVS$22","v":"00:00:00"},{"$f":"Time!WVT$22","v":"00:00:00"},{"$f":"Time!WVU$22","v":"00:00:00"},{"$f":"Time!WVV$22","v":"00:00:00"},{"$f":"Time!WVW$22","v":"00:00:00"},{"$f":"Time!WVX$22","v":"00:00:00"},{"$f":"Time!WVY$22","v":"00:00:00"},{"$f":"Time!WVZ$22","v":"00:00:00"},{"$f":"Time!WWA$22","v":"00:00:00"},{"$f":"Time!WWB$22","v":"00:00:00"},{"$f":"Time!WWC$22","v":"00:00:00"},{"$f":"Time!WWD$22","v":"00:00:00"},{"$f":"Time!WWE$22","v":"00:00:00"},{"$f":"Time!WWF$22","v":"00:00:00"},{"$f":"Time!WWG$22","v":"00:00:00"},{"$f":"Time!WWH$22","v":"00:00:00"},{"$f":"Time!WWI$22","v":"00:00:00"},{"$f":"Time!WWJ$22","v":"00:00:00"},{"$f":"Time!WWK$22","v":"00:00:00"},{"$f":"Time!WWL$22","v":"00:00:00"},{"$f":"Time!WWM$22","v":"00:00:00"},{"$f":"Time!WWN$22","v":"00:00:00"},{"$f":"Time!WWO$22","v":"00:00:00"},{"$f":"Time!WWP$22","v":"00:00:00"},{"$f":"Time!WWQ$22","v":"00:00:00"},{"$f":"Time!WWR$22","v":"00:00:00"},{"$f":"Time!WWS$22","v":"00:00:00"},{"$f":"Time!WWT$22","v":"00:00:00"},{"$f":"Time!WWU$22","v":"00:00:00"},{"$f":"Time!WWV$22","v":"00:00:00"},{"$f":"Time!WWW$22","v":"00:00:00"},{"$f":"Time!WWX$22","v":"00:00:00"},{"$f":"Time!WWY$22","v":"00:00:00"},{"$f":"Time!WWZ$22","v":"00:00:00"},{"$f":"Time!WXA$22","v":"00:00:00"},{"$f":"Time!WXB$22","v":"00:00:00"},{"$f":"Time!WXC$22","v":"00:00:00"},{"$f":"Time!WXD$22","v":"00:00:00"},{"$f":"Time!WXE$22","v":"00:00:00"},{"$f":"Time!WXF$22","v":"00:00:00"},{"$f":"Time!WXG$22","v":"00:00:00"},{"$f":"Time!WXH$22","v":"00:00:00"},{"$f":"Time!WXI$22","v":"00:00:00"},{"$f":"Time!WXJ$22","v":"00:00:00"},{"$f":"Time!WXK$22","v":"00:00:00"},{"$f":"Time!WXL$22","v":"00:00:00"},{"$f":"Time!WXM$22","v":"00:00:00"},{"$f":"Time!WXN$22","v":"00:00:00"},{"$f":"Time!WXO$22","v":"00:00:00"},{"$f":"Time!WXP$22","v":"00:00:00"},{"$f":"Time!WXQ$22","v":"00:00:00"},{"$f":"Time!WXR$22","v":"00:00:00"},{"$f":"Time!WXS$22","v":"00:00:00"},{"$f":"Time!WXT$22","v":"00:00:00"},{"$f":"Time!WXU$22","v":"00:00:00"},{"$f":"Time!WXV$22","v":"00:00:00"},{"$f":"Time!WXW$22","v":"00:00:00"},{"$f":"Time!WXX$22","v":"00:00:00"},{"$f":"Time!WXY$22","v":"00:00:00"},{"$f":"Time!WXZ$22","v":"00:00:00"},{"$f":"Time!WYA$22","v":"00:00:00"},{"$f":"Time!WYB$22","v":"00:00:00"},{"$f":"Time!WYC$22","v":"00:00:00"},{"$f":"Time!WYD$22","v":"00:00:00"},{"$f":"Time!WYE$22","v":"00:00:00"},{"$f":"Time!WYF$22","v":"00:00:00"},{"$f":"Time!WYG$22","v":"00:00:00"},{"$f":"Time!WYH$22","v":"00:00:00"},{"$f":"Time!WYI$22","v":"00:00:00"},{"$f":"Time!WYJ$22","v":"00:00:00"},{"$f":"Time!WYK$22","v":"00:00:00"},{"$f":"Time!WYL$22","v":"00:00:00"},{"$f":"Time!WYM$22","v":"00:00:00"},{"$f":"Time!WYN$22","v":"00:00:00"},{"$f":"Time!WYO$22","v":"00:00:00"},{"$f":"Time!WYP$22","v":"00:00:00"},{"$f":"Time!WYQ$22","v":"00:00:00"},{"$f":"Time!WYR$22","v":"00:00:00"},{"$f":"Time!WYS$22","v":"00:00:00"},{"$f":"Time!WYT$22","v":"00:00:00"},{"$f":"Time!WYU$22","v":"00:00:00"},{"$f":"Time!WYV$22","v":"00:00:00"},{"$f":"Time!WYW$22","v":"00:00:00"},{"$f":"Time!WYX$22","v":"00:00:00"},{"$f":"Time!WYY$22","v":"00:00:00"},{"$f":"Time!WYZ$22","v":"00:00:00"},{"$f":"Time!WZA$22","v":"00:00:00"},{"$f":"Time!WZB$22","v":"00:00:00"},{"$f":"Time!WZC$22","v":"00:00:00"},{"$f":"Time!WZD$22","v":"00:00:00"},{"$f":"Time!WZE$22","v":"00:00:00"},{"$f":"Time!WZF$22","v":"00:00:00"},{"$f":"Time!WZG$22","v":"00:00:00"},{"$f":"Time!WZH$22","v":"00:00:00"},{"$f":"Time!WZI$22","v":"00:00:00"},{"$f":"Time!WZJ$22","v":"00:00:00"},{"$f":"Time!WZK$22","v":"00:00:00"},{"$f":"Time!WZL$22","v":"00:00:00"},{"$f":"Time!WZM$22","v":"00:00:00"},{"$f":"Time!WZN$22","v":"00:00:00"},{"$f":"Time!WZO$22","v":"00:00:00"},{"$f":"Time!WZP$22","v":"00:00:00"},{"$f":"Time!WZQ$22","v":"00:00:00"},{"$f":"Time!WZR$22","v":"00:00:00"},{"$f":"Time!WZS$22","v":"00:00:00"},{"$f":"Time!WZT$22","v":"00:00:00"},{"$f":"Time!WZU$22","v":"00:00:00"},{"$f":"Time!WZV$22","v":"00:00:00"},{"$f":"Time!WZW$22","v":"00:00:00"},{"$f":"Time!WZX$22","v":"00:00:00"},{"$f":"Time!WZY$22","v":"00:00:00"},{"$f":"Time!WZZ$22","v":"00:00:00"},{"$f":"Time!XAA$22","v":"00:00:00"},{"$f":"Time!XAB$22","v":"00:00:00"},{"$f":"Time!XAC$22","v":"00:00:00"},{"$f":"Time!XAD$22","v":"00:00:00"},{"$f":"Time!XAE$22","v":"00:00:00"},{"$f":"Time!XAF$22","v":"00:00:00"},{"$f":"Time!XAG$22","v":"00:00:00"},{"$f":"Time!XAH$22","v":"00:00:00"},{"$f":"Time!XAI$22","v":"00:00:00"},{"$f":"Time!XAJ$22","v":"00:00:00"},{"$f":"Time!XAK$22","v":"00:00:00"},{"$f":"Time!XAL$22","v":"00:00:00"},{"$f":"Time!XAM$22","v":"00:00:00"},{"$f":"Time!XAN$22","v":"00:00:00"},{"$f":"Time!XAO$22","v":"00:00:00"},{"$f":"Time!XAP$22","v":"00:00:00"},{"$f":"Time!XAQ$22","v":"00:00:00"},{"$f":"Time!XAR$22","v":"00:00:00"},{"$f":"Time!XAS$22","v":"00:00:00"},{"$f":"Time!XAT$22","v":"00:00:00"},{"$f":"Time!XAU$22","v":"00:00:00"},{"$f":"Time!XAV$22","v":"00:00:00"},{"$f":"Time!XAW$22","v":"00:00:00"},{"$f":"Time!XAX$22","v":"00:00:00"},{"$f":"Time!XAY$22","v":"00:00:00"},{"$f":"Time!XAZ$22","v":"00:00:00"},{"$f":"Time!XBA$22","v":"00:00:00"},{"$f":"Time!XBB$22","v":"00:00:00"},{"$f":"Time!XBC$22","v":"00:00:00"},{"$f":"Time!XBD$22","v":"00:00:00"},{"$f":"Time!XBE$22","v":"00:00:00"},{"$f":"Time!XBF$22","v":"00:00:00"},{"$f":"Time!XBG$22","v":"00:00:00"},{"$f":"Time!XBH$22","v":"00:00:00"},{"$f":"Time!XBI$22","v":"00:00:00"},{"$f":"Time!XBJ$22","v":"00:00:00"},{"$f":"Time!XBK$22","v":"00:00:00"},{"$f":"Time!XBL$22","v":"00:00:00"},{"$f":"Time!XBM$22","v":"00:00:00"},{"$f":"Time!XBN$22","v":"00:00:00"},{"$f":"Time!XBO$22","v":"00:00:00"},{"$f":"Time!XBP$22","v":"00:00:00"},{"$f":"Time!XBQ$22","v":"00:00:00"},{"$f":"Time!XBR$22","v":"00:00:00"},{"$f":"Time!XBS$22","v":"00:00:00"},{"$f":"Time!XBT$22","v":"00:00:00"},{"$f":"Time!XBU$22","v":"00:00:00"},{"$f":"Time!XBV$22","v":"00:00:00"},{"$f":"Time!XBW$22","v":"00:00:00"},{"$f":"Time!XBX$22","v":"00:00:00"},{"$f":"Time!XBY$22","v":"00:00:00"},{"$f":"Time!XBZ$22","v":"00:00:00"},{"$f":"Time!XCA$22","v":"00:00:00"},{"$f":"Time!XCB$22","v":"00:00:00"},{"$f":"Time!XCC$22","v":"00:00:00"},{"$f":"Time!XCD$22","v":"00:00:00"},{"$f":"Time!XCE$22","v":"00:00:00"},{"$f":"Time!XCF$22","v":"00:00:00"},{"$f":"Time!XCG$22","v":"00:00:00"},{"$f":"Time!XCH$22","v":"00:00:00"},{"$f":"Time!XCI$22","v":"00:00:00"},{"$f":"Time!XCJ$22","v":"00:00:00"},{"$f":"Time!XCK$22","v":"00:00:00"},{"$f":"Time!XCL$22","v":"00:00:00"},{"$f":"Time!XCM$22","v":"00:00:00"},{"$f":"Time!XCN$22","v":"00:00:00"},{"$f":"Time!XCO$22","v":"00:00:00"},{"$f":"Time!XCP$22","v":"00:00:00"},{"$f":"Time!XCQ$22","v":"00:00:00"},{"$f":"Time!XCR$22","v":"00:00:00"},{"$f":"Time!XCS$22","v":"00:00:00"},{"$f":"Time!XCT$22","v":"00:00:00"},{"$f":"Time!XCU$22","v":"00:00:00"},{"$f":"Time!XCV$22","v":"00:00:00"},{"$f":"Time!XCW$22","v":"00:00:00"},{"$f":"Time!XCX$22","v":"00:00:00"},{"$f":"Time!XCY$22","v":"00:00:00"},{"$f":"Time!XCZ$22","v":"00:00:00"},{"$f":"Time!XDA$22","v":"00:00:00"},{"$f":"Time!XDB$22","v":"00:00:00"},{"$f":"Time!XDC$22","v":"00:00:00"},{"$f":"Time!XDD$22","v":"00:00:00"},{"$f":"Time!XDE$22","v":"00:00:00"},{"$f":"Time!XDF$22","v":"00:00:00"},{"$f":"Time!XDG$22","v":"00:00:00"},{"$f":"Time!XDH$22","v":"00:00:00"},{"$f":"Time!XDI$22","v":"00:00:00"},{"$f":"Time!XDJ$22","v":"00:00:00"},{"$f":"Time!XDK$22","v":"00:00:00"},{"$f":"Time!XDL$22","v":"00:00:00"},{"$f":"Time!XDM$22","v":"00:00:00"},{"$f":"Time!XDN$22","v":"00:00:00"},{"$f":"Time!XDO$22","v":"00:00:00"},{"$f":"Time!XDP$22","v":"00:00:00"},{"$f":"Time!XDQ$22","v":"00:00:00"},{"$f":"Time!XDR$22","v":"00:00:00"},{"$f":"Time!XDS$22","v":"00:00:00"},{"$f":"Time!XDT$22","v":"00:00:00"},{"$f":"Time!XDU$22","v":"00:00:00"},{"$f":"Time!XDV$22","v":"00:00:00"},{"$f":"Time!XDW$22","v":"00:00:00"},{"$f":"Time!XDX$22","v":"00:00:00"},{"$f":"Time!XDY$22","v":"00:00:00"},{"$f":"Time!XDZ$22","v":"00:00:00"},{"$f":"Time!XEA$22","v":"00:00:00"},{"$f":"Time!XEB$22","v":"00:00:00"},{"$f":"Time!XEC$22","v":"00:00:00"},{"$f":"Time!XED$22","v":"00:00:00"},{"$f":"Time!XEE$22","v":"00:00:00"},{"$f":"Time!XEF$22","v":"00:00:00"},{"$f":"Time!XEG$22","v":"00:00:00"},{"$f":"Time!XEH$22","v":"00:00:00"},{"$f":"Time!XEI$22","v":"00:00:00"},{"$f":"Time!XEJ$22","v":"00:00:00"},{"$f":"Time!XEK$22","v":"00:00:00"},{"$f":"Time!XEL$22","v":"00:00:00"},{"$f":"Time!XEM$22","v":"00:00:00"},{"$f":"Time!XEN$22","v":"00:00:00"},{"$f":"Time!XEO$22","v":"00:00:00"},{"$f":"Time!XEP$22","v":"00:00:00"},{"$f":"Time!XEQ$22","v":"00:00:00"},{"$f":"Time!XER$22","v":"00:00:00"},{"$f":"Time!XES$22","v":"00:00:00"},{"$f":"Time!XET$22","v":"00:00:00"},{"$f":"Time!XEU$22","v":"00:00:00"},{"$f":"Time!XEV$22","v":"00:00:00"},{"$f":"Time!XEW$22","v":"00:00:00"},{"$f":"Time!XEX$22","v":"00:00:00"},{"$f":"Time!XEY$22","v":"00:00:00"},{"$f":"Time!XEZ$22","v":"00:00:00"},{"$f":"Time!XFA$22","v":"00:00:00"},{"$f":"Time!XFB$22","v":"00:00:00"},{"$f":"Time!XFC$22","v":"00:00:00"},{"$f":"Time!XFD$22","v":"00:00:00"}]
[null,null,null,null,{"$f":"Time!E$23","v":"Model Period END"},null,null,null,null,{"$f":"Time!J$23","v":"2020-03-31"},{"$f":"Time!K$23","v":"2021-03-31"},{"$f":"Time!L$23","v":"2022-03-31"},{"$f":"Time!M$23","v":"2023-03-31"},{"$f":"Time!N$23","v":"2024-03-31"},{"$f":"Time!O$23","v":"2025-03-31"},{"$f":"Time!P$23","v":"2026-03-31"},{"$f":"Time!Q$23","v":"2027-03-31"},{"$f":"Time!R$23","v":"2028-03-31"},{"$f":"Time!S$23","v":"00:00:00"},{"$f":"Time!T$23","v":"00:00:00"},{"$f":"Time!U$23","v":"00:00:00"},{"$f":"Time!V$23","v":"00:00:00"},{"$f":"Time!W$23","v":"00:00:00"},{"$f":"Time!X$23","v":"00:00:00"},{"$f":"Time!Y$23","v":"00:00:00"},{"$f":"Time!Z$23","v":"00:00:00"},{"$f":"Time!AA$23","v":"00:00:00"},{"$f":"Time!AB$23","v":"00:00:00"},{"$f":"Time!AC$23","v":"00:00:00"},{"$f":"Time!AD$23","v":"00:00:00"},{"$f":"Time!AE$23","v":"00:00:00"},{"$f":"Time!AF$23","v":"00:00:00"},{"$f":"Time!AG$23","v":"00:00:00"},{"$f":"Time!AH$23","v":"00:00:00"},{"$f":"Time!AI$23","v":"00:00:00"},{"$f":"Time!AJ$23","v":"00:00:00"},{"$f":"Time!AK$23","v":"00:00:00"},{"$f":"Time!AL$23","v":"00:00:00"},{"$f":"Time!AM$23","v":"00:00:00"},{"$f":"Time!AN$23","v":"00:00:00"},{"$f":"Time!AO$23","v":"00:00:00"},{"$f":"Time!AP$23","v":"00:00:00"},{"$f":"Time!AQ$23","v":"00:00:00"},{"$f":"Time!AR$23","v":"00:00:00"},{"$f":"Time!AS$23","v":"00:00:00"},{"$f":"Time!AT$23","v":"00:00:00"},{"$f":"Time!AU$23","v":"00:00:00"},{"$f":"Time!AV$23","v":"00:00:00"},{"$f":"Time!AW$23","v":"00:00:00"},{"$f":"Time!AX$23","v":"00:00:00"},{"$f":"Time!AY$23","v":"00:00:00"},{"$f":"Time!AZ$23","v":"00:00:00"},{"$f":"Time!BA$23","v":"00:00:00"},{"$f":"Time!BB$23","v":"00:00:00"},{"$f":"Time!BC$23","v":"00:00:00"},{"$f":"Time!BD$23","v":"00:00:00"},{"$f":"Time!BE$23","v":"00:00:00"},{"$f":"Time!BF$23","v":"00:00:00"},{"$f":"Time!BG$23","v":"00:00:00"},{"$f":"Time!BH$23","v":"00:00:00"},{"$f":"Time!BI$23","v":"00:00:00"},{"$f":"Time!BJ$23","v":"00:00:00"},{"$f":"Time!BK$23","v":"00:00:00"},{"$f":"Time!BL$23","v":"00:00:00"},{"$f":"Time!BM$23","v":"00:00:00"},{"$f":"Time!BN$23","v":"00:00:00"},{"$f":"Time!BO$23","v":"00:00:00"},{"$f":"Time!BP$23","v":"00:00:00"},{"$f":"Time!BQ$23","v":"00:00:00"},{"$f":"Time!BR$23","v":"00:00:00"},{"$f":"Time!BS$23","v":"00:00:00"},{"$f":"Time!BT$23","v":"00:00:00"},{"$f":"Time!BU$23","v":"00:00:00"},{"$f":"Time!BV$23","v":"00:00:00"},{"$f":"Time!BW$23","v":"00:00:00"},{"$f":"Time!BX$23","v":"00:00:00"},{"$f":"Time!BY$23","v":"00:00:00"},{"$f":"Time!BZ$23","v":"00:00:00"},{"$f":"Time!CA$23","v":"00:00:00"},{"$f":"Time!CB$23","v":"00:00:00"},{"$f":"Time!CC$23","v":"00:00:00"},{"$f":"Time!CD$23","v":"00:00:00"},{"$f":"Time!CE$23","v":"00:00:00"},{"$f":"Time!CF$23","v":"00:00:00"},{"$f":"Time!CG$23","v":"00:00:00"},{"$f":"Time!CH$23","v":"00:00:00"},{"$f":"Time!CI$23","v":"00:00:00"},{"$f":"Time!CJ$23","v":"00:00:00"},{"$f":"Time!CK$23","v":"00:00:00"},{"$f":"Time!CL$23","v":"00:00:00"},{"$f":"Time!CM$23","v":"00:00:00"},{"$f":"Time!CN$23","v":"00:00:00"},{"$f":"Time!CO$23","v":"00:00:00"},{"$f":"Time!CP$23","v":"00:00:00"},{"$f":"Time!CQ$23","v":"00:00:00"},{"$f":"Time!CR$23","v":"00:00:00"},{"$f":"Time!CS$23","v":"00:00:00"},{"$f":"Time!CT$23","v":"00:00:00"},{"$f":"Time!CU$23","v":"00:00:00"},{"$f":"Time!CV$23","v":"00:00:00"},{"$f":"Time!CW$23","v":"00:00:00"},{"$f":"Time!CX$23","v":"00:00:00"},{"$f":"Time!CY$23","v":"00:00:00"},{"$f":"Time!CZ$23","v":"00:00:00"},{"$f":"Time!DA$23","v":"00:00:00"},{"$f":"Time!DB$23","v":"00:00:00"},{"$f":"Time!DC$23","v":"00:00:00"},{"$f":"Time!DD$23","v":"00:00:00"},{"$f":"Time!DE$23","v":"00:00:00"},{"$f":"Time!DF$23","v":"00:00:00"},{"$f":"Time!DG$23","v":"00:00:00"},{"$f":"Time!DH$23","v":"00:00:00"},{"$f":"Time!DI$23","v":"00:00:00"},{"$f":"Time!DJ$23","v":"00:00:00"},{"$f":"Time!DK$23","v":"00:00:00"},{"$f":"Time!DL$23","v":"00:00:00"},{"$f":"Time!DM$23","v":"00:00:00"},{"$f":"Time!DN$23","v":"00:00:00"},{"$f":"Time!DO$23","v":"00:00:00"},{"$f":"Time!DP$23","v":"00:00:00"},{"$f":"Time!DQ$23","v":"00:00:00"},{"$f":"Time!DR$23","v":"00:00:00"},{"$f":"Time!DS$23","v":"00:00:00"},{"$f":"Time!DT$23","v":"00:00:00"},{"$f":"Time!DU$23","v":"00:00:00"},{"$f":"Time!DV$23","v":"00:00:00"},{"$f":"Time!DW$23","v":"00:00:00"},{"$f":"Time!DX$23","v":"00:00:00"},{"$f":"Time!DY$23","v":"00:00:00"},{"$f":"Time!DZ$23","v":"00:00:00"},{"$f":"Time!EA$23","v":"00:00:00"},{"$f":"Time!EB$23","v":"00:00:00"},{"$f":"Time!EC$23","v":"00:00:00"},{"$f":"Time!ED$23","v":"00:00:00"},{"$f":"Time!EE$23","v":"00:00:00"},{"$f":"Time!EF$23","v":"00:00:00"},{"$f":"Time!EG$23","v":"00:00:00"},{"$f":"Time!EH$23","v":"00:00:00"},{"$f":"Time!EI$23","v":"00:00:00"},{"$f":"Time!EJ$23","v":"00:00:00"},{"$f":"Time!EK$23","v":"00:00:00"},{"$f":"Time!EL$23","v":"00:00:00"},{"$f":"Time!EM$23","v":"00:00:00"},{"$f":"Time!EN$23","v":"00:00:00"},{"$f":"Time!EO$23","v":"00:00:00"},{"$f":"Time!EP$23","v":"00:00:00"},{"$f":"Time!EQ$23","v":"00:00:00"},{"$f":"Time!ER$23","v":"00:00:00"},{"$f":"Time!ES$23","v":"00:00:00"},{"$f":"Time!ET$23","v":"00:00:00"},{"$f":"Time!EU$23","v":"00:00:00"},{"$f":"Time!EV$23","v":"00:00:00"},{"$f":"Time!EW$23","v":"00:00:00"},{"$f":"Time!EX$23","v":"00:00:00"},{"$f":"Time!EY$23","v":"00:00:00"},{"$f":"Time!EZ$23","v":"00:00:00"},{"$f":"Time!FA$23","v":"00:00:00"},{"$f":"Time!FB$23","v":"00:00:00"},{"$f":"Time!FC$23","v":"00:00:00"},{"$f":"Time!FD$23","v":"00:00:00"},{"$f":"Time!FE$23","v":"00:00:00"},{"$f":"Time!FF$23","v":"00:00:00"},{"$f":"Time!FG$23","v":"00:00:00"},{"$f":"Time!FH$23","v":"00:00:00"},{"$f":"Time!FI$23","v":"00:00:00"},{"$f":"Time!FJ$23","v":"00:00:00"},{"$f":"Time!FK$23","v":"00:00:00"},{"$f":"Time!FL$23","v":"00:00:00"},{"$f":"Time!FM$23","v":"00:00:00"},{"$f":"Time!FN$23","v":"00:00:00"},{"$f":"Time!FO$23","v":"00:00:00"},{"$f":"Time!FP$23","v":"00:00:00"},{"$f":"Time!FQ$23","v":"00:00:00"},{"$f":"Time!FR$23","v":"00:00:00"},{"$f":"Time!FS$23","v":"00:00:00"},{"$f":"Time!FT$23","v":"00:00:00"},{"$f":"Time!FU$23","v":"00:00:00"},{"$f":"Time!FV$23","v":"00:00:00"},{"$f":"Time!FW$23","v":"00:00:00"},{"$f":"Time!FX$23","v":"00:00:00"},{"$f":"Time!FY$23","v":"00:00:00"},{"$f":"Time!FZ$23","v":"00:00:00"},{"$f":"Time!GA$23","v":"00:00:00"},{"$f":"Time!GB$23","v":"00:00:00"},{"$f":"Time!GC$23","v":"00:00:00"},{"$f":"Time!GD$23","v":"00:00:00"},{"$f":"Time!GE$23","v":"00:00:00"},{"$f":"Time!GF$23","v":"00:00:00"},{"$f":"Time!GG$23","v":"00:00:00"},{"$f":"Time!GH$23","v":"00:00:00"},{"$f":"Time!GI$23","v":"00:00:00"},{"$f":"Time!GJ$23","v":"00:00:00"},{"$f":"Time!GK$23","v":"00:00:00"},{"$f":"Time!GL$23","v":"00:00:00"},{"$f":"Time!GM$23","v":"00:00:00"},{"$f":"Time!GN$23","v":"00:00:00"},{"$f":"Time!GO$23","v":"00:00:00"},{"$f":"Time!GP$23","v":"00:00:00"},{"$f":"Time!GQ$23","v":"00:00:00"},{"$f":"Time!GR$23","v":"00:00:00"},{"$f":"Time!GS$23","v":"00:00:00"},{"$f":"Time!GT$23","v":"00:00:00"},{"$f":"Time!GU$23","v":"00:00:00"},{"$f":"Time!GV$23","v":"00:00:00"},{"$f":"Time!GW$23","v":"00:00:00"},{"$f":"Time!GX$23","v":"00:00:00"},{"$f":"Time!GY$23","v":"00:00:00"},{"$f":"Time!GZ$23","v":"00:00:00"},{"$f":"Time!HA$23","v":"00:00:00"},{"$f":"Time!HB$23","v":"00:00:00"},{"$f":"Time!HC$23","v":"00:00:00"},{"$f":"Time!HD$23","v":"00:00:00"},{"$f":"Time!HE$23","v":"00:00:00"},{"$f":"Time!HF$23","v":"00:00:00"},{"$f":"Time!HG$23","v":"00:00:00"},{"$f":"Time!HH$23","v":"00:00:00"},{"$f":"Time!HI$23","v":"00:00:00"},{"$f":"Time!HJ$23","v":"00:00:00"},{"$f":"Time!HK$23","v":"00:00:00"},{"$f":"Time!HL$23","v":"00:00:00"},{"$f":"Time!HM$23","v":"00:00:00"},{"$f":"Time!HN$23","v":"00:00:00"},{"$f":"Time!HO$23","v":"00:00:00"},{"$f":"Time!HP$23","v":"00:00:00"},{"$f":"Time!HQ$23","v":"00:00:00"},{"$f":"Time!HR$23","v":"00:00:00"},{"$f":"Time!HS$23","v":"00:00:00"},{"$f":"Time!HT$23","v":"00:00:00"},{"$f":"Time!HU$23","v":"00:00:00"},{"$f":"Time!HV$23","v":"00:00:00"},{"$f":"Time!HW$23","v":"00:00:00"},{"$f":"Time!HX$23","v":"00:00:00"},{"$f":"Time!HY$23","v":"00:00:00"},{"$f":"Time!HZ$23","v":"00:00:00"},{"$f":"Time!IA$23","v":"00:00:00"},{"$f":"Time!IB$23","v":"00:00:00"},{"$f":"Time!IC$23","v":"00:00:00"},{"$f":"Time!ID$23","v":"00:00:00"},{"$f":"Time!IE$23","v":"00:00:00"},{"$f":"Time!IF$23","v":"00:00:00"},{"$f":"Time!IG$23","v":"00:00:00"},{"$f":"Time!IH$23","v":"00:00:00"},{"$f":"Time!II$23","v":"00:00:00"},{"$f":"Time!IJ$23","v":"00:00:00"},{"$f":"Time!IK$23","v":"00:00:00"},{"$f":"Time!IL$23","v":"00:00:00"},{"$f":"Time!IM$23","v":"00:00:00"},{"$f":"Time!IN$23","v":"00:00:00"},{"$f":"Time!IO$23","v":"00:00:00"},{"$f":"Time!IP$23","v":"00:00:00"},{"$f":"Time!IQ$23","v":"00:00:00"},{"$f":"Time!IR$23","v":"00:00:00"},{"$f":"Time!IS$23","v":"00:00:00"},{"$f":"Time!IT$23","v":"00:00:00"},{"$f":"Time!IU$23","v":"00:00:00"},{"$f":"Time!IV$23","v":"00:00:00"},{"$f":"Time!IW$23","v":"00:00:00"},{"$f":"Time!IX$23","v":"00:00:00"},{"$f":"Time!IY$23","v":"00:00:00"},{"$f":"Time!IZ$23","v":"00:00:00"},{"$f":"Time!JA$23","v":"00:00:00"},{"$f":"Time!JB$23","v":"00:00:00"},{"$f":"Time!JC$23","v":"00:00:00"},{"$f":"Time!JD$23","v":"00:00:00"},{"$f":"Time!JE$23","v":"00:00:00"},{"$f":"Time!JF$23","v":"00:00:00"},{"$f":"Time!JG$23","v":"00:00:00"},{"$f":"Time!JH$23","v":"00:00:00"},{"$f":"Time!JI$23","v":"00:00:00"},{"$f":"Time!JJ$23","v":"00:00:00"},{"$f":"Time!JK$23","v":"00:00:00"},{"$f":"Time!JL$23","v":"00:00:00"},{"$f":"Time!JM$23","v":"00:00:00"},{"$f":"Time!JN$23","v":"00:00:00"},{"$f":"Time!JO$23","v":"00:00:00"},{"$f":"Time!JP$23","v":"00:00:00"},{"$f":"Time!JQ$23","v":"00:00:00"},{"$f":"Time!JR$23","v":"00:00:00"},{"$f":"Time!JS$23","v":"00:00:00"},{"$f":"Time!JT$23","v":"00:00:00"},{"$f":"Time!JU$23","v":"00:00:00"},{"$f":"Time!JV$23","v":"00:00:00"},{"$f":"Time!JW$23","v":"00:00:00"},{"$f":"Time!JX$23","v":"00:00:00"},{"$f":"Time!JY$23","v":"00:00:00"},{"$f":"Time!JZ$23","v":"00:00:00"},{"$f":"Time!KA$23","v":"00:00:00"},{"$f":"Time!KB$23","v":"00:00:00"},{"$f":"Time!KC$23","v":"00:00:00"},{"$f":"Time!KD$23","v":"00:00:00"},{"$f":"Time!KE$23","v":"00:00:00"},{"$f":"Time!KF$23","v":"00:00:00"},{"$f":"Time!KG$23","v":"00:00:00"},{"$f":"Time!KH$23","v":"00:00:00"},{"$f":"Time!KI$23","v":"00:00:00"},{"$f":"Time!KJ$23","v":"00:00:00"},{"$f":"Time!KK$23","v":"00:00:00"},{"$f":"Time!KL$23","v":"00:00:00"},{"$f":"Time!KM$23","v":"00:00:00"},{"$f":"Time!KN$23","v":"00:00:00"},{"$f":"Time!KO$23","v":"00:00:00"},{"$f":"Time!KP$23","v":"00:00:00"},{"$f":"Time!KQ$23","v":"00:00:00"},{"$f":"Time!KR$23","v":"00:00:00"},{"$f":"Time!KS$23","v":"00:00:00"},{"$f":"Time!KT$23","v":"00:00:00"},{"$f":"Time!KU$23","v":"00:00:00"},{"$f":"Time!KV$23","v":"00:00:00"},{"$f":"Time!KW$23","v":"00:00:00"},{"$f":"Time!KX$23","v":"00:00:00"},{"$f":"Time!KY$23","v":"00:00:00"},{"$f":"Time!KZ$23","v":"00:00:00"},{"$f":"Time!LA$23","v":"00:00:00"},{"$f":"Time!LB$23","v":"00:00:00"},{"$f":"Time!LC$23","v":"00:00:00"},{"$f":"Time!LD$23","v":"00:00:00"},{"$f":"Time!LE$23","v":"00:00:00"},{"$f":"Time!LF$23","v":"00:00:00"},{"$f":"Time!LG$23","v":"00:00:00"},{"$f":"Time!LH$23","v":"00:00:00"},{"$f":"Time!LI$23","v":"00:00:00"},{"$f":"Time!LJ$23","v":"00:00:00"},{"$f":"Time!LK$23","v":"00:00:00"},{"$f":"Time!LL$23","v":"00:00:00"},{"$f":"Time!LM$23","v":"00:00:00"},{"$f":"Time!LN$23","v":"00:00:00"},{"$f":"Time!LO$23","v":"00:00:00"},{"$f":"Time!LP$23","v":"00:00:00"},{"$f":"Time!LQ$23","v":"00:00:00"},{"$f":"Time!LR$23","v":"00:00:00"},{"$f":"Time!LS$23","v":"00:00:00"},{"$f":"Time!LT$23","v":"00:00:00"},{"$f":"Time!LU$23","v":"00:00:00"},{"$f":"Time!LV$23","v":"00:00:00"},{"$f":"Time!LW$23","v":"00:00:00"},{"$f":"Time!LX$23","v":"00:00:00"},{"$f":"Time!LY$23","v":"00:00:00"},{"$f":"Time!LZ$23","v":"00:00:00"},{"$f":"Time!MA$23","v":"00:00:00"},{"$f":"Time!MB$23","v":"00:00:00"},{"$f":"Time!MC$23","v":"00:00:00"},{"$f":"Time!MD$23","v":"00:00:00"},{"$f":"Time!ME$23","v":"00:00:00"},{"$f":"Time!MF$23","v":"00:00:00"},{"$f":"Time!MG$23","v":"00:00:00"},{"$f":"Time!MH$23","v":"00:00:00"},{"$f":"Time!MI$23","v":"00:00:00"},{"$f":"Time!MJ$23","v":"00:00:00"},{"$f":"Time!MK$23","v":"00:00:00"},{"$f":"Time!ML$23","v":"00:00:00"},{"$f":"Time!MM$23","v":"00:00:00"},{"$f":"Time!MN$23","v":"00:00:00"},{"$f":"Time!MO$23","v":"00:00:00"},{"$f":"Time!MP$23","v":"00:00:00"},{"$f":"Time!MQ$23","v":"00:00:00"},{"$f":"Time!MR$23","v":"00:00:00"},{"$f":"Time!MS$23","v":"00:00:00"},{"$f":"Time!MT$23","v":"00:00:00"},{"$f":"Time!MU$23","v":"00:00:00"},{"$f":"Time!MV$23","v":"00:00:00"},{"$f":"Time!MW$23","v":"00:00:00"},{"$f":"Time!MX$23","v":"00:00:00"},{"$f":"Time!MY$23","v":"00:00:00"},{"$f":"Time!MZ$23","v":"00:00:00"},{"$f":"Time!NA$23","v":"00:00:00"},{"$f":"Time!NB$23","v":"00:00:00"},{"$f":"Time!NC$23","v":"00:00:00"},{"$f":"Time!ND$23","v":"00:00:00"},{"$f":"Time!NE$23","v":"00:00:00"},{"$f":"Time!NF$23","v":"00:00:00"},{"$f":"Time!NG$23","v":"00:00:00"},{"$f":"Time!NH$23","v":"00:00:00"},{"$f":"Time!NI$23","v":"00:00:00"},{"$f":"Time!NJ$23","v":"00:00:00"},{"$f":"Time!NK$23","v":"00:00:00"},{"$f":"Time!NL$23","v":"00:00:00"},{"$f":"Time!NM$23","v":"00:00:00"},{"$f":"Time!NN$23","v":"00:00:00"},{"$f":"Time!NO$23","v":"00:00:00"},{"$f":"Time!NP$23","v":"00:00:00"},{"$f":"Time!NQ$23","v":"00:00:00"},{"$f":"Time!NR$23","v":"00:00:00"},{"$f":"Time!NS$23","v":"00:00:00"},{"$f":"Time!NT$23","v":"00:00:00"},{"$f":"Time!NU$23","v":"00:00:00"},{"$f":"Time!NV$23","v":"00:00:00"},{"$f":"Time!NW$23","v":"00:00:00"},{"$f":"Time!NX$23","v":"00:00:00"},{"$f":"Time!NY$23","v":"00:00:00"},{"$f":"Time!NZ$23","v":"00:00:00"},{"$f":"Time!OA$23","v":"00:00:00"},{"$f":"Time!OB$23","v":"00:00:00"},{"$f":"Time!OC$23","v":"00:00:00"},{"$f":"Time!OD$23","v":"00:00:00"},{"$f":"Time!OE$23","v":"00:00:00"},{"$f":"Time!OF$23","v":"00:00:00"},{"$f":"Time!OG$23","v":"00:00:00"},{"$f":"Time!OH$23","v":"00:00:00"},{"$f":"Time!OI$23","v":"00:00:00"},{"$f":"Time!OJ$23","v":"00:00:00"},{"$f":"Time!OK$23","v":"00:00:00"},{"$f":"Time!OL$23","v":"00:00:00"},{"$f":"Time!OM$23","v":"00:00:00"},{"$f":"Time!ON$23","v":"00:00:00"},{"$f":"Time!OO$23","v":"00:00:00"},{"$f":"Time!OP$23","v":"00:00:00"},{"$f":"Time!OQ$23","v":"00:00:00"},{"$f":"Time!OR$23","v":"00:00:00"},{"$f":"Time!OS$23","v":"00:00:00"},{"$f":"Time!OT$23","v":"00:00:00"},{"$f":"Time!OU$23","v":"00:00:00"},{"$f":"Time!OV$23","v":"00:00:00"},{"$f":"Time!OW$23","v":"00:00:00"},{"$f":"Time!OX$23","v":"00:00:00"},{"$f":"Time!OY$23","v":"00:00:00"},{"$f":"Time!OZ$23","v":"00:00:00"},{"$f":"Time!PA$23","v":"00:00:00"},{"$f":"Time!PB$23","v":"00:00:00"},{"$f":"Time!PC$23","v":"00:00:00"},{"$f":"Time!PD$23","v":"00:00:00"},{"$f":"Time!PE$23","v":"00:00:00"},{"$f":"Time!PF$23","v":"00:00:00"},{"$f":"Time!PG$23","v":"00:00:00"},{"$f":"Time!PH$23","v":"00:00:00"},{"$f":"Time!PI$23","v":"00:00:00"},{"$f":"Time!PJ$23","v":"00:00:00"},{"$f":"Time!PK$23","v":"00:00:00"},{"$f":"Time!PL$23","v":"00:00:00"},{"$f":"Time!PM$23","v":"00:00:00"},{"$f":"Time!PN$23","v":"00:00:00"},{"$f":"Time!PO$23","v":"00:00:00"},{"$f":"Time!PP$23","v":"00:00:00"},{"$f":"Time!PQ$23","v":"00:00:00"},{"$f":"Time!PR$23","v":"00:00:00"},{"$f":"Time!PS$23","v":"00:00:00"},{"$f":"Time!PT$23","v":"00:00:00"},{"$f":"Time!PU$23","v":"00:00:00"},{"$f":"Time!PV$23","v":"00:00:00"},{"$f":"Time!PW$23","v":"00:00:00"},{"$f":"Time!PX$23","v":"00:00:00"},{"$f":"Time!PY$23","v":"00:00:00"},{"$f":"Time!PZ$23","v":"00:00:00"},{"$f":"Time!QA$23","v":"00:00:00"},{"$f":"Time!QB$23","v":"00:00:00"},{"$f":"Time!QC$23","v":"00:00:00"},{"$f":"Time!QD$23","v":"00:00:00"},{"$f":"Time!QE$23","v":"00:00:00"},{"$f":"Time!QF$23","v":"00:00:00"},{"$f":"Time!QG$23","v":"00:00:00"},{"$f":"Time!QH$23","v":"00:00:00"},{"$f":"Time!QI$23","v":"00:00:00"},{"$f":"Time!QJ$23","v":"00:00:00"},{"$f":"Time!QK$23","v":"00:00:00"},{"$f":"Time!QL$23","v":"00:00:00"},{"$f":"Time!QM$23","v":"00:00:00"},{"$f":"Time!QN$23","v":"00:00:00"},{"$f":"Time!QO$23","v":"00:00:00"},{"$f":"Time!QP$23","v":"00:00:00"},{"$f":"Time!QQ$23","v":"00:00:00"},{"$f":"Time!QR$23","v":"00:00:00"},{"$f":"Time!QS$23","v":"00:00:00"},{"$f":"Time!QT$23","v":"00:00:00"},{"$f":"Time!QU$23","v":"00:00:00"},{"$f":"Time!QV$23","v":"00:00:00"},{"$f":"Time!QW$23","v":"00:00:00"},{"$f":"Time!QX$23","v":"00:00:00"},{"$f":"Time!QY$23","v":"00:00:00"},{"$f":"Time!QZ$23","v":"00:00:00"},{"$f":"Time!RA$23","v":"00:00:00"},{"$f":"Time!RB$23","v":"00:00:00"},{"$f":"Time!RC$23","v":"00:00:00"},{"$f":"Time!RD$23","v":"00:00:00"},{"$f":"Time!RE$23","v":"00:00:00"},{"$f":"Time!RF$23","v":"00:00:00"},{"$f":"Time!RG$23","v":"00:00:00"},{"$f":"Time!RH$23","v":"00:00:00"},{"$f":"Time!RI$23","v":"00:00:00"},{"$f":"Time!RJ$23","v":"00:00:00"},{"$f":"Time!RK$23","v":"00:00:00"},{"$f":"Time!RL$23","v":"00:00:00"},{"$f":"Time!RM$23","v":"00:00:00"},{"$f":"Time!RN$23","v":"00:00:00"},{"$f":"Time!RO$23","v":"00:00:00"},{"$f":"Time!RP$23","v":"00:00:00"},{"$f":"Time!RQ$23","v":"00:00:00"},{"$f":"Time!RR$23","v":"00:00:00"},{"$f":"Time!RS$23","v":"00:00:00"},{"$f":"Time!RT$23","v":"00:00:00"},{"$f":"Time!RU$23","v":"00:00:00"},{"$f":"Time!RV$23","v":"00:00:00"},{"$f":"Time!RW$23","v":"00:00:00"},{"$f":"Time!RX$23","v":"00:00:00"},{"$f":"Time!RY$23","v":"00:00:00"},{"$f":"Time!RZ$23","v":"00:00:00"},{"$f":"Time!SA$23","v":"00:00:00"},{"$f":"Time!SB$23","v":"00:00:00"},{"$f":"Time!SC$23","v":"00:00:00"},{"$f":"Time!SD$23","v":"00:00:00"},{"$f":"Time!SE$23","v":"00:00:00"},{"$f":"Time!SF$23","v":"00:00:00"},{"$f":"Time!SG$23","v":"00:00:00"},{"$f":"Time!SH$23","v":"00:00:00"},{"$f":"Time!SI$23","v":"00:00:00"},{"$f":"Time!SJ$23","v":"00:00:00"},{"$f":"Time!SK$23","v":"00:00:00"},{"$f":"Time!SL$23","v":"00:00:00"},{"$f":"Time!SM$23","v":"00:00:00"},{"$f":"Time!SN$23","v":"00:00:00"},{"$f":"Time!SO$23","v":"00:00:00"},{"$f":"Time!SP$23","v":"00:00:00"},{"$f":"Time!SQ$23","v":"00:00:00"},{"$f":"Time!SR$23","v":"00:00:00"},{"$f":"Time!SS$23","v":"00:00:00"},{"$f":"Time!ST$23","v":"00:00:00"},{"$f":"Time!SU$23","v":"00:00:00"},{"$f":"Time!SV$23","v":"00:00:00"},{"$f":"Time!SW$23","v":"00:00:00"},{"$f":"Time!SX$23","v":"00:00:00"},{"$f":"Time!SY$23","v":"00:00:00"},{"$f":"Time!SZ$23","v":"00:00:00"},{"$f":"Time!TA$23","v":"00:00:00"},{"$f":"Time!TB$23","v":"00:00:00"},{"$f":"Time!TC$23","v":"00:00:00"},{"$f":"Time!TD$23","v":"00:00:00"},{"$f":"Time!TE$23","v":"00:00:00"},{"$f":"Time!TF$23","v":"00:00:00"},{"$f":"Time!TG$23","v":"00:00:00"},{"$f":"Time!TH$23","v":"00:00:00"},{"$f":"Time!TI$23","v":"00:00:00"},{"$f":"Time!TJ$23","v":"00:00:00"},{"$f":"Time!TK$23","v":"00:00:00"},{"$f":"Time!TL$23","v":"00:00:00"},{"$f":"Time!TM$23","v":"00:00:00"},{"$f":"Time!TN$23","v":"00:00:00"},{"$f":"Time!TO$23","v":"00:00:00"},{"$f":"Time!TP$23","v":"00:00:00"},{"$f":"Time!TQ$23","v":"00:00:00"},{"$f":"Time!TR$23","v":"00:00:00"},{"$f":"Time!TS$23","v":"00:00:00"},{"$f":"Time!TT$23","v":"00:00:00"},{"$f":"Time!TU$23","v":"00:00:00"},{"$f":"Time!TV$23","v":"00:00:00"},{"$f":"Time!TW$23","v":"00:00:00"},{"$f":"Time!TX$23","v":"00:00:00"},{"$f":"Time!TY$23","v":"00:00:00"},{"$f":"Time!TZ$23","v":"00:00:00"},{"$f":"Time!UA$23","v":"00:00:00"},{"$f":"Time!UB$23","v":"00:00:00"},{"$f":"Time!UC$23","v":"00:00:00"},{"$f":"Time!UD$23","v":"00:00:00"},{"$f":"Time!UE$23","v":"00:00:00"},{"$f":"Time!UF$23","v":"00:00:00"},{"$f":"Time!UG$23","v":"00:00:00"},{"$f":"Time!UH$23","v":"00:00:00"},{"$f":"Time!UI$23","v":"00:00:00"},{"$f":"Time!UJ$23","v":"00:00:00"},{"$f":"Time!UK$23","v":"00:00:00"},{"$f":"Time!UL$23","v":"00:00:00"},{"$f":"Time!UM$23","v":"00:00:00"},{"$f":"Time!UN$23","v":"00:00:00"},{"$f":"Time!UO$23","v":"00:00:00"},{"$f":"Time!UP$23","v":"00:00:00"},{"$f":"Time!UQ$23","v":"00:00:00"},{"$f":"Time!UR$23","v":"00:00:00"},{"$f":"Time!US$23","v":"00:00:00"},{"$f":"Time!UT$23","v":"00:00:00"},{"$f":"Time!UU$23","v":"00:00:00"},{"$f":"Time!UV$23","v":"00:00:00"},{"$f":"Time!UW$23","v":"00:00:00"},{"$f":"Time!UX$23","v":"00:00:00"},{"$f":"Time!UY$23","v":"00:00:00"},{"$f":"Time!UZ$23","v":"00:00:00"},{"$f":"Time!VA$23","v":"00:00:00"},{"$f":"Time!VB$23","v":"00:00:00"},{"$f":"Time!VC$23","v":"00:00:00"},{"$f":"Time!VD$23","v":"00:00:00"},{"$f":"Time!VE$23","v":"00:00:00"},{"$f":"Time!VF$23","v":"00:00:00"},{"$f":"Time!VG$23","v":"00:00:00"},{"$f":"Time!VH$23","v":"00:00:00"},{"$f":"Time!VI$23","v":"00:00:00"},{"$f":"Time!VJ$23","v":"00:00:00"},{"$f":"Time!VK$23","v":"00:00:00"},{"$f":"Time!VL$23","v":"00:00:00"},{"$f":"Time!VM$23","v":"00:00:00"},{"$f":"Time!VN$23","v":"00:00:00"},{"$f":"Time!VO$23","v":"00:00:00"},{"$f":"Time!VP$23","v":"00:00:00"},{"$f":"Time!VQ$23","v":"00:00:00"},{"$f":"Time!VR$23","v":"00:00:00"},{"$f":"Time!VS$23","v":"00:00:00"},{"$f":"Time!VT$23","v":"00:00:00"},{"$f":"Time!VU$23","v":"00:00:00"},{"$f":"Time!VV$23","v":"00:00:00"},{"$f":"Time!VW$23","v":"00:00:00"},{"$f":"Time!VX$23","v":"00:00:00"},{"$f":"Time!VY$23","v":"00:00:00"},{"$f":"Time!VZ$23","v":"00:00:00"},{"$f":"Time!WA$23","v":"00:00:00"},{"$f":"Time!WB$23","v":"00:00:00"},{"$f":"Time!WC$23","v":"00:00:00"},{"$f":"Time!WD$23","v":"00:00:00"},{"$f":"Time!WE$23","v":"00:00:00"},{"$f":"Time!WF$23","v":"00:00:00"},{"$f":"Time!WG$23","v":"00:00:00"},{"$f":"Time!WH$23","v":"00:00:00"},{"$f":"Time!WI$23","v":"00:00:00"},{"$f":"Time!WJ$23","v":"00:00:00"},{"$f":"Time!WK$23","v":"00:00:00"},{"$f":"Time!WL$23","v":"00:00:00"},{"$f":"Time!WM$23","v":"00:00:00"},{"$f":"Time!WN$23","v":"00:00:00"},{"$f":"Time!WO$23","v":"00:00:00"},{"$f":"Time!WP$23","v":"00:00:00"},{"$f":"Time!WQ$23","v":"00:00:00"},{"$f":"Time!WR$23","v":"00:00:00"},{"$f":"Time!WS$23","v":"00:00:00"},{"$f":"Time!WT$23","v":"00:00:00"},{"$f":"Time!WU$23","v":"00:00:00"},{"$f":"Time!WV$23","v":"00:00:00"},{"$f":"Time!WW$23","v":"00:00:00"},{"$f":"Time!WX$23","v":"00:00:00"},{"$f":"Time!WY$23","v":"00:00:00"},{"$f":"Time!WZ$23","v":"00:00:00"},{"$f":"Time!XA$23","v":"00:00:00"},{"$f":"Time!XB$23","v":"00:00:00"},{"$f":"Time!XC$23","v":"00:00:00"},{"$f":"Time!XD$23","v":"00:00:00"},{"$f":"Time!XE$23","v":"00:00:00"},{"$f":"Time!XF$23","v":"00:00:00"},{"$f":"Time!XG$23","v":"00:00:00"},{"$f":"Time!XH$23","v":"00:00:00"},{"$f":"Time!XI$23","v":"00:00:00"},{"$f":"Time!XJ$23","v":"00:00:00"},{"$f":"Time!XK$23","v":"00:00:00"},{"$f":"Time!XL$23","v":"00:00:00"},{"$f":"Time!XM$23","v":"00:00:00"},{"$f":"Time!XN$23","v":"00:00:00"},{"$f":"Time!XO$23","v":"00:00:00"},{"$f":"Time!XP$23","v":"00:00:00"},{"$f":"Time!XQ$23","v":"00:00:00"},{"$f":"Time!XR$23","v":"00:00:00"},{"$f":"Time!XS$23","v":"00:00:00"},{"$f":"Time!XT$23","v":"00:00:00"},{"$f":"Time!XU$23","v":"00:00:00"},{"$f":"Time!XV$23","v":"00:00:00"},{"$f":"Time!XW$23","v":"00:00:00"},{"$f":"Time!XX$23","v":"00:00:00"},{"$f":"Time!XY$23","v":"00:00:00"},{"$f":"Time!XZ$23","v":"00:00:00"},{"$f":"Time!YA$23","v":"00:00:00"},{"$f":"Time!YB$23","v":"00:00:00"},{"$f":"Time!YC$23","v":"00:00:00"},{"$f":"Time!YD$23","v":"00:00:00"},{"$f":"Time!YE$23","v":"00:00:00"},{"$f":"Time!YF$23","v":"00:00:00"},{"$f":"Time!YG$23","v":"00:00:00"},{"$f":"Time!YH$23","v":"00:00:00"},{"$f":"Time!YI$23","v":"00:00:00"},{"$f":"Time!YJ$23","v":"00:00:00"},{"$f":"Time!YK$23","v":"00:00:00"},{"$f":"Time!YL$23","v":"00:00:00"},{"$f":"Time!YM$23","v":"00:00:00"},{"$f":"Time!YN$23","v":"00:00:00"},{"$f":"Time!YO$23","v":"00:00:00"},{"$f":"Time!YP$23","v":"00:00:00"},{"$f":"Time!YQ$23","v":"00:00:00"},{"$f":"Time!YR$23","v":"00:00:00"},{"$f":"Time!YS$23","v":"00:00:00"},{"$f":"Time!YT$23","v":"00:00:00"},{"$f":"Time!YU$23","v":"00:00:00"},{"$f":"Time!YV$23","v":"00:00:00"},{"$f":"Time!YW$23","v":"00:00:00"},{"$f":"Time!YX$23","v":"00:00:00"},{"$f":"Time!YY$23","v":"00:00:00"},{"$f":"Time!YZ$23","v":"00:00:00"},{"$f":"Time!ZA$23","v":"00:00:00"},{"$f":"Time!ZB$23","v":"00:00:00"},{"$f":"Time!ZC$23","v":"00:00:00"},{"$f":"Time!ZD$23","v":"00:00:00"},{"$f":"Time!ZE$23","v":"00:00:00"},{"$f":"Time!ZF$23","v":"00:00:00"},{"$f":"Time!ZG$23","v":"00:00:00"},{"$f":"Time!ZH$23","v":"00:00:00"},{"$f":"Time!ZI$23","v":"00:00:00"},{"$f":"Time!ZJ$23","v":"00:00:00"},{"$f":"Time!ZK$23","v":"00:00:00"},{"$f":"Time!ZL$23","v":"00:00:00"},{"$f":"Time!ZM$23","v":"00:00:00"},{"$f":"Time!ZN$23","v":"00:00:00"},{"$f":"Time!ZO$23","v":"00:00:00"},{"$f":"Time!ZP$23","v":"00:00:00"},{"$f":"Time!ZQ$23","v":"00:00:00"},{"$f":"Time!ZR$23","v":"00:00:00"},{"$f":"Time!ZS$23","v":"00:00:00"},{"$f":"Time!ZT$23","v":"00:00:00"},{"$f":"Time!ZU$23","v":"00:00:00"},{"$f":"Time!ZV$23","v":"00:00:00"},{"$f":"Time!ZW$23","v":"00:00:00"},{"$f":"Time!ZX$23","v":"00:00:00"},{"$f":"Time!ZY$23","v":"00:00:00"},{"$f":"Time!ZZ$23","v":"00:00:00"},{"$f":"Time!AAA$23","v":"00:00:00"},{"$f":"Time!AAB$23","v":"00:00:00"},{"$f":"Time!AAC$23","v":"00:00:00"},{"$f":"Time!AAD$23","v":"00:00:00"},{"$f":"Time!AAE$23","v":"00:00:00"},{"$f":"Time!AAF$23","v":"00:00:00"},{"$f":"Time!AAG$23","v":"00:00:00"},{"$f":"Time!AAH$23","v":"00:00:00"},{"$f":"Time!AAI$23","v":"00:00:00"},{"$f":"Time!AAJ$23","v":"00:00:00"},{"$f":"Time!AAK$23","v":"00:00:00"},{"$f":"Time!AAL$23","v":"00:00:00"},{"$f":"Time!AAM$23","v":"00:00:00"},{"$f":"Time!AAN$23","v":"00:00:00"},{"$f":"Time!AAO$23","v":"00:00:00"},{"$f":"Time!AAP$23","v":"00:00:00"},{"$f":"Time!AAQ$23","v":"00:00:00"},{"$f":"Time!AAR$23","v":"00:00:00"},{"$f":"Time!AAS$23","v":"00:00:00"},{"$f":"Time!AAT$23","v":"00:00:00"},{"$f":"Time!AAU$23","v":"00:00:00"},{"$f":"Time!AAV$23","v":"00:00:00"},{"$f":"Time!AAW$23","v":"00:00:00"},{"$f":"Time!AAX$23","v":"00:00:00"},{"$f":"Time!AAY$23","v":"00:00:00"},{"$f":"Time!AAZ$23","v":"00:00:00"},{"$f":"Time!ABA$23","v":"00:00:00"},{"$f":"Time!ABB$23","v":"00:00:00"},{"$f":"Time!ABC$23","v":"00:00:00"},{"$f":"Time!ABD$23","v":"00:00:00"},{"$f":"Time!ABE$23","v":"00:00:00"},{"$f":"Time!ABF$23","v":"00:00:00"},{"$f":"Time!ABG$23","v":"00:00:00"},{"$f":"Time!ABH$23","v":"00:00:00"},{"$f":"Time!ABI$23","v":"00:00:00"},{"$f":"Time!ABJ$23","v":"00:00:00"},{"$f":"Time!ABK$23","v":"00:00:00"},{"$f":"Time!ABL$23","v":"00:00:00"},{"$f":"Time!ABM$23","v":"00:00:00"},{"$f":"Time!ABN$23","v":"00:00:00"},{"$f":"Time!ABO$23","v":"00:00:00"},{"$f":"Time!ABP$23","v":"00:00:00"},{"$f":"Time!ABQ$23","v":"00:00:00"},{"$f":"Time!ABR$23","v":"00:00:00"},{"$f":"Time!ABS$23","v":"00:00:00"},{"$f":"Time!ABT$23","v":"00:00:00"},{"$f":"Time!ABU$23","v":"00:00:00"},{"$f":"Time!ABV$23","v":"00:00:00"},{"$f":"Time!ABW$23","v":"00:00:00"},{"$f":"Time!ABX$23","v":"00:00:00"},{"$f":"Time!ABY$23","v":"00:00:00"},{"$f":"Time!ABZ$23","v":"00:00:00"},{"$f":"Time!ACA$23","v":"00:00:00"},{"$f":"Time!ACB$23","v":"00:00:00"},{"$f":"Time!ACC$23","v":"00:00:00"},{"$f":"Time!ACD$23","v":"00:00:00"},{"$f":"Time!ACE$23","v":"00:00:00"},{"$f":"Time!ACF$23","v":"00:00:00"},{"$f":"Time!ACG$23","v":"00:00:00"},{"$f":"Time!ACH$23","v":"00:00:00"},{"$f":"Time!ACI$23","v":"00:00:00"},{"$f":"Time!ACJ$23","v":"00:00:00"},{"$f":"Time!ACK$23","v":"00:00:00"},{"$f":"Time!ACL$23","v":"00:00:00"},{"$f":"Time!ACM$23","v":"00:00:00"},{"$f":"Time!ACN$23","v":"00:00:00"},{"$f":"Time!ACO$23","v":"00:00:00"},{"$f":"Time!ACP$23","v":"00:00:00"},{"$f":"Time!ACQ$23","v":"00:00:00"},{"$f":"Time!ACR$23","v":"00:00:00"},{"$f":"Time!ACS$23","v":"00:00:00"},{"$f":"Time!ACT$23","v":"00:00:00"},{"$f":"Time!ACU$23","v":"00:00:00"},{"$f":"Time!ACV$23","v":"00:00:00"},{"$f":"Time!ACW$23","v":"00:00:00"},{"$f":"Time!ACX$23","v":"00:00:00"},{"$f":"Time!ACY$23","v":"00:00:00"},{"$f":"Time!ACZ$23","v":"00:00:00"},{"$f":"Time!ADA$23","v":"00:00:00"},{"$f":"Time!ADB$23","v":"00:00:00"},{"$f":"Time!ADC$23","v":"00:00:00"},{"$f":"Time!ADD$23","v":"00:00:00"},{"$f":"Time!ADE$23","v":"00:00:00"},{"$f":"Time!ADF$23","v":"00:00:00"},{"$f":"Time!ADG$23","v":"00:00:00"},{"$f":"Time!ADH$23","v":"00:00:00"},{"$f":"Time!ADI$23","v":"00:00:00"},{"$f":"Time!ADJ$23","v":"00:00:00"},{"$f":"Time!ADK$23","v":"00:00:00"},{"$f":"Time!ADL$23","v":"00:00:00"},{"$f":"Time!ADM$23","v":"00:00:00"},{"$f":"Time!ADN$23","v":"00:00:00"},{"$f":"Time!ADO$23","v":"00:00:00"},{"$f":"Time!ADP$23","v":"00:00:00"},{"$f":"Time!ADQ$23","v":"00:00:00"},{"$f":"Time!ADR$23","v":"00:00:00"},{"$f":"Time!ADS$23","v":"00:00:00"},{"$f":"Time!ADT$23","v":"00:00:00"},{"$f":"Time!ADU$23","v":"00:00:00"},{"$f":"Time!ADV$23","v":"00:00:00"},{"$f":"Time!ADW$23","v":"00:00:00"},{"$f":"Time!ADX$23","v":"00:00:00"},{"$f":"Time!ADY$23","v":"00:00:00"},{"$f":"Time!ADZ$23","v":"00:00:00"},{"$f":"Time!AEA$23","v":"00:00:00"},{"$f":"Time!AEB$23","v":"00:00:00"},{"$f":"Time!AEC$23","v":"00:00:00"},{"$f":"Time!AED$23","v":"00:00:00"},{"$f":"Time!AEE$23","v":"00:00:00"},{"$f":"Time!AEF$23","v":"00:00:00"},{"$f":"Time!AEG$23","v":"00:00:00"},{"$f":"Time!AEH$23","v":"00:00:00"},{"$f":"Time!AEI$23","v":"00:00:00"},{"$f":"Time!AEJ$23","v":"00:00:00"},{"$f":"Time!AEK$23","v":"00:00:00"},{"$f":"Time!AEL$23","v":"00:00:00"},{"$f":"Time!AEM$23","v":"00:00:00"},{"$f":"Time!AEN$23","v":"00:00:00"},{"$f":"Time!AEO$23","v":"00:00:00"},{"$f":"Time!AEP$23","v":"00:00:00"},{"$f":"Time!AEQ$23","v":"00:00:00"},{"$f":"Time!AER$23","v":"00:00:00"},{"$f":"Time!AES$23","v":"00:00:00"},{"$f":"Time!AET$23","v":"00:00:00"},{"$f":"Time!AEU$23","v":"00:00:00"},{"$f":"Time!AEV$23","v":"00:00:00"},{"$f":"Time!AEW$23","v":"00:00:00"},{"$f":"Time!AEX$23","v":"00:00:00"},{"$f":"Time!AEY$23","v":"00:00:00"},{"$f":"Time!AEZ$23","v":"00:00:00"},{"$f":"Time!AFA$23","v":"00:00:00"},{"$f":"Time!AFB$23","v":"00:00:00"},{"$f":"Time!AFC$23","v":"00:00:00"},{"$f":"Time!AFD$23","v":"00:00:00"},{"$f":"Time!AFE$23","v":"00:00:00"},{"$f":"Time!AFF$23","v":"00:00:00"},{"$f":"Time!AFG$23","v":"00:00:00"},{"$f":"Time!AFH$23","v":"00:00:00"},{"$f":"Time!AFI$23","v":"00:00:00"},{"$f":"Time!AFJ$23","v":"00:00:00"},{"$f":"Time!AFK$23","v":"00:00:00"},{"$f":"Time!AFL$23","v":"00:00:00"},{"$f":"Time!AFM$23","v":"00:00:00"},{"$f":"Time!AFN$23","v":"00:00:00"},{"$f":"Time!AFO$23","v":"00:00:00"},{"$f":"Time!AFP$23","v":"00:00:00"},{"$f":"Time!AFQ$23","v":"00:00:00"},{"$f":"Time!AFR$23","v":"00:00:00"},{"$f":"Time!AFS$23","v":"00:00:00"},{"$f":"Time!AFT$23","v":"00:00:00"},{"$f":"Time!AFU$23","v":"00:00:00"},{"$f":"Time!AFV$23","v":"00:00:00"},{"$f":"Time!AFW$23","v":"00:00:00"},{"$f":"Time!AFX$23","v":"00:00:00"},{"$f":"Time!AFY$23","v":"00:00:00"},{"$f":"Time!AFZ$23","v":"00:00:00"},{"$f":"Time!AGA$23","v":"00:00:00"},{"$f":"Time!AGB$23","v":"00:00:00"},{"$f":"Time!AGC$23","v":"00:00:00"},{"$f":"Time!AGD$23","v":"00:00:00"},{"$f":"Time!AGE$23","v":"00:00:00"},{"$f":"Time!AGF$23","v":"00:00:00"},{"$f":"Time!AGG$23","v":"00:00:00"},{"$f":"Time!AGH$23","v":"00:00:00"},{"$f":"Time!AGI$23","v":"00:00:00"},{"$f":"Time!AGJ$23","v":"00:00:00"},{"$f":"Time!AGK$23","v":"00:00:00"},{"$f":"Time!AGL$23","v":"00:00:00"},{"$f":"Time!AGM$23","v":"00:00:00"},{"$f":"Time!AGN$23","v":"00:00:00"},{"$f":"Time!AGO$23","v":"00:00:00"},{"$f":"Time!AGP$23","v":"00:00:00"},{"$f":"Time!AGQ$23","v":"00:00:00"},{"$f":"Time!AGR$23","v":"00:00:00"},{"$f":"Time!AGS$23","v":"00:00:00"},{"$f":"Time!AGT$23","v":"00:00:00"},{"$f":"Time!AGU$23","v":"00:00:00"},{"$f":"Time!AGV$23","v":"00:00:00"},{"$f":"Time!AGW$23","v":"00:00:00"},{"$f":"Time!AGX$23","v":"00:00:00"},{"$f":"Time!AGY$23","v":"00:00:00"},{"$f":"Time!AGZ$23","v":"00:00:00"},{"$f":"Time!AHA$23","v":"00:00:00"},{"$f":"Time!AHB$23","v":"00:00:00"},{"$f":"Time!AHC$23","v":"00:00:00"},{"$f":"Time!AHD$23","v":"00:00:00"},{"$f":"Time!AHE$23","v":"00:00:00"},{"$f":"Time!AHF$23","v":"00:00:00"},{"$f":"Time!AHG$23","v":"00:00:00"},{"$f":"Time!AHH$23","v":"00:00:00"},{"$f":"Time!AHI$23","v":"00:00:00"},{"$f":"Time!AHJ$23","v":"00:00:00"},{"$f":"Time!AHK$23","v":"00:00:00"},{"$f":"Time!AHL$23","v":"00:00:00"},{"$f":"Time!AHM$23","v":"00:00:00"},{"$f":"Time!AHN$23","v":"00:00:00"},{"$f":"Time!AHO$23","v":"00:00:00"},{"$f":"Time!AHP$23","v":"00:00:00"},{"$f":"Time!AHQ$23","v":"00:00:00"},{"$f":"Time!AHR$23","v":"00:00:00"},{"$f":"Time!AHS$23","v":"00:00:00"},{"$f":"Time!AHT$23","v":"00:00:00"},{"$f":"Time!AHU$23","v":"00:00:00"},{"$f":"Time!AHV$23","v":"00:00:00"},{"$f":"Time!AHW$23","v":"00:00:00"},{"$f":"Time!AHX$23","v":"00:00:00"},{"$f":"Time!AHY$23","v":"00:00:00"},{"$f":"Time!AHZ$23","v":"00:00:00"},{"$f":"Time!AIA$23","v":"00:00:00"},{"$f":"Time!AIB$23","v":"00:00:00"},{"$f":"Time!AIC$23","v":"00:00:00"},{"$f":"Time!AID$23","v":"00:00:00"},{"$f":"Time!AIE$23","v":"00:00:00"},{"$f":"Time!AIF$23","v":"00:00:00"},{"$f":"Time!AIG$23","v":"00:00:00"},{"$f":"Time!AIH$23","v":"00:00:00"},{"$f":"Time!AII$23","v":"00:00:00"},{"$f":"Time!AIJ$23","v":"00:00:00"},{"$f":"Time!AIK$23","v":"00:00:00"},{"$f":"Time!AIL$23","v":"00:00:00"},{"$f":"Time!AIM$23","v":"00:00:00"},{"$f":"Time!AIN$23","v":"00:00:00"},{"$f":"Time!AIO$23","v":"00:00:00"},{"$f":"Time!AIP$23","v":"00:00:00"},{"$f":"Time!AIQ$23","v":"00:00:00"},{"$f":"Time!AIR$23","v":"00:00:00"},{"$f":"Time!AIS$23","v":"00:00:00"},{"$f":"Time!AIT$23","v":"00:00:00"},{"$f":"Time!AIU$23","v":"00:00:00"},{"$f":"Time!AIV$23","v":"00:00:00"},{"$f":"Time!AIW$23","v":"00:00:00"},{"$f":"Time!AIX$23","v":"00:00:00"},{"$f":"Time!AIY$23","v":"00:00:00"},{"$f":"Time!AIZ$23","v":"00:00:00"},{"$f":"Time!AJA$23","v":"00:00:00"},{"$f":"Time!AJB$23","v":"00:00:00"},{"$f":"Time!AJC$23","v":"00:00:00"},{"$f":"Time!AJD$23","v":"00:00:00"},{"$f":"Time!AJE$23","v":"00:00:00"},{"$f":"Time!AJF$23","v":"00:00:00"},{"$f":"Time!AJG$23","v":"00:00:00"},{"$f":"Time!AJH$23","v":"00:00:00"},{"$f":"Time!AJI$23","v":"00:00:00"},{"$f":"Time!AJJ$23","v":"00:00:00"},{"$f":"Time!AJK$23","v":"00:00:00"},{"$f":"Time!AJL$23","v":"00:00:00"},{"$f":"Time!AJM$23","v":"00:00:00"},{"$f":"Time!AJN$23","v":"00:00:00"},{"$f":"Time!AJO$23","v":"00:00:00"},{"$f":"Time!AJP$23","v":"00:00:00"},{"$f":"Time!AJQ$23","v":"00:00:00"},{"$f":"Time!AJR$23","v":"00:00:00"},{"$f":"Time!AJS$23","v":"00:00:00"},{"$f":"Time!AJT$23","v":"00:00:00"},{"$f":"Time!AJU$23","v":"00:00:00"},{"$f":"Time!AJV$23","v":"00:00:00"},{"$f":"Time!AJW$23","v":"00:00:00"},{"$f":"Time!AJX$23","v":"00:00:00"},{"$f":"Time!AJY$23","v":"00:00:00"},{"$f":"Time!AJZ$23","v":"00:00:00"},{"$f":"Time!AKA$23","v":"00:00:00"},{"$f":"Time!AKB$23","v":"00:00:00"},{"$f":"Time!AKC$23","v":"00:00:00"},{"$f":"Time!AKD$23","v":"00:00:00"},{"$f":"Time!AKE$23","v":"00:00:00"},{"$f":"Time!AKF$23","v":"00:00:00"},{"$f":"Time!AKG$23","v":"00:00:00"},{"$f":"Time!AKH$23","v":"00:00:00"},{"$f":"Time!AKI$23","v":"00:00:00"},{"$f":"Time!AKJ$23","v":"00:00:00"},{"$f":"Time!AKK$23","v":"00:00:00"},{"$f":"Time!AKL$23","v":"00:00:00"},{"$f":"Time!AKM$23","v":"00:00:00"},{"$f":"Time!AKN$23","v":"00:00:00"},{"$f":"Time!AKO$23","v":"00:00:00"},{"$f":"Time!AKP$23","v":"00:00:00"},{"$f":"Time!AKQ$23","v":"00:00:00"},{"$f":"Time!AKR$23","v":"00:00:00"},{"$f":"Time!AKS$23","v":"00:00:00"},{"$f":"Time!AKT$23","v":"00:00:00"},{"$f":"Time!AKU$23","v":"00:00:00"},{"$f":"Time!AKV$23","v":"00:00:00"},{"$f":"Time!AKW$23","v":"00:00:00"},{"$f":"Time!AKX$23","v":"00:00:00"},{"$f":"Time!AKY$23","v":"00:00:00"},{"$f":"Time!AKZ$23","v":"00:00:00"},{"$f":"Time!ALA$23","v":"00:00:00"},{"$f":"Time!ALB$23","v":"00:00:00"},{"$f":"Time!ALC$23","v":"00:00:00"},{"$f":"Time!ALD$23","v":"00:00:00"},{"$f":"Time!ALE$23","v":"00:00:00"},{"$f":"Time!ALF$23","v":"00:00:00"},{"$f":"Time!ALG$23","v":"00:00:00"},{"$f":"Time!ALH$23","v":"00:00:00"},{"$f":"Time!ALI$23","v":"00:00:00"},{"$f":"Time!ALJ$23","v":"00:00:00"},{"$f":"Time!ALK$23","v":"00:00:00"},{"$f":"Time!ALL$23","v":"00:00:00"},{"$f":"Time!ALM$23","v":"00:00:00"},{"$f":"Time!ALN$23","v":"00:00:00"},{"$f":"Time!ALO$23","v":"00:00:00"},{"$f":"Time!ALP$23","v":"00:00:00"},{"$f":"Time!ALQ$23","v":"00:00:00"},{"$f":"Time!ALR$23","v":"00:00:00"},{"$f":"Time!ALS$23","v":"00:00:00"},{"$f":"Time!ALT$23","v":"00:00:00"},{"$f":"Time!ALU$23","v":"00:00:00"},{"$f":"Time!ALV$23","v":"00:00:00"},{"$f":"Time!ALW$23","v":"00:00:00"},{"$f":"Time!ALX$23","v":"00:00:00"},{"$f":"Time!ALY$23","v":"00:00:00"},{"$f":"Time!ALZ$23","v":"00:00:00"},{"$f":"Time!AMA$23","v":"00:00:00"},{"$f":"Time!AMB$23","v":"00:00:00"},{"$f":"Time!AMC$23","v":"00:00:00"},{"$f":"Time!AMD$23","v":"00:00:00"},{"$f":"Time!AME$23","v":"00:00:00"},{"$f":"Time!AMF$23","v":"00:00:00"},{"$f":"Time!AMG$23","v":"00:00:00"},{"$f":"Time!AMH$23","v":"00:00:00"},{"$f":"Time!AMI$23","v":"00:00:00"},{"$f":"Time!AMJ$23","v":"00:00:00"},{"$f":"Time!AMK$23","v":"00:00:00"},{"$f":"Time!AML$23","v":"00:00:00"},{"$f":"Time!AMM$23","v":"00:00:00"},{"$f":"Time!AMN$23","v":"00:00:00"},{"$f":"Time!AMO$23","v":"00:00:00"},{"$f":"Time!AMP$23","v":"00:00:00"},{"$f":"Time!AMQ$23","v":"00:00:00"},{"$f":"Time!AMR$23","v":"00:00:00"},{"$f":"Time!AMS$23","v":"00:00:00"},{"$f":"Time!AMT$23","v":"00:00:00"},{"$f":"Time!AMU$23","v":"00:00:00"},{"$f":"Time!AMV$23","v":"00:00:00"},{"$f":"Time!AMW$23","v":"00:00:00"},{"$f":"Time!AMX$23","v":"00:00:00"},{"$f":"Time!AMY$23","v":"00:00:00"},{"$f":"Time!AMZ$23","v":"00:00:00"},{"$f":"Time!ANA$23","v":"00:00:00"},{"$f":"Time!ANB$23","v":"00:00:00"},{"$f":"Time!ANC$23","v":"00:00:00"},{"$f":"Time!AND$23","v":"00:00:00"},{"$f":"Time!ANE$23","v":"00:00:00"},{"$f":"Time!ANF$23","v":"00:00:00"},{"$f":"Time!ANG$23","v":"00:00:00"},{"$f":"Time!ANH$23","v":"00:00:00"},{"$f":"Time!ANI$23","v":"00:00:00"},{"$f":"Time!ANJ$23","v":"00:00:00"},{"$f":"Time!ANK$23","v":"00:00:00"},{"$f":"Time!ANL$23","v":"00:00:00"},{"$f":"Time!ANM$23","v":"00:00:00"},{"$f":"Time!ANN$23","v":"00:00:00"},{"$f":"Time!ANO$23","v":"00:00:00"},{"$f":"Time!ANP$23","v":"00:00:00"},{"$f":"Time!ANQ$23","v":"00:00:00"},{"$f":"Time!ANR$23","v":"00:00:00"},{"$f":"Time!ANS$23","v":"00:00:00"},{"$f":"Time!ANT$23","v":"00:00:00"},{"$f":"Time!ANU$23","v":"00:00:00"},{"$f":"Time!ANV$23","v":"00:00:00"},{"$f":"Time!ANW$23","v":"00:00:00"},{"$f":"Time!ANX$23","v":"00:00:00"},{"$f":"Time!ANY$23","v":"00:00:00"},{"$f":"Time!ANZ$23","v":"00:00:00"},{"$f":"Time!AOA$23","v":"00:00:00"},{"$f":"Time!AOB$23","v":"00:00:00"},{"$f":"Time!AOC$23","v":"00:00:00"},{"$f":"Time!AOD$23","v":"00:00:00"},{"$f":"Time!AOE$23","v":"00:00:00"},{"$f":"Time!AOF$23","v":"00:00:00"},{"$f":"Time!AOG$23","v":"00:00:00"},{"$f":"Time!AOH$23","v":"00:00:00"},{"$f":"Time!AOI$23","v":"00:00:00"},{"$f":"Time!AOJ$23","v":"00:00:00"},{"$f":"Time!AOK$23","v":"00:00:00"},{"$f":"Time!AOL$23","v":"00:00:00"},{"$f":"Time!AOM$23","v":"00:00:00"},{"$f":"Time!AON$23","v":"00:00:00"},{"$f":"Time!AOO$23","v":"00:00:00"},{"$f":"Time!AOP$23","v":"00:00:00"},{"$f":"Time!AOQ$23","v":"00:00:00"},{"$f":"Time!AOR$23","v":"00:00:00"},{"$f":"Time!AOS$23","v":"00:00:00"},{"$f":"Time!AOT$23","v":"00:00:00"},{"$f":"Time!AOU$23","v":"00:00:00"},{"$f":"Time!AOV$23","v":"00:00:00"},{"$f":"Time!AOW$23","v":"00:00:00"},{"$f":"Time!AOX$23","v":"00:00:00"},{"$f":"Time!AOY$23","v":"00:00:00"},{"$f":"Time!AOZ$23","v":"00:00:00"},{"$f":"Time!APA$23","v":"00:00:00"},{"$f":"Time!APB$23","v":"00:00:00"},{"$f":"Time!APC$23","v":"00:00:00"},{"$f":"Time!APD$23","v":"00:00:00"},{"$f":"Time!APE$23","v":"00:00:00"},{"$f":"Time!APF$23","v":"00:00:00"},{"$f":"Time!APG$23","v":"00:00:00"},{"$f":"Time!APH$23","v":"00:00:00"},{"$f":"Time!API$23","v":"00:00:00"},{"$f":"Time!APJ$23","v":"00:00:00"},{"$f":"Time!APK$23","v":"00:00:00"},{"$f":"Time!APL$23","v":"00:00:00"},{"$f":"Time!APM$23","v":"00:00:00"},{"$f":"Time!APN$23","v":"00:00:00"},{"$f":"Time!APO$23","v":"00:00:00"},{"$f":"Time!APP$23","v":"00:00:00"},{"$f":"Time!APQ$23","v":"00:00:00"},{"$f":"Time!APR$23","v":"00:00:00"},{"$f":"Time!APS$23","v":"00:00:00"},{"$f":"Time!APT$23","v":"00:00:00"},{"$f":"Time!APU$23","v":"00:00:00"},{"$f":"Time!APV$23","v":"00:00:00"},{"$f":"Time!APW$23","v":"00:00:00"},{"$f":"Time!APX$23","v":"00:00:00"},{"$f":"Time!APY$23","v":"00:00:00"},{"$f":"Time!APZ$23","v":"00:00:00"},{"$f":"Time!AQA$23","v":"00:00:00"},{"$f":"Time!AQB$23","v":"00:00:00"},{"$f":"Time!AQC$23","v":"00:00:00"},{"$f":"Time!AQD$23","v":"00:00:00"},{"$f":"Time!AQE$23","v":"00:00:00"},{"$f":"Time!AQF$23","v":"00:00:00"},{"$f":"Time!AQG$23","v":"00:00:00"},{"$f":"Time!AQH$23","v":"00:00:00"},{"$f":"Time!AQI$23","v":"00:00:00"},{"$f":"Time!AQJ$23","v":"00:00:00"},{"$f":"Time!AQK$23","v":"00:00:00"},{"$f":"Time!AQL$23","v":"00:00:00"},{"$f":"Time!AQM$23","v":"00:00:00"},{"$f":"Time!AQN$23","v":"00:00:00"},{"$f":"Time!AQO$23","v":"00:00:00"},{"$f":"Time!AQP$23","v":"00:00:00"},{"$f":"Time!AQQ$23","v":"00:00:00"},{"$f":"Time!AQR$23","v":"00:00:00"},{"$f":"Time!AQS$23","v":"00:00:00"},{"$f":"Time!AQT$23","v":"00:00:00"},{"$f":"Time!AQU$23","v":"00:00:00"},{"$f":"Time!AQV$23","v":"00:00:00"},{"$f":"Time!AQW$23","v":"00:00:00"},{"$f":"Time!AQX$23","v":"00:00:00"},{"$f":"Time!AQY$23","v":"00:00:00"},{"$f":"Time!AQZ$23","v":"00:00:00"},{"$f":"Time!ARA$23","v":"00:00:00"},{"$f":"Time!ARB$23","v":"00:00:00"},{"$f":"Time!ARC$23","v":"00:00:00"},{"$f":"Time!ARD$23","v":"00:00:00"},{"$f":"Time!ARE$23","v":"00:00:00"},{"$f":"Time!ARF$23","v":"00:00:00"},{"$f":"Time!ARG$23","v":"00:00:00"},{"$f":"Time!ARH$23","v":"00:00:00"},{"$f":"Time!ARI$23","v":"00:00:00"},{"$f":"Time!ARJ$23","v":"00:00:00"},{"$f":"Time!ARK$23","v":"00:00:00"},{"$f":"Time!ARL$23","v":"00:00:00"},{"$f":"Time!ARM$23","v":"00:00:00"},{"$f":"Time!ARN$23","v":"00:00:00"},{"$f":"Time!ARO$23","v":"00:00:00"},{"$f":"Time!ARP$23","v":"00:00:00"},{"$f":"Time!ARQ$23","v":"00:00:00"},{"$f":"Time!ARR$23","v":"00:00:00"},{"$f":"Time!ARS$23","v":"00:00:00"},{"$f":"Time!ART$23","v":"00:00:00"},{"$f":"Time!ARU$23","v":"00:00:00"},{"$f":"Time!ARV$23","v":"00:00:00"},{"$f":"Time!ARW$23","v":"00:00:00"},{"$f":"Time!ARX$23","v":"00:00:00"},{"$f":"Time!ARY$23","v":"00:00:00"},{"$f":"Time!ARZ$23","v":"00:00:00"},{"$f":"Time!ASA$23","v":"00:00:00"},{"$f":"Time!ASB$23","v":"00:00:00"},{"$f":"Time!ASC$23","v":"00:00:00"},{"$f":"Time!ASD$23","v":"00:00:00"},{"$f":"Time!ASE$23","v":"00:00:00"},{"$f":"Time!ASF$23","v":"00:00:00"},{"$f":"Time!ASG$23","v":"00:00:00"},{"$f":"Time!ASH$23","v":"00:00:00"},{"$f":"Time!ASI$23","v":"00:00:00"},{"$f":"Time!ASJ$23","v":"00:00:00"},{"$f":"Time!ASK$23","v":"00:00:00"},{"$f":"Time!ASL$23","v":"00:00:00"},{"$f":"Time!ASM$23","v":"00:00:00"},{"$f":"Time!ASN$23","v":"00:00:00"},{"$f":"Time!ASO$23","v":"00:00:00"},{"$f":"Time!ASP$23","v":"00:00:00"},{"$f":"Time!ASQ$23","v":"00:00:00"},{"$f":"Time!ASR$23","v":"00:00:00"},{"$f":"Time!ASS$23","v":"00:00:00"},{"$f":"Time!AST$23","v":"00:00:00"},{"$f":"Time!ASU$23","v":"00:00:00"},{"$f":"Time!ASV$23","v":"00:00:00"},{"$f":"Time!ASW$23","v":"00:00:00"},{"$f":"Time!ASX$23","v":"00:00:00"},{"$f":"Time!ASY$23","v":"00:00:00"},{"$f":"Time!ASZ$23","v":"00:00:00"},{"$f":"Time!ATA$23","v":"00:00:00"},{"$f":"Time!ATB$23","v":"00:00:00"},{"$f":"Time!ATC$23","v":"00:00:00"},{"$f":"Time!ATD$23","v":"00:00:00"},{"$f":"Time!ATE$23","v":"00:00:00"},{"$f":"Time!ATF$23","v":"00:00:00"},{"$f":"Time!ATG$23","v":"00:00:00"},{"$f":"Time!ATH$23","v":"00:00:00"},{"$f":"Time!ATI$23","v":"00:00:00"},{"$f":"Time!ATJ$23","v":"00:00:00"},{"$f":"Time!ATK$23","v":"00:00:00"},{"$f":"Time!ATL$23","v":"00:00:00"},{"$f":"Time!ATM$23","v":"00:00:00"},{"$f":"Time!ATN$23","v":"00:00:00"},{"$f":"Time!ATO$23","v":"00:00:00"},{"$f":"Time!ATP$23","v":"00:00:00"},{"$f":"Time!ATQ$23","v":"00:00:00"},{"$f":"Time!ATR$23","v":"00:00:00"},{"$f":"Time!ATS$23","v":"00:00:00"},{"$f":"Time!ATT$23","v":"00:00:00"},{"$f":"Time!ATU$23","v":"00:00:00"},{"$f":"Time!ATV$23","v":"00:00:00"},{"$f":"Time!ATW$23","v":"00:00:00"},{"$f":"Time!ATX$23","v":"00:00:00"},{"$f":"Time!ATY$23","v":"00:00:00"},{"$f":"Time!ATZ$23","v":"00:00:00"},{"$f":"Time!AUA$23","v":"00:00:00"},{"$f":"Time!AUB$23","v":"00:00:00"},{"$f":"Time!AUC$23","v":"00:00:00"},{"$f":"Time!AUD$23","v":"00:00:00"},{"$f":"Time!AUE$23","v":"00:00:00"},{"$f":"Time!AUF$23","v":"00:00:00"},{"$f":"Time!AUG$23","v":"00:00:00"},{"$f":"Time!AUH$23","v":"00:00:00"},{"$f":"Time!AUI$23","v":"00:00:00"},{"$f":"Time!AUJ$23","v":"00:00:00"},{"$f":"Time!AUK$23","v":"00:00:00"},{"$f":"Time!AUL$23","v":"00:00:00"},{"$f":"Time!AUM$23","v":"00:00:00"},{"$f":"Time!AUN$23","v":"00:00:00"},{"$f":"Time!AUO$23","v":"00:00:00"},{"$f":"Time!AUP$23","v":"00:00:00"},{"$f":"Time!AUQ$23","v":"00:00:00"},{"$f":"Time!AUR$23","v":"00:00:00"},{"$f":"Time!AUS$23","v":"00:00:00"},{"$f":"Time!AUT$23","v":"00:00:00"},{"$f":"Time!AUU$23","v":"00:00:00"},{"$f":"Time!AUV$23","v":"00:00:00"},{"$f":"Time!AUW$23","v":"00:00:00"},{"$f":"Time!AUX$23","v":"00:00:00"},{"$f":"Time!AUY$23","v":"00:00:00"},{"$f":"Time!AUZ$23","v":"00:00:00"},{"$f":"Time!AVA$23","v":"00:00:00"},{"$f":"Time!AVB$23","v":"00:00:00"},{"$f":"Time!AVC$23","v":"00:00:00"},{"$f":"Time!AVD$23","v":"00:00:00"},{"$f":"Time!AVE$23","v":"00:00:00"},{"$f":"Time!AVF$23","v":"00:00:00"},{"$f":"Time!AVG$23","v":"00:00:00"},{"$f":"Time!AVH$23","v":"00:00:00"},{"$f":"Time!AVI$23","v":"00:00:00"},{"$f":"Time!AVJ$23","v":"00:00:00"},{"$f":"Time!AVK$23","v":"00:00:00"},{"$f":"Time!AVL$23","v":"00:00:00"},{"$f":"Time!AVM$23","v":"00:00:00"},{"$f":"Time!AVN$23","v":"00:00:00"},{"$f":"Time!AVO$23","v":"00:00:00"},{"$f":"Time!AVP$23","v":"00:00:00"},{"$f":"Time!AVQ$23","v":"00:00:00"},{"$f":"Time!AVR$23","v":"00:00:00"},{"$f":"Time!AVS$23","v":"00:00:00"},{"$f":"Time!AVT$23","v":"00:00:00"},{"$f":"Time!AVU$23","v":"00:00:00"},{"$f":"Time!AVV$23","v":"00:00:00"},{"$f":"Time!AVW$23","v":"00:00:00"},{"$f":"Time!AVX$23","v":"00:00:00"},{"$f":"Time!AVY$23","v":"00:00:00"},{"$f":"Time!AVZ$23","v":"00:00:00"},{"$f":"Time!AWA$23","v":"00:00:00"},{"$f":"Time!AWB$23","v":"00:00:00"},{"$f":"Time!AWC$23","v":"00:00:00"},{"$f":"Time!AWD$23","v":"00:00:00"},{"$f":"Time!AWE$23","v":"00:00:00"},{"$f":"Time!AWF$23","v":"00:00:00"},{"$f":"Time!AWG$23","v":"00:00:00"},{"$f":"Time!AWH$23","v":"00:00:00"},{"$f":"Time!AWI$23","v":"00:00:00"},{"$f":"Time!AWJ$23","v":"00:00:00"},{"$f":"Time!AWK$23","v":"00:00:00"},{"$f":"Time!AWL$23","v":"00:00:00"},{"$f":"Time!AWM$23","v":"00:00:00"},{"$f":"Time!AWN$23","v":"00:00:00"},{"$f":"Time!AWO$23","v":"00:00:00"},{"$f":"Time!AWP$23","v":"00:00:00"},{"$f":"Time!AWQ$23","v":"00:00:00"},{"$f":"Time!AWR$23","v":"00:00:00"},{"$f":"Time!AWS$23","v":"00:00:00"},{"$f":"Time!AWT$23","v":"00:00:00"},{"$f":"Time!AWU$23","v":"00:00:00"},{"$f":"Time!AWV$23","v":"00:00:00"},{"$f":"Time!AWW$23","v":"00:00:00"},{"$f":"Time!AWX$23","v":"00:00:00"},{"$f":"Time!AWY$23","v":"00:00:00"},{"$f":"Time!AWZ$23","v":"00:00:00"},{"$f":"Time!AXA$23","v":"00:00:00"},{"$f":"Time!AXB$23","v":"00:00:00"},{"$f":"Time!AXC$23","v":"00:00:00"},{"$f":"Time!AXD$23","v":"00:00:00"},{"$f":"Time!AXE$23","v":"00:00:00"},{"$f":"Time!AXF$23","v":"00:00:00"},{"$f":"Time!AXG$23","v":"00:00:00"},{"$f":"Time!AXH$23","v":"00:00:00"},{"$f":"Time!AXI$23","v":"00:00:00"},{"$f":"Time!AXJ$23","v":"00:00:00"},{"$f":"Time!AXK$23","v":"00:00:00"},{"$f":"Time!AXL$23","v":"00:00:00"},{"$f":"Time!AXM$23","v":"00:00:00"},{"$f":"Time!AXN$23","v":"00:00:00"},{"$f":"Time!AXO$23","v":"00:00:00"},{"$f":"Time!AXP$23","v":"00:00:00"},{"$f":"Time!AXQ$23","v":"00:00:00"},{"$f":"Time!AXR$23","v":"00:00:00"},{"$f":"Time!AXS$23","v":"00:00:00"},{"$f":"Time!AXT$23","v":"00:00:00"},{"$f":"Time!AXU$23","v":"00:00:00"},{"$f":"Time!AXV$23","v":"00:00:00"},{"$f":"Time!AXW$23","v":"00:00:00"},{"$f":"Time!AXX$23","v":"00:00:00"},{"$f":"Time!AXY$23","v":"00:00:00"},{"$f":"Time!AXZ$23","v":"00:00:00"},{"$f":"Time!AYA$23","v":"00:00:00"},{"$f":"Time!AYB$23","v":"00:00:00"},{"$f":"Time!AYC$23","v":"00:00:00"},{"$f":"Time!AYD$23","v":"00:00:00"},{"$f":"Time!AYE$23","v":"00:00:00"},{"$f":"Time!AYF$23","v":"00:00:00"},{"$f":"Time!AYG$23","v":"00:00:00"},{"$f":"Time!AYH$23","v":"00:00:00"},{"$f":"Time!AYI$23","v":"00:00:00"},{"$f":"Time!AYJ$23","v":"00:00:00"},{"$f":"Time!AYK$23","v":"00:00:00"},{"$f":"Time!AYL$23","v":"00:00:00"},{"$f":"Time!AYM$23","v":"00:00:00"},{"$f":"Time!AYN$23","v":"00:00:00"},{"$f":"Time!AYO$23","v":"00:00:00"},{"$f":"Time!AYP$23","v":"00:00:00"},{"$f":"Time!AYQ$23","v":"00:00:00"},{"$f":"Time!AYR$23","v":"00:00:00"},{"$f":"Time!AYS$23","v":"00:00:00"},{"$f":"Time!AYT$23","v":"00:00:00"},{"$f":"Time!AYU$23","v":"00:00:00"},{"$f":"Time!AYV$23","v":"00:00:00"},{"$f":"Time!AYW$23","v":"00:00:00"},{"$f":"Time!AYX$23","v":"00:00:00"},{"$f":"Time!AYY$23","v":"00:00:00"},{"$f":"Time!AYZ$23","v":"00:00:00"},{"$f":"Time!AZA$23","v":"00:00:00"},{"$f":"Time!AZB$23","v":"00:00:00"},{"$f":"Time!AZC$23","v":"00:00:00"},{"$f":"Time!AZD$23","v":"00:00:00"},{"$f":"Time!AZE$23","v":"00:00:00"},{"$f":"Time!AZF$23","v":"00:00:00"},{"$f":"Time!AZG$23","v":"00:00:00"},{"$f":"Time!AZH$23","v":"00:00:00"},{"$f":"Time!AZI$23","v":"00:00:00"},{"$f":"Time!AZJ$23","v":"00:00:00"},{"$f":"Time!AZK$23","v":"00:00:00"},{"$f":"Time!AZL$23","v":"00:00:00"},{"$f":"Time!AZM$23","v":"00:00:00"},{"$f":"Time!AZN$23","v":"00:00:00"},{"$f":"Time!AZO$23","v":"00:00:00"},{"$f":"Time!AZP$23","v":"00:00:00"},{"$f":"Time!AZQ$23","v":"00:00:00"},{"$f":"Time!AZR$23","v":"00:00:00"},{"$f":"Time!AZS$23","v":"00:00:00"},{"$f":"Time!AZT$23","v":"00:00:00"},{"$f":"Time!AZU$23","v":"00:00:00"},{"$f":"Time!AZV$23","v":"00:00:00"},{"$f":"Time!AZW$23","v":"00:00:00"},{"$f":"Time!AZX$23","v":"00:00:00"},{"$f":"Time!AZY$23","v":"00:00:00"},{"$f":"Time!AZZ$23","v":"00:00:00"},{"$f":"Time!BAA$23","v":"00:00:00"},{"$f":"Time!BAB$23","v":"00:00:00"},{"$f":"Time!BAC$23","v":"00:00:00"},{"$f":"Time!BAD$23","v":"00:00:00"},{"$f":"Time!BAE$23","v":"00:00:00"},{"$f":"Time!BAF$23","v":"00:00:00"},{"$f":"Time!BAG$23","v":"00:00:00"},{"$f":"Time!BAH$23","v":"00:00:00"},{"$f":"Time!BAI$23","v":"00:00:00"},{"$f":"Time!BAJ$23","v":"00:00:00"},{"$f":"Time!BAK$23","v":"00:00:00"},{"$f":"Time!BAL$23","v":"00:00:00"},{"$f":"Time!BAM$23","v":"00:00:00"},{"$f":"Time!BAN$23","v":"00:00:00"},{"$f":"Time!BAO$23","v":"00:00:00"},{"$f":"Time!BAP$23","v":"00:00:00"},{"$f":"Time!BAQ$23","v":"00:00:00"},{"$f":"Time!BAR$23","v":"00:00:00"},{"$f":"Time!BAS$23","v":"00:00:00"},{"$f":"Time!BAT$23","v":"00:00:00"},{"$f":"Time!BAU$23","v":"00:00:00"},{"$f":"Time!BAV$23","v":"00:00:00"},{"$f":"Time!BAW$23","v":"00:00:00"},{"$f":"Time!BAX$23","v":"00:00:00"},{"$f":"Time!BAY$23","v":"00:00:00"},{"$f":"Time!BAZ$23","v":"00:00:00"},{"$f":"Time!BBA$23","v":"00:00:00"},{"$f":"Time!BBB$23","v":"00:00:00"},{"$f":"Time!BBC$23","v":"00:00:00"},{"$f":"Time!BBD$23","v":"00:00:00"},{"$f":"Time!BBE$23","v":"00:00:00"},{"$f":"Time!BBF$23","v":"00:00:00"},{"$f":"Time!BBG$23","v":"00:00:00"},{"$f":"Time!BBH$23","v":"00:00:00"},{"$f":"Time!BBI$23","v":"00:00:00"},{"$f":"Time!BBJ$23","v":"00:00:00"},{"$f":"Time!BBK$23","v":"00:00:00"},{"$f":"Time!BBL$23","v":"00:00:00"},{"$f":"Time!BBM$23","v":"00:00:00"},{"$f":"Time!BBN$23","v":"00:00:00"},{"$f":"Time!BBO$23","v":"00:00:00"},{"$f":"Time!BBP$23","v":"00:00:00"},{"$f":"Time!BBQ$23","v":"00:00:00"},{"$f":"Time!BBR$23","v":"00:00:00"},{"$f":"Time!BBS$23","v":"00:00:00"},{"$f":"Time!BBT$23","v":"00:00:00"},{"$f":"Time!BBU$23","v":"00:00:00"},{"$f":"Time!BBV$23","v":"00:00:00"},{"$f":"Time!BBW$23","v":"00:00:00"},{"$f":"Time!BBX$23","v":"00:00:00"},{"$f":"Time!BBY$23","v":"00:00:00"},{"$f":"Time!BBZ$23","v":"00:00:00"},{"$f":"Time!BCA$23","v":"00:00:00"},{"$f":"Time!BCB$23","v":"00:00:00"},{"$f":"Time!BCC$23","v":"00:00:00"},{"$f":"Time!BCD$23","v":"00:00:00"},{"$f":"Time!BCE$23","v":"00:00:00"},{"$f":"Time!BCF$23","v":"00:00:00"},{"$f":"Time!BCG$23","v":"00:00:00"},{"$f":"Time!BCH$23","v":"00:00:00"},{"$f":"Time!BCI$23","v":"00:00:00"},{"$f":"Time!BCJ$23","v":"00:00:00"},{"$f":"Time!BCK$23","v":"00:00:00"},{"$f":"Time!BCL$23","v":"00:00:00"},{"$f":"Time!BCM$23","v":"00:00:00"},{"$f":"Time!BCN$23","v":"00:00:00"},{"$f":"Time!BCO$23","v":"00:00:00"},{"$f":"Time!BCP$23","v":"00:00:00"},{"$f":"Time!BCQ$23","v":"00:00:00"},{"$f":"Time!BCR$23","v":"00:00:00"},{"$f":"Time!BCS$23","v":"00:00:00"},{"$f":"Time!BCT$23","v":"00:00:00"},{"$f":"Time!BCU$23","v":"00:00:00"},{"$f":"Time!BCV$23","v":"00:00:00"},{"$f":"Time!BCW$23","v":"00:00:00"},{"$f":"Time!BCX$23","v":"00:00:00"},{"$f":"Time!BCY$23","v":"00:00:00"},{"$f":"Time!BCZ$23","v":"00:00:00"},{"$f":"Time!BDA$23","v":"00:00:00"},{"$f":"Time!BDB$23","v":"00:00:00"},{"$f":"Time!BDC$23","v":"00:00:00"},{"$f":"Time!BDD$23","v":"00:00:00"},{"$f":"Time!BDE$23","v":"00:00:00"},{"$f":"Time!BDF$23","v":"00:00:00"},{"$f":"Time!BDG$23","v":"00:00:00"},{"$f":"Time!BDH$23","v":"00:00:00"},{"$f":"Time!BDI$23","v":"00:00:00"},{"$f":"Time!BDJ$23","v":"00:00:00"},{"$f":"Time!BDK$23","v":"00:00:00"},{"$f":"Time!BDL$23","v":"00:00:00"},{"$f":"Time!BDM$23","v":"00:00:00"},{"$f":"Time!BDN$23","v":"00:00:00"},{"$f":"Time!BDO$23","v":"00:00:00"},{"$f":"Time!BDP$23","v":"00:00:00"},{"$f":"Time!BDQ$23","v":"00:00:00"},{"$f":"Time!BDR$23","v":"00:00:00"},{"$f":"Time!BDS$23","v":"00:00:00"},{"$f":"Time!BDT$23","v":"00:00:00"},{"$f":"Time!BDU$23","v":"00:00:00"},{"$f":"Time!BDV$23","v":"00:00:00"},{"$f":"Time!BDW$23","v":"00:00:00"},{"$f":"Time!BDX$23","v":"00:00:00"},{"$f":"Time!BDY$23","v":"00:00:00"},{"$f":"Time!BDZ$23","v":"00:00:00"},{"$f":"Time!BEA$23","v":"00:00:00"},{"$f":"Time!BEB$23","v":"00:00:00"},{"$f":"Time!BEC$23","v":"00:00:00"},{"$f":"Time!BED$23","v":"00:00:00"},{"$f":"Time!BEE$23","v":"00:00:00"},{"$f":"Time!BEF$23","v":"00:00:00"},{"$f":"Time!BEG$23","v":"00:00:00"},{"$f":"Time!BEH$23","v":"00:00:00"},{"$f":"Time!BEI$23","v":"00:00:00"},{"$f":"Time!BEJ$23","v":"00:00:00"},{"$f":"Time!BEK$23","v":"00:00:00"},{"$f":"Time!BEL$23","v":"00:00:00"},{"$f":"Time!BEM$23","v":"00:00:00"},{"$f":"Time!BEN$23","v":"00:00:00"},{"$f":"Time!BEO$23","v":"00:00:00"},{"$f":"Time!BEP$23","v":"00:00:00"},{"$f":"Time!BEQ$23","v":"00:00:00"},{"$f":"Time!BER$23","v":"00:00:00"},{"$f":"Time!BES$23","v":"00:00:00"},{"$f":"Time!BET$23","v":"00:00:00"},{"$f":"Time!BEU$23","v":"00:00:00"},{"$f":"Time!BEV$23","v":"00:00:00"},{"$f":"Time!BEW$23","v":"00:00:00"},{"$f":"Time!BEX$23","v":"00:00:00"},{"$f":"Time!BEY$23","v":"00:00:00"},{"$f":"Time!BEZ$23","v":"00:00:00"},{"$f":"Time!BFA$23","v":"00:00:00"},{"$f":"Time!BFB$23","v":"00:00:00"},{"$f":"Time!BFC$23","v":"00:00:00"},{"$f":"Time!BFD$23","v":"00:00:00"},{"$f":"Time!BFE$23","v":"00:00:00"},{"$f":"Time!BFF$23","v":"00:00:00"},{"$f":"Time!BFG$23","v":"00:00:00"},{"$f":"Time!BFH$23","v":"00:00:00"},{"$f":"Time!BFI$23","v":"00:00:00"},{"$f":"Time!BFJ$23","v":"00:00:00"},{"$f":"Time!BFK$23","v":"00:00:00"},{"$f":"Time!BFL$23","v":"00:00:00"},{"$f":"Time!BFM$23","v":"00:00:00"},{"$f":"Time!BFN$23","v":"00:00:00"},{"$f":"Time!BFO$23","v":"00:00:00"},{"$f":"Time!BFP$23","v":"00:00:00"},{"$f":"Time!BFQ$23","v":"00:00:00"},{"$f":"Time!BFR$23","v":"00:00:00"},{"$f":"Time!BFS$23","v":"00:00:00"},{"$f":"Time!BFT$23","v":"00:00:00"},{"$f":"Time!BFU$23","v":"00:00:00"},{"$f":"Time!BFV$23","v":"00:00:00"},{"$f":"Time!BFW$23","v":"00:00:00"},{"$f":"Time!BFX$23","v":"00:00:00"},{"$f":"Time!BFY$23","v":"00:00:00"},{"$f":"Time!BFZ$23","v":"00:00:00"},{"$f":"Time!BGA$23","v":"00:00:00"},{"$f":"Time!BGB$23","v":"00:00:00"},{"$f":"Time!BGC$23","v":"00:00:00"},{"$f":"Time!BGD$23","v":"00:00:00"},{"$f":"Time!BGE$23","v":"00:00:00"},{"$f":"Time!BGF$23","v":"00:00:00"},{"$f":"Time!BGG$23","v":"00:00:00"},{"$f":"Time!BGH$23","v":"00:00:00"},{"$f":"Time!BGI$23","v":"00:00:00"},{"$f":"Time!BGJ$23","v":"00:00:00"},{"$f":"Time!BGK$23","v":"00:00:00"},{"$f":"Time!BGL$23","v":"00:00:00"},{"$f":"Time!BGM$23","v":"00:00:00"},{"$f":"Time!BGN$23","v":"00:00:00"},{"$f":"Time!BGO$23","v":"00:00:00"},{"$f":"Time!BGP$23","v":"00:00:00"},{"$f":"Time!BGQ$23","v":"00:00:00"},{"$f":"Time!BGR$23","v":"00:00:00"},{"$f":"Time!BGS$23","v":"00:00:00"},{"$f":"Time!BGT$23","v":"00:00:00"},{"$f":"Time!BGU$23","v":"00:00:00"},{"$f":"Time!BGV$23","v":"00:00:00"},{"$f":"Time!BGW$23","v":"00:00:00"},{"$f":"Time!BGX$23","v":"00:00:00"},{"$f":"Time!BGY$23","v":"00:00:00"},{"$f":"Time!BGZ$23","v":"00:00:00"},{"$f":"Time!BHA$23","v":"00:00:00"},{"$f":"Time!BHB$23","v":"00:00:00"},{"$f":"Time!BHC$23","v":"00:00:00"},{"$f":"Time!BHD$23","v":"00:00:00"},{"$f":"Time!BHE$23","v":"00:00:00"},{"$f":"Time!BHF$23","v":"00:00:00"},{"$f":"Time!BHG$23","v":"00:00:00"},{"$f":"Time!BHH$23","v":"00:00:00"},{"$f":"Time!BHI$23","v":"00:00:00"},{"$f":"Time!BHJ$23","v":"00:00:00"},{"$f":"Time!BHK$23","v":"00:00:00"},{"$f":"Time!BHL$23","v":"00:00:00"},{"$f":"Time!BHM$23","v":"00:00:00"},{"$f":"Time!BHN$23","v":"00:00:00"},{"$f":"Time!BHO$23","v":"00:00:00"},{"$f":"Time!BHP$23","v":"00:00:00"},{"$f":"Time!BHQ$23","v":"00:00:00"},{"$f":"Time!BHR$23","v":"00:00:00"},{"$f":"Time!BHS$23","v":"00:00:00"},{"$f":"Time!BHT$23","v":"00:00:00"},{"$f":"Time!BHU$23","v":"00:00:00"},{"$f":"Time!BHV$23","v":"00:00:00"},{"$f":"Time!BHW$23","v":"00:00:00"},{"$f":"Time!BHX$23","v":"00:00:00"},{"$f":"Time!BHY$23","v":"00:00:00"},{"$f":"Time!BHZ$23","v":"00:00:00"},{"$f":"Time!BIA$23","v":"00:00:00"},{"$f":"Time!BIB$23","v":"00:00:00"},{"$f":"Time!BIC$23","v":"00:00:00"},{"$f":"Time!BID$23","v":"00:00:00"},{"$f":"Time!BIE$23","v":"00:00:00"},{"$f":"Time!BIF$23","v":"00:00:00"},{"$f":"Time!BIG$23","v":"00:00:00"},{"$f":"Time!BIH$23","v":"00:00:00"},{"$f":"Time!BII$23","v":"00:00:00"},{"$f":"Time!BIJ$23","v":"00:00:00"},{"$f":"Time!BIK$23","v":"00:00:00"},{"$f":"Time!BIL$23","v":"00:00:00"},{"$f":"Time!BIM$23","v":"00:00:00"},{"$f":"Time!BIN$23","v":"00:00:00"},{"$f":"Time!BIO$23","v":"00:00:00"},{"$f":"Time!BIP$23","v":"00:00:00"},{"$f":"Time!BIQ$23","v":"00:00:00"},{"$f":"Time!BIR$23","v":"00:00:00"},{"$f":"Time!BIS$23","v":"00:00:00"},{"$f":"Time!BIT$23","v":"00:00:00"},{"$f":"Time!BIU$23","v":"00:00:00"},{"$f":"Time!BIV$23","v":"00:00:00"},{"$f":"Time!BIW$23","v":"00:00:00"},{"$f":"Time!BIX$23","v":"00:00:00"},{"$f":"Time!BIY$23","v":"00:00:00"},{"$f":"Time!BIZ$23","v":"00:00:00"},{"$f":"Time!BJA$23","v":"00:00:00"},{"$f":"Time!BJB$23","v":"00:00:00"},{"$f":"Time!BJC$23","v":"00:00:00"},{"$f":"Time!BJD$23","v":"00:00:00"},{"$f":"Time!BJE$23","v":"00:00:00"},{"$f":"Time!BJF$23","v":"00:00:00"},{"$f":"Time!BJG$23","v":"00:00:00"},{"$f":"Time!BJH$23","v":"00:00:00"},{"$f":"Time!BJI$23","v":"00:00:00"},{"$f":"Time!BJJ$23","v":"00:00:00"},{"$f":"Time!BJK$23","v":"00:00:00"},{"$f":"Time!BJL$23","v":"00:00:00"},{"$f":"Time!BJM$23","v":"00:00:00"},{"$f":"Time!BJN$23","v":"00:00:00"},{"$f":"Time!BJO$23","v":"00:00:00"},{"$f":"Time!BJP$23","v":"00:00:00"},{"$f":"Time!BJQ$23","v":"00:00:00"},{"$f":"Time!BJR$23","v":"00:00:00"},{"$f":"Time!BJS$23","v":"00:00:00"},{"$f":"Time!BJT$23","v":"00:00:00"},{"$f":"Time!BJU$23","v":"00:00:00"},{"$f":"Time!BJV$23","v":"00:00:00"},{"$f":"Time!BJW$23","v":"00:00:00"},{"$f":"Time!BJX$23","v":"00:00:00"},{"$f":"Time!BJY$23","v":"00:00:00"},{"$f":"Time!BJZ$23","v":"00:00:00"},{"$f":"Time!BKA$23","v":"00:00:00"},{"$f":"Time!BKB$23","v":"00:00:00"},{"$f":"Time!BKC$23","v":"00:00:00"},{"$f":"Time!BKD$23","v":"00:00:00"},{"$f":"Time!BKE$23","v":"00:00:00"},{"$f":"Time!BKF$23","v":"00:00:00"},{"$f":"Time!BKG$23","v":"00:00:00"},{"$f":"Time!BKH$23","v":"00:00:00"},{"$f":"Time!BKI$23","v":"00:00:00"},{"$f":"Time!BKJ$23","v":"00:00:00"},{"$f":"Time!BKK$23","v":"00:00:00"},{"$f":"Time!BKL$23","v":"00:00:00"},{"$f":"Time!BKM$23","v":"00:00:00"},{"$f":"Time!BKN$23","v":"00:00:00"},{"$f":"Time!BKO$23","v":"00:00:00"},{"$f":"Time!BKP$23","v":"00:00:00"},{"$f":"Time!BKQ$23","v":"00:00:00"},{"$f":"Time!BKR$23","v":"00:00:00"},{"$f":"Time!BKS$23","v":"00:00:00"},{"$f":"Time!BKT$23","v":"00:00:00"},{"$f":"Time!BKU$23","v":"00:00:00"},{"$f":"Time!BKV$23","v":"00:00:00"},{"$f":"Time!BKW$23","v":"00:00:00"},{"$f":"Time!BKX$23","v":"00:00:00"},{"$f":"Time!BKY$23","v":"00:00:00"},{"$f":"Time!BKZ$23","v":"00:00:00"},{"$f":"Time!BLA$23","v":"00:00:00"},{"$f":"Time!BLB$23","v":"00:00:00"},{"$f":"Time!BLC$23","v":"00:00:00"},{"$f":"Time!BLD$23","v":"00:00:00"},{"$f":"Time!BLE$23","v":"00:00:00"},{"$f":"Time!BLF$23","v":"00:00:00"},{"$f":"Time!BLG$23","v":"00:00:00"},{"$f":"Time!BLH$23","v":"00:00:00"},{"$f":"Time!BLI$23","v":"00:00:00"},{"$f":"Time!BLJ$23","v":"00:00:00"},{"$f":"Time!BLK$23","v":"00:00:00"},{"$f":"Time!BLL$23","v":"00:00:00"},{"$f":"Time!BLM$23","v":"00:00:00"},{"$f":"Time!BLN$23","v":"00:00:00"},{"$f":"Time!BLO$23","v":"00:00:00"},{"$f":"Time!BLP$23","v":"00:00:00"},{"$f":"Time!BLQ$23","v":"00:00:00"},{"$f":"Time!BLR$23","v":"00:00:00"},{"$f":"Time!BLS$23","v":"00:00:00"},{"$f":"Time!BLT$23","v":"00:00:00"},{"$f":"Time!BLU$23","v":"00:00:00"},{"$f":"Time!BLV$23","v":"00:00:00"},{"$f":"Time!BLW$23","v":"00:00:00"},{"$f":"Time!BLX$23","v":"00:00:00"},{"$f":"Time!BLY$23","v":"00:00:00"},{"$f":"Time!BLZ$23","v":"00:00:00"},{"$f":"Time!BMA$23","v":"00:00:00"},{"$f":"Time!BMB$23","v":"00:00:00"},{"$f":"Time!BMC$23","v":"00:00:00"},{"$f":"Time!BMD$23","v":"00:00:00"},{"$f":"Time!BME$23","v":"00:00:00"},{"$f":"Time!BMF$23","v":"00:00:00"},{"$f":"Time!BMG$23","v":"00:00:00"},{"$f":"Time!BMH$23","v":"00:00:00"},{"$f":"Time!BMI$23","v":"00:00:00"},{"$f":"Time!BMJ$23","v":"00:00:00"},{"$f":"Time!BMK$23","v":"00:00:00"},{"$f":"Time!BML$23","v":"00:00:00"},{"$f":"Time!BMM$23","v":"00:00:00"},{"$f":"Time!BMN$23","v":"00:00:00"},{"$f":"Time!BMO$23","v":"00:00:00"},{"$f":"Time!BMP$23","v":"00:00:00"},{"$f":"Time!BMQ$23","v":"00:00:00"},{"$f":"Time!BMR$23","v":"00:00:00"},{"$f":"Time!BMS$23","v":"00:00:00"},{"$f":"Time!BMT$23","v":"00:00:00"},{"$f":"Time!BMU$23","v":"00:00:00"},{"$f":"Time!BMV$23","v":"00:00:00"},{"$f":"Time!BMW$23","v":"00:00:00"},{"$f":"Time!BMX$23","v":"00:00:00"},{"$f":"Time!BMY$23","v":"00:00:00"},{"$f":"Time!BMZ$23","v":"00:00:00"},{"$f":"Time!BNA$23","v":"00:00:00"},{"$f":"Time!BNB$23","v":"00:00:00"},{"$f":"Time!BNC$23","v":"00:00:00"},{"$f":"Time!BND$23","v":"00:00:00"},{"$f":"Time!BNE$23","v":"00:00:00"},{"$f":"Time!BNF$23","v":"00:00:00"},{"$f":"Time!BNG$23","v":"00:00:00"},{"$f":"Time!BNH$23","v":"00:00:00"},{"$f":"Time!BNI$23","v":"00:00:00"},{"$f":"Time!BNJ$23","v":"00:00:00"},{"$f":"Time!BNK$23","v":"00:00:00"},{"$f":"Time!BNL$23","v":"00:00:00"},{"$f":"Time!BNM$23","v":"00:00:00"},{"$f":"Time!BNN$23","v":"00:00:00"},{"$f":"Time!BNO$23","v":"00:00:00"},{"$f":"Time!BNP$23","v":"00:00:00"},{"$f":"Time!BNQ$23","v":"00:00:00"},{"$f":"Time!BNR$23","v":"00:00:00"},{"$f":"Time!BNS$23","v":"00:00:00"},{"$f":"Time!BNT$23","v":"00:00:00"},{"$f":"Time!BNU$23","v":"00:00:00"},{"$f":"Time!BNV$23","v":"00:00:00"},{"$f":"Time!BNW$23","v":"00:00:00"},{"$f":"Time!BNX$23","v":"00:00:00"},{"$f":"Time!BNY$23","v":"00:00:00"},{"$f":"Time!BNZ$23","v":"00:00:00"},{"$f":"Time!BOA$23","v":"00:00:00"},{"$f":"Time!BOB$23","v":"00:00:00"},{"$f":"Time!BOC$23","v":"00:00:00"},{"$f":"Time!BOD$23","v":"00:00:00"},{"$f":"Time!BOE$23","v":"00:00:00"},{"$f":"Time!BOF$23","v":"00:00:00"},{"$f":"Time!BOG$23","v":"00:00:00"},{"$f":"Time!BOH$23","v":"00:00:00"},{"$f":"Time!BOI$23","v":"00:00:00"},{"$f":"Time!BOJ$23","v":"00:00:00"},{"$f":"Time!BOK$23","v":"00:00:00"},{"$f":"Time!BOL$23","v":"00:00:00"},{"$f":"Time!BOM$23","v":"00:00:00"},{"$f":"Time!BON$23","v":"00:00:00"},{"$f":"Time!BOO$23","v":"00:00:00"},{"$f":"Time!BOP$23","v":"00:00:00"},{"$f":"Time!BOQ$23","v":"00:00:00"},{"$f":"Time!BOR$23","v":"00:00:00"},{"$f":"Time!BOS$23","v":"00:00:00"},{"$f":"Time!BOT$23","v":"00:00:00"},{"$f":"Time!BOU$23","v":"00:00:00"},{"$f":"Time!BOV$23","v":"00:00:00"},{"$f":"Time!BOW$23","v":"00:00:00"},{"$f":"Time!BOX$23","v":"00:00:00"},{"$f":"Time!BOY$23","v":"00:00:00"},{"$f":"Time!BOZ$23","v":"00:00:00"},{"$f":"Time!BPA$23","v":"00:00:00"},{"$f":"Time!BPB$23","v":"00:00:00"},{"$f":"Time!BPC$23","v":"00:00:00"},{"$f":"Time!BPD$23","v":"00:00:00"},{"$f":"Time!BPE$23","v":"00:00:00"},{"$f":"Time!BPF$23","v":"00:00:00"},{"$f":"Time!BPG$23","v":"00:00:00"},{"$f":"Time!BPH$23","v":"00:00:00"},{"$f":"Time!BPI$23","v":"00:00:00"},{"$f":"Time!BPJ$23","v":"00:00:00"},{"$f":"Time!BPK$23","v":"00:00:00"},{"$f":"Time!BPL$23","v":"00:00:00"},{"$f":"Time!BPM$23","v":"00:00:00"},{"$f":"Time!BPN$23","v":"00:00:00"},{"$f":"Time!BPO$23","v":"00:00:00"},{"$f":"Time!BPP$23","v":"00:00:00"},{"$f":"Time!BPQ$23","v":"00:00:00"},{"$f":"Time!BPR$23","v":"00:00:00"},{"$f":"Time!BPS$23","v":"00:00:00"},{"$f":"Time!BPT$23","v":"00:00:00"},{"$f":"Time!BPU$23","v":"00:00:00"},{"$f":"Time!BPV$23","v":"00:00:00"},{"$f":"Time!BPW$23","v":"00:00:00"},{"$f":"Time!BPX$23","v":"00:00:00"},{"$f":"Time!BPY$23","v":"00:00:00"},{"$f":"Time!BPZ$23","v":"00:00:00"},{"$f":"Time!BQA$23","v":"00:00:00"},{"$f":"Time!BQB$23","v":"00:00:00"},{"$f":"Time!BQC$23","v":"00:00:00"},{"$f":"Time!BQD$23","v":"00:00:00"},{"$f":"Time!BQE$23","v":"00:00:00"},{"$f":"Time!BQF$23","v":"00:00:00"},{"$f":"Time!BQG$23","v":"00:00:00"},{"$f":"Time!BQH$23","v":"00:00:00"},{"$f":"Time!BQI$23","v":"00:00:00"},{"$f":"Time!BQJ$23","v":"00:00:00"},{"$f":"Time!BQK$23","v":"00:00:00"},{"$f":"Time!BQL$23","v":"00:00:00"},{"$f":"Time!BQM$23","v":"00:00:00"},{"$f":"Time!BQN$23","v":"00:00:00"},{"$f":"Time!BQO$23","v":"00:00:00"},{"$f":"Time!BQP$23","v":"00:00:00"},{"$f":"Time!BQQ$23","v":"00:00:00"},{"$f":"Time!BQR$23","v":"00:00:00"},{"$f":"Time!BQS$23","v":"00:00:00"},{"$f":"Time!BQT$23","v":"00:00:00"},{"$f":"Time!BQU$23","v":"00:00:00"},{"$f":"Time!BQV$23","v":"00:00:00"},{"$f":"Time!BQW$23","v":"00:00:00"},{"$f":"Time!BQX$23","v":"00:00:00"},{"$f":"Time!BQY$23","v":"00:00:00"},{"$f":"Time!BQZ$23","v":"00:00:00"},{"$f":"Time!BRA$23","v":"00:00:00"},{"$f":"Time!BRB$23","v":"00:00:00"},{"$f":"Time!BRC$23","v":"00:00:00"},{"$f":"Time!BRD$23","v":"00:00:00"},{"$f":"Time!BRE$23","v":"00:00:00"},{"$f":"Time!BRF$23","v":"00:00:00"},{"$f":"Time!BRG$23","v":"00:00:00"},{"$f":"Time!BRH$23","v":"00:00:00"},{"$f":"Time!BRI$23","v":"00:00:00"},{"$f":"Time!BRJ$23","v":"00:00:00"},{"$f":"Time!BRK$23","v":"00:00:00"},{"$f":"Time!BRL$23","v":"00:00:00"},{"$f":"Time!BRM$23","v":"00:00:00"},{"$f":"Time!BRN$23","v":"00:00:00"},{"$f":"Time!BRO$23","v":"00:00:00"},{"$f":"Time!BRP$23","v":"00:00:00"},{"$f":"Time!BRQ$23","v":"00:00:00"},{"$f":"Time!BRR$23","v":"00:00:00"},{"$f":"Time!BRS$23","v":"00:00:00"},{"$f":"Time!BRT$23","v":"00:00:00"},{"$f":"Time!BRU$23","v":"00:00:00"},{"$f":"Time!BRV$23","v":"00:00:00"},{"$f":"Time!BRW$23","v":"00:00:00"},{"$f":"Time!BRX$23","v":"00:00:00"},{"$f":"Time!BRY$23","v":"00:00:00"},{"$f":"Time!BRZ$23","v":"00:00:00"},{"$f":"Time!BSA$23","v":"00:00:00"},{"$f":"Time!BSB$23","v":"00:00:00"},{"$f":"Time!BSC$23","v":"00:00:00"},{"$f":"Time!BSD$23","v":"00:00:00"},{"$f":"Time!BSE$23","v":"00:00:00"},{"$f":"Time!BSF$23","v":"00:00:00"},{"$f":"Time!BSG$23","v":"00:00:00"},{"$f":"Time!BSH$23","v":"00:00:00"},{"$f":"Time!BSI$23","v":"00:00:00"},{"$f":"Time!BSJ$23","v":"00:00:00"},{"$f":"Time!BSK$23","v":"00:00:00"},{"$f":"Time!BSL$23","v":"00:00:00"},{"$f":"Time!BSM$23","v":"00:00:00"},{"$f":"Time!BSN$23","v":"00:00:00"},{"$f":"Time!BSO$23","v":"00:00:00"},{"$f":"Time!BSP$23","v":"00:00:00"},{"$f":"Time!BSQ$23","v":"00:00:00"},{"$f":"Time!BSR$23","v":"00:00:00"},{"$f":"Time!BSS$23","v":"00:00:00"},{"$f":"Time!BST$23","v":"00:00:00"},{"$f":"Time!BSU$23","v":"00:00:00"},{"$f":"Time!BSV$23","v":"00:00:00"},{"$f":"Time!BSW$23","v":"00:00:00"},{"$f":"Time!BSX$23","v":"00:00:00"},{"$f":"Time!BSY$23","v":"00:00:00"},{"$f":"Time!BSZ$23","v":"00:00:00"},{"$f":"Time!BTA$23","v":"00:00:00"},{"$f":"Time!BTB$23","v":"00:00:00"},{"$f":"Time!BTC$23","v":"00:00:00"},{"$f":"Time!BTD$23","v":"00:00:00"},{"$f":"Time!BTE$23","v":"00:00:00"},{"$f":"Time!BTF$23","v":"00:00:00"},{"$f":"Time!BTG$23","v":"00:00:00"},{"$f":"Time!BTH$23","v":"00:00:00"},{"$f":"Time!BTI$23","v":"00:00:00"},{"$f":"Time!BTJ$23","v":"00:00:00"},{"$f":"Time!BTK$23","v":"00:00:00"},{"$f":"Time!BTL$23","v":"00:00:00"},{"$f":"Time!BTM$23","v":"00:00:00"},{"$f":"Time!BTN$23","v":"00:00:00"},{"$f":"Time!BTO$23","v":"00:00:00"},{"$f":"Time!BTP$23","v":"00:00:00"},{"$f":"Time!BTQ$23","v":"00:00:00"},{"$f":"Time!BTR$23","v":"00:00:00"},{"$f":"Time!BTS$23","v":"00:00:00"},{"$f":"Time!BTT$23","v":"00:00:00"},{"$f":"Time!BTU$23","v":"00:00:00"},{"$f":"Time!BTV$23","v":"00:00:00"},{"$f":"Time!BTW$23","v":"00:00:00"},{"$f":"Time!BTX$23","v":"00:00:00"},{"$f":"Time!BTY$23","v":"00:00:00"},{"$f":"Time!BTZ$23","v":"00:00:00"},{"$f":"Time!BUA$23","v":"00:00:00"},{"$f":"Time!BUB$23","v":"00:00:00"},{"$f":"Time!BUC$23","v":"00:00:00"},{"$f":"Time!BUD$23","v":"00:00:00"},{"$f":"Time!BUE$23","v":"00:00:00"},{"$f":"Time!BUF$23","v":"00:00:00"},{"$f":"Time!BUG$23","v":"00:00:00"},{"$f":"Time!BUH$23","v":"00:00:00"},{"$f":"Time!BUI$23","v":"00:00:00"},{"$f":"Time!BUJ$23","v":"00:00:00"},{"$f":"Time!BUK$23","v":"00:00:00"},{"$f":"Time!BUL$23","v":"00:00:00"},{"$f":"Time!BUM$23","v":"00:00:00"},{"$f":"Time!BUN$23","v":"00:00:00"},{"$f":"Time!BUO$23","v":"00:00:00"},{"$f":"Time!BUP$23","v":"00:00:00"},{"$f":"Time!BUQ$23","v":"00:00:00"},{"$f":"Time!BUR$23","v":"00:00:00"},{"$f":"Time!BUS$23","v":"00:00:00"},{"$f":"Time!BUT$23","v":"00:00:00"},{"$f":"Time!BUU$23","v":"00:00:00"},{"$f":"Time!BUV$23","v":"00:00:00"},{"$f":"Time!BUW$23","v":"00:00:00"},{"$f":"Time!BUX$23","v":"00:00:00"},{"$f":"Time!BUY$23","v":"00:00:00"},{"$f":"Time!BUZ$23","v":"00:00:00"},{"$f":"Time!BVA$23","v":"00:00:00"},{"$f":"Time!BVB$23","v":"00:00:00"},{"$f":"Time!BVC$23","v":"00:00:00"},{"$f":"Time!BVD$23","v":"00:00:00"},{"$f":"Time!BVE$23","v":"00:00:00"},{"$f":"Time!BVF$23","v":"00:00:00"},{"$f":"Time!BVG$23","v":"00:00:00"},{"$f":"Time!BVH$23","v":"00:00:00"},{"$f":"Time!BVI$23","v":"00:00:00"},{"$f":"Time!BVJ$23","v":"00:00:00"},{"$f":"Time!BVK$23","v":"00:00:00"},{"$f":"Time!BVL$23","v":"00:00:00"},{"$f":"Time!BVM$23","v":"00:00:00"},{"$f":"Time!BVN$23","v":"00:00:00"},{"$f":"Time!BVO$23","v":"00:00:00"},{"$f":"Time!BVP$23","v":"00:00:00"},{"$f":"Time!BVQ$23","v":"00:00:00"},{"$f":"Time!BVR$23","v":"00:00:00"},{"$f":"Time!BVS$23","v":"00:00:00"},{"$f":"Time!BVT$23","v":"00:00:00"},{"$f":"Time!BVU$23","v":"00:00:00"},{"$f":"Time!BVV$23","v":"00:00:00"},{"$f":"Time!BVW$23","v":"00:00:00"},{"$f":"Time!BVX$23","v":"00:00:00"},{"$f":"Time!BVY$23","v":"00:00:00"},{"$f":"Time!BVZ$23","v":"00:00:00"},{"$f":"Time!BWA$23","v":"00:00:00"},{"$f":"Time!BWB$23","v":"00:00:00"},{"$f":"Time!BWC$23","v":"00:00:00"},{"$f":"Time!BWD$23","v":"00:00:00"},{"$f":"Time!BWE$23","v":"00:00:00"},{"$f":"Time!BWF$23","v":"00:00:00"},{"$f":"Time!BWG$23","v":"00:00:00"},{"$f":"Time!BWH$23","v":"00:00:00"},{"$f":"Time!BWI$23","v":"00:00:00"},{"$f":"Time!BWJ$23","v":"00:00:00"},{"$f":"Time!BWK$23","v":"00:00:00"},{"$f":"Time!BWL$23","v":"00:00:00"},{"$f":"Time!BWM$23","v":"00:00:00"},{"$f":"Time!BWN$23","v":"00:00:00"},{"$f":"Time!BWO$23","v":"00:00:00"},{"$f":"Time!BWP$23","v":"00:00:00"},{"$f":"Time!BWQ$23","v":"00:00:00"},{"$f":"Time!BWR$23","v":"00:00:00"},{"$f":"Time!BWS$23","v":"00:00:00"},{"$f":"Time!BWT$23","v":"00:00:00"},{"$f":"Time!BWU$23","v":"00:00:00"},{"$f":"Time!BWV$23","v":"00:00:00"},{"$f":"Time!BWW$23","v":"00:00:00"},{"$f":"Time!BWX$23","v":"00:00:00"},{"$f":"Time!BWY$23","v":"00:00:00"},{"$f":"Time!BWZ$23","v":"00:00:00"},{"$f":"Time!BXA$23","v":"00:00:00"},{"$f":"Time!BXB$23","v":"00:00:00"},{"$f":"Time!BXC$23","v":"00:00:00"},{"$f":"Time!BXD$23","v":"00:00:00"},{"$f":"Time!BXE$23","v":"00:00:00"},{"$f":"Time!BXF$23","v":"00:00:00"},{"$f":"Time!BXG$23","v":"00:00:00"},{"$f":"Time!BXH$23","v":"00:00:00"},{"$f":"Time!BXI$23","v":"00:00:00"},{"$f":"Time!BXJ$23","v":"00:00:00"},{"$f":"Time!BXK$23","v":"00:00:00"},{"$f":"Time!BXL$23","v":"00:00:00"},{"$f":"Time!BXM$23","v":"00:00:00"},{"$f":"Time!BXN$23","v":"00:00:00"},{"$f":"Time!BXO$23","v":"00:00:00"},{"$f":"Time!BXP$23","v":"00:00:00"},{"$f":"Time!BXQ$23","v":"00:00:00"},{"$f":"Time!BXR$23","v":"00:00:00"},{"$f":"Time!BXS$23","v":"00:00:00"},{"$f":"Time!BXT$23","v":"00:00:00"},{"$f":"Time!BXU$23","v":"00:00:00"},{"$f":"Time!BXV$23","v":"00:00:00"},{"$f":"Time!BXW$23","v":"00:00:00"},{"$f":"Time!BXX$23","v":"00:00:00"},{"$f":"Time!BXY$23","v":"00:00:00"},{"$f":"Time!BXZ$23","v":"00:00:00"},{"$f":"Time!BYA$23","v":"00:00:00"},{"$f":"Time!BYB$23","v":"00:00:00"},{"$f":"Time!BYC$23","v":"00:00:00"},{"$f":"Time!BYD$23","v":"00:00:00"},{"$f":"Time!BYE$23","v":"00:00:00"},{"$f":"Time!BYF$23","v":"00:00:00"},{"$f":"Time!BYG$23","v":"00:00:00"},{"$f":"Time!BYH$23","v":"00:00:00"},{"$f":"Time!BYI$23","v":"00:00:00"},{"$f":"Time!BYJ$23","v":"00:00:00"},{"$f":"Time!BYK$23","v":"00:00:00"},{"$f":"Time!BYL$23","v":"00:00:00"},{"$f":"Time!BYM$23","v":"00:00:00"},{"$f":"Time!BYN$23","v":"00:00:00"},{"$f":"Time!BYO$23","v":"00:00:00"},{"$f":"Time!BYP$23","v":"00:00:00"},{"$f":"Time!BYQ$23","v":"00:00:00"},{"$f":"Time!BYR$23","v":"00:00:00"},{"$f":"Time!BYS$23","v":"00:00:00"},{"$f":"Time!BYT$23","v":"00:00:00"},{"$f":"Time!BYU$23","v":"00:00:00"},{"$f":"Time!BYV$23","v":"00:00:00"},{"$f":"Time!BYW$23","v":"00:00:00"},{"$f":"Time!BYX$23","v":"00:00:00"},{"$f":"Time!BYY$23","v":"00:00:00"},{"$f":"Time!BYZ$23","v":"00:00:00"},{"$f":"Time!BZA$23","v":"00:00:00"},{"$f":"Time!BZB$23","v":"00:00:00"},{"$f":"Time!BZC$23","v":"00:00:00"},{"$f":"Time!BZD$23","v":"00:00:00"},{"$f":"Time!BZE$23","v":"00:00:00"},{"$f":"Time!BZF$23","v":"00:00:00"},{"$f":"Time!BZG$23","v":"00:00:00"},{"$f":"Time!BZH$23","v":"00:00:00"},{"$f":"Time!BZI$23","v":"00:00:00"},{"$f":"Time!BZJ$23","v":"00:00:00"},{"$f":"Time!BZK$23","v":"00:00:00"},{"$f":"Time!BZL$23","v":"00:00:00"},{"$f":"Time!BZM$23","v":"00:00:00"},{"$f":"Time!BZN$23","v":"00:00:00"},{"$f":"Time!BZO$23","v":"00:00:00"},{"$f":"Time!BZP$23","v":"00:00:00"},{"$f":"Time!BZQ$23","v":"00:00:00"},{"$f":"Time!BZR$23","v":"00:00:00"},{"$f":"Time!BZS$23","v":"00:00:00"},{"$f":"Time!BZT$23","v":"00:00:00"},{"$f":"Time!BZU$23","v":"00:00:00"},{"$f":"Time!BZV$23","v":"00:00:00"},{"$f":"Time!BZW$23","v":"00:00:00"},{"$f":"Time!BZX$23","v":"00:00:00"},{"$f":"Time!BZY$23","v":"00:00:00"},{"$f":"Time!BZZ$23","v":"00:00:00"},{"$f":"Time!CAA$23","v":"00:00:00"},{"$f":"Time!CAB$23","v":"00:00:00"},{"$f":"Time!CAC$23","v":"00:00:00"},{"$f":"Time!CAD$23","v":"00:00:00"},{"$f":"Time!CAE$23","v":"00:00:00"},{"$f":"Time!CAF$23","v":"00:00:00"},{"$f":"Time!CAG$23","v":"00:00:00"},{"$f":"Time!CAH$23","v":"00:00:00"},{"$f":"Time!CAI$23","v":"00:00:00"},{"$f":"Time!CAJ$23","v":"00:00:00"},{"$f":"Time!CAK$23","v":"00:00:00"},{"$f":"Time!CAL$23","v":"00:00:00"},{"$f":"Time!CAM$23","v":"00:00:00"},{"$f":"Time!CAN$23","v":"00:00:00"},{"$f":"Time!CAO$23","v":"00:00:00"},{"$f":"Time!CAP$23","v":"00:00:00"},{"$f":"Time!CAQ$23","v":"00:00:00"},{"$f":"Time!CAR$23","v":"00:00:00"},{"$f":"Time!CAS$23","v":"00:00:00"},{"$f":"Time!CAT$23","v":"00:00:00"},{"$f":"Time!CAU$23","v":"00:00:00"},{"$f":"Time!CAV$23","v":"00:00:00"},{"$f":"Time!CAW$23","v":"00:00:00"},{"$f":"Time!CAX$23","v":"00:00:00"},{"$f":"Time!CAY$23","v":"00:00:00"},{"$f":"Time!CAZ$23","v":"00:00:00"},{"$f":"Time!CBA$23","v":"00:00:00"},{"$f":"Time!CBB$23","v":"00:00:00"},{"$f":"Time!CBC$23","v":"00:00:00"},{"$f":"Time!CBD$23","v":"00:00:00"},{"$f":"Time!CBE$23","v":"00:00:00"},{"$f":"Time!CBF$23","v":"00:00:00"},{"$f":"Time!CBG$23","v":"00:00:00"},{"$f":"Time!CBH$23","v":"00:00:00"},{"$f":"Time!CBI$23","v":"00:00:00"},{"$f":"Time!CBJ$23","v":"00:00:00"},{"$f":"Time!CBK$23","v":"00:00:00"},{"$f":"Time!CBL$23","v":"00:00:00"},{"$f":"Time!CBM$23","v":"00:00:00"},{"$f":"Time!CBN$23","v":"00:00:00"},{"$f":"Time!CBO$23","v":"00:00:00"},{"$f":"Time!CBP$23","v":"00:00:00"},{"$f":"Time!CBQ$23","v":"00:00:00"},{"$f":"Time!CBR$23","v":"00:00:00"},{"$f":"Time!CBS$23","v":"00:00:00"},{"$f":"Time!CBT$23","v":"00:00:00"},{"$f":"Time!CBU$23","v":"00:00:00"},{"$f":"Time!CBV$23","v":"00:00:00"},{"$f":"Time!CBW$23","v":"00:00:00"},{"$f":"Time!CBX$23","v":"00:00:00"},{"$f":"Time!CBY$23","v":"00:00:00"},{"$f":"Time!CBZ$23","v":"00:00:00"},{"$f":"Time!CCA$23","v":"00:00:00"},{"$f":"Time!CCB$23","v":"00:00:00"},{"$f":"Time!CCC$23","v":"00:00:00"},{"$f":"Time!CCD$23","v":"00:00:00"},{"$f":"Time!CCE$23","v":"00:00:00"},{"$f":"Time!CCF$23","v":"00:00:00"},{"$f":"Time!CCG$23","v":"00:00:00"},{"$f":"Time!CCH$23","v":"00:00:00"},{"$f":"Time!CCI$23","v":"00:00:00"},{"$f":"Time!CCJ$23","v":"00:00:00"},{"$f":"Time!CCK$23","v":"00:00:00"},{"$f":"Time!CCL$23","v":"00:00:00"},{"$f":"Time!CCM$23","v":"00:00:00"},{"$f":"Time!CCN$23","v":"00:00:00"},{"$f":"Time!CCO$23","v":"00:00:00"},{"$f":"Time!CCP$23","v":"00:00:00"},{"$f":"Time!CCQ$23","v":"00:00:00"},{"$f":"Time!CCR$23","v":"00:00:00"},{"$f":"Time!CCS$23","v":"00:00:00"},{"$f":"Time!CCT$23","v":"00:00:00"},{"$f":"Time!CCU$23","v":"00:00:00"},{"$f":"Time!CCV$23","v":"00:00:00"},{"$f":"Time!CCW$23","v":"00:00:00"},{"$f":"Time!CCX$23","v":"00:00:00"},{"$f":"Time!CCY$23","v":"00:00:00"},{"$f":"Time!CCZ$23","v":"00:00:00"},{"$f":"Time!CDA$23","v":"00:00:00"},{"$f":"Time!CDB$23","v":"00:00:00"},{"$f":"Time!CDC$23","v":"00:00:00"},{"$f":"Time!CDD$23","v":"00:00:00"},{"$f":"Time!CDE$23","v":"00:00:00"},{"$f":"Time!CDF$23","v":"00:00:00"},{"$f":"Time!CDG$23","v":"00:00:00"},{"$f":"Time!CDH$23","v":"00:00:00"},{"$f":"Time!CDI$23","v":"00:00:00"},{"$f":"Time!CDJ$23","v":"00:00:00"},{"$f":"Time!CDK$23","v":"00:00:00"},{"$f":"Time!CDL$23","v":"00:00:00"},{"$f":"Time!CDM$23","v":"00:00:00"},{"$f":"Time!CDN$23","v":"00:00:00"},{"$f":"Time!CDO$23","v":"00:00:00"},{"$f":"Time!CDP$23","v":"00:00:00"},{"$f":"Time!CDQ$23","v":"00:00:00"},{"$f":"Time!CDR$23","v":"00:00:00"},{"$f":"Time!CDS$23","v":"00:00:00"},{"$f":"Time!CDT$23","v":"00:00:00"},{"$f":"Time!CDU$23","v":"00:00:00"},{"$f":"Time!CDV$23","v":"00:00:00"},{"$f":"Time!CDW$23","v":"00:00:00"},{"$f":"Time!CDX$23","v":"00:00:00"},{"$f":"Time!CDY$23","v":"00:00:00"},{"$f":"Time!CDZ$23","v":"00:00:00"},{"$f":"Time!CEA$23","v":"00:00:00"},{"$f":"Time!CEB$23","v":"00:00:00"},{"$f":"Time!CEC$23","v":"00:00:00"},{"$f":"Time!CED$23","v":"00:00:00"},{"$f":"Time!CEE$23","v":"00:00:00"},{"$f":"Time!CEF$23","v":"00:00:00"},{"$f":"Time!CEG$23","v":"00:00:00"},{"$f":"Time!CEH$23","v":"00:00:00"},{"$f":"Time!CEI$23","v":"00:00:00"},{"$f":"Time!CEJ$23","v":"00:00:00"},{"$f":"Time!CEK$23","v":"00:00:00"},{"$f":"Time!CEL$23","v":"00:00:00"},{"$f":"Time!CEM$23","v":"00:00:00"},{"$f":"Time!CEN$23","v":"00:00:00"},{"$f":"Time!CEO$23","v":"00:00:00"},{"$f":"Time!CEP$23","v":"00:00:00"},{"$f":"Time!CEQ$23","v":"00:00:00"},{"$f":"Time!CER$23","v":"00:00:00"},{"$f":"Time!CES$23","v":"00:00:00"},{"$f":"Time!CET$23","v":"00:00:00"},{"$f":"Time!CEU$23","v":"00:00:00"},{"$f":"Time!CEV$23","v":"00:00:00"},{"$f":"Time!CEW$23","v":"00:00:00"},{"$f":"Time!CEX$23","v":"00:00:00"},{"$f":"Time!CEY$23","v":"00:00:00"},{"$f":"Time!CEZ$23","v":"00:00:00"},{"$f":"Time!CFA$23","v":"00:00:00"},{"$f":"Time!CFB$23","v":"00:00:00"},{"$f":"Time!CFC$23","v":"00:00:00"},{"$f":"Time!CFD$23","v":"00:00:00"},{"$f":"Time!CFE$23","v":"00:00:00"},{"$f":"Time!CFF$23","v":"00:00:00"},{"$f":"Time!CFG$23","v":"00:00:00"},{"$f":"Time!CFH$23","v":"00:00:00"},{"$f":"Time!CFI$23","v":"00:00:00"},{"$f":"Time!CFJ$23","v":"00:00:00"},{"$f":"Time!CFK$23","v":"00:00:00"},{"$f":"Time!CFL$23","v":"00:00:00"},{"$f":"Time!CFM$23","v":"00:00:00"},{"$f":"Time!CFN$23","v":"00:00:00"},{"$f":"Time!CFO$23","v":"00:00:00"},{"$f":"Time!CFP$23","v":"00:00:00"},{"$f":"Time!CFQ$23","v":"00:00:00"},{"$f":"Time!CFR$23","v":"00:00:00"},{"$f":"Time!CFS$23","v":"00:00:00"},{"$f":"Time!CFT$23","v":"00:00:00"},{"$f":"Time!CFU$23","v":"00:00:00"},{"$f":"Time!CFV$23","v":"00:00:00"},{"$f":"Time!CFW$23","v":"00:00:00"},{"$f":"Time!CFX$23","v":"00:00:00"},{"$f":"Time!CFY$23","v":"00:00:00"},{"$f":"Time!CFZ$23","v":"00:00:00"},{"$f":"Time!CGA$23","v":"00:00:00"},{"$f":"Time!CGB$23","v":"00:00:00"},{"$f":"Time!CGC$23","v":"00:00:00"},{"$f":"Time!CGD$23","v":"00:00:00"},{"$f":"Time!CGE$23","v":"00:00:00"},{"$f":"Time!CGF$23","v":"00:00:00"},{"$f":"Time!CGG$23","v":"00:00:00"},{"$f":"Time!CGH$23","v":"00:00:00"},{"$f":"Time!CGI$23","v":"00:00:00"},{"$f":"Time!CGJ$23","v":"00:00:00"},{"$f":"Time!CGK$23","v":"00:00:00"},{"$f":"Time!CGL$23","v":"00:00:00"},{"$f":"Time!CGM$23","v":"00:00:00"},{"$f":"Time!CGN$23","v":"00:00:00"},{"$f":"Time!CGO$23","v":"00:00:00"},{"$f":"Time!CGP$23","v":"00:00:00"},{"$f":"Time!CGQ$23","v":"00:00:00"},{"$f":"Time!CGR$23","v":"00:00:00"},{"$f":"Time!CGS$23","v":"00:00:00"},{"$f":"Time!CGT$23","v":"00:00:00"},{"$f":"Time!CGU$23","v":"00:00:00"},{"$f":"Time!CGV$23","v":"00:00:00"},{"$f":"Time!CGW$23","v":"00:00:00"},{"$f":"Time!CGX$23","v":"00:00:00"},{"$f":"Time!CGY$23","v":"00:00:00"},{"$f":"Time!CGZ$23","v":"00:00:00"},{"$f":"Time!CHA$23","v":"00:00:00"},{"$f":"Time!CHB$23","v":"00:00:00"},{"$f":"Time!CHC$23","v":"00:00:00"},{"$f":"Time!CHD$23","v":"00:00:00"},{"$f":"Time!CHE$23","v":"00:00:00"},{"$f":"Time!CHF$23","v":"00:00:00"},{"$f":"Time!CHG$23","v":"00:00:00"},{"$f":"Time!CHH$23","v":"00:00:00"},{"$f":"Time!CHI$23","v":"00:00:00"},{"$f":"Time!CHJ$23","v":"00:00:00"},{"$f":"Time!CHK$23","v":"00:00:00"},{"$f":"Time!CHL$23","v":"00:00:00"},{"$f":"Time!CHM$23","v":"00:00:00"},{"$f":"Time!CHN$23","v":"00:00:00"},{"$f":"Time!CHO$23","v":"00:00:00"},{"$f":"Time!CHP$23","v":"00:00:00"},{"$f":"Time!CHQ$23","v":"00:00:00"},{"$f":"Time!CHR$23","v":"00:00:00"},{"$f":"Time!CHS$23","v":"00:00:00"},{"$f":"Time!CHT$23","v":"00:00:00"},{"$f":"Time!CHU$23","v":"00:00:00"},{"$f":"Time!CHV$23","v":"00:00:00"},{"$f":"Time!CHW$23","v":"00:00:00"},{"$f":"Time!CHX$23","v":"00:00:00"},{"$f":"Time!CHY$23","v":"00:00:00"},{"$f":"Time!CHZ$23","v":"00:00:00"},{"$f":"Time!CIA$23","v":"00:00:00"},{"$f":"Time!CIB$23","v":"00:00:00"},{"$f":"Time!CIC$23","v":"00:00:00"},{"$f":"Time!CID$23","v":"00:00:00"},{"$f":"Time!CIE$23","v":"00:00:00"},{"$f":"Time!CIF$23","v":"00:00:00"},{"$f":"Time!CIG$23","v":"00:00:00"},{"$f":"Time!CIH$23","v":"00:00:00"},{"$f":"Time!CII$23","v":"00:00:00"},{"$f":"Time!CIJ$23","v":"00:00:00"},{"$f":"Time!CIK$23","v":"00:00:00"},{"$f":"Time!CIL$23","v":"00:00:00"},{"$f":"Time!CIM$23","v":"00:00:00"},{"$f":"Time!CIN$23","v":"00:00:00"},{"$f":"Time!CIO$23","v":"00:00:00"},{"$f":"Time!CIP$23","v":"00:00:00"},{"$f":"Time!CIQ$23","v":"00:00:00"},{"$f":"Time!CIR$23","v":"00:00:00"},{"$f":"Time!CIS$23","v":"00:00:00"},{"$f":"Time!CIT$23","v":"00:00:00"},{"$f":"Time!CIU$23","v":"00:00:00"},{"$f":"Time!CIV$23","v":"00:00:00"},{"$f":"Time!CIW$23","v":"00:00:00"},{"$f":"Time!CIX$23","v":"00:00:00"},{"$f":"Time!CIY$23","v":"00:00:00"},{"$f":"Time!CIZ$23","v":"00:00:00"},{"$f":"Time!CJA$23","v":"00:00:00"},{"$f":"Time!CJB$23","v":"00:00:00"},{"$f":"Time!CJC$23","v":"00:00:00"},{"$f":"Time!CJD$23","v":"00:00:00"},{"$f":"Time!CJE$23","v":"00:00:00"},{"$f":"Time!CJF$23","v":"00:00:00"},{"$f":"Time!CJG$23","v":"00:00:00"},{"$f":"Time!CJH$23","v":"00:00:00"},{"$f":"Time!CJI$23","v":"00:00:00"},{"$f":"Time!CJJ$23","v":"00:00:00"},{"$f":"Time!CJK$23","v":"00:00:00"},{"$f":"Time!CJL$23","v":"00:00:00"},{"$f":"Time!CJM$23","v":"00:00:00"},{"$f":"Time!CJN$23","v":"00:00:00"},{"$f":"Time!CJO$23","v":"00:00:00"},{"$f":"Time!CJP$23","v":"00:00:00"},{"$f":"Time!CJQ$23","v":"00:00:00"},{"$f":"Time!CJR$23","v":"00:00:00"},{"$f":"Time!CJS$23","v":"00:00:00"},{"$f":"Time!CJT$23","v":"00:00:00"},{"$f":"Time!CJU$23","v":"00:00:00"},{"$f":"Time!CJV$23","v":"00:00:00"},{"$f":"Time!CJW$23","v":"00:00:00"},{"$f":"Time!CJX$23","v":"00:00:00"},{"$f":"Time!CJY$23","v":"00:00:00"},{"$f":"Time!CJZ$23","v":"00:00:00"},{"$f":"Time!CKA$23","v":"00:00:00"},{"$f":"Time!CKB$23","v":"00:00:00"},{"$f":"Time!CKC$23","v":"00:00:00"},{"$f":"Time!CKD$23","v":"00:00:00"},{"$f":"Time!CKE$23","v":"00:00:00"},{"$f":"Time!CKF$23","v":"00:00:00"},{"$f":"Time!CKG$23","v":"00:00:00"},{"$f":"Time!CKH$23","v":"00:00:00"},{"$f":"Time!CKI$23","v":"00:00:00"},{"$f":"Time!CKJ$23","v":"00:00:00"},{"$f":"Time!CKK$23","v":"00:00:00"},{"$f":"Time!CKL$23","v":"00:00:00"},{"$f":"Time!CKM$23","v":"00:00:00"},{"$f":"Time!CKN$23","v":"00:00:00"},{"$f":"Time!CKO$23","v":"00:00:00"},{"$f":"Time!CKP$23","v":"00:00:00"},{"$f":"Time!CKQ$23","v":"00:00:00"},{"$f":"Time!CKR$23","v":"00:00:00"},{"$f":"Time!CKS$23","v":"00:00:00"},{"$f":"Time!CKT$23","v":"00:00:00"},{"$f":"Time!CKU$23","v":"00:00:00"},{"$f":"Time!CKV$23","v":"00:00:00"},{"$f":"Time!CKW$23","v":"00:00:00"},{"$f":"Time!CKX$23","v":"00:00:00"},{"$f":"Time!CKY$23","v":"00:00:00"},{"$f":"Time!CKZ$23","v":"00:00:00"},{"$f":"Time!CLA$23","v":"00:00:00"},{"$f":"Time!CLB$23","v":"00:00:00"},{"$f":"Time!CLC$23","v":"00:00:00"},{"$f":"Time!CLD$23","v":"00:00:00"},{"$f":"Time!CLE$23","v":"00:00:00"},{"$f":"Time!CLF$23","v":"00:00:00"},{"$f":"Time!CLG$23","v":"00:00:00"},{"$f":"Time!CLH$23","v":"00:00:00"},{"$f":"Time!CLI$23","v":"00:00:00"},{"$f":"Time!CLJ$23","v":"00:00:00"},{"$f":"Time!CLK$23","v":"00:00:00"},{"$f":"Time!CLL$23","v":"00:00:00"},{"$f":"Time!CLM$23","v":"00:00:00"},{"$f":"Time!CLN$23","v":"00:00:00"},{"$f":"Time!CLO$23","v":"00:00:00"},{"$f":"Time!CLP$23","v":"00:00:00"},{"$f":"Time!CLQ$23","v":"00:00:00"},{"$f":"Time!CLR$23","v":"00:00:00"},{"$f":"Time!CLS$23","v":"00:00:00"},{"$f":"Time!CLT$23","v":"00:00:00"},{"$f":"Time!CLU$23","v":"00:00:00"},{"$f":"Time!CLV$23","v":"00:00:00"},{"$f":"Time!CLW$23","v":"00:00:00"},{"$f":"Time!CLX$23","v":"00:00:00"},{"$f":"Time!CLY$23","v":"00:00:00"},{"$f":"Time!CLZ$23","v":"00:00:00"},{"$f":"Time!CMA$23","v":"00:00:00"},{"$f":"Time!CMB$23","v":"00:00:00"},{"$f":"Time!CMC$23","v":"00:00:00"},{"$f":"Time!CMD$23","v":"00:00:00"},{"$f":"Time!CME$23","v":"00:00:00"},{"$f":"Time!CMF$23","v":"00:00:00"},{"$f":"Time!CMG$23","v":"00:00:00"},{"$f":"Time!CMH$23","v":"00:00:00"},{"$f":"Time!CMI$23","v":"00:00:00"},{"$f":"Time!CMJ$23","v":"00:00:00"},{"$f":"Time!CMK$23","v":"00:00:00"},{"$f":"Time!CML$23","v":"00:00:00"},{"$f":"Time!CMM$23","v":"00:00:00"},{"$f":"Time!CMN$23","v":"00:00:00"},{"$f":"Time!CMO$23","v":"00:00:00"},{"$f":"Time!CMP$23","v":"00:00:00"},{"$f":"Time!CMQ$23","v":"00:00:00"},{"$f":"Time!CMR$23","v":"00:00:00"},{"$f":"Time!CMS$23","v":"00:00:00"},{"$f":"Time!CMT$23","v":"00:00:00"},{"$f":"Time!CMU$23","v":"00:00:00"},{"$f":"Time!CMV$23","v":"00:00:00"},{"$f":"Time!CMW$23","v":"00:00:00"},{"$f":"Time!CMX$23","v":"00:00:00"},{"$f":"Time!CMY$23","v":"00:00:00"},{"$f":"Time!CMZ$23","v":"00:00:00"},{"$f":"Time!CNA$23","v":"00:00:00"},{"$f":"Time!CNB$23","v":"00:00:00"},{"$f":"Time!CNC$23","v":"00:00:00"},{"$f":"Time!CND$23","v":"00:00:00"},{"$f":"Time!CNE$23","v":"00:00:00"},{"$f":"Time!CNF$23","v":"00:00:00"},{"$f":"Time!CNG$23","v":"00:00:00"},{"$f":"Time!CNH$23","v":"00:00:00"},{"$f":"Time!CNI$23","v":"00:00:00"},{"$f":"Time!CNJ$23","v":"00:00:00"},{"$f":"Time!CNK$23","v":"00:00:00"},{"$f":"Time!CNL$23","v":"00:00:00"},{"$f":"Time!CNM$23","v":"00:00:00"},{"$f":"Time!CNN$23","v":"00:00:00"},{"$f":"Time!CNO$23","v":"00:00:00"},{"$f":"Time!CNP$23","v":"00:00:00"},{"$f":"Time!CNQ$23","v":"00:00:00"},{"$f":"Time!CNR$23","v":"00:00:00"},{"$f":"Time!CNS$23","v":"00:00:00"},{"$f":"Time!CNT$23","v":"00:00:00"},{"$f":"Time!CNU$23","v":"00:00:00"},{"$f":"Time!CNV$23","v":"00:00:00"},{"$f":"Time!CNW$23","v":"00:00:00"},{"$f":"Time!CNX$23","v":"00:00:00"},{"$f":"Time!CNY$23","v":"00:00:00"},{"$f":"Time!CNZ$23","v":"00:00:00"},{"$f":"Time!COA$23","v":"00:00:00"},{"$f":"Time!COB$23","v":"00:00:00"},{"$f":"Time!COC$23","v":"00:00:00"},{"$f":"Time!COD$23","v":"00:00:00"},{"$f":"Time!COE$23","v":"00:00:00"},{"$f":"Time!COF$23","v":"00:00:00"},{"$f":"Time!COG$23","v":"00:00:00"},{"$f":"Time!COH$23","v":"00:00:00"},{"$f":"Time!COI$23","v":"00:00:00"},{"$f":"Time!COJ$23","v":"00:00:00"},{"$f":"Time!COK$23","v":"00:00:00"},{"$f":"Time!COL$23","v":"00:00:00"},{"$f":"Time!COM$23","v":"00:00:00"},{"$f":"Time!CON$23","v":"00:00:00"},{"$f":"Time!COO$23","v":"00:00:00"},{"$f":"Time!COP$23","v":"00:00:00"},{"$f":"Time!COQ$23","v":"00:00:00"},{"$f":"Time!COR$23","v":"00:00:00"},{"$f":"Time!COS$23","v":"00:00:00"},{"$f":"Time!COT$23","v":"00:00:00"},{"$f":"Time!COU$23","v":"00:00:00"},{"$f":"Time!COV$23","v":"00:00:00"},{"$f":"Time!COW$23","v":"00:00:00"},{"$f":"Time!COX$23","v":"00:00:00"},{"$f":"Time!COY$23","v":"00:00:00"},{"$f":"Time!COZ$23","v":"00:00:00"},{"$f":"Time!CPA$23","v":"00:00:00"},{"$f":"Time!CPB$23","v":"00:00:00"},{"$f":"Time!CPC$23","v":"00:00:00"},{"$f":"Time!CPD$23","v":"00:00:00"},{"$f":"Time!CPE$23","v":"00:00:00"},{"$f":"Time!CPF$23","v":"00:00:00"},{"$f":"Time!CPG$23","v":"00:00:00"},{"$f":"Time!CPH$23","v":"00:00:00"},{"$f":"Time!CPI$23","v":"00:00:00"},{"$f":"Time!CPJ$23","v":"00:00:00"},{"$f":"Time!CPK$23","v":"00:00:00"},{"$f":"Time!CPL$23","v":"00:00:00"},{"$f":"Time!CPM$23","v":"00:00:00"},{"$f":"Time!CPN$23","v":"00:00:00"},{"$f":"Time!CPO$23","v":"00:00:00"},{"$f":"Time!CPP$23","v":"00:00:00"},{"$f":"Time!CPQ$23","v":"00:00:00"},{"$f":"Time!CPR$23","v":"00:00:00"},{"$f":"Time!CPS$23","v":"00:00:00"},{"$f":"Time!CPT$23","v":"00:00:00"},{"$f":"Time!CPU$23","v":"00:00:00"},{"$f":"Time!CPV$23","v":"00:00:00"},{"$f":"Time!CPW$23","v":"00:00:00"},{"$f":"Time!CPX$23","v":"00:00:00"},{"$f":"Time!CPY$23","v":"00:00:00"},{"$f":"Time!CPZ$23","v":"00:00:00"},{"$f":"Time!CQA$23","v":"00:00:00"},{"$f":"Time!CQB$23","v":"00:00:00"},{"$f":"Time!CQC$23","v":"00:00:00"},{"$f":"Time!CQD$23","v":"00:00:00"},{"$f":"Time!CQE$23","v":"00:00:00"},{"$f":"Time!CQF$23","v":"00:00:00"},{"$f":"Time!CQG$23","v":"00:00:00"},{"$f":"Time!CQH$23","v":"00:00:00"},{"$f":"Time!CQI$23","v":"00:00:00"},{"$f":"Time!CQJ$23","v":"00:00:00"},{"$f":"Time!CQK$23","v":"00:00:00"},{"$f":"Time!CQL$23","v":"00:00:00"},{"$f":"Time!CQM$23","v":"00:00:00"},{"$f":"Time!CQN$23","v":"00:00:00"},{"$f":"Time!CQO$23","v":"00:00:00"},{"$f":"Time!CQP$23","v":"00:00:00"},{"$f":"Time!CQQ$23","v":"00:00:00"},{"$f":"Time!CQR$23","v":"00:00:00"},{"$f":"Time!CQS$23","v":"00:00:00"},{"$f":"Time!CQT$23","v":"00:00:00"},{"$f":"Time!CQU$23","v":"00:00:00"},{"$f":"Time!CQV$23","v":"00:00:00"},{"$f":"Time!CQW$23","v":"00:00:00"},{"$f":"Time!CQX$23","v":"00:00:00"},{"$f":"Time!CQY$23","v":"00:00:00"},{"$f":"Time!CQZ$23","v":"00:00:00"},{"$f":"Time!CRA$23","v":"00:00:00"},{"$f":"Time!CRB$23","v":"00:00:00"},{"$f":"Time!CRC$23","v":"00:00:00"},{"$f":"Time!CRD$23","v":"00:00:00"},{"$f":"Time!CRE$23","v":"00:00:00"},{"$f":"Time!CRF$23","v":"00:00:00"},{"$f":"Time!CRG$23","v":"00:00:00"},{"$f":"Time!CRH$23","v":"00:00:00"},{"$f":"Time!CRI$23","v":"00:00:00"},{"$f":"Time!CRJ$23","v":"00:00:00"},{"$f":"Time!CRK$23","v":"00:00:00"},{"$f":"Time!CRL$23","v":"00:00:00"},{"$f":"Time!CRM$23","v":"00:00:00"},{"$f":"Time!CRN$23","v":"00:00:00"},{"$f":"Time!CRO$23","v":"00:00:00"},{"$f":"Time!CRP$23","v":"00:00:00"},{"$f":"Time!CRQ$23","v":"00:00:00"},{"$f":"Time!CRR$23","v":"00:00:00"},{"$f":"Time!CRS$23","v":"00:00:00"},{"$f":"Time!CRT$23","v":"00:00:00"},{"$f":"Time!CRU$23","v":"00:00:00"},{"$f":"Time!CRV$23","v":"00:00:00"},{"$f":"Time!CRW$23","v":"00:00:00"},{"$f":"Time!CRX$23","v":"00:00:00"},{"$f":"Time!CRY$23","v":"00:00:00"},{"$f":"Time!CRZ$23","v":"00:00:00"},{"$f":"Time!CSA$23","v":"00:00:00"},{"$f":"Time!CSB$23","v":"00:00:00"},{"$f":"Time!CSC$23","v":"00:00:00"},{"$f":"Time!CSD$23","v":"00:00:00"},{"$f":"Time!CSE$23","v":"00:00:00"},{"$f":"Time!CSF$23","v":"00:00:00"},{"$f":"Time!CSG$23","v":"00:00:00"},{"$f":"Time!CSH$23","v":"00:00:00"},{"$f":"Time!CSI$23","v":"00:00:00"},{"$f":"Time!CSJ$23","v":"00:00:00"},{"$f":"Time!CSK$23","v":"00:00:00"},{"$f":"Time!CSL$23","v":"00:00:00"},{"$f":"Time!CSM$23","v":"00:00:00"},{"$f":"Time!CSN$23","v":"00:00:00"},{"$f":"Time!CSO$23","v":"00:00:00"},{"$f":"Time!CSP$23","v":"00:00:00"},{"$f":"Time!CSQ$23","v":"00:00:00"},{"$f":"Time!CSR$23","v":"00:00:00"},{"$f":"Time!CSS$23","v":"00:00:00"},{"$f":"Time!CST$23","v":"00:00:00"},{"$f":"Time!CSU$23","v":"00:00:00"},{"$f":"Time!CSV$23","v":"00:00:00"},{"$f":"Time!CSW$23","v":"00:00:00"},{"$f":"Time!CSX$23","v":"00:00:00"},{"$f":"Time!CSY$23","v":"00:00:00"},{"$f":"Time!CSZ$23","v":"00:00:00"},{"$f":"Time!CTA$23","v":"00:00:00"},{"$f":"Time!CTB$23","v":"00:00:00"},{"$f":"Time!CTC$23","v":"00:00:00"},{"$f":"Time!CTD$23","v":"00:00:00"},{"$f":"Time!CTE$23","v":"00:00:00"},{"$f":"Time!CTF$23","v":"00:00:00"},{"$f":"Time!CTG$23","v":"00:00:00"},{"$f":"Time!CTH$23","v":"00:00:00"},{"$f":"Time!CTI$23","v":"00:00:00"},{"$f":"Time!CTJ$23","v":"00:00:00"},{"$f":"Time!CTK$23","v":"00:00:00"},{"$f":"Time!CTL$23","v":"00:00:00"},{"$f":"Time!CTM$23","v":"00:00:00"},{"$f":"Time!CTN$23","v":"00:00:00"},{"$f":"Time!CTO$23","v":"00:00:00"},{"$f":"Time!CTP$23","v":"00:00:00"},{"$f":"Time!CTQ$23","v":"00:00:00"},{"$f":"Time!CTR$23","v":"00:00:00"},{"$f":"Time!CTS$23","v":"00:00:00"},{"$f":"Time!CTT$23","v":"00:00:00"},{"$f":"Time!CTU$23","v":"00:00:00"},{"$f":"Time!CTV$23","v":"00:00:00"},{"$f":"Time!CTW$23","v":"00:00:00"},{"$f":"Time!CTX$23","v":"00:00:00"},{"$f":"Time!CTY$23","v":"00:00:00"},{"$f":"Time!CTZ$23","v":"00:00:00"},{"$f":"Time!CUA$23","v":"00:00:00"},{"$f":"Time!CUB$23","v":"00:00:00"},{"$f":"Time!CUC$23","v":"00:00:00"},{"$f":"Time!CUD$23","v":"00:00:00"},{"$f":"Time!CUE$23","v":"00:00:00"},{"$f":"Time!CUF$23","v":"00:00:00"},{"$f":"Time!CUG$23","v":"00:00:00"},{"$f":"Time!CUH$23","v":"00:00:00"},{"$f":"Time!CUI$23","v":"00:00:00"},{"$f":"Time!CUJ$23","v":"00:00:00"},{"$f":"Time!CUK$23","v":"00:00:00"},{"$f":"Time!CUL$23","v":"00:00:00"},{"$f":"Time!CUM$23","v":"00:00:00"},{"$f":"Time!CUN$23","v":"00:00:00"},{"$f":"Time!CUO$23","v":"00:00:00"},{"$f":"Time!CUP$23","v":"00:00:00"},{"$f":"Time!CUQ$23","v":"00:00:00"},{"$f":"Time!CUR$23","v":"00:00:00"},{"$f":"Time!CUS$23","v":"00:00:00"},{"$f":"Time!CUT$23","v":"00:00:00"},{"$f":"Time!CUU$23","v":"00:00:00"},{"$f":"Time!CUV$23","v":"00:00:00"},{"$f":"Time!CUW$23","v":"00:00:00"},{"$f":"Time!CUX$23","v":"00:00:00"},{"$f":"Time!CUY$23","v":"00:00:00"},{"$f":"Time!CUZ$23","v":"00:00:00"},{"$f":"Time!CVA$23","v":"00:00:00"},{"$f":"Time!CVB$23","v":"00:00:00"},{"$f":"Time!CVC$23","v":"00:00:00"},{"$f":"Time!CVD$23","v":"00:00:00"},{"$f":"Time!CVE$23","v":"00:00:00"},{"$f":"Time!CVF$23","v":"00:00:00"},{"$f":"Time!CVG$23","v":"00:00:00"},{"$f":"Time!CVH$23","v":"00:00:00"},{"$f":"Time!CVI$23","v":"00:00:00"},{"$f":"Time!CVJ$23","v":"00:00:00"},{"$f":"Time!CVK$23","v":"00:00:00"},{"$f":"Time!CVL$23","v":"00:00:00"},{"$f":"Time!CVM$23","v":"00:00:00"},{"$f":"Time!CVN$23","v":"00:00:00"},{"$f":"Time!CVO$23","v":"00:00:00"},{"$f":"Time!CVP$23","v":"00:00:00"},{"$f":"Time!CVQ$23","v":"00:00:00"},{"$f":"Time!CVR$23","v":"00:00:00"},{"$f":"Time!CVS$23","v":"00:00:00"},{"$f":"Time!CVT$23","v":"00:00:00"},{"$f":"Time!CVU$23","v":"00:00:00"},{"$f":"Time!CVV$23","v":"00:00:00"},{"$f":"Time!CVW$23","v":"00:00:00"},{"$f":"Time!CVX$23","v":"00:00:00"},{"$f":"Time!CVY$23","v":"00:00:00"},{"$f":"Time!CVZ$23","v":"00:00:00"},{"$f":"Time!CWA$23","v":"00:00:00"},{"$f":"Time!CWB$23","v":"00:00:00"},{"$f":"Time!CWC$23","v":"00:00:00"},{"$f":"Time!CWD$23","v":"00:00:00"},{"$f":"Time!CWE$23","v":"00:00:00"},{"$f":"Time!CWF$23","v":"00:00:00"},{"$f":"Time!CWG$23","v":"00:00:00"},{"$f":"Time!CWH$23","v":"00:00:00"},{"$f":"Time!CWI$23","v":"00:00:00"},{"$f":"Time!CWJ$23","v":"00:00:00"},{"$f":"Time!CWK$23","v":"00:00:00"},{"$f":"Time!CWL$23","v":"00:00:00"},{"$f":"Time!CWM$23","v":"00:00:00"},{"$f":"Time!CWN$23","v":"00:00:00"},{"$f":"Time!CWO$23","v":"00:00:00"},{"$f":"Time!CWP$23","v":"00:00:00"},{"$f":"Time!CWQ$23","v":"00:00:00"},{"$f":"Time!CWR$23","v":"00:00:00"},{"$f":"Time!CWS$23","v":"00:00:00"},{"$f":"Time!CWT$23","v":"00:00:00"},{"$f":"Time!CWU$23","v":"00:00:00"},{"$f":"Time!CWV$23","v":"00:00:00"},{"$f":"Time!CWW$23","v":"00:00:00"},{"$f":"Time!CWX$23","v":"00:00:00"},{"$f":"Time!CWY$23","v":"00:00:00"},{"$f":"Time!CWZ$23","v":"00:00:00"},{"$f":"Time!CXA$23","v":"00:00:00"},{"$f":"Time!CXB$23","v":"00:00:00"},{"$f":"Time!CXC$23","v":"00:00:00"},{"$f":"Time!CXD$23","v":"00:00:00"},{"$f":"Time!CXE$23","v":"00:00:00"},{"$f":"Time!CXF$23","v":"00:00:00"},{"$f":"Time!CXG$23","v":"00:00:00"},{"$f":"Time!CXH$23","v":"00:00:00"},{"$f":"Time!CXI$23","v":"00:00:00"},{"$f":"Time!CXJ$23","v":"00:00:00"},{"$f":"Time!CXK$23","v":"00:00:00"},{"$f":"Time!CXL$23","v":"00:00:00"},{"$f":"Time!CXM$23","v":"00:00:00"},{"$f":"Time!CXN$23","v":"00:00:00"},{"$f":"Time!CXO$23","v":"00:00:00"},{"$f":"Time!CXP$23","v":"00:00:00"},{"$f":"Time!CXQ$23","v":"00:00:00"},{"$f":"Time!CXR$23","v":"00:00:00"},{"$f":"Time!CXS$23","v":"00:00:00"},{"$f":"Time!CXT$23","v":"00:00:00"},{"$f":"Time!CXU$23","v":"00:00:00"},{"$f":"Time!CXV$23","v":"00:00:00"},{"$f":"Time!CXW$23","v":"00:00:00"},{"$f":"Time!CXX$23","v":"00:00:00"},{"$f":"Time!CXY$23","v":"00:00:00"},{"$f":"Time!CXZ$23","v":"00:00:00"},{"$f":"Time!CYA$23","v":"00:00:00"},{"$f":"Time!CYB$23","v":"00:00:00"},{"$f":"Time!CYC$23","v":"00:00:00"},{"$f":"Time!CYD$23","v":"00:00:00"},{"$f":"Time!CYE$23","v":"00:00:00"},{"$f":"Time!CYF$23","v":"00:00:00"},{"$f":"Time!CYG$23","v":"00:00:00"},{"$f":"Time!CYH$23","v":"00:00:00"},{"$f":"Time!CYI$23","v":"00:00:00"},{"$f":"Time!CYJ$23","v":"00:00:00"},{"$f":"Time!CYK$23","v":"00:00:00"},{"$f":"Time!CYL$23","v":"00:00:00"},{"$f":"Time!CYM$23","v":"00:00:00"},{"$f":"Time!CYN$23","v":"00:00:00"},{"$f":"Time!CYO$23","v":"00:00:00"},{"$f":"Time!CYP$23","v":"00:00:00"},{"$f":"Time!CYQ$23","v":"00:00:00"},{"$f":"Time!CYR$23","v":"00:00:00"},{"$f":"Time!CYS$23","v":"00:00:00"},{"$f":"Time!CYT$23","v":"00:00:00"},{"$f":"Time!CYU$23","v":"00:00:00"},{"$f":"Time!CYV$23","v":"00:00:00"},{"$f":"Time!CYW$23","v":"00:00:00"},{"$f":"Time!CYX$23","v":"00:00:00"},{"$f":"Time!CYY$23","v":"00:00:00"},{"$f":"Time!CYZ$23","v":"00:00:00"},{"$f":"Time!CZA$23","v":"00:00:00"},{"$f":"Time!CZB$23","v":"00:00:00"},{"$f":"Time!CZC$23","v":"00:00:00"},{"$f":"Time!CZD$23","v":"00:00:00"},{"$f":"Time!CZE$23","v":"00:00:00"},{"$f":"Time!CZF$23","v":"00:00:00"},{"$f":"Time!CZG$23","v":"00:00:00"},{"$f":"Time!CZH$23","v":"00:00:00"},{"$f":"Time!CZI$23","v":"00:00:00"},{"$f":"Time!CZJ$23","v":"00:00:00"},{"$f":"Time!CZK$23","v":"00:00:00"},{"$f":"Time!CZL$23","v":"00:00:00"},{"$f":"Time!CZM$23","v":"00:00:00"},{"$f":"Time!CZN$23","v":"00:00:00"},{"$f":"Time!CZO$23","v":"00:00:00"},{"$f":"Time!CZP$23","v":"00:00:00"},{"$f":"Time!CZQ$23","v":"00:00:00"},{"$f":"Time!CZR$23","v":"00:00:00"},{"$f":"Time!CZS$23","v":"00:00:00"},{"$f":"Time!CZT$23","v":"00:00:00"},{"$f":"Time!CZU$23","v":"00:00:00"},{"$f":"Time!CZV$23","v":"00:00:00"},{"$f":"Time!CZW$23","v":"00:00:00"},{"$f":"Time!CZX$23","v":"00:00:00"},{"$f":"Time!CZY$23","v":"00:00:00"},{"$f":"Time!CZZ$23","v":"00:00:00"},{"$f":"Time!DAA$23","v":"00:00:00"},{"$f":"Time!DAB$23","v":"00:00:00"},{"$f":"Time!DAC$23","v":"00:00:00"},{"$f":"Time!DAD$23","v":"00:00:00"},{"$f":"Time!DAE$23","v":"00:00:00"},{"$f":"Time!DAF$23","v":"00:00:00"},{"$f":"Time!DAG$23","v":"00:00:00"},{"$f":"Time!DAH$23","v":"00:00:00"},{"$f":"Time!DAI$23","v":"00:00:00"},{"$f":"Time!DAJ$23","v":"00:00:00"},{"$f":"Time!DAK$23","v":"00:00:00"},{"$f":"Time!DAL$23","v":"00:00:00"},{"$f":"Time!DAM$23","v":"00:00:00"},{"$f":"Time!DAN$23","v":"00:00:00"},{"$f":"Time!DAO$23","v":"00:00:00"},{"$f":"Time!DAP$23","v":"00:00:00"},{"$f":"Time!DAQ$23","v":"00:00:00"},{"$f":"Time!DAR$23","v":"00:00:00"},{"$f":"Time!DAS$23","v":"00:00:00"},{"$f":"Time!DAT$23","v":"00:00:00"},{"$f":"Time!DAU$23","v":"00:00:00"},{"$f":"Time!DAV$23","v":"00:00:00"},{"$f":"Time!DAW$23","v":"00:00:00"},{"$f":"Time!DAX$23","v":"00:00:00"},{"$f":"Time!DAY$23","v":"00:00:00"},{"$f":"Time!DAZ$23","v":"00:00:00"},{"$f":"Time!DBA$23","v":"00:00:00"},{"$f":"Time!DBB$23","v":"00:00:00"},{"$f":"Time!DBC$23","v":"00:00:00"},{"$f":"Time!DBD$23","v":"00:00:00"},{"$f":"Time!DBE$23","v":"00:00:00"},{"$f":"Time!DBF$23","v":"00:00:00"},{"$f":"Time!DBG$23","v":"00:00:00"},{"$f":"Time!DBH$23","v":"00:00:00"},{"$f":"Time!DBI$23","v":"00:00:00"},{"$f":"Time!DBJ$23","v":"00:00:00"},{"$f":"Time!DBK$23","v":"00:00:00"},{"$f":"Time!DBL$23","v":"00:00:00"},{"$f":"Time!DBM$23","v":"00:00:00"},{"$f":"Time!DBN$23","v":"00:00:00"},{"$f":"Time!DBO$23","v":"00:00:00"},{"$f":"Time!DBP$23","v":"00:00:00"},{"$f":"Time!DBQ$23","v":"00:00:00"},{"$f":"Time!DBR$23","v":"00:00:00"},{"$f":"Time!DBS$23","v":"00:00:00"},{"$f":"Time!DBT$23","v":"00:00:00"},{"$f":"Time!DBU$23","v":"00:00:00"},{"$f":"Time!DBV$23","v":"00:00:00"},{"$f":"Time!DBW$23","v":"00:00:00"},{"$f":"Time!DBX$23","v":"00:00:00"},{"$f":"Time!DBY$23","v":"00:00:00"},{"$f":"Time!DBZ$23","v":"00:00:00"},{"$f":"Time!DCA$23","v":"00:00:00"},{"$f":"Time!DCB$23","v":"00:00:00"},{"$f":"Time!DCC$23","v":"00:00:00"},{"$f":"Time!DCD$23","v":"00:00:00"},{"$f":"Time!DCE$23","v":"00:00:00"},{"$f":"Time!DCF$23","v":"00:00:00"},{"$f":"Time!DCG$23","v":"00:00:00"},{"$f":"Time!DCH$23","v":"00:00:00"},{"$f":"Time!DCI$23","v":"00:00:00"},{"$f":"Time!DCJ$23","v":"00:00:00"},{"$f":"Time!DCK$23","v":"00:00:00"},{"$f":"Time!DCL$23","v":"00:00:00"},{"$f":"Time!DCM$23","v":"00:00:00"},{"$f":"Time!DCN$23","v":"00:00:00"},{"$f":"Time!DCO$23","v":"00:00:00"},{"$f":"Time!DCP$23","v":"00:00:00"},{"$f":"Time!DCQ$23","v":"00:00:00"},{"$f":"Time!DCR$23","v":"00:00:00"},{"$f":"Time!DCS$23","v":"00:00:00"},{"$f":"Time!DCT$23","v":"00:00:00"},{"$f":"Time!DCU$23","v":"00:00:00"},{"$f":"Time!DCV$23","v":"00:00:00"},{"$f":"Time!DCW$23","v":"00:00:00"},{"$f":"Time!DCX$23","v":"00:00:00"},{"$f":"Time!DCY$23","v":"00:00:00"},{"$f":"Time!DCZ$23","v":"00:00:00"},{"$f":"Time!DDA$23","v":"00:00:00"},{"$f":"Time!DDB$23","v":"00:00:00"},{"$f":"Time!DDC$23","v":"00:00:00"},{"$f":"Time!DDD$23","v":"00:00:00"},{"$f":"Time!DDE$23","v":"00:00:00"},{"$f":"Time!DDF$23","v":"00:00:00"},{"$f":"Time!DDG$23","v":"00:00:00"},{"$f":"Time!DDH$23","v":"00:00:00"},{"$f":"Time!DDI$23","v":"00:00:00"},{"$f":"Time!DDJ$23","v":"00:00:00"},{"$f":"Time!DDK$23","v":"00:00:00"},{"$f":"Time!DDL$23","v":"00:00:00"},{"$f":"Time!DDM$23","v":"00:00:00"},{"$f":"Time!DDN$23","v":"00:00:00"},{"$f":"Time!DDO$23","v":"00:00:00"},{"$f":"Time!DDP$23","v":"00:00:00"},{"$f":"Time!DDQ$23","v":"00:00:00"},{"$f":"Time!DDR$23","v":"00:00:00"},{"$f":"Time!DDS$23","v":"00:00:00"},{"$f":"Time!DDT$23","v":"00:00:00"},{"$f":"Time!DDU$23","v":"00:00:00"},{"$f":"Time!DDV$23","v":"00:00:00"},{"$f":"Time!DDW$23","v":"00:00:00"},{"$f":"Time!DDX$23","v":"00:00:00"},{"$f":"Time!DDY$23","v":"00:00:00"},{"$f":"Time!DDZ$23","v":"00:00:00"},{"$f":"Time!DEA$23","v":"00:00:00"},{"$f":"Time!DEB$23","v":"00:00:00"},{"$f":"Time!DEC$23","v":"00:00:00"},{"$f":"Time!DED$23","v":"00:00:00"},{"$f":"Time!DEE$23","v":"00:00:00"},{"$f":"Time!DEF$23","v":"00:00:00"},{"$f":"Time!DEG$23","v":"00:00:00"},{"$f":"Time!DEH$23","v":"00:00:00"},{"$f":"Time!DEI$23","v":"00:00:00"},{"$f":"Time!DEJ$23","v":"00:00:00"},{"$f":"Time!DEK$23","v":"00:00:00"},{"$f":"Time!DEL$23","v":"00:00:00"},{"$f":"Time!DEM$23","v":"00:00:00"},{"$f":"Time!DEN$23","v":"00:00:00"},{"$f":"Time!DEO$23","v":"00:00:00"},{"$f":"Time!DEP$23","v":"00:00:00"},{"$f":"Time!DEQ$23","v":"00:00:00"},{"$f":"Time!DER$23","v":"00:00:00"},{"$f":"Time!DES$23","v":"00:00:00"},{"$f":"Time!DET$23","v":"00:00:00"},{"$f":"Time!DEU$23","v":"00:00:00"},{"$f":"Time!DEV$23","v":"00:00:00"},{"$f":"Time!DEW$23","v":"00:00:00"},{"$f":"Time!DEX$23","v":"00:00:00"},{"$f":"Time!DEY$23","v":"00:00:00"},{"$f":"Time!DEZ$23","v":"00:00:00"},{"$f":"Time!DFA$23","v":"00:00:00"},{"$f":"Time!DFB$23","v":"00:00:00"},{"$f":"Time!DFC$23","v":"00:00:00"},{"$f":"Time!DFD$23","v":"00:00:00"},{"$f":"Time!DFE$23","v":"00:00:00"},{"$f":"Time!DFF$23","v":"00:00:00"},{"$f":"Time!DFG$23","v":"00:00:00"},{"$f":"Time!DFH$23","v":"00:00:00"},{"$f":"Time!DFI$23","v":"00:00:00"},{"$f":"Time!DFJ$23","v":"00:00:00"},{"$f":"Time!DFK$23","v":"00:00:00"},{"$f":"Time!DFL$23","v":"00:00:00"},{"$f":"Time!DFM$23","v":"00:00:00"},{"$f":"Time!DFN$23","v":"00:00:00"},{"$f":"Time!DFO$23","v":"00:00:00"},{"$f":"Time!DFP$23","v":"00:00:00"},{"$f":"Time!DFQ$23","v":"00:00:00"},{"$f":"Time!DFR$23","v":"00:00:00"},{"$f":"Time!DFS$23","v":"00:00:00"},{"$f":"Time!DFT$23","v":"00:00:00"},{"$f":"Time!DFU$23","v":"00:00:00"},{"$f":"Time!DFV$23","v":"00:00:00"},{"$f":"Time!DFW$23","v":"00:00:00"},{"$f":"Time!DFX$23","v":"00:00:00"},{"$f":"Time!DFY$23","v":"00:00:00"},{"$f":"Time!DFZ$23","v":"00:00:00"},{"$f":"Time!DGA$23","v":"00:00:00"},{"$f":"Time!DGB$23","v":"00:00:00"},{"$f":"Time!DGC$23","v":"00:00:00"},{"$f":"Time!DGD$23","v":"00:00:00"},{"$f":"Time!DGE$23","v":"00:00:00"},{"$f":"Time!DGF$23","v":"00:00:00"},{"$f":"Time!DGG$23","v":"00:00:00"},{"$f":"Time!DGH$23","v":"00:00:00"},{"$f":"Time!DGI$23","v":"00:00:00"},{"$f":"Time!DGJ$23","v":"00:00:00"},{"$f":"Time!DGK$23","v":"00:00:00"},{"$f":"Time!DGL$23","v":"00:00:00"},{"$f":"Time!DGM$23","v":"00:00:00"},{"$f":"Time!DGN$23","v":"00:00:00"},{"$f":"Time!DGO$23","v":"00:00:00"},{"$f":"Time!DGP$23","v":"00:00:00"},{"$f":"Time!DGQ$23","v":"00:00:00"},{"$f":"Time!DGR$23","v":"00:00:00"},{"$f":"Time!DGS$23","v":"00:00:00"},{"$f":"Time!DGT$23","v":"00:00:00"},{"$f":"Time!DGU$23","v":"00:00:00"},{"$f":"Time!DGV$23","v":"00:00:00"},{"$f":"Time!DGW$23","v":"00:00:00"},{"$f":"Time!DGX$23","v":"00:00:00"},{"$f":"Time!DGY$23","v":"00:00:00"},{"$f":"Time!DGZ$23","v":"00:00:00"},{"$f":"Time!DHA$23","v":"00:00:00"},{"$f":"Time!DHB$23","v":"00:00:00"},{"$f":"Time!DHC$23","v":"00:00:00"},{"$f":"Time!DHD$23","v":"00:00:00"},{"$f":"Time!DHE$23","v":"00:00:00"},{"$f":"Time!DHF$23","v":"00:00:00"},{"$f":"Time!DHG$23","v":"00:00:00"},{"$f":"Time!DHH$23","v":"00:00:00"},{"$f":"Time!DHI$23","v":"00:00:00"},{"$f":"Time!DHJ$23","v":"00:00:00"},{"$f":"Time!DHK$23","v":"00:00:00"},{"$f":"Time!DHL$23","v":"00:00:00"},{"$f":"Time!DHM$23","v":"00:00:00"},{"$f":"Time!DHN$23","v":"00:00:00"},{"$f":"Time!DHO$23","v":"00:00:00"},{"$f":"Time!DHP$23","v":"00:00:00"},{"$f":"Time!DHQ$23","v":"00:00:00"},{"$f":"Time!DHR$23","v":"00:00:00"},{"$f":"Time!DHS$23","v":"00:00:00"},{"$f":"Time!DHT$23","v":"00:00:00"},{"$f":"Time!DHU$23","v":"00:00:00"},{"$f":"Time!DHV$23","v":"00:00:00"},{"$f":"Time!DHW$23","v":"00:00:00"},{"$f":"Time!DHX$23","v":"00:00:00"},{"$f":"Time!DHY$23","v":"00:00:00"},{"$f":"Time!DHZ$23","v":"00:00:00"},{"$f":"Time!DIA$23","v":"00:00:00"},{"$f":"Time!DIB$23","v":"00:00:00"},{"$f":"Time!DIC$23","v":"00:00:00"},{"$f":"Time!DID$23","v":"00:00:00"},{"$f":"Time!DIE$23","v":"00:00:00"},{"$f":"Time!DIF$23","v":"00:00:00"},{"$f":"Time!DIG$23","v":"00:00:00"},{"$f":"Time!DIH$23","v":"00:00:00"},{"$f":"Time!DII$23","v":"00:00:00"},{"$f":"Time!DIJ$23","v":"00:00:00"},{"$f":"Time!DIK$23","v":"00:00:00"},{"$f":"Time!DIL$23","v":"00:00:00"},{"$f":"Time!DIM$23","v":"00:00:00"},{"$f":"Time!DIN$23","v":"00:00:00"},{"$f":"Time!DIO$23","v":"00:00:00"},{"$f":"Time!DIP$23","v":"00:00:00"},{"$f":"Time!DIQ$23","v":"00:00:00"},{"$f":"Time!DIR$23","v":"00:00:00"},{"$f":"Time!DIS$23","v":"00:00:00"},{"$f":"Time!DIT$23","v":"00:00:00"},{"$f":"Time!DIU$23","v":"00:00:00"},{"$f":"Time!DIV$23","v":"00:00:00"},{"$f":"Time!DIW$23","v":"00:00:00"},{"$f":"Time!DIX$23","v":"00:00:00"},{"$f":"Time!DIY$23","v":"00:00:00"},{"$f":"Time!DIZ$23","v":"00:00:00"},{"$f":"Time!DJA$23","v":"00:00:00"},{"$f":"Time!DJB$23","v":"00:00:00"},{"$f":"Time!DJC$23","v":"00:00:00"},{"$f":"Time!DJD$23","v":"00:00:00"},{"$f":"Time!DJE$23","v":"00:00:00"},{"$f":"Time!DJF$23","v":"00:00:00"},{"$f":"Time!DJG$23","v":"00:00:00"},{"$f":"Time!DJH$23","v":"00:00:00"},{"$f":"Time!DJI$23","v":"00:00:00"},{"$f":"Time!DJJ$23","v":"00:00:00"},{"$f":"Time!DJK$23","v":"00:00:00"},{"$f":"Time!DJL$23","v":"00:00:00"},{"$f":"Time!DJM$23","v":"00:00:00"},{"$f":"Time!DJN$23","v":"00:00:00"},{"$f":"Time!DJO$23","v":"00:00:00"},{"$f":"Time!DJP$23","v":"00:00:00"},{"$f":"Time!DJQ$23","v":"00:00:00"},{"$f":"Time!DJR$23","v":"00:00:00"},{"$f":"Time!DJS$23","v":"00:00:00"},{"$f":"Time!DJT$23","v":"00:00:00"},{"$f":"Time!DJU$23","v":"00:00:00"},{"$f":"Time!DJV$23","v":"00:00:00"},{"$f":"Time!DJW$23","v":"00:00:00"},{"$f":"Time!DJX$23","v":"00:00:00"},{"$f":"Time!DJY$23","v":"00:00:00"},{"$f":"Time!DJZ$23","v":"00:00:00"},{"$f":"Time!DKA$23","v":"00:00:00"},{"$f":"Time!DKB$23","v":"00:00:00"},{"$f":"Time!DKC$23","v":"00:00:00"},{"$f":"Time!DKD$23","v":"00:00:00"},{"$f":"Time!DKE$23","v":"00:00:00"},{"$f":"Time!DKF$23","v":"00:00:00"},{"$f":"Time!DKG$23","v":"00:00:00"},{"$f":"Time!DKH$23","v":"00:00:00"},{"$f":"Time!DKI$23","v":"00:00:00"},{"$f":"Time!DKJ$23","v":"00:00:00"},{"$f":"Time!DKK$23","v":"00:00:00"},{"$f":"Time!DKL$23","v":"00:00:00"},{"$f":"Time!DKM$23","v":"00:00:00"},{"$f":"Time!DKN$23","v":"00:00:00"},{"$f":"Time!DKO$23","v":"00:00:00"},{"$f":"Time!DKP$23","v":"00:00:00"},{"$f":"Time!DKQ$23","v":"00:00:00"},{"$f":"Time!DKR$23","v":"00:00:00"},{"$f":"Time!DKS$23","v":"00:00:00"},{"$f":"Time!DKT$23","v":"00:00:00"},{"$f":"Time!DKU$23","v":"00:00:00"},{"$f":"Time!DKV$23","v":"00:00:00"},{"$f":"Time!DKW$23","v":"00:00:00"},{"$f":"Time!DKX$23","v":"00:00:00"},{"$f":"Time!DKY$23","v":"00:00:00"},{"$f":"Time!DKZ$23","v":"00:00:00"},{"$f":"Time!DLA$23","v":"00:00:00"},{"$f":"Time!DLB$23","v":"00:00:00"},{"$f":"Time!DLC$23","v":"00:00:00"},{"$f":"Time!DLD$23","v":"00:00:00"},{"$f":"Time!DLE$23","v":"00:00:00"},{"$f":"Time!DLF$23","v":"00:00:00"},{"$f":"Time!DLG$23","v":"00:00:00"},{"$f":"Time!DLH$23","v":"00:00:00"},{"$f":"Time!DLI$23","v":"00:00:00"},{"$f":"Time!DLJ$23","v":"00:00:00"},{"$f":"Time!DLK$23","v":"00:00:00"},{"$f":"Time!DLL$23","v":"00:00:00"},{"$f":"Time!DLM$23","v":"00:00:00"},{"$f":"Time!DLN$23","v":"00:00:00"},{"$f":"Time!DLO$23","v":"00:00:00"},{"$f":"Time!DLP$23","v":"00:00:00"},{"$f":"Time!DLQ$23","v":"00:00:00"},{"$f":"Time!DLR$23","v":"00:00:00"},{"$f":"Time!DLS$23","v":"00:00:00"},{"$f":"Time!DLT$23","v":"00:00:00"},{"$f":"Time!DLU$23","v":"00:00:00"},{"$f":"Time!DLV$23","v":"00:00:00"},{"$f":"Time!DLW$23","v":"00:00:00"},{"$f":"Time!DLX$23","v":"00:00:00"},{"$f":"Time!DLY$23","v":"00:00:00"},{"$f":"Time!DLZ$23","v":"00:00:00"},{"$f":"Time!DMA$23","v":"00:00:00"},{"$f":"Time!DMB$23","v":"00:00:00"},{"$f":"Time!DMC$23","v":"00:00:00"},{"$f":"Time!DMD$23","v":"00:00:00"},{"$f":"Time!DME$23","v":"00:00:00"},{"$f":"Time!DMF$23","v":"00:00:00"},{"$f":"Time!DMG$23","v":"00:00:00"},{"$f":"Time!DMH$23","v":"00:00:00"},{"$f":"Time!DMI$23","v":"00:00:00"},{"$f":"Time!DMJ$23","v":"00:00:00"},{"$f":"Time!DMK$23","v":"00:00:00"},{"$f":"Time!DML$23","v":"00:00:00"},{"$f":"Time!DMM$23","v":"00:00:00"},{"$f":"Time!DMN$23","v":"00:00:00"},{"$f":"Time!DMO$23","v":"00:00:00"},{"$f":"Time!DMP$23","v":"00:00:00"},{"$f":"Time!DMQ$23","v":"00:00:00"},{"$f":"Time!DMR$23","v":"00:00:00"},{"$f":"Time!DMS$23","v":"00:00:00"},{"$f":"Time!DMT$23","v":"00:00:00"},{"$f":"Time!DMU$23","v":"00:00:00"},{"$f":"Time!DMV$23","v":"00:00:00"},{"$f":"Time!DMW$23","v":"00:00:00"},{"$f":"Time!DMX$23","v":"00:00:00"},{"$f":"Time!DMY$23","v":"00:00:00"},{"$f":"Time!DMZ$23","v":"00:00:00"},{"$f":"Time!DNA$23","v":"00:00:00"},{"$f":"Time!DNB$23","v":"00:00:00"},{"$f":"Time!DNC$23","v":"00:00:00"},{"$f":"Time!DND$23","v":"00:00:00"},{"$f":"Time!DNE$23","v":"00:00:00"},{"$f":"Time!DNF$23","v":"00:00:00"},{"$f":"Time!DNG$23","v":"00:00:00"},{"$f":"Time!DNH$23","v":"00:00:00"},{"$f":"Time!DNI$23","v":"00:00:00"},{"$f":"Time!DNJ$23","v":"00:00:00"},{"$f":"Time!DNK$23","v":"00:00:00"},{"$f":"Time!DNL$23","v":"00:00:00"},{"$f":"Time!DNM$23","v":"00:00:00"},{"$f":"Time!DNN$23","v":"00:00:00"},{"$f":"Time!DNO$23","v":"00:00:00"},{"$f":"Time!DNP$23","v":"00:00:00"},{"$f":"Time!DNQ$23","v":"00:00:00"},{"$f":"Time!DNR$23","v":"00:00:00"},{"$f":"Time!DNS$23","v":"00:00:00"},{"$f":"Time!DNT$23","v":"00:00:00"},{"$f":"Time!DNU$23","v":"00:00:00"},{"$f":"Time!DNV$23","v":"00:00:00"},{"$f":"Time!DNW$23","v":"00:00:00"},{"$f":"Time!DNX$23","v":"00:00:00"},{"$f":"Time!DNY$23","v":"00:00:00"},{"$f":"Time!DNZ$23","v":"00:00:00"},{"$f":"Time!DOA$23","v":"00:00:00"},{"$f":"Time!DOB$23","v":"00:00:00"},{"$f":"Time!DOC$23","v":"00:00:00"},{"$f":"Time!DOD$23","v":"00:00:00"},{"$f":"Time!DOE$23","v":"00:00:00"},{"$f":"Time!DOF$23","v":"00:00:00"},{"$f":"Time!DOG$23","v":"00:00:00"},{"$f":"Time!DOH$23","v":"00:00:00"},{"$f":"Time!DOI$23","v":"00:00:00"},{"$f":"Time!DOJ$23","v":"00:00:00"},{"$f":"Time!DOK$23","v":"00:00:00"},{"$f":"Time!DOL$23","v":"00:00:00"},{"$f":"Time!DOM$23","v":"00:00:00"},{"$f":"Time!DON$23","v":"00:00:00"},{"$f":"Time!DOO$23","v":"00:00:00"},{"$f":"Time!DOP$23","v":"00:00:00"},{"$f":"Time!DOQ$23","v":"00:00:00"},{"$f":"Time!DOR$23","v":"00:00:00"},{"$f":"Time!DOS$23","v":"00:00:00"},{"$f":"Time!DOT$23","v":"00:00:00"},{"$f":"Time!DOU$23","v":"00:00:00"},{"$f":"Time!DOV$23","v":"00:00:00"},{"$f":"Time!DOW$23","v":"00:00:00"},{"$f":"Time!DOX$23","v":"00:00:00"},{"$f":"Time!DOY$23","v":"00:00:00"},{"$f":"Time!DOZ$23","v":"00:00:00"},{"$f":"Time!DPA$23","v":"00:00:00"},{"$f":"Time!DPB$23","v":"00:00:00"},{"$f":"Time!DPC$23","v":"00:00:00"},{"$f":"Time!DPD$23","v":"00:00:00"},{"$f":"Time!DPE$23","v":"00:00:00"},{"$f":"Time!DPF$23","v":"00:00:00"},{"$f":"Time!DPG$23","v":"00:00:00"},{"$f":"Time!DPH$23","v":"00:00:00"},{"$f":"Time!DPI$23","v":"00:00:00"},{"$f":"Time!DPJ$23","v":"00:00:00"},{"$f":"Time!DPK$23","v":"00:00:00"},{"$f":"Time!DPL$23","v":"00:00:00"},{"$f":"Time!DPM$23","v":"00:00:00"},{"$f":"Time!DPN$23","v":"00:00:00"},{"$f":"Time!DPO$23","v":"00:00:00"},{"$f":"Time!DPP$23","v":"00:00:00"},{"$f":"Time!DPQ$23","v":"00:00:00"},{"$f":"Time!DPR$23","v":"00:00:00"},{"$f":"Time!DPS$23","v":"00:00:00"},{"$f":"Time!DPT$23","v":"00:00:00"},{"$f":"Time!DPU$23","v":"00:00:00"},{"$f":"Time!DPV$23","v":"00:00:00"},{"$f":"Time!DPW$23","v":"00:00:00"},{"$f":"Time!DPX$23","v":"00:00:00"},{"$f":"Time!DPY$23","v":"00:00:00"},{"$f":"Time!DPZ$23","v":"00:00:00"},{"$f":"Time!DQA$23","v":"00:00:00"},{"$f":"Time!DQB$23","v":"00:00:00"},{"$f":"Time!DQC$23","v":"00:00:00"},{"$f":"Time!DQD$23","v":"00:00:00"},{"$f":"Time!DQE$23","v":"00:00:00"},{"$f":"Time!DQF$23","v":"00:00:00"},{"$f":"Time!DQG$23","v":"00:00:00"},{"$f":"Time!DQH$23","v":"00:00:00"},{"$f":"Time!DQI$23","v":"00:00:00"},{"$f":"Time!DQJ$23","v":"00:00:00"},{"$f":"Time!DQK$23","v":"00:00:00"},{"$f":"Time!DQL$23","v":"00:00:00"},{"$f":"Time!DQM$23","v":"00:00:00"},{"$f":"Time!DQN$23","v":"00:00:00"},{"$f":"Time!DQO$23","v":"00:00:00"},{"$f":"Time!DQP$23","v":"00:00:00"},{"$f":"Time!DQQ$23","v":"00:00:00"},{"$f":"Time!DQR$23","v":"00:00:00"},{"$f":"Time!DQS$23","v":"00:00:00"},{"$f":"Time!DQT$23","v":"00:00:00"},{"$f":"Time!DQU$23","v":"00:00:00"},{"$f":"Time!DQV$23","v":"00:00:00"},{"$f":"Time!DQW$23","v":"00:00:00"},{"$f":"Time!DQX$23","v":"00:00:00"},{"$f":"Time!DQY$23","v":"00:00:00"},{"$f":"Time!DQZ$23","v":"00:00:00"},{"$f":"Time!DRA$23","v":"00:00:00"},{"$f":"Time!DRB$23","v":"00:00:00"},{"$f":"Time!DRC$23","v":"00:00:00"},{"$f":"Time!DRD$23","v":"00:00:00"},{"$f":"Time!DRE$23","v":"00:00:00"},{"$f":"Time!DRF$23","v":"00:00:00"},{"$f":"Time!DRG$23","v":"00:00:00"},{"$f":"Time!DRH$23","v":"00:00:00"},{"$f":"Time!DRI$23","v":"00:00:00"},{"$f":"Time!DRJ$23","v":"00:00:00"},{"$f":"Time!DRK$23","v":"00:00:00"},{"$f":"Time!DRL$23","v":"00:00:00"},{"$f":"Time!DRM$23","v":"00:00:00"},{"$f":"Time!DRN$23","v":"00:00:00"},{"$f":"Time!DRO$23","v":"00:00:00"},{"$f":"Time!DRP$23","v":"00:00:00"},{"$f":"Time!DRQ$23","v":"00:00:00"},{"$f":"Time!DRR$23","v":"00:00:00"},{"$f":"Time!DRS$23","v":"00:00:00"},{"$f":"Time!DRT$23","v":"00:00:00"},{"$f":"Time!DRU$23","v":"00:00:00"},{"$f":"Time!DRV$23","v":"00:00:00"},{"$f":"Time!DRW$23","v":"00:00:00"},{"$f":"Time!DRX$23","v":"00:00:00"},{"$f":"Time!DRY$23","v":"00:00:00"},{"$f":"Time!DRZ$23","v":"00:00:00"},{"$f":"Time!DSA$23","v":"00:00:00"},{"$f":"Time!DSB$23","v":"00:00:00"},{"$f":"Time!DSC$23","v":"00:00:00"},{"$f":"Time!DSD$23","v":"00:00:00"},{"$f":"Time!DSE$23","v":"00:00:00"},{"$f":"Time!DSF$23","v":"00:00:00"},{"$f":"Time!DSG$23","v":"00:00:00"},{"$f":"Time!DSH$23","v":"00:00:00"},{"$f":"Time!DSI$23","v":"00:00:00"},{"$f":"Time!DSJ$23","v":"00:00:00"},{"$f":"Time!DSK$23","v":"00:00:00"},{"$f":"Time!DSL$23","v":"00:00:00"},{"$f":"Time!DSM$23","v":"00:00:00"},{"$f":"Time!DSN$23","v":"00:00:00"},{"$f":"Time!DSO$23","v":"00:00:00"},{"$f":"Time!DSP$23","v":"00:00:00"},{"$f":"Time!DSQ$23","v":"00:00:00"},{"$f":"Time!DSR$23","v":"00:00:00"},{"$f":"Time!DSS$23","v":"00:00:00"},{"$f":"Time!DST$23","v":"00:00:00"},{"$f":"Time!DSU$23","v":"00:00:00"},{"$f":"Time!DSV$23","v":"00:00:00"},{"$f":"Time!DSW$23","v":"00:00:00"},{"$f":"Time!DSX$23","v":"00:00:00"},{"$f":"Time!DSY$23","v":"00:00:00"},{"$f":"Time!DSZ$23","v":"00:00:00"},{"$f":"Time!DTA$23","v":"00:00:00"},{"$f":"Time!DTB$23","v":"00:00:00"},{"$f":"Time!DTC$23","v":"00:00:00"},{"$f":"Time!DTD$23","v":"00:00:00"},{"$f":"Time!DTE$23","v":"00:00:00"},{"$f":"Time!DTF$23","v":"00:00:00"},{"$f":"Time!DTG$23","v":"00:00:00"},{"$f":"Time!DTH$23","v":"00:00:00"},{"$f":"Time!DTI$23","v":"00:00:00"},{"$f":"Time!DTJ$23","v":"00:00:00"},{"$f":"Time!DTK$23","v":"00:00:00"},{"$f":"Time!DTL$23","v":"00:00:00"},{"$f":"Time!DTM$23","v":"00:00:00"},{"$f":"Time!DTN$23","v":"00:00:00"},{"$f":"Time!DTO$23","v":"00:00:00"},{"$f":"Time!DTP$23","v":"00:00:00"},{"$f":"Time!DTQ$23","v":"00:00:00"},{"$f":"Time!DTR$23","v":"00:00:00"},{"$f":"Time!DTS$23","v":"00:00:00"},{"$f":"Time!DTT$23","v":"00:00:00"},{"$f":"Time!DTU$23","v":"00:00:00"},{"$f":"Time!DTV$23","v":"00:00:00"},{"$f":"Time!DTW$23","v":"00:00:00"},{"$f":"Time!DTX$23","v":"00:00:00"},{"$f":"Time!DTY$23","v":"00:00:00"},{"$f":"Time!DTZ$23","v":"00:00:00"},{"$f":"Time!DUA$23","v":"00:00:00"},{"$f":"Time!DUB$23","v":"00:00:00"},{"$f":"Time!DUC$23","v":"00:00:00"},{"$f":"Time!DUD$23","v":"00:00:00"},{"$f":"Time!DUE$23","v":"00:00:00"},{"$f":"Time!DUF$23","v":"00:00:00"},{"$f":"Time!DUG$23","v":"00:00:00"},{"$f":"Time!DUH$23","v":"00:00:00"},{"$f":"Time!DUI$23","v":"00:00:00"},{"$f":"Time!DUJ$23","v":"00:00:00"},{"$f":"Time!DUK$23","v":"00:00:00"},{"$f":"Time!DUL$23","v":"00:00:00"},{"$f":"Time!DUM$23","v":"00:00:00"},{"$f":"Time!DUN$23","v":"00:00:00"},{"$f":"Time!DUO$23","v":"00:00:00"},{"$f":"Time!DUP$23","v":"00:00:00"},{"$f":"Time!DUQ$23","v":"00:00:00"},{"$f":"Time!DUR$23","v":"00:00:00"},{"$f":"Time!DUS$23","v":"00:00:00"},{"$f":"Time!DUT$23","v":"00:00:00"},{"$f":"Time!DUU$23","v":"00:00:00"},{"$f":"Time!DUV$23","v":"00:00:00"},{"$f":"Time!DUW$23","v":"00:00:00"},{"$f":"Time!DUX$23","v":"00:00:00"},{"$f":"Time!DUY$23","v":"00:00:00"},{"$f":"Time!DUZ$23","v":"00:00:00"},{"$f":"Time!DVA$23","v":"00:00:00"},{"$f":"Time!DVB$23","v":"00:00:00"},{"$f":"Time!DVC$23","v":"00:00:00"},{"$f":"Time!DVD$23","v":"00:00:00"},{"$f":"Time!DVE$23","v":"00:00:00"},{"$f":"Time!DVF$23","v":"00:00:00"},{"$f":"Time!DVG$23","v":"00:00:00"},{"$f":"Time!DVH$23","v":"00:00:00"},{"$f":"Time!DVI$23","v":"00:00:00"},{"$f":"Time!DVJ$23","v":"00:00:00"},{"$f":"Time!DVK$23","v":"00:00:00"},{"$f":"Time!DVL$23","v":"00:00:00"},{"$f":"Time!DVM$23","v":"00:00:00"},{"$f":"Time!DVN$23","v":"00:00:00"},{"$f":"Time!DVO$23","v":"00:00:00"},{"$f":"Time!DVP$23","v":"00:00:00"},{"$f":"Time!DVQ$23","v":"00:00:00"},{"$f":"Time!DVR$23","v":"00:00:00"},{"$f":"Time!DVS$23","v":"00:00:00"},{"$f":"Time!DVT$23","v":"00:00:00"},{"$f":"Time!DVU$23","v":"00:00:00"},{"$f":"Time!DVV$23","v":"00:00:00"},{"$f":"Time!DVW$23","v":"00:00:00"},{"$f":"Time!DVX$23","v":"00:00:00"},{"$f":"Time!DVY$23","v":"00:00:00"},{"$f":"Time!DVZ$23","v":"00:00:00"},{"$f":"Time!DWA$23","v":"00:00:00"},{"$f":"Time!DWB$23","v":"00:00:00"},{"$f":"Time!DWC$23","v":"00:00:00"},{"$f":"Time!DWD$23","v":"00:00:00"},{"$f":"Time!DWE$23","v":"00:00:00"},{"$f":"Time!DWF$23","v":"00:00:00"},{"$f":"Time!DWG$23","v":"00:00:00"},{"$f":"Time!DWH$23","v":"00:00:00"},{"$f":"Time!DWI$23","v":"00:00:00"},{"$f":"Time!DWJ$23","v":"00:00:00"},{"$f":"Time!DWK$23","v":"00:00:00"},{"$f":"Time!DWL$23","v":"00:00:00"},{"$f":"Time!DWM$23","v":"00:00:00"},{"$f":"Time!DWN$23","v":"00:00:00"},{"$f":"Time!DWO$23","v":"00:00:00"},{"$f":"Time!DWP$23","v":"00:00:00"},{"$f":"Time!DWQ$23","v":"00:00:00"},{"$f":"Time!DWR$23","v":"00:00:00"},{"$f":"Time!DWS$23","v":"00:00:00"},{"$f":"Time!DWT$23","v":"00:00:00"},{"$f":"Time!DWU$23","v":"00:00:00"},{"$f":"Time!DWV$23","v":"00:00:00"},{"$f":"Time!DWW$23","v":"00:00:00"},{"$f":"Time!DWX$23","v":"00:00:00"},{"$f":"Time!DWY$23","v":"00:00:00"},{"$f":"Time!DWZ$23","v":"00:00:00"},{"$f":"Time!DXA$23","v":"00:00:00"},{"$f":"Time!DXB$23","v":"00:00:00"},{"$f":"Time!DXC$23","v":"00:00:00"},{"$f":"Time!DXD$23","v":"00:00:00"},{"$f":"Time!DXE$23","v":"00:00:00"},{"$f":"Time!DXF$23","v":"00:00:00"},{"$f":"Time!DXG$23","v":"00:00:00"},{"$f":"Time!DXH$23","v":"00:00:00"},{"$f":"Time!DXI$23","v":"00:00:00"},{"$f":"Time!DXJ$23","v":"00:00:00"},{"$f":"Time!DXK$23","v":"00:00:00"},{"$f":"Time!DXL$23","v":"00:00:00"},{"$f":"Time!DXM$23","v":"00:00:00"},{"$f":"Time!DXN$23","v":"00:00:00"},{"$f":"Time!DXO$23","v":"00:00:00"},{"$f":"Time!DXP$23","v":"00:00:00"},{"$f":"Time!DXQ$23","v":"00:00:00"},{"$f":"Time!DXR$23","v":"00:00:00"},{"$f":"Time!DXS$23","v":"00:00:00"},{"$f":"Time!DXT$23","v":"00:00:00"},{"$f":"Time!DXU$23","v":"00:00:00"},{"$f":"Time!DXV$23","v":"00:00:00"},{"$f":"Time!DXW$23","v":"00:00:00"},{"$f":"Time!DXX$23","v":"00:00:00"},{"$f":"Time!DXY$23","v":"00:00:00"},{"$f":"Time!DXZ$23","v":"00:00:00"},{"$f":"Time!DYA$23","v":"00:00:00"},{"$f":"Time!DYB$23","v":"00:00:00"},{"$f":"Time!DYC$23","v":"00:00:00"},{"$f":"Time!DYD$23","v":"00:00:00"},{"$f":"Time!DYE$23","v":"00:00:00"},{"$f":"Time!DYF$23","v":"00:00:00"},{"$f":"Time!DYG$23","v":"00:00:00"},{"$f":"Time!DYH$23","v":"00:00:00"},{"$f":"Time!DYI$23","v":"00:00:00"},{"$f":"Time!DYJ$23","v":"00:00:00"},{"$f":"Time!DYK$23","v":"00:00:00"},{"$f":"Time!DYL$23","v":"00:00:00"},{"$f":"Time!DYM$23","v":"00:00:00"},{"$f":"Time!DYN$23","v":"00:00:00"},{"$f":"Time!DYO$23","v":"00:00:00"},{"$f":"Time!DYP$23","v":"00:00:00"},{"$f":"Time!DYQ$23","v":"00:00:00"},{"$f":"Time!DYR$23","v":"00:00:00"},{"$f":"Time!DYS$23","v":"00:00:00"},{"$f":"Time!DYT$23","v":"00:00:00"},{"$f":"Time!DYU$23","v":"00:00:00"},{"$f":"Time!DYV$23","v":"00:00:00"},{"$f":"Time!DYW$23","v":"00:00:00"},{"$f":"Time!DYX$23","v":"00:00:00"},{"$f":"Time!DYY$23","v":"00:00:00"},{"$f":"Time!DYZ$23","v":"00:00:00"},{"$f":"Time!DZA$23","v":"00:00:00"},{"$f":"Time!DZB$23","v":"00:00:00"},{"$f":"Time!DZC$23","v":"00:00:00"},{"$f":"Time!DZD$23","v":"00:00:00"},{"$f":"Time!DZE$23","v":"00:00:00"},{"$f":"Time!DZF$23","v":"00:00:00"},{"$f":"Time!DZG$23","v":"00:00:00"},{"$f":"Time!DZH$23","v":"00:00:00"},{"$f":"Time!DZI$23","v":"00:00:00"},{"$f":"Time!DZJ$23","v":"00:00:00"},{"$f":"Time!DZK$23","v":"00:00:00"},{"$f":"Time!DZL$23","v":"00:00:00"},{"$f":"Time!DZM$23","v":"00:00:00"},{"$f":"Time!DZN$23","v":"00:00:00"},{"$f":"Time!DZO$23","v":"00:00:00"},{"$f":"Time!DZP$23","v":"00:00:00"},{"$f":"Time!DZQ$23","v":"00:00:00"},{"$f":"Time!DZR$23","v":"00:00:00"},{"$f":"Time!DZS$23","v":"00:00:00"},{"$f":"Time!DZT$23","v":"00:00:00"},{"$f":"Time!DZU$23","v":"00:00:00"},{"$f":"Time!DZV$23","v":"00:00:00"},{"$f":"Time!DZW$23","v":"00:00:00"},{"$f":"Time!DZX$23","v":"00:00:00"},{"$f":"Time!DZY$23","v":"00:00:00"},{"$f":"Time!DZZ$23","v":"00:00:00"},{"$f":"Time!EAA$23","v":"00:00:00"},{"$f":"Time!EAB$23","v":"00:00:00"},{"$f":"Time!EAC$23","v":"00:00:00"},{"$f":"Time!EAD$23","v":"00:00:00"},{"$f":"Time!EAE$23","v":"00:00:00"},{"$f":"Time!EAF$23","v":"00:00:00"},{"$f":"Time!EAG$23","v":"00:00:00"},{"$f":"Time!EAH$23","v":"00:00:00"},{"$f":"Time!EAI$23","v":"00:00:00"},{"$f":"Time!EAJ$23","v":"00:00:00"},{"$f":"Time!EAK$23","v":"00:00:00"},{"$f":"Time!EAL$23","v":"00:00:00"},{"$f":"Time!EAM$23","v":"00:00:00"},{"$f":"Time!EAN$23","v":"00:00:00"},{"$f":"Time!EAO$23","v":"00:00:00"},{"$f":"Time!EAP$23","v":"00:00:00"},{"$f":"Time!EAQ$23","v":"00:00:00"},{"$f":"Time!EAR$23","v":"00:00:00"},{"$f":"Time!EAS$23","v":"00:00:00"},{"$f":"Time!EAT$23","v":"00:00:00"},{"$f":"Time!EAU$23","v":"00:00:00"},{"$f":"Time!EAV$23","v":"00:00:00"},{"$f":"Time!EAW$23","v":"00:00:00"},{"$f":"Time!EAX$23","v":"00:00:00"},{"$f":"Time!EAY$23","v":"00:00:00"},{"$f":"Time!EAZ$23","v":"00:00:00"},{"$f":"Time!EBA$23","v":"00:00:00"},{"$f":"Time!EBB$23","v":"00:00:00"},{"$f":"Time!EBC$23","v":"00:00:00"},{"$f":"Time!EBD$23","v":"00:00:00"},{"$f":"Time!EBE$23","v":"00:00:00"},{"$f":"Time!EBF$23","v":"00:00:00"},{"$f":"Time!EBG$23","v":"00:00:00"},{"$f":"Time!EBH$23","v":"00:00:00"},{"$f":"Time!EBI$23","v":"00:00:00"},{"$f":"Time!EBJ$23","v":"00:00:00"},{"$f":"Time!EBK$23","v":"00:00:00"},{"$f":"Time!EBL$23","v":"00:00:00"},{"$f":"Time!EBM$23","v":"00:00:00"},{"$f":"Time!EBN$23","v":"00:00:00"},{"$f":"Time!EBO$23","v":"00:00:00"},{"$f":"Time!EBP$23","v":"00:00:00"},{"$f":"Time!EBQ$23","v":"00:00:00"},{"$f":"Time!EBR$23","v":"00:00:00"},{"$f":"Time!EBS$23","v":"00:00:00"},{"$f":"Time!EBT$23","v":"00:00:00"},{"$f":"Time!EBU$23","v":"00:00:00"},{"$f":"Time!EBV$23","v":"00:00:00"},{"$f":"Time!EBW$23","v":"00:00:00"},{"$f":"Time!EBX$23","v":"00:00:00"},{"$f":"Time!EBY$23","v":"00:00:00"},{"$f":"Time!EBZ$23","v":"00:00:00"},{"$f":"Time!ECA$23","v":"00:00:00"},{"$f":"Time!ECB$23","v":"00:00:00"},{"$f":"Time!ECC$23","v":"00:00:00"},{"$f":"Time!ECD$23","v":"00:00:00"},{"$f":"Time!ECE$23","v":"00:00:00"},{"$f":"Time!ECF$23","v":"00:00:00"},{"$f":"Time!ECG$23","v":"00:00:00"},{"$f":"Time!ECH$23","v":"00:00:00"},{"$f":"Time!ECI$23","v":"00:00:00"},{"$f":"Time!ECJ$23","v":"00:00:00"},{"$f":"Time!ECK$23","v":"00:00:00"},{"$f":"Time!ECL$23","v":"00:00:00"},{"$f":"Time!ECM$23","v":"00:00:00"},{"$f":"Time!ECN$23","v":"00:00:00"},{"$f":"Time!ECO$23","v":"00:00:00"},{"$f":"Time!ECP$23","v":"00:00:00"},{"$f":"Time!ECQ$23","v":"00:00:00"},{"$f":"Time!ECR$23","v":"00:00:00"},{"$f":"Time!ECS$23","v":"00:00:00"},{"$f":"Time!ECT$23","v":"00:00:00"},{"$f":"Time!ECU$23","v":"00:00:00"},{"$f":"Time!ECV$23","v":"00:00:00"},{"$f":"Time!ECW$23","v":"00:00:00"},{"$f":"Time!ECX$23","v":"00:00:00"},{"$f":"Time!ECY$23","v":"00:00:00"},{"$f":"Time!ECZ$23","v":"00:00:00"},{"$f":"Time!EDA$23","v":"00:00:00"},{"$f":"Time!EDB$23","v":"00:00:00"},{"$f":"Time!EDC$23","v":"00:00:00"},{"$f":"Time!EDD$23","v":"00:00:00"},{"$f":"Time!EDE$23","v":"00:00:00"},{"$f":"Time!EDF$23","v":"00:00:00"},{"$f":"Time!EDG$23","v":"00:00:00"},{"$f":"Time!EDH$23","v":"00:00:00"},{"$f":"Time!EDI$23","v":"00:00:00"},{"$f":"Time!EDJ$23","v":"00:00:00"},{"$f":"Time!EDK$23","v":"00:00:00"},{"$f":"Time!EDL$23","v":"00:00:00"},{"$f":"Time!EDM$23","v":"00:00:00"},{"$f":"Time!EDN$23","v":"00:00:00"},{"$f":"Time!EDO$23","v":"00:00:00"},{"$f":"Time!EDP$23","v":"00:00:00"},{"$f":"Time!EDQ$23","v":"00:00:00"},{"$f":"Time!EDR$23","v":"00:00:00"},{"$f":"Time!EDS$23","v":"00:00:00"},{"$f":"Time!EDT$23","v":"00:00:00"},{"$f":"Time!EDU$23","v":"00:00:00"},{"$f":"Time!EDV$23","v":"00:00:00"},{"$f":"Time!EDW$23","v":"00:00:00"},{"$f":"Time!EDX$23","v":"00:00:00"},{"$f":"Time!EDY$23","v":"00:00:00"},{"$f":"Time!EDZ$23","v":"00:00:00"},{"$f":"Time!EEA$23","v":"00:00:00"},{"$f":"Time!EEB$23","v":"00:00:00"},{"$f":"Time!EEC$23","v":"00:00:00"},{"$f":"Time!EED$23","v":"00:00:00"},{"$f":"Time!EEE$23","v":"00:00:00"},{"$f":"Time!EEF$23","v":"00:00:00"},{"$f":"Time!EEG$23","v":"00:00:00"},{"$f":"Time!EEH$23","v":"00:00:00"},{"$f":"Time!EEI$23","v":"00:00:00"},{"$f":"Time!EEJ$23","v":"00:00:00"},{"$f":"Time!EEK$23","v":"00:00:00"},{"$f":"Time!EEL$23","v":"00:00:00"},{"$f":"Time!EEM$23","v":"00:00:00"},{"$f":"Time!EEN$23","v":"00:00:00"},{"$f":"Time!EEO$23","v":"00:00:00"},{"$f":"Time!EEP$23","v":"00:00:00"},{"$f":"Time!EEQ$23","v":"00:00:00"},{"$f":"Time!EER$23","v":"00:00:00"},{"$f":"Time!EES$23","v":"00:00:00"},{"$f":"Time!EET$23","v":"00:00:00"},{"$f":"Time!EEU$23","v":"00:00:00"},{"$f":"Time!EEV$23","v":"00:00:00"},{"$f":"Time!EEW$23","v":"00:00:00"},{"$f":"Time!EEX$23","v":"00:00:00"},{"$f":"Time!EEY$23","v":"00:00:00"},{"$f":"Time!EEZ$23","v":"00:00:00"},{"$f":"Time!EFA$23","v":"00:00:00"},{"$f":"Time!EFB$23","v":"00:00:00"},{"$f":"Time!EFC$23","v":"00:00:00"},{"$f":"Time!EFD$23","v":"00:00:00"},{"$f":"Time!EFE$23","v":"00:00:00"},{"$f":"Time!EFF$23","v":"00:00:00"},{"$f":"Time!EFG$23","v":"00:00:00"},{"$f":"Time!EFH$23","v":"00:00:00"},{"$f":"Time!EFI$23","v":"00:00:00"},{"$f":"Time!EFJ$23","v":"00:00:00"},{"$f":"Time!EFK$23","v":"00:00:00"},{"$f":"Time!EFL$23","v":"00:00:00"},{"$f":"Time!EFM$23","v":"00:00:00"},{"$f":"Time!EFN$23","v":"00:00:00"},{"$f":"Time!EFO$23","v":"00:00:00"},{"$f":"Time!EFP$23","v":"00:00:00"},{"$f":"Time!EFQ$23","v":"00:00:00"},{"$f":"Time!EFR$23","v":"00:00:00"},{"$f":"Time!EFS$23","v":"00:00:00"},{"$f":"Time!EFT$23","v":"00:00:00"},{"$f":"Time!EFU$23","v":"00:00:00"},{"$f":"Time!EFV$23","v":"00:00:00"},{"$f":"Time!EFW$23","v":"00:00:00"},{"$f":"Time!EFX$23","v":"00:00:00"},{"$f":"Time!EFY$23","v":"00:00:00"},{"$f":"Time!EFZ$23","v":"00:00:00"},{"$f":"Time!EGA$23","v":"00:00:00"},{"$f":"Time!EGB$23","v":"00:00:00"},{"$f":"Time!EGC$23","v":"00:00:00"},{"$f":"Time!EGD$23","v":"00:00:00"},{"$f":"Time!EGE$23","v":"00:00:00"},{"$f":"Time!EGF$23","v":"00:00:00"},{"$f":"Time!EGG$23","v":"00:00:00"},{"$f":"Time!EGH$23","v":"00:00:00"},{"$f":"Time!EGI$23","v":"00:00:00"},{"$f":"Time!EGJ$23","v":"00:00:00"},{"$f":"Time!EGK$23","v":"00:00:00"},{"$f":"Time!EGL$23","v":"00:00:00"},{"$f":"Time!EGM$23","v":"00:00:00"},{"$f":"Time!EGN$23","v":"00:00:00"},{"$f":"Time!EGO$23","v":"00:00:00"},{"$f":"Time!EGP$23","v":"00:00:00"},{"$f":"Time!EGQ$23","v":"00:00:00"},{"$f":"Time!EGR$23","v":"00:00:00"},{"$f":"Time!EGS$23","v":"00:00:00"},{"$f":"Time!EGT$23","v":"00:00:00"},{"$f":"Time!EGU$23","v":"00:00:00"},{"$f":"Time!EGV$23","v":"00:00:00"},{"$f":"Time!EGW$23","v":"00:00:00"},{"$f":"Time!EGX$23","v":"00:00:00"},{"$f":"Time!EGY$23","v":"00:00:00"},{"$f":"Time!EGZ$23","v":"00:00:00"},{"$f":"Time!EHA$23","v":"00:00:00"},{"$f":"Time!EHB$23","v":"00:00:00"},{"$f":"Time!EHC$23","v":"00:00:00"},{"$f":"Time!EHD$23","v":"00:00:00"},{"$f":"Time!EHE$23","v":"00:00:00"},{"$f":"Time!EHF$23","v":"00:00:00"},{"$f":"Time!EHG$23","v":"00:00:00"},{"$f":"Time!EHH$23","v":"00:00:00"},{"$f":"Time!EHI$23","v":"00:00:00"},{"$f":"Time!EHJ$23","v":"00:00:00"},{"$f":"Time!EHK$23","v":"00:00:00"},{"$f":"Time!EHL$23","v":"00:00:00"},{"$f":"Time!EHM$23","v":"00:00:00"},{"$f":"Time!EHN$23","v":"00:00:00"},{"$f":"Time!EHO$23","v":"00:00:00"},{"$f":"Time!EHP$23","v":"00:00:00"},{"$f":"Time!EHQ$23","v":"00:00:00"},{"$f":"Time!EHR$23","v":"00:00:00"},{"$f":"Time!EHS$23","v":"00:00:00"},{"$f":"Time!EHT$23","v":"00:00:00"},{"$f":"Time!EHU$23","v":"00:00:00"},{"$f":"Time!EHV$23","v":"00:00:00"},{"$f":"Time!EHW$23","v":"00:00:00"},{"$f":"Time!EHX$23","v":"00:00:00"},{"$f":"Time!EHY$23","v":"00:00:00"},{"$f":"Time!EHZ$23","v":"00:00:00"},{"$f":"Time!EIA$23","v":"00:00:00"},{"$f":"Time!EIB$23","v":"00:00:00"},{"$f":"Time!EIC$23","v":"00:00:00"},{"$f":"Time!EID$23","v":"00:00:00"},{"$f":"Time!EIE$23","v":"00:00:00"},{"$f":"Time!EIF$23","v":"00:00:00"},{"$f":"Time!EIG$23","v":"00:00:00"},{"$f":"Time!EIH$23","v":"00:00:00"},{"$f":"Time!EII$23","v":"00:00:00"},{"$f":"Time!EIJ$23","v":"00:00:00"},{"$f":"Time!EIK$23","v":"00:00:00"},{"$f":"Time!EIL$23","v":"00:00:00"},{"$f":"Time!EIM$23","v":"00:00:00"},{"$f":"Time!EIN$23","v":"00:00:00"},{"$f":"Time!EIO$23","v":"00:00:00"},{"$f":"Time!EIP$23","v":"00:00:00"},{"$f":"Time!EIQ$23","v":"00:00:00"},{"$f":"Time!EIR$23","v":"00:00:00"},{"$f":"Time!EIS$23","v":"00:00:00"},{"$f":"Time!EIT$23","v":"00:00:00"},{"$f":"Time!EIU$23","v":"00:00:00"},{"$f":"Time!EIV$23","v":"00:00:00"},{"$f":"Time!EIW$23","v":"00:00:00"},{"$f":"Time!EIX$23","v":"00:00:00"},{"$f":"Time!EIY$23","v":"00:00:00"},{"$f":"Time!EIZ$23","v":"00:00:00"},{"$f":"Time!EJA$23","v":"00:00:00"},{"$f":"Time!EJB$23","v":"00:00:00"},{"$f":"Time!EJC$23","v":"00:00:00"},{"$f":"Time!EJD$23","v":"00:00:00"},{"$f":"Time!EJE$23","v":"00:00:00"},{"$f":"Time!EJF$23","v":"00:00:00"},{"$f":"Time!EJG$23","v":"00:00:00"},{"$f":"Time!EJH$23","v":"00:00:00"},{"$f":"Time!EJI$23","v":"00:00:00"},{"$f":"Time!EJJ$23","v":"00:00:00"},{"$f":"Time!EJK$23","v":"00:00:00"},{"$f":"Time!EJL$23","v":"00:00:00"},{"$f":"Time!EJM$23","v":"00:00:00"},{"$f":"Time!EJN$23","v":"00:00:00"},{"$f":"Time!EJO$23","v":"00:00:00"},{"$f":"Time!EJP$23","v":"00:00:00"},{"$f":"Time!EJQ$23","v":"00:00:00"},{"$f":"Time!EJR$23","v":"00:00:00"},{"$f":"Time!EJS$23","v":"00:00:00"},{"$f":"Time!EJT$23","v":"00:00:00"},{"$f":"Time!EJU$23","v":"00:00:00"},{"$f":"Time!EJV$23","v":"00:00:00"},{"$f":"Time!EJW$23","v":"00:00:00"},{"$f":"Time!EJX$23","v":"00:00:00"},{"$f":"Time!EJY$23","v":"00:00:00"},{"$f":"Time!EJZ$23","v":"00:00:00"},{"$f":"Time!EKA$23","v":"00:00:00"},{"$f":"Time!EKB$23","v":"00:00:00"},{"$f":"Time!EKC$23","v":"00:00:00"},{"$f":"Time!EKD$23","v":"00:00:00"},{"$f":"Time!EKE$23","v":"00:00:00"},{"$f":"Time!EKF$23","v":"00:00:00"},{"$f":"Time!EKG$23","v":"00:00:00"},{"$f":"Time!EKH$23","v":"00:00:00"},{"$f":"Time!EKI$23","v":"00:00:00"},{"$f":"Time!EKJ$23","v":"00:00:00"},{"$f":"Time!EKK$23","v":"00:00:00"},{"$f":"Time!EKL$23","v":"00:00:00"},{"$f":"Time!EKM$23","v":"00:00:00"},{"$f":"Time!EKN$23","v":"00:00:00"},{"$f":"Time!EKO$23","v":"00:00:00"},{"$f":"Time!EKP$23","v":"00:00:00"},{"$f":"Time!EKQ$23","v":"00:00:00"},{"$f":"Time!EKR$23","v":"00:00:00"},{"$f":"Time!EKS$23","v":"00:00:00"},{"$f":"Time!EKT$23","v":"00:00:00"},{"$f":"Time!EKU$23","v":"00:00:00"},{"$f":"Time!EKV$23","v":"00:00:00"},{"$f":"Time!EKW$23","v":"00:00:00"},{"$f":"Time!EKX$23","v":"00:00:00"},{"$f":"Time!EKY$23","v":"00:00:00"},{"$f":"Time!EKZ$23","v":"00:00:00"},{"$f":"Time!ELA$23","v":"00:00:00"},{"$f":"Time!ELB$23","v":"00:00:00"},{"$f":"Time!ELC$23","v":"00:00:00"},{"$f":"Time!ELD$23","v":"00:00:00"},{"$f":"Time!ELE$23","v":"00:00:00"},{"$f":"Time!ELF$23","v":"00:00:00"},{"$f":"Time!ELG$23","v":"00:00:00"},{"$f":"Time!ELH$23","v":"00:00:00"},{"$f":"Time!ELI$23","v":"00:00:00"},{"$f":"Time!ELJ$23","v":"00:00:00"},{"$f":"Time!ELK$23","v":"00:00:00"},{"$f":"Time!ELL$23","v":"00:00:00"},{"$f":"Time!ELM$23","v":"00:00:00"},{"$f":"Time!ELN$23","v":"00:00:00"},{"$f":"Time!ELO$23","v":"00:00:00"},{"$f":"Time!ELP$23","v":"00:00:00"},{"$f":"Time!ELQ$23","v":"00:00:00"},{"$f":"Time!ELR$23","v":"00:00:00"},{"$f":"Time!ELS$23","v":"00:00:00"},{"$f":"Time!ELT$23","v":"00:00:00"},{"$f":"Time!ELU$23","v":"00:00:00"},{"$f":"Time!ELV$23","v":"00:00:00"},{"$f":"Time!ELW$23","v":"00:00:00"},{"$f":"Time!ELX$23","v":"00:00:00"},{"$f":"Time!ELY$23","v":"00:00:00"},{"$f":"Time!ELZ$23","v":"00:00:00"},{"$f":"Time!EMA$23","v":"00:00:00"},{"$f":"Time!EMB$23","v":"00:00:00"},{"$f":"Time!EMC$23","v":"00:00:00"},{"$f":"Time!EMD$23","v":"00:00:00"},{"$f":"Time!EME$23","v":"00:00:00"},{"$f":"Time!EMF$23","v":"00:00:00"},{"$f":"Time!EMG$23","v":"00:00:00"},{"$f":"Time!EMH$23","v":"00:00:00"},{"$f":"Time!EMI$23","v":"00:00:00"},{"$f":"Time!EMJ$23","v":"00:00:00"},{"$f":"Time!EMK$23","v":"00:00:00"},{"$f":"Time!EML$23","v":"00:00:00"},{"$f":"Time!EMM$23","v":"00:00:00"},{"$f":"Time!EMN$23","v":"00:00:00"},{"$f":"Time!EMO$23","v":"00:00:00"},{"$f":"Time!EMP$23","v":"00:00:00"},{"$f":"Time!EMQ$23","v":"00:00:00"},{"$f":"Time!EMR$23","v":"00:00:00"},{"$f":"Time!EMS$23","v":"00:00:00"},{"$f":"Time!EMT$23","v":"00:00:00"},{"$f":"Time!EMU$23","v":"00:00:00"},{"$f":"Time!EMV$23","v":"00:00:00"},{"$f":"Time!EMW$23","v":"00:00:00"},{"$f":"Time!EMX$23","v":"00:00:00"},{"$f":"Time!EMY$23","v":"00:00:00"},{"$f":"Time!EMZ$23","v":"00:00:00"},{"$f":"Time!ENA$23","v":"00:00:00"},{"$f":"Time!ENB$23","v":"00:00:00"},{"$f":"Time!ENC$23","v":"00:00:00"},{"$f":"Time!END$23","v":"00:00:00"},{"$f":"Time!ENE$23","v":"00:00:00"},{"$f":"Time!ENF$23","v":"00:00:00"},{"$f":"Time!ENG$23","v":"00:00:00"},{"$f":"Time!ENH$23","v":"00:00:00"},{"$f":"Time!ENI$23","v":"00:00:00"},{"$f":"Time!ENJ$23","v":"00:00:00"},{"$f":"Time!ENK$23","v":"00:00:00"},{"$f":"Time!ENL$23","v":"00:00:00"},{"$f":"Time!ENM$23","v":"00:00:00"},{"$f":"Time!ENN$23","v":"00:00:00"},{"$f":"Time!ENO$23","v":"00:00:00"},{"$f":"Time!ENP$23","v":"00:00:00"},{"$f":"Time!ENQ$23","v":"00:00:00"},{"$f":"Time!ENR$23","v":"00:00:00"},{"$f":"Time!ENS$23","v":"00:00:00"},{"$f":"Time!ENT$23","v":"00:00:00"},{"$f":"Time!ENU$23","v":"00:00:00"},{"$f":"Time!ENV$23","v":"00:00:00"},{"$f":"Time!ENW$23","v":"00:00:00"},{"$f":"Time!ENX$23","v":"00:00:00"},{"$f":"Time!ENY$23","v":"00:00:00"},{"$f":"Time!ENZ$23","v":"00:00:00"},{"$f":"Time!EOA$23","v":"00:00:00"},{"$f":"Time!EOB$23","v":"00:00:00"},{"$f":"Time!EOC$23","v":"00:00:00"},{"$f":"Time!EOD$23","v":"00:00:00"},{"$f":"Time!EOE$23","v":"00:00:00"},{"$f":"Time!EOF$23","v":"00:00:00"},{"$f":"Time!EOG$23","v":"00:00:00"},{"$f":"Time!EOH$23","v":"00:00:00"},{"$f":"Time!EOI$23","v":"00:00:00"},{"$f":"Time!EOJ$23","v":"00:00:00"},{"$f":"Time!EOK$23","v":"00:00:00"},{"$f":"Time!EOL$23","v":"00:00:00"},{"$f":"Time!EOM$23","v":"00:00:00"},{"$f":"Time!EON$23","v":"00:00:00"},{"$f":"Time!EOO$23","v":"00:00:00"},{"$f":"Time!EOP$23","v":"00:00:00"},{"$f":"Time!EOQ$23","v":"00:00:00"},{"$f":"Time!EOR$23","v":"00:00:00"},{"$f":"Time!EOS$23","v":"00:00:00"},{"$f":"Time!EOT$23","v":"00:00:00"},{"$f":"Time!EOU$23","v":"00:00:00"},{"$f":"Time!EOV$23","v":"00:00:00"},{"$f":"Time!EOW$23","v":"00:00:00"},{"$f":"Time!EOX$23","v":"00:00:00"},{"$f":"Time!EOY$23","v":"00:00:00"},{"$f":"Time!EOZ$23","v":"00:00:00"},{"$f":"Time!EPA$23","v":"00:00:00"},{"$f":"Time!EPB$23","v":"00:00:00"},{"$f":"Time!EPC$23","v":"00:00:00"},{"$f":"Time!EPD$23","v":"00:00:00"},{"$f":"Time!EPE$23","v":"00:00:00"},{"$f":"Time!EPF$23","v":"00:00:00"},{"$f":"Time!EPG$23","v":"00:00:00"},{"$f":"Time!EPH$23","v":"00:00:00"},{"$f":"Time!EPI$23","v":"00:00:00"},{"$f":"Time!EPJ$23","v":"00:00:00"},{"$f":"Time!EPK$23","v":"00:00:00"},{"$f":"Time!EPL$23","v":"00:00:00"},{"$f":"Time!EPM$23","v":"00:00:00"},{"$f":"Time!EPN$23","v":"00:00:00"},{"$f":"Time!EPO$23","v":"00:00:00"},{"$f":"Time!EPP$23","v":"00:00:00"},{"$f":"Time!EPQ$23","v":"00:00:00"},{"$f":"Time!EPR$23","v":"00:00:00"},{"$f":"Time!EPS$23","v":"00:00:00"},{"$f":"Time!EPT$23","v":"00:00:00"},{"$f":"Time!EPU$23","v":"00:00:00"},{"$f":"Time!EPV$23","v":"00:00:00"},{"$f":"Time!EPW$23","v":"00:00:00"},{"$f":"Time!EPX$23","v":"00:00:00"},{"$f":"Time!EPY$23","v":"00:00:00"},{"$f":"Time!EPZ$23","v":"00:00:00"},{"$f":"Time!EQA$23","v":"00:00:00"},{"$f":"Time!EQB$23","v":"00:00:00"},{"$f":"Time!EQC$23","v":"00:00:00"},{"$f":"Time!EQD$23","v":"00:00:00"},{"$f":"Time!EQE$23","v":"00:00:00"},{"$f":"Time!EQF$23","v":"00:00:00"},{"$f":"Time!EQG$23","v":"00:00:00"},{"$f":"Time!EQH$23","v":"00:00:00"},{"$f":"Time!EQI$23","v":"00:00:00"},{"$f":"Time!EQJ$23","v":"00:00:00"},{"$f":"Time!EQK$23","v":"00:00:00"},{"$f":"Time!EQL$23","v":"00:00:00"},{"$f":"Time!EQM$23","v":"00:00:00"},{"$f":"Time!EQN$23","v":"00:00:00"},{"$f":"Time!EQO$23","v":"00:00:00"},{"$f":"Time!EQP$23","v":"00:00:00"},{"$f":"Time!EQQ$23","v":"00:00:00"},{"$f":"Time!EQR$23","v":"00:00:00"},{"$f":"Time!EQS$23","v":"00:00:00"},{"$f":"Time!EQT$23","v":"00:00:00"},{"$f":"Time!EQU$23","v":"00:00:00"},{"$f":"Time!EQV$23","v":"00:00:00"},{"$f":"Time!EQW$23","v":"00:00:00"},{"$f":"Time!EQX$23","v":"00:00:00"},{"$f":"Time!EQY$23","v":"00:00:00"},{"$f":"Time!EQZ$23","v":"00:00:00"},{"$f":"Time!ERA$23","v":"00:00:00"},{"$f":"Time!ERB$23","v":"00:00:00"},{"$f":"Time!ERC$23","v":"00:00:00"},{"$f":"Time!ERD$23","v":"00:00:00"},{"$f":"Time!ERE$23","v":"00:00:00"},{"$f":"Time!ERF$23","v":"00:00:00"},{"$f":"Time!ERG$23","v":"00:00:00"},{"$f":"Time!ERH$23","v":"00:00:00"},{"$f":"Time!ERI$23","v":"00:00:00"},{"$f":"Time!ERJ$23","v":"00:00:00"},{"$f":"Time!ERK$23","v":"00:00:00"},{"$f":"Time!ERL$23","v":"00:00:00"},{"$f":"Time!ERM$23","v":"00:00:00"},{"$f":"Time!ERN$23","v":"00:00:00"},{"$f":"Time!ERO$23","v":"00:00:00"},{"$f":"Time!ERP$23","v":"00:00:00"},{"$f":"Time!ERQ$23","v":"00:00:00"},{"$f":"Time!ERR$23","v":"00:00:00"},{"$f":"Time!ERS$23","v":"00:00:00"},{"$f":"Time!ERT$23","v":"00:00:00"},{"$f":"Time!ERU$23","v":"00:00:00"},{"$f":"Time!ERV$23","v":"00:00:00"},{"$f":"Time!ERW$23","v":"00:00:00"},{"$f":"Time!ERX$23","v":"00:00:00"},{"$f":"Time!ERY$23","v":"00:00:00"},{"$f":"Time!ERZ$23","v":"00:00:00"},{"$f":"Time!ESA$23","v":"00:00:00"},{"$f":"Time!ESB$23","v":"00:00:00"},{"$f":"Time!ESC$23","v":"00:00:00"},{"$f":"Time!ESD$23","v":"00:00:00"},{"$f":"Time!ESE$23","v":"00:00:00"},{"$f":"Time!ESF$23","v":"00:00:00"},{"$f":"Time!ESG$23","v":"00:00:00"},{"$f":"Time!ESH$23","v":"00:00:00"},{"$f":"Time!ESI$23","v":"00:00:00"},{"$f":"Time!ESJ$23","v":"00:00:00"},{"$f":"Time!ESK$23","v":"00:00:00"},{"$f":"Time!ESL$23","v":"00:00:00"},{"$f":"Time!ESM$23","v":"00:00:00"},{"$f":"Time!ESN$23","v":"00:00:00"},{"$f":"Time!ESO$23","v":"00:00:00"},{"$f":"Time!ESP$23","v":"00:00:00"},{"$f":"Time!ESQ$23","v":"00:00:00"},{"$f":"Time!ESR$23","v":"00:00:00"},{"$f":"Time!ESS$23","v":"00:00:00"},{"$f":"Time!EST$23","v":"00:00:00"},{"$f":"Time!ESU$23","v":"00:00:00"},{"$f":"Time!ESV$23","v":"00:00:00"},{"$f":"Time!ESW$23","v":"00:00:00"},{"$f":"Time!ESX$23","v":"00:00:00"},{"$f":"Time!ESY$23","v":"00:00:00"},{"$f":"Time!ESZ$23","v":"00:00:00"},{"$f":"Time!ETA$23","v":"00:00:00"},{"$f":"Time!ETB$23","v":"00:00:00"},{"$f":"Time!ETC$23","v":"00:00:00"},{"$f":"Time!ETD$23","v":"00:00:00"},{"$f":"Time!ETE$23","v":"00:00:00"},{"$f":"Time!ETF$23","v":"00:00:00"},{"$f":"Time!ETG$23","v":"00:00:00"},{"$f":"Time!ETH$23","v":"00:00:00"},{"$f":"Time!ETI$23","v":"00:00:00"},{"$f":"Time!ETJ$23","v":"00:00:00"},{"$f":"Time!ETK$23","v":"00:00:00"},{"$f":"Time!ETL$23","v":"00:00:00"},{"$f":"Time!ETM$23","v":"00:00:00"},{"$f":"Time!ETN$23","v":"00:00:00"},{"$f":"Time!ETO$23","v":"00:00:00"},{"$f":"Time!ETP$23","v":"00:00:00"},{"$f":"Time!ETQ$23","v":"00:00:00"},{"$f":"Time!ETR$23","v":"00:00:00"},{"$f":"Time!ETS$23","v":"00:00:00"},{"$f":"Time!ETT$23","v":"00:00:00"},{"$f":"Time!ETU$23","v":"00:00:00"},{"$f":"Time!ETV$23","v":"00:00:00"},{"$f":"Time!ETW$23","v":"00:00:00"},{"$f":"Time!ETX$23","v":"00:00:00"},{"$f":"Time!ETY$23","v":"00:00:00"},{"$f":"Time!ETZ$23","v":"00:00:00"},{"$f":"Time!EUA$23","v":"00:00:00"},{"$f":"Time!EUB$23","v":"00:00:00"},{"$f":"Time!EUC$23","v":"00:00:00"},{"$f":"Time!EUD$23","v":"00:00:00"},{"$f":"Time!EUE$23","v":"00:00:00"},{"$f":"Time!EUF$23","v":"00:00:00"},{"$f":"Time!EUG$23","v":"00:00:00"},{"$f":"Time!EUH$23","v":"00:00:00"},{"$f":"Time!EUI$23","v":"00:00:00"},{"$f":"Time!EUJ$23","v":"00:00:00"},{"$f":"Time!EUK$23","v":"00:00:00"},{"$f":"Time!EUL$23","v":"00:00:00"},{"$f":"Time!EUM$23","v":"00:00:00"},{"$f":"Time!EUN$23","v":"00:00:00"},{"$f":"Time!EUO$23","v":"00:00:00"},{"$f":"Time!EUP$23","v":"00:00:00"},{"$f":"Time!EUQ$23","v":"00:00:00"},{"$f":"Time!EUR$23","v":"00:00:00"},{"$f":"Time!EUS$23","v":"00:00:00"},{"$f":"Time!EUT$23","v":"00:00:00"},{"$f":"Time!EUU$23","v":"00:00:00"},{"$f":"Time!EUV$23","v":"00:00:00"},{"$f":"Time!EUW$23","v":"00:00:00"},{"$f":"Time!EUX$23","v":"00:00:00"},{"$f":"Time!EUY$23","v":"00:00:00"},{"$f":"Time!EUZ$23","v":"00:00:00"},{"$f":"Time!EVA$23","v":"00:00:00"},{"$f":"Time!EVB$23","v":"00:00:00"},{"$f":"Time!EVC$23","v":"00:00:00"},{"$f":"Time!EVD$23","v":"00:00:00"},{"$f":"Time!EVE$23","v":"00:00:00"},{"$f":"Time!EVF$23","v":"00:00:00"},{"$f":"Time!EVG$23","v":"00:00:00"},{"$f":"Time!EVH$23","v":"00:00:00"},{"$f":"Time!EVI$23","v":"00:00:00"},{"$f":"Time!EVJ$23","v":"00:00:00"},{"$f":"Time!EVK$23","v":"00:00:00"},{"$f":"Time!EVL$23","v":"00:00:00"},{"$f":"Time!EVM$23","v":"00:00:00"},{"$f":"Time!EVN$23","v":"00:00:00"},{"$f":"Time!EVO$23","v":"00:00:00"},{"$f":"Time!EVP$23","v":"00:00:00"},{"$f":"Time!EVQ$23","v":"00:00:00"},{"$f":"Time!EVR$23","v":"00:00:00"},{"$f":"Time!EVS$23","v":"00:00:00"},{"$f":"Time!EVT$23","v":"00:00:00"},{"$f":"Time!EVU$23","v":"00:00:00"},{"$f":"Time!EVV$23","v":"00:00:00"},{"$f":"Time!EVW$23","v":"00:00:00"},{"$f":"Time!EVX$23","v":"00:00:00"},{"$f":"Time!EVY$23","v":"00:00:00"},{"$f":"Time!EVZ$23","v":"00:00:00"},{"$f":"Time!EWA$23","v":"00:00:00"},{"$f":"Time!EWB$23","v":"00:00:00"},{"$f":"Time!EWC$23","v":"00:00:00"},{"$f":"Time!EWD$23","v":"00:00:00"},{"$f":"Time!EWE$23","v":"00:00:00"},{"$f":"Time!EWF$23","v":"00:00:00"},{"$f":"Time!EWG$23","v":"00:00:00"},{"$f":"Time!EWH$23","v":"00:00:00"},{"$f":"Time!EWI$23","v":"00:00:00"},{"$f":"Time!EWJ$23","v":"00:00:00"},{"$f":"Time!EWK$23","v":"00:00:00"},{"$f":"Time!EWL$23","v":"00:00:00"},{"$f":"Time!EWM$23","v":"00:00:00"},{"$f":"Time!EWN$23","v":"00:00:00"},{"$f":"Time!EWO$23","v":"00:00:00"},{"$f":"Time!EWP$23","v":"00:00:00"},{"$f":"Time!EWQ$23","v":"00:00:00"},{"$f":"Time!EWR$23","v":"00:00:00"},{"$f":"Time!EWS$23","v":"00:00:00"},{"$f":"Time!EWT$23","v":"00:00:00"},{"$f":"Time!EWU$23","v":"00:00:00"},{"$f":"Time!EWV$23","v":"00:00:00"},{"$f":"Time!EWW$23","v":"00:00:00"},{"$f":"Time!EWX$23","v":"00:00:00"},{"$f":"Time!EWY$23","v":"00:00:00"},{"$f":"Time!EWZ$23","v":"00:00:00"},{"$f":"Time!EXA$23","v":"00:00:00"},{"$f":"Time!EXB$23","v":"00:00:00"},{"$f":"Time!EXC$23","v":"00:00:00"},{"$f":"Time!EXD$23","v":"00:00:00"},{"$f":"Time!EXE$23","v":"00:00:00"},{"$f":"Time!EXF$23","v":"00:00:00"},{"$f":"Time!EXG$23","v":"00:00:00"},{"$f":"Time!EXH$23","v":"00:00:00"},{"$f":"Time!EXI$23","v":"00:00:00"},{"$f":"Time!EXJ$23","v":"00:00:00"},{"$f":"Time!EXK$23","v":"00:00:00"},{"$f":"Time!EXL$23","v":"00:00:00"},{"$f":"Time!EXM$23","v":"00:00:00"},{"$f":"Time!EXN$23","v":"00:00:00"},{"$f":"Time!EXO$23","v":"00:00:00"},{"$f":"Time!EXP$23","v":"00:00:00"},{"$f":"Time!EXQ$23","v":"00:00:00"},{"$f":"Time!EXR$23","v":"00:00:00"},{"$f":"Time!EXS$23","v":"00:00:00"},{"$f":"Time!EXT$23","v":"00:00:00"},{"$f":"Time!EXU$23","v":"00:00:00"},{"$f":"Time!EXV$23","v":"00:00:00"},{"$f":"Time!EXW$23","v":"00:00:00"},{"$f":"Time!EXX$23","v":"00:00:00"},{"$f":"Time!EXY$23","v":"00:00:00"},{"$f":"Time!EXZ$23","v":"00:00:00"},{"$f":"Time!EYA$23","v":"00:00:00"},{"$f":"Time!EYB$23","v":"00:00:00"},{"$f":"Time!EYC$23","v":"00:00:00"},{"$f":"Time!EYD$23","v":"00:00:00"},{"$f":"Time!EYE$23","v":"00:00:00"},{"$f":"Time!EYF$23","v":"00:00:00"},{"$f":"Time!EYG$23","v":"00:00:00"},{"$f":"Time!EYH$23","v":"00:00:00"},{"$f":"Time!EYI$23","v":"00:00:00"},{"$f":"Time!EYJ$23","v":"00:00:00"},{"$f":"Time!EYK$23","v":"00:00:00"},{"$f":"Time!EYL$23","v":"00:00:00"},{"$f":"Time!EYM$23","v":"00:00:00"},{"$f":"Time!EYN$23","v":"00:00:00"},{"$f":"Time!EYO$23","v":"00:00:00"},{"$f":"Time!EYP$23","v":"00:00:00"},{"$f":"Time!EYQ$23","v":"00:00:00"},{"$f":"Time!EYR$23","v":"00:00:00"},{"$f":"Time!EYS$23","v":"00:00:00"},{"$f":"Time!EYT$23","v":"00:00:00"},{"$f":"Time!EYU$23","v":"00:00:00"},{"$f":"Time!EYV$23","v":"00:00:00"},{"$f":"Time!EYW$23","v":"00:00:00"},{"$f":"Time!EYX$23","v":"00:00:00"},{"$f":"Time!EYY$23","v":"00:00:00"},{"$f":"Time!EYZ$23","v":"00:00:00"},{"$f":"Time!EZA$23","v":"00:00:00"},{"$f":"Time!EZB$23","v":"00:00:00"},{"$f":"Time!EZC$23","v":"00:00:00"},{"$f":"Time!EZD$23","v":"00:00:00"},{"$f":"Time!EZE$23","v":"00:00:00"},{"$f":"Time!EZF$23","v":"00:00:00"},{"$f":"Time!EZG$23","v":"00:00:00"},{"$f":"Time!EZH$23","v":"00:00:00"},{"$f":"Time!EZI$23","v":"00:00:00"},{"$f":"Time!EZJ$23","v":"00:00:00"},{"$f":"Time!EZK$23","v":"00:00:00"},{"$f":"Time!EZL$23","v":"00:00:00"},{"$f":"Time!EZM$23","v":"00:00:00"},{"$f":"Time!EZN$23","v":"00:00:00"},{"$f":"Time!EZO$23","v":"00:00:00"},{"$f":"Time!EZP$23","v":"00:00:00"},{"$f":"Time!EZQ$23","v":"00:00:00"},{"$f":"Time!EZR$23","v":"00:00:00"},{"$f":"Time!EZS$23","v":"00:00:00"},{"$f":"Time!EZT$23","v":"00:00:00"},{"$f":"Time!EZU$23","v":"00:00:00"},{"$f":"Time!EZV$23","v":"00:00:00"},{"$f":"Time!EZW$23","v":"00:00:00"},{"$f":"Time!EZX$23","v":"00:00:00"},{"$f":"Time!EZY$23","v":"00:00:00"},{"$f":"Time!EZZ$23","v":"00:00:00"},{"$f":"Time!FAA$23","v":"00:00:00"},{"$f":"Time!FAB$23","v":"00:00:00"},{"$f":"Time!FAC$23","v":"00:00:00"},{"$f":"Time!FAD$23","v":"00:00:00"},{"$f":"Time!FAE$23","v":"00:00:00"},{"$f":"Time!FAF$23","v":"00:00:00"},{"$f":"Time!FAG$23","v":"00:00:00"},{"$f":"Time!FAH$23","v":"00:00:00"},{"$f":"Time!FAI$23","v":"00:00:00"},{"$f":"Time!FAJ$23","v":"00:00:00"},{"$f":"Time!FAK$23","v":"00:00:00"},{"$f":"Time!FAL$23","v":"00:00:00"},{"$f":"Time!FAM$23","v":"00:00:00"},{"$f":"Time!FAN$23","v":"00:00:00"},{"$f":"Time!FAO$23","v":"00:00:00"},{"$f":"Time!FAP$23","v":"00:00:00"},{"$f":"Time!FAQ$23","v":"00:00:00"},{"$f":"Time!FAR$23","v":"00:00:00"},{"$f":"Time!FAS$23","v":"00:00:00"},{"$f":"Time!FAT$23","v":"00:00:00"},{"$f":"Time!FAU$23","v":"00:00:00"},{"$f":"Time!FAV$23","v":"00:00:00"},{"$f":"Time!FAW$23","v":"00:00:00"},{"$f":"Time!FAX$23","v":"00:00:00"},{"$f":"Time!FAY$23","v":"00:00:00"},{"$f":"Time!FAZ$23","v":"00:00:00"},{"$f":"Time!FBA$23","v":"00:00:00"},{"$f":"Time!FBB$23","v":"00:00:00"},{"$f":"Time!FBC$23","v":"00:00:00"},{"$f":"Time!FBD$23","v":"00:00:00"},{"$f":"Time!FBE$23","v":"00:00:00"},{"$f":"Time!FBF$23","v":"00:00:00"},{"$f":"Time!FBG$23","v":"00:00:00"},{"$f":"Time!FBH$23","v":"00:00:00"},{"$f":"Time!FBI$23","v":"00:00:00"},{"$f":"Time!FBJ$23","v":"00:00:00"},{"$f":"Time!FBK$23","v":"00:00:00"},{"$f":"Time!FBL$23","v":"00:00:00"},{"$f":"Time!FBM$23","v":"00:00:00"},{"$f":"Time!FBN$23","v":"00:00:00"},{"$f":"Time!FBO$23","v":"00:00:00"},{"$f":"Time!FBP$23","v":"00:00:00"},{"$f":"Time!FBQ$23","v":"00:00:00"},{"$f":"Time!FBR$23","v":"00:00:00"},{"$f":"Time!FBS$23","v":"00:00:00"},{"$f":"Time!FBT$23","v":"00:00:00"},{"$f":"Time!FBU$23","v":"00:00:00"},{"$f":"Time!FBV$23","v":"00:00:00"},{"$f":"Time!FBW$23","v":"00:00:00"},{"$f":"Time!FBX$23","v":"00:00:00"},{"$f":"Time!FBY$23","v":"00:00:00"},{"$f":"Time!FBZ$23","v":"00:00:00"},{"$f":"Time!FCA$23","v":"00:00:00"},{"$f":"Time!FCB$23","v":"00:00:00"},{"$f":"Time!FCC$23","v":"00:00:00"},{"$f":"Time!FCD$23","v":"00:00:00"},{"$f":"Time!FCE$23","v":"00:00:00"},{"$f":"Time!FCF$23","v":"00:00:00"},{"$f":"Time!FCG$23","v":"00:00:00"},{"$f":"Time!FCH$23","v":"00:00:00"},{"$f":"Time!FCI$23","v":"00:00:00"},{"$f":"Time!FCJ$23","v":"00:00:00"},{"$f":"Time!FCK$23","v":"00:00:00"},{"$f":"Time!FCL$23","v":"00:00:00"},{"$f":"Time!FCM$23","v":"00:00:00"},{"$f":"Time!FCN$23","v":"00:00:00"},{"$f":"Time!FCO$23","v":"00:00:00"},{"$f":"Time!FCP$23","v":"00:00:00"},{"$f":"Time!FCQ$23","v":"00:00:00"},{"$f":"Time!FCR$23","v":"00:00:00"},{"$f":"Time!FCS$23","v":"00:00:00"},{"$f":"Time!FCT$23","v":"00:00:00"},{"$f":"Time!FCU$23","v":"00:00:00"},{"$f":"Time!FCV$23","v":"00:00:00"},{"$f":"Time!FCW$23","v":"00:00:00"},{"$f":"Time!FCX$23","v":"00:00:00"},{"$f":"Time!FCY$23","v":"00:00:00"},{"$f":"Time!FCZ$23","v":"00:00:00"},{"$f":"Time!FDA$23","v":"00:00:00"},{"$f":"Time!FDB$23","v":"00:00:00"},{"$f":"Time!FDC$23","v":"00:00:00"},{"$f":"Time!FDD$23","v":"00:00:00"},{"$f":"Time!FDE$23","v":"00:00:00"},{"$f":"Time!FDF$23","v":"00:00:00"},{"$f":"Time!FDG$23","v":"00:00:00"},{"$f":"Time!FDH$23","v":"00:00:00"},{"$f":"Time!FDI$23","v":"00:00:00"},{"$f":"Time!FDJ$23","v":"00:00:00"},{"$f":"Time!FDK$23","v":"00:00:00"},{"$f":"Time!FDL$23","v":"00:00:00"},{"$f":"Time!FDM$23","v":"00:00:00"},{"$f":"Time!FDN$23","v":"00:00:00"},{"$f":"Time!FDO$23","v":"00:00:00"},{"$f":"Time!FDP$23","v":"00:00:00"},{"$f":"Time!FDQ$23","v":"00:00:00"},{"$f":"Time!FDR$23","v":"00:00:00"},{"$f":"Time!FDS$23","v":"00:00:00"},{"$f":"Time!FDT$23","v":"00:00:00"},{"$f":"Time!FDU$23","v":"00:00:00"},{"$f":"Time!FDV$23","v":"00:00:00"},{"$f":"Time!FDW$23","v":"00:00:00"},{"$f":"Time!FDX$23","v":"00:00:00"},{"$f":"Time!FDY$23","v":"00:00:00"},{"$f":"Time!FDZ$23","v":"00:00:00"},{"$f":"Time!FEA$23","v":"00:00:00"},{"$f":"Time!FEB$23","v":"00:00:00"},{"$f":"Time!FEC$23","v":"00:00:00"},{"$f":"Time!FED$23","v":"00:00:00"},{"$f":"Time!FEE$23","v":"00:00:00"},{"$f":"Time!FEF$23","v":"00:00:00"},{"$f":"Time!FEG$23","v":"00:00:00"},{"$f":"Time!FEH$23","v":"00:00:00"},{"$f":"Time!FEI$23","v":"00:00:00"},{"$f":"Time!FEJ$23","v":"00:00:00"},{"$f":"Time!FEK$23","v":"00:00:00"},{"$f":"Time!FEL$23","v":"00:00:00"},{"$f":"Time!FEM$23","v":"00:00:00"},{"$f":"Time!FEN$23","v":"00:00:00"},{"$f":"Time!FEO$23","v":"00:00:00"},{"$f":"Time!FEP$23","v":"00:00:00"},{"$f":"Time!FEQ$23","v":"00:00:00"},{"$f":"Time!FER$23","v":"00:00:00"},{"$f":"Time!FES$23","v":"00:00:00"},{"$f":"Time!FET$23","v":"00:00:00"},{"$f":"Time!FEU$23","v":"00:00:00"},{"$f":"Time!FEV$23","v":"00:00:00"},{"$f":"Time!FEW$23","v":"00:00:00"},{"$f":"Time!FEX$23","v":"00:00:00"},{"$f":"Time!FEY$23","v":"00:00:00"},{"$f":"Time!FEZ$23","v":"00:00:00"},{"$f":"Time!FFA$23","v":"00:00:00"},{"$f":"Time!FFB$23","v":"00:00:00"},{"$f":"Time!FFC$23","v":"00:00:00"},{"$f":"Time!FFD$23","v":"00:00:00"},{"$f":"Time!FFE$23","v":"00:00:00"},{"$f":"Time!FFF$23","v":"00:00:00"},{"$f":"Time!FFG$23","v":"00:00:00"},{"$f":"Time!FFH$23","v":"00:00:00"},{"$f":"Time!FFI$23","v":"00:00:00"},{"$f":"Time!FFJ$23","v":"00:00:00"},{"$f":"Time!FFK$23","v":"00:00:00"},{"$f":"Time!FFL$23","v":"00:00:00"},{"$f":"Time!FFM$23","v":"00:00:00"},{"$f":"Time!FFN$23","v":"00:00:00"},{"$f":"Time!FFO$23","v":"00:00:00"},{"$f":"Time!FFP$23","v":"00:00:00"},{"$f":"Time!FFQ$23","v":"00:00:00"},{"$f":"Time!FFR$23","v":"00:00:00"},{"$f":"Time!FFS$23","v":"00:00:00"},{"$f":"Time!FFT$23","v":"00:00:00"},{"$f":"Time!FFU$23","v":"00:00:00"},{"$f":"Time!FFV$23","v":"00:00:00"},{"$f":"Time!FFW$23","v":"00:00:00"},{"$f":"Time!FFX$23","v":"00:00:00"},{"$f":"Time!FFY$23","v":"00:00:00"},{"$f":"Time!FFZ$23","v":"00:00:00"},{"$f":"Time!FGA$23","v":"00:00:00"},{"$f":"Time!FGB$23","v":"00:00:00"},{"$f":"Time!FGC$23","v":"00:00:00"},{"$f":"Time!FGD$23","v":"00:00:00"},{"$f":"Time!FGE$23","v":"00:00:00"},{"$f":"Time!FGF$23","v":"00:00:00"},{"$f":"Time!FGG$23","v":"00:00:00"},{"$f":"Time!FGH$23","v":"00:00:00"},{"$f":"Time!FGI$23","v":"00:00:00"},{"$f":"Time!FGJ$23","v":"00:00:00"},{"$f":"Time!FGK$23","v":"00:00:00"},{"$f":"Time!FGL$23","v":"00:00:00"},{"$f":"Time!FGM$23","v":"00:00:00"},{"$f":"Time!FGN$23","v":"00:00:00"},{"$f":"Time!FGO$23","v":"00:00:00"},{"$f":"Time!FGP$23","v":"00:00:00"},{"$f":"Time!FGQ$23","v":"00:00:00"},{"$f":"Time!FGR$23","v":"00:00:00"},{"$f":"Time!FGS$23","v":"00:00:00"},{"$f":"Time!FGT$23","v":"00:00:00"},{"$f":"Time!FGU$23","v":"00:00:00"},{"$f":"Time!FGV$23","v":"00:00:00"},{"$f":"Time!FGW$23","v":"00:00:00"},{"$f":"Time!FGX$23","v":"00:00:00"},{"$f":"Time!FGY$23","v":"00:00:00"},{"$f":"Time!FGZ$23","v":"00:00:00"},{"$f":"Time!FHA$23","v":"00:00:00"},{"$f":"Time!FHB$23","v":"00:00:00"},{"$f":"Time!FHC$23","v":"00:00:00"},{"$f":"Time!FHD$23","v":"00:00:00"},{"$f":"Time!FHE$23","v":"00:00:00"},{"$f":"Time!FHF$23","v":"00:00:00"},{"$f":"Time!FHG$23","v":"00:00:00"},{"$f":"Time!FHH$23","v":"00:00:00"},{"$f":"Time!FHI$23","v":"00:00:00"},{"$f":"Time!FHJ$23","v":"00:00:00"},{"$f":"Time!FHK$23","v":"00:00:00"},{"$f":"Time!FHL$23","v":"00:00:00"},{"$f":"Time!FHM$23","v":"00:00:00"},{"$f":"Time!FHN$23","v":"00:00:00"},{"$f":"Time!FHO$23","v":"00:00:00"},{"$f":"Time!FHP$23","v":"00:00:00"},{"$f":"Time!FHQ$23","v":"00:00:00"},{"$f":"Time!FHR$23","v":"00:00:00"},{"$f":"Time!FHS$23","v":"00:00:00"},{"$f":"Time!FHT$23","v":"00:00:00"},{"$f":"Time!FHU$23","v":"00:00:00"},{"$f":"Time!FHV$23","v":"00:00:00"},{"$f":"Time!FHW$23","v":"00:00:00"},{"$f":"Time!FHX$23","v":"00:00:00"},{"$f":"Time!FHY$23","v":"00:00:00"},{"$f":"Time!FHZ$23","v":"00:00:00"},{"$f":"Time!FIA$23","v":"00:00:00"},{"$f":"Time!FIB$23","v":"00:00:00"},{"$f":"Time!FIC$23","v":"00:00:00"},{"$f":"Time!FID$23","v":"00:00:00"},{"$f":"Time!FIE$23","v":"00:00:00"},{"$f":"Time!FIF$23","v":"00:00:00"},{"$f":"Time!FIG$23","v":"00:00:00"},{"$f":"Time!FIH$23","v":"00:00:00"},{"$f":"Time!FII$23","v":"00:00:00"},{"$f":"Time!FIJ$23","v":"00:00:00"},{"$f":"Time!FIK$23","v":"00:00:00"},{"$f":"Time!FIL$23","v":"00:00:00"},{"$f":"Time!FIM$23","v":"00:00:00"},{"$f":"Time!FIN$23","v":"00:00:00"},{"$f":"Time!FIO$23","v":"00:00:00"},{"$f":"Time!FIP$23","v":"00:00:00"},{"$f":"Time!FIQ$23","v":"00:00:00"},{"$f":"Time!FIR$23","v":"00:00:00"},{"$f":"Time!FIS$23","v":"00:00:00"},{"$f":"Time!FIT$23","v":"00:00:00"},{"$f":"Time!FIU$23","v":"00:00:00"},{"$f":"Time!FIV$23","v":"00:00:00"},{"$f":"Time!FIW$23","v":"00:00:00"},{"$f":"Time!FIX$23","v":"00:00:00"},{"$f":"Time!FIY$23","v":"00:00:00"},{"$f":"Time!FIZ$23","v":"00:00:00"},{"$f":"Time!FJA$23","v":"00:00:00"},{"$f":"Time!FJB$23","v":"00:00:00"},{"$f":"Time!FJC$23","v":"00:00:00"},{"$f":"Time!FJD$23","v":"00:00:00"},{"$f":"Time!FJE$23","v":"00:00:00"},{"$f":"Time!FJF$23","v":"00:00:00"},{"$f":"Time!FJG$23","v":"00:00:00"},{"$f":"Time!FJH$23","v":"00:00:00"},{"$f":"Time!FJI$23","v":"00:00:00"},{"$f":"Time!FJJ$23","v":"00:00:00"},{"$f":"Time!FJK$23","v":"00:00:00"},{"$f":"Time!FJL$23","v":"00:00:00"},{"$f":"Time!FJM$23","v":"00:00:00"},{"$f":"Time!FJN$23","v":"00:00:00"},{"$f":"Time!FJO$23","v":"00:00:00"},{"$f":"Time!FJP$23","v":"00:00:00"},{"$f":"Time!FJQ$23","v":"00:00:00"},{"$f":"Time!FJR$23","v":"00:00:00"},{"$f":"Time!FJS$23","v":"00:00:00"},{"$f":"Time!FJT$23","v":"00:00:00"},{"$f":"Time!FJU$23","v":"00:00:00"},{"$f":"Time!FJV$23","v":"00:00:00"},{"$f":"Time!FJW$23","v":"00:00:00"},{"$f":"Time!FJX$23","v":"00:00:00"},{"$f":"Time!FJY$23","v":"00:00:00"},{"$f":"Time!FJZ$23","v":"00:00:00"},{"$f":"Time!FKA$23","v":"00:00:00"},{"$f":"Time!FKB$23","v":"00:00:00"},{"$f":"Time!FKC$23","v":"00:00:00"},{"$f":"Time!FKD$23","v":"00:00:00"},{"$f":"Time!FKE$23","v":"00:00:00"},{"$f":"Time!FKF$23","v":"00:00:00"},{"$f":"Time!FKG$23","v":"00:00:00"},{"$f":"Time!FKH$23","v":"00:00:00"},{"$f":"Time!FKI$23","v":"00:00:00"},{"$f":"Time!FKJ$23","v":"00:00:00"},{"$f":"Time!FKK$23","v":"00:00:00"},{"$f":"Time!FKL$23","v":"00:00:00"},{"$f":"Time!FKM$23","v":"00:00:00"},{"$f":"Time!FKN$23","v":"00:00:00"},{"$f":"Time!FKO$23","v":"00:00:00"},{"$f":"Time!FKP$23","v":"00:00:00"},{"$f":"Time!FKQ$23","v":"00:00:00"},{"$f":"Time!FKR$23","v":"00:00:00"},{"$f":"Time!FKS$23","v":"00:00:00"},{"$f":"Time!FKT$23","v":"00:00:00"},{"$f":"Time!FKU$23","v":"00:00:00"},{"$f":"Time!FKV$23","v":"00:00:00"},{"$f":"Time!FKW$23","v":"00:00:00"},{"$f":"Time!FKX$23","v":"00:00:00"},{"$f":"Time!FKY$23","v":"00:00:00"},{"$f":"Time!FKZ$23","v":"00:00:00"},{"$f":"Time!FLA$23","v":"00:00:00"},{"$f":"Time!FLB$23","v":"00:00:00"},{"$f":"Time!FLC$23","v":"00:00:00"},{"$f":"Time!FLD$23","v":"00:00:00"},{"$f":"Time!FLE$23","v":"00:00:00"},{"$f":"Time!FLF$23","v":"00:00:00"},{"$f":"Time!FLG$23","v":"00:00:00"},{"$f":"Time!FLH$23","v":"00:00:00"},{"$f":"Time!FLI$23","v":"00:00:00"},{"$f":"Time!FLJ$23","v":"00:00:00"},{"$f":"Time!FLK$23","v":"00:00:00"},{"$f":"Time!FLL$23","v":"00:00:00"},{"$f":"Time!FLM$23","v":"00:00:00"},{"$f":"Time!FLN$23","v":"00:00:00"},{"$f":"Time!FLO$23","v":"00:00:00"},{"$f":"Time!FLP$23","v":"00:00:00"},{"$f":"Time!FLQ$23","v":"00:00:00"},{"$f":"Time!FLR$23","v":"00:00:00"},{"$f":"Time!FLS$23","v":"00:00:00"},{"$f":"Time!FLT$23","v":"00:00:00"},{"$f":"Time!FLU$23","v":"00:00:00"},{"$f":"Time!FLV$23","v":"00:00:00"},{"$f":"Time!FLW$23","v":"00:00:00"},{"$f":"Time!FLX$23","v":"00:00:00"},{"$f":"Time!FLY$23","v":"00:00:00"},{"$f":"Time!FLZ$23","v":"00:00:00"},{"$f":"Time!FMA$23","v":"00:00:00"},{"$f":"Time!FMB$23","v":"00:00:00"},{"$f":"Time!FMC$23","v":"00:00:00"},{"$f":"Time!FMD$23","v":"00:00:00"},{"$f":"Time!FME$23","v":"00:00:00"},{"$f":"Time!FMF$23","v":"00:00:00"},{"$f":"Time!FMG$23","v":"00:00:00"},{"$f":"Time!FMH$23","v":"00:00:00"},{"$f":"Time!FMI$23","v":"00:00:00"},{"$f":"Time!FMJ$23","v":"00:00:00"},{"$f":"Time!FMK$23","v":"00:00:00"},{"$f":"Time!FML$23","v":"00:00:00"},{"$f":"Time!FMM$23","v":"00:00:00"},{"$f":"Time!FMN$23","v":"00:00:00"},{"$f":"Time!FMO$23","v":"00:00:00"},{"$f":"Time!FMP$23","v":"00:00:00"},{"$f":"Time!FMQ$23","v":"00:00:00"},{"$f":"Time!FMR$23","v":"00:00:00"},{"$f":"Time!FMS$23","v":"00:00:00"},{"$f":"Time!FMT$23","v":"00:00:00"},{"$f":"Time!FMU$23","v":"00:00:00"},{"$f":"Time!FMV$23","v":"00:00:00"},{"$f":"Time!FMW$23","v":"00:00:00"},{"$f":"Time!FMX$23","v":"00:00:00"},{"$f":"Time!FMY$23","v":"00:00:00"},{"$f":"Time!FMZ$23","v":"00:00:00"},{"$f":"Time!FNA$23","v":"00:00:00"},{"$f":"Time!FNB$23","v":"00:00:00"},{"$f":"Time!FNC$23","v":"00:00:00"},{"$f":"Time!FND$23","v":"00:00:00"},{"$f":"Time!FNE$23","v":"00:00:00"},{"$f":"Time!FNF$23","v":"00:00:00"},{"$f":"Time!FNG$23","v":"00:00:00"},{"$f":"Time!FNH$23","v":"00:00:00"},{"$f":"Time!FNI$23","v":"00:00:00"},{"$f":"Time!FNJ$23","v":"00:00:00"},{"$f":"Time!FNK$23","v":"00:00:00"},{"$f":"Time!FNL$23","v":"00:00:00"},{"$f":"Time!FNM$23","v":"00:00:00"},{"$f":"Time!FNN$23","v":"00:00:00"},{"$f":"Time!FNO$23","v":"00:00:00"},{"$f":"Time!FNP$23","v":"00:00:00"},{"$f":"Time!FNQ$23","v":"00:00:00"},{"$f":"Time!FNR$23","v":"00:00:00"},{"$f":"Time!FNS$23","v":"00:00:00"},{"$f":"Time!FNT$23","v":"00:00:00"},{"$f":"Time!FNU$23","v":"00:00:00"},{"$f":"Time!FNV$23","v":"00:00:00"},{"$f":"Time!FNW$23","v":"00:00:00"},{"$f":"Time!FNX$23","v":"00:00:00"},{"$f":"Time!FNY$23","v":"00:00:00"},{"$f":"Time!FNZ$23","v":"00:00:00"},{"$f":"Time!FOA$23","v":"00:00:00"},{"$f":"Time!FOB$23","v":"00:00:00"},{"$f":"Time!FOC$23","v":"00:00:00"},{"$f":"Time!FOD$23","v":"00:00:00"},{"$f":"Time!FOE$23","v":"00:00:00"},{"$f":"Time!FOF$23","v":"00:00:00"},{"$f":"Time!FOG$23","v":"00:00:00"},{"$f":"Time!FOH$23","v":"00:00:00"},{"$f":"Time!FOI$23","v":"00:00:00"},{"$f":"Time!FOJ$23","v":"00:00:00"},{"$f":"Time!FOK$23","v":"00:00:00"},{"$f":"Time!FOL$23","v":"00:00:00"},{"$f":"Time!FOM$23","v":"00:00:00"},{"$f":"Time!FON$23","v":"00:00:00"},{"$f":"Time!FOO$23","v":"00:00:00"},{"$f":"Time!FOP$23","v":"00:00:00"},{"$f":"Time!FOQ$23","v":"00:00:00"},{"$f":"Time!FOR$23","v":"00:00:00"},{"$f":"Time!FOS$23","v":"00:00:00"},{"$f":"Time!FOT$23","v":"00:00:00"},{"$f":"Time!FOU$23","v":"00:00:00"},{"$f":"Time!FOV$23","v":"00:00:00"},{"$f":"Time!FOW$23","v":"00:00:00"},{"$f":"Time!FOX$23","v":"00:00:00"},{"$f":"Time!FOY$23","v":"00:00:00"},{"$f":"Time!FOZ$23","v":"00:00:00"},{"$f":"Time!FPA$23","v":"00:00:00"},{"$f":"Time!FPB$23","v":"00:00:00"},{"$f":"Time!FPC$23","v":"00:00:00"},{"$f":"Time!FPD$23","v":"00:00:00"},{"$f":"Time!FPE$23","v":"00:00:00"},{"$f":"Time!FPF$23","v":"00:00:00"},{"$f":"Time!FPG$23","v":"00:00:00"},{"$f":"Time!FPH$23","v":"00:00:00"},{"$f":"Time!FPI$23","v":"00:00:00"},{"$f":"Time!FPJ$23","v":"00:00:00"},{"$f":"Time!FPK$23","v":"00:00:00"},{"$f":"Time!FPL$23","v":"00:00:00"},{"$f":"Time!FPM$23","v":"00:00:00"},{"$f":"Time!FPN$23","v":"00:00:00"},{"$f":"Time!FPO$23","v":"00:00:00"},{"$f":"Time!FPP$23","v":"00:00:00"},{"$f":"Time!FPQ$23","v":"00:00:00"},{"$f":"Time!FPR$23","v":"00:00:00"},{"$f":"Time!FPS$23","v":"00:00:00"},{"$f":"Time!FPT$23","v":"00:00:00"},{"$f":"Time!FPU$23","v":"00:00:00"},{"$f":"Time!FPV$23","v":"00:00:00"},{"$f":"Time!FPW$23","v":"00:00:00"},{"$f":"Time!FPX$23","v":"00:00:00"},{"$f":"Time!FPY$23","v":"00:00:00"},{"$f":"Time!FPZ$23","v":"00:00:00"},{"$f":"Time!FQA$23","v":"00:00:00"},{"$f":"Time!FQB$23","v":"00:00:00"},{"$f":"Time!FQC$23","v":"00:00:00"},{"$f":"Time!FQD$23","v":"00:00:00"},{"$f":"Time!FQE$23","v":"00:00:00"},{"$f":"Time!FQF$23","v":"00:00:00"},{"$f":"Time!FQG$23","v":"00:00:00"},{"$f":"Time!FQH$23","v":"00:00:00"},{"$f":"Time!FQI$23","v":"00:00:00"},{"$f":"Time!FQJ$23","v":"00:00:00"},{"$f":"Time!FQK$23","v":"00:00:00"},{"$f":"Time!FQL$23","v":"00:00:00"},{"$f":"Time!FQM$23","v":"00:00:00"},{"$f":"Time!FQN$23","v":"00:00:00"},{"$f":"Time!FQO$23","v":"00:00:00"},{"$f":"Time!FQP$23","v":"00:00:00"},{"$f":"Time!FQQ$23","v":"00:00:00"},{"$f":"Time!FQR$23","v":"00:00:00"},{"$f":"Time!FQS$23","v":"00:00:00"},{"$f":"Time!FQT$23","v":"00:00:00"},{"$f":"Time!FQU$23","v":"00:00:00"},{"$f":"Time!FQV$23","v":"00:00:00"},{"$f":"Time!FQW$23","v":"00:00:00"},{"$f":"Time!FQX$23","v":"00:00:00"},{"$f":"Time!FQY$23","v":"00:00:00"},{"$f":"Time!FQZ$23","v":"00:00:00"},{"$f":"Time!FRA$23","v":"00:00:00"},{"$f":"Time!FRB$23","v":"00:00:00"},{"$f":"Time!FRC$23","v":"00:00:00"},{"$f":"Time!FRD$23","v":"00:00:00"},{"$f":"Time!FRE$23","v":"00:00:00"},{"$f":"Time!FRF$23","v":"00:00:00"},{"$f":"Time!FRG$23","v":"00:00:00"},{"$f":"Time!FRH$23","v":"00:00:00"},{"$f":"Time!FRI$23","v":"00:00:00"},{"$f":"Time!FRJ$23","v":"00:00:00"},{"$f":"Time!FRK$23","v":"00:00:00"},{"$f":"Time!FRL$23","v":"00:00:00"},{"$f":"Time!FRM$23","v":"00:00:00"},{"$f":"Time!FRN$23","v":"00:00:00"},{"$f":"Time!FRO$23","v":"00:00:00"},{"$f":"Time!FRP$23","v":"00:00:00"},{"$f":"Time!FRQ$23","v":"00:00:00"},{"$f":"Time!FRR$23","v":"00:00:00"},{"$f":"Time!FRS$23","v":"00:00:00"},{"$f":"Time!FRT$23","v":"00:00:00"},{"$f":"Time!FRU$23","v":"00:00:00"},{"$f":"Time!FRV$23","v":"00:00:00"},{"$f":"Time!FRW$23","v":"00:00:00"},{"$f":"Time!FRX$23","v":"00:00:00"},{"$f":"Time!FRY$23","v":"00:00:00"},{"$f":"Time!FRZ$23","v":"00:00:00"},{"$f":"Time!FSA$23","v":"00:00:00"},{"$f":"Time!FSB$23","v":"00:00:00"},{"$f":"Time!FSC$23","v":"00:00:00"},{"$f":"Time!FSD$23","v":"00:00:00"},{"$f":"Time!FSE$23","v":"00:00:00"},{"$f":"Time!FSF$23","v":"00:00:00"},{"$f":"Time!FSG$23","v":"00:00:00"},{"$f":"Time!FSH$23","v":"00:00:00"},{"$f":"Time!FSI$23","v":"00:00:00"},{"$f":"Time!FSJ$23","v":"00:00:00"},{"$f":"Time!FSK$23","v":"00:00:00"},{"$f":"Time!FSL$23","v":"00:00:00"},{"$f":"Time!FSM$23","v":"00:00:00"},{"$f":"Time!FSN$23","v":"00:00:00"},{"$f":"Time!FSO$23","v":"00:00:00"},{"$f":"Time!FSP$23","v":"00:00:00"},{"$f":"Time!FSQ$23","v":"00:00:00"},{"$f":"Time!FSR$23","v":"00:00:00"},{"$f":"Time!FSS$23","v":"00:00:00"},{"$f":"Time!FST$23","v":"00:00:00"},{"$f":"Time!FSU$23","v":"00:00:00"},{"$f":"Time!FSV$23","v":"00:00:00"},{"$f":"Time!FSW$23","v":"00:00:00"},{"$f":"Time!FSX$23","v":"00:00:00"},{"$f":"Time!FSY$23","v":"00:00:00"},{"$f":"Time!FSZ$23","v":"00:00:00"},{"$f":"Time!FTA$23","v":"00:00:00"},{"$f":"Time!FTB$23","v":"00:00:00"},{"$f":"Time!FTC$23","v":"00:00:00"},{"$f":"Time!FTD$23","v":"00:00:00"},{"$f":"Time!FTE$23","v":"00:00:00"},{"$f":"Time!FTF$23","v":"00:00:00"},{"$f":"Time!FTG$23","v":"00:00:00"},{"$f":"Time!FTH$23","v":"00:00:00"},{"$f":"Time!FTI$23","v":"00:00:00"},{"$f":"Time!FTJ$23","v":"00:00:00"},{"$f":"Time!FTK$23","v":"00:00:00"},{"$f":"Time!FTL$23","v":"00:00:00"},{"$f":"Time!FTM$23","v":"00:00:00"},{"$f":"Time!FTN$23","v":"00:00:00"},{"$f":"Time!FTO$23","v":"00:00:00"},{"$f":"Time!FTP$23","v":"00:00:00"},{"$f":"Time!FTQ$23","v":"00:00:00"},{"$f":"Time!FTR$23","v":"00:00:00"},{"$f":"Time!FTS$23","v":"00:00:00"},{"$f":"Time!FTT$23","v":"00:00:00"},{"$f":"Time!FTU$23","v":"00:00:00"},{"$f":"Time!FTV$23","v":"00:00:00"},{"$f":"Time!FTW$23","v":"00:00:00"},{"$f":"Time!FTX$23","v":"00:00:00"},{"$f":"Time!FTY$23","v":"00:00:00"},{"$f":"Time!FTZ$23","v":"00:00:00"},{"$f":"Time!FUA$23","v":"00:00:00"},{"$f":"Time!FUB$23","v":"00:00:00"},{"$f":"Time!FUC$23","v":"00:00:00"},{"$f":"Time!FUD$23","v":"00:00:00"},{"$f":"Time!FUE$23","v":"00:00:00"},{"$f":"Time!FUF$23","v":"00:00:00"},{"$f":"Time!FUG$23","v":"00:00:00"},{"$f":"Time!FUH$23","v":"00:00:00"},{"$f":"Time!FUI$23","v":"00:00:00"},{"$f":"Time!FUJ$23","v":"00:00:00"},{"$f":"Time!FUK$23","v":"00:00:00"},{"$f":"Time!FUL$23","v":"00:00:00"},{"$f":"Time!FUM$23","v":"00:00:00"},{"$f":"Time!FUN$23","v":"00:00:00"},{"$f":"Time!FUO$23","v":"00:00:00"},{"$f":"Time!FUP$23","v":"00:00:00"},{"$f":"Time!FUQ$23","v":"00:00:00"},{"$f":"Time!FUR$23","v":"00:00:00"},{"$f":"Time!FUS$23","v":"00:00:00"},{"$f":"Time!FUT$23","v":"00:00:00"},{"$f":"Time!FUU$23","v":"00:00:00"},{"$f":"Time!FUV$23","v":"00:00:00"},{"$f":"Time!FUW$23","v":"00:00:00"},{"$f":"Time!FUX$23","v":"00:00:00"},{"$f":"Time!FUY$23","v":"00:00:00"},{"$f":"Time!FUZ$23","v":"00:00:00"},{"$f":"Time!FVA$23","v":"00:00:00"},{"$f":"Time!FVB$23","v":"00:00:00"},{"$f":"Time!FVC$23","v":"00:00:00"},{"$f":"Time!FVD$23","v":"00:00:00"},{"$f":"Time!FVE$23","v":"00:00:00"},{"$f":"Time!FVF$23","v":"00:00:00"},{"$f":"Time!FVG$23","v":"00:00:00"},{"$f":"Time!FVH$23","v":"00:00:00"},{"$f":"Time!FVI$23","v":"00:00:00"},{"$f":"Time!FVJ$23","v":"00:00:00"},{"$f":"Time!FVK$23","v":"00:00:00"},{"$f":"Time!FVL$23","v":"00:00:00"},{"$f":"Time!FVM$23","v":"00:00:00"},{"$f":"Time!FVN$23","v":"00:00:00"},{"$f":"Time!FVO$23","v":"00:00:00"},{"$f":"Time!FVP$23","v":"00:00:00"},{"$f":"Time!FVQ$23","v":"00:00:00"},{"$f":"Time!FVR$23","v":"00:00:00"},{"$f":"Time!FVS$23","v":"00:00:00"},{"$f":"Time!FVT$23","v":"00:00:00"},{"$f":"Time!FVU$23","v":"00:00:00"},{"$f":"Time!FVV$23","v":"00:00:00"},{"$f":"Time!FVW$23","v":"00:00:00"},{"$f":"Time!FVX$23","v":"00:00:00"},{"$f":"Time!FVY$23","v":"00:00:00"},{"$f":"Time!FVZ$23","v":"00:00:00"},{"$f":"Time!FWA$23","v":"00:00:00"},{"$f":"Time!FWB$23","v":"00:00:00"},{"$f":"Time!FWC$23","v":"00:00:00"},{"$f":"Time!FWD$23","v":"00:00:00"},{"$f":"Time!FWE$23","v":"00:00:00"},{"$f":"Time!FWF$23","v":"00:00:00"},{"$f":"Time!FWG$23","v":"00:00:00"},{"$f":"Time!FWH$23","v":"00:00:00"},{"$f":"Time!FWI$23","v":"00:00:00"},{"$f":"Time!FWJ$23","v":"00:00:00"},{"$f":"Time!FWK$23","v":"00:00:00"},{"$f":"Time!FWL$23","v":"00:00:00"},{"$f":"Time!FWM$23","v":"00:00:00"},{"$f":"Time!FWN$23","v":"00:00:00"},{"$f":"Time!FWO$23","v":"00:00:00"},{"$f":"Time!FWP$23","v":"00:00:00"},{"$f":"Time!FWQ$23","v":"00:00:00"},{"$f":"Time!FWR$23","v":"00:00:00"},{"$f":"Time!FWS$23","v":"00:00:00"},{"$f":"Time!FWT$23","v":"00:00:00"},{"$f":"Time!FWU$23","v":"00:00:00"},{"$f":"Time!FWV$23","v":"00:00:00"},{"$f":"Time!FWW$23","v":"00:00:00"},{"$f":"Time!FWX$23","v":"00:00:00"},{"$f":"Time!FWY$23","v":"00:00:00"},{"$f":"Time!FWZ$23","v":"00:00:00"},{"$f":"Time!FXA$23","v":"00:00:00"},{"$f":"Time!FXB$23","v":"00:00:00"},{"$f":"Time!FXC$23","v":"00:00:00"},{"$f":"Time!FXD$23","v":"00:00:00"},{"$f":"Time!FXE$23","v":"00:00:00"},{"$f":"Time!FXF$23","v":"00:00:00"},{"$f":"Time!FXG$23","v":"00:00:00"},{"$f":"Time!FXH$23","v":"00:00:00"},{"$f":"Time!FXI$23","v":"00:00:00"},{"$f":"Time!FXJ$23","v":"00:00:00"},{"$f":"Time!FXK$23","v":"00:00:00"},{"$f":"Time!FXL$23","v":"00:00:00"},{"$f":"Time!FXM$23","v":"00:00:00"},{"$f":"Time!FXN$23","v":"00:00:00"},{"$f":"Time!FXO$23","v":"00:00:00"},{"$f":"Time!FXP$23","v":"00:00:00"},{"$f":"Time!FXQ$23","v":"00:00:00"},{"$f":"Time!FXR$23","v":"00:00:00"},{"$f":"Time!FXS$23","v":"00:00:00"},{"$f":"Time!FXT$23","v":"00:00:00"},{"$f":"Time!FXU$23","v":"00:00:00"},{"$f":"Time!FXV$23","v":"00:00:00"},{"$f":"Time!FXW$23","v":"00:00:00"},{"$f":"Time!FXX$23","v":"00:00:00"},{"$f":"Time!FXY$23","v":"00:00:00"},{"$f":"Time!FXZ$23","v":"00:00:00"},{"$f":"Time!FYA$23","v":"00:00:00"},{"$f":"Time!FYB$23","v":"00:00:00"},{"$f":"Time!FYC$23","v":"00:00:00"},{"$f":"Time!FYD$23","v":"00:00:00"},{"$f":"Time!FYE$23","v":"00:00:00"},{"$f":"Time!FYF$23","v":"00:00:00"},{"$f":"Time!FYG$23","v":"00:00:00"},{"$f":"Time!FYH$23","v":"00:00:00"},{"$f":"Time!FYI$23","v":"00:00:00"},{"$f":"Time!FYJ$23","v":"00:00:00"},{"$f":"Time!FYK$23","v":"00:00:00"},{"$f":"Time!FYL$23","v":"00:00:00"},{"$f":"Time!FYM$23","v":"00:00:00"},{"$f":"Time!FYN$23","v":"00:00:00"},{"$f":"Time!FYO$23","v":"00:00:00"},{"$f":"Time!FYP$23","v":"00:00:00"},{"$f":"Time!FYQ$23","v":"00:00:00"},{"$f":"Time!FYR$23","v":"00:00:00"},{"$f":"Time!FYS$23","v":"00:00:00"},{"$f":"Time!FYT$23","v":"00:00:00"},{"$f":"Time!FYU$23","v":"00:00:00"},{"$f":"Time!FYV$23","v":"00:00:00"},{"$f":"Time!FYW$23","v":"00:00:00"},{"$f":"Time!FYX$23","v":"00:00:00"},{"$f":"Time!FYY$23","v":"00:00:00"},{"$f":"Time!FYZ$23","v":"00:00:00"},{"$f":"Time!FZA$23","v":"00:00:00"},{"$f":"Time!FZB$23","v":"00:00:00"},{"$f":"Time!FZC$23","v":"00:00:00"},{"$f":"Time!FZD$23","v":"00:00:00"},{"$f":"Time!FZE$23","v":"00:00:00"},{"$f":"Time!FZF$23","v":"00:00:00"},{"$f":"Time!FZG$23","v":"00:00:00"},{"$f":"Time!FZH$23","v":"00:00:00"},{"$f":"Time!FZI$23","v":"00:00:00"},{"$f":"Time!FZJ$23","v":"00:00:00"},{"$f":"Time!FZK$23","v":"00:00:00"},{"$f":"Time!FZL$23","v":"00:00:00"},{"$f":"Time!FZM$23","v":"00:00:00"},{"$f":"Time!FZN$23","v":"00:00:00"},{"$f":"Time!FZO$23","v":"00:00:00"},{"$f":"Time!FZP$23","v":"00:00:00"},{"$f":"Time!FZQ$23","v":"00:00:00"},{"$f":"Time!FZR$23","v":"00:00:00"},{"$f":"Time!FZS$23","v":"00:00:00"},{"$f":"Time!FZT$23","v":"00:00:00"},{"$f":"Time!FZU$23","v":"00:00:00"},{"$f":"Time!FZV$23","v":"00:00:00"},{"$f":"Time!FZW$23","v":"00:00:00"},{"$f":"Time!FZX$23","v":"00:00:00"},{"$f":"Time!FZY$23","v":"00:00:00"},{"$f":"Time!FZZ$23","v":"00:00:00"},{"$f":"Time!GAA$23","v":"00:00:00"},{"$f":"Time!GAB$23","v":"00:00:00"},{"$f":"Time!GAC$23","v":"00:00:00"},{"$f":"Time!GAD$23","v":"00:00:00"},{"$f":"Time!GAE$23","v":"00:00:00"},{"$f":"Time!GAF$23","v":"00:00:00"},{"$f":"Time!GAG$23","v":"00:00:00"},{"$f":"Time!GAH$23","v":"00:00:00"},{"$f":"Time!GAI$23","v":"00:00:00"},{"$f":"Time!GAJ$23","v":"00:00:00"},{"$f":"Time!GAK$23","v":"00:00:00"},{"$f":"Time!GAL$23","v":"00:00:00"},{"$f":"Time!GAM$23","v":"00:00:00"},{"$f":"Time!GAN$23","v":"00:00:00"},{"$f":"Time!GAO$23","v":"00:00:00"},{"$f":"Time!GAP$23","v":"00:00:00"},{"$f":"Time!GAQ$23","v":"00:00:00"},{"$f":"Time!GAR$23","v":"00:00:00"},{"$f":"Time!GAS$23","v":"00:00:00"},{"$f":"Time!GAT$23","v":"00:00:00"},{"$f":"Time!GAU$23","v":"00:00:00"},{"$f":"Time!GAV$23","v":"00:00:00"},{"$f":"Time!GAW$23","v":"00:00:00"},{"$f":"Time!GAX$23","v":"00:00:00"},{"$f":"Time!GAY$23","v":"00:00:00"},{"$f":"Time!GAZ$23","v":"00:00:00"},{"$f":"Time!GBA$23","v":"00:00:00"},{"$f":"Time!GBB$23","v":"00:00:00"},{"$f":"Time!GBC$23","v":"00:00:00"},{"$f":"Time!GBD$23","v":"00:00:00"},{"$f":"Time!GBE$23","v":"00:00:00"},{"$f":"Time!GBF$23","v":"00:00:00"},{"$f":"Time!GBG$23","v":"00:00:00"},{"$f":"Time!GBH$23","v":"00:00:00"},{"$f":"Time!GBI$23","v":"00:00:00"},{"$f":"Time!GBJ$23","v":"00:00:00"},{"$f":"Time!GBK$23","v":"00:00:00"},{"$f":"Time!GBL$23","v":"00:00:00"},{"$f":"Time!GBM$23","v":"00:00:00"},{"$f":"Time!GBN$23","v":"00:00:00"},{"$f":"Time!GBO$23","v":"00:00:00"},{"$f":"Time!GBP$23","v":"00:00:00"},{"$f":"Time!GBQ$23","v":"00:00:00"},{"$f":"Time!GBR$23","v":"00:00:00"},{"$f":"Time!GBS$23","v":"00:00:00"},{"$f":"Time!GBT$23","v":"00:00:00"},{"$f":"Time!GBU$23","v":"00:00:00"},{"$f":"Time!GBV$23","v":"00:00:00"},{"$f":"Time!GBW$23","v":"00:00:00"},{"$f":"Time!GBX$23","v":"00:00:00"},{"$f":"Time!GBY$23","v":"00:00:00"},{"$f":"Time!GBZ$23","v":"00:00:00"},{"$f":"Time!GCA$23","v":"00:00:00"},{"$f":"Time!GCB$23","v":"00:00:00"},{"$f":"Time!GCC$23","v":"00:00:00"},{"$f":"Time!GCD$23","v":"00:00:00"},{"$f":"Time!GCE$23","v":"00:00:00"},{"$f":"Time!GCF$23","v":"00:00:00"},{"$f":"Time!GCG$23","v":"00:00:00"},{"$f":"Time!GCH$23","v":"00:00:00"},{"$f":"Time!GCI$23","v":"00:00:00"},{"$f":"Time!GCJ$23","v":"00:00:00"},{"$f":"Time!GCK$23","v":"00:00:00"},{"$f":"Time!GCL$23","v":"00:00:00"},{"$f":"Time!GCM$23","v":"00:00:00"},{"$f":"Time!GCN$23","v":"00:00:00"},{"$f":"Time!GCO$23","v":"00:00:00"},{"$f":"Time!GCP$23","v":"00:00:00"},{"$f":"Time!GCQ$23","v":"00:00:00"},{"$f":"Time!GCR$23","v":"00:00:00"},{"$f":"Time!GCS$23","v":"00:00:00"},{"$f":"Time!GCT$23","v":"00:00:00"},{"$f":"Time!GCU$23","v":"00:00:00"},{"$f":"Time!GCV$23","v":"00:00:00"},{"$f":"Time!GCW$23","v":"00:00:00"},{"$f":"Time!GCX$23","v":"00:00:00"},{"$f":"Time!GCY$23","v":"00:00:00"},{"$f":"Time!GCZ$23","v":"00:00:00"},{"$f":"Time!GDA$23","v":"00:00:00"},{"$f":"Time!GDB$23","v":"00:00:00"},{"$f":"Time!GDC$23","v":"00:00:00"},{"$f":"Time!GDD$23","v":"00:00:00"},{"$f":"Time!GDE$23","v":"00:00:00"},{"$f":"Time!GDF$23","v":"00:00:00"},{"$f":"Time!GDG$23","v":"00:00:00"},{"$f":"Time!GDH$23","v":"00:00:00"},{"$f":"Time!GDI$23","v":"00:00:00"},{"$f":"Time!GDJ$23","v":"00:00:00"},{"$f":"Time!GDK$23","v":"00:00:00"},{"$f":"Time!GDL$23","v":"00:00:00"},{"$f":"Time!GDM$23","v":"00:00:00"},{"$f":"Time!GDN$23","v":"00:00:00"},{"$f":"Time!GDO$23","v":"00:00:00"},{"$f":"Time!GDP$23","v":"00:00:00"},{"$f":"Time!GDQ$23","v":"00:00:00"},{"$f":"Time!GDR$23","v":"00:00:00"},{"$f":"Time!GDS$23","v":"00:00:00"},{"$f":"Time!GDT$23","v":"00:00:00"},{"$f":"Time!GDU$23","v":"00:00:00"},{"$f":"Time!GDV$23","v":"00:00:00"},{"$f":"Time!GDW$23","v":"00:00:00"},{"$f":"Time!GDX$23","v":"00:00:00"},{"$f":"Time!GDY$23","v":"00:00:00"},{"$f":"Time!GDZ$23","v":"00:00:00"},{"$f":"Time!GEA$23","v":"00:00:00"},{"$f":"Time!GEB$23","v":"00:00:00"},{"$f":"Time!GEC$23","v":"00:00:00"},{"$f":"Time!GED$23","v":"00:00:00"},{"$f":"Time!GEE$23","v":"00:00:00"},{"$f":"Time!GEF$23","v":"00:00:00"},{"$f":"Time!GEG$23","v":"00:00:00"},{"$f":"Time!GEH$23","v":"00:00:00"},{"$f":"Time!GEI$23","v":"00:00:00"},{"$f":"Time!GEJ$23","v":"00:00:00"},{"$f":"Time!GEK$23","v":"00:00:00"},{"$f":"Time!GEL$23","v":"00:00:00"},{"$f":"Time!GEM$23","v":"00:00:00"},{"$f":"Time!GEN$23","v":"00:00:00"},{"$f":"Time!GEO$23","v":"00:00:00"},{"$f":"Time!GEP$23","v":"00:00:00"},{"$f":"Time!GEQ$23","v":"00:00:00"},{"$f":"Time!GER$23","v":"00:00:00"},{"$f":"Time!GES$23","v":"00:00:00"},{"$f":"Time!GET$23","v":"00:00:00"},{"$f":"Time!GEU$23","v":"00:00:00"},{"$f":"Time!GEV$23","v":"00:00:00"},{"$f":"Time!GEW$23","v":"00:00:00"},{"$f":"Time!GEX$23","v":"00:00:00"},{"$f":"Time!GEY$23","v":"00:00:00"},{"$f":"Time!GEZ$23","v":"00:00:00"},{"$f":"Time!GFA$23","v":"00:00:00"},{"$f":"Time!GFB$23","v":"00:00:00"},{"$f":"Time!GFC$23","v":"00:00:00"},{"$f":"Time!GFD$23","v":"00:00:00"},{"$f":"Time!GFE$23","v":"00:00:00"},{"$f":"Time!GFF$23","v":"00:00:00"},{"$f":"Time!GFG$23","v":"00:00:00"},{"$f":"Time!GFH$23","v":"00:00:00"},{"$f":"Time!GFI$23","v":"00:00:00"},{"$f":"Time!GFJ$23","v":"00:00:00"},{"$f":"Time!GFK$23","v":"00:00:00"},{"$f":"Time!GFL$23","v":"00:00:00"},{"$f":"Time!GFM$23","v":"00:00:00"},{"$f":"Time!GFN$23","v":"00:00:00"},{"$f":"Time!GFO$23","v":"00:00:00"},{"$f":"Time!GFP$23","v":"00:00:00"},{"$f":"Time!GFQ$23","v":"00:00:00"},{"$f":"Time!GFR$23","v":"00:00:00"},{"$f":"Time!GFS$23","v":"00:00:00"},{"$f":"Time!GFT$23","v":"00:00:00"},{"$f":"Time!GFU$23","v":"00:00:00"},{"$f":"Time!GFV$23","v":"00:00:00"},{"$f":"Time!GFW$23","v":"00:00:00"},{"$f":"Time!GFX$23","v":"00:00:00"},{"$f":"Time!GFY$23","v":"00:00:00"},{"$f":"Time!GFZ$23","v":"00:00:00"},{"$f":"Time!GGA$23","v":"00:00:00"},{"$f":"Time!GGB$23","v":"00:00:00"},{"$f":"Time!GGC$23","v":"00:00:00"},{"$f":"Time!GGD$23","v":"00:00:00"},{"$f":"Time!GGE$23","v":"00:00:00"},{"$f":"Time!GGF$23","v":"00:00:00"},{"$f":"Time!GGG$23","v":"00:00:00"},{"$f":"Time!GGH$23","v":"00:00:00"},{"$f":"Time!GGI$23","v":"00:00:00"},{"$f":"Time!GGJ$23","v":"00:00:00"},{"$f":"Time!GGK$23","v":"00:00:00"},{"$f":"Time!GGL$23","v":"00:00:00"},{"$f":"Time!GGM$23","v":"00:00:00"},{"$f":"Time!GGN$23","v":"00:00:00"},{"$f":"Time!GGO$23","v":"00:00:00"},{"$f":"Time!GGP$23","v":"00:00:00"},{"$f":"Time!GGQ$23","v":"00:00:00"},{"$f":"Time!GGR$23","v":"00:00:00"},{"$f":"Time!GGS$23","v":"00:00:00"},{"$f":"Time!GGT$23","v":"00:00:00"},{"$f":"Time!GGU$23","v":"00:00:00"},{"$f":"Time!GGV$23","v":"00:00:00"},{"$f":"Time!GGW$23","v":"00:00:00"},{"$f":"Time!GGX$23","v":"00:00:00"},{"$f":"Time!GGY$23","v":"00:00:00"},{"$f":"Time!GGZ$23","v":"00:00:00"},{"$f":"Time!GHA$23","v":"00:00:00"},{"$f":"Time!GHB$23","v":"00:00:00"},{"$f":"Time!GHC$23","v":"00:00:00"},{"$f":"Time!GHD$23","v":"00:00:00"},{"$f":"Time!GHE$23","v":"00:00:00"},{"$f":"Time!GHF$23","v":"00:00:00"},{"$f":"Time!GHG$23","v":"00:00:00"},{"$f":"Time!GHH$23","v":"00:00:00"},{"$f":"Time!GHI$23","v":"00:00:00"},{"$f":"Time!GHJ$23","v":"00:00:00"},{"$f":"Time!GHK$23","v":"00:00:00"},{"$f":"Time!GHL$23","v":"00:00:00"},{"$f":"Time!GHM$23","v":"00:00:00"},{"$f":"Time!GHN$23","v":"00:00:00"},{"$f":"Time!GHO$23","v":"00:00:00"},{"$f":"Time!GHP$23","v":"00:00:00"},{"$f":"Time!GHQ$23","v":"00:00:00"},{"$f":"Time!GHR$23","v":"00:00:00"},{"$f":"Time!GHS$23","v":"00:00:00"},{"$f":"Time!GHT$23","v":"00:00:00"},{"$f":"Time!GHU$23","v":"00:00:00"},{"$f":"Time!GHV$23","v":"00:00:00"},{"$f":"Time!GHW$23","v":"00:00:00"},{"$f":"Time!GHX$23","v":"00:00:00"},{"$f":"Time!GHY$23","v":"00:00:00"},{"$f":"Time!GHZ$23","v":"00:00:00"},{"$f":"Time!GIA$23","v":"00:00:00"},{"$f":"Time!GIB$23","v":"00:00:00"},{"$f":"Time!GIC$23","v":"00:00:00"},{"$f":"Time!GID$23","v":"00:00:00"},{"$f":"Time!GIE$23","v":"00:00:00"},{"$f":"Time!GIF$23","v":"00:00:00"},{"$f":"Time!GIG$23","v":"00:00:00"},{"$f":"Time!GIH$23","v":"00:00:00"},{"$f":"Time!GII$23","v":"00:00:00"},{"$f":"Time!GIJ$23","v":"00:00:00"},{"$f":"Time!GIK$23","v":"00:00:00"},{"$f":"Time!GIL$23","v":"00:00:00"},{"$f":"Time!GIM$23","v":"00:00:00"},{"$f":"Time!GIN$23","v":"00:00:00"},{"$f":"Time!GIO$23","v":"00:00:00"},{"$f":"Time!GIP$23","v":"00:00:00"},{"$f":"Time!GIQ$23","v":"00:00:00"},{"$f":"Time!GIR$23","v":"00:00:00"},{"$f":"Time!GIS$23","v":"00:00:00"},{"$f":"Time!GIT$23","v":"00:00:00"},{"$f":"Time!GIU$23","v":"00:00:00"},{"$f":"Time!GIV$23","v":"00:00:00"},{"$f":"Time!GIW$23","v":"00:00:00"},{"$f":"Time!GIX$23","v":"00:00:00"},{"$f":"Time!GIY$23","v":"00:00:00"},{"$f":"Time!GIZ$23","v":"00:00:00"},{"$f":"Time!GJA$23","v":"00:00:00"},{"$f":"Time!GJB$23","v":"00:00:00"},{"$f":"Time!GJC$23","v":"00:00:00"},{"$f":"Time!GJD$23","v":"00:00:00"},{"$f":"Time!GJE$23","v":"00:00:00"},{"$f":"Time!GJF$23","v":"00:00:00"},{"$f":"Time!GJG$23","v":"00:00:00"},{"$f":"Time!GJH$23","v":"00:00:00"},{"$f":"Time!GJI$23","v":"00:00:00"},{"$f":"Time!GJJ$23","v":"00:00:00"},{"$f":"Time!GJK$23","v":"00:00:00"},{"$f":"Time!GJL$23","v":"00:00:00"},{"$f":"Time!GJM$23","v":"00:00:00"},{"$f":"Time!GJN$23","v":"00:00:00"},{"$f":"Time!GJO$23","v":"00:00:00"},{"$f":"Time!GJP$23","v":"00:00:00"},{"$f":"Time!GJQ$23","v":"00:00:00"},{"$f":"Time!GJR$23","v":"00:00:00"},{"$f":"Time!GJS$23","v":"00:00:00"},{"$f":"Time!GJT$23","v":"00:00:00"},{"$f":"Time!GJU$23","v":"00:00:00"},{"$f":"Time!GJV$23","v":"00:00:00"},{"$f":"Time!GJW$23","v":"00:00:00"},{"$f":"Time!GJX$23","v":"00:00:00"},{"$f":"Time!GJY$23","v":"00:00:00"},{"$f":"Time!GJZ$23","v":"00:00:00"},{"$f":"Time!GKA$23","v":"00:00:00"},{"$f":"Time!GKB$23","v":"00:00:00"},{"$f":"Time!GKC$23","v":"00:00:00"},{"$f":"Time!GKD$23","v":"00:00:00"},{"$f":"Time!GKE$23","v":"00:00:00"},{"$f":"Time!GKF$23","v":"00:00:00"},{"$f":"Time!GKG$23","v":"00:00:00"},{"$f":"Time!GKH$23","v":"00:00:00"},{"$f":"Time!GKI$23","v":"00:00:00"},{"$f":"Time!GKJ$23","v":"00:00:00"},{"$f":"Time!GKK$23","v":"00:00:00"},{"$f":"Time!GKL$23","v":"00:00:00"},{"$f":"Time!GKM$23","v":"00:00:00"},{"$f":"Time!GKN$23","v":"00:00:00"},{"$f":"Time!GKO$23","v":"00:00:00"},{"$f":"Time!GKP$23","v":"00:00:00"},{"$f":"Time!GKQ$23","v":"00:00:00"},{"$f":"Time!GKR$23","v":"00:00:00"},{"$f":"Time!GKS$23","v":"00:00:00"},{"$f":"Time!GKT$23","v":"00:00:00"},{"$f":"Time!GKU$23","v":"00:00:00"},{"$f":"Time!GKV$23","v":"00:00:00"},{"$f":"Time!GKW$23","v":"00:00:00"},{"$f":"Time!GKX$23","v":"00:00:00"},{"$f":"Time!GKY$23","v":"00:00:00"},{"$f":"Time!GKZ$23","v":"00:00:00"},{"$f":"Time!GLA$23","v":"00:00:00"},{"$f":"Time!GLB$23","v":"00:00:00"},{"$f":"Time!GLC$23","v":"00:00:00"},{"$f":"Time!GLD$23","v":"00:00:00"},{"$f":"Time!GLE$23","v":"00:00:00"},{"$f":"Time!GLF$23","v":"00:00:00"},{"$f":"Time!GLG$23","v":"00:00:00"},{"$f":"Time!GLH$23","v":"00:00:00"},{"$f":"Time!GLI$23","v":"00:00:00"},{"$f":"Time!GLJ$23","v":"00:00:00"},{"$f":"Time!GLK$23","v":"00:00:00"},{"$f":"Time!GLL$23","v":"00:00:00"},{"$f":"Time!GLM$23","v":"00:00:00"},{"$f":"Time!GLN$23","v":"00:00:00"},{"$f":"Time!GLO$23","v":"00:00:00"},{"$f":"Time!GLP$23","v":"00:00:00"},{"$f":"Time!GLQ$23","v":"00:00:00"},{"$f":"Time!GLR$23","v":"00:00:00"},{"$f":"Time!GLS$23","v":"00:00:00"},{"$f":"Time!GLT$23","v":"00:00:00"},{"$f":"Time!GLU$23","v":"00:00:00"},{"$f":"Time!GLV$23","v":"00:00:00"},{"$f":"Time!GLW$23","v":"00:00:00"},{"$f":"Time!GLX$23","v":"00:00:00"},{"$f":"Time!GLY$23","v":"00:00:00"},{"$f":"Time!GLZ$23","v":"00:00:00"},{"$f":"Time!GMA$23","v":"00:00:00"},{"$f":"Time!GMB$23","v":"00:00:00"},{"$f":"Time!GMC$23","v":"00:00:00"},{"$f":"Time!GMD$23","v":"00:00:00"},{"$f":"Time!GME$23","v":"00:00:00"},{"$f":"Time!GMF$23","v":"00:00:00"},{"$f":"Time!GMG$23","v":"00:00:00"},{"$f":"Time!GMH$23","v":"00:00:00"},{"$f":"Time!GMI$23","v":"00:00:00"},{"$f":"Time!GMJ$23","v":"00:00:00"},{"$f":"Time!GMK$23","v":"00:00:00"},{"$f":"Time!GML$23","v":"00:00:00"},{"$f":"Time!GMM$23","v":"00:00:00"},{"$f":"Time!GMN$23","v":"00:00:00"},{"$f":"Time!GMO$23","v":"00:00:00"},{"$f":"Time!GMP$23","v":"00:00:00"},{"$f":"Time!GMQ$23","v":"00:00:00"},{"$f":"Time!GMR$23","v":"00:00:00"},{"$f":"Time!GMS$23","v":"00:00:00"},{"$f":"Time!GMT$23","v":"00:00:00"},{"$f":"Time!GMU$23","v":"00:00:00"},{"$f":"Time!GMV$23","v":"00:00:00"},{"$f":"Time!GMW$23","v":"00:00:00"},{"$f":"Time!GMX$23","v":"00:00:00"},{"$f":"Time!GMY$23","v":"00:00:00"},{"$f":"Time!GMZ$23","v":"00:00:00"},{"$f":"Time!GNA$23","v":"00:00:00"},{"$f":"Time!GNB$23","v":"00:00:00"},{"$f":"Time!GNC$23","v":"00:00:00"},{"$f":"Time!GND$23","v":"00:00:00"},{"$f":"Time!GNE$23","v":"00:00:00"},{"$f":"Time!GNF$23","v":"00:00:00"},{"$f":"Time!GNG$23","v":"00:00:00"},{"$f":"Time!GNH$23","v":"00:00:00"},{"$f":"Time!GNI$23","v":"00:00:00"},{"$f":"Time!GNJ$23","v":"00:00:00"},{"$f":"Time!GNK$23","v":"00:00:00"},{"$f":"Time!GNL$23","v":"00:00:00"},{"$f":"Time!GNM$23","v":"00:00:00"},{"$f":"Time!GNN$23","v":"00:00:00"},{"$f":"Time!GNO$23","v":"00:00:00"},{"$f":"Time!GNP$23","v":"00:00:00"},{"$f":"Time!GNQ$23","v":"00:00:00"},{"$f":"Time!GNR$23","v":"00:00:00"},{"$f":"Time!GNS$23","v":"00:00:00"},{"$f":"Time!GNT$23","v":"00:00:00"},{"$f":"Time!GNU$23","v":"00:00:00"},{"$f":"Time!GNV$23","v":"00:00:00"},{"$f":"Time!GNW$23","v":"00:00:00"},{"$f":"Time!GNX$23","v":"00:00:00"},{"$f":"Time!GNY$23","v":"00:00:00"},{"$f":"Time!GNZ$23","v":"00:00:00"},{"$f":"Time!GOA$23","v":"00:00:00"},{"$f":"Time!GOB$23","v":"00:00:00"},{"$f":"Time!GOC$23","v":"00:00:00"},{"$f":"Time!GOD$23","v":"00:00:00"},{"$f":"Time!GOE$23","v":"00:00:00"},{"$f":"Time!GOF$23","v":"00:00:00"},{"$f":"Time!GOG$23","v":"00:00:00"},{"$f":"Time!GOH$23","v":"00:00:00"},{"$f":"Time!GOI$23","v":"00:00:00"},{"$f":"Time!GOJ$23","v":"00:00:00"},{"$f":"Time!GOK$23","v":"00:00:00"},{"$f":"Time!GOL$23","v":"00:00:00"},{"$f":"Time!GOM$23","v":"00:00:00"},{"$f":"Time!GON$23","v":"00:00:00"},{"$f":"Time!GOO$23","v":"00:00:00"},{"$f":"Time!GOP$23","v":"00:00:00"},{"$f":"Time!GOQ$23","v":"00:00:00"},{"$f":"Time!GOR$23","v":"00:00:00"},{"$f":"Time!GOS$23","v":"00:00:00"},{"$f":"Time!GOT$23","v":"00:00:00"},{"$f":"Time!GOU$23","v":"00:00:00"},{"$f":"Time!GOV$23","v":"00:00:00"},{"$f":"Time!GOW$23","v":"00:00:00"},{"$f":"Time!GOX$23","v":"00:00:00"},{"$f":"Time!GOY$23","v":"00:00:00"},{"$f":"Time!GOZ$23","v":"00:00:00"},{"$f":"Time!GPA$23","v":"00:00:00"},{"$f":"Time!GPB$23","v":"00:00:00"},{"$f":"Time!GPC$23","v":"00:00:00"},{"$f":"Time!GPD$23","v":"00:00:00"},{"$f":"Time!GPE$23","v":"00:00:00"},{"$f":"Time!GPF$23","v":"00:00:00"},{"$f":"Time!GPG$23","v":"00:00:00"},{"$f":"Time!GPH$23","v":"00:00:00"},{"$f":"Time!GPI$23","v":"00:00:00"},{"$f":"Time!GPJ$23","v":"00:00:00"},{"$f":"Time!GPK$23","v":"00:00:00"},{"$f":"Time!GPL$23","v":"00:00:00"},{"$f":"Time!GPM$23","v":"00:00:00"},{"$f":"Time!GPN$23","v":"00:00:00"},{"$f":"Time!GPO$23","v":"00:00:00"},{"$f":"Time!GPP$23","v":"00:00:00"},{"$f":"Time!GPQ$23","v":"00:00:00"},{"$f":"Time!GPR$23","v":"00:00:00"},{"$f":"Time!GPS$23","v":"00:00:00"},{"$f":"Time!GPT$23","v":"00:00:00"},{"$f":"Time!GPU$23","v":"00:00:00"},{"$f":"Time!GPV$23","v":"00:00:00"},{"$f":"Time!GPW$23","v":"00:00:00"},{"$f":"Time!GPX$23","v":"00:00:00"},{"$f":"Time!GPY$23","v":"00:00:00"},{"$f":"Time!GPZ$23","v":"00:00:00"},{"$f":"Time!GQA$23","v":"00:00:00"},{"$f":"Time!GQB$23","v":"00:00:00"},{"$f":"Time!GQC$23","v":"00:00:00"},{"$f":"Time!GQD$23","v":"00:00:00"},{"$f":"Time!GQE$23","v":"00:00:00"},{"$f":"Time!GQF$23","v":"00:00:00"},{"$f":"Time!GQG$23","v":"00:00:00"},{"$f":"Time!GQH$23","v":"00:00:00"},{"$f":"Time!GQI$23","v":"00:00:00"},{"$f":"Time!GQJ$23","v":"00:00:00"},{"$f":"Time!GQK$23","v":"00:00:00"},{"$f":"Time!GQL$23","v":"00:00:00"},{"$f":"Time!GQM$23","v":"00:00:00"},{"$f":"Time!GQN$23","v":"00:00:00"},{"$f":"Time!GQO$23","v":"00:00:00"},{"$f":"Time!GQP$23","v":"00:00:00"},{"$f":"Time!GQQ$23","v":"00:00:00"},{"$f":"Time!GQR$23","v":"00:00:00"},{"$f":"Time!GQS$23","v":"00:00:00"},{"$f":"Time!GQT$23","v":"00:00:00"},{"$f":"Time!GQU$23","v":"00:00:00"},{"$f":"Time!GQV$23","v":"00:00:00"},{"$f":"Time!GQW$23","v":"00:00:00"},{"$f":"Time!GQX$23","v":"00:00:00"},{"$f":"Time!GQY$23","v":"00:00:00"},{"$f":"Time!GQZ$23","v":"00:00:00"},{"$f":"Time!GRA$23","v":"00:00:00"},{"$f":"Time!GRB$23","v":"00:00:00"},{"$f":"Time!GRC$23","v":"00:00:00"},{"$f":"Time!GRD$23","v":"00:00:00"},{"$f":"Time!GRE$23","v":"00:00:00"},{"$f":"Time!GRF$23","v":"00:00:00"},{"$f":"Time!GRG$23","v":"00:00:00"},{"$f":"Time!GRH$23","v":"00:00:00"},{"$f":"Time!GRI$23","v":"00:00:00"},{"$f":"Time!GRJ$23","v":"00:00:00"},{"$f":"Time!GRK$23","v":"00:00:00"},{"$f":"Time!GRL$23","v":"00:00:00"},{"$f":"Time!GRM$23","v":"00:00:00"},{"$f":"Time!GRN$23","v":"00:00:00"},{"$f":"Time!GRO$23","v":"00:00:00"},{"$f":"Time!GRP$23","v":"00:00:00"},{"$f":"Time!GRQ$23","v":"00:00:00"},{"$f":"Time!GRR$23","v":"00:00:00"},{"$f":"Time!GRS$23","v":"00:00:00"},{"$f":"Time!GRT$23","v":"00:00:00"},{"$f":"Time!GRU$23","v":"00:00:00"},{"$f":"Time!GRV$23","v":"00:00:00"},{"$f":"Time!GRW$23","v":"00:00:00"},{"$f":"Time!GRX$23","v":"00:00:00"},{"$f":"Time!GRY$23","v":"00:00:00"},{"$f":"Time!GRZ$23","v":"00:00:00"},{"$f":"Time!GSA$23","v":"00:00:00"},{"$f":"Time!GSB$23","v":"00:00:00"},{"$f":"Time!GSC$23","v":"00:00:00"},{"$f":"Time!GSD$23","v":"00:00:00"},{"$f":"Time!GSE$23","v":"00:00:00"},{"$f":"Time!GSF$23","v":"00:00:00"},{"$f":"Time!GSG$23","v":"00:00:00"},{"$f":"Time!GSH$23","v":"00:00:00"},{"$f":"Time!GSI$23","v":"00:00:00"},{"$f":"Time!GSJ$23","v":"00:00:00"},{"$f":"Time!GSK$23","v":"00:00:00"},{"$f":"Time!GSL$23","v":"00:00:00"},{"$f":"Time!GSM$23","v":"00:00:00"},{"$f":"Time!GSN$23","v":"00:00:00"},{"$f":"Time!GSO$23","v":"00:00:00"},{"$f":"Time!GSP$23","v":"00:00:00"},{"$f":"Time!GSQ$23","v":"00:00:00"},{"$f":"Time!GSR$23","v":"00:00:00"},{"$f":"Time!GSS$23","v":"00:00:00"},{"$f":"Time!GST$23","v":"00:00:00"},{"$f":"Time!GSU$23","v":"00:00:00"},{"$f":"Time!GSV$23","v":"00:00:00"},{"$f":"Time!GSW$23","v":"00:00:00"},{"$f":"Time!GSX$23","v":"00:00:00"},{"$f":"Time!GSY$23","v":"00:00:00"},{"$f":"Time!GSZ$23","v":"00:00:00"},{"$f":"Time!GTA$23","v":"00:00:00"},{"$f":"Time!GTB$23","v":"00:00:00"},{"$f":"Time!GTC$23","v":"00:00:00"},{"$f":"Time!GTD$23","v":"00:00:00"},{"$f":"Time!GTE$23","v":"00:00:00"},{"$f":"Time!GTF$23","v":"00:00:00"},{"$f":"Time!GTG$23","v":"00:00:00"},{"$f":"Time!GTH$23","v":"00:00:00"},{"$f":"Time!GTI$23","v":"00:00:00"},{"$f":"Time!GTJ$23","v":"00:00:00"},{"$f":"Time!GTK$23","v":"00:00:00"},{"$f":"Time!GTL$23","v":"00:00:00"},{"$f":"Time!GTM$23","v":"00:00:00"},{"$f":"Time!GTN$23","v":"00:00:00"},{"$f":"Time!GTO$23","v":"00:00:00"},{"$f":"Time!GTP$23","v":"00:00:00"},{"$f":"Time!GTQ$23","v":"00:00:00"},{"$f":"Time!GTR$23","v":"00:00:00"},{"$f":"Time!GTS$23","v":"00:00:00"},{"$f":"Time!GTT$23","v":"00:00:00"},{"$f":"Time!GTU$23","v":"00:00:00"},{"$f":"Time!GTV$23","v":"00:00:00"},{"$f":"Time!GTW$23","v":"00:00:00"},{"$f":"Time!GTX$23","v":"00:00:00"},{"$f":"Time!GTY$23","v":"00:00:00"},{"$f":"Time!GTZ$23","v":"00:00:00"},{"$f":"Time!GUA$23","v":"00:00:00"},{"$f":"Time!GUB$23","v":"00:00:00"},{"$f":"Time!GUC$23","v":"00:00:00"},{"$f":"Time!GUD$23","v":"00:00:00"},{"$f":"Time!GUE$23","v":"00:00:00"},{"$f":"Time!GUF$23","v":"00:00:00"},{"$f":"Time!GUG$23","v":"00:00:00"},{"$f":"Time!GUH$23","v":"00:00:00"},{"$f":"Time!GUI$23","v":"00:00:00"},{"$f":"Time!GUJ$23","v":"00:00:00"},{"$f":"Time!GUK$23","v":"00:00:00"},{"$f":"Time!GUL$23","v":"00:00:00"},{"$f":"Time!GUM$23","v":"00:00:00"},{"$f":"Time!GUN$23","v":"00:00:00"},{"$f":"Time!GUO$23","v":"00:00:00"},{"$f":"Time!GUP$23","v":"00:00:00"},{"$f":"Time!GUQ$23","v":"00:00:00"},{"$f":"Time!GUR$23","v":"00:00:00"},{"$f":"Time!GUS$23","v":"00:00:00"},{"$f":"Time!GUT$23","v":"00:00:00"},{"$f":"Time!GUU$23","v":"00:00:00"},{"$f":"Time!GUV$23","v":"00:00:00"},{"$f":"Time!GUW$23","v":"00:00:00"},{"$f":"Time!GUX$23","v":"00:00:00"},{"$f":"Time!GUY$23","v":"00:00:00"},{"$f":"Time!GUZ$23","v":"00:00:00"},{"$f":"Time!GVA$23","v":"00:00:00"},{"$f":"Time!GVB$23","v":"00:00:00"},{"$f":"Time!GVC$23","v":"00:00:00"},{"$f":"Time!GVD$23","v":"00:00:00"},{"$f":"Time!GVE$23","v":"00:00:00"},{"$f":"Time!GVF$23","v":"00:00:00"},{"$f":"Time!GVG$23","v":"00:00:00"},{"$f":"Time!GVH$23","v":"00:00:00"},{"$f":"Time!GVI$23","v":"00:00:00"},{"$f":"Time!GVJ$23","v":"00:00:00"},{"$f":"Time!GVK$23","v":"00:00:00"},{"$f":"Time!GVL$23","v":"00:00:00"},{"$f":"Time!GVM$23","v":"00:00:00"},{"$f":"Time!GVN$23","v":"00:00:00"},{"$f":"Time!GVO$23","v":"00:00:00"},{"$f":"Time!GVP$23","v":"00:00:00"},{"$f":"Time!GVQ$23","v":"00:00:00"},{"$f":"Time!GVR$23","v":"00:00:00"},{"$f":"Time!GVS$23","v":"00:00:00"},{"$f":"Time!GVT$23","v":"00:00:00"},{"$f":"Time!GVU$23","v":"00:00:00"},{"$f":"Time!GVV$23","v":"00:00:00"},{"$f":"Time!GVW$23","v":"00:00:00"},{"$f":"Time!GVX$23","v":"00:00:00"},{"$f":"Time!GVY$23","v":"00:00:00"},{"$f":"Time!GVZ$23","v":"00:00:00"},{"$f":"Time!GWA$23","v":"00:00:00"},{"$f":"Time!GWB$23","v":"00:00:00"},{"$f":"Time!GWC$23","v":"00:00:00"},{"$f":"Time!GWD$23","v":"00:00:00"},{"$f":"Time!GWE$23","v":"00:00:00"},{"$f":"Time!GWF$23","v":"00:00:00"},{"$f":"Time!GWG$23","v":"00:00:00"},{"$f":"Time!GWH$23","v":"00:00:00"},{"$f":"Time!GWI$23","v":"00:00:00"},{"$f":"Time!GWJ$23","v":"00:00:00"},{"$f":"Time!GWK$23","v":"00:00:00"},{"$f":"Time!GWL$23","v":"00:00:00"},{"$f":"Time!GWM$23","v":"00:00:00"},{"$f":"Time!GWN$23","v":"00:00:00"},{"$f":"Time!GWO$23","v":"00:00:00"},{"$f":"Time!GWP$23","v":"00:00:00"},{"$f":"Time!GWQ$23","v":"00:00:00"},{"$f":"Time!GWR$23","v":"00:00:00"},{"$f":"Time!GWS$23","v":"00:00:00"},{"$f":"Time!GWT$23","v":"00:00:00"},{"$f":"Time!GWU$23","v":"00:00:00"},{"$f":"Time!GWV$23","v":"00:00:00"},{"$f":"Time!GWW$23","v":"00:00:00"},{"$f":"Time!GWX$23","v":"00:00:00"},{"$f":"Time!GWY$23","v":"00:00:00"},{"$f":"Time!GWZ$23","v":"00:00:00"},{"$f":"Time!GXA$23","v":"00:00:00"},{"$f":"Time!GXB$23","v":"00:00:00"},{"$f":"Time!GXC$23","v":"00:00:00"},{"$f":"Time!GXD$23","v":"00:00:00"},{"$f":"Time!GXE$23","v":"00:00:00"},{"$f":"Time!GXF$23","v":"00:00:00"},{"$f":"Time!GXG$23","v":"00:00:00"},{"$f":"Time!GXH$23","v":"00:00:00"},{"$f":"Time!GXI$23","v":"00:00:00"},{"$f":"Time!GXJ$23","v":"00:00:00"},{"$f":"Time!GXK$23","v":"00:00:00"},{"$f":"Time!GXL$23","v":"00:00:00"},{"$f":"Time!GXM$23","v":"00:00:00"},{"$f":"Time!GXN$23","v":"00:00:00"},{"$f":"Time!GXO$23","v":"00:00:00"},{"$f":"Time!GXP$23","v":"00:00:00"},{"$f":"Time!GXQ$23","v":"00:00:00"},{"$f":"Time!GXR$23","v":"00:00:00"},{"$f":"Time!GXS$23","v":"00:00:00"},{"$f":"Time!GXT$23","v":"00:00:00"},{"$f":"Time!GXU$23","v":"00:00:00"},{"$f":"Time!GXV$23","v":"00:00:00"},{"$f":"Time!GXW$23","v":"00:00:00"},{"$f":"Time!GXX$23","v":"00:00:00"},{"$f":"Time!GXY$23","v":"00:00:00"},{"$f":"Time!GXZ$23","v":"00:00:00"},{"$f":"Time!GYA$23","v":"00:00:00"},{"$f":"Time!GYB$23","v":"00:00:00"},{"$f":"Time!GYC$23","v":"00:00:00"},{"$f":"Time!GYD$23","v":"00:00:00"},{"$f":"Time!GYE$23","v":"00:00:00"},{"$f":"Time!GYF$23","v":"00:00:00"},{"$f":"Time!GYG$23","v":"00:00:00"},{"$f":"Time!GYH$23","v":"00:00:00"},{"$f":"Time!GYI$23","v":"00:00:00"},{"$f":"Time!GYJ$23","v":"00:00:00"},{"$f":"Time!GYK$23","v":"00:00:00"},{"$f":"Time!GYL$23","v":"00:00:00"},{"$f":"Time!GYM$23","v":"00:00:00"},{"$f":"Time!GYN$23","v":"00:00:00"},{"$f":"Time!GYO$23","v":"00:00:00"},{"$f":"Time!GYP$23","v":"00:00:00"},{"$f":"Time!GYQ$23","v":"00:00:00"},{"$f":"Time!GYR$23","v":"00:00:00"},{"$f":"Time!GYS$23","v":"00:00:00"},{"$f":"Time!GYT$23","v":"00:00:00"},{"$f":"Time!GYU$23","v":"00:00:00"},{"$f":"Time!GYV$23","v":"00:00:00"},{"$f":"Time!GYW$23","v":"00:00:00"},{"$f":"Time!GYX$23","v":"00:00:00"},{"$f":"Time!GYY$23","v":"00:00:00"},{"$f":"Time!GYZ$23","v":"00:00:00"},{"$f":"Time!GZA$23","v":"00:00:00"},{"$f":"Time!GZB$23","v":"00:00:00"},{"$f":"Time!GZC$23","v":"00:00:00"},{"$f":"Time!GZD$23","v":"00:00:00"},{"$f":"Time!GZE$23","v":"00:00:00"},{"$f":"Time!GZF$23","v":"00:00:00"},{"$f":"Time!GZG$23","v":"00:00:00"},{"$f":"Time!GZH$23","v":"00:00:00"},{"$f":"Time!GZI$23","v":"00:00:00"},{"$f":"Time!GZJ$23","v":"00:00:00"},{"$f":"Time!GZK$23","v":"00:00:00"},{"$f":"Time!GZL$23","v":"00:00:00"},{"$f":"Time!GZM$23","v":"00:00:00"},{"$f":"Time!GZN$23","v":"00:00:00"},{"$f":"Time!GZO$23","v":"00:00:00"},{"$f":"Time!GZP$23","v":"00:00:00"},{"$f":"Time!GZQ$23","v":"00:00:00"},{"$f":"Time!GZR$23","v":"00:00:00"},{"$f":"Time!GZS$23","v":"00:00:00"},{"$f":"Time!GZT$23","v":"00:00:00"},{"$f":"Time!GZU$23","v":"00:00:00"},{"$f":"Time!GZV$23","v":"00:00:00"},{"$f":"Time!GZW$23","v":"00:00:00"},{"$f":"Time!GZX$23","v":"00:00:00"},{"$f":"Time!GZY$23","v":"00:00:00"},{"$f":"Time!GZZ$23","v":"00:00:00"},{"$f":"Time!HAA$23","v":"00:00:00"},{"$f":"Time!HAB$23","v":"00:00:00"},{"$f":"Time!HAC$23","v":"00:00:00"},{"$f":"Time!HAD$23","v":"00:00:00"},{"$f":"Time!HAE$23","v":"00:00:00"},{"$f":"Time!HAF$23","v":"00:00:00"},{"$f":"Time!HAG$23","v":"00:00:00"},{"$f":"Time!HAH$23","v":"00:00:00"},{"$f":"Time!HAI$23","v":"00:00:00"},{"$f":"Time!HAJ$23","v":"00:00:00"},{"$f":"Time!HAK$23","v":"00:00:00"},{"$f":"Time!HAL$23","v":"00:00:00"},{"$f":"Time!HAM$23","v":"00:00:00"},{"$f":"Time!HAN$23","v":"00:00:00"},{"$f":"Time!HAO$23","v":"00:00:00"},{"$f":"Time!HAP$23","v":"00:00:00"},{"$f":"Time!HAQ$23","v":"00:00:00"},{"$f":"Time!HAR$23","v":"00:00:00"},{"$f":"Time!HAS$23","v":"00:00:00"},{"$f":"Time!HAT$23","v":"00:00:00"},{"$f":"Time!HAU$23","v":"00:00:00"},{"$f":"Time!HAV$23","v":"00:00:00"},{"$f":"Time!HAW$23","v":"00:00:00"},{"$f":"Time!HAX$23","v":"00:00:00"},{"$f":"Time!HAY$23","v":"00:00:00"},{"$f":"Time!HAZ$23","v":"00:00:00"},{"$f":"Time!HBA$23","v":"00:00:00"},{"$f":"Time!HBB$23","v":"00:00:00"},{"$f":"Time!HBC$23","v":"00:00:00"},{"$f":"Time!HBD$23","v":"00:00:00"},{"$f":"Time!HBE$23","v":"00:00:00"},{"$f":"Time!HBF$23","v":"00:00:00"},{"$f":"Time!HBG$23","v":"00:00:00"},{"$f":"Time!HBH$23","v":"00:00:00"},{"$f":"Time!HBI$23","v":"00:00:00"},{"$f":"Time!HBJ$23","v":"00:00:00"},{"$f":"Time!HBK$23","v":"00:00:00"},{"$f":"Time!HBL$23","v":"00:00:00"},{"$f":"Time!HBM$23","v":"00:00:00"},{"$f":"Time!HBN$23","v":"00:00:00"},{"$f":"Time!HBO$23","v":"00:00:00"},{"$f":"Time!HBP$23","v":"00:00:00"},{"$f":"Time!HBQ$23","v":"00:00:00"},{"$f":"Time!HBR$23","v":"00:00:00"},{"$f":"Time!HBS$23","v":"00:00:00"},{"$f":"Time!HBT$23","v":"00:00:00"},{"$f":"Time!HBU$23","v":"00:00:00"},{"$f":"Time!HBV$23","v":"00:00:00"},{"$f":"Time!HBW$23","v":"00:00:00"},{"$f":"Time!HBX$23","v":"00:00:00"},{"$f":"Time!HBY$23","v":"00:00:00"},{"$f":"Time!HBZ$23","v":"00:00:00"},{"$f":"Time!HCA$23","v":"00:00:00"},{"$f":"Time!HCB$23","v":"00:00:00"},{"$f":"Time!HCC$23","v":"00:00:00"},{"$f":"Time!HCD$23","v":"00:00:00"},{"$f":"Time!HCE$23","v":"00:00:00"},{"$f":"Time!HCF$23","v":"00:00:00"},{"$f":"Time!HCG$23","v":"00:00:00"},{"$f":"Time!HCH$23","v":"00:00:00"},{"$f":"Time!HCI$23","v":"00:00:00"},{"$f":"Time!HCJ$23","v":"00:00:00"},{"$f":"Time!HCK$23","v":"00:00:00"},{"$f":"Time!HCL$23","v":"00:00:00"},{"$f":"Time!HCM$23","v":"00:00:00"},{"$f":"Time!HCN$23","v":"00:00:00"},{"$f":"Time!HCO$23","v":"00:00:00"},{"$f":"Time!HCP$23","v":"00:00:00"},{"$f":"Time!HCQ$23","v":"00:00:00"},{"$f":"Time!HCR$23","v":"00:00:00"},{"$f":"Time!HCS$23","v":"00:00:00"},{"$f":"Time!HCT$23","v":"00:00:00"},{"$f":"Time!HCU$23","v":"00:00:00"},{"$f":"Time!HCV$23","v":"00:00:00"},{"$f":"Time!HCW$23","v":"00:00:00"},{"$f":"Time!HCX$23","v":"00:00:00"},{"$f":"Time!HCY$23","v":"00:00:00"},{"$f":"Time!HCZ$23","v":"00:00:00"},{"$f":"Time!HDA$23","v":"00:00:00"},{"$f":"Time!HDB$23","v":"00:00:00"},{"$f":"Time!HDC$23","v":"00:00:00"},{"$f":"Time!HDD$23","v":"00:00:00"},{"$f":"Time!HDE$23","v":"00:00:00"},{"$f":"Time!HDF$23","v":"00:00:00"},{"$f":"Time!HDG$23","v":"00:00:00"},{"$f":"Time!HDH$23","v":"00:00:00"},{"$f":"Time!HDI$23","v":"00:00:00"},{"$f":"Time!HDJ$23","v":"00:00:00"},{"$f":"Time!HDK$23","v":"00:00:00"},{"$f":"Time!HDL$23","v":"00:00:00"},{"$f":"Time!HDM$23","v":"00:00:00"},{"$f":"Time!HDN$23","v":"00:00:00"},{"$f":"Time!HDO$23","v":"00:00:00"},{"$f":"Time!HDP$23","v":"00:00:00"},{"$f":"Time!HDQ$23","v":"00:00:00"},{"$f":"Time!HDR$23","v":"00:00:00"},{"$f":"Time!HDS$23","v":"00:00:00"},{"$f":"Time!HDT$23","v":"00:00:00"},{"$f":"Time!HDU$23","v":"00:00:00"},{"$f":"Time!HDV$23","v":"00:00:00"},{"$f":"Time!HDW$23","v":"00:00:00"},{"$f":"Time!HDX$23","v":"00:00:00"},{"$f":"Time!HDY$23","v":"00:00:00"},{"$f":"Time!HDZ$23","v":"00:00:00"},{"$f":"Time!HEA$23","v":"00:00:00"},{"$f":"Time!HEB$23","v":"00:00:00"},{"$f":"Time!HEC$23","v":"00:00:00"},{"$f":"Time!HED$23","v":"00:00:00"},{"$f":"Time!HEE$23","v":"00:00:00"},{"$f":"Time!HEF$23","v":"00:00:00"},{"$f":"Time!HEG$23","v":"00:00:00"},{"$f":"Time!HEH$23","v":"00:00:00"},{"$f":"Time!HEI$23","v":"00:00:00"},{"$f":"Time!HEJ$23","v":"00:00:00"},{"$f":"Time!HEK$23","v":"00:00:00"},{"$f":"Time!HEL$23","v":"00:00:00"},{"$f":"Time!HEM$23","v":"00:00:00"},{"$f":"Time!HEN$23","v":"00:00:00"},{"$f":"Time!HEO$23","v":"00:00:00"},{"$f":"Time!HEP$23","v":"00:00:00"},{"$f":"Time!HEQ$23","v":"00:00:00"},{"$f":"Time!HER$23","v":"00:00:00"},{"$f":"Time!HES$23","v":"00:00:00"},{"$f":"Time!HET$23","v":"00:00:00"},{"$f":"Time!HEU$23","v":"00:00:00"},{"$f":"Time!HEV$23","v":"00:00:00"},{"$f":"Time!HEW$23","v":"00:00:00"},{"$f":"Time!HEX$23","v":"00:00:00"},{"$f":"Time!HEY$23","v":"00:00:00"},{"$f":"Time!HEZ$23","v":"00:00:00"},{"$f":"Time!HFA$23","v":"00:00:00"},{"$f":"Time!HFB$23","v":"00:00:00"},{"$f":"Time!HFC$23","v":"00:00:00"},{"$f":"Time!HFD$23","v":"00:00:00"},{"$f":"Time!HFE$23","v":"00:00:00"},{"$f":"Time!HFF$23","v":"00:00:00"},{"$f":"Time!HFG$23","v":"00:00:00"},{"$f":"Time!HFH$23","v":"00:00:00"},{"$f":"Time!HFI$23","v":"00:00:00"},{"$f":"Time!HFJ$23","v":"00:00:00"},{"$f":"Time!HFK$23","v":"00:00:00"},{"$f":"Time!HFL$23","v":"00:00:00"},{"$f":"Time!HFM$23","v":"00:00:00"},{"$f":"Time!HFN$23","v":"00:00:00"},{"$f":"Time!HFO$23","v":"00:00:00"},{"$f":"Time!HFP$23","v":"00:00:00"},{"$f":"Time!HFQ$23","v":"00:00:00"},{"$f":"Time!HFR$23","v":"00:00:00"},{"$f":"Time!HFS$23","v":"00:00:00"},{"$f":"Time!HFT$23","v":"00:00:00"},{"$f":"Time!HFU$23","v":"00:00:00"},{"$f":"Time!HFV$23","v":"00:00:00"},{"$f":"Time!HFW$23","v":"00:00:00"},{"$f":"Time!HFX$23","v":"00:00:00"},{"$f":"Time!HFY$23","v":"00:00:00"},{"$f":"Time!HFZ$23","v":"00:00:00"},{"$f":"Time!HGA$23","v":"00:00:00"},{"$f":"Time!HGB$23","v":"00:00:00"},{"$f":"Time!HGC$23","v":"00:00:00"},{"$f":"Time!HGD$23","v":"00:00:00"},{"$f":"Time!HGE$23","v":"00:00:00"},{"$f":"Time!HGF$23","v":"00:00:00"},{"$f":"Time!HGG$23","v":"00:00:00"},{"$f":"Time!HGH$23","v":"00:00:00"},{"$f":"Time!HGI$23","v":"00:00:00"},{"$f":"Time!HGJ$23","v":"00:00:00"},{"$f":"Time!HGK$23","v":"00:00:00"},{"$f":"Time!HGL$23","v":"00:00:00"},{"$f":"Time!HGM$23","v":"00:00:00"},{"$f":"Time!HGN$23","v":"00:00:00"},{"$f":"Time!HGO$23","v":"00:00:00"},{"$f":"Time!HGP$23","v":"00:00:00"},{"$f":"Time!HGQ$23","v":"00:00:00"},{"$f":"Time!HGR$23","v":"00:00:00"},{"$f":"Time!HGS$23","v":"00:00:00"},{"$f":"Time!HGT$23","v":"00:00:00"},{"$f":"Time!HGU$23","v":"00:00:00"},{"$f":"Time!HGV$23","v":"00:00:00"},{"$f":"Time!HGW$23","v":"00:00:00"},{"$f":"Time!HGX$23","v":"00:00:00"},{"$f":"Time!HGY$23","v":"00:00:00"},{"$f":"Time!HGZ$23","v":"00:00:00"},{"$f":"Time!HHA$23","v":"00:00:00"},{"$f":"Time!HHB$23","v":"00:00:00"},{"$f":"Time!HHC$23","v":"00:00:00"},{"$f":"Time!HHD$23","v":"00:00:00"},{"$f":"Time!HHE$23","v":"00:00:00"},{"$f":"Time!HHF$23","v":"00:00:00"},{"$f":"Time!HHG$23","v":"00:00:00"},{"$f":"Time!HHH$23","v":"00:00:00"},{"$f":"Time!HHI$23","v":"00:00:00"},{"$f":"Time!HHJ$23","v":"00:00:00"},{"$f":"Time!HHK$23","v":"00:00:00"},{"$f":"Time!HHL$23","v":"00:00:00"},{"$f":"Time!HHM$23","v":"00:00:00"},{"$f":"Time!HHN$23","v":"00:00:00"},{"$f":"Time!HHO$23","v":"00:00:00"},{"$f":"Time!HHP$23","v":"00:00:00"},{"$f":"Time!HHQ$23","v":"00:00:00"},{"$f":"Time!HHR$23","v":"00:00:00"},{"$f":"Time!HHS$23","v":"00:00:00"},{"$f":"Time!HHT$23","v":"00:00:00"},{"$f":"Time!HHU$23","v":"00:00:00"},{"$f":"Time!HHV$23","v":"00:00:00"},{"$f":"Time!HHW$23","v":"00:00:00"},{"$f":"Time!HHX$23","v":"00:00:00"},{"$f":"Time!HHY$23","v":"00:00:00"},{"$f":"Time!HHZ$23","v":"00:00:00"},{"$f":"Time!HIA$23","v":"00:00:00"},{"$f":"Time!HIB$23","v":"00:00:00"},{"$f":"Time!HIC$23","v":"00:00:00"},{"$f":"Time!HID$23","v":"00:00:00"},{"$f":"Time!HIE$23","v":"00:00:00"},{"$f":"Time!HIF$23","v":"00:00:00"},{"$f":"Time!HIG$23","v":"00:00:00"},{"$f":"Time!HIH$23","v":"00:00:00"},{"$f":"Time!HII$23","v":"00:00:00"},{"$f":"Time!HIJ$23","v":"00:00:00"},{"$f":"Time!HIK$23","v":"00:00:00"},{"$f":"Time!HIL$23","v":"00:00:00"},{"$f":"Time!HIM$23","v":"00:00:00"},{"$f":"Time!HIN$23","v":"00:00:00"},{"$f":"Time!HIO$23","v":"00:00:00"},{"$f":"Time!HIP$23","v":"00:00:00"},{"$f":"Time!HIQ$23","v":"00:00:00"},{"$f":"Time!HIR$23","v":"00:00:00"},{"$f":"Time!HIS$23","v":"00:00:00"},{"$f":"Time!HIT$23","v":"00:00:00"},{"$f":"Time!HIU$23","v":"00:00:00"},{"$f":"Time!HIV$23","v":"00:00:00"},{"$f":"Time!HIW$23","v":"00:00:00"},{"$f":"Time!HIX$23","v":"00:00:00"},{"$f":"Time!HIY$23","v":"00:00:00"},{"$f":"Time!HIZ$23","v":"00:00:00"},{"$f":"Time!HJA$23","v":"00:00:00"},{"$f":"Time!HJB$23","v":"00:00:00"},{"$f":"Time!HJC$23","v":"00:00:00"},{"$f":"Time!HJD$23","v":"00:00:00"},{"$f":"Time!HJE$23","v":"00:00:00"},{"$f":"Time!HJF$23","v":"00:00:00"},{"$f":"Time!HJG$23","v":"00:00:00"},{"$f":"Time!HJH$23","v":"00:00:00"},{"$f":"Time!HJI$23","v":"00:00:00"},{"$f":"Time!HJJ$23","v":"00:00:00"},{"$f":"Time!HJK$23","v":"00:00:00"},{"$f":"Time!HJL$23","v":"00:00:00"},{"$f":"Time!HJM$23","v":"00:00:00"},{"$f":"Time!HJN$23","v":"00:00:00"},{"$f":"Time!HJO$23","v":"00:00:00"},{"$f":"Time!HJP$23","v":"00:00:00"},{"$f":"Time!HJQ$23","v":"00:00:00"},{"$f":"Time!HJR$23","v":"00:00:00"},{"$f":"Time!HJS$23","v":"00:00:00"},{"$f":"Time!HJT$23","v":"00:00:00"},{"$f":"Time!HJU$23","v":"00:00:00"},{"$f":"Time!HJV$23","v":"00:00:00"},{"$f":"Time!HJW$23","v":"00:00:00"},{"$f":"Time!HJX$23","v":"00:00:00"},{"$f":"Time!HJY$23","v":"00:00:00"},{"$f":"Time!HJZ$23","v":"00:00:00"},{"$f":"Time!HKA$23","v":"00:00:00"},{"$f":"Time!HKB$23","v":"00:00:00"},{"$f":"Time!HKC$23","v":"00:00:00"},{"$f":"Time!HKD$23","v":"00:00:00"},{"$f":"Time!HKE$23","v":"00:00:00"},{"$f":"Time!HKF$23","v":"00:00:00"},{"$f":"Time!HKG$23","v":"00:00:00"},{"$f":"Time!HKH$23","v":"00:00:00"},{"$f":"Time!HKI$23","v":"00:00:00"},{"$f":"Time!HKJ$23","v":"00:00:00"},{"$f":"Time!HKK$23","v":"00:00:00"},{"$f":"Time!HKL$23","v":"00:00:00"},{"$f":"Time!HKM$23","v":"00:00:00"},{"$f":"Time!HKN$23","v":"00:00:00"},{"$f":"Time!HKO$23","v":"00:00:00"},{"$f":"Time!HKP$23","v":"00:00:00"},{"$f":"Time!HKQ$23","v":"00:00:00"},{"$f":"Time!HKR$23","v":"00:00:00"},{"$f":"Time!HKS$23","v":"00:00:00"},{"$f":"Time!HKT$23","v":"00:00:00"},{"$f":"Time!HKU$23","v":"00:00:00"},{"$f":"Time!HKV$23","v":"00:00:00"},{"$f":"Time!HKW$23","v":"00:00:00"},{"$f":"Time!HKX$23","v":"00:00:00"},{"$f":"Time!HKY$23","v":"00:00:00"},{"$f":"Time!HKZ$23","v":"00:00:00"},{"$f":"Time!HLA$23","v":"00:00:00"},{"$f":"Time!HLB$23","v":"00:00:00"},{"$f":"Time!HLC$23","v":"00:00:00"},{"$f":"Time!HLD$23","v":"00:00:00"},{"$f":"Time!HLE$23","v":"00:00:00"},{"$f":"Time!HLF$23","v":"00:00:00"},{"$f":"Time!HLG$23","v":"00:00:00"},{"$f":"Time!HLH$23","v":"00:00:00"},{"$f":"Time!HLI$23","v":"00:00:00"},{"$f":"Time!HLJ$23","v":"00:00:00"},{"$f":"Time!HLK$23","v":"00:00:00"},{"$f":"Time!HLL$23","v":"00:00:00"},{"$f":"Time!HLM$23","v":"00:00:00"},{"$f":"Time!HLN$23","v":"00:00:00"},{"$f":"Time!HLO$23","v":"00:00:00"},{"$f":"Time!HLP$23","v":"00:00:00"},{"$f":"Time!HLQ$23","v":"00:00:00"},{"$f":"Time!HLR$23","v":"00:00:00"},{"$f":"Time!HLS$23","v":"00:00:00"},{"$f":"Time!HLT$23","v":"00:00:00"},{"$f":"Time!HLU$23","v":"00:00:00"},{"$f":"Time!HLV$23","v":"00:00:00"},{"$f":"Time!HLW$23","v":"00:00:00"},{"$f":"Time!HLX$23","v":"00:00:00"},{"$f":"Time!HLY$23","v":"00:00:00"},{"$f":"Time!HLZ$23","v":"00:00:00"},{"$f":"Time!HMA$23","v":"00:00:00"},{"$f":"Time!HMB$23","v":"00:00:00"},{"$f":"Time!HMC$23","v":"00:00:00"},{"$f":"Time!HMD$23","v":"00:00:00"},{"$f":"Time!HME$23","v":"00:00:00"},{"$f":"Time!HMF$23","v":"00:00:00"},{"$f":"Time!HMG$23","v":"00:00:00"},{"$f":"Time!HMH$23","v":"00:00:00"},{"$f":"Time!HMI$23","v":"00:00:00"},{"$f":"Time!HMJ$23","v":"00:00:00"},{"$f":"Time!HMK$23","v":"00:00:00"},{"$f":"Time!HML$23","v":"00:00:00"},{"$f":"Time!HMM$23","v":"00:00:00"},{"$f":"Time!HMN$23","v":"00:00:00"},{"$f":"Time!HMO$23","v":"00:00:00"},{"$f":"Time!HMP$23","v":"00:00:00"},{"$f":"Time!HMQ$23","v":"00:00:00"},{"$f":"Time!HMR$23","v":"00:00:00"},{"$f":"Time!HMS$23","v":"00:00:00"},{"$f":"Time!HMT$23","v":"00:00:00"},{"$f":"Time!HMU$23","v":"00:00:00"},{"$f":"Time!HMV$23","v":"00:00:00"},{"$f":"Time!HMW$23","v":"00:00:00"},{"$f":"Time!HMX$23","v":"00:00:00"},{"$f":"Time!HMY$23","v":"00:00:00"},{"$f":"Time!HMZ$23","v":"00:00:00"},{"$f":"Time!HNA$23","v":"00:00:00"},{"$f":"Time!HNB$23","v":"00:00:00"},{"$f":"Time!HNC$23","v":"00:00:00"},{"$f":"Time!HND$23","v":"00:00:00"},{"$f":"Time!HNE$23","v":"00:00:00"},{"$f":"Time!HNF$23","v":"00:00:00"},{"$f":"Time!HNG$23","v":"00:00:00"},{"$f":"Time!HNH$23","v":"00:00:00"},{"$f":"Time!HNI$23","v":"00:00:00"},{"$f":"Time!HNJ$23","v":"00:00:00"},{"$f":"Time!HNK$23","v":"00:00:00"},{"$f":"Time!HNL$23","v":"00:00:00"},{"$f":"Time!HNM$23","v":"00:00:00"},{"$f":"Time!HNN$23","v":"00:00:00"},{"$f":"Time!HNO$23","v":"00:00:00"},{"$f":"Time!HNP$23","v":"00:00:00"},{"$f":"Time!HNQ$23","v":"00:00:00"},{"$f":"Time!HNR$23","v":"00:00:00"},{"$f":"Time!HNS$23","v":"00:00:00"},{"$f":"Time!HNT$23","v":"00:00:00"},{"$f":"Time!HNU$23","v":"00:00:00"},{"$f":"Time!HNV$23","v":"00:00:00"},{"$f":"Time!HNW$23","v":"00:00:00"},{"$f":"Time!HNX$23","v":"00:00:00"},{"$f":"Time!HNY$23","v":"00:00:00"},{"$f":"Time!HNZ$23","v":"00:00:00"},{"$f":"Time!HOA$23","v":"00:00:00"},{"$f":"Time!HOB$23","v":"00:00:00"},{"$f":"Time!HOC$23","v":"00:00:00"},{"$f":"Time!HOD$23","v":"00:00:00"},{"$f":"Time!HOE$23","v":"00:00:00"},{"$f":"Time!HOF$23","v":"00:00:00"},{"$f":"Time!HOG$23","v":"00:00:00"},{"$f":"Time!HOH$23","v":"00:00:00"},{"$f":"Time!HOI$23","v":"00:00:00"},{"$f":"Time!HOJ$23","v":"00:00:00"},{"$f":"Time!HOK$23","v":"00:00:00"},{"$f":"Time!HOL$23","v":"00:00:00"},{"$f":"Time!HOM$23","v":"00:00:00"},{"$f":"Time!HON$23","v":"00:00:00"},{"$f":"Time!HOO$23","v":"00:00:00"},{"$f":"Time!HOP$23","v":"00:00:00"},{"$f":"Time!HOQ$23","v":"00:00:00"},{"$f":"Time!HOR$23","v":"00:00:00"},{"$f":"Time!HOS$23","v":"00:00:00"},{"$f":"Time!HOT$23","v":"00:00:00"},{"$f":"Time!HOU$23","v":"00:00:00"},{"$f":"Time!HOV$23","v":"00:00:00"},{"$f":"Time!HOW$23","v":"00:00:00"},{"$f":"Time!HOX$23","v":"00:00:00"},{"$f":"Time!HOY$23","v":"00:00:00"},{"$f":"Time!HOZ$23","v":"00:00:00"},{"$f":"Time!HPA$23","v":"00:00:00"},{"$f":"Time!HPB$23","v":"00:00:00"},{"$f":"Time!HPC$23","v":"00:00:00"},{"$f":"Time!HPD$23","v":"00:00:00"},{"$f":"Time!HPE$23","v":"00:00:00"},{"$f":"Time!HPF$23","v":"00:00:00"},{"$f":"Time!HPG$23","v":"00:00:00"},{"$f":"Time!HPH$23","v":"00:00:00"},{"$f":"Time!HPI$23","v":"00:00:00"},{"$f":"Time!HPJ$23","v":"00:00:00"},{"$f":"Time!HPK$23","v":"00:00:00"},{"$f":"Time!HPL$23","v":"00:00:00"},{"$f":"Time!HPM$23","v":"00:00:00"},{"$f":"Time!HPN$23","v":"00:00:00"},{"$f":"Time!HPO$23","v":"00:00:00"},{"$f":"Time!HPP$23","v":"00:00:00"},{"$f":"Time!HPQ$23","v":"00:00:00"},{"$f":"Time!HPR$23","v":"00:00:00"},{"$f":"Time!HPS$23","v":"00:00:00"},{"$f":"Time!HPT$23","v":"00:00:00"},{"$f":"Time!HPU$23","v":"00:00:00"},{"$f":"Time!HPV$23","v":"00:00:00"},{"$f":"Time!HPW$23","v":"00:00:00"},{"$f":"Time!HPX$23","v":"00:00:00"},{"$f":"Time!HPY$23","v":"00:00:00"},{"$f":"Time!HPZ$23","v":"00:00:00"},{"$f":"Time!HQA$23","v":"00:00:00"},{"$f":"Time!HQB$23","v":"00:00:00"},{"$f":"Time!HQC$23","v":"00:00:00"},{"$f":"Time!HQD$23","v":"00:00:00"},{"$f":"Time!HQE$23","v":"00:00:00"},{"$f":"Time!HQF$23","v":"00:00:00"},{"$f":"Time!HQG$23","v":"00:00:00"},{"$f":"Time!HQH$23","v":"00:00:00"},{"$f":"Time!HQI$23","v":"00:00:00"},{"$f":"Time!HQJ$23","v":"00:00:00"},{"$f":"Time!HQK$23","v":"00:00:00"},{"$f":"Time!HQL$23","v":"00:00:00"},{"$f":"Time!HQM$23","v":"00:00:00"},{"$f":"Time!HQN$23","v":"00:00:00"},{"$f":"Time!HQO$23","v":"00:00:00"},{"$f":"Time!HQP$23","v":"00:00:00"},{"$f":"Time!HQQ$23","v":"00:00:00"},{"$f":"Time!HQR$23","v":"00:00:00"},{"$f":"Time!HQS$23","v":"00:00:00"},{"$f":"Time!HQT$23","v":"00:00:00"},{"$f":"Time!HQU$23","v":"00:00:00"},{"$f":"Time!HQV$23","v":"00:00:00"},{"$f":"Time!HQW$23","v":"00:00:00"},{"$f":"Time!HQX$23","v":"00:00:00"},{"$f":"Time!HQY$23","v":"00:00:00"},{"$f":"Time!HQZ$23","v":"00:00:00"},{"$f":"Time!HRA$23","v":"00:00:00"},{"$f":"Time!HRB$23","v":"00:00:00"},{"$f":"Time!HRC$23","v":"00:00:00"},{"$f":"Time!HRD$23","v":"00:00:00"},{"$f":"Time!HRE$23","v":"00:00:00"},{"$f":"Time!HRF$23","v":"00:00:00"},{"$f":"Time!HRG$23","v":"00:00:00"},{"$f":"Time!HRH$23","v":"00:00:00"},{"$f":"Time!HRI$23","v":"00:00:00"},{"$f":"Time!HRJ$23","v":"00:00:00"},{"$f":"Time!HRK$23","v":"00:00:00"},{"$f":"Time!HRL$23","v":"00:00:00"},{"$f":"Time!HRM$23","v":"00:00:00"},{"$f":"Time!HRN$23","v":"00:00:00"},{"$f":"Time!HRO$23","v":"00:00:00"},{"$f":"Time!HRP$23","v":"00:00:00"},{"$f":"Time!HRQ$23","v":"00:00:00"},{"$f":"Time!HRR$23","v":"00:00:00"},{"$f":"Time!HRS$23","v":"00:00:00"},{"$f":"Time!HRT$23","v":"00:00:00"},{"$f":"Time!HRU$23","v":"00:00:00"},{"$f":"Time!HRV$23","v":"00:00:00"},{"$f":"Time!HRW$23","v":"00:00:00"},{"$f":"Time!HRX$23","v":"00:00:00"},{"$f":"Time!HRY$23","v":"00:00:00"},{"$f":"Time!HRZ$23","v":"00:00:00"},{"$f":"Time!HSA$23","v":"00:00:00"},{"$f":"Time!HSB$23","v":"00:00:00"},{"$f":"Time!HSC$23","v":"00:00:00"},{"$f":"Time!HSD$23","v":"00:00:00"},{"$f":"Time!HSE$23","v":"00:00:00"},{"$f":"Time!HSF$23","v":"00:00:00"},{"$f":"Time!HSG$23","v":"00:00:00"},{"$f":"Time!HSH$23","v":"00:00:00"},{"$f":"Time!HSI$23","v":"00:00:00"},{"$f":"Time!HSJ$23","v":"00:00:00"},{"$f":"Time!HSK$23","v":"00:00:00"},{"$f":"Time!HSL$23","v":"00:00:00"},{"$f":"Time!HSM$23","v":"00:00:00"},{"$f":"Time!HSN$23","v":"00:00:00"},{"$f":"Time!HSO$23","v":"00:00:00"},{"$f":"Time!HSP$23","v":"00:00:00"},{"$f":"Time!HSQ$23","v":"00:00:00"},{"$f":"Time!HSR$23","v":"00:00:00"},{"$f":"Time!HSS$23","v":"00:00:00"},{"$f":"Time!HST$23","v":"00:00:00"},{"$f":"Time!HSU$23","v":"00:00:00"},{"$f":"Time!HSV$23","v":"00:00:00"},{"$f":"Time!HSW$23","v":"00:00:00"},{"$f":"Time!HSX$23","v":"00:00:00"},{"$f":"Time!HSY$23","v":"00:00:00"},{"$f":"Time!HSZ$23","v":"00:00:00"},{"$f":"Time!HTA$23","v":"00:00:00"},{"$f":"Time!HTB$23","v":"00:00:00"},{"$f":"Time!HTC$23","v":"00:00:00"},{"$f":"Time!HTD$23","v":"00:00:00"},{"$f":"Time!HTE$23","v":"00:00:00"},{"$f":"Time!HTF$23","v":"00:00:00"},{"$f":"Time!HTG$23","v":"00:00:00"},{"$f":"Time!HTH$23","v":"00:00:00"},{"$f":"Time!HTI$23","v":"00:00:00"},{"$f":"Time!HTJ$23","v":"00:00:00"},{"$f":"Time!HTK$23","v":"00:00:00"},{"$f":"Time!HTL$23","v":"00:00:00"},{"$f":"Time!HTM$23","v":"00:00:00"},{"$f":"Time!HTN$23","v":"00:00:00"},{"$f":"Time!HTO$23","v":"00:00:00"},{"$f":"Time!HTP$23","v":"00:00:00"},{"$f":"Time!HTQ$23","v":"00:00:00"},{"$f":"Time!HTR$23","v":"00:00:00"},{"$f":"Time!HTS$23","v":"00:00:00"},{"$f":"Time!HTT$23","v":"00:00:00"},{"$f":"Time!HTU$23","v":"00:00:00"},{"$f":"Time!HTV$23","v":"00:00:00"},{"$f":"Time!HTW$23","v":"00:00:00"},{"$f":"Time!HTX$23","v":"00:00:00"},{"$f":"Time!HTY$23","v":"00:00:00"},{"$f":"Time!HTZ$23","v":"00:00:00"},{"$f":"Time!HUA$23","v":"00:00:00"},{"$f":"Time!HUB$23","v":"00:00:00"},{"$f":"Time!HUC$23","v":"00:00:00"},{"$f":"Time!HUD$23","v":"00:00:00"},{"$f":"Time!HUE$23","v":"00:00:00"},{"$f":"Time!HUF$23","v":"00:00:00"},{"$f":"Time!HUG$23","v":"00:00:00"},{"$f":"Time!HUH$23","v":"00:00:00"},{"$f":"Time!HUI$23","v":"00:00:00"},{"$f":"Time!HUJ$23","v":"00:00:00"},{"$f":"Time!HUK$23","v":"00:00:00"},{"$f":"Time!HUL$23","v":"00:00:00"},{"$f":"Time!HUM$23","v":"00:00:00"},{"$f":"Time!HUN$23","v":"00:00:00"},{"$f":"Time!HUO$23","v":"00:00:00"},{"$f":"Time!HUP$23","v":"00:00:00"},{"$f":"Time!HUQ$23","v":"00:00:00"},{"$f":"Time!HUR$23","v":"00:00:00"},{"$f":"Time!HUS$23","v":"00:00:00"},{"$f":"Time!HUT$23","v":"00:00:00"},{"$f":"Time!HUU$23","v":"00:00:00"},{"$f":"Time!HUV$23","v":"00:00:00"},{"$f":"Time!HUW$23","v":"00:00:00"},{"$f":"Time!HUX$23","v":"00:00:00"},{"$f":"Time!HUY$23","v":"00:00:00"},{"$f":"Time!HUZ$23","v":"00:00:00"},{"$f":"Time!HVA$23","v":"00:00:00"},{"$f":"Time!HVB$23","v":"00:00:00"},{"$f":"Time!HVC$23","v":"00:00:00"},{"$f":"Time!HVD$23","v":"00:00:00"},{"$f":"Time!HVE$23","v":"00:00:00"},{"$f":"Time!HVF$23","v":"00:00:00"},{"$f":"Time!HVG$23","v":"00:00:00"},{"$f":"Time!HVH$23","v":"00:00:00"},{"$f":"Time!HVI$23","v":"00:00:00"},{"$f":"Time!HVJ$23","v":"00:00:00"},{"$f":"Time!HVK$23","v":"00:00:00"},{"$f":"Time!HVL$23","v":"00:00:00"},{"$f":"Time!HVM$23","v":"00:00:00"},{"$f":"Time!HVN$23","v":"00:00:00"},{"$f":"Time!HVO$23","v":"00:00:00"},{"$f":"Time!HVP$23","v":"00:00:00"},{"$f":"Time!HVQ$23","v":"00:00:00"},{"$f":"Time!HVR$23","v":"00:00:00"},{"$f":"Time!HVS$23","v":"00:00:00"},{"$f":"Time!HVT$23","v":"00:00:00"},{"$f":"Time!HVU$23","v":"00:00:00"},{"$f":"Time!HVV$23","v":"00:00:00"},{"$f":"Time!HVW$23","v":"00:00:00"},{"$f":"Time!HVX$23","v":"00:00:00"},{"$f":"Time!HVY$23","v":"00:00:00"},{"$f":"Time!HVZ$23","v":"00:00:00"},{"$f":"Time!HWA$23","v":"00:00:00"},{"$f":"Time!HWB$23","v":"00:00:00"},{"$f":"Time!HWC$23","v":"00:00:00"},{"$f":"Time!HWD$23","v":"00:00:00"},{"$f":"Time!HWE$23","v":"00:00:00"},{"$f":"Time!HWF$23","v":"00:00:00"},{"$f":"Time!HWG$23","v":"00:00:00"},{"$f":"Time!HWH$23","v":"00:00:00"},{"$f":"Time!HWI$23","v":"00:00:00"},{"$f":"Time!HWJ$23","v":"00:00:00"},{"$f":"Time!HWK$23","v":"00:00:00"},{"$f":"Time!HWL$23","v":"00:00:00"},{"$f":"Time!HWM$23","v":"00:00:00"},{"$f":"Time!HWN$23","v":"00:00:00"},{"$f":"Time!HWO$23","v":"00:00:00"},{"$f":"Time!HWP$23","v":"00:00:00"},{"$f":"Time!HWQ$23","v":"00:00:00"},{"$f":"Time!HWR$23","v":"00:00:00"},{"$f":"Time!HWS$23","v":"00:00:00"},{"$f":"Time!HWT$23","v":"00:00:00"},{"$f":"Time!HWU$23","v":"00:00:00"},{"$f":"Time!HWV$23","v":"00:00:00"},{"$f":"Time!HWW$23","v":"00:00:00"},{"$f":"Time!HWX$23","v":"00:00:00"},{"$f":"Time!HWY$23","v":"00:00:00"},{"$f":"Time!HWZ$23","v":"00:00:00"},{"$f":"Time!HXA$23","v":"00:00:00"},{"$f":"Time!HXB$23","v":"00:00:00"},{"$f":"Time!HXC$23","v":"00:00:00"},{"$f":"Time!HXD$23","v":"00:00:00"},{"$f":"Time!HXE$23","v":"00:00:00"},{"$f":"Time!HXF$23","v":"00:00:00"},{"$f":"Time!HXG$23","v":"00:00:00"},{"$f":"Time!HXH$23","v":"00:00:00"},{"$f":"Time!HXI$23","v":"00:00:00"},{"$f":"Time!HXJ$23","v":"00:00:00"},{"$f":"Time!HXK$23","v":"00:00:00"},{"$f":"Time!HXL$23","v":"00:00:00"},{"$f":"Time!HXM$23","v":"00:00:00"},{"$f":"Time!HXN$23","v":"00:00:00"},{"$f":"Time!HXO$23","v":"00:00:00"},{"$f":"Time!HXP$23","v":"00:00:00"},{"$f":"Time!HXQ$23","v":"00:00:00"},{"$f":"Time!HXR$23","v":"00:00:00"},{"$f":"Time!HXS$23","v":"00:00:00"},{"$f":"Time!HXT$23","v":"00:00:00"},{"$f":"Time!HXU$23","v":"00:00:00"},{"$f":"Time!HXV$23","v":"00:00:00"},{"$f":"Time!HXW$23","v":"00:00:00"},{"$f":"Time!HXX$23","v":"00:00:00"},{"$f":"Time!HXY$23","v":"00:00:00"},{"$f":"Time!HXZ$23","v":"00:00:00"},{"$f":"Time!HYA$23","v":"00:00:00"},{"$f":"Time!HYB$23","v":"00:00:00"},{"$f":"Time!HYC$23","v":"00:00:00"},{"$f":"Time!HYD$23","v":"00:00:00"},{"$f":"Time!HYE$23","v":"00:00:00"},{"$f":"Time!HYF$23","v":"00:00:00"},{"$f":"Time!HYG$23","v":"00:00:00"},{"$f":"Time!HYH$23","v":"00:00:00"},{"$f":"Time!HYI$23","v":"00:00:00"},{"$f":"Time!HYJ$23","v":"00:00:00"},{"$f":"Time!HYK$23","v":"00:00:00"},{"$f":"Time!HYL$23","v":"00:00:00"},{"$f":"Time!HYM$23","v":"00:00:00"},{"$f":"Time!HYN$23","v":"00:00:00"},{"$f":"Time!HYO$23","v":"00:00:00"},{"$f":"Time!HYP$23","v":"00:00:00"},{"$f":"Time!HYQ$23","v":"00:00:00"},{"$f":"Time!HYR$23","v":"00:00:00"},{"$f":"Time!HYS$23","v":"00:00:00"},{"$f":"Time!HYT$23","v":"00:00:00"},{"$f":"Time!HYU$23","v":"00:00:00"},{"$f":"Time!HYV$23","v":"00:00:00"},{"$f":"Time!HYW$23","v":"00:00:00"},{"$f":"Time!HYX$23","v":"00:00:00"},{"$f":"Time!HYY$23","v":"00:00:00"},{"$f":"Time!HYZ$23","v":"00:00:00"},{"$f":"Time!HZA$23","v":"00:00:00"},{"$f":"Time!HZB$23","v":"00:00:00"},{"$f":"Time!HZC$23","v":"00:00:00"},{"$f":"Time!HZD$23","v":"00:00:00"},{"$f":"Time!HZE$23","v":"00:00:00"},{"$f":"Time!HZF$23","v":"00:00:00"},{"$f":"Time!HZG$23","v":"00:00:00"},{"$f":"Time!HZH$23","v":"00:00:00"},{"$f":"Time!HZI$23","v":"00:00:00"},{"$f":"Time!HZJ$23","v":"00:00:00"},{"$f":"Time!HZK$23","v":"00:00:00"},{"$f":"Time!HZL$23","v":"00:00:00"},{"$f":"Time!HZM$23","v":"00:00:00"},{"$f":"Time!HZN$23","v":"00:00:00"},{"$f":"Time!HZO$23","v":"00:00:00"},{"$f":"Time!HZP$23","v":"00:00:00"},{"$f":"Time!HZQ$23","v":"00:00:00"},{"$f":"Time!HZR$23","v":"00:00:00"},{"$f":"Time!HZS$23","v":"00:00:00"},{"$f":"Time!HZT$23","v":"00:00:00"},{"$f":"Time!HZU$23","v":"00:00:00"},{"$f":"Time!HZV$23","v":"00:00:00"},{"$f":"Time!HZW$23","v":"00:00:00"},{"$f":"Time!HZX$23","v":"00:00:00"},{"$f":"Time!HZY$23","v":"00:00:00"},{"$f":"Time!HZZ$23","v":"00:00:00"},{"$f":"Time!IAA$23","v":"00:00:00"},{"$f":"Time!IAB$23","v":"00:00:00"},{"$f":"Time!IAC$23","v":"00:00:00"},{"$f":"Time!IAD$23","v":"00:00:00"},{"$f":"Time!IAE$23","v":"00:00:00"},{"$f":"Time!IAF$23","v":"00:00:00"},{"$f":"Time!IAG$23","v":"00:00:00"},{"$f":"Time!IAH$23","v":"00:00:00"},{"$f":"Time!IAI$23","v":"00:00:00"},{"$f":"Time!IAJ$23","v":"00:00:00"},{"$f":"Time!IAK$23","v":"00:00:00"},{"$f":"Time!IAL$23","v":"00:00:00"},{"$f":"Time!IAM$23","v":"00:00:00"},{"$f":"Time!IAN$23","v":"00:00:00"},{"$f":"Time!IAO$23","v":"00:00:00"},{"$f":"Time!IAP$23","v":"00:00:00"},{"$f":"Time!IAQ$23","v":"00:00:00"},{"$f":"Time!IAR$23","v":"00:00:00"},{"$f":"Time!IAS$23","v":"00:00:00"},{"$f":"Time!IAT$23","v":"00:00:00"},{"$f":"Time!IAU$23","v":"00:00:00"},{"$f":"Time!IAV$23","v":"00:00:00"},{"$f":"Time!IAW$23","v":"00:00:00"},{"$f":"Time!IAX$23","v":"00:00:00"},{"$f":"Time!IAY$23","v":"00:00:00"},{"$f":"Time!IAZ$23","v":"00:00:00"},{"$f":"Time!IBA$23","v":"00:00:00"},{"$f":"Time!IBB$23","v":"00:00:00"},{"$f":"Time!IBC$23","v":"00:00:00"},{"$f":"Time!IBD$23","v":"00:00:00"},{"$f":"Time!IBE$23","v":"00:00:00"},{"$f":"Time!IBF$23","v":"00:00:00"},{"$f":"Time!IBG$23","v":"00:00:00"},{"$f":"Time!IBH$23","v":"00:00:00"},{"$f":"Time!IBI$23","v":"00:00:00"},{"$f":"Time!IBJ$23","v":"00:00:00"},{"$f":"Time!IBK$23","v":"00:00:00"},{"$f":"Time!IBL$23","v":"00:00:00"},{"$f":"Time!IBM$23","v":"00:00:00"},{"$f":"Time!IBN$23","v":"00:00:00"},{"$f":"Time!IBO$23","v":"00:00:00"},{"$f":"Time!IBP$23","v":"00:00:00"},{"$f":"Time!IBQ$23","v":"00:00:00"},{"$f":"Time!IBR$23","v":"00:00:00"},{"$f":"Time!IBS$23","v":"00:00:00"},{"$f":"Time!IBT$23","v":"00:00:00"},{"$f":"Time!IBU$23","v":"00:00:00"},{"$f":"Time!IBV$23","v":"00:00:00"},{"$f":"Time!IBW$23","v":"00:00:00"},{"$f":"Time!IBX$23","v":"00:00:00"},{"$f":"Time!IBY$23","v":"00:00:00"},{"$f":"Time!IBZ$23","v":"00:00:00"},{"$f":"Time!ICA$23","v":"00:00:00"},{"$f":"Time!ICB$23","v":"00:00:00"},{"$f":"Time!ICC$23","v":"00:00:00"},{"$f":"Time!ICD$23","v":"00:00:00"},{"$f":"Time!ICE$23","v":"00:00:00"},{"$f":"Time!ICF$23","v":"00:00:00"},{"$f":"Time!ICG$23","v":"00:00:00"},{"$f":"Time!ICH$23","v":"00:00:00"},{"$f":"Time!ICI$23","v":"00:00:00"},{"$f":"Time!ICJ$23","v":"00:00:00"},{"$f":"Time!ICK$23","v":"00:00:00"},{"$f":"Time!ICL$23","v":"00:00:00"},{"$f":"Time!ICM$23","v":"00:00:00"},{"$f":"Time!ICN$23","v":"00:00:00"},{"$f":"Time!ICO$23","v":"00:00:00"},{"$f":"Time!ICP$23","v":"00:00:00"},{"$f":"Time!ICQ$23","v":"00:00:00"},{"$f":"Time!ICR$23","v":"00:00:00"},{"$f":"Time!ICS$23","v":"00:00:00"},{"$f":"Time!ICT$23","v":"00:00:00"},{"$f":"Time!ICU$23","v":"00:00:00"},{"$f":"Time!ICV$23","v":"00:00:00"},{"$f":"Time!ICW$23","v":"00:00:00"},{"$f":"Time!ICX$23","v":"00:00:00"},{"$f":"Time!ICY$23","v":"00:00:00"},{"$f":"Time!ICZ$23","v":"00:00:00"},{"$f":"Time!IDA$23","v":"00:00:00"},{"$f":"Time!IDB$23","v":"00:00:00"},{"$f":"Time!IDC$23","v":"00:00:00"},{"$f":"Time!IDD$23","v":"00:00:00"},{"$f":"Time!IDE$23","v":"00:00:00"},{"$f":"Time!IDF$23","v":"00:00:00"},{"$f":"Time!IDG$23","v":"00:00:00"},{"$f":"Time!IDH$23","v":"00:00:00"},{"$f":"Time!IDI$23","v":"00:00:00"},{"$f":"Time!IDJ$23","v":"00:00:00"},{"$f":"Time!IDK$23","v":"00:00:00"},{"$f":"Time!IDL$23","v":"00:00:00"},{"$f":"Time!IDM$23","v":"00:00:00"},{"$f":"Time!IDN$23","v":"00:00:00"},{"$f":"Time!IDO$23","v":"00:00:00"},{"$f":"Time!IDP$23","v":"00:00:00"},{"$f":"Time!IDQ$23","v":"00:00:00"},{"$f":"Time!IDR$23","v":"00:00:00"},{"$f":"Time!IDS$23","v":"00:00:00"},{"$f":"Time!IDT$23","v":"00:00:00"},{"$f":"Time!IDU$23","v":"00:00:00"},{"$f":"Time!IDV$23","v":"00:00:00"},{"$f":"Time!IDW$23","v":"00:00:00"},{"$f":"Time!IDX$23","v":"00:00:00"},{"$f":"Time!IDY$23","v":"00:00:00"},{"$f":"Time!IDZ$23","v":"00:00:00"},{"$f":"Time!IEA$23","v":"00:00:00"},{"$f":"Time!IEB$23","v":"00:00:00"},{"$f":"Time!IEC$23","v":"00:00:00"},{"$f":"Time!IED$23","v":"00:00:00"},{"$f":"Time!IEE$23","v":"00:00:00"},{"$f":"Time!IEF$23","v":"00:00:00"},{"$f":"Time!IEG$23","v":"00:00:00"},{"$f":"Time!IEH$23","v":"00:00:00"},{"$f":"Time!IEI$23","v":"00:00:00"},{"$f":"Time!IEJ$23","v":"00:00:00"},{"$f":"Time!IEK$23","v":"00:00:00"},{"$f":"Time!IEL$23","v":"00:00:00"},{"$f":"Time!IEM$23","v":"00:00:00"},{"$f":"Time!IEN$23","v":"00:00:00"},{"$f":"Time!IEO$23","v":"00:00:00"},{"$f":"Time!IEP$23","v":"00:00:00"},{"$f":"Time!IEQ$23","v":"00:00:00"},{"$f":"Time!IER$23","v":"00:00:00"},{"$f":"Time!IES$23","v":"00:00:00"},{"$f":"Time!IET$23","v":"00:00:00"},{"$f":"Time!IEU$23","v":"00:00:00"},{"$f":"Time!IEV$23","v":"00:00:00"},{"$f":"Time!IEW$23","v":"00:00:00"},{"$f":"Time!IEX$23","v":"00:00:00"},{"$f":"Time!IEY$23","v":"00:00:00"},{"$f":"Time!IEZ$23","v":"00:00:00"},{"$f":"Time!IFA$23","v":"00:00:00"},{"$f":"Time!IFB$23","v":"00:00:00"},{"$f":"Time!IFC$23","v":"00:00:00"},{"$f":"Time!IFD$23","v":"00:00:00"},{"$f":"Time!IFE$23","v":"00:00:00"},{"$f":"Time!IFF$23","v":"00:00:00"},{"$f":"Time!IFG$23","v":"00:00:00"},{"$f":"Time!IFH$23","v":"00:00:00"},{"$f":"Time!IFI$23","v":"00:00:00"},{"$f":"Time!IFJ$23","v":"00:00:00"},{"$f":"Time!IFK$23","v":"00:00:00"},{"$f":"Time!IFL$23","v":"00:00:00"},{"$f":"Time!IFM$23","v":"00:00:00"},{"$f":"Time!IFN$23","v":"00:00:00"},{"$f":"Time!IFO$23","v":"00:00:00"},{"$f":"Time!IFP$23","v":"00:00:00"},{"$f":"Time!IFQ$23","v":"00:00:00"},{"$f":"Time!IFR$23","v":"00:00:00"},{"$f":"Time!IFS$23","v":"00:00:00"},{"$f":"Time!IFT$23","v":"00:00:00"},{"$f":"Time!IFU$23","v":"00:00:00"},{"$f":"Time!IFV$23","v":"00:00:00"},{"$f":"Time!IFW$23","v":"00:00:00"},{"$f":"Time!IFX$23","v":"00:00:00"},{"$f":"Time!IFY$23","v":"00:00:00"},{"$f":"Time!IFZ$23","v":"00:00:00"},{"$f":"Time!IGA$23","v":"00:00:00"},{"$f":"Time!IGB$23","v":"00:00:00"},{"$f":"Time!IGC$23","v":"00:00:00"},{"$f":"Time!IGD$23","v":"00:00:00"},{"$f":"Time!IGE$23","v":"00:00:00"},{"$f":"Time!IGF$23","v":"00:00:00"},{"$f":"Time!IGG$23","v":"00:00:00"},{"$f":"Time!IGH$23","v":"00:00:00"},{"$f":"Time!IGI$23","v":"00:00:00"},{"$f":"Time!IGJ$23","v":"00:00:00"},{"$f":"Time!IGK$23","v":"00:00:00"},{"$f":"Time!IGL$23","v":"00:00:00"},{"$f":"Time!IGM$23","v":"00:00:00"},{"$f":"Time!IGN$23","v":"00:00:00"},{"$f":"Time!IGO$23","v":"00:00:00"},{"$f":"Time!IGP$23","v":"00:00:00"},{"$f":"Time!IGQ$23","v":"00:00:00"},{"$f":"Time!IGR$23","v":"00:00:00"},{"$f":"Time!IGS$23","v":"00:00:00"},{"$f":"Time!IGT$23","v":"00:00:00"},{"$f":"Time!IGU$23","v":"00:00:00"},{"$f":"Time!IGV$23","v":"00:00:00"},{"$f":"Time!IGW$23","v":"00:00:00"},{"$f":"Time!IGX$23","v":"00:00:00"},{"$f":"Time!IGY$23","v":"00:00:00"},{"$f":"Time!IGZ$23","v":"00:00:00"},{"$f":"Time!IHA$23","v":"00:00:00"},{"$f":"Time!IHB$23","v":"00:00:00"},{"$f":"Time!IHC$23","v":"00:00:00"},{"$f":"Time!IHD$23","v":"00:00:00"},{"$f":"Time!IHE$23","v":"00:00:00"},{"$f":"Time!IHF$23","v":"00:00:00"},{"$f":"Time!IHG$23","v":"00:00:00"},{"$f":"Time!IHH$23","v":"00:00:00"},{"$f":"Time!IHI$23","v":"00:00:00"},{"$f":"Time!IHJ$23","v":"00:00:00"},{"$f":"Time!IHK$23","v":"00:00:00"},{"$f":"Time!IHL$23","v":"00:00:00"},{"$f":"Time!IHM$23","v":"00:00:00"},{"$f":"Time!IHN$23","v":"00:00:00"},{"$f":"Time!IHO$23","v":"00:00:00"},{"$f":"Time!IHP$23","v":"00:00:00"},{"$f":"Time!IHQ$23","v":"00:00:00"},{"$f":"Time!IHR$23","v":"00:00:00"},{"$f":"Time!IHS$23","v":"00:00:00"},{"$f":"Time!IHT$23","v":"00:00:00"},{"$f":"Time!IHU$23","v":"00:00:00"},{"$f":"Time!IHV$23","v":"00:00:00"},{"$f":"Time!IHW$23","v":"00:00:00"},{"$f":"Time!IHX$23","v":"00:00:00"},{"$f":"Time!IHY$23","v":"00:00:00"},{"$f":"Time!IHZ$23","v":"00:00:00"},{"$f":"Time!IIA$23","v":"00:00:00"},{"$f":"Time!IIB$23","v":"00:00:00"},{"$f":"Time!IIC$23","v":"00:00:00"},{"$f":"Time!IID$23","v":"00:00:00"},{"$f":"Time!IIE$23","v":"00:00:00"},{"$f":"Time!IIF$23","v":"00:00:00"},{"$f":"Time!IIG$23","v":"00:00:00"},{"$f":"Time!IIH$23","v":"00:00:00"},{"$f":"Time!III$23","v":"00:00:00"},{"$f":"Time!IIJ$23","v":"00:00:00"},{"$f":"Time!IIK$23","v":"00:00:00"},{"$f":"Time!IIL$23","v":"00:00:00"},{"$f":"Time!IIM$23","v":"00:00:00"},{"$f":"Time!IIN$23","v":"00:00:00"},{"$f":"Time!IIO$23","v":"00:00:00"},{"$f":"Time!IIP$23","v":"00:00:00"},{"$f":"Time!IIQ$23","v":"00:00:00"},{"$f":"Time!IIR$23","v":"00:00:00"},{"$f":"Time!IIS$23","v":"00:00:00"},{"$f":"Time!IIT$23","v":"00:00:00"},{"$f":"Time!IIU$23","v":"00:00:00"},{"$f":"Time!IIV$23","v":"00:00:00"},{"$f":"Time!IIW$23","v":"00:00:00"},{"$f":"Time!IIX$23","v":"00:00:00"},{"$f":"Time!IIY$23","v":"00:00:00"},{"$f":"Time!IIZ$23","v":"00:00:00"},{"$f":"Time!IJA$23","v":"00:00:00"},{"$f":"Time!IJB$23","v":"00:00:00"},{"$f":"Time!IJC$23","v":"00:00:00"},{"$f":"Time!IJD$23","v":"00:00:00"},{"$f":"Time!IJE$23","v":"00:00:00"},{"$f":"Time!IJF$23","v":"00:00:00"},{"$f":"Time!IJG$23","v":"00:00:00"},{"$f":"Time!IJH$23","v":"00:00:00"},{"$f":"Time!IJI$23","v":"00:00:00"},{"$f":"Time!IJJ$23","v":"00:00:00"},{"$f":"Time!IJK$23","v":"00:00:00"},{"$f":"Time!IJL$23","v":"00:00:00"},{"$f":"Time!IJM$23","v":"00:00:00"},{"$f":"Time!IJN$23","v":"00:00:00"},{"$f":"Time!IJO$23","v":"00:00:00"},{"$f":"Time!IJP$23","v":"00:00:00"},{"$f":"Time!IJQ$23","v":"00:00:00"},{"$f":"Time!IJR$23","v":"00:00:00"},{"$f":"Time!IJS$23","v":"00:00:00"},{"$f":"Time!IJT$23","v":"00:00:00"},{"$f":"Time!IJU$23","v":"00:00:00"},{"$f":"Time!IJV$23","v":"00:00:00"},{"$f":"Time!IJW$23","v":"00:00:00"},{"$f":"Time!IJX$23","v":"00:00:00"},{"$f":"Time!IJY$23","v":"00:00:00"},{"$f":"Time!IJZ$23","v":"00:00:00"},{"$f":"Time!IKA$23","v":"00:00:00"},{"$f":"Time!IKB$23","v":"00:00:00"},{"$f":"Time!IKC$23","v":"00:00:00"},{"$f":"Time!IKD$23","v":"00:00:00"},{"$f":"Time!IKE$23","v":"00:00:00"},{"$f":"Time!IKF$23","v":"00:00:00"},{"$f":"Time!IKG$23","v":"00:00:00"},{"$f":"Time!IKH$23","v":"00:00:00"},{"$f":"Time!IKI$23","v":"00:00:00"},{"$f":"Time!IKJ$23","v":"00:00:00"},{"$f":"Time!IKK$23","v":"00:00:00"},{"$f":"Time!IKL$23","v":"00:00:00"},{"$f":"Time!IKM$23","v":"00:00:00"},{"$f":"Time!IKN$23","v":"00:00:00"},{"$f":"Time!IKO$23","v":"00:00:00"},{"$f":"Time!IKP$23","v":"00:00:00"},{"$f":"Time!IKQ$23","v":"00:00:00"},{"$f":"Time!IKR$23","v":"00:00:00"},{"$f":"Time!IKS$23","v":"00:00:00"},{"$f":"Time!IKT$23","v":"00:00:00"},{"$f":"Time!IKU$23","v":"00:00:00"},{"$f":"Time!IKV$23","v":"00:00:00"},{"$f":"Time!IKW$23","v":"00:00:00"},{"$f":"Time!IKX$23","v":"00:00:00"},{"$f":"Time!IKY$23","v":"00:00:00"},{"$f":"Time!IKZ$23","v":"00:00:00"},{"$f":"Time!ILA$23","v":"00:00:00"},{"$f":"Time!ILB$23","v":"00:00:00"},{"$f":"Time!ILC$23","v":"00:00:00"},{"$f":"Time!ILD$23","v":"00:00:00"},{"$f":"Time!ILE$23","v":"00:00:00"},{"$f":"Time!ILF$23","v":"00:00:00"},{"$f":"Time!ILG$23","v":"00:00:00"},{"$f":"Time!ILH$23","v":"00:00:00"},{"$f":"Time!ILI$23","v":"00:00:00"},{"$f":"Time!ILJ$23","v":"00:00:00"},{"$f":"Time!ILK$23","v":"00:00:00"},{"$f":"Time!ILL$23","v":"00:00:00"},{"$f":"Time!ILM$23","v":"00:00:00"},{"$f":"Time!ILN$23","v":"00:00:00"},{"$f":"Time!ILO$23","v":"00:00:00"},{"$f":"Time!ILP$23","v":"00:00:00"},{"$f":"Time!ILQ$23","v":"00:00:00"},{"$f":"Time!ILR$23","v":"00:00:00"},{"$f":"Time!ILS$23","v":"00:00:00"},{"$f":"Time!ILT$23","v":"00:00:00"},{"$f":"Time!ILU$23","v":"00:00:00"},{"$f":"Time!ILV$23","v":"00:00:00"},{"$f":"Time!ILW$23","v":"00:00:00"},{"$f":"Time!ILX$23","v":"00:00:00"},{"$f":"Time!ILY$23","v":"00:00:00"},{"$f":"Time!ILZ$23","v":"00:00:00"},{"$f":"Time!IMA$23","v":"00:00:00"},{"$f":"Time!IMB$23","v":"00:00:00"},{"$f":"Time!IMC$23","v":"00:00:00"},{"$f":"Time!IMD$23","v":"00:00:00"},{"$f":"Time!IME$23","v":"00:00:00"},{"$f":"Time!IMF$23","v":"00:00:00"},{"$f":"Time!IMG$23","v":"00:00:00"},{"$f":"Time!IMH$23","v":"00:00:00"},{"$f":"Time!IMI$23","v":"00:00:00"},{"$f":"Time!IMJ$23","v":"00:00:00"},{"$f":"Time!IMK$23","v":"00:00:00"},{"$f":"Time!IML$23","v":"00:00:00"},{"$f":"Time!IMM$23","v":"00:00:00"},{"$f":"Time!IMN$23","v":"00:00:00"},{"$f":"Time!IMO$23","v":"00:00:00"},{"$f":"Time!IMP$23","v":"00:00:00"},{"$f":"Time!IMQ$23","v":"00:00:00"},{"$f":"Time!IMR$23","v":"00:00:00"},{"$f":"Time!IMS$23","v":"00:00:00"},{"$f":"Time!IMT$23","v":"00:00:00"},{"$f":"Time!IMU$23","v":"00:00:00"},{"$f":"Time!IMV$23","v":"00:00:00"},{"$f":"Time!IMW$23","v":"00:00:00"},{"$f":"Time!IMX$23","v":"00:00:00"},{"$f":"Time!IMY$23","v":"00:00:00"},{"$f":"Time!IMZ$23","v":"00:00:00"},{"$f":"Time!INA$23","v":"00:00:00"},{"$f":"Time!INB$23","v":"00:00:00"},{"$f":"Time!INC$23","v":"00:00:00"},{"$f":"Time!IND$23","v":"00:00:00"},{"$f":"Time!INE$23","v":"00:00:00"},{"$f":"Time!INF$23","v":"00:00:00"},{"$f":"Time!ING$23","v":"00:00:00"},{"$f":"Time!INH$23","v":"00:00:00"},{"$f":"Time!INI$23","v":"00:00:00"},{"$f":"Time!INJ$23","v":"00:00:00"},{"$f":"Time!INK$23","v":"00:00:00"},{"$f":"Time!INL$23","v":"00:00:00"},{"$f":"Time!INM$23","v":"00:00:00"},{"$f":"Time!INN$23","v":"00:00:00"},{"$f":"Time!INO$23","v":"00:00:00"},{"$f":"Time!INP$23","v":"00:00:00"},{"$f":"Time!INQ$23","v":"00:00:00"},{"$f":"Time!INR$23","v":"00:00:00"},{"$f":"Time!INS$23","v":"00:00:00"},{"$f":"Time!INT$23","v":"00:00:00"},{"$f":"Time!INU$23","v":"00:00:00"},{"$f":"Time!INV$23","v":"00:00:00"},{"$f":"Time!INW$23","v":"00:00:00"},{"$f":"Time!INX$23","v":"00:00:00"},{"$f":"Time!INY$23","v":"00:00:00"},{"$f":"Time!INZ$23","v":"00:00:00"},{"$f":"Time!IOA$23","v":"00:00:00"},{"$f":"Time!IOB$23","v":"00:00:00"},{"$f":"Time!IOC$23","v":"00:00:00"},{"$f":"Time!IOD$23","v":"00:00:00"},{"$f":"Time!IOE$23","v":"00:00:00"},{"$f":"Time!IOF$23","v":"00:00:00"},{"$f":"Time!IOG$23","v":"00:00:00"},{"$f":"Time!IOH$23","v":"00:00:00"},{"$f":"Time!IOI$23","v":"00:00:00"},{"$f":"Time!IOJ$23","v":"00:00:00"},{"$f":"Time!IOK$23","v":"00:00:00"},{"$f":"Time!IOL$23","v":"00:00:00"},{"$f":"Time!IOM$23","v":"00:00:00"},{"$f":"Time!ION$23","v":"00:00:00"},{"$f":"Time!IOO$23","v":"00:00:00"},{"$f":"Time!IOP$23","v":"00:00:00"},{"$f":"Time!IOQ$23","v":"00:00:00"},{"$f":"Time!IOR$23","v":"00:00:00"},{"$f":"Time!IOS$23","v":"00:00:00"},{"$f":"Time!IOT$23","v":"00:00:00"},{"$f":"Time!IOU$23","v":"00:00:00"},{"$f":"Time!IOV$23","v":"00:00:00"},{"$f":"Time!IOW$23","v":"00:00:00"},{"$f":"Time!IOX$23","v":"00:00:00"},{"$f":"Time!IOY$23","v":"00:00:00"},{"$f":"Time!IOZ$23","v":"00:00:00"},{"$f":"Time!IPA$23","v":"00:00:00"},{"$f":"Time!IPB$23","v":"00:00:00"},{"$f":"Time!IPC$23","v":"00:00:00"},{"$f":"Time!IPD$23","v":"00:00:00"},{"$f":"Time!IPE$23","v":"00:00:00"},{"$f":"Time!IPF$23","v":"00:00:00"},{"$f":"Time!IPG$23","v":"00:00:00"},{"$f":"Time!IPH$23","v":"00:00:00"},{"$f":"Time!IPI$23","v":"00:00:00"},{"$f":"Time!IPJ$23","v":"00:00:00"},{"$f":"Time!IPK$23","v":"00:00:00"},{"$f":"Time!IPL$23","v":"00:00:00"},{"$f":"Time!IPM$23","v":"00:00:00"},{"$f":"Time!IPN$23","v":"00:00:00"},{"$f":"Time!IPO$23","v":"00:00:00"},{"$f":"Time!IPP$23","v":"00:00:00"},{"$f":"Time!IPQ$23","v":"00:00:00"},{"$f":"Time!IPR$23","v":"00:00:00"},{"$f":"Time!IPS$23","v":"00:00:00"},{"$f":"Time!IPT$23","v":"00:00:00"},{"$f":"Time!IPU$23","v":"00:00:00"},{"$f":"Time!IPV$23","v":"00:00:00"},{"$f":"Time!IPW$23","v":"00:00:00"},{"$f":"Time!IPX$23","v":"00:00:00"},{"$f":"Time!IPY$23","v":"00:00:00"},{"$f":"Time!IPZ$23","v":"00:00:00"},{"$f":"Time!IQA$23","v":"00:00:00"},{"$f":"Time!IQB$23","v":"00:00:00"},{"$f":"Time!IQC$23","v":"00:00:00"},{"$f":"Time!IQD$23","v":"00:00:00"},{"$f":"Time!IQE$23","v":"00:00:00"},{"$f":"Time!IQF$23","v":"00:00:00"},{"$f":"Time!IQG$23","v":"00:00:00"},{"$f":"Time!IQH$23","v":"00:00:00"},{"$f":"Time!IQI$23","v":"00:00:00"},{"$f":"Time!IQJ$23","v":"00:00:00"},{"$f":"Time!IQK$23","v":"00:00:00"},{"$f":"Time!IQL$23","v":"00:00:00"},{"$f":"Time!IQM$23","v":"00:00:00"},{"$f":"Time!IQN$23","v":"00:00:00"},{"$f":"Time!IQO$23","v":"00:00:00"},{"$f":"Time!IQP$23","v":"00:00:00"},{"$f":"Time!IQQ$23","v":"00:00:00"},{"$f":"Time!IQR$23","v":"00:00:00"},{"$f":"Time!IQS$23","v":"00:00:00"},{"$f":"Time!IQT$23","v":"00:00:00"},{"$f":"Time!IQU$23","v":"00:00:00"},{"$f":"Time!IQV$23","v":"00:00:00"},{"$f":"Time!IQW$23","v":"00:00:00"},{"$f":"Time!IQX$23","v":"00:00:00"},{"$f":"Time!IQY$23","v":"00:00:00"},{"$f":"Time!IQZ$23","v":"00:00:00"},{"$f":"Time!IRA$23","v":"00:00:00"},{"$f":"Time!IRB$23","v":"00:00:00"},{"$f":"Time!IRC$23","v":"00:00:00"},{"$f":"Time!IRD$23","v":"00:00:00"},{"$f":"Time!IRE$23","v":"00:00:00"},{"$f":"Time!IRF$23","v":"00:00:00"},{"$f":"Time!IRG$23","v":"00:00:00"},{"$f":"Time!IRH$23","v":"00:00:00"},{"$f":"Time!IRI$23","v":"00:00:00"},{"$f":"Time!IRJ$23","v":"00:00:00"},{"$f":"Time!IRK$23","v":"00:00:00"},{"$f":"Time!IRL$23","v":"00:00:00"},{"$f":"Time!IRM$23","v":"00:00:00"},{"$f":"Time!IRN$23","v":"00:00:00"},{"$f":"Time!IRO$23","v":"00:00:00"},{"$f":"Time!IRP$23","v":"00:00:00"},{"$f":"Time!IRQ$23","v":"00:00:00"},{"$f":"Time!IRR$23","v":"00:00:00"},{"$f":"Time!IRS$23","v":"00:00:00"},{"$f":"Time!IRT$23","v":"00:00:00"},{"$f":"Time!IRU$23","v":"00:00:00"},{"$f":"Time!IRV$23","v":"00:00:00"},{"$f":"Time!IRW$23","v":"00:00:00"},{"$f":"Time!IRX$23","v":"00:00:00"},{"$f":"Time!IRY$23","v":"00:00:00"},{"$f":"Time!IRZ$23","v":"00:00:00"},{"$f":"Time!ISA$23","v":"00:00:00"},{"$f":"Time!ISB$23","v":"00:00:00"},{"$f":"Time!ISC$23","v":"00:00:00"},{"$f":"Time!ISD$23","v":"00:00:00"},{"$f":"Time!ISE$23","v":"00:00:00"},{"$f":"Time!ISF$23","v":"00:00:00"},{"$f":"Time!ISG$23","v":"00:00:00"},{"$f":"Time!ISH$23","v":"00:00:00"},{"$f":"Time!ISI$23","v":"00:00:00"},{"$f":"Time!ISJ$23","v":"00:00:00"},{"$f":"Time!ISK$23","v":"00:00:00"},{"$f":"Time!ISL$23","v":"00:00:00"},{"$f":"Time!ISM$23","v":"00:00:00"},{"$f":"Time!ISN$23","v":"00:00:00"},{"$f":"Time!ISO$23","v":"00:00:00"},{"$f":"Time!ISP$23","v":"00:00:00"},{"$f":"Time!ISQ$23","v":"00:00:00"},{"$f":"Time!ISR$23","v":"00:00:00"},{"$f":"Time!ISS$23","v":"00:00:00"},{"$f":"Time!IST$23","v":"00:00:00"},{"$f":"Time!ISU$23","v":"00:00:00"},{"$f":"Time!ISV$23","v":"00:00:00"},{"$f":"Time!ISW$23","v":"00:00:00"},{"$f":"Time!ISX$23","v":"00:00:00"},{"$f":"Time!ISY$23","v":"00:00:00"},{"$f":"Time!ISZ$23","v":"00:00:00"},{"$f":"Time!ITA$23","v":"00:00:00"},{"$f":"Time!ITB$23","v":"00:00:00"},{"$f":"Time!ITC$23","v":"00:00:00"},{"$f":"Time!ITD$23","v":"00:00:00"},{"$f":"Time!ITE$23","v":"00:00:00"},{"$f":"Time!ITF$23","v":"00:00:00"},{"$f":"Time!ITG$23","v":"00:00:00"},{"$f":"Time!ITH$23","v":"00:00:00"},{"$f":"Time!ITI$23","v":"00:00:00"},{"$f":"Time!ITJ$23","v":"00:00:00"},{"$f":"Time!ITK$23","v":"00:00:00"},{"$f":"Time!ITL$23","v":"00:00:00"},{"$f":"Time!ITM$23","v":"00:00:00"},{"$f":"Time!ITN$23","v":"00:00:00"},{"$f":"Time!ITO$23","v":"00:00:00"},{"$f":"Time!ITP$23","v":"00:00:00"},{"$f":"Time!ITQ$23","v":"00:00:00"},{"$f":"Time!ITR$23","v":"00:00:00"},{"$f":"Time!ITS$23","v":"00:00:00"},{"$f":"Time!ITT$23","v":"00:00:00"},{"$f":"Time!ITU$23","v":"00:00:00"},{"$f":"Time!ITV$23","v":"00:00:00"},{"$f":"Time!ITW$23","v":"00:00:00"},{"$f":"Time!ITX$23","v":"00:00:00"},{"$f":"Time!ITY$23","v":"00:00:00"},{"$f":"Time!ITZ$23","v":"00:00:00"},{"$f":"Time!IUA$23","v":"00:00:00"},{"$f":"Time!IUB$23","v":"00:00:00"},{"$f":"Time!IUC$23","v":"00:00:00"},{"$f":"Time!IUD$23","v":"00:00:00"},{"$f":"Time!IUE$23","v":"00:00:00"},{"$f":"Time!IUF$23","v":"00:00:00"},{"$f":"Time!IUG$23","v":"00:00:00"},{"$f":"Time!IUH$23","v":"00:00:00"},{"$f":"Time!IUI$23","v":"00:00:00"},{"$f":"Time!IUJ$23","v":"00:00:00"},{"$f":"Time!IUK$23","v":"00:00:00"},{"$f":"Time!IUL$23","v":"00:00:00"},{"$f":"Time!IUM$23","v":"00:00:00"},{"$f":"Time!IUN$23","v":"00:00:00"},{"$f":"Time!IUO$23","v":"00:00:00"},{"$f":"Time!IUP$23","v":"00:00:00"},{"$f":"Time!IUQ$23","v":"00:00:00"},{"$f":"Time!IUR$23","v":"00:00:00"},{"$f":"Time!IUS$23","v":"00:00:00"},{"$f":"Time!IUT$23","v":"00:00:00"},{"$f":"Time!IUU$23","v":"00:00:00"},{"$f":"Time!IUV$23","v":"00:00:00"},{"$f":"Time!IUW$23","v":"00:00:00"},{"$f":"Time!IUX$23","v":"00:00:00"},{"$f":"Time!IUY$23","v":"00:00:00"},{"$f":"Time!IUZ$23","v":"00:00:00"},{"$f":"Time!IVA$23","v":"00:00:00"},{"$f":"Time!IVB$23","v":"00:00:00"},{"$f":"Time!IVC$23","v":"00:00:00"},{"$f":"Time!IVD$23","v":"00:00:00"},{"$f":"Time!IVE$23","v":"00:00:00"},{"$f":"Time!IVF$23","v":"00:00:00"},{"$f":"Time!IVG$23","v":"00:00:00"},{"$f":"Time!IVH$23","v":"00:00:00"},{"$f":"Time!IVI$23","v":"00:00:00"},{"$f":"Time!IVJ$23","v":"00:00:00"},{"$f":"Time!IVK$23","v":"00:00:00"},{"$f":"Time!IVL$23","v":"00:00:00"},{"$f":"Time!IVM$23","v":"00:00:00"},{"$f":"Time!IVN$23","v":"00:00:00"},{"$f":"Time!IVO$23","v":"00:00:00"},{"$f":"Time!IVP$23","v":"00:00:00"},{"$f":"Time!IVQ$23","v":"00:00:00"},{"$f":"Time!IVR$23","v":"00:00:00"},{"$f":"Time!IVS$23","v":"00:00:00"},{"$f":"Time!IVT$23","v":"00:00:00"},{"$f":"Time!IVU$23","v":"00:00:00"},{"$f":"Time!IVV$23","v":"00:00:00"},{"$f":"Time!IVW$23","v":"00:00:00"},{"$f":"Time!IVX$23","v":"00:00:00"},{"$f":"Time!IVY$23","v":"00:00:00"},{"$f":"Time!IVZ$23","v":"00:00:00"},{"$f":"Time!IWA$23","v":"00:00:00"},{"$f":"Time!IWB$23","v":"00:00:00"},{"$f":"Time!IWC$23","v":"00:00:00"},{"$f":"Time!IWD$23","v":"00:00:00"},{"$f":"Time!IWE$23","v":"00:00:00"},{"$f":"Time!IWF$23","v":"00:00:00"},{"$f":"Time!IWG$23","v":"00:00:00"},{"$f":"Time!IWH$23","v":"00:00:00"},{"$f":"Time!IWI$23","v":"00:00:00"},{"$f":"Time!IWJ$23","v":"00:00:00"},{"$f":"Time!IWK$23","v":"00:00:00"},{"$f":"Time!IWL$23","v":"00:00:00"},{"$f":"Time!IWM$23","v":"00:00:00"},{"$f":"Time!IWN$23","v":"00:00:00"},{"$f":"Time!IWO$23","v":"00:00:00"},{"$f":"Time!IWP$23","v":"00:00:00"},{"$f":"Time!IWQ$23","v":"00:00:00"},{"$f":"Time!IWR$23","v":"00:00:00"},{"$f":"Time!IWS$23","v":"00:00:00"},{"$f":"Time!IWT$23","v":"00:00:00"},{"$f":"Time!IWU$23","v":"00:00:00"},{"$f":"Time!IWV$23","v":"00:00:00"},{"$f":"Time!IWW$23","v":"00:00:00"},{"$f":"Time!IWX$23","v":"00:00:00"},{"$f":"Time!IWY$23","v":"00:00:00"},{"$f":"Time!IWZ$23","v":"00:00:00"},{"$f":"Time!IXA$23","v":"00:00:00"},{"$f":"Time!IXB$23","v":"00:00:00"},{"$f":"Time!IXC$23","v":"00:00:00"},{"$f":"Time!IXD$23","v":"00:00:00"},{"$f":"Time!IXE$23","v":"00:00:00"},{"$f":"Time!IXF$23","v":"00:00:00"},{"$f":"Time!IXG$23","v":"00:00:00"},{"$f":"Time!IXH$23","v":"00:00:00"},{"$f":"Time!IXI$23","v":"00:00:00"},{"$f":"Time!IXJ$23","v":"00:00:00"},{"$f":"Time!IXK$23","v":"00:00:00"},{"$f":"Time!IXL$23","v":"00:00:00"},{"$f":"Time!IXM$23","v":"00:00:00"},{"$f":"Time!IXN$23","v":"00:00:00"},{"$f":"Time!IXO$23","v":"00:00:00"},{"$f":"Time!IXP$23","v":"00:00:00"},{"$f":"Time!IXQ$23","v":"00:00:00"},{"$f":"Time!IXR$23","v":"00:00:00"},{"$f":"Time!IXS$23","v":"00:00:00"},{"$f":"Time!IXT$23","v":"00:00:00"},{"$f":"Time!IXU$23","v":"00:00:00"},{"$f":"Time!IXV$23","v":"00:00:00"},{"$f":"Time!IXW$23","v":"00:00:00"},{"$f":"Time!IXX$23","v":"00:00:00"},{"$f":"Time!IXY$23","v":"00:00:00"},{"$f":"Time!IXZ$23","v":"00:00:00"},{"$f":"Time!IYA$23","v":"00:00:00"},{"$f":"Time!IYB$23","v":"00:00:00"},{"$f":"Time!IYC$23","v":"00:00:00"},{"$f":"Time!IYD$23","v":"00:00:00"},{"$f":"Time!IYE$23","v":"00:00:00"},{"$f":"Time!IYF$23","v":"00:00:00"},{"$f":"Time!IYG$23","v":"00:00:00"},{"$f":"Time!IYH$23","v":"00:00:00"},{"$f":"Time!IYI$23","v":"00:00:00"},{"$f":"Time!IYJ$23","v":"00:00:00"},{"$f":"Time!IYK$23","v":"00:00:00"},{"$f":"Time!IYL$23","v":"00:00:00"},{"$f":"Time!IYM$23","v":"00:00:00"},{"$f":"Time!IYN$23","v":"00:00:00"},{"$f":"Time!IYO$23","v":"00:00:00"},{"$f":"Time!IYP$23","v":"00:00:00"},{"$f":"Time!IYQ$23","v":"00:00:00"},{"$f":"Time!IYR$23","v":"00:00:00"},{"$f":"Time!IYS$23","v":"00:00:00"},{"$f":"Time!IYT$23","v":"00:00:00"},{"$f":"Time!IYU$23","v":"00:00:00"},{"$f":"Time!IYV$23","v":"00:00:00"},{"$f":"Time!IYW$23","v":"00:00:00"},{"$f":"Time!IYX$23","v":"00:00:00"},{"$f":"Time!IYY$23","v":"00:00:00"},{"$f":"Time!IYZ$23","v":"00:00:00"},{"$f":"Time!IZA$23","v":"00:00:00"},{"$f":"Time!IZB$23","v":"00:00:00"},{"$f":"Time!IZC$23","v":"00:00:00"},{"$f":"Time!IZD$23","v":"00:00:00"},{"$f":"Time!IZE$23","v":"00:00:00"},{"$f":"Time!IZF$23","v":"00:00:00"},{"$f":"Time!IZG$23","v":"00:00:00"},{"$f":"Time!IZH$23","v":"00:00:00"},{"$f":"Time!IZI$23","v":"00:00:00"},{"$f":"Time!IZJ$23","v":"00:00:00"},{"$f":"Time!IZK$23","v":"00:00:00"},{"$f":"Time!IZL$23","v":"00:00:00"},{"$f":"Time!IZM$23","v":"00:00:00"},{"$f":"Time!IZN$23","v":"00:00:00"},{"$f":"Time!IZO$23","v":"00:00:00"},{"$f":"Time!IZP$23","v":"00:00:00"},{"$f":"Time!IZQ$23","v":"00:00:00"},{"$f":"Time!IZR$23","v":"00:00:00"},{"$f":"Time!IZS$23","v":"00:00:00"},{"$f":"Time!IZT$23","v":"00:00:00"},{"$f":"Time!IZU$23","v":"00:00:00"},{"$f":"Time!IZV$23","v":"00:00:00"},{"$f":"Time!IZW$23","v":"00:00:00"},{"$f":"Time!IZX$23","v":"00:00:00"},{"$f":"Time!IZY$23","v":"00:00:00"},{"$f":"Time!IZZ$23","v":"00:00:00"},{"$f":"Time!JAA$23","v":"00:00:00"},{"$f":"Time!JAB$23","v":"00:00:00"},{"$f":"Time!JAC$23","v":"00:00:00"},{"$f":"Time!JAD$23","v":"00:00:00"},{"$f":"Time!JAE$23","v":"00:00:00"},{"$f":"Time!JAF$23","v":"00:00:00"},{"$f":"Time!JAG$23","v":"00:00:00"},{"$f":"Time!JAH$23","v":"00:00:00"},{"$f":"Time!JAI$23","v":"00:00:00"},{"$f":"Time!JAJ$23","v":"00:00:00"},{"$f":"Time!JAK$23","v":"00:00:00"},{"$f":"Time!JAL$23","v":"00:00:00"},{"$f":"Time!JAM$23","v":"00:00:00"},{"$f":"Time!JAN$23","v":"00:00:00"},{"$f":"Time!JAO$23","v":"00:00:00"},{"$f":"Time!JAP$23","v":"00:00:00"},{"$f":"Time!JAQ$23","v":"00:00:00"},{"$f":"Time!JAR$23","v":"00:00:00"},{"$f":"Time!JAS$23","v":"00:00:00"},{"$f":"Time!JAT$23","v":"00:00:00"},{"$f":"Time!JAU$23","v":"00:00:00"},{"$f":"Time!JAV$23","v":"00:00:00"},{"$f":"Time!JAW$23","v":"00:00:00"},{"$f":"Time!JAX$23","v":"00:00:00"},{"$f":"Time!JAY$23","v":"00:00:00"},{"$f":"Time!JAZ$23","v":"00:00:00"},{"$f":"Time!JBA$23","v":"00:00:00"},{"$f":"Time!JBB$23","v":"00:00:00"},{"$f":"Time!JBC$23","v":"00:00:00"},{"$f":"Time!JBD$23","v":"00:00:00"},{"$f":"Time!JBE$23","v":"00:00:00"},{"$f":"Time!JBF$23","v":"00:00:00"},{"$f":"Time!JBG$23","v":"00:00:00"},{"$f":"Time!JBH$23","v":"00:00:00"},{"$f":"Time!JBI$23","v":"00:00:00"},{"$f":"Time!JBJ$23","v":"00:00:00"},{"$f":"Time!JBK$23","v":"00:00:00"},{"$f":"Time!JBL$23","v":"00:00:00"},{"$f":"Time!JBM$23","v":"00:00:00"},{"$f":"Time!JBN$23","v":"00:00:00"},{"$f":"Time!JBO$23","v":"00:00:00"},{"$f":"Time!JBP$23","v":"00:00:00"},{"$f":"Time!JBQ$23","v":"00:00:00"},{"$f":"Time!JBR$23","v":"00:00:00"},{"$f":"Time!JBS$23","v":"00:00:00"},{"$f":"Time!JBT$23","v":"00:00:00"},{"$f":"Time!JBU$23","v":"00:00:00"},{"$f":"Time!JBV$23","v":"00:00:00"},{"$f":"Time!JBW$23","v":"00:00:00"},{"$f":"Time!JBX$23","v":"00:00:00"},{"$f":"Time!JBY$23","v":"00:00:00"},{"$f":"Time!JBZ$23","v":"00:00:00"},{"$f":"Time!JCA$23","v":"00:00:00"},{"$f":"Time!JCB$23","v":"00:00:00"},{"$f":"Time!JCC$23","v":"00:00:00"},{"$f":"Time!JCD$23","v":"00:00:00"},{"$f":"Time!JCE$23","v":"00:00:00"},{"$f":"Time!JCF$23","v":"00:00:00"},{"$f":"Time!JCG$23","v":"00:00:00"},{"$f":"Time!JCH$23","v":"00:00:00"},{"$f":"Time!JCI$23","v":"00:00:00"},{"$f":"Time!JCJ$23","v":"00:00:00"},{"$f":"Time!JCK$23","v":"00:00:00"},{"$f":"Time!JCL$23","v":"00:00:00"},{"$f":"Time!JCM$23","v":"00:00:00"},{"$f":"Time!JCN$23","v":"00:00:00"},{"$f":"Time!JCO$23","v":"00:00:00"},{"$f":"Time!JCP$23","v":"00:00:00"},{"$f":"Time!JCQ$23","v":"00:00:00"},{"$f":"Time!JCR$23","v":"00:00:00"},{"$f":"Time!JCS$23","v":"00:00:00"},{"$f":"Time!JCT$23","v":"00:00:00"},{"$f":"Time!JCU$23","v":"00:00:00"},{"$f":"Time!JCV$23","v":"00:00:00"},{"$f":"Time!JCW$23","v":"00:00:00"},{"$f":"Time!JCX$23","v":"00:00:00"},{"$f":"Time!JCY$23","v":"00:00:00"},{"$f":"Time!JCZ$23","v":"00:00:00"},{"$f":"Time!JDA$23","v":"00:00:00"},{"$f":"Time!JDB$23","v":"00:00:00"},{"$f":"Time!JDC$23","v":"00:00:00"},{"$f":"Time!JDD$23","v":"00:00:00"},{"$f":"Time!JDE$23","v":"00:00:00"},{"$f":"Time!JDF$23","v":"00:00:00"},{"$f":"Time!JDG$23","v":"00:00:00"},{"$f":"Time!JDH$23","v":"00:00:00"},{"$f":"Time!JDI$23","v":"00:00:00"},{"$f":"Time!JDJ$23","v":"00:00:00"},{"$f":"Time!JDK$23","v":"00:00:00"},{"$f":"Time!JDL$23","v":"00:00:00"},{"$f":"Time!JDM$23","v":"00:00:00"},{"$f":"Time!JDN$23","v":"00:00:00"},{"$f":"Time!JDO$23","v":"00:00:00"},{"$f":"Time!JDP$23","v":"00:00:00"},{"$f":"Time!JDQ$23","v":"00:00:00"},{"$f":"Time!JDR$23","v":"00:00:00"},{"$f":"Time!JDS$23","v":"00:00:00"},{"$f":"Time!JDT$23","v":"00:00:00"},{"$f":"Time!JDU$23","v":"00:00:00"},{"$f":"Time!JDV$23","v":"00:00:00"},{"$f":"Time!JDW$23","v":"00:00:00"},{"$f":"Time!JDX$23","v":"00:00:00"},{"$f":"Time!JDY$23","v":"00:00:00"},{"$f":"Time!JDZ$23","v":"00:00:00"},{"$f":"Time!JEA$23","v":"00:00:00"},{"$f":"Time!JEB$23","v":"00:00:00"},{"$f":"Time!JEC$23","v":"00:00:00"},{"$f":"Time!JED$23","v":"00:00:00"},{"$f":"Time!JEE$23","v":"00:00:00"},{"$f":"Time!JEF$23","v":"00:00:00"},{"$f":"Time!JEG$23","v":"00:00:00"},{"$f":"Time!JEH$23","v":"00:00:00"},{"$f":"Time!JEI$23","v":"00:00:00"},{"$f":"Time!JEJ$23","v":"00:00:00"},{"$f":"Time!JEK$23","v":"00:00:00"},{"$f":"Time!JEL$23","v":"00:00:00"},{"$f":"Time!JEM$23","v":"00:00:00"},{"$f":"Time!JEN$23","v":"00:00:00"},{"$f":"Time!JEO$23","v":"00:00:00"},{"$f":"Time!JEP$23","v":"00:00:00"},{"$f":"Time!JEQ$23","v":"00:00:00"},{"$f":"Time!JER$23","v":"00:00:00"},{"$f":"Time!JES$23","v":"00:00:00"},{"$f":"Time!JET$23","v":"00:00:00"},{"$f":"Time!JEU$23","v":"00:00:00"},{"$f":"Time!JEV$23","v":"00:00:00"},{"$f":"Time!JEW$23","v":"00:00:00"},{"$f":"Time!JEX$23","v":"00:00:00"},{"$f":"Time!JEY$23","v":"00:00:00"},{"$f":"Time!JEZ$23","v":"00:00:00"},{"$f":"Time!JFA$23","v":"00:00:00"},{"$f":"Time!JFB$23","v":"00:00:00"},{"$f":"Time!JFC$23","v":"00:00:00"},{"$f":"Time!JFD$23","v":"00:00:00"},{"$f":"Time!JFE$23","v":"00:00:00"},{"$f":"Time!JFF$23","v":"00:00:00"},{"$f":"Time!JFG$23","v":"00:00:00"},{"$f":"Time!JFH$23","v":"00:00:00"},{"$f":"Time!JFI$23","v":"00:00:00"},{"$f":"Time!JFJ$23","v":"00:00:00"},{"$f":"Time!JFK$23","v":"00:00:00"},{"$f":"Time!JFL$23","v":"00:00:00"},{"$f":"Time!JFM$23","v":"00:00:00"},{"$f":"Time!JFN$23","v":"00:00:00"},{"$f":"Time!JFO$23","v":"00:00:00"},{"$f":"Time!JFP$23","v":"00:00:00"},{"$f":"Time!JFQ$23","v":"00:00:00"},{"$f":"Time!JFR$23","v":"00:00:00"},{"$f":"Time!JFS$23","v":"00:00:00"},{"$f":"Time!JFT$23","v":"00:00:00"},{"$f":"Time!JFU$23","v":"00:00:00"},{"$f":"Time!JFV$23","v":"00:00:00"},{"$f":"Time!JFW$23","v":"00:00:00"},{"$f":"Time!JFX$23","v":"00:00:00"},{"$f":"Time!JFY$23","v":"00:00:00"},{"$f":"Time!JFZ$23","v":"00:00:00"},{"$f":"Time!JGA$23","v":"00:00:00"},{"$f":"Time!JGB$23","v":"00:00:00"},{"$f":"Time!JGC$23","v":"00:00:00"},{"$f":"Time!JGD$23","v":"00:00:00"},{"$f":"Time!JGE$23","v":"00:00:00"},{"$f":"Time!JGF$23","v":"00:00:00"},{"$f":"Time!JGG$23","v":"00:00:00"},{"$f":"Time!JGH$23","v":"00:00:00"},{"$f":"Time!JGI$23","v":"00:00:00"},{"$f":"Time!JGJ$23","v":"00:00:00"},{"$f":"Time!JGK$23","v":"00:00:00"},{"$f":"Time!JGL$23","v":"00:00:00"},{"$f":"Time!JGM$23","v":"00:00:00"},{"$f":"Time!JGN$23","v":"00:00:00"},{"$f":"Time!JGO$23","v":"00:00:00"},{"$f":"Time!JGP$23","v":"00:00:00"},{"$f":"Time!JGQ$23","v":"00:00:00"},{"$f":"Time!JGR$23","v":"00:00:00"},{"$f":"Time!JGS$23","v":"00:00:00"},{"$f":"Time!JGT$23","v":"00:00:00"},{"$f":"Time!JGU$23","v":"00:00:00"},{"$f":"Time!JGV$23","v":"00:00:00"},{"$f":"Time!JGW$23","v":"00:00:00"},{"$f":"Time!JGX$23","v":"00:00:00"},{"$f":"Time!JGY$23","v":"00:00:00"},{"$f":"Time!JGZ$23","v":"00:00:00"},{"$f":"Time!JHA$23","v":"00:00:00"},{"$f":"Time!JHB$23","v":"00:00:00"},{"$f":"Time!JHC$23","v":"00:00:00"},{"$f":"Time!JHD$23","v":"00:00:00"},{"$f":"Time!JHE$23","v":"00:00:00"},{"$f":"Time!JHF$23","v":"00:00:00"},{"$f":"Time!JHG$23","v":"00:00:00"},{"$f":"Time!JHH$23","v":"00:00:00"},{"$f":"Time!JHI$23","v":"00:00:00"},{"$f":"Time!JHJ$23","v":"00:00:00"},{"$f":"Time!JHK$23","v":"00:00:00"},{"$f":"Time!JHL$23","v":"00:00:00"},{"$f":"Time!JHM$23","v":"00:00:00"},{"$f":"Time!JHN$23","v":"00:00:00"},{"$f":"Time!JHO$23","v":"00:00:00"},{"$f":"Time!JHP$23","v":"00:00:00"},{"$f":"Time!JHQ$23","v":"00:00:00"},{"$f":"Time!JHR$23","v":"00:00:00"},{"$f":"Time!JHS$23","v":"00:00:00"},{"$f":"Time!JHT$23","v":"00:00:00"},{"$f":"Time!JHU$23","v":"00:00:00"},{"$f":"Time!JHV$23","v":"00:00:00"},{"$f":"Time!JHW$23","v":"00:00:00"},{"$f":"Time!JHX$23","v":"00:00:00"},{"$f":"Time!JHY$23","v":"00:00:00"},{"$f":"Time!JHZ$23","v":"00:00:00"},{"$f":"Time!JIA$23","v":"00:00:00"},{"$f":"Time!JIB$23","v":"00:00:00"},{"$f":"Time!JIC$23","v":"00:00:00"},{"$f":"Time!JID$23","v":"00:00:00"},{"$f":"Time!JIE$23","v":"00:00:00"},{"$f":"Time!JIF$23","v":"00:00:00"},{"$f":"Time!JIG$23","v":"00:00:00"},{"$f":"Time!JIH$23","v":"00:00:00"},{"$f":"Time!JII$23","v":"00:00:00"},{"$f":"Time!JIJ$23","v":"00:00:00"},{"$f":"Time!JIK$23","v":"00:00:00"},{"$f":"Time!JIL$23","v":"00:00:00"},{"$f":"Time!JIM$23","v":"00:00:00"},{"$f":"Time!JIN$23","v":"00:00:00"},{"$f":"Time!JIO$23","v":"00:00:00"},{"$f":"Time!JIP$23","v":"00:00:00"},{"$f":"Time!JIQ$23","v":"00:00:00"},{"$f":"Time!JIR$23","v":"00:00:00"},{"$f":"Time!JIS$23","v":"00:00:00"},{"$f":"Time!JIT$23","v":"00:00:00"},{"$f":"Time!JIU$23","v":"00:00:00"},{"$f":"Time!JIV$23","v":"00:00:00"},{"$f":"Time!JIW$23","v":"00:00:00"},{"$f":"Time!JIX$23","v":"00:00:00"},{"$f":"Time!JIY$23","v":"00:00:00"},{"$f":"Time!JIZ$23","v":"00:00:00"},{"$f":"Time!JJA$23","v":"00:00:00"},{"$f":"Time!JJB$23","v":"00:00:00"},{"$f":"Time!JJC$23","v":"00:00:00"},{"$f":"Time!JJD$23","v":"00:00:00"},{"$f":"Time!JJE$23","v":"00:00:00"},{"$f":"Time!JJF$23","v":"00:00:00"},{"$f":"Time!JJG$23","v":"00:00:00"},{"$f":"Time!JJH$23","v":"00:00:00"},{"$f":"Time!JJI$23","v":"00:00:00"},{"$f":"Time!JJJ$23","v":"00:00:00"},{"$f":"Time!JJK$23","v":"00:00:00"},{"$f":"Time!JJL$23","v":"00:00:00"},{"$f":"Time!JJM$23","v":"00:00:00"},{"$f":"Time!JJN$23","v":"00:00:00"},{"$f":"Time!JJO$23","v":"00:00:00"},{"$f":"Time!JJP$23","v":"00:00:00"},{"$f":"Time!JJQ$23","v":"00:00:00"},{"$f":"Time!JJR$23","v":"00:00:00"},{"$f":"Time!JJS$23","v":"00:00:00"},{"$f":"Time!JJT$23","v":"00:00:00"},{"$f":"Time!JJU$23","v":"00:00:00"},{"$f":"Time!JJV$23","v":"00:00:00"},{"$f":"Time!JJW$23","v":"00:00:00"},{"$f":"Time!JJX$23","v":"00:00:00"},{"$f":"Time!JJY$23","v":"00:00:00"},{"$f":"Time!JJZ$23","v":"00:00:00"},{"$f":"Time!JKA$23","v":"00:00:00"},{"$f":"Time!JKB$23","v":"00:00:00"},{"$f":"Time!JKC$23","v":"00:00:00"},{"$f":"Time!JKD$23","v":"00:00:00"},{"$f":"Time!JKE$23","v":"00:00:00"},{"$f":"Time!JKF$23","v":"00:00:00"},{"$f":"Time!JKG$23","v":"00:00:00"},{"$f":"Time!JKH$23","v":"00:00:00"},{"$f":"Time!JKI$23","v":"00:00:00"},{"$f":"Time!JKJ$23","v":"00:00:00"},{"$f":"Time!JKK$23","v":"00:00:00"},{"$f":"Time!JKL$23","v":"00:00:00"},{"$f":"Time!JKM$23","v":"00:00:00"},{"$f":"Time!JKN$23","v":"00:00:00"},{"$f":"Time!JKO$23","v":"00:00:00"},{"$f":"Time!JKP$23","v":"00:00:00"},{"$f":"Time!JKQ$23","v":"00:00:00"},{"$f":"Time!JKR$23","v":"00:00:00"},{"$f":"Time!JKS$23","v":"00:00:00"},{"$f":"Time!JKT$23","v":"00:00:00"},{"$f":"Time!JKU$23","v":"00:00:00"},{"$f":"Time!JKV$23","v":"00:00:00"},{"$f":"Time!JKW$23","v":"00:00:00"},{"$f":"Time!JKX$23","v":"00:00:00"},{"$f":"Time!JKY$23","v":"00:00:00"},{"$f":"Time!JKZ$23","v":"00:00:00"},{"$f":"Time!JLA$23","v":"00:00:00"},{"$f":"Time!JLB$23","v":"00:00:00"},{"$f":"Time!JLC$23","v":"00:00:00"},{"$f":"Time!JLD$23","v":"00:00:00"},{"$f":"Time!JLE$23","v":"00:00:00"},{"$f":"Time!JLF$23","v":"00:00:00"},{"$f":"Time!JLG$23","v":"00:00:00"},{"$f":"Time!JLH$23","v":"00:00:00"},{"$f":"Time!JLI$23","v":"00:00:00"},{"$f":"Time!JLJ$23","v":"00:00:00"},{"$f":"Time!JLK$23","v":"00:00:00"},{"$f":"Time!JLL$23","v":"00:00:00"},{"$f":"Time!JLM$23","v":"00:00:00"},{"$f":"Time!JLN$23","v":"00:00:00"},{"$f":"Time!JLO$23","v":"00:00:00"},{"$f":"Time!JLP$23","v":"00:00:00"},{"$f":"Time!JLQ$23","v":"00:00:00"},{"$f":"Time!JLR$23","v":"00:00:00"},{"$f":"Time!JLS$23","v":"00:00:00"},{"$f":"Time!JLT$23","v":"00:00:00"},{"$f":"Time!JLU$23","v":"00:00:00"},{"$f":"Time!JLV$23","v":"00:00:00"},{"$f":"Time!JLW$23","v":"00:00:00"},{"$f":"Time!JLX$23","v":"00:00:00"},{"$f":"Time!JLY$23","v":"00:00:00"},{"$f":"Time!JLZ$23","v":"00:00:00"},{"$f":"Time!JMA$23","v":"00:00:00"},{"$f":"Time!JMB$23","v":"00:00:00"},{"$f":"Time!JMC$23","v":"00:00:00"},{"$f":"Time!JMD$23","v":"00:00:00"},{"$f":"Time!JME$23","v":"00:00:00"},{"$f":"Time!JMF$23","v":"00:00:00"},{"$f":"Time!JMG$23","v":"00:00:00"},{"$f":"Time!JMH$23","v":"00:00:00"},{"$f":"Time!JMI$23","v":"00:00:00"},{"$f":"Time!JMJ$23","v":"00:00:00"},{"$f":"Time!JMK$23","v":"00:00:00"},{"$f":"Time!JML$23","v":"00:00:00"},{"$f":"Time!JMM$23","v":"00:00:00"},{"$f":"Time!JMN$23","v":"00:00:00"},{"$f":"Time!JMO$23","v":"00:00:00"},{"$f":"Time!JMP$23","v":"00:00:00"},{"$f":"Time!JMQ$23","v":"00:00:00"},{"$f":"Time!JMR$23","v":"00:00:00"},{"$f":"Time!JMS$23","v":"00:00:00"},{"$f":"Time!JMT$23","v":"00:00:00"},{"$f":"Time!JMU$23","v":"00:00:00"},{"$f":"Time!JMV$23","v":"00:00:00"},{"$f":"Time!JMW$23","v":"00:00:00"},{"$f":"Time!JMX$23","v":"00:00:00"},{"$f":"Time!JMY$23","v":"00:00:00"},{"$f":"Time!JMZ$23","v":"00:00:00"},{"$f":"Time!JNA$23","v":"00:00:00"},{"$f":"Time!JNB$23","v":"00:00:00"},{"$f":"Time!JNC$23","v":"00:00:00"},{"$f":"Time!JND$23","v":"00:00:00"},{"$f":"Time!JNE$23","v":"00:00:00"},{"$f":"Time!JNF$23","v":"00:00:00"},{"$f":"Time!JNG$23","v":"00:00:00"},{"$f":"Time!JNH$23","v":"00:00:00"},{"$f":"Time!JNI$23","v":"00:00:00"},{"$f":"Time!JNJ$23","v":"00:00:00"},{"$f":"Time!JNK$23","v":"00:00:00"},{"$f":"Time!JNL$23","v":"00:00:00"},{"$f":"Time!JNM$23","v":"00:00:00"},{"$f":"Time!JNN$23","v":"00:00:00"},{"$f":"Time!JNO$23","v":"00:00:00"},{"$f":"Time!JNP$23","v":"00:00:00"},{"$f":"Time!JNQ$23","v":"00:00:00"},{"$f":"Time!JNR$23","v":"00:00:00"},{"$f":"Time!JNS$23","v":"00:00:00"},{"$f":"Time!JNT$23","v":"00:00:00"},{"$f":"Time!JNU$23","v":"00:00:00"},{"$f":"Time!JNV$23","v":"00:00:00"},{"$f":"Time!JNW$23","v":"00:00:00"},{"$f":"Time!JNX$23","v":"00:00:00"},{"$f":"Time!JNY$23","v":"00:00:00"},{"$f":"Time!JNZ$23","v":"00:00:00"},{"$f":"Time!JOA$23","v":"00:00:00"},{"$f":"Time!JOB$23","v":"00:00:00"},{"$f":"Time!JOC$23","v":"00:00:00"},{"$f":"Time!JOD$23","v":"00:00:00"},{"$f":"Time!JOE$23","v":"00:00:00"},{"$f":"Time!JOF$23","v":"00:00:00"},{"$f":"Time!JOG$23","v":"00:00:00"},{"$f":"Time!JOH$23","v":"00:00:00"},{"$f":"Time!JOI$23","v":"00:00:00"},{"$f":"Time!JOJ$23","v":"00:00:00"},{"$f":"Time!JOK$23","v":"00:00:00"},{"$f":"Time!JOL$23","v":"00:00:00"},{"$f":"Time!JOM$23","v":"00:00:00"},{"$f":"Time!JON$23","v":"00:00:00"},{"$f":"Time!JOO$23","v":"00:00:00"},{"$f":"Time!JOP$23","v":"00:00:00"},{"$f":"Time!JOQ$23","v":"00:00:00"},{"$f":"Time!JOR$23","v":"00:00:00"},{"$f":"Time!JOS$23","v":"00:00:00"},{"$f":"Time!JOT$23","v":"00:00:00"},{"$f":"Time!JOU$23","v":"00:00:00"},{"$f":"Time!JOV$23","v":"00:00:00"},{"$f":"Time!JOW$23","v":"00:00:00"},{"$f":"Time!JOX$23","v":"00:00:00"},{"$f":"Time!JOY$23","v":"00:00:00"},{"$f":"Time!JOZ$23","v":"00:00:00"},{"$f":"Time!JPA$23","v":"00:00:00"},{"$f":"Time!JPB$23","v":"00:00:00"},{"$f":"Time!JPC$23","v":"00:00:00"},{"$f":"Time!JPD$23","v":"00:00:00"},{"$f":"Time!JPE$23","v":"00:00:00"},{"$f":"Time!JPF$23","v":"00:00:00"},{"$f":"Time!JPG$23","v":"00:00:00"},{"$f":"Time!JPH$23","v":"00:00:00"},{"$f":"Time!JPI$23","v":"00:00:00"},{"$f":"Time!JPJ$23","v":"00:00:00"},{"$f":"Time!JPK$23","v":"00:00:00"},{"$f":"Time!JPL$23","v":"00:00:00"},{"$f":"Time!JPM$23","v":"00:00:00"},{"$f":"Time!JPN$23","v":"00:00:00"},{"$f":"Time!JPO$23","v":"00:00:00"},{"$f":"Time!JPP$23","v":"00:00:00"},{"$f":"Time!JPQ$23","v":"00:00:00"},{"$f":"Time!JPR$23","v":"00:00:00"},{"$f":"Time!JPS$23","v":"00:00:00"},{"$f":"Time!JPT$23","v":"00:00:00"},{"$f":"Time!JPU$23","v":"00:00:00"},{"$f":"Time!JPV$23","v":"00:00:00"},{"$f":"Time!JPW$23","v":"00:00:00"},{"$f":"Time!JPX$23","v":"00:00:00"},{"$f":"Time!JPY$23","v":"00:00:00"},{"$f":"Time!JPZ$23","v":"00:00:00"},{"$f":"Time!JQA$23","v":"00:00:00"},{"$f":"Time!JQB$23","v":"00:00:00"},{"$f":"Time!JQC$23","v":"00:00:00"},{"$f":"Time!JQD$23","v":"00:00:00"},{"$f":"Time!JQE$23","v":"00:00:00"},{"$f":"Time!JQF$23","v":"00:00:00"},{"$f":"Time!JQG$23","v":"00:00:00"},{"$f":"Time!JQH$23","v":"00:00:00"},{"$f":"Time!JQI$23","v":"00:00:00"},{"$f":"Time!JQJ$23","v":"00:00:00"},{"$f":"Time!JQK$23","v":"00:00:00"},{"$f":"Time!JQL$23","v":"00:00:00"},{"$f":"Time!JQM$23","v":"00:00:00"},{"$f":"Time!JQN$23","v":"00:00:00"},{"$f":"Time!JQO$23","v":"00:00:00"},{"$f":"Time!JQP$23","v":"00:00:00"},{"$f":"Time!JQQ$23","v":"00:00:00"},{"$f":"Time!JQR$23","v":"00:00:00"},{"$f":"Time!JQS$23","v":"00:00:00"},{"$f":"Time!JQT$23","v":"00:00:00"},{"$f":"Time!JQU$23","v":"00:00:00"},{"$f":"Time!JQV$23","v":"00:00:00"},{"$f":"Time!JQW$23","v":"00:00:00"},{"$f":"Time!JQX$23","v":"00:00:00"},{"$f":"Time!JQY$23","v":"00:00:00"},{"$f":"Time!JQZ$23","v":"00:00:00"},{"$f":"Time!JRA$23","v":"00:00:00"},{"$f":"Time!JRB$23","v":"00:00:00"},{"$f":"Time!JRC$23","v":"00:00:00"},{"$f":"Time!JRD$23","v":"00:00:00"},{"$f":"Time!JRE$23","v":"00:00:00"},{"$f":"Time!JRF$23","v":"00:00:00"},{"$f":"Time!JRG$23","v":"00:00:00"},{"$f":"Time!JRH$23","v":"00:00:00"},{"$f":"Time!JRI$23","v":"00:00:00"},{"$f":"Time!JRJ$23","v":"00:00:00"},{"$f":"Time!JRK$23","v":"00:00:00"},{"$f":"Time!JRL$23","v":"00:00:00"},{"$f":"Time!JRM$23","v":"00:00:00"},{"$f":"Time!JRN$23","v":"00:00:00"},{"$f":"Time!JRO$23","v":"00:00:00"},{"$f":"Time!JRP$23","v":"00:00:00"},{"$f":"Time!JRQ$23","v":"00:00:00"},{"$f":"Time!JRR$23","v":"00:00:00"},{"$f":"Time!JRS$23","v":"00:00:00"},{"$f":"Time!JRT$23","v":"00:00:00"},{"$f":"Time!JRU$23","v":"00:00:00"},{"$f":"Time!JRV$23","v":"00:00:00"},{"$f":"Time!JRW$23","v":"00:00:00"},{"$f":"Time!JRX$23","v":"00:00:00"},{"$f":"Time!JRY$23","v":"00:00:00"},{"$f":"Time!JRZ$23","v":"00:00:00"},{"$f":"Time!JSA$23","v":"00:00:00"},{"$f":"Time!JSB$23","v":"00:00:00"},{"$f":"Time!JSC$23","v":"00:00:00"},{"$f":"Time!JSD$23","v":"00:00:00"},{"$f":"Time!JSE$23","v":"00:00:00"},{"$f":"Time!JSF$23","v":"00:00:00"},{"$f":"Time!JSG$23","v":"00:00:00"},{"$f":"Time!JSH$23","v":"00:00:00"},{"$f":"Time!JSI$23","v":"00:00:00"},{"$f":"Time!JSJ$23","v":"00:00:00"},{"$f":"Time!JSK$23","v":"00:00:00"},{"$f":"Time!JSL$23","v":"00:00:00"},{"$f":"Time!JSM$23","v":"00:00:00"},{"$f":"Time!JSN$23","v":"00:00:00"},{"$f":"Time!JSO$23","v":"00:00:00"},{"$f":"Time!JSP$23","v":"00:00:00"},{"$f":"Time!JSQ$23","v":"00:00:00"},{"$f":"Time!JSR$23","v":"00:00:00"},{"$f":"Time!JSS$23","v":"00:00:00"},{"$f":"Time!JST$23","v":"00:00:00"},{"$f":"Time!JSU$23","v":"00:00:00"},{"$f":"Time!JSV$23","v":"00:00:00"},{"$f":"Time!JSW$23","v":"00:00:00"},{"$f":"Time!JSX$23","v":"00:00:00"},{"$f":"Time!JSY$23","v":"00:00:00"},{"$f":"Time!JSZ$23","v":"00:00:00"},{"$f":"Time!JTA$23","v":"00:00:00"},{"$f":"Time!JTB$23","v":"00:00:00"},{"$f":"Time!JTC$23","v":"00:00:00"},{"$f":"Time!JTD$23","v":"00:00:00"},{"$f":"Time!JTE$23","v":"00:00:00"},{"$f":"Time!JTF$23","v":"00:00:00"},{"$f":"Time!JTG$23","v":"00:00:00"},{"$f":"Time!JTH$23","v":"00:00:00"},{"$f":"Time!JTI$23","v":"00:00:00"},{"$f":"Time!JTJ$23","v":"00:00:00"},{"$f":"Time!JTK$23","v":"00:00:00"},{"$f":"Time!JTL$23","v":"00:00:00"},{"$f":"Time!JTM$23","v":"00:00:00"},{"$f":"Time!JTN$23","v":"00:00:00"},{"$f":"Time!JTO$23","v":"00:00:00"},{"$f":"Time!JTP$23","v":"00:00:00"},{"$f":"Time!JTQ$23","v":"00:00:00"},{"$f":"Time!JTR$23","v":"00:00:00"},{"$f":"Time!JTS$23","v":"00:00:00"},{"$f":"Time!JTT$23","v":"00:00:00"},{"$f":"Time!JTU$23","v":"00:00:00"},{"$f":"Time!JTV$23","v":"00:00:00"},{"$f":"Time!JTW$23","v":"00:00:00"},{"$f":"Time!JTX$23","v":"00:00:00"},{"$f":"Time!JTY$23","v":"00:00:00"},{"$f":"Time!JTZ$23","v":"00:00:00"},{"$f":"Time!JUA$23","v":"00:00:00"},{"$f":"Time!JUB$23","v":"00:00:00"},{"$f":"Time!JUC$23","v":"00:00:00"},{"$f":"Time!JUD$23","v":"00:00:00"},{"$f":"Time!JUE$23","v":"00:00:00"},{"$f":"Time!JUF$23","v":"00:00:00"},{"$f":"Time!JUG$23","v":"00:00:00"},{"$f":"Time!JUH$23","v":"00:00:00"},{"$f":"Time!JUI$23","v":"00:00:00"},{"$f":"Time!JUJ$23","v":"00:00:00"},{"$f":"Time!JUK$23","v":"00:00:00"},{"$f":"Time!JUL$23","v":"00:00:00"},{"$f":"Time!JUM$23","v":"00:00:00"},{"$f":"Time!JUN$23","v":"00:00:00"},{"$f":"Time!JUO$23","v":"00:00:00"},{"$f":"Time!JUP$23","v":"00:00:00"},{"$f":"Time!JUQ$23","v":"00:00:00"},{"$f":"Time!JUR$23","v":"00:00:00"},{"$f":"Time!JUS$23","v":"00:00:00"},{"$f":"Time!JUT$23","v":"00:00:00"},{"$f":"Time!JUU$23","v":"00:00:00"},{"$f":"Time!JUV$23","v":"00:00:00"},{"$f":"Time!JUW$23","v":"00:00:00"},{"$f":"Time!JUX$23","v":"00:00:00"},{"$f":"Time!JUY$23","v":"00:00:00"},{"$f":"Time!JUZ$23","v":"00:00:00"},{"$f":"Time!JVA$23","v":"00:00:00"},{"$f":"Time!JVB$23","v":"00:00:00"},{"$f":"Time!JVC$23","v":"00:00:00"},{"$f":"Time!JVD$23","v":"00:00:00"},{"$f":"Time!JVE$23","v":"00:00:00"},{"$f":"Time!JVF$23","v":"00:00:00"},{"$f":"Time!JVG$23","v":"00:00:00"},{"$f":"Time!JVH$23","v":"00:00:00"},{"$f":"Time!JVI$23","v":"00:00:00"},{"$f":"Time!JVJ$23","v":"00:00:00"},{"$f":"Time!JVK$23","v":"00:00:00"},{"$f":"Time!JVL$23","v":"00:00:00"},{"$f":"Time!JVM$23","v":"00:00:00"},{"$f":"Time!JVN$23","v":"00:00:00"},{"$f":"Time!JVO$23","v":"00:00:00"},{"$f":"Time!JVP$23","v":"00:00:00"},{"$f":"Time!JVQ$23","v":"00:00:00"},{"$f":"Time!JVR$23","v":"00:00:00"},{"$f":"Time!JVS$23","v":"00:00:00"},{"$f":"Time!JVT$23","v":"00:00:00"},{"$f":"Time!JVU$23","v":"00:00:00"},{"$f":"Time!JVV$23","v":"00:00:00"},{"$f":"Time!JVW$23","v":"00:00:00"},{"$f":"Time!JVX$23","v":"00:00:00"},{"$f":"Time!JVY$23","v":"00:00:00"},{"$f":"Time!JVZ$23","v":"00:00:00"},{"$f":"Time!JWA$23","v":"00:00:00"},{"$f":"Time!JWB$23","v":"00:00:00"},{"$f":"Time!JWC$23","v":"00:00:00"},{"$f":"Time!JWD$23","v":"00:00:00"},{"$f":"Time!JWE$23","v":"00:00:00"},{"$f":"Time!JWF$23","v":"00:00:00"},{"$f":"Time!JWG$23","v":"00:00:00"},{"$f":"Time!JWH$23","v":"00:00:00"},{"$f":"Time!JWI$23","v":"00:00:00"},{"$f":"Time!JWJ$23","v":"00:00:00"},{"$f":"Time!JWK$23","v":"00:00:00"},{"$f":"Time!JWL$23","v":"00:00:00"},{"$f":"Time!JWM$23","v":"00:00:00"},{"$f":"Time!JWN$23","v":"00:00:00"},{"$f":"Time!JWO$23","v":"00:00:00"},{"$f":"Time!JWP$23","v":"00:00:00"},{"$f":"Time!JWQ$23","v":"00:00:00"},{"$f":"Time!JWR$23","v":"00:00:00"},{"$f":"Time!JWS$23","v":"00:00:00"},{"$f":"Time!JWT$23","v":"00:00:00"},{"$f":"Time!JWU$23","v":"00:00:00"},{"$f":"Time!JWV$23","v":"00:00:00"},{"$f":"Time!JWW$23","v":"00:00:00"},{"$f":"Time!JWX$23","v":"00:00:00"},{"$f":"Time!JWY$23","v":"00:00:00"},{"$f":"Time!JWZ$23","v":"00:00:00"},{"$f":"Time!JXA$23","v":"00:00:00"},{"$f":"Time!JXB$23","v":"00:00:00"},{"$f":"Time!JXC$23","v":"00:00:00"},{"$f":"Time!JXD$23","v":"00:00:00"},{"$f":"Time!JXE$23","v":"00:00:00"},{"$f":"Time!JXF$23","v":"00:00:00"},{"$f":"Time!JXG$23","v":"00:00:00"},{"$f":"Time!JXH$23","v":"00:00:00"},{"$f":"Time!JXI$23","v":"00:00:00"},{"$f":"Time!JXJ$23","v":"00:00:00"},{"$f":"Time!JXK$23","v":"00:00:00"},{"$f":"Time!JXL$23","v":"00:00:00"},{"$f":"Time!JXM$23","v":"00:00:00"},{"$f":"Time!JXN$23","v":"00:00:00"},{"$f":"Time!JXO$23","v":"00:00:00"},{"$f":"Time!JXP$23","v":"00:00:00"},{"$f":"Time!JXQ$23","v":"00:00:00"},{"$f":"Time!JXR$23","v":"00:00:00"},{"$f":"Time!JXS$23","v":"00:00:00"},{"$f":"Time!JXT$23","v":"00:00:00"},{"$f":"Time!JXU$23","v":"00:00:00"},{"$f":"Time!JXV$23","v":"00:00:00"},{"$f":"Time!JXW$23","v":"00:00:00"},{"$f":"Time!JXX$23","v":"00:00:00"},{"$f":"Time!JXY$23","v":"00:00:00"},{"$f":"Time!JXZ$23","v":"00:00:00"},{"$f":"Time!JYA$23","v":"00:00:00"},{"$f":"Time!JYB$23","v":"00:00:00"},{"$f":"Time!JYC$23","v":"00:00:00"},{"$f":"Time!JYD$23","v":"00:00:00"},{"$f":"Time!JYE$23","v":"00:00:00"},{"$f":"Time!JYF$23","v":"00:00:00"},{"$f":"Time!JYG$23","v":"00:00:00"},{"$f":"Time!JYH$23","v":"00:00:00"},{"$f":"Time!JYI$23","v":"00:00:00"},{"$f":"Time!JYJ$23","v":"00:00:00"},{"$f":"Time!JYK$23","v":"00:00:00"},{"$f":"Time!JYL$23","v":"00:00:00"},{"$f":"Time!JYM$23","v":"00:00:00"},{"$f":"Time!JYN$23","v":"00:00:00"},{"$f":"Time!JYO$23","v":"00:00:00"},{"$f":"Time!JYP$23","v":"00:00:00"},{"$f":"Time!JYQ$23","v":"00:00:00"},{"$f":"Time!JYR$23","v":"00:00:00"},{"$f":"Time!JYS$23","v":"00:00:00"},{"$f":"Time!JYT$23","v":"00:00:00"},{"$f":"Time!JYU$23","v":"00:00:00"},{"$f":"Time!JYV$23","v":"00:00:00"},{"$f":"Time!JYW$23","v":"00:00:00"},{"$f":"Time!JYX$23","v":"00:00:00"},{"$f":"Time!JYY$23","v":"00:00:00"},{"$f":"Time!JYZ$23","v":"00:00:00"},{"$f":"Time!JZA$23","v":"00:00:00"},{"$f":"Time!JZB$23","v":"00:00:00"},{"$f":"Time!JZC$23","v":"00:00:00"},{"$f":"Time!JZD$23","v":"00:00:00"},{"$f":"Time!JZE$23","v":"00:00:00"},{"$f":"Time!JZF$23","v":"00:00:00"},{"$f":"Time!JZG$23","v":"00:00:00"},{"$f":"Time!JZH$23","v":"00:00:00"},{"$f":"Time!JZI$23","v":"00:00:00"},{"$f":"Time!JZJ$23","v":"00:00:00"},{"$f":"Time!JZK$23","v":"00:00:00"},{"$f":"Time!JZL$23","v":"00:00:00"},{"$f":"Time!JZM$23","v":"00:00:00"},{"$f":"Time!JZN$23","v":"00:00:00"},{"$f":"Time!JZO$23","v":"00:00:00"},{"$f":"Time!JZP$23","v":"00:00:00"},{"$f":"Time!JZQ$23","v":"00:00:00"},{"$f":"Time!JZR$23","v":"00:00:00"},{"$f":"Time!JZS$23","v":"00:00:00"},{"$f":"Time!JZT$23","v":"00:00:00"},{"$f":"Time!JZU$23","v":"00:00:00"},{"$f":"Time!JZV$23","v":"00:00:00"},{"$f":"Time!JZW$23","v":"00:00:00"},{"$f":"Time!JZX$23","v":"00:00:00"},{"$f":"Time!JZY$23","v":"00:00:00"},{"$f":"Time!JZZ$23","v":"00:00:00"},{"$f":"Time!KAA$23","v":"00:00:00"},{"$f":"Time!KAB$23","v":"00:00:00"},{"$f":"Time!KAC$23","v":"00:00:00"},{"$f":"Time!KAD$23","v":"00:00:00"},{"$f":"Time!KAE$23","v":"00:00:00"},{"$f":"Time!KAF$23","v":"00:00:00"},{"$f":"Time!KAG$23","v":"00:00:00"},{"$f":"Time!KAH$23","v":"00:00:00"},{"$f":"Time!KAI$23","v":"00:00:00"},{"$f":"Time!KAJ$23","v":"00:00:00"},{"$f":"Time!KAK$23","v":"00:00:00"},{"$f":"Time!KAL$23","v":"00:00:00"},{"$f":"Time!KAM$23","v":"00:00:00"},{"$f":"Time!KAN$23","v":"00:00:00"},{"$f":"Time!KAO$23","v":"00:00:00"},{"$f":"Time!KAP$23","v":"00:00:00"},{"$f":"Time!KAQ$23","v":"00:00:00"},{"$f":"Time!KAR$23","v":"00:00:00"},{"$f":"Time!KAS$23","v":"00:00:00"},{"$f":"Time!KAT$23","v":"00:00:00"},{"$f":"Time!KAU$23","v":"00:00:00"},{"$f":"Time!KAV$23","v":"00:00:00"},{"$f":"Time!KAW$23","v":"00:00:00"},{"$f":"Time!KAX$23","v":"00:00:00"},{"$f":"Time!KAY$23","v":"00:00:00"},{"$f":"Time!KAZ$23","v":"00:00:00"},{"$f":"Time!KBA$23","v":"00:00:00"},{"$f":"Time!KBB$23","v":"00:00:00"},{"$f":"Time!KBC$23","v":"00:00:00"},{"$f":"Time!KBD$23","v":"00:00:00"},{"$f":"Time!KBE$23","v":"00:00:00"},{"$f":"Time!KBF$23","v":"00:00:00"},{"$f":"Time!KBG$23","v":"00:00:00"},{"$f":"Time!KBH$23","v":"00:00:00"},{"$f":"Time!KBI$23","v":"00:00:00"},{"$f":"Time!KBJ$23","v":"00:00:00"},{"$f":"Time!KBK$23","v":"00:00:00"},{"$f":"Time!KBL$23","v":"00:00:00"},{"$f":"Time!KBM$23","v":"00:00:00"},{"$f":"Time!KBN$23","v":"00:00:00"},{"$f":"Time!KBO$23","v":"00:00:00"},{"$f":"Time!KBP$23","v":"00:00:00"},{"$f":"Time!KBQ$23","v":"00:00:00"},{"$f":"Time!KBR$23","v":"00:00:00"},{"$f":"Time!KBS$23","v":"00:00:00"},{"$f":"Time!KBT$23","v":"00:00:00"},{"$f":"Time!KBU$23","v":"00:00:00"},{"$f":"Time!KBV$23","v":"00:00:00"},{"$f":"Time!KBW$23","v":"00:00:00"},{"$f":"Time!KBX$23","v":"00:00:00"},{"$f":"Time!KBY$23","v":"00:00:00"},{"$f":"Time!KBZ$23","v":"00:00:00"},{"$f":"Time!KCA$23","v":"00:00:00"},{"$f":"Time!KCB$23","v":"00:00:00"},{"$f":"Time!KCC$23","v":"00:00:00"},{"$f":"Time!KCD$23","v":"00:00:00"},{"$f":"Time!KCE$23","v":"00:00:00"},{"$f":"Time!KCF$23","v":"00:00:00"},{"$f":"Time!KCG$23","v":"00:00:00"},{"$f":"Time!KCH$23","v":"00:00:00"},{"$f":"Time!KCI$23","v":"00:00:00"},{"$f":"Time!KCJ$23","v":"00:00:00"},{"$f":"Time!KCK$23","v":"00:00:00"},{"$f":"Time!KCL$23","v":"00:00:00"},{"$f":"Time!KCM$23","v":"00:00:00"},{"$f":"Time!KCN$23","v":"00:00:00"},{"$f":"Time!KCO$23","v":"00:00:00"},{"$f":"Time!KCP$23","v":"00:00:00"},{"$f":"Time!KCQ$23","v":"00:00:00"},{"$f":"Time!KCR$23","v":"00:00:00"},{"$f":"Time!KCS$23","v":"00:00:00"},{"$f":"Time!KCT$23","v":"00:00:00"},{"$f":"Time!KCU$23","v":"00:00:00"},{"$f":"Time!KCV$23","v":"00:00:00"},{"$f":"Time!KCW$23","v":"00:00:00"},{"$f":"Time!KCX$23","v":"00:00:00"},{"$f":"Time!KCY$23","v":"00:00:00"},{"$f":"Time!KCZ$23","v":"00:00:00"},{"$f":"Time!KDA$23","v":"00:00:00"},{"$f":"Time!KDB$23","v":"00:00:00"},{"$f":"Time!KDC$23","v":"00:00:00"},{"$f":"Time!KDD$23","v":"00:00:00"},{"$f":"Time!KDE$23","v":"00:00:00"},{"$f":"Time!KDF$23","v":"00:00:00"},{"$f":"Time!KDG$23","v":"00:00:00"},{"$f":"Time!KDH$23","v":"00:00:00"},{"$f":"Time!KDI$23","v":"00:00:00"},{"$f":"Time!KDJ$23","v":"00:00:00"},{"$f":"Time!KDK$23","v":"00:00:00"},{"$f":"Time!KDL$23","v":"00:00:00"},{"$f":"Time!KDM$23","v":"00:00:00"},{"$f":"Time!KDN$23","v":"00:00:00"},{"$f":"Time!KDO$23","v":"00:00:00"},{"$f":"Time!KDP$23","v":"00:00:00"},{"$f":"Time!KDQ$23","v":"00:00:00"},{"$f":"Time!KDR$23","v":"00:00:00"},{"$f":"Time!KDS$23","v":"00:00:00"},{"$f":"Time!KDT$23","v":"00:00:00"},{"$f":"Time!KDU$23","v":"00:00:00"},{"$f":"Time!KDV$23","v":"00:00:00"},{"$f":"Time!KDW$23","v":"00:00:00"},{"$f":"Time!KDX$23","v":"00:00:00"},{"$f":"Time!KDY$23","v":"00:00:00"},{"$f":"Time!KDZ$23","v":"00:00:00"},{"$f":"Time!KEA$23","v":"00:00:00"},{"$f":"Time!KEB$23","v":"00:00:00"},{"$f":"Time!KEC$23","v":"00:00:00"},{"$f":"Time!KED$23","v":"00:00:00"},{"$f":"Time!KEE$23","v":"00:00:00"},{"$f":"Time!KEF$23","v":"00:00:00"},{"$f":"Time!KEG$23","v":"00:00:00"},{"$f":"Time!KEH$23","v":"00:00:00"},{"$f":"Time!KEI$23","v":"00:00:00"},{"$f":"Time!KEJ$23","v":"00:00:00"},{"$f":"Time!KEK$23","v":"00:00:00"},{"$f":"Time!KEL$23","v":"00:00:00"},{"$f":"Time!KEM$23","v":"00:00:00"},{"$f":"Time!KEN$23","v":"00:00:00"},{"$f":"Time!KEO$23","v":"00:00:00"},{"$f":"Time!KEP$23","v":"00:00:00"},{"$f":"Time!KEQ$23","v":"00:00:00"},{"$f":"Time!KER$23","v":"00:00:00"},{"$f":"Time!KES$23","v":"00:00:00"},{"$f":"Time!KET$23","v":"00:00:00"},{"$f":"Time!KEU$23","v":"00:00:00"},{"$f":"Time!KEV$23","v":"00:00:00"},{"$f":"Time!KEW$23","v":"00:00:00"},{"$f":"Time!KEX$23","v":"00:00:00"},{"$f":"Time!KEY$23","v":"00:00:00"},{"$f":"Time!KEZ$23","v":"00:00:00"},{"$f":"Time!KFA$23","v":"00:00:00"},{"$f":"Time!KFB$23","v":"00:00:00"},{"$f":"Time!KFC$23","v":"00:00:00"},{"$f":"Time!KFD$23","v":"00:00:00"},{"$f":"Time!KFE$23","v":"00:00:00"},{"$f":"Time!KFF$23","v":"00:00:00"},{"$f":"Time!KFG$23","v":"00:00:00"},{"$f":"Time!KFH$23","v":"00:00:00"},{"$f":"Time!KFI$23","v":"00:00:00"},{"$f":"Time!KFJ$23","v":"00:00:00"},{"$f":"Time!KFK$23","v":"00:00:00"},{"$f":"Time!KFL$23","v":"00:00:00"},{"$f":"Time!KFM$23","v":"00:00:00"},{"$f":"Time!KFN$23","v":"00:00:00"},{"$f":"Time!KFO$23","v":"00:00:00"},{"$f":"Time!KFP$23","v":"00:00:00"},{"$f":"Time!KFQ$23","v":"00:00:00"},{"$f":"Time!KFR$23","v":"00:00:00"},{"$f":"Time!KFS$23","v":"00:00:00"},{"$f":"Time!KFT$23","v":"00:00:00"},{"$f":"Time!KFU$23","v":"00:00:00"},{"$f":"Time!KFV$23","v":"00:00:00"},{"$f":"Time!KFW$23","v":"00:00:00"},{"$f":"Time!KFX$23","v":"00:00:00"},{"$f":"Time!KFY$23","v":"00:00:00"},{"$f":"Time!KFZ$23","v":"00:00:00"},{"$f":"Time!KGA$23","v":"00:00:00"},{"$f":"Time!KGB$23","v":"00:00:00"},{"$f":"Time!KGC$23","v":"00:00:00"},{"$f":"Time!KGD$23","v":"00:00:00"},{"$f":"Time!KGE$23","v":"00:00:00"},{"$f":"Time!KGF$23","v":"00:00:00"},{"$f":"Time!KGG$23","v":"00:00:00"},{"$f":"Time!KGH$23","v":"00:00:00"},{"$f":"Time!KGI$23","v":"00:00:00"},{"$f":"Time!KGJ$23","v":"00:00:00"},{"$f":"Time!KGK$23","v":"00:00:00"},{"$f":"Time!KGL$23","v":"00:00:00"},{"$f":"Time!KGM$23","v":"00:00:00"},{"$f":"Time!KGN$23","v":"00:00:00"},{"$f":"Time!KGO$23","v":"00:00:00"},{"$f":"Time!KGP$23","v":"00:00:00"},{"$f":"Time!KGQ$23","v":"00:00:00"},{"$f":"Time!KGR$23","v":"00:00:00"},{"$f":"Time!KGS$23","v":"00:00:00"},{"$f":"Time!KGT$23","v":"00:00:00"},{"$f":"Time!KGU$23","v":"00:00:00"},{"$f":"Time!KGV$23","v":"00:00:00"},{"$f":"Time!KGW$23","v":"00:00:00"},{"$f":"Time!KGX$23","v":"00:00:00"},{"$f":"Time!KGY$23","v":"00:00:00"},{"$f":"Time!KGZ$23","v":"00:00:00"},{"$f":"Time!KHA$23","v":"00:00:00"},{"$f":"Time!KHB$23","v":"00:00:00"},{"$f":"Time!KHC$23","v":"00:00:00"},{"$f":"Time!KHD$23","v":"00:00:00"},{"$f":"Time!KHE$23","v":"00:00:00"},{"$f":"Time!KHF$23","v":"00:00:00"},{"$f":"Time!KHG$23","v":"00:00:00"},{"$f":"Time!KHH$23","v":"00:00:00"},{"$f":"Time!KHI$23","v":"00:00:00"},{"$f":"Time!KHJ$23","v":"00:00:00"},{"$f":"Time!KHK$23","v":"00:00:00"},{"$f":"Time!KHL$23","v":"00:00:00"},{"$f":"Time!KHM$23","v":"00:00:00"},{"$f":"Time!KHN$23","v":"00:00:00"},{"$f":"Time!KHO$23","v":"00:00:00"},{"$f":"Time!KHP$23","v":"00:00:00"},{"$f":"Time!KHQ$23","v":"00:00:00"},{"$f":"Time!KHR$23","v":"00:00:00"},{"$f":"Time!KHS$23","v":"00:00:00"},{"$f":"Time!KHT$23","v":"00:00:00"},{"$f":"Time!KHU$23","v":"00:00:00"},{"$f":"Time!KHV$23","v":"00:00:00"},{"$f":"Time!KHW$23","v":"00:00:00"},{"$f":"Time!KHX$23","v":"00:00:00"},{"$f":"Time!KHY$23","v":"00:00:00"},{"$f":"Time!KHZ$23","v":"00:00:00"},{"$f":"Time!KIA$23","v":"00:00:00"},{"$f":"Time!KIB$23","v":"00:00:00"},{"$f":"Time!KIC$23","v":"00:00:00"},{"$f":"Time!KID$23","v":"00:00:00"},{"$f":"Time!KIE$23","v":"00:00:00"},{"$f":"Time!KIF$23","v":"00:00:00"},{"$f":"Time!KIG$23","v":"00:00:00"},{"$f":"Time!KIH$23","v":"00:00:00"},{"$f":"Time!KII$23","v":"00:00:00"},{"$f":"Time!KIJ$23","v":"00:00:00"},{"$f":"Time!KIK$23","v":"00:00:00"},{"$f":"Time!KIL$23","v":"00:00:00"},{"$f":"Time!KIM$23","v":"00:00:00"},{"$f":"Time!KIN$23","v":"00:00:00"},{"$f":"Time!KIO$23","v":"00:00:00"},{"$f":"Time!KIP$23","v":"00:00:00"},{"$f":"Time!KIQ$23","v":"00:00:00"},{"$f":"Time!KIR$23","v":"00:00:00"},{"$f":"Time!KIS$23","v":"00:00:00"},{"$f":"Time!KIT$23","v":"00:00:00"},{"$f":"Time!KIU$23","v":"00:00:00"},{"$f":"Time!KIV$23","v":"00:00:00"},{"$f":"Time!KIW$23","v":"00:00:00"},{"$f":"Time!KIX$23","v":"00:00:00"},{"$f":"Time!KIY$23","v":"00:00:00"},{"$f":"Time!KIZ$23","v":"00:00:00"},{"$f":"Time!KJA$23","v":"00:00:00"},{"$f":"Time!KJB$23","v":"00:00:00"},{"$f":"Time!KJC$23","v":"00:00:00"},{"$f":"Time!KJD$23","v":"00:00:00"},{"$f":"Time!KJE$23","v":"00:00:00"},{"$f":"Time!KJF$23","v":"00:00:00"},{"$f":"Time!KJG$23","v":"00:00:00"},{"$f":"Time!KJH$23","v":"00:00:00"},{"$f":"Time!KJI$23","v":"00:00:00"},{"$f":"Time!KJJ$23","v":"00:00:00"},{"$f":"Time!KJK$23","v":"00:00:00"},{"$f":"Time!KJL$23","v":"00:00:00"},{"$f":"Time!KJM$23","v":"00:00:00"},{"$f":"Time!KJN$23","v":"00:00:00"},{"$f":"Time!KJO$23","v":"00:00:00"},{"$f":"Time!KJP$23","v":"00:00:00"},{"$f":"Time!KJQ$23","v":"00:00:00"},{"$f":"Time!KJR$23","v":"00:00:00"},{"$f":"Time!KJS$23","v":"00:00:00"},{"$f":"Time!KJT$23","v":"00:00:00"},{"$f":"Time!KJU$23","v":"00:00:00"},{"$f":"Time!KJV$23","v":"00:00:00"},{"$f":"Time!KJW$23","v":"00:00:00"},{"$f":"Time!KJX$23","v":"00:00:00"},{"$f":"Time!KJY$23","v":"00:00:00"},{"$f":"Time!KJZ$23","v":"00:00:00"},{"$f":"Time!KKA$23","v":"00:00:00"},{"$f":"Time!KKB$23","v":"00:00:00"},{"$f":"Time!KKC$23","v":"00:00:00"},{"$f":"Time!KKD$23","v":"00:00:00"},{"$f":"Time!KKE$23","v":"00:00:00"},{"$f":"Time!KKF$23","v":"00:00:00"},{"$f":"Time!KKG$23","v":"00:00:00"},{"$f":"Time!KKH$23","v":"00:00:00"},{"$f":"Time!KKI$23","v":"00:00:00"},{"$f":"Time!KKJ$23","v":"00:00:00"},{"$f":"Time!KKK$23","v":"00:00:00"},{"$f":"Time!KKL$23","v":"00:00:00"},{"$f":"Time!KKM$23","v":"00:00:00"},{"$f":"Time!KKN$23","v":"00:00:00"},{"$f":"Time!KKO$23","v":"00:00:00"},{"$f":"Time!KKP$23","v":"00:00:00"},{"$f":"Time!KKQ$23","v":"00:00:00"},{"$f":"Time!KKR$23","v":"00:00:00"},{"$f":"Time!KKS$23","v":"00:00:00"},{"$f":"Time!KKT$23","v":"00:00:00"},{"$f":"Time!KKU$23","v":"00:00:00"},{"$f":"Time!KKV$23","v":"00:00:00"},{"$f":"Time!KKW$23","v":"00:00:00"},{"$f":"Time!KKX$23","v":"00:00:00"},{"$f":"Time!KKY$23","v":"00:00:00"},{"$f":"Time!KKZ$23","v":"00:00:00"},{"$f":"Time!KLA$23","v":"00:00:00"},{"$f":"Time!KLB$23","v":"00:00:00"},{"$f":"Time!KLC$23","v":"00:00:00"},{"$f":"Time!KLD$23","v":"00:00:00"},{"$f":"Time!KLE$23","v":"00:00:00"},{"$f":"Time!KLF$23","v":"00:00:00"},{"$f":"Time!KLG$23","v":"00:00:00"},{"$f":"Time!KLH$23","v":"00:00:00"},{"$f":"Time!KLI$23","v":"00:00:00"},{"$f":"Time!KLJ$23","v":"00:00:00"},{"$f":"Time!KLK$23","v":"00:00:00"},{"$f":"Time!KLL$23","v":"00:00:00"},{"$f":"Time!KLM$23","v":"00:00:00"},{"$f":"Time!KLN$23","v":"00:00:00"},{"$f":"Time!KLO$23","v":"00:00:00"},{"$f":"Time!KLP$23","v":"00:00:00"},{"$f":"Time!KLQ$23","v":"00:00:00"},{"$f":"Time!KLR$23","v":"00:00:00"},{"$f":"Time!KLS$23","v":"00:00:00"},{"$f":"Time!KLT$23","v":"00:00:00"},{"$f":"Time!KLU$23","v":"00:00:00"},{"$f":"Time!KLV$23","v":"00:00:00"},{"$f":"Time!KLW$23","v":"00:00:00"},{"$f":"Time!KLX$23","v":"00:00:00"},{"$f":"Time!KLY$23","v":"00:00:00"},{"$f":"Time!KLZ$23","v":"00:00:00"},{"$f":"Time!KMA$23","v":"00:00:00"},{"$f":"Time!KMB$23","v":"00:00:00"},{"$f":"Time!KMC$23","v":"00:00:00"},{"$f":"Time!KMD$23","v":"00:00:00"},{"$f":"Time!KME$23","v":"00:00:00"},{"$f":"Time!KMF$23","v":"00:00:00"},{"$f":"Time!KMG$23","v":"00:00:00"},{"$f":"Time!KMH$23","v":"00:00:00"},{"$f":"Time!KMI$23","v":"00:00:00"},{"$f":"Time!KMJ$23","v":"00:00:00"},{"$f":"Time!KMK$23","v":"00:00:00"},{"$f":"Time!KML$23","v":"00:00:00"},{"$f":"Time!KMM$23","v":"00:00:00"},{"$f":"Time!KMN$23","v":"00:00:00"},{"$f":"Time!KMO$23","v":"00:00:00"},{"$f":"Time!KMP$23","v":"00:00:00"},{"$f":"Time!KMQ$23","v":"00:00:00"},{"$f":"Time!KMR$23","v":"00:00:00"},{"$f":"Time!KMS$23","v":"00:00:00"},{"$f":"Time!KMT$23","v":"00:00:00"},{"$f":"Time!KMU$23","v":"00:00:00"},{"$f":"Time!KMV$23","v":"00:00:00"},{"$f":"Time!KMW$23","v":"00:00:00"},{"$f":"Time!KMX$23","v":"00:00:00"},{"$f":"Time!KMY$23","v":"00:00:00"},{"$f":"Time!KMZ$23","v":"00:00:00"},{"$f":"Time!KNA$23","v":"00:00:00"},{"$f":"Time!KNB$23","v":"00:00:00"},{"$f":"Time!KNC$23","v":"00:00:00"},{"$f":"Time!KND$23","v":"00:00:00"},{"$f":"Time!KNE$23","v":"00:00:00"},{"$f":"Time!KNF$23","v":"00:00:00"},{"$f":"Time!KNG$23","v":"00:00:00"},{"$f":"Time!KNH$23","v":"00:00:00"},{"$f":"Time!KNI$23","v":"00:00:00"},{"$f":"Time!KNJ$23","v":"00:00:00"},{"$f":"Time!KNK$23","v":"00:00:00"},{"$f":"Time!KNL$23","v":"00:00:00"},{"$f":"Time!KNM$23","v":"00:00:00"},{"$f":"Time!KNN$23","v":"00:00:00"},{"$f":"Time!KNO$23","v":"00:00:00"},{"$f":"Time!KNP$23","v":"00:00:00"},{"$f":"Time!KNQ$23","v":"00:00:00"},{"$f":"Time!KNR$23","v":"00:00:00"},{"$f":"Time!KNS$23","v":"00:00:00"},{"$f":"Time!KNT$23","v":"00:00:00"},{"$f":"Time!KNU$23","v":"00:00:00"},{"$f":"Time!KNV$23","v":"00:00:00"},{"$f":"Time!KNW$23","v":"00:00:00"},{"$f":"Time!KNX$23","v":"00:00:00"},{"$f":"Time!KNY$23","v":"00:00:00"},{"$f":"Time!KNZ$23","v":"00:00:00"},{"$f":"Time!KOA$23","v":"00:00:00"},{"$f":"Time!KOB$23","v":"00:00:00"},{"$f":"Time!KOC$23","v":"00:00:00"},{"$f":"Time!KOD$23","v":"00:00:00"},{"$f":"Time!KOE$23","v":"00:00:00"},{"$f":"Time!KOF$23","v":"00:00:00"},{"$f":"Time!KOG$23","v":"00:00:00"},{"$f":"Time!KOH$23","v":"00:00:00"},{"$f":"Time!KOI$23","v":"00:00:00"},{"$f":"Time!KOJ$23","v":"00:00:00"},{"$f":"Time!KOK$23","v":"00:00:00"},{"$f":"Time!KOL$23","v":"00:00:00"},{"$f":"Time!KOM$23","v":"00:00:00"},{"$f":"Time!KON$23","v":"00:00:00"},{"$f":"Time!KOO$23","v":"00:00:00"},{"$f":"Time!KOP$23","v":"00:00:00"},{"$f":"Time!KOQ$23","v":"00:00:00"},{"$f":"Time!KOR$23","v":"00:00:00"},{"$f":"Time!KOS$23","v":"00:00:00"},{"$f":"Time!KOT$23","v":"00:00:00"},{"$f":"Time!KOU$23","v":"00:00:00"},{"$f":"Time!KOV$23","v":"00:00:00"},{"$f":"Time!KOW$23","v":"00:00:00"},{"$f":"Time!KOX$23","v":"00:00:00"},{"$f":"Time!KOY$23","v":"00:00:00"},{"$f":"Time!KOZ$23","v":"00:00:00"},{"$f":"Time!KPA$23","v":"00:00:00"},{"$f":"Time!KPB$23","v":"00:00:00"},{"$f":"Time!KPC$23","v":"00:00:00"},{"$f":"Time!KPD$23","v":"00:00:00"},{"$f":"Time!KPE$23","v":"00:00:00"},{"$f":"Time!KPF$23","v":"00:00:00"},{"$f":"Time!KPG$23","v":"00:00:00"},{"$f":"Time!KPH$23","v":"00:00:00"},{"$f":"Time!KPI$23","v":"00:00:00"},{"$f":"Time!KPJ$23","v":"00:00:00"},{"$f":"Time!KPK$23","v":"00:00:00"},{"$f":"Time!KPL$23","v":"00:00:00"},{"$f":"Time!KPM$23","v":"00:00:00"},{"$f":"Time!KPN$23","v":"00:00:00"},{"$f":"Time!KPO$23","v":"00:00:00"},{"$f":"Time!KPP$23","v":"00:00:00"},{"$f":"Time!KPQ$23","v":"00:00:00"},{"$f":"Time!KPR$23","v":"00:00:00"},{"$f":"Time!KPS$23","v":"00:00:00"},{"$f":"Time!KPT$23","v":"00:00:00"},{"$f":"Time!KPU$23","v":"00:00:00"},{"$f":"Time!KPV$23","v":"00:00:00"},{"$f":"Time!KPW$23","v":"00:00:00"},{"$f":"Time!KPX$23","v":"00:00:00"},{"$f":"Time!KPY$23","v":"00:00:00"},{"$f":"Time!KPZ$23","v":"00:00:00"},{"$f":"Time!KQA$23","v":"00:00:00"},{"$f":"Time!KQB$23","v":"00:00:00"},{"$f":"Time!KQC$23","v":"00:00:00"},{"$f":"Time!KQD$23","v":"00:00:00"},{"$f":"Time!KQE$23","v":"00:00:00"},{"$f":"Time!KQF$23","v":"00:00:00"},{"$f":"Time!KQG$23","v":"00:00:00"},{"$f":"Time!KQH$23","v":"00:00:00"},{"$f":"Time!KQI$23","v":"00:00:00"},{"$f":"Time!KQJ$23","v":"00:00:00"},{"$f":"Time!KQK$23","v":"00:00:00"},{"$f":"Time!KQL$23","v":"00:00:00"},{"$f":"Time!KQM$23","v":"00:00:00"},{"$f":"Time!KQN$23","v":"00:00:00"},{"$f":"Time!KQO$23","v":"00:00:00"},{"$f":"Time!KQP$23","v":"00:00:00"},{"$f":"Time!KQQ$23","v":"00:00:00"},{"$f":"Time!KQR$23","v":"00:00:00"},{"$f":"Time!KQS$23","v":"00:00:00"},{"$f":"Time!KQT$23","v":"00:00:00"},{"$f":"Time!KQU$23","v":"00:00:00"},{"$f":"Time!KQV$23","v":"00:00:00"},{"$f":"Time!KQW$23","v":"00:00:00"},{"$f":"Time!KQX$23","v":"00:00:00"},{"$f":"Time!KQY$23","v":"00:00:00"},{"$f":"Time!KQZ$23","v":"00:00:00"},{"$f":"Time!KRA$23","v":"00:00:00"},{"$f":"Time!KRB$23","v":"00:00:00"},{"$f":"Time!KRC$23","v":"00:00:00"},{"$f":"Time!KRD$23","v":"00:00:00"},{"$f":"Time!KRE$23","v":"00:00:00"},{"$f":"Time!KRF$23","v":"00:00:00"},{"$f":"Time!KRG$23","v":"00:00:00"},{"$f":"Time!KRH$23","v":"00:00:00"},{"$f":"Time!KRI$23","v":"00:00:00"},{"$f":"Time!KRJ$23","v":"00:00:00"},{"$f":"Time!KRK$23","v":"00:00:00"},{"$f":"Time!KRL$23","v":"00:00:00"},{"$f":"Time!KRM$23","v":"00:00:00"},{"$f":"Time!KRN$23","v":"00:00:00"},{"$f":"Time!KRO$23","v":"00:00:00"},{"$f":"Time!KRP$23","v":"00:00:00"},{"$f":"Time!KRQ$23","v":"00:00:00"},{"$f":"Time!KRR$23","v":"00:00:00"},{"$f":"Time!KRS$23","v":"00:00:00"},{"$f":"Time!KRT$23","v":"00:00:00"},{"$f":"Time!KRU$23","v":"00:00:00"},{"$f":"Time!KRV$23","v":"00:00:00"},{"$f":"Time!KRW$23","v":"00:00:00"},{"$f":"Time!KRX$23","v":"00:00:00"},{"$f":"Time!KRY$23","v":"00:00:00"},{"$f":"Time!KRZ$23","v":"00:00:00"},{"$f":"Time!KSA$23","v":"00:00:00"},{"$f":"Time!KSB$23","v":"00:00:00"},{"$f":"Time!KSC$23","v":"00:00:00"},{"$f":"Time!KSD$23","v":"00:00:00"},{"$f":"Time!KSE$23","v":"00:00:00"},{"$f":"Time!KSF$23","v":"00:00:00"},{"$f":"Time!KSG$23","v":"00:00:00"},{"$f":"Time!KSH$23","v":"00:00:00"},{"$f":"Time!KSI$23","v":"00:00:00"},{"$f":"Time!KSJ$23","v":"00:00:00"},{"$f":"Time!KSK$23","v":"00:00:00"},{"$f":"Time!KSL$23","v":"00:00:00"},{"$f":"Time!KSM$23","v":"00:00:00"},{"$f":"Time!KSN$23","v":"00:00:00"},{"$f":"Time!KSO$23","v":"00:00:00"},{"$f":"Time!KSP$23","v":"00:00:00"},{"$f":"Time!KSQ$23","v":"00:00:00"},{"$f":"Time!KSR$23","v":"00:00:00"},{"$f":"Time!KSS$23","v":"00:00:00"},{"$f":"Time!KST$23","v":"00:00:00"},{"$f":"Time!KSU$23","v":"00:00:00"},{"$f":"Time!KSV$23","v":"00:00:00"},{"$f":"Time!KSW$23","v":"00:00:00"},{"$f":"Time!KSX$23","v":"00:00:00"},{"$f":"Time!KSY$23","v":"00:00:00"},{"$f":"Time!KSZ$23","v":"00:00:00"},{"$f":"Time!KTA$23","v":"00:00:00"},{"$f":"Time!KTB$23","v":"00:00:00"},{"$f":"Time!KTC$23","v":"00:00:00"},{"$f":"Time!KTD$23","v":"00:00:00"},{"$f":"Time!KTE$23","v":"00:00:00"},{"$f":"Time!KTF$23","v":"00:00:00"},{"$f":"Time!KTG$23","v":"00:00:00"},{"$f":"Time!KTH$23","v":"00:00:00"},{"$f":"Time!KTI$23","v":"00:00:00"},{"$f":"Time!KTJ$23","v":"00:00:00"},{"$f":"Time!KTK$23","v":"00:00:00"},{"$f":"Time!KTL$23","v":"00:00:00"},{"$f":"Time!KTM$23","v":"00:00:00"},{"$f":"Time!KTN$23","v":"00:00:00"},{"$f":"Time!KTO$23","v":"00:00:00"},{"$f":"Time!KTP$23","v":"00:00:00"},{"$f":"Time!KTQ$23","v":"00:00:00"},{"$f":"Time!KTR$23","v":"00:00:00"},{"$f":"Time!KTS$23","v":"00:00:00"},{"$f":"Time!KTT$23","v":"00:00:00"},{"$f":"Time!KTU$23","v":"00:00:00"},{"$f":"Time!KTV$23","v":"00:00:00"},{"$f":"Time!KTW$23","v":"00:00:00"},{"$f":"Time!KTX$23","v":"00:00:00"},{"$f":"Time!KTY$23","v":"00:00:00"},{"$f":"Time!KTZ$23","v":"00:00:00"},{"$f":"Time!KUA$23","v":"00:00:00"},{"$f":"Time!KUB$23","v":"00:00:00"},{"$f":"Time!KUC$23","v":"00:00:00"},{"$f":"Time!KUD$23","v":"00:00:00"},{"$f":"Time!KUE$23","v":"00:00:00"},{"$f":"Time!KUF$23","v":"00:00:00"},{"$f":"Time!KUG$23","v":"00:00:00"},{"$f":"Time!KUH$23","v":"00:00:00"},{"$f":"Time!KUI$23","v":"00:00:00"},{"$f":"Time!KUJ$23","v":"00:00:00"},{"$f":"Time!KUK$23","v":"00:00:00"},{"$f":"Time!KUL$23","v":"00:00:00"},{"$f":"Time!KUM$23","v":"00:00:00"},{"$f":"Time!KUN$23","v":"00:00:00"},{"$f":"Time!KUO$23","v":"00:00:00"},{"$f":"Time!KUP$23","v":"00:00:00"},{"$f":"Time!KUQ$23","v":"00:00:00"},{"$f":"Time!KUR$23","v":"00:00:00"},{"$f":"Time!KUS$23","v":"00:00:00"},{"$f":"Time!KUT$23","v":"00:00:00"},{"$f":"Time!KUU$23","v":"00:00:00"},{"$f":"Time!KUV$23","v":"00:00:00"},{"$f":"Time!KUW$23","v":"00:00:00"},{"$f":"Time!KUX$23","v":"00:00:00"},{"$f":"Time!KUY$23","v":"00:00:00"},{"$f":"Time!KUZ$23","v":"00:00:00"},{"$f":"Time!KVA$23","v":"00:00:00"},{"$f":"Time!KVB$23","v":"00:00:00"},{"$f":"Time!KVC$23","v":"00:00:00"},{"$f":"Time!KVD$23","v":"00:00:00"},{"$f":"Time!KVE$23","v":"00:00:00"},{"$f":"Time!KVF$23","v":"00:00:00"},{"$f":"Time!KVG$23","v":"00:00:00"},{"$f":"Time!KVH$23","v":"00:00:00"},{"$f":"Time!KVI$23","v":"00:00:00"},{"$f":"Time!KVJ$23","v":"00:00:00"},{"$f":"Time!KVK$23","v":"00:00:00"},{"$f":"Time!KVL$23","v":"00:00:00"},{"$f":"Time!KVM$23","v":"00:00:00"},{"$f":"Time!KVN$23","v":"00:00:00"},{"$f":"Time!KVO$23","v":"00:00:00"},{"$f":"Time!KVP$23","v":"00:00:00"},{"$f":"Time!KVQ$23","v":"00:00:00"},{"$f":"Time!KVR$23","v":"00:00:00"},{"$f":"Time!KVS$23","v":"00:00:00"},{"$f":"Time!KVT$23","v":"00:00:00"},{"$f":"Time!KVU$23","v":"00:00:00"},{"$f":"Time!KVV$23","v":"00:00:00"},{"$f":"Time!KVW$23","v":"00:00:00"},{"$f":"Time!KVX$23","v":"00:00:00"},{"$f":"Time!KVY$23","v":"00:00:00"},{"$f":"Time!KVZ$23","v":"00:00:00"},{"$f":"Time!KWA$23","v":"00:00:00"},{"$f":"Time!KWB$23","v":"00:00:00"},{"$f":"Time!KWC$23","v":"00:00:00"},{"$f":"Time!KWD$23","v":"00:00:00"},{"$f":"Time!KWE$23","v":"00:00:00"},{"$f":"Time!KWF$23","v":"00:00:00"},{"$f":"Time!KWG$23","v":"00:00:00"},{"$f":"Time!KWH$23","v":"00:00:00"},{"$f":"Time!KWI$23","v":"00:00:00"},{"$f":"Time!KWJ$23","v":"00:00:00"},{"$f":"Time!KWK$23","v":"00:00:00"},{"$f":"Time!KWL$23","v":"00:00:00"},{"$f":"Time!KWM$23","v":"00:00:00"},{"$f":"Time!KWN$23","v":"00:00:00"},{"$f":"Time!KWO$23","v":"00:00:00"},{"$f":"Time!KWP$23","v":"00:00:00"},{"$f":"Time!KWQ$23","v":"00:00:00"},{"$f":"Time!KWR$23","v":"00:00:00"},{"$f":"Time!KWS$23","v":"00:00:00"},{"$f":"Time!KWT$23","v":"00:00:00"},{"$f":"Time!KWU$23","v":"00:00:00"},{"$f":"Time!KWV$23","v":"00:00:00"},{"$f":"Time!KWW$23","v":"00:00:00"},{"$f":"Time!KWX$23","v":"00:00:00"},{"$f":"Time!KWY$23","v":"00:00:00"},{"$f":"Time!KWZ$23","v":"00:00:00"},{"$f":"Time!KXA$23","v":"00:00:00"},{"$f":"Time!KXB$23","v":"00:00:00"},{"$f":"Time!KXC$23","v":"00:00:00"},{"$f":"Time!KXD$23","v":"00:00:00"},{"$f":"Time!KXE$23","v":"00:00:00"},{"$f":"Time!KXF$23","v":"00:00:00"},{"$f":"Time!KXG$23","v":"00:00:00"},{"$f":"Time!KXH$23","v":"00:00:00"},{"$f":"Time!KXI$23","v":"00:00:00"},{"$f":"Time!KXJ$23","v":"00:00:00"},{"$f":"Time!KXK$23","v":"00:00:00"},{"$f":"Time!KXL$23","v":"00:00:00"},{"$f":"Time!KXM$23","v":"00:00:00"},{"$f":"Time!KXN$23","v":"00:00:00"},{"$f":"Time!KXO$23","v":"00:00:00"},{"$f":"Time!KXP$23","v":"00:00:00"},{"$f":"Time!KXQ$23","v":"00:00:00"},{"$f":"Time!KXR$23","v":"00:00:00"},{"$f":"Time!KXS$23","v":"00:00:00"},{"$f":"Time!KXT$23","v":"00:00:00"},{"$f":"Time!KXU$23","v":"00:00:00"},{"$f":"Time!KXV$23","v":"00:00:00"},{"$f":"Time!KXW$23","v":"00:00:00"},{"$f":"Time!KXX$23","v":"00:00:00"},{"$f":"Time!KXY$23","v":"00:00:00"},{"$f":"Time!KXZ$23","v":"00:00:00"},{"$f":"Time!KYA$23","v":"00:00:00"},{"$f":"Time!KYB$23","v":"00:00:00"},{"$f":"Time!KYC$23","v":"00:00:00"},{"$f":"Time!KYD$23","v":"00:00:00"},{"$f":"Time!KYE$23","v":"00:00:00"},{"$f":"Time!KYF$23","v":"00:00:00"},{"$f":"Time!KYG$23","v":"00:00:00"},{"$f":"Time!KYH$23","v":"00:00:00"},{"$f":"Time!KYI$23","v":"00:00:00"},{"$f":"Time!KYJ$23","v":"00:00:00"},{"$f":"Time!KYK$23","v":"00:00:00"},{"$f":"Time!KYL$23","v":"00:00:00"},{"$f":"Time!KYM$23","v":"00:00:00"},{"$f":"Time!KYN$23","v":"00:00:00"},{"$f":"Time!KYO$23","v":"00:00:00"},{"$f":"Time!KYP$23","v":"00:00:00"},{"$f":"Time!KYQ$23","v":"00:00:00"},{"$f":"Time!KYR$23","v":"00:00:00"},{"$f":"Time!KYS$23","v":"00:00:00"},{"$f":"Time!KYT$23","v":"00:00:00"},{"$f":"Time!KYU$23","v":"00:00:00"},{"$f":"Time!KYV$23","v":"00:00:00"},{"$f":"Time!KYW$23","v":"00:00:00"},{"$f":"Time!KYX$23","v":"00:00:00"},{"$f":"Time!KYY$23","v":"00:00:00"},{"$f":"Time!KYZ$23","v":"00:00:00"},{"$f":"Time!KZA$23","v":"00:00:00"},{"$f":"Time!KZB$23","v":"00:00:00"},{"$f":"Time!KZC$23","v":"00:00:00"},{"$f":"Time!KZD$23","v":"00:00:00"},{"$f":"Time!KZE$23","v":"00:00:00"},{"$f":"Time!KZF$23","v":"00:00:00"},{"$f":"Time!KZG$23","v":"00:00:00"},{"$f":"Time!KZH$23","v":"00:00:00"},{"$f":"Time!KZI$23","v":"00:00:00"},{"$f":"Time!KZJ$23","v":"00:00:00"},{"$f":"Time!KZK$23","v":"00:00:00"},{"$f":"Time!KZL$23","v":"00:00:00"},{"$f":"Time!KZM$23","v":"00:00:00"},{"$f":"Time!KZN$23","v":"00:00:00"},{"$f":"Time!KZO$23","v":"00:00:00"},{"$f":"Time!KZP$23","v":"00:00:00"},{"$f":"Time!KZQ$23","v":"00:00:00"},{"$f":"Time!KZR$23","v":"00:00:00"},{"$f":"Time!KZS$23","v":"00:00:00"},{"$f":"Time!KZT$23","v":"00:00:00"},{"$f":"Time!KZU$23","v":"00:00:00"},{"$f":"Time!KZV$23","v":"00:00:00"},{"$f":"Time!KZW$23","v":"00:00:00"},{"$f":"Time!KZX$23","v":"00:00:00"},{"$f":"Time!KZY$23","v":"00:00:00"},{"$f":"Time!KZZ$23","v":"00:00:00"},{"$f":"Time!LAA$23","v":"00:00:00"},{"$f":"Time!LAB$23","v":"00:00:00"},{"$f":"Time!LAC$23","v":"00:00:00"},{"$f":"Time!LAD$23","v":"00:00:00"},{"$f":"Time!LAE$23","v":"00:00:00"},{"$f":"Time!LAF$23","v":"00:00:00"},{"$f":"Time!LAG$23","v":"00:00:00"},{"$f":"Time!LAH$23","v":"00:00:00"},{"$f":"Time!LAI$23","v":"00:00:00"},{"$f":"Time!LAJ$23","v":"00:00:00"},{"$f":"Time!LAK$23","v":"00:00:00"},{"$f":"Time!LAL$23","v":"00:00:00"},{"$f":"Time!LAM$23","v":"00:00:00"},{"$f":"Time!LAN$23","v":"00:00:00"},{"$f":"Time!LAO$23","v":"00:00:00"},{"$f":"Time!LAP$23","v":"00:00:00"},{"$f":"Time!LAQ$23","v":"00:00:00"},{"$f":"Time!LAR$23","v":"00:00:00"},{"$f":"Time!LAS$23","v":"00:00:00"},{"$f":"Time!LAT$23","v":"00:00:00"},{"$f":"Time!LAU$23","v":"00:00:00"},{"$f":"Time!LAV$23","v":"00:00:00"},{"$f":"Time!LAW$23","v":"00:00:00"},{"$f":"Time!LAX$23","v":"00:00:00"},{"$f":"Time!LAY$23","v":"00:00:00"},{"$f":"Time!LAZ$23","v":"00:00:00"},{"$f":"Time!LBA$23","v":"00:00:00"},{"$f":"Time!LBB$23","v":"00:00:00"},{"$f":"Time!LBC$23","v":"00:00:00"},{"$f":"Time!LBD$23","v":"00:00:00"},{"$f":"Time!LBE$23","v":"00:00:00"},{"$f":"Time!LBF$23","v":"00:00:00"},{"$f":"Time!LBG$23","v":"00:00:00"},{"$f":"Time!LBH$23","v":"00:00:00"},{"$f":"Time!LBI$23","v":"00:00:00"},{"$f":"Time!LBJ$23","v":"00:00:00"},{"$f":"Time!LBK$23","v":"00:00:00"},{"$f":"Time!LBL$23","v":"00:00:00"},{"$f":"Time!LBM$23","v":"00:00:00"},{"$f":"Time!LBN$23","v":"00:00:00"},{"$f":"Time!LBO$23","v":"00:00:00"},{"$f":"Time!LBP$23","v":"00:00:00"},{"$f":"Time!LBQ$23","v":"00:00:00"},{"$f":"Time!LBR$23","v":"00:00:00"},{"$f":"Time!LBS$23","v":"00:00:00"},{"$f":"Time!LBT$23","v":"00:00:00"},{"$f":"Time!LBU$23","v":"00:00:00"},{"$f":"Time!LBV$23","v":"00:00:00"},{"$f":"Time!LBW$23","v":"00:00:00"},{"$f":"Time!LBX$23","v":"00:00:00"},{"$f":"Time!LBY$23","v":"00:00:00"},{"$f":"Time!LBZ$23","v":"00:00:00"},{"$f":"Time!LCA$23","v":"00:00:00"},{"$f":"Time!LCB$23","v":"00:00:00"},{"$f":"Time!LCC$23","v":"00:00:00"},{"$f":"Time!LCD$23","v":"00:00:00"},{"$f":"Time!LCE$23","v":"00:00:00"},{"$f":"Time!LCF$23","v":"00:00:00"},{"$f":"Time!LCG$23","v":"00:00:00"},{"$f":"Time!LCH$23","v":"00:00:00"},{"$f":"Time!LCI$23","v":"00:00:00"},{"$f":"Time!LCJ$23","v":"00:00:00"},{"$f":"Time!LCK$23","v":"00:00:00"},{"$f":"Time!LCL$23","v":"00:00:00"},{"$f":"Time!LCM$23","v":"00:00:00"},{"$f":"Time!LCN$23","v":"00:00:00"},{"$f":"Time!LCO$23","v":"00:00:00"},{"$f":"Time!LCP$23","v":"00:00:00"},{"$f":"Time!LCQ$23","v":"00:00:00"},{"$f":"Time!LCR$23","v":"00:00:00"},{"$f":"Time!LCS$23","v":"00:00:00"},{"$f":"Time!LCT$23","v":"00:00:00"},{"$f":"Time!LCU$23","v":"00:00:00"},{"$f":"Time!LCV$23","v":"00:00:00"},{"$f":"Time!LCW$23","v":"00:00:00"},{"$f":"Time!LCX$23","v":"00:00:00"},{"$f":"Time!LCY$23","v":"00:00:00"},{"$f":"Time!LCZ$23","v":"00:00:00"},{"$f":"Time!LDA$23","v":"00:00:00"},{"$f":"Time!LDB$23","v":"00:00:00"},{"$f":"Time!LDC$23","v":"00:00:00"},{"$f":"Time!LDD$23","v":"00:00:00"},{"$f":"Time!LDE$23","v":"00:00:00"},{"$f":"Time!LDF$23","v":"00:00:00"},{"$f":"Time!LDG$23","v":"00:00:00"},{"$f":"Time!LDH$23","v":"00:00:00"},{"$f":"Time!LDI$23","v":"00:00:00"},{"$f":"Time!LDJ$23","v":"00:00:00"},{"$f":"Time!LDK$23","v":"00:00:00"},{"$f":"Time!LDL$23","v":"00:00:00"},{"$f":"Time!LDM$23","v":"00:00:00"},{"$f":"Time!LDN$23","v":"00:00:00"},{"$f":"Time!LDO$23","v":"00:00:00"},{"$f":"Time!LDP$23","v":"00:00:00"},{"$f":"Time!LDQ$23","v":"00:00:00"},{"$f":"Time!LDR$23","v":"00:00:00"},{"$f":"Time!LDS$23","v":"00:00:00"},{"$f":"Time!LDT$23","v":"00:00:00"},{"$f":"Time!LDU$23","v":"00:00:00"},{"$f":"Time!LDV$23","v":"00:00:00"},{"$f":"Time!LDW$23","v":"00:00:00"},{"$f":"Time!LDX$23","v":"00:00:00"},{"$f":"Time!LDY$23","v":"00:00:00"},{"$f":"Time!LDZ$23","v":"00:00:00"},{"$f":"Time!LEA$23","v":"00:00:00"},{"$f":"Time!LEB$23","v":"00:00:00"},{"$f":"Time!LEC$23","v":"00:00:00"},{"$f":"Time!LED$23","v":"00:00:00"},{"$f":"Time!LEE$23","v":"00:00:00"},{"$f":"Time!LEF$23","v":"00:00:00"},{"$f":"Time!LEG$23","v":"00:00:00"},{"$f":"Time!LEH$23","v":"00:00:00"},{"$f":"Time!LEI$23","v":"00:00:00"},{"$f":"Time!LEJ$23","v":"00:00:00"},{"$f":"Time!LEK$23","v":"00:00:00"},{"$f":"Time!LEL$23","v":"00:00:00"},{"$f":"Time!LEM$23","v":"00:00:00"},{"$f":"Time!LEN$23","v":"00:00:00"},{"$f":"Time!LEO$23","v":"00:00:00"},{"$f":"Time!LEP$23","v":"00:00:00"},{"$f":"Time!LEQ$23","v":"00:00:00"},{"$f":"Time!LER$23","v":"00:00:00"},{"$f":"Time!LES$23","v":"00:00:00"},{"$f":"Time!LET$23","v":"00:00:00"},{"$f":"Time!LEU$23","v":"00:00:00"},{"$f":"Time!LEV$23","v":"00:00:00"},{"$f":"Time!LEW$23","v":"00:00:00"},{"$f":"Time!LEX$23","v":"00:00:00"},{"$f":"Time!LEY$23","v":"00:00:00"},{"$f":"Time!LEZ$23","v":"00:00:00"},{"$f":"Time!LFA$23","v":"00:00:00"},{"$f":"Time!LFB$23","v":"00:00:00"},{"$f":"Time!LFC$23","v":"00:00:00"},{"$f":"Time!LFD$23","v":"00:00:00"},{"$f":"Time!LFE$23","v":"00:00:00"},{"$f":"Time!LFF$23","v":"00:00:00"},{"$f":"Time!LFG$23","v":"00:00:00"},{"$f":"Time!LFH$23","v":"00:00:00"},{"$f":"Time!LFI$23","v":"00:00:00"},{"$f":"Time!LFJ$23","v":"00:00:00"},{"$f":"Time!LFK$23","v":"00:00:00"},{"$f":"Time!LFL$23","v":"00:00:00"},{"$f":"Time!LFM$23","v":"00:00:00"},{"$f":"Time!LFN$23","v":"00:00:00"},{"$f":"Time!LFO$23","v":"00:00:00"},{"$f":"Time!LFP$23","v":"00:00:00"},{"$f":"Time!LFQ$23","v":"00:00:00"},{"$f":"Time!LFR$23","v":"00:00:00"},{"$f":"Time!LFS$23","v":"00:00:00"},{"$f":"Time!LFT$23","v":"00:00:00"},{"$f":"Time!LFU$23","v":"00:00:00"},{"$f":"Time!LFV$23","v":"00:00:00"},{"$f":"Time!LFW$23","v":"00:00:00"},{"$f":"Time!LFX$23","v":"00:00:00"},{"$f":"Time!LFY$23","v":"00:00:00"},{"$f":"Time!LFZ$23","v":"00:00:00"},{"$f":"Time!LGA$23","v":"00:00:00"},{"$f":"Time!LGB$23","v":"00:00:00"},{"$f":"Time!LGC$23","v":"00:00:00"},{"$f":"Time!LGD$23","v":"00:00:00"},{"$f":"Time!LGE$23","v":"00:00:00"},{"$f":"Time!LGF$23","v":"00:00:00"},{"$f":"Time!LGG$23","v":"00:00:00"},{"$f":"Time!LGH$23","v":"00:00:00"},{"$f":"Time!LGI$23","v":"00:00:00"},{"$f":"Time!LGJ$23","v":"00:00:00"},{"$f":"Time!LGK$23","v":"00:00:00"},{"$f":"Time!LGL$23","v":"00:00:00"},{"$f":"Time!LGM$23","v":"00:00:00"},{"$f":"Time!LGN$23","v":"00:00:00"},{"$f":"Time!LGO$23","v":"00:00:00"},{"$f":"Time!LGP$23","v":"00:00:00"},{"$f":"Time!LGQ$23","v":"00:00:00"},{"$f":"Time!LGR$23","v":"00:00:00"},{"$f":"Time!LGS$23","v":"00:00:00"},{"$f":"Time!LGT$23","v":"00:00:00"},{"$f":"Time!LGU$23","v":"00:00:00"},{"$f":"Time!LGV$23","v":"00:00:00"},{"$f":"Time!LGW$23","v":"00:00:00"},{"$f":"Time!LGX$23","v":"00:00:00"},{"$f":"Time!LGY$23","v":"00:00:00"},{"$f":"Time!LGZ$23","v":"00:00:00"},{"$f":"Time!LHA$23","v":"00:00:00"},{"$f":"Time!LHB$23","v":"00:00:00"},{"$f":"Time!LHC$23","v":"00:00:00"},{"$f":"Time!LHD$23","v":"00:00:00"},{"$f":"Time!LHE$23","v":"00:00:00"},{"$f":"Time!LHF$23","v":"00:00:00"},{"$f":"Time!LHG$23","v":"00:00:00"},{"$f":"Time!LHH$23","v":"00:00:00"},{"$f":"Time!LHI$23","v":"00:00:00"},{"$f":"Time!LHJ$23","v":"00:00:00"},{"$f":"Time!LHK$23","v":"00:00:00"},{"$f":"Time!LHL$23","v":"00:00:00"},{"$f":"Time!LHM$23","v":"00:00:00"},{"$f":"Time!LHN$23","v":"00:00:00"},{"$f":"Time!LHO$23","v":"00:00:00"},{"$f":"Time!LHP$23","v":"00:00:00"},{"$f":"Time!LHQ$23","v":"00:00:00"},{"$f":"Time!LHR$23","v":"00:00:00"},{"$f":"Time!LHS$23","v":"00:00:00"},{"$f":"Time!LHT$23","v":"00:00:00"},{"$f":"Time!LHU$23","v":"00:00:00"},{"$f":"Time!LHV$23","v":"00:00:00"},{"$f":"Time!LHW$23","v":"00:00:00"},{"$f":"Time!LHX$23","v":"00:00:00"},{"$f":"Time!LHY$23","v":"00:00:00"},{"$f":"Time!LHZ$23","v":"00:00:00"},{"$f":"Time!LIA$23","v":"00:00:00"},{"$f":"Time!LIB$23","v":"00:00:00"},{"$f":"Time!LIC$23","v":"00:00:00"},{"$f":"Time!LID$23","v":"00:00:00"},{"$f":"Time!LIE$23","v":"00:00:00"},{"$f":"Time!LIF$23","v":"00:00:00"},{"$f":"Time!LIG$23","v":"00:00:00"},{"$f":"Time!LIH$23","v":"00:00:00"},{"$f":"Time!LII$23","v":"00:00:00"},{"$f":"Time!LIJ$23","v":"00:00:00"},{"$f":"Time!LIK$23","v":"00:00:00"},{"$f":"Time!LIL$23","v":"00:00:00"},{"$f":"Time!LIM$23","v":"00:00:00"},{"$f":"Time!LIN$23","v":"00:00:00"},{"$f":"Time!LIO$23","v":"00:00:00"},{"$f":"Time!LIP$23","v":"00:00:00"},{"$f":"Time!LIQ$23","v":"00:00:00"},{"$f":"Time!LIR$23","v":"00:00:00"},{"$f":"Time!LIS$23","v":"00:00:00"},{"$f":"Time!LIT$23","v":"00:00:00"},{"$f":"Time!LIU$23","v":"00:00:00"},{"$f":"Time!LIV$23","v":"00:00:00"},{"$f":"Time!LIW$23","v":"00:00:00"},{"$f":"Time!LIX$23","v":"00:00:00"},{"$f":"Time!LIY$23","v":"00:00:00"},{"$f":"Time!LIZ$23","v":"00:00:00"},{"$f":"Time!LJA$23","v":"00:00:00"},{"$f":"Time!LJB$23","v":"00:00:00"},{"$f":"Time!LJC$23","v":"00:00:00"},{"$f":"Time!LJD$23","v":"00:00:00"},{"$f":"Time!LJE$23","v":"00:00:00"},{"$f":"Time!LJF$23","v":"00:00:00"},{"$f":"Time!LJG$23","v":"00:00:00"},{"$f":"Time!LJH$23","v":"00:00:00"},{"$f":"Time!LJI$23","v":"00:00:00"},{"$f":"Time!LJJ$23","v":"00:00:00"},{"$f":"Time!LJK$23","v":"00:00:00"},{"$f":"Time!LJL$23","v":"00:00:00"},{"$f":"Time!LJM$23","v":"00:00:00"},{"$f":"Time!LJN$23","v":"00:00:00"},{"$f":"Time!LJO$23","v":"00:00:00"},{"$f":"Time!LJP$23","v":"00:00:00"},{"$f":"Time!LJQ$23","v":"00:00:00"},{"$f":"Time!LJR$23","v":"00:00:00"},{"$f":"Time!LJS$23","v":"00:00:00"},{"$f":"Time!LJT$23","v":"00:00:00"},{"$f":"Time!LJU$23","v":"00:00:00"},{"$f":"Time!LJV$23","v":"00:00:00"},{"$f":"Time!LJW$23","v":"00:00:00"},{"$f":"Time!LJX$23","v":"00:00:00"},{"$f":"Time!LJY$23","v":"00:00:00"},{"$f":"Time!LJZ$23","v":"00:00:00"},{"$f":"Time!LKA$23","v":"00:00:00"},{"$f":"Time!LKB$23","v":"00:00:00"},{"$f":"Time!LKC$23","v":"00:00:00"},{"$f":"Time!LKD$23","v":"00:00:00"},{"$f":"Time!LKE$23","v":"00:00:00"},{"$f":"Time!LKF$23","v":"00:00:00"},{"$f":"Time!LKG$23","v":"00:00:00"},{"$f":"Time!LKH$23","v":"00:00:00"},{"$f":"Time!LKI$23","v":"00:00:00"},{"$f":"Time!LKJ$23","v":"00:00:00"},{"$f":"Time!LKK$23","v":"00:00:00"},{"$f":"Time!LKL$23","v":"00:00:00"},{"$f":"Time!LKM$23","v":"00:00:00"},{"$f":"Time!LKN$23","v":"00:00:00"},{"$f":"Time!LKO$23","v":"00:00:00"},{"$f":"Time!LKP$23","v":"00:00:00"},{"$f":"Time!LKQ$23","v":"00:00:00"},{"$f":"Time!LKR$23","v":"00:00:00"},{"$f":"Time!LKS$23","v":"00:00:00"},{"$f":"Time!LKT$23","v":"00:00:00"},{"$f":"Time!LKU$23","v":"00:00:00"},{"$f":"Time!LKV$23","v":"00:00:00"},{"$f":"Time!LKW$23","v":"00:00:00"},{"$f":"Time!LKX$23","v":"00:00:00"},{"$f":"Time!LKY$23","v":"00:00:00"},{"$f":"Time!LKZ$23","v":"00:00:00"},{"$f":"Time!LLA$23","v":"00:00:00"},{"$f":"Time!LLB$23","v":"00:00:00"},{"$f":"Time!LLC$23","v":"00:00:00"},{"$f":"Time!LLD$23","v":"00:00:00"},{"$f":"Time!LLE$23","v":"00:00:00"},{"$f":"Time!LLF$23","v":"00:00:00"},{"$f":"Time!LLG$23","v":"00:00:00"},{"$f":"Time!LLH$23","v":"00:00:00"},{"$f":"Time!LLI$23","v":"00:00:00"},{"$f":"Time!LLJ$23","v":"00:00:00"},{"$f":"Time!LLK$23","v":"00:00:00"},{"$f":"Time!LLL$23","v":"00:00:00"},{"$f":"Time!LLM$23","v":"00:00:00"},{"$f":"Time!LLN$23","v":"00:00:00"},{"$f":"Time!LLO$23","v":"00:00:00"},{"$f":"Time!LLP$23","v":"00:00:00"},{"$f":"Time!LLQ$23","v":"00:00:00"},{"$f":"Time!LLR$23","v":"00:00:00"},{"$f":"Time!LLS$23","v":"00:00:00"},{"$f":"Time!LLT$23","v":"00:00:00"},{"$f":"Time!LLU$23","v":"00:00:00"},{"$f":"Time!LLV$23","v":"00:00:00"},{"$f":"Time!LLW$23","v":"00:00:00"},{"$f":"Time!LLX$23","v":"00:00:00"},{"$f":"Time!LLY$23","v":"00:00:00"},{"$f":"Time!LLZ$23","v":"00:00:00"},{"$f":"Time!LMA$23","v":"00:00:00"},{"$f":"Time!LMB$23","v":"00:00:00"},{"$f":"Time!LMC$23","v":"00:00:00"},{"$f":"Time!LMD$23","v":"00:00:00"},{"$f":"Time!LME$23","v":"00:00:00"},{"$f":"Time!LMF$23","v":"00:00:00"},{"$f":"Time!LMG$23","v":"00:00:00"},{"$f":"Time!LMH$23","v":"00:00:00"},{"$f":"Time!LMI$23","v":"00:00:00"},{"$f":"Time!LMJ$23","v":"00:00:00"},{"$f":"Time!LMK$23","v":"00:00:00"},{"$f":"Time!LML$23","v":"00:00:00"},{"$f":"Time!LMM$23","v":"00:00:00"},{"$f":"Time!LMN$23","v":"00:00:00"},{"$f":"Time!LMO$23","v":"00:00:00"},{"$f":"Time!LMP$23","v":"00:00:00"},{"$f":"Time!LMQ$23","v":"00:00:00"},{"$f":"Time!LMR$23","v":"00:00:00"},{"$f":"Time!LMS$23","v":"00:00:00"},{"$f":"Time!LMT$23","v":"00:00:00"},{"$f":"Time!LMU$23","v":"00:00:00"},{"$f":"Time!LMV$23","v":"00:00:00"},{"$f":"Time!LMW$23","v":"00:00:00"},{"$f":"Time!LMX$23","v":"00:00:00"},{"$f":"Time!LMY$23","v":"00:00:00"},{"$f":"Time!LMZ$23","v":"00:00:00"},{"$f":"Time!LNA$23","v":"00:00:00"},{"$f":"Time!LNB$23","v":"00:00:00"},{"$f":"Time!LNC$23","v":"00:00:00"},{"$f":"Time!LND$23","v":"00:00:00"},{"$f":"Time!LNE$23","v":"00:00:00"},{"$f":"Time!LNF$23","v":"00:00:00"},{"$f":"Time!LNG$23","v":"00:00:00"},{"$f":"Time!LNH$23","v":"00:00:00"},{"$f":"Time!LNI$23","v":"00:00:00"},{"$f":"Time!LNJ$23","v":"00:00:00"},{"$f":"Time!LNK$23","v":"00:00:00"},{"$f":"Time!LNL$23","v":"00:00:00"},{"$f":"Time!LNM$23","v":"00:00:00"},{"$f":"Time!LNN$23","v":"00:00:00"},{"$f":"Time!LNO$23","v":"00:00:00"},{"$f":"Time!LNP$23","v":"00:00:00"},{"$f":"Time!LNQ$23","v":"00:00:00"},{"$f":"Time!LNR$23","v":"00:00:00"},{"$f":"Time!LNS$23","v":"00:00:00"},{"$f":"Time!LNT$23","v":"00:00:00"},{"$f":"Time!LNU$23","v":"00:00:00"},{"$f":"Time!LNV$23","v":"00:00:00"},{"$f":"Time!LNW$23","v":"00:00:00"},{"$f":"Time!LNX$23","v":"00:00:00"},{"$f":"Time!LNY$23","v":"00:00:00"},{"$f":"Time!LNZ$23","v":"00:00:00"},{"$f":"Time!LOA$23","v":"00:00:00"},{"$f":"Time!LOB$23","v":"00:00:00"},{"$f":"Time!LOC$23","v":"00:00:00"},{"$f":"Time!LOD$23","v":"00:00:00"},{"$f":"Time!LOE$23","v":"00:00:00"},{"$f":"Time!LOF$23","v":"00:00:00"},{"$f":"Time!LOG$23","v":"00:00:00"},{"$f":"Time!LOH$23","v":"00:00:00"},{"$f":"Time!LOI$23","v":"00:00:00"},{"$f":"Time!LOJ$23","v":"00:00:00"},{"$f":"Time!LOK$23","v":"00:00:00"},{"$f":"Time!LOL$23","v":"00:00:00"},{"$f":"Time!LOM$23","v":"00:00:00"},{"$f":"Time!LON$23","v":"00:00:00"},{"$f":"Time!LOO$23","v":"00:00:00"},{"$f":"Time!LOP$23","v":"00:00:00"},{"$f":"Time!LOQ$23","v":"00:00:00"},{"$f":"Time!LOR$23","v":"00:00:00"},{"$f":"Time!LOS$23","v":"00:00:00"},{"$f":"Time!LOT$23","v":"00:00:00"},{"$f":"Time!LOU$23","v":"00:00:00"},{"$f":"Time!LOV$23","v":"00:00:00"},{"$f":"Time!LOW$23","v":"00:00:00"},{"$f":"Time!LOX$23","v":"00:00:00"},{"$f":"Time!LOY$23","v":"00:00:00"},{"$f":"Time!LOZ$23","v":"00:00:00"},{"$f":"Time!LPA$23","v":"00:00:00"},{"$f":"Time!LPB$23","v":"00:00:00"},{"$f":"Time!LPC$23","v":"00:00:00"},{"$f":"Time!LPD$23","v":"00:00:00"},{"$f":"Time!LPE$23","v":"00:00:00"},{"$f":"Time!LPF$23","v":"00:00:00"},{"$f":"Time!LPG$23","v":"00:00:00"},{"$f":"Time!LPH$23","v":"00:00:00"},{"$f":"Time!LPI$23","v":"00:00:00"},{"$f":"Time!LPJ$23","v":"00:00:00"},{"$f":"Time!LPK$23","v":"00:00:00"},{"$f":"Time!LPL$23","v":"00:00:00"},{"$f":"Time!LPM$23","v":"00:00:00"},{"$f":"Time!LPN$23","v":"00:00:00"},{"$f":"Time!LPO$23","v":"00:00:00"},{"$f":"Time!LPP$23","v":"00:00:00"},{"$f":"Time!LPQ$23","v":"00:00:00"},{"$f":"Time!LPR$23","v":"00:00:00"},{"$f":"Time!LPS$23","v":"00:00:00"},{"$f":"Time!LPT$23","v":"00:00:00"},{"$f":"Time!LPU$23","v":"00:00:00"},{"$f":"Time!LPV$23","v":"00:00:00"},{"$f":"Time!LPW$23","v":"00:00:00"},{"$f":"Time!LPX$23","v":"00:00:00"},{"$f":"Time!LPY$23","v":"00:00:00"},{"$f":"Time!LPZ$23","v":"00:00:00"},{"$f":"Time!LQA$23","v":"00:00:00"},{"$f":"Time!LQB$23","v":"00:00:00"},{"$f":"Time!LQC$23","v":"00:00:00"},{"$f":"Time!LQD$23","v":"00:00:00"},{"$f":"Time!LQE$23","v":"00:00:00"},{"$f":"Time!LQF$23","v":"00:00:00"},{"$f":"Time!LQG$23","v":"00:00:00"},{"$f":"Time!LQH$23","v":"00:00:00"},{"$f":"Time!LQI$23","v":"00:00:00"},{"$f":"Time!LQJ$23","v":"00:00:00"},{"$f":"Time!LQK$23","v":"00:00:00"},{"$f":"Time!LQL$23","v":"00:00:00"},{"$f":"Time!LQM$23","v":"00:00:00"},{"$f":"Time!LQN$23","v":"00:00:00"},{"$f":"Time!LQO$23","v":"00:00:00"},{"$f":"Time!LQP$23","v":"00:00:00"},{"$f":"Time!LQQ$23","v":"00:00:00"},{"$f":"Time!LQR$23","v":"00:00:00"},{"$f":"Time!LQS$23","v":"00:00:00"},{"$f":"Time!LQT$23","v":"00:00:00"},{"$f":"Time!LQU$23","v":"00:00:00"},{"$f":"Time!LQV$23","v":"00:00:00"},{"$f":"Time!LQW$23","v":"00:00:00"},{"$f":"Time!LQX$23","v":"00:00:00"},{"$f":"Time!LQY$23","v":"00:00:00"},{"$f":"Time!LQZ$23","v":"00:00:00"},{"$f":"Time!LRA$23","v":"00:00:00"},{"$f":"Time!LRB$23","v":"00:00:00"},{"$f":"Time!LRC$23","v":"00:00:00"},{"$f":"Time!LRD$23","v":"00:00:00"},{"$f":"Time!LRE$23","v":"00:00:00"},{"$f":"Time!LRF$23","v":"00:00:00"},{"$f":"Time!LRG$23","v":"00:00:00"},{"$f":"Time!LRH$23","v":"00:00:00"},{"$f":"Time!LRI$23","v":"00:00:00"},{"$f":"Time!LRJ$23","v":"00:00:00"},{"$f":"Time!LRK$23","v":"00:00:00"},{"$f":"Time!LRL$23","v":"00:00:00"},{"$f":"Time!LRM$23","v":"00:00:00"},{"$f":"Time!LRN$23","v":"00:00:00"},{"$f":"Time!LRO$23","v":"00:00:00"},{"$f":"Time!LRP$23","v":"00:00:00"},{"$f":"Time!LRQ$23","v":"00:00:00"},{"$f":"Time!LRR$23","v":"00:00:00"},{"$f":"Time!LRS$23","v":"00:00:00"},{"$f":"Time!LRT$23","v":"00:00:00"},{"$f":"Time!LRU$23","v":"00:00:00"},{"$f":"Time!LRV$23","v":"00:00:00"},{"$f":"Time!LRW$23","v":"00:00:00"},{"$f":"Time!LRX$23","v":"00:00:00"},{"$f":"Time!LRY$23","v":"00:00:00"},{"$f":"Time!LRZ$23","v":"00:00:00"},{"$f":"Time!LSA$23","v":"00:00:00"},{"$f":"Time!LSB$23","v":"00:00:00"},{"$f":"Time!LSC$23","v":"00:00:00"},{"$f":"Time!LSD$23","v":"00:00:00"},{"$f":"Time!LSE$23","v":"00:00:00"},{"$f":"Time!LSF$23","v":"00:00:00"},{"$f":"Time!LSG$23","v":"00:00:00"},{"$f":"Time!LSH$23","v":"00:00:00"},{"$f":"Time!LSI$23","v":"00:00:00"},{"$f":"Time!LSJ$23","v":"00:00:00"},{"$f":"Time!LSK$23","v":"00:00:00"},{"$f":"Time!LSL$23","v":"00:00:00"},{"$f":"Time!LSM$23","v":"00:00:00"},{"$f":"Time!LSN$23","v":"00:00:00"},{"$f":"Time!LSO$23","v":"00:00:00"},{"$f":"Time!LSP$23","v":"00:00:00"},{"$f":"Time!LSQ$23","v":"00:00:00"},{"$f":"Time!LSR$23","v":"00:00:00"},{"$f":"Time!LSS$23","v":"00:00:00"},{"$f":"Time!LST$23","v":"00:00:00"},{"$f":"Time!LSU$23","v":"00:00:00"},{"$f":"Time!LSV$23","v":"00:00:00"},{"$f":"Time!LSW$23","v":"00:00:00"},{"$f":"Time!LSX$23","v":"00:00:00"},{"$f":"Time!LSY$23","v":"00:00:00"},{"$f":"Time!LSZ$23","v":"00:00:00"},{"$f":"Time!LTA$23","v":"00:00:00"},{"$f":"Time!LTB$23","v":"00:00:00"},{"$f":"Time!LTC$23","v":"00:00:00"},{"$f":"Time!LTD$23","v":"00:00:00"},{"$f":"Time!LTE$23","v":"00:00:00"},{"$f":"Time!LTF$23","v":"00:00:00"},{"$f":"Time!LTG$23","v":"00:00:00"},{"$f":"Time!LTH$23","v":"00:00:00"},{"$f":"Time!LTI$23","v":"00:00:00"},{"$f":"Time!LTJ$23","v":"00:00:00"},{"$f":"Time!LTK$23","v":"00:00:00"},{"$f":"Time!LTL$23","v":"00:00:00"},{"$f":"Time!LTM$23","v":"00:00:00"},{"$f":"Time!LTN$23","v":"00:00:00"},{"$f":"Time!LTO$23","v":"00:00:00"},{"$f":"Time!LTP$23","v":"00:00:00"},{"$f":"Time!LTQ$23","v":"00:00:00"},{"$f":"Time!LTR$23","v":"00:00:00"},{"$f":"Time!LTS$23","v":"00:00:00"},{"$f":"Time!LTT$23","v":"00:00:00"},{"$f":"Time!LTU$23","v":"00:00:00"},{"$f":"Time!LTV$23","v":"00:00:00"},{"$f":"Time!LTW$23","v":"00:00:00"},{"$f":"Time!LTX$23","v":"00:00:00"},{"$f":"Time!LTY$23","v":"00:00:00"},{"$f":"Time!LTZ$23","v":"00:00:00"},{"$f":"Time!LUA$23","v":"00:00:00"},{"$f":"Time!LUB$23","v":"00:00:00"},{"$f":"Time!LUC$23","v":"00:00:00"},{"$f":"Time!LUD$23","v":"00:00:00"},{"$f":"Time!LUE$23","v":"00:00:00"},{"$f":"Time!LUF$23","v":"00:00:00"},{"$f":"Time!LUG$23","v":"00:00:00"},{"$f":"Time!LUH$23","v":"00:00:00"},{"$f":"Time!LUI$23","v":"00:00:00"},{"$f":"Time!LUJ$23","v":"00:00:00"},{"$f":"Time!LUK$23","v":"00:00:00"},{"$f":"Time!LUL$23","v":"00:00:00"},{"$f":"Time!LUM$23","v":"00:00:00"},{"$f":"Time!LUN$23","v":"00:00:00"},{"$f":"Time!LUO$23","v":"00:00:00"},{"$f":"Time!LUP$23","v":"00:00:00"},{"$f":"Time!LUQ$23","v":"00:00:00"},{"$f":"Time!LUR$23","v":"00:00:00"},{"$f":"Time!LUS$23","v":"00:00:00"},{"$f":"Time!LUT$23","v":"00:00:00"},{"$f":"Time!LUU$23","v":"00:00:00"},{"$f":"Time!LUV$23","v":"00:00:00"},{"$f":"Time!LUW$23","v":"00:00:00"},{"$f":"Time!LUX$23","v":"00:00:00"},{"$f":"Time!LUY$23","v":"00:00:00"},{"$f":"Time!LUZ$23","v":"00:00:00"},{"$f":"Time!LVA$23","v":"00:00:00"},{"$f":"Time!LVB$23","v":"00:00:00"},{"$f":"Time!LVC$23","v":"00:00:00"},{"$f":"Time!LVD$23","v":"00:00:00"},{"$f":"Time!LVE$23","v":"00:00:00"},{"$f":"Time!LVF$23","v":"00:00:00"},{"$f":"Time!LVG$23","v":"00:00:00"},{"$f":"Time!LVH$23","v":"00:00:00"},{"$f":"Time!LVI$23","v":"00:00:00"},{"$f":"Time!LVJ$23","v":"00:00:00"},{"$f":"Time!LVK$23","v":"00:00:00"},{"$f":"Time!LVL$23","v":"00:00:00"},{"$f":"Time!LVM$23","v":"00:00:00"},{"$f":"Time!LVN$23","v":"00:00:00"},{"$f":"Time!LVO$23","v":"00:00:00"},{"$f":"Time!LVP$23","v":"00:00:00"},{"$f":"Time!LVQ$23","v":"00:00:00"},{"$f":"Time!LVR$23","v":"00:00:00"},{"$f":"Time!LVS$23","v":"00:00:00"},{"$f":"Time!LVT$23","v":"00:00:00"},{"$f":"Time!LVU$23","v":"00:00:00"},{"$f":"Time!LVV$23","v":"00:00:00"},{"$f":"Time!LVW$23","v":"00:00:00"},{"$f":"Time!LVX$23","v":"00:00:00"},{"$f":"Time!LVY$23","v":"00:00:00"},{"$f":"Time!LVZ$23","v":"00:00:00"},{"$f":"Time!LWA$23","v":"00:00:00"},{"$f":"Time!LWB$23","v":"00:00:00"},{"$f":"Time!LWC$23","v":"00:00:00"},{"$f":"Time!LWD$23","v":"00:00:00"},{"$f":"Time!LWE$23","v":"00:00:00"},{"$f":"Time!LWF$23","v":"00:00:00"},{"$f":"Time!LWG$23","v":"00:00:00"},{"$f":"Time!LWH$23","v":"00:00:00"},{"$f":"Time!LWI$23","v":"00:00:00"},{"$f":"Time!LWJ$23","v":"00:00:00"},{"$f":"Time!LWK$23","v":"00:00:00"},{"$f":"Time!LWL$23","v":"00:00:00"},{"$f":"Time!LWM$23","v":"00:00:00"},{"$f":"Time!LWN$23","v":"00:00:00"},{"$f":"Time!LWO$23","v":"00:00:00"},{"$f":"Time!LWP$23","v":"00:00:00"},{"$f":"Time!LWQ$23","v":"00:00:00"},{"$f":"Time!LWR$23","v":"00:00:00"},{"$f":"Time!LWS$23","v":"00:00:00"},{"$f":"Time!LWT$23","v":"00:00:00"},{"$f":"Time!LWU$23","v":"00:00:00"},{"$f":"Time!LWV$23","v":"00:00:00"},{"$f":"Time!LWW$23","v":"00:00:00"},{"$f":"Time!LWX$23","v":"00:00:00"},{"$f":"Time!LWY$23","v":"00:00:00"},{"$f":"Time!LWZ$23","v":"00:00:00"},{"$f":"Time!LXA$23","v":"00:00:00"},{"$f":"Time!LXB$23","v":"00:00:00"},{"$f":"Time!LXC$23","v":"00:00:00"},{"$f":"Time!LXD$23","v":"00:00:00"},{"$f":"Time!LXE$23","v":"00:00:00"},{"$f":"Time!LXF$23","v":"00:00:00"},{"$f":"Time!LXG$23","v":"00:00:00"},{"$f":"Time!LXH$23","v":"00:00:00"},{"$f":"Time!LXI$23","v":"00:00:00"},{"$f":"Time!LXJ$23","v":"00:00:00"},{"$f":"Time!LXK$23","v":"00:00:00"},{"$f":"Time!LXL$23","v":"00:00:00"},{"$f":"Time!LXM$23","v":"00:00:00"},{"$f":"Time!LXN$23","v":"00:00:00"},{"$f":"Time!LXO$23","v":"00:00:00"},{"$f":"Time!LXP$23","v":"00:00:00"},{"$f":"Time!LXQ$23","v":"00:00:00"},{"$f":"Time!LXR$23","v":"00:00:00"},{"$f":"Time!LXS$23","v":"00:00:00"},{"$f":"Time!LXT$23","v":"00:00:00"},{"$f":"Time!LXU$23","v":"00:00:00"},{"$f":"Time!LXV$23","v":"00:00:00"},{"$f":"Time!LXW$23","v":"00:00:00"},{"$f":"Time!LXX$23","v":"00:00:00"},{"$f":"Time!LXY$23","v":"00:00:00"},{"$f":"Time!LXZ$23","v":"00:00:00"},{"$f":"Time!LYA$23","v":"00:00:00"},{"$f":"Time!LYB$23","v":"00:00:00"},{"$f":"Time!LYC$23","v":"00:00:00"},{"$f":"Time!LYD$23","v":"00:00:00"},{"$f":"Time!LYE$23","v":"00:00:00"},{"$f":"Time!LYF$23","v":"00:00:00"},{"$f":"Time!LYG$23","v":"00:00:00"},{"$f":"Time!LYH$23","v":"00:00:00"},{"$f":"Time!LYI$23","v":"00:00:00"},{"$f":"Time!LYJ$23","v":"00:00:00"},{"$f":"Time!LYK$23","v":"00:00:00"},{"$f":"Time!LYL$23","v":"00:00:00"},{"$f":"Time!LYM$23","v":"00:00:00"},{"$f":"Time!LYN$23","v":"00:00:00"},{"$f":"Time!LYO$23","v":"00:00:00"},{"$f":"Time!LYP$23","v":"00:00:00"},{"$f":"Time!LYQ$23","v":"00:00:00"},{"$f":"Time!LYR$23","v":"00:00:00"},{"$f":"Time!LYS$23","v":"00:00:00"},{"$f":"Time!LYT$23","v":"00:00:00"},{"$f":"Time!LYU$23","v":"00:00:00"},{"$f":"Time!LYV$23","v":"00:00:00"},{"$f":"Time!LYW$23","v":"00:00:00"},{"$f":"Time!LYX$23","v":"00:00:00"},{"$f":"Time!LYY$23","v":"00:00:00"},{"$f":"Time!LYZ$23","v":"00:00:00"},{"$f":"Time!LZA$23","v":"00:00:00"},{"$f":"Time!LZB$23","v":"00:00:00"},{"$f":"Time!LZC$23","v":"00:00:00"},{"$f":"Time!LZD$23","v":"00:00:00"},{"$f":"Time!LZE$23","v":"00:00:00"},{"$f":"Time!LZF$23","v":"00:00:00"},{"$f":"Time!LZG$23","v":"00:00:00"},{"$f":"Time!LZH$23","v":"00:00:00"},{"$f":"Time!LZI$23","v":"00:00:00"},{"$f":"Time!LZJ$23","v":"00:00:00"},{"$f":"Time!LZK$23","v":"00:00:00"},{"$f":"Time!LZL$23","v":"00:00:00"},{"$f":"Time!LZM$23","v":"00:00:00"},{"$f":"Time!LZN$23","v":"00:00:00"},{"$f":"Time!LZO$23","v":"00:00:00"},{"$f":"Time!LZP$23","v":"00:00:00"},{"$f":"Time!LZQ$23","v":"00:00:00"},{"$f":"Time!LZR$23","v":"00:00:00"},{"$f":"Time!LZS$23","v":"00:00:00"},{"$f":"Time!LZT$23","v":"00:00:00"},{"$f":"Time!LZU$23","v":"00:00:00"},{"$f":"Time!LZV$23","v":"00:00:00"},{"$f":"Time!LZW$23","v":"00:00:00"},{"$f":"Time!LZX$23","v":"00:00:00"},{"$f":"Time!LZY$23","v":"00:00:00"},{"$f":"Time!LZZ$23","v":"00:00:00"},{"$f":"Time!MAA$23","v":"00:00:00"},{"$f":"Time!MAB$23","v":"00:00:00"},{"$f":"Time!MAC$23","v":"00:00:00"},{"$f":"Time!MAD$23","v":"00:00:00"},{"$f":"Time!MAE$23","v":"00:00:00"},{"$f":"Time!MAF$23","v":"00:00:00"},{"$f":"Time!MAG$23","v":"00:00:00"},{"$f":"Time!MAH$23","v":"00:00:00"},{"$f":"Time!MAI$23","v":"00:00:00"},{"$f":"Time!MAJ$23","v":"00:00:00"},{"$f":"Time!MAK$23","v":"00:00:00"},{"$f":"Time!MAL$23","v":"00:00:00"},{"$f":"Time!MAM$23","v":"00:00:00"},{"$f":"Time!MAN$23","v":"00:00:00"},{"$f":"Time!MAO$23","v":"00:00:00"},{"$f":"Time!MAP$23","v":"00:00:00"},{"$f":"Time!MAQ$23","v":"00:00:00"},{"$f":"Time!MAR$23","v":"00:00:00"},{"$f":"Time!MAS$23","v":"00:00:00"},{"$f":"Time!MAT$23","v":"00:00:00"},{"$f":"Time!MAU$23","v":"00:00:00"},{"$f":"Time!MAV$23","v":"00:00:00"},{"$f":"Time!MAW$23","v":"00:00:00"},{"$f":"Time!MAX$23","v":"00:00:00"},{"$f":"Time!MAY$23","v":"00:00:00"},{"$f":"Time!MAZ$23","v":"00:00:00"},{"$f":"Time!MBA$23","v":"00:00:00"},{"$f":"Time!MBB$23","v":"00:00:00"},{"$f":"Time!MBC$23","v":"00:00:00"},{"$f":"Time!MBD$23","v":"00:00:00"},{"$f":"Time!MBE$23","v":"00:00:00"},{"$f":"Time!MBF$23","v":"00:00:00"},{"$f":"Time!MBG$23","v":"00:00:00"},{"$f":"Time!MBH$23","v":"00:00:00"},{"$f":"Time!MBI$23","v":"00:00:00"},{"$f":"Time!MBJ$23","v":"00:00:00"},{"$f":"Time!MBK$23","v":"00:00:00"},{"$f":"Time!MBL$23","v":"00:00:00"},{"$f":"Time!MBM$23","v":"00:00:00"},{"$f":"Time!MBN$23","v":"00:00:00"},{"$f":"Time!MBO$23","v":"00:00:00"},{"$f":"Time!MBP$23","v":"00:00:00"},{"$f":"Time!MBQ$23","v":"00:00:00"},{"$f":"Time!MBR$23","v":"00:00:00"},{"$f":"Time!MBS$23","v":"00:00:00"},{"$f":"Time!MBT$23","v":"00:00:00"},{"$f":"Time!MBU$23","v":"00:00:00"},{"$f":"Time!MBV$23","v":"00:00:00"},{"$f":"Time!MBW$23","v":"00:00:00"},{"$f":"Time!MBX$23","v":"00:00:00"},{"$f":"Time!MBY$23","v":"00:00:00"},{"$f":"Time!MBZ$23","v":"00:00:00"},{"$f":"Time!MCA$23","v":"00:00:00"},{"$f":"Time!MCB$23","v":"00:00:00"},{"$f":"Time!MCC$23","v":"00:00:00"},{"$f":"Time!MCD$23","v":"00:00:00"},{"$f":"Time!MCE$23","v":"00:00:00"},{"$f":"Time!MCF$23","v":"00:00:00"},{"$f":"Time!MCG$23","v":"00:00:00"},{"$f":"Time!MCH$23","v":"00:00:00"},{"$f":"Time!MCI$23","v":"00:00:00"},{"$f":"Time!MCJ$23","v":"00:00:00"},{"$f":"Time!MCK$23","v":"00:00:00"},{"$f":"Time!MCL$23","v":"00:00:00"},{"$f":"Time!MCM$23","v":"00:00:00"},{"$f":"Time!MCN$23","v":"00:00:00"},{"$f":"Time!MCO$23","v":"00:00:00"},{"$f":"Time!MCP$23","v":"00:00:00"},{"$f":"Time!MCQ$23","v":"00:00:00"},{"$f":"Time!MCR$23","v":"00:00:00"},{"$f":"Time!MCS$23","v":"00:00:00"},{"$f":"Time!MCT$23","v":"00:00:00"},{"$f":"Time!MCU$23","v":"00:00:00"},{"$f":"Time!MCV$23","v":"00:00:00"},{"$f":"Time!MCW$23","v":"00:00:00"},{"$f":"Time!MCX$23","v":"00:00:00"},{"$f":"Time!MCY$23","v":"00:00:00"},{"$f":"Time!MCZ$23","v":"00:00:00"},{"$f":"Time!MDA$23","v":"00:00:00"},{"$f":"Time!MDB$23","v":"00:00:00"},{"$f":"Time!MDC$23","v":"00:00:00"},{"$f":"Time!MDD$23","v":"00:00:00"},{"$f":"Time!MDE$23","v":"00:00:00"},{"$f":"Time!MDF$23","v":"00:00:00"},{"$f":"Time!MDG$23","v":"00:00:00"},{"$f":"Time!MDH$23","v":"00:00:00"},{"$f":"Time!MDI$23","v":"00:00:00"},{"$f":"Time!MDJ$23","v":"00:00:00"},{"$f":"Time!MDK$23","v":"00:00:00"},{"$f":"Time!MDL$23","v":"00:00:00"},{"$f":"Time!MDM$23","v":"00:00:00"},{"$f":"Time!MDN$23","v":"00:00:00"},{"$f":"Time!MDO$23","v":"00:00:00"},{"$f":"Time!MDP$23","v":"00:00:00"},{"$f":"Time!MDQ$23","v":"00:00:00"},{"$f":"Time!MDR$23","v":"00:00:00"},{"$f":"Time!MDS$23","v":"00:00:00"},{"$f":"Time!MDT$23","v":"00:00:00"},{"$f":"Time!MDU$23","v":"00:00:00"},{"$f":"Time!MDV$23","v":"00:00:00"},{"$f":"Time!MDW$23","v":"00:00:00"},{"$f":"Time!MDX$23","v":"00:00:00"},{"$f":"Time!MDY$23","v":"00:00:00"},{"$f":"Time!MDZ$23","v":"00:00:00"},{"$f":"Time!MEA$23","v":"00:00:00"},{"$f":"Time!MEB$23","v":"00:00:00"},{"$f":"Time!MEC$23","v":"00:00:00"},{"$f":"Time!MED$23","v":"00:00:00"},{"$f":"Time!MEE$23","v":"00:00:00"},{"$f":"Time!MEF$23","v":"00:00:00"},{"$f":"Time!MEG$23","v":"00:00:00"},{"$f":"Time!MEH$23","v":"00:00:00"},{"$f":"Time!MEI$23","v":"00:00:00"},{"$f":"Time!MEJ$23","v":"00:00:00"},{"$f":"Time!MEK$23","v":"00:00:00"},{"$f":"Time!MEL$23","v":"00:00:00"},{"$f":"Time!MEM$23","v":"00:00:00"},{"$f":"Time!MEN$23","v":"00:00:00"},{"$f":"Time!MEO$23","v":"00:00:00"},{"$f":"Time!MEP$23","v":"00:00:00"},{"$f":"Time!MEQ$23","v":"00:00:00"},{"$f":"Time!MER$23","v":"00:00:00"},{"$f":"Time!MES$23","v":"00:00:00"},{"$f":"Time!MET$23","v":"00:00:00"},{"$f":"Time!MEU$23","v":"00:00:00"},{"$f":"Time!MEV$23","v":"00:00:00"},{"$f":"Time!MEW$23","v":"00:00:00"},{"$f":"Time!MEX$23","v":"00:00:00"},{"$f":"Time!MEY$23","v":"00:00:00"},{"$f":"Time!MEZ$23","v":"00:00:00"},{"$f":"Time!MFA$23","v":"00:00:00"},{"$f":"Time!MFB$23","v":"00:00:00"},{"$f":"Time!MFC$23","v":"00:00:00"},{"$f":"Time!MFD$23","v":"00:00:00"},{"$f":"Time!MFE$23","v":"00:00:00"},{"$f":"Time!MFF$23","v":"00:00:00"},{"$f":"Time!MFG$23","v":"00:00:00"},{"$f":"Time!MFH$23","v":"00:00:00"},{"$f":"Time!MFI$23","v":"00:00:00"},{"$f":"Time!MFJ$23","v":"00:00:00"},{"$f":"Time!MFK$23","v":"00:00:00"},{"$f":"Time!MFL$23","v":"00:00:00"},{"$f":"Time!MFM$23","v":"00:00:00"},{"$f":"Time!MFN$23","v":"00:00:00"},{"$f":"Time!MFO$23","v":"00:00:00"},{"$f":"Time!MFP$23","v":"00:00:00"},{"$f":"Time!MFQ$23","v":"00:00:00"},{"$f":"Time!MFR$23","v":"00:00:00"},{"$f":"Time!MFS$23","v":"00:00:00"},{"$f":"Time!MFT$23","v":"00:00:00"},{"$f":"Time!MFU$23","v":"00:00:00"},{"$f":"Time!MFV$23","v":"00:00:00"},{"$f":"Time!MFW$23","v":"00:00:00"},{"$f":"Time!MFX$23","v":"00:00:00"},{"$f":"Time!MFY$23","v":"00:00:00"},{"$f":"Time!MFZ$23","v":"00:00:00"},{"$f":"Time!MGA$23","v":"00:00:00"},{"$f":"Time!MGB$23","v":"00:00:00"},{"$f":"Time!MGC$23","v":"00:00:00"},{"$f":"Time!MGD$23","v":"00:00:00"},{"$f":"Time!MGE$23","v":"00:00:00"},{"$f":"Time!MGF$23","v":"00:00:00"},{"$f":"Time!MGG$23","v":"00:00:00"},{"$f":"Time!MGH$23","v":"00:00:00"},{"$f":"Time!MGI$23","v":"00:00:00"},{"$f":"Time!MGJ$23","v":"00:00:00"},{"$f":"Time!MGK$23","v":"00:00:00"},{"$f":"Time!MGL$23","v":"00:00:00"},{"$f":"Time!MGM$23","v":"00:00:00"},{"$f":"Time!MGN$23","v":"00:00:00"},{"$f":"Time!MGO$23","v":"00:00:00"},{"$f":"Time!MGP$23","v":"00:00:00"},{"$f":"Time!MGQ$23","v":"00:00:00"},{"$f":"Time!MGR$23","v":"00:00:00"},{"$f":"Time!MGS$23","v":"00:00:00"},{"$f":"Time!MGT$23","v":"00:00:00"},{"$f":"Time!MGU$23","v":"00:00:00"},{"$f":"Time!MGV$23","v":"00:00:00"},{"$f":"Time!MGW$23","v":"00:00:00"},{"$f":"Time!MGX$23","v":"00:00:00"},{"$f":"Time!MGY$23","v":"00:00:00"},{"$f":"Time!MGZ$23","v":"00:00:00"},{"$f":"Time!MHA$23","v":"00:00:00"},{"$f":"Time!MHB$23","v":"00:00:00"},{"$f":"Time!MHC$23","v":"00:00:00"},{"$f":"Time!MHD$23","v":"00:00:00"},{"$f":"Time!MHE$23","v":"00:00:00"},{"$f":"Time!MHF$23","v":"00:00:00"},{"$f":"Time!MHG$23","v":"00:00:00"},{"$f":"Time!MHH$23","v":"00:00:00"},{"$f":"Time!MHI$23","v":"00:00:00"},{"$f":"Time!MHJ$23","v":"00:00:00"},{"$f":"Time!MHK$23","v":"00:00:00"},{"$f":"Time!MHL$23","v":"00:00:00"},{"$f":"Time!MHM$23","v":"00:00:00"},{"$f":"Time!MHN$23","v":"00:00:00"},{"$f":"Time!MHO$23","v":"00:00:00"},{"$f":"Time!MHP$23","v":"00:00:00"},{"$f":"Time!MHQ$23","v":"00:00:00"},{"$f":"Time!MHR$23","v":"00:00:00"},{"$f":"Time!MHS$23","v":"00:00:00"},{"$f":"Time!MHT$23","v":"00:00:00"},{"$f":"Time!MHU$23","v":"00:00:00"},{"$f":"Time!MHV$23","v":"00:00:00"},{"$f":"Time!MHW$23","v":"00:00:00"},{"$f":"Time!MHX$23","v":"00:00:00"},{"$f":"Time!MHY$23","v":"00:00:00"},{"$f":"Time!MHZ$23","v":"00:00:00"},{"$f":"Time!MIA$23","v":"00:00:00"},{"$f":"Time!MIB$23","v":"00:00:00"},{"$f":"Time!MIC$23","v":"00:00:00"},{"$f":"Time!MID$23","v":"00:00:00"},{"$f":"Time!MIE$23","v":"00:00:00"},{"$f":"Time!MIF$23","v":"00:00:00"},{"$f":"Time!MIG$23","v":"00:00:00"},{"$f":"Time!MIH$23","v":"00:00:00"},{"$f":"Time!MII$23","v":"00:00:00"},{"$f":"Time!MIJ$23","v":"00:00:00"},{"$f":"Time!MIK$23","v":"00:00:00"},{"$f":"Time!MIL$23","v":"00:00:00"},{"$f":"Time!MIM$23","v":"00:00:00"},{"$f":"Time!MIN$23","v":"00:00:00"},{"$f":"Time!MIO$23","v":"00:00:00"},{"$f":"Time!MIP$23","v":"00:00:00"},{"$f":"Time!MIQ$23","v":"00:00:00"},{"$f":"Time!MIR$23","v":"00:00:00"},{"$f":"Time!MIS$23","v":"00:00:00"},{"$f":"Time!MIT$23","v":"00:00:00"},{"$f":"Time!MIU$23","v":"00:00:00"},{"$f":"Time!MIV$23","v":"00:00:00"},{"$f":"Time!MIW$23","v":"00:00:00"},{"$f":"Time!MIX$23","v":"00:00:00"},{"$f":"Time!MIY$23","v":"00:00:00"},{"$f":"Time!MIZ$23","v":"00:00:00"},{"$f":"Time!MJA$23","v":"00:00:00"},{"$f":"Time!MJB$23","v":"00:00:00"},{"$f":"Time!MJC$23","v":"00:00:00"},{"$f":"Time!MJD$23","v":"00:00:00"},{"$f":"Time!MJE$23","v":"00:00:00"},{"$f":"Time!MJF$23","v":"00:00:00"},{"$f":"Time!MJG$23","v":"00:00:00"},{"$f":"Time!MJH$23","v":"00:00:00"},{"$f":"Time!MJI$23","v":"00:00:00"},{"$f":"Time!MJJ$23","v":"00:00:00"},{"$f":"Time!MJK$23","v":"00:00:00"},{"$f":"Time!MJL$23","v":"00:00:00"},{"$f":"Time!MJM$23","v":"00:00:00"},{"$f":"Time!MJN$23","v":"00:00:00"},{"$f":"Time!MJO$23","v":"00:00:00"},{"$f":"Time!MJP$23","v":"00:00:00"},{"$f":"Time!MJQ$23","v":"00:00:00"},{"$f":"Time!MJR$23","v":"00:00:00"},{"$f":"Time!MJS$23","v":"00:00:00"},{"$f":"Time!MJT$23","v":"00:00:00"},{"$f":"Time!MJU$23","v":"00:00:00"},{"$f":"Time!MJV$23","v":"00:00:00"},{"$f":"Time!MJW$23","v":"00:00:00"},{"$f":"Time!MJX$23","v":"00:00:00"},{"$f":"Time!MJY$23","v":"00:00:00"},{"$f":"Time!MJZ$23","v":"00:00:00"},{"$f":"Time!MKA$23","v":"00:00:00"},{"$f":"Time!MKB$23","v":"00:00:00"},{"$f":"Time!MKC$23","v":"00:00:00"},{"$f":"Time!MKD$23","v":"00:00:00"},{"$f":"Time!MKE$23","v":"00:00:00"},{"$f":"Time!MKF$23","v":"00:00:00"},{"$f":"Time!MKG$23","v":"00:00:00"},{"$f":"Time!MKH$23","v":"00:00:00"},{"$f":"Time!MKI$23","v":"00:00:00"},{"$f":"Time!MKJ$23","v":"00:00:00"},{"$f":"Time!MKK$23","v":"00:00:00"},{"$f":"Time!MKL$23","v":"00:00:00"},{"$f":"Time!MKM$23","v":"00:00:00"},{"$f":"Time!MKN$23","v":"00:00:00"},{"$f":"Time!MKO$23","v":"00:00:00"},{"$f":"Time!MKP$23","v":"00:00:00"},{"$f":"Time!MKQ$23","v":"00:00:00"},{"$f":"Time!MKR$23","v":"00:00:00"},{"$f":"Time!MKS$23","v":"00:00:00"},{"$f":"Time!MKT$23","v":"00:00:00"},{"$f":"Time!MKU$23","v":"00:00:00"},{"$f":"Time!MKV$23","v":"00:00:00"},{"$f":"Time!MKW$23","v":"00:00:00"},{"$f":"Time!MKX$23","v":"00:00:00"},{"$f":"Time!MKY$23","v":"00:00:00"},{"$f":"Time!MKZ$23","v":"00:00:00"},{"$f":"Time!MLA$23","v":"00:00:00"},{"$f":"Time!MLB$23","v":"00:00:00"},{"$f":"Time!MLC$23","v":"00:00:00"},{"$f":"Time!MLD$23","v":"00:00:00"},{"$f":"Time!MLE$23","v":"00:00:00"},{"$f":"Time!MLF$23","v":"00:00:00"},{"$f":"Time!MLG$23","v":"00:00:00"},{"$f":"Time!MLH$23","v":"00:00:00"},{"$f":"Time!MLI$23","v":"00:00:00"},{"$f":"Time!MLJ$23","v":"00:00:00"},{"$f":"Time!MLK$23","v":"00:00:00"},{"$f":"Time!MLL$23","v":"00:00:00"},{"$f":"Time!MLM$23","v":"00:00:00"},{"$f":"Time!MLN$23","v":"00:00:00"},{"$f":"Time!MLO$23","v":"00:00:00"},{"$f":"Time!MLP$23","v":"00:00:00"},{"$f":"Time!MLQ$23","v":"00:00:00"},{"$f":"Time!MLR$23","v":"00:00:00"},{"$f":"Time!MLS$23","v":"00:00:00"},{"$f":"Time!MLT$23","v":"00:00:00"},{"$f":"Time!MLU$23","v":"00:00:00"},{"$f":"Time!MLV$23","v":"00:00:00"},{"$f":"Time!MLW$23","v":"00:00:00"},{"$f":"Time!MLX$23","v":"00:00:00"},{"$f":"Time!MLY$23","v":"00:00:00"},{"$f":"Time!MLZ$23","v":"00:00:00"},{"$f":"Time!MMA$23","v":"00:00:00"},{"$f":"Time!MMB$23","v":"00:00:00"},{"$f":"Time!MMC$23","v":"00:00:00"},{"$f":"Time!MMD$23","v":"00:00:00"},{"$f":"Time!MME$23","v":"00:00:00"},{"$f":"Time!MMF$23","v":"00:00:00"},{"$f":"Time!MMG$23","v":"00:00:00"},{"$f":"Time!MMH$23","v":"00:00:00"},{"$f":"Time!MMI$23","v":"00:00:00"},{"$f":"Time!MMJ$23","v":"00:00:00"},{"$f":"Time!MMK$23","v":"00:00:00"},{"$f":"Time!MML$23","v":"00:00:00"},{"$f":"Time!MMM$23","v":"00:00:00"},{"$f":"Time!MMN$23","v":"00:00:00"},{"$f":"Time!MMO$23","v":"00:00:00"},{"$f":"Time!MMP$23","v":"00:00:00"},{"$f":"Time!MMQ$23","v":"00:00:00"},{"$f":"Time!MMR$23","v":"00:00:00"},{"$f":"Time!MMS$23","v":"00:00:00"},{"$f":"Time!MMT$23","v":"00:00:00"},{"$f":"Time!MMU$23","v":"00:00:00"},{"$f":"Time!MMV$23","v":"00:00:00"},{"$f":"Time!MMW$23","v":"00:00:00"},{"$f":"Time!MMX$23","v":"00:00:00"},{"$f":"Time!MMY$23","v":"00:00:00"},{"$f":"Time!MMZ$23","v":"00:00:00"},{"$f":"Time!MNA$23","v":"00:00:00"},{"$f":"Time!MNB$23","v":"00:00:00"},{"$f":"Time!MNC$23","v":"00:00:00"},{"$f":"Time!MND$23","v":"00:00:00"},{"$f":"Time!MNE$23","v":"00:00:00"},{"$f":"Time!MNF$23","v":"00:00:00"},{"$f":"Time!MNG$23","v":"00:00:00"},{"$f":"Time!MNH$23","v":"00:00:00"},{"$f":"Time!MNI$23","v":"00:00:00"},{"$f":"Time!MNJ$23","v":"00:00:00"},{"$f":"Time!MNK$23","v":"00:00:00"},{"$f":"Time!MNL$23","v":"00:00:00"},{"$f":"Time!MNM$23","v":"00:00:00"},{"$f":"Time!MNN$23","v":"00:00:00"},{"$f":"Time!MNO$23","v":"00:00:00"},{"$f":"Time!MNP$23","v":"00:00:00"},{"$f":"Time!MNQ$23","v":"00:00:00"},{"$f":"Time!MNR$23","v":"00:00:00"},{"$f":"Time!MNS$23","v":"00:00:00"},{"$f":"Time!MNT$23","v":"00:00:00"},{"$f":"Time!MNU$23","v":"00:00:00"},{"$f":"Time!MNV$23","v":"00:00:00"},{"$f":"Time!MNW$23","v":"00:00:00"},{"$f":"Time!MNX$23","v":"00:00:00"},{"$f":"Time!MNY$23","v":"00:00:00"},{"$f":"Time!MNZ$23","v":"00:00:00"},{"$f":"Time!MOA$23","v":"00:00:00"},{"$f":"Time!MOB$23","v":"00:00:00"},{"$f":"Time!MOC$23","v":"00:00:00"},{"$f":"Time!MOD$23","v":"00:00:00"},{"$f":"Time!MOE$23","v":"00:00:00"},{"$f":"Time!MOF$23","v":"00:00:00"},{"$f":"Time!MOG$23","v":"00:00:00"},{"$f":"Time!MOH$23","v":"00:00:00"},{"$f":"Time!MOI$23","v":"00:00:00"},{"$f":"Time!MOJ$23","v":"00:00:00"},{"$f":"Time!MOK$23","v":"00:00:00"},{"$f":"Time!MOL$23","v":"00:00:00"},{"$f":"Time!MOM$23","v":"00:00:00"},{"$f":"Time!MON$23","v":"00:00:00"},{"$f":"Time!MOO$23","v":"00:00:00"},{"$f":"Time!MOP$23","v":"00:00:00"},{"$f":"Time!MOQ$23","v":"00:00:00"},{"$f":"Time!MOR$23","v":"00:00:00"},{"$f":"Time!MOS$23","v":"00:00:00"},{"$f":"Time!MOT$23","v":"00:00:00"},{"$f":"Time!MOU$23","v":"00:00:00"},{"$f":"Time!MOV$23","v":"00:00:00"},{"$f":"Time!MOW$23","v":"00:00:00"},{"$f":"Time!MOX$23","v":"00:00:00"},{"$f":"Time!MOY$23","v":"00:00:00"},{"$f":"Time!MOZ$23","v":"00:00:00"},{"$f":"Time!MPA$23","v":"00:00:00"},{"$f":"Time!MPB$23","v":"00:00:00"},{"$f":"Time!MPC$23","v":"00:00:00"},{"$f":"Time!MPD$23","v":"00:00:00"},{"$f":"Time!MPE$23","v":"00:00:00"},{"$f":"Time!MPF$23","v":"00:00:00"},{"$f":"Time!MPG$23","v":"00:00:00"},{"$f":"Time!MPH$23","v":"00:00:00"},{"$f":"Time!MPI$23","v":"00:00:00"},{"$f":"Time!MPJ$23","v":"00:00:00"},{"$f":"Time!MPK$23","v":"00:00:00"},{"$f":"Time!MPL$23","v":"00:00:00"},{"$f":"Time!MPM$23","v":"00:00:00"},{"$f":"Time!MPN$23","v":"00:00:00"},{"$f":"Time!MPO$23","v":"00:00:00"},{"$f":"Time!MPP$23","v":"00:00:00"},{"$f":"Time!MPQ$23","v":"00:00:00"},{"$f":"Time!MPR$23","v":"00:00:00"},{"$f":"Time!MPS$23","v":"00:00:00"},{"$f":"Time!MPT$23","v":"00:00:00"},{"$f":"Time!MPU$23","v":"00:00:00"},{"$f":"Time!MPV$23","v":"00:00:00"},{"$f":"Time!MPW$23","v":"00:00:00"},{"$f":"Time!MPX$23","v":"00:00:00"},{"$f":"Time!MPY$23","v":"00:00:00"},{"$f":"Time!MPZ$23","v":"00:00:00"},{"$f":"Time!MQA$23","v":"00:00:00"},{"$f":"Time!MQB$23","v":"00:00:00"},{"$f":"Time!MQC$23","v":"00:00:00"},{"$f":"Time!MQD$23","v":"00:00:00"},{"$f":"Time!MQE$23","v":"00:00:00"},{"$f":"Time!MQF$23","v":"00:00:00"},{"$f":"Time!MQG$23","v":"00:00:00"},{"$f":"Time!MQH$23","v":"00:00:00"},{"$f":"Time!MQI$23","v":"00:00:00"},{"$f":"Time!MQJ$23","v":"00:00:00"},{"$f":"Time!MQK$23","v":"00:00:00"},{"$f":"Time!MQL$23","v":"00:00:00"},{"$f":"Time!MQM$23","v":"00:00:00"},{"$f":"Time!MQN$23","v":"00:00:00"},{"$f":"Time!MQO$23","v":"00:00:00"},{"$f":"Time!MQP$23","v":"00:00:00"},{"$f":"Time!MQQ$23","v":"00:00:00"},{"$f":"Time!MQR$23","v":"00:00:00"},{"$f":"Time!MQS$23","v":"00:00:00"},{"$f":"Time!MQT$23","v":"00:00:00"},{"$f":"Time!MQU$23","v":"00:00:00"},{"$f":"Time!MQV$23","v":"00:00:00"},{"$f":"Time!MQW$23","v":"00:00:00"},{"$f":"Time!MQX$23","v":"00:00:00"},{"$f":"Time!MQY$23","v":"00:00:00"},{"$f":"Time!MQZ$23","v":"00:00:00"},{"$f":"Time!MRA$23","v":"00:00:00"},{"$f":"Time!MRB$23","v":"00:00:00"},{"$f":"Time!MRC$23","v":"00:00:00"},{"$f":"Time!MRD$23","v":"00:00:00"},{"$f":"Time!MRE$23","v":"00:00:00"},{"$f":"Time!MRF$23","v":"00:00:00"},{"$f":"Time!MRG$23","v":"00:00:00"},{"$f":"Time!MRH$23","v":"00:00:00"},{"$f":"Time!MRI$23","v":"00:00:00"},{"$f":"Time!MRJ$23","v":"00:00:00"},{"$f":"Time!MRK$23","v":"00:00:00"},{"$f":"Time!MRL$23","v":"00:00:00"},{"$f":"Time!MRM$23","v":"00:00:00"},{"$f":"Time!MRN$23","v":"00:00:00"},{"$f":"Time!MRO$23","v":"00:00:00"},{"$f":"Time!MRP$23","v":"00:00:00"},{"$f":"Time!MRQ$23","v":"00:00:00"},{"$f":"Time!MRR$23","v":"00:00:00"},{"$f":"Time!MRS$23","v":"00:00:00"},{"$f":"Time!MRT$23","v":"00:00:00"},{"$f":"Time!MRU$23","v":"00:00:00"},{"$f":"Time!MRV$23","v":"00:00:00"},{"$f":"Time!MRW$23","v":"00:00:00"},{"$f":"Time!MRX$23","v":"00:00:00"},{"$f":"Time!MRY$23","v":"00:00:00"},{"$f":"Time!MRZ$23","v":"00:00:00"},{"$f":"Time!MSA$23","v":"00:00:00"},{"$f":"Time!MSB$23","v":"00:00:00"},{"$f":"Time!MSC$23","v":"00:00:00"},{"$f":"Time!MSD$23","v":"00:00:00"},{"$f":"Time!MSE$23","v":"00:00:00"},{"$f":"Time!MSF$23","v":"00:00:00"},{"$f":"Time!MSG$23","v":"00:00:00"},{"$f":"Time!MSH$23","v":"00:00:00"},{"$f":"Time!MSI$23","v":"00:00:00"},{"$f":"Time!MSJ$23","v":"00:00:00"},{"$f":"Time!MSK$23","v":"00:00:00"},{"$f":"Time!MSL$23","v":"00:00:00"},{"$f":"Time!MSM$23","v":"00:00:00"},{"$f":"Time!MSN$23","v":"00:00:00"},{"$f":"Time!MSO$23","v":"00:00:00"},{"$f":"Time!MSP$23","v":"00:00:00"},{"$f":"Time!MSQ$23","v":"00:00:00"},{"$f":"Time!MSR$23","v":"00:00:00"},{"$f":"Time!MSS$23","v":"00:00:00"},{"$f":"Time!MST$23","v":"00:00:00"},{"$f":"Time!MSU$23","v":"00:00:00"},{"$f":"Time!MSV$23","v":"00:00:00"},{"$f":"Time!MSW$23","v":"00:00:00"},{"$f":"Time!MSX$23","v":"00:00:00"},{"$f":"Time!MSY$23","v":"00:00:00"},{"$f":"Time!MSZ$23","v":"00:00:00"},{"$f":"Time!MTA$23","v":"00:00:00"},{"$f":"Time!MTB$23","v":"00:00:00"},{"$f":"Time!MTC$23","v":"00:00:00"},{"$f":"Time!MTD$23","v":"00:00:00"},{"$f":"Time!MTE$23","v":"00:00:00"},{"$f":"Time!MTF$23","v":"00:00:00"},{"$f":"Time!MTG$23","v":"00:00:00"},{"$f":"Time!MTH$23","v":"00:00:00"},{"$f":"Time!MTI$23","v":"00:00:00"},{"$f":"Time!MTJ$23","v":"00:00:00"},{"$f":"Time!MTK$23","v":"00:00:00"},{"$f":"Time!MTL$23","v":"00:00:00"},{"$f":"Time!MTM$23","v":"00:00:00"},{"$f":"Time!MTN$23","v":"00:00:00"},{"$f":"Time!MTO$23","v":"00:00:00"},{"$f":"Time!MTP$23","v":"00:00:00"},{"$f":"Time!MTQ$23","v":"00:00:00"},{"$f":"Time!MTR$23","v":"00:00:00"},{"$f":"Time!MTS$23","v":"00:00:00"},{"$f":"Time!MTT$23","v":"00:00:00"},{"$f":"Time!MTU$23","v":"00:00:00"},{"$f":"Time!MTV$23","v":"00:00:00"},{"$f":"Time!MTW$23","v":"00:00:00"},{"$f":"Time!MTX$23","v":"00:00:00"},{"$f":"Time!MTY$23","v":"00:00:00"},{"$f":"Time!MTZ$23","v":"00:00:00"},{"$f":"Time!MUA$23","v":"00:00:00"},{"$f":"Time!MUB$23","v":"00:00:00"},{"$f":"Time!MUC$23","v":"00:00:00"},{"$f":"Time!MUD$23","v":"00:00:00"},{"$f":"Time!MUE$23","v":"00:00:00"},{"$f":"Time!MUF$23","v":"00:00:00"},{"$f":"Time!MUG$23","v":"00:00:00"},{"$f":"Time!MUH$23","v":"00:00:00"},{"$f":"Time!MUI$23","v":"00:00:00"},{"$f":"Time!MUJ$23","v":"00:00:00"},{"$f":"Time!MUK$23","v":"00:00:00"},{"$f":"Time!MUL$23","v":"00:00:00"},{"$f":"Time!MUM$23","v":"00:00:00"},{"$f":"Time!MUN$23","v":"00:00:00"},{"$f":"Time!MUO$23","v":"00:00:00"},{"$f":"Time!MUP$23","v":"00:00:00"},{"$f":"Time!MUQ$23","v":"00:00:00"},{"$f":"Time!MUR$23","v":"00:00:00"},{"$f":"Time!MUS$23","v":"00:00:00"},{"$f":"Time!MUT$23","v":"00:00:00"},{"$f":"Time!MUU$23","v":"00:00:00"},{"$f":"Time!MUV$23","v":"00:00:00"},{"$f":"Time!MUW$23","v":"00:00:00"},{"$f":"Time!MUX$23","v":"00:00:00"},{"$f":"Time!MUY$23","v":"00:00:00"},{"$f":"Time!MUZ$23","v":"00:00:00"},{"$f":"Time!MVA$23","v":"00:00:00"},{"$f":"Time!MVB$23","v":"00:00:00"},{"$f":"Time!MVC$23","v":"00:00:00"},{"$f":"Time!MVD$23","v":"00:00:00"},{"$f":"Time!MVE$23","v":"00:00:00"},{"$f":"Time!MVF$23","v":"00:00:00"},{"$f":"Time!MVG$23","v":"00:00:00"},{"$f":"Time!MVH$23","v":"00:00:00"},{"$f":"Time!MVI$23","v":"00:00:00"},{"$f":"Time!MVJ$23","v":"00:00:00"},{"$f":"Time!MVK$23","v":"00:00:00"},{"$f":"Time!MVL$23","v":"00:00:00"},{"$f":"Time!MVM$23","v":"00:00:00"},{"$f":"Time!MVN$23","v":"00:00:00"},{"$f":"Time!MVO$23","v":"00:00:00"},{"$f":"Time!MVP$23","v":"00:00:00"},{"$f":"Time!MVQ$23","v":"00:00:00"},{"$f":"Time!MVR$23","v":"00:00:00"},{"$f":"Time!MVS$23","v":"00:00:00"},{"$f":"Time!MVT$23","v":"00:00:00"},{"$f":"Time!MVU$23","v":"00:00:00"},{"$f":"Time!MVV$23","v":"00:00:00"},{"$f":"Time!MVW$23","v":"00:00:00"},{"$f":"Time!MVX$23","v":"00:00:00"},{"$f":"Time!MVY$23","v":"00:00:00"},{"$f":"Time!MVZ$23","v":"00:00:00"},{"$f":"Time!MWA$23","v":"00:00:00"},{"$f":"Time!MWB$23","v":"00:00:00"},{"$f":"Time!MWC$23","v":"00:00:00"},{"$f":"Time!MWD$23","v":"00:00:00"},{"$f":"Time!MWE$23","v":"00:00:00"},{"$f":"Time!MWF$23","v":"00:00:00"},{"$f":"Time!MWG$23","v":"00:00:00"},{"$f":"Time!MWH$23","v":"00:00:00"},{"$f":"Time!MWI$23","v":"00:00:00"},{"$f":"Time!MWJ$23","v":"00:00:00"},{"$f":"Time!MWK$23","v":"00:00:00"},{"$f":"Time!MWL$23","v":"00:00:00"},{"$f":"Time!MWM$23","v":"00:00:00"},{"$f":"Time!MWN$23","v":"00:00:00"},{"$f":"Time!MWO$23","v":"00:00:00"},{"$f":"Time!MWP$23","v":"00:00:00"},{"$f":"Time!MWQ$23","v":"00:00:00"},{"$f":"Time!MWR$23","v":"00:00:00"},{"$f":"Time!MWS$23","v":"00:00:00"},{"$f":"Time!MWT$23","v":"00:00:00"},{"$f":"Time!MWU$23","v":"00:00:00"},{"$f":"Time!MWV$23","v":"00:00:00"},{"$f":"Time!MWW$23","v":"00:00:00"},{"$f":"Time!MWX$23","v":"00:00:00"},{"$f":"Time!MWY$23","v":"00:00:00"},{"$f":"Time!MWZ$23","v":"00:00:00"},{"$f":"Time!MXA$23","v":"00:00:00"},{"$f":"Time!MXB$23","v":"00:00:00"},{"$f":"Time!MXC$23","v":"00:00:00"},{"$f":"Time!MXD$23","v":"00:00:00"},{"$f":"Time!MXE$23","v":"00:00:00"},{"$f":"Time!MXF$23","v":"00:00:00"},{"$f":"Time!MXG$23","v":"00:00:00"},{"$f":"Time!MXH$23","v":"00:00:00"},{"$f":"Time!MXI$23","v":"00:00:00"},{"$f":"Time!MXJ$23","v":"00:00:00"},{"$f":"Time!MXK$23","v":"00:00:00"},{"$f":"Time!MXL$23","v":"00:00:00"},{"$f":"Time!MXM$23","v":"00:00:00"},{"$f":"Time!MXN$23","v":"00:00:00"},{"$f":"Time!MXO$23","v":"00:00:00"},{"$f":"Time!MXP$23","v":"00:00:00"},{"$f":"Time!MXQ$23","v":"00:00:00"},{"$f":"Time!MXR$23","v":"00:00:00"},{"$f":"Time!MXS$23","v":"00:00:00"},{"$f":"Time!MXT$23","v":"00:00:00"},{"$f":"Time!MXU$23","v":"00:00:00"},{"$f":"Time!MXV$23","v":"00:00:00"},{"$f":"Time!MXW$23","v":"00:00:00"},{"$f":"Time!MXX$23","v":"00:00:00"},{"$f":"Time!MXY$23","v":"00:00:00"},{"$f":"Time!MXZ$23","v":"00:00:00"},{"$f":"Time!MYA$23","v":"00:00:00"},{"$f":"Time!MYB$23","v":"00:00:00"},{"$f":"Time!MYC$23","v":"00:00:00"},{"$f":"Time!MYD$23","v":"00:00:00"},{"$f":"Time!MYE$23","v":"00:00:00"},{"$f":"Time!MYF$23","v":"00:00:00"},{"$f":"Time!MYG$23","v":"00:00:00"},{"$f":"Time!MYH$23","v":"00:00:00"},{"$f":"Time!MYI$23","v":"00:00:00"},{"$f":"Time!MYJ$23","v":"00:00:00"},{"$f":"Time!MYK$23","v":"00:00:00"},{"$f":"Time!MYL$23","v":"00:00:00"},{"$f":"Time!MYM$23","v":"00:00:00"},{"$f":"Time!MYN$23","v":"00:00:00"},{"$f":"Time!MYO$23","v":"00:00:00"},{"$f":"Time!MYP$23","v":"00:00:00"},{"$f":"Time!MYQ$23","v":"00:00:00"},{"$f":"Time!MYR$23","v":"00:00:00"},{"$f":"Time!MYS$23","v":"00:00:00"},{"$f":"Time!MYT$23","v":"00:00:00"},{"$f":"Time!MYU$23","v":"00:00:00"},{"$f":"Time!MYV$23","v":"00:00:00"},{"$f":"Time!MYW$23","v":"00:00:00"},{"$f":"Time!MYX$23","v":"00:00:00"},{"$f":"Time!MYY$23","v":"00:00:00"},{"$f":"Time!MYZ$23","v":"00:00:00"},{"$f":"Time!MZA$23","v":"00:00:00"},{"$f":"Time!MZB$23","v":"00:00:00"},{"$f":"Time!MZC$23","v":"00:00:00"},{"$f":"Time!MZD$23","v":"00:00:00"},{"$f":"Time!MZE$23","v":"00:00:00"},{"$f":"Time!MZF$23","v":"00:00:00"},{"$f":"Time!MZG$23","v":"00:00:00"},{"$f":"Time!MZH$23","v":"00:00:00"},{"$f":"Time!MZI$23","v":"00:00:00"},{"$f":"Time!MZJ$23","v":"00:00:00"},{"$f":"Time!MZK$23","v":"00:00:00"},{"$f":"Time!MZL$23","v":"00:00:00"},{"$f":"Time!MZM$23","v":"00:00:00"},{"$f":"Time!MZN$23","v":"00:00:00"},{"$f":"Time!MZO$23","v":"00:00:00"},{"$f":"Time!MZP$23","v":"00:00:00"},{"$f":"Time!MZQ$23","v":"00:00:00"},{"$f":"Time!MZR$23","v":"00:00:00"},{"$f":"Time!MZS$23","v":"00:00:00"},{"$f":"Time!MZT$23","v":"00:00:00"},{"$f":"Time!MZU$23","v":"00:00:00"},{"$f":"Time!MZV$23","v":"00:00:00"},{"$f":"Time!MZW$23","v":"00:00:00"},{"$f":"Time!MZX$23","v":"00:00:00"},{"$f":"Time!MZY$23","v":"00:00:00"},{"$f":"Time!MZZ$23","v":"00:00:00"},{"$f":"Time!NAA$23","v":"00:00:00"},{"$f":"Time!NAB$23","v":"00:00:00"},{"$f":"Time!NAC$23","v":"00:00:00"},{"$f":"Time!NAD$23","v":"00:00:00"},{"$f":"Time!NAE$23","v":"00:00:00"},{"$f":"Time!NAF$23","v":"00:00:00"},{"$f":"Time!NAG$23","v":"00:00:00"},{"$f":"Time!NAH$23","v":"00:00:00"},{"$f":"Time!NAI$23","v":"00:00:00"},{"$f":"Time!NAJ$23","v":"00:00:00"},{"$f":"Time!NAK$23","v":"00:00:00"},{"$f":"Time!NAL$23","v":"00:00:00"},{"$f":"Time!NAM$23","v":"00:00:00"},{"$f":"Time!NAN$23","v":"00:00:00"},{"$f":"Time!NAO$23","v":"00:00:00"},{"$f":"Time!NAP$23","v":"00:00:00"},{"$f":"Time!NAQ$23","v":"00:00:00"},{"$f":"Time!NAR$23","v":"00:00:00"},{"$f":"Time!NAS$23","v":"00:00:00"},{"$f":"Time!NAT$23","v":"00:00:00"},{"$f":"Time!NAU$23","v":"00:00:00"},{"$f":"Time!NAV$23","v":"00:00:00"},{"$f":"Time!NAW$23","v":"00:00:00"},{"$f":"Time!NAX$23","v":"00:00:00"},{"$f":"Time!NAY$23","v":"00:00:00"},{"$f":"Time!NAZ$23","v":"00:00:00"},{"$f":"Time!NBA$23","v":"00:00:00"},{"$f":"Time!NBB$23","v":"00:00:00"},{"$f":"Time!NBC$23","v":"00:00:00"},{"$f":"Time!NBD$23","v":"00:00:00"},{"$f":"Time!NBE$23","v":"00:00:00"},{"$f":"Time!NBF$23","v":"00:00:00"},{"$f":"Time!NBG$23","v":"00:00:00"},{"$f":"Time!NBH$23","v":"00:00:00"},{"$f":"Time!NBI$23","v":"00:00:00"},{"$f":"Time!NBJ$23","v":"00:00:00"},{"$f":"Time!NBK$23","v":"00:00:00"},{"$f":"Time!NBL$23","v":"00:00:00"},{"$f":"Time!NBM$23","v":"00:00:00"},{"$f":"Time!NBN$23","v":"00:00:00"},{"$f":"Time!NBO$23","v":"00:00:00"},{"$f":"Time!NBP$23","v":"00:00:00"},{"$f":"Time!NBQ$23","v":"00:00:00"},{"$f":"Time!NBR$23","v":"00:00:00"},{"$f":"Time!NBS$23","v":"00:00:00"},{"$f":"Time!NBT$23","v":"00:00:00"},{"$f":"Time!NBU$23","v":"00:00:00"},{"$f":"Time!NBV$23","v":"00:00:00"},{"$f":"Time!NBW$23","v":"00:00:00"},{"$f":"Time!NBX$23","v":"00:00:00"},{"$f":"Time!NBY$23","v":"00:00:00"},{"$f":"Time!NBZ$23","v":"00:00:00"},{"$f":"Time!NCA$23","v":"00:00:00"},{"$f":"Time!NCB$23","v":"00:00:00"},{"$f":"Time!NCC$23","v":"00:00:00"},{"$f":"Time!NCD$23","v":"00:00:00"},{"$f":"Time!NCE$23","v":"00:00:00"},{"$f":"Time!NCF$23","v":"00:00:00"},{"$f":"Time!NCG$23","v":"00:00:00"},{"$f":"Time!NCH$23","v":"00:00:00"},{"$f":"Time!NCI$23","v":"00:00:00"},{"$f":"Time!NCJ$23","v":"00:00:00"},{"$f":"Time!NCK$23","v":"00:00:00"},{"$f":"Time!NCL$23","v":"00:00:00"},{"$f":"Time!NCM$23","v":"00:00:00"},{"$f":"Time!NCN$23","v":"00:00:00"},{"$f":"Time!NCO$23","v":"00:00:00"},{"$f":"Time!NCP$23","v":"00:00:00"},{"$f":"Time!NCQ$23","v":"00:00:00"},{"$f":"Time!NCR$23","v":"00:00:00"},{"$f":"Time!NCS$23","v":"00:00:00"},{"$f":"Time!NCT$23","v":"00:00:00"},{"$f":"Time!NCU$23","v":"00:00:00"},{"$f":"Time!NCV$23","v":"00:00:00"},{"$f":"Time!NCW$23","v":"00:00:00"},{"$f":"Time!NCX$23","v":"00:00:00"},{"$f":"Time!NCY$23","v":"00:00:00"},{"$f":"Time!NCZ$23","v":"00:00:00"},{"$f":"Time!NDA$23","v":"00:00:00"},{"$f":"Time!NDB$23","v":"00:00:00"},{"$f":"Time!NDC$23","v":"00:00:00"},{"$f":"Time!NDD$23","v":"00:00:00"},{"$f":"Time!NDE$23","v":"00:00:00"},{"$f":"Time!NDF$23","v":"00:00:00"},{"$f":"Time!NDG$23","v":"00:00:00"},{"$f":"Time!NDH$23","v":"00:00:00"},{"$f":"Time!NDI$23","v":"00:00:00"},{"$f":"Time!NDJ$23","v":"00:00:00"},{"$f":"Time!NDK$23","v":"00:00:00"},{"$f":"Time!NDL$23","v":"00:00:00"},{"$f":"Time!NDM$23","v":"00:00:00"},{"$f":"Time!NDN$23","v":"00:00:00"},{"$f":"Time!NDO$23","v":"00:00:00"},{"$f":"Time!NDP$23","v":"00:00:00"},{"$f":"Time!NDQ$23","v":"00:00:00"},{"$f":"Time!NDR$23","v":"00:00:00"},{"$f":"Time!NDS$23","v":"00:00:00"},{"$f":"Time!NDT$23","v":"00:00:00"},{"$f":"Time!NDU$23","v":"00:00:00"},{"$f":"Time!NDV$23","v":"00:00:00"},{"$f":"Time!NDW$23","v":"00:00:00"},{"$f":"Time!NDX$23","v":"00:00:00"},{"$f":"Time!NDY$23","v":"00:00:00"},{"$f":"Time!NDZ$23","v":"00:00:00"},{"$f":"Time!NEA$23","v":"00:00:00"},{"$f":"Time!NEB$23","v":"00:00:00"},{"$f":"Time!NEC$23","v":"00:00:00"},{"$f":"Time!NED$23","v":"00:00:00"},{"$f":"Time!NEE$23","v":"00:00:00"},{"$f":"Time!NEF$23","v":"00:00:00"},{"$f":"Time!NEG$23","v":"00:00:00"},{"$f":"Time!NEH$23","v":"00:00:00"},{"$f":"Time!NEI$23","v":"00:00:00"},{"$f":"Time!NEJ$23","v":"00:00:00"},{"$f":"Time!NEK$23","v":"00:00:00"},{"$f":"Time!NEL$23","v":"00:00:00"},{"$f":"Time!NEM$23","v":"00:00:00"},{"$f":"Time!NEN$23","v":"00:00:00"},{"$f":"Time!NEO$23","v":"00:00:00"},{"$f":"Time!NEP$23","v":"00:00:00"},{"$f":"Time!NEQ$23","v":"00:00:00"},{"$f":"Time!NER$23","v":"00:00:00"},{"$f":"Time!NES$23","v":"00:00:00"},{"$f":"Time!NET$23","v":"00:00:00"},{"$f":"Time!NEU$23","v":"00:00:00"},{"$f":"Time!NEV$23","v":"00:00:00"},{"$f":"Time!NEW$23","v":"00:00:00"},{"$f":"Time!NEX$23","v":"00:00:00"},{"$f":"Time!NEY$23","v":"00:00:00"},{"$f":"Time!NEZ$23","v":"00:00:00"},{"$f":"Time!NFA$23","v":"00:00:00"},{"$f":"Time!NFB$23","v":"00:00:00"},{"$f":"Time!NFC$23","v":"00:00:00"},{"$f":"Time!NFD$23","v":"00:00:00"},{"$f":"Time!NFE$23","v":"00:00:00"},{"$f":"Time!NFF$23","v":"00:00:00"},{"$f":"Time!NFG$23","v":"00:00:00"},{"$f":"Time!NFH$23","v":"00:00:00"},{"$f":"Time!NFI$23","v":"00:00:00"},{"$f":"Time!NFJ$23","v":"00:00:00"},{"$f":"Time!NFK$23","v":"00:00:00"},{"$f":"Time!NFL$23","v":"00:00:00"},{"$f":"Time!NFM$23","v":"00:00:00"},{"$f":"Time!NFN$23","v":"00:00:00"},{"$f":"Time!NFO$23","v":"00:00:00"},{"$f":"Time!NFP$23","v":"00:00:00"},{"$f":"Time!NFQ$23","v":"00:00:00"},{"$f":"Time!NFR$23","v":"00:00:00"},{"$f":"Time!NFS$23","v":"00:00:00"},{"$f":"Time!NFT$23","v":"00:00:00"},{"$f":"Time!NFU$23","v":"00:00:00"},{"$f":"Time!NFV$23","v":"00:00:00"},{"$f":"Time!NFW$23","v":"00:00:00"},{"$f":"Time!NFX$23","v":"00:00:00"},{"$f":"Time!NFY$23","v":"00:00:00"},{"$f":"Time!NFZ$23","v":"00:00:00"},{"$f":"Time!NGA$23","v":"00:00:00"},{"$f":"Time!NGB$23","v":"00:00:00"},{"$f":"Time!NGC$23","v":"00:00:00"},{"$f":"Time!NGD$23","v":"00:00:00"},{"$f":"Time!NGE$23","v":"00:00:00"},{"$f":"Time!NGF$23","v":"00:00:00"},{"$f":"Time!NGG$23","v":"00:00:00"},{"$f":"Time!NGH$23","v":"00:00:00"},{"$f":"Time!NGI$23","v":"00:00:00"},{"$f":"Time!NGJ$23","v":"00:00:00"},{"$f":"Time!NGK$23","v":"00:00:00"},{"$f":"Time!NGL$23","v":"00:00:00"},{"$f":"Time!NGM$23","v":"00:00:00"},{"$f":"Time!NGN$23","v":"00:00:00"},{"$f":"Time!NGO$23","v":"00:00:00"},{"$f":"Time!NGP$23","v":"00:00:00"},{"$f":"Time!NGQ$23","v":"00:00:00"},{"$f":"Time!NGR$23","v":"00:00:00"},{"$f":"Time!NGS$23","v":"00:00:00"},{"$f":"Time!NGT$23","v":"00:00:00"},{"$f":"Time!NGU$23","v":"00:00:00"},{"$f":"Time!NGV$23","v":"00:00:00"},{"$f":"Time!NGW$23","v":"00:00:00"},{"$f":"Time!NGX$23","v":"00:00:00"},{"$f":"Time!NGY$23","v":"00:00:00"},{"$f":"Time!NGZ$23","v":"00:00:00"},{"$f":"Time!NHA$23","v":"00:00:00"},{"$f":"Time!NHB$23","v":"00:00:00"},{"$f":"Time!NHC$23","v":"00:00:00"},{"$f":"Time!NHD$23","v":"00:00:00"},{"$f":"Time!NHE$23","v":"00:00:00"},{"$f":"Time!NHF$23","v":"00:00:00"},{"$f":"Time!NHG$23","v":"00:00:00"},{"$f":"Time!NHH$23","v":"00:00:00"},{"$f":"Time!NHI$23","v":"00:00:00"},{"$f":"Time!NHJ$23","v":"00:00:00"},{"$f":"Time!NHK$23","v":"00:00:00"},{"$f":"Time!NHL$23","v":"00:00:00"},{"$f":"Time!NHM$23","v":"00:00:00"},{"$f":"Time!NHN$23","v":"00:00:00"},{"$f":"Time!NHO$23","v":"00:00:00"},{"$f":"Time!NHP$23","v":"00:00:00"},{"$f":"Time!NHQ$23","v":"00:00:00"},{"$f":"Time!NHR$23","v":"00:00:00"},{"$f":"Time!NHS$23","v":"00:00:00"},{"$f":"Time!NHT$23","v":"00:00:00"},{"$f":"Time!NHU$23","v":"00:00:00"},{"$f":"Time!NHV$23","v":"00:00:00"},{"$f":"Time!NHW$23","v":"00:00:00"},{"$f":"Time!NHX$23","v":"00:00:00"},{"$f":"Time!NHY$23","v":"00:00:00"},{"$f":"Time!NHZ$23","v":"00:00:00"},{"$f":"Time!NIA$23","v":"00:00:00"},{"$f":"Time!NIB$23","v":"00:00:00"},{"$f":"Time!NIC$23","v":"00:00:00"},{"$f":"Time!NID$23","v":"00:00:00"},{"$f":"Time!NIE$23","v":"00:00:00"},{"$f":"Time!NIF$23","v":"00:00:00"},{"$f":"Time!NIG$23","v":"00:00:00"},{"$f":"Time!NIH$23","v":"00:00:00"},{"$f":"Time!NII$23","v":"00:00:00"},{"$f":"Time!NIJ$23","v":"00:00:00"},{"$f":"Time!NIK$23","v":"00:00:00"},{"$f":"Time!NIL$23","v":"00:00:00"},{"$f":"Time!NIM$23","v":"00:00:00"},{"$f":"Time!NIN$23","v":"00:00:00"},{"$f":"Time!NIO$23","v":"00:00:00"},{"$f":"Time!NIP$23","v":"00:00:00"},{"$f":"Time!NIQ$23","v":"00:00:00"},{"$f":"Time!NIR$23","v":"00:00:00"},{"$f":"Time!NIS$23","v":"00:00:00"},{"$f":"Time!NIT$23","v":"00:00:00"},{"$f":"Time!NIU$23","v":"00:00:00"},{"$f":"Time!NIV$23","v":"00:00:00"},{"$f":"Time!NIW$23","v":"00:00:00"},{"$f":"Time!NIX$23","v":"00:00:00"},{"$f":"Time!NIY$23","v":"00:00:00"},{"$f":"Time!NIZ$23","v":"00:00:00"},{"$f":"Time!NJA$23","v":"00:00:00"},{"$f":"Time!NJB$23","v":"00:00:00"},{"$f":"Time!NJC$23","v":"00:00:00"},{"$f":"Time!NJD$23","v":"00:00:00"},{"$f":"Time!NJE$23","v":"00:00:00"},{"$f":"Time!NJF$23","v":"00:00:00"},{"$f":"Time!NJG$23","v":"00:00:00"},{"$f":"Time!NJH$23","v":"00:00:00"},{"$f":"Time!NJI$23","v":"00:00:00"},{"$f":"Time!NJJ$23","v":"00:00:00"},{"$f":"Time!NJK$23","v":"00:00:00"},{"$f":"Time!NJL$23","v":"00:00:00"},{"$f":"Time!NJM$23","v":"00:00:00"},{"$f":"Time!NJN$23","v":"00:00:00"},{"$f":"Time!NJO$23","v":"00:00:00"},{"$f":"Time!NJP$23","v":"00:00:00"},{"$f":"Time!NJQ$23","v":"00:00:00"},{"$f":"Time!NJR$23","v":"00:00:00"},{"$f":"Time!NJS$23","v":"00:00:00"},{"$f":"Time!NJT$23","v":"00:00:00"},{"$f":"Time!NJU$23","v":"00:00:00"},{"$f":"Time!NJV$23","v":"00:00:00"},{"$f":"Time!NJW$23","v":"00:00:00"},{"$f":"Time!NJX$23","v":"00:00:00"},{"$f":"Time!NJY$23","v":"00:00:00"},{"$f":"Time!NJZ$23","v":"00:00:00"},{"$f":"Time!NKA$23","v":"00:00:00"},{"$f":"Time!NKB$23","v":"00:00:00"},{"$f":"Time!NKC$23","v":"00:00:00"},{"$f":"Time!NKD$23","v":"00:00:00"},{"$f":"Time!NKE$23","v":"00:00:00"},{"$f":"Time!NKF$23","v":"00:00:00"},{"$f":"Time!NKG$23","v":"00:00:00"},{"$f":"Time!NKH$23","v":"00:00:00"},{"$f":"Time!NKI$23","v":"00:00:00"},{"$f":"Time!NKJ$23","v":"00:00:00"},{"$f":"Time!NKK$23","v":"00:00:00"},{"$f":"Time!NKL$23","v":"00:00:00"},{"$f":"Time!NKM$23","v":"00:00:00"},{"$f":"Time!NKN$23","v":"00:00:00"},{"$f":"Time!NKO$23","v":"00:00:00"},{"$f":"Time!NKP$23","v":"00:00:00"},{"$f":"Time!NKQ$23","v":"00:00:00"},{"$f":"Time!NKR$23","v":"00:00:00"},{"$f":"Time!NKS$23","v":"00:00:00"},{"$f":"Time!NKT$23","v":"00:00:00"},{"$f":"Time!NKU$23","v":"00:00:00"},{"$f":"Time!NKV$23","v":"00:00:00"},{"$f":"Time!NKW$23","v":"00:00:00"},{"$f":"Time!NKX$23","v":"00:00:00"},{"$f":"Time!NKY$23","v":"00:00:00"},{"$f":"Time!NKZ$23","v":"00:00:00"},{"$f":"Time!NLA$23","v":"00:00:00"},{"$f":"Time!NLB$23","v":"00:00:00"},{"$f":"Time!NLC$23","v":"00:00:00"},{"$f":"Time!NLD$23","v":"00:00:00"},{"$f":"Time!NLE$23","v":"00:00:00"},{"$f":"Time!NLF$23","v":"00:00:00"},{"$f":"Time!NLG$23","v":"00:00:00"},{"$f":"Time!NLH$23","v":"00:00:00"},{"$f":"Time!NLI$23","v":"00:00:00"},{"$f":"Time!NLJ$23","v":"00:00:00"},{"$f":"Time!NLK$23","v":"00:00:00"},{"$f":"Time!NLL$23","v":"00:00:00"},{"$f":"Time!NLM$23","v":"00:00:00"},{"$f":"Time!NLN$23","v":"00:00:00"},{"$f":"Time!NLO$23","v":"00:00:00"},{"$f":"Time!NLP$23","v":"00:00:00"},{"$f":"Time!NLQ$23","v":"00:00:00"},{"$f":"Time!NLR$23","v":"00:00:00"},{"$f":"Time!NLS$23","v":"00:00:00"},{"$f":"Time!NLT$23","v":"00:00:00"},{"$f":"Time!NLU$23","v":"00:00:00"},{"$f":"Time!NLV$23","v":"00:00:00"},{"$f":"Time!NLW$23","v":"00:00:00"},{"$f":"Time!NLX$23","v":"00:00:00"},{"$f":"Time!NLY$23","v":"00:00:00"},{"$f":"Time!NLZ$23","v":"00:00:00"},{"$f":"Time!NMA$23","v":"00:00:00"},{"$f":"Time!NMB$23","v":"00:00:00"},{"$f":"Time!NMC$23","v":"00:00:00"},{"$f":"Time!NMD$23","v":"00:00:00"},{"$f":"Time!NME$23","v":"00:00:00"},{"$f":"Time!NMF$23","v":"00:00:00"},{"$f":"Time!NMG$23","v":"00:00:00"},{"$f":"Time!NMH$23","v":"00:00:00"},{"$f":"Time!NMI$23","v":"00:00:00"},{"$f":"Time!NMJ$23","v":"00:00:00"},{"$f":"Time!NMK$23","v":"00:00:00"},{"$f":"Time!NML$23","v":"00:00:00"},{"$f":"Time!NMM$23","v":"00:00:00"},{"$f":"Time!NMN$23","v":"00:00:00"},{"$f":"Time!NMO$23","v":"00:00:00"},{"$f":"Time!NMP$23","v":"00:00:00"},{"$f":"Time!NMQ$23","v":"00:00:00"},{"$f":"Time!NMR$23","v":"00:00:00"},{"$f":"Time!NMS$23","v":"00:00:00"},{"$f":"Time!NMT$23","v":"00:00:00"},{"$f":"Time!NMU$23","v":"00:00:00"},{"$f":"Time!NMV$23","v":"00:00:00"},{"$f":"Time!NMW$23","v":"00:00:00"},{"$f":"Time!NMX$23","v":"00:00:00"},{"$f":"Time!NMY$23","v":"00:00:00"},{"$f":"Time!NMZ$23","v":"00:00:00"},{"$f":"Time!NNA$23","v":"00:00:00"},{"$f":"Time!NNB$23","v":"00:00:00"},{"$f":"Time!NNC$23","v":"00:00:00"},{"$f":"Time!NND$23","v":"00:00:00"},{"$f":"Time!NNE$23","v":"00:00:00"},{"$f":"Time!NNF$23","v":"00:00:00"},{"$f":"Time!NNG$23","v":"00:00:00"},{"$f":"Time!NNH$23","v":"00:00:00"},{"$f":"Time!NNI$23","v":"00:00:00"},{"$f":"Time!NNJ$23","v":"00:00:00"},{"$f":"Time!NNK$23","v":"00:00:00"},{"$f":"Time!NNL$23","v":"00:00:00"},{"$f":"Time!NNM$23","v":"00:00:00"},{"$f":"Time!NNN$23","v":"00:00:00"},{"$f":"Time!NNO$23","v":"00:00:00"},{"$f":"Time!NNP$23","v":"00:00:00"},{"$f":"Time!NNQ$23","v":"00:00:00"},{"$f":"Time!NNR$23","v":"00:00:00"},{"$f":"Time!NNS$23","v":"00:00:00"},{"$f":"Time!NNT$23","v":"00:00:00"},{"$f":"Time!NNU$23","v":"00:00:00"},{"$f":"Time!NNV$23","v":"00:00:00"},{"$f":"Time!NNW$23","v":"00:00:00"},{"$f":"Time!NNX$23","v":"00:00:00"},{"$f":"Time!NNY$23","v":"00:00:00"},{"$f":"Time!NNZ$23","v":"00:00:00"},{"$f":"Time!NOA$23","v":"00:00:00"},{"$f":"Time!NOB$23","v":"00:00:00"},{"$f":"Time!NOC$23","v":"00:00:00"},{"$f":"Time!NOD$23","v":"00:00:00"},{"$f":"Time!NOE$23","v":"00:00:00"},{"$f":"Time!NOF$23","v":"00:00:00"},{"$f":"Time!NOG$23","v":"00:00:00"},{"$f":"Time!NOH$23","v":"00:00:00"},{"$f":"Time!NOI$23","v":"00:00:00"},{"$f":"Time!NOJ$23","v":"00:00:00"},{"$f":"Time!NOK$23","v":"00:00:00"},{"$f":"Time!NOL$23","v":"00:00:00"},{"$f":"Time!NOM$23","v":"00:00:00"},{"$f":"Time!NON$23","v":"00:00:00"},{"$f":"Time!NOO$23","v":"00:00:00"},{"$f":"Time!NOP$23","v":"00:00:00"},{"$f":"Time!NOQ$23","v":"00:00:00"},{"$f":"Time!NOR$23","v":"00:00:00"},{"$f":"Time!NOS$23","v":"00:00:00"},{"$f":"Time!NOT$23","v":"00:00:00"},{"$f":"Time!NOU$23","v":"00:00:00"},{"$f":"Time!NOV$23","v":"00:00:00"},{"$f":"Time!NOW$23","v":"00:00:00"},{"$f":"Time!NOX$23","v":"00:00:00"},{"$f":"Time!NOY$23","v":"00:00:00"},{"$f":"Time!NOZ$23","v":"00:00:00"},{"$f":"Time!NPA$23","v":"00:00:00"},{"$f":"Time!NPB$23","v":"00:00:00"},{"$f":"Time!NPC$23","v":"00:00:00"},{"$f":"Time!NPD$23","v":"00:00:00"},{"$f":"Time!NPE$23","v":"00:00:00"},{"$f":"Time!NPF$23","v":"00:00:00"},{"$f":"Time!NPG$23","v":"00:00:00"},{"$f":"Time!NPH$23","v":"00:00:00"},{"$f":"Time!NPI$23","v":"00:00:00"},{"$f":"Time!NPJ$23","v":"00:00:00"},{"$f":"Time!NPK$23","v":"00:00:00"},{"$f":"Time!NPL$23","v":"00:00:00"},{"$f":"Time!NPM$23","v":"00:00:00"},{"$f":"Time!NPN$23","v":"00:00:00"},{"$f":"Time!NPO$23","v":"00:00:00"},{"$f":"Time!NPP$23","v":"00:00:00"},{"$f":"Time!NPQ$23","v":"00:00:00"},{"$f":"Time!NPR$23","v":"00:00:00"},{"$f":"Time!NPS$23","v":"00:00:00"},{"$f":"Time!NPT$23","v":"00:00:00"},{"$f":"Time!NPU$23","v":"00:00:00"},{"$f":"Time!NPV$23","v":"00:00:00"},{"$f":"Time!NPW$23","v":"00:00:00"},{"$f":"Time!NPX$23","v":"00:00:00"},{"$f":"Time!NPY$23","v":"00:00:00"},{"$f":"Time!NPZ$23","v":"00:00:00"},{"$f":"Time!NQA$23","v":"00:00:00"},{"$f":"Time!NQB$23","v":"00:00:00"},{"$f":"Time!NQC$23","v":"00:00:00"},{"$f":"Time!NQD$23","v":"00:00:00"},{"$f":"Time!NQE$23","v":"00:00:00"},{"$f":"Time!NQF$23","v":"00:00:00"},{"$f":"Time!NQG$23","v":"00:00:00"},{"$f":"Time!NQH$23","v":"00:00:00"},{"$f":"Time!NQI$23","v":"00:00:00"},{"$f":"Time!NQJ$23","v":"00:00:00"},{"$f":"Time!NQK$23","v":"00:00:00"},{"$f":"Time!NQL$23","v":"00:00:00"},{"$f":"Time!NQM$23","v":"00:00:00"},{"$f":"Time!NQN$23","v":"00:00:00"},{"$f":"Time!NQO$23","v":"00:00:00"},{"$f":"Time!NQP$23","v":"00:00:00"},{"$f":"Time!NQQ$23","v":"00:00:00"},{"$f":"Time!NQR$23","v":"00:00:00"},{"$f":"Time!NQS$23","v":"00:00:00"},{"$f":"Time!NQT$23","v":"00:00:00"},{"$f":"Time!NQU$23","v":"00:00:00"},{"$f":"Time!NQV$23","v":"00:00:00"},{"$f":"Time!NQW$23","v":"00:00:00"},{"$f":"Time!NQX$23","v":"00:00:00"},{"$f":"Time!NQY$23","v":"00:00:00"},{"$f":"Time!NQZ$23","v":"00:00:00"},{"$f":"Time!NRA$23","v":"00:00:00"},{"$f":"Time!NRB$23","v":"00:00:00"},{"$f":"Time!NRC$23","v":"00:00:00"},{"$f":"Time!NRD$23","v":"00:00:00"},{"$f":"Time!NRE$23","v":"00:00:00"},{"$f":"Time!NRF$23","v":"00:00:00"},{"$f":"Time!NRG$23","v":"00:00:00"},{"$f":"Time!NRH$23","v":"00:00:00"},{"$f":"Time!NRI$23","v":"00:00:00"},{"$f":"Time!NRJ$23","v":"00:00:00"},{"$f":"Time!NRK$23","v":"00:00:00"},{"$f":"Time!NRL$23","v":"00:00:00"},{"$f":"Time!NRM$23","v":"00:00:00"},{"$f":"Time!NRN$23","v":"00:00:00"},{"$f":"Time!NRO$23","v":"00:00:00"},{"$f":"Time!NRP$23","v":"00:00:00"},{"$f":"Time!NRQ$23","v":"00:00:00"},{"$f":"Time!NRR$23","v":"00:00:00"},{"$f":"Time!NRS$23","v":"00:00:00"},{"$f":"Time!NRT$23","v":"00:00:00"},{"$f":"Time!NRU$23","v":"00:00:00"},{"$f":"Time!NRV$23","v":"00:00:00"},{"$f":"Time!NRW$23","v":"00:00:00"},{"$f":"Time!NRX$23","v":"00:00:00"},{"$f":"Time!NRY$23","v":"00:00:00"},{"$f":"Time!NRZ$23","v":"00:00:00"},{"$f":"Time!NSA$23","v":"00:00:00"},{"$f":"Time!NSB$23","v":"00:00:00"},{"$f":"Time!NSC$23","v":"00:00:00"},{"$f":"Time!NSD$23","v":"00:00:00"},{"$f":"Time!NSE$23","v":"00:00:00"},{"$f":"Time!NSF$23","v":"00:00:00"},{"$f":"Time!NSG$23","v":"00:00:00"},{"$f":"Time!NSH$23","v":"00:00:00"},{"$f":"Time!NSI$23","v":"00:00:00"},{"$f":"Time!NSJ$23","v":"00:00:00"},{"$f":"Time!NSK$23","v":"00:00:00"},{"$f":"Time!NSL$23","v":"00:00:00"},{"$f":"Time!NSM$23","v":"00:00:00"},{"$f":"Time!NSN$23","v":"00:00:00"},{"$f":"Time!NSO$23","v":"00:00:00"},{"$f":"Time!NSP$23","v":"00:00:00"},{"$f":"Time!NSQ$23","v":"00:00:00"},{"$f":"Time!NSR$23","v":"00:00:00"},{"$f":"Time!NSS$23","v":"00:00:00"},{"$f":"Time!NST$23","v":"00:00:00"},{"$f":"Time!NSU$23","v":"00:00:00"},{"$f":"Time!NSV$23","v":"00:00:00"},{"$f":"Time!NSW$23","v":"00:00:00"},{"$f":"Time!NSX$23","v":"00:00:00"},{"$f":"Time!NSY$23","v":"00:00:00"},{"$f":"Time!NSZ$23","v":"00:00:00"},{"$f":"Time!NTA$23","v":"00:00:00"},{"$f":"Time!NTB$23","v":"00:00:00"},{"$f":"Time!NTC$23","v":"00:00:00"},{"$f":"Time!NTD$23","v":"00:00:00"},{"$f":"Time!NTE$23","v":"00:00:00"},{"$f":"Time!NTF$23","v":"00:00:00"},{"$f":"Time!NTG$23","v":"00:00:00"},{"$f":"Time!NTH$23","v":"00:00:00"},{"$f":"Time!NTI$23","v":"00:00:00"},{"$f":"Time!NTJ$23","v":"00:00:00"},{"$f":"Time!NTK$23","v":"00:00:00"},{"$f":"Time!NTL$23","v":"00:00:00"},{"$f":"Time!NTM$23","v":"00:00:00"},{"$f":"Time!NTN$23","v":"00:00:00"},{"$f":"Time!NTO$23","v":"00:00:00"},{"$f":"Time!NTP$23","v":"00:00:00"},{"$f":"Time!NTQ$23","v":"00:00:00"},{"$f":"Time!NTR$23","v":"00:00:00"},{"$f":"Time!NTS$23","v":"00:00:00"},{"$f":"Time!NTT$23","v":"00:00:00"},{"$f":"Time!NTU$23","v":"00:00:00"},{"$f":"Time!NTV$23","v":"00:00:00"},{"$f":"Time!NTW$23","v":"00:00:00"},{"$f":"Time!NTX$23","v":"00:00:00"},{"$f":"Time!NTY$23","v":"00:00:00"},{"$f":"Time!NTZ$23","v":"00:00:00"},{"$f":"Time!NUA$23","v":"00:00:00"},{"$f":"Time!NUB$23","v":"00:00:00"},{"$f":"Time!NUC$23","v":"00:00:00"},{"$f":"Time!NUD$23","v":"00:00:00"},{"$f":"Time!NUE$23","v":"00:00:00"},{"$f":"Time!NUF$23","v":"00:00:00"},{"$f":"Time!NUG$23","v":"00:00:00"},{"$f":"Time!NUH$23","v":"00:00:00"},{"$f":"Time!NUI$23","v":"00:00:00"},{"$f":"Time!NUJ$23","v":"00:00:00"},{"$f":"Time!NUK$23","v":"00:00:00"},{"$f":"Time!NUL$23","v":"00:00:00"},{"$f":"Time!NUM$23","v":"00:00:00"},{"$f":"Time!NUN$23","v":"00:00:00"},{"$f":"Time!NUO$23","v":"00:00:00"},{"$f":"Time!NUP$23","v":"00:00:00"},{"$f":"Time!NUQ$23","v":"00:00:00"},{"$f":"Time!NUR$23","v":"00:00:00"},{"$f":"Time!NUS$23","v":"00:00:00"},{"$f":"Time!NUT$23","v":"00:00:00"},{"$f":"Time!NUU$23","v":"00:00:00"},{"$f":"Time!NUV$23","v":"00:00:00"},{"$f":"Time!NUW$23","v":"00:00:00"},{"$f":"Time!NUX$23","v":"00:00:00"},{"$f":"Time!NUY$23","v":"00:00:00"},{"$f":"Time!NUZ$23","v":"00:00:00"},{"$f":"Time!NVA$23","v":"00:00:00"},{"$f":"Time!NVB$23","v":"00:00:00"},{"$f":"Time!NVC$23","v":"00:00:00"},{"$f":"Time!NVD$23","v":"00:00:00"},{"$f":"Time!NVE$23","v":"00:00:00"},{"$f":"Time!NVF$23","v":"00:00:00"},{"$f":"Time!NVG$23","v":"00:00:00"},{"$f":"Time!NVH$23","v":"00:00:00"},{"$f":"Time!NVI$23","v":"00:00:00"},{"$f":"Time!NVJ$23","v":"00:00:00"},{"$f":"Time!NVK$23","v":"00:00:00"},{"$f":"Time!NVL$23","v":"00:00:00"},{"$f":"Time!NVM$23","v":"00:00:00"},{"$f":"Time!NVN$23","v":"00:00:00"},{"$f":"Time!NVO$23","v":"00:00:00"},{"$f":"Time!NVP$23","v":"00:00:00"},{"$f":"Time!NVQ$23","v":"00:00:00"},{"$f":"Time!NVR$23","v":"00:00:00"},{"$f":"Time!NVS$23","v":"00:00:00"},{"$f":"Time!NVT$23","v":"00:00:00"},{"$f":"Time!NVU$23","v":"00:00:00"},{"$f":"Time!NVV$23","v":"00:00:00"},{"$f":"Time!NVW$23","v":"00:00:00"},{"$f":"Time!NVX$23","v":"00:00:00"},{"$f":"Time!NVY$23","v":"00:00:00"},{"$f":"Time!NVZ$23","v":"00:00:00"},{"$f":"Time!NWA$23","v":"00:00:00"},{"$f":"Time!NWB$23","v":"00:00:00"},{"$f":"Time!NWC$23","v":"00:00:00"},{"$f":"Time!NWD$23","v":"00:00:00"},{"$f":"Time!NWE$23","v":"00:00:00"},{"$f":"Time!NWF$23","v":"00:00:00"},{"$f":"Time!NWG$23","v":"00:00:00"},{"$f":"Time!NWH$23","v":"00:00:00"},{"$f":"Time!NWI$23","v":"00:00:00"},{"$f":"Time!NWJ$23","v":"00:00:00"},{"$f":"Time!NWK$23","v":"00:00:00"},{"$f":"Time!NWL$23","v":"00:00:00"},{"$f":"Time!NWM$23","v":"00:00:00"},{"$f":"Time!NWN$23","v":"00:00:00"},{"$f":"Time!NWO$23","v":"00:00:00"},{"$f":"Time!NWP$23","v":"00:00:00"},{"$f":"Time!NWQ$23","v":"00:00:00"},{"$f":"Time!NWR$23","v":"00:00:00"},{"$f":"Time!NWS$23","v":"00:00:00"},{"$f":"Time!NWT$23","v":"00:00:00"},{"$f":"Time!NWU$23","v":"00:00:00"},{"$f":"Time!NWV$23","v":"00:00:00"},{"$f":"Time!NWW$23","v":"00:00:00"},{"$f":"Time!NWX$23","v":"00:00:00"},{"$f":"Time!NWY$23","v":"00:00:00"},{"$f":"Time!NWZ$23","v":"00:00:00"},{"$f":"Time!NXA$23","v":"00:00:00"},{"$f":"Time!NXB$23","v":"00:00:00"},{"$f":"Time!NXC$23","v":"00:00:00"},{"$f":"Time!NXD$23","v":"00:00:00"},{"$f":"Time!NXE$23","v":"00:00:00"},{"$f":"Time!NXF$23","v":"00:00:00"},{"$f":"Time!NXG$23","v":"00:00:00"},{"$f":"Time!NXH$23","v":"00:00:00"},{"$f":"Time!NXI$23","v":"00:00:00"},{"$f":"Time!NXJ$23","v":"00:00:00"},{"$f":"Time!NXK$23","v":"00:00:00"},{"$f":"Time!NXL$23","v":"00:00:00"},{"$f":"Time!NXM$23","v":"00:00:00"},{"$f":"Time!NXN$23","v":"00:00:00"},{"$f":"Time!NXO$23","v":"00:00:00"},{"$f":"Time!NXP$23","v":"00:00:00"},{"$f":"Time!NXQ$23","v":"00:00:00"},{"$f":"Time!NXR$23","v":"00:00:00"},{"$f":"Time!NXS$23","v":"00:00:00"},{"$f":"Time!NXT$23","v":"00:00:00"},{"$f":"Time!NXU$23","v":"00:00:00"},{"$f":"Time!NXV$23","v":"00:00:00"},{"$f":"Time!NXW$23","v":"00:00:00"},{"$f":"Time!NXX$23","v":"00:00:00"},{"$f":"Time!NXY$23","v":"00:00:00"},{"$f":"Time!NXZ$23","v":"00:00:00"},{"$f":"Time!NYA$23","v":"00:00:00"},{"$f":"Time!NYB$23","v":"00:00:00"},{"$f":"Time!NYC$23","v":"00:00:00"},{"$f":"Time!NYD$23","v":"00:00:00"},{"$f":"Time!NYE$23","v":"00:00:00"},{"$f":"Time!NYF$23","v":"00:00:00"},{"$f":"Time!NYG$23","v":"00:00:00"},{"$f":"Time!NYH$23","v":"00:00:00"},{"$f":"Time!NYI$23","v":"00:00:00"},{"$f":"Time!NYJ$23","v":"00:00:00"},{"$f":"Time!NYK$23","v":"00:00:00"},{"$f":"Time!NYL$23","v":"00:00:00"},{"$f":"Time!NYM$23","v":"00:00:00"},{"$f":"Time!NYN$23","v":"00:00:00"},{"$f":"Time!NYO$23","v":"00:00:00"},{"$f":"Time!NYP$23","v":"00:00:00"},{"$f":"Time!NYQ$23","v":"00:00:00"},{"$f":"Time!NYR$23","v":"00:00:00"},{"$f":"Time!NYS$23","v":"00:00:00"},{"$f":"Time!NYT$23","v":"00:00:00"},{"$f":"Time!NYU$23","v":"00:00:00"},{"$f":"Time!NYV$23","v":"00:00:00"},{"$f":"Time!NYW$23","v":"00:00:00"},{"$f":"Time!NYX$23","v":"00:00:00"},{"$f":"Time!NYY$23","v":"00:00:00"},{"$f":"Time!NYZ$23","v":"00:00:00"},{"$f":"Time!NZA$23","v":"00:00:00"},{"$f":"Time!NZB$23","v":"00:00:00"},{"$f":"Time!NZC$23","v":"00:00:00"},{"$f":"Time!NZD$23","v":"00:00:00"},{"$f":"Time!NZE$23","v":"00:00:00"},{"$f":"Time!NZF$23","v":"00:00:00"},{"$f":"Time!NZG$23","v":"00:00:00"},{"$f":"Time!NZH$23","v":"00:00:00"},{"$f":"Time!NZI$23","v":"00:00:00"},{"$f":"Time!NZJ$23","v":"00:00:00"},{"$f":"Time!NZK$23","v":"00:00:00"},{"$f":"Time!NZL$23","v":"00:00:00"},{"$f":"Time!NZM$23","v":"00:00:00"},{"$f":"Time!NZN$23","v":"00:00:00"},{"$f":"Time!NZO$23","v":"00:00:00"},{"$f":"Time!NZP$23","v":"00:00:00"},{"$f":"Time!NZQ$23","v":"00:00:00"},{"$f":"Time!NZR$23","v":"00:00:00"},{"$f":"Time!NZS$23","v":"00:00:00"},{"$f":"Time!NZT$23","v":"00:00:00"},{"$f":"Time!NZU$23","v":"00:00:00"},{"$f":"Time!NZV$23","v":"00:00:00"},{"$f":"Time!NZW$23","v":"00:00:00"},{"$f":"Time!NZX$23","v":"00:00:00"},{"$f":"Time!NZY$23","v":"00:00:00"},{"$f":"Time!NZZ$23","v":"00:00:00"},{"$f":"Time!OAA$23","v":"00:00:00"},{"$f":"Time!OAB$23","v":"00:00:00"},{"$f":"Time!OAC$23","v":"00:00:00"},{"$f":"Time!OAD$23","v":"00:00:00"},{"$f":"Time!OAE$23","v":"00:00:00"},{"$f":"Time!OAF$23","v":"00:00:00"},{"$f":"Time!OAG$23","v":"00:00:00"},{"$f":"Time!OAH$23","v":"00:00:00"},{"$f":"Time!OAI$23","v":"00:00:00"},{"$f":"Time!OAJ$23","v":"00:00:00"},{"$f":"Time!OAK$23","v":"00:00:00"},{"$f":"Time!OAL$23","v":"00:00:00"},{"$f":"Time!OAM$23","v":"00:00:00"},{"$f":"Time!OAN$23","v":"00:00:00"},{"$f":"Time!OAO$23","v":"00:00:00"},{"$f":"Time!OAP$23","v":"00:00:00"},{"$f":"Time!OAQ$23","v":"00:00:00"},{"$f":"Time!OAR$23","v":"00:00:00"},{"$f":"Time!OAS$23","v":"00:00:00"},{"$f":"Time!OAT$23","v":"00:00:00"},{"$f":"Time!OAU$23","v":"00:00:00"},{"$f":"Time!OAV$23","v":"00:00:00"},{"$f":"Time!OAW$23","v":"00:00:00"},{"$f":"Time!OAX$23","v":"00:00:00"},{"$f":"Time!OAY$23","v":"00:00:00"},{"$f":"Time!OAZ$23","v":"00:00:00"},{"$f":"Time!OBA$23","v":"00:00:00"},{"$f":"Time!OBB$23","v":"00:00:00"},{"$f":"Time!OBC$23","v":"00:00:00"},{"$f":"Time!OBD$23","v":"00:00:00"},{"$f":"Time!OBE$23","v":"00:00:00"},{"$f":"Time!OBF$23","v":"00:00:00"},{"$f":"Time!OBG$23","v":"00:00:00"},{"$f":"Time!OBH$23","v":"00:00:00"},{"$f":"Time!OBI$23","v":"00:00:00"},{"$f":"Time!OBJ$23","v":"00:00:00"},{"$f":"Time!OBK$23","v":"00:00:00"},{"$f":"Time!OBL$23","v":"00:00:00"},{"$f":"Time!OBM$23","v":"00:00:00"},{"$f":"Time!OBN$23","v":"00:00:00"},{"$f":"Time!OBO$23","v":"00:00:00"},{"$f":"Time!OBP$23","v":"00:00:00"},{"$f":"Time!OBQ$23","v":"00:00:00"},{"$f":"Time!OBR$23","v":"00:00:00"},{"$f":"Time!OBS$23","v":"00:00:00"},{"$f":"Time!OBT$23","v":"00:00:00"},{"$f":"Time!OBU$23","v":"00:00:00"},{"$f":"Time!OBV$23","v":"00:00:00"},{"$f":"Time!OBW$23","v":"00:00:00"},{"$f":"Time!OBX$23","v":"00:00:00"},{"$f":"Time!OBY$23","v":"00:00:00"},{"$f":"Time!OBZ$23","v":"00:00:00"},{"$f":"Time!OCA$23","v":"00:00:00"},{"$f":"Time!OCB$23","v":"00:00:00"},{"$f":"Time!OCC$23","v":"00:00:00"},{"$f":"Time!OCD$23","v":"00:00:00"},{"$f":"Time!OCE$23","v":"00:00:00"},{"$f":"Time!OCF$23","v":"00:00:00"},{"$f":"Time!OCG$23","v":"00:00:00"},{"$f":"Time!OCH$23","v":"00:00:00"},{"$f":"Time!OCI$23","v":"00:00:00"},{"$f":"Time!OCJ$23","v":"00:00:00"},{"$f":"Time!OCK$23","v":"00:00:00"},{"$f":"Time!OCL$23","v":"00:00:00"},{"$f":"Time!OCM$23","v":"00:00:00"},{"$f":"Time!OCN$23","v":"00:00:00"},{"$f":"Time!OCO$23","v":"00:00:00"},{"$f":"Time!OCP$23","v":"00:00:00"},{"$f":"Time!OCQ$23","v":"00:00:00"},{"$f":"Time!OCR$23","v":"00:00:00"},{"$f":"Time!OCS$23","v":"00:00:00"},{"$f":"Time!OCT$23","v":"00:00:00"},{"$f":"Time!OCU$23","v":"00:00:00"},{"$f":"Time!OCV$23","v":"00:00:00"},{"$f":"Time!OCW$23","v":"00:00:00"},{"$f":"Time!OCX$23","v":"00:00:00"},{"$f":"Time!OCY$23","v":"00:00:00"},{"$f":"Time!OCZ$23","v":"00:00:00"},{"$f":"Time!ODA$23","v":"00:00:00"},{"$f":"Time!ODB$23","v":"00:00:00"},{"$f":"Time!ODC$23","v":"00:00:00"},{"$f":"Time!ODD$23","v":"00:00:00"},{"$f":"Time!ODE$23","v":"00:00:00"},{"$f":"Time!ODF$23","v":"00:00:00"},{"$f":"Time!ODG$23","v":"00:00:00"},{"$f":"Time!ODH$23","v":"00:00:00"},{"$f":"Time!ODI$23","v":"00:00:00"},{"$f":"Time!ODJ$23","v":"00:00:00"},{"$f":"Time!ODK$23","v":"00:00:00"},{"$f":"Time!ODL$23","v":"00:00:00"},{"$f":"Time!ODM$23","v":"00:00:00"},{"$f":"Time!ODN$23","v":"00:00:00"},{"$f":"Time!ODO$23","v":"00:00:00"},{"$f":"Time!ODP$23","v":"00:00:00"},{"$f":"Time!ODQ$23","v":"00:00:00"},{"$f":"Time!ODR$23","v":"00:00:00"},{"$f":"Time!ODS$23","v":"00:00:00"},{"$f":"Time!ODT$23","v":"00:00:00"},{"$f":"Time!ODU$23","v":"00:00:00"},{"$f":"Time!ODV$23","v":"00:00:00"},{"$f":"Time!ODW$23","v":"00:00:00"},{"$f":"Time!ODX$23","v":"00:00:00"},{"$f":"Time!ODY$23","v":"00:00:00"},{"$f":"Time!ODZ$23","v":"00:00:00"},{"$f":"Time!OEA$23","v":"00:00:00"},{"$f":"Time!OEB$23","v":"00:00:00"},{"$f":"Time!OEC$23","v":"00:00:00"},{"$f":"Time!OED$23","v":"00:00:00"},{"$f":"Time!OEE$23","v":"00:00:00"},{"$f":"Time!OEF$23","v":"00:00:00"},{"$f":"Time!OEG$23","v":"00:00:00"},{"$f":"Time!OEH$23","v":"00:00:00"},{"$f":"Time!OEI$23","v":"00:00:00"},{"$f":"Time!OEJ$23","v":"00:00:00"},{"$f":"Time!OEK$23","v":"00:00:00"},{"$f":"Time!OEL$23","v":"00:00:00"},{"$f":"Time!OEM$23","v":"00:00:00"},{"$f":"Time!OEN$23","v":"00:00:00"},{"$f":"Time!OEO$23","v":"00:00:00"},{"$f":"Time!OEP$23","v":"00:00:00"},{"$f":"Time!OEQ$23","v":"00:00:00"},{"$f":"Time!OER$23","v":"00:00:00"},{"$f":"Time!OES$23","v":"00:00:00"},{"$f":"Time!OET$23","v":"00:00:00"},{"$f":"Time!OEU$23","v":"00:00:00"},{"$f":"Time!OEV$23","v":"00:00:00"},{"$f":"Time!OEW$23","v":"00:00:00"},{"$f":"Time!OEX$23","v":"00:00:00"},{"$f":"Time!OEY$23","v":"00:00:00"},{"$f":"Time!OEZ$23","v":"00:00:00"},{"$f":"Time!OFA$23","v":"00:00:00"},{"$f":"Time!OFB$23","v":"00:00:00"},{"$f":"Time!OFC$23","v":"00:00:00"},{"$f":"Time!OFD$23","v":"00:00:00"},{"$f":"Time!OFE$23","v":"00:00:00"},{"$f":"Time!OFF$23","v":"00:00:00"},{"$f":"Time!OFG$23","v":"00:00:00"},{"$f":"Time!OFH$23","v":"00:00:00"},{"$f":"Time!OFI$23","v":"00:00:00"},{"$f":"Time!OFJ$23","v":"00:00:00"},{"$f":"Time!OFK$23","v":"00:00:00"},{"$f":"Time!OFL$23","v":"00:00:00"},{"$f":"Time!OFM$23","v":"00:00:00"},{"$f":"Time!OFN$23","v":"00:00:00"},{"$f":"Time!OFO$23","v":"00:00:00"},{"$f":"Time!OFP$23","v":"00:00:00"},{"$f":"Time!OFQ$23","v":"00:00:00"},{"$f":"Time!OFR$23","v":"00:00:00"},{"$f":"Time!OFS$23","v":"00:00:00"},{"$f":"Time!OFT$23","v":"00:00:00"},{"$f":"Time!OFU$23","v":"00:00:00"},{"$f":"Time!OFV$23","v":"00:00:00"},{"$f":"Time!OFW$23","v":"00:00:00"},{"$f":"Time!OFX$23","v":"00:00:00"},{"$f":"Time!OFY$23","v":"00:00:00"},{"$f":"Time!OFZ$23","v":"00:00:00"},{"$f":"Time!OGA$23","v":"00:00:00"},{"$f":"Time!OGB$23","v":"00:00:00"},{"$f":"Time!OGC$23","v":"00:00:00"},{"$f":"Time!OGD$23","v":"00:00:00"},{"$f":"Time!OGE$23","v":"00:00:00"},{"$f":"Time!OGF$23","v":"00:00:00"},{"$f":"Time!OGG$23","v":"00:00:00"},{"$f":"Time!OGH$23","v":"00:00:00"},{"$f":"Time!OGI$23","v":"00:00:00"},{"$f":"Time!OGJ$23","v":"00:00:00"},{"$f":"Time!OGK$23","v":"00:00:00"},{"$f":"Time!OGL$23","v":"00:00:00"},{"$f":"Time!OGM$23","v":"00:00:00"},{"$f":"Time!OGN$23","v":"00:00:00"},{"$f":"Time!OGO$23","v":"00:00:00"},{"$f":"Time!OGP$23","v":"00:00:00"},{"$f":"Time!OGQ$23","v":"00:00:00"},{"$f":"Time!OGR$23","v":"00:00:00"},{"$f":"Time!OGS$23","v":"00:00:00"},{"$f":"Time!OGT$23","v":"00:00:00"},{"$f":"Time!OGU$23","v":"00:00:00"},{"$f":"Time!OGV$23","v":"00:00:00"},{"$f":"Time!OGW$23","v":"00:00:00"},{"$f":"Time!OGX$23","v":"00:00:00"},{"$f":"Time!OGY$23","v":"00:00:00"},{"$f":"Time!OGZ$23","v":"00:00:00"},{"$f":"Time!OHA$23","v":"00:00:00"},{"$f":"Time!OHB$23","v":"00:00:00"},{"$f":"Time!OHC$23","v":"00:00:00"},{"$f":"Time!OHD$23","v":"00:00:00"},{"$f":"Time!OHE$23","v":"00:00:00"},{"$f":"Time!OHF$23","v":"00:00:00"},{"$f":"Time!OHG$23","v":"00:00:00"},{"$f":"Time!OHH$23","v":"00:00:00"},{"$f":"Time!OHI$23","v":"00:00:00"},{"$f":"Time!OHJ$23","v":"00:00:00"},{"$f":"Time!OHK$23","v":"00:00:00"},{"$f":"Time!OHL$23","v":"00:00:00"},{"$f":"Time!OHM$23","v":"00:00:00"},{"$f":"Time!OHN$23","v":"00:00:00"},{"$f":"Time!OHO$23","v":"00:00:00"},{"$f":"Time!OHP$23","v":"00:00:00"},{"$f":"Time!OHQ$23","v":"00:00:00"},{"$f":"Time!OHR$23","v":"00:00:00"},{"$f":"Time!OHS$23","v":"00:00:00"},{"$f":"Time!OHT$23","v":"00:00:00"},{"$f":"Time!OHU$23","v":"00:00:00"},{"$f":"Time!OHV$23","v":"00:00:00"},{"$f":"Time!OHW$23","v":"00:00:00"},{"$f":"Time!OHX$23","v":"00:00:00"},{"$f":"Time!OHY$23","v":"00:00:00"},{"$f":"Time!OHZ$23","v":"00:00:00"},{"$f":"Time!OIA$23","v":"00:00:00"},{"$f":"Time!OIB$23","v":"00:00:00"},{"$f":"Time!OIC$23","v":"00:00:00"},{"$f":"Time!OID$23","v":"00:00:00"},{"$f":"Time!OIE$23","v":"00:00:00"},{"$f":"Time!OIF$23","v":"00:00:00"},{"$f":"Time!OIG$23","v":"00:00:00"},{"$f":"Time!OIH$23","v":"00:00:00"},{"$f":"Time!OII$23","v":"00:00:00"},{"$f":"Time!OIJ$23","v":"00:00:00"},{"$f":"Time!OIK$23","v":"00:00:00"},{"$f":"Time!OIL$23","v":"00:00:00"},{"$f":"Time!OIM$23","v":"00:00:00"},{"$f":"Time!OIN$23","v":"00:00:00"},{"$f":"Time!OIO$23","v":"00:00:00"},{"$f":"Time!OIP$23","v":"00:00:00"},{"$f":"Time!OIQ$23","v":"00:00:00"},{"$f":"Time!OIR$23","v":"00:00:00"},{"$f":"Time!OIS$23","v":"00:00:00"},{"$f":"Time!OIT$23","v":"00:00:00"},{"$f":"Time!OIU$23","v":"00:00:00"},{"$f":"Time!OIV$23","v":"00:00:00"},{"$f":"Time!OIW$23","v":"00:00:00"},{"$f":"Time!OIX$23","v":"00:00:00"},{"$f":"Time!OIY$23","v":"00:00:00"},{"$f":"Time!OIZ$23","v":"00:00:00"},{"$f":"Time!OJA$23","v":"00:00:00"},{"$f":"Time!OJB$23","v":"00:00:00"},{"$f":"Time!OJC$23","v":"00:00:00"},{"$f":"Time!OJD$23","v":"00:00:00"},{"$f":"Time!OJE$23","v":"00:00:00"},{"$f":"Time!OJF$23","v":"00:00:00"},{"$f":"Time!OJG$23","v":"00:00:00"},{"$f":"Time!OJH$23","v":"00:00:00"},{"$f":"Time!OJI$23","v":"00:00:00"},{"$f":"Time!OJJ$23","v":"00:00:00"},{"$f":"Time!OJK$23","v":"00:00:00"},{"$f":"Time!OJL$23","v":"00:00:00"},{"$f":"Time!OJM$23","v":"00:00:00"},{"$f":"Time!OJN$23","v":"00:00:00"},{"$f":"Time!OJO$23","v":"00:00:00"},{"$f":"Time!OJP$23","v":"00:00:00"},{"$f":"Time!OJQ$23","v":"00:00:00"},{"$f":"Time!OJR$23","v":"00:00:00"},{"$f":"Time!OJS$23","v":"00:00:00"},{"$f":"Time!OJT$23","v":"00:00:00"},{"$f":"Time!OJU$23","v":"00:00:00"},{"$f":"Time!OJV$23","v":"00:00:00"},{"$f":"Time!OJW$23","v":"00:00:00"},{"$f":"Time!OJX$23","v":"00:00:00"},{"$f":"Time!OJY$23","v":"00:00:00"},{"$f":"Time!OJZ$23","v":"00:00:00"},{"$f":"Time!OKA$23","v":"00:00:00"},{"$f":"Time!OKB$23","v":"00:00:00"},{"$f":"Time!OKC$23","v":"00:00:00"},{"$f":"Time!OKD$23","v":"00:00:00"},{"$f":"Time!OKE$23","v":"00:00:00"},{"$f":"Time!OKF$23","v":"00:00:00"},{"$f":"Time!OKG$23","v":"00:00:00"},{"$f":"Time!OKH$23","v":"00:00:00"},{"$f":"Time!OKI$23","v":"00:00:00"},{"$f":"Time!OKJ$23","v":"00:00:00"},{"$f":"Time!OKK$23","v":"00:00:00"},{"$f":"Time!OKL$23","v":"00:00:00"},{"$f":"Time!OKM$23","v":"00:00:00"},{"$f":"Time!OKN$23","v":"00:00:00"},{"$f":"Time!OKO$23","v":"00:00:00"},{"$f":"Time!OKP$23","v":"00:00:00"},{"$f":"Time!OKQ$23","v":"00:00:00"},{"$f":"Time!OKR$23","v":"00:00:00"},{"$f":"Time!OKS$23","v":"00:00:00"},{"$f":"Time!OKT$23","v":"00:00:00"},{"$f":"Time!OKU$23","v":"00:00:00"},{"$f":"Time!OKV$23","v":"00:00:00"},{"$f":"Time!OKW$23","v":"00:00:00"},{"$f":"Time!OKX$23","v":"00:00:00"},{"$f":"Time!OKY$23","v":"00:00:00"},{"$f":"Time!OKZ$23","v":"00:00:00"},{"$f":"Time!OLA$23","v":"00:00:00"},{"$f":"Time!OLB$23","v":"00:00:00"},{"$f":"Time!OLC$23","v":"00:00:00"},{"$f":"Time!OLD$23","v":"00:00:00"},{"$f":"Time!OLE$23","v":"00:00:00"},{"$f":"Time!OLF$23","v":"00:00:00"},{"$f":"Time!OLG$23","v":"00:00:00"},{"$f":"Time!OLH$23","v":"00:00:00"},{"$f":"Time!OLI$23","v":"00:00:00"},{"$f":"Time!OLJ$23","v":"00:00:00"},{"$f":"Time!OLK$23","v":"00:00:00"},{"$f":"Time!OLL$23","v":"00:00:00"},{"$f":"Time!OLM$23","v":"00:00:00"},{"$f":"Time!OLN$23","v":"00:00:00"},{"$f":"Time!OLO$23","v":"00:00:00"},{"$f":"Time!OLP$23","v":"00:00:00"},{"$f":"Time!OLQ$23","v":"00:00:00"},{"$f":"Time!OLR$23","v":"00:00:00"},{"$f":"Time!OLS$23","v":"00:00:00"},{"$f":"Time!OLT$23","v":"00:00:00"},{"$f":"Time!OLU$23","v":"00:00:00"},{"$f":"Time!OLV$23","v":"00:00:00"},{"$f":"Time!OLW$23","v":"00:00:00"},{"$f":"Time!OLX$23","v":"00:00:00"},{"$f":"Time!OLY$23","v":"00:00:00"},{"$f":"Time!OLZ$23","v":"00:00:00"},{"$f":"Time!OMA$23","v":"00:00:00"},{"$f":"Time!OMB$23","v":"00:00:00"},{"$f":"Time!OMC$23","v":"00:00:00"},{"$f":"Time!OMD$23","v":"00:00:00"},{"$f":"Time!OME$23","v":"00:00:00"},{"$f":"Time!OMF$23","v":"00:00:00"},{"$f":"Time!OMG$23","v":"00:00:00"},{"$f":"Time!OMH$23","v":"00:00:00"},{"$f":"Time!OMI$23","v":"00:00:00"},{"$f":"Time!OMJ$23","v":"00:00:00"},{"$f":"Time!OMK$23","v":"00:00:00"},{"$f":"Time!OML$23","v":"00:00:00"},{"$f":"Time!OMM$23","v":"00:00:00"},{"$f":"Time!OMN$23","v":"00:00:00"},{"$f":"Time!OMO$23","v":"00:00:00"},{"$f":"Time!OMP$23","v":"00:00:00"},{"$f":"Time!OMQ$23","v":"00:00:00"},{"$f":"Time!OMR$23","v":"00:00:00"},{"$f":"Time!OMS$23","v":"00:00:00"},{"$f":"Time!OMT$23","v":"00:00:00"},{"$f":"Time!OMU$23","v":"00:00:00"},{"$f":"Time!OMV$23","v":"00:00:00"},{"$f":"Time!OMW$23","v":"00:00:00"},{"$f":"Time!OMX$23","v":"00:00:00"},{"$f":"Time!OMY$23","v":"00:00:00"},{"$f":"Time!OMZ$23","v":"00:00:00"},{"$f":"Time!ONA$23","v":"00:00:00"},{"$f":"Time!ONB$23","v":"00:00:00"},{"$f":"Time!ONC$23","v":"00:00:00"},{"$f":"Time!OND$23","v":"00:00:00"},{"$f":"Time!ONE$23","v":"00:00:00"},{"$f":"Time!ONF$23","v":"00:00:00"},{"$f":"Time!ONG$23","v":"00:00:00"},{"$f":"Time!ONH$23","v":"00:00:00"},{"$f":"Time!ONI$23","v":"00:00:00"},{"$f":"Time!ONJ$23","v":"00:00:00"},{"$f":"Time!ONK$23","v":"00:00:00"},{"$f":"Time!ONL$23","v":"00:00:00"},{"$f":"Time!ONM$23","v":"00:00:00"},{"$f":"Time!ONN$23","v":"00:00:00"},{"$f":"Time!ONO$23","v":"00:00:00"},{"$f":"Time!ONP$23","v":"00:00:00"},{"$f":"Time!ONQ$23","v":"00:00:00"},{"$f":"Time!ONR$23","v":"00:00:00"},{"$f":"Time!ONS$23","v":"00:00:00"},{"$f":"Time!ONT$23","v":"00:00:00"},{"$f":"Time!ONU$23","v":"00:00:00"},{"$f":"Time!ONV$23","v":"00:00:00"},{"$f":"Time!ONW$23","v":"00:00:00"},{"$f":"Time!ONX$23","v":"00:00:00"},{"$f":"Time!ONY$23","v":"00:00:00"},{"$f":"Time!ONZ$23","v":"00:00:00"},{"$f":"Time!OOA$23","v":"00:00:00"},{"$f":"Time!OOB$23","v":"00:00:00"},{"$f":"Time!OOC$23","v":"00:00:00"},{"$f":"Time!OOD$23","v":"00:00:00"},{"$f":"Time!OOE$23","v":"00:00:00"},{"$f":"Time!OOF$23","v":"00:00:00"},{"$f":"Time!OOG$23","v":"00:00:00"},{"$f":"Time!OOH$23","v":"00:00:00"},{"$f":"Time!OOI$23","v":"00:00:00"},{"$f":"Time!OOJ$23","v":"00:00:00"},{"$f":"Time!OOK$23","v":"00:00:00"},{"$f":"Time!OOL$23","v":"00:00:00"},{"$f":"Time!OOM$23","v":"00:00:00"},{"$f":"Time!OON$23","v":"00:00:00"},{"$f":"Time!OOO$23","v":"00:00:00"},{"$f":"Time!OOP$23","v":"00:00:00"},{"$f":"Time!OOQ$23","v":"00:00:00"},{"$f":"Time!OOR$23","v":"00:00:00"},{"$f":"Time!OOS$23","v":"00:00:00"},{"$f":"Time!OOT$23","v":"00:00:00"},{"$f":"Time!OOU$23","v":"00:00:00"},{"$f":"Time!OOV$23","v":"00:00:00"},{"$f":"Time!OOW$23","v":"00:00:00"},{"$f":"Time!OOX$23","v":"00:00:00"},{"$f":"Time!OOY$23","v":"00:00:00"},{"$f":"Time!OOZ$23","v":"00:00:00"},{"$f":"Time!OPA$23","v":"00:00:00"},{"$f":"Time!OPB$23","v":"00:00:00"},{"$f":"Time!OPC$23","v":"00:00:00"},{"$f":"Time!OPD$23","v":"00:00:00"},{"$f":"Time!OPE$23","v":"00:00:00"},{"$f":"Time!OPF$23","v":"00:00:00"},{"$f":"Time!OPG$23","v":"00:00:00"},{"$f":"Time!OPH$23","v":"00:00:00"},{"$f":"Time!OPI$23","v":"00:00:00"},{"$f":"Time!OPJ$23","v":"00:00:00"},{"$f":"Time!OPK$23","v":"00:00:00"},{"$f":"Time!OPL$23","v":"00:00:00"},{"$f":"Time!OPM$23","v":"00:00:00"},{"$f":"Time!OPN$23","v":"00:00:00"},{"$f":"Time!OPO$23","v":"00:00:00"},{"$f":"Time!OPP$23","v":"00:00:00"},{"$f":"Time!OPQ$23","v":"00:00:00"},{"$f":"Time!OPR$23","v":"00:00:00"},{"$f":"Time!OPS$23","v":"00:00:00"},{"$f":"Time!OPT$23","v":"00:00:00"},{"$f":"Time!OPU$23","v":"00:00:00"},{"$f":"Time!OPV$23","v":"00:00:00"},{"$f":"Time!OPW$23","v":"00:00:00"},{"$f":"Time!OPX$23","v":"00:00:00"},{"$f":"Time!OPY$23","v":"00:00:00"},{"$f":"Time!OPZ$23","v":"00:00:00"},{"$f":"Time!OQA$23","v":"00:00:00"},{"$f":"Time!OQB$23","v":"00:00:00"},{"$f":"Time!OQC$23","v":"00:00:00"},{"$f":"Time!OQD$23","v":"00:00:00"},{"$f":"Time!OQE$23","v":"00:00:00"},{"$f":"Time!OQF$23","v":"00:00:00"},{"$f":"Time!OQG$23","v":"00:00:00"},{"$f":"Time!OQH$23","v":"00:00:00"},{"$f":"Time!OQI$23","v":"00:00:00"},{"$f":"Time!OQJ$23","v":"00:00:00"},{"$f":"Time!OQK$23","v":"00:00:00"},{"$f":"Time!OQL$23","v":"00:00:00"},{"$f":"Time!OQM$23","v":"00:00:00"},{"$f":"Time!OQN$23","v":"00:00:00"},{"$f":"Time!OQO$23","v":"00:00:00"},{"$f":"Time!OQP$23","v":"00:00:00"},{"$f":"Time!OQQ$23","v":"00:00:00"},{"$f":"Time!OQR$23","v":"00:00:00"},{"$f":"Time!OQS$23","v":"00:00:00"},{"$f":"Time!OQT$23","v":"00:00:00"},{"$f":"Time!OQU$23","v":"00:00:00"},{"$f":"Time!OQV$23","v":"00:00:00"},{"$f":"Time!OQW$23","v":"00:00:00"},{"$f":"Time!OQX$23","v":"00:00:00"},{"$f":"Time!OQY$23","v":"00:00:00"},{"$f":"Time!OQZ$23","v":"00:00:00"},{"$f":"Time!ORA$23","v":"00:00:00"},{"$f":"Time!ORB$23","v":"00:00:00"},{"$f":"Time!ORC$23","v":"00:00:00"},{"$f":"Time!ORD$23","v":"00:00:00"},{"$f":"Time!ORE$23","v":"00:00:00"},{"$f":"Time!ORF$23","v":"00:00:00"},{"$f":"Time!ORG$23","v":"00:00:00"},{"$f":"Time!ORH$23","v":"00:00:00"},{"$f":"Time!ORI$23","v":"00:00:00"},{"$f":"Time!ORJ$23","v":"00:00:00"},{"$f":"Time!ORK$23","v":"00:00:00"},{"$f":"Time!ORL$23","v":"00:00:00"},{"$f":"Time!ORM$23","v":"00:00:00"},{"$f":"Time!ORN$23","v":"00:00:00"},{"$f":"Time!ORO$23","v":"00:00:00"},{"$f":"Time!ORP$23","v":"00:00:00"},{"$f":"Time!ORQ$23","v":"00:00:00"},{"$f":"Time!ORR$23","v":"00:00:00"},{"$f":"Time!ORS$23","v":"00:00:00"},{"$f":"Time!ORT$23","v":"00:00:00"},{"$f":"Time!ORU$23","v":"00:00:00"},{"$f":"Time!ORV$23","v":"00:00:00"},{"$f":"Time!ORW$23","v":"00:00:00"},{"$f":"Time!ORX$23","v":"00:00:00"},{"$f":"Time!ORY$23","v":"00:00:00"},{"$f":"Time!ORZ$23","v":"00:00:00"},{"$f":"Time!OSA$23","v":"00:00:00"},{"$f":"Time!OSB$23","v":"00:00:00"},{"$f":"Time!OSC$23","v":"00:00:00"},{"$f":"Time!OSD$23","v":"00:00:00"},{"$f":"Time!OSE$23","v":"00:00:00"},{"$f":"Time!OSF$23","v":"00:00:00"},{"$f":"Time!OSG$23","v":"00:00:00"},{"$f":"Time!OSH$23","v":"00:00:00"},{"$f":"Time!OSI$23","v":"00:00:00"},{"$f":"Time!OSJ$23","v":"00:00:00"},{"$f":"Time!OSK$23","v":"00:00:00"},{"$f":"Time!OSL$23","v":"00:00:00"},{"$f":"Time!OSM$23","v":"00:00:00"},{"$f":"Time!OSN$23","v":"00:00:00"},{"$f":"Time!OSO$23","v":"00:00:00"},{"$f":"Time!OSP$23","v":"00:00:00"},{"$f":"Time!OSQ$23","v":"00:00:00"},{"$f":"Time!OSR$23","v":"00:00:00"},{"$f":"Time!OSS$23","v":"00:00:00"},{"$f":"Time!OST$23","v":"00:00:00"},{"$f":"Time!OSU$23","v":"00:00:00"},{"$f":"Time!OSV$23","v":"00:00:00"},{"$f":"Time!OSW$23","v":"00:00:00"},{"$f":"Time!OSX$23","v":"00:00:00"},{"$f":"Time!OSY$23","v":"00:00:00"},{"$f":"Time!OSZ$23","v":"00:00:00"},{"$f":"Time!OTA$23","v":"00:00:00"},{"$f":"Time!OTB$23","v":"00:00:00"},{"$f":"Time!OTC$23","v":"00:00:00"},{"$f":"Time!OTD$23","v":"00:00:00"},{"$f":"Time!OTE$23","v":"00:00:00"},{"$f":"Time!OTF$23","v":"00:00:00"},{"$f":"Time!OTG$23","v":"00:00:00"},{"$f":"Time!OTH$23","v":"00:00:00"},{"$f":"Time!OTI$23","v":"00:00:00"},{"$f":"Time!OTJ$23","v":"00:00:00"},{"$f":"Time!OTK$23","v":"00:00:00"},{"$f":"Time!OTL$23","v":"00:00:00"},{"$f":"Time!OTM$23","v":"00:00:00"},{"$f":"Time!OTN$23","v":"00:00:00"},{"$f":"Time!OTO$23","v":"00:00:00"},{"$f":"Time!OTP$23","v":"00:00:00"},{"$f":"Time!OTQ$23","v":"00:00:00"},{"$f":"Time!OTR$23","v":"00:00:00"},{"$f":"Time!OTS$23","v":"00:00:00"},{"$f":"Time!OTT$23","v":"00:00:00"},{"$f":"Time!OTU$23","v":"00:00:00"},{"$f":"Time!OTV$23","v":"00:00:00"},{"$f":"Time!OTW$23","v":"00:00:00"},{"$f":"Time!OTX$23","v":"00:00:00"},{"$f":"Time!OTY$23","v":"00:00:00"},{"$f":"Time!OTZ$23","v":"00:00:00"},{"$f":"Time!OUA$23","v":"00:00:00"},{"$f":"Time!OUB$23","v":"00:00:00"},{"$f":"Time!OUC$23","v":"00:00:00"},{"$f":"Time!OUD$23","v":"00:00:00"},{"$f":"Time!OUE$23","v":"00:00:00"},{"$f":"Time!OUF$23","v":"00:00:00"},{"$f":"Time!OUG$23","v":"00:00:00"},{"$f":"Time!OUH$23","v":"00:00:00"},{"$f":"Time!OUI$23","v":"00:00:00"},{"$f":"Time!OUJ$23","v":"00:00:00"},{"$f":"Time!OUK$23","v":"00:00:00"},{"$f":"Time!OUL$23","v":"00:00:00"},{"$f":"Time!OUM$23","v":"00:00:00"},{"$f":"Time!OUN$23","v":"00:00:00"},{"$f":"Time!OUO$23","v":"00:00:00"},{"$f":"Time!OUP$23","v":"00:00:00"},{"$f":"Time!OUQ$23","v":"00:00:00"},{"$f":"Time!OUR$23","v":"00:00:00"},{"$f":"Time!OUS$23","v":"00:00:00"},{"$f":"Time!OUT$23","v":"00:00:00"},{"$f":"Time!OUU$23","v":"00:00:00"},{"$f":"Time!OUV$23","v":"00:00:00"},{"$f":"Time!OUW$23","v":"00:00:00"},{"$f":"Time!OUX$23","v":"00:00:00"},{"$f":"Time!OUY$23","v":"00:00:00"},{"$f":"Time!OUZ$23","v":"00:00:00"},{"$f":"Time!OVA$23","v":"00:00:00"},{"$f":"Time!OVB$23","v":"00:00:00"},{"$f":"Time!OVC$23","v":"00:00:00"},{"$f":"Time!OVD$23","v":"00:00:00"},{"$f":"Time!OVE$23","v":"00:00:00"},{"$f":"Time!OVF$23","v":"00:00:00"},{"$f":"Time!OVG$23","v":"00:00:00"},{"$f":"Time!OVH$23","v":"00:00:00"},{"$f":"Time!OVI$23","v":"00:00:00"},{"$f":"Time!OVJ$23","v":"00:00:00"},{"$f":"Time!OVK$23","v":"00:00:00"},{"$f":"Time!OVL$23","v":"00:00:00"},{"$f":"Time!OVM$23","v":"00:00:00"},{"$f":"Time!OVN$23","v":"00:00:00"},{"$f":"Time!OVO$23","v":"00:00:00"},{"$f":"Time!OVP$23","v":"00:00:00"},{"$f":"Time!OVQ$23","v":"00:00:00"},{"$f":"Time!OVR$23","v":"00:00:00"},{"$f":"Time!OVS$23","v":"00:00:00"},{"$f":"Time!OVT$23","v":"00:00:00"},{"$f":"Time!OVU$23","v":"00:00:00"},{"$f":"Time!OVV$23","v":"00:00:00"},{"$f":"Time!OVW$23","v":"00:00:00"},{"$f":"Time!OVX$23","v":"00:00:00"},{"$f":"Time!OVY$23","v":"00:00:00"},{"$f":"Time!OVZ$23","v":"00:00:00"},{"$f":"Time!OWA$23","v":"00:00:00"},{"$f":"Time!OWB$23","v":"00:00:00"},{"$f":"Time!OWC$23","v":"00:00:00"},{"$f":"Time!OWD$23","v":"00:00:00"},{"$f":"Time!OWE$23","v":"00:00:00"},{"$f":"Time!OWF$23","v":"00:00:00"},{"$f":"Time!OWG$23","v":"00:00:00"},{"$f":"Time!OWH$23","v":"00:00:00"},{"$f":"Time!OWI$23","v":"00:00:00"},{"$f":"Time!OWJ$23","v":"00:00:00"},{"$f":"Time!OWK$23","v":"00:00:00"},{"$f":"Time!OWL$23","v":"00:00:00"},{"$f":"Time!OWM$23","v":"00:00:00"},{"$f":"Time!OWN$23","v":"00:00:00"},{"$f":"Time!OWO$23","v":"00:00:00"},{"$f":"Time!OWP$23","v":"00:00:00"},{"$f":"Time!OWQ$23","v":"00:00:00"},{"$f":"Time!OWR$23","v":"00:00:00"},{"$f":"Time!OWS$23","v":"00:00:00"},{"$f":"Time!OWT$23","v":"00:00:00"},{"$f":"Time!OWU$23","v":"00:00:00"},{"$f":"Time!OWV$23","v":"00:00:00"},{"$f":"Time!OWW$23","v":"00:00:00"},{"$f":"Time!OWX$23","v":"00:00:00"},{"$f":"Time!OWY$23","v":"00:00:00"},{"$f":"Time!OWZ$23","v":"00:00:00"},{"$f":"Time!OXA$23","v":"00:00:00"},{"$f":"Time!OXB$23","v":"00:00:00"},{"$f":"Time!OXC$23","v":"00:00:00"},{"$f":"Time!OXD$23","v":"00:00:00"},{"$f":"Time!OXE$23","v":"00:00:00"},{"$f":"Time!OXF$23","v":"00:00:00"},{"$f":"Time!OXG$23","v":"00:00:00"},{"$f":"Time!OXH$23","v":"00:00:00"},{"$f":"Time!OXI$23","v":"00:00:00"},{"$f":"Time!OXJ$23","v":"00:00:00"},{"$f":"Time!OXK$23","v":"00:00:00"},{"$f":"Time!OXL$23","v":"00:00:00"},{"$f":"Time!OXM$23","v":"00:00:00"},{"$f":"Time!OXN$23","v":"00:00:00"},{"$f":"Time!OXO$23","v":"00:00:00"},{"$f":"Time!OXP$23","v":"00:00:00"},{"$f":"Time!OXQ$23","v":"00:00:00"},{"$f":"Time!OXR$23","v":"00:00:00"},{"$f":"Time!OXS$23","v":"00:00:00"},{"$f":"Time!OXT$23","v":"00:00:00"},{"$f":"Time!OXU$23","v":"00:00:00"},{"$f":"Time!OXV$23","v":"00:00:00"},{"$f":"Time!OXW$23","v":"00:00:00"},{"$f":"Time!OXX$23","v":"00:00:00"},{"$f":"Time!OXY$23","v":"00:00:00"},{"$f":"Time!OXZ$23","v":"00:00:00"},{"$f":"Time!OYA$23","v":"00:00:00"},{"$f":"Time!OYB$23","v":"00:00:00"},{"$f":"Time!OYC$23","v":"00:00:00"},{"$f":"Time!OYD$23","v":"00:00:00"},{"$f":"Time!OYE$23","v":"00:00:00"},{"$f":"Time!OYF$23","v":"00:00:00"},{"$f":"Time!OYG$23","v":"00:00:00"},{"$f":"Time!OYH$23","v":"00:00:00"},{"$f":"Time!OYI$23","v":"00:00:00"},{"$f":"Time!OYJ$23","v":"00:00:00"},{"$f":"Time!OYK$23","v":"00:00:00"},{"$f":"Time!OYL$23","v":"00:00:00"},{"$f":"Time!OYM$23","v":"00:00:00"},{"$f":"Time!OYN$23","v":"00:00:00"},{"$f":"Time!OYO$23","v":"00:00:00"},{"$f":"Time!OYP$23","v":"00:00:00"},{"$f":"Time!OYQ$23","v":"00:00:00"},{"$f":"Time!OYR$23","v":"00:00:00"},{"$f":"Time!OYS$23","v":"00:00:00"},{"$f":"Time!OYT$23","v":"00:00:00"},{"$f":"Time!OYU$23","v":"00:00:00"},{"$f":"Time!OYV$23","v":"00:00:00"},{"$f":"Time!OYW$23","v":"00:00:00"},{"$f":"Time!OYX$23","v":"00:00:00"},{"$f":"Time!OYY$23","v":"00:00:00"},{"$f":"Time!OYZ$23","v":"00:00:00"},{"$f":"Time!OZA$23","v":"00:00:00"},{"$f":"Time!OZB$23","v":"00:00:00"},{"$f":"Time!OZC$23","v":"00:00:00"},{"$f":"Time!OZD$23","v":"00:00:00"},{"$f":"Time!OZE$23","v":"00:00:00"},{"$f":"Time!OZF$23","v":"00:00:00"},{"$f":"Time!OZG$23","v":"00:00:00"},{"$f":"Time!OZH$23","v":"00:00:00"},{"$f":"Time!OZI$23","v":"00:00:00"},{"$f":"Time!OZJ$23","v":"00:00:00"},{"$f":"Time!OZK$23","v":"00:00:00"},{"$f":"Time!OZL$23","v":"00:00:00"},{"$f":"Time!OZM$23","v":"00:00:00"},{"$f":"Time!OZN$23","v":"00:00:00"},{"$f":"Time!OZO$23","v":"00:00:00"},{"$f":"Time!OZP$23","v":"00:00:00"},{"$f":"Time!OZQ$23","v":"00:00:00"},{"$f":"Time!OZR$23","v":"00:00:00"},{"$f":"Time!OZS$23","v":"00:00:00"},{"$f":"Time!OZT$23","v":"00:00:00"},{"$f":"Time!OZU$23","v":"00:00:00"},{"$f":"Time!OZV$23","v":"00:00:00"},{"$f":"Time!OZW$23","v":"00:00:00"},{"$f":"Time!OZX$23","v":"00:00:00"},{"$f":"Time!OZY$23","v":"00:00:00"},{"$f":"Time!OZZ$23","v":"00:00:00"},{"$f":"Time!PAA$23","v":"00:00:00"},{"$f":"Time!PAB$23","v":"00:00:00"},{"$f":"Time!PAC$23","v":"00:00:00"},{"$f":"Time!PAD$23","v":"00:00:00"},{"$f":"Time!PAE$23","v":"00:00:00"},{"$f":"Time!PAF$23","v":"00:00:00"},{"$f":"Time!PAG$23","v":"00:00:00"},{"$f":"Time!PAH$23","v":"00:00:00"},{"$f":"Time!PAI$23","v":"00:00:00"},{"$f":"Time!PAJ$23","v":"00:00:00"},{"$f":"Time!PAK$23","v":"00:00:00"},{"$f":"Time!PAL$23","v":"00:00:00"},{"$f":"Time!PAM$23","v":"00:00:00"},{"$f":"Time!PAN$23","v":"00:00:00"},{"$f":"Time!PAO$23","v":"00:00:00"},{"$f":"Time!PAP$23","v":"00:00:00"},{"$f":"Time!PAQ$23","v":"00:00:00"},{"$f":"Time!PAR$23","v":"00:00:00"},{"$f":"Time!PAS$23","v":"00:00:00"},{"$f":"Time!PAT$23","v":"00:00:00"},{"$f":"Time!PAU$23","v":"00:00:00"},{"$f":"Time!PAV$23","v":"00:00:00"},{"$f":"Time!PAW$23","v":"00:00:00"},{"$f":"Time!PAX$23","v":"00:00:00"},{"$f":"Time!PAY$23","v":"00:00:00"},{"$f":"Time!PAZ$23","v":"00:00:00"},{"$f":"Time!PBA$23","v":"00:00:00"},{"$f":"Time!PBB$23","v":"00:00:00"},{"$f":"Time!PBC$23","v":"00:00:00"},{"$f":"Time!PBD$23","v":"00:00:00"},{"$f":"Time!PBE$23","v":"00:00:00"},{"$f":"Time!PBF$23","v":"00:00:00"},{"$f":"Time!PBG$23","v":"00:00:00"},{"$f":"Time!PBH$23","v":"00:00:00"},{"$f":"Time!PBI$23","v":"00:00:00"},{"$f":"Time!PBJ$23","v":"00:00:00"},{"$f":"Time!PBK$23","v":"00:00:00"},{"$f":"Time!PBL$23","v":"00:00:00"},{"$f":"Time!PBM$23","v":"00:00:00"},{"$f":"Time!PBN$23","v":"00:00:00"},{"$f":"Time!PBO$23","v":"00:00:00"},{"$f":"Time!PBP$23","v":"00:00:00"},{"$f":"Time!PBQ$23","v":"00:00:00"},{"$f":"Time!PBR$23","v":"00:00:00"},{"$f":"Time!PBS$23","v":"00:00:00"},{"$f":"Time!PBT$23","v":"00:00:00"},{"$f":"Time!PBU$23","v":"00:00:00"},{"$f":"Time!PBV$23","v":"00:00:00"},{"$f":"Time!PBW$23","v":"00:00:00"},{"$f":"Time!PBX$23","v":"00:00:00"},{"$f":"Time!PBY$23","v":"00:00:00"},{"$f":"Time!PBZ$23","v":"00:00:00"},{"$f":"Time!PCA$23","v":"00:00:00"},{"$f":"Time!PCB$23","v":"00:00:00"},{"$f":"Time!PCC$23","v":"00:00:00"},{"$f":"Time!PCD$23","v":"00:00:00"},{"$f":"Time!PCE$23","v":"00:00:00"},{"$f":"Time!PCF$23","v":"00:00:00"},{"$f":"Time!PCG$23","v":"00:00:00"},{"$f":"Time!PCH$23","v":"00:00:00"},{"$f":"Time!PCI$23","v":"00:00:00"},{"$f":"Time!PCJ$23","v":"00:00:00"},{"$f":"Time!PCK$23","v":"00:00:00"},{"$f":"Time!PCL$23","v":"00:00:00"},{"$f":"Time!PCM$23","v":"00:00:00"},{"$f":"Time!PCN$23","v":"00:00:00"},{"$f":"Time!PCO$23","v":"00:00:00"},{"$f":"Time!PCP$23","v":"00:00:00"},{"$f":"Time!PCQ$23","v":"00:00:00"},{"$f":"Time!PCR$23","v":"00:00:00"},{"$f":"Time!PCS$23","v":"00:00:00"},{"$f":"Time!PCT$23","v":"00:00:00"},{"$f":"Time!PCU$23","v":"00:00:00"},{"$f":"Time!PCV$23","v":"00:00:00"},{"$f":"Time!PCW$23","v":"00:00:00"},{"$f":"Time!PCX$23","v":"00:00:00"},{"$f":"Time!PCY$23","v":"00:00:00"},{"$f":"Time!PCZ$23","v":"00:00:00"},{"$f":"Time!PDA$23","v":"00:00:00"},{"$f":"Time!PDB$23","v":"00:00:00"},{"$f":"Time!PDC$23","v":"00:00:00"},{"$f":"Time!PDD$23","v":"00:00:00"},{"$f":"Time!PDE$23","v":"00:00:00"},{"$f":"Time!PDF$23","v":"00:00:00"},{"$f":"Time!PDG$23","v":"00:00:00"},{"$f":"Time!PDH$23","v":"00:00:00"},{"$f":"Time!PDI$23","v":"00:00:00"},{"$f":"Time!PDJ$23","v":"00:00:00"},{"$f":"Time!PDK$23","v":"00:00:00"},{"$f":"Time!PDL$23","v":"00:00:00"},{"$f":"Time!PDM$23","v":"00:00:00"},{"$f":"Time!PDN$23","v":"00:00:00"},{"$f":"Time!PDO$23","v":"00:00:00"},{"$f":"Time!PDP$23","v":"00:00:00"},{"$f":"Time!PDQ$23","v":"00:00:00"},{"$f":"Time!PDR$23","v":"00:00:00"},{"$f":"Time!PDS$23","v":"00:00:00"},{"$f":"Time!PDT$23","v":"00:00:00"},{"$f":"Time!PDU$23","v":"00:00:00"},{"$f":"Time!PDV$23","v":"00:00:00"},{"$f":"Time!PDW$23","v":"00:00:00"},{"$f":"Time!PDX$23","v":"00:00:00"},{"$f":"Time!PDY$23","v":"00:00:00"},{"$f":"Time!PDZ$23","v":"00:00:00"},{"$f":"Time!PEA$23","v":"00:00:00"},{"$f":"Time!PEB$23","v":"00:00:00"},{"$f":"Time!PEC$23","v":"00:00:00"},{"$f":"Time!PED$23","v":"00:00:00"},{"$f":"Time!PEE$23","v":"00:00:00"},{"$f":"Time!PEF$23","v":"00:00:00"},{"$f":"Time!PEG$23","v":"00:00:00"},{"$f":"Time!PEH$23","v":"00:00:00"},{"$f":"Time!PEI$23","v":"00:00:00"},{"$f":"Time!PEJ$23","v":"00:00:00"},{"$f":"Time!PEK$23","v":"00:00:00"},{"$f":"Time!PEL$23","v":"00:00:00"},{"$f":"Time!PEM$23","v":"00:00:00"},{"$f":"Time!PEN$23","v":"00:00:00"},{"$f":"Time!PEO$23","v":"00:00:00"},{"$f":"Time!PEP$23","v":"00:00:00"},{"$f":"Time!PEQ$23","v":"00:00:00"},{"$f":"Time!PER$23","v":"00:00:00"},{"$f":"Time!PES$23","v":"00:00:00"},{"$f":"Time!PET$23","v":"00:00:00"},{"$f":"Time!PEU$23","v":"00:00:00"},{"$f":"Time!PEV$23","v":"00:00:00"},{"$f":"Time!PEW$23","v":"00:00:00"},{"$f":"Time!PEX$23","v":"00:00:00"},{"$f":"Time!PEY$23","v":"00:00:00"},{"$f":"Time!PEZ$23","v":"00:00:00"},{"$f":"Time!PFA$23","v":"00:00:00"},{"$f":"Time!PFB$23","v":"00:00:00"},{"$f":"Time!PFC$23","v":"00:00:00"},{"$f":"Time!PFD$23","v":"00:00:00"},{"$f":"Time!PFE$23","v":"00:00:00"},{"$f":"Time!PFF$23","v":"00:00:00"},{"$f":"Time!PFG$23","v":"00:00:00"},{"$f":"Time!PFH$23","v":"00:00:00"},{"$f":"Time!PFI$23","v":"00:00:00"},{"$f":"Time!PFJ$23","v":"00:00:00"},{"$f":"Time!PFK$23","v":"00:00:00"},{"$f":"Time!PFL$23","v":"00:00:00"},{"$f":"Time!PFM$23","v":"00:00:00"},{"$f":"Time!PFN$23","v":"00:00:00"},{"$f":"Time!PFO$23","v":"00:00:00"},{"$f":"Time!PFP$23","v":"00:00:00"},{"$f":"Time!PFQ$23","v":"00:00:00"},{"$f":"Time!PFR$23","v":"00:00:00"},{"$f":"Time!PFS$23","v":"00:00:00"},{"$f":"Time!PFT$23","v":"00:00:00"},{"$f":"Time!PFU$23","v":"00:00:00"},{"$f":"Time!PFV$23","v":"00:00:00"},{"$f":"Time!PFW$23","v":"00:00:00"},{"$f":"Time!PFX$23","v":"00:00:00"},{"$f":"Time!PFY$23","v":"00:00:00"},{"$f":"Time!PFZ$23","v":"00:00:00"},{"$f":"Time!PGA$23","v":"00:00:00"},{"$f":"Time!PGB$23","v":"00:00:00"},{"$f":"Time!PGC$23","v":"00:00:00"},{"$f":"Time!PGD$23","v":"00:00:00"},{"$f":"Time!PGE$23","v":"00:00:00"},{"$f":"Time!PGF$23","v":"00:00:00"},{"$f":"Time!PGG$23","v":"00:00:00"},{"$f":"Time!PGH$23","v":"00:00:00"},{"$f":"Time!PGI$23","v":"00:00:00"},{"$f":"Time!PGJ$23","v":"00:00:00"},{"$f":"Time!PGK$23","v":"00:00:00"},{"$f":"Time!PGL$23","v":"00:00:00"},{"$f":"Time!PGM$23","v":"00:00:00"},{"$f":"Time!PGN$23","v":"00:00:00"},{"$f":"Time!PGO$23","v":"00:00:00"},{"$f":"Time!PGP$23","v":"00:00:00"},{"$f":"Time!PGQ$23","v":"00:00:00"},{"$f":"Time!PGR$23","v":"00:00:00"},{"$f":"Time!PGS$23","v":"00:00:00"},{"$f":"Time!PGT$23","v":"00:00:00"},{"$f":"Time!PGU$23","v":"00:00:00"},{"$f":"Time!PGV$23","v":"00:00:00"},{"$f":"Time!PGW$23","v":"00:00:00"},{"$f":"Time!PGX$23","v":"00:00:00"},{"$f":"Time!PGY$23","v":"00:00:00"},{"$f":"Time!PGZ$23","v":"00:00:00"},{"$f":"Time!PHA$23","v":"00:00:00"},{"$f":"Time!PHB$23","v":"00:00:00"},{"$f":"Time!PHC$23","v":"00:00:00"},{"$f":"Time!PHD$23","v":"00:00:00"},{"$f":"Time!PHE$23","v":"00:00:00"},{"$f":"Time!PHF$23","v":"00:00:00"},{"$f":"Time!PHG$23","v":"00:00:00"},{"$f":"Time!PHH$23","v":"00:00:00"},{"$f":"Time!PHI$23","v":"00:00:00"},{"$f":"Time!PHJ$23","v":"00:00:00"},{"$f":"Time!PHK$23","v":"00:00:00"},{"$f":"Time!PHL$23","v":"00:00:00"},{"$f":"Time!PHM$23","v":"00:00:00"},{"$f":"Time!PHN$23","v":"00:00:00"},{"$f":"Time!PHO$23","v":"00:00:00"},{"$f":"Time!PHP$23","v":"00:00:00"},{"$f":"Time!PHQ$23","v":"00:00:00"},{"$f":"Time!PHR$23","v":"00:00:00"},{"$f":"Time!PHS$23","v":"00:00:00"},{"$f":"Time!PHT$23","v":"00:00:00"},{"$f":"Time!PHU$23","v":"00:00:00"},{"$f":"Time!PHV$23","v":"00:00:00"},{"$f":"Time!PHW$23","v":"00:00:00"},{"$f":"Time!PHX$23","v":"00:00:00"},{"$f":"Time!PHY$23","v":"00:00:00"},{"$f":"Time!PHZ$23","v":"00:00:00"},{"$f":"Time!PIA$23","v":"00:00:00"},{"$f":"Time!PIB$23","v":"00:00:00"},{"$f":"Time!PIC$23","v":"00:00:00"},{"$f":"Time!PID$23","v":"00:00:00"},{"$f":"Time!PIE$23","v":"00:00:00"},{"$f":"Time!PIF$23","v":"00:00:00"},{"$f":"Time!PIG$23","v":"00:00:00"},{"$f":"Time!PIH$23","v":"00:00:00"},{"$f":"Time!PII$23","v":"00:00:00"},{"$f":"Time!PIJ$23","v":"00:00:00"},{"$f":"Time!PIK$23","v":"00:00:00"},{"$f":"Time!PIL$23","v":"00:00:00"},{"$f":"Time!PIM$23","v":"00:00:00"},{"$f":"Time!PIN$23","v":"00:00:00"},{"$f":"Time!PIO$23","v":"00:00:00"},{"$f":"Time!PIP$23","v":"00:00:00"},{"$f":"Time!PIQ$23","v":"00:00:00"},{"$f":"Time!PIR$23","v":"00:00:00"},{"$f":"Time!PIS$23","v":"00:00:00"},{"$f":"Time!PIT$23","v":"00:00:00"},{"$f":"Time!PIU$23","v":"00:00:00"},{"$f":"Time!PIV$23","v":"00:00:00"},{"$f":"Time!PIW$23","v":"00:00:00"},{"$f":"Time!PIX$23","v":"00:00:00"},{"$f":"Time!PIY$23","v":"00:00:00"},{"$f":"Time!PIZ$23","v":"00:00:00"},{"$f":"Time!PJA$23","v":"00:00:00"},{"$f":"Time!PJB$23","v":"00:00:00"},{"$f":"Time!PJC$23","v":"00:00:00"},{"$f":"Time!PJD$23","v":"00:00:00"},{"$f":"Time!PJE$23","v":"00:00:00"},{"$f":"Time!PJF$23","v":"00:00:00"},{"$f":"Time!PJG$23","v":"00:00:00"},{"$f":"Time!PJH$23","v":"00:00:00"},{"$f":"Time!PJI$23","v":"00:00:00"},{"$f":"Time!PJJ$23","v":"00:00:00"},{"$f":"Time!PJK$23","v":"00:00:00"},{"$f":"Time!PJL$23","v":"00:00:00"},{"$f":"Time!PJM$23","v":"00:00:00"},{"$f":"Time!PJN$23","v":"00:00:00"},{"$f":"Time!PJO$23","v":"00:00:00"},{"$f":"Time!PJP$23","v":"00:00:00"},{"$f":"Time!PJQ$23","v":"00:00:00"},{"$f":"Time!PJR$23","v":"00:00:00"},{"$f":"Time!PJS$23","v":"00:00:00"},{"$f":"Time!PJT$23","v":"00:00:00"},{"$f":"Time!PJU$23","v":"00:00:00"},{"$f":"Time!PJV$23","v":"00:00:00"},{"$f":"Time!PJW$23","v":"00:00:00"},{"$f":"Time!PJX$23","v":"00:00:00"},{"$f":"Time!PJY$23","v":"00:00:00"},{"$f":"Time!PJZ$23","v":"00:00:00"},{"$f":"Time!PKA$23","v":"00:00:00"},{"$f":"Time!PKB$23","v":"00:00:00"},{"$f":"Time!PKC$23","v":"00:00:00"},{"$f":"Time!PKD$23","v":"00:00:00"},{"$f":"Time!PKE$23","v":"00:00:00"},{"$f":"Time!PKF$23","v":"00:00:00"},{"$f":"Time!PKG$23","v":"00:00:00"},{"$f":"Time!PKH$23","v":"00:00:00"},{"$f":"Time!PKI$23","v":"00:00:00"},{"$f":"Time!PKJ$23","v":"00:00:00"},{"$f":"Time!PKK$23","v":"00:00:00"},{"$f":"Time!PKL$23","v":"00:00:00"},{"$f":"Time!PKM$23","v":"00:00:00"},{"$f":"Time!PKN$23","v":"00:00:00"},{"$f":"Time!PKO$23","v":"00:00:00"},{"$f":"Time!PKP$23","v":"00:00:00"},{"$f":"Time!PKQ$23","v":"00:00:00"},{"$f":"Time!PKR$23","v":"00:00:00"},{"$f":"Time!PKS$23","v":"00:00:00"},{"$f":"Time!PKT$23","v":"00:00:00"},{"$f":"Time!PKU$23","v":"00:00:00"},{"$f":"Time!PKV$23","v":"00:00:00"},{"$f":"Time!PKW$23","v":"00:00:00"},{"$f":"Time!PKX$23","v":"00:00:00"},{"$f":"Time!PKY$23","v":"00:00:00"},{"$f":"Time!PKZ$23","v":"00:00:00"},{"$f":"Time!PLA$23","v":"00:00:00"},{"$f":"Time!PLB$23","v":"00:00:00"},{"$f":"Time!PLC$23","v":"00:00:00"},{"$f":"Time!PLD$23","v":"00:00:00"},{"$f":"Time!PLE$23","v":"00:00:00"},{"$f":"Time!PLF$23","v":"00:00:00"},{"$f":"Time!PLG$23","v":"00:00:00"},{"$f":"Time!PLH$23","v":"00:00:00"},{"$f":"Time!PLI$23","v":"00:00:00"},{"$f":"Time!PLJ$23","v":"00:00:00"},{"$f":"Time!PLK$23","v":"00:00:00"},{"$f":"Time!PLL$23","v":"00:00:00"},{"$f":"Time!PLM$23","v":"00:00:00"},{"$f":"Time!PLN$23","v":"00:00:00"},{"$f":"Time!PLO$23","v":"00:00:00"},{"$f":"Time!PLP$23","v":"00:00:00"},{"$f":"Time!PLQ$23","v":"00:00:00"},{"$f":"Time!PLR$23","v":"00:00:00"},{"$f":"Time!PLS$23","v":"00:00:00"},{"$f":"Time!PLT$23","v":"00:00:00"},{"$f":"Time!PLU$23","v":"00:00:00"},{"$f":"Time!PLV$23","v":"00:00:00"},{"$f":"Time!PLW$23","v":"00:00:00"},{"$f":"Time!PLX$23","v":"00:00:00"},{"$f":"Time!PLY$23","v":"00:00:00"},{"$f":"Time!PLZ$23","v":"00:00:00"},{"$f":"Time!PMA$23","v":"00:00:00"},{"$f":"Time!PMB$23","v":"00:00:00"},{"$f":"Time!PMC$23","v":"00:00:00"},{"$f":"Time!PMD$23","v":"00:00:00"},{"$f":"Time!PME$23","v":"00:00:00"},{"$f":"Time!PMF$23","v":"00:00:00"},{"$f":"Time!PMG$23","v":"00:00:00"},{"$f":"Time!PMH$23","v":"00:00:00"},{"$f":"Time!PMI$23","v":"00:00:00"},{"$f":"Time!PMJ$23","v":"00:00:00"},{"$f":"Time!PMK$23","v":"00:00:00"},{"$f":"Time!PML$23","v":"00:00:00"},{"$f":"Time!PMM$23","v":"00:00:00"},{"$f":"Time!PMN$23","v":"00:00:00"},{"$f":"Time!PMO$23","v":"00:00:00"},{"$f":"Time!PMP$23","v":"00:00:00"},{"$f":"Time!PMQ$23","v":"00:00:00"},{"$f":"Time!PMR$23","v":"00:00:00"},{"$f":"Time!PMS$23","v":"00:00:00"},{"$f":"Time!PMT$23","v":"00:00:00"},{"$f":"Time!PMU$23","v":"00:00:00"},{"$f":"Time!PMV$23","v":"00:00:00"},{"$f":"Time!PMW$23","v":"00:00:00"},{"$f":"Time!PMX$23","v":"00:00:00"},{"$f":"Time!PMY$23","v":"00:00:00"},{"$f":"Time!PMZ$23","v":"00:00:00"},{"$f":"Time!PNA$23","v":"00:00:00"},{"$f":"Time!PNB$23","v":"00:00:00"},{"$f":"Time!PNC$23","v":"00:00:00"},{"$f":"Time!PND$23","v":"00:00:00"},{"$f":"Time!PNE$23","v":"00:00:00"},{"$f":"Time!PNF$23","v":"00:00:00"},{"$f":"Time!PNG$23","v":"00:00:00"},{"$f":"Time!PNH$23","v":"00:00:00"},{"$f":"Time!PNI$23","v":"00:00:00"},{"$f":"Time!PNJ$23","v":"00:00:00"},{"$f":"Time!PNK$23","v":"00:00:00"},{"$f":"Time!PNL$23","v":"00:00:00"},{"$f":"Time!PNM$23","v":"00:00:00"},{"$f":"Time!PNN$23","v":"00:00:00"},{"$f":"Time!PNO$23","v":"00:00:00"},{"$f":"Time!PNP$23","v":"00:00:00"},{"$f":"Time!PNQ$23","v":"00:00:00"},{"$f":"Time!PNR$23","v":"00:00:00"},{"$f":"Time!PNS$23","v":"00:00:00"},{"$f":"Time!PNT$23","v":"00:00:00"},{"$f":"Time!PNU$23","v":"00:00:00"},{"$f":"Time!PNV$23","v":"00:00:00"},{"$f":"Time!PNW$23","v":"00:00:00"},{"$f":"Time!PNX$23","v":"00:00:00"},{"$f":"Time!PNY$23","v":"00:00:00"},{"$f":"Time!PNZ$23","v":"00:00:00"},{"$f":"Time!POA$23","v":"00:00:00"},{"$f":"Time!POB$23","v":"00:00:00"},{"$f":"Time!POC$23","v":"00:00:00"},{"$f":"Time!POD$23","v":"00:00:00"},{"$f":"Time!POE$23","v":"00:00:00"},{"$f":"Time!POF$23","v":"00:00:00"},{"$f":"Time!POG$23","v":"00:00:00"},{"$f":"Time!POH$23","v":"00:00:00"},{"$f":"Time!POI$23","v":"00:00:00"},{"$f":"Time!POJ$23","v":"00:00:00"},{"$f":"Time!POK$23","v":"00:00:00"},{"$f":"Time!POL$23","v":"00:00:00"},{"$f":"Time!POM$23","v":"00:00:00"},{"$f":"Time!PON$23","v":"00:00:00"},{"$f":"Time!POO$23","v":"00:00:00"},{"$f":"Time!POP$23","v":"00:00:00"},{"$f":"Time!POQ$23","v":"00:00:00"},{"$f":"Time!POR$23","v":"00:00:00"},{"$f":"Time!POS$23","v":"00:00:00"},{"$f":"Time!POT$23","v":"00:00:00"},{"$f":"Time!POU$23","v":"00:00:00"},{"$f":"Time!POV$23","v":"00:00:00"},{"$f":"Time!POW$23","v":"00:00:00"},{"$f":"Time!POX$23","v":"00:00:00"},{"$f":"Time!POY$23","v":"00:00:00"},{"$f":"Time!POZ$23","v":"00:00:00"},{"$f":"Time!PPA$23","v":"00:00:00"},{"$f":"Time!PPB$23","v":"00:00:00"},{"$f":"Time!PPC$23","v":"00:00:00"},{"$f":"Time!PPD$23","v":"00:00:00"},{"$f":"Time!PPE$23","v":"00:00:00"},{"$f":"Time!PPF$23","v":"00:00:00"},{"$f":"Time!PPG$23","v":"00:00:00"},{"$f":"Time!PPH$23","v":"00:00:00"},{"$f":"Time!PPI$23","v":"00:00:00"},{"$f":"Time!PPJ$23","v":"00:00:00"},{"$f":"Time!PPK$23","v":"00:00:00"},{"$f":"Time!PPL$23","v":"00:00:00"},{"$f":"Time!PPM$23","v":"00:00:00"},{"$f":"Time!PPN$23","v":"00:00:00"},{"$f":"Time!PPO$23","v":"00:00:00"},{"$f":"Time!PPP$23","v":"00:00:00"},{"$f":"Time!PPQ$23","v":"00:00:00"},{"$f":"Time!PPR$23","v":"00:00:00"},{"$f":"Time!PPS$23","v":"00:00:00"},{"$f":"Time!PPT$23","v":"00:00:00"},{"$f":"Time!PPU$23","v":"00:00:00"},{"$f":"Time!PPV$23","v":"00:00:00"},{"$f":"Time!PPW$23","v":"00:00:00"},{"$f":"Time!PPX$23","v":"00:00:00"},{"$f":"Time!PPY$23","v":"00:00:00"},{"$f":"Time!PPZ$23","v":"00:00:00"},{"$f":"Time!PQA$23","v":"00:00:00"},{"$f":"Time!PQB$23","v":"00:00:00"},{"$f":"Time!PQC$23","v":"00:00:00"},{"$f":"Time!PQD$23","v":"00:00:00"},{"$f":"Time!PQE$23","v":"00:00:00"},{"$f":"Time!PQF$23","v":"00:00:00"},{"$f":"Time!PQG$23","v":"00:00:00"},{"$f":"Time!PQH$23","v":"00:00:00"},{"$f":"Time!PQI$23","v":"00:00:00"},{"$f":"Time!PQJ$23","v":"00:00:00"},{"$f":"Time!PQK$23","v":"00:00:00"},{"$f":"Time!PQL$23","v":"00:00:00"},{"$f":"Time!PQM$23","v":"00:00:00"},{"$f":"Time!PQN$23","v":"00:00:00"},{"$f":"Time!PQO$23","v":"00:00:00"},{"$f":"Time!PQP$23","v":"00:00:00"},{"$f":"Time!PQQ$23","v":"00:00:00"},{"$f":"Time!PQR$23","v":"00:00:00"},{"$f":"Time!PQS$23","v":"00:00:00"},{"$f":"Time!PQT$23","v":"00:00:00"},{"$f":"Time!PQU$23","v":"00:00:00"},{"$f":"Time!PQV$23","v":"00:00:00"},{"$f":"Time!PQW$23","v":"00:00:00"},{"$f":"Time!PQX$23","v":"00:00:00"},{"$f":"Time!PQY$23","v":"00:00:00"},{"$f":"Time!PQZ$23","v":"00:00:00"},{"$f":"Time!PRA$23","v":"00:00:00"},{"$f":"Time!PRB$23","v":"00:00:00"},{"$f":"Time!PRC$23","v":"00:00:00"},{"$f":"Time!PRD$23","v":"00:00:00"},{"$f":"Time!PRE$23","v":"00:00:00"},{"$f":"Time!PRF$23","v":"00:00:00"},{"$f":"Time!PRG$23","v":"00:00:00"},{"$f":"Time!PRH$23","v":"00:00:00"},{"$f":"Time!PRI$23","v":"00:00:00"},{"$f":"Time!PRJ$23","v":"00:00:00"},{"$f":"Time!PRK$23","v":"00:00:00"},{"$f":"Time!PRL$23","v":"00:00:00"},{"$f":"Time!PRM$23","v":"00:00:00"},{"$f":"Time!PRN$23","v":"00:00:00"},{"$f":"Time!PRO$23","v":"00:00:00"},{"$f":"Time!PRP$23","v":"00:00:00"},{"$f":"Time!PRQ$23","v":"00:00:00"},{"$f":"Time!PRR$23","v":"00:00:00"},{"$f":"Time!PRS$23","v":"00:00:00"},{"$f":"Time!PRT$23","v":"00:00:00"},{"$f":"Time!PRU$23","v":"00:00:00"},{"$f":"Time!PRV$23","v":"00:00:00"},{"$f":"Time!PRW$23","v":"00:00:00"},{"$f":"Time!PRX$23","v":"00:00:00"},{"$f":"Time!PRY$23","v":"00:00:00"},{"$f":"Time!PRZ$23","v":"00:00:00"},{"$f":"Time!PSA$23","v":"00:00:00"},{"$f":"Time!PSB$23","v":"00:00:00"},{"$f":"Time!PSC$23","v":"00:00:00"},{"$f":"Time!PSD$23","v":"00:00:00"},{"$f":"Time!PSE$23","v":"00:00:00"},{"$f":"Time!PSF$23","v":"00:00:00"},{"$f":"Time!PSG$23","v":"00:00:00"},{"$f":"Time!PSH$23","v":"00:00:00"},{"$f":"Time!PSI$23","v":"00:00:00"},{"$f":"Time!PSJ$23","v":"00:00:00"},{"$f":"Time!PSK$23","v":"00:00:00"},{"$f":"Time!PSL$23","v":"00:00:00"},{"$f":"Time!PSM$23","v":"00:00:00"},{"$f":"Time!PSN$23","v":"00:00:00"},{"$f":"Time!PSO$23","v":"00:00:00"},{"$f":"Time!PSP$23","v":"00:00:00"},{"$f":"Time!PSQ$23","v":"00:00:00"},{"$f":"Time!PSR$23","v":"00:00:00"},{"$f":"Time!PSS$23","v":"00:00:00"},{"$f":"Time!PST$23","v":"00:00:00"},{"$f":"Time!PSU$23","v":"00:00:00"},{"$f":"Time!PSV$23","v":"00:00:00"},{"$f":"Time!PSW$23","v":"00:00:00"},{"$f":"Time!PSX$23","v":"00:00:00"},{"$f":"Time!PSY$23","v":"00:00:00"},{"$f":"Time!PSZ$23","v":"00:00:00"},{"$f":"Time!PTA$23","v":"00:00:00"},{"$f":"Time!PTB$23","v":"00:00:00"},{"$f":"Time!PTC$23","v":"00:00:00"},{"$f":"Time!PTD$23","v":"00:00:00"},{"$f":"Time!PTE$23","v":"00:00:00"},{"$f":"Time!PTF$23","v":"00:00:00"},{"$f":"Time!PTG$23","v":"00:00:00"},{"$f":"Time!PTH$23","v":"00:00:00"},{"$f":"Time!PTI$23","v":"00:00:00"},{"$f":"Time!PTJ$23","v":"00:00:00"},{"$f":"Time!PTK$23","v":"00:00:00"},{"$f":"Time!PTL$23","v":"00:00:00"},{"$f":"Time!PTM$23","v":"00:00:00"},{"$f":"Time!PTN$23","v":"00:00:00"},{"$f":"Time!PTO$23","v":"00:00:00"},{"$f":"Time!PTP$23","v":"00:00:00"},{"$f":"Time!PTQ$23","v":"00:00:00"},{"$f":"Time!PTR$23","v":"00:00:00"},{"$f":"Time!PTS$23","v":"00:00:00"},{"$f":"Time!PTT$23","v":"00:00:00"},{"$f":"Time!PTU$23","v":"00:00:00"},{"$f":"Time!PTV$23","v":"00:00:00"},{"$f":"Time!PTW$23","v":"00:00:00"},{"$f":"Time!PTX$23","v":"00:00:00"},{"$f":"Time!PTY$23","v":"00:00:00"},{"$f":"Time!PTZ$23","v":"00:00:00"},{"$f":"Time!PUA$23","v":"00:00:00"},{"$f":"Time!PUB$23","v":"00:00:00"},{"$f":"Time!PUC$23","v":"00:00:00"},{"$f":"Time!PUD$23","v":"00:00:00"},{"$f":"Time!PUE$23","v":"00:00:00"},{"$f":"Time!PUF$23","v":"00:00:00"},{"$f":"Time!PUG$23","v":"00:00:00"},{"$f":"Time!PUH$23","v":"00:00:00"},{"$f":"Time!PUI$23","v":"00:00:00"},{"$f":"Time!PUJ$23","v":"00:00:00"},{"$f":"Time!PUK$23","v":"00:00:00"},{"$f":"Time!PUL$23","v":"00:00:00"},{"$f":"Time!PUM$23","v":"00:00:00"},{"$f":"Time!PUN$23","v":"00:00:00"},{"$f":"Time!PUO$23","v":"00:00:00"},{"$f":"Time!PUP$23","v":"00:00:00"},{"$f":"Time!PUQ$23","v":"00:00:00"},{"$f":"Time!PUR$23","v":"00:00:00"},{"$f":"Time!PUS$23","v":"00:00:00"},{"$f":"Time!PUT$23","v":"00:00:00"},{"$f":"Time!PUU$23","v":"00:00:00"},{"$f":"Time!PUV$23","v":"00:00:00"},{"$f":"Time!PUW$23","v":"00:00:00"},{"$f":"Time!PUX$23","v":"00:00:00"},{"$f":"Time!PUY$23","v":"00:00:00"},{"$f":"Time!PUZ$23","v":"00:00:00"},{"$f":"Time!PVA$23","v":"00:00:00"},{"$f":"Time!PVB$23","v":"00:00:00"},{"$f":"Time!PVC$23","v":"00:00:00"},{"$f":"Time!PVD$23","v":"00:00:00"},{"$f":"Time!PVE$23","v":"00:00:00"},{"$f":"Time!PVF$23","v":"00:00:00"},{"$f":"Time!PVG$23","v":"00:00:00"},{"$f":"Time!PVH$23","v":"00:00:00"},{"$f":"Time!PVI$23","v":"00:00:00"},{"$f":"Time!PVJ$23","v":"00:00:00"},{"$f":"Time!PVK$23","v":"00:00:00"},{"$f":"Time!PVL$23","v":"00:00:00"},{"$f":"Time!PVM$23","v":"00:00:00"},{"$f":"Time!PVN$23","v":"00:00:00"},{"$f":"Time!PVO$23","v":"00:00:00"},{"$f":"Time!PVP$23","v":"00:00:00"},{"$f":"Time!PVQ$23","v":"00:00:00"},{"$f":"Time!PVR$23","v":"00:00:00"},{"$f":"Time!PVS$23","v":"00:00:00"},{"$f":"Time!PVT$23","v":"00:00:00"},{"$f":"Time!PVU$23","v":"00:00:00"},{"$f":"Time!PVV$23","v":"00:00:00"},{"$f":"Time!PVW$23","v":"00:00:00"},{"$f":"Time!PVX$23","v":"00:00:00"},{"$f":"Time!PVY$23","v":"00:00:00"},{"$f":"Time!PVZ$23","v":"00:00:00"},{"$f":"Time!PWA$23","v":"00:00:00"},{"$f":"Time!PWB$23","v":"00:00:00"},{"$f":"Time!PWC$23","v":"00:00:00"},{"$f":"Time!PWD$23","v":"00:00:00"},{"$f":"Time!PWE$23","v":"00:00:00"},{"$f":"Time!PWF$23","v":"00:00:00"},{"$f":"Time!PWG$23","v":"00:00:00"},{"$f":"Time!PWH$23","v":"00:00:00"},{"$f":"Time!PWI$23","v":"00:00:00"},{"$f":"Time!PWJ$23","v":"00:00:00"},{"$f":"Time!PWK$23","v":"00:00:00"},{"$f":"Time!PWL$23","v":"00:00:00"},{"$f":"Time!PWM$23","v":"00:00:00"},{"$f":"Time!PWN$23","v":"00:00:00"},{"$f":"Time!PWO$23","v":"00:00:00"},{"$f":"Time!PWP$23","v":"00:00:00"},{"$f":"Time!PWQ$23","v":"00:00:00"},{"$f":"Time!PWR$23","v":"00:00:00"},{"$f":"Time!PWS$23","v":"00:00:00"},{"$f":"Time!PWT$23","v":"00:00:00"},{"$f":"Time!PWU$23","v":"00:00:00"},{"$f":"Time!PWV$23","v":"00:00:00"},{"$f":"Time!PWW$23","v":"00:00:00"},{"$f":"Time!PWX$23","v":"00:00:00"},{"$f":"Time!PWY$23","v":"00:00:00"},{"$f":"Time!PWZ$23","v":"00:00:00"},{"$f":"Time!PXA$23","v":"00:00:00"},{"$f":"Time!PXB$23","v":"00:00:00"},{"$f":"Time!PXC$23","v":"00:00:00"},{"$f":"Time!PXD$23","v":"00:00:00"},{"$f":"Time!PXE$23","v":"00:00:00"},{"$f":"Time!PXF$23","v":"00:00:00"},{"$f":"Time!PXG$23","v":"00:00:00"},{"$f":"Time!PXH$23","v":"00:00:00"},{"$f":"Time!PXI$23","v":"00:00:00"},{"$f":"Time!PXJ$23","v":"00:00:00"},{"$f":"Time!PXK$23","v":"00:00:00"},{"$f":"Time!PXL$23","v":"00:00:00"},{"$f":"Time!PXM$23","v":"00:00:00"},{"$f":"Time!PXN$23","v":"00:00:00"},{"$f":"Time!PXO$23","v":"00:00:00"},{"$f":"Time!PXP$23","v":"00:00:00"},{"$f":"Time!PXQ$23","v":"00:00:00"},{"$f":"Time!PXR$23","v":"00:00:00"},{"$f":"Time!PXS$23","v":"00:00:00"},{"$f":"Time!PXT$23","v":"00:00:00"},{"$f":"Time!PXU$23","v":"00:00:00"},{"$f":"Time!PXV$23","v":"00:00:00"},{"$f":"Time!PXW$23","v":"00:00:00"},{"$f":"Time!PXX$23","v":"00:00:00"},{"$f":"Time!PXY$23","v":"00:00:00"},{"$f":"Time!PXZ$23","v":"00:00:00"},{"$f":"Time!PYA$23","v":"00:00:00"},{"$f":"Time!PYB$23","v":"00:00:00"},{"$f":"Time!PYC$23","v":"00:00:00"},{"$f":"Time!PYD$23","v":"00:00:00"},{"$f":"Time!PYE$23","v":"00:00:00"},{"$f":"Time!PYF$23","v":"00:00:00"},{"$f":"Time!PYG$23","v":"00:00:00"},{"$f":"Time!PYH$23","v":"00:00:00"},{"$f":"Time!PYI$23","v":"00:00:00"},{"$f":"Time!PYJ$23","v":"00:00:00"},{"$f":"Time!PYK$23","v":"00:00:00"},{"$f":"Time!PYL$23","v":"00:00:00"},{"$f":"Time!PYM$23","v":"00:00:00"},{"$f":"Time!PYN$23","v":"00:00:00"},{"$f":"Time!PYO$23","v":"00:00:00"},{"$f":"Time!PYP$23","v":"00:00:00"},{"$f":"Time!PYQ$23","v":"00:00:00"},{"$f":"Time!PYR$23","v":"00:00:00"},{"$f":"Time!PYS$23","v":"00:00:00"},{"$f":"Time!PYT$23","v":"00:00:00"},{"$f":"Time!PYU$23","v":"00:00:00"},{"$f":"Time!PYV$23","v":"00:00:00"},{"$f":"Time!PYW$23","v":"00:00:00"},{"$f":"Time!PYX$23","v":"00:00:00"},{"$f":"Time!PYY$23","v":"00:00:00"},{"$f":"Time!PYZ$23","v":"00:00:00"},{"$f":"Time!PZA$23","v":"00:00:00"},{"$f":"Time!PZB$23","v":"00:00:00"},{"$f":"Time!PZC$23","v":"00:00:00"},{"$f":"Time!PZD$23","v":"00:00:00"},{"$f":"Time!PZE$23","v":"00:00:00"},{"$f":"Time!PZF$23","v":"00:00:00"},{"$f":"Time!PZG$23","v":"00:00:00"},{"$f":"Time!PZH$23","v":"00:00:00"},{"$f":"Time!PZI$23","v":"00:00:00"},{"$f":"Time!PZJ$23","v":"00:00:00"},{"$f":"Time!PZK$23","v":"00:00:00"},{"$f":"Time!PZL$23","v":"00:00:00"},{"$f":"Time!PZM$23","v":"00:00:00"},{"$f":"Time!PZN$23","v":"00:00:00"},{"$f":"Time!PZO$23","v":"00:00:00"},{"$f":"Time!PZP$23","v":"00:00:00"},{"$f":"Time!PZQ$23","v":"00:00:00"},{"$f":"Time!PZR$23","v":"00:00:00"},{"$f":"Time!PZS$23","v":"00:00:00"},{"$f":"Time!PZT$23","v":"00:00:00"},{"$f":"Time!PZU$23","v":"00:00:00"},{"$f":"Time!PZV$23","v":"00:00:00"},{"$f":"Time!PZW$23","v":"00:00:00"},{"$f":"Time!PZX$23","v":"00:00:00"},{"$f":"Time!PZY$23","v":"00:00:00"},{"$f":"Time!PZZ$23","v":"00:00:00"},{"$f":"Time!QAA$23","v":"00:00:00"},{"$f":"Time!QAB$23","v":"00:00:00"},{"$f":"Time!QAC$23","v":"00:00:00"},{"$f":"Time!QAD$23","v":"00:00:00"},{"$f":"Time!QAE$23","v":"00:00:00"},{"$f":"Time!QAF$23","v":"00:00:00"},{"$f":"Time!QAG$23","v":"00:00:00"},{"$f":"Time!QAH$23","v":"00:00:00"},{"$f":"Time!QAI$23","v":"00:00:00"},{"$f":"Time!QAJ$23","v":"00:00:00"},{"$f":"Time!QAK$23","v":"00:00:00"},{"$f":"Time!QAL$23","v":"00:00:00"},{"$f":"Time!QAM$23","v":"00:00:00"},{"$f":"Time!QAN$23","v":"00:00:00"},{"$f":"Time!QAO$23","v":"00:00:00"},{"$f":"Time!QAP$23","v":"00:00:00"},{"$f":"Time!QAQ$23","v":"00:00:00"},{"$f":"Time!QAR$23","v":"00:00:00"},{"$f":"Time!QAS$23","v":"00:00:00"},{"$f":"Time!QAT$23","v":"00:00:00"},{"$f":"Time!QAU$23","v":"00:00:00"},{"$f":"Time!QAV$23","v":"00:00:00"},{"$f":"Time!QAW$23","v":"00:00:00"},{"$f":"Time!QAX$23","v":"00:00:00"},{"$f":"Time!QAY$23","v":"00:00:00"},{"$f":"Time!QAZ$23","v":"00:00:00"},{"$f":"Time!QBA$23","v":"00:00:00"},{"$f":"Time!QBB$23","v":"00:00:00"},{"$f":"Time!QBC$23","v":"00:00:00"},{"$f":"Time!QBD$23","v":"00:00:00"},{"$f":"Time!QBE$23","v":"00:00:00"},{"$f":"Time!QBF$23","v":"00:00:00"},{"$f":"Time!QBG$23","v":"00:00:00"},{"$f":"Time!QBH$23","v":"00:00:00"},{"$f":"Time!QBI$23","v":"00:00:00"},{"$f":"Time!QBJ$23","v":"00:00:00"},{"$f":"Time!QBK$23","v":"00:00:00"},{"$f":"Time!QBL$23","v":"00:00:00"},{"$f":"Time!QBM$23","v":"00:00:00"},{"$f":"Time!QBN$23","v":"00:00:00"},{"$f":"Time!QBO$23","v":"00:00:00"},{"$f":"Time!QBP$23","v":"00:00:00"},{"$f":"Time!QBQ$23","v":"00:00:00"},{"$f":"Time!QBR$23","v":"00:00:00"},{"$f":"Time!QBS$23","v":"00:00:00"},{"$f":"Time!QBT$23","v":"00:00:00"},{"$f":"Time!QBU$23","v":"00:00:00"},{"$f":"Time!QBV$23","v":"00:00:00"},{"$f":"Time!QBW$23","v":"00:00:00"},{"$f":"Time!QBX$23","v":"00:00:00"},{"$f":"Time!QBY$23","v":"00:00:00"},{"$f":"Time!QBZ$23","v":"00:00:00"},{"$f":"Time!QCA$23","v":"00:00:00"},{"$f":"Time!QCB$23","v":"00:00:00"},{"$f":"Time!QCC$23","v":"00:00:00"},{"$f":"Time!QCD$23","v":"00:00:00"},{"$f":"Time!QCE$23","v":"00:00:00"},{"$f":"Time!QCF$23","v":"00:00:00"},{"$f":"Time!QCG$23","v":"00:00:00"},{"$f":"Time!QCH$23","v":"00:00:00"},{"$f":"Time!QCI$23","v":"00:00:00"},{"$f":"Time!QCJ$23","v":"00:00:00"},{"$f":"Time!QCK$23","v":"00:00:00"},{"$f":"Time!QCL$23","v":"00:00:00"},{"$f":"Time!QCM$23","v":"00:00:00"},{"$f":"Time!QCN$23","v":"00:00:00"},{"$f":"Time!QCO$23","v":"00:00:00"},{"$f":"Time!QCP$23","v":"00:00:00"},{"$f":"Time!QCQ$23","v":"00:00:00"},{"$f":"Time!QCR$23","v":"00:00:00"},{"$f":"Time!QCS$23","v":"00:00:00"},{"$f":"Time!QCT$23","v":"00:00:00"},{"$f":"Time!QCU$23","v":"00:00:00"},{"$f":"Time!QCV$23","v":"00:00:00"},{"$f":"Time!QCW$23","v":"00:00:00"},{"$f":"Time!QCX$23","v":"00:00:00"},{"$f":"Time!QCY$23","v":"00:00:00"},{"$f":"Time!QCZ$23","v":"00:00:00"},{"$f":"Time!QDA$23","v":"00:00:00"},{"$f":"Time!QDB$23","v":"00:00:00"},{"$f":"Time!QDC$23","v":"00:00:00"},{"$f":"Time!QDD$23","v":"00:00:00"},{"$f":"Time!QDE$23","v":"00:00:00"},{"$f":"Time!QDF$23","v":"00:00:00"},{"$f":"Time!QDG$23","v":"00:00:00"},{"$f":"Time!QDH$23","v":"00:00:00"},{"$f":"Time!QDI$23","v":"00:00:00"},{"$f":"Time!QDJ$23","v":"00:00:00"},{"$f":"Time!QDK$23","v":"00:00:00"},{"$f":"Time!QDL$23","v":"00:00:00"},{"$f":"Time!QDM$23","v":"00:00:00"},{"$f":"Time!QDN$23","v":"00:00:00"},{"$f":"Time!QDO$23","v":"00:00:00"},{"$f":"Time!QDP$23","v":"00:00:00"},{"$f":"Time!QDQ$23","v":"00:00:00"},{"$f":"Time!QDR$23","v":"00:00:00"},{"$f":"Time!QDS$23","v":"00:00:00"},{"$f":"Time!QDT$23","v":"00:00:00"},{"$f":"Time!QDU$23","v":"00:00:00"},{"$f":"Time!QDV$23","v":"00:00:00"},{"$f":"Time!QDW$23","v":"00:00:00"},{"$f":"Time!QDX$23","v":"00:00:00"},{"$f":"Time!QDY$23","v":"00:00:00"},{"$f":"Time!QDZ$23","v":"00:00:00"},{"$f":"Time!QEA$23","v":"00:00:00"},{"$f":"Time!QEB$23","v":"00:00:00"},{"$f":"Time!QEC$23","v":"00:00:00"},{"$f":"Time!QED$23","v":"00:00:00"},{"$f":"Time!QEE$23","v":"00:00:00"},{"$f":"Time!QEF$23","v":"00:00:00"},{"$f":"Time!QEG$23","v":"00:00:00"},{"$f":"Time!QEH$23","v":"00:00:00"},{"$f":"Time!QEI$23","v":"00:00:00"},{"$f":"Time!QEJ$23","v":"00:00:00"},{"$f":"Time!QEK$23","v":"00:00:00"},{"$f":"Time!QEL$23","v":"00:00:00"},{"$f":"Time!QEM$23","v":"00:00:00"},{"$f":"Time!QEN$23","v":"00:00:00"},{"$f":"Time!QEO$23","v":"00:00:00"},{"$f":"Time!QEP$23","v":"00:00:00"},{"$f":"Time!QEQ$23","v":"00:00:00"},{"$f":"Time!QER$23","v":"00:00:00"},{"$f":"Time!QES$23","v":"00:00:00"},{"$f":"Time!QET$23","v":"00:00:00"},{"$f":"Time!QEU$23","v":"00:00:00"},{"$f":"Time!QEV$23","v":"00:00:00"},{"$f":"Time!QEW$23","v":"00:00:00"},{"$f":"Time!QEX$23","v":"00:00:00"},{"$f":"Time!QEY$23","v":"00:00:00"},{"$f":"Time!QEZ$23","v":"00:00:00"},{"$f":"Time!QFA$23","v":"00:00:00"},{"$f":"Time!QFB$23","v":"00:00:00"},{"$f":"Time!QFC$23","v":"00:00:00"},{"$f":"Time!QFD$23","v":"00:00:00"},{"$f":"Time!QFE$23","v":"00:00:00"},{"$f":"Time!QFF$23","v":"00:00:00"},{"$f":"Time!QFG$23","v":"00:00:00"},{"$f":"Time!QFH$23","v":"00:00:00"},{"$f":"Time!QFI$23","v":"00:00:00"},{"$f":"Time!QFJ$23","v":"00:00:00"},{"$f":"Time!QFK$23","v":"00:00:00"},{"$f":"Time!QFL$23","v":"00:00:00"},{"$f":"Time!QFM$23","v":"00:00:00"},{"$f":"Time!QFN$23","v":"00:00:00"},{"$f":"Time!QFO$23","v":"00:00:00"},{"$f":"Time!QFP$23","v":"00:00:00"},{"$f":"Time!QFQ$23","v":"00:00:00"},{"$f":"Time!QFR$23","v":"00:00:00"},{"$f":"Time!QFS$23","v":"00:00:00"},{"$f":"Time!QFT$23","v":"00:00:00"},{"$f":"Time!QFU$23","v":"00:00:00"},{"$f":"Time!QFV$23","v":"00:00:00"},{"$f":"Time!QFW$23","v":"00:00:00"},{"$f":"Time!QFX$23","v":"00:00:00"},{"$f":"Time!QFY$23","v":"00:00:00"},{"$f":"Time!QFZ$23","v":"00:00:00"},{"$f":"Time!QGA$23","v":"00:00:00"},{"$f":"Time!QGB$23","v":"00:00:00"},{"$f":"Time!QGC$23","v":"00:00:00"},{"$f":"Time!QGD$23","v":"00:00:00"},{"$f":"Time!QGE$23","v":"00:00:00"},{"$f":"Time!QGF$23","v":"00:00:00"},{"$f":"Time!QGG$23","v":"00:00:00"},{"$f":"Time!QGH$23","v":"00:00:00"},{"$f":"Time!QGI$23","v":"00:00:00"},{"$f":"Time!QGJ$23","v":"00:00:00"},{"$f":"Time!QGK$23","v":"00:00:00"},{"$f":"Time!QGL$23","v":"00:00:00"},{"$f":"Time!QGM$23","v":"00:00:00"},{"$f":"Time!QGN$23","v":"00:00:00"},{"$f":"Time!QGO$23","v":"00:00:00"},{"$f":"Time!QGP$23","v":"00:00:00"},{"$f":"Time!QGQ$23","v":"00:00:00"},{"$f":"Time!QGR$23","v":"00:00:00"},{"$f":"Time!QGS$23","v":"00:00:00"},{"$f":"Time!QGT$23","v":"00:00:00"},{"$f":"Time!QGU$23","v":"00:00:00"},{"$f":"Time!QGV$23","v":"00:00:00"},{"$f":"Time!QGW$23","v":"00:00:00"},{"$f":"Time!QGX$23","v":"00:00:00"},{"$f":"Time!QGY$23","v":"00:00:00"},{"$f":"Time!QGZ$23","v":"00:00:00"},{"$f":"Time!QHA$23","v":"00:00:00"},{"$f":"Time!QHB$23","v":"00:00:00"},{"$f":"Time!QHC$23","v":"00:00:00"},{"$f":"Time!QHD$23","v":"00:00:00"},{"$f":"Time!QHE$23","v":"00:00:00"},{"$f":"Time!QHF$23","v":"00:00:00"},{"$f":"Time!QHG$23","v":"00:00:00"},{"$f":"Time!QHH$23","v":"00:00:00"},{"$f":"Time!QHI$23","v":"00:00:00"},{"$f":"Time!QHJ$23","v":"00:00:00"},{"$f":"Time!QHK$23","v":"00:00:00"},{"$f":"Time!QHL$23","v":"00:00:00"},{"$f":"Time!QHM$23","v":"00:00:00"},{"$f":"Time!QHN$23","v":"00:00:00"},{"$f":"Time!QHO$23","v":"00:00:00"},{"$f":"Time!QHP$23","v":"00:00:00"},{"$f":"Time!QHQ$23","v":"00:00:00"},{"$f":"Time!QHR$23","v":"00:00:00"},{"$f":"Time!QHS$23","v":"00:00:00"},{"$f":"Time!QHT$23","v":"00:00:00"},{"$f":"Time!QHU$23","v":"00:00:00"},{"$f":"Time!QHV$23","v":"00:00:00"},{"$f":"Time!QHW$23","v":"00:00:00"},{"$f":"Time!QHX$23","v":"00:00:00"},{"$f":"Time!QHY$23","v":"00:00:00"},{"$f":"Time!QHZ$23","v":"00:00:00"},{"$f":"Time!QIA$23","v":"00:00:00"},{"$f":"Time!QIB$23","v":"00:00:00"},{"$f":"Time!QIC$23","v":"00:00:00"},{"$f":"Time!QID$23","v":"00:00:00"},{"$f":"Time!QIE$23","v":"00:00:00"},{"$f":"Time!QIF$23","v":"00:00:00"},{"$f":"Time!QIG$23","v":"00:00:00"},{"$f":"Time!QIH$23","v":"00:00:00"},{"$f":"Time!QII$23","v":"00:00:00"},{"$f":"Time!QIJ$23","v":"00:00:00"},{"$f":"Time!QIK$23","v":"00:00:00"},{"$f":"Time!QIL$23","v":"00:00:00"},{"$f":"Time!QIM$23","v":"00:00:00"},{"$f":"Time!QIN$23","v":"00:00:00"},{"$f":"Time!QIO$23","v":"00:00:00"},{"$f":"Time!QIP$23","v":"00:00:00"},{"$f":"Time!QIQ$23","v":"00:00:00"},{"$f":"Time!QIR$23","v":"00:00:00"},{"$f":"Time!QIS$23","v":"00:00:00"},{"$f":"Time!QIT$23","v":"00:00:00"},{"$f":"Time!QIU$23","v":"00:00:00"},{"$f":"Time!QIV$23","v":"00:00:00"},{"$f":"Time!QIW$23","v":"00:00:00"},{"$f":"Time!QIX$23","v":"00:00:00"},{"$f":"Time!QIY$23","v":"00:00:00"},{"$f":"Time!QIZ$23","v":"00:00:00"},{"$f":"Time!QJA$23","v":"00:00:00"},{"$f":"Time!QJB$23","v":"00:00:00"},{"$f":"Time!QJC$23","v":"00:00:00"},{"$f":"Time!QJD$23","v":"00:00:00"},{"$f":"Time!QJE$23","v":"00:00:00"},{"$f":"Time!QJF$23","v":"00:00:00"},{"$f":"Time!QJG$23","v":"00:00:00"},{"$f":"Time!QJH$23","v":"00:00:00"},{"$f":"Time!QJI$23","v":"00:00:00"},{"$f":"Time!QJJ$23","v":"00:00:00"},{"$f":"Time!QJK$23","v":"00:00:00"},{"$f":"Time!QJL$23","v":"00:00:00"},{"$f":"Time!QJM$23","v":"00:00:00"},{"$f":"Time!QJN$23","v":"00:00:00"},{"$f":"Time!QJO$23","v":"00:00:00"},{"$f":"Time!QJP$23","v":"00:00:00"},{"$f":"Time!QJQ$23","v":"00:00:00"},{"$f":"Time!QJR$23","v":"00:00:00"},{"$f":"Time!QJS$23","v":"00:00:00"},{"$f":"Time!QJT$23","v":"00:00:00"},{"$f":"Time!QJU$23","v":"00:00:00"},{"$f":"Time!QJV$23","v":"00:00:00"},{"$f":"Time!QJW$23","v":"00:00:00"},{"$f":"Time!QJX$23","v":"00:00:00"},{"$f":"Time!QJY$23","v":"00:00:00"},{"$f":"Time!QJZ$23","v":"00:00:00"},{"$f":"Time!QKA$23","v":"00:00:00"},{"$f":"Time!QKB$23","v":"00:00:00"},{"$f":"Time!QKC$23","v":"00:00:00"},{"$f":"Time!QKD$23","v":"00:00:00"},{"$f":"Time!QKE$23","v":"00:00:00"},{"$f":"Time!QKF$23","v":"00:00:00"},{"$f":"Time!QKG$23","v":"00:00:00"},{"$f":"Time!QKH$23","v":"00:00:00"},{"$f":"Time!QKI$23","v":"00:00:00"},{"$f":"Time!QKJ$23","v":"00:00:00"},{"$f":"Time!QKK$23","v":"00:00:00"},{"$f":"Time!QKL$23","v":"00:00:00"},{"$f":"Time!QKM$23","v":"00:00:00"},{"$f":"Time!QKN$23","v":"00:00:00"},{"$f":"Time!QKO$23","v":"00:00:00"},{"$f":"Time!QKP$23","v":"00:00:00"},{"$f":"Time!QKQ$23","v":"00:00:00"},{"$f":"Time!QKR$23","v":"00:00:00"},{"$f":"Time!QKS$23","v":"00:00:00"},{"$f":"Time!QKT$23","v":"00:00:00"},{"$f":"Time!QKU$23","v":"00:00:00"},{"$f":"Time!QKV$23","v":"00:00:00"},{"$f":"Time!QKW$23","v":"00:00:00"},{"$f":"Time!QKX$23","v":"00:00:00"},{"$f":"Time!QKY$23","v":"00:00:00"},{"$f":"Time!QKZ$23","v":"00:00:00"},{"$f":"Time!QLA$23","v":"00:00:00"},{"$f":"Time!QLB$23","v":"00:00:00"},{"$f":"Time!QLC$23","v":"00:00:00"},{"$f":"Time!QLD$23","v":"00:00:00"},{"$f":"Time!QLE$23","v":"00:00:00"},{"$f":"Time!QLF$23","v":"00:00:00"},{"$f":"Time!QLG$23","v":"00:00:00"},{"$f":"Time!QLH$23","v":"00:00:00"},{"$f":"Time!QLI$23","v":"00:00:00"},{"$f":"Time!QLJ$23","v":"00:00:00"},{"$f":"Time!QLK$23","v":"00:00:00"},{"$f":"Time!QLL$23","v":"00:00:00"},{"$f":"Time!QLM$23","v":"00:00:00"},{"$f":"Time!QLN$23","v":"00:00:00"},{"$f":"Time!QLO$23","v":"00:00:00"},{"$f":"Time!QLP$23","v":"00:00:00"},{"$f":"Time!QLQ$23","v":"00:00:00"},{"$f":"Time!QLR$23","v":"00:00:00"},{"$f":"Time!QLS$23","v":"00:00:00"},{"$f":"Time!QLT$23","v":"00:00:00"},{"$f":"Time!QLU$23","v":"00:00:00"},{"$f":"Time!QLV$23","v":"00:00:00"},{"$f":"Time!QLW$23","v":"00:00:00"},{"$f":"Time!QLX$23","v":"00:00:00"},{"$f":"Time!QLY$23","v":"00:00:00"},{"$f":"Time!QLZ$23","v":"00:00:00"},{"$f":"Time!QMA$23","v":"00:00:00"},{"$f":"Time!QMB$23","v":"00:00:00"},{"$f":"Time!QMC$23","v":"00:00:00"},{"$f":"Time!QMD$23","v":"00:00:00"},{"$f":"Time!QME$23","v":"00:00:00"},{"$f":"Time!QMF$23","v":"00:00:00"},{"$f":"Time!QMG$23","v":"00:00:00"},{"$f":"Time!QMH$23","v":"00:00:00"},{"$f":"Time!QMI$23","v":"00:00:00"},{"$f":"Time!QMJ$23","v":"00:00:00"},{"$f":"Time!QMK$23","v":"00:00:00"},{"$f":"Time!QML$23","v":"00:00:00"},{"$f":"Time!QMM$23","v":"00:00:00"},{"$f":"Time!QMN$23","v":"00:00:00"},{"$f":"Time!QMO$23","v":"00:00:00"},{"$f":"Time!QMP$23","v":"00:00:00"},{"$f":"Time!QMQ$23","v":"00:00:00"},{"$f":"Time!QMR$23","v":"00:00:00"},{"$f":"Time!QMS$23","v":"00:00:00"},{"$f":"Time!QMT$23","v":"00:00:00"},{"$f":"Time!QMU$23","v":"00:00:00"},{"$f":"Time!QMV$23","v":"00:00:00"},{"$f":"Time!QMW$23","v":"00:00:00"},{"$f":"Time!QMX$23","v":"00:00:00"},{"$f":"Time!QMY$23","v":"00:00:00"},{"$f":"Time!QMZ$23","v":"00:00:00"},{"$f":"Time!QNA$23","v":"00:00:00"},{"$f":"Time!QNB$23","v":"00:00:00"},{"$f":"Time!QNC$23","v":"00:00:00"},{"$f":"Time!QND$23","v":"00:00:00"},{"$f":"Time!QNE$23","v":"00:00:00"},{"$f":"Time!QNF$23","v":"00:00:00"},{"$f":"Time!QNG$23","v":"00:00:00"},{"$f":"Time!QNH$23","v":"00:00:00"},{"$f":"Time!QNI$23","v":"00:00:00"},{"$f":"Time!QNJ$23","v":"00:00:00"},{"$f":"Time!QNK$23","v":"00:00:00"},{"$f":"Time!QNL$23","v":"00:00:00"},{"$f":"Time!QNM$23","v":"00:00:00"},{"$f":"Time!QNN$23","v":"00:00:00"},{"$f":"Time!QNO$23","v":"00:00:00"},{"$f":"Time!QNP$23","v":"00:00:00"},{"$f":"Time!QNQ$23","v":"00:00:00"},{"$f":"Time!QNR$23","v":"00:00:00"},{"$f":"Time!QNS$23","v":"00:00:00"},{"$f":"Time!QNT$23","v":"00:00:00"},{"$f":"Time!QNU$23","v":"00:00:00"},{"$f":"Time!QNV$23","v":"00:00:00"},{"$f":"Time!QNW$23","v":"00:00:00"},{"$f":"Time!QNX$23","v":"00:00:00"},{"$f":"Time!QNY$23","v":"00:00:00"},{"$f":"Time!QNZ$23","v":"00:00:00"},{"$f":"Time!QOA$23","v":"00:00:00"},{"$f":"Time!QOB$23","v":"00:00:00"},{"$f":"Time!QOC$23","v":"00:00:00"},{"$f":"Time!QOD$23","v":"00:00:00"},{"$f":"Time!QOE$23","v":"00:00:00"},{"$f":"Time!QOF$23","v":"00:00:00"},{"$f":"Time!QOG$23","v":"00:00:00"},{"$f":"Time!QOH$23","v":"00:00:00"},{"$f":"Time!QOI$23","v":"00:00:00"},{"$f":"Time!QOJ$23","v":"00:00:00"},{"$f":"Time!QOK$23","v":"00:00:00"},{"$f":"Time!QOL$23","v":"00:00:00"},{"$f":"Time!QOM$23","v":"00:00:00"},{"$f":"Time!QON$23","v":"00:00:00"},{"$f":"Time!QOO$23","v":"00:00:00"},{"$f":"Time!QOP$23","v":"00:00:00"},{"$f":"Time!QOQ$23","v":"00:00:00"},{"$f":"Time!QOR$23","v":"00:00:00"},{"$f":"Time!QOS$23","v":"00:00:00"},{"$f":"Time!QOT$23","v":"00:00:00"},{"$f":"Time!QOU$23","v":"00:00:00"},{"$f":"Time!QOV$23","v":"00:00:00"},{"$f":"Time!QOW$23","v":"00:00:00"},{"$f":"Time!QOX$23","v":"00:00:00"},{"$f":"Time!QOY$23","v":"00:00:00"},{"$f":"Time!QOZ$23","v":"00:00:00"},{"$f":"Time!QPA$23","v":"00:00:00"},{"$f":"Time!QPB$23","v":"00:00:00"},{"$f":"Time!QPC$23","v":"00:00:00"},{"$f":"Time!QPD$23","v":"00:00:00"},{"$f":"Time!QPE$23","v":"00:00:00"},{"$f":"Time!QPF$23","v":"00:00:00"},{"$f":"Time!QPG$23","v":"00:00:00"},{"$f":"Time!QPH$23","v":"00:00:00"},{"$f":"Time!QPI$23","v":"00:00:00"},{"$f":"Time!QPJ$23","v":"00:00:00"},{"$f":"Time!QPK$23","v":"00:00:00"},{"$f":"Time!QPL$23","v":"00:00:00"},{"$f":"Time!QPM$23","v":"00:00:00"},{"$f":"Time!QPN$23","v":"00:00:00"},{"$f":"Time!QPO$23","v":"00:00:00"},{"$f":"Time!QPP$23","v":"00:00:00"},{"$f":"Time!QPQ$23","v":"00:00:00"},{"$f":"Time!QPR$23","v":"00:00:00"},{"$f":"Time!QPS$23","v":"00:00:00"},{"$f":"Time!QPT$23","v":"00:00:00"},{"$f":"Time!QPU$23","v":"00:00:00"},{"$f":"Time!QPV$23","v":"00:00:00"},{"$f":"Time!QPW$23","v":"00:00:00"},{"$f":"Time!QPX$23","v":"00:00:00"},{"$f":"Time!QPY$23","v":"00:00:00"},{"$f":"Time!QPZ$23","v":"00:00:00"},{"$f":"Time!QQA$23","v":"00:00:00"},{"$f":"Time!QQB$23","v":"00:00:00"},{"$f":"Time!QQC$23","v":"00:00:00"},{"$f":"Time!QQD$23","v":"00:00:00"},{"$f":"Time!QQE$23","v":"00:00:00"},{"$f":"Time!QQF$23","v":"00:00:00"},{"$f":"Time!QQG$23","v":"00:00:00"},{"$f":"Time!QQH$23","v":"00:00:00"},{"$f":"Time!QQI$23","v":"00:00:00"},{"$f":"Time!QQJ$23","v":"00:00:00"},{"$f":"Time!QQK$23","v":"00:00:00"},{"$f":"Time!QQL$23","v":"00:00:00"},{"$f":"Time!QQM$23","v":"00:00:00"},{"$f":"Time!QQN$23","v":"00:00:00"},{"$f":"Time!QQO$23","v":"00:00:00"},{"$f":"Time!QQP$23","v":"00:00:00"},{"$f":"Time!QQQ$23","v":"00:00:00"},{"$f":"Time!QQR$23","v":"00:00:00"},{"$f":"Time!QQS$23","v":"00:00:00"},{"$f":"Time!QQT$23","v":"00:00:00"},{"$f":"Time!QQU$23","v":"00:00:00"},{"$f":"Time!QQV$23","v":"00:00:00"},{"$f":"Time!QQW$23","v":"00:00:00"},{"$f":"Time!QQX$23","v":"00:00:00"},{"$f":"Time!QQY$23","v":"00:00:00"},{"$f":"Time!QQZ$23","v":"00:00:00"},{"$f":"Time!QRA$23","v":"00:00:00"},{"$f":"Time!QRB$23","v":"00:00:00"},{"$f":"Time!QRC$23","v":"00:00:00"},{"$f":"Time!QRD$23","v":"00:00:00"},{"$f":"Time!QRE$23","v":"00:00:00"},{"$f":"Time!QRF$23","v":"00:00:00"},{"$f":"Time!QRG$23","v":"00:00:00"},{"$f":"Time!QRH$23","v":"00:00:00"},{"$f":"Time!QRI$23","v":"00:00:00"},{"$f":"Time!QRJ$23","v":"00:00:00"},{"$f":"Time!QRK$23","v":"00:00:00"},{"$f":"Time!QRL$23","v":"00:00:00"},{"$f":"Time!QRM$23","v":"00:00:00"},{"$f":"Time!QRN$23","v":"00:00:00"},{"$f":"Time!QRO$23","v":"00:00:00"},{"$f":"Time!QRP$23","v":"00:00:00"},{"$f":"Time!QRQ$23","v":"00:00:00"},{"$f":"Time!QRR$23","v":"00:00:00"},{"$f":"Time!QRS$23","v":"00:00:00"},{"$f":"Time!QRT$23","v":"00:00:00"},{"$f":"Time!QRU$23","v":"00:00:00"},{"$f":"Time!QRV$23","v":"00:00:00"},{"$f":"Time!QRW$23","v":"00:00:00"},{"$f":"Time!QRX$23","v":"00:00:00"},{"$f":"Time!QRY$23","v":"00:00:00"},{"$f":"Time!QRZ$23","v":"00:00:00"},{"$f":"Time!QSA$23","v":"00:00:00"},{"$f":"Time!QSB$23","v":"00:00:00"},{"$f":"Time!QSC$23","v":"00:00:00"},{"$f":"Time!QSD$23","v":"00:00:00"},{"$f":"Time!QSE$23","v":"00:00:00"},{"$f":"Time!QSF$23","v":"00:00:00"},{"$f":"Time!QSG$23","v":"00:00:00"},{"$f":"Time!QSH$23","v":"00:00:00"},{"$f":"Time!QSI$23","v":"00:00:00"},{"$f":"Time!QSJ$23","v":"00:00:00"},{"$f":"Time!QSK$23","v":"00:00:00"},{"$f":"Time!QSL$23","v":"00:00:00"},{"$f":"Time!QSM$23","v":"00:00:00"},{"$f":"Time!QSN$23","v":"00:00:00"},{"$f":"Time!QSO$23","v":"00:00:00"},{"$f":"Time!QSP$23","v":"00:00:00"},{"$f":"Time!QSQ$23","v":"00:00:00"},{"$f":"Time!QSR$23","v":"00:00:00"},{"$f":"Time!QSS$23","v":"00:00:00"},{"$f":"Time!QST$23","v":"00:00:00"},{"$f":"Time!QSU$23","v":"00:00:00"},{"$f":"Time!QSV$23","v":"00:00:00"},{"$f":"Time!QSW$23","v":"00:00:00"},{"$f":"Time!QSX$23","v":"00:00:00"},{"$f":"Time!QSY$23","v":"00:00:00"},{"$f":"Time!QSZ$23","v":"00:00:00"},{"$f":"Time!QTA$23","v":"00:00:00"},{"$f":"Time!QTB$23","v":"00:00:00"},{"$f":"Time!QTC$23","v":"00:00:00"},{"$f":"Time!QTD$23","v":"00:00:00"},{"$f":"Time!QTE$23","v":"00:00:00"},{"$f":"Time!QTF$23","v":"00:00:00"},{"$f":"Time!QTG$23","v":"00:00:00"},{"$f":"Time!QTH$23","v":"00:00:00"},{"$f":"Time!QTI$23","v":"00:00:00"},{"$f":"Time!QTJ$23","v":"00:00:00"},{"$f":"Time!QTK$23","v":"00:00:00"},{"$f":"Time!QTL$23","v":"00:00:00"},{"$f":"Time!QTM$23","v":"00:00:00"},{"$f":"Time!QTN$23","v":"00:00:00"},{"$f":"Time!QTO$23","v":"00:00:00"},{"$f":"Time!QTP$23","v":"00:00:00"},{"$f":"Time!QTQ$23","v":"00:00:00"},{"$f":"Time!QTR$23","v":"00:00:00"},{"$f":"Time!QTS$23","v":"00:00:00"},{"$f":"Time!QTT$23","v":"00:00:00"},{"$f":"Time!QTU$23","v":"00:00:00"},{"$f":"Time!QTV$23","v":"00:00:00"},{"$f":"Time!QTW$23","v":"00:00:00"},{"$f":"Time!QTX$23","v":"00:00:00"},{"$f":"Time!QTY$23","v":"00:00:00"},{"$f":"Time!QTZ$23","v":"00:00:00"},{"$f":"Time!QUA$23","v":"00:00:00"},{"$f":"Time!QUB$23","v":"00:00:00"},{"$f":"Time!QUC$23","v":"00:00:00"},{"$f":"Time!QUD$23","v":"00:00:00"},{"$f":"Time!QUE$23","v":"00:00:00"},{"$f":"Time!QUF$23","v":"00:00:00"},{"$f":"Time!QUG$23","v":"00:00:00"},{"$f":"Time!QUH$23","v":"00:00:00"},{"$f":"Time!QUI$23","v":"00:00:00"},{"$f":"Time!QUJ$23","v":"00:00:00"},{"$f":"Time!QUK$23","v":"00:00:00"},{"$f":"Time!QUL$23","v":"00:00:00"},{"$f":"Time!QUM$23","v":"00:00:00"},{"$f":"Time!QUN$23","v":"00:00:00"},{"$f":"Time!QUO$23","v":"00:00:00"},{"$f":"Time!QUP$23","v":"00:00:00"},{"$f":"Time!QUQ$23","v":"00:00:00"},{"$f":"Time!QUR$23","v":"00:00:00"},{"$f":"Time!QUS$23","v":"00:00:00"},{"$f":"Time!QUT$23","v":"00:00:00"},{"$f":"Time!QUU$23","v":"00:00:00"},{"$f":"Time!QUV$23","v":"00:00:00"},{"$f":"Time!QUW$23","v":"00:00:00"},{"$f":"Time!QUX$23","v":"00:00:00"},{"$f":"Time!QUY$23","v":"00:00:00"},{"$f":"Time!QUZ$23","v":"00:00:00"},{"$f":"Time!QVA$23","v":"00:00:00"},{"$f":"Time!QVB$23","v":"00:00:00"},{"$f":"Time!QVC$23","v":"00:00:00"},{"$f":"Time!QVD$23","v":"00:00:00"},{"$f":"Time!QVE$23","v":"00:00:00"},{"$f":"Time!QVF$23","v":"00:00:00"},{"$f":"Time!QVG$23","v":"00:00:00"},{"$f":"Time!QVH$23","v":"00:00:00"},{"$f":"Time!QVI$23","v":"00:00:00"},{"$f":"Time!QVJ$23","v":"00:00:00"},{"$f":"Time!QVK$23","v":"00:00:00"},{"$f":"Time!QVL$23","v":"00:00:00"},{"$f":"Time!QVM$23","v":"00:00:00"},{"$f":"Time!QVN$23","v":"00:00:00"},{"$f":"Time!QVO$23","v":"00:00:00"},{"$f":"Time!QVP$23","v":"00:00:00"},{"$f":"Time!QVQ$23","v":"00:00:00"},{"$f":"Time!QVR$23","v":"00:00:00"},{"$f":"Time!QVS$23","v":"00:00:00"},{"$f":"Time!QVT$23","v":"00:00:00"},{"$f":"Time!QVU$23","v":"00:00:00"},{"$f":"Time!QVV$23","v":"00:00:00"},{"$f":"Time!QVW$23","v":"00:00:00"},{"$f":"Time!QVX$23","v":"00:00:00"},{"$f":"Time!QVY$23","v":"00:00:00"},{"$f":"Time!QVZ$23","v":"00:00:00"},{"$f":"Time!QWA$23","v":"00:00:00"},{"$f":"Time!QWB$23","v":"00:00:00"},{"$f":"Time!QWC$23","v":"00:00:00"},{"$f":"Time!QWD$23","v":"00:00:00"},{"$f":"Time!QWE$23","v":"00:00:00"},{"$f":"Time!QWF$23","v":"00:00:00"},{"$f":"Time!QWG$23","v":"00:00:00"},{"$f":"Time!QWH$23","v":"00:00:00"},{"$f":"Time!QWI$23","v":"00:00:00"},{"$f":"Time!QWJ$23","v":"00:00:00"},{"$f":"Time!QWK$23","v":"00:00:00"},{"$f":"Time!QWL$23","v":"00:00:00"},{"$f":"Time!QWM$23","v":"00:00:00"},{"$f":"Time!QWN$23","v":"00:00:00"},{"$f":"Time!QWO$23","v":"00:00:00"},{"$f":"Time!QWP$23","v":"00:00:00"},{"$f":"Time!QWQ$23","v":"00:00:00"},{"$f":"Time!QWR$23","v":"00:00:00"},{"$f":"Time!QWS$23","v":"00:00:00"},{"$f":"Time!QWT$23","v":"00:00:00"},{"$f":"Time!QWU$23","v":"00:00:00"},{"$f":"Time!QWV$23","v":"00:00:00"},{"$f":"Time!QWW$23","v":"00:00:00"},{"$f":"Time!QWX$23","v":"00:00:00"},{"$f":"Time!QWY$23","v":"00:00:00"},{"$f":"Time!QWZ$23","v":"00:00:00"},{"$f":"Time!QXA$23","v":"00:00:00"},{"$f":"Time!QXB$23","v":"00:00:00"},{"$f":"Time!QXC$23","v":"00:00:00"},{"$f":"Time!QXD$23","v":"00:00:00"},{"$f":"Time!QXE$23","v":"00:00:00"},{"$f":"Time!QXF$23","v":"00:00:00"},{"$f":"Time!QXG$23","v":"00:00:00"},{"$f":"Time!QXH$23","v":"00:00:00"},{"$f":"Time!QXI$23","v":"00:00:00"},{"$f":"Time!QXJ$23","v":"00:00:00"},{"$f":"Time!QXK$23","v":"00:00:00"},{"$f":"Time!QXL$23","v":"00:00:00"},{"$f":"Time!QXM$23","v":"00:00:00"},{"$f":"Time!QXN$23","v":"00:00:00"},{"$f":"Time!QXO$23","v":"00:00:00"},{"$f":"Time!QXP$23","v":"00:00:00"},{"$f":"Time!QXQ$23","v":"00:00:00"},{"$f":"Time!QXR$23","v":"00:00:00"},{"$f":"Time!QXS$23","v":"00:00:00"},{"$f":"Time!QXT$23","v":"00:00:00"},{"$f":"Time!QXU$23","v":"00:00:00"},{"$f":"Time!QXV$23","v":"00:00:00"},{"$f":"Time!QXW$23","v":"00:00:00"},{"$f":"Time!QXX$23","v":"00:00:00"},{"$f":"Time!QXY$23","v":"00:00:00"},{"$f":"Time!QXZ$23","v":"00:00:00"},{"$f":"Time!QYA$23","v":"00:00:00"},{"$f":"Time!QYB$23","v":"00:00:00"},{"$f":"Time!QYC$23","v":"00:00:00"},{"$f":"Time!QYD$23","v":"00:00:00"},{"$f":"Time!QYE$23","v":"00:00:00"},{"$f":"Time!QYF$23","v":"00:00:00"},{"$f":"Time!QYG$23","v":"00:00:00"},{"$f":"Time!QYH$23","v":"00:00:00"},{"$f":"Time!QYI$23","v":"00:00:00"},{"$f":"Time!QYJ$23","v":"00:00:00"},{"$f":"Time!QYK$23","v":"00:00:00"},{"$f":"Time!QYL$23","v":"00:00:00"},{"$f":"Time!QYM$23","v":"00:00:00"},{"$f":"Time!QYN$23","v":"00:00:00"},{"$f":"Time!QYO$23","v":"00:00:00"},{"$f":"Time!QYP$23","v":"00:00:00"},{"$f":"Time!QYQ$23","v":"00:00:00"},{"$f":"Time!QYR$23","v":"00:00:00"},{"$f":"Time!QYS$23","v":"00:00:00"},{"$f":"Time!QYT$23","v":"00:00:00"},{"$f":"Time!QYU$23","v":"00:00:00"},{"$f":"Time!QYV$23","v":"00:00:00"},{"$f":"Time!QYW$23","v":"00:00:00"},{"$f":"Time!QYX$23","v":"00:00:00"},{"$f":"Time!QYY$23","v":"00:00:00"},{"$f":"Time!QYZ$23","v":"00:00:00"},{"$f":"Time!QZA$23","v":"00:00:00"},{"$f":"Time!QZB$23","v":"00:00:00"},{"$f":"Time!QZC$23","v":"00:00:00"},{"$f":"Time!QZD$23","v":"00:00:00"},{"$f":"Time!QZE$23","v":"00:00:00"},{"$f":"Time!QZF$23","v":"00:00:00"},{"$f":"Time!QZG$23","v":"00:00:00"},{"$f":"Time!QZH$23","v":"00:00:00"},{"$f":"Time!QZI$23","v":"00:00:00"},{"$f":"Time!QZJ$23","v":"00:00:00"},{"$f":"Time!QZK$23","v":"00:00:00"},{"$f":"Time!QZL$23","v":"00:00:00"},{"$f":"Time!QZM$23","v":"00:00:00"},{"$f":"Time!QZN$23","v":"00:00:00"},{"$f":"Time!QZO$23","v":"00:00:00"},{"$f":"Time!QZP$23","v":"00:00:00"},{"$f":"Time!QZQ$23","v":"00:00:00"},{"$f":"Time!QZR$23","v":"00:00:00"},{"$f":"Time!QZS$23","v":"00:00:00"},{"$f":"Time!QZT$23","v":"00:00:00"},{"$f":"Time!QZU$23","v":"00:00:00"},{"$f":"Time!QZV$23","v":"00:00:00"},{"$f":"Time!QZW$23","v":"00:00:00"},{"$f":"Time!QZX$23","v":"00:00:00"},{"$f":"Time!QZY$23","v":"00:00:00"},{"$f":"Time!QZZ$23","v":"00:00:00"},{"$f":"Time!RAA$23","v":"00:00:00"},{"$f":"Time!RAB$23","v":"00:00:00"},{"$f":"Time!RAC$23","v":"00:00:00"},{"$f":"Time!RAD$23","v":"00:00:00"},{"$f":"Time!RAE$23","v":"00:00:00"},{"$f":"Time!RAF$23","v":"00:00:00"},{"$f":"Time!RAG$23","v":"00:00:00"},{"$f":"Time!RAH$23","v":"00:00:00"},{"$f":"Time!RAI$23","v":"00:00:00"},{"$f":"Time!RAJ$23","v":"00:00:00"},{"$f":"Time!RAK$23","v":"00:00:00"},{"$f":"Time!RAL$23","v":"00:00:00"},{"$f":"Time!RAM$23","v":"00:00:00"},{"$f":"Time!RAN$23","v":"00:00:00"},{"$f":"Time!RAO$23","v":"00:00:00"},{"$f":"Time!RAP$23","v":"00:00:00"},{"$f":"Time!RAQ$23","v":"00:00:00"},{"$f":"Time!RAR$23","v":"00:00:00"},{"$f":"Time!RAS$23","v":"00:00:00"},{"$f":"Time!RAT$23","v":"00:00:00"},{"$f":"Time!RAU$23","v":"00:00:00"},{"$f":"Time!RAV$23","v":"00:00:00"},{"$f":"Time!RAW$23","v":"00:00:00"},{"$f":"Time!RAX$23","v":"00:00:00"},{"$f":"Time!RAY$23","v":"00:00:00"},{"$f":"Time!RAZ$23","v":"00:00:00"},{"$f":"Time!RBA$23","v":"00:00:00"},{"$f":"Time!RBB$23","v":"00:00:00"},{"$f":"Time!RBC$23","v":"00:00:00"},{"$f":"Time!RBD$23","v":"00:00:00"},{"$f":"Time!RBE$23","v":"00:00:00"},{"$f":"Time!RBF$23","v":"00:00:00"},{"$f":"Time!RBG$23","v":"00:00:00"},{"$f":"Time!RBH$23","v":"00:00:00"},{"$f":"Time!RBI$23","v":"00:00:00"},{"$f":"Time!RBJ$23","v":"00:00:00"},{"$f":"Time!RBK$23","v":"00:00:00"},{"$f":"Time!RBL$23","v":"00:00:00"},{"$f":"Time!RBM$23","v":"00:00:00"},{"$f":"Time!RBN$23","v":"00:00:00"},{"$f":"Time!RBO$23","v":"00:00:00"},{"$f":"Time!RBP$23","v":"00:00:00"},{"$f":"Time!RBQ$23","v":"00:00:00"},{"$f":"Time!RBR$23","v":"00:00:00"},{"$f":"Time!RBS$23","v":"00:00:00"},{"$f":"Time!RBT$23","v":"00:00:00"},{"$f":"Time!RBU$23","v":"00:00:00"},{"$f":"Time!RBV$23","v":"00:00:00"},{"$f":"Time!RBW$23","v":"00:00:00"},{"$f":"Time!RBX$23","v":"00:00:00"},{"$f":"Time!RBY$23","v":"00:00:00"},{"$f":"Time!RBZ$23","v":"00:00:00"},{"$f":"Time!RCA$23","v":"00:00:00"},{"$f":"Time!RCB$23","v":"00:00:00"},{"$f":"Time!RCC$23","v":"00:00:00"},{"$f":"Time!RCD$23","v":"00:00:00"},{"$f":"Time!RCE$23","v":"00:00:00"},{"$f":"Time!RCF$23","v":"00:00:00"},{"$f":"Time!RCG$23","v":"00:00:00"},{"$f":"Time!RCH$23","v":"00:00:00"},{"$f":"Time!RCI$23","v":"00:00:00"},{"$f":"Time!RCJ$23","v":"00:00:00"},{"$f":"Time!RCK$23","v":"00:00:00"},{"$f":"Time!RCL$23","v":"00:00:00"},{"$f":"Time!RCM$23","v":"00:00:00"},{"$f":"Time!RCN$23","v":"00:00:00"},{"$f":"Time!RCO$23","v":"00:00:00"},{"$f":"Time!RCP$23","v":"00:00:00"},{"$f":"Time!RCQ$23","v":"00:00:00"},{"$f":"Time!RCR$23","v":"00:00:00"},{"$f":"Time!RCS$23","v":"00:00:00"},{"$f":"Time!RCT$23","v":"00:00:00"},{"$f":"Time!RCU$23","v":"00:00:00"},{"$f":"Time!RCV$23","v":"00:00:00"},{"$f":"Time!RCW$23","v":"00:00:00"},{"$f":"Time!RCX$23","v":"00:00:00"},{"$f":"Time!RCY$23","v":"00:00:00"},{"$f":"Time!RCZ$23","v":"00:00:00"},{"$f":"Time!RDA$23","v":"00:00:00"},{"$f":"Time!RDB$23","v":"00:00:00"},{"$f":"Time!RDC$23","v":"00:00:00"},{"$f":"Time!RDD$23","v":"00:00:00"},{"$f":"Time!RDE$23","v":"00:00:00"},{"$f":"Time!RDF$23","v":"00:00:00"},{"$f":"Time!RDG$23","v":"00:00:00"},{"$f":"Time!RDH$23","v":"00:00:00"},{"$f":"Time!RDI$23","v":"00:00:00"},{"$f":"Time!RDJ$23","v":"00:00:00"},{"$f":"Time!RDK$23","v":"00:00:00"},{"$f":"Time!RDL$23","v":"00:00:00"},{"$f":"Time!RDM$23","v":"00:00:00"},{"$f":"Time!RDN$23","v":"00:00:00"},{"$f":"Time!RDO$23","v":"00:00:00"},{"$f":"Time!RDP$23","v":"00:00:00"},{"$f":"Time!RDQ$23","v":"00:00:00"},{"$f":"Time!RDR$23","v":"00:00:00"},{"$f":"Time!RDS$23","v":"00:00:00"},{"$f":"Time!RDT$23","v":"00:00:00"},{"$f":"Time!RDU$23","v":"00:00:00"},{"$f":"Time!RDV$23","v":"00:00:00"},{"$f":"Time!RDW$23","v":"00:00:00"},{"$f":"Time!RDX$23","v":"00:00:00"},{"$f":"Time!RDY$23","v":"00:00:00"},{"$f":"Time!RDZ$23","v":"00:00:00"},{"$f":"Time!REA$23","v":"00:00:00"},{"$f":"Time!REB$23","v":"00:00:00"},{"$f":"Time!REC$23","v":"00:00:00"},{"$f":"Time!RED$23","v":"00:00:00"},{"$f":"Time!REE$23","v":"00:00:00"},{"$f":"Time!REF$23","v":"00:00:00"},{"$f":"Time!REG$23","v":"00:00:00"},{"$f":"Time!REH$23","v":"00:00:00"},{"$f":"Time!REI$23","v":"00:00:00"},{"$f":"Time!REJ$23","v":"00:00:00"},{"$f":"Time!REK$23","v":"00:00:00"},{"$f":"Time!REL$23","v":"00:00:00"},{"$f":"Time!REM$23","v":"00:00:00"},{"$f":"Time!REN$23","v":"00:00:00"},{"$f":"Time!REO$23","v":"00:00:00"},{"$f":"Time!REP$23","v":"00:00:00"},{"$f":"Time!REQ$23","v":"00:00:00"},{"$f":"Time!RER$23","v":"00:00:00"},{"$f":"Time!RES$23","v":"00:00:00"},{"$f":"Time!RET$23","v":"00:00:00"},{"$f":"Time!REU$23","v":"00:00:00"},{"$f":"Time!REV$23","v":"00:00:00"},{"$f":"Time!REW$23","v":"00:00:00"},{"$f":"Time!REX$23","v":"00:00:00"},{"$f":"Time!REY$23","v":"00:00:00"},{"$f":"Time!REZ$23","v":"00:00:00"},{"$f":"Time!RFA$23","v":"00:00:00"},{"$f":"Time!RFB$23","v":"00:00:00"},{"$f":"Time!RFC$23","v":"00:00:00"},{"$f":"Time!RFD$23","v":"00:00:00"},{"$f":"Time!RFE$23","v":"00:00:00"},{"$f":"Time!RFF$23","v":"00:00:00"},{"$f":"Time!RFG$23","v":"00:00:00"},{"$f":"Time!RFH$23","v":"00:00:00"},{"$f":"Time!RFI$23","v":"00:00:00"},{"$f":"Time!RFJ$23","v":"00:00:00"},{"$f":"Time!RFK$23","v":"00:00:00"},{"$f":"Time!RFL$23","v":"00:00:00"},{"$f":"Time!RFM$23","v":"00:00:00"},{"$f":"Time!RFN$23","v":"00:00:00"},{"$f":"Time!RFO$23","v":"00:00:00"},{"$f":"Time!RFP$23","v":"00:00:00"},{"$f":"Time!RFQ$23","v":"00:00:00"},{"$f":"Time!RFR$23","v":"00:00:00"},{"$f":"Time!RFS$23","v":"00:00:00"},{"$f":"Time!RFT$23","v":"00:00:00"},{"$f":"Time!RFU$23","v":"00:00:00"},{"$f":"Time!RFV$23","v":"00:00:00"},{"$f":"Time!RFW$23","v":"00:00:00"},{"$f":"Time!RFX$23","v":"00:00:00"},{"$f":"Time!RFY$23","v":"00:00:00"},{"$f":"Time!RFZ$23","v":"00:00:00"},{"$f":"Time!RGA$23","v":"00:00:00"},{"$f":"Time!RGB$23","v":"00:00:00"},{"$f":"Time!RGC$23","v":"00:00:00"},{"$f":"Time!RGD$23","v":"00:00:00"},{"$f":"Time!RGE$23","v":"00:00:00"},{"$f":"Time!RGF$23","v":"00:00:00"},{"$f":"Time!RGG$23","v":"00:00:00"},{"$f":"Time!RGH$23","v":"00:00:00"},{"$f":"Time!RGI$23","v":"00:00:00"},{"$f":"Time!RGJ$23","v":"00:00:00"},{"$f":"Time!RGK$23","v":"00:00:00"},{"$f":"Time!RGL$23","v":"00:00:00"},{"$f":"Time!RGM$23","v":"00:00:00"},{"$f":"Time!RGN$23","v":"00:00:00"},{"$f":"Time!RGO$23","v":"00:00:00"},{"$f":"Time!RGP$23","v":"00:00:00"},{"$f":"Time!RGQ$23","v":"00:00:00"},{"$f":"Time!RGR$23","v":"00:00:00"},{"$f":"Time!RGS$23","v":"00:00:00"},{"$f":"Time!RGT$23","v":"00:00:00"},{"$f":"Time!RGU$23","v":"00:00:00"},{"$f":"Time!RGV$23","v":"00:00:00"},{"$f":"Time!RGW$23","v":"00:00:00"},{"$f":"Time!RGX$23","v":"00:00:00"},{"$f":"Time!RGY$23","v":"00:00:00"},{"$f":"Time!RGZ$23","v":"00:00:00"},{"$f":"Time!RHA$23","v":"00:00:00"},{"$f":"Time!RHB$23","v":"00:00:00"},{"$f":"Time!RHC$23","v":"00:00:00"},{"$f":"Time!RHD$23","v":"00:00:00"},{"$f":"Time!RHE$23","v":"00:00:00"},{"$f":"Time!RHF$23","v":"00:00:00"},{"$f":"Time!RHG$23","v":"00:00:00"},{"$f":"Time!RHH$23","v":"00:00:00"},{"$f":"Time!RHI$23","v":"00:00:00"},{"$f":"Time!RHJ$23","v":"00:00:00"},{"$f":"Time!RHK$23","v":"00:00:00"},{"$f":"Time!RHL$23","v":"00:00:00"},{"$f":"Time!RHM$23","v":"00:00:00"},{"$f":"Time!RHN$23","v":"00:00:00"},{"$f":"Time!RHO$23","v":"00:00:00"},{"$f":"Time!RHP$23","v":"00:00:00"},{"$f":"Time!RHQ$23","v":"00:00:00"},{"$f":"Time!RHR$23","v":"00:00:00"},{"$f":"Time!RHS$23","v":"00:00:00"},{"$f":"Time!RHT$23","v":"00:00:00"},{"$f":"Time!RHU$23","v":"00:00:00"},{"$f":"Time!RHV$23","v":"00:00:00"},{"$f":"Time!RHW$23","v":"00:00:00"},{"$f":"Time!RHX$23","v":"00:00:00"},{"$f":"Time!RHY$23","v":"00:00:00"},{"$f":"Time!RHZ$23","v":"00:00:00"},{"$f":"Time!RIA$23","v":"00:00:00"},{"$f":"Time!RIB$23","v":"00:00:00"},{"$f":"Time!RIC$23","v":"00:00:00"},{"$f":"Time!RID$23","v":"00:00:00"},{"$f":"Time!RIE$23","v":"00:00:00"},{"$f":"Time!RIF$23","v":"00:00:00"},{"$f":"Time!RIG$23","v":"00:00:00"},{"$f":"Time!RIH$23","v":"00:00:00"},{"$f":"Time!RII$23","v":"00:00:00"},{"$f":"Time!RIJ$23","v":"00:00:00"},{"$f":"Time!RIK$23","v":"00:00:00"},{"$f":"Time!RIL$23","v":"00:00:00"},{"$f":"Time!RIM$23","v":"00:00:00"},{"$f":"Time!RIN$23","v":"00:00:00"},{"$f":"Time!RIO$23","v":"00:00:00"},{"$f":"Time!RIP$23","v":"00:00:00"},{"$f":"Time!RIQ$23","v":"00:00:00"},{"$f":"Time!RIR$23","v":"00:00:00"},{"$f":"Time!RIS$23","v":"00:00:00"},{"$f":"Time!RIT$23","v":"00:00:00"},{"$f":"Time!RIU$23","v":"00:00:00"},{"$f":"Time!RIV$23","v":"00:00:00"},{"$f":"Time!RIW$23","v":"00:00:00"},{"$f":"Time!RIX$23","v":"00:00:00"},{"$f":"Time!RIY$23","v":"00:00:00"},{"$f":"Time!RIZ$23","v":"00:00:00"},{"$f":"Time!RJA$23","v":"00:00:00"},{"$f":"Time!RJB$23","v":"00:00:00"},{"$f":"Time!RJC$23","v":"00:00:00"},{"$f":"Time!RJD$23","v":"00:00:00"},{"$f":"Time!RJE$23","v":"00:00:00"},{"$f":"Time!RJF$23","v":"00:00:00"},{"$f":"Time!RJG$23","v":"00:00:00"},{"$f":"Time!RJH$23","v":"00:00:00"},{"$f":"Time!RJI$23","v":"00:00:00"},{"$f":"Time!RJJ$23","v":"00:00:00"},{"$f":"Time!RJK$23","v":"00:00:00"},{"$f":"Time!RJL$23","v":"00:00:00"},{"$f":"Time!RJM$23","v":"00:00:00"},{"$f":"Time!RJN$23","v":"00:00:00"},{"$f":"Time!RJO$23","v":"00:00:00"},{"$f":"Time!RJP$23","v":"00:00:00"},{"$f":"Time!RJQ$23","v":"00:00:00"},{"$f":"Time!RJR$23","v":"00:00:00"},{"$f":"Time!RJS$23","v":"00:00:00"},{"$f":"Time!RJT$23","v":"00:00:00"},{"$f":"Time!RJU$23","v":"00:00:00"},{"$f":"Time!RJV$23","v":"00:00:00"},{"$f":"Time!RJW$23","v":"00:00:00"},{"$f":"Time!RJX$23","v":"00:00:00"},{"$f":"Time!RJY$23","v":"00:00:00"},{"$f":"Time!RJZ$23","v":"00:00:00"},{"$f":"Time!RKA$23","v":"00:00:00"},{"$f":"Time!RKB$23","v":"00:00:00"},{"$f":"Time!RKC$23","v":"00:00:00"},{"$f":"Time!RKD$23","v":"00:00:00"},{"$f":"Time!RKE$23","v":"00:00:00"},{"$f":"Time!RKF$23","v":"00:00:00"},{"$f":"Time!RKG$23","v":"00:00:00"},{"$f":"Time!RKH$23","v":"00:00:00"},{"$f":"Time!RKI$23","v":"00:00:00"},{"$f":"Time!RKJ$23","v":"00:00:00"},{"$f":"Time!RKK$23","v":"00:00:00"},{"$f":"Time!RKL$23","v":"00:00:00"},{"$f":"Time!RKM$23","v":"00:00:00"},{"$f":"Time!RKN$23","v":"00:00:00"},{"$f":"Time!RKO$23","v":"00:00:00"},{"$f":"Time!RKP$23","v":"00:00:00"},{"$f":"Time!RKQ$23","v":"00:00:00"},{"$f":"Time!RKR$23","v":"00:00:00"},{"$f":"Time!RKS$23","v":"00:00:00"},{"$f":"Time!RKT$23","v":"00:00:00"},{"$f":"Time!RKU$23","v":"00:00:00"},{"$f":"Time!RKV$23","v":"00:00:00"},{"$f":"Time!RKW$23","v":"00:00:00"},{"$f":"Time!RKX$23","v":"00:00:00"},{"$f":"Time!RKY$23","v":"00:00:00"},{"$f":"Time!RKZ$23","v":"00:00:00"},{"$f":"Time!RLA$23","v":"00:00:00"},{"$f":"Time!RLB$23","v":"00:00:00"},{"$f":"Time!RLC$23","v":"00:00:00"},{"$f":"Time!RLD$23","v":"00:00:00"},{"$f":"Time!RLE$23","v":"00:00:00"},{"$f":"Time!RLF$23","v":"00:00:00"},{"$f":"Time!RLG$23","v":"00:00:00"},{"$f":"Time!RLH$23","v":"00:00:00"},{"$f":"Time!RLI$23","v":"00:00:00"},{"$f":"Time!RLJ$23","v":"00:00:00"},{"$f":"Time!RLK$23","v":"00:00:00"},{"$f":"Time!RLL$23","v":"00:00:00"},{"$f":"Time!RLM$23","v":"00:00:00"},{"$f":"Time!RLN$23","v":"00:00:00"},{"$f":"Time!RLO$23","v":"00:00:00"},{"$f":"Time!RLP$23","v":"00:00:00"},{"$f":"Time!RLQ$23","v":"00:00:00"},{"$f":"Time!RLR$23","v":"00:00:00"},{"$f":"Time!RLS$23","v":"00:00:00"},{"$f":"Time!RLT$23","v":"00:00:00"},{"$f":"Time!RLU$23","v":"00:00:00"},{"$f":"Time!RLV$23","v":"00:00:00"},{"$f":"Time!RLW$23","v":"00:00:00"},{"$f":"Time!RLX$23","v":"00:00:00"},{"$f":"Time!RLY$23","v":"00:00:00"},{"$f":"Time!RLZ$23","v":"00:00:00"},{"$f":"Time!RMA$23","v":"00:00:00"},{"$f":"Time!RMB$23","v":"00:00:00"},{"$f":"Time!RMC$23","v":"00:00:00"},{"$f":"Time!RMD$23","v":"00:00:00"},{"$f":"Time!RME$23","v":"00:00:00"},{"$f":"Time!RMF$23","v":"00:00:00"},{"$f":"Time!RMG$23","v":"00:00:00"},{"$f":"Time!RMH$23","v":"00:00:00"},{"$f":"Time!RMI$23","v":"00:00:00"},{"$f":"Time!RMJ$23","v":"00:00:00"},{"$f":"Time!RMK$23","v":"00:00:00"},{"$f":"Time!RML$23","v":"00:00:00"},{"$f":"Time!RMM$23","v":"00:00:00"},{"$f":"Time!RMN$23","v":"00:00:00"},{"$f":"Time!RMO$23","v":"00:00:00"},{"$f":"Time!RMP$23","v":"00:00:00"},{"$f":"Time!RMQ$23","v":"00:00:00"},{"$f":"Time!RMR$23","v":"00:00:00"},{"$f":"Time!RMS$23","v":"00:00:00"},{"$f":"Time!RMT$23","v":"00:00:00"},{"$f":"Time!RMU$23","v":"00:00:00"},{"$f":"Time!RMV$23","v":"00:00:00"},{"$f":"Time!RMW$23","v":"00:00:00"},{"$f":"Time!RMX$23","v":"00:00:00"},{"$f":"Time!RMY$23","v":"00:00:00"},{"$f":"Time!RMZ$23","v":"00:00:00"},{"$f":"Time!RNA$23","v":"00:00:00"},{"$f":"Time!RNB$23","v":"00:00:00"},{"$f":"Time!RNC$23","v":"00:00:00"},{"$f":"Time!RND$23","v":"00:00:00"},{"$f":"Time!RNE$23","v":"00:00:00"},{"$f":"Time!RNF$23","v":"00:00:00"},{"$f":"Time!RNG$23","v":"00:00:00"},{"$f":"Time!RNH$23","v":"00:00:00"},{"$f":"Time!RNI$23","v":"00:00:00"},{"$f":"Time!RNJ$23","v":"00:00:00"},{"$f":"Time!RNK$23","v":"00:00:00"},{"$f":"Time!RNL$23","v":"00:00:00"},{"$f":"Time!RNM$23","v":"00:00:00"},{"$f":"Time!RNN$23","v":"00:00:00"},{"$f":"Time!RNO$23","v":"00:00:00"},{"$f":"Time!RNP$23","v":"00:00:00"},{"$f":"Time!RNQ$23","v":"00:00:00"},{"$f":"Time!RNR$23","v":"00:00:00"},{"$f":"Time!RNS$23","v":"00:00:00"},{"$f":"Time!RNT$23","v":"00:00:00"},{"$f":"Time!RNU$23","v":"00:00:00"},{"$f":"Time!RNV$23","v":"00:00:00"},{"$f":"Time!RNW$23","v":"00:00:00"},{"$f":"Time!RNX$23","v":"00:00:00"},{"$f":"Time!RNY$23","v":"00:00:00"},{"$f":"Time!RNZ$23","v":"00:00:00"},{"$f":"Time!ROA$23","v":"00:00:00"},{"$f":"Time!ROB$23","v":"00:00:00"},{"$f":"Time!ROC$23","v":"00:00:00"},{"$f":"Time!ROD$23","v":"00:00:00"},{"$f":"Time!ROE$23","v":"00:00:00"},{"$f":"Time!ROF$23","v":"00:00:00"},{"$f":"Time!ROG$23","v":"00:00:00"},{"$f":"Time!ROH$23","v":"00:00:00"},{"$f":"Time!ROI$23","v":"00:00:00"},{"$f":"Time!ROJ$23","v":"00:00:00"},{"$f":"Time!ROK$23","v":"00:00:00"},{"$f":"Time!ROL$23","v":"00:00:00"},{"$f":"Time!ROM$23","v":"00:00:00"},{"$f":"Time!RON$23","v":"00:00:00"},{"$f":"Time!ROO$23","v":"00:00:00"},{"$f":"Time!ROP$23","v":"00:00:00"},{"$f":"Time!ROQ$23","v":"00:00:00"},{"$f":"Time!ROR$23","v":"00:00:00"},{"$f":"Time!ROS$23","v":"00:00:00"},{"$f":"Time!ROT$23","v":"00:00:00"},{"$f":"Time!ROU$23","v":"00:00:00"},{"$f":"Time!ROV$23","v":"00:00:00"},{"$f":"Time!ROW$23","v":"00:00:00"},{"$f":"Time!ROX$23","v":"00:00:00"},{"$f":"Time!ROY$23","v":"00:00:00"},{"$f":"Time!ROZ$23","v":"00:00:00"},{"$f":"Time!RPA$23","v":"00:00:00"},{"$f":"Time!RPB$23","v":"00:00:00"},{"$f":"Time!RPC$23","v":"00:00:00"},{"$f":"Time!RPD$23","v":"00:00:00"},{"$f":"Time!RPE$23","v":"00:00:00"},{"$f":"Time!RPF$23","v":"00:00:00"},{"$f":"Time!RPG$23","v":"00:00:00"},{"$f":"Time!RPH$23","v":"00:00:00"},{"$f":"Time!RPI$23","v":"00:00:00"},{"$f":"Time!RPJ$23","v":"00:00:00"},{"$f":"Time!RPK$23","v":"00:00:00"},{"$f":"Time!RPL$23","v":"00:00:00"},{"$f":"Time!RPM$23","v":"00:00:00"},{"$f":"Time!RPN$23","v":"00:00:00"},{"$f":"Time!RPO$23","v":"00:00:00"},{"$f":"Time!RPP$23","v":"00:00:00"},{"$f":"Time!RPQ$23","v":"00:00:00"},{"$f":"Time!RPR$23","v":"00:00:00"},{"$f":"Time!RPS$23","v":"00:00:00"},{"$f":"Time!RPT$23","v":"00:00:00"},{"$f":"Time!RPU$23","v":"00:00:00"},{"$f":"Time!RPV$23","v":"00:00:00"},{"$f":"Time!RPW$23","v":"00:00:00"},{"$f":"Time!RPX$23","v":"00:00:00"},{"$f":"Time!RPY$23","v":"00:00:00"},{"$f":"Time!RPZ$23","v":"00:00:00"},{"$f":"Time!RQA$23","v":"00:00:00"},{"$f":"Time!RQB$23","v":"00:00:00"},{"$f":"Time!RQC$23","v":"00:00:00"},{"$f":"Time!RQD$23","v":"00:00:00"},{"$f":"Time!RQE$23","v":"00:00:00"},{"$f":"Time!RQF$23","v":"00:00:00"},{"$f":"Time!RQG$23","v":"00:00:00"},{"$f":"Time!RQH$23","v":"00:00:00"},{"$f":"Time!RQI$23","v":"00:00:00"},{"$f":"Time!RQJ$23","v":"00:00:00"},{"$f":"Time!RQK$23","v":"00:00:00"},{"$f":"Time!RQL$23","v":"00:00:00"},{"$f":"Time!RQM$23","v":"00:00:00"},{"$f":"Time!RQN$23","v":"00:00:00"},{"$f":"Time!RQO$23","v":"00:00:00"},{"$f":"Time!RQP$23","v":"00:00:00"},{"$f":"Time!RQQ$23","v":"00:00:00"},{"$f":"Time!RQR$23","v":"00:00:00"},{"$f":"Time!RQS$23","v":"00:00:00"},{"$f":"Time!RQT$23","v":"00:00:00"},{"$f":"Time!RQU$23","v":"00:00:00"},{"$f":"Time!RQV$23","v":"00:00:00"},{"$f":"Time!RQW$23","v":"00:00:00"},{"$f":"Time!RQX$23","v":"00:00:00"},{"$f":"Time!RQY$23","v":"00:00:00"},{"$f":"Time!RQZ$23","v":"00:00:00"},{"$f":"Time!RRA$23","v":"00:00:00"},{"$f":"Time!RRB$23","v":"00:00:00"},{"$f":"Time!RRC$23","v":"00:00:00"},{"$f":"Time!RRD$23","v":"00:00:00"},{"$f":"Time!RRE$23","v":"00:00:00"},{"$f":"Time!RRF$23","v":"00:00:00"},{"$f":"Time!RRG$23","v":"00:00:00"},{"$f":"Time!RRH$23","v":"00:00:00"},{"$f":"Time!RRI$23","v":"00:00:00"},{"$f":"Time!RRJ$23","v":"00:00:00"},{"$f":"Time!RRK$23","v":"00:00:00"},{"$f":"Time!RRL$23","v":"00:00:00"},{"$f":"Time!RRM$23","v":"00:00:00"},{"$f":"Time!RRN$23","v":"00:00:00"},{"$f":"Time!RRO$23","v":"00:00:00"},{"$f":"Time!RRP$23","v":"00:00:00"},{"$f":"Time!RRQ$23","v":"00:00:00"},{"$f":"Time!RRR$23","v":"00:00:00"},{"$f":"Time!RRS$23","v":"00:00:00"},{"$f":"Time!RRT$23","v":"00:00:00"},{"$f":"Time!RRU$23","v":"00:00:00"},{"$f":"Time!RRV$23","v":"00:00:00"},{"$f":"Time!RRW$23","v":"00:00:00"},{"$f":"Time!RRX$23","v":"00:00:00"},{"$f":"Time!RRY$23","v":"00:00:00"},{"$f":"Time!RRZ$23","v":"00:00:00"},{"$f":"Time!RSA$23","v":"00:00:00"},{"$f":"Time!RSB$23","v":"00:00:00"},{"$f":"Time!RSC$23","v":"00:00:00"},{"$f":"Time!RSD$23","v":"00:00:00"},{"$f":"Time!RSE$23","v":"00:00:00"},{"$f":"Time!RSF$23","v":"00:00:00"},{"$f":"Time!RSG$23","v":"00:00:00"},{"$f":"Time!RSH$23","v":"00:00:00"},{"$f":"Time!RSI$23","v":"00:00:00"},{"$f":"Time!RSJ$23","v":"00:00:00"},{"$f":"Time!RSK$23","v":"00:00:00"},{"$f":"Time!RSL$23","v":"00:00:00"},{"$f":"Time!RSM$23","v":"00:00:00"},{"$f":"Time!RSN$23","v":"00:00:00"},{"$f":"Time!RSO$23","v":"00:00:00"},{"$f":"Time!RSP$23","v":"00:00:00"},{"$f":"Time!RSQ$23","v":"00:00:00"},{"$f":"Time!RSR$23","v":"00:00:00"},{"$f":"Time!RSS$23","v":"00:00:00"},{"$f":"Time!RST$23","v":"00:00:00"},{"$f":"Time!RSU$23","v":"00:00:00"},{"$f":"Time!RSV$23","v":"00:00:00"},{"$f":"Time!RSW$23","v":"00:00:00"},{"$f":"Time!RSX$23","v":"00:00:00"},{"$f":"Time!RSY$23","v":"00:00:00"},{"$f":"Time!RSZ$23","v":"00:00:00"},{"$f":"Time!RTA$23","v":"00:00:00"},{"$f":"Time!RTB$23","v":"00:00:00"},{"$f":"Time!RTC$23","v":"00:00:00"},{"$f":"Time!RTD$23","v":"00:00:00"},{"$f":"Time!RTE$23","v":"00:00:00"},{"$f":"Time!RTF$23","v":"00:00:00"},{"$f":"Time!RTG$23","v":"00:00:00"},{"$f":"Time!RTH$23","v":"00:00:00"},{"$f":"Time!RTI$23","v":"00:00:00"},{"$f":"Time!RTJ$23","v":"00:00:00"},{"$f":"Time!RTK$23","v":"00:00:00"},{"$f":"Time!RTL$23","v":"00:00:00"},{"$f":"Time!RTM$23","v":"00:00:00"},{"$f":"Time!RTN$23","v":"00:00:00"},{"$f":"Time!RTO$23","v":"00:00:00"},{"$f":"Time!RTP$23","v":"00:00:00"},{"$f":"Time!RTQ$23","v":"00:00:00"},{"$f":"Time!RTR$23","v":"00:00:00"},{"$f":"Time!RTS$23","v":"00:00:00"},{"$f":"Time!RTT$23","v":"00:00:00"},{"$f":"Time!RTU$23","v":"00:00:00"},{"$f":"Time!RTV$23","v":"00:00:00"},{"$f":"Time!RTW$23","v":"00:00:00"},{"$f":"Time!RTX$23","v":"00:00:00"},{"$f":"Time!RTY$23","v":"00:00:00"},{"$f":"Time!RTZ$23","v":"00:00:00"},{"$f":"Time!RUA$23","v":"00:00:00"},{"$f":"Time!RUB$23","v":"00:00:00"},{"$f":"Time!RUC$23","v":"00:00:00"},{"$f":"Time!RUD$23","v":"00:00:00"},{"$f":"Time!RUE$23","v":"00:00:00"},{"$f":"Time!RUF$23","v":"00:00:00"},{"$f":"Time!RUG$23","v":"00:00:00"},{"$f":"Time!RUH$23","v":"00:00:00"},{"$f":"Time!RUI$23","v":"00:00:00"},{"$f":"Time!RUJ$23","v":"00:00:00"},{"$f":"Time!RUK$23","v":"00:00:00"},{"$f":"Time!RUL$23","v":"00:00:00"},{"$f":"Time!RUM$23","v":"00:00:00"},{"$f":"Time!RUN$23","v":"00:00:00"},{"$f":"Time!RUO$23","v":"00:00:00"},{"$f":"Time!RUP$23","v":"00:00:00"},{"$f":"Time!RUQ$23","v":"00:00:00"},{"$f":"Time!RUR$23","v":"00:00:00"},{"$f":"Time!RUS$23","v":"00:00:00"},{"$f":"Time!RUT$23","v":"00:00:00"},{"$f":"Time!RUU$23","v":"00:00:00"},{"$f":"Time!RUV$23","v":"00:00:00"},{"$f":"Time!RUW$23","v":"00:00:00"},{"$f":"Time!RUX$23","v":"00:00:00"},{"$f":"Time!RUY$23","v":"00:00:00"},{"$f":"Time!RUZ$23","v":"00:00:00"},{"$f":"Time!RVA$23","v":"00:00:00"},{"$f":"Time!RVB$23","v":"00:00:00"},{"$f":"Time!RVC$23","v":"00:00:00"},{"$f":"Time!RVD$23","v":"00:00:00"},{"$f":"Time!RVE$23","v":"00:00:00"},{"$f":"Time!RVF$23","v":"00:00:00"},{"$f":"Time!RVG$23","v":"00:00:00"},{"$f":"Time!RVH$23","v":"00:00:00"},{"$f":"Time!RVI$23","v":"00:00:00"},{"$f":"Time!RVJ$23","v":"00:00:00"},{"$f":"Time!RVK$23","v":"00:00:00"},{"$f":"Time!RVL$23","v":"00:00:00"},{"$f":"Time!RVM$23","v":"00:00:00"},{"$f":"Time!RVN$23","v":"00:00:00"},{"$f":"Time!RVO$23","v":"00:00:00"},{"$f":"Time!RVP$23","v":"00:00:00"},{"$f":"Time!RVQ$23","v":"00:00:00"},{"$f":"Time!RVR$23","v":"00:00:00"},{"$f":"Time!RVS$23","v":"00:00:00"},{"$f":"Time!RVT$23","v":"00:00:00"},{"$f":"Time!RVU$23","v":"00:00:00"},{"$f":"Time!RVV$23","v":"00:00:00"},{"$f":"Time!RVW$23","v":"00:00:00"},{"$f":"Time!RVX$23","v":"00:00:00"},{"$f":"Time!RVY$23","v":"00:00:00"},{"$f":"Time!RVZ$23","v":"00:00:00"},{"$f":"Time!RWA$23","v":"00:00:00"},{"$f":"Time!RWB$23","v":"00:00:00"},{"$f":"Time!RWC$23","v":"00:00:00"},{"$f":"Time!RWD$23","v":"00:00:00"},{"$f":"Time!RWE$23","v":"00:00:00"},{"$f":"Time!RWF$23","v":"00:00:00"},{"$f":"Time!RWG$23","v":"00:00:00"},{"$f":"Time!RWH$23","v":"00:00:00"},{"$f":"Time!RWI$23","v":"00:00:00"},{"$f":"Time!RWJ$23","v":"00:00:00"},{"$f":"Time!RWK$23","v":"00:00:00"},{"$f":"Time!RWL$23","v":"00:00:00"},{"$f":"Time!RWM$23","v":"00:00:00"},{"$f":"Time!RWN$23","v":"00:00:00"},{"$f":"Time!RWO$23","v":"00:00:00"},{"$f":"Time!RWP$23","v":"00:00:00"},{"$f":"Time!RWQ$23","v":"00:00:00"},{"$f":"Time!RWR$23","v":"00:00:00"},{"$f":"Time!RWS$23","v":"00:00:00"},{"$f":"Time!RWT$23","v":"00:00:00"},{"$f":"Time!RWU$23","v":"00:00:00"},{"$f":"Time!RWV$23","v":"00:00:00"},{"$f":"Time!RWW$23","v":"00:00:00"},{"$f":"Time!RWX$23","v":"00:00:00"},{"$f":"Time!RWY$23","v":"00:00:00"},{"$f":"Time!RWZ$23","v":"00:00:00"},{"$f":"Time!RXA$23","v":"00:00:00"},{"$f":"Time!RXB$23","v":"00:00:00"},{"$f":"Time!RXC$23","v":"00:00:00"},{"$f":"Time!RXD$23","v":"00:00:00"},{"$f":"Time!RXE$23","v":"00:00:00"},{"$f":"Time!RXF$23","v":"00:00:00"},{"$f":"Time!RXG$23","v":"00:00:00"},{"$f":"Time!RXH$23","v":"00:00:00"},{"$f":"Time!RXI$23","v":"00:00:00"},{"$f":"Time!RXJ$23","v":"00:00:00"},{"$f":"Time!RXK$23","v":"00:00:00"},{"$f":"Time!RXL$23","v":"00:00:00"},{"$f":"Time!RXM$23","v":"00:00:00"},{"$f":"Time!RXN$23","v":"00:00:00"},{"$f":"Time!RXO$23","v":"00:00:00"},{"$f":"Time!RXP$23","v":"00:00:00"},{"$f":"Time!RXQ$23","v":"00:00:00"},{"$f":"Time!RXR$23","v":"00:00:00"},{"$f":"Time!RXS$23","v":"00:00:00"},{"$f":"Time!RXT$23","v":"00:00:00"},{"$f":"Time!RXU$23","v":"00:00:00"},{"$f":"Time!RXV$23","v":"00:00:00"},{"$f":"Time!RXW$23","v":"00:00:00"},{"$f":"Time!RXX$23","v":"00:00:00"},{"$f":"Time!RXY$23","v":"00:00:00"},{"$f":"Time!RXZ$23","v":"00:00:00"},{"$f":"Time!RYA$23","v":"00:00:00"},{"$f":"Time!RYB$23","v":"00:00:00"},{"$f":"Time!RYC$23","v":"00:00:00"},{"$f":"Time!RYD$23","v":"00:00:00"},{"$f":"Time!RYE$23","v":"00:00:00"},{"$f":"Time!RYF$23","v":"00:00:00"},{"$f":"Time!RYG$23","v":"00:00:00"},{"$f":"Time!RYH$23","v":"00:00:00"},{"$f":"Time!RYI$23","v":"00:00:00"},{"$f":"Time!RYJ$23","v":"00:00:00"},{"$f":"Time!RYK$23","v":"00:00:00"},{"$f":"Time!RYL$23","v":"00:00:00"},{"$f":"Time!RYM$23","v":"00:00:00"},{"$f":"Time!RYN$23","v":"00:00:00"},{"$f":"Time!RYO$23","v":"00:00:00"},{"$f":"Time!RYP$23","v":"00:00:00"},{"$f":"Time!RYQ$23","v":"00:00:00"},{"$f":"Time!RYR$23","v":"00:00:00"},{"$f":"Time!RYS$23","v":"00:00:00"},{"$f":"Time!RYT$23","v":"00:00:00"},{"$f":"Time!RYU$23","v":"00:00:00"},{"$f":"Time!RYV$23","v":"00:00:00"},{"$f":"Time!RYW$23","v":"00:00:00"},{"$f":"Time!RYX$23","v":"00:00:00"},{"$f":"Time!RYY$23","v":"00:00:00"},{"$f":"Time!RYZ$23","v":"00:00:00"},{"$f":"Time!RZA$23","v":"00:00:00"},{"$f":"Time!RZB$23","v":"00:00:00"},{"$f":"Time!RZC$23","v":"00:00:00"},{"$f":"Time!RZD$23","v":"00:00:00"},{"$f":"Time!RZE$23","v":"00:00:00"},{"$f":"Time!RZF$23","v":"00:00:00"},{"$f":"Time!RZG$23","v":"00:00:00"},{"$f":"Time!RZH$23","v":"00:00:00"},{"$f":"Time!RZI$23","v":"00:00:00"},{"$f":"Time!RZJ$23","v":"00:00:00"},{"$f":"Time!RZK$23","v":"00:00:00"},{"$f":"Time!RZL$23","v":"00:00:00"},{"$f":"Time!RZM$23","v":"00:00:00"},{"$f":"Time!RZN$23","v":"00:00:00"},{"$f":"Time!RZO$23","v":"00:00:00"},{"$f":"Time!RZP$23","v":"00:00:00"},{"$f":"Time!RZQ$23","v":"00:00:00"},{"$f":"Time!RZR$23","v":"00:00:00"},{"$f":"Time!RZS$23","v":"00:00:00"},{"$f":"Time!RZT$23","v":"00:00:00"},{"$f":"Time!RZU$23","v":"00:00:00"},{"$f":"Time!RZV$23","v":"00:00:00"},{"$f":"Time!RZW$23","v":"00:00:00"},{"$f":"Time!RZX$23","v":"00:00:00"},{"$f":"Time!RZY$23","v":"00:00:00"},{"$f":"Time!RZZ$23","v":"00:00:00"},{"$f":"Time!SAA$23","v":"00:00:00"},{"$f":"Time!SAB$23","v":"00:00:00"},{"$f":"Time!SAC$23","v":"00:00:00"},{"$f":"Time!SAD$23","v":"00:00:00"},{"$f":"Time!SAE$23","v":"00:00:00"},{"$f":"Time!SAF$23","v":"00:00:00"},{"$f":"Time!SAG$23","v":"00:00:00"},{"$f":"Time!SAH$23","v":"00:00:00"},{"$f":"Time!SAI$23","v":"00:00:00"},{"$f":"Time!SAJ$23","v":"00:00:00"},{"$f":"Time!SAK$23","v":"00:00:00"},{"$f":"Time!SAL$23","v":"00:00:00"},{"$f":"Time!SAM$23","v":"00:00:00"},{"$f":"Time!SAN$23","v":"00:00:00"},{"$f":"Time!SAO$23","v":"00:00:00"},{"$f":"Time!SAP$23","v":"00:00:00"},{"$f":"Time!SAQ$23","v":"00:00:00"},{"$f":"Time!SAR$23","v":"00:00:00"},{"$f":"Time!SAS$23","v":"00:00:00"},{"$f":"Time!SAT$23","v":"00:00:00"},{"$f":"Time!SAU$23","v":"00:00:00"},{"$f":"Time!SAV$23","v":"00:00:00"},{"$f":"Time!SAW$23","v":"00:00:00"},{"$f":"Time!SAX$23","v":"00:00:00"},{"$f":"Time!SAY$23","v":"00:00:00"},{"$f":"Time!SAZ$23","v":"00:00:00"},{"$f":"Time!SBA$23","v":"00:00:00"},{"$f":"Time!SBB$23","v":"00:00:00"},{"$f":"Time!SBC$23","v":"00:00:00"},{"$f":"Time!SBD$23","v":"00:00:00"},{"$f":"Time!SBE$23","v":"00:00:00"},{"$f":"Time!SBF$23","v":"00:00:00"},{"$f":"Time!SBG$23","v":"00:00:00"},{"$f":"Time!SBH$23","v":"00:00:00"},{"$f":"Time!SBI$23","v":"00:00:00"},{"$f":"Time!SBJ$23","v":"00:00:00"},{"$f":"Time!SBK$23","v":"00:00:00"},{"$f":"Time!SBL$23","v":"00:00:00"},{"$f":"Time!SBM$23","v":"00:00:00"},{"$f":"Time!SBN$23","v":"00:00:00"},{"$f":"Time!SBO$23","v":"00:00:00"},{"$f":"Time!SBP$23","v":"00:00:00"},{"$f":"Time!SBQ$23","v":"00:00:00"},{"$f":"Time!SBR$23","v":"00:00:00"},{"$f":"Time!SBS$23","v":"00:00:00"},{"$f":"Time!SBT$23","v":"00:00:00"},{"$f":"Time!SBU$23","v":"00:00:00"},{"$f":"Time!SBV$23","v":"00:00:00"},{"$f":"Time!SBW$23","v":"00:00:00"},{"$f":"Time!SBX$23","v":"00:00:00"},{"$f":"Time!SBY$23","v":"00:00:00"},{"$f":"Time!SBZ$23","v":"00:00:00"},{"$f":"Time!SCA$23","v":"00:00:00"},{"$f":"Time!SCB$23","v":"00:00:00"},{"$f":"Time!SCC$23","v":"00:00:00"},{"$f":"Time!SCD$23","v":"00:00:00"},{"$f":"Time!SCE$23","v":"00:00:00"},{"$f":"Time!SCF$23","v":"00:00:00"},{"$f":"Time!SCG$23","v":"00:00:00"},{"$f":"Time!SCH$23","v":"00:00:00"},{"$f":"Time!SCI$23","v":"00:00:00"},{"$f":"Time!SCJ$23","v":"00:00:00"},{"$f":"Time!SCK$23","v":"00:00:00"},{"$f":"Time!SCL$23","v":"00:00:00"},{"$f":"Time!SCM$23","v":"00:00:00"},{"$f":"Time!SCN$23","v":"00:00:00"},{"$f":"Time!SCO$23","v":"00:00:00"},{"$f":"Time!SCP$23","v":"00:00:00"},{"$f":"Time!SCQ$23","v":"00:00:00"},{"$f":"Time!SCR$23","v":"00:00:00"},{"$f":"Time!SCS$23","v":"00:00:00"},{"$f":"Time!SCT$23","v":"00:00:00"},{"$f":"Time!SCU$23","v":"00:00:00"},{"$f":"Time!SCV$23","v":"00:00:00"},{"$f":"Time!SCW$23","v":"00:00:00"},{"$f":"Time!SCX$23","v":"00:00:00"},{"$f":"Time!SCY$23","v":"00:00:00"},{"$f":"Time!SCZ$23","v":"00:00:00"},{"$f":"Time!SDA$23","v":"00:00:00"},{"$f":"Time!SDB$23","v":"00:00:00"},{"$f":"Time!SDC$23","v":"00:00:00"},{"$f":"Time!SDD$23","v":"00:00:00"},{"$f":"Time!SDE$23","v":"00:00:00"},{"$f":"Time!SDF$23","v":"00:00:00"},{"$f":"Time!SDG$23","v":"00:00:00"},{"$f":"Time!SDH$23","v":"00:00:00"},{"$f":"Time!SDI$23","v":"00:00:00"},{"$f":"Time!SDJ$23","v":"00:00:00"},{"$f":"Time!SDK$23","v":"00:00:00"},{"$f":"Time!SDL$23","v":"00:00:00"},{"$f":"Time!SDM$23","v":"00:00:00"},{"$f":"Time!SDN$23","v":"00:00:00"},{"$f":"Time!SDO$23","v":"00:00:00"},{"$f":"Time!SDP$23","v":"00:00:00"},{"$f":"Time!SDQ$23","v":"00:00:00"},{"$f":"Time!SDR$23","v":"00:00:00"},{"$f":"Time!SDS$23","v":"00:00:00"},{"$f":"Time!SDT$23","v":"00:00:00"},{"$f":"Time!SDU$23","v":"00:00:00"},{"$f":"Time!SDV$23","v":"00:00:00"},{"$f":"Time!SDW$23","v":"00:00:00"},{"$f":"Time!SDX$23","v":"00:00:00"},{"$f":"Time!SDY$23","v":"00:00:00"},{"$f":"Time!SDZ$23","v":"00:00:00"},{"$f":"Time!SEA$23","v":"00:00:00"},{"$f":"Time!SEB$23","v":"00:00:00"},{"$f":"Time!SEC$23","v":"00:00:00"},{"$f":"Time!SED$23","v":"00:00:00"},{"$f":"Time!SEE$23","v":"00:00:00"},{"$f":"Time!SEF$23","v":"00:00:00"},{"$f":"Time!SEG$23","v":"00:00:00"},{"$f":"Time!SEH$23","v":"00:00:00"},{"$f":"Time!SEI$23","v":"00:00:00"},{"$f":"Time!SEJ$23","v":"00:00:00"},{"$f":"Time!SEK$23","v":"00:00:00"},{"$f":"Time!SEL$23","v":"00:00:00"},{"$f":"Time!SEM$23","v":"00:00:00"},{"$f":"Time!SEN$23","v":"00:00:00"},{"$f":"Time!SEO$23","v":"00:00:00"},{"$f":"Time!SEP$23","v":"00:00:00"},{"$f":"Time!SEQ$23","v":"00:00:00"},{"$f":"Time!SER$23","v":"00:00:00"},{"$f":"Time!SES$23","v":"00:00:00"},{"$f":"Time!SET$23","v":"00:00:00"},{"$f":"Time!SEU$23","v":"00:00:00"},{"$f":"Time!SEV$23","v":"00:00:00"},{"$f":"Time!SEW$23","v":"00:00:00"},{"$f":"Time!SEX$23","v":"00:00:00"},{"$f":"Time!SEY$23","v":"00:00:00"},{"$f":"Time!SEZ$23","v":"00:00:00"},{"$f":"Time!SFA$23","v":"00:00:00"},{"$f":"Time!SFB$23","v":"00:00:00"},{"$f":"Time!SFC$23","v":"00:00:00"},{"$f":"Time!SFD$23","v":"00:00:00"},{"$f":"Time!SFE$23","v":"00:00:00"},{"$f":"Time!SFF$23","v":"00:00:00"},{"$f":"Time!SFG$23","v":"00:00:00"},{"$f":"Time!SFH$23","v":"00:00:00"},{"$f":"Time!SFI$23","v":"00:00:00"},{"$f":"Time!SFJ$23","v":"00:00:00"},{"$f":"Time!SFK$23","v":"00:00:00"},{"$f":"Time!SFL$23","v":"00:00:00"},{"$f":"Time!SFM$23","v":"00:00:00"},{"$f":"Time!SFN$23","v":"00:00:00"},{"$f":"Time!SFO$23","v":"00:00:00"},{"$f":"Time!SFP$23","v":"00:00:00"},{"$f":"Time!SFQ$23","v":"00:00:00"},{"$f":"Time!SFR$23","v":"00:00:00"},{"$f":"Time!SFS$23","v":"00:00:00"},{"$f":"Time!SFT$23","v":"00:00:00"},{"$f":"Time!SFU$23","v":"00:00:00"},{"$f":"Time!SFV$23","v":"00:00:00"},{"$f":"Time!SFW$23","v":"00:00:00"},{"$f":"Time!SFX$23","v":"00:00:00"},{"$f":"Time!SFY$23","v":"00:00:00"},{"$f":"Time!SFZ$23","v":"00:00:00"},{"$f":"Time!SGA$23","v":"00:00:00"},{"$f":"Time!SGB$23","v":"00:00:00"},{"$f":"Time!SGC$23","v":"00:00:00"},{"$f":"Time!SGD$23","v":"00:00:00"},{"$f":"Time!SGE$23","v":"00:00:00"},{"$f":"Time!SGF$23","v":"00:00:00"},{"$f":"Time!SGG$23","v":"00:00:00"},{"$f":"Time!SGH$23","v":"00:00:00"},{"$f":"Time!SGI$23","v":"00:00:00"},{"$f":"Time!SGJ$23","v":"00:00:00"},{"$f":"Time!SGK$23","v":"00:00:00"},{"$f":"Time!SGL$23","v":"00:00:00"},{"$f":"Time!SGM$23","v":"00:00:00"},{"$f":"Time!SGN$23","v":"00:00:00"},{"$f":"Time!SGO$23","v":"00:00:00"},{"$f":"Time!SGP$23","v":"00:00:00"},{"$f":"Time!SGQ$23","v":"00:00:00"},{"$f":"Time!SGR$23","v":"00:00:00"},{"$f":"Time!SGS$23","v":"00:00:00"},{"$f":"Time!SGT$23","v":"00:00:00"},{"$f":"Time!SGU$23","v":"00:00:00"},{"$f":"Time!SGV$23","v":"00:00:00"},{"$f":"Time!SGW$23","v":"00:00:00"},{"$f":"Time!SGX$23","v":"00:00:00"},{"$f":"Time!SGY$23","v":"00:00:00"},{"$f":"Time!SGZ$23","v":"00:00:00"},{"$f":"Time!SHA$23","v":"00:00:00"},{"$f":"Time!SHB$23","v":"00:00:00"},{"$f":"Time!SHC$23","v":"00:00:00"},{"$f":"Time!SHD$23","v":"00:00:00"},{"$f":"Time!SHE$23","v":"00:00:00"},{"$f":"Time!SHF$23","v":"00:00:00"},{"$f":"Time!SHG$23","v":"00:00:00"},{"$f":"Time!SHH$23","v":"00:00:00"},{"$f":"Time!SHI$23","v":"00:00:00"},{"$f":"Time!SHJ$23","v":"00:00:00"},{"$f":"Time!SHK$23","v":"00:00:00"},{"$f":"Time!SHL$23","v":"00:00:00"},{"$f":"Time!SHM$23","v":"00:00:00"},{"$f":"Time!SHN$23","v":"00:00:00"},{"$f":"Time!SHO$23","v":"00:00:00"},{"$f":"Time!SHP$23","v":"00:00:00"},{"$f":"Time!SHQ$23","v":"00:00:00"},{"$f":"Time!SHR$23","v":"00:00:00"},{"$f":"Time!SHS$23","v":"00:00:00"},{"$f":"Time!SHT$23","v":"00:00:00"},{"$f":"Time!SHU$23","v":"00:00:00"},{"$f":"Time!SHV$23","v":"00:00:00"},{"$f":"Time!SHW$23","v":"00:00:00"},{"$f":"Time!SHX$23","v":"00:00:00"},{"$f":"Time!SHY$23","v":"00:00:00"},{"$f":"Time!SHZ$23","v":"00:00:00"},{"$f":"Time!SIA$23","v":"00:00:00"},{"$f":"Time!SIB$23","v":"00:00:00"},{"$f":"Time!SIC$23","v":"00:00:00"},{"$f":"Time!SID$23","v":"00:00:00"},{"$f":"Time!SIE$23","v":"00:00:00"},{"$f":"Time!SIF$23","v":"00:00:00"},{"$f":"Time!SIG$23","v":"00:00:00"},{"$f":"Time!SIH$23","v":"00:00:00"},{"$f":"Time!SII$23","v":"00:00:00"},{"$f":"Time!SIJ$23","v":"00:00:00"},{"$f":"Time!SIK$23","v":"00:00:00"},{"$f":"Time!SIL$23","v":"00:00:00"},{"$f":"Time!SIM$23","v":"00:00:00"},{"$f":"Time!SIN$23","v":"00:00:00"},{"$f":"Time!SIO$23","v":"00:00:00"},{"$f":"Time!SIP$23","v":"00:00:00"},{"$f":"Time!SIQ$23","v":"00:00:00"},{"$f":"Time!SIR$23","v":"00:00:00"},{"$f":"Time!SIS$23","v":"00:00:00"},{"$f":"Time!SIT$23","v":"00:00:00"},{"$f":"Time!SIU$23","v":"00:00:00"},{"$f":"Time!SIV$23","v":"00:00:00"},{"$f":"Time!SIW$23","v":"00:00:00"},{"$f":"Time!SIX$23","v":"00:00:00"},{"$f":"Time!SIY$23","v":"00:00:00"},{"$f":"Time!SIZ$23","v":"00:00:00"},{"$f":"Time!SJA$23","v":"00:00:00"},{"$f":"Time!SJB$23","v":"00:00:00"},{"$f":"Time!SJC$23","v":"00:00:00"},{"$f":"Time!SJD$23","v":"00:00:00"},{"$f":"Time!SJE$23","v":"00:00:00"},{"$f":"Time!SJF$23","v":"00:00:00"},{"$f":"Time!SJG$23","v":"00:00:00"},{"$f":"Time!SJH$23","v":"00:00:00"},{"$f":"Time!SJI$23","v":"00:00:00"},{"$f":"Time!SJJ$23","v":"00:00:00"},{"$f":"Time!SJK$23","v":"00:00:00"},{"$f":"Time!SJL$23","v":"00:00:00"},{"$f":"Time!SJM$23","v":"00:00:00"},{"$f":"Time!SJN$23","v":"00:00:00"},{"$f":"Time!SJO$23","v":"00:00:00"},{"$f":"Time!SJP$23","v":"00:00:00"},{"$f":"Time!SJQ$23","v":"00:00:00"},{"$f":"Time!SJR$23","v":"00:00:00"},{"$f":"Time!SJS$23","v":"00:00:00"},{"$f":"Time!SJT$23","v":"00:00:00"},{"$f":"Time!SJU$23","v":"00:00:00"},{"$f":"Time!SJV$23","v":"00:00:00"},{"$f":"Time!SJW$23","v":"00:00:00"},{"$f":"Time!SJX$23","v":"00:00:00"},{"$f":"Time!SJY$23","v":"00:00:00"},{"$f":"Time!SJZ$23","v":"00:00:00"},{"$f":"Time!SKA$23","v":"00:00:00"},{"$f":"Time!SKB$23","v":"00:00:00"},{"$f":"Time!SKC$23","v":"00:00:00"},{"$f":"Time!SKD$23","v":"00:00:00"},{"$f":"Time!SKE$23","v":"00:00:00"},{"$f":"Time!SKF$23","v":"00:00:00"},{"$f":"Time!SKG$23","v":"00:00:00"},{"$f":"Time!SKH$23","v":"00:00:00"},{"$f":"Time!SKI$23","v":"00:00:00"},{"$f":"Time!SKJ$23","v":"00:00:00"},{"$f":"Time!SKK$23","v":"00:00:00"},{"$f":"Time!SKL$23","v":"00:00:00"},{"$f":"Time!SKM$23","v":"00:00:00"},{"$f":"Time!SKN$23","v":"00:00:00"},{"$f":"Time!SKO$23","v":"00:00:00"},{"$f":"Time!SKP$23","v":"00:00:00"},{"$f":"Time!SKQ$23","v":"00:00:00"},{"$f":"Time!SKR$23","v":"00:00:00"},{"$f":"Time!SKS$23","v":"00:00:00"},{"$f":"Time!SKT$23","v":"00:00:00"},{"$f":"Time!SKU$23","v":"00:00:00"},{"$f":"Time!SKV$23","v":"00:00:00"},{"$f":"Time!SKW$23","v":"00:00:00"},{"$f":"Time!SKX$23","v":"00:00:00"},{"$f":"Time!SKY$23","v":"00:00:00"},{"$f":"Time!SKZ$23","v":"00:00:00"},{"$f":"Time!SLA$23","v":"00:00:00"},{"$f":"Time!SLB$23","v":"00:00:00"},{"$f":"Time!SLC$23","v":"00:00:00"},{"$f":"Time!SLD$23","v":"00:00:00"},{"$f":"Time!SLE$23","v":"00:00:00"},{"$f":"Time!SLF$23","v":"00:00:00"},{"$f":"Time!SLG$23","v":"00:00:00"},{"$f":"Time!SLH$23","v":"00:00:00"},{"$f":"Time!SLI$23","v":"00:00:00"},{"$f":"Time!SLJ$23","v":"00:00:00"},{"$f":"Time!SLK$23","v":"00:00:00"},{"$f":"Time!SLL$23","v":"00:00:00"},{"$f":"Time!SLM$23","v":"00:00:00"},{"$f":"Time!SLN$23","v":"00:00:00"},{"$f":"Time!SLO$23","v":"00:00:00"},{"$f":"Time!SLP$23","v":"00:00:00"},{"$f":"Time!SLQ$23","v":"00:00:00"},{"$f":"Time!SLR$23","v":"00:00:00"},{"$f":"Time!SLS$23","v":"00:00:00"},{"$f":"Time!SLT$23","v":"00:00:00"},{"$f":"Time!SLU$23","v":"00:00:00"},{"$f":"Time!SLV$23","v":"00:00:00"},{"$f":"Time!SLW$23","v":"00:00:00"},{"$f":"Time!SLX$23","v":"00:00:00"},{"$f":"Time!SLY$23","v":"00:00:00"},{"$f":"Time!SLZ$23","v":"00:00:00"},{"$f":"Time!SMA$23","v":"00:00:00"},{"$f":"Time!SMB$23","v":"00:00:00"},{"$f":"Time!SMC$23","v":"00:00:00"},{"$f":"Time!SMD$23","v":"00:00:00"},{"$f":"Time!SME$23","v":"00:00:00"},{"$f":"Time!SMF$23","v":"00:00:00"},{"$f":"Time!SMG$23","v":"00:00:00"},{"$f":"Time!SMH$23","v":"00:00:00"},{"$f":"Time!SMI$23","v":"00:00:00"},{"$f":"Time!SMJ$23","v":"00:00:00"},{"$f":"Time!SMK$23","v":"00:00:00"},{"$f":"Time!SML$23","v":"00:00:00"},{"$f":"Time!SMM$23","v":"00:00:00"},{"$f":"Time!SMN$23","v":"00:00:00"},{"$f":"Time!SMO$23","v":"00:00:00"},{"$f":"Time!SMP$23","v":"00:00:00"},{"$f":"Time!SMQ$23","v":"00:00:00"},{"$f":"Time!SMR$23","v":"00:00:00"},{"$f":"Time!SMS$23","v":"00:00:00"},{"$f":"Time!SMT$23","v":"00:00:00"},{"$f":"Time!SMU$23","v":"00:00:00"},{"$f":"Time!SMV$23","v":"00:00:00"},{"$f":"Time!SMW$23","v":"00:00:00"},{"$f":"Time!SMX$23","v":"00:00:00"},{"$f":"Time!SMY$23","v":"00:00:00"},{"$f":"Time!SMZ$23","v":"00:00:00"},{"$f":"Time!SNA$23","v":"00:00:00"},{"$f":"Time!SNB$23","v":"00:00:00"},{"$f":"Time!SNC$23","v":"00:00:00"},{"$f":"Time!SND$23","v":"00:00:00"},{"$f":"Time!SNE$23","v":"00:00:00"},{"$f":"Time!SNF$23","v":"00:00:00"},{"$f":"Time!SNG$23","v":"00:00:00"},{"$f":"Time!SNH$23","v":"00:00:00"},{"$f":"Time!SNI$23","v":"00:00:00"},{"$f":"Time!SNJ$23","v":"00:00:00"},{"$f":"Time!SNK$23","v":"00:00:00"},{"$f":"Time!SNL$23","v":"00:00:00"},{"$f":"Time!SNM$23","v":"00:00:00"},{"$f":"Time!SNN$23","v":"00:00:00"},{"$f":"Time!SNO$23","v":"00:00:00"},{"$f":"Time!SNP$23","v":"00:00:00"},{"$f":"Time!SNQ$23","v":"00:00:00"},{"$f":"Time!SNR$23","v":"00:00:00"},{"$f":"Time!SNS$23","v":"00:00:00"},{"$f":"Time!SNT$23","v":"00:00:00"},{"$f":"Time!SNU$23","v":"00:00:00"},{"$f":"Time!SNV$23","v":"00:00:00"},{"$f":"Time!SNW$23","v":"00:00:00"},{"$f":"Time!SNX$23","v":"00:00:00"},{"$f":"Time!SNY$23","v":"00:00:00"},{"$f":"Time!SNZ$23","v":"00:00:00"},{"$f":"Time!SOA$23","v":"00:00:00"},{"$f":"Time!SOB$23","v":"00:00:00"},{"$f":"Time!SOC$23","v":"00:00:00"},{"$f":"Time!SOD$23","v":"00:00:00"},{"$f":"Time!SOE$23","v":"00:00:00"},{"$f":"Time!SOF$23","v":"00:00:00"},{"$f":"Time!SOG$23","v":"00:00:00"},{"$f":"Time!SOH$23","v":"00:00:00"},{"$f":"Time!SOI$23","v":"00:00:00"},{"$f":"Time!SOJ$23","v":"00:00:00"},{"$f":"Time!SOK$23","v":"00:00:00"},{"$f":"Time!SOL$23","v":"00:00:00"},{"$f":"Time!SOM$23","v":"00:00:00"},{"$f":"Time!SON$23","v":"00:00:00"},{"$f":"Time!SOO$23","v":"00:00:00"},{"$f":"Time!SOP$23","v":"00:00:00"},{"$f":"Time!SOQ$23","v":"00:00:00"},{"$f":"Time!SOR$23","v":"00:00:00"},{"$f":"Time!SOS$23","v":"00:00:00"},{"$f":"Time!SOT$23","v":"00:00:00"},{"$f":"Time!SOU$23","v":"00:00:00"},{"$f":"Time!SOV$23","v":"00:00:00"},{"$f":"Time!SOW$23","v":"00:00:00"},{"$f":"Time!SOX$23","v":"00:00:00"},{"$f":"Time!SOY$23","v":"00:00:00"},{"$f":"Time!SOZ$23","v":"00:00:00"},{"$f":"Time!SPA$23","v":"00:00:00"},{"$f":"Time!SPB$23","v":"00:00:00"},{"$f":"Time!SPC$23","v":"00:00:00"},{"$f":"Time!SPD$23","v":"00:00:00"},{"$f":"Time!SPE$23","v":"00:00:00"},{"$f":"Time!SPF$23","v":"00:00:00"},{"$f":"Time!SPG$23","v":"00:00:00"},{"$f":"Time!SPH$23","v":"00:00:00"},{"$f":"Time!SPI$23","v":"00:00:00"},{"$f":"Time!SPJ$23","v":"00:00:00"},{"$f":"Time!SPK$23","v":"00:00:00"},{"$f":"Time!SPL$23","v":"00:00:00"},{"$f":"Time!SPM$23","v":"00:00:00"},{"$f":"Time!SPN$23","v":"00:00:00"},{"$f":"Time!SPO$23","v":"00:00:00"},{"$f":"Time!SPP$23","v":"00:00:00"},{"$f":"Time!SPQ$23","v":"00:00:00"},{"$f":"Time!SPR$23","v":"00:00:00"},{"$f":"Time!SPS$23","v":"00:00:00"},{"$f":"Time!SPT$23","v":"00:00:00"},{"$f":"Time!SPU$23","v":"00:00:00"},{"$f":"Time!SPV$23","v":"00:00:00"},{"$f":"Time!SPW$23","v":"00:00:00"},{"$f":"Time!SPX$23","v":"00:00:00"},{"$f":"Time!SPY$23","v":"00:00:00"},{"$f":"Time!SPZ$23","v":"00:00:00"},{"$f":"Time!SQA$23","v":"00:00:00"},{"$f":"Time!SQB$23","v":"00:00:00"},{"$f":"Time!SQC$23","v":"00:00:00"},{"$f":"Time!SQD$23","v":"00:00:00"},{"$f":"Time!SQE$23","v":"00:00:00"},{"$f":"Time!SQF$23","v":"00:00:00"},{"$f":"Time!SQG$23","v":"00:00:00"},{"$f":"Time!SQH$23","v":"00:00:00"},{"$f":"Time!SQI$23","v":"00:00:00"},{"$f":"Time!SQJ$23","v":"00:00:00"},{"$f":"Time!SQK$23","v":"00:00:00"},{"$f":"Time!SQL$23","v":"00:00:00"},{"$f":"Time!SQM$23","v":"00:00:00"},{"$f":"Time!SQN$23","v":"00:00:00"},{"$f":"Time!SQO$23","v":"00:00:00"},{"$f":"Time!SQP$23","v":"00:00:00"},{"$f":"Time!SQQ$23","v":"00:00:00"},{"$f":"Time!SQR$23","v":"00:00:00"},{"$f":"Time!SQS$23","v":"00:00:00"},{"$f":"Time!SQT$23","v":"00:00:00"},{"$f":"Time!SQU$23","v":"00:00:00"},{"$f":"Time!SQV$23","v":"00:00:00"},{"$f":"Time!SQW$23","v":"00:00:00"},{"$f":"Time!SQX$23","v":"00:00:00"},{"$f":"Time!SQY$23","v":"00:00:00"},{"$f":"Time!SQZ$23","v":"00:00:00"},{"$f":"Time!SRA$23","v":"00:00:00"},{"$f":"Time!SRB$23","v":"00:00:00"},{"$f":"Time!SRC$23","v":"00:00:00"},{"$f":"Time!SRD$23","v":"00:00:00"},{"$f":"Time!SRE$23","v":"00:00:00"},{"$f":"Time!SRF$23","v":"00:00:00"},{"$f":"Time!SRG$23","v":"00:00:00"},{"$f":"Time!SRH$23","v":"00:00:00"},{"$f":"Time!SRI$23","v":"00:00:00"},{"$f":"Time!SRJ$23","v":"00:00:00"},{"$f":"Time!SRK$23","v":"00:00:00"},{"$f":"Time!SRL$23","v":"00:00:00"},{"$f":"Time!SRM$23","v":"00:00:00"},{"$f":"Time!SRN$23","v":"00:00:00"},{"$f":"Time!SRO$23","v":"00:00:00"},{"$f":"Time!SRP$23","v":"00:00:00"},{"$f":"Time!SRQ$23","v":"00:00:00"},{"$f":"Time!SRR$23","v":"00:00:00"},{"$f":"Time!SRS$23","v":"00:00:00"},{"$f":"Time!SRT$23","v":"00:00:00"},{"$f":"Time!SRU$23","v":"00:00:00"},{"$f":"Time!SRV$23","v":"00:00:00"},{"$f":"Time!SRW$23","v":"00:00:00"},{"$f":"Time!SRX$23","v":"00:00:00"},{"$f":"Time!SRY$23","v":"00:00:00"},{"$f":"Time!SRZ$23","v":"00:00:00"},{"$f":"Time!SSA$23","v":"00:00:00"},{"$f":"Time!SSB$23","v":"00:00:00"},{"$f":"Time!SSC$23","v":"00:00:00"},{"$f":"Time!SSD$23","v":"00:00:00"},{"$f":"Time!SSE$23","v":"00:00:00"},{"$f":"Time!SSF$23","v":"00:00:00"},{"$f":"Time!SSG$23","v":"00:00:00"},{"$f":"Time!SSH$23","v":"00:00:00"},{"$f":"Time!SSI$23","v":"00:00:00"},{"$f":"Time!SSJ$23","v":"00:00:00"},{"$f":"Time!SSK$23","v":"00:00:00"},{"$f":"Time!SSL$23","v":"00:00:00"},{"$f":"Time!SSM$23","v":"00:00:00"},{"$f":"Time!SSN$23","v":"00:00:00"},{"$f":"Time!SSO$23","v":"00:00:00"},{"$f":"Time!SSP$23","v":"00:00:00"},{"$f":"Time!SSQ$23","v":"00:00:00"},{"$f":"Time!SSR$23","v":"00:00:00"},{"$f":"Time!SSS$23","v":"00:00:00"},{"$f":"Time!SST$23","v":"00:00:00"},{"$f":"Time!SSU$23","v":"00:00:00"},{"$f":"Time!SSV$23","v":"00:00:00"},{"$f":"Time!SSW$23","v":"00:00:00"},{"$f":"Time!SSX$23","v":"00:00:00"},{"$f":"Time!SSY$23","v":"00:00:00"},{"$f":"Time!SSZ$23","v":"00:00:00"},{"$f":"Time!STA$23","v":"00:00:00"},{"$f":"Time!STB$23","v":"00:00:00"},{"$f":"Time!STC$23","v":"00:00:00"},{"$f":"Time!STD$23","v":"00:00:00"},{"$f":"Time!STE$23","v":"00:00:00"},{"$f":"Time!STF$23","v":"00:00:00"},{"$f":"Time!STG$23","v":"00:00:00"},{"$f":"Time!STH$23","v":"00:00:00"},{"$f":"Time!STI$23","v":"00:00:00"},{"$f":"Time!STJ$23","v":"00:00:00"},{"$f":"Time!STK$23","v":"00:00:00"},{"$f":"Time!STL$23","v":"00:00:00"},{"$f":"Time!STM$23","v":"00:00:00"},{"$f":"Time!STN$23","v":"00:00:00"},{"$f":"Time!STO$23","v":"00:00:00"},{"$f":"Time!STP$23","v":"00:00:00"},{"$f":"Time!STQ$23","v":"00:00:00"},{"$f":"Time!STR$23","v":"00:00:00"},{"$f":"Time!STS$23","v":"00:00:00"},{"$f":"Time!STT$23","v":"00:00:00"},{"$f":"Time!STU$23","v":"00:00:00"},{"$f":"Time!STV$23","v":"00:00:00"},{"$f":"Time!STW$23","v":"00:00:00"},{"$f":"Time!STX$23","v":"00:00:00"},{"$f":"Time!STY$23","v":"00:00:00"},{"$f":"Time!STZ$23","v":"00:00:00"},{"$f":"Time!SUA$23","v":"00:00:00"},{"$f":"Time!SUB$23","v":"00:00:00"},{"$f":"Time!SUC$23","v":"00:00:00"},{"$f":"Time!SUD$23","v":"00:00:00"},{"$f":"Time!SUE$23","v":"00:00:00"},{"$f":"Time!SUF$23","v":"00:00:00"},{"$f":"Time!SUG$23","v":"00:00:00"},{"$f":"Time!SUH$23","v":"00:00:00"},{"$f":"Time!SUI$23","v":"00:00:00"},{"$f":"Time!SUJ$23","v":"00:00:00"},{"$f":"Time!SUK$23","v":"00:00:00"},{"$f":"Time!SUL$23","v":"00:00:00"},{"$f":"Time!SUM$23","v":"00:00:00"},{"$f":"Time!SUN$23","v":"00:00:00"},{"$f":"Time!SUO$23","v":"00:00:00"},{"$f":"Time!SUP$23","v":"00:00:00"},{"$f":"Time!SUQ$23","v":"00:00:00"},{"$f":"Time!SUR$23","v":"00:00:00"},{"$f":"Time!SUS$23","v":"00:00:00"},{"$f":"Time!SUT$23","v":"00:00:00"},{"$f":"Time!SUU$23","v":"00:00:00"},{"$f":"Time!SUV$23","v":"00:00:00"},{"$f":"Time!SUW$23","v":"00:00:00"},{"$f":"Time!SUX$23","v":"00:00:00"},{"$f":"Time!SUY$23","v":"00:00:00"},{"$f":"Time!SUZ$23","v":"00:00:00"},{"$f":"Time!SVA$23","v":"00:00:00"},{"$f":"Time!SVB$23","v":"00:00:00"},{"$f":"Time!SVC$23","v":"00:00:00"},{"$f":"Time!SVD$23","v":"00:00:00"},{"$f":"Time!SVE$23","v":"00:00:00"},{"$f":"Time!SVF$23","v":"00:00:00"},{"$f":"Time!SVG$23","v":"00:00:00"},{"$f":"Time!SVH$23","v":"00:00:00"},{"$f":"Time!SVI$23","v":"00:00:00"},{"$f":"Time!SVJ$23","v":"00:00:00"},{"$f":"Time!SVK$23","v":"00:00:00"},{"$f":"Time!SVL$23","v":"00:00:00"},{"$f":"Time!SVM$23","v":"00:00:00"},{"$f":"Time!SVN$23","v":"00:00:00"},{"$f":"Time!SVO$23","v":"00:00:00"},{"$f":"Time!SVP$23","v":"00:00:00"},{"$f":"Time!SVQ$23","v":"00:00:00"},{"$f":"Time!SVR$23","v":"00:00:00"},{"$f":"Time!SVS$23","v":"00:00:00"},{"$f":"Time!SVT$23","v":"00:00:00"},{"$f":"Time!SVU$23","v":"00:00:00"},{"$f":"Time!SVV$23","v":"00:00:00"},{"$f":"Time!SVW$23","v":"00:00:00"},{"$f":"Time!SVX$23","v":"00:00:00"},{"$f":"Time!SVY$23","v":"00:00:00"},{"$f":"Time!SVZ$23","v":"00:00:00"},{"$f":"Time!SWA$23","v":"00:00:00"},{"$f":"Time!SWB$23","v":"00:00:00"},{"$f":"Time!SWC$23","v":"00:00:00"},{"$f":"Time!SWD$23","v":"00:00:00"},{"$f":"Time!SWE$23","v":"00:00:00"},{"$f":"Time!SWF$23","v":"00:00:00"},{"$f":"Time!SWG$23","v":"00:00:00"},{"$f":"Time!SWH$23","v":"00:00:00"},{"$f":"Time!SWI$23","v":"00:00:00"},{"$f":"Time!SWJ$23","v":"00:00:00"},{"$f":"Time!SWK$23","v":"00:00:00"},{"$f":"Time!SWL$23","v":"00:00:00"},{"$f":"Time!SWM$23","v":"00:00:00"},{"$f":"Time!SWN$23","v":"00:00:00"},{"$f":"Time!SWO$23","v":"00:00:00"},{"$f":"Time!SWP$23","v":"00:00:00"},{"$f":"Time!SWQ$23","v":"00:00:00"},{"$f":"Time!SWR$23","v":"00:00:00"},{"$f":"Time!SWS$23","v":"00:00:00"},{"$f":"Time!SWT$23","v":"00:00:00"},{"$f":"Time!SWU$23","v":"00:00:00"},{"$f":"Time!SWV$23","v":"00:00:00"},{"$f":"Time!SWW$23","v":"00:00:00"},{"$f":"Time!SWX$23","v":"00:00:00"},{"$f":"Time!SWY$23","v":"00:00:00"},{"$f":"Time!SWZ$23","v":"00:00:00"},{"$f":"Time!SXA$23","v":"00:00:00"},{"$f":"Time!SXB$23","v":"00:00:00"},{"$f":"Time!SXC$23","v":"00:00:00"},{"$f":"Time!SXD$23","v":"00:00:00"},{"$f":"Time!SXE$23","v":"00:00:00"},{"$f":"Time!SXF$23","v":"00:00:00"},{"$f":"Time!SXG$23","v":"00:00:00"},{"$f":"Time!SXH$23","v":"00:00:00"},{"$f":"Time!SXI$23","v":"00:00:00"},{"$f":"Time!SXJ$23","v":"00:00:00"},{"$f":"Time!SXK$23","v":"00:00:00"},{"$f":"Time!SXL$23","v":"00:00:00"},{"$f":"Time!SXM$23","v":"00:00:00"},{"$f":"Time!SXN$23","v":"00:00:00"},{"$f":"Time!SXO$23","v":"00:00:00"},{"$f":"Time!SXP$23","v":"00:00:00"},{"$f":"Time!SXQ$23","v":"00:00:00"},{"$f":"Time!SXR$23","v":"00:00:00"},{"$f":"Time!SXS$23","v":"00:00:00"},{"$f":"Time!SXT$23","v":"00:00:00"},{"$f":"Time!SXU$23","v":"00:00:00"},{"$f":"Time!SXV$23","v":"00:00:00"},{"$f":"Time!SXW$23","v":"00:00:00"},{"$f":"Time!SXX$23","v":"00:00:00"},{"$f":"Time!SXY$23","v":"00:00:00"},{"$f":"Time!SXZ$23","v":"00:00:00"},{"$f":"Time!SYA$23","v":"00:00:00"},{"$f":"Time!SYB$23","v":"00:00:00"},{"$f":"Time!SYC$23","v":"00:00:00"},{"$f":"Time!SYD$23","v":"00:00:00"},{"$f":"Time!SYE$23","v":"00:00:00"},{"$f":"Time!SYF$23","v":"00:00:00"},{"$f":"Time!SYG$23","v":"00:00:00"},{"$f":"Time!SYH$23","v":"00:00:00"},{"$f":"Time!SYI$23","v":"00:00:00"},{"$f":"Time!SYJ$23","v":"00:00:00"},{"$f":"Time!SYK$23","v":"00:00:00"},{"$f":"Time!SYL$23","v":"00:00:00"},{"$f":"Time!SYM$23","v":"00:00:00"},{"$f":"Time!SYN$23","v":"00:00:00"},{"$f":"Time!SYO$23","v":"00:00:00"},{"$f":"Time!SYP$23","v":"00:00:00"},{"$f":"Time!SYQ$23","v":"00:00:00"},{"$f":"Time!SYR$23","v":"00:00:00"},{"$f":"Time!SYS$23","v":"00:00:00"},{"$f":"Time!SYT$23","v":"00:00:00"},{"$f":"Time!SYU$23","v":"00:00:00"},{"$f":"Time!SYV$23","v":"00:00:00"},{"$f":"Time!SYW$23","v":"00:00:00"},{"$f":"Time!SYX$23","v":"00:00:00"},{"$f":"Time!SYY$23","v":"00:00:00"},{"$f":"Time!SYZ$23","v":"00:00:00"},{"$f":"Time!SZA$23","v":"00:00:00"},{"$f":"Time!SZB$23","v":"00:00:00"},{"$f":"Time!SZC$23","v":"00:00:00"},{"$f":"Time!SZD$23","v":"00:00:00"},{"$f":"Time!SZE$23","v":"00:00:00"},{"$f":"Time!SZF$23","v":"00:00:00"},{"$f":"Time!SZG$23","v":"00:00:00"},{"$f":"Time!SZH$23","v":"00:00:00"},{"$f":"Time!SZI$23","v":"00:00:00"},{"$f":"Time!SZJ$23","v":"00:00:00"},{"$f":"Time!SZK$23","v":"00:00:00"},{"$f":"Time!SZL$23","v":"00:00:00"},{"$f":"Time!SZM$23","v":"00:00:00"},{"$f":"Time!SZN$23","v":"00:00:00"},{"$f":"Time!SZO$23","v":"00:00:00"},{"$f":"Time!SZP$23","v":"00:00:00"},{"$f":"Time!SZQ$23","v":"00:00:00"},{"$f":"Time!SZR$23","v":"00:00:00"},{"$f":"Time!SZS$23","v":"00:00:00"},{"$f":"Time!SZT$23","v":"00:00:00"},{"$f":"Time!SZU$23","v":"00:00:00"},{"$f":"Time!SZV$23","v":"00:00:00"},{"$f":"Time!SZW$23","v":"00:00:00"},{"$f":"Time!SZX$23","v":"00:00:00"},{"$f":"Time!SZY$23","v":"00:00:00"},{"$f":"Time!SZZ$23","v":"00:00:00"},{"$f":"Time!TAA$23","v":"00:00:00"},{"$f":"Time!TAB$23","v":"00:00:00"},{"$f":"Time!TAC$23","v":"00:00:00"},{"$f":"Time!TAD$23","v":"00:00:00"},{"$f":"Time!TAE$23","v":"00:00:00"},{"$f":"Time!TAF$23","v":"00:00:00"},{"$f":"Time!TAG$23","v":"00:00:00"},{"$f":"Time!TAH$23","v":"00:00:00"},{"$f":"Time!TAI$23","v":"00:00:00"},{"$f":"Time!TAJ$23","v":"00:00:00"},{"$f":"Time!TAK$23","v":"00:00:00"},{"$f":"Time!TAL$23","v":"00:00:00"},{"$f":"Time!TAM$23","v":"00:00:00"},{"$f":"Time!TAN$23","v":"00:00:00"},{"$f":"Time!TAO$23","v":"00:00:00"},{"$f":"Time!TAP$23","v":"00:00:00"},{"$f":"Time!TAQ$23","v":"00:00:00"},{"$f":"Time!TAR$23","v":"00:00:00"},{"$f":"Time!TAS$23","v":"00:00:00"},{"$f":"Time!TAT$23","v":"00:00:00"},{"$f":"Time!TAU$23","v":"00:00:00"},{"$f":"Time!TAV$23","v":"00:00:00"},{"$f":"Time!TAW$23","v":"00:00:00"},{"$f":"Time!TAX$23","v":"00:00:00"},{"$f":"Time!TAY$23","v":"00:00:00"},{"$f":"Time!TAZ$23","v":"00:00:00"},{"$f":"Time!TBA$23","v":"00:00:00"},{"$f":"Time!TBB$23","v":"00:00:00"},{"$f":"Time!TBC$23","v":"00:00:00"},{"$f":"Time!TBD$23","v":"00:00:00"},{"$f":"Time!TBE$23","v":"00:00:00"},{"$f":"Time!TBF$23","v":"00:00:00"},{"$f":"Time!TBG$23","v":"00:00:00"},{"$f":"Time!TBH$23","v":"00:00:00"},{"$f":"Time!TBI$23","v":"00:00:00"},{"$f":"Time!TBJ$23","v":"00:00:00"},{"$f":"Time!TBK$23","v":"00:00:00"},{"$f":"Time!TBL$23","v":"00:00:00"},{"$f":"Time!TBM$23","v":"00:00:00"},{"$f":"Time!TBN$23","v":"00:00:00"},{"$f":"Time!TBO$23","v":"00:00:00"},{"$f":"Time!TBP$23","v":"00:00:00"},{"$f":"Time!TBQ$23","v":"00:00:00"},{"$f":"Time!TBR$23","v":"00:00:00"},{"$f":"Time!TBS$23","v":"00:00:00"},{"$f":"Time!TBT$23","v":"00:00:00"},{"$f":"Time!TBU$23","v":"00:00:00"},{"$f":"Time!TBV$23","v":"00:00:00"},{"$f":"Time!TBW$23","v":"00:00:00"},{"$f":"Time!TBX$23","v":"00:00:00"},{"$f":"Time!TBY$23","v":"00:00:00"},{"$f":"Time!TBZ$23","v":"00:00:00"},{"$f":"Time!TCA$23","v":"00:00:00"},{"$f":"Time!TCB$23","v":"00:00:00"},{"$f":"Time!TCC$23","v":"00:00:00"},{"$f":"Time!TCD$23","v":"00:00:00"},{"$f":"Time!TCE$23","v":"00:00:00"},{"$f":"Time!TCF$23","v":"00:00:00"},{"$f":"Time!TCG$23","v":"00:00:00"},{"$f":"Time!TCH$23","v":"00:00:00"},{"$f":"Time!TCI$23","v":"00:00:00"},{"$f":"Time!TCJ$23","v":"00:00:00"},{"$f":"Time!TCK$23","v":"00:00:00"},{"$f":"Time!TCL$23","v":"00:00:00"},{"$f":"Time!TCM$23","v":"00:00:00"},{"$f":"Time!TCN$23","v":"00:00:00"},{"$f":"Time!TCO$23","v":"00:00:00"},{"$f":"Time!TCP$23","v":"00:00:00"},{"$f":"Time!TCQ$23","v":"00:00:00"},{"$f":"Time!TCR$23","v":"00:00:00"},{"$f":"Time!TCS$23","v":"00:00:00"},{"$f":"Time!TCT$23","v":"00:00:00"},{"$f":"Time!TCU$23","v":"00:00:00"},{"$f":"Time!TCV$23","v":"00:00:00"},{"$f":"Time!TCW$23","v":"00:00:00"},{"$f":"Time!TCX$23","v":"00:00:00"},{"$f":"Time!TCY$23","v":"00:00:00"},{"$f":"Time!TCZ$23","v":"00:00:00"},{"$f":"Time!TDA$23","v":"00:00:00"},{"$f":"Time!TDB$23","v":"00:00:00"},{"$f":"Time!TDC$23","v":"00:00:00"},{"$f":"Time!TDD$23","v":"00:00:00"},{"$f":"Time!TDE$23","v":"00:00:00"},{"$f":"Time!TDF$23","v":"00:00:00"},{"$f":"Time!TDG$23","v":"00:00:00"},{"$f":"Time!TDH$23","v":"00:00:00"},{"$f":"Time!TDI$23","v":"00:00:00"},{"$f":"Time!TDJ$23","v":"00:00:00"},{"$f":"Time!TDK$23","v":"00:00:00"},{"$f":"Time!TDL$23","v":"00:00:00"},{"$f":"Time!TDM$23","v":"00:00:00"},{"$f":"Time!TDN$23","v":"00:00:00"},{"$f":"Time!TDO$23","v":"00:00:00"},{"$f":"Time!TDP$23","v":"00:00:00"},{"$f":"Time!TDQ$23","v":"00:00:00"},{"$f":"Time!TDR$23","v":"00:00:00"},{"$f":"Time!TDS$23","v":"00:00:00"},{"$f":"Time!TDT$23","v":"00:00:00"},{"$f":"Time!TDU$23","v":"00:00:00"},{"$f":"Time!TDV$23","v":"00:00:00"},{"$f":"Time!TDW$23","v":"00:00:00"},{"$f":"Time!TDX$23","v":"00:00:00"},{"$f":"Time!TDY$23","v":"00:00:00"},{"$f":"Time!TDZ$23","v":"00:00:00"},{"$f":"Time!TEA$23","v":"00:00:00"},{"$f":"Time!TEB$23","v":"00:00:00"},{"$f":"Time!TEC$23","v":"00:00:00"},{"$f":"Time!TED$23","v":"00:00:00"},{"$f":"Time!TEE$23","v":"00:00:00"},{"$f":"Time!TEF$23","v":"00:00:00"},{"$f":"Time!TEG$23","v":"00:00:00"},{"$f":"Time!TEH$23","v":"00:00:00"},{"$f":"Time!TEI$23","v":"00:00:00"},{"$f":"Time!TEJ$23","v":"00:00:00"},{"$f":"Time!TEK$23","v":"00:00:00"},{"$f":"Time!TEL$23","v":"00:00:00"},{"$f":"Time!TEM$23","v":"00:00:00"},{"$f":"Time!TEN$23","v":"00:00:00"},{"$f":"Time!TEO$23","v":"00:00:00"},{"$f":"Time!TEP$23","v":"00:00:00"},{"$f":"Time!TEQ$23","v":"00:00:00"},{"$f":"Time!TER$23","v":"00:00:00"},{"$f":"Time!TES$23","v":"00:00:00"},{"$f":"Time!TET$23","v":"00:00:00"},{"$f":"Time!TEU$23","v":"00:00:00"},{"$f":"Time!TEV$23","v":"00:00:00"},{"$f":"Time!TEW$23","v":"00:00:00"},{"$f":"Time!TEX$23","v":"00:00:00"},{"$f":"Time!TEY$23","v":"00:00:00"},{"$f":"Time!TEZ$23","v":"00:00:00"},{"$f":"Time!TFA$23","v":"00:00:00"},{"$f":"Time!TFB$23","v":"00:00:00"},{"$f":"Time!TFC$23","v":"00:00:00"},{"$f":"Time!TFD$23","v":"00:00:00"},{"$f":"Time!TFE$23","v":"00:00:00"},{"$f":"Time!TFF$23","v":"00:00:00"},{"$f":"Time!TFG$23","v":"00:00:00"},{"$f":"Time!TFH$23","v":"00:00:00"},{"$f":"Time!TFI$23","v":"00:00:00"},{"$f":"Time!TFJ$23","v":"00:00:00"},{"$f":"Time!TFK$23","v":"00:00:00"},{"$f":"Time!TFL$23","v":"00:00:00"},{"$f":"Time!TFM$23","v":"00:00:00"},{"$f":"Time!TFN$23","v":"00:00:00"},{"$f":"Time!TFO$23","v":"00:00:00"},{"$f":"Time!TFP$23","v":"00:00:00"},{"$f":"Time!TFQ$23","v":"00:00:00"},{"$f":"Time!TFR$23","v":"00:00:00"},{"$f":"Time!TFS$23","v":"00:00:00"},{"$f":"Time!TFT$23","v":"00:00:00"},{"$f":"Time!TFU$23","v":"00:00:00"},{"$f":"Time!TFV$23","v":"00:00:00"},{"$f":"Time!TFW$23","v":"00:00:00"},{"$f":"Time!TFX$23","v":"00:00:00"},{"$f":"Time!TFY$23","v":"00:00:00"},{"$f":"Time!TFZ$23","v":"00:00:00"},{"$f":"Time!TGA$23","v":"00:00:00"},{"$f":"Time!TGB$23","v":"00:00:00"},{"$f":"Time!TGC$23","v":"00:00:00"},{"$f":"Time!TGD$23","v":"00:00:00"},{"$f":"Time!TGE$23","v":"00:00:00"},{"$f":"Time!TGF$23","v":"00:00:00"},{"$f":"Time!TGG$23","v":"00:00:00"},{"$f":"Time!TGH$23","v":"00:00:00"},{"$f":"Time!TGI$23","v":"00:00:00"},{"$f":"Time!TGJ$23","v":"00:00:00"},{"$f":"Time!TGK$23","v":"00:00:00"},{"$f":"Time!TGL$23","v":"00:00:00"},{"$f":"Time!TGM$23","v":"00:00:00"},{"$f":"Time!TGN$23","v":"00:00:00"},{"$f":"Time!TGO$23","v":"00:00:00"},{"$f":"Time!TGP$23","v":"00:00:00"},{"$f":"Time!TGQ$23","v":"00:00:00"},{"$f":"Time!TGR$23","v":"00:00:00"},{"$f":"Time!TGS$23","v":"00:00:00"},{"$f":"Time!TGT$23","v":"00:00:00"},{"$f":"Time!TGU$23","v":"00:00:00"},{"$f":"Time!TGV$23","v":"00:00:00"},{"$f":"Time!TGW$23","v":"00:00:00"},{"$f":"Time!TGX$23","v":"00:00:00"},{"$f":"Time!TGY$23","v":"00:00:00"},{"$f":"Time!TGZ$23","v":"00:00:00"},{"$f":"Time!THA$23","v":"00:00:00"},{"$f":"Time!THB$23","v":"00:00:00"},{"$f":"Time!THC$23","v":"00:00:00"},{"$f":"Time!THD$23","v":"00:00:00"},{"$f":"Time!THE$23","v":"00:00:00"},{"$f":"Time!THF$23","v":"00:00:00"},{"$f":"Time!THG$23","v":"00:00:00"},{"$f":"Time!THH$23","v":"00:00:00"},{"$f":"Time!THI$23","v":"00:00:00"},{"$f":"Time!THJ$23","v":"00:00:00"},{"$f":"Time!THK$23","v":"00:00:00"},{"$f":"Time!THL$23","v":"00:00:00"},{"$f":"Time!THM$23","v":"00:00:00"},{"$f":"Time!THN$23","v":"00:00:00"},{"$f":"Time!THO$23","v":"00:00:00"},{"$f":"Time!THP$23","v":"00:00:00"},{"$f":"Time!THQ$23","v":"00:00:00"},{"$f":"Time!THR$23","v":"00:00:00"},{"$f":"Time!THS$23","v":"00:00:00"},{"$f":"Time!THT$23","v":"00:00:00"},{"$f":"Time!THU$23","v":"00:00:00"},{"$f":"Time!THV$23","v":"00:00:00"},{"$f":"Time!THW$23","v":"00:00:00"},{"$f":"Time!THX$23","v":"00:00:00"},{"$f":"Time!THY$23","v":"00:00:00"},{"$f":"Time!THZ$23","v":"00:00:00"},{"$f":"Time!TIA$23","v":"00:00:00"},{"$f":"Time!TIB$23","v":"00:00:00"},{"$f":"Time!TIC$23","v":"00:00:00"},{"$f":"Time!TID$23","v":"00:00:00"},{"$f":"Time!TIE$23","v":"00:00:00"},{"$f":"Time!TIF$23","v":"00:00:00"},{"$f":"Time!TIG$23","v":"00:00:00"},{"$f":"Time!TIH$23","v":"00:00:00"},{"$f":"Time!TII$23","v":"00:00:00"},{"$f":"Time!TIJ$23","v":"00:00:00"},{"$f":"Time!TIK$23","v":"00:00:00"},{"$f":"Time!TIL$23","v":"00:00:00"},{"$f":"Time!TIM$23","v":"00:00:00"},{"$f":"Time!TIN$23","v":"00:00:00"},{"$f":"Time!TIO$23","v":"00:00:00"},{"$f":"Time!TIP$23","v":"00:00:00"},{"$f":"Time!TIQ$23","v":"00:00:00"},{"$f":"Time!TIR$23","v":"00:00:00"},{"$f":"Time!TIS$23","v":"00:00:00"},{"$f":"Time!TIT$23","v":"00:00:00"},{"$f":"Time!TIU$23","v":"00:00:00"},{"$f":"Time!TIV$23","v":"00:00:00"},{"$f":"Time!TIW$23","v":"00:00:00"},{"$f":"Time!TIX$23","v":"00:00:00"},{"$f":"Time!TIY$23","v":"00:00:00"},{"$f":"Time!TIZ$23","v":"00:00:00"},{"$f":"Time!TJA$23","v":"00:00:00"},{"$f":"Time!TJB$23","v":"00:00:00"},{"$f":"Time!TJC$23","v":"00:00:00"},{"$f":"Time!TJD$23","v":"00:00:00"},{"$f":"Time!TJE$23","v":"00:00:00"},{"$f":"Time!TJF$23","v":"00:00:00"},{"$f":"Time!TJG$23","v":"00:00:00"},{"$f":"Time!TJH$23","v":"00:00:00"},{"$f":"Time!TJI$23","v":"00:00:00"},{"$f":"Time!TJJ$23","v":"00:00:00"},{"$f":"Time!TJK$23","v":"00:00:00"},{"$f":"Time!TJL$23","v":"00:00:00"},{"$f":"Time!TJM$23","v":"00:00:00"},{"$f":"Time!TJN$23","v":"00:00:00"},{"$f":"Time!TJO$23","v":"00:00:00"},{"$f":"Time!TJP$23","v":"00:00:00"},{"$f":"Time!TJQ$23","v":"00:00:00"},{"$f":"Time!TJR$23","v":"00:00:00"},{"$f":"Time!TJS$23","v":"00:00:00"},{"$f":"Time!TJT$23","v":"00:00:00"},{"$f":"Time!TJU$23","v":"00:00:00"},{"$f":"Time!TJV$23","v":"00:00:00"},{"$f":"Time!TJW$23","v":"00:00:00"},{"$f":"Time!TJX$23","v":"00:00:00"},{"$f":"Time!TJY$23","v":"00:00:00"},{"$f":"Time!TJZ$23","v":"00:00:00"},{"$f":"Time!TKA$23","v":"00:00:00"},{"$f":"Time!TKB$23","v":"00:00:00"},{"$f":"Time!TKC$23","v":"00:00:00"},{"$f":"Time!TKD$23","v":"00:00:00"},{"$f":"Time!TKE$23","v":"00:00:00"},{"$f":"Time!TKF$23","v":"00:00:00"},{"$f":"Time!TKG$23","v":"00:00:00"},{"$f":"Time!TKH$23","v":"00:00:00"},{"$f":"Time!TKI$23","v":"00:00:00"},{"$f":"Time!TKJ$23","v":"00:00:00"},{"$f":"Time!TKK$23","v":"00:00:00"},{"$f":"Time!TKL$23","v":"00:00:00"},{"$f":"Time!TKM$23","v":"00:00:00"},{"$f":"Time!TKN$23","v":"00:00:00"},{"$f":"Time!TKO$23","v":"00:00:00"},{"$f":"Time!TKP$23","v":"00:00:00"},{"$f":"Time!TKQ$23","v":"00:00:00"},{"$f":"Time!TKR$23","v":"00:00:00"},{"$f":"Time!TKS$23","v":"00:00:00"},{"$f":"Time!TKT$23","v":"00:00:00"},{"$f":"Time!TKU$23","v":"00:00:00"},{"$f":"Time!TKV$23","v":"00:00:00"},{"$f":"Time!TKW$23","v":"00:00:00"},{"$f":"Time!TKX$23","v":"00:00:00"},{"$f":"Time!TKY$23","v":"00:00:00"},{"$f":"Time!TKZ$23","v":"00:00:00"},{"$f":"Time!TLA$23","v":"00:00:00"},{"$f":"Time!TLB$23","v":"00:00:00"},{"$f":"Time!TLC$23","v":"00:00:00"},{"$f":"Time!TLD$23","v":"00:00:00"},{"$f":"Time!TLE$23","v":"00:00:00"},{"$f":"Time!TLF$23","v":"00:00:00"},{"$f":"Time!TLG$23","v":"00:00:00"},{"$f":"Time!TLH$23","v":"00:00:00"},{"$f":"Time!TLI$23","v":"00:00:00"},{"$f":"Time!TLJ$23","v":"00:00:00"},{"$f":"Time!TLK$23","v":"00:00:00"},{"$f":"Time!TLL$23","v":"00:00:00"},{"$f":"Time!TLM$23","v":"00:00:00"},{"$f":"Time!TLN$23","v":"00:00:00"},{"$f":"Time!TLO$23","v":"00:00:00"},{"$f":"Time!TLP$23","v":"00:00:00"},{"$f":"Time!TLQ$23","v":"00:00:00"},{"$f":"Time!TLR$23","v":"00:00:00"},{"$f":"Time!TLS$23","v":"00:00:00"},{"$f":"Time!TLT$23","v":"00:00:00"},{"$f":"Time!TLU$23","v":"00:00:00"},{"$f":"Time!TLV$23","v":"00:00:00"},{"$f":"Time!TLW$23","v":"00:00:00"},{"$f":"Time!TLX$23","v":"00:00:00"},{"$f":"Time!TLY$23","v":"00:00:00"},{"$f":"Time!TLZ$23","v":"00:00:00"},{"$f":"Time!TMA$23","v":"00:00:00"},{"$f":"Time!TMB$23","v":"00:00:00"},{"$f":"Time!TMC$23","v":"00:00:00"},{"$f":"Time!TMD$23","v":"00:00:00"},{"$f":"Time!TME$23","v":"00:00:00"},{"$f":"Time!TMF$23","v":"00:00:00"},{"$f":"Time!TMG$23","v":"00:00:00"},{"$f":"Time!TMH$23","v":"00:00:00"},{"$f":"Time!TMI$23","v":"00:00:00"},{"$f":"Time!TMJ$23","v":"00:00:00"},{"$f":"Time!TMK$23","v":"00:00:00"},{"$f":"Time!TML$23","v":"00:00:00"},{"$f":"Time!TMM$23","v":"00:00:00"},{"$f":"Time!TMN$23","v":"00:00:00"},{"$f":"Time!TMO$23","v":"00:00:00"},{"$f":"Time!TMP$23","v":"00:00:00"},{"$f":"Time!TMQ$23","v":"00:00:00"},{"$f":"Time!TMR$23","v":"00:00:00"},{"$f":"Time!TMS$23","v":"00:00:00"},{"$f":"Time!TMT$23","v":"00:00:00"},{"$f":"Time!TMU$23","v":"00:00:00"},{"$f":"Time!TMV$23","v":"00:00:00"},{"$f":"Time!TMW$23","v":"00:00:00"},{"$f":"Time!TMX$23","v":"00:00:00"},{"$f":"Time!TMY$23","v":"00:00:00"},{"$f":"Time!TMZ$23","v":"00:00:00"},{"$f":"Time!TNA$23","v":"00:00:00"},{"$f":"Time!TNB$23","v":"00:00:00"},{"$f":"Time!TNC$23","v":"00:00:00"},{"$f":"Time!TND$23","v":"00:00:00"},{"$f":"Time!TNE$23","v":"00:00:00"},{"$f":"Time!TNF$23","v":"00:00:00"},{"$f":"Time!TNG$23","v":"00:00:00"},{"$f":"Time!TNH$23","v":"00:00:00"},{"$f":"Time!TNI$23","v":"00:00:00"},{"$f":"Time!TNJ$23","v":"00:00:00"},{"$f":"Time!TNK$23","v":"00:00:00"},{"$f":"Time!TNL$23","v":"00:00:00"},{"$f":"Time!TNM$23","v":"00:00:00"},{"$f":"Time!TNN$23","v":"00:00:00"},{"$f":"Time!TNO$23","v":"00:00:00"},{"$f":"Time!TNP$23","v":"00:00:00"},{"$f":"Time!TNQ$23","v":"00:00:00"},{"$f":"Time!TNR$23","v":"00:00:00"},{"$f":"Time!TNS$23","v":"00:00:00"},{"$f":"Time!TNT$23","v":"00:00:00"},{"$f":"Time!TNU$23","v":"00:00:00"},{"$f":"Time!TNV$23","v":"00:00:00"},{"$f":"Time!TNW$23","v":"00:00:00"},{"$f":"Time!TNX$23","v":"00:00:00"},{"$f":"Time!TNY$23","v":"00:00:00"},{"$f":"Time!TNZ$23","v":"00:00:00"},{"$f":"Time!TOA$23","v":"00:00:00"},{"$f":"Time!TOB$23","v":"00:00:00"},{"$f":"Time!TOC$23","v":"00:00:00"},{"$f":"Time!TOD$23","v":"00:00:00"},{"$f":"Time!TOE$23","v":"00:00:00"},{"$f":"Time!TOF$23","v":"00:00:00"},{"$f":"Time!TOG$23","v":"00:00:00"},{"$f":"Time!TOH$23","v":"00:00:00"},{"$f":"Time!TOI$23","v":"00:00:00"},{"$f":"Time!TOJ$23","v":"00:00:00"},{"$f":"Time!TOK$23","v":"00:00:00"},{"$f":"Time!TOL$23","v":"00:00:00"},{"$f":"Time!TOM$23","v":"00:00:00"},{"$f":"Time!TON$23","v":"00:00:00"},{"$f":"Time!TOO$23","v":"00:00:00"},{"$f":"Time!TOP$23","v":"00:00:00"},{"$f":"Time!TOQ$23","v":"00:00:00"},{"$f":"Time!TOR$23","v":"00:00:00"},{"$f":"Time!TOS$23","v":"00:00:00"},{"$f":"Time!TOT$23","v":"00:00:00"},{"$f":"Time!TOU$23","v":"00:00:00"},{"$f":"Time!TOV$23","v":"00:00:00"},{"$f":"Time!TOW$23","v":"00:00:00"},{"$f":"Time!TOX$23","v":"00:00:00"},{"$f":"Time!TOY$23","v":"00:00:00"},{"$f":"Time!TOZ$23","v":"00:00:00"},{"$f":"Time!TPA$23","v":"00:00:00"},{"$f":"Time!TPB$23","v":"00:00:00"},{"$f":"Time!TPC$23","v":"00:00:00"},{"$f":"Time!TPD$23","v":"00:00:00"},{"$f":"Time!TPE$23","v":"00:00:00"},{"$f":"Time!TPF$23","v":"00:00:00"},{"$f":"Time!TPG$23","v":"00:00:00"},{"$f":"Time!TPH$23","v":"00:00:00"},{"$f":"Time!TPI$23","v":"00:00:00"},{"$f":"Time!TPJ$23","v":"00:00:00"},{"$f":"Time!TPK$23","v":"00:00:00"},{"$f":"Time!TPL$23","v":"00:00:00"},{"$f":"Time!TPM$23","v":"00:00:00"},{"$f":"Time!TPN$23","v":"00:00:00"},{"$f":"Time!TPO$23","v":"00:00:00"},{"$f":"Time!TPP$23","v":"00:00:00"},{"$f":"Time!TPQ$23","v":"00:00:00"},{"$f":"Time!TPR$23","v":"00:00:00"},{"$f":"Time!TPS$23","v":"00:00:00"},{"$f":"Time!TPT$23","v":"00:00:00"},{"$f":"Time!TPU$23","v":"00:00:00"},{"$f":"Time!TPV$23","v":"00:00:00"},{"$f":"Time!TPW$23","v":"00:00:00"},{"$f":"Time!TPX$23","v":"00:00:00"},{"$f":"Time!TPY$23","v":"00:00:00"},{"$f":"Time!TPZ$23","v":"00:00:00"},{"$f":"Time!TQA$23","v":"00:00:00"},{"$f":"Time!TQB$23","v":"00:00:00"},{"$f":"Time!TQC$23","v":"00:00:00"},{"$f":"Time!TQD$23","v":"00:00:00"},{"$f":"Time!TQE$23","v":"00:00:00"},{"$f":"Time!TQF$23","v":"00:00:00"},{"$f":"Time!TQG$23","v":"00:00:00"},{"$f":"Time!TQH$23","v":"00:00:00"},{"$f":"Time!TQI$23","v":"00:00:00"},{"$f":"Time!TQJ$23","v":"00:00:00"},{"$f":"Time!TQK$23","v":"00:00:00"},{"$f":"Time!TQL$23","v":"00:00:00"},{"$f":"Time!TQM$23","v":"00:00:00"},{"$f":"Time!TQN$23","v":"00:00:00"},{"$f":"Time!TQO$23","v":"00:00:00"},{"$f":"Time!TQP$23","v":"00:00:00"},{"$f":"Time!TQQ$23","v":"00:00:00"},{"$f":"Time!TQR$23","v":"00:00:00"},{"$f":"Time!TQS$23","v":"00:00:00"},{"$f":"Time!TQT$23","v":"00:00:00"},{"$f":"Time!TQU$23","v":"00:00:00"},{"$f":"Time!TQV$23","v":"00:00:00"},{"$f":"Time!TQW$23","v":"00:00:00"},{"$f":"Time!TQX$23","v":"00:00:00"},{"$f":"Time!TQY$23","v":"00:00:00"},{"$f":"Time!TQZ$23","v":"00:00:00"},{"$f":"Time!TRA$23","v":"00:00:00"},{"$f":"Time!TRB$23","v":"00:00:00"},{"$f":"Time!TRC$23","v":"00:00:00"},{"$f":"Time!TRD$23","v":"00:00:00"},{"$f":"Time!TRE$23","v":"00:00:00"},{"$f":"Time!TRF$23","v":"00:00:00"},{"$f":"Time!TRG$23","v":"00:00:00"},{"$f":"Time!TRH$23","v":"00:00:00"},{"$f":"Time!TRI$23","v":"00:00:00"},{"$f":"Time!TRJ$23","v":"00:00:00"},{"$f":"Time!TRK$23","v":"00:00:00"},{"$f":"Time!TRL$23","v":"00:00:00"},{"$f":"Time!TRM$23","v":"00:00:00"},{"$f":"Time!TRN$23","v":"00:00:00"},{"$f":"Time!TRO$23","v":"00:00:00"},{"$f":"Time!TRP$23","v":"00:00:00"},{"$f":"Time!TRQ$23","v":"00:00:00"},{"$f":"Time!TRR$23","v":"00:00:00"},{"$f":"Time!TRS$23","v":"00:00:00"},{"$f":"Time!TRT$23","v":"00:00:00"},{"$f":"Time!TRU$23","v":"00:00:00"},{"$f":"Time!TRV$23","v":"00:00:00"},{"$f":"Time!TRW$23","v":"00:00:00"},{"$f":"Time!TRX$23","v":"00:00:00"},{"$f":"Time!TRY$23","v":"00:00:00"},{"$f":"Time!TRZ$23","v":"00:00:00"},{"$f":"Time!TSA$23","v":"00:00:00"},{"$f":"Time!TSB$23","v":"00:00:00"},{"$f":"Time!TSC$23","v":"00:00:00"},{"$f":"Time!TSD$23","v":"00:00:00"},{"$f":"Time!TSE$23","v":"00:00:00"},{"$f":"Time!TSF$23","v":"00:00:00"},{"$f":"Time!TSG$23","v":"00:00:00"},{"$f":"Time!TSH$23","v":"00:00:00"},{"$f":"Time!TSI$23","v":"00:00:00"},{"$f":"Time!TSJ$23","v":"00:00:00"},{"$f":"Time!TSK$23","v":"00:00:00"},{"$f":"Time!TSL$23","v":"00:00:00"},{"$f":"Time!TSM$23","v":"00:00:00"},{"$f":"Time!TSN$23","v":"00:00:00"},{"$f":"Time!TSO$23","v":"00:00:00"},{"$f":"Time!TSP$23","v":"00:00:00"},{"$f":"Time!TSQ$23","v":"00:00:00"},{"$f":"Time!TSR$23","v":"00:00:00"},{"$f":"Time!TSS$23","v":"00:00:00"},{"$f":"Time!TST$23","v":"00:00:00"},{"$f":"Time!TSU$23","v":"00:00:00"},{"$f":"Time!TSV$23","v":"00:00:00"},{"$f":"Time!TSW$23","v":"00:00:00"},{"$f":"Time!TSX$23","v":"00:00:00"},{"$f":"Time!TSY$23","v":"00:00:00"},{"$f":"Time!TSZ$23","v":"00:00:00"},{"$f":"Time!TTA$23","v":"00:00:00"},{"$f":"Time!TTB$23","v":"00:00:00"},{"$f":"Time!TTC$23","v":"00:00:00"},{"$f":"Time!TTD$23","v":"00:00:00"},{"$f":"Time!TTE$23","v":"00:00:00"},{"$f":"Time!TTF$23","v":"00:00:00"},{"$f":"Time!TTG$23","v":"00:00:00"},{"$f":"Time!TTH$23","v":"00:00:00"},{"$f":"Time!TTI$23","v":"00:00:00"},{"$f":"Time!TTJ$23","v":"00:00:00"},{"$f":"Time!TTK$23","v":"00:00:00"},{"$f":"Time!TTL$23","v":"00:00:00"},{"$f":"Time!TTM$23","v":"00:00:00"},{"$f":"Time!TTN$23","v":"00:00:00"},{"$f":"Time!TTO$23","v":"00:00:00"},{"$f":"Time!TTP$23","v":"00:00:00"},{"$f":"Time!TTQ$23","v":"00:00:00"},{"$f":"Time!TTR$23","v":"00:00:00"},{"$f":"Time!TTS$23","v":"00:00:00"},{"$f":"Time!TTT$23","v":"00:00:00"},{"$f":"Time!TTU$23","v":"00:00:00"},{"$f":"Time!TTV$23","v":"00:00:00"},{"$f":"Time!TTW$23","v":"00:00:00"},{"$f":"Time!TTX$23","v":"00:00:00"},{"$f":"Time!TTY$23","v":"00:00:00"},{"$f":"Time!TTZ$23","v":"00:00:00"},{"$f":"Time!TUA$23","v":"00:00:00"},{"$f":"Time!TUB$23","v":"00:00:00"},{"$f":"Time!TUC$23","v":"00:00:00"},{"$f":"Time!TUD$23","v":"00:00:00"},{"$f":"Time!TUE$23","v":"00:00:00"},{"$f":"Time!TUF$23","v":"00:00:00"},{"$f":"Time!TUG$23","v":"00:00:00"},{"$f":"Time!TUH$23","v":"00:00:00"},{"$f":"Time!TUI$23","v":"00:00:00"},{"$f":"Time!TUJ$23","v":"00:00:00"},{"$f":"Time!TUK$23","v":"00:00:00"},{"$f":"Time!TUL$23","v":"00:00:00"},{"$f":"Time!TUM$23","v":"00:00:00"},{"$f":"Time!TUN$23","v":"00:00:00"},{"$f":"Time!TUO$23","v":"00:00:00"},{"$f":"Time!TUP$23","v":"00:00:00"},{"$f":"Time!TUQ$23","v":"00:00:00"},{"$f":"Time!TUR$23","v":"00:00:00"},{"$f":"Time!TUS$23","v":"00:00:00"},{"$f":"Time!TUT$23","v":"00:00:00"},{"$f":"Time!TUU$23","v":"00:00:00"},{"$f":"Time!TUV$23","v":"00:00:00"},{"$f":"Time!TUW$23","v":"00:00:00"},{"$f":"Time!TUX$23","v":"00:00:00"},{"$f":"Time!TUY$23","v":"00:00:00"},{"$f":"Time!TUZ$23","v":"00:00:00"},{"$f":"Time!TVA$23","v":"00:00:00"},{"$f":"Time!TVB$23","v":"00:00:00"},{"$f":"Time!TVC$23","v":"00:00:00"},{"$f":"Time!TVD$23","v":"00:00:00"},{"$f":"Time!TVE$23","v":"00:00:00"},{"$f":"Time!TVF$23","v":"00:00:00"},{"$f":"Time!TVG$23","v":"00:00:00"},{"$f":"Time!TVH$23","v":"00:00:00"},{"$f":"Time!TVI$23","v":"00:00:00"},{"$f":"Time!TVJ$23","v":"00:00:00"},{"$f":"Time!TVK$23","v":"00:00:00"},{"$f":"Time!TVL$23","v":"00:00:00"},{"$f":"Time!TVM$23","v":"00:00:00"},{"$f":"Time!TVN$23","v":"00:00:00"},{"$f":"Time!TVO$23","v":"00:00:00"},{"$f":"Time!TVP$23","v":"00:00:00"},{"$f":"Time!TVQ$23","v":"00:00:00"},{"$f":"Time!TVR$23","v":"00:00:00"},{"$f":"Time!TVS$23","v":"00:00:00"},{"$f":"Time!TVT$23","v":"00:00:00"},{"$f":"Time!TVU$23","v":"00:00:00"},{"$f":"Time!TVV$23","v":"00:00:00"},{"$f":"Time!TVW$23","v":"00:00:00"},{"$f":"Time!TVX$23","v":"00:00:00"},{"$f":"Time!TVY$23","v":"00:00:00"},{"$f":"Time!TVZ$23","v":"00:00:00"},{"$f":"Time!TWA$23","v":"00:00:00"},{"$f":"Time!TWB$23","v":"00:00:00"},{"$f":"Time!TWC$23","v":"00:00:00"},{"$f":"Time!TWD$23","v":"00:00:00"},{"$f":"Time!TWE$23","v":"00:00:00"},{"$f":"Time!TWF$23","v":"00:00:00"},{"$f":"Time!TWG$23","v":"00:00:00"},{"$f":"Time!TWH$23","v":"00:00:00"},{"$f":"Time!TWI$23","v":"00:00:00"},{"$f":"Time!TWJ$23","v":"00:00:00"},{"$f":"Time!TWK$23","v":"00:00:00"},{"$f":"Time!TWL$23","v":"00:00:00"},{"$f":"Time!TWM$23","v":"00:00:00"},{"$f":"Time!TWN$23","v":"00:00:00"},{"$f":"Time!TWO$23","v":"00:00:00"},{"$f":"Time!TWP$23","v":"00:00:00"},{"$f":"Time!TWQ$23","v":"00:00:00"},{"$f":"Time!TWR$23","v":"00:00:00"},{"$f":"Time!TWS$23","v":"00:00:00"},{"$f":"Time!TWT$23","v":"00:00:00"},{"$f":"Time!TWU$23","v":"00:00:00"},{"$f":"Time!TWV$23","v":"00:00:00"},{"$f":"Time!TWW$23","v":"00:00:00"},{"$f":"Time!TWX$23","v":"00:00:00"},{"$f":"Time!TWY$23","v":"00:00:00"},{"$f":"Time!TWZ$23","v":"00:00:00"},{"$f":"Time!TXA$23","v":"00:00:00"},{"$f":"Time!TXB$23","v":"00:00:00"},{"$f":"Time!TXC$23","v":"00:00:00"},{"$f":"Time!TXD$23","v":"00:00:00"},{"$f":"Time!TXE$23","v":"00:00:00"},{"$f":"Time!TXF$23","v":"00:00:00"},{"$f":"Time!TXG$23","v":"00:00:00"},{"$f":"Time!TXH$23","v":"00:00:00"},{"$f":"Time!TXI$23","v":"00:00:00"},{"$f":"Time!TXJ$23","v":"00:00:00"},{"$f":"Time!TXK$23","v":"00:00:00"},{"$f":"Time!TXL$23","v":"00:00:00"},{"$f":"Time!TXM$23","v":"00:00:00"},{"$f":"Time!TXN$23","v":"00:00:00"},{"$f":"Time!TXO$23","v":"00:00:00"},{"$f":"Time!TXP$23","v":"00:00:00"},{"$f":"Time!TXQ$23","v":"00:00:00"},{"$f":"Time!TXR$23","v":"00:00:00"},{"$f":"Time!TXS$23","v":"00:00:00"},{"$f":"Time!TXT$23","v":"00:00:00"},{"$f":"Time!TXU$23","v":"00:00:00"},{"$f":"Time!TXV$23","v":"00:00:00"},{"$f":"Time!TXW$23","v":"00:00:00"},{"$f":"Time!TXX$23","v":"00:00:00"},{"$f":"Time!TXY$23","v":"00:00:00"},{"$f":"Time!TXZ$23","v":"00:00:00"},{"$f":"Time!TYA$23","v":"00:00:00"},{"$f":"Time!TYB$23","v":"00:00:00"},{"$f":"Time!TYC$23","v":"00:00:00"},{"$f":"Time!TYD$23","v":"00:00:00"},{"$f":"Time!TYE$23","v":"00:00:00"},{"$f":"Time!TYF$23","v":"00:00:00"},{"$f":"Time!TYG$23","v":"00:00:00"},{"$f":"Time!TYH$23","v":"00:00:00"},{"$f":"Time!TYI$23","v":"00:00:00"},{"$f":"Time!TYJ$23","v":"00:00:00"},{"$f":"Time!TYK$23","v":"00:00:00"},{"$f":"Time!TYL$23","v":"00:00:00"},{"$f":"Time!TYM$23","v":"00:00:00"},{"$f":"Time!TYN$23","v":"00:00:00"},{"$f":"Time!TYO$23","v":"00:00:00"},{"$f":"Time!TYP$23","v":"00:00:00"},{"$f":"Time!TYQ$23","v":"00:00:00"},{"$f":"Time!TYR$23","v":"00:00:00"},{"$f":"Time!TYS$23","v":"00:00:00"},{"$f":"Time!TYT$23","v":"00:00:00"},{"$f":"Time!TYU$23","v":"00:00:00"},{"$f":"Time!TYV$23","v":"00:00:00"},{"$f":"Time!TYW$23","v":"00:00:00"},{"$f":"Time!TYX$23","v":"00:00:00"},{"$f":"Time!TYY$23","v":"00:00:00"},{"$f":"Time!TYZ$23","v":"00:00:00"},{"$f":"Time!TZA$23","v":"00:00:00"},{"$f":"Time!TZB$23","v":"00:00:00"},{"$f":"Time!TZC$23","v":"00:00:00"},{"$f":"Time!TZD$23","v":"00:00:00"},{"$f":"Time!TZE$23","v":"00:00:00"},{"$f":"Time!TZF$23","v":"00:00:00"},{"$f":"Time!TZG$23","v":"00:00:00"},{"$f":"Time!TZH$23","v":"00:00:00"},{"$f":"Time!TZI$23","v":"00:00:00"},{"$f":"Time!TZJ$23","v":"00:00:00"},{"$f":"Time!TZK$23","v":"00:00:00"},{"$f":"Time!TZL$23","v":"00:00:00"},{"$f":"Time!TZM$23","v":"00:00:00"},{"$f":"Time!TZN$23","v":"00:00:00"},{"$f":"Time!TZO$23","v":"00:00:00"},{"$f":"Time!TZP$23","v":"00:00:00"},{"$f":"Time!TZQ$23","v":"00:00:00"},{"$f":"Time!TZR$23","v":"00:00:00"},{"$f":"Time!TZS$23","v":"00:00:00"},{"$f":"Time!TZT$23","v":"00:00:00"},{"$f":"Time!TZU$23","v":"00:00:00"},{"$f":"Time!TZV$23","v":"00:00:00"},{"$f":"Time!TZW$23","v":"00:00:00"},{"$f":"Time!TZX$23","v":"00:00:00"},{"$f":"Time!TZY$23","v":"00:00:00"},{"$f":"Time!TZZ$23","v":"00:00:00"},{"$f":"Time!UAA$23","v":"00:00:00"},{"$f":"Time!UAB$23","v":"00:00:00"},{"$f":"Time!UAC$23","v":"00:00:00"},{"$f":"Time!UAD$23","v":"00:00:00"},{"$f":"Time!UAE$23","v":"00:00:00"},{"$f":"Time!UAF$23","v":"00:00:00"},{"$f":"Time!UAG$23","v":"00:00:00"},{"$f":"Time!UAH$23","v":"00:00:00"},{"$f":"Time!UAI$23","v":"00:00:00"},{"$f":"Time!UAJ$23","v":"00:00:00"},{"$f":"Time!UAK$23","v":"00:00:00"},{"$f":"Time!UAL$23","v":"00:00:00"},{"$f":"Time!UAM$23","v":"00:00:00"},{"$f":"Time!UAN$23","v":"00:00:00"},{"$f":"Time!UAO$23","v":"00:00:00"},{"$f":"Time!UAP$23","v":"00:00:00"},{"$f":"Time!UAQ$23","v":"00:00:00"},{"$f":"Time!UAR$23","v":"00:00:00"},{"$f":"Time!UAS$23","v":"00:00:00"},{"$f":"Time!UAT$23","v":"00:00:00"},{"$f":"Time!UAU$23","v":"00:00:00"},{"$f":"Time!UAV$23","v":"00:00:00"},{"$f":"Time!UAW$23","v":"00:00:00"},{"$f":"Time!UAX$23","v":"00:00:00"},{"$f":"Time!UAY$23","v":"00:00:00"},{"$f":"Time!UAZ$23","v":"00:00:00"},{"$f":"Time!UBA$23","v":"00:00:00"},{"$f":"Time!UBB$23","v":"00:00:00"},{"$f":"Time!UBC$23","v":"00:00:00"},{"$f":"Time!UBD$23","v":"00:00:00"},{"$f":"Time!UBE$23","v":"00:00:00"},{"$f":"Time!UBF$23","v":"00:00:00"},{"$f":"Time!UBG$23","v":"00:00:00"},{"$f":"Time!UBH$23","v":"00:00:00"},{"$f":"Time!UBI$23","v":"00:00:00"},{"$f":"Time!UBJ$23","v":"00:00:00"},{"$f":"Time!UBK$23","v":"00:00:00"},{"$f":"Time!UBL$23","v":"00:00:00"},{"$f":"Time!UBM$23","v":"00:00:00"},{"$f":"Time!UBN$23","v":"00:00:00"},{"$f":"Time!UBO$23","v":"00:00:00"},{"$f":"Time!UBP$23","v":"00:00:00"},{"$f":"Time!UBQ$23","v":"00:00:00"},{"$f":"Time!UBR$23","v":"00:00:00"},{"$f":"Time!UBS$23","v":"00:00:00"},{"$f":"Time!UBT$23","v":"00:00:00"},{"$f":"Time!UBU$23","v":"00:00:00"},{"$f":"Time!UBV$23","v":"00:00:00"},{"$f":"Time!UBW$23","v":"00:00:00"},{"$f":"Time!UBX$23","v":"00:00:00"},{"$f":"Time!UBY$23","v":"00:00:00"},{"$f":"Time!UBZ$23","v":"00:00:00"},{"$f":"Time!UCA$23","v":"00:00:00"},{"$f":"Time!UCB$23","v":"00:00:00"},{"$f":"Time!UCC$23","v":"00:00:00"},{"$f":"Time!UCD$23","v":"00:00:00"},{"$f":"Time!UCE$23","v":"00:00:00"},{"$f":"Time!UCF$23","v":"00:00:00"},{"$f":"Time!UCG$23","v":"00:00:00"},{"$f":"Time!UCH$23","v":"00:00:00"},{"$f":"Time!UCI$23","v":"00:00:00"},{"$f":"Time!UCJ$23","v":"00:00:00"},{"$f":"Time!UCK$23","v":"00:00:00"},{"$f":"Time!UCL$23","v":"00:00:00"},{"$f":"Time!UCM$23","v":"00:00:00"},{"$f":"Time!UCN$23","v":"00:00:00"},{"$f":"Time!UCO$23","v":"00:00:00"},{"$f":"Time!UCP$23","v":"00:00:00"},{"$f":"Time!UCQ$23","v":"00:00:00"},{"$f":"Time!UCR$23","v":"00:00:00"},{"$f":"Time!UCS$23","v":"00:00:00"},{"$f":"Time!UCT$23","v":"00:00:00"},{"$f":"Time!UCU$23","v":"00:00:00"},{"$f":"Time!UCV$23","v":"00:00:00"},{"$f":"Time!UCW$23","v":"00:00:00"},{"$f":"Time!UCX$23","v":"00:00:00"},{"$f":"Time!UCY$23","v":"00:00:00"},{"$f":"Time!UCZ$23","v":"00:00:00"},{"$f":"Time!UDA$23","v":"00:00:00"},{"$f":"Time!UDB$23","v":"00:00:00"},{"$f":"Time!UDC$23","v":"00:00:00"},{"$f":"Time!UDD$23","v":"00:00:00"},{"$f":"Time!UDE$23","v":"00:00:00"},{"$f":"Time!UDF$23","v":"00:00:00"},{"$f":"Time!UDG$23","v":"00:00:00"},{"$f":"Time!UDH$23","v":"00:00:00"},{"$f":"Time!UDI$23","v":"00:00:00"},{"$f":"Time!UDJ$23","v":"00:00:00"},{"$f":"Time!UDK$23","v":"00:00:00"},{"$f":"Time!UDL$23","v":"00:00:00"},{"$f":"Time!UDM$23","v":"00:00:00"},{"$f":"Time!UDN$23","v":"00:00:00"},{"$f":"Time!UDO$23","v":"00:00:00"},{"$f":"Time!UDP$23","v":"00:00:00"},{"$f":"Time!UDQ$23","v":"00:00:00"},{"$f":"Time!UDR$23","v":"00:00:00"},{"$f":"Time!UDS$23","v":"00:00:00"},{"$f":"Time!UDT$23","v":"00:00:00"},{"$f":"Time!UDU$23","v":"00:00:00"},{"$f":"Time!UDV$23","v":"00:00:00"},{"$f":"Time!UDW$23","v":"00:00:00"},{"$f":"Time!UDX$23","v":"00:00:00"},{"$f":"Time!UDY$23","v":"00:00:00"},{"$f":"Time!UDZ$23","v":"00:00:00"},{"$f":"Time!UEA$23","v":"00:00:00"},{"$f":"Time!UEB$23","v":"00:00:00"},{"$f":"Time!UEC$23","v":"00:00:00"},{"$f":"Time!UED$23","v":"00:00:00"},{"$f":"Time!UEE$23","v":"00:00:00"},{"$f":"Time!UEF$23","v":"00:00:00"},{"$f":"Time!UEG$23","v":"00:00:00"},{"$f":"Time!UEH$23","v":"00:00:00"},{"$f":"Time!UEI$23","v":"00:00:00"},{"$f":"Time!UEJ$23","v":"00:00:00"},{"$f":"Time!UEK$23","v":"00:00:00"},{"$f":"Time!UEL$23","v":"00:00:00"},{"$f":"Time!UEM$23","v":"00:00:00"},{"$f":"Time!UEN$23","v":"00:00:00"},{"$f":"Time!UEO$23","v":"00:00:00"},{"$f":"Time!UEP$23","v":"00:00:00"},{"$f":"Time!UEQ$23","v":"00:00:00"},{"$f":"Time!UER$23","v":"00:00:00"},{"$f":"Time!UES$23","v":"00:00:00"},{"$f":"Time!UET$23","v":"00:00:00"},{"$f":"Time!UEU$23","v":"00:00:00"},{"$f":"Time!UEV$23","v":"00:00:00"},{"$f":"Time!UEW$23","v":"00:00:00"},{"$f":"Time!UEX$23","v":"00:00:00"},{"$f":"Time!UEY$23","v":"00:00:00"},{"$f":"Time!UEZ$23","v":"00:00:00"},{"$f":"Time!UFA$23","v":"00:00:00"},{"$f":"Time!UFB$23","v":"00:00:00"},{"$f":"Time!UFC$23","v":"00:00:00"},{"$f":"Time!UFD$23","v":"00:00:00"},{"$f":"Time!UFE$23","v":"00:00:00"},{"$f":"Time!UFF$23","v":"00:00:00"},{"$f":"Time!UFG$23","v":"00:00:00"},{"$f":"Time!UFH$23","v":"00:00:00"},{"$f":"Time!UFI$23","v":"00:00:00"},{"$f":"Time!UFJ$23","v":"00:00:00"},{"$f":"Time!UFK$23","v":"00:00:00"},{"$f":"Time!UFL$23","v":"00:00:00"},{"$f":"Time!UFM$23","v":"00:00:00"},{"$f":"Time!UFN$23","v":"00:00:00"},{"$f":"Time!UFO$23","v":"00:00:00"},{"$f":"Time!UFP$23","v":"00:00:00"},{"$f":"Time!UFQ$23","v":"00:00:00"},{"$f":"Time!UFR$23","v":"00:00:00"},{"$f":"Time!UFS$23","v":"00:00:00"},{"$f":"Time!UFT$23","v":"00:00:00"},{"$f":"Time!UFU$23","v":"00:00:00"},{"$f":"Time!UFV$23","v":"00:00:00"},{"$f":"Time!UFW$23","v":"00:00:00"},{"$f":"Time!UFX$23","v":"00:00:00"},{"$f":"Time!UFY$23","v":"00:00:00"},{"$f":"Time!UFZ$23","v":"00:00:00"},{"$f":"Time!UGA$23","v":"00:00:00"},{"$f":"Time!UGB$23","v":"00:00:00"},{"$f":"Time!UGC$23","v":"00:00:00"},{"$f":"Time!UGD$23","v":"00:00:00"},{"$f":"Time!UGE$23","v":"00:00:00"},{"$f":"Time!UGF$23","v":"00:00:00"},{"$f":"Time!UGG$23","v":"00:00:00"},{"$f":"Time!UGH$23","v":"00:00:00"},{"$f":"Time!UGI$23","v":"00:00:00"},{"$f":"Time!UGJ$23","v":"00:00:00"},{"$f":"Time!UGK$23","v":"00:00:00"},{"$f":"Time!UGL$23","v":"00:00:00"},{"$f":"Time!UGM$23","v":"00:00:00"},{"$f":"Time!UGN$23","v":"00:00:00"},{"$f":"Time!UGO$23","v":"00:00:00"},{"$f":"Time!UGP$23","v":"00:00:00"},{"$f":"Time!UGQ$23","v":"00:00:00"},{"$f":"Time!UGR$23","v":"00:00:00"},{"$f":"Time!UGS$23","v":"00:00:00"},{"$f":"Time!UGT$23","v":"00:00:00"},{"$f":"Time!UGU$23","v":"00:00:00"},{"$f":"Time!UGV$23","v":"00:00:00"},{"$f":"Time!UGW$23","v":"00:00:00"},{"$f":"Time!UGX$23","v":"00:00:00"},{"$f":"Time!UGY$23","v":"00:00:00"},{"$f":"Time!UGZ$23","v":"00:00:00"},{"$f":"Time!UHA$23","v":"00:00:00"},{"$f":"Time!UHB$23","v":"00:00:00"},{"$f":"Time!UHC$23","v":"00:00:00"},{"$f":"Time!UHD$23","v":"00:00:00"},{"$f":"Time!UHE$23","v":"00:00:00"},{"$f":"Time!UHF$23","v":"00:00:00"},{"$f":"Time!UHG$23","v":"00:00:00"},{"$f":"Time!UHH$23","v":"00:00:00"},{"$f":"Time!UHI$23","v":"00:00:00"},{"$f":"Time!UHJ$23","v":"00:00:00"},{"$f":"Time!UHK$23","v":"00:00:00"},{"$f":"Time!UHL$23","v":"00:00:00"},{"$f":"Time!UHM$23","v":"00:00:00"},{"$f":"Time!UHN$23","v":"00:00:00"},{"$f":"Time!UHO$23","v":"00:00:00"},{"$f":"Time!UHP$23","v":"00:00:00"},{"$f":"Time!UHQ$23","v":"00:00:00"},{"$f":"Time!UHR$23","v":"00:00:00"},{"$f":"Time!UHS$23","v":"00:00:00"},{"$f":"Time!UHT$23","v":"00:00:00"},{"$f":"Time!UHU$23","v":"00:00:00"},{"$f":"Time!UHV$23","v":"00:00:00"},{"$f":"Time!UHW$23","v":"00:00:00"},{"$f":"Time!UHX$23","v":"00:00:00"},{"$f":"Time!UHY$23","v":"00:00:00"},{"$f":"Time!UHZ$23","v":"00:00:00"},{"$f":"Time!UIA$23","v":"00:00:00"},{"$f":"Time!UIB$23","v":"00:00:00"},{"$f":"Time!UIC$23","v":"00:00:00"},{"$f":"Time!UID$23","v":"00:00:00"},{"$f":"Time!UIE$23","v":"00:00:00"},{"$f":"Time!UIF$23","v":"00:00:00"},{"$f":"Time!UIG$23","v":"00:00:00"},{"$f":"Time!UIH$23","v":"00:00:00"},{"$f":"Time!UII$23","v":"00:00:00"},{"$f":"Time!UIJ$23","v":"00:00:00"},{"$f":"Time!UIK$23","v":"00:00:00"},{"$f":"Time!UIL$23","v":"00:00:00"},{"$f":"Time!UIM$23","v":"00:00:00"},{"$f":"Time!UIN$23","v":"00:00:00"},{"$f":"Time!UIO$23","v":"00:00:00"},{"$f":"Time!UIP$23","v":"00:00:00"},{"$f":"Time!UIQ$23","v":"00:00:00"},{"$f":"Time!UIR$23","v":"00:00:00"},{"$f":"Time!UIS$23","v":"00:00:00"},{"$f":"Time!UIT$23","v":"00:00:00"},{"$f":"Time!UIU$23","v":"00:00:00"},{"$f":"Time!UIV$23","v":"00:00:00"},{"$f":"Time!UIW$23","v":"00:00:00"},{"$f":"Time!UIX$23","v":"00:00:00"},{"$f":"Time!UIY$23","v":"00:00:00"},{"$f":"Time!UIZ$23","v":"00:00:00"},{"$f":"Time!UJA$23","v":"00:00:00"},{"$f":"Time!UJB$23","v":"00:00:00"},{"$f":"Time!UJC$23","v":"00:00:00"},{"$f":"Time!UJD$23","v":"00:00:00"},{"$f":"Time!UJE$23","v":"00:00:00"},{"$f":"Time!UJF$23","v":"00:00:00"},{"$f":"Time!UJG$23","v":"00:00:00"},{"$f":"Time!UJH$23","v":"00:00:00"},{"$f":"Time!UJI$23","v":"00:00:00"},{"$f":"Time!UJJ$23","v":"00:00:00"},{"$f":"Time!UJK$23","v":"00:00:00"},{"$f":"Time!UJL$23","v":"00:00:00"},{"$f":"Time!UJM$23","v":"00:00:00"},{"$f":"Time!UJN$23","v":"00:00:00"},{"$f":"Time!UJO$23","v":"00:00:00"},{"$f":"Time!UJP$23","v":"00:00:00"},{"$f":"Time!UJQ$23","v":"00:00:00"},{"$f":"Time!UJR$23","v":"00:00:00"},{"$f":"Time!UJS$23","v":"00:00:00"},{"$f":"Time!UJT$23","v":"00:00:00"},{"$f":"Time!UJU$23","v":"00:00:00"},{"$f":"Time!UJV$23","v":"00:00:00"},{"$f":"Time!UJW$23","v":"00:00:00"},{"$f":"Time!UJX$23","v":"00:00:00"},{"$f":"Time!UJY$23","v":"00:00:00"},{"$f":"Time!UJZ$23","v":"00:00:00"},{"$f":"Time!UKA$23","v":"00:00:00"},{"$f":"Time!UKB$23","v":"00:00:00"},{"$f":"Time!UKC$23","v":"00:00:00"},{"$f":"Time!UKD$23","v":"00:00:00"},{"$f":"Time!UKE$23","v":"00:00:00"},{"$f":"Time!UKF$23","v":"00:00:00"},{"$f":"Time!UKG$23","v":"00:00:00"},{"$f":"Time!UKH$23","v":"00:00:00"},{"$f":"Time!UKI$23","v":"00:00:00"},{"$f":"Time!UKJ$23","v":"00:00:00"},{"$f":"Time!UKK$23","v":"00:00:00"},{"$f":"Time!UKL$23","v":"00:00:00"},{"$f":"Time!UKM$23","v":"00:00:00"},{"$f":"Time!UKN$23","v":"00:00:00"},{"$f":"Time!UKO$23","v":"00:00:00"},{"$f":"Time!UKP$23","v":"00:00:00"},{"$f":"Time!UKQ$23","v":"00:00:00"},{"$f":"Time!UKR$23","v":"00:00:00"},{"$f":"Time!UKS$23","v":"00:00:00"},{"$f":"Time!UKT$23","v":"00:00:00"},{"$f":"Time!UKU$23","v":"00:00:00"},{"$f":"Time!UKV$23","v":"00:00:00"},{"$f":"Time!UKW$23","v":"00:00:00"},{"$f":"Time!UKX$23","v":"00:00:00"},{"$f":"Time!UKY$23","v":"00:00:00"},{"$f":"Time!UKZ$23","v":"00:00:00"},{"$f":"Time!ULA$23","v":"00:00:00"},{"$f":"Time!ULB$23","v":"00:00:00"},{"$f":"Time!ULC$23","v":"00:00:00"},{"$f":"Time!ULD$23","v":"00:00:00"},{"$f":"Time!ULE$23","v":"00:00:00"},{"$f":"Time!ULF$23","v":"00:00:00"},{"$f":"Time!ULG$23","v":"00:00:00"},{"$f":"Time!ULH$23","v":"00:00:00"},{"$f":"Time!ULI$23","v":"00:00:00"},{"$f":"Time!ULJ$23","v":"00:00:00"},{"$f":"Time!ULK$23","v":"00:00:00"},{"$f":"Time!ULL$23","v":"00:00:00"},{"$f":"Time!ULM$23","v":"00:00:00"},{"$f":"Time!ULN$23","v":"00:00:00"},{"$f":"Time!ULO$23","v":"00:00:00"},{"$f":"Time!ULP$23","v":"00:00:00"},{"$f":"Time!ULQ$23","v":"00:00:00"},{"$f":"Time!ULR$23","v":"00:00:00"},{"$f":"Time!ULS$23","v":"00:00:00"},{"$f":"Time!ULT$23","v":"00:00:00"},{"$f":"Time!ULU$23","v":"00:00:00"},{"$f":"Time!ULV$23","v":"00:00:00"},{"$f":"Time!ULW$23","v":"00:00:00"},{"$f":"Time!ULX$23","v":"00:00:00"},{"$f":"Time!ULY$23","v":"00:00:00"},{"$f":"Time!ULZ$23","v":"00:00:00"},{"$f":"Time!UMA$23","v":"00:00:00"},{"$f":"Time!UMB$23","v":"00:00:00"},{"$f":"Time!UMC$23","v":"00:00:00"},{"$f":"Time!UMD$23","v":"00:00:00"},{"$f":"Time!UME$23","v":"00:00:00"},{"$f":"Time!UMF$23","v":"00:00:00"},{"$f":"Time!UMG$23","v":"00:00:00"},{"$f":"Time!UMH$23","v":"00:00:00"},{"$f":"Time!UMI$23","v":"00:00:00"},{"$f":"Time!UMJ$23","v":"00:00:00"},{"$f":"Time!UMK$23","v":"00:00:00"},{"$f":"Time!UML$23","v":"00:00:00"},{"$f":"Time!UMM$23","v":"00:00:00"},{"$f":"Time!UMN$23","v":"00:00:00"},{"$f":"Time!UMO$23","v":"00:00:00"},{"$f":"Time!UMP$23","v":"00:00:00"},{"$f":"Time!UMQ$23","v":"00:00:00"},{"$f":"Time!UMR$23","v":"00:00:00"},{"$f":"Time!UMS$23","v":"00:00:00"},{"$f":"Time!UMT$23","v":"00:00:00"},{"$f":"Time!UMU$23","v":"00:00:00"},{"$f":"Time!UMV$23","v":"00:00:00"},{"$f":"Time!UMW$23","v":"00:00:00"},{"$f":"Time!UMX$23","v":"00:00:00"},{"$f":"Time!UMY$23","v":"00:00:00"},{"$f":"Time!UMZ$23","v":"00:00:00"},{"$f":"Time!UNA$23","v":"00:00:00"},{"$f":"Time!UNB$23","v":"00:00:00"},{"$f":"Time!UNC$23","v":"00:00:00"},{"$f":"Time!UND$23","v":"00:00:00"},{"$f":"Time!UNE$23","v":"00:00:00"},{"$f":"Time!UNF$23","v":"00:00:00"},{"$f":"Time!UNG$23","v":"00:00:00"},{"$f":"Time!UNH$23","v":"00:00:00"},{"$f":"Time!UNI$23","v":"00:00:00"},{"$f":"Time!UNJ$23","v":"00:00:00"},{"$f":"Time!UNK$23","v":"00:00:00"},{"$f":"Time!UNL$23","v":"00:00:00"},{"$f":"Time!UNM$23","v":"00:00:00"},{"$f":"Time!UNN$23","v":"00:00:00"},{"$f":"Time!UNO$23","v":"00:00:00"},{"$f":"Time!UNP$23","v":"00:00:00"},{"$f":"Time!UNQ$23","v":"00:00:00"},{"$f":"Time!UNR$23","v":"00:00:00"},{"$f":"Time!UNS$23","v":"00:00:00"},{"$f":"Time!UNT$23","v":"00:00:00"},{"$f":"Time!UNU$23","v":"00:00:00"},{"$f":"Time!UNV$23","v":"00:00:00"},{"$f":"Time!UNW$23","v":"00:00:00"},{"$f":"Time!UNX$23","v":"00:00:00"},{"$f":"Time!UNY$23","v":"00:00:00"},{"$f":"Time!UNZ$23","v":"00:00:00"},{"$f":"Time!UOA$23","v":"00:00:00"},{"$f":"Time!UOB$23","v":"00:00:00"},{"$f":"Time!UOC$23","v":"00:00:00"},{"$f":"Time!UOD$23","v":"00:00:00"},{"$f":"Time!UOE$23","v":"00:00:00"},{"$f":"Time!UOF$23","v":"00:00:00"},{"$f":"Time!UOG$23","v":"00:00:00"},{"$f":"Time!UOH$23","v":"00:00:00"},{"$f":"Time!UOI$23","v":"00:00:00"},{"$f":"Time!UOJ$23","v":"00:00:00"},{"$f":"Time!UOK$23","v":"00:00:00"},{"$f":"Time!UOL$23","v":"00:00:00"},{"$f":"Time!UOM$23","v":"00:00:00"},{"$f":"Time!UON$23","v":"00:00:00"},{"$f":"Time!UOO$23","v":"00:00:00"},{"$f":"Time!UOP$23","v":"00:00:00"},{"$f":"Time!UOQ$23","v":"00:00:00"},{"$f":"Time!UOR$23","v":"00:00:00"},{"$f":"Time!UOS$23","v":"00:00:00"},{"$f":"Time!UOT$23","v":"00:00:00"},{"$f":"Time!UOU$23","v":"00:00:00"},{"$f":"Time!UOV$23","v":"00:00:00"},{"$f":"Time!UOW$23","v":"00:00:00"},{"$f":"Time!UOX$23","v":"00:00:00"},{"$f":"Time!UOY$23","v":"00:00:00"},{"$f":"Time!UOZ$23","v":"00:00:00"},{"$f":"Time!UPA$23","v":"00:00:00"},{"$f":"Time!UPB$23","v":"00:00:00"},{"$f":"Time!UPC$23","v":"00:00:00"},{"$f":"Time!UPD$23","v":"00:00:00"},{"$f":"Time!UPE$23","v":"00:00:00"},{"$f":"Time!UPF$23","v":"00:00:00"},{"$f":"Time!UPG$23","v":"00:00:00"},{"$f":"Time!UPH$23","v":"00:00:00"},{"$f":"Time!UPI$23","v":"00:00:00"},{"$f":"Time!UPJ$23","v":"00:00:00"},{"$f":"Time!UPK$23","v":"00:00:00"},{"$f":"Time!UPL$23","v":"00:00:00"},{"$f":"Time!UPM$23","v":"00:00:00"},{"$f":"Time!UPN$23","v":"00:00:00"},{"$f":"Time!UPO$23","v":"00:00:00"},{"$f":"Time!UPP$23","v":"00:00:00"},{"$f":"Time!UPQ$23","v":"00:00:00"},{"$f":"Time!UPR$23","v":"00:00:00"},{"$f":"Time!UPS$23","v":"00:00:00"},{"$f":"Time!UPT$23","v":"00:00:00"},{"$f":"Time!UPU$23","v":"00:00:00"},{"$f":"Time!UPV$23","v":"00:00:00"},{"$f":"Time!UPW$23","v":"00:00:00"},{"$f":"Time!UPX$23","v":"00:00:00"},{"$f":"Time!UPY$23","v":"00:00:00"},{"$f":"Time!UPZ$23","v":"00:00:00"},{"$f":"Time!UQA$23","v":"00:00:00"},{"$f":"Time!UQB$23","v":"00:00:00"},{"$f":"Time!UQC$23","v":"00:00:00"},{"$f":"Time!UQD$23","v":"00:00:00"},{"$f":"Time!UQE$23","v":"00:00:00"},{"$f":"Time!UQF$23","v":"00:00:00"},{"$f":"Time!UQG$23","v":"00:00:00"},{"$f":"Time!UQH$23","v":"00:00:00"},{"$f":"Time!UQI$23","v":"00:00:00"},{"$f":"Time!UQJ$23","v":"00:00:00"},{"$f":"Time!UQK$23","v":"00:00:00"},{"$f":"Time!UQL$23","v":"00:00:00"},{"$f":"Time!UQM$23","v":"00:00:00"},{"$f":"Time!UQN$23","v":"00:00:00"},{"$f":"Time!UQO$23","v":"00:00:00"},{"$f":"Time!UQP$23","v":"00:00:00"},{"$f":"Time!UQQ$23","v":"00:00:00"},{"$f":"Time!UQR$23","v":"00:00:00"},{"$f":"Time!UQS$23","v":"00:00:00"},{"$f":"Time!UQT$23","v":"00:00:00"},{"$f":"Time!UQU$23","v":"00:00:00"},{"$f":"Time!UQV$23","v":"00:00:00"},{"$f":"Time!UQW$23","v":"00:00:00"},{"$f":"Time!UQX$23","v":"00:00:00"},{"$f":"Time!UQY$23","v":"00:00:00"},{"$f":"Time!UQZ$23","v":"00:00:00"},{"$f":"Time!URA$23","v":"00:00:00"},{"$f":"Time!URB$23","v":"00:00:00"},{"$f":"Time!URC$23","v":"00:00:00"},{"$f":"Time!URD$23","v":"00:00:00"},{"$f":"Time!URE$23","v":"00:00:00"},{"$f":"Time!URF$23","v":"00:00:00"},{"$f":"Time!URG$23","v":"00:00:00"},{"$f":"Time!URH$23","v":"00:00:00"},{"$f":"Time!URI$23","v":"00:00:00"},{"$f":"Time!URJ$23","v":"00:00:00"},{"$f":"Time!URK$23","v":"00:00:00"},{"$f":"Time!URL$23","v":"00:00:00"},{"$f":"Time!URM$23","v":"00:00:00"},{"$f":"Time!URN$23","v":"00:00:00"},{"$f":"Time!URO$23","v":"00:00:00"},{"$f":"Time!URP$23","v":"00:00:00"},{"$f":"Time!URQ$23","v":"00:00:00"},{"$f":"Time!URR$23","v":"00:00:00"},{"$f":"Time!URS$23","v":"00:00:00"},{"$f":"Time!URT$23","v":"00:00:00"},{"$f":"Time!URU$23","v":"00:00:00"},{"$f":"Time!URV$23","v":"00:00:00"},{"$f":"Time!URW$23","v":"00:00:00"},{"$f":"Time!URX$23","v":"00:00:00"},{"$f":"Time!URY$23","v":"00:00:00"},{"$f":"Time!URZ$23","v":"00:00:00"},{"$f":"Time!USA$23","v":"00:00:00"},{"$f":"Time!USB$23","v":"00:00:00"},{"$f":"Time!USC$23","v":"00:00:00"},{"$f":"Time!USD$23","v":"00:00:00"},{"$f":"Time!USE$23","v":"00:00:00"},{"$f":"Time!USF$23","v":"00:00:00"},{"$f":"Time!USG$23","v":"00:00:00"},{"$f":"Time!USH$23","v":"00:00:00"},{"$f":"Time!USI$23","v":"00:00:00"},{"$f":"Time!USJ$23","v":"00:00:00"},{"$f":"Time!USK$23","v":"00:00:00"},{"$f":"Time!USL$23","v":"00:00:00"},{"$f":"Time!USM$23","v":"00:00:00"},{"$f":"Time!USN$23","v":"00:00:00"},{"$f":"Time!USO$23","v":"00:00:00"},{"$f":"Time!USP$23","v":"00:00:00"},{"$f":"Time!USQ$23","v":"00:00:00"},{"$f":"Time!USR$23","v":"00:00:00"},{"$f":"Time!USS$23","v":"00:00:00"},{"$f":"Time!UST$23","v":"00:00:00"},{"$f":"Time!USU$23","v":"00:00:00"},{"$f":"Time!USV$23","v":"00:00:00"},{"$f":"Time!USW$23","v":"00:00:00"},{"$f":"Time!USX$23","v":"00:00:00"},{"$f":"Time!USY$23","v":"00:00:00"},{"$f":"Time!USZ$23","v":"00:00:00"},{"$f":"Time!UTA$23","v":"00:00:00"},{"$f":"Time!UTB$23","v":"00:00:00"},{"$f":"Time!UTC$23","v":"00:00:00"},{"$f":"Time!UTD$23","v":"00:00:00"},{"$f":"Time!UTE$23","v":"00:00:00"},{"$f":"Time!UTF$23","v":"00:00:00"},{"$f":"Time!UTG$23","v":"00:00:00"},{"$f":"Time!UTH$23","v":"00:00:00"},{"$f":"Time!UTI$23","v":"00:00:00"},{"$f":"Time!UTJ$23","v":"00:00:00"},{"$f":"Time!UTK$23","v":"00:00:00"},{"$f":"Time!UTL$23","v":"00:00:00"},{"$f":"Time!UTM$23","v":"00:00:00"},{"$f":"Time!UTN$23","v":"00:00:00"},{"$f":"Time!UTO$23","v":"00:00:00"},{"$f":"Time!UTP$23","v":"00:00:00"},{"$f":"Time!UTQ$23","v":"00:00:00"},{"$f":"Time!UTR$23","v":"00:00:00"},{"$f":"Time!UTS$23","v":"00:00:00"},{"$f":"Time!UTT$23","v":"00:00:00"},{"$f":"Time!UTU$23","v":"00:00:00"},{"$f":"Time!UTV$23","v":"00:00:00"},{"$f":"Time!UTW$23","v":"00:00:00"},{"$f":"Time!UTX$23","v":"00:00:00"},{"$f":"Time!UTY$23","v":"00:00:00"},{"$f":"Time!UTZ$23","v":"00:00:00"},{"$f":"Time!UUA$23","v":"00:00:00"},{"$f":"Time!UUB$23","v":"00:00:00"},{"$f":"Time!UUC$23","v":"00:00:00"},{"$f":"Time!UUD$23","v":"00:00:00"},{"$f":"Time!UUE$23","v":"00:00:00"},{"$f":"Time!UUF$23","v":"00:00:00"},{"$f":"Time!UUG$23","v":"00:00:00"},{"$f":"Time!UUH$23","v":"00:00:00"},{"$f":"Time!UUI$23","v":"00:00:00"},{"$f":"Time!UUJ$23","v":"00:00:00"},{"$f":"Time!UUK$23","v":"00:00:00"},{"$f":"Time!UUL$23","v":"00:00:00"},{"$f":"Time!UUM$23","v":"00:00:00"},{"$f":"Time!UUN$23","v":"00:00:00"},{"$f":"Time!UUO$23","v":"00:00:00"},{"$f":"Time!UUP$23","v":"00:00:00"},{"$f":"Time!UUQ$23","v":"00:00:00"},{"$f":"Time!UUR$23","v":"00:00:00"},{"$f":"Time!UUS$23","v":"00:00:00"},{"$f":"Time!UUT$23","v":"00:00:00"},{"$f":"Time!UUU$23","v":"00:00:00"},{"$f":"Time!UUV$23","v":"00:00:00"},{"$f":"Time!UUW$23","v":"00:00:00"},{"$f":"Time!UUX$23","v":"00:00:00"},{"$f":"Time!UUY$23","v":"00:00:00"},{"$f":"Time!UUZ$23","v":"00:00:00"},{"$f":"Time!UVA$23","v":"00:00:00"},{"$f":"Time!UVB$23","v":"00:00:00"},{"$f":"Time!UVC$23","v":"00:00:00"},{"$f":"Time!UVD$23","v":"00:00:00"},{"$f":"Time!UVE$23","v":"00:00:00"},{"$f":"Time!UVF$23","v":"00:00:00"},{"$f":"Time!UVG$23","v":"00:00:00"},{"$f":"Time!UVH$23","v":"00:00:00"},{"$f":"Time!UVI$23","v":"00:00:00"},{"$f":"Time!UVJ$23","v":"00:00:00"},{"$f":"Time!UVK$23","v":"00:00:00"},{"$f":"Time!UVL$23","v":"00:00:00"},{"$f":"Time!UVM$23","v":"00:00:00"},{"$f":"Time!UVN$23","v":"00:00:00"},{"$f":"Time!UVO$23","v":"00:00:00"},{"$f":"Time!UVP$23","v":"00:00:00"},{"$f":"Time!UVQ$23","v":"00:00:00"},{"$f":"Time!UVR$23","v":"00:00:00"},{"$f":"Time!UVS$23","v":"00:00:00"},{"$f":"Time!UVT$23","v":"00:00:00"},{"$f":"Time!UVU$23","v":"00:00:00"},{"$f":"Time!UVV$23","v":"00:00:00"},{"$f":"Time!UVW$23","v":"00:00:00"},{"$f":"Time!UVX$23","v":"00:00:00"},{"$f":"Time!UVY$23","v":"00:00:00"},{"$f":"Time!UVZ$23","v":"00:00:00"},{"$f":"Time!UWA$23","v":"00:00:00"},{"$f":"Time!UWB$23","v":"00:00:00"},{"$f":"Time!UWC$23","v":"00:00:00"},{"$f":"Time!UWD$23","v":"00:00:00"},{"$f":"Time!UWE$23","v":"00:00:00"},{"$f":"Time!UWF$23","v":"00:00:00"},{"$f":"Time!UWG$23","v":"00:00:00"},{"$f":"Time!UWH$23","v":"00:00:00"},{"$f":"Time!UWI$23","v":"00:00:00"},{"$f":"Time!UWJ$23","v":"00:00:00"},{"$f":"Time!UWK$23","v":"00:00:00"},{"$f":"Time!UWL$23","v":"00:00:00"},{"$f":"Time!UWM$23","v":"00:00:00"},{"$f":"Time!UWN$23","v":"00:00:00"},{"$f":"Time!UWO$23","v":"00:00:00"},{"$f":"Time!UWP$23","v":"00:00:00"},{"$f":"Time!UWQ$23","v":"00:00:00"},{"$f":"Time!UWR$23","v":"00:00:00"},{"$f":"Time!UWS$23","v":"00:00:00"},{"$f":"Time!UWT$23","v":"00:00:00"},{"$f":"Time!UWU$23","v":"00:00:00"},{"$f":"Time!UWV$23","v":"00:00:00"},{"$f":"Time!UWW$23","v":"00:00:00"},{"$f":"Time!UWX$23","v":"00:00:00"},{"$f":"Time!UWY$23","v":"00:00:00"},{"$f":"Time!UWZ$23","v":"00:00:00"},{"$f":"Time!UXA$23","v":"00:00:00"},{"$f":"Time!UXB$23","v":"00:00:00"},{"$f":"Time!UXC$23","v":"00:00:00"},{"$f":"Time!UXD$23","v":"00:00:00"},{"$f":"Time!UXE$23","v":"00:00:00"},{"$f":"Time!UXF$23","v":"00:00:00"},{"$f":"Time!UXG$23","v":"00:00:00"},{"$f":"Time!UXH$23","v":"00:00:00"},{"$f":"Time!UXI$23","v":"00:00:00"},{"$f":"Time!UXJ$23","v":"00:00:00"},{"$f":"Time!UXK$23","v":"00:00:00"},{"$f":"Time!UXL$23","v":"00:00:00"},{"$f":"Time!UXM$23","v":"00:00:00"},{"$f":"Time!UXN$23","v":"00:00:00"},{"$f":"Time!UXO$23","v":"00:00:00"},{"$f":"Time!UXP$23","v":"00:00:00"},{"$f":"Time!UXQ$23","v":"00:00:00"},{"$f":"Time!UXR$23","v":"00:00:00"},{"$f":"Time!UXS$23","v":"00:00:00"},{"$f":"Time!UXT$23","v":"00:00:00"},{"$f":"Time!UXU$23","v":"00:00:00"},{"$f":"Time!UXV$23","v":"00:00:00"},{"$f":"Time!UXW$23","v":"00:00:00"},{"$f":"Time!UXX$23","v":"00:00:00"},{"$f":"Time!UXY$23","v":"00:00:00"},{"$f":"Time!UXZ$23","v":"00:00:00"},{"$f":"Time!UYA$23","v":"00:00:00"},{"$f":"Time!UYB$23","v":"00:00:00"},{"$f":"Time!UYC$23","v":"00:00:00"},{"$f":"Time!UYD$23","v":"00:00:00"},{"$f":"Time!UYE$23","v":"00:00:00"},{"$f":"Time!UYF$23","v":"00:00:00"},{"$f":"Time!UYG$23","v":"00:00:00"},{"$f":"Time!UYH$23","v":"00:00:00"},{"$f":"Time!UYI$23","v":"00:00:00"},{"$f":"Time!UYJ$23","v":"00:00:00"},{"$f":"Time!UYK$23","v":"00:00:00"},{"$f":"Time!UYL$23","v":"00:00:00"},{"$f":"Time!UYM$23","v":"00:00:00"},{"$f":"Time!UYN$23","v":"00:00:00"},{"$f":"Time!UYO$23","v":"00:00:00"},{"$f":"Time!UYP$23","v":"00:00:00"},{"$f":"Time!UYQ$23","v":"00:00:00"},{"$f":"Time!UYR$23","v":"00:00:00"},{"$f":"Time!UYS$23","v":"00:00:00"},{"$f":"Time!UYT$23","v":"00:00:00"},{"$f":"Time!UYU$23","v":"00:00:00"},{"$f":"Time!UYV$23","v":"00:00:00"},{"$f":"Time!UYW$23","v":"00:00:00"},{"$f":"Time!UYX$23","v":"00:00:00"},{"$f":"Time!UYY$23","v":"00:00:00"},{"$f":"Time!UYZ$23","v":"00:00:00"},{"$f":"Time!UZA$23","v":"00:00:00"},{"$f":"Time!UZB$23","v":"00:00:00"},{"$f":"Time!UZC$23","v":"00:00:00"},{"$f":"Time!UZD$23","v":"00:00:00"},{"$f":"Time!UZE$23","v":"00:00:00"},{"$f":"Time!UZF$23","v":"00:00:00"},{"$f":"Time!UZG$23","v":"00:00:00"},{"$f":"Time!UZH$23","v":"00:00:00"},{"$f":"Time!UZI$23","v":"00:00:00"},{"$f":"Time!UZJ$23","v":"00:00:00"},{"$f":"Time!UZK$23","v":"00:00:00"},{"$f":"Time!UZL$23","v":"00:00:00"},{"$f":"Time!UZM$23","v":"00:00:00"},{"$f":"Time!UZN$23","v":"00:00:00"},{"$f":"Time!UZO$23","v":"00:00:00"},{"$f":"Time!UZP$23","v":"00:00:00"},{"$f":"Time!UZQ$23","v":"00:00:00"},{"$f":"Time!UZR$23","v":"00:00:00"},{"$f":"Time!UZS$23","v":"00:00:00"},{"$f":"Time!UZT$23","v":"00:00:00"},{"$f":"Time!UZU$23","v":"00:00:00"},{"$f":"Time!UZV$23","v":"00:00:00"},{"$f":"Time!UZW$23","v":"00:00:00"},{"$f":"Time!UZX$23","v":"00:00:00"},{"$f":"Time!UZY$23","v":"00:00:00"},{"$f":"Time!UZZ$23","v":"00:00:00"},{"$f":"Time!VAA$23","v":"00:00:00"},{"$f":"Time!VAB$23","v":"00:00:00"},{"$f":"Time!VAC$23","v":"00:00:00"},{"$f":"Time!VAD$23","v":"00:00:00"},{"$f":"Time!VAE$23","v":"00:00:00"},{"$f":"Time!VAF$23","v":"00:00:00"},{"$f":"Time!VAG$23","v":"00:00:00"},{"$f":"Time!VAH$23","v":"00:00:00"},{"$f":"Time!VAI$23","v":"00:00:00"},{"$f":"Time!VAJ$23","v":"00:00:00"},{"$f":"Time!VAK$23","v":"00:00:00"},{"$f":"Time!VAL$23","v":"00:00:00"},{"$f":"Time!VAM$23","v":"00:00:00"},{"$f":"Time!VAN$23","v":"00:00:00"},{"$f":"Time!VAO$23","v":"00:00:00"},{"$f":"Time!VAP$23","v":"00:00:00"},{"$f":"Time!VAQ$23","v":"00:00:00"},{"$f":"Time!VAR$23","v":"00:00:00"},{"$f":"Time!VAS$23","v":"00:00:00"},{"$f":"Time!VAT$23","v":"00:00:00"},{"$f":"Time!VAU$23","v":"00:00:00"},{"$f":"Time!VAV$23","v":"00:00:00"},{"$f":"Time!VAW$23","v":"00:00:00"},{"$f":"Time!VAX$23","v":"00:00:00"},{"$f":"Time!VAY$23","v":"00:00:00"},{"$f":"Time!VAZ$23","v":"00:00:00"},{"$f":"Time!VBA$23","v":"00:00:00"},{"$f":"Time!VBB$23","v":"00:00:00"},{"$f":"Time!VBC$23","v":"00:00:00"},{"$f":"Time!VBD$23","v":"00:00:00"},{"$f":"Time!VBE$23","v":"00:00:00"},{"$f":"Time!VBF$23","v":"00:00:00"},{"$f":"Time!VBG$23","v":"00:00:00"},{"$f":"Time!VBH$23","v":"00:00:00"},{"$f":"Time!VBI$23","v":"00:00:00"},{"$f":"Time!VBJ$23","v":"00:00:00"},{"$f":"Time!VBK$23","v":"00:00:00"},{"$f":"Time!VBL$23","v":"00:00:00"},{"$f":"Time!VBM$23","v":"00:00:00"},{"$f":"Time!VBN$23","v":"00:00:00"},{"$f":"Time!VBO$23","v":"00:00:00"},{"$f":"Time!VBP$23","v":"00:00:00"},{"$f":"Time!VBQ$23","v":"00:00:00"},{"$f":"Time!VBR$23","v":"00:00:00"},{"$f":"Time!VBS$23","v":"00:00:00"},{"$f":"Time!VBT$23","v":"00:00:00"},{"$f":"Time!VBU$23","v":"00:00:00"},{"$f":"Time!VBV$23","v":"00:00:00"},{"$f":"Time!VBW$23","v":"00:00:00"},{"$f":"Time!VBX$23","v":"00:00:00"},{"$f":"Time!VBY$23","v":"00:00:00"},{"$f":"Time!VBZ$23","v":"00:00:00"},{"$f":"Time!VCA$23","v":"00:00:00"},{"$f":"Time!VCB$23","v":"00:00:00"},{"$f":"Time!VCC$23","v":"00:00:00"},{"$f":"Time!VCD$23","v":"00:00:00"},{"$f":"Time!VCE$23","v":"00:00:00"},{"$f":"Time!VCF$23","v":"00:00:00"},{"$f":"Time!VCG$23","v":"00:00:00"},{"$f":"Time!VCH$23","v":"00:00:00"},{"$f":"Time!VCI$23","v":"00:00:00"},{"$f":"Time!VCJ$23","v":"00:00:00"},{"$f":"Time!VCK$23","v":"00:00:00"},{"$f":"Time!VCL$23","v":"00:00:00"},{"$f":"Time!VCM$23","v":"00:00:00"},{"$f":"Time!VCN$23","v":"00:00:00"},{"$f":"Time!VCO$23","v":"00:00:00"},{"$f":"Time!VCP$23","v":"00:00:00"},{"$f":"Time!VCQ$23","v":"00:00:00"},{"$f":"Time!VCR$23","v":"00:00:00"},{"$f":"Time!VCS$23","v":"00:00:00"},{"$f":"Time!VCT$23","v":"00:00:00"},{"$f":"Time!VCU$23","v":"00:00:00"},{"$f":"Time!VCV$23","v":"00:00:00"},{"$f":"Time!VCW$23","v":"00:00:00"},{"$f":"Time!VCX$23","v":"00:00:00"},{"$f":"Time!VCY$23","v":"00:00:00"},{"$f":"Time!VCZ$23","v":"00:00:00"},{"$f":"Time!VDA$23","v":"00:00:00"},{"$f":"Time!VDB$23","v":"00:00:00"},{"$f":"Time!VDC$23","v":"00:00:00"},{"$f":"Time!VDD$23","v":"00:00:00"},{"$f":"Time!VDE$23","v":"00:00:00"},{"$f":"Time!VDF$23","v":"00:00:00"},{"$f":"Time!VDG$23","v":"00:00:00"},{"$f":"Time!VDH$23","v":"00:00:00"},{"$f":"Time!VDI$23","v":"00:00:00"},{"$f":"Time!VDJ$23","v":"00:00:00"},{"$f":"Time!VDK$23","v":"00:00:00"},{"$f":"Time!VDL$23","v":"00:00:00"},{"$f":"Time!VDM$23","v":"00:00:00"},{"$f":"Time!VDN$23","v":"00:00:00"},{"$f":"Time!VDO$23","v":"00:00:00"},{"$f":"Time!VDP$23","v":"00:00:00"},{"$f":"Time!VDQ$23","v":"00:00:00"},{"$f":"Time!VDR$23","v":"00:00:00"},{"$f":"Time!VDS$23","v":"00:00:00"},{"$f":"Time!VDT$23","v":"00:00:00"},{"$f":"Time!VDU$23","v":"00:00:00"},{"$f":"Time!VDV$23","v":"00:00:00"},{"$f":"Time!VDW$23","v":"00:00:00"},{"$f":"Time!VDX$23","v":"00:00:00"},{"$f":"Time!VDY$23","v":"00:00:00"},{"$f":"Time!VDZ$23","v":"00:00:00"},{"$f":"Time!VEA$23","v":"00:00:00"},{"$f":"Time!VEB$23","v":"00:00:00"},{"$f":"Time!VEC$23","v":"00:00:00"},{"$f":"Time!VED$23","v":"00:00:00"},{"$f":"Time!VEE$23","v":"00:00:00"},{"$f":"Time!VEF$23","v":"00:00:00"},{"$f":"Time!VEG$23","v":"00:00:00"},{"$f":"Time!VEH$23","v":"00:00:00"},{"$f":"Time!VEI$23","v":"00:00:00"},{"$f":"Time!VEJ$23","v":"00:00:00"},{"$f":"Time!VEK$23","v":"00:00:00"},{"$f":"Time!VEL$23","v":"00:00:00"},{"$f":"Time!VEM$23","v":"00:00:00"},{"$f":"Time!VEN$23","v":"00:00:00"},{"$f":"Time!VEO$23","v":"00:00:00"},{"$f":"Time!VEP$23","v":"00:00:00"},{"$f":"Time!VEQ$23","v":"00:00:00"},{"$f":"Time!VER$23","v":"00:00:00"},{"$f":"Time!VES$23","v":"00:00:00"},{"$f":"Time!VET$23","v":"00:00:00"},{"$f":"Time!VEU$23","v":"00:00:00"},{"$f":"Time!VEV$23","v":"00:00:00"},{"$f":"Time!VEW$23","v":"00:00:00"},{"$f":"Time!VEX$23","v":"00:00:00"},{"$f":"Time!VEY$23","v":"00:00:00"},{"$f":"Time!VEZ$23","v":"00:00:00"},{"$f":"Time!VFA$23","v":"00:00:00"},{"$f":"Time!VFB$23","v":"00:00:00"},{"$f":"Time!VFC$23","v":"00:00:00"},{"$f":"Time!VFD$23","v":"00:00:00"},{"$f":"Time!VFE$23","v":"00:00:00"},{"$f":"Time!VFF$23","v":"00:00:00"},{"$f":"Time!VFG$23","v":"00:00:00"},{"$f":"Time!VFH$23","v":"00:00:00"},{"$f":"Time!VFI$23","v":"00:00:00"},{"$f":"Time!VFJ$23","v":"00:00:00"},{"$f":"Time!VFK$23","v":"00:00:00"},{"$f":"Time!VFL$23","v":"00:00:00"},{"$f":"Time!VFM$23","v":"00:00:00"},{"$f":"Time!VFN$23","v":"00:00:00"},{"$f":"Time!VFO$23","v":"00:00:00"},{"$f":"Time!VFP$23","v":"00:00:00"},{"$f":"Time!VFQ$23","v":"00:00:00"},{"$f":"Time!VFR$23","v":"00:00:00"},{"$f":"Time!VFS$23","v":"00:00:00"},{"$f":"Time!VFT$23","v":"00:00:00"},{"$f":"Time!VFU$23","v":"00:00:00"},{"$f":"Time!VFV$23","v":"00:00:00"},{"$f":"Time!VFW$23","v":"00:00:00"},{"$f":"Time!VFX$23","v":"00:00:00"},{"$f":"Time!VFY$23","v":"00:00:00"},{"$f":"Time!VFZ$23","v":"00:00:00"},{"$f":"Time!VGA$23","v":"00:00:00"},{"$f":"Time!VGB$23","v":"00:00:00"},{"$f":"Time!VGC$23","v":"00:00:00"},{"$f":"Time!VGD$23","v":"00:00:00"},{"$f":"Time!VGE$23","v":"00:00:00"},{"$f":"Time!VGF$23","v":"00:00:00"},{"$f":"Time!VGG$23","v":"00:00:00"},{"$f":"Time!VGH$23","v":"00:00:00"},{"$f":"Time!VGI$23","v":"00:00:00"},{"$f":"Time!VGJ$23","v":"00:00:00"},{"$f":"Time!VGK$23","v":"00:00:00"},{"$f":"Time!VGL$23","v":"00:00:00"},{"$f":"Time!VGM$23","v":"00:00:00"},{"$f":"Time!VGN$23","v":"00:00:00"},{"$f":"Time!VGO$23","v":"00:00:00"},{"$f":"Time!VGP$23","v":"00:00:00"},{"$f":"Time!VGQ$23","v":"00:00:00"},{"$f":"Time!VGR$23","v":"00:00:00"},{"$f":"Time!VGS$23","v":"00:00:00"},{"$f":"Time!VGT$23","v":"00:00:00"},{"$f":"Time!VGU$23","v":"00:00:00"},{"$f":"Time!VGV$23","v":"00:00:00"},{"$f":"Time!VGW$23","v":"00:00:00"},{"$f":"Time!VGX$23","v":"00:00:00"},{"$f":"Time!VGY$23","v":"00:00:00"},{"$f":"Time!VGZ$23","v":"00:00:00"},{"$f":"Time!VHA$23","v":"00:00:00"},{"$f":"Time!VHB$23","v":"00:00:00"},{"$f":"Time!VHC$23","v":"00:00:00"},{"$f":"Time!VHD$23","v":"00:00:00"},{"$f":"Time!VHE$23","v":"00:00:00"},{"$f":"Time!VHF$23","v":"00:00:00"},{"$f":"Time!VHG$23","v":"00:00:00"},{"$f":"Time!VHH$23","v":"00:00:00"},{"$f":"Time!VHI$23","v":"00:00:00"},{"$f":"Time!VHJ$23","v":"00:00:00"},{"$f":"Time!VHK$23","v":"00:00:00"},{"$f":"Time!VHL$23","v":"00:00:00"},{"$f":"Time!VHM$23","v":"00:00:00"},{"$f":"Time!VHN$23","v":"00:00:00"},{"$f":"Time!VHO$23","v":"00:00:00"},{"$f":"Time!VHP$23","v":"00:00:00"},{"$f":"Time!VHQ$23","v":"00:00:00"},{"$f":"Time!VHR$23","v":"00:00:00"},{"$f":"Time!VHS$23","v":"00:00:00"},{"$f":"Time!VHT$23","v":"00:00:00"},{"$f":"Time!VHU$23","v":"00:00:00"},{"$f":"Time!VHV$23","v":"00:00:00"},{"$f":"Time!VHW$23","v":"00:00:00"},{"$f":"Time!VHX$23","v":"00:00:00"},{"$f":"Time!VHY$23","v":"00:00:00"},{"$f":"Time!VHZ$23","v":"00:00:00"},{"$f":"Time!VIA$23","v":"00:00:00"},{"$f":"Time!VIB$23","v":"00:00:00"},{"$f":"Time!VIC$23","v":"00:00:00"},{"$f":"Time!VID$23","v":"00:00:00"},{"$f":"Time!VIE$23","v":"00:00:00"},{"$f":"Time!VIF$23","v":"00:00:00"},{"$f":"Time!VIG$23","v":"00:00:00"},{"$f":"Time!VIH$23","v":"00:00:00"},{"$f":"Time!VII$23","v":"00:00:00"},{"$f":"Time!VIJ$23","v":"00:00:00"},{"$f":"Time!VIK$23","v":"00:00:00"},{"$f":"Time!VIL$23","v":"00:00:00"},{"$f":"Time!VIM$23","v":"00:00:00"},{"$f":"Time!VIN$23","v":"00:00:00"},{"$f":"Time!VIO$23","v":"00:00:00"},{"$f":"Time!VIP$23","v":"00:00:00"},{"$f":"Time!VIQ$23","v":"00:00:00"},{"$f":"Time!VIR$23","v":"00:00:00"},{"$f":"Time!VIS$23","v":"00:00:00"},{"$f":"Time!VIT$23","v":"00:00:00"},{"$f":"Time!VIU$23","v":"00:00:00"},{"$f":"Time!VIV$23","v":"00:00:00"},{"$f":"Time!VIW$23","v":"00:00:00"},{"$f":"Time!VIX$23","v":"00:00:00"},{"$f":"Time!VIY$23","v":"00:00:00"},{"$f":"Time!VIZ$23","v":"00:00:00"},{"$f":"Time!VJA$23","v":"00:00:00"},{"$f":"Time!VJB$23","v":"00:00:00"},{"$f":"Time!VJC$23","v":"00:00:00"},{"$f":"Time!VJD$23","v":"00:00:00"},{"$f":"Time!VJE$23","v":"00:00:00"},{"$f":"Time!VJF$23","v":"00:00:00"},{"$f":"Time!VJG$23","v":"00:00:00"},{"$f":"Time!VJH$23","v":"00:00:00"},{"$f":"Time!VJI$23","v":"00:00:00"},{"$f":"Time!VJJ$23","v":"00:00:00"},{"$f":"Time!VJK$23","v":"00:00:00"},{"$f":"Time!VJL$23","v":"00:00:00"},{"$f":"Time!VJM$23","v":"00:00:00"},{"$f":"Time!VJN$23","v":"00:00:00"},{"$f":"Time!VJO$23","v":"00:00:00"},{"$f":"Time!VJP$23","v":"00:00:00"},{"$f":"Time!VJQ$23","v":"00:00:00"},{"$f":"Time!VJR$23","v":"00:00:00"},{"$f":"Time!VJS$23","v":"00:00:00"},{"$f":"Time!VJT$23","v":"00:00:00"},{"$f":"Time!VJU$23","v":"00:00:00"},{"$f":"Time!VJV$23","v":"00:00:00"},{"$f":"Time!VJW$23","v":"00:00:00"},{"$f":"Time!VJX$23","v":"00:00:00"},{"$f":"Time!VJY$23","v":"00:00:00"},{"$f":"Time!VJZ$23","v":"00:00:00"},{"$f":"Time!VKA$23","v":"00:00:00"},{"$f":"Time!VKB$23","v":"00:00:00"},{"$f":"Time!VKC$23","v":"00:00:00"},{"$f":"Time!VKD$23","v":"00:00:00"},{"$f":"Time!VKE$23","v":"00:00:00"},{"$f":"Time!VKF$23","v":"00:00:00"},{"$f":"Time!VKG$23","v":"00:00:00"},{"$f":"Time!VKH$23","v":"00:00:00"},{"$f":"Time!VKI$23","v":"00:00:00"},{"$f":"Time!VKJ$23","v":"00:00:00"},{"$f":"Time!VKK$23","v":"00:00:00"},{"$f":"Time!VKL$23","v":"00:00:00"},{"$f":"Time!VKM$23","v":"00:00:00"},{"$f":"Time!VKN$23","v":"00:00:00"},{"$f":"Time!VKO$23","v":"00:00:00"},{"$f":"Time!VKP$23","v":"00:00:00"},{"$f":"Time!VKQ$23","v":"00:00:00"},{"$f":"Time!VKR$23","v":"00:00:00"},{"$f":"Time!VKS$23","v":"00:00:00"},{"$f":"Time!VKT$23","v":"00:00:00"},{"$f":"Time!VKU$23","v":"00:00:00"},{"$f":"Time!VKV$23","v":"00:00:00"},{"$f":"Time!VKW$23","v":"00:00:00"},{"$f":"Time!VKX$23","v":"00:00:00"},{"$f":"Time!VKY$23","v":"00:00:00"},{"$f":"Time!VKZ$23","v":"00:00:00"},{"$f":"Time!VLA$23","v":"00:00:00"},{"$f":"Time!VLB$23","v":"00:00:00"},{"$f":"Time!VLC$23","v":"00:00:00"},{"$f":"Time!VLD$23","v":"00:00:00"},{"$f":"Time!VLE$23","v":"00:00:00"},{"$f":"Time!VLF$23","v":"00:00:00"},{"$f":"Time!VLG$23","v":"00:00:00"},{"$f":"Time!VLH$23","v":"00:00:00"},{"$f":"Time!VLI$23","v":"00:00:00"},{"$f":"Time!VLJ$23","v":"00:00:00"},{"$f":"Time!VLK$23","v":"00:00:00"},{"$f":"Time!VLL$23","v":"00:00:00"},{"$f":"Time!VLM$23","v":"00:00:00"},{"$f":"Time!VLN$23","v":"00:00:00"},{"$f":"Time!VLO$23","v":"00:00:00"},{"$f":"Time!VLP$23","v":"00:00:00"},{"$f":"Time!VLQ$23","v":"00:00:00"},{"$f":"Time!VLR$23","v":"00:00:00"},{"$f":"Time!VLS$23","v":"00:00:00"},{"$f":"Time!VLT$23","v":"00:00:00"},{"$f":"Time!VLU$23","v":"00:00:00"},{"$f":"Time!VLV$23","v":"00:00:00"},{"$f":"Time!VLW$23","v":"00:00:00"},{"$f":"Time!VLX$23","v":"00:00:00"},{"$f":"Time!VLY$23","v":"00:00:00"},{"$f":"Time!VLZ$23","v":"00:00:00"},{"$f":"Time!VMA$23","v":"00:00:00"},{"$f":"Time!VMB$23","v":"00:00:00"},{"$f":"Time!VMC$23","v":"00:00:00"},{"$f":"Time!VMD$23","v":"00:00:00"},{"$f":"Time!VME$23","v":"00:00:00"},{"$f":"Time!VMF$23","v":"00:00:00"},{"$f":"Time!VMG$23","v":"00:00:00"},{"$f":"Time!VMH$23","v":"00:00:00"},{"$f":"Time!VMI$23","v":"00:00:00"},{"$f":"Time!VMJ$23","v":"00:00:00"},{"$f":"Time!VMK$23","v":"00:00:00"},{"$f":"Time!VML$23","v":"00:00:00"},{"$f":"Time!VMM$23","v":"00:00:00"},{"$f":"Time!VMN$23","v":"00:00:00"},{"$f":"Time!VMO$23","v":"00:00:00"},{"$f":"Time!VMP$23","v":"00:00:00"},{"$f":"Time!VMQ$23","v":"00:00:00"},{"$f":"Time!VMR$23","v":"00:00:00"},{"$f":"Time!VMS$23","v":"00:00:00"},{"$f":"Time!VMT$23","v":"00:00:00"},{"$f":"Time!VMU$23","v":"00:00:00"},{"$f":"Time!VMV$23","v":"00:00:00"},{"$f":"Time!VMW$23","v":"00:00:00"},{"$f":"Time!VMX$23","v":"00:00:00"},{"$f":"Time!VMY$23","v":"00:00:00"},{"$f":"Time!VMZ$23","v":"00:00:00"},{"$f":"Time!VNA$23","v":"00:00:00"},{"$f":"Time!VNB$23","v":"00:00:00"},{"$f":"Time!VNC$23","v":"00:00:00"},{"$f":"Time!VND$23","v":"00:00:00"},{"$f":"Time!VNE$23","v":"00:00:00"},{"$f":"Time!VNF$23","v":"00:00:00"},{"$f":"Time!VNG$23","v":"00:00:00"},{"$f":"Time!VNH$23","v":"00:00:00"},{"$f":"Time!VNI$23","v":"00:00:00"},{"$f":"Time!VNJ$23","v":"00:00:00"},{"$f":"Time!VNK$23","v":"00:00:00"},{"$f":"Time!VNL$23","v":"00:00:00"},{"$f":"Time!VNM$23","v":"00:00:00"},{"$f":"Time!VNN$23","v":"00:00:00"},{"$f":"Time!VNO$23","v":"00:00:00"},{"$f":"Time!VNP$23","v":"00:00:00"},{"$f":"Time!VNQ$23","v":"00:00:00"},{"$f":"Time!VNR$23","v":"00:00:00"},{"$f":"Time!VNS$23","v":"00:00:00"},{"$f":"Time!VNT$23","v":"00:00:00"},{"$f":"Time!VNU$23","v":"00:00:00"},{"$f":"Time!VNV$23","v":"00:00:00"},{"$f":"Time!VNW$23","v":"00:00:00"},{"$f":"Time!VNX$23","v":"00:00:00"},{"$f":"Time!VNY$23","v":"00:00:00"},{"$f":"Time!VNZ$23","v":"00:00:00"},{"$f":"Time!VOA$23","v":"00:00:00"},{"$f":"Time!VOB$23","v":"00:00:00"},{"$f":"Time!VOC$23","v":"00:00:00"},{"$f":"Time!VOD$23","v":"00:00:00"},{"$f":"Time!VOE$23","v":"00:00:00"},{"$f":"Time!VOF$23","v":"00:00:00"},{"$f":"Time!VOG$23","v":"00:00:00"},{"$f":"Time!VOH$23","v":"00:00:00"},{"$f":"Time!VOI$23","v":"00:00:00"},{"$f":"Time!VOJ$23","v":"00:00:00"},{"$f":"Time!VOK$23","v":"00:00:00"},{"$f":"Time!VOL$23","v":"00:00:00"},{"$f":"Time!VOM$23","v":"00:00:00"},{"$f":"Time!VON$23","v":"00:00:00"},{"$f":"Time!VOO$23","v":"00:00:00"},{"$f":"Time!VOP$23","v":"00:00:00"},{"$f":"Time!VOQ$23","v":"00:00:00"},{"$f":"Time!VOR$23","v":"00:00:00"},{"$f":"Time!VOS$23","v":"00:00:00"},{"$f":"Time!VOT$23","v":"00:00:00"},{"$f":"Time!VOU$23","v":"00:00:00"},{"$f":"Time!VOV$23","v":"00:00:00"},{"$f":"Time!VOW$23","v":"00:00:00"},{"$f":"Time!VOX$23","v":"00:00:00"},{"$f":"Time!VOY$23","v":"00:00:00"},{"$f":"Time!VOZ$23","v":"00:00:00"},{"$f":"Time!VPA$23","v":"00:00:00"},{"$f":"Time!VPB$23","v":"00:00:00"},{"$f":"Time!VPC$23","v":"00:00:00"},{"$f":"Time!VPD$23","v":"00:00:00"},{"$f":"Time!VPE$23","v":"00:00:00"},{"$f":"Time!VPF$23","v":"00:00:00"},{"$f":"Time!VPG$23","v":"00:00:00"},{"$f":"Time!VPH$23","v":"00:00:00"},{"$f":"Time!VPI$23","v":"00:00:00"},{"$f":"Time!VPJ$23","v":"00:00:00"},{"$f":"Time!VPK$23","v":"00:00:00"},{"$f":"Time!VPL$23","v":"00:00:00"},{"$f":"Time!VPM$23","v":"00:00:00"},{"$f":"Time!VPN$23","v":"00:00:00"},{"$f":"Time!VPO$23","v":"00:00:00"},{"$f":"Time!VPP$23","v":"00:00:00"},{"$f":"Time!VPQ$23","v":"00:00:00"},{"$f":"Time!VPR$23","v":"00:00:00"},{"$f":"Time!VPS$23","v":"00:00:00"},{"$f":"Time!VPT$23","v":"00:00:00"},{"$f":"Time!VPU$23","v":"00:00:00"},{"$f":"Time!VPV$23","v":"00:00:00"},{"$f":"Time!VPW$23","v":"00:00:00"},{"$f":"Time!VPX$23","v":"00:00:00"},{"$f":"Time!VPY$23","v":"00:00:00"},{"$f":"Time!VPZ$23","v":"00:00:00"},{"$f":"Time!VQA$23","v":"00:00:00"},{"$f":"Time!VQB$23","v":"00:00:00"},{"$f":"Time!VQC$23","v":"00:00:00"},{"$f":"Time!VQD$23","v":"00:00:00"},{"$f":"Time!VQE$23","v":"00:00:00"},{"$f":"Time!VQF$23","v":"00:00:00"},{"$f":"Time!VQG$23","v":"00:00:00"},{"$f":"Time!VQH$23","v":"00:00:00"},{"$f":"Time!VQI$23","v":"00:00:00"},{"$f":"Time!VQJ$23","v":"00:00:00"},{"$f":"Time!VQK$23","v":"00:00:00"},{"$f":"Time!VQL$23","v":"00:00:00"},{"$f":"Time!VQM$23","v":"00:00:00"},{"$f":"Time!VQN$23","v":"00:00:00"},{"$f":"Time!VQO$23","v":"00:00:00"},{"$f":"Time!VQP$23","v":"00:00:00"},{"$f":"Time!VQQ$23","v":"00:00:00"},{"$f":"Time!VQR$23","v":"00:00:00"},{"$f":"Time!VQS$23","v":"00:00:00"},{"$f":"Time!VQT$23","v":"00:00:00"},{"$f":"Time!VQU$23","v":"00:00:00"},{"$f":"Time!VQV$23","v":"00:00:00"},{"$f":"Time!VQW$23","v":"00:00:00"},{"$f":"Time!VQX$23","v":"00:00:00"},{"$f":"Time!VQY$23","v":"00:00:00"},{"$f":"Time!VQZ$23","v":"00:00:00"},{"$f":"Time!VRA$23","v":"00:00:00"},{"$f":"Time!VRB$23","v":"00:00:00"},{"$f":"Time!VRC$23","v":"00:00:00"},{"$f":"Time!VRD$23","v":"00:00:00"},{"$f":"Time!VRE$23","v":"00:00:00"},{"$f":"Time!VRF$23","v":"00:00:00"},{"$f":"Time!VRG$23","v":"00:00:00"},{"$f":"Time!VRH$23","v":"00:00:00"},{"$f":"Time!VRI$23","v":"00:00:00"},{"$f":"Time!VRJ$23","v":"00:00:00"},{"$f":"Time!VRK$23","v":"00:00:00"},{"$f":"Time!VRL$23","v":"00:00:00"},{"$f":"Time!VRM$23","v":"00:00:00"},{"$f":"Time!VRN$23","v":"00:00:00"},{"$f":"Time!VRO$23","v":"00:00:00"},{"$f":"Time!VRP$23","v":"00:00:00"},{"$f":"Time!VRQ$23","v":"00:00:00"},{"$f":"Time!VRR$23","v":"00:00:00"},{"$f":"Time!VRS$23","v":"00:00:00"},{"$f":"Time!VRT$23","v":"00:00:00"},{"$f":"Time!VRU$23","v":"00:00:00"},{"$f":"Time!VRV$23","v":"00:00:00"},{"$f":"Time!VRW$23","v":"00:00:00"},{"$f":"Time!VRX$23","v":"00:00:00"},{"$f":"Time!VRY$23","v":"00:00:00"},{"$f":"Time!VRZ$23","v":"00:00:00"},{"$f":"Time!VSA$23","v":"00:00:00"},{"$f":"Time!VSB$23","v":"00:00:00"},{"$f":"Time!VSC$23","v":"00:00:00"},{"$f":"Time!VSD$23","v":"00:00:00"},{"$f":"Time!VSE$23","v":"00:00:00"},{"$f":"Time!VSF$23","v":"00:00:00"},{"$f":"Time!VSG$23","v":"00:00:00"},{"$f":"Time!VSH$23","v":"00:00:00"},{"$f":"Time!VSI$23","v":"00:00:00"},{"$f":"Time!VSJ$23","v":"00:00:00"},{"$f":"Time!VSK$23","v":"00:00:00"},{"$f":"Time!VSL$23","v":"00:00:00"},{"$f":"Time!VSM$23","v":"00:00:00"},{"$f":"Time!VSN$23","v":"00:00:00"},{"$f":"Time!VSO$23","v":"00:00:00"},{"$f":"Time!VSP$23","v":"00:00:00"},{"$f":"Time!VSQ$23","v":"00:00:00"},{"$f":"Time!VSR$23","v":"00:00:00"},{"$f":"Time!VSS$23","v":"00:00:00"},{"$f":"Time!VST$23","v":"00:00:00"},{"$f":"Time!VSU$23","v":"00:00:00"},{"$f":"Time!VSV$23","v":"00:00:00"},{"$f":"Time!VSW$23","v":"00:00:00"},{"$f":"Time!VSX$23","v":"00:00:00"},{"$f":"Time!VSY$23","v":"00:00:00"},{"$f":"Time!VSZ$23","v":"00:00:00"},{"$f":"Time!VTA$23","v":"00:00:00"},{"$f":"Time!VTB$23","v":"00:00:00"},{"$f":"Time!VTC$23","v":"00:00:00"},{"$f":"Time!VTD$23","v":"00:00:00"},{"$f":"Time!VTE$23","v":"00:00:00"},{"$f":"Time!VTF$23","v":"00:00:00"},{"$f":"Time!VTG$23","v":"00:00:00"},{"$f":"Time!VTH$23","v":"00:00:00"},{"$f":"Time!VTI$23","v":"00:00:00"},{"$f":"Time!VTJ$23","v":"00:00:00"},{"$f":"Time!VTK$23","v":"00:00:00"},{"$f":"Time!VTL$23","v":"00:00:00"},{"$f":"Time!VTM$23","v":"00:00:00"},{"$f":"Time!VTN$23","v":"00:00:00"},{"$f":"Time!VTO$23","v":"00:00:00"},{"$f":"Time!VTP$23","v":"00:00:00"},{"$f":"Time!VTQ$23","v":"00:00:00"},{"$f":"Time!VTR$23","v":"00:00:00"},{"$f":"Time!VTS$23","v":"00:00:00"},{"$f":"Time!VTT$23","v":"00:00:00"},{"$f":"Time!VTU$23","v":"00:00:00"},{"$f":"Time!VTV$23","v":"00:00:00"},{"$f":"Time!VTW$23","v":"00:00:00"},{"$f":"Time!VTX$23","v":"00:00:00"},{"$f":"Time!VTY$23","v":"00:00:00"},{"$f":"Time!VTZ$23","v":"00:00:00"},{"$f":"Time!VUA$23","v":"00:00:00"},{"$f":"Time!VUB$23","v":"00:00:00"},{"$f":"Time!VUC$23","v":"00:00:00"},{"$f":"Time!VUD$23","v":"00:00:00"},{"$f":"Time!VUE$23","v":"00:00:00"},{"$f":"Time!VUF$23","v":"00:00:00"},{"$f":"Time!VUG$23","v":"00:00:00"},{"$f":"Time!VUH$23","v":"00:00:00"},{"$f":"Time!VUI$23","v":"00:00:00"},{"$f":"Time!VUJ$23","v":"00:00:00"},{"$f":"Time!VUK$23","v":"00:00:00"},{"$f":"Time!VUL$23","v":"00:00:00"},{"$f":"Time!VUM$23","v":"00:00:00"},{"$f":"Time!VUN$23","v":"00:00:00"},{"$f":"Time!VUO$23","v":"00:00:00"},{"$f":"Time!VUP$23","v":"00:00:00"},{"$f":"Time!VUQ$23","v":"00:00:00"},{"$f":"Time!VUR$23","v":"00:00:00"},{"$f":"Time!VUS$23","v":"00:00:00"},{"$f":"Time!VUT$23","v":"00:00:00"},{"$f":"Time!VUU$23","v":"00:00:00"},{"$f":"Time!VUV$23","v":"00:00:00"},{"$f":"Time!VUW$23","v":"00:00:00"},{"$f":"Time!VUX$23","v":"00:00:00"},{"$f":"Time!VUY$23","v":"00:00:00"},{"$f":"Time!VUZ$23","v":"00:00:00"},{"$f":"Time!VVA$23","v":"00:00:00"},{"$f":"Time!VVB$23","v":"00:00:00"},{"$f":"Time!VVC$23","v":"00:00:00"},{"$f":"Time!VVD$23","v":"00:00:00"},{"$f":"Time!VVE$23","v":"00:00:00"},{"$f":"Time!VVF$23","v":"00:00:00"},{"$f":"Time!VVG$23","v":"00:00:00"},{"$f":"Time!VVH$23","v":"00:00:00"},{"$f":"Time!VVI$23","v":"00:00:00"},{"$f":"Time!VVJ$23","v":"00:00:00"},{"$f":"Time!VVK$23","v":"00:00:00"},{"$f":"Time!VVL$23","v":"00:00:00"},{"$f":"Time!VVM$23","v":"00:00:00"},{"$f":"Time!VVN$23","v":"00:00:00"},{"$f":"Time!VVO$23","v":"00:00:00"},{"$f":"Time!VVP$23","v":"00:00:00"},{"$f":"Time!VVQ$23","v":"00:00:00"},{"$f":"Time!VVR$23","v":"00:00:00"},{"$f":"Time!VVS$23","v":"00:00:00"},{"$f":"Time!VVT$23","v":"00:00:00"},{"$f":"Time!VVU$23","v":"00:00:00"},{"$f":"Time!VVV$23","v":"00:00:00"},{"$f":"Time!VVW$23","v":"00:00:00"},{"$f":"Time!VVX$23","v":"00:00:00"},{"$f":"Time!VVY$23","v":"00:00:00"},{"$f":"Time!VVZ$23","v":"00:00:00"},{"$f":"Time!VWA$23","v":"00:00:00"},{"$f":"Time!VWB$23","v":"00:00:00"},{"$f":"Time!VWC$23","v":"00:00:00"},{"$f":"Time!VWD$23","v":"00:00:00"},{"$f":"Time!VWE$23","v":"00:00:00"},{"$f":"Time!VWF$23","v":"00:00:00"},{"$f":"Time!VWG$23","v":"00:00:00"},{"$f":"Time!VWH$23","v":"00:00:00"},{"$f":"Time!VWI$23","v":"00:00:00"},{"$f":"Time!VWJ$23","v":"00:00:00"},{"$f":"Time!VWK$23","v":"00:00:00"},{"$f":"Time!VWL$23","v":"00:00:00"},{"$f":"Time!VWM$23","v":"00:00:00"},{"$f":"Time!VWN$23","v":"00:00:00"},{"$f":"Time!VWO$23","v":"00:00:00"},{"$f":"Time!VWP$23","v":"00:00:00"},{"$f":"Time!VWQ$23","v":"00:00:00"},{"$f":"Time!VWR$23","v":"00:00:00"},{"$f":"Time!VWS$23","v":"00:00:00"},{"$f":"Time!VWT$23","v":"00:00:00"},{"$f":"Time!VWU$23","v":"00:00:00"},{"$f":"Time!VWV$23","v":"00:00:00"},{"$f":"Time!VWW$23","v":"00:00:00"},{"$f":"Time!VWX$23","v":"00:00:00"},{"$f":"Time!VWY$23","v":"00:00:00"},{"$f":"Time!VWZ$23","v":"00:00:00"},{"$f":"Time!VXA$23","v":"00:00:00"},{"$f":"Time!VXB$23","v":"00:00:00"},{"$f":"Time!VXC$23","v":"00:00:00"},{"$f":"Time!VXD$23","v":"00:00:00"},{"$f":"Time!VXE$23","v":"00:00:00"},{"$f":"Time!VXF$23","v":"00:00:00"},{"$f":"Time!VXG$23","v":"00:00:00"},{"$f":"Time!VXH$23","v":"00:00:00"},{"$f":"Time!VXI$23","v":"00:00:00"},{"$f":"Time!VXJ$23","v":"00:00:00"},{"$f":"Time!VXK$23","v":"00:00:00"},{"$f":"Time!VXL$23","v":"00:00:00"},{"$f":"Time!VXM$23","v":"00:00:00"},{"$f":"Time!VXN$23","v":"00:00:00"},{"$f":"Time!VXO$23","v":"00:00:00"},{"$f":"Time!VXP$23","v":"00:00:00"},{"$f":"Time!VXQ$23","v":"00:00:00"},{"$f":"Time!VXR$23","v":"00:00:00"},{"$f":"Time!VXS$23","v":"00:00:00"},{"$f":"Time!VXT$23","v":"00:00:00"},{"$f":"Time!VXU$23","v":"00:00:00"},{"$f":"Time!VXV$23","v":"00:00:00"},{"$f":"Time!VXW$23","v":"00:00:00"},{"$f":"Time!VXX$23","v":"00:00:00"},{"$f":"Time!VXY$23","v":"00:00:00"},{"$f":"Time!VXZ$23","v":"00:00:00"},{"$f":"Time!VYA$23","v":"00:00:00"},{"$f":"Time!VYB$23","v":"00:00:00"},{"$f":"Time!VYC$23","v":"00:00:00"},{"$f":"Time!VYD$23","v":"00:00:00"},{"$f":"Time!VYE$23","v":"00:00:00"},{"$f":"Time!VYF$23","v":"00:00:00"},{"$f":"Time!VYG$23","v":"00:00:00"},{"$f":"Time!VYH$23","v":"00:00:00"},{"$f":"Time!VYI$23","v":"00:00:00"},{"$f":"Time!VYJ$23","v":"00:00:00"},{"$f":"Time!VYK$23","v":"00:00:00"},{"$f":"Time!VYL$23","v":"00:00:00"},{"$f":"Time!VYM$23","v":"00:00:00"},{"$f":"Time!VYN$23","v":"00:00:00"},{"$f":"Time!VYO$23","v":"00:00:00"},{"$f":"Time!VYP$23","v":"00:00:00"},{"$f":"Time!VYQ$23","v":"00:00:00"},{"$f":"Time!VYR$23","v":"00:00:00"},{"$f":"Time!VYS$23","v":"00:00:00"},{"$f":"Time!VYT$23","v":"00:00:00"},{"$f":"Time!VYU$23","v":"00:00:00"},{"$f":"Time!VYV$23","v":"00:00:00"},{"$f":"Time!VYW$23","v":"00:00:00"},{"$f":"Time!VYX$23","v":"00:00:00"},{"$f":"Time!VYY$23","v":"00:00:00"},{"$f":"Time!VYZ$23","v":"00:00:00"},{"$f":"Time!VZA$23","v":"00:00:00"},{"$f":"Time!VZB$23","v":"00:00:00"},{"$f":"Time!VZC$23","v":"00:00:00"},{"$f":"Time!VZD$23","v":"00:00:00"},{"$f":"Time!VZE$23","v":"00:00:00"},{"$f":"Time!VZF$23","v":"00:00:00"},{"$f":"Time!VZG$23","v":"00:00:00"},{"$f":"Time!VZH$23","v":"00:00:00"},{"$f":"Time!VZI$23","v":"00:00:00"},{"$f":"Time!VZJ$23","v":"00:00:00"},{"$f":"Time!VZK$23","v":"00:00:00"},{"$f":"Time!VZL$23","v":"00:00:00"},{"$f":"Time!VZM$23","v":"00:00:00"},{"$f":"Time!VZN$23","v":"00:00:00"},{"$f":"Time!VZO$23","v":"00:00:00"},{"$f":"Time!VZP$23","v":"00:00:00"},{"$f":"Time!VZQ$23","v":"00:00:00"},{"$f":"Time!VZR$23","v":"00:00:00"},{"$f":"Time!VZS$23","v":"00:00:00"},{"$f":"Time!VZT$23","v":"00:00:00"},{"$f":"Time!VZU$23","v":"00:00:00"},{"$f":"Time!VZV$23","v":"00:00:00"},{"$f":"Time!VZW$23","v":"00:00:00"},{"$f":"Time!VZX$23","v":"00:00:00"},{"$f":"Time!VZY$23","v":"00:00:00"},{"$f":"Time!VZZ$23","v":"00:00:00"},{"$f":"Time!WAA$23","v":"00:00:00"},{"$f":"Time!WAB$23","v":"00:00:00"},{"$f":"Time!WAC$23","v":"00:00:00"},{"$f":"Time!WAD$23","v":"00:00:00"},{"$f":"Time!WAE$23","v":"00:00:00"},{"$f":"Time!WAF$23","v":"00:00:00"},{"$f":"Time!WAG$23","v":"00:00:00"},{"$f":"Time!WAH$23","v":"00:00:00"},{"$f":"Time!WAI$23","v":"00:00:00"},{"$f":"Time!WAJ$23","v":"00:00:00"},{"$f":"Time!WAK$23","v":"00:00:00"},{"$f":"Time!WAL$23","v":"00:00:00"},{"$f":"Time!WAM$23","v":"00:00:00"},{"$f":"Time!WAN$23","v":"00:00:00"},{"$f":"Time!WAO$23","v":"00:00:00"},{"$f":"Time!WAP$23","v":"00:00:00"},{"$f":"Time!WAQ$23","v":"00:00:00"},{"$f":"Time!WAR$23","v":"00:00:00"},{"$f":"Time!WAS$23","v":"00:00:00"},{"$f":"Time!WAT$23","v":"00:00:00"},{"$f":"Time!WAU$23","v":"00:00:00"},{"$f":"Time!WAV$23","v":"00:00:00"},{"$f":"Time!WAW$23","v":"00:00:00"},{"$f":"Time!WAX$23","v":"00:00:00"},{"$f":"Time!WAY$23","v":"00:00:00"},{"$f":"Time!WAZ$23","v":"00:00:00"},{"$f":"Time!WBA$23","v":"00:00:00"},{"$f":"Time!WBB$23","v":"00:00:00"},{"$f":"Time!WBC$23","v":"00:00:00"},{"$f":"Time!WBD$23","v":"00:00:00"},{"$f":"Time!WBE$23","v":"00:00:00"},{"$f":"Time!WBF$23","v":"00:00:00"},{"$f":"Time!WBG$23","v":"00:00:00"},{"$f":"Time!WBH$23","v":"00:00:00"},{"$f":"Time!WBI$23","v":"00:00:00"},{"$f":"Time!WBJ$23","v":"00:00:00"},{"$f":"Time!WBK$23","v":"00:00:00"},{"$f":"Time!WBL$23","v":"00:00:00"},{"$f":"Time!WBM$23","v":"00:00:00"},{"$f":"Time!WBN$23","v":"00:00:00"},{"$f":"Time!WBO$23","v":"00:00:00"},{"$f":"Time!WBP$23","v":"00:00:00"},{"$f":"Time!WBQ$23","v":"00:00:00"},{"$f":"Time!WBR$23","v":"00:00:00"},{"$f":"Time!WBS$23","v":"00:00:00"},{"$f":"Time!WBT$23","v":"00:00:00"},{"$f":"Time!WBU$23","v":"00:00:00"},{"$f":"Time!WBV$23","v":"00:00:00"},{"$f":"Time!WBW$23","v":"00:00:00"},{"$f":"Time!WBX$23","v":"00:00:00"},{"$f":"Time!WBY$23","v":"00:00:00"},{"$f":"Time!WBZ$23","v":"00:00:00"},{"$f":"Time!WCA$23","v":"00:00:00"},{"$f":"Time!WCB$23","v":"00:00:00"},{"$f":"Time!WCC$23","v":"00:00:00"},{"$f":"Time!WCD$23","v":"00:00:00"},{"$f":"Time!WCE$23","v":"00:00:00"},{"$f":"Time!WCF$23","v":"00:00:00"},{"$f":"Time!WCG$23","v":"00:00:00"},{"$f":"Time!WCH$23","v":"00:00:00"},{"$f":"Time!WCI$23","v":"00:00:00"},{"$f":"Time!WCJ$23","v":"00:00:00"},{"$f":"Time!WCK$23","v":"00:00:00"},{"$f":"Time!WCL$23","v":"00:00:00"},{"$f":"Time!WCM$23","v":"00:00:00"},{"$f":"Time!WCN$23","v":"00:00:00"},{"$f":"Time!WCO$23","v":"00:00:00"},{"$f":"Time!WCP$23","v":"00:00:00"},{"$f":"Time!WCQ$23","v":"00:00:00"},{"$f":"Time!WCR$23","v":"00:00:00"},{"$f":"Time!WCS$23","v":"00:00:00"},{"$f":"Time!WCT$23","v":"00:00:00"},{"$f":"Time!WCU$23","v":"00:00:00"},{"$f":"Time!WCV$23","v":"00:00:00"},{"$f":"Time!WCW$23","v":"00:00:00"},{"$f":"Time!WCX$23","v":"00:00:00"},{"$f":"Time!WCY$23","v":"00:00:00"},{"$f":"Time!WCZ$23","v":"00:00:00"},{"$f":"Time!WDA$23","v":"00:00:00"},{"$f":"Time!WDB$23","v":"00:00:00"},{"$f":"Time!WDC$23","v":"00:00:00"},{"$f":"Time!WDD$23","v":"00:00:00"},{"$f":"Time!WDE$23","v":"00:00:00"},{"$f":"Time!WDF$23","v":"00:00:00"},{"$f":"Time!WDG$23","v":"00:00:00"},{"$f":"Time!WDH$23","v":"00:00:00"},{"$f":"Time!WDI$23","v":"00:00:00"},{"$f":"Time!WDJ$23","v":"00:00:00"},{"$f":"Time!WDK$23","v":"00:00:00"},{"$f":"Time!WDL$23","v":"00:00:00"},{"$f":"Time!WDM$23","v":"00:00:00"},{"$f":"Time!WDN$23","v":"00:00:00"},{"$f":"Time!WDO$23","v":"00:00:00"},{"$f":"Time!WDP$23","v":"00:00:00"},{"$f":"Time!WDQ$23","v":"00:00:00"},{"$f":"Time!WDR$23","v":"00:00:00"},{"$f":"Time!WDS$23","v":"00:00:00"},{"$f":"Time!WDT$23","v":"00:00:00"},{"$f":"Time!WDU$23","v":"00:00:00"},{"$f":"Time!WDV$23","v":"00:00:00"},{"$f":"Time!WDW$23","v":"00:00:00"},{"$f":"Time!WDX$23","v":"00:00:00"},{"$f":"Time!WDY$23","v":"00:00:00"},{"$f":"Time!WDZ$23","v":"00:00:00"},{"$f":"Time!WEA$23","v":"00:00:00"},{"$f":"Time!WEB$23","v":"00:00:00"},{"$f":"Time!WEC$23","v":"00:00:00"},{"$f":"Time!WED$23","v":"00:00:00"},{"$f":"Time!WEE$23","v":"00:00:00"},{"$f":"Time!WEF$23","v":"00:00:00"},{"$f":"Time!WEG$23","v":"00:00:00"},{"$f":"Time!WEH$23","v":"00:00:00"},{"$f":"Time!WEI$23","v":"00:00:00"},{"$f":"Time!WEJ$23","v":"00:00:00"},{"$f":"Time!WEK$23","v":"00:00:00"},{"$f":"Time!WEL$23","v":"00:00:00"},{"$f":"Time!WEM$23","v":"00:00:00"},{"$f":"Time!WEN$23","v":"00:00:00"},{"$f":"Time!WEO$23","v":"00:00:00"},{"$f":"Time!WEP$23","v":"00:00:00"},{"$f":"Time!WEQ$23","v":"00:00:00"},{"$f":"Time!WER$23","v":"00:00:00"},{"$f":"Time!WES$23","v":"00:00:00"},{"$f":"Time!WET$23","v":"00:00:00"},{"$f":"Time!WEU$23","v":"00:00:00"},{"$f":"Time!WEV$23","v":"00:00:00"},{"$f":"Time!WEW$23","v":"00:00:00"},{"$f":"Time!WEX$23","v":"00:00:00"},{"$f":"Time!WEY$23","v":"00:00:00"},{"$f":"Time!WEZ$23","v":"00:00:00"},{"$f":"Time!WFA$23","v":"00:00:00"},{"$f":"Time!WFB$23","v":"00:00:00"},{"$f":"Time!WFC$23","v":"00:00:00"},{"$f":"Time!WFD$23","v":"00:00:00"},{"$f":"Time!WFE$23","v":"00:00:00"},{"$f":"Time!WFF$23","v":"00:00:00"},{"$f":"Time!WFG$23","v":"00:00:00"},{"$f":"Time!WFH$23","v":"00:00:00"},{"$f":"Time!WFI$23","v":"00:00:00"},{"$f":"Time!WFJ$23","v":"00:00:00"},{"$f":"Time!WFK$23","v":"00:00:00"},{"$f":"Time!WFL$23","v":"00:00:00"},{"$f":"Time!WFM$23","v":"00:00:00"},{"$f":"Time!WFN$23","v":"00:00:00"},{"$f":"Time!WFO$23","v":"00:00:00"},{"$f":"Time!WFP$23","v":"00:00:00"},{"$f":"Time!WFQ$23","v":"00:00:00"},{"$f":"Time!WFR$23","v":"00:00:00"},{"$f":"Time!WFS$23","v":"00:00:00"},{"$f":"Time!WFT$23","v":"00:00:00"},{"$f":"Time!WFU$23","v":"00:00:00"},{"$f":"Time!WFV$23","v":"00:00:00"},{"$f":"Time!WFW$23","v":"00:00:00"},{"$f":"Time!WFX$23","v":"00:00:00"},{"$f":"Time!WFY$23","v":"00:00:00"},{"$f":"Time!WFZ$23","v":"00:00:00"},{"$f":"Time!WGA$23","v":"00:00:00"},{"$f":"Time!WGB$23","v":"00:00:00"},{"$f":"Time!WGC$23","v":"00:00:00"},{"$f":"Time!WGD$23","v":"00:00:00"},{"$f":"Time!WGE$23","v":"00:00:00"},{"$f":"Time!WGF$23","v":"00:00:00"},{"$f":"Time!WGG$23","v":"00:00:00"},{"$f":"Time!WGH$23","v":"00:00:00"},{"$f":"Time!WGI$23","v":"00:00:00"},{"$f":"Time!WGJ$23","v":"00:00:00"},{"$f":"Time!WGK$23","v":"00:00:00"},{"$f":"Time!WGL$23","v":"00:00:00"},{"$f":"Time!WGM$23","v":"00:00:00"},{"$f":"Time!WGN$23","v":"00:00:00"},{"$f":"Time!WGO$23","v":"00:00:00"},{"$f":"Time!WGP$23","v":"00:00:00"},{"$f":"Time!WGQ$23","v":"00:00:00"},{"$f":"Time!WGR$23","v":"00:00:00"},{"$f":"Time!WGS$23","v":"00:00:00"},{"$f":"Time!WGT$23","v":"00:00:00"},{"$f":"Time!WGU$23","v":"00:00:00"},{"$f":"Time!WGV$23","v":"00:00:00"},{"$f":"Time!WGW$23","v":"00:00:00"},{"$f":"Time!WGX$23","v":"00:00:00"},{"$f":"Time!WGY$23","v":"00:00:00"},{"$f":"Time!WGZ$23","v":"00:00:00"},{"$f":"Time!WHA$23","v":"00:00:00"},{"$f":"Time!WHB$23","v":"00:00:00"},{"$f":"Time!WHC$23","v":"00:00:00"},{"$f":"Time!WHD$23","v":"00:00:00"},{"$f":"Time!WHE$23","v":"00:00:00"},{"$f":"Time!WHF$23","v":"00:00:00"},{"$f":"Time!WHG$23","v":"00:00:00"},{"$f":"Time!WHH$23","v":"00:00:00"},{"$f":"Time!WHI$23","v":"00:00:00"},{"$f":"Time!WHJ$23","v":"00:00:00"},{"$f":"Time!WHK$23","v":"00:00:00"},{"$f":"Time!WHL$23","v":"00:00:00"},{"$f":"Time!WHM$23","v":"00:00:00"},{"$f":"Time!WHN$23","v":"00:00:00"},{"$f":"Time!WHO$23","v":"00:00:00"},{"$f":"Time!WHP$23","v":"00:00:00"},{"$f":"Time!WHQ$23","v":"00:00:00"},{"$f":"Time!WHR$23","v":"00:00:00"},{"$f":"Time!WHS$23","v":"00:00:00"},{"$f":"Time!WHT$23","v":"00:00:00"},{"$f":"Time!WHU$23","v":"00:00:00"},{"$f":"Time!WHV$23","v":"00:00:00"},{"$f":"Time!WHW$23","v":"00:00:00"},{"$f":"Time!WHX$23","v":"00:00:00"},{"$f":"Time!WHY$23","v":"00:00:00"},{"$f":"Time!WHZ$23","v":"00:00:00"},{"$f":"Time!WIA$23","v":"00:00:00"},{"$f":"Time!WIB$23","v":"00:00:00"},{"$f":"Time!WIC$23","v":"00:00:00"},{"$f":"Time!WID$23","v":"00:00:00"},{"$f":"Time!WIE$23","v":"00:00:00"},{"$f":"Time!WIF$23","v":"00:00:00"},{"$f":"Time!WIG$23","v":"00:00:00"},{"$f":"Time!WIH$23","v":"00:00:00"},{"$f":"Time!WII$23","v":"00:00:00"},{"$f":"Time!WIJ$23","v":"00:00:00"},{"$f":"Time!WIK$23","v":"00:00:00"},{"$f":"Time!WIL$23","v":"00:00:00"},{"$f":"Time!WIM$23","v":"00:00:00"},{"$f":"Time!WIN$23","v":"00:00:00"},{"$f":"Time!WIO$23","v":"00:00:00"},{"$f":"Time!WIP$23","v":"00:00:00"},{"$f":"Time!WIQ$23","v":"00:00:00"},{"$f":"Time!WIR$23","v":"00:00:00"},{"$f":"Time!WIS$23","v":"00:00:00"},{"$f":"Time!WIT$23","v":"00:00:00"},{"$f":"Time!WIU$23","v":"00:00:00"},{"$f":"Time!WIV$23","v":"00:00:00"},{"$f":"Time!WIW$23","v":"00:00:00"},{"$f":"Time!WIX$23","v":"00:00:00"},{"$f":"Time!WIY$23","v":"00:00:00"},{"$f":"Time!WIZ$23","v":"00:00:00"},{"$f":"Time!WJA$23","v":"00:00:00"},{"$f":"Time!WJB$23","v":"00:00:00"},{"$f":"Time!WJC$23","v":"00:00:00"},{"$f":"Time!WJD$23","v":"00:00:00"},{"$f":"Time!WJE$23","v":"00:00:00"},{"$f":"Time!WJF$23","v":"00:00:00"},{"$f":"Time!WJG$23","v":"00:00:00"},{"$f":"Time!WJH$23","v":"00:00:00"},{"$f":"Time!WJI$23","v":"00:00:00"},{"$f":"Time!WJJ$23","v":"00:00:00"},{"$f":"Time!WJK$23","v":"00:00:00"},{"$f":"Time!WJL$23","v":"00:00:00"},{"$f":"Time!WJM$23","v":"00:00:00"},{"$f":"Time!WJN$23","v":"00:00:00"},{"$f":"Time!WJO$23","v":"00:00:00"},{"$f":"Time!WJP$23","v":"00:00:00"},{"$f":"Time!WJQ$23","v":"00:00:00"},{"$f":"Time!WJR$23","v":"00:00:00"},{"$f":"Time!WJS$23","v":"00:00:00"},{"$f":"Time!WJT$23","v":"00:00:00"},{"$f":"Time!WJU$23","v":"00:00:00"},{"$f":"Time!WJV$23","v":"00:00:00"},{"$f":"Time!WJW$23","v":"00:00:00"},{"$f":"Time!WJX$23","v":"00:00:00"},{"$f":"Time!WJY$23","v":"00:00:00"},{"$f":"Time!WJZ$23","v":"00:00:00"},{"$f":"Time!WKA$23","v":"00:00:00"},{"$f":"Time!WKB$23","v":"00:00:00"},{"$f":"Time!WKC$23","v":"00:00:00"},{"$f":"Time!WKD$23","v":"00:00:00"},{"$f":"Time!WKE$23","v":"00:00:00"},{"$f":"Time!WKF$23","v":"00:00:00"},{"$f":"Time!WKG$23","v":"00:00:00"},{"$f":"Time!WKH$23","v":"00:00:00"},{"$f":"Time!WKI$23","v":"00:00:00"},{"$f":"Time!WKJ$23","v":"00:00:00"},{"$f":"Time!WKK$23","v":"00:00:00"},{"$f":"Time!WKL$23","v":"00:00:00"},{"$f":"Time!WKM$23","v":"00:00:00"},{"$f":"Time!WKN$23","v":"00:00:00"},{"$f":"Time!WKO$23","v":"00:00:00"},{"$f":"Time!WKP$23","v":"00:00:00"},{"$f":"Time!WKQ$23","v":"00:00:00"},{"$f":"Time!WKR$23","v":"00:00:00"},{"$f":"Time!WKS$23","v":"00:00:00"},{"$f":"Time!WKT$23","v":"00:00:00"},{"$f":"Time!WKU$23","v":"00:00:00"},{"$f":"Time!WKV$23","v":"00:00:00"},{"$f":"Time!WKW$23","v":"00:00:00"},{"$f":"Time!WKX$23","v":"00:00:00"},{"$f":"Time!WKY$23","v":"00:00:00"},{"$f":"Time!WKZ$23","v":"00:00:00"},{"$f":"Time!WLA$23","v":"00:00:00"},{"$f":"Time!WLB$23","v":"00:00:00"},{"$f":"Time!WLC$23","v":"00:00:00"},{"$f":"Time!WLD$23","v":"00:00:00"},{"$f":"Time!WLE$23","v":"00:00:00"},{"$f":"Time!WLF$23","v":"00:00:00"},{"$f":"Time!WLG$23","v":"00:00:00"},{"$f":"Time!WLH$23","v":"00:00:00"},{"$f":"Time!WLI$23","v":"00:00:00"},{"$f":"Time!WLJ$23","v":"00:00:00"},{"$f":"Time!WLK$23","v":"00:00:00"},{"$f":"Time!WLL$23","v":"00:00:00"},{"$f":"Time!WLM$23","v":"00:00:00"},{"$f":"Time!WLN$23","v":"00:00:00"},{"$f":"Time!WLO$23","v":"00:00:00"},{"$f":"Time!WLP$23","v":"00:00:00"},{"$f":"Time!WLQ$23","v":"00:00:00"},{"$f":"Time!WLR$23","v":"00:00:00"},{"$f":"Time!WLS$23","v":"00:00:00"},{"$f":"Time!WLT$23","v":"00:00:00"},{"$f":"Time!WLU$23","v":"00:00:00"},{"$f":"Time!WLV$23","v":"00:00:00"},{"$f":"Time!WLW$23","v":"00:00:00"},{"$f":"Time!WLX$23","v":"00:00:00"},{"$f":"Time!WLY$23","v":"00:00:00"},{"$f":"Time!WLZ$23","v":"00:00:00"},{"$f":"Time!WMA$23","v":"00:00:00"},{"$f":"Time!WMB$23","v":"00:00:00"},{"$f":"Time!WMC$23","v":"00:00:00"},{"$f":"Time!WMD$23","v":"00:00:00"},{"$f":"Time!WME$23","v":"00:00:00"},{"$f":"Time!WMF$23","v":"00:00:00"},{"$f":"Time!WMG$23","v":"00:00:00"},{"$f":"Time!WMH$23","v":"00:00:00"},{"$f":"Time!WMI$23","v":"00:00:00"},{"$f":"Time!WMJ$23","v":"00:00:00"},{"$f":"Time!WMK$23","v":"00:00:00"},{"$f":"Time!WML$23","v":"00:00:00"},{"$f":"Time!WMM$23","v":"00:00:00"},{"$f":"Time!WMN$23","v":"00:00:00"},{"$f":"Time!WMO$23","v":"00:00:00"},{"$f":"Time!WMP$23","v":"00:00:00"},{"$f":"Time!WMQ$23","v":"00:00:00"},{"$f":"Time!WMR$23","v":"00:00:00"},{"$f":"Time!WMS$23","v":"00:00:00"},{"$f":"Time!WMT$23","v":"00:00:00"},{"$f":"Time!WMU$23","v":"00:00:00"},{"$f":"Time!WMV$23","v":"00:00:00"},{"$f":"Time!WMW$23","v":"00:00:00"},{"$f":"Time!WMX$23","v":"00:00:00"},{"$f":"Time!WMY$23","v":"00:00:00"},{"$f":"Time!WMZ$23","v":"00:00:00"},{"$f":"Time!WNA$23","v":"00:00:00"},{"$f":"Time!WNB$23","v":"00:00:00"},{"$f":"Time!WNC$23","v":"00:00:00"},{"$f":"Time!WND$23","v":"00:00:00"},{"$f":"Time!WNE$23","v":"00:00:00"},{"$f":"Time!WNF$23","v":"00:00:00"},{"$f":"Time!WNG$23","v":"00:00:00"},{"$f":"Time!WNH$23","v":"00:00:00"},{"$f":"Time!WNI$23","v":"00:00:00"},{"$f":"Time!WNJ$23","v":"00:00:00"},{"$f":"Time!WNK$23","v":"00:00:00"},{"$f":"Time!WNL$23","v":"00:00:00"},{"$f":"Time!WNM$23","v":"00:00:00"},{"$f":"Time!WNN$23","v":"00:00:00"},{"$f":"Time!WNO$23","v":"00:00:00"},{"$f":"Time!WNP$23","v":"00:00:00"},{"$f":"Time!WNQ$23","v":"00:00:00"},{"$f":"Time!WNR$23","v":"00:00:00"},{"$f":"Time!WNS$23","v":"00:00:00"},{"$f":"Time!WNT$23","v":"00:00:00"},{"$f":"Time!WNU$23","v":"00:00:00"},{"$f":"Time!WNV$23","v":"00:00:00"},{"$f":"Time!WNW$23","v":"00:00:00"},{"$f":"Time!WNX$23","v":"00:00:00"},{"$f":"Time!WNY$23","v":"00:00:00"},{"$f":"Time!WNZ$23","v":"00:00:00"},{"$f":"Time!WOA$23","v":"00:00:00"},{"$f":"Time!WOB$23","v":"00:00:00"},{"$f":"Time!WOC$23","v":"00:00:00"},{"$f":"Time!WOD$23","v":"00:00:00"},{"$f":"Time!WOE$23","v":"00:00:00"},{"$f":"Time!WOF$23","v":"00:00:00"},{"$f":"Time!WOG$23","v":"00:00:00"},{"$f":"Time!WOH$23","v":"00:00:00"},{"$f":"Time!WOI$23","v":"00:00:00"},{"$f":"Time!WOJ$23","v":"00:00:00"},{"$f":"Time!WOK$23","v":"00:00:00"},{"$f":"Time!WOL$23","v":"00:00:00"},{"$f":"Time!WOM$23","v":"00:00:00"},{"$f":"Time!WON$23","v":"00:00:00"},{"$f":"Time!WOO$23","v":"00:00:00"},{"$f":"Time!WOP$23","v":"00:00:00"},{"$f":"Time!WOQ$23","v":"00:00:00"},{"$f":"Time!WOR$23","v":"00:00:00"},{"$f":"Time!WOS$23","v":"00:00:00"},{"$f":"Time!WOT$23","v":"00:00:00"},{"$f":"Time!WOU$23","v":"00:00:00"},{"$f":"Time!WOV$23","v":"00:00:00"},{"$f":"Time!WOW$23","v":"00:00:00"},{"$f":"Time!WOX$23","v":"00:00:00"},{"$f":"Time!WOY$23","v":"00:00:00"},{"$f":"Time!WOZ$23","v":"00:00:00"},{"$f":"Time!WPA$23","v":"00:00:00"},{"$f":"Time!WPB$23","v":"00:00:00"},{"$f":"Time!WPC$23","v":"00:00:00"},{"$f":"Time!WPD$23","v":"00:00:00"},{"$f":"Time!WPE$23","v":"00:00:00"},{"$f":"Time!WPF$23","v":"00:00:00"},{"$f":"Time!WPG$23","v":"00:00:00"},{"$f":"Time!WPH$23","v":"00:00:00"},{"$f":"Time!WPI$23","v":"00:00:00"},{"$f":"Time!WPJ$23","v":"00:00:00"},{"$f":"Time!WPK$23","v":"00:00:00"},{"$f":"Time!WPL$23","v":"00:00:00"},{"$f":"Time!WPM$23","v":"00:00:00"},{"$f":"Time!WPN$23","v":"00:00:00"},{"$f":"Time!WPO$23","v":"00:00:00"},{"$f":"Time!WPP$23","v":"00:00:00"},{"$f":"Time!WPQ$23","v":"00:00:00"},{"$f":"Time!WPR$23","v":"00:00:00"},{"$f":"Time!WPS$23","v":"00:00:00"},{"$f":"Time!WPT$23","v":"00:00:00"},{"$f":"Time!WPU$23","v":"00:00:00"},{"$f":"Time!WPV$23","v":"00:00:00"},{"$f":"Time!WPW$23","v":"00:00:00"},{"$f":"Time!WPX$23","v":"00:00:00"},{"$f":"Time!WPY$23","v":"00:00:00"},{"$f":"Time!WPZ$23","v":"00:00:00"},{"$f":"Time!WQA$23","v":"00:00:00"},{"$f":"Time!WQB$23","v":"00:00:00"},{"$f":"Time!WQC$23","v":"00:00:00"},{"$f":"Time!WQD$23","v":"00:00:00"},{"$f":"Time!WQE$23","v":"00:00:00"},{"$f":"Time!WQF$23","v":"00:00:00"},{"$f":"Time!WQG$23","v":"00:00:00"},{"$f":"Time!WQH$23","v":"00:00:00"},{"$f":"Time!WQI$23","v":"00:00:00"},{"$f":"Time!WQJ$23","v":"00:00:00"},{"$f":"Time!WQK$23","v":"00:00:00"},{"$f":"Time!WQL$23","v":"00:00:00"},{"$f":"Time!WQM$23","v":"00:00:00"},{"$f":"Time!WQN$23","v":"00:00:00"},{"$f":"Time!WQO$23","v":"00:00:00"},{"$f":"Time!WQP$23","v":"00:00:00"},{"$f":"Time!WQQ$23","v":"00:00:00"},{"$f":"Time!WQR$23","v":"00:00:00"},{"$f":"Time!WQS$23","v":"00:00:00"},{"$f":"Time!WQT$23","v":"00:00:00"},{"$f":"Time!WQU$23","v":"00:00:00"},{"$f":"Time!WQV$23","v":"00:00:00"},{"$f":"Time!WQW$23","v":"00:00:00"},{"$f":"Time!WQX$23","v":"00:00:00"},{"$f":"Time!WQY$23","v":"00:00:00"},{"$f":"Time!WQZ$23","v":"00:00:00"},{"$f":"Time!WRA$23","v":"00:00:00"},{"$f":"Time!WRB$23","v":"00:00:00"},{"$f":"Time!WRC$23","v":"00:00:00"},{"$f":"Time!WRD$23","v":"00:00:00"},{"$f":"Time!WRE$23","v":"00:00:00"},{"$f":"Time!WRF$23","v":"00:00:00"},{"$f":"Time!WRG$23","v":"00:00:00"},{"$f":"Time!WRH$23","v":"00:00:00"},{"$f":"Time!WRI$23","v":"00:00:00"},{"$f":"Time!WRJ$23","v":"00:00:00"},{"$f":"Time!WRK$23","v":"00:00:00"},{"$f":"Time!WRL$23","v":"00:00:00"},{"$f":"Time!WRM$23","v":"00:00:00"},{"$f":"Time!WRN$23","v":"00:00:00"},{"$f":"Time!WRO$23","v":"00:00:00"},{"$f":"Time!WRP$23","v":"00:00:00"},{"$f":"Time!WRQ$23","v":"00:00:00"},{"$f":"Time!WRR$23","v":"00:00:00"},{"$f":"Time!WRS$23","v":"00:00:00"},{"$f":"Time!WRT$23","v":"00:00:00"},{"$f":"Time!WRU$23","v":"00:00:00"},{"$f":"Time!WRV$23","v":"00:00:00"},{"$f":"Time!WRW$23","v":"00:00:00"},{"$f":"Time!WRX$23","v":"00:00:00"},{"$f":"Time!WRY$23","v":"00:00:00"},{"$f":"Time!WRZ$23","v":"00:00:00"},{"$f":"Time!WSA$23","v":"00:00:00"},{"$f":"Time!WSB$23","v":"00:00:00"},{"$f":"Time!WSC$23","v":"00:00:00"},{"$f":"Time!WSD$23","v":"00:00:00"},{"$f":"Time!WSE$23","v":"00:00:00"},{"$f":"Time!WSF$23","v":"00:00:00"},{"$f":"Time!WSG$23","v":"00:00:00"},{"$f":"Time!WSH$23","v":"00:00:00"},{"$f":"Time!WSI$23","v":"00:00:00"},{"$f":"Time!WSJ$23","v":"00:00:00"},{"$f":"Time!WSK$23","v":"00:00:00"},{"$f":"Time!WSL$23","v":"00:00:00"},{"$f":"Time!WSM$23","v":"00:00:00"},{"$f":"Time!WSN$23","v":"00:00:00"},{"$f":"Time!WSO$23","v":"00:00:00"},{"$f":"Time!WSP$23","v":"00:00:00"},{"$f":"Time!WSQ$23","v":"00:00:00"},{"$f":"Time!WSR$23","v":"00:00:00"},{"$f":"Time!WSS$23","v":"00:00:00"},{"$f":"Time!WST$23","v":"00:00:00"},{"$f":"Time!WSU$23","v":"00:00:00"},{"$f":"Time!WSV$23","v":"00:00:00"},{"$f":"Time!WSW$23","v":"00:00:00"},{"$f":"Time!WSX$23","v":"00:00:00"},{"$f":"Time!WSY$23","v":"00:00:00"},{"$f":"Time!WSZ$23","v":"00:00:00"},{"$f":"Time!WTA$23","v":"00:00:00"},{"$f":"Time!WTB$23","v":"00:00:00"},{"$f":"Time!WTC$23","v":"00:00:00"},{"$f":"Time!WTD$23","v":"00:00:00"},{"$f":"Time!WTE$23","v":"00:00:00"},{"$f":"Time!WTF$23","v":"00:00:00"},{"$f":"Time!WTG$23","v":"00:00:00"},{"$f":"Time!WTH$23","v":"00:00:00"},{"$f":"Time!WTI$23","v":"00:00:00"},{"$f":"Time!WTJ$23","v":"00:00:00"},{"$f":"Time!WTK$23","v":"00:00:00"},{"$f":"Time!WTL$23","v":"00:00:00"},{"$f":"Time!WTM$23","v":"00:00:00"},{"$f":"Time!WTN$23","v":"00:00:00"},{"$f":"Time!WTO$23","v":"00:00:00"},{"$f":"Time!WTP$23","v":"00:00:00"},{"$f":"Time!WTQ$23","v":"00:00:00"},{"$f":"Time!WTR$23","v":"00:00:00"},{"$f":"Time!WTS$23","v":"00:00:00"},{"$f":"Time!WTT$23","v":"00:00:00"},{"$f":"Time!WTU$23","v":"00:00:00"},{"$f":"Time!WTV$23","v":"00:00:00"},{"$f":"Time!WTW$23","v":"00:00:00"},{"$f":"Time!WTX$23","v":"00:00:00"},{"$f":"Time!WTY$23","v":"00:00:00"},{"$f":"Time!WTZ$23","v":"00:00:00"},{"$f":"Time!WUA$23","v":"00:00:00"},{"$f":"Time!WUB$23","v":"00:00:00"},{"$f":"Time!WUC$23","v":"00:00:00"},{"$f":"Time!WUD$23","v":"00:00:00"},{"$f":"Time!WUE$23","v":"00:00:00"},{"$f":"Time!WUF$23","v":"00:00:00"},{"$f":"Time!WUG$23","v":"00:00:00"},{"$f":"Time!WUH$23","v":"00:00:00"},{"$f":"Time!WUI$23","v":"00:00:00"},{"$f":"Time!WUJ$23","v":"00:00:00"},{"$f":"Time!WUK$23","v":"00:00:00"},{"$f":"Time!WUL$23","v":"00:00:00"},{"$f":"Time!WUM$23","v":"00:00:00"},{"$f":"Time!WUN$23","v":"00:00:00"},{"$f":"Time!WUO$23","v":"00:00:00"},{"$f":"Time!WUP$23","v":"00:00:00"},{"$f":"Time!WUQ$23","v":"00:00:00"},{"$f":"Time!WUR$23","v":"00:00:00"},{"$f":"Time!WUS$23","v":"00:00:00"},{"$f":"Time!WUT$23","v":"00:00:00"},{"$f":"Time!WUU$23","v":"00:00:00"},{"$f":"Time!WUV$23","v":"00:00:00"},{"$f":"Time!WUW$23","v":"00:00:00"},{"$f":"Time!WUX$23","v":"00:00:00"},{"$f":"Time!WUY$23","v":"00:00:00"},{"$f":"Time!WUZ$23","v":"00:00:00"},{"$f":"Time!WVA$23","v":"00:00:00"},{"$f":"Time!WVB$23","v":"00:00:00"},{"$f":"Time!WVC$23","v":"00:00:00"},{"$f":"Time!WVD$23","v":"00:00:00"},{"$f":"Time!WVE$23","v":"00:00:00"},{"$f":"Time!WVF$23","v":"00:00:00"},{"$f":"Time!WVG$23","v":"00:00:00"},{"$f":"Time!WVH$23","v":"00:00:00"},{"$f":"Time!WVI$23","v":"00:00:00"},{"$f":"Time!WVJ$23","v":"00:00:00"},{"$f":"Time!WVK$23","v":"00:00:00"},{"$f":"Time!WVL$23","v":"00:00:00"},{"$f":"Time!WVM$23","v":"00:00:00"},{"$f":"Time!WVN$23","v":"00:00:00"},{"$f":"Time!WVO$23","v":"00:00:00"},{"$f":"Time!WVP$23","v":"00:00:00"},{"$f":"Time!WVQ$23","v":"00:00:00"},{"$f":"Time!WVR$23","v":"00:00:00"},{"$f":"Time!WVS$23","v":"00:00:00"},{"$f":"Time!WVT$23","v":"00:00:00"},{"$f":"Time!WVU$23","v":"00:00:00"},{"$f":"Time!WVV$23","v":"00:00:00"},{"$f":"Time!WVW$23","v":"00:00:00"},{"$f":"Time!WVX$23","v":"00:00:00"},{"$f":"Time!WVY$23","v":"00:00:00"},{"$f":"Time!WVZ$23","v":"00:00:00"},{"$f":"Time!WWA$23","v":"00:00:00"},{"$f":"Time!WWB$23","v":"00:00:00"},{"$f":"Time!WWC$23","v":"00:00:00"},{"$f":"Time!WWD$23","v":"00:00:00"},{"$f":"Time!WWE$23","v":"00:00:00"},{"$f":"Time!WWF$23","v":"00:00:00"},{"$f":"Time!WWG$23","v":"00:00:00"},{"$f":"Time!WWH$23","v":"00:00:00"},{"$f":"Time!WWI$23","v":"00:00:00"},{"$f":"Time!WWJ$23","v":"00:00:00"},{"$f":"Time!WWK$23","v":"00:00:00"},{"$f":"Time!WWL$23","v":"00:00:00"},{"$f":"Time!WWM$23","v":"00:00:00"},{"$f":"Time!WWN$23","v":"00:00:00"},{"$f":"Time!WWO$23","v":"00:00:00"},{"$f":"Time!WWP$23","v":"00:00:00"},{"$f":"Time!WWQ$23","v":"00:00:00"},{"$f":"Time!WWR$23","v":"00:00:00"},{"$f":"Time!WWS$23","v":"00:00:00"},{"$f":"Time!WWT$23","v":"00:00:00"},{"$f":"Time!WWU$23","v":"00:00:00"},{"$f":"Time!WWV$23","v":"00:00:00"},{"$f":"Time!WWW$23","v":"00:00:00"},{"$f":"Time!WWX$23","v":"00:00:00"},{"$f":"Time!WWY$23","v":"00:00:00"},{"$f":"Time!WWZ$23","v":"00:00:00"},{"$f":"Time!WXA$23","v":"00:00:00"},{"$f":"Time!WXB$23","v":"00:00:00"},{"$f":"Time!WXC$23","v":"00:00:00"},{"$f":"Time!WXD$23","v":"00:00:00"},{"$f":"Time!WXE$23","v":"00:00:00"},{"$f":"Time!WXF$23","v":"00:00:00"},{"$f":"Time!WXG$23","v":"00:00:00"},{"$f":"Time!WXH$23","v":"00:00:00"},{"$f":"Time!WXI$23","v":"00:00:00"},{"$f":"Time!WXJ$23","v":"00:00:00"},{"$f":"Time!WXK$23","v":"00:00:00"},{"$f":"Time!WXL$23","v":"00:00:00"},{"$f":"Time!WXM$23","v":"00:00:00"},{"$f":"Time!WXN$23","v":"00:00:00"},{"$f":"Time!WXO$23","v":"00:00:00"},{"$f":"Time!WXP$23","v":"00:00:00"},{"$f":"Time!WXQ$23","v":"00:00:00"},{"$f":"Time!WXR$23","v":"00:00:00"},{"$f":"Time!WXS$23","v":"00:00:00"},{"$f":"Time!WXT$23","v":"00:00:00"},{"$f":"Time!WXU$23","v":"00:00:00"},{"$f":"Time!WXV$23","v":"00:00:00"},{"$f":"Time!WXW$23","v":"00:00:00"},{"$f":"Time!WXX$23","v":"00:00:00"},{"$f":"Time!WXY$23","v":"00:00:00"},{"$f":"Time!WXZ$23","v":"00:00:00"},{"$f":"Time!WYA$23","v":"00:00:00"},{"$f":"Time!WYB$23","v":"00:00:00"},{"$f":"Time!WYC$23","v":"00:00:00"},{"$f":"Time!WYD$23","v":"00:00:00"},{"$f":"Time!WYE$23","v":"00:00:00"},{"$f":"Time!WYF$23","v":"00:00:00"},{"$f":"Time!WYG$23","v":"00:00:00"},{"$f":"Time!WYH$23","v":"00:00:00"},{"$f":"Time!WYI$23","v":"00:00:00"},{"$f":"Time!WYJ$23","v":"00:00:00"},{"$f":"Time!WYK$23","v":"00:00:00"},{"$f":"Time!WYL$23","v":"00:00:00"},{"$f":"Time!WYM$23","v":"00:00:00"},{"$f":"Time!WYN$23","v":"00:00:00"},{"$f":"Time!WYO$23","v":"00:00:00"},{"$f":"Time!WYP$23","v":"00:00:00"},{"$f":"Time!WYQ$23","v":"00:00:00"},{"$f":"Time!WYR$23","v":"00:00:00"},{"$f":"Time!WYS$23","v":"00:00:00"},{"$f":"Time!WYT$23","v":"00:00:00"},{"$f":"Time!WYU$23","v":"00:00:00"},{"$f":"Time!WYV$23","v":"00:00:00"},{"$f":"Time!WYW$23","v":"00:00:00"},{"$f":"Time!WYX$23","v":"00:00:00"},{"$f":"Time!WYY$23","v":"00:00:00"},{"$f":"Time!WYZ$23","v":"00:00:00"},{"$f":"Time!WZA$23","v":"00:00:00"},{"$f":"Time!WZB$23","v":"00:00:00"},{"$f":"Time!WZC$23","v":"00:00:00"},{"$f":"Time!WZD$23","v":"00:00:00"},{"$f":"Time!WZE$23","v":"00:00:00"},{"$f":"Time!WZF$23","v":"00:00:00"},{"$f":"Time!WZG$23","v":"00:00:00"},{"$f":"Time!WZH$23","v":"00:00:00"},{"$f":"Time!WZI$23","v":"00:00:00"},{"$f":"Time!WZJ$23","v":"00:00:00"},{"$f":"Time!WZK$23","v":"00:00:00"},{"$f":"Time!WZL$23","v":"00:00:00"},{"$f":"Time!WZM$23","v":"00:00:00"},{"$f":"Time!WZN$23","v":"00:00:00"},{"$f":"Time!WZO$23","v":"00:00:00"},{"$f":"Time!WZP$23","v":"00:00:00"},{"$f":"Time!WZQ$23","v":"00:00:00"},{"$f":"Time!WZR$23","v":"00:00:00"},{"$f":"Time!WZS$23","v":"00:00:00"},{"$f":"Time!WZT$23","v":"00:00:00"},{"$f":"Time!WZU$23","v":"00:00:00"},{"$f":"Time!WZV$23","v":"00:00:00"},{"$f":"Time!WZW$23","v":"00:00:00"},{"$f":"Time!WZX$23","v":"00:00:00"},{"$f":"Time!WZY$23","v":"00:00:00"},{"$f":"Time!WZZ$23","v":"00:00:00"},{"$f":"Time!XAA$23","v":"00:00:00"},{"$f":"Time!XAB$23","v":"00:00:00"},{"$f":"Time!XAC$23","v":"00:00:00"},{"$f":"Time!XAD$23","v":"00:00:00"},{"$f":"Time!XAE$23","v":"00:00:00"},{"$f":"Time!XAF$23","v":"00:00:00"},{"$f":"Time!XAG$23","v":"00:00:00"},{"$f":"Time!XAH$23","v":"00:00:00"},{"$f":"Time!XAI$23","v":"00:00:00"},{"$f":"Time!XAJ$23","v":"00:00:00"},{"$f":"Time!XAK$23","v":"00:00:00"},{"$f":"Time!XAL$23","v":"00:00:00"},{"$f":"Time!XAM$23","v":"00:00:00"},{"$f":"Time!XAN$23","v":"00:00:00"},{"$f":"Time!XAO$23","v":"00:00:00"},{"$f":"Time!XAP$23","v":"00:00:00"},{"$f":"Time!XAQ$23","v":"00:00:00"},{"$f":"Time!XAR$23","v":"00:00:00"},{"$f":"Time!XAS$23","v":"00:00:00"},{"$f":"Time!XAT$23","v":"00:00:00"},{"$f":"Time!XAU$23","v":"00:00:00"},{"$f":"Time!XAV$23","v":"00:00:00"},{"$f":"Time!XAW$23","v":"00:00:00"},{"$f":"Time!XAX$23","v":"00:00:00"},{"$f":"Time!XAY$23","v":"00:00:00"},{"$f":"Time!XAZ$23","v":"00:00:00"},{"$f":"Time!XBA$23","v":"00:00:00"},{"$f":"Time!XBB$23","v":"00:00:00"},{"$f":"Time!XBC$23","v":"00:00:00"},{"$f":"Time!XBD$23","v":"00:00:00"},{"$f":"Time!XBE$23","v":"00:00:00"},{"$f":"Time!XBF$23","v":"00:00:00"},{"$f":"Time!XBG$23","v":"00:00:00"},{"$f":"Time!XBH$23","v":"00:00:00"},{"$f":"Time!XBI$23","v":"00:00:00"},{"$f":"Time!XBJ$23","v":"00:00:00"},{"$f":"Time!XBK$23","v":"00:00:00"},{"$f":"Time!XBL$23","v":"00:00:00"},{"$f":"Time!XBM$23","v":"00:00:00"},{"$f":"Time!XBN$23","v":"00:00:00"},{"$f":"Time!XBO$23","v":"00:00:00"},{"$f":"Time!XBP$23","v":"00:00:00"},{"$f":"Time!XBQ$23","v":"00:00:00"},{"$f":"Time!XBR$23","v":"00:00:00"},{"$f":"Time!XBS$23","v":"00:00:00"},{"$f":"Time!XBT$23","v":"00:00:00"},{"$f":"Time!XBU$23","v":"00:00:00"},{"$f":"Time!XBV$23","v":"00:00:00"},{"$f":"Time!XBW$23","v":"00:00:00"},{"$f":"Time!XBX$23","v":"00:00:00"},{"$f":"Time!XBY$23","v":"00:00:00"},{"$f":"Time!XBZ$23","v":"00:00:00"},{"$f":"Time!XCA$23","v":"00:00:00"},{"$f":"Time!XCB$23","v":"00:00:00"},{"$f":"Time!XCC$23","v":"00:00:00"},{"$f":"Time!XCD$23","v":"00:00:00"},{"$f":"Time!XCE$23","v":"00:00:00"},{"$f":"Time!XCF$23","v":"00:00:00"},{"$f":"Time!XCG$23","v":"00:00:00"},{"$f":"Time!XCH$23","v":"00:00:00"},{"$f":"Time!XCI$23","v":"00:00:00"},{"$f":"Time!XCJ$23","v":"00:00:00"},{"$f":"Time!XCK$23","v":"00:00:00"},{"$f":"Time!XCL$23","v":"00:00:00"},{"$f":"Time!XCM$23","v":"00:00:00"},{"$f":"Time!XCN$23","v":"00:00:00"},{"$f":"Time!XCO$23","v":"00:00:00"},{"$f":"Time!XCP$23","v":"00:00:00"},{"$f":"Time!XCQ$23","v":"00:00:00"},{"$f":"Time!XCR$23","v":"00:00:00"},{"$f":"Time!XCS$23","v":"00:00:00"},{"$f":"Time!XCT$23","v":"00:00:00"},{"$f":"Time!XCU$23","v":"00:00:00"},{"$f":"Time!XCV$23","v":"00:00:00"},{"$f":"Time!XCW$23","v":"00:00:00"},{"$f":"Time!XCX$23","v":"00:00:00"},{"$f":"Time!XCY$23","v":"00:00:00"},{"$f":"Time!XCZ$23","v":"00:00:00"},{"$f":"Time!XDA$23","v":"00:00:00"},{"$f":"Time!XDB$23","v":"00:00:00"},{"$f":"Time!XDC$23","v":"00:00:00"},{"$f":"Time!XDD$23","v":"00:00:00"},{"$f":"Time!XDE$23","v":"00:00:00"},{"$f":"Time!XDF$23","v":"00:00:00"},{"$f":"Time!XDG$23","v":"00:00:00"},{"$f":"Time!XDH$23","v":"00:00:00"},{"$f":"Time!XDI$23","v":"00:00:00"},{"$f":"Time!XDJ$23","v":"00:00:00"},{"$f":"Time!XDK$23","v":"00:00:00"},{"$f":"Time!XDL$23","v":"00:00:00"},{"$f":"Time!XDM$23","v":"00:00:00"},{"$f":"Time!XDN$23","v":"00:00:00"},{"$f":"Time!XDO$23","v":"00:00:00"},{"$f":"Time!XDP$23","v":"00:00:00"},{"$f":"Time!XDQ$23","v":"00:00:00"},{"$f":"Time!XDR$23","v":"00:00:00"},{"$f":"Time!XDS$23","v":"00:00:00"},{"$f":"Time!XDT$23","v":"00:00:00"},{"$f":"Time!XDU$23","v":"00:00:00"},{"$f":"Time!XDV$23","v":"00:00:00"},{"$f":"Time!XDW$23","v":"00:00:00"},{"$f":"Time!XDX$23","v":"00:00:00"},{"$f":"Time!XDY$23","v":"00:00:00"},{"$f":"Time!XDZ$23","v":"00:00:00"},{"$f":"Time!XEA$23","v":"00:00:00"},{"$f":"Time!XEB$23","v":"00:00:00"},{"$f":"Time!XEC$23","v":"00:00:00"},{"$f":"Time!XED$23","v":"00:00:00"},{"$f":"Time!XEE$23","v":"00:00:00"},{"$f":"Time!XEF$23","v":"00:00:00"},{"$f":"Time!XEG$23","v":"00:00:00"},{"$f":"Time!XEH$23","v":"00:00:00"},{"$f":"Time!XEI$23","v":"00:00:00"},{"$f":"Time!XEJ$23","v":"00:00:00"},{"$f":"Time!XEK$23","v":"00:00:00"},{"$f":"Time!XEL$23","v":"00:00:00"},{"$f":"Time!XEM$23","v":"00:00:00"},{"$f":"Time!XEN$23","v":"00:00:00"},{"$f":"Time!XEO$23","v":"00:00:00"},{"$f":"Time!XEP$23","v":"00:00:00"},{"$f":"Time!XEQ$23","v":"00:00:00"},{"$f":"Time!XER$23","v":"00:00:00"},{"$f":"Time!XES$23","v":"00:00:00"},{"$f":"Time!XET$23","v":"00:00:00"},{"$f":"Time!XEU$23","v":"00:00:00"},{"$f":"Time!XEV$23","v":"00:00:00"},{"$f":"Time!XEW$23","v":"00:00:00"},{"$f":"Time!XEX$23","v":"00:00:00"},{"$f":"Time!XEY$23","v":"00:00:00"},{"$f":"Time!XEZ$23","v":"00:00:00"},{"$f":"Time!XFA$23","v":"00:00:00"},{"$f":"Time!XFB$23","v":"00:00:00"},{"$f":"Time!XFC$23","v":"00:00:00"},{"$f":"Time!XFD$23","v":"00:00:00"}]
[null,null,null,null,{"$f":"Time!E$59","v":"Pre Forecast vs Forecast"},null,null,null,null,{"$f":"Time!J$59","v":"Pre Fcst"},{"$f":"Time!K$59","v":"Forecast"},{"$f":"Time!L$59","v":"Forecast"},{"$f":"Time!M$59","v":"Forecast"},{"$f":"Time!N$59","v":"Forecast"},{"$f":"Time!O$59","v":"Forecast"},{"$f":"Time!P$59","v":"Post-Fcst"},{"$f":"Time!Q$59","v":"Post-Fcst"},{"$f":"Time!R$59","v":"Post-Fcst"},{"$f":"Time!S$59","v":"00:00:00"},{"$f":"Time!T$59","v":"00:00:00"},{"$f":"Time!U$59","v":"00:00:00"},{"$f":"Time!V$59","v":"00:00:00"},{"$f":"Time!W$59","v":"00:00:00"},{"$f":"Time!X$59","v":"00:00:00"},{"$f":"Time!Y$59","v":"00:00:00"},{"$f":"Time!Z$59","v":"00:00:00"},{"$f":"Time!AA$59","v":"00:00:00"},{"$f":"Time!AB$59","v":"00:00:00"},{"$f":"Time!AC$59","v":"00:00:00"},{"$f":"Time!AD$59","v":"00:00:00"},{"$f":"Time!AE$59","v":"00:00:00"},{"$f":"Time!AF$59","v":"00:00:00"},{"$f":"Time!AG$59","v":"00:00:00"},{"$f":"Time!AH$59","v":"00:00:00"},{"$f":"Time!AI$59","v":"00:00:00"},{"$f":"Time!AJ$59","v":"00:00:00"},{"$f":"Time!AK$59","v":"00:00:00"},{"$f":"Time!AL$59","v":"00:00:00"},{"$f":"Time!AM$59","v":"00:00:00"},{"$f":"Time!AN$59","v":"00:00:00"},{"$f":"Time!AO$59","v":"00:00:00"},{"$f":"Time!AP$59","v":"00:00:00"},{"$f":"Time!AQ$59","v":"00:00:00"},{"$f":"Time!AR$59","v":"00:00:00"},{"$f":"Time!AS$59","v":"00:00:00"},{"$f":"Time!AT$59","v":"00:00:00"},{"$f":"Time!AU$59","v":"00:00:00"},{"$f":"Time!AV$59","v":"00:00:00"},{"$f":"Time!AW$59","v":"00:00:00"},{"$f":"Time!AX$59","v":"00:00:00"},{"$f":"Time!AY$59","v":"00:00:00"},{"$f":"Time!AZ$59","v":"00:00:00"},{"$f":"Time!BA$59","v":"00:00:00"},{"$f":"Time!BB$59","v":"00:00:00"},{"$f":"Time!BC$59","v":"00:00:00"},{"$f":"Time!BD$59","v":"00:00:00"},{"$f":"Time!BE$59","v":"00:00:00"},{"$f":"Time!BF$59","v":"00:00:00"},{"$f":"Time!BG$59","v":"00:00:00"},{"$f":"Time!BH$59","v":"00:00:00"},{"$f":"Time!BI$59","v":"00:00:00"},{"$f":"Time!BJ$59","v":"00:00:00"},{"$f":"Time!BK$59","v":"00:00:00"},{"$f":"Time!BL$59","v":"00:00:00"},{"$f":"Time!BM$59","v":"00:00:00"},{"$f":"Time!BN$59","v":"00:00:00"},{"$f":"Time!BO$59","v":"00:00:00"},{"$f":"Time!BP$59","v":"00:00:00"},{"$f":"Time!BQ$59","v":"00:00:00"},{"$f":"Time!BR$59","v":"00:00:00"},{"$f":"Time!BS$59","v":"00:00:00"},{"$f":"Time!BT$59","v":"00:00:00"},{"$f":"Time!BU$59","v":"00:00:00"},{"$f":"Time!BV$59","v":"00:00:00"},{"$f":"Time!BW$59","v":"00:00:00"},{"$f":"Time!BX$59","v":"00:00:00"},{"$f":"Time!BY$59","v":"00:00:00"},{"$f":"Time!BZ$59","v":"00:00:00"},{"$f":"Time!CA$59","v":"00:00:00"},{"$f":"Time!CB$59","v":"00:00:00"},{"$f":"Time!CC$59","v":"00:00:00"},{"$f":"Time!CD$59","v":"00:00:00"},{"$f":"Time!CE$59","v":"00:00:00"},{"$f":"Time!CF$59","v":"00:00:00"},{"$f":"Time!CG$59","v":"00:00:00"},{"$f":"Time!CH$59","v":"00:00:00"},{"$f":"Time!CI$59","v":"00:00:00"},{"$f":"Time!CJ$59","v":"00:00:00"},{"$f":"Time!CK$59","v":"00:00:00"},{"$f":"Time!CL$59","v":"00:00:00"},{"$f":"Time!CM$59","v":"00:00:00"},{"$f":"Time!CN$59","v":"00:00:00"},{"$f":"Time!CO$59","v":"00:00:00"},{"$f":"Time!CP$59","v":"00:00:00"},{"$f":"Time!CQ$59","v":"00:00:00"},{"$f":"Time!CR$59","v":"00:00:00"},{"$f":"Time!CS$59","v":"00:00:00"},{"$f":"Time!CT$59","v":"00:00:00"},{"$f":"Time!CU$59","v":"00:00:00"},{"$f":"Time!CV$59","v":"00:00:00"},{"$f":"Time!CW$59","v":"00:00:00"},{"$f":"Time!CX$59","v":"00:00:00"},{"$f":"Time!CY$59","v":"00:00:00"},{"$f":"Time!CZ$59","v":"00:00:00"},{"$f":"Time!DA$59","v":"00:00:00"},{"$f":"Time!DB$59","v":"00:00:00"},{"$f":"Time!DC$59","v":"00:00:00"},{"$f":"Time!DD$59","v":"00:00:00"},{"$f":"Time!DE$59","v":"00:00:00"},{"$f":"Time!DF$59","v":"00:00:00"},{"$f":"Time!DG$59","v":"00:00:00"},{"$f":"Time!DH$59","v":"00:00:00"},{"$f":"Time!DI$59","v":"00:00:00"},{"$f":"Time!DJ$59","v":"00:00:00"},{"$f":"Time!DK$59","v":"00:00:00"},{"$f":"Time!DL$59","v":"00:00:00"},{"$f":"Time!DM$59","v":"00:00:00"},{"$f":"Time!DN$59","v":"00:00:00"},{"$f":"Time!DO$59","v":"00:00:00"},{"$f":"Time!DP$59","v":"00:00:00"},{"$f":"Time!DQ$59","v":"00:00:00"},{"$f":"Time!DR$59","v":"00:00:00"},{"$f":"Time!DS$59","v":"00:00:00"},{"$f":"Time!DT$59","v":"00:00:00"},{"$f":"Time!DU$59","v":"00:00:00"},{"$f":"Time!DV$59","v":"00:00:00"},{"$f":"Time!DW$59","v":"00:00:00"},{"$f":"Time!DX$59","v":"00:00:00"},{"$f":"Time!DY$59","v":"00:00:00"},{"$f":"Time!DZ$59","v":"00:00:00"},{"$f":"Time!EA$59","v":"00:00:00"},{"$f":"Time!EB$59","v":"00:00:00"},{"$f":"Time!EC$59","v":"00:00:00"},{"$f":"Time!ED$59","v":"00:00:00"},{"$f":"Time!EE$59","v":"00:00:00"},{"$f":"Time!EF$59","v":"00:00:00"},{"$f":"Time!EG$59","v":"00:00:00"},{"$f":"Time!EH$59","v":"00:00:00"},{"$f":"Time!EI$59","v":"00:00:00"},{"$f":"Time!EJ$59","v":"00:00:00"},{"$f":"Time!EK$59","v":"00:00:00"},{"$f":"Time!EL$59","v":"00:00:00"},{"$f":"Time!EM$59","v":"00:00:00"},{"$f":"Time!EN$59","v":"00:00:00"},{"$f":"Time!EO$59","v":"00:00:00"},{"$f":"Time!EP$59","v":"00:00:00"},{"$f":"Time!EQ$59","v":"00:00:00"},{"$f":"Time!ER$59","v":"00:00:00"},{"$f":"Time!ES$59","v":"00:00:00"},{"$f":"Time!ET$59","v":"00:00:00"},{"$f":"Time!EU$59","v":"00:00:00"},{"$f":"Time!EV$59","v":"00:00:00"},{"$f":"Time!EW$59","v":"00:00:00"},{"$f":"Time!EX$59","v":"00:00:00"},{"$f":"Time!EY$59","v":"00:00:00"},{"$f":"Time!EZ$59","v":"00:00:00"},{"$f":"Time!FA$59","v":"00:00:00"},{"$f":"Time!FB$59","v":"00:00:00"},{"$f":"Time!FC$59","v":"00:00:00"},{"$f":"Time!FD$59","v":"00:00:00"},{"$f":"Time!FE$59","v":"00:00:00"},{"$f":"Time!FF$59","v":"00:00:00"},{"$f":"Time!FG$59","v":"00:00:00"},{"$f":"Time!FH$59","v":"00:00:00"},{"$f":"Time!FI$59","v":"00:00:00"},{"$f":"Time!FJ$59","v":"00:00:00"},{"$f":"Time!FK$59","v":"00:00:00"},{"$f":"Time!FL$59","v":"00:00:00"},{"$f":"Time!FM$59","v":"00:00:00"},{"$f":"Time!FN$59","v":"00:00:00"},{"$f":"Time!FO$59","v":"00:00:00"},{"$f":"Time!FP$59","v":"00:00:00"},{"$f":"Time!FQ$59","v":"00:00:00"},{"$f":"Time!FR$59","v":"00:00:00"},{"$f":"Time!FS$59","v":"00:00:00"},{"$f":"Time!FT$59","v":"00:00:00"},{"$f":"Time!FU$59","v":"00:00:00"},{"$f":"Time!FV$59","v":"00:00:00"},{"$f":"Time!FW$59","v":"00:00:00"},{"$f":"Time!FX$59","v":"00:00:00"},{"$f":"Time!FY$59","v":"00:00:00"},{"$f":"Time!FZ$59","v":"00:00:00"},{"$f":"Time!GA$59","v":"00:00:00"},{"$f":"Time!GB$59","v":"00:00:00"},{"$f":"Time!GC$59","v":"00:00:00"},{"$f":"Time!GD$59","v":"00:00:00"},{"$f":"Time!GE$59","v":"00:00:00"},{"$f":"Time!GF$59","v":"00:00:00"},{"$f":"Time!GG$59","v":"00:00:00"},{"$f":"Time!GH$59","v":"00:00:00"},{"$f":"Time!GI$59","v":"00:00:00"},{"$f":"Time!GJ$59","v":"00:00:00"},{"$f":"Time!GK$59","v":"00:00:00"},{"$f":"Time!GL$59","v":"00:00:00"},{"$f":"Time!GM$59","v":"00:00:00"},{"$f":"Time!GN$59","v":"00:00:00"},{"$f":"Time!GO$59","v":"00:00:00"},{"$f":"Time!GP$59","v":"00:00:00"},{"$f":"Time!GQ$59","v":"00:00:00"},{"$f":"Time!GR$59","v":"00:00:00"},{"$f":"Time!GS$59","v":"00:00:00"},{"$f":"Time!GT$59","v":"00:00:00"},{"$f":"Time!GU$59","v":"00:00:00"},{"$f":"Time!GV$59","v":"00:00:00"},{"$f":"Time!GW$59","v":"00:00:00"},{"$f":"Time!GX$59","v":"00:00:00"},{"$f":"Time!GY$59","v":"00:00:00"},{"$f":"Time!GZ$59","v":"00:00:00"},{"$f":"Time!HA$59","v":"00:00:00"},{"$f":"Time!HB$59","v":"00:00:00"},{"$f":"Time!HC$59","v":"00:00:00"},{"$f":"Time!HD$59","v":"00:00:00"},{"$f":"Time!HE$59","v":"00:00:00"},{"$f":"Time!HF$59","v":"00:00:00"},{"$f":"Time!HG$59","v":"00:00:00"},{"$f":"Time!HH$59","v":"00:00:00"},{"$f":"Time!HI$59","v":"00:00:00"},{"$f":"Time!HJ$59","v":"00:00:00"},{"$f":"Time!HK$59","v":"00:00:00"},{"$f":"Time!HL$59","v":"00:00:00"},{"$f":"Time!HM$59","v":"00:00:00"},{"$f":"Time!HN$59","v":"00:00:00"},{"$f":"Time!HO$59","v":"00:00:00"},{"$f":"Time!HP$59","v":"00:00:00"},{"$f":"Time!HQ$59","v":"00:00:00"},{"$f":"Time!HR$59","v":"00:00:00"},{"$f":"Time!HS$59","v":"00:00:00"},{"$f":"Time!HT$59","v":"00:00:00"},{"$f":"Time!HU$59","v":"00:00:00"},{"$f":"Time!HV$59","v":"00:00:00"},{"$f":"Time!HW$59","v":"00:00:00"},{"$f":"Time!HX$59","v":"00:00:00"},{"$f":"Time!HY$59","v":"00:00:00"},{"$f":"Time!HZ$59","v":"00:00:00"},{"$f":"Time!IA$59","v":"00:00:00"},{"$f":"Time!IB$59","v":"00:00:00"},{"$f":"Time!IC$59","v":"00:00:00"},{"$f":"Time!ID$59","v":"00:00:00"},{"$f":"Time!IE$59","v":"00:00:00"},{"$f":"Time!IF$59","v":"00:00:00"},{"$f":"Time!IG$59","v":"00:00:00"},{"$f":"Time!IH$59","v":"00:00:00"},{"$f":"Time!II$59","v":"00:00:00"},{"$f":"Time!IJ$59","v":"00:00:00"},{"$f":"Time!IK$59","v":"00:00:00"},{"$f":"Time!IL$59","v":"00:00:00"},{"$f":"Time!IM$59","v":"00:00:00"},{"$f":"Time!IN$59","v":"00:00:00"},{"$f":"Time!IO$59","v":"00:00:00"},{"$f":"Time!IP$59","v":"00:00:00"},{"$f":"Time!IQ$59","v":"00:00:00"},{"$f":"Time!IR$59","v":"00:00:00"},{"$f":"Time!IS$59","v":"00:00:00"},{"$f":"Time!IT$59","v":"00:00:00"},{"$f":"Time!IU$59","v":"00:00:00"},{"$f":"Time!IV$59","v":"00:00:00"},{"$f":"Time!IW$59","v":"00:00:00"},{"$f":"Time!IX$59","v":"00:00:00"},{"$f":"Time!IY$59","v":"00:00:00"},{"$f":"Time!IZ$59","v":"00:00:00"},{"$f":"Time!JA$59","v":"00:00:00"},{"$f":"Time!JB$59","v":"00:00:00"},{"$f":"Time!JC$59","v":"00:00:00"},{"$f":"Time!JD$59","v":"00:00:00"},{"$f":"Time!JE$59","v":"00:00:00"},{"$f":"Time!JF$59","v":"00:00:00"},{"$f":"Time!JG$59","v":"00:00:00"},{"$f":"Time!JH$59","v":"00:00:00"},{"$f":"Time!JI$59","v":"00:00:00"},{"$f":"Time!JJ$59","v":"00:00:00"},{"$f":"Time!JK$59","v":"00:00:00"},{"$f":"Time!JL$59","v":"00:00:00"},{"$f":"Time!JM$59","v":"00:00:00"},{"$f":"Time!JN$59","v":"00:00:00"},{"$f":"Time!JO$59","v":"00:00:00"},{"$f":"Time!JP$59","v":"00:00:00"},{"$f":"Time!JQ$59","v":"00:00:00"},{"$f":"Time!JR$59","v":"00:00:00"},{"$f":"Time!JS$59","v":"00:00:00"},{"$f":"Time!JT$59","v":"00:00:00"},{"$f":"Time!JU$59","v":"00:00:00"},{"$f":"Time!JV$59","v":"00:00:00"},{"$f":"Time!JW$59","v":"00:00:00"},{"$f":"Time!JX$59","v":"00:00:00"},{"$f":"Time!JY$59","v":"00:00:00"},{"$f":"Time!JZ$59","v":"00:00:00"},{"$f":"Time!KA$59","v":"00:00:00"},{"$f":"Time!KB$59","v":"00:00:00"},{"$f":"Time!KC$59","v":"00:00:00"},{"$f":"Time!KD$59","v":"00:00:00"},{"$f":"Time!KE$59","v":"00:00:00"},{"$f":"Time!KF$59","v":"00:00:00"},{"$f":"Time!KG$59","v":"00:00:00"},{"$f":"Time!KH$59","v":"00:00:00"},{"$f":"Time!KI$59","v":"00:00:00"},{"$f":"Time!KJ$59","v":"00:00:00"},{"$f":"Time!KK$59","v":"00:00:00"},{"$f":"Time!KL$59","v":"00:00:00"},{"$f":"Time!KM$59","v":"00:00:00"},{"$f":"Time!KN$59","v":"00:00:00"},{"$f":"Time!KO$59","v":"00:00:00"},{"$f":"Time!KP$59","v":"00:00:00"},{"$f":"Time!KQ$59","v":"00:00:00"},{"$f":"Time!KR$59","v":"00:00:00"},{"$f":"Time!KS$59","v":"00:00:00"},{"$f":"Time!KT$59","v":"00:00:00"},{"$f":"Time!KU$59","v":"00:00:00"},{"$f":"Time!KV$59","v":"00:00:00"},{"$f":"Time!KW$59","v":"00:00:00"},{"$f":"Time!KX$59","v":"00:00:00"},{"$f":"Time!KY$59","v":"00:00:00"},{"$f":"Time!KZ$59","v":"00:00:00"},{"$f":"Time!LA$59","v":"00:00:00"},{"$f":"Time!LB$59","v":"00:00:00"},{"$f":"Time!LC$59","v":"00:00:00"},{"$f":"Time!LD$59","v":"00:00:00"},{"$f":"Time!LE$59","v":"00:00:00"},{"$f":"Time!LF$59","v":"00:00:00"},{"$f":"Time!LG$59","v":"00:00:00"},{"$f":"Time!LH$59","v":"00:00:00"},{"$f":"Time!LI$59","v":"00:00:00"},{"$f":"Time!LJ$59","v":"00:00:00"},{"$f":"Time!LK$59","v":"00:00:00"},{"$f":"Time!LL$59","v":"00:00:00"},{"$f":"Time!LM$59","v":"00:00:00"},{"$f":"Time!LN$59","v":"00:00:00"},{"$f":"Time!LO$59","v":"00:00:00"},{"$f":"Time!LP$59","v":"00:00:00"},{"$f":"Time!LQ$59","v":"00:00:00"},{"$f":"Time!LR$59","v":"00:00:00"},{"$f":"Time!LS$59","v":"00:00:00"},{"$f":"Time!LT$59","v":"00:00:00"},{"$f":"Time!LU$59","v":"00:00:00"},{"$f":"Time!LV$59","v":"00:00:00"},{"$f":"Time!LW$59","v":"00:00:00"},{"$f":"Time!LX$59","v":"00:00:00"},{"$f":"Time!LY$59","v":"00:00:00"},{"$f":"Time!LZ$59","v":"00:00:00"},{"$f":"Time!MA$59","v":"00:00:00"},{"$f":"Time!MB$59","v":"00:00:00"},{"$f":"Time!MC$59","v":"00:00:00"},{"$f":"Time!MD$59","v":"00:00:00"},{"$f":"Time!ME$59","v":"00:00:00"},{"$f":"Time!MF$59","v":"00:00:00"},{"$f":"Time!MG$59","v":"00:00:00"},{"$f":"Time!MH$59","v":"00:00:00"},{"$f":"Time!MI$59","v":"00:00:00"},{"$f":"Time!MJ$59","v":"00:00:00"},{"$f":"Time!MK$59","v":"00:00:00"},{"$f":"Time!ML$59","v":"00:00:00"},{"$f":"Time!MM$59","v":"00:00:00"},{"$f":"Time!MN$59","v":"00:00:00"},{"$f":"Time!MO$59","v":"00:00:00"},{"$f":"Time!MP$59","v":"00:00:00"},{"$f":"Time!MQ$59","v":"00:00:00"},{"$f":"Time!MR$59","v":"00:00:00"},{"$f":"Time!MS$59","v":"00:00:00"},{"$f":"Time!MT$59","v":"00:00:00"},{"$f":"Time!MU$59","v":"00:00:00"},{"$f":"Time!MV$59","v":"00:00:00"},{"$f":"Time!MW$59","v":"00:00:00"},{"$f":"Time!MX$59","v":"00:00:00"},{"$f":"Time!MY$59","v":"00:00:00"},{"$f":"Time!MZ$59","v":"00:00:00"},{"$f":"Time!NA$59","v":"00:00:00"},{"$f":"Time!NB$59","v":"00:00:00"},{"$f":"Time!NC$59","v":"00:00:00"},{"$f":"Time!ND$59","v":"00:00:00"},{"$f":"Time!NE$59","v":"00:00:00"},{"$f":"Time!NF$59","v":"00:00:00"},{"$f":"Time!NG$59","v":"00:00:00"},{"$f":"Time!NH$59","v":"00:00:00"},{"$f":"Time!NI$59","v":"00:00:00"},{"$f":"Time!NJ$59","v":"00:00:00"},{"$f":"Time!NK$59","v":"00:00:00"},{"$f":"Time!NL$59","v":"00:00:00"},{"$f":"Time!NM$59","v":"00:00:00"},{"$f":"Time!NN$59","v":"00:00:00"},{"$f":"Time!NO$59","v":"00:00:00"},{"$f":"Time!NP$59","v":"00:00:00"},{"$f":"Time!NQ$59","v":"00:00:00"},{"$f":"Time!NR$59","v":"00:00:00"},{"$f":"Time!NS$59","v":"00:00:00"},{"$f":"Time!NT$59","v":"00:00:00"},{"$f":"Time!NU$59","v":"00:00:00"},{"$f":"Time!NV$59","v":"00:00:00"},{"$f":"Time!NW$59","v":"00:00:00"},{"$f":"Time!NX$59","v":"00:00:00"},{"$f":"Time!NY$59","v":"00:00:00"},{"$f":"Time!NZ$59","v":"00:00:00"},{"$f":"Time!OA$59","v":"00:00:00"},{"$f":"Time!OB$59","v":"00:00:00"},{"$f":"Time!OC$59","v":"00:00:00"},{"$f":"Time!OD$59","v":"00:00:00"},{"$f":"Time!OE$59","v":"00:00:00"},{"$f":"Time!OF$59","v":"00:00:00"},{"$f":"Time!OG$59","v":"00:00:00"},{"$f":"Time!OH$59","v":"00:00:00"},{"$f":"Time!OI$59","v":"00:00:00"},{"$f":"Time!OJ$59","v":"00:00:00"},{"$f":"Time!OK$59","v":"00:00:00"},{"$f":"Time!OL$59","v":"00:00:00"},{"$f":"Time!OM$59","v":"00:00:00"},{"$f":"Time!ON$59","v":"00:00:00"},{"$f":"Time!OO$59","v":"00:00:00"},{"$f":"Time!OP$59","v":"00:00:00"},{"$f":"Time!OQ$59","v":"00:00:00"},{"$f":"Time!OR$59","v":"00:00:00"},{"$f":"Time!OS$59","v":"00:00:00"},{"$f":"Time!OT$59","v":"00:00:00"},{"$f":"Time!OU$59","v":"00:00:00"},{"$f":"Time!OV$59","v":"00:00:00"},{"$f":"Time!OW$59","v":"00:00:00"},{"$f":"Time!OX$59","v":"00:00:00"},{"$f":"Time!OY$59","v":"00:00:00"},{"$f":"Time!OZ$59","v":"00:00:00"},{"$f":"Time!PA$59","v":"00:00:00"},{"$f":"Time!PB$59","v":"00:00:00"},{"$f":"Time!PC$59","v":"00:00:00"},{"$f":"Time!PD$59","v":"00:00:00"},{"$f":"Time!PE$59","v":"00:00:00"},{"$f":"Time!PF$59","v":"00:00:00"},{"$f":"Time!PG$59","v":"00:00:00"},{"$f":"Time!PH$59","v":"00:00:00"},{"$f":"Time!PI$59","v":"00:00:00"},{"$f":"Time!PJ$59","v":"00:00:00"},{"$f":"Time!PK$59","v":"00:00:00"},{"$f":"Time!PL$59","v":"00:00:00"},{"$f":"Time!PM$59","v":"00:00:00"},{"$f":"Time!PN$59","v":"00:00:00"},{"$f":"Time!PO$59","v":"00:00:00"},{"$f":"Time!PP$59","v":"00:00:00"},{"$f":"Time!PQ$59","v":"00:00:00"},{"$f":"Time!PR$59","v":"00:00:00"},{"$f":"Time!PS$59","v":"00:00:00"},{"$f":"Time!PT$59","v":"00:00:00"},{"$f":"Time!PU$59","v":"00:00:00"},{"$f":"Time!PV$59","v":"00:00:00"},{"$f":"Time!PW$59","v":"00:00:00"},{"$f":"Time!PX$59","v":"00:00:00"},{"$f":"Time!PY$59","v":"00:00:00"},{"$f":"Time!PZ$59","v":"00:00:00"},{"$f":"Time!QA$59","v":"00:00:00"},{"$f":"Time!QB$59","v":"00:00:00"},{"$f":"Time!QC$59","v":"00:00:00"},{"$f":"Time!QD$59","v":"00:00:00"},{"$f":"Time!QE$59","v":"00:00:00"},{"$f":"Time!QF$59","v":"00:00:00"},{"$f":"Time!QG$59","v":"00:00:00"},{"$f":"Time!QH$59","v":"00:00:00"},{"$f":"Time!QI$59","v":"00:00:00"},{"$f":"Time!QJ$59","v":"00:00:00"},{"$f":"Time!QK$59","v":"00:00:00"},{"$f":"Time!QL$59","v":"00:00:00"},{"$f":"Time!QM$59","v":"00:00:00"},{"$f":"Time!QN$59","v":"00:00:00"},{"$f":"Time!QO$59","v":"00:00:00"},{"$f":"Time!QP$59","v":"00:00:00"},{"$f":"Time!QQ$59","v":"00:00:00"},{"$f":"Time!QR$59","v":"00:00:00"},{"$f":"Time!QS$59","v":"00:00:00"},{"$f":"Time!QT$59","v":"00:00:00"},{"$f":"Time!QU$59","v":"00:00:00"},{"$f":"Time!QV$59","v":"00:00:00"},{"$f":"Time!QW$59","v":"00:00:00"},{"$f":"Time!QX$59","v":"00:00:00"},{"$f":"Time!QY$59","v":"00:00:00"},{"$f":"Time!QZ$59","v":"00:00:00"},{"$f":"Time!RA$59","v":"00:00:00"},{"$f":"Time!RB$59","v":"00:00:00"},{"$f":"Time!RC$59","v":"00:00:00"},{"$f":"Time!RD$59","v":"00:00:00"},{"$f":"Time!RE$59","v":"00:00:00"},{"$f":"Time!RF$59","v":"00:00:00"},{"$f":"Time!RG$59","v":"00:00:00"},{"$f":"Time!RH$59","v":"00:00:00"},{"$f":"Time!RI$59","v":"00:00:00"},{"$f":"Time!RJ$59","v":"00:00:00"},{"$f":"Time!RK$59","v":"00:00:00"},{"$f":"Time!RL$59","v":"00:00:00"},{"$f":"Time!RM$59","v":"00:00:00"},{"$f":"Time!RN$59","v":"00:00:00"},{"$f":"Time!RO$59","v":"00:00:00"},{"$f":"Time!RP$59","v":"00:00:00"},{"$f":"Time!RQ$59","v":"00:00:00"},{"$f":"Time!RR$59","v":"00:00:00"},{"$f":"Time!RS$59","v":"00:00:00"},{"$f":"Time!RT$59","v":"00:00:00"},{"$f":"Time!RU$59","v":"00:00:00"},{"$f":"Time!RV$59","v":"00:00:00"},{"$f":"Time!RW$59","v":"00:00:00"},{"$f":"Time!RX$59","v":"00:00:00"},{"$f":"Time!RY$59","v":"00:00:00"},{"$f":"Time!RZ$59","v":"00:00:00"},{"$f":"Time!SA$59","v":"00:00:00"},{"$f":"Time!SB$59","v":"00:00:00"},{"$f":"Time!SC$59","v":"00:00:00"},{"$f":"Time!SD$59","v":"00:00:00"},{"$f":"Time!SE$59","v":"00:00:00"},{"$f":"Time!SF$59","v":"00:00:00"},{"$f":"Time!SG$59","v":"00:00:00"},{"$f":"Time!SH$59","v":"00:00:00"},{"$f":"Time!SI$59","v":"00:00:00"},{"$f":"Time!SJ$59","v":"00:00:00"},{"$f":"Time!SK$59","v":"00:00:00"},{"$f":"Time!SL$59","v":"00:00:00"},{"$f":"Time!SM$59","v":"00:00:00"},{"$f":"Time!SN$59","v":"00:00:00"},{"$f":"Time!SO$59","v":"00:00:00"},{"$f":"Time!SP$59","v":"00:00:00"},{"$f":"Time!SQ$59","v":"00:00:00"},{"$f":"Time!SR$59","v":"00:00:00"},{"$f":"Time!SS$59","v":"00:00:00"},{"$f":"Time!ST$59","v":"00:00:00"},{"$f":"Time!SU$59","v":"00:00:00"},{"$f":"Time!SV$59","v":"00:00:00"},{"$f":"Time!SW$59","v":"00:00:00"},{"$f":"Time!SX$59","v":"00:00:00"},{"$f":"Time!SY$59","v":"00:00:00"},{"$f":"Time!SZ$59","v":"00:00:00"},{"$f":"Time!TA$59","v":"00:00:00"},{"$f":"Time!TB$59","v":"00:00:00"},{"$f":"Time!TC$59","v":"00:00:00"},{"$f":"Time!TD$59","v":"00:00:00"},{"$f":"Time!TE$59","v":"00:00:00"},{"$f":"Time!TF$59","v":"00:00:00"},{"$f":"Time!TG$59","v":"00:00:00"},{"$f":"Time!TH$59","v":"00:00:00"},{"$f":"Time!TI$59","v":"00:00:00"},{"$f":"Time!TJ$59","v":"00:00:00"},{"$f":"Time!TK$59","v":"00:00:00"},{"$f":"Time!TL$59","v":"00:00:00"},{"$f":"Time!TM$59","v":"00:00:00"},{"$f":"Time!TN$59","v":"00:00:00"},{"$f":"Time!TO$59","v":"00:00:00"},{"$f":"Time!TP$59","v":"00:00:00"},{"$f":"Time!TQ$59","v":"00:00:00"},{"$f":"Time!TR$59","v":"00:00:00"},{"$f":"Time!TS$59","v":"00:00:00"},{"$f":"Time!TT$59","v":"00:00:00"},{"$f":"Time!TU$59","v":"00:00:00"},{"$f":"Time!TV$59","v":"00:00:00"},{"$f":"Time!TW$59","v":"00:00:00"},{"$f":"Time!TX$59","v":"00:00:00"},{"$f":"Time!TY$59","v":"00:00:00"},{"$f":"Time!TZ$59","v":"00:00:00"},{"$f":"Time!UA$59","v":"00:00:00"},{"$f":"Time!UB$59","v":"00:00:00"},{"$f":"Time!UC$59","v":"00:00:00"},{"$f":"Time!UD$59","v":"00:00:00"},{"$f":"Time!UE$59","v":"00:00:00"},{"$f":"Time!UF$59","v":"00:00:00"},{"$f":"Time!UG$59","v":"00:00:00"},{"$f":"Time!UH$59","v":"00:00:00"},{"$f":"Time!UI$59","v":"00:00:00"},{"$f":"Time!UJ$59","v":"00:00:00"},{"$f":"Time!UK$59","v":"00:00:00"},{"$f":"Time!UL$59","v":"00:00:00"},{"$f":"Time!UM$59","v":"00:00:00"},{"$f":"Time!UN$59","v":"00:00:00"},{"$f":"Time!UO$59","v":"00:00:00"},{"$f":"Time!UP$59","v":"00:00:00"},{"$f":"Time!UQ$59","v":"00:00:00"},{"$f":"Time!UR$59","v":"00:00:00"},{"$f":"Time!US$59","v":"00:00:00"},{"$f":"Time!UT$59","v":"00:00:00"},{"$f":"Time!UU$59","v":"00:00:00"},{"$f":"Time!UV$59","v":"00:00:00"},{"$f":"Time!UW$59","v":"00:00:00"},{"$f":"Time!UX$59","v":"00:00:00"},{"$f":"Time!UY$59","v":"00:00:00"},{"$f":"Time!UZ$59","v":"00:00:00"},{"$f":"Time!VA$59","v":"00:00:00"},{"$f":"Time!VB$59","v":"00:00:00"},{"$f":"Time!VC$59","v":"00:00:00"},{"$f":"Time!VD$59","v":"00:00:00"},{"$f":"Time!VE$59","v":"00:00:00"},{"$f":"Time!VF$59","v":"00:00:00"},{"$f":"Time!VG$59","v":"00:00:00"},{"$f":"Time!VH$59","v":"00:00:00"},{"$f":"Time!VI$59","v":"00:00:00"},{"$f":"Time!VJ$59","v":"00:00:00"},{"$f":"Time!VK$59","v":"00:00:00"},{"$f":"Time!VL$59","v":"00:00:00"},{"$f":"Time!VM$59","v":"00:00:00"},{"$f":"Time!VN$59","v":"00:00:00"},{"$f":"Time!VO$59","v":"00:00:00"},{"$f":"Time!VP$59","v":"00:00:00"},{"$f":"Time!VQ$59","v":"00:00:00"},{"$f":"Time!VR$59","v":"00:00:00"},{"$f":"Time!VS$59","v":"00:00:00"},{"$f":"Time!VT$59","v":"00:00:00"},{"$f":"Time!VU$59","v":"00:00:00"},{"$f":"Time!VV$59","v":"00:00:00"},{"$f":"Time!VW$59","v":"00:00:00"},{"$f":"Time!VX$59","v":"00:00:00"},{"$f":"Time!VY$59","v":"00:00:00"},{"$f":"Time!VZ$59","v":"00:00:00"},{"$f":"Time!WA$59","v":"00:00:00"},{"$f":"Time!WB$59","v":"00:00:00"},{"$f":"Time!WC$59","v":"00:00:00"},{"$f":"Time!WD$59","v":"00:00:00"},{"$f":"Time!WE$59","v":"00:00:00"},{"$f":"Time!WF$59","v":"00:00:00"},{"$f":"Time!WG$59","v":"00:00:00"},{"$f":"Time!WH$59","v":"00:00:00"},{"$f":"Time!WI$59","v":"00:00:00"},{"$f":"Time!WJ$59","v":"00:00:00"},{"$f":"Time!WK$59","v":"00:00:00"},{"$f":"Time!WL$59","v":"00:00:00"},{"$f":"Time!WM$59","v":"00:00:00"},{"$f":"Time!WN$59","v":"00:00:00"},{"$f":"Time!WO$59","v":"00:00:00"},{"$f":"Time!WP$59","v":"00:00:00"},{"$f":"Time!WQ$59","v":"00:00:00"},{"$f":"Time!WR$59","v":"00:00:00"},{"$f":"Time!WS$59","v":"00:00:00"},{"$f":"Time!WT$59","v":"00:00:00"},{"$f":"Time!WU$59","v":"00:00:00"},{"$f":"Time!WV$59","v":"00:00:00"},{"$f":"Time!WW$59","v":"00:00:00"},{"$f":"Time!WX$59","v":"00:00:00"},{"$f":"Time!WY$59","v":"00:00:00"},{"$f":"Time!WZ$59","v":"00:00:00"},{"$f":"Time!XA$59","v":"00:00:00"},{"$f":"Time!XB$59","v":"00:00:00"},{"$f":"Time!XC$59","v":"00:00:00"},{"$f":"Time!XD$59","v":"00:00:00"},{"$f":"Time!XE$59","v":"00:00:00"},{"$f":"Time!XF$59","v":"00:00:00"},{"$f":"Time!XG$59","v":"00:00:00"},{"$f":"Time!XH$59","v":"00:00:00"},{"$f":"Time!XI$59","v":"00:00:00"},{"$f":"Time!XJ$59","v":"00:00:00"},{"$f":"Time!XK$59","v":"00:00:00"},{"$f":"Time!XL$59","v":"00:00:00"},{"$f":"Time!XM$59","v":"00:00:00"},{"$f":"Time!XN$59","v":"00:00:00"},{"$f":"Time!XO$59","v":"00:00:00"},{"$f":"Time!XP$59","v":"00:00:00"},{"$f":"Time!XQ$59","v":"00:00:00"},{"$f":"Time!XR$59","v":"00:00:00"},{"$f":"Time!XS$59","v":"00:00:00"},{"$f":"Time!XT$59","v":"00:00:00"},{"$f":"Time!XU$59","v":"00:00:00"},{"$f":"Time!XV$59","v":"00:00:00"},{"$f":"Time!XW$59","v":"00:00:00"},{"$f":"Time!XX$59","v":"00:00:00"},{"$f":"Time!XY$59","v":"00:00:00"},{"$f":"Time!XZ$59","v":"00:00:00"},{"$f":"Time!YA$59","v":"00:00:00"},{"$f":"Time!YB$59","v":"00:00:00"},{"$f":"Time!YC$59","v":"00:00:00"},{"$f":"Time!YD$59","v":"00:00:00"},{"$f":"Time!YE$59","v":"00:00:00"},{"$f":"Time!YF$59","v":"00:00:00"},{"$f":"Time!YG$59","v":"00:00:00"},{"$f":"Time!YH$59","v":"00:00:00"},{"$f":"Time!YI$59","v":"00:00:00"},{"$f":"Time!YJ$59","v":"00:00:00"},{"$f":"Time!YK$59","v":"00:00:00"},{"$f":"Time!YL$59","v":"00:00:00"},{"$f":"Time!YM$59","v":"00:00:00"},{"$f":"Time!YN$59","v":"00:00:00"},{"$f":"Time!YO$59","v":"00:00:00"},{"$f":"Time!YP$59","v":"00:00:00"},{"$f":"Time!YQ$59","v":"00:00:00"},{"$f":"Time!YR$59","v":"00:00:00"},{"$f":"Time!YS$59","v":"00:00:00"},{"$f":"Time!YT$59","v":"00:00:00"},{"$f":"Time!YU$59","v":"00:00:00"},{"$f":"Time!YV$59","v":"00:00:00"},{"$f":"Time!YW$59","v":"00:00:00"},{"$f":"Time!YX$59","v":"00:00:00"},{"$f":"Time!YY$59","v":"00:00:00"},{"$f":"Time!YZ$59","v":"00:00:00"},{"$f":"Time!ZA$59","v":"00:00:00"},{"$f":"Time!ZB$59","v":"00:00:00"},{"$f":"Time!ZC$59","v":"00:00:00"},{"$f":"Time!ZD$59","v":"00:00:00"},{"$f":"Time!ZE$59","v":"00:00:00"},{"$f":"Time!ZF$59","v":"00:00:00"},{"$f":"Time!ZG$59","v":"00:00:00"},{"$f":"Time!ZH$59","v":"00:00:00"},{"$f":"Time!ZI$59","v":"00:00:00"},{"$f":"Time!ZJ$59","v":"00:00:00"},{"$f":"Time!ZK$59","v":"00:00:00"},{"$f":"Time!ZL$59","v":"00:00:00"},{"$f":"Time!ZM$59","v":"00:00:00"},{"$f":"Time!ZN$59","v":"00:00:00"},{"$f":"Time!ZO$59","v":"00:00:00"},{"$f":"Time!ZP$59","v":"00:00:00"},{"$f":"Time!ZQ$59","v":"00:00:00"},{"$f":"Time!ZR$59","v":"00:00:00"},{"$f":"Time!ZS$59","v":"00:00:00"},{"$f":"Time!ZT$59","v":"00:00:00"},{"$f":"Time!ZU$59","v":"00:00:00"},{"$f":"Time!ZV$59","v":"00:00:00"},{"$f":"Time!ZW$59","v":"00:00:00"},{"$f":"Time!ZX$59","v":"00:00:00"},{"$f":"Time!ZY$59","v":"00:00:00"},{"$f":"Time!ZZ$59","v":"00:00:00"},{"$f":"Time!AAA$59","v":"00:00:00"},{"$f":"Time!AAB$59","v":"00:00:00"},{"$f":"Time!AAC$59","v":"00:00:00"},{"$f":"Time!AAD$59","v":"00:00:00"},{"$f":"Time!AAE$59","v":"00:00:00"},{"$f":"Time!AAF$59","v":"00:00:00"},{"$f":"Time!AAG$59","v":"00:00:00"},{"$f":"Time!AAH$59","v":"00:00:00"},{"$f":"Time!AAI$59","v":"00:00:00"},{"$f":"Time!AAJ$59","v":"00:00:00"},{"$f":"Time!AAK$59","v":"00:00:00"},{"$f":"Time!AAL$59","v":"00:00:00"},{"$f":"Time!AAM$59","v":"00:00:00"},{"$f":"Time!AAN$59","v":"00:00:00"},{"$f":"Time!AAO$59","v":"00:00:00"},{"$f":"Time!AAP$59","v":"00:00:00"},{"$f":"Time!AAQ$59","v":"00:00:00"},{"$f":"Time!AAR$59","v":"00:00:00"},{"$f":"Time!AAS$59","v":"00:00:00"},{"$f":"Time!AAT$59","v":"00:00:00"},{"$f":"Time!AAU$59","v":"00:00:00"},{"$f":"Time!AAV$59","v":"00:00:00"},{"$f":"Time!AAW$59","v":"00:00:00"},{"$f":"Time!AAX$59","v":"00:00:00"},{"$f":"Time!AAY$59","v":"00:00:00"},{"$f":"Time!AAZ$59","v":"00:00:00"},{"$f":"Time!ABA$59","v":"00:00:00"},{"$f":"Time!ABB$59","v":"00:00:00"},{"$f":"Time!ABC$59","v":"00:00:00"},{"$f":"Time!ABD$59","v":"00:00:00"},{"$f":"Time!ABE$59","v":"00:00:00"},{"$f":"Time!ABF$59","v":"00:00:00"},{"$f":"Time!ABG$59","v":"00:00:00"},{"$f":"Time!ABH$59","v":"00:00:00"},{"$f":"Time!ABI$59","v":"00:00:00"},{"$f":"Time!ABJ$59","v":"00:00:00"},{"$f":"Time!ABK$59","v":"00:00:00"},{"$f":"Time!ABL$59","v":"00:00:00"},{"$f":"Time!ABM$59","v":"00:00:00"},{"$f":"Time!ABN$59","v":"00:00:00"},{"$f":"Time!ABO$59","v":"00:00:00"},{"$f":"Time!ABP$59","v":"00:00:00"},{"$f":"Time!ABQ$59","v":"00:00:00"},{"$f":"Time!ABR$59","v":"00:00:00"},{"$f":"Time!ABS$59","v":"00:00:00"},{"$f":"Time!ABT$59","v":"00:00:00"},{"$f":"Time!ABU$59","v":"00:00:00"},{"$f":"Time!ABV$59","v":"00:00:00"},{"$f":"Time!ABW$59","v":"00:00:00"},{"$f":"Time!ABX$59","v":"00:00:00"},{"$f":"Time!ABY$59","v":"00:00:00"},{"$f":"Time!ABZ$59","v":"00:00:00"},{"$f":"Time!ACA$59","v":"00:00:00"},{"$f":"Time!ACB$59","v":"00:00:00"},{"$f":"Time!ACC$59","v":"00:00:00"},{"$f":"Time!ACD$59","v":"00:00:00"},{"$f":"Time!ACE$59","v":"00:00:00"},{"$f":"Time!ACF$59","v":"00:00:00"},{"$f":"Time!ACG$59","v":"00:00:00"},{"$f":"Time!ACH$59","v":"00:00:00"},{"$f":"Time!ACI$59","v":"00:00:00"},{"$f":"Time!ACJ$59","v":"00:00:00"},{"$f":"Time!ACK$59","v":"00:00:00"},{"$f":"Time!ACL$59","v":"00:00:00"},{"$f":"Time!ACM$59","v":"00:00:00"},{"$f":"Time!ACN$59","v":"00:00:00"},{"$f":"Time!ACO$59","v":"00:00:00"},{"$f":"Time!ACP$59","v":"00:00:00"},{"$f":"Time!ACQ$59","v":"00:00:00"},{"$f":"Time!ACR$59","v":"00:00:00"},{"$f":"Time!ACS$59","v":"00:00:00"},{"$f":"Time!ACT$59","v":"00:00:00"},{"$f":"Time!ACU$59","v":"00:00:00"},{"$f":"Time!ACV$59","v":"00:00:00"},{"$f":"Time!ACW$59","v":"00:00:00"},{"$f":"Time!ACX$59","v":"00:00:00"},{"$f":"Time!ACY$59","v":"00:00:00"},{"$f":"Time!ACZ$59","v":"00:00:00"},{"$f":"Time!ADA$59","v":"00:00:00"},{"$f":"Time!ADB$59","v":"00:00:00"},{"$f":"Time!ADC$59","v":"00:00:00"},{"$f":"Time!ADD$59","v":"00:00:00"},{"$f":"Time!ADE$59","v":"00:00:00"},{"$f":"Time!ADF$59","v":"00:00:00"},{"$f":"Time!ADG$59","v":"00:00:00"},{"$f":"Time!ADH$59","v":"00:00:00"},{"$f":"Time!ADI$59","v":"00:00:00"},{"$f":"Time!ADJ$59","v":"00:00:00"},{"$f":"Time!ADK$59","v":"00:00:00"},{"$f":"Time!ADL$59","v":"00:00:00"},{"$f":"Time!ADM$59","v":"00:00:00"},{"$f":"Time!ADN$59","v":"00:00:00"},{"$f":"Time!ADO$59","v":"00:00:00"},{"$f":"Time!ADP$59","v":"00:00:00"},{"$f":"Time!ADQ$59","v":"00:00:00"},{"$f":"Time!ADR$59","v":"00:00:00"},{"$f":"Time!ADS$59","v":"00:00:00"},{"$f":"Time!ADT$59","v":"00:00:00"},{"$f":"Time!ADU$59","v":"00:00:00"},{"$f":"Time!ADV$59","v":"00:00:00"},{"$f":"Time!ADW$59","v":"00:00:00"},{"$f":"Time!ADX$59","v":"00:00:00"},{"$f":"Time!ADY$59","v":"00:00:00"},{"$f":"Time!ADZ$59","v":"00:00:00"},{"$f":"Time!AEA$59","v":"00:00:00"},{"$f":"Time!AEB$59","v":"00:00:00"},{"$f":"Time!AEC$59","v":"00:00:00"},{"$f":"Time!AED$59","v":"00:00:00"},{"$f":"Time!AEE$59","v":"00:00:00"},{"$f":"Time!AEF$59","v":"00:00:00"},{"$f":"Time!AEG$59","v":"00:00:00"},{"$f":"Time!AEH$59","v":"00:00:00"},{"$f":"Time!AEI$59","v":"00:00:00"},{"$f":"Time!AEJ$59","v":"00:00:00"},{"$f":"Time!AEK$59","v":"00:00:00"},{"$f":"Time!AEL$59","v":"00:00:00"},{"$f":"Time!AEM$59","v":"00:00:00"},{"$f":"Time!AEN$59","v":"00:00:00"},{"$f":"Time!AEO$59","v":"00:00:00"},{"$f":"Time!AEP$59","v":"00:00:00"},{"$f":"Time!AEQ$59","v":"00:00:00"},{"$f":"Time!AER$59","v":"00:00:00"},{"$f":"Time!AES$59","v":"00:00:00"},{"$f":"Time!AET$59","v":"00:00:00"},{"$f":"Time!AEU$59","v":"00:00:00"},{"$f":"Time!AEV$59","v":"00:00:00"},{"$f":"Time!AEW$59","v":"00:00:00"},{"$f":"Time!AEX$59","v":"00:00:00"},{"$f":"Time!AEY$59","v":"00:00:00"},{"$f":"Time!AEZ$59","v":"00:00:00"},{"$f":"Time!AFA$59","v":"00:00:00"},{"$f":"Time!AFB$59","v":"00:00:00"},{"$f":"Time!AFC$59","v":"00:00:00"},{"$f":"Time!AFD$59","v":"00:00:00"},{"$f":"Time!AFE$59","v":"00:00:00"},{"$f":"Time!AFF$59","v":"00:00:00"},{"$f":"Time!AFG$59","v":"00:00:00"},{"$f":"Time!AFH$59","v":"00:00:00"},{"$f":"Time!AFI$59","v":"00:00:00"},{"$f":"Time!AFJ$59","v":"00:00:00"},{"$f":"Time!AFK$59","v":"00:00:00"},{"$f":"Time!AFL$59","v":"00:00:00"},{"$f":"Time!AFM$59","v":"00:00:00"},{"$f":"Time!AFN$59","v":"00:00:00"},{"$f":"Time!AFO$59","v":"00:00:00"},{"$f":"Time!AFP$59","v":"00:00:00"},{"$f":"Time!AFQ$59","v":"00:00:00"},{"$f":"Time!AFR$59","v":"00:00:00"},{"$f":"Time!AFS$59","v":"00:00:00"},{"$f":"Time!AFT$59","v":"00:00:00"},{"$f":"Time!AFU$59","v":"00:00:00"},{"$f":"Time!AFV$59","v":"00:00:00"},{"$f":"Time!AFW$59","v":"00:00:00"},{"$f":"Time!AFX$59","v":"00:00:00"},{"$f":"Time!AFY$59","v":"00:00:00"},{"$f":"Time!AFZ$59","v":"00:00:00"},{"$f":"Time!AGA$59","v":"00:00:00"},{"$f":"Time!AGB$59","v":"00:00:00"},{"$f":"Time!AGC$59","v":"00:00:00"},{"$f":"Time!AGD$59","v":"00:00:00"},{"$f":"Time!AGE$59","v":"00:00:00"},{"$f":"Time!AGF$59","v":"00:00:00"},{"$f":"Time!AGG$59","v":"00:00:00"},{"$f":"Time!AGH$59","v":"00:00:00"},{"$f":"Time!AGI$59","v":"00:00:00"},{"$f":"Time!AGJ$59","v":"00:00:00"},{"$f":"Time!AGK$59","v":"00:00:00"},{"$f":"Time!AGL$59","v":"00:00:00"},{"$f":"Time!AGM$59","v":"00:00:00"},{"$f":"Time!AGN$59","v":"00:00:00"},{"$f":"Time!AGO$59","v":"00:00:00"},{"$f":"Time!AGP$59","v":"00:00:00"},{"$f":"Time!AGQ$59","v":"00:00:00"},{"$f":"Time!AGR$59","v":"00:00:00"},{"$f":"Time!AGS$59","v":"00:00:00"},{"$f":"Time!AGT$59","v":"00:00:00"},{"$f":"Time!AGU$59","v":"00:00:00"},{"$f":"Time!AGV$59","v":"00:00:00"},{"$f":"Time!AGW$59","v":"00:00:00"},{"$f":"Time!AGX$59","v":"00:00:00"},{"$f":"Time!AGY$59","v":"00:00:00"},{"$f":"Time!AGZ$59","v":"00:00:00"},{"$f":"Time!AHA$59","v":"00:00:00"},{"$f":"Time!AHB$59","v":"00:00:00"},{"$f":"Time!AHC$59","v":"00:00:00"},{"$f":"Time!AHD$59","v":"00:00:00"},{"$f":"Time!AHE$59","v":"00:00:00"},{"$f":"Time!AHF$59","v":"00:00:00"},{"$f":"Time!AHG$59","v":"00:00:00"},{"$f":"Time!AHH$59","v":"00:00:00"},{"$f":"Time!AHI$59","v":"00:00:00"},{"$f":"Time!AHJ$59","v":"00:00:00"},{"$f":"Time!AHK$59","v":"00:00:00"},{"$f":"Time!AHL$59","v":"00:00:00"},{"$f":"Time!AHM$59","v":"00:00:00"},{"$f":"Time!AHN$59","v":"00:00:00"},{"$f":"Time!AHO$59","v":"00:00:00"},{"$f":"Time!AHP$59","v":"00:00:00"},{"$f":"Time!AHQ$59","v":"00:00:00"},{"$f":"Time!AHR$59","v":"00:00:00"},{"$f":"Time!AHS$59","v":"00:00:00"},{"$f":"Time!AHT$59","v":"00:00:00"},{"$f":"Time!AHU$59","v":"00:00:00"},{"$f":"Time!AHV$59","v":"00:00:00"},{"$f":"Time!AHW$59","v":"00:00:00"},{"$f":"Time!AHX$59","v":"00:00:00"},{"$f":"Time!AHY$59","v":"00:00:00"},{"$f":"Time!AHZ$59","v":"00:00:00"},{"$f":"Time!AIA$59","v":"00:00:00"},{"$f":"Time!AIB$59","v":"00:00:00"},{"$f":"Time!AIC$59","v":"00:00:00"},{"$f":"Time!AID$59","v":"00:00:00"},{"$f":"Time!AIE$59","v":"00:00:00"},{"$f":"Time!AIF$59","v":"00:00:00"},{"$f":"Time!AIG$59","v":"00:00:00"},{"$f":"Time!AIH$59","v":"00:00:00"},{"$f":"Time!AII$59","v":"00:00:00"},{"$f":"Time!AIJ$59","v":"00:00:00"},{"$f":"Time!AIK$59","v":"00:00:00"},{"$f":"Time!AIL$59","v":"00:00:00"},{"$f":"Time!AIM$59","v":"00:00:00"},{"$f":"Time!AIN$59","v":"00:00:00"},{"$f":"Time!AIO$59","v":"00:00:00"},{"$f":"Time!AIP$59","v":"00:00:00"},{"$f":"Time!AIQ$59","v":"00:00:00"},{"$f":"Time!AIR$59","v":"00:00:00"},{"$f":"Time!AIS$59","v":"00:00:00"},{"$f":"Time!AIT$59","v":"00:00:00"},{"$f":"Time!AIU$59","v":"00:00:00"},{"$f":"Time!AIV$59","v":"00:00:00"},{"$f":"Time!AIW$59","v":"00:00:00"},{"$f":"Time!AIX$59","v":"00:00:00"},{"$f":"Time!AIY$59","v":"00:00:00"},{"$f":"Time!AIZ$59","v":"00:00:00"},{"$f":"Time!AJA$59","v":"00:00:00"},{"$f":"Time!AJB$59","v":"00:00:00"},{"$f":"Time!AJC$59","v":"00:00:00"},{"$f":"Time!AJD$59","v":"00:00:00"},{"$f":"Time!AJE$59","v":"00:00:00"},{"$f":"Time!AJF$59","v":"00:00:00"},{"$f":"Time!AJG$59","v":"00:00:00"},{"$f":"Time!AJH$59","v":"00:00:00"},{"$f":"Time!AJI$59","v":"00:00:00"},{"$f":"Time!AJJ$59","v":"00:00:00"},{"$f":"Time!AJK$59","v":"00:00:00"},{"$f":"Time!AJL$59","v":"00:00:00"},{"$f":"Time!AJM$59","v":"00:00:00"},{"$f":"Time!AJN$59","v":"00:00:00"},{"$f":"Time!AJO$59","v":"00:00:00"},{"$f":"Time!AJP$59","v":"00:00:00"},{"$f":"Time!AJQ$59","v":"00:00:00"},{"$f":"Time!AJR$59","v":"00:00:00"},{"$f":"Time!AJS$59","v":"00:00:00"},{"$f":"Time!AJT$59","v":"00:00:00"},{"$f":"Time!AJU$59","v":"00:00:00"},{"$f":"Time!AJV$59","v":"00:00:00"},{"$f":"Time!AJW$59","v":"00:00:00"},{"$f":"Time!AJX$59","v":"00:00:00"},{"$f":"Time!AJY$59","v":"00:00:00"},{"$f":"Time!AJZ$59","v":"00:00:00"},{"$f":"Time!AKA$59","v":"00:00:00"},{"$f":"Time!AKB$59","v":"00:00:00"},{"$f":"Time!AKC$59","v":"00:00:00"},{"$f":"Time!AKD$59","v":"00:00:00"},{"$f":"Time!AKE$59","v":"00:00:00"},{"$f":"Time!AKF$59","v":"00:00:00"},{"$f":"Time!AKG$59","v":"00:00:00"},{"$f":"Time!AKH$59","v":"00:00:00"},{"$f":"Time!AKI$59","v":"00:00:00"},{"$f":"Time!AKJ$59","v":"00:00:00"},{"$f":"Time!AKK$59","v":"00:00:00"},{"$f":"Time!AKL$59","v":"00:00:00"},{"$f":"Time!AKM$59","v":"00:00:00"},{"$f":"Time!AKN$59","v":"00:00:00"},{"$f":"Time!AKO$59","v":"00:00:00"},{"$f":"Time!AKP$59","v":"00:00:00"},{"$f":"Time!AKQ$59","v":"00:00:00"},{"$f":"Time!AKR$59","v":"00:00:00"},{"$f":"Time!AKS$59","v":"00:00:00"},{"$f":"Time!AKT$59","v":"00:00:00"},{"$f":"Time!AKU$59","v":"00:00:00"},{"$f":"Time!AKV$59","v":"00:00:00"},{"$f":"Time!AKW$59","v":"00:00:00"},{"$f":"Time!AKX$59","v":"00:00:00"},{"$f":"Time!AKY$59","v":"00:00:00"},{"$f":"Time!AKZ$59","v":"00:00:00"},{"$f":"Time!ALA$59","v":"00:00:00"},{"$f":"Time!ALB$59","v":"00:00:00"},{"$f":"Time!ALC$59","v":"00:00:00"},{"$f":"Time!ALD$59","v":"00:00:00"},{"$f":"Time!ALE$59","v":"00:00:00"},{"$f":"Time!ALF$59","v":"00:00:00"},{"$f":"Time!ALG$59","v":"00:00:00"},{"$f":"Time!ALH$59","v":"00:00:00"},{"$f":"Time!ALI$59","v":"00:00:00"},{"$f":"Time!ALJ$59","v":"00:00:00"},{"$f":"Time!ALK$59","v":"00:00:00"},{"$f":"Time!ALL$59","v":"00:00:00"},{"$f":"Time!ALM$59","v":"00:00:00"},{"$f":"Time!ALN$59","v":"00:00:00"},{"$f":"Time!ALO$59","v":"00:00:00"},{"$f":"Time!ALP$59","v":"00:00:00"},{"$f":"Time!ALQ$59","v":"00:00:00"},{"$f":"Time!ALR$59","v":"00:00:00"},{"$f":"Time!ALS$59","v":"00:00:00"},{"$f":"Time!ALT$59","v":"00:00:00"},{"$f":"Time!ALU$59","v":"00:00:00"},{"$f":"Time!ALV$59","v":"00:00:00"},{"$f":"Time!ALW$59","v":"00:00:00"},{"$f":"Time!ALX$59","v":"00:00:00"},{"$f":"Time!ALY$59","v":"00:00:00"},{"$f":"Time!ALZ$59","v":"00:00:00"},{"$f":"Time!AMA$59","v":"00:00:00"},{"$f":"Time!AMB$59","v":"00:00:00"},{"$f":"Time!AMC$59","v":"00:00:00"},{"$f":"Time!AMD$59","v":"00:00:00"},{"$f":"Time!AME$59","v":"00:00:00"},{"$f":"Time!AMF$59","v":"00:00:00"},{"$f":"Time!AMG$59","v":"00:00:00"},{"$f":"Time!AMH$59","v":"00:00:00"},{"$f":"Time!AMI$59","v":"00:00:00"},{"$f":"Time!AMJ$59","v":"00:00:00"},{"$f":"Time!AMK$59","v":"00:00:00"},{"$f":"Time!AML$59","v":"00:00:00"},{"$f":"Time!AMM$59","v":"00:00:00"},{"$f":"Time!AMN$59","v":"00:00:00"},{"$f":"Time!AMO$59","v":"00:00:00"},{"$f":"Time!AMP$59","v":"00:00:00"},{"$f":"Time!AMQ$59","v":"00:00:00"},{"$f":"Time!AMR$59","v":"00:00:00"},{"$f":"Time!AMS$59","v":"00:00:00"},{"$f":"Time!AMT$59","v":"00:00:00"},{"$f":"Time!AMU$59","v":"00:00:00"},{"$f":"Time!AMV$59","v":"00:00:00"},{"$f":"Time!AMW$59","v":"00:00:00"},{"$f":"Time!AMX$59","v":"00:00:00"},{"$f":"Time!AMY$59","v":"00:00:00"},{"$f":"Time!AMZ$59","v":"00:00:00"},{"$f":"Time!ANA$59","v":"00:00:00"},{"$f":"Time!ANB$59","v":"00:00:00"},{"$f":"Time!ANC$59","v":"00:00:00"},{"$f":"Time!AND$59","v":"00:00:00"},{"$f":"Time!ANE$59","v":"00:00:00"},{"$f":"Time!ANF$59","v":"00:00:00"},{"$f":"Time!ANG$59","v":"00:00:00"},{"$f":"Time!ANH$59","v":"00:00:00"},{"$f":"Time!ANI$59","v":"00:00:00"},{"$f":"Time!ANJ$59","v":"00:00:00"},{"$f":"Time!ANK$59","v":"00:00:00"},{"$f":"Time!ANL$59","v":"00:00:00"},{"$f":"Time!ANM$59","v":"00:00:00"},{"$f":"Time!ANN$59","v":"00:00:00"},{"$f":"Time!ANO$59","v":"00:00:00"},{"$f":"Time!ANP$59","v":"00:00:00"},{"$f":"Time!ANQ$59","v":"00:00:00"},{"$f":"Time!ANR$59","v":"00:00:00"},{"$f":"Time!ANS$59","v":"00:00:00"},{"$f":"Time!ANT$59","v":"00:00:00"},{"$f":"Time!ANU$59","v":"00:00:00"},{"$f":"Time!ANV$59","v":"00:00:00"},{"$f":"Time!ANW$59","v":"00:00:00"},{"$f":"Time!ANX$59","v":"00:00:00"},{"$f":"Time!ANY$59","v":"00:00:00"},{"$f":"Time!ANZ$59","v":"00:00:00"},{"$f":"Time!AOA$59","v":"00:00:00"},{"$f":"Time!AOB$59","v":"00:00:00"},{"$f":"Time!AOC$59","v":"00:00:00"},{"$f":"Time!AOD$59","v":"00:00:00"},{"$f":"Time!AOE$59","v":"00:00:00"},{"$f":"Time!AOF$59","v":"00:00:00"},{"$f":"Time!AOG$59","v":"00:00:00"},{"$f":"Time!AOH$59","v":"00:00:00"},{"$f":"Time!AOI$59","v":"00:00:00"},{"$f":"Time!AOJ$59","v":"00:00:00"},{"$f":"Time!AOK$59","v":"00:00:00"},{"$f":"Time!AOL$59","v":"00:00:00"},{"$f":"Time!AOM$59","v":"00:00:00"},{"$f":"Time!AON$59","v":"00:00:00"},{"$f":"Time!AOO$59","v":"00:00:00"},{"$f":"Time!AOP$59","v":"00:00:00"},{"$f":"Time!AOQ$59","v":"00:00:00"},{"$f":"Time!AOR$59","v":"00:00:00"},{"$f":"Time!AOS$59","v":"00:00:00"},{"$f":"Time!AOT$59","v":"00:00:00"},{"$f":"Time!AOU$59","v":"00:00:00"},{"$f":"Time!AOV$59","v":"00:00:00"},{"$f":"Time!AOW$59","v":"00:00:00"},{"$f":"Time!AOX$59","v":"00:00:00"},{"$f":"Time!AOY$59","v":"00:00:00"},{"$f":"Time!AOZ$59","v":"00:00:00"},{"$f":"Time!APA$59","v":"00:00:00"},{"$f":"Time!APB$59","v":"00:00:00"},{"$f":"Time!APC$59","v":"00:00:00"},{"$f":"Time!APD$59","v":"00:00:00"},{"$f":"Time!APE$59","v":"00:00:00"},{"$f":"Time!APF$59","v":"00:00:00"},{"$f":"Time!APG$59","v":"00:00:00"},{"$f":"Time!APH$59","v":"00:00:00"},{"$f":"Time!API$59","v":"00:00:00"},{"$f":"Time!APJ$59","v":"00:00:00"},{"$f":"Time!APK$59","v":"00:00:00"},{"$f":"Time!APL$59","v":"00:00:00"},{"$f":"Time!APM$59","v":"00:00:00"},{"$f":"Time!APN$59","v":"00:00:00"},{"$f":"Time!APO$59","v":"00:00:00"},{"$f":"Time!APP$59","v":"00:00:00"},{"$f":"Time!APQ$59","v":"00:00:00"},{"$f":"Time!APR$59","v":"00:00:00"},{"$f":"Time!APS$59","v":"00:00:00"},{"$f":"Time!APT$59","v":"00:00:00"},{"$f":"Time!APU$59","v":"00:00:00"},{"$f":"Time!APV$59","v":"00:00:00"},{"$f":"Time!APW$59","v":"00:00:00"},{"$f":"Time!APX$59","v":"00:00:00"},{"$f":"Time!APY$59","v":"00:00:00"},{"$f":"Time!APZ$59","v":"00:00:00"},{"$f":"Time!AQA$59","v":"00:00:00"},{"$f":"Time!AQB$59","v":"00:00:00"},{"$f":"Time!AQC$59","v":"00:00:00"},{"$f":"Time!AQD$59","v":"00:00:00"},{"$f":"Time!AQE$59","v":"00:00:00"},{"$f":"Time!AQF$59","v":"00:00:00"},{"$f":"Time!AQG$59","v":"00:00:00"},{"$f":"Time!AQH$59","v":"00:00:00"},{"$f":"Time!AQI$59","v":"00:00:00"},{"$f":"Time!AQJ$59","v":"00:00:00"},{"$f":"Time!AQK$59","v":"00:00:00"},{"$f":"Time!AQL$59","v":"00:00:00"},{"$f":"Time!AQM$59","v":"00:00:00"},{"$f":"Time!AQN$59","v":"00:00:00"},{"$f":"Time!AQO$59","v":"00:00:00"},{"$f":"Time!AQP$59","v":"00:00:00"},{"$f":"Time!AQQ$59","v":"00:00:00"},{"$f":"Time!AQR$59","v":"00:00:00"},{"$f":"Time!AQS$59","v":"00:00:00"},{"$f":"Time!AQT$59","v":"00:00:00"},{"$f":"Time!AQU$59","v":"00:00:00"},{"$f":"Time!AQV$59","v":"00:00:00"},{"$f":"Time!AQW$59","v":"00:00:00"},{"$f":"Time!AQX$59","v":"00:00:00"},{"$f":"Time!AQY$59","v":"00:00:00"},{"$f":"Time!AQZ$59","v":"00:00:00"},{"$f":"Time!ARA$59","v":"00:00:00"},{"$f":"Time!ARB$59","v":"00:00:00"},{"$f":"Time!ARC$59","v":"00:00:00"},{"$f":"Time!ARD$59","v":"00:00:00"},{"$f":"Time!ARE$59","v":"00:00:00"},{"$f":"Time!ARF$59","v":"00:00:00"},{"$f":"Time!ARG$59","v":"00:00:00"},{"$f":"Time!ARH$59","v":"00:00:00"},{"$f":"Time!ARI$59","v":"00:00:00"},{"$f":"Time!ARJ$59","v":"00:00:00"},{"$f":"Time!ARK$59","v":"00:00:00"},{"$f":"Time!ARL$59","v":"00:00:00"},{"$f":"Time!ARM$59","v":"00:00:00"},{"$f":"Time!ARN$59","v":"00:00:00"},{"$f":"Time!ARO$59","v":"00:00:00"},{"$f":"Time!ARP$59","v":"00:00:00"},{"$f":"Time!ARQ$59","v":"00:00:00"},{"$f":"Time!ARR$59","v":"00:00:00"},{"$f":"Time!ARS$59","v":"00:00:00"},{"$f":"Time!ART$59","v":"00:00:00"},{"$f":"Time!ARU$59","v":"00:00:00"},{"$f":"Time!ARV$59","v":"00:00:00"},{"$f":"Time!ARW$59","v":"00:00:00"},{"$f":"Time!ARX$59","v":"00:00:00"},{"$f":"Time!ARY$59","v":"00:00:00"},{"$f":"Time!ARZ$59","v":"00:00:00"},{"$f":"Time!ASA$59","v":"00:00:00"},{"$f":"Time!ASB$59","v":"00:00:00"},{"$f":"Time!ASC$59","v":"00:00:00"},{"$f":"Time!ASD$59","v":"00:00:00"},{"$f":"Time!ASE$59","v":"00:00:00"},{"$f":"Time!ASF$59","v":"00:00:00"},{"$f":"Time!ASG$59","v":"00:00:00"},{"$f":"Time!ASH$59","v":"00:00:00"},{"$f":"Time!ASI$59","v":"00:00:00"},{"$f":"Time!ASJ$59","v":"00:00:00"},{"$f":"Time!ASK$59","v":"00:00:00"},{"$f":"Time!ASL$59","v":"00:00:00"},{"$f":"Time!ASM$59","v":"00:00:00"},{"$f":"Time!ASN$59","v":"00:00:00"},{"$f":"Time!ASO$59","v":"00:00:00"},{"$f":"Time!ASP$59","v":"00:00:00"},{"$f":"Time!ASQ$59","v":"00:00:00"},{"$f":"Time!ASR$59","v":"00:00:00"},{"$f":"Time!ASS$59","v":"00:00:00"},{"$f":"Time!AST$59","v":"00:00:00"},{"$f":"Time!ASU$59","v":"00:00:00"},{"$f":"Time!ASV$59","v":"00:00:00"},{"$f":"Time!ASW$59","v":"00:00:00"},{"$f":"Time!ASX$59","v":"00:00:00"},{"$f":"Time!ASY$59","v":"00:00:00"},{"$f":"Time!ASZ$59","v":"00:00:00"},{"$f":"Time!ATA$59","v":"00:00:00"},{"$f":"Time!ATB$59","v":"00:00:00"},{"$f":"Time!ATC$59","v":"00:00:00"},{"$f":"Time!ATD$59","v":"00:00:00"},{"$f":"Time!ATE$59","v":"00:00:00"},{"$f":"Time!ATF$59","v":"00:00:00"},{"$f":"Time!ATG$59","v":"00:00:00"},{"$f":"Time!ATH$59","v":"00:00:00"},{"$f":"Time!ATI$59","v":"00:00:00"},{"$f":"Time!ATJ$59","v":"00:00:00"},{"$f":"Time!ATK$59","v":"00:00:00"},{"$f":"Time!ATL$59","v":"00:00:00"},{"$f":"Time!ATM$59","v":"00:00:00"},{"$f":"Time!ATN$59","v":"00:00:00"},{"$f":"Time!ATO$59","v":"00:00:00"},{"$f":"Time!ATP$59","v":"00:00:00"},{"$f":"Time!ATQ$59","v":"00:00:00"},{"$f":"Time!ATR$59","v":"00:00:00"},{"$f":"Time!ATS$59","v":"00:00:00"},{"$f":"Time!ATT$59","v":"00:00:00"},{"$f":"Time!ATU$59","v":"00:00:00"},{"$f":"Time!ATV$59","v":"00:00:00"},{"$f":"Time!ATW$59","v":"00:00:00"},{"$f":"Time!ATX$59","v":"00:00:00"},{"$f":"Time!ATY$59","v":"00:00:00"},{"$f":"Time!ATZ$59","v":"00:00:00"},{"$f":"Time!AUA$59","v":"00:00:00"},{"$f":"Time!AUB$59","v":"00:00:00"},{"$f":"Time!AUC$59","v":"00:00:00"},{"$f":"Time!AUD$59","v":"00:00:00"},{"$f":"Time!AUE$59","v":"00:00:00"},{"$f":"Time!AUF$59","v":"00:00:00"},{"$f":"Time!AUG$59","v":"00:00:00"},{"$f":"Time!AUH$59","v":"00:00:00"},{"$f":"Time!AUI$59","v":"00:00:00"},{"$f":"Time!AUJ$59","v":"00:00:00"},{"$f":"Time!AUK$59","v":"00:00:00"},{"$f":"Time!AUL$59","v":"00:00:00"},{"$f":"Time!AUM$59","v":"00:00:00"},{"$f":"Time!AUN$59","v":"00:00:00"},{"$f":"Time!AUO$59","v":"00:00:00"},{"$f":"Time!AUP$59","v":"00:00:00"},{"$f":"Time!AUQ$59","v":"00:00:00"},{"$f":"Time!AUR$59","v":"00:00:00"},{"$f":"Time!AUS$59","v":"00:00:00"},{"$f":"Time!AUT$59","v":"00:00:00"},{"$f":"Time!AUU$59","v":"00:00:00"},{"$f":"Time!AUV$59","v":"00:00:00"},{"$f":"Time!AUW$59","v":"00:00:00"},{"$f":"Time!AUX$59","v":"00:00:00"},{"$f":"Time!AUY$59","v":"00:00:00"},{"$f":"Time!AUZ$59","v":"00:00:00"},{"$f":"Time!AVA$59","v":"00:00:00"},{"$f":"Time!AVB$59","v":"00:00:00"},{"$f":"Time!AVC$59","v":"00:00:00"},{"$f":"Time!AVD$59","v":"00:00:00"},{"$f":"Time!AVE$59","v":"00:00:00"},{"$f":"Time!AVF$59","v":"00:00:00"},{"$f":"Time!AVG$59","v":"00:00:00"},{"$f":"Time!AVH$59","v":"00:00:00"},{"$f":"Time!AVI$59","v":"00:00:00"},{"$f":"Time!AVJ$59","v":"00:00:00"},{"$f":"Time!AVK$59","v":"00:00:00"},{"$f":"Time!AVL$59","v":"00:00:00"},{"$f":"Time!AVM$59","v":"00:00:00"},{"$f":"Time!AVN$59","v":"00:00:00"},{"$f":"Time!AVO$59","v":"00:00:00"},{"$f":"Time!AVP$59","v":"00:00:00"},{"$f":"Time!AVQ$59","v":"00:00:00"},{"$f":"Time!AVR$59","v":"00:00:00"},{"$f":"Time!AVS$59","v":"00:00:00"},{"$f":"Time!AVT$59","v":"00:00:00"},{"$f":"Time!AVU$59","v":"00:00:00"},{"$f":"Time!AVV$59","v":"00:00:00"},{"$f":"Time!AVW$59","v":"00:00:00"},{"$f":"Time!AVX$59","v":"00:00:00"},{"$f":"Time!AVY$59","v":"00:00:00"},{"$f":"Time!AVZ$59","v":"00:00:00"},{"$f":"Time!AWA$59","v":"00:00:00"},{"$f":"Time!AWB$59","v":"00:00:00"},{"$f":"Time!AWC$59","v":"00:00:00"},{"$f":"Time!AWD$59","v":"00:00:00"},{"$f":"Time!AWE$59","v":"00:00:00"},{"$f":"Time!AWF$59","v":"00:00:00"},{"$f":"Time!AWG$59","v":"00:00:00"},{"$f":"Time!AWH$59","v":"00:00:00"},{"$f":"Time!AWI$59","v":"00:00:00"},{"$f":"Time!AWJ$59","v":"00:00:00"},{"$f":"Time!AWK$59","v":"00:00:00"},{"$f":"Time!AWL$59","v":"00:00:00"},{"$f":"Time!AWM$59","v":"00:00:00"},{"$f":"Time!AWN$59","v":"00:00:00"},{"$f":"Time!AWO$59","v":"00:00:00"},{"$f":"Time!AWP$59","v":"00:00:00"},{"$f":"Time!AWQ$59","v":"00:00:00"},{"$f":"Time!AWR$59","v":"00:00:00"},{"$f":"Time!AWS$59","v":"00:00:00"},{"$f":"Time!AWT$59","v":"00:00:00"},{"$f":"Time!AWU$59","v":"00:00:00"},{"$f":"Time!AWV$59","v":"00:00:00"},{"$f":"Time!AWW$59","v":"00:00:00"},{"$f":"Time!AWX$59","v":"00:00:00"},{"$f":"Time!AWY$59","v":"00:00:00"},{"$f":"Time!AWZ$59","v":"00:00:00"},{"$f":"Time!AXA$59","v":"00:00:00"},{"$f":"Time!AXB$59","v":"00:00:00"},{"$f":"Time!AXC$59","v":"00:00:00"},{"$f":"Time!AXD$59","v":"00:00:00"},{"$f":"Time!AXE$59","v":"00:00:00"},{"$f":"Time!AXF$59","v":"00:00:00"},{"$f":"Time!AXG$59","v":"00:00:00"},{"$f":"Time!AXH$59","v":"00:00:00"},{"$f":"Time!AXI$59","v":"00:00:00"},{"$f":"Time!AXJ$59","v":"00:00:00"},{"$f":"Time!AXK$59","v":"00:00:00"},{"$f":"Time!AXL$59","v":"00:00:00"},{"$f":"Time!AXM$59","v":"00:00:00"},{"$f":"Time!AXN$59","v":"00:00:00"},{"$f":"Time!AXO$59","v":"00:00:00"},{"$f":"Time!AXP$59","v":"00:00:00"},{"$f":"Time!AXQ$59","v":"00:00:00"},{"$f":"Time!AXR$59","v":"00:00:00"},{"$f":"Time!AXS$59","v":"00:00:00"},{"$f":"Time!AXT$59","v":"00:00:00"},{"$f":"Time!AXU$59","v":"00:00:00"},{"$f":"Time!AXV$59","v":"00:00:00"},{"$f":"Time!AXW$59","v":"00:00:00"},{"$f":"Time!AXX$59","v":"00:00:00"},{"$f":"Time!AXY$59","v":"00:00:00"},{"$f":"Time!AXZ$59","v":"00:00:00"},{"$f":"Time!AYA$59","v":"00:00:00"},{"$f":"Time!AYB$59","v":"00:00:00"},{"$f":"Time!AYC$59","v":"00:00:00"},{"$f":"Time!AYD$59","v":"00:00:00"},{"$f":"Time!AYE$59","v":"00:00:00"},{"$f":"Time!AYF$59","v":"00:00:00"},{"$f":"Time!AYG$59","v":"00:00:00"},{"$f":"Time!AYH$59","v":"00:00:00"},{"$f":"Time!AYI$59","v":"00:00:00"},{"$f":"Time!AYJ$59","v":"00:00:00"},{"$f":"Time!AYK$59","v":"00:00:00"},{"$f":"Time!AYL$59","v":"00:00:00"},{"$f":"Time!AYM$59","v":"00:00:00"},{"$f":"Time!AYN$59","v":"00:00:00"},{"$f":"Time!AYO$59","v":"00:00:00"},{"$f":"Time!AYP$59","v":"00:00:00"},{"$f":"Time!AYQ$59","v":"00:00:00"},{"$f":"Time!AYR$59","v":"00:00:00"},{"$f":"Time!AYS$59","v":"00:00:00"},{"$f":"Time!AYT$59","v":"00:00:00"},{"$f":"Time!AYU$59","v":"00:00:00"},{"$f":"Time!AYV$59","v":"00:00:00"},{"$f":"Time!AYW$59","v":"00:00:00"},{"$f":"Time!AYX$59","v":"00:00:00"},{"$f":"Time!AYY$59","v":"00:00:00"},{"$f":"Time!AYZ$59","v":"00:00:00"},{"$f":"Time!AZA$59","v":"00:00:00"},{"$f":"Time!AZB$59","v":"00:00:00"},{"$f":"Time!AZC$59","v":"00:00:00"},{"$f":"Time!AZD$59","v":"00:00:00"},{"$f":"Time!AZE$59","v":"00:00:00"},{"$f":"Time!AZF$59","v":"00:00:00"},{"$f":"Time!AZG$59","v":"00:00:00"},{"$f":"Time!AZH$59","v":"00:00:00"},{"$f":"Time!AZI$59","v":"00:00:00"},{"$f":"Time!AZJ$59","v":"00:00:00"},{"$f":"Time!AZK$59","v":"00:00:00"},{"$f":"Time!AZL$59","v":"00:00:00"},{"$f":"Time!AZM$59","v":"00:00:00"},{"$f":"Time!AZN$59","v":"00:00:00"},{"$f":"Time!AZO$59","v":"00:00:00"},{"$f":"Time!AZP$59","v":"00:00:00"},{"$f":"Time!AZQ$59","v":"00:00:00"},{"$f":"Time!AZR$59","v":"00:00:00"},{"$f":"Time!AZS$59","v":"00:00:00"},{"$f":"Time!AZT$59","v":"00:00:00"},{"$f":"Time!AZU$59","v":"00:00:00"},{"$f":"Time!AZV$59","v":"00:00:00"},{"$f":"Time!AZW$59","v":"00:00:00"},{"$f":"Time!AZX$59","v":"00:00:00"},{"$f":"Time!AZY$59","v":"00:00:00"},{"$f":"Time!AZZ$59","v":"00:00:00"},{"$f":"Time!BAA$59","v":"00:00:00"},{"$f":"Time!BAB$59","v":"00:00:00"},{"$f":"Time!BAC$59","v":"00:00:00"},{"$f":"Time!BAD$59","v":"00:00:00"},{"$f":"Time!BAE$59","v":"00:00:00"},{"$f":"Time!BAF$59","v":"00:00:00"},{"$f":"Time!BAG$59","v":"00:00:00"},{"$f":"Time!BAH$59","v":"00:00:00"},{"$f":"Time!BAI$59","v":"00:00:00"},{"$f":"Time!BAJ$59","v":"00:00:00"},{"$f":"Time!BAK$59","v":"00:00:00"},{"$f":"Time!BAL$59","v":"00:00:00"},{"$f":"Time!BAM$59","v":"00:00:00"},{"$f":"Time!BAN$59","v":"00:00:00"},{"$f":"Time!BAO$59","v":"00:00:00"},{"$f":"Time!BAP$59","v":"00:00:00"},{"$f":"Time!BAQ$59","v":"00:00:00"},{"$f":"Time!BAR$59","v":"00:00:00"},{"$f":"Time!BAS$59","v":"00:00:00"},{"$f":"Time!BAT$59","v":"00:00:00"},{"$f":"Time!BAU$59","v":"00:00:00"},{"$f":"Time!BAV$59","v":"00:00:00"},{"$f":"Time!BAW$59","v":"00:00:00"},{"$f":"Time!BAX$59","v":"00:00:00"},{"$f":"Time!BAY$59","v":"00:00:00"},{"$f":"Time!BAZ$59","v":"00:00:00"},{"$f":"Time!BBA$59","v":"00:00:00"},{"$f":"Time!BBB$59","v":"00:00:00"},{"$f":"Time!BBC$59","v":"00:00:00"},{"$f":"Time!BBD$59","v":"00:00:00"},{"$f":"Time!BBE$59","v":"00:00:00"},{"$f":"Time!BBF$59","v":"00:00:00"},{"$f":"Time!BBG$59","v":"00:00:00"},{"$f":"Time!BBH$59","v":"00:00:00"},{"$f":"Time!BBI$59","v":"00:00:00"},{"$f":"Time!BBJ$59","v":"00:00:00"},{"$f":"Time!BBK$59","v":"00:00:00"},{"$f":"Time!BBL$59","v":"00:00:00"},{"$f":"Time!BBM$59","v":"00:00:00"},{"$f":"Time!BBN$59","v":"00:00:00"},{"$f":"Time!BBO$59","v":"00:00:00"},{"$f":"Time!BBP$59","v":"00:00:00"},{"$f":"Time!BBQ$59","v":"00:00:00"},{"$f":"Time!BBR$59","v":"00:00:00"},{"$f":"Time!BBS$59","v":"00:00:00"},{"$f":"Time!BBT$59","v":"00:00:00"},{"$f":"Time!BBU$59","v":"00:00:00"},{"$f":"Time!BBV$59","v":"00:00:00"},{"$f":"Time!BBW$59","v":"00:00:00"},{"$f":"Time!BBX$59","v":"00:00:00"},{"$f":"Time!BBY$59","v":"00:00:00"},{"$f":"Time!BBZ$59","v":"00:00:00"},{"$f":"Time!BCA$59","v":"00:00:00"},{"$f":"Time!BCB$59","v":"00:00:00"},{"$f":"Time!BCC$59","v":"00:00:00"},{"$f":"Time!BCD$59","v":"00:00:00"},{"$f":"Time!BCE$59","v":"00:00:00"},{"$f":"Time!BCF$59","v":"00:00:00"},{"$f":"Time!BCG$59","v":"00:00:00"},{"$f":"Time!BCH$59","v":"00:00:00"},{"$f":"Time!BCI$59","v":"00:00:00"},{"$f":"Time!BCJ$59","v":"00:00:00"},{"$f":"Time!BCK$59","v":"00:00:00"},{"$f":"Time!BCL$59","v":"00:00:00"},{"$f":"Time!BCM$59","v":"00:00:00"},{"$f":"Time!BCN$59","v":"00:00:00"},{"$f":"Time!BCO$59","v":"00:00:00"},{"$f":"Time!BCP$59","v":"00:00:00"},{"$f":"Time!BCQ$59","v":"00:00:00"},{"$f":"Time!BCR$59","v":"00:00:00"},{"$f":"Time!BCS$59","v":"00:00:00"},{"$f":"Time!BCT$59","v":"00:00:00"},{"$f":"Time!BCU$59","v":"00:00:00"},{"$f":"Time!BCV$59","v":"00:00:00"},{"$f":"Time!BCW$59","v":"00:00:00"},{"$f":"Time!BCX$59","v":"00:00:00"},{"$f":"Time!BCY$59","v":"00:00:00"},{"$f":"Time!BCZ$59","v":"00:00:00"},{"$f":"Time!BDA$59","v":"00:00:00"},{"$f":"Time!BDB$59","v":"00:00:00"},{"$f":"Time!BDC$59","v":"00:00:00"},{"$f":"Time!BDD$59","v":"00:00:00"},{"$f":"Time!BDE$59","v":"00:00:00"},{"$f":"Time!BDF$59","v":"00:00:00"},{"$f":"Time!BDG$59","v":"00:00:00"},{"$f":"Time!BDH$59","v":"00:00:00"},{"$f":"Time!BDI$59","v":"00:00:00"},{"$f":"Time!BDJ$59","v":"00:00:00"},{"$f":"Time!BDK$59","v":"00:00:00"},{"$f":"Time!BDL$59","v":"00:00:00"},{"$f":"Time!BDM$59","v":"00:00:00"},{"$f":"Time!BDN$59","v":"00:00:00"},{"$f":"Time!BDO$59","v":"00:00:00"},{"$f":"Time!BDP$59","v":"00:00:00"},{"$f":"Time!BDQ$59","v":"00:00:00"},{"$f":"Time!BDR$59","v":"00:00:00"},{"$f":"Time!BDS$59","v":"00:00:00"},{"$f":"Time!BDT$59","v":"00:00:00"},{"$f":"Time!BDU$59","v":"00:00:00"},{"$f":"Time!BDV$59","v":"00:00:00"},{"$f":"Time!BDW$59","v":"00:00:00"},{"$f":"Time!BDX$59","v":"00:00:00"},{"$f":"Time!BDY$59","v":"00:00:00"},{"$f":"Time!BDZ$59","v":"00:00:00"},{"$f":"Time!BEA$59","v":"00:00:00"},{"$f":"Time!BEB$59","v":"00:00:00"},{"$f":"Time!BEC$59","v":"00:00:00"},{"$f":"Time!BED$59","v":"00:00:00"},{"$f":"Time!BEE$59","v":"00:00:00"},{"$f":"Time!BEF$59","v":"00:00:00"},{"$f":"Time!BEG$59","v":"00:00:00"},{"$f":"Time!BEH$59","v":"00:00:00"},{"$f":"Time!BEI$59","v":"00:00:00"},{"$f":"Time!BEJ$59","v":"00:00:00"},{"$f":"Time!BEK$59","v":"00:00:00"},{"$f":"Time!BEL$59","v":"00:00:00"},{"$f":"Time!BEM$59","v":"00:00:00"},{"$f":"Time!BEN$59","v":"00:00:00"},{"$f":"Time!BEO$59","v":"00:00:00"},{"$f":"Time!BEP$59","v":"00:00:00"},{"$f":"Time!BEQ$59","v":"00:00:00"},{"$f":"Time!BER$59","v":"00:00:00"},{"$f":"Time!BES$59","v":"00:00:00"},{"$f":"Time!BET$59","v":"00:00:00"},{"$f":"Time!BEU$59","v":"00:00:00"},{"$f":"Time!BEV$59","v":"00:00:00"},{"$f":"Time!BEW$59","v":"00:00:00"},{"$f":"Time!BEX$59","v":"00:00:00"},{"$f":"Time!BEY$59","v":"00:00:00"},{"$f":"Time!BEZ$59","v":"00:00:00"},{"$f":"Time!BFA$59","v":"00:00:00"},{"$f":"Time!BFB$59","v":"00:00:00"},{"$f":"Time!BFC$59","v":"00:00:00"},{"$f":"Time!BFD$59","v":"00:00:00"},{"$f":"Time!BFE$59","v":"00:00:00"},{"$f":"Time!BFF$59","v":"00:00:00"},{"$f":"Time!BFG$59","v":"00:00:00"},{"$f":"Time!BFH$59","v":"00:00:00"},{"$f":"Time!BFI$59","v":"00:00:00"},{"$f":"Time!BFJ$59","v":"00:00:00"},{"$f":"Time!BFK$59","v":"00:00:00"},{"$f":"Time!BFL$59","v":"00:00:00"},{"$f":"Time!BFM$59","v":"00:00:00"},{"$f":"Time!BFN$59","v":"00:00:00"},{"$f":"Time!BFO$59","v":"00:00:00"},{"$f":"Time!BFP$59","v":"00:00:00"},{"$f":"Time!BFQ$59","v":"00:00:00"},{"$f":"Time!BFR$59","v":"00:00:00"},{"$f":"Time!BFS$59","v":"00:00:00"},{"$f":"Time!BFT$59","v":"00:00:00"},{"$f":"Time!BFU$59","v":"00:00:00"},{"$f":"Time!BFV$59","v":"00:00:00"},{"$f":"Time!BFW$59","v":"00:00:00"},{"$f":"Time!BFX$59","v":"00:00:00"},{"$f":"Time!BFY$59","v":"00:00:00"},{"$f":"Time!BFZ$59","v":"00:00:00"},{"$f":"Time!BGA$59","v":"00:00:00"},{"$f":"Time!BGB$59","v":"00:00:00"},{"$f":"Time!BGC$59","v":"00:00:00"},{"$f":"Time!BGD$59","v":"00:00:00"},{"$f":"Time!BGE$59","v":"00:00:00"},{"$f":"Time!BGF$59","v":"00:00:00"},{"$f":"Time!BGG$59","v":"00:00:00"},{"$f":"Time!BGH$59","v":"00:00:00"},{"$f":"Time!BGI$59","v":"00:00:00"},{"$f":"Time!BGJ$59","v":"00:00:00"},{"$f":"Time!BGK$59","v":"00:00:00"},{"$f":"Time!BGL$59","v":"00:00:00"},{"$f":"Time!BGM$59","v":"00:00:00"},{"$f":"Time!BGN$59","v":"00:00:00"},{"$f":"Time!BGO$59","v":"00:00:00"},{"$f":"Time!BGP$59","v":"00:00:00"},{"$f":"Time!BGQ$59","v":"00:00:00"},{"$f":"Time!BGR$59","v":"00:00:00"},{"$f":"Time!BGS$59","v":"00:00:00"},{"$f":"Time!BGT$59","v":"00:00:00"},{"$f":"Time!BGU$59","v":"00:00:00"},{"$f":"Time!BGV$59","v":"00:00:00"},{"$f":"Time!BGW$59","v":"00:00:00"},{"$f":"Time!BGX$59","v":"00:00:00"},{"$f":"Time!BGY$59","v":"00:00:00"},{"$f":"Time!BGZ$59","v":"00:00:00"},{"$f":"Time!BHA$59","v":"00:00:00"},{"$f":"Time!BHB$59","v":"00:00:00"},{"$f":"Time!BHC$59","v":"00:00:00"},{"$f":"Time!BHD$59","v":"00:00:00"},{"$f":"Time!BHE$59","v":"00:00:00"},{"$f":"Time!BHF$59","v":"00:00:00"},{"$f":"Time!BHG$59","v":"00:00:00"},{"$f":"Time!BHH$59","v":"00:00:00"},{"$f":"Time!BHI$59","v":"00:00:00"},{"$f":"Time!BHJ$59","v":"00:00:00"},{"$f":"Time!BHK$59","v":"00:00:00"},{"$f":"Time!BHL$59","v":"00:00:00"},{"$f":"Time!BHM$59","v":"00:00:00"},{"$f":"Time!BHN$59","v":"00:00:00"},{"$f":"Time!BHO$59","v":"00:00:00"},{"$f":"Time!BHP$59","v":"00:00:00"},{"$f":"Time!BHQ$59","v":"00:00:00"},{"$f":"Time!BHR$59","v":"00:00:00"},{"$f":"Time!BHS$59","v":"00:00:00"},{"$f":"Time!BHT$59","v":"00:00:00"},{"$f":"Time!BHU$59","v":"00:00:00"},{"$f":"Time!BHV$59","v":"00:00:00"},{"$f":"Time!BHW$59","v":"00:00:00"},{"$f":"Time!BHX$59","v":"00:00:00"},{"$f":"Time!BHY$59","v":"00:00:00"},{"$f":"Time!BHZ$59","v":"00:00:00"},{"$f":"Time!BIA$59","v":"00:00:00"},{"$f":"Time!BIB$59","v":"00:00:00"},{"$f":"Time!BIC$59","v":"00:00:00"},{"$f":"Time!BID$59","v":"00:00:00"},{"$f":"Time!BIE$59","v":"00:00:00"},{"$f":"Time!BIF$59","v":"00:00:00"},{"$f":"Time!BIG$59","v":"00:00:00"},{"$f":"Time!BIH$59","v":"00:00:00"},{"$f":"Time!BII$59","v":"00:00:00"},{"$f":"Time!BIJ$59","v":"00:00:00"},{"$f":"Time!BIK$59","v":"00:00:00"},{"$f":"Time!BIL$59","v":"00:00:00"},{"$f":"Time!BIM$59","v":"00:00:00"},{"$f":"Time!BIN$59","v":"00:00:00"},{"$f":"Time!BIO$59","v":"00:00:00"},{"$f":"Time!BIP$59","v":"00:00:00"},{"$f":"Time!BIQ$59","v":"00:00:00"},{"$f":"Time!BIR$59","v":"00:00:00"},{"$f":"Time!BIS$59","v":"00:00:00"},{"$f":"Time!BIT$59","v":"00:00:00"},{"$f":"Time!BIU$59","v":"00:00:00"},{"$f":"Time!BIV$59","v":"00:00:00"},{"$f":"Time!BIW$59","v":"00:00:00"},{"$f":"Time!BIX$59","v":"00:00:00"},{"$f":"Time!BIY$59","v":"00:00:00"},{"$f":"Time!BIZ$59","v":"00:00:00"},{"$f":"Time!BJA$59","v":"00:00:00"},{"$f":"Time!BJB$59","v":"00:00:00"},{"$f":"Time!BJC$59","v":"00:00:00"},{"$f":"Time!BJD$59","v":"00:00:00"},{"$f":"Time!BJE$59","v":"00:00:00"},{"$f":"Time!BJF$59","v":"00:00:00"},{"$f":"Time!BJG$59","v":"00:00:00"},{"$f":"Time!BJH$59","v":"00:00:00"},{"$f":"Time!BJI$59","v":"00:00:00"},{"$f":"Time!BJJ$59","v":"00:00:00"},{"$f":"Time!BJK$59","v":"00:00:00"},{"$f":"Time!BJL$59","v":"00:00:00"},{"$f":"Time!BJM$59","v":"00:00:00"},{"$f":"Time!BJN$59","v":"00:00:00"},{"$f":"Time!BJO$59","v":"00:00:00"},{"$f":"Time!BJP$59","v":"00:00:00"},{"$f":"Time!BJQ$59","v":"00:00:00"},{"$f":"Time!BJR$59","v":"00:00:00"},{"$f":"Time!BJS$59","v":"00:00:00"},{"$f":"Time!BJT$59","v":"00:00:00"},{"$f":"Time!BJU$59","v":"00:00:00"},{"$f":"Time!BJV$59","v":"00:00:00"},{"$f":"Time!BJW$59","v":"00:00:00"},{"$f":"Time!BJX$59","v":"00:00:00"},{"$f":"Time!BJY$59","v":"00:00:00"},{"$f":"Time!BJZ$59","v":"00:00:00"},{"$f":"Time!BKA$59","v":"00:00:00"},{"$f":"Time!BKB$59","v":"00:00:00"},{"$f":"Time!BKC$59","v":"00:00:00"},{"$f":"Time!BKD$59","v":"00:00:00"},{"$f":"Time!BKE$59","v":"00:00:00"},{"$f":"Time!BKF$59","v":"00:00:00"},{"$f":"Time!BKG$59","v":"00:00:00"},{"$f":"Time!BKH$59","v":"00:00:00"},{"$f":"Time!BKI$59","v":"00:00:00"},{"$f":"Time!BKJ$59","v":"00:00:00"},{"$f":"Time!BKK$59","v":"00:00:00"},{"$f":"Time!BKL$59","v":"00:00:00"},{"$f":"Time!BKM$59","v":"00:00:00"},{"$f":"Time!BKN$59","v":"00:00:00"},{"$f":"Time!BKO$59","v":"00:00:00"},{"$f":"Time!BKP$59","v":"00:00:00"},{"$f":"Time!BKQ$59","v":"00:00:00"},{"$f":"Time!BKR$59","v":"00:00:00"},{"$f":"Time!BKS$59","v":"00:00:00"},{"$f":"Time!BKT$59","v":"00:00:00"},{"$f":"Time!BKU$59","v":"00:00:00"},{"$f":"Time!BKV$59","v":"00:00:00"},{"$f":"Time!BKW$59","v":"00:00:00"},{"$f":"Time!BKX$59","v":"00:00:00"},{"$f":"Time!BKY$59","v":"00:00:00"},{"$f":"Time!BKZ$59","v":"00:00:00"},{"$f":"Time!BLA$59","v":"00:00:00"},{"$f":"Time!BLB$59","v":"00:00:00"},{"$f":"Time!BLC$59","v":"00:00:00"},{"$f":"Time!BLD$59","v":"00:00:00"},{"$f":"Time!BLE$59","v":"00:00:00"},{"$f":"Time!BLF$59","v":"00:00:00"},{"$f":"Time!BLG$59","v":"00:00:00"},{"$f":"Time!BLH$59","v":"00:00:00"},{"$f":"Time!BLI$59","v":"00:00:00"},{"$f":"Time!BLJ$59","v":"00:00:00"},{"$f":"Time!BLK$59","v":"00:00:00"},{"$f":"Time!BLL$59","v":"00:00:00"},{"$f":"Time!BLM$59","v":"00:00:00"},{"$f":"Time!BLN$59","v":"00:00:00"},{"$f":"Time!BLO$59","v":"00:00:00"},{"$f":"Time!BLP$59","v":"00:00:00"},{"$f":"Time!BLQ$59","v":"00:00:00"},{"$f":"Time!BLR$59","v":"00:00:00"},{"$f":"Time!BLS$59","v":"00:00:00"},{"$f":"Time!BLT$59","v":"00:00:00"},{"$f":"Time!BLU$59","v":"00:00:00"},{"$f":"Time!BLV$59","v":"00:00:00"},{"$f":"Time!BLW$59","v":"00:00:00"},{"$f":"Time!BLX$59","v":"00:00:00"},{"$f":"Time!BLY$59","v":"00:00:00"},{"$f":"Time!BLZ$59","v":"00:00:00"},{"$f":"Time!BMA$59","v":"00:00:00"},{"$f":"Time!BMB$59","v":"00:00:00"},{"$f":"Time!BMC$59","v":"00:00:00"},{"$f":"Time!BMD$59","v":"00:00:00"},{"$f":"Time!BME$59","v":"00:00:00"},{"$f":"Time!BMF$59","v":"00:00:00"},{"$f":"Time!BMG$59","v":"00:00:00"},{"$f":"Time!BMH$59","v":"00:00:00"},{"$f":"Time!BMI$59","v":"00:00:00"},{"$f":"Time!BMJ$59","v":"00:00:00"},{"$f":"Time!BMK$59","v":"00:00:00"},{"$f":"Time!BML$59","v":"00:00:00"},{"$f":"Time!BMM$59","v":"00:00:00"},{"$f":"Time!BMN$59","v":"00:00:00"},{"$f":"Time!BMO$59","v":"00:00:00"},{"$f":"Time!BMP$59","v":"00:00:00"},{"$f":"Time!BMQ$59","v":"00:00:00"},{"$f":"Time!BMR$59","v":"00:00:00"},{"$f":"Time!BMS$59","v":"00:00:00"},{"$f":"Time!BMT$59","v":"00:00:00"},{"$f":"Time!BMU$59","v":"00:00:00"},{"$f":"Time!BMV$59","v":"00:00:00"},{"$f":"Time!BMW$59","v":"00:00:00"},{"$f":"Time!BMX$59","v":"00:00:00"},{"$f":"Time!BMY$59","v":"00:00:00"},{"$f":"Time!BMZ$59","v":"00:00:00"},{"$f":"Time!BNA$59","v":"00:00:00"},{"$f":"Time!BNB$59","v":"00:00:00"},{"$f":"Time!BNC$59","v":"00:00:00"},{"$f":"Time!BND$59","v":"00:00:00"},{"$f":"Time!BNE$59","v":"00:00:00"},{"$f":"Time!BNF$59","v":"00:00:00"},{"$f":"Time!BNG$59","v":"00:00:00"},{"$f":"Time!BNH$59","v":"00:00:00"},{"$f":"Time!BNI$59","v":"00:00:00"},{"$f":"Time!BNJ$59","v":"00:00:00"},{"$f":"Time!BNK$59","v":"00:00:00"},{"$f":"Time!BNL$59","v":"00:00:00"},{"$f":"Time!BNM$59","v":"00:00:00"},{"$f":"Time!BNN$59","v":"00:00:00"},{"$f":"Time!BNO$59","v":"00:00:00"},{"$f":"Time!BNP$59","v":"00:00:00"},{"$f":"Time!BNQ$59","v":"00:00:00"},{"$f":"Time!BNR$59","v":"00:00:00"},{"$f":"Time!BNS$59","v":"00:00:00"},{"$f":"Time!BNT$59","v":"00:00:00"},{"$f":"Time!BNU$59","v":"00:00:00"},{"$f":"Time!BNV$59","v":"00:00:00"},{"$f":"Time!BNW$59","v":"00:00:00"},{"$f":"Time!BNX$59","v":"00:00:00"},{"$f":"Time!BNY$59","v":"00:00:00"},{"$f":"Time!BNZ$59","v":"00:00:00"},{"$f":"Time!BOA$59","v":"00:00:00"},{"$f":"Time!BOB$59","v":"00:00:00"},{"$f":"Time!BOC$59","v":"00:00:00"},{"$f":"Time!BOD$59","v":"00:00:00"},{"$f":"Time!BOE$59","v":"00:00:00"},{"$f":"Time!BOF$59","v":"00:00:00"},{"$f":"Time!BOG$59","v":"00:00:00"},{"$f":"Time!BOH$59","v":"00:00:00"},{"$f":"Time!BOI$59","v":"00:00:00"},{"$f":"Time!BOJ$59","v":"00:00:00"},{"$f":"Time!BOK$59","v":"00:00:00"},{"$f":"Time!BOL$59","v":"00:00:00"},{"$f":"Time!BOM$59","v":"00:00:00"},{"$f":"Time!BON$59","v":"00:00:00"},{"$f":"Time!BOO$59","v":"00:00:00"},{"$f":"Time!BOP$59","v":"00:00:00"},{"$f":"Time!BOQ$59","v":"00:00:00"},{"$f":"Time!BOR$59","v":"00:00:00"},{"$f":"Time!BOS$59","v":"00:00:00"},{"$f":"Time!BOT$59","v":"00:00:00"},{"$f":"Time!BOU$59","v":"00:00:00"},{"$f":"Time!BOV$59","v":"00:00:00"},{"$f":"Time!BOW$59","v":"00:00:00"},{"$f":"Time!BOX$59","v":"00:00:00"},{"$f":"Time!BOY$59","v":"00:00:00"},{"$f":"Time!BOZ$59","v":"00:00:00"},{"$f":"Time!BPA$59","v":"00:00:00"},{"$f":"Time!BPB$59","v":"00:00:00"},{"$f":"Time!BPC$59","v":"00:00:00"},{"$f":"Time!BPD$59","v":"00:00:00"},{"$f":"Time!BPE$59","v":"00:00:00"},{"$f":"Time!BPF$59","v":"00:00:00"},{"$f":"Time!BPG$59","v":"00:00:00"},{"$f":"Time!BPH$59","v":"00:00:00"},{"$f":"Time!BPI$59","v":"00:00:00"},{"$f":"Time!BPJ$59","v":"00:00:00"},{"$f":"Time!BPK$59","v":"00:00:00"},{"$f":"Time!BPL$59","v":"00:00:00"},{"$f":"Time!BPM$59","v":"00:00:00"},{"$f":"Time!BPN$59","v":"00:00:00"},{"$f":"Time!BPO$59","v":"00:00:00"},{"$f":"Time!BPP$59","v":"00:00:00"},{"$f":"Time!BPQ$59","v":"00:00:00"},{"$f":"Time!BPR$59","v":"00:00:00"},{"$f":"Time!BPS$59","v":"00:00:00"},{"$f":"Time!BPT$59","v":"00:00:00"},{"$f":"Time!BPU$59","v":"00:00:00"},{"$f":"Time!BPV$59","v":"00:00:00"},{"$f":"Time!BPW$59","v":"00:00:00"},{"$f":"Time!BPX$59","v":"00:00:00"},{"$f":"Time!BPY$59","v":"00:00:00"},{"$f":"Time!BPZ$59","v":"00:00:00"},{"$f":"Time!BQA$59","v":"00:00:00"},{"$f":"Time!BQB$59","v":"00:00:00"},{"$f":"Time!BQC$59","v":"00:00:00"},{"$f":"Time!BQD$59","v":"00:00:00"},{"$f":"Time!BQE$59","v":"00:00:00"},{"$f":"Time!BQF$59","v":"00:00:00"},{"$f":"Time!BQG$59","v":"00:00:00"},{"$f":"Time!BQH$59","v":"00:00:00"},{"$f":"Time!BQI$59","v":"00:00:00"},{"$f":"Time!BQJ$59","v":"00:00:00"},{"$f":"Time!BQK$59","v":"00:00:00"},{"$f":"Time!BQL$59","v":"00:00:00"},{"$f":"Time!BQM$59","v":"00:00:00"},{"$f":"Time!BQN$59","v":"00:00:00"},{"$f":"Time!BQO$59","v":"00:00:00"},{"$f":"Time!BQP$59","v":"00:00:00"},{"$f":"Time!BQQ$59","v":"00:00:00"},{"$f":"Time!BQR$59","v":"00:00:00"},{"$f":"Time!BQS$59","v":"00:00:00"},{"$f":"Time!BQT$59","v":"00:00:00"},{"$f":"Time!BQU$59","v":"00:00:00"},{"$f":"Time!BQV$59","v":"00:00:00"},{"$f":"Time!BQW$59","v":"00:00:00"},{"$f":"Time!BQX$59","v":"00:00:00"},{"$f":"Time!BQY$59","v":"00:00:00"},{"$f":"Time!BQZ$59","v":"00:00:00"},{"$f":"Time!BRA$59","v":"00:00:00"},{"$f":"Time!BRB$59","v":"00:00:00"},{"$f":"Time!BRC$59","v":"00:00:00"},{"$f":"Time!BRD$59","v":"00:00:00"},{"$f":"Time!BRE$59","v":"00:00:00"},{"$f":"Time!BRF$59","v":"00:00:00"},{"$f":"Time!BRG$59","v":"00:00:00"},{"$f":"Time!BRH$59","v":"00:00:00"},{"$f":"Time!BRI$59","v":"00:00:00"},{"$f":"Time!BRJ$59","v":"00:00:00"},{"$f":"Time!BRK$59","v":"00:00:00"},{"$f":"Time!BRL$59","v":"00:00:00"},{"$f":"Time!BRM$59","v":"00:00:00"},{"$f":"Time!BRN$59","v":"00:00:00"},{"$f":"Time!BRO$59","v":"00:00:00"},{"$f":"Time!BRP$59","v":"00:00:00"},{"$f":"Time!BRQ$59","v":"00:00:00"},{"$f":"Time!BRR$59","v":"00:00:00"},{"$f":"Time!BRS$59","v":"00:00:00"},{"$f":"Time!BRT$59","v":"00:00:00"},{"$f":"Time!BRU$59","v":"00:00:00"},{"$f":"Time!BRV$59","v":"00:00:00"},{"$f":"Time!BRW$59","v":"00:00:00"},{"$f":"Time!BRX$59","v":"00:00:00"},{"$f":"Time!BRY$59","v":"00:00:00"},{"$f":"Time!BRZ$59","v":"00:00:00"},{"$f":"Time!BSA$59","v":"00:00:00"},{"$f":"Time!BSB$59","v":"00:00:00"},{"$f":"Time!BSC$59","v":"00:00:00"},{"$f":"Time!BSD$59","v":"00:00:00"},{"$f":"Time!BSE$59","v":"00:00:00"},{"$f":"Time!BSF$59","v":"00:00:00"},{"$f":"Time!BSG$59","v":"00:00:00"},{"$f":"Time!BSH$59","v":"00:00:00"},{"$f":"Time!BSI$59","v":"00:00:00"},{"$f":"Time!BSJ$59","v":"00:00:00"},{"$f":"Time!BSK$59","v":"00:00:00"},{"$f":"Time!BSL$59","v":"00:00:00"},{"$f":"Time!BSM$59","v":"00:00:00"},{"$f":"Time!BSN$59","v":"00:00:00"},{"$f":"Time!BSO$59","v":"00:00:00"},{"$f":"Time!BSP$59","v":"00:00:00"},{"$f":"Time!BSQ$59","v":"00:00:00"},{"$f":"Time!BSR$59","v":"00:00:00"},{"$f":"Time!BSS$59","v":"00:00:00"},{"$f":"Time!BST$59","v":"00:00:00"},{"$f":"Time!BSU$59","v":"00:00:00"},{"$f":"Time!BSV$59","v":"00:00:00"},{"$f":"Time!BSW$59","v":"00:00:00"},{"$f":"Time!BSX$59","v":"00:00:00"},{"$f":"Time!BSY$59","v":"00:00:00"},{"$f":"Time!BSZ$59","v":"00:00:00"},{"$f":"Time!BTA$59","v":"00:00:00"},{"$f":"Time!BTB$59","v":"00:00:00"},{"$f":"Time!BTC$59","v":"00:00:00"},{"$f":"Time!BTD$59","v":"00:00:00"},{"$f":"Time!BTE$59","v":"00:00:00"},{"$f":"Time!BTF$59","v":"00:00:00"},{"$f":"Time!BTG$59","v":"00:00:00"},{"$f":"Time!BTH$59","v":"00:00:00"},{"$f":"Time!BTI$59","v":"00:00:00"},{"$f":"Time!BTJ$59","v":"00:00:00"},{"$f":"Time!BTK$59","v":"00:00:00"},{"$f":"Time!BTL$59","v":"00:00:00"},{"$f":"Time!BTM$59","v":"00:00:00"},{"$f":"Time!BTN$59","v":"00:00:00"},{"$f":"Time!BTO$59","v":"00:00:00"},{"$f":"Time!BTP$59","v":"00:00:00"},{"$f":"Time!BTQ$59","v":"00:00:00"},{"$f":"Time!BTR$59","v":"00:00:00"},{"$f":"Time!BTS$59","v":"00:00:00"},{"$f":"Time!BTT$59","v":"00:00:00"},{"$f":"Time!BTU$59","v":"00:00:00"},{"$f":"Time!BTV$59","v":"00:00:00"},{"$f":"Time!BTW$59","v":"00:00:00"},{"$f":"Time!BTX$59","v":"00:00:00"},{"$f":"Time!BTY$59","v":"00:00:00"},{"$f":"Time!BTZ$59","v":"00:00:00"},{"$f":"Time!BUA$59","v":"00:00:00"},{"$f":"Time!BUB$59","v":"00:00:00"},{"$f":"Time!BUC$59","v":"00:00:00"},{"$f":"Time!BUD$59","v":"00:00:00"},{"$f":"Time!BUE$59","v":"00:00:00"},{"$f":"Time!BUF$59","v":"00:00:00"},{"$f":"Time!BUG$59","v":"00:00:00"},{"$f":"Time!BUH$59","v":"00:00:00"},{"$f":"Time!BUI$59","v":"00:00:00"},{"$f":"Time!BUJ$59","v":"00:00:00"},{"$f":"Time!BUK$59","v":"00:00:00"},{"$f":"Time!BUL$59","v":"00:00:00"},{"$f":"Time!BUM$59","v":"00:00:00"},{"$f":"Time!BUN$59","v":"00:00:00"},{"$f":"Time!BUO$59","v":"00:00:00"},{"$f":"Time!BUP$59","v":"00:00:00"},{"$f":"Time!BUQ$59","v":"00:00:00"},{"$f":"Time!BUR$59","v":"00:00:00"},{"$f":"Time!BUS$59","v":"00:00:00"},{"$f":"Time!BUT$59","v":"00:00:00"},{"$f":"Time!BUU$59","v":"00:00:00"},{"$f":"Time!BUV$59","v":"00:00:00"},{"$f":"Time!BUW$59","v":"00:00:00"},{"$f":"Time!BUX$59","v":"00:00:00"},{"$f":"Time!BUY$59","v":"00:00:00"},{"$f":"Time!BUZ$59","v":"00:00:00"},{"$f":"Time!BVA$59","v":"00:00:00"},{"$f":"Time!BVB$59","v":"00:00:00"},{"$f":"Time!BVC$59","v":"00:00:00"},{"$f":"Time!BVD$59","v":"00:00:00"},{"$f":"Time!BVE$59","v":"00:00:00"},{"$f":"Time!BVF$59","v":"00:00:00"},{"$f":"Time!BVG$59","v":"00:00:00"},{"$f":"Time!BVH$59","v":"00:00:00"},{"$f":"Time!BVI$59","v":"00:00:00"},{"$f":"Time!BVJ$59","v":"00:00:00"},{"$f":"Time!BVK$59","v":"00:00:00"},{"$f":"Time!BVL$59","v":"00:00:00"},{"$f":"Time!BVM$59","v":"00:00:00"},{"$f":"Time!BVN$59","v":"00:00:00"},{"$f":"Time!BVO$59","v":"00:00:00"},{"$f":"Time!BVP$59","v":"00:00:00"},{"$f":"Time!BVQ$59","v":"00:00:00"},{"$f":"Time!BVR$59","v":"00:00:00"},{"$f":"Time!BVS$59","v":"00:00:00"},{"$f":"Time!BVT$59","v":"00:00:00"},{"$f":"Time!BVU$59","v":"00:00:00"},{"$f":"Time!BVV$59","v":"00:00:00"},{"$f":"Time!BVW$59","v":"00:00:00"},{"$f":"Time!BVX$59","v":"00:00:00"},{"$f":"Time!BVY$59","v":"00:00:00"},{"$f":"Time!BVZ$59","v":"00:00:00"},{"$f":"Time!BWA$59","v":"00:00:00"},{"$f":"Time!BWB$59","v":"00:00:00"},{"$f":"Time!BWC$59","v":"00:00:00"},{"$f":"Time!BWD$59","v":"00:00:00"},{"$f":"Time!BWE$59","v":"00:00:00"},{"$f":"Time!BWF$59","v":"00:00:00"},{"$f":"Time!BWG$59","v":"00:00:00"},{"$f":"Time!BWH$59","v":"00:00:00"},{"$f":"Time!BWI$59","v":"00:00:00"},{"$f":"Time!BWJ$59","v":"00:00:00"},{"$f":"Time!BWK$59","v":"00:00:00"},{"$f":"Time!BWL$59","v":"00:00:00"},{"$f":"Time!BWM$59","v":"00:00:00"},{"$f":"Time!BWN$59","v":"00:00:00"},{"$f":"Time!BWO$59","v":"00:00:00"},{"$f":"Time!BWP$59","v":"00:00:00"},{"$f":"Time!BWQ$59","v":"00:00:00"},{"$f":"Time!BWR$59","v":"00:00:00"},{"$f":"Time!BWS$59","v":"00:00:00"},{"$f":"Time!BWT$59","v":"00:00:00"},{"$f":"Time!BWU$59","v":"00:00:00"},{"$f":"Time!BWV$59","v":"00:00:00"},{"$f":"Time!BWW$59","v":"00:00:00"},{"$f":"Time!BWX$59","v":"00:00:00"},{"$f":"Time!BWY$59","v":"00:00:00"},{"$f":"Time!BWZ$59","v":"00:00:00"},{"$f":"Time!BXA$59","v":"00:00:00"},{"$f":"Time!BXB$59","v":"00:00:00"},{"$f":"Time!BXC$59","v":"00:00:00"},{"$f":"Time!BXD$59","v":"00:00:00"},{"$f":"Time!BXE$59","v":"00:00:00"},{"$f":"Time!BXF$59","v":"00:00:00"},{"$f":"Time!BXG$59","v":"00:00:00"},{"$f":"Time!BXH$59","v":"00:00:00"},{"$f":"Time!BXI$59","v":"00:00:00"},{"$f":"Time!BXJ$59","v":"00:00:00"},{"$f":"Time!BXK$59","v":"00:00:00"},{"$f":"Time!BXL$59","v":"00:00:00"},{"$f":"Time!BXM$59","v":"00:00:00"},{"$f":"Time!BXN$59","v":"00:00:00"},{"$f":"Time!BXO$59","v":"00:00:00"},{"$f":"Time!BXP$59","v":"00:00:00"},{"$f":"Time!BXQ$59","v":"00:00:00"},{"$f":"Time!BXR$59","v":"00:00:00"},{"$f":"Time!BXS$59","v":"00:00:00"},{"$f":"Time!BXT$59","v":"00:00:00"},{"$f":"Time!BXU$59","v":"00:00:00"},{"$f":"Time!BXV$59","v":"00:00:00"},{"$f":"Time!BXW$59","v":"00:00:00"},{"$f":"Time!BXX$59","v":"00:00:00"},{"$f":"Time!BXY$59","v":"00:00:00"},{"$f":"Time!BXZ$59","v":"00:00:00"},{"$f":"Time!BYA$59","v":"00:00:00"},{"$f":"Time!BYB$59","v":"00:00:00"},{"$f":"Time!BYC$59","v":"00:00:00"},{"$f":"Time!BYD$59","v":"00:00:00"},{"$f":"Time!BYE$59","v":"00:00:00"},{"$f":"Time!BYF$59","v":"00:00:00"},{"$f":"Time!BYG$59","v":"00:00:00"},{"$f":"Time!BYH$59","v":"00:00:00"},{"$f":"Time!BYI$59","v":"00:00:00"},{"$f":"Time!BYJ$59","v":"00:00:00"},{"$f":"Time!BYK$59","v":"00:00:00"},{"$f":"Time!BYL$59","v":"00:00:00"},{"$f":"Time!BYM$59","v":"00:00:00"},{"$f":"Time!BYN$59","v":"00:00:00"},{"$f":"Time!BYO$59","v":"00:00:00"},{"$f":"Time!BYP$59","v":"00:00:00"},{"$f":"Time!BYQ$59","v":"00:00:00"},{"$f":"Time!BYR$59","v":"00:00:00"},{"$f":"Time!BYS$59","v":"00:00:00"},{"$f":"Time!BYT$59","v":"00:00:00"},{"$f":"Time!BYU$59","v":"00:00:00"},{"$f":"Time!BYV$59","v":"00:00:00"},{"$f":"Time!BYW$59","v":"00:00:00"},{"$f":"Time!BYX$59","v":"00:00:00"},{"$f":"Time!BYY$59","v":"00:00:00"},{"$f":"Time!BYZ$59","v":"00:00:00"},{"$f":"Time!BZA$59","v":"00:00:00"},{"$f":"Time!BZB$59","v":"00:00:00"},{"$f":"Time!BZC$59","v":"00:00:00"},{"$f":"Time!BZD$59","v":"00:00:00"},{"$f":"Time!BZE$59","v":"00:00:00"},{"$f":"Time!BZF$59","v":"00:00:00"},{"$f":"Time!BZG$59","v":"00:00:00"},{"$f":"Time!BZH$59","v":"00:00:00"},{"$f":"Time!BZI$59","v":"00:00:00"},{"$f":"Time!BZJ$59","v":"00:00:00"},{"$f":"Time!BZK$59","v":"00:00:00"},{"$f":"Time!BZL$59","v":"00:00:00"},{"$f":"Time!BZM$59","v":"00:00:00"},{"$f":"Time!BZN$59","v":"00:00:00"},{"$f":"Time!BZO$59","v":"00:00:00"},{"$f":"Time!BZP$59","v":"00:00:00"},{"$f":"Time!BZQ$59","v":"00:00:00"},{"$f":"Time!BZR$59","v":"00:00:00"},{"$f":"Time!BZS$59","v":"00:00:00"},{"$f":"Time!BZT$59","v":"00:00:00"},{"$f":"Time!BZU$59","v":"00:00:00"},{"$f":"Time!BZV$59","v":"00:00:00"},{"$f":"Time!BZW$59","v":"00:00:00"},{"$f":"Time!BZX$59","v":"00:00:00"},{"$f":"Time!BZY$59","v":"00:00:00"},{"$f":"Time!BZZ$59","v":"00:00:00"},{"$f":"Time!CAA$59","v":"00:00:00"},{"$f":"Time!CAB$59","v":"00:00:00"},{"$f":"Time!CAC$59","v":"00:00:00"},{"$f":"Time!CAD$59","v":"00:00:00"},{"$f":"Time!CAE$59","v":"00:00:00"},{"$f":"Time!CAF$59","v":"00:00:00"},{"$f":"Time!CAG$59","v":"00:00:00"},{"$f":"Time!CAH$59","v":"00:00:00"},{"$f":"Time!CAI$59","v":"00:00:00"},{"$f":"Time!CAJ$59","v":"00:00:00"},{"$f":"Time!CAK$59","v":"00:00:00"},{"$f":"Time!CAL$59","v":"00:00:00"},{"$f":"Time!CAM$59","v":"00:00:00"},{"$f":"Time!CAN$59","v":"00:00:00"},{"$f":"Time!CAO$59","v":"00:00:00"},{"$f":"Time!CAP$59","v":"00:00:00"},{"$f":"Time!CAQ$59","v":"00:00:00"},{"$f":"Time!CAR$59","v":"00:00:00"},{"$f":"Time!CAS$59","v":"00:00:00"},{"$f":"Time!CAT$59","v":"00:00:00"},{"$f":"Time!CAU$59","v":"00:00:00"},{"$f":"Time!CAV$59","v":"00:00:00"},{"$f":"Time!CAW$59","v":"00:00:00"},{"$f":"Time!CAX$59","v":"00:00:00"},{"$f":"Time!CAY$59","v":"00:00:00"},{"$f":"Time!CAZ$59","v":"00:00:00"},{"$f":"Time!CBA$59","v":"00:00:00"},{"$f":"Time!CBB$59","v":"00:00:00"},{"$f":"Time!CBC$59","v":"00:00:00"},{"$f":"Time!CBD$59","v":"00:00:00"},{"$f":"Time!CBE$59","v":"00:00:00"},{"$f":"Time!CBF$59","v":"00:00:00"},{"$f":"Time!CBG$59","v":"00:00:00"},{"$f":"Time!CBH$59","v":"00:00:00"},{"$f":"Time!CBI$59","v":"00:00:00"},{"$f":"Time!CBJ$59","v":"00:00:00"},{"$f":"Time!CBK$59","v":"00:00:00"},{"$f":"Time!CBL$59","v":"00:00:00"},{"$f":"Time!CBM$59","v":"00:00:00"},{"$f":"Time!CBN$59","v":"00:00:00"},{"$f":"Time!CBO$59","v":"00:00:00"},{"$f":"Time!CBP$59","v":"00:00:00"},{"$f":"Time!CBQ$59","v":"00:00:00"},{"$f":"Time!CBR$59","v":"00:00:00"},{"$f":"Time!CBS$59","v":"00:00:00"},{"$f":"Time!CBT$59","v":"00:00:00"},{"$f":"Time!CBU$59","v":"00:00:00"},{"$f":"Time!CBV$59","v":"00:00:00"},{"$f":"Time!CBW$59","v":"00:00:00"},{"$f":"Time!CBX$59","v":"00:00:00"},{"$f":"Time!CBY$59","v":"00:00:00"},{"$f":"Time!CBZ$59","v":"00:00:00"},{"$f":"Time!CCA$59","v":"00:00:00"},{"$f":"Time!CCB$59","v":"00:00:00"},{"$f":"Time!CCC$59","v":"00:00:00"},{"$f":"Time!CCD$59","v":"00:00:00"},{"$f":"Time!CCE$59","v":"00:00:00"},{"$f":"Time!CCF$59","v":"00:00:00"},{"$f":"Time!CCG$59","v":"00:00:00"},{"$f":"Time!CCH$59","v":"00:00:00"},{"$f":"Time!CCI$59","v":"00:00:00"},{"$f":"Time!CCJ$59","v":"00:00:00"},{"$f":"Time!CCK$59","v":"00:00:00"},{"$f":"Time!CCL$59","v":"00:00:00"},{"$f":"Time!CCM$59","v":"00:00:00"},{"$f":"Time!CCN$59","v":"00:00:00"},{"$f":"Time!CCO$59","v":"00:00:00"},{"$f":"Time!CCP$59","v":"00:00:00"},{"$f":"Time!CCQ$59","v":"00:00:00"},{"$f":"Time!CCR$59","v":"00:00:00"},{"$f":"Time!CCS$59","v":"00:00:00"},{"$f":"Time!CCT$59","v":"00:00:00"},{"$f":"Time!CCU$59","v":"00:00:00"},{"$f":"Time!CCV$59","v":"00:00:00"},{"$f":"Time!CCW$59","v":"00:00:00"},{"$f":"Time!CCX$59","v":"00:00:00"},{"$f":"Time!CCY$59","v":"00:00:00"},{"$f":"Time!CCZ$59","v":"00:00:00"},{"$f":"Time!CDA$59","v":"00:00:00"},{"$f":"Time!CDB$59","v":"00:00:00"},{"$f":"Time!CDC$59","v":"00:00:00"},{"$f":"Time!CDD$59","v":"00:00:00"},{"$f":"Time!CDE$59","v":"00:00:00"},{"$f":"Time!CDF$59","v":"00:00:00"},{"$f":"Time!CDG$59","v":"00:00:00"},{"$f":"Time!CDH$59","v":"00:00:00"},{"$f":"Time!CDI$59","v":"00:00:00"},{"$f":"Time!CDJ$59","v":"00:00:00"},{"$f":"Time!CDK$59","v":"00:00:00"},{"$f":"Time!CDL$59","v":"00:00:00"},{"$f":"Time!CDM$59","v":"00:00:00"},{"$f":"Time!CDN$59","v":"00:00:00"},{"$f":"Time!CDO$59","v":"00:00:00"},{"$f":"Time!CDP$59","v":"00:00:00"},{"$f":"Time!CDQ$59","v":"00:00:00"},{"$f":"Time!CDR$59","v":"00:00:00"},{"$f":"Time!CDS$59","v":"00:00:00"},{"$f":"Time!CDT$59","v":"00:00:00"},{"$f":"Time!CDU$59","v":"00:00:00"},{"$f":"Time!CDV$59","v":"00:00:00"},{"$f":"Time!CDW$59","v":"00:00:00"},{"$f":"Time!CDX$59","v":"00:00:00"},{"$f":"Time!CDY$59","v":"00:00:00"},{"$f":"Time!CDZ$59","v":"00:00:00"},{"$f":"Time!CEA$59","v":"00:00:00"},{"$f":"Time!CEB$59","v":"00:00:00"},{"$f":"Time!CEC$59","v":"00:00:00"},{"$f":"Time!CED$59","v":"00:00:00"},{"$f":"Time!CEE$59","v":"00:00:00"},{"$f":"Time!CEF$59","v":"00:00:00"},{"$f":"Time!CEG$59","v":"00:00:00"},{"$f":"Time!CEH$59","v":"00:00:00"},{"$f":"Time!CEI$59","v":"00:00:00"},{"$f":"Time!CEJ$59","v":"00:00:00"},{"$f":"Time!CEK$59","v":"00:00:00"},{"$f":"Time!CEL$59","v":"00:00:00"},{"$f":"Time!CEM$59","v":"00:00:00"},{"$f":"Time!CEN$59","v":"00:00:00"},{"$f":"Time!CEO$59","v":"00:00:00"},{"$f":"Time!CEP$59","v":"00:00:00"},{"$f":"Time!CEQ$59","v":"00:00:00"},{"$f":"Time!CER$59","v":"00:00:00"},{"$f":"Time!CES$59","v":"00:00:00"},{"$f":"Time!CET$59","v":"00:00:00"},{"$f":"Time!CEU$59","v":"00:00:00"},{"$f":"Time!CEV$59","v":"00:00:00"},{"$f":"Time!CEW$59","v":"00:00:00"},{"$f":"Time!CEX$59","v":"00:00:00"},{"$f":"Time!CEY$59","v":"00:00:00"},{"$f":"Time!CEZ$59","v":"00:00:00"},{"$f":"Time!CFA$59","v":"00:00:00"},{"$f":"Time!CFB$59","v":"00:00:00"},{"$f":"Time!CFC$59","v":"00:00:00"},{"$f":"Time!CFD$59","v":"00:00:00"},{"$f":"Time!CFE$59","v":"00:00:00"},{"$f":"Time!CFF$59","v":"00:00:00"},{"$f":"Time!CFG$59","v":"00:00:00"},{"$f":"Time!CFH$59","v":"00:00:00"},{"$f":"Time!CFI$59","v":"00:00:00"},{"$f":"Time!CFJ$59","v":"00:00:00"},{"$f":"Time!CFK$59","v":"00:00:00"},{"$f":"Time!CFL$59","v":"00:00:00"},{"$f":"Time!CFM$59","v":"00:00:00"},{"$f":"Time!CFN$59","v":"00:00:00"},{"$f":"Time!CFO$59","v":"00:00:00"},{"$f":"Time!CFP$59","v":"00:00:00"},{"$f":"Time!CFQ$59","v":"00:00:00"},{"$f":"Time!CFR$59","v":"00:00:00"},{"$f":"Time!CFS$59","v":"00:00:00"},{"$f":"Time!CFT$59","v":"00:00:00"},{"$f":"Time!CFU$59","v":"00:00:00"},{"$f":"Time!CFV$59","v":"00:00:00"},{"$f":"Time!CFW$59","v":"00:00:00"},{"$f":"Time!CFX$59","v":"00:00:00"},{"$f":"Time!CFY$59","v":"00:00:00"},{"$f":"Time!CFZ$59","v":"00:00:00"},{"$f":"Time!CGA$59","v":"00:00:00"},{"$f":"Time!CGB$59","v":"00:00:00"},{"$f":"Time!CGC$59","v":"00:00:00"},{"$f":"Time!CGD$59","v":"00:00:00"},{"$f":"Time!CGE$59","v":"00:00:00"},{"$f":"Time!CGF$59","v":"00:00:00"},{"$f":"Time!CGG$59","v":"00:00:00"},{"$f":"Time!CGH$59","v":"00:00:00"},{"$f":"Time!CGI$59","v":"00:00:00"},{"$f":"Time!CGJ$59","v":"00:00:00"},{"$f":"Time!CGK$59","v":"00:00:00"},{"$f":"Time!CGL$59","v":"00:00:00"},{"$f":"Time!CGM$59","v":"00:00:00"},{"$f":"Time!CGN$59","v":"00:00:00"},{"$f":"Time!CGO$59","v":"00:00:00"},{"$f":"Time!CGP$59","v":"00:00:00"},{"$f":"Time!CGQ$59","v":"00:00:00"},{"$f":"Time!CGR$59","v":"00:00:00"},{"$f":"Time!CGS$59","v":"00:00:00"},{"$f":"Time!CGT$59","v":"00:00:00"},{"$f":"Time!CGU$59","v":"00:00:00"},{"$f":"Time!CGV$59","v":"00:00:00"},{"$f":"Time!CGW$59","v":"00:00:00"},{"$f":"Time!CGX$59","v":"00:00:00"},{"$f":"Time!CGY$59","v":"00:00:00"},{"$f":"Time!CGZ$59","v":"00:00:00"},{"$f":"Time!CHA$59","v":"00:00:00"},{"$f":"Time!CHB$59","v":"00:00:00"},{"$f":"Time!CHC$59","v":"00:00:00"},{"$f":"Time!CHD$59","v":"00:00:00"},{"$f":"Time!CHE$59","v":"00:00:00"},{"$f":"Time!CHF$59","v":"00:00:00"},{"$f":"Time!CHG$59","v":"00:00:00"},{"$f":"Time!CHH$59","v":"00:00:00"},{"$f":"Time!CHI$59","v":"00:00:00"},{"$f":"Time!CHJ$59","v":"00:00:00"},{"$f":"Time!CHK$59","v":"00:00:00"},{"$f":"Time!CHL$59","v":"00:00:00"},{"$f":"Time!CHM$59","v":"00:00:00"},{"$f":"Time!CHN$59","v":"00:00:00"},{"$f":"Time!CHO$59","v":"00:00:00"},{"$f":"Time!CHP$59","v":"00:00:00"},{"$f":"Time!CHQ$59","v":"00:00:00"},{"$f":"Time!CHR$59","v":"00:00:00"},{"$f":"Time!CHS$59","v":"00:00:00"},{"$f":"Time!CHT$59","v":"00:00:00"},{"$f":"Time!CHU$59","v":"00:00:00"},{"$f":"Time!CHV$59","v":"00:00:00"},{"$f":"Time!CHW$59","v":"00:00:00"},{"$f":"Time!CHX$59","v":"00:00:00"},{"$f":"Time!CHY$59","v":"00:00:00"},{"$f":"Time!CHZ$59","v":"00:00:00"},{"$f":"Time!CIA$59","v":"00:00:00"},{"$f":"Time!CIB$59","v":"00:00:00"},{"$f":"Time!CIC$59","v":"00:00:00"},{"$f":"Time!CID$59","v":"00:00:00"},{"$f":"Time!CIE$59","v":"00:00:00"},{"$f":"Time!CIF$59","v":"00:00:00"},{"$f":"Time!CIG$59","v":"00:00:00"},{"$f":"Time!CIH$59","v":"00:00:00"},{"$f":"Time!CII$59","v":"00:00:00"},{"$f":"Time!CIJ$59","v":"00:00:00"},{"$f":"Time!CIK$59","v":"00:00:00"},{"$f":"Time!CIL$59","v":"00:00:00"},{"$f":"Time!CIM$59","v":"00:00:00"},{"$f":"Time!CIN$59","v":"00:00:00"},{"$f":"Time!CIO$59","v":"00:00:00"},{"$f":"Time!CIP$59","v":"00:00:00"},{"$f":"Time!CIQ$59","v":"00:00:00"},{"$f":"Time!CIR$59","v":"00:00:00"},{"$f":"Time!CIS$59","v":"00:00:00"},{"$f":"Time!CIT$59","v":"00:00:00"},{"$f":"Time!CIU$59","v":"00:00:00"},{"$f":"Time!CIV$59","v":"00:00:00"},{"$f":"Time!CIW$59","v":"00:00:00"},{"$f":"Time!CIX$59","v":"00:00:00"},{"$f":"Time!CIY$59","v":"00:00:00"},{"$f":"Time!CIZ$59","v":"00:00:00"},{"$f":"Time!CJA$59","v":"00:00:00"},{"$f":"Time!CJB$59","v":"00:00:00"},{"$f":"Time!CJC$59","v":"00:00:00"},{"$f":"Time!CJD$59","v":"00:00:00"},{"$f":"Time!CJE$59","v":"00:00:00"},{"$f":"Time!CJF$59","v":"00:00:00"},{"$f":"Time!CJG$59","v":"00:00:00"},{"$f":"Time!CJH$59","v":"00:00:00"},{"$f":"Time!CJI$59","v":"00:00:00"},{"$f":"Time!CJJ$59","v":"00:00:00"},{"$f":"Time!CJK$59","v":"00:00:00"},{"$f":"Time!CJL$59","v":"00:00:00"},{"$f":"Time!CJM$59","v":"00:00:00"},{"$f":"Time!CJN$59","v":"00:00:00"},{"$f":"Time!CJO$59","v":"00:00:00"},{"$f":"Time!CJP$59","v":"00:00:00"},{"$f":"Time!CJQ$59","v":"00:00:00"},{"$f":"Time!CJR$59","v":"00:00:00"},{"$f":"Time!CJS$59","v":"00:00:00"},{"$f":"Time!CJT$59","v":"00:00:00"},{"$f":"Time!CJU$59","v":"00:00:00"},{"$f":"Time!CJV$59","v":"00:00:00"},{"$f":"Time!CJW$59","v":"00:00:00"},{"$f":"Time!CJX$59","v":"00:00:00"},{"$f":"Time!CJY$59","v":"00:00:00"},{"$f":"Time!CJZ$59","v":"00:00:00"},{"$f":"Time!CKA$59","v":"00:00:00"},{"$f":"Time!CKB$59","v":"00:00:00"},{"$f":"Time!CKC$59","v":"00:00:00"},{"$f":"Time!CKD$59","v":"00:00:00"},{"$f":"Time!CKE$59","v":"00:00:00"},{"$f":"Time!CKF$59","v":"00:00:00"},{"$f":"Time!CKG$59","v":"00:00:00"},{"$f":"Time!CKH$59","v":"00:00:00"},{"$f":"Time!CKI$59","v":"00:00:00"},{"$f":"Time!CKJ$59","v":"00:00:00"},{"$f":"Time!CKK$59","v":"00:00:00"},{"$f":"Time!CKL$59","v":"00:00:00"},{"$f":"Time!CKM$59","v":"00:00:00"},{"$f":"Time!CKN$59","v":"00:00:00"},{"$f":"Time!CKO$59","v":"00:00:00"},{"$f":"Time!CKP$59","v":"00:00:00"},{"$f":"Time!CKQ$59","v":"00:00:00"},{"$f":"Time!CKR$59","v":"00:00:00"},{"$f":"Time!CKS$59","v":"00:00:00"},{"$f":"Time!CKT$59","v":"00:00:00"},{"$f":"Time!CKU$59","v":"00:00:00"},{"$f":"Time!CKV$59","v":"00:00:00"},{"$f":"Time!CKW$59","v":"00:00:00"},{"$f":"Time!CKX$59","v":"00:00:00"},{"$f":"Time!CKY$59","v":"00:00:00"},{"$f":"Time!CKZ$59","v":"00:00:00"},{"$f":"Time!CLA$59","v":"00:00:00"},{"$f":"Time!CLB$59","v":"00:00:00"},{"$f":"Time!CLC$59","v":"00:00:00"},{"$f":"Time!CLD$59","v":"00:00:00"},{"$f":"Time!CLE$59","v":"00:00:00"},{"$f":"Time!CLF$59","v":"00:00:00"},{"$f":"Time!CLG$59","v":"00:00:00"},{"$f":"Time!CLH$59","v":"00:00:00"},{"$f":"Time!CLI$59","v":"00:00:00"},{"$f":"Time!CLJ$59","v":"00:00:00"},{"$f":"Time!CLK$59","v":"00:00:00"},{"$f":"Time!CLL$59","v":"00:00:00"},{"$f":"Time!CLM$59","v":"00:00:00"},{"$f":"Time!CLN$59","v":"00:00:00"},{"$f":"Time!CLO$59","v":"00:00:00"},{"$f":"Time!CLP$59","v":"00:00:00"},{"$f":"Time!CLQ$59","v":"00:00:00"},{"$f":"Time!CLR$59","v":"00:00:00"},{"$f":"Time!CLS$59","v":"00:00:00"},{"$f":"Time!CLT$59","v":"00:00:00"},{"$f":"Time!CLU$59","v":"00:00:00"},{"$f":"Time!CLV$59","v":"00:00:00"},{"$f":"Time!CLW$59","v":"00:00:00"},{"$f":"Time!CLX$59","v":"00:00:00"},{"$f":"Time!CLY$59","v":"00:00:00"},{"$f":"Time!CLZ$59","v":"00:00:00"},{"$f":"Time!CMA$59","v":"00:00:00"},{"$f":"Time!CMB$59","v":"00:00:00"},{"$f":"Time!CMC$59","v":"00:00:00"},{"$f":"Time!CMD$59","v":"00:00:00"},{"$f":"Time!CME$59","v":"00:00:00"},{"$f":"Time!CMF$59","v":"00:00:00"},{"$f":"Time!CMG$59","v":"00:00:00"},{"$f":"Time!CMH$59","v":"00:00:00"},{"$f":"Time!CMI$59","v":"00:00:00"},{"$f":"Time!CMJ$59","v":"00:00:00"},{"$f":"Time!CMK$59","v":"00:00:00"},{"$f":"Time!CML$59","v":"00:00:00"},{"$f":"Time!CMM$59","v":"00:00:00"},{"$f":"Time!CMN$59","v":"00:00:00"},{"$f":"Time!CMO$59","v":"00:00:00"},{"$f":"Time!CMP$59","v":"00:00:00"},{"$f":"Time!CMQ$59","v":"00:00:00"},{"$f":"Time!CMR$59","v":"00:00:00"},{"$f":"Time!CMS$59","v":"00:00:00"},{"$f":"Time!CMT$59","v":"00:00:00"},{"$f":"Time!CMU$59","v":"00:00:00"},{"$f":"Time!CMV$59","v":"00:00:00"},{"$f":"Time!CMW$59","v":"00:00:00"},{"$f":"Time!CMX$59","v":"00:00:00"},{"$f":"Time!CMY$59","v":"00:00:00"},{"$f":"Time!CMZ$59","v":"00:00:00"},{"$f":"Time!CNA$59","v":"00:00:00"},{"$f":"Time!CNB$59","v":"00:00:00"},{"$f":"Time!CNC$59","v":"00:00:00"},{"$f":"Time!CND$59","v":"00:00:00"},{"$f":"Time!CNE$59","v":"00:00:00"},{"$f":"Time!CNF$59","v":"00:00:00"},{"$f":"Time!CNG$59","v":"00:00:00"},{"$f":"Time!CNH$59","v":"00:00:00"},{"$f":"Time!CNI$59","v":"00:00:00"},{"$f":"Time!CNJ$59","v":"00:00:00"},{"$f":"Time!CNK$59","v":"00:00:00"},{"$f":"Time!CNL$59","v":"00:00:00"},{"$f":"Time!CNM$59","v":"00:00:00"},{"$f":"Time!CNN$59","v":"00:00:00"},{"$f":"Time!CNO$59","v":"00:00:00"},{"$f":"Time!CNP$59","v":"00:00:00"},{"$f":"Time!CNQ$59","v":"00:00:00"},{"$f":"Time!CNR$59","v":"00:00:00"},{"$f":"Time!CNS$59","v":"00:00:00"},{"$f":"Time!CNT$59","v":"00:00:00"},{"$f":"Time!CNU$59","v":"00:00:00"},{"$f":"Time!CNV$59","v":"00:00:00"},{"$f":"Time!CNW$59","v":"00:00:00"},{"$f":"Time!CNX$59","v":"00:00:00"},{"$f":"Time!CNY$59","v":"00:00:00"},{"$f":"Time!CNZ$59","v":"00:00:00"},{"$f":"Time!COA$59","v":"00:00:00"},{"$f":"Time!COB$59","v":"00:00:00"},{"$f":"Time!COC$59","v":"00:00:00"},{"$f":"Time!COD$59","v":"00:00:00"},{"$f":"Time!COE$59","v":"00:00:00"},{"$f":"Time!COF$59","v":"00:00:00"},{"$f":"Time!COG$59","v":"00:00:00"},{"$f":"Time!COH$59","v":"00:00:00"},{"$f":"Time!COI$59","v":"00:00:00"},{"$f":"Time!COJ$59","v":"00:00:00"},{"$f":"Time!COK$59","v":"00:00:00"},{"$f":"Time!COL$59","v":"00:00:00"},{"$f":"Time!COM$59","v":"00:00:00"},{"$f":"Time!CON$59","v":"00:00:00"},{"$f":"Time!COO$59","v":"00:00:00"},{"$f":"Time!COP$59","v":"00:00:00"},{"$f":"Time!COQ$59","v":"00:00:00"},{"$f":"Time!COR$59","v":"00:00:00"},{"$f":"Time!COS$59","v":"00:00:00"},{"$f":"Time!COT$59","v":"00:00:00"},{"$f":"Time!COU$59","v":"00:00:00"},{"$f":"Time!COV$59","v":"00:00:00"},{"$f":"Time!COW$59","v":"00:00:00"},{"$f":"Time!COX$59","v":"00:00:00"},{"$f":"Time!COY$59","v":"00:00:00"},{"$f":"Time!COZ$59","v":"00:00:00"},{"$f":"Time!CPA$59","v":"00:00:00"},{"$f":"Time!CPB$59","v":"00:00:00"},{"$f":"Time!CPC$59","v":"00:00:00"},{"$f":"Time!CPD$59","v":"00:00:00"},{"$f":"Time!CPE$59","v":"00:00:00"},{"$f":"Time!CPF$59","v":"00:00:00"},{"$f":"Time!CPG$59","v":"00:00:00"},{"$f":"Time!CPH$59","v":"00:00:00"},{"$f":"Time!CPI$59","v":"00:00:00"},{"$f":"Time!CPJ$59","v":"00:00:00"},{"$f":"Time!CPK$59","v":"00:00:00"},{"$f":"Time!CPL$59","v":"00:00:00"},{"$f":"Time!CPM$59","v":"00:00:00"},{"$f":"Time!CPN$59","v":"00:00:00"},{"$f":"Time!CPO$59","v":"00:00:00"},{"$f":"Time!CPP$59","v":"00:00:00"},{"$f":"Time!CPQ$59","v":"00:00:00"},{"$f":"Time!CPR$59","v":"00:00:00"},{"$f":"Time!CPS$59","v":"00:00:00"},{"$f":"Time!CPT$59","v":"00:00:00"},{"$f":"Time!CPU$59","v":"00:00:00"},{"$f":"Time!CPV$59","v":"00:00:00"},{"$f":"Time!CPW$59","v":"00:00:00"},{"$f":"Time!CPX$59","v":"00:00:00"},{"$f":"Time!CPY$59","v":"00:00:00"},{"$f":"Time!CPZ$59","v":"00:00:00"},{"$f":"Time!CQA$59","v":"00:00:00"},{"$f":"Time!CQB$59","v":"00:00:00"},{"$f":"Time!CQC$59","v":"00:00:00"},{"$f":"Time!CQD$59","v":"00:00:00"},{"$f":"Time!CQE$59","v":"00:00:00"},{"$f":"Time!CQF$59","v":"00:00:00"},{"$f":"Time!CQG$59","v":"00:00:00"},{"$f":"Time!CQH$59","v":"00:00:00"},{"$f":"Time!CQI$59","v":"00:00:00"},{"$f":"Time!CQJ$59","v":"00:00:00"},{"$f":"Time!CQK$59","v":"00:00:00"},{"$f":"Time!CQL$59","v":"00:00:00"},{"$f":"Time!CQM$59","v":"00:00:00"},{"$f":"Time!CQN$59","v":"00:00:00"},{"$f":"Time!CQO$59","v":"00:00:00"},{"$f":"Time!CQP$59","v":"00:00:00"},{"$f":"Time!CQQ$59","v":"00:00:00"},{"$f":"Time!CQR$59","v":"00:00:00"},{"$f":"Time!CQS$59","v":"00:00:00"},{"$f":"Time!CQT$59","v":"00:00:00"},{"$f":"Time!CQU$59","v":"00:00:00"},{"$f":"Time!CQV$59","v":"00:00:00"},{"$f":"Time!CQW$59","v":"00:00:00"},{"$f":"Time!CQX$59","v":"00:00:00"},{"$f":"Time!CQY$59","v":"00:00:00"},{"$f":"Time!CQZ$59","v":"00:00:00"},{"$f":"Time!CRA$59","v":"00:00:00"},{"$f":"Time!CRB$59","v":"00:00:00"},{"$f":"Time!CRC$59","v":"00:00:00"},{"$f":"Time!CRD$59","v":"00:00:00"},{"$f":"Time!CRE$59","v":"00:00:00"},{"$f":"Time!CRF$59","v":"00:00:00"},{"$f":"Time!CRG$59","v":"00:00:00"},{"$f":"Time!CRH$59","v":"00:00:00"},{"$f":"Time!CRI$59","v":"00:00:00"},{"$f":"Time!CRJ$59","v":"00:00:00"},{"$f":"Time!CRK$59","v":"00:00:00"},{"$f":"Time!CRL$59","v":"00:00:00"},{"$f":"Time!CRM$59","v":"00:00:00"},{"$f":"Time!CRN$59","v":"00:00:00"},{"$f":"Time!CRO$59","v":"00:00:00"},{"$f":"Time!CRP$59","v":"00:00:00"},{"$f":"Time!CRQ$59","v":"00:00:00"},{"$f":"Time!CRR$59","v":"00:00:00"},{"$f":"Time!CRS$59","v":"00:00:00"},{"$f":"Time!CRT$59","v":"00:00:00"},{"$f":"Time!CRU$59","v":"00:00:00"},{"$f":"Time!CRV$59","v":"00:00:00"},{"$f":"Time!CRW$59","v":"00:00:00"},{"$f":"Time!CRX$59","v":"00:00:00"},{"$f":"Time!CRY$59","v":"00:00:00"},{"$f":"Time!CRZ$59","v":"00:00:00"},{"$f":"Time!CSA$59","v":"00:00:00"},{"$f":"Time!CSB$59","v":"00:00:00"},{"$f":"Time!CSC$59","v":"00:00:00"},{"$f":"Time!CSD$59","v":"00:00:00"},{"$f":"Time!CSE$59","v":"00:00:00"},{"$f":"Time!CSF$59","v":"00:00:00"},{"$f":"Time!CSG$59","v":"00:00:00"},{"$f":"Time!CSH$59","v":"00:00:00"},{"$f":"Time!CSI$59","v":"00:00:00"},{"$f":"Time!CSJ$59","v":"00:00:00"},{"$f":"Time!CSK$59","v":"00:00:00"},{"$f":"Time!CSL$59","v":"00:00:00"},{"$f":"Time!CSM$59","v":"00:00:00"},{"$f":"Time!CSN$59","v":"00:00:00"},{"$f":"Time!CSO$59","v":"00:00:00"},{"$f":"Time!CSP$59","v":"00:00:00"},{"$f":"Time!CSQ$59","v":"00:00:00"},{"$f":"Time!CSR$59","v":"00:00:00"},{"$f":"Time!CSS$59","v":"00:00:00"},{"$f":"Time!CST$59","v":"00:00:00"},{"$f":"Time!CSU$59","v":"00:00:00"},{"$f":"Time!CSV$59","v":"00:00:00"},{"$f":"Time!CSW$59","v":"00:00:00"},{"$f":"Time!CSX$59","v":"00:00:00"},{"$f":"Time!CSY$59","v":"00:00:00"},{"$f":"Time!CSZ$59","v":"00:00:00"},{"$f":"Time!CTA$59","v":"00:00:00"},{"$f":"Time!CTB$59","v":"00:00:00"},{"$f":"Time!CTC$59","v":"00:00:00"},{"$f":"Time!CTD$59","v":"00:00:00"},{"$f":"Time!CTE$59","v":"00:00:00"},{"$f":"Time!CTF$59","v":"00:00:00"},{"$f":"Time!CTG$59","v":"00:00:00"},{"$f":"Time!CTH$59","v":"00:00:00"},{"$f":"Time!CTI$59","v":"00:00:00"},{"$f":"Time!CTJ$59","v":"00:00:00"},{"$f":"Time!CTK$59","v":"00:00:00"},{"$f":"Time!CTL$59","v":"00:00:00"},{"$f":"Time!CTM$59","v":"00:00:00"},{"$f":"Time!CTN$59","v":"00:00:00"},{"$f":"Time!CTO$59","v":"00:00:00"},{"$f":"Time!CTP$59","v":"00:00:00"},{"$f":"Time!CTQ$59","v":"00:00:00"},{"$f":"Time!CTR$59","v":"00:00:00"},{"$f":"Time!CTS$59","v":"00:00:00"},{"$f":"Time!CTT$59","v":"00:00:00"},{"$f":"Time!CTU$59","v":"00:00:00"},{"$f":"Time!CTV$59","v":"00:00:00"},{"$f":"Time!CTW$59","v":"00:00:00"},{"$f":"Time!CTX$59","v":"00:00:00"},{"$f":"Time!CTY$59","v":"00:00:00"},{"$f":"Time!CTZ$59","v":"00:00:00"},{"$f":"Time!CUA$59","v":"00:00:00"},{"$f":"Time!CUB$59","v":"00:00:00"},{"$f":"Time!CUC$59","v":"00:00:00"},{"$f":"Time!CUD$59","v":"00:00:00"},{"$f":"Time!CUE$59","v":"00:00:00"},{"$f":"Time!CUF$59","v":"00:00:00"},{"$f":"Time!CUG$59","v":"00:00:00"},{"$f":"Time!CUH$59","v":"00:00:00"},{"$f":"Time!CUI$59","v":"00:00:00"},{"$f":"Time!CUJ$59","v":"00:00:00"},{"$f":"Time!CUK$59","v":"00:00:00"},{"$f":"Time!CUL$59","v":"00:00:00"},{"$f":"Time!CUM$59","v":"00:00:00"},{"$f":"Time!CUN$59","v":"00:00:00"},{"$f":"Time!CUO$59","v":"00:00:00"},{"$f":"Time!CUP$59","v":"00:00:00"},{"$f":"Time!CUQ$59","v":"00:00:00"},{"$f":"Time!CUR$59","v":"00:00:00"},{"$f":"Time!CUS$59","v":"00:00:00"},{"$f":"Time!CUT$59","v":"00:00:00"},{"$f":"Time!CUU$59","v":"00:00:00"},{"$f":"Time!CUV$59","v":"00:00:00"},{"$f":"Time!CUW$59","v":"00:00:00"},{"$f":"Time!CUX$59","v":"00:00:00"},{"$f":"Time!CUY$59","v":"00:00:00"},{"$f":"Time!CUZ$59","v":"00:00:00"},{"$f":"Time!CVA$59","v":"00:00:00"},{"$f":"Time!CVB$59","v":"00:00:00"},{"$f":"Time!CVC$59","v":"00:00:00"},{"$f":"Time!CVD$59","v":"00:00:00"},{"$f":"Time!CVE$59","v":"00:00:00"},{"$f":"Time!CVF$59","v":"00:00:00"},{"$f":"Time!CVG$59","v":"00:00:00"},{"$f":"Time!CVH$59","v":"00:00:00"},{"$f":"Time!CVI$59","v":"00:00:00"},{"$f":"Time!CVJ$59","v":"00:00:00"},{"$f":"Time!CVK$59","v":"00:00:00"},{"$f":"Time!CVL$59","v":"00:00:00"},{"$f":"Time!CVM$59","v":"00:00:00"},{"$f":"Time!CVN$59","v":"00:00:00"},{"$f":"Time!CVO$59","v":"00:00:00"},{"$f":"Time!CVP$59","v":"00:00:00"},{"$f":"Time!CVQ$59","v":"00:00:00"},{"$f":"Time!CVR$59","v":"00:00:00"},{"$f":"Time!CVS$59","v":"00:00:00"},{"$f":"Time!CVT$59","v":"00:00:00"},{"$f":"Time!CVU$59","v":"00:00:00"},{"$f":"Time!CVV$59","v":"00:00:00"},{"$f":"Time!CVW$59","v":"00:00:00"},{"$f":"Time!CVX$59","v":"00:00:00"},{"$f":"Time!CVY$59","v":"00:00:00"},{"$f":"Time!CVZ$59","v":"00:00:00"},{"$f":"Time!CWA$59","v":"00:00:00"},{"$f":"Time!CWB$59","v":"00:00:00"},{"$f":"Time!CWC$59","v":"00:00:00"},{"$f":"Time!CWD$59","v":"00:00:00"},{"$f":"Time!CWE$59","v":"00:00:00"},{"$f":"Time!CWF$59","v":"00:00:00"},{"$f":"Time!CWG$59","v":"00:00:00"},{"$f":"Time!CWH$59","v":"00:00:00"},{"$f":"Time!CWI$59","v":"00:00:00"},{"$f":"Time!CWJ$59","v":"00:00:00"},{"$f":"Time!CWK$59","v":"00:00:00"},{"$f":"Time!CWL$59","v":"00:00:00"},{"$f":"Time!CWM$59","v":"00:00:00"},{"$f":"Time!CWN$59","v":"00:00:00"},{"$f":"Time!CWO$59","v":"00:00:00"},{"$f":"Time!CWP$59","v":"00:00:00"},{"$f":"Time!CWQ$59","v":"00:00:00"},{"$f":"Time!CWR$59","v":"00:00:00"},{"$f":"Time!CWS$59","v":"00:00:00"},{"$f":"Time!CWT$59","v":"00:00:00"},{"$f":"Time!CWU$59","v":"00:00:00"},{"$f":"Time!CWV$59","v":"00:00:00"},{"$f":"Time!CWW$59","v":"00:00:00"},{"$f":"Time!CWX$59","v":"00:00:00"},{"$f":"Time!CWY$59","v":"00:00:00"},{"$f":"Time!CWZ$59","v":"00:00:00"},{"$f":"Time!CXA$59","v":"00:00:00"},{"$f":"Time!CXB$59","v":"00:00:00"},{"$f":"Time!CXC$59","v":"00:00:00"},{"$f":"Time!CXD$59","v":"00:00:00"},{"$f":"Time!CXE$59","v":"00:00:00"},{"$f":"Time!CXF$59","v":"00:00:00"},{"$f":"Time!CXG$59","v":"00:00:00"},{"$f":"Time!CXH$59","v":"00:00:00"},{"$f":"Time!CXI$59","v":"00:00:00"},{"$f":"Time!CXJ$59","v":"00:00:00"},{"$f":"Time!CXK$59","v":"00:00:00"},{"$f":"Time!CXL$59","v":"00:00:00"},{"$f":"Time!CXM$59","v":"00:00:00"},{"$f":"Time!CXN$59","v":"00:00:00"},{"$f":"Time!CXO$59","v":"00:00:00"},{"$f":"Time!CXP$59","v":"00:00:00"},{"$f":"Time!CXQ$59","v":"00:00:00"},{"$f":"Time!CXR$59","v":"00:00:00"},{"$f":"Time!CXS$59","v":"00:00:00"},{"$f":"Time!CXT$59","v":"00:00:00"},{"$f":"Time!CXU$59","v":"00:00:00"},{"$f":"Time!CXV$59","v":"00:00:00"},{"$f":"Time!CXW$59","v":"00:00:00"},{"$f":"Time!CXX$59","v":"00:00:00"},{"$f":"Time!CXY$59","v":"00:00:00"},{"$f":"Time!CXZ$59","v":"00:00:00"},{"$f":"Time!CYA$59","v":"00:00:00"},{"$f":"Time!CYB$59","v":"00:00:00"},{"$f":"Time!CYC$59","v":"00:00:00"},{"$f":"Time!CYD$59","v":"00:00:00"},{"$f":"Time!CYE$59","v":"00:00:00"},{"$f":"Time!CYF$59","v":"00:00:00"},{"$f":"Time!CYG$59","v":"00:00:00"},{"$f":"Time!CYH$59","v":"00:00:00"},{"$f":"Time!CYI$59","v":"00:00:00"},{"$f":"Time!CYJ$59","v":"00:00:00"},{"$f":"Time!CYK$59","v":"00:00:00"},{"$f":"Time!CYL$59","v":"00:00:00"},{"$f":"Time!CYM$59","v":"00:00:00"},{"$f":"Time!CYN$59","v":"00:00:00"},{"$f":"Time!CYO$59","v":"00:00:00"},{"$f":"Time!CYP$59","v":"00:00:00"},{"$f":"Time!CYQ$59","v":"00:00:00"},{"$f":"Time!CYR$59","v":"00:00:00"},{"$f":"Time!CYS$59","v":"00:00:00"},{"$f":"Time!CYT$59","v":"00:00:00"},{"$f":"Time!CYU$59","v":"00:00:00"},{"$f":"Time!CYV$59","v":"00:00:00"},{"$f":"Time!CYW$59","v":"00:00:00"},{"$f":"Time!CYX$59","v":"00:00:00"},{"$f":"Time!CYY$59","v":"00:00:00"},{"$f":"Time!CYZ$59","v":"00:00:00"},{"$f":"Time!CZA$59","v":"00:00:00"},{"$f":"Time!CZB$59","v":"00:00:00"},{"$f":"Time!CZC$59","v":"00:00:00"},{"$f":"Time!CZD$59","v":"00:00:00"},{"$f":"Time!CZE$59","v":"00:00:00"},{"$f":"Time!CZF$59","v":"00:00:00"},{"$f":"Time!CZG$59","v":"00:00:00"},{"$f":"Time!CZH$59","v":"00:00:00"},{"$f":"Time!CZI$59","v":"00:00:00"},{"$f":"Time!CZJ$59","v":"00:00:00"},{"$f":"Time!CZK$59","v":"00:00:00"},{"$f":"Time!CZL$59","v":"00:00:00"},{"$f":"Time!CZM$59","v":"00:00:00"},{"$f":"Time!CZN$59","v":"00:00:00"},{"$f":"Time!CZO$59","v":"00:00:00"},{"$f":"Time!CZP$59","v":"00:00:00"},{"$f":"Time!CZQ$59","v":"00:00:00"},{"$f":"Time!CZR$59","v":"00:00:00"},{"$f":"Time!CZS$59","v":"00:00:00"},{"$f":"Time!CZT$59","v":"00:00:00"},{"$f":"Time!CZU$59","v":"00:00:00"},{"$f":"Time!CZV$59","v":"00:00:00"},{"$f":"Time!CZW$59","v":"00:00:00"},{"$f":"Time!CZX$59","v":"00:00:00"},{"$f":"Time!CZY$59","v":"00:00:00"},{"$f":"Time!CZZ$59","v":"00:00:00"},{"$f":"Time!DAA$59","v":"00:00:00"},{"$f":"Time!DAB$59","v":"00:00:00"},{"$f":"Time!DAC$59","v":"00:00:00"},{"$f":"Time!DAD$59","v":"00:00:00"},{"$f":"Time!DAE$59","v":"00:00:00"},{"$f":"Time!DAF$59","v":"00:00:00"},{"$f":"Time!DAG$59","v":"00:00:00"},{"$f":"Time!DAH$59","v":"00:00:00"},{"$f":"Time!DAI$59","v":"00:00:00"},{"$f":"Time!DAJ$59","v":"00:00:00"},{"$f":"Time!DAK$59","v":"00:00:00"},{"$f":"Time!DAL$59","v":"00:00:00"},{"$f":"Time!DAM$59","v":"00:00:00"},{"$f":"Time!DAN$59","v":"00:00:00"},{"$f":"Time!DAO$59","v":"00:00:00"},{"$f":"Time!DAP$59","v":"00:00:00"},{"$f":"Time!DAQ$59","v":"00:00:00"},{"$f":"Time!DAR$59","v":"00:00:00"},{"$f":"Time!DAS$59","v":"00:00:00"},{"$f":"Time!DAT$59","v":"00:00:00"},{"$f":"Time!DAU$59","v":"00:00:00"},{"$f":"Time!DAV$59","v":"00:00:00"},{"$f":"Time!DAW$59","v":"00:00:00"},{"$f":"Time!DAX$59","v":"00:00:00"},{"$f":"Time!DAY$59","v":"00:00:00"},{"$f":"Time!DAZ$59","v":"00:00:00"},{"$f":"Time!DBA$59","v":"00:00:00"},{"$f":"Time!DBB$59","v":"00:00:00"},{"$f":"Time!DBC$59","v":"00:00:00"},{"$f":"Time!DBD$59","v":"00:00:00"},{"$f":"Time!DBE$59","v":"00:00:00"},{"$f":"Time!DBF$59","v":"00:00:00"},{"$f":"Time!DBG$59","v":"00:00:00"},{"$f":"Time!DBH$59","v":"00:00:00"},{"$f":"Time!DBI$59","v":"00:00:00"},{"$f":"Time!DBJ$59","v":"00:00:00"},{"$f":"Time!DBK$59","v":"00:00:00"},{"$f":"Time!DBL$59","v":"00:00:00"},{"$f":"Time!DBM$59","v":"00:00:00"},{"$f":"Time!DBN$59","v":"00:00:00"},{"$f":"Time!DBO$59","v":"00:00:00"},{"$f":"Time!DBP$59","v":"00:00:00"},{"$f":"Time!DBQ$59","v":"00:00:00"},{"$f":"Time!DBR$59","v":"00:00:00"},{"$f":"Time!DBS$59","v":"00:00:00"},{"$f":"Time!DBT$59","v":"00:00:00"},{"$f":"Time!DBU$59","v":"00:00:00"},{"$f":"Time!DBV$59","v":"00:00:00"},{"$f":"Time!DBW$59","v":"00:00:00"},{"$f":"Time!DBX$59","v":"00:00:00"},{"$f":"Time!DBY$59","v":"00:00:00"},{"$f":"Time!DBZ$59","v":"00:00:00"},{"$f":"Time!DCA$59","v":"00:00:00"},{"$f":"Time!DCB$59","v":"00:00:00"},{"$f":"Time!DCC$59","v":"00:00:00"},{"$f":"Time!DCD$59","v":"00:00:00"},{"$f":"Time!DCE$59","v":"00:00:00"},{"$f":"Time!DCF$59","v":"00:00:00"},{"$f":"Time!DCG$59","v":"00:00:00"},{"$f":"Time!DCH$59","v":"00:00:00"},{"$f":"Time!DCI$59","v":"00:00:00"},{"$f":"Time!DCJ$59","v":"00:00:00"},{"$f":"Time!DCK$59","v":"00:00:00"},{"$f":"Time!DCL$59","v":"00:00:00"},{"$f":"Time!DCM$59","v":"00:00:00"},{"$f":"Time!DCN$59","v":"00:00:00"},{"$f":"Time!DCO$59","v":"00:00:00"},{"$f":"Time!DCP$59","v":"00:00:00"},{"$f":"Time!DCQ$59","v":"00:00:00"},{"$f":"Time!DCR$59","v":"00:00:00"},{"$f":"Time!DCS$59","v":"00:00:00"},{"$f":"Time!DCT$59","v":"00:00:00"},{"$f":"Time!DCU$59","v":"00:00:00"},{"$f":"Time!DCV$59","v":"00:00:00"},{"$f":"Time!DCW$59","v":"00:00:00"},{"$f":"Time!DCX$59","v":"00:00:00"},{"$f":"Time!DCY$59","v":"00:00:00"},{"$f":"Time!DCZ$59","v":"00:00:00"},{"$f":"Time!DDA$59","v":"00:00:00"},{"$f":"Time!DDB$59","v":"00:00:00"},{"$f":"Time!DDC$59","v":"00:00:00"},{"$f":"Time!DDD$59","v":"00:00:00"},{"$f":"Time!DDE$59","v":"00:00:00"},{"$f":"Time!DDF$59","v":"00:00:00"},{"$f":"Time!DDG$59","v":"00:00:00"},{"$f":"Time!DDH$59","v":"00:00:00"},{"$f":"Time!DDI$59","v":"00:00:00"},{"$f":"Time!DDJ$59","v":"00:00:00"},{"$f":"Time!DDK$59","v":"00:00:00"},{"$f":"Time!DDL$59","v":"00:00:00"},{"$f":"Time!DDM$59","v":"00:00:00"},{"$f":"Time!DDN$59","v":"00:00:00"},{"$f":"Time!DDO$59","v":"00:00:00"},{"$f":"Time!DDP$59","v":"00:00:00"},{"$f":"Time!DDQ$59","v":"00:00:00"},{"$f":"Time!DDR$59","v":"00:00:00"},{"$f":"Time!DDS$59","v":"00:00:00"},{"$f":"Time!DDT$59","v":"00:00:00"},{"$f":"Time!DDU$59","v":"00:00:00"},{"$f":"Time!DDV$59","v":"00:00:00"},{"$f":"Time!DDW$59","v":"00:00:00"},{"$f":"Time!DDX$59","v":"00:00:00"},{"$f":"Time!DDY$59","v":"00:00:00"},{"$f":"Time!DDZ$59","v":"00:00:00"},{"$f":"Time!DEA$59","v":"00:00:00"},{"$f":"Time!DEB$59","v":"00:00:00"},{"$f":"Time!DEC$59","v":"00:00:00"},{"$f":"Time!DED$59","v":"00:00:00"},{"$f":"Time!DEE$59","v":"00:00:00"},{"$f":"Time!DEF$59","v":"00:00:00"},{"$f":"Time!DEG$59","v":"00:00:00"},{"$f":"Time!DEH$59","v":"00:00:00"},{"$f":"Time!DEI$59","v":"00:00:00"},{"$f":"Time!DEJ$59","v":"00:00:00"},{"$f":"Time!DEK$59","v":"00:00:00"},{"$f":"Time!DEL$59","v":"00:00:00"},{"$f":"Time!DEM$59","v":"00:00:00"},{"$f":"Time!DEN$59","v":"00:00:00"},{"$f":"Time!DEO$59","v":"00:00:00"},{"$f":"Time!DEP$59","v":"00:00:00"},{"$f":"Time!DEQ$59","v":"00:00:00"},{"$f":"Time!DER$59","v":"00:00:00"},{"$f":"Time!DES$59","v":"00:00:00"},{"$f":"Time!DET$59","v":"00:00:00"},{"$f":"Time!DEU$59","v":"00:00:00"},{"$f":"Time!DEV$59","v":"00:00:00"},{"$f":"Time!DEW$59","v":"00:00:00"},{"$f":"Time!DEX$59","v":"00:00:00"},{"$f":"Time!DEY$59","v":"00:00:00"},{"$f":"Time!DEZ$59","v":"00:00:00"},{"$f":"Time!DFA$59","v":"00:00:00"},{"$f":"Time!DFB$59","v":"00:00:00"},{"$f":"Time!DFC$59","v":"00:00:00"},{"$f":"Time!DFD$59","v":"00:00:00"},{"$f":"Time!DFE$59","v":"00:00:00"},{"$f":"Time!DFF$59","v":"00:00:00"},{"$f":"Time!DFG$59","v":"00:00:00"},{"$f":"Time!DFH$59","v":"00:00:00"},{"$f":"Time!DFI$59","v":"00:00:00"},{"$f":"Time!DFJ$59","v":"00:00:00"},{"$f":"Time!DFK$59","v":"00:00:00"},{"$f":"Time!DFL$59","v":"00:00:00"},{"$f":"Time!DFM$59","v":"00:00:00"},{"$f":"Time!DFN$59","v":"00:00:00"},{"$f":"Time!DFO$59","v":"00:00:00"},{"$f":"Time!DFP$59","v":"00:00:00"},{"$f":"Time!DFQ$59","v":"00:00:00"},{"$f":"Time!DFR$59","v":"00:00:00"},{"$f":"Time!DFS$59","v":"00:00:00"},{"$f":"Time!DFT$59","v":"00:00:00"},{"$f":"Time!DFU$59","v":"00:00:00"},{"$f":"Time!DFV$59","v":"00:00:00"},{"$f":"Time!DFW$59","v":"00:00:00"},{"$f":"Time!DFX$59","v":"00:00:00"},{"$f":"Time!DFY$59","v":"00:00:00"},{"$f":"Time!DFZ$59","v":"00:00:00"},{"$f":"Time!DGA$59","v":"00:00:00"},{"$f":"Time!DGB$59","v":"00:00:00"},{"$f":"Time!DGC$59","v":"00:00:00"},{"$f":"Time!DGD$59","v":"00:00:00"},{"$f":"Time!DGE$59","v":"00:00:00"},{"$f":"Time!DGF$59","v":"00:00:00"},{"$f":"Time!DGG$59","v":"00:00:00"},{"$f":"Time!DGH$59","v":"00:00:00"},{"$f":"Time!DGI$59","v":"00:00:00"},{"$f":"Time!DGJ$59","v":"00:00:00"},{"$f":"Time!DGK$59","v":"00:00:00"},{"$f":"Time!DGL$59","v":"00:00:00"},{"$f":"Time!DGM$59","v":"00:00:00"},{"$f":"Time!DGN$59","v":"00:00:00"},{"$f":"Time!DGO$59","v":"00:00:00"},{"$f":"Time!DGP$59","v":"00:00:00"},{"$f":"Time!DGQ$59","v":"00:00:00"},{"$f":"Time!DGR$59","v":"00:00:00"},{"$f":"Time!DGS$59","v":"00:00:00"},{"$f":"Time!DGT$59","v":"00:00:00"},{"$f":"Time!DGU$59","v":"00:00:00"},{"$f":"Time!DGV$59","v":"00:00:00"},{"$f":"Time!DGW$59","v":"00:00:00"},{"$f":"Time!DGX$59","v":"00:00:00"},{"$f":"Time!DGY$59","v":"00:00:00"},{"$f":"Time!DGZ$59","v":"00:00:00"},{"$f":"Time!DHA$59","v":"00:00:00"},{"$f":"Time!DHB$59","v":"00:00:00"},{"$f":"Time!DHC$59","v":"00:00:00"},{"$f":"Time!DHD$59","v":"00:00:00"},{"$f":"Time!DHE$59","v":"00:00:00"},{"$f":"Time!DHF$59","v":"00:00:00"},{"$f":"Time!DHG$59","v":"00:00:00"},{"$f":"Time!DHH$59","v":"00:00:00"},{"$f":"Time!DHI$59","v":"00:00:00"},{"$f":"Time!DHJ$59","v":"00:00:00"},{"$f":"Time!DHK$59","v":"00:00:00"},{"$f":"Time!DHL$59","v":"00:00:00"},{"$f":"Time!DHM$59","v":"00:00:00"},{"$f":"Time!DHN$59","v":"00:00:00"},{"$f":"Time!DHO$59","v":"00:00:00"},{"$f":"Time!DHP$59","v":"00:00:00"},{"$f":"Time!DHQ$59","v":"00:00:00"},{"$f":"Time!DHR$59","v":"00:00:00"},{"$f":"Time!DHS$59","v":"00:00:00"},{"$f":"Time!DHT$59","v":"00:00:00"},{"$f":"Time!DHU$59","v":"00:00:00"},{"$f":"Time!DHV$59","v":"00:00:00"},{"$f":"Time!DHW$59","v":"00:00:00"},{"$f":"Time!DHX$59","v":"00:00:00"},{"$f":"Time!DHY$59","v":"00:00:00"},{"$f":"Time!DHZ$59","v":"00:00:00"},{"$f":"Time!DIA$59","v":"00:00:00"},{"$f":"Time!DIB$59","v":"00:00:00"},{"$f":"Time!DIC$59","v":"00:00:00"},{"$f":"Time!DID$59","v":"00:00:00"},{"$f":"Time!DIE$59","v":"00:00:00"},{"$f":"Time!DIF$59","v":"00:00:00"},{"$f":"Time!DIG$59","v":"00:00:00"},{"$f":"Time!DIH$59","v":"00:00:00"},{"$f":"Time!DII$59","v":"00:00:00"},{"$f":"Time!DIJ$59","v":"00:00:00"},{"$f":"Time!DIK$59","v":"00:00:00"},{"$f":"Time!DIL$59","v":"00:00:00"},{"$f":"Time!DIM$59","v":"00:00:00"},{"$f":"Time!DIN$59","v":"00:00:00"},{"$f":"Time!DIO$59","v":"00:00:00"},{"$f":"Time!DIP$59","v":"00:00:00"},{"$f":"Time!DIQ$59","v":"00:00:00"},{"$f":"Time!DIR$59","v":"00:00:00"},{"$f":"Time!DIS$59","v":"00:00:00"},{"$f":"Time!DIT$59","v":"00:00:00"},{"$f":"Time!DIU$59","v":"00:00:00"},{"$f":"Time!DIV$59","v":"00:00:00"},{"$f":"Time!DIW$59","v":"00:00:00"},{"$f":"Time!DIX$59","v":"00:00:00"},{"$f":"Time!DIY$59","v":"00:00:00"},{"$f":"Time!DIZ$59","v":"00:00:00"},{"$f":"Time!DJA$59","v":"00:00:00"},{"$f":"Time!DJB$59","v":"00:00:00"},{"$f":"Time!DJC$59","v":"00:00:00"},{"$f":"Time!DJD$59","v":"00:00:00"},{"$f":"Time!DJE$59","v":"00:00:00"},{"$f":"Time!DJF$59","v":"00:00:00"},{"$f":"Time!DJG$59","v":"00:00:00"},{"$f":"Time!DJH$59","v":"00:00:00"},{"$f":"Time!DJI$59","v":"00:00:00"},{"$f":"Time!DJJ$59","v":"00:00:00"},{"$f":"Time!DJK$59","v":"00:00:00"},{"$f":"Time!DJL$59","v":"00:00:00"},{"$f":"Time!DJM$59","v":"00:00:00"},{"$f":"Time!DJN$59","v":"00:00:00"},{"$f":"Time!DJO$59","v":"00:00:00"},{"$f":"Time!DJP$59","v":"00:00:00"},{"$f":"Time!DJQ$59","v":"00:00:00"},{"$f":"Time!DJR$59","v":"00:00:00"},{"$f":"Time!DJS$59","v":"00:00:00"},{"$f":"Time!DJT$59","v":"00:00:00"},{"$f":"Time!DJU$59","v":"00:00:00"},{"$f":"Time!DJV$59","v":"00:00:00"},{"$f":"Time!DJW$59","v":"00:00:00"},{"$f":"Time!DJX$59","v":"00:00:00"},{"$f":"Time!DJY$59","v":"00:00:00"},{"$f":"Time!DJZ$59","v":"00:00:00"},{"$f":"Time!DKA$59","v":"00:00:00"},{"$f":"Time!DKB$59","v":"00:00:00"},{"$f":"Time!DKC$59","v":"00:00:00"},{"$f":"Time!DKD$59","v":"00:00:00"},{"$f":"Time!DKE$59","v":"00:00:00"},{"$f":"Time!DKF$59","v":"00:00:00"},{"$f":"Time!DKG$59","v":"00:00:00"},{"$f":"Time!DKH$59","v":"00:00:00"},{"$f":"Time!DKI$59","v":"00:00:00"},{"$f":"Time!DKJ$59","v":"00:00:00"},{"$f":"Time!DKK$59","v":"00:00:00"},{"$f":"Time!DKL$59","v":"00:00:00"},{"$f":"Time!DKM$59","v":"00:00:00"},{"$f":"Time!DKN$59","v":"00:00:00"},{"$f":"Time!DKO$59","v":"00:00:00"},{"$f":"Time!DKP$59","v":"00:00:00"},{"$f":"Time!DKQ$59","v":"00:00:00"},{"$f":"Time!DKR$59","v":"00:00:00"},{"$f":"Time!DKS$59","v":"00:00:00"},{"$f":"Time!DKT$59","v":"00:00:00"},{"$f":"Time!DKU$59","v":"00:00:00"},{"$f":"Time!DKV$59","v":"00:00:00"},{"$f":"Time!DKW$59","v":"00:00:00"},{"$f":"Time!DKX$59","v":"00:00:00"},{"$f":"Time!DKY$59","v":"00:00:00"},{"$f":"Time!DKZ$59","v":"00:00:00"},{"$f":"Time!DLA$59","v":"00:00:00"},{"$f":"Time!DLB$59","v":"00:00:00"},{"$f":"Time!DLC$59","v":"00:00:00"},{"$f":"Time!DLD$59","v":"00:00:00"},{"$f":"Time!DLE$59","v":"00:00:00"},{"$f":"Time!DLF$59","v":"00:00:00"},{"$f":"Time!DLG$59","v":"00:00:00"},{"$f":"Time!DLH$59","v":"00:00:00"},{"$f":"Time!DLI$59","v":"00:00:00"},{"$f":"Time!DLJ$59","v":"00:00:00"},{"$f":"Time!DLK$59","v":"00:00:00"},{"$f":"Time!DLL$59","v":"00:00:00"},{"$f":"Time!DLM$59","v":"00:00:00"},{"$f":"Time!DLN$59","v":"00:00:00"},{"$f":"Time!DLO$59","v":"00:00:00"},{"$f":"Time!DLP$59","v":"00:00:00"},{"$f":"Time!DLQ$59","v":"00:00:00"},{"$f":"Time!DLR$59","v":"00:00:00"},{"$f":"Time!DLS$59","v":"00:00:00"},{"$f":"Time!DLT$59","v":"00:00:00"},{"$f":"Time!DLU$59","v":"00:00:00"},{"$f":"Time!DLV$59","v":"00:00:00"},{"$f":"Time!DLW$59","v":"00:00:00"},{"$f":"Time!DLX$59","v":"00:00:00"},{"$f":"Time!DLY$59","v":"00:00:00"},{"$f":"Time!DLZ$59","v":"00:00:00"},{"$f":"Time!DMA$59","v":"00:00:00"},{"$f":"Time!DMB$59","v":"00:00:00"},{"$f":"Time!DMC$59","v":"00:00:00"},{"$f":"Time!DMD$59","v":"00:00:00"},{"$f":"Time!DME$59","v":"00:00:00"},{"$f":"Time!DMF$59","v":"00:00:00"},{"$f":"Time!DMG$59","v":"00:00:00"},{"$f":"Time!DMH$59","v":"00:00:00"},{"$f":"Time!DMI$59","v":"00:00:00"},{"$f":"Time!DMJ$59","v":"00:00:00"},{"$f":"Time!DMK$59","v":"00:00:00"},{"$f":"Time!DML$59","v":"00:00:00"},{"$f":"Time!DMM$59","v":"00:00:00"},{"$f":"Time!DMN$59","v":"00:00:00"},{"$f":"Time!DMO$59","v":"00:00:00"},{"$f":"Time!DMP$59","v":"00:00:00"},{"$f":"Time!DMQ$59","v":"00:00:00"},{"$f":"Time!DMR$59","v":"00:00:00"},{"$f":"Time!DMS$59","v":"00:00:00"},{"$f":"Time!DMT$59","v":"00:00:00"},{"$f":"Time!DMU$59","v":"00:00:00"},{"$f":"Time!DMV$59","v":"00:00:00"},{"$f":"Time!DMW$59","v":"00:00:00"},{"$f":"Time!DMX$59","v":"00:00:00"},{"$f":"Time!DMY$59","v":"00:00:00"},{"$f":"Time!DMZ$59","v":"00:00:00"},{"$f":"Time!DNA$59","v":"00:00:00"},{"$f":"Time!DNB$59","v":"00:00:00"},{"$f":"Time!DNC$59","v":"00:00:00"},{"$f":"Time!DND$59","v":"00:00:00"},{"$f":"Time!DNE$59","v":"00:00:00"},{"$f":"Time!DNF$59","v":"00:00:00"},{"$f":"Time!DNG$59","v":"00:00:00"},{"$f":"Time!DNH$59","v":"00:00:00"},{"$f":"Time!DNI$59","v":"00:00:00"},{"$f":"Time!DNJ$59","v":"00:00:00"},{"$f":"Time!DNK$59","v":"00:00:00"},{"$f":"Time!DNL$59","v":"00:00:00"},{"$f":"Time!DNM$59","v":"00:00:00"},{"$f":"Time!DNN$59","v":"00:00:00"},{"$f":"Time!DNO$59","v":"00:00:00"},{"$f":"Time!DNP$59","v":"00:00:00"},{"$f":"Time!DNQ$59","v":"00:00:00"},{"$f":"Time!DNR$59","v":"00:00:00"},{"$f":"Time!DNS$59","v":"00:00:00"},{"$f":"Time!DNT$59","v":"00:00:00"},{"$f":"Time!DNU$59","v":"00:00:00"},{"$f":"Time!DNV$59","v":"00:00:00"},{"$f":"Time!DNW$59","v":"00:00:00"},{"$f":"Time!DNX$59","v":"00:00:00"},{"$f":"Time!DNY$59","v":"00:00:00"},{"$f":"Time!DNZ$59","v":"00:00:00"},{"$f":"Time!DOA$59","v":"00:00:00"},{"$f":"Time!DOB$59","v":"00:00:00"},{"$f":"Time!DOC$59","v":"00:00:00"},{"$f":"Time!DOD$59","v":"00:00:00"},{"$f":"Time!DOE$59","v":"00:00:00"},{"$f":"Time!DOF$59","v":"00:00:00"},{"$f":"Time!DOG$59","v":"00:00:00"},{"$f":"Time!DOH$59","v":"00:00:00"},{"$f":"Time!DOI$59","v":"00:00:00"},{"$f":"Time!DOJ$59","v":"00:00:00"},{"$f":"Time!DOK$59","v":"00:00:00"},{"$f":"Time!DOL$59","v":"00:00:00"},{"$f":"Time!DOM$59","v":"00:00:00"},{"$f":"Time!DON$59","v":"00:00:00"},{"$f":"Time!DOO$59","v":"00:00:00"},{"$f":"Time!DOP$59","v":"00:00:00"},{"$f":"Time!DOQ$59","v":"00:00:00"},{"$f":"Time!DOR$59","v":"00:00:00"},{"$f":"Time!DOS$59","v":"00:00:00"},{"$f":"Time!DOT$59","v":"00:00:00"},{"$f":"Time!DOU$59","v":"00:00:00"},{"$f":"Time!DOV$59","v":"00:00:00"},{"$f":"Time!DOW$59","v":"00:00:00"},{"$f":"Time!DOX$59","v":"00:00:00"},{"$f":"Time!DOY$59","v":"00:00:00"},{"$f":"Time!DOZ$59","v":"00:00:00"},{"$f":"Time!DPA$59","v":"00:00:00"},{"$f":"Time!DPB$59","v":"00:00:00"},{"$f":"Time!DPC$59","v":"00:00:00"},{"$f":"Time!DPD$59","v":"00:00:00"},{"$f":"Time!DPE$59","v":"00:00:00"},{"$f":"Time!DPF$59","v":"00:00:00"},{"$f":"Time!DPG$59","v":"00:00:00"},{"$f":"Time!DPH$59","v":"00:00:00"},{"$f":"Time!DPI$59","v":"00:00:00"},{"$f":"Time!DPJ$59","v":"00:00:00"},{"$f":"Time!DPK$59","v":"00:00:00"},{"$f":"Time!DPL$59","v":"00:00:00"},{"$f":"Time!DPM$59","v":"00:00:00"},{"$f":"Time!DPN$59","v":"00:00:00"},{"$f":"Time!DPO$59","v":"00:00:00"},{"$f":"Time!DPP$59","v":"00:00:00"},{"$f":"Time!DPQ$59","v":"00:00:00"},{"$f":"Time!DPR$59","v":"00:00:00"},{"$f":"Time!DPS$59","v":"00:00:00"},{"$f":"Time!DPT$59","v":"00:00:00"},{"$f":"Time!DPU$59","v":"00:00:00"},{"$f":"Time!DPV$59","v":"00:00:00"},{"$f":"Time!DPW$59","v":"00:00:00"},{"$f":"Time!DPX$59","v":"00:00:00"},{"$f":"Time!DPY$59","v":"00:00:00"},{"$f":"Time!DPZ$59","v":"00:00:00"},{"$f":"Time!DQA$59","v":"00:00:00"},{"$f":"Time!DQB$59","v":"00:00:00"},{"$f":"Time!DQC$59","v":"00:00:00"},{"$f":"Time!DQD$59","v":"00:00:00"},{"$f":"Time!DQE$59","v":"00:00:00"},{"$f":"Time!DQF$59","v":"00:00:00"},{"$f":"Time!DQG$59","v":"00:00:00"},{"$f":"Time!DQH$59","v":"00:00:00"},{"$f":"Time!DQI$59","v":"00:00:00"},{"$f":"Time!DQJ$59","v":"00:00:00"},{"$f":"Time!DQK$59","v":"00:00:00"},{"$f":"Time!DQL$59","v":"00:00:00"},{"$f":"Time!DQM$59","v":"00:00:00"},{"$f":"Time!DQN$59","v":"00:00:00"},{"$f":"Time!DQO$59","v":"00:00:00"},{"$f":"Time!DQP$59","v":"00:00:00"},{"$f":"Time!DQQ$59","v":"00:00:00"},{"$f":"Time!DQR$59","v":"00:00:00"},{"$f":"Time!DQS$59","v":"00:00:00"},{"$f":"Time!DQT$59","v":"00:00:00"},{"$f":"Time!DQU$59","v":"00:00:00"},{"$f":"Time!DQV$59","v":"00:00:00"},{"$f":"Time!DQW$59","v":"00:00:00"},{"$f":"Time!DQX$59","v":"00:00:00"},{"$f":"Time!DQY$59","v":"00:00:00"},{"$f":"Time!DQZ$59","v":"00:00:00"},{"$f":"Time!DRA$59","v":"00:00:00"},{"$f":"Time!DRB$59","v":"00:00:00"},{"$f":"Time!DRC$59","v":"00:00:00"},{"$f":"Time!DRD$59","v":"00:00:00"},{"$f":"Time!DRE$59","v":"00:00:00"},{"$f":"Time!DRF$59","v":"00:00:00"},{"$f":"Time!DRG$59","v":"00:00:00"},{"$f":"Time!DRH$59","v":"00:00:00"},{"$f":"Time!DRI$59","v":"00:00:00"},{"$f":"Time!DRJ$59","v":"00:00:00"},{"$f":"Time!DRK$59","v":"00:00:00"},{"$f":"Time!DRL$59","v":"00:00:00"},{"$f":"Time!DRM$59","v":"00:00:00"},{"$f":"Time!DRN$59","v":"00:00:00"},{"$f":"Time!DRO$59","v":"00:00:00"},{"$f":"Time!DRP$59","v":"00:00:00"},{"$f":"Time!DRQ$59","v":"00:00:00"},{"$f":"Time!DRR$59","v":"00:00:00"},{"$f":"Time!DRS$59","v":"00:00:00"},{"$f":"Time!DRT$59","v":"00:00:00"},{"$f":"Time!DRU$59","v":"00:00:00"},{"$f":"Time!DRV$59","v":"00:00:00"},{"$f":"Time!DRW$59","v":"00:00:00"},{"$f":"Time!DRX$59","v":"00:00:00"},{"$f":"Time!DRY$59","v":"00:00:00"},{"$f":"Time!DRZ$59","v":"00:00:00"},{"$f":"Time!DSA$59","v":"00:00:00"},{"$f":"Time!DSB$59","v":"00:00:00"},{"$f":"Time!DSC$59","v":"00:00:00"},{"$f":"Time!DSD$59","v":"00:00:00"},{"$f":"Time!DSE$59","v":"00:00:00"},{"$f":"Time!DSF$59","v":"00:00:00"},{"$f":"Time!DSG$59","v":"00:00:00"},{"$f":"Time!DSH$59","v":"00:00:00"},{"$f":"Time!DSI$59","v":"00:00:00"},{"$f":"Time!DSJ$59","v":"00:00:00"},{"$f":"Time!DSK$59","v":"00:00:00"},{"$f":"Time!DSL$59","v":"00:00:00"},{"$f":"Time!DSM$59","v":"00:00:00"},{"$f":"Time!DSN$59","v":"00:00:00"},{"$f":"Time!DSO$59","v":"00:00:00"},{"$f":"Time!DSP$59","v":"00:00:00"},{"$f":"Time!DSQ$59","v":"00:00:00"},{"$f":"Time!DSR$59","v":"00:00:00"},{"$f":"Time!DSS$59","v":"00:00:00"},{"$f":"Time!DST$59","v":"00:00:00"},{"$f":"Time!DSU$59","v":"00:00:00"},{"$f":"Time!DSV$59","v":"00:00:00"},{"$f":"Time!DSW$59","v":"00:00:00"},{"$f":"Time!DSX$59","v":"00:00:00"},{"$f":"Time!DSY$59","v":"00:00:00"},{"$f":"Time!DSZ$59","v":"00:00:00"},{"$f":"Time!DTA$59","v":"00:00:00"},{"$f":"Time!DTB$59","v":"00:00:00"},{"$f":"Time!DTC$59","v":"00:00:00"},{"$f":"Time!DTD$59","v":"00:00:00"},{"$f":"Time!DTE$59","v":"00:00:00"},{"$f":"Time!DTF$59","v":"00:00:00"},{"$f":"Time!DTG$59","v":"00:00:00"},{"$f":"Time!DTH$59","v":"00:00:00"},{"$f":"Time!DTI$59","v":"00:00:00"},{"$f":"Time!DTJ$59","v":"00:00:00"},{"$f":"Time!DTK$59","v":"00:00:00"},{"$f":"Time!DTL$59","v":"00:00:00"},{"$f":"Time!DTM$59","v":"00:00:00"},{"$f":"Time!DTN$59","v":"00:00:00"},{"$f":"Time!DTO$59","v":"00:00:00"},{"$f":"Time!DTP$59","v":"00:00:00"},{"$f":"Time!DTQ$59","v":"00:00:00"},{"$f":"Time!DTR$59","v":"00:00:00"},{"$f":"Time!DTS$59","v":"00:00:00"},{"$f":"Time!DTT$59","v":"00:00:00"},{"$f":"Time!DTU$59","v":"00:00:00"},{"$f":"Time!DTV$59","v":"00:00:00"},{"$f":"Time!DTW$59","v":"00:00:00"},{"$f":"Time!DTX$59","v":"00:00:00"},{"$f":"Time!DTY$59","v":"00:00:00"},{"$f":"Time!DTZ$59","v":"00:00:00"},{"$f":"Time!DUA$59","v":"00:00:00"},{"$f":"Time!DUB$59","v":"00:00:00"},{"$f":"Time!DUC$59","v":"00:00:00"},{"$f":"Time!DUD$59","v":"00:00:00"},{"$f":"Time!DUE$59","v":"00:00:00"},{"$f":"Time!DUF$59","v":"00:00:00"},{"$f":"Time!DUG$59","v":"00:00:00"},{"$f":"Time!DUH$59","v":"00:00:00"},{"$f":"Time!DUI$59","v":"00:00:00"},{"$f":"Time!DUJ$59","v":"00:00:00"},{"$f":"Time!DUK$59","v":"00:00:00"},{"$f":"Time!DUL$59","v":"00:00:00"},{"$f":"Time!DUM$59","v":"00:00:00"},{"$f":"Time!DUN$59","v":"00:00:00"},{"$f":"Time!DUO$59","v":"00:00:00"},{"$f":"Time!DUP$59","v":"00:00:00"},{"$f":"Time!DUQ$59","v":"00:00:00"},{"$f":"Time!DUR$59","v":"00:00:00"},{"$f":"Time!DUS$59","v":"00:00:00"},{"$f":"Time!DUT$59","v":"00:00:00"},{"$f":"Time!DUU$59","v":"00:00:00"},{"$f":"Time!DUV$59","v":"00:00:00"},{"$f":"Time!DUW$59","v":"00:00:00"},{"$f":"Time!DUX$59","v":"00:00:00"},{"$f":"Time!DUY$59","v":"00:00:00"},{"$f":"Time!DUZ$59","v":"00:00:00"},{"$f":"Time!DVA$59","v":"00:00:00"},{"$f":"Time!DVB$59","v":"00:00:00"},{"$f":"Time!DVC$59","v":"00:00:00"},{"$f":"Time!DVD$59","v":"00:00:00"},{"$f":"Time!DVE$59","v":"00:00:00"},{"$f":"Time!DVF$59","v":"00:00:00"},{"$f":"Time!DVG$59","v":"00:00:00"},{"$f":"Time!DVH$59","v":"00:00:00"},{"$f":"Time!DVI$59","v":"00:00:00"},{"$f":"Time!DVJ$59","v":"00:00:00"},{"$f":"Time!DVK$59","v":"00:00:00"},{"$f":"Time!DVL$59","v":"00:00:00"},{"$f":"Time!DVM$59","v":"00:00:00"},{"$f":"Time!DVN$59","v":"00:00:00"},{"$f":"Time!DVO$59","v":"00:00:00"},{"$f":"Time!DVP$59","v":"00:00:00"},{"$f":"Time!DVQ$59","v":"00:00:00"},{"$f":"Time!DVR$59","v":"00:00:00"},{"$f":"Time!DVS$59","v":"00:00:00"},{"$f":"Time!DVT$59","v":"00:00:00"},{"$f":"Time!DVU$59","v":"00:00:00"},{"$f":"Time!DVV$59","v":"00:00:00"},{"$f":"Time!DVW$59","v":"00:00:00"},{"$f":"Time!DVX$59","v":"00:00:00"},{"$f":"Time!DVY$59","v":"00:00:00"},{"$f":"Time!DVZ$59","v":"00:00:00"},{"$f":"Time!DWA$59","v":"00:00:00"},{"$f":"Time!DWB$59","v":"00:00:00"},{"$f":"Time!DWC$59","v":"00:00:00"},{"$f":"Time!DWD$59","v":"00:00:00"},{"$f":"Time!DWE$59","v":"00:00:00"},{"$f":"Time!DWF$59","v":"00:00:00"},{"$f":"Time!DWG$59","v":"00:00:00"},{"$f":"Time!DWH$59","v":"00:00:00"},{"$f":"Time!DWI$59","v":"00:00:00"},{"$f":"Time!DWJ$59","v":"00:00:00"},{"$f":"Time!DWK$59","v":"00:00:00"},{"$f":"Time!DWL$59","v":"00:00:00"},{"$f":"Time!DWM$59","v":"00:00:00"},{"$f":"Time!DWN$59","v":"00:00:00"},{"$f":"Time!DWO$59","v":"00:00:00"},{"$f":"Time!DWP$59","v":"00:00:00"},{"$f":"Time!DWQ$59","v":"00:00:00"},{"$f":"Time!DWR$59","v":"00:00:00"},{"$f":"Time!DWS$59","v":"00:00:00"},{"$f":"Time!DWT$59","v":"00:00:00"},{"$f":"Time!DWU$59","v":"00:00:00"},{"$f":"Time!DWV$59","v":"00:00:00"},{"$f":"Time!DWW$59","v":"00:00:00"},{"$f":"Time!DWX$59","v":"00:00:00"},{"$f":"Time!DWY$59","v":"00:00:00"},{"$f":"Time!DWZ$59","v":"00:00:00"},{"$f":"Time!DXA$59","v":"00:00:00"},{"$f":"Time!DXB$59","v":"00:00:00"},{"$f":"Time!DXC$59","v":"00:00:00"},{"$f":"Time!DXD$59","v":"00:00:00"},{"$f":"Time!DXE$59","v":"00:00:00"},{"$f":"Time!DXF$59","v":"00:00:00"},{"$f":"Time!DXG$59","v":"00:00:00"},{"$f":"Time!DXH$59","v":"00:00:00"},{"$f":"Time!DXI$59","v":"00:00:00"},{"$f":"Time!DXJ$59","v":"00:00:00"},{"$f":"Time!DXK$59","v":"00:00:00"},{"$f":"Time!DXL$59","v":"00:00:00"},{"$f":"Time!DXM$59","v":"00:00:00"},{"$f":"Time!DXN$59","v":"00:00:00"},{"$f":"Time!DXO$59","v":"00:00:00"},{"$f":"Time!DXP$59","v":"00:00:00"},{"$f":"Time!DXQ$59","v":"00:00:00"},{"$f":"Time!DXR$59","v":"00:00:00"},{"$f":"Time!DXS$59","v":"00:00:00"},{"$f":"Time!DXT$59","v":"00:00:00"},{"$f":"Time!DXU$59","v":"00:00:00"},{"$f":"Time!DXV$59","v":"00:00:00"},{"$f":"Time!DXW$59","v":"00:00:00"},{"$f":"Time!DXX$59","v":"00:00:00"},{"$f":"Time!DXY$59","v":"00:00:00"},{"$f":"Time!DXZ$59","v":"00:00:00"},{"$f":"Time!DYA$59","v":"00:00:00"},{"$f":"Time!DYB$59","v":"00:00:00"},{"$f":"Time!DYC$59","v":"00:00:00"},{"$f":"Time!DYD$59","v":"00:00:00"},{"$f":"Time!DYE$59","v":"00:00:00"},{"$f":"Time!DYF$59","v":"00:00:00"},{"$f":"Time!DYG$59","v":"00:00:00"},{"$f":"Time!DYH$59","v":"00:00:00"},{"$f":"Time!DYI$59","v":"00:00:00"},{"$f":"Time!DYJ$59","v":"00:00:00"},{"$f":"Time!DYK$59","v":"00:00:00"},{"$f":"Time!DYL$59","v":"00:00:00"},{"$f":"Time!DYM$59","v":"00:00:00"},{"$f":"Time!DYN$59","v":"00:00:00"},{"$f":"Time!DYO$59","v":"00:00:00"},{"$f":"Time!DYP$59","v":"00:00:00"},{"$f":"Time!DYQ$59","v":"00:00:00"},{"$f":"Time!DYR$59","v":"00:00:00"},{"$f":"Time!DYS$59","v":"00:00:00"},{"$f":"Time!DYT$59","v":"00:00:00"},{"$f":"Time!DYU$59","v":"00:00:00"},{"$f":"Time!DYV$59","v":"00:00:00"},{"$f":"Time!DYW$59","v":"00:00:00"},{"$f":"Time!DYX$59","v":"00:00:00"},{"$f":"Time!DYY$59","v":"00:00:00"},{"$f":"Time!DYZ$59","v":"00:00:00"},{"$f":"Time!DZA$59","v":"00:00:00"},{"$f":"Time!DZB$59","v":"00:00:00"},{"$f":"Time!DZC$59","v":"00:00:00"},{"$f":"Time!DZD$59","v":"00:00:00"},{"$f":"Time!DZE$59","v":"00:00:00"},{"$f":"Time!DZF$59","v":"00:00:00"},{"$f":"Time!DZG$59","v":"00:00:00"},{"$f":"Time!DZH$59","v":"00:00:00"},{"$f":"Time!DZI$59","v":"00:00:00"},{"$f":"Time!DZJ$59","v":"00:00:00"},{"$f":"Time!DZK$59","v":"00:00:00"},{"$f":"Time!DZL$59","v":"00:00:00"},{"$f":"Time!DZM$59","v":"00:00:00"},{"$f":"Time!DZN$59","v":"00:00:00"},{"$f":"Time!DZO$59","v":"00:00:00"},{"$f":"Time!DZP$59","v":"00:00:00"},{"$f":"Time!DZQ$59","v":"00:00:00"},{"$f":"Time!DZR$59","v":"00:00:00"},{"$f":"Time!DZS$59","v":"00:00:00"},{"$f":"Time!DZT$59","v":"00:00:00"},{"$f":"Time!DZU$59","v":"00:00:00"},{"$f":"Time!DZV$59","v":"00:00:00"},{"$f":"Time!DZW$59","v":"00:00:00"},{"$f":"Time!DZX$59","v":"00:00:00"},{"$f":"Time!DZY$59","v":"00:00:00"},{"$f":"Time!DZZ$59","v":"00:00:00"},{"$f":"Time!EAA$59","v":"00:00:00"},{"$f":"Time!EAB$59","v":"00:00:00"},{"$f":"Time!EAC$59","v":"00:00:00"},{"$f":"Time!EAD$59","v":"00:00:00"},{"$f":"Time!EAE$59","v":"00:00:00"},{"$f":"Time!EAF$59","v":"00:00:00"},{"$f":"Time!EAG$59","v":"00:00:00"},{"$f":"Time!EAH$59","v":"00:00:00"},{"$f":"Time!EAI$59","v":"00:00:00"},{"$f":"Time!EAJ$59","v":"00:00:00"},{"$f":"Time!EAK$59","v":"00:00:00"},{"$f":"Time!EAL$59","v":"00:00:00"},{"$f":"Time!EAM$59","v":"00:00:00"},{"$f":"Time!EAN$59","v":"00:00:00"},{"$f":"Time!EAO$59","v":"00:00:00"},{"$f":"Time!EAP$59","v":"00:00:00"},{"$f":"Time!EAQ$59","v":"00:00:00"},{"$f":"Time!EAR$59","v":"00:00:00"},{"$f":"Time!EAS$59","v":"00:00:00"},{"$f":"Time!EAT$59","v":"00:00:00"},{"$f":"Time!EAU$59","v":"00:00:00"},{"$f":"Time!EAV$59","v":"00:00:00"},{"$f":"Time!EAW$59","v":"00:00:00"},{"$f":"Time!EAX$59","v":"00:00:00"},{"$f":"Time!EAY$59","v":"00:00:00"},{"$f":"Time!EAZ$59","v":"00:00:00"},{"$f":"Time!EBA$59","v":"00:00:00"},{"$f":"Time!EBB$59","v":"00:00:00"},{"$f":"Time!EBC$59","v":"00:00:00"},{"$f":"Time!EBD$59","v":"00:00:00"},{"$f":"Time!EBE$59","v":"00:00:00"},{"$f":"Time!EBF$59","v":"00:00:00"},{"$f":"Time!EBG$59","v":"00:00:00"},{"$f":"Time!EBH$59","v":"00:00:00"},{"$f":"Time!EBI$59","v":"00:00:00"},{"$f":"Time!EBJ$59","v":"00:00:00"},{"$f":"Time!EBK$59","v":"00:00:00"},{"$f":"Time!EBL$59","v":"00:00:00"},{"$f":"Time!EBM$59","v":"00:00:00"},{"$f":"Time!EBN$59","v":"00:00:00"},{"$f":"Time!EBO$59","v":"00:00:00"},{"$f":"Time!EBP$59","v":"00:00:00"},{"$f":"Time!EBQ$59","v":"00:00:00"},{"$f":"Time!EBR$59","v":"00:00:00"},{"$f":"Time!EBS$59","v":"00:00:00"},{"$f":"Time!EBT$59","v":"00:00:00"},{"$f":"Time!EBU$59","v":"00:00:00"},{"$f":"Time!EBV$59","v":"00:00:00"},{"$f":"Time!EBW$59","v":"00:00:00"},{"$f":"Time!EBX$59","v":"00:00:00"},{"$f":"Time!EBY$59","v":"00:00:00"},{"$f":"Time!EBZ$59","v":"00:00:00"},{"$f":"Time!ECA$59","v":"00:00:00"},{"$f":"Time!ECB$59","v":"00:00:00"},{"$f":"Time!ECC$59","v":"00:00:00"},{"$f":"Time!ECD$59","v":"00:00:00"},{"$f":"Time!ECE$59","v":"00:00:00"},{"$f":"Time!ECF$59","v":"00:00:00"},{"$f":"Time!ECG$59","v":"00:00:00"},{"$f":"Time!ECH$59","v":"00:00:00"},{"$f":"Time!ECI$59","v":"00:00:00"},{"$f":"Time!ECJ$59","v":"00:00:00"},{"$f":"Time!ECK$59","v":"00:00:00"},{"$f":"Time!ECL$59","v":"00:00:00"},{"$f":"Time!ECM$59","v":"00:00:00"},{"$f":"Time!ECN$59","v":"00:00:00"},{"$f":"Time!ECO$59","v":"00:00:00"},{"$f":"Time!ECP$59","v":"00:00:00"},{"$f":"Time!ECQ$59","v":"00:00:00"},{"$f":"Time!ECR$59","v":"00:00:00"},{"$f":"Time!ECS$59","v":"00:00:00"},{"$f":"Time!ECT$59","v":"00:00:00"},{"$f":"Time!ECU$59","v":"00:00:00"},{"$f":"Time!ECV$59","v":"00:00:00"},{"$f":"Time!ECW$59","v":"00:00:00"},{"$f":"Time!ECX$59","v":"00:00:00"},{"$f":"Time!ECY$59","v":"00:00:00"},{"$f":"Time!ECZ$59","v":"00:00:00"},{"$f":"Time!EDA$59","v":"00:00:00"},{"$f":"Time!EDB$59","v":"00:00:00"},{"$f":"Time!EDC$59","v":"00:00:00"},{"$f":"Time!EDD$59","v":"00:00:00"},{"$f":"Time!EDE$59","v":"00:00:00"},{"$f":"Time!EDF$59","v":"00:00:00"},{"$f":"Time!EDG$59","v":"00:00:00"},{"$f":"Time!EDH$59","v":"00:00:00"},{"$f":"Time!EDI$59","v":"00:00:00"},{"$f":"Time!EDJ$59","v":"00:00:00"},{"$f":"Time!EDK$59","v":"00:00:00"},{"$f":"Time!EDL$59","v":"00:00:00"},{"$f":"Time!EDM$59","v":"00:00:00"},{"$f":"Time!EDN$59","v":"00:00:00"},{"$f":"Time!EDO$59","v":"00:00:00"},{"$f":"Time!EDP$59","v":"00:00:00"},{"$f":"Time!EDQ$59","v":"00:00:00"},{"$f":"Time!EDR$59","v":"00:00:00"},{"$f":"Time!EDS$59","v":"00:00:00"},{"$f":"Time!EDT$59","v":"00:00:00"},{"$f":"Time!EDU$59","v":"00:00:00"},{"$f":"Time!EDV$59","v":"00:00:00"},{"$f":"Time!EDW$59","v":"00:00:00"},{"$f":"Time!EDX$59","v":"00:00:00"},{"$f":"Time!EDY$59","v":"00:00:00"},{"$f":"Time!EDZ$59","v":"00:00:00"},{"$f":"Time!EEA$59","v":"00:00:00"},{"$f":"Time!EEB$59","v":"00:00:00"},{"$f":"Time!EEC$59","v":"00:00:00"},{"$f":"Time!EED$59","v":"00:00:00"},{"$f":"Time!EEE$59","v":"00:00:00"},{"$f":"Time!EEF$59","v":"00:00:00"},{"$f":"Time!EEG$59","v":"00:00:00"},{"$f":"Time!EEH$59","v":"00:00:00"},{"$f":"Time!EEI$59","v":"00:00:00"},{"$f":"Time!EEJ$59","v":"00:00:00"},{"$f":"Time!EEK$59","v":"00:00:00"},{"$f":"Time!EEL$59","v":"00:00:00"},{"$f":"Time!EEM$59","v":"00:00:00"},{"$f":"Time!EEN$59","v":"00:00:00"},{"$f":"Time!EEO$59","v":"00:00:00"},{"$f":"Time!EEP$59","v":"00:00:00"},{"$f":"Time!EEQ$59","v":"00:00:00"},{"$f":"Time!EER$59","v":"00:00:00"},{"$f":"Time!EES$59","v":"00:00:00"},{"$f":"Time!EET$59","v":"00:00:00"},{"$f":"Time!EEU$59","v":"00:00:00"},{"$f":"Time!EEV$59","v":"00:00:00"},{"$f":"Time!EEW$59","v":"00:00:00"},{"$f":"Time!EEX$59","v":"00:00:00"},{"$f":"Time!EEY$59","v":"00:00:00"},{"$f":"Time!EEZ$59","v":"00:00:00"},{"$f":"Time!EFA$59","v":"00:00:00"},{"$f":"Time!EFB$59","v":"00:00:00"},{"$f":"Time!EFC$59","v":"00:00:00"},{"$f":"Time!EFD$59","v":"00:00:00"},{"$f":"Time!EFE$59","v":"00:00:00"},{"$f":"Time!EFF$59","v":"00:00:00"},{"$f":"Time!EFG$59","v":"00:00:00"},{"$f":"Time!EFH$59","v":"00:00:00"},{"$f":"Time!EFI$59","v":"00:00:00"},{"$f":"Time!EFJ$59","v":"00:00:00"},{"$f":"Time!EFK$59","v":"00:00:00"},{"$f":"Time!EFL$59","v":"00:00:00"},{"$f":"Time!EFM$59","v":"00:00:00"},{"$f":"Time!EFN$59","v":"00:00:00"},{"$f":"Time!EFO$59","v":"00:00:00"},{"$f":"Time!EFP$59","v":"00:00:00"},{"$f":"Time!EFQ$59","v":"00:00:00"},{"$f":"Time!EFR$59","v":"00:00:00"},{"$f":"Time!EFS$59","v":"00:00:00"},{"$f":"Time!EFT$59","v":"00:00:00"},{"$f":"Time!EFU$59","v":"00:00:00"},{"$f":"Time!EFV$59","v":"00:00:00"},{"$f":"Time!EFW$59","v":"00:00:00"},{"$f":"Time!EFX$59","v":"00:00:00"},{"$f":"Time!EFY$59","v":"00:00:00"},{"$f":"Time!EFZ$59","v":"00:00:00"},{"$f":"Time!EGA$59","v":"00:00:00"},{"$f":"Time!EGB$59","v":"00:00:00"},{"$f":"Time!EGC$59","v":"00:00:00"},{"$f":"Time!EGD$59","v":"00:00:00"},{"$f":"Time!EGE$59","v":"00:00:00"},{"$f":"Time!EGF$59","v":"00:00:00"},{"$f":"Time!EGG$59","v":"00:00:00"},{"$f":"Time!EGH$59","v":"00:00:00"},{"$f":"Time!EGI$59","v":"00:00:00"},{"$f":"Time!EGJ$59","v":"00:00:00"},{"$f":"Time!EGK$59","v":"00:00:00"},{"$f":"Time!EGL$59","v":"00:00:00"},{"$f":"Time!EGM$59","v":"00:00:00"},{"$f":"Time!EGN$59","v":"00:00:00"},{"$f":"Time!EGO$59","v":"00:00:00"},{"$f":"Time!EGP$59","v":"00:00:00"},{"$f":"Time!EGQ$59","v":"00:00:00"},{"$f":"Time!EGR$59","v":"00:00:00"},{"$f":"Time!EGS$59","v":"00:00:00"},{"$f":"Time!EGT$59","v":"00:00:00"},{"$f":"Time!EGU$59","v":"00:00:00"},{"$f":"Time!EGV$59","v":"00:00:00"},{"$f":"Time!EGW$59","v":"00:00:00"},{"$f":"Time!EGX$59","v":"00:00:00"},{"$f":"Time!EGY$59","v":"00:00:00"},{"$f":"Time!EGZ$59","v":"00:00:00"},{"$f":"Time!EHA$59","v":"00:00:00"},{"$f":"Time!EHB$59","v":"00:00:00"},{"$f":"Time!EHC$59","v":"00:00:00"},{"$f":"Time!EHD$59","v":"00:00:00"},{"$f":"Time!EHE$59","v":"00:00:00"},{"$f":"Time!EHF$59","v":"00:00:00"},{"$f":"Time!EHG$59","v":"00:00:00"},{"$f":"Time!EHH$59","v":"00:00:00"},{"$f":"Time!EHI$59","v":"00:00:00"},{"$f":"Time!EHJ$59","v":"00:00:00"},{"$f":"Time!EHK$59","v":"00:00:00"},{"$f":"Time!EHL$59","v":"00:00:00"},{"$f":"Time!EHM$59","v":"00:00:00"},{"$f":"Time!EHN$59","v":"00:00:00"},{"$f":"Time!EHO$59","v":"00:00:00"},{"$f":"Time!EHP$59","v":"00:00:00"},{"$f":"Time!EHQ$59","v":"00:00:00"},{"$f":"Time!EHR$59","v":"00:00:00"},{"$f":"Time!EHS$59","v":"00:00:00"},{"$f":"Time!EHT$59","v":"00:00:00"},{"$f":"Time!EHU$59","v":"00:00:00"},{"$f":"Time!EHV$59","v":"00:00:00"},{"$f":"Time!EHW$59","v":"00:00:00"},{"$f":"Time!EHX$59","v":"00:00:00"},{"$f":"Time!EHY$59","v":"00:00:00"},{"$f":"Time!EHZ$59","v":"00:00:00"},{"$f":"Time!EIA$59","v":"00:00:00"},{"$f":"Time!EIB$59","v":"00:00:00"},{"$f":"Time!EIC$59","v":"00:00:00"},{"$f":"Time!EID$59","v":"00:00:00"},{"$f":"Time!EIE$59","v":"00:00:00"},{"$f":"Time!EIF$59","v":"00:00:00"},{"$f":"Time!EIG$59","v":"00:00:00"},{"$f":"Time!EIH$59","v":"00:00:00"},{"$f":"Time!EII$59","v":"00:00:00"},{"$f":"Time!EIJ$59","v":"00:00:00"},{"$f":"Time!EIK$59","v":"00:00:00"},{"$f":"Time!EIL$59","v":"00:00:00"},{"$f":"Time!EIM$59","v":"00:00:00"},{"$f":"Time!EIN$59","v":"00:00:00"},{"$f":"Time!EIO$59","v":"00:00:00"},{"$f":"Time!EIP$59","v":"00:00:00"},{"$f":"Time!EIQ$59","v":"00:00:00"},{"$f":"Time!EIR$59","v":"00:00:00"},{"$f":"Time!EIS$59","v":"00:00:00"},{"$f":"Time!EIT$59","v":"00:00:00"},{"$f":"Time!EIU$59","v":"00:00:00"},{"$f":"Time!EIV$59","v":"00:00:00"},{"$f":"Time!EIW$59","v":"00:00:00"},{"$f":"Time!EIX$59","v":"00:00:00"},{"$f":"Time!EIY$59","v":"00:00:00"},{"$f":"Time!EIZ$59","v":"00:00:00"},{"$f":"Time!EJA$59","v":"00:00:00"},{"$f":"Time!EJB$59","v":"00:00:00"},{"$f":"Time!EJC$59","v":"00:00:00"},{"$f":"Time!EJD$59","v":"00:00:00"},{"$f":"Time!EJE$59","v":"00:00:00"},{"$f":"Time!EJF$59","v":"00:00:00"},{"$f":"Time!EJG$59","v":"00:00:00"},{"$f":"Time!EJH$59","v":"00:00:00"},{"$f":"Time!EJI$59","v":"00:00:00"},{"$f":"Time!EJJ$59","v":"00:00:00"},{"$f":"Time!EJK$59","v":"00:00:00"},{"$f":"Time!EJL$59","v":"00:00:00"},{"$f":"Time!EJM$59","v":"00:00:00"},{"$f":"Time!EJN$59","v":"00:00:00"},{"$f":"Time!EJO$59","v":"00:00:00"},{"$f":"Time!EJP$59","v":"00:00:00"},{"$f":"Time!EJQ$59","v":"00:00:00"},{"$f":"Time!EJR$59","v":"00:00:00"},{"$f":"Time!EJS$59","v":"00:00:00"},{"$f":"Time!EJT$59","v":"00:00:00"},{"$f":"Time!EJU$59","v":"00:00:00"},{"$f":"Time!EJV$59","v":"00:00:00"},{"$f":"Time!EJW$59","v":"00:00:00"},{"$f":"Time!EJX$59","v":"00:00:00"},{"$f":"Time!EJY$59","v":"00:00:00"},{"$f":"Time!EJZ$59","v":"00:00:00"},{"$f":"Time!EKA$59","v":"00:00:00"},{"$f":"Time!EKB$59","v":"00:00:00"},{"$f":"Time!EKC$59","v":"00:00:00"},{"$f":"Time!EKD$59","v":"00:00:00"},{"$f":"Time!EKE$59","v":"00:00:00"},{"$f":"Time!EKF$59","v":"00:00:00"},{"$f":"Time!EKG$59","v":"00:00:00"},{"$f":"Time!EKH$59","v":"00:00:00"},{"$f":"Time!EKI$59","v":"00:00:00"},{"$f":"Time!EKJ$59","v":"00:00:00"},{"$f":"Time!EKK$59","v":"00:00:00"},{"$f":"Time!EKL$59","v":"00:00:00"},{"$f":"Time!EKM$59","v":"00:00:00"},{"$f":"Time!EKN$59","v":"00:00:00"},{"$f":"Time!EKO$59","v":"00:00:00"},{"$f":"Time!EKP$59","v":"00:00:00"},{"$f":"Time!EKQ$59","v":"00:00:00"},{"$f":"Time!EKR$59","v":"00:00:00"},{"$f":"Time!EKS$59","v":"00:00:00"},{"$f":"Time!EKT$59","v":"00:00:00"},{"$f":"Time!EKU$59","v":"00:00:00"},{"$f":"Time!EKV$59","v":"00:00:00"},{"$f":"Time!EKW$59","v":"00:00:00"},{"$f":"Time!EKX$59","v":"00:00:00"},{"$f":"Time!EKY$59","v":"00:00:00"},{"$f":"Time!EKZ$59","v":"00:00:00"},{"$f":"Time!ELA$59","v":"00:00:00"},{"$f":"Time!ELB$59","v":"00:00:00"},{"$f":"Time!ELC$59","v":"00:00:00"},{"$f":"Time!ELD$59","v":"00:00:00"},{"$f":"Time!ELE$59","v":"00:00:00"},{"$f":"Time!ELF$59","v":"00:00:00"},{"$f":"Time!ELG$59","v":"00:00:00"},{"$f":"Time!ELH$59","v":"00:00:00"},{"$f":"Time!ELI$59","v":"00:00:00"},{"$f":"Time!ELJ$59","v":"00:00:00"},{"$f":"Time!ELK$59","v":"00:00:00"},{"$f":"Time!ELL$59","v":"00:00:00"},{"$f":"Time!ELM$59","v":"00:00:00"},{"$f":"Time!ELN$59","v":"00:00:00"},{"$f":"Time!ELO$59","v":"00:00:00"},{"$f":"Time!ELP$59","v":"00:00:00"},{"$f":"Time!ELQ$59","v":"00:00:00"},{"$f":"Time!ELR$59","v":"00:00:00"},{"$f":"Time!ELS$59","v":"00:00:00"},{"$f":"Time!ELT$59","v":"00:00:00"},{"$f":"Time!ELU$59","v":"00:00:00"},{"$f":"Time!ELV$59","v":"00:00:00"},{"$f":"Time!ELW$59","v":"00:00:00"},{"$f":"Time!ELX$59","v":"00:00:00"},{"$f":"Time!ELY$59","v":"00:00:00"},{"$f":"Time!ELZ$59","v":"00:00:00"},{"$f":"Time!EMA$59","v":"00:00:00"},{"$f":"Time!EMB$59","v":"00:00:00"},{"$f":"Time!EMC$59","v":"00:00:00"},{"$f":"Time!EMD$59","v":"00:00:00"},{"$f":"Time!EME$59","v":"00:00:00"},{"$f":"Time!EMF$59","v":"00:00:00"},{"$f":"Time!EMG$59","v":"00:00:00"},{"$f":"Time!EMH$59","v":"00:00:00"},{"$f":"Time!EMI$59","v":"00:00:00"},{"$f":"Time!EMJ$59","v":"00:00:00"},{"$f":"Time!EMK$59","v":"00:00:00"},{"$f":"Time!EML$59","v":"00:00:00"},{"$f":"Time!EMM$59","v":"00:00:00"},{"$f":"Time!EMN$59","v":"00:00:00"},{"$f":"Time!EMO$59","v":"00:00:00"},{"$f":"Time!EMP$59","v":"00:00:00"},{"$f":"Time!EMQ$59","v":"00:00:00"},{"$f":"Time!EMR$59","v":"00:00:00"},{"$f":"Time!EMS$59","v":"00:00:00"},{"$f":"Time!EMT$59","v":"00:00:00"},{"$f":"Time!EMU$59","v":"00:00:00"},{"$f":"Time!EMV$59","v":"00:00:00"},{"$f":"Time!EMW$59","v":"00:00:00"},{"$f":"Time!EMX$59","v":"00:00:00"},{"$f":"Time!EMY$59","v":"00:00:00"},{"$f":"Time!EMZ$59","v":"00:00:00"},{"$f":"Time!ENA$59","v":"00:00:00"},{"$f":"Time!ENB$59","v":"00:00:00"},{"$f":"Time!ENC$59","v":"00:00:00"},{"$f":"Time!END$59","v":"00:00:00"},{"$f":"Time!ENE$59","v":"00:00:00"},{"$f":"Time!ENF$59","v":"00:00:00"},{"$f":"Time!ENG$59","v":"00:00:00"},{"$f":"Time!ENH$59","v":"00:00:00"},{"$f":"Time!ENI$59","v":"00:00:00"},{"$f":"Time!ENJ$59","v":"00:00:00"},{"$f":"Time!ENK$59","v":"00:00:00"},{"$f":"Time!ENL$59","v":"00:00:00"},{"$f":"Time!ENM$59","v":"00:00:00"},{"$f":"Time!ENN$59","v":"00:00:00"},{"$f":"Time!ENO$59","v":"00:00:00"},{"$f":"Time!ENP$59","v":"00:00:00"},{"$f":"Time!ENQ$59","v":"00:00:00"},{"$f":"Time!ENR$59","v":"00:00:00"},{"$f":"Time!ENS$59","v":"00:00:00"},{"$f":"Time!ENT$59","v":"00:00:00"},{"$f":"Time!ENU$59","v":"00:00:00"},{"$f":"Time!ENV$59","v":"00:00:00"},{"$f":"Time!ENW$59","v":"00:00:00"},{"$f":"Time!ENX$59","v":"00:00:00"},{"$f":"Time!ENY$59","v":"00:00:00"},{"$f":"Time!ENZ$59","v":"00:00:00"},{"$f":"Time!EOA$59","v":"00:00:00"},{"$f":"Time!EOB$59","v":"00:00:00"},{"$f":"Time!EOC$59","v":"00:00:00"},{"$f":"Time!EOD$59","v":"00:00:00"},{"$f":"Time!EOE$59","v":"00:00:00"},{"$f":"Time!EOF$59","v":"00:00:00"},{"$f":"Time!EOG$59","v":"00:00:00"},{"$f":"Time!EOH$59","v":"00:00:00"},{"$f":"Time!EOI$59","v":"00:00:00"},{"$f":"Time!EOJ$59","v":"00:00:00"},{"$f":"Time!EOK$59","v":"00:00:00"},{"$f":"Time!EOL$59","v":"00:00:00"},{"$f":"Time!EOM$59","v":"00:00:00"},{"$f":"Time!EON$59","v":"00:00:00"},{"$f":"Time!EOO$59","v":"00:00:00"},{"$f":"Time!EOP$59","v":"00:00:00"},{"$f":"Time!EOQ$59","v":"00:00:00"},{"$f":"Time!EOR$59","v":"00:00:00"},{"$f":"Time!EOS$59","v":"00:00:00"},{"$f":"Time!EOT$59","v":"00:00:00"},{"$f":"Time!EOU$59","v":"00:00:00"},{"$f":"Time!EOV$59","v":"00:00:00"},{"$f":"Time!EOW$59","v":"00:00:00"},{"$f":"Time!EOX$59","v":"00:00:00"},{"$f":"Time!EOY$59","v":"00:00:00"},{"$f":"Time!EOZ$59","v":"00:00:00"},{"$f":"Time!EPA$59","v":"00:00:00"},{"$f":"Time!EPB$59","v":"00:00:00"},{"$f":"Time!EPC$59","v":"00:00:00"},{"$f":"Time!EPD$59","v":"00:00:00"},{"$f":"Time!EPE$59","v":"00:00:00"},{"$f":"Time!EPF$59","v":"00:00:00"},{"$f":"Time!EPG$59","v":"00:00:00"},{"$f":"Time!EPH$59","v":"00:00:00"},{"$f":"Time!EPI$59","v":"00:00:00"},{"$f":"Time!EPJ$59","v":"00:00:00"},{"$f":"Time!EPK$59","v":"00:00:00"},{"$f":"Time!EPL$59","v":"00:00:00"},{"$f":"Time!EPM$59","v":"00:00:00"},{"$f":"Time!EPN$59","v":"00:00:00"},{"$f":"Time!EPO$59","v":"00:00:00"},{"$f":"Time!EPP$59","v":"00:00:00"},{"$f":"Time!EPQ$59","v":"00:00:00"},{"$f":"Time!EPR$59","v":"00:00:00"},{"$f":"Time!EPS$59","v":"00:00:00"},{"$f":"Time!EPT$59","v":"00:00:00"},{"$f":"Time!EPU$59","v":"00:00:00"},{"$f":"Time!EPV$59","v":"00:00:00"},{"$f":"Time!EPW$59","v":"00:00:00"},{"$f":"Time!EPX$59","v":"00:00:00"},{"$f":"Time!EPY$59","v":"00:00:00"},{"$f":"Time!EPZ$59","v":"00:00:00"},{"$f":"Time!EQA$59","v":"00:00:00"},{"$f":"Time!EQB$59","v":"00:00:00"},{"$f":"Time!EQC$59","v":"00:00:00"},{"$f":"Time!EQD$59","v":"00:00:00"},{"$f":"Time!EQE$59","v":"00:00:00"},{"$f":"Time!EQF$59","v":"00:00:00"},{"$f":"Time!EQG$59","v":"00:00:00"},{"$f":"Time!EQH$59","v":"00:00:00"},{"$f":"Time!EQI$59","v":"00:00:00"},{"$f":"Time!EQJ$59","v":"00:00:00"},{"$f":"Time!EQK$59","v":"00:00:00"},{"$f":"Time!EQL$59","v":"00:00:00"},{"$f":"Time!EQM$59","v":"00:00:00"},{"$f":"Time!EQN$59","v":"00:00:00"},{"$f":"Time!EQO$59","v":"00:00:00"},{"$f":"Time!EQP$59","v":"00:00:00"},{"$f":"Time!EQQ$59","v":"00:00:00"},{"$f":"Time!EQR$59","v":"00:00:00"},{"$f":"Time!EQS$59","v":"00:00:00"},{"$f":"Time!EQT$59","v":"00:00:00"},{"$f":"Time!EQU$59","v":"00:00:00"},{"$f":"Time!EQV$59","v":"00:00:00"},{"$f":"Time!EQW$59","v":"00:00:00"},{"$f":"Time!EQX$59","v":"00:00:00"},{"$f":"Time!EQY$59","v":"00:00:00"},{"$f":"Time!EQZ$59","v":"00:00:00"},{"$f":"Time!ERA$59","v":"00:00:00"},{"$f":"Time!ERB$59","v":"00:00:00"},{"$f":"Time!ERC$59","v":"00:00:00"},{"$f":"Time!ERD$59","v":"00:00:00"},{"$f":"Time!ERE$59","v":"00:00:00"},{"$f":"Time!ERF$59","v":"00:00:00"},{"$f":"Time!ERG$59","v":"00:00:00"},{"$f":"Time!ERH$59","v":"00:00:00"},{"$f":"Time!ERI$59","v":"00:00:00"},{"$f":"Time!ERJ$59","v":"00:00:00"},{"$f":"Time!ERK$59","v":"00:00:00"},{"$f":"Time!ERL$59","v":"00:00:00"},{"$f":"Time!ERM$59","v":"00:00:00"},{"$f":"Time!ERN$59","v":"00:00:00"},{"$f":"Time!ERO$59","v":"00:00:00"},{"$f":"Time!ERP$59","v":"00:00:00"},{"$f":"Time!ERQ$59","v":"00:00:00"},{"$f":"Time!ERR$59","v":"00:00:00"},{"$f":"Time!ERS$59","v":"00:00:00"},{"$f":"Time!ERT$59","v":"00:00:00"},{"$f":"Time!ERU$59","v":"00:00:00"},{"$f":"Time!ERV$59","v":"00:00:00"},{"$f":"Time!ERW$59","v":"00:00:00"},{"$f":"Time!ERX$59","v":"00:00:00"},{"$f":"Time!ERY$59","v":"00:00:00"},{"$f":"Time!ERZ$59","v":"00:00:00"},{"$f":"Time!ESA$59","v":"00:00:00"},{"$f":"Time!ESB$59","v":"00:00:00"},{"$f":"Time!ESC$59","v":"00:00:00"},{"$f":"Time!ESD$59","v":"00:00:00"},{"$f":"Time!ESE$59","v":"00:00:00"},{"$f":"Time!ESF$59","v":"00:00:00"},{"$f":"Time!ESG$59","v":"00:00:00"},{"$f":"Time!ESH$59","v":"00:00:00"},{"$f":"Time!ESI$59","v":"00:00:00"},{"$f":"Time!ESJ$59","v":"00:00:00"},{"$f":"Time!ESK$59","v":"00:00:00"},{"$f":"Time!ESL$59","v":"00:00:00"},{"$f":"Time!ESM$59","v":"00:00:00"},{"$f":"Time!ESN$59","v":"00:00:00"},{"$f":"Time!ESO$59","v":"00:00:00"},{"$f":"Time!ESP$59","v":"00:00:00"},{"$f":"Time!ESQ$59","v":"00:00:00"},{"$f":"Time!ESR$59","v":"00:00:00"},{"$f":"Time!ESS$59","v":"00:00:00"},{"$f":"Time!EST$59","v":"00:00:00"},{"$f":"Time!ESU$59","v":"00:00:00"},{"$f":"Time!ESV$59","v":"00:00:00"},{"$f":"Time!ESW$59","v":"00:00:00"},{"$f":"Time!ESX$59","v":"00:00:00"},{"$f":"Time!ESY$59","v":"00:00:00"},{"$f":"Time!ESZ$59","v":"00:00:00"},{"$f":"Time!ETA$59","v":"00:00:00"},{"$f":"Time!ETB$59","v":"00:00:00"},{"$f":"Time!ETC$59","v":"00:00:00"},{"$f":"Time!ETD$59","v":"00:00:00"},{"$f":"Time!ETE$59","v":"00:00:00"},{"$f":"Time!ETF$59","v":"00:00:00"},{"$f":"Time!ETG$59","v":"00:00:00"},{"$f":"Time!ETH$59","v":"00:00:00"},{"$f":"Time!ETI$59","v":"00:00:00"},{"$f":"Time!ETJ$59","v":"00:00:00"},{"$f":"Time!ETK$59","v":"00:00:00"},{"$f":"Time!ETL$59","v":"00:00:00"},{"$f":"Time!ETM$59","v":"00:00:00"},{"$f":"Time!ETN$59","v":"00:00:00"},{"$f":"Time!ETO$59","v":"00:00:00"},{"$f":"Time!ETP$59","v":"00:00:00"},{"$f":"Time!ETQ$59","v":"00:00:00"},{"$f":"Time!ETR$59","v":"00:00:00"},{"$f":"Time!ETS$59","v":"00:00:00"},{"$f":"Time!ETT$59","v":"00:00:00"},{"$f":"Time!ETU$59","v":"00:00:00"},{"$f":"Time!ETV$59","v":"00:00:00"},{"$f":"Time!ETW$59","v":"00:00:00"},{"$f":"Time!ETX$59","v":"00:00:00"},{"$f":"Time!ETY$59","v":"00:00:00"},{"$f":"Time!ETZ$59","v":"00:00:00"},{"$f":"Time!EUA$59","v":"00:00:00"},{"$f":"Time!EUB$59","v":"00:00:00"},{"$f":"Time!EUC$59","v":"00:00:00"},{"$f":"Time!EUD$59","v":"00:00:00"},{"$f":"Time!EUE$59","v":"00:00:00"},{"$f":"Time!EUF$59","v":"00:00:00"},{"$f":"Time!EUG$59","v":"00:00:00"},{"$f":"Time!EUH$59","v":"00:00:00"},{"$f":"Time!EUI$59","v":"00:00:00"},{"$f":"Time!EUJ$59","v":"00:00:00"},{"$f":"Time!EUK$59","v":"00:00:00"},{"$f":"Time!EUL$59","v":"00:00:00"},{"$f":"Time!EUM$59","v":"00:00:00"},{"$f":"Time!EUN$59","v":"00:00:00"},{"$f":"Time!EUO$59","v":"00:00:00"},{"$f":"Time!EUP$59","v":"00:00:00"},{"$f":"Time!EUQ$59","v":"00:00:00"},{"$f":"Time!EUR$59","v":"00:00:00"},{"$f":"Time!EUS$59","v":"00:00:00"},{"$f":"Time!EUT$59","v":"00:00:00"},{"$f":"Time!EUU$59","v":"00:00:00"},{"$f":"Time!EUV$59","v":"00:00:00"},{"$f":"Time!EUW$59","v":"00:00:00"},{"$f":"Time!EUX$59","v":"00:00:00"},{"$f":"Time!EUY$59","v":"00:00:00"},{"$f":"Time!EUZ$59","v":"00:00:00"},{"$f":"Time!EVA$59","v":"00:00:00"},{"$f":"Time!EVB$59","v":"00:00:00"},{"$f":"Time!EVC$59","v":"00:00:00"},{"$f":"Time!EVD$59","v":"00:00:00"},{"$f":"Time!EVE$59","v":"00:00:00"},{"$f":"Time!EVF$59","v":"00:00:00"},{"$f":"Time!EVG$59","v":"00:00:00"},{"$f":"Time!EVH$59","v":"00:00:00"},{"$f":"Time!EVI$59","v":"00:00:00"},{"$f":"Time!EVJ$59","v":"00:00:00"},{"$f":"Time!EVK$59","v":"00:00:00"},{"$f":"Time!EVL$59","v":"00:00:00"},{"$f":"Time!EVM$59","v":"00:00:00"},{"$f":"Time!EVN$59","v":"00:00:00"},{"$f":"Time!EVO$59","v":"00:00:00"},{"$f":"Time!EVP$59","v":"00:00:00"},{"$f":"Time!EVQ$59","v":"00:00:00"},{"$f":"Time!EVR$59","v":"00:00:00"},{"$f":"Time!EVS$59","v":"00:00:00"},{"$f":"Time!EVT$59","v":"00:00:00"},{"$f":"Time!EVU$59","v":"00:00:00"},{"$f":"Time!EVV$59","v":"00:00:00"},{"$f":"Time!EVW$59","v":"00:00:00"},{"$f":"Time!EVX$59","v":"00:00:00"},{"$f":"Time!EVY$59","v":"00:00:00"},{"$f":"Time!EVZ$59","v":"00:00:00"},{"$f":"Time!EWA$59","v":"00:00:00"},{"$f":"Time!EWB$59","v":"00:00:00"},{"$f":"Time!EWC$59","v":"00:00:00"},{"$f":"Time!EWD$59","v":"00:00:00"},{"$f":"Time!EWE$59","v":"00:00:00"},{"$f":"Time!EWF$59","v":"00:00:00"},{"$f":"Time!EWG$59","v":"00:00:00"},{"$f":"Time!EWH$59","v":"00:00:00"},{"$f":"Time!EWI$59","v":"00:00:00"},{"$f":"Time!EWJ$59","v":"00:00:00"},{"$f":"Time!EWK$59","v":"00:00:00"},{"$f":"Time!EWL$59","v":"00:00:00"},{"$f":"Time!EWM$59","v":"00:00:00"},{"$f":"Time!EWN$59","v":"00:00:00"},{"$f":"Time!EWO$59","v":"00:00:00"},{"$f":"Time!EWP$59","v":"00:00:00"},{"$f":"Time!EWQ$59","v":"00:00:00"},{"$f":"Time!EWR$59","v":"00:00:00"},{"$f":"Time!EWS$59","v":"00:00:00"},{"$f":"Time!EWT$59","v":"00:00:00"},{"$f":"Time!EWU$59","v":"00:00:00"},{"$f":"Time!EWV$59","v":"00:00:00"},{"$f":"Time!EWW$59","v":"00:00:00"},{"$f":"Time!EWX$59","v":"00:00:00"},{"$f":"Time!EWY$59","v":"00:00:00"},{"$f":"Time!EWZ$59","v":"00:00:00"},{"$f":"Time!EXA$59","v":"00:00:00"},{"$f":"Time!EXB$59","v":"00:00:00"},{"$f":"Time!EXC$59","v":"00:00:00"},{"$f":"Time!EXD$59","v":"00:00:00"},{"$f":"Time!EXE$59","v":"00:00:00"},{"$f":"Time!EXF$59","v":"00:00:00"},{"$f":"Time!EXG$59","v":"00:00:00"},{"$f":"Time!EXH$59","v":"00:00:00"},{"$f":"Time!EXI$59","v":"00:00:00"},{"$f":"Time!EXJ$59","v":"00:00:00"},{"$f":"Time!EXK$59","v":"00:00:00"},{"$f":"Time!EXL$59","v":"00:00:00"},{"$f":"Time!EXM$59","v":"00:00:00"},{"$f":"Time!EXN$59","v":"00:00:00"},{"$f":"Time!EXO$59","v":"00:00:00"},{"$f":"Time!EXP$59","v":"00:00:00"},{"$f":"Time!EXQ$59","v":"00:00:00"},{"$f":"Time!EXR$59","v":"00:00:00"},{"$f":"Time!EXS$59","v":"00:00:00"},{"$f":"Time!EXT$59","v":"00:00:00"},{"$f":"Time!EXU$59","v":"00:00:00"},{"$f":"Time!EXV$59","v":"00:00:00"},{"$f":"Time!EXW$59","v":"00:00:00"},{"$f":"Time!EXX$59","v":"00:00:00"},{"$f":"Time!EXY$59","v":"00:00:00"},{"$f":"Time!EXZ$59","v":"00:00:00"},{"$f":"Time!EYA$59","v":"00:00:00"},{"$f":"Time!EYB$59","v":"00:00:00"},{"$f":"Time!EYC$59","v":"00:00:00"},{"$f":"Time!EYD$59","v":"00:00:00"},{"$f":"Time!EYE$59","v":"00:00:00"},{"$f":"Time!EYF$59","v":"00:00:00"},{"$f":"Time!EYG$59","v":"00:00:00"},{"$f":"Time!EYH$59","v":"00:00:00"},{"$f":"Time!EYI$59","v":"00:00:00"},{"$f":"Time!EYJ$59","v":"00:00:00"},{"$f":"Time!EYK$59","v":"00:00:00"},{"$f":"Time!EYL$59","v":"00:00:00"},{"$f":"Time!EYM$59","v":"00:00:00"},{"$f":"Time!EYN$59","v":"00:00:00"},{"$f":"Time!EYO$59","v":"00:00:00"},{"$f":"Time!EYP$59","v":"00:00:00"},{"$f":"Time!EYQ$59","v":"00:00:00"},{"$f":"Time!EYR$59","v":"00:00:00"},{"$f":"Time!EYS$59","v":"00:00:00"},{"$f":"Time!EYT$59","v":"00:00:00"},{"$f":"Time!EYU$59","v":"00:00:00"},{"$f":"Time!EYV$59","v":"00:00:00"},{"$f":"Time!EYW$59","v":"00:00:00"},{"$f":"Time!EYX$59","v":"00:00:00"},{"$f":"Time!EYY$59","v":"00:00:00"},{"$f":"Time!EYZ$59","v":"00:00:00"},{"$f":"Time!EZA$59","v":"00:00:00"},{"$f":"Time!EZB$59","v":"00:00:00"},{"$f":"Time!EZC$59","v":"00:00:00"},{"$f":"Time!EZD$59","v":"00:00:00"},{"$f":"Time!EZE$59","v":"00:00:00"},{"$f":"Time!EZF$59","v":"00:00:00"},{"$f":"Time!EZG$59","v":"00:00:00"},{"$f":"Time!EZH$59","v":"00:00:00"},{"$f":"Time!EZI$59","v":"00:00:00"},{"$f":"Time!EZJ$59","v":"00:00:00"},{"$f":"Time!EZK$59","v":"00:00:00"},{"$f":"Time!EZL$59","v":"00:00:00"},{"$f":"Time!EZM$59","v":"00:00:00"},{"$f":"Time!EZN$59","v":"00:00:00"},{"$f":"Time!EZO$59","v":"00:00:00"},{"$f":"Time!EZP$59","v":"00:00:00"},{"$f":"Time!EZQ$59","v":"00:00:00"},{"$f":"Time!EZR$59","v":"00:00:00"},{"$f":"Time!EZS$59","v":"00:00:00"},{"$f":"Time!EZT$59","v":"00:00:00"},{"$f":"Time!EZU$59","v":"00:00:00"},{"$f":"Time!EZV$59","v":"00:00:00"},{"$f":"Time!EZW$59","v":"00:00:00"},{"$f":"Time!EZX$59","v":"00:00:00"},{"$f":"Time!EZY$59","v":"00:00:00"},{"$f":"Time!EZZ$59","v":"00:00:00"},{"$f":"Time!FAA$59","v":"00:00:00"},{"$f":"Time!FAB$59","v":"00:00:00"},{"$f":"Time!FAC$59","v":"00:00:00"},{"$f":"Time!FAD$59","v":"00:00:00"},{"$f":"Time!FAE$59","v":"00:00:00"},{"$f":"Time!FAF$59","v":"00:00:00"},{"$f":"Time!FAG$59","v":"00:00:00"},{"$f":"Time!FAH$59","v":"00:00:00"},{"$f":"Time!FAI$59","v":"00:00:00"},{"$f":"Time!FAJ$59","v":"00:00:00"},{"$f":"Time!FAK$59","v":"00:00:00"},{"$f":"Time!FAL$59","v":"00:00:00"},{"$f":"Time!FAM$59","v":"00:00:00"},{"$f":"Time!FAN$59","v":"00:00:00"},{"$f":"Time!FAO$59","v":"00:00:00"},{"$f":"Time!FAP$59","v":"00:00:00"},{"$f":"Time!FAQ$59","v":"00:00:00"},{"$f":"Time!FAR$59","v":"00:00:00"},{"$f":"Time!FAS$59","v":"00:00:00"},{"$f":"Time!FAT$59","v":"00:00:00"},{"$f":"Time!FAU$59","v":"00:00:00"},{"$f":"Time!FAV$59","v":"00:00:00"},{"$f":"Time!FAW$59","v":"00:00:00"},{"$f":"Time!FAX$59","v":"00:00:00"},{"$f":"Time!FAY$59","v":"00:00:00"},{"$f":"Time!FAZ$59","v":"00:00:00"},{"$f":"Time!FBA$59","v":"00:00:00"},{"$f":"Time!FBB$59","v":"00:00:00"},{"$f":"Time!FBC$59","v":"00:00:00"},{"$f":"Time!FBD$59","v":"00:00:00"},{"$f":"Time!FBE$59","v":"00:00:00"},{"$f":"Time!FBF$59","v":"00:00:00"},{"$f":"Time!FBG$59","v":"00:00:00"},{"$f":"Time!FBH$59","v":"00:00:00"},{"$f":"Time!FBI$59","v":"00:00:00"},{"$f":"Time!FBJ$59","v":"00:00:00"},{"$f":"Time!FBK$59","v":"00:00:00"},{"$f":"Time!FBL$59","v":"00:00:00"},{"$f":"Time!FBM$59","v":"00:00:00"},{"$f":"Time!FBN$59","v":"00:00:00"},{"$f":"Time!FBO$59","v":"00:00:00"},{"$f":"Time!FBP$59","v":"00:00:00"},{"$f":"Time!FBQ$59","v":"00:00:00"},{"$f":"Time!FBR$59","v":"00:00:00"},{"$f":"Time!FBS$59","v":"00:00:00"},{"$f":"Time!FBT$59","v":"00:00:00"},{"$f":"Time!FBU$59","v":"00:00:00"},{"$f":"Time!FBV$59","v":"00:00:00"},{"$f":"Time!FBW$59","v":"00:00:00"},{"$f":"Time!FBX$59","v":"00:00:00"},{"$f":"Time!FBY$59","v":"00:00:00"},{"$f":"Time!FBZ$59","v":"00:00:00"},{"$f":"Time!FCA$59","v":"00:00:00"},{"$f":"Time!FCB$59","v":"00:00:00"},{"$f":"Time!FCC$59","v":"00:00:00"},{"$f":"Time!FCD$59","v":"00:00:00"},{"$f":"Time!FCE$59","v":"00:00:00"},{"$f":"Time!FCF$59","v":"00:00:00"},{"$f":"Time!FCG$59","v":"00:00:00"},{"$f":"Time!FCH$59","v":"00:00:00"},{"$f":"Time!FCI$59","v":"00:00:00"},{"$f":"Time!FCJ$59","v":"00:00:00"},{"$f":"Time!FCK$59","v":"00:00:00"},{"$f":"Time!FCL$59","v":"00:00:00"},{"$f":"Time!FCM$59","v":"00:00:00"},{"$f":"Time!FCN$59","v":"00:00:00"},{"$f":"Time!FCO$59","v":"00:00:00"},{"$f":"Time!FCP$59","v":"00:00:00"},{"$f":"Time!FCQ$59","v":"00:00:00"},{"$f":"Time!FCR$59","v":"00:00:00"},{"$f":"Time!FCS$59","v":"00:00:00"},{"$f":"Time!FCT$59","v":"00:00:00"},{"$f":"Time!FCU$59","v":"00:00:00"},{"$f":"Time!FCV$59","v":"00:00:00"},{"$f":"Time!FCW$59","v":"00:00:00"},{"$f":"Time!FCX$59","v":"00:00:00"},{"$f":"Time!FCY$59","v":"00:00:00"},{"$f":"Time!FCZ$59","v":"00:00:00"},{"$f":"Time!FDA$59","v":"00:00:00"},{"$f":"Time!FDB$59","v":"00:00:00"},{"$f":"Time!FDC$59","v":"00:00:00"},{"$f":"Time!FDD$59","v":"00:00:00"},{"$f":"Time!FDE$59","v":"00:00:00"},{"$f":"Time!FDF$59","v":"00:00:00"},{"$f":"Time!FDG$59","v":"00:00:00"},{"$f":"Time!FDH$59","v":"00:00:00"},{"$f":"Time!FDI$59","v":"00:00:00"},{"$f":"Time!FDJ$59","v":"00:00:00"},{"$f":"Time!FDK$59","v":"00:00:00"},{"$f":"Time!FDL$59","v":"00:00:00"},{"$f":"Time!FDM$59","v":"00:00:00"},{"$f":"Time!FDN$59","v":"00:00:00"},{"$f":"Time!FDO$59","v":"00:00:00"},{"$f":"Time!FDP$59","v":"00:00:00"},{"$f":"Time!FDQ$59","v":"00:00:00"},{"$f":"Time!FDR$59","v":"00:00:00"},{"$f":"Time!FDS$59","v":"00:00:00"},{"$f":"Time!FDT$59","v":"00:00:00"},{"$f":"Time!FDU$59","v":"00:00:00"},{"$f":"Time!FDV$59","v":"00:00:00"},{"$f":"Time!FDW$59","v":"00:00:00"},{"$f":"Time!FDX$59","v":"00:00:00"},{"$f":"Time!FDY$59","v":"00:00:00"},{"$f":"Time!FDZ$59","v":"00:00:00"},{"$f":"Time!FEA$59","v":"00:00:00"},{"$f":"Time!FEB$59","v":"00:00:00"},{"$f":"Time!FEC$59","v":"00:00:00"},{"$f":"Time!FED$59","v":"00:00:00"},{"$f":"Time!FEE$59","v":"00:00:00"},{"$f":"Time!FEF$59","v":"00:00:00"},{"$f":"Time!FEG$59","v":"00:00:00"},{"$f":"Time!FEH$59","v":"00:00:00"},{"$f":"Time!FEI$59","v":"00:00:00"},{"$f":"Time!FEJ$59","v":"00:00:00"},{"$f":"Time!FEK$59","v":"00:00:00"},{"$f":"Time!FEL$59","v":"00:00:00"},{"$f":"Time!FEM$59","v":"00:00:00"},{"$f":"Time!FEN$59","v":"00:00:00"},{"$f":"Time!FEO$59","v":"00:00:00"},{"$f":"Time!FEP$59","v":"00:00:00"},{"$f":"Time!FEQ$59","v":"00:00:00"},{"$f":"Time!FER$59","v":"00:00:00"},{"$f":"Time!FES$59","v":"00:00:00"},{"$f":"Time!FET$59","v":"00:00:00"},{"$f":"Time!FEU$59","v":"00:00:00"},{"$f":"Time!FEV$59","v":"00:00:00"},{"$f":"Time!FEW$59","v":"00:00:00"},{"$f":"Time!FEX$59","v":"00:00:00"},{"$f":"Time!FEY$59","v":"00:00:00"},{"$f":"Time!FEZ$59","v":"00:00:00"},{"$f":"Time!FFA$59","v":"00:00:00"},{"$f":"Time!FFB$59","v":"00:00:00"},{"$f":"Time!FFC$59","v":"00:00:00"},{"$f":"Time!FFD$59","v":"00:00:00"},{"$f":"Time!FFE$59","v":"00:00:00"},{"$f":"Time!FFF$59","v":"00:00:00"},{"$f":"Time!FFG$59","v":"00:00:00"},{"$f":"Time!FFH$59","v":"00:00:00"},{"$f":"Time!FFI$59","v":"00:00:00"},{"$f":"Time!FFJ$59","v":"00:00:00"},{"$f":"Time!FFK$59","v":"00:00:00"},{"$f":"Time!FFL$59","v":"00:00:00"},{"$f":"Time!FFM$59","v":"00:00:00"},{"$f":"Time!FFN$59","v":"00:00:00"},{"$f":"Time!FFO$59","v":"00:00:00"},{"$f":"Time!FFP$59","v":"00:00:00"},{"$f":"Time!FFQ$59","v":"00:00:00"},{"$f":"Time!FFR$59","v":"00:00:00"},{"$f":"Time!FFS$59","v":"00:00:00"},{"$f":"Time!FFT$59","v":"00:00:00"},{"$f":"Time!FFU$59","v":"00:00:00"},{"$f":"Time!FFV$59","v":"00:00:00"},{"$f":"Time!FFW$59","v":"00:00:00"},{"$f":"Time!FFX$59","v":"00:00:00"},{"$f":"Time!FFY$59","v":"00:00:00"},{"$f":"Time!FFZ$59","v":"00:00:00"},{"$f":"Time!FGA$59","v":"00:00:00"},{"$f":"Time!FGB$59","v":"00:00:00"},{"$f":"Time!FGC$59","v":"00:00:00"},{"$f":"Time!FGD$59","v":"00:00:00"},{"$f":"Time!FGE$59","v":"00:00:00"},{"$f":"Time!FGF$59","v":"00:00:00"},{"$f":"Time!FGG$59","v":"00:00:00"},{"$f":"Time!FGH$59","v":"00:00:00"},{"$f":"Time!FGI$59","v":"00:00:00"},{"$f":"Time!FGJ$59","v":"00:00:00"},{"$f":"Time!FGK$59","v":"00:00:00"},{"$f":"Time!FGL$59","v":"00:00:00"},{"$f":"Time!FGM$59","v":"00:00:00"},{"$f":"Time!FGN$59","v":"00:00:00"},{"$f":"Time!FGO$59","v":"00:00:00"},{"$f":"Time!FGP$59","v":"00:00:00"},{"$f":"Time!FGQ$59","v":"00:00:00"},{"$f":"Time!FGR$59","v":"00:00:00"},{"$f":"Time!FGS$59","v":"00:00:00"},{"$f":"Time!FGT$59","v":"00:00:00"},{"$f":"Time!FGU$59","v":"00:00:00"},{"$f":"Time!FGV$59","v":"00:00:00"},{"$f":"Time!FGW$59","v":"00:00:00"},{"$f":"Time!FGX$59","v":"00:00:00"},{"$f":"Time!FGY$59","v":"00:00:00"},{"$f":"Time!FGZ$59","v":"00:00:00"},{"$f":"Time!FHA$59","v":"00:00:00"},{"$f":"Time!FHB$59","v":"00:00:00"},{"$f":"Time!FHC$59","v":"00:00:00"},{"$f":"Time!FHD$59","v":"00:00:00"},{"$f":"Time!FHE$59","v":"00:00:00"},{"$f":"Time!FHF$59","v":"00:00:00"},{"$f":"Time!FHG$59","v":"00:00:00"},{"$f":"Time!FHH$59","v":"00:00:00"},{"$f":"Time!FHI$59","v":"00:00:00"},{"$f":"Time!FHJ$59","v":"00:00:00"},{"$f":"Time!FHK$59","v":"00:00:00"},{"$f":"Time!FHL$59","v":"00:00:00"},{"$f":"Time!FHM$59","v":"00:00:00"},{"$f":"Time!FHN$59","v":"00:00:00"},{"$f":"Time!FHO$59","v":"00:00:00"},{"$f":"Time!FHP$59","v":"00:00:00"},{"$f":"Time!FHQ$59","v":"00:00:00"},{"$f":"Time!FHR$59","v":"00:00:00"},{"$f":"Time!FHS$59","v":"00:00:00"},{"$f":"Time!FHT$59","v":"00:00:00"},{"$f":"Time!FHU$59","v":"00:00:00"},{"$f":"Time!FHV$59","v":"00:00:00"},{"$f":"Time!FHW$59","v":"00:00:00"},{"$f":"Time!FHX$59","v":"00:00:00"},{"$f":"Time!FHY$59","v":"00:00:00"},{"$f":"Time!FHZ$59","v":"00:00:00"},{"$f":"Time!FIA$59","v":"00:00:00"},{"$f":"Time!FIB$59","v":"00:00:00"},{"$f":"Time!FIC$59","v":"00:00:00"},{"$f":"Time!FID$59","v":"00:00:00"},{"$f":"Time!FIE$59","v":"00:00:00"},{"$f":"Time!FIF$59","v":"00:00:00"},{"$f":"Time!FIG$59","v":"00:00:00"},{"$f":"Time!FIH$59","v":"00:00:00"},{"$f":"Time!FII$59","v":"00:00:00"},{"$f":"Time!FIJ$59","v":"00:00:00"},{"$f":"Time!FIK$59","v":"00:00:00"},{"$f":"Time!FIL$59","v":"00:00:00"},{"$f":"Time!FIM$59","v":"00:00:00"},{"$f":"Time!FIN$59","v":"00:00:00"},{"$f":"Time!FIO$59","v":"00:00:00"},{"$f":"Time!FIP$59","v":"00:00:00"},{"$f":"Time!FIQ$59","v":"00:00:00"},{"$f":"Time!FIR$59","v":"00:00:00"},{"$f":"Time!FIS$59","v":"00:00:00"},{"$f":"Time!FIT$59","v":"00:00:00"},{"$f":"Time!FIU$59","v":"00:00:00"},{"$f":"Time!FIV$59","v":"00:00:00"},{"$f":"Time!FIW$59","v":"00:00:00"},{"$f":"Time!FIX$59","v":"00:00:00"},{"$f":"Time!FIY$59","v":"00:00:00"},{"$f":"Time!FIZ$59","v":"00:00:00"},{"$f":"Time!FJA$59","v":"00:00:00"},{"$f":"Time!FJB$59","v":"00:00:00"},{"$f":"Time!FJC$59","v":"00:00:00"},{"$f":"Time!FJD$59","v":"00:00:00"},{"$f":"Time!FJE$59","v":"00:00:00"},{"$f":"Time!FJF$59","v":"00:00:00"},{"$f":"Time!FJG$59","v":"00:00:00"},{"$f":"Time!FJH$59","v":"00:00:00"},{"$f":"Time!FJI$59","v":"00:00:00"},{"$f":"Time!FJJ$59","v":"00:00:00"},{"$f":"Time!FJK$59","v":"00:00:00"},{"$f":"Time!FJL$59","v":"00:00:00"},{"$f":"Time!FJM$59","v":"00:00:00"},{"$f":"Time!FJN$59","v":"00:00:00"},{"$f":"Time!FJO$59","v":"00:00:00"},{"$f":"Time!FJP$59","v":"00:00:00"},{"$f":"Time!FJQ$59","v":"00:00:00"},{"$f":"Time!FJR$59","v":"00:00:00"},{"$f":"Time!FJS$59","v":"00:00:00"},{"$f":"Time!FJT$59","v":"00:00:00"},{"$f":"Time!FJU$59","v":"00:00:00"},{"$f":"Time!FJV$59","v":"00:00:00"},{"$f":"Time!FJW$59","v":"00:00:00"},{"$f":"Time!FJX$59","v":"00:00:00"},{"$f":"Time!FJY$59","v":"00:00:00"},{"$f":"Time!FJZ$59","v":"00:00:00"},{"$f":"Time!FKA$59","v":"00:00:00"},{"$f":"Time!FKB$59","v":"00:00:00"},{"$f":"Time!FKC$59","v":"00:00:00"},{"$f":"Time!FKD$59","v":"00:00:00"},{"$f":"Time!FKE$59","v":"00:00:00"},{"$f":"Time!FKF$59","v":"00:00:00"},{"$f":"Time!FKG$59","v":"00:00:00"},{"$f":"Time!FKH$59","v":"00:00:00"},{"$f":"Time!FKI$59","v":"00:00:00"},{"$f":"Time!FKJ$59","v":"00:00:00"},{"$f":"Time!FKK$59","v":"00:00:00"},{"$f":"Time!FKL$59","v":"00:00:00"},{"$f":"Time!FKM$59","v":"00:00:00"},{"$f":"Time!FKN$59","v":"00:00:00"},{"$f":"Time!FKO$59","v":"00:00:00"},{"$f":"Time!FKP$59","v":"00:00:00"},{"$f":"Time!FKQ$59","v":"00:00:00"},{"$f":"Time!FKR$59","v":"00:00:00"},{"$f":"Time!FKS$59","v":"00:00:00"},{"$f":"Time!FKT$59","v":"00:00:00"},{"$f":"Time!FKU$59","v":"00:00:00"},{"$f":"Time!FKV$59","v":"00:00:00"},{"$f":"Time!FKW$59","v":"00:00:00"},{"$f":"Time!FKX$59","v":"00:00:00"},{"$f":"Time!FKY$59","v":"00:00:00"},{"$f":"Time!FKZ$59","v":"00:00:00"},{"$f":"Time!FLA$59","v":"00:00:00"},{"$f":"Time!FLB$59","v":"00:00:00"},{"$f":"Time!FLC$59","v":"00:00:00"},{"$f":"Time!FLD$59","v":"00:00:00"},{"$f":"Time!FLE$59","v":"00:00:00"},{"$f":"Time!FLF$59","v":"00:00:00"},{"$f":"Time!FLG$59","v":"00:00:00"},{"$f":"Time!FLH$59","v":"00:00:00"},{"$f":"Time!FLI$59","v":"00:00:00"},{"$f":"Time!FLJ$59","v":"00:00:00"},{"$f":"Time!FLK$59","v":"00:00:00"},{"$f":"Time!FLL$59","v":"00:00:00"},{"$f":"Time!FLM$59","v":"00:00:00"},{"$f":"Time!FLN$59","v":"00:00:00"},{"$f":"Time!FLO$59","v":"00:00:00"},{"$f":"Time!FLP$59","v":"00:00:00"},{"$f":"Time!FLQ$59","v":"00:00:00"},{"$f":"Time!FLR$59","v":"00:00:00"},{"$f":"Time!FLS$59","v":"00:00:00"},{"$f":"Time!FLT$59","v":"00:00:00"},{"$f":"Time!FLU$59","v":"00:00:00"},{"$f":"Time!FLV$59","v":"00:00:00"},{"$f":"Time!FLW$59","v":"00:00:00"},{"$f":"Time!FLX$59","v":"00:00:00"},{"$f":"Time!FLY$59","v":"00:00:00"},{"$f":"Time!FLZ$59","v":"00:00:00"},{"$f":"Time!FMA$59","v":"00:00:00"},{"$f":"Time!FMB$59","v":"00:00:00"},{"$f":"Time!FMC$59","v":"00:00:00"},{"$f":"Time!FMD$59","v":"00:00:00"},{"$f":"Time!FME$59","v":"00:00:00"},{"$f":"Time!FMF$59","v":"00:00:00"},{"$f":"Time!FMG$59","v":"00:00:00"},{"$f":"Time!FMH$59","v":"00:00:00"},{"$f":"Time!FMI$59","v":"00:00:00"},{"$f":"Time!FMJ$59","v":"00:00:00"},{"$f":"Time!FMK$59","v":"00:00:00"},{"$f":"Time!FML$59","v":"00:00:00"},{"$f":"Time!FMM$59","v":"00:00:00"},{"$f":"Time!FMN$59","v":"00:00:00"},{"$f":"Time!FMO$59","v":"00:00:00"},{"$f":"Time!FMP$59","v":"00:00:00"},{"$f":"Time!FMQ$59","v":"00:00:00"},{"$f":"Time!FMR$59","v":"00:00:00"},{"$f":"Time!FMS$59","v":"00:00:00"},{"$f":"Time!FMT$59","v":"00:00:00"},{"$f":"Time!FMU$59","v":"00:00:00"},{"$f":"Time!FMV$59","v":"00:00:00"},{"$f":"Time!FMW$59","v":"00:00:00"},{"$f":"Time!FMX$59","v":"00:00:00"},{"$f":"Time!FMY$59","v":"00:00:00"},{"$f":"Time!FMZ$59","v":"00:00:00"},{"$f":"Time!FNA$59","v":"00:00:00"},{"$f":"Time!FNB$59","v":"00:00:00"},{"$f":"Time!FNC$59","v":"00:00:00"},{"$f":"Time!FND$59","v":"00:00:00"},{"$f":"Time!FNE$59","v":"00:00:00"},{"$f":"Time!FNF$59","v":"00:00:00"},{"$f":"Time!FNG$59","v":"00:00:00"},{"$f":"Time!FNH$59","v":"00:00:00"},{"$f":"Time!FNI$59","v":"00:00:00"},{"$f":"Time!FNJ$59","v":"00:00:00"},{"$f":"Time!FNK$59","v":"00:00:00"},{"$f":"Time!FNL$59","v":"00:00:00"},{"$f":"Time!FNM$59","v":"00:00:00"},{"$f":"Time!FNN$59","v":"00:00:00"},{"$f":"Time!FNO$59","v":"00:00:00"},{"$f":"Time!FNP$59","v":"00:00:00"},{"$f":"Time!FNQ$59","v":"00:00:00"},{"$f":"Time!FNR$59","v":"00:00:00"},{"$f":"Time!FNS$59","v":"00:00:00"},{"$f":"Time!FNT$59","v":"00:00:00"},{"$f":"Time!FNU$59","v":"00:00:00"},{"$f":"Time!FNV$59","v":"00:00:00"},{"$f":"Time!FNW$59","v":"00:00:00"},{"$f":"Time!FNX$59","v":"00:00:00"},{"$f":"Time!FNY$59","v":"00:00:00"},{"$f":"Time!FNZ$59","v":"00:00:00"},{"$f":"Time!FOA$59","v":"00:00:00"},{"$f":"Time!FOB$59","v":"00:00:00"},{"$f":"Time!FOC$59","v":"00:00:00"},{"$f":"Time!FOD$59","v":"00:00:00"},{"$f":"Time!FOE$59","v":"00:00:00"},{"$f":"Time!FOF$59","v":"00:00:00"},{"$f":"Time!FOG$59","v":"00:00:00"},{"$f":"Time!FOH$59","v":"00:00:00"},{"$f":"Time!FOI$59","v":"00:00:00"},{"$f":"Time!FOJ$59","v":"00:00:00"},{"$f":"Time!FOK$59","v":"00:00:00"},{"$f":"Time!FOL$59","v":"00:00:00"},{"$f":"Time!FOM$59","v":"00:00:00"},{"$f":"Time!FON$59","v":"00:00:00"},{"$f":"Time!FOO$59","v":"00:00:00"},{"$f":"Time!FOP$59","v":"00:00:00"},{"$f":"Time!FOQ$59","v":"00:00:00"},{"$f":"Time!FOR$59","v":"00:00:00"},{"$f":"Time!FOS$59","v":"00:00:00"},{"$f":"Time!FOT$59","v":"00:00:00"},{"$f":"Time!FOU$59","v":"00:00:00"},{"$f":"Time!FOV$59","v":"00:00:00"},{"$f":"Time!FOW$59","v":"00:00:00"},{"$f":"Time!FOX$59","v":"00:00:00"},{"$f":"Time!FOY$59","v":"00:00:00"},{"$f":"Time!FOZ$59","v":"00:00:00"},{"$f":"Time!FPA$59","v":"00:00:00"},{"$f":"Time!FPB$59","v":"00:00:00"},{"$f":"Time!FPC$59","v":"00:00:00"},{"$f":"Time!FPD$59","v":"00:00:00"},{"$f":"Time!FPE$59","v":"00:00:00"},{"$f":"Time!FPF$59","v":"00:00:00"},{"$f":"Time!FPG$59","v":"00:00:00"},{"$f":"Time!FPH$59","v":"00:00:00"},{"$f":"Time!FPI$59","v":"00:00:00"},{"$f":"Time!FPJ$59","v":"00:00:00"},{"$f":"Time!FPK$59","v":"00:00:00"},{"$f":"Time!FPL$59","v":"00:00:00"},{"$f":"Time!FPM$59","v":"00:00:00"},{"$f":"Time!FPN$59","v":"00:00:00"},{"$f":"Time!FPO$59","v":"00:00:00"},{"$f":"Time!FPP$59","v":"00:00:00"},{"$f":"Time!FPQ$59","v":"00:00:00"},{"$f":"Time!FPR$59","v":"00:00:00"},{"$f":"Time!FPS$59","v":"00:00:00"},{"$f":"Time!FPT$59","v":"00:00:00"},{"$f":"Time!FPU$59","v":"00:00:00"},{"$f":"Time!FPV$59","v":"00:00:00"},{"$f":"Time!FPW$59","v":"00:00:00"},{"$f":"Time!FPX$59","v":"00:00:00"},{"$f":"Time!FPY$59","v":"00:00:00"},{"$f":"Time!FPZ$59","v":"00:00:00"},{"$f":"Time!FQA$59","v":"00:00:00"},{"$f":"Time!FQB$59","v":"00:00:00"},{"$f":"Time!FQC$59","v":"00:00:00"},{"$f":"Time!FQD$59","v":"00:00:00"},{"$f":"Time!FQE$59","v":"00:00:00"},{"$f":"Time!FQF$59","v":"00:00:00"},{"$f":"Time!FQG$59","v":"00:00:00"},{"$f":"Time!FQH$59","v":"00:00:00"},{"$f":"Time!FQI$59","v":"00:00:00"},{"$f":"Time!FQJ$59","v":"00:00:00"},{"$f":"Time!FQK$59","v":"00:00:00"},{"$f":"Time!FQL$59","v":"00:00:00"},{"$f":"Time!FQM$59","v":"00:00:00"},{"$f":"Time!FQN$59","v":"00:00:00"},{"$f":"Time!FQO$59","v":"00:00:00"},{"$f":"Time!FQP$59","v":"00:00:00"},{"$f":"Time!FQQ$59","v":"00:00:00"},{"$f":"Time!FQR$59","v":"00:00:00"},{"$f":"Time!FQS$59","v":"00:00:00"},{"$f":"Time!FQT$59","v":"00:00:00"},{"$f":"Time!FQU$59","v":"00:00:00"},{"$f":"Time!FQV$59","v":"00:00:00"},{"$f":"Time!FQW$59","v":"00:00:00"},{"$f":"Time!FQX$59","v":"00:00:00"},{"$f":"Time!FQY$59","v":"00:00:00"},{"$f":"Time!FQZ$59","v":"00:00:00"},{"$f":"Time!FRA$59","v":"00:00:00"},{"$f":"Time!FRB$59","v":"00:00:00"},{"$f":"Time!FRC$59","v":"00:00:00"},{"$f":"Time!FRD$59","v":"00:00:00"},{"$f":"Time!FRE$59","v":"00:00:00"},{"$f":"Time!FRF$59","v":"00:00:00"},{"$f":"Time!FRG$59","v":"00:00:00"},{"$f":"Time!FRH$59","v":"00:00:00"},{"$f":"Time!FRI$59","v":"00:00:00"},{"$f":"Time!FRJ$59","v":"00:00:00"},{"$f":"Time!FRK$59","v":"00:00:00"},{"$f":"Time!FRL$59","v":"00:00:00"},{"$f":"Time!FRM$59","v":"00:00:00"},{"$f":"Time!FRN$59","v":"00:00:00"},{"$f":"Time!FRO$59","v":"00:00:00"},{"$f":"Time!FRP$59","v":"00:00:00"},{"$f":"Time!FRQ$59","v":"00:00:00"},{"$f":"Time!FRR$59","v":"00:00:00"},{"$f":"Time!FRS$59","v":"00:00:00"},{"$f":"Time!FRT$59","v":"00:00:00"},{"$f":"Time!FRU$59","v":"00:00:00"},{"$f":"Time!FRV$59","v":"00:00:00"},{"$f":"Time!FRW$59","v":"00:00:00"},{"$f":"Time!FRX$59","v":"00:00:00"},{"$f":"Time!FRY$59","v":"00:00:00"},{"$f":"Time!FRZ$59","v":"00:00:00"},{"$f":"Time!FSA$59","v":"00:00:00"},{"$f":"Time!FSB$59","v":"00:00:00"},{"$f":"Time!FSC$59","v":"00:00:00"},{"$f":"Time!FSD$59","v":"00:00:00"},{"$f":"Time!FSE$59","v":"00:00:00"},{"$f":"Time!FSF$59","v":"00:00:00"},{"$f":"Time!FSG$59","v":"00:00:00"},{"$f":"Time!FSH$59","v":"00:00:00"},{"$f":"Time!FSI$59","v":"00:00:00"},{"$f":"Time!FSJ$59","v":"00:00:00"},{"$f":"Time!FSK$59","v":"00:00:00"},{"$f":"Time!FSL$59","v":"00:00:00"},{"$f":"Time!FSM$59","v":"00:00:00"},{"$f":"Time!FSN$59","v":"00:00:00"},{"$f":"Time!FSO$59","v":"00:00:00"},{"$f":"Time!FSP$59","v":"00:00:00"},{"$f":"Time!FSQ$59","v":"00:00:00"},{"$f":"Time!FSR$59","v":"00:00:00"},{"$f":"Time!FSS$59","v":"00:00:00"},{"$f":"Time!FST$59","v":"00:00:00"},{"$f":"Time!FSU$59","v":"00:00:00"},{"$f":"Time!FSV$59","v":"00:00:00"},{"$f":"Time!FSW$59","v":"00:00:00"},{"$f":"Time!FSX$59","v":"00:00:00"},{"$f":"Time!FSY$59","v":"00:00:00"},{"$f":"Time!FSZ$59","v":"00:00:00"},{"$f":"Time!FTA$59","v":"00:00:00"},{"$f":"Time!FTB$59","v":"00:00:00"},{"$f":"Time!FTC$59","v":"00:00:00"},{"$f":"Time!FTD$59","v":"00:00:00"},{"$f":"Time!FTE$59","v":"00:00:00"},{"$f":"Time!FTF$59","v":"00:00:00"},{"$f":"Time!FTG$59","v":"00:00:00"},{"$f":"Time!FTH$59","v":"00:00:00"},{"$f":"Time!FTI$59","v":"00:00:00"},{"$f":"Time!FTJ$59","v":"00:00:00"},{"$f":"Time!FTK$59","v":"00:00:00"},{"$f":"Time!FTL$59","v":"00:00:00"},{"$f":"Time!FTM$59","v":"00:00:00"},{"$f":"Time!FTN$59","v":"00:00:00"},{"$f":"Time!FTO$59","v":"00:00:00"},{"$f":"Time!FTP$59","v":"00:00:00"},{"$f":"Time!FTQ$59","v":"00:00:00"},{"$f":"Time!FTR$59","v":"00:00:00"},{"$f":"Time!FTS$59","v":"00:00:00"},{"$f":"Time!FTT$59","v":"00:00:00"},{"$f":"Time!FTU$59","v":"00:00:00"},{"$f":"Time!FTV$59","v":"00:00:00"},{"$f":"Time!FTW$59","v":"00:00:00"},{"$f":"Time!FTX$59","v":"00:00:00"},{"$f":"Time!FTY$59","v":"00:00:00"},{"$f":"Time!FTZ$59","v":"00:00:00"},{"$f":"Time!FUA$59","v":"00:00:00"},{"$f":"Time!FUB$59","v":"00:00:00"},{"$f":"Time!FUC$59","v":"00:00:00"},{"$f":"Time!FUD$59","v":"00:00:00"},{"$f":"Time!FUE$59","v":"00:00:00"},{"$f":"Time!FUF$59","v":"00:00:00"},{"$f":"Time!FUG$59","v":"00:00:00"},{"$f":"Time!FUH$59","v":"00:00:00"},{"$f":"Time!FUI$59","v":"00:00:00"},{"$f":"Time!FUJ$59","v":"00:00:00"},{"$f":"Time!FUK$59","v":"00:00:00"},{"$f":"Time!FUL$59","v":"00:00:00"},{"$f":"Time!FUM$59","v":"00:00:00"},{"$f":"Time!FUN$59","v":"00:00:00"},{"$f":"Time!FUO$59","v":"00:00:00"},{"$f":"Time!FUP$59","v":"00:00:00"},{"$f":"Time!FUQ$59","v":"00:00:00"},{"$f":"Time!FUR$59","v":"00:00:00"},{"$f":"Time!FUS$59","v":"00:00:00"},{"$f":"Time!FUT$59","v":"00:00:00"},{"$f":"Time!FUU$59","v":"00:00:00"},{"$f":"Time!FUV$59","v":"00:00:00"},{"$f":"Time!FUW$59","v":"00:00:00"},{"$f":"Time!FUX$59","v":"00:00:00"},{"$f":"Time!FUY$59","v":"00:00:00"},{"$f":"Time!FUZ$59","v":"00:00:00"},{"$f":"Time!FVA$59","v":"00:00:00"},{"$f":"Time!FVB$59","v":"00:00:00"},{"$f":"Time!FVC$59","v":"00:00:00"},{"$f":"Time!FVD$59","v":"00:00:00"},{"$f":"Time!FVE$59","v":"00:00:00"},{"$f":"Time!FVF$59","v":"00:00:00"},{"$f":"Time!FVG$59","v":"00:00:00"},{"$f":"Time!FVH$59","v":"00:00:00"},{"$f":"Time!FVI$59","v":"00:00:00"},{"$f":"Time!FVJ$59","v":"00:00:00"},{"$f":"Time!FVK$59","v":"00:00:00"},{"$f":"Time!FVL$59","v":"00:00:00"},{"$f":"Time!FVM$59","v":"00:00:00"},{"$f":"Time!FVN$59","v":"00:00:00"},{"$f":"Time!FVO$59","v":"00:00:00"},{"$f":"Time!FVP$59","v":"00:00:00"},{"$f":"Time!FVQ$59","v":"00:00:00"},{"$f":"Time!FVR$59","v":"00:00:00"},{"$f":"Time!FVS$59","v":"00:00:00"},{"$f":"Time!FVT$59","v":"00:00:00"},{"$f":"Time!FVU$59","v":"00:00:00"},{"$f":"Time!FVV$59","v":"00:00:00"},{"$f":"Time!FVW$59","v":"00:00:00"},{"$f":"Time!FVX$59","v":"00:00:00"},{"$f":"Time!FVY$59","v":"00:00:00"},{"$f":"Time!FVZ$59","v":"00:00:00"},{"$f":"Time!FWA$59","v":"00:00:00"},{"$f":"Time!FWB$59","v":"00:00:00"},{"$f":"Time!FWC$59","v":"00:00:00"},{"$f":"Time!FWD$59","v":"00:00:00"},{"$f":"Time!FWE$59","v":"00:00:00"},{"$f":"Time!FWF$59","v":"00:00:00"},{"$f":"Time!FWG$59","v":"00:00:00"},{"$f":"Time!FWH$59","v":"00:00:00"},{"$f":"Time!FWI$59","v":"00:00:00"},{"$f":"Time!FWJ$59","v":"00:00:00"},{"$f":"Time!FWK$59","v":"00:00:00"},{"$f":"Time!FWL$59","v":"00:00:00"},{"$f":"Time!FWM$59","v":"00:00:00"},{"$f":"Time!FWN$59","v":"00:00:00"},{"$f":"Time!FWO$59","v":"00:00:00"},{"$f":"Time!FWP$59","v":"00:00:00"},{"$f":"Time!FWQ$59","v":"00:00:00"},{"$f":"Time!FWR$59","v":"00:00:00"},{"$f":"Time!FWS$59","v":"00:00:00"},{"$f":"Time!FWT$59","v":"00:00:00"},{"$f":"Time!FWU$59","v":"00:00:00"},{"$f":"Time!FWV$59","v":"00:00:00"},{"$f":"Time!FWW$59","v":"00:00:00"},{"$f":"Time!FWX$59","v":"00:00:00"},{"$f":"Time!FWY$59","v":"00:00:00"},{"$f":"Time!FWZ$59","v":"00:00:00"},{"$f":"Time!FXA$59","v":"00:00:00"},{"$f":"Time!FXB$59","v":"00:00:00"},{"$f":"Time!FXC$59","v":"00:00:00"},{"$f":"Time!FXD$59","v":"00:00:00"},{"$f":"Time!FXE$59","v":"00:00:00"},{"$f":"Time!FXF$59","v":"00:00:00"},{"$f":"Time!FXG$59","v":"00:00:00"},{"$f":"Time!FXH$59","v":"00:00:00"},{"$f":"Time!FXI$59","v":"00:00:00"},{"$f":"Time!FXJ$59","v":"00:00:00"},{"$f":"Time!FXK$59","v":"00:00:00"},{"$f":"Time!FXL$59","v":"00:00:00"},{"$f":"Time!FXM$59","v":"00:00:00"},{"$f":"Time!FXN$59","v":"00:00:00"},{"$f":"Time!FXO$59","v":"00:00:00"},{"$f":"Time!FXP$59","v":"00:00:00"},{"$f":"Time!FXQ$59","v":"00:00:00"},{"$f":"Time!FXR$59","v":"00:00:00"},{"$f":"Time!FXS$59","v":"00:00:00"},{"$f":"Time!FXT$59","v":"00:00:00"},{"$f":"Time!FXU$59","v":"00:00:00"},{"$f":"Time!FXV$59","v":"00:00:00"},{"$f":"Time!FXW$59","v":"00:00:00"},{"$f":"Time!FXX$59","v":"00:00:00"},{"$f":"Time!FXY$59","v":"00:00:00"},{"$f":"Time!FXZ$59","v":"00:00:00"},{"$f":"Time!FYA$59","v":"00:00:00"},{"$f":"Time!FYB$59","v":"00:00:00"},{"$f":"Time!FYC$59","v":"00:00:00"},{"$f":"Time!FYD$59","v":"00:00:00"},{"$f":"Time!FYE$59","v":"00:00:00"},{"$f":"Time!FYF$59","v":"00:00:00"},{"$f":"Time!FYG$59","v":"00:00:00"},{"$f":"Time!FYH$59","v":"00:00:00"},{"$f":"Time!FYI$59","v":"00:00:00"},{"$f":"Time!FYJ$59","v":"00:00:00"},{"$f":"Time!FYK$59","v":"00:00:00"},{"$f":"Time!FYL$59","v":"00:00:00"},{"$f":"Time!FYM$59","v":"00:00:00"},{"$f":"Time!FYN$59","v":"00:00:00"},{"$f":"Time!FYO$59","v":"00:00:00"},{"$f":"Time!FYP$59","v":"00:00:00"},{"$f":"Time!FYQ$59","v":"00:00:00"},{"$f":"Time!FYR$59","v":"00:00:00"},{"$f":"Time!FYS$59","v":"00:00:00"},{"$f":"Time!FYT$59","v":"00:00:00"},{"$f":"Time!FYU$59","v":"00:00:00"},{"$f":"Time!FYV$59","v":"00:00:00"},{"$f":"Time!FYW$59","v":"00:00:00"},{"$f":"Time!FYX$59","v":"00:00:00"},{"$f":"Time!FYY$59","v":"00:00:00"},{"$f":"Time!FYZ$59","v":"00:00:00"},{"$f":"Time!FZA$59","v":"00:00:00"},{"$f":"Time!FZB$59","v":"00:00:00"},{"$f":"Time!FZC$59","v":"00:00:00"},{"$f":"Time!FZD$59","v":"00:00:00"},{"$f":"Time!FZE$59","v":"00:00:00"},{"$f":"Time!FZF$59","v":"00:00:00"},{"$f":"Time!FZG$59","v":"00:00:00"},{"$f":"Time!FZH$59","v":"00:00:00"},{"$f":"Time!FZI$59","v":"00:00:00"},{"$f":"Time!FZJ$59","v":"00:00:00"},{"$f":"Time!FZK$59","v":"00:00:00"},{"$f":"Time!FZL$59","v":"00:00:00"},{"$f":"Time!FZM$59","v":"00:00:00"},{"$f":"Time!FZN$59","v":"00:00:00"},{"$f":"Time!FZO$59","v":"00:00:00"},{"$f":"Time!FZP$59","v":"00:00:00"},{"$f":"Time!FZQ$59","v":"00:00:00"},{"$f":"Time!FZR$59","v":"00:00:00"},{"$f":"Time!FZS$59","v":"00:00:00"},{"$f":"Time!FZT$59","v":"00:00:00"},{"$f":"Time!FZU$59","v":"00:00:00"},{"$f":"Time!FZV$59","v":"00:00:00"},{"$f":"Time!FZW$59","v":"00:00:00"},{"$f":"Time!FZX$59","v":"00:00:00"},{"$f":"Time!FZY$59","v":"00:00:00"},{"$f":"Time!FZZ$59","v":"00:00:00"},{"$f":"Time!GAA$59","v":"00:00:00"},{"$f":"Time!GAB$59","v":"00:00:00"},{"$f":"Time!GAC$59","v":"00:00:00"},{"$f":"Time!GAD$59","v":"00:00:00"},{"$f":"Time!GAE$59","v":"00:00:00"},{"$f":"Time!GAF$59","v":"00:00:00"},{"$f":"Time!GAG$59","v":"00:00:00"},{"$f":"Time!GAH$59","v":"00:00:00"},{"$f":"Time!GAI$59","v":"00:00:00"},{"$f":"Time!GAJ$59","v":"00:00:00"},{"$f":"Time!GAK$59","v":"00:00:00"},{"$f":"Time!GAL$59","v":"00:00:00"},{"$f":"Time!GAM$59","v":"00:00:00"},{"$f":"Time!GAN$59","v":"00:00:00"},{"$f":"Time!GAO$59","v":"00:00:00"},{"$f":"Time!GAP$59","v":"00:00:00"},{"$f":"Time!GAQ$59","v":"00:00:00"},{"$f":"Time!GAR$59","v":"00:00:00"},{"$f":"Time!GAS$59","v":"00:00:00"},{"$f":"Time!GAT$59","v":"00:00:00"},{"$f":"Time!GAU$59","v":"00:00:00"},{"$f":"Time!GAV$59","v":"00:00:00"},{"$f":"Time!GAW$59","v":"00:00:00"},{"$f":"Time!GAX$59","v":"00:00:00"},{"$f":"Time!GAY$59","v":"00:00:00"},{"$f":"Time!GAZ$59","v":"00:00:00"},{"$f":"Time!GBA$59","v":"00:00:00"},{"$f":"Time!GBB$59","v":"00:00:00"},{"$f":"Time!GBC$59","v":"00:00:00"},{"$f":"Time!GBD$59","v":"00:00:00"},{"$f":"Time!GBE$59","v":"00:00:00"},{"$f":"Time!GBF$59","v":"00:00:00"},{"$f":"Time!GBG$59","v":"00:00:00"},{"$f":"Time!GBH$59","v":"00:00:00"},{"$f":"Time!GBI$59","v":"00:00:00"},{"$f":"Time!GBJ$59","v":"00:00:00"},{"$f":"Time!GBK$59","v":"00:00:00"},{"$f":"Time!GBL$59","v":"00:00:00"},{"$f":"Time!GBM$59","v":"00:00:00"},{"$f":"Time!GBN$59","v":"00:00:00"},{"$f":"Time!GBO$59","v":"00:00:00"},{"$f":"Time!GBP$59","v":"00:00:00"},{"$f":"Time!GBQ$59","v":"00:00:00"},{"$f":"Time!GBR$59","v":"00:00:00"},{"$f":"Time!GBS$59","v":"00:00:00"},{"$f":"Time!GBT$59","v":"00:00:00"},{"$f":"Time!GBU$59","v":"00:00:00"},{"$f":"Time!GBV$59","v":"00:00:00"},{"$f":"Time!GBW$59","v":"00:00:00"},{"$f":"Time!GBX$59","v":"00:00:00"},{"$f":"Time!GBY$59","v":"00:00:00"},{"$f":"Time!GBZ$59","v":"00:00:00"},{"$f":"Time!GCA$59","v":"00:00:00"},{"$f":"Time!GCB$59","v":"00:00:00"},{"$f":"Time!GCC$59","v":"00:00:00"},{"$f":"Time!GCD$59","v":"00:00:00"},{"$f":"Time!GCE$59","v":"00:00:00"},{"$f":"Time!GCF$59","v":"00:00:00"},{"$f":"Time!GCG$59","v":"00:00:00"},{"$f":"Time!GCH$59","v":"00:00:00"},{"$f":"Time!GCI$59","v":"00:00:00"},{"$f":"Time!GCJ$59","v":"00:00:00"},{"$f":"Time!GCK$59","v":"00:00:00"},{"$f":"Time!GCL$59","v":"00:00:00"},{"$f":"Time!GCM$59","v":"00:00:00"},{"$f":"Time!GCN$59","v":"00:00:00"},{"$f":"Time!GCO$59","v":"00:00:00"},{"$f":"Time!GCP$59","v":"00:00:00"},{"$f":"Time!GCQ$59","v":"00:00:00"},{"$f":"Time!GCR$59","v":"00:00:00"},{"$f":"Time!GCS$59","v":"00:00:00"},{"$f":"Time!GCT$59","v":"00:00:00"},{"$f":"Time!GCU$59","v":"00:00:00"},{"$f":"Time!GCV$59","v":"00:00:00"},{"$f":"Time!GCW$59","v":"00:00:00"},{"$f":"Time!GCX$59","v":"00:00:00"},{"$f":"Time!GCY$59","v":"00:00:00"},{"$f":"Time!GCZ$59","v":"00:00:00"},{"$f":"Time!GDA$59","v":"00:00:00"},{"$f":"Time!GDB$59","v":"00:00:00"},{"$f":"Time!GDC$59","v":"00:00:00"},{"$f":"Time!GDD$59","v":"00:00:00"},{"$f":"Time!GDE$59","v":"00:00:00"},{"$f":"Time!GDF$59","v":"00:00:00"},{"$f":"Time!GDG$59","v":"00:00:00"},{"$f":"Time!GDH$59","v":"00:00:00"},{"$f":"Time!GDI$59","v":"00:00:00"},{"$f":"Time!GDJ$59","v":"00:00:00"},{"$f":"Time!GDK$59","v":"00:00:00"},{"$f":"Time!GDL$59","v":"00:00:00"},{"$f":"Time!GDM$59","v":"00:00:00"},{"$f":"Time!GDN$59","v":"00:00:00"},{"$f":"Time!GDO$59","v":"00:00:00"},{"$f":"Time!GDP$59","v":"00:00:00"},{"$f":"Time!GDQ$59","v":"00:00:00"},{"$f":"Time!GDR$59","v":"00:00:00"},{"$f":"Time!GDS$59","v":"00:00:00"},{"$f":"Time!GDT$59","v":"00:00:00"},{"$f":"Time!GDU$59","v":"00:00:00"},{"$f":"Time!GDV$59","v":"00:00:00"},{"$f":"Time!GDW$59","v":"00:00:00"},{"$f":"Time!GDX$59","v":"00:00:00"},{"$f":"Time!GDY$59","v":"00:00:00"},{"$f":"Time!GDZ$59","v":"00:00:00"},{"$f":"Time!GEA$59","v":"00:00:00"},{"$f":"Time!GEB$59","v":"00:00:00"},{"$f":"Time!GEC$59","v":"00:00:00"},{"$f":"Time!GED$59","v":"00:00:00"},{"$f":"Time!GEE$59","v":"00:00:00"},{"$f":"Time!GEF$59","v":"00:00:00"},{"$f":"Time!GEG$59","v":"00:00:00"},{"$f":"Time!GEH$59","v":"00:00:00"},{"$f":"Time!GEI$59","v":"00:00:00"},{"$f":"Time!GEJ$59","v":"00:00:00"},{"$f":"Time!GEK$59","v":"00:00:00"},{"$f":"Time!GEL$59","v":"00:00:00"},{"$f":"Time!GEM$59","v":"00:00:00"},{"$f":"Time!GEN$59","v":"00:00:00"},{"$f":"Time!GEO$59","v":"00:00:00"},{"$f":"Time!GEP$59","v":"00:00:00"},{"$f":"Time!GEQ$59","v":"00:00:00"},{"$f":"Time!GER$59","v":"00:00:00"},{"$f":"Time!GES$59","v":"00:00:00"},{"$f":"Time!GET$59","v":"00:00:00"},{"$f":"Time!GEU$59","v":"00:00:00"},{"$f":"Time!GEV$59","v":"00:00:00"},{"$f":"Time!GEW$59","v":"00:00:00"},{"$f":"Time!GEX$59","v":"00:00:00"},{"$f":"Time!GEY$59","v":"00:00:00"},{"$f":"Time!GEZ$59","v":"00:00:00"},{"$f":"Time!GFA$59","v":"00:00:00"},{"$f":"Time!GFB$59","v":"00:00:00"},{"$f":"Time!GFC$59","v":"00:00:00"},{"$f":"Time!GFD$59","v":"00:00:00"},{"$f":"Time!GFE$59","v":"00:00:00"},{"$f":"Time!GFF$59","v":"00:00:00"},{"$f":"Time!GFG$59","v":"00:00:00"},{"$f":"Time!GFH$59","v":"00:00:00"},{"$f":"Time!GFI$59","v":"00:00:00"},{"$f":"Time!GFJ$59","v":"00:00:00"},{"$f":"Time!GFK$59","v":"00:00:00"},{"$f":"Time!GFL$59","v":"00:00:00"},{"$f":"Time!GFM$59","v":"00:00:00"},{"$f":"Time!GFN$59","v":"00:00:00"},{"$f":"Time!GFO$59","v":"00:00:00"},{"$f":"Time!GFP$59","v":"00:00:00"},{"$f":"Time!GFQ$59","v":"00:00:00"},{"$f":"Time!GFR$59","v":"00:00:00"},{"$f":"Time!GFS$59","v":"00:00:00"},{"$f":"Time!GFT$59","v":"00:00:00"},{"$f":"Time!GFU$59","v":"00:00:00"},{"$f":"Time!GFV$59","v":"00:00:00"},{"$f":"Time!GFW$59","v":"00:00:00"},{"$f":"Time!GFX$59","v":"00:00:00"},{"$f":"Time!GFY$59","v":"00:00:00"},{"$f":"Time!GFZ$59","v":"00:00:00"},{"$f":"Time!GGA$59","v":"00:00:00"},{"$f":"Time!GGB$59","v":"00:00:00"},{"$f":"Time!GGC$59","v":"00:00:00"},{"$f":"Time!GGD$59","v":"00:00:00"},{"$f":"Time!GGE$59","v":"00:00:00"},{"$f":"Time!GGF$59","v":"00:00:00"},{"$f":"Time!GGG$59","v":"00:00:00"},{"$f":"Time!GGH$59","v":"00:00:00"},{"$f":"Time!GGI$59","v":"00:00:00"},{"$f":"Time!GGJ$59","v":"00:00:00"},{"$f":"Time!GGK$59","v":"00:00:00"},{"$f":"Time!GGL$59","v":"00:00:00"},{"$f":"Time!GGM$59","v":"00:00:00"},{"$f":"Time!GGN$59","v":"00:00:00"},{"$f":"Time!GGO$59","v":"00:00:00"},{"$f":"Time!GGP$59","v":"00:00:00"},{"$f":"Time!GGQ$59","v":"00:00:00"},{"$f":"Time!GGR$59","v":"00:00:00"},{"$f":"Time!GGS$59","v":"00:00:00"},{"$f":"Time!GGT$59","v":"00:00:00"},{"$f":"Time!GGU$59","v":"00:00:00"},{"$f":"Time!GGV$59","v":"00:00:00"},{"$f":"Time!GGW$59","v":"00:00:00"},{"$f":"Time!GGX$59","v":"00:00:00"},{"$f":"Time!GGY$59","v":"00:00:00"},{"$f":"Time!GGZ$59","v":"00:00:00"},{"$f":"Time!GHA$59","v":"00:00:00"},{"$f":"Time!GHB$59","v":"00:00:00"},{"$f":"Time!GHC$59","v":"00:00:00"},{"$f":"Time!GHD$59","v":"00:00:00"},{"$f":"Time!GHE$59","v":"00:00:00"},{"$f":"Time!GHF$59","v":"00:00:00"},{"$f":"Time!GHG$59","v":"00:00:00"},{"$f":"Time!GHH$59","v":"00:00:00"},{"$f":"Time!GHI$59","v":"00:00:00"},{"$f":"Time!GHJ$59","v":"00:00:00"},{"$f":"Time!GHK$59","v":"00:00:00"},{"$f":"Time!GHL$59","v":"00:00:00"},{"$f":"Time!GHM$59","v":"00:00:00"},{"$f":"Time!GHN$59","v":"00:00:00"},{"$f":"Time!GHO$59","v":"00:00:00"},{"$f":"Time!GHP$59","v":"00:00:00"},{"$f":"Time!GHQ$59","v":"00:00:00"},{"$f":"Time!GHR$59","v":"00:00:00"},{"$f":"Time!GHS$59","v":"00:00:00"},{"$f":"Time!GHT$59","v":"00:00:00"},{"$f":"Time!GHU$59","v":"00:00:00"},{"$f":"Time!GHV$59","v":"00:00:00"},{"$f":"Time!GHW$59","v":"00:00:00"},{"$f":"Time!GHX$59","v":"00:00:00"},{"$f":"Time!GHY$59","v":"00:00:00"},{"$f":"Time!GHZ$59","v":"00:00:00"},{"$f":"Time!GIA$59","v":"00:00:00"},{"$f":"Time!GIB$59","v":"00:00:00"},{"$f":"Time!GIC$59","v":"00:00:00"},{"$f":"Time!GID$59","v":"00:00:00"},{"$f":"Time!GIE$59","v":"00:00:00"},{"$f":"Time!GIF$59","v":"00:00:00"},{"$f":"Time!GIG$59","v":"00:00:00"},{"$f":"Time!GIH$59","v":"00:00:00"},{"$f":"Time!GII$59","v":"00:00:00"},{"$f":"Time!GIJ$59","v":"00:00:00"},{"$f":"Time!GIK$59","v":"00:00:00"},{"$f":"Time!GIL$59","v":"00:00:00"},{"$f":"Time!GIM$59","v":"00:00:00"},{"$f":"Time!GIN$59","v":"00:00:00"},{"$f":"Time!GIO$59","v":"00:00:00"},{"$f":"Time!GIP$59","v":"00:00:00"},{"$f":"Time!GIQ$59","v":"00:00:00"},{"$f":"Time!GIR$59","v":"00:00:00"},{"$f":"Time!GIS$59","v":"00:00:00"},{"$f":"Time!GIT$59","v":"00:00:00"},{"$f":"Time!GIU$59","v":"00:00:00"},{"$f":"Time!GIV$59","v":"00:00:00"},{"$f":"Time!GIW$59","v":"00:00:00"},{"$f":"Time!GIX$59","v":"00:00:00"},{"$f":"Time!GIY$59","v":"00:00:00"},{"$f":"Time!GIZ$59","v":"00:00:00"},{"$f":"Time!GJA$59","v":"00:00:00"},{"$f":"Time!GJB$59","v":"00:00:00"},{"$f":"Time!GJC$59","v":"00:00:00"},{"$f":"Time!GJD$59","v":"00:00:00"},{"$f":"Time!GJE$59","v":"00:00:00"},{"$f":"Time!GJF$59","v":"00:00:00"},{"$f":"Time!GJG$59","v":"00:00:00"},{"$f":"Time!GJH$59","v":"00:00:00"},{"$f":"Time!GJI$59","v":"00:00:00"},{"$f":"Time!GJJ$59","v":"00:00:00"},{"$f":"Time!GJK$59","v":"00:00:00"},{"$f":"Time!GJL$59","v":"00:00:00"},{"$f":"Time!GJM$59","v":"00:00:00"},{"$f":"Time!GJN$59","v":"00:00:00"},{"$f":"Time!GJO$59","v":"00:00:00"},{"$f":"Time!GJP$59","v":"00:00:00"},{"$f":"Time!GJQ$59","v":"00:00:00"},{"$f":"Time!GJR$59","v":"00:00:00"},{"$f":"Time!GJS$59","v":"00:00:00"},{"$f":"Time!GJT$59","v":"00:00:00"},{"$f":"Time!GJU$59","v":"00:00:00"},{"$f":"Time!GJV$59","v":"00:00:00"},{"$f":"Time!GJW$59","v":"00:00:00"},{"$f":"Time!GJX$59","v":"00:00:00"},{"$f":"Time!GJY$59","v":"00:00:00"},{"$f":"Time!GJZ$59","v":"00:00:00"},{"$f":"Time!GKA$59","v":"00:00:00"},{"$f":"Time!GKB$59","v":"00:00:00"},{"$f":"Time!GKC$59","v":"00:00:00"},{"$f":"Time!GKD$59","v":"00:00:00"},{"$f":"Time!GKE$59","v":"00:00:00"},{"$f":"Time!GKF$59","v":"00:00:00"},{"$f":"Time!GKG$59","v":"00:00:00"},{"$f":"Time!GKH$59","v":"00:00:00"},{"$f":"Time!GKI$59","v":"00:00:00"},{"$f":"Time!GKJ$59","v":"00:00:00"},{"$f":"Time!GKK$59","v":"00:00:00"},{"$f":"Time!GKL$59","v":"00:00:00"},{"$f":"Time!GKM$59","v":"00:00:00"},{"$f":"Time!GKN$59","v":"00:00:00"},{"$f":"Time!GKO$59","v":"00:00:00"},{"$f":"Time!GKP$59","v":"00:00:00"},{"$f":"Time!GKQ$59","v":"00:00:00"},{"$f":"Time!GKR$59","v":"00:00:00"},{"$f":"Time!GKS$59","v":"00:00:00"},{"$f":"Time!GKT$59","v":"00:00:00"},{"$f":"Time!GKU$59","v":"00:00:00"},{"$f":"Time!GKV$59","v":"00:00:00"},{"$f":"Time!GKW$59","v":"00:00:00"},{"$f":"Time!GKX$59","v":"00:00:00"},{"$f":"Time!GKY$59","v":"00:00:00"},{"$f":"Time!GKZ$59","v":"00:00:00"},{"$f":"Time!GLA$59","v":"00:00:00"},{"$f":"Time!GLB$59","v":"00:00:00"},{"$f":"Time!GLC$59","v":"00:00:00"},{"$f":"Time!GLD$59","v":"00:00:00"},{"$f":"Time!GLE$59","v":"00:00:00"},{"$f":"Time!GLF$59","v":"00:00:00"},{"$f":"Time!GLG$59","v":"00:00:00"},{"$f":"Time!GLH$59","v":"00:00:00"},{"$f":"Time!GLI$59","v":"00:00:00"},{"$f":"Time!GLJ$59","v":"00:00:00"},{"$f":"Time!GLK$59","v":"00:00:00"},{"$f":"Time!GLL$59","v":"00:00:00"},{"$f":"Time!GLM$59","v":"00:00:00"},{"$f":"Time!GLN$59","v":"00:00:00"},{"$f":"Time!GLO$59","v":"00:00:00"},{"$f":"Time!GLP$59","v":"00:00:00"},{"$f":"Time!GLQ$59","v":"00:00:00"},{"$f":"Time!GLR$59","v":"00:00:00"},{"$f":"Time!GLS$59","v":"00:00:00"},{"$f":"Time!GLT$59","v":"00:00:00"},{"$f":"Time!GLU$59","v":"00:00:00"},{"$f":"Time!GLV$59","v":"00:00:00"},{"$f":"Time!GLW$59","v":"00:00:00"},{"$f":"Time!GLX$59","v":"00:00:00"},{"$f":"Time!GLY$59","v":"00:00:00"},{"$f":"Time!GLZ$59","v":"00:00:00"},{"$f":"Time!GMA$59","v":"00:00:00"},{"$f":"Time!GMB$59","v":"00:00:00"},{"$f":"Time!GMC$59","v":"00:00:00"},{"$f":"Time!GMD$59","v":"00:00:00"},{"$f":"Time!GME$59","v":"00:00:00"},{"$f":"Time!GMF$59","v":"00:00:00"},{"$f":"Time!GMG$59","v":"00:00:00"},{"$f":"Time!GMH$59","v":"00:00:00"},{"$f":"Time!GMI$59","v":"00:00:00"},{"$f":"Time!GMJ$59","v":"00:00:00"},{"$f":"Time!GMK$59","v":"00:00:00"},{"$f":"Time!GML$59","v":"00:00:00"},{"$f":"Time!GMM$59","v":"00:00:00"},{"$f":"Time!GMN$59","v":"00:00:00"},{"$f":"Time!GMO$59","v":"00:00:00"},{"$f":"Time!GMP$59","v":"00:00:00"},{"$f":"Time!GMQ$59","v":"00:00:00"},{"$f":"Time!GMR$59","v":"00:00:00"},{"$f":"Time!GMS$59","v":"00:00:00"},{"$f":"Time!GMT$59","v":"00:00:00"},{"$f":"Time!GMU$59","v":"00:00:00"},{"$f":"Time!GMV$59","v":"00:00:00"},{"$f":"Time!GMW$59","v":"00:00:00"},{"$f":"Time!GMX$59","v":"00:00:00"},{"$f":"Time!GMY$59","v":"00:00:00"},{"$f":"Time!GMZ$59","v":"00:00:00"},{"$f":"Time!GNA$59","v":"00:00:00"},{"$f":"Time!GNB$59","v":"00:00:00"},{"$f":"Time!GNC$59","v":"00:00:00"},{"$f":"Time!GND$59","v":"00:00:00"},{"$f":"Time!GNE$59","v":"00:00:00"},{"$f":"Time!GNF$59","v":"00:00:00"},{"$f":"Time!GNG$59","v":"00:00:00"},{"$f":"Time!GNH$59","v":"00:00:00"},{"$f":"Time!GNI$59","v":"00:00:00"},{"$f":"Time!GNJ$59","v":"00:00:00"},{"$f":"Time!GNK$59","v":"00:00:00"},{"$f":"Time!GNL$59","v":"00:00:00"},{"$f":"Time!GNM$59","v":"00:00:00"},{"$f":"Time!GNN$59","v":"00:00:00"},{"$f":"Time!GNO$59","v":"00:00:00"},{"$f":"Time!GNP$59","v":"00:00:00"},{"$f":"Time!GNQ$59","v":"00:00:00"},{"$f":"Time!GNR$59","v":"00:00:00"},{"$f":"Time!GNS$59","v":"00:00:00"},{"$f":"Time!GNT$59","v":"00:00:00"},{"$f":"Time!GNU$59","v":"00:00:00"},{"$f":"Time!GNV$59","v":"00:00:00"},{"$f":"Time!GNW$59","v":"00:00:00"},{"$f":"Time!GNX$59","v":"00:00:00"},{"$f":"Time!GNY$59","v":"00:00:00"},{"$f":"Time!GNZ$59","v":"00:00:00"},{"$f":"Time!GOA$59","v":"00:00:00"},{"$f":"Time!GOB$59","v":"00:00:00"},{"$f":"Time!GOC$59","v":"00:00:00"},{"$f":"Time!GOD$59","v":"00:00:00"},{"$f":"Time!GOE$59","v":"00:00:00"},{"$f":"Time!GOF$59","v":"00:00:00"},{"$f":"Time!GOG$59","v":"00:00:00"},{"$f":"Time!GOH$59","v":"00:00:00"},{"$f":"Time!GOI$59","v":"00:00:00"},{"$f":"Time!GOJ$59","v":"00:00:00"},{"$f":"Time!GOK$59","v":"00:00:00"},{"$f":"Time!GOL$59","v":"00:00:00"},{"$f":"Time!GOM$59","v":"00:00:00"},{"$f":"Time!GON$59","v":"00:00:00"},{"$f":"Time!GOO$59","v":"00:00:00"},{"$f":"Time!GOP$59","v":"00:00:00"},{"$f":"Time!GOQ$59","v":"00:00:00"},{"$f":"Time!GOR$59","v":"00:00:00"},{"$f":"Time!GOS$59","v":"00:00:00"},{"$f":"Time!GOT$59","v":"00:00:00"},{"$f":"Time!GOU$59","v":"00:00:00"},{"$f":"Time!GOV$59","v":"00:00:00"},{"$f":"Time!GOW$59","v":"00:00:00"},{"$f":"Time!GOX$59","v":"00:00:00"},{"$f":"Time!GOY$59","v":"00:00:00"},{"$f":"Time!GOZ$59","v":"00:00:00"},{"$f":"Time!GPA$59","v":"00:00:00"},{"$f":"Time!GPB$59","v":"00:00:00"},{"$f":"Time!GPC$59","v":"00:00:00"},{"$f":"Time!GPD$59","v":"00:00:00"},{"$f":"Time!GPE$59","v":"00:00:00"},{"$f":"Time!GPF$59","v":"00:00:00"},{"$f":"Time!GPG$59","v":"00:00:00"},{"$f":"Time!GPH$59","v":"00:00:00"},{"$f":"Time!GPI$59","v":"00:00:00"},{"$f":"Time!GPJ$59","v":"00:00:00"},{"$f":"Time!GPK$59","v":"00:00:00"},{"$f":"Time!GPL$59","v":"00:00:00"},{"$f":"Time!GPM$59","v":"00:00:00"},{"$f":"Time!GPN$59","v":"00:00:00"},{"$f":"Time!GPO$59","v":"00:00:00"},{"$f":"Time!GPP$59","v":"00:00:00"},{"$f":"Time!GPQ$59","v":"00:00:00"},{"$f":"Time!GPR$59","v":"00:00:00"},{"$f":"Time!GPS$59","v":"00:00:00"},{"$f":"Time!GPT$59","v":"00:00:00"},{"$f":"Time!GPU$59","v":"00:00:00"},{"$f":"Time!GPV$59","v":"00:00:00"},{"$f":"Time!GPW$59","v":"00:00:00"},{"$f":"Time!GPX$59","v":"00:00:00"},{"$f":"Time!GPY$59","v":"00:00:00"},{"$f":"Time!GPZ$59","v":"00:00:00"},{"$f":"Time!GQA$59","v":"00:00:00"},{"$f":"Time!GQB$59","v":"00:00:00"},{"$f":"Time!GQC$59","v":"00:00:00"},{"$f":"Time!GQD$59","v":"00:00:00"},{"$f":"Time!GQE$59","v":"00:00:00"},{"$f":"Time!GQF$59","v":"00:00:00"},{"$f":"Time!GQG$59","v":"00:00:00"},{"$f":"Time!GQH$59","v":"00:00:00"},{"$f":"Time!GQI$59","v":"00:00:00"},{"$f":"Time!GQJ$59","v":"00:00:00"},{"$f":"Time!GQK$59","v":"00:00:00"},{"$f":"Time!GQL$59","v":"00:00:00"},{"$f":"Time!GQM$59","v":"00:00:00"},{"$f":"Time!GQN$59","v":"00:00:00"},{"$f":"Time!GQO$59","v":"00:00:00"},{"$f":"Time!GQP$59","v":"00:00:00"},{"$f":"Time!GQQ$59","v":"00:00:00"},{"$f":"Time!GQR$59","v":"00:00:00"},{"$f":"Time!GQS$59","v":"00:00:00"},{"$f":"Time!GQT$59","v":"00:00:00"},{"$f":"Time!GQU$59","v":"00:00:00"},{"$f":"Time!GQV$59","v":"00:00:00"},{"$f":"Time!GQW$59","v":"00:00:00"},{"$f":"Time!GQX$59","v":"00:00:00"},{"$f":"Time!GQY$59","v":"00:00:00"},{"$f":"Time!GQZ$59","v":"00:00:00"},{"$f":"Time!GRA$59","v":"00:00:00"},{"$f":"Time!GRB$59","v":"00:00:00"},{"$f":"Time!GRC$59","v":"00:00:00"},{"$f":"Time!GRD$59","v":"00:00:00"},{"$f":"Time!GRE$59","v":"00:00:00"},{"$f":"Time!GRF$59","v":"00:00:00"},{"$f":"Time!GRG$59","v":"00:00:00"},{"$f":"Time!GRH$59","v":"00:00:00"},{"$f":"Time!GRI$59","v":"00:00:00"},{"$f":"Time!GRJ$59","v":"00:00:00"},{"$f":"Time!GRK$59","v":"00:00:00"},{"$f":"Time!GRL$59","v":"00:00:00"},{"$f":"Time!GRM$59","v":"00:00:00"},{"$f":"Time!GRN$59","v":"00:00:00"},{"$f":"Time!GRO$59","v":"00:00:00"},{"$f":"Time!GRP$59","v":"00:00:00"},{"$f":"Time!GRQ$59","v":"00:00:00"},{"$f":"Time!GRR$59","v":"00:00:00"},{"$f":"Time!GRS$59","v":"00:00:00"},{"$f":"Time!GRT$59","v":"00:00:00"},{"$f":"Time!GRU$59","v":"00:00:00"},{"$f":"Time!GRV$59","v":"00:00:00"},{"$f":"Time!GRW$59","v":"00:00:00"},{"$f":"Time!GRX$59","v":"00:00:00"},{"$f":"Time!GRY$59","v":"00:00:00"},{"$f":"Time!GRZ$59","v":"00:00:00"},{"$f":"Time!GSA$59","v":"00:00:00"},{"$f":"Time!GSB$59","v":"00:00:00"},{"$f":"Time!GSC$59","v":"00:00:00"},{"$f":"Time!GSD$59","v":"00:00:00"},{"$f":"Time!GSE$59","v":"00:00:00"},{"$f":"Time!GSF$59","v":"00:00:00"},{"$f":"Time!GSG$59","v":"00:00:00"},{"$f":"Time!GSH$59","v":"00:00:00"},{"$f":"Time!GSI$59","v":"00:00:00"},{"$f":"Time!GSJ$59","v":"00:00:00"},{"$f":"Time!GSK$59","v":"00:00:00"},{"$f":"Time!GSL$59","v":"00:00:00"},{"$f":"Time!GSM$59","v":"00:00:00"},{"$f":"Time!GSN$59","v":"00:00:00"},{"$f":"Time!GSO$59","v":"00:00:00"},{"$f":"Time!GSP$59","v":"00:00:00"},{"$f":"Time!GSQ$59","v":"00:00:00"},{"$f":"Time!GSR$59","v":"00:00:00"},{"$f":"Time!GSS$59","v":"00:00:00"},{"$f":"Time!GST$59","v":"00:00:00"},{"$f":"Time!GSU$59","v":"00:00:00"},{"$f":"Time!GSV$59","v":"00:00:00"},{"$f":"Time!GSW$59","v":"00:00:00"},{"$f":"Time!GSX$59","v":"00:00:00"},{"$f":"Time!GSY$59","v":"00:00:00"},{"$f":"Time!GSZ$59","v":"00:00:00"},{"$f":"Time!GTA$59","v":"00:00:00"},{"$f":"Time!GTB$59","v":"00:00:00"},{"$f":"Time!GTC$59","v":"00:00:00"},{"$f":"Time!GTD$59","v":"00:00:00"},{"$f":"Time!GTE$59","v":"00:00:00"},{"$f":"Time!GTF$59","v":"00:00:00"},{"$f":"Time!GTG$59","v":"00:00:00"},{"$f":"Time!GTH$59","v":"00:00:00"},{"$f":"Time!GTI$59","v":"00:00:00"},{"$f":"Time!GTJ$59","v":"00:00:00"},{"$f":"Time!GTK$59","v":"00:00:00"},{"$f":"Time!GTL$59","v":"00:00:00"},{"$f":"Time!GTM$59","v":"00:00:00"},{"$f":"Time!GTN$59","v":"00:00:00"},{"$f":"Time!GTO$59","v":"00:00:00"},{"$f":"Time!GTP$59","v":"00:00:00"},{"$f":"Time!GTQ$59","v":"00:00:00"},{"$f":"Time!GTR$59","v":"00:00:00"},{"$f":"Time!GTS$59","v":"00:00:00"},{"$f":"Time!GTT$59","v":"00:00:00"},{"$f":"Time!GTU$59","v":"00:00:00"},{"$f":"Time!GTV$59","v":"00:00:00"},{"$f":"Time!GTW$59","v":"00:00:00"},{"$f":"Time!GTX$59","v":"00:00:00"},{"$f":"Time!GTY$59","v":"00:00:00"},{"$f":"Time!GTZ$59","v":"00:00:00"},{"$f":"Time!GUA$59","v":"00:00:00"},{"$f":"Time!GUB$59","v":"00:00:00"},{"$f":"Time!GUC$59","v":"00:00:00"},{"$f":"Time!GUD$59","v":"00:00:00"},{"$f":"Time!GUE$59","v":"00:00:00"},{"$f":"Time!GUF$59","v":"00:00:00"},{"$f":"Time!GUG$59","v":"00:00:00"},{"$f":"Time!GUH$59","v":"00:00:00"},{"$f":"Time!GUI$59","v":"00:00:00"},{"$f":"Time!GUJ$59","v":"00:00:00"},{"$f":"Time!GUK$59","v":"00:00:00"},{"$f":"Time!GUL$59","v":"00:00:00"},{"$f":"Time!GUM$59","v":"00:00:00"},{"$f":"Time!GUN$59","v":"00:00:00"},{"$f":"Time!GUO$59","v":"00:00:00"},{"$f":"Time!GUP$59","v":"00:00:00"},{"$f":"Time!GUQ$59","v":"00:00:00"},{"$f":"Time!GUR$59","v":"00:00:00"},{"$f":"Time!GUS$59","v":"00:00:00"},{"$f":"Time!GUT$59","v":"00:00:00"},{"$f":"Time!GUU$59","v":"00:00:00"},{"$f":"Time!GUV$59","v":"00:00:00"},{"$f":"Time!GUW$59","v":"00:00:00"},{"$f":"Time!GUX$59","v":"00:00:00"},{"$f":"Time!GUY$59","v":"00:00:00"},{"$f":"Time!GUZ$59","v":"00:00:00"},{"$f":"Time!GVA$59","v":"00:00:00"},{"$f":"Time!GVB$59","v":"00:00:00"},{"$f":"Time!GVC$59","v":"00:00:00"},{"$f":"Time!GVD$59","v":"00:00:00"},{"$f":"Time!GVE$59","v":"00:00:00"},{"$f":"Time!GVF$59","v":"00:00:00"},{"$f":"Time!GVG$59","v":"00:00:00"},{"$f":"Time!GVH$59","v":"00:00:00"},{"$f":"Time!GVI$59","v":"00:00:00"},{"$f":"Time!GVJ$59","v":"00:00:00"},{"$f":"Time!GVK$59","v":"00:00:00"},{"$f":"Time!GVL$59","v":"00:00:00"},{"$f":"Time!GVM$59","v":"00:00:00"},{"$f":"Time!GVN$59","v":"00:00:00"},{"$f":"Time!GVO$59","v":"00:00:00"},{"$f":"Time!GVP$59","v":"00:00:00"},{"$f":"Time!GVQ$59","v":"00:00:00"},{"$f":"Time!GVR$59","v":"00:00:00"},{"$f":"Time!GVS$59","v":"00:00:00"},{"$f":"Time!GVT$59","v":"00:00:00"},{"$f":"Time!GVU$59","v":"00:00:00"},{"$f":"Time!GVV$59","v":"00:00:00"},{"$f":"Time!GVW$59","v":"00:00:00"},{"$f":"Time!GVX$59","v":"00:00:00"},{"$f":"Time!GVY$59","v":"00:00:00"},{"$f":"Time!GVZ$59","v":"00:00:00"},{"$f":"Time!GWA$59","v":"00:00:00"},{"$f":"Time!GWB$59","v":"00:00:00"},{"$f":"Time!GWC$59","v":"00:00:00"},{"$f":"Time!GWD$59","v":"00:00:00"},{"$f":"Time!GWE$59","v":"00:00:00"},{"$f":"Time!GWF$59","v":"00:00:00"},{"$f":"Time!GWG$59","v":"00:00:00"},{"$f":"Time!GWH$59","v":"00:00:00"},{"$f":"Time!GWI$59","v":"00:00:00"},{"$f":"Time!GWJ$59","v":"00:00:00"},{"$f":"Time!GWK$59","v":"00:00:00"},{"$f":"Time!GWL$59","v":"00:00:00"},{"$f":"Time!GWM$59","v":"00:00:00"},{"$f":"Time!GWN$59","v":"00:00:00"},{"$f":"Time!GWO$59","v":"00:00:00"},{"$f":"Time!GWP$59","v":"00:00:00"},{"$f":"Time!GWQ$59","v":"00:00:00"},{"$f":"Time!GWR$59","v":"00:00:00"},{"$f":"Time!GWS$59","v":"00:00:00"},{"$f":"Time!GWT$59","v":"00:00:00"},{"$f":"Time!GWU$59","v":"00:00:00"},{"$f":"Time!GWV$59","v":"00:00:00"},{"$f":"Time!GWW$59","v":"00:00:00"},{"$f":"Time!GWX$59","v":"00:00:00"},{"$f":"Time!GWY$59","v":"00:00:00"},{"$f":"Time!GWZ$59","v":"00:00:00"},{"$f":"Time!GXA$59","v":"00:00:00"},{"$f":"Time!GXB$59","v":"00:00:00"},{"$f":"Time!GXC$59","v":"00:00:00"},{"$f":"Time!GXD$59","v":"00:00:00"},{"$f":"Time!GXE$59","v":"00:00:00"},{"$f":"Time!GXF$59","v":"00:00:00"},{"$f":"Time!GXG$59","v":"00:00:00"},{"$f":"Time!GXH$59","v":"00:00:00"},{"$f":"Time!GXI$59","v":"00:00:00"},{"$f":"Time!GXJ$59","v":"00:00:00"},{"$f":"Time!GXK$59","v":"00:00:00"},{"$f":"Time!GXL$59","v":"00:00:00"},{"$f":"Time!GXM$59","v":"00:00:00"},{"$f":"Time!GXN$59","v":"00:00:00"},{"$f":"Time!GXO$59","v":"00:00:00"},{"$f":"Time!GXP$59","v":"00:00:00"},{"$f":"Time!GXQ$59","v":"00:00:00"},{"$f":"Time!GXR$59","v":"00:00:00"},{"$f":"Time!GXS$59","v":"00:00:00"},{"$f":"Time!GXT$59","v":"00:00:00"},{"$f":"Time!GXU$59","v":"00:00:00"},{"$f":"Time!GXV$59","v":"00:00:00"},{"$f":"Time!GXW$59","v":"00:00:00"},{"$f":"Time!GXX$59","v":"00:00:00"},{"$f":"Time!GXY$59","v":"00:00:00"},{"$f":"Time!GXZ$59","v":"00:00:00"},{"$f":"Time!GYA$59","v":"00:00:00"},{"$f":"Time!GYB$59","v":"00:00:00"},{"$f":"Time!GYC$59","v":"00:00:00"},{"$f":"Time!GYD$59","v":"00:00:00"},{"$f":"Time!GYE$59","v":"00:00:00"},{"$f":"Time!GYF$59","v":"00:00:00"},{"$f":"Time!GYG$59","v":"00:00:00"},{"$f":"Time!GYH$59","v":"00:00:00"},{"$f":"Time!GYI$59","v":"00:00:00"},{"$f":"Time!GYJ$59","v":"00:00:00"},{"$f":"Time!GYK$59","v":"00:00:00"},{"$f":"Time!GYL$59","v":"00:00:00"},{"$f":"Time!GYM$59","v":"00:00:00"},{"$f":"Time!GYN$59","v":"00:00:00"},{"$f":"Time!GYO$59","v":"00:00:00"},{"$f":"Time!GYP$59","v":"00:00:00"},{"$f":"Time!GYQ$59","v":"00:00:00"},{"$f":"Time!GYR$59","v":"00:00:00"},{"$f":"Time!GYS$59","v":"00:00:00"},{"$f":"Time!GYT$59","v":"00:00:00"},{"$f":"Time!GYU$59","v":"00:00:00"},{"$f":"Time!GYV$59","v":"00:00:00"},{"$f":"Time!GYW$59","v":"00:00:00"},{"$f":"Time!GYX$59","v":"00:00:00"},{"$f":"Time!GYY$59","v":"00:00:00"},{"$f":"Time!GYZ$59","v":"00:00:00"},{"$f":"Time!GZA$59","v":"00:00:00"},{"$f":"Time!GZB$59","v":"00:00:00"},{"$f":"Time!GZC$59","v":"00:00:00"},{"$f":"Time!GZD$59","v":"00:00:00"},{"$f":"Time!GZE$59","v":"00:00:00"},{"$f":"Time!GZF$59","v":"00:00:00"},{"$f":"Time!GZG$59","v":"00:00:00"},{"$f":"Time!GZH$59","v":"00:00:00"},{"$f":"Time!GZI$59","v":"00:00:00"},{"$f":"Time!GZJ$59","v":"00:00:00"},{"$f":"Time!GZK$59","v":"00:00:00"},{"$f":"Time!GZL$59","v":"00:00:00"},{"$f":"Time!GZM$59","v":"00:00:00"},{"$f":"Time!GZN$59","v":"00:00:00"},{"$f":"Time!GZO$59","v":"00:00:00"},{"$f":"Time!GZP$59","v":"00:00:00"},{"$f":"Time!GZQ$59","v":"00:00:00"},{"$f":"Time!GZR$59","v":"00:00:00"},{"$f":"Time!GZS$59","v":"00:00:00"},{"$f":"Time!GZT$59","v":"00:00:00"},{"$f":"Time!GZU$59","v":"00:00:00"},{"$f":"Time!GZV$59","v":"00:00:00"},{"$f":"Time!GZW$59","v":"00:00:00"},{"$f":"Time!GZX$59","v":"00:00:00"},{"$f":"Time!GZY$59","v":"00:00:00"},{"$f":"Time!GZZ$59","v":"00:00:00"},{"$f":"Time!HAA$59","v":"00:00:00"},{"$f":"Time!HAB$59","v":"00:00:00"},{"$f":"Time!HAC$59","v":"00:00:00"},{"$f":"Time!HAD$59","v":"00:00:00"},{"$f":"Time!HAE$59","v":"00:00:00"},{"$f":"Time!HAF$59","v":"00:00:00"},{"$f":"Time!HAG$59","v":"00:00:00"},{"$f":"Time!HAH$59","v":"00:00:00"},{"$f":"Time!HAI$59","v":"00:00:00"},{"$f":"Time!HAJ$59","v":"00:00:00"},{"$f":"Time!HAK$59","v":"00:00:00"},{"$f":"Time!HAL$59","v":"00:00:00"},{"$f":"Time!HAM$59","v":"00:00:00"},{"$f":"Time!HAN$59","v":"00:00:00"},{"$f":"Time!HAO$59","v":"00:00:00"},{"$f":"Time!HAP$59","v":"00:00:00"},{"$f":"Time!HAQ$59","v":"00:00:00"},{"$f":"Time!HAR$59","v":"00:00:00"},{"$f":"Time!HAS$59","v":"00:00:00"},{"$f":"Time!HAT$59","v":"00:00:00"},{"$f":"Time!HAU$59","v":"00:00:00"},{"$f":"Time!HAV$59","v":"00:00:00"},{"$f":"Time!HAW$59","v":"00:00:00"},{"$f":"Time!HAX$59","v":"00:00:00"},{"$f":"Time!HAY$59","v":"00:00:00"},{"$f":"Time!HAZ$59","v":"00:00:00"},{"$f":"Time!HBA$59","v":"00:00:00"},{"$f":"Time!HBB$59","v":"00:00:00"},{"$f":"Time!HBC$59","v":"00:00:00"},{"$f":"Time!HBD$59","v":"00:00:00"},{"$f":"Time!HBE$59","v":"00:00:00"},{"$f":"Time!HBF$59","v":"00:00:00"},{"$f":"Time!HBG$59","v":"00:00:00"},{"$f":"Time!HBH$59","v":"00:00:00"},{"$f":"Time!HBI$59","v":"00:00:00"},{"$f":"Time!HBJ$59","v":"00:00:00"},{"$f":"Time!HBK$59","v":"00:00:00"},{"$f":"Time!HBL$59","v":"00:00:00"},{"$f":"Time!HBM$59","v":"00:00:00"},{"$f":"Time!HBN$59","v":"00:00:00"},{"$f":"Time!HBO$59","v":"00:00:00"},{"$f":"Time!HBP$59","v":"00:00:00"},{"$f":"Time!HBQ$59","v":"00:00:00"},{"$f":"Time!HBR$59","v":"00:00:00"},{"$f":"Time!HBS$59","v":"00:00:00"},{"$f":"Time!HBT$59","v":"00:00:00"},{"$f":"Time!HBU$59","v":"00:00:00"},{"$f":"Time!HBV$59","v":"00:00:00"},{"$f":"Time!HBW$59","v":"00:00:00"},{"$f":"Time!HBX$59","v":"00:00:00"},{"$f":"Time!HBY$59","v":"00:00:00"},{"$f":"Time!HBZ$59","v":"00:00:00"},{"$f":"Time!HCA$59","v":"00:00:00"},{"$f":"Time!HCB$59","v":"00:00:00"},{"$f":"Time!HCC$59","v":"00:00:00"},{"$f":"Time!HCD$59","v":"00:00:00"},{"$f":"Time!HCE$59","v":"00:00:00"},{"$f":"Time!HCF$59","v":"00:00:00"},{"$f":"Time!HCG$59","v":"00:00:00"},{"$f":"Time!HCH$59","v":"00:00:00"},{"$f":"Time!HCI$59","v":"00:00:00"},{"$f":"Time!HCJ$59","v":"00:00:00"},{"$f":"Time!HCK$59","v":"00:00:00"},{"$f":"Time!HCL$59","v":"00:00:00"},{"$f":"Time!HCM$59","v":"00:00:00"},{"$f":"Time!HCN$59","v":"00:00:00"},{"$f":"Time!HCO$59","v":"00:00:00"},{"$f":"Time!HCP$59","v":"00:00:00"},{"$f":"Time!HCQ$59","v":"00:00:00"},{"$f":"Time!HCR$59","v":"00:00:00"},{"$f":"Time!HCS$59","v":"00:00:00"},{"$f":"Time!HCT$59","v":"00:00:00"},{"$f":"Time!HCU$59","v":"00:00:00"},{"$f":"Time!HCV$59","v":"00:00:00"},{"$f":"Time!HCW$59","v":"00:00:00"},{"$f":"Time!HCX$59","v":"00:00:00"},{"$f":"Time!HCY$59","v":"00:00:00"},{"$f":"Time!HCZ$59","v":"00:00:00"},{"$f":"Time!HDA$59","v":"00:00:00"},{"$f":"Time!HDB$59","v":"00:00:00"},{"$f":"Time!HDC$59","v":"00:00:00"},{"$f":"Time!HDD$59","v":"00:00:00"},{"$f":"Time!HDE$59","v":"00:00:00"},{"$f":"Time!HDF$59","v":"00:00:00"},{"$f":"Time!HDG$59","v":"00:00:00"},{"$f":"Time!HDH$59","v":"00:00:00"},{"$f":"Time!HDI$59","v":"00:00:00"},{"$f":"Time!HDJ$59","v":"00:00:00"},{"$f":"Time!HDK$59","v":"00:00:00"},{"$f":"Time!HDL$59","v":"00:00:00"},{"$f":"Time!HDM$59","v":"00:00:00"},{"$f":"Time!HDN$59","v":"00:00:00"},{"$f":"Time!HDO$59","v":"00:00:00"},{"$f":"Time!HDP$59","v":"00:00:00"},{"$f":"Time!HDQ$59","v":"00:00:00"},{"$f":"Time!HDR$59","v":"00:00:00"},{"$f":"Time!HDS$59","v":"00:00:00"},{"$f":"Time!HDT$59","v":"00:00:00"},{"$f":"Time!HDU$59","v":"00:00:00"},{"$f":"Time!HDV$59","v":"00:00:00"},{"$f":"Time!HDW$59","v":"00:00:00"},{"$f":"Time!HDX$59","v":"00:00:00"},{"$f":"Time!HDY$59","v":"00:00:00"},{"$f":"Time!HDZ$59","v":"00:00:00"},{"$f":"Time!HEA$59","v":"00:00:00"},{"$f":"Time!HEB$59","v":"00:00:00"},{"$f":"Time!HEC$59","v":"00:00:00"},{"$f":"Time!HED$59","v":"00:00:00"},{"$f":"Time!HEE$59","v":"00:00:00"},{"$f":"Time!HEF$59","v":"00:00:00"},{"$f":"Time!HEG$59","v":"00:00:00"},{"$f":"Time!HEH$59","v":"00:00:00"},{"$f":"Time!HEI$59","v":"00:00:00"},{"$f":"Time!HEJ$59","v":"00:00:00"},{"$f":"Time!HEK$59","v":"00:00:00"},{"$f":"Time!HEL$59","v":"00:00:00"},{"$f":"Time!HEM$59","v":"00:00:00"},{"$f":"Time!HEN$59","v":"00:00:00"},{"$f":"Time!HEO$59","v":"00:00:00"},{"$f":"Time!HEP$59","v":"00:00:00"},{"$f":"Time!HEQ$59","v":"00:00:00"},{"$f":"Time!HER$59","v":"00:00:00"},{"$f":"Time!HES$59","v":"00:00:00"},{"$f":"Time!HET$59","v":"00:00:00"},{"$f":"Time!HEU$59","v":"00:00:00"},{"$f":"Time!HEV$59","v":"00:00:00"},{"$f":"Time!HEW$59","v":"00:00:00"},{"$f":"Time!HEX$59","v":"00:00:00"},{"$f":"Time!HEY$59","v":"00:00:00"},{"$f":"Time!HEZ$59","v":"00:00:00"},{"$f":"Time!HFA$59","v":"00:00:00"},{"$f":"Time!HFB$59","v":"00:00:00"},{"$f":"Time!HFC$59","v":"00:00:00"},{"$f":"Time!HFD$59","v":"00:00:00"},{"$f":"Time!HFE$59","v":"00:00:00"},{"$f":"Time!HFF$59","v":"00:00:00"},{"$f":"Time!HFG$59","v":"00:00:00"},{"$f":"Time!HFH$59","v":"00:00:00"},{"$f":"Time!HFI$59","v":"00:00:00"},{"$f":"Time!HFJ$59","v":"00:00:00"},{"$f":"Time!HFK$59","v":"00:00:00"},{"$f":"Time!HFL$59","v":"00:00:00"},{"$f":"Time!HFM$59","v":"00:00:00"},{"$f":"Time!HFN$59","v":"00:00:00"},{"$f":"Time!HFO$59","v":"00:00:00"},{"$f":"Time!HFP$59","v":"00:00:00"},{"$f":"Time!HFQ$59","v":"00:00:00"},{"$f":"Time!HFR$59","v":"00:00:00"},{"$f":"Time!HFS$59","v":"00:00:00"},{"$f":"Time!HFT$59","v":"00:00:00"},{"$f":"Time!HFU$59","v":"00:00:00"},{"$f":"Time!HFV$59","v":"00:00:00"},{"$f":"Time!HFW$59","v":"00:00:00"},{"$f":"Time!HFX$59","v":"00:00:00"},{"$f":"Time!HFY$59","v":"00:00:00"},{"$f":"Time!HFZ$59","v":"00:00:00"},{"$f":"Time!HGA$59","v":"00:00:00"},{"$f":"Time!HGB$59","v":"00:00:00"},{"$f":"Time!HGC$59","v":"00:00:00"},{"$f":"Time!HGD$59","v":"00:00:00"},{"$f":"Time!HGE$59","v":"00:00:00"},{"$f":"Time!HGF$59","v":"00:00:00"},{"$f":"Time!HGG$59","v":"00:00:00"},{"$f":"Time!HGH$59","v":"00:00:00"},{"$f":"Time!HGI$59","v":"00:00:00"},{"$f":"Time!HGJ$59","v":"00:00:00"},{"$f":"Time!HGK$59","v":"00:00:00"},{"$f":"Time!HGL$59","v":"00:00:00"},{"$f":"Time!HGM$59","v":"00:00:00"},{"$f":"Time!HGN$59","v":"00:00:00"},{"$f":"Time!HGO$59","v":"00:00:00"},{"$f":"Time!HGP$59","v":"00:00:00"},{"$f":"Time!HGQ$59","v":"00:00:00"},{"$f":"Time!HGR$59","v":"00:00:00"},{"$f":"Time!HGS$59","v":"00:00:00"},{"$f":"Time!HGT$59","v":"00:00:00"},{"$f":"Time!HGU$59","v":"00:00:00"},{"$f":"Time!HGV$59","v":"00:00:00"},{"$f":"Time!HGW$59","v":"00:00:00"},{"$f":"Time!HGX$59","v":"00:00:00"},{"$f":"Time!HGY$59","v":"00:00:00"},{"$f":"Time!HGZ$59","v":"00:00:00"},{"$f":"Time!HHA$59","v":"00:00:00"},{"$f":"Time!HHB$59","v":"00:00:00"},{"$f":"Time!HHC$59","v":"00:00:00"},{"$f":"Time!HHD$59","v":"00:00:00"},{"$f":"Time!HHE$59","v":"00:00:00"},{"$f":"Time!HHF$59","v":"00:00:00"},{"$f":"Time!HHG$59","v":"00:00:00"},{"$f":"Time!HHH$59","v":"00:00:00"},{"$f":"Time!HHI$59","v":"00:00:00"},{"$f":"Time!HHJ$59","v":"00:00:00"},{"$f":"Time!HHK$59","v":"00:00:00"},{"$f":"Time!HHL$59","v":"00:00:00"},{"$f":"Time!HHM$59","v":"00:00:00"},{"$f":"Time!HHN$59","v":"00:00:00"},{"$f":"Time!HHO$59","v":"00:00:00"},{"$f":"Time!HHP$59","v":"00:00:00"},{"$f":"Time!HHQ$59","v":"00:00:00"},{"$f":"Time!HHR$59","v":"00:00:00"},{"$f":"Time!HHS$59","v":"00:00:00"},{"$f":"Time!HHT$59","v":"00:00:00"},{"$f":"Time!HHU$59","v":"00:00:00"},{"$f":"Time!HHV$59","v":"00:00:00"},{"$f":"Time!HHW$59","v":"00:00:00"},{"$f":"Time!HHX$59","v":"00:00:00"},{"$f":"Time!HHY$59","v":"00:00:00"},{"$f":"Time!HHZ$59","v":"00:00:00"},{"$f":"Time!HIA$59","v":"00:00:00"},{"$f":"Time!HIB$59","v":"00:00:00"},{"$f":"Time!HIC$59","v":"00:00:00"},{"$f":"Time!HID$59","v":"00:00:00"},{"$f":"Time!HIE$59","v":"00:00:00"},{"$f":"Time!HIF$59","v":"00:00:00"},{"$f":"Time!HIG$59","v":"00:00:00"},{"$f":"Time!HIH$59","v":"00:00:00"},{"$f":"Time!HII$59","v":"00:00:00"},{"$f":"Time!HIJ$59","v":"00:00:00"},{"$f":"Time!HIK$59","v":"00:00:00"},{"$f":"Time!HIL$59","v":"00:00:00"},{"$f":"Time!HIM$59","v":"00:00:00"},{"$f":"Time!HIN$59","v":"00:00:00"},{"$f":"Time!HIO$59","v":"00:00:00"},{"$f":"Time!HIP$59","v":"00:00:00"},{"$f":"Time!HIQ$59","v":"00:00:00"},{"$f":"Time!HIR$59","v":"00:00:00"},{"$f":"Time!HIS$59","v":"00:00:00"},{"$f":"Time!HIT$59","v":"00:00:00"},{"$f":"Time!HIU$59","v":"00:00:00"},{"$f":"Time!HIV$59","v":"00:00:00"},{"$f":"Time!HIW$59","v":"00:00:00"},{"$f":"Time!HIX$59","v":"00:00:00"},{"$f":"Time!HIY$59","v":"00:00:00"},{"$f":"Time!HIZ$59","v":"00:00:00"},{"$f":"Time!HJA$59","v":"00:00:00"},{"$f":"Time!HJB$59","v":"00:00:00"},{"$f":"Time!HJC$59","v":"00:00:00"},{"$f":"Time!HJD$59","v":"00:00:00"},{"$f":"Time!HJE$59","v":"00:00:00"},{"$f":"Time!HJF$59","v":"00:00:00"},{"$f":"Time!HJG$59","v":"00:00:00"},{"$f":"Time!HJH$59","v":"00:00:00"},{"$f":"Time!HJI$59","v":"00:00:00"},{"$f":"Time!HJJ$59","v":"00:00:00"},{"$f":"Time!HJK$59","v":"00:00:00"},{"$f":"Time!HJL$59","v":"00:00:00"},{"$f":"Time!HJM$59","v":"00:00:00"},{"$f":"Time!HJN$59","v":"00:00:00"},{"$f":"Time!HJO$59","v":"00:00:00"},{"$f":"Time!HJP$59","v":"00:00:00"},{"$f":"Time!HJQ$59","v":"00:00:00"},{"$f":"Time!HJR$59","v":"00:00:00"},{"$f":"Time!HJS$59","v":"00:00:00"},{"$f":"Time!HJT$59","v":"00:00:00"},{"$f":"Time!HJU$59","v":"00:00:00"},{"$f":"Time!HJV$59","v":"00:00:00"},{"$f":"Time!HJW$59","v":"00:00:00"},{"$f":"Time!HJX$59","v":"00:00:00"},{"$f":"Time!HJY$59","v":"00:00:00"},{"$f":"Time!HJZ$59","v":"00:00:00"},{"$f":"Time!HKA$59","v":"00:00:00"},{"$f":"Time!HKB$59","v":"00:00:00"},{"$f":"Time!HKC$59","v":"00:00:00"},{"$f":"Time!HKD$59","v":"00:00:00"},{"$f":"Time!HKE$59","v":"00:00:00"},{"$f":"Time!HKF$59","v":"00:00:00"},{"$f":"Time!HKG$59","v":"00:00:00"},{"$f":"Time!HKH$59","v":"00:00:00"},{"$f":"Time!HKI$59","v":"00:00:00"},{"$f":"Time!HKJ$59","v":"00:00:00"},{"$f":"Time!HKK$59","v":"00:00:00"},{"$f":"Time!HKL$59","v":"00:00:00"},{"$f":"Time!HKM$59","v":"00:00:00"},{"$f":"Time!HKN$59","v":"00:00:00"},{"$f":"Time!HKO$59","v":"00:00:00"},{"$f":"Time!HKP$59","v":"00:00:00"},{"$f":"Time!HKQ$59","v":"00:00:00"},{"$f":"Time!HKR$59","v":"00:00:00"},{"$f":"Time!HKS$59","v":"00:00:00"},{"$f":"Time!HKT$59","v":"00:00:00"},{"$f":"Time!HKU$59","v":"00:00:00"},{"$f":"Time!HKV$59","v":"00:00:00"},{"$f":"Time!HKW$59","v":"00:00:00"},{"$f":"Time!HKX$59","v":"00:00:00"},{"$f":"Time!HKY$59","v":"00:00:00"},{"$f":"Time!HKZ$59","v":"00:00:00"},{"$f":"Time!HLA$59","v":"00:00:00"},{"$f":"Time!HLB$59","v":"00:00:00"},{"$f":"Time!HLC$59","v":"00:00:00"},{"$f":"Time!HLD$59","v":"00:00:00"},{"$f":"Time!HLE$59","v":"00:00:00"},{"$f":"Time!HLF$59","v":"00:00:00"},{"$f":"Time!HLG$59","v":"00:00:00"},{"$f":"Time!HLH$59","v":"00:00:00"},{"$f":"Time!HLI$59","v":"00:00:00"},{"$f":"Time!HLJ$59","v":"00:00:00"},{"$f":"Time!HLK$59","v":"00:00:00"},{"$f":"Time!HLL$59","v":"00:00:00"},{"$f":"Time!HLM$59","v":"00:00:00"},{"$f":"Time!HLN$59","v":"00:00:00"},{"$f":"Time!HLO$59","v":"00:00:00"},{"$f":"Time!HLP$59","v":"00:00:00"},{"$f":"Time!HLQ$59","v":"00:00:00"},{"$f":"Time!HLR$59","v":"00:00:00"},{"$f":"Time!HLS$59","v":"00:00:00"},{"$f":"Time!HLT$59","v":"00:00:00"},{"$f":"Time!HLU$59","v":"00:00:00"},{"$f":"Time!HLV$59","v":"00:00:00"},{"$f":"Time!HLW$59","v":"00:00:00"},{"$f":"Time!HLX$59","v":"00:00:00"},{"$f":"Time!HLY$59","v":"00:00:00"},{"$f":"Time!HLZ$59","v":"00:00:00"},{"$f":"Time!HMA$59","v":"00:00:00"},{"$f":"Time!HMB$59","v":"00:00:00"},{"$f":"Time!HMC$59","v":"00:00:00"},{"$f":"Time!HMD$59","v":"00:00:00"},{"$f":"Time!HME$59","v":"00:00:00"},{"$f":"Time!HMF$59","v":"00:00:00"},{"$f":"Time!HMG$59","v":"00:00:00"},{"$f":"Time!HMH$59","v":"00:00:00"},{"$f":"Time!HMI$59","v":"00:00:00"},{"$f":"Time!HMJ$59","v":"00:00:00"},{"$f":"Time!HMK$59","v":"00:00:00"},{"$f":"Time!HML$59","v":"00:00:00"},{"$f":"Time!HMM$59","v":"00:00:00"},{"$f":"Time!HMN$59","v":"00:00:00"},{"$f":"Time!HMO$59","v":"00:00:00"},{"$f":"Time!HMP$59","v":"00:00:00"},{"$f":"Time!HMQ$59","v":"00:00:00"},{"$f":"Time!HMR$59","v":"00:00:00"},{"$f":"Time!HMS$59","v":"00:00:00"},{"$f":"Time!HMT$59","v":"00:00:00"},{"$f":"Time!HMU$59","v":"00:00:00"},{"$f":"Time!HMV$59","v":"00:00:00"},{"$f":"Time!HMW$59","v":"00:00:00"},{"$f":"Time!HMX$59","v":"00:00:00"},{"$f":"Time!HMY$59","v":"00:00:00"},{"$f":"Time!HMZ$59","v":"00:00:00"},{"$f":"Time!HNA$59","v":"00:00:00"},{"$f":"Time!HNB$59","v":"00:00:00"},{"$f":"Time!HNC$59","v":"00:00:00"},{"$f":"Time!HND$59","v":"00:00:00"},{"$f":"Time!HNE$59","v":"00:00:00"},{"$f":"Time!HNF$59","v":"00:00:00"},{"$f":"Time!HNG$59","v":"00:00:00"},{"$f":"Time!HNH$59","v":"00:00:00"},{"$f":"Time!HNI$59","v":"00:00:00"},{"$f":"Time!HNJ$59","v":"00:00:00"},{"$f":"Time!HNK$59","v":"00:00:00"},{"$f":"Time!HNL$59","v":"00:00:00"},{"$f":"Time!HNM$59","v":"00:00:00"},{"$f":"Time!HNN$59","v":"00:00:00"},{"$f":"Time!HNO$59","v":"00:00:00"},{"$f":"Time!HNP$59","v":"00:00:00"},{"$f":"Time!HNQ$59","v":"00:00:00"},{"$f":"Time!HNR$59","v":"00:00:00"},{"$f":"Time!HNS$59","v":"00:00:00"},{"$f":"Time!HNT$59","v":"00:00:00"},{"$f":"Time!HNU$59","v":"00:00:00"},{"$f":"Time!HNV$59","v":"00:00:00"},{"$f":"Time!HNW$59","v":"00:00:00"},{"$f":"Time!HNX$59","v":"00:00:00"},{"$f":"Time!HNY$59","v":"00:00:00"},{"$f":"Time!HNZ$59","v":"00:00:00"},{"$f":"Time!HOA$59","v":"00:00:00"},{"$f":"Time!HOB$59","v":"00:00:00"},{"$f":"Time!HOC$59","v":"00:00:00"},{"$f":"Time!HOD$59","v":"00:00:00"},{"$f":"Time!HOE$59","v":"00:00:00"},{"$f":"Time!HOF$59","v":"00:00:00"},{"$f":"Time!HOG$59","v":"00:00:00"},{"$f":"Time!HOH$59","v":"00:00:00"},{"$f":"Time!HOI$59","v":"00:00:00"},{"$f":"Time!HOJ$59","v":"00:00:00"},{"$f":"Time!HOK$59","v":"00:00:00"},{"$f":"Time!HOL$59","v":"00:00:00"},{"$f":"Time!HOM$59","v":"00:00:00"},{"$f":"Time!HON$59","v":"00:00:00"},{"$f":"Time!HOO$59","v":"00:00:00"},{"$f":"Time!HOP$59","v":"00:00:00"},{"$f":"Time!HOQ$59","v":"00:00:00"},{"$f":"Time!HOR$59","v":"00:00:00"},{"$f":"Time!HOS$59","v":"00:00:00"},{"$f":"Time!HOT$59","v":"00:00:00"},{"$f":"Time!HOU$59","v":"00:00:00"},{"$f":"Time!HOV$59","v":"00:00:00"},{"$f":"Time!HOW$59","v":"00:00:00"},{"$f":"Time!HOX$59","v":"00:00:00"},{"$f":"Time!HOY$59","v":"00:00:00"},{"$f":"Time!HOZ$59","v":"00:00:00"},{"$f":"Time!HPA$59","v":"00:00:00"},{"$f":"Time!HPB$59","v":"00:00:00"},{"$f":"Time!HPC$59","v":"00:00:00"},{"$f":"Time!HPD$59","v":"00:00:00"},{"$f":"Time!HPE$59","v":"00:00:00"},{"$f":"Time!HPF$59","v":"00:00:00"},{"$f":"Time!HPG$59","v":"00:00:00"},{"$f":"Time!HPH$59","v":"00:00:00"},{"$f":"Time!HPI$59","v":"00:00:00"},{"$f":"Time!HPJ$59","v":"00:00:00"},{"$f":"Time!HPK$59","v":"00:00:00"},{"$f":"Time!HPL$59","v":"00:00:00"},{"$f":"Time!HPM$59","v":"00:00:00"},{"$f":"Time!HPN$59","v":"00:00:00"},{"$f":"Time!HPO$59","v":"00:00:00"},{"$f":"Time!HPP$59","v":"00:00:00"},{"$f":"Time!HPQ$59","v":"00:00:00"},{"$f":"Time!HPR$59","v":"00:00:00"},{"$f":"Time!HPS$59","v":"00:00:00"},{"$f":"Time!HPT$59","v":"00:00:00"},{"$f":"Time!HPU$59","v":"00:00:00"},{"$f":"Time!HPV$59","v":"00:00:00"},{"$f":"Time!HPW$59","v":"00:00:00"},{"$f":"Time!HPX$59","v":"00:00:00"},{"$f":"Time!HPY$59","v":"00:00:00"},{"$f":"Time!HPZ$59","v":"00:00:00"},{"$f":"Time!HQA$59","v":"00:00:00"},{"$f":"Time!HQB$59","v":"00:00:00"},{"$f":"Time!HQC$59","v":"00:00:00"},{"$f":"Time!HQD$59","v":"00:00:00"},{"$f":"Time!HQE$59","v":"00:00:00"},{"$f":"Time!HQF$59","v":"00:00:00"},{"$f":"Time!HQG$59","v":"00:00:00"},{"$f":"Time!HQH$59","v":"00:00:00"},{"$f":"Time!HQI$59","v":"00:00:00"},{"$f":"Time!HQJ$59","v":"00:00:00"},{"$f":"Time!HQK$59","v":"00:00:00"},{"$f":"Time!HQL$59","v":"00:00:00"},{"$f":"Time!HQM$59","v":"00:00:00"},{"$f":"Time!HQN$59","v":"00:00:00"},{"$f":"Time!HQO$59","v":"00:00:00"},{"$f":"Time!HQP$59","v":"00:00:00"},{"$f":"Time!HQQ$59","v":"00:00:00"},{"$f":"Time!HQR$59","v":"00:00:00"},{"$f":"Time!HQS$59","v":"00:00:00"},{"$f":"Time!HQT$59","v":"00:00:00"},{"$f":"Time!HQU$59","v":"00:00:00"},{"$f":"Time!HQV$59","v":"00:00:00"},{"$f":"Time!HQW$59","v":"00:00:00"},{"$f":"Time!HQX$59","v":"00:00:00"},{"$f":"Time!HQY$59","v":"00:00:00"},{"$f":"Time!HQZ$59","v":"00:00:00"},{"$f":"Time!HRA$59","v":"00:00:00"},{"$f":"Time!HRB$59","v":"00:00:00"},{"$f":"Time!HRC$59","v":"00:00:00"},{"$f":"Time!HRD$59","v":"00:00:00"},{"$f":"Time!HRE$59","v":"00:00:00"},{"$f":"Time!HRF$59","v":"00:00:00"},{"$f":"Time!HRG$59","v":"00:00:00"},{"$f":"Time!HRH$59","v":"00:00:00"},{"$f":"Time!HRI$59","v":"00:00:00"},{"$f":"Time!HRJ$59","v":"00:00:00"},{"$f":"Time!HRK$59","v":"00:00:00"},{"$f":"Time!HRL$59","v":"00:00:00"},{"$f":"Time!HRM$59","v":"00:00:00"},{"$f":"Time!HRN$59","v":"00:00:00"},{"$f":"Time!HRO$59","v":"00:00:00"},{"$f":"Time!HRP$59","v":"00:00:00"},{"$f":"Time!HRQ$59","v":"00:00:00"},{"$f":"Time!HRR$59","v":"00:00:00"},{"$f":"Time!HRS$59","v":"00:00:00"},{"$f":"Time!HRT$59","v":"00:00:00"},{"$f":"Time!HRU$59","v":"00:00:00"},{"$f":"Time!HRV$59","v":"00:00:00"},{"$f":"Time!HRW$59","v":"00:00:00"},{"$f":"Time!HRX$59","v":"00:00:00"},{"$f":"Time!HRY$59","v":"00:00:00"},{"$f":"Time!HRZ$59","v":"00:00:00"},{"$f":"Time!HSA$59","v":"00:00:00"},{"$f":"Time!HSB$59","v":"00:00:00"},{"$f":"Time!HSC$59","v":"00:00:00"},{"$f":"Time!HSD$59","v":"00:00:00"},{"$f":"Time!HSE$59","v":"00:00:00"},{"$f":"Time!HSF$59","v":"00:00:00"},{"$f":"Time!HSG$59","v":"00:00:00"},{"$f":"Time!HSH$59","v":"00:00:00"},{"$f":"Time!HSI$59","v":"00:00:00"},{"$f":"Time!HSJ$59","v":"00:00:00"},{"$f":"Time!HSK$59","v":"00:00:00"},{"$f":"Time!HSL$59","v":"00:00:00"},{"$f":"Time!HSM$59","v":"00:00:00"},{"$f":"Time!HSN$59","v":"00:00:00"},{"$f":"Time!HSO$59","v":"00:00:00"},{"$f":"Time!HSP$59","v":"00:00:00"},{"$f":"Time!HSQ$59","v":"00:00:00"},{"$f":"Time!HSR$59","v":"00:00:00"},{"$f":"Time!HSS$59","v":"00:00:00"},{"$f":"Time!HST$59","v":"00:00:00"},{"$f":"Time!HSU$59","v":"00:00:00"},{"$f":"Time!HSV$59","v":"00:00:00"},{"$f":"Time!HSW$59","v":"00:00:00"},{"$f":"Time!HSX$59","v":"00:00:00"},{"$f":"Time!HSY$59","v":"00:00:00"},{"$f":"Time!HSZ$59","v":"00:00:00"},{"$f":"Time!HTA$59","v":"00:00:00"},{"$f":"Time!HTB$59","v":"00:00:00"},{"$f":"Time!HTC$59","v":"00:00:00"},{"$f":"Time!HTD$59","v":"00:00:00"},{"$f":"Time!HTE$59","v":"00:00:00"},{"$f":"Time!HTF$59","v":"00:00:00"},{"$f":"Time!HTG$59","v":"00:00:00"},{"$f":"Time!HTH$59","v":"00:00:00"},{"$f":"Time!HTI$59","v":"00:00:00"},{"$f":"Time!HTJ$59","v":"00:00:00"},{"$f":"Time!HTK$59","v":"00:00:00"},{"$f":"Time!HTL$59","v":"00:00:00"},{"$f":"Time!HTM$59","v":"00:00:00"},{"$f":"Time!HTN$59","v":"00:00:00"},{"$f":"Time!HTO$59","v":"00:00:00"},{"$f":"Time!HTP$59","v":"00:00:00"},{"$f":"Time!HTQ$59","v":"00:00:00"},{"$f":"Time!HTR$59","v":"00:00:00"},{"$f":"Time!HTS$59","v":"00:00:00"},{"$f":"Time!HTT$59","v":"00:00:00"},{"$f":"Time!HTU$59","v":"00:00:00"},{"$f":"Time!HTV$59","v":"00:00:00"},{"$f":"Time!HTW$59","v":"00:00:00"},{"$f":"Time!HTX$59","v":"00:00:00"},{"$f":"Time!HTY$59","v":"00:00:00"},{"$f":"Time!HTZ$59","v":"00:00:00"},{"$f":"Time!HUA$59","v":"00:00:00"},{"$f":"Time!HUB$59","v":"00:00:00"},{"$f":"Time!HUC$59","v":"00:00:00"},{"$f":"Time!HUD$59","v":"00:00:00"},{"$f":"Time!HUE$59","v":"00:00:00"},{"$f":"Time!HUF$59","v":"00:00:00"},{"$f":"Time!HUG$59","v":"00:00:00"},{"$f":"Time!HUH$59","v":"00:00:00"},{"$f":"Time!HUI$59","v":"00:00:00"},{"$f":"Time!HUJ$59","v":"00:00:00"},{"$f":"Time!HUK$59","v":"00:00:00"},{"$f":"Time!HUL$59","v":"00:00:00"},{"$f":"Time!HUM$59","v":"00:00:00"},{"$f":"Time!HUN$59","v":"00:00:00"},{"$f":"Time!HUO$59","v":"00:00:00"},{"$f":"Time!HUP$59","v":"00:00:00"},{"$f":"Time!HUQ$59","v":"00:00:00"},{"$f":"Time!HUR$59","v":"00:00:00"},{"$f":"Time!HUS$59","v":"00:00:00"},{"$f":"Time!HUT$59","v":"00:00:00"},{"$f":"Time!HUU$59","v":"00:00:00"},{"$f":"Time!HUV$59","v":"00:00:00"},{"$f":"Time!HUW$59","v":"00:00:00"},{"$f":"Time!HUX$59","v":"00:00:00"},{"$f":"Time!HUY$59","v":"00:00:00"},{"$f":"Time!HUZ$59","v":"00:00:00"},{"$f":"Time!HVA$59","v":"00:00:00"},{"$f":"Time!HVB$59","v":"00:00:00"},{"$f":"Time!HVC$59","v":"00:00:00"},{"$f":"Time!HVD$59","v":"00:00:00"},{"$f":"Time!HVE$59","v":"00:00:00"},{"$f":"Time!HVF$59","v":"00:00:00"},{"$f":"Time!HVG$59","v":"00:00:00"},{"$f":"Time!HVH$59","v":"00:00:00"},{"$f":"Time!HVI$59","v":"00:00:00"},{"$f":"Time!HVJ$59","v":"00:00:00"},{"$f":"Time!HVK$59","v":"00:00:00"},{"$f":"Time!HVL$59","v":"00:00:00"},{"$f":"Time!HVM$59","v":"00:00:00"},{"$f":"Time!HVN$59","v":"00:00:00"},{"$f":"Time!HVO$59","v":"00:00:00"},{"$f":"Time!HVP$59","v":"00:00:00"},{"$f":"Time!HVQ$59","v":"00:00:00"},{"$f":"Time!HVR$59","v":"00:00:00"},{"$f":"Time!HVS$59","v":"00:00:00"},{"$f":"Time!HVT$59","v":"00:00:00"},{"$f":"Time!HVU$59","v":"00:00:00"},{"$f":"Time!HVV$59","v":"00:00:00"},{"$f":"Time!HVW$59","v":"00:00:00"},{"$f":"Time!HVX$59","v":"00:00:00"},{"$f":"Time!HVY$59","v":"00:00:00"},{"$f":"Time!HVZ$59","v":"00:00:00"},{"$f":"Time!HWA$59","v":"00:00:00"},{"$f":"Time!HWB$59","v":"00:00:00"},{"$f":"Time!HWC$59","v":"00:00:00"},{"$f":"Time!HWD$59","v":"00:00:00"},{"$f":"Time!HWE$59","v":"00:00:00"},{"$f":"Time!HWF$59","v":"00:00:00"},{"$f":"Time!HWG$59","v":"00:00:00"},{"$f":"Time!HWH$59","v":"00:00:00"},{"$f":"Time!HWI$59","v":"00:00:00"},{"$f":"Time!HWJ$59","v":"00:00:00"},{"$f":"Time!HWK$59","v":"00:00:00"},{"$f":"Time!HWL$59","v":"00:00:00"},{"$f":"Time!HWM$59","v":"00:00:00"},{"$f":"Time!HWN$59","v":"00:00:00"},{"$f":"Time!HWO$59","v":"00:00:00"},{"$f":"Time!HWP$59","v":"00:00:00"},{"$f":"Time!HWQ$59","v":"00:00:00"},{"$f":"Time!HWR$59","v":"00:00:00"},{"$f":"Time!HWS$59","v":"00:00:00"},{"$f":"Time!HWT$59","v":"00:00:00"},{"$f":"Time!HWU$59","v":"00:00:00"},{"$f":"Time!HWV$59","v":"00:00:00"},{"$f":"Time!HWW$59","v":"00:00:00"},{"$f":"Time!HWX$59","v":"00:00:00"},{"$f":"Time!HWY$59","v":"00:00:00"},{"$f":"Time!HWZ$59","v":"00:00:00"},{"$f":"Time!HXA$59","v":"00:00:00"},{"$f":"Time!HXB$59","v":"00:00:00"},{"$f":"Time!HXC$59","v":"00:00:00"},{"$f":"Time!HXD$59","v":"00:00:00"},{"$f":"Time!HXE$59","v":"00:00:00"},{"$f":"Time!HXF$59","v":"00:00:00"},{"$f":"Time!HXG$59","v":"00:00:00"},{"$f":"Time!HXH$59","v":"00:00:00"},{"$f":"Time!HXI$59","v":"00:00:00"},{"$f":"Time!HXJ$59","v":"00:00:00"},{"$f":"Time!HXK$59","v":"00:00:00"},{"$f":"Time!HXL$59","v":"00:00:00"},{"$f":"Time!HXM$59","v":"00:00:00"},{"$f":"Time!HXN$59","v":"00:00:00"},{"$f":"Time!HXO$59","v":"00:00:00"},{"$f":"Time!HXP$59","v":"00:00:00"},{"$f":"Time!HXQ$59","v":"00:00:00"},{"$f":"Time!HXR$59","v":"00:00:00"},{"$f":"Time!HXS$59","v":"00:00:00"},{"$f":"Time!HXT$59","v":"00:00:00"},{"$f":"Time!HXU$59","v":"00:00:00"},{"$f":"Time!HXV$59","v":"00:00:00"},{"$f":"Time!HXW$59","v":"00:00:00"},{"$f":"Time!HXX$59","v":"00:00:00"},{"$f":"Time!HXY$59","v":"00:00:00"},{"$f":"Time!HXZ$59","v":"00:00:00"},{"$f":"Time!HYA$59","v":"00:00:00"},{"$f":"Time!HYB$59","v":"00:00:00"},{"$f":"Time!HYC$59","v":"00:00:00"},{"$f":"Time!HYD$59","v":"00:00:00"},{"$f":"Time!HYE$59","v":"00:00:00"},{"$f":"Time!HYF$59","v":"00:00:00"},{"$f":"Time!HYG$59","v":"00:00:00"},{"$f":"Time!HYH$59","v":"00:00:00"},{"$f":"Time!HYI$59","v":"00:00:00"},{"$f":"Time!HYJ$59","v":"00:00:00"},{"$f":"Time!HYK$59","v":"00:00:00"},{"$f":"Time!HYL$59","v":"00:00:00"},{"$f":"Time!HYM$59","v":"00:00:00"},{"$f":"Time!HYN$59","v":"00:00:00"},{"$f":"Time!HYO$59","v":"00:00:00"},{"$f":"Time!HYP$59","v":"00:00:00"},{"$f":"Time!HYQ$59","v":"00:00:00"},{"$f":"Time!HYR$59","v":"00:00:00"},{"$f":"Time!HYS$59","v":"00:00:00"},{"$f":"Time!HYT$59","v":"00:00:00"},{"$f":"Time!HYU$59","v":"00:00:00"},{"$f":"Time!HYV$59","v":"00:00:00"},{"$f":"Time!HYW$59","v":"00:00:00"},{"$f":"Time!HYX$59","v":"00:00:00"},{"$f":"Time!HYY$59","v":"00:00:00"},{"$f":"Time!HYZ$59","v":"00:00:00"},{"$f":"Time!HZA$59","v":"00:00:00"},{"$f":"Time!HZB$59","v":"00:00:00"},{"$f":"Time!HZC$59","v":"00:00:00"},{"$f":"Time!HZD$59","v":"00:00:00"},{"$f":"Time!HZE$59","v":"00:00:00"},{"$f":"Time!HZF$59","v":"00:00:00"},{"$f":"Time!HZG$59","v":"00:00:00"},{"$f":"Time!HZH$59","v":"00:00:00"},{"$f":"Time!HZI$59","v":"00:00:00"},{"$f":"Time!HZJ$59","v":"00:00:00"},{"$f":"Time!HZK$59","v":"00:00:00"},{"$f":"Time!HZL$59","v":"00:00:00"},{"$f":"Time!HZM$59","v":"00:00:00"},{"$f":"Time!HZN$59","v":"00:00:00"},{"$f":"Time!HZO$59","v":"00:00:00"},{"$f":"Time!HZP$59","v":"00:00:00"},{"$f":"Time!HZQ$59","v":"00:00:00"},{"$f":"Time!HZR$59","v":"00:00:00"},{"$f":"Time!HZS$59","v":"00:00:00"},{"$f":"Time!HZT$59","v":"00:00:00"},{"$f":"Time!HZU$59","v":"00:00:00"},{"$f":"Time!HZV$59","v":"00:00:00"},{"$f":"Time!HZW$59","v":"00:00:00"},{"$f":"Time!HZX$59","v":"00:00:00"},{"$f":"Time!HZY$59","v":"00:00:00"},{"$f":"Time!HZZ$59","v":"00:00:00"},{"$f":"Time!IAA$59","v":"00:00:00"},{"$f":"Time!IAB$59","v":"00:00:00"},{"$f":"Time!IAC$59","v":"00:00:00"},{"$f":"Time!IAD$59","v":"00:00:00"},{"$f":"Time!IAE$59","v":"00:00:00"},{"$f":"Time!IAF$59","v":"00:00:00"},{"$f":"Time!IAG$59","v":"00:00:00"},{"$f":"Time!IAH$59","v":"00:00:00"},{"$f":"Time!IAI$59","v":"00:00:00"},{"$f":"Time!IAJ$59","v":"00:00:00"},{"$f":"Time!IAK$59","v":"00:00:00"},{"$f":"Time!IAL$59","v":"00:00:00"},{"$f":"Time!IAM$59","v":"00:00:00"},{"$f":"Time!IAN$59","v":"00:00:00"},{"$f":"Time!IAO$59","v":"00:00:00"},{"$f":"Time!IAP$59","v":"00:00:00"},{"$f":"Time!IAQ$59","v":"00:00:00"},{"$f":"Time!IAR$59","v":"00:00:00"},{"$f":"Time!IAS$59","v":"00:00:00"},{"$f":"Time!IAT$59","v":"00:00:00"},{"$f":"Time!IAU$59","v":"00:00:00"},{"$f":"Time!IAV$59","v":"00:00:00"},{"$f":"Time!IAW$59","v":"00:00:00"},{"$f":"Time!IAX$59","v":"00:00:00"},{"$f":"Time!IAY$59","v":"00:00:00"},{"$f":"Time!IAZ$59","v":"00:00:00"},{"$f":"Time!IBA$59","v":"00:00:00"},{"$f":"Time!IBB$59","v":"00:00:00"},{"$f":"Time!IBC$59","v":"00:00:00"},{"$f":"Time!IBD$59","v":"00:00:00"},{"$f":"Time!IBE$59","v":"00:00:00"},{"$f":"Time!IBF$59","v":"00:00:00"},{"$f":"Time!IBG$59","v":"00:00:00"},{"$f":"Time!IBH$59","v":"00:00:00"},{"$f":"Time!IBI$59","v":"00:00:00"},{"$f":"Time!IBJ$59","v":"00:00:00"},{"$f":"Time!IBK$59","v":"00:00:00"},{"$f":"Time!IBL$59","v":"00:00:00"},{"$f":"Time!IBM$59","v":"00:00:00"},{"$f":"Time!IBN$59","v":"00:00:00"},{"$f":"Time!IBO$59","v":"00:00:00"},{"$f":"Time!IBP$59","v":"00:00:00"},{"$f":"Time!IBQ$59","v":"00:00:00"},{"$f":"Time!IBR$59","v":"00:00:00"},{"$f":"Time!IBS$59","v":"00:00:00"},{"$f":"Time!IBT$59","v":"00:00:00"},{"$f":"Time!IBU$59","v":"00:00:00"},{"$f":"Time!IBV$59","v":"00:00:00"},{"$f":"Time!IBW$59","v":"00:00:00"},{"$f":"Time!IBX$59","v":"00:00:00"},{"$f":"Time!IBY$59","v":"00:00:00"},{"$f":"Time!IBZ$59","v":"00:00:00"},{"$f":"Time!ICA$59","v":"00:00:00"},{"$f":"Time!ICB$59","v":"00:00:00"},{"$f":"Time!ICC$59","v":"00:00:00"},{"$f":"Time!ICD$59","v":"00:00:00"},{"$f":"Time!ICE$59","v":"00:00:00"},{"$f":"Time!ICF$59","v":"00:00:00"},{"$f":"Time!ICG$59","v":"00:00:00"},{"$f":"Time!ICH$59","v":"00:00:00"},{"$f":"Time!ICI$59","v":"00:00:00"},{"$f":"Time!ICJ$59","v":"00:00:00"},{"$f":"Time!ICK$59","v":"00:00:00"},{"$f":"Time!ICL$59","v":"00:00:00"},{"$f":"Time!ICM$59","v":"00:00:00"},{"$f":"Time!ICN$59","v":"00:00:00"},{"$f":"Time!ICO$59","v":"00:00:00"},{"$f":"Time!ICP$59","v":"00:00:00"},{"$f":"Time!ICQ$59","v":"00:00:00"},{"$f":"Time!ICR$59","v":"00:00:00"},{"$f":"Time!ICS$59","v":"00:00:00"},{"$f":"Time!ICT$59","v":"00:00:00"},{"$f":"Time!ICU$59","v":"00:00:00"},{"$f":"Time!ICV$59","v":"00:00:00"},{"$f":"Time!ICW$59","v":"00:00:00"},{"$f":"Time!ICX$59","v":"00:00:00"},{"$f":"Time!ICY$59","v":"00:00:00"},{"$f":"Time!ICZ$59","v":"00:00:00"},{"$f":"Time!IDA$59","v":"00:00:00"},{"$f":"Time!IDB$59","v":"00:00:00"},{"$f":"Time!IDC$59","v":"00:00:00"},{"$f":"Time!IDD$59","v":"00:00:00"},{"$f":"Time!IDE$59","v":"00:00:00"},{"$f":"Time!IDF$59","v":"00:00:00"},{"$f":"Time!IDG$59","v":"00:00:00"},{"$f":"Time!IDH$59","v":"00:00:00"},{"$f":"Time!IDI$59","v":"00:00:00"},{"$f":"Time!IDJ$59","v":"00:00:00"},{"$f":"Time!IDK$59","v":"00:00:00"},{"$f":"Time!IDL$59","v":"00:00:00"},{"$f":"Time!IDM$59","v":"00:00:00"},{"$f":"Time!IDN$59","v":"00:00:00"},{"$f":"Time!IDO$59","v":"00:00:00"},{"$f":"Time!IDP$59","v":"00:00:00"},{"$f":"Time!IDQ$59","v":"00:00:00"},{"$f":"Time!IDR$59","v":"00:00:00"},{"$f":"Time!IDS$59","v":"00:00:00"},{"$f":"Time!IDT$59","v":"00:00:00"},{"$f":"Time!IDU$59","v":"00:00:00"},{"$f":"Time!IDV$59","v":"00:00:00"},{"$f":"Time!IDW$59","v":"00:00:00"},{"$f":"Time!IDX$59","v":"00:00:00"},{"$f":"Time!IDY$59","v":"00:00:00"},{"$f":"Time!IDZ$59","v":"00:00:00"},{"$f":"Time!IEA$59","v":"00:00:00"},{"$f":"Time!IEB$59","v":"00:00:00"},{"$f":"Time!IEC$59","v":"00:00:00"},{"$f":"Time!IED$59","v":"00:00:00"},{"$f":"Time!IEE$59","v":"00:00:00"},{"$f":"Time!IEF$59","v":"00:00:00"},{"$f":"Time!IEG$59","v":"00:00:00"},{"$f":"Time!IEH$59","v":"00:00:00"},{"$f":"Time!IEI$59","v":"00:00:00"},{"$f":"Time!IEJ$59","v":"00:00:00"},{"$f":"Time!IEK$59","v":"00:00:00"},{"$f":"Time!IEL$59","v":"00:00:00"},{"$f":"Time!IEM$59","v":"00:00:00"},{"$f":"Time!IEN$59","v":"00:00:00"},{"$f":"Time!IEO$59","v":"00:00:00"},{"$f":"Time!IEP$59","v":"00:00:00"},{"$f":"Time!IEQ$59","v":"00:00:00"},{"$f":"Time!IER$59","v":"00:00:00"},{"$f":"Time!IES$59","v":"00:00:00"},{"$f":"Time!IET$59","v":"00:00:00"},{"$f":"Time!IEU$59","v":"00:00:00"},{"$f":"Time!IEV$59","v":"00:00:00"},{"$f":"Time!IEW$59","v":"00:00:00"},{"$f":"Time!IEX$59","v":"00:00:00"},{"$f":"Time!IEY$59","v":"00:00:00"},{"$f":"Time!IEZ$59","v":"00:00:00"},{"$f":"Time!IFA$59","v":"00:00:00"},{"$f":"Time!IFB$59","v":"00:00:00"},{"$f":"Time!IFC$59","v":"00:00:00"},{"$f":"Time!IFD$59","v":"00:00:00"},{"$f":"Time!IFE$59","v":"00:00:00"},{"$f":"Time!IFF$59","v":"00:00:00"},{"$f":"Time!IFG$59","v":"00:00:00"},{"$f":"Time!IFH$59","v":"00:00:00"},{"$f":"Time!IFI$59","v":"00:00:00"},{"$f":"Time!IFJ$59","v":"00:00:00"},{"$f":"Time!IFK$59","v":"00:00:00"},{"$f":"Time!IFL$59","v":"00:00:00"},{"$f":"Time!IFM$59","v":"00:00:00"},{"$f":"Time!IFN$59","v":"00:00:00"},{"$f":"Time!IFO$59","v":"00:00:00"},{"$f":"Time!IFP$59","v":"00:00:00"},{"$f":"Time!IFQ$59","v":"00:00:00"},{"$f":"Time!IFR$59","v":"00:00:00"},{"$f":"Time!IFS$59","v":"00:00:00"},{"$f":"Time!IFT$59","v":"00:00:00"},{"$f":"Time!IFU$59","v":"00:00:00"},{"$f":"Time!IFV$59","v":"00:00:00"},{"$f":"Time!IFW$59","v":"00:00:00"},{"$f":"Time!IFX$59","v":"00:00:00"},{"$f":"Time!IFY$59","v":"00:00:00"},{"$f":"Time!IFZ$59","v":"00:00:00"},{"$f":"Time!IGA$59","v":"00:00:00"},{"$f":"Time!IGB$59","v":"00:00:00"},{"$f":"Time!IGC$59","v":"00:00:00"},{"$f":"Time!IGD$59","v":"00:00:00"},{"$f":"Time!IGE$59","v":"00:00:00"},{"$f":"Time!IGF$59","v":"00:00:00"},{"$f":"Time!IGG$59","v":"00:00:00"},{"$f":"Time!IGH$59","v":"00:00:00"},{"$f":"Time!IGI$59","v":"00:00:00"},{"$f":"Time!IGJ$59","v":"00:00:00"},{"$f":"Time!IGK$59","v":"00:00:00"},{"$f":"Time!IGL$59","v":"00:00:00"},{"$f":"Time!IGM$59","v":"00:00:00"},{"$f":"Time!IGN$59","v":"00:00:00"},{"$f":"Time!IGO$59","v":"00:00:00"},{"$f":"Time!IGP$59","v":"00:00:00"},{"$f":"Time!IGQ$59","v":"00:00:00"},{"$f":"Time!IGR$59","v":"00:00:00"},{"$f":"Time!IGS$59","v":"00:00:00"},{"$f":"Time!IGT$59","v":"00:00:00"},{"$f":"Time!IGU$59","v":"00:00:00"},{"$f":"Time!IGV$59","v":"00:00:00"},{"$f":"Time!IGW$59","v":"00:00:00"},{"$f":"Time!IGX$59","v":"00:00:00"},{"$f":"Time!IGY$59","v":"00:00:00"},{"$f":"Time!IGZ$59","v":"00:00:00"},{"$f":"Time!IHA$59","v":"00:00:00"},{"$f":"Time!IHB$59","v":"00:00:00"},{"$f":"Time!IHC$59","v":"00:00:00"},{"$f":"Time!IHD$59","v":"00:00:00"},{"$f":"Time!IHE$59","v":"00:00:00"},{"$f":"Time!IHF$59","v":"00:00:00"},{"$f":"Time!IHG$59","v":"00:00:00"},{"$f":"Time!IHH$59","v":"00:00:00"},{"$f":"Time!IHI$59","v":"00:00:00"},{"$f":"Time!IHJ$59","v":"00:00:00"},{"$f":"Time!IHK$59","v":"00:00:00"},{"$f":"Time!IHL$59","v":"00:00:00"},{"$f":"Time!IHM$59","v":"00:00:00"},{"$f":"Time!IHN$59","v":"00:00:00"},{"$f":"Time!IHO$59","v":"00:00:00"},{"$f":"Time!IHP$59","v":"00:00:00"},{"$f":"Time!IHQ$59","v":"00:00:00"},{"$f":"Time!IHR$59","v":"00:00:00"},{"$f":"Time!IHS$59","v":"00:00:00"},{"$f":"Time!IHT$59","v":"00:00:00"},{"$f":"Time!IHU$59","v":"00:00:00"},{"$f":"Time!IHV$59","v":"00:00:00"},{"$f":"Time!IHW$59","v":"00:00:00"},{"$f":"Time!IHX$59","v":"00:00:00"},{"$f":"Time!IHY$59","v":"00:00:00"},{"$f":"Time!IHZ$59","v":"00:00:00"},{"$f":"Time!IIA$59","v":"00:00:00"},{"$f":"Time!IIB$59","v":"00:00:00"},{"$f":"Time!IIC$59","v":"00:00:00"},{"$f":"Time!IID$59","v":"00:00:00"},{"$f":"Time!IIE$59","v":"00:00:00"},{"$f":"Time!IIF$59","v":"00:00:00"},{"$f":"Time!IIG$59","v":"00:00:00"},{"$f":"Time!IIH$59","v":"00:00:00"},{"$f":"Time!III$59","v":"00:00:00"},{"$f":"Time!IIJ$59","v":"00:00:00"},{"$f":"Time!IIK$59","v":"00:00:00"},{"$f":"Time!IIL$59","v":"00:00:00"},{"$f":"Time!IIM$59","v":"00:00:00"},{"$f":"Time!IIN$59","v":"00:00:00"},{"$f":"Time!IIO$59","v":"00:00:00"},{"$f":"Time!IIP$59","v":"00:00:00"},{"$f":"Time!IIQ$59","v":"00:00:00"},{"$f":"Time!IIR$59","v":"00:00:00"},{"$f":"Time!IIS$59","v":"00:00:00"},{"$f":"Time!IIT$59","v":"00:00:00"},{"$f":"Time!IIU$59","v":"00:00:00"},{"$f":"Time!IIV$59","v":"00:00:00"},{"$f":"Time!IIW$59","v":"00:00:00"},{"$f":"Time!IIX$59","v":"00:00:00"},{"$f":"Time!IIY$59","v":"00:00:00"},{"$f":"Time!IIZ$59","v":"00:00:00"},{"$f":"Time!IJA$59","v":"00:00:00"},{"$f":"Time!IJB$59","v":"00:00:00"},{"$f":"Time!IJC$59","v":"00:00:00"},{"$f":"Time!IJD$59","v":"00:00:00"},{"$f":"Time!IJE$59","v":"00:00:00"},{"$f":"Time!IJF$59","v":"00:00:00"},{"$f":"Time!IJG$59","v":"00:00:00"},{"$f":"Time!IJH$59","v":"00:00:00"},{"$f":"Time!IJI$59","v":"00:00:00"},{"$f":"Time!IJJ$59","v":"00:00:00"},{"$f":"Time!IJK$59","v":"00:00:00"},{"$f":"Time!IJL$59","v":"00:00:00"},{"$f":"Time!IJM$59","v":"00:00:00"},{"$f":"Time!IJN$59","v":"00:00:00"},{"$f":"Time!IJO$59","v":"00:00:00"},{"$f":"Time!IJP$59","v":"00:00:00"},{"$f":"Time!IJQ$59","v":"00:00:00"},{"$f":"Time!IJR$59","v":"00:00:00"},{"$f":"Time!IJS$59","v":"00:00:00"},{"$f":"Time!IJT$59","v":"00:00:00"},{"$f":"Time!IJU$59","v":"00:00:00"},{"$f":"Time!IJV$59","v":"00:00:00"},{"$f":"Time!IJW$59","v":"00:00:00"},{"$f":"Time!IJX$59","v":"00:00:00"},{"$f":"Time!IJY$59","v":"00:00:00"},{"$f":"Time!IJZ$59","v":"00:00:00"},{"$f":"Time!IKA$59","v":"00:00:00"},{"$f":"Time!IKB$59","v":"00:00:00"},{"$f":"Time!IKC$59","v":"00:00:00"},{"$f":"Time!IKD$59","v":"00:00:00"},{"$f":"Time!IKE$59","v":"00:00:00"},{"$f":"Time!IKF$59","v":"00:00:00"},{"$f":"Time!IKG$59","v":"00:00:00"},{"$f":"Time!IKH$59","v":"00:00:00"},{"$f":"Time!IKI$59","v":"00:00:00"},{"$f":"Time!IKJ$59","v":"00:00:00"},{"$f":"Time!IKK$59","v":"00:00:00"},{"$f":"Time!IKL$59","v":"00:00:00"},{"$f":"Time!IKM$59","v":"00:00:00"},{"$f":"Time!IKN$59","v":"00:00:00"},{"$f":"Time!IKO$59","v":"00:00:00"},{"$f":"Time!IKP$59","v":"00:00:00"},{"$f":"Time!IKQ$59","v":"00:00:00"},{"$f":"Time!IKR$59","v":"00:00:00"},{"$f":"Time!IKS$59","v":"00:00:00"},{"$f":"Time!IKT$59","v":"00:00:00"},{"$f":"Time!IKU$59","v":"00:00:00"},{"$f":"Time!IKV$59","v":"00:00:00"},{"$f":"Time!IKW$59","v":"00:00:00"},{"$f":"Time!IKX$59","v":"00:00:00"},{"$f":"Time!IKY$59","v":"00:00:00"},{"$f":"Time!IKZ$59","v":"00:00:00"},{"$f":"Time!ILA$59","v":"00:00:00"},{"$f":"Time!ILB$59","v":"00:00:00"},{"$f":"Time!ILC$59","v":"00:00:00"},{"$f":"Time!ILD$59","v":"00:00:00"},{"$f":"Time!ILE$59","v":"00:00:00"},{"$f":"Time!ILF$59","v":"00:00:00"},{"$f":"Time!ILG$59","v":"00:00:00"},{"$f":"Time!ILH$59","v":"00:00:00"},{"$f":"Time!ILI$59","v":"00:00:00"},{"$f":"Time!ILJ$59","v":"00:00:00"},{"$f":"Time!ILK$59","v":"00:00:00"},{"$f":"Time!ILL$59","v":"00:00:00"},{"$f":"Time!ILM$59","v":"00:00:00"},{"$f":"Time!ILN$59","v":"00:00:00"},{"$f":"Time!ILO$59","v":"00:00:00"},{"$f":"Time!ILP$59","v":"00:00:00"},{"$f":"Time!ILQ$59","v":"00:00:00"},{"$f":"Time!ILR$59","v":"00:00:00"},{"$f":"Time!ILS$59","v":"00:00:00"},{"$f":"Time!ILT$59","v":"00:00:00"},{"$f":"Time!ILU$59","v":"00:00:00"},{"$f":"Time!ILV$59","v":"00:00:00"},{"$f":"Time!ILW$59","v":"00:00:00"},{"$f":"Time!ILX$59","v":"00:00:00"},{"$f":"Time!ILY$59","v":"00:00:00"},{"$f":"Time!ILZ$59","v":"00:00:00"},{"$f":"Time!IMA$59","v":"00:00:00"},{"$f":"Time!IMB$59","v":"00:00:00"},{"$f":"Time!IMC$59","v":"00:00:00"},{"$f":"Time!IMD$59","v":"00:00:00"},{"$f":"Time!IME$59","v":"00:00:00"},{"$f":"Time!IMF$59","v":"00:00:00"},{"$f":"Time!IMG$59","v":"00:00:00"},{"$f":"Time!IMH$59","v":"00:00:00"},{"$f":"Time!IMI$59","v":"00:00:00"},{"$f":"Time!IMJ$59","v":"00:00:00"},{"$f":"Time!IMK$59","v":"00:00:00"},{"$f":"Time!IML$59","v":"00:00:00"},{"$f":"Time!IMM$59","v":"00:00:00"},{"$f":"Time!IMN$59","v":"00:00:00"},{"$f":"Time!IMO$59","v":"00:00:00"},{"$f":"Time!IMP$59","v":"00:00:00"},{"$f":"Time!IMQ$59","v":"00:00:00"},{"$f":"Time!IMR$59","v":"00:00:00"},{"$f":"Time!IMS$59","v":"00:00:00"},{"$f":"Time!IMT$59","v":"00:00:00"},{"$f":"Time!IMU$59","v":"00:00:00"},{"$f":"Time!IMV$59","v":"00:00:00"},{"$f":"Time!IMW$59","v":"00:00:00"},{"$f":"Time!IMX$59","v":"00:00:00"},{"$f":"Time!IMY$59","v":"00:00:00"},{"$f":"Time!IMZ$59","v":"00:00:00"},{"$f":"Time!INA$59","v":"00:00:00"},{"$f":"Time!INB$59","v":"00:00:00"},{"$f":"Time!INC$59","v":"00:00:00"},{"$f":"Time!IND$59","v":"00:00:00"},{"$f":"Time!INE$59","v":"00:00:00"},{"$f":"Time!INF$59","v":"00:00:00"},{"$f":"Time!ING$59","v":"00:00:00"},{"$f":"Time!INH$59","v":"00:00:00"},{"$f":"Time!INI$59","v":"00:00:00"},{"$f":"Time!INJ$59","v":"00:00:00"},{"$f":"Time!INK$59","v":"00:00:00"},{"$f":"Time!INL$59","v":"00:00:00"},{"$f":"Time!INM$59","v":"00:00:00"},{"$f":"Time!INN$59","v":"00:00:00"},{"$f":"Time!INO$59","v":"00:00:00"},{"$f":"Time!INP$59","v":"00:00:00"},{"$f":"Time!INQ$59","v":"00:00:00"},{"$f":"Time!INR$59","v":"00:00:00"},{"$f":"Time!INS$59","v":"00:00:00"},{"$f":"Time!INT$59","v":"00:00:00"},{"$f":"Time!INU$59","v":"00:00:00"},{"$f":"Time!INV$59","v":"00:00:00"},{"$f":"Time!INW$59","v":"00:00:00"},{"$f":"Time!INX$59","v":"00:00:00"},{"$f":"Time!INY$59","v":"00:00:00"},{"$f":"Time!INZ$59","v":"00:00:00"},{"$f":"Time!IOA$59","v":"00:00:00"},{"$f":"Time!IOB$59","v":"00:00:00"},{"$f":"Time!IOC$59","v":"00:00:00"},{"$f":"Time!IOD$59","v":"00:00:00"},{"$f":"Time!IOE$59","v":"00:00:00"},{"$f":"Time!IOF$59","v":"00:00:00"},{"$f":"Time!IOG$59","v":"00:00:00"},{"$f":"Time!IOH$59","v":"00:00:00"},{"$f":"Time!IOI$59","v":"00:00:00"},{"$f":"Time!IOJ$59","v":"00:00:00"},{"$f":"Time!IOK$59","v":"00:00:00"},{"$f":"Time!IOL$59","v":"00:00:00"},{"$f":"Time!IOM$59","v":"00:00:00"},{"$f":"Time!ION$59","v":"00:00:00"},{"$f":"Time!IOO$59","v":"00:00:00"},{"$f":"Time!IOP$59","v":"00:00:00"},{"$f":"Time!IOQ$59","v":"00:00:00"},{"$f":"Time!IOR$59","v":"00:00:00"},{"$f":"Time!IOS$59","v":"00:00:00"},{"$f":"Time!IOT$59","v":"00:00:00"},{"$f":"Time!IOU$59","v":"00:00:00"},{"$f":"Time!IOV$59","v":"00:00:00"},{"$f":"Time!IOW$59","v":"00:00:00"},{"$f":"Time!IOX$59","v":"00:00:00"},{"$f":"Time!IOY$59","v":"00:00:00"},{"$f":"Time!IOZ$59","v":"00:00:00"},{"$f":"Time!IPA$59","v":"00:00:00"},{"$f":"Time!IPB$59","v":"00:00:00"},{"$f":"Time!IPC$59","v":"00:00:00"},{"$f":"Time!IPD$59","v":"00:00:00"},{"$f":"Time!IPE$59","v":"00:00:00"},{"$f":"Time!IPF$59","v":"00:00:00"},{"$f":"Time!IPG$59","v":"00:00:00"},{"$f":"Time!IPH$59","v":"00:00:00"},{"$f":"Time!IPI$59","v":"00:00:00"},{"$f":"Time!IPJ$59","v":"00:00:00"},{"$f":"Time!IPK$59","v":"00:00:00"},{"$f":"Time!IPL$59","v":"00:00:00"},{"$f":"Time!IPM$59","v":"00:00:00"},{"$f":"Time!IPN$59","v":"00:00:00"},{"$f":"Time!IPO$59","v":"00:00:00"},{"$f":"Time!IPP$59","v":"00:00:00"},{"$f":"Time!IPQ$59","v":"00:00:00"},{"$f":"Time!IPR$59","v":"00:00:00"},{"$f":"Time!IPS$59","v":"00:00:00"},{"$f":"Time!IPT$59","v":"00:00:00"},{"$f":"Time!IPU$59","v":"00:00:00"},{"$f":"Time!IPV$59","v":"00:00:00"},{"$f":"Time!IPW$59","v":"00:00:00"},{"$f":"Time!IPX$59","v":"00:00:00"},{"$f":"Time!IPY$59","v":"00:00:00"},{"$f":"Time!IPZ$59","v":"00:00:00"},{"$f":"Time!IQA$59","v":"00:00:00"},{"$f":"Time!IQB$59","v":"00:00:00"},{"$f":"Time!IQC$59","v":"00:00:00"},{"$f":"Time!IQD$59","v":"00:00:00"},{"$f":"Time!IQE$59","v":"00:00:00"},{"$f":"Time!IQF$59","v":"00:00:00"},{"$f":"Time!IQG$59","v":"00:00:00"},{"$f":"Time!IQH$59","v":"00:00:00"},{"$f":"Time!IQI$59","v":"00:00:00"},{"$f":"Time!IQJ$59","v":"00:00:00"},{"$f":"Time!IQK$59","v":"00:00:00"},{"$f":"Time!IQL$59","v":"00:00:00"},{"$f":"Time!IQM$59","v":"00:00:00"},{"$f":"Time!IQN$59","v":"00:00:00"},{"$f":"Time!IQO$59","v":"00:00:00"},{"$f":"Time!IQP$59","v":"00:00:00"},{"$f":"Time!IQQ$59","v":"00:00:00"},{"$f":"Time!IQR$59","v":"00:00:00"},{"$f":"Time!IQS$59","v":"00:00:00"},{"$f":"Time!IQT$59","v":"00:00:00"},{"$f":"Time!IQU$59","v":"00:00:00"},{"$f":"Time!IQV$59","v":"00:00:00"},{"$f":"Time!IQW$59","v":"00:00:00"},{"$f":"Time!IQX$59","v":"00:00:00"},{"$f":"Time!IQY$59","v":"00:00:00"},{"$f":"Time!IQZ$59","v":"00:00:00"},{"$f":"Time!IRA$59","v":"00:00:00"},{"$f":"Time!IRB$59","v":"00:00:00"},{"$f":"Time!IRC$59","v":"00:00:00"},{"$f":"Time!IRD$59","v":"00:00:00"},{"$f":"Time!IRE$59","v":"00:00:00"},{"$f":"Time!IRF$59","v":"00:00:00"},{"$f":"Time!IRG$59","v":"00:00:00"},{"$f":"Time!IRH$59","v":"00:00:00"},{"$f":"Time!IRI$59","v":"00:00:00"},{"$f":"Time!IRJ$59","v":"00:00:00"},{"$f":"Time!IRK$59","v":"00:00:00"},{"$f":"Time!IRL$59","v":"00:00:00"},{"$f":"Time!IRM$59","v":"00:00:00"},{"$f":"Time!IRN$59","v":"00:00:00"},{"$f":"Time!IRO$59","v":"00:00:00"},{"$f":"Time!IRP$59","v":"00:00:00"},{"$f":"Time!IRQ$59","v":"00:00:00"},{"$f":"Time!IRR$59","v":"00:00:00"},{"$f":"Time!IRS$59","v":"00:00:00"},{"$f":"Time!IRT$59","v":"00:00:00"},{"$f":"Time!IRU$59","v":"00:00:00"},{"$f":"Time!IRV$59","v":"00:00:00"},{"$f":"Time!IRW$59","v":"00:00:00"},{"$f":"Time!IRX$59","v":"00:00:00"},{"$f":"Time!IRY$59","v":"00:00:00"},{"$f":"Time!IRZ$59","v":"00:00:00"},{"$f":"Time!ISA$59","v":"00:00:00"},{"$f":"Time!ISB$59","v":"00:00:00"},{"$f":"Time!ISC$59","v":"00:00:00"},{"$f":"Time!ISD$59","v":"00:00:00"},{"$f":"Time!ISE$59","v":"00:00:00"},{"$f":"Time!ISF$59","v":"00:00:00"},{"$f":"Time!ISG$59","v":"00:00:00"},{"$f":"Time!ISH$59","v":"00:00:00"},{"$f":"Time!ISI$59","v":"00:00:00"},{"$f":"Time!ISJ$59","v":"00:00:00"},{"$f":"Time!ISK$59","v":"00:00:00"},{"$f":"Time!ISL$59","v":"00:00:00"},{"$f":"Time!ISM$59","v":"00:00:00"},{"$f":"Time!ISN$59","v":"00:00:00"},{"$f":"Time!ISO$59","v":"00:00:00"},{"$f":"Time!ISP$59","v":"00:00:00"},{"$f":"Time!ISQ$59","v":"00:00:00"},{"$f":"Time!ISR$59","v":"00:00:00"},{"$f":"Time!ISS$59","v":"00:00:00"},{"$f":"Time!IST$59","v":"00:00:00"},{"$f":"Time!ISU$59","v":"00:00:00"},{"$f":"Time!ISV$59","v":"00:00:00"},{"$f":"Time!ISW$59","v":"00:00:00"},{"$f":"Time!ISX$59","v":"00:00:00"},{"$f":"Time!ISY$59","v":"00:00:00"},{"$f":"Time!ISZ$59","v":"00:00:00"},{"$f":"Time!ITA$59","v":"00:00:00"},{"$f":"Time!ITB$59","v":"00:00:00"},{"$f":"Time!ITC$59","v":"00:00:00"},{"$f":"Time!ITD$59","v":"00:00:00"},{"$f":"Time!ITE$59","v":"00:00:00"},{"$f":"Time!ITF$59","v":"00:00:00"},{"$f":"Time!ITG$59","v":"00:00:00"},{"$f":"Time!ITH$59","v":"00:00:00"},{"$f":"Time!ITI$59","v":"00:00:00"},{"$f":"Time!ITJ$59","v":"00:00:00"},{"$f":"Time!ITK$59","v":"00:00:00"},{"$f":"Time!ITL$59","v":"00:00:00"},{"$f":"Time!ITM$59","v":"00:00:00"},{"$f":"Time!ITN$59","v":"00:00:00"},{"$f":"Time!ITO$59","v":"00:00:00"},{"$f":"Time!ITP$59","v":"00:00:00"},{"$f":"Time!ITQ$59","v":"00:00:00"},{"$f":"Time!ITR$59","v":"00:00:00"},{"$f":"Time!ITS$59","v":"00:00:00"},{"$f":"Time!ITT$59","v":"00:00:00"},{"$f":"Time!ITU$59","v":"00:00:00"},{"$f":"Time!ITV$59","v":"00:00:00"},{"$f":"Time!ITW$59","v":"00:00:00"},{"$f":"Time!ITX$59","v":"00:00:00"},{"$f":"Time!ITY$59","v":"00:00:00"},{"$f":"Time!ITZ$59","v":"00:00:00"},{"$f":"Time!IUA$59","v":"00:00:00"},{"$f":"Time!IUB$59","v":"00:00:00"},{"$f":"Time!IUC$59","v":"00:00:00"},{"$f":"Time!IUD$59","v":"00:00:00"},{"$f":"Time!IUE$59","v":"00:00:00"},{"$f":"Time!IUF$59","v":"00:00:00"},{"$f":"Time!IUG$59","v":"00:00:00"},{"$f":"Time!IUH$59","v":"00:00:00"},{"$f":"Time!IUI$59","v":"00:00:00"},{"$f":"Time!IUJ$59","v":"00:00:00"},{"$f":"Time!IUK$59","v":"00:00:00"},{"$f":"Time!IUL$59","v":"00:00:00"},{"$f":"Time!IUM$59","v":"00:00:00"},{"$f":"Time!IUN$59","v":"00:00:00"},{"$f":"Time!IUO$59","v":"00:00:00"},{"$f":"Time!IUP$59","v":"00:00:00"},{"$f":"Time!IUQ$59","v":"00:00:00"},{"$f":"Time!IUR$59","v":"00:00:00"},{"$f":"Time!IUS$59","v":"00:00:00"},{"$f":"Time!IUT$59","v":"00:00:00"},{"$f":"Time!IUU$59","v":"00:00:00"},{"$f":"Time!IUV$59","v":"00:00:00"},{"$f":"Time!IUW$59","v":"00:00:00"},{"$f":"Time!IUX$59","v":"00:00:00"},{"$f":"Time!IUY$59","v":"00:00:00"},{"$f":"Time!IUZ$59","v":"00:00:00"},{"$f":"Time!IVA$59","v":"00:00:00"},{"$f":"Time!IVB$59","v":"00:00:00"},{"$f":"Time!IVC$59","v":"00:00:00"},{"$f":"Time!IVD$59","v":"00:00:00"},{"$f":"Time!IVE$59","v":"00:00:00"},{"$f":"Time!IVF$59","v":"00:00:00"},{"$f":"Time!IVG$59","v":"00:00:00"},{"$f":"Time!IVH$59","v":"00:00:00"},{"$f":"Time!IVI$59","v":"00:00:00"},{"$f":"Time!IVJ$59","v":"00:00:00"},{"$f":"Time!IVK$59","v":"00:00:00"},{"$f":"Time!IVL$59","v":"00:00:00"},{"$f":"Time!IVM$59","v":"00:00:00"},{"$f":"Time!IVN$59","v":"00:00:00"},{"$f":"Time!IVO$59","v":"00:00:00"},{"$f":"Time!IVP$59","v":"00:00:00"},{"$f":"Time!IVQ$59","v":"00:00:00"},{"$f":"Time!IVR$59","v":"00:00:00"},{"$f":"Time!IVS$59","v":"00:00:00"},{"$f":"Time!IVT$59","v":"00:00:00"},{"$f":"Time!IVU$59","v":"00:00:00"},{"$f":"Time!IVV$59","v":"00:00:00"},{"$f":"Time!IVW$59","v":"00:00:00"},{"$f":"Time!IVX$59","v":"00:00:00"},{"$f":"Time!IVY$59","v":"00:00:00"},{"$f":"Time!IVZ$59","v":"00:00:00"},{"$f":"Time!IWA$59","v":"00:00:00"},{"$f":"Time!IWB$59","v":"00:00:00"},{"$f":"Time!IWC$59","v":"00:00:00"},{"$f":"Time!IWD$59","v":"00:00:00"},{"$f":"Time!IWE$59","v":"00:00:00"},{"$f":"Time!IWF$59","v":"00:00:00"},{"$f":"Time!IWG$59","v":"00:00:00"},{"$f":"Time!IWH$59","v":"00:00:00"},{"$f":"Time!IWI$59","v":"00:00:00"},{"$f":"Time!IWJ$59","v":"00:00:00"},{"$f":"Time!IWK$59","v":"00:00:00"},{"$f":"Time!IWL$59","v":"00:00:00"},{"$f":"Time!IWM$59","v":"00:00:00"},{"$f":"Time!IWN$59","v":"00:00:00"},{"$f":"Time!IWO$59","v":"00:00:00"},{"$f":"Time!IWP$59","v":"00:00:00"},{"$f":"Time!IWQ$59","v":"00:00:00"},{"$f":"Time!IWR$59","v":"00:00:00"},{"$f":"Time!IWS$59","v":"00:00:00"},{"$f":"Time!IWT$59","v":"00:00:00"},{"$f":"Time!IWU$59","v":"00:00:00"},{"$f":"Time!IWV$59","v":"00:00:00"},{"$f":"Time!IWW$59","v":"00:00:00"},{"$f":"Time!IWX$59","v":"00:00:00"},{"$f":"Time!IWY$59","v":"00:00:00"},{"$f":"Time!IWZ$59","v":"00:00:00"},{"$f":"Time!IXA$59","v":"00:00:00"},{"$f":"Time!IXB$59","v":"00:00:00"},{"$f":"Time!IXC$59","v":"00:00:00"},{"$f":"Time!IXD$59","v":"00:00:00"},{"$f":"Time!IXE$59","v":"00:00:00"},{"$f":"Time!IXF$59","v":"00:00:00"},{"$f":"Time!IXG$59","v":"00:00:00"},{"$f":"Time!IXH$59","v":"00:00:00"},{"$f":"Time!IXI$59","v":"00:00:00"},{"$f":"Time!IXJ$59","v":"00:00:00"},{"$f":"Time!IXK$59","v":"00:00:00"},{"$f":"Time!IXL$59","v":"00:00:00"},{"$f":"Time!IXM$59","v":"00:00:00"},{"$f":"Time!IXN$59","v":"00:00:00"},{"$f":"Time!IXO$59","v":"00:00:00"},{"$f":"Time!IXP$59","v":"00:00:00"},{"$f":"Time!IXQ$59","v":"00:00:00"},{"$f":"Time!IXR$59","v":"00:00:00"},{"$f":"Time!IXS$59","v":"00:00:00"},{"$f":"Time!IXT$59","v":"00:00:00"},{"$f":"Time!IXU$59","v":"00:00:00"},{"$f":"Time!IXV$59","v":"00:00:00"},{"$f":"Time!IXW$59","v":"00:00:00"},{"$f":"Time!IXX$59","v":"00:00:00"},{"$f":"Time!IXY$59","v":"00:00:00"},{"$f":"Time!IXZ$59","v":"00:00:00"},{"$f":"Time!IYA$59","v":"00:00:00"},{"$f":"Time!IYB$59","v":"00:00:00"},{"$f":"Time!IYC$59","v":"00:00:00"},{"$f":"Time!IYD$59","v":"00:00:00"},{"$f":"Time!IYE$59","v":"00:00:00"},{"$f":"Time!IYF$59","v":"00:00:00"},{"$f":"Time!IYG$59","v":"00:00:00"},{"$f":"Time!IYH$59","v":"00:00:00"},{"$f":"Time!IYI$59","v":"00:00:00"},{"$f":"Time!IYJ$59","v":"00:00:00"},{"$f":"Time!IYK$59","v":"00:00:00"},{"$f":"Time!IYL$59","v":"00:00:00"},{"$f":"Time!IYM$59","v":"00:00:00"},{"$f":"Time!IYN$59","v":"00:00:00"},{"$f":"Time!IYO$59","v":"00:00:00"},{"$f":"Time!IYP$59","v":"00:00:00"},{"$f":"Time!IYQ$59","v":"00:00:00"},{"$f":"Time!IYR$59","v":"00:00:00"},{"$f":"Time!IYS$59","v":"00:00:00"},{"$f":"Time!IYT$59","v":"00:00:00"},{"$f":"Time!IYU$59","v":"00:00:00"},{"$f":"Time!IYV$59","v":"00:00:00"},{"$f":"Time!IYW$59","v":"00:00:00"},{"$f":"Time!IYX$59","v":"00:00:00"},{"$f":"Time!IYY$59","v":"00:00:00"},{"$f":"Time!IYZ$59","v":"00:00:00"},{"$f":"Time!IZA$59","v":"00:00:00"},{"$f":"Time!IZB$59","v":"00:00:00"},{"$f":"Time!IZC$59","v":"00:00:00"},{"$f":"Time!IZD$59","v":"00:00:00"},{"$f":"Time!IZE$59","v":"00:00:00"},{"$f":"Time!IZF$59","v":"00:00:00"},{"$f":"Time!IZG$59","v":"00:00:00"},{"$f":"Time!IZH$59","v":"00:00:00"},{"$f":"Time!IZI$59","v":"00:00:00"},{"$f":"Time!IZJ$59","v":"00:00:00"},{"$f":"Time!IZK$59","v":"00:00:00"},{"$f":"Time!IZL$59","v":"00:00:00"},{"$f":"Time!IZM$59","v":"00:00:00"},{"$f":"Time!IZN$59","v":"00:00:00"},{"$f":"Time!IZO$59","v":"00:00:00"},{"$f":"Time!IZP$59","v":"00:00:00"},{"$f":"Time!IZQ$59","v":"00:00:00"},{"$f":"Time!IZR$59","v":"00:00:00"},{"$f":"Time!IZS$59","v":"00:00:00"},{"$f":"Time!IZT$59","v":"00:00:00"},{"$f":"Time!IZU$59","v":"00:00:00"},{"$f":"Time!IZV$59","v":"00:00:00"},{"$f":"Time!IZW$59","v":"00:00:00"},{"$f":"Time!IZX$59","v":"00:00:00"},{"$f":"Time!IZY$59","v":"00:00:00"},{"$f":"Time!IZZ$59","v":"00:00:00"},{"$f":"Time!JAA$59","v":"00:00:00"},{"$f":"Time!JAB$59","v":"00:00:00"},{"$f":"Time!JAC$59","v":"00:00:00"},{"$f":"Time!JAD$59","v":"00:00:00"},{"$f":"Time!JAE$59","v":"00:00:00"},{"$f":"Time!JAF$59","v":"00:00:00"},{"$f":"Time!JAG$59","v":"00:00:00"},{"$f":"Time!JAH$59","v":"00:00:00"},{"$f":"Time!JAI$59","v":"00:00:00"},{"$f":"Time!JAJ$59","v":"00:00:00"},{"$f":"Time!JAK$59","v":"00:00:00"},{"$f":"Time!JAL$59","v":"00:00:00"},{"$f":"Time!JAM$59","v":"00:00:00"},{"$f":"Time!JAN$59","v":"00:00:00"},{"$f":"Time!JAO$59","v":"00:00:00"},{"$f":"Time!JAP$59","v":"00:00:00"},{"$f":"Time!JAQ$59","v":"00:00:00"},{"$f":"Time!JAR$59","v":"00:00:00"},{"$f":"Time!JAS$59","v":"00:00:00"},{"$f":"Time!JAT$59","v":"00:00:00"},{"$f":"Time!JAU$59","v":"00:00:00"},{"$f":"Time!JAV$59","v":"00:00:00"},{"$f":"Time!JAW$59","v":"00:00:00"},{"$f":"Time!JAX$59","v":"00:00:00"},{"$f":"Time!JAY$59","v":"00:00:00"},{"$f":"Time!JAZ$59","v":"00:00:00"},{"$f":"Time!JBA$59","v":"00:00:00"},{"$f":"Time!JBB$59","v":"00:00:00"},{"$f":"Time!JBC$59","v":"00:00:00"},{"$f":"Time!JBD$59","v":"00:00:00"},{"$f":"Time!JBE$59","v":"00:00:00"},{"$f":"Time!JBF$59","v":"00:00:00"},{"$f":"Time!JBG$59","v":"00:00:00"},{"$f":"Time!JBH$59","v":"00:00:00"},{"$f":"Time!JBI$59","v":"00:00:00"},{"$f":"Time!JBJ$59","v":"00:00:00"},{"$f":"Time!JBK$59","v":"00:00:00"},{"$f":"Time!JBL$59","v":"00:00:00"},{"$f":"Time!JBM$59","v":"00:00:00"},{"$f":"Time!JBN$59","v":"00:00:00"},{"$f":"Time!JBO$59","v":"00:00:00"},{"$f":"Time!JBP$59","v":"00:00:00"},{"$f":"Time!JBQ$59","v":"00:00:00"},{"$f":"Time!JBR$59","v":"00:00:00"},{"$f":"Time!JBS$59","v":"00:00:00"},{"$f":"Time!JBT$59","v":"00:00:00"},{"$f":"Time!JBU$59","v":"00:00:00"},{"$f":"Time!JBV$59","v":"00:00:00"},{"$f":"Time!JBW$59","v":"00:00:00"},{"$f":"Time!JBX$59","v":"00:00:00"},{"$f":"Time!JBY$59","v":"00:00:00"},{"$f":"Time!JBZ$59","v":"00:00:00"},{"$f":"Time!JCA$59","v":"00:00:00"},{"$f":"Time!JCB$59","v":"00:00:00"},{"$f":"Time!JCC$59","v":"00:00:00"},{"$f":"Time!JCD$59","v":"00:00:00"},{"$f":"Time!JCE$59","v":"00:00:00"},{"$f":"Time!JCF$59","v":"00:00:00"},{"$f":"Time!JCG$59","v":"00:00:00"},{"$f":"Time!JCH$59","v":"00:00:00"},{"$f":"Time!JCI$59","v":"00:00:00"},{"$f":"Time!JCJ$59","v":"00:00:00"},{"$f":"Time!JCK$59","v":"00:00:00"},{"$f":"Time!JCL$59","v":"00:00:00"},{"$f":"Time!JCM$59","v":"00:00:00"},{"$f":"Time!JCN$59","v":"00:00:00"},{"$f":"Time!JCO$59","v":"00:00:00"},{"$f":"Time!JCP$59","v":"00:00:00"},{"$f":"Time!JCQ$59","v":"00:00:00"},{"$f":"Time!JCR$59","v":"00:00:00"},{"$f":"Time!JCS$59","v":"00:00:00"},{"$f":"Time!JCT$59","v":"00:00:00"},{"$f":"Time!JCU$59","v":"00:00:00"},{"$f":"Time!JCV$59","v":"00:00:00"},{"$f":"Time!JCW$59","v":"00:00:00"},{"$f":"Time!JCX$59","v":"00:00:00"},{"$f":"Time!JCY$59","v":"00:00:00"},{"$f":"Time!JCZ$59","v":"00:00:00"},{"$f":"Time!JDA$59","v":"00:00:00"},{"$f":"Time!JDB$59","v":"00:00:00"},{"$f":"Time!JDC$59","v":"00:00:00"},{"$f":"Time!JDD$59","v":"00:00:00"},{"$f":"Time!JDE$59","v":"00:00:00"},{"$f":"Time!JDF$59","v":"00:00:00"},{"$f":"Time!JDG$59","v":"00:00:00"},{"$f":"Time!JDH$59","v":"00:00:00"},{"$f":"Time!JDI$59","v":"00:00:00"},{"$f":"Time!JDJ$59","v":"00:00:00"},{"$f":"Time!JDK$59","v":"00:00:00"},{"$f":"Time!JDL$59","v":"00:00:00"},{"$f":"Time!JDM$59","v":"00:00:00"},{"$f":"Time!JDN$59","v":"00:00:00"},{"$f":"Time!JDO$59","v":"00:00:00"},{"$f":"Time!JDP$59","v":"00:00:00"},{"$f":"Time!JDQ$59","v":"00:00:00"},{"$f":"Time!JDR$59","v":"00:00:00"},{"$f":"Time!JDS$59","v":"00:00:00"},{"$f":"Time!JDT$59","v":"00:00:00"},{"$f":"Time!JDU$59","v":"00:00:00"},{"$f":"Time!JDV$59","v":"00:00:00"},{"$f":"Time!JDW$59","v":"00:00:00"},{"$f":"Time!JDX$59","v":"00:00:00"},{"$f":"Time!JDY$59","v":"00:00:00"},{"$f":"Time!JDZ$59","v":"00:00:00"},{"$f":"Time!JEA$59","v":"00:00:00"},{"$f":"Time!JEB$59","v":"00:00:00"},{"$f":"Time!JEC$59","v":"00:00:00"},{"$f":"Time!JED$59","v":"00:00:00"},{"$f":"Time!JEE$59","v":"00:00:00"},{"$f":"Time!JEF$59","v":"00:00:00"},{"$f":"Time!JEG$59","v":"00:00:00"},{"$f":"Time!JEH$59","v":"00:00:00"},{"$f":"Time!JEI$59","v":"00:00:00"},{"$f":"Time!JEJ$59","v":"00:00:00"},{"$f":"Time!JEK$59","v":"00:00:00"},{"$f":"Time!JEL$59","v":"00:00:00"},{"$f":"Time!JEM$59","v":"00:00:00"},{"$f":"Time!JEN$59","v":"00:00:00"},{"$f":"Time!JEO$59","v":"00:00:00"},{"$f":"Time!JEP$59","v":"00:00:00"},{"$f":"Time!JEQ$59","v":"00:00:00"},{"$f":"Time!JER$59","v":"00:00:00"},{"$f":"Time!JES$59","v":"00:00:00"},{"$f":"Time!JET$59","v":"00:00:00"},{"$f":"Time!JEU$59","v":"00:00:00"},{"$f":"Time!JEV$59","v":"00:00:00"},{"$f":"Time!JEW$59","v":"00:00:00"},{"$f":"Time!JEX$59","v":"00:00:00"},{"$f":"Time!JEY$59","v":"00:00:00"},{"$f":"Time!JEZ$59","v":"00:00:00"},{"$f":"Time!JFA$59","v":"00:00:00"},{"$f":"Time!JFB$59","v":"00:00:00"},{"$f":"Time!JFC$59","v":"00:00:00"},{"$f":"Time!JFD$59","v":"00:00:00"},{"$f":"Time!JFE$59","v":"00:00:00"},{"$f":"Time!JFF$59","v":"00:00:00"},{"$f":"Time!JFG$59","v":"00:00:00"},{"$f":"Time!JFH$59","v":"00:00:00"},{"$f":"Time!JFI$59","v":"00:00:00"},{"$f":"Time!JFJ$59","v":"00:00:00"},{"$f":"Time!JFK$59","v":"00:00:00"},{"$f":"Time!JFL$59","v":"00:00:00"},{"$f":"Time!JFM$59","v":"00:00:00"},{"$f":"Time!JFN$59","v":"00:00:00"},{"$f":"Time!JFO$59","v":"00:00:00"},{"$f":"Time!JFP$59","v":"00:00:00"},{"$f":"Time!JFQ$59","v":"00:00:00"},{"$f":"Time!JFR$59","v":"00:00:00"},{"$f":"Time!JFS$59","v":"00:00:00"},{"$f":"Time!JFT$59","v":"00:00:00"},{"$f":"Time!JFU$59","v":"00:00:00"},{"$f":"Time!JFV$59","v":"00:00:00"},{"$f":"Time!JFW$59","v":"00:00:00"},{"$f":"Time!JFX$59","v":"00:00:00"},{"$f":"Time!JFY$59","v":"00:00:00"},{"$f":"Time!JFZ$59","v":"00:00:00"},{"$f":"Time!JGA$59","v":"00:00:00"},{"$f":"Time!JGB$59","v":"00:00:00"},{"$f":"Time!JGC$59","v":"00:00:00"},{"$f":"Time!JGD$59","v":"00:00:00"},{"$f":"Time!JGE$59","v":"00:00:00"},{"$f":"Time!JGF$59","v":"00:00:00"},{"$f":"Time!JGG$59","v":"00:00:00"},{"$f":"Time!JGH$59","v":"00:00:00"},{"$f":"Time!JGI$59","v":"00:00:00"},{"$f":"Time!JGJ$59","v":"00:00:00"},{"$f":"Time!JGK$59","v":"00:00:00"},{"$f":"Time!JGL$59","v":"00:00:00"},{"$f":"Time!JGM$59","v":"00:00:00"},{"$f":"Time!JGN$59","v":"00:00:00"},{"$f":"Time!JGO$59","v":"00:00:00"},{"$f":"Time!JGP$59","v":"00:00:00"},{"$f":"Time!JGQ$59","v":"00:00:00"},{"$f":"Time!JGR$59","v":"00:00:00"},{"$f":"Time!JGS$59","v":"00:00:00"},{"$f":"Time!JGT$59","v":"00:00:00"},{"$f":"Time!JGU$59","v":"00:00:00"},{"$f":"Time!JGV$59","v":"00:00:00"},{"$f":"Time!JGW$59","v":"00:00:00"},{"$f":"Time!JGX$59","v":"00:00:00"},{"$f":"Time!JGY$59","v":"00:00:00"},{"$f":"Time!JGZ$59","v":"00:00:00"},{"$f":"Time!JHA$59","v":"00:00:00"},{"$f":"Time!JHB$59","v":"00:00:00"},{"$f":"Time!JHC$59","v":"00:00:00"},{"$f":"Time!JHD$59","v":"00:00:00"},{"$f":"Time!JHE$59","v":"00:00:00"},{"$f":"Time!JHF$59","v":"00:00:00"},{"$f":"Time!JHG$59","v":"00:00:00"},{"$f":"Time!JHH$59","v":"00:00:00"},{"$f":"Time!JHI$59","v":"00:00:00"},{"$f":"Time!JHJ$59","v":"00:00:00"},{"$f":"Time!JHK$59","v":"00:00:00"},{"$f":"Time!JHL$59","v":"00:00:00"},{"$f":"Time!JHM$59","v":"00:00:00"},{"$f":"Time!JHN$59","v":"00:00:00"},{"$f":"Time!JHO$59","v":"00:00:00"},{"$f":"Time!JHP$59","v":"00:00:00"},{"$f":"Time!JHQ$59","v":"00:00:00"},{"$f":"Time!JHR$59","v":"00:00:00"},{"$f":"Time!JHS$59","v":"00:00:00"},{"$f":"Time!JHT$59","v":"00:00:00"},{"$f":"Time!JHU$59","v":"00:00:00"},{"$f":"Time!JHV$59","v":"00:00:00"},{"$f":"Time!JHW$59","v":"00:00:00"},{"$f":"Time!JHX$59","v":"00:00:00"},{"$f":"Time!JHY$59","v":"00:00:00"},{"$f":"Time!JHZ$59","v":"00:00:00"},{"$f":"Time!JIA$59","v":"00:00:00"},{"$f":"Time!JIB$59","v":"00:00:00"},{"$f":"Time!JIC$59","v":"00:00:00"},{"$f":"Time!JID$59","v":"00:00:00"},{"$f":"Time!JIE$59","v":"00:00:00"},{"$f":"Time!JIF$59","v":"00:00:00"},{"$f":"Time!JIG$59","v":"00:00:00"},{"$f":"Time!JIH$59","v":"00:00:00"},{"$f":"Time!JII$59","v":"00:00:00"},{"$f":"Time!JIJ$59","v":"00:00:00"},{"$f":"Time!JIK$59","v":"00:00:00"},{"$f":"Time!JIL$59","v":"00:00:00"},{"$f":"Time!JIM$59","v":"00:00:00"},{"$f":"Time!JIN$59","v":"00:00:00"},{"$f":"Time!JIO$59","v":"00:00:00"},{"$f":"Time!JIP$59","v":"00:00:00"},{"$f":"Time!JIQ$59","v":"00:00:00"},{"$f":"Time!JIR$59","v":"00:00:00"},{"$f":"Time!JIS$59","v":"00:00:00"},{"$f":"Time!JIT$59","v":"00:00:00"},{"$f":"Time!JIU$59","v":"00:00:00"},{"$f":"Time!JIV$59","v":"00:00:00"},{"$f":"Time!JIW$59","v":"00:00:00"},{"$f":"Time!JIX$59","v":"00:00:00"},{"$f":"Time!JIY$59","v":"00:00:00"},{"$f":"Time!JIZ$59","v":"00:00:00"},{"$f":"Time!JJA$59","v":"00:00:00"},{"$f":"Time!JJB$59","v":"00:00:00"},{"$f":"Time!JJC$59","v":"00:00:00"},{"$f":"Time!JJD$59","v":"00:00:00"},{"$f":"Time!JJE$59","v":"00:00:00"},{"$f":"Time!JJF$59","v":"00:00:00"},{"$f":"Time!JJG$59","v":"00:00:00"},{"$f":"Time!JJH$59","v":"00:00:00"},{"$f":"Time!JJI$59","v":"00:00:00"},{"$f":"Time!JJJ$59","v":"00:00:00"},{"$f":"Time!JJK$59","v":"00:00:00"},{"$f":"Time!JJL$59","v":"00:00:00"},{"$f":"Time!JJM$59","v":"00:00:00"},{"$f":"Time!JJN$59","v":"00:00:00"},{"$f":"Time!JJO$59","v":"00:00:00"},{"$f":"Time!JJP$59","v":"00:00:00"},{"$f":"Time!JJQ$59","v":"00:00:00"},{"$f":"Time!JJR$59","v":"00:00:00"},{"$f":"Time!JJS$59","v":"00:00:00"},{"$f":"Time!JJT$59","v":"00:00:00"},{"$f":"Time!JJU$59","v":"00:00:00"},{"$f":"Time!JJV$59","v":"00:00:00"},{"$f":"Time!JJW$59","v":"00:00:00"},{"$f":"Time!JJX$59","v":"00:00:00"},{"$f":"Time!JJY$59","v":"00:00:00"},{"$f":"Time!JJZ$59","v":"00:00:00"},{"$f":"Time!JKA$59","v":"00:00:00"},{"$f":"Time!JKB$59","v":"00:00:00"},{"$f":"Time!JKC$59","v":"00:00:00"},{"$f":"Time!JKD$59","v":"00:00:00"},{"$f":"Time!JKE$59","v":"00:00:00"},{"$f":"Time!JKF$59","v":"00:00:00"},{"$f":"Time!JKG$59","v":"00:00:00"},{"$f":"Time!JKH$59","v":"00:00:00"},{"$f":"Time!JKI$59","v":"00:00:00"},{"$f":"Time!JKJ$59","v":"00:00:00"},{"$f":"Time!JKK$59","v":"00:00:00"},{"$f":"Time!JKL$59","v":"00:00:00"},{"$f":"Time!JKM$59","v":"00:00:00"},{"$f":"Time!JKN$59","v":"00:00:00"},{"$f":"Time!JKO$59","v":"00:00:00"},{"$f":"Time!JKP$59","v":"00:00:00"},{"$f":"Time!JKQ$59","v":"00:00:00"},{"$f":"Time!JKR$59","v":"00:00:00"},{"$f":"Time!JKS$59","v":"00:00:00"},{"$f":"Time!JKT$59","v":"00:00:00"},{"$f":"Time!JKU$59","v":"00:00:00"},{"$f":"Time!JKV$59","v":"00:00:00"},{"$f":"Time!JKW$59","v":"00:00:00"},{"$f":"Time!JKX$59","v":"00:00:00"},{"$f":"Time!JKY$59","v":"00:00:00"},{"$f":"Time!JKZ$59","v":"00:00:00"},{"$f":"Time!JLA$59","v":"00:00:00"},{"$f":"Time!JLB$59","v":"00:00:00"},{"$f":"Time!JLC$59","v":"00:00:00"},{"$f":"Time!JLD$59","v":"00:00:00"},{"$f":"Time!JLE$59","v":"00:00:00"},{"$f":"Time!JLF$59","v":"00:00:00"},{"$f":"Time!JLG$59","v":"00:00:00"},{"$f":"Time!JLH$59","v":"00:00:00"},{"$f":"Time!JLI$59","v":"00:00:00"},{"$f":"Time!JLJ$59","v":"00:00:00"},{"$f":"Time!JLK$59","v":"00:00:00"},{"$f":"Time!JLL$59","v":"00:00:00"},{"$f":"Time!JLM$59","v":"00:00:00"},{"$f":"Time!JLN$59","v":"00:00:00"},{"$f":"Time!JLO$59","v":"00:00:00"},{"$f":"Time!JLP$59","v":"00:00:00"},{"$f":"Time!JLQ$59","v":"00:00:00"},{"$f":"Time!JLR$59","v":"00:00:00"},{"$f":"Time!JLS$59","v":"00:00:00"},{"$f":"Time!JLT$59","v":"00:00:00"},{"$f":"Time!JLU$59","v":"00:00:00"},{"$f":"Time!JLV$59","v":"00:00:00"},{"$f":"Time!JLW$59","v":"00:00:00"},{"$f":"Time!JLX$59","v":"00:00:00"},{"$f":"Time!JLY$59","v":"00:00:00"},{"$f":"Time!JLZ$59","v":"00:00:00"},{"$f":"Time!JMA$59","v":"00:00:00"},{"$f":"Time!JMB$59","v":"00:00:00"},{"$f":"Time!JMC$59","v":"00:00:00"},{"$f":"Time!JMD$59","v":"00:00:00"},{"$f":"Time!JME$59","v":"00:00:00"},{"$f":"Time!JMF$59","v":"00:00:00"},{"$f":"Time!JMG$59","v":"00:00:00"},{"$f":"Time!JMH$59","v":"00:00:00"},{"$f":"Time!JMI$59","v":"00:00:00"},{"$f":"Time!JMJ$59","v":"00:00:00"},{"$f":"Time!JMK$59","v":"00:00:00"},{"$f":"Time!JML$59","v":"00:00:00"},{"$f":"Time!JMM$59","v":"00:00:00"},{"$f":"Time!JMN$59","v":"00:00:00"},{"$f":"Time!JMO$59","v":"00:00:00"},{"$f":"Time!JMP$59","v":"00:00:00"},{"$f":"Time!JMQ$59","v":"00:00:00"},{"$f":"Time!JMR$59","v":"00:00:00"},{"$f":"Time!JMS$59","v":"00:00:00"},{"$f":"Time!JMT$59","v":"00:00:00"},{"$f":"Time!JMU$59","v":"00:00:00"},{"$f":"Time!JMV$59","v":"00:00:00"},{"$f":"Time!JMW$59","v":"00:00:00"},{"$f":"Time!JMX$59","v":"00:00:00"},{"$f":"Time!JMY$59","v":"00:00:00"},{"$f":"Time!JMZ$59","v":"00:00:00"},{"$f":"Time!JNA$59","v":"00:00:00"},{"$f":"Time!JNB$59","v":"00:00:00"},{"$f":"Time!JNC$59","v":"00:00:00"},{"$f":"Time!JND$59","v":"00:00:00"},{"$f":"Time!JNE$59","v":"00:00:00"},{"$f":"Time!JNF$59","v":"00:00:00"},{"$f":"Time!JNG$59","v":"00:00:00"},{"$f":"Time!JNH$59","v":"00:00:00"},{"$f":"Time!JNI$59","v":"00:00:00"},{"$f":"Time!JNJ$59","v":"00:00:00"},{"$f":"Time!JNK$59","v":"00:00:00"},{"$f":"Time!JNL$59","v":"00:00:00"},{"$f":"Time!JNM$59","v":"00:00:00"},{"$f":"Time!JNN$59","v":"00:00:00"},{"$f":"Time!JNO$59","v":"00:00:00"},{"$f":"Time!JNP$59","v":"00:00:00"},{"$f":"Time!JNQ$59","v":"00:00:00"},{"$f":"Time!JNR$59","v":"00:00:00"},{"$f":"Time!JNS$59","v":"00:00:00"},{"$f":"Time!JNT$59","v":"00:00:00"},{"$f":"Time!JNU$59","v":"00:00:00"},{"$f":"Time!JNV$59","v":"00:00:00"},{"$f":"Time!JNW$59","v":"00:00:00"},{"$f":"Time!JNX$59","v":"00:00:00"},{"$f":"Time!JNY$59","v":"00:00:00"},{"$f":"Time!JNZ$59","v":"00:00:00"},{"$f":"Time!JOA$59","v":"00:00:00"},{"$f":"Time!JOB$59","v":"00:00:00"},{"$f":"Time!JOC$59","v":"00:00:00"},{"$f":"Time!JOD$59","v":"00:00:00"},{"$f":"Time!JOE$59","v":"00:00:00"},{"$f":"Time!JOF$59","v":"00:00:00"},{"$f":"Time!JOG$59","v":"00:00:00"},{"$f":"Time!JOH$59","v":"00:00:00"},{"$f":"Time!JOI$59","v":"00:00:00"},{"$f":"Time!JOJ$59","v":"00:00:00"},{"$f":"Time!JOK$59","v":"00:00:00"},{"$f":"Time!JOL$59","v":"00:00:00"},{"$f":"Time!JOM$59","v":"00:00:00"},{"$f":"Time!JON$59","v":"00:00:00"},{"$f":"Time!JOO$59","v":"00:00:00"},{"$f":"Time!JOP$59","v":"00:00:00"},{"$f":"Time!JOQ$59","v":"00:00:00"},{"$f":"Time!JOR$59","v":"00:00:00"},{"$f":"Time!JOS$59","v":"00:00:00"},{"$f":"Time!JOT$59","v":"00:00:00"},{"$f":"Time!JOU$59","v":"00:00:00"},{"$f":"Time!JOV$59","v":"00:00:00"},{"$f":"Time!JOW$59","v":"00:00:00"},{"$f":"Time!JOX$59","v":"00:00:00"},{"$f":"Time!JOY$59","v":"00:00:00"},{"$f":"Time!JOZ$59","v":"00:00:00"},{"$f":"Time!JPA$59","v":"00:00:00"},{"$f":"Time!JPB$59","v":"00:00:00"},{"$f":"Time!JPC$59","v":"00:00:00"},{"$f":"Time!JPD$59","v":"00:00:00"},{"$f":"Time!JPE$59","v":"00:00:00"},{"$f":"Time!JPF$59","v":"00:00:00"},{"$f":"Time!JPG$59","v":"00:00:00"},{"$f":"Time!JPH$59","v":"00:00:00"},{"$f":"Time!JPI$59","v":"00:00:00"},{"$f":"Time!JPJ$59","v":"00:00:00"},{"$f":"Time!JPK$59","v":"00:00:00"},{"$f":"Time!JPL$59","v":"00:00:00"},{"$f":"Time!JPM$59","v":"00:00:00"},{"$f":"Time!JPN$59","v":"00:00:00"},{"$f":"Time!JPO$59","v":"00:00:00"},{"$f":"Time!JPP$59","v":"00:00:00"},{"$f":"Time!JPQ$59","v":"00:00:00"},{"$f":"Time!JPR$59","v":"00:00:00"},{"$f":"Time!JPS$59","v":"00:00:00"},{"$f":"Time!JPT$59","v":"00:00:00"},{"$f":"Time!JPU$59","v":"00:00:00"},{"$f":"Time!JPV$59","v":"00:00:00"},{"$f":"Time!JPW$59","v":"00:00:00"},{"$f":"Time!JPX$59","v":"00:00:00"},{"$f":"Time!JPY$59","v":"00:00:00"},{"$f":"Time!JPZ$59","v":"00:00:00"},{"$f":"Time!JQA$59","v":"00:00:00"},{"$f":"Time!JQB$59","v":"00:00:00"},{"$f":"Time!JQC$59","v":"00:00:00"},{"$f":"Time!JQD$59","v":"00:00:00"},{"$f":"Time!JQE$59","v":"00:00:00"},{"$f":"Time!JQF$59","v":"00:00:00"},{"$f":"Time!JQG$59","v":"00:00:00"},{"$f":"Time!JQH$59","v":"00:00:00"},{"$f":"Time!JQI$59","v":"00:00:00"},{"$f":"Time!JQJ$59","v":"00:00:00"},{"$f":"Time!JQK$59","v":"00:00:00"},{"$f":"Time!JQL$59","v":"00:00:00"},{"$f":"Time!JQM$59","v":"00:00:00"},{"$f":"Time!JQN$59","v":"00:00:00"},{"$f":"Time!JQO$59","v":"00:00:00"},{"$f":"Time!JQP$59","v":"00:00:00"},{"$f":"Time!JQQ$59","v":"00:00:00"},{"$f":"Time!JQR$59","v":"00:00:00"},{"$f":"Time!JQS$59","v":"00:00:00"},{"$f":"Time!JQT$59","v":"00:00:00"},{"$f":"Time!JQU$59","v":"00:00:00"},{"$f":"Time!JQV$59","v":"00:00:00"},{"$f":"Time!JQW$59","v":"00:00:00"},{"$f":"Time!JQX$59","v":"00:00:00"},{"$f":"Time!JQY$59","v":"00:00:00"},{"$f":"Time!JQZ$59","v":"00:00:00"},{"$f":"Time!JRA$59","v":"00:00:00"},{"$f":"Time!JRB$59","v":"00:00:00"},{"$f":"Time!JRC$59","v":"00:00:00"},{"$f":"Time!JRD$59","v":"00:00:00"},{"$f":"Time!JRE$59","v":"00:00:00"},{"$f":"Time!JRF$59","v":"00:00:00"},{"$f":"Time!JRG$59","v":"00:00:00"},{"$f":"Time!JRH$59","v":"00:00:00"},{"$f":"Time!JRI$59","v":"00:00:00"},{"$f":"Time!JRJ$59","v":"00:00:00"},{"$f":"Time!JRK$59","v":"00:00:00"},{"$f":"Time!JRL$59","v":"00:00:00"},{"$f":"Time!JRM$59","v":"00:00:00"},{"$f":"Time!JRN$59","v":"00:00:00"},{"$f":"Time!JRO$59","v":"00:00:00"},{"$f":"Time!JRP$59","v":"00:00:00"},{"$f":"Time!JRQ$59","v":"00:00:00"},{"$f":"Time!JRR$59","v":"00:00:00"},{"$f":"Time!JRS$59","v":"00:00:00"},{"$f":"Time!JRT$59","v":"00:00:00"},{"$f":"Time!JRU$59","v":"00:00:00"},{"$f":"Time!JRV$59","v":"00:00:00"},{"$f":"Time!JRW$59","v":"00:00:00"},{"$f":"Time!JRX$59","v":"00:00:00"},{"$f":"Time!JRY$59","v":"00:00:00"},{"$f":"Time!JRZ$59","v":"00:00:00"},{"$f":"Time!JSA$59","v":"00:00:00"},{"$f":"Time!JSB$59","v":"00:00:00"},{"$f":"Time!JSC$59","v":"00:00:00"},{"$f":"Time!JSD$59","v":"00:00:00"},{"$f":"Time!JSE$59","v":"00:00:00"},{"$f":"Time!JSF$59","v":"00:00:00"},{"$f":"Time!JSG$59","v":"00:00:00"},{"$f":"Time!JSH$59","v":"00:00:00"},{"$f":"Time!JSI$59","v":"00:00:00"},{"$f":"Time!JSJ$59","v":"00:00:00"},{"$f":"Time!JSK$59","v":"00:00:00"},{"$f":"Time!JSL$59","v":"00:00:00"},{"$f":"Time!JSM$59","v":"00:00:00"},{"$f":"Time!JSN$59","v":"00:00:00"},{"$f":"Time!JSO$59","v":"00:00:00"},{"$f":"Time!JSP$59","v":"00:00:00"},{"$f":"Time!JSQ$59","v":"00:00:00"},{"$f":"Time!JSR$59","v":"00:00:00"},{"$f":"Time!JSS$59","v":"00:00:00"},{"$f":"Time!JST$59","v":"00:00:00"},{"$f":"Time!JSU$59","v":"00:00:00"},{"$f":"Time!JSV$59","v":"00:00:00"},{"$f":"Time!JSW$59","v":"00:00:00"},{"$f":"Time!JSX$59","v":"00:00:00"},{"$f":"Time!JSY$59","v":"00:00:00"},{"$f":"Time!JSZ$59","v":"00:00:00"},{"$f":"Time!JTA$59","v":"00:00:00"},{"$f":"Time!JTB$59","v":"00:00:00"},{"$f":"Time!JTC$59","v":"00:00:00"},{"$f":"Time!JTD$59","v":"00:00:00"},{"$f":"Time!JTE$59","v":"00:00:00"},{"$f":"Time!JTF$59","v":"00:00:00"},{"$f":"Time!JTG$59","v":"00:00:00"},{"$f":"Time!JTH$59","v":"00:00:00"},{"$f":"Time!JTI$59","v":"00:00:00"},{"$f":"Time!JTJ$59","v":"00:00:00"},{"$f":"Time!JTK$59","v":"00:00:00"},{"$f":"Time!JTL$59","v":"00:00:00"},{"$f":"Time!JTM$59","v":"00:00:00"},{"$f":"Time!JTN$59","v":"00:00:00"},{"$f":"Time!JTO$59","v":"00:00:00"},{"$f":"Time!JTP$59","v":"00:00:00"},{"$f":"Time!JTQ$59","v":"00:00:00"},{"$f":"Time!JTR$59","v":"00:00:00"},{"$f":"Time!JTS$59","v":"00:00:00"},{"$f":"Time!JTT$59","v":"00:00:00"},{"$f":"Time!JTU$59","v":"00:00:00"},{"$f":"Time!JTV$59","v":"00:00:00"},{"$f":"Time!JTW$59","v":"00:00:00"},{"$f":"Time!JTX$59","v":"00:00:00"},{"$f":"Time!JTY$59","v":"00:00:00"},{"$f":"Time!JTZ$59","v":"00:00:00"},{"$f":"Time!JUA$59","v":"00:00:00"},{"$f":"Time!JUB$59","v":"00:00:00"},{"$f":"Time!JUC$59","v":"00:00:00"},{"$f":"Time!JUD$59","v":"00:00:00"},{"$f":"Time!JUE$59","v":"00:00:00"},{"$f":"Time!JUF$59","v":"00:00:00"},{"$f":"Time!JUG$59","v":"00:00:00"},{"$f":"Time!JUH$59","v":"00:00:00"},{"$f":"Time!JUI$59","v":"00:00:00"},{"$f":"Time!JUJ$59","v":"00:00:00"},{"$f":"Time!JUK$59","v":"00:00:00"},{"$f":"Time!JUL$59","v":"00:00:00"},{"$f":"Time!JUM$59","v":"00:00:00"},{"$f":"Time!JUN$59","v":"00:00:00"},{"$f":"Time!JUO$59","v":"00:00:00"},{"$f":"Time!JUP$59","v":"00:00:00"},{"$f":"Time!JUQ$59","v":"00:00:00"},{"$f":"Time!JUR$59","v":"00:00:00"},{"$f":"Time!JUS$59","v":"00:00:00"},{"$f":"Time!JUT$59","v":"00:00:00"},{"$f":"Time!JUU$59","v":"00:00:00"},{"$f":"Time!JUV$59","v":"00:00:00"},{"$f":"Time!JUW$59","v":"00:00:00"},{"$f":"Time!JUX$59","v":"00:00:00"},{"$f":"Time!JUY$59","v":"00:00:00"},{"$f":"Time!JUZ$59","v":"00:00:00"},{"$f":"Time!JVA$59","v":"00:00:00"},{"$f":"Time!JVB$59","v":"00:00:00"},{"$f":"Time!JVC$59","v":"00:00:00"},{"$f":"Time!JVD$59","v":"00:00:00"},{"$f":"Time!JVE$59","v":"00:00:00"},{"$f":"Time!JVF$59","v":"00:00:00"},{"$f":"Time!JVG$59","v":"00:00:00"},{"$f":"Time!JVH$59","v":"00:00:00"},{"$f":"Time!JVI$59","v":"00:00:00"},{"$f":"Time!JVJ$59","v":"00:00:00"},{"$f":"Time!JVK$59","v":"00:00:00"},{"$f":"Time!JVL$59","v":"00:00:00"},{"$f":"Time!JVM$59","v":"00:00:00"},{"$f":"Time!JVN$59","v":"00:00:00"},{"$f":"Time!JVO$59","v":"00:00:00"},{"$f":"Time!JVP$59","v":"00:00:00"},{"$f":"Time!JVQ$59","v":"00:00:00"},{"$f":"Time!JVR$59","v":"00:00:00"},{"$f":"Time!JVS$59","v":"00:00:00"},{"$f":"Time!JVT$59","v":"00:00:00"},{"$f":"Time!JVU$59","v":"00:00:00"},{"$f":"Time!JVV$59","v":"00:00:00"},{"$f":"Time!JVW$59","v":"00:00:00"},{"$f":"Time!JVX$59","v":"00:00:00"},{"$f":"Time!JVY$59","v":"00:00:00"},{"$f":"Time!JVZ$59","v":"00:00:00"},{"$f":"Time!JWA$59","v":"00:00:00"},{"$f":"Time!JWB$59","v":"00:00:00"},{"$f":"Time!JWC$59","v":"00:00:00"},{"$f":"Time!JWD$59","v":"00:00:00"},{"$f":"Time!JWE$59","v":"00:00:00"},{"$f":"Time!JWF$59","v":"00:00:00"},{"$f":"Time!JWG$59","v":"00:00:00"},{"$f":"Time!JWH$59","v":"00:00:00"},{"$f":"Time!JWI$59","v":"00:00:00"},{"$f":"Time!JWJ$59","v":"00:00:00"},{"$f":"Time!JWK$59","v":"00:00:00"},{"$f":"Time!JWL$59","v":"00:00:00"},{"$f":"Time!JWM$59","v":"00:00:00"},{"$f":"Time!JWN$59","v":"00:00:00"},{"$f":"Time!JWO$59","v":"00:00:00"},{"$f":"Time!JWP$59","v":"00:00:00"},{"$f":"Time!JWQ$59","v":"00:00:00"},{"$f":"Time!JWR$59","v":"00:00:00"},{"$f":"Time!JWS$59","v":"00:00:00"},{"$f":"Time!JWT$59","v":"00:00:00"},{"$f":"Time!JWU$59","v":"00:00:00"},{"$f":"Time!JWV$59","v":"00:00:00"},{"$f":"Time!JWW$59","v":"00:00:00"},{"$f":"Time!JWX$59","v":"00:00:00"},{"$f":"Time!JWY$59","v":"00:00:00"},{"$f":"Time!JWZ$59","v":"00:00:00"},{"$f":"Time!JXA$59","v":"00:00:00"},{"$f":"Time!JXB$59","v":"00:00:00"},{"$f":"Time!JXC$59","v":"00:00:00"},{"$f":"Time!JXD$59","v":"00:00:00"},{"$f":"Time!JXE$59","v":"00:00:00"},{"$f":"Time!JXF$59","v":"00:00:00"},{"$f":"Time!JXG$59","v":"00:00:00"},{"$f":"Time!JXH$59","v":"00:00:00"},{"$f":"Time!JXI$59","v":"00:00:00"},{"$f":"Time!JXJ$59","v":"00:00:00"},{"$f":"Time!JXK$59","v":"00:00:00"},{"$f":"Time!JXL$59","v":"00:00:00"},{"$f":"Time!JXM$59","v":"00:00:00"},{"$f":"Time!JXN$59","v":"00:00:00"},{"$f":"Time!JXO$59","v":"00:00:00"},{"$f":"Time!JXP$59","v":"00:00:00"},{"$f":"Time!JXQ$59","v":"00:00:00"},{"$f":"Time!JXR$59","v":"00:00:00"},{"$f":"Time!JXS$59","v":"00:00:00"},{"$f":"Time!JXT$59","v":"00:00:00"},{"$f":"Time!JXU$59","v":"00:00:00"},{"$f":"Time!JXV$59","v":"00:00:00"},{"$f":"Time!JXW$59","v":"00:00:00"},{"$f":"Time!JXX$59","v":"00:00:00"},{"$f":"Time!JXY$59","v":"00:00:00"},{"$f":"Time!JXZ$59","v":"00:00:00"},{"$f":"Time!JYA$59","v":"00:00:00"},{"$f":"Time!JYB$59","v":"00:00:00"},{"$f":"Time!JYC$59","v":"00:00:00"},{"$f":"Time!JYD$59","v":"00:00:00"},{"$f":"Time!JYE$59","v":"00:00:00"},{"$f":"Time!JYF$59","v":"00:00:00"},{"$f":"Time!JYG$59","v":"00:00:00"},{"$f":"Time!JYH$59","v":"00:00:00"},{"$f":"Time!JYI$59","v":"00:00:00"},{"$f":"Time!JYJ$59","v":"00:00:00"},{"$f":"Time!JYK$59","v":"00:00:00"},{"$f":"Time!JYL$59","v":"00:00:00"},{"$f":"Time!JYM$59","v":"00:00:00"},{"$f":"Time!JYN$59","v":"00:00:00"},{"$f":"Time!JYO$59","v":"00:00:00"},{"$f":"Time!JYP$59","v":"00:00:00"},{"$f":"Time!JYQ$59","v":"00:00:00"},{"$f":"Time!JYR$59","v":"00:00:00"},{"$f":"Time!JYS$59","v":"00:00:00"},{"$f":"Time!JYT$59","v":"00:00:00"},{"$f":"Time!JYU$59","v":"00:00:00"},{"$f":"Time!JYV$59","v":"00:00:00"},{"$f":"Time!JYW$59","v":"00:00:00"},{"$f":"Time!JYX$59","v":"00:00:00"},{"$f":"Time!JYY$59","v":"00:00:00"},{"$f":"Time!JYZ$59","v":"00:00:00"},{"$f":"Time!JZA$59","v":"00:00:00"},{"$f":"Time!JZB$59","v":"00:00:00"},{"$f":"Time!JZC$59","v":"00:00:00"},{"$f":"Time!JZD$59","v":"00:00:00"},{"$f":"Time!JZE$59","v":"00:00:00"},{"$f":"Time!JZF$59","v":"00:00:00"},{"$f":"Time!JZG$59","v":"00:00:00"},{"$f":"Time!JZH$59","v":"00:00:00"},{"$f":"Time!JZI$59","v":"00:00:00"},{"$f":"Time!JZJ$59","v":"00:00:00"},{"$f":"Time!JZK$59","v":"00:00:00"},{"$f":"Time!JZL$59","v":"00:00:00"},{"$f":"Time!JZM$59","v":"00:00:00"},{"$f":"Time!JZN$59","v":"00:00:00"},{"$f":"Time!JZO$59","v":"00:00:00"},{"$f":"Time!JZP$59","v":"00:00:00"},{"$f":"Time!JZQ$59","v":"00:00:00"},{"$f":"Time!JZR$59","v":"00:00:00"},{"$f":"Time!JZS$59","v":"00:00:00"},{"$f":"Time!JZT$59","v":"00:00:00"},{"$f":"Time!JZU$59","v":"00:00:00"},{"$f":"Time!JZV$59","v":"00:00:00"},{"$f":"Time!JZW$59","v":"00:00:00"},{"$f":"Time!JZX$59","v":"00:00:00"},{"$f":"Time!JZY$59","v":"00:00:00"},{"$f":"Time!JZZ$59","v":"00:00:00"},{"$f":"Time!KAA$59","v":"00:00:00"},{"$f":"Time!KAB$59","v":"00:00:00"},{"$f":"Time!KAC$59","v":"00:00:00"},{"$f":"Time!KAD$59","v":"00:00:00"},{"$f":"Time!KAE$59","v":"00:00:00"},{"$f":"Time!KAF$59","v":"00:00:00"},{"$f":"Time!KAG$59","v":"00:00:00"},{"$f":"Time!KAH$59","v":"00:00:00"},{"$f":"Time!KAI$59","v":"00:00:00"},{"$f":"Time!KAJ$59","v":"00:00:00"},{"$f":"Time!KAK$59","v":"00:00:00"},{"$f":"Time!KAL$59","v":"00:00:00"},{"$f":"Time!KAM$59","v":"00:00:00"},{"$f":"Time!KAN$59","v":"00:00:00"},{"$f":"Time!KAO$59","v":"00:00:00"},{"$f":"Time!KAP$59","v":"00:00:00"},{"$f":"Time!KAQ$59","v":"00:00:00"},{"$f":"Time!KAR$59","v":"00:00:00"},{"$f":"Time!KAS$59","v":"00:00:00"},{"$f":"Time!KAT$59","v":"00:00:00"},{"$f":"Time!KAU$59","v":"00:00:00"},{"$f":"Time!KAV$59","v":"00:00:00"},{"$f":"Time!KAW$59","v":"00:00:00"},{"$f":"Time!KAX$59","v":"00:00:00"},{"$f":"Time!KAY$59","v":"00:00:00"},{"$f":"Time!KAZ$59","v":"00:00:00"},{"$f":"Time!KBA$59","v":"00:00:00"},{"$f":"Time!KBB$59","v":"00:00:00"},{"$f":"Time!KBC$59","v":"00:00:00"},{"$f":"Time!KBD$59","v":"00:00:00"},{"$f":"Time!KBE$59","v":"00:00:00"},{"$f":"Time!KBF$59","v":"00:00:00"},{"$f":"Time!KBG$59","v":"00:00:00"},{"$f":"Time!KBH$59","v":"00:00:00"},{"$f":"Time!KBI$59","v":"00:00:00"},{"$f":"Time!KBJ$59","v":"00:00:00"},{"$f":"Time!KBK$59","v":"00:00:00"},{"$f":"Time!KBL$59","v":"00:00:00"},{"$f":"Time!KBM$59","v":"00:00:00"},{"$f":"Time!KBN$59","v":"00:00:00"},{"$f":"Time!KBO$59","v":"00:00:00"},{"$f":"Time!KBP$59","v":"00:00:00"},{"$f":"Time!KBQ$59","v":"00:00:00"},{"$f":"Time!KBR$59","v":"00:00:00"},{"$f":"Time!KBS$59","v":"00:00:00"},{"$f":"Time!KBT$59","v":"00:00:00"},{"$f":"Time!KBU$59","v":"00:00:00"},{"$f":"Time!KBV$59","v":"00:00:00"},{"$f":"Time!KBW$59","v":"00:00:00"},{"$f":"Time!KBX$59","v":"00:00:00"},{"$f":"Time!KBY$59","v":"00:00:00"},{"$f":"Time!KBZ$59","v":"00:00:00"},{"$f":"Time!KCA$59","v":"00:00:00"},{"$f":"Time!KCB$59","v":"00:00:00"},{"$f":"Time!KCC$59","v":"00:00:00"},{"$f":"Time!KCD$59","v":"00:00:00"},{"$f":"Time!KCE$59","v":"00:00:00"},{"$f":"Time!KCF$59","v":"00:00:00"},{"$f":"Time!KCG$59","v":"00:00:00"},{"$f":"Time!KCH$59","v":"00:00:00"},{"$f":"Time!KCI$59","v":"00:00:00"},{"$f":"Time!KCJ$59","v":"00:00:00"},{"$f":"Time!KCK$59","v":"00:00:00"},{"$f":"Time!KCL$59","v":"00:00:00"},{"$f":"Time!KCM$59","v":"00:00:00"},{"$f":"Time!KCN$59","v":"00:00:00"},{"$f":"Time!KCO$59","v":"00:00:00"},{"$f":"Time!KCP$59","v":"00:00:00"},{"$f":"Time!KCQ$59","v":"00:00:00"},{"$f":"Time!KCR$59","v":"00:00:00"},{"$f":"Time!KCS$59","v":"00:00:00"},{"$f":"Time!KCT$59","v":"00:00:00"},{"$f":"Time!KCU$59","v":"00:00:00"},{"$f":"Time!KCV$59","v":"00:00:00"},{"$f":"Time!KCW$59","v":"00:00:00"},{"$f":"Time!KCX$59","v":"00:00:00"},{"$f":"Time!KCY$59","v":"00:00:00"},{"$f":"Time!KCZ$59","v":"00:00:00"},{"$f":"Time!KDA$59","v":"00:00:00"},{"$f":"Time!KDB$59","v":"00:00:00"},{"$f":"Time!KDC$59","v":"00:00:00"},{"$f":"Time!KDD$59","v":"00:00:00"},{"$f":"Time!KDE$59","v":"00:00:00"},{"$f":"Time!KDF$59","v":"00:00:00"},{"$f":"Time!KDG$59","v":"00:00:00"},{"$f":"Time!KDH$59","v":"00:00:00"},{"$f":"Time!KDI$59","v":"00:00:00"},{"$f":"Time!KDJ$59","v":"00:00:00"},{"$f":"Time!KDK$59","v":"00:00:00"},{"$f":"Time!KDL$59","v":"00:00:00"},{"$f":"Time!KDM$59","v":"00:00:00"},{"$f":"Time!KDN$59","v":"00:00:00"},{"$f":"Time!KDO$59","v":"00:00:00"},{"$f":"Time!KDP$59","v":"00:00:00"},{"$f":"Time!KDQ$59","v":"00:00:00"},{"$f":"Time!KDR$59","v":"00:00:00"},{"$f":"Time!KDS$59","v":"00:00:00"},{"$f":"Time!KDT$59","v":"00:00:00"},{"$f":"Time!KDU$59","v":"00:00:00"},{"$f":"Time!KDV$59","v":"00:00:00"},{"$f":"Time!KDW$59","v":"00:00:00"},{"$f":"Time!KDX$59","v":"00:00:00"},{"$f":"Time!KDY$59","v":"00:00:00"},{"$f":"Time!KDZ$59","v":"00:00:00"},{"$f":"Time!KEA$59","v":"00:00:00"},{"$f":"Time!KEB$59","v":"00:00:00"},{"$f":"Time!KEC$59","v":"00:00:00"},{"$f":"Time!KED$59","v":"00:00:00"},{"$f":"Time!KEE$59","v":"00:00:00"},{"$f":"Time!KEF$59","v":"00:00:00"},{"$f":"Time!KEG$59","v":"00:00:00"},{"$f":"Time!KEH$59","v":"00:00:00"},{"$f":"Time!KEI$59","v":"00:00:00"},{"$f":"Time!KEJ$59","v":"00:00:00"},{"$f":"Time!KEK$59","v":"00:00:00"},{"$f":"Time!KEL$59","v":"00:00:00"},{"$f":"Time!KEM$59","v":"00:00:00"},{"$f":"Time!KEN$59","v":"00:00:00"},{"$f":"Time!KEO$59","v":"00:00:00"},{"$f":"Time!KEP$59","v":"00:00:00"},{"$f":"Time!KEQ$59","v":"00:00:00"},{"$f":"Time!KER$59","v":"00:00:00"},{"$f":"Time!KES$59","v":"00:00:00"},{"$f":"Time!KET$59","v":"00:00:00"},{"$f":"Time!KEU$59","v":"00:00:00"},{"$f":"Time!KEV$59","v":"00:00:00"},{"$f":"Time!KEW$59","v":"00:00:00"},{"$f":"Time!KEX$59","v":"00:00:00"},{"$f":"Time!KEY$59","v":"00:00:00"},{"$f":"Time!KEZ$59","v":"00:00:00"},{"$f":"Time!KFA$59","v":"00:00:00"},{"$f":"Time!KFB$59","v":"00:00:00"},{"$f":"Time!KFC$59","v":"00:00:00"},{"$f":"Time!KFD$59","v":"00:00:00"},{"$f":"Time!KFE$59","v":"00:00:00"},{"$f":"Time!KFF$59","v":"00:00:00"},{"$f":"Time!KFG$59","v":"00:00:00"},{"$f":"Time!KFH$59","v":"00:00:00"},{"$f":"Time!KFI$59","v":"00:00:00"},{"$f":"Time!KFJ$59","v":"00:00:00"},{"$f":"Time!KFK$59","v":"00:00:00"},{"$f":"Time!KFL$59","v":"00:00:00"},{"$f":"Time!KFM$59","v":"00:00:00"},{"$f":"Time!KFN$59","v":"00:00:00"},{"$f":"Time!KFO$59","v":"00:00:00"},{"$f":"Time!KFP$59","v":"00:00:00"},{"$f":"Time!KFQ$59","v":"00:00:00"},{"$f":"Time!KFR$59","v":"00:00:00"},{"$f":"Time!KFS$59","v":"00:00:00"},{"$f":"Time!KFT$59","v":"00:00:00"},{"$f":"Time!KFU$59","v":"00:00:00"},{"$f":"Time!KFV$59","v":"00:00:00"},{"$f":"Time!KFW$59","v":"00:00:00"},{"$f":"Time!KFX$59","v":"00:00:00"},{"$f":"Time!KFY$59","v":"00:00:00"},{"$f":"Time!KFZ$59","v":"00:00:00"},{"$f":"Time!KGA$59","v":"00:00:00"},{"$f":"Time!KGB$59","v":"00:00:00"},{"$f":"Time!KGC$59","v":"00:00:00"},{"$f":"Time!KGD$59","v":"00:00:00"},{"$f":"Time!KGE$59","v":"00:00:00"},{"$f":"Time!KGF$59","v":"00:00:00"},{"$f":"Time!KGG$59","v":"00:00:00"},{"$f":"Time!KGH$59","v":"00:00:00"},{"$f":"Time!KGI$59","v":"00:00:00"},{"$f":"Time!KGJ$59","v":"00:00:00"},{"$f":"Time!KGK$59","v":"00:00:00"},{"$f":"Time!KGL$59","v":"00:00:00"},{"$f":"Time!KGM$59","v":"00:00:00"},{"$f":"Time!KGN$59","v":"00:00:00"},{"$f":"Time!KGO$59","v":"00:00:00"},{"$f":"Time!KGP$59","v":"00:00:00"},{"$f":"Time!KGQ$59","v":"00:00:00"},{"$f":"Time!KGR$59","v":"00:00:00"},{"$f":"Time!KGS$59","v":"00:00:00"},{"$f":"Time!KGT$59","v":"00:00:00"},{"$f":"Time!KGU$59","v":"00:00:00"},{"$f":"Time!KGV$59","v":"00:00:00"},{"$f":"Time!KGW$59","v":"00:00:00"},{"$f":"Time!KGX$59","v":"00:00:00"},{"$f":"Time!KGY$59","v":"00:00:00"},{"$f":"Time!KGZ$59","v":"00:00:00"},{"$f":"Time!KHA$59","v":"00:00:00"},{"$f":"Time!KHB$59","v":"00:00:00"},{"$f":"Time!KHC$59","v":"00:00:00"},{"$f":"Time!KHD$59","v":"00:00:00"},{"$f":"Time!KHE$59","v":"00:00:00"},{"$f":"Time!KHF$59","v":"00:00:00"},{"$f":"Time!KHG$59","v":"00:00:00"},{"$f":"Time!KHH$59","v":"00:00:00"},{"$f":"Time!KHI$59","v":"00:00:00"},{"$f":"Time!KHJ$59","v":"00:00:00"},{"$f":"Time!KHK$59","v":"00:00:00"},{"$f":"Time!KHL$59","v":"00:00:00"},{"$f":"Time!KHM$59","v":"00:00:00"},{"$f":"Time!KHN$59","v":"00:00:00"},{"$f":"Time!KHO$59","v":"00:00:00"},{"$f":"Time!KHP$59","v":"00:00:00"},{"$f":"Time!KHQ$59","v":"00:00:00"},{"$f":"Time!KHR$59","v":"00:00:00"},{"$f":"Time!KHS$59","v":"00:00:00"},{"$f":"Time!KHT$59","v":"00:00:00"},{"$f":"Time!KHU$59","v":"00:00:00"},{"$f":"Time!KHV$59","v":"00:00:00"},{"$f":"Time!KHW$59","v":"00:00:00"},{"$f":"Time!KHX$59","v":"00:00:00"},{"$f":"Time!KHY$59","v":"00:00:00"},{"$f":"Time!KHZ$59","v":"00:00:00"},{"$f":"Time!KIA$59","v":"00:00:00"},{"$f":"Time!KIB$59","v":"00:00:00"},{"$f":"Time!KIC$59","v":"00:00:00"},{"$f":"Time!KID$59","v":"00:00:00"},{"$f":"Time!KIE$59","v":"00:00:00"},{"$f":"Time!KIF$59","v":"00:00:00"},{"$f":"Time!KIG$59","v":"00:00:00"},{"$f":"Time!KIH$59","v":"00:00:00"},{"$f":"Time!KII$59","v":"00:00:00"},{"$f":"Time!KIJ$59","v":"00:00:00"},{"$f":"Time!KIK$59","v":"00:00:00"},{"$f":"Time!KIL$59","v":"00:00:00"},{"$f":"Time!KIM$59","v":"00:00:00"},{"$f":"Time!KIN$59","v":"00:00:00"},{"$f":"Time!KIO$59","v":"00:00:00"},{"$f":"Time!KIP$59","v":"00:00:00"},{"$f":"Time!KIQ$59","v":"00:00:00"},{"$f":"Time!KIR$59","v":"00:00:00"},{"$f":"Time!KIS$59","v":"00:00:00"},{"$f":"Time!KIT$59","v":"00:00:00"},{"$f":"Time!KIU$59","v":"00:00:00"},{"$f":"Time!KIV$59","v":"00:00:00"},{"$f":"Time!KIW$59","v":"00:00:00"},{"$f":"Time!KIX$59","v":"00:00:00"},{"$f":"Time!KIY$59","v":"00:00:00"},{"$f":"Time!KIZ$59","v":"00:00:00"},{"$f":"Time!KJA$59","v":"00:00:00"},{"$f":"Time!KJB$59","v":"00:00:00"},{"$f":"Time!KJC$59","v":"00:00:00"},{"$f":"Time!KJD$59","v":"00:00:00"},{"$f":"Time!KJE$59","v":"00:00:00"},{"$f":"Time!KJF$59","v":"00:00:00"},{"$f":"Time!KJG$59","v":"00:00:00"},{"$f":"Time!KJH$59","v":"00:00:00"},{"$f":"Time!KJI$59","v":"00:00:00"},{"$f":"Time!KJJ$59","v":"00:00:00"},{"$f":"Time!KJK$59","v":"00:00:00"},{"$f":"Time!KJL$59","v":"00:00:00"},{"$f":"Time!KJM$59","v":"00:00:00"},{"$f":"Time!KJN$59","v":"00:00:00"},{"$f":"Time!KJO$59","v":"00:00:00"},{"$f":"Time!KJP$59","v":"00:00:00"},{"$f":"Time!KJQ$59","v":"00:00:00"},{"$f":"Time!KJR$59","v":"00:00:00"},{"$f":"Time!KJS$59","v":"00:00:00"},{"$f":"Time!KJT$59","v":"00:00:00"},{"$f":"Time!KJU$59","v":"00:00:00"},{"$f":"Time!KJV$59","v":"00:00:00"},{"$f":"Time!KJW$59","v":"00:00:00"},{"$f":"Time!KJX$59","v":"00:00:00"},{"$f":"Time!KJY$59","v":"00:00:00"},{"$f":"Time!KJZ$59","v":"00:00:00"},{"$f":"Time!KKA$59","v":"00:00:00"},{"$f":"Time!KKB$59","v":"00:00:00"},{"$f":"Time!KKC$59","v":"00:00:00"},{"$f":"Time!KKD$59","v":"00:00:00"},{"$f":"Time!KKE$59","v":"00:00:00"},{"$f":"Time!KKF$59","v":"00:00:00"},{"$f":"Time!KKG$59","v":"00:00:00"},{"$f":"Time!KKH$59","v":"00:00:00"},{"$f":"Time!KKI$59","v":"00:00:00"},{"$f":"Time!KKJ$59","v":"00:00:00"},{"$f":"Time!KKK$59","v":"00:00:00"},{"$f":"Time!KKL$59","v":"00:00:00"},{"$f":"Time!KKM$59","v":"00:00:00"},{"$f":"Time!KKN$59","v":"00:00:00"},{"$f":"Time!KKO$59","v":"00:00:00"},{"$f":"Time!KKP$59","v":"00:00:00"},{"$f":"Time!KKQ$59","v":"00:00:00"},{"$f":"Time!KKR$59","v":"00:00:00"},{"$f":"Time!KKS$59","v":"00:00:00"},{"$f":"Time!KKT$59","v":"00:00:00"},{"$f":"Time!KKU$59","v":"00:00:00"},{"$f":"Time!KKV$59","v":"00:00:00"},{"$f":"Time!KKW$59","v":"00:00:00"},{"$f":"Time!KKX$59","v":"00:00:00"},{"$f":"Time!KKY$59","v":"00:00:00"},{"$f":"Time!KKZ$59","v":"00:00:00"},{"$f":"Time!KLA$59","v":"00:00:00"},{"$f":"Time!KLB$59","v":"00:00:00"},{"$f":"Time!KLC$59","v":"00:00:00"},{"$f":"Time!KLD$59","v":"00:00:00"},{"$f":"Time!KLE$59","v":"00:00:00"},{"$f":"Time!KLF$59","v":"00:00:00"},{"$f":"Time!KLG$59","v":"00:00:00"},{"$f":"Time!KLH$59","v":"00:00:00"},{"$f":"Time!KLI$59","v":"00:00:00"},{"$f":"Time!KLJ$59","v":"00:00:00"},{"$f":"Time!KLK$59","v":"00:00:00"},{"$f":"Time!KLL$59","v":"00:00:00"},{"$f":"Time!KLM$59","v":"00:00:00"},{"$f":"Time!KLN$59","v":"00:00:00"},{"$f":"Time!KLO$59","v":"00:00:00"},{"$f":"Time!KLP$59","v":"00:00:00"},{"$f":"Time!KLQ$59","v":"00:00:00"},{"$f":"Time!KLR$59","v":"00:00:00"},{"$f":"Time!KLS$59","v":"00:00:00"},{"$f":"Time!KLT$59","v":"00:00:00"},{"$f":"Time!KLU$59","v":"00:00:00"},{"$f":"Time!KLV$59","v":"00:00:00"},{"$f":"Time!KLW$59","v":"00:00:00"},{"$f":"Time!KLX$59","v":"00:00:00"},{"$f":"Time!KLY$59","v":"00:00:00"},{"$f":"Time!KLZ$59","v":"00:00:00"},{"$f":"Time!KMA$59","v":"00:00:00"},{"$f":"Time!KMB$59","v":"00:00:00"},{"$f":"Time!KMC$59","v":"00:00:00"},{"$f":"Time!KMD$59","v":"00:00:00"},{"$f":"Time!KME$59","v":"00:00:00"},{"$f":"Time!KMF$59","v":"00:00:00"},{"$f":"Time!KMG$59","v":"00:00:00"},{"$f":"Time!KMH$59","v":"00:00:00"},{"$f":"Time!KMI$59","v":"00:00:00"},{"$f":"Time!KMJ$59","v":"00:00:00"},{"$f":"Time!KMK$59","v":"00:00:00"},{"$f":"Time!KML$59","v":"00:00:00"},{"$f":"Time!KMM$59","v":"00:00:00"},{"$f":"Time!KMN$59","v":"00:00:00"},{"$f":"Time!KMO$59","v":"00:00:00"},{"$f":"Time!KMP$59","v":"00:00:00"},{"$f":"Time!KMQ$59","v":"00:00:00"},{"$f":"Time!KMR$59","v":"00:00:00"},{"$f":"Time!KMS$59","v":"00:00:00"},{"$f":"Time!KMT$59","v":"00:00:00"},{"$f":"Time!KMU$59","v":"00:00:00"},{"$f":"Time!KMV$59","v":"00:00:00"},{"$f":"Time!KMW$59","v":"00:00:00"},{"$f":"Time!KMX$59","v":"00:00:00"},{"$f":"Time!KMY$59","v":"00:00:00"},{"$f":"Time!KMZ$59","v":"00:00:00"},{"$f":"Time!KNA$59","v":"00:00:00"},{"$f":"Time!KNB$59","v":"00:00:00"},{"$f":"Time!KNC$59","v":"00:00:00"},{"$f":"Time!KND$59","v":"00:00:00"},{"$f":"Time!KNE$59","v":"00:00:00"},{"$f":"Time!KNF$59","v":"00:00:00"},{"$f":"Time!KNG$59","v":"00:00:00"},{"$f":"Time!KNH$59","v":"00:00:00"},{"$f":"Time!KNI$59","v":"00:00:00"},{"$f":"Time!KNJ$59","v":"00:00:00"},{"$f":"Time!KNK$59","v":"00:00:00"},{"$f":"Time!KNL$59","v":"00:00:00"},{"$f":"Time!KNM$59","v":"00:00:00"},{"$f":"Time!KNN$59","v":"00:00:00"},{"$f":"Time!KNO$59","v":"00:00:00"},{"$f":"Time!KNP$59","v":"00:00:00"},{"$f":"Time!KNQ$59","v":"00:00:00"},{"$f":"Time!KNR$59","v":"00:00:00"},{"$f":"Time!KNS$59","v":"00:00:00"},{"$f":"Time!KNT$59","v":"00:00:00"},{"$f":"Time!KNU$59","v":"00:00:00"},{"$f":"Time!KNV$59","v":"00:00:00"},{"$f":"Time!KNW$59","v":"00:00:00"},{"$f":"Time!KNX$59","v":"00:00:00"},{"$f":"Time!KNY$59","v":"00:00:00"},{"$f":"Time!KNZ$59","v":"00:00:00"},{"$f":"Time!KOA$59","v":"00:00:00"},{"$f":"Time!KOB$59","v":"00:00:00"},{"$f":"Time!KOC$59","v":"00:00:00"},{"$f":"Time!KOD$59","v":"00:00:00"},{"$f":"Time!KOE$59","v":"00:00:00"},{"$f":"Time!KOF$59","v":"00:00:00"},{"$f":"Time!KOG$59","v":"00:00:00"},{"$f":"Time!KOH$59","v":"00:00:00"},{"$f":"Time!KOI$59","v":"00:00:00"},{"$f":"Time!KOJ$59","v":"00:00:00"},{"$f":"Time!KOK$59","v":"00:00:00"},{"$f":"Time!KOL$59","v":"00:00:00"},{"$f":"Time!KOM$59","v":"00:00:00"},{"$f":"Time!KON$59","v":"00:00:00"},{"$f":"Time!KOO$59","v":"00:00:00"},{"$f":"Time!KOP$59","v":"00:00:00"},{"$f":"Time!KOQ$59","v":"00:00:00"},{"$f":"Time!KOR$59","v":"00:00:00"},{"$f":"Time!KOS$59","v":"00:00:00"},{"$f":"Time!KOT$59","v":"00:00:00"},{"$f":"Time!KOU$59","v":"00:00:00"},{"$f":"Time!KOV$59","v":"00:00:00"},{"$f":"Time!KOW$59","v":"00:00:00"},{"$f":"Time!KOX$59","v":"00:00:00"},{"$f":"Time!KOY$59","v":"00:00:00"},{"$f":"Time!KOZ$59","v":"00:00:00"},{"$f":"Time!KPA$59","v":"00:00:00"},{"$f":"Time!KPB$59","v":"00:00:00"},{"$f":"Time!KPC$59","v":"00:00:00"},{"$f":"Time!KPD$59","v":"00:00:00"},{"$f":"Time!KPE$59","v":"00:00:00"},{"$f":"Time!KPF$59","v":"00:00:00"},{"$f":"Time!KPG$59","v":"00:00:00"},{"$f":"Time!KPH$59","v":"00:00:00"},{"$f":"Time!KPI$59","v":"00:00:00"},{"$f":"Time!KPJ$59","v":"00:00:00"},{"$f":"Time!KPK$59","v":"00:00:00"},{"$f":"Time!KPL$59","v":"00:00:00"},{"$f":"Time!KPM$59","v":"00:00:00"},{"$f":"Time!KPN$59","v":"00:00:00"},{"$f":"Time!KPO$59","v":"00:00:00"},{"$f":"Time!KPP$59","v":"00:00:00"},{"$f":"Time!KPQ$59","v":"00:00:00"},{"$f":"Time!KPR$59","v":"00:00:00"},{"$f":"Time!KPS$59","v":"00:00:00"},{"$f":"Time!KPT$59","v":"00:00:00"},{"$f":"Time!KPU$59","v":"00:00:00"},{"$f":"Time!KPV$59","v":"00:00:00"},{"$f":"Time!KPW$59","v":"00:00:00"},{"$f":"Time!KPX$59","v":"00:00:00"},{"$f":"Time!KPY$59","v":"00:00:00"},{"$f":"Time!KPZ$59","v":"00:00:00"},{"$f":"Time!KQA$59","v":"00:00:00"},{"$f":"Time!KQB$59","v":"00:00:00"},{"$f":"Time!KQC$59","v":"00:00:00"},{"$f":"Time!KQD$59","v":"00:00:00"},{"$f":"Time!KQE$59","v":"00:00:00"},{"$f":"Time!KQF$59","v":"00:00:00"},{"$f":"Time!KQG$59","v":"00:00:00"},{"$f":"Time!KQH$59","v":"00:00:00"},{"$f":"Time!KQI$59","v":"00:00:00"},{"$f":"Time!KQJ$59","v":"00:00:00"},{"$f":"Time!KQK$59","v":"00:00:00"},{"$f":"Time!KQL$59","v":"00:00:00"},{"$f":"Time!KQM$59","v":"00:00:00"},{"$f":"Time!KQN$59","v":"00:00:00"},{"$f":"Time!KQO$59","v":"00:00:00"},{"$f":"Time!KQP$59","v":"00:00:00"},{"$f":"Time!KQQ$59","v":"00:00:00"},{"$f":"Time!KQR$59","v":"00:00:00"},{"$f":"Time!KQS$59","v":"00:00:00"},{"$f":"Time!KQT$59","v":"00:00:00"},{"$f":"Time!KQU$59","v":"00:00:00"},{"$f":"Time!KQV$59","v":"00:00:00"},{"$f":"Time!KQW$59","v":"00:00:00"},{"$f":"Time!KQX$59","v":"00:00:00"},{"$f":"Time!KQY$59","v":"00:00:00"},{"$f":"Time!KQZ$59","v":"00:00:00"},{"$f":"Time!KRA$59","v":"00:00:00"},{"$f":"Time!KRB$59","v":"00:00:00"},{"$f":"Time!KRC$59","v":"00:00:00"},{"$f":"Time!KRD$59","v":"00:00:00"},{"$f":"Time!KRE$59","v":"00:00:00"},{"$f":"Time!KRF$59","v":"00:00:00"},{"$f":"Time!KRG$59","v":"00:00:00"},{"$f":"Time!KRH$59","v":"00:00:00"},{"$f":"Time!KRI$59","v":"00:00:00"},{"$f":"Time!KRJ$59","v":"00:00:00"},{"$f":"Time!KRK$59","v":"00:00:00"},{"$f":"Time!KRL$59","v":"00:00:00"},{"$f":"Time!KRM$59","v":"00:00:00"},{"$f":"Time!KRN$59","v":"00:00:00"},{"$f":"Time!KRO$59","v":"00:00:00"},{"$f":"Time!KRP$59","v":"00:00:00"},{"$f":"Time!KRQ$59","v":"00:00:00"},{"$f":"Time!KRR$59","v":"00:00:00"},{"$f":"Time!KRS$59","v":"00:00:00"},{"$f":"Time!KRT$59","v":"00:00:00"},{"$f":"Time!KRU$59","v":"00:00:00"},{"$f":"Time!KRV$59","v":"00:00:00"},{"$f":"Time!KRW$59","v":"00:00:00"},{"$f":"Time!KRX$59","v":"00:00:00"},{"$f":"Time!KRY$59","v":"00:00:00"},{"$f":"Time!KRZ$59","v":"00:00:00"},{"$f":"Time!KSA$59","v":"00:00:00"},{"$f":"Time!KSB$59","v":"00:00:00"},{"$f":"Time!KSC$59","v":"00:00:00"},{"$f":"Time!KSD$59","v":"00:00:00"},{"$f":"Time!KSE$59","v":"00:00:00"},{"$f":"Time!KSF$59","v":"00:00:00"},{"$f":"Time!KSG$59","v":"00:00:00"},{"$f":"Time!KSH$59","v":"00:00:00"},{"$f":"Time!KSI$59","v":"00:00:00"},{"$f":"Time!KSJ$59","v":"00:00:00"},{"$f":"Time!KSK$59","v":"00:00:00"},{"$f":"Time!KSL$59","v":"00:00:00"},{"$f":"Time!KSM$59","v":"00:00:00"},{"$f":"Time!KSN$59","v":"00:00:00"},{"$f":"Time!KSO$59","v":"00:00:00"},{"$f":"Time!KSP$59","v":"00:00:00"},{"$f":"Time!KSQ$59","v":"00:00:00"},{"$f":"Time!KSR$59","v":"00:00:00"},{"$f":"Time!KSS$59","v":"00:00:00"},{"$f":"Time!KST$59","v":"00:00:00"},{"$f":"Time!KSU$59","v":"00:00:00"},{"$f":"Time!KSV$59","v":"00:00:00"},{"$f":"Time!KSW$59","v":"00:00:00"},{"$f":"Time!KSX$59","v":"00:00:00"},{"$f":"Time!KSY$59","v":"00:00:00"},{"$f":"Time!KSZ$59","v":"00:00:00"},{"$f":"Time!KTA$59","v":"00:00:00"},{"$f":"Time!KTB$59","v":"00:00:00"},{"$f":"Time!KTC$59","v":"00:00:00"},{"$f":"Time!KTD$59","v":"00:00:00"},{"$f":"Time!KTE$59","v":"00:00:00"},{"$f":"Time!KTF$59","v":"00:00:00"},{"$f":"Time!KTG$59","v":"00:00:00"},{"$f":"Time!KTH$59","v":"00:00:00"},{"$f":"Time!KTI$59","v":"00:00:00"},{"$f":"Time!KTJ$59","v":"00:00:00"},{"$f":"Time!KTK$59","v":"00:00:00"},{"$f":"Time!KTL$59","v":"00:00:00"},{"$f":"Time!KTM$59","v":"00:00:00"},{"$f":"Time!KTN$59","v":"00:00:00"},{"$f":"Time!KTO$59","v":"00:00:00"},{"$f":"Time!KTP$59","v":"00:00:00"},{"$f":"Time!KTQ$59","v":"00:00:00"},{"$f":"Time!KTR$59","v":"00:00:00"},{"$f":"Time!KTS$59","v":"00:00:00"},{"$f":"Time!KTT$59","v":"00:00:00"},{"$f":"Time!KTU$59","v":"00:00:00"},{"$f":"Time!KTV$59","v":"00:00:00"},{"$f":"Time!KTW$59","v":"00:00:00"},{"$f":"Time!KTX$59","v":"00:00:00"},{"$f":"Time!KTY$59","v":"00:00:00"},{"$f":"Time!KTZ$59","v":"00:00:00"},{"$f":"Time!KUA$59","v":"00:00:00"},{"$f":"Time!KUB$59","v":"00:00:00"},{"$f":"Time!KUC$59","v":"00:00:00"},{"$f":"Time!KUD$59","v":"00:00:00"},{"$f":"Time!KUE$59","v":"00:00:00"},{"$f":"Time!KUF$59","v":"00:00:00"},{"$f":"Time!KUG$59","v":"00:00:00"},{"$f":"Time!KUH$59","v":"00:00:00"},{"$f":"Time!KUI$59","v":"00:00:00"},{"$f":"Time!KUJ$59","v":"00:00:00"},{"$f":"Time!KUK$59","v":"00:00:00"},{"$f":"Time!KUL$59","v":"00:00:00"},{"$f":"Time!KUM$59","v":"00:00:00"},{"$f":"Time!KUN$59","v":"00:00:00"},{"$f":"Time!KUO$59","v":"00:00:00"},{"$f":"Time!KUP$59","v":"00:00:00"},{"$f":"Time!KUQ$59","v":"00:00:00"},{"$f":"Time!KUR$59","v":"00:00:00"},{"$f":"Time!KUS$59","v":"00:00:00"},{"$f":"Time!KUT$59","v":"00:00:00"},{"$f":"Time!KUU$59","v":"00:00:00"},{"$f":"Time!KUV$59","v":"00:00:00"},{"$f":"Time!KUW$59","v":"00:00:00"},{"$f":"Time!KUX$59","v":"00:00:00"},{"$f":"Time!KUY$59","v":"00:00:00"},{"$f":"Time!KUZ$59","v":"00:00:00"},{"$f":"Time!KVA$59","v":"00:00:00"},{"$f":"Time!KVB$59","v":"00:00:00"},{"$f":"Time!KVC$59","v":"00:00:00"},{"$f":"Time!KVD$59","v":"00:00:00"},{"$f":"Time!KVE$59","v":"00:00:00"},{"$f":"Time!KVF$59","v":"00:00:00"},{"$f":"Time!KVG$59","v":"00:00:00"},{"$f":"Time!KVH$59","v":"00:00:00"},{"$f":"Time!KVI$59","v":"00:00:00"},{"$f":"Time!KVJ$59","v":"00:00:00"},{"$f":"Time!KVK$59","v":"00:00:00"},{"$f":"Time!KVL$59","v":"00:00:00"},{"$f":"Time!KVM$59","v":"00:00:00"},{"$f":"Time!KVN$59","v":"00:00:00"},{"$f":"Time!KVO$59","v":"00:00:00"},{"$f":"Time!KVP$59","v":"00:00:00"},{"$f":"Time!KVQ$59","v":"00:00:00"},{"$f":"Time!KVR$59","v":"00:00:00"},{"$f":"Time!KVS$59","v":"00:00:00"},{"$f":"Time!KVT$59","v":"00:00:00"},{"$f":"Time!KVU$59","v":"00:00:00"},{"$f":"Time!KVV$59","v":"00:00:00"},{"$f":"Time!KVW$59","v":"00:00:00"},{"$f":"Time!KVX$59","v":"00:00:00"},{"$f":"Time!KVY$59","v":"00:00:00"},{"$f":"Time!KVZ$59","v":"00:00:00"},{"$f":"Time!KWA$59","v":"00:00:00"},{"$f":"Time!KWB$59","v":"00:00:00"},{"$f":"Time!KWC$59","v":"00:00:00"},{"$f":"Time!KWD$59","v":"00:00:00"},{"$f":"Time!KWE$59","v":"00:00:00"},{"$f":"Time!KWF$59","v":"00:00:00"},{"$f":"Time!KWG$59","v":"00:00:00"},{"$f":"Time!KWH$59","v":"00:00:00"},{"$f":"Time!KWI$59","v":"00:00:00"},{"$f":"Time!KWJ$59","v":"00:00:00"},{"$f":"Time!KWK$59","v":"00:00:00"},{"$f":"Time!KWL$59","v":"00:00:00"},{"$f":"Time!KWM$59","v":"00:00:00"},{"$f":"Time!KWN$59","v":"00:00:00"},{"$f":"Time!KWO$59","v":"00:00:00"},{"$f":"Time!KWP$59","v":"00:00:00"},{"$f":"Time!KWQ$59","v":"00:00:00"},{"$f":"Time!KWR$59","v":"00:00:00"},{"$f":"Time!KWS$59","v":"00:00:00"},{"$f":"Time!KWT$59","v":"00:00:00"},{"$f":"Time!KWU$59","v":"00:00:00"},{"$f":"Time!KWV$59","v":"00:00:00"},{"$f":"Time!KWW$59","v":"00:00:00"},{"$f":"Time!KWX$59","v":"00:00:00"},{"$f":"Time!KWY$59","v":"00:00:00"},{"$f":"Time!KWZ$59","v":"00:00:00"},{"$f":"Time!KXA$59","v":"00:00:00"},{"$f":"Time!KXB$59","v":"00:00:00"},{"$f":"Time!KXC$59","v":"00:00:00"},{"$f":"Time!KXD$59","v":"00:00:00"},{"$f":"Time!KXE$59","v":"00:00:00"},{"$f":"Time!KXF$59","v":"00:00:00"},{"$f":"Time!KXG$59","v":"00:00:00"},{"$f":"Time!KXH$59","v":"00:00:00"},{"$f":"Time!KXI$59","v":"00:00:00"},{"$f":"Time!KXJ$59","v":"00:00:00"},{"$f":"Time!KXK$59","v":"00:00:00"},{"$f":"Time!KXL$59","v":"00:00:00"},{"$f":"Time!KXM$59","v":"00:00:00"},{"$f":"Time!KXN$59","v":"00:00:00"},{"$f":"Time!KXO$59","v":"00:00:00"},{"$f":"Time!KXP$59","v":"00:00:00"},{"$f":"Time!KXQ$59","v":"00:00:00"},{"$f":"Time!KXR$59","v":"00:00:00"},{"$f":"Time!KXS$59","v":"00:00:00"},{"$f":"Time!KXT$59","v":"00:00:00"},{"$f":"Time!KXU$59","v":"00:00:00"},{"$f":"Time!KXV$59","v":"00:00:00"},{"$f":"Time!KXW$59","v":"00:00:00"},{"$f":"Time!KXX$59","v":"00:00:00"},{"$f":"Time!KXY$59","v":"00:00:00"},{"$f":"Time!KXZ$59","v":"00:00:00"},{"$f":"Time!KYA$59","v":"00:00:00"},{"$f":"Time!KYB$59","v":"00:00:00"},{"$f":"Time!KYC$59","v":"00:00:00"},{"$f":"Time!KYD$59","v":"00:00:00"},{"$f":"Time!KYE$59","v":"00:00:00"},{"$f":"Time!KYF$59","v":"00:00:00"},{"$f":"Time!KYG$59","v":"00:00:00"},{"$f":"Time!KYH$59","v":"00:00:00"},{"$f":"Time!KYI$59","v":"00:00:00"},{"$f":"Time!KYJ$59","v":"00:00:00"},{"$f":"Time!KYK$59","v":"00:00:00"},{"$f":"Time!KYL$59","v":"00:00:00"},{"$f":"Time!KYM$59","v":"00:00:00"},{"$f":"Time!KYN$59","v":"00:00:00"},{"$f":"Time!KYO$59","v":"00:00:00"},{"$f":"Time!KYP$59","v":"00:00:00"},{"$f":"Time!KYQ$59","v":"00:00:00"},{"$f":"Time!KYR$59","v":"00:00:00"},{"$f":"Time!KYS$59","v":"00:00:00"},{"$f":"Time!KYT$59","v":"00:00:00"},{"$f":"Time!KYU$59","v":"00:00:00"},{"$f":"Time!KYV$59","v":"00:00:00"},{"$f":"Time!KYW$59","v":"00:00:00"},{"$f":"Time!KYX$59","v":"00:00:00"},{"$f":"Time!KYY$59","v":"00:00:00"},{"$f":"Time!KYZ$59","v":"00:00:00"},{"$f":"Time!KZA$59","v":"00:00:00"},{"$f":"Time!KZB$59","v":"00:00:00"},{"$f":"Time!KZC$59","v":"00:00:00"},{"$f":"Time!KZD$59","v":"00:00:00"},{"$f":"Time!KZE$59","v":"00:00:00"},{"$f":"Time!KZF$59","v":"00:00:00"},{"$f":"Time!KZG$59","v":"00:00:00"},{"$f":"Time!KZH$59","v":"00:00:00"},{"$f":"Time!KZI$59","v":"00:00:00"},{"$f":"Time!KZJ$59","v":"00:00:00"},{"$f":"Time!KZK$59","v":"00:00:00"},{"$f":"Time!KZL$59","v":"00:00:00"},{"$f":"Time!KZM$59","v":"00:00:00"},{"$f":"Time!KZN$59","v":"00:00:00"},{"$f":"Time!KZO$59","v":"00:00:00"},{"$f":"Time!KZP$59","v":"00:00:00"},{"$f":"Time!KZQ$59","v":"00:00:00"},{"$f":"Time!KZR$59","v":"00:00:00"},{"$f":"Time!KZS$59","v":"00:00:00"},{"$f":"Time!KZT$59","v":"00:00:00"},{"$f":"Time!KZU$59","v":"00:00:00"},{"$f":"Time!KZV$59","v":"00:00:00"},{"$f":"Time!KZW$59","v":"00:00:00"},{"$f":"Time!KZX$59","v":"00:00:00"},{"$f":"Time!KZY$59","v":"00:00:00"},{"$f":"Time!KZZ$59","v":"00:00:00"},{"$f":"Time!LAA$59","v":"00:00:00"},{"$f":"Time!LAB$59","v":"00:00:00"},{"$f":"Time!LAC$59","v":"00:00:00"},{"$f":"Time!LAD$59","v":"00:00:00"},{"$f":"Time!LAE$59","v":"00:00:00"},{"$f":"Time!LAF$59","v":"00:00:00"},{"$f":"Time!LAG$59","v":"00:00:00"},{"$f":"Time!LAH$59","v":"00:00:00"},{"$f":"Time!LAI$59","v":"00:00:00"},{"$f":"Time!LAJ$59","v":"00:00:00"},{"$f":"Time!LAK$59","v":"00:00:00"},{"$f":"Time!LAL$59","v":"00:00:00"},{"$f":"Time!LAM$59","v":"00:00:00"},{"$f":"Time!LAN$59","v":"00:00:00"},{"$f":"Time!LAO$59","v":"00:00:00"},{"$f":"Time!LAP$59","v":"00:00:00"},{"$f":"Time!LAQ$59","v":"00:00:00"},{"$f":"Time!LAR$59","v":"00:00:00"},{"$f":"Time!LAS$59","v":"00:00:00"},{"$f":"Time!LAT$59","v":"00:00:00"},{"$f":"Time!LAU$59","v":"00:00:00"},{"$f":"Time!LAV$59","v":"00:00:00"},{"$f":"Time!LAW$59","v":"00:00:00"},{"$f":"Time!LAX$59","v":"00:00:00"},{"$f":"Time!LAY$59","v":"00:00:00"},{"$f":"Time!LAZ$59","v":"00:00:00"},{"$f":"Time!LBA$59","v":"00:00:00"},{"$f":"Time!LBB$59","v":"00:00:00"},{"$f":"Time!LBC$59","v":"00:00:00"},{"$f":"Time!LBD$59","v":"00:00:00"},{"$f":"Time!LBE$59","v":"00:00:00"},{"$f":"Time!LBF$59","v":"00:00:00"},{"$f":"Time!LBG$59","v":"00:00:00"},{"$f":"Time!LBH$59","v":"00:00:00"},{"$f":"Time!LBI$59","v":"00:00:00"},{"$f":"Time!LBJ$59","v":"00:00:00"},{"$f":"Time!LBK$59","v":"00:00:00"},{"$f":"Time!LBL$59","v":"00:00:00"},{"$f":"Time!LBM$59","v":"00:00:00"},{"$f":"Time!LBN$59","v":"00:00:00"},{"$f":"Time!LBO$59","v":"00:00:00"},{"$f":"Time!LBP$59","v":"00:00:00"},{"$f":"Time!LBQ$59","v":"00:00:00"},{"$f":"Time!LBR$59","v":"00:00:00"},{"$f":"Time!LBS$59","v":"00:00:00"},{"$f":"Time!LBT$59","v":"00:00:00"},{"$f":"Time!LBU$59","v":"00:00:00"},{"$f":"Time!LBV$59","v":"00:00:00"},{"$f":"Time!LBW$59","v":"00:00:00"},{"$f":"Time!LBX$59","v":"00:00:00"},{"$f":"Time!LBY$59","v":"00:00:00"},{"$f":"Time!LBZ$59","v":"00:00:00"},{"$f":"Time!LCA$59","v":"00:00:00"},{"$f":"Time!LCB$59","v":"00:00:00"},{"$f":"Time!LCC$59","v":"00:00:00"},{"$f":"Time!LCD$59","v":"00:00:00"},{"$f":"Time!LCE$59","v":"00:00:00"},{"$f":"Time!LCF$59","v":"00:00:00"},{"$f":"Time!LCG$59","v":"00:00:00"},{"$f":"Time!LCH$59","v":"00:00:00"},{"$f":"Time!LCI$59","v":"00:00:00"},{"$f":"Time!LCJ$59","v":"00:00:00"},{"$f":"Time!LCK$59","v":"00:00:00"},{"$f":"Time!LCL$59","v":"00:00:00"},{"$f":"Time!LCM$59","v":"00:00:00"},{"$f":"Time!LCN$59","v":"00:00:00"},{"$f":"Time!LCO$59","v":"00:00:00"},{"$f":"Time!LCP$59","v":"00:00:00"},{"$f":"Time!LCQ$59","v":"00:00:00"},{"$f":"Time!LCR$59","v":"00:00:00"},{"$f":"Time!LCS$59","v":"00:00:00"},{"$f":"Time!LCT$59","v":"00:00:00"},{"$f":"Time!LCU$59","v":"00:00:00"},{"$f":"Time!LCV$59","v":"00:00:00"},{"$f":"Time!LCW$59","v":"00:00:00"},{"$f":"Time!LCX$59","v":"00:00:00"},{"$f":"Time!LCY$59","v":"00:00:00"},{"$f":"Time!LCZ$59","v":"00:00:00"},{"$f":"Time!LDA$59","v":"00:00:00"},{"$f":"Time!LDB$59","v":"00:00:00"},{"$f":"Time!LDC$59","v":"00:00:00"},{"$f":"Time!LDD$59","v":"00:00:00"},{"$f":"Time!LDE$59","v":"00:00:00"},{"$f":"Time!LDF$59","v":"00:00:00"},{"$f":"Time!LDG$59","v":"00:00:00"},{"$f":"Time!LDH$59","v":"00:00:00"},{"$f":"Time!LDI$59","v":"00:00:00"},{"$f":"Time!LDJ$59","v":"00:00:00"},{"$f":"Time!LDK$59","v":"00:00:00"},{"$f":"Time!LDL$59","v":"00:00:00"},{"$f":"Time!LDM$59","v":"00:00:00"},{"$f":"Time!LDN$59","v":"00:00:00"},{"$f":"Time!LDO$59","v":"00:00:00"},{"$f":"Time!LDP$59","v":"00:00:00"},{"$f":"Time!LDQ$59","v":"00:00:00"},{"$f":"Time!LDR$59","v":"00:00:00"},{"$f":"Time!LDS$59","v":"00:00:00"},{"$f":"Time!LDT$59","v":"00:00:00"},{"$f":"Time!LDU$59","v":"00:00:00"},{"$f":"Time!LDV$59","v":"00:00:00"},{"$f":"Time!LDW$59","v":"00:00:00"},{"$f":"Time!LDX$59","v":"00:00:00"},{"$f":"Time!LDY$59","v":"00:00:00"},{"$f":"Time!LDZ$59","v":"00:00:00"},{"$f":"Time!LEA$59","v":"00:00:00"},{"$f":"Time!LEB$59","v":"00:00:00"},{"$f":"Time!LEC$59","v":"00:00:00"},{"$f":"Time!LED$59","v":"00:00:00"},{"$f":"Time!LEE$59","v":"00:00:00"},{"$f":"Time!LEF$59","v":"00:00:00"},{"$f":"Time!LEG$59","v":"00:00:00"},{"$f":"Time!LEH$59","v":"00:00:00"},{"$f":"Time!LEI$59","v":"00:00:00"},{"$f":"Time!LEJ$59","v":"00:00:00"},{"$f":"Time!LEK$59","v":"00:00:00"},{"$f":"Time!LEL$59","v":"00:00:00"},{"$f":"Time!LEM$59","v":"00:00:00"},{"$f":"Time!LEN$59","v":"00:00:00"},{"$f":"Time!LEO$59","v":"00:00:00"},{"$f":"Time!LEP$59","v":"00:00:00"},{"$f":"Time!LEQ$59","v":"00:00:00"},{"$f":"Time!LER$59","v":"00:00:00"},{"$f":"Time!LES$59","v":"00:00:00"},{"$f":"Time!LET$59","v":"00:00:00"},{"$f":"Time!LEU$59","v":"00:00:00"},{"$f":"Time!LEV$59","v":"00:00:00"},{"$f":"Time!LEW$59","v":"00:00:00"},{"$f":"Time!LEX$59","v":"00:00:00"},{"$f":"Time!LEY$59","v":"00:00:00"},{"$f":"Time!LEZ$59","v":"00:00:00"},{"$f":"Time!LFA$59","v":"00:00:00"},{"$f":"Time!LFB$59","v":"00:00:00"},{"$f":"Time!LFC$59","v":"00:00:00"},{"$f":"Time!LFD$59","v":"00:00:00"},{"$f":"Time!LFE$59","v":"00:00:00"},{"$f":"Time!LFF$59","v":"00:00:00"},{"$f":"Time!LFG$59","v":"00:00:00"},{"$f":"Time!LFH$59","v":"00:00:00"},{"$f":"Time!LFI$59","v":"00:00:00"},{"$f":"Time!LFJ$59","v":"00:00:00"},{"$f":"Time!LFK$59","v":"00:00:00"},{"$f":"Time!LFL$59","v":"00:00:00"},{"$f":"Time!LFM$59","v":"00:00:00"},{"$f":"Time!LFN$59","v":"00:00:00"},{"$f":"Time!LFO$59","v":"00:00:00"},{"$f":"Time!LFP$59","v":"00:00:00"},{"$f":"Time!LFQ$59","v":"00:00:00"},{"$f":"Time!LFR$59","v":"00:00:00"},{"$f":"Time!LFS$59","v":"00:00:00"},{"$f":"Time!LFT$59","v":"00:00:00"},{"$f":"Time!LFU$59","v":"00:00:00"},{"$f":"Time!LFV$59","v":"00:00:00"},{"$f":"Time!LFW$59","v":"00:00:00"},{"$f":"Time!LFX$59","v":"00:00:00"},{"$f":"Time!LFY$59","v":"00:00:00"},{"$f":"Time!LFZ$59","v":"00:00:00"},{"$f":"Time!LGA$59","v":"00:00:00"},{"$f":"Time!LGB$59","v":"00:00:00"},{"$f":"Time!LGC$59","v":"00:00:00"},{"$f":"Time!LGD$59","v":"00:00:00"},{"$f":"Time!LGE$59","v":"00:00:00"},{"$f":"Time!LGF$59","v":"00:00:00"},{"$f":"Time!LGG$59","v":"00:00:00"},{"$f":"Time!LGH$59","v":"00:00:00"},{"$f":"Time!LGI$59","v":"00:00:00"},{"$f":"Time!LGJ$59","v":"00:00:00"},{"$f":"Time!LGK$59","v":"00:00:00"},{"$f":"Time!LGL$59","v":"00:00:00"},{"$f":"Time!LGM$59","v":"00:00:00"},{"$f":"Time!LGN$59","v":"00:00:00"},{"$f":"Time!LGO$59","v":"00:00:00"},{"$f":"Time!LGP$59","v":"00:00:00"},{"$f":"Time!LGQ$59","v":"00:00:00"},{"$f":"Time!LGR$59","v":"00:00:00"},{"$f":"Time!LGS$59","v":"00:00:00"},{"$f":"Time!LGT$59","v":"00:00:00"},{"$f":"Time!LGU$59","v":"00:00:00"},{"$f":"Time!LGV$59","v":"00:00:00"},{"$f":"Time!LGW$59","v":"00:00:00"},{"$f":"Time!LGX$59","v":"00:00:00"},{"$f":"Time!LGY$59","v":"00:00:00"},{"$f":"Time!LGZ$59","v":"00:00:00"},{"$f":"Time!LHA$59","v":"00:00:00"},{"$f":"Time!LHB$59","v":"00:00:00"},{"$f":"Time!LHC$59","v":"00:00:00"},{"$f":"Time!LHD$59","v":"00:00:00"},{"$f":"Time!LHE$59","v":"00:00:00"},{"$f":"Time!LHF$59","v":"00:00:00"},{"$f":"Time!LHG$59","v":"00:00:00"},{"$f":"Time!LHH$59","v":"00:00:00"},{"$f":"Time!LHI$59","v":"00:00:00"},{"$f":"Time!LHJ$59","v":"00:00:00"},{"$f":"Time!LHK$59","v":"00:00:00"},{"$f":"Time!LHL$59","v":"00:00:00"},{"$f":"Time!LHM$59","v":"00:00:00"},{"$f":"Time!LHN$59","v":"00:00:00"},{"$f":"Time!LHO$59","v":"00:00:00"},{"$f":"Time!LHP$59","v":"00:00:00"},{"$f":"Time!LHQ$59","v":"00:00:00"},{"$f":"Time!LHR$59","v":"00:00:00"},{"$f":"Time!LHS$59","v":"00:00:00"},{"$f":"Time!LHT$59","v":"00:00:00"},{"$f":"Time!LHU$59","v":"00:00:00"},{"$f":"Time!LHV$59","v":"00:00:00"},{"$f":"Time!LHW$59","v":"00:00:00"},{"$f":"Time!LHX$59","v":"00:00:00"},{"$f":"Time!LHY$59","v":"00:00:00"},{"$f":"Time!LHZ$59","v":"00:00:00"},{"$f":"Time!LIA$59","v":"00:00:00"},{"$f":"Time!LIB$59","v":"00:00:00"},{"$f":"Time!LIC$59","v":"00:00:00"},{"$f":"Time!LID$59","v":"00:00:00"},{"$f":"Time!LIE$59","v":"00:00:00"},{"$f":"Time!LIF$59","v":"00:00:00"},{"$f":"Time!LIG$59","v":"00:00:00"},{"$f":"Time!LIH$59","v":"00:00:00"},{"$f":"Time!LII$59","v":"00:00:00"},{"$f":"Time!LIJ$59","v":"00:00:00"},{"$f":"Time!LIK$59","v":"00:00:00"},{"$f":"Time!LIL$59","v":"00:00:00"},{"$f":"Time!LIM$59","v":"00:00:00"},{"$f":"Time!LIN$59","v":"00:00:00"},{"$f":"Time!LIO$59","v":"00:00:00"},{"$f":"Time!LIP$59","v":"00:00:00"},{"$f":"Time!LIQ$59","v":"00:00:00"},{"$f":"Time!LIR$59","v":"00:00:00"},{"$f":"Time!LIS$59","v":"00:00:00"},{"$f":"Time!LIT$59","v":"00:00:00"},{"$f":"Time!LIU$59","v":"00:00:00"},{"$f":"Time!LIV$59","v":"00:00:00"},{"$f":"Time!LIW$59","v":"00:00:00"},{"$f":"Time!LIX$59","v":"00:00:00"},{"$f":"Time!LIY$59","v":"00:00:00"},{"$f":"Time!LIZ$59","v":"00:00:00"},{"$f":"Time!LJA$59","v":"00:00:00"},{"$f":"Time!LJB$59","v":"00:00:00"},{"$f":"Time!LJC$59","v":"00:00:00"},{"$f":"Time!LJD$59","v":"00:00:00"},{"$f":"Time!LJE$59","v":"00:00:00"},{"$f":"Time!LJF$59","v":"00:00:00"},{"$f":"Time!LJG$59","v":"00:00:00"},{"$f":"Time!LJH$59","v":"00:00:00"},{"$f":"Time!LJI$59","v":"00:00:00"},{"$f":"Time!LJJ$59","v":"00:00:00"},{"$f":"Time!LJK$59","v":"00:00:00"},{"$f":"Time!LJL$59","v":"00:00:00"},{"$f":"Time!LJM$59","v":"00:00:00"},{"$f":"Time!LJN$59","v":"00:00:00"},{"$f":"Time!LJO$59","v":"00:00:00"},{"$f":"Time!LJP$59","v":"00:00:00"},{"$f":"Time!LJQ$59","v":"00:00:00"},{"$f":"Time!LJR$59","v":"00:00:00"},{"$f":"Time!LJS$59","v":"00:00:00"},{"$f":"Time!LJT$59","v":"00:00:00"},{"$f":"Time!LJU$59","v":"00:00:00"},{"$f":"Time!LJV$59","v":"00:00:00"},{"$f":"Time!LJW$59","v":"00:00:00"},{"$f":"Time!LJX$59","v":"00:00:00"},{"$f":"Time!LJY$59","v":"00:00:00"},{"$f":"Time!LJZ$59","v":"00:00:00"},{"$f":"Time!LKA$59","v":"00:00:00"},{"$f":"Time!LKB$59","v":"00:00:00"},{"$f":"Time!LKC$59","v":"00:00:00"},{"$f":"Time!LKD$59","v":"00:00:00"},{"$f":"Time!LKE$59","v":"00:00:00"},{"$f":"Time!LKF$59","v":"00:00:00"},{"$f":"Time!LKG$59","v":"00:00:00"},{"$f":"Time!LKH$59","v":"00:00:00"},{"$f":"Time!LKI$59","v":"00:00:00"},{"$f":"Time!LKJ$59","v":"00:00:00"},{"$f":"Time!LKK$59","v":"00:00:00"},{"$f":"Time!LKL$59","v":"00:00:00"},{"$f":"Time!LKM$59","v":"00:00:00"},{"$f":"Time!LKN$59","v":"00:00:00"},{"$f":"Time!LKO$59","v":"00:00:00"},{"$f":"Time!LKP$59","v":"00:00:00"},{"$f":"Time!LKQ$59","v":"00:00:00"},{"$f":"Time!LKR$59","v":"00:00:00"},{"$f":"Time!LKS$59","v":"00:00:00"},{"$f":"Time!LKT$59","v":"00:00:00"},{"$f":"Time!LKU$59","v":"00:00:00"},{"$f":"Time!LKV$59","v":"00:00:00"},{"$f":"Time!LKW$59","v":"00:00:00"},{"$f":"Time!LKX$59","v":"00:00:00"},{"$f":"Time!LKY$59","v":"00:00:00"},{"$f":"Time!LKZ$59","v":"00:00:00"},{"$f":"Time!LLA$59","v":"00:00:00"},{"$f":"Time!LLB$59","v":"00:00:00"},{"$f":"Time!LLC$59","v":"00:00:00"},{"$f":"Time!LLD$59","v":"00:00:00"},{"$f":"Time!LLE$59","v":"00:00:00"},{"$f":"Time!LLF$59","v":"00:00:00"},{"$f":"Time!LLG$59","v":"00:00:00"},{"$f":"Time!LLH$59","v":"00:00:00"},{"$f":"Time!LLI$59","v":"00:00:00"},{"$f":"Time!LLJ$59","v":"00:00:00"},{"$f":"Time!LLK$59","v":"00:00:00"},{"$f":"Time!LLL$59","v":"00:00:00"},{"$f":"Time!LLM$59","v":"00:00:00"},{"$f":"Time!LLN$59","v":"00:00:00"},{"$f":"Time!LLO$59","v":"00:00:00"},{"$f":"Time!LLP$59","v":"00:00:00"},{"$f":"Time!LLQ$59","v":"00:00:00"},{"$f":"Time!LLR$59","v":"00:00:00"},{"$f":"Time!LLS$59","v":"00:00:00"},{"$f":"Time!LLT$59","v":"00:00:00"},{"$f":"Time!LLU$59","v":"00:00:00"},{"$f":"Time!LLV$59","v":"00:00:00"},{"$f":"Time!LLW$59","v":"00:00:00"},{"$f":"Time!LLX$59","v":"00:00:00"},{"$f":"Time!LLY$59","v":"00:00:00"},{"$f":"Time!LLZ$59","v":"00:00:00"},{"$f":"Time!LMA$59","v":"00:00:00"},{"$f":"Time!LMB$59","v":"00:00:00"},{"$f":"Time!LMC$59","v":"00:00:00"},{"$f":"Time!LMD$59","v":"00:00:00"},{"$f":"Time!LME$59","v":"00:00:00"},{"$f":"Time!LMF$59","v":"00:00:00"},{"$f":"Time!LMG$59","v":"00:00:00"},{"$f":"Time!LMH$59","v":"00:00:00"},{"$f":"Time!LMI$59","v":"00:00:00"},{"$f":"Time!LMJ$59","v":"00:00:00"},{"$f":"Time!LMK$59","v":"00:00:00"},{"$f":"Time!LML$59","v":"00:00:00"},{"$f":"Time!LMM$59","v":"00:00:00"},{"$f":"Time!LMN$59","v":"00:00:00"},{"$f":"Time!LMO$59","v":"00:00:00"},{"$f":"Time!LMP$59","v":"00:00:00"},{"$f":"Time!LMQ$59","v":"00:00:00"},{"$f":"Time!LMR$59","v":"00:00:00"},{"$f":"Time!LMS$59","v":"00:00:00"},{"$f":"Time!LMT$59","v":"00:00:00"},{"$f":"Time!LMU$59","v":"00:00:00"},{"$f":"Time!LMV$59","v":"00:00:00"},{"$f":"Time!LMW$59","v":"00:00:00"},{"$f":"Time!LMX$59","v":"00:00:00"},{"$f":"Time!LMY$59","v":"00:00:00"},{"$f":"Time!LMZ$59","v":"00:00:00"},{"$f":"Time!LNA$59","v":"00:00:00"},{"$f":"Time!LNB$59","v":"00:00:00"},{"$f":"Time!LNC$59","v":"00:00:00"},{"$f":"Time!LND$59","v":"00:00:00"},{"$f":"Time!LNE$59","v":"00:00:00"},{"$f":"Time!LNF$59","v":"00:00:00"},{"$f":"Time!LNG$59","v":"00:00:00"},{"$f":"Time!LNH$59","v":"00:00:00"},{"$f":"Time!LNI$59","v":"00:00:00"},{"$f":"Time!LNJ$59","v":"00:00:00"},{"$f":"Time!LNK$59","v":"00:00:00"},{"$f":"Time!LNL$59","v":"00:00:00"},{"$f":"Time!LNM$59","v":"00:00:00"},{"$f":"Time!LNN$59","v":"00:00:00"},{"$f":"Time!LNO$59","v":"00:00:00"},{"$f":"Time!LNP$59","v":"00:00:00"},{"$f":"Time!LNQ$59","v":"00:00:00"},{"$f":"Time!LNR$59","v":"00:00:00"},{"$f":"Time!LNS$59","v":"00:00:00"},{"$f":"Time!LNT$59","v":"00:00:00"},{"$f":"Time!LNU$59","v":"00:00:00"},{"$f":"Time!LNV$59","v":"00:00:00"},{"$f":"Time!LNW$59","v":"00:00:00"},{"$f":"Time!LNX$59","v":"00:00:00"},{"$f":"Time!LNY$59","v":"00:00:00"},{"$f":"Time!LNZ$59","v":"00:00:00"},{"$f":"Time!LOA$59","v":"00:00:00"},{"$f":"Time!LOB$59","v":"00:00:00"},{"$f":"Time!LOC$59","v":"00:00:00"},{"$f":"Time!LOD$59","v":"00:00:00"},{"$f":"Time!LOE$59","v":"00:00:00"},{"$f":"Time!LOF$59","v":"00:00:00"},{"$f":"Time!LOG$59","v":"00:00:00"},{"$f":"Time!LOH$59","v":"00:00:00"},{"$f":"Time!LOI$59","v":"00:00:00"},{"$f":"Time!LOJ$59","v":"00:00:00"},{"$f":"Time!LOK$59","v":"00:00:00"},{"$f":"Time!LOL$59","v":"00:00:00"},{"$f":"Time!LOM$59","v":"00:00:00"},{"$f":"Time!LON$59","v":"00:00:00"},{"$f":"Time!LOO$59","v":"00:00:00"},{"$f":"Time!LOP$59","v":"00:00:00"},{"$f":"Time!LOQ$59","v":"00:00:00"},{"$f":"Time!LOR$59","v":"00:00:00"},{"$f":"Time!LOS$59","v":"00:00:00"},{"$f":"Time!LOT$59","v":"00:00:00"},{"$f":"Time!LOU$59","v":"00:00:00"},{"$f":"Time!LOV$59","v":"00:00:00"},{"$f":"Time!LOW$59","v":"00:00:00"},{"$f":"Time!LOX$59","v":"00:00:00"},{"$f":"Time!LOY$59","v":"00:00:00"},{"$f":"Time!LOZ$59","v":"00:00:00"},{"$f":"Time!LPA$59","v":"00:00:00"},{"$f":"Time!LPB$59","v":"00:00:00"},{"$f":"Time!LPC$59","v":"00:00:00"},{"$f":"Time!LPD$59","v":"00:00:00"},{"$f":"Time!LPE$59","v":"00:00:00"},{"$f":"Time!LPF$59","v":"00:00:00"},{"$f":"Time!LPG$59","v":"00:00:00"},{"$f":"Time!LPH$59","v":"00:00:00"},{"$f":"Time!LPI$59","v":"00:00:00"},{"$f":"Time!LPJ$59","v":"00:00:00"},{"$f":"Time!LPK$59","v":"00:00:00"},{"$f":"Time!LPL$59","v":"00:00:00"},{"$f":"Time!LPM$59","v":"00:00:00"},{"$f":"Time!LPN$59","v":"00:00:00"},{"$f":"Time!LPO$59","v":"00:00:00"},{"$f":"Time!LPP$59","v":"00:00:00"},{"$f":"Time!LPQ$59","v":"00:00:00"},{"$f":"Time!LPR$59","v":"00:00:00"},{"$f":"Time!LPS$59","v":"00:00:00"},{"$f":"Time!LPT$59","v":"00:00:00"},{"$f":"Time!LPU$59","v":"00:00:00"},{"$f":"Time!LPV$59","v":"00:00:00"},{"$f":"Time!LPW$59","v":"00:00:00"},{"$f":"Time!LPX$59","v":"00:00:00"},{"$f":"Time!LPY$59","v":"00:00:00"},{"$f":"Time!LPZ$59","v":"00:00:00"},{"$f":"Time!LQA$59","v":"00:00:00"},{"$f":"Time!LQB$59","v":"00:00:00"},{"$f":"Time!LQC$59","v":"00:00:00"},{"$f":"Time!LQD$59","v":"00:00:00"},{"$f":"Time!LQE$59","v":"00:00:00"},{"$f":"Time!LQF$59","v":"00:00:00"},{"$f":"Time!LQG$59","v":"00:00:00"},{"$f":"Time!LQH$59","v":"00:00:00"},{"$f":"Time!LQI$59","v":"00:00:00"},{"$f":"Time!LQJ$59","v":"00:00:00"},{"$f":"Time!LQK$59","v":"00:00:00"},{"$f":"Time!LQL$59","v":"00:00:00"},{"$f":"Time!LQM$59","v":"00:00:00"},{"$f":"Time!LQN$59","v":"00:00:00"},{"$f":"Time!LQO$59","v":"00:00:00"},{"$f":"Time!LQP$59","v":"00:00:00"},{"$f":"Time!LQQ$59","v":"00:00:00"},{"$f":"Time!LQR$59","v":"00:00:00"},{"$f":"Time!LQS$59","v":"00:00:00"},{"$f":"Time!LQT$59","v":"00:00:00"},{"$f":"Time!LQU$59","v":"00:00:00"},{"$f":"Time!LQV$59","v":"00:00:00"},{"$f":"Time!LQW$59","v":"00:00:00"},{"$f":"Time!LQX$59","v":"00:00:00"},{"$f":"Time!LQY$59","v":"00:00:00"},{"$f":"Time!LQZ$59","v":"00:00:00"},{"$f":"Time!LRA$59","v":"00:00:00"},{"$f":"Time!LRB$59","v":"00:00:00"},{"$f":"Time!LRC$59","v":"00:00:00"},{"$f":"Time!LRD$59","v":"00:00:00"},{"$f":"Time!LRE$59","v":"00:00:00"},{"$f":"Time!LRF$59","v":"00:00:00"},{"$f":"Time!LRG$59","v":"00:00:00"},{"$f":"Time!LRH$59","v":"00:00:00"},{"$f":"Time!LRI$59","v":"00:00:00"},{"$f":"Time!LRJ$59","v":"00:00:00"},{"$f":"Time!LRK$59","v":"00:00:00"},{"$f":"Time!LRL$59","v":"00:00:00"},{"$f":"Time!LRM$59","v":"00:00:00"},{"$f":"Time!LRN$59","v":"00:00:00"},{"$f":"Time!LRO$59","v":"00:00:00"},{"$f":"Time!LRP$59","v":"00:00:00"},{"$f":"Time!LRQ$59","v":"00:00:00"},{"$f":"Time!LRR$59","v":"00:00:00"},{"$f":"Time!LRS$59","v":"00:00:00"},{"$f":"Time!LRT$59","v":"00:00:00"},{"$f":"Time!LRU$59","v":"00:00:00"},{"$f":"Time!LRV$59","v":"00:00:00"},{"$f":"Time!LRW$59","v":"00:00:00"},{"$f":"Time!LRX$59","v":"00:00:00"},{"$f":"Time!LRY$59","v":"00:00:00"},{"$f":"Time!LRZ$59","v":"00:00:00"},{"$f":"Time!LSA$59","v":"00:00:00"},{"$f":"Time!LSB$59","v":"00:00:00"},{"$f":"Time!LSC$59","v":"00:00:00"},{"$f":"Time!LSD$59","v":"00:00:00"},{"$f":"Time!LSE$59","v":"00:00:00"},{"$f":"Time!LSF$59","v":"00:00:00"},{"$f":"Time!LSG$59","v":"00:00:00"},{"$f":"Time!LSH$59","v":"00:00:00"},{"$f":"Time!LSI$59","v":"00:00:00"},{"$f":"Time!LSJ$59","v":"00:00:00"},{"$f":"Time!LSK$59","v":"00:00:00"},{"$f":"Time!LSL$59","v":"00:00:00"},{"$f":"Time!LSM$59","v":"00:00:00"},{"$f":"Time!LSN$59","v":"00:00:00"},{"$f":"Time!LSO$59","v":"00:00:00"},{"$f":"Time!LSP$59","v":"00:00:00"},{"$f":"Time!LSQ$59","v":"00:00:00"},{"$f":"Time!LSR$59","v":"00:00:00"},{"$f":"Time!LSS$59","v":"00:00:00"},{"$f":"Time!LST$59","v":"00:00:00"},{"$f":"Time!LSU$59","v":"00:00:00"},{"$f":"Time!LSV$59","v":"00:00:00"},{"$f":"Time!LSW$59","v":"00:00:00"},{"$f":"Time!LSX$59","v":"00:00:00"},{"$f":"Time!LSY$59","v":"00:00:00"},{"$f":"Time!LSZ$59","v":"00:00:00"},{"$f":"Time!LTA$59","v":"00:00:00"},{"$f":"Time!LTB$59","v":"00:00:00"},{"$f":"Time!LTC$59","v":"00:00:00"},{"$f":"Time!LTD$59","v":"00:00:00"},{"$f":"Time!LTE$59","v":"00:00:00"},{"$f":"Time!LTF$59","v":"00:00:00"},{"$f":"Time!LTG$59","v":"00:00:00"},{"$f":"Time!LTH$59","v":"00:00:00"},{"$f":"Time!LTI$59","v":"00:00:00"},{"$f":"Time!LTJ$59","v":"00:00:00"},{"$f":"Time!LTK$59","v":"00:00:00"},{"$f":"Time!LTL$59","v":"00:00:00"},{"$f":"Time!LTM$59","v":"00:00:00"},{"$f":"Time!LTN$59","v":"00:00:00"},{"$f":"Time!LTO$59","v":"00:00:00"},{"$f":"Time!LTP$59","v":"00:00:00"},{"$f":"Time!LTQ$59","v":"00:00:00"},{"$f":"Time!LTR$59","v":"00:00:00"},{"$f":"Time!LTS$59","v":"00:00:00"},{"$f":"Time!LTT$59","v":"00:00:00"},{"$f":"Time!LTU$59","v":"00:00:00"},{"$f":"Time!LTV$59","v":"00:00:00"},{"$f":"Time!LTW$59","v":"00:00:00"},{"$f":"Time!LTX$59","v":"00:00:00"},{"$f":"Time!LTY$59","v":"00:00:00"},{"$f":"Time!LTZ$59","v":"00:00:00"},{"$f":"Time!LUA$59","v":"00:00:00"},{"$f":"Time!LUB$59","v":"00:00:00"},{"$f":"Time!LUC$59","v":"00:00:00"},{"$f":"Time!LUD$59","v":"00:00:00"},{"$f":"Time!LUE$59","v":"00:00:00"},{"$f":"Time!LUF$59","v":"00:00:00"},{"$f":"Time!LUG$59","v":"00:00:00"},{"$f":"Time!LUH$59","v":"00:00:00"},{"$f":"Time!LUI$59","v":"00:00:00"},{"$f":"Time!LUJ$59","v":"00:00:00"},{"$f":"Time!LUK$59","v":"00:00:00"},{"$f":"Time!LUL$59","v":"00:00:00"},{"$f":"Time!LUM$59","v":"00:00:00"},{"$f":"Time!LUN$59","v":"00:00:00"},{"$f":"Time!LUO$59","v":"00:00:00"},{"$f":"Time!LUP$59","v":"00:00:00"},{"$f":"Time!LUQ$59","v":"00:00:00"},{"$f":"Time!LUR$59","v":"00:00:00"},{"$f":"Time!LUS$59","v":"00:00:00"},{"$f":"Time!LUT$59","v":"00:00:00"},{"$f":"Time!LUU$59","v":"00:00:00"},{"$f":"Time!LUV$59","v":"00:00:00"},{"$f":"Time!LUW$59","v":"00:00:00"},{"$f":"Time!LUX$59","v":"00:00:00"},{"$f":"Time!LUY$59","v":"00:00:00"},{"$f":"Time!LUZ$59","v":"00:00:00"},{"$f":"Time!LVA$59","v":"00:00:00"},{"$f":"Time!LVB$59","v":"00:00:00"},{"$f":"Time!LVC$59","v":"00:00:00"},{"$f":"Time!LVD$59","v":"00:00:00"},{"$f":"Time!LVE$59","v":"00:00:00"},{"$f":"Time!LVF$59","v":"00:00:00"},{"$f":"Time!LVG$59","v":"00:00:00"},{"$f":"Time!LVH$59","v":"00:00:00"},{"$f":"Time!LVI$59","v":"00:00:00"},{"$f":"Time!LVJ$59","v":"00:00:00"},{"$f":"Time!LVK$59","v":"00:00:00"},{"$f":"Time!LVL$59","v":"00:00:00"},{"$f":"Time!LVM$59","v":"00:00:00"},{"$f":"Time!LVN$59","v":"00:00:00"},{"$f":"Time!LVO$59","v":"00:00:00"},{"$f":"Time!LVP$59","v":"00:00:00"},{"$f":"Time!LVQ$59","v":"00:00:00"},{"$f":"Time!LVR$59","v":"00:00:00"},{"$f":"Time!LVS$59","v":"00:00:00"},{"$f":"Time!LVT$59","v":"00:00:00"},{"$f":"Time!LVU$59","v":"00:00:00"},{"$f":"Time!LVV$59","v":"00:00:00"},{"$f":"Time!LVW$59","v":"00:00:00"},{"$f":"Time!LVX$59","v":"00:00:00"},{"$f":"Time!LVY$59","v":"00:00:00"},{"$f":"Time!LVZ$59","v":"00:00:00"},{"$f":"Time!LWA$59","v":"00:00:00"},{"$f":"Time!LWB$59","v":"00:00:00"},{"$f":"Time!LWC$59","v":"00:00:00"},{"$f":"Time!LWD$59","v":"00:00:00"},{"$f":"Time!LWE$59","v":"00:00:00"},{"$f":"Time!LWF$59","v":"00:00:00"},{"$f":"Time!LWG$59","v":"00:00:00"},{"$f":"Time!LWH$59","v":"00:00:00"},{"$f":"Time!LWI$59","v":"00:00:00"},{"$f":"Time!LWJ$59","v":"00:00:00"},{"$f":"Time!LWK$59","v":"00:00:00"},{"$f":"Time!LWL$59","v":"00:00:00"},{"$f":"Time!LWM$59","v":"00:00:00"},{"$f":"Time!LWN$59","v":"00:00:00"},{"$f":"Time!LWO$59","v":"00:00:00"},{"$f":"Time!LWP$59","v":"00:00:00"},{"$f":"Time!LWQ$59","v":"00:00:00"},{"$f":"Time!LWR$59","v":"00:00:00"},{"$f":"Time!LWS$59","v":"00:00:00"},{"$f":"Time!LWT$59","v":"00:00:00"},{"$f":"Time!LWU$59","v":"00:00:00"},{"$f":"Time!LWV$59","v":"00:00:00"},{"$f":"Time!LWW$59","v":"00:00:00"},{"$f":"Time!LWX$59","v":"00:00:00"},{"$f":"Time!LWY$59","v":"00:00:00"},{"$f":"Time!LWZ$59","v":"00:00:00"},{"$f":"Time!LXA$59","v":"00:00:00"},{"$f":"Time!LXB$59","v":"00:00:00"},{"$f":"Time!LXC$59","v":"00:00:00"},{"$f":"Time!LXD$59","v":"00:00:00"},{"$f":"Time!LXE$59","v":"00:00:00"},{"$f":"Time!LXF$59","v":"00:00:00"},{"$f":"Time!LXG$59","v":"00:00:00"},{"$f":"Time!LXH$59","v":"00:00:00"},{"$f":"Time!LXI$59","v":"00:00:00"},{"$f":"Time!LXJ$59","v":"00:00:00"},{"$f":"Time!LXK$59","v":"00:00:00"},{"$f":"Time!LXL$59","v":"00:00:00"},{"$f":"Time!LXM$59","v":"00:00:00"},{"$f":"Time!LXN$59","v":"00:00:00"},{"$f":"Time!LXO$59","v":"00:00:00"},{"$f":"Time!LXP$59","v":"00:00:00"},{"$f":"Time!LXQ$59","v":"00:00:00"},{"$f":"Time!LXR$59","v":"00:00:00"},{"$f":"Time!LXS$59","v":"00:00:00"},{"$f":"Time!LXT$59","v":"00:00:00"},{"$f":"Time!LXU$59","v":"00:00:00"},{"$f":"Time!LXV$59","v":"00:00:00"},{"$f":"Time!LXW$59","v":"00:00:00"},{"$f":"Time!LXX$59","v":"00:00:00"},{"$f":"Time!LXY$59","v":"00:00:00"},{"$f":"Time!LXZ$59","v":"00:00:00"},{"$f":"Time!LYA$59","v":"00:00:00"},{"$f":"Time!LYB$59","v":"00:00:00"},{"$f":"Time!LYC$59","v":"00:00:00"},{"$f":"Time!LYD$59","v":"00:00:00"},{"$f":"Time!LYE$59","v":"00:00:00"},{"$f":"Time!LYF$59","v":"00:00:00"},{"$f":"Time!LYG$59","v":"00:00:00"},{"$f":"Time!LYH$59","v":"00:00:00"},{"$f":"Time!LYI$59","v":"00:00:00"},{"$f":"Time!LYJ$59","v":"00:00:00"},{"$f":"Time!LYK$59","v":"00:00:00"},{"$f":"Time!LYL$59","v":"00:00:00"},{"$f":"Time!LYM$59","v":"00:00:00"},{"$f":"Time!LYN$59","v":"00:00:00"},{"$f":"Time!LYO$59","v":"00:00:00"},{"$f":"Time!LYP$59","v":"00:00:00"},{"$f":"Time!LYQ$59","v":"00:00:00"},{"$f":"Time!LYR$59","v":"00:00:00"},{"$f":"Time!LYS$59","v":"00:00:00"},{"$f":"Time!LYT$59","v":"00:00:00"},{"$f":"Time!LYU$59","v":"00:00:00"},{"$f":"Time!LYV$59","v":"00:00:00"},{"$f":"Time!LYW$59","v":"00:00:00"},{"$f":"Time!LYX$59","v":"00:00:00"},{"$f":"Time!LYY$59","v":"00:00:00"},{"$f":"Time!LYZ$59","v":"00:00:00"},{"$f":"Time!LZA$59","v":"00:00:00"},{"$f":"Time!LZB$59","v":"00:00:00"},{"$f":"Time!LZC$59","v":"00:00:00"},{"$f":"Time!LZD$59","v":"00:00:00"},{"$f":"Time!LZE$59","v":"00:00:00"},{"$f":"Time!LZF$59","v":"00:00:00"},{"$f":"Time!LZG$59","v":"00:00:00"},{"$f":"Time!LZH$59","v":"00:00:00"},{"$f":"Time!LZI$59","v":"00:00:00"},{"$f":"Time!LZJ$59","v":"00:00:00"},{"$f":"Time!LZK$59","v":"00:00:00"},{"$f":"Time!LZL$59","v":"00:00:00"},{"$f":"Time!LZM$59","v":"00:00:00"},{"$f":"Time!LZN$59","v":"00:00:00"},{"$f":"Time!LZO$59","v":"00:00:00"},{"$f":"Time!LZP$59","v":"00:00:00"},{"$f":"Time!LZQ$59","v":"00:00:00"},{"$f":"Time!LZR$59","v":"00:00:00"},{"$f":"Time!LZS$59","v":"00:00:00"},{"$f":"Time!LZT$59","v":"00:00:00"},{"$f":"Time!LZU$59","v":"00:00:00"},{"$f":"Time!LZV$59","v":"00:00:00"},{"$f":"Time!LZW$59","v":"00:00:00"},{"$f":"Time!LZX$59","v":"00:00:00"},{"$f":"Time!LZY$59","v":"00:00:00"},{"$f":"Time!LZZ$59","v":"00:00:00"},{"$f":"Time!MAA$59","v":"00:00:00"},{"$f":"Time!MAB$59","v":"00:00:00"},{"$f":"Time!MAC$59","v":"00:00:00"},{"$f":"Time!MAD$59","v":"00:00:00"},{"$f":"Time!MAE$59","v":"00:00:00"},{"$f":"Time!MAF$59","v":"00:00:00"},{"$f":"Time!MAG$59","v":"00:00:00"},{"$f":"Time!MAH$59","v":"00:00:00"},{"$f":"Time!MAI$59","v":"00:00:00"},{"$f":"Time!MAJ$59","v":"00:00:00"},{"$f":"Time!MAK$59","v":"00:00:00"},{"$f":"Time!MAL$59","v":"00:00:00"},{"$f":"Time!MAM$59","v":"00:00:00"},{"$f":"Time!MAN$59","v":"00:00:00"},{"$f":"Time!MAO$59","v":"00:00:00"},{"$f":"Time!MAP$59","v":"00:00:00"},{"$f":"Time!MAQ$59","v":"00:00:00"},{"$f":"Time!MAR$59","v":"00:00:00"},{"$f":"Time!MAS$59","v":"00:00:00"},{"$f":"Time!MAT$59","v":"00:00:00"},{"$f":"Time!MAU$59","v":"00:00:00"},{"$f":"Time!MAV$59","v":"00:00:00"},{"$f":"Time!MAW$59","v":"00:00:00"},{"$f":"Time!MAX$59","v":"00:00:00"},{"$f":"Time!MAY$59","v":"00:00:00"},{"$f":"Time!MAZ$59","v":"00:00:00"},{"$f":"Time!MBA$59","v":"00:00:00"},{"$f":"Time!MBB$59","v":"00:00:00"},{"$f":"Time!MBC$59","v":"00:00:00"},{"$f":"Time!MBD$59","v":"00:00:00"},{"$f":"Time!MBE$59","v":"00:00:00"},{"$f":"Time!MBF$59","v":"00:00:00"},{"$f":"Time!MBG$59","v":"00:00:00"},{"$f":"Time!MBH$59","v":"00:00:00"},{"$f":"Time!MBI$59","v":"00:00:00"},{"$f":"Time!MBJ$59","v":"00:00:00"},{"$f":"Time!MBK$59","v":"00:00:00"},{"$f":"Time!MBL$59","v":"00:00:00"},{"$f":"Time!MBM$59","v":"00:00:00"},{"$f":"Time!MBN$59","v":"00:00:00"},{"$f":"Time!MBO$59","v":"00:00:00"},{"$f":"Time!MBP$59","v":"00:00:00"},{"$f":"Time!MBQ$59","v":"00:00:00"},{"$f":"Time!MBR$59","v":"00:00:00"},{"$f":"Time!MBS$59","v":"00:00:00"},{"$f":"Time!MBT$59","v":"00:00:00"},{"$f":"Time!MBU$59","v":"00:00:00"},{"$f":"Time!MBV$59","v":"00:00:00"},{"$f":"Time!MBW$59","v":"00:00:00"},{"$f":"Time!MBX$59","v":"00:00:00"},{"$f":"Time!MBY$59","v":"00:00:00"},{"$f":"Time!MBZ$59","v":"00:00:00"},{"$f":"Time!MCA$59","v":"00:00:00"},{"$f":"Time!MCB$59","v":"00:00:00"},{"$f":"Time!MCC$59","v":"00:00:00"},{"$f":"Time!MCD$59","v":"00:00:00"},{"$f":"Time!MCE$59","v":"00:00:00"},{"$f":"Time!MCF$59","v":"00:00:00"},{"$f":"Time!MCG$59","v":"00:00:00"},{"$f":"Time!MCH$59","v":"00:00:00"},{"$f":"Time!MCI$59","v":"00:00:00"},{"$f":"Time!MCJ$59","v":"00:00:00"},{"$f":"Time!MCK$59","v":"00:00:00"},{"$f":"Time!MCL$59","v":"00:00:00"},{"$f":"Time!MCM$59","v":"00:00:00"},{"$f":"Time!MCN$59","v":"00:00:00"},{"$f":"Time!MCO$59","v":"00:00:00"},{"$f":"Time!MCP$59","v":"00:00:00"},{"$f":"Time!MCQ$59","v":"00:00:00"},{"$f":"Time!MCR$59","v":"00:00:00"},{"$f":"Time!MCS$59","v":"00:00:00"},{"$f":"Time!MCT$59","v":"00:00:00"},{"$f":"Time!MCU$59","v":"00:00:00"},{"$f":"Time!MCV$59","v":"00:00:00"},{"$f":"Time!MCW$59","v":"00:00:00"},{"$f":"Time!MCX$59","v":"00:00:00"},{"$f":"Time!MCY$59","v":"00:00:00"},{"$f":"Time!MCZ$59","v":"00:00:00"},{"$f":"Time!MDA$59","v":"00:00:00"},{"$f":"Time!MDB$59","v":"00:00:00"},{"$f":"Time!MDC$59","v":"00:00:00"},{"$f":"Time!MDD$59","v":"00:00:00"},{"$f":"Time!MDE$59","v":"00:00:00"},{"$f":"Time!MDF$59","v":"00:00:00"},{"$f":"Time!MDG$59","v":"00:00:00"},{"$f":"Time!MDH$59","v":"00:00:00"},{"$f":"Time!MDI$59","v":"00:00:00"},{"$f":"Time!MDJ$59","v":"00:00:00"},{"$f":"Time!MDK$59","v":"00:00:00"},{"$f":"Time!MDL$59","v":"00:00:00"},{"$f":"Time!MDM$59","v":"00:00:00"},{"$f":"Time!MDN$59","v":"00:00:00"},{"$f":"Time!MDO$59","v":"00:00:00"},{"$f":"Time!MDP$59","v":"00:00:00"},{"$f":"Time!MDQ$59","v":"00:00:00"},{"$f":"Time!MDR$59","v":"00:00:00"},{"$f":"Time!MDS$59","v":"00:00:00"},{"$f":"Time!MDT$59","v":"00:00:00"},{"$f":"Time!MDU$59","v":"00:00:00"},{"$f":"Time!MDV$59","v":"00:00:00"},{"$f":"Time!MDW$59","v":"00:00:00"},{"$f":"Time!MDX$59","v":"00:00:00"},{"$f":"Time!MDY$59","v":"00:00:00"},{"$f":"Time!MDZ$59","v":"00:00:00"},{"$f":"Time!MEA$59","v":"00:00:00"},{"$f":"Time!MEB$59","v":"00:00:00"},{"$f":"Time!MEC$59","v":"00:00:00"},{"$f":"Time!MED$59","v":"00:00:00"},{"$f":"Time!MEE$59","v":"00:00:00"},{"$f":"Time!MEF$59","v":"00:00:00"},{"$f":"Time!MEG$59","v":"00:00:00"},{"$f":"Time!MEH$59","v":"00:00:00"},{"$f":"Time!MEI$59","v":"00:00:00"},{"$f":"Time!MEJ$59","v":"00:00:00"},{"$f":"Time!MEK$59","v":"00:00:00"},{"$f":"Time!MEL$59","v":"00:00:00"},{"$f":"Time!MEM$59","v":"00:00:00"},{"$f":"Time!MEN$59","v":"00:00:00"},{"$f":"Time!MEO$59","v":"00:00:00"},{"$f":"Time!MEP$59","v":"00:00:00"},{"$f":"Time!MEQ$59","v":"00:00:00"},{"$f":"Time!MER$59","v":"00:00:00"},{"$f":"Time!MES$59","v":"00:00:00"},{"$f":"Time!MET$59","v":"00:00:00"},{"$f":"Time!MEU$59","v":"00:00:00"},{"$f":"Time!MEV$59","v":"00:00:00"},{"$f":"Time!MEW$59","v":"00:00:00"},{"$f":"Time!MEX$59","v":"00:00:00"},{"$f":"Time!MEY$59","v":"00:00:00"},{"$f":"Time!MEZ$59","v":"00:00:00"},{"$f":"Time!MFA$59","v":"00:00:00"},{"$f":"Time!MFB$59","v":"00:00:00"},{"$f":"Time!MFC$59","v":"00:00:00"},{"$f":"Time!MFD$59","v":"00:00:00"},{"$f":"Time!MFE$59","v":"00:00:00"},{"$f":"Time!MFF$59","v":"00:00:00"},{"$f":"Time!MFG$59","v":"00:00:00"},{"$f":"Time!MFH$59","v":"00:00:00"},{"$f":"Time!MFI$59","v":"00:00:00"},{"$f":"Time!MFJ$59","v":"00:00:00"},{"$f":"Time!MFK$59","v":"00:00:00"},{"$f":"Time!MFL$59","v":"00:00:00"},{"$f":"Time!MFM$59","v":"00:00:00"},{"$f":"Time!MFN$59","v":"00:00:00"},{"$f":"Time!MFO$59","v":"00:00:00"},{"$f":"Time!MFP$59","v":"00:00:00"},{"$f":"Time!MFQ$59","v":"00:00:00"},{"$f":"Time!MFR$59","v":"00:00:00"},{"$f":"Time!MFS$59","v":"00:00:00"},{"$f":"Time!MFT$59","v":"00:00:00"},{"$f":"Time!MFU$59","v":"00:00:00"},{"$f":"Time!MFV$59","v":"00:00:00"},{"$f":"Time!MFW$59","v":"00:00:00"},{"$f":"Time!MFX$59","v":"00:00:00"},{"$f":"Time!MFY$59","v":"00:00:00"},{"$f":"Time!MFZ$59","v":"00:00:00"},{"$f":"Time!MGA$59","v":"00:00:00"},{"$f":"Time!MGB$59","v":"00:00:00"},{"$f":"Time!MGC$59","v":"00:00:00"},{"$f":"Time!MGD$59","v":"00:00:00"},{"$f":"Time!MGE$59","v":"00:00:00"},{"$f":"Time!MGF$59","v":"00:00:00"},{"$f":"Time!MGG$59","v":"00:00:00"},{"$f":"Time!MGH$59","v":"00:00:00"},{"$f":"Time!MGI$59","v":"00:00:00"},{"$f":"Time!MGJ$59","v":"00:00:00"},{"$f":"Time!MGK$59","v":"00:00:00"},{"$f":"Time!MGL$59","v":"00:00:00"},{"$f":"Time!MGM$59","v":"00:00:00"},{"$f":"Time!MGN$59","v":"00:00:00"},{"$f":"Time!MGO$59","v":"00:00:00"},{"$f":"Time!MGP$59","v":"00:00:00"},{"$f":"Time!MGQ$59","v":"00:00:00"},{"$f":"Time!MGR$59","v":"00:00:00"},{"$f":"Time!MGS$59","v":"00:00:00"},{"$f":"Time!MGT$59","v":"00:00:00"},{"$f":"Time!MGU$59","v":"00:00:00"},{"$f":"Time!MGV$59","v":"00:00:00"},{"$f":"Time!MGW$59","v":"00:00:00"},{"$f":"Time!MGX$59","v":"00:00:00"},{"$f":"Time!MGY$59","v":"00:00:00"},{"$f":"Time!MGZ$59","v":"00:00:00"},{"$f":"Time!MHA$59","v":"00:00:00"},{"$f":"Time!MHB$59","v":"00:00:00"},{"$f":"Time!MHC$59","v":"00:00:00"},{"$f":"Time!MHD$59","v":"00:00:00"},{"$f":"Time!MHE$59","v":"00:00:00"},{"$f":"Time!MHF$59","v":"00:00:00"},{"$f":"Time!MHG$59","v":"00:00:00"},{"$f":"Time!MHH$59","v":"00:00:00"},{"$f":"Time!MHI$59","v":"00:00:00"},{"$f":"Time!MHJ$59","v":"00:00:00"},{"$f":"Time!MHK$59","v":"00:00:00"},{"$f":"Time!MHL$59","v":"00:00:00"},{"$f":"Time!MHM$59","v":"00:00:00"},{"$f":"Time!MHN$59","v":"00:00:00"},{"$f":"Time!MHO$59","v":"00:00:00"},{"$f":"Time!MHP$59","v":"00:00:00"},{"$f":"Time!MHQ$59","v":"00:00:00"},{"$f":"Time!MHR$59","v":"00:00:00"},{"$f":"Time!MHS$59","v":"00:00:00"},{"$f":"Time!MHT$59","v":"00:00:00"},{"$f":"Time!MHU$59","v":"00:00:00"},{"$f":"Time!MHV$59","v":"00:00:00"},{"$f":"Time!MHW$59","v":"00:00:00"},{"$f":"Time!MHX$59","v":"00:00:00"},{"$f":"Time!MHY$59","v":"00:00:00"},{"$f":"Time!MHZ$59","v":"00:00:00"},{"$f":"Time!MIA$59","v":"00:00:00"},{"$f":"Time!MIB$59","v":"00:00:00"},{"$f":"Time!MIC$59","v":"00:00:00"},{"$f":"Time!MID$59","v":"00:00:00"},{"$f":"Time!MIE$59","v":"00:00:00"},{"$f":"Time!MIF$59","v":"00:00:00"},{"$f":"Time!MIG$59","v":"00:00:00"},{"$f":"Time!MIH$59","v":"00:00:00"},{"$f":"Time!MII$59","v":"00:00:00"},{"$f":"Time!MIJ$59","v":"00:00:00"},{"$f":"Time!MIK$59","v":"00:00:00"},{"$f":"Time!MIL$59","v":"00:00:00"},{"$f":"Time!MIM$59","v":"00:00:00"},{"$f":"Time!MIN$59","v":"00:00:00"},{"$f":"Time!MIO$59","v":"00:00:00"},{"$f":"Time!MIP$59","v":"00:00:00"},{"$f":"Time!MIQ$59","v":"00:00:00"},{"$f":"Time!MIR$59","v":"00:00:00"},{"$f":"Time!MIS$59","v":"00:00:00"},{"$f":"Time!MIT$59","v":"00:00:00"},{"$f":"Time!MIU$59","v":"00:00:00"},{"$f":"Time!MIV$59","v":"00:00:00"},{"$f":"Time!MIW$59","v":"00:00:00"},{"$f":"Time!MIX$59","v":"00:00:00"},{"$f":"Time!MIY$59","v":"00:00:00"},{"$f":"Time!MIZ$59","v":"00:00:00"},{"$f":"Time!MJA$59","v":"00:00:00"},{"$f":"Time!MJB$59","v":"00:00:00"},{"$f":"Time!MJC$59","v":"00:00:00"},{"$f":"Time!MJD$59","v":"00:00:00"},{"$f":"Time!MJE$59","v":"00:00:00"},{"$f":"Time!MJF$59","v":"00:00:00"},{"$f":"Time!MJG$59","v":"00:00:00"},{"$f":"Time!MJH$59","v":"00:00:00"},{"$f":"Time!MJI$59","v":"00:00:00"},{"$f":"Time!MJJ$59","v":"00:00:00"},{"$f":"Time!MJK$59","v":"00:00:00"},{"$f":"Time!MJL$59","v":"00:00:00"},{"$f":"Time!MJM$59","v":"00:00:00"},{"$f":"Time!MJN$59","v":"00:00:00"},{"$f":"Time!MJO$59","v":"00:00:00"},{"$f":"Time!MJP$59","v":"00:00:00"},{"$f":"Time!MJQ$59","v":"00:00:00"},{"$f":"Time!MJR$59","v":"00:00:00"},{"$f":"Time!MJS$59","v":"00:00:00"},{"$f":"Time!MJT$59","v":"00:00:00"},{"$f":"Time!MJU$59","v":"00:00:00"},{"$f":"Time!MJV$59","v":"00:00:00"},{"$f":"Time!MJW$59","v":"00:00:00"},{"$f":"Time!MJX$59","v":"00:00:00"},{"$f":"Time!MJY$59","v":"00:00:00"},{"$f":"Time!MJZ$59","v":"00:00:00"},{"$f":"Time!MKA$59","v":"00:00:00"},{"$f":"Time!MKB$59","v":"00:00:00"},{"$f":"Time!MKC$59","v":"00:00:00"},{"$f":"Time!MKD$59","v":"00:00:00"},{"$f":"Time!MKE$59","v":"00:00:00"},{"$f":"Time!MKF$59","v":"00:00:00"},{"$f":"Time!MKG$59","v":"00:00:00"},{"$f":"Time!MKH$59","v":"00:00:00"},{"$f":"Time!MKI$59","v":"00:00:00"},{"$f":"Time!MKJ$59","v":"00:00:00"},{"$f":"Time!MKK$59","v":"00:00:00"},{"$f":"Time!MKL$59","v":"00:00:00"},{"$f":"Time!MKM$59","v":"00:00:00"},{"$f":"Time!MKN$59","v":"00:00:00"},{"$f":"Time!MKO$59","v":"00:00:00"},{"$f":"Time!MKP$59","v":"00:00:00"},{"$f":"Time!MKQ$59","v":"00:00:00"},{"$f":"Time!MKR$59","v":"00:00:00"},{"$f":"Time!MKS$59","v":"00:00:00"},{"$f":"Time!MKT$59","v":"00:00:00"},{"$f":"Time!MKU$59","v":"00:00:00"},{"$f":"Time!MKV$59","v":"00:00:00"},{"$f":"Time!MKW$59","v":"00:00:00"},{"$f":"Time!MKX$59","v":"00:00:00"},{"$f":"Time!MKY$59","v":"00:00:00"},{"$f":"Time!MKZ$59","v":"00:00:00"},{"$f":"Time!MLA$59","v":"00:00:00"},{"$f":"Time!MLB$59","v":"00:00:00"},{"$f":"Time!MLC$59","v":"00:00:00"},{"$f":"Time!MLD$59","v":"00:00:00"},{"$f":"Time!MLE$59","v":"00:00:00"},{"$f":"Time!MLF$59","v":"00:00:00"},{"$f":"Time!MLG$59","v":"00:00:00"},{"$f":"Time!MLH$59","v":"00:00:00"},{"$f":"Time!MLI$59","v":"00:00:00"},{"$f":"Time!MLJ$59","v":"00:00:00"},{"$f":"Time!MLK$59","v":"00:00:00"},{"$f":"Time!MLL$59","v":"00:00:00"},{"$f":"Time!MLM$59","v":"00:00:00"},{"$f":"Time!MLN$59","v":"00:00:00"},{"$f":"Time!MLO$59","v":"00:00:00"},{"$f":"Time!MLP$59","v":"00:00:00"},{"$f":"Time!MLQ$59","v":"00:00:00"},{"$f":"Time!MLR$59","v":"00:00:00"},{"$f":"Time!MLS$59","v":"00:00:00"},{"$f":"Time!MLT$59","v":"00:00:00"},{"$f":"Time!MLU$59","v":"00:00:00"},{"$f":"Time!MLV$59","v":"00:00:00"},{"$f":"Time!MLW$59","v":"00:00:00"},{"$f":"Time!MLX$59","v":"00:00:00"},{"$f":"Time!MLY$59","v":"00:00:00"},{"$f":"Time!MLZ$59","v":"00:00:00"},{"$f":"Time!MMA$59","v":"00:00:00"},{"$f":"Time!MMB$59","v":"00:00:00"},{"$f":"Time!MMC$59","v":"00:00:00"},{"$f":"Time!MMD$59","v":"00:00:00"},{"$f":"Time!MME$59","v":"00:00:00"},{"$f":"Time!MMF$59","v":"00:00:00"},{"$f":"Time!MMG$59","v":"00:00:00"},{"$f":"Time!MMH$59","v":"00:00:00"},{"$f":"Time!MMI$59","v":"00:00:00"},{"$f":"Time!MMJ$59","v":"00:00:00"},{"$f":"Time!MMK$59","v":"00:00:00"},{"$f":"Time!MML$59","v":"00:00:00"},{"$f":"Time!MMM$59","v":"00:00:00"},{"$f":"Time!MMN$59","v":"00:00:00"},{"$f":"Time!MMO$59","v":"00:00:00"},{"$f":"Time!MMP$59","v":"00:00:00"},{"$f":"Time!MMQ$59","v":"00:00:00"},{"$f":"Time!MMR$59","v":"00:00:00"},{"$f":"Time!MMS$59","v":"00:00:00"},{"$f":"Time!MMT$59","v":"00:00:00"},{"$f":"Time!MMU$59","v":"00:00:00"},{"$f":"Time!MMV$59","v":"00:00:00"},{"$f":"Time!MMW$59","v":"00:00:00"},{"$f":"Time!MMX$59","v":"00:00:00"},{"$f":"Time!MMY$59","v":"00:00:00"},{"$f":"Time!MMZ$59","v":"00:00:00"},{"$f":"Time!MNA$59","v":"00:00:00"},{"$f":"Time!MNB$59","v":"00:00:00"},{"$f":"Time!MNC$59","v":"00:00:00"},{"$f":"Time!MND$59","v":"00:00:00"},{"$f":"Time!MNE$59","v":"00:00:00"},{"$f":"Time!MNF$59","v":"00:00:00"},{"$f":"Time!MNG$59","v":"00:00:00"},{"$f":"Time!MNH$59","v":"00:00:00"},{"$f":"Time!MNI$59","v":"00:00:00"},{"$f":"Time!MNJ$59","v":"00:00:00"},{"$f":"Time!MNK$59","v":"00:00:00"},{"$f":"Time!MNL$59","v":"00:00:00"},{"$f":"Time!MNM$59","v":"00:00:00"},{"$f":"Time!MNN$59","v":"00:00:00"},{"$f":"Time!MNO$59","v":"00:00:00"},{"$f":"Time!MNP$59","v":"00:00:00"},{"$f":"Time!MNQ$59","v":"00:00:00"},{"$f":"Time!MNR$59","v":"00:00:00"},{"$f":"Time!MNS$59","v":"00:00:00"},{"$f":"Time!MNT$59","v":"00:00:00"},{"$f":"Time!MNU$59","v":"00:00:00"},{"$f":"Time!MNV$59","v":"00:00:00"},{"$f":"Time!MNW$59","v":"00:00:00"},{"$f":"Time!MNX$59","v":"00:00:00"},{"$f":"Time!MNY$59","v":"00:00:00"},{"$f":"Time!MNZ$59","v":"00:00:00"},{"$f":"Time!MOA$59","v":"00:00:00"},{"$f":"Time!MOB$59","v":"00:00:00"},{"$f":"Time!MOC$59","v":"00:00:00"},{"$f":"Time!MOD$59","v":"00:00:00"},{"$f":"Time!MOE$59","v":"00:00:00"},{"$f":"Time!MOF$59","v":"00:00:00"},{"$f":"Time!MOG$59","v":"00:00:00"},{"$f":"Time!MOH$59","v":"00:00:00"},{"$f":"Time!MOI$59","v":"00:00:00"},{"$f":"Time!MOJ$59","v":"00:00:00"},{"$f":"Time!MOK$59","v":"00:00:00"},{"$f":"Time!MOL$59","v":"00:00:00"},{"$f":"Time!MOM$59","v":"00:00:00"},{"$f":"Time!MON$59","v":"00:00:00"},{"$f":"Time!MOO$59","v":"00:00:00"},{"$f":"Time!MOP$59","v":"00:00:00"},{"$f":"Time!MOQ$59","v":"00:00:00"},{"$f":"Time!MOR$59","v":"00:00:00"},{"$f":"Time!MOS$59","v":"00:00:00"},{"$f":"Time!MOT$59","v":"00:00:00"},{"$f":"Time!MOU$59","v":"00:00:00"},{"$f":"Time!MOV$59","v":"00:00:00"},{"$f":"Time!MOW$59","v":"00:00:00"},{"$f":"Time!MOX$59","v":"00:00:00"},{"$f":"Time!MOY$59","v":"00:00:00"},{"$f":"Time!MOZ$59","v":"00:00:00"},{"$f":"Time!MPA$59","v":"00:00:00"},{"$f":"Time!MPB$59","v":"00:00:00"},{"$f":"Time!MPC$59","v":"00:00:00"},{"$f":"Time!MPD$59","v":"00:00:00"},{"$f":"Time!MPE$59","v":"00:00:00"},{"$f":"Time!MPF$59","v":"00:00:00"},{"$f":"Time!MPG$59","v":"00:00:00"},{"$f":"Time!MPH$59","v":"00:00:00"},{"$f":"Time!MPI$59","v":"00:00:00"},{"$f":"Time!MPJ$59","v":"00:00:00"},{"$f":"Time!MPK$59","v":"00:00:00"},{"$f":"Time!MPL$59","v":"00:00:00"},{"$f":"Time!MPM$59","v":"00:00:00"},{"$f":"Time!MPN$59","v":"00:00:00"},{"$f":"Time!MPO$59","v":"00:00:00"},{"$f":"Time!MPP$59","v":"00:00:00"},{"$f":"Time!MPQ$59","v":"00:00:00"},{"$f":"Time!MPR$59","v":"00:00:00"},{"$f":"Time!MPS$59","v":"00:00:00"},{"$f":"Time!MPT$59","v":"00:00:00"},{"$f":"Time!MPU$59","v":"00:00:00"},{"$f":"Time!MPV$59","v":"00:00:00"},{"$f":"Time!MPW$59","v":"00:00:00"},{"$f":"Time!MPX$59","v":"00:00:00"},{"$f":"Time!MPY$59","v":"00:00:00"},{"$f":"Time!MPZ$59","v":"00:00:00"},{"$f":"Time!MQA$59","v":"00:00:00"},{"$f":"Time!MQB$59","v":"00:00:00"},{"$f":"Time!MQC$59","v":"00:00:00"},{"$f":"Time!MQD$59","v":"00:00:00"},{"$f":"Time!MQE$59","v":"00:00:00"},{"$f":"Time!MQF$59","v":"00:00:00"},{"$f":"Time!MQG$59","v":"00:00:00"},{"$f":"Time!MQH$59","v":"00:00:00"},{"$f":"Time!MQI$59","v":"00:00:00"},{"$f":"Time!MQJ$59","v":"00:00:00"},{"$f":"Time!MQK$59","v":"00:00:00"},{"$f":"Time!MQL$59","v":"00:00:00"},{"$f":"Time!MQM$59","v":"00:00:00"},{"$f":"Time!MQN$59","v":"00:00:00"},{"$f":"Time!MQO$59","v":"00:00:00"},{"$f":"Time!MQP$59","v":"00:00:00"},{"$f":"Time!MQQ$59","v":"00:00:00"},{"$f":"Time!MQR$59","v":"00:00:00"},{"$f":"Time!MQS$59","v":"00:00:00"},{"$f":"Time!MQT$59","v":"00:00:00"},{"$f":"Time!MQU$59","v":"00:00:00"},{"$f":"Time!MQV$59","v":"00:00:00"},{"$f":"Time!MQW$59","v":"00:00:00"},{"$f":"Time!MQX$59","v":"00:00:00"},{"$f":"Time!MQY$59","v":"00:00:00"},{"$f":"Time!MQZ$59","v":"00:00:00"},{"$f":"Time!MRA$59","v":"00:00:00"},{"$f":"Time!MRB$59","v":"00:00:00"},{"$f":"Time!MRC$59","v":"00:00:00"},{"$f":"Time!MRD$59","v":"00:00:00"},{"$f":"Time!MRE$59","v":"00:00:00"},{"$f":"Time!MRF$59","v":"00:00:00"},{"$f":"Time!MRG$59","v":"00:00:00"},{"$f":"Time!MRH$59","v":"00:00:00"},{"$f":"Time!MRI$59","v":"00:00:00"},{"$f":"Time!MRJ$59","v":"00:00:00"},{"$f":"Time!MRK$59","v":"00:00:00"},{"$f":"Time!MRL$59","v":"00:00:00"},{"$f":"Time!MRM$59","v":"00:00:00"},{"$f":"Time!MRN$59","v":"00:00:00"},{"$f":"Time!MRO$59","v":"00:00:00"},{"$f":"Time!MRP$59","v":"00:00:00"},{"$f":"Time!MRQ$59","v":"00:00:00"},{"$f":"Time!MRR$59","v":"00:00:00"},{"$f":"Time!MRS$59","v":"00:00:00"},{"$f":"Time!MRT$59","v":"00:00:00"},{"$f":"Time!MRU$59","v":"00:00:00"},{"$f":"Time!MRV$59","v":"00:00:00"},{"$f":"Time!MRW$59","v":"00:00:00"},{"$f":"Time!MRX$59","v":"00:00:00"},{"$f":"Time!MRY$59","v":"00:00:00"},{"$f":"Time!MRZ$59","v":"00:00:00"},{"$f":"Time!MSA$59","v":"00:00:00"},{"$f":"Time!MSB$59","v":"00:00:00"},{"$f":"Time!MSC$59","v":"00:00:00"},{"$f":"Time!MSD$59","v":"00:00:00"},{"$f":"Time!MSE$59","v":"00:00:00"},{"$f":"Time!MSF$59","v":"00:00:00"},{"$f":"Time!MSG$59","v":"00:00:00"},{"$f":"Time!MSH$59","v":"00:00:00"},{"$f":"Time!MSI$59","v":"00:00:00"},{"$f":"Time!MSJ$59","v":"00:00:00"},{"$f":"Time!MSK$59","v":"00:00:00"},{"$f":"Time!MSL$59","v":"00:00:00"},{"$f":"Time!MSM$59","v":"00:00:00"},{"$f":"Time!MSN$59","v":"00:00:00"},{"$f":"Time!MSO$59","v":"00:00:00"},{"$f":"Time!MSP$59","v":"00:00:00"},{"$f":"Time!MSQ$59","v":"00:00:00"},{"$f":"Time!MSR$59","v":"00:00:00"},{"$f":"Time!MSS$59","v":"00:00:00"},{"$f":"Time!MST$59","v":"00:00:00"},{"$f":"Time!MSU$59","v":"00:00:00"},{"$f":"Time!MSV$59","v":"00:00:00"},{"$f":"Time!MSW$59","v":"00:00:00"},{"$f":"Time!MSX$59","v":"00:00:00"},{"$f":"Time!MSY$59","v":"00:00:00"},{"$f":"Time!MSZ$59","v":"00:00:00"},{"$f":"Time!MTA$59","v":"00:00:00"},{"$f":"Time!MTB$59","v":"00:00:00"},{"$f":"Time!MTC$59","v":"00:00:00"},{"$f":"Time!MTD$59","v":"00:00:00"},{"$f":"Time!MTE$59","v":"00:00:00"},{"$f":"Time!MTF$59","v":"00:00:00"},{"$f":"Time!MTG$59","v":"00:00:00"},{"$f":"Time!MTH$59","v":"00:00:00"},{"$f":"Time!MTI$59","v":"00:00:00"},{"$f":"Time!MTJ$59","v":"00:00:00"},{"$f":"Time!MTK$59","v":"00:00:00"},{"$f":"Time!MTL$59","v":"00:00:00"},{"$f":"Time!MTM$59","v":"00:00:00"},{"$f":"Time!MTN$59","v":"00:00:00"},{"$f":"Time!MTO$59","v":"00:00:00"},{"$f":"Time!MTP$59","v":"00:00:00"},{"$f":"Time!MTQ$59","v":"00:00:00"},{"$f":"Time!MTR$59","v":"00:00:00"},{"$f":"Time!MTS$59","v":"00:00:00"},{"$f":"Time!MTT$59","v":"00:00:00"},{"$f":"Time!MTU$59","v":"00:00:00"},{"$f":"Time!MTV$59","v":"00:00:00"},{"$f":"Time!MTW$59","v":"00:00:00"},{"$f":"Time!MTX$59","v":"00:00:00"},{"$f":"Time!MTY$59","v":"00:00:00"},{"$f":"Time!MTZ$59","v":"00:00:00"},{"$f":"Time!MUA$59","v":"00:00:00"},{"$f":"Time!MUB$59","v":"00:00:00"},{"$f":"Time!MUC$59","v":"00:00:00"},{"$f":"Time!MUD$59","v":"00:00:00"},{"$f":"Time!MUE$59","v":"00:00:00"},{"$f":"Time!MUF$59","v":"00:00:00"},{"$f":"Time!MUG$59","v":"00:00:00"},{"$f":"Time!MUH$59","v":"00:00:00"},{"$f":"Time!MUI$59","v":"00:00:00"},{"$f":"Time!MUJ$59","v":"00:00:00"},{"$f":"Time!MUK$59","v":"00:00:00"},{"$f":"Time!MUL$59","v":"00:00:00"},{"$f":"Time!MUM$59","v":"00:00:00"},{"$f":"Time!MUN$59","v":"00:00:00"},{"$f":"Time!MUO$59","v":"00:00:00"},{"$f":"Time!MUP$59","v":"00:00:00"},{"$f":"Time!MUQ$59","v":"00:00:00"},{"$f":"Time!MUR$59","v":"00:00:00"},{"$f":"Time!MUS$59","v":"00:00:00"},{"$f":"Time!MUT$59","v":"00:00:00"},{"$f":"Time!MUU$59","v":"00:00:00"},{"$f":"Time!MUV$59","v":"00:00:00"},{"$f":"Time!MUW$59","v":"00:00:00"},{"$f":"Time!MUX$59","v":"00:00:00"},{"$f":"Time!MUY$59","v":"00:00:00"},{"$f":"Time!MUZ$59","v":"00:00:00"},{"$f":"Time!MVA$59","v":"00:00:00"},{"$f":"Time!MVB$59","v":"00:00:00"},{"$f":"Time!MVC$59","v":"00:00:00"},{"$f":"Time!MVD$59","v":"00:00:00"},{"$f":"Time!MVE$59","v":"00:00:00"},{"$f":"Time!MVF$59","v":"00:00:00"},{"$f":"Time!MVG$59","v":"00:00:00"},{"$f":"Time!MVH$59","v":"00:00:00"},{"$f":"Time!MVI$59","v":"00:00:00"},{"$f":"Time!MVJ$59","v":"00:00:00"},{"$f":"Time!MVK$59","v":"00:00:00"},{"$f":"Time!MVL$59","v":"00:00:00"},{"$f":"Time!MVM$59","v":"00:00:00"},{"$f":"Time!MVN$59","v":"00:00:00"},{"$f":"Time!MVO$59","v":"00:00:00"},{"$f":"Time!MVP$59","v":"00:00:00"},{"$f":"Time!MVQ$59","v":"00:00:00"},{"$f":"Time!MVR$59","v":"00:00:00"},{"$f":"Time!MVS$59","v":"00:00:00"},{"$f":"Time!MVT$59","v":"00:00:00"},{"$f":"Time!MVU$59","v":"00:00:00"},{"$f":"Time!MVV$59","v":"00:00:00"},{"$f":"Time!MVW$59","v":"00:00:00"},{"$f":"Time!MVX$59","v":"00:00:00"},{"$f":"Time!MVY$59","v":"00:00:00"},{"$f":"Time!MVZ$59","v":"00:00:00"},{"$f":"Time!MWA$59","v":"00:00:00"},{"$f":"Time!MWB$59","v":"00:00:00"},{"$f":"Time!MWC$59","v":"00:00:00"},{"$f":"Time!MWD$59","v":"00:00:00"},{"$f":"Time!MWE$59","v":"00:00:00"},{"$f":"Time!MWF$59","v":"00:00:00"},{"$f":"Time!MWG$59","v":"00:00:00"},{"$f":"Time!MWH$59","v":"00:00:00"},{"$f":"Time!MWI$59","v":"00:00:00"},{"$f":"Time!MWJ$59","v":"00:00:00"},{"$f":"Time!MWK$59","v":"00:00:00"},{"$f":"Time!MWL$59","v":"00:00:00"},{"$f":"Time!MWM$59","v":"00:00:00"},{"$f":"Time!MWN$59","v":"00:00:00"},{"$f":"Time!MWO$59","v":"00:00:00"},{"$f":"Time!MWP$59","v":"00:00:00"},{"$f":"Time!MWQ$59","v":"00:00:00"},{"$f":"Time!MWR$59","v":"00:00:00"},{"$f":"Time!MWS$59","v":"00:00:00"},{"$f":"Time!MWT$59","v":"00:00:00"},{"$f":"Time!MWU$59","v":"00:00:00"},{"$f":"Time!MWV$59","v":"00:00:00"},{"$f":"Time!MWW$59","v":"00:00:00"},{"$f":"Time!MWX$59","v":"00:00:00"},{"$f":"Time!MWY$59","v":"00:00:00"},{"$f":"Time!MWZ$59","v":"00:00:00"},{"$f":"Time!MXA$59","v":"00:00:00"},{"$f":"Time!MXB$59","v":"00:00:00"},{"$f":"Time!MXC$59","v":"00:00:00"},{"$f":"Time!MXD$59","v":"00:00:00"},{"$f":"Time!MXE$59","v":"00:00:00"},{"$f":"Time!MXF$59","v":"00:00:00"},{"$f":"Time!MXG$59","v":"00:00:00"},{"$f":"Time!MXH$59","v":"00:00:00"},{"$f":"Time!MXI$59","v":"00:00:00"},{"$f":"Time!MXJ$59","v":"00:00:00"},{"$f":"Time!MXK$59","v":"00:00:00"},{"$f":"Time!MXL$59","v":"00:00:00"},{"$f":"Time!MXM$59","v":"00:00:00"},{"$f":"Time!MXN$59","v":"00:00:00"},{"$f":"Time!MXO$59","v":"00:00:00"},{"$f":"Time!MXP$59","v":"00:00:00"},{"$f":"Time!MXQ$59","v":"00:00:00"},{"$f":"Time!MXR$59","v":"00:00:00"},{"$f":"Time!MXS$59","v":"00:00:00"},{"$f":"Time!MXT$59","v":"00:00:00"},{"$f":"Time!MXU$59","v":"00:00:00"},{"$f":"Time!MXV$59","v":"00:00:00"},{"$f":"Time!MXW$59","v":"00:00:00"},{"$f":"Time!MXX$59","v":"00:00:00"},{"$f":"Time!MXY$59","v":"00:00:00"},{"$f":"Time!MXZ$59","v":"00:00:00"},{"$f":"Time!MYA$59","v":"00:00:00"},{"$f":"Time!MYB$59","v":"00:00:00"},{"$f":"Time!MYC$59","v":"00:00:00"},{"$f":"Time!MYD$59","v":"00:00:00"},{"$f":"Time!MYE$59","v":"00:00:00"},{"$f":"Time!MYF$59","v":"00:00:00"},{"$f":"Time!MYG$59","v":"00:00:00"},{"$f":"Time!MYH$59","v":"00:00:00"},{"$f":"Time!MYI$59","v":"00:00:00"},{"$f":"Time!MYJ$59","v":"00:00:00"},{"$f":"Time!MYK$59","v":"00:00:00"},{"$f":"Time!MYL$59","v":"00:00:00"},{"$f":"Time!MYM$59","v":"00:00:00"},{"$f":"Time!MYN$59","v":"00:00:00"},{"$f":"Time!MYO$59","v":"00:00:00"},{"$f":"Time!MYP$59","v":"00:00:00"},{"$f":"Time!MYQ$59","v":"00:00:00"},{"$f":"Time!MYR$59","v":"00:00:00"},{"$f":"Time!MYS$59","v":"00:00:00"},{"$f":"Time!MYT$59","v":"00:00:00"},{"$f":"Time!MYU$59","v":"00:00:00"},{"$f":"Time!MYV$59","v":"00:00:00"},{"$f":"Time!MYW$59","v":"00:00:00"},{"$f":"Time!MYX$59","v":"00:00:00"},{"$f":"Time!MYY$59","v":"00:00:00"},{"$f":"Time!MYZ$59","v":"00:00:00"},{"$f":"Time!MZA$59","v":"00:00:00"},{"$f":"Time!MZB$59","v":"00:00:00"},{"$f":"Time!MZC$59","v":"00:00:00"},{"$f":"Time!MZD$59","v":"00:00:00"},{"$f":"Time!MZE$59","v":"00:00:00"},{"$f":"Time!MZF$59","v":"00:00:00"},{"$f":"Time!MZG$59","v":"00:00:00"},{"$f":"Time!MZH$59","v":"00:00:00"},{"$f":"Time!MZI$59","v":"00:00:00"},{"$f":"Time!MZJ$59","v":"00:00:00"},{"$f":"Time!MZK$59","v":"00:00:00"},{"$f":"Time!MZL$59","v":"00:00:00"},{"$f":"Time!MZM$59","v":"00:00:00"},{"$f":"Time!MZN$59","v":"00:00:00"},{"$f":"Time!MZO$59","v":"00:00:00"},{"$f":"Time!MZP$59","v":"00:00:00"},{"$f":"Time!MZQ$59","v":"00:00:00"},{"$f":"Time!MZR$59","v":"00:00:00"},{"$f":"Time!MZS$59","v":"00:00:00"},{"$f":"Time!MZT$59","v":"00:00:00"},{"$f":"Time!MZU$59","v":"00:00:00"},{"$f":"Time!MZV$59","v":"00:00:00"},{"$f":"Time!MZW$59","v":"00:00:00"},{"$f":"Time!MZX$59","v":"00:00:00"},{"$f":"Time!MZY$59","v":"00:00:00"},{"$f":"Time!MZZ$59","v":"00:00:00"},{"$f":"Time!NAA$59","v":"00:00:00"},{"$f":"Time!NAB$59","v":"00:00:00"},{"$f":"Time!NAC$59","v":"00:00:00"},{"$f":"Time!NAD$59","v":"00:00:00"},{"$f":"Time!NAE$59","v":"00:00:00"},{"$f":"Time!NAF$59","v":"00:00:00"},{"$f":"Time!NAG$59","v":"00:00:00"},{"$f":"Time!NAH$59","v":"00:00:00"},{"$f":"Time!NAI$59","v":"00:00:00"},{"$f":"Time!NAJ$59","v":"00:00:00"},{"$f":"Time!NAK$59","v":"00:00:00"},{"$f":"Time!NAL$59","v":"00:00:00"},{"$f":"Time!NAM$59","v":"00:00:00"},{"$f":"Time!NAN$59","v":"00:00:00"},{"$f":"Time!NAO$59","v":"00:00:00"},{"$f":"Time!NAP$59","v":"00:00:00"},{"$f":"Time!NAQ$59","v":"00:00:00"},{"$f":"Time!NAR$59","v":"00:00:00"},{"$f":"Time!NAS$59","v":"00:00:00"},{"$f":"Time!NAT$59","v":"00:00:00"},{"$f":"Time!NAU$59","v":"00:00:00"},{"$f":"Time!NAV$59","v":"00:00:00"},{"$f":"Time!NAW$59","v":"00:00:00"},{"$f":"Time!NAX$59","v":"00:00:00"},{"$f":"Time!NAY$59","v":"00:00:00"},{"$f":"Time!NAZ$59","v":"00:00:00"},{"$f":"Time!NBA$59","v":"00:00:00"},{"$f":"Time!NBB$59","v":"00:00:00"},{"$f":"Time!NBC$59","v":"00:00:00"},{"$f":"Time!NBD$59","v":"00:00:00"},{"$f":"Time!NBE$59","v":"00:00:00"},{"$f":"Time!NBF$59","v":"00:00:00"},{"$f":"Time!NBG$59","v":"00:00:00"},{"$f":"Time!NBH$59","v":"00:00:00"},{"$f":"Time!NBI$59","v":"00:00:00"},{"$f":"Time!NBJ$59","v":"00:00:00"},{"$f":"Time!NBK$59","v":"00:00:00"},{"$f":"Time!NBL$59","v":"00:00:00"},{"$f":"Time!NBM$59","v":"00:00:00"},{"$f":"Time!NBN$59","v":"00:00:00"},{"$f":"Time!NBO$59","v":"00:00:00"},{"$f":"Time!NBP$59","v":"00:00:00"},{"$f":"Time!NBQ$59","v":"00:00:00"},{"$f":"Time!NBR$59","v":"00:00:00"},{"$f":"Time!NBS$59","v":"00:00:00"},{"$f":"Time!NBT$59","v":"00:00:00"},{"$f":"Time!NBU$59","v":"00:00:00"},{"$f":"Time!NBV$59","v":"00:00:00"},{"$f":"Time!NBW$59","v":"00:00:00"},{"$f":"Time!NBX$59","v":"00:00:00"},{"$f":"Time!NBY$59","v":"00:00:00"},{"$f":"Time!NBZ$59","v":"00:00:00"},{"$f":"Time!NCA$59","v":"00:00:00"},{"$f":"Time!NCB$59","v":"00:00:00"},{"$f":"Time!NCC$59","v":"00:00:00"},{"$f":"Time!NCD$59","v":"00:00:00"},{"$f":"Time!NCE$59","v":"00:00:00"},{"$f":"Time!NCF$59","v":"00:00:00"},{"$f":"Time!NCG$59","v":"00:00:00"},{"$f":"Time!NCH$59","v":"00:00:00"},{"$f":"Time!NCI$59","v":"00:00:00"},{"$f":"Time!NCJ$59","v":"00:00:00"},{"$f":"Time!NCK$59","v":"00:00:00"},{"$f":"Time!NCL$59","v":"00:00:00"},{"$f":"Time!NCM$59","v":"00:00:00"},{"$f":"Time!NCN$59","v":"00:00:00"},{"$f":"Time!NCO$59","v":"00:00:00"},{"$f":"Time!NCP$59","v":"00:00:00"},{"$f":"Time!NCQ$59","v":"00:00:00"},{"$f":"Time!NCR$59","v":"00:00:00"},{"$f":"Time!NCS$59","v":"00:00:00"},{"$f":"Time!NCT$59","v":"00:00:00"},{"$f":"Time!NCU$59","v":"00:00:00"},{"$f":"Time!NCV$59","v":"00:00:00"},{"$f":"Time!NCW$59","v":"00:00:00"},{"$f":"Time!NCX$59","v":"00:00:00"},{"$f":"Time!NCY$59","v":"00:00:00"},{"$f":"Time!NCZ$59","v":"00:00:00"},{"$f":"Time!NDA$59","v":"00:00:00"},{"$f":"Time!NDB$59","v":"00:00:00"},{"$f":"Time!NDC$59","v":"00:00:00"},{"$f":"Time!NDD$59","v":"00:00:00"},{"$f":"Time!NDE$59","v":"00:00:00"},{"$f":"Time!NDF$59","v":"00:00:00"},{"$f":"Time!NDG$59","v":"00:00:00"},{"$f":"Time!NDH$59","v":"00:00:00"},{"$f":"Time!NDI$59","v":"00:00:00"},{"$f":"Time!NDJ$59","v":"00:00:00"},{"$f":"Time!NDK$59","v":"00:00:00"},{"$f":"Time!NDL$59","v":"00:00:00"},{"$f":"Time!NDM$59","v":"00:00:00"},{"$f":"Time!NDN$59","v":"00:00:00"},{"$f":"Time!NDO$59","v":"00:00:00"},{"$f":"Time!NDP$59","v":"00:00:00"},{"$f":"Time!NDQ$59","v":"00:00:00"},{"$f":"Time!NDR$59","v":"00:00:00"},{"$f":"Time!NDS$59","v":"00:00:00"},{"$f":"Time!NDT$59","v":"00:00:00"},{"$f":"Time!NDU$59","v":"00:00:00"},{"$f":"Time!NDV$59","v":"00:00:00"},{"$f":"Time!NDW$59","v":"00:00:00"},{"$f":"Time!NDX$59","v":"00:00:00"},{"$f":"Time!NDY$59","v":"00:00:00"},{"$f":"Time!NDZ$59","v":"00:00:00"},{"$f":"Time!NEA$59","v":"00:00:00"},{"$f":"Time!NEB$59","v":"00:00:00"},{"$f":"Time!NEC$59","v":"00:00:00"},{"$f":"Time!NED$59","v":"00:00:00"},{"$f":"Time!NEE$59","v":"00:00:00"},{"$f":"Time!NEF$59","v":"00:00:00"},{"$f":"Time!NEG$59","v":"00:00:00"},{"$f":"Time!NEH$59","v":"00:00:00"},{"$f":"Time!NEI$59","v":"00:00:00"},{"$f":"Time!NEJ$59","v":"00:00:00"},{"$f":"Time!NEK$59","v":"00:00:00"},{"$f":"Time!NEL$59","v":"00:00:00"},{"$f":"Time!NEM$59","v":"00:00:00"},{"$f":"Time!NEN$59","v":"00:00:00"},{"$f":"Time!NEO$59","v":"00:00:00"},{"$f":"Time!NEP$59","v":"00:00:00"},{"$f":"Time!NEQ$59","v":"00:00:00"},{"$f":"Time!NER$59","v":"00:00:00"},{"$f":"Time!NES$59","v":"00:00:00"},{"$f":"Time!NET$59","v":"00:00:00"},{"$f":"Time!NEU$59","v":"00:00:00"},{"$f":"Time!NEV$59","v":"00:00:00"},{"$f":"Time!NEW$59","v":"00:00:00"},{"$f":"Time!NEX$59","v":"00:00:00"},{"$f":"Time!NEY$59","v":"00:00:00"},{"$f":"Time!NEZ$59","v":"00:00:00"},{"$f":"Time!NFA$59","v":"00:00:00"},{"$f":"Time!NFB$59","v":"00:00:00"},{"$f":"Time!NFC$59","v":"00:00:00"},{"$f":"Time!NFD$59","v":"00:00:00"},{"$f":"Time!NFE$59","v":"00:00:00"},{"$f":"Time!NFF$59","v":"00:00:00"},{"$f":"Time!NFG$59","v":"00:00:00"},{"$f":"Time!NFH$59","v":"00:00:00"},{"$f":"Time!NFI$59","v":"00:00:00"},{"$f":"Time!NFJ$59","v":"00:00:00"},{"$f":"Time!NFK$59","v":"00:00:00"},{"$f":"Time!NFL$59","v":"00:00:00"},{"$f":"Time!NFM$59","v":"00:00:00"},{"$f":"Time!NFN$59","v":"00:00:00"},{"$f":"Time!NFO$59","v":"00:00:00"},{"$f":"Time!NFP$59","v":"00:00:00"},{"$f":"Time!NFQ$59","v":"00:00:00"},{"$f":"Time!NFR$59","v":"00:00:00"},{"$f":"Time!NFS$59","v":"00:00:00"},{"$f":"Time!NFT$59","v":"00:00:00"},{"$f":"Time!NFU$59","v":"00:00:00"},{"$f":"Time!NFV$59","v":"00:00:00"},{"$f":"Time!NFW$59","v":"00:00:00"},{"$f":"Time!NFX$59","v":"00:00:00"},{"$f":"Time!NFY$59","v":"00:00:00"},{"$f":"Time!NFZ$59","v":"00:00:00"},{"$f":"Time!NGA$59","v":"00:00:00"},{"$f":"Time!NGB$59","v":"00:00:00"},{"$f":"Time!NGC$59","v":"00:00:00"},{"$f":"Time!NGD$59","v":"00:00:00"},{"$f":"Time!NGE$59","v":"00:00:00"},{"$f":"Time!NGF$59","v":"00:00:00"},{"$f":"Time!NGG$59","v":"00:00:00"},{"$f":"Time!NGH$59","v":"00:00:00"},{"$f":"Time!NGI$59","v":"00:00:00"},{"$f":"Time!NGJ$59","v":"00:00:00"},{"$f":"Time!NGK$59","v":"00:00:00"},{"$f":"Time!NGL$59","v":"00:00:00"},{"$f":"Time!NGM$59","v":"00:00:00"},{"$f":"Time!NGN$59","v":"00:00:00"},{"$f":"Time!NGO$59","v":"00:00:00"},{"$f":"Time!NGP$59","v":"00:00:00"},{"$f":"Time!NGQ$59","v":"00:00:00"},{"$f":"Time!NGR$59","v":"00:00:00"},{"$f":"Time!NGS$59","v":"00:00:00"},{"$f":"Time!NGT$59","v":"00:00:00"},{"$f":"Time!NGU$59","v":"00:00:00"},{"$f":"Time!NGV$59","v":"00:00:00"},{"$f":"Time!NGW$59","v":"00:00:00"},{"$f":"Time!NGX$59","v":"00:00:00"},{"$f":"Time!NGY$59","v":"00:00:00"},{"$f":"Time!NGZ$59","v":"00:00:00"},{"$f":"Time!NHA$59","v":"00:00:00"},{"$f":"Time!NHB$59","v":"00:00:00"},{"$f":"Time!NHC$59","v":"00:00:00"},{"$f":"Time!NHD$59","v":"00:00:00"},{"$f":"Time!NHE$59","v":"00:00:00"},{"$f":"Time!NHF$59","v":"00:00:00"},{"$f":"Time!NHG$59","v":"00:00:00"},{"$f":"Time!NHH$59","v":"00:00:00"},{"$f":"Time!NHI$59","v":"00:00:00"},{"$f":"Time!NHJ$59","v":"00:00:00"},{"$f":"Time!NHK$59","v":"00:00:00"},{"$f":"Time!NHL$59","v":"00:00:00"},{"$f":"Time!NHM$59","v":"00:00:00"},{"$f":"Time!NHN$59","v":"00:00:00"},{"$f":"Time!NHO$59","v":"00:00:00"},{"$f":"Time!NHP$59","v":"00:00:00"},{"$f":"Time!NHQ$59","v":"00:00:00"},{"$f":"Time!NHR$59","v":"00:00:00"},{"$f":"Time!NHS$59","v":"00:00:00"},{"$f":"Time!NHT$59","v":"00:00:00"},{"$f":"Time!NHU$59","v":"00:00:00"},{"$f":"Time!NHV$59","v":"00:00:00"},{"$f":"Time!NHW$59","v":"00:00:00"},{"$f":"Time!NHX$59","v":"00:00:00"},{"$f":"Time!NHY$59","v":"00:00:00"},{"$f":"Time!NHZ$59","v":"00:00:00"},{"$f":"Time!NIA$59","v":"00:00:00"},{"$f":"Time!NIB$59","v":"00:00:00"},{"$f":"Time!NIC$59","v":"00:00:00"},{"$f":"Time!NID$59","v":"00:00:00"},{"$f":"Time!NIE$59","v":"00:00:00"},{"$f":"Time!NIF$59","v":"00:00:00"},{"$f":"Time!NIG$59","v":"00:00:00"},{"$f":"Time!NIH$59","v":"00:00:00"},{"$f":"Time!NII$59","v":"00:00:00"},{"$f":"Time!NIJ$59","v":"00:00:00"},{"$f":"Time!NIK$59","v":"00:00:00"},{"$f":"Time!NIL$59","v":"00:00:00"},{"$f":"Time!NIM$59","v":"00:00:00"},{"$f":"Time!NIN$59","v":"00:00:00"},{"$f":"Time!NIO$59","v":"00:00:00"},{"$f":"Time!NIP$59","v":"00:00:00"},{"$f":"Time!NIQ$59","v":"00:00:00"},{"$f":"Time!NIR$59","v":"00:00:00"},{"$f":"Time!NIS$59","v":"00:00:00"},{"$f":"Time!NIT$59","v":"00:00:00"},{"$f":"Time!NIU$59","v":"00:00:00"},{"$f":"Time!NIV$59","v":"00:00:00"},{"$f":"Time!NIW$59","v":"00:00:00"},{"$f":"Time!NIX$59","v":"00:00:00"},{"$f":"Time!NIY$59","v":"00:00:00"},{"$f":"Time!NIZ$59","v":"00:00:00"},{"$f":"Time!NJA$59","v":"00:00:00"},{"$f":"Time!NJB$59","v":"00:00:00"},{"$f":"Time!NJC$59","v":"00:00:00"},{"$f":"Time!NJD$59","v":"00:00:00"},{"$f":"Time!NJE$59","v":"00:00:00"},{"$f":"Time!NJF$59","v":"00:00:00"},{"$f":"Time!NJG$59","v":"00:00:00"},{"$f":"Time!NJH$59","v":"00:00:00"},{"$f":"Time!NJI$59","v":"00:00:00"},{"$f":"Time!NJJ$59","v":"00:00:00"},{"$f":"Time!NJK$59","v":"00:00:00"},{"$f":"Time!NJL$59","v":"00:00:00"},{"$f":"Time!NJM$59","v":"00:00:00"},{"$f":"Time!NJN$59","v":"00:00:00"},{"$f":"Time!NJO$59","v":"00:00:00"},{"$f":"Time!NJP$59","v":"00:00:00"},{"$f":"Time!NJQ$59","v":"00:00:00"},{"$f":"Time!NJR$59","v":"00:00:00"},{"$f":"Time!NJS$59","v":"00:00:00"},{"$f":"Time!NJT$59","v":"00:00:00"},{"$f":"Time!NJU$59","v":"00:00:00"},{"$f":"Time!NJV$59","v":"00:00:00"},{"$f":"Time!NJW$59","v":"00:00:00"},{"$f":"Time!NJX$59","v":"00:00:00"},{"$f":"Time!NJY$59","v":"00:00:00"},{"$f":"Time!NJZ$59","v":"00:00:00"},{"$f":"Time!NKA$59","v":"00:00:00"},{"$f":"Time!NKB$59","v":"00:00:00"},{"$f":"Time!NKC$59","v":"00:00:00"},{"$f":"Time!NKD$59","v":"00:00:00"},{"$f":"Time!NKE$59","v":"00:00:00"},{"$f":"Time!NKF$59","v":"00:00:00"},{"$f":"Time!NKG$59","v":"00:00:00"},{"$f":"Time!NKH$59","v":"00:00:00"},{"$f":"Time!NKI$59","v":"00:00:00"},{"$f":"Time!NKJ$59","v":"00:00:00"},{"$f":"Time!NKK$59","v":"00:00:00"},{"$f":"Time!NKL$59","v":"00:00:00"},{"$f":"Time!NKM$59","v":"00:00:00"},{"$f":"Time!NKN$59","v":"00:00:00"},{"$f":"Time!NKO$59","v":"00:00:00"},{"$f":"Time!NKP$59","v":"00:00:00"},{"$f":"Time!NKQ$59","v":"00:00:00"},{"$f":"Time!NKR$59","v":"00:00:00"},{"$f":"Time!NKS$59","v":"00:00:00"},{"$f":"Time!NKT$59","v":"00:00:00"},{"$f":"Time!NKU$59","v":"00:00:00"},{"$f":"Time!NKV$59","v":"00:00:00"},{"$f":"Time!NKW$59","v":"00:00:00"},{"$f":"Time!NKX$59","v":"00:00:00"},{"$f":"Time!NKY$59","v":"00:00:00"},{"$f":"Time!NKZ$59","v":"00:00:00"},{"$f":"Time!NLA$59","v":"00:00:00"},{"$f":"Time!NLB$59","v":"00:00:00"},{"$f":"Time!NLC$59","v":"00:00:00"},{"$f":"Time!NLD$59","v":"00:00:00"},{"$f":"Time!NLE$59","v":"00:00:00"},{"$f":"Time!NLF$59","v":"00:00:00"},{"$f":"Time!NLG$59","v":"00:00:00"},{"$f":"Time!NLH$59","v":"00:00:00"},{"$f":"Time!NLI$59","v":"00:00:00"},{"$f":"Time!NLJ$59","v":"00:00:00"},{"$f":"Time!NLK$59","v":"00:00:00"},{"$f":"Time!NLL$59","v":"00:00:00"},{"$f":"Time!NLM$59","v":"00:00:00"},{"$f":"Time!NLN$59","v":"00:00:00"},{"$f":"Time!NLO$59","v":"00:00:00"},{"$f":"Time!NLP$59","v":"00:00:00"},{"$f":"Time!NLQ$59","v":"00:00:00"},{"$f":"Time!NLR$59","v":"00:00:00"},{"$f":"Time!NLS$59","v":"00:00:00"},{"$f":"Time!NLT$59","v":"00:00:00"},{"$f":"Time!NLU$59","v":"00:00:00"},{"$f":"Time!NLV$59","v":"00:00:00"},{"$f":"Time!NLW$59","v":"00:00:00"},{"$f":"Time!NLX$59","v":"00:00:00"},{"$f":"Time!NLY$59","v":"00:00:00"},{"$f":"Time!NLZ$59","v":"00:00:00"},{"$f":"Time!NMA$59","v":"00:00:00"},{"$f":"Time!NMB$59","v":"00:00:00"},{"$f":"Time!NMC$59","v":"00:00:00"},{"$f":"Time!NMD$59","v":"00:00:00"},{"$f":"Time!NME$59","v":"00:00:00"},{"$f":"Time!NMF$59","v":"00:00:00"},{"$f":"Time!NMG$59","v":"00:00:00"},{"$f":"Time!NMH$59","v":"00:00:00"},{"$f":"Time!NMI$59","v":"00:00:00"},{"$f":"Time!NMJ$59","v":"00:00:00"},{"$f":"Time!NMK$59","v":"00:00:00"},{"$f":"Time!NML$59","v":"00:00:00"},{"$f":"Time!NMM$59","v":"00:00:00"},{"$f":"Time!NMN$59","v":"00:00:00"},{"$f":"Time!NMO$59","v":"00:00:00"},{"$f":"Time!NMP$59","v":"00:00:00"},{"$f":"Time!NMQ$59","v":"00:00:00"},{"$f":"Time!NMR$59","v":"00:00:00"},{"$f":"Time!NMS$59","v":"00:00:00"},{"$f":"Time!NMT$59","v":"00:00:00"},{"$f":"Time!NMU$59","v":"00:00:00"},{"$f":"Time!NMV$59","v":"00:00:00"},{"$f":"Time!NMW$59","v":"00:00:00"},{"$f":"Time!NMX$59","v":"00:00:00"},{"$f":"Time!NMY$59","v":"00:00:00"},{"$f":"Time!NMZ$59","v":"00:00:00"},{"$f":"Time!NNA$59","v":"00:00:00"},{"$f":"Time!NNB$59","v":"00:00:00"},{"$f":"Time!NNC$59","v":"00:00:00"},{"$f":"Time!NND$59","v":"00:00:00"},{"$f":"Time!NNE$59","v":"00:00:00"},{"$f":"Time!NNF$59","v":"00:00:00"},{"$f":"Time!NNG$59","v":"00:00:00"},{"$f":"Time!NNH$59","v":"00:00:00"},{"$f":"Time!NNI$59","v":"00:00:00"},{"$f":"Time!NNJ$59","v":"00:00:00"},{"$f":"Time!NNK$59","v":"00:00:00"},{"$f":"Time!NNL$59","v":"00:00:00"},{"$f":"Time!NNM$59","v":"00:00:00"},{"$f":"Time!NNN$59","v":"00:00:00"},{"$f":"Time!NNO$59","v":"00:00:00"},{"$f":"Time!NNP$59","v":"00:00:00"},{"$f":"Time!NNQ$59","v":"00:00:00"},{"$f":"Time!NNR$59","v":"00:00:00"},{"$f":"Time!NNS$59","v":"00:00:00"},{"$f":"Time!NNT$59","v":"00:00:00"},{"$f":"Time!NNU$59","v":"00:00:00"},{"$f":"Time!NNV$59","v":"00:00:00"},{"$f":"Time!NNW$59","v":"00:00:00"},{"$f":"Time!NNX$59","v":"00:00:00"},{"$f":"Time!NNY$59","v":"00:00:00"},{"$f":"Time!NNZ$59","v":"00:00:00"},{"$f":"Time!NOA$59","v":"00:00:00"},{"$f":"Time!NOB$59","v":"00:00:00"},{"$f":"Time!NOC$59","v":"00:00:00"},{"$f":"Time!NOD$59","v":"00:00:00"},{"$f":"Time!NOE$59","v":"00:00:00"},{"$f":"Time!NOF$59","v":"00:00:00"},{"$f":"Time!NOG$59","v":"00:00:00"},{"$f":"Time!NOH$59","v":"00:00:00"},{"$f":"Time!NOI$59","v":"00:00:00"},{"$f":"Time!NOJ$59","v":"00:00:00"},{"$f":"Time!NOK$59","v":"00:00:00"},{"$f":"Time!NOL$59","v":"00:00:00"},{"$f":"Time!NOM$59","v":"00:00:00"},{"$f":"Time!NON$59","v":"00:00:00"},{"$f":"Time!NOO$59","v":"00:00:00"},{"$f":"Time!NOP$59","v":"00:00:00"},{"$f":"Time!NOQ$59","v":"00:00:00"},{"$f":"Time!NOR$59","v":"00:00:00"},{"$f":"Time!NOS$59","v":"00:00:00"},{"$f":"Time!NOT$59","v":"00:00:00"},{"$f":"Time!NOU$59","v":"00:00:00"},{"$f":"Time!NOV$59","v":"00:00:00"},{"$f":"Time!NOW$59","v":"00:00:00"},{"$f":"Time!NOX$59","v":"00:00:00"},{"$f":"Time!NOY$59","v":"00:00:00"},{"$f":"Time!NOZ$59","v":"00:00:00"},{"$f":"Time!NPA$59","v":"00:00:00"},{"$f":"Time!NPB$59","v":"00:00:00"},{"$f":"Time!NPC$59","v":"00:00:00"},{"$f":"Time!NPD$59","v":"00:00:00"},{"$f":"Time!NPE$59","v":"00:00:00"},{"$f":"Time!NPF$59","v":"00:00:00"},{"$f":"Time!NPG$59","v":"00:00:00"},{"$f":"Time!NPH$59","v":"00:00:00"},{"$f":"Time!NPI$59","v":"00:00:00"},{"$f":"Time!NPJ$59","v":"00:00:00"},{"$f":"Time!NPK$59","v":"00:00:00"},{"$f":"Time!NPL$59","v":"00:00:00"},{"$f":"Time!NPM$59","v":"00:00:00"},{"$f":"Time!NPN$59","v":"00:00:00"},{"$f":"Time!NPO$59","v":"00:00:00"},{"$f":"Time!NPP$59","v":"00:00:00"},{"$f":"Time!NPQ$59","v":"00:00:00"},{"$f":"Time!NPR$59","v":"00:00:00"},{"$f":"Time!NPS$59","v":"00:00:00"},{"$f":"Time!NPT$59","v":"00:00:00"},{"$f":"Time!NPU$59","v":"00:00:00"},{"$f":"Time!NPV$59","v":"00:00:00"},{"$f":"Time!NPW$59","v":"00:00:00"},{"$f":"Time!NPX$59","v":"00:00:00"},{"$f":"Time!NPY$59","v":"00:00:00"},{"$f":"Time!NPZ$59","v":"00:00:00"},{"$f":"Time!NQA$59","v":"00:00:00"},{"$f":"Time!NQB$59","v":"00:00:00"},{"$f":"Time!NQC$59","v":"00:00:00"},{"$f":"Time!NQD$59","v":"00:00:00"},{"$f":"Time!NQE$59","v":"00:00:00"},{"$f":"Time!NQF$59","v":"00:00:00"},{"$f":"Time!NQG$59","v":"00:00:00"},{"$f":"Time!NQH$59","v":"00:00:00"},{"$f":"Time!NQI$59","v":"00:00:00"},{"$f":"Time!NQJ$59","v":"00:00:00"},{"$f":"Time!NQK$59","v":"00:00:00"},{"$f":"Time!NQL$59","v":"00:00:00"},{"$f":"Time!NQM$59","v":"00:00:00"},{"$f":"Time!NQN$59","v":"00:00:00"},{"$f":"Time!NQO$59","v":"00:00:00"},{"$f":"Time!NQP$59","v":"00:00:00"},{"$f":"Time!NQQ$59","v":"00:00:00"},{"$f":"Time!NQR$59","v":"00:00:00"},{"$f":"Time!NQS$59","v":"00:00:00"},{"$f":"Time!NQT$59","v":"00:00:00"},{"$f":"Time!NQU$59","v":"00:00:00"},{"$f":"Time!NQV$59","v":"00:00:00"},{"$f":"Time!NQW$59","v":"00:00:00"},{"$f":"Time!NQX$59","v":"00:00:00"},{"$f":"Time!NQY$59","v":"00:00:00"},{"$f":"Time!NQZ$59","v":"00:00:00"},{"$f":"Time!NRA$59","v":"00:00:00"},{"$f":"Time!NRB$59","v":"00:00:00"},{"$f":"Time!NRC$59","v":"00:00:00"},{"$f":"Time!NRD$59","v":"00:00:00"},{"$f":"Time!NRE$59","v":"00:00:00"},{"$f":"Time!NRF$59","v":"00:00:00"},{"$f":"Time!NRG$59","v":"00:00:00"},{"$f":"Time!NRH$59","v":"00:00:00"},{"$f":"Time!NRI$59","v":"00:00:00"},{"$f":"Time!NRJ$59","v":"00:00:00"},{"$f":"Time!NRK$59","v":"00:00:00"},{"$f":"Time!NRL$59","v":"00:00:00"},{"$f":"Time!NRM$59","v":"00:00:00"},{"$f":"Time!NRN$59","v":"00:00:00"},{"$f":"Time!NRO$59","v":"00:00:00"},{"$f":"Time!NRP$59","v":"00:00:00"},{"$f":"Time!NRQ$59","v":"00:00:00"},{"$f":"Time!NRR$59","v":"00:00:00"},{"$f":"Time!NRS$59","v":"00:00:00"},{"$f":"Time!NRT$59","v":"00:00:00"},{"$f":"Time!NRU$59","v":"00:00:00"},{"$f":"Time!NRV$59","v":"00:00:00"},{"$f":"Time!NRW$59","v":"00:00:00"},{"$f":"Time!NRX$59","v":"00:00:00"},{"$f":"Time!NRY$59","v":"00:00:00"},{"$f":"Time!NRZ$59","v":"00:00:00"},{"$f":"Time!NSA$59","v":"00:00:00"},{"$f":"Time!NSB$59","v":"00:00:00"},{"$f":"Time!NSC$59","v":"00:00:00"},{"$f":"Time!NSD$59","v":"00:00:00"},{"$f":"Time!NSE$59","v":"00:00:00"},{"$f":"Time!NSF$59","v":"00:00:00"},{"$f":"Time!NSG$59","v":"00:00:00"},{"$f":"Time!NSH$59","v":"00:00:00"},{"$f":"Time!NSI$59","v":"00:00:00"},{"$f":"Time!NSJ$59","v":"00:00:00"},{"$f":"Time!NSK$59","v":"00:00:00"},{"$f":"Time!NSL$59","v":"00:00:00"},{"$f":"Time!NSM$59","v":"00:00:00"},{"$f":"Time!NSN$59","v":"00:00:00"},{"$f":"Time!NSO$59","v":"00:00:00"},{"$f":"Time!NSP$59","v":"00:00:00"},{"$f":"Time!NSQ$59","v":"00:00:00"},{"$f":"Time!NSR$59","v":"00:00:00"},{"$f":"Time!NSS$59","v":"00:00:00"},{"$f":"Time!NST$59","v":"00:00:00"},{"$f":"Time!NSU$59","v":"00:00:00"},{"$f":"Time!NSV$59","v":"00:00:00"},{"$f":"Time!NSW$59","v":"00:00:00"},{"$f":"Time!NSX$59","v":"00:00:00"},{"$f":"Time!NSY$59","v":"00:00:00"},{"$f":"Time!NSZ$59","v":"00:00:00"},{"$f":"Time!NTA$59","v":"00:00:00"},{"$f":"Time!NTB$59","v":"00:00:00"},{"$f":"Time!NTC$59","v":"00:00:00"},{"$f":"Time!NTD$59","v":"00:00:00"},{"$f":"Time!NTE$59","v":"00:00:00"},{"$f":"Time!NTF$59","v":"00:00:00"},{"$f":"Time!NTG$59","v":"00:00:00"},{"$f":"Time!NTH$59","v":"00:00:00"},{"$f":"Time!NTI$59","v":"00:00:00"},{"$f":"Time!NTJ$59","v":"00:00:00"},{"$f":"Time!NTK$59","v":"00:00:00"},{"$f":"Time!NTL$59","v":"00:00:00"},{"$f":"Time!NTM$59","v":"00:00:00"},{"$f":"Time!NTN$59","v":"00:00:00"},{"$f":"Time!NTO$59","v":"00:00:00"},{"$f":"Time!NTP$59","v":"00:00:00"},{"$f":"Time!NTQ$59","v":"00:00:00"},{"$f":"Time!NTR$59","v":"00:00:00"},{"$f":"Time!NTS$59","v":"00:00:00"},{"$f":"Time!NTT$59","v":"00:00:00"},{"$f":"Time!NTU$59","v":"00:00:00"},{"$f":"Time!NTV$59","v":"00:00:00"},{"$f":"Time!NTW$59","v":"00:00:00"},{"$f":"Time!NTX$59","v":"00:00:00"},{"$f":"Time!NTY$59","v":"00:00:00"},{"$f":"Time!NTZ$59","v":"00:00:00"},{"$f":"Time!NUA$59","v":"00:00:00"},{"$f":"Time!NUB$59","v":"00:00:00"},{"$f":"Time!NUC$59","v":"00:00:00"},{"$f":"Time!NUD$59","v":"00:00:00"},{"$f":"Time!NUE$59","v":"00:00:00"},{"$f":"Time!NUF$59","v":"00:00:00"},{"$f":"Time!NUG$59","v":"00:00:00"},{"$f":"Time!NUH$59","v":"00:00:00"},{"$f":"Time!NUI$59","v":"00:00:00"},{"$f":"Time!NUJ$59","v":"00:00:00"},{"$f":"Time!NUK$59","v":"00:00:00"},{"$f":"Time!NUL$59","v":"00:00:00"},{"$f":"Time!NUM$59","v":"00:00:00"},{"$f":"Time!NUN$59","v":"00:00:00"},{"$f":"Time!NUO$59","v":"00:00:00"},{"$f":"Time!NUP$59","v":"00:00:00"},{"$f":"Time!NUQ$59","v":"00:00:00"},{"$f":"Time!NUR$59","v":"00:00:00"},{"$f":"Time!NUS$59","v":"00:00:00"},{"$f":"Time!NUT$59","v":"00:00:00"},{"$f":"Time!NUU$59","v":"00:00:00"},{"$f":"Time!NUV$59","v":"00:00:00"},{"$f":"Time!NUW$59","v":"00:00:00"},{"$f":"Time!NUX$59","v":"00:00:00"},{"$f":"Time!NUY$59","v":"00:00:00"},{"$f":"Time!NUZ$59","v":"00:00:00"},{"$f":"Time!NVA$59","v":"00:00:00"},{"$f":"Time!NVB$59","v":"00:00:00"},{"$f":"Time!NVC$59","v":"00:00:00"},{"$f":"Time!NVD$59","v":"00:00:00"},{"$f":"Time!NVE$59","v":"00:00:00"},{"$f":"Time!NVF$59","v":"00:00:00"},{"$f":"Time!NVG$59","v":"00:00:00"},{"$f":"Time!NVH$59","v":"00:00:00"},{"$f":"Time!NVI$59","v":"00:00:00"},{"$f":"Time!NVJ$59","v":"00:00:00"},{"$f":"Time!NVK$59","v":"00:00:00"},{"$f":"Time!NVL$59","v":"00:00:00"},{"$f":"Time!NVM$59","v":"00:00:00"},{"$f":"Time!NVN$59","v":"00:00:00"},{"$f":"Time!NVO$59","v":"00:00:00"},{"$f":"Time!NVP$59","v":"00:00:00"},{"$f":"Time!NVQ$59","v":"00:00:00"},{"$f":"Time!NVR$59","v":"00:00:00"},{"$f":"Time!NVS$59","v":"00:00:00"},{"$f":"Time!NVT$59","v":"00:00:00"},{"$f":"Time!NVU$59","v":"00:00:00"},{"$f":"Time!NVV$59","v":"00:00:00"},{"$f":"Time!NVW$59","v":"00:00:00"},{"$f":"Time!NVX$59","v":"00:00:00"},{"$f":"Time!NVY$59","v":"00:00:00"},{"$f":"Time!NVZ$59","v":"00:00:00"},{"$f":"Time!NWA$59","v":"00:00:00"},{"$f":"Time!NWB$59","v":"00:00:00"},{"$f":"Time!NWC$59","v":"00:00:00"},{"$f":"Time!NWD$59","v":"00:00:00"},{"$f":"Time!NWE$59","v":"00:00:00"},{"$f":"Time!NWF$59","v":"00:00:00"},{"$f":"Time!NWG$59","v":"00:00:00"},{"$f":"Time!NWH$59","v":"00:00:00"},{"$f":"Time!NWI$59","v":"00:00:00"},{"$f":"Time!NWJ$59","v":"00:00:00"},{"$f":"Time!NWK$59","v":"00:00:00"},{"$f":"Time!NWL$59","v":"00:00:00"},{"$f":"Time!NWM$59","v":"00:00:00"},{"$f":"Time!NWN$59","v":"00:00:00"},{"$f":"Time!NWO$59","v":"00:00:00"},{"$f":"Time!NWP$59","v":"00:00:00"},{"$f":"Time!NWQ$59","v":"00:00:00"},{"$f":"Time!NWR$59","v":"00:00:00"},{"$f":"Time!NWS$59","v":"00:00:00"},{"$f":"Time!NWT$59","v":"00:00:00"},{"$f":"Time!NWU$59","v":"00:00:00"},{"$f":"Time!NWV$59","v":"00:00:00"},{"$f":"Time!NWW$59","v":"00:00:00"},{"$f":"Time!NWX$59","v":"00:00:00"},{"$f":"Time!NWY$59","v":"00:00:00"},{"$f":"Time!NWZ$59","v":"00:00:00"},{"$f":"Time!NXA$59","v":"00:00:00"},{"$f":"Time!NXB$59","v":"00:00:00"},{"$f":"Time!NXC$59","v":"00:00:00"},{"$f":"Time!NXD$59","v":"00:00:00"},{"$f":"Time!NXE$59","v":"00:00:00"},{"$f":"Time!NXF$59","v":"00:00:00"},{"$f":"Time!NXG$59","v":"00:00:00"},{"$f":"Time!NXH$59","v":"00:00:00"},{"$f":"Time!NXI$59","v":"00:00:00"},{"$f":"Time!NXJ$59","v":"00:00:00"},{"$f":"Time!NXK$59","v":"00:00:00"},{"$f":"Time!NXL$59","v":"00:00:00"},{"$f":"Time!NXM$59","v":"00:00:00"},{"$f":"Time!NXN$59","v":"00:00:00"},{"$f":"Time!NXO$59","v":"00:00:00"},{"$f":"Time!NXP$59","v":"00:00:00"},{"$f":"Time!NXQ$59","v":"00:00:00"},{"$f":"Time!NXR$59","v":"00:00:00"},{"$f":"Time!NXS$59","v":"00:00:00"},{"$f":"Time!NXT$59","v":"00:00:00"},{"$f":"Time!NXU$59","v":"00:00:00"},{"$f":"Time!NXV$59","v":"00:00:00"},{"$f":"Time!NXW$59","v":"00:00:00"},{"$f":"Time!NXX$59","v":"00:00:00"},{"$f":"Time!NXY$59","v":"00:00:00"},{"$f":"Time!NXZ$59","v":"00:00:00"},{"$f":"Time!NYA$59","v":"00:00:00"},{"$f":"Time!NYB$59","v":"00:00:00"},{"$f":"Time!NYC$59","v":"00:00:00"},{"$f":"Time!NYD$59","v":"00:00:00"},{"$f":"Time!NYE$59","v":"00:00:00"},{"$f":"Time!NYF$59","v":"00:00:00"},{"$f":"Time!NYG$59","v":"00:00:00"},{"$f":"Time!NYH$59","v":"00:00:00"},{"$f":"Time!NYI$59","v":"00:00:00"},{"$f":"Time!NYJ$59","v":"00:00:00"},{"$f":"Time!NYK$59","v":"00:00:00"},{"$f":"Time!NYL$59","v":"00:00:00"},{"$f":"Time!NYM$59","v":"00:00:00"},{"$f":"Time!NYN$59","v":"00:00:00"},{"$f":"Time!NYO$59","v":"00:00:00"},{"$f":"Time!NYP$59","v":"00:00:00"},{"$f":"Time!NYQ$59","v":"00:00:00"},{"$f":"Time!NYR$59","v":"00:00:00"},{"$f":"Time!NYS$59","v":"00:00:00"},{"$f":"Time!NYT$59","v":"00:00:00"},{"$f":"Time!NYU$59","v":"00:00:00"},{"$f":"Time!NYV$59","v":"00:00:00"},{"$f":"Time!NYW$59","v":"00:00:00"},{"$f":"Time!NYX$59","v":"00:00:00"},{"$f":"Time!NYY$59","v":"00:00:00"},{"$f":"Time!NYZ$59","v":"00:00:00"},{"$f":"Time!NZA$59","v":"00:00:00"},{"$f":"Time!NZB$59","v":"00:00:00"},{"$f":"Time!NZC$59","v":"00:00:00"},{"$f":"Time!NZD$59","v":"00:00:00"},{"$f":"Time!NZE$59","v":"00:00:00"},{"$f":"Time!NZF$59","v":"00:00:00"},{"$f":"Time!NZG$59","v":"00:00:00"},{"$f":"Time!NZH$59","v":"00:00:00"},{"$f":"Time!NZI$59","v":"00:00:00"},{"$f":"Time!NZJ$59","v":"00:00:00"},{"$f":"Time!NZK$59","v":"00:00:00"},{"$f":"Time!NZL$59","v":"00:00:00"},{"$f":"Time!NZM$59","v":"00:00:00"},{"$f":"Time!NZN$59","v":"00:00:00"},{"$f":"Time!NZO$59","v":"00:00:00"},{"$f":"Time!NZP$59","v":"00:00:00"},{"$f":"Time!NZQ$59","v":"00:00:00"},{"$f":"Time!NZR$59","v":"00:00:00"},{"$f":"Time!NZS$59","v":"00:00:00"},{"$f":"Time!NZT$59","v":"00:00:00"},{"$f":"Time!NZU$59","v":"00:00:00"},{"$f":"Time!NZV$59","v":"00:00:00"},{"$f":"Time!NZW$59","v":"00:00:00"},{"$f":"Time!NZX$59","v":"00:00:00"},{"$f":"Time!NZY$59","v":"00:00:00"},{"$f":"Time!NZZ$59","v":"00:00:00"},{"$f":"Time!OAA$59","v":"00:00:00"},{"$f":"Time!OAB$59","v":"00:00:00"},{"$f":"Time!OAC$59","v":"00:00:00"},{"$f":"Time!OAD$59","v":"00:00:00"},{"$f":"Time!OAE$59","v":"00:00:00"},{"$f":"Time!OAF$59","v":"00:00:00"},{"$f":"Time!OAG$59","v":"00:00:00"},{"$f":"Time!OAH$59","v":"00:00:00"},{"$f":"Time!OAI$59","v":"00:00:00"},{"$f":"Time!OAJ$59","v":"00:00:00"},{"$f":"Time!OAK$59","v":"00:00:00"},{"$f":"Time!OAL$59","v":"00:00:00"},{"$f":"Time!OAM$59","v":"00:00:00"},{"$f":"Time!OAN$59","v":"00:00:00"},{"$f":"Time!OAO$59","v":"00:00:00"},{"$f":"Time!OAP$59","v":"00:00:00"},{"$f":"Time!OAQ$59","v":"00:00:00"},{"$f":"Time!OAR$59","v":"00:00:00"},{"$f":"Time!OAS$59","v":"00:00:00"},{"$f":"Time!OAT$59","v":"00:00:00"},{"$f":"Time!OAU$59","v":"00:00:00"},{"$f":"Time!OAV$59","v":"00:00:00"},{"$f":"Time!OAW$59","v":"00:00:00"},{"$f":"Time!OAX$59","v":"00:00:00"},{"$f":"Time!OAY$59","v":"00:00:00"},{"$f":"Time!OAZ$59","v":"00:00:00"},{"$f":"Time!OBA$59","v":"00:00:00"},{"$f":"Time!OBB$59","v":"00:00:00"},{"$f":"Time!OBC$59","v":"00:00:00"},{"$f":"Time!OBD$59","v":"00:00:00"},{"$f":"Time!OBE$59","v":"00:00:00"},{"$f":"Time!OBF$59","v":"00:00:00"},{"$f":"Time!OBG$59","v":"00:00:00"},{"$f":"Time!OBH$59","v":"00:00:00"},{"$f":"Time!OBI$59","v":"00:00:00"},{"$f":"Time!OBJ$59","v":"00:00:00"},{"$f":"Time!OBK$59","v":"00:00:00"},{"$f":"Time!OBL$59","v":"00:00:00"},{"$f":"Time!OBM$59","v":"00:00:00"},{"$f":"Time!OBN$59","v":"00:00:00"},{"$f":"Time!OBO$59","v":"00:00:00"},{"$f":"Time!OBP$59","v":"00:00:00"},{"$f":"Time!OBQ$59","v":"00:00:00"},{"$f":"Time!OBR$59","v":"00:00:00"},{"$f":"Time!OBS$59","v":"00:00:00"},{"$f":"Time!OBT$59","v":"00:00:00"},{"$f":"Time!OBU$59","v":"00:00:00"},{"$f":"Time!OBV$59","v":"00:00:00"},{"$f":"Time!OBW$59","v":"00:00:00"},{"$f":"Time!OBX$59","v":"00:00:00"},{"$f":"Time!OBY$59","v":"00:00:00"},{"$f":"Time!OBZ$59","v":"00:00:00"},{"$f":"Time!OCA$59","v":"00:00:00"},{"$f":"Time!OCB$59","v":"00:00:00"},{"$f":"Time!OCC$59","v":"00:00:00"},{"$f":"Time!OCD$59","v":"00:00:00"},{"$f":"Time!OCE$59","v":"00:00:00"},{"$f":"Time!OCF$59","v":"00:00:00"},{"$f":"Time!OCG$59","v":"00:00:00"},{"$f":"Time!OCH$59","v":"00:00:00"},{"$f":"Time!OCI$59","v":"00:00:00"},{"$f":"Time!OCJ$59","v":"00:00:00"},{"$f":"Time!OCK$59","v":"00:00:00"},{"$f":"Time!OCL$59","v":"00:00:00"},{"$f":"Time!OCM$59","v":"00:00:00"},{"$f":"Time!OCN$59","v":"00:00:00"},{"$f":"Time!OCO$59","v":"00:00:00"},{"$f":"Time!OCP$59","v":"00:00:00"},{"$f":"Time!OCQ$59","v":"00:00:00"},{"$f":"Time!OCR$59","v":"00:00:00"},{"$f":"Time!OCS$59","v":"00:00:00"},{"$f":"Time!OCT$59","v":"00:00:00"},{"$f":"Time!OCU$59","v":"00:00:00"},{"$f":"Time!OCV$59","v":"00:00:00"},{"$f":"Time!OCW$59","v":"00:00:00"},{"$f":"Time!OCX$59","v":"00:00:00"},{"$f":"Time!OCY$59","v":"00:00:00"},{"$f":"Time!OCZ$59","v":"00:00:00"},{"$f":"Time!ODA$59","v":"00:00:00"},{"$f":"Time!ODB$59","v":"00:00:00"},{"$f":"Time!ODC$59","v":"00:00:00"},{"$f":"Time!ODD$59","v":"00:00:00"},{"$f":"Time!ODE$59","v":"00:00:00"},{"$f":"Time!ODF$59","v":"00:00:00"},{"$f":"Time!ODG$59","v":"00:00:00"},{"$f":"Time!ODH$59","v":"00:00:00"},{"$f":"Time!ODI$59","v":"00:00:00"},{"$f":"Time!ODJ$59","v":"00:00:00"},{"$f":"Time!ODK$59","v":"00:00:00"},{"$f":"Time!ODL$59","v":"00:00:00"},{"$f":"Time!ODM$59","v":"00:00:00"},{"$f":"Time!ODN$59","v":"00:00:00"},{"$f":"Time!ODO$59","v":"00:00:00"},{"$f":"Time!ODP$59","v":"00:00:00"},{"$f":"Time!ODQ$59","v":"00:00:00"},{"$f":"Time!ODR$59","v":"00:00:00"},{"$f":"Time!ODS$59","v":"00:00:00"},{"$f":"Time!ODT$59","v":"00:00:00"},{"$f":"Time!ODU$59","v":"00:00:00"},{"$f":"Time!ODV$59","v":"00:00:00"},{"$f":"Time!ODW$59","v":"00:00:00"},{"$f":"Time!ODX$59","v":"00:00:00"},{"$f":"Time!ODY$59","v":"00:00:00"},{"$f":"Time!ODZ$59","v":"00:00:00"},{"$f":"Time!OEA$59","v":"00:00:00"},{"$f":"Time!OEB$59","v":"00:00:00"},{"$f":"Time!OEC$59","v":"00:00:00"},{"$f":"Time!OED$59","v":"00:00:00"},{"$f":"Time!OEE$59","v":"00:00:00"},{"$f":"Time!OEF$59","v":"00:00:00"},{"$f":"Time!OEG$59","v":"00:00:00"},{"$f":"Time!OEH$59","v":"00:00:00"},{"$f":"Time!OEI$59","v":"00:00:00"},{"$f":"Time!OEJ$59","v":"00:00:00"},{"$f":"Time!OEK$59","v":"00:00:00"},{"$f":"Time!OEL$59","v":"00:00:00"},{"$f":"Time!OEM$59","v":"00:00:00"},{"$f":"Time!OEN$59","v":"00:00:00"},{"$f":"Time!OEO$59","v":"00:00:00"},{"$f":"Time!OEP$59","v":"00:00:00"},{"$f":"Time!OEQ$59","v":"00:00:00"},{"$f":"Time!OER$59","v":"00:00:00"},{"$f":"Time!OES$59","v":"00:00:00"},{"$f":"Time!OET$59","v":"00:00:00"},{"$f":"Time!OEU$59","v":"00:00:00"},{"$f":"Time!OEV$59","v":"00:00:00"},{"$f":"Time!OEW$59","v":"00:00:00"},{"$f":"Time!OEX$59","v":"00:00:00"},{"$f":"Time!OEY$59","v":"00:00:00"},{"$f":"Time!OEZ$59","v":"00:00:00"},{"$f":"Time!OFA$59","v":"00:00:00"},{"$f":"Time!OFB$59","v":"00:00:00"},{"$f":"Time!OFC$59","v":"00:00:00"},{"$f":"Time!OFD$59","v":"00:00:00"},{"$f":"Time!OFE$59","v":"00:00:00"},{"$f":"Time!OFF$59","v":"00:00:00"},{"$f":"Time!OFG$59","v":"00:00:00"},{"$f":"Time!OFH$59","v":"00:00:00"},{"$f":"Time!OFI$59","v":"00:00:00"},{"$f":"Time!OFJ$59","v":"00:00:00"},{"$f":"Time!OFK$59","v":"00:00:00"},{"$f":"Time!OFL$59","v":"00:00:00"},{"$f":"Time!OFM$59","v":"00:00:00"},{"$f":"Time!OFN$59","v":"00:00:00"},{"$f":"Time!OFO$59","v":"00:00:00"},{"$f":"Time!OFP$59","v":"00:00:00"},{"$f":"Time!OFQ$59","v":"00:00:00"},{"$f":"Time!OFR$59","v":"00:00:00"},{"$f":"Time!OFS$59","v":"00:00:00"},{"$f":"Time!OFT$59","v":"00:00:00"},{"$f":"Time!OFU$59","v":"00:00:00"},{"$f":"Time!OFV$59","v":"00:00:00"},{"$f":"Time!OFW$59","v":"00:00:00"},{"$f":"Time!OFX$59","v":"00:00:00"},{"$f":"Time!OFY$59","v":"00:00:00"},{"$f":"Time!OFZ$59","v":"00:00:00"},{"$f":"Time!OGA$59","v":"00:00:00"},{"$f":"Time!OGB$59","v":"00:00:00"},{"$f":"Time!OGC$59","v":"00:00:00"},{"$f":"Time!OGD$59","v":"00:00:00"},{"$f":"Time!OGE$59","v":"00:00:00"},{"$f":"Time!OGF$59","v":"00:00:00"},{"$f":"Time!OGG$59","v":"00:00:00"},{"$f":"Time!OGH$59","v":"00:00:00"},{"$f":"Time!OGI$59","v":"00:00:00"},{"$f":"Time!OGJ$59","v":"00:00:00"},{"$f":"Time!OGK$59","v":"00:00:00"},{"$f":"Time!OGL$59","v":"00:00:00"},{"$f":"Time!OGM$59","v":"00:00:00"},{"$f":"Time!OGN$59","v":"00:00:00"},{"$f":"Time!OGO$59","v":"00:00:00"},{"$f":"Time!OGP$59","v":"00:00:00"},{"$f":"Time!OGQ$59","v":"00:00:00"},{"$f":"Time!OGR$59","v":"00:00:00"},{"$f":"Time!OGS$59","v":"00:00:00"},{"$f":"Time!OGT$59","v":"00:00:00"},{"$f":"Time!OGU$59","v":"00:00:00"},{"$f":"Time!OGV$59","v":"00:00:00"},{"$f":"Time!OGW$59","v":"00:00:00"},{"$f":"Time!OGX$59","v":"00:00:00"},{"$f":"Time!OGY$59","v":"00:00:00"},{"$f":"Time!OGZ$59","v":"00:00:00"},{"$f":"Time!OHA$59","v":"00:00:00"},{"$f":"Time!OHB$59","v":"00:00:00"},{"$f":"Time!OHC$59","v":"00:00:00"},{"$f":"Time!OHD$59","v":"00:00:00"},{"$f":"Time!OHE$59","v":"00:00:00"},{"$f":"Time!OHF$59","v":"00:00:00"},{"$f":"Time!OHG$59","v":"00:00:00"},{"$f":"Time!OHH$59","v":"00:00:00"},{"$f":"Time!OHI$59","v":"00:00:00"},{"$f":"Time!OHJ$59","v":"00:00:00"},{"$f":"Time!OHK$59","v":"00:00:00"},{"$f":"Time!OHL$59","v":"00:00:00"},{"$f":"Time!OHM$59","v":"00:00:00"},{"$f":"Time!OHN$59","v":"00:00:00"},{"$f":"Time!OHO$59","v":"00:00:00"},{"$f":"Time!OHP$59","v":"00:00:00"},{"$f":"Time!OHQ$59","v":"00:00:00"},{"$f":"Time!OHR$59","v":"00:00:00"},{"$f":"Time!OHS$59","v":"00:00:00"},{"$f":"Time!OHT$59","v":"00:00:00"},{"$f":"Time!OHU$59","v":"00:00:00"},{"$f":"Time!OHV$59","v":"00:00:00"},{"$f":"Time!OHW$59","v":"00:00:00"},{"$f":"Time!OHX$59","v":"00:00:00"},{"$f":"Time!OHY$59","v":"00:00:00"},{"$f":"Time!OHZ$59","v":"00:00:00"},{"$f":"Time!OIA$59","v":"00:00:00"},{"$f":"Time!OIB$59","v":"00:00:00"},{"$f":"Time!OIC$59","v":"00:00:00"},{"$f":"Time!OID$59","v":"00:00:00"},{"$f":"Time!OIE$59","v":"00:00:00"},{"$f":"Time!OIF$59","v":"00:00:00"},{"$f":"Time!OIG$59","v":"00:00:00"},{"$f":"Time!OIH$59","v":"00:00:00"},{"$f":"Time!OII$59","v":"00:00:00"},{"$f":"Time!OIJ$59","v":"00:00:00"},{"$f":"Time!OIK$59","v":"00:00:00"},{"$f":"Time!OIL$59","v":"00:00:00"},{"$f":"Time!OIM$59","v":"00:00:00"},{"$f":"Time!OIN$59","v":"00:00:00"},{"$f":"Time!OIO$59","v":"00:00:00"},{"$f":"Time!OIP$59","v":"00:00:00"},{"$f":"Time!OIQ$59","v":"00:00:00"},{"$f":"Time!OIR$59","v":"00:00:00"},{"$f":"Time!OIS$59","v":"00:00:00"},{"$f":"Time!OIT$59","v":"00:00:00"},{"$f":"Time!OIU$59","v":"00:00:00"},{"$f":"Time!OIV$59","v":"00:00:00"},{"$f":"Time!OIW$59","v":"00:00:00"},{"$f":"Time!OIX$59","v":"00:00:00"},{"$f":"Time!OIY$59","v":"00:00:00"},{"$f":"Time!OIZ$59","v":"00:00:00"},{"$f":"Time!OJA$59","v":"00:00:00"},{"$f":"Time!OJB$59","v":"00:00:00"},{"$f":"Time!OJC$59","v":"00:00:00"},{"$f":"Time!OJD$59","v":"00:00:00"},{"$f":"Time!OJE$59","v":"00:00:00"},{"$f":"Time!OJF$59","v":"00:00:00"},{"$f":"Time!OJG$59","v":"00:00:00"},{"$f":"Time!OJH$59","v":"00:00:00"},{"$f":"Time!OJI$59","v":"00:00:00"},{"$f":"Time!OJJ$59","v":"00:00:00"},{"$f":"Time!OJK$59","v":"00:00:00"},{"$f":"Time!OJL$59","v":"00:00:00"},{"$f":"Time!OJM$59","v":"00:00:00"},{"$f":"Time!OJN$59","v":"00:00:00"},{"$f":"Time!OJO$59","v":"00:00:00"},{"$f":"Time!OJP$59","v":"00:00:00"},{"$f":"Time!OJQ$59","v":"00:00:00"},{"$f":"Time!OJR$59","v":"00:00:00"},{"$f":"Time!OJS$59","v":"00:00:00"},{"$f":"Time!OJT$59","v":"00:00:00"},{"$f":"Time!OJU$59","v":"00:00:00"},{"$f":"Time!OJV$59","v":"00:00:00"},{"$f":"Time!OJW$59","v":"00:00:00"},{"$f":"Time!OJX$59","v":"00:00:00"},{"$f":"Time!OJY$59","v":"00:00:00"},{"$f":"Time!OJZ$59","v":"00:00:00"},{"$f":"Time!OKA$59","v":"00:00:00"},{"$f":"Time!OKB$59","v":"00:00:00"},{"$f":"Time!OKC$59","v":"00:00:00"},{"$f":"Time!OKD$59","v":"00:00:00"},{"$f":"Time!OKE$59","v":"00:00:00"},{"$f":"Time!OKF$59","v":"00:00:00"},{"$f":"Time!OKG$59","v":"00:00:00"},{"$f":"Time!OKH$59","v":"00:00:00"},{"$f":"Time!OKI$59","v":"00:00:00"},{"$f":"Time!OKJ$59","v":"00:00:00"},{"$f":"Time!OKK$59","v":"00:00:00"},{"$f":"Time!OKL$59","v":"00:00:00"},{"$f":"Time!OKM$59","v":"00:00:00"},{"$f":"Time!OKN$59","v":"00:00:00"},{"$f":"Time!OKO$59","v":"00:00:00"},{"$f":"Time!OKP$59","v":"00:00:00"},{"$f":"Time!OKQ$59","v":"00:00:00"},{"$f":"Time!OKR$59","v":"00:00:00"},{"$f":"Time!OKS$59","v":"00:00:00"},{"$f":"Time!OKT$59","v":"00:00:00"},{"$f":"Time!OKU$59","v":"00:00:00"},{"$f":"Time!OKV$59","v":"00:00:00"},{"$f":"Time!OKW$59","v":"00:00:00"},{"$f":"Time!OKX$59","v":"00:00:00"},{"$f":"Time!OKY$59","v":"00:00:00"},{"$f":"Time!OKZ$59","v":"00:00:00"},{"$f":"Time!OLA$59","v":"00:00:00"},{"$f":"Time!OLB$59","v":"00:00:00"},{"$f":"Time!OLC$59","v":"00:00:00"},{"$f":"Time!OLD$59","v":"00:00:00"},{"$f":"Time!OLE$59","v":"00:00:00"},{"$f":"Time!OLF$59","v":"00:00:00"},{"$f":"Time!OLG$59","v":"00:00:00"},{"$f":"Time!OLH$59","v":"00:00:00"},{"$f":"Time!OLI$59","v":"00:00:00"},{"$f":"Time!OLJ$59","v":"00:00:00"},{"$f":"Time!OLK$59","v":"00:00:00"},{"$f":"Time!OLL$59","v":"00:00:00"},{"$f":"Time!OLM$59","v":"00:00:00"},{"$f":"Time!OLN$59","v":"00:00:00"},{"$f":"Time!OLO$59","v":"00:00:00"},{"$f":"Time!OLP$59","v":"00:00:00"},{"$f":"Time!OLQ$59","v":"00:00:00"},{"$f":"Time!OLR$59","v":"00:00:00"},{"$f":"Time!OLS$59","v":"00:00:00"},{"$f":"Time!OLT$59","v":"00:00:00"},{"$f":"Time!OLU$59","v":"00:00:00"},{"$f":"Time!OLV$59","v":"00:00:00"},{"$f":"Time!OLW$59","v":"00:00:00"},{"$f":"Time!OLX$59","v":"00:00:00"},{"$f":"Time!OLY$59","v":"00:00:00"},{"$f":"Time!OLZ$59","v":"00:00:00"},{"$f":"Time!OMA$59","v":"00:00:00"},{"$f":"Time!OMB$59","v":"00:00:00"},{"$f":"Time!OMC$59","v":"00:00:00"},{"$f":"Time!OMD$59","v":"00:00:00"},{"$f":"Time!OME$59","v":"00:00:00"},{"$f":"Time!OMF$59","v":"00:00:00"},{"$f":"Time!OMG$59","v":"00:00:00"},{"$f":"Time!OMH$59","v":"00:00:00"},{"$f":"Time!OMI$59","v":"00:00:00"},{"$f":"Time!OMJ$59","v":"00:00:00"},{"$f":"Time!OMK$59","v":"00:00:00"},{"$f":"Time!OML$59","v":"00:00:00"},{"$f":"Time!OMM$59","v":"00:00:00"},{"$f":"Time!OMN$59","v":"00:00:00"},{"$f":"Time!OMO$59","v":"00:00:00"},{"$f":"Time!OMP$59","v":"00:00:00"},{"$f":"Time!OMQ$59","v":"00:00:00"},{"$f":"Time!OMR$59","v":"00:00:00"},{"$f":"Time!OMS$59","v":"00:00:00"},{"$f":"Time!OMT$59","v":"00:00:00"},{"$f":"Time!OMU$59","v":"00:00:00"},{"$f":"Time!OMV$59","v":"00:00:00"},{"$f":"Time!OMW$59","v":"00:00:00"},{"$f":"Time!OMX$59","v":"00:00:00"},{"$f":"Time!OMY$59","v":"00:00:00"},{"$f":"Time!OMZ$59","v":"00:00:00"},{"$f":"Time!ONA$59","v":"00:00:00"},{"$f":"Time!ONB$59","v":"00:00:00"},{"$f":"Time!ONC$59","v":"00:00:00"},{"$f":"Time!OND$59","v":"00:00:00"},{"$f":"Time!ONE$59","v":"00:00:00"},{"$f":"Time!ONF$59","v":"00:00:00"},{"$f":"Time!ONG$59","v":"00:00:00"},{"$f":"Time!ONH$59","v":"00:00:00"},{"$f":"Time!ONI$59","v":"00:00:00"},{"$f":"Time!ONJ$59","v":"00:00:00"},{"$f":"Time!ONK$59","v":"00:00:00"},{"$f":"Time!ONL$59","v":"00:00:00"},{"$f":"Time!ONM$59","v":"00:00:00"},{"$f":"Time!ONN$59","v":"00:00:00"},{"$f":"Time!ONO$59","v":"00:00:00"},{"$f":"Time!ONP$59","v":"00:00:00"},{"$f":"Time!ONQ$59","v":"00:00:00"},{"$f":"Time!ONR$59","v":"00:00:00"},{"$f":"Time!ONS$59","v":"00:00:00"},{"$f":"Time!ONT$59","v":"00:00:00"},{"$f":"Time!ONU$59","v":"00:00:00"},{"$f":"Time!ONV$59","v":"00:00:00"},{"$f":"Time!ONW$59","v":"00:00:00"},{"$f":"Time!ONX$59","v":"00:00:00"},{"$f":"Time!ONY$59","v":"00:00:00"},{"$f":"Time!ONZ$59","v":"00:00:00"},{"$f":"Time!OOA$59","v":"00:00:00"},{"$f":"Time!OOB$59","v":"00:00:00"},{"$f":"Time!OOC$59","v":"00:00:00"},{"$f":"Time!OOD$59","v":"00:00:00"},{"$f":"Time!OOE$59","v":"00:00:00"},{"$f":"Time!OOF$59","v":"00:00:00"},{"$f":"Time!OOG$59","v":"00:00:00"},{"$f":"Time!OOH$59","v":"00:00:00"},{"$f":"Time!OOI$59","v":"00:00:00"},{"$f":"Time!OOJ$59","v":"00:00:00"},{"$f":"Time!OOK$59","v":"00:00:00"},{"$f":"Time!OOL$59","v":"00:00:00"},{"$f":"Time!OOM$59","v":"00:00:00"},{"$f":"Time!OON$59","v":"00:00:00"},{"$f":"Time!OOO$59","v":"00:00:00"},{"$f":"Time!OOP$59","v":"00:00:00"},{"$f":"Time!OOQ$59","v":"00:00:00"},{"$f":"Time!OOR$59","v":"00:00:00"},{"$f":"Time!OOS$59","v":"00:00:00"},{"$f":"Time!OOT$59","v":"00:00:00"},{"$f":"Time!OOU$59","v":"00:00:00"},{"$f":"Time!OOV$59","v":"00:00:00"},{"$f":"Time!OOW$59","v":"00:00:00"},{"$f":"Time!OOX$59","v":"00:00:00"},{"$f":"Time!OOY$59","v":"00:00:00"},{"$f":"Time!OOZ$59","v":"00:00:00"},{"$f":"Time!OPA$59","v":"00:00:00"},{"$f":"Time!OPB$59","v":"00:00:00"},{"$f":"Time!OPC$59","v":"00:00:00"},{"$f":"Time!OPD$59","v":"00:00:00"},{"$f":"Time!OPE$59","v":"00:00:00"},{"$f":"Time!OPF$59","v":"00:00:00"},{"$f":"Time!OPG$59","v":"00:00:00"},{"$f":"Time!OPH$59","v":"00:00:00"},{"$f":"Time!OPI$59","v":"00:00:00"},{"$f":"Time!OPJ$59","v":"00:00:00"},{"$f":"Time!OPK$59","v":"00:00:00"},{"$f":"Time!OPL$59","v":"00:00:00"},{"$f":"Time!OPM$59","v":"00:00:00"},{"$f":"Time!OPN$59","v":"00:00:00"},{"$f":"Time!OPO$59","v":"00:00:00"},{"$f":"Time!OPP$59","v":"00:00:00"},{"$f":"Time!OPQ$59","v":"00:00:00"},{"$f":"Time!OPR$59","v":"00:00:00"},{"$f":"Time!OPS$59","v":"00:00:00"},{"$f":"Time!OPT$59","v":"00:00:00"},{"$f":"Time!OPU$59","v":"00:00:00"},{"$f":"Time!OPV$59","v":"00:00:00"},{"$f":"Time!OPW$59","v":"00:00:00"},{"$f":"Time!OPX$59","v":"00:00:00"},{"$f":"Time!OPY$59","v":"00:00:00"},{"$f":"Time!OPZ$59","v":"00:00:00"},{"$f":"Time!OQA$59","v":"00:00:00"},{"$f":"Time!OQB$59","v":"00:00:00"},{"$f":"Time!OQC$59","v":"00:00:00"},{"$f":"Time!OQD$59","v":"00:00:00"},{"$f":"Time!OQE$59","v":"00:00:00"},{"$f":"Time!OQF$59","v":"00:00:00"},{"$f":"Time!OQG$59","v":"00:00:00"},{"$f":"Time!OQH$59","v":"00:00:00"},{"$f":"Time!OQI$59","v":"00:00:00"},{"$f":"Time!OQJ$59","v":"00:00:00"},{"$f":"Time!OQK$59","v":"00:00:00"},{"$f":"Time!OQL$59","v":"00:00:00"},{"$f":"Time!OQM$59","v":"00:00:00"},{"$f":"Time!OQN$59","v":"00:00:00"},{"$f":"Time!OQO$59","v":"00:00:00"},{"$f":"Time!OQP$59","v":"00:00:00"},{"$f":"Time!OQQ$59","v":"00:00:00"},{"$f":"Time!OQR$59","v":"00:00:00"},{"$f":"Time!OQS$59","v":"00:00:00"},{"$f":"Time!OQT$59","v":"00:00:00"},{"$f":"Time!OQU$59","v":"00:00:00"},{"$f":"Time!OQV$59","v":"00:00:00"},{"$f":"Time!OQW$59","v":"00:00:00"},{"$f":"Time!OQX$59","v":"00:00:00"},{"$f":"Time!OQY$59","v":"00:00:00"},{"$f":"Time!OQZ$59","v":"00:00:00"},{"$f":"Time!ORA$59","v":"00:00:00"},{"$f":"Time!ORB$59","v":"00:00:00"},{"$f":"Time!ORC$59","v":"00:00:00"},{"$f":"Time!ORD$59","v":"00:00:00"},{"$f":"Time!ORE$59","v":"00:00:00"},{"$f":"Time!ORF$59","v":"00:00:00"},{"$f":"Time!ORG$59","v":"00:00:00"},{"$f":"Time!ORH$59","v":"00:00:00"},{"$f":"Time!ORI$59","v":"00:00:00"},{"$f":"Time!ORJ$59","v":"00:00:00"},{"$f":"Time!ORK$59","v":"00:00:00"},{"$f":"Time!ORL$59","v":"00:00:00"},{"$f":"Time!ORM$59","v":"00:00:00"},{"$f":"Time!ORN$59","v":"00:00:00"},{"$f":"Time!ORO$59","v":"00:00:00"},{"$f":"Time!ORP$59","v":"00:00:00"},{"$f":"Time!ORQ$59","v":"00:00:00"},{"$f":"Time!ORR$59","v":"00:00:00"},{"$f":"Time!ORS$59","v":"00:00:00"},{"$f":"Time!ORT$59","v":"00:00:00"},{"$f":"Time!ORU$59","v":"00:00:00"},{"$f":"Time!ORV$59","v":"00:00:00"},{"$f":"Time!ORW$59","v":"00:00:00"},{"$f":"Time!ORX$59","v":"00:00:00"},{"$f":"Time!ORY$59","v":"00:00:00"},{"$f":"Time!ORZ$59","v":"00:00:00"},{"$f":"Time!OSA$59","v":"00:00:00"},{"$f":"Time!OSB$59","v":"00:00:00"},{"$f":"Time!OSC$59","v":"00:00:00"},{"$f":"Time!OSD$59","v":"00:00:00"},{"$f":"Time!OSE$59","v":"00:00:00"},{"$f":"Time!OSF$59","v":"00:00:00"},{"$f":"Time!OSG$59","v":"00:00:00"},{"$f":"Time!OSH$59","v":"00:00:00"},{"$f":"Time!OSI$59","v":"00:00:00"},{"$f":"Time!OSJ$59","v":"00:00:00"},{"$f":"Time!OSK$59","v":"00:00:00"},{"$f":"Time!OSL$59","v":"00:00:00"},{"$f":"Time!OSM$59","v":"00:00:00"},{"$f":"Time!OSN$59","v":"00:00:00"},{"$f":"Time!OSO$59","v":"00:00:00"},{"$f":"Time!OSP$59","v":"00:00:00"},{"$f":"Time!OSQ$59","v":"00:00:00"},{"$f":"Time!OSR$59","v":"00:00:00"},{"$f":"Time!OSS$59","v":"00:00:00"},{"$f":"Time!OST$59","v":"00:00:00"},{"$f":"Time!OSU$59","v":"00:00:00"},{"$f":"Time!OSV$59","v":"00:00:00"},{"$f":"Time!OSW$59","v":"00:00:00"},{"$f":"Time!OSX$59","v":"00:00:00"},{"$f":"Time!OSY$59","v":"00:00:00"},{"$f":"Time!OSZ$59","v":"00:00:00"},{"$f":"Time!OTA$59","v":"00:00:00"},{"$f":"Time!OTB$59","v":"00:00:00"},{"$f":"Time!OTC$59","v":"00:00:00"},{"$f":"Time!OTD$59","v":"00:00:00"},{"$f":"Time!OTE$59","v":"00:00:00"},{"$f":"Time!OTF$59","v":"00:00:00"},{"$f":"Time!OTG$59","v":"00:00:00"},{"$f":"Time!OTH$59","v":"00:00:00"},{"$f":"Time!OTI$59","v":"00:00:00"},{"$f":"Time!OTJ$59","v":"00:00:00"},{"$f":"Time!OTK$59","v":"00:00:00"},{"$f":"Time!OTL$59","v":"00:00:00"},{"$f":"Time!OTM$59","v":"00:00:00"},{"$f":"Time!OTN$59","v":"00:00:00"},{"$f":"Time!OTO$59","v":"00:00:00"},{"$f":"Time!OTP$59","v":"00:00:00"},{"$f":"Time!OTQ$59","v":"00:00:00"},{"$f":"Time!OTR$59","v":"00:00:00"},{"$f":"Time!OTS$59","v":"00:00:00"},{"$f":"Time!OTT$59","v":"00:00:00"},{"$f":"Time!OTU$59","v":"00:00:00"},{"$f":"Time!OTV$59","v":"00:00:00"},{"$f":"Time!OTW$59","v":"00:00:00"},{"$f":"Time!OTX$59","v":"00:00:00"},{"$f":"Time!OTY$59","v":"00:00:00"},{"$f":"Time!OTZ$59","v":"00:00:00"},{"$f":"Time!OUA$59","v":"00:00:00"},{"$f":"Time!OUB$59","v":"00:00:00"},{"$f":"Time!OUC$59","v":"00:00:00"},{"$f":"Time!OUD$59","v":"00:00:00"},{"$f":"Time!OUE$59","v":"00:00:00"},{"$f":"Time!OUF$59","v":"00:00:00"},{"$f":"Time!OUG$59","v":"00:00:00"},{"$f":"Time!OUH$59","v":"00:00:00"},{"$f":"Time!OUI$59","v":"00:00:00"},{"$f":"Time!OUJ$59","v":"00:00:00"},{"$f":"Time!OUK$59","v":"00:00:00"},{"$f":"Time!OUL$59","v":"00:00:00"},{"$f":"Time!OUM$59","v":"00:00:00"},{"$f":"Time!OUN$59","v":"00:00:00"},{"$f":"Time!OUO$59","v":"00:00:00"},{"$f":"Time!OUP$59","v":"00:00:00"},{"$f":"Time!OUQ$59","v":"00:00:00"},{"$f":"Time!OUR$59","v":"00:00:00"},{"$f":"Time!OUS$59","v":"00:00:00"},{"$f":"Time!OUT$59","v":"00:00:00"},{"$f":"Time!OUU$59","v":"00:00:00"},{"$f":"Time!OUV$59","v":"00:00:00"},{"$f":"Time!OUW$59","v":"00:00:00"},{"$f":"Time!OUX$59","v":"00:00:00"},{"$f":"Time!OUY$59","v":"00:00:00"},{"$f":"Time!OUZ$59","v":"00:00:00"},{"$f":"Time!OVA$59","v":"00:00:00"},{"$f":"Time!OVB$59","v":"00:00:00"},{"$f":"Time!OVC$59","v":"00:00:00"},{"$f":"Time!OVD$59","v":"00:00:00"},{"$f":"Time!OVE$59","v":"00:00:00"},{"$f":"Time!OVF$59","v":"00:00:00"},{"$f":"Time!OVG$59","v":"00:00:00"},{"$f":"Time!OVH$59","v":"00:00:00"},{"$f":"Time!OVI$59","v":"00:00:00"},{"$f":"Time!OVJ$59","v":"00:00:00"},{"$f":"Time!OVK$59","v":"00:00:00"},{"$f":"Time!OVL$59","v":"00:00:00"},{"$f":"Time!OVM$59","v":"00:00:00"},{"$f":"Time!OVN$59","v":"00:00:00"},{"$f":"Time!OVO$59","v":"00:00:00"},{"$f":"Time!OVP$59","v":"00:00:00"},{"$f":"Time!OVQ$59","v":"00:00:00"},{"$f":"Time!OVR$59","v":"00:00:00"},{"$f":"Time!OVS$59","v":"00:00:00"},{"$f":"Time!OVT$59","v":"00:00:00"},{"$f":"Time!OVU$59","v":"00:00:00"},{"$f":"Time!OVV$59","v":"00:00:00"},{"$f":"Time!OVW$59","v":"00:00:00"},{"$f":"Time!OVX$59","v":"00:00:00"},{"$f":"Time!OVY$59","v":"00:00:00"},{"$f":"Time!OVZ$59","v":"00:00:00"},{"$f":"Time!OWA$59","v":"00:00:00"},{"$f":"Time!OWB$59","v":"00:00:00"},{"$f":"Time!OWC$59","v":"00:00:00"},{"$f":"Time!OWD$59","v":"00:00:00"},{"$f":"Time!OWE$59","v":"00:00:00"},{"$f":"Time!OWF$59","v":"00:00:00"},{"$f":"Time!OWG$59","v":"00:00:00"},{"$f":"Time!OWH$59","v":"00:00:00"},{"$f":"Time!OWI$59","v":"00:00:00"},{"$f":"Time!OWJ$59","v":"00:00:00"},{"$f":"Time!OWK$59","v":"00:00:00"},{"$f":"Time!OWL$59","v":"00:00:00"},{"$f":"Time!OWM$59","v":"00:00:00"},{"$f":"Time!OWN$59","v":"00:00:00"},{"$f":"Time!OWO$59","v":"00:00:00"},{"$f":"Time!OWP$59","v":"00:00:00"},{"$f":"Time!OWQ$59","v":"00:00:00"},{"$f":"Time!OWR$59","v":"00:00:00"},{"$f":"Time!OWS$59","v":"00:00:00"},{"$f":"Time!OWT$59","v":"00:00:00"},{"$f":"Time!OWU$59","v":"00:00:00"},{"$f":"Time!OWV$59","v":"00:00:00"},{"$f":"Time!OWW$59","v":"00:00:00"},{"$f":"Time!OWX$59","v":"00:00:00"},{"$f":"Time!OWY$59","v":"00:00:00"},{"$f":"Time!OWZ$59","v":"00:00:00"},{"$f":"Time!OXA$59","v":"00:00:00"},{"$f":"Time!OXB$59","v":"00:00:00"},{"$f":"Time!OXC$59","v":"00:00:00"},{"$f":"Time!OXD$59","v":"00:00:00"},{"$f":"Time!OXE$59","v":"00:00:00"},{"$f":"Time!OXF$59","v":"00:00:00"},{"$f":"Time!OXG$59","v":"00:00:00"},{"$f":"Time!OXH$59","v":"00:00:00"},{"$f":"Time!OXI$59","v":"00:00:00"},{"$f":"Time!OXJ$59","v":"00:00:00"},{"$f":"Time!OXK$59","v":"00:00:00"},{"$f":"Time!OXL$59","v":"00:00:00"},{"$f":"Time!OXM$59","v":"00:00:00"},{"$f":"Time!OXN$59","v":"00:00:00"},{"$f":"Time!OXO$59","v":"00:00:00"},{"$f":"Time!OXP$59","v":"00:00:00"},{"$f":"Time!OXQ$59","v":"00:00:00"},{"$f":"Time!OXR$59","v":"00:00:00"},{"$f":"Time!OXS$59","v":"00:00:00"},{"$f":"Time!OXT$59","v":"00:00:00"},{"$f":"Time!OXU$59","v":"00:00:00"},{"$f":"Time!OXV$59","v":"00:00:00"},{"$f":"Time!OXW$59","v":"00:00:00"},{"$f":"Time!OXX$59","v":"00:00:00"},{"$f":"Time!OXY$59","v":"00:00:00"},{"$f":"Time!OXZ$59","v":"00:00:00"},{"$f":"Time!OYA$59","v":"00:00:00"},{"$f":"Time!OYB$59","v":"00:00:00"},{"$f":"Time!OYC$59","v":"00:00:00"},{"$f":"Time!OYD$59","v":"00:00:00"},{"$f":"Time!OYE$59","v":"00:00:00"},{"$f":"Time!OYF$59","v":"00:00:00"},{"$f":"Time!OYG$59","v":"00:00:00"},{"$f":"Time!OYH$59","v":"00:00:00"},{"$f":"Time!OYI$59","v":"00:00:00"},{"$f":"Time!OYJ$59","v":"00:00:00"},{"$f":"Time!OYK$59","v":"00:00:00"},{"$f":"Time!OYL$59","v":"00:00:00"},{"$f":"Time!OYM$59","v":"00:00:00"},{"$f":"Time!OYN$59","v":"00:00:00"},{"$f":"Time!OYO$59","v":"00:00:00"},{"$f":"Time!OYP$59","v":"00:00:00"},{"$f":"Time!OYQ$59","v":"00:00:00"},{"$f":"Time!OYR$59","v":"00:00:00"},{"$f":"Time!OYS$59","v":"00:00:00"},{"$f":"Time!OYT$59","v":"00:00:00"},{"$f":"Time!OYU$59","v":"00:00:00"},{"$f":"Time!OYV$59","v":"00:00:00"},{"$f":"Time!OYW$59","v":"00:00:00"},{"$f":"Time!OYX$59","v":"00:00:00"},{"$f":"Time!OYY$59","v":"00:00:00"},{"$f":"Time!OYZ$59","v":"00:00:00"},{"$f":"Time!OZA$59","v":"00:00:00"},{"$f":"Time!OZB$59","v":"00:00:00"},{"$f":"Time!OZC$59","v":"00:00:00"},{"$f":"Time!OZD$59","v":"00:00:00"},{"$f":"Time!OZE$59","v":"00:00:00"},{"$f":"Time!OZF$59","v":"00:00:00"},{"$f":"Time!OZG$59","v":"00:00:00"},{"$f":"Time!OZH$59","v":"00:00:00"},{"$f":"Time!OZI$59","v":"00:00:00"},{"$f":"Time!OZJ$59","v":"00:00:00"},{"$f":"Time!OZK$59","v":"00:00:00"},{"$f":"Time!OZL$59","v":"00:00:00"},{"$f":"Time!OZM$59","v":"00:00:00"},{"$f":"Time!OZN$59","v":"00:00:00"},{"$f":"Time!OZO$59","v":"00:00:00"},{"$f":"Time!OZP$59","v":"00:00:00"},{"$f":"Time!OZQ$59","v":"00:00:00"},{"$f":"Time!OZR$59","v":"00:00:00"},{"$f":"Time!OZS$59","v":"00:00:00"},{"$f":"Time!OZT$59","v":"00:00:00"},{"$f":"Time!OZU$59","v":"00:00:00"},{"$f":"Time!OZV$59","v":"00:00:00"},{"$f":"Time!OZW$59","v":"00:00:00"},{"$f":"Time!OZX$59","v":"00:00:00"},{"$f":"Time!OZY$59","v":"00:00:00"},{"$f":"Time!OZZ$59","v":"00:00:00"},{"$f":"Time!PAA$59","v":"00:00:00"},{"$f":"Time!PAB$59","v":"00:00:00"},{"$f":"Time!PAC$59","v":"00:00:00"},{"$f":"Time!PAD$59","v":"00:00:00"},{"$f":"Time!PAE$59","v":"00:00:00"},{"$f":"Time!PAF$59","v":"00:00:00"},{"$f":"Time!PAG$59","v":"00:00:00"},{"$f":"Time!PAH$59","v":"00:00:00"},{"$f":"Time!PAI$59","v":"00:00:00"},{"$f":"Time!PAJ$59","v":"00:00:00"},{"$f":"Time!PAK$59","v":"00:00:00"},{"$f":"Time!PAL$59","v":"00:00:00"},{"$f":"Time!PAM$59","v":"00:00:00"},{"$f":"Time!PAN$59","v":"00:00:00"},{"$f":"Time!PAO$59","v":"00:00:00"},{"$f":"Time!PAP$59","v":"00:00:00"},{"$f":"Time!PAQ$59","v":"00:00:00"},{"$f":"Time!PAR$59","v":"00:00:00"},{"$f":"Time!PAS$59","v":"00:00:00"},{"$f":"Time!PAT$59","v":"00:00:00"},{"$f":"Time!PAU$59","v":"00:00:00"},{"$f":"Time!PAV$59","v":"00:00:00"},{"$f":"Time!PAW$59","v":"00:00:00"},{"$f":"Time!PAX$59","v":"00:00:00"},{"$f":"Time!PAY$59","v":"00:00:00"},{"$f":"Time!PAZ$59","v":"00:00:00"},{"$f":"Time!PBA$59","v":"00:00:00"},{"$f":"Time!PBB$59","v":"00:00:00"},{"$f":"Time!PBC$59","v":"00:00:00"},{"$f":"Time!PBD$59","v":"00:00:00"},{"$f":"Time!PBE$59","v":"00:00:00"},{"$f":"Time!PBF$59","v":"00:00:00"},{"$f":"Time!PBG$59","v":"00:00:00"},{"$f":"Time!PBH$59","v":"00:00:00"},{"$f":"Time!PBI$59","v":"00:00:00"},{"$f":"Time!PBJ$59","v":"00:00:00"},{"$f":"Time!PBK$59","v":"00:00:00"},{"$f":"Time!PBL$59","v":"00:00:00"},{"$f":"Time!PBM$59","v":"00:00:00"},{"$f":"Time!PBN$59","v":"00:00:00"},{"$f":"Time!PBO$59","v":"00:00:00"},{"$f":"Time!PBP$59","v":"00:00:00"},{"$f":"Time!PBQ$59","v":"00:00:00"},{"$f":"Time!PBR$59","v":"00:00:00"},{"$f":"Time!PBS$59","v":"00:00:00"},{"$f":"Time!PBT$59","v":"00:00:00"},{"$f":"Time!PBU$59","v":"00:00:00"},{"$f":"Time!PBV$59","v":"00:00:00"},{"$f":"Time!PBW$59","v":"00:00:00"},{"$f":"Time!PBX$59","v":"00:00:00"},{"$f":"Time!PBY$59","v":"00:00:00"},{"$f":"Time!PBZ$59","v":"00:00:00"},{"$f":"Time!PCA$59","v":"00:00:00"},{"$f":"Time!PCB$59","v":"00:00:00"},{"$f":"Time!PCC$59","v":"00:00:00"},{"$f":"Time!PCD$59","v":"00:00:00"},{"$f":"Time!PCE$59","v":"00:00:00"},{"$f":"Time!PCF$59","v":"00:00:00"},{"$f":"Time!PCG$59","v":"00:00:00"},{"$f":"Time!PCH$59","v":"00:00:00"},{"$f":"Time!PCI$59","v":"00:00:00"},{"$f":"Time!PCJ$59","v":"00:00:00"},{"$f":"Time!PCK$59","v":"00:00:00"},{"$f":"Time!PCL$59","v":"00:00:00"},{"$f":"Time!PCM$59","v":"00:00:00"},{"$f":"Time!PCN$59","v":"00:00:00"},{"$f":"Time!PCO$59","v":"00:00:00"},{"$f":"Time!PCP$59","v":"00:00:00"},{"$f":"Time!PCQ$59","v":"00:00:00"},{"$f":"Time!PCR$59","v":"00:00:00"},{"$f":"Time!PCS$59","v":"00:00:00"},{"$f":"Time!PCT$59","v":"00:00:00"},{"$f":"Time!PCU$59","v":"00:00:00"},{"$f":"Time!PCV$59","v":"00:00:00"},{"$f":"Time!PCW$59","v":"00:00:00"},{"$f":"Time!PCX$59","v":"00:00:00"},{"$f":"Time!PCY$59","v":"00:00:00"},{"$f":"Time!PCZ$59","v":"00:00:00"},{"$f":"Time!PDA$59","v":"00:00:00"},{"$f":"Time!PDB$59","v":"00:00:00"},{"$f":"Time!PDC$59","v":"00:00:00"},{"$f":"Time!PDD$59","v":"00:00:00"},{"$f":"Time!PDE$59","v":"00:00:00"},{"$f":"Time!PDF$59","v":"00:00:00"},{"$f":"Time!PDG$59","v":"00:00:00"},{"$f":"Time!PDH$59","v":"00:00:00"},{"$f":"Time!PDI$59","v":"00:00:00"},{"$f":"Time!PDJ$59","v":"00:00:00"},{"$f":"Time!PDK$59","v":"00:00:00"},{"$f":"Time!PDL$59","v":"00:00:00"},{"$f":"Time!PDM$59","v":"00:00:00"},{"$f":"Time!PDN$59","v":"00:00:00"},{"$f":"Time!PDO$59","v":"00:00:00"},{"$f":"Time!PDP$59","v":"00:00:00"},{"$f":"Time!PDQ$59","v":"00:00:00"},{"$f":"Time!PDR$59","v":"00:00:00"},{"$f":"Time!PDS$59","v":"00:00:00"},{"$f":"Time!PDT$59","v":"00:00:00"},{"$f":"Time!PDU$59","v":"00:00:00"},{"$f":"Time!PDV$59","v":"00:00:00"},{"$f":"Time!PDW$59","v":"00:00:00"},{"$f":"Time!PDX$59","v":"00:00:00"},{"$f":"Time!PDY$59","v":"00:00:00"},{"$f":"Time!PDZ$59","v":"00:00:00"},{"$f":"Time!PEA$59","v":"00:00:00"},{"$f":"Time!PEB$59","v":"00:00:00"},{"$f":"Time!PEC$59","v":"00:00:00"},{"$f":"Time!PED$59","v":"00:00:00"},{"$f":"Time!PEE$59","v":"00:00:00"},{"$f":"Time!PEF$59","v":"00:00:00"},{"$f":"Time!PEG$59","v":"00:00:00"},{"$f":"Time!PEH$59","v":"00:00:00"},{"$f":"Time!PEI$59","v":"00:00:00"},{"$f":"Time!PEJ$59","v":"00:00:00"},{"$f":"Time!PEK$59","v":"00:00:00"},{"$f":"Time!PEL$59","v":"00:00:00"},{"$f":"Time!PEM$59","v":"00:00:00"},{"$f":"Time!PEN$59","v":"00:00:00"},{"$f":"Time!PEO$59","v":"00:00:00"},{"$f":"Time!PEP$59","v":"00:00:00"},{"$f":"Time!PEQ$59","v":"00:00:00"},{"$f":"Time!PER$59","v":"00:00:00"},{"$f":"Time!PES$59","v":"00:00:00"},{"$f":"Time!PET$59","v":"00:00:00"},{"$f":"Time!PEU$59","v":"00:00:00"},{"$f":"Time!PEV$59","v":"00:00:00"},{"$f":"Time!PEW$59","v":"00:00:00"},{"$f":"Time!PEX$59","v":"00:00:00"},{"$f":"Time!PEY$59","v":"00:00:00"},{"$f":"Time!PEZ$59","v":"00:00:00"},{"$f":"Time!PFA$59","v":"00:00:00"},{"$f":"Time!PFB$59","v":"00:00:00"},{"$f":"Time!PFC$59","v":"00:00:00"},{"$f":"Time!PFD$59","v":"00:00:00"},{"$f":"Time!PFE$59","v":"00:00:00"},{"$f":"Time!PFF$59","v":"00:00:00"},{"$f":"Time!PFG$59","v":"00:00:00"},{"$f":"Time!PFH$59","v":"00:00:00"},{"$f":"Time!PFI$59","v":"00:00:00"},{"$f":"Time!PFJ$59","v":"00:00:00"},{"$f":"Time!PFK$59","v":"00:00:00"},{"$f":"Time!PFL$59","v":"00:00:00"},{"$f":"Time!PFM$59","v":"00:00:00"},{"$f":"Time!PFN$59","v":"00:00:00"},{"$f":"Time!PFO$59","v":"00:00:00"},{"$f":"Time!PFP$59","v":"00:00:00"},{"$f":"Time!PFQ$59","v":"00:00:00"},{"$f":"Time!PFR$59","v":"00:00:00"},{"$f":"Time!PFS$59","v":"00:00:00"},{"$f":"Time!PFT$59","v":"00:00:00"},{"$f":"Time!PFU$59","v":"00:00:00"},{"$f":"Time!PFV$59","v":"00:00:00"},{"$f":"Time!PFW$59","v":"00:00:00"},{"$f":"Time!PFX$59","v":"00:00:00"},{"$f":"Time!PFY$59","v":"00:00:00"},{"$f":"Time!PFZ$59","v":"00:00:00"},{"$f":"Time!PGA$59","v":"00:00:00"},{"$f":"Time!PGB$59","v":"00:00:00"},{"$f":"Time!PGC$59","v":"00:00:00"},{"$f":"Time!PGD$59","v":"00:00:00"},{"$f":"Time!PGE$59","v":"00:00:00"},{"$f":"Time!PGF$59","v":"00:00:00"},{"$f":"Time!PGG$59","v":"00:00:00"},{"$f":"Time!PGH$59","v":"00:00:00"},{"$f":"Time!PGI$59","v":"00:00:00"},{"$f":"Time!PGJ$59","v":"00:00:00"},{"$f":"Time!PGK$59","v":"00:00:00"},{"$f":"Time!PGL$59","v":"00:00:00"},{"$f":"Time!PGM$59","v":"00:00:00"},{"$f":"Time!PGN$59","v":"00:00:00"},{"$f":"Time!PGO$59","v":"00:00:00"},{"$f":"Time!PGP$59","v":"00:00:00"},{"$f":"Time!PGQ$59","v":"00:00:00"},{"$f":"Time!PGR$59","v":"00:00:00"},{"$f":"Time!PGS$59","v":"00:00:00"},{"$f":"Time!PGT$59","v":"00:00:00"},{"$f":"Time!PGU$59","v":"00:00:00"},{"$f":"Time!PGV$59","v":"00:00:00"},{"$f":"Time!PGW$59","v":"00:00:00"},{"$f":"Time!PGX$59","v":"00:00:00"},{"$f":"Time!PGY$59","v":"00:00:00"},{"$f":"Time!PGZ$59","v":"00:00:00"},{"$f":"Time!PHA$59","v":"00:00:00"},{"$f":"Time!PHB$59","v":"00:00:00"},{"$f":"Time!PHC$59","v":"00:00:00"},{"$f":"Time!PHD$59","v":"00:00:00"},{"$f":"Time!PHE$59","v":"00:00:00"},{"$f":"Time!PHF$59","v":"00:00:00"},{"$f":"Time!PHG$59","v":"00:00:00"},{"$f":"Time!PHH$59","v":"00:00:00"},{"$f":"Time!PHI$59","v":"00:00:00"},{"$f":"Time!PHJ$59","v":"00:00:00"},{"$f":"Time!PHK$59","v":"00:00:00"},{"$f":"Time!PHL$59","v":"00:00:00"},{"$f":"Time!PHM$59","v":"00:00:00"},{"$f":"Time!PHN$59","v":"00:00:00"},{"$f":"Time!PHO$59","v":"00:00:00"},{"$f":"Time!PHP$59","v":"00:00:00"},{"$f":"Time!PHQ$59","v":"00:00:00"},{"$f":"Time!PHR$59","v":"00:00:00"},{"$f":"Time!PHS$59","v":"00:00:00"},{"$f":"Time!PHT$59","v":"00:00:00"},{"$f":"Time!PHU$59","v":"00:00:00"},{"$f":"Time!PHV$59","v":"00:00:00"},{"$f":"Time!PHW$59","v":"00:00:00"},{"$f":"Time!PHX$59","v":"00:00:00"},{"$f":"Time!PHY$59","v":"00:00:00"},{"$f":"Time!PHZ$59","v":"00:00:00"},{"$f":"Time!PIA$59","v":"00:00:00"},{"$f":"Time!PIB$59","v":"00:00:00"},{"$f":"Time!PIC$59","v":"00:00:00"},{"$f":"Time!PID$59","v":"00:00:00"},{"$f":"Time!PIE$59","v":"00:00:00"},{"$f":"Time!PIF$59","v":"00:00:00"},{"$f":"Time!PIG$59","v":"00:00:00"},{"$f":"Time!PIH$59","v":"00:00:00"},{"$f":"Time!PII$59","v":"00:00:00"},{"$f":"Time!PIJ$59","v":"00:00:00"},{"$f":"Time!PIK$59","v":"00:00:00"},{"$f":"Time!PIL$59","v":"00:00:00"},{"$f":"Time!PIM$59","v":"00:00:00"},{"$f":"Time!PIN$59","v":"00:00:00"},{"$f":"Time!PIO$59","v":"00:00:00"},{"$f":"Time!PIP$59","v":"00:00:00"},{"$f":"Time!PIQ$59","v":"00:00:00"},{"$f":"Time!PIR$59","v":"00:00:00"},{"$f":"Time!PIS$59","v":"00:00:00"},{"$f":"Time!PIT$59","v":"00:00:00"},{"$f":"Time!PIU$59","v":"00:00:00"},{"$f":"Time!PIV$59","v":"00:00:00"},{"$f":"Time!PIW$59","v":"00:00:00"},{"$f":"Time!PIX$59","v":"00:00:00"},{"$f":"Time!PIY$59","v":"00:00:00"},{"$f":"Time!PIZ$59","v":"00:00:00"},{"$f":"Time!PJA$59","v":"00:00:00"},{"$f":"Time!PJB$59","v":"00:00:00"},{"$f":"Time!PJC$59","v":"00:00:00"},{"$f":"Time!PJD$59","v":"00:00:00"},{"$f":"Time!PJE$59","v":"00:00:00"},{"$f":"Time!PJF$59","v":"00:00:00"},{"$f":"Time!PJG$59","v":"00:00:00"},{"$f":"Time!PJH$59","v":"00:00:00"},{"$f":"Time!PJI$59","v":"00:00:00"},{"$f":"Time!PJJ$59","v":"00:00:00"},{"$f":"Time!PJK$59","v":"00:00:00"},{"$f":"Time!PJL$59","v":"00:00:00"},{"$f":"Time!PJM$59","v":"00:00:00"},{"$f":"Time!PJN$59","v":"00:00:00"},{"$f":"Time!PJO$59","v":"00:00:00"},{"$f":"Time!PJP$59","v":"00:00:00"},{"$f":"Time!PJQ$59","v":"00:00:00"},{"$f":"Time!PJR$59","v":"00:00:00"},{"$f":"Time!PJS$59","v":"00:00:00"},{"$f":"Time!PJT$59","v":"00:00:00"},{"$f":"Time!PJU$59","v":"00:00:00"},{"$f":"Time!PJV$59","v":"00:00:00"},{"$f":"Time!PJW$59","v":"00:00:00"},{"$f":"Time!PJX$59","v":"00:00:00"},{"$f":"Time!PJY$59","v":"00:00:00"},{"$f":"Time!PJZ$59","v":"00:00:00"},{"$f":"Time!PKA$59","v":"00:00:00"},{"$f":"Time!PKB$59","v":"00:00:00"},{"$f":"Time!PKC$59","v":"00:00:00"},{"$f":"Time!PKD$59","v":"00:00:00"},{"$f":"Time!PKE$59","v":"00:00:00"},{"$f":"Time!PKF$59","v":"00:00:00"},{"$f":"Time!PKG$59","v":"00:00:00"},{"$f":"Time!PKH$59","v":"00:00:00"},{"$f":"Time!PKI$59","v":"00:00:00"},{"$f":"Time!PKJ$59","v":"00:00:00"},{"$f":"Time!PKK$59","v":"00:00:00"},{"$f":"Time!PKL$59","v":"00:00:00"},{"$f":"Time!PKM$59","v":"00:00:00"},{"$f":"Time!PKN$59","v":"00:00:00"},{"$f":"Time!PKO$59","v":"00:00:00"},{"$f":"Time!PKP$59","v":"00:00:00"},{"$f":"Time!PKQ$59","v":"00:00:00"},{"$f":"Time!PKR$59","v":"00:00:00"},{"$f":"Time!PKS$59","v":"00:00:00"},{"$f":"Time!PKT$59","v":"00:00:00"},{"$f":"Time!PKU$59","v":"00:00:00"},{"$f":"Time!PKV$59","v":"00:00:00"},{"$f":"Time!PKW$59","v":"00:00:00"},{"$f":"Time!PKX$59","v":"00:00:00"},{"$f":"Time!PKY$59","v":"00:00:00"},{"$f":"Time!PKZ$59","v":"00:00:00"},{"$f":"Time!PLA$59","v":"00:00:00"},{"$f":"Time!PLB$59","v":"00:00:00"},{"$f":"Time!PLC$59","v":"00:00:00"},{"$f":"Time!PLD$59","v":"00:00:00"},{"$f":"Time!PLE$59","v":"00:00:00"},{"$f":"Time!PLF$59","v":"00:00:00"},{"$f":"Time!PLG$59","v":"00:00:00"},{"$f":"Time!PLH$59","v":"00:00:00"},{"$f":"Time!PLI$59","v":"00:00:00"},{"$f":"Time!PLJ$59","v":"00:00:00"},{"$f":"Time!PLK$59","v":"00:00:00"},{"$f":"Time!PLL$59","v":"00:00:00"},{"$f":"Time!PLM$59","v":"00:00:00"},{"$f":"Time!PLN$59","v":"00:00:00"},{"$f":"Time!PLO$59","v":"00:00:00"},{"$f":"Time!PLP$59","v":"00:00:00"},{"$f":"Time!PLQ$59","v":"00:00:00"},{"$f":"Time!PLR$59","v":"00:00:00"},{"$f":"Time!PLS$59","v":"00:00:00"},{"$f":"Time!PLT$59","v":"00:00:00"},{"$f":"Time!PLU$59","v":"00:00:00"},{"$f":"Time!PLV$59","v":"00:00:00"},{"$f":"Time!PLW$59","v":"00:00:00"},{"$f":"Time!PLX$59","v":"00:00:00"},{"$f":"Time!PLY$59","v":"00:00:00"},{"$f":"Time!PLZ$59","v":"00:00:00"},{"$f":"Time!PMA$59","v":"00:00:00"},{"$f":"Time!PMB$59","v":"00:00:00"},{"$f":"Time!PMC$59","v":"00:00:00"},{"$f":"Time!PMD$59","v":"00:00:00"},{"$f":"Time!PME$59","v":"00:00:00"},{"$f":"Time!PMF$59","v":"00:00:00"},{"$f":"Time!PMG$59","v":"00:00:00"},{"$f":"Time!PMH$59","v":"00:00:00"},{"$f":"Time!PMI$59","v":"00:00:00"},{"$f":"Time!PMJ$59","v":"00:00:00"},{"$f":"Time!PMK$59","v":"00:00:00"},{"$f":"Time!PML$59","v":"00:00:00"},{"$f":"Time!PMM$59","v":"00:00:00"},{"$f":"Time!PMN$59","v":"00:00:00"},{"$f":"Time!PMO$59","v":"00:00:00"},{"$f":"Time!PMP$59","v":"00:00:00"},{"$f":"Time!PMQ$59","v":"00:00:00"},{"$f":"Time!PMR$59","v":"00:00:00"},{"$f":"Time!PMS$59","v":"00:00:00"},{"$f":"Time!PMT$59","v":"00:00:00"},{"$f":"Time!PMU$59","v":"00:00:00"},{"$f":"Time!PMV$59","v":"00:00:00"},{"$f":"Time!PMW$59","v":"00:00:00"},{"$f":"Time!PMX$59","v":"00:00:00"},{"$f":"Time!PMY$59","v":"00:00:00"},{"$f":"Time!PMZ$59","v":"00:00:00"},{"$f":"Time!PNA$59","v":"00:00:00"},{"$f":"Time!PNB$59","v":"00:00:00"},{"$f":"Time!PNC$59","v":"00:00:00"},{"$f":"Time!PND$59","v":"00:00:00"},{"$f":"Time!PNE$59","v":"00:00:00"},{"$f":"Time!PNF$59","v":"00:00:00"},{"$f":"Time!PNG$59","v":"00:00:00"},{"$f":"Time!PNH$59","v":"00:00:00"},{"$f":"Time!PNI$59","v":"00:00:00"},{"$f":"Time!PNJ$59","v":"00:00:00"},{"$f":"Time!PNK$59","v":"00:00:00"},{"$f":"Time!PNL$59","v":"00:00:00"},{"$f":"Time!PNM$59","v":"00:00:00"},{"$f":"Time!PNN$59","v":"00:00:00"},{"$f":"Time!PNO$59","v":"00:00:00"},{"$f":"Time!PNP$59","v":"00:00:00"},{"$f":"Time!PNQ$59","v":"00:00:00"},{"$f":"Time!PNR$59","v":"00:00:00"},{"$f":"Time!PNS$59","v":"00:00:00"},{"$f":"Time!PNT$59","v":"00:00:00"},{"$f":"Time!PNU$59","v":"00:00:00"},{"$f":"Time!PNV$59","v":"00:00:00"},{"$f":"Time!PNW$59","v":"00:00:00"},{"$f":"Time!PNX$59","v":"00:00:00"},{"$f":"Time!PNY$59","v":"00:00:00"},{"$f":"Time!PNZ$59","v":"00:00:00"},{"$f":"Time!POA$59","v":"00:00:00"},{"$f":"Time!POB$59","v":"00:00:00"},{"$f":"Time!POC$59","v":"00:00:00"},{"$f":"Time!POD$59","v":"00:00:00"},{"$f":"Time!POE$59","v":"00:00:00"},{"$f":"Time!POF$59","v":"00:00:00"},{"$f":"Time!POG$59","v":"00:00:00"},{"$f":"Time!POH$59","v":"00:00:00"},{"$f":"Time!POI$59","v":"00:00:00"},{"$f":"Time!POJ$59","v":"00:00:00"},{"$f":"Time!POK$59","v":"00:00:00"},{"$f":"Time!POL$59","v":"00:00:00"},{"$f":"Time!POM$59","v":"00:00:00"},{"$f":"Time!PON$59","v":"00:00:00"},{"$f":"Time!POO$59","v":"00:00:00"},{"$f":"Time!POP$59","v":"00:00:00"},{"$f":"Time!POQ$59","v":"00:00:00"},{"$f":"Time!POR$59","v":"00:00:00"},{"$f":"Time!POS$59","v":"00:00:00"},{"$f":"Time!POT$59","v":"00:00:00"},{"$f":"Time!POU$59","v":"00:00:00"},{"$f":"Time!POV$59","v":"00:00:00"},{"$f":"Time!POW$59","v":"00:00:00"},{"$f":"Time!POX$59","v":"00:00:00"},{"$f":"Time!POY$59","v":"00:00:00"},{"$f":"Time!POZ$59","v":"00:00:00"},{"$f":"Time!PPA$59","v":"00:00:00"},{"$f":"Time!PPB$59","v":"00:00:00"},{"$f":"Time!PPC$59","v":"00:00:00"},{"$f":"Time!PPD$59","v":"00:00:00"},{"$f":"Time!PPE$59","v":"00:00:00"},{"$f":"Time!PPF$59","v":"00:00:00"},{"$f":"Time!PPG$59","v":"00:00:00"},{"$f":"Time!PPH$59","v":"00:00:00"},{"$f":"Time!PPI$59","v":"00:00:00"},{"$f":"Time!PPJ$59","v":"00:00:00"},{"$f":"Time!PPK$59","v":"00:00:00"},{"$f":"Time!PPL$59","v":"00:00:00"},{"$f":"Time!PPM$59","v":"00:00:00"},{"$f":"Time!PPN$59","v":"00:00:00"},{"$f":"Time!PPO$59","v":"00:00:00"},{"$f":"Time!PPP$59","v":"00:00:00"},{"$f":"Time!PPQ$59","v":"00:00:00"},{"$f":"Time!PPR$59","v":"00:00:00"},{"$f":"Time!PPS$59","v":"00:00:00"},{"$f":"Time!PPT$59","v":"00:00:00"},{"$f":"Time!PPU$59","v":"00:00:00"},{"$f":"Time!PPV$59","v":"00:00:00"},{"$f":"Time!PPW$59","v":"00:00:00"},{"$f":"Time!PPX$59","v":"00:00:00"},{"$f":"Time!PPY$59","v":"00:00:00"},{"$f":"Time!PPZ$59","v":"00:00:00"},{"$f":"Time!PQA$59","v":"00:00:00"},{"$f":"Time!PQB$59","v":"00:00:00"},{"$f":"Time!PQC$59","v":"00:00:00"},{"$f":"Time!PQD$59","v":"00:00:00"},{"$f":"Time!PQE$59","v":"00:00:00"},{"$f":"Time!PQF$59","v":"00:00:00"},{"$f":"Time!PQG$59","v":"00:00:00"},{"$f":"Time!PQH$59","v":"00:00:00"},{"$f":"Time!PQI$59","v":"00:00:00"},{"$f":"Time!PQJ$59","v":"00:00:00"},{"$f":"Time!PQK$59","v":"00:00:00"},{"$f":"Time!PQL$59","v":"00:00:00"},{"$f":"Time!PQM$59","v":"00:00:00"},{"$f":"Time!PQN$59","v":"00:00:00"},{"$f":"Time!PQO$59","v":"00:00:00"},{"$f":"Time!PQP$59","v":"00:00:00"},{"$f":"Time!PQQ$59","v":"00:00:00"},{"$f":"Time!PQR$59","v":"00:00:00"},{"$f":"Time!PQS$59","v":"00:00:00"},{"$f":"Time!PQT$59","v":"00:00:00"},{"$f":"Time!PQU$59","v":"00:00:00"},{"$f":"Time!PQV$59","v":"00:00:00"},{"$f":"Time!PQW$59","v":"00:00:00"},{"$f":"Time!PQX$59","v":"00:00:00"},{"$f":"Time!PQY$59","v":"00:00:00"},{"$f":"Time!PQZ$59","v":"00:00:00"},{"$f":"Time!PRA$59","v":"00:00:00"},{"$f":"Time!PRB$59","v":"00:00:00"},{"$f":"Time!PRC$59","v":"00:00:00"},{"$f":"Time!PRD$59","v":"00:00:00"},{"$f":"Time!PRE$59","v":"00:00:00"},{"$f":"Time!PRF$59","v":"00:00:00"},{"$f":"Time!PRG$59","v":"00:00:00"},{"$f":"Time!PRH$59","v":"00:00:00"},{"$f":"Time!PRI$59","v":"00:00:00"},{"$f":"Time!PRJ$59","v":"00:00:00"},{"$f":"Time!PRK$59","v":"00:00:00"},{"$f":"Time!PRL$59","v":"00:00:00"},{"$f":"Time!PRM$59","v":"00:00:00"},{"$f":"Time!PRN$59","v":"00:00:00"},{"$f":"Time!PRO$59","v":"00:00:00"},{"$f":"Time!PRP$59","v":"00:00:00"},{"$f":"Time!PRQ$59","v":"00:00:00"},{"$f":"Time!PRR$59","v":"00:00:00"},{"$f":"Time!PRS$59","v":"00:00:00"},{"$f":"Time!PRT$59","v":"00:00:00"},{"$f":"Time!PRU$59","v":"00:00:00"},{"$f":"Time!PRV$59","v":"00:00:00"},{"$f":"Time!PRW$59","v":"00:00:00"},{"$f":"Time!PRX$59","v":"00:00:00"},{"$f":"Time!PRY$59","v":"00:00:00"},{"$f":"Time!PRZ$59","v":"00:00:00"},{"$f":"Time!PSA$59","v":"00:00:00"},{"$f":"Time!PSB$59","v":"00:00:00"},{"$f":"Time!PSC$59","v":"00:00:00"},{"$f":"Time!PSD$59","v":"00:00:00"},{"$f":"Time!PSE$59","v":"00:00:00"},{"$f":"Time!PSF$59","v":"00:00:00"},{"$f":"Time!PSG$59","v":"00:00:00"},{"$f":"Time!PSH$59","v":"00:00:00"},{"$f":"Time!PSI$59","v":"00:00:00"},{"$f":"Time!PSJ$59","v":"00:00:00"},{"$f":"Time!PSK$59","v":"00:00:00"},{"$f":"Time!PSL$59","v":"00:00:00"},{"$f":"Time!PSM$59","v":"00:00:00"},{"$f":"Time!PSN$59","v":"00:00:00"},{"$f":"Time!PSO$59","v":"00:00:00"},{"$f":"Time!PSP$59","v":"00:00:00"},{"$f":"Time!PSQ$59","v":"00:00:00"},{"$f":"Time!PSR$59","v":"00:00:00"},{"$f":"Time!PSS$59","v":"00:00:00"},{"$f":"Time!PST$59","v":"00:00:00"},{"$f":"Time!PSU$59","v":"00:00:00"},{"$f":"Time!PSV$59","v":"00:00:00"},{"$f":"Time!PSW$59","v":"00:00:00"},{"$f":"Time!PSX$59","v":"00:00:00"},{"$f":"Time!PSY$59","v":"00:00:00"},{"$f":"Time!PSZ$59","v":"00:00:00"},{"$f":"Time!PTA$59","v":"00:00:00"},{"$f":"Time!PTB$59","v":"00:00:00"},{"$f":"Time!PTC$59","v":"00:00:00"},{"$f":"Time!PTD$59","v":"00:00:00"},{"$f":"Time!PTE$59","v":"00:00:00"},{"$f":"Time!PTF$59","v":"00:00:00"},{"$f":"Time!PTG$59","v":"00:00:00"},{"$f":"Time!PTH$59","v":"00:00:00"},{"$f":"Time!PTI$59","v":"00:00:00"},{"$f":"Time!PTJ$59","v":"00:00:00"},{"$f":"Time!PTK$59","v":"00:00:00"},{"$f":"Time!PTL$59","v":"00:00:00"},{"$f":"Time!PTM$59","v":"00:00:00"},{"$f":"Time!PTN$59","v":"00:00:00"},{"$f":"Time!PTO$59","v":"00:00:00"},{"$f":"Time!PTP$59","v":"00:00:00"},{"$f":"Time!PTQ$59","v":"00:00:00"},{"$f":"Time!PTR$59","v":"00:00:00"},{"$f":"Time!PTS$59","v":"00:00:00"},{"$f":"Time!PTT$59","v":"00:00:00"},{"$f":"Time!PTU$59","v":"00:00:00"},{"$f":"Time!PTV$59","v":"00:00:00"},{"$f":"Time!PTW$59","v":"00:00:00"},{"$f":"Time!PTX$59","v":"00:00:00"},{"$f":"Time!PTY$59","v":"00:00:00"},{"$f":"Time!PTZ$59","v":"00:00:00"},{"$f":"Time!PUA$59","v":"00:00:00"},{"$f":"Time!PUB$59","v":"00:00:00"},{"$f":"Time!PUC$59","v":"00:00:00"},{"$f":"Time!PUD$59","v":"00:00:00"},{"$f":"Time!PUE$59","v":"00:00:00"},{"$f":"Time!PUF$59","v":"00:00:00"},{"$f":"Time!PUG$59","v":"00:00:00"},{"$f":"Time!PUH$59","v":"00:00:00"},{"$f":"Time!PUI$59","v":"00:00:00"},{"$f":"Time!PUJ$59","v":"00:00:00"},{"$f":"Time!PUK$59","v":"00:00:00"},{"$f":"Time!PUL$59","v":"00:00:00"},{"$f":"Time!PUM$59","v":"00:00:00"},{"$f":"Time!PUN$59","v":"00:00:00"},{"$f":"Time!PUO$59","v":"00:00:00"},{"$f":"Time!PUP$59","v":"00:00:00"},{"$f":"Time!PUQ$59","v":"00:00:00"},{"$f":"Time!PUR$59","v":"00:00:00"},{"$f":"Time!PUS$59","v":"00:00:00"},{"$f":"Time!PUT$59","v":"00:00:00"},{"$f":"Time!PUU$59","v":"00:00:00"},{"$f":"Time!PUV$59","v":"00:00:00"},{"$f":"Time!PUW$59","v":"00:00:00"},{"$f":"Time!PUX$59","v":"00:00:00"},{"$f":"Time!PUY$59","v":"00:00:00"},{"$f":"Time!PUZ$59","v":"00:00:00"},{"$f":"Time!PVA$59","v":"00:00:00"},{"$f":"Time!PVB$59","v":"00:00:00"},{"$f":"Time!PVC$59","v":"00:00:00"},{"$f":"Time!PVD$59","v":"00:00:00"},{"$f":"Time!PVE$59","v":"00:00:00"},{"$f":"Time!PVF$59","v":"00:00:00"},{"$f":"Time!PVG$59","v":"00:00:00"},{"$f":"Time!PVH$59","v":"00:00:00"},{"$f":"Time!PVI$59","v":"00:00:00"},{"$f":"Time!PVJ$59","v":"00:00:00"},{"$f":"Time!PVK$59","v":"00:00:00"},{"$f":"Time!PVL$59","v":"00:00:00"},{"$f":"Time!PVM$59","v":"00:00:00"},{"$f":"Time!PVN$59","v":"00:00:00"},{"$f":"Time!PVO$59","v":"00:00:00"},{"$f":"Time!PVP$59","v":"00:00:00"},{"$f":"Time!PVQ$59","v":"00:00:00"},{"$f":"Time!PVR$59","v":"00:00:00"},{"$f":"Time!PVS$59","v":"00:00:00"},{"$f":"Time!PVT$59","v":"00:00:00"},{"$f":"Time!PVU$59","v":"00:00:00"},{"$f":"Time!PVV$59","v":"00:00:00"},{"$f":"Time!PVW$59","v":"00:00:00"},{"$f":"Time!PVX$59","v":"00:00:00"},{"$f":"Time!PVY$59","v":"00:00:00"},{"$f":"Time!PVZ$59","v":"00:00:00"},{"$f":"Time!PWA$59","v":"00:00:00"},{"$f":"Time!PWB$59","v":"00:00:00"},{"$f":"Time!PWC$59","v":"00:00:00"},{"$f":"Time!PWD$59","v":"00:00:00"},{"$f":"Time!PWE$59","v":"00:00:00"},{"$f":"Time!PWF$59","v":"00:00:00"},{"$f":"Time!PWG$59","v":"00:00:00"},{"$f":"Time!PWH$59","v":"00:00:00"},{"$f":"Time!PWI$59","v":"00:00:00"},{"$f":"Time!PWJ$59","v":"00:00:00"},{"$f":"Time!PWK$59","v":"00:00:00"},{"$f":"Time!PWL$59","v":"00:00:00"},{"$f":"Time!PWM$59","v":"00:00:00"},{"$f":"Time!PWN$59","v":"00:00:00"},{"$f":"Time!PWO$59","v":"00:00:00"},{"$f":"Time!PWP$59","v":"00:00:00"},{"$f":"Time!PWQ$59","v":"00:00:00"},{"$f":"Time!PWR$59","v":"00:00:00"},{"$f":"Time!PWS$59","v":"00:00:00"},{"$f":"Time!PWT$59","v":"00:00:00"},{"$f":"Time!PWU$59","v":"00:00:00"},{"$f":"Time!PWV$59","v":"00:00:00"},{"$f":"Time!PWW$59","v":"00:00:00"},{"$f":"Time!PWX$59","v":"00:00:00"},{"$f":"Time!PWY$59","v":"00:00:00"},{"$f":"Time!PWZ$59","v":"00:00:00"},{"$f":"Time!PXA$59","v":"00:00:00"},{"$f":"Time!PXB$59","v":"00:00:00"},{"$f":"Time!PXC$59","v":"00:00:00"},{"$f":"Time!PXD$59","v":"00:00:00"},{"$f":"Time!PXE$59","v":"00:00:00"},{"$f":"Time!PXF$59","v":"00:00:00"},{"$f":"Time!PXG$59","v":"00:00:00"},{"$f":"Time!PXH$59","v":"00:00:00"},{"$f":"Time!PXI$59","v":"00:00:00"},{"$f":"Time!PXJ$59","v":"00:00:00"},{"$f":"Time!PXK$59","v":"00:00:00"},{"$f":"Time!PXL$59","v":"00:00:00"},{"$f":"Time!PXM$59","v":"00:00:00"},{"$f":"Time!PXN$59","v":"00:00:00"},{"$f":"Time!PXO$59","v":"00:00:00"},{"$f":"Time!PXP$59","v":"00:00:00"},{"$f":"Time!PXQ$59","v":"00:00:00"},{"$f":"Time!PXR$59","v":"00:00:00"},{"$f":"Time!PXS$59","v":"00:00:00"},{"$f":"Time!PXT$59","v":"00:00:00"},{"$f":"Time!PXU$59","v":"00:00:00"},{"$f":"Time!PXV$59","v":"00:00:00"},{"$f":"Time!PXW$59","v":"00:00:00"},{"$f":"Time!PXX$59","v":"00:00:00"},{"$f":"Time!PXY$59","v":"00:00:00"},{"$f":"Time!PXZ$59","v":"00:00:00"},{"$f":"Time!PYA$59","v":"00:00:00"},{"$f":"Time!PYB$59","v":"00:00:00"},{"$f":"Time!PYC$59","v":"00:00:00"},{"$f":"Time!PYD$59","v":"00:00:00"},{"$f":"Time!PYE$59","v":"00:00:00"},{"$f":"Time!PYF$59","v":"00:00:00"},{"$f":"Time!PYG$59","v":"00:00:00"},{"$f":"Time!PYH$59","v":"00:00:00"},{"$f":"Time!PYI$59","v":"00:00:00"},{"$f":"Time!PYJ$59","v":"00:00:00"},{"$f":"Time!PYK$59","v":"00:00:00"},{"$f":"Time!PYL$59","v":"00:00:00"},{"$f":"Time!PYM$59","v":"00:00:00"},{"$f":"Time!PYN$59","v":"00:00:00"},{"$f":"Time!PYO$59","v":"00:00:00"},{"$f":"Time!PYP$59","v":"00:00:00"},{"$f":"Time!PYQ$59","v":"00:00:00"},{"$f":"Time!PYR$59","v":"00:00:00"},{"$f":"Time!PYS$59","v":"00:00:00"},{"$f":"Time!PYT$59","v":"00:00:00"},{"$f":"Time!PYU$59","v":"00:00:00"},{"$f":"Time!PYV$59","v":"00:00:00"},{"$f":"Time!PYW$59","v":"00:00:00"},{"$f":"Time!PYX$59","v":"00:00:00"},{"$f":"Time!PYY$59","v":"00:00:00"},{"$f":"Time!PYZ$59","v":"00:00:00"},{"$f":"Time!PZA$59","v":"00:00:00"},{"$f":"Time!PZB$59","v":"00:00:00"},{"$f":"Time!PZC$59","v":"00:00:00"},{"$f":"Time!PZD$59","v":"00:00:00"},{"$f":"Time!PZE$59","v":"00:00:00"},{"$f":"Time!PZF$59","v":"00:00:00"},{"$f":"Time!PZG$59","v":"00:00:00"},{"$f":"Time!PZH$59","v":"00:00:00"},{"$f":"Time!PZI$59","v":"00:00:00"},{"$f":"Time!PZJ$59","v":"00:00:00"},{"$f":"Time!PZK$59","v":"00:00:00"},{"$f":"Time!PZL$59","v":"00:00:00"},{"$f":"Time!PZM$59","v":"00:00:00"},{"$f":"Time!PZN$59","v":"00:00:00"},{"$f":"Time!PZO$59","v":"00:00:00"},{"$f":"Time!PZP$59","v":"00:00:00"},{"$f":"Time!PZQ$59","v":"00:00:00"},{"$f":"Time!PZR$59","v":"00:00:00"},{"$f":"Time!PZS$59","v":"00:00:00"},{"$f":"Time!PZT$59","v":"00:00:00"},{"$f":"Time!PZU$59","v":"00:00:00"},{"$f":"Time!PZV$59","v":"00:00:00"},{"$f":"Time!PZW$59","v":"00:00:00"},{"$f":"Time!PZX$59","v":"00:00:00"},{"$f":"Time!PZY$59","v":"00:00:00"},{"$f":"Time!PZZ$59","v":"00:00:00"},{"$f":"Time!QAA$59","v":"00:00:00"},{"$f":"Time!QAB$59","v":"00:00:00"},{"$f":"Time!QAC$59","v":"00:00:00"},{"$f":"Time!QAD$59","v":"00:00:00"},{"$f":"Time!QAE$59","v":"00:00:00"},{"$f":"Time!QAF$59","v":"00:00:00"},{"$f":"Time!QAG$59","v":"00:00:00"},{"$f":"Time!QAH$59","v":"00:00:00"},{"$f":"Time!QAI$59","v":"00:00:00"},{"$f":"Time!QAJ$59","v":"00:00:00"},{"$f":"Time!QAK$59","v":"00:00:00"},{"$f":"Time!QAL$59","v":"00:00:00"},{"$f":"Time!QAM$59","v":"00:00:00"},{"$f":"Time!QAN$59","v":"00:00:00"},{"$f":"Time!QAO$59","v":"00:00:00"},{"$f":"Time!QAP$59","v":"00:00:00"},{"$f":"Time!QAQ$59","v":"00:00:00"},{"$f":"Time!QAR$59","v":"00:00:00"},{"$f":"Time!QAS$59","v":"00:00:00"},{"$f":"Time!QAT$59","v":"00:00:00"},{"$f":"Time!QAU$59","v":"00:00:00"},{"$f":"Time!QAV$59","v":"00:00:00"},{"$f":"Time!QAW$59","v":"00:00:00"},{"$f":"Time!QAX$59","v":"00:00:00"},{"$f":"Time!QAY$59","v":"00:00:00"},{"$f":"Time!QAZ$59","v":"00:00:00"},{"$f":"Time!QBA$59","v":"00:00:00"},{"$f":"Time!QBB$59","v":"00:00:00"},{"$f":"Time!QBC$59","v":"00:00:00"},{"$f":"Time!QBD$59","v":"00:00:00"},{"$f":"Time!QBE$59","v":"00:00:00"},{"$f":"Time!QBF$59","v":"00:00:00"},{"$f":"Time!QBG$59","v":"00:00:00"},{"$f":"Time!QBH$59","v":"00:00:00"},{"$f":"Time!QBI$59","v":"00:00:00"},{"$f":"Time!QBJ$59","v":"00:00:00"},{"$f":"Time!QBK$59","v":"00:00:00"},{"$f":"Time!QBL$59","v":"00:00:00"},{"$f":"Time!QBM$59","v":"00:00:00"},{"$f":"Time!QBN$59","v":"00:00:00"},{"$f":"Time!QBO$59","v":"00:00:00"},{"$f":"Time!QBP$59","v":"00:00:00"},{"$f":"Time!QBQ$59","v":"00:00:00"},{"$f":"Time!QBR$59","v":"00:00:00"},{"$f":"Time!QBS$59","v":"00:00:00"},{"$f":"Time!QBT$59","v":"00:00:00"},{"$f":"Time!QBU$59","v":"00:00:00"},{"$f":"Time!QBV$59","v":"00:00:00"},{"$f":"Time!QBW$59","v":"00:00:00"},{"$f":"Time!QBX$59","v":"00:00:00"},{"$f":"Time!QBY$59","v":"00:00:00"},{"$f":"Time!QBZ$59","v":"00:00:00"},{"$f":"Time!QCA$59","v":"00:00:00"},{"$f":"Time!QCB$59","v":"00:00:00"},{"$f":"Time!QCC$59","v":"00:00:00"},{"$f":"Time!QCD$59","v":"00:00:00"},{"$f":"Time!QCE$59","v":"00:00:00"},{"$f":"Time!QCF$59","v":"00:00:00"},{"$f":"Time!QCG$59","v":"00:00:00"},{"$f":"Time!QCH$59","v":"00:00:00"},{"$f":"Time!QCI$59","v":"00:00:00"},{"$f":"Time!QCJ$59","v":"00:00:00"},{"$f":"Time!QCK$59","v":"00:00:00"},{"$f":"Time!QCL$59","v":"00:00:00"},{"$f":"Time!QCM$59","v":"00:00:00"},{"$f":"Time!QCN$59","v":"00:00:00"},{"$f":"Time!QCO$59","v":"00:00:00"},{"$f":"Time!QCP$59","v":"00:00:00"},{"$f":"Time!QCQ$59","v":"00:00:00"},{"$f":"Time!QCR$59","v":"00:00:00"},{"$f":"Time!QCS$59","v":"00:00:00"},{"$f":"Time!QCT$59","v":"00:00:00"},{"$f":"Time!QCU$59","v":"00:00:00"},{"$f":"Time!QCV$59","v":"00:00:00"},{"$f":"Time!QCW$59","v":"00:00:00"},{"$f":"Time!QCX$59","v":"00:00:00"},{"$f":"Time!QCY$59","v":"00:00:00"},{"$f":"Time!QCZ$59","v":"00:00:00"},{"$f":"Time!QDA$59","v":"00:00:00"},{"$f":"Time!QDB$59","v":"00:00:00"},{"$f":"Time!QDC$59","v":"00:00:00"},{"$f":"Time!QDD$59","v":"00:00:00"},{"$f":"Time!QDE$59","v":"00:00:00"},{"$f":"Time!QDF$59","v":"00:00:00"},{"$f":"Time!QDG$59","v":"00:00:00"},{"$f":"Time!QDH$59","v":"00:00:00"},{"$f":"Time!QDI$59","v":"00:00:00"},{"$f":"Time!QDJ$59","v":"00:00:00"},{"$f":"Time!QDK$59","v":"00:00:00"},{"$f":"Time!QDL$59","v":"00:00:00"},{"$f":"Time!QDM$59","v":"00:00:00"},{"$f":"Time!QDN$59","v":"00:00:00"},{"$f":"Time!QDO$59","v":"00:00:00"},{"$f":"Time!QDP$59","v":"00:00:00"},{"$f":"Time!QDQ$59","v":"00:00:00"},{"$f":"Time!QDR$59","v":"00:00:00"},{"$f":"Time!QDS$59","v":"00:00:00"},{"$f":"Time!QDT$59","v":"00:00:00"},{"$f":"Time!QDU$59","v":"00:00:00"},{"$f":"Time!QDV$59","v":"00:00:00"},{"$f":"Time!QDW$59","v":"00:00:00"},{"$f":"Time!QDX$59","v":"00:00:00"},{"$f":"Time!QDY$59","v":"00:00:00"},{"$f":"Time!QDZ$59","v":"00:00:00"},{"$f":"Time!QEA$59","v":"00:00:00"},{"$f":"Time!QEB$59","v":"00:00:00"},{"$f":"Time!QEC$59","v":"00:00:00"},{"$f":"Time!QED$59","v":"00:00:00"},{"$f":"Time!QEE$59","v":"00:00:00"},{"$f":"Time!QEF$59","v":"00:00:00"},{"$f":"Time!QEG$59","v":"00:00:00"},{"$f":"Time!QEH$59","v":"00:00:00"},{"$f":"Time!QEI$59","v":"00:00:00"},{"$f":"Time!QEJ$59","v":"00:00:00"},{"$f":"Time!QEK$59","v":"00:00:00"},{"$f":"Time!QEL$59","v":"00:00:00"},{"$f":"Time!QEM$59","v":"00:00:00"},{"$f":"Time!QEN$59","v":"00:00:00"},{"$f":"Time!QEO$59","v":"00:00:00"},{"$f":"Time!QEP$59","v":"00:00:00"},{"$f":"Time!QEQ$59","v":"00:00:00"},{"$f":"Time!QER$59","v":"00:00:00"},{"$f":"Time!QES$59","v":"00:00:00"},{"$f":"Time!QET$59","v":"00:00:00"},{"$f":"Time!QEU$59","v":"00:00:00"},{"$f":"Time!QEV$59","v":"00:00:00"},{"$f":"Time!QEW$59","v":"00:00:00"},{"$f":"Time!QEX$59","v":"00:00:00"},{"$f":"Time!QEY$59","v":"00:00:00"},{"$f":"Time!QEZ$59","v":"00:00:00"},{"$f":"Time!QFA$59","v":"00:00:00"},{"$f":"Time!QFB$59","v":"00:00:00"},{"$f":"Time!QFC$59","v":"00:00:00"},{"$f":"Time!QFD$59","v":"00:00:00"},{"$f":"Time!QFE$59","v":"00:00:00"},{"$f":"Time!QFF$59","v":"00:00:00"},{"$f":"Time!QFG$59","v":"00:00:00"},{"$f":"Time!QFH$59","v":"00:00:00"},{"$f":"Time!QFI$59","v":"00:00:00"},{"$f":"Time!QFJ$59","v":"00:00:00"},{"$f":"Time!QFK$59","v":"00:00:00"},{"$f":"Time!QFL$59","v":"00:00:00"},{"$f":"Time!QFM$59","v":"00:00:00"},{"$f":"Time!QFN$59","v":"00:00:00"},{"$f":"Time!QFO$59","v":"00:00:00"},{"$f":"Time!QFP$59","v":"00:00:00"},{"$f":"Time!QFQ$59","v":"00:00:00"},{"$f":"Time!QFR$59","v":"00:00:00"},{"$f":"Time!QFS$59","v":"00:00:00"},{"$f":"Time!QFT$59","v":"00:00:00"},{"$f":"Time!QFU$59","v":"00:00:00"},{"$f":"Time!QFV$59","v":"00:00:00"},{"$f":"Time!QFW$59","v":"00:00:00"},{"$f":"Time!QFX$59","v":"00:00:00"},{"$f":"Time!QFY$59","v":"00:00:00"},{"$f":"Time!QFZ$59","v":"00:00:00"},{"$f":"Time!QGA$59","v":"00:00:00"},{"$f":"Time!QGB$59","v":"00:00:00"},{"$f":"Time!QGC$59","v":"00:00:00"},{"$f":"Time!QGD$59","v":"00:00:00"},{"$f":"Time!QGE$59","v":"00:00:00"},{"$f":"Time!QGF$59","v":"00:00:00"},{"$f":"Time!QGG$59","v":"00:00:00"},{"$f":"Time!QGH$59","v":"00:00:00"},{"$f":"Time!QGI$59","v":"00:00:00"},{"$f":"Time!QGJ$59","v":"00:00:00"},{"$f":"Time!QGK$59","v":"00:00:00"},{"$f":"Time!QGL$59","v":"00:00:00"},{"$f":"Time!QGM$59","v":"00:00:00"},{"$f":"Time!QGN$59","v":"00:00:00"},{"$f":"Time!QGO$59","v":"00:00:00"},{"$f":"Time!QGP$59","v":"00:00:00"},{"$f":"Time!QGQ$59","v":"00:00:00"},{"$f":"Time!QGR$59","v":"00:00:00"},{"$f":"Time!QGS$59","v":"00:00:00"},{"$f":"Time!QGT$59","v":"00:00:00"},{"$f":"Time!QGU$59","v":"00:00:00"},{"$f":"Time!QGV$59","v":"00:00:00"},{"$f":"Time!QGW$59","v":"00:00:00"},{"$f":"Time!QGX$59","v":"00:00:00"},{"$f":"Time!QGY$59","v":"00:00:00"},{"$f":"Time!QGZ$59","v":"00:00:00"},{"$f":"Time!QHA$59","v":"00:00:00"},{"$f":"Time!QHB$59","v":"00:00:00"},{"$f":"Time!QHC$59","v":"00:00:00"},{"$f":"Time!QHD$59","v":"00:00:00"},{"$f":"Time!QHE$59","v":"00:00:00"},{"$f":"Time!QHF$59","v":"00:00:00"},{"$f":"Time!QHG$59","v":"00:00:00"},{"$f":"Time!QHH$59","v":"00:00:00"},{"$f":"Time!QHI$59","v":"00:00:00"},{"$f":"Time!QHJ$59","v":"00:00:00"},{"$f":"Time!QHK$59","v":"00:00:00"},{"$f":"Time!QHL$59","v":"00:00:00"},{"$f":"Time!QHM$59","v":"00:00:00"},{"$f":"Time!QHN$59","v":"00:00:00"},{"$f":"Time!QHO$59","v":"00:00:00"},{"$f":"Time!QHP$59","v":"00:00:00"},{"$f":"Time!QHQ$59","v":"00:00:00"},{"$f":"Time!QHR$59","v":"00:00:00"},{"$f":"Time!QHS$59","v":"00:00:00"},{"$f":"Time!QHT$59","v":"00:00:00"},{"$f":"Time!QHU$59","v":"00:00:00"},{"$f":"Time!QHV$59","v":"00:00:00"},{"$f":"Time!QHW$59","v":"00:00:00"},{"$f":"Time!QHX$59","v":"00:00:00"},{"$f":"Time!QHY$59","v":"00:00:00"},{"$f":"Time!QHZ$59","v":"00:00:00"},{"$f":"Time!QIA$59","v":"00:00:00"},{"$f":"Time!QIB$59","v":"00:00:00"},{"$f":"Time!QIC$59","v":"00:00:00"},{"$f":"Time!QID$59","v":"00:00:00"},{"$f":"Time!QIE$59","v":"00:00:00"},{"$f":"Time!QIF$59","v":"00:00:00"},{"$f":"Time!QIG$59","v":"00:00:00"},{"$f":"Time!QIH$59","v":"00:00:00"},{"$f":"Time!QII$59","v":"00:00:00"},{"$f":"Time!QIJ$59","v":"00:00:00"},{"$f":"Time!QIK$59","v":"00:00:00"},{"$f":"Time!QIL$59","v":"00:00:00"},{"$f":"Time!QIM$59","v":"00:00:00"},{"$f":"Time!QIN$59","v":"00:00:00"},{"$f":"Time!QIO$59","v":"00:00:00"},{"$f":"Time!QIP$59","v":"00:00:00"},{"$f":"Time!QIQ$59","v":"00:00:00"},{"$f":"Time!QIR$59","v":"00:00:00"},{"$f":"Time!QIS$59","v":"00:00:00"},{"$f":"Time!QIT$59","v":"00:00:00"},{"$f":"Time!QIU$59","v":"00:00:00"},{"$f":"Time!QIV$59","v":"00:00:00"},{"$f":"Time!QIW$59","v":"00:00:00"},{"$f":"Time!QIX$59","v":"00:00:00"},{"$f":"Time!QIY$59","v":"00:00:00"},{"$f":"Time!QIZ$59","v":"00:00:00"},{"$f":"Time!QJA$59","v":"00:00:00"},{"$f":"Time!QJB$59","v":"00:00:00"},{"$f":"Time!QJC$59","v":"00:00:00"},{"$f":"Time!QJD$59","v":"00:00:00"},{"$f":"Time!QJE$59","v":"00:00:00"},{"$f":"Time!QJF$59","v":"00:00:00"},{"$f":"Time!QJG$59","v":"00:00:00"},{"$f":"Time!QJH$59","v":"00:00:00"},{"$f":"Time!QJI$59","v":"00:00:00"},{"$f":"Time!QJJ$59","v":"00:00:00"},{"$f":"Time!QJK$59","v":"00:00:00"},{"$f":"Time!QJL$59","v":"00:00:00"},{"$f":"Time!QJM$59","v":"00:00:00"},{"$f":"Time!QJN$59","v":"00:00:00"},{"$f":"Time!QJO$59","v":"00:00:00"},{"$f":"Time!QJP$59","v":"00:00:00"},{"$f":"Time!QJQ$59","v":"00:00:00"},{"$f":"Time!QJR$59","v":"00:00:00"},{"$f":"Time!QJS$59","v":"00:00:00"},{"$f":"Time!QJT$59","v":"00:00:00"},{"$f":"Time!QJU$59","v":"00:00:00"},{"$f":"Time!QJV$59","v":"00:00:00"},{"$f":"Time!QJW$59","v":"00:00:00"},{"$f":"Time!QJX$59","v":"00:00:00"},{"$f":"Time!QJY$59","v":"00:00:00"},{"$f":"Time!QJZ$59","v":"00:00:00"},{"$f":"Time!QKA$59","v":"00:00:00"},{"$f":"Time!QKB$59","v":"00:00:00"},{"$f":"Time!QKC$59","v":"00:00:00"},{"$f":"Time!QKD$59","v":"00:00:00"},{"$f":"Time!QKE$59","v":"00:00:00"},{"$f":"Time!QKF$59","v":"00:00:00"},{"$f":"Time!QKG$59","v":"00:00:00"},{"$f":"Time!QKH$59","v":"00:00:00"},{"$f":"Time!QKI$59","v":"00:00:00"},{"$f":"Time!QKJ$59","v":"00:00:00"},{"$f":"Time!QKK$59","v":"00:00:00"},{"$f":"Time!QKL$59","v":"00:00:00"},{"$f":"Time!QKM$59","v":"00:00:00"},{"$f":"Time!QKN$59","v":"00:00:00"},{"$f":"Time!QKO$59","v":"00:00:00"},{"$f":"Time!QKP$59","v":"00:00:00"},{"$f":"Time!QKQ$59","v":"00:00:00"},{"$f":"Time!QKR$59","v":"00:00:00"},{"$f":"Time!QKS$59","v":"00:00:00"},{"$f":"Time!QKT$59","v":"00:00:00"},{"$f":"Time!QKU$59","v":"00:00:00"},{"$f":"Time!QKV$59","v":"00:00:00"},{"$f":"Time!QKW$59","v":"00:00:00"},{"$f":"Time!QKX$59","v":"00:00:00"},{"$f":"Time!QKY$59","v":"00:00:00"},{"$f":"Time!QKZ$59","v":"00:00:00"},{"$f":"Time!QLA$59","v":"00:00:00"},{"$f":"Time!QLB$59","v":"00:00:00"},{"$f":"Time!QLC$59","v":"00:00:00"},{"$f":"Time!QLD$59","v":"00:00:00"},{"$f":"Time!QLE$59","v":"00:00:00"},{"$f":"Time!QLF$59","v":"00:00:00"},{"$f":"Time!QLG$59","v":"00:00:00"},{"$f":"Time!QLH$59","v":"00:00:00"},{"$f":"Time!QLI$59","v":"00:00:00"},{"$f":"Time!QLJ$59","v":"00:00:00"},{"$f":"Time!QLK$59","v":"00:00:00"},{"$f":"Time!QLL$59","v":"00:00:00"},{"$f":"Time!QLM$59","v":"00:00:00"},{"$f":"Time!QLN$59","v":"00:00:00"},{"$f":"Time!QLO$59","v":"00:00:00"},{"$f":"Time!QLP$59","v":"00:00:00"},{"$f":"Time!QLQ$59","v":"00:00:00"},{"$f":"Time!QLR$59","v":"00:00:00"},{"$f":"Time!QLS$59","v":"00:00:00"},{"$f":"Time!QLT$59","v":"00:00:00"},{"$f":"Time!QLU$59","v":"00:00:00"},{"$f":"Time!QLV$59","v":"00:00:00"},{"$f":"Time!QLW$59","v":"00:00:00"},{"$f":"Time!QLX$59","v":"00:00:00"},{"$f":"Time!QLY$59","v":"00:00:00"},{"$f":"Time!QLZ$59","v":"00:00:00"},{"$f":"Time!QMA$59","v":"00:00:00"},{"$f":"Time!QMB$59","v":"00:00:00"},{"$f":"Time!QMC$59","v":"00:00:00"},{"$f":"Time!QMD$59","v":"00:00:00"},{"$f":"Time!QME$59","v":"00:00:00"},{"$f":"Time!QMF$59","v":"00:00:00"},{"$f":"Time!QMG$59","v":"00:00:00"},{"$f":"Time!QMH$59","v":"00:00:00"},{"$f":"Time!QMI$59","v":"00:00:00"},{"$f":"Time!QMJ$59","v":"00:00:00"},{"$f":"Time!QMK$59","v":"00:00:00"},{"$f":"Time!QML$59","v":"00:00:00"},{"$f":"Time!QMM$59","v":"00:00:00"},{"$f":"Time!QMN$59","v":"00:00:00"},{"$f":"Time!QMO$59","v":"00:00:00"},{"$f":"Time!QMP$59","v":"00:00:00"},{"$f":"Time!QMQ$59","v":"00:00:00"},{"$f":"Time!QMR$59","v":"00:00:00"},{"$f":"Time!QMS$59","v":"00:00:00"},{"$f":"Time!QMT$59","v":"00:00:00"},{"$f":"Time!QMU$59","v":"00:00:00"},{"$f":"Time!QMV$59","v":"00:00:00"},{"$f":"Time!QMW$59","v":"00:00:00"},{"$f":"Time!QMX$59","v":"00:00:00"},{"$f":"Time!QMY$59","v":"00:00:00"},{"$f":"Time!QMZ$59","v":"00:00:00"},{"$f":"Time!QNA$59","v":"00:00:00"},{"$f":"Time!QNB$59","v":"00:00:00"},{"$f":"Time!QNC$59","v":"00:00:00"},{"$f":"Time!QND$59","v":"00:00:00"},{"$f":"Time!QNE$59","v":"00:00:00"},{"$f":"Time!QNF$59","v":"00:00:00"},{"$f":"Time!QNG$59","v":"00:00:00"},{"$f":"Time!QNH$59","v":"00:00:00"},{"$f":"Time!QNI$59","v":"00:00:00"},{"$f":"Time!QNJ$59","v":"00:00:00"},{"$f":"Time!QNK$59","v":"00:00:00"},{"$f":"Time!QNL$59","v":"00:00:00"},{"$f":"Time!QNM$59","v":"00:00:00"},{"$f":"Time!QNN$59","v":"00:00:00"},{"$f":"Time!QNO$59","v":"00:00:00"},{"$f":"Time!QNP$59","v":"00:00:00"},{"$f":"Time!QNQ$59","v":"00:00:00"},{"$f":"Time!QNR$59","v":"00:00:00"},{"$f":"Time!QNS$59","v":"00:00:00"},{"$f":"Time!QNT$59","v":"00:00:00"},{"$f":"Time!QNU$59","v":"00:00:00"},{"$f":"Time!QNV$59","v":"00:00:00"},{"$f":"Time!QNW$59","v":"00:00:00"},{"$f":"Time!QNX$59","v":"00:00:00"},{"$f":"Time!QNY$59","v":"00:00:00"},{"$f":"Time!QNZ$59","v":"00:00:00"},{"$f":"Time!QOA$59","v":"00:00:00"},{"$f":"Time!QOB$59","v":"00:00:00"},{"$f":"Time!QOC$59","v":"00:00:00"},{"$f":"Time!QOD$59","v":"00:00:00"},{"$f":"Time!QOE$59","v":"00:00:00"},{"$f":"Time!QOF$59","v":"00:00:00"},{"$f":"Time!QOG$59","v":"00:00:00"},{"$f":"Time!QOH$59","v":"00:00:00"},{"$f":"Time!QOI$59","v":"00:00:00"},{"$f":"Time!QOJ$59","v":"00:00:00"},{"$f":"Time!QOK$59","v":"00:00:00"},{"$f":"Time!QOL$59","v":"00:00:00"},{"$f":"Time!QOM$59","v":"00:00:00"},{"$f":"Time!QON$59","v":"00:00:00"},{"$f":"Time!QOO$59","v":"00:00:00"},{"$f":"Time!QOP$59","v":"00:00:00"},{"$f":"Time!QOQ$59","v":"00:00:00"},{"$f":"Time!QOR$59","v":"00:00:00"},{"$f":"Time!QOS$59","v":"00:00:00"},{"$f":"Time!QOT$59","v":"00:00:00"},{"$f":"Time!QOU$59","v":"00:00:00"},{"$f":"Time!QOV$59","v":"00:00:00"},{"$f":"Time!QOW$59","v":"00:00:00"},{"$f":"Time!QOX$59","v":"00:00:00"},{"$f":"Time!QOY$59","v":"00:00:00"},{"$f":"Time!QOZ$59","v":"00:00:00"},{"$f":"Time!QPA$59","v":"00:00:00"},{"$f":"Time!QPB$59","v":"00:00:00"},{"$f":"Time!QPC$59","v":"00:00:00"},{"$f":"Time!QPD$59","v":"00:00:00"},{"$f":"Time!QPE$59","v":"00:00:00"},{"$f":"Time!QPF$59","v":"00:00:00"},{"$f":"Time!QPG$59","v":"00:00:00"},{"$f":"Time!QPH$59","v":"00:00:00"},{"$f":"Time!QPI$59","v":"00:00:00"},{"$f":"Time!QPJ$59","v":"00:00:00"},{"$f":"Time!QPK$59","v":"00:00:00"},{"$f":"Time!QPL$59","v":"00:00:00"},{"$f":"Time!QPM$59","v":"00:00:00"},{"$f":"Time!QPN$59","v":"00:00:00"},{"$f":"Time!QPO$59","v":"00:00:00"},{"$f":"Time!QPP$59","v":"00:00:00"},{"$f":"Time!QPQ$59","v":"00:00:00"},{"$f":"Time!QPR$59","v":"00:00:00"},{"$f":"Time!QPS$59","v":"00:00:00"},{"$f":"Time!QPT$59","v":"00:00:00"},{"$f":"Time!QPU$59","v":"00:00:00"},{"$f":"Time!QPV$59","v":"00:00:00"},{"$f":"Time!QPW$59","v":"00:00:00"},{"$f":"Time!QPX$59","v":"00:00:00"},{"$f":"Time!QPY$59","v":"00:00:00"},{"$f":"Time!QPZ$59","v":"00:00:00"},{"$f":"Time!QQA$59","v":"00:00:00"},{"$f":"Time!QQB$59","v":"00:00:00"},{"$f":"Time!QQC$59","v":"00:00:00"},{"$f":"Time!QQD$59","v":"00:00:00"},{"$f":"Time!QQE$59","v":"00:00:00"},{"$f":"Time!QQF$59","v":"00:00:00"},{"$f":"Time!QQG$59","v":"00:00:00"},{"$f":"Time!QQH$59","v":"00:00:00"},{"$f":"Time!QQI$59","v":"00:00:00"},{"$f":"Time!QQJ$59","v":"00:00:00"},{"$f":"Time!QQK$59","v":"00:00:00"},{"$f":"Time!QQL$59","v":"00:00:00"},{"$f":"Time!QQM$59","v":"00:00:00"},{"$f":"Time!QQN$59","v":"00:00:00"},{"$f":"Time!QQO$59","v":"00:00:00"},{"$f":"Time!QQP$59","v":"00:00:00"},{"$f":"Time!QQQ$59","v":"00:00:00"},{"$f":"Time!QQR$59","v":"00:00:00"},{"$f":"Time!QQS$59","v":"00:00:00"},{"$f":"Time!QQT$59","v":"00:00:00"},{"$f":"Time!QQU$59","v":"00:00:00"},{"$f":"Time!QQV$59","v":"00:00:00"},{"$f":"Time!QQW$59","v":"00:00:00"},{"$f":"Time!QQX$59","v":"00:00:00"},{"$f":"Time!QQY$59","v":"00:00:00"},{"$f":"Time!QQZ$59","v":"00:00:00"},{"$f":"Time!QRA$59","v":"00:00:00"},{"$f":"Time!QRB$59","v":"00:00:00"},{"$f":"Time!QRC$59","v":"00:00:00"},{"$f":"Time!QRD$59","v":"00:00:00"},{"$f":"Time!QRE$59","v":"00:00:00"},{"$f":"Time!QRF$59","v":"00:00:00"},{"$f":"Time!QRG$59","v":"00:00:00"},{"$f":"Time!QRH$59","v":"00:00:00"},{"$f":"Time!QRI$59","v":"00:00:00"},{"$f":"Time!QRJ$59","v":"00:00:00"},{"$f":"Time!QRK$59","v":"00:00:00"},{"$f":"Time!QRL$59","v":"00:00:00"},{"$f":"Time!QRM$59","v":"00:00:00"},{"$f":"Time!QRN$59","v":"00:00:00"},{"$f":"Time!QRO$59","v":"00:00:00"},{"$f":"Time!QRP$59","v":"00:00:00"},{"$f":"Time!QRQ$59","v":"00:00:00"},{"$f":"Time!QRR$59","v":"00:00:00"},{"$f":"Time!QRS$59","v":"00:00:00"},{"$f":"Time!QRT$59","v":"00:00:00"},{"$f":"Time!QRU$59","v":"00:00:00"},{"$f":"Time!QRV$59","v":"00:00:00"},{"$f":"Time!QRW$59","v":"00:00:00"},{"$f":"Time!QRX$59","v":"00:00:00"},{"$f":"Time!QRY$59","v":"00:00:00"},{"$f":"Time!QRZ$59","v":"00:00:00"},{"$f":"Time!QSA$59","v":"00:00:00"},{"$f":"Time!QSB$59","v":"00:00:00"},{"$f":"Time!QSC$59","v":"00:00:00"},{"$f":"Time!QSD$59","v":"00:00:00"},{"$f":"Time!QSE$59","v":"00:00:00"},{"$f":"Time!QSF$59","v":"00:00:00"},{"$f":"Time!QSG$59","v":"00:00:00"},{"$f":"Time!QSH$59","v":"00:00:00"},{"$f":"Time!QSI$59","v":"00:00:00"},{"$f":"Time!QSJ$59","v":"00:00:00"},{"$f":"Time!QSK$59","v":"00:00:00"},{"$f":"Time!QSL$59","v":"00:00:00"},{"$f":"Time!QSM$59","v":"00:00:00"},{"$f":"Time!QSN$59","v":"00:00:00"},{"$f":"Time!QSO$59","v":"00:00:00"},{"$f":"Time!QSP$59","v":"00:00:00"},{"$f":"Time!QSQ$59","v":"00:00:00"},{"$f":"Time!QSR$59","v":"00:00:00"},{"$f":"Time!QSS$59","v":"00:00:00"},{"$f":"Time!QST$59","v":"00:00:00"},{"$f":"Time!QSU$59","v":"00:00:00"},{"$f":"Time!QSV$59","v":"00:00:00"},{"$f":"Time!QSW$59","v":"00:00:00"},{"$f":"Time!QSX$59","v":"00:00:00"},{"$f":"Time!QSY$59","v":"00:00:00"},{"$f":"Time!QSZ$59","v":"00:00:00"},{"$f":"Time!QTA$59","v":"00:00:00"},{"$f":"Time!QTB$59","v":"00:00:00"},{"$f":"Time!QTC$59","v":"00:00:00"},{"$f":"Time!QTD$59","v":"00:00:00"},{"$f":"Time!QTE$59","v":"00:00:00"},{"$f":"Time!QTF$59","v":"00:00:00"},{"$f":"Time!QTG$59","v":"00:00:00"},{"$f":"Time!QTH$59","v":"00:00:00"},{"$f":"Time!QTI$59","v":"00:00:00"},{"$f":"Time!QTJ$59","v":"00:00:00"},{"$f":"Time!QTK$59","v":"00:00:00"},{"$f":"Time!QTL$59","v":"00:00:00"},{"$f":"Time!QTM$59","v":"00:00:00"},{"$f":"Time!QTN$59","v":"00:00:00"},{"$f":"Time!QTO$59","v":"00:00:00"},{"$f":"Time!QTP$59","v":"00:00:00"},{"$f":"Time!QTQ$59","v":"00:00:00"},{"$f":"Time!QTR$59","v":"00:00:00"},{"$f":"Time!QTS$59","v":"00:00:00"},{"$f":"Time!QTT$59","v":"00:00:00"},{"$f":"Time!QTU$59","v":"00:00:00"},{"$f":"Time!QTV$59","v":"00:00:00"},{"$f":"Time!QTW$59","v":"00:00:00"},{"$f":"Time!QTX$59","v":"00:00:00"},{"$f":"Time!QTY$59","v":"00:00:00"},{"$f":"Time!QTZ$59","v":"00:00:00"},{"$f":"Time!QUA$59","v":"00:00:00"},{"$f":"Time!QUB$59","v":"00:00:00"},{"$f":"Time!QUC$59","v":"00:00:00"},{"$f":"Time!QUD$59","v":"00:00:00"},{"$f":"Time!QUE$59","v":"00:00:00"},{"$f":"Time!QUF$59","v":"00:00:00"},{"$f":"Time!QUG$59","v":"00:00:00"},{"$f":"Time!QUH$59","v":"00:00:00"},{"$f":"Time!QUI$59","v":"00:00:00"},{"$f":"Time!QUJ$59","v":"00:00:00"},{"$f":"Time!QUK$59","v":"00:00:00"},{"$f":"Time!QUL$59","v":"00:00:00"},{"$f":"Time!QUM$59","v":"00:00:00"},{"$f":"Time!QUN$59","v":"00:00:00"},{"$f":"Time!QUO$59","v":"00:00:00"},{"$f":"Time!QUP$59","v":"00:00:00"},{"$f":"Time!QUQ$59","v":"00:00:00"},{"$f":"Time!QUR$59","v":"00:00:00"},{"$f":"Time!QUS$59","v":"00:00:00"},{"$f":"Time!QUT$59","v":"00:00:00"},{"$f":"Time!QUU$59","v":"00:00:00"},{"$f":"Time!QUV$59","v":"00:00:00"},{"$f":"Time!QUW$59","v":"00:00:00"},{"$f":"Time!QUX$59","v":"00:00:00"},{"$f":"Time!QUY$59","v":"00:00:00"},{"$f":"Time!QUZ$59","v":"00:00:00"},{"$f":"Time!QVA$59","v":"00:00:00"},{"$f":"Time!QVB$59","v":"00:00:00"},{"$f":"Time!QVC$59","v":"00:00:00"},{"$f":"Time!QVD$59","v":"00:00:00"},{"$f":"Time!QVE$59","v":"00:00:00"},{"$f":"Time!QVF$59","v":"00:00:00"},{"$f":"Time!QVG$59","v":"00:00:00"},{"$f":"Time!QVH$59","v":"00:00:00"},{"$f":"Time!QVI$59","v":"00:00:00"},{"$f":"Time!QVJ$59","v":"00:00:00"},{"$f":"Time!QVK$59","v":"00:00:00"},{"$f":"Time!QVL$59","v":"00:00:00"},{"$f":"Time!QVM$59","v":"00:00:00"},{"$f":"Time!QVN$59","v":"00:00:00"},{"$f":"Time!QVO$59","v":"00:00:00"},{"$f":"Time!QVP$59","v":"00:00:00"},{"$f":"Time!QVQ$59","v":"00:00:00"},{"$f":"Time!QVR$59","v":"00:00:00"},{"$f":"Time!QVS$59","v":"00:00:00"},{"$f":"Time!QVT$59","v":"00:00:00"},{"$f":"Time!QVU$59","v":"00:00:00"},{"$f":"Time!QVV$59","v":"00:00:00"},{"$f":"Time!QVW$59","v":"00:00:00"},{"$f":"Time!QVX$59","v":"00:00:00"},{"$f":"Time!QVY$59","v":"00:00:00"},{"$f":"Time!QVZ$59","v":"00:00:00"},{"$f":"Time!QWA$59","v":"00:00:00"},{"$f":"Time!QWB$59","v":"00:00:00"},{"$f":"Time!QWC$59","v":"00:00:00"},{"$f":"Time!QWD$59","v":"00:00:00"},{"$f":"Time!QWE$59","v":"00:00:00"},{"$f":"Time!QWF$59","v":"00:00:00"},{"$f":"Time!QWG$59","v":"00:00:00"},{"$f":"Time!QWH$59","v":"00:00:00"},{"$f":"Time!QWI$59","v":"00:00:00"},{"$f":"Time!QWJ$59","v":"00:00:00"},{"$f":"Time!QWK$59","v":"00:00:00"},{"$f":"Time!QWL$59","v":"00:00:00"},{"$f":"Time!QWM$59","v":"00:00:00"},{"$f":"Time!QWN$59","v":"00:00:00"},{"$f":"Time!QWO$59","v":"00:00:00"},{"$f":"Time!QWP$59","v":"00:00:00"},{"$f":"Time!QWQ$59","v":"00:00:00"},{"$f":"Time!QWR$59","v":"00:00:00"},{"$f":"Time!QWS$59","v":"00:00:00"},{"$f":"Time!QWT$59","v":"00:00:00"},{"$f":"Time!QWU$59","v":"00:00:00"},{"$f":"Time!QWV$59","v":"00:00:00"},{"$f":"Time!QWW$59","v":"00:00:00"},{"$f":"Time!QWX$59","v":"00:00:00"},{"$f":"Time!QWY$59","v":"00:00:00"},{"$f":"Time!QWZ$59","v":"00:00:00"},{"$f":"Time!QXA$59","v":"00:00:00"},{"$f":"Time!QXB$59","v":"00:00:00"},{"$f":"Time!QXC$59","v":"00:00:00"},{"$f":"Time!QXD$59","v":"00:00:00"},{"$f":"Time!QXE$59","v":"00:00:00"},{"$f":"Time!QXF$59","v":"00:00:00"},{"$f":"Time!QXG$59","v":"00:00:00"},{"$f":"Time!QXH$59","v":"00:00:00"},{"$f":"Time!QXI$59","v":"00:00:00"},{"$f":"Time!QXJ$59","v":"00:00:00"},{"$f":"Time!QXK$59","v":"00:00:00"},{"$f":"Time!QXL$59","v":"00:00:00"},{"$f":"Time!QXM$59","v":"00:00:00"},{"$f":"Time!QXN$59","v":"00:00:00"},{"$f":"Time!QXO$59","v":"00:00:00"},{"$f":"Time!QXP$59","v":"00:00:00"},{"$f":"Time!QXQ$59","v":"00:00:00"},{"$f":"Time!QXR$59","v":"00:00:00"},{"$f":"Time!QXS$59","v":"00:00:00"},{"$f":"Time!QXT$59","v":"00:00:00"},{"$f":"Time!QXU$59","v":"00:00:00"},{"$f":"Time!QXV$59","v":"00:00:00"},{"$f":"Time!QXW$59","v":"00:00:00"},{"$f":"Time!QXX$59","v":"00:00:00"},{"$f":"Time!QXY$59","v":"00:00:00"},{"$f":"Time!QXZ$59","v":"00:00:00"},{"$f":"Time!QYA$59","v":"00:00:00"},{"$f":"Time!QYB$59","v":"00:00:00"},{"$f":"Time!QYC$59","v":"00:00:00"},{"$f":"Time!QYD$59","v":"00:00:00"},{"$f":"Time!QYE$59","v":"00:00:00"},{"$f":"Time!QYF$59","v":"00:00:00"},{"$f":"Time!QYG$59","v":"00:00:00"},{"$f":"Time!QYH$59","v":"00:00:00"},{"$f":"Time!QYI$59","v":"00:00:00"},{"$f":"Time!QYJ$59","v":"00:00:00"},{"$f":"Time!QYK$59","v":"00:00:00"},{"$f":"Time!QYL$59","v":"00:00:00"},{"$f":"Time!QYM$59","v":"00:00:00"},{"$f":"Time!QYN$59","v":"00:00:00"},{"$f":"Time!QYO$59","v":"00:00:00"},{"$f":"Time!QYP$59","v":"00:00:00"},{"$f":"Time!QYQ$59","v":"00:00:00"},{"$f":"Time!QYR$59","v":"00:00:00"},{"$f":"Time!QYS$59","v":"00:00:00"},{"$f":"Time!QYT$59","v":"00:00:00"},{"$f":"Time!QYU$59","v":"00:00:00"},{"$f":"Time!QYV$59","v":"00:00:00"},{"$f":"Time!QYW$59","v":"00:00:00"},{"$f":"Time!QYX$59","v":"00:00:00"},{"$f":"Time!QYY$59","v":"00:00:00"},{"$f":"Time!QYZ$59","v":"00:00:00"},{"$f":"Time!QZA$59","v":"00:00:00"},{"$f":"Time!QZB$59","v":"00:00:00"},{"$f":"Time!QZC$59","v":"00:00:00"},{"$f":"Time!QZD$59","v":"00:00:00"},{"$f":"Time!QZE$59","v":"00:00:00"},{"$f":"Time!QZF$59","v":"00:00:00"},{"$f":"Time!QZG$59","v":"00:00:00"},{"$f":"Time!QZH$59","v":"00:00:00"},{"$f":"Time!QZI$59","v":"00:00:00"},{"$f":"Time!QZJ$59","v":"00:00:00"},{"$f":"Time!QZK$59","v":"00:00:00"},{"$f":"Time!QZL$59","v":"00:00:00"},{"$f":"Time!QZM$59","v":"00:00:00"},{"$f":"Time!QZN$59","v":"00:00:00"},{"$f":"Time!QZO$59","v":"00:00:00"},{"$f":"Time!QZP$59","v":"00:00:00"},{"$f":"Time!QZQ$59","v":"00:00:00"},{"$f":"Time!QZR$59","v":"00:00:00"},{"$f":"Time!QZS$59","v":"00:00:00"},{"$f":"Time!QZT$59","v":"00:00:00"},{"$f":"Time!QZU$59","v":"00:00:00"},{"$f":"Time!QZV$59","v":"00:00:00"},{"$f":"Time!QZW$59","v":"00:00:00"},{"$f":"Time!QZX$59","v":"00:00:00"},{"$f":"Time!QZY$59","v":"00:00:00"},{"$f":"Time!QZZ$59","v":"00:00:00"},{"$f":"Time!RAA$59","v":"00:00:00"},{"$f":"Time!RAB$59","v":"00:00:00"},{"$f":"Time!RAC$59","v":"00:00:00"},{"$f":"Time!RAD$59","v":"00:00:00"},{"$f":"Time!RAE$59","v":"00:00:00"},{"$f":"Time!RAF$59","v":"00:00:00"},{"$f":"Time!RAG$59","v":"00:00:00"},{"$f":"Time!RAH$59","v":"00:00:00"},{"$f":"Time!RAI$59","v":"00:00:00"},{"$f":"Time!RAJ$59","v":"00:00:00"},{"$f":"Time!RAK$59","v":"00:00:00"},{"$f":"Time!RAL$59","v":"00:00:00"},{"$f":"Time!RAM$59","v":"00:00:00"},{"$f":"Time!RAN$59","v":"00:00:00"},{"$f":"Time!RAO$59","v":"00:00:00"},{"$f":"Time!RAP$59","v":"00:00:00"},{"$f":"Time!RAQ$59","v":"00:00:00"},{"$f":"Time!RAR$59","v":"00:00:00"},{"$f":"Time!RAS$59","v":"00:00:00"},{"$f":"Time!RAT$59","v":"00:00:00"},{"$f":"Time!RAU$59","v":"00:00:00"},{"$f":"Time!RAV$59","v":"00:00:00"},{"$f":"Time!RAW$59","v":"00:00:00"},{"$f":"Time!RAX$59","v":"00:00:00"},{"$f":"Time!RAY$59","v":"00:00:00"},{"$f":"Time!RAZ$59","v":"00:00:00"},{"$f":"Time!RBA$59","v":"00:00:00"},{"$f":"Time!RBB$59","v":"00:00:00"},{"$f":"Time!RBC$59","v":"00:00:00"},{"$f":"Time!RBD$59","v":"00:00:00"},{"$f":"Time!RBE$59","v":"00:00:00"},{"$f":"Time!RBF$59","v":"00:00:00"},{"$f":"Time!RBG$59","v":"00:00:00"},{"$f":"Time!RBH$59","v":"00:00:00"},{"$f":"Time!RBI$59","v":"00:00:00"},{"$f":"Time!RBJ$59","v":"00:00:00"},{"$f":"Time!RBK$59","v":"00:00:00"},{"$f":"Time!RBL$59","v":"00:00:00"},{"$f":"Time!RBM$59","v":"00:00:00"},{"$f":"Time!RBN$59","v":"00:00:00"},{"$f":"Time!RBO$59","v":"00:00:00"},{"$f":"Time!RBP$59","v":"00:00:00"},{"$f":"Time!RBQ$59","v":"00:00:00"},{"$f":"Time!RBR$59","v":"00:00:00"},{"$f":"Time!RBS$59","v":"00:00:00"},{"$f":"Time!RBT$59","v":"00:00:00"},{"$f":"Time!RBU$59","v":"00:00:00"},{"$f":"Time!RBV$59","v":"00:00:00"},{"$f":"Time!RBW$59","v":"00:00:00"},{"$f":"Time!RBX$59","v":"00:00:00"},{"$f":"Time!RBY$59","v":"00:00:00"},{"$f":"Time!RBZ$59","v":"00:00:00"},{"$f":"Time!RCA$59","v":"00:00:00"},{"$f":"Time!RCB$59","v":"00:00:00"},{"$f":"Time!RCC$59","v":"00:00:00"},{"$f":"Time!RCD$59","v":"00:00:00"},{"$f":"Time!RCE$59","v":"00:00:00"},{"$f":"Time!RCF$59","v":"00:00:00"},{"$f":"Time!RCG$59","v":"00:00:00"},{"$f":"Time!RCH$59","v":"00:00:00"},{"$f":"Time!RCI$59","v":"00:00:00"},{"$f":"Time!RCJ$59","v":"00:00:00"},{"$f":"Time!RCK$59","v":"00:00:00"},{"$f":"Time!RCL$59","v":"00:00:00"},{"$f":"Time!RCM$59","v":"00:00:00"},{"$f":"Time!RCN$59","v":"00:00:00"},{"$f":"Time!RCO$59","v":"00:00:00"},{"$f":"Time!RCP$59","v":"00:00:00"},{"$f":"Time!RCQ$59","v":"00:00:00"},{"$f":"Time!RCR$59","v":"00:00:00"},{"$f":"Time!RCS$59","v":"00:00:00"},{"$f":"Time!RCT$59","v":"00:00:00"},{"$f":"Time!RCU$59","v":"00:00:00"},{"$f":"Time!RCV$59","v":"00:00:00"},{"$f":"Time!RCW$59","v":"00:00:00"},{"$f":"Time!RCX$59","v":"00:00:00"},{"$f":"Time!RCY$59","v":"00:00:00"},{"$f":"Time!RCZ$59","v":"00:00:00"},{"$f":"Time!RDA$59","v":"00:00:00"},{"$f":"Time!RDB$59","v":"00:00:00"},{"$f":"Time!RDC$59","v":"00:00:00"},{"$f":"Time!RDD$59","v":"00:00:00"},{"$f":"Time!RDE$59","v":"00:00:00"},{"$f":"Time!RDF$59","v":"00:00:00"},{"$f":"Time!RDG$59","v":"00:00:00"},{"$f":"Time!RDH$59","v":"00:00:00"},{"$f":"Time!RDI$59","v":"00:00:00"},{"$f":"Time!RDJ$59","v":"00:00:00"},{"$f":"Time!RDK$59","v":"00:00:00"},{"$f":"Time!RDL$59","v":"00:00:00"},{"$f":"Time!RDM$59","v":"00:00:00"},{"$f":"Time!RDN$59","v":"00:00:00"},{"$f":"Time!RDO$59","v":"00:00:00"},{"$f":"Time!RDP$59","v":"00:00:00"},{"$f":"Time!RDQ$59","v":"00:00:00"},{"$f":"Time!RDR$59","v":"00:00:00"},{"$f":"Time!RDS$59","v":"00:00:00"},{"$f":"Time!RDT$59","v":"00:00:00"},{"$f":"Time!RDU$59","v":"00:00:00"},{"$f":"Time!RDV$59","v":"00:00:00"},{"$f":"Time!RDW$59","v":"00:00:00"},{"$f":"Time!RDX$59","v":"00:00:00"},{"$f":"Time!RDY$59","v":"00:00:00"},{"$f":"Time!RDZ$59","v":"00:00:00"},{"$f":"Time!REA$59","v":"00:00:00"},{"$f":"Time!REB$59","v":"00:00:00"},{"$f":"Time!REC$59","v":"00:00:00"},{"$f":"Time!RED$59","v":"00:00:00"},{"$f":"Time!REE$59","v":"00:00:00"},{"$f":"Time!REF$59","v":"00:00:00"},{"$f":"Time!REG$59","v":"00:00:00"},{"$f":"Time!REH$59","v":"00:00:00"},{"$f":"Time!REI$59","v":"00:00:00"},{"$f":"Time!REJ$59","v":"00:00:00"},{"$f":"Time!REK$59","v":"00:00:00"},{"$f":"Time!REL$59","v":"00:00:00"},{"$f":"Time!REM$59","v":"00:00:00"},{"$f":"Time!REN$59","v":"00:00:00"},{"$f":"Time!REO$59","v":"00:00:00"},{"$f":"Time!REP$59","v":"00:00:00"},{"$f":"Time!REQ$59","v":"00:00:00"},{"$f":"Time!RER$59","v":"00:00:00"},{"$f":"Time!RES$59","v":"00:00:00"},{"$f":"Time!RET$59","v":"00:00:00"},{"$f":"Time!REU$59","v":"00:00:00"},{"$f":"Time!REV$59","v":"00:00:00"},{"$f":"Time!REW$59","v":"00:00:00"},{"$f":"Time!REX$59","v":"00:00:00"},{"$f":"Time!REY$59","v":"00:00:00"},{"$f":"Time!REZ$59","v":"00:00:00"},{"$f":"Time!RFA$59","v":"00:00:00"},{"$f":"Time!RFB$59","v":"00:00:00"},{"$f":"Time!RFC$59","v":"00:00:00"},{"$f":"Time!RFD$59","v":"00:00:00"},{"$f":"Time!RFE$59","v":"00:00:00"},{"$f":"Time!RFF$59","v":"00:00:00"},{"$f":"Time!RFG$59","v":"00:00:00"},{"$f":"Time!RFH$59","v":"00:00:00"},{"$f":"Time!RFI$59","v":"00:00:00"},{"$f":"Time!RFJ$59","v":"00:00:00"},{"$f":"Time!RFK$59","v":"00:00:00"},{"$f":"Time!RFL$59","v":"00:00:00"},{"$f":"Time!RFM$59","v":"00:00:00"},{"$f":"Time!RFN$59","v":"00:00:00"},{"$f":"Time!RFO$59","v":"00:00:00"},{"$f":"Time!RFP$59","v":"00:00:00"},{"$f":"Time!RFQ$59","v":"00:00:00"},{"$f":"Time!RFR$59","v":"00:00:00"},{"$f":"Time!RFS$59","v":"00:00:00"},{"$f":"Time!RFT$59","v":"00:00:00"},{"$f":"Time!RFU$59","v":"00:00:00"},{"$f":"Time!RFV$59","v":"00:00:00"},{"$f":"Time!RFW$59","v":"00:00:00"},{"$f":"Time!RFX$59","v":"00:00:00"},{"$f":"Time!RFY$59","v":"00:00:00"},{"$f":"Time!RFZ$59","v":"00:00:00"},{"$f":"Time!RGA$59","v":"00:00:00"},{"$f":"Time!RGB$59","v":"00:00:00"},{"$f":"Time!RGC$59","v":"00:00:00"},{"$f":"Time!RGD$59","v":"00:00:00"},{"$f":"Time!RGE$59","v":"00:00:00"},{"$f":"Time!RGF$59","v":"00:00:00"},{"$f":"Time!RGG$59","v":"00:00:00"},{"$f":"Time!RGH$59","v":"00:00:00"},{"$f":"Time!RGI$59","v":"00:00:00"},{"$f":"Time!RGJ$59","v":"00:00:00"},{"$f":"Time!RGK$59","v":"00:00:00"},{"$f":"Time!RGL$59","v":"00:00:00"},{"$f":"Time!RGM$59","v":"00:00:00"},{"$f":"Time!RGN$59","v":"00:00:00"},{"$f":"Time!RGO$59","v":"00:00:00"},{"$f":"Time!RGP$59","v":"00:00:00"},{"$f":"Time!RGQ$59","v":"00:00:00"},{"$f":"Time!RGR$59","v":"00:00:00"},{"$f":"Time!RGS$59","v":"00:00:00"},{"$f":"Time!RGT$59","v":"00:00:00"},{"$f":"Time!RGU$59","v":"00:00:00"},{"$f":"Time!RGV$59","v":"00:00:00"},{"$f":"Time!RGW$59","v":"00:00:00"},{"$f":"Time!RGX$59","v":"00:00:00"},{"$f":"Time!RGY$59","v":"00:00:00"},{"$f":"Time!RGZ$59","v":"00:00:00"},{"$f":"Time!RHA$59","v":"00:00:00"},{"$f":"Time!RHB$59","v":"00:00:00"},{"$f":"Time!RHC$59","v":"00:00:00"},{"$f":"Time!RHD$59","v":"00:00:00"},{"$f":"Time!RHE$59","v":"00:00:00"},{"$f":"Time!RHF$59","v":"00:00:00"},{"$f":"Time!RHG$59","v":"00:00:00"},{"$f":"Time!RHH$59","v":"00:00:00"},{"$f":"Time!RHI$59","v":"00:00:00"},{"$f":"Time!RHJ$59","v":"00:00:00"},{"$f":"Time!RHK$59","v":"00:00:00"},{"$f":"Time!RHL$59","v":"00:00:00"},{"$f":"Time!RHM$59","v":"00:00:00"},{"$f":"Time!RHN$59","v":"00:00:00"},{"$f":"Time!RHO$59","v":"00:00:00"},{"$f":"Time!RHP$59","v":"00:00:00"},{"$f":"Time!RHQ$59","v":"00:00:00"},{"$f":"Time!RHR$59","v":"00:00:00"},{"$f":"Time!RHS$59","v":"00:00:00"},{"$f":"Time!RHT$59","v":"00:00:00"},{"$f":"Time!RHU$59","v":"00:00:00"},{"$f":"Time!RHV$59","v":"00:00:00"},{"$f":"Time!RHW$59","v":"00:00:00"},{"$f":"Time!RHX$59","v":"00:00:00"},{"$f":"Time!RHY$59","v":"00:00:00"},{"$f":"Time!RHZ$59","v":"00:00:00"},{"$f":"Time!RIA$59","v":"00:00:00"},{"$f":"Time!RIB$59","v":"00:00:00"},{"$f":"Time!RIC$59","v":"00:00:00"},{"$f":"Time!RID$59","v":"00:00:00"},{"$f":"Time!RIE$59","v":"00:00:00"},{"$f":"Time!RIF$59","v":"00:00:00"},{"$f":"Time!RIG$59","v":"00:00:00"},{"$f":"Time!RIH$59","v":"00:00:00"},{"$f":"Time!RII$59","v":"00:00:00"},{"$f":"Time!RIJ$59","v":"00:00:00"},{"$f":"Time!RIK$59","v":"00:00:00"},{"$f":"Time!RIL$59","v":"00:00:00"},{"$f":"Time!RIM$59","v":"00:00:00"},{"$f":"Time!RIN$59","v":"00:00:00"},{"$f":"Time!RIO$59","v":"00:00:00"},{"$f":"Time!RIP$59","v":"00:00:00"},{"$f":"Time!RIQ$59","v":"00:00:00"},{"$f":"Time!RIR$59","v":"00:00:00"},{"$f":"Time!RIS$59","v":"00:00:00"},{"$f":"Time!RIT$59","v":"00:00:00"},{"$f":"Time!RIU$59","v":"00:00:00"},{"$f":"Time!RIV$59","v":"00:00:00"},{"$f":"Time!RIW$59","v":"00:00:00"},{"$f":"Time!RIX$59","v":"00:00:00"},{"$f":"Time!RIY$59","v":"00:00:00"},{"$f":"Time!RIZ$59","v":"00:00:00"},{"$f":"Time!RJA$59","v":"00:00:00"},{"$f":"Time!RJB$59","v":"00:00:00"},{"$f":"Time!RJC$59","v":"00:00:00"},{"$f":"Time!RJD$59","v":"00:00:00"},{"$f":"Time!RJE$59","v":"00:00:00"},{"$f":"Time!RJF$59","v":"00:00:00"},{"$f":"Time!RJG$59","v":"00:00:00"},{"$f":"Time!RJH$59","v":"00:00:00"},{"$f":"Time!RJI$59","v":"00:00:00"},{"$f":"Time!RJJ$59","v":"00:00:00"},{"$f":"Time!RJK$59","v":"00:00:00"},{"$f":"Time!RJL$59","v":"00:00:00"},{"$f":"Time!RJM$59","v":"00:00:00"},{"$f":"Time!RJN$59","v":"00:00:00"},{"$f":"Time!RJO$59","v":"00:00:00"},{"$f":"Time!RJP$59","v":"00:00:00"},{"$f":"Time!RJQ$59","v":"00:00:00"},{"$f":"Time!RJR$59","v":"00:00:00"},{"$f":"Time!RJS$59","v":"00:00:00"},{"$f":"Time!RJT$59","v":"00:00:00"},{"$f":"Time!RJU$59","v":"00:00:00"},{"$f":"Time!RJV$59","v":"00:00:00"},{"$f":"Time!RJW$59","v":"00:00:00"},{"$f":"Time!RJX$59","v":"00:00:00"},{"$f":"Time!RJY$59","v":"00:00:00"},{"$f":"Time!RJZ$59","v":"00:00:00"},{"$f":"Time!RKA$59","v":"00:00:00"},{"$f":"Time!RKB$59","v":"00:00:00"},{"$f":"Time!RKC$59","v":"00:00:00"},{"$f":"Time!RKD$59","v":"00:00:00"},{"$f":"Time!RKE$59","v":"00:00:00"},{"$f":"Time!RKF$59","v":"00:00:00"},{"$f":"Time!RKG$59","v":"00:00:00"},{"$f":"Time!RKH$59","v":"00:00:00"},{"$f":"Time!RKI$59","v":"00:00:00"},{"$f":"Time!RKJ$59","v":"00:00:00"},{"$f":"Time!RKK$59","v":"00:00:00"},{"$f":"Time!RKL$59","v":"00:00:00"},{"$f":"Time!RKM$59","v":"00:00:00"},{"$f":"Time!RKN$59","v":"00:00:00"},{"$f":"Time!RKO$59","v":"00:00:00"},{"$f":"Time!RKP$59","v":"00:00:00"},{"$f":"Time!RKQ$59","v":"00:00:00"},{"$f":"Time!RKR$59","v":"00:00:00"},{"$f":"Time!RKS$59","v":"00:00:00"},{"$f":"Time!RKT$59","v":"00:00:00"},{"$f":"Time!RKU$59","v":"00:00:00"},{"$f":"Time!RKV$59","v":"00:00:00"},{"$f":"Time!RKW$59","v":"00:00:00"},{"$f":"Time!RKX$59","v":"00:00:00"},{"$f":"Time!RKY$59","v":"00:00:00"},{"$f":"Time!RKZ$59","v":"00:00:00"},{"$f":"Time!RLA$59","v":"00:00:00"},{"$f":"Time!RLB$59","v":"00:00:00"},{"$f":"Time!RLC$59","v":"00:00:00"},{"$f":"Time!RLD$59","v":"00:00:00"},{"$f":"Time!RLE$59","v":"00:00:00"},{"$f":"Time!RLF$59","v":"00:00:00"},{"$f":"Time!RLG$59","v":"00:00:00"},{"$f":"Time!RLH$59","v":"00:00:00"},{"$f":"Time!RLI$59","v":"00:00:00"},{"$f":"Time!RLJ$59","v":"00:00:00"},{"$f":"Time!RLK$59","v":"00:00:00"},{"$f":"Time!RLL$59","v":"00:00:00"},{"$f":"Time!RLM$59","v":"00:00:00"},{"$f":"Time!RLN$59","v":"00:00:00"},{"$f":"Time!RLO$59","v":"00:00:00"},{"$f":"Time!RLP$59","v":"00:00:00"},{"$f":"Time!RLQ$59","v":"00:00:00"},{"$f":"Time!RLR$59","v":"00:00:00"},{"$f":"Time!RLS$59","v":"00:00:00"},{"$f":"Time!RLT$59","v":"00:00:00"},{"$f":"Time!RLU$59","v":"00:00:00"},{"$f":"Time!RLV$59","v":"00:00:00"},{"$f":"Time!RLW$59","v":"00:00:00"},{"$f":"Time!RLX$59","v":"00:00:00"},{"$f":"Time!RLY$59","v":"00:00:00"},{"$f":"Time!RLZ$59","v":"00:00:00"},{"$f":"Time!RMA$59","v":"00:00:00"},{"$f":"Time!RMB$59","v":"00:00:00"},{"$f":"Time!RMC$59","v":"00:00:00"},{"$f":"Time!RMD$59","v":"00:00:00"},{"$f":"Time!RME$59","v":"00:00:00"},{"$f":"Time!RMF$59","v":"00:00:00"},{"$f":"Time!RMG$59","v":"00:00:00"},{"$f":"Time!RMH$59","v":"00:00:00"},{"$f":"Time!RMI$59","v":"00:00:00"},{"$f":"Time!RMJ$59","v":"00:00:00"},{"$f":"Time!RMK$59","v":"00:00:00"},{"$f":"Time!RML$59","v":"00:00:00"},{"$f":"Time!RMM$59","v":"00:00:00"},{"$f":"Time!RMN$59","v":"00:00:00"},{"$f":"Time!RMO$59","v":"00:00:00"},{"$f":"Time!RMP$59","v":"00:00:00"},{"$f":"Time!RMQ$59","v":"00:00:00"},{"$f":"Time!RMR$59","v":"00:00:00"},{"$f":"Time!RMS$59","v":"00:00:00"},{"$f":"Time!RMT$59","v":"00:00:00"},{"$f":"Time!RMU$59","v":"00:00:00"},{"$f":"Time!RMV$59","v":"00:00:00"},{"$f":"Time!RMW$59","v":"00:00:00"},{"$f":"Time!RMX$59","v":"00:00:00"},{"$f":"Time!RMY$59","v":"00:00:00"},{"$f":"Time!RMZ$59","v":"00:00:00"},{"$f":"Time!RNA$59","v":"00:00:00"},{"$f":"Time!RNB$59","v":"00:00:00"},{"$f":"Time!RNC$59","v":"00:00:00"},{"$f":"Time!RND$59","v":"00:00:00"},{"$f":"Time!RNE$59","v":"00:00:00"},{"$f":"Time!RNF$59","v":"00:00:00"},{"$f":"Time!RNG$59","v":"00:00:00"},{"$f":"Time!RNH$59","v":"00:00:00"},{"$f":"Time!RNI$59","v":"00:00:00"},{"$f":"Time!RNJ$59","v":"00:00:00"},{"$f":"Time!RNK$59","v":"00:00:00"},{"$f":"Time!RNL$59","v":"00:00:00"},{"$f":"Time!RNM$59","v":"00:00:00"},{"$f":"Time!RNN$59","v":"00:00:00"},{"$f":"Time!RNO$59","v":"00:00:00"},{"$f":"Time!RNP$59","v":"00:00:00"},{"$f":"Time!RNQ$59","v":"00:00:00"},{"$f":"Time!RNR$59","v":"00:00:00"},{"$f":"Time!RNS$59","v":"00:00:00"},{"$f":"Time!RNT$59","v":"00:00:00"},{"$f":"Time!RNU$59","v":"00:00:00"},{"$f":"Time!RNV$59","v":"00:00:00"},{"$f":"Time!RNW$59","v":"00:00:00"},{"$f":"Time!RNX$59","v":"00:00:00"},{"$f":"Time!RNY$59","v":"00:00:00"},{"$f":"Time!RNZ$59","v":"00:00:00"},{"$f":"Time!ROA$59","v":"00:00:00"},{"$f":"Time!ROB$59","v":"00:00:00"},{"$f":"Time!ROC$59","v":"00:00:00"},{"$f":"Time!ROD$59","v":"00:00:00"},{"$f":"Time!ROE$59","v":"00:00:00"},{"$f":"Time!ROF$59","v":"00:00:00"},{"$f":"Time!ROG$59","v":"00:00:00"},{"$f":"Time!ROH$59","v":"00:00:00"},{"$f":"Time!ROI$59","v":"00:00:00"},{"$f":"Time!ROJ$59","v":"00:00:00"},{"$f":"Time!ROK$59","v":"00:00:00"},{"$f":"Time!ROL$59","v":"00:00:00"},{"$f":"Time!ROM$59","v":"00:00:00"},{"$f":"Time!RON$59","v":"00:00:00"},{"$f":"Time!ROO$59","v":"00:00:00"},{"$f":"Time!ROP$59","v":"00:00:00"},{"$f":"Time!ROQ$59","v":"00:00:00"},{"$f":"Time!ROR$59","v":"00:00:00"},{"$f":"Time!ROS$59","v":"00:00:00"},{"$f":"Time!ROT$59","v":"00:00:00"},{"$f":"Time!ROU$59","v":"00:00:00"},{"$f":"Time!ROV$59","v":"00:00:00"},{"$f":"Time!ROW$59","v":"00:00:00"},{"$f":"Time!ROX$59","v":"00:00:00"},{"$f":"Time!ROY$59","v":"00:00:00"},{"$f":"Time!ROZ$59","v":"00:00:00"},{"$f":"Time!RPA$59","v":"00:00:00"},{"$f":"Time!RPB$59","v":"00:00:00"},{"$f":"Time!RPC$59","v":"00:00:00"},{"$f":"Time!RPD$59","v":"00:00:00"},{"$f":"Time!RPE$59","v":"00:00:00"},{"$f":"Time!RPF$59","v":"00:00:00"},{"$f":"Time!RPG$59","v":"00:00:00"},{"$f":"Time!RPH$59","v":"00:00:00"},{"$f":"Time!RPI$59","v":"00:00:00"},{"$f":"Time!RPJ$59","v":"00:00:00"},{"$f":"Time!RPK$59","v":"00:00:00"},{"$f":"Time!RPL$59","v":"00:00:00"},{"$f":"Time!RPM$59","v":"00:00:00"},{"$f":"Time!RPN$59","v":"00:00:00"},{"$f":"Time!RPO$59","v":"00:00:00"},{"$f":"Time!RPP$59","v":"00:00:00"},{"$f":"Time!RPQ$59","v":"00:00:00"},{"$f":"Time!RPR$59","v":"00:00:00"},{"$f":"Time!RPS$59","v":"00:00:00"},{"$f":"Time!RPT$59","v":"00:00:00"},{"$f":"Time!RPU$59","v":"00:00:00"},{"$f":"Time!RPV$59","v":"00:00:00"},{"$f":"Time!RPW$59","v":"00:00:00"},{"$f":"Time!RPX$59","v":"00:00:00"},{"$f":"Time!RPY$59","v":"00:00:00"},{"$f":"Time!RPZ$59","v":"00:00:00"},{"$f":"Time!RQA$59","v":"00:00:00"},{"$f":"Time!RQB$59","v":"00:00:00"},{"$f":"Time!RQC$59","v":"00:00:00"},{"$f":"Time!RQD$59","v":"00:00:00"},{"$f":"Time!RQE$59","v":"00:00:00"},{"$f":"Time!RQF$59","v":"00:00:00"},{"$f":"Time!RQG$59","v":"00:00:00"},{"$f":"Time!RQH$59","v":"00:00:00"},{"$f":"Time!RQI$59","v":"00:00:00"},{"$f":"Time!RQJ$59","v":"00:00:00"},{"$f":"Time!RQK$59","v":"00:00:00"},{"$f":"Time!RQL$59","v":"00:00:00"},{"$f":"Time!RQM$59","v":"00:00:00"},{"$f":"Time!RQN$59","v":"00:00:00"},{"$f":"Time!RQO$59","v":"00:00:00"},{"$f":"Time!RQP$59","v":"00:00:00"},{"$f":"Time!RQQ$59","v":"00:00:00"},{"$f":"Time!RQR$59","v":"00:00:00"},{"$f":"Time!RQS$59","v":"00:00:00"},{"$f":"Time!RQT$59","v":"00:00:00"},{"$f":"Time!RQU$59","v":"00:00:00"},{"$f":"Time!RQV$59","v":"00:00:00"},{"$f":"Time!RQW$59","v":"00:00:00"},{"$f":"Time!RQX$59","v":"00:00:00"},{"$f":"Time!RQY$59","v":"00:00:00"},{"$f":"Time!RQZ$59","v":"00:00:00"},{"$f":"Time!RRA$59","v":"00:00:00"},{"$f":"Time!RRB$59","v":"00:00:00"},{"$f":"Time!RRC$59","v":"00:00:00"},{"$f":"Time!RRD$59","v":"00:00:00"},{"$f":"Time!RRE$59","v":"00:00:00"},{"$f":"Time!RRF$59","v":"00:00:00"},{"$f":"Time!RRG$59","v":"00:00:00"},{"$f":"Time!RRH$59","v":"00:00:00"},{"$f":"Time!RRI$59","v":"00:00:00"},{"$f":"Time!RRJ$59","v":"00:00:00"},{"$f":"Time!RRK$59","v":"00:00:00"},{"$f":"Time!RRL$59","v":"00:00:00"},{"$f":"Time!RRM$59","v":"00:00:00"},{"$f":"Time!RRN$59","v":"00:00:00"},{"$f":"Time!RRO$59","v":"00:00:00"},{"$f":"Time!RRP$59","v":"00:00:00"},{"$f":"Time!RRQ$59","v":"00:00:00"},{"$f":"Time!RRR$59","v":"00:00:00"},{"$f":"Time!RRS$59","v":"00:00:00"},{"$f":"Time!RRT$59","v":"00:00:00"},{"$f":"Time!RRU$59","v":"00:00:00"},{"$f":"Time!RRV$59","v":"00:00:00"},{"$f":"Time!RRW$59","v":"00:00:00"},{"$f":"Time!RRX$59","v":"00:00:00"},{"$f":"Time!RRY$59","v":"00:00:00"},{"$f":"Time!RRZ$59","v":"00:00:00"},{"$f":"Time!RSA$59","v":"00:00:00"},{"$f":"Time!RSB$59","v":"00:00:00"},{"$f":"Time!RSC$59","v":"00:00:00"},{"$f":"Time!RSD$59","v":"00:00:00"},{"$f":"Time!RSE$59","v":"00:00:00"},{"$f":"Time!RSF$59","v":"00:00:00"},{"$f":"Time!RSG$59","v":"00:00:00"},{"$f":"Time!RSH$59","v":"00:00:00"},{"$f":"Time!RSI$59","v":"00:00:00"},{"$f":"Time!RSJ$59","v":"00:00:00"},{"$f":"Time!RSK$59","v":"00:00:00"},{"$f":"Time!RSL$59","v":"00:00:00"},{"$f":"Time!RSM$59","v":"00:00:00"},{"$f":"Time!RSN$59","v":"00:00:00"},{"$f":"Time!RSO$59","v":"00:00:00"},{"$f":"Time!RSP$59","v":"00:00:00"},{"$f":"Time!RSQ$59","v":"00:00:00"},{"$f":"Time!RSR$59","v":"00:00:00"},{"$f":"Time!RSS$59","v":"00:00:00"},{"$f":"Time!RST$59","v":"00:00:00"},{"$f":"Time!RSU$59","v":"00:00:00"},{"$f":"Time!RSV$59","v":"00:00:00"},{"$f":"Time!RSW$59","v":"00:00:00"},{"$f":"Time!RSX$59","v":"00:00:00"},{"$f":"Time!RSY$59","v":"00:00:00"},{"$f":"Time!RSZ$59","v":"00:00:00"},{"$f":"Time!RTA$59","v":"00:00:00"},{"$f":"Time!RTB$59","v":"00:00:00"},{"$f":"Time!RTC$59","v":"00:00:00"},{"$f":"Time!RTD$59","v":"00:00:00"},{"$f":"Time!RTE$59","v":"00:00:00"},{"$f":"Time!RTF$59","v":"00:00:00"},{"$f":"Time!RTG$59","v":"00:00:00"},{"$f":"Time!RTH$59","v":"00:00:00"},{"$f":"Time!RTI$59","v":"00:00:00"},{"$f":"Time!RTJ$59","v":"00:00:00"},{"$f":"Time!RTK$59","v":"00:00:00"},{"$f":"Time!RTL$59","v":"00:00:00"},{"$f":"Time!RTM$59","v":"00:00:00"},{"$f":"Time!RTN$59","v":"00:00:00"},{"$f":"Time!RTO$59","v":"00:00:00"},{"$f":"Time!RTP$59","v":"00:00:00"},{"$f":"Time!RTQ$59","v":"00:00:00"},{"$f":"Time!RTR$59","v":"00:00:00"},{"$f":"Time!RTS$59","v":"00:00:00"},{"$f":"Time!RTT$59","v":"00:00:00"},{"$f":"Time!RTU$59","v":"00:00:00"},{"$f":"Time!RTV$59","v":"00:00:00"},{"$f":"Time!RTW$59","v":"00:00:00"},{"$f":"Time!RTX$59","v":"00:00:00"},{"$f":"Time!RTY$59","v":"00:00:00"},{"$f":"Time!RTZ$59","v":"00:00:00"},{"$f":"Time!RUA$59","v":"00:00:00"},{"$f":"Time!RUB$59","v":"00:00:00"},{"$f":"Time!RUC$59","v":"00:00:00"},{"$f":"Time!RUD$59","v":"00:00:00"},{"$f":"Time!RUE$59","v":"00:00:00"},{"$f":"Time!RUF$59","v":"00:00:00"},{"$f":"Time!RUG$59","v":"00:00:00"},{"$f":"Time!RUH$59","v":"00:00:00"},{"$f":"Time!RUI$59","v":"00:00:00"},{"$f":"Time!RUJ$59","v":"00:00:00"},{"$f":"Time!RUK$59","v":"00:00:00"},{"$f":"Time!RUL$59","v":"00:00:00"},{"$f":"Time!RUM$59","v":"00:00:00"},{"$f":"Time!RUN$59","v":"00:00:00"},{"$f":"Time!RUO$59","v":"00:00:00"},{"$f":"Time!RUP$59","v":"00:00:00"},{"$f":"Time!RUQ$59","v":"00:00:00"},{"$f":"Time!RUR$59","v":"00:00:00"},{"$f":"Time!RUS$59","v":"00:00:00"},{"$f":"Time!RUT$59","v":"00:00:00"},{"$f":"Time!RUU$59","v":"00:00:00"},{"$f":"Time!RUV$59","v":"00:00:00"},{"$f":"Time!RUW$59","v":"00:00:00"},{"$f":"Time!RUX$59","v":"00:00:00"},{"$f":"Time!RUY$59","v":"00:00:00"},{"$f":"Time!RUZ$59","v":"00:00:00"},{"$f":"Time!RVA$59","v":"00:00:00"},{"$f":"Time!RVB$59","v":"00:00:00"},{"$f":"Time!RVC$59","v":"00:00:00"},{"$f":"Time!RVD$59","v":"00:00:00"},{"$f":"Time!RVE$59","v":"00:00:00"},{"$f":"Time!RVF$59","v":"00:00:00"},{"$f":"Time!RVG$59","v":"00:00:00"},{"$f":"Time!RVH$59","v":"00:00:00"},{"$f":"Time!RVI$59","v":"00:00:00"},{"$f":"Time!RVJ$59","v":"00:00:00"},{"$f":"Time!RVK$59","v":"00:00:00"},{"$f":"Time!RVL$59","v":"00:00:00"},{"$f":"Time!RVM$59","v":"00:00:00"},{"$f":"Time!RVN$59","v":"00:00:00"},{"$f":"Time!RVO$59","v":"00:00:00"},{"$f":"Time!RVP$59","v":"00:00:00"},{"$f":"Time!RVQ$59","v":"00:00:00"},{"$f":"Time!RVR$59","v":"00:00:00"},{"$f":"Time!RVS$59","v":"00:00:00"},{"$f":"Time!RVT$59","v":"00:00:00"},{"$f":"Time!RVU$59","v":"00:00:00"},{"$f":"Time!RVV$59","v":"00:00:00"},{"$f":"Time!RVW$59","v":"00:00:00"},{"$f":"Time!RVX$59","v":"00:00:00"},{"$f":"Time!RVY$59","v":"00:00:00"},{"$f":"Time!RVZ$59","v":"00:00:00"},{"$f":"Time!RWA$59","v":"00:00:00"},{"$f":"Time!RWB$59","v":"00:00:00"},{"$f":"Time!RWC$59","v":"00:00:00"},{"$f":"Time!RWD$59","v":"00:00:00"},{"$f":"Time!RWE$59","v":"00:00:00"},{"$f":"Time!RWF$59","v":"00:00:00"},{"$f":"Time!RWG$59","v":"00:00:00"},{"$f":"Time!RWH$59","v":"00:00:00"},{"$f":"Time!RWI$59","v":"00:00:00"},{"$f":"Time!RWJ$59","v":"00:00:00"},{"$f":"Time!RWK$59","v":"00:00:00"},{"$f":"Time!RWL$59","v":"00:00:00"},{"$f":"Time!RWM$59","v":"00:00:00"},{"$f":"Time!RWN$59","v":"00:00:00"},{"$f":"Time!RWO$59","v":"00:00:00"},{"$f":"Time!RWP$59","v":"00:00:00"},{"$f":"Time!RWQ$59","v":"00:00:00"},{"$f":"Time!RWR$59","v":"00:00:00"},{"$f":"Time!RWS$59","v":"00:00:00"},{"$f":"Time!RWT$59","v":"00:00:00"},{"$f":"Time!RWU$59","v":"00:00:00"},{"$f":"Time!RWV$59","v":"00:00:00"},{"$f":"Time!RWW$59","v":"00:00:00"},{"$f":"Time!RWX$59","v":"00:00:00"},{"$f":"Time!RWY$59","v":"00:00:00"},{"$f":"Time!RWZ$59","v":"00:00:00"},{"$f":"Time!RXA$59","v":"00:00:00"},{"$f":"Time!RXB$59","v":"00:00:00"},{"$f":"Time!RXC$59","v":"00:00:00"},{"$f":"Time!RXD$59","v":"00:00:00"},{"$f":"Time!RXE$59","v":"00:00:00"},{"$f":"Time!RXF$59","v":"00:00:00"},{"$f":"Time!RXG$59","v":"00:00:00"},{"$f":"Time!RXH$59","v":"00:00:00"},{"$f":"Time!RXI$59","v":"00:00:00"},{"$f":"Time!RXJ$59","v":"00:00:00"},{"$f":"Time!RXK$59","v":"00:00:00"},{"$f":"Time!RXL$59","v":"00:00:00"},{"$f":"Time!RXM$59","v":"00:00:00"},{"$f":"Time!RXN$59","v":"00:00:00"},{"$f":"Time!RXO$59","v":"00:00:00"},{"$f":"Time!RXP$59","v":"00:00:00"},{"$f":"Time!RXQ$59","v":"00:00:00"},{"$f":"Time!RXR$59","v":"00:00:00"},{"$f":"Time!RXS$59","v":"00:00:00"},{"$f":"Time!RXT$59","v":"00:00:00"},{"$f":"Time!RXU$59","v":"00:00:00"},{"$f":"Time!RXV$59","v":"00:00:00"},{"$f":"Time!RXW$59","v":"00:00:00"},{"$f":"Time!RXX$59","v":"00:00:00"},{"$f":"Time!RXY$59","v":"00:00:00"},{"$f":"Time!RXZ$59","v":"00:00:00"},{"$f":"Time!RYA$59","v":"00:00:00"},{"$f":"Time!RYB$59","v":"00:00:00"},{"$f":"Time!RYC$59","v":"00:00:00"},{"$f":"Time!RYD$59","v":"00:00:00"},{"$f":"Time!RYE$59","v":"00:00:00"},{"$f":"Time!RYF$59","v":"00:00:00"},{"$f":"Time!RYG$59","v":"00:00:00"},{"$f":"Time!RYH$59","v":"00:00:00"},{"$f":"Time!RYI$59","v":"00:00:00"},{"$f":"Time!RYJ$59","v":"00:00:00"},{"$f":"Time!RYK$59","v":"00:00:00"},{"$f":"Time!RYL$59","v":"00:00:00"},{"$f":"Time!RYM$59","v":"00:00:00"},{"$f":"Time!RYN$59","v":"00:00:00"},{"$f":"Time!RYO$59","v":"00:00:00"},{"$f":"Time!RYP$59","v":"00:00:00"},{"$f":"Time!RYQ$59","v":"00:00:00"},{"$f":"Time!RYR$59","v":"00:00:00"},{"$f":"Time!RYS$59","v":"00:00:00"},{"$f":"Time!RYT$59","v":"00:00:00"},{"$f":"Time!RYU$59","v":"00:00:00"},{"$f":"Time!RYV$59","v":"00:00:00"},{"$f":"Time!RYW$59","v":"00:00:00"},{"$f":"Time!RYX$59","v":"00:00:00"},{"$f":"Time!RYY$59","v":"00:00:00"},{"$f":"Time!RYZ$59","v":"00:00:00"},{"$f":"Time!RZA$59","v":"00:00:00"},{"$f":"Time!RZB$59","v":"00:00:00"},{"$f":"Time!RZC$59","v":"00:00:00"},{"$f":"Time!RZD$59","v":"00:00:00"},{"$f":"Time!RZE$59","v":"00:00:00"},{"$f":"Time!RZF$59","v":"00:00:00"},{"$f":"Time!RZG$59","v":"00:00:00"},{"$f":"Time!RZH$59","v":"00:00:00"},{"$f":"Time!RZI$59","v":"00:00:00"},{"$f":"Time!RZJ$59","v":"00:00:00"},{"$f":"Time!RZK$59","v":"00:00:00"},{"$f":"Time!RZL$59","v":"00:00:00"},{"$f":"Time!RZM$59","v":"00:00:00"},{"$f":"Time!RZN$59","v":"00:00:00"},{"$f":"Time!RZO$59","v":"00:00:00"},{"$f":"Time!RZP$59","v":"00:00:00"},{"$f":"Time!RZQ$59","v":"00:00:00"},{"$f":"Time!RZR$59","v":"00:00:00"},{"$f":"Time!RZS$59","v":"00:00:00"},{"$f":"Time!RZT$59","v":"00:00:00"},{"$f":"Time!RZU$59","v":"00:00:00"},{"$f":"Time!RZV$59","v":"00:00:00"},{"$f":"Time!RZW$59","v":"00:00:00"},{"$f":"Time!RZX$59","v":"00:00:00"},{"$f":"Time!RZY$59","v":"00:00:00"},{"$f":"Time!RZZ$59","v":"00:00:00"},{"$f":"Time!SAA$59","v":"00:00:00"},{"$f":"Time!SAB$59","v":"00:00:00"},{"$f":"Time!SAC$59","v":"00:00:00"},{"$f":"Time!SAD$59","v":"00:00:00"},{"$f":"Time!SAE$59","v":"00:00:00"},{"$f":"Time!SAF$59","v":"00:00:00"},{"$f":"Time!SAG$59","v":"00:00:00"},{"$f":"Time!SAH$59","v":"00:00:00"},{"$f":"Time!SAI$59","v":"00:00:00"},{"$f":"Time!SAJ$59","v":"00:00:00"},{"$f":"Time!SAK$59","v":"00:00:00"},{"$f":"Time!SAL$59","v":"00:00:00"},{"$f":"Time!SAM$59","v":"00:00:00"},{"$f":"Time!SAN$59","v":"00:00:00"},{"$f":"Time!SAO$59","v":"00:00:00"},{"$f":"Time!SAP$59","v":"00:00:00"},{"$f":"Time!SAQ$59","v":"00:00:00"},{"$f":"Time!SAR$59","v":"00:00:00"},{"$f":"Time!SAS$59","v":"00:00:00"},{"$f":"Time!SAT$59","v":"00:00:00"},{"$f":"Time!SAU$59","v":"00:00:00"},{"$f":"Time!SAV$59","v":"00:00:00"},{"$f":"Time!SAW$59","v":"00:00:00"},{"$f":"Time!SAX$59","v":"00:00:00"},{"$f":"Time!SAY$59","v":"00:00:00"},{"$f":"Time!SAZ$59","v":"00:00:00"},{"$f":"Time!SBA$59","v":"00:00:00"},{"$f":"Time!SBB$59","v":"00:00:00"},{"$f":"Time!SBC$59","v":"00:00:00"},{"$f":"Time!SBD$59","v":"00:00:00"},{"$f":"Time!SBE$59","v":"00:00:00"},{"$f":"Time!SBF$59","v":"00:00:00"},{"$f":"Time!SBG$59","v":"00:00:00"},{"$f":"Time!SBH$59","v":"00:00:00"},{"$f":"Time!SBI$59","v":"00:00:00"},{"$f":"Time!SBJ$59","v":"00:00:00"},{"$f":"Time!SBK$59","v":"00:00:00"},{"$f":"Time!SBL$59","v":"00:00:00"},{"$f":"Time!SBM$59","v":"00:00:00"},{"$f":"Time!SBN$59","v":"00:00:00"},{"$f":"Time!SBO$59","v":"00:00:00"},{"$f":"Time!SBP$59","v":"00:00:00"},{"$f":"Time!SBQ$59","v":"00:00:00"},{"$f":"Time!SBR$59","v":"00:00:00"},{"$f":"Time!SBS$59","v":"00:00:00"},{"$f":"Time!SBT$59","v":"00:00:00"},{"$f":"Time!SBU$59","v":"00:00:00"},{"$f":"Time!SBV$59","v":"00:00:00"},{"$f":"Time!SBW$59","v":"00:00:00"},{"$f":"Time!SBX$59","v":"00:00:00"},{"$f":"Time!SBY$59","v":"00:00:00"},{"$f":"Time!SBZ$59","v":"00:00:00"},{"$f":"Time!SCA$59","v":"00:00:00"},{"$f":"Time!SCB$59","v":"00:00:00"},{"$f":"Time!SCC$59","v":"00:00:00"},{"$f":"Time!SCD$59","v":"00:00:00"},{"$f":"Time!SCE$59","v":"00:00:00"},{"$f":"Time!SCF$59","v":"00:00:00"},{"$f":"Time!SCG$59","v":"00:00:00"},{"$f":"Time!SCH$59","v":"00:00:00"},{"$f":"Time!SCI$59","v":"00:00:00"},{"$f":"Time!SCJ$59","v":"00:00:00"},{"$f":"Time!SCK$59","v":"00:00:00"},{"$f":"Time!SCL$59","v":"00:00:00"},{"$f":"Time!SCM$59","v":"00:00:00"},{"$f":"Time!SCN$59","v":"00:00:00"},{"$f":"Time!SCO$59","v":"00:00:00"},{"$f":"Time!SCP$59","v":"00:00:00"},{"$f":"Time!SCQ$59","v":"00:00:00"},{"$f":"Time!SCR$59","v":"00:00:00"},{"$f":"Time!SCS$59","v":"00:00:00"},{"$f":"Time!SCT$59","v":"00:00:00"},{"$f":"Time!SCU$59","v":"00:00:00"},{"$f":"Time!SCV$59","v":"00:00:00"},{"$f":"Time!SCW$59","v":"00:00:00"},{"$f":"Time!SCX$59","v":"00:00:00"},{"$f":"Time!SCY$59","v":"00:00:00"},{"$f":"Time!SCZ$59","v":"00:00:00"},{"$f":"Time!SDA$59","v":"00:00:00"},{"$f":"Time!SDB$59","v":"00:00:00"},{"$f":"Time!SDC$59","v":"00:00:00"},{"$f":"Time!SDD$59","v":"00:00:00"},{"$f":"Time!SDE$59","v":"00:00:00"},{"$f":"Time!SDF$59","v":"00:00:00"},{"$f":"Time!SDG$59","v":"00:00:00"},{"$f":"Time!SDH$59","v":"00:00:00"},{"$f":"Time!SDI$59","v":"00:00:00"},{"$f":"Time!SDJ$59","v":"00:00:00"},{"$f":"Time!SDK$59","v":"00:00:00"},{"$f":"Time!SDL$59","v":"00:00:00"},{"$f":"Time!SDM$59","v":"00:00:00"},{"$f":"Time!SDN$59","v":"00:00:00"},{"$f":"Time!SDO$59","v":"00:00:00"},{"$f":"Time!SDP$59","v":"00:00:00"},{"$f":"Time!SDQ$59","v":"00:00:00"},{"$f":"Time!SDR$59","v":"00:00:00"},{"$f":"Time!SDS$59","v":"00:00:00"},{"$f":"Time!SDT$59","v":"00:00:00"},{"$f":"Time!SDU$59","v":"00:00:00"},{"$f":"Time!SDV$59","v":"00:00:00"},{"$f":"Time!SDW$59","v":"00:00:00"},{"$f":"Time!SDX$59","v":"00:00:00"},{"$f":"Time!SDY$59","v":"00:00:00"},{"$f":"Time!SDZ$59","v":"00:00:00"},{"$f":"Time!SEA$59","v":"00:00:00"},{"$f":"Time!SEB$59","v":"00:00:00"},{"$f":"Time!SEC$59","v":"00:00:00"},{"$f":"Time!SED$59","v":"00:00:00"},{"$f":"Time!SEE$59","v":"00:00:00"},{"$f":"Time!SEF$59","v":"00:00:00"},{"$f":"Time!SEG$59","v":"00:00:00"},{"$f":"Time!SEH$59","v":"00:00:00"},{"$f":"Time!SEI$59","v":"00:00:00"},{"$f":"Time!SEJ$59","v":"00:00:00"},{"$f":"Time!SEK$59","v":"00:00:00"},{"$f":"Time!SEL$59","v":"00:00:00"},{"$f":"Time!SEM$59","v":"00:00:00"},{"$f":"Time!SEN$59","v":"00:00:00"},{"$f":"Time!SEO$59","v":"00:00:00"},{"$f":"Time!SEP$59","v":"00:00:00"},{"$f":"Time!SEQ$59","v":"00:00:00"},{"$f":"Time!SER$59","v":"00:00:00"},{"$f":"Time!SES$59","v":"00:00:00"},{"$f":"Time!SET$59","v":"00:00:00"},{"$f":"Time!SEU$59","v":"00:00:00"},{"$f":"Time!SEV$59","v":"00:00:00"},{"$f":"Time!SEW$59","v":"00:00:00"},{"$f":"Time!SEX$59","v":"00:00:00"},{"$f":"Time!SEY$59","v":"00:00:00"},{"$f":"Time!SEZ$59","v":"00:00:00"},{"$f":"Time!SFA$59","v":"00:00:00"},{"$f":"Time!SFB$59","v":"00:00:00"},{"$f":"Time!SFC$59","v":"00:00:00"},{"$f":"Time!SFD$59","v":"00:00:00"},{"$f":"Time!SFE$59","v":"00:00:00"},{"$f":"Time!SFF$59","v":"00:00:00"},{"$f":"Time!SFG$59","v":"00:00:00"},{"$f":"Time!SFH$59","v":"00:00:00"},{"$f":"Time!SFI$59","v":"00:00:00"},{"$f":"Time!SFJ$59","v":"00:00:00"},{"$f":"Time!SFK$59","v":"00:00:00"},{"$f":"Time!SFL$59","v":"00:00:00"},{"$f":"Time!SFM$59","v":"00:00:00"},{"$f":"Time!SFN$59","v":"00:00:00"},{"$f":"Time!SFO$59","v":"00:00:00"},{"$f":"Time!SFP$59","v":"00:00:00"},{"$f":"Time!SFQ$59","v":"00:00:00"},{"$f":"Time!SFR$59","v":"00:00:00"},{"$f":"Time!SFS$59","v":"00:00:00"},{"$f":"Time!SFT$59","v":"00:00:00"},{"$f":"Time!SFU$59","v":"00:00:00"},{"$f":"Time!SFV$59","v":"00:00:00"},{"$f":"Time!SFW$59","v":"00:00:00"},{"$f":"Time!SFX$59","v":"00:00:00"},{"$f":"Time!SFY$59","v":"00:00:00"},{"$f":"Time!SFZ$59","v":"00:00:00"},{"$f":"Time!SGA$59","v":"00:00:00"},{"$f":"Time!SGB$59","v":"00:00:00"},{"$f":"Time!SGC$59","v":"00:00:00"},{"$f":"Time!SGD$59","v":"00:00:00"},{"$f":"Time!SGE$59","v":"00:00:00"},{"$f":"Time!SGF$59","v":"00:00:00"},{"$f":"Time!SGG$59","v":"00:00:00"},{"$f":"Time!SGH$59","v":"00:00:00"},{"$f":"Time!SGI$59","v":"00:00:00"},{"$f":"Time!SGJ$59","v":"00:00:00"},{"$f":"Time!SGK$59","v":"00:00:00"},{"$f":"Time!SGL$59","v":"00:00:00"},{"$f":"Time!SGM$59","v":"00:00:00"},{"$f":"Time!SGN$59","v":"00:00:00"},{"$f":"Time!SGO$59","v":"00:00:00"},{"$f":"Time!SGP$59","v":"00:00:00"},{"$f":"Time!SGQ$59","v":"00:00:00"},{"$f":"Time!SGR$59","v":"00:00:00"},{"$f":"Time!SGS$59","v":"00:00:00"},{"$f":"Time!SGT$59","v":"00:00:00"},{"$f":"Time!SGU$59","v":"00:00:00"},{"$f":"Time!SGV$59","v":"00:00:00"},{"$f":"Time!SGW$59","v":"00:00:00"},{"$f":"Time!SGX$59","v":"00:00:00"},{"$f":"Time!SGY$59","v":"00:00:00"},{"$f":"Time!SGZ$59","v":"00:00:00"},{"$f":"Time!SHA$59","v":"00:00:00"},{"$f":"Time!SHB$59","v":"00:00:00"},{"$f":"Time!SHC$59","v":"00:00:00"},{"$f":"Time!SHD$59","v":"00:00:00"},{"$f":"Time!SHE$59","v":"00:00:00"},{"$f":"Time!SHF$59","v":"00:00:00"},{"$f":"Time!SHG$59","v":"00:00:00"},{"$f":"Time!SHH$59","v":"00:00:00"},{"$f":"Time!SHI$59","v":"00:00:00"},{"$f":"Time!SHJ$59","v":"00:00:00"},{"$f":"Time!SHK$59","v":"00:00:00"},{"$f":"Time!SHL$59","v":"00:00:00"},{"$f":"Time!SHM$59","v":"00:00:00"},{"$f":"Time!SHN$59","v":"00:00:00"},{"$f":"Time!SHO$59","v":"00:00:00"},{"$f":"Time!SHP$59","v":"00:00:00"},{"$f":"Time!SHQ$59","v":"00:00:00"},{"$f":"Time!SHR$59","v":"00:00:00"},{"$f":"Time!SHS$59","v":"00:00:00"},{"$f":"Time!SHT$59","v":"00:00:00"},{"$f":"Time!SHU$59","v":"00:00:00"},{"$f":"Time!SHV$59","v":"00:00:00"},{"$f":"Time!SHW$59","v":"00:00:00"},{"$f":"Time!SHX$59","v":"00:00:00"},{"$f":"Time!SHY$59","v":"00:00:00"},{"$f":"Time!SHZ$59","v":"00:00:00"},{"$f":"Time!SIA$59","v":"00:00:00"},{"$f":"Time!SIB$59","v":"00:00:00"},{"$f":"Time!SIC$59","v":"00:00:00"},{"$f":"Time!SID$59","v":"00:00:00"},{"$f":"Time!SIE$59","v":"00:00:00"},{"$f":"Time!SIF$59","v":"00:00:00"},{"$f":"Time!SIG$59","v":"00:00:00"},{"$f":"Time!SIH$59","v":"00:00:00"},{"$f":"Time!SII$59","v":"00:00:00"},{"$f":"Time!SIJ$59","v":"00:00:00"},{"$f":"Time!SIK$59","v":"00:00:00"},{"$f":"Time!SIL$59","v":"00:00:00"},{"$f":"Time!SIM$59","v":"00:00:00"},{"$f":"Time!SIN$59","v":"00:00:00"},{"$f":"Time!SIO$59","v":"00:00:00"},{"$f":"Time!SIP$59","v":"00:00:00"},{"$f":"Time!SIQ$59","v":"00:00:00"},{"$f":"Time!SIR$59","v":"00:00:00"},{"$f":"Time!SIS$59","v":"00:00:00"},{"$f":"Time!SIT$59","v":"00:00:00"},{"$f":"Time!SIU$59","v":"00:00:00"},{"$f":"Time!SIV$59","v":"00:00:00"},{"$f":"Time!SIW$59","v":"00:00:00"},{"$f":"Time!SIX$59","v":"00:00:00"},{"$f":"Time!SIY$59","v":"00:00:00"},{"$f":"Time!SIZ$59","v":"00:00:00"},{"$f":"Time!SJA$59","v":"00:00:00"},{"$f":"Time!SJB$59","v":"00:00:00"},{"$f":"Time!SJC$59","v":"00:00:00"},{"$f":"Time!SJD$59","v":"00:00:00"},{"$f":"Time!SJE$59","v":"00:00:00"},{"$f":"Time!SJF$59","v":"00:00:00"},{"$f":"Time!SJG$59","v":"00:00:00"},{"$f":"Time!SJH$59","v":"00:00:00"},{"$f":"Time!SJI$59","v":"00:00:00"},{"$f":"Time!SJJ$59","v":"00:00:00"},{"$f":"Time!SJK$59","v":"00:00:00"},{"$f":"Time!SJL$59","v":"00:00:00"},{"$f":"Time!SJM$59","v":"00:00:00"},{"$f":"Time!SJN$59","v":"00:00:00"},{"$f":"Time!SJO$59","v":"00:00:00"},{"$f":"Time!SJP$59","v":"00:00:00"},{"$f":"Time!SJQ$59","v":"00:00:00"},{"$f":"Time!SJR$59","v":"00:00:00"},{"$f":"Time!SJS$59","v":"00:00:00"},{"$f":"Time!SJT$59","v":"00:00:00"},{"$f":"Time!SJU$59","v":"00:00:00"},{"$f":"Time!SJV$59","v":"00:00:00"},{"$f":"Time!SJW$59","v":"00:00:00"},{"$f":"Time!SJX$59","v":"00:00:00"},{"$f":"Time!SJY$59","v":"00:00:00"},{"$f":"Time!SJZ$59","v":"00:00:00"},{"$f":"Time!SKA$59","v":"00:00:00"},{"$f":"Time!SKB$59","v":"00:00:00"},{"$f":"Time!SKC$59","v":"00:00:00"},{"$f":"Time!SKD$59","v":"00:00:00"},{"$f":"Time!SKE$59","v":"00:00:00"},{"$f":"Time!SKF$59","v":"00:00:00"},{"$f":"Time!SKG$59","v":"00:00:00"},{"$f":"Time!SKH$59","v":"00:00:00"},{"$f":"Time!SKI$59","v":"00:00:00"},{"$f":"Time!SKJ$59","v":"00:00:00"},{"$f":"Time!SKK$59","v":"00:00:00"},{"$f":"Time!SKL$59","v":"00:00:00"},{"$f":"Time!SKM$59","v":"00:00:00"},{"$f":"Time!SKN$59","v":"00:00:00"},{"$f":"Time!SKO$59","v":"00:00:00"},{"$f":"Time!SKP$59","v":"00:00:00"},{"$f":"Time!SKQ$59","v":"00:00:00"},{"$f":"Time!SKR$59","v":"00:00:00"},{"$f":"Time!SKS$59","v":"00:00:00"},{"$f":"Time!SKT$59","v":"00:00:00"},{"$f":"Time!SKU$59","v":"00:00:00"},{"$f":"Time!SKV$59","v":"00:00:00"},{"$f":"Time!SKW$59","v":"00:00:00"},{"$f":"Time!SKX$59","v":"00:00:00"},{"$f":"Time!SKY$59","v":"00:00:00"},{"$f":"Time!SKZ$59","v":"00:00:00"},{"$f":"Time!SLA$59","v":"00:00:00"},{"$f":"Time!SLB$59","v":"00:00:00"},{"$f":"Time!SLC$59","v":"00:00:00"},{"$f":"Time!SLD$59","v":"00:00:00"},{"$f":"Time!SLE$59","v":"00:00:00"},{"$f":"Time!SLF$59","v":"00:00:00"},{"$f":"Time!SLG$59","v":"00:00:00"},{"$f":"Time!SLH$59","v":"00:00:00"},{"$f":"Time!SLI$59","v":"00:00:00"},{"$f":"Time!SLJ$59","v":"00:00:00"},{"$f":"Time!SLK$59","v":"00:00:00"},{"$f":"Time!SLL$59","v":"00:00:00"},{"$f":"Time!SLM$59","v":"00:00:00"},{"$f":"Time!SLN$59","v":"00:00:00"},{"$f":"Time!SLO$59","v":"00:00:00"},{"$f":"Time!SLP$59","v":"00:00:00"},{"$f":"Time!SLQ$59","v":"00:00:00"},{"$f":"Time!SLR$59","v":"00:00:00"},{"$f":"Time!SLS$59","v":"00:00:00"},{"$f":"Time!SLT$59","v":"00:00:00"},{"$f":"Time!SLU$59","v":"00:00:00"},{"$f":"Time!SLV$59","v":"00:00:00"},{"$f":"Time!SLW$59","v":"00:00:00"},{"$f":"Time!SLX$59","v":"00:00:00"},{"$f":"Time!SLY$59","v":"00:00:00"},{"$f":"Time!SLZ$59","v":"00:00:00"},{"$f":"Time!SMA$59","v":"00:00:00"},{"$f":"Time!SMB$59","v":"00:00:00"},{"$f":"Time!SMC$59","v":"00:00:00"},{"$f":"Time!SMD$59","v":"00:00:00"},{"$f":"Time!SME$59","v":"00:00:00"},{"$f":"Time!SMF$59","v":"00:00:00"},{"$f":"Time!SMG$59","v":"00:00:00"},{"$f":"Time!SMH$59","v":"00:00:00"},{"$f":"Time!SMI$59","v":"00:00:00"},{"$f":"Time!SMJ$59","v":"00:00:00"},{"$f":"Time!SMK$59","v":"00:00:00"},{"$f":"Time!SML$59","v":"00:00:00"},{"$f":"Time!SMM$59","v":"00:00:00"},{"$f":"Time!SMN$59","v":"00:00:00"},{"$f":"Time!SMO$59","v":"00:00:00"},{"$f":"Time!SMP$59","v":"00:00:00"},{"$f":"Time!SMQ$59","v":"00:00:00"},{"$f":"Time!SMR$59","v":"00:00:00"},{"$f":"Time!SMS$59","v":"00:00:00"},{"$f":"Time!SMT$59","v":"00:00:00"},{"$f":"Time!SMU$59","v":"00:00:00"},{"$f":"Time!SMV$59","v":"00:00:00"},{"$f":"Time!SMW$59","v":"00:00:00"},{"$f":"Time!SMX$59","v":"00:00:00"},{"$f":"Time!SMY$59","v":"00:00:00"},{"$f":"Time!SMZ$59","v":"00:00:00"},{"$f":"Time!SNA$59","v":"00:00:00"},{"$f":"Time!SNB$59","v":"00:00:00"},{"$f":"Time!SNC$59","v":"00:00:00"},{"$f":"Time!SND$59","v":"00:00:00"},{"$f":"Time!SNE$59","v":"00:00:00"},{"$f":"Time!SNF$59","v":"00:00:00"},{"$f":"Time!SNG$59","v":"00:00:00"},{"$f":"Time!SNH$59","v":"00:00:00"},{"$f":"Time!SNI$59","v":"00:00:00"},{"$f":"Time!SNJ$59","v":"00:00:00"},{"$f":"Time!SNK$59","v":"00:00:00"},{"$f":"Time!SNL$59","v":"00:00:00"},{"$f":"Time!SNM$59","v":"00:00:00"},{"$f":"Time!SNN$59","v":"00:00:00"},{"$f":"Time!SNO$59","v":"00:00:00"},{"$f":"Time!SNP$59","v":"00:00:00"},{"$f":"Time!SNQ$59","v":"00:00:00"},{"$f":"Time!SNR$59","v":"00:00:00"},{"$f":"Time!SNS$59","v":"00:00:00"},{"$f":"Time!SNT$59","v":"00:00:00"},{"$f":"Time!SNU$59","v":"00:00:00"},{"$f":"Time!SNV$59","v":"00:00:00"},{"$f":"Time!SNW$59","v":"00:00:00"},{"$f":"Time!SNX$59","v":"00:00:00"},{"$f":"Time!SNY$59","v":"00:00:00"},{"$f":"Time!SNZ$59","v":"00:00:00"},{"$f":"Time!SOA$59","v":"00:00:00"},{"$f":"Time!SOB$59","v":"00:00:00"},{"$f":"Time!SOC$59","v":"00:00:00"},{"$f":"Time!SOD$59","v":"00:00:00"},{"$f":"Time!SOE$59","v":"00:00:00"},{"$f":"Time!SOF$59","v":"00:00:00"},{"$f":"Time!SOG$59","v":"00:00:00"},{"$f":"Time!SOH$59","v":"00:00:00"},{"$f":"Time!SOI$59","v":"00:00:00"},{"$f":"Time!SOJ$59","v":"00:00:00"},{"$f":"Time!SOK$59","v":"00:00:00"},{"$f":"Time!SOL$59","v":"00:00:00"},{"$f":"Time!SOM$59","v":"00:00:00"},{"$f":"Time!SON$59","v":"00:00:00"},{"$f":"Time!SOO$59","v":"00:00:00"},{"$f":"Time!SOP$59","v":"00:00:00"},{"$f":"Time!SOQ$59","v":"00:00:00"},{"$f":"Time!SOR$59","v":"00:00:00"},{"$f":"Time!SOS$59","v":"00:00:00"},{"$f":"Time!SOT$59","v":"00:00:00"},{"$f":"Time!SOU$59","v":"00:00:00"},{"$f":"Time!SOV$59","v":"00:00:00"},{"$f":"Time!SOW$59","v":"00:00:00"},{"$f":"Time!SOX$59","v":"00:00:00"},{"$f":"Time!SOY$59","v":"00:00:00"},{"$f":"Time!SOZ$59","v":"00:00:00"},{"$f":"Time!SPA$59","v":"00:00:00"},{"$f":"Time!SPB$59","v":"00:00:00"},{"$f":"Time!SPC$59","v":"00:00:00"},{"$f":"Time!SPD$59","v":"00:00:00"},{"$f":"Time!SPE$59","v":"00:00:00"},{"$f":"Time!SPF$59","v":"00:00:00"},{"$f":"Time!SPG$59","v":"00:00:00"},{"$f":"Time!SPH$59","v":"00:00:00"},{"$f":"Time!SPI$59","v":"00:00:00"},{"$f":"Time!SPJ$59","v":"00:00:00"},{"$f":"Time!SPK$59","v":"00:00:00"},{"$f":"Time!SPL$59","v":"00:00:00"},{"$f":"Time!SPM$59","v":"00:00:00"},{"$f":"Time!SPN$59","v":"00:00:00"},{"$f":"Time!SPO$59","v":"00:00:00"},{"$f":"Time!SPP$59","v":"00:00:00"},{"$f":"Time!SPQ$59","v":"00:00:00"},{"$f":"Time!SPR$59","v":"00:00:00"},{"$f":"Time!SPS$59","v":"00:00:00"},{"$f":"Time!SPT$59","v":"00:00:00"},{"$f":"Time!SPU$59","v":"00:00:00"},{"$f":"Time!SPV$59","v":"00:00:00"},{"$f":"Time!SPW$59","v":"00:00:00"},{"$f":"Time!SPX$59","v":"00:00:00"},{"$f":"Time!SPY$59","v":"00:00:00"},{"$f":"Time!SPZ$59","v":"00:00:00"},{"$f":"Time!SQA$59","v":"00:00:00"},{"$f":"Time!SQB$59","v":"00:00:00"},{"$f":"Time!SQC$59","v":"00:00:00"},{"$f":"Time!SQD$59","v":"00:00:00"},{"$f":"Time!SQE$59","v":"00:00:00"},{"$f":"Time!SQF$59","v":"00:00:00"},{"$f":"Time!SQG$59","v":"00:00:00"},{"$f":"Time!SQH$59","v":"00:00:00"},{"$f":"Time!SQI$59","v":"00:00:00"},{"$f":"Time!SQJ$59","v":"00:00:00"},{"$f":"Time!SQK$59","v":"00:00:00"},{"$f":"Time!SQL$59","v":"00:00:00"},{"$f":"Time!SQM$59","v":"00:00:00"},{"$f":"Time!SQN$59","v":"00:00:00"},{"$f":"Time!SQO$59","v":"00:00:00"},{"$f":"Time!SQP$59","v":"00:00:00"},{"$f":"Time!SQQ$59","v":"00:00:00"},{"$f":"Time!SQR$59","v":"00:00:00"},{"$f":"Time!SQS$59","v":"00:00:00"},{"$f":"Time!SQT$59","v":"00:00:00"},{"$f":"Time!SQU$59","v":"00:00:00"},{"$f":"Time!SQV$59","v":"00:00:00"},{"$f":"Time!SQW$59","v":"00:00:00"},{"$f":"Time!SQX$59","v":"00:00:00"},{"$f":"Time!SQY$59","v":"00:00:00"},{"$f":"Time!SQZ$59","v":"00:00:00"},{"$f":"Time!SRA$59","v":"00:00:00"},{"$f":"Time!SRB$59","v":"00:00:00"},{"$f":"Time!SRC$59","v":"00:00:00"},{"$f":"Time!SRD$59","v":"00:00:00"},{"$f":"Time!SRE$59","v":"00:00:00"},{"$f":"Time!SRF$59","v":"00:00:00"},{"$f":"Time!SRG$59","v":"00:00:00"},{"$f":"Time!SRH$59","v":"00:00:00"},{"$f":"Time!SRI$59","v":"00:00:00"},{"$f":"Time!SRJ$59","v":"00:00:00"},{"$f":"Time!SRK$59","v":"00:00:00"},{"$f":"Time!SRL$59","v":"00:00:00"},{"$f":"Time!SRM$59","v":"00:00:00"},{"$f":"Time!SRN$59","v":"00:00:00"},{"$f":"Time!SRO$59","v":"00:00:00"},{"$f":"Time!SRP$59","v":"00:00:00"},{"$f":"Time!SRQ$59","v":"00:00:00"},{"$f":"Time!SRR$59","v":"00:00:00"},{"$f":"Time!SRS$59","v":"00:00:00"},{"$f":"Time!SRT$59","v":"00:00:00"},{"$f":"Time!SRU$59","v":"00:00:00"},{"$f":"Time!SRV$59","v":"00:00:00"},{"$f":"Time!SRW$59","v":"00:00:00"},{"$f":"Time!SRX$59","v":"00:00:00"},{"$f":"Time!SRY$59","v":"00:00:00"},{"$f":"Time!SRZ$59","v":"00:00:00"},{"$f":"Time!SSA$59","v":"00:00:00"},{"$f":"Time!SSB$59","v":"00:00:00"},{"$f":"Time!SSC$59","v":"00:00:00"},{"$f":"Time!SSD$59","v":"00:00:00"},{"$f":"Time!SSE$59","v":"00:00:00"},{"$f":"Time!SSF$59","v":"00:00:00"},{"$f":"Time!SSG$59","v":"00:00:00"},{"$f":"Time!SSH$59","v":"00:00:00"},{"$f":"Time!SSI$59","v":"00:00:00"},{"$f":"Time!SSJ$59","v":"00:00:00"},{"$f":"Time!SSK$59","v":"00:00:00"},{"$f":"Time!SSL$59","v":"00:00:00"},{"$f":"Time!SSM$59","v":"00:00:00"},{"$f":"Time!SSN$59","v":"00:00:00"},{"$f":"Time!SSO$59","v":"00:00:00"},{"$f":"Time!SSP$59","v":"00:00:00"},{"$f":"Time!SSQ$59","v":"00:00:00"},{"$f":"Time!SSR$59","v":"00:00:00"},{"$f":"Time!SSS$59","v":"00:00:00"},{"$f":"Time!SST$59","v":"00:00:00"},{"$f":"Time!SSU$59","v":"00:00:00"},{"$f":"Time!SSV$59","v":"00:00:00"},{"$f":"Time!SSW$59","v":"00:00:00"},{"$f":"Time!SSX$59","v":"00:00:00"},{"$f":"Time!SSY$59","v":"00:00:00"},{"$f":"Time!SSZ$59","v":"00:00:00"},{"$f":"Time!STA$59","v":"00:00:00"},{"$f":"Time!STB$59","v":"00:00:00"},{"$f":"Time!STC$59","v":"00:00:00"},{"$f":"Time!STD$59","v":"00:00:00"},{"$f":"Time!STE$59","v":"00:00:00"},{"$f":"Time!STF$59","v":"00:00:00"},{"$f":"Time!STG$59","v":"00:00:00"},{"$f":"Time!STH$59","v":"00:00:00"},{"$f":"Time!STI$59","v":"00:00:00"},{"$f":"Time!STJ$59","v":"00:00:00"},{"$f":"Time!STK$59","v":"00:00:00"},{"$f":"Time!STL$59","v":"00:00:00"},{"$f":"Time!STM$59","v":"00:00:00"},{"$f":"Time!STN$59","v":"00:00:00"},{"$f":"Time!STO$59","v":"00:00:00"},{"$f":"Time!STP$59","v":"00:00:00"},{"$f":"Time!STQ$59","v":"00:00:00"},{"$f":"Time!STR$59","v":"00:00:00"},{"$f":"Time!STS$59","v":"00:00:00"},{"$f":"Time!STT$59","v":"00:00:00"},{"$f":"Time!STU$59","v":"00:00:00"},{"$f":"Time!STV$59","v":"00:00:00"},{"$f":"Time!STW$59","v":"00:00:00"},{"$f":"Time!STX$59","v":"00:00:00"},{"$f":"Time!STY$59","v":"00:00:00"},{"$f":"Time!STZ$59","v":"00:00:00"},{"$f":"Time!SUA$59","v":"00:00:00"},{"$f":"Time!SUB$59","v":"00:00:00"},{"$f":"Time!SUC$59","v":"00:00:00"},{"$f":"Time!SUD$59","v":"00:00:00"},{"$f":"Time!SUE$59","v":"00:00:00"},{"$f":"Time!SUF$59","v":"00:00:00"},{"$f":"Time!SUG$59","v":"00:00:00"},{"$f":"Time!SUH$59","v":"00:00:00"},{"$f":"Time!SUI$59","v":"00:00:00"},{"$f":"Time!SUJ$59","v":"00:00:00"},{"$f":"Time!SUK$59","v":"00:00:00"},{"$f":"Time!SUL$59","v":"00:00:00"},{"$f":"Time!SUM$59","v":"00:00:00"},{"$f":"Time!SUN$59","v":"00:00:00"},{"$f":"Time!SUO$59","v":"00:00:00"},{"$f":"Time!SUP$59","v":"00:00:00"},{"$f":"Time!SUQ$59","v":"00:00:00"},{"$f":"Time!SUR$59","v":"00:00:00"},{"$f":"Time!SUS$59","v":"00:00:00"},{"$f":"Time!SUT$59","v":"00:00:00"},{"$f":"Time!SUU$59","v":"00:00:00"},{"$f":"Time!SUV$59","v":"00:00:00"},{"$f":"Time!SUW$59","v":"00:00:00"},{"$f":"Time!SUX$59","v":"00:00:00"},{"$f":"Time!SUY$59","v":"00:00:00"},{"$f":"Time!SUZ$59","v":"00:00:00"},{"$f":"Time!SVA$59","v":"00:00:00"},{"$f":"Time!SVB$59","v":"00:00:00"},{"$f":"Time!SVC$59","v":"00:00:00"},{"$f":"Time!SVD$59","v":"00:00:00"},{"$f":"Time!SVE$59","v":"00:00:00"},{"$f":"Time!SVF$59","v":"00:00:00"},{"$f":"Time!SVG$59","v":"00:00:00"},{"$f":"Time!SVH$59","v":"00:00:00"},{"$f":"Time!SVI$59","v":"00:00:00"},{"$f":"Time!SVJ$59","v":"00:00:00"},{"$f":"Time!SVK$59","v":"00:00:00"},{"$f":"Time!SVL$59","v":"00:00:00"},{"$f":"Time!SVM$59","v":"00:00:00"},{"$f":"Time!SVN$59","v":"00:00:00"},{"$f":"Time!SVO$59","v":"00:00:00"},{"$f":"Time!SVP$59","v":"00:00:00"},{"$f":"Time!SVQ$59","v":"00:00:00"},{"$f":"Time!SVR$59","v":"00:00:00"},{"$f":"Time!SVS$59","v":"00:00:00"},{"$f":"Time!SVT$59","v":"00:00:00"},{"$f":"Time!SVU$59","v":"00:00:00"},{"$f":"Time!SVV$59","v":"00:00:00"},{"$f":"Time!SVW$59","v":"00:00:00"},{"$f":"Time!SVX$59","v":"00:00:00"},{"$f":"Time!SVY$59","v":"00:00:00"},{"$f":"Time!SVZ$59","v":"00:00:00"},{"$f":"Time!SWA$59","v":"00:00:00"},{"$f":"Time!SWB$59","v":"00:00:00"},{"$f":"Time!SWC$59","v":"00:00:00"},{"$f":"Time!SWD$59","v":"00:00:00"},{"$f":"Time!SWE$59","v":"00:00:00"},{"$f":"Time!SWF$59","v":"00:00:00"},{"$f":"Time!SWG$59","v":"00:00:00"},{"$f":"Time!SWH$59","v":"00:00:00"},{"$f":"Time!SWI$59","v":"00:00:00"},{"$f":"Time!SWJ$59","v":"00:00:00"},{"$f":"Time!SWK$59","v":"00:00:00"},{"$f":"Time!SWL$59","v":"00:00:00"},{"$f":"Time!SWM$59","v":"00:00:00"},{"$f":"Time!SWN$59","v":"00:00:00"},{"$f":"Time!SWO$59","v":"00:00:00"},{"$f":"Time!SWP$59","v":"00:00:00"},{"$f":"Time!SWQ$59","v":"00:00:00"},{"$f":"Time!SWR$59","v":"00:00:00"},{"$f":"Time!SWS$59","v":"00:00:00"},{"$f":"Time!SWT$59","v":"00:00:00"},{"$f":"Time!SWU$59","v":"00:00:00"},{"$f":"Time!SWV$59","v":"00:00:00"},{"$f":"Time!SWW$59","v":"00:00:00"},{"$f":"Time!SWX$59","v":"00:00:00"},{"$f":"Time!SWY$59","v":"00:00:00"},{"$f":"Time!SWZ$59","v":"00:00:00"},{"$f":"Time!SXA$59","v":"00:00:00"},{"$f":"Time!SXB$59","v":"00:00:00"},{"$f":"Time!SXC$59","v":"00:00:00"},{"$f":"Time!SXD$59","v":"00:00:00"},{"$f":"Time!SXE$59","v":"00:00:00"},{"$f":"Time!SXF$59","v":"00:00:00"},{"$f":"Time!SXG$59","v":"00:00:00"},{"$f":"Time!SXH$59","v":"00:00:00"},{"$f":"Time!SXI$59","v":"00:00:00"},{"$f":"Time!SXJ$59","v":"00:00:00"},{"$f":"Time!SXK$59","v":"00:00:00"},{"$f":"Time!SXL$59","v":"00:00:00"},{"$f":"Time!SXM$59","v":"00:00:00"},{"$f":"Time!SXN$59","v":"00:00:00"},{"$f":"Time!SXO$59","v":"00:00:00"},{"$f":"Time!SXP$59","v":"00:00:00"},{"$f":"Time!SXQ$59","v":"00:00:00"},{"$f":"Time!SXR$59","v":"00:00:00"},{"$f":"Time!SXS$59","v":"00:00:00"},{"$f":"Time!SXT$59","v":"00:00:00"},{"$f":"Time!SXU$59","v":"00:00:00"},{"$f":"Time!SXV$59","v":"00:00:00"},{"$f":"Time!SXW$59","v":"00:00:00"},{"$f":"Time!SXX$59","v":"00:00:00"},{"$f":"Time!SXY$59","v":"00:00:00"},{"$f":"Time!SXZ$59","v":"00:00:00"},{"$f":"Time!SYA$59","v":"00:00:00"},{"$f":"Time!SYB$59","v":"00:00:00"},{"$f":"Time!SYC$59","v":"00:00:00"},{"$f":"Time!SYD$59","v":"00:00:00"},{"$f":"Time!SYE$59","v":"00:00:00"},{"$f":"Time!SYF$59","v":"00:00:00"},{"$f":"Time!SYG$59","v":"00:00:00"},{"$f":"Time!SYH$59","v":"00:00:00"},{"$f":"Time!SYI$59","v":"00:00:00"},{"$f":"Time!SYJ$59","v":"00:00:00"},{"$f":"Time!SYK$59","v":"00:00:00"},{"$f":"Time!SYL$59","v":"00:00:00"},{"$f":"Time!SYM$59","v":"00:00:00"},{"$f":"Time!SYN$59","v":"00:00:00"},{"$f":"Time!SYO$59","v":"00:00:00"},{"$f":"Time!SYP$59","v":"00:00:00"},{"$f":"Time!SYQ$59","v":"00:00:00"},{"$f":"Time!SYR$59","v":"00:00:00"},{"$f":"Time!SYS$59","v":"00:00:00"},{"$f":"Time!SYT$59","v":"00:00:00"},{"$f":"Time!SYU$59","v":"00:00:00"},{"$f":"Time!SYV$59","v":"00:00:00"},{"$f":"Time!SYW$59","v":"00:00:00"},{"$f":"Time!SYX$59","v":"00:00:00"},{"$f":"Time!SYY$59","v":"00:00:00"},{"$f":"Time!SYZ$59","v":"00:00:00"},{"$f":"Time!SZA$59","v":"00:00:00"},{"$f":"Time!SZB$59","v":"00:00:00"},{"$f":"Time!SZC$59","v":"00:00:00"},{"$f":"Time!SZD$59","v":"00:00:00"},{"$f":"Time!SZE$59","v":"00:00:00"},{"$f":"Time!SZF$59","v":"00:00:00"},{"$f":"Time!SZG$59","v":"00:00:00"},{"$f":"Time!SZH$59","v":"00:00:00"},{"$f":"Time!SZI$59","v":"00:00:00"},{"$f":"Time!SZJ$59","v":"00:00:00"},{"$f":"Time!SZK$59","v":"00:00:00"},{"$f":"Time!SZL$59","v":"00:00:00"},{"$f":"Time!SZM$59","v":"00:00:00"},{"$f":"Time!SZN$59","v":"00:00:00"},{"$f":"Time!SZO$59","v":"00:00:00"},{"$f":"Time!SZP$59","v":"00:00:00"},{"$f":"Time!SZQ$59","v":"00:00:00"},{"$f":"Time!SZR$59","v":"00:00:00"},{"$f":"Time!SZS$59","v":"00:00:00"},{"$f":"Time!SZT$59","v":"00:00:00"},{"$f":"Time!SZU$59","v":"00:00:00"},{"$f":"Time!SZV$59","v":"00:00:00"},{"$f":"Time!SZW$59","v":"00:00:00"},{"$f":"Time!SZX$59","v":"00:00:00"},{"$f":"Time!SZY$59","v":"00:00:00"},{"$f":"Time!SZZ$59","v":"00:00:00"},{"$f":"Time!TAA$59","v":"00:00:00"},{"$f":"Time!TAB$59","v":"00:00:00"},{"$f":"Time!TAC$59","v":"00:00:00"},{"$f":"Time!TAD$59","v":"00:00:00"},{"$f":"Time!TAE$59","v":"00:00:00"},{"$f":"Time!TAF$59","v":"00:00:00"},{"$f":"Time!TAG$59","v":"00:00:00"},{"$f":"Time!TAH$59","v":"00:00:00"},{"$f":"Time!TAI$59","v":"00:00:00"},{"$f":"Time!TAJ$59","v":"00:00:00"},{"$f":"Time!TAK$59","v":"00:00:00"},{"$f":"Time!TAL$59","v":"00:00:00"},{"$f":"Time!TAM$59","v":"00:00:00"},{"$f":"Time!TAN$59","v":"00:00:00"},{"$f":"Time!TAO$59","v":"00:00:00"},{"$f":"Time!TAP$59","v":"00:00:00"},{"$f":"Time!TAQ$59","v":"00:00:00"},{"$f":"Time!TAR$59","v":"00:00:00"},{"$f":"Time!TAS$59","v":"00:00:00"},{"$f":"Time!TAT$59","v":"00:00:00"},{"$f":"Time!TAU$59","v":"00:00:00"},{"$f":"Time!TAV$59","v":"00:00:00"},{"$f":"Time!TAW$59","v":"00:00:00"},{"$f":"Time!TAX$59","v":"00:00:00"},{"$f":"Time!TAY$59","v":"00:00:00"},{"$f":"Time!TAZ$59","v":"00:00:00"},{"$f":"Time!TBA$59","v":"00:00:00"},{"$f":"Time!TBB$59","v":"00:00:00"},{"$f":"Time!TBC$59","v":"00:00:00"},{"$f":"Time!TBD$59","v":"00:00:00"},{"$f":"Time!TBE$59","v":"00:00:00"},{"$f":"Time!TBF$59","v":"00:00:00"},{"$f":"Time!TBG$59","v":"00:00:00"},{"$f":"Time!TBH$59","v":"00:00:00"},{"$f":"Time!TBI$59","v":"00:00:00"},{"$f":"Time!TBJ$59","v":"00:00:00"},{"$f":"Time!TBK$59","v":"00:00:00"},{"$f":"Time!TBL$59","v":"00:00:00"},{"$f":"Time!TBM$59","v":"00:00:00"},{"$f":"Time!TBN$59","v":"00:00:00"},{"$f":"Time!TBO$59","v":"00:00:00"},{"$f":"Time!TBP$59","v":"00:00:00"},{"$f":"Time!TBQ$59","v":"00:00:00"},{"$f":"Time!TBR$59","v":"00:00:00"},{"$f":"Time!TBS$59","v":"00:00:00"},{"$f":"Time!TBT$59","v":"00:00:00"},{"$f":"Time!TBU$59","v":"00:00:00"},{"$f":"Time!TBV$59","v":"00:00:00"},{"$f":"Time!TBW$59","v":"00:00:00"},{"$f":"Time!TBX$59","v":"00:00:00"},{"$f":"Time!TBY$59","v":"00:00:00"},{"$f":"Time!TBZ$59","v":"00:00:00"},{"$f":"Time!TCA$59","v":"00:00:00"},{"$f":"Time!TCB$59","v":"00:00:00"},{"$f":"Time!TCC$59","v":"00:00:00"},{"$f":"Time!TCD$59","v":"00:00:00"},{"$f":"Time!TCE$59","v":"00:00:00"},{"$f":"Time!TCF$59","v":"00:00:00"},{"$f":"Time!TCG$59","v":"00:00:00"},{"$f":"Time!TCH$59","v":"00:00:00"},{"$f":"Time!TCI$59","v":"00:00:00"},{"$f":"Time!TCJ$59","v":"00:00:00"},{"$f":"Time!TCK$59","v":"00:00:00"},{"$f":"Time!TCL$59","v":"00:00:00"},{"$f":"Time!TCM$59","v":"00:00:00"},{"$f":"Time!TCN$59","v":"00:00:00"},{"$f":"Time!TCO$59","v":"00:00:00"},{"$f":"Time!TCP$59","v":"00:00:00"},{"$f":"Time!TCQ$59","v":"00:00:00"},{"$f":"Time!TCR$59","v":"00:00:00"},{"$f":"Time!TCS$59","v":"00:00:00"},{"$f":"Time!TCT$59","v":"00:00:00"},{"$f":"Time!TCU$59","v":"00:00:00"},{"$f":"Time!TCV$59","v":"00:00:00"},{"$f":"Time!TCW$59","v":"00:00:00"},{"$f":"Time!TCX$59","v":"00:00:00"},{"$f":"Time!TCY$59","v":"00:00:00"},{"$f":"Time!TCZ$59","v":"00:00:00"},{"$f":"Time!TDA$59","v":"00:00:00"},{"$f":"Time!TDB$59","v":"00:00:00"},{"$f":"Time!TDC$59","v":"00:00:00"},{"$f":"Time!TDD$59","v":"00:00:00"},{"$f":"Time!TDE$59","v":"00:00:00"},{"$f":"Time!TDF$59","v":"00:00:00"},{"$f":"Time!TDG$59","v":"00:00:00"},{"$f":"Time!TDH$59","v":"00:00:00"},{"$f":"Time!TDI$59","v":"00:00:00"},{"$f":"Time!TDJ$59","v":"00:00:00"},{"$f":"Time!TDK$59","v":"00:00:00"},{"$f":"Time!TDL$59","v":"00:00:00"},{"$f":"Time!TDM$59","v":"00:00:00"},{"$f":"Time!TDN$59","v":"00:00:00"},{"$f":"Time!TDO$59","v":"00:00:00"},{"$f":"Time!TDP$59","v":"00:00:00"},{"$f":"Time!TDQ$59","v":"00:00:00"},{"$f":"Time!TDR$59","v":"00:00:00"},{"$f":"Time!TDS$59","v":"00:00:00"},{"$f":"Time!TDT$59","v":"00:00:00"},{"$f":"Time!TDU$59","v":"00:00:00"},{"$f":"Time!TDV$59","v":"00:00:00"},{"$f":"Time!TDW$59","v":"00:00:00"},{"$f":"Time!TDX$59","v":"00:00:00"},{"$f":"Time!TDY$59","v":"00:00:00"},{"$f":"Time!TDZ$59","v":"00:00:00"},{"$f":"Time!TEA$59","v":"00:00:00"},{"$f":"Time!TEB$59","v":"00:00:00"},{"$f":"Time!TEC$59","v":"00:00:00"},{"$f":"Time!TED$59","v":"00:00:00"},{"$f":"Time!TEE$59","v":"00:00:00"},{"$f":"Time!TEF$59","v":"00:00:00"},{"$f":"Time!TEG$59","v":"00:00:00"},{"$f":"Time!TEH$59","v":"00:00:00"},{"$f":"Time!TEI$59","v":"00:00:00"},{"$f":"Time!TEJ$59","v":"00:00:00"},{"$f":"Time!TEK$59","v":"00:00:00"},{"$f":"Time!TEL$59","v":"00:00:00"},{"$f":"Time!TEM$59","v":"00:00:00"},{"$f":"Time!TEN$59","v":"00:00:00"},{"$f":"Time!TEO$59","v":"00:00:00"},{"$f":"Time!TEP$59","v":"00:00:00"},{"$f":"Time!TEQ$59","v":"00:00:00"},{"$f":"Time!TER$59","v":"00:00:00"},{"$f":"Time!TES$59","v":"00:00:00"},{"$f":"Time!TET$59","v":"00:00:00"},{"$f":"Time!TEU$59","v":"00:00:00"},{"$f":"Time!TEV$59","v":"00:00:00"},{"$f":"Time!TEW$59","v":"00:00:00"},{"$f":"Time!TEX$59","v":"00:00:00"},{"$f":"Time!TEY$59","v":"00:00:00"},{"$f":"Time!TEZ$59","v":"00:00:00"},{"$f":"Time!TFA$59","v":"00:00:00"},{"$f":"Time!TFB$59","v":"00:00:00"},{"$f":"Time!TFC$59","v":"00:00:00"},{"$f":"Time!TFD$59","v":"00:00:00"},{"$f":"Time!TFE$59","v":"00:00:00"},{"$f":"Time!TFF$59","v":"00:00:00"},{"$f":"Time!TFG$59","v":"00:00:00"},{"$f":"Time!TFH$59","v":"00:00:00"},{"$f":"Time!TFI$59","v":"00:00:00"},{"$f":"Time!TFJ$59","v":"00:00:00"},{"$f":"Time!TFK$59","v":"00:00:00"},{"$f":"Time!TFL$59","v":"00:00:00"},{"$f":"Time!TFM$59","v":"00:00:00"},{"$f":"Time!TFN$59","v":"00:00:00"},{"$f":"Time!TFO$59","v":"00:00:00"},{"$f":"Time!TFP$59","v":"00:00:00"},{"$f":"Time!TFQ$59","v":"00:00:00"},{"$f":"Time!TFR$59","v":"00:00:00"},{"$f":"Time!TFS$59","v":"00:00:00"},{"$f":"Time!TFT$59","v":"00:00:00"},{"$f":"Time!TFU$59","v":"00:00:00"},{"$f":"Time!TFV$59","v":"00:00:00"},{"$f":"Time!TFW$59","v":"00:00:00"},{"$f":"Time!TFX$59","v":"00:00:00"},{"$f":"Time!TFY$59","v":"00:00:00"},{"$f":"Time!TFZ$59","v":"00:00:00"},{"$f":"Time!TGA$59","v":"00:00:00"},{"$f":"Time!TGB$59","v":"00:00:00"},{"$f":"Time!TGC$59","v":"00:00:00"},{"$f":"Time!TGD$59","v":"00:00:00"},{"$f":"Time!TGE$59","v":"00:00:00"},{"$f":"Time!TGF$59","v":"00:00:00"},{"$f":"Time!TGG$59","v":"00:00:00"},{"$f":"Time!TGH$59","v":"00:00:00"},{"$f":"Time!TGI$59","v":"00:00:00"},{"$f":"Time!TGJ$59","v":"00:00:00"},{"$f":"Time!TGK$59","v":"00:00:00"},{"$f":"Time!TGL$59","v":"00:00:00"},{"$f":"Time!TGM$59","v":"00:00:00"},{"$f":"Time!TGN$59","v":"00:00:00"},{"$f":"Time!TGO$59","v":"00:00:00"},{"$f":"Time!TGP$59","v":"00:00:00"},{"$f":"Time!TGQ$59","v":"00:00:00"},{"$f":"Time!TGR$59","v":"00:00:00"},{"$f":"Time!TGS$59","v":"00:00:00"},{"$f":"Time!TGT$59","v":"00:00:00"},{"$f":"Time!TGU$59","v":"00:00:00"},{"$f":"Time!TGV$59","v":"00:00:00"},{"$f":"Time!TGW$59","v":"00:00:00"},{"$f":"Time!TGX$59","v":"00:00:00"},{"$f":"Time!TGY$59","v":"00:00:00"},{"$f":"Time!TGZ$59","v":"00:00:00"},{"$f":"Time!THA$59","v":"00:00:00"},{"$f":"Time!THB$59","v":"00:00:00"},{"$f":"Time!THC$59","v":"00:00:00"},{"$f":"Time!THD$59","v":"00:00:00"},{"$f":"Time!THE$59","v":"00:00:00"},{"$f":"Time!THF$59","v":"00:00:00"},{"$f":"Time!THG$59","v":"00:00:00"},{"$f":"Time!THH$59","v":"00:00:00"},{"$f":"Time!THI$59","v":"00:00:00"},{"$f":"Time!THJ$59","v":"00:00:00"},{"$f":"Time!THK$59","v":"00:00:00"},{"$f":"Time!THL$59","v":"00:00:00"},{"$f":"Time!THM$59","v":"00:00:00"},{"$f":"Time!THN$59","v":"00:00:00"},{"$f":"Time!THO$59","v":"00:00:00"},{"$f":"Time!THP$59","v":"00:00:00"},{"$f":"Time!THQ$59","v":"00:00:00"},{"$f":"Time!THR$59","v":"00:00:00"},{"$f":"Time!THS$59","v":"00:00:00"},{"$f":"Time!THT$59","v":"00:00:00"},{"$f":"Time!THU$59","v":"00:00:00"},{"$f":"Time!THV$59","v":"00:00:00"},{"$f":"Time!THW$59","v":"00:00:00"},{"$f":"Time!THX$59","v":"00:00:00"},{"$f":"Time!THY$59","v":"00:00:00"},{"$f":"Time!THZ$59","v":"00:00:00"},{"$f":"Time!TIA$59","v":"00:00:00"},{"$f":"Time!TIB$59","v":"00:00:00"},{"$f":"Time!TIC$59","v":"00:00:00"},{"$f":"Time!TID$59","v":"00:00:00"},{"$f":"Time!TIE$59","v":"00:00:00"},{"$f":"Time!TIF$59","v":"00:00:00"},{"$f":"Time!TIG$59","v":"00:00:00"},{"$f":"Time!TIH$59","v":"00:00:00"},{"$f":"Time!TII$59","v":"00:00:00"},{"$f":"Time!TIJ$59","v":"00:00:00"},{"$f":"Time!TIK$59","v":"00:00:00"},{"$f":"Time!TIL$59","v":"00:00:00"},{"$f":"Time!TIM$59","v":"00:00:00"},{"$f":"Time!TIN$59","v":"00:00:00"},{"$f":"Time!TIO$59","v":"00:00:00"},{"$f":"Time!TIP$59","v":"00:00:00"},{"$f":"Time!TIQ$59","v":"00:00:00"},{"$f":"Time!TIR$59","v":"00:00:00"},{"$f":"Time!TIS$59","v":"00:00:00"},{"$f":"Time!TIT$59","v":"00:00:00"},{"$f":"Time!TIU$59","v":"00:00:00"},{"$f":"Time!TIV$59","v":"00:00:00"},{"$f":"Time!TIW$59","v":"00:00:00"},{"$f":"Time!TIX$59","v":"00:00:00"},{"$f":"Time!TIY$59","v":"00:00:00"},{"$f":"Time!TIZ$59","v":"00:00:00"},{"$f":"Time!TJA$59","v":"00:00:00"},{"$f":"Time!TJB$59","v":"00:00:00"},{"$f":"Time!TJC$59","v":"00:00:00"},{"$f":"Time!TJD$59","v":"00:00:00"},{"$f":"Time!TJE$59","v":"00:00:00"},{"$f":"Time!TJF$59","v":"00:00:00"},{"$f":"Time!TJG$59","v":"00:00:00"},{"$f":"Time!TJH$59","v":"00:00:00"},{"$f":"Time!TJI$59","v":"00:00:00"},{"$f":"Time!TJJ$59","v":"00:00:00"},{"$f":"Time!TJK$59","v":"00:00:00"},{"$f":"Time!TJL$59","v":"00:00:00"},{"$f":"Time!TJM$59","v":"00:00:00"},{"$f":"Time!TJN$59","v":"00:00:00"},{"$f":"Time!TJO$59","v":"00:00:00"},{"$f":"Time!TJP$59","v":"00:00:00"},{"$f":"Time!TJQ$59","v":"00:00:00"},{"$f":"Time!TJR$59","v":"00:00:00"},{"$f":"Time!TJS$59","v":"00:00:00"},{"$f":"Time!TJT$59","v":"00:00:00"},{"$f":"Time!TJU$59","v":"00:00:00"},{"$f":"Time!TJV$59","v":"00:00:00"},{"$f":"Time!TJW$59","v":"00:00:00"},{"$f":"Time!TJX$59","v":"00:00:00"},{"$f":"Time!TJY$59","v":"00:00:00"},{"$f":"Time!TJZ$59","v":"00:00:00"},{"$f":"Time!TKA$59","v":"00:00:00"},{"$f":"Time!TKB$59","v":"00:00:00"},{"$f":"Time!TKC$59","v":"00:00:00"},{"$f":"Time!TKD$59","v":"00:00:00"},{"$f":"Time!TKE$59","v":"00:00:00"},{"$f":"Time!TKF$59","v":"00:00:00"},{"$f":"Time!TKG$59","v":"00:00:00"},{"$f":"Time!TKH$59","v":"00:00:00"},{"$f":"Time!TKI$59","v":"00:00:00"},{"$f":"Time!TKJ$59","v":"00:00:00"},{"$f":"Time!TKK$59","v":"00:00:00"},{"$f":"Time!TKL$59","v":"00:00:00"},{"$f":"Time!TKM$59","v":"00:00:00"},{"$f":"Time!TKN$59","v":"00:00:00"},{"$f":"Time!TKO$59","v":"00:00:00"},{"$f":"Time!TKP$59","v":"00:00:00"},{"$f":"Time!TKQ$59","v":"00:00:00"},{"$f":"Time!TKR$59","v":"00:00:00"},{"$f":"Time!TKS$59","v":"00:00:00"},{"$f":"Time!TKT$59","v":"00:00:00"},{"$f":"Time!TKU$59","v":"00:00:00"},{"$f":"Time!TKV$59","v":"00:00:00"},{"$f":"Time!TKW$59","v":"00:00:00"},{"$f":"Time!TKX$59","v":"00:00:00"},{"$f":"Time!TKY$59","v":"00:00:00"},{"$f":"Time!TKZ$59","v":"00:00:00"},{"$f":"Time!TLA$59","v":"00:00:00"},{"$f":"Time!TLB$59","v":"00:00:00"},{"$f":"Time!TLC$59","v":"00:00:00"},{"$f":"Time!TLD$59","v":"00:00:00"},{"$f":"Time!TLE$59","v":"00:00:00"},{"$f":"Time!TLF$59","v":"00:00:00"},{"$f":"Time!TLG$59","v":"00:00:00"},{"$f":"Time!TLH$59","v":"00:00:00"},{"$f":"Time!TLI$59","v":"00:00:00"},{"$f":"Time!TLJ$59","v":"00:00:00"},{"$f":"Time!TLK$59","v":"00:00:00"},{"$f":"Time!TLL$59","v":"00:00:00"},{"$f":"Time!TLM$59","v":"00:00:00"},{"$f":"Time!TLN$59","v":"00:00:00"},{"$f":"Time!TLO$59","v":"00:00:00"},{"$f":"Time!TLP$59","v":"00:00:00"},{"$f":"Time!TLQ$59","v":"00:00:00"},{"$f":"Time!TLR$59","v":"00:00:00"},{"$f":"Time!TLS$59","v":"00:00:00"},{"$f":"Time!TLT$59","v":"00:00:00"},{"$f":"Time!TLU$59","v":"00:00:00"},{"$f":"Time!TLV$59","v":"00:00:00"},{"$f":"Time!TLW$59","v":"00:00:00"},{"$f":"Time!TLX$59","v":"00:00:00"},{"$f":"Time!TLY$59","v":"00:00:00"},{"$f":"Time!TLZ$59","v":"00:00:00"},{"$f":"Time!TMA$59","v":"00:00:00"},{"$f":"Time!TMB$59","v":"00:00:00"},{"$f":"Time!TMC$59","v":"00:00:00"},{"$f":"Time!TMD$59","v":"00:00:00"},{"$f":"Time!TME$59","v":"00:00:00"},{"$f":"Time!TMF$59","v":"00:00:00"},{"$f":"Time!TMG$59","v":"00:00:00"},{"$f":"Time!TMH$59","v":"00:00:00"},{"$f":"Time!TMI$59","v":"00:00:00"},{"$f":"Time!TMJ$59","v":"00:00:00"},{"$f":"Time!TMK$59","v":"00:00:00"},{"$f":"Time!TML$59","v":"00:00:00"},{"$f":"Time!TMM$59","v":"00:00:00"},{"$f":"Time!TMN$59","v":"00:00:00"},{"$f":"Time!TMO$59","v":"00:00:00"},{"$f":"Time!TMP$59","v":"00:00:00"},{"$f":"Time!TMQ$59","v":"00:00:00"},{"$f":"Time!TMR$59","v":"00:00:00"},{"$f":"Time!TMS$59","v":"00:00:00"},{"$f":"Time!TMT$59","v":"00:00:00"},{"$f":"Time!TMU$59","v":"00:00:00"},{"$f":"Time!TMV$59","v":"00:00:00"},{"$f":"Time!TMW$59","v":"00:00:00"},{"$f":"Time!TMX$59","v":"00:00:00"},{"$f":"Time!TMY$59","v":"00:00:00"},{"$f":"Time!TMZ$59","v":"00:00:00"},{"$f":"Time!TNA$59","v":"00:00:00"},{"$f":"Time!TNB$59","v":"00:00:00"},{"$f":"Time!TNC$59","v":"00:00:00"},{"$f":"Time!TND$59","v":"00:00:00"},{"$f":"Time!TNE$59","v":"00:00:00"},{"$f":"Time!TNF$59","v":"00:00:00"},{"$f":"Time!TNG$59","v":"00:00:00"},{"$f":"Time!TNH$59","v":"00:00:00"},{"$f":"Time!TNI$59","v":"00:00:00"},{"$f":"Time!TNJ$59","v":"00:00:00"},{"$f":"Time!TNK$59","v":"00:00:00"},{"$f":"Time!TNL$59","v":"00:00:00"},{"$f":"Time!TNM$59","v":"00:00:00"},{"$f":"Time!TNN$59","v":"00:00:00"},{"$f":"Time!TNO$59","v":"00:00:00"},{"$f":"Time!TNP$59","v":"00:00:00"},{"$f":"Time!TNQ$59","v":"00:00:00"},{"$f":"Time!TNR$59","v":"00:00:00"},{"$f":"Time!TNS$59","v":"00:00:00"},{"$f":"Time!TNT$59","v":"00:00:00"},{"$f":"Time!TNU$59","v":"00:00:00"},{"$f":"Time!TNV$59","v":"00:00:00"},{"$f":"Time!TNW$59","v":"00:00:00"},{"$f":"Time!TNX$59","v":"00:00:00"},{"$f":"Time!TNY$59","v":"00:00:00"},{"$f":"Time!TNZ$59","v":"00:00:00"},{"$f":"Time!TOA$59","v":"00:00:00"},{"$f":"Time!TOB$59","v":"00:00:00"},{"$f":"Time!TOC$59","v":"00:00:00"},{"$f":"Time!TOD$59","v":"00:00:00"},{"$f":"Time!TOE$59","v":"00:00:00"},{"$f":"Time!TOF$59","v":"00:00:00"},{"$f":"Time!TOG$59","v":"00:00:00"},{"$f":"Time!TOH$59","v":"00:00:00"},{"$f":"Time!TOI$59","v":"00:00:00"},{"$f":"Time!TOJ$59","v":"00:00:00"},{"$f":"Time!TOK$59","v":"00:00:00"},{"$f":"Time!TOL$59","v":"00:00:00"},{"$f":"Time!TOM$59","v":"00:00:00"},{"$f":"Time!TON$59","v":"00:00:00"},{"$f":"Time!TOO$59","v":"00:00:00"},{"$f":"Time!TOP$59","v":"00:00:00"},{"$f":"Time!TOQ$59","v":"00:00:00"},{"$f":"Time!TOR$59","v":"00:00:00"},{"$f":"Time!TOS$59","v":"00:00:00"},{"$f":"Time!TOT$59","v":"00:00:00"},{"$f":"Time!TOU$59","v":"00:00:00"},{"$f":"Time!TOV$59","v":"00:00:00"},{"$f":"Time!TOW$59","v":"00:00:00"},{"$f":"Time!TOX$59","v":"00:00:00"},{"$f":"Time!TOY$59","v":"00:00:00"},{"$f":"Time!TOZ$59","v":"00:00:00"},{"$f":"Time!TPA$59","v":"00:00:00"},{"$f":"Time!TPB$59","v":"00:00:00"},{"$f":"Time!TPC$59","v":"00:00:00"},{"$f":"Time!TPD$59","v":"00:00:00"},{"$f":"Time!TPE$59","v":"00:00:00"},{"$f":"Time!TPF$59","v":"00:00:00"},{"$f":"Time!TPG$59","v":"00:00:00"},{"$f":"Time!TPH$59","v":"00:00:00"},{"$f":"Time!TPI$59","v":"00:00:00"},{"$f":"Time!TPJ$59","v":"00:00:00"},{"$f":"Time!TPK$59","v":"00:00:00"},{"$f":"Time!TPL$59","v":"00:00:00"},{"$f":"Time!TPM$59","v":"00:00:00"},{"$f":"Time!TPN$59","v":"00:00:00"},{"$f":"Time!TPO$59","v":"00:00:00"},{"$f":"Time!TPP$59","v":"00:00:00"},{"$f":"Time!TPQ$59","v":"00:00:00"},{"$f":"Time!TPR$59","v":"00:00:00"},{"$f":"Time!TPS$59","v":"00:00:00"},{"$f":"Time!TPT$59","v":"00:00:00"},{"$f":"Time!TPU$59","v":"00:00:00"},{"$f":"Time!TPV$59","v":"00:00:00"},{"$f":"Time!TPW$59","v":"00:00:00"},{"$f":"Time!TPX$59","v":"00:00:00"},{"$f":"Time!TPY$59","v":"00:00:00"},{"$f":"Time!TPZ$59","v":"00:00:00"},{"$f":"Time!TQA$59","v":"00:00:00"},{"$f":"Time!TQB$59","v":"00:00:00"},{"$f":"Time!TQC$59","v":"00:00:00"},{"$f":"Time!TQD$59","v":"00:00:00"},{"$f":"Time!TQE$59","v":"00:00:00"},{"$f":"Time!TQF$59","v":"00:00:00"},{"$f":"Time!TQG$59","v":"00:00:00"},{"$f":"Time!TQH$59","v":"00:00:00"},{"$f":"Time!TQI$59","v":"00:00:00"},{"$f":"Time!TQJ$59","v":"00:00:00"},{"$f":"Time!TQK$59","v":"00:00:00"},{"$f":"Time!TQL$59","v":"00:00:00"},{"$f":"Time!TQM$59","v":"00:00:00"},{"$f":"Time!TQN$59","v":"00:00:00"},{"$f":"Time!TQO$59","v":"00:00:00"},{"$f":"Time!TQP$59","v":"00:00:00"},{"$f":"Time!TQQ$59","v":"00:00:00"},{"$f":"Time!TQR$59","v":"00:00:00"},{"$f":"Time!TQS$59","v":"00:00:00"},{"$f":"Time!TQT$59","v":"00:00:00"},{"$f":"Time!TQU$59","v":"00:00:00"},{"$f":"Time!TQV$59","v":"00:00:00"},{"$f":"Time!TQW$59","v":"00:00:00"},{"$f":"Time!TQX$59","v":"00:00:00"},{"$f":"Time!TQY$59","v":"00:00:00"},{"$f":"Time!TQZ$59","v":"00:00:00"},{"$f":"Time!TRA$59","v":"00:00:00"},{"$f":"Time!TRB$59","v":"00:00:00"},{"$f":"Time!TRC$59","v":"00:00:00"},{"$f":"Time!TRD$59","v":"00:00:00"},{"$f":"Time!TRE$59","v":"00:00:00"},{"$f":"Time!TRF$59","v":"00:00:00"},{"$f":"Time!TRG$59","v":"00:00:00"},{"$f":"Time!TRH$59","v":"00:00:00"},{"$f":"Time!TRI$59","v":"00:00:00"},{"$f":"Time!TRJ$59","v":"00:00:00"},{"$f":"Time!TRK$59","v":"00:00:00"},{"$f":"Time!TRL$59","v":"00:00:00"},{"$f":"Time!TRM$59","v":"00:00:00"},{"$f":"Time!TRN$59","v":"00:00:00"},{"$f":"Time!TRO$59","v":"00:00:00"},{"$f":"Time!TRP$59","v":"00:00:00"},{"$f":"Time!TRQ$59","v":"00:00:00"},{"$f":"Time!TRR$59","v":"00:00:00"},{"$f":"Time!TRS$59","v":"00:00:00"},{"$f":"Time!TRT$59","v":"00:00:00"},{"$f":"Time!TRU$59","v":"00:00:00"},{"$f":"Time!TRV$59","v":"00:00:00"},{"$f":"Time!TRW$59","v":"00:00:00"},{"$f":"Time!TRX$59","v":"00:00:00"},{"$f":"Time!TRY$59","v":"00:00:00"},{"$f":"Time!TRZ$59","v":"00:00:00"},{"$f":"Time!TSA$59","v":"00:00:00"},{"$f":"Time!TSB$59","v":"00:00:00"},{"$f":"Time!TSC$59","v":"00:00:00"},{"$f":"Time!TSD$59","v":"00:00:00"},{"$f":"Time!TSE$59","v":"00:00:00"},{"$f":"Time!TSF$59","v":"00:00:00"},{"$f":"Time!TSG$59","v":"00:00:00"},{"$f":"Time!TSH$59","v":"00:00:00"},{"$f":"Time!TSI$59","v":"00:00:00"},{"$f":"Time!TSJ$59","v":"00:00:00"},{"$f":"Time!TSK$59","v":"00:00:00"},{"$f":"Time!TSL$59","v":"00:00:00"},{"$f":"Time!TSM$59","v":"00:00:00"},{"$f":"Time!TSN$59","v":"00:00:00"},{"$f":"Time!TSO$59","v":"00:00:00"},{"$f":"Time!TSP$59","v":"00:00:00"},{"$f":"Time!TSQ$59","v":"00:00:00"},{"$f":"Time!TSR$59","v":"00:00:00"},{"$f":"Time!TSS$59","v":"00:00:00"},{"$f":"Time!TST$59","v":"00:00:00"},{"$f":"Time!TSU$59","v":"00:00:00"},{"$f":"Time!TSV$59","v":"00:00:00"},{"$f":"Time!TSW$59","v":"00:00:00"},{"$f":"Time!TSX$59","v":"00:00:00"},{"$f":"Time!TSY$59","v":"00:00:00"},{"$f":"Time!TSZ$59","v":"00:00:00"},{"$f":"Time!TTA$59","v":"00:00:00"},{"$f":"Time!TTB$59","v":"00:00:00"},{"$f":"Time!TTC$59","v":"00:00:00"},{"$f":"Time!TTD$59","v":"00:00:00"},{"$f":"Time!TTE$59","v":"00:00:00"},{"$f":"Time!TTF$59","v":"00:00:00"},{"$f":"Time!TTG$59","v":"00:00:00"},{"$f":"Time!TTH$59","v":"00:00:00"},{"$f":"Time!TTI$59","v":"00:00:00"},{"$f":"Time!TTJ$59","v":"00:00:00"},{"$f":"Time!TTK$59","v":"00:00:00"},{"$f":"Time!TTL$59","v":"00:00:00"},{"$f":"Time!TTM$59","v":"00:00:00"},{"$f":"Time!TTN$59","v":"00:00:00"},{"$f":"Time!TTO$59","v":"00:00:00"},{"$f":"Time!TTP$59","v":"00:00:00"},{"$f":"Time!TTQ$59","v":"00:00:00"},{"$f":"Time!TTR$59","v":"00:00:00"},{"$f":"Time!TTS$59","v":"00:00:00"},{"$f":"Time!TTT$59","v":"00:00:00"},{"$f":"Time!TTU$59","v":"00:00:00"},{"$f":"Time!TTV$59","v":"00:00:00"},{"$f":"Time!TTW$59","v":"00:00:00"},{"$f":"Time!TTX$59","v":"00:00:00"},{"$f":"Time!TTY$59","v":"00:00:00"},{"$f":"Time!TTZ$59","v":"00:00:00"},{"$f":"Time!TUA$59","v":"00:00:00"},{"$f":"Time!TUB$59","v":"00:00:00"},{"$f":"Time!TUC$59","v":"00:00:00"},{"$f":"Time!TUD$59","v":"00:00:00"},{"$f":"Time!TUE$59","v":"00:00:00"},{"$f":"Time!TUF$59","v":"00:00:00"},{"$f":"Time!TUG$59","v":"00:00:00"},{"$f":"Time!TUH$59","v":"00:00:00"},{"$f":"Time!TUI$59","v":"00:00:00"},{"$f":"Time!TUJ$59","v":"00:00:00"},{"$f":"Time!TUK$59","v":"00:00:00"},{"$f":"Time!TUL$59","v":"00:00:00"},{"$f":"Time!TUM$59","v":"00:00:00"},{"$f":"Time!TUN$59","v":"00:00:00"},{"$f":"Time!TUO$59","v":"00:00:00"},{"$f":"Time!TUP$59","v":"00:00:00"},{"$f":"Time!TUQ$59","v":"00:00:00"},{"$f":"Time!TUR$59","v":"00:00:00"},{"$f":"Time!TUS$59","v":"00:00:00"},{"$f":"Time!TUT$59","v":"00:00:00"},{"$f":"Time!TUU$59","v":"00:00:00"},{"$f":"Time!TUV$59","v":"00:00:00"},{"$f":"Time!TUW$59","v":"00:00:00"},{"$f":"Time!TUX$59","v":"00:00:00"},{"$f":"Time!TUY$59","v":"00:00:00"},{"$f":"Time!TUZ$59","v":"00:00:00"},{"$f":"Time!TVA$59","v":"00:00:00"},{"$f":"Time!TVB$59","v":"00:00:00"},{"$f":"Time!TVC$59","v":"00:00:00"},{"$f":"Time!TVD$59","v":"00:00:00"},{"$f":"Time!TVE$59","v":"00:00:00"},{"$f":"Time!TVF$59","v":"00:00:00"},{"$f":"Time!TVG$59","v":"00:00:00"},{"$f":"Time!TVH$59","v":"00:00:00"},{"$f":"Time!TVI$59","v":"00:00:00"},{"$f":"Time!TVJ$59","v":"00:00:00"},{"$f":"Time!TVK$59","v":"00:00:00"},{"$f":"Time!TVL$59","v":"00:00:00"},{"$f":"Time!TVM$59","v":"00:00:00"},{"$f":"Time!TVN$59","v":"00:00:00"},{"$f":"Time!TVO$59","v":"00:00:00"},{"$f":"Time!TVP$59","v":"00:00:00"},{"$f":"Time!TVQ$59","v":"00:00:00"},{"$f":"Time!TVR$59","v":"00:00:00"},{"$f":"Time!TVS$59","v":"00:00:00"},{"$f":"Time!TVT$59","v":"00:00:00"},{"$f":"Time!TVU$59","v":"00:00:00"},{"$f":"Time!TVV$59","v":"00:00:00"},{"$f":"Time!TVW$59","v":"00:00:00"},{"$f":"Time!TVX$59","v":"00:00:00"},{"$f":"Time!TVY$59","v":"00:00:00"},{"$f":"Time!TVZ$59","v":"00:00:00"},{"$f":"Time!TWA$59","v":"00:00:00"},{"$f":"Time!TWB$59","v":"00:00:00"},{"$f":"Time!TWC$59","v":"00:00:00"},{"$f":"Time!TWD$59","v":"00:00:00"},{"$f":"Time!TWE$59","v":"00:00:00"},{"$f":"Time!TWF$59","v":"00:00:00"},{"$f":"Time!TWG$59","v":"00:00:00"},{"$f":"Time!TWH$59","v":"00:00:00"},{"$f":"Time!TWI$59","v":"00:00:00"},{"$f":"Time!TWJ$59","v":"00:00:00"},{"$f":"Time!TWK$59","v":"00:00:00"},{"$f":"Time!TWL$59","v":"00:00:00"},{"$f":"Time!TWM$59","v":"00:00:00"},{"$f":"Time!TWN$59","v":"00:00:00"},{"$f":"Time!TWO$59","v":"00:00:00"},{"$f":"Time!TWP$59","v":"00:00:00"},{"$f":"Time!TWQ$59","v":"00:00:00"},{"$f":"Time!TWR$59","v":"00:00:00"},{"$f":"Time!TWS$59","v":"00:00:00"},{"$f":"Time!TWT$59","v":"00:00:00"},{"$f":"Time!TWU$59","v":"00:00:00"},{"$f":"Time!TWV$59","v":"00:00:00"},{"$f":"Time!TWW$59","v":"00:00:00"},{"$f":"Time!TWX$59","v":"00:00:00"},{"$f":"Time!TWY$59","v":"00:00:00"},{"$f":"Time!TWZ$59","v":"00:00:00"},{"$f":"Time!TXA$59","v":"00:00:00"},{"$f":"Time!TXB$59","v":"00:00:00"},{"$f":"Time!TXC$59","v":"00:00:00"},{"$f":"Time!TXD$59","v":"00:00:00"},{"$f":"Time!TXE$59","v":"00:00:00"},{"$f":"Time!TXF$59","v":"00:00:00"},{"$f":"Time!TXG$59","v":"00:00:00"},{"$f":"Time!TXH$59","v":"00:00:00"},{"$f":"Time!TXI$59","v":"00:00:00"},{"$f":"Time!TXJ$59","v":"00:00:00"},{"$f":"Time!TXK$59","v":"00:00:00"},{"$f":"Time!TXL$59","v":"00:00:00"},{"$f":"Time!TXM$59","v":"00:00:00"},{"$f":"Time!TXN$59","v":"00:00:00"},{"$f":"Time!TXO$59","v":"00:00:00"},{"$f":"Time!TXP$59","v":"00:00:00"},{"$f":"Time!TXQ$59","v":"00:00:00"},{"$f":"Time!TXR$59","v":"00:00:00"},{"$f":"Time!TXS$59","v":"00:00:00"},{"$f":"Time!TXT$59","v":"00:00:00"},{"$f":"Time!TXU$59","v":"00:00:00"},{"$f":"Time!TXV$59","v":"00:00:00"},{"$f":"Time!TXW$59","v":"00:00:00"},{"$f":"Time!TXX$59","v":"00:00:00"},{"$f":"Time!TXY$59","v":"00:00:00"},{"$f":"Time!TXZ$59","v":"00:00:00"},{"$f":"Time!TYA$59","v":"00:00:00"},{"$f":"Time!TYB$59","v":"00:00:00"},{"$f":"Time!TYC$59","v":"00:00:00"},{"$f":"Time!TYD$59","v":"00:00:00"},{"$f":"Time!TYE$59","v":"00:00:00"},{"$f":"Time!TYF$59","v":"00:00:00"},{"$f":"Time!TYG$59","v":"00:00:00"},{"$f":"Time!TYH$59","v":"00:00:00"},{"$f":"Time!TYI$59","v":"00:00:00"},{"$f":"Time!TYJ$59","v":"00:00:00"},{"$f":"Time!TYK$59","v":"00:00:00"},{"$f":"Time!TYL$59","v":"00:00:00"},{"$f":"Time!TYM$59","v":"00:00:00"},{"$f":"Time!TYN$59","v":"00:00:00"},{"$f":"Time!TYO$59","v":"00:00:00"},{"$f":"Time!TYP$59","v":"00:00:00"},{"$f":"Time!TYQ$59","v":"00:00:00"},{"$f":"Time!TYR$59","v":"00:00:00"},{"$f":"Time!TYS$59","v":"00:00:00"},{"$f":"Time!TYT$59","v":"00:00:00"},{"$f":"Time!TYU$59","v":"00:00:00"},{"$f":"Time!TYV$59","v":"00:00:00"},{"$f":"Time!TYW$59","v":"00:00:00"},{"$f":"Time!TYX$59","v":"00:00:00"},{"$f":"Time!TYY$59","v":"00:00:00"},{"$f":"Time!TYZ$59","v":"00:00:00"},{"$f":"Time!TZA$59","v":"00:00:00"},{"$f":"Time!TZB$59","v":"00:00:00"},{"$f":"Time!TZC$59","v":"00:00:00"},{"$f":"Time!TZD$59","v":"00:00:00"},{"$f":"Time!TZE$59","v":"00:00:00"},{"$f":"Time!TZF$59","v":"00:00:00"},{"$f":"Time!TZG$59","v":"00:00:00"},{"$f":"Time!TZH$59","v":"00:00:00"},{"$f":"Time!TZI$59","v":"00:00:00"},{"$f":"Time!TZJ$59","v":"00:00:00"},{"$f":"Time!TZK$59","v":"00:00:00"},{"$f":"Time!TZL$59","v":"00:00:00"},{"$f":"Time!TZM$59","v":"00:00:00"},{"$f":"Time!TZN$59","v":"00:00:00"},{"$f":"Time!TZO$59","v":"00:00:00"},{"$f":"Time!TZP$59","v":"00:00:00"},{"$f":"Time!TZQ$59","v":"00:00:00"},{"$f":"Time!TZR$59","v":"00:00:00"},{"$f":"Time!TZS$59","v":"00:00:00"},{"$f":"Time!TZT$59","v":"00:00:00"},{"$f":"Time!TZU$59","v":"00:00:00"},{"$f":"Time!TZV$59","v":"00:00:00"},{"$f":"Time!TZW$59","v":"00:00:00"},{"$f":"Time!TZX$59","v":"00:00:00"},{"$f":"Time!TZY$59","v":"00:00:00"},{"$f":"Time!TZZ$59","v":"00:00:00"},{"$f":"Time!UAA$59","v":"00:00:00"},{"$f":"Time!UAB$59","v":"00:00:00"},{"$f":"Time!UAC$59","v":"00:00:00"},{"$f":"Time!UAD$59","v":"00:00:00"},{"$f":"Time!UAE$59","v":"00:00:00"},{"$f":"Time!UAF$59","v":"00:00:00"},{"$f":"Time!UAG$59","v":"00:00:00"},{"$f":"Time!UAH$59","v":"00:00:00"},{"$f":"Time!UAI$59","v":"00:00:00"},{"$f":"Time!UAJ$59","v":"00:00:00"},{"$f":"Time!UAK$59","v":"00:00:00"},{"$f":"Time!UAL$59","v":"00:00:00"},{"$f":"Time!UAM$59","v":"00:00:00"},{"$f":"Time!UAN$59","v":"00:00:00"},{"$f":"Time!UAO$59","v":"00:00:00"},{"$f":"Time!UAP$59","v":"00:00:00"},{"$f":"Time!UAQ$59","v":"00:00:00"},{"$f":"Time!UAR$59","v":"00:00:00"},{"$f":"Time!UAS$59","v":"00:00:00"},{"$f":"Time!UAT$59","v":"00:00:00"},{"$f":"Time!UAU$59","v":"00:00:00"},{"$f":"Time!UAV$59","v":"00:00:00"},{"$f":"Time!UAW$59","v":"00:00:00"},{"$f":"Time!UAX$59","v":"00:00:00"},{"$f":"Time!UAY$59","v":"00:00:00"},{"$f":"Time!UAZ$59","v":"00:00:00"},{"$f":"Time!UBA$59","v":"00:00:00"},{"$f":"Time!UBB$59","v":"00:00:00"},{"$f":"Time!UBC$59","v":"00:00:00"},{"$f":"Time!UBD$59","v":"00:00:00"},{"$f":"Time!UBE$59","v":"00:00:00"},{"$f":"Time!UBF$59","v":"00:00:00"},{"$f":"Time!UBG$59","v":"00:00:00"},{"$f":"Time!UBH$59","v":"00:00:00"},{"$f":"Time!UBI$59","v":"00:00:00"},{"$f":"Time!UBJ$59","v":"00:00:00"},{"$f":"Time!UBK$59","v":"00:00:00"},{"$f":"Time!UBL$59","v":"00:00:00"},{"$f":"Time!UBM$59","v":"00:00:00"},{"$f":"Time!UBN$59","v":"00:00:00"},{"$f":"Time!UBO$59","v":"00:00:00"},{"$f":"Time!UBP$59","v":"00:00:00"},{"$f":"Time!UBQ$59","v":"00:00:00"},{"$f":"Time!UBR$59","v":"00:00:00"},{"$f":"Time!UBS$59","v":"00:00:00"},{"$f":"Time!UBT$59","v":"00:00:00"},{"$f":"Time!UBU$59","v":"00:00:00"},{"$f":"Time!UBV$59","v":"00:00:00"},{"$f":"Time!UBW$59","v":"00:00:00"},{"$f":"Time!UBX$59","v":"00:00:00"},{"$f":"Time!UBY$59","v":"00:00:00"},{"$f":"Time!UBZ$59","v":"00:00:00"},{"$f":"Time!UCA$59","v":"00:00:00"},{"$f":"Time!UCB$59","v":"00:00:00"},{"$f":"Time!UCC$59","v":"00:00:00"},{"$f":"Time!UCD$59","v":"00:00:00"},{"$f":"Time!UCE$59","v":"00:00:00"},{"$f":"Time!UCF$59","v":"00:00:00"},{"$f":"Time!UCG$59","v":"00:00:00"},{"$f":"Time!UCH$59","v":"00:00:00"},{"$f":"Time!UCI$59","v":"00:00:00"},{"$f":"Time!UCJ$59","v":"00:00:00"},{"$f":"Time!UCK$59","v":"00:00:00"},{"$f":"Time!UCL$59","v":"00:00:00"},{"$f":"Time!UCM$59","v":"00:00:00"},{"$f":"Time!UCN$59","v":"00:00:00"},{"$f":"Time!UCO$59","v":"00:00:00"},{"$f":"Time!UCP$59","v":"00:00:00"},{"$f":"Time!UCQ$59","v":"00:00:00"},{"$f":"Time!UCR$59","v":"00:00:00"},{"$f":"Time!UCS$59","v":"00:00:00"},{"$f":"Time!UCT$59","v":"00:00:00"},{"$f":"Time!UCU$59","v":"00:00:00"},{"$f":"Time!UCV$59","v":"00:00:00"},{"$f":"Time!UCW$59","v":"00:00:00"},{"$f":"Time!UCX$59","v":"00:00:00"},{"$f":"Time!UCY$59","v":"00:00:00"},{"$f":"Time!UCZ$59","v":"00:00:00"},{"$f":"Time!UDA$59","v":"00:00:00"},{"$f":"Time!UDB$59","v":"00:00:00"},{"$f":"Time!UDC$59","v":"00:00:00"},{"$f":"Time!UDD$59","v":"00:00:00"},{"$f":"Time!UDE$59","v":"00:00:00"},{"$f":"Time!UDF$59","v":"00:00:00"},{"$f":"Time!UDG$59","v":"00:00:00"},{"$f":"Time!UDH$59","v":"00:00:00"},{"$f":"Time!UDI$59","v":"00:00:00"},{"$f":"Time!UDJ$59","v":"00:00:00"},{"$f":"Time!UDK$59","v":"00:00:00"},{"$f":"Time!UDL$59","v":"00:00:00"},{"$f":"Time!UDM$59","v":"00:00:00"},{"$f":"Time!UDN$59","v":"00:00:00"},{"$f":"Time!UDO$59","v":"00:00:00"},{"$f":"Time!UDP$59","v":"00:00:00"},{"$f":"Time!UDQ$59","v":"00:00:00"},{"$f":"Time!UDR$59","v":"00:00:00"},{"$f":"Time!UDS$59","v":"00:00:00"},{"$f":"Time!UDT$59","v":"00:00:00"},{"$f":"Time!UDU$59","v":"00:00:00"},{"$f":"Time!UDV$59","v":"00:00:00"},{"$f":"Time!UDW$59","v":"00:00:00"},{"$f":"Time!UDX$59","v":"00:00:00"},{"$f":"Time!UDY$59","v":"00:00:00"},{"$f":"Time!UDZ$59","v":"00:00:00"},{"$f":"Time!UEA$59","v":"00:00:00"},{"$f":"Time!UEB$59","v":"00:00:00"},{"$f":"Time!UEC$59","v":"00:00:00"},{"$f":"Time!UED$59","v":"00:00:00"},{"$f":"Time!UEE$59","v":"00:00:00"},{"$f":"Time!UEF$59","v":"00:00:00"},{"$f":"Time!UEG$59","v":"00:00:00"},{"$f":"Time!UEH$59","v":"00:00:00"},{"$f":"Time!UEI$59","v":"00:00:00"},{"$f":"Time!UEJ$59","v":"00:00:00"},{"$f":"Time!UEK$59","v":"00:00:00"},{"$f":"Time!UEL$59","v":"00:00:00"},{"$f":"Time!UEM$59","v":"00:00:00"},{"$f":"Time!UEN$59","v":"00:00:00"},{"$f":"Time!UEO$59","v":"00:00:00"},{"$f":"Time!UEP$59","v":"00:00:00"},{"$f":"Time!UEQ$59","v":"00:00:00"},{"$f":"Time!UER$59","v":"00:00:00"},{"$f":"Time!UES$59","v":"00:00:00"},{"$f":"Time!UET$59","v":"00:00:00"},{"$f":"Time!UEU$59","v":"00:00:00"},{"$f":"Time!UEV$59","v":"00:00:00"},{"$f":"Time!UEW$59","v":"00:00:00"},{"$f":"Time!UEX$59","v":"00:00:00"},{"$f":"Time!UEY$59","v":"00:00:00"},{"$f":"Time!UEZ$59","v":"00:00:00"},{"$f":"Time!UFA$59","v":"00:00:00"},{"$f":"Time!UFB$59","v":"00:00:00"},{"$f":"Time!UFC$59","v":"00:00:00"},{"$f":"Time!UFD$59","v":"00:00:00"},{"$f":"Time!UFE$59","v":"00:00:00"},{"$f":"Time!UFF$59","v":"00:00:00"},{"$f":"Time!UFG$59","v":"00:00:00"},{"$f":"Time!UFH$59","v":"00:00:00"},{"$f":"Time!UFI$59","v":"00:00:00"},{"$f":"Time!UFJ$59","v":"00:00:00"},{"$f":"Time!UFK$59","v":"00:00:00"},{"$f":"Time!UFL$59","v":"00:00:00"},{"$f":"Time!UFM$59","v":"00:00:00"},{"$f":"Time!UFN$59","v":"00:00:00"},{"$f":"Time!UFO$59","v":"00:00:00"},{"$f":"Time!UFP$59","v":"00:00:00"},{"$f":"Time!UFQ$59","v":"00:00:00"},{"$f":"Time!UFR$59","v":"00:00:00"},{"$f":"Time!UFS$59","v":"00:00:00"},{"$f":"Time!UFT$59","v":"00:00:00"},{"$f":"Time!UFU$59","v":"00:00:00"},{"$f":"Time!UFV$59","v":"00:00:00"},{"$f":"Time!UFW$59","v":"00:00:00"},{"$f":"Time!UFX$59","v":"00:00:00"},{"$f":"Time!UFY$59","v":"00:00:00"},{"$f":"Time!UFZ$59","v":"00:00:00"},{"$f":"Time!UGA$59","v":"00:00:00"},{"$f":"Time!UGB$59","v":"00:00:00"},{"$f":"Time!UGC$59","v":"00:00:00"},{"$f":"Time!UGD$59","v":"00:00:00"},{"$f":"Time!UGE$59","v":"00:00:00"},{"$f":"Time!UGF$59","v":"00:00:00"},{"$f":"Time!UGG$59","v":"00:00:00"},{"$f":"Time!UGH$59","v":"00:00:00"},{"$f":"Time!UGI$59","v":"00:00:00"},{"$f":"Time!UGJ$59","v":"00:00:00"},{"$f":"Time!UGK$59","v":"00:00:00"},{"$f":"Time!UGL$59","v":"00:00:00"},{"$f":"Time!UGM$59","v":"00:00:00"},{"$f":"Time!UGN$59","v":"00:00:00"},{"$f":"Time!UGO$59","v":"00:00:00"},{"$f":"Time!UGP$59","v":"00:00:00"},{"$f":"Time!UGQ$59","v":"00:00:00"},{"$f":"Time!UGR$59","v":"00:00:00"},{"$f":"Time!UGS$59","v":"00:00:00"},{"$f":"Time!UGT$59","v":"00:00:00"},{"$f":"Time!UGU$59","v":"00:00:00"},{"$f":"Time!UGV$59","v":"00:00:00"},{"$f":"Time!UGW$59","v":"00:00:00"},{"$f":"Time!UGX$59","v":"00:00:00"},{"$f":"Time!UGY$59","v":"00:00:00"},{"$f":"Time!UGZ$59","v":"00:00:00"},{"$f":"Time!UHA$59","v":"00:00:00"},{"$f":"Time!UHB$59","v":"00:00:00"},{"$f":"Time!UHC$59","v":"00:00:00"},{"$f":"Time!UHD$59","v":"00:00:00"},{"$f":"Time!UHE$59","v":"00:00:00"},{"$f":"Time!UHF$59","v":"00:00:00"},{"$f":"Time!UHG$59","v":"00:00:00"},{"$f":"Time!UHH$59","v":"00:00:00"},{"$f":"Time!UHI$59","v":"00:00:00"},{"$f":"Time!UHJ$59","v":"00:00:00"},{"$f":"Time!UHK$59","v":"00:00:00"},{"$f":"Time!UHL$59","v":"00:00:00"},{"$f":"Time!UHM$59","v":"00:00:00"},{"$f":"Time!UHN$59","v":"00:00:00"},{"$f":"Time!UHO$59","v":"00:00:00"},{"$f":"Time!UHP$59","v":"00:00:00"},{"$f":"Time!UHQ$59","v":"00:00:00"},{"$f":"Time!UHR$59","v":"00:00:00"},{"$f":"Time!UHS$59","v":"00:00:00"},{"$f":"Time!UHT$59","v":"00:00:00"},{"$f":"Time!UHU$59","v":"00:00:00"},{"$f":"Time!UHV$59","v":"00:00:00"},{"$f":"Time!UHW$59","v":"00:00:00"},{"$f":"Time!UHX$59","v":"00:00:00"},{"$f":"Time!UHY$59","v":"00:00:00"},{"$f":"Time!UHZ$59","v":"00:00:00"},{"$f":"Time!UIA$59","v":"00:00:00"},{"$f":"Time!UIB$59","v":"00:00:00"},{"$f":"Time!UIC$59","v":"00:00:00"},{"$f":"Time!UID$59","v":"00:00:00"},{"$f":"Time!UIE$59","v":"00:00:00"},{"$f":"Time!UIF$59","v":"00:00:00"},{"$f":"Time!UIG$59","v":"00:00:00"},{"$f":"Time!UIH$59","v":"00:00:00"},{"$f":"Time!UII$59","v":"00:00:00"},{"$f":"Time!UIJ$59","v":"00:00:00"},{"$f":"Time!UIK$59","v":"00:00:00"},{"$f":"Time!UIL$59","v":"00:00:00"},{"$f":"Time!UIM$59","v":"00:00:00"},{"$f":"Time!UIN$59","v":"00:00:00"},{"$f":"Time!UIO$59","v":"00:00:00"},{"$f":"Time!UIP$59","v":"00:00:00"},{"$f":"Time!UIQ$59","v":"00:00:00"},{"$f":"Time!UIR$59","v":"00:00:00"},{"$f":"Time!UIS$59","v":"00:00:00"},{"$f":"Time!UIT$59","v":"00:00:00"},{"$f":"Time!UIU$59","v":"00:00:00"},{"$f":"Time!UIV$59","v":"00:00:00"},{"$f":"Time!UIW$59","v":"00:00:00"},{"$f":"Time!UIX$59","v":"00:00:00"},{"$f":"Time!UIY$59","v":"00:00:00"},{"$f":"Time!UIZ$59","v":"00:00:00"},{"$f":"Time!UJA$59","v":"00:00:00"},{"$f":"Time!UJB$59","v":"00:00:00"},{"$f":"Time!UJC$59","v":"00:00:00"},{"$f":"Time!UJD$59","v":"00:00:00"},{"$f":"Time!UJE$59","v":"00:00:00"},{"$f":"Time!UJF$59","v":"00:00:00"},{"$f":"Time!UJG$59","v":"00:00:00"},{"$f":"Time!UJH$59","v":"00:00:00"},{"$f":"Time!UJI$59","v":"00:00:00"},{"$f":"Time!UJJ$59","v":"00:00:00"},{"$f":"Time!UJK$59","v":"00:00:00"},{"$f":"Time!UJL$59","v":"00:00:00"},{"$f":"Time!UJM$59","v":"00:00:00"},{"$f":"Time!UJN$59","v":"00:00:00"},{"$f":"Time!UJO$59","v":"00:00:00"},{"$f":"Time!UJP$59","v":"00:00:00"},{"$f":"Time!UJQ$59","v":"00:00:00"},{"$f":"Time!UJR$59","v":"00:00:00"},{"$f":"Time!UJS$59","v":"00:00:00"},{"$f":"Time!UJT$59","v":"00:00:00"},{"$f":"Time!UJU$59","v":"00:00:00"},{"$f":"Time!UJV$59","v":"00:00:00"},{"$f":"Time!UJW$59","v":"00:00:00"},{"$f":"Time!UJX$59","v":"00:00:00"},{"$f":"Time!UJY$59","v":"00:00:00"},{"$f":"Time!UJZ$59","v":"00:00:00"},{"$f":"Time!UKA$59","v":"00:00:00"},{"$f":"Time!UKB$59","v":"00:00:00"},{"$f":"Time!UKC$59","v":"00:00:00"},{"$f":"Time!UKD$59","v":"00:00:00"},{"$f":"Time!UKE$59","v":"00:00:00"},{"$f":"Time!UKF$59","v":"00:00:00"},{"$f":"Time!UKG$59","v":"00:00:00"},{"$f":"Time!UKH$59","v":"00:00:00"},{"$f":"Time!UKI$59","v":"00:00:00"},{"$f":"Time!UKJ$59","v":"00:00:00"},{"$f":"Time!UKK$59","v":"00:00:00"},{"$f":"Time!UKL$59","v":"00:00:00"},{"$f":"Time!UKM$59","v":"00:00:00"},{"$f":"Time!UKN$59","v":"00:00:00"},{"$f":"Time!UKO$59","v":"00:00:00"},{"$f":"Time!UKP$59","v":"00:00:00"},{"$f":"Time!UKQ$59","v":"00:00:00"},{"$f":"Time!UKR$59","v":"00:00:00"},{"$f":"Time!UKS$59","v":"00:00:00"},{"$f":"Time!UKT$59","v":"00:00:00"},{"$f":"Time!UKU$59","v":"00:00:00"},{"$f":"Time!UKV$59","v":"00:00:00"},{"$f":"Time!UKW$59","v":"00:00:00"},{"$f":"Time!UKX$59","v":"00:00:00"},{"$f":"Time!UKY$59","v":"00:00:00"},{"$f":"Time!UKZ$59","v":"00:00:00"},{"$f":"Time!ULA$59","v":"00:00:00"},{"$f":"Time!ULB$59","v":"00:00:00"},{"$f":"Time!ULC$59","v":"00:00:00"},{"$f":"Time!ULD$59","v":"00:00:00"},{"$f":"Time!ULE$59","v":"00:00:00"},{"$f":"Time!ULF$59","v":"00:00:00"},{"$f":"Time!ULG$59","v":"00:00:00"},{"$f":"Time!ULH$59","v":"00:00:00"},{"$f":"Time!ULI$59","v":"00:00:00"},{"$f":"Time!ULJ$59","v":"00:00:00"},{"$f":"Time!ULK$59","v":"00:00:00"},{"$f":"Time!ULL$59","v":"00:00:00"},{"$f":"Time!ULM$59","v":"00:00:00"},{"$f":"Time!ULN$59","v":"00:00:00"},{"$f":"Time!ULO$59","v":"00:00:00"},{"$f":"Time!ULP$59","v":"00:00:00"},{"$f":"Time!ULQ$59","v":"00:00:00"},{"$f":"Time!ULR$59","v":"00:00:00"},{"$f":"Time!ULS$59","v":"00:00:00"},{"$f":"Time!ULT$59","v":"00:00:00"},{"$f":"Time!ULU$59","v":"00:00:00"},{"$f":"Time!ULV$59","v":"00:00:00"},{"$f":"Time!ULW$59","v":"00:00:00"},{"$f":"Time!ULX$59","v":"00:00:00"},{"$f":"Time!ULY$59","v":"00:00:00"},{"$f":"Time!ULZ$59","v":"00:00:00"},{"$f":"Time!UMA$59","v":"00:00:00"},{"$f":"Time!UMB$59","v":"00:00:00"},{"$f":"Time!UMC$59","v":"00:00:00"},{"$f":"Time!UMD$59","v":"00:00:00"},{"$f":"Time!UME$59","v":"00:00:00"},{"$f":"Time!UMF$59","v":"00:00:00"},{"$f":"Time!UMG$59","v":"00:00:00"},{"$f":"Time!UMH$59","v":"00:00:00"},{"$f":"Time!UMI$59","v":"00:00:00"},{"$f":"Time!UMJ$59","v":"00:00:00"},{"$f":"Time!UMK$59","v":"00:00:00"},{"$f":"Time!UML$59","v":"00:00:00"},{"$f":"Time!UMM$59","v":"00:00:00"},{"$f":"Time!UMN$59","v":"00:00:00"},{"$f":"Time!UMO$59","v":"00:00:00"},{"$f":"Time!UMP$59","v":"00:00:00"},{"$f":"Time!UMQ$59","v":"00:00:00"},{"$f":"Time!UMR$59","v":"00:00:00"},{"$f":"Time!UMS$59","v":"00:00:00"},{"$f":"Time!UMT$59","v":"00:00:00"},{"$f":"Time!UMU$59","v":"00:00:00"},{"$f":"Time!UMV$59","v":"00:00:00"},{"$f":"Time!UMW$59","v":"00:00:00"},{"$f":"Time!UMX$59","v":"00:00:00"},{"$f":"Time!UMY$59","v":"00:00:00"},{"$f":"Time!UMZ$59","v":"00:00:00"},{"$f":"Time!UNA$59","v":"00:00:00"},{"$f":"Time!UNB$59","v":"00:00:00"},{"$f":"Time!UNC$59","v":"00:00:00"},{"$f":"Time!UND$59","v":"00:00:00"},{"$f":"Time!UNE$59","v":"00:00:00"},{"$f":"Time!UNF$59","v":"00:00:00"},{"$f":"Time!UNG$59","v":"00:00:00"},{"$f":"Time!UNH$59","v":"00:00:00"},{"$f":"Time!UNI$59","v":"00:00:00"},{"$f":"Time!UNJ$59","v":"00:00:00"},{"$f":"Time!UNK$59","v":"00:00:00"},{"$f":"Time!UNL$59","v":"00:00:00"},{"$f":"Time!UNM$59","v":"00:00:00"},{"$f":"Time!UNN$59","v":"00:00:00"},{"$f":"Time!UNO$59","v":"00:00:00"},{"$f":"Time!UNP$59","v":"00:00:00"},{"$f":"Time!UNQ$59","v":"00:00:00"},{"$f":"Time!UNR$59","v":"00:00:00"},{"$f":"Time!UNS$59","v":"00:00:00"},{"$f":"Time!UNT$59","v":"00:00:00"},{"$f":"Time!UNU$59","v":"00:00:00"},{"$f":"Time!UNV$59","v":"00:00:00"},{"$f":"Time!UNW$59","v":"00:00:00"},{"$f":"Time!UNX$59","v":"00:00:00"},{"$f":"Time!UNY$59","v":"00:00:00"},{"$f":"Time!UNZ$59","v":"00:00:00"},{"$f":"Time!UOA$59","v":"00:00:00"},{"$f":"Time!UOB$59","v":"00:00:00"},{"$f":"Time!UOC$59","v":"00:00:00"},{"$f":"Time!UOD$59","v":"00:00:00"},{"$f":"Time!UOE$59","v":"00:00:00"},{"$f":"Time!UOF$59","v":"00:00:00"},{"$f":"Time!UOG$59","v":"00:00:00"},{"$f":"Time!UOH$59","v":"00:00:00"},{"$f":"Time!UOI$59","v":"00:00:00"},{"$f":"Time!UOJ$59","v":"00:00:00"},{"$f":"Time!UOK$59","v":"00:00:00"},{"$f":"Time!UOL$59","v":"00:00:00"},{"$f":"Time!UOM$59","v":"00:00:00"},{"$f":"Time!UON$59","v":"00:00:00"},{"$f":"Time!UOO$59","v":"00:00:00"},{"$f":"Time!UOP$59","v":"00:00:00"},{"$f":"Time!UOQ$59","v":"00:00:00"},{"$f":"Time!UOR$59","v":"00:00:00"},{"$f":"Time!UOS$59","v":"00:00:00"},{"$f":"Time!UOT$59","v":"00:00:00"},{"$f":"Time!UOU$59","v":"00:00:00"},{"$f":"Time!UOV$59","v":"00:00:00"},{"$f":"Time!UOW$59","v":"00:00:00"},{"$f":"Time!UOX$59","v":"00:00:00"},{"$f":"Time!UOY$59","v":"00:00:00"},{"$f":"Time!UOZ$59","v":"00:00:00"},{"$f":"Time!UPA$59","v":"00:00:00"},{"$f":"Time!UPB$59","v":"00:00:00"},{"$f":"Time!UPC$59","v":"00:00:00"},{"$f":"Time!UPD$59","v":"00:00:00"},{"$f":"Time!UPE$59","v":"00:00:00"},{"$f":"Time!UPF$59","v":"00:00:00"},{"$f":"Time!UPG$59","v":"00:00:00"},{"$f":"Time!UPH$59","v":"00:00:00"},{"$f":"Time!UPI$59","v":"00:00:00"},{"$f":"Time!UPJ$59","v":"00:00:00"},{"$f":"Time!UPK$59","v":"00:00:00"},{"$f":"Time!UPL$59","v":"00:00:00"},{"$f":"Time!UPM$59","v":"00:00:00"},{"$f":"Time!UPN$59","v":"00:00:00"},{"$f":"Time!UPO$59","v":"00:00:00"},{"$f":"Time!UPP$59","v":"00:00:00"},{"$f":"Time!UPQ$59","v":"00:00:00"},{"$f":"Time!UPR$59","v":"00:00:00"},{"$f":"Time!UPS$59","v":"00:00:00"},{"$f":"Time!UPT$59","v":"00:00:00"},{"$f":"Time!UPU$59","v":"00:00:00"},{"$f":"Time!UPV$59","v":"00:00:00"},{"$f":"Time!UPW$59","v":"00:00:00"},{"$f":"Time!UPX$59","v":"00:00:00"},{"$f":"Time!UPY$59","v":"00:00:00"},{"$f":"Time!UPZ$59","v":"00:00:00"},{"$f":"Time!UQA$59","v":"00:00:00"},{"$f":"Time!UQB$59","v":"00:00:00"},{"$f":"Time!UQC$59","v":"00:00:00"},{"$f":"Time!UQD$59","v":"00:00:00"},{"$f":"Time!UQE$59","v":"00:00:00"},{"$f":"Time!UQF$59","v":"00:00:00"},{"$f":"Time!UQG$59","v":"00:00:00"},{"$f":"Time!UQH$59","v":"00:00:00"},{"$f":"Time!UQI$59","v":"00:00:00"},{"$f":"Time!UQJ$59","v":"00:00:00"},{"$f":"Time!UQK$59","v":"00:00:00"},{"$f":"Time!UQL$59","v":"00:00:00"},{"$f":"Time!UQM$59","v":"00:00:00"},{"$f":"Time!UQN$59","v":"00:00:00"},{"$f":"Time!UQO$59","v":"00:00:00"},{"$f":"Time!UQP$59","v":"00:00:00"},{"$f":"Time!UQQ$59","v":"00:00:00"},{"$f":"Time!UQR$59","v":"00:00:00"},{"$f":"Time!UQS$59","v":"00:00:00"},{"$f":"Time!UQT$59","v":"00:00:00"},{"$f":"Time!UQU$59","v":"00:00:00"},{"$f":"Time!UQV$59","v":"00:00:00"},{"$f":"Time!UQW$59","v":"00:00:00"},{"$f":"Time!UQX$59","v":"00:00:00"},{"$f":"Time!UQY$59","v":"00:00:00"},{"$f":"Time!UQZ$59","v":"00:00:00"},{"$f":"Time!URA$59","v":"00:00:00"},{"$f":"Time!URB$59","v":"00:00:00"},{"$f":"Time!URC$59","v":"00:00:00"},{"$f":"Time!URD$59","v":"00:00:00"},{"$f":"Time!URE$59","v":"00:00:00"},{"$f":"Time!URF$59","v":"00:00:00"},{"$f":"Time!URG$59","v":"00:00:00"},{"$f":"Time!URH$59","v":"00:00:00"},{"$f":"Time!URI$59","v":"00:00:00"},{"$f":"Time!URJ$59","v":"00:00:00"},{"$f":"Time!URK$59","v":"00:00:00"},{"$f":"Time!URL$59","v":"00:00:00"},{"$f":"Time!URM$59","v":"00:00:00"},{"$f":"Time!URN$59","v":"00:00:00"},{"$f":"Time!URO$59","v":"00:00:00"},{"$f":"Time!URP$59","v":"00:00:00"},{"$f":"Time!URQ$59","v":"00:00:00"},{"$f":"Time!URR$59","v":"00:00:00"},{"$f":"Time!URS$59","v":"00:00:00"},{"$f":"Time!URT$59","v":"00:00:00"},{"$f":"Time!URU$59","v":"00:00:00"},{"$f":"Time!URV$59","v":"00:00:00"},{"$f":"Time!URW$59","v":"00:00:00"},{"$f":"Time!URX$59","v":"00:00:00"},{"$f":"Time!URY$59","v":"00:00:00"},{"$f":"Time!URZ$59","v":"00:00:00"},{"$f":"Time!USA$59","v":"00:00:00"},{"$f":"Time!USB$59","v":"00:00:00"},{"$f":"Time!USC$59","v":"00:00:00"},{"$f":"Time!USD$59","v":"00:00:00"},{"$f":"Time!USE$59","v":"00:00:00"},{"$f":"Time!USF$59","v":"00:00:00"},{"$f":"Time!USG$59","v":"00:00:00"},{"$f":"Time!USH$59","v":"00:00:00"},{"$f":"Time!USI$59","v":"00:00:00"},{"$f":"Time!USJ$59","v":"00:00:00"},{"$f":"Time!USK$59","v":"00:00:00"},{"$f":"Time!USL$59","v":"00:00:00"},{"$f":"Time!USM$59","v":"00:00:00"},{"$f":"Time!USN$59","v":"00:00:00"},{"$f":"Time!USO$59","v":"00:00:00"},{"$f":"Time!USP$59","v":"00:00:00"},{"$f":"Time!USQ$59","v":"00:00:00"},{"$f":"Time!USR$59","v":"00:00:00"},{"$f":"Time!USS$59","v":"00:00:00"},{"$f":"Time!UST$59","v":"00:00:00"},{"$f":"Time!USU$59","v":"00:00:00"},{"$f":"Time!USV$59","v":"00:00:00"},{"$f":"Time!USW$59","v":"00:00:00"},{"$f":"Time!USX$59","v":"00:00:00"},{"$f":"Time!USY$59","v":"00:00:00"},{"$f":"Time!USZ$59","v":"00:00:00"},{"$f":"Time!UTA$59","v":"00:00:00"},{"$f":"Time!UTB$59","v":"00:00:00"},{"$f":"Time!UTC$59","v":"00:00:00"},{"$f":"Time!UTD$59","v":"00:00:00"},{"$f":"Time!UTE$59","v":"00:00:00"},{"$f":"Time!UTF$59","v":"00:00:00"},{"$f":"Time!UTG$59","v":"00:00:00"},{"$f":"Time!UTH$59","v":"00:00:00"},{"$f":"Time!UTI$59","v":"00:00:00"},{"$f":"Time!UTJ$59","v":"00:00:00"},{"$f":"Time!UTK$59","v":"00:00:00"},{"$f":"Time!UTL$59","v":"00:00:00"},{"$f":"Time!UTM$59","v":"00:00:00"},{"$f":"Time!UTN$59","v":"00:00:00"},{"$f":"Time!UTO$59","v":"00:00:00"},{"$f":"Time!UTP$59","v":"00:00:00"},{"$f":"Time!UTQ$59","v":"00:00:00"},{"$f":"Time!UTR$59","v":"00:00:00"},{"$f":"Time!UTS$59","v":"00:00:00"},{"$f":"Time!UTT$59","v":"00:00:00"},{"$f":"Time!UTU$59","v":"00:00:00"},{"$f":"Time!UTV$59","v":"00:00:00"},{"$f":"Time!UTW$59","v":"00:00:00"},{"$f":"Time!UTX$59","v":"00:00:00"},{"$f":"Time!UTY$59","v":"00:00:00"},{"$f":"Time!UTZ$59","v":"00:00:00"},{"$f":"Time!UUA$59","v":"00:00:00"},{"$f":"Time!UUB$59","v":"00:00:00"},{"$f":"Time!UUC$59","v":"00:00:00"},{"$f":"Time!UUD$59","v":"00:00:00"},{"$f":"Time!UUE$59","v":"00:00:00"},{"$f":"Time!UUF$59","v":"00:00:00"},{"$f":"Time!UUG$59","v":"00:00:00"},{"$f":"Time!UUH$59","v":"00:00:00"},{"$f":"Time!UUI$59","v":"00:00:00"},{"$f":"Time!UUJ$59","v":"00:00:00"},{"$f":"Time!UUK$59","v":"00:00:00"},{"$f":"Time!UUL$59","v":"00:00:00"},{"$f":"Time!UUM$59","v":"00:00:00"},{"$f":"Time!UUN$59","v":"00:00:00"},{"$f":"Time!UUO$59","v":"00:00:00"},{"$f":"Time!UUP$59","v":"00:00:00"},{"$f":"Time!UUQ$59","v":"00:00:00"},{"$f":"Time!UUR$59","v":"00:00:00"},{"$f":"Time!UUS$59","v":"00:00:00"},{"$f":"Time!UUT$59","v":"00:00:00"},{"$f":"Time!UUU$59","v":"00:00:00"},{"$f":"Time!UUV$59","v":"00:00:00"},{"$f":"Time!UUW$59","v":"00:00:00"},{"$f":"Time!UUX$59","v":"00:00:00"},{"$f":"Time!UUY$59","v":"00:00:00"},{"$f":"Time!UUZ$59","v":"00:00:00"},{"$f":"Time!UVA$59","v":"00:00:00"},{"$f":"Time!UVB$59","v":"00:00:00"},{"$f":"Time!UVC$59","v":"00:00:00"},{"$f":"Time!UVD$59","v":"00:00:00"},{"$f":"Time!UVE$59","v":"00:00:00"},{"$f":"Time!UVF$59","v":"00:00:00"},{"$f":"Time!UVG$59","v":"00:00:00"},{"$f":"Time!UVH$59","v":"00:00:00"},{"$f":"Time!UVI$59","v":"00:00:00"},{"$f":"Time!UVJ$59","v":"00:00:00"},{"$f":"Time!UVK$59","v":"00:00:00"},{"$f":"Time!UVL$59","v":"00:00:00"},{"$f":"Time!UVM$59","v":"00:00:00"},{"$f":"Time!UVN$59","v":"00:00:00"},{"$f":"Time!UVO$59","v":"00:00:00"},{"$f":"Time!UVP$59","v":"00:00:00"},{"$f":"Time!UVQ$59","v":"00:00:00"},{"$f":"Time!UVR$59","v":"00:00:00"},{"$f":"Time!UVS$59","v":"00:00:00"},{"$f":"Time!UVT$59","v":"00:00:00"},{"$f":"Time!UVU$59","v":"00:00:00"},{"$f":"Time!UVV$59","v":"00:00:00"},{"$f":"Time!UVW$59","v":"00:00:00"},{"$f":"Time!UVX$59","v":"00:00:00"},{"$f":"Time!UVY$59","v":"00:00:00"},{"$f":"Time!UVZ$59","v":"00:00:00"},{"$f":"Time!UWA$59","v":"00:00:00"},{"$f":"Time!UWB$59","v":"00:00:00"},{"$f":"Time!UWC$59","v":"00:00:00"},{"$f":"Time!UWD$59","v":"00:00:00"},{"$f":"Time!UWE$59","v":"00:00:00"},{"$f":"Time!UWF$59","v":"00:00:00"},{"$f":"Time!UWG$59","v":"00:00:00"},{"$f":"Time!UWH$59","v":"00:00:00"},{"$f":"Time!UWI$59","v":"00:00:00"},{"$f":"Time!UWJ$59","v":"00:00:00"},{"$f":"Time!UWK$59","v":"00:00:00"},{"$f":"Time!UWL$59","v":"00:00:00"},{"$f":"Time!UWM$59","v":"00:00:00"},{"$f":"Time!UWN$59","v":"00:00:00"},{"$f":"Time!UWO$59","v":"00:00:00"},{"$f":"Time!UWP$59","v":"00:00:00"},{"$f":"Time!UWQ$59","v":"00:00:00"},{"$f":"Time!UWR$59","v":"00:00:00"},{"$f":"Time!UWS$59","v":"00:00:00"},{"$f":"Time!UWT$59","v":"00:00:00"},{"$f":"Time!UWU$59","v":"00:00:00"},{"$f":"Time!UWV$59","v":"00:00:00"},{"$f":"Time!UWW$59","v":"00:00:00"},{"$f":"Time!UWX$59","v":"00:00:00"},{"$f":"Time!UWY$59","v":"00:00:00"},{"$f":"Time!UWZ$59","v":"00:00:00"},{"$f":"Time!UXA$59","v":"00:00:00"},{"$f":"Time!UXB$59","v":"00:00:00"},{"$f":"Time!UXC$59","v":"00:00:00"},{"$f":"Time!UXD$59","v":"00:00:00"},{"$f":"Time!UXE$59","v":"00:00:00"},{"$f":"Time!UXF$59","v":"00:00:00"},{"$f":"Time!UXG$59","v":"00:00:00"},{"$f":"Time!UXH$59","v":"00:00:00"},{"$f":"Time!UXI$59","v":"00:00:00"},{"$f":"Time!UXJ$59","v":"00:00:00"},{"$f":"Time!UXK$59","v":"00:00:00"},{"$f":"Time!UXL$59","v":"00:00:00"},{"$f":"Time!UXM$59","v":"00:00:00"},{"$f":"Time!UXN$59","v":"00:00:00"},{"$f":"Time!UXO$59","v":"00:00:00"},{"$f":"Time!UXP$59","v":"00:00:00"},{"$f":"Time!UXQ$59","v":"00:00:00"},{"$f":"Time!UXR$59","v":"00:00:00"},{"$f":"Time!UXS$59","v":"00:00:00"},{"$f":"Time!UXT$59","v":"00:00:00"},{"$f":"Time!UXU$59","v":"00:00:00"},{"$f":"Time!UXV$59","v":"00:00:00"},{"$f":"Time!UXW$59","v":"00:00:00"},{"$f":"Time!UXX$59","v":"00:00:00"},{"$f":"Time!UXY$59","v":"00:00:00"},{"$f":"Time!UXZ$59","v":"00:00:00"},{"$f":"Time!UYA$59","v":"00:00:00"},{"$f":"Time!UYB$59","v":"00:00:00"},{"$f":"Time!UYC$59","v":"00:00:00"},{"$f":"Time!UYD$59","v":"00:00:00"},{"$f":"Time!UYE$59","v":"00:00:00"},{"$f":"Time!UYF$59","v":"00:00:00"},{"$f":"Time!UYG$59","v":"00:00:00"},{"$f":"Time!UYH$59","v":"00:00:00"},{"$f":"Time!UYI$59","v":"00:00:00"},{"$f":"Time!UYJ$59","v":"00:00:00"},{"$f":"Time!UYK$59","v":"00:00:00"},{"$f":"Time!UYL$59","v":"00:00:00"},{"$f":"Time!UYM$59","v":"00:00:00"},{"$f":"Time!UYN$59","v":"00:00:00"},{"$f":"Time!UYO$59","v":"00:00:00"},{"$f":"Time!UYP$59","v":"00:00:00"},{"$f":"Time!UYQ$59","v":"00:00:00"},{"$f":"Time!UYR$59","v":"00:00:00"},{"$f":"Time!UYS$59","v":"00:00:00"},{"$f":"Time!UYT$59","v":"00:00:00"},{"$f":"Time!UYU$59","v":"00:00:00"},{"$f":"Time!UYV$59","v":"00:00:00"},{"$f":"Time!UYW$59","v":"00:00:00"},{"$f":"Time!UYX$59","v":"00:00:00"},{"$f":"Time!UYY$59","v":"00:00:00"},{"$f":"Time!UYZ$59","v":"00:00:00"},{"$f":"Time!UZA$59","v":"00:00:00"},{"$f":"Time!UZB$59","v":"00:00:00"},{"$f":"Time!UZC$59","v":"00:00:00"},{"$f":"Time!UZD$59","v":"00:00:00"},{"$f":"Time!UZE$59","v":"00:00:00"},{"$f":"Time!UZF$59","v":"00:00:00"},{"$f":"Time!UZG$59","v":"00:00:00"},{"$f":"Time!UZH$59","v":"00:00:00"},{"$f":"Time!UZI$59","v":"00:00:00"},{"$f":"Time!UZJ$59","v":"00:00:00"},{"$f":"Time!UZK$59","v":"00:00:00"},{"$f":"Time!UZL$59","v":"00:00:00"},{"$f":"Time!UZM$59","v":"00:00:00"},{"$f":"Time!UZN$59","v":"00:00:00"},{"$f":"Time!UZO$59","v":"00:00:00"},{"$f":"Time!UZP$59","v":"00:00:00"},{"$f":"Time!UZQ$59","v":"00:00:00"},{"$f":"Time!UZR$59","v":"00:00:00"},{"$f":"Time!UZS$59","v":"00:00:00"},{"$f":"Time!UZT$59","v":"00:00:00"},{"$f":"Time!UZU$59","v":"00:00:00"},{"$f":"Time!UZV$59","v":"00:00:00"},{"$f":"Time!UZW$59","v":"00:00:00"},{"$f":"Time!UZX$59","v":"00:00:00"},{"$f":"Time!UZY$59","v":"00:00:00"},{"$f":"Time!UZZ$59","v":"00:00:00"},{"$f":"Time!VAA$59","v":"00:00:00"},{"$f":"Time!VAB$59","v":"00:00:00"},{"$f":"Time!VAC$59","v":"00:00:00"},{"$f":"Time!VAD$59","v":"00:00:00"},{"$f":"Time!VAE$59","v":"00:00:00"},{"$f":"Time!VAF$59","v":"00:00:00"},{"$f":"Time!VAG$59","v":"00:00:00"},{"$f":"Time!VAH$59","v":"00:00:00"},{"$f":"Time!VAI$59","v":"00:00:00"},{"$f":"Time!VAJ$59","v":"00:00:00"},{"$f":"Time!VAK$59","v":"00:00:00"},{"$f":"Time!VAL$59","v":"00:00:00"},{"$f":"Time!VAM$59","v":"00:00:00"},{"$f":"Time!VAN$59","v":"00:00:00"},{"$f":"Time!VAO$59","v":"00:00:00"},{"$f":"Time!VAP$59","v":"00:00:00"},{"$f":"Time!VAQ$59","v":"00:00:00"},{"$f":"Time!VAR$59","v":"00:00:00"},{"$f":"Time!VAS$59","v":"00:00:00"},{"$f":"Time!VAT$59","v":"00:00:00"},{"$f":"Time!VAU$59","v":"00:00:00"},{"$f":"Time!VAV$59","v":"00:00:00"},{"$f":"Time!VAW$59","v":"00:00:00"},{"$f":"Time!VAX$59","v":"00:00:00"},{"$f":"Time!VAY$59","v":"00:00:00"},{"$f":"Time!VAZ$59","v":"00:00:00"},{"$f":"Time!VBA$59","v":"00:00:00"},{"$f":"Time!VBB$59","v":"00:00:00"},{"$f":"Time!VBC$59","v":"00:00:00"},{"$f":"Time!VBD$59","v":"00:00:00"},{"$f":"Time!VBE$59","v":"00:00:00"},{"$f":"Time!VBF$59","v":"00:00:00"},{"$f":"Time!VBG$59","v":"00:00:00"},{"$f":"Time!VBH$59","v":"00:00:00"},{"$f":"Time!VBI$59","v":"00:00:00"},{"$f":"Time!VBJ$59","v":"00:00:00"},{"$f":"Time!VBK$59","v":"00:00:00"},{"$f":"Time!VBL$59","v":"00:00:00"},{"$f":"Time!VBM$59","v":"00:00:00"},{"$f":"Time!VBN$59","v":"00:00:00"},{"$f":"Time!VBO$59","v":"00:00:00"},{"$f":"Time!VBP$59","v":"00:00:00"},{"$f":"Time!VBQ$59","v":"00:00:00"},{"$f":"Time!VBR$59","v":"00:00:00"},{"$f":"Time!VBS$59","v":"00:00:00"},{"$f":"Time!VBT$59","v":"00:00:00"},{"$f":"Time!VBU$59","v":"00:00:00"},{"$f":"Time!VBV$59","v":"00:00:00"},{"$f":"Time!VBW$59","v":"00:00:00"},{"$f":"Time!VBX$59","v":"00:00:00"},{"$f":"Time!VBY$59","v":"00:00:00"},{"$f":"Time!VBZ$59","v":"00:00:00"},{"$f":"Time!VCA$59","v":"00:00:00"},{"$f":"Time!VCB$59","v":"00:00:00"},{"$f":"Time!VCC$59","v":"00:00:00"},{"$f":"Time!VCD$59","v":"00:00:00"},{"$f":"Time!VCE$59","v":"00:00:00"},{"$f":"Time!VCF$59","v":"00:00:00"},{"$f":"Time!VCG$59","v":"00:00:00"},{"$f":"Time!VCH$59","v":"00:00:00"},{"$f":"Time!VCI$59","v":"00:00:00"},{"$f":"Time!VCJ$59","v":"00:00:00"},{"$f":"Time!VCK$59","v":"00:00:00"},{"$f":"Time!VCL$59","v":"00:00:00"},{"$f":"Time!VCM$59","v":"00:00:00"},{"$f":"Time!VCN$59","v":"00:00:00"},{"$f":"Time!VCO$59","v":"00:00:00"},{"$f":"Time!VCP$59","v":"00:00:00"},{"$f":"Time!VCQ$59","v":"00:00:00"},{"$f":"Time!VCR$59","v":"00:00:00"},{"$f":"Time!VCS$59","v":"00:00:00"},{"$f":"Time!VCT$59","v":"00:00:00"},{"$f":"Time!VCU$59","v":"00:00:00"},{"$f":"Time!VCV$59","v":"00:00:00"},{"$f":"Time!VCW$59","v":"00:00:00"},{"$f":"Time!VCX$59","v":"00:00:00"},{"$f":"Time!VCY$59","v":"00:00:00"},{"$f":"Time!VCZ$59","v":"00:00:00"},{"$f":"Time!VDA$59","v":"00:00:00"},{"$f":"Time!VDB$59","v":"00:00:00"},{"$f":"Time!VDC$59","v":"00:00:00"},{"$f":"Time!VDD$59","v":"00:00:00"},{"$f":"Time!VDE$59","v":"00:00:00"},{"$f":"Time!VDF$59","v":"00:00:00"},{"$f":"Time!VDG$59","v":"00:00:00"},{"$f":"Time!VDH$59","v":"00:00:00"},{"$f":"Time!VDI$59","v":"00:00:00"},{"$f":"Time!VDJ$59","v":"00:00:00"},{"$f":"Time!VDK$59","v":"00:00:00"},{"$f":"Time!VDL$59","v":"00:00:00"},{"$f":"Time!VDM$59","v":"00:00:00"},{"$f":"Time!VDN$59","v":"00:00:00"},{"$f":"Time!VDO$59","v":"00:00:00"},{"$f":"Time!VDP$59","v":"00:00:00"},{"$f":"Time!VDQ$59","v":"00:00:00"},{"$f":"Time!VDR$59","v":"00:00:00"},{"$f":"Time!VDS$59","v":"00:00:00"},{"$f":"Time!VDT$59","v":"00:00:00"},{"$f":"Time!VDU$59","v":"00:00:00"},{"$f":"Time!VDV$59","v":"00:00:00"},{"$f":"Time!VDW$59","v":"00:00:00"},{"$f":"Time!VDX$59","v":"00:00:00"},{"$f":"Time!VDY$59","v":"00:00:00"},{"$f":"Time!VDZ$59","v":"00:00:00"},{"$f":"Time!VEA$59","v":"00:00:00"},{"$f":"Time!VEB$59","v":"00:00:00"},{"$f":"Time!VEC$59","v":"00:00:00"},{"$f":"Time!VED$59","v":"00:00:00"},{"$f":"Time!VEE$59","v":"00:00:00"},{"$f":"Time!VEF$59","v":"00:00:00"},{"$f":"Time!VEG$59","v":"00:00:00"},{"$f":"Time!VEH$59","v":"00:00:00"},{"$f":"Time!VEI$59","v":"00:00:00"},{"$f":"Time!VEJ$59","v":"00:00:00"},{"$f":"Time!VEK$59","v":"00:00:00"},{"$f":"Time!VEL$59","v":"00:00:00"},{"$f":"Time!VEM$59","v":"00:00:00"},{"$f":"Time!VEN$59","v":"00:00:00"},{"$f":"Time!VEO$59","v":"00:00:00"},{"$f":"Time!VEP$59","v":"00:00:00"},{"$f":"Time!VEQ$59","v":"00:00:00"},{"$f":"Time!VER$59","v":"00:00:00"},{"$f":"Time!VES$59","v":"00:00:00"},{"$f":"Time!VET$59","v":"00:00:00"},{"$f":"Time!VEU$59","v":"00:00:00"},{"$f":"Time!VEV$59","v":"00:00:00"},{"$f":"Time!VEW$59","v":"00:00:00"},{"$f":"Time!VEX$59","v":"00:00:00"},{"$f":"Time!VEY$59","v":"00:00:00"},{"$f":"Time!VEZ$59","v":"00:00:00"},{"$f":"Time!VFA$59","v":"00:00:00"},{"$f":"Time!VFB$59","v":"00:00:00"},{"$f":"Time!VFC$59","v":"00:00:00"},{"$f":"Time!VFD$59","v":"00:00:00"},{"$f":"Time!VFE$59","v":"00:00:00"},{"$f":"Time!VFF$59","v":"00:00:00"},{"$f":"Time!VFG$59","v":"00:00:00"},{"$f":"Time!VFH$59","v":"00:00:00"},{"$f":"Time!VFI$59","v":"00:00:00"},{"$f":"Time!VFJ$59","v":"00:00:00"},{"$f":"Time!VFK$59","v":"00:00:00"},{"$f":"Time!VFL$59","v":"00:00:00"},{"$f":"Time!VFM$59","v":"00:00:00"},{"$f":"Time!VFN$59","v":"00:00:00"},{"$f":"Time!VFO$59","v":"00:00:00"},{"$f":"Time!VFP$59","v":"00:00:00"},{"$f":"Time!VFQ$59","v":"00:00:00"},{"$f":"Time!VFR$59","v":"00:00:00"},{"$f":"Time!VFS$59","v":"00:00:00"},{"$f":"Time!VFT$59","v":"00:00:00"},{"$f":"Time!VFU$59","v":"00:00:00"},{"$f":"Time!VFV$59","v":"00:00:00"},{"$f":"Time!VFW$59","v":"00:00:00"},{"$f":"Time!VFX$59","v":"00:00:00"},{"$f":"Time!VFY$59","v":"00:00:00"},{"$f":"Time!VFZ$59","v":"00:00:00"},{"$f":"Time!VGA$59","v":"00:00:00"},{"$f":"Time!VGB$59","v":"00:00:00"},{"$f":"Time!VGC$59","v":"00:00:00"},{"$f":"Time!VGD$59","v":"00:00:00"},{"$f":"Time!VGE$59","v":"00:00:00"},{"$f":"Time!VGF$59","v":"00:00:00"},{"$f":"Time!VGG$59","v":"00:00:00"},{"$f":"Time!VGH$59","v":"00:00:00"},{"$f":"Time!VGI$59","v":"00:00:00"},{"$f":"Time!VGJ$59","v":"00:00:00"},{"$f":"Time!VGK$59","v":"00:00:00"},{"$f":"Time!VGL$59","v":"00:00:00"},{"$f":"Time!VGM$59","v":"00:00:00"},{"$f":"Time!VGN$59","v":"00:00:00"},{"$f":"Time!VGO$59","v":"00:00:00"},{"$f":"Time!VGP$59","v":"00:00:00"},{"$f":"Time!VGQ$59","v":"00:00:00"},{"$f":"Time!VGR$59","v":"00:00:00"},{"$f":"Time!VGS$59","v":"00:00:00"},{"$f":"Time!VGT$59","v":"00:00:00"},{"$f":"Time!VGU$59","v":"00:00:00"},{"$f":"Time!VGV$59","v":"00:00:00"},{"$f":"Time!VGW$59","v":"00:00:00"},{"$f":"Time!VGX$59","v":"00:00:00"},{"$f":"Time!VGY$59","v":"00:00:00"},{"$f":"Time!VGZ$59","v":"00:00:00"},{"$f":"Time!VHA$59","v":"00:00:00"},{"$f":"Time!VHB$59","v":"00:00:00"},{"$f":"Time!VHC$59","v":"00:00:00"},{"$f":"Time!VHD$59","v":"00:00:00"},{"$f":"Time!VHE$59","v":"00:00:00"},{"$f":"Time!VHF$59","v":"00:00:00"},{"$f":"Time!VHG$59","v":"00:00:00"},{"$f":"Time!VHH$59","v":"00:00:00"},{"$f":"Time!VHI$59","v":"00:00:00"},{"$f":"Time!VHJ$59","v":"00:00:00"},{"$f":"Time!VHK$59","v":"00:00:00"},{"$f":"Time!VHL$59","v":"00:00:00"},{"$f":"Time!VHM$59","v":"00:00:00"},{"$f":"Time!VHN$59","v":"00:00:00"},{"$f":"Time!VHO$59","v":"00:00:00"},{"$f":"Time!VHP$59","v":"00:00:00"},{"$f":"Time!VHQ$59","v":"00:00:00"},{"$f":"Time!VHR$59","v":"00:00:00"},{"$f":"Time!VHS$59","v":"00:00:00"},{"$f":"Time!VHT$59","v":"00:00:00"},{"$f":"Time!VHU$59","v":"00:00:00"},{"$f":"Time!VHV$59","v":"00:00:00"},{"$f":"Time!VHW$59","v":"00:00:00"},{"$f":"Time!VHX$59","v":"00:00:00"},{"$f":"Time!VHY$59","v":"00:00:00"},{"$f":"Time!VHZ$59","v":"00:00:00"},{"$f":"Time!VIA$59","v":"00:00:00"},{"$f":"Time!VIB$59","v":"00:00:00"},{"$f":"Time!VIC$59","v":"00:00:00"},{"$f":"Time!VID$59","v":"00:00:00"},{"$f":"Time!VIE$59","v":"00:00:00"},{"$f":"Time!VIF$59","v":"00:00:00"},{"$f":"Time!VIG$59","v":"00:00:00"},{"$f":"Time!VIH$59","v":"00:00:00"},{"$f":"Time!VII$59","v":"00:00:00"},{"$f":"Time!VIJ$59","v":"00:00:00"},{"$f":"Time!VIK$59","v":"00:00:00"},{"$f":"Time!VIL$59","v":"00:00:00"},{"$f":"Time!VIM$59","v":"00:00:00"},{"$f":"Time!VIN$59","v":"00:00:00"},{"$f":"Time!VIO$59","v":"00:00:00"},{"$f":"Time!VIP$59","v":"00:00:00"},{"$f":"Time!VIQ$59","v":"00:00:00"},{"$f":"Time!VIR$59","v":"00:00:00"},{"$f":"Time!VIS$59","v":"00:00:00"},{"$f":"Time!VIT$59","v":"00:00:00"},{"$f":"Time!VIU$59","v":"00:00:00"},{"$f":"Time!VIV$59","v":"00:00:00"},{"$f":"Time!VIW$59","v":"00:00:00"},{"$f":"Time!VIX$59","v":"00:00:00"},{"$f":"Time!VIY$59","v":"00:00:00"},{"$f":"Time!VIZ$59","v":"00:00:00"},{"$f":"Time!VJA$59","v":"00:00:00"},{"$f":"Time!VJB$59","v":"00:00:00"},{"$f":"Time!VJC$59","v":"00:00:00"},{"$f":"Time!VJD$59","v":"00:00:00"},{"$f":"Time!VJE$59","v":"00:00:00"},{"$f":"Time!VJF$59","v":"00:00:00"},{"$f":"Time!VJG$59","v":"00:00:00"},{"$f":"Time!VJH$59","v":"00:00:00"},{"$f":"Time!VJI$59","v":"00:00:00"},{"$f":"Time!VJJ$59","v":"00:00:00"},{"$f":"Time!VJK$59","v":"00:00:00"},{"$f":"Time!VJL$59","v":"00:00:00"},{"$f":"Time!VJM$59","v":"00:00:00"},{"$f":"Time!VJN$59","v":"00:00:00"},{"$f":"Time!VJO$59","v":"00:00:00"},{"$f":"Time!VJP$59","v":"00:00:00"},{"$f":"Time!VJQ$59","v":"00:00:00"},{"$f":"Time!VJR$59","v":"00:00:00"},{"$f":"Time!VJS$59","v":"00:00:00"},{"$f":"Time!VJT$59","v":"00:00:00"},{"$f":"Time!VJU$59","v":"00:00:00"},{"$f":"Time!VJV$59","v":"00:00:00"},{"$f":"Time!VJW$59","v":"00:00:00"},{"$f":"Time!VJX$59","v":"00:00:00"},{"$f":"Time!VJY$59","v":"00:00:00"},{"$f":"Time!VJZ$59","v":"00:00:00"},{"$f":"Time!VKA$59","v":"00:00:00"},{"$f":"Time!VKB$59","v":"00:00:00"},{"$f":"Time!VKC$59","v":"00:00:00"},{"$f":"Time!VKD$59","v":"00:00:00"},{"$f":"Time!VKE$59","v":"00:00:00"},{"$f":"Time!VKF$59","v":"00:00:00"},{"$f":"Time!VKG$59","v":"00:00:00"},{"$f":"Time!VKH$59","v":"00:00:00"},{"$f":"Time!VKI$59","v":"00:00:00"},{"$f":"Time!VKJ$59","v":"00:00:00"},{"$f":"Time!VKK$59","v":"00:00:00"},{"$f":"Time!VKL$59","v":"00:00:00"},{"$f":"Time!VKM$59","v":"00:00:00"},{"$f":"Time!VKN$59","v":"00:00:00"},{"$f":"Time!VKO$59","v":"00:00:00"},{"$f":"Time!VKP$59","v":"00:00:00"},{"$f":"Time!VKQ$59","v":"00:00:00"},{"$f":"Time!VKR$59","v":"00:00:00"},{"$f":"Time!VKS$59","v":"00:00:00"},{"$f":"Time!VKT$59","v":"00:00:00"},{"$f":"Time!VKU$59","v":"00:00:00"},{"$f":"Time!VKV$59","v":"00:00:00"},{"$f":"Time!VKW$59","v":"00:00:00"},{"$f":"Time!VKX$59","v":"00:00:00"},{"$f":"Time!VKY$59","v":"00:00:00"},{"$f":"Time!VKZ$59","v":"00:00:00"},{"$f":"Time!VLA$59","v":"00:00:00"},{"$f":"Time!VLB$59","v":"00:00:00"},{"$f":"Time!VLC$59","v":"00:00:00"},{"$f":"Time!VLD$59","v":"00:00:00"},{"$f":"Time!VLE$59","v":"00:00:00"},{"$f":"Time!VLF$59","v":"00:00:00"},{"$f":"Time!VLG$59","v":"00:00:00"},{"$f":"Time!VLH$59","v":"00:00:00"},{"$f":"Time!VLI$59","v":"00:00:00"},{"$f":"Time!VLJ$59","v":"00:00:00"},{"$f":"Time!VLK$59","v":"00:00:00"},{"$f":"Time!VLL$59","v":"00:00:00"},{"$f":"Time!VLM$59","v":"00:00:00"},{"$f":"Time!VLN$59","v":"00:00:00"},{"$f":"Time!VLO$59","v":"00:00:00"},{"$f":"Time!VLP$59","v":"00:00:00"},{"$f":"Time!VLQ$59","v":"00:00:00"},{"$f":"Time!VLR$59","v":"00:00:00"},{"$f":"Time!VLS$59","v":"00:00:00"},{"$f":"Time!VLT$59","v":"00:00:00"},{"$f":"Time!VLU$59","v":"00:00:00"},{"$f":"Time!VLV$59","v":"00:00:00"},{"$f":"Time!VLW$59","v":"00:00:00"},{"$f":"Time!VLX$59","v":"00:00:00"},{"$f":"Time!VLY$59","v":"00:00:00"},{"$f":"Time!VLZ$59","v":"00:00:00"},{"$f":"Time!VMA$59","v":"00:00:00"},{"$f":"Time!VMB$59","v":"00:00:00"},{"$f":"Time!VMC$59","v":"00:00:00"},{"$f":"Time!VMD$59","v":"00:00:00"},{"$f":"Time!VME$59","v":"00:00:00"},{"$f":"Time!VMF$59","v":"00:00:00"},{"$f":"Time!VMG$59","v":"00:00:00"},{"$f":"Time!VMH$59","v":"00:00:00"},{"$f":"Time!VMI$59","v":"00:00:00"},{"$f":"Time!VMJ$59","v":"00:00:00"},{"$f":"Time!VMK$59","v":"00:00:00"},{"$f":"Time!VML$59","v":"00:00:00"},{"$f":"Time!VMM$59","v":"00:00:00"},{"$f":"Time!VMN$59","v":"00:00:00"},{"$f":"Time!VMO$59","v":"00:00:00"},{"$f":"Time!VMP$59","v":"00:00:00"},{"$f":"Time!VMQ$59","v":"00:00:00"},{"$f":"Time!VMR$59","v":"00:00:00"},{"$f":"Time!VMS$59","v":"00:00:00"},{"$f":"Time!VMT$59","v":"00:00:00"},{"$f":"Time!VMU$59","v":"00:00:00"},{"$f":"Time!VMV$59","v":"00:00:00"},{"$f":"Time!VMW$59","v":"00:00:00"},{"$f":"Time!VMX$59","v":"00:00:00"},{"$f":"Time!VMY$59","v":"00:00:00"},{"$f":"Time!VMZ$59","v":"00:00:00"},{"$f":"Time!VNA$59","v":"00:00:00"},{"$f":"Time!VNB$59","v":"00:00:00"},{"$f":"Time!VNC$59","v":"00:00:00"},{"$f":"Time!VND$59","v":"00:00:00"},{"$f":"Time!VNE$59","v":"00:00:00"},{"$f":"Time!VNF$59","v":"00:00:00"},{"$f":"Time!VNG$59","v":"00:00:00"},{"$f":"Time!VNH$59","v":"00:00:00"},{"$f":"Time!VNI$59","v":"00:00:00"},{"$f":"Time!VNJ$59","v":"00:00:00"},{"$f":"Time!VNK$59","v":"00:00:00"},{"$f":"Time!VNL$59","v":"00:00:00"},{"$f":"Time!VNM$59","v":"00:00:00"},{"$f":"Time!VNN$59","v":"00:00:00"},{"$f":"Time!VNO$59","v":"00:00:00"},{"$f":"Time!VNP$59","v":"00:00:00"},{"$f":"Time!VNQ$59","v":"00:00:00"},{"$f":"Time!VNR$59","v":"00:00:00"},{"$f":"Time!VNS$59","v":"00:00:00"},{"$f":"Time!VNT$59","v":"00:00:00"},{"$f":"Time!VNU$59","v":"00:00:00"},{"$f":"Time!VNV$59","v":"00:00:00"},{"$f":"Time!VNW$59","v":"00:00:00"},{"$f":"Time!VNX$59","v":"00:00:00"},{"$f":"Time!VNY$59","v":"00:00:00"},{"$f":"Time!VNZ$59","v":"00:00:00"},{"$f":"Time!VOA$59","v":"00:00:00"},{"$f":"Time!VOB$59","v":"00:00:00"},{"$f":"Time!VOC$59","v":"00:00:00"},{"$f":"Time!VOD$59","v":"00:00:00"},{"$f":"Time!VOE$59","v":"00:00:00"},{"$f":"Time!VOF$59","v":"00:00:00"},{"$f":"Time!VOG$59","v":"00:00:00"},{"$f":"Time!VOH$59","v":"00:00:00"},{"$f":"Time!VOI$59","v":"00:00:00"},{"$f":"Time!VOJ$59","v":"00:00:00"},{"$f":"Time!VOK$59","v":"00:00:00"},{"$f":"Time!VOL$59","v":"00:00:00"},{"$f":"Time!VOM$59","v":"00:00:00"},{"$f":"Time!VON$59","v":"00:00:00"},{"$f":"Time!VOO$59","v":"00:00:00"},{"$f":"Time!VOP$59","v":"00:00:00"},{"$f":"Time!VOQ$59","v":"00:00:00"},{"$f":"Time!VOR$59","v":"00:00:00"},{"$f":"Time!VOS$59","v":"00:00:00"},{"$f":"Time!VOT$59","v":"00:00:00"},{"$f":"Time!VOU$59","v":"00:00:00"},{"$f":"Time!VOV$59","v":"00:00:00"},{"$f":"Time!VOW$59","v":"00:00:00"},{"$f":"Time!VOX$59","v":"00:00:00"},{"$f":"Time!VOY$59","v":"00:00:00"},{"$f":"Time!VOZ$59","v":"00:00:00"},{"$f":"Time!VPA$59","v":"00:00:00"},{"$f":"Time!VPB$59","v":"00:00:00"},{"$f":"Time!VPC$59","v":"00:00:00"},{"$f":"Time!VPD$59","v":"00:00:00"},{"$f":"Time!VPE$59","v":"00:00:00"},{"$f":"Time!VPF$59","v":"00:00:00"},{"$f":"Time!VPG$59","v":"00:00:00"},{"$f":"Time!VPH$59","v":"00:00:00"},{"$f":"Time!VPI$59","v":"00:00:00"},{"$f":"Time!VPJ$59","v":"00:00:00"},{"$f":"Time!VPK$59","v":"00:00:00"},{"$f":"Time!VPL$59","v":"00:00:00"},{"$f":"Time!VPM$59","v":"00:00:00"},{"$f":"Time!VPN$59","v":"00:00:00"},{"$f":"Time!VPO$59","v":"00:00:00"},{"$f":"Time!VPP$59","v":"00:00:00"},{"$f":"Time!VPQ$59","v":"00:00:00"},{"$f":"Time!VPR$59","v":"00:00:00"},{"$f":"Time!VPS$59","v":"00:00:00"},{"$f":"Time!VPT$59","v":"00:00:00"},{"$f":"Time!VPU$59","v":"00:00:00"},{"$f":"Time!VPV$59","v":"00:00:00"},{"$f":"Time!VPW$59","v":"00:00:00"},{"$f":"Time!VPX$59","v":"00:00:00"},{"$f":"Time!VPY$59","v":"00:00:00"},{"$f":"Time!VPZ$59","v":"00:00:00"},{"$f":"Time!VQA$59","v":"00:00:00"},{"$f":"Time!VQB$59","v":"00:00:00"},{"$f":"Time!VQC$59","v":"00:00:00"},{"$f":"Time!VQD$59","v":"00:00:00"},{"$f":"Time!VQE$59","v":"00:00:00"},{"$f":"Time!VQF$59","v":"00:00:00"},{"$f":"Time!VQG$59","v":"00:00:00"},{"$f":"Time!VQH$59","v":"00:00:00"},{"$f":"Time!VQI$59","v":"00:00:00"},{"$f":"Time!VQJ$59","v":"00:00:00"},{"$f":"Time!VQK$59","v":"00:00:00"},{"$f":"Time!VQL$59","v":"00:00:00"},{"$f":"Time!VQM$59","v":"00:00:00"},{"$f":"Time!VQN$59","v":"00:00:00"},{"$f":"Time!VQO$59","v":"00:00:00"},{"$f":"Time!VQP$59","v":"00:00:00"},{"$f":"Time!VQQ$59","v":"00:00:00"},{"$f":"Time!VQR$59","v":"00:00:00"},{"$f":"Time!VQS$59","v":"00:00:00"},{"$f":"Time!VQT$59","v":"00:00:00"},{"$f":"Time!VQU$59","v":"00:00:00"},{"$f":"Time!VQV$59","v":"00:00:00"},{"$f":"Time!VQW$59","v":"00:00:00"},{"$f":"Time!VQX$59","v":"00:00:00"},{"$f":"Time!VQY$59","v":"00:00:00"},{"$f":"Time!VQZ$59","v":"00:00:00"},{"$f":"Time!VRA$59","v":"00:00:00"},{"$f":"Time!VRB$59","v":"00:00:00"},{"$f":"Time!VRC$59","v":"00:00:00"},{"$f":"Time!VRD$59","v":"00:00:00"},{"$f":"Time!VRE$59","v":"00:00:00"},{"$f":"Time!VRF$59","v":"00:00:00"},{"$f":"Time!VRG$59","v":"00:00:00"},{"$f":"Time!VRH$59","v":"00:00:00"},{"$f":"Time!VRI$59","v":"00:00:00"},{"$f":"Time!VRJ$59","v":"00:00:00"},{"$f":"Time!VRK$59","v":"00:00:00"},{"$f":"Time!VRL$59","v":"00:00:00"},{"$f":"Time!VRM$59","v":"00:00:00"},{"$f":"Time!VRN$59","v":"00:00:00"},{"$f":"Time!VRO$59","v":"00:00:00"},{"$f":"Time!VRP$59","v":"00:00:00"},{"$f":"Time!VRQ$59","v":"00:00:00"},{"$f":"Time!VRR$59","v":"00:00:00"},{"$f":"Time!VRS$59","v":"00:00:00"},{"$f":"Time!VRT$59","v":"00:00:00"},{"$f":"Time!VRU$59","v":"00:00:00"},{"$f":"Time!VRV$59","v":"00:00:00"},{"$f":"Time!VRW$59","v":"00:00:00"},{"$f":"Time!VRX$59","v":"00:00:00"},{"$f":"Time!VRY$59","v":"00:00:00"},{"$f":"Time!VRZ$59","v":"00:00:00"},{"$f":"Time!VSA$59","v":"00:00:00"},{"$f":"Time!VSB$59","v":"00:00:00"},{"$f":"Time!VSC$59","v":"00:00:00"},{"$f":"Time!VSD$59","v":"00:00:00"},{"$f":"Time!VSE$59","v":"00:00:00"},{"$f":"Time!VSF$59","v":"00:00:00"},{"$f":"Time!VSG$59","v":"00:00:00"},{"$f":"Time!VSH$59","v":"00:00:00"},{"$f":"Time!VSI$59","v":"00:00:00"},{"$f":"Time!VSJ$59","v":"00:00:00"},{"$f":"Time!VSK$59","v":"00:00:00"},{"$f":"Time!VSL$59","v":"00:00:00"},{"$f":"Time!VSM$59","v":"00:00:00"},{"$f":"Time!VSN$59","v":"00:00:00"},{"$f":"Time!VSO$59","v":"00:00:00"},{"$f":"Time!VSP$59","v":"00:00:00"},{"$f":"Time!VSQ$59","v":"00:00:00"},{"$f":"Time!VSR$59","v":"00:00:00"},{"$f":"Time!VSS$59","v":"00:00:00"},{"$f":"Time!VST$59","v":"00:00:00"},{"$f":"Time!VSU$59","v":"00:00:00"},{"$f":"Time!VSV$59","v":"00:00:00"},{"$f":"Time!VSW$59","v":"00:00:00"},{"$f":"Time!VSX$59","v":"00:00:00"},{"$f":"Time!VSY$59","v":"00:00:00"},{"$f":"Time!VSZ$59","v":"00:00:00"},{"$f":"Time!VTA$59","v":"00:00:00"},{"$f":"Time!VTB$59","v":"00:00:00"},{"$f":"Time!VTC$59","v":"00:00:00"},{"$f":"Time!VTD$59","v":"00:00:00"},{"$f":"Time!VTE$59","v":"00:00:00"},{"$f":"Time!VTF$59","v":"00:00:00"},{"$f":"Time!VTG$59","v":"00:00:00"},{"$f":"Time!VTH$59","v":"00:00:00"},{"$f":"Time!VTI$59","v":"00:00:00"},{"$f":"Time!VTJ$59","v":"00:00:00"},{"$f":"Time!VTK$59","v":"00:00:00"},{"$f":"Time!VTL$59","v":"00:00:00"},{"$f":"Time!VTM$59","v":"00:00:00"},{"$f":"Time!VTN$59","v":"00:00:00"},{"$f":"Time!VTO$59","v":"00:00:00"},{"$f":"Time!VTP$59","v":"00:00:00"},{"$f":"Time!VTQ$59","v":"00:00:00"},{"$f":"Time!VTR$59","v":"00:00:00"},{"$f":"Time!VTS$59","v":"00:00:00"},{"$f":"Time!VTT$59","v":"00:00:00"},{"$f":"Time!VTU$59","v":"00:00:00"},{"$f":"Time!VTV$59","v":"00:00:00"},{"$f":"Time!VTW$59","v":"00:00:00"},{"$f":"Time!VTX$59","v":"00:00:00"},{"$f":"Time!VTY$59","v":"00:00:00"},{"$f":"Time!VTZ$59","v":"00:00:00"},{"$f":"Time!VUA$59","v":"00:00:00"},{"$f":"Time!VUB$59","v":"00:00:00"},{"$f":"Time!VUC$59","v":"00:00:00"},{"$f":"Time!VUD$59","v":"00:00:00"},{"$f":"Time!VUE$59","v":"00:00:00"},{"$f":"Time!VUF$59","v":"00:00:00"},{"$f":"Time!VUG$59","v":"00:00:00"},{"$f":"Time!VUH$59","v":"00:00:00"},{"$f":"Time!VUI$59","v":"00:00:00"},{"$f":"Time!VUJ$59","v":"00:00:00"},{"$f":"Time!VUK$59","v":"00:00:00"},{"$f":"Time!VUL$59","v":"00:00:00"},{"$f":"Time!VUM$59","v":"00:00:00"},{"$f":"Time!VUN$59","v":"00:00:00"},{"$f":"Time!VUO$59","v":"00:00:00"},{"$f":"Time!VUP$59","v":"00:00:00"},{"$f":"Time!VUQ$59","v":"00:00:00"},{"$f":"Time!VUR$59","v":"00:00:00"},{"$f":"Time!VUS$59","v":"00:00:00"},{"$f":"Time!VUT$59","v":"00:00:00"},{"$f":"Time!VUU$59","v":"00:00:00"},{"$f":"Time!VUV$59","v":"00:00:00"},{"$f":"Time!VUW$59","v":"00:00:00"},{"$f":"Time!VUX$59","v":"00:00:00"},{"$f":"Time!VUY$59","v":"00:00:00"},{"$f":"Time!VUZ$59","v":"00:00:00"},{"$f":"Time!VVA$59","v":"00:00:00"},{"$f":"Time!VVB$59","v":"00:00:00"},{"$f":"Time!VVC$59","v":"00:00:00"},{"$f":"Time!VVD$59","v":"00:00:00"},{"$f":"Time!VVE$59","v":"00:00:00"},{"$f":"Time!VVF$59","v":"00:00:00"},{"$f":"Time!VVG$59","v":"00:00:00"},{"$f":"Time!VVH$59","v":"00:00:00"},{"$f":"Time!VVI$59","v":"00:00:00"},{"$f":"Time!VVJ$59","v":"00:00:00"},{"$f":"Time!VVK$59","v":"00:00:00"},{"$f":"Time!VVL$59","v":"00:00:00"},{"$f":"Time!VVM$59","v":"00:00:00"},{"$f":"Time!VVN$59","v":"00:00:00"},{"$f":"Time!VVO$59","v":"00:00:00"},{"$f":"Time!VVP$59","v":"00:00:00"},{"$f":"Time!VVQ$59","v":"00:00:00"},{"$f":"Time!VVR$59","v":"00:00:00"},{"$f":"Time!VVS$59","v":"00:00:00"},{"$f":"Time!VVT$59","v":"00:00:00"},{"$f":"Time!VVU$59","v":"00:00:00"},{"$f":"Time!VVV$59","v":"00:00:00"},{"$f":"Time!VVW$59","v":"00:00:00"},{"$f":"Time!VVX$59","v":"00:00:00"},{"$f":"Time!VVY$59","v":"00:00:00"},{"$f":"Time!VVZ$59","v":"00:00:00"},{"$f":"Time!VWA$59","v":"00:00:00"},{"$f":"Time!VWB$59","v":"00:00:00"},{"$f":"Time!VWC$59","v":"00:00:00"},{"$f":"Time!VWD$59","v":"00:00:00"},{"$f":"Time!VWE$59","v":"00:00:00"},{"$f":"Time!VWF$59","v":"00:00:00"},{"$f":"Time!VWG$59","v":"00:00:00"},{"$f":"Time!VWH$59","v":"00:00:00"},{"$f":"Time!VWI$59","v":"00:00:00"},{"$f":"Time!VWJ$59","v":"00:00:00"},{"$f":"Time!VWK$59","v":"00:00:00"},{"$f":"Time!VWL$59","v":"00:00:00"},{"$f":"Time!VWM$59","v":"00:00:00"},{"$f":"Time!VWN$59","v":"00:00:00"},{"$f":"Time!VWO$59","v":"00:00:00"},{"$f":"Time!VWP$59","v":"00:00:00"},{"$f":"Time!VWQ$59","v":"00:00:00"},{"$f":"Time!VWR$59","v":"00:00:00"},{"$f":"Time!VWS$59","v":"00:00:00"},{"$f":"Time!VWT$59","v":"00:00:00"},{"$f":"Time!VWU$59","v":"00:00:00"},{"$f":"Time!VWV$59","v":"00:00:00"},{"$f":"Time!VWW$59","v":"00:00:00"},{"$f":"Time!VWX$59","v":"00:00:00"},{"$f":"Time!VWY$59","v":"00:00:00"},{"$f":"Time!VWZ$59","v":"00:00:00"},{"$f":"Time!VXA$59","v":"00:00:00"},{"$f":"Time!VXB$59","v":"00:00:00"},{"$f":"Time!VXC$59","v":"00:00:00"},{"$f":"Time!VXD$59","v":"00:00:00"},{"$f":"Time!VXE$59","v":"00:00:00"},{"$f":"Time!VXF$59","v":"00:00:00"},{"$f":"Time!VXG$59","v":"00:00:00"},{"$f":"Time!VXH$59","v":"00:00:00"},{"$f":"Time!VXI$59","v":"00:00:00"},{"$f":"Time!VXJ$59","v":"00:00:00"},{"$f":"Time!VXK$59","v":"00:00:00"},{"$f":"Time!VXL$59","v":"00:00:00"},{"$f":"Time!VXM$59","v":"00:00:00"},{"$f":"Time!VXN$59","v":"00:00:00"},{"$f":"Time!VXO$59","v":"00:00:00"},{"$f":"Time!VXP$59","v":"00:00:00"},{"$f":"Time!VXQ$59","v":"00:00:00"},{"$f":"Time!VXR$59","v":"00:00:00"},{"$f":"Time!VXS$59","v":"00:00:00"},{"$f":"Time!VXT$59","v":"00:00:00"},{"$f":"Time!VXU$59","v":"00:00:00"},{"$f":"Time!VXV$59","v":"00:00:00"},{"$f":"Time!VXW$59","v":"00:00:00"},{"$f":"Time!VXX$59","v":"00:00:00"},{"$f":"Time!VXY$59","v":"00:00:00"},{"$f":"Time!VXZ$59","v":"00:00:00"},{"$f":"Time!VYA$59","v":"00:00:00"},{"$f":"Time!VYB$59","v":"00:00:00"},{"$f":"Time!VYC$59","v":"00:00:00"},{"$f":"Time!VYD$59","v":"00:00:00"},{"$f":"Time!VYE$59","v":"00:00:00"},{"$f":"Time!VYF$59","v":"00:00:00"},{"$f":"Time!VYG$59","v":"00:00:00"},{"$f":"Time!VYH$59","v":"00:00:00"},{"$f":"Time!VYI$59","v":"00:00:00"},{"$f":"Time!VYJ$59","v":"00:00:00"},{"$f":"Time!VYK$59","v":"00:00:00"},{"$f":"Time!VYL$59","v":"00:00:00"},{"$f":"Time!VYM$59","v":"00:00:00"},{"$f":"Time!VYN$59","v":"00:00:00"},{"$f":"Time!VYO$59","v":"00:00:00"},{"$f":"Time!VYP$59","v":"00:00:00"},{"$f":"Time!VYQ$59","v":"00:00:00"},{"$f":"Time!VYR$59","v":"00:00:00"},{"$f":"Time!VYS$59","v":"00:00:00"},{"$f":"Time!VYT$59","v":"00:00:00"},{"$f":"Time!VYU$59","v":"00:00:00"},{"$f":"Time!VYV$59","v":"00:00:00"},{"$f":"Time!VYW$59","v":"00:00:00"},{"$f":"Time!VYX$59","v":"00:00:00"},{"$f":"Time!VYY$59","v":"00:00:00"},{"$f":"Time!VYZ$59","v":"00:00:00"},{"$f":"Time!VZA$59","v":"00:00:00"},{"$f":"Time!VZB$59","v":"00:00:00"},{"$f":"Time!VZC$59","v":"00:00:00"},{"$f":"Time!VZD$59","v":"00:00:00"},{"$f":"Time!VZE$59","v":"00:00:00"},{"$f":"Time!VZF$59","v":"00:00:00"},{"$f":"Time!VZG$59","v":"00:00:00"},{"$f":"Time!VZH$59","v":"00:00:00"},{"$f":"Time!VZI$59","v":"00:00:00"},{"$f":"Time!VZJ$59","v":"00:00:00"},{"$f":"Time!VZK$59","v":"00:00:00"},{"$f":"Time!VZL$59","v":"00:00:00"},{"$f":"Time!VZM$59","v":"00:00:00"},{"$f":"Time!VZN$59","v":"00:00:00"},{"$f":"Time!VZO$59","v":"00:00:00"},{"$f":"Time!VZP$59","v":"00:00:00"},{"$f":"Time!VZQ$59","v":"00:00:00"},{"$f":"Time!VZR$59","v":"00:00:00"},{"$f":"Time!VZS$59","v":"00:00:00"},{"$f":"Time!VZT$59","v":"00:00:00"},{"$f":"Time!VZU$59","v":"00:00:00"},{"$f":"Time!VZV$59","v":"00:00:00"},{"$f":"Time!VZW$59","v":"00:00:00"},{"$f":"Time!VZX$59","v":"00:00:00"},{"$f":"Time!VZY$59","v":"00:00:00"},{"$f":"Time!VZZ$59","v":"00:00:00"},{"$f":"Time!WAA$59","v":"00:00:00"},{"$f":"Time!WAB$59","v":"00:00:00"},{"$f":"Time!WAC$59","v":"00:00:00"},{"$f":"Time!WAD$59","v":"00:00:00"},{"$f":"Time!WAE$59","v":"00:00:00"},{"$f":"Time!WAF$59","v":"00:00:00"},{"$f":"Time!WAG$59","v":"00:00:00"},{"$f":"Time!WAH$59","v":"00:00:00"},{"$f":"Time!WAI$59","v":"00:00:00"},{"$f":"Time!WAJ$59","v":"00:00:00"},{"$f":"Time!WAK$59","v":"00:00:00"},{"$f":"Time!WAL$59","v":"00:00:00"},{"$f":"Time!WAM$59","v":"00:00:00"},{"$f":"Time!WAN$59","v":"00:00:00"},{"$f":"Time!WAO$59","v":"00:00:00"},{"$f":"Time!WAP$59","v":"00:00:00"},{"$f":"Time!WAQ$59","v":"00:00:00"},{"$f":"Time!WAR$59","v":"00:00:00"},{"$f":"Time!WAS$59","v":"00:00:00"},{"$f":"Time!WAT$59","v":"00:00:00"},{"$f":"Time!WAU$59","v":"00:00:00"},{"$f":"Time!WAV$59","v":"00:00:00"},{"$f":"Time!WAW$59","v":"00:00:00"},{"$f":"Time!WAX$59","v":"00:00:00"},{"$f":"Time!WAY$59","v":"00:00:00"},{"$f":"Time!WAZ$59","v":"00:00:00"},{"$f":"Time!WBA$59","v":"00:00:00"},{"$f":"Time!WBB$59","v":"00:00:00"},{"$f":"Time!WBC$59","v":"00:00:00"},{"$f":"Time!WBD$59","v":"00:00:00"},{"$f":"Time!WBE$59","v":"00:00:00"},{"$f":"Time!WBF$59","v":"00:00:00"},{"$f":"Time!WBG$59","v":"00:00:00"},{"$f":"Time!WBH$59","v":"00:00:00"},{"$f":"Time!WBI$59","v":"00:00:00"},{"$f":"Time!WBJ$59","v":"00:00:00"},{"$f":"Time!WBK$59","v":"00:00:00"},{"$f":"Time!WBL$59","v":"00:00:00"},{"$f":"Time!WBM$59","v":"00:00:00"},{"$f":"Time!WBN$59","v":"00:00:00"},{"$f":"Time!WBO$59","v":"00:00:00"},{"$f":"Time!WBP$59","v":"00:00:00"},{"$f":"Time!WBQ$59","v":"00:00:00"},{"$f":"Time!WBR$59","v":"00:00:00"},{"$f":"Time!WBS$59","v":"00:00:00"},{"$f":"Time!WBT$59","v":"00:00:00"},{"$f":"Time!WBU$59","v":"00:00:00"},{"$f":"Time!WBV$59","v":"00:00:00"},{"$f":"Time!WBW$59","v":"00:00:00"},{"$f":"Time!WBX$59","v":"00:00:00"},{"$f":"Time!WBY$59","v":"00:00:00"},{"$f":"Time!WBZ$59","v":"00:00:00"},{"$f":"Time!WCA$59","v":"00:00:00"},{"$f":"Time!WCB$59","v":"00:00:00"},{"$f":"Time!WCC$59","v":"00:00:00"},{"$f":"Time!WCD$59","v":"00:00:00"},{"$f":"Time!WCE$59","v":"00:00:00"},{"$f":"Time!WCF$59","v":"00:00:00"},{"$f":"Time!WCG$59","v":"00:00:00"},{"$f":"Time!WCH$59","v":"00:00:00"},{"$f":"Time!WCI$59","v":"00:00:00"},{"$f":"Time!WCJ$59","v":"00:00:00"},{"$f":"Time!WCK$59","v":"00:00:00"},{"$f":"Time!WCL$59","v":"00:00:00"},{"$f":"Time!WCM$59","v":"00:00:00"},{"$f":"Time!WCN$59","v":"00:00:00"},{"$f":"Time!WCO$59","v":"00:00:00"},{"$f":"Time!WCP$59","v":"00:00:00"},{"$f":"Time!WCQ$59","v":"00:00:00"},{"$f":"Time!WCR$59","v":"00:00:00"},{"$f":"Time!WCS$59","v":"00:00:00"},{"$f":"Time!WCT$59","v":"00:00:00"},{"$f":"Time!WCU$59","v":"00:00:00"},{"$f":"Time!WCV$59","v":"00:00:00"},{"$f":"Time!WCW$59","v":"00:00:00"},{"$f":"Time!WCX$59","v":"00:00:00"},{"$f":"Time!WCY$59","v":"00:00:00"},{"$f":"Time!WCZ$59","v":"00:00:00"},{"$f":"Time!WDA$59","v":"00:00:00"},{"$f":"Time!WDB$59","v":"00:00:00"},{"$f":"Time!WDC$59","v":"00:00:00"},{"$f":"Time!WDD$59","v":"00:00:00"},{"$f":"Time!WDE$59","v":"00:00:00"},{"$f":"Time!WDF$59","v":"00:00:00"},{"$f":"Time!WDG$59","v":"00:00:00"},{"$f":"Time!WDH$59","v":"00:00:00"},{"$f":"Time!WDI$59","v":"00:00:00"},{"$f":"Time!WDJ$59","v":"00:00:00"},{"$f":"Time!WDK$59","v":"00:00:00"},{"$f":"Time!WDL$59","v":"00:00:00"},{"$f":"Time!WDM$59","v":"00:00:00"},{"$f":"Time!WDN$59","v":"00:00:00"},{"$f":"Time!WDO$59","v":"00:00:00"},{"$f":"Time!WDP$59","v":"00:00:00"},{"$f":"Time!WDQ$59","v":"00:00:00"},{"$f":"Time!WDR$59","v":"00:00:00"},{"$f":"Time!WDS$59","v":"00:00:00"},{"$f":"Time!WDT$59","v":"00:00:00"},{"$f":"Time!WDU$59","v":"00:00:00"},{"$f":"Time!WDV$59","v":"00:00:00"},{"$f":"Time!WDW$59","v":"00:00:00"},{"$f":"Time!WDX$59","v":"00:00:00"},{"$f":"Time!WDY$59","v":"00:00:00"},{"$f":"Time!WDZ$59","v":"00:00:00"},{"$f":"Time!WEA$59","v":"00:00:00"},{"$f":"Time!WEB$59","v":"00:00:00"},{"$f":"Time!WEC$59","v":"00:00:00"},{"$f":"Time!WED$59","v":"00:00:00"},{"$f":"Time!WEE$59","v":"00:00:00"},{"$f":"Time!WEF$59","v":"00:00:00"},{"$f":"Time!WEG$59","v":"00:00:00"},{"$f":"Time!WEH$59","v":"00:00:00"},{"$f":"Time!WEI$59","v":"00:00:00"},{"$f":"Time!WEJ$59","v":"00:00:00"},{"$f":"Time!WEK$59","v":"00:00:00"},{"$f":"Time!WEL$59","v":"00:00:00"},{"$f":"Time!WEM$59","v":"00:00:00"},{"$f":"Time!WEN$59","v":"00:00:00"},{"$f":"Time!WEO$59","v":"00:00:00"},{"$f":"Time!WEP$59","v":"00:00:00"},{"$f":"Time!WEQ$59","v":"00:00:00"},{"$f":"Time!WER$59","v":"00:00:00"},{"$f":"Time!WES$59","v":"00:00:00"},{"$f":"Time!WET$59","v":"00:00:00"},{"$f":"Time!WEU$59","v":"00:00:00"},{"$f":"Time!WEV$59","v":"00:00:00"},{"$f":"Time!WEW$59","v":"00:00:00"},{"$f":"Time!WEX$59","v":"00:00:00"},{"$f":"Time!WEY$59","v":"00:00:00"},{"$f":"Time!WEZ$59","v":"00:00:00"},{"$f":"Time!WFA$59","v":"00:00:00"},{"$f":"Time!WFB$59","v":"00:00:00"},{"$f":"Time!WFC$59","v":"00:00:00"},{"$f":"Time!WFD$59","v":"00:00:00"},{"$f":"Time!WFE$59","v":"00:00:00"},{"$f":"Time!WFF$59","v":"00:00:00"},{"$f":"Time!WFG$59","v":"00:00:00"},{"$f":"Time!WFH$59","v":"00:00:00"},{"$f":"Time!WFI$59","v":"00:00:00"},{"$f":"Time!WFJ$59","v":"00:00:00"},{"$f":"Time!WFK$59","v":"00:00:00"},{"$f":"Time!WFL$59","v":"00:00:00"},{"$f":"Time!WFM$59","v":"00:00:00"},{"$f":"Time!WFN$59","v":"00:00:00"},{"$f":"Time!WFO$59","v":"00:00:00"},{"$f":"Time!WFP$59","v":"00:00:00"},{"$f":"Time!WFQ$59","v":"00:00:00"},{"$f":"Time!WFR$59","v":"00:00:00"},{"$f":"Time!WFS$59","v":"00:00:00"},{"$f":"Time!WFT$59","v":"00:00:00"},{"$f":"Time!WFU$59","v":"00:00:00"},{"$f":"Time!WFV$59","v":"00:00:00"},{"$f":"Time!WFW$59","v":"00:00:00"},{"$f":"Time!WFX$59","v":"00:00:00"},{"$f":"Time!WFY$59","v":"00:00:00"},{"$f":"Time!WFZ$59","v":"00:00:00"},{"$f":"Time!WGA$59","v":"00:00:00"},{"$f":"Time!WGB$59","v":"00:00:00"},{"$f":"Time!WGC$59","v":"00:00:00"},{"$f":"Time!WGD$59","v":"00:00:00"},{"$f":"Time!WGE$59","v":"00:00:00"},{"$f":"Time!WGF$59","v":"00:00:00"},{"$f":"Time!WGG$59","v":"00:00:00"},{"$f":"Time!WGH$59","v":"00:00:00"},{"$f":"Time!WGI$59","v":"00:00:00"},{"$f":"Time!WGJ$59","v":"00:00:00"},{"$f":"Time!WGK$59","v":"00:00:00"},{"$f":"Time!WGL$59","v":"00:00:00"},{"$f":"Time!WGM$59","v":"00:00:00"},{"$f":"Time!WGN$59","v":"00:00:00"},{"$f":"Time!WGO$59","v":"00:00:00"},{"$f":"Time!WGP$59","v":"00:00:00"},{"$f":"Time!WGQ$59","v":"00:00:00"},{"$f":"Time!WGR$59","v":"00:00:00"},{"$f":"Time!WGS$59","v":"00:00:00"},{"$f":"Time!WGT$59","v":"00:00:00"},{"$f":"Time!WGU$59","v":"00:00:00"},{"$f":"Time!WGV$59","v":"00:00:00"},{"$f":"Time!WGW$59","v":"00:00:00"},{"$f":"Time!WGX$59","v":"00:00:00"},{"$f":"Time!WGY$59","v":"00:00:00"},{"$f":"Time!WGZ$59","v":"00:00:00"},{"$f":"Time!WHA$59","v":"00:00:00"},{"$f":"Time!WHB$59","v":"00:00:00"},{"$f":"Time!WHC$59","v":"00:00:00"},{"$f":"Time!WHD$59","v":"00:00:00"},{"$f":"Time!WHE$59","v":"00:00:00"},{"$f":"Time!WHF$59","v":"00:00:00"},{"$f":"Time!WHG$59","v":"00:00:00"},{"$f":"Time!WHH$59","v":"00:00:00"},{"$f":"Time!WHI$59","v":"00:00:00"},{"$f":"Time!WHJ$59","v":"00:00:00"},{"$f":"Time!WHK$59","v":"00:00:00"},{"$f":"Time!WHL$59","v":"00:00:00"},{"$f":"Time!WHM$59","v":"00:00:00"},{"$f":"Time!WHN$59","v":"00:00:00"},{"$f":"Time!WHO$59","v":"00:00:00"},{"$f":"Time!WHP$59","v":"00:00:00"},{"$f":"Time!WHQ$59","v":"00:00:00"},{"$f":"Time!WHR$59","v":"00:00:00"},{"$f":"Time!WHS$59","v":"00:00:00"},{"$f":"Time!WHT$59","v":"00:00:00"},{"$f":"Time!WHU$59","v":"00:00:00"},{"$f":"Time!WHV$59","v":"00:00:00"},{"$f":"Time!WHW$59","v":"00:00:00"},{"$f":"Time!WHX$59","v":"00:00:00"},{"$f":"Time!WHY$59","v":"00:00:00"},{"$f":"Time!WHZ$59","v":"00:00:00"},{"$f":"Time!WIA$59","v":"00:00:00"},{"$f":"Time!WIB$59","v":"00:00:00"},{"$f":"Time!WIC$59","v":"00:00:00"},{"$f":"Time!WID$59","v":"00:00:00"},{"$f":"Time!WIE$59","v":"00:00:00"},{"$f":"Time!WIF$59","v":"00:00:00"},{"$f":"Time!WIG$59","v":"00:00:00"},{"$f":"Time!WIH$59","v":"00:00:00"},{"$f":"Time!WII$59","v":"00:00:00"},{"$f":"Time!WIJ$59","v":"00:00:00"},{"$f":"Time!WIK$59","v":"00:00:00"},{"$f":"Time!WIL$59","v":"00:00:00"},{"$f":"Time!WIM$59","v":"00:00:00"},{"$f":"Time!WIN$59","v":"00:00:00"},{"$f":"Time!WIO$59","v":"00:00:00"},{"$f":"Time!WIP$59","v":"00:00:00"},{"$f":"Time!WIQ$59","v":"00:00:00"},{"$f":"Time!WIR$59","v":"00:00:00"},{"$f":"Time!WIS$59","v":"00:00:00"},{"$f":"Time!WIT$59","v":"00:00:00"},{"$f":"Time!WIU$59","v":"00:00:00"},{"$f":"Time!WIV$59","v":"00:00:00"},{"$f":"Time!WIW$59","v":"00:00:00"},{"$f":"Time!WIX$59","v":"00:00:00"},{"$f":"Time!WIY$59","v":"00:00:00"},{"$f":"Time!WIZ$59","v":"00:00:00"},{"$f":"Time!WJA$59","v":"00:00:00"},{"$f":"Time!WJB$59","v":"00:00:00"},{"$f":"Time!WJC$59","v":"00:00:00"},{"$f":"Time!WJD$59","v":"00:00:00"},{"$f":"Time!WJE$59","v":"00:00:00"},{"$f":"Time!WJF$59","v":"00:00:00"},{"$f":"Time!WJG$59","v":"00:00:00"},{"$f":"Time!WJH$59","v":"00:00:00"},{"$f":"Time!WJI$59","v":"00:00:00"},{"$f":"Time!WJJ$59","v":"00:00:00"},{"$f":"Time!WJK$59","v":"00:00:00"},{"$f":"Time!WJL$59","v":"00:00:00"},{"$f":"Time!WJM$59","v":"00:00:00"},{"$f":"Time!WJN$59","v":"00:00:00"},{"$f":"Time!WJO$59","v":"00:00:00"},{"$f":"Time!WJP$59","v":"00:00:00"},{"$f":"Time!WJQ$59","v":"00:00:00"},{"$f":"Time!WJR$59","v":"00:00:00"},{"$f":"Time!WJS$59","v":"00:00:00"},{"$f":"Time!WJT$59","v":"00:00:00"},{"$f":"Time!WJU$59","v":"00:00:00"},{"$f":"Time!WJV$59","v":"00:00:00"},{"$f":"Time!WJW$59","v":"00:00:00"},{"$f":"Time!WJX$59","v":"00:00:00"},{"$f":"Time!WJY$59","v":"00:00:00"},{"$f":"Time!WJZ$59","v":"00:00:00"},{"$f":"Time!WKA$59","v":"00:00:00"},{"$f":"Time!WKB$59","v":"00:00:00"},{"$f":"Time!WKC$59","v":"00:00:00"},{"$f":"Time!WKD$59","v":"00:00:00"},{"$f":"Time!WKE$59","v":"00:00:00"},{"$f":"Time!WKF$59","v":"00:00:00"},{"$f":"Time!WKG$59","v":"00:00:00"},{"$f":"Time!WKH$59","v":"00:00:00"},{"$f":"Time!WKI$59","v":"00:00:00"},{"$f":"Time!WKJ$59","v":"00:00:00"},{"$f":"Time!WKK$59","v":"00:00:00"},{"$f":"Time!WKL$59","v":"00:00:00"},{"$f":"Time!WKM$59","v":"00:00:00"},{"$f":"Time!WKN$59","v":"00:00:00"},{"$f":"Time!WKO$59","v":"00:00:00"},{"$f":"Time!WKP$59","v":"00:00:00"},{"$f":"Time!WKQ$59","v":"00:00:00"},{"$f":"Time!WKR$59","v":"00:00:00"},{"$f":"Time!WKS$59","v":"00:00:00"},{"$f":"Time!WKT$59","v":"00:00:00"},{"$f":"Time!WKU$59","v":"00:00:00"},{"$f":"Time!WKV$59","v":"00:00:00"},{"$f":"Time!WKW$59","v":"00:00:00"},{"$f":"Time!WKX$59","v":"00:00:00"},{"$f":"Time!WKY$59","v":"00:00:00"},{"$f":"Time!WKZ$59","v":"00:00:00"},{"$f":"Time!WLA$59","v":"00:00:00"},{"$f":"Time!WLB$59","v":"00:00:00"},{"$f":"Time!WLC$59","v":"00:00:00"},{"$f":"Time!WLD$59","v":"00:00:00"},{"$f":"Time!WLE$59","v":"00:00:00"},{"$f":"Time!WLF$59","v":"00:00:00"},{"$f":"Time!WLG$59","v":"00:00:00"},{"$f":"Time!WLH$59","v":"00:00:00"},{"$f":"Time!WLI$59","v":"00:00:00"},{"$f":"Time!WLJ$59","v":"00:00:00"},{"$f":"Time!WLK$59","v":"00:00:00"},{"$f":"Time!WLL$59","v":"00:00:00"},{"$f":"Time!WLM$59","v":"00:00:00"},{"$f":"Time!WLN$59","v":"00:00:00"},{"$f":"Time!WLO$59","v":"00:00:00"},{"$f":"Time!WLP$59","v":"00:00:00"},{"$f":"Time!WLQ$59","v":"00:00:00"},{"$f":"Time!WLR$59","v":"00:00:00"},{"$f":"Time!WLS$59","v":"00:00:00"},{"$f":"Time!WLT$59","v":"00:00:00"},{"$f":"Time!WLU$59","v":"00:00:00"},{"$f":"Time!WLV$59","v":"00:00:00"},{"$f":"Time!WLW$59","v":"00:00:00"},{"$f":"Time!WLX$59","v":"00:00:00"},{"$f":"Time!WLY$59","v":"00:00:00"},{"$f":"Time!WLZ$59","v":"00:00:00"},{"$f":"Time!WMA$59","v":"00:00:00"},{"$f":"Time!WMB$59","v":"00:00:00"},{"$f":"Time!WMC$59","v":"00:00:00"},{"$f":"Time!WMD$59","v":"00:00:00"},{"$f":"Time!WME$59","v":"00:00:00"},{"$f":"Time!WMF$59","v":"00:00:00"},{"$f":"Time!WMG$59","v":"00:00:00"},{"$f":"Time!WMH$59","v":"00:00:00"},{"$f":"Time!WMI$59","v":"00:00:00"},{"$f":"Time!WMJ$59","v":"00:00:00"},{"$f":"Time!WMK$59","v":"00:00:00"},{"$f":"Time!WML$59","v":"00:00:00"},{"$f":"Time!WMM$59","v":"00:00:00"},{"$f":"Time!WMN$59","v":"00:00:00"},{"$f":"Time!WMO$59","v":"00:00:00"},{"$f":"Time!WMP$59","v":"00:00:00"},{"$f":"Time!WMQ$59","v":"00:00:00"},{"$f":"Time!WMR$59","v":"00:00:00"},{"$f":"Time!WMS$59","v":"00:00:00"},{"$f":"Time!WMT$59","v":"00:00:00"},{"$f":"Time!WMU$59","v":"00:00:00"},{"$f":"Time!WMV$59","v":"00:00:00"},{"$f":"Time!WMW$59","v":"00:00:00"},{"$f":"Time!WMX$59","v":"00:00:00"},{"$f":"Time!WMY$59","v":"00:00:00"},{"$f":"Time!WMZ$59","v":"00:00:00"},{"$f":"Time!WNA$59","v":"00:00:00"},{"$f":"Time!WNB$59","v":"00:00:00"},{"$f":"Time!WNC$59","v":"00:00:00"},{"$f":"Time!WND$59","v":"00:00:00"},{"$f":"Time!WNE$59","v":"00:00:00"},{"$f":"Time!WNF$59","v":"00:00:00"},{"$f":"Time!WNG$59","v":"00:00:00"},{"$f":"Time!WNH$59","v":"00:00:00"},{"$f":"Time!WNI$59","v":"00:00:00"},{"$f":"Time!WNJ$59","v":"00:00:00"},{"$f":"Time!WNK$59","v":"00:00:00"},{"$f":"Time!WNL$59","v":"00:00:00"},{"$f":"Time!WNM$59","v":"00:00:00"},{"$f":"Time!WNN$59","v":"00:00:00"},{"$f":"Time!WNO$59","v":"00:00:00"},{"$f":"Time!WNP$59","v":"00:00:00"},{"$f":"Time!WNQ$59","v":"00:00:00"},{"$f":"Time!WNR$59","v":"00:00:00"},{"$f":"Time!WNS$59","v":"00:00:00"},{"$f":"Time!WNT$59","v":"00:00:00"},{"$f":"Time!WNU$59","v":"00:00:00"},{"$f":"Time!WNV$59","v":"00:00:00"},{"$f":"Time!WNW$59","v":"00:00:00"},{"$f":"Time!WNX$59","v":"00:00:00"},{"$f":"Time!WNY$59","v":"00:00:00"},{"$f":"Time!WNZ$59","v":"00:00:00"},{"$f":"Time!WOA$59","v":"00:00:00"},{"$f":"Time!WOB$59","v":"00:00:00"},{"$f":"Time!WOC$59","v":"00:00:00"},{"$f":"Time!WOD$59","v":"00:00:00"},{"$f":"Time!WOE$59","v":"00:00:00"},{"$f":"Time!WOF$59","v":"00:00:00"},{"$f":"Time!WOG$59","v":"00:00:00"},{"$f":"Time!WOH$59","v":"00:00:00"},{"$f":"Time!WOI$59","v":"00:00:00"},{"$f":"Time!WOJ$59","v":"00:00:00"},{"$f":"Time!WOK$59","v":"00:00:00"},{"$f":"Time!WOL$59","v":"00:00:00"},{"$f":"Time!WOM$59","v":"00:00:00"},{"$f":"Time!WON$59","v":"00:00:00"},{"$f":"Time!WOO$59","v":"00:00:00"},{"$f":"Time!WOP$59","v":"00:00:00"},{"$f":"Time!WOQ$59","v":"00:00:00"},{"$f":"Time!WOR$59","v":"00:00:00"},{"$f":"Time!WOS$59","v":"00:00:00"},{"$f":"Time!WOT$59","v":"00:00:00"},{"$f":"Time!WOU$59","v":"00:00:00"},{"$f":"Time!WOV$59","v":"00:00:00"},{"$f":"Time!WOW$59","v":"00:00:00"},{"$f":"Time!WOX$59","v":"00:00:00"},{"$f":"Time!WOY$59","v":"00:00:00"},{"$f":"Time!WOZ$59","v":"00:00:00"},{"$f":"Time!WPA$59","v":"00:00:00"},{"$f":"Time!WPB$59","v":"00:00:00"},{"$f":"Time!WPC$59","v":"00:00:00"},{"$f":"Time!WPD$59","v":"00:00:00"},{"$f":"Time!WPE$59","v":"00:00:00"},{"$f":"Time!WPF$59","v":"00:00:00"},{"$f":"Time!WPG$59","v":"00:00:00"},{"$f":"Time!WPH$59","v":"00:00:00"},{"$f":"Time!WPI$59","v":"00:00:00"},{"$f":"Time!WPJ$59","v":"00:00:00"},{"$f":"Time!WPK$59","v":"00:00:00"},{"$f":"Time!WPL$59","v":"00:00:00"},{"$f":"Time!WPM$59","v":"00:00:00"},{"$f":"Time!WPN$59","v":"00:00:00"},{"$f":"Time!WPO$59","v":"00:00:00"},{"$f":"Time!WPP$59","v":"00:00:00"},{"$f":"Time!WPQ$59","v":"00:00:00"},{"$f":"Time!WPR$59","v":"00:00:00"},{"$f":"Time!WPS$59","v":"00:00:00"},{"$f":"Time!WPT$59","v":"00:00:00"},{"$f":"Time!WPU$59","v":"00:00:00"},{"$f":"Time!WPV$59","v":"00:00:00"},{"$f":"Time!WPW$59","v":"00:00:00"},{"$f":"Time!WPX$59","v":"00:00:00"},{"$f":"Time!WPY$59","v":"00:00:00"},{"$f":"Time!WPZ$59","v":"00:00:00"},{"$f":"Time!WQA$59","v":"00:00:00"},{"$f":"Time!WQB$59","v":"00:00:00"},{"$f":"Time!WQC$59","v":"00:00:00"},{"$f":"Time!WQD$59","v":"00:00:00"},{"$f":"Time!WQE$59","v":"00:00:00"},{"$f":"Time!WQF$59","v":"00:00:00"},{"$f":"Time!WQG$59","v":"00:00:00"},{"$f":"Time!WQH$59","v":"00:00:00"},{"$f":"Time!WQI$59","v":"00:00:00"},{"$f":"Time!WQJ$59","v":"00:00:00"},{"$f":"Time!WQK$59","v":"00:00:00"},{"$f":"Time!WQL$59","v":"00:00:00"},{"$f":"Time!WQM$59","v":"00:00:00"},{"$f":"Time!WQN$59","v":"00:00:00"},{"$f":"Time!WQO$59","v":"00:00:00"},{"$f":"Time!WQP$59","v":"00:00:00"},{"$f":"Time!WQQ$59","v":"00:00:00"},{"$f":"Time!WQR$59","v":"00:00:00"},{"$f":"Time!WQS$59","v":"00:00:00"},{"$f":"Time!WQT$59","v":"00:00:00"},{"$f":"Time!WQU$59","v":"00:00:00"},{"$f":"Time!WQV$59","v":"00:00:00"},{"$f":"Time!WQW$59","v":"00:00:00"},{"$f":"Time!WQX$59","v":"00:00:00"},{"$f":"Time!WQY$59","v":"00:00:00"},{"$f":"Time!WQZ$59","v":"00:00:00"},{"$f":"Time!WRA$59","v":"00:00:00"},{"$f":"Time!WRB$59","v":"00:00:00"},{"$f":"Time!WRC$59","v":"00:00:00"},{"$f":"Time!WRD$59","v":"00:00:00"},{"$f":"Time!WRE$59","v":"00:00:00"},{"$f":"Time!WRF$59","v":"00:00:00"},{"$f":"Time!WRG$59","v":"00:00:00"},{"$f":"Time!WRH$59","v":"00:00:00"},{"$f":"Time!WRI$59","v":"00:00:00"},{"$f":"Time!WRJ$59","v":"00:00:00"},{"$f":"Time!WRK$59","v":"00:00:00"},{"$f":"Time!WRL$59","v":"00:00:00"},{"$f":"Time!WRM$59","v":"00:00:00"},{"$f":"Time!WRN$59","v":"00:00:00"},{"$f":"Time!WRO$59","v":"00:00:00"},{"$f":"Time!WRP$59","v":"00:00:00"},{"$f":"Time!WRQ$59","v":"00:00:00"},{"$f":"Time!WRR$59","v":"00:00:00"},{"$f":"Time!WRS$59","v":"00:00:00"},{"$f":"Time!WRT$59","v":"00:00:00"},{"$f":"Time!WRU$59","v":"00:00:00"},{"$f":"Time!WRV$59","v":"00:00:00"},{"$f":"Time!WRW$59","v":"00:00:00"},{"$f":"Time!WRX$59","v":"00:00:00"},{"$f":"Time!WRY$59","v":"00:00:00"},{"$f":"Time!WRZ$59","v":"00:00:00"},{"$f":"Time!WSA$59","v":"00:00:00"},{"$f":"Time!WSB$59","v":"00:00:00"},{"$f":"Time!WSC$59","v":"00:00:00"},{"$f":"Time!WSD$59","v":"00:00:00"},{"$f":"Time!WSE$59","v":"00:00:00"},{"$f":"Time!WSF$59","v":"00:00:00"},{"$f":"Time!WSG$59","v":"00:00:00"},{"$f":"Time!WSH$59","v":"00:00:00"},{"$f":"Time!WSI$59","v":"00:00:00"},{"$f":"Time!WSJ$59","v":"00:00:00"},{"$f":"Time!WSK$59","v":"00:00:00"},{"$f":"Time!WSL$59","v":"00:00:00"},{"$f":"Time!WSM$59","v":"00:00:00"},{"$f":"Time!WSN$59","v":"00:00:00"},{"$f":"Time!WSO$59","v":"00:00:00"},{"$f":"Time!WSP$59","v":"00:00:00"},{"$f":"Time!WSQ$59","v":"00:00:00"},{"$f":"Time!WSR$59","v":"00:00:00"},{"$f":"Time!WSS$59","v":"00:00:00"},{"$f":"Time!WST$59","v":"00:00:00"},{"$f":"Time!WSU$59","v":"00:00:00"},{"$f":"Time!WSV$59","v":"00:00:00"},{"$f":"Time!WSW$59","v":"00:00:00"},{"$f":"Time!WSX$59","v":"00:00:00"},{"$f":"Time!WSY$59","v":"00:00:00"},{"$f":"Time!WSZ$59","v":"00:00:00"},{"$f":"Time!WTA$59","v":"00:00:00"},{"$f":"Time!WTB$59","v":"00:00:00"},{"$f":"Time!WTC$59","v":"00:00:00"},{"$f":"Time!WTD$59","v":"00:00:00"},{"$f":"Time!WTE$59","v":"00:00:00"},{"$f":"Time!WTF$59","v":"00:00:00"},{"$f":"Time!WTG$59","v":"00:00:00"},{"$f":"Time!WTH$59","v":"00:00:00"},{"$f":"Time!WTI$59","v":"00:00:00"},{"$f":"Time!WTJ$59","v":"00:00:00"},{"$f":"Time!WTK$59","v":"00:00:00"},{"$f":"Time!WTL$59","v":"00:00:00"},{"$f":"Time!WTM$59","v":"00:00:00"},{"$f":"Time!WTN$59","v":"00:00:00"},{"$f":"Time!WTO$59","v":"00:00:00"},{"$f":"Time!WTP$59","v":"00:00:00"},{"$f":"Time!WTQ$59","v":"00:00:00"},{"$f":"Time!WTR$59","v":"00:00:00"},{"$f":"Time!WTS$59","v":"00:00:00"},{"$f":"Time!WTT$59","v":"00:00:00"},{"$f":"Time!WTU$59","v":"00:00:00"},{"$f":"Time!WTV$59","v":"00:00:00"},{"$f":"Time!WTW$59","v":"00:00:00"},{"$f":"Time!WTX$59","v":"00:00:00"},{"$f":"Time!WTY$59","v":"00:00:00"},{"$f":"Time!WTZ$59","v":"00:00:00"},{"$f":"Time!WUA$59","v":"00:00:00"},{"$f":"Time!WUB$59","v":"00:00:00"},{"$f":"Time!WUC$59","v":"00:00:00"},{"$f":"Time!WUD$59","v":"00:00:00"},{"$f":"Time!WUE$59","v":"00:00:00"},{"$f":"Time!WUF$59","v":"00:00:00"},{"$f":"Time!WUG$59","v":"00:00:00"},{"$f":"Time!WUH$59","v":"00:00:00"},{"$f":"Time!WUI$59","v":"00:00:00"},{"$f":"Time!WUJ$59","v":"00:00:00"},{"$f":"Time!WUK$59","v":"00:00:00"},{"$f":"Time!WUL$59","v":"00:00:00"},{"$f":"Time!WUM$59","v":"00:00:00"},{"$f":"Time!WUN$59","v":"00:00:00"},{"$f":"Time!WUO$59","v":"00:00:00"},{"$f":"Time!WUP$59","v":"00:00:00"},{"$f":"Time!WUQ$59","v":"00:00:00"},{"$f":"Time!WUR$59","v":"00:00:00"},{"$f":"Time!WUS$59","v":"00:00:00"},{"$f":"Time!WUT$59","v":"00:00:00"},{"$f":"Time!WUU$59","v":"00:00:00"},{"$f":"Time!WUV$59","v":"00:00:00"},{"$f":"Time!WUW$59","v":"00:00:00"},{"$f":"Time!WUX$59","v":"00:00:00"},{"$f":"Time!WUY$59","v":"00:00:00"},{"$f":"Time!WUZ$59","v":"00:00:00"},{"$f":"Time!WVA$59","v":"00:00:00"},{"$f":"Time!WVB$59","v":"00:00:00"},{"$f":"Time!WVC$59","v":"00:00:00"},{"$f":"Time!WVD$59","v":"00:00:00"},{"$f":"Time!WVE$59","v":"00:00:00"},{"$f":"Time!WVF$59","v":"00:00:00"},{"$f":"Time!WVG$59","v":"00:00:00"},{"$f":"Time!WVH$59","v":"00:00:00"},{"$f":"Time!WVI$59","v":"00:00:00"},{"$f":"Time!WVJ$59","v":"00:00:00"},{"$f":"Time!WVK$59","v":"00:00:00"},{"$f":"Time!WVL$59","v":"00:00:00"},{"$f":"Time!WVM$59","v":"00:00:00"},{"$f":"Time!WVN$59","v":"00:00:00"},{"$f":"Time!WVO$59","v":"00:00:00"},{"$f":"Time!WVP$59","v":"00:00:00"},{"$f":"Time!WVQ$59","v":"00:00:00"},{"$f":"Time!WVR$59","v":"00:00:00"},{"$f":"Time!WVS$59","v":"00:00:00"},{"$f":"Time!WVT$59","v":"00:00:00"},{"$f":"Time!WVU$59","v":"00:00:00"},{"$f":"Time!WVV$59","v":"00:00:00"},{"$f":"Time!WVW$59","v":"00:00:00"},{"$f":"Time!WVX$59","v":"00:00:00"},{"$f":"Time!WVY$59","v":"00:00:00"},{"$f":"Time!WVZ$59","v":"00:00:00"},{"$f":"Time!WWA$59","v":"00:00:00"},{"$f":"Time!WWB$59","v":"00:00:00"},{"$f":"Time!WWC$59","v":"00:00:00"},{"$f":"Time!WWD$59","v":"00:00:00"},{"$f":"Time!WWE$59","v":"00:00:00"},{"$f":"Time!WWF$59","v":"00:00:00"},{"$f":"Time!WWG$59","v":"00:00:00"},{"$f":"Time!WWH$59","v":"00:00:00"},{"$f":"Time!WWI$59","v":"00:00:00"},{"$f":"Time!WWJ$59","v":"00:00:00"},{"$f":"Time!WWK$59","v":"00:00:00"},{"$f":"Time!WWL$59","v":"00:00:00"},{"$f":"Time!WWM$59","v":"00:00:00"},{"$f":"Time!WWN$59","v":"00:00:00"},{"$f":"Time!WWO$59","v":"00:00:00"},{"$f":"Time!WWP$59","v":"00:00:00"},{"$f":"Time!WWQ$59","v":"00:00:00"},{"$f":"Time!WWR$59","v":"00:00:00"},{"$f":"Time!WWS$59","v":"00:00:00"},{"$f":"Time!WWT$59","v":"00:00:00"},{"$f":"Time!WWU$59","v":"00:00:00"},{"$f":"Time!WWV$59","v":"00:00:00"},{"$f":"Time!WWW$59","v":"00:00:00"},{"$f":"Time!WWX$59","v":"00:00:00"},{"$f":"Time!WWY$59","v":"00:00:00"},{"$f":"Time!WWZ$59","v":"00:00:00"},{"$f":"Time!WXA$59","v":"00:00:00"},{"$f":"Time!WXB$59","v":"00:00:00"},{"$f":"Time!WXC$59","v":"00:00:00"},{"$f":"Time!WXD$59","v":"00:00:00"},{"$f":"Time!WXE$59","v":"00:00:00"},{"$f":"Time!WXF$59","v":"00:00:00"},{"$f":"Time!WXG$59","v":"00:00:00"},{"$f":"Time!WXH$59","v":"00:00:00"},{"$f":"Time!WXI$59","v":"00:00:00"},{"$f":"Time!WXJ$59","v":"00:00:00"},{"$f":"Time!WXK$59","v":"00:00:00"},{"$f":"Time!WXL$59","v":"00:00:00"},{"$f":"Time!WXM$59","v":"00:00:00"},{"$f":"Time!WXN$59","v":"00:00:00"},{"$f":"Time!WXO$59","v":"00:00:00"},{"$f":"Time!WXP$59","v":"00:00:00"},{"$f":"Time!WXQ$59","v":"00:00:00"},{"$f":"Time!WXR$59","v":"00:00:00"},{"$f":"Time!WXS$59","v":"00:00:00"},{"$f":"Time!WXT$59","v":"00:00:00"},{"$f":"Time!WXU$59","v":"00:00:00"},{"$f":"Time!WXV$59","v":"00:00:00"},{"$f":"Time!WXW$59","v":"00:00:00"},{"$f":"Time!WXX$59","v":"00:00:00"},{"$f":"Time!WXY$59","v":"00:00:00"},{"$f":"Time!WXZ$59","v":"00:00:00"},{"$f":"Time!WYA$59","v":"00:00:00"},{"$f":"Time!WYB$59","v":"00:00:00"},{"$f":"Time!WYC$59","v":"00:00:00"},{"$f":"Time!WYD$59","v":"00:00:00"},{"$f":"Time!WYE$59","v":"00:00:00"},{"$f":"Time!WYF$59","v":"00:00:00"},{"$f":"Time!WYG$59","v":"00:00:00"},{"$f":"Time!WYH$59","v":"00:00:00"},{"$f":"Time!WYI$59","v":"00:00:00"},{"$f":"Time!WYJ$59","v":"00:00:00"},{"$f":"Time!WYK$59","v":"00:00:00"},{"$f":"Time!WYL$59","v":"00:00:00"},{"$f":"Time!WYM$59","v":"00:00:00"},{"$f":"Time!WYN$59","v":"00:00:00"},{"$f":"Time!WYO$59","v":"00:00:00"},{"$f":"Time!WYP$59","v":"00:00:00"},{"$f":"Time!WYQ$59","v":"00:00:00"},{"$f":"Time!WYR$59","v":"00:00:00"},{"$f":"Time!WYS$59","v":"00:00:00"},{"$f":"Time!WYT$59","v":"00:00:00"},{"$f":"Time!WYU$59","v":"00:00:00"},{"$f":"Time!WYV$59","v":"00:00:00"},{"$f":"Time!WYW$59","v":"00:00:00"},{"$f":"Time!WYX$59","v":"00:00:00"},{"$f":"Time!WYY$59","v":"00:00:00"},{"$f":"Time!WYZ$59","v":"00:00:00"},{"$f":"Time!WZA$59","v":"00:00:00"},{"$f":"Time!WZB$59","v":"00:00:00"},{"$f":"Time!WZC$59","v":"00:00:00"},{"$f":"Time!WZD$59","v":"00:00:00"},{"$f":"Time!WZE$59","v":"00:00:00"},{"$f":"Time!WZF$59","v":"00:00:00"},{"$f":"Time!WZG$59","v":"00:00:00"},{"$f":"Time!WZH$59","v":"00:00:00"},{"$f":"Time!WZI$59","v":"00:00:00"},{"$f":"Time!WZJ$59","v":"00:00:00"},{"$f":"Time!WZK$59","v":"00:00:00"},{"$f":"Time!WZL$59","v":"00:00:00"},{"$f":"Time!WZM$59","v":"00:00:00"},{"$f":"Time!WZN$59","v":"00:00:00"},{"$f":"Time!WZO$59","v":"00:00:00"},{"$f":"Time!WZP$59","v":"00:00:00"},{"$f":"Time!WZQ$59","v":"00:00:00"},{"$f":"Time!WZR$59","v":"00:00:00"},{"$f":"Time!WZS$59","v":"00:00:00"},{"$f":"Time!WZT$59","v":"00:00:00"},{"$f":"Time!WZU$59","v":"00:00:00"},{"$f":"Time!WZV$59","v":"00:00:00"},{"$f":"Time!WZW$59","v":"00:00:00"},{"$f":"Time!WZX$59","v":"00:00:00"},{"$f":"Time!WZY$59","v":"00:00:00"},{"$f":"Time!WZZ$59","v":"00:00:00"},{"$f":"Time!XAA$59","v":"00:00:00"},{"$f":"Time!XAB$59","v":"00:00:00"},{"$f":"Time!XAC$59","v":"00:00:00"},{"$f":"Time!XAD$59","v":"00:00:00"},{"$f":"Time!XAE$59","v":"00:00:00"},{"$f":"Time!XAF$59","v":"00:00:00"},{"$f":"Time!XAG$59","v":"00:00:00"},{"$f":"Time!XAH$59","v":"00:00:00"},{"$f":"Time!XAI$59","v":"00:00:00"},{"$f":"Time!XAJ$59","v":"00:00:00"},{"$f":"Time!XAK$59","v":"00:00:00"},{"$f":"Time!XAL$59","v":"00:00:00"},{"$f":"Time!XAM$59","v":"00:00:00"},{"$f":"Time!XAN$59","v":"00:00:00"},{"$f":"Time!XAO$59","v":"00:00:00"},{"$f":"Time!XAP$59","v":"00:00:00"},{"$f":"Time!XAQ$59","v":"00:00:00"},{"$f":"Time!XAR$59","v":"00:00:00"},{"$f":"Time!XAS$59","v":"00:00:00"},{"$f":"Time!XAT$59","v":"00:00:00"},{"$f":"Time!XAU$59","v":"00:00:00"},{"$f":"Time!XAV$59","v":"00:00:00"},{"$f":"Time!XAW$59","v":"00:00:00"},{"$f":"Time!XAX$59","v":"00:00:00"},{"$f":"Time!XAY$59","v":"00:00:00"},{"$f":"Time!XAZ$59","v":"00:00:00"},{"$f":"Time!XBA$59","v":"00:00:00"},{"$f":"Time!XBB$59","v":"00:00:00"},{"$f":"Time!XBC$59","v":"00:00:00"},{"$f":"Time!XBD$59","v":"00:00:00"},{"$f":"Time!XBE$59","v":"00:00:00"},{"$f":"Time!XBF$59","v":"00:00:00"},{"$f":"Time!XBG$59","v":"00:00:00"},{"$f":"Time!XBH$59","v":"00:00:00"},{"$f":"Time!XBI$59","v":"00:00:00"},{"$f":"Time!XBJ$59","v":"00:00:00"},{"$f":"Time!XBK$59","v":"00:00:00"},{"$f":"Time!XBL$59","v":"00:00:00"},{"$f":"Time!XBM$59","v":"00:00:00"},{"$f":"Time!XBN$59","v":"00:00:00"},{"$f":"Time!XBO$59","v":"00:00:00"},{"$f":"Time!XBP$59","v":"00:00:00"},{"$f":"Time!XBQ$59","v":"00:00:00"},{"$f":"Time!XBR$59","v":"00:00:00"},{"$f":"Time!XBS$59","v":"00:00:00"},{"$f":"Time!XBT$59","v":"00:00:00"},{"$f":"Time!XBU$59","v":"00:00:00"},{"$f":"Time!XBV$59","v":"00:00:00"},{"$f":"Time!XBW$59","v":"00:00:00"},{"$f":"Time!XBX$59","v":"00:00:00"},{"$f":"Time!XBY$59","v":"00:00:00"},{"$f":"Time!XBZ$59","v":"00:00:00"},{"$f":"Time!XCA$59","v":"00:00:00"},{"$f":"Time!XCB$59","v":"00:00:00"},{"$f":"Time!XCC$59","v":"00:00:00"},{"$f":"Time!XCD$59","v":"00:00:00"},{"$f":"Time!XCE$59","v":"00:00:00"},{"$f":"Time!XCF$59","v":"00:00:00"},{"$f":"Time!XCG$59","v":"00:00:00"},{"$f":"Time!XCH$59","v":"00:00:00"},{"$f":"Time!XCI$59","v":"00:00:00"},{"$f":"Time!XCJ$59","v":"00:00:00"},{"$f":"Time!XCK$59","v":"00:00:00"},{"$f":"Time!XCL$59","v":"00:00:00"},{"$f":"Time!XCM$59","v":"00:00:00"},{"$f":"Time!XCN$59","v":"00:00:00"},{"$f":"Time!XCO$59","v":"00:00:00"},{"$f":"Time!XCP$59","v":"00:00:00"},{"$f":"Time!XCQ$59","v":"00:00:00"},{"$f":"Time!XCR$59","v":"00:00:00"},{"$f":"Time!XCS$59","v":"00:00:00"},{"$f":"Time!XCT$59","v":"00:00:00"},{"$f":"Time!XCU$59","v":"00:00:00"},{"$f":"Time!XCV$59","v":"00:00:00"},{"$f":"Time!XCW$59","v":"00:00:00"},{"$f":"Time!XCX$59","v":"00:00:00"},{"$f":"Time!XCY$59","v":"00:00:00"},{"$f":"Time!XCZ$59","v":"00:00:00"},{"$f":"Time!XDA$59","v":"00:00:00"},{"$f":"Time!XDB$59","v":"00:00:00"},{"$f":"Time!XDC$59","v":"00:00:00"},{"$f":"Time!XDD$59","v":"00:00:00"},{"$f":"Time!XDE$59","v":"00:00:00"},{"$f":"Time!XDF$59","v":"00:00:00"},{"$f":"Time!XDG$59","v":"00:00:00"},{"$f":"Time!XDH$59","v":"00:00:00"},{"$f":"Time!XDI$59","v":"00:00:00"},{"$f":"Time!XDJ$59","v":"00:00:00"},{"$f":"Time!XDK$59","v":"00:00:00"},{"$f":"Time!XDL$59","v":"00:00:00"},{"$f":"Time!XDM$59","v":"00:00:00"},{"$f":"Time!XDN$59","v":"00:00:00"},{"$f":"Time!XDO$59","v":"00:00:00"},{"$f":"Time!XDP$59","v":"00:00:00"},{"$f":"Time!XDQ$59","v":"00:00:00"},{"$f":"Time!XDR$59","v":"00:00:00"},{"$f":"Time!XDS$59","v":"00:00:00"},{"$f":"Time!XDT$59","v":"00:00:00"},{"$f":"Time!XDU$59","v":"00:00:00"},{"$f":"Time!XDV$59","v":"00:00:00"},{"$f":"Time!XDW$59","v":"00:00:00"},{"$f":"Time!XDX$59","v":"00:00:00"},{"$f":"Time!XDY$59","v":"00:00:00"},{"$f":"Time!XDZ$59","v":"00:00:00"},{"$f":"Time!XEA$59","v":"00:00:00"},{"$f":"Time!XEB$59","v":"00:00:00"},{"$f":"Time!XEC$59","v":"00:00:00"},{"$f":"Time!XED$59","v":"00:00:00"},{"$f":"Time!XEE$59","v":"00:00:00"},{"$f":"Time!XEF$59","v":"00:00:00"},{"$f":"Time!XEG$59","v":"00:00:00"},{"$f":"Time!XEH$59","v":"00:00:00"},{"$f":"Time!XEI$59","v":"00:00:00"},{"$f":"Time!XEJ$59","v":"00:00:00"},{"$f":"Time!XEK$59","v":"00:00:00"},{"$f":"Time!XEL$59","v":"00:00:00"},{"$f":"Time!XEM$59","v":"00:00:00"},{"$f":"Time!XEN$59","v":"00:00:00"},{"$f":"Time!XEO$59","v":"00:00:00"},{"$f":"Time!XEP$59","v":"00:00:00"},{"$f":"Time!XEQ$59","v":"00:00:00"},{"$f":"Time!XER$59","v":"00:00:00"},{"$f":"Time!XES$59","v":"00:00:00"},{"$f":"Time!XET$59","v":"00:00:00"},{"$f":"Time!XEU$59","v":"00:00:00"},{"$f":"Time!XEV$59","v":"00:00:00"},{"$f":"Time!XEW$59","v":"00:00:00"},{"$f":"Time!XEX$59","v":"00:00:00"},{"$f":"Time!XEY$59","v":"00:00:00"},{"$f":"Time!XEZ$59","v":"00:00:00"},{"$f":"Time!XFA$59","v":"00:00:00"},{"$f":"Time!XFB$59","v":"00:00:00"},{"$f":"Time!XFC$59","v":"00:00:00"},{"$f":"Time!XFD$59","v":"00:00:00"}]
[null,null,null,null,{"$f":"Time!E$86","v":"Financial Year Ending"},null,null,null,null,{"$f":"Time!J$86","v":2020},{"$f":"Time!K$86","v":2021},{"$f":"Time!L$86","v":2022},{"$f":"Time!M$86","v":2023},{"$f":"Time!N$86","v":2024},{"$f":"Time!O$86","v":2025},{"$f":"Time!P$86","v":2026},{"$f":"Time!Q$86","v":2027},{"$f":"Time!R$86","v":2028},{"$f":"Time!S$86","v":0},{"$f":"Time!T$86","v":0},{"$f":"Time!U$86","v":0},{"$f":"Time!V$86","v":0},{"$f":"Time!W$86","v":0},{"$f":"Time!X$86","v":0},{"$f":"Time!Y$86","v":0},{"$f":"Time!Z$86","v":0},{"$f":"Time!AA$86","v":0},{"$f":"Time!AB$86","v":0},{"$f":"Time!AC$86","v":0},{"$f":"Time!AD$86","v":0},{"$f":"Time!AE$86","v":0},{"$f":"Time!AF$86","v":0},{"$f":"Time!AG$86","v":0},{"$f":"Time!AH$86","v":0},{"$f":"Time!AI$86","v":0},{"$f":"Time!AJ$86","v":0},{"$f":"Time!AK$86","v":0},{"$f":"Time!AL$86","v":0},{"$f":"Time!AM$86","v":0},{"$f":"Time!AN$86","v":0},{"$f":"Time!AO$86","v":0},{"$f":"Time!AP$86","v":0},{"$f":"Time!AQ$86","v":0},{"$f":"Time!AR$86","v":0},{"$f":"Time!AS$86","v":0},{"$f":"Time!AT$86","v":0},{"$f":"Time!AU$86","v":0},{"$f":"Time!AV$86","v":0},{"$f":"Time!AW$86","v":0},{"$f":"Time!AX$86","v":0},{"$f":"Time!AY$86","v":0},{"$f":"Time!AZ$86","v":0},{"$f":"Time!BA$86","v":0},{"$f":"Time!BB$86","v":0},{"$f":"Time!BC$86","v":0},{"$f":"Time!BD$86","v":0},{"$f":"Time!BE$86","v":0},{"$f":"Time!BF$86","v":0},{"$f":"Time!BG$86","v":0},{"$f":"Time!BH$86","v":0},{"$f":"Time!BI$86","v":0},{"$f":"Time!BJ$86","v":0},{"$f":"Time!BK$86","v":0},{"$f":"Time!BL$86","v":0},{"$f":"Time!BM$86","v":0},{"$f":"Time!BN$86","v":0},{"$f":"Time!BO$86","v":0},{"$f":"Time!BP$86","v":0},{"$f":"Time!BQ$86","v":0},{"$f":"Time!BR$86","v":0},{"$f":"Time!BS$86","v":0},{"$f":"Time!BT$86","v":0},{"$f":"Time!BU$86","v":0},{"$f":"Time!BV$86","v":0},{"$f":"Time!BW$86","v":0},{"$f":"Time!BX$86","v":0},{"$f":"Time!BY$86","v":0},{"$f":"Time!BZ$86","v":0},{"$f":"Time!CA$86","v":0},{"$f":"Time!CB$86","v":0},{"$f":"Time!CC$86","v":0},{"$f":"Time!CD$86","v":0},{"$f":"Time!CE$86","v":0},{"$f":"Time!CF$86","v":0},{"$f":"Time!CG$86","v":0},{"$f":"Time!CH$86","v":0},{"$f":"Time!CI$86","v":0},{"$f":"Time!CJ$86","v":0},{"$f":"Time!CK$86","v":0},{"$f":"Time!CL$86","v":0},{"$f":"Time!CM$86","v":0},{"$f":"Time!CN$86","v":0},{"$f":"Time!CO$86","v":0},{"$f":"Time!CP$86","v":0},{"$f":"Time!CQ$86","v":0},{"$f":"Time!CR$86","v":0},{"$f":"Time!CS$86","v":0},{"$f":"Time!CT$86","v":0},{"$f":"Time!CU$86","v":0},{"$f":"Time!CV$86","v":0},{"$f":"Time!CW$86","v":0},{"$f":"Time!CX$86","v":0},{"$f":"Time!CY$86","v":0},{"$f":"Time!CZ$86","v":0},{"$f":"Time!DA$86","v":0},{"$f":"Time!DB$86","v":0},{"$f":"Time!DC$86","v":0},{"$f":"Time!DD$86","v":0},{"$f":"Time!DE$86","v":0},{"$f":"Time!DF$86","v":0},{"$f":"Time!DG$86","v":0},{"$f":"Time!DH$86","v":0},{"$f":"Time!DI$86","v":0},{"$f":"Time!DJ$86","v":0},{"$f":"Time!DK$86","v":0},{"$f":"Time!DL$86","v":0},{"$f":"Time!DM$86","v":0},{"$f":"Time!DN$86","v":0},{"$f":"Time!DO$86","v":0},{"$f":"Time!DP$86","v":0},{"$f":"Time!DQ$86","v":0},{"$f":"Time!DR$86","v":0},{"$f":"Time!DS$86","v":0},{"$f":"Time!DT$86","v":0},{"$f":"Time!DU$86","v":0},{"$f":"Time!DV$86","v":0},{"$f":"Time!DW$86","v":0},{"$f":"Time!DX$86","v":0},{"$f":"Time!DY$86","v":0},{"$f":"Time!DZ$86","v":0},{"$f":"Time!EA$86","v":0},{"$f":"Time!EB$86","v":0},{"$f":"Time!EC$86","v":0},{"$f":"Time!ED$86","v":0},{"$f":"Time!EE$86","v":0},{"$f":"Time!EF$86","v":0},{"$f":"Time!EG$86","v":0},{"$f":"Time!EH$86","v":0},{"$f":"Time!EI$86","v":0},{"$f":"Time!EJ$86","v":0},{"$f":"Time!EK$86","v":0},{"$f":"Time!EL$86","v":0},{"$f":"Time!EM$86","v":0},{"$f":"Time!EN$86","v":0},{"$f":"Time!EO$86","v":0},{"$f":"Time!EP$86","v":0},{"$f":"Time!EQ$86","v":0},{"$f":"Time!ER$86","v":0},{"$f":"Time!ES$86","v":0},{"$f":"Time!ET$86","v":0},{"$f":"Time!EU$86","v":0},{"$f":"Time!EV$86","v":0},{"$f":"Time!EW$86","v":0},{"$f":"Time!EX$86","v":0},{"$f":"Time!EY$86","v":0},{"$f":"Time!EZ$86","v":0},{"$f":"Time!FA$86","v":0},{"$f":"Time!FB$86","v":0},{"$f":"Time!FC$86","v":0},{"$f":"Time!FD$86","v":0},{"$f":"Time!FE$86","v":0},{"$f":"Time!FF$86","v":0},{"$f":"Time!FG$86","v":0},{"$f":"Time!FH$86","v":0},{"$f":"Time!FI$86","v":0},{"$f":"Time!FJ$86","v":0},{"$f":"Time!FK$86","v":0},{"$f":"Time!FL$86","v":0},{"$f":"Time!FM$86","v":0},{"$f":"Time!FN$86","v":0},{"$f":"Time!FO$86","v":0},{"$f":"Time!FP$86","v":0},{"$f":"Time!FQ$86","v":0},{"$f":"Time!FR$86","v":0},{"$f":"Time!FS$86","v":0},{"$f":"Time!FT$86","v":0},{"$f":"Time!FU$86","v":0},{"$f":"Time!FV$86","v":0},{"$f":"Time!FW$86","v":0},{"$f":"Time!FX$86","v":0},{"$f":"Time!FY$86","v":0},{"$f":"Time!FZ$86","v":0},{"$f":"Time!GA$86","v":0},{"$f":"Time!GB$86","v":0},{"$f":"Time!GC$86","v":0},{"$f":"Time!GD$86","v":0},{"$f":"Time!GE$86","v":0},{"$f":"Time!GF$86","v":0},{"$f":"Time!GG$86","v":0},{"$f":"Time!GH$86","v":0},{"$f":"Time!GI$86","v":0},{"$f":"Time!GJ$86","v":0},{"$f":"Time!GK$86","v":0},{"$f":"Time!GL$86","v":0},{"$f":"Time!GM$86","v":0},{"$f":"Time!GN$86","v":0},{"$f":"Time!GO$86","v":0},{"$f":"Time!GP$86","v":0},{"$f":"Time!GQ$86","v":0},{"$f":"Time!GR$86","v":0},{"$f":"Time!GS$86","v":0},{"$f":"Time!GT$86","v":0},{"$f":"Time!GU$86","v":0},{"$f":"Time!GV$86","v":0},{"$f":"Time!GW$86","v":0},{"$f":"Time!GX$86","v":0},{"$f":"Time!GY$86","v":0},{"$f":"Time!GZ$86","v":0},{"$f":"Time!HA$86","v":0},{"$f":"Time!HB$86","v":0},{"$f":"Time!HC$86","v":0},{"$f":"Time!HD$86","v":0},{"$f":"Time!HE$86","v":0},{"$f":"Time!HF$86","v":0},{"$f":"Time!HG$86","v":0},{"$f":"Time!HH$86","v":0},{"$f":"Time!HI$86","v":0},{"$f":"Time!HJ$86","v":0},{"$f":"Time!HK$86","v":0},{"$f":"Time!HL$86","v":0},{"$f":"Time!HM$86","v":0},{"$f":"Time!HN$86","v":0},{"$f":"Time!HO$86","v":0},{"$f":"Time!HP$86","v":0},{"$f":"Time!HQ$86","v":0},{"$f":"Time!HR$86","v":0},{"$f":"Time!HS$86","v":0},{"$f":"Time!HT$86","v":0},{"$f":"Time!HU$86","v":0},{"$f":"Time!HV$86","v":0},{"$f":"Time!HW$86","v":0},{"$f":"Time!HX$86","v":0},{"$f":"Time!HY$86","v":0},{"$f":"Time!HZ$86","v":0},{"$f":"Time!IA$86","v":0},{"$f":"Time!IB$86","v":0},{"$f":"Time!IC$86","v":0},{"$f":"Time!ID$86","v":0},{"$f":"Time!IE$86","v":0},{"$f":"Time!IF$86","v":0},{"$f":"Time!IG$86","v":0},{"$f":"Time!IH$86","v":0},{"$f":"Time!II$86","v":0},{"$f":"Time!IJ$86","v":0},{"$f":"Time!IK$86","v":0},{"$f":"Time!IL$86","v":0},{"$f":"Time!IM$86","v":0},{"$f":"Time!IN$86","v":0},{"$f":"Time!IO$86","v":0},{"$f":"Time!IP$86","v":0},{"$f":"Time!IQ$86","v":0},{"$f":"Time!IR$86","v":0},{"$f":"Time!IS$86","v":0},{"$f":"Time!IT$86","v":0},{"$f":"Time!IU$86","v":0},{"$f":"Time!IV$86","v":0},{"$f":"Time!IW$86","v":0},{"$f":"Time!IX$86","v":0},{"$f":"Time!IY$86","v":0},{"$f":"Time!IZ$86","v":0},{"$f":"Time!JA$86","v":0},{"$f":"Time!JB$86","v":0},{"$f":"Time!JC$86","v":0},{"$f":"Time!JD$86","v":0},{"$f":"Time!JE$86","v":0},{"$f":"Time!JF$86","v":0},{"$f":"Time!JG$86","v":0},{"$f":"Time!JH$86","v":0},{"$f":"Time!JI$86","v":0},{"$f":"Time!JJ$86","v":0},{"$f":"Time!JK$86","v":0},{"$f":"Time!JL$86","v":0},{"$f":"Time!JM$86","v":0},{"$f":"Time!JN$86","v":0},{"$f":"Time!JO$86","v":0},{"$f":"Time!JP$86","v":0},{"$f":"Time!JQ$86","v":0},{"$f":"Time!JR$86","v":0},{"$f":"Time!JS$86","v":0},{"$f":"Time!JT$86","v":0},{"$f":"Time!JU$86","v":0},{"$f":"Time!JV$86","v":0},{"$f":"Time!JW$86","v":0},{"$f":"Time!JX$86","v":0},{"$f":"Time!JY$86","v":0},{"$f":"Time!JZ$86","v":0},{"$f":"Time!KA$86","v":0},{"$f":"Time!KB$86","v":0},{"$f":"Time!KC$86","v":0},{"$f":"Time!KD$86","v":0},{"$f":"Time!KE$86","v":0},{"$f":"Time!KF$86","v":0},{"$f":"Time!KG$86","v":0},{"$f":"Time!KH$86","v":0},{"$f":"Time!KI$86","v":0},{"$f":"Time!KJ$86","v":0},{"$f":"Time!KK$86","v":0},{"$f":"Time!KL$86","v":0},{"$f":"Time!KM$86","v":0},{"$f":"Time!KN$86","v":0},{"$f":"Time!KO$86","v":0},{"$f":"Time!KP$86","v":0},{"$f":"Time!KQ$86","v":0},{"$f":"Time!KR$86","v":0},{"$f":"Time!KS$86","v":0},{"$f":"Time!KT$86","v":0},{"$f":"Time!KU$86","v":0},{"$f":"Time!KV$86","v":0},{"$f":"Time!KW$86","v":0},{"$f":"Time!KX$86","v":0},{"$f":"Time!KY$86","v":0},{"$f":"Time!KZ$86","v":0},{"$f":"Time!LA$86","v":0},{"$f":"Time!LB$86","v":0},{"$f":"Time!LC$86","v":0},{"$f":"Time!LD$86","v":0},{"$f":"Time!LE$86","v":0},{"$f":"Time!LF$86","v":0},{"$f":"Time!LG$86","v":0},{"$f":"Time!LH$86","v":0},{"$f":"Time!LI$86","v":0},{"$f":"Time!LJ$86","v":0},{"$f":"Time!LK$86","v":0},{"$f":"Time!LL$86","v":0},{"$f":"Time!LM$86","v":0},{"$f":"Time!LN$86","v":0},{"$f":"Time!LO$86","v":0},{"$f":"Time!LP$86","v":0},{"$f":"Time!LQ$86","v":0},{"$f":"Time!LR$86","v":0},{"$f":"Time!LS$86","v":0},{"$f":"Time!LT$86","v":0},{"$f":"Time!LU$86","v":0},{"$f":"Time!LV$86","v":0},{"$f":"Time!LW$86","v":0},{"$f":"Time!LX$86","v":0},{"$f":"Time!LY$86","v":0},{"$f":"Time!LZ$86","v":0},{"$f":"Time!MA$86","v":0},{"$f":"Time!MB$86","v":0},{"$f":"Time!MC$86","v":0},{"$f":"Time!MD$86","v":0},{"$f":"Time!ME$86","v":0},{"$f":"Time!MF$86","v":0},{"$f":"Time!MG$86","v":0},{"$f":"Time!MH$86","v":0},{"$f":"Time!MI$86","v":0},{"$f":"Time!MJ$86","v":0},{"$f":"Time!MK$86","v":0},{"$f":"Time!ML$86","v":0},{"$f":"Time!MM$86","v":0},{"$f":"Time!MN$86","v":0},{"$f":"Time!MO$86","v":0},{"$f":"Time!MP$86","v":0},{"$f":"Time!MQ$86","v":0},{"$f":"Time!MR$86","v":0},{"$f":"Time!MS$86","v":0},{"$f":"Time!MT$86","v":0},{"$f":"Time!MU$86","v":0},{"$f":"Time!MV$86","v":0},{"$f":"Time!MW$86","v":0},{"$f":"Time!MX$86","v":0},{"$f":"Time!MY$86","v":0},{"$f":"Time!MZ$86","v":0},{"$f":"Time!NA$86","v":0},{"$f":"Time!NB$86","v":0},{"$f":"Time!NC$86","v":0},{"$f":"Time!ND$86","v":0},{"$f":"Time!NE$86","v":0},{"$f":"Time!NF$86","v":0},{"$f":"Time!NG$86","v":0},{"$f":"Time!NH$86","v":0},{"$f":"Time!NI$86","v":0},{"$f":"Time!NJ$86","v":0},{"$f":"Time!NK$86","v":0},{"$f":"Time!NL$86","v":0},{"$f":"Time!NM$86","v":0},{"$f":"Time!NN$86","v":0},{"$f":"Time!NO$86","v":0},{"$f":"Time!NP$86","v":0},{"$f":"Time!NQ$86","v":0},{"$f":"Time!NR$86","v":0},{"$f":"Time!NS$86","v":0},{"$f":"Time!NT$86","v":0},{"$f":"Time!NU$86","v":0},{"$f":"Time!NV$86","v":0},{"$f":"Time!NW$86","v":0},{"$f":"Time!NX$86","v":0},{"$f":"Time!NY$86","v":0},{"$f":"Time!NZ$86","v":0},{"$f":"Time!OA$86","v":0},{"$f":"Time!OB$86","v":0},{"$f":"Time!OC$86","v":0},{"$f":"Time!OD$86","v":0},{"$f":"Time!OE$86","v":0},{"$f":"Time!OF$86","v":0},{"$f":"Time!OG$86","v":0},{"$f":"Time!OH$86","v":0},{"$f":"Time!OI$86","v":0},{"$f":"Time!OJ$86","v":0},{"$f":"Time!OK$86","v":0},{"$f":"Time!OL$86","v":0},{"$f":"Time!OM$86","v":0},{"$f":"Time!ON$86","v":0},{"$f":"Time!OO$86","v":0},{"$f":"Time!OP$86","v":0},{"$f":"Time!OQ$86","v":0},{"$f":"Time!OR$86","v":0},{"$f":"Time!OS$86","v":0},{"$f":"Time!OT$86","v":0},{"$f":"Time!OU$86","v":0},{"$f":"Time!OV$86","v":0},{"$f":"Time!OW$86","v":0},{"$f":"Time!OX$86","v":0},{"$f":"Time!OY$86","v":0},{"$f":"Time!OZ$86","v":0},{"$f":"Time!PA$86","v":0},{"$f":"Time!PB$86","v":0},{"$f":"Time!PC$86","v":0},{"$f":"Time!PD$86","v":0},{"$f":"Time!PE$86","v":0},{"$f":"Time!PF$86","v":0},{"$f":"Time!PG$86","v":0},{"$f":"Time!PH$86","v":0},{"$f":"Time!PI$86","v":0},{"$f":"Time!PJ$86","v":0},{"$f":"Time!PK$86","v":0},{"$f":"Time!PL$86","v":0},{"$f":"Time!PM$86","v":0},{"$f":"Time!PN$86","v":0},{"$f":"Time!PO$86","v":0},{"$f":"Time!PP$86","v":0},{"$f":"Time!PQ$86","v":0},{"$f":"Time!PR$86","v":0},{"$f":"Time!PS$86","v":0},{"$f":"Time!PT$86","v":0},{"$f":"Time!PU$86","v":0},{"$f":"Time!PV$86","v":0},{"$f":"Time!PW$86","v":0},{"$f":"Time!PX$86","v":0},{"$f":"Time!PY$86","v":0},{"$f":"Time!PZ$86","v":0},{"$f":"Time!QA$86","v":0},{"$f":"Time!QB$86","v":0},{"$f":"Time!QC$86","v":0},{"$f":"Time!QD$86","v":0},{"$f":"Time!QE$86","v":0},{"$f":"Time!QF$86","v":0},{"$f":"Time!QG$86","v":0},{"$f":"Time!QH$86","v":0},{"$f":"Time!QI$86","v":0},{"$f":"Time!QJ$86","v":0},{"$f":"Time!QK$86","v":0},{"$f":"Time!QL$86","v":0},{"$f":"Time!QM$86","v":0},{"$f":"Time!QN$86","v":0},{"$f":"Time!QO$86","v":0},{"$f":"Time!QP$86","v":0},{"$f":"Time!QQ$86","v":0},{"$f":"Time!QR$86","v":0},{"$f":"Time!QS$86","v":0},{"$f":"Time!QT$86","v":0},{"$f":"Time!QU$86","v":0},{"$f":"Time!QV$86","v":0},{"$f":"Time!QW$86","v":0},{"$f":"Time!QX$86","v":0},{"$f":"Time!QY$86","v":0},{"$f":"Time!QZ$86","v":0},{"$f":"Time!RA$86","v":0},{"$f":"Time!RB$86","v":0},{"$f":"Time!RC$86","v":0},{"$f":"Time!RD$86","v":0},{"$f":"Time!RE$86","v":0},{"$f":"Time!RF$86","v":0},{"$f":"Time!RG$86","v":0},{"$f":"Time!RH$86","v":0},{"$f":"Time!RI$86","v":0},{"$f":"Time!RJ$86","v":0},{"$f":"Time!RK$86","v":0},{"$f":"Time!RL$86","v":0},{"$f":"Time!RM$86","v":0},{"$f":"Time!RN$86","v":0},{"$f":"Time!RO$86","v":0},{"$f":"Time!RP$86","v":0},{"$f":"Time!RQ$86","v":0},{"$f":"Time!RR$86","v":0},{"$f":"Time!RS$86","v":0},{"$f":"Time!RT$86","v":0},{"$f":"Time!RU$86","v":0},{"$f":"Time!RV$86","v":0},{"$f":"Time!RW$86","v":0},{"$f":"Time!RX$86","v":0},{"$f":"Time!RY$86","v":0},{"$f":"Time!RZ$86","v":0},{"$f":"Time!SA$86","v":0},{"$f":"Time!SB$86","v":0},{"$f":"Time!SC$86","v":0},{"$f":"Time!SD$86","v":0},{"$f":"Time!SE$86","v":0},{"$f":"Time!SF$86","v":0},{"$f":"Time!SG$86","v":0},{"$f":"Time!SH$86","v":0},{"$f":"Time!SI$86","v":0},{"$f":"Time!SJ$86","v":0},{"$f":"Time!SK$86","v":0},{"$f":"Time!SL$86","v":0},{"$f":"Time!SM$86","v":0},{"$f":"Time!SN$86","v":0},{"$f":"Time!SO$86","v":0},{"$f":"Time!SP$86","v":0},{"$f":"Time!SQ$86","v":0},{"$f":"Time!SR$86","v":0},{"$f":"Time!SS$86","v":0},{"$f":"Time!ST$86","v":0},{"$f":"Time!SU$86","v":0},{"$f":"Time!SV$86","v":0},{"$f":"Time!SW$86","v":0},{"$f":"Time!SX$86","v":0},{"$f":"Time!SY$86","v":0},{"$f":"Time!SZ$86","v":0},{"$f":"Time!TA$86","v":0},{"$f":"Time!TB$86","v":0},{"$f":"Time!TC$86","v":0},{"$f":"Time!TD$86","v":0},{"$f":"Time!TE$86","v":0},{"$f":"Time!TF$86","v":0},{"$f":"Time!TG$86","v":0},{"$f":"Time!TH$86","v":0},{"$f":"Time!TI$86","v":0},{"$f":"Time!TJ$86","v":0},{"$f":"Time!TK$86","v":0},{"$f":"Time!TL$86","v":0},{"$f":"Time!TM$86","v":0},{"$f":"Time!TN$86","v":0},{"$f":"Time!TO$86","v":0},{"$f":"Time!TP$86","v":0},{"$f":"Time!TQ$86","v":0},{"$f":"Time!TR$86","v":0},{"$f":"Time!TS$86","v":0},{"$f":"Time!TT$86","v":0},{"$f":"Time!TU$86","v":0},{"$f":"Time!TV$86","v":0},{"$f":"Time!TW$86","v":0},{"$f":"Time!TX$86","v":0},{"$f":"Time!TY$86","v":0},{"$f":"Time!TZ$86","v":0},{"$f":"Time!UA$86","v":0},{"$f":"Time!UB$86","v":0},{"$f":"Time!UC$86","v":0},{"$f":"Time!UD$86","v":0},{"$f":"Time!UE$86","v":0},{"$f":"Time!UF$86","v":0},{"$f":"Time!UG$86","v":0},{"$f":"Time!UH$86","v":0},{"$f":"Time!UI$86","v":0},{"$f":"Time!UJ$86","v":0},{"$f":"Time!UK$86","v":0},{"$f":"Time!UL$86","v":0},{"$f":"Time!UM$86","v":0},{"$f":"Time!UN$86","v":0},{"$f":"Time!UO$86","v":0},{"$f":"Time!UP$86","v":0},{"$f":"Time!UQ$86","v":0},{"$f":"Time!UR$86","v":0},{"$f":"Time!US$86","v":0},{"$f":"Time!UT$86","v":0},{"$f":"Time!UU$86","v":0},{"$f":"Time!UV$86","v":0},{"$f":"Time!UW$86","v":0},{"$f":"Time!UX$86","v":0},{"$f":"Time!UY$86","v":0},{"$f":"Time!UZ$86","v":0},{"$f":"Time!VA$86","v":0},{"$f":"Time!VB$86","v":0},{"$f":"Time!VC$86","v":0},{"$f":"Time!VD$86","v":0},{"$f":"Time!VE$86","v":0},{"$f":"Time!VF$86","v":0},{"$f":"Time!VG$86","v":0},{"$f":"Time!VH$86","v":0},{"$f":"Time!VI$86","v":0},{"$f":"Time!VJ$86","v":0},{"$f":"Time!VK$86","v":0},{"$f":"Time!VL$86","v":0},{"$f":"Time!VM$86","v":0},{"$f":"Time!VN$86","v":0},{"$f":"Time!VO$86","v":0},{"$f":"Time!VP$86","v":0},{"$f":"Time!VQ$86","v":0},{"$f":"Time!VR$86","v":0},{"$f":"Time!VS$86","v":0},{"$f":"Time!VT$86","v":0},{"$f":"Time!VU$86","v":0},{"$f":"Time!VV$86","v":0},{"$f":"Time!VW$86","v":0},{"$f":"Time!VX$86","v":0},{"$f":"Time!VY$86","v":0},{"$f":"Time!VZ$86","v":0},{"$f":"Time!WA$86","v":0},{"$f":"Time!WB$86","v":0},{"$f":"Time!WC$86","v":0},{"$f":"Time!WD$86","v":0},{"$f":"Time!WE$86","v":0},{"$f":"Time!WF$86","v":0},{"$f":"Time!WG$86","v":0},{"$f":"Time!WH$86","v":0},{"$f":"Time!WI$86","v":0},{"$f":"Time!WJ$86","v":0},{"$f":"Time!WK$86","v":0},{"$f":"Time!WL$86","v":0},{"$f":"Time!WM$86","v":0},{"$f":"Time!WN$86","v":0},{"$f":"Time!WO$86","v":0},{"$f":"Time!WP$86","v":0},{"$f":"Time!WQ$86","v":0},{"$f":"Time!WR$86","v":0},{"$f":"Time!WS$86","v":0},{"$f":"Time!WT$86","v":0},{"$f":"Time!WU$86","v":0},{"$f":"Time!WV$86","v":0},{"$f":"Time!WW$86","v":0},{"$f":"Time!WX$86","v":0},{"$f":"Time!WY$86","v":0},{"$f":"Time!WZ$86","v":0},{"$f":"Time!XA$86","v":0},{"$f":"Time!XB$86","v":0},{"$f":"Time!XC$86","v":0},{"$f":"Time!XD$86","v":0},{"$f":"Time!XE$86","v":0},{"$f":"Time!XF$86","v":0},{"$f":"Time!XG$86","v":0},{"$f":"Time!XH$86","v":0},{"$f":"Time!XI$86","v":0},{"$f":"Time!XJ$86","v":0},{"$f":"Time!XK$86","v":0},{"$f":"Time!XL$86","v":0},{"$f":"Time!XM$86","v":0},{"$f":"Time!XN$86","v":0},{"$f":"Time!XO$86","v":0},{"$f":"Time!XP$86","v":0},{"$f":"Time!XQ$86","v":0},{"$f":"Time!XR$86","v":0},{"$f":"Time!XS$86","v":0},{"$f":"Time!XT$86","v":0},{"$f":"Time!XU$86","v":0},{"$f":"Time!XV$86","v":0},{"$f":"Time!XW$86","v":0},{"$f":"Time!XX$86","v":0},{"$f":"Time!XY$86","v":0},{"$f":"Time!XZ$86","v":0},{"$f":"Time!YA$86","v":0},{"$f":"Time!YB$86","v":0},{"$f":"Time!YC$86","v":0},{"$f":"Time!YD$86","v":0},{"$f":"Time!YE$86","v":0},{"$f":"Time!YF$86","v":0},{"$f":"Time!YG$86","v":0},{"$f":"Time!YH$86","v":0},{"$f":"Time!YI$86","v":0},{"$f":"Time!YJ$86","v":0},{"$f":"Time!YK$86","v":0},{"$f":"Time!YL$86","v":0},{"$f":"Time!YM$86","v":0},{"$f":"Time!YN$86","v":0},{"$f":"Time!YO$86","v":0},{"$f":"Time!YP$86","v":0},{"$f":"Time!YQ$86","v":0},{"$f":"Time!YR$86","v":0},{"$f":"Time!YS$86","v":0},{"$f":"Time!YT$86","v":0},{"$f":"Time!YU$86","v":0},{"$f":"Time!YV$86","v":0},{"$f":"Time!YW$86","v":0},{"$f":"Time!YX$86","v":0},{"$f":"Time!YY$86","v":0},{"$f":"Time!YZ$86","v":0},{"$f":"Time!ZA$86","v":0},{"$f":"Time!ZB$86","v":0},{"$f":"Time!ZC$86","v":0},{"$f":"Time!ZD$86","v":0},{"$f":"Time!ZE$86","v":0},{"$f":"Time!ZF$86","v":0},{"$f":"Time!ZG$86","v":0},{"$f":"Time!ZH$86","v":0},{"$f":"Time!ZI$86","v":0},{"$f":"Time!ZJ$86","v":0},{"$f":"Time!ZK$86","v":0},{"$f":"Time!ZL$86","v":0},{"$f":"Time!ZM$86","v":0},{"$f":"Time!ZN$86","v":0},{"$f":"Time!ZO$86","v":0},{"$f":"Time!ZP$86","v":0},{"$f":"Time!ZQ$86","v":0},{"$f":"Time!ZR$86","v":0},{"$f":"Time!ZS$86","v":0},{"$f":"Time!ZT$86","v":0},{"$f":"Time!ZU$86","v":0},{"$f":"Time!ZV$86","v":0},{"$f":"Time!ZW$86","v":0},{"$f":"Time!ZX$86","v":0},{"$f":"Time!ZY$86","v":0},{"$f":"Time!ZZ$86","v":0},{"$f":"Time!AAA$86","v":0},{"$f":"Time!AAB$86","v":0},{"$f":"Time!AAC$86","v":0},{"$f":"Time!AAD$86","v":0},{"$f":"Time!AAE$86","v":0},{"$f":"Time!AAF$86","v":0},{"$f":"Time!AAG$86","v":0},{"$f":"Time!AAH$86","v":0},{"$f":"Time!AAI$86","v":0},{"$f":"Time!AAJ$86","v":0},{"$f":"Time!AAK$86","v":0},{"$f":"Time!AAL$86","v":0},{"$f":"Time!AAM$86","v":0},{"$f":"Time!AAN$86","v":0},{"$f":"Time!AAO$86","v":0},{"$f":"Time!AAP$86","v":0},{"$f":"Time!AAQ$86","v":0},{"$f":"Time!AAR$86","v":0},{"$f":"Time!AAS$86","v":0},{"$f":"Time!AAT$86","v":0},{"$f":"Time!AAU$86","v":0},{"$f":"Time!AAV$86","v":0},{"$f":"Time!AAW$86","v":0},{"$f":"Time!AAX$86","v":0},{"$f":"Time!AAY$86","v":0},{"$f":"Time!AAZ$86","v":0},{"$f":"Time!ABA$86","v":0},{"$f":"Time!ABB$86","v":0},{"$f":"Time!ABC$86","v":0},{"$f":"Time!ABD$86","v":0},{"$f":"Time!ABE$86","v":0},{"$f":"Time!ABF$86","v":0},{"$f":"Time!ABG$86","v":0},{"$f":"Time!ABH$86","v":0},{"$f":"Time!ABI$86","v":0},{"$f":"Time!ABJ$86","v":0},{"$f":"Time!ABK$86","v":0},{"$f":"Time!ABL$86","v":0},{"$f":"Time!ABM$86","v":0},{"$f":"Time!ABN$86","v":0},{"$f":"Time!ABO$86","v":0},{"$f":"Time!ABP$86","v":0},{"$f":"Time!ABQ$86","v":0},{"$f":"Time!ABR$86","v":0},{"$f":"Time!ABS$86","v":0},{"$f":"Time!ABT$86","v":0},{"$f":"Time!ABU$86","v":0},{"$f":"Time!ABV$86","v":0},{"$f":"Time!ABW$86","v":0},{"$f":"Time!ABX$86","v":0},{"$f":"Time!ABY$86","v":0},{"$f":"Time!ABZ$86","v":0},{"$f":"Time!ACA$86","v":0},{"$f":"Time!ACB$86","v":0},{"$f":"Time!ACC$86","v":0},{"$f":"Time!ACD$86","v":0},{"$f":"Time!ACE$86","v":0},{"$f":"Time!ACF$86","v":0},{"$f":"Time!ACG$86","v":0},{"$f":"Time!ACH$86","v":0},{"$f":"Time!ACI$86","v":0},{"$f":"Time!ACJ$86","v":0},{"$f":"Time!ACK$86","v":0},{"$f":"Time!ACL$86","v":0},{"$f":"Time!ACM$86","v":0},{"$f":"Time!ACN$86","v":0},{"$f":"Time!ACO$86","v":0},{"$f":"Time!ACP$86","v":0},{"$f":"Time!ACQ$86","v":0},{"$f":"Time!ACR$86","v":0},{"$f":"Time!ACS$86","v":0},{"$f":"Time!ACT$86","v":0},{"$f":"Time!ACU$86","v":0},{"$f":"Time!ACV$86","v":0},{"$f":"Time!ACW$86","v":0},{"$f":"Time!ACX$86","v":0},{"$f":"Time!ACY$86","v":0},{"$f":"Time!ACZ$86","v":0},{"$f":"Time!ADA$86","v":0},{"$f":"Time!ADB$86","v":0},{"$f":"Time!ADC$86","v":0},{"$f":"Time!ADD$86","v":0},{"$f":"Time!ADE$86","v":0},{"$f":"Time!ADF$86","v":0},{"$f":"Time!ADG$86","v":0},{"$f":"Time!ADH$86","v":0},{"$f":"Time!ADI$86","v":0},{"$f":"Time!ADJ$86","v":0},{"$f":"Time!ADK$86","v":0},{"$f":"Time!ADL$86","v":0},{"$f":"Time!ADM$86","v":0},{"$f":"Time!ADN$86","v":0},{"$f":"Time!ADO$86","v":0},{"$f":"Time!ADP$86","v":0},{"$f":"Time!ADQ$86","v":0},{"$f":"Time!ADR$86","v":0},{"$f":"Time!ADS$86","v":0},{"$f":"Time!ADT$86","v":0},{"$f":"Time!ADU$86","v":0},{"$f":"Time!ADV$86","v":0},{"$f":"Time!ADW$86","v":0},{"$f":"Time!ADX$86","v":0},{"$f":"Time!ADY$86","v":0},{"$f":"Time!ADZ$86","v":0},{"$f":"Time!AEA$86","v":0},{"$f":"Time!AEB$86","v":0},{"$f":"Time!AEC$86","v":0},{"$f":"Time!AED$86","v":0},{"$f":"Time!AEE$86","v":0},{"$f":"Time!AEF$86","v":0},{"$f":"Time!AEG$86","v":0},{"$f":"Time!AEH$86","v":0},{"$f":"Time!AEI$86","v":0},{"$f":"Time!AEJ$86","v":0},{"$f":"Time!AEK$86","v":0},{"$f":"Time!AEL$86","v":0},{"$f":"Time!AEM$86","v":0},{"$f":"Time!AEN$86","v":0},{"$f":"Time!AEO$86","v":0},{"$f":"Time!AEP$86","v":0},{"$f":"Time!AEQ$86","v":0},{"$f":"Time!AER$86","v":0},{"$f":"Time!AES$86","v":0},{"$f":"Time!AET$86","v":0},{"$f":"Time!AEU$86","v":0},{"$f":"Time!AEV$86","v":0},{"$f":"Time!AEW$86","v":0},{"$f":"Time!AEX$86","v":0},{"$f":"Time!AEY$86","v":0},{"$f":"Time!AEZ$86","v":0},{"$f":"Time!AFA$86","v":0},{"$f":"Time!AFB$86","v":0},{"$f":"Time!AFC$86","v":0},{"$f":"Time!AFD$86","v":0},{"$f":"Time!AFE$86","v":0},{"$f":"Time!AFF$86","v":0},{"$f":"Time!AFG$86","v":0},{"$f":"Time!AFH$86","v":0},{"$f":"Time!AFI$86","v":0},{"$f":"Time!AFJ$86","v":0},{"$f":"Time!AFK$86","v":0},{"$f":"Time!AFL$86","v":0},{"$f":"Time!AFM$86","v":0},{"$f":"Time!AFN$86","v":0},{"$f":"Time!AFO$86","v":0},{"$f":"Time!AFP$86","v":0},{"$f":"Time!AFQ$86","v":0},{"$f":"Time!AFR$86","v":0},{"$f":"Time!AFS$86","v":0},{"$f":"Time!AFT$86","v":0},{"$f":"Time!AFU$86","v":0},{"$f":"Time!AFV$86","v":0},{"$f":"Time!AFW$86","v":0},{"$f":"Time!AFX$86","v":0},{"$f":"Time!AFY$86","v":0},{"$f":"Time!AFZ$86","v":0},{"$f":"Time!AGA$86","v":0},{"$f":"Time!AGB$86","v":0},{"$f":"Time!AGC$86","v":0},{"$f":"Time!AGD$86","v":0},{"$f":"Time!AGE$86","v":0},{"$f":"Time!AGF$86","v":0},{"$f":"Time!AGG$86","v":0},{"$f":"Time!AGH$86","v":0},{"$f":"Time!AGI$86","v":0},{"$f":"Time!AGJ$86","v":0},{"$f":"Time!AGK$86","v":0},{"$f":"Time!AGL$86","v":0},{"$f":"Time!AGM$86","v":0},{"$f":"Time!AGN$86","v":0},{"$f":"Time!AGO$86","v":0},{"$f":"Time!AGP$86","v":0},{"$f":"Time!AGQ$86","v":0},{"$f":"Time!AGR$86","v":0},{"$f":"Time!AGS$86","v":0},{"$f":"Time!AGT$86","v":0},{"$f":"Time!AGU$86","v":0},{"$f":"Time!AGV$86","v":0},{"$f":"Time!AGW$86","v":0},{"$f":"Time!AGX$86","v":0},{"$f":"Time!AGY$86","v":0},{"$f":"Time!AGZ$86","v":0},{"$f":"Time!AHA$86","v":0},{"$f":"Time!AHB$86","v":0},{"$f":"Time!AHC$86","v":0},{"$f":"Time!AHD$86","v":0},{"$f":"Time!AHE$86","v":0},{"$f":"Time!AHF$86","v":0},{"$f":"Time!AHG$86","v":0},{"$f":"Time!AHH$86","v":0},{"$f":"Time!AHI$86","v":0},{"$f":"Time!AHJ$86","v":0},{"$f":"Time!AHK$86","v":0},{"$f":"Time!AHL$86","v":0},{"$f":"Time!AHM$86","v":0},{"$f":"Time!AHN$86","v":0},{"$f":"Time!AHO$86","v":0},{"$f":"Time!AHP$86","v":0},{"$f":"Time!AHQ$86","v":0},{"$f":"Time!AHR$86","v":0},{"$f":"Time!AHS$86","v":0},{"$f":"Time!AHT$86","v":0},{"$f":"Time!AHU$86","v":0},{"$f":"Time!AHV$86","v":0},{"$f":"Time!AHW$86","v":0},{"$f":"Time!AHX$86","v":0},{"$f":"Time!AHY$86","v":0},{"$f":"Time!AHZ$86","v":0},{"$f":"Time!AIA$86","v":0},{"$f":"Time!AIB$86","v":0},{"$f":"Time!AIC$86","v":0},{"$f":"Time!AID$86","v":0},{"$f":"Time!AIE$86","v":0},{"$f":"Time!AIF$86","v":0},{"$f":"Time!AIG$86","v":0},{"$f":"Time!AIH$86","v":0},{"$f":"Time!AII$86","v":0},{"$f":"Time!AIJ$86","v":0},{"$f":"Time!AIK$86","v":0},{"$f":"Time!AIL$86","v":0},{"$f":"Time!AIM$86","v":0},{"$f":"Time!AIN$86","v":0},{"$f":"Time!AIO$86","v":0},{"$f":"Time!AIP$86","v":0},{"$f":"Time!AIQ$86","v":0},{"$f":"Time!AIR$86","v":0},{"$f":"Time!AIS$86","v":0},{"$f":"Time!AIT$86","v":0},{"$f":"Time!AIU$86","v":0},{"$f":"Time!AIV$86","v":0},{"$f":"Time!AIW$86","v":0},{"$f":"Time!AIX$86","v":0},{"$f":"Time!AIY$86","v":0},{"$f":"Time!AIZ$86","v":0},{"$f":"Time!AJA$86","v":0},{"$f":"Time!AJB$86","v":0},{"$f":"Time!AJC$86","v":0},{"$f":"Time!AJD$86","v":0},{"$f":"Time!AJE$86","v":0},{"$f":"Time!AJF$86","v":0},{"$f":"Time!AJG$86","v":0},{"$f":"Time!AJH$86","v":0},{"$f":"Time!AJI$86","v":0},{"$f":"Time!AJJ$86","v":0},{"$f":"Time!AJK$86","v":0},{"$f":"Time!AJL$86","v":0},{"$f":"Time!AJM$86","v":0},{"$f":"Time!AJN$86","v":0},{"$f":"Time!AJO$86","v":0},{"$f":"Time!AJP$86","v":0},{"$f":"Time!AJQ$86","v":0},{"$f":"Time!AJR$86","v":0},{"$f":"Time!AJS$86","v":0},{"$f":"Time!AJT$86","v":0},{"$f":"Time!AJU$86","v":0},{"$f":"Time!AJV$86","v":0},{"$f":"Time!AJW$86","v":0},{"$f":"Time!AJX$86","v":0},{"$f":"Time!AJY$86","v":0},{"$f":"Time!AJZ$86","v":0},{"$f":"Time!AKA$86","v":0},{"$f":"Time!AKB$86","v":0},{"$f":"Time!AKC$86","v":0},{"$f":"Time!AKD$86","v":0},{"$f":"Time!AKE$86","v":0},{"$f":"Time!AKF$86","v":0},{"$f":"Time!AKG$86","v":0},{"$f":"Time!AKH$86","v":0},{"$f":"Time!AKI$86","v":0},{"$f":"Time!AKJ$86","v":0},{"$f":"Time!AKK$86","v":0},{"$f":"Time!AKL$86","v":0},{"$f":"Time!AKM$86","v":0},{"$f":"Time!AKN$86","v":0},{"$f":"Time!AKO$86","v":0},{"$f":"Time!AKP$86","v":0},{"$f":"Time!AKQ$86","v":0},{"$f":"Time!AKR$86","v":0},{"$f":"Time!AKS$86","v":0},{"$f":"Time!AKT$86","v":0},{"$f":"Time!AKU$86","v":0},{"$f":"Time!AKV$86","v":0},{"$f":"Time!AKW$86","v":0},{"$f":"Time!AKX$86","v":0},{"$f":"Time!AKY$86","v":0},{"$f":"Time!AKZ$86","v":0},{"$f":"Time!ALA$86","v":0},{"$f":"Time!ALB$86","v":0},{"$f":"Time!ALC$86","v":0},{"$f":"Time!ALD$86","v":0},{"$f":"Time!ALE$86","v":0},{"$f":"Time!ALF$86","v":0},{"$f":"Time!ALG$86","v":0},{"$f":"Time!ALH$86","v":0},{"$f":"Time!ALI$86","v":0},{"$f":"Time!ALJ$86","v":0},{"$f":"Time!ALK$86","v":0},{"$f":"Time!ALL$86","v":0},{"$f":"Time!ALM$86","v":0},{"$f":"Time!ALN$86","v":0},{"$f":"Time!ALO$86","v":0},{"$f":"Time!ALP$86","v":0},{"$f":"Time!ALQ$86","v":0},{"$f":"Time!ALR$86","v":0},{"$f":"Time!ALS$86","v":0},{"$f":"Time!ALT$86","v":0},{"$f":"Time!ALU$86","v":0},{"$f":"Time!ALV$86","v":0},{"$f":"Time!ALW$86","v":0},{"$f":"Time!ALX$86","v":0},{"$f":"Time!ALY$86","v":0},{"$f":"Time!ALZ$86","v":0},{"$f":"Time!AMA$86","v":0},{"$f":"Time!AMB$86","v":0},{"$f":"Time!AMC$86","v":0},{"$f":"Time!AMD$86","v":0},{"$f":"Time!AME$86","v":0},{"$f":"Time!AMF$86","v":0},{"$f":"Time!AMG$86","v":0},{"$f":"Time!AMH$86","v":0},{"$f":"Time!AMI$86","v":0},{"$f":"Time!AMJ$86","v":0},{"$f":"Time!AMK$86","v":0},{"$f":"Time!AML$86","v":0},{"$f":"Time!AMM$86","v":0},{"$f":"Time!AMN$86","v":0},{"$f":"Time!AMO$86","v":0},{"$f":"Time!AMP$86","v":0},{"$f":"Time!AMQ$86","v":0},{"$f":"Time!AMR$86","v":0},{"$f":"Time!AMS$86","v":0},{"$f":"Time!AMT$86","v":0},{"$f":"Time!AMU$86","v":0},{"$f":"Time!AMV$86","v":0},{"$f":"Time!AMW$86","v":0},{"$f":"Time!AMX$86","v":0},{"$f":"Time!AMY$86","v":0},{"$f":"Time!AMZ$86","v":0},{"$f":"Time!ANA$86","v":0},{"$f":"Time!ANB$86","v":0},{"$f":"Time!ANC$86","v":0},{"$f":"Time!AND$86","v":0},{"$f":"Time!ANE$86","v":0},{"$f":"Time!ANF$86","v":0},{"$f":"Time!ANG$86","v":0},{"$f":"Time!ANH$86","v":0},{"$f":"Time!ANI$86","v":0},{"$f":"Time!ANJ$86","v":0},{"$f":"Time!ANK$86","v":0},{"$f":"Time!ANL$86","v":0},{"$f":"Time!ANM$86","v":0},{"$f":"Time!ANN$86","v":0},{"$f":"Time!ANO$86","v":0},{"$f":"Time!ANP$86","v":0},{"$f":"Time!ANQ$86","v":0},{"$f":"Time!ANR$86","v":0},{"$f":"Time!ANS$86","v":0},{"$f":"Time!ANT$86","v":0},{"$f":"Time!ANU$86","v":0},{"$f":"Time!ANV$86","v":0},{"$f":"Time!ANW$86","v":0},{"$f":"Time!ANX$86","v":0},{"$f":"Time!ANY$86","v":0},{"$f":"Time!ANZ$86","v":0},{"$f":"Time!AOA$86","v":0},{"$f":"Time!AOB$86","v":0},{"$f":"Time!AOC$86","v":0},{"$f":"Time!AOD$86","v":0},{"$f":"Time!AOE$86","v":0},{"$f":"Time!AOF$86","v":0},{"$f":"Time!AOG$86","v":0},{"$f":"Time!AOH$86","v":0},{"$f":"Time!AOI$86","v":0},{"$f":"Time!AOJ$86","v":0},{"$f":"Time!AOK$86","v":0},{"$f":"Time!AOL$86","v":0},{"$f":"Time!AOM$86","v":0},{"$f":"Time!AON$86","v":0},{"$f":"Time!AOO$86","v":0},{"$f":"Time!AOP$86","v":0},{"$f":"Time!AOQ$86","v":0},{"$f":"Time!AOR$86","v":0},{"$f":"Time!AOS$86","v":0},{"$f":"Time!AOT$86","v":0},{"$f":"Time!AOU$86","v":0},{"$f":"Time!AOV$86","v":0},{"$f":"Time!AOW$86","v":0},{"$f":"Time!AOX$86","v":0},{"$f":"Time!AOY$86","v":0},{"$f":"Time!AOZ$86","v":0},{"$f":"Time!APA$86","v":0},{"$f":"Time!APB$86","v":0},{"$f":"Time!APC$86","v":0},{"$f":"Time!APD$86","v":0},{"$f":"Time!APE$86","v":0},{"$f":"Time!APF$86","v":0},{"$f":"Time!APG$86","v":0},{"$f":"Time!APH$86","v":0},{"$f":"Time!API$86","v":0},{"$f":"Time!APJ$86","v":0},{"$f":"Time!APK$86","v":0},{"$f":"Time!APL$86","v":0},{"$f":"Time!APM$86","v":0},{"$f":"Time!APN$86","v":0},{"$f":"Time!APO$86","v":0},{"$f":"Time!APP$86","v":0},{"$f":"Time!APQ$86","v":0},{"$f":"Time!APR$86","v":0},{"$f":"Time!APS$86","v":0},{"$f":"Time!APT$86","v":0},{"$f":"Time!APU$86","v":0},{"$f":"Time!APV$86","v":0},{"$f":"Time!APW$86","v":0},{"$f":"Time!APX$86","v":0},{"$f":"Time!APY$86","v":0},{"$f":"Time!APZ$86","v":0},{"$f":"Time!AQA$86","v":0},{"$f":"Time!AQB$86","v":0},{"$f":"Time!AQC$86","v":0},{"$f":"Time!AQD$86","v":0},{"$f":"Time!AQE$86","v":0},{"$f":"Time!AQF$86","v":0},{"$f":"Time!AQG$86","v":0},{"$f":"Time!AQH$86","v":0},{"$f":"Time!AQI$86","v":0},{"$f":"Time!AQJ$86","v":0},{"$f":"Time!AQK$86","v":0},{"$f":"Time!AQL$86","v":0},{"$f":"Time!AQM$86","v":0},{"$f":"Time!AQN$86","v":0},{"$f":"Time!AQO$86","v":0},{"$f":"Time!AQP$86","v":0},{"$f":"Time!AQQ$86","v":0},{"$f":"Time!AQR$86","v":0},{"$f":"Time!AQS$86","v":0},{"$f":"Time!AQT$86","v":0},{"$f":"Time!AQU$86","v":0},{"$f":"Time!AQV$86","v":0},{"$f":"Time!AQW$86","v":0},{"$f":"Time!AQX$86","v":0},{"$f":"Time!AQY$86","v":0},{"$f":"Time!AQZ$86","v":0},{"$f":"Time!ARA$86","v":0},{"$f":"Time!ARB$86","v":0},{"$f":"Time!ARC$86","v":0},{"$f":"Time!ARD$86","v":0},{"$f":"Time!ARE$86","v":0},{"$f":"Time!ARF$86","v":0},{"$f":"Time!ARG$86","v":0},{"$f":"Time!ARH$86","v":0},{"$f":"Time!ARI$86","v":0},{"$f":"Time!ARJ$86","v":0},{"$f":"Time!ARK$86","v":0},{"$f":"Time!ARL$86","v":0},{"$f":"Time!ARM$86","v":0},{"$f":"Time!ARN$86","v":0},{"$f":"Time!ARO$86","v":0},{"$f":"Time!ARP$86","v":0},{"$f":"Time!ARQ$86","v":0},{"$f":"Time!ARR$86","v":0},{"$f":"Time!ARS$86","v":0},{"$f":"Time!ART$86","v":0},{"$f":"Time!ARU$86","v":0},{"$f":"Time!ARV$86","v":0},{"$f":"Time!ARW$86","v":0},{"$f":"Time!ARX$86","v":0},{"$f":"Time!ARY$86","v":0},{"$f":"Time!ARZ$86","v":0},{"$f":"Time!ASA$86","v":0},{"$f":"Time!ASB$86","v":0},{"$f":"Time!ASC$86","v":0},{"$f":"Time!ASD$86","v":0},{"$f":"Time!ASE$86","v":0},{"$f":"Time!ASF$86","v":0},{"$f":"Time!ASG$86","v":0},{"$f":"Time!ASH$86","v":0},{"$f":"Time!ASI$86","v":0},{"$f":"Time!ASJ$86","v":0},{"$f":"Time!ASK$86","v":0},{"$f":"Time!ASL$86","v":0},{"$f":"Time!ASM$86","v":0},{"$f":"Time!ASN$86","v":0},{"$f":"Time!ASO$86","v":0},{"$f":"Time!ASP$86","v":0},{"$f":"Time!ASQ$86","v":0},{"$f":"Time!ASR$86","v":0},{"$f":"Time!ASS$86","v":0},{"$f":"Time!AST$86","v":0},{"$f":"Time!ASU$86","v":0},{"$f":"Time!ASV$86","v":0},{"$f":"Time!ASW$86","v":0},{"$f":"Time!ASX$86","v":0},{"$f":"Time!ASY$86","v":0},{"$f":"Time!ASZ$86","v":0},{"$f":"Time!ATA$86","v":0},{"$f":"Time!ATB$86","v":0},{"$f":"Time!ATC$86","v":0},{"$f":"Time!ATD$86","v":0},{"$f":"Time!ATE$86","v":0},{"$f":"Time!ATF$86","v":0},{"$f":"Time!ATG$86","v":0},{"$f":"Time!ATH$86","v":0},{"$f":"Time!ATI$86","v":0},{"$f":"Time!ATJ$86","v":0},{"$f":"Time!ATK$86","v":0},{"$f":"Time!ATL$86","v":0},{"$f":"Time!ATM$86","v":0},{"$f":"Time!ATN$86","v":0},{"$f":"Time!ATO$86","v":0},{"$f":"Time!ATP$86","v":0},{"$f":"Time!ATQ$86","v":0},{"$f":"Time!ATR$86","v":0},{"$f":"Time!ATS$86","v":0},{"$f":"Time!ATT$86","v":0},{"$f":"Time!ATU$86","v":0},{"$f":"Time!ATV$86","v":0},{"$f":"Time!ATW$86","v":0},{"$f":"Time!ATX$86","v":0},{"$f":"Time!ATY$86","v":0},{"$f":"Time!ATZ$86","v":0},{"$f":"Time!AUA$86","v":0},{"$f":"Time!AUB$86","v":0},{"$f":"Time!AUC$86","v":0},{"$f":"Time!AUD$86","v":0},{"$f":"Time!AUE$86","v":0},{"$f":"Time!AUF$86","v":0},{"$f":"Time!AUG$86","v":0},{"$f":"Time!AUH$86","v":0},{"$f":"Time!AUI$86","v":0},{"$f":"Time!AUJ$86","v":0},{"$f":"Time!AUK$86","v":0},{"$f":"Time!AUL$86","v":0},{"$f":"Time!AUM$86","v":0},{"$f":"Time!AUN$86","v":0},{"$f":"Time!AUO$86","v":0},{"$f":"Time!AUP$86","v":0},{"$f":"Time!AUQ$86","v":0},{"$f":"Time!AUR$86","v":0},{"$f":"Time!AUS$86","v":0},{"$f":"Time!AUT$86","v":0},{"$f":"Time!AUU$86","v":0},{"$f":"Time!AUV$86","v":0},{"$f":"Time!AUW$86","v":0},{"$f":"Time!AUX$86","v":0},{"$f":"Time!AUY$86","v":0},{"$f":"Time!AUZ$86","v":0},{"$f":"Time!AVA$86","v":0},{"$f":"Time!AVB$86","v":0},{"$f":"Time!AVC$86","v":0},{"$f":"Time!AVD$86","v":0},{"$f":"Time!AVE$86","v":0},{"$f":"Time!AVF$86","v":0},{"$f":"Time!AVG$86","v":0},{"$f":"Time!AVH$86","v":0},{"$f":"Time!AVI$86","v":0},{"$f":"Time!AVJ$86","v":0},{"$f":"Time!AVK$86","v":0},{"$f":"Time!AVL$86","v":0},{"$f":"Time!AVM$86","v":0},{"$f":"Time!AVN$86","v":0},{"$f":"Time!AVO$86","v":0},{"$f":"Time!AVP$86","v":0},{"$f":"Time!AVQ$86","v":0},{"$f":"Time!AVR$86","v":0},{"$f":"Time!AVS$86","v":0},{"$f":"Time!AVT$86","v":0},{"$f":"Time!AVU$86","v":0},{"$f":"Time!AVV$86","v":0},{"$f":"Time!AVW$86","v":0},{"$f":"Time!AVX$86","v":0},{"$f":"Time!AVY$86","v":0},{"$f":"Time!AVZ$86","v":0},{"$f":"Time!AWA$86","v":0},{"$f":"Time!AWB$86","v":0},{"$f":"Time!AWC$86","v":0},{"$f":"Time!AWD$86","v":0},{"$f":"Time!AWE$86","v":0},{"$f":"Time!AWF$86","v":0},{"$f":"Time!AWG$86","v":0},{"$f":"Time!AWH$86","v":0},{"$f":"Time!AWI$86","v":0},{"$f":"Time!AWJ$86","v":0},{"$f":"Time!AWK$86","v":0},{"$f":"Time!AWL$86","v":0},{"$f":"Time!AWM$86","v":0},{"$f":"Time!AWN$86","v":0},{"$f":"Time!AWO$86","v":0},{"$f":"Time!AWP$86","v":0},{"$f":"Time!AWQ$86","v":0},{"$f":"Time!AWR$86","v":0},{"$f":"Time!AWS$86","v":0},{"$f":"Time!AWT$86","v":0},{"$f":"Time!AWU$86","v":0},{"$f":"Time!AWV$86","v":0},{"$f":"Time!AWW$86","v":0},{"$f":"Time!AWX$86","v":0},{"$f":"Time!AWY$86","v":0},{"$f":"Time!AWZ$86","v":0},{"$f":"Time!AXA$86","v":0},{"$f":"Time!AXB$86","v":0},{"$f":"Time!AXC$86","v":0},{"$f":"Time!AXD$86","v":0},{"$f":"Time!AXE$86","v":0},{"$f":"Time!AXF$86","v":0},{"$f":"Time!AXG$86","v":0},{"$f":"Time!AXH$86","v":0},{"$f":"Time!AXI$86","v":0},{"$f":"Time!AXJ$86","v":0},{"$f":"Time!AXK$86","v":0},{"$f":"Time!AXL$86","v":0},{"$f":"Time!AXM$86","v":0},{"$f":"Time!AXN$86","v":0},{"$f":"Time!AXO$86","v":0},{"$f":"Time!AXP$86","v":0},{"$f":"Time!AXQ$86","v":0},{"$f":"Time!AXR$86","v":0},{"$f":"Time!AXS$86","v":0},{"$f":"Time!AXT$86","v":0},{"$f":"Time!AXU$86","v":0},{"$f":"Time!AXV$86","v":0},{"$f":"Time!AXW$86","v":0},{"$f":"Time!AXX$86","v":0},{"$f":"Time!AXY$86","v":0},{"$f":"Time!AXZ$86","v":0},{"$f":"Time!AYA$86","v":0},{"$f":"Time!AYB$86","v":0},{"$f":"Time!AYC$86","v":0},{"$f":"Time!AYD$86","v":0},{"$f":"Time!AYE$86","v":0},{"$f":"Time!AYF$86","v":0},{"$f":"Time!AYG$86","v":0},{"$f":"Time!AYH$86","v":0},{"$f":"Time!AYI$86","v":0},{"$f":"Time!AYJ$86","v":0},{"$f":"Time!AYK$86","v":0},{"$f":"Time!AYL$86","v":0},{"$f":"Time!AYM$86","v":0},{"$f":"Time!AYN$86","v":0},{"$f":"Time!AYO$86","v":0},{"$f":"Time!AYP$86","v":0},{"$f":"Time!AYQ$86","v":0},{"$f":"Time!AYR$86","v":0},{"$f":"Time!AYS$86","v":0},{"$f":"Time!AYT$86","v":0},{"$f":"Time!AYU$86","v":0},{"$f":"Time!AYV$86","v":0},{"$f":"Time!AYW$86","v":0},{"$f":"Time!AYX$86","v":0},{"$f":"Time!AYY$86","v":0},{"$f":"Time!AYZ$86","v":0},{"$f":"Time!AZA$86","v":0},{"$f":"Time!AZB$86","v":0},{"$f":"Time!AZC$86","v":0},{"$f":"Time!AZD$86","v":0},{"$f":"Time!AZE$86","v":0},{"$f":"Time!AZF$86","v":0},{"$f":"Time!AZG$86","v":0},{"$f":"Time!AZH$86","v":0},{"$f":"Time!AZI$86","v":0},{"$f":"Time!AZJ$86","v":0},{"$f":"Time!AZK$86","v":0},{"$f":"Time!AZL$86","v":0},{"$f":"Time!AZM$86","v":0},{"$f":"Time!AZN$86","v":0},{"$f":"Time!AZO$86","v":0},{"$f":"Time!AZP$86","v":0},{"$f":"Time!AZQ$86","v":0},{"$f":"Time!AZR$86","v":0},{"$f":"Time!AZS$86","v":0},{"$f":"Time!AZT$86","v":0},{"$f":"Time!AZU$86","v":0},{"$f":"Time!AZV$86","v":0},{"$f":"Time!AZW$86","v":0},{"$f":"Time!AZX$86","v":0},{"$f":"Time!AZY$86","v":0},{"$f":"Time!AZZ$86","v":0},{"$f":"Time!BAA$86","v":0},{"$f":"Time!BAB$86","v":0},{"$f":"Time!BAC$86","v":0},{"$f":"Time!BAD$86","v":0},{"$f":"Time!BAE$86","v":0},{"$f":"Time!BAF$86","v":0},{"$f":"Time!BAG$86","v":0},{"$f":"Time!BAH$86","v":0},{"$f":"Time!BAI$86","v":0},{"$f":"Time!BAJ$86","v":0},{"$f":"Time!BAK$86","v":0},{"$f":"Time!BAL$86","v":0},{"$f":"Time!BAM$86","v":0},{"$f":"Time!BAN$86","v":0},{"$f":"Time!BAO$86","v":0},{"$f":"Time!BAP$86","v":0},{"$f":"Time!BAQ$86","v":0},{"$f":"Time!BAR$86","v":0},{"$f":"Time!BAS$86","v":0},{"$f":"Time!BAT$86","v":0},{"$f":"Time!BAU$86","v":0},{"$f":"Time!BAV$86","v":0},{"$f":"Time!BAW$86","v":0},{"$f":"Time!BAX$86","v":0},{"$f":"Time!BAY$86","v":0},{"$f":"Time!BAZ$86","v":0},{"$f":"Time!BBA$86","v":0},{"$f":"Time!BBB$86","v":0},{"$f":"Time!BBC$86","v":0},{"$f":"Time!BBD$86","v":0},{"$f":"Time!BBE$86","v":0},{"$f":"Time!BBF$86","v":0},{"$f":"Time!BBG$86","v":0},{"$f":"Time!BBH$86","v":0},{"$f":"Time!BBI$86","v":0},{"$f":"Time!BBJ$86","v":0},{"$f":"Time!BBK$86","v":0},{"$f":"Time!BBL$86","v":0},{"$f":"Time!BBM$86","v":0},{"$f":"Time!BBN$86","v":0},{"$f":"Time!BBO$86","v":0},{"$f":"Time!BBP$86","v":0},{"$f":"Time!BBQ$86","v":0},{"$f":"Time!BBR$86","v":0},{"$f":"Time!BBS$86","v":0},{"$f":"Time!BBT$86","v":0},{"$f":"Time!BBU$86","v":0},{"$f":"Time!BBV$86","v":0},{"$f":"Time!BBW$86","v":0},{"$f":"Time!BBX$86","v":0},{"$f":"Time!BBY$86","v":0},{"$f":"Time!BBZ$86","v":0},{"$f":"Time!BCA$86","v":0},{"$f":"Time!BCB$86","v":0},{"$f":"Time!BCC$86","v":0},{"$f":"Time!BCD$86","v":0},{"$f":"Time!BCE$86","v":0},{"$f":"Time!BCF$86","v":0},{"$f":"Time!BCG$86","v":0},{"$f":"Time!BCH$86","v":0},{"$f":"Time!BCI$86","v":0},{"$f":"Time!BCJ$86","v":0},{"$f":"Time!BCK$86","v":0},{"$f":"Time!BCL$86","v":0},{"$f":"Time!BCM$86","v":0},{"$f":"Time!BCN$86","v":0},{"$f":"Time!BCO$86","v":0},{"$f":"Time!BCP$86","v":0},{"$f":"Time!BCQ$86","v":0},{"$f":"Time!BCR$86","v":0},{"$f":"Time!BCS$86","v":0},{"$f":"Time!BCT$86","v":0},{"$f":"Time!BCU$86","v":0},{"$f":"Time!BCV$86","v":0},{"$f":"Time!BCW$86","v":0},{"$f":"Time!BCX$86","v":0},{"$f":"Time!BCY$86","v":0},{"$f":"Time!BCZ$86","v":0},{"$f":"Time!BDA$86","v":0},{"$f":"Time!BDB$86","v":0},{"$f":"Time!BDC$86","v":0},{"$f":"Time!BDD$86","v":0},{"$f":"Time!BDE$86","v":0},{"$f":"Time!BDF$86","v":0},{"$f":"Time!BDG$86","v":0},{"$f":"Time!BDH$86","v":0},{"$f":"Time!BDI$86","v":0},{"$f":"Time!BDJ$86","v":0},{"$f":"Time!BDK$86","v":0},{"$f":"Time!BDL$86","v":0},{"$f":"Time!BDM$86","v":0},{"$f":"Time!BDN$86","v":0},{"$f":"Time!BDO$86","v":0},{"$f":"Time!BDP$86","v":0},{"$f":"Time!BDQ$86","v":0},{"$f":"Time!BDR$86","v":0},{"$f":"Time!BDS$86","v":0},{"$f":"Time!BDT$86","v":0},{"$f":"Time!BDU$86","v":0},{"$f":"Time!BDV$86","v":0},{"$f":"Time!BDW$86","v":0},{"$f":"Time!BDX$86","v":0},{"$f":"Time!BDY$86","v":0},{"$f":"Time!BDZ$86","v":0},{"$f":"Time!BEA$86","v":0},{"$f":"Time!BEB$86","v":0},{"$f":"Time!BEC$86","v":0},{"$f":"Time!BED$86","v":0},{"$f":"Time!BEE$86","v":0},{"$f":"Time!BEF$86","v":0},{"$f":"Time!BEG$86","v":0},{"$f":"Time!BEH$86","v":0},{"$f":"Time!BEI$86","v":0},{"$f":"Time!BEJ$86","v":0},{"$f":"Time!BEK$86","v":0},{"$f":"Time!BEL$86","v":0},{"$f":"Time!BEM$86","v":0},{"$f":"Time!BEN$86","v":0},{"$f":"Time!BEO$86","v":0},{"$f":"Time!BEP$86","v":0},{"$f":"Time!BEQ$86","v":0},{"$f":"Time!BER$86","v":0},{"$f":"Time!BES$86","v":0},{"$f":"Time!BET$86","v":0},{"$f":"Time!BEU$86","v":0},{"$f":"Time!BEV$86","v":0},{"$f":"Time!BEW$86","v":0},{"$f":"Time!BEX$86","v":0},{"$f":"Time!BEY$86","v":0},{"$f":"Time!BEZ$86","v":0},{"$f":"Time!BFA$86","v":0},{"$f":"Time!BFB$86","v":0},{"$f":"Time!BFC$86","v":0},{"$f":"Time!BFD$86","v":0},{"$f":"Time!BFE$86","v":0},{"$f":"Time!BFF$86","v":0},{"$f":"Time!BFG$86","v":0},{"$f":"Time!BFH$86","v":0},{"$f":"Time!BFI$86","v":0},{"$f":"Time!BFJ$86","v":0},{"$f":"Time!BFK$86","v":0},{"$f":"Time!BFL$86","v":0},{"$f":"Time!BFM$86","v":0},{"$f":"Time!BFN$86","v":0},{"$f":"Time!BFO$86","v":0},{"$f":"Time!BFP$86","v":0},{"$f":"Time!BFQ$86","v":0},{"$f":"Time!BFR$86","v":0},{"$f":"Time!BFS$86","v":0},{"$f":"Time!BFT$86","v":0},{"$f":"Time!BFU$86","v":0},{"$f":"Time!BFV$86","v":0},{"$f":"Time!BFW$86","v":0},{"$f":"Time!BFX$86","v":0},{"$f":"Time!BFY$86","v":0},{"$f":"Time!BFZ$86","v":0},{"$f":"Time!BGA$86","v":0},{"$f":"Time!BGB$86","v":0},{"$f":"Time!BGC$86","v":0},{"$f":"Time!BGD$86","v":0},{"$f":"Time!BGE$86","v":0},{"$f":"Time!BGF$86","v":0},{"$f":"Time!BGG$86","v":0},{"$f":"Time!BGH$86","v":0},{"$f":"Time!BGI$86","v":0},{"$f":"Time!BGJ$86","v":0},{"$f":"Time!BGK$86","v":0},{"$f":"Time!BGL$86","v":0},{"$f":"Time!BGM$86","v":0},{"$f":"Time!BGN$86","v":0},{"$f":"Time!BGO$86","v":0},{"$f":"Time!BGP$86","v":0},{"$f":"Time!BGQ$86","v":0},{"$f":"Time!BGR$86","v":0},{"$f":"Time!BGS$86","v":0},{"$f":"Time!BGT$86","v":0},{"$f":"Time!BGU$86","v":0},{"$f":"Time!BGV$86","v":0},{"$f":"Time!BGW$86","v":0},{"$f":"Time!BGX$86","v":0},{"$f":"Time!BGY$86","v":0},{"$f":"Time!BGZ$86","v":0},{"$f":"Time!BHA$86","v":0},{"$f":"Time!BHB$86","v":0},{"$f":"Time!BHC$86","v":0},{"$f":"Time!BHD$86","v":0},{"$f":"Time!BHE$86","v":0},{"$f":"Time!BHF$86","v":0},{"$f":"Time!BHG$86","v":0},{"$f":"Time!BHH$86","v":0},{"$f":"Time!BHI$86","v":0},{"$f":"Time!BHJ$86","v":0},{"$f":"Time!BHK$86","v":0},{"$f":"Time!BHL$86","v":0},{"$f":"Time!BHM$86","v":0},{"$f":"Time!BHN$86","v":0},{"$f":"Time!BHO$86","v":0},{"$f":"Time!BHP$86","v":0},{"$f":"Time!BHQ$86","v":0},{"$f":"Time!BHR$86","v":0},{"$f":"Time!BHS$86","v":0},{"$f":"Time!BHT$86","v":0},{"$f":"Time!BHU$86","v":0},{"$f":"Time!BHV$86","v":0},{"$f":"Time!BHW$86","v":0},{"$f":"Time!BHX$86","v":0},{"$f":"Time!BHY$86","v":0},{"$f":"Time!BHZ$86","v":0},{"$f":"Time!BIA$86","v":0},{"$f":"Time!BIB$86","v":0},{"$f":"Time!BIC$86","v":0},{"$f":"Time!BID$86","v":0},{"$f":"Time!BIE$86","v":0},{"$f":"Time!BIF$86","v":0},{"$f":"Time!BIG$86","v":0},{"$f":"Time!BIH$86","v":0},{"$f":"Time!BII$86","v":0},{"$f":"Time!BIJ$86","v":0},{"$f":"Time!BIK$86","v":0},{"$f":"Time!BIL$86","v":0},{"$f":"Time!BIM$86","v":0},{"$f":"Time!BIN$86","v":0},{"$f":"Time!BIO$86","v":0},{"$f":"Time!BIP$86","v":0},{"$f":"Time!BIQ$86","v":0},{"$f":"Time!BIR$86","v":0},{"$f":"Time!BIS$86","v":0},{"$f":"Time!BIT$86","v":0},{"$f":"Time!BIU$86","v":0},{"$f":"Time!BIV$86","v":0},{"$f":"Time!BIW$86","v":0},{"$f":"Time!BIX$86","v":0},{"$f":"Time!BIY$86","v":0},{"$f":"Time!BIZ$86","v":0},{"$f":"Time!BJA$86","v":0},{"$f":"Time!BJB$86","v":0},{"$f":"Time!BJC$86","v":0},{"$f":"Time!BJD$86","v":0},{"$f":"Time!BJE$86","v":0},{"$f":"Time!BJF$86","v":0},{"$f":"Time!BJG$86","v":0},{"$f":"Time!BJH$86","v":0},{"$f":"Time!BJI$86","v":0},{"$f":"Time!BJJ$86","v":0},{"$f":"Time!BJK$86","v":0},{"$f":"Time!BJL$86","v":0},{"$f":"Time!BJM$86","v":0},{"$f":"Time!BJN$86","v":0},{"$f":"Time!BJO$86","v":0},{"$f":"Time!BJP$86","v":0},{"$f":"Time!BJQ$86","v":0},{"$f":"Time!BJR$86","v":0},{"$f":"Time!BJS$86","v":0},{"$f":"Time!BJT$86","v":0},{"$f":"Time!BJU$86","v":0},{"$f":"Time!BJV$86","v":0},{"$f":"Time!BJW$86","v":0},{"$f":"Time!BJX$86","v":0},{"$f":"Time!BJY$86","v":0},{"$f":"Time!BJZ$86","v":0},{"$f":"Time!BKA$86","v":0},{"$f":"Time!BKB$86","v":0},{"$f":"Time!BKC$86","v":0},{"$f":"Time!BKD$86","v":0},{"$f":"Time!BKE$86","v":0},{"$f":"Time!BKF$86","v":0},{"$f":"Time!BKG$86","v":0},{"$f":"Time!BKH$86","v":0},{"$f":"Time!BKI$86","v":0},{"$f":"Time!BKJ$86","v":0},{"$f":"Time!BKK$86","v":0},{"$f":"Time!BKL$86","v":0},{"$f":"Time!BKM$86","v":0},{"$f":"Time!BKN$86","v":0},{"$f":"Time!BKO$86","v":0},{"$f":"Time!BKP$86","v":0},{"$f":"Time!BKQ$86","v":0},{"$f":"Time!BKR$86","v":0},{"$f":"Time!BKS$86","v":0},{"$f":"Time!BKT$86","v":0},{"$f":"Time!BKU$86","v":0},{"$f":"Time!BKV$86","v":0},{"$f":"Time!BKW$86","v":0},{"$f":"Time!BKX$86","v":0},{"$f":"Time!BKY$86","v":0},{"$f":"Time!BKZ$86","v":0},{"$f":"Time!BLA$86","v":0},{"$f":"Time!BLB$86","v":0},{"$f":"Time!BLC$86","v":0},{"$f":"Time!BLD$86","v":0},{"$f":"Time!BLE$86","v":0},{"$f":"Time!BLF$86","v":0},{"$f":"Time!BLG$86","v":0},{"$f":"Time!BLH$86","v":0},{"$f":"Time!BLI$86","v":0},{"$f":"Time!BLJ$86","v":0},{"$f":"Time!BLK$86","v":0},{"$f":"Time!BLL$86","v":0},{"$f":"Time!BLM$86","v":0},{"$f":"Time!BLN$86","v":0},{"$f":"Time!BLO$86","v":0},{"$f":"Time!BLP$86","v":0},{"$f":"Time!BLQ$86","v":0},{"$f":"Time!BLR$86","v":0},{"$f":"Time!BLS$86","v":0},{"$f":"Time!BLT$86","v":0},{"$f":"Time!BLU$86","v":0},{"$f":"Time!BLV$86","v":0},{"$f":"Time!BLW$86","v":0},{"$f":"Time!BLX$86","v":0},{"$f":"Time!BLY$86","v":0},{"$f":"Time!BLZ$86","v":0},{"$f":"Time!BMA$86","v":0},{"$f":"Time!BMB$86","v":0},{"$f":"Time!BMC$86","v":0},{"$f":"Time!BMD$86","v":0},{"$f":"Time!BME$86","v":0},{"$f":"Time!BMF$86","v":0},{"$f":"Time!BMG$86","v":0},{"$f":"Time!BMH$86","v":0},{"$f":"Time!BMI$86","v":0},{"$f":"Time!BMJ$86","v":0},{"$f":"Time!BMK$86","v":0},{"$f":"Time!BML$86","v":0},{"$f":"Time!BMM$86","v":0},{"$f":"Time!BMN$86","v":0},{"$f":"Time!BMO$86","v":0},{"$f":"Time!BMP$86","v":0},{"$f":"Time!BMQ$86","v":0},{"$f":"Time!BMR$86","v":0},{"$f":"Time!BMS$86","v":0},{"$f":"Time!BMT$86","v":0},{"$f":"Time!BMU$86","v":0},{"$f":"Time!BMV$86","v":0},{"$f":"Time!BMW$86","v":0},{"$f":"Time!BMX$86","v":0},{"$f":"Time!BMY$86","v":0},{"$f":"Time!BMZ$86","v":0},{"$f":"Time!BNA$86","v":0},{"$f":"Time!BNB$86","v":0},{"$f":"Time!BNC$86","v":0},{"$f":"Time!BND$86","v":0},{"$f":"Time!BNE$86","v":0},{"$f":"Time!BNF$86","v":0},{"$f":"Time!BNG$86","v":0},{"$f":"Time!BNH$86","v":0},{"$f":"Time!BNI$86","v":0},{"$f":"Time!BNJ$86","v":0},{"$f":"Time!BNK$86","v":0},{"$f":"Time!BNL$86","v":0},{"$f":"Time!BNM$86","v":0},{"$f":"Time!BNN$86","v":0},{"$f":"Time!BNO$86","v":0},{"$f":"Time!BNP$86","v":0},{"$f":"Time!BNQ$86","v":0},{"$f":"Time!BNR$86","v":0},{"$f":"Time!BNS$86","v":0},{"$f":"Time!BNT$86","v":0},{"$f":"Time!BNU$86","v":0},{"$f":"Time!BNV$86","v":0},{"$f":"Time!BNW$86","v":0},{"$f":"Time!BNX$86","v":0},{"$f":"Time!BNY$86","v":0},{"$f":"Time!BNZ$86","v":0},{"$f":"Time!BOA$86","v":0},{"$f":"Time!BOB$86","v":0},{"$f":"Time!BOC$86","v":0},{"$f":"Time!BOD$86","v":0},{"$f":"Time!BOE$86","v":0},{"$f":"Time!BOF$86","v":0},{"$f":"Time!BOG$86","v":0},{"$f":"Time!BOH$86","v":0},{"$f":"Time!BOI$86","v":0},{"$f":"Time!BOJ$86","v":0},{"$f":"Time!BOK$86","v":0},{"$f":"Time!BOL$86","v":0},{"$f":"Time!BOM$86","v":0},{"$f":"Time!BON$86","v":0},{"$f":"Time!BOO$86","v":0},{"$f":"Time!BOP$86","v":0},{"$f":"Time!BOQ$86","v":0},{"$f":"Time!BOR$86","v":0},{"$f":"Time!BOS$86","v":0},{"$f":"Time!BOT$86","v":0},{"$f":"Time!BOU$86","v":0},{"$f":"Time!BOV$86","v":0},{"$f":"Time!BOW$86","v":0},{"$f":"Time!BOX$86","v":0},{"$f":"Time!BOY$86","v":0},{"$f":"Time!BOZ$86","v":0},{"$f":"Time!BPA$86","v":0},{"$f":"Time!BPB$86","v":0},{"$f":"Time!BPC$86","v":0},{"$f":"Time!BPD$86","v":0},{"$f":"Time!BPE$86","v":0},{"$f":"Time!BPF$86","v":0},{"$f":"Time!BPG$86","v":0},{"$f":"Time!BPH$86","v":0},{"$f":"Time!BPI$86","v":0},{"$f":"Time!BPJ$86","v":0},{"$f":"Time!BPK$86","v":0},{"$f":"Time!BPL$86","v":0},{"$f":"Time!BPM$86","v":0},{"$f":"Time!BPN$86","v":0},{"$f":"Time!BPO$86","v":0},{"$f":"Time!BPP$86","v":0},{"$f":"Time!BPQ$86","v":0},{"$f":"Time!BPR$86","v":0},{"$f":"Time!BPS$86","v":0},{"$f":"Time!BPT$86","v":0},{"$f":"Time!BPU$86","v":0},{"$f":"Time!BPV$86","v":0},{"$f":"Time!BPW$86","v":0},{"$f":"Time!BPX$86","v":0},{"$f":"Time!BPY$86","v":0},{"$f":"Time!BPZ$86","v":0},{"$f":"Time!BQA$86","v":0},{"$f":"Time!BQB$86","v":0},{"$f":"Time!BQC$86","v":0},{"$f":"Time!BQD$86","v":0},{"$f":"Time!BQE$86","v":0},{"$f":"Time!BQF$86","v":0},{"$f":"Time!BQG$86","v":0},{"$f":"Time!BQH$86","v":0},{"$f":"Time!BQI$86","v":0},{"$f":"Time!BQJ$86","v":0},{"$f":"Time!BQK$86","v":0},{"$f":"Time!BQL$86","v":0},{"$f":"Time!BQM$86","v":0},{"$f":"Time!BQN$86","v":0},{"$f":"Time!BQO$86","v":0},{"$f":"Time!BQP$86","v":0},{"$f":"Time!BQQ$86","v":0},{"$f":"Time!BQR$86","v":0},{"$f":"Time!BQS$86","v":0},{"$f":"Time!BQT$86","v":0},{"$f":"Time!BQU$86","v":0},{"$f":"Time!BQV$86","v":0},{"$f":"Time!BQW$86","v":0},{"$f":"Time!BQX$86","v":0},{"$f":"Time!BQY$86","v":0},{"$f":"Time!BQZ$86","v":0},{"$f":"Time!BRA$86","v":0},{"$f":"Time!BRB$86","v":0},{"$f":"Time!BRC$86","v":0},{"$f":"Time!BRD$86","v":0},{"$f":"Time!BRE$86","v":0},{"$f":"Time!BRF$86","v":0},{"$f":"Time!BRG$86","v":0},{"$f":"Time!BRH$86","v":0},{"$f":"Time!BRI$86","v":0},{"$f":"Time!BRJ$86","v":0},{"$f":"Time!BRK$86","v":0},{"$f":"Time!BRL$86","v":0},{"$f":"Time!BRM$86","v":0},{"$f":"Time!BRN$86","v":0},{"$f":"Time!BRO$86","v":0},{"$f":"Time!BRP$86","v":0},{"$f":"Time!BRQ$86","v":0},{"$f":"Time!BRR$86","v":0},{"$f":"Time!BRS$86","v":0},{"$f":"Time!BRT$86","v":0},{"$f":"Time!BRU$86","v":0},{"$f":"Time!BRV$86","v":0},{"$f":"Time!BRW$86","v":0},{"$f":"Time!BRX$86","v":0},{"$f":"Time!BRY$86","v":0},{"$f":"Time!BRZ$86","v":0},{"$f":"Time!BSA$86","v":0},{"$f":"Time!BSB$86","v":0},{"$f":"Time!BSC$86","v":0},{"$f":"Time!BSD$86","v":0},{"$f":"Time!BSE$86","v":0},{"$f":"Time!BSF$86","v":0},{"$f":"Time!BSG$86","v":0},{"$f":"Time!BSH$86","v":0},{"$f":"Time!BSI$86","v":0},{"$f":"Time!BSJ$86","v":0},{"$f":"Time!BSK$86","v":0},{"$f":"Time!BSL$86","v":0},{"$f":"Time!BSM$86","v":0},{"$f":"Time!BSN$86","v":0},{"$f":"Time!BSO$86","v":0},{"$f":"Time!BSP$86","v":0},{"$f":"Time!BSQ$86","v":0},{"$f":"Time!BSR$86","v":0},{"$f":"Time!BSS$86","v":0},{"$f":"Time!BST$86","v":0},{"$f":"Time!BSU$86","v":0},{"$f":"Time!BSV$86","v":0},{"$f":"Time!BSW$86","v":0},{"$f":"Time!BSX$86","v":0},{"$f":"Time!BSY$86","v":0},{"$f":"Time!BSZ$86","v":0},{"$f":"Time!BTA$86","v":0},{"$f":"Time!BTB$86","v":0},{"$f":"Time!BTC$86","v":0},{"$f":"Time!BTD$86","v":0},{"$f":"Time!BTE$86","v":0},{"$f":"Time!BTF$86","v":0},{"$f":"Time!BTG$86","v":0},{"$f":"Time!BTH$86","v":0},{"$f":"Time!BTI$86","v":0},{"$f":"Time!BTJ$86","v":0},{"$f":"Time!BTK$86","v":0},{"$f":"Time!BTL$86","v":0},{"$f":"Time!BTM$86","v":0},{"$f":"Time!BTN$86","v":0},{"$f":"Time!BTO$86","v":0},{"$f":"Time!BTP$86","v":0},{"$f":"Time!BTQ$86","v":0},{"$f":"Time!BTR$86","v":0},{"$f":"Time!BTS$86","v":0},{"$f":"Time!BTT$86","v":0},{"$f":"Time!BTU$86","v":0},{"$f":"Time!BTV$86","v":0},{"$f":"Time!BTW$86","v":0},{"$f":"Time!BTX$86","v":0},{"$f":"Time!BTY$86","v":0},{"$f":"Time!BTZ$86","v":0},{"$f":"Time!BUA$86","v":0},{"$f":"Time!BUB$86","v":0},{"$f":"Time!BUC$86","v":0},{"$f":"Time!BUD$86","v":0},{"$f":"Time!BUE$86","v":0},{"$f":"Time!BUF$86","v":0},{"$f":"Time!BUG$86","v":0},{"$f":"Time!BUH$86","v":0},{"$f":"Time!BUI$86","v":0},{"$f":"Time!BUJ$86","v":0},{"$f":"Time!BUK$86","v":0},{"$f":"Time!BUL$86","v":0},{"$f":"Time!BUM$86","v":0},{"$f":"Time!BUN$86","v":0},{"$f":"Time!BUO$86","v":0},{"$f":"Time!BUP$86","v":0},{"$f":"Time!BUQ$86","v":0},{"$f":"Time!BUR$86","v":0},{"$f":"Time!BUS$86","v":0},{"$f":"Time!BUT$86","v":0},{"$f":"Time!BUU$86","v":0},{"$f":"Time!BUV$86","v":0},{"$f":"Time!BUW$86","v":0},{"$f":"Time!BUX$86","v":0},{"$f":"Time!BUY$86","v":0},{"$f":"Time!BUZ$86","v":0},{"$f":"Time!BVA$86","v":0},{"$f":"Time!BVB$86","v":0},{"$f":"Time!BVC$86","v":0},{"$f":"Time!BVD$86","v":0},{"$f":"Time!BVE$86","v":0},{"$f":"Time!BVF$86","v":0},{"$f":"Time!BVG$86","v":0},{"$f":"Time!BVH$86","v":0},{"$f":"Time!BVI$86","v":0},{"$f":"Time!BVJ$86","v":0},{"$f":"Time!BVK$86","v":0},{"$f":"Time!BVL$86","v":0},{"$f":"Time!BVM$86","v":0},{"$f":"Time!BVN$86","v":0},{"$f":"Time!BVO$86","v":0},{"$f":"Time!BVP$86","v":0},{"$f":"Time!BVQ$86","v":0},{"$f":"Time!BVR$86","v":0},{"$f":"Time!BVS$86","v":0},{"$f":"Time!BVT$86","v":0},{"$f":"Time!BVU$86","v":0},{"$f":"Time!BVV$86","v":0},{"$f":"Time!BVW$86","v":0},{"$f":"Time!BVX$86","v":0},{"$f":"Time!BVY$86","v":0},{"$f":"Time!BVZ$86","v":0},{"$f":"Time!BWA$86","v":0},{"$f":"Time!BWB$86","v":0},{"$f":"Time!BWC$86","v":0},{"$f":"Time!BWD$86","v":0},{"$f":"Time!BWE$86","v":0},{"$f":"Time!BWF$86","v":0},{"$f":"Time!BWG$86","v":0},{"$f":"Time!BWH$86","v":0},{"$f":"Time!BWI$86","v":0},{"$f":"Time!BWJ$86","v":0},{"$f":"Time!BWK$86","v":0},{"$f":"Time!BWL$86","v":0},{"$f":"Time!BWM$86","v":0},{"$f":"Time!BWN$86","v":0},{"$f":"Time!BWO$86","v":0},{"$f":"Time!BWP$86","v":0},{"$f":"Time!BWQ$86","v":0},{"$f":"Time!BWR$86","v":0},{"$f":"Time!BWS$86","v":0},{"$f":"Time!BWT$86","v":0},{"$f":"Time!BWU$86","v":0},{"$f":"Time!BWV$86","v":0},{"$f":"Time!BWW$86","v":0},{"$f":"Time!BWX$86","v":0},{"$f":"Time!BWY$86","v":0},{"$f":"Time!BWZ$86","v":0},{"$f":"Time!BXA$86","v":0},{"$f":"Time!BXB$86","v":0},{"$f":"Time!BXC$86","v":0},{"$f":"Time!BXD$86","v":0},{"$f":"Time!BXE$86","v":0},{"$f":"Time!BXF$86","v":0},{"$f":"Time!BXG$86","v":0},{"$f":"Time!BXH$86","v":0},{"$f":"Time!BXI$86","v":0},{"$f":"Time!BXJ$86","v":0},{"$f":"Time!BXK$86","v":0},{"$f":"Time!BXL$86","v":0},{"$f":"Time!BXM$86","v":0},{"$f":"Time!BXN$86","v":0},{"$f":"Time!BXO$86","v":0},{"$f":"Time!BXP$86","v":0},{"$f":"Time!BXQ$86","v":0},{"$f":"Time!BXR$86","v":0},{"$f":"Time!BXS$86","v":0},{"$f":"Time!BXT$86","v":0},{"$f":"Time!BXU$86","v":0},{"$f":"Time!BXV$86","v":0},{"$f":"Time!BXW$86","v":0},{"$f":"Time!BXX$86","v":0},{"$f":"Time!BXY$86","v":0},{"$f":"Time!BXZ$86","v":0},{"$f":"Time!BYA$86","v":0},{"$f":"Time!BYB$86","v":0},{"$f":"Time!BYC$86","v":0},{"$f":"Time!BYD$86","v":0},{"$f":"Time!BYE$86","v":0},{"$f":"Time!BYF$86","v":0},{"$f":"Time!BYG$86","v":0},{"$f":"Time!BYH$86","v":0},{"$f":"Time!BYI$86","v":0},{"$f":"Time!BYJ$86","v":0},{"$f":"Time!BYK$86","v":0},{"$f":"Time!BYL$86","v":0},{"$f":"Time!BYM$86","v":0},{"$f":"Time!BYN$86","v":0},{"$f":"Time!BYO$86","v":0},{"$f":"Time!BYP$86","v":0},{"$f":"Time!BYQ$86","v":0},{"$f":"Time!BYR$86","v":0},{"$f":"Time!BYS$86","v":0},{"$f":"Time!BYT$86","v":0},{"$f":"Time!BYU$86","v":0},{"$f":"Time!BYV$86","v":0},{"$f":"Time!BYW$86","v":0},{"$f":"Time!BYX$86","v":0},{"$f":"Time!BYY$86","v":0},{"$f":"Time!BYZ$86","v":0},{"$f":"Time!BZA$86","v":0},{"$f":"Time!BZB$86","v":0},{"$f":"Time!BZC$86","v":0},{"$f":"Time!BZD$86","v":0},{"$f":"Time!BZE$86","v":0},{"$f":"Time!BZF$86","v":0},{"$f":"Time!BZG$86","v":0},{"$f":"Time!BZH$86","v":0},{"$f":"Time!BZI$86","v":0},{"$f":"Time!BZJ$86","v":0},{"$f":"Time!BZK$86","v":0},{"$f":"Time!BZL$86","v":0},{"$f":"Time!BZM$86","v":0},{"$f":"Time!BZN$86","v":0},{"$f":"Time!BZO$86","v":0},{"$f":"Time!BZP$86","v":0},{"$f":"Time!BZQ$86","v":0},{"$f":"Time!BZR$86","v":0},{"$f":"Time!BZS$86","v":0},{"$f":"Time!BZT$86","v":0},{"$f":"Time!BZU$86","v":0},{"$f":"Time!BZV$86","v":0},{"$f":"Time!BZW$86","v":0},{"$f":"Time!BZX$86","v":0},{"$f":"Time!BZY$86","v":0},{"$f":"Time!BZZ$86","v":0},{"$f":"Time!CAA$86","v":0},{"$f":"Time!CAB$86","v":0},{"$f":"Time!CAC$86","v":0},{"$f":"Time!CAD$86","v":0},{"$f":"Time!CAE$86","v":0},{"$f":"Time!CAF$86","v":0},{"$f":"Time!CAG$86","v":0},{"$f":"Time!CAH$86","v":0},{"$f":"Time!CAI$86","v":0},{"$f":"Time!CAJ$86","v":0},{"$f":"Time!CAK$86","v":0},{"$f":"Time!CAL$86","v":0},{"$f":"Time!CAM$86","v":0},{"$f":"Time!CAN$86","v":0},{"$f":"Time!CAO$86","v":0},{"$f":"Time!CAP$86","v":0},{"$f":"Time!CAQ$86","v":0},{"$f":"Time!CAR$86","v":0},{"$f":"Time!CAS$86","v":0},{"$f":"Time!CAT$86","v":0},{"$f":"Time!CAU$86","v":0},{"$f":"Time!CAV$86","v":0},{"$f":"Time!CAW$86","v":0},{"$f":"Time!CAX$86","v":0},{"$f":"Time!CAY$86","v":0},{"$f":"Time!CAZ$86","v":0},{"$f":"Time!CBA$86","v":0},{"$f":"Time!CBB$86","v":0},{"$f":"Time!CBC$86","v":0},{"$f":"Time!CBD$86","v":0},{"$f":"Time!CBE$86","v":0},{"$f":"Time!CBF$86","v":0},{"$f":"Time!CBG$86","v":0},{"$f":"Time!CBH$86","v":0},{"$f":"Time!CBI$86","v":0},{"$f":"Time!CBJ$86","v":0},{"$f":"Time!CBK$86","v":0},{"$f":"Time!CBL$86","v":0},{"$f":"Time!CBM$86","v":0},{"$f":"Time!CBN$86","v":0},{"$f":"Time!CBO$86","v":0},{"$f":"Time!CBP$86","v":0},{"$f":"Time!CBQ$86","v":0},{"$f":"Time!CBR$86","v":0},{"$f":"Time!CBS$86","v":0},{"$f":"Time!CBT$86","v":0},{"$f":"Time!CBU$86","v":0},{"$f":"Time!CBV$86","v":0},{"$f":"Time!CBW$86","v":0},{"$f":"Time!CBX$86","v":0},{"$f":"Time!CBY$86","v":0},{"$f":"Time!CBZ$86","v":0},{"$f":"Time!CCA$86","v":0},{"$f":"Time!CCB$86","v":0},{"$f":"Time!CCC$86","v":0},{"$f":"Time!CCD$86","v":0},{"$f":"Time!CCE$86","v":0},{"$f":"Time!CCF$86","v":0},{"$f":"Time!CCG$86","v":0},{"$f":"Time!CCH$86","v":0},{"$f":"Time!CCI$86","v":0},{"$f":"Time!CCJ$86","v":0},{"$f":"Time!CCK$86","v":0},{"$f":"Time!CCL$86","v":0},{"$f":"Time!CCM$86","v":0},{"$f":"Time!CCN$86","v":0},{"$f":"Time!CCO$86","v":0},{"$f":"Time!CCP$86","v":0},{"$f":"Time!CCQ$86","v":0},{"$f":"Time!CCR$86","v":0},{"$f":"Time!CCS$86","v":0},{"$f":"Time!CCT$86","v":0},{"$f":"Time!CCU$86","v":0},{"$f":"Time!CCV$86","v":0},{"$f":"Time!CCW$86","v":0},{"$f":"Time!CCX$86","v":0},{"$f":"Time!CCY$86","v":0},{"$f":"Time!CCZ$86","v":0},{"$f":"Time!CDA$86","v":0},{"$f":"Time!CDB$86","v":0},{"$f":"Time!CDC$86","v":0},{"$f":"Time!CDD$86","v":0},{"$f":"Time!CDE$86","v":0},{"$f":"Time!CDF$86","v":0},{"$f":"Time!CDG$86","v":0},{"$f":"Time!CDH$86","v":0},{"$f":"Time!CDI$86","v":0},{"$f":"Time!CDJ$86","v":0},{"$f":"Time!CDK$86","v":0},{"$f":"Time!CDL$86","v":0},{"$f":"Time!CDM$86","v":0},{"$f":"Time!CDN$86","v":0},{"$f":"Time!CDO$86","v":0},{"$f":"Time!CDP$86","v":0},{"$f":"Time!CDQ$86","v":0},{"$f":"Time!CDR$86","v":0},{"$f":"Time!CDS$86","v":0},{"$f":"Time!CDT$86","v":0},{"$f":"Time!CDU$86","v":0},{"$f":"Time!CDV$86","v":0},{"$f":"Time!CDW$86","v":0},{"$f":"Time!CDX$86","v":0},{"$f":"Time!CDY$86","v":0},{"$f":"Time!CDZ$86","v":0},{"$f":"Time!CEA$86","v":0},{"$f":"Time!CEB$86","v":0},{"$f":"Time!CEC$86","v":0},{"$f":"Time!CED$86","v":0},{"$f":"Time!CEE$86","v":0},{"$f":"Time!CEF$86","v":0},{"$f":"Time!CEG$86","v":0},{"$f":"Time!CEH$86","v":0},{"$f":"Time!CEI$86","v":0},{"$f":"Time!CEJ$86","v":0},{"$f":"Time!CEK$86","v":0},{"$f":"Time!CEL$86","v":0},{"$f":"Time!CEM$86","v":0},{"$f":"Time!CEN$86","v":0},{"$f":"Time!CEO$86","v":0},{"$f":"Time!CEP$86","v":0},{"$f":"Time!CEQ$86","v":0},{"$f":"Time!CER$86","v":0},{"$f":"Time!CES$86","v":0},{"$f":"Time!CET$86","v":0},{"$f":"Time!CEU$86","v":0},{"$f":"Time!CEV$86","v":0},{"$f":"Time!CEW$86","v":0},{"$f":"Time!CEX$86","v":0},{"$f":"Time!CEY$86","v":0},{"$f":"Time!CEZ$86","v":0},{"$f":"Time!CFA$86","v":0},{"$f":"Time!CFB$86","v":0},{"$f":"Time!CFC$86","v":0},{"$f":"Time!CFD$86","v":0},{"$f":"Time!CFE$86","v":0},{"$f":"Time!CFF$86","v":0},{"$f":"Time!CFG$86","v":0},{"$f":"Time!CFH$86","v":0},{"$f":"Time!CFI$86","v":0},{"$f":"Time!CFJ$86","v":0},{"$f":"Time!CFK$86","v":0},{"$f":"Time!CFL$86","v":0},{"$f":"Time!CFM$86","v":0},{"$f":"Time!CFN$86","v":0},{"$f":"Time!CFO$86","v":0},{"$f":"Time!CFP$86","v":0},{"$f":"Time!CFQ$86","v":0},{"$f":"Time!CFR$86","v":0},{"$f":"Time!CFS$86","v":0},{"$f":"Time!CFT$86","v":0},{"$f":"Time!CFU$86","v":0},{"$f":"Time!CFV$86","v":0},{"$f":"Time!CFW$86","v":0},{"$f":"Time!CFX$86","v":0},{"$f":"Time!CFY$86","v":0},{"$f":"Time!CFZ$86","v":0},{"$f":"Time!CGA$86","v":0},{"$f":"Time!CGB$86","v":0},{"$f":"Time!CGC$86","v":0},{"$f":"Time!CGD$86","v":0},{"$f":"Time!CGE$86","v":0},{"$f":"Time!CGF$86","v":0},{"$f":"Time!CGG$86","v":0},{"$f":"Time!CGH$86","v":0},{"$f":"Time!CGI$86","v":0},{"$f":"Time!CGJ$86","v":0},{"$f":"Time!CGK$86","v":0},{"$f":"Time!CGL$86","v":0},{"$f":"Time!CGM$86","v":0},{"$f":"Time!CGN$86","v":0},{"$f":"Time!CGO$86","v":0},{"$f":"Time!CGP$86","v":0},{"$f":"Time!CGQ$86","v":0},{"$f":"Time!CGR$86","v":0},{"$f":"Time!CGS$86","v":0},{"$f":"Time!CGT$86","v":0},{"$f":"Time!CGU$86","v":0},{"$f":"Time!CGV$86","v":0},{"$f":"Time!CGW$86","v":0},{"$f":"Time!CGX$86","v":0},{"$f":"Time!CGY$86","v":0},{"$f":"Time!CGZ$86","v":0},{"$f":"Time!CHA$86","v":0},{"$f":"Time!CHB$86","v":0},{"$f":"Time!CHC$86","v":0},{"$f":"Time!CHD$86","v":0},{"$f":"Time!CHE$86","v":0},{"$f":"Time!CHF$86","v":0},{"$f":"Time!CHG$86","v":0},{"$f":"Time!CHH$86","v":0},{"$f":"Time!CHI$86","v":0},{"$f":"Time!CHJ$86","v":0},{"$f":"Time!CHK$86","v":0},{"$f":"Time!CHL$86","v":0},{"$f":"Time!CHM$86","v":0},{"$f":"Time!CHN$86","v":0},{"$f":"Time!CHO$86","v":0},{"$f":"Time!CHP$86","v":0},{"$f":"Time!CHQ$86","v":0},{"$f":"Time!CHR$86","v":0},{"$f":"Time!CHS$86","v":0},{"$f":"Time!CHT$86","v":0},{"$f":"Time!CHU$86","v":0},{"$f":"Time!CHV$86","v":0},{"$f":"Time!CHW$86","v":0},{"$f":"Time!CHX$86","v":0},{"$f":"Time!CHY$86","v":0},{"$f":"Time!CHZ$86","v":0},{"$f":"Time!CIA$86","v":0},{"$f":"Time!CIB$86","v":0},{"$f":"Time!CIC$86","v":0},{"$f":"Time!CID$86","v":0},{"$f":"Time!CIE$86","v":0},{"$f":"Time!CIF$86","v":0},{"$f":"Time!CIG$86","v":0},{"$f":"Time!CIH$86","v":0},{"$f":"Time!CII$86","v":0},{"$f":"Time!CIJ$86","v":0},{"$f":"Time!CIK$86","v":0},{"$f":"Time!CIL$86","v":0},{"$f":"Time!CIM$86","v":0},{"$f":"Time!CIN$86","v":0},{"$f":"Time!CIO$86","v":0},{"$f":"Time!CIP$86","v":0},{"$f":"Time!CIQ$86","v":0},{"$f":"Time!CIR$86","v":0},{"$f":"Time!CIS$86","v":0},{"$f":"Time!CIT$86","v":0},{"$f":"Time!CIU$86","v":0},{"$f":"Time!CIV$86","v":0},{"$f":"Time!CIW$86","v":0},{"$f":"Time!CIX$86","v":0},{"$f":"Time!CIY$86","v":0},{"$f":"Time!CIZ$86","v":0},{"$f":"Time!CJA$86","v":0},{"$f":"Time!CJB$86","v":0},{"$f":"Time!CJC$86","v":0},{"$f":"Time!CJD$86","v":0},{"$f":"Time!CJE$86","v":0},{"$f":"Time!CJF$86","v":0},{"$f":"Time!CJG$86","v":0},{"$f":"Time!CJH$86","v":0},{"$f":"Time!CJI$86","v":0},{"$f":"Time!CJJ$86","v":0},{"$f":"Time!CJK$86","v":0},{"$f":"Time!CJL$86","v":0},{"$f":"Time!CJM$86","v":0},{"$f":"Time!CJN$86","v":0},{"$f":"Time!CJO$86","v":0},{"$f":"Time!CJP$86","v":0},{"$f":"Time!CJQ$86","v":0},{"$f":"Time!CJR$86","v":0},{"$f":"Time!CJS$86","v":0},{"$f":"Time!CJT$86","v":0},{"$f":"Time!CJU$86","v":0},{"$f":"Time!CJV$86","v":0},{"$f":"Time!CJW$86","v":0},{"$f":"Time!CJX$86","v":0},{"$f":"Time!CJY$86","v":0},{"$f":"Time!CJZ$86","v":0},{"$f":"Time!CKA$86","v":0},{"$f":"Time!CKB$86","v":0},{"$f":"Time!CKC$86","v":0},{"$f":"Time!CKD$86","v":0},{"$f":"Time!CKE$86","v":0},{"$f":"Time!CKF$86","v":0},{"$f":"Time!CKG$86","v":0},{"$f":"Time!CKH$86","v":0},{"$f":"Time!CKI$86","v":0},{"$f":"Time!CKJ$86","v":0},{"$f":"Time!CKK$86","v":0},{"$f":"Time!CKL$86","v":0},{"$f":"Time!CKM$86","v":0},{"$f":"Time!CKN$86","v":0},{"$f":"Time!CKO$86","v":0},{"$f":"Time!CKP$86","v":0},{"$f":"Time!CKQ$86","v":0},{"$f":"Time!CKR$86","v":0},{"$f":"Time!CKS$86","v":0},{"$f":"Time!CKT$86","v":0},{"$f":"Time!CKU$86","v":0},{"$f":"Time!CKV$86","v":0},{"$f":"Time!CKW$86","v":0},{"$f":"Time!CKX$86","v":0},{"$f":"Time!CKY$86","v":0},{"$f":"Time!CKZ$86","v":0},{"$f":"Time!CLA$86","v":0},{"$f":"Time!CLB$86","v":0},{"$f":"Time!CLC$86","v":0},{"$f":"Time!CLD$86","v":0},{"$f":"Time!CLE$86","v":0},{"$f":"Time!CLF$86","v":0},{"$f":"Time!CLG$86","v":0},{"$f":"Time!CLH$86","v":0},{"$f":"Time!CLI$86","v":0},{"$f":"Time!CLJ$86","v":0},{"$f":"Time!CLK$86","v":0},{"$f":"Time!CLL$86","v":0},{"$f":"Time!CLM$86","v":0},{"$f":"Time!CLN$86","v":0},{"$f":"Time!CLO$86","v":0},{"$f":"Time!CLP$86","v":0},{"$f":"Time!CLQ$86","v":0},{"$f":"Time!CLR$86","v":0},{"$f":"Time!CLS$86","v":0},{"$f":"Time!CLT$86","v":0},{"$f":"Time!CLU$86","v":0},{"$f":"Time!CLV$86","v":0},{"$f":"Time!CLW$86","v":0},{"$f":"Time!CLX$86","v":0},{"$f":"Time!CLY$86","v":0},{"$f":"Time!CLZ$86","v":0},{"$f":"Time!CMA$86","v":0},{"$f":"Time!CMB$86","v":0},{"$f":"Time!CMC$86","v":0},{"$f":"Time!CMD$86","v":0},{"$f":"Time!CME$86","v":0},{"$f":"Time!CMF$86","v":0},{"$f":"Time!CMG$86","v":0},{"$f":"Time!CMH$86","v":0},{"$f":"Time!CMI$86","v":0},{"$f":"Time!CMJ$86","v":0},{"$f":"Time!CMK$86","v":0},{"$f":"Time!CML$86","v":0},{"$f":"Time!CMM$86","v":0},{"$f":"Time!CMN$86","v":0},{"$f":"Time!CMO$86","v":0},{"$f":"Time!CMP$86","v":0},{"$f":"Time!CMQ$86","v":0},{"$f":"Time!CMR$86","v":0},{"$f":"Time!CMS$86","v":0},{"$f":"Time!CMT$86","v":0},{"$f":"Time!CMU$86","v":0},{"$f":"Time!CMV$86","v":0},{"$f":"Time!CMW$86","v":0},{"$f":"Time!CMX$86","v":0},{"$f":"Time!CMY$86","v":0},{"$f":"Time!CMZ$86","v":0},{"$f":"Time!CNA$86","v":0},{"$f":"Time!CNB$86","v":0},{"$f":"Time!CNC$86","v":0},{"$f":"Time!CND$86","v":0},{"$f":"Time!CNE$86","v":0},{"$f":"Time!CNF$86","v":0},{"$f":"Time!CNG$86","v":0},{"$f":"Time!CNH$86","v":0},{"$f":"Time!CNI$86","v":0},{"$f":"Time!CNJ$86","v":0},{"$f":"Time!CNK$86","v":0},{"$f":"Time!CNL$86","v":0},{"$f":"Time!CNM$86","v":0},{"$f":"Time!CNN$86","v":0},{"$f":"Time!CNO$86","v":0},{"$f":"Time!CNP$86","v":0},{"$f":"Time!CNQ$86","v":0},{"$f":"Time!CNR$86","v":0},{"$f":"Time!CNS$86","v":0},{"$f":"Time!CNT$86","v":0},{"$f":"Time!CNU$86","v":0},{"$f":"Time!CNV$86","v":0},{"$f":"Time!CNW$86","v":0},{"$f":"Time!CNX$86","v":0},{"$f":"Time!CNY$86","v":0},{"$f":"Time!CNZ$86","v":0},{"$f":"Time!COA$86","v":0},{"$f":"Time!COB$86","v":0},{"$f":"Time!COC$86","v":0},{"$f":"Time!COD$86","v":0},{"$f":"Time!COE$86","v":0},{"$f":"Time!COF$86","v":0},{"$f":"Time!COG$86","v":0},{"$f":"Time!COH$86","v":0},{"$f":"Time!COI$86","v":0},{"$f":"Time!COJ$86","v":0},{"$f":"Time!COK$86","v":0},{"$f":"Time!COL$86","v":0},{"$f":"Time!COM$86","v":0},{"$f":"Time!CON$86","v":0},{"$f":"Time!COO$86","v":0},{"$f":"Time!COP$86","v":0},{"$f":"Time!COQ$86","v":0},{"$f":"Time!COR$86","v":0},{"$f":"Time!COS$86","v":0},{"$f":"Time!COT$86","v":0},{"$f":"Time!COU$86","v":0},{"$f":"Time!COV$86","v":0},{"$f":"Time!COW$86","v":0},{"$f":"Time!COX$86","v":0},{"$f":"Time!COY$86","v":0},{"$f":"Time!COZ$86","v":0},{"$f":"Time!CPA$86","v":0},{"$f":"Time!CPB$86","v":0},{"$f":"Time!CPC$86","v":0},{"$f":"Time!CPD$86","v":0},{"$f":"Time!CPE$86","v":0},{"$f":"Time!CPF$86","v":0},{"$f":"Time!CPG$86","v":0},{"$f":"Time!CPH$86","v":0},{"$f":"Time!CPI$86","v":0},{"$f":"Time!CPJ$86","v":0},{"$f":"Time!CPK$86","v":0},{"$f":"Time!CPL$86","v":0},{"$f":"Time!CPM$86","v":0},{"$f":"Time!CPN$86","v":0},{"$f":"Time!CPO$86","v":0},{"$f":"Time!CPP$86","v":0},{"$f":"Time!CPQ$86","v":0},{"$f":"Time!CPR$86","v":0},{"$f":"Time!CPS$86","v":0},{"$f":"Time!CPT$86","v":0},{"$f":"Time!CPU$86","v":0},{"$f":"Time!CPV$86","v":0},{"$f":"Time!CPW$86","v":0},{"$f":"Time!CPX$86","v":0},{"$f":"Time!CPY$86","v":0},{"$f":"Time!CPZ$86","v":0},{"$f":"Time!CQA$86","v":0},{"$f":"Time!CQB$86","v":0},{"$f":"Time!CQC$86","v":0},{"$f":"Time!CQD$86","v":0},{"$f":"Time!CQE$86","v":0},{"$f":"Time!CQF$86","v":0},{"$f":"Time!CQG$86","v":0},{"$f":"Time!CQH$86","v":0},{"$f":"Time!CQI$86","v":0},{"$f":"Time!CQJ$86","v":0},{"$f":"Time!CQK$86","v":0},{"$f":"Time!CQL$86","v":0},{"$f":"Time!CQM$86","v":0},{"$f":"Time!CQN$86","v":0},{"$f":"Time!CQO$86","v":0},{"$f":"Time!CQP$86","v":0},{"$f":"Time!CQQ$86","v":0},{"$f":"Time!CQR$86","v":0},{"$f":"Time!CQS$86","v":0},{"$f":"Time!CQT$86","v":0},{"$f":"Time!CQU$86","v":0},{"$f":"Time!CQV$86","v":0},{"$f":"Time!CQW$86","v":0},{"$f":"Time!CQX$86","v":0},{"$f":"Time!CQY$86","v":0},{"$f":"Time!CQZ$86","v":0},{"$f":"Time!CRA$86","v":0},{"$f":"Time!CRB$86","v":0},{"$f":"Time!CRC$86","v":0},{"$f":"Time!CRD$86","v":0},{"$f":"Time!CRE$86","v":0},{"$f":"Time!CRF$86","v":0},{"$f":"Time!CRG$86","v":0},{"$f":"Time!CRH$86","v":0},{"$f":"Time!CRI$86","v":0},{"$f":"Time!CRJ$86","v":0},{"$f":"Time!CRK$86","v":0},{"$f":"Time!CRL$86","v":0},{"$f":"Time!CRM$86","v":0},{"$f":"Time!CRN$86","v":0},{"$f":"Time!CRO$86","v":0},{"$f":"Time!CRP$86","v":0},{"$f":"Time!CRQ$86","v":0},{"$f":"Time!CRR$86","v":0},{"$f":"Time!CRS$86","v":0},{"$f":"Time!CRT$86","v":0},{"$f":"Time!CRU$86","v":0},{"$f":"Time!CRV$86","v":0},{"$f":"Time!CRW$86","v":0},{"$f":"Time!CRX$86","v":0},{"$f":"Time!CRY$86","v":0},{"$f":"Time!CRZ$86","v":0},{"$f":"Time!CSA$86","v":0},{"$f":"Time!CSB$86","v":0},{"$f":"Time!CSC$86","v":0},{"$f":"Time!CSD$86","v":0},{"$f":"Time!CSE$86","v":0},{"$f":"Time!CSF$86","v":0},{"$f":"Time!CSG$86","v":0},{"$f":"Time!CSH$86","v":0},{"$f":"Time!CSI$86","v":0},{"$f":"Time!CSJ$86","v":0},{"$f":"Time!CSK$86","v":0},{"$f":"Time!CSL$86","v":0},{"$f":"Time!CSM$86","v":0},{"$f":"Time!CSN$86","v":0},{"$f":"Time!CSO$86","v":0},{"$f":"Time!CSP$86","v":0},{"$f":"Time!CSQ$86","v":0},{"$f":"Time!CSR$86","v":0},{"$f":"Time!CSS$86","v":0},{"$f":"Time!CST$86","v":0},{"$f":"Time!CSU$86","v":0},{"$f":"Time!CSV$86","v":0},{"$f":"Time!CSW$86","v":0},{"$f":"Time!CSX$86","v":0},{"$f":"Time!CSY$86","v":0},{"$f":"Time!CSZ$86","v":0},{"$f":"Time!CTA$86","v":0},{"$f":"Time!CTB$86","v":0},{"$f":"Time!CTC$86","v":0},{"$f":"Time!CTD$86","v":0},{"$f":"Time!CTE$86","v":0},{"$f":"Time!CTF$86","v":0},{"$f":"Time!CTG$86","v":0},{"$f":"Time!CTH$86","v":0},{"$f":"Time!CTI$86","v":0},{"$f":"Time!CTJ$86","v":0},{"$f":"Time!CTK$86","v":0},{"$f":"Time!CTL$86","v":0},{"$f":"Time!CTM$86","v":0},{"$f":"Time!CTN$86","v":0},{"$f":"Time!CTO$86","v":0},{"$f":"Time!CTP$86","v":0},{"$f":"Time!CTQ$86","v":0},{"$f":"Time!CTR$86","v":0},{"$f":"Time!CTS$86","v":0},{"$f":"Time!CTT$86","v":0},{"$f":"Time!CTU$86","v":0},{"$f":"Time!CTV$86","v":0},{"$f":"Time!CTW$86","v":0},{"$f":"Time!CTX$86","v":0},{"$f":"Time!CTY$86","v":0},{"$f":"Time!CTZ$86","v":0},{"$f":"Time!CUA$86","v":0},{"$f":"Time!CUB$86","v":0},{"$f":"Time!CUC$86","v":0},{"$f":"Time!CUD$86","v":0},{"$f":"Time!CUE$86","v":0},{"$f":"Time!CUF$86","v":0},{"$f":"Time!CUG$86","v":0},{"$f":"Time!CUH$86","v":0},{"$f":"Time!CUI$86","v":0},{"$f":"Time!CUJ$86","v":0},{"$f":"Time!CUK$86","v":0},{"$f":"Time!CUL$86","v":0},{"$f":"Time!CUM$86","v":0},{"$f":"Time!CUN$86","v":0},{"$f":"Time!CUO$86","v":0},{"$f":"Time!CUP$86","v":0},{"$f":"Time!CUQ$86","v":0},{"$f":"Time!CUR$86","v":0},{"$f":"Time!CUS$86","v":0},{"$f":"Time!CUT$86","v":0},{"$f":"Time!CUU$86","v":0},{"$f":"Time!CUV$86","v":0},{"$f":"Time!CUW$86","v":0},{"$f":"Time!CUX$86","v":0},{"$f":"Time!CUY$86","v":0},{"$f":"Time!CUZ$86","v":0},{"$f":"Time!CVA$86","v":0},{"$f":"Time!CVB$86","v":0},{"$f":"Time!CVC$86","v":0},{"$f":"Time!CVD$86","v":0},{"$f":"Time!CVE$86","v":0},{"$f":"Time!CVF$86","v":0},{"$f":"Time!CVG$86","v":0},{"$f":"Time!CVH$86","v":0},{"$f":"Time!CVI$86","v":0},{"$f":"Time!CVJ$86","v":0},{"$f":"Time!CVK$86","v":0},{"$f":"Time!CVL$86","v":0},{"$f":"Time!CVM$86","v":0},{"$f":"Time!CVN$86","v":0},{"$f":"Time!CVO$86","v":0},{"$f":"Time!CVP$86","v":0},{"$f":"Time!CVQ$86","v":0},{"$f":"Time!CVR$86","v":0},{"$f":"Time!CVS$86","v":0},{"$f":"Time!CVT$86","v":0},{"$f":"Time!CVU$86","v":0},{"$f":"Time!CVV$86","v":0},{"$f":"Time!CVW$86","v":0},{"$f":"Time!CVX$86","v":0},{"$f":"Time!CVY$86","v":0},{"$f":"Time!CVZ$86","v":0},{"$f":"Time!CWA$86","v":0},{"$f":"Time!CWB$86","v":0},{"$f":"Time!CWC$86","v":0},{"$f":"Time!CWD$86","v":0},{"$f":"Time!CWE$86","v":0},{"$f":"Time!CWF$86","v":0},{"$f":"Time!CWG$86","v":0},{"$f":"Time!CWH$86","v":0},{"$f":"Time!CWI$86","v":0},{"$f":"Time!CWJ$86","v":0},{"$f":"Time!CWK$86","v":0},{"$f":"Time!CWL$86","v":0},{"$f":"Time!CWM$86","v":0},{"$f":"Time!CWN$86","v":0},{"$f":"Time!CWO$86","v":0},{"$f":"Time!CWP$86","v":0},{"$f":"Time!CWQ$86","v":0},{"$f":"Time!CWR$86","v":0},{"$f":"Time!CWS$86","v":0},{"$f":"Time!CWT$86","v":0},{"$f":"Time!CWU$86","v":0},{"$f":"Time!CWV$86","v":0},{"$f":"Time!CWW$86","v":0},{"$f":"Time!CWX$86","v":0},{"$f":"Time!CWY$86","v":0},{"$f":"Time!CWZ$86","v":0},{"$f":"Time!CXA$86","v":0},{"$f":"Time!CXB$86","v":0},{"$f":"Time!CXC$86","v":0},{"$f":"Time!CXD$86","v":0},{"$f":"Time!CXE$86","v":0},{"$f":"Time!CXF$86","v":0},{"$f":"Time!CXG$86","v":0},{"$f":"Time!CXH$86","v":0},{"$f":"Time!CXI$86","v":0},{"$f":"Time!CXJ$86","v":0},{"$f":"Time!CXK$86","v":0},{"$f":"Time!CXL$86","v":0},{"$f":"Time!CXM$86","v":0},{"$f":"Time!CXN$86","v":0},{"$f":"Time!CXO$86","v":0},{"$f":"Time!CXP$86","v":0},{"$f":"Time!CXQ$86","v":0},{"$f":"Time!CXR$86","v":0},{"$f":"Time!CXS$86","v":0},{"$f":"Time!CXT$86","v":0},{"$f":"Time!CXU$86","v":0},{"$f":"Time!CXV$86","v":0},{"$f":"Time!CXW$86","v":0},{"$f":"Time!CXX$86","v":0},{"$f":"Time!CXY$86","v":0},{"$f":"Time!CXZ$86","v":0},{"$f":"Time!CYA$86","v":0},{"$f":"Time!CYB$86","v":0},{"$f":"Time!CYC$86","v":0},{"$f":"Time!CYD$86","v":0},{"$f":"Time!CYE$86","v":0},{"$f":"Time!CYF$86","v":0},{"$f":"Time!CYG$86","v":0},{"$f":"Time!CYH$86","v":0},{"$f":"Time!CYI$86","v":0},{"$f":"Time!CYJ$86","v":0},{"$f":"Time!CYK$86","v":0},{"$f":"Time!CYL$86","v":0},{"$f":"Time!CYM$86","v":0},{"$f":"Time!CYN$86","v":0},{"$f":"Time!CYO$86","v":0},{"$f":"Time!CYP$86","v":0},{"$f":"Time!CYQ$86","v":0},{"$f":"Time!CYR$86","v":0},{"$f":"Time!CYS$86","v":0},{"$f":"Time!CYT$86","v":0},{"$f":"Time!CYU$86","v":0},{"$f":"Time!CYV$86","v":0},{"$f":"Time!CYW$86","v":0},{"$f":"Time!CYX$86","v":0},{"$f":"Time!CYY$86","v":0},{"$f":"Time!CYZ$86","v":0},{"$f":"Time!CZA$86","v":0},{"$f":"Time!CZB$86","v":0},{"$f":"Time!CZC$86","v":0},{"$f":"Time!CZD$86","v":0},{"$f":"Time!CZE$86","v":0},{"$f":"Time!CZF$86","v":0},{"$f":"Time!CZG$86","v":0},{"$f":"Time!CZH$86","v":0},{"$f":"Time!CZI$86","v":0},{"$f":"Time!CZJ$86","v":0},{"$f":"Time!CZK$86","v":0},{"$f":"Time!CZL$86","v":0},{"$f":"Time!CZM$86","v":0},{"$f":"Time!CZN$86","v":0},{"$f":"Time!CZO$86","v":0},{"$f":"Time!CZP$86","v":0},{"$f":"Time!CZQ$86","v":0},{"$f":"Time!CZR$86","v":0},{"$f":"Time!CZS$86","v":0},{"$f":"Time!CZT$86","v":0},{"$f":"Time!CZU$86","v":0},{"$f":"Time!CZV$86","v":0},{"$f":"Time!CZW$86","v":0},{"$f":"Time!CZX$86","v":0},{"$f":"Time!CZY$86","v":0},{"$f":"Time!CZZ$86","v":0},{"$f":"Time!DAA$86","v":0},{"$f":"Time!DAB$86","v":0},{"$f":"Time!DAC$86","v":0},{"$f":"Time!DAD$86","v":0},{"$f":"Time!DAE$86","v":0},{"$f":"Time!DAF$86","v":0},{"$f":"Time!DAG$86","v":0},{"$f":"Time!DAH$86","v":0},{"$f":"Time!DAI$86","v":0},{"$f":"Time!DAJ$86","v":0},{"$f":"Time!DAK$86","v":0},{"$f":"Time!DAL$86","v":0},{"$f":"Time!DAM$86","v":0},{"$f":"Time!DAN$86","v":0},{"$f":"Time!DAO$86","v":0},{"$f":"Time!DAP$86","v":0},{"$f":"Time!DAQ$86","v":0},{"$f":"Time!DAR$86","v":0},{"$f":"Time!DAS$86","v":0},{"$f":"Time!DAT$86","v":0},{"$f":"Time!DAU$86","v":0},{"$f":"Time!DAV$86","v":0},{"$f":"Time!DAW$86","v":0},{"$f":"Time!DAX$86","v":0},{"$f":"Time!DAY$86","v":0},{"$f":"Time!DAZ$86","v":0},{"$f":"Time!DBA$86","v":0},{"$f":"Time!DBB$86","v":0},{"$f":"Time!DBC$86","v":0},{"$f":"Time!DBD$86","v":0},{"$f":"Time!DBE$86","v":0},{"$f":"Time!DBF$86","v":0},{"$f":"Time!DBG$86","v":0},{"$f":"Time!DBH$86","v":0},{"$f":"Time!DBI$86","v":0},{"$f":"Time!DBJ$86","v":0},{"$f":"Time!DBK$86","v":0},{"$f":"Time!DBL$86","v":0},{"$f":"Time!DBM$86","v":0},{"$f":"Time!DBN$86","v":0},{"$f":"Time!DBO$86","v":0},{"$f":"Time!DBP$86","v":0},{"$f":"Time!DBQ$86","v":0},{"$f":"Time!DBR$86","v":0},{"$f":"Time!DBS$86","v":0},{"$f":"Time!DBT$86","v":0},{"$f":"Time!DBU$86","v":0},{"$f":"Time!DBV$86","v":0},{"$f":"Time!DBW$86","v":0},{"$f":"Time!DBX$86","v":0},{"$f":"Time!DBY$86","v":0},{"$f":"Time!DBZ$86","v":0},{"$f":"Time!DCA$86","v":0},{"$f":"Time!DCB$86","v":0},{"$f":"Time!DCC$86","v":0},{"$f":"Time!DCD$86","v":0},{"$f":"Time!DCE$86","v":0},{"$f":"Time!DCF$86","v":0},{"$f":"Time!DCG$86","v":0},{"$f":"Time!DCH$86","v":0},{"$f":"Time!DCI$86","v":0},{"$f":"Time!DCJ$86","v":0},{"$f":"Time!DCK$86","v":0},{"$f":"Time!DCL$86","v":0},{"$f":"Time!DCM$86","v":0},{"$f":"Time!DCN$86","v":0},{"$f":"Time!DCO$86","v":0},{"$f":"Time!DCP$86","v":0},{"$f":"Time!DCQ$86","v":0},{"$f":"Time!DCR$86","v":0},{"$f":"Time!DCS$86","v":0},{"$f":"Time!DCT$86","v":0},{"$f":"Time!DCU$86","v":0},{"$f":"Time!DCV$86","v":0},{"$f":"Time!DCW$86","v":0},{"$f":"Time!DCX$86","v":0},{"$f":"Time!DCY$86","v":0},{"$f":"Time!DCZ$86","v":0},{"$f":"Time!DDA$86","v":0},{"$f":"Time!DDB$86","v":0},{"$f":"Time!DDC$86","v":0},{"$f":"Time!DDD$86","v":0},{"$f":"Time!DDE$86","v":0},{"$f":"Time!DDF$86","v":0},{"$f":"Time!DDG$86","v":0},{"$f":"Time!DDH$86","v":0},{"$f":"Time!DDI$86","v":0},{"$f":"Time!DDJ$86","v":0},{"$f":"Time!DDK$86","v":0},{"$f":"Time!DDL$86","v":0},{"$f":"Time!DDM$86","v":0},{"$f":"Time!DDN$86","v":0},{"$f":"Time!DDO$86","v":0},{"$f":"Time!DDP$86","v":0},{"$f":"Time!DDQ$86","v":0},{"$f":"Time!DDR$86","v":0},{"$f":"Time!DDS$86","v":0},{"$f":"Time!DDT$86","v":0},{"$f":"Time!DDU$86","v":0},{"$f":"Time!DDV$86","v":0},{"$f":"Time!DDW$86","v":0},{"$f":"Time!DDX$86","v":0},{"$f":"Time!DDY$86","v":0},{"$f":"Time!DDZ$86","v":0},{"$f":"Time!DEA$86","v":0},{"$f":"Time!DEB$86","v":0},{"$f":"Time!DEC$86","v":0},{"$f":"Time!DED$86","v":0},{"$f":"Time!DEE$86","v":0},{"$f":"Time!DEF$86","v":0},{"$f":"Time!DEG$86","v":0},{"$f":"Time!DEH$86","v":0},{"$f":"Time!DEI$86","v":0},{"$f":"Time!DEJ$86","v":0},{"$f":"Time!DEK$86","v":0},{"$f":"Time!DEL$86","v":0},{"$f":"Time!DEM$86","v":0},{"$f":"Time!DEN$86","v":0},{"$f":"Time!DEO$86","v":0},{"$f":"Time!DEP$86","v":0},{"$f":"Time!DEQ$86","v":0},{"$f":"Time!DER$86","v":0},{"$f":"Time!DES$86","v":0},{"$f":"Time!DET$86","v":0},{"$f":"Time!DEU$86","v":0},{"$f":"Time!DEV$86","v":0},{"$f":"Time!DEW$86","v":0},{"$f":"Time!DEX$86","v":0},{"$f":"Time!DEY$86","v":0},{"$f":"Time!DEZ$86","v":0},{"$f":"Time!DFA$86","v":0},{"$f":"Time!DFB$86","v":0},{"$f":"Time!DFC$86","v":0},{"$f":"Time!DFD$86","v":0},{"$f":"Time!DFE$86","v":0},{"$f":"Time!DFF$86","v":0},{"$f":"Time!DFG$86","v":0},{"$f":"Time!DFH$86","v":0},{"$f":"Time!DFI$86","v":0},{"$f":"Time!DFJ$86","v":0},{"$f":"Time!DFK$86","v":0},{"$f":"Time!DFL$86","v":0},{"$f":"Time!DFM$86","v":0},{"$f":"Time!DFN$86","v":0},{"$f":"Time!DFO$86","v":0},{"$f":"Time!DFP$86","v":0},{"$f":"Time!DFQ$86","v":0},{"$f":"Time!DFR$86","v":0},{"$f":"Time!DFS$86","v":0},{"$f":"Time!DFT$86","v":0},{"$f":"Time!DFU$86","v":0},{"$f":"Time!DFV$86","v":0},{"$f":"Time!DFW$86","v":0},{"$f":"Time!DFX$86","v":0},{"$f":"Time!DFY$86","v":0},{"$f":"Time!DFZ$86","v":0},{"$f":"Time!DGA$86","v":0},{"$f":"Time!DGB$86","v":0},{"$f":"Time!DGC$86","v":0},{"$f":"Time!DGD$86","v":0},{"$f":"Time!DGE$86","v":0},{"$f":"Time!DGF$86","v":0},{"$f":"Time!DGG$86","v":0},{"$f":"Time!DGH$86","v":0},{"$f":"Time!DGI$86","v":0},{"$f":"Time!DGJ$86","v":0},{"$f":"Time!DGK$86","v":0},{"$f":"Time!DGL$86","v":0},{"$f":"Time!DGM$86","v":0},{"$f":"Time!DGN$86","v":0},{"$f":"Time!DGO$86","v":0},{"$f":"Time!DGP$86","v":0},{"$f":"Time!DGQ$86","v":0},{"$f":"Time!DGR$86","v":0},{"$f":"Time!DGS$86","v":0},{"$f":"Time!DGT$86","v":0},{"$f":"Time!DGU$86","v":0},{"$f":"Time!DGV$86","v":0},{"$f":"Time!DGW$86","v":0},{"$f":"Time!DGX$86","v":0},{"$f":"Time!DGY$86","v":0},{"$f":"Time!DGZ$86","v":0},{"$f":"Time!DHA$86","v":0},{"$f":"Time!DHB$86","v":0},{"$f":"Time!DHC$86","v":0},{"$f":"Time!DHD$86","v":0},{"$f":"Time!DHE$86","v":0},{"$f":"Time!DHF$86","v":0},{"$f":"Time!DHG$86","v":0},{"$f":"Time!DHH$86","v":0},{"$f":"Time!DHI$86","v":0},{"$f":"Time!DHJ$86","v":0},{"$f":"Time!DHK$86","v":0},{"$f":"Time!DHL$86","v":0},{"$f":"Time!DHM$86","v":0},{"$f":"Time!DHN$86","v":0},{"$f":"Time!DHO$86","v":0},{"$f":"Time!DHP$86","v":0},{"$f":"Time!DHQ$86","v":0},{"$f":"Time!DHR$86","v":0},{"$f":"Time!DHS$86","v":0},{"$f":"Time!DHT$86","v":0},{"$f":"Time!DHU$86","v":0},{"$f":"Time!DHV$86","v":0},{"$f":"Time!DHW$86","v":0},{"$f":"Time!DHX$86","v":0},{"$f":"Time!DHY$86","v":0},{"$f":"Time!DHZ$86","v":0},{"$f":"Time!DIA$86","v":0},{"$f":"Time!DIB$86","v":0},{"$f":"Time!DIC$86","v":0},{"$f":"Time!DID$86","v":0},{"$f":"Time!DIE$86","v":0},{"$f":"Time!DIF$86","v":0},{"$f":"Time!DIG$86","v":0},{"$f":"Time!DIH$86","v":0},{"$f":"Time!DII$86","v":0},{"$f":"Time!DIJ$86","v":0},{"$f":"Time!DIK$86","v":0},{"$f":"Time!DIL$86","v":0},{"$f":"Time!DIM$86","v":0},{"$f":"Time!DIN$86","v":0},{"$f":"Time!DIO$86","v":0},{"$f":"Time!DIP$86","v":0},{"$f":"Time!DIQ$86","v":0},{"$f":"Time!DIR$86","v":0},{"$f":"Time!DIS$86","v":0},{"$f":"Time!DIT$86","v":0},{"$f":"Time!DIU$86","v":0},{"$f":"Time!DIV$86","v":0},{"$f":"Time!DIW$86","v":0},{"$f":"Time!DIX$86","v":0},{"$f":"Time!DIY$86","v":0},{"$f":"Time!DIZ$86","v":0},{"$f":"Time!DJA$86","v":0},{"$f":"Time!DJB$86","v":0},{"$f":"Time!DJC$86","v":0},{"$f":"Time!DJD$86","v":0},{"$f":"Time!DJE$86","v":0},{"$f":"Time!DJF$86","v":0},{"$f":"Time!DJG$86","v":0},{"$f":"Time!DJH$86","v":0},{"$f":"Time!DJI$86","v":0},{"$f":"Time!DJJ$86","v":0},{"$f":"Time!DJK$86","v":0},{"$f":"Time!DJL$86","v":0},{"$f":"Time!DJM$86","v":0},{"$f":"Time!DJN$86","v":0},{"$f":"Time!DJO$86","v":0},{"$f":"Time!DJP$86","v":0},{"$f":"Time!DJQ$86","v":0},{"$f":"Time!DJR$86","v":0},{"$f":"Time!DJS$86","v":0},{"$f":"Time!DJT$86","v":0},{"$f":"Time!DJU$86","v":0},{"$f":"Time!DJV$86","v":0},{"$f":"Time!DJW$86","v":0},{"$f":"Time!DJX$86","v":0},{"$f":"Time!DJY$86","v":0},{"$f":"Time!DJZ$86","v":0},{"$f":"Time!DKA$86","v":0},{"$f":"Time!DKB$86","v":0},{"$f":"Time!DKC$86","v":0},{"$f":"Time!DKD$86","v":0},{"$f":"Time!DKE$86","v":0},{"$f":"Time!DKF$86","v":0},{"$f":"Time!DKG$86","v":0},{"$f":"Time!DKH$86","v":0},{"$f":"Time!DKI$86","v":0},{"$f":"Time!DKJ$86","v":0},{"$f":"Time!DKK$86","v":0},{"$f":"Time!DKL$86","v":0},{"$f":"Time!DKM$86","v":0},{"$f":"Time!DKN$86","v":0},{"$f":"Time!DKO$86","v":0},{"$f":"Time!DKP$86","v":0},{"$f":"Time!DKQ$86","v":0},{"$f":"Time!DKR$86","v":0},{"$f":"Time!DKS$86","v":0},{"$f":"Time!DKT$86","v":0},{"$f":"Time!DKU$86","v":0},{"$f":"Time!DKV$86","v":0},{"$f":"Time!DKW$86","v":0},{"$f":"Time!DKX$86","v":0},{"$f":"Time!DKY$86","v":0},{"$f":"Time!DKZ$86","v":0},{"$f":"Time!DLA$86","v":0},{"$f":"Time!DLB$86","v":0},{"$f":"Time!DLC$86","v":0},{"$f":"Time!DLD$86","v":0},{"$f":"Time!DLE$86","v":0},{"$f":"Time!DLF$86","v":0},{"$f":"Time!DLG$86","v":0},{"$f":"Time!DLH$86","v":0},{"$f":"Time!DLI$86","v":0},{"$f":"Time!DLJ$86","v":0},{"$f":"Time!DLK$86","v":0},{"$f":"Time!DLL$86","v":0},{"$f":"Time!DLM$86","v":0},{"$f":"Time!DLN$86","v":0},{"$f":"Time!DLO$86","v":0},{"$f":"Time!DLP$86","v":0},{"$f":"Time!DLQ$86","v":0},{"$f":"Time!DLR$86","v":0},{"$f":"Time!DLS$86","v":0},{"$f":"Time!DLT$86","v":0},{"$f":"Time!DLU$86","v":0},{"$f":"Time!DLV$86","v":0},{"$f":"Time!DLW$86","v":0},{"$f":"Time!DLX$86","v":0},{"$f":"Time!DLY$86","v":0},{"$f":"Time!DLZ$86","v":0},{"$f":"Time!DMA$86","v":0},{"$f":"Time!DMB$86","v":0},{"$f":"Time!DMC$86","v":0},{"$f":"Time!DMD$86","v":0},{"$f":"Time!DME$86","v":0},{"$f":"Time!DMF$86","v":0},{"$f":"Time!DMG$86","v":0},{"$f":"Time!DMH$86","v":0},{"$f":"Time!DMI$86","v":0},{"$f":"Time!DMJ$86","v":0},{"$f":"Time!DMK$86","v":0},{"$f":"Time!DML$86","v":0},{"$f":"Time!DMM$86","v":0},{"$f":"Time!DMN$86","v":0},{"$f":"Time!DMO$86","v":0},{"$f":"Time!DMP$86","v":0},{"$f":"Time!DMQ$86","v":0},{"$f":"Time!DMR$86","v":0},{"$f":"Time!DMS$86","v":0},{"$f":"Time!DMT$86","v":0},{"$f":"Time!DMU$86","v":0},{"$f":"Time!DMV$86","v":0},{"$f":"Time!DMW$86","v":0},{"$f":"Time!DMX$86","v":0},{"$f":"Time!DMY$86","v":0},{"$f":"Time!DMZ$86","v":0},{"$f":"Time!DNA$86","v":0},{"$f":"Time!DNB$86","v":0},{"$f":"Time!DNC$86","v":0},{"$f":"Time!DND$86","v":0},{"$f":"Time!DNE$86","v":0},{"$f":"Time!DNF$86","v":0},{"$f":"Time!DNG$86","v":0},{"$f":"Time!DNH$86","v":0},{"$f":"Time!DNI$86","v":0},{"$f":"Time!DNJ$86","v":0},{"$f":"Time!DNK$86","v":0},{"$f":"Time!DNL$86","v":0},{"$f":"Time!DNM$86","v":0},{"$f":"Time!DNN$86","v":0},{"$f":"Time!DNO$86","v":0},{"$f":"Time!DNP$86","v":0},{"$f":"Time!DNQ$86","v":0},{"$f":"Time!DNR$86","v":0},{"$f":"Time!DNS$86","v":0},{"$f":"Time!DNT$86","v":0},{"$f":"Time!DNU$86","v":0},{"$f":"Time!DNV$86","v":0},{"$f":"Time!DNW$86","v":0},{"$f":"Time!DNX$86","v":0},{"$f":"Time!DNY$86","v":0},{"$f":"Time!DNZ$86","v":0},{"$f":"Time!DOA$86","v":0},{"$f":"Time!DOB$86","v":0},{"$f":"Time!DOC$86","v":0},{"$f":"Time!DOD$86","v":0},{"$f":"Time!DOE$86","v":0},{"$f":"Time!DOF$86","v":0},{"$f":"Time!DOG$86","v":0},{"$f":"Time!DOH$86","v":0},{"$f":"Time!DOI$86","v":0},{"$f":"Time!DOJ$86","v":0},{"$f":"Time!DOK$86","v":0},{"$f":"Time!DOL$86","v":0},{"$f":"Time!DOM$86","v":0},{"$f":"Time!DON$86","v":0},{"$f":"Time!DOO$86","v":0},{"$f":"Time!DOP$86","v":0},{"$f":"Time!DOQ$86","v":0},{"$f":"Time!DOR$86","v":0},{"$f":"Time!DOS$86","v":0},{"$f":"Time!DOT$86","v":0},{"$f":"Time!DOU$86","v":0},{"$f":"Time!DOV$86","v":0},{"$f":"Time!DOW$86","v":0},{"$f":"Time!DOX$86","v":0},{"$f":"Time!DOY$86","v":0},{"$f":"Time!DOZ$86","v":0},{"$f":"Time!DPA$86","v":0},{"$f":"Time!DPB$86","v":0},{"$f":"Time!DPC$86","v":0},{"$f":"Time!DPD$86","v":0},{"$f":"Time!DPE$86","v":0},{"$f":"Time!DPF$86","v":0},{"$f":"Time!DPG$86","v":0},{"$f":"Time!DPH$86","v":0},{"$f":"Time!DPI$86","v":0},{"$f":"Time!DPJ$86","v":0},{"$f":"Time!DPK$86","v":0},{"$f":"Time!DPL$86","v":0},{"$f":"Time!DPM$86","v":0},{"$f":"Time!DPN$86","v":0},{"$f":"Time!DPO$86","v":0},{"$f":"Time!DPP$86","v":0},{"$f":"Time!DPQ$86","v":0},{"$f":"Time!DPR$86","v":0},{"$f":"Time!DPS$86","v":0},{"$f":"Time!DPT$86","v":0},{"$f":"Time!DPU$86","v":0},{"$f":"Time!DPV$86","v":0},{"$f":"Time!DPW$86","v":0},{"$f":"Time!DPX$86","v":0},{"$f":"Time!DPY$86","v":0},{"$f":"Time!DPZ$86","v":0},{"$f":"Time!DQA$86","v":0},{"$f":"Time!DQB$86","v":0},{"$f":"Time!DQC$86","v":0},{"$f":"Time!DQD$86","v":0},{"$f":"Time!DQE$86","v":0},{"$f":"Time!DQF$86","v":0},{"$f":"Time!DQG$86","v":0},{"$f":"Time!DQH$86","v":0},{"$f":"Time!DQI$86","v":0},{"$f":"Time!DQJ$86","v":0},{"$f":"Time!DQK$86","v":0},{"$f":"Time!DQL$86","v":0},{"$f":"Time!DQM$86","v":0},{"$f":"Time!DQN$86","v":0},{"$f":"Time!DQO$86","v":0},{"$f":"Time!DQP$86","v":0},{"$f":"Time!DQQ$86","v":0},{"$f":"Time!DQR$86","v":0},{"$f":"Time!DQS$86","v":0},{"$f":"Time!DQT$86","v":0},{"$f":"Time!DQU$86","v":0},{"$f":"Time!DQV$86","v":0},{"$f":"Time!DQW$86","v":0},{"$f":"Time!DQX$86","v":0},{"$f":"Time!DQY$86","v":0},{"$f":"Time!DQZ$86","v":0},{"$f":"Time!DRA$86","v":0},{"$f":"Time!DRB$86","v":0},{"$f":"Time!DRC$86","v":0},{"$f":"Time!DRD$86","v":0},{"$f":"Time!DRE$86","v":0},{"$f":"Time!DRF$86","v":0},{"$f":"Time!DRG$86","v":0},{"$f":"Time!DRH$86","v":0},{"$f":"Time!DRI$86","v":0},{"$f":"Time!DRJ$86","v":0},{"$f":"Time!DRK$86","v":0},{"$f":"Time!DRL$86","v":0},{"$f":"Time!DRM$86","v":0},{"$f":"Time!DRN$86","v":0},{"$f":"Time!DRO$86","v":0},{"$f":"Time!DRP$86","v":0},{"$f":"Time!DRQ$86","v":0},{"$f":"Time!DRR$86","v":0},{"$f":"Time!DRS$86","v":0},{"$f":"Time!DRT$86","v":0},{"$f":"Time!DRU$86","v":0},{"$f":"Time!DRV$86","v":0},{"$f":"Time!DRW$86","v":0},{"$f":"Time!DRX$86","v":0},{"$f":"Time!DRY$86","v":0},{"$f":"Time!DRZ$86","v":0},{"$f":"Time!DSA$86","v":0},{"$f":"Time!DSB$86","v":0},{"$f":"Time!DSC$86","v":0},{"$f":"Time!DSD$86","v":0},{"$f":"Time!DSE$86","v":0},{"$f":"Time!DSF$86","v":0},{"$f":"Time!DSG$86","v":0},{"$f":"Time!DSH$86","v":0},{"$f":"Time!DSI$86","v":0},{"$f":"Time!DSJ$86","v":0},{"$f":"Time!DSK$86","v":0},{"$f":"Time!DSL$86","v":0},{"$f":"Time!DSM$86","v":0},{"$f":"Time!DSN$86","v":0},{"$f":"Time!DSO$86","v":0},{"$f":"Time!DSP$86","v":0},{"$f":"Time!DSQ$86","v":0},{"$f":"Time!DSR$86","v":0},{"$f":"Time!DSS$86","v":0},{"$f":"Time!DST$86","v":0},{"$f":"Time!DSU$86","v":0},{"$f":"Time!DSV$86","v":0},{"$f":"Time!DSW$86","v":0},{"$f":"Time!DSX$86","v":0},{"$f":"Time!DSY$86","v":0},{"$f":"Time!DSZ$86","v":0},{"$f":"Time!DTA$86","v":0},{"$f":"Time!DTB$86","v":0},{"$f":"Time!DTC$86","v":0},{"$f":"Time!DTD$86","v":0},{"$f":"Time!DTE$86","v":0},{"$f":"Time!DTF$86","v":0},{"$f":"Time!DTG$86","v":0},{"$f":"Time!DTH$86","v":0},{"$f":"Time!DTI$86","v":0},{"$f":"Time!DTJ$86","v":0},{"$f":"Time!DTK$86","v":0},{"$f":"Time!DTL$86","v":0},{"$f":"Time!DTM$86","v":0},{"$f":"Time!DTN$86","v":0},{"$f":"Time!DTO$86","v":0},{"$f":"Time!DTP$86","v":0},{"$f":"Time!DTQ$86","v":0},{"$f":"Time!DTR$86","v":0},{"$f":"Time!DTS$86","v":0},{"$f":"Time!DTT$86","v":0},{"$f":"Time!DTU$86","v":0},{"$f":"Time!DTV$86","v":0},{"$f":"Time!DTW$86","v":0},{"$f":"Time!DTX$86","v":0},{"$f":"Time!DTY$86","v":0},{"$f":"Time!DTZ$86","v":0},{"$f":"Time!DUA$86","v":0},{"$f":"Time!DUB$86","v":0},{"$f":"Time!DUC$86","v":0},{"$f":"Time!DUD$86","v":0},{"$f":"Time!DUE$86","v":0},{"$f":"Time!DUF$86","v":0},{"$f":"Time!DUG$86","v":0},{"$f":"Time!DUH$86","v":0},{"$f":"Time!DUI$86","v":0},{"$f":"Time!DUJ$86","v":0},{"$f":"Time!DUK$86","v":0},{"$f":"Time!DUL$86","v":0},{"$f":"Time!DUM$86","v":0},{"$f":"Time!DUN$86","v":0},{"$f":"Time!DUO$86","v":0},{"$f":"Time!DUP$86","v":0},{"$f":"Time!DUQ$86","v":0},{"$f":"Time!DUR$86","v":0},{"$f":"Time!DUS$86","v":0},{"$f":"Time!DUT$86","v":0},{"$f":"Time!DUU$86","v":0},{"$f":"Time!DUV$86","v":0},{"$f":"Time!DUW$86","v":0},{"$f":"Time!DUX$86","v":0},{"$f":"Time!DUY$86","v":0},{"$f":"Time!DUZ$86","v":0},{"$f":"Time!DVA$86","v":0},{"$f":"Time!DVB$86","v":0},{"$f":"Time!DVC$86","v":0},{"$f":"Time!DVD$86","v":0},{"$f":"Time!DVE$86","v":0},{"$f":"Time!DVF$86","v":0},{"$f":"Time!DVG$86","v":0},{"$f":"Time!DVH$86","v":0},{"$f":"Time!DVI$86","v":0},{"$f":"Time!DVJ$86","v":0},{"$f":"Time!DVK$86","v":0},{"$f":"Time!DVL$86","v":0},{"$f":"Time!DVM$86","v":0},{"$f":"Time!DVN$86","v":0},{"$f":"Time!DVO$86","v":0},{"$f":"Time!DVP$86","v":0},{"$f":"Time!DVQ$86","v":0},{"$f":"Time!DVR$86","v":0},{"$f":"Time!DVS$86","v":0},{"$f":"Time!DVT$86","v":0},{"$f":"Time!DVU$86","v":0},{"$f":"Time!DVV$86","v":0},{"$f":"Time!DVW$86","v":0},{"$f":"Time!DVX$86","v":0},{"$f":"Time!DVY$86","v":0},{"$f":"Time!DVZ$86","v":0},{"$f":"Time!DWA$86","v":0},{"$f":"Time!DWB$86","v":0},{"$f":"Time!DWC$86","v":0},{"$f":"Time!DWD$86","v":0},{"$f":"Time!DWE$86","v":0},{"$f":"Time!DWF$86","v":0},{"$f":"Time!DWG$86","v":0},{"$f":"Time!DWH$86","v":0},{"$f":"Time!DWI$86","v":0},{"$f":"Time!DWJ$86","v":0},{"$f":"Time!DWK$86","v":0},{"$f":"Time!DWL$86","v":0},{"$f":"Time!DWM$86","v":0},{"$f":"Time!DWN$86","v":0},{"$f":"Time!DWO$86","v":0},{"$f":"Time!DWP$86","v":0},{"$f":"Time!DWQ$86","v":0},{"$f":"Time!DWR$86","v":0},{"$f":"Time!DWS$86","v":0},{"$f":"Time!DWT$86","v":0},{"$f":"Time!DWU$86","v":0},{"$f":"Time!DWV$86","v":0},{"$f":"Time!DWW$86","v":0},{"$f":"Time!DWX$86","v":0},{"$f":"Time!DWY$86","v":0},{"$f":"Time!DWZ$86","v":0},{"$f":"Time!DXA$86","v":0},{"$f":"Time!DXB$86","v":0},{"$f":"Time!DXC$86","v":0},{"$f":"Time!DXD$86","v":0},{"$f":"Time!DXE$86","v":0},{"$f":"Time!DXF$86","v":0},{"$f":"Time!DXG$86","v":0},{"$f":"Time!DXH$86","v":0},{"$f":"Time!DXI$86","v":0},{"$f":"Time!DXJ$86","v":0},{"$f":"Time!DXK$86","v":0},{"$f":"Time!DXL$86","v":0},{"$f":"Time!DXM$86","v":0},{"$f":"Time!DXN$86","v":0},{"$f":"Time!DXO$86","v":0},{"$f":"Time!DXP$86","v":0},{"$f":"Time!DXQ$86","v":0},{"$f":"Time!DXR$86","v":0},{"$f":"Time!DXS$86","v":0},{"$f":"Time!DXT$86","v":0},{"$f":"Time!DXU$86","v":0},{"$f":"Time!DXV$86","v":0},{"$f":"Time!DXW$86","v":0},{"$f":"Time!DXX$86","v":0},{"$f":"Time!DXY$86","v":0},{"$f":"Time!DXZ$86","v":0},{"$f":"Time!DYA$86","v":0},{"$f":"Time!DYB$86","v":0},{"$f":"Time!DYC$86","v":0},{"$f":"Time!DYD$86","v":0},{"$f":"Time!DYE$86","v":0},{"$f":"Time!DYF$86","v":0},{"$f":"Time!DYG$86","v":0},{"$f":"Time!DYH$86","v":0},{"$f":"Time!DYI$86","v":0},{"$f":"Time!DYJ$86","v":0},{"$f":"Time!DYK$86","v":0},{"$f":"Time!DYL$86","v":0},{"$f":"Time!DYM$86","v":0},{"$f":"Time!DYN$86","v":0},{"$f":"Time!DYO$86","v":0},{"$f":"Time!DYP$86","v":0},{"$f":"Time!DYQ$86","v":0},{"$f":"Time!DYR$86","v":0},{"$f":"Time!DYS$86","v":0},{"$f":"Time!DYT$86","v":0},{"$f":"Time!DYU$86","v":0},{"$f":"Time!DYV$86","v":0},{"$f":"Time!DYW$86","v":0},{"$f":"Time!DYX$86","v":0},{"$f":"Time!DYY$86","v":0},{"$f":"Time!DYZ$86","v":0},{"$f":"Time!DZA$86","v":0},{"$f":"Time!DZB$86","v":0},{"$f":"Time!DZC$86","v":0},{"$f":"Time!DZD$86","v":0},{"$f":"Time!DZE$86","v":0},{"$f":"Time!DZF$86","v":0},{"$f":"Time!DZG$86","v":0},{"$f":"Time!DZH$86","v":0},{"$f":"Time!DZI$86","v":0},{"$f":"Time!DZJ$86","v":0},{"$f":"Time!DZK$86","v":0},{"$f":"Time!DZL$86","v":0},{"$f":"Time!DZM$86","v":0},{"$f":"Time!DZN$86","v":0},{"$f":"Time!DZO$86","v":0},{"$f":"Time!DZP$86","v":0},{"$f":"Time!DZQ$86","v":0},{"$f":"Time!DZR$86","v":0},{"$f":"Time!DZS$86","v":0},{"$f":"Time!DZT$86","v":0},{"$f":"Time!DZU$86","v":0},{"$f":"Time!DZV$86","v":0},{"$f":"Time!DZW$86","v":0},{"$f":"Time!DZX$86","v":0},{"$f":"Time!DZY$86","v":0},{"$f":"Time!DZZ$86","v":0},{"$f":"Time!EAA$86","v":0},{"$f":"Time!EAB$86","v":0},{"$f":"Time!EAC$86","v":0},{"$f":"Time!EAD$86","v":0},{"$f":"Time!EAE$86","v":0},{"$f":"Time!EAF$86","v":0},{"$f":"Time!EAG$86","v":0},{"$f":"Time!EAH$86","v":0},{"$f":"Time!EAI$86","v":0},{"$f":"Time!EAJ$86","v":0},{"$f":"Time!EAK$86","v":0},{"$f":"Time!EAL$86","v":0},{"$f":"Time!EAM$86","v":0},{"$f":"Time!EAN$86","v":0},{"$f":"Time!EAO$86","v":0},{"$f":"Time!EAP$86","v":0},{"$f":"Time!EAQ$86","v":0},{"$f":"Time!EAR$86","v":0},{"$f":"Time!EAS$86","v":0},{"$f":"Time!EAT$86","v":0},{"$f":"Time!EAU$86","v":0},{"$f":"Time!EAV$86","v":0},{"$f":"Time!EAW$86","v":0},{"$f":"Time!EAX$86","v":0},{"$f":"Time!EAY$86","v":0},{"$f":"Time!EAZ$86","v":0},{"$f":"Time!EBA$86","v":0},{"$f":"Time!EBB$86","v":0},{"$f":"Time!EBC$86","v":0},{"$f":"Time!EBD$86","v":0},{"$f":"Time!EBE$86","v":0},{"$f":"Time!EBF$86","v":0},{"$f":"Time!EBG$86","v":0},{"$f":"Time!EBH$86","v":0},{"$f":"Time!EBI$86","v":0},{"$f":"Time!EBJ$86","v":0},{"$f":"Time!EBK$86","v":0},{"$f":"Time!EBL$86","v":0},{"$f":"Time!EBM$86","v":0},{"$f":"Time!EBN$86","v":0},{"$f":"Time!EBO$86","v":0},{"$f":"Time!EBP$86","v":0},{"$f":"Time!EBQ$86","v":0},{"$f":"Time!EBR$86","v":0},{"$f":"Time!EBS$86","v":0},{"$f":"Time!EBT$86","v":0},{"$f":"Time!EBU$86","v":0},{"$f":"Time!EBV$86","v":0},{"$f":"Time!EBW$86","v":0},{"$f":"Time!EBX$86","v":0},{"$f":"Time!EBY$86","v":0},{"$f":"Time!EBZ$86","v":0},{"$f":"Time!ECA$86","v":0},{"$f":"Time!ECB$86","v":0},{"$f":"Time!ECC$86","v":0},{"$f":"Time!ECD$86","v":0},{"$f":"Time!ECE$86","v":0},{"$f":"Time!ECF$86","v":0},{"$f":"Time!ECG$86","v":0},{"$f":"Time!ECH$86","v":0},{"$f":"Time!ECI$86","v":0},{"$f":"Time!ECJ$86","v":0},{"$f":"Time!ECK$86","v":0},{"$f":"Time!ECL$86","v":0},{"$f":"Time!ECM$86","v":0},{"$f":"Time!ECN$86","v":0},{"$f":"Time!ECO$86","v":0},{"$f":"Time!ECP$86","v":0},{"$f":"Time!ECQ$86","v":0},{"$f":"Time!ECR$86","v":0},{"$f":"Time!ECS$86","v":0},{"$f":"Time!ECT$86","v":0},{"$f":"Time!ECU$86","v":0},{"$f":"Time!ECV$86","v":0},{"$f":"Time!ECW$86","v":0},{"$f":"Time!ECX$86","v":0},{"$f":"Time!ECY$86","v":0},{"$f":"Time!ECZ$86","v":0},{"$f":"Time!EDA$86","v":0},{"$f":"Time!EDB$86","v":0},{"$f":"Time!EDC$86","v":0},{"$f":"Time!EDD$86","v":0},{"$f":"Time!EDE$86","v":0},{"$f":"Time!EDF$86","v":0},{"$f":"Time!EDG$86","v":0},{"$f":"Time!EDH$86","v":0},{"$f":"Time!EDI$86","v":0},{"$f":"Time!EDJ$86","v":0},{"$f":"Time!EDK$86","v":0},{"$f":"Time!EDL$86","v":0},{"$f":"Time!EDM$86","v":0},{"$f":"Time!EDN$86","v":0},{"$f":"Time!EDO$86","v":0},{"$f":"Time!EDP$86","v":0},{"$f":"Time!EDQ$86","v":0},{"$f":"Time!EDR$86","v":0},{"$f":"Time!EDS$86","v":0},{"$f":"Time!EDT$86","v":0},{"$f":"Time!EDU$86","v":0},{"$f":"Time!EDV$86","v":0},{"$f":"Time!EDW$86","v":0},{"$f":"Time!EDX$86","v":0},{"$f":"Time!EDY$86","v":0},{"$f":"Time!EDZ$86","v":0},{"$f":"Time!EEA$86","v":0},{"$f":"Time!EEB$86","v":0},{"$f":"Time!EEC$86","v":0},{"$f":"Time!EED$86","v":0},{"$f":"Time!EEE$86","v":0},{"$f":"Time!EEF$86","v":0},{"$f":"Time!EEG$86","v":0},{"$f":"Time!EEH$86","v":0},{"$f":"Time!EEI$86","v":0},{"$f":"Time!EEJ$86","v":0},{"$f":"Time!EEK$86","v":0},{"$f":"Time!EEL$86","v":0},{"$f":"Time!EEM$86","v":0},{"$f":"Time!EEN$86","v":0},{"$f":"Time!EEO$86","v":0},{"$f":"Time!EEP$86","v":0},{"$f":"Time!EEQ$86","v":0},{"$f":"Time!EER$86","v":0},{"$f":"Time!EES$86","v":0},{"$f":"Time!EET$86","v":0},{"$f":"Time!EEU$86","v":0},{"$f":"Time!EEV$86","v":0},{"$f":"Time!EEW$86","v":0},{"$f":"Time!EEX$86","v":0},{"$f":"Time!EEY$86","v":0},{"$f":"Time!EEZ$86","v":0},{"$f":"Time!EFA$86","v":0},{"$f":"Time!EFB$86","v":0},{"$f":"Time!EFC$86","v":0},{"$f":"Time!EFD$86","v":0},{"$f":"Time!EFE$86","v":0},{"$f":"Time!EFF$86","v":0},{"$f":"Time!EFG$86","v":0},{"$f":"Time!EFH$86","v":0},{"$f":"Time!EFI$86","v":0},{"$f":"Time!EFJ$86","v":0},{"$f":"Time!EFK$86","v":0},{"$f":"Time!EFL$86","v":0},{"$f":"Time!EFM$86","v":0},{"$f":"Time!EFN$86","v":0},{"$f":"Time!EFO$86","v":0},{"$f":"Time!EFP$86","v":0},{"$f":"Time!EFQ$86","v":0},{"$f":"Time!EFR$86","v":0},{"$f":"Time!EFS$86","v":0},{"$f":"Time!EFT$86","v":0},{"$f":"Time!EFU$86","v":0},{"$f":"Time!EFV$86","v":0},{"$f":"Time!EFW$86","v":0},{"$f":"Time!EFX$86","v":0},{"$f":"Time!EFY$86","v":0},{"$f":"Time!EFZ$86","v":0},{"$f":"Time!EGA$86","v":0},{"$f":"Time!EGB$86","v":0},{"$f":"Time!EGC$86","v":0},{"$f":"Time!EGD$86","v":0},{"$f":"Time!EGE$86","v":0},{"$f":"Time!EGF$86","v":0},{"$f":"Time!EGG$86","v":0},{"$f":"Time!EGH$86","v":0},{"$f":"Time!EGI$86","v":0},{"$f":"Time!EGJ$86","v":0},{"$f":"Time!EGK$86","v":0},{"$f":"Time!EGL$86","v":0},{"$f":"Time!EGM$86","v":0},{"$f":"Time!EGN$86","v":0},{"$f":"Time!EGO$86","v":0},{"$f":"Time!EGP$86","v":0},{"$f":"Time!EGQ$86","v":0},{"$f":"Time!EGR$86","v":0},{"$f":"Time!EGS$86","v":0},{"$f":"Time!EGT$86","v":0},{"$f":"Time!EGU$86","v":0},{"$f":"Time!EGV$86","v":0},{"$f":"Time!EGW$86","v":0},{"$f":"Time!EGX$86","v":0},{"$f":"Time!EGY$86","v":0},{"$f":"Time!EGZ$86","v":0},{"$f":"Time!EHA$86","v":0},{"$f":"Time!EHB$86","v":0},{"$f":"Time!EHC$86","v":0},{"$f":"Time!EHD$86","v":0},{"$f":"Time!EHE$86","v":0},{"$f":"Time!EHF$86","v":0},{"$f":"Time!EHG$86","v":0},{"$f":"Time!EHH$86","v":0},{"$f":"Time!EHI$86","v":0},{"$f":"Time!EHJ$86","v":0},{"$f":"Time!EHK$86","v":0},{"$f":"Time!EHL$86","v":0},{"$f":"Time!EHM$86","v":0},{"$f":"Time!EHN$86","v":0},{"$f":"Time!EHO$86","v":0},{"$f":"Time!EHP$86","v":0},{"$f":"Time!EHQ$86","v":0},{"$f":"Time!EHR$86","v":0},{"$f":"Time!EHS$86","v":0},{"$f":"Time!EHT$86","v":0},{"$f":"Time!EHU$86","v":0},{"$f":"Time!EHV$86","v":0},{"$f":"Time!EHW$86","v":0},{"$f":"Time!EHX$86","v":0},{"$f":"Time!EHY$86","v":0},{"$f":"Time!EHZ$86","v":0},{"$f":"Time!EIA$86","v":0},{"$f":"Time!EIB$86","v":0},{"$f":"Time!EIC$86","v":0},{"$f":"Time!EID$86","v":0},{"$f":"Time!EIE$86","v":0},{"$f":"Time!EIF$86","v":0},{"$f":"Time!EIG$86","v":0},{"$f":"Time!EIH$86","v":0},{"$f":"Time!EII$86","v":0},{"$f":"Time!EIJ$86","v":0},{"$f":"Time!EIK$86","v":0},{"$f":"Time!EIL$86","v":0},{"$f":"Time!EIM$86","v":0},{"$f":"Time!EIN$86","v":0},{"$f":"Time!EIO$86","v":0},{"$f":"Time!EIP$86","v":0},{"$f":"Time!EIQ$86","v":0},{"$f":"Time!EIR$86","v":0},{"$f":"Time!EIS$86","v":0},{"$f":"Time!EIT$86","v":0},{"$f":"Time!EIU$86","v":0},{"$f":"Time!EIV$86","v":0},{"$f":"Time!EIW$86","v":0},{"$f":"Time!EIX$86","v":0},{"$f":"Time!EIY$86","v":0},{"$f":"Time!EIZ$86","v":0},{"$f":"Time!EJA$86","v":0},{"$f":"Time!EJB$86","v":0},{"$f":"Time!EJC$86","v":0},{"$f":"Time!EJD$86","v":0},{"$f":"Time!EJE$86","v":0},{"$f":"Time!EJF$86","v":0},{"$f":"Time!EJG$86","v":0},{"$f":"Time!EJH$86","v":0},{"$f":"Time!EJI$86","v":0},{"$f":"Time!EJJ$86","v":0},{"$f":"Time!EJK$86","v":0},{"$f":"Time!EJL$86","v":0},{"$f":"Time!EJM$86","v":0},{"$f":"Time!EJN$86","v":0},{"$f":"Time!EJO$86","v":0},{"$f":"Time!EJP$86","v":0},{"$f":"Time!EJQ$86","v":0},{"$f":"Time!EJR$86","v":0},{"$f":"Time!EJS$86","v":0},{"$f":"Time!EJT$86","v":0},{"$f":"Time!EJU$86","v":0},{"$f":"Time!EJV$86","v":0},{"$f":"Time!EJW$86","v":0},{"$f":"Time!EJX$86","v":0},{"$f":"Time!EJY$86","v":0},{"$f":"Time!EJZ$86","v":0},{"$f":"Time!EKA$86","v":0},{"$f":"Time!EKB$86","v":0},{"$f":"Time!EKC$86","v":0},{"$f":"Time!EKD$86","v":0},{"$f":"Time!EKE$86","v":0},{"$f":"Time!EKF$86","v":0},{"$f":"Time!EKG$86","v":0},{"$f":"Time!EKH$86","v":0},{"$f":"Time!EKI$86","v":0},{"$f":"Time!EKJ$86","v":0},{"$f":"Time!EKK$86","v":0},{"$f":"Time!EKL$86","v":0},{"$f":"Time!EKM$86","v":0},{"$f":"Time!EKN$86","v":0},{"$f":"Time!EKO$86","v":0},{"$f":"Time!EKP$86","v":0},{"$f":"Time!EKQ$86","v":0},{"$f":"Time!EKR$86","v":0},{"$f":"Time!EKS$86","v":0},{"$f":"Time!EKT$86","v":0},{"$f":"Time!EKU$86","v":0},{"$f":"Time!EKV$86","v":0},{"$f":"Time!EKW$86","v":0},{"$f":"Time!EKX$86","v":0},{"$f":"Time!EKY$86","v":0},{"$f":"Time!EKZ$86","v":0},{"$f":"Time!ELA$86","v":0},{"$f":"Time!ELB$86","v":0},{"$f":"Time!ELC$86","v":0},{"$f":"Time!ELD$86","v":0},{"$f":"Time!ELE$86","v":0},{"$f":"Time!ELF$86","v":0},{"$f":"Time!ELG$86","v":0},{"$f":"Time!ELH$86","v":0},{"$f":"Time!ELI$86","v":0},{"$f":"Time!ELJ$86","v":0},{"$f":"Time!ELK$86","v":0},{"$f":"Time!ELL$86","v":0},{"$f":"Time!ELM$86","v":0},{"$f":"Time!ELN$86","v":0},{"$f":"Time!ELO$86","v":0},{"$f":"Time!ELP$86","v":0},{"$f":"Time!ELQ$86","v":0},{"$f":"Time!ELR$86","v":0},{"$f":"Time!ELS$86","v":0},{"$f":"Time!ELT$86","v":0},{"$f":"Time!ELU$86","v":0},{"$f":"Time!ELV$86","v":0},{"$f":"Time!ELW$86","v":0},{"$f":"Time!ELX$86","v":0},{"$f":"Time!ELY$86","v":0},{"$f":"Time!ELZ$86","v":0},{"$f":"Time!EMA$86","v":0},{"$f":"Time!EMB$86","v":0},{"$f":"Time!EMC$86","v":0},{"$f":"Time!EMD$86","v":0},{"$f":"Time!EME$86","v":0},{"$f":"Time!EMF$86","v":0},{"$f":"Time!EMG$86","v":0},{"$f":"Time!EMH$86","v":0},{"$f":"Time!EMI$86","v":0},{"$f":"Time!EMJ$86","v":0},{"$f":"Time!EMK$86","v":0},{"$f":"Time!EML$86","v":0},{"$f":"Time!EMM$86","v":0},{"$f":"Time!EMN$86","v":0},{"$f":"Time!EMO$86","v":0},{"$f":"Time!EMP$86","v":0},{"$f":"Time!EMQ$86","v":0},{"$f":"Time!EMR$86","v":0},{"$f":"Time!EMS$86","v":0},{"$f":"Time!EMT$86","v":0},{"$f":"Time!EMU$86","v":0},{"$f":"Time!EMV$86","v":0},{"$f":"Time!EMW$86","v":0},{"$f":"Time!EMX$86","v":0},{"$f":"Time!EMY$86","v":0},{"$f":"Time!EMZ$86","v":0},{"$f":"Time!ENA$86","v":0},{"$f":"Time!ENB$86","v":0},{"$f":"Time!ENC$86","v":0},{"$f":"Time!END$86","v":0},{"$f":"Time!ENE$86","v":0},{"$f":"Time!ENF$86","v":0},{"$f":"Time!ENG$86","v":0},{"$f":"Time!ENH$86","v":0},{"$f":"Time!ENI$86","v":0},{"$f":"Time!ENJ$86","v":0},{"$f":"Time!ENK$86","v":0},{"$f":"Time!ENL$86","v":0},{"$f":"Time!ENM$86","v":0},{"$f":"Time!ENN$86","v":0},{"$f":"Time!ENO$86","v":0},{"$f":"Time!ENP$86","v":0},{"$f":"Time!ENQ$86","v":0},{"$f":"Time!ENR$86","v":0},{"$f":"Time!ENS$86","v":0},{"$f":"Time!ENT$86","v":0},{"$f":"Time!ENU$86","v":0},{"$f":"Time!ENV$86","v":0},{"$f":"Time!ENW$86","v":0},{"$f":"Time!ENX$86","v":0},{"$f":"Time!ENY$86","v":0},{"$f":"Time!ENZ$86","v":0},{"$f":"Time!EOA$86","v":0},{"$f":"Time!EOB$86","v":0},{"$f":"Time!EOC$86","v":0},{"$f":"Time!EOD$86","v":0},{"$f":"Time!EOE$86","v":0},{"$f":"Time!EOF$86","v":0},{"$f":"Time!EOG$86","v":0},{"$f":"Time!EOH$86","v":0},{"$f":"Time!EOI$86","v":0},{"$f":"Time!EOJ$86","v":0},{"$f":"Time!EOK$86","v":0},{"$f":"Time!EOL$86","v":0},{"$f":"Time!EOM$86","v":0},{"$f":"Time!EON$86","v":0},{"$f":"Time!EOO$86","v":0},{"$f":"Time!EOP$86","v":0},{"$f":"Time!EOQ$86","v":0},{"$f":"Time!EOR$86","v":0},{"$f":"Time!EOS$86","v":0},{"$f":"Time!EOT$86","v":0},{"$f":"Time!EOU$86","v":0},{"$f":"Time!EOV$86","v":0},{"$f":"Time!EOW$86","v":0},{"$f":"Time!EOX$86","v":0},{"$f":"Time!EOY$86","v":0},{"$f":"Time!EOZ$86","v":0},{"$f":"Time!EPA$86","v":0},{"$f":"Time!EPB$86","v":0},{"$f":"Time!EPC$86","v":0},{"$f":"Time!EPD$86","v":0},{"$f":"Time!EPE$86","v":0},{"$f":"Time!EPF$86","v":0},{"$f":"Time!EPG$86","v":0},{"$f":"Time!EPH$86","v":0},{"$f":"Time!EPI$86","v":0},{"$f":"Time!EPJ$86","v":0},{"$f":"Time!EPK$86","v":0},{"$f":"Time!EPL$86","v":0},{"$f":"Time!EPM$86","v":0},{"$f":"Time!EPN$86","v":0},{"$f":"Time!EPO$86","v":0},{"$f":"Time!EPP$86","v":0},{"$f":"Time!EPQ$86","v":0},{"$f":"Time!EPR$86","v":0},{"$f":"Time!EPS$86","v":0},{"$f":"Time!EPT$86","v":0},{"$f":"Time!EPU$86","v":0},{"$f":"Time!EPV$86","v":0},{"$f":"Time!EPW$86","v":0},{"$f":"Time!EPX$86","v":0},{"$f":"Time!EPY$86","v":0},{"$f":"Time!EPZ$86","v":0},{"$f":"Time!EQA$86","v":0},{"$f":"Time!EQB$86","v":0},{"$f":"Time!EQC$86","v":0},{"$f":"Time!EQD$86","v":0},{"$f":"Time!EQE$86","v":0},{"$f":"Time!EQF$86","v":0},{"$f":"Time!EQG$86","v":0},{"$f":"Time!EQH$86","v":0},{"$f":"Time!EQI$86","v":0},{"$f":"Time!EQJ$86","v":0},{"$f":"Time!EQK$86","v":0},{"$f":"Time!EQL$86","v":0},{"$f":"Time!EQM$86","v":0},{"$f":"Time!EQN$86","v":0},{"$f":"Time!EQO$86","v":0},{"$f":"Time!EQP$86","v":0},{"$f":"Time!EQQ$86","v":0},{"$f":"Time!EQR$86","v":0},{"$f":"Time!EQS$86","v":0},{"$f":"Time!EQT$86","v":0},{"$f":"Time!EQU$86","v":0},{"$f":"Time!EQV$86","v":0},{"$f":"Time!EQW$86","v":0},{"$f":"Time!EQX$86","v":0},{"$f":"Time!EQY$86","v":0},{"$f":"Time!EQZ$86","v":0},{"$f":"Time!ERA$86","v":0},{"$f":"Time!ERB$86","v":0},{"$f":"Time!ERC$86","v":0},{"$f":"Time!ERD$86","v":0},{"$f":"Time!ERE$86","v":0},{"$f":"Time!ERF$86","v":0},{"$f":"Time!ERG$86","v":0},{"$f":"Time!ERH$86","v":0},{"$f":"Time!ERI$86","v":0},{"$f":"Time!ERJ$86","v":0},{"$f":"Time!ERK$86","v":0},{"$f":"Time!ERL$86","v":0},{"$f":"Time!ERM$86","v":0},{"$f":"Time!ERN$86","v":0},{"$f":"Time!ERO$86","v":0},{"$f":"Time!ERP$86","v":0},{"$f":"Time!ERQ$86","v":0},{"$f":"Time!ERR$86","v":0},{"$f":"Time!ERS$86","v":0},{"$f":"Time!ERT$86","v":0},{"$f":"Time!ERU$86","v":0},{"$f":"Time!ERV$86","v":0},{"$f":"Time!ERW$86","v":0},{"$f":"Time!ERX$86","v":0},{"$f":"Time!ERY$86","v":0},{"$f":"Time!ERZ$86","v":0},{"$f":"Time!ESA$86","v":0},{"$f":"Time!ESB$86","v":0},{"$f":"Time!ESC$86","v":0},{"$f":"Time!ESD$86","v":0},{"$f":"Time!ESE$86","v":0},{"$f":"Time!ESF$86","v":0},{"$f":"Time!ESG$86","v":0},{"$f":"Time!ESH$86","v":0},{"$f":"Time!ESI$86","v":0},{"$f":"Time!ESJ$86","v":0},{"$f":"Time!ESK$86","v":0},{"$f":"Time!ESL$86","v":0},{"$f":"Time!ESM$86","v":0},{"$f":"Time!ESN$86","v":0},{"$f":"Time!ESO$86","v":0},{"$f":"Time!ESP$86","v":0},{"$f":"Time!ESQ$86","v":0},{"$f":"Time!ESR$86","v":0},{"$f":"Time!ESS$86","v":0},{"$f":"Time!EST$86","v":0},{"$f":"Time!ESU$86","v":0},{"$f":"Time!ESV$86","v":0},{"$f":"Time!ESW$86","v":0},{"$f":"Time!ESX$86","v":0},{"$f":"Time!ESY$86","v":0},{"$f":"Time!ESZ$86","v":0},{"$f":"Time!ETA$86","v":0},{"$f":"Time!ETB$86","v":0},{"$f":"Time!ETC$86","v":0},{"$f":"Time!ETD$86","v":0},{"$f":"Time!ETE$86","v":0},{"$f":"Time!ETF$86","v":0},{"$f":"Time!ETG$86","v":0},{"$f":"Time!ETH$86","v":0},{"$f":"Time!ETI$86","v":0},{"$f":"Time!ETJ$86","v":0},{"$f":"Time!ETK$86","v":0},{"$f":"Time!ETL$86","v":0},{"$f":"Time!ETM$86","v":0},{"$f":"Time!ETN$86","v":0},{"$f":"Time!ETO$86","v":0},{"$f":"Time!ETP$86","v":0},{"$f":"Time!ETQ$86","v":0},{"$f":"Time!ETR$86","v":0},{"$f":"Time!ETS$86","v":0},{"$f":"Time!ETT$86","v":0},{"$f":"Time!ETU$86","v":0},{"$f":"Time!ETV$86","v":0},{"$f":"Time!ETW$86","v":0},{"$f":"Time!ETX$86","v":0},{"$f":"Time!ETY$86","v":0},{"$f":"Time!ETZ$86","v":0},{"$f":"Time!EUA$86","v":0},{"$f":"Time!EUB$86","v":0},{"$f":"Time!EUC$86","v":0},{"$f":"Time!EUD$86","v":0},{"$f":"Time!EUE$86","v":0},{"$f":"Time!EUF$86","v":0},{"$f":"Time!EUG$86","v":0},{"$f":"Time!EUH$86","v":0},{"$f":"Time!EUI$86","v":0},{"$f":"Time!EUJ$86","v":0},{"$f":"Time!EUK$86","v":0},{"$f":"Time!EUL$86","v":0},{"$f":"Time!EUM$86","v":0},{"$f":"Time!EUN$86","v":0},{"$f":"Time!EUO$86","v":0},{"$f":"Time!EUP$86","v":0},{"$f":"Time!EUQ$86","v":0},{"$f":"Time!EUR$86","v":0},{"$f":"Time!EUS$86","v":0},{"$f":"Time!EUT$86","v":0},{"$f":"Time!EUU$86","v":0},{"$f":"Time!EUV$86","v":0},{"$f":"Time!EUW$86","v":0},{"$f":"Time!EUX$86","v":0},{"$f":"Time!EUY$86","v":0},{"$f":"Time!EUZ$86","v":0},{"$f":"Time!EVA$86","v":0},{"$f":"Time!EVB$86","v":0},{"$f":"Time!EVC$86","v":0},{"$f":"Time!EVD$86","v":0},{"$f":"Time!EVE$86","v":0},{"$f":"Time!EVF$86","v":0},{"$f":"Time!EVG$86","v":0},{"$f":"Time!EVH$86","v":0},{"$f":"Time!EVI$86","v":0},{"$f":"Time!EVJ$86","v":0},{"$f":"Time!EVK$86","v":0},{"$f":"Time!EVL$86","v":0},{"$f":"Time!EVM$86","v":0},{"$f":"Time!EVN$86","v":0},{"$f":"Time!EVO$86","v":0},{"$f":"Time!EVP$86","v":0},{"$f":"Time!EVQ$86","v":0},{"$f":"Time!EVR$86","v":0},{"$f":"Time!EVS$86","v":0},{"$f":"Time!EVT$86","v":0},{"$f":"Time!EVU$86","v":0},{"$f":"Time!EVV$86","v":0},{"$f":"Time!EVW$86","v":0},{"$f":"Time!EVX$86","v":0},{"$f":"Time!EVY$86","v":0},{"$f":"Time!EVZ$86","v":0},{"$f":"Time!EWA$86","v":0},{"$f":"Time!EWB$86","v":0},{"$f":"Time!EWC$86","v":0},{"$f":"Time!EWD$86","v":0},{"$f":"Time!EWE$86","v":0},{"$f":"Time!EWF$86","v":0},{"$f":"Time!EWG$86","v":0},{"$f":"Time!EWH$86","v":0},{"$f":"Time!EWI$86","v":0},{"$f":"Time!EWJ$86","v":0},{"$f":"Time!EWK$86","v":0},{"$f":"Time!EWL$86","v":0},{"$f":"Time!EWM$86","v":0},{"$f":"Time!EWN$86","v":0},{"$f":"Time!EWO$86","v":0},{"$f":"Time!EWP$86","v":0},{"$f":"Time!EWQ$86","v":0},{"$f":"Time!EWR$86","v":0},{"$f":"Time!EWS$86","v":0},{"$f":"Time!EWT$86","v":0},{"$f":"Time!EWU$86","v":0},{"$f":"Time!EWV$86","v":0},{"$f":"Time!EWW$86","v":0},{"$f":"Time!EWX$86","v":0},{"$f":"Time!EWY$86","v":0},{"$f":"Time!EWZ$86","v":0},{"$f":"Time!EXA$86","v":0},{"$f":"Time!EXB$86","v":0},{"$f":"Time!EXC$86","v":0},{"$f":"Time!EXD$86","v":0},{"$f":"Time!EXE$86","v":0},{"$f":"Time!EXF$86","v":0},{"$f":"Time!EXG$86","v":0},{"$f":"Time!EXH$86","v":0},{"$f":"Time!EXI$86","v":0},{"$f":"Time!EXJ$86","v":0},{"$f":"Time!EXK$86","v":0},{"$f":"Time!EXL$86","v":0},{"$f":"Time!EXM$86","v":0},{"$f":"Time!EXN$86","v":0},{"$f":"Time!EXO$86","v":0},{"$f":"Time!EXP$86","v":0},{"$f":"Time!EXQ$86","v":0},{"$f":"Time!EXR$86","v":0},{"$f":"Time!EXS$86","v":0},{"$f":"Time!EXT$86","v":0},{"$f":"Time!EXU$86","v":0},{"$f":"Time!EXV$86","v":0},{"$f":"Time!EXW$86","v":0},{"$f":"Time!EXX$86","v":0},{"$f":"Time!EXY$86","v":0},{"$f":"Time!EXZ$86","v":0},{"$f":"Time!EYA$86","v":0},{"$f":"Time!EYB$86","v":0},{"$f":"Time!EYC$86","v":0},{"$f":"Time!EYD$86","v":0},{"$f":"Time!EYE$86","v":0},{"$f":"Time!EYF$86","v":0},{"$f":"Time!EYG$86","v":0},{"$f":"Time!EYH$86","v":0},{"$f":"Time!EYI$86","v":0},{"$f":"Time!EYJ$86","v":0},{"$f":"Time!EYK$86","v":0},{"$f":"Time!EYL$86","v":0},{"$f":"Time!EYM$86","v":0},{"$f":"Time!EYN$86","v":0},{"$f":"Time!EYO$86","v":0},{"$f":"Time!EYP$86","v":0},{"$f":"Time!EYQ$86","v":0},{"$f":"Time!EYR$86","v":0},{"$f":"Time!EYS$86","v":0},{"$f":"Time!EYT$86","v":0},{"$f":"Time!EYU$86","v":0},{"$f":"Time!EYV$86","v":0},{"$f":"Time!EYW$86","v":0},{"$f":"Time!EYX$86","v":0},{"$f":"Time!EYY$86","v":0},{"$f":"Time!EYZ$86","v":0},{"$f":"Time!EZA$86","v":0},{"$f":"Time!EZB$86","v":0},{"$f":"Time!EZC$86","v":0},{"$f":"Time!EZD$86","v":0},{"$f":"Time!EZE$86","v":0},{"$f":"Time!EZF$86","v":0},{"$f":"Time!EZG$86","v":0},{"$f":"Time!EZH$86","v":0},{"$f":"Time!EZI$86","v":0},{"$f":"Time!EZJ$86","v":0},{"$f":"Time!EZK$86","v":0},{"$f":"Time!EZL$86","v":0},{"$f":"Time!EZM$86","v":0},{"$f":"Time!EZN$86","v":0},{"$f":"Time!EZO$86","v":0},{"$f":"Time!EZP$86","v":0},{"$f":"Time!EZQ$86","v":0},{"$f":"Time!EZR$86","v":0},{"$f":"Time!EZS$86","v":0},{"$f":"Time!EZT$86","v":0},{"$f":"Time!EZU$86","v":0},{"$f":"Time!EZV$86","v":0},{"$f":"Time!EZW$86","v":0},{"$f":"Time!EZX$86","v":0},{"$f":"Time!EZY$86","v":0},{"$f":"Time!EZZ$86","v":0},{"$f":"Time!FAA$86","v":0},{"$f":"Time!FAB$86","v":0},{"$f":"Time!FAC$86","v":0},{"$f":"Time!FAD$86","v":0},{"$f":"Time!FAE$86","v":0},{"$f":"Time!FAF$86","v":0},{"$f":"Time!FAG$86","v":0},{"$f":"Time!FAH$86","v":0},{"$f":"Time!FAI$86","v":0},{"$f":"Time!FAJ$86","v":0},{"$f":"Time!FAK$86","v":0},{"$f":"Time!FAL$86","v":0},{"$f":"Time!FAM$86","v":0},{"$f":"Time!FAN$86","v":0},{"$f":"Time!FAO$86","v":0},{"$f":"Time!FAP$86","v":0},{"$f":"Time!FAQ$86","v":0},{"$f":"Time!FAR$86","v":0},{"$f":"Time!FAS$86","v":0},{"$f":"Time!FAT$86","v":0},{"$f":"Time!FAU$86","v":0},{"$f":"Time!FAV$86","v":0},{"$f":"Time!FAW$86","v":0},{"$f":"Time!FAX$86","v":0},{"$f":"Time!FAY$86","v":0},{"$f":"Time!FAZ$86","v":0},{"$f":"Time!FBA$86","v":0},{"$f":"Time!FBB$86","v":0},{"$f":"Time!FBC$86","v":0},{"$f":"Time!FBD$86","v":0},{"$f":"Time!FBE$86","v":0},{"$f":"Time!FBF$86","v":0},{"$f":"Time!FBG$86","v":0},{"$f":"Time!FBH$86","v":0},{"$f":"Time!FBI$86","v":0},{"$f":"Time!FBJ$86","v":0},{"$f":"Time!FBK$86","v":0},{"$f":"Time!FBL$86","v":0},{"$f":"Time!FBM$86","v":0},{"$f":"Time!FBN$86","v":0},{"$f":"Time!FBO$86","v":0},{"$f":"Time!FBP$86","v":0},{"$f":"Time!FBQ$86","v":0},{"$f":"Time!FBR$86","v":0},{"$f":"Time!FBS$86","v":0},{"$f":"Time!FBT$86","v":0},{"$f":"Time!FBU$86","v":0},{"$f":"Time!FBV$86","v":0},{"$f":"Time!FBW$86","v":0},{"$f":"Time!FBX$86","v":0},{"$f":"Time!FBY$86","v":0},{"$f":"Time!FBZ$86","v":0},{"$f":"Time!FCA$86","v":0},{"$f":"Time!FCB$86","v":0},{"$f":"Time!FCC$86","v":0},{"$f":"Time!FCD$86","v":0},{"$f":"Time!FCE$86","v":0},{"$f":"Time!FCF$86","v":0},{"$f":"Time!FCG$86","v":0},{"$f":"Time!FCH$86","v":0},{"$f":"Time!FCI$86","v":0},{"$f":"Time!FCJ$86","v":0},{"$f":"Time!FCK$86","v":0},{"$f":"Time!FCL$86","v":0},{"$f":"Time!FCM$86","v":0},{"$f":"Time!FCN$86","v":0},{"$f":"Time!FCO$86","v":0},{"$f":"Time!FCP$86","v":0},{"$f":"Time!FCQ$86","v":0},{"$f":"Time!FCR$86","v":0},{"$f":"Time!FCS$86","v":0},{"$f":"Time!FCT$86","v":0},{"$f":"Time!FCU$86","v":0},{"$f":"Time!FCV$86","v":0},{"$f":"Time!FCW$86","v":0},{"$f":"Time!FCX$86","v":0},{"$f":"Time!FCY$86","v":0},{"$f":"Time!FCZ$86","v":0},{"$f":"Time!FDA$86","v":0},{"$f":"Time!FDB$86","v":0},{"$f":"Time!FDC$86","v":0},{"$f":"Time!FDD$86","v":0},{"$f":"Time!FDE$86","v":0},{"$f":"Time!FDF$86","v":0},{"$f":"Time!FDG$86","v":0},{"$f":"Time!FDH$86","v":0},{"$f":"Time!FDI$86","v":0},{"$f":"Time!FDJ$86","v":0},{"$f":"Time!FDK$86","v":0},{"$f":"Time!FDL$86","v":0},{"$f":"Time!FDM$86","v":0},{"$f":"Time!FDN$86","v":0},{"$f":"Time!FDO$86","v":0},{"$f":"Time!FDP$86","v":0},{"$f":"Time!FDQ$86","v":0},{"$f":"Time!FDR$86","v":0},{"$f":"Time!FDS$86","v":0},{"$f":"Time!FDT$86","v":0},{"$f":"Time!FDU$86","v":0},{"$f":"Time!FDV$86","v":0},{"$f":"Time!FDW$86","v":0},{"$f":"Time!FDX$86","v":0},{"$f":"Time!FDY$86","v":0},{"$f":"Time!FDZ$86","v":0},{"$f":"Time!FEA$86","v":0},{"$f":"Time!FEB$86","v":0},{"$f":"Time!FEC$86","v":0},{"$f":"Time!FED$86","v":0},{"$f":"Time!FEE$86","v":0},{"$f":"Time!FEF$86","v":0},{"$f":"Time!FEG$86","v":0},{"$f":"Time!FEH$86","v":0},{"$f":"Time!FEI$86","v":0},{"$f":"Time!FEJ$86","v":0},{"$f":"Time!FEK$86","v":0},{"$f":"Time!FEL$86","v":0},{"$f":"Time!FEM$86","v":0},{"$f":"Time!FEN$86","v":0},{"$f":"Time!FEO$86","v":0},{"$f":"Time!FEP$86","v":0},{"$f":"Time!FEQ$86","v":0},{"$f":"Time!FER$86","v":0},{"$f":"Time!FES$86","v":0},{"$f":"Time!FET$86","v":0},{"$f":"Time!FEU$86","v":0},{"$f":"Time!FEV$86","v":0},{"$f":"Time!FEW$86","v":0},{"$f":"Time!FEX$86","v":0},{"$f":"Time!FEY$86","v":0},{"$f":"Time!FEZ$86","v":0},{"$f":"Time!FFA$86","v":0},{"$f":"Time!FFB$86","v":0},{"$f":"Time!FFC$86","v":0},{"$f":"Time!FFD$86","v":0},{"$f":"Time!FFE$86","v":0},{"$f":"Time!FFF$86","v":0},{"$f":"Time!FFG$86","v":0},{"$f":"Time!FFH$86","v":0},{"$f":"Time!FFI$86","v":0},{"$f":"Time!FFJ$86","v":0},{"$f":"Time!FFK$86","v":0},{"$f":"Time!FFL$86","v":0},{"$f":"Time!FFM$86","v":0},{"$f":"Time!FFN$86","v":0},{"$f":"Time!FFO$86","v":0},{"$f":"Time!FFP$86","v":0},{"$f":"Time!FFQ$86","v":0},{"$f":"Time!FFR$86","v":0},{"$f":"Time!FFS$86","v":0},{"$f":"Time!FFT$86","v":0},{"$f":"Time!FFU$86","v":0},{"$f":"Time!FFV$86","v":0},{"$f":"Time!FFW$86","v":0},{"$f":"Time!FFX$86","v":0},{"$f":"Time!FFY$86","v":0},{"$f":"Time!FFZ$86","v":0},{"$f":"Time!FGA$86","v":0},{"$f":"Time!FGB$86","v":0},{"$f":"Time!FGC$86","v":0},{"$f":"Time!FGD$86","v":0},{"$f":"Time!FGE$86","v":0},{"$f":"Time!FGF$86","v":0},{"$f":"Time!FGG$86","v":0},{"$f":"Time!FGH$86","v":0},{"$f":"Time!FGI$86","v":0},{"$f":"Time!FGJ$86","v":0},{"$f":"Time!FGK$86","v":0},{"$f":"Time!FGL$86","v":0},{"$f":"Time!FGM$86","v":0},{"$f":"Time!FGN$86","v":0},{"$f":"Time!FGO$86","v":0},{"$f":"Time!FGP$86","v":0},{"$f":"Time!FGQ$86","v":0},{"$f":"Time!FGR$86","v":0},{"$f":"Time!FGS$86","v":0},{"$f":"Time!FGT$86","v":0},{"$f":"Time!FGU$86","v":0},{"$f":"Time!FGV$86","v":0},{"$f":"Time!FGW$86","v":0},{"$f":"Time!FGX$86","v":0},{"$f":"Time!FGY$86","v":0},{"$f":"Time!FGZ$86","v":0},{"$f":"Time!FHA$86","v":0},{"$f":"Time!FHB$86","v":0},{"$f":"Time!FHC$86","v":0},{"$f":"Time!FHD$86","v":0},{"$f":"Time!FHE$86","v":0},{"$f":"Time!FHF$86","v":0},{"$f":"Time!FHG$86","v":0},{"$f":"Time!FHH$86","v":0},{"$f":"Time!FHI$86","v":0},{"$f":"Time!FHJ$86","v":0},{"$f":"Time!FHK$86","v":0},{"$f":"Time!FHL$86","v":0},{"$f":"Time!FHM$86","v":0},{"$f":"Time!FHN$86","v":0},{"$f":"Time!FHO$86","v":0},{"$f":"Time!FHP$86","v":0},{"$f":"Time!FHQ$86","v":0},{"$f":"Time!FHR$86","v":0},{"$f":"Time!FHS$86","v":0},{"$f":"Time!FHT$86","v":0},{"$f":"Time!FHU$86","v":0},{"$f":"Time!FHV$86","v":0},{"$f":"Time!FHW$86","v":0},{"$f":"Time!FHX$86","v":0},{"$f":"Time!FHY$86","v":0},{"$f":"Time!FHZ$86","v":0},{"$f":"Time!FIA$86","v":0},{"$f":"Time!FIB$86","v":0},{"$f":"Time!FIC$86","v":0},{"$f":"Time!FID$86","v":0},{"$f":"Time!FIE$86","v":0},{"$f":"Time!FIF$86","v":0},{"$f":"Time!FIG$86","v":0},{"$f":"Time!FIH$86","v":0},{"$f":"Time!FII$86","v":0},{"$f":"Time!FIJ$86","v":0},{"$f":"Time!FIK$86","v":0},{"$f":"Time!FIL$86","v":0},{"$f":"Time!FIM$86","v":0},{"$f":"Time!FIN$86","v":0},{"$f":"Time!FIO$86","v":0},{"$f":"Time!FIP$86","v":0},{"$f":"Time!FIQ$86","v":0},{"$f":"Time!FIR$86","v":0},{"$f":"Time!FIS$86","v":0},{"$f":"Time!FIT$86","v":0},{"$f":"Time!FIU$86","v":0},{"$f":"Time!FIV$86","v":0},{"$f":"Time!FIW$86","v":0},{"$f":"Time!FIX$86","v":0},{"$f":"Time!FIY$86","v":0},{"$f":"Time!FIZ$86","v":0},{"$f":"Time!FJA$86","v":0},{"$f":"Time!FJB$86","v":0},{"$f":"Time!FJC$86","v":0},{"$f":"Time!FJD$86","v":0},{"$f":"Time!FJE$86","v":0},{"$f":"Time!FJF$86","v":0},{"$f":"Time!FJG$86","v":0},{"$f":"Time!FJH$86","v":0},{"$f":"Time!FJI$86","v":0},{"$f":"Time!FJJ$86","v":0},{"$f":"Time!FJK$86","v":0},{"$f":"Time!FJL$86","v":0},{"$f":"Time!FJM$86","v":0},{"$f":"Time!FJN$86","v":0},{"$f":"Time!FJO$86","v":0},{"$f":"Time!FJP$86","v":0},{"$f":"Time!FJQ$86","v":0},{"$f":"Time!FJR$86","v":0},{"$f":"Time!FJS$86","v":0},{"$f":"Time!FJT$86","v":0},{"$f":"Time!FJU$86","v":0},{"$f":"Time!FJV$86","v":0},{"$f":"Time!FJW$86","v":0},{"$f":"Time!FJX$86","v":0},{"$f":"Time!FJY$86","v":0},{"$f":"Time!FJZ$86","v":0},{"$f":"Time!FKA$86","v":0},{"$f":"Time!FKB$86","v":0},{"$f":"Time!FKC$86","v":0},{"$f":"Time!FKD$86","v":0},{"$f":"Time!FKE$86","v":0},{"$f":"Time!FKF$86","v":0},{"$f":"Time!FKG$86","v":0},{"$f":"Time!FKH$86","v":0},{"$f":"Time!FKI$86","v":0},{"$f":"Time!FKJ$86","v":0},{"$f":"Time!FKK$86","v":0},{"$f":"Time!FKL$86","v":0},{"$f":"Time!FKM$86","v":0},{"$f":"Time!FKN$86","v":0},{"$f":"Time!FKO$86","v":0},{"$f":"Time!FKP$86","v":0},{"$f":"Time!FKQ$86","v":0},{"$f":"Time!FKR$86","v":0},{"$f":"Time!FKS$86","v":0},{"$f":"Time!FKT$86","v":0},{"$f":"Time!FKU$86","v":0},{"$f":"Time!FKV$86","v":0},{"$f":"Time!FKW$86","v":0},{"$f":"Time!FKX$86","v":0},{"$f":"Time!FKY$86","v":0},{"$f":"Time!FKZ$86","v":0},{"$f":"Time!FLA$86","v":0},{"$f":"Time!FLB$86","v":0},{"$f":"Time!FLC$86","v":0},{"$f":"Time!FLD$86","v":0},{"$f":"Time!FLE$86","v":0},{"$f":"Time!FLF$86","v":0},{"$f":"Time!FLG$86","v":0},{"$f":"Time!FLH$86","v":0},{"$f":"Time!FLI$86","v":0},{"$f":"Time!FLJ$86","v":0},{"$f":"Time!FLK$86","v":0},{"$f":"Time!FLL$86","v":0},{"$f":"Time!FLM$86","v":0},{"$f":"Time!FLN$86","v":0},{"$f":"Time!FLO$86","v":0},{"$f":"Time!FLP$86","v":0},{"$f":"Time!FLQ$86","v":0},{"$f":"Time!FLR$86","v":0},{"$f":"Time!FLS$86","v":0},{"$f":"Time!FLT$86","v":0},{"$f":"Time!FLU$86","v":0},{"$f":"Time!FLV$86","v":0},{"$f":"Time!FLW$86","v":0},{"$f":"Time!FLX$86","v":0},{"$f":"Time!FLY$86","v":0},{"$f":"Time!FLZ$86","v":0},{"$f":"Time!FMA$86","v":0},{"$f":"Time!FMB$86","v":0},{"$f":"Time!FMC$86","v":0},{"$f":"Time!FMD$86","v":0},{"$f":"Time!FME$86","v":0},{"$f":"Time!FMF$86","v":0},{"$f":"Time!FMG$86","v":0},{"$f":"Time!FMH$86","v":0},{"$f":"Time!FMI$86","v":0},{"$f":"Time!FMJ$86","v":0},{"$f":"Time!FMK$86","v":0},{"$f":"Time!FML$86","v":0},{"$f":"Time!FMM$86","v":0},{"$f":"Time!FMN$86","v":0},{"$f":"Time!FMO$86","v":0},{"$f":"Time!FMP$86","v":0},{"$f":"Time!FMQ$86","v":0},{"$f":"Time!FMR$86","v":0},{"$f":"Time!FMS$86","v":0},{"$f":"Time!FMT$86","v":0},{"$f":"Time!FMU$86","v":0},{"$f":"Time!FMV$86","v":0},{"$f":"Time!FMW$86","v":0},{"$f":"Time!FMX$86","v":0},{"$f":"Time!FMY$86","v":0},{"$f":"Time!FMZ$86","v":0},{"$f":"Time!FNA$86","v":0},{"$f":"Time!FNB$86","v":0},{"$f":"Time!FNC$86","v":0},{"$f":"Time!FND$86","v":0},{"$f":"Time!FNE$86","v":0},{"$f":"Time!FNF$86","v":0},{"$f":"Time!FNG$86","v":0},{"$f":"Time!FNH$86","v":0},{"$f":"Time!FNI$86","v":0},{"$f":"Time!FNJ$86","v":0},{"$f":"Time!FNK$86","v":0},{"$f":"Time!FNL$86","v":0},{"$f":"Time!FNM$86","v":0},{"$f":"Time!FNN$86","v":0},{"$f":"Time!FNO$86","v":0},{"$f":"Time!FNP$86","v":0},{"$f":"Time!FNQ$86","v":0},{"$f":"Time!FNR$86","v":0},{"$f":"Time!FNS$86","v":0},{"$f":"Time!FNT$86","v":0},{"$f":"Time!FNU$86","v":0},{"$f":"Time!FNV$86","v":0},{"$f":"Time!FNW$86","v":0},{"$f":"Time!FNX$86","v":0},{"$f":"Time!FNY$86","v":0},{"$f":"Time!FNZ$86","v":0},{"$f":"Time!FOA$86","v":0},{"$f":"Time!FOB$86","v":0},{"$f":"Time!FOC$86","v":0},{"$f":"Time!FOD$86","v":0},{"$f":"Time!FOE$86","v":0},{"$f":"Time!FOF$86","v":0},{"$f":"Time!FOG$86","v":0},{"$f":"Time!FOH$86","v":0},{"$f":"Time!FOI$86","v":0},{"$f":"Time!FOJ$86","v":0},{"$f":"Time!FOK$86","v":0},{"$f":"Time!FOL$86","v":0},{"$f":"Time!FOM$86","v":0},{"$f":"Time!FON$86","v":0},{"$f":"Time!FOO$86","v":0},{"$f":"Time!FOP$86","v":0},{"$f":"Time!FOQ$86","v":0},{"$f":"Time!FOR$86","v":0},{"$f":"Time!FOS$86","v":0},{"$f":"Time!FOT$86","v":0},{"$f":"Time!FOU$86","v":0},{"$f":"Time!FOV$86","v":0},{"$f":"Time!FOW$86","v":0},{"$f":"Time!FOX$86","v":0},{"$f":"Time!FOY$86","v":0},{"$f":"Time!FOZ$86","v":0},{"$f":"Time!FPA$86","v":0},{"$f":"Time!FPB$86","v":0},{"$f":"Time!FPC$86","v":0},{"$f":"Time!FPD$86","v":0},{"$f":"Time!FPE$86","v":0},{"$f":"Time!FPF$86","v":0},{"$f":"Time!FPG$86","v":0},{"$f":"Time!FPH$86","v":0},{"$f":"Time!FPI$86","v":0},{"$f":"Time!FPJ$86","v":0},{"$f":"Time!FPK$86","v":0},{"$f":"Time!FPL$86","v":0},{"$f":"Time!FPM$86","v":0},{"$f":"Time!FPN$86","v":0},{"$f":"Time!FPO$86","v":0},{"$f":"Time!FPP$86","v":0},{"$f":"Time!FPQ$86","v":0},{"$f":"Time!FPR$86","v":0},{"$f":"Time!FPS$86","v":0},{"$f":"Time!FPT$86","v":0},{"$f":"Time!FPU$86","v":0},{"$f":"Time!FPV$86","v":0},{"$f":"Time!FPW$86","v":0},{"$f":"Time!FPX$86","v":0},{"$f":"Time!FPY$86","v":0},{"$f":"Time!FPZ$86","v":0},{"$f":"Time!FQA$86","v":0},{"$f":"Time!FQB$86","v":0},{"$f":"Time!FQC$86","v":0},{"$f":"Time!FQD$86","v":0},{"$f":"Time!FQE$86","v":0},{"$f":"Time!FQF$86","v":0},{"$f":"Time!FQG$86","v":0},{"$f":"Time!FQH$86","v":0},{"$f":"Time!FQI$86","v":0},{"$f":"Time!FQJ$86","v":0},{"$f":"Time!FQK$86","v":0},{"$f":"Time!FQL$86","v":0},{"$f":"Time!FQM$86","v":0},{"$f":"Time!FQN$86","v":0},{"$f":"Time!FQO$86","v":0},{"$f":"Time!FQP$86","v":0},{"$f":"Time!FQQ$86","v":0},{"$f":"Time!FQR$86","v":0},{"$f":"Time!FQS$86","v":0},{"$f":"Time!FQT$86","v":0},{"$f":"Time!FQU$86","v":0},{"$f":"Time!FQV$86","v":0},{"$f":"Time!FQW$86","v":0},{"$f":"Time!FQX$86","v":0},{"$f":"Time!FQY$86","v":0},{"$f":"Time!FQZ$86","v":0},{"$f":"Time!FRA$86","v":0},{"$f":"Time!FRB$86","v":0},{"$f":"Time!FRC$86","v":0},{"$f":"Time!FRD$86","v":0},{"$f":"Time!FRE$86","v":0},{"$f":"Time!FRF$86","v":0},{"$f":"Time!FRG$86","v":0},{"$f":"Time!FRH$86","v":0},{"$f":"Time!FRI$86","v":0},{"$f":"Time!FRJ$86","v":0},{"$f":"Time!FRK$86","v":0},{"$f":"Time!FRL$86","v":0},{"$f":"Time!FRM$86","v":0},{"$f":"Time!FRN$86","v":0},{"$f":"Time!FRO$86","v":0},{"$f":"Time!FRP$86","v":0},{"$f":"Time!FRQ$86","v":0},{"$f":"Time!FRR$86","v":0},{"$f":"Time!FRS$86","v":0},{"$f":"Time!FRT$86","v":0},{"$f":"Time!FRU$86","v":0},{"$f":"Time!FRV$86","v":0},{"$f":"Time!FRW$86","v":0},{"$f":"Time!FRX$86","v":0},{"$f":"Time!FRY$86","v":0},{"$f":"Time!FRZ$86","v":0},{"$f":"Time!FSA$86","v":0},{"$f":"Time!FSB$86","v":0},{"$f":"Time!FSC$86","v":0},{"$f":"Time!FSD$86","v":0},{"$f":"Time!FSE$86","v":0},{"$f":"Time!FSF$86","v":0},{"$f":"Time!FSG$86","v":0},{"$f":"Time!FSH$86","v":0},{"$f":"Time!FSI$86","v":0},{"$f":"Time!FSJ$86","v":0},{"$f":"Time!FSK$86","v":0},{"$f":"Time!FSL$86","v":0},{"$f":"Time!FSM$86","v":0},{"$f":"Time!FSN$86","v":0},{"$f":"Time!FSO$86","v":0},{"$f":"Time!FSP$86","v":0},{"$f":"Time!FSQ$86","v":0},{"$f":"Time!FSR$86","v":0},{"$f":"Time!FSS$86","v":0},{"$f":"Time!FST$86","v":0},{"$f":"Time!FSU$86","v":0},{"$f":"Time!FSV$86","v":0},{"$f":"Time!FSW$86","v":0},{"$f":"Time!FSX$86","v":0},{"$f":"Time!FSY$86","v":0},{"$f":"Time!FSZ$86","v":0},{"$f":"Time!FTA$86","v":0},{"$f":"Time!FTB$86","v":0},{"$f":"Time!FTC$86","v":0},{"$f":"Time!FTD$86","v":0},{"$f":"Time!FTE$86","v":0},{"$f":"Time!FTF$86","v":0},{"$f":"Time!FTG$86","v":0},{"$f":"Time!FTH$86","v":0},{"$f":"Time!FTI$86","v":0},{"$f":"Time!FTJ$86","v":0},{"$f":"Time!FTK$86","v":0},{"$f":"Time!FTL$86","v":0},{"$f":"Time!FTM$86","v":0},{"$f":"Time!FTN$86","v":0},{"$f":"Time!FTO$86","v":0},{"$f":"Time!FTP$86","v":0},{"$f":"Time!FTQ$86","v":0},{"$f":"Time!FTR$86","v":0},{"$f":"Time!FTS$86","v":0},{"$f":"Time!FTT$86","v":0},{"$f":"Time!FTU$86","v":0},{"$f":"Time!FTV$86","v":0},{"$f":"Time!FTW$86","v":0},{"$f":"Time!FTX$86","v":0},{"$f":"Time!FTY$86","v":0},{"$f":"Time!FTZ$86","v":0},{"$f":"Time!FUA$86","v":0},{"$f":"Time!FUB$86","v":0},{"$f":"Time!FUC$86","v":0},{"$f":"Time!FUD$86","v":0},{"$f":"Time!FUE$86","v":0},{"$f":"Time!FUF$86","v":0},{"$f":"Time!FUG$86","v":0},{"$f":"Time!FUH$86","v":0},{"$f":"Time!FUI$86","v":0},{"$f":"Time!FUJ$86","v":0},{"$f":"Time!FUK$86","v":0},{"$f":"Time!FUL$86","v":0},{"$f":"Time!FUM$86","v":0},{"$f":"Time!FUN$86","v":0},{"$f":"Time!FUO$86","v":0},{"$f":"Time!FUP$86","v":0},{"$f":"Time!FUQ$86","v":0},{"$f":"Time!FUR$86","v":0},{"$f":"Time!FUS$86","v":0},{"$f":"Time!FUT$86","v":0},{"$f":"Time!FUU$86","v":0},{"$f":"Time!FUV$86","v":0},{"$f":"Time!FUW$86","v":0},{"$f":"Time!FUX$86","v":0},{"$f":"Time!FUY$86","v":0},{"$f":"Time!FUZ$86","v":0},{"$f":"Time!FVA$86","v":0},{"$f":"Time!FVB$86","v":0},{"$f":"Time!FVC$86","v":0},{"$f":"Time!FVD$86","v":0},{"$f":"Time!FVE$86","v":0},{"$f":"Time!FVF$86","v":0},{"$f":"Time!FVG$86","v":0},{"$f":"Time!FVH$86","v":0},{"$f":"Time!FVI$86","v":0},{"$f":"Time!FVJ$86","v":0},{"$f":"Time!FVK$86","v":0},{"$f":"Time!FVL$86","v":0},{"$f":"Time!FVM$86","v":0},{"$f":"Time!FVN$86","v":0},{"$f":"Time!FVO$86","v":0},{"$f":"Time!FVP$86","v":0},{"$f":"Time!FVQ$86","v":0},{"$f":"Time!FVR$86","v":0},{"$f":"Time!FVS$86","v":0},{"$f":"Time!FVT$86","v":0},{"$f":"Time!FVU$86","v":0},{"$f":"Time!FVV$86","v":0},{"$f":"Time!FVW$86","v":0},{"$f":"Time!FVX$86","v":0},{"$f":"Time!FVY$86","v":0},{"$f":"Time!FVZ$86","v":0},{"$f":"Time!FWA$86","v":0},{"$f":"Time!FWB$86","v":0},{"$f":"Time!FWC$86","v":0},{"$f":"Time!FWD$86","v":0},{"$f":"Time!FWE$86","v":0},{"$f":"Time!FWF$86","v":0},{"$f":"Time!FWG$86","v":0},{"$f":"Time!FWH$86","v":0},{"$f":"Time!FWI$86","v":0},{"$f":"Time!FWJ$86","v":0},{"$f":"Time!FWK$86","v":0},{"$f":"Time!FWL$86","v":0},{"$f":"Time!FWM$86","v":0},{"$f":"Time!FWN$86","v":0},{"$f":"Time!FWO$86","v":0},{"$f":"Time!FWP$86","v":0},{"$f":"Time!FWQ$86","v":0},{"$f":"Time!FWR$86","v":0},{"$f":"Time!FWS$86","v":0},{"$f":"Time!FWT$86","v":0},{"$f":"Time!FWU$86","v":0},{"$f":"Time!FWV$86","v":0},{"$f":"Time!FWW$86","v":0},{"$f":"Time!FWX$86","v":0},{"$f":"Time!FWY$86","v":0},{"$f":"Time!FWZ$86","v":0},{"$f":"Time!FXA$86","v":0},{"$f":"Time!FXB$86","v":0},{"$f":"Time!FXC$86","v":0},{"$f":"Time!FXD$86","v":0},{"$f":"Time!FXE$86","v":0},{"$f":"Time!FXF$86","v":0},{"$f":"Time!FXG$86","v":0},{"$f":"Time!FXH$86","v":0},{"$f":"Time!FXI$86","v":0},{"$f":"Time!FXJ$86","v":0},{"$f":"Time!FXK$86","v":0},{"$f":"Time!FXL$86","v":0},{"$f":"Time!FXM$86","v":0},{"$f":"Time!FXN$86","v":0},{"$f":"Time!FXO$86","v":0},{"$f":"Time!FXP$86","v":0},{"$f":"Time!FXQ$86","v":0},{"$f":"Time!FXR$86","v":0},{"$f":"Time!FXS$86","v":0},{"$f":"Time!FXT$86","v":0},{"$f":"Time!FXU$86","v":0},{"$f":"Time!FXV$86","v":0},{"$f":"Time!FXW$86","v":0},{"$f":"Time!FXX$86","v":0},{"$f":"Time!FXY$86","v":0},{"$f":"Time!FXZ$86","v":0},{"$f":"Time!FYA$86","v":0},{"$f":"Time!FYB$86","v":0},{"$f":"Time!FYC$86","v":0},{"$f":"Time!FYD$86","v":0},{"$f":"Time!FYE$86","v":0},{"$f":"Time!FYF$86","v":0},{"$f":"Time!FYG$86","v":0},{"$f":"Time!FYH$86","v":0},{"$f":"Time!FYI$86","v":0},{"$f":"Time!FYJ$86","v":0},{"$f":"Time!FYK$86","v":0},{"$f":"Time!FYL$86","v":0},{"$f":"Time!FYM$86","v":0},{"$f":"Time!FYN$86","v":0},{"$f":"Time!FYO$86","v":0},{"$f":"Time!FYP$86","v":0},{"$f":"Time!FYQ$86","v":0},{"$f":"Time!FYR$86","v":0},{"$f":"Time!FYS$86","v":0},{"$f":"Time!FYT$86","v":0},{"$f":"Time!FYU$86","v":0},{"$f":"Time!FYV$86","v":0},{"$f":"Time!FYW$86","v":0},{"$f":"Time!FYX$86","v":0},{"$f":"Time!FYY$86","v":0},{"$f":"Time!FYZ$86","v":0},{"$f":"Time!FZA$86","v":0},{"$f":"Time!FZB$86","v":0},{"$f":"Time!FZC$86","v":0},{"$f":"Time!FZD$86","v":0},{"$f":"Time!FZE$86","v":0},{"$f":"Time!FZF$86","v":0},{"$f":"Time!FZG$86","v":0},{"$f":"Time!FZH$86","v":0},{"$f":"Time!FZI$86","v":0},{"$f":"Time!FZJ$86","v":0},{"$f":"Time!FZK$86","v":0},{"$f":"Time!FZL$86","v":0},{"$f":"Time!FZM$86","v":0},{"$f":"Time!FZN$86","v":0},{"$f":"Time!FZO$86","v":0},{"$f":"Time!FZP$86","v":0},{"$f":"Time!FZQ$86","v":0},{"$f":"Time!FZR$86","v":0},{"$f":"Time!FZS$86","v":0},{"$f":"Time!FZT$86","v":0},{"$f":"Time!FZU$86","v":0},{"$f":"Time!FZV$86","v":0},{"$f":"Time!FZW$86","v":0},{"$f":"Time!FZX$86","v":0},{"$f":"Time!FZY$86","v":0},{"$f":"Time!FZZ$86","v":0},{"$f":"Time!GAA$86","v":0},{"$f":"Time!GAB$86","v":0},{"$f":"Time!GAC$86","v":0},{"$f":"Time!GAD$86","v":0},{"$f":"Time!GAE$86","v":0},{"$f":"Time!GAF$86","v":0},{"$f":"Time!GAG$86","v":0},{"$f":"Time!GAH$86","v":0},{"$f":"Time!GAI$86","v":0},{"$f":"Time!GAJ$86","v":0},{"$f":"Time!GAK$86","v":0},{"$f":"Time!GAL$86","v":0},{"$f":"Time!GAM$86","v":0},{"$f":"Time!GAN$86","v":0},{"$f":"Time!GAO$86","v":0},{"$f":"Time!GAP$86","v":0},{"$f":"Time!GAQ$86","v":0},{"$f":"Time!GAR$86","v":0},{"$f":"Time!GAS$86","v":0},{"$f":"Time!GAT$86","v":0},{"$f":"Time!GAU$86","v":0},{"$f":"Time!GAV$86","v":0},{"$f":"Time!GAW$86","v":0},{"$f":"Time!GAX$86","v":0},{"$f":"Time!GAY$86","v":0},{"$f":"Time!GAZ$86","v":0},{"$f":"Time!GBA$86","v":0},{"$f":"Time!GBB$86","v":0},{"$f":"Time!GBC$86","v":0},{"$f":"Time!GBD$86","v":0},{"$f":"Time!GBE$86","v":0},{"$f":"Time!GBF$86","v":0},{"$f":"Time!GBG$86","v":0},{"$f":"Time!GBH$86","v":0},{"$f":"Time!GBI$86","v":0},{"$f":"Time!GBJ$86","v":0},{"$f":"Time!GBK$86","v":0},{"$f":"Time!GBL$86","v":0},{"$f":"Time!GBM$86","v":0},{"$f":"Time!GBN$86","v":0},{"$f":"Time!GBO$86","v":0},{"$f":"Time!GBP$86","v":0},{"$f":"Time!GBQ$86","v":0},{"$f":"Time!GBR$86","v":0},{"$f":"Time!GBS$86","v":0},{"$f":"Time!GBT$86","v":0},{"$f":"Time!GBU$86","v":0},{"$f":"Time!GBV$86","v":0},{"$f":"Time!GBW$86","v":0},{"$f":"Time!GBX$86","v":0},{"$f":"Time!GBY$86","v":0},{"$f":"Time!GBZ$86","v":0},{"$f":"Time!GCA$86","v":0},{"$f":"Time!GCB$86","v":0},{"$f":"Time!GCC$86","v":0},{"$f":"Time!GCD$86","v":0},{"$f":"Time!GCE$86","v":0},{"$f":"Time!GCF$86","v":0},{"$f":"Time!GCG$86","v":0},{"$f":"Time!GCH$86","v":0},{"$f":"Time!GCI$86","v":0},{"$f":"Time!GCJ$86","v":0},{"$f":"Time!GCK$86","v":0},{"$f":"Time!GCL$86","v":0},{"$f":"Time!GCM$86","v":0},{"$f":"Time!GCN$86","v":0},{"$f":"Time!GCO$86","v":0},{"$f":"Time!GCP$86","v":0},{"$f":"Time!GCQ$86","v":0},{"$f":"Time!GCR$86","v":0},{"$f":"Time!GCS$86","v":0},{"$f":"Time!GCT$86","v":0},{"$f":"Time!GCU$86","v":0},{"$f":"Time!GCV$86","v":0},{"$f":"Time!GCW$86","v":0},{"$f":"Time!GCX$86","v":0},{"$f":"Time!GCY$86","v":0},{"$f":"Time!GCZ$86","v":0},{"$f":"Time!GDA$86","v":0},{"$f":"Time!GDB$86","v":0},{"$f":"Time!GDC$86","v":0},{"$f":"Time!GDD$86","v":0},{"$f":"Time!GDE$86","v":0},{"$f":"Time!GDF$86","v":0},{"$f":"Time!GDG$86","v":0},{"$f":"Time!GDH$86","v":0},{"$f":"Time!GDI$86","v":0},{"$f":"Time!GDJ$86","v":0},{"$f":"Time!GDK$86","v":0},{"$f":"Time!GDL$86","v":0},{"$f":"Time!GDM$86","v":0},{"$f":"Time!GDN$86","v":0},{"$f":"Time!GDO$86","v":0},{"$f":"Time!GDP$86","v":0},{"$f":"Time!GDQ$86","v":0},{"$f":"Time!GDR$86","v":0},{"$f":"Time!GDS$86","v":0},{"$f":"Time!GDT$86","v":0},{"$f":"Time!GDU$86","v":0},{"$f":"Time!GDV$86","v":0},{"$f":"Time!GDW$86","v":0},{"$f":"Time!GDX$86","v":0},{"$f":"Time!GDY$86","v":0},{"$f":"Time!GDZ$86","v":0},{"$f":"Time!GEA$86","v":0},{"$f":"Time!GEB$86","v":0},{"$f":"Time!GEC$86","v":0},{"$f":"Time!GED$86","v":0},{"$f":"Time!GEE$86","v":0},{"$f":"Time!GEF$86","v":0},{"$f":"Time!GEG$86","v":0},{"$f":"Time!GEH$86","v":0},{"$f":"Time!GEI$86","v":0},{"$f":"Time!GEJ$86","v":0},{"$f":"Time!GEK$86","v":0},{"$f":"Time!GEL$86","v":0},{"$f":"Time!GEM$86","v":0},{"$f":"Time!GEN$86","v":0},{"$f":"Time!GEO$86","v":0},{"$f":"Time!GEP$86","v":0},{"$f":"Time!GEQ$86","v":0},{"$f":"Time!GER$86","v":0},{"$f":"Time!GES$86","v":0},{"$f":"Time!GET$86","v":0},{"$f":"Time!GEU$86","v":0},{"$f":"Time!GEV$86","v":0},{"$f":"Time!GEW$86","v":0},{"$f":"Time!GEX$86","v":0},{"$f":"Time!GEY$86","v":0},{"$f":"Time!GEZ$86","v":0},{"$f":"Time!GFA$86","v":0},{"$f":"Time!GFB$86","v":0},{"$f":"Time!GFC$86","v":0},{"$f":"Time!GFD$86","v":0},{"$f":"Time!GFE$86","v":0},{"$f":"Time!GFF$86","v":0},{"$f":"Time!GFG$86","v":0},{"$f":"Time!GFH$86","v":0},{"$f":"Time!GFI$86","v":0},{"$f":"Time!GFJ$86","v":0},{"$f":"Time!GFK$86","v":0},{"$f":"Time!GFL$86","v":0},{"$f":"Time!GFM$86","v":0},{"$f":"Time!GFN$86","v":0},{"$f":"Time!GFO$86","v":0},{"$f":"Time!GFP$86","v":0},{"$f":"Time!GFQ$86","v":0},{"$f":"Time!GFR$86","v":0},{"$f":"Time!GFS$86","v":0},{"$f":"Time!GFT$86","v":0},{"$f":"Time!GFU$86","v":0},{"$f":"Time!GFV$86","v":0},{"$f":"Time!GFW$86","v":0},{"$f":"Time!GFX$86","v":0},{"$f":"Time!GFY$86","v":0},{"$f":"Time!GFZ$86","v":0},{"$f":"Time!GGA$86","v":0},{"$f":"Time!GGB$86","v":0},{"$f":"Time!GGC$86","v":0},{"$f":"Time!GGD$86","v":0},{"$f":"Time!GGE$86","v":0},{"$f":"Time!GGF$86","v":0},{"$f":"Time!GGG$86","v":0},{"$f":"Time!GGH$86","v":0},{"$f":"Time!GGI$86","v":0},{"$f":"Time!GGJ$86","v":0},{"$f":"Time!GGK$86","v":0},{"$f":"Time!GGL$86","v":0},{"$f":"Time!GGM$86","v":0},{"$f":"Time!GGN$86","v":0},{"$f":"Time!GGO$86","v":0},{"$f":"Time!GGP$86","v":0},{"$f":"Time!GGQ$86","v":0},{"$f":"Time!GGR$86","v":0},{"$f":"Time!GGS$86","v":0},{"$f":"Time!GGT$86","v":0},{"$f":"Time!GGU$86","v":0},{"$f":"Time!GGV$86","v":0},{"$f":"Time!GGW$86","v":0},{"$f":"Time!GGX$86","v":0},{"$f":"Time!GGY$86","v":0},{"$f":"Time!GGZ$86","v":0},{"$f":"Time!GHA$86","v":0},{"$f":"Time!GHB$86","v":0},{"$f":"Time!GHC$86","v":0},{"$f":"Time!GHD$86","v":0},{"$f":"Time!GHE$86","v":0},{"$f":"Time!GHF$86","v":0},{"$f":"Time!GHG$86","v":0},{"$f":"Time!GHH$86","v":0},{"$f":"Time!GHI$86","v":0},{"$f":"Time!GHJ$86","v":0},{"$f":"Time!GHK$86","v":0},{"$f":"Time!GHL$86","v":0},{"$f":"Time!GHM$86","v":0},{"$f":"Time!GHN$86","v":0},{"$f":"Time!GHO$86","v":0},{"$f":"Time!GHP$86","v":0},{"$f":"Time!GHQ$86","v":0},{"$f":"Time!GHR$86","v":0},{"$f":"Time!GHS$86","v":0},{"$f":"Time!GHT$86","v":0},{"$f":"Time!GHU$86","v":0},{"$f":"Time!GHV$86","v":0},{"$f":"Time!GHW$86","v":0},{"$f":"Time!GHX$86","v":0},{"$f":"Time!GHY$86","v":0},{"$f":"Time!GHZ$86","v":0},{"$f":"Time!GIA$86","v":0},{"$f":"Time!GIB$86","v":0},{"$f":"Time!GIC$86","v":0},{"$f":"Time!GID$86","v":0},{"$f":"Time!GIE$86","v":0},{"$f":"Time!GIF$86","v":0},{"$f":"Time!GIG$86","v":0},{"$f":"Time!GIH$86","v":0},{"$f":"Time!GII$86","v":0},{"$f":"Time!GIJ$86","v":0},{"$f":"Time!GIK$86","v":0},{"$f":"Time!GIL$86","v":0},{"$f":"Time!GIM$86","v":0},{"$f":"Time!GIN$86","v":0},{"$f":"Time!GIO$86","v":0},{"$f":"Time!GIP$86","v":0},{"$f":"Time!GIQ$86","v":0},{"$f":"Time!GIR$86","v":0},{"$f":"Time!GIS$86","v":0},{"$f":"Time!GIT$86","v":0},{"$f":"Time!GIU$86","v":0},{"$f":"Time!GIV$86","v":0},{"$f":"Time!GIW$86","v":0},{"$f":"Time!GIX$86","v":0},{"$f":"Time!GIY$86","v":0},{"$f":"Time!GIZ$86","v":0},{"$f":"Time!GJA$86","v":0},{"$f":"Time!GJB$86","v":0},{"$f":"Time!GJC$86","v":0},{"$f":"Time!GJD$86","v":0},{"$f":"Time!GJE$86","v":0},{"$f":"Time!GJF$86","v":0},{"$f":"Time!GJG$86","v":0},{"$f":"Time!GJH$86","v":0},{"$f":"Time!GJI$86","v":0},{"$f":"Time!GJJ$86","v":0},{"$f":"Time!GJK$86","v":0},{"$f":"Time!GJL$86","v":0},{"$f":"Time!GJM$86","v":0},{"$f":"Time!GJN$86","v":0},{"$f":"Time!GJO$86","v":0},{"$f":"Time!GJP$86","v":0},{"$f":"Time!GJQ$86","v":0},{"$f":"Time!GJR$86","v":0},{"$f":"Time!GJS$86","v":0},{"$f":"Time!GJT$86","v":0},{"$f":"Time!GJU$86","v":0},{"$f":"Time!GJV$86","v":0},{"$f":"Time!GJW$86","v":0},{"$f":"Time!GJX$86","v":0},{"$f":"Time!GJY$86","v":0},{"$f":"Time!GJZ$86","v":0},{"$f":"Time!GKA$86","v":0},{"$f":"Time!GKB$86","v":0},{"$f":"Time!GKC$86","v":0},{"$f":"Time!GKD$86","v":0},{"$f":"Time!GKE$86","v":0},{"$f":"Time!GKF$86","v":0},{"$f":"Time!GKG$86","v":0},{"$f":"Time!GKH$86","v":0},{"$f":"Time!GKI$86","v":0},{"$f":"Time!GKJ$86","v":0},{"$f":"Time!GKK$86","v":0},{"$f":"Time!GKL$86","v":0},{"$f":"Time!GKM$86","v":0},{"$f":"Time!GKN$86","v":0},{"$f":"Time!GKO$86","v":0},{"$f":"Time!GKP$86","v":0},{"$f":"Time!GKQ$86","v":0},{"$f":"Time!GKR$86","v":0},{"$f":"Time!GKS$86","v":0},{"$f":"Time!GKT$86","v":0},{"$f":"Time!GKU$86","v":0},{"$f":"Time!GKV$86","v":0},{"$f":"Time!GKW$86","v":0},{"$f":"Time!GKX$86","v":0},{"$f":"Time!GKY$86","v":0},{"$f":"Time!GKZ$86","v":0},{"$f":"Time!GLA$86","v":0},{"$f":"Time!GLB$86","v":0},{"$f":"Time!GLC$86","v":0},{"$f":"Time!GLD$86","v":0},{"$f":"Time!GLE$86","v":0},{"$f":"Time!GLF$86","v":0},{"$f":"Time!GLG$86","v":0},{"$f":"Time!GLH$86","v":0},{"$f":"Time!GLI$86","v":0},{"$f":"Time!GLJ$86","v":0},{"$f":"Time!GLK$86","v":0},{"$f":"Time!GLL$86","v":0},{"$f":"Time!GLM$86","v":0},{"$f":"Time!GLN$86","v":0},{"$f":"Time!GLO$86","v":0},{"$f":"Time!GLP$86","v":0},{"$f":"Time!GLQ$86","v":0},{"$f":"Time!GLR$86","v":0},{"$f":"Time!GLS$86","v":0},{"$f":"Time!GLT$86","v":0},{"$f":"Time!GLU$86","v":0},{"$f":"Time!GLV$86","v":0},{"$f":"Time!GLW$86","v":0},{"$f":"Time!GLX$86","v":0},{"$f":"Time!GLY$86","v":0},{"$f":"Time!GLZ$86","v":0},{"$f":"Time!GMA$86","v":0},{"$f":"Time!GMB$86","v":0},{"$f":"Time!GMC$86","v":0},{"$f":"Time!GMD$86","v":0},{"$f":"Time!GME$86","v":0},{"$f":"Time!GMF$86","v":0},{"$f":"Time!GMG$86","v":0},{"$f":"Time!GMH$86","v":0},{"$f":"Time!GMI$86","v":0},{"$f":"Time!GMJ$86","v":0},{"$f":"Time!GMK$86","v":0},{"$f":"Time!GML$86","v":0},{"$f":"Time!GMM$86","v":0},{"$f":"Time!GMN$86","v":0},{"$f":"Time!GMO$86","v":0},{"$f":"Time!GMP$86","v":0},{"$f":"Time!GMQ$86","v":0},{"$f":"Time!GMR$86","v":0},{"$f":"Time!GMS$86","v":0},{"$f":"Time!GMT$86","v":0},{"$f":"Time!GMU$86","v":0},{"$f":"Time!GMV$86","v":0},{"$f":"Time!GMW$86","v":0},{"$f":"Time!GMX$86","v":0},{"$f":"Time!GMY$86","v":0},{"$f":"Time!GMZ$86","v":0},{"$f":"Time!GNA$86","v":0},{"$f":"Time!GNB$86","v":0},{"$f":"Time!GNC$86","v":0},{"$f":"Time!GND$86","v":0},{"$f":"Time!GNE$86","v":0},{"$f":"Time!GNF$86","v":0},{"$f":"Time!GNG$86","v":0},{"$f":"Time!GNH$86","v":0},{"$f":"Time!GNI$86","v":0},{"$f":"Time!GNJ$86","v":0},{"$f":"Time!GNK$86","v":0},{"$f":"Time!GNL$86","v":0},{"$f":"Time!GNM$86","v":0},{"$f":"Time!GNN$86","v":0},{"$f":"Time!GNO$86","v":0},{"$f":"Time!GNP$86","v":0},{"$f":"Time!GNQ$86","v":0},{"$f":"Time!GNR$86","v":0},{"$f":"Time!GNS$86","v":0},{"$f":"Time!GNT$86","v":0},{"$f":"Time!GNU$86","v":0},{"$f":"Time!GNV$86","v":0},{"$f":"Time!GNW$86","v":0},{"$f":"Time!GNX$86","v":0},{"$f":"Time!GNY$86","v":0},{"$f":"Time!GNZ$86","v":0},{"$f":"Time!GOA$86","v":0},{"$f":"Time!GOB$86","v":0},{"$f":"Time!GOC$86","v":0},{"$f":"Time!GOD$86","v":0},{"$f":"Time!GOE$86","v":0},{"$f":"Time!GOF$86","v":0},{"$f":"Time!GOG$86","v":0},{"$f":"Time!GOH$86","v":0},{"$f":"Time!GOI$86","v":0},{"$f":"Time!GOJ$86","v":0},{"$f":"Time!GOK$86","v":0},{"$f":"Time!GOL$86","v":0},{"$f":"Time!GOM$86","v":0},{"$f":"Time!GON$86","v":0},{"$f":"Time!GOO$86","v":0},{"$f":"Time!GOP$86","v":0},{"$f":"Time!GOQ$86","v":0},{"$f":"Time!GOR$86","v":0},{"$f":"Time!GOS$86","v":0},{"$f":"Time!GOT$86","v":0},{"$f":"Time!GOU$86","v":0},{"$f":"Time!GOV$86","v":0},{"$f":"Time!GOW$86","v":0},{"$f":"Time!GOX$86","v":0},{"$f":"Time!GOY$86","v":0},{"$f":"Time!GOZ$86","v":0},{"$f":"Time!GPA$86","v":0},{"$f":"Time!GPB$86","v":0},{"$f":"Time!GPC$86","v":0},{"$f":"Time!GPD$86","v":0},{"$f":"Time!GPE$86","v":0},{"$f":"Time!GPF$86","v":0},{"$f":"Time!GPG$86","v":0},{"$f":"Time!GPH$86","v":0},{"$f":"Time!GPI$86","v":0},{"$f":"Time!GPJ$86","v":0},{"$f":"Time!GPK$86","v":0},{"$f":"Time!GPL$86","v":0},{"$f":"Time!GPM$86","v":0},{"$f":"Time!GPN$86","v":0},{"$f":"Time!GPO$86","v":0},{"$f":"Time!GPP$86","v":0},{"$f":"Time!GPQ$86","v":0},{"$f":"Time!GPR$86","v":0},{"$f":"Time!GPS$86","v":0},{"$f":"Time!GPT$86","v":0},{"$f":"Time!GPU$86","v":0},{"$f":"Time!GPV$86","v":0},{"$f":"Time!GPW$86","v":0},{"$f":"Time!GPX$86","v":0},{"$f":"Time!GPY$86","v":0},{"$f":"Time!GPZ$86","v":0},{"$f":"Time!GQA$86","v":0},{"$f":"Time!GQB$86","v":0},{"$f":"Time!GQC$86","v":0},{"$f":"Time!GQD$86","v":0},{"$f":"Time!GQE$86","v":0},{"$f":"Time!GQF$86","v":0},{"$f":"Time!GQG$86","v":0},{"$f":"Time!GQH$86","v":0},{"$f":"Time!GQI$86","v":0},{"$f":"Time!GQJ$86","v":0},{"$f":"Time!GQK$86","v":0},{"$f":"Time!GQL$86","v":0},{"$f":"Time!GQM$86","v":0},{"$f":"Time!GQN$86","v":0},{"$f":"Time!GQO$86","v":0},{"$f":"Time!GQP$86","v":0},{"$f":"Time!GQQ$86","v":0},{"$f":"Time!GQR$86","v":0},{"$f":"Time!GQS$86","v":0},{"$f":"Time!GQT$86","v":0},{"$f":"Time!GQU$86","v":0},{"$f":"Time!GQV$86","v":0},{"$f":"Time!GQW$86","v":0},{"$f":"Time!GQX$86","v":0},{"$f":"Time!GQY$86","v":0},{"$f":"Time!GQZ$86","v":0},{"$f":"Time!GRA$86","v":0},{"$f":"Time!GRB$86","v":0},{"$f":"Time!GRC$86","v":0},{"$f":"Time!GRD$86","v":0},{"$f":"Time!GRE$86","v":0},{"$f":"Time!GRF$86","v":0},{"$f":"Time!GRG$86","v":0},{"$f":"Time!GRH$86","v":0},{"$f":"Time!GRI$86","v":0},{"$f":"Time!GRJ$86","v":0},{"$f":"Time!GRK$86","v":0},{"$f":"Time!GRL$86","v":0},{"$f":"Time!GRM$86","v":0},{"$f":"Time!GRN$86","v":0},{"$f":"Time!GRO$86","v":0},{"$f":"Time!GRP$86","v":0},{"$f":"Time!GRQ$86","v":0},{"$f":"Time!GRR$86","v":0},{"$f":"Time!GRS$86","v":0},{"$f":"Time!GRT$86","v":0},{"$f":"Time!GRU$86","v":0},{"$f":"Time!GRV$86","v":0},{"$f":"Time!GRW$86","v":0},{"$f":"Time!GRX$86","v":0},{"$f":"Time!GRY$86","v":0},{"$f":"Time!GRZ$86","v":0},{"$f":"Time!GSA$86","v":0},{"$f":"Time!GSB$86","v":0},{"$f":"Time!GSC$86","v":0},{"$f":"Time!GSD$86","v":0},{"$f":"Time!GSE$86","v":0},{"$f":"Time!GSF$86","v":0},{"$f":"Time!GSG$86","v":0},{"$f":"Time!GSH$86","v":0},{"$f":"Time!GSI$86","v":0},{"$f":"Time!GSJ$86","v":0},{"$f":"Time!GSK$86","v":0},{"$f":"Time!GSL$86","v":0},{"$f":"Time!GSM$86","v":0},{"$f":"Time!GSN$86","v":0},{"$f":"Time!GSO$86","v":0},{"$f":"Time!GSP$86","v":0},{"$f":"Time!GSQ$86","v":0},{"$f":"Time!GSR$86","v":0},{"$f":"Time!GSS$86","v":0},{"$f":"Time!GST$86","v":0},{"$f":"Time!GSU$86","v":0},{"$f":"Time!GSV$86","v":0},{"$f":"Time!GSW$86","v":0},{"$f":"Time!GSX$86","v":0},{"$f":"Time!GSY$86","v":0},{"$f":"Time!GSZ$86","v":0},{"$f":"Time!GTA$86","v":0},{"$f":"Time!GTB$86","v":0},{"$f":"Time!GTC$86","v":0},{"$f":"Time!GTD$86","v":0},{"$f":"Time!GTE$86","v":0},{"$f":"Time!GTF$86","v":0},{"$f":"Time!GTG$86","v":0},{"$f":"Time!GTH$86","v":0},{"$f":"Time!GTI$86","v":0},{"$f":"Time!GTJ$86","v":0},{"$f":"Time!GTK$86","v":0},{"$f":"Time!GTL$86","v":0},{"$f":"Time!GTM$86","v":0},{"$f":"Time!GTN$86","v":0},{"$f":"Time!GTO$86","v":0},{"$f":"Time!GTP$86","v":0},{"$f":"Time!GTQ$86","v":0},{"$f":"Time!GTR$86","v":0},{"$f":"Time!GTS$86","v":0},{"$f":"Time!GTT$86","v":0},{"$f":"Time!GTU$86","v":0},{"$f":"Time!GTV$86","v":0},{"$f":"Time!GTW$86","v":0},{"$f":"Time!GTX$86","v":0},{"$f":"Time!GTY$86","v":0},{"$f":"Time!GTZ$86","v":0},{"$f":"Time!GUA$86","v":0},{"$f":"Time!GUB$86","v":0},{"$f":"Time!GUC$86","v":0},{"$f":"Time!GUD$86","v":0},{"$f":"Time!GUE$86","v":0},{"$f":"Time!GUF$86","v":0},{"$f":"Time!GUG$86","v":0},{"$f":"Time!GUH$86","v":0},{"$f":"Time!GUI$86","v":0},{"$f":"Time!GUJ$86","v":0},{"$f":"Time!GUK$86","v":0},{"$f":"Time!GUL$86","v":0},{"$f":"Time!GUM$86","v":0},{"$f":"Time!GUN$86","v":0},{"$f":"Time!GUO$86","v":0},{"$f":"Time!GUP$86","v":0},{"$f":"Time!GUQ$86","v":0},{"$f":"Time!GUR$86","v":0},{"$f":"Time!GUS$86","v":0},{"$f":"Time!GUT$86","v":0},{"$f":"Time!GUU$86","v":0},{"$f":"Time!GUV$86","v":0},{"$f":"Time!GUW$86","v":0},{"$f":"Time!GUX$86","v":0},{"$f":"Time!GUY$86","v":0},{"$f":"Time!GUZ$86","v":0},{"$f":"Time!GVA$86","v":0},{"$f":"Time!GVB$86","v":0},{"$f":"Time!GVC$86","v":0},{"$f":"Time!GVD$86","v":0},{"$f":"Time!GVE$86","v":0},{"$f":"Time!GVF$86","v":0},{"$f":"Time!GVG$86","v":0},{"$f":"Time!GVH$86","v":0},{"$f":"Time!GVI$86","v":0},{"$f":"Time!GVJ$86","v":0},{"$f":"Time!GVK$86","v":0},{"$f":"Time!GVL$86","v":0},{"$f":"Time!GVM$86","v":0},{"$f":"Time!GVN$86","v":0},{"$f":"Time!GVO$86","v":0},{"$f":"Time!GVP$86","v":0},{"$f":"Time!GVQ$86","v":0},{"$f":"Time!GVR$86","v":0},{"$f":"Time!GVS$86","v":0},{"$f":"Time!GVT$86","v":0},{"$f":"Time!GVU$86","v":0},{"$f":"Time!GVV$86","v":0},{"$f":"Time!GVW$86","v":0},{"$f":"Time!GVX$86","v":0},{"$f":"Time!GVY$86","v":0},{"$f":"Time!GVZ$86","v":0},{"$f":"Time!GWA$86","v":0},{"$f":"Time!GWB$86","v":0},{"$f":"Time!GWC$86","v":0},{"$f":"Time!GWD$86","v":0},{"$f":"Time!GWE$86","v":0},{"$f":"Time!GWF$86","v":0},{"$f":"Time!GWG$86","v":0},{"$f":"Time!GWH$86","v":0},{"$f":"Time!GWI$86","v":0},{"$f":"Time!GWJ$86","v":0},{"$f":"Time!GWK$86","v":0},{"$f":"Time!GWL$86","v":0},{"$f":"Time!GWM$86","v":0},{"$f":"Time!GWN$86","v":0},{"$f":"Time!GWO$86","v":0},{"$f":"Time!GWP$86","v":0},{"$f":"Time!GWQ$86","v":0},{"$f":"Time!GWR$86","v":0},{"$f":"Time!GWS$86","v":0},{"$f":"Time!GWT$86","v":0},{"$f":"Time!GWU$86","v":0},{"$f":"Time!GWV$86","v":0},{"$f":"Time!GWW$86","v":0},{"$f":"Time!GWX$86","v":0},{"$f":"Time!GWY$86","v":0},{"$f":"Time!GWZ$86","v":0},{"$f":"Time!GXA$86","v":0},{"$f":"Time!GXB$86","v":0},{"$f":"Time!GXC$86","v":0},{"$f":"Time!GXD$86","v":0},{"$f":"Time!GXE$86","v":0},{"$f":"Time!GXF$86","v":0},{"$f":"Time!GXG$86","v":0},{"$f":"Time!GXH$86","v":0},{"$f":"Time!GXI$86","v":0},{"$f":"Time!GXJ$86","v":0},{"$f":"Time!GXK$86","v":0},{"$f":"Time!GXL$86","v":0},{"$f":"Time!GXM$86","v":0},{"$f":"Time!GXN$86","v":0},{"$f":"Time!GXO$86","v":0},{"$f":"Time!GXP$86","v":0},{"$f":"Time!GXQ$86","v":0},{"$f":"Time!GXR$86","v":0},{"$f":"Time!GXS$86","v":0},{"$f":"Time!GXT$86","v":0},{"$f":"Time!GXU$86","v":0},{"$f":"Time!GXV$86","v":0},{"$f":"Time!GXW$86","v":0},{"$f":"Time!GXX$86","v":0},{"$f":"Time!GXY$86","v":0},{"$f":"Time!GXZ$86","v":0},{"$f":"Time!GYA$86","v":0},{"$f":"Time!GYB$86","v":0},{"$f":"Time!GYC$86","v":0},{"$f":"Time!GYD$86","v":0},{"$f":"Time!GYE$86","v":0},{"$f":"Time!GYF$86","v":0},{"$f":"Time!GYG$86","v":0},{"$f":"Time!GYH$86","v":0},{"$f":"Time!GYI$86","v":0},{"$f":"Time!GYJ$86","v":0},{"$f":"Time!GYK$86","v":0},{"$f":"Time!GYL$86","v":0},{"$f":"Time!GYM$86","v":0},{"$f":"Time!GYN$86","v":0},{"$f":"Time!GYO$86","v":0},{"$f":"Time!GYP$86","v":0},{"$f":"Time!GYQ$86","v":0},{"$f":"Time!GYR$86","v":0},{"$f":"Time!GYS$86","v":0},{"$f":"Time!GYT$86","v":0},{"$f":"Time!GYU$86","v":0},{"$f":"Time!GYV$86","v":0},{"$f":"Time!GYW$86","v":0},{"$f":"Time!GYX$86","v":0},{"$f":"Time!GYY$86","v":0},{"$f":"Time!GYZ$86","v":0},{"$f":"Time!GZA$86","v":0},{"$f":"Time!GZB$86","v":0},{"$f":"Time!GZC$86","v":0},{"$f":"Time!GZD$86","v":0},{"$f":"Time!GZE$86","v":0},{"$f":"Time!GZF$86","v":0},{"$f":"Time!GZG$86","v":0},{"$f":"Time!GZH$86","v":0},{"$f":"Time!GZI$86","v":0},{"$f":"Time!GZJ$86","v":0},{"$f":"Time!GZK$86","v":0},{"$f":"Time!GZL$86","v":0},{"$f":"Time!GZM$86","v":0},{"$f":"Time!GZN$86","v":0},{"$f":"Time!GZO$86","v":0},{"$f":"Time!GZP$86","v":0},{"$f":"Time!GZQ$86","v":0},{"$f":"Time!GZR$86","v":0},{"$f":"Time!GZS$86","v":0},{"$f":"Time!GZT$86","v":0},{"$f":"Time!GZU$86","v":0},{"$f":"Time!GZV$86","v":0},{"$f":"Time!GZW$86","v":0},{"$f":"Time!GZX$86","v":0},{"$f":"Time!GZY$86","v":0},{"$f":"Time!GZZ$86","v":0},{"$f":"Time!HAA$86","v":0},{"$f":"Time!HAB$86","v":0},{"$f":"Time!HAC$86","v":0},{"$f":"Time!HAD$86","v":0},{"$f":"Time!HAE$86","v":0},{"$f":"Time!HAF$86","v":0},{"$f":"Time!HAG$86","v":0},{"$f":"Time!HAH$86","v":0},{"$f":"Time!HAI$86","v":0},{"$f":"Time!HAJ$86","v":0},{"$f":"Time!HAK$86","v":0},{"$f":"Time!HAL$86","v":0},{"$f":"Time!HAM$86","v":0},{"$f":"Time!HAN$86","v":0},{"$f":"Time!HAO$86","v":0},{"$f":"Time!HAP$86","v":0},{"$f":"Time!HAQ$86","v":0},{"$f":"Time!HAR$86","v":0},{"$f":"Time!HAS$86","v":0},{"$f":"Time!HAT$86","v":0},{"$f":"Time!HAU$86","v":0},{"$f":"Time!HAV$86","v":0},{"$f":"Time!HAW$86","v":0},{"$f":"Time!HAX$86","v":0},{"$f":"Time!HAY$86","v":0},{"$f":"Time!HAZ$86","v":0},{"$f":"Time!HBA$86","v":0},{"$f":"Time!HBB$86","v":0},{"$f":"Time!HBC$86","v":0},{"$f":"Time!HBD$86","v":0},{"$f":"Time!HBE$86","v":0},{"$f":"Time!HBF$86","v":0},{"$f":"Time!HBG$86","v":0},{"$f":"Time!HBH$86","v":0},{"$f":"Time!HBI$86","v":0},{"$f":"Time!HBJ$86","v":0},{"$f":"Time!HBK$86","v":0},{"$f":"Time!HBL$86","v":0},{"$f":"Time!HBM$86","v":0},{"$f":"Time!HBN$86","v":0},{"$f":"Time!HBO$86","v":0},{"$f":"Time!HBP$86","v":0},{"$f":"Time!HBQ$86","v":0},{"$f":"Time!HBR$86","v":0},{"$f":"Time!HBS$86","v":0},{"$f":"Time!HBT$86","v":0},{"$f":"Time!HBU$86","v":0},{"$f":"Time!HBV$86","v":0},{"$f":"Time!HBW$86","v":0},{"$f":"Time!HBX$86","v":0},{"$f":"Time!HBY$86","v":0},{"$f":"Time!HBZ$86","v":0},{"$f":"Time!HCA$86","v":0},{"$f":"Time!HCB$86","v":0},{"$f":"Time!HCC$86","v":0},{"$f":"Time!HCD$86","v":0},{"$f":"Time!HCE$86","v":0},{"$f":"Time!HCF$86","v":0},{"$f":"Time!HCG$86","v":0},{"$f":"Time!HCH$86","v":0},{"$f":"Time!HCI$86","v":0},{"$f":"Time!HCJ$86","v":0},{"$f":"Time!HCK$86","v":0},{"$f":"Time!HCL$86","v":0},{"$f":"Time!HCM$86","v":0},{"$f":"Time!HCN$86","v":0},{"$f":"Time!HCO$86","v":0},{"$f":"Time!HCP$86","v":0},{"$f":"Time!HCQ$86","v":0},{"$f":"Time!HCR$86","v":0},{"$f":"Time!HCS$86","v":0},{"$f":"Time!HCT$86","v":0},{"$f":"Time!HCU$86","v":0},{"$f":"Time!HCV$86","v":0},{"$f":"Time!HCW$86","v":0},{"$f":"Time!HCX$86","v":0},{"$f":"Time!HCY$86","v":0},{"$f":"Time!HCZ$86","v":0},{"$f":"Time!HDA$86","v":0},{"$f":"Time!HDB$86","v":0},{"$f":"Time!HDC$86","v":0},{"$f":"Time!HDD$86","v":0},{"$f":"Time!HDE$86","v":0},{"$f":"Time!HDF$86","v":0},{"$f":"Time!HDG$86","v":0},{"$f":"Time!HDH$86","v":0},{"$f":"Time!HDI$86","v":0},{"$f":"Time!HDJ$86","v":0},{"$f":"Time!HDK$86","v":0},{"$f":"Time!HDL$86","v":0},{"$f":"Time!HDM$86","v":0},{"$f":"Time!HDN$86","v":0},{"$f":"Time!HDO$86","v":0},{"$f":"Time!HDP$86","v":0},{"$f":"Time!HDQ$86","v":0},{"$f":"Time!HDR$86","v":0},{"$f":"Time!HDS$86","v":0},{"$f":"Time!HDT$86","v":0},{"$f":"Time!HDU$86","v":0},{"$f":"Time!HDV$86","v":0},{"$f":"Time!HDW$86","v":0},{"$f":"Time!HDX$86","v":0},{"$f":"Time!HDY$86","v":0},{"$f":"Time!HDZ$86","v":0},{"$f":"Time!HEA$86","v":0},{"$f":"Time!HEB$86","v":0},{"$f":"Time!HEC$86","v":0},{"$f":"Time!HED$86","v":0},{"$f":"Time!HEE$86","v":0},{"$f":"Time!HEF$86","v":0},{"$f":"Time!HEG$86","v":0},{"$f":"Time!HEH$86","v":0},{"$f":"Time!HEI$86","v":0},{"$f":"Time!HEJ$86","v":0},{"$f":"Time!HEK$86","v":0},{"$f":"Time!HEL$86","v":0},{"$f":"Time!HEM$86","v":0},{"$f":"Time!HEN$86","v":0},{"$f":"Time!HEO$86","v":0},{"$f":"Time!HEP$86","v":0},{"$f":"Time!HEQ$86","v":0},{"$f":"Time!HER$86","v":0},{"$f":"Time!HES$86","v":0},{"$f":"Time!HET$86","v":0},{"$f":"Time!HEU$86","v":0},{"$f":"Time!HEV$86","v":0},{"$f":"Time!HEW$86","v":0},{"$f":"Time!HEX$86","v":0},{"$f":"Time!HEY$86","v":0},{"$f":"Time!HEZ$86","v":0},{"$f":"Time!HFA$86","v":0},{"$f":"Time!HFB$86","v":0},{"$f":"Time!HFC$86","v":0},{"$f":"Time!HFD$86","v":0},{"$f":"Time!HFE$86","v":0},{"$f":"Time!HFF$86","v":0},{"$f":"Time!HFG$86","v":0},{"$f":"Time!HFH$86","v":0},{"$f":"Time!HFI$86","v":0},{"$f":"Time!HFJ$86","v":0},{"$f":"Time!HFK$86","v":0},{"$f":"Time!HFL$86","v":0},{"$f":"Time!HFM$86","v":0},{"$f":"Time!HFN$86","v":0},{"$f":"Time!HFO$86","v":0},{"$f":"Time!HFP$86","v":0},{"$f":"Time!HFQ$86","v":0},{"$f":"Time!HFR$86","v":0},{"$f":"Time!HFS$86","v":0},{"$f":"Time!HFT$86","v":0},{"$f":"Time!HFU$86","v":0},{"$f":"Time!HFV$86","v":0},{"$f":"Time!HFW$86","v":0},{"$f":"Time!HFX$86","v":0},{"$f":"Time!HFY$86","v":0},{"$f":"Time!HFZ$86","v":0},{"$f":"Time!HGA$86","v":0},{"$f":"Time!HGB$86","v":0},{"$f":"Time!HGC$86","v":0},{"$f":"Time!HGD$86","v":0},{"$f":"Time!HGE$86","v":0},{"$f":"Time!HGF$86","v":0},{"$f":"Time!HGG$86","v":0},{"$f":"Time!HGH$86","v":0},{"$f":"Time!HGI$86","v":0},{"$f":"Time!HGJ$86","v":0},{"$f":"Time!HGK$86","v":0},{"$f":"Time!HGL$86","v":0},{"$f":"Time!HGM$86","v":0},{"$f":"Time!HGN$86","v":0},{"$f":"Time!HGO$86","v":0},{"$f":"Time!HGP$86","v":0},{"$f":"Time!HGQ$86","v":0},{"$f":"Time!HGR$86","v":0},{"$f":"Time!HGS$86","v":0},{"$f":"Time!HGT$86","v":0},{"$f":"Time!HGU$86","v":0},{"$f":"Time!HGV$86","v":0},{"$f":"Time!HGW$86","v":0},{"$f":"Time!HGX$86","v":0},{"$f":"Time!HGY$86","v":0},{"$f":"Time!HGZ$86","v":0},{"$f":"Time!HHA$86","v":0},{"$f":"Time!HHB$86","v":0},{"$f":"Time!HHC$86","v":0},{"$f":"Time!HHD$86","v":0},{"$f":"Time!HHE$86","v":0},{"$f":"Time!HHF$86","v":0},{"$f":"Time!HHG$86","v":0},{"$f":"Time!HHH$86","v":0},{"$f":"Time!HHI$86","v":0},{"$f":"Time!HHJ$86","v":0},{"$f":"Time!HHK$86","v":0},{"$f":"Time!HHL$86","v":0},{"$f":"Time!HHM$86","v":0},{"$f":"Time!HHN$86","v":0},{"$f":"Time!HHO$86","v":0},{"$f":"Time!HHP$86","v":0},{"$f":"Time!HHQ$86","v":0},{"$f":"Time!HHR$86","v":0},{"$f":"Time!HHS$86","v":0},{"$f":"Time!HHT$86","v":0},{"$f":"Time!HHU$86","v":0},{"$f":"Time!HHV$86","v":0},{"$f":"Time!HHW$86","v":0},{"$f":"Time!HHX$86","v":0},{"$f":"Time!HHY$86","v":0},{"$f":"Time!HHZ$86","v":0},{"$f":"Time!HIA$86","v":0},{"$f":"Time!HIB$86","v":0},{"$f":"Time!HIC$86","v":0},{"$f":"Time!HID$86","v":0},{"$f":"Time!HIE$86","v":0},{"$f":"Time!HIF$86","v":0},{"$f":"Time!HIG$86","v":0},{"$f":"Time!HIH$86","v":0},{"$f":"Time!HII$86","v":0},{"$f":"Time!HIJ$86","v":0},{"$f":"Time!HIK$86","v":0},{"$f":"Time!HIL$86","v":0},{"$f":"Time!HIM$86","v":0},{"$f":"Time!HIN$86","v":0},{"$f":"Time!HIO$86","v":0},{"$f":"Time!HIP$86","v":0},{"$f":"Time!HIQ$86","v":0},{"$f":"Time!HIR$86","v":0},{"$f":"Time!HIS$86","v":0},{"$f":"Time!HIT$86","v":0},{"$f":"Time!HIU$86","v":0},{"$f":"Time!HIV$86","v":0},{"$f":"Time!HIW$86","v":0},{"$f":"Time!HIX$86","v":0},{"$f":"Time!HIY$86","v":0},{"$f":"Time!HIZ$86","v":0},{"$f":"Time!HJA$86","v":0},{"$f":"Time!HJB$86","v":0},{"$f":"Time!HJC$86","v":0},{"$f":"Time!HJD$86","v":0},{"$f":"Time!HJE$86","v":0},{"$f":"Time!HJF$86","v":0},{"$f":"Time!HJG$86","v":0},{"$f":"Time!HJH$86","v":0},{"$f":"Time!HJI$86","v":0},{"$f":"Time!HJJ$86","v":0},{"$f":"Time!HJK$86","v":0},{"$f":"Time!HJL$86","v":0},{"$f":"Time!HJM$86","v":0},{"$f":"Time!HJN$86","v":0},{"$f":"Time!HJO$86","v":0},{"$f":"Time!HJP$86","v":0},{"$f":"Time!HJQ$86","v":0},{"$f":"Time!HJR$86","v":0},{"$f":"Time!HJS$86","v":0},{"$f":"Time!HJT$86","v":0},{"$f":"Time!HJU$86","v":0},{"$f":"Time!HJV$86","v":0},{"$f":"Time!HJW$86","v":0},{"$f":"Time!HJX$86","v":0},{"$f":"Time!HJY$86","v":0},{"$f":"Time!HJZ$86","v":0},{"$f":"Time!HKA$86","v":0},{"$f":"Time!HKB$86","v":0},{"$f":"Time!HKC$86","v":0},{"$f":"Time!HKD$86","v":0},{"$f":"Time!HKE$86","v":0},{"$f":"Time!HKF$86","v":0},{"$f":"Time!HKG$86","v":0},{"$f":"Time!HKH$86","v":0},{"$f":"Time!HKI$86","v":0},{"$f":"Time!HKJ$86","v":0},{"$f":"Time!HKK$86","v":0},{"$f":"Time!HKL$86","v":0},{"$f":"Time!HKM$86","v":0},{"$f":"Time!HKN$86","v":0},{"$f":"Time!HKO$86","v":0},{"$f":"Time!HKP$86","v":0},{"$f":"Time!HKQ$86","v":0},{"$f":"Time!HKR$86","v":0},{"$f":"Time!HKS$86","v":0},{"$f":"Time!HKT$86","v":0},{"$f":"Time!HKU$86","v":0},{"$f":"Time!HKV$86","v":0},{"$f":"Time!HKW$86","v":0},{"$f":"Time!HKX$86","v":0},{"$f":"Time!HKY$86","v":0},{"$f":"Time!HKZ$86","v":0},{"$f":"Time!HLA$86","v":0},{"$f":"Time!HLB$86","v":0},{"$f":"Time!HLC$86","v":0},{"$f":"Time!HLD$86","v":0},{"$f":"Time!HLE$86","v":0},{"$f":"Time!HLF$86","v":0},{"$f":"Time!HLG$86","v":0},{"$f":"Time!HLH$86","v":0},{"$f":"Time!HLI$86","v":0},{"$f":"Time!HLJ$86","v":0},{"$f":"Time!HLK$86","v":0},{"$f":"Time!HLL$86","v":0},{"$f":"Time!HLM$86","v":0},{"$f":"Time!HLN$86","v":0},{"$f":"Time!HLO$86","v":0},{"$f":"Time!HLP$86","v":0},{"$f":"Time!HLQ$86","v":0},{"$f":"Time!HLR$86","v":0},{"$f":"Time!HLS$86","v":0},{"$f":"Time!HLT$86","v":0},{"$f":"Time!HLU$86","v":0},{"$f":"Time!HLV$86","v":0},{"$f":"Time!HLW$86","v":0},{"$f":"Time!HLX$86","v":0},{"$f":"Time!HLY$86","v":0},{"$f":"Time!HLZ$86","v":0},{"$f":"Time!HMA$86","v":0},{"$f":"Time!HMB$86","v":0},{"$f":"Time!HMC$86","v":0},{"$f":"Time!HMD$86","v":0},{"$f":"Time!HME$86","v":0},{"$f":"Time!HMF$86","v":0},{"$f":"Time!HMG$86","v":0},{"$f":"Time!HMH$86","v":0},{"$f":"Time!HMI$86","v":0},{"$f":"Time!HMJ$86","v":0},{"$f":"Time!HMK$86","v":0},{"$f":"Time!HML$86","v":0},{"$f":"Time!HMM$86","v":0},{"$f":"Time!HMN$86","v":0},{"$f":"Time!HMO$86","v":0},{"$f":"Time!HMP$86","v":0},{"$f":"Time!HMQ$86","v":0},{"$f":"Time!HMR$86","v":0},{"$f":"Time!HMS$86","v":0},{"$f":"Time!HMT$86","v":0},{"$f":"Time!HMU$86","v":0},{"$f":"Time!HMV$86","v":0},{"$f":"Time!HMW$86","v":0},{"$f":"Time!HMX$86","v":0},{"$f":"Time!HMY$86","v":0},{"$f":"Time!HMZ$86","v":0},{"$f":"Time!HNA$86","v":0},{"$f":"Time!HNB$86","v":0},{"$f":"Time!HNC$86","v":0},{"$f":"Time!HND$86","v":0},{"$f":"Time!HNE$86","v":0},{"$f":"Time!HNF$86","v":0},{"$f":"Time!HNG$86","v":0},{"$f":"Time!HNH$86","v":0},{"$f":"Time!HNI$86","v":0},{"$f":"Time!HNJ$86","v":0},{"$f":"Time!HNK$86","v":0},{"$f":"Time!HNL$86","v":0},{"$f":"Time!HNM$86","v":0},{"$f":"Time!HNN$86","v":0},{"$f":"Time!HNO$86","v":0},{"$f":"Time!HNP$86","v":0},{"$f":"Time!HNQ$86","v":0},{"$f":"Time!HNR$86","v":0},{"$f":"Time!HNS$86","v":0},{"$f":"Time!HNT$86","v":0},{"$f":"Time!HNU$86","v":0},{"$f":"Time!HNV$86","v":0},{"$f":"Time!HNW$86","v":0},{"$f":"Time!HNX$86","v":0},{"$f":"Time!HNY$86","v":0},{"$f":"Time!HNZ$86","v":0},{"$f":"Time!HOA$86","v":0},{"$f":"Time!HOB$86","v":0},{"$f":"Time!HOC$86","v":0},{"$f":"Time!HOD$86","v":0},{"$f":"Time!HOE$86","v":0},{"$f":"Time!HOF$86","v":0},{"$f":"Time!HOG$86","v":0},{"$f":"Time!HOH$86","v":0},{"$f":"Time!HOI$86","v":0},{"$f":"Time!HOJ$86","v":0},{"$f":"Time!HOK$86","v":0},{"$f":"Time!HOL$86","v":0},{"$f":"Time!HOM$86","v":0},{"$f":"Time!HON$86","v":0},{"$f":"Time!HOO$86","v":0},{"$f":"Time!HOP$86","v":0},{"$f":"Time!HOQ$86","v":0},{"$f":"Time!HOR$86","v":0},{"$f":"Time!HOS$86","v":0},{"$f":"Time!HOT$86","v":0},{"$f":"Time!HOU$86","v":0},{"$f":"Time!HOV$86","v":0},{"$f":"Time!HOW$86","v":0},{"$f":"Time!HOX$86","v":0},{"$f":"Time!HOY$86","v":0},{"$f":"Time!HOZ$86","v":0},{"$f":"Time!HPA$86","v":0},{"$f":"Time!HPB$86","v":0},{"$f":"Time!HPC$86","v":0},{"$f":"Time!HPD$86","v":0},{"$f":"Time!HPE$86","v":0},{"$f":"Time!HPF$86","v":0},{"$f":"Time!HPG$86","v":0},{"$f":"Time!HPH$86","v":0},{"$f":"Time!HPI$86","v":0},{"$f":"Time!HPJ$86","v":0},{"$f":"Time!HPK$86","v":0},{"$f":"Time!HPL$86","v":0},{"$f":"Time!HPM$86","v":0},{"$f":"Time!HPN$86","v":0},{"$f":"Time!HPO$86","v":0},{"$f":"Time!HPP$86","v":0},{"$f":"Time!HPQ$86","v":0},{"$f":"Time!HPR$86","v":0},{"$f":"Time!HPS$86","v":0},{"$f":"Time!HPT$86","v":0},{"$f":"Time!HPU$86","v":0},{"$f":"Time!HPV$86","v":0},{"$f":"Time!HPW$86","v":0},{"$f":"Time!HPX$86","v":0},{"$f":"Time!HPY$86","v":0},{"$f":"Time!HPZ$86","v":0},{"$f":"Time!HQA$86","v":0},{"$f":"Time!HQB$86","v":0},{"$f":"Time!HQC$86","v":0},{"$f":"Time!HQD$86","v":0},{"$f":"Time!HQE$86","v":0},{"$f":"Time!HQF$86","v":0},{"$f":"Time!HQG$86","v":0},{"$f":"Time!HQH$86","v":0},{"$f":"Time!HQI$86","v":0},{"$f":"Time!HQJ$86","v":0},{"$f":"Time!HQK$86","v":0},{"$f":"Time!HQL$86","v":0},{"$f":"Time!HQM$86","v":0},{"$f":"Time!HQN$86","v":0},{"$f":"Time!HQO$86","v":0},{"$f":"Time!HQP$86","v":0},{"$f":"Time!HQQ$86","v":0},{"$f":"Time!HQR$86","v":0},{"$f":"Time!HQS$86","v":0},{"$f":"Time!HQT$86","v":0},{"$f":"Time!HQU$86","v":0},{"$f":"Time!HQV$86","v":0},{"$f":"Time!HQW$86","v":0},{"$f":"Time!HQX$86","v":0},{"$f":"Time!HQY$86","v":0},{"$f":"Time!HQZ$86","v":0},{"$f":"Time!HRA$86","v":0},{"$f":"Time!HRB$86","v":0},{"$f":"Time!HRC$86","v":0},{"$f":"Time!HRD$86","v":0},{"$f":"Time!HRE$86","v":0},{"$f":"Time!HRF$86","v":0},{"$f":"Time!HRG$86","v":0},{"$f":"Time!HRH$86","v":0},{"$f":"Time!HRI$86","v":0},{"$f":"Time!HRJ$86","v":0},{"$f":"Time!HRK$86","v":0},{"$f":"Time!HRL$86","v":0},{"$f":"Time!HRM$86","v":0},{"$f":"Time!HRN$86","v":0},{"$f":"Time!HRO$86","v":0},{"$f":"Time!HRP$86","v":0},{"$f":"Time!HRQ$86","v":0},{"$f":"Time!HRR$86","v":0},{"$f":"Time!HRS$86","v":0},{"$f":"Time!HRT$86","v":0},{"$f":"Time!HRU$86","v":0},{"$f":"Time!HRV$86","v":0},{"$f":"Time!HRW$86","v":0},{"$f":"Time!HRX$86","v":0},{"$f":"Time!HRY$86","v":0},{"$f":"Time!HRZ$86","v":0},{"$f":"Time!HSA$86","v":0},{"$f":"Time!HSB$86","v":0},{"$f":"Time!HSC$86","v":0},{"$f":"Time!HSD$86","v":0},{"$f":"Time!HSE$86","v":0},{"$f":"Time!HSF$86","v":0},{"$f":"Time!HSG$86","v":0},{"$f":"Time!HSH$86","v":0},{"$f":"Time!HSI$86","v":0},{"$f":"Time!HSJ$86","v":0},{"$f":"Time!HSK$86","v":0},{"$f":"Time!HSL$86","v":0},{"$f":"Time!HSM$86","v":0},{"$f":"Time!HSN$86","v":0},{"$f":"Time!HSO$86","v":0},{"$f":"Time!HSP$86","v":0},{"$f":"Time!HSQ$86","v":0},{"$f":"Time!HSR$86","v":0},{"$f":"Time!HSS$86","v":0},{"$f":"Time!HST$86","v":0},{"$f":"Time!HSU$86","v":0},{"$f":"Time!HSV$86","v":0},{"$f":"Time!HSW$86","v":0},{"$f":"Time!HSX$86","v":0},{"$f":"Time!HSY$86","v":0},{"$f":"Time!HSZ$86","v":0},{"$f":"Time!HTA$86","v":0},{"$f":"Time!HTB$86","v":0},{"$f":"Time!HTC$86","v":0},{"$f":"Time!HTD$86","v":0},{"$f":"Time!HTE$86","v":0},{"$f":"Time!HTF$86","v":0},{"$f":"Time!HTG$86","v":0},{"$f":"Time!HTH$86","v":0},{"$f":"Time!HTI$86","v":0},{"$f":"Time!HTJ$86","v":0},{"$f":"Time!HTK$86","v":0},{"$f":"Time!HTL$86","v":0},{"$f":"Time!HTM$86","v":0},{"$f":"Time!HTN$86","v":0},{"$f":"Time!HTO$86","v":0},{"$f":"Time!HTP$86","v":0},{"$f":"Time!HTQ$86","v":0},{"$f":"Time!HTR$86","v":0},{"$f":"Time!HTS$86","v":0},{"$f":"Time!HTT$86","v":0},{"$f":"Time!HTU$86","v":0},{"$f":"Time!HTV$86","v":0},{"$f":"Time!HTW$86","v":0},{"$f":"Time!HTX$86","v":0},{"$f":"Time!HTY$86","v":0},{"$f":"Time!HTZ$86","v":0},{"$f":"Time!HUA$86","v":0},{"$f":"Time!HUB$86","v":0},{"$f":"Time!HUC$86","v":0},{"$f":"Time!HUD$86","v":0},{"$f":"Time!HUE$86","v":0},{"$f":"Time!HUF$86","v":0},{"$f":"Time!HUG$86","v":0},{"$f":"Time!HUH$86","v":0},{"$f":"Time!HUI$86","v":0},{"$f":"Time!HUJ$86","v":0},{"$f":"Time!HUK$86","v":0},{"$f":"Time!HUL$86","v":0},{"$f":"Time!HUM$86","v":0},{"$f":"Time!HUN$86","v":0},{"$f":"Time!HUO$86","v":0},{"$f":"Time!HUP$86","v":0},{"$f":"Time!HUQ$86","v":0},{"$f":"Time!HUR$86","v":0},{"$f":"Time!HUS$86","v":0},{"$f":"Time!HUT$86","v":0},{"$f":"Time!HUU$86","v":0},{"$f":"Time!HUV$86","v":0},{"$f":"Time!HUW$86","v":0},{"$f":"Time!HUX$86","v":0},{"$f":"Time!HUY$86","v":0},{"$f":"Time!HUZ$86","v":0},{"$f":"Time!HVA$86","v":0},{"$f":"Time!HVB$86","v":0},{"$f":"Time!HVC$86","v":0},{"$f":"Time!HVD$86","v":0},{"$f":"Time!HVE$86","v":0},{"$f":"Time!HVF$86","v":0},{"$f":"Time!HVG$86","v":0},{"$f":"Time!HVH$86","v":0},{"$f":"Time!HVI$86","v":0},{"$f":"Time!HVJ$86","v":0},{"$f":"Time!HVK$86","v":0},{"$f":"Time!HVL$86","v":0},{"$f":"Time!HVM$86","v":0},{"$f":"Time!HVN$86","v":0},{"$f":"Time!HVO$86","v":0},{"$f":"Time!HVP$86","v":0},{"$f":"Time!HVQ$86","v":0},{"$f":"Time!HVR$86","v":0},{"$f":"Time!HVS$86","v":0},{"$f":"Time!HVT$86","v":0},{"$f":"Time!HVU$86","v":0},{"$f":"Time!HVV$86","v":0},{"$f":"Time!HVW$86","v":0},{"$f":"Time!HVX$86","v":0},{"$f":"Time!HVY$86","v":0},{"$f":"Time!HVZ$86","v":0},{"$f":"Time!HWA$86","v":0},{"$f":"Time!HWB$86","v":0},{"$f":"Time!HWC$86","v":0},{"$f":"Time!HWD$86","v":0},{"$f":"Time!HWE$86","v":0},{"$f":"Time!HWF$86","v":0},{"$f":"Time!HWG$86","v":0},{"$f":"Time!HWH$86","v":0},{"$f":"Time!HWI$86","v":0},{"$f":"Time!HWJ$86","v":0},{"$f":"Time!HWK$86","v":0},{"$f":"Time!HWL$86","v":0},{"$f":"Time!HWM$86","v":0},{"$f":"Time!HWN$86","v":0},{"$f":"Time!HWO$86","v":0},{"$f":"Time!HWP$86","v":0},{"$f":"Time!HWQ$86","v":0},{"$f":"Time!HWR$86","v":0},{"$f":"Time!HWS$86","v":0},{"$f":"Time!HWT$86","v":0},{"$f":"Time!HWU$86","v":0},{"$f":"Time!HWV$86","v":0},{"$f":"Time!HWW$86","v":0},{"$f":"Time!HWX$86","v":0},{"$f":"Time!HWY$86","v":0},{"$f":"Time!HWZ$86","v":0},{"$f":"Time!HXA$86","v":0},{"$f":"Time!HXB$86","v":0},{"$f":"Time!HXC$86","v":0},{"$f":"Time!HXD$86","v":0},{"$f":"Time!HXE$86","v":0},{"$f":"Time!HXF$86","v":0},{"$f":"Time!HXG$86","v":0},{"$f":"Time!HXH$86","v":0},{"$f":"Time!HXI$86","v":0},{"$f":"Time!HXJ$86","v":0},{"$f":"Time!HXK$86","v":0},{"$f":"Time!HXL$86","v":0},{"$f":"Time!HXM$86","v":0},{"$f":"Time!HXN$86","v":0},{"$f":"Time!HXO$86","v":0},{"$f":"Time!HXP$86","v":0},{"$f":"Time!HXQ$86","v":0},{"$f":"Time!HXR$86","v":0},{"$f":"Time!HXS$86","v":0},{"$f":"Time!HXT$86","v":0},{"$f":"Time!HXU$86","v":0},{"$f":"Time!HXV$86","v":0},{"$f":"Time!HXW$86","v":0},{"$f":"Time!HXX$86","v":0},{"$f":"Time!HXY$86","v":0},{"$f":"Time!HXZ$86","v":0},{"$f":"Time!HYA$86","v":0},{"$f":"Time!HYB$86","v":0},{"$f":"Time!HYC$86","v":0},{"$f":"Time!HYD$86","v":0},{"$f":"Time!HYE$86","v":0},{"$f":"Time!HYF$86","v":0},{"$f":"Time!HYG$86","v":0},{"$f":"Time!HYH$86","v":0},{"$f":"Time!HYI$86","v":0},{"$f":"Time!HYJ$86","v":0},{"$f":"Time!HYK$86","v":0},{"$f":"Time!HYL$86","v":0},{"$f":"Time!HYM$86","v":0},{"$f":"Time!HYN$86","v":0},{"$f":"Time!HYO$86","v":0},{"$f":"Time!HYP$86","v":0},{"$f":"Time!HYQ$86","v":0},{"$f":"Time!HYR$86","v":0},{"$f":"Time!HYS$86","v":0},{"$f":"Time!HYT$86","v":0},{"$f":"Time!HYU$86","v":0},{"$f":"Time!HYV$86","v":0},{"$f":"Time!HYW$86","v":0},{"$f":"Time!HYX$86","v":0},{"$f":"Time!HYY$86","v":0},{"$f":"Time!HYZ$86","v":0},{"$f":"Time!HZA$86","v":0},{"$f":"Time!HZB$86","v":0},{"$f":"Time!HZC$86","v":0},{"$f":"Time!HZD$86","v":0},{"$f":"Time!HZE$86","v":0},{"$f":"Time!HZF$86","v":0},{"$f":"Time!HZG$86","v":0},{"$f":"Time!HZH$86","v":0},{"$f":"Time!HZI$86","v":0},{"$f":"Time!HZJ$86","v":0},{"$f":"Time!HZK$86","v":0},{"$f":"Time!HZL$86","v":0},{"$f":"Time!HZM$86","v":0},{"$f":"Time!HZN$86","v":0},{"$f":"Time!HZO$86","v":0},{"$f":"Time!HZP$86","v":0},{"$f":"Time!HZQ$86","v":0},{"$f":"Time!HZR$86","v":0},{"$f":"Time!HZS$86","v":0},{"$f":"Time!HZT$86","v":0},{"$f":"Time!HZU$86","v":0},{"$f":"Time!HZV$86","v":0},{"$f":"Time!HZW$86","v":0},{"$f":"Time!HZX$86","v":0},{"$f":"Time!HZY$86","v":0},{"$f":"Time!HZZ$86","v":0},{"$f":"Time!IAA$86","v":0},{"$f":"Time!IAB$86","v":0},{"$f":"Time!IAC$86","v":0},{"$f":"Time!IAD$86","v":0},{"$f":"Time!IAE$86","v":0},{"$f":"Time!IAF$86","v":0},{"$f":"Time!IAG$86","v":0},{"$f":"Time!IAH$86","v":0},{"$f":"Time!IAI$86","v":0},{"$f":"Time!IAJ$86","v":0},{"$f":"Time!IAK$86","v":0},{"$f":"Time!IAL$86","v":0},{"$f":"Time!IAM$86","v":0},{"$f":"Time!IAN$86","v":0},{"$f":"Time!IAO$86","v":0},{"$f":"Time!IAP$86","v":0},{"$f":"Time!IAQ$86","v":0},{"$f":"Time!IAR$86","v":0},{"$f":"Time!IAS$86","v":0},{"$f":"Time!IAT$86","v":0},{"$f":"Time!IAU$86","v":0},{"$f":"Time!IAV$86","v":0},{"$f":"Time!IAW$86","v":0},{"$f":"Time!IAX$86","v":0},{"$f":"Time!IAY$86","v":0},{"$f":"Time!IAZ$86","v":0},{"$f":"Time!IBA$86","v":0},{"$f":"Time!IBB$86","v":0},{"$f":"Time!IBC$86","v":0},{"$f":"Time!IBD$86","v":0},{"$f":"Time!IBE$86","v":0},{"$f":"Time!IBF$86","v":0},{"$f":"Time!IBG$86","v":0},{"$f":"Time!IBH$86","v":0},{"$f":"Time!IBI$86","v":0},{"$f":"Time!IBJ$86","v":0},{"$f":"Time!IBK$86","v":0},{"$f":"Time!IBL$86","v":0},{"$f":"Time!IBM$86","v":0},{"$f":"Time!IBN$86","v":0},{"$f":"Time!IBO$86","v":0},{"$f":"Time!IBP$86","v":0},{"$f":"Time!IBQ$86","v":0},{"$f":"Time!IBR$86","v":0},{"$f":"Time!IBS$86","v":0},{"$f":"Time!IBT$86","v":0},{"$f":"Time!IBU$86","v":0},{"$f":"Time!IBV$86","v":0},{"$f":"Time!IBW$86","v":0},{"$f":"Time!IBX$86","v":0},{"$f":"Time!IBY$86","v":0},{"$f":"Time!IBZ$86","v":0},{"$f":"Time!ICA$86","v":0},{"$f":"Time!ICB$86","v":0},{"$f":"Time!ICC$86","v":0},{"$f":"Time!ICD$86","v":0},{"$f":"Time!ICE$86","v":0},{"$f":"Time!ICF$86","v":0},{"$f":"Time!ICG$86","v":0},{"$f":"Time!ICH$86","v":0},{"$f":"Time!ICI$86","v":0},{"$f":"Time!ICJ$86","v":0},{"$f":"Time!ICK$86","v":0},{"$f":"Time!ICL$86","v":0},{"$f":"Time!ICM$86","v":0},{"$f":"Time!ICN$86","v":0},{"$f":"Time!ICO$86","v":0},{"$f":"Time!ICP$86","v":0},{"$f":"Time!ICQ$86","v":0},{"$f":"Time!ICR$86","v":0},{"$f":"Time!ICS$86","v":0},{"$f":"Time!ICT$86","v":0},{"$f":"Time!ICU$86","v":0},{"$f":"Time!ICV$86","v":0},{"$f":"Time!ICW$86","v":0},{"$f":"Time!ICX$86","v":0},{"$f":"Time!ICY$86","v":0},{"$f":"Time!ICZ$86","v":0},{"$f":"Time!IDA$86","v":0},{"$f":"Time!IDB$86","v":0},{"$f":"Time!IDC$86","v":0},{"$f":"Time!IDD$86","v":0},{"$f":"Time!IDE$86","v":0},{"$f":"Time!IDF$86","v":0},{"$f":"Time!IDG$86","v":0},{"$f":"Time!IDH$86","v":0},{"$f":"Time!IDI$86","v":0},{"$f":"Time!IDJ$86","v":0},{"$f":"Time!IDK$86","v":0},{"$f":"Time!IDL$86","v":0},{"$f":"Time!IDM$86","v":0},{"$f":"Time!IDN$86","v":0},{"$f":"Time!IDO$86","v":0},{"$f":"Time!IDP$86","v":0},{"$f":"Time!IDQ$86","v":0},{"$f":"Time!IDR$86","v":0},{"$f":"Time!IDS$86","v":0},{"$f":"Time!IDT$86","v":0},{"$f":"Time!IDU$86","v":0},{"$f":"Time!IDV$86","v":0},{"$f":"Time!IDW$86","v":0},{"$f":"Time!IDX$86","v":0},{"$f":"Time!IDY$86","v":0},{"$f":"Time!IDZ$86","v":0},{"$f":"Time!IEA$86","v":0},{"$f":"Time!IEB$86","v":0},{"$f":"Time!IEC$86","v":0},{"$f":"Time!IED$86","v":0},{"$f":"Time!IEE$86","v":0},{"$f":"Time!IEF$86","v":0},{"$f":"Time!IEG$86","v":0},{"$f":"Time!IEH$86","v":0},{"$f":"Time!IEI$86","v":0},{"$f":"Time!IEJ$86","v":0},{"$f":"Time!IEK$86","v":0},{"$f":"Time!IEL$86","v":0},{"$f":"Time!IEM$86","v":0},{"$f":"Time!IEN$86","v":0},{"$f":"Time!IEO$86","v":0},{"$f":"Time!IEP$86","v":0},{"$f":"Time!IEQ$86","v":0},{"$f":"Time!IER$86","v":0},{"$f":"Time!IES$86","v":0},{"$f":"Time!IET$86","v":0},{"$f":"Time!IEU$86","v":0},{"$f":"Time!IEV$86","v":0},{"$f":"Time!IEW$86","v":0},{"$f":"Time!IEX$86","v":0},{"$f":"Time!IEY$86","v":0},{"$f":"Time!IEZ$86","v":0},{"$f":"Time!IFA$86","v":0},{"$f":"Time!IFB$86","v":0},{"$f":"Time!IFC$86","v":0},{"$f":"Time!IFD$86","v":0},{"$f":"Time!IFE$86","v":0},{"$f":"Time!IFF$86","v":0},{"$f":"Time!IFG$86","v":0},{"$f":"Time!IFH$86","v":0},{"$f":"Time!IFI$86","v":0},{"$f":"Time!IFJ$86","v":0},{"$f":"Time!IFK$86","v":0},{"$f":"Time!IFL$86","v":0},{"$f":"Time!IFM$86","v":0},{"$f":"Time!IFN$86","v":0},{"$f":"Time!IFO$86","v":0},{"$f":"Time!IFP$86","v":0},{"$f":"Time!IFQ$86","v":0},{"$f":"Time!IFR$86","v":0},{"$f":"Time!IFS$86","v":0},{"$f":"Time!IFT$86","v":0},{"$f":"Time!IFU$86","v":0},{"$f":"Time!IFV$86","v":0},{"$f":"Time!IFW$86","v":0},{"$f":"Time!IFX$86","v":0},{"$f":"Time!IFY$86","v":0},{"$f":"Time!IFZ$86","v":0},{"$f":"Time!IGA$86","v":0},{"$f":"Time!IGB$86","v":0},{"$f":"Time!IGC$86","v":0},{"$f":"Time!IGD$86","v":0},{"$f":"Time!IGE$86","v":0},{"$f":"Time!IGF$86","v":0},{"$f":"Time!IGG$86","v":0},{"$f":"Time!IGH$86","v":0},{"$f":"Time!IGI$86","v":0},{"$f":"Time!IGJ$86","v":0},{"$f":"Time!IGK$86","v":0},{"$f":"Time!IGL$86","v":0},{"$f":"Time!IGM$86","v":0},{"$f":"Time!IGN$86","v":0},{"$f":"Time!IGO$86","v":0},{"$f":"Time!IGP$86","v":0},{"$f":"Time!IGQ$86","v":0},{"$f":"Time!IGR$86","v":0},{"$f":"Time!IGS$86","v":0},{"$f":"Time!IGT$86","v":0},{"$f":"Time!IGU$86","v":0},{"$f":"Time!IGV$86","v":0},{"$f":"Time!IGW$86","v":0},{"$f":"Time!IGX$86","v":0},{"$f":"Time!IGY$86","v":0},{"$f":"Time!IGZ$86","v":0},{"$f":"Time!IHA$86","v":0},{"$f":"Time!IHB$86","v":0},{"$f":"Time!IHC$86","v":0},{"$f":"Time!IHD$86","v":0},{"$f":"Time!IHE$86","v":0},{"$f":"Time!IHF$86","v":0},{"$f":"Time!IHG$86","v":0},{"$f":"Time!IHH$86","v":0},{"$f":"Time!IHI$86","v":0},{"$f":"Time!IHJ$86","v":0},{"$f":"Time!IHK$86","v":0},{"$f":"Time!IHL$86","v":0},{"$f":"Time!IHM$86","v":0},{"$f":"Time!IHN$86","v":0},{"$f":"Time!IHO$86","v":0},{"$f":"Time!IHP$86","v":0},{"$f":"Time!IHQ$86","v":0},{"$f":"Time!IHR$86","v":0},{"$f":"Time!IHS$86","v":0},{"$f":"Time!IHT$86","v":0},{"$f":"Time!IHU$86","v":0},{"$f":"Time!IHV$86","v":0},{"$f":"Time!IHW$86","v":0},{"$f":"Time!IHX$86","v":0},{"$f":"Time!IHY$86","v":0},{"$f":"Time!IHZ$86","v":0},{"$f":"Time!IIA$86","v":0},{"$f":"Time!IIB$86","v":0},{"$f":"Time!IIC$86","v":0},{"$f":"Time!IID$86","v":0},{"$f":"Time!IIE$86","v":0},{"$f":"Time!IIF$86","v":0},{"$f":"Time!IIG$86","v":0},{"$f":"Time!IIH$86","v":0},{"$f":"Time!III$86","v":0},{"$f":"Time!IIJ$86","v":0},{"$f":"Time!IIK$86","v":0},{"$f":"Time!IIL$86","v":0},{"$f":"Time!IIM$86","v":0},{"$f":"Time!IIN$86","v":0},{"$f":"Time!IIO$86","v":0},{"$f":"Time!IIP$86","v":0},{"$f":"Time!IIQ$86","v":0},{"$f":"Time!IIR$86","v":0},{"$f":"Time!IIS$86","v":0},{"$f":"Time!IIT$86","v":0},{"$f":"Time!IIU$86","v":0},{"$f":"Time!IIV$86","v":0},{"$f":"Time!IIW$86","v":0},{"$f":"Time!IIX$86","v":0},{"$f":"Time!IIY$86","v":0},{"$f":"Time!IIZ$86","v":0},{"$f":"Time!IJA$86","v":0},{"$f":"Time!IJB$86","v":0},{"$f":"Time!IJC$86","v":0},{"$f":"Time!IJD$86","v":0},{"$f":"Time!IJE$86","v":0},{"$f":"Time!IJF$86","v":0},{"$f":"Time!IJG$86","v":0},{"$f":"Time!IJH$86","v":0},{"$f":"Time!IJI$86","v":0},{"$f":"Time!IJJ$86","v":0},{"$f":"Time!IJK$86","v":0},{"$f":"Time!IJL$86","v":0},{"$f":"Time!IJM$86","v":0},{"$f":"Time!IJN$86","v":0},{"$f":"Time!IJO$86","v":0},{"$f":"Time!IJP$86","v":0},{"$f":"Time!IJQ$86","v":0},{"$f":"Time!IJR$86","v":0},{"$f":"Time!IJS$86","v":0},{"$f":"Time!IJT$86","v":0},{"$f":"Time!IJU$86","v":0},{"$f":"Time!IJV$86","v":0},{"$f":"Time!IJW$86","v":0},{"$f":"Time!IJX$86","v":0},{"$f":"Time!IJY$86","v":0},{"$f":"Time!IJZ$86","v":0},{"$f":"Time!IKA$86","v":0},{"$f":"Time!IKB$86","v":0},{"$f":"Time!IKC$86","v":0},{"$f":"Time!IKD$86","v":0},{"$f":"Time!IKE$86","v":0},{"$f":"Time!IKF$86","v":0},{"$f":"Time!IKG$86","v":0},{"$f":"Time!IKH$86","v":0},{"$f":"Time!IKI$86","v":0},{"$f":"Time!IKJ$86","v":0},{"$f":"Time!IKK$86","v":0},{"$f":"Time!IKL$86","v":0},{"$f":"Time!IKM$86","v":0},{"$f":"Time!IKN$86","v":0},{"$f":"Time!IKO$86","v":0},{"$f":"Time!IKP$86","v":0},{"$f":"Time!IKQ$86","v":0},{"$f":"Time!IKR$86","v":0},{"$f":"Time!IKS$86","v":0},{"$f":"Time!IKT$86","v":0},{"$f":"Time!IKU$86","v":0},{"$f":"Time!IKV$86","v":0},{"$f":"Time!IKW$86","v":0},{"$f":"Time!IKX$86","v":0},{"$f":"Time!IKY$86","v":0},{"$f":"Time!IKZ$86","v":0},{"$f":"Time!ILA$86","v":0},{"$f":"Time!ILB$86","v":0},{"$f":"Time!ILC$86","v":0},{"$f":"Time!ILD$86","v":0},{"$f":"Time!ILE$86","v":0},{"$f":"Time!ILF$86","v":0},{"$f":"Time!ILG$86","v":0},{"$f":"Time!ILH$86","v":0},{"$f":"Time!ILI$86","v":0},{"$f":"Time!ILJ$86","v":0},{"$f":"Time!ILK$86","v":0},{"$f":"Time!ILL$86","v":0},{"$f":"Time!ILM$86","v":0},{"$f":"Time!ILN$86","v":0},{"$f":"Time!ILO$86","v":0},{"$f":"Time!ILP$86","v":0},{"$f":"Time!ILQ$86","v":0},{"$f":"Time!ILR$86","v":0},{"$f":"Time!ILS$86","v":0},{"$f":"Time!ILT$86","v":0},{"$f":"Time!ILU$86","v":0},{"$f":"Time!ILV$86","v":0},{"$f":"Time!ILW$86","v":0},{"$f":"Time!ILX$86","v":0},{"$f":"Time!ILY$86","v":0},{"$f":"Time!ILZ$86","v":0},{"$f":"Time!IMA$86","v":0},{"$f":"Time!IMB$86","v":0},{"$f":"Time!IMC$86","v":0},{"$f":"Time!IMD$86","v":0},{"$f":"Time!IME$86","v":0},{"$f":"Time!IMF$86","v":0},{"$f":"Time!IMG$86","v":0},{"$f":"Time!IMH$86","v":0},{"$f":"Time!IMI$86","v":0},{"$f":"Time!IMJ$86","v":0},{"$f":"Time!IMK$86","v":0},{"$f":"Time!IML$86","v":0},{"$f":"Time!IMM$86","v":0},{"$f":"Time!IMN$86","v":0},{"$f":"Time!IMO$86","v":0},{"$f":"Time!IMP$86","v":0},{"$f":"Time!IMQ$86","v":0},{"$f":"Time!IMR$86","v":0},{"$f":"Time!IMS$86","v":0},{"$f":"Time!IMT$86","v":0},{"$f":"Time!IMU$86","v":0},{"$f":"Time!IMV$86","v":0},{"$f":"Time!IMW$86","v":0},{"$f":"Time!IMX$86","v":0},{"$f":"Time!IMY$86","v":0},{"$f":"Time!IMZ$86","v":0},{"$f":"Time!INA$86","v":0},{"$f":"Time!INB$86","v":0},{"$f":"Time!INC$86","v":0},{"$f":"Time!IND$86","v":0},{"$f":"Time!INE$86","v":0},{"$f":"Time!INF$86","v":0},{"$f":"Time!ING$86","v":0},{"$f":"Time!INH$86","v":0},{"$f":"Time!INI$86","v":0},{"$f":"Time!INJ$86","v":0},{"$f":"Time!INK$86","v":0},{"$f":"Time!INL$86","v":0},{"$f":"Time!INM$86","v":0},{"$f":"Time!INN$86","v":0},{"$f":"Time!INO$86","v":0},{"$f":"Time!INP$86","v":0},{"$f":"Time!INQ$86","v":0},{"$f":"Time!INR$86","v":0},{"$f":"Time!INS$86","v":0},{"$f":"Time!INT$86","v":0},{"$f":"Time!INU$86","v":0},{"$f":"Time!INV$86","v":0},{"$f":"Time!INW$86","v":0},{"$f":"Time!INX$86","v":0},{"$f":"Time!INY$86","v":0},{"$f":"Time!INZ$86","v":0},{"$f":"Time!IOA$86","v":0},{"$f":"Time!IOB$86","v":0},{"$f":"Time!IOC$86","v":0},{"$f":"Time!IOD$86","v":0},{"$f":"Time!IOE$86","v":0},{"$f":"Time!IOF$86","v":0},{"$f":"Time!IOG$86","v":0},{"$f":"Time!IOH$86","v":0},{"$f":"Time!IOI$86","v":0},{"$f":"Time!IOJ$86","v":0},{"$f":"Time!IOK$86","v":0},{"$f":"Time!IOL$86","v":0},{"$f":"Time!IOM$86","v":0},{"$f":"Time!ION$86","v":0},{"$f":"Time!IOO$86","v":0},{"$f":"Time!IOP$86","v":0},{"$f":"Time!IOQ$86","v":0},{"$f":"Time!IOR$86","v":0},{"$f":"Time!IOS$86","v":0},{"$f":"Time!IOT$86","v":0},{"$f":"Time!IOU$86","v":0},{"$f":"Time!IOV$86","v":0},{"$f":"Time!IOW$86","v":0},{"$f":"Time!IOX$86","v":0},{"$f":"Time!IOY$86","v":0},{"$f":"Time!IOZ$86","v":0},{"$f":"Time!IPA$86","v":0},{"$f":"Time!IPB$86","v":0},{"$f":"Time!IPC$86","v":0},{"$f":"Time!IPD$86","v":0},{"$f":"Time!IPE$86","v":0},{"$f":"Time!IPF$86","v":0},{"$f":"Time!IPG$86","v":0},{"$f":"Time!IPH$86","v":0},{"$f":"Time!IPI$86","v":0},{"$f":"Time!IPJ$86","v":0},{"$f":"Time!IPK$86","v":0},{"$f":"Time!IPL$86","v":0},{"$f":"Time!IPM$86","v":0},{"$f":"Time!IPN$86","v":0},{"$f":"Time!IPO$86","v":0},{"$f":"Time!IPP$86","v":0},{"$f":"Time!IPQ$86","v":0},{"$f":"Time!IPR$86","v":0},{"$f":"Time!IPS$86","v":0},{"$f":"Time!IPT$86","v":0},{"$f":"Time!IPU$86","v":0},{"$f":"Time!IPV$86","v":0},{"$f":"Time!IPW$86","v":0},{"$f":"Time!IPX$86","v":0},{"$f":"Time!IPY$86","v":0},{"$f":"Time!IPZ$86","v":0},{"$f":"Time!IQA$86","v":0},{"$f":"Time!IQB$86","v":0},{"$f":"Time!IQC$86","v":0},{"$f":"Time!IQD$86","v":0},{"$f":"Time!IQE$86","v":0},{"$f":"Time!IQF$86","v":0},{"$f":"Time!IQG$86","v":0},{"$f":"Time!IQH$86","v":0},{"$f":"Time!IQI$86","v":0},{"$f":"Time!IQJ$86","v":0},{"$f":"Time!IQK$86","v":0},{"$f":"Time!IQL$86","v":0},{"$f":"Time!IQM$86","v":0},{"$f":"Time!IQN$86","v":0},{"$f":"Time!IQO$86","v":0},{"$f":"Time!IQP$86","v":0},{"$f":"Time!IQQ$86","v":0},{"$f":"Time!IQR$86","v":0},{"$f":"Time!IQS$86","v":0},{"$f":"Time!IQT$86","v":0},{"$f":"Time!IQU$86","v":0},{"$f":"Time!IQV$86","v":0},{"$f":"Time!IQW$86","v":0},{"$f":"Time!IQX$86","v":0},{"$f":"Time!IQY$86","v":0},{"$f":"Time!IQZ$86","v":0},{"$f":"Time!IRA$86","v":0},{"$f":"Time!IRB$86","v":0},{"$f":"Time!IRC$86","v":0},{"$f":"Time!IRD$86","v":0},{"$f":"Time!IRE$86","v":0},{"$f":"Time!IRF$86","v":0},{"$f":"Time!IRG$86","v":0},{"$f":"Time!IRH$86","v":0},{"$f":"Time!IRI$86","v":0},{"$f":"Time!IRJ$86","v":0},{"$f":"Time!IRK$86","v":0},{"$f":"Time!IRL$86","v":0},{"$f":"Time!IRM$86","v":0},{"$f":"Time!IRN$86","v":0},{"$f":"Time!IRO$86","v":0},{"$f":"Time!IRP$86","v":0},{"$f":"Time!IRQ$86","v":0},{"$f":"Time!IRR$86","v":0},{"$f":"Time!IRS$86","v":0},{"$f":"Time!IRT$86","v":0},{"$f":"Time!IRU$86","v":0},{"$f":"Time!IRV$86","v":0},{"$f":"Time!IRW$86","v":0},{"$f":"Time!IRX$86","v":0},{"$f":"Time!IRY$86","v":0},{"$f":"Time!IRZ$86","v":0},{"$f":"Time!ISA$86","v":0},{"$f":"Time!ISB$86","v":0},{"$f":"Time!ISC$86","v":0},{"$f":"Time!ISD$86","v":0},{"$f":"Time!ISE$86","v":0},{"$f":"Time!ISF$86","v":0},{"$f":"Time!ISG$86","v":0},{"$f":"Time!ISH$86","v":0},{"$f":"Time!ISI$86","v":0},{"$f":"Time!ISJ$86","v":0},{"$f":"Time!ISK$86","v":0},{"$f":"Time!ISL$86","v":0},{"$f":"Time!ISM$86","v":0},{"$f":"Time!ISN$86","v":0},{"$f":"Time!ISO$86","v":0},{"$f":"Time!ISP$86","v":0},{"$f":"Time!ISQ$86","v":0},{"$f":"Time!ISR$86","v":0},{"$f":"Time!ISS$86","v":0},{"$f":"Time!IST$86","v":0},{"$f":"Time!ISU$86","v":0},{"$f":"Time!ISV$86","v":0},{"$f":"Time!ISW$86","v":0},{"$f":"Time!ISX$86","v":0},{"$f":"Time!ISY$86","v":0},{"$f":"Time!ISZ$86","v":0},{"$f":"Time!ITA$86","v":0},{"$f":"Time!ITB$86","v":0},{"$f":"Time!ITC$86","v":0},{"$f":"Time!ITD$86","v":0},{"$f":"Time!ITE$86","v":0},{"$f":"Time!ITF$86","v":0},{"$f":"Time!ITG$86","v":0},{"$f":"Time!ITH$86","v":0},{"$f":"Time!ITI$86","v":0},{"$f":"Time!ITJ$86","v":0},{"$f":"Time!ITK$86","v":0},{"$f":"Time!ITL$86","v":0},{"$f":"Time!ITM$86","v":0},{"$f":"Time!ITN$86","v":0},{"$f":"Time!ITO$86","v":0},{"$f":"Time!ITP$86","v":0},{"$f":"Time!ITQ$86","v":0},{"$f":"Time!ITR$86","v":0},{"$f":"Time!ITS$86","v":0},{"$f":"Time!ITT$86","v":0},{"$f":"Time!ITU$86","v":0},{"$f":"Time!ITV$86","v":0},{"$f":"Time!ITW$86","v":0},{"$f":"Time!ITX$86","v":0},{"$f":"Time!ITY$86","v":0},{"$f":"Time!ITZ$86","v":0},{"$f":"Time!IUA$86","v":0},{"$f":"Time!IUB$86","v":0},{"$f":"Time!IUC$86","v":0},{"$f":"Time!IUD$86","v":0},{"$f":"Time!IUE$86","v":0},{"$f":"Time!IUF$86","v":0},{"$f":"Time!IUG$86","v":0},{"$f":"Time!IUH$86","v":0},{"$f":"Time!IUI$86","v":0},{"$f":"Time!IUJ$86","v":0},{"$f":"Time!IUK$86","v":0},{"$f":"Time!IUL$86","v":0},{"$f":"Time!IUM$86","v":0},{"$f":"Time!IUN$86","v":0},{"$f":"Time!IUO$86","v":0},{"$f":"Time!IUP$86","v":0},{"$f":"Time!IUQ$86","v":0},{"$f":"Time!IUR$86","v":0},{"$f":"Time!IUS$86","v":0},{"$f":"Time!IUT$86","v":0},{"$f":"Time!IUU$86","v":0},{"$f":"Time!IUV$86","v":0},{"$f":"Time!IUW$86","v":0},{"$f":"Time!IUX$86","v":0},{"$f":"Time!IUY$86","v":0},{"$f":"Time!IUZ$86","v":0},{"$f":"Time!IVA$86","v":0},{"$f":"Time!IVB$86","v":0},{"$f":"Time!IVC$86","v":0},{"$f":"Time!IVD$86","v":0},{"$f":"Time!IVE$86","v":0},{"$f":"Time!IVF$86","v":0},{"$f":"Time!IVG$86","v":0},{"$f":"Time!IVH$86","v":0},{"$f":"Time!IVI$86","v":0},{"$f":"Time!IVJ$86","v":0},{"$f":"Time!IVK$86","v":0},{"$f":"Time!IVL$86","v":0},{"$f":"Time!IVM$86","v":0},{"$f":"Time!IVN$86","v":0},{"$f":"Time!IVO$86","v":0},{"$f":"Time!IVP$86","v":0},{"$f":"Time!IVQ$86","v":0},{"$f":"Time!IVR$86","v":0},{"$f":"Time!IVS$86","v":0},{"$f":"Time!IVT$86","v":0},{"$f":"Time!IVU$86","v":0},{"$f":"Time!IVV$86","v":0},{"$f":"Time!IVW$86","v":0},{"$f":"Time!IVX$86","v":0},{"$f":"Time!IVY$86","v":0},{"$f":"Time!IVZ$86","v":0},{"$f":"Time!IWA$86","v":0},{"$f":"Time!IWB$86","v":0},{"$f":"Time!IWC$86","v":0},{"$f":"Time!IWD$86","v":0},{"$f":"Time!IWE$86","v":0},{"$f":"Time!IWF$86","v":0},{"$f":"Time!IWG$86","v":0},{"$f":"Time!IWH$86","v":0},{"$f":"Time!IWI$86","v":0},{"$f":"Time!IWJ$86","v":0},{"$f":"Time!IWK$86","v":0},{"$f":"Time!IWL$86","v":0},{"$f":"Time!IWM$86","v":0},{"$f":"Time!IWN$86","v":0},{"$f":"Time!IWO$86","v":0},{"$f":"Time!IWP$86","v":0},{"$f":"Time!IWQ$86","v":0},{"$f":"Time!IWR$86","v":0},{"$f":"Time!IWS$86","v":0},{"$f":"Time!IWT$86","v":0},{"$f":"Time!IWU$86","v":0},{"$f":"Time!IWV$86","v":0},{"$f":"Time!IWW$86","v":0},{"$f":"Time!IWX$86","v":0},{"$f":"Time!IWY$86","v":0},{"$f":"Time!IWZ$86","v":0},{"$f":"Time!IXA$86","v":0},{"$f":"Time!IXB$86","v":0},{"$f":"Time!IXC$86","v":0},{"$f":"Time!IXD$86","v":0},{"$f":"Time!IXE$86","v":0},{"$f":"Time!IXF$86","v":0},{"$f":"Time!IXG$86","v":0},{"$f":"Time!IXH$86","v":0},{"$f":"Time!IXI$86","v":0},{"$f":"Time!IXJ$86","v":0},{"$f":"Time!IXK$86","v":0},{"$f":"Time!IXL$86","v":0},{"$f":"Time!IXM$86","v":0},{"$f":"Time!IXN$86","v":0},{"$f":"Time!IXO$86","v":0},{"$f":"Time!IXP$86","v":0},{"$f":"Time!IXQ$86","v":0},{"$f":"Time!IXR$86","v":0},{"$f":"Time!IXS$86","v":0},{"$f":"Time!IXT$86","v":0},{"$f":"Time!IXU$86","v":0},{"$f":"Time!IXV$86","v":0},{"$f":"Time!IXW$86","v":0},{"$f":"Time!IXX$86","v":0},{"$f":"Time!IXY$86","v":0},{"$f":"Time!IXZ$86","v":0},{"$f":"Time!IYA$86","v":0},{"$f":"Time!IYB$86","v":0},{"$f":"Time!IYC$86","v":0},{"$f":"Time!IYD$86","v":0},{"$f":"Time!IYE$86","v":0},{"$f":"Time!IYF$86","v":0},{"$f":"Time!IYG$86","v":0},{"$f":"Time!IYH$86","v":0},{"$f":"Time!IYI$86","v":0},{"$f":"Time!IYJ$86","v":0},{"$f":"Time!IYK$86","v":0},{"$f":"Time!IYL$86","v":0},{"$f":"Time!IYM$86","v":0},{"$f":"Time!IYN$86","v":0},{"$f":"Time!IYO$86","v":0},{"$f":"Time!IYP$86","v":0},{"$f":"Time!IYQ$86","v":0},{"$f":"Time!IYR$86","v":0},{"$f":"Time!IYS$86","v":0},{"$f":"Time!IYT$86","v":0},{"$f":"Time!IYU$86","v":0},{"$f":"Time!IYV$86","v":0},{"$f":"Time!IYW$86","v":0},{"$f":"Time!IYX$86","v":0},{"$f":"Time!IYY$86","v":0},{"$f":"Time!IYZ$86","v":0},{"$f":"Time!IZA$86","v":0},{"$f":"Time!IZB$86","v":0},{"$f":"Time!IZC$86","v":0},{"$f":"Time!IZD$86","v":0},{"$f":"Time!IZE$86","v":0},{"$f":"Time!IZF$86","v":0},{"$f":"Time!IZG$86","v":0},{"$f":"Time!IZH$86","v":0},{"$f":"Time!IZI$86","v":0},{"$f":"Time!IZJ$86","v":0},{"$f":"Time!IZK$86","v":0},{"$f":"Time!IZL$86","v":0},{"$f":"Time!IZM$86","v":0},{"$f":"Time!IZN$86","v":0},{"$f":"Time!IZO$86","v":0},{"$f":"Time!IZP$86","v":0},{"$f":"Time!IZQ$86","v":0},{"$f":"Time!IZR$86","v":0},{"$f":"Time!IZS$86","v":0},{"$f":"Time!IZT$86","v":0},{"$f":"Time!IZU$86","v":0},{"$f":"Time!IZV$86","v":0},{"$f":"Time!IZW$86","v":0},{"$f":"Time!IZX$86","v":0},{"$f":"Time!IZY$86","v":0},{"$f":"Time!IZZ$86","v":0},{"$f":"Time!JAA$86","v":0},{"$f":"Time!JAB$86","v":0},{"$f":"Time!JAC$86","v":0},{"$f":"Time!JAD$86","v":0},{"$f":"Time!JAE$86","v":0},{"$f":"Time!JAF$86","v":0},{"$f":"Time!JAG$86","v":0},{"$f":"Time!JAH$86","v":0},{"$f":"Time!JAI$86","v":0},{"$f":"Time!JAJ$86","v":0},{"$f":"Time!JAK$86","v":0},{"$f":"Time!JAL$86","v":0},{"$f":"Time!JAM$86","v":0},{"$f":"Time!JAN$86","v":0},{"$f":"Time!JAO$86","v":0},{"$f":"Time!JAP$86","v":0},{"$f":"Time!JAQ$86","v":0},{"$f":"Time!JAR$86","v":0},{"$f":"Time!JAS$86","v":0},{"$f":"Time!JAT$86","v":0},{"$f":"Time!JAU$86","v":0},{"$f":"Time!JAV$86","v":0},{"$f":"Time!JAW$86","v":0},{"$f":"Time!JAX$86","v":0},{"$f":"Time!JAY$86","v":0},{"$f":"Time!JAZ$86","v":0},{"$f":"Time!JBA$86","v":0},{"$f":"Time!JBB$86","v":0},{"$f":"Time!JBC$86","v":0},{"$f":"Time!JBD$86","v":0},{"$f":"Time!JBE$86","v":0},{"$f":"Time!JBF$86","v":0},{"$f":"Time!JBG$86","v":0},{"$f":"Time!JBH$86","v":0},{"$f":"Time!JBI$86","v":0},{"$f":"Time!JBJ$86","v":0},{"$f":"Time!JBK$86","v":0},{"$f":"Time!JBL$86","v":0},{"$f":"Time!JBM$86","v":0},{"$f":"Time!JBN$86","v":0},{"$f":"Time!JBO$86","v":0},{"$f":"Time!JBP$86","v":0},{"$f":"Time!JBQ$86","v":0},{"$f":"Time!JBR$86","v":0},{"$f":"Time!JBS$86","v":0},{"$f":"Time!JBT$86","v":0},{"$f":"Time!JBU$86","v":0},{"$f":"Time!JBV$86","v":0},{"$f":"Time!JBW$86","v":0},{"$f":"Time!JBX$86","v":0},{"$f":"Time!JBY$86","v":0},{"$f":"Time!JBZ$86","v":0},{"$f":"Time!JCA$86","v":0},{"$f":"Time!JCB$86","v":0},{"$f":"Time!JCC$86","v":0},{"$f":"Time!JCD$86","v":0},{"$f":"Time!JCE$86","v":0},{"$f":"Time!JCF$86","v":0},{"$f":"Time!JCG$86","v":0},{"$f":"Time!JCH$86","v":0},{"$f":"Time!JCI$86","v":0},{"$f":"Time!JCJ$86","v":0},{"$f":"Time!JCK$86","v":0},{"$f":"Time!JCL$86","v":0},{"$f":"Time!JCM$86","v":0},{"$f":"Time!JCN$86","v":0},{"$f":"Time!JCO$86","v":0},{"$f":"Time!JCP$86","v":0},{"$f":"Time!JCQ$86","v":0},{"$f":"Time!JCR$86","v":0},{"$f":"Time!JCS$86","v":0},{"$f":"Time!JCT$86","v":0},{"$f":"Time!JCU$86","v":0},{"$f":"Time!JCV$86","v":0},{"$f":"Time!JCW$86","v":0},{"$f":"Time!JCX$86","v":0},{"$f":"Time!JCY$86","v":0},{"$f":"Time!JCZ$86","v":0},{"$f":"Time!JDA$86","v":0},{"$f":"Time!JDB$86","v":0},{"$f":"Time!JDC$86","v":0},{"$f":"Time!JDD$86","v":0},{"$f":"Time!JDE$86","v":0},{"$f":"Time!JDF$86","v":0},{"$f":"Time!JDG$86","v":0},{"$f":"Time!JDH$86","v":0},{"$f":"Time!JDI$86","v":0},{"$f":"Time!JDJ$86","v":0},{"$f":"Time!JDK$86","v":0},{"$f":"Time!JDL$86","v":0},{"$f":"Time!JDM$86","v":0},{"$f":"Time!JDN$86","v":0},{"$f":"Time!JDO$86","v":0},{"$f":"Time!JDP$86","v":0},{"$f":"Time!JDQ$86","v":0},{"$f":"Time!JDR$86","v":0},{"$f":"Time!JDS$86","v":0},{"$f":"Time!JDT$86","v":0},{"$f":"Time!JDU$86","v":0},{"$f":"Time!JDV$86","v":0},{"$f":"Time!JDW$86","v":0},{"$f":"Time!JDX$86","v":0},{"$f":"Time!JDY$86","v":0},{"$f":"Time!JDZ$86","v":0},{"$f":"Time!JEA$86","v":0},{"$f":"Time!JEB$86","v":0},{"$f":"Time!JEC$86","v":0},{"$f":"Time!JED$86","v":0},{"$f":"Time!JEE$86","v":0},{"$f":"Time!JEF$86","v":0},{"$f":"Time!JEG$86","v":0},{"$f":"Time!JEH$86","v":0},{"$f":"Time!JEI$86","v":0},{"$f":"Time!JEJ$86","v":0},{"$f":"Time!JEK$86","v":0},{"$f":"Time!JEL$86","v":0},{"$f":"Time!JEM$86","v":0},{"$f":"Time!JEN$86","v":0},{"$f":"Time!JEO$86","v":0},{"$f":"Time!JEP$86","v":0},{"$f":"Time!JEQ$86","v":0},{"$f":"Time!JER$86","v":0},{"$f":"Time!JES$86","v":0},{"$f":"Time!JET$86","v":0},{"$f":"Time!JEU$86","v":0},{"$f":"Time!JEV$86","v":0},{"$f":"Time!JEW$86","v":0},{"$f":"Time!JEX$86","v":0},{"$f":"Time!JEY$86","v":0},{"$f":"Time!JEZ$86","v":0},{"$f":"Time!JFA$86","v":0},{"$f":"Time!JFB$86","v":0},{"$f":"Time!JFC$86","v":0},{"$f":"Time!JFD$86","v":0},{"$f":"Time!JFE$86","v":0},{"$f":"Time!JFF$86","v":0},{"$f":"Time!JFG$86","v":0},{"$f":"Time!JFH$86","v":0},{"$f":"Time!JFI$86","v":0},{"$f":"Time!JFJ$86","v":0},{"$f":"Time!JFK$86","v":0},{"$f":"Time!JFL$86","v":0},{"$f":"Time!JFM$86","v":0},{"$f":"Time!JFN$86","v":0},{"$f":"Time!JFO$86","v":0},{"$f":"Time!JFP$86","v":0},{"$f":"Time!JFQ$86","v":0},{"$f":"Time!JFR$86","v":0},{"$f":"Time!JFS$86","v":0},{"$f":"Time!JFT$86","v":0},{"$f":"Time!JFU$86","v":0},{"$f":"Time!JFV$86","v":0},{"$f":"Time!JFW$86","v":0},{"$f":"Time!JFX$86","v":0},{"$f":"Time!JFY$86","v":0},{"$f":"Time!JFZ$86","v":0},{"$f":"Time!JGA$86","v":0},{"$f":"Time!JGB$86","v":0},{"$f":"Time!JGC$86","v":0},{"$f":"Time!JGD$86","v":0},{"$f":"Time!JGE$86","v":0},{"$f":"Time!JGF$86","v":0},{"$f":"Time!JGG$86","v":0},{"$f":"Time!JGH$86","v":0},{"$f":"Time!JGI$86","v":0},{"$f":"Time!JGJ$86","v":0},{"$f":"Time!JGK$86","v":0},{"$f":"Time!JGL$86","v":0},{"$f":"Time!JGM$86","v":0},{"$f":"Time!JGN$86","v":0},{"$f":"Time!JGO$86","v":0},{"$f":"Time!JGP$86","v":0},{"$f":"Time!JGQ$86","v":0},{"$f":"Time!JGR$86","v":0},{"$f":"Time!JGS$86","v":0},{"$f":"Time!JGT$86","v":0},{"$f":"Time!JGU$86","v":0},{"$f":"Time!JGV$86","v":0},{"$f":"Time!JGW$86","v":0},{"$f":"Time!JGX$86","v":0},{"$f":"Time!JGY$86","v":0},{"$f":"Time!JGZ$86","v":0},{"$f":"Time!JHA$86","v":0},{"$f":"Time!JHB$86","v":0},{"$f":"Time!JHC$86","v":0},{"$f":"Time!JHD$86","v":0},{"$f":"Time!JHE$86","v":0},{"$f":"Time!JHF$86","v":0},{"$f":"Time!JHG$86","v":0},{"$f":"Time!JHH$86","v":0},{"$f":"Time!JHI$86","v":0},{"$f":"Time!JHJ$86","v":0},{"$f":"Time!JHK$86","v":0},{"$f":"Time!JHL$86","v":0},{"$f":"Time!JHM$86","v":0},{"$f":"Time!JHN$86","v":0},{"$f":"Time!JHO$86","v":0},{"$f":"Time!JHP$86","v":0},{"$f":"Time!JHQ$86","v":0},{"$f":"Time!JHR$86","v":0},{"$f":"Time!JHS$86","v":0},{"$f":"Time!JHT$86","v":0},{"$f":"Time!JHU$86","v":0},{"$f":"Time!JHV$86","v":0},{"$f":"Time!JHW$86","v":0},{"$f":"Time!JHX$86","v":0},{"$f":"Time!JHY$86","v":0},{"$f":"Time!JHZ$86","v":0},{"$f":"Time!JIA$86","v":0},{"$f":"Time!JIB$86","v":0},{"$f":"Time!JIC$86","v":0},{"$f":"Time!JID$86","v":0},{"$f":"Time!JIE$86","v":0},{"$f":"Time!JIF$86","v":0},{"$f":"Time!JIG$86","v":0},{"$f":"Time!JIH$86","v":0},{"$f":"Time!JII$86","v":0},{"$f":"Time!JIJ$86","v":0},{"$f":"Time!JIK$86","v":0},{"$f":"Time!JIL$86","v":0},{"$f":"Time!JIM$86","v":0},{"$f":"Time!JIN$86","v":0},{"$f":"Time!JIO$86","v":0},{"$f":"Time!JIP$86","v":0},{"$f":"Time!JIQ$86","v":0},{"$f":"Time!JIR$86","v":0},{"$f":"Time!JIS$86","v":0},{"$f":"Time!JIT$86","v":0},{"$f":"Time!JIU$86","v":0},{"$f":"Time!JIV$86","v":0},{"$f":"Time!JIW$86","v":0},{"$f":"Time!JIX$86","v":0},{"$f":"Time!JIY$86","v":0},{"$f":"Time!JIZ$86","v":0},{"$f":"Time!JJA$86","v":0},{"$f":"Time!JJB$86","v":0},{"$f":"Time!JJC$86","v":0},{"$f":"Time!JJD$86","v":0},{"$f":"Time!JJE$86","v":0},{"$f":"Time!JJF$86","v":0},{"$f":"Time!JJG$86","v":0},{"$f":"Time!JJH$86","v":0},{"$f":"Time!JJI$86","v":0},{"$f":"Time!JJJ$86","v":0},{"$f":"Time!JJK$86","v":0},{"$f":"Time!JJL$86","v":0},{"$f":"Time!JJM$86","v":0},{"$f":"Time!JJN$86","v":0},{"$f":"Time!JJO$86","v":0},{"$f":"Time!JJP$86","v":0},{"$f":"Time!JJQ$86","v":0},{"$f":"Time!JJR$86","v":0},{"$f":"Time!JJS$86","v":0},{"$f":"Time!JJT$86","v":0},{"$f":"Time!JJU$86","v":0},{"$f":"Time!JJV$86","v":0},{"$f":"Time!JJW$86","v":0},{"$f":"Time!JJX$86","v":0},{"$f":"Time!JJY$86","v":0},{"$f":"Time!JJZ$86","v":0},{"$f":"Time!JKA$86","v":0},{"$f":"Time!JKB$86","v":0},{"$f":"Time!JKC$86","v":0},{"$f":"Time!JKD$86","v":0},{"$f":"Time!JKE$86","v":0},{"$f":"Time!JKF$86","v":0},{"$f":"Time!JKG$86","v":0},{"$f":"Time!JKH$86","v":0},{"$f":"Time!JKI$86","v":0},{"$f":"Time!JKJ$86","v":0},{"$f":"Time!JKK$86","v":0},{"$f":"Time!JKL$86","v":0},{"$f":"Time!JKM$86","v":0},{"$f":"Time!JKN$86","v":0},{"$f":"Time!JKO$86","v":0},{"$f":"Time!JKP$86","v":0},{"$f":"Time!JKQ$86","v":0},{"$f":"Time!JKR$86","v":0},{"$f":"Time!JKS$86","v":0},{"$f":"Time!JKT$86","v":0},{"$f":"Time!JKU$86","v":0},{"$f":"Time!JKV$86","v":0},{"$f":"Time!JKW$86","v":0},{"$f":"Time!JKX$86","v":0},{"$f":"Time!JKY$86","v":0},{"$f":"Time!JKZ$86","v":0},{"$f":"Time!JLA$86","v":0},{"$f":"Time!JLB$86","v":0},{"$f":"Time!JLC$86","v":0},{"$f":"Time!JLD$86","v":0},{"$f":"Time!JLE$86","v":0},{"$f":"Time!JLF$86","v":0},{"$f":"Time!JLG$86","v":0},{"$f":"Time!JLH$86","v":0},{"$f":"Time!JLI$86","v":0},{"$f":"Time!JLJ$86","v":0},{"$f":"Time!JLK$86","v":0},{"$f":"Time!JLL$86","v":0},{"$f":"Time!JLM$86","v":0},{"$f":"Time!JLN$86","v":0},{"$f":"Time!JLO$86","v":0},{"$f":"Time!JLP$86","v":0},{"$f":"Time!JLQ$86","v":0},{"$f":"Time!JLR$86","v":0},{"$f":"Time!JLS$86","v":0},{"$f":"Time!JLT$86","v":0},{"$f":"Time!JLU$86","v":0},{"$f":"Time!JLV$86","v":0},{"$f":"Time!JLW$86","v":0},{"$f":"Time!JLX$86","v":0},{"$f":"Time!JLY$86","v":0},{"$f":"Time!JLZ$86","v":0},{"$f":"Time!JMA$86","v":0},{"$f":"Time!JMB$86","v":0},{"$f":"Time!JMC$86","v":0},{"$f":"Time!JMD$86","v":0},{"$f":"Time!JME$86","v":0},{"$f":"Time!JMF$86","v":0},{"$f":"Time!JMG$86","v":0},{"$f":"Time!JMH$86","v":0},{"$f":"Time!JMI$86","v":0},{"$f":"Time!JMJ$86","v":0},{"$f":"Time!JMK$86","v":0},{"$f":"Time!JML$86","v":0},{"$f":"Time!JMM$86","v":0},{"$f":"Time!JMN$86","v":0},{"$f":"Time!JMO$86","v":0},{"$f":"Time!JMP$86","v":0},{"$f":"Time!JMQ$86","v":0},{"$f":"Time!JMR$86","v":0},{"$f":"Time!JMS$86","v":0},{"$f":"Time!JMT$86","v":0},{"$f":"Time!JMU$86","v":0},{"$f":"Time!JMV$86","v":0},{"$f":"Time!JMW$86","v":0},{"$f":"Time!JMX$86","v":0},{"$f":"Time!JMY$86","v":0},{"$f":"Time!JMZ$86","v":0},{"$f":"Time!JNA$86","v":0},{"$f":"Time!JNB$86","v":0},{"$f":"Time!JNC$86","v":0},{"$f":"Time!JND$86","v":0},{"$f":"Time!JNE$86","v":0},{"$f":"Time!JNF$86","v":0},{"$f":"Time!JNG$86","v":0},{"$f":"Time!JNH$86","v":0},{"$f":"Time!JNI$86","v":0},{"$f":"Time!JNJ$86","v":0},{"$f":"Time!JNK$86","v":0},{"$f":"Time!JNL$86","v":0},{"$f":"Time!JNM$86","v":0},{"$f":"Time!JNN$86","v":0},{"$f":"Time!JNO$86","v":0},{"$f":"Time!JNP$86","v":0},{"$f":"Time!JNQ$86","v":0},{"$f":"Time!JNR$86","v":0},{"$f":"Time!JNS$86","v":0},{"$f":"Time!JNT$86","v":0},{"$f":"Time!JNU$86","v":0},{"$f":"Time!JNV$86","v":0},{"$f":"Time!JNW$86","v":0},{"$f":"Time!JNX$86","v":0},{"$f":"Time!JNY$86","v":0},{"$f":"Time!JNZ$86","v":0},{"$f":"Time!JOA$86","v":0},{"$f":"Time!JOB$86","v":0},{"$f":"Time!JOC$86","v":0},{"$f":"Time!JOD$86","v":0},{"$f":"Time!JOE$86","v":0},{"$f":"Time!JOF$86","v":0},{"$f":"Time!JOG$86","v":0},{"$f":"Time!JOH$86","v":0},{"$f":"Time!JOI$86","v":0},{"$f":"Time!JOJ$86","v":0},{"$f":"Time!JOK$86","v":0},{"$f":"Time!JOL$86","v":0},{"$f":"Time!JOM$86","v":0},{"$f":"Time!JON$86","v":0},{"$f":"Time!JOO$86","v":0},{"$f":"Time!JOP$86","v":0},{"$f":"Time!JOQ$86","v":0},{"$f":"Time!JOR$86","v":0},{"$f":"Time!JOS$86","v":0},{"$f":"Time!JOT$86","v":0},{"$f":"Time!JOU$86","v":0},{"$f":"Time!JOV$86","v":0},{"$f":"Time!JOW$86","v":0},{"$f":"Time!JOX$86","v":0},{"$f":"Time!JOY$86","v":0},{"$f":"Time!JOZ$86","v":0},{"$f":"Time!JPA$86","v":0},{"$f":"Time!JPB$86","v":0},{"$f":"Time!JPC$86","v":0},{"$f":"Time!JPD$86","v":0},{"$f":"Time!JPE$86","v":0},{"$f":"Time!JPF$86","v":0},{"$f":"Time!JPG$86","v":0},{"$f":"Time!JPH$86","v":0},{"$f":"Time!JPI$86","v":0},{"$f":"Time!JPJ$86","v":0},{"$f":"Time!JPK$86","v":0},{"$f":"Time!JPL$86","v":0},{"$f":"Time!JPM$86","v":0},{"$f":"Time!JPN$86","v":0},{"$f":"Time!JPO$86","v":0},{"$f":"Time!JPP$86","v":0},{"$f":"Time!JPQ$86","v":0},{"$f":"Time!JPR$86","v":0},{"$f":"Time!JPS$86","v":0},{"$f":"Time!JPT$86","v":0},{"$f":"Time!JPU$86","v":0},{"$f":"Time!JPV$86","v":0},{"$f":"Time!JPW$86","v":0},{"$f":"Time!JPX$86","v":0},{"$f":"Time!JPY$86","v":0},{"$f":"Time!JPZ$86","v":0},{"$f":"Time!JQA$86","v":0},{"$f":"Time!JQB$86","v":0},{"$f":"Time!JQC$86","v":0},{"$f":"Time!JQD$86","v":0},{"$f":"Time!JQE$86","v":0},{"$f":"Time!JQF$86","v":0},{"$f":"Time!JQG$86","v":0},{"$f":"Time!JQH$86","v":0},{"$f":"Time!JQI$86","v":0},{"$f":"Time!JQJ$86","v":0},{"$f":"Time!JQK$86","v":0},{"$f":"Time!JQL$86","v":0},{"$f":"Time!JQM$86","v":0},{"$f":"Time!JQN$86","v":0},{"$f":"Time!JQO$86","v":0},{"$f":"Time!JQP$86","v":0},{"$f":"Time!JQQ$86","v":0},{"$f":"Time!JQR$86","v":0},{"$f":"Time!JQS$86","v":0},{"$f":"Time!JQT$86","v":0},{"$f":"Time!JQU$86","v":0},{"$f":"Time!JQV$86","v":0},{"$f":"Time!JQW$86","v":0},{"$f":"Time!JQX$86","v":0},{"$f":"Time!JQY$86","v":0},{"$f":"Time!JQZ$86","v":0},{"$f":"Time!JRA$86","v":0},{"$f":"Time!JRB$86","v":0},{"$f":"Time!JRC$86","v":0},{"$f":"Time!JRD$86","v":0},{"$f":"Time!JRE$86","v":0},{"$f":"Time!JRF$86","v":0},{"$f":"Time!JRG$86","v":0},{"$f":"Time!JRH$86","v":0},{"$f":"Time!JRI$86","v":0},{"$f":"Time!JRJ$86","v":0},{"$f":"Time!JRK$86","v":0},{"$f":"Time!JRL$86","v":0},{"$f":"Time!JRM$86","v":0},{"$f":"Time!JRN$86","v":0},{"$f":"Time!JRO$86","v":0},{"$f":"Time!JRP$86","v":0},{"$f":"Time!JRQ$86","v":0},{"$f":"Time!JRR$86","v":0},{"$f":"Time!JRS$86","v":0},{"$f":"Time!JRT$86","v":0},{"$f":"Time!JRU$86","v":0},{"$f":"Time!JRV$86","v":0},{"$f":"Time!JRW$86","v":0},{"$f":"Time!JRX$86","v":0},{"$f":"Time!JRY$86","v":0},{"$f":"Time!JRZ$86","v":0},{"$f":"Time!JSA$86","v":0},{"$f":"Time!JSB$86","v":0},{"$f":"Time!JSC$86","v":0},{"$f":"Time!JSD$86","v":0},{"$f":"Time!JSE$86","v":0},{"$f":"Time!JSF$86","v":0},{"$f":"Time!JSG$86","v":0},{"$f":"Time!JSH$86","v":0},{"$f":"Time!JSI$86","v":0},{"$f":"Time!JSJ$86","v":0},{"$f":"Time!JSK$86","v":0},{"$f":"Time!JSL$86","v":0},{"$f":"Time!JSM$86","v":0},{"$f":"Time!JSN$86","v":0},{"$f":"Time!JSO$86","v":0},{"$f":"Time!JSP$86","v":0},{"$f":"Time!JSQ$86","v":0},{"$f":"Time!JSR$86","v":0},{"$f":"Time!JSS$86","v":0},{"$f":"Time!JST$86","v":0},{"$f":"Time!JSU$86","v":0},{"$f":"Time!JSV$86","v":0},{"$f":"Time!JSW$86","v":0},{"$f":"Time!JSX$86","v":0},{"$f":"Time!JSY$86","v":0},{"$f":"Time!JSZ$86","v":0},{"$f":"Time!JTA$86","v":0},{"$f":"Time!JTB$86","v":0},{"$f":"Time!JTC$86","v":0},{"$f":"Time!JTD$86","v":0},{"$f":"Time!JTE$86","v":0},{"$f":"Time!JTF$86","v":0},{"$f":"Time!JTG$86","v":0},{"$f":"Time!JTH$86","v":0},{"$f":"Time!JTI$86","v":0},{"$f":"Time!JTJ$86","v":0},{"$f":"Time!JTK$86","v":0},{"$f":"Time!JTL$86","v":0},{"$f":"Time!JTM$86","v":0},{"$f":"Time!JTN$86","v":0},{"$f":"Time!JTO$86","v":0},{"$f":"Time!JTP$86","v":0},{"$f":"Time!JTQ$86","v":0},{"$f":"Time!JTR$86","v":0},{"$f":"Time!JTS$86","v":0},{"$f":"Time!JTT$86","v":0},{"$f":"Time!JTU$86","v":0},{"$f":"Time!JTV$86","v":0},{"$f":"Time!JTW$86","v":0},{"$f":"Time!JTX$86","v":0},{"$f":"Time!JTY$86","v":0},{"$f":"Time!JTZ$86","v":0},{"$f":"Time!JUA$86","v":0},{"$f":"Time!JUB$86","v":0},{"$f":"Time!JUC$86","v":0},{"$f":"Time!JUD$86","v":0},{"$f":"Time!JUE$86","v":0},{"$f":"Time!JUF$86","v":0},{"$f":"Time!JUG$86","v":0},{"$f":"Time!JUH$86","v":0},{"$f":"Time!JUI$86","v":0},{"$f":"Time!JUJ$86","v":0},{"$f":"Time!JUK$86","v":0},{"$f":"Time!JUL$86","v":0},{"$f":"Time!JUM$86","v":0},{"$f":"Time!JUN$86","v":0},{"$f":"Time!JUO$86","v":0},{"$f":"Time!JUP$86","v":0},{"$f":"Time!JUQ$86","v":0},{"$f":"Time!JUR$86","v":0},{"$f":"Time!JUS$86","v":0},{"$f":"Time!JUT$86","v":0},{"$f":"Time!JUU$86","v":0},{"$f":"Time!JUV$86","v":0},{"$f":"Time!JUW$86","v":0},{"$f":"Time!JUX$86","v":0},{"$f":"Time!JUY$86","v":0},{"$f":"Time!JUZ$86","v":0},{"$f":"Time!JVA$86","v":0},{"$f":"Time!JVB$86","v":0},{"$f":"Time!JVC$86","v":0},{"$f":"Time!JVD$86","v":0},{"$f":"Time!JVE$86","v":0},{"$f":"Time!JVF$86","v":0},{"$f":"Time!JVG$86","v":0},{"$f":"Time!JVH$86","v":0},{"$f":"Time!JVI$86","v":0},{"$f":"Time!JVJ$86","v":0},{"$f":"Time!JVK$86","v":0},{"$f":"Time!JVL$86","v":0},{"$f":"Time!JVM$86","v":0},{"$f":"Time!JVN$86","v":0},{"$f":"Time!JVO$86","v":0},{"$f":"Time!JVP$86","v":0},{"$f":"Time!JVQ$86","v":0},{"$f":"Time!JVR$86","v":0},{"$f":"Time!JVS$86","v":0},{"$f":"Time!JVT$86","v":0},{"$f":"Time!JVU$86","v":0},{"$f":"Time!JVV$86","v":0},{"$f":"Time!JVW$86","v":0},{"$f":"Time!JVX$86","v":0},{"$f":"Time!JVY$86","v":0},{"$f":"Time!JVZ$86","v":0},{"$f":"Time!JWA$86","v":0},{"$f":"Time!JWB$86","v":0},{"$f":"Time!JWC$86","v":0},{"$f":"Time!JWD$86","v":0},{"$f":"Time!JWE$86","v":0},{"$f":"Time!JWF$86","v":0},{"$f":"Time!JWG$86","v":0},{"$f":"Time!JWH$86","v":0},{"$f":"Time!JWI$86","v":0},{"$f":"Time!JWJ$86","v":0},{"$f":"Time!JWK$86","v":0},{"$f":"Time!JWL$86","v":0},{"$f":"Time!JWM$86","v":0},{"$f":"Time!JWN$86","v":0},{"$f":"Time!JWO$86","v":0},{"$f":"Time!JWP$86","v":0},{"$f":"Time!JWQ$86","v":0},{"$f":"Time!JWR$86","v":0},{"$f":"Time!JWS$86","v":0},{"$f":"Time!JWT$86","v":0},{"$f":"Time!JWU$86","v":0},{"$f":"Time!JWV$86","v":0},{"$f":"Time!JWW$86","v":0},{"$f":"Time!JWX$86","v":0},{"$f":"Time!JWY$86","v":0},{"$f":"Time!JWZ$86","v":0},{"$f":"Time!JXA$86","v":0},{"$f":"Time!JXB$86","v":0},{"$f":"Time!JXC$86","v":0},{"$f":"Time!JXD$86","v":0},{"$f":"Time!JXE$86","v":0},{"$f":"Time!JXF$86","v":0},{"$f":"Time!JXG$86","v":0},{"$f":"Time!JXH$86","v":0},{"$f":"Time!JXI$86","v":0},{"$f":"Time!JXJ$86","v":0},{"$f":"Time!JXK$86","v":0},{"$f":"Time!JXL$86","v":0},{"$f":"Time!JXM$86","v":0},{"$f":"Time!JXN$86","v":0},{"$f":"Time!JXO$86","v":0},{"$f":"Time!JXP$86","v":0},{"$f":"Time!JXQ$86","v":0},{"$f":"Time!JXR$86","v":0},{"$f":"Time!JXS$86","v":0},{"$f":"Time!JXT$86","v":0},{"$f":"Time!JXU$86","v":0},{"$f":"Time!JXV$86","v":0},{"$f":"Time!JXW$86","v":0},{"$f":"Time!JXX$86","v":0},{"$f":"Time!JXY$86","v":0},{"$f":"Time!JXZ$86","v":0},{"$f":"Time!JYA$86","v":0},{"$f":"Time!JYB$86","v":0},{"$f":"Time!JYC$86","v":0},{"$f":"Time!JYD$86","v":0},{"$f":"Time!JYE$86","v":0},{"$f":"Time!JYF$86","v":0},{"$f":"Time!JYG$86","v":0},{"$f":"Time!JYH$86","v":0},{"$f":"Time!JYI$86","v":0},{"$f":"Time!JYJ$86","v":0},{"$f":"Time!JYK$86","v":0},{"$f":"Time!JYL$86","v":0},{"$f":"Time!JYM$86","v":0},{"$f":"Time!JYN$86","v":0},{"$f":"Time!JYO$86","v":0},{"$f":"Time!JYP$86","v":0},{"$f":"Time!JYQ$86","v":0},{"$f":"Time!JYR$86","v":0},{"$f":"Time!JYS$86","v":0},{"$f":"Time!JYT$86","v":0},{"$f":"Time!JYU$86","v":0},{"$f":"Time!JYV$86","v":0},{"$f":"Time!JYW$86","v":0},{"$f":"Time!JYX$86","v":0},{"$f":"Time!JYY$86","v":0},{"$f":"Time!JYZ$86","v":0},{"$f":"Time!JZA$86","v":0},{"$f":"Time!JZB$86","v":0},{"$f":"Time!JZC$86","v":0},{"$f":"Time!JZD$86","v":0},{"$f":"Time!JZE$86","v":0},{"$f":"Time!JZF$86","v":0},{"$f":"Time!JZG$86","v":0},{"$f":"Time!JZH$86","v":0},{"$f":"Time!JZI$86","v":0},{"$f":"Time!JZJ$86","v":0},{"$f":"Time!JZK$86","v":0},{"$f":"Time!JZL$86","v":0},{"$f":"Time!JZM$86","v":0},{"$f":"Time!JZN$86","v":0},{"$f":"Time!JZO$86","v":0},{"$f":"Time!JZP$86","v":0},{"$f":"Time!JZQ$86","v":0},{"$f":"Time!JZR$86","v":0},{"$f":"Time!JZS$86","v":0},{"$f":"Time!JZT$86","v":0},{"$f":"Time!JZU$86","v":0},{"$f":"Time!JZV$86","v":0},{"$f":"Time!JZW$86","v":0},{"$f":"Time!JZX$86","v":0},{"$f":"Time!JZY$86","v":0},{"$f":"Time!JZZ$86","v":0},{"$f":"Time!KAA$86","v":0},{"$f":"Time!KAB$86","v":0},{"$f":"Time!KAC$86","v":0},{"$f":"Time!KAD$86","v":0},{"$f":"Time!KAE$86","v":0},{"$f":"Time!KAF$86","v":0},{"$f":"Time!KAG$86","v":0},{"$f":"Time!KAH$86","v":0},{"$f":"Time!KAI$86","v":0},{"$f":"Time!KAJ$86","v":0},{"$f":"Time!KAK$86","v":0},{"$f":"Time!KAL$86","v":0},{"$f":"Time!KAM$86","v":0},{"$f":"Time!KAN$86","v":0},{"$f":"Time!KAO$86","v":0},{"$f":"Time!KAP$86","v":0},{"$f":"Time!KAQ$86","v":0},{"$f":"Time!KAR$86","v":0},{"$f":"Time!KAS$86","v":0},{"$f":"Time!KAT$86","v":0},{"$f":"Time!KAU$86","v":0},{"$f":"Time!KAV$86","v":0},{"$f":"Time!KAW$86","v":0},{"$f":"Time!KAX$86","v":0},{"$f":"Time!KAY$86","v":0},{"$f":"Time!KAZ$86","v":0},{"$f":"Time!KBA$86","v":0},{"$f":"Time!KBB$86","v":0},{"$f":"Time!KBC$86","v":0},{"$f":"Time!KBD$86","v":0},{"$f":"Time!KBE$86","v":0},{"$f":"Time!KBF$86","v":0},{"$f":"Time!KBG$86","v":0},{"$f":"Time!KBH$86","v":0},{"$f":"Time!KBI$86","v":0},{"$f":"Time!KBJ$86","v":0},{"$f":"Time!KBK$86","v":0},{"$f":"Time!KBL$86","v":0},{"$f":"Time!KBM$86","v":0},{"$f":"Time!KBN$86","v":0},{"$f":"Time!KBO$86","v":0},{"$f":"Time!KBP$86","v":0},{"$f":"Time!KBQ$86","v":0},{"$f":"Time!KBR$86","v":0},{"$f":"Time!KBS$86","v":0},{"$f":"Time!KBT$86","v":0},{"$f":"Time!KBU$86","v":0},{"$f":"Time!KBV$86","v":0},{"$f":"Time!KBW$86","v":0},{"$f":"Time!KBX$86","v":0},{"$f":"Time!KBY$86","v":0},{"$f":"Time!KBZ$86","v":0},{"$f":"Time!KCA$86","v":0},{"$f":"Time!KCB$86","v":0},{"$f":"Time!KCC$86","v":0},{"$f":"Time!KCD$86","v":0},{"$f":"Time!KCE$86","v":0},{"$f":"Time!KCF$86","v":0},{"$f":"Time!KCG$86","v":0},{"$f":"Time!KCH$86","v":0},{"$f":"Time!KCI$86","v":0},{"$f":"Time!KCJ$86","v":0},{"$f":"Time!KCK$86","v":0},{"$f":"Time!KCL$86","v":0},{"$f":"Time!KCM$86","v":0},{"$f":"Time!KCN$86","v":0},{"$f":"Time!KCO$86","v":0},{"$f":"Time!KCP$86","v":0},{"$f":"Time!KCQ$86","v":0},{"$f":"Time!KCR$86","v":0},{"$f":"Time!KCS$86","v":0},{"$f":"Time!KCT$86","v":0},{"$f":"Time!KCU$86","v":0},{"$f":"Time!KCV$86","v":0},{"$f":"Time!KCW$86","v":0},{"$f":"Time!KCX$86","v":0},{"$f":"Time!KCY$86","v":0},{"$f":"Time!KCZ$86","v":0},{"$f":"Time!KDA$86","v":0},{"$f":"Time!KDB$86","v":0},{"$f":"Time!KDC$86","v":0},{"$f":"Time!KDD$86","v":0},{"$f":"Time!KDE$86","v":0},{"$f":"Time!KDF$86","v":0},{"$f":"Time!KDG$86","v":0},{"$f":"Time!KDH$86","v":0},{"$f":"Time!KDI$86","v":0},{"$f":"Time!KDJ$86","v":0},{"$f":"Time!KDK$86","v":0},{"$f":"Time!KDL$86","v":0},{"$f":"Time!KDM$86","v":0},{"$f":"Time!KDN$86","v":0},{"$f":"Time!KDO$86","v":0},{"$f":"Time!KDP$86","v":0},{"$f":"Time!KDQ$86","v":0},{"$f":"Time!KDR$86","v":0},{"$f":"Time!KDS$86","v":0},{"$f":"Time!KDT$86","v":0},{"$f":"Time!KDU$86","v":0},{"$f":"Time!KDV$86","v":0},{"$f":"Time!KDW$86","v":0},{"$f":"Time!KDX$86","v":0},{"$f":"Time!KDY$86","v":0},{"$f":"Time!KDZ$86","v":0},{"$f":"Time!KEA$86","v":0},{"$f":"Time!KEB$86","v":0},{"$f":"Time!KEC$86","v":0},{"$f":"Time!KED$86","v":0},{"$f":"Time!KEE$86","v":0},{"$f":"Time!KEF$86","v":0},{"$f":"Time!KEG$86","v":0},{"$f":"Time!KEH$86","v":0},{"$f":"Time!KEI$86","v":0},{"$f":"Time!KEJ$86","v":0},{"$f":"Time!KEK$86","v":0},{"$f":"Time!KEL$86","v":0},{"$f":"Time!KEM$86","v":0},{"$f":"Time!KEN$86","v":0},{"$f":"Time!KEO$86","v":0},{"$f":"Time!KEP$86","v":0},{"$f":"Time!KEQ$86","v":0},{"$f":"Time!KER$86","v":0},{"$f":"Time!KES$86","v":0},{"$f":"Time!KET$86","v":0},{"$f":"Time!KEU$86","v":0},{"$f":"Time!KEV$86","v":0},{"$f":"Time!KEW$86","v":0},{"$f":"Time!KEX$86","v":0},{"$f":"Time!KEY$86","v":0},{"$f":"Time!KEZ$86","v":0},{"$f":"Time!KFA$86","v":0},{"$f":"Time!KFB$86","v":0},{"$f":"Time!KFC$86","v":0},{"$f":"Time!KFD$86","v":0},{"$f":"Time!KFE$86","v":0},{"$f":"Time!KFF$86","v":0},{"$f":"Time!KFG$86","v":0},{"$f":"Time!KFH$86","v":0},{"$f":"Time!KFI$86","v":0},{"$f":"Time!KFJ$86","v":0},{"$f":"Time!KFK$86","v":0},{"$f":"Time!KFL$86","v":0},{"$f":"Time!KFM$86","v":0},{"$f":"Time!KFN$86","v":0},{"$f":"Time!KFO$86","v":0},{"$f":"Time!KFP$86","v":0},{"$f":"Time!KFQ$86","v":0},{"$f":"Time!KFR$86","v":0},{"$f":"Time!KFS$86","v":0},{"$f":"Time!KFT$86","v":0},{"$f":"Time!KFU$86","v":0},{"$f":"Time!KFV$86","v":0},{"$f":"Time!KFW$86","v":0},{"$f":"Time!KFX$86","v":0},{"$f":"Time!KFY$86","v":0},{"$f":"Time!KFZ$86","v":0},{"$f":"Time!KGA$86","v":0},{"$f":"Time!KGB$86","v":0},{"$f":"Time!KGC$86","v":0},{"$f":"Time!KGD$86","v":0},{"$f":"Time!KGE$86","v":0},{"$f":"Time!KGF$86","v":0},{"$f":"Time!KGG$86","v":0},{"$f":"Time!KGH$86","v":0},{"$f":"Time!KGI$86","v":0},{"$f":"Time!KGJ$86","v":0},{"$f":"Time!KGK$86","v":0},{"$f":"Time!KGL$86","v":0},{"$f":"Time!KGM$86","v":0},{"$f":"Time!KGN$86","v":0},{"$f":"Time!KGO$86","v":0},{"$f":"Time!KGP$86","v":0},{"$f":"Time!KGQ$86","v":0},{"$f":"Time!KGR$86","v":0},{"$f":"Time!KGS$86","v":0},{"$f":"Time!KGT$86","v":0},{"$f":"Time!KGU$86","v":0},{"$f":"Time!KGV$86","v":0},{"$f":"Time!KGW$86","v":0},{"$f":"Time!KGX$86","v":0},{"$f":"Time!KGY$86","v":0},{"$f":"Time!KGZ$86","v":0},{"$f":"Time!KHA$86","v":0},{"$f":"Time!KHB$86","v":0},{"$f":"Time!KHC$86","v":0},{"$f":"Time!KHD$86","v":0},{"$f":"Time!KHE$86","v":0},{"$f":"Time!KHF$86","v":0},{"$f":"Time!KHG$86","v":0},{"$f":"Time!KHH$86","v":0},{"$f":"Time!KHI$86","v":0},{"$f":"Time!KHJ$86","v":0},{"$f":"Time!KHK$86","v":0},{"$f":"Time!KHL$86","v":0},{"$f":"Time!KHM$86","v":0},{"$f":"Time!KHN$86","v":0},{"$f":"Time!KHO$86","v":0},{"$f":"Time!KHP$86","v":0},{"$f":"Time!KHQ$86","v":0},{"$f":"Time!KHR$86","v":0},{"$f":"Time!KHS$86","v":0},{"$f":"Time!KHT$86","v":0},{"$f":"Time!KHU$86","v":0},{"$f":"Time!KHV$86","v":0},{"$f":"Time!KHW$86","v":0},{"$f":"Time!KHX$86","v":0},{"$f":"Time!KHY$86","v":0},{"$f":"Time!KHZ$86","v":0},{"$f":"Time!KIA$86","v":0},{"$f":"Time!KIB$86","v":0},{"$f":"Time!KIC$86","v":0},{"$f":"Time!KID$86","v":0},{"$f":"Time!KIE$86","v":0},{"$f":"Time!KIF$86","v":0},{"$f":"Time!KIG$86","v":0},{"$f":"Time!KIH$86","v":0},{"$f":"Time!KII$86","v":0},{"$f":"Time!KIJ$86","v":0},{"$f":"Time!KIK$86","v":0},{"$f":"Time!KIL$86","v":0},{"$f":"Time!KIM$86","v":0},{"$f":"Time!KIN$86","v":0},{"$f":"Time!KIO$86","v":0},{"$f":"Time!KIP$86","v":0},{"$f":"Time!KIQ$86","v":0},{"$f":"Time!KIR$86","v":0},{"$f":"Time!KIS$86","v":0},{"$f":"Time!KIT$86","v":0},{"$f":"Time!KIU$86","v":0},{"$f":"Time!KIV$86","v":0},{"$f":"Time!KIW$86","v":0},{"$f":"Time!KIX$86","v":0},{"$f":"Time!KIY$86","v":0},{"$f":"Time!KIZ$86","v":0},{"$f":"Time!KJA$86","v":0},{"$f":"Time!KJB$86","v":0},{"$f":"Time!KJC$86","v":0},{"$f":"Time!KJD$86","v":0},{"$f":"Time!KJE$86","v":0},{"$f":"Time!KJF$86","v":0},{"$f":"Time!KJG$86","v":0},{"$f":"Time!KJH$86","v":0},{"$f":"Time!KJI$86","v":0},{"$f":"Time!KJJ$86","v":0},{"$f":"Time!KJK$86","v":0},{"$f":"Time!KJL$86","v":0},{"$f":"Time!KJM$86","v":0},{"$f":"Time!KJN$86","v":0},{"$f":"Time!KJO$86","v":0},{"$f":"Time!KJP$86","v":0},{"$f":"Time!KJQ$86","v":0},{"$f":"Time!KJR$86","v":0},{"$f":"Time!KJS$86","v":0},{"$f":"Time!KJT$86","v":0},{"$f":"Time!KJU$86","v":0},{"$f":"Time!KJV$86","v":0},{"$f":"Time!KJW$86","v":0},{"$f":"Time!KJX$86","v":0},{"$f":"Time!KJY$86","v":0},{"$f":"Time!KJZ$86","v":0},{"$f":"Time!KKA$86","v":0},{"$f":"Time!KKB$86","v":0},{"$f":"Time!KKC$86","v":0},{"$f":"Time!KKD$86","v":0},{"$f":"Time!KKE$86","v":0},{"$f":"Time!KKF$86","v":0},{"$f":"Time!KKG$86","v":0},{"$f":"Time!KKH$86","v":0},{"$f":"Time!KKI$86","v":0},{"$f":"Time!KKJ$86","v":0},{"$f":"Time!KKK$86","v":0},{"$f":"Time!KKL$86","v":0},{"$f":"Time!KKM$86","v":0},{"$f":"Time!KKN$86","v":0},{"$f":"Time!KKO$86","v":0},{"$f":"Time!KKP$86","v":0},{"$f":"Time!KKQ$86","v":0},{"$f":"Time!KKR$86","v":0},{"$f":"Time!KKS$86","v":0},{"$f":"Time!KKT$86","v":0},{"$f":"Time!KKU$86","v":0},{"$f":"Time!KKV$86","v":0},{"$f":"Time!KKW$86","v":0},{"$f":"Time!KKX$86","v":0},{"$f":"Time!KKY$86","v":0},{"$f":"Time!KKZ$86","v":0},{"$f":"Time!KLA$86","v":0},{"$f":"Time!KLB$86","v":0},{"$f":"Time!KLC$86","v":0},{"$f":"Time!KLD$86","v":0},{"$f":"Time!KLE$86","v":0},{"$f":"Time!KLF$86","v":0},{"$f":"Time!KLG$86","v":0},{"$f":"Time!KLH$86","v":0},{"$f":"Time!KLI$86","v":0},{"$f":"Time!KLJ$86","v":0},{"$f":"Time!KLK$86","v":0},{"$f":"Time!KLL$86","v":0},{"$f":"Time!KLM$86","v":0},{"$f":"Time!KLN$86","v":0},{"$f":"Time!KLO$86","v":0},{"$f":"Time!KLP$86","v":0},{"$f":"Time!KLQ$86","v":0},{"$f":"Time!KLR$86","v":0},{"$f":"Time!KLS$86","v":0},{"$f":"Time!KLT$86","v":0},{"$f":"Time!KLU$86","v":0},{"$f":"Time!KLV$86","v":0},{"$f":"Time!KLW$86","v":0},{"$f":"Time!KLX$86","v":0},{"$f":"Time!KLY$86","v":0},{"$f":"Time!KLZ$86","v":0},{"$f":"Time!KMA$86","v":0},{"$f":"Time!KMB$86","v":0},{"$f":"Time!KMC$86","v":0},{"$f":"Time!KMD$86","v":0},{"$f":"Time!KME$86","v":0},{"$f":"Time!KMF$86","v":0},{"$f":"Time!KMG$86","v":0},{"$f":"Time!KMH$86","v":0},{"$f":"Time!KMI$86","v":0},{"$f":"Time!KMJ$86","v":0},{"$f":"Time!KMK$86","v":0},{"$f":"Time!KML$86","v":0},{"$f":"Time!KMM$86","v":0},{"$f":"Time!KMN$86","v":0},{"$f":"Time!KMO$86","v":0},{"$f":"Time!KMP$86","v":0},{"$f":"Time!KMQ$86","v":0},{"$f":"Time!KMR$86","v":0},{"$f":"Time!KMS$86","v":0},{"$f":"Time!KMT$86","v":0},{"$f":"Time!KMU$86","v":0},{"$f":"Time!KMV$86","v":0},{"$f":"Time!KMW$86","v":0},{"$f":"Time!KMX$86","v":0},{"$f":"Time!KMY$86","v":0},{"$f":"Time!KMZ$86","v":0},{"$f":"Time!KNA$86","v":0},{"$f":"Time!KNB$86","v":0},{"$f":"Time!KNC$86","v":0},{"$f":"Time!KND$86","v":0},{"$f":"Time!KNE$86","v":0},{"$f":"Time!KNF$86","v":0},{"$f":"Time!KNG$86","v":0},{"$f":"Time!KNH$86","v":0},{"$f":"Time!KNI$86","v":0},{"$f":"Time!KNJ$86","v":0},{"$f":"Time!KNK$86","v":0},{"$f":"Time!KNL$86","v":0},{"$f":"Time!KNM$86","v":0},{"$f":"Time!KNN$86","v":0},{"$f":"Time!KNO$86","v":0},{"$f":"Time!KNP$86","v":0},{"$f":"Time!KNQ$86","v":0},{"$f":"Time!KNR$86","v":0},{"$f":"Time!KNS$86","v":0},{"$f":"Time!KNT$86","v":0},{"$f":"Time!KNU$86","v":0},{"$f":"Time!KNV$86","v":0},{"$f":"Time!KNW$86","v":0},{"$f":"Time!KNX$86","v":0},{"$f":"Time!KNY$86","v":0},{"$f":"Time!KNZ$86","v":0},{"$f":"Time!KOA$86","v":0},{"$f":"Time!KOB$86","v":0},{"$f":"Time!KOC$86","v":0},{"$f":"Time!KOD$86","v":0},{"$f":"Time!KOE$86","v":0},{"$f":"Time!KOF$86","v":0},{"$f":"Time!KOG$86","v":0},{"$f":"Time!KOH$86","v":0},{"$f":"Time!KOI$86","v":0},{"$f":"Time!KOJ$86","v":0},{"$f":"Time!KOK$86","v":0},{"$f":"Time!KOL$86","v":0},{"$f":"Time!KOM$86","v":0},{"$f":"Time!KON$86","v":0},{"$f":"Time!KOO$86","v":0},{"$f":"Time!KOP$86","v":0},{"$f":"Time!KOQ$86","v":0},{"$f":"Time!KOR$86","v":0},{"$f":"Time!KOS$86","v":0},{"$f":"Time!KOT$86","v":0},{"$f":"Time!KOU$86","v":0},{"$f":"Time!KOV$86","v":0},{"$f":"Time!KOW$86","v":0},{"$f":"Time!KOX$86","v":0},{"$f":"Time!KOY$86","v":0},{"$f":"Time!KOZ$86","v":0},{"$f":"Time!KPA$86","v":0},{"$f":"Time!KPB$86","v":0},{"$f":"Time!KPC$86","v":0},{"$f":"Time!KPD$86","v":0},{"$f":"Time!KPE$86","v":0},{"$f":"Time!KPF$86","v":0},{"$f":"Time!KPG$86","v":0},{"$f":"Time!KPH$86","v":0},{"$f":"Time!KPI$86","v":0},{"$f":"Time!KPJ$86","v":0},{"$f":"Time!KPK$86","v":0},{"$f":"Time!KPL$86","v":0},{"$f":"Time!KPM$86","v":0},{"$f":"Time!KPN$86","v":0},{"$f":"Time!KPO$86","v":0},{"$f":"Time!KPP$86","v":0},{"$f":"Time!KPQ$86","v":0},{"$f":"Time!KPR$86","v":0},{"$f":"Time!KPS$86","v":0},{"$f":"Time!KPT$86","v":0},{"$f":"Time!KPU$86","v":0},{"$f":"Time!KPV$86","v":0},{"$f":"Time!KPW$86","v":0},{"$f":"Time!KPX$86","v":0},{"$f":"Time!KPY$86","v":0},{"$f":"Time!KPZ$86","v":0},{"$f":"Time!KQA$86","v":0},{"$f":"Time!KQB$86","v":0},{"$f":"Time!KQC$86","v":0},{"$f":"Time!KQD$86","v":0},{"$f":"Time!KQE$86","v":0},{"$f":"Time!KQF$86","v":0},{"$f":"Time!KQG$86","v":0},{"$f":"Time!KQH$86","v":0},{"$f":"Time!KQI$86","v":0},{"$f":"Time!KQJ$86","v":0},{"$f":"Time!KQK$86","v":0},{"$f":"Time!KQL$86","v":0},{"$f":"Time!KQM$86","v":0},{"$f":"Time!KQN$86","v":0},{"$f":"Time!KQO$86","v":0},{"$f":"Time!KQP$86","v":0},{"$f":"Time!KQQ$86","v":0},{"$f":"Time!KQR$86","v":0},{"$f":"Time!KQS$86","v":0},{"$f":"Time!KQT$86","v":0},{"$f":"Time!KQU$86","v":0},{"$f":"Time!KQV$86","v":0},{"$f":"Time!KQW$86","v":0},{"$f":"Time!KQX$86","v":0},{"$f":"Time!KQY$86","v":0},{"$f":"Time!KQZ$86","v":0},{"$f":"Time!KRA$86","v":0},{"$f":"Time!KRB$86","v":0},{"$f":"Time!KRC$86","v":0},{"$f":"Time!KRD$86","v":0},{"$f":"Time!KRE$86","v":0},{"$f":"Time!KRF$86","v":0},{"$f":"Time!KRG$86","v":0},{"$f":"Time!KRH$86","v":0},{"$f":"Time!KRI$86","v":0},{"$f":"Time!KRJ$86","v":0},{"$f":"Time!KRK$86","v":0},{"$f":"Time!KRL$86","v":0},{"$f":"Time!KRM$86","v":0},{"$f":"Time!KRN$86","v":0},{"$f":"Time!KRO$86","v":0},{"$f":"Time!KRP$86","v":0},{"$f":"Time!KRQ$86","v":0},{"$f":"Time!KRR$86","v":0},{"$f":"Time!KRS$86","v":0},{"$f":"Time!KRT$86","v":0},{"$f":"Time!KRU$86","v":0},{"$f":"Time!KRV$86","v":0},{"$f":"Time!KRW$86","v":0},{"$f":"Time!KRX$86","v":0},{"$f":"Time!KRY$86","v":0},{"$f":"Time!KRZ$86","v":0},{"$f":"Time!KSA$86","v":0},{"$f":"Time!KSB$86","v":0},{"$f":"Time!KSC$86","v":0},{"$f":"Time!KSD$86","v":0},{"$f":"Time!KSE$86","v":0},{"$f":"Time!KSF$86","v":0},{"$f":"Time!KSG$86","v":0},{"$f":"Time!KSH$86","v":0},{"$f":"Time!KSI$86","v":0},{"$f":"Time!KSJ$86","v":0},{"$f":"Time!KSK$86","v":0},{"$f":"Time!KSL$86","v":0},{"$f":"Time!KSM$86","v":0},{"$f":"Time!KSN$86","v":0},{"$f":"Time!KSO$86","v":0},{"$f":"Time!KSP$86","v":0},{"$f":"Time!KSQ$86","v":0},{"$f":"Time!KSR$86","v":0},{"$f":"Time!KSS$86","v":0},{"$f":"Time!KST$86","v":0},{"$f":"Time!KSU$86","v":0},{"$f":"Time!KSV$86","v":0},{"$f":"Time!KSW$86","v":0},{"$f":"Time!KSX$86","v":0},{"$f":"Time!KSY$86","v":0},{"$f":"Time!KSZ$86","v":0},{"$f":"Time!KTA$86","v":0},{"$f":"Time!KTB$86","v":0},{"$f":"Time!KTC$86","v":0},{"$f":"Time!KTD$86","v":0},{"$f":"Time!KTE$86","v":0},{"$f":"Time!KTF$86","v":0},{"$f":"Time!KTG$86","v":0},{"$f":"Time!KTH$86","v":0},{"$f":"Time!KTI$86","v":0},{"$f":"Time!KTJ$86","v":0},{"$f":"Time!KTK$86","v":0},{"$f":"Time!KTL$86","v":0},{"$f":"Time!KTM$86","v":0},{"$f":"Time!KTN$86","v":0},{"$f":"Time!KTO$86","v":0},{"$f":"Time!KTP$86","v":0},{"$f":"Time!KTQ$86","v":0},{"$f":"Time!KTR$86","v":0},{"$f":"Time!KTS$86","v":0},{"$f":"Time!KTT$86","v":0},{"$f":"Time!KTU$86","v":0},{"$f":"Time!KTV$86","v":0},{"$f":"Time!KTW$86","v":0},{"$f":"Time!KTX$86","v":0},{"$f":"Time!KTY$86","v":0},{"$f":"Time!KTZ$86","v":0},{"$f":"Time!KUA$86","v":0},{"$f":"Time!KUB$86","v":0},{"$f":"Time!KUC$86","v":0},{"$f":"Time!KUD$86","v":0},{"$f":"Time!KUE$86","v":0},{"$f":"Time!KUF$86","v":0},{"$f":"Time!KUG$86","v":0},{"$f":"Time!KUH$86","v":0},{"$f":"Time!KUI$86","v":0},{"$f":"Time!KUJ$86","v":0},{"$f":"Time!KUK$86","v":0},{"$f":"Time!KUL$86","v":0},{"$f":"Time!KUM$86","v":0},{"$f":"Time!KUN$86","v":0},{"$f":"Time!KUO$86","v":0},{"$f":"Time!KUP$86","v":0},{"$f":"Time!KUQ$86","v":0},{"$f":"Time!KUR$86","v":0},{"$f":"Time!KUS$86","v":0},{"$f":"Time!KUT$86","v":0},{"$f":"Time!KUU$86","v":0},{"$f":"Time!KUV$86","v":0},{"$f":"Time!KUW$86","v":0},{"$f":"Time!KUX$86","v":0},{"$f":"Time!KUY$86","v":0},{"$f":"Time!KUZ$86","v":0},{"$f":"Time!KVA$86","v":0},{"$f":"Time!KVB$86","v":0},{"$f":"Time!KVC$86","v":0},{"$f":"Time!KVD$86","v":0},{"$f":"Time!KVE$86","v":0},{"$f":"Time!KVF$86","v":0},{"$f":"Time!KVG$86","v":0},{"$f":"Time!KVH$86","v":0},{"$f":"Time!KVI$86","v":0},{"$f":"Time!KVJ$86","v":0},{"$f":"Time!KVK$86","v":0},{"$f":"Time!KVL$86","v":0},{"$f":"Time!KVM$86","v":0},{"$f":"Time!KVN$86","v":0},{"$f":"Time!KVO$86","v":0},{"$f":"Time!KVP$86","v":0},{"$f":"Time!KVQ$86","v":0},{"$f":"Time!KVR$86","v":0},{"$f":"Time!KVS$86","v":0},{"$f":"Time!KVT$86","v":0},{"$f":"Time!KVU$86","v":0},{"$f":"Time!KVV$86","v":0},{"$f":"Time!KVW$86","v":0},{"$f":"Time!KVX$86","v":0},{"$f":"Time!KVY$86","v":0},{"$f":"Time!KVZ$86","v":0},{"$f":"Time!KWA$86","v":0},{"$f":"Time!KWB$86","v":0},{"$f":"Time!KWC$86","v":0},{"$f":"Time!KWD$86","v":0},{"$f":"Time!KWE$86","v":0},{"$f":"Time!KWF$86","v":0},{"$f":"Time!KWG$86","v":0},{"$f":"Time!KWH$86","v":0},{"$f":"Time!KWI$86","v":0},{"$f":"Time!KWJ$86","v":0},{"$f":"Time!KWK$86","v":0},{"$f":"Time!KWL$86","v":0},{"$f":"Time!KWM$86","v":0},{"$f":"Time!KWN$86","v":0},{"$f":"Time!KWO$86","v":0},{"$f":"Time!KWP$86","v":0},{"$f":"Time!KWQ$86","v":0},{"$f":"Time!KWR$86","v":0},{"$f":"Time!KWS$86","v":0},{"$f":"Time!KWT$86","v":0},{"$f":"Time!KWU$86","v":0},{"$f":"Time!KWV$86","v":0},{"$f":"Time!KWW$86","v":0},{"$f":"Time!KWX$86","v":0},{"$f":"Time!KWY$86","v":0},{"$f":"Time!KWZ$86","v":0},{"$f":"Time!KXA$86","v":0},{"$f":"Time!KXB$86","v":0},{"$f":"Time!KXC$86","v":0},{"$f":"Time!KXD$86","v":0},{"$f":"Time!KXE$86","v":0},{"$f":"Time!KXF$86","v":0},{"$f":"Time!KXG$86","v":0},{"$f":"Time!KXH$86","v":0},{"$f":"Time!KXI$86","v":0},{"$f":"Time!KXJ$86","v":0},{"$f":"Time!KXK$86","v":0},{"$f":"Time!KXL$86","v":0},{"$f":"Time!KXM$86","v":0},{"$f":"Time!KXN$86","v":0},{"$f":"Time!KXO$86","v":0},{"$f":"Time!KXP$86","v":0},{"$f":"Time!KXQ$86","v":0},{"$f":"Time!KXR$86","v":0},{"$f":"Time!KXS$86","v":0},{"$f":"Time!KXT$86","v":0},{"$f":"Time!KXU$86","v":0},{"$f":"Time!KXV$86","v":0},{"$f":"Time!KXW$86","v":0},{"$f":"Time!KXX$86","v":0},{"$f":"Time!KXY$86","v":0},{"$f":"Time!KXZ$86","v":0},{"$f":"Time!KYA$86","v":0},{"$f":"Time!KYB$86","v":0},{"$f":"Time!KYC$86","v":0},{"$f":"Time!KYD$86","v":0},{"$f":"Time!KYE$86","v":0},{"$f":"Time!KYF$86","v":0},{"$f":"Time!KYG$86","v":0},{"$f":"Time!KYH$86","v":0},{"$f":"Time!KYI$86","v":0},{"$f":"Time!KYJ$86","v":0},{"$f":"Time!KYK$86","v":0},{"$f":"Time!KYL$86","v":0},{"$f":"Time!KYM$86","v":0},{"$f":"Time!KYN$86","v":0},{"$f":"Time!KYO$86","v":0},{"$f":"Time!KYP$86","v":0},{"$f":"Time!KYQ$86","v":0},{"$f":"Time!KYR$86","v":0},{"$f":"Time!KYS$86","v":0},{"$f":"Time!KYT$86","v":0},{"$f":"Time!KYU$86","v":0},{"$f":"Time!KYV$86","v":0},{"$f":"Time!KYW$86","v":0},{"$f":"Time!KYX$86","v":0},{"$f":"Time!KYY$86","v":0},{"$f":"Time!KYZ$86","v":0},{"$f":"Time!KZA$86","v":0},{"$f":"Time!KZB$86","v":0},{"$f":"Time!KZC$86","v":0},{"$f":"Time!KZD$86","v":0},{"$f":"Time!KZE$86","v":0},{"$f":"Time!KZF$86","v":0},{"$f":"Time!KZG$86","v":0},{"$f":"Time!KZH$86","v":0},{"$f":"Time!KZI$86","v":0},{"$f":"Time!KZJ$86","v":0},{"$f":"Time!KZK$86","v":0},{"$f":"Time!KZL$86","v":0},{"$f":"Time!KZM$86","v":0},{"$f":"Time!KZN$86","v":0},{"$f":"Time!KZO$86","v":0},{"$f":"Time!KZP$86","v":0},{"$f":"Time!KZQ$86","v":0},{"$f":"Time!KZR$86","v":0},{"$f":"Time!KZS$86","v":0},{"$f":"Time!KZT$86","v":0},{"$f":"Time!KZU$86","v":0},{"$f":"Time!KZV$86","v":0},{"$f":"Time!KZW$86","v":0},{"$f":"Time!KZX$86","v":0},{"$f":"Time!KZY$86","v":0},{"$f":"Time!KZZ$86","v":0},{"$f":"Time!LAA$86","v":0},{"$f":"Time!LAB$86","v":0},{"$f":"Time!LAC$86","v":0},{"$f":"Time!LAD$86","v":0},{"$f":"Time!LAE$86","v":0},{"$f":"Time!LAF$86","v":0},{"$f":"Time!LAG$86","v":0},{"$f":"Time!LAH$86","v":0},{"$f":"Time!LAI$86","v":0},{"$f":"Time!LAJ$86","v":0},{"$f":"Time!LAK$86","v":0},{"$f":"Time!LAL$86","v":0},{"$f":"Time!LAM$86","v":0},{"$f":"Time!LAN$86","v":0},{"$f":"Time!LAO$86","v":0},{"$f":"Time!LAP$86","v":0},{"$f":"Time!LAQ$86","v":0},{"$f":"Time!LAR$86","v":0},{"$f":"Time!LAS$86","v":0},{"$f":"Time!LAT$86","v":0},{"$f":"Time!LAU$86","v":0},{"$f":"Time!LAV$86","v":0},{"$f":"Time!LAW$86","v":0},{"$f":"Time!LAX$86","v":0},{"$f":"Time!LAY$86","v":0},{"$f":"Time!LAZ$86","v":0},{"$f":"Time!LBA$86","v":0},{"$f":"Time!LBB$86","v":0},{"$f":"Time!LBC$86","v":0},{"$f":"Time!LBD$86","v":0},{"$f":"Time!LBE$86","v":0},{"$f":"Time!LBF$86","v":0},{"$f":"Time!LBG$86","v":0},{"$f":"Time!LBH$86","v":0},{"$f":"Time!LBI$86","v":0},{"$f":"Time!LBJ$86","v":0},{"$f":"Time!LBK$86","v":0},{"$f":"Time!LBL$86","v":0},{"$f":"Time!LBM$86","v":0},{"$f":"Time!LBN$86","v":0},{"$f":"Time!LBO$86","v":0},{"$f":"Time!LBP$86","v":0},{"$f":"Time!LBQ$86","v":0},{"$f":"Time!LBR$86","v":0},{"$f":"Time!LBS$86","v":0},{"$f":"Time!LBT$86","v":0},{"$f":"Time!LBU$86","v":0},{"$f":"Time!LBV$86","v":0},{"$f":"Time!LBW$86","v":0},{"$f":"Time!LBX$86","v":0},{"$f":"Time!LBY$86","v":0},{"$f":"Time!LBZ$86","v":0},{"$f":"Time!LCA$86","v":0},{"$f":"Time!LCB$86","v":0},{"$f":"Time!LCC$86","v":0},{"$f":"Time!LCD$86","v":0},{"$f":"Time!LCE$86","v":0},{"$f":"Time!LCF$86","v":0},{"$f":"Time!LCG$86","v":0},{"$f":"Time!LCH$86","v":0},{"$f":"Time!LCI$86","v":0},{"$f":"Time!LCJ$86","v":0},{"$f":"Time!LCK$86","v":0},{"$f":"Time!LCL$86","v":0},{"$f":"Time!LCM$86","v":0},{"$f":"Time!LCN$86","v":0},{"$f":"Time!LCO$86","v":0},{"$f":"Time!LCP$86","v":0},{"$f":"Time!LCQ$86","v":0},{"$f":"Time!LCR$86","v":0},{"$f":"Time!LCS$86","v":0},{"$f":"Time!LCT$86","v":0},{"$f":"Time!LCU$86","v":0},{"$f":"Time!LCV$86","v":0},{"$f":"Time!LCW$86","v":0},{"$f":"Time!LCX$86","v":0},{"$f":"Time!LCY$86","v":0},{"$f":"Time!LCZ$86","v":0},{"$f":"Time!LDA$86","v":0},{"$f":"Time!LDB$86","v":0},{"$f":"Time!LDC$86","v":0},{"$f":"Time!LDD$86","v":0},{"$f":"Time!LDE$86","v":0},{"$f":"Time!LDF$86","v":0},{"$f":"Time!LDG$86","v":0},{"$f":"Time!LDH$86","v":0},{"$f":"Time!LDI$86","v":0},{"$f":"Time!LDJ$86","v":0},{"$f":"Time!LDK$86","v":0},{"$f":"Time!LDL$86","v":0},{"$f":"Time!LDM$86","v":0},{"$f":"Time!LDN$86","v":0},{"$f":"Time!LDO$86","v":0},{"$f":"Time!LDP$86","v":0},{"$f":"Time!LDQ$86","v":0},{"$f":"Time!LDR$86","v":0},{"$f":"Time!LDS$86","v":0},{"$f":"Time!LDT$86","v":0},{"$f":"Time!LDU$86","v":0},{"$f":"Time!LDV$86","v":0},{"$f":"Time!LDW$86","v":0},{"$f":"Time!LDX$86","v":0},{"$f":"Time!LDY$86","v":0},{"$f":"Time!LDZ$86","v":0},{"$f":"Time!LEA$86","v":0},{"$f":"Time!LEB$86","v":0},{"$f":"Time!LEC$86","v":0},{"$f":"Time!LED$86","v":0},{"$f":"Time!LEE$86","v":0},{"$f":"Time!LEF$86","v":0},{"$f":"Time!LEG$86","v":0},{"$f":"Time!LEH$86","v":0},{"$f":"Time!LEI$86","v":0},{"$f":"Time!LEJ$86","v":0},{"$f":"Time!LEK$86","v":0},{"$f":"Time!LEL$86","v":0},{"$f":"Time!LEM$86","v":0},{"$f":"Time!LEN$86","v":0},{"$f":"Time!LEO$86","v":0},{"$f":"Time!LEP$86","v":0},{"$f":"Time!LEQ$86","v":0},{"$f":"Time!LER$86","v":0},{"$f":"Time!LES$86","v":0},{"$f":"Time!LET$86","v":0},{"$f":"Time!LEU$86","v":0},{"$f":"Time!LEV$86","v":0},{"$f":"Time!LEW$86","v":0},{"$f":"Time!LEX$86","v":0},{"$f":"Time!LEY$86","v":0},{"$f":"Time!LEZ$86","v":0},{"$f":"Time!LFA$86","v":0},{"$f":"Time!LFB$86","v":0},{"$f":"Time!LFC$86","v":0},{"$f":"Time!LFD$86","v":0},{"$f":"Time!LFE$86","v":0},{"$f":"Time!LFF$86","v":0},{"$f":"Time!LFG$86","v":0},{"$f":"Time!LFH$86","v":0},{"$f":"Time!LFI$86","v":0},{"$f":"Time!LFJ$86","v":0},{"$f":"Time!LFK$86","v":0},{"$f":"Time!LFL$86","v":0},{"$f":"Time!LFM$86","v":0},{"$f":"Time!LFN$86","v":0},{"$f":"Time!LFO$86","v":0},{"$f":"Time!LFP$86","v":0},{"$f":"Time!LFQ$86","v":0},{"$f":"Time!LFR$86","v":0},{"$f":"Time!LFS$86","v":0},{"$f":"Time!LFT$86","v":0},{"$f":"Time!LFU$86","v":0},{"$f":"Time!LFV$86","v":0},{"$f":"Time!LFW$86","v":0},{"$f":"Time!LFX$86","v":0},{"$f":"Time!LFY$86","v":0},{"$f":"Time!LFZ$86","v":0},{"$f":"Time!LGA$86","v":0},{"$f":"Time!LGB$86","v":0},{"$f":"Time!LGC$86","v":0},{"$f":"Time!LGD$86","v":0},{"$f":"Time!LGE$86","v":0},{"$f":"Time!LGF$86","v":0},{"$f":"Time!LGG$86","v":0},{"$f":"Time!LGH$86","v":0},{"$f":"Time!LGI$86","v":0},{"$f":"Time!LGJ$86","v":0},{"$f":"Time!LGK$86","v":0},{"$f":"Time!LGL$86","v":0},{"$f":"Time!LGM$86","v":0},{"$f":"Time!LGN$86","v":0},{"$f":"Time!LGO$86","v":0},{"$f":"Time!LGP$86","v":0},{"$f":"Time!LGQ$86","v":0},{"$f":"Time!LGR$86","v":0},{"$f":"Time!LGS$86","v":0},{"$f":"Time!LGT$86","v":0},{"$f":"Time!LGU$86","v":0},{"$f":"Time!LGV$86","v":0},{"$f":"Time!LGW$86","v":0},{"$f":"Time!LGX$86","v":0},{"$f":"Time!LGY$86","v":0},{"$f":"Time!LGZ$86","v":0},{"$f":"Time!LHA$86","v":0},{"$f":"Time!LHB$86","v":0},{"$f":"Time!LHC$86","v":0},{"$f":"Time!LHD$86","v":0},{"$f":"Time!LHE$86","v":0},{"$f":"Time!LHF$86","v":0},{"$f":"Time!LHG$86","v":0},{"$f":"Time!LHH$86","v":0},{"$f":"Time!LHI$86","v":0},{"$f":"Time!LHJ$86","v":0},{"$f":"Time!LHK$86","v":0},{"$f":"Time!LHL$86","v":0},{"$f":"Time!LHM$86","v":0},{"$f":"Time!LHN$86","v":0},{"$f":"Time!LHO$86","v":0},{"$f":"Time!LHP$86","v":0},{"$f":"Time!LHQ$86","v":0},{"$f":"Time!LHR$86","v":0},{"$f":"Time!LHS$86","v":0},{"$f":"Time!LHT$86","v":0},{"$f":"Time!LHU$86","v":0},{"$f":"Time!LHV$86","v":0},{"$f":"Time!LHW$86","v":0},{"$f":"Time!LHX$86","v":0},{"$f":"Time!LHY$86","v":0},{"$f":"Time!LHZ$86","v":0},{"$f":"Time!LIA$86","v":0},{"$f":"Time!LIB$86","v":0},{"$f":"Time!LIC$86","v":0},{"$f":"Time!LID$86","v":0},{"$f":"Time!LIE$86","v":0},{"$f":"Time!LIF$86","v":0},{"$f":"Time!LIG$86","v":0},{"$f":"Time!LIH$86","v":0},{"$f":"Time!LII$86","v":0},{"$f":"Time!LIJ$86","v":0},{"$f":"Time!LIK$86","v":0},{"$f":"Time!LIL$86","v":0},{"$f":"Time!LIM$86","v":0},{"$f":"Time!LIN$86","v":0},{"$f":"Time!LIO$86","v":0},{"$f":"Time!LIP$86","v":0},{"$f":"Time!LIQ$86","v":0},{"$f":"Time!LIR$86","v":0},{"$f":"Time!LIS$86","v":0},{"$f":"Time!LIT$86","v":0},{"$f":"Time!LIU$86","v":0},{"$f":"Time!LIV$86","v":0},{"$f":"Time!LIW$86","v":0},{"$f":"Time!LIX$86","v":0},{"$f":"Time!LIY$86","v":0},{"$f":"Time!LIZ$86","v":0},{"$f":"Time!LJA$86","v":0},{"$f":"Time!LJB$86","v":0},{"$f":"Time!LJC$86","v":0},{"$f":"Time!LJD$86","v":0},{"$f":"Time!LJE$86","v":0},{"$f":"Time!LJF$86","v":0},{"$f":"Time!LJG$86","v":0},{"$f":"Time!LJH$86","v":0},{"$f":"Time!LJI$86","v":0},{"$f":"Time!LJJ$86","v":0},{"$f":"Time!LJK$86","v":0},{"$f":"Time!LJL$86","v":0},{"$f":"Time!LJM$86","v":0},{"$f":"Time!LJN$86","v":0},{"$f":"Time!LJO$86","v":0},{"$f":"Time!LJP$86","v":0},{"$f":"Time!LJQ$86","v":0},{"$f":"Time!LJR$86","v":0},{"$f":"Time!LJS$86","v":0},{"$f":"Time!LJT$86","v":0},{"$f":"Time!LJU$86","v":0},{"$f":"Time!LJV$86","v":0},{"$f":"Time!LJW$86","v":0},{"$f":"Time!LJX$86","v":0},{"$f":"Time!LJY$86","v":0},{"$f":"Time!LJZ$86","v":0},{"$f":"Time!LKA$86","v":0},{"$f":"Time!LKB$86","v":0},{"$f":"Time!LKC$86","v":0},{"$f":"Time!LKD$86","v":0},{"$f":"Time!LKE$86","v":0},{"$f":"Time!LKF$86","v":0},{"$f":"Time!LKG$86","v":0},{"$f":"Time!LKH$86","v":0},{"$f":"Time!LKI$86","v":0},{"$f":"Time!LKJ$86","v":0},{"$f":"Time!LKK$86","v":0},{"$f":"Time!LKL$86","v":0},{"$f":"Time!LKM$86","v":0},{"$f":"Time!LKN$86","v":0},{"$f":"Time!LKO$86","v":0},{"$f":"Time!LKP$86","v":0},{"$f":"Time!LKQ$86","v":0},{"$f":"Time!LKR$86","v":0},{"$f":"Time!LKS$86","v":0},{"$f":"Time!LKT$86","v":0},{"$f":"Time!LKU$86","v":0},{"$f":"Time!LKV$86","v":0},{"$f":"Time!LKW$86","v":0},{"$f":"Time!LKX$86","v":0},{"$f":"Time!LKY$86","v":0},{"$f":"Time!LKZ$86","v":0},{"$f":"Time!LLA$86","v":0},{"$f":"Time!LLB$86","v":0},{"$f":"Time!LLC$86","v":0},{"$f":"Time!LLD$86","v":0},{"$f":"Time!LLE$86","v":0},{"$f":"Time!LLF$86","v":0},{"$f":"Time!LLG$86","v":0},{"$f":"Time!LLH$86","v":0},{"$f":"Time!LLI$86","v":0},{"$f":"Time!LLJ$86","v":0},{"$f":"Time!LLK$86","v":0},{"$f":"Time!LLL$86","v":0},{"$f":"Time!LLM$86","v":0},{"$f":"Time!LLN$86","v":0},{"$f":"Time!LLO$86","v":0},{"$f":"Time!LLP$86","v":0},{"$f":"Time!LLQ$86","v":0},{"$f":"Time!LLR$86","v":0},{"$f":"Time!LLS$86","v":0},{"$f":"Time!LLT$86","v":0},{"$f":"Time!LLU$86","v":0},{"$f":"Time!LLV$86","v":0},{"$f":"Time!LLW$86","v":0},{"$f":"Time!LLX$86","v":0},{"$f":"Time!LLY$86","v":0},{"$f":"Time!LLZ$86","v":0},{"$f":"Time!LMA$86","v":0},{"$f":"Time!LMB$86","v":0},{"$f":"Time!LMC$86","v":0},{"$f":"Time!LMD$86","v":0},{"$f":"Time!LME$86","v":0},{"$f":"Time!LMF$86","v":0},{"$f":"Time!LMG$86","v":0},{"$f":"Time!LMH$86","v":0},{"$f":"Time!LMI$86","v":0},{"$f":"Time!LMJ$86","v":0},{"$f":"Time!LMK$86","v":0},{"$f":"Time!LML$86","v":0},{"$f":"Time!LMM$86","v":0},{"$f":"Time!LMN$86","v":0},{"$f":"Time!LMO$86","v":0},{"$f":"Time!LMP$86","v":0},{"$f":"Time!LMQ$86","v":0},{"$f":"Time!LMR$86","v":0},{"$f":"Time!LMS$86","v":0},{"$f":"Time!LMT$86","v":0},{"$f":"Time!LMU$86","v":0},{"$f":"Time!LMV$86","v":0},{"$f":"Time!LMW$86","v":0},{"$f":"Time!LMX$86","v":0},{"$f":"Time!LMY$86","v":0},{"$f":"Time!LMZ$86","v":0},{"$f":"Time!LNA$86","v":0},{"$f":"Time!LNB$86","v":0},{"$f":"Time!LNC$86","v":0},{"$f":"Time!LND$86","v":0},{"$f":"Time!LNE$86","v":0},{"$f":"Time!LNF$86","v":0},{"$f":"Time!LNG$86","v":0},{"$f":"Time!LNH$86","v":0},{"$f":"Time!LNI$86","v":0},{"$f":"Time!LNJ$86","v":0},{"$f":"Time!LNK$86","v":0},{"$f":"Time!LNL$86","v":0},{"$f":"Time!LNM$86","v":0},{"$f":"Time!LNN$86","v":0},{"$f":"Time!LNO$86","v":0},{"$f":"Time!LNP$86","v":0},{"$f":"Time!LNQ$86","v":0},{"$f":"Time!LNR$86","v":0},{"$f":"Time!LNS$86","v":0},{"$f":"Time!LNT$86","v":0},{"$f":"Time!LNU$86","v":0},{"$f":"Time!LNV$86","v":0},{"$f":"Time!LNW$86","v":0},{"$f":"Time!LNX$86","v":0},{"$f":"Time!LNY$86","v":0},{"$f":"Time!LNZ$86","v":0},{"$f":"Time!LOA$86","v":0},{"$f":"Time!LOB$86","v":0},{"$f":"Time!LOC$86","v":0},{"$f":"Time!LOD$86","v":0},{"$f":"Time!LOE$86","v":0},{"$f":"Time!LOF$86","v":0},{"$f":"Time!LOG$86","v":0},{"$f":"Time!LOH$86","v":0},{"$f":"Time!LOI$86","v":0},{"$f":"Time!LOJ$86","v":0},{"$f":"Time!LOK$86","v":0},{"$f":"Time!LOL$86","v":0},{"$f":"Time!LOM$86","v":0},{"$f":"Time!LON$86","v":0},{"$f":"Time!LOO$86","v":0},{"$f":"Time!LOP$86","v":0},{"$f":"Time!LOQ$86","v":0},{"$f":"Time!LOR$86","v":0},{"$f":"Time!LOS$86","v":0},{"$f":"Time!LOT$86","v":0},{"$f":"Time!LOU$86","v":0},{"$f":"Time!LOV$86","v":0},{"$f":"Time!LOW$86","v":0},{"$f":"Time!LOX$86","v":0},{"$f":"Time!LOY$86","v":0},{"$f":"Time!LOZ$86","v":0},{"$f":"Time!LPA$86","v":0},{"$f":"Time!LPB$86","v":0},{"$f":"Time!LPC$86","v":0},{"$f":"Time!LPD$86","v":0},{"$f":"Time!LPE$86","v":0},{"$f":"Time!LPF$86","v":0},{"$f":"Time!LPG$86","v":0},{"$f":"Time!LPH$86","v":0},{"$f":"Time!LPI$86","v":0},{"$f":"Time!LPJ$86","v":0},{"$f":"Time!LPK$86","v":0},{"$f":"Time!LPL$86","v":0},{"$f":"Time!LPM$86","v":0},{"$f":"Time!LPN$86","v":0},{"$f":"Time!LPO$86","v":0},{"$f":"Time!LPP$86","v":0},{"$f":"Time!LPQ$86","v":0},{"$f":"Time!LPR$86","v":0},{"$f":"Time!LPS$86","v":0},{"$f":"Time!LPT$86","v":0},{"$f":"Time!LPU$86","v":0},{"$f":"Time!LPV$86","v":0},{"$f":"Time!LPW$86","v":0},{"$f":"Time!LPX$86","v":0},{"$f":"Time!LPY$86","v":0},{"$f":"Time!LPZ$86","v":0},{"$f":"Time!LQA$86","v":0},{"$f":"Time!LQB$86","v":0},{"$f":"Time!LQC$86","v":0},{"$f":"Time!LQD$86","v":0},{"$f":"Time!LQE$86","v":0},{"$f":"Time!LQF$86","v":0},{"$f":"Time!LQG$86","v":0},{"$f":"Time!LQH$86","v":0},{"$f":"Time!LQI$86","v":0},{"$f":"Time!LQJ$86","v":0},{"$f":"Time!LQK$86","v":0},{"$f":"Time!LQL$86","v":0},{"$f":"Time!LQM$86","v":0},{"$f":"Time!LQN$86","v":0},{"$f":"Time!LQO$86","v":0},{"$f":"Time!LQP$86","v":0},{"$f":"Time!LQQ$86","v":0},{"$f":"Time!LQR$86","v":0},{"$f":"Time!LQS$86","v":0},{"$f":"Time!LQT$86","v":0},{"$f":"Time!LQU$86","v":0},{"$f":"Time!LQV$86","v":0},{"$f":"Time!LQW$86","v":0},{"$f":"Time!LQX$86","v":0},{"$f":"Time!LQY$86","v":0},{"$f":"Time!LQZ$86","v":0},{"$f":"Time!LRA$86","v":0},{"$f":"Time!LRB$86","v":0},{"$f":"Time!LRC$86","v":0},{"$f":"Time!LRD$86","v":0},{"$f":"Time!LRE$86","v":0},{"$f":"Time!LRF$86","v":0},{"$f":"Time!LRG$86","v":0},{"$f":"Time!LRH$86","v":0},{"$f":"Time!LRI$86","v":0},{"$f":"Time!LRJ$86","v":0},{"$f":"Time!LRK$86","v":0},{"$f":"Time!LRL$86","v":0},{"$f":"Time!LRM$86","v":0},{"$f":"Time!LRN$86","v":0},{"$f":"Time!LRO$86","v":0},{"$f":"Time!LRP$86","v":0},{"$f":"Time!LRQ$86","v":0},{"$f":"Time!LRR$86","v":0},{"$f":"Time!LRS$86","v":0},{"$f":"Time!LRT$86","v":0},{"$f":"Time!LRU$86","v":0},{"$f":"Time!LRV$86","v":0},{"$f":"Time!LRW$86","v":0},{"$f":"Time!LRX$86","v":0},{"$f":"Time!LRY$86","v":0},{"$f":"Time!LRZ$86","v":0},{"$f":"Time!LSA$86","v":0},{"$f":"Time!LSB$86","v":0},{"$f":"Time!LSC$86","v":0},{"$f":"Time!LSD$86","v":0},{"$f":"Time!LSE$86","v":0},{"$f":"Time!LSF$86","v":0},{"$f":"Time!LSG$86","v":0},{"$f":"Time!LSH$86","v":0},{"$f":"Time!LSI$86","v":0},{"$f":"Time!LSJ$86","v":0},{"$f":"Time!LSK$86","v":0},{"$f":"Time!LSL$86","v":0},{"$f":"Time!LSM$86","v":0},{"$f":"Time!LSN$86","v":0},{"$f":"Time!LSO$86","v":0},{"$f":"Time!LSP$86","v":0},{"$f":"Time!LSQ$86","v":0},{"$f":"Time!LSR$86","v":0},{"$f":"Time!LSS$86","v":0},{"$f":"Time!LST$86","v":0},{"$f":"Time!LSU$86","v":0},{"$f":"Time!LSV$86","v":0},{"$f":"Time!LSW$86","v":0},{"$f":"Time!LSX$86","v":0},{"$f":"Time!LSY$86","v":0},{"$f":"Time!LSZ$86","v":0},{"$f":"Time!LTA$86","v":0},{"$f":"Time!LTB$86","v":0},{"$f":"Time!LTC$86","v":0},{"$f":"Time!LTD$86","v":0},{"$f":"Time!LTE$86","v":0},{"$f":"Time!LTF$86","v":0},{"$f":"Time!LTG$86","v":0},{"$f":"Time!LTH$86","v":0},{"$f":"Time!LTI$86","v":0},{"$f":"Time!LTJ$86","v":0},{"$f":"Time!LTK$86","v":0},{"$f":"Time!LTL$86","v":0},{"$f":"Time!LTM$86","v":0},{"$f":"Time!LTN$86","v":0},{"$f":"Time!LTO$86","v":0},{"$f":"Time!LTP$86","v":0},{"$f":"Time!LTQ$86","v":0},{"$f":"Time!LTR$86","v":0},{"$f":"Time!LTS$86","v":0},{"$f":"Time!LTT$86","v":0},{"$f":"Time!LTU$86","v":0},{"$f":"Time!LTV$86","v":0},{"$f":"Time!LTW$86","v":0},{"$f":"Time!LTX$86","v":0},{"$f":"Time!LTY$86","v":0},{"$f":"Time!LTZ$86","v":0},{"$f":"Time!LUA$86","v":0},{"$f":"Time!LUB$86","v":0},{"$f":"Time!LUC$86","v":0},{"$f":"Time!LUD$86","v":0},{"$f":"Time!LUE$86","v":0},{"$f":"Time!LUF$86","v":0},{"$f":"Time!LUG$86","v":0},{"$f":"Time!LUH$86","v":0},{"$f":"Time!LUI$86","v":0},{"$f":"Time!LUJ$86","v":0},{"$f":"Time!LUK$86","v":0},{"$f":"Time!LUL$86","v":0},{"$f":"Time!LUM$86","v":0},{"$f":"Time!LUN$86","v":0},{"$f":"Time!LUO$86","v":0},{"$f":"Time!LUP$86","v":0},{"$f":"Time!LUQ$86","v":0},{"$f":"Time!LUR$86","v":0},{"$f":"Time!LUS$86","v":0},{"$f":"Time!LUT$86","v":0},{"$f":"Time!LUU$86","v":0},{"$f":"Time!LUV$86","v":0},{"$f":"Time!LUW$86","v":0},{"$f":"Time!LUX$86","v":0},{"$f":"Time!LUY$86","v":0},{"$f":"Time!LUZ$86","v":0},{"$f":"Time!LVA$86","v":0},{"$f":"Time!LVB$86","v":0},{"$f":"Time!LVC$86","v":0},{"$f":"Time!LVD$86","v":0},{"$f":"Time!LVE$86","v":0},{"$f":"Time!LVF$86","v":0},{"$f":"Time!LVG$86","v":0},{"$f":"Time!LVH$86","v":0},{"$f":"Time!LVI$86","v":0},{"$f":"Time!LVJ$86","v":0},{"$f":"Time!LVK$86","v":0},{"$f":"Time!LVL$86","v":0},{"$f":"Time!LVM$86","v":0},{"$f":"Time!LVN$86","v":0},{"$f":"Time!LVO$86","v":0},{"$f":"Time!LVP$86","v":0},{"$f":"Time!LVQ$86","v":0},{"$f":"Time!LVR$86","v":0},{"$f":"Time!LVS$86","v":0},{"$f":"Time!LVT$86","v":0},{"$f":"Time!LVU$86","v":0},{"$f":"Time!LVV$86","v":0},{"$f":"Time!LVW$86","v":0},{"$f":"Time!LVX$86","v":0},{"$f":"Time!LVY$86","v":0},{"$f":"Time!LVZ$86","v":0},{"$f":"Time!LWA$86","v":0},{"$f":"Time!LWB$86","v":0},{"$f":"Time!LWC$86","v":0},{"$f":"Time!LWD$86","v":0},{"$f":"Time!LWE$86","v":0},{"$f":"Time!LWF$86","v":0},{"$f":"Time!LWG$86","v":0},{"$f":"Time!LWH$86","v":0},{"$f":"Time!LWI$86","v":0},{"$f":"Time!LWJ$86","v":0},{"$f":"Time!LWK$86","v":0},{"$f":"Time!LWL$86","v":0},{"$f":"Time!LWM$86","v":0},{"$f":"Time!LWN$86","v":0},{"$f":"Time!LWO$86","v":0},{"$f":"Time!LWP$86","v":0},{"$f":"Time!LWQ$86","v":0},{"$f":"Time!LWR$86","v":0},{"$f":"Time!LWS$86","v":0},{"$f":"Time!LWT$86","v":0},{"$f":"Time!LWU$86","v":0},{"$f":"Time!LWV$86","v":0},{"$f":"Time!LWW$86","v":0},{"$f":"Time!LWX$86","v":0},{"$f":"Time!LWY$86","v":0},{"$f":"Time!LWZ$86","v":0},{"$f":"Time!LXA$86","v":0},{"$f":"Time!LXB$86","v":0},{"$f":"Time!LXC$86","v":0},{"$f":"Time!LXD$86","v":0},{"$f":"Time!LXE$86","v":0},{"$f":"Time!LXF$86","v":0},{"$f":"Time!LXG$86","v":0},{"$f":"Time!LXH$86","v":0},{"$f":"Time!LXI$86","v":0},{"$f":"Time!LXJ$86","v":0},{"$f":"Time!LXK$86","v":0},{"$f":"Time!LXL$86","v":0},{"$f":"Time!LXM$86","v":0},{"$f":"Time!LXN$86","v":0},{"$f":"Time!LXO$86","v":0},{"$f":"Time!LXP$86","v":0},{"$f":"Time!LXQ$86","v":0},{"$f":"Time!LXR$86","v":0},{"$f":"Time!LXS$86","v":0},{"$f":"Time!LXT$86","v":0},{"$f":"Time!LXU$86","v":0},{"$f":"Time!LXV$86","v":0},{"$f":"Time!LXW$86","v":0},{"$f":"Time!LXX$86","v":0},{"$f":"Time!LXY$86","v":0},{"$f":"Time!LXZ$86","v":0},{"$f":"Time!LYA$86","v":0},{"$f":"Time!LYB$86","v":0},{"$f":"Time!LYC$86","v":0},{"$f":"Time!LYD$86","v":0},{"$f":"Time!LYE$86","v":0},{"$f":"Time!LYF$86","v":0},{"$f":"Time!LYG$86","v":0},{"$f":"Time!LYH$86","v":0},{"$f":"Time!LYI$86","v":0},{"$f":"Time!LYJ$86","v":0},{"$f":"Time!LYK$86","v":0},{"$f":"Time!LYL$86","v":0},{"$f":"Time!LYM$86","v":0},{"$f":"Time!LYN$86","v":0},{"$f":"Time!LYO$86","v":0},{"$f":"Time!LYP$86","v":0},{"$f":"Time!LYQ$86","v":0},{"$f":"Time!LYR$86","v":0},{"$f":"Time!LYS$86","v":0},{"$f":"Time!LYT$86","v":0},{"$f":"Time!LYU$86","v":0},{"$f":"Time!LYV$86","v":0},{"$f":"Time!LYW$86","v":0},{"$f":"Time!LYX$86","v":0},{"$f":"Time!LYY$86","v":0},{"$f":"Time!LYZ$86","v":0},{"$f":"Time!LZA$86","v":0},{"$f":"Time!LZB$86","v":0},{"$f":"Time!LZC$86","v":0},{"$f":"Time!LZD$86","v":0},{"$f":"Time!LZE$86","v":0},{"$f":"Time!LZF$86","v":0},{"$f":"Time!LZG$86","v":0},{"$f":"Time!LZH$86","v":0},{"$f":"Time!LZI$86","v":0},{"$f":"Time!LZJ$86","v":0},{"$f":"Time!LZK$86","v":0},{"$f":"Time!LZL$86","v":0},{"$f":"Time!LZM$86","v":0},{"$f":"Time!LZN$86","v":0},{"$f":"Time!LZO$86","v":0},{"$f":"Time!LZP$86","v":0},{"$f":"Time!LZQ$86","v":0},{"$f":"Time!LZR$86","v":0},{"$f":"Time!LZS$86","v":0},{"$f":"Time!LZT$86","v":0},{"$f":"Time!LZU$86","v":0},{"$f":"Time!LZV$86","v":0},{"$f":"Time!LZW$86","v":0},{"$f":"Time!LZX$86","v":0},{"$f":"Time!LZY$86","v":0},{"$f":"Time!LZZ$86","v":0},{"$f":"Time!MAA$86","v":0},{"$f":"Time!MAB$86","v":0},{"$f":"Time!MAC$86","v":0},{"$f":"Time!MAD$86","v":0},{"$f":"Time!MAE$86","v":0},{"$f":"Time!MAF$86","v":0},{"$f":"Time!MAG$86","v":0},{"$f":"Time!MAH$86","v":0},{"$f":"Time!MAI$86","v":0},{"$f":"Time!MAJ$86","v":0},{"$f":"Time!MAK$86","v":0},{"$f":"Time!MAL$86","v":0},{"$f":"Time!MAM$86","v":0},{"$f":"Time!MAN$86","v":0},{"$f":"Time!MAO$86","v":0},{"$f":"Time!MAP$86","v":0},{"$f":"Time!MAQ$86","v":0},{"$f":"Time!MAR$86","v":0},{"$f":"Time!MAS$86","v":0},{"$f":"Time!MAT$86","v":0},{"$f":"Time!MAU$86","v":0},{"$f":"Time!MAV$86","v":0},{"$f":"Time!MAW$86","v":0},{"$f":"Time!MAX$86","v":0},{"$f":"Time!MAY$86","v":0},{"$f":"Time!MAZ$86","v":0},{"$f":"Time!MBA$86","v":0},{"$f":"Time!MBB$86","v":0},{"$f":"Time!MBC$86","v":0},{"$f":"Time!MBD$86","v":0},{"$f":"Time!MBE$86","v":0},{"$f":"Time!MBF$86","v":0},{"$f":"Time!MBG$86","v":0},{"$f":"Time!MBH$86","v":0},{"$f":"Time!MBI$86","v":0},{"$f":"Time!MBJ$86","v":0},{"$f":"Time!MBK$86","v":0},{"$f":"Time!MBL$86","v":0},{"$f":"Time!MBM$86","v":0},{"$f":"Time!MBN$86","v":0},{"$f":"Time!MBO$86","v":0},{"$f":"Time!MBP$86","v":0},{"$f":"Time!MBQ$86","v":0},{"$f":"Time!MBR$86","v":0},{"$f":"Time!MBS$86","v":0},{"$f":"Time!MBT$86","v":0},{"$f":"Time!MBU$86","v":0},{"$f":"Time!MBV$86","v":0},{"$f":"Time!MBW$86","v":0},{"$f":"Time!MBX$86","v":0},{"$f":"Time!MBY$86","v":0},{"$f":"Time!MBZ$86","v":0},{"$f":"Time!MCA$86","v":0},{"$f":"Time!MCB$86","v":0},{"$f":"Time!MCC$86","v":0},{"$f":"Time!MCD$86","v":0},{"$f":"Time!MCE$86","v":0},{"$f":"Time!MCF$86","v":0},{"$f":"Time!MCG$86","v":0},{"$f":"Time!MCH$86","v":0},{"$f":"Time!MCI$86","v":0},{"$f":"Time!MCJ$86","v":0},{"$f":"Time!MCK$86","v":0},{"$f":"Time!MCL$86","v":0},{"$f":"Time!MCM$86","v":0},{"$f":"Time!MCN$86","v":0},{"$f":"Time!MCO$86","v":0},{"$f":"Time!MCP$86","v":0},{"$f":"Time!MCQ$86","v":0},{"$f":"Time!MCR$86","v":0},{"$f":"Time!MCS$86","v":0},{"$f":"Time!MCT$86","v":0},{"$f":"Time!MCU$86","v":0},{"$f":"Time!MCV$86","v":0},{"$f":"Time!MCW$86","v":0},{"$f":"Time!MCX$86","v":0},{"$f":"Time!MCY$86","v":0},{"$f":"Time!MCZ$86","v":0},{"$f":"Time!MDA$86","v":0},{"$f":"Time!MDB$86","v":0},{"$f":"Time!MDC$86","v":0},{"$f":"Time!MDD$86","v":0},{"$f":"Time!MDE$86","v":0},{"$f":"Time!MDF$86","v":0},{"$f":"Time!MDG$86","v":0},{"$f":"Time!MDH$86","v":0},{"$f":"Time!MDI$86","v":0},{"$f":"Time!MDJ$86","v":0},{"$f":"Time!MDK$86","v":0},{"$f":"Time!MDL$86","v":0},{"$f":"Time!MDM$86","v":0},{"$f":"Time!MDN$86","v":0},{"$f":"Time!MDO$86","v":0},{"$f":"Time!MDP$86","v":0},{"$f":"Time!MDQ$86","v":0},{"$f":"Time!MDR$86","v":0},{"$f":"Time!MDS$86","v":0},{"$f":"Time!MDT$86","v":0},{"$f":"Time!MDU$86","v":0},{"$f":"Time!MDV$86","v":0},{"$f":"Time!MDW$86","v":0},{"$f":"Time!MDX$86","v":0},{"$f":"Time!MDY$86","v":0},{"$f":"Time!MDZ$86","v":0},{"$f":"Time!MEA$86","v":0},{"$f":"Time!MEB$86","v":0},{"$f":"Time!MEC$86","v":0},{"$f":"Time!MED$86","v":0},{"$f":"Time!MEE$86","v":0},{"$f":"Time!MEF$86","v":0},{"$f":"Time!MEG$86","v":0},{"$f":"Time!MEH$86","v":0},{"$f":"Time!MEI$86","v":0},{"$f":"Time!MEJ$86","v":0},{"$f":"Time!MEK$86","v":0},{"$f":"Time!MEL$86","v":0},{"$f":"Time!MEM$86","v":0},{"$f":"Time!MEN$86","v":0},{"$f":"Time!MEO$86","v":0},{"$f":"Time!MEP$86","v":0},{"$f":"Time!MEQ$86","v":0},{"$f":"Time!MER$86","v":0},{"$f":"Time!MES$86","v":0},{"$f":"Time!MET$86","v":0},{"$f":"Time!MEU$86","v":0},{"$f":"Time!MEV$86","v":0},{"$f":"Time!MEW$86","v":0},{"$f":"Time!MEX$86","v":0},{"$f":"Time!MEY$86","v":0},{"$f":"Time!MEZ$86","v":0},{"$f":"Time!MFA$86","v":0},{"$f":"Time!MFB$86","v":0},{"$f":"Time!MFC$86","v":0},{"$f":"Time!MFD$86","v":0},{"$f":"Time!MFE$86","v":0},{"$f":"Time!MFF$86","v":0},{"$f":"Time!MFG$86","v":0},{"$f":"Time!MFH$86","v":0},{"$f":"Time!MFI$86","v":0},{"$f":"Time!MFJ$86","v":0},{"$f":"Time!MFK$86","v":0},{"$f":"Time!MFL$86","v":0},{"$f":"Time!MFM$86","v":0},{"$f":"Time!MFN$86","v":0},{"$f":"Time!MFO$86","v":0},{"$f":"Time!MFP$86","v":0},{"$f":"Time!MFQ$86","v":0},{"$f":"Time!MFR$86","v":0},{"$f":"Time!MFS$86","v":0},{"$f":"Time!MFT$86","v":0},{"$f":"Time!MFU$86","v":0},{"$f":"Time!MFV$86","v":0},{"$f":"Time!MFW$86","v":0},{"$f":"Time!MFX$86","v":0},{"$f":"Time!MFY$86","v":0},{"$f":"Time!MFZ$86","v":0},{"$f":"Time!MGA$86","v":0},{"$f":"Time!MGB$86","v":0},{"$f":"Time!MGC$86","v":0},{"$f":"Time!MGD$86","v":0},{"$f":"Time!MGE$86","v":0},{"$f":"Time!MGF$86","v":0},{"$f":"Time!MGG$86","v":0},{"$f":"Time!MGH$86","v":0},{"$f":"Time!MGI$86","v":0},{"$f":"Time!MGJ$86","v":0},{"$f":"Time!MGK$86","v":0},{"$f":"Time!MGL$86","v":0},{"$f":"Time!MGM$86","v":0},{"$f":"Time!MGN$86","v":0},{"$f":"Time!MGO$86","v":0},{"$f":"Time!MGP$86","v":0},{"$f":"Time!MGQ$86","v":0},{"$f":"Time!MGR$86","v":0},{"$f":"Time!MGS$86","v":0},{"$f":"Time!MGT$86","v":0},{"$f":"Time!MGU$86","v":0},{"$f":"Time!MGV$86","v":0},{"$f":"Time!MGW$86","v":0},{"$f":"Time!MGX$86","v":0},{"$f":"Time!MGY$86","v":0},{"$f":"Time!MGZ$86","v":0},{"$f":"Time!MHA$86","v":0},{"$f":"Time!MHB$86","v":0},{"$f":"Time!MHC$86","v":0},{"$f":"Time!MHD$86","v":0},{"$f":"Time!MHE$86","v":0},{"$f":"Time!MHF$86","v":0},{"$f":"Time!MHG$86","v":0},{"$f":"Time!MHH$86","v":0},{"$f":"Time!MHI$86","v":0},{"$f":"Time!MHJ$86","v":0},{"$f":"Time!MHK$86","v":0},{"$f":"Time!MHL$86","v":0},{"$f":"Time!MHM$86","v":0},{"$f":"Time!MHN$86","v":0},{"$f":"Time!MHO$86","v":0},{"$f":"Time!MHP$86","v":0},{"$f":"Time!MHQ$86","v":0},{"$f":"Time!MHR$86","v":0},{"$f":"Time!MHS$86","v":0},{"$f":"Time!MHT$86","v":0},{"$f":"Time!MHU$86","v":0},{"$f":"Time!MHV$86","v":0},{"$f":"Time!MHW$86","v":0},{"$f":"Time!MHX$86","v":0},{"$f":"Time!MHY$86","v":0},{"$f":"Time!MHZ$86","v":0},{"$f":"Time!MIA$86","v":0},{"$f":"Time!MIB$86","v":0},{"$f":"Time!MIC$86","v":0},{"$f":"Time!MID$86","v":0},{"$f":"Time!MIE$86","v":0},{"$f":"Time!MIF$86","v":0},{"$f":"Time!MIG$86","v":0},{"$f":"Time!MIH$86","v":0},{"$f":"Time!MII$86","v":0},{"$f":"Time!MIJ$86","v":0},{"$f":"Time!MIK$86","v":0},{"$f":"Time!MIL$86","v":0},{"$f":"Time!MIM$86","v":0},{"$f":"Time!MIN$86","v":0},{"$f":"Time!MIO$86","v":0},{"$f":"Time!MIP$86","v":0},{"$f":"Time!MIQ$86","v":0},{"$f":"Time!MIR$86","v":0},{"$f":"Time!MIS$86","v":0},{"$f":"Time!MIT$86","v":0},{"$f":"Time!MIU$86","v":0},{"$f":"Time!MIV$86","v":0},{"$f":"Time!MIW$86","v":0},{"$f":"Time!MIX$86","v":0},{"$f":"Time!MIY$86","v":0},{"$f":"Time!MIZ$86","v":0},{"$f":"Time!MJA$86","v":0},{"$f":"Time!MJB$86","v":0},{"$f":"Time!MJC$86","v":0},{"$f":"Time!MJD$86","v":0},{"$f":"Time!MJE$86","v":0},{"$f":"Time!MJF$86","v":0},{"$f":"Time!MJG$86","v":0},{"$f":"Time!MJH$86","v":0},{"$f":"Time!MJI$86","v":0},{"$f":"Time!MJJ$86","v":0},{"$f":"Time!MJK$86","v":0},{"$f":"Time!MJL$86","v":0},{"$f":"Time!MJM$86","v":0},{"$f":"Time!MJN$86","v":0},{"$f":"Time!MJO$86","v":0},{"$f":"Time!MJP$86","v":0},{"$f":"Time!MJQ$86","v":0},{"$f":"Time!MJR$86","v":0},{"$f":"Time!MJS$86","v":0},{"$f":"Time!MJT$86","v":0},{"$f":"Time!MJU$86","v":0},{"$f":"Time!MJV$86","v":0},{"$f":"Time!MJW$86","v":0},{"$f":"Time!MJX$86","v":0},{"$f":"Time!MJY$86","v":0},{"$f":"Time!MJZ$86","v":0},{"$f":"Time!MKA$86","v":0},{"$f":"Time!MKB$86","v":0},{"$f":"Time!MKC$86","v":0},{"$f":"Time!MKD$86","v":0},{"$f":"Time!MKE$86","v":0},{"$f":"Time!MKF$86","v":0},{"$f":"Time!MKG$86","v":0},{"$f":"Time!MKH$86","v":0},{"$f":"Time!MKI$86","v":0},{"$f":"Time!MKJ$86","v":0},{"$f":"Time!MKK$86","v":0},{"$f":"Time!MKL$86","v":0},{"$f":"Time!MKM$86","v":0},{"$f":"Time!MKN$86","v":0},{"$f":"Time!MKO$86","v":0},{"$f":"Time!MKP$86","v":0},{"$f":"Time!MKQ$86","v":0},{"$f":"Time!MKR$86","v":0},{"$f":"Time!MKS$86","v":0},{"$f":"Time!MKT$86","v":0},{"$f":"Time!MKU$86","v":0},{"$f":"Time!MKV$86","v":0},{"$f":"Time!MKW$86","v":0},{"$f":"Time!MKX$86","v":0},{"$f":"Time!MKY$86","v":0},{"$f":"Time!MKZ$86","v":0},{"$f":"Time!MLA$86","v":0},{"$f":"Time!MLB$86","v":0},{"$f":"Time!MLC$86","v":0},{"$f":"Time!MLD$86","v":0},{"$f":"Time!MLE$86","v":0},{"$f":"Time!MLF$86","v":0},{"$f":"Time!MLG$86","v":0},{"$f":"Time!MLH$86","v":0},{"$f":"Time!MLI$86","v":0},{"$f":"Time!MLJ$86","v":0},{"$f":"Time!MLK$86","v":0},{"$f":"Time!MLL$86","v":0},{"$f":"Time!MLM$86","v":0},{"$f":"Time!MLN$86","v":0},{"$f":"Time!MLO$86","v":0},{"$f":"Time!MLP$86","v":0},{"$f":"Time!MLQ$86","v":0},{"$f":"Time!MLR$86","v":0},{"$f":"Time!MLS$86","v":0},{"$f":"Time!MLT$86","v":0},{"$f":"Time!MLU$86","v":0},{"$f":"Time!MLV$86","v":0},{"$f":"Time!MLW$86","v":0},{"$f":"Time!MLX$86","v":0},{"$f":"Time!MLY$86","v":0},{"$f":"Time!MLZ$86","v":0},{"$f":"Time!MMA$86","v":0},{"$f":"Time!MMB$86","v":0},{"$f":"Time!MMC$86","v":0},{"$f":"Time!MMD$86","v":0},{"$f":"Time!MME$86","v":0},{"$f":"Time!MMF$86","v":0},{"$f":"Time!MMG$86","v":0},{"$f":"Time!MMH$86","v":0},{"$f":"Time!MMI$86","v":0},{"$f":"Time!MMJ$86","v":0},{"$f":"Time!MMK$86","v":0},{"$f":"Time!MML$86","v":0},{"$f":"Time!MMM$86","v":0},{"$f":"Time!MMN$86","v":0},{"$f":"Time!MMO$86","v":0},{"$f":"Time!MMP$86","v":0},{"$f":"Time!MMQ$86","v":0},{"$f":"Time!MMR$86","v":0},{"$f":"Time!MMS$86","v":0},{"$f":"Time!MMT$86","v":0},{"$f":"Time!MMU$86","v":0},{"$f":"Time!MMV$86","v":0},{"$f":"Time!MMW$86","v":0},{"$f":"Time!MMX$86","v":0},{"$f":"Time!MMY$86","v":0},{"$f":"Time!MMZ$86","v":0},{"$f":"Time!MNA$86","v":0},{"$f":"Time!MNB$86","v":0},{"$f":"Time!MNC$86","v":0},{"$f":"Time!MND$86","v":0},{"$f":"Time!MNE$86","v":0},{"$f":"Time!MNF$86","v":0},{"$f":"Time!MNG$86","v":0},{"$f":"Time!MNH$86","v":0},{"$f":"Time!MNI$86","v":0},{"$f":"Time!MNJ$86","v":0},{"$f":"Time!MNK$86","v":0},{"$f":"Time!MNL$86","v":0},{"$f":"Time!MNM$86","v":0},{"$f":"Time!MNN$86","v":0},{"$f":"Time!MNO$86","v":0},{"$f":"Time!MNP$86","v":0},{"$f":"Time!MNQ$86","v":0},{"$f":"Time!MNR$86","v":0},{"$f":"Time!MNS$86","v":0},{"$f":"Time!MNT$86","v":0},{"$f":"Time!MNU$86","v":0},{"$f":"Time!MNV$86","v":0},{"$f":"Time!MNW$86","v":0},{"$f":"Time!MNX$86","v":0},{"$f":"Time!MNY$86","v":0},{"$f":"Time!MNZ$86","v":0},{"$f":"Time!MOA$86","v":0},{"$f":"Time!MOB$86","v":0},{"$f":"Time!MOC$86","v":0},{"$f":"Time!MOD$86","v":0},{"$f":"Time!MOE$86","v":0},{"$f":"Time!MOF$86","v":0},{"$f":"Time!MOG$86","v":0},{"$f":"Time!MOH$86","v":0},{"$f":"Time!MOI$86","v":0},{"$f":"Time!MOJ$86","v":0},{"$f":"Time!MOK$86","v":0},{"$f":"Time!MOL$86","v":0},{"$f":"Time!MOM$86","v":0},{"$f":"Time!MON$86","v":0},{"$f":"Time!MOO$86","v":0},{"$f":"Time!MOP$86","v":0},{"$f":"Time!MOQ$86","v":0},{"$f":"Time!MOR$86","v":0},{"$f":"Time!MOS$86","v":0},{"$f":"Time!MOT$86","v":0},{"$f":"Time!MOU$86","v":0},{"$f":"Time!MOV$86","v":0},{"$f":"Time!MOW$86","v":0},{"$f":"Time!MOX$86","v":0},{"$f":"Time!MOY$86","v":0},{"$f":"Time!MOZ$86","v":0},{"$f":"Time!MPA$86","v":0},{"$f":"Time!MPB$86","v":0},{"$f":"Time!MPC$86","v":0},{"$f":"Time!MPD$86","v":0},{"$f":"Time!MPE$86","v":0},{"$f":"Time!MPF$86","v":0},{"$f":"Time!MPG$86","v":0},{"$f":"Time!MPH$86","v":0},{"$f":"Time!MPI$86","v":0},{"$f":"Time!MPJ$86","v":0},{"$f":"Time!MPK$86","v":0},{"$f":"Time!MPL$86","v":0},{"$f":"Time!MPM$86","v":0},{"$f":"Time!MPN$86","v":0},{"$f":"Time!MPO$86","v":0},{"$f":"Time!MPP$86","v":0},{"$f":"Time!MPQ$86","v":0},{"$f":"Time!MPR$86","v":0},{"$f":"Time!MPS$86","v":0},{"$f":"Time!MPT$86","v":0},{"$f":"Time!MPU$86","v":0},{"$f":"Time!MPV$86","v":0},{"$f":"Time!MPW$86","v":0},{"$f":"Time!MPX$86","v":0},{"$f":"Time!MPY$86","v":0},{"$f":"Time!MPZ$86","v":0},{"$f":"Time!MQA$86","v":0},{"$f":"Time!MQB$86","v":0},{"$f":"Time!MQC$86","v":0},{"$f":"Time!MQD$86","v":0},{"$f":"Time!MQE$86","v":0},{"$f":"Time!MQF$86","v":0},{"$f":"Time!MQG$86","v":0},{"$f":"Time!MQH$86","v":0},{"$f":"Time!MQI$86","v":0},{"$f":"Time!MQJ$86","v":0},{"$f":"Time!MQK$86","v":0},{"$f":"Time!MQL$86","v":0},{"$f":"Time!MQM$86","v":0},{"$f":"Time!MQN$86","v":0},{"$f":"Time!MQO$86","v":0},{"$f":"Time!MQP$86","v":0},{"$f":"Time!MQQ$86","v":0},{"$f":"Time!MQR$86","v":0},{"$f":"Time!MQS$86","v":0},{"$f":"Time!MQT$86","v":0},{"$f":"Time!MQU$86","v":0},{"$f":"Time!MQV$86","v":0},{"$f":"Time!MQW$86","v":0},{"$f":"Time!MQX$86","v":0},{"$f":"Time!MQY$86","v":0},{"$f":"Time!MQZ$86","v":0},{"$f":"Time!MRA$86","v":0},{"$f":"Time!MRB$86","v":0},{"$f":"Time!MRC$86","v":0},{"$f":"Time!MRD$86","v":0},{"$f":"Time!MRE$86","v":0},{"$f":"Time!MRF$86","v":0},{"$f":"Time!MRG$86","v":0},{"$f":"Time!MRH$86","v":0},{"$f":"Time!MRI$86","v":0},{"$f":"Time!MRJ$86","v":0},{"$f":"Time!MRK$86","v":0},{"$f":"Time!MRL$86","v":0},{"$f":"Time!MRM$86","v":0},{"$f":"Time!MRN$86","v":0},{"$f":"Time!MRO$86","v":0},{"$f":"Time!MRP$86","v":0},{"$f":"Time!MRQ$86","v":0},{"$f":"Time!MRR$86","v":0},{"$f":"Time!MRS$86","v":0},{"$f":"Time!MRT$86","v":0},{"$f":"Time!MRU$86","v":0},{"$f":"Time!MRV$86","v":0},{"$f":"Time!MRW$86","v":0},{"$f":"Time!MRX$86","v":0},{"$f":"Time!MRY$86","v":0},{"$f":"Time!MRZ$86","v":0},{"$f":"Time!MSA$86","v":0},{"$f":"Time!MSB$86","v":0},{"$f":"Time!MSC$86","v":0},{"$f":"Time!MSD$86","v":0},{"$f":"Time!MSE$86","v":0},{"$f":"Time!MSF$86","v":0},{"$f":"Time!MSG$86","v":0},{"$f":"Time!MSH$86","v":0},{"$f":"Time!MSI$86","v":0},{"$f":"Time!MSJ$86","v":0},{"$f":"Time!MSK$86","v":0},{"$f":"Time!MSL$86","v":0},{"$f":"Time!MSM$86","v":0},{"$f":"Time!MSN$86","v":0},{"$f":"Time!MSO$86","v":0},{"$f":"Time!MSP$86","v":0},{"$f":"Time!MSQ$86","v":0},{"$f":"Time!MSR$86","v":0},{"$f":"Time!MSS$86","v":0},{"$f":"Time!MST$86","v":0},{"$f":"Time!MSU$86","v":0},{"$f":"Time!MSV$86","v":0},{"$f":"Time!MSW$86","v":0},{"$f":"Time!MSX$86","v":0},{"$f":"Time!MSY$86","v":0},{"$f":"Time!MSZ$86","v":0},{"$f":"Time!MTA$86","v":0},{"$f":"Time!MTB$86","v":0},{"$f":"Time!MTC$86","v":0},{"$f":"Time!MTD$86","v":0},{"$f":"Time!MTE$86","v":0},{"$f":"Time!MTF$86","v":0},{"$f":"Time!MTG$86","v":0},{"$f":"Time!MTH$86","v":0},{"$f":"Time!MTI$86","v":0},{"$f":"Time!MTJ$86","v":0},{"$f":"Time!MTK$86","v":0},{"$f":"Time!MTL$86","v":0},{"$f":"Time!MTM$86","v":0},{"$f":"Time!MTN$86","v":0},{"$f":"Time!MTO$86","v":0},{"$f":"Time!MTP$86","v":0},{"$f":"Time!MTQ$86","v":0},{"$f":"Time!MTR$86","v":0},{"$f":"Time!MTS$86","v":0},{"$f":"Time!MTT$86","v":0},{"$f":"Time!MTU$86","v":0},{"$f":"Time!MTV$86","v":0},{"$f":"Time!MTW$86","v":0},{"$f":"Time!MTX$86","v":0},{"$f":"Time!MTY$86","v":0},{"$f":"Time!MTZ$86","v":0},{"$f":"Time!MUA$86","v":0},{"$f":"Time!MUB$86","v":0},{"$f":"Time!MUC$86","v":0},{"$f":"Time!MUD$86","v":0},{"$f":"Time!MUE$86","v":0},{"$f":"Time!MUF$86","v":0},{"$f":"Time!MUG$86","v":0},{"$f":"Time!MUH$86","v":0},{"$f":"Time!MUI$86","v":0},{"$f":"Time!MUJ$86","v":0},{"$f":"Time!MUK$86","v":0},{"$f":"Time!MUL$86","v":0},{"$f":"Time!MUM$86","v":0},{"$f":"Time!MUN$86","v":0},{"$f":"Time!MUO$86","v":0},{"$f":"Time!MUP$86","v":0},{"$f":"Time!MUQ$86","v":0},{"$f":"Time!MUR$86","v":0},{"$f":"Time!MUS$86","v":0},{"$f":"Time!MUT$86","v":0},{"$f":"Time!MUU$86","v":0},{"$f":"Time!MUV$86","v":0},{"$f":"Time!MUW$86","v":0},{"$f":"Time!MUX$86","v":0},{"$f":"Time!MUY$86","v":0},{"$f":"Time!MUZ$86","v":0},{"$f":"Time!MVA$86","v":0},{"$f":"Time!MVB$86","v":0},{"$f":"Time!MVC$86","v":0},{"$f":"Time!MVD$86","v":0},{"$f":"Time!MVE$86","v":0},{"$f":"Time!MVF$86","v":0},{"$f":"Time!MVG$86","v":0},{"$f":"Time!MVH$86","v":0},{"$f":"Time!MVI$86","v":0},{"$f":"Time!MVJ$86","v":0},{"$f":"Time!MVK$86","v":0},{"$f":"Time!MVL$86","v":0},{"$f":"Time!MVM$86","v":0},{"$f":"Time!MVN$86","v":0},{"$f":"Time!MVO$86","v":0},{"$f":"Time!MVP$86","v":0},{"$f":"Time!MVQ$86","v":0},{"$f":"Time!MVR$86","v":0},{"$f":"Time!MVS$86","v":0},{"$f":"Time!MVT$86","v":0},{"$f":"Time!MVU$86","v":0},{"$f":"Time!MVV$86","v":0},{"$f":"Time!MVW$86","v":0},{"$f":"Time!MVX$86","v":0},{"$f":"Time!MVY$86","v":0},{"$f":"Time!MVZ$86","v":0},{"$f":"Time!MWA$86","v":0},{"$f":"Time!MWB$86","v":0},{"$f":"Time!MWC$86","v":0},{"$f":"Time!MWD$86","v":0},{"$f":"Time!MWE$86","v":0},{"$f":"Time!MWF$86","v":0},{"$f":"Time!MWG$86","v":0},{"$f":"Time!MWH$86","v":0},{"$f":"Time!MWI$86","v":0},{"$f":"Time!MWJ$86","v":0},{"$f":"Time!MWK$86","v":0},{"$f":"Time!MWL$86","v":0},{"$f":"Time!MWM$86","v":0},{"$f":"Time!MWN$86","v":0},{"$f":"Time!MWO$86","v":0},{"$f":"Time!MWP$86","v":0},{"$f":"Time!MWQ$86","v":0},{"$f":"Time!MWR$86","v":0},{"$f":"Time!MWS$86","v":0},{"$f":"Time!MWT$86","v":0},{"$f":"Time!MWU$86","v":0},{"$f":"Time!MWV$86","v":0},{"$f":"Time!MWW$86","v":0},{"$f":"Time!MWX$86","v":0},{"$f":"Time!MWY$86","v":0},{"$f":"Time!MWZ$86","v":0},{"$f":"Time!MXA$86","v":0},{"$f":"Time!MXB$86","v":0},{"$f":"Time!MXC$86","v":0},{"$f":"Time!MXD$86","v":0},{"$f":"Time!MXE$86","v":0},{"$f":"Time!MXF$86","v":0},{"$f":"Time!MXG$86","v":0},{"$f":"Time!MXH$86","v":0},{"$f":"Time!MXI$86","v":0},{"$f":"Time!MXJ$86","v":0},{"$f":"Time!MXK$86","v":0},{"$f":"Time!MXL$86","v":0},{"$f":"Time!MXM$86","v":0},{"$f":"Time!MXN$86","v":0},{"$f":"Time!MXO$86","v":0},{"$f":"Time!MXP$86","v":0},{"$f":"Time!MXQ$86","v":0},{"$f":"Time!MXR$86","v":0},{"$f":"Time!MXS$86","v":0},{"$f":"Time!MXT$86","v":0},{"$f":"Time!MXU$86","v":0},{"$f":"Time!MXV$86","v":0},{"$f":"Time!MXW$86","v":0},{"$f":"Time!MXX$86","v":0},{"$f":"Time!MXY$86","v":0},{"$f":"Time!MXZ$86","v":0},{"$f":"Time!MYA$86","v":0},{"$f":"Time!MYB$86","v":0},{"$f":"Time!MYC$86","v":0},{"$f":"Time!MYD$86","v":0},{"$f":"Time!MYE$86","v":0},{"$f":"Time!MYF$86","v":0},{"$f":"Time!MYG$86","v":0},{"$f":"Time!MYH$86","v":0},{"$f":"Time!MYI$86","v":0},{"$f":"Time!MYJ$86","v":0},{"$f":"Time!MYK$86","v":0},{"$f":"Time!MYL$86","v":0},{"$f":"Time!MYM$86","v":0},{"$f":"Time!MYN$86","v":0},{"$f":"Time!MYO$86","v":0},{"$f":"Time!MYP$86","v":0},{"$f":"Time!MYQ$86","v":0},{"$f":"Time!MYR$86","v":0},{"$f":"Time!MYS$86","v":0},{"$f":"Time!MYT$86","v":0},{"$f":"Time!MYU$86","v":0},{"$f":"Time!MYV$86","v":0},{"$f":"Time!MYW$86","v":0},{"$f":"Time!MYX$86","v":0},{"$f":"Time!MYY$86","v":0},{"$f":"Time!MYZ$86","v":0},{"$f":"Time!MZA$86","v":0},{"$f":"Time!MZB$86","v":0},{"$f":"Time!MZC$86","v":0},{"$f":"Time!MZD$86","v":0},{"$f":"Time!MZE$86","v":0},{"$f":"Time!MZF$86","v":0},{"$f":"Time!MZG$86","v":0},{"$f":"Time!MZH$86","v":0},{"$f":"Time!MZI$86","v":0},{"$f":"Time!MZJ$86","v":0},{"$f":"Time!MZK$86","v":0},{"$f":"Time!MZL$86","v":0},{"$f":"Time!MZM$86","v":0},{"$f":"Time!MZN$86","v":0},{"$f":"Time!MZO$86","v":0},{"$f":"Time!MZP$86","v":0},{"$f":"Time!MZQ$86","v":0},{"$f":"Time!MZR$86","v":0},{"$f":"Time!MZS$86","v":0},{"$f":"Time!MZT$86","v":0},{"$f":"Time!MZU$86","v":0},{"$f":"Time!MZV$86","v":0},{"$f":"Time!MZW$86","v":0},{"$f":"Time!MZX$86","v":0},{"$f":"Time!MZY$86","v":0},{"$f":"Time!MZZ$86","v":0},{"$f":"Time!NAA$86","v":0},{"$f":"Time!NAB$86","v":0},{"$f":"Time!NAC$86","v":0},{"$f":"Time!NAD$86","v":0},{"$f":"Time!NAE$86","v":0},{"$f":"Time!NAF$86","v":0},{"$f":"Time!NAG$86","v":0},{"$f":"Time!NAH$86","v":0},{"$f":"Time!NAI$86","v":0},{"$f":"Time!NAJ$86","v":0},{"$f":"Time!NAK$86","v":0},{"$f":"Time!NAL$86","v":0},{"$f":"Time!NAM$86","v":0},{"$f":"Time!NAN$86","v":0},{"$f":"Time!NAO$86","v":0},{"$f":"Time!NAP$86","v":0},{"$f":"Time!NAQ$86","v":0},{"$f":"Time!NAR$86","v":0},{"$f":"Time!NAS$86","v":0},{"$f":"Time!NAT$86","v":0},{"$f":"Time!NAU$86","v":0},{"$f":"Time!NAV$86","v":0},{"$f":"Time!NAW$86","v":0},{"$f":"Time!NAX$86","v":0},{"$f":"Time!NAY$86","v":0},{"$f":"Time!NAZ$86","v":0},{"$f":"Time!NBA$86","v":0},{"$f":"Time!NBB$86","v":0},{"$f":"Time!NBC$86","v":0},{"$f":"Time!NBD$86","v":0},{"$f":"Time!NBE$86","v":0},{"$f":"Time!NBF$86","v":0},{"$f":"Time!NBG$86","v":0},{"$f":"Time!NBH$86","v":0},{"$f":"Time!NBI$86","v":0},{"$f":"Time!NBJ$86","v":0},{"$f":"Time!NBK$86","v":0},{"$f":"Time!NBL$86","v":0},{"$f":"Time!NBM$86","v":0},{"$f":"Time!NBN$86","v":0},{"$f":"Time!NBO$86","v":0},{"$f":"Time!NBP$86","v":0},{"$f":"Time!NBQ$86","v":0},{"$f":"Time!NBR$86","v":0},{"$f":"Time!NBS$86","v":0},{"$f":"Time!NBT$86","v":0},{"$f":"Time!NBU$86","v":0},{"$f":"Time!NBV$86","v":0},{"$f":"Time!NBW$86","v":0},{"$f":"Time!NBX$86","v":0},{"$f":"Time!NBY$86","v":0},{"$f":"Time!NBZ$86","v":0},{"$f":"Time!NCA$86","v":0},{"$f":"Time!NCB$86","v":0},{"$f":"Time!NCC$86","v":0},{"$f":"Time!NCD$86","v":0},{"$f":"Time!NCE$86","v":0},{"$f":"Time!NCF$86","v":0},{"$f":"Time!NCG$86","v":0},{"$f":"Time!NCH$86","v":0},{"$f":"Time!NCI$86","v":0},{"$f":"Time!NCJ$86","v":0},{"$f":"Time!NCK$86","v":0},{"$f":"Time!NCL$86","v":0},{"$f":"Time!NCM$86","v":0},{"$f":"Time!NCN$86","v":0},{"$f":"Time!NCO$86","v":0},{"$f":"Time!NCP$86","v":0},{"$f":"Time!NCQ$86","v":0},{"$f":"Time!NCR$86","v":0},{"$f":"Time!NCS$86","v":0},{"$f":"Time!NCT$86","v":0},{"$f":"Time!NCU$86","v":0},{"$f":"Time!NCV$86","v":0},{"$f":"Time!NCW$86","v":0},{"$f":"Time!NCX$86","v":0},{"$f":"Time!NCY$86","v":0},{"$f":"Time!NCZ$86","v":0},{"$f":"Time!NDA$86","v":0},{"$f":"Time!NDB$86","v":0},{"$f":"Time!NDC$86","v":0},{"$f":"Time!NDD$86","v":0},{"$f":"Time!NDE$86","v":0},{"$f":"Time!NDF$86","v":0},{"$f":"Time!NDG$86","v":0},{"$f":"Time!NDH$86","v":0},{"$f":"Time!NDI$86","v":0},{"$f":"Time!NDJ$86","v":0},{"$f":"Time!NDK$86","v":0},{"$f":"Time!NDL$86","v":0},{"$f":"Time!NDM$86","v":0},{"$f":"Time!NDN$86","v":0},{"$f":"Time!NDO$86","v":0},{"$f":"Time!NDP$86","v":0},{"$f":"Time!NDQ$86","v":0},{"$f":"Time!NDR$86","v":0},{"$f":"Time!NDS$86","v":0},{"$f":"Time!NDT$86","v":0},{"$f":"Time!NDU$86","v":0},{"$f":"Time!NDV$86","v":0},{"$f":"Time!NDW$86","v":0},{"$f":"Time!NDX$86","v":0},{"$f":"Time!NDY$86","v":0},{"$f":"Time!NDZ$86","v":0},{"$f":"Time!NEA$86","v":0},{"$f":"Time!NEB$86","v":0},{"$f":"Time!NEC$86","v":0},{"$f":"Time!NED$86","v":0},{"$f":"Time!NEE$86","v":0},{"$f":"Time!NEF$86","v":0},{"$f":"Time!NEG$86","v":0},{"$f":"Time!NEH$86","v":0},{"$f":"Time!NEI$86","v":0},{"$f":"Time!NEJ$86","v":0},{"$f":"Time!NEK$86","v":0},{"$f":"Time!NEL$86","v":0},{"$f":"Time!NEM$86","v":0},{"$f":"Time!NEN$86","v":0},{"$f":"Time!NEO$86","v":0},{"$f":"Time!NEP$86","v":0},{"$f":"Time!NEQ$86","v":0},{"$f":"Time!NER$86","v":0},{"$f":"Time!NES$86","v":0},{"$f":"Time!NET$86","v":0},{"$f":"Time!NEU$86","v":0},{"$f":"Time!NEV$86","v":0},{"$f":"Time!NEW$86","v":0},{"$f":"Time!NEX$86","v":0},{"$f":"Time!NEY$86","v":0},{"$f":"Time!NEZ$86","v":0},{"$f":"Time!NFA$86","v":0},{"$f":"Time!NFB$86","v":0},{"$f":"Time!NFC$86","v":0},{"$f":"Time!NFD$86","v":0},{"$f":"Time!NFE$86","v":0},{"$f":"Time!NFF$86","v":0},{"$f":"Time!NFG$86","v":0},{"$f":"Time!NFH$86","v":0},{"$f":"Time!NFI$86","v":0},{"$f":"Time!NFJ$86","v":0},{"$f":"Time!NFK$86","v":0},{"$f":"Time!NFL$86","v":0},{"$f":"Time!NFM$86","v":0},{"$f":"Time!NFN$86","v":0},{"$f":"Time!NFO$86","v":0},{"$f":"Time!NFP$86","v":0},{"$f":"Time!NFQ$86","v":0},{"$f":"Time!NFR$86","v":0},{"$f":"Time!NFS$86","v":0},{"$f":"Time!NFT$86","v":0},{"$f":"Time!NFU$86","v":0},{"$f":"Time!NFV$86","v":0},{"$f":"Time!NFW$86","v":0},{"$f":"Time!NFX$86","v":0},{"$f":"Time!NFY$86","v":0},{"$f":"Time!NFZ$86","v":0},{"$f":"Time!NGA$86","v":0},{"$f":"Time!NGB$86","v":0},{"$f":"Time!NGC$86","v":0},{"$f":"Time!NGD$86","v":0},{"$f":"Time!NGE$86","v":0},{"$f":"Time!NGF$86","v":0},{"$f":"Time!NGG$86","v":0},{"$f":"Time!NGH$86","v":0},{"$f":"Time!NGI$86","v":0},{"$f":"Time!NGJ$86","v":0},{"$f":"Time!NGK$86","v":0},{"$f":"Time!NGL$86","v":0},{"$f":"Time!NGM$86","v":0},{"$f":"Time!NGN$86","v":0},{"$f":"Time!NGO$86","v":0},{"$f":"Time!NGP$86","v":0},{"$f":"Time!NGQ$86","v":0},{"$f":"Time!NGR$86","v":0},{"$f":"Time!NGS$86","v":0},{"$f":"Time!NGT$86","v":0},{"$f":"Time!NGU$86","v":0},{"$f":"Time!NGV$86","v":0},{"$f":"Time!NGW$86","v":0},{"$f":"Time!NGX$86","v":0},{"$f":"Time!NGY$86","v":0},{"$f":"Time!NGZ$86","v":0},{"$f":"Time!NHA$86","v":0},{"$f":"Time!NHB$86","v":0},{"$f":"Time!NHC$86","v":0},{"$f":"Time!NHD$86","v":0},{"$f":"Time!NHE$86","v":0},{"$f":"Time!NHF$86","v":0},{"$f":"Time!NHG$86","v":0},{"$f":"Time!NHH$86","v":0},{"$f":"Time!NHI$86","v":0},{"$f":"Time!NHJ$86","v":0},{"$f":"Time!NHK$86","v":0},{"$f":"Time!NHL$86","v":0},{"$f":"Time!NHM$86","v":0},{"$f":"Time!NHN$86","v":0},{"$f":"Time!NHO$86","v":0},{"$f":"Time!NHP$86","v":0},{"$f":"Time!NHQ$86","v":0},{"$f":"Time!NHR$86","v":0},{"$f":"Time!NHS$86","v":0},{"$f":"Time!NHT$86","v":0},{"$f":"Time!NHU$86","v":0},{"$f":"Time!NHV$86","v":0},{"$f":"Time!NHW$86","v":0},{"$f":"Time!NHX$86","v":0},{"$f":"Time!NHY$86","v":0},{"$f":"Time!NHZ$86","v":0},{"$f":"Time!NIA$86","v":0},{"$f":"Time!NIB$86","v":0},{"$f":"Time!NIC$86","v":0},{"$f":"Time!NID$86","v":0},{"$f":"Time!NIE$86","v":0},{"$f":"Time!NIF$86","v":0},{"$f":"Time!NIG$86","v":0},{"$f":"Time!NIH$86","v":0},{"$f":"Time!NII$86","v":0},{"$f":"Time!NIJ$86","v":0},{"$f":"Time!NIK$86","v":0},{"$f":"Time!NIL$86","v":0},{"$f":"Time!NIM$86","v":0},{"$f":"Time!NIN$86","v":0},{"$f":"Time!NIO$86","v":0},{"$f":"Time!NIP$86","v":0},{"$f":"Time!NIQ$86","v":0},{"$f":"Time!NIR$86","v":0},{"$f":"Time!NIS$86","v":0},{"$f":"Time!NIT$86","v":0},{"$f":"Time!NIU$86","v":0},{"$f":"Time!NIV$86","v":0},{"$f":"Time!NIW$86","v":0},{"$f":"Time!NIX$86","v":0},{"$f":"Time!NIY$86","v":0},{"$f":"Time!NIZ$86","v":0},{"$f":"Time!NJA$86","v":0},{"$f":"Time!NJB$86","v":0},{"$f":"Time!NJC$86","v":0},{"$f":"Time!NJD$86","v":0},{"$f":"Time!NJE$86","v":0},{"$f":"Time!NJF$86","v":0},{"$f":"Time!NJG$86","v":0},{"$f":"Time!NJH$86","v":0},{"$f":"Time!NJI$86","v":0},{"$f":"Time!NJJ$86","v":0},{"$f":"Time!NJK$86","v":0},{"$f":"Time!NJL$86","v":0},{"$f":"Time!NJM$86","v":0},{"$f":"Time!NJN$86","v":0},{"$f":"Time!NJO$86","v":0},{"$f":"Time!NJP$86","v":0},{"$f":"Time!NJQ$86","v":0},{"$f":"Time!NJR$86","v":0},{"$f":"Time!NJS$86","v":0},{"$f":"Time!NJT$86","v":0},{"$f":"Time!NJU$86","v":0},{"$f":"Time!NJV$86","v":0},{"$f":"Time!NJW$86","v":0},{"$f":"Time!NJX$86","v":0},{"$f":"Time!NJY$86","v":0},{"$f":"Time!NJZ$86","v":0},{"$f":"Time!NKA$86","v":0},{"$f":"Time!NKB$86","v":0},{"$f":"Time!NKC$86","v":0},{"$f":"Time!NKD$86","v":0},{"$f":"Time!NKE$86","v":0},{"$f":"Time!NKF$86","v":0},{"$f":"Time!NKG$86","v":0},{"$f":"Time!NKH$86","v":0},{"$f":"Time!NKI$86","v":0},{"$f":"Time!NKJ$86","v":0},{"$f":"Time!NKK$86","v":0},{"$f":"Time!NKL$86","v":0},{"$f":"Time!NKM$86","v":0},{"$f":"Time!NKN$86","v":0},{"$f":"Time!NKO$86","v":0},{"$f":"Time!NKP$86","v":0},{"$f":"Time!NKQ$86","v":0},{"$f":"Time!NKR$86","v":0},{"$f":"Time!NKS$86","v":0},{"$f":"Time!NKT$86","v":0},{"$f":"Time!NKU$86","v":0},{"$f":"Time!NKV$86","v":0},{"$f":"Time!NKW$86","v":0},{"$f":"Time!NKX$86","v":0},{"$f":"Time!NKY$86","v":0},{"$f":"Time!NKZ$86","v":0},{"$f":"Time!NLA$86","v":0},{"$f":"Time!NLB$86","v":0},{"$f":"Time!NLC$86","v":0},{"$f":"Time!NLD$86","v":0},{"$f":"Time!NLE$86","v":0},{"$f":"Time!NLF$86","v":0},{"$f":"Time!NLG$86","v":0},{"$f":"Time!NLH$86","v":0},{"$f":"Time!NLI$86","v":0},{"$f":"Time!NLJ$86","v":0},{"$f":"Time!NLK$86","v":0},{"$f":"Time!NLL$86","v":0},{"$f":"Time!NLM$86","v":0},{"$f":"Time!NLN$86","v":0},{"$f":"Time!NLO$86","v":0},{"$f":"Time!NLP$86","v":0},{"$f":"Time!NLQ$86","v":0},{"$f":"Time!NLR$86","v":0},{"$f":"Time!NLS$86","v":0},{"$f":"Time!NLT$86","v":0},{"$f":"Time!NLU$86","v":0},{"$f":"Time!NLV$86","v":0},{"$f":"Time!NLW$86","v":0},{"$f":"Time!NLX$86","v":0},{"$f":"Time!NLY$86","v":0},{"$f":"Time!NLZ$86","v":0},{"$f":"Time!NMA$86","v":0},{"$f":"Time!NMB$86","v":0},{"$f":"Time!NMC$86","v":0},{"$f":"Time!NMD$86","v":0},{"$f":"Time!NME$86","v":0},{"$f":"Time!NMF$86","v":0},{"$f":"Time!NMG$86","v":0},{"$f":"Time!NMH$86","v":0},{"$f":"Time!NMI$86","v":0},{"$f":"Time!NMJ$86","v":0},{"$f":"Time!NMK$86","v":0},{"$f":"Time!NML$86","v":0},{"$f":"Time!NMM$86","v":0},{"$f":"Time!NMN$86","v":0},{"$f":"Time!NMO$86","v":0},{"$f":"Time!NMP$86","v":0},{"$f":"Time!NMQ$86","v":0},{"$f":"Time!NMR$86","v":0},{"$f":"Time!NMS$86","v":0},{"$f":"Time!NMT$86","v":0},{"$f":"Time!NMU$86","v":0},{"$f":"Time!NMV$86","v":0},{"$f":"Time!NMW$86","v":0},{"$f":"Time!NMX$86","v":0},{"$f":"Time!NMY$86","v":0},{"$f":"Time!NMZ$86","v":0},{"$f":"Time!NNA$86","v":0},{"$f":"Time!NNB$86","v":0},{"$f":"Time!NNC$86","v":0},{"$f":"Time!NND$86","v":0},{"$f":"Time!NNE$86","v":0},{"$f":"Time!NNF$86","v":0},{"$f":"Time!NNG$86","v":0},{"$f":"Time!NNH$86","v":0},{"$f":"Time!NNI$86","v":0},{"$f":"Time!NNJ$86","v":0},{"$f":"Time!NNK$86","v":0},{"$f":"Time!NNL$86","v":0},{"$f":"Time!NNM$86","v":0},{"$f":"Time!NNN$86","v":0},{"$f":"Time!NNO$86","v":0},{"$f":"Time!NNP$86","v":0},{"$f":"Time!NNQ$86","v":0},{"$f":"Time!NNR$86","v":0},{"$f":"Time!NNS$86","v":0},{"$f":"Time!NNT$86","v":0},{"$f":"Time!NNU$86","v":0},{"$f":"Time!NNV$86","v":0},{"$f":"Time!NNW$86","v":0},{"$f":"Time!NNX$86","v":0},{"$f":"Time!NNY$86","v":0},{"$f":"Time!NNZ$86","v":0},{"$f":"Time!NOA$86","v":0},{"$f":"Time!NOB$86","v":0},{"$f":"Time!NOC$86","v":0},{"$f":"Time!NOD$86","v":0},{"$f":"Time!NOE$86","v":0},{"$f":"Time!NOF$86","v":0},{"$f":"Time!NOG$86","v":0},{"$f":"Time!NOH$86","v":0},{"$f":"Time!NOI$86","v":0},{"$f":"Time!NOJ$86","v":0},{"$f":"Time!NOK$86","v":0},{"$f":"Time!NOL$86","v":0},{"$f":"Time!NOM$86","v":0},{"$f":"Time!NON$86","v":0},{"$f":"Time!NOO$86","v":0},{"$f":"Time!NOP$86","v":0},{"$f":"Time!NOQ$86","v":0},{"$f":"Time!NOR$86","v":0},{"$f":"Time!NOS$86","v":0},{"$f":"Time!NOT$86","v":0},{"$f":"Time!NOU$86","v":0},{"$f":"Time!NOV$86","v":0},{"$f":"Time!NOW$86","v":0},{"$f":"Time!NOX$86","v":0},{"$f":"Time!NOY$86","v":0},{"$f":"Time!NOZ$86","v":0},{"$f":"Time!NPA$86","v":0},{"$f":"Time!NPB$86","v":0},{"$f":"Time!NPC$86","v":0},{"$f":"Time!NPD$86","v":0},{"$f":"Time!NPE$86","v":0},{"$f":"Time!NPF$86","v":0},{"$f":"Time!NPG$86","v":0},{"$f":"Time!NPH$86","v":0},{"$f":"Time!NPI$86","v":0},{"$f":"Time!NPJ$86","v":0},{"$f":"Time!NPK$86","v":0},{"$f":"Time!NPL$86","v":0},{"$f":"Time!NPM$86","v":0},{"$f":"Time!NPN$86","v":0},{"$f":"Time!NPO$86","v":0},{"$f":"Time!NPP$86","v":0},{"$f":"Time!NPQ$86","v":0},{"$f":"Time!NPR$86","v":0},{"$f":"Time!NPS$86","v":0},{"$f":"Time!NPT$86","v":0},{"$f":"Time!NPU$86","v":0},{"$f":"Time!NPV$86","v":0},{"$f":"Time!NPW$86","v":0},{"$f":"Time!NPX$86","v":0},{"$f":"Time!NPY$86","v":0},{"$f":"Time!NPZ$86","v":0},{"$f":"Time!NQA$86","v":0},{"$f":"Time!NQB$86","v":0},{"$f":"Time!NQC$86","v":0},{"$f":"Time!NQD$86","v":0},{"$f":"Time!NQE$86","v":0},{"$f":"Time!NQF$86","v":0},{"$f":"Time!NQG$86","v":0},{"$f":"Time!NQH$86","v":0},{"$f":"Time!NQI$86","v":0},{"$f":"Time!NQJ$86","v":0},{"$f":"Time!NQK$86","v":0},{"$f":"Time!NQL$86","v":0},{"$f":"Time!NQM$86","v":0},{"$f":"Time!NQN$86","v":0},{"$f":"Time!NQO$86","v":0},{"$f":"Time!NQP$86","v":0},{"$f":"Time!NQQ$86","v":0},{"$f":"Time!NQR$86","v":0},{"$f":"Time!NQS$86","v":0},{"$f":"Time!NQT$86","v":0},{"$f":"Time!NQU$86","v":0},{"$f":"Time!NQV$86","v":0},{"$f":"Time!NQW$86","v":0},{"$f":"Time!NQX$86","v":0},{"$f":"Time!NQY$86","v":0},{"$f":"Time!NQZ$86","v":0},{"$f":"Time!NRA$86","v":0},{"$f":"Time!NRB$86","v":0},{"$f":"Time!NRC$86","v":0},{"$f":"Time!NRD$86","v":0},{"$f":"Time!NRE$86","v":0},{"$f":"Time!NRF$86","v":0},{"$f":"Time!NRG$86","v":0},{"$f":"Time!NRH$86","v":0},{"$f":"Time!NRI$86","v":0},{"$f":"Time!NRJ$86","v":0},{"$f":"Time!NRK$86","v":0},{"$f":"Time!NRL$86","v":0},{"$f":"Time!NRM$86","v":0},{"$f":"Time!NRN$86","v":0},{"$f":"Time!NRO$86","v":0},{"$f":"Time!NRP$86","v":0},{"$f":"Time!NRQ$86","v":0},{"$f":"Time!NRR$86","v":0},{"$f":"Time!NRS$86","v":0},{"$f":"Time!NRT$86","v":0},{"$f":"Time!NRU$86","v":0},{"$f":"Time!NRV$86","v":0},{"$f":"Time!NRW$86","v":0},{"$f":"Time!NRX$86","v":0},{"$f":"Time!NRY$86","v":0},{"$f":"Time!NRZ$86","v":0},{"$f":"Time!NSA$86","v":0},{"$f":"Time!NSB$86","v":0},{"$f":"Time!NSC$86","v":0},{"$f":"Time!NSD$86","v":0},{"$f":"Time!NSE$86","v":0},{"$f":"Time!NSF$86","v":0},{"$f":"Time!NSG$86","v":0},{"$f":"Time!NSH$86","v":0},{"$f":"Time!NSI$86","v":0},{"$f":"Time!NSJ$86","v":0},{"$f":"Time!NSK$86","v":0},{"$f":"Time!NSL$86","v":0},{"$f":"Time!NSM$86","v":0},{"$f":"Time!NSN$86","v":0},{"$f":"Time!NSO$86","v":0},{"$f":"Time!NSP$86","v":0},{"$f":"Time!NSQ$86","v":0},{"$f":"Time!NSR$86","v":0},{"$f":"Time!NSS$86","v":0},{"$f":"Time!NST$86","v":0},{"$f":"Time!NSU$86","v":0},{"$f":"Time!NSV$86","v":0},{"$f":"Time!NSW$86","v":0},{"$f":"Time!NSX$86","v":0},{"$f":"Time!NSY$86","v":0},{"$f":"Time!NSZ$86","v":0},{"$f":"Time!NTA$86","v":0},{"$f":"Time!NTB$86","v":0},{"$f":"Time!NTC$86","v":0},{"$f":"Time!NTD$86","v":0},{"$f":"Time!NTE$86","v":0},{"$f":"Time!NTF$86","v":0},{"$f":"Time!NTG$86","v":0},{"$f":"Time!NTH$86","v":0},{"$f":"Time!NTI$86","v":0},{"$f":"Time!NTJ$86","v":0},{"$f":"Time!NTK$86","v":0},{"$f":"Time!NTL$86","v":0},{"$f":"Time!NTM$86","v":0},{"$f":"Time!NTN$86","v":0},{"$f":"Time!NTO$86","v":0},{"$f":"Time!NTP$86","v":0},{"$f":"Time!NTQ$86","v":0},{"$f":"Time!NTR$86","v":0},{"$f":"Time!NTS$86","v":0},{"$f":"Time!NTT$86","v":0},{"$f":"Time!NTU$86","v":0},{"$f":"Time!NTV$86","v":0},{"$f":"Time!NTW$86","v":0},{"$f":"Time!NTX$86","v":0},{"$f":"Time!NTY$86","v":0},{"$f":"Time!NTZ$86","v":0},{"$f":"Time!NUA$86","v":0},{"$f":"Time!NUB$86","v":0},{"$f":"Time!NUC$86","v":0},{"$f":"Time!NUD$86","v":0},{"$f":"Time!NUE$86","v":0},{"$f":"Time!NUF$86","v":0},{"$f":"Time!NUG$86","v":0},{"$f":"Time!NUH$86","v":0},{"$f":"Time!NUI$86","v":0},{"$f":"Time!NUJ$86","v":0},{"$f":"Time!NUK$86","v":0},{"$f":"Time!NUL$86","v":0},{"$f":"Time!NUM$86","v":0},{"$f":"Time!NUN$86","v":0},{"$f":"Time!NUO$86","v":0},{"$f":"Time!NUP$86","v":0},{"$f":"Time!NUQ$86","v":0},{"$f":"Time!NUR$86","v":0},{"$f":"Time!NUS$86","v":0},{"$f":"Time!NUT$86","v":0},{"$f":"Time!NUU$86","v":0},{"$f":"Time!NUV$86","v":0},{"$f":"Time!NUW$86","v":0},{"$f":"Time!NUX$86","v":0},{"$f":"Time!NUY$86","v":0},{"$f":"Time!NUZ$86","v":0},{"$f":"Time!NVA$86","v":0},{"$f":"Time!NVB$86","v":0},{"$f":"Time!NVC$86","v":0},{"$f":"Time!NVD$86","v":0},{"$f":"Time!NVE$86","v":0},{"$f":"Time!NVF$86","v":0},{"$f":"Time!NVG$86","v":0},{"$f":"Time!NVH$86","v":0},{"$f":"Time!NVI$86","v":0},{"$f":"Time!NVJ$86","v":0},{"$f":"Time!NVK$86","v":0},{"$f":"Time!NVL$86","v":0},{"$f":"Time!NVM$86","v":0},{"$f":"Time!NVN$86","v":0},{"$f":"Time!NVO$86","v":0},{"$f":"Time!NVP$86","v":0},{"$f":"Time!NVQ$86","v":0},{"$f":"Time!NVR$86","v":0},{"$f":"Time!NVS$86","v":0},{"$f":"Time!NVT$86","v":0},{"$f":"Time!NVU$86","v":0},{"$f":"Time!NVV$86","v":0},{"$f":"Time!NVW$86","v":0},{"$f":"Time!NVX$86","v":0},{"$f":"Time!NVY$86","v":0},{"$f":"Time!NVZ$86","v":0},{"$f":"Time!NWA$86","v":0},{"$f":"Time!NWB$86","v":0},{"$f":"Time!NWC$86","v":0},{"$f":"Time!NWD$86","v":0},{"$f":"Time!NWE$86","v":0},{"$f":"Time!NWF$86","v":0},{"$f":"Time!NWG$86","v":0},{"$f":"Time!NWH$86","v":0},{"$f":"Time!NWI$86","v":0},{"$f":"Time!NWJ$86","v":0},{"$f":"Time!NWK$86","v":0},{"$f":"Time!NWL$86","v":0},{"$f":"Time!NWM$86","v":0},{"$f":"Time!NWN$86","v":0},{"$f":"Time!NWO$86","v":0},{"$f":"Time!NWP$86","v":0},{"$f":"Time!NWQ$86","v":0},{"$f":"Time!NWR$86","v":0},{"$f":"Time!NWS$86","v":0},{"$f":"Time!NWT$86","v":0},{"$f":"Time!NWU$86","v":0},{"$f":"Time!NWV$86","v":0},{"$f":"Time!NWW$86","v":0},{"$f":"Time!NWX$86","v":0},{"$f":"Time!NWY$86","v":0},{"$f":"Time!NWZ$86","v":0},{"$f":"Time!NXA$86","v":0},{"$f":"Time!NXB$86","v":0},{"$f":"Time!NXC$86","v":0},{"$f":"Time!NXD$86","v":0},{"$f":"Time!NXE$86","v":0},{"$f":"Time!NXF$86","v":0},{"$f":"Time!NXG$86","v":0},{"$f":"Time!NXH$86","v":0},{"$f":"Time!NXI$86","v":0},{"$f":"Time!NXJ$86","v":0},{"$f":"Time!NXK$86","v":0},{"$f":"Time!NXL$86","v":0},{"$f":"Time!NXM$86","v":0},{"$f":"Time!NXN$86","v":0},{"$f":"Time!NXO$86","v":0},{"$f":"Time!NXP$86","v":0},{"$f":"Time!NXQ$86","v":0},{"$f":"Time!NXR$86","v":0},{"$f":"Time!NXS$86","v":0},{"$f":"Time!NXT$86","v":0},{"$f":"Time!NXU$86","v":0},{"$f":"Time!NXV$86","v":0},{"$f":"Time!NXW$86","v":0},{"$f":"Time!NXX$86","v":0},{"$f":"Time!NXY$86","v":0},{"$f":"Time!NXZ$86","v":0},{"$f":"Time!NYA$86","v":0},{"$f":"Time!NYB$86","v":0},{"$f":"Time!NYC$86","v":0},{"$f":"Time!NYD$86","v":0},{"$f":"Time!NYE$86","v":0},{"$f":"Time!NYF$86","v":0},{"$f":"Time!NYG$86","v":0},{"$f":"Time!NYH$86","v":0},{"$f":"Time!NYI$86","v":0},{"$f":"Time!NYJ$86","v":0},{"$f":"Time!NYK$86","v":0},{"$f":"Time!NYL$86","v":0},{"$f":"Time!NYM$86","v":0},{"$f":"Time!NYN$86","v":0},{"$f":"Time!NYO$86","v":0},{"$f":"Time!NYP$86","v":0},{"$f":"Time!NYQ$86","v":0},{"$f":"Time!NYR$86","v":0},{"$f":"Time!NYS$86","v":0},{"$f":"Time!NYT$86","v":0},{"$f":"Time!NYU$86","v":0},{"$f":"Time!NYV$86","v":0},{"$f":"Time!NYW$86","v":0},{"$f":"Time!NYX$86","v":0},{"$f":"Time!NYY$86","v":0},{"$f":"Time!NYZ$86","v":0},{"$f":"Time!NZA$86","v":0},{"$f":"Time!NZB$86","v":0},{"$f":"Time!NZC$86","v":0},{"$f":"Time!NZD$86","v":0},{"$f":"Time!NZE$86","v":0},{"$f":"Time!NZF$86","v":0},{"$f":"Time!NZG$86","v":0},{"$f":"Time!NZH$86","v":0},{"$f":"Time!NZI$86","v":0},{"$f":"Time!NZJ$86","v":0},{"$f":"Time!NZK$86","v":0},{"$f":"Time!NZL$86","v":0},{"$f":"Time!NZM$86","v":0},{"$f":"Time!NZN$86","v":0},{"$f":"Time!NZO$86","v":0},{"$f":"Time!NZP$86","v":0},{"$f":"Time!NZQ$86","v":0},{"$f":"Time!NZR$86","v":0},{"$f":"Time!NZS$86","v":0},{"$f":"Time!NZT$86","v":0},{"$f":"Time!NZU$86","v":0},{"$f":"Time!NZV$86","v":0},{"$f":"Time!NZW$86","v":0},{"$f":"Time!NZX$86","v":0},{"$f":"Time!NZY$86","v":0},{"$f":"Time!NZZ$86","v":0},{"$f":"Time!OAA$86","v":0},{"$f":"Time!OAB$86","v":0},{"$f":"Time!OAC$86","v":0},{"$f":"Time!OAD$86","v":0},{"$f":"Time!OAE$86","v":0},{"$f":"Time!OAF$86","v":0},{"$f":"Time!OAG$86","v":0},{"$f":"Time!OAH$86","v":0},{"$f":"Time!OAI$86","v":0},{"$f":"Time!OAJ$86","v":0},{"$f":"Time!OAK$86","v":0},{"$f":"Time!OAL$86","v":0},{"$f":"Time!OAM$86","v":0},{"$f":"Time!OAN$86","v":0},{"$f":"Time!OAO$86","v":0},{"$f":"Time!OAP$86","v":0},{"$f":"Time!OAQ$86","v":0},{"$f":"Time!OAR$86","v":0},{"$f":"Time!OAS$86","v":0},{"$f":"Time!OAT$86","v":0},{"$f":"Time!OAU$86","v":0},{"$f":"Time!OAV$86","v":0},{"$f":"Time!OAW$86","v":0},{"$f":"Time!OAX$86","v":0},{"$f":"Time!OAY$86","v":0},{"$f":"Time!OAZ$86","v":0},{"$f":"Time!OBA$86","v":0},{"$f":"Time!OBB$86","v":0},{"$f":"Time!OBC$86","v":0},{"$f":"Time!OBD$86","v":0},{"$f":"Time!OBE$86","v":0},{"$f":"Time!OBF$86","v":0},{"$f":"Time!OBG$86","v":0},{"$f":"Time!OBH$86","v":0},{"$f":"Time!OBI$86","v":0},{"$f":"Time!OBJ$86","v":0},{"$f":"Time!OBK$86","v":0},{"$f":"Time!OBL$86","v":0},{"$f":"Time!OBM$86","v":0},{"$f":"Time!OBN$86","v":0},{"$f":"Time!OBO$86","v":0},{"$f":"Time!OBP$86","v":0},{"$f":"Time!OBQ$86","v":0},{"$f":"Time!OBR$86","v":0},{"$f":"Time!OBS$86","v":0},{"$f":"Time!OBT$86","v":0},{"$f":"Time!OBU$86","v":0},{"$f":"Time!OBV$86","v":0},{"$f":"Time!OBW$86","v":0},{"$f":"Time!OBX$86","v":0},{"$f":"Time!OBY$86","v":0},{"$f":"Time!OBZ$86","v":0},{"$f":"Time!OCA$86","v":0},{"$f":"Time!OCB$86","v":0},{"$f":"Time!OCC$86","v":0},{"$f":"Time!OCD$86","v":0},{"$f":"Time!OCE$86","v":0},{"$f":"Time!OCF$86","v":0},{"$f":"Time!OCG$86","v":0},{"$f":"Time!OCH$86","v":0},{"$f":"Time!OCI$86","v":0},{"$f":"Time!OCJ$86","v":0},{"$f":"Time!OCK$86","v":0},{"$f":"Time!OCL$86","v":0},{"$f":"Time!OCM$86","v":0},{"$f":"Time!OCN$86","v":0},{"$f":"Time!OCO$86","v":0},{"$f":"Time!OCP$86","v":0},{"$f":"Time!OCQ$86","v":0},{"$f":"Time!OCR$86","v":0},{"$f":"Time!OCS$86","v":0},{"$f":"Time!OCT$86","v":0},{"$f":"Time!OCU$86","v":0},{"$f":"Time!OCV$86","v":0},{"$f":"Time!OCW$86","v":0},{"$f":"Time!OCX$86","v":0},{"$f":"Time!OCY$86","v":0},{"$f":"Time!OCZ$86","v":0},{"$f":"Time!ODA$86","v":0},{"$f":"Time!ODB$86","v":0},{"$f":"Time!ODC$86","v":0},{"$f":"Time!ODD$86","v":0},{"$f":"Time!ODE$86","v":0},{"$f":"Time!ODF$86","v":0},{"$f":"Time!ODG$86","v":0},{"$f":"Time!ODH$86","v":0},{"$f":"Time!ODI$86","v":0},{"$f":"Time!ODJ$86","v":0},{"$f":"Time!ODK$86","v":0},{"$f":"Time!ODL$86","v":0},{"$f":"Time!ODM$86","v":0},{"$f":"Time!ODN$86","v":0},{"$f":"Time!ODO$86","v":0},{"$f":"Time!ODP$86","v":0},{"$f":"Time!ODQ$86","v":0},{"$f":"Time!ODR$86","v":0},{"$f":"Time!ODS$86","v":0},{"$f":"Time!ODT$86","v":0},{"$f":"Time!ODU$86","v":0},{"$f":"Time!ODV$86","v":0},{"$f":"Time!ODW$86","v":0},{"$f":"Time!ODX$86","v":0},{"$f":"Time!ODY$86","v":0},{"$f":"Time!ODZ$86","v":0},{"$f":"Time!OEA$86","v":0},{"$f":"Time!OEB$86","v":0},{"$f":"Time!OEC$86","v":0},{"$f":"Time!OED$86","v":0},{"$f":"Time!OEE$86","v":0},{"$f":"Time!OEF$86","v":0},{"$f":"Time!OEG$86","v":0},{"$f":"Time!OEH$86","v":0},{"$f":"Time!OEI$86","v":0},{"$f":"Time!OEJ$86","v":0},{"$f":"Time!OEK$86","v":0},{"$f":"Time!OEL$86","v":0},{"$f":"Time!OEM$86","v":0},{"$f":"Time!OEN$86","v":0},{"$f":"Time!OEO$86","v":0},{"$f":"Time!OEP$86","v":0},{"$f":"Time!OEQ$86","v":0},{"$f":"Time!OER$86","v":0},{"$f":"Time!OES$86","v":0},{"$f":"Time!OET$86","v":0},{"$f":"Time!OEU$86","v":0},{"$f":"Time!OEV$86","v":0},{"$f":"Time!OEW$86","v":0},{"$f":"Time!OEX$86","v":0},{"$f":"Time!OEY$86","v":0},{"$f":"Time!OEZ$86","v":0},{"$f":"Time!OFA$86","v":0},{"$f":"Time!OFB$86","v":0},{"$f":"Time!OFC$86","v":0},{"$f":"Time!OFD$86","v":0},{"$f":"Time!OFE$86","v":0},{"$f":"Time!OFF$86","v":0},{"$f":"Time!OFG$86","v":0},{"$f":"Time!OFH$86","v":0},{"$f":"Time!OFI$86","v":0},{"$f":"Time!OFJ$86","v":0},{"$f":"Time!OFK$86","v":0},{"$f":"Time!OFL$86","v":0},{"$f":"Time!OFM$86","v":0},{"$f":"Time!OFN$86","v":0},{"$f":"Time!OFO$86","v":0},{"$f":"Time!OFP$86","v":0},{"$f":"Time!OFQ$86","v":0},{"$f":"Time!OFR$86","v":0},{"$f":"Time!OFS$86","v":0},{"$f":"Time!OFT$86","v":0},{"$f":"Time!OFU$86","v":0},{"$f":"Time!OFV$86","v":0},{"$f":"Time!OFW$86","v":0},{"$f":"Time!OFX$86","v":0},{"$f":"Time!OFY$86","v":0},{"$f":"Time!OFZ$86","v":0},{"$f":"Time!OGA$86","v":0},{"$f":"Time!OGB$86","v":0},{"$f":"Time!OGC$86","v":0},{"$f":"Time!OGD$86","v":0},{"$f":"Time!OGE$86","v":0},{"$f":"Time!OGF$86","v":0},{"$f":"Time!OGG$86","v":0},{"$f":"Time!OGH$86","v":0},{"$f":"Time!OGI$86","v":0},{"$f":"Time!OGJ$86","v":0},{"$f":"Time!OGK$86","v":0},{"$f":"Time!OGL$86","v":0},{"$f":"Time!OGM$86","v":0},{"$f":"Time!OGN$86","v":0},{"$f":"Time!OGO$86","v":0},{"$f":"Time!OGP$86","v":0},{"$f":"Time!OGQ$86","v":0},{"$f":"Time!OGR$86","v":0},{"$f":"Time!OGS$86","v":0},{"$f":"Time!OGT$86","v":0},{"$f":"Time!OGU$86","v":0},{"$f":"Time!OGV$86","v":0},{"$f":"Time!OGW$86","v":0},{"$f":"Time!OGX$86","v":0},{"$f":"Time!OGY$86","v":0},{"$f":"Time!OGZ$86","v":0},{"$f":"Time!OHA$86","v":0},{"$f":"Time!OHB$86","v":0},{"$f":"Time!OHC$86","v":0},{"$f":"Time!OHD$86","v":0},{"$f":"Time!OHE$86","v":0},{"$f":"Time!OHF$86","v":0},{"$f":"Time!OHG$86","v":0},{"$f":"Time!OHH$86","v":0},{"$f":"Time!OHI$86","v":0},{"$f":"Time!OHJ$86","v":0},{"$f":"Time!OHK$86","v":0},{"$f":"Time!OHL$86","v":0},{"$f":"Time!OHM$86","v":0},{"$f":"Time!OHN$86","v":0},{"$f":"Time!OHO$86","v":0},{"$f":"Time!OHP$86","v":0},{"$f":"Time!OHQ$86","v":0},{"$f":"Time!OHR$86","v":0},{"$f":"Time!OHS$86","v":0},{"$f":"Time!OHT$86","v":0},{"$f":"Time!OHU$86","v":0},{"$f":"Time!OHV$86","v":0},{"$f":"Time!OHW$86","v":0},{"$f":"Time!OHX$86","v":0},{"$f":"Time!OHY$86","v":0},{"$f":"Time!OHZ$86","v":0},{"$f":"Time!OIA$86","v":0},{"$f":"Time!OIB$86","v":0},{"$f":"Time!OIC$86","v":0},{"$f":"Time!OID$86","v":0},{"$f":"Time!OIE$86","v":0},{"$f":"Time!OIF$86","v":0},{"$f":"Time!OIG$86","v":0},{"$f":"Time!OIH$86","v":0},{"$f":"Time!OII$86","v":0},{"$f":"Time!OIJ$86","v":0},{"$f":"Time!OIK$86","v":0},{"$f":"Time!OIL$86","v":0},{"$f":"Time!OIM$86","v":0},{"$f":"Time!OIN$86","v":0},{"$f":"Time!OIO$86","v":0},{"$f":"Time!OIP$86","v":0},{"$f":"Time!OIQ$86","v":0},{"$f":"Time!OIR$86","v":0},{"$f":"Time!OIS$86","v":0},{"$f":"Time!OIT$86","v":0},{"$f":"Time!OIU$86","v":0},{"$f":"Time!OIV$86","v":0},{"$f":"Time!OIW$86","v":0},{"$f":"Time!OIX$86","v":0},{"$f":"Time!OIY$86","v":0},{"$f":"Time!OIZ$86","v":0},{"$f":"Time!OJA$86","v":0},{"$f":"Time!OJB$86","v":0},{"$f":"Time!OJC$86","v":0},{"$f":"Time!OJD$86","v":0},{"$f":"Time!OJE$86","v":0},{"$f":"Time!OJF$86","v":0},{"$f":"Time!OJG$86","v":0},{"$f":"Time!OJH$86","v":0},{"$f":"Time!OJI$86","v":0},{"$f":"Time!OJJ$86","v":0},{"$f":"Time!OJK$86","v":0},{"$f":"Time!OJL$86","v":0},{"$f":"Time!OJM$86","v":0},{"$f":"Time!OJN$86","v":0},{"$f":"Time!OJO$86","v":0},{"$f":"Time!OJP$86","v":0},{"$f":"Time!OJQ$86","v":0},{"$f":"Time!OJR$86","v":0},{"$f":"Time!OJS$86","v":0},{"$f":"Time!OJT$86","v":0},{"$f":"Time!OJU$86","v":0},{"$f":"Time!OJV$86","v":0},{"$f":"Time!OJW$86","v":0},{"$f":"Time!OJX$86","v":0},{"$f":"Time!OJY$86","v":0},{"$f":"Time!OJZ$86","v":0},{"$f":"Time!OKA$86","v":0},{"$f":"Time!OKB$86","v":0},{"$f":"Time!OKC$86","v":0},{"$f":"Time!OKD$86","v":0},{"$f":"Time!OKE$86","v":0},{"$f":"Time!OKF$86","v":0},{"$f":"Time!OKG$86","v":0},{"$f":"Time!OKH$86","v":0},{"$f":"Time!OKI$86","v":0},{"$f":"Time!OKJ$86","v":0},{"$f":"Time!OKK$86","v":0},{"$f":"Time!OKL$86","v":0},{"$f":"Time!OKM$86","v":0},{"$f":"Time!OKN$86","v":0},{"$f":"Time!OKO$86","v":0},{"$f":"Time!OKP$86","v":0},{"$f":"Time!OKQ$86","v":0},{"$f":"Time!OKR$86","v":0},{"$f":"Time!OKS$86","v":0},{"$f":"Time!OKT$86","v":0},{"$f":"Time!OKU$86","v":0},{"$f":"Time!OKV$86","v":0},{"$f":"Time!OKW$86","v":0},{"$f":"Time!OKX$86","v":0},{"$f":"Time!OKY$86","v":0},{"$f":"Time!OKZ$86","v":0},{"$f":"Time!OLA$86","v":0},{"$f":"Time!OLB$86","v":0},{"$f":"Time!OLC$86","v":0},{"$f":"Time!OLD$86","v":0},{"$f":"Time!OLE$86","v":0},{"$f":"Time!OLF$86","v":0},{"$f":"Time!OLG$86","v":0},{"$f":"Time!OLH$86","v":0},{"$f":"Time!OLI$86","v":0},{"$f":"Time!OLJ$86","v":0},{"$f":"Time!OLK$86","v":0},{"$f":"Time!OLL$86","v":0},{"$f":"Time!OLM$86","v":0},{"$f":"Time!OLN$86","v":0},{"$f":"Time!OLO$86","v":0},{"$f":"Time!OLP$86","v":0},{"$f":"Time!OLQ$86","v":0},{"$f":"Time!OLR$86","v":0},{"$f":"Time!OLS$86","v":0},{"$f":"Time!OLT$86","v":0},{"$f":"Time!OLU$86","v":0},{"$f":"Time!OLV$86","v":0},{"$f":"Time!OLW$86","v":0},{"$f":"Time!OLX$86","v":0},{"$f":"Time!OLY$86","v":0},{"$f":"Time!OLZ$86","v":0},{"$f":"Time!OMA$86","v":0},{"$f":"Time!OMB$86","v":0},{"$f":"Time!OMC$86","v":0},{"$f":"Time!OMD$86","v":0},{"$f":"Time!OME$86","v":0},{"$f":"Time!OMF$86","v":0},{"$f":"Time!OMG$86","v":0},{"$f":"Time!OMH$86","v":0},{"$f":"Time!OMI$86","v":0},{"$f":"Time!OMJ$86","v":0},{"$f":"Time!OMK$86","v":0},{"$f":"Time!OML$86","v":0},{"$f":"Time!OMM$86","v":0},{"$f":"Time!OMN$86","v":0},{"$f":"Time!OMO$86","v":0},{"$f":"Time!OMP$86","v":0},{"$f":"Time!OMQ$86","v":0},{"$f":"Time!OMR$86","v":0},{"$f":"Time!OMS$86","v":0},{"$f":"Time!OMT$86","v":0},{"$f":"Time!OMU$86","v":0},{"$f":"Time!OMV$86","v":0},{"$f":"Time!OMW$86","v":0},{"$f":"Time!OMX$86","v":0},{"$f":"Time!OMY$86","v":0},{"$f":"Time!OMZ$86","v":0},{"$f":"Time!ONA$86","v":0},{"$f":"Time!ONB$86","v":0},{"$f":"Time!ONC$86","v":0},{"$f":"Time!OND$86","v":0},{"$f":"Time!ONE$86","v":0},{"$f":"Time!ONF$86","v":0},{"$f":"Time!ONG$86","v":0},{"$f":"Time!ONH$86","v":0},{"$f":"Time!ONI$86","v":0},{"$f":"Time!ONJ$86","v":0},{"$f":"Time!ONK$86","v":0},{"$f":"Time!ONL$86","v":0},{"$f":"Time!ONM$86","v":0},{"$f":"Time!ONN$86","v":0},{"$f":"Time!ONO$86","v":0},{"$f":"Time!ONP$86","v":0},{"$f":"Time!ONQ$86","v":0},{"$f":"Time!ONR$86","v":0},{"$f":"Time!ONS$86","v":0},{"$f":"Time!ONT$86","v":0},{"$f":"Time!ONU$86","v":0},{"$f":"Time!ONV$86","v":0},{"$f":"Time!ONW$86","v":0},{"$f":"Time!ONX$86","v":0},{"$f":"Time!ONY$86","v":0},{"$f":"Time!ONZ$86","v":0},{"$f":"Time!OOA$86","v":0},{"$f":"Time!OOB$86","v":0},{"$f":"Time!OOC$86","v":0},{"$f":"Time!OOD$86","v":0},{"$f":"Time!OOE$86","v":0},{"$f":"Time!OOF$86","v":0},{"$f":"Time!OOG$86","v":0},{"$f":"Time!OOH$86","v":0},{"$f":"Time!OOI$86","v":0},{"$f":"Time!OOJ$86","v":0},{"$f":"Time!OOK$86","v":0},{"$f":"Time!OOL$86","v":0},{"$f":"Time!OOM$86","v":0},{"$f":"Time!OON$86","v":0},{"$f":"Time!OOO$86","v":0},{"$f":"Time!OOP$86","v":0},{"$f":"Time!OOQ$86","v":0},{"$f":"Time!OOR$86","v":0},{"$f":"Time!OOS$86","v":0},{"$f":"Time!OOT$86","v":0},{"$f":"Time!OOU$86","v":0},{"$f":"Time!OOV$86","v":0},{"$f":"Time!OOW$86","v":0},{"$f":"Time!OOX$86","v":0},{"$f":"Time!OOY$86","v":0},{"$f":"Time!OOZ$86","v":0},{"$f":"Time!OPA$86","v":0},{"$f":"Time!OPB$86","v":0},{"$f":"Time!OPC$86","v":0},{"$f":"Time!OPD$86","v":0},{"$f":"Time!OPE$86","v":0},{"$f":"Time!OPF$86","v":0},{"$f":"Time!OPG$86","v":0},{"$f":"Time!OPH$86","v":0},{"$f":"Time!OPI$86","v":0},{"$f":"Time!OPJ$86","v":0},{"$f":"Time!OPK$86","v":0},{"$f":"Time!OPL$86","v":0},{"$f":"Time!OPM$86","v":0},{"$f":"Time!OPN$86","v":0},{"$f":"Time!OPO$86","v":0},{"$f":"Time!OPP$86","v":0},{"$f":"Time!OPQ$86","v":0},{"$f":"Time!OPR$86","v":0},{"$f":"Time!OPS$86","v":0},{"$f":"Time!OPT$86","v":0},{"$f":"Time!OPU$86","v":0},{"$f":"Time!OPV$86","v":0},{"$f":"Time!OPW$86","v":0},{"$f":"Time!OPX$86","v":0},{"$f":"Time!OPY$86","v":0},{"$f":"Time!OPZ$86","v":0},{"$f":"Time!OQA$86","v":0},{"$f":"Time!OQB$86","v":0},{"$f":"Time!OQC$86","v":0},{"$f":"Time!OQD$86","v":0},{"$f":"Time!OQE$86","v":0},{"$f":"Time!OQF$86","v":0},{"$f":"Time!OQG$86","v":0},{"$f":"Time!OQH$86","v":0},{"$f":"Time!OQI$86","v":0},{"$f":"Time!OQJ$86","v":0},{"$f":"Time!OQK$86","v":0},{"$f":"Time!OQL$86","v":0},{"$f":"Time!OQM$86","v":0},{"$f":"Time!OQN$86","v":0},{"$f":"Time!OQO$86","v":0},{"$f":"Time!OQP$86","v":0},{"$f":"Time!OQQ$86","v":0},{"$f":"Time!OQR$86","v":0},{"$f":"Time!OQS$86","v":0},{"$f":"Time!OQT$86","v":0},{"$f":"Time!OQU$86","v":0},{"$f":"Time!OQV$86","v":0},{"$f":"Time!OQW$86","v":0},{"$f":"Time!OQX$86","v":0},{"$f":"Time!OQY$86","v":0},{"$f":"Time!OQZ$86","v":0},{"$f":"Time!ORA$86","v":0},{"$f":"Time!ORB$86","v":0},{"$f":"Time!ORC$86","v":0},{"$f":"Time!ORD$86","v":0},{"$f":"Time!ORE$86","v":0},{"$f":"Time!ORF$86","v":0},{"$f":"Time!ORG$86","v":0},{"$f":"Time!ORH$86","v":0},{"$f":"Time!ORI$86","v":0},{"$f":"Time!ORJ$86","v":0},{"$f":"Time!ORK$86","v":0},{"$f":"Time!ORL$86","v":0},{"$f":"Time!ORM$86","v":0},{"$f":"Time!ORN$86","v":0},{"$f":"Time!ORO$86","v":0},{"$f":"Time!ORP$86","v":0},{"$f":"Time!ORQ$86","v":0},{"$f":"Time!ORR$86","v":0},{"$f":"Time!ORS$86","v":0},{"$f":"Time!ORT$86","v":0},{"$f":"Time!ORU$86","v":0},{"$f":"Time!ORV$86","v":0},{"$f":"Time!ORW$86","v":0},{"$f":"Time!ORX$86","v":0},{"$f":"Time!ORY$86","v":0},{"$f":"Time!ORZ$86","v":0},{"$f":"Time!OSA$86","v":0},{"$f":"Time!OSB$86","v":0},{"$f":"Time!OSC$86","v":0},{"$f":"Time!OSD$86","v":0},{"$f":"Time!OSE$86","v":0},{"$f":"Time!OSF$86","v":0},{"$f":"Time!OSG$86","v":0},{"$f":"Time!OSH$86","v":0},{"$f":"Time!OSI$86","v":0},{"$f":"Time!OSJ$86","v":0},{"$f":"Time!OSK$86","v":0},{"$f":"Time!OSL$86","v":0},{"$f":"Time!OSM$86","v":0},{"$f":"Time!OSN$86","v":0},{"$f":"Time!OSO$86","v":0},{"$f":"Time!OSP$86","v":0},{"$f":"Time!OSQ$86","v":0},{"$f":"Time!OSR$86","v":0},{"$f":"Time!OSS$86","v":0},{"$f":"Time!OST$86","v":0},{"$f":"Time!OSU$86","v":0},{"$f":"Time!OSV$86","v":0},{"$f":"Time!OSW$86","v":0},{"$f":"Time!OSX$86","v":0},{"$f":"Time!OSY$86","v":0},{"$f":"Time!OSZ$86","v":0},{"$f":"Time!OTA$86","v":0},{"$f":"Time!OTB$86","v":0},{"$f":"Time!OTC$86","v":0},{"$f":"Time!OTD$86","v":0},{"$f":"Time!OTE$86","v":0},{"$f":"Time!OTF$86","v":0},{"$f":"Time!OTG$86","v":0},{"$f":"Time!OTH$86","v":0},{"$f":"Time!OTI$86","v":0},{"$f":"Time!OTJ$86","v":0},{"$f":"Time!OTK$86","v":0},{"$f":"Time!OTL$86","v":0},{"$f":"Time!OTM$86","v":0},{"$f":"Time!OTN$86","v":0},{"$f":"Time!OTO$86","v":0},{"$f":"Time!OTP$86","v":0},{"$f":"Time!OTQ$86","v":0},{"$f":"Time!OTR$86","v":0},{"$f":"Time!OTS$86","v":0},{"$f":"Time!OTT$86","v":0},{"$f":"Time!OTU$86","v":0},{"$f":"Time!OTV$86","v":0},{"$f":"Time!OTW$86","v":0},{"$f":"Time!OTX$86","v":0},{"$f":"Time!OTY$86","v":0},{"$f":"Time!OTZ$86","v":0},{"$f":"Time!OUA$86","v":0},{"$f":"Time!OUB$86","v":0},{"$f":"Time!OUC$86","v":0},{"$f":"Time!OUD$86","v":0},{"$f":"Time!OUE$86","v":0},{"$f":"Time!OUF$86","v":0},{"$f":"Time!OUG$86","v":0},{"$f":"Time!OUH$86","v":0},{"$f":"Time!OUI$86","v":0},{"$f":"Time!OUJ$86","v":0},{"$f":"Time!OUK$86","v":0},{"$f":"Time!OUL$86","v":0},{"$f":"Time!OUM$86","v":0},{"$f":"Time!OUN$86","v":0},{"$f":"Time!OUO$86","v":0},{"$f":"Time!OUP$86","v":0},{"$f":"Time!OUQ$86","v":0},{"$f":"Time!OUR$86","v":0},{"$f":"Time!OUS$86","v":0},{"$f":"Time!OUT$86","v":0},{"$f":"Time!OUU$86","v":0},{"$f":"Time!OUV$86","v":0},{"$f":"Time!OUW$86","v":0},{"$f":"Time!OUX$86","v":0},{"$f":"Time!OUY$86","v":0},{"$f":"Time!OUZ$86","v":0},{"$f":"Time!OVA$86","v":0},{"$f":"Time!OVB$86","v":0},{"$f":"Time!OVC$86","v":0},{"$f":"Time!OVD$86","v":0},{"$f":"Time!OVE$86","v":0},{"$f":"Time!OVF$86","v":0},{"$f":"Time!OVG$86","v":0},{"$f":"Time!OVH$86","v":0},{"$f":"Time!OVI$86","v":0},{"$f":"Time!OVJ$86","v":0},{"$f":"Time!OVK$86","v":0},{"$f":"Time!OVL$86","v":0},{"$f":"Time!OVM$86","v":0},{"$f":"Time!OVN$86","v":0},{"$f":"Time!OVO$86","v":0},{"$f":"Time!OVP$86","v":0},{"$f":"Time!OVQ$86","v":0},{"$f":"Time!OVR$86","v":0},{"$f":"Time!OVS$86","v":0},{"$f":"Time!OVT$86","v":0},{"$f":"Time!OVU$86","v":0},{"$f":"Time!OVV$86","v":0},{"$f":"Time!OVW$86","v":0},{"$f":"Time!OVX$86","v":0},{"$f":"Time!OVY$86","v":0},{"$f":"Time!OVZ$86","v":0},{"$f":"Time!OWA$86","v":0},{"$f":"Time!OWB$86","v":0},{"$f":"Time!OWC$86","v":0},{"$f":"Time!OWD$86","v":0},{"$f":"Time!OWE$86","v":0},{"$f":"Time!OWF$86","v":0},{"$f":"Time!OWG$86","v":0},{"$f":"Time!OWH$86","v":0},{"$f":"Time!OWI$86","v":0},{"$f":"Time!OWJ$86","v":0},{"$f":"Time!OWK$86","v":0},{"$f":"Time!OWL$86","v":0},{"$f":"Time!OWM$86","v":0},{"$f":"Time!OWN$86","v":0},{"$f":"Time!OWO$86","v":0},{"$f":"Time!OWP$86","v":0},{"$f":"Time!OWQ$86","v":0},{"$f":"Time!OWR$86","v":0},{"$f":"Time!OWS$86","v":0},{"$f":"Time!OWT$86","v":0},{"$f":"Time!OWU$86","v":0},{"$f":"Time!OWV$86","v":0},{"$f":"Time!OWW$86","v":0},{"$f":"Time!OWX$86","v":0},{"$f":"Time!OWY$86","v":0},{"$f":"Time!OWZ$86","v":0},{"$f":"Time!OXA$86","v":0},{"$f":"Time!OXB$86","v":0},{"$f":"Time!OXC$86","v":0},{"$f":"Time!OXD$86","v":0},{"$f":"Time!OXE$86","v":0},{"$f":"Time!OXF$86","v":0},{"$f":"Time!OXG$86","v":0},{"$f":"Time!OXH$86","v":0},{"$f":"Time!OXI$86","v":0},{"$f":"Time!OXJ$86","v":0},{"$f":"Time!OXK$86","v":0},{"$f":"Time!OXL$86","v":0},{"$f":"Time!OXM$86","v":0},{"$f":"Time!OXN$86","v":0},{"$f":"Time!OXO$86","v":0},{"$f":"Time!OXP$86","v":0},{"$f":"Time!OXQ$86","v":0},{"$f":"Time!OXR$86","v":0},{"$f":"Time!OXS$86","v":0},{"$f":"Time!OXT$86","v":0},{"$f":"Time!OXU$86","v":0},{"$f":"Time!OXV$86","v":0},{"$f":"Time!OXW$86","v":0},{"$f":"Time!OXX$86","v":0},{"$f":"Time!OXY$86","v":0},{"$f":"Time!OXZ$86","v":0},{"$f":"Time!OYA$86","v":0},{"$f":"Time!OYB$86","v":0},{"$f":"Time!OYC$86","v":0},{"$f":"Time!OYD$86","v":0},{"$f":"Time!OYE$86","v":0},{"$f":"Time!OYF$86","v":0},{"$f":"Time!OYG$86","v":0},{"$f":"Time!OYH$86","v":0},{"$f":"Time!OYI$86","v":0},{"$f":"Time!OYJ$86","v":0},{"$f":"Time!OYK$86","v":0},{"$f":"Time!OYL$86","v":0},{"$f":"Time!OYM$86","v":0},{"$f":"Time!OYN$86","v":0},{"$f":"Time!OYO$86","v":0},{"$f":"Time!OYP$86","v":0},{"$f":"Time!OYQ$86","v":0},{"$f":"Time!OYR$86","v":0},{"$f":"Time!OYS$86","v":0},{"$f":"Time!OYT$86","v":0},{"$f":"Time!OYU$86","v":0},{"$f":"Time!OYV$86","v":0},{"$f":"Time!OYW$86","v":0},{"$f":"Time!OYX$86","v":0},{"$f":"Time!OYY$86","v":0},{"$f":"Time!OYZ$86","v":0},{"$f":"Time!OZA$86","v":0},{"$f":"Time!OZB$86","v":0},{"$f":"Time!OZC$86","v":0},{"$f":"Time!OZD$86","v":0},{"$f":"Time!OZE$86","v":0},{"$f":"Time!OZF$86","v":0},{"$f":"Time!OZG$86","v":0},{"$f":"Time!OZH$86","v":0},{"$f":"Time!OZI$86","v":0},{"$f":"Time!OZJ$86","v":0},{"$f":"Time!OZK$86","v":0},{"$f":"Time!OZL$86","v":0},{"$f":"Time!OZM$86","v":0},{"$f":"Time!OZN$86","v":0},{"$f":"Time!OZO$86","v":0},{"$f":"Time!OZP$86","v":0},{"$f":"Time!OZQ$86","v":0},{"$f":"Time!OZR$86","v":0},{"$f":"Time!OZS$86","v":0},{"$f":"Time!OZT$86","v":0},{"$f":"Time!OZU$86","v":0},{"$f":"Time!OZV$86","v":0},{"$f":"Time!OZW$86","v":0},{"$f":"Time!OZX$86","v":0},{"$f":"Time!OZY$86","v":0},{"$f":"Time!OZZ$86","v":0},{"$f":"Time!PAA$86","v":0},{"$f":"Time!PAB$86","v":0},{"$f":"Time!PAC$86","v":0},{"$f":"Time!PAD$86","v":0},{"$f":"Time!PAE$86","v":0},{"$f":"Time!PAF$86","v":0},{"$f":"Time!PAG$86","v":0},{"$f":"Time!PAH$86","v":0},{"$f":"Time!PAI$86","v":0},{"$f":"Time!PAJ$86","v":0},{"$f":"Time!PAK$86","v":0},{"$f":"Time!PAL$86","v":0},{"$f":"Time!PAM$86","v":0},{"$f":"Time!PAN$86","v":0},{"$f":"Time!PAO$86","v":0},{"$f":"Time!PAP$86","v":0},{"$f":"Time!PAQ$86","v":0},{"$f":"Time!PAR$86","v":0},{"$f":"Time!PAS$86","v":0},{"$f":"Time!PAT$86","v":0},{"$f":"Time!PAU$86","v":0},{"$f":"Time!PAV$86","v":0},{"$f":"Time!PAW$86","v":0},{"$f":"Time!PAX$86","v":0},{"$f":"Time!PAY$86","v":0},{"$f":"Time!PAZ$86","v":0},{"$f":"Time!PBA$86","v":0},{"$f":"Time!PBB$86","v":0},{"$f":"Time!PBC$86","v":0},{"$f":"Time!PBD$86","v":0},{"$f":"Time!PBE$86","v":0},{"$f":"Time!PBF$86","v":0},{"$f":"Time!PBG$86","v":0},{"$f":"Time!PBH$86","v":0},{"$f":"Time!PBI$86","v":0},{"$f":"Time!PBJ$86","v":0},{"$f":"Time!PBK$86","v":0},{"$f":"Time!PBL$86","v":0},{"$f":"Time!PBM$86","v":0},{"$f":"Time!PBN$86","v":0},{"$f":"Time!PBO$86","v":0},{"$f":"Time!PBP$86","v":0},{"$f":"Time!PBQ$86","v":0},{"$f":"Time!PBR$86","v":0},{"$f":"Time!PBS$86","v":0},{"$f":"Time!PBT$86","v":0},{"$f":"Time!PBU$86","v":0},{"$f":"Time!PBV$86","v":0},{"$f":"Time!PBW$86","v":0},{"$f":"Time!PBX$86","v":0},{"$f":"Time!PBY$86","v":0},{"$f":"Time!PBZ$86","v":0},{"$f":"Time!PCA$86","v":0},{"$f":"Time!PCB$86","v":0},{"$f":"Time!PCC$86","v":0},{"$f":"Time!PCD$86","v":0},{"$f":"Time!PCE$86","v":0},{"$f":"Time!PCF$86","v":0},{"$f":"Time!PCG$86","v":0},{"$f":"Time!PCH$86","v":0},{"$f":"Time!PCI$86","v":0},{"$f":"Time!PCJ$86","v":0},{"$f":"Time!PCK$86","v":0},{"$f":"Time!PCL$86","v":0},{"$f":"Time!PCM$86","v":0},{"$f":"Time!PCN$86","v":0},{"$f":"Time!PCO$86","v":0},{"$f":"Time!PCP$86","v":0},{"$f":"Time!PCQ$86","v":0},{"$f":"Time!PCR$86","v":0},{"$f":"Time!PCS$86","v":0},{"$f":"Time!PCT$86","v":0},{"$f":"Time!PCU$86","v":0},{"$f":"Time!PCV$86","v":0},{"$f":"Time!PCW$86","v":0},{"$f":"Time!PCX$86","v":0},{"$f":"Time!PCY$86","v":0},{"$f":"Time!PCZ$86","v":0},{"$f":"Time!PDA$86","v":0},{"$f":"Time!PDB$86","v":0},{"$f":"Time!PDC$86","v":0},{"$f":"Time!PDD$86","v":0},{"$f":"Time!PDE$86","v":0},{"$f":"Time!PDF$86","v":0},{"$f":"Time!PDG$86","v":0},{"$f":"Time!PDH$86","v":0},{"$f":"Time!PDI$86","v":0},{"$f":"Time!PDJ$86","v":0},{"$f":"Time!PDK$86","v":0},{"$f":"Time!PDL$86","v":0},{"$f":"Time!PDM$86","v":0},{"$f":"Time!PDN$86","v":0},{"$f":"Time!PDO$86","v":0},{"$f":"Time!PDP$86","v":0},{"$f":"Time!PDQ$86","v":0},{"$f":"Time!PDR$86","v":0},{"$f":"Time!PDS$86","v":0},{"$f":"Time!PDT$86","v":0},{"$f":"Time!PDU$86","v":0},{"$f":"Time!PDV$86","v":0},{"$f":"Time!PDW$86","v":0},{"$f":"Time!PDX$86","v":0},{"$f":"Time!PDY$86","v":0},{"$f":"Time!PDZ$86","v":0},{"$f":"Time!PEA$86","v":0},{"$f":"Time!PEB$86","v":0},{"$f":"Time!PEC$86","v":0},{"$f":"Time!PED$86","v":0},{"$f":"Time!PEE$86","v":0},{"$f":"Time!PEF$86","v":0},{"$f":"Time!PEG$86","v":0},{"$f":"Time!PEH$86","v":0},{"$f":"Time!PEI$86","v":0},{"$f":"Time!PEJ$86","v":0},{"$f":"Time!PEK$86","v":0},{"$f":"Time!PEL$86","v":0},{"$f":"Time!PEM$86","v":0},{"$f":"Time!PEN$86","v":0},{"$f":"Time!PEO$86","v":0},{"$f":"Time!PEP$86","v":0},{"$f":"Time!PEQ$86","v":0},{"$f":"Time!PER$86","v":0},{"$f":"Time!PES$86","v":0},{"$f":"Time!PET$86","v":0},{"$f":"Time!PEU$86","v":0},{"$f":"Time!PEV$86","v":0},{"$f":"Time!PEW$86","v":0},{"$f":"Time!PEX$86","v":0},{"$f":"Time!PEY$86","v":0},{"$f":"Time!PEZ$86","v":0},{"$f":"Time!PFA$86","v":0},{"$f":"Time!PFB$86","v":0},{"$f":"Time!PFC$86","v":0},{"$f":"Time!PFD$86","v":0},{"$f":"Time!PFE$86","v":0},{"$f":"Time!PFF$86","v":0},{"$f":"Time!PFG$86","v":0},{"$f":"Time!PFH$86","v":0},{"$f":"Time!PFI$86","v":0},{"$f":"Time!PFJ$86","v":0},{"$f":"Time!PFK$86","v":0},{"$f":"Time!PFL$86","v":0},{"$f":"Time!PFM$86","v":0},{"$f":"Time!PFN$86","v":0},{"$f":"Time!PFO$86","v":0},{"$f":"Time!PFP$86","v":0},{"$f":"Time!PFQ$86","v":0},{"$f":"Time!PFR$86","v":0},{"$f":"Time!PFS$86","v":0},{"$f":"Time!PFT$86","v":0},{"$f":"Time!PFU$86","v":0},{"$f":"Time!PFV$86","v":0},{"$f":"Time!PFW$86","v":0},{"$f":"Time!PFX$86","v":0},{"$f":"Time!PFY$86","v":0},{"$f":"Time!PFZ$86","v":0},{"$f":"Time!PGA$86","v":0},{"$f":"Time!PGB$86","v":0},{"$f":"Time!PGC$86","v":0},{"$f":"Time!PGD$86","v":0},{"$f":"Time!PGE$86","v":0},{"$f":"Time!PGF$86","v":0},{"$f":"Time!PGG$86","v":0},{"$f":"Time!PGH$86","v":0},{"$f":"Time!PGI$86","v":0},{"$f":"Time!PGJ$86","v":0},{"$f":"Time!PGK$86","v":0},{"$f":"Time!PGL$86","v":0},{"$f":"Time!PGM$86","v":0},{"$f":"Time!PGN$86","v":0},{"$f":"Time!PGO$86","v":0},{"$f":"Time!PGP$86","v":0},{"$f":"Time!PGQ$86","v":0},{"$f":"Time!PGR$86","v":0},{"$f":"Time!PGS$86","v":0},{"$f":"Time!PGT$86","v":0},{"$f":"Time!PGU$86","v":0},{"$f":"Time!PGV$86","v":0},{"$f":"Time!PGW$86","v":0},{"$f":"Time!PGX$86","v":0},{"$f":"Time!PGY$86","v":0},{"$f":"Time!PGZ$86","v":0},{"$f":"Time!PHA$86","v":0},{"$f":"Time!PHB$86","v":0},{"$f":"Time!PHC$86","v":0},{"$f":"Time!PHD$86","v":0},{"$f":"Time!PHE$86","v":0},{"$f":"Time!PHF$86","v":0},{"$f":"Time!PHG$86","v":0},{"$f":"Time!PHH$86","v":0},{"$f":"Time!PHI$86","v":0},{"$f":"Time!PHJ$86","v":0},{"$f":"Time!PHK$86","v":0},{"$f":"Time!PHL$86","v":0},{"$f":"Time!PHM$86","v":0},{"$f":"Time!PHN$86","v":0},{"$f":"Time!PHO$86","v":0},{"$f":"Time!PHP$86","v":0},{"$f":"Time!PHQ$86","v":0},{"$f":"Time!PHR$86","v":0},{"$f":"Time!PHS$86","v":0},{"$f":"Time!PHT$86","v":0},{"$f":"Time!PHU$86","v":0},{"$f":"Time!PHV$86","v":0},{"$f":"Time!PHW$86","v":0},{"$f":"Time!PHX$86","v":0},{"$f":"Time!PHY$86","v":0},{"$f":"Time!PHZ$86","v":0},{"$f":"Time!PIA$86","v":0},{"$f":"Time!PIB$86","v":0},{"$f":"Time!PIC$86","v":0},{"$f":"Time!PID$86","v":0},{"$f":"Time!PIE$86","v":0},{"$f":"Time!PIF$86","v":0},{"$f":"Time!PIG$86","v":0},{"$f":"Time!PIH$86","v":0},{"$f":"Time!PII$86","v":0},{"$f":"Time!PIJ$86","v":0},{"$f":"Time!PIK$86","v":0},{"$f":"Time!PIL$86","v":0},{"$f":"Time!PIM$86","v":0},{"$f":"Time!PIN$86","v":0},{"$f":"Time!PIO$86","v":0},{"$f":"Time!PIP$86","v":0},{"$f":"Time!PIQ$86","v":0},{"$f":"Time!PIR$86","v":0},{"$f":"Time!PIS$86","v":0},{"$f":"Time!PIT$86","v":0},{"$f":"Time!PIU$86","v":0},{"$f":"Time!PIV$86","v":0},{"$f":"Time!PIW$86","v":0},{"$f":"Time!PIX$86","v":0},{"$f":"Time!PIY$86","v":0},{"$f":"Time!PIZ$86","v":0},{"$f":"Time!PJA$86","v":0},{"$f":"Time!PJB$86","v":0},{"$f":"Time!PJC$86","v":0},{"$f":"Time!PJD$86","v":0},{"$f":"Time!PJE$86","v":0},{"$f":"Time!PJF$86","v":0},{"$f":"Time!PJG$86","v":0},{"$f":"Time!PJH$86","v":0},{"$f":"Time!PJI$86","v":0},{"$f":"Time!PJJ$86","v":0},{"$f":"Time!PJK$86","v":0},{"$f":"Time!PJL$86","v":0},{"$f":"Time!PJM$86","v":0},{"$f":"Time!PJN$86","v":0},{"$f":"Time!PJO$86","v":0},{"$f":"Time!PJP$86","v":0},{"$f":"Time!PJQ$86","v":0},{"$f":"Time!PJR$86","v":0},{"$f":"Time!PJS$86","v":0},{"$f":"Time!PJT$86","v":0},{"$f":"Time!PJU$86","v":0},{"$f":"Time!PJV$86","v":0},{"$f":"Time!PJW$86","v":0},{"$f":"Time!PJX$86","v":0},{"$f":"Time!PJY$86","v":0},{"$f":"Time!PJZ$86","v":0},{"$f":"Time!PKA$86","v":0},{"$f":"Time!PKB$86","v":0},{"$f":"Time!PKC$86","v":0},{"$f":"Time!PKD$86","v":0},{"$f":"Time!PKE$86","v":0},{"$f":"Time!PKF$86","v":0},{"$f":"Time!PKG$86","v":0},{"$f":"Time!PKH$86","v":0},{"$f":"Time!PKI$86","v":0},{"$f":"Time!PKJ$86","v":0},{"$f":"Time!PKK$86","v":0},{"$f":"Time!PKL$86","v":0},{"$f":"Time!PKM$86","v":0},{"$f":"Time!PKN$86","v":0},{"$f":"Time!PKO$86","v":0},{"$f":"Time!PKP$86","v":0},{"$f":"Time!PKQ$86","v":0},{"$f":"Time!PKR$86","v":0},{"$f":"Time!PKS$86","v":0},{"$f":"Time!PKT$86","v":0},{"$f":"Time!PKU$86","v":0},{"$f":"Time!PKV$86","v":0},{"$f":"Time!PKW$86","v":0},{"$f":"Time!PKX$86","v":0},{"$f":"Time!PKY$86","v":0},{"$f":"Time!PKZ$86","v":0},{"$f":"Time!PLA$86","v":0},{"$f":"Time!PLB$86","v":0},{"$f":"Time!PLC$86","v":0},{"$f":"Time!PLD$86","v":0},{"$f":"Time!PLE$86","v":0},{"$f":"Time!PLF$86","v":0},{"$f":"Time!PLG$86","v":0},{"$f":"Time!PLH$86","v":0},{"$f":"Time!PLI$86","v":0},{"$f":"Time!PLJ$86","v":0},{"$f":"Time!PLK$86","v":0},{"$f":"Time!PLL$86","v":0},{"$f":"Time!PLM$86","v":0},{"$f":"Time!PLN$86","v":0},{"$f":"Time!PLO$86","v":0},{"$f":"Time!PLP$86","v":0},{"$f":"Time!PLQ$86","v":0},{"$f":"Time!PLR$86","v":0},{"$f":"Time!PLS$86","v":0},{"$f":"Time!PLT$86","v":0},{"$f":"Time!PLU$86","v":0},{"$f":"Time!PLV$86","v":0},{"$f":"Time!PLW$86","v":0},{"$f":"Time!PLX$86","v":0},{"$f":"Time!PLY$86","v":0},{"$f":"Time!PLZ$86","v":0},{"$f":"Time!PMA$86","v":0},{"$f":"Time!PMB$86","v":0},{"$f":"Time!PMC$86","v":0},{"$f":"Time!PMD$86","v":0},{"$f":"Time!PME$86","v":0},{"$f":"Time!PMF$86","v":0},{"$f":"Time!PMG$86","v":0},{"$f":"Time!PMH$86","v":0},{"$f":"Time!PMI$86","v":0},{"$f":"Time!PMJ$86","v":0},{"$f":"Time!PMK$86","v":0},{"$f":"Time!PML$86","v":0},{"$f":"Time!PMM$86","v":0},{"$f":"Time!PMN$86","v":0},{"$f":"Time!PMO$86","v":0},{"$f":"Time!PMP$86","v":0},{"$f":"Time!PMQ$86","v":0},{"$f":"Time!PMR$86","v":0},{"$f":"Time!PMS$86","v":0},{"$f":"Time!PMT$86","v":0},{"$f":"Time!PMU$86","v":0},{"$f":"Time!PMV$86","v":0},{"$f":"Time!PMW$86","v":0},{"$f":"Time!PMX$86","v":0},{"$f":"Time!PMY$86","v":0},{"$f":"Time!PMZ$86","v":0},{"$f":"Time!PNA$86","v":0},{"$f":"Time!PNB$86","v":0},{"$f":"Time!PNC$86","v":0},{"$f":"Time!PND$86","v":0},{"$f":"Time!PNE$86","v":0},{"$f":"Time!PNF$86","v":0},{"$f":"Time!PNG$86","v":0},{"$f":"Time!PNH$86","v":0},{"$f":"Time!PNI$86","v":0},{"$f":"Time!PNJ$86","v":0},{"$f":"Time!PNK$86","v":0},{"$f":"Time!PNL$86","v":0},{"$f":"Time!PNM$86","v":0},{"$f":"Time!PNN$86","v":0},{"$f":"Time!PNO$86","v":0},{"$f":"Time!PNP$86","v":0},{"$f":"Time!PNQ$86","v":0},{"$f":"Time!PNR$86","v":0},{"$f":"Time!PNS$86","v":0},{"$f":"Time!PNT$86","v":0},{"$f":"Time!PNU$86","v":0},{"$f":"Time!PNV$86","v":0},{"$f":"Time!PNW$86","v":0},{"$f":"Time!PNX$86","v":0},{"$f":"Time!PNY$86","v":0},{"$f":"Time!PNZ$86","v":0},{"$f":"Time!POA$86","v":0},{"$f":"Time!POB$86","v":0},{"$f":"Time!POC$86","v":0},{"$f":"Time!POD$86","v":0},{"$f":"Time!POE$86","v":0},{"$f":"Time!POF$86","v":0},{"$f":"Time!POG$86","v":0},{"$f":"Time!POH$86","v":0},{"$f":"Time!POI$86","v":0},{"$f":"Time!POJ$86","v":0},{"$f":"Time!POK$86","v":0},{"$f":"Time!POL$86","v":0},{"$f":"Time!POM$86","v":0},{"$f":"Time!PON$86","v":0},{"$f":"Time!POO$86","v":0},{"$f":"Time!POP$86","v":0},{"$f":"Time!POQ$86","v":0},{"$f":"Time!POR$86","v":0},{"$f":"Time!POS$86","v":0},{"$f":"Time!POT$86","v":0},{"$f":"Time!POU$86","v":0},{"$f":"Time!POV$86","v":0},{"$f":"Time!POW$86","v":0},{"$f":"Time!POX$86","v":0},{"$f":"Time!POY$86","v":0},{"$f":"Time!POZ$86","v":0},{"$f":"Time!PPA$86","v":0},{"$f":"Time!PPB$86","v":0},{"$f":"Time!PPC$86","v":0},{"$f":"Time!PPD$86","v":0},{"$f":"Time!PPE$86","v":0},{"$f":"Time!PPF$86","v":0},{"$f":"Time!PPG$86","v":0},{"$f":"Time!PPH$86","v":0},{"$f":"Time!PPI$86","v":0},{"$f":"Time!PPJ$86","v":0},{"$f":"Time!PPK$86","v":0},{"$f":"Time!PPL$86","v":0},{"$f":"Time!PPM$86","v":0},{"$f":"Time!PPN$86","v":0},{"$f":"Time!PPO$86","v":0},{"$f":"Time!PPP$86","v":0},{"$f":"Time!PPQ$86","v":0},{"$f":"Time!PPR$86","v":0},{"$f":"Time!PPS$86","v":0},{"$f":"Time!PPT$86","v":0},{"$f":"Time!PPU$86","v":0},{"$f":"Time!PPV$86","v":0},{"$f":"Time!PPW$86","v":0},{"$f":"Time!PPX$86","v":0},{"$f":"Time!PPY$86","v":0},{"$f":"Time!PPZ$86","v":0},{"$f":"Time!PQA$86","v":0},{"$f":"Time!PQB$86","v":0},{"$f":"Time!PQC$86","v":0},{"$f":"Time!PQD$86","v":0},{"$f":"Time!PQE$86","v":0},{"$f":"Time!PQF$86","v":0},{"$f":"Time!PQG$86","v":0},{"$f":"Time!PQH$86","v":0},{"$f":"Time!PQI$86","v":0},{"$f":"Time!PQJ$86","v":0},{"$f":"Time!PQK$86","v":0},{"$f":"Time!PQL$86","v":0},{"$f":"Time!PQM$86","v":0},{"$f":"Time!PQN$86","v":0},{"$f":"Time!PQO$86","v":0},{"$f":"Time!PQP$86","v":0},{"$f":"Time!PQQ$86","v":0},{"$f":"Time!PQR$86","v":0},{"$f":"Time!PQS$86","v":0},{"$f":"Time!PQT$86","v":0},{"$f":"Time!PQU$86","v":0},{"$f":"Time!PQV$86","v":0},{"$f":"Time!PQW$86","v":0},{"$f":"Time!PQX$86","v":0},{"$f":"Time!PQY$86","v":0},{"$f":"Time!PQZ$86","v":0},{"$f":"Time!PRA$86","v":0},{"$f":"Time!PRB$86","v":0},{"$f":"Time!PRC$86","v":0},{"$f":"Time!PRD$86","v":0},{"$f":"Time!PRE$86","v":0},{"$f":"Time!PRF$86","v":0},{"$f":"Time!PRG$86","v":0},{"$f":"Time!PRH$86","v":0},{"$f":"Time!PRI$86","v":0},{"$f":"Time!PRJ$86","v":0},{"$f":"Time!PRK$86","v":0},{"$f":"Time!PRL$86","v":0},{"$f":"Time!PRM$86","v":0},{"$f":"Time!PRN$86","v":0},{"$f":"Time!PRO$86","v":0},{"$f":"Time!PRP$86","v":0},{"$f":"Time!PRQ$86","v":0},{"$f":"Time!PRR$86","v":0},{"$f":"Time!PRS$86","v":0},{"$f":"Time!PRT$86","v":0},{"$f":"Time!PRU$86","v":0},{"$f":"Time!PRV$86","v":0},{"$f":"Time!PRW$86","v":0},{"$f":"Time!PRX$86","v":0},{"$f":"Time!PRY$86","v":0},{"$f":"Time!PRZ$86","v":0},{"$f":"Time!PSA$86","v":0},{"$f":"Time!PSB$86","v":0},{"$f":"Time!PSC$86","v":0},{"$f":"Time!PSD$86","v":0},{"$f":"Time!PSE$86","v":0},{"$f":"Time!PSF$86","v":0},{"$f":"Time!PSG$86","v":0},{"$f":"Time!PSH$86","v":0},{"$f":"Time!PSI$86","v":0},{"$f":"Time!PSJ$86","v":0},{"$f":"Time!PSK$86","v":0},{"$f":"Time!PSL$86","v":0},{"$f":"Time!PSM$86","v":0},{"$f":"Time!PSN$86","v":0},{"$f":"Time!PSO$86","v":0},{"$f":"Time!PSP$86","v":0},{"$f":"Time!PSQ$86","v":0},{"$f":"Time!PSR$86","v":0},{"$f":"Time!PSS$86","v":0},{"$f":"Time!PST$86","v":0},{"$f":"Time!PSU$86","v":0},{"$f":"Time!PSV$86","v":0},{"$f":"Time!PSW$86","v":0},{"$f":"Time!PSX$86","v":0},{"$f":"Time!PSY$86","v":0},{"$f":"Time!PSZ$86","v":0},{"$f":"Time!PTA$86","v":0},{"$f":"Time!PTB$86","v":0},{"$f":"Time!PTC$86","v":0},{"$f":"Time!PTD$86","v":0},{"$f":"Time!PTE$86","v":0},{"$f":"Time!PTF$86","v":0},{"$f":"Time!PTG$86","v":0},{"$f":"Time!PTH$86","v":0},{"$f":"Time!PTI$86","v":0},{"$f":"Time!PTJ$86","v":0},{"$f":"Time!PTK$86","v":0},{"$f":"Time!PTL$86","v":0},{"$f":"Time!PTM$86","v":0},{"$f":"Time!PTN$86","v":0},{"$f":"Time!PTO$86","v":0},{"$f":"Time!PTP$86","v":0},{"$f":"Time!PTQ$86","v":0},{"$f":"Time!PTR$86","v":0},{"$f":"Time!PTS$86","v":0},{"$f":"Time!PTT$86","v":0},{"$f":"Time!PTU$86","v":0},{"$f":"Time!PTV$86","v":0},{"$f":"Time!PTW$86","v":0},{"$f":"Time!PTX$86","v":0},{"$f":"Time!PTY$86","v":0},{"$f":"Time!PTZ$86","v":0},{"$f":"Time!PUA$86","v":0},{"$f":"Time!PUB$86","v":0},{"$f":"Time!PUC$86","v":0},{"$f":"Time!PUD$86","v":0},{"$f":"Time!PUE$86","v":0},{"$f":"Time!PUF$86","v":0},{"$f":"Time!PUG$86","v":0},{"$f":"Time!PUH$86","v":0},{"$f":"Time!PUI$86","v":0},{"$f":"Time!PUJ$86","v":0},{"$f":"Time!PUK$86","v":0},{"$f":"Time!PUL$86","v":0},{"$f":"Time!PUM$86","v":0},{"$f":"Time!PUN$86","v":0},{"$f":"Time!PUO$86","v":0},{"$f":"Time!PUP$86","v":0},{"$f":"Time!PUQ$86","v":0},{"$f":"Time!PUR$86","v":0},{"$f":"Time!PUS$86","v":0},{"$f":"Time!PUT$86","v":0},{"$f":"Time!PUU$86","v":0},{"$f":"Time!PUV$86","v":0},{"$f":"Time!PUW$86","v":0},{"$f":"Time!PUX$86","v":0},{"$f":"Time!PUY$86","v":0},{"$f":"Time!PUZ$86","v":0},{"$f":"Time!PVA$86","v":0},{"$f":"Time!PVB$86","v":0},{"$f":"Time!PVC$86","v":0},{"$f":"Time!PVD$86","v":0},{"$f":"Time!PVE$86","v":0},{"$f":"Time!PVF$86","v":0},{"$f":"Time!PVG$86","v":0},{"$f":"Time!PVH$86","v":0},{"$f":"Time!PVI$86","v":0},{"$f":"Time!PVJ$86","v":0},{"$f":"Time!PVK$86","v":0},{"$f":"Time!PVL$86","v":0},{"$f":"Time!PVM$86","v":0},{"$f":"Time!PVN$86","v":0},{"$f":"Time!PVO$86","v":0},{"$f":"Time!PVP$86","v":0},{"$f":"Time!PVQ$86","v":0},{"$f":"Time!PVR$86","v":0},{"$f":"Time!PVS$86","v":0},{"$f":"Time!PVT$86","v":0},{"$f":"Time!PVU$86","v":0},{"$f":"Time!PVV$86","v":0},{"$f":"Time!PVW$86","v":0},{"$f":"Time!PVX$86","v":0},{"$f":"Time!PVY$86","v":0},{"$f":"Time!PVZ$86","v":0},{"$f":"Time!PWA$86","v":0},{"$f":"Time!PWB$86","v":0},{"$f":"Time!PWC$86","v":0},{"$f":"Time!PWD$86","v":0},{"$f":"Time!PWE$86","v":0},{"$f":"Time!PWF$86","v":0},{"$f":"Time!PWG$86","v":0},{"$f":"Time!PWH$86","v":0},{"$f":"Time!PWI$86","v":0},{"$f":"Time!PWJ$86","v":0},{"$f":"Time!PWK$86","v":0},{"$f":"Time!PWL$86","v":0},{"$f":"Time!PWM$86","v":0},{"$f":"Time!PWN$86","v":0},{"$f":"Time!PWO$86","v":0},{"$f":"Time!PWP$86","v":0},{"$f":"Time!PWQ$86","v":0},{"$f":"Time!PWR$86","v":0},{"$f":"Time!PWS$86","v":0},{"$f":"Time!PWT$86","v":0},{"$f":"Time!PWU$86","v":0},{"$f":"Time!PWV$86","v":0},{"$f":"Time!PWW$86","v":0},{"$f":"Time!PWX$86","v":0},{"$f":"Time!PWY$86","v":0},{"$f":"Time!PWZ$86","v":0},{"$f":"Time!PXA$86","v":0},{"$f":"Time!PXB$86","v":0},{"$f":"Time!PXC$86","v":0},{"$f":"Time!PXD$86","v":0},{"$f":"Time!PXE$86","v":0},{"$f":"Time!PXF$86","v":0},{"$f":"Time!PXG$86","v":0},{"$f":"Time!PXH$86","v":0},{"$f":"Time!PXI$86","v":0},{"$f":"Time!PXJ$86","v":0},{"$f":"Time!PXK$86","v":0},{"$f":"Time!PXL$86","v":0},{"$f":"Time!PXM$86","v":0},{"$f":"Time!PXN$86","v":0},{"$f":"Time!PXO$86","v":0},{"$f":"Time!PXP$86","v":0},{"$f":"Time!PXQ$86","v":0},{"$f":"Time!PXR$86","v":0},{"$f":"Time!PXS$86","v":0},{"$f":"Time!PXT$86","v":0},{"$f":"Time!PXU$86","v":0},{"$f":"Time!PXV$86","v":0},{"$f":"Time!PXW$86","v":0},{"$f":"Time!PXX$86","v":0},{"$f":"Time!PXY$86","v":0},{"$f":"Time!PXZ$86","v":0},{"$f":"Time!PYA$86","v":0},{"$f":"Time!PYB$86","v":0},{"$f":"Time!PYC$86","v":0},{"$f":"Time!PYD$86","v":0},{"$f":"Time!PYE$86","v":0},{"$f":"Time!PYF$86","v":0},{"$f":"Time!PYG$86","v":0},{"$f":"Time!PYH$86","v":0},{"$f":"Time!PYI$86","v":0},{"$f":"Time!PYJ$86","v":0},{"$f":"Time!PYK$86","v":0},{"$f":"Time!PYL$86","v":0},{"$f":"Time!PYM$86","v":0},{"$f":"Time!PYN$86","v":0},{"$f":"Time!PYO$86","v":0},{"$f":"Time!PYP$86","v":0},{"$f":"Time!PYQ$86","v":0},{"$f":"Time!PYR$86","v":0},{"$f":"Time!PYS$86","v":0},{"$f":"Time!PYT$86","v":0},{"$f":"Time!PYU$86","v":0},{"$f":"Time!PYV$86","v":0},{"$f":"Time!PYW$86","v":0},{"$f":"Time!PYX$86","v":0},{"$f":"Time!PYY$86","v":0},{"$f":"Time!PYZ$86","v":0},{"$f":"Time!PZA$86","v":0},{"$f":"Time!PZB$86","v":0},{"$f":"Time!PZC$86","v":0},{"$f":"Time!PZD$86","v":0},{"$f":"Time!PZE$86","v":0},{"$f":"Time!PZF$86","v":0},{"$f":"Time!PZG$86","v":0},{"$f":"Time!PZH$86","v":0},{"$f":"Time!PZI$86","v":0},{"$f":"Time!PZJ$86","v":0},{"$f":"Time!PZK$86","v":0},{"$f":"Time!PZL$86","v":0},{"$f":"Time!PZM$86","v":0},{"$f":"Time!PZN$86","v":0},{"$f":"Time!PZO$86","v":0},{"$f":"Time!PZP$86","v":0},{"$f":"Time!PZQ$86","v":0},{"$f":"Time!PZR$86","v":0},{"$f":"Time!PZS$86","v":0},{"$f":"Time!PZT$86","v":0},{"$f":"Time!PZU$86","v":0},{"$f":"Time!PZV$86","v":0},{"$f":"Time!PZW$86","v":0},{"$f":"Time!PZX$86","v":0},{"$f":"Time!PZY$86","v":0},{"$f":"Time!PZZ$86","v":0},{"$f":"Time!QAA$86","v":0},{"$f":"Time!QAB$86","v":0},{"$f":"Time!QAC$86","v":0},{"$f":"Time!QAD$86","v":0},{"$f":"Time!QAE$86","v":0},{"$f":"Time!QAF$86","v":0},{"$f":"Time!QAG$86","v":0},{"$f":"Time!QAH$86","v":0},{"$f":"Time!QAI$86","v":0},{"$f":"Time!QAJ$86","v":0},{"$f":"Time!QAK$86","v":0},{"$f":"Time!QAL$86","v":0},{"$f":"Time!QAM$86","v":0},{"$f":"Time!QAN$86","v":0},{"$f":"Time!QAO$86","v":0},{"$f":"Time!QAP$86","v":0},{"$f":"Time!QAQ$86","v":0},{"$f":"Time!QAR$86","v":0},{"$f":"Time!QAS$86","v":0},{"$f":"Time!QAT$86","v":0},{"$f":"Time!QAU$86","v":0},{"$f":"Time!QAV$86","v":0},{"$f":"Time!QAW$86","v":0},{"$f":"Time!QAX$86","v":0},{"$f":"Time!QAY$86","v":0},{"$f":"Time!QAZ$86","v":0},{"$f":"Time!QBA$86","v":0},{"$f":"Time!QBB$86","v":0},{"$f":"Time!QBC$86","v":0},{"$f":"Time!QBD$86","v":0},{"$f":"Time!QBE$86","v":0},{"$f":"Time!QBF$86","v":0},{"$f":"Time!QBG$86","v":0},{"$f":"Time!QBH$86","v":0},{"$f":"Time!QBI$86","v":0},{"$f":"Time!QBJ$86","v":0},{"$f":"Time!QBK$86","v":0},{"$f":"Time!QBL$86","v":0},{"$f":"Time!QBM$86","v":0},{"$f":"Time!QBN$86","v":0},{"$f":"Time!QBO$86","v":0},{"$f":"Time!QBP$86","v":0},{"$f":"Time!QBQ$86","v":0},{"$f":"Time!QBR$86","v":0},{"$f":"Time!QBS$86","v":0},{"$f":"Time!QBT$86","v":0},{"$f":"Time!QBU$86","v":0},{"$f":"Time!QBV$86","v":0},{"$f":"Time!QBW$86","v":0},{"$f":"Time!QBX$86","v":0},{"$f":"Time!QBY$86","v":0},{"$f":"Time!QBZ$86","v":0},{"$f":"Time!QCA$86","v":0},{"$f":"Time!QCB$86","v":0},{"$f":"Time!QCC$86","v":0},{"$f":"Time!QCD$86","v":0},{"$f":"Time!QCE$86","v":0},{"$f":"Time!QCF$86","v":0},{"$f":"Time!QCG$86","v":0},{"$f":"Time!QCH$86","v":0},{"$f":"Time!QCI$86","v":0},{"$f":"Time!QCJ$86","v":0},{"$f":"Time!QCK$86","v":0},{"$f":"Time!QCL$86","v":0},{"$f":"Time!QCM$86","v":0},{"$f":"Time!QCN$86","v":0},{"$f":"Time!QCO$86","v":0},{"$f":"Time!QCP$86","v":0},{"$f":"Time!QCQ$86","v":0},{"$f":"Time!QCR$86","v":0},{"$f":"Time!QCS$86","v":0},{"$f":"Time!QCT$86","v":0},{"$f":"Time!QCU$86","v":0},{"$f":"Time!QCV$86","v":0},{"$f":"Time!QCW$86","v":0},{"$f":"Time!QCX$86","v":0},{"$f":"Time!QCY$86","v":0},{"$f":"Time!QCZ$86","v":0},{"$f":"Time!QDA$86","v":0},{"$f":"Time!QDB$86","v":0},{"$f":"Time!QDC$86","v":0},{"$f":"Time!QDD$86","v":0},{"$f":"Time!QDE$86","v":0},{"$f":"Time!QDF$86","v":0},{"$f":"Time!QDG$86","v":0},{"$f":"Time!QDH$86","v":0},{"$f":"Time!QDI$86","v":0},{"$f":"Time!QDJ$86","v":0},{"$f":"Time!QDK$86","v":0},{"$f":"Time!QDL$86","v":0},{"$f":"Time!QDM$86","v":0},{"$f":"Time!QDN$86","v":0},{"$f":"Time!QDO$86","v":0},{"$f":"Time!QDP$86","v":0},{"$f":"Time!QDQ$86","v":0},{"$f":"Time!QDR$86","v":0},{"$f":"Time!QDS$86","v":0},{"$f":"Time!QDT$86","v":0},{"$f":"Time!QDU$86","v":0},{"$f":"Time!QDV$86","v":0},{"$f":"Time!QDW$86","v":0},{"$f":"Time!QDX$86","v":0},{"$f":"Time!QDY$86","v":0},{"$f":"Time!QDZ$86","v":0},{"$f":"Time!QEA$86","v":0},{"$f":"Time!QEB$86","v":0},{"$f":"Time!QEC$86","v":0},{"$f":"Time!QED$86","v":0},{"$f":"Time!QEE$86","v":0},{"$f":"Time!QEF$86","v":0},{"$f":"Time!QEG$86","v":0},{"$f":"Time!QEH$86","v":0},{"$f":"Time!QEI$86","v":0},{"$f":"Time!QEJ$86","v":0},{"$f":"Time!QEK$86","v":0},{"$f":"Time!QEL$86","v":0},{"$f":"Time!QEM$86","v":0},{"$f":"Time!QEN$86","v":0},{"$f":"Time!QEO$86","v":0},{"$f":"Time!QEP$86","v":0},{"$f":"Time!QEQ$86","v":0},{"$f":"Time!QER$86","v":0},{"$f":"Time!QES$86","v":0},{"$f":"Time!QET$86","v":0},{"$f":"Time!QEU$86","v":0},{"$f":"Time!QEV$86","v":0},{"$f":"Time!QEW$86","v":0},{"$f":"Time!QEX$86","v":0},{"$f":"Time!QEY$86","v":0},{"$f":"Time!QEZ$86","v":0},{"$f":"Time!QFA$86","v":0},{"$f":"Time!QFB$86","v":0},{"$f":"Time!QFC$86","v":0},{"$f":"Time!QFD$86","v":0},{"$f":"Time!QFE$86","v":0},{"$f":"Time!QFF$86","v":0},{"$f":"Time!QFG$86","v":0},{"$f":"Time!QFH$86","v":0},{"$f":"Time!QFI$86","v":0},{"$f":"Time!QFJ$86","v":0},{"$f":"Time!QFK$86","v":0},{"$f":"Time!QFL$86","v":0},{"$f":"Time!QFM$86","v":0},{"$f":"Time!QFN$86","v":0},{"$f":"Time!QFO$86","v":0},{"$f":"Time!QFP$86","v":0},{"$f":"Time!QFQ$86","v":0},{"$f":"Time!QFR$86","v":0},{"$f":"Time!QFS$86","v":0},{"$f":"Time!QFT$86","v":0},{"$f":"Time!QFU$86","v":0},{"$f":"Time!QFV$86","v":0},{"$f":"Time!QFW$86","v":0},{"$f":"Time!QFX$86","v":0},{"$f":"Time!QFY$86","v":0},{"$f":"Time!QFZ$86","v":0},{"$f":"Time!QGA$86","v":0},{"$f":"Time!QGB$86","v":0},{"$f":"Time!QGC$86","v":0},{"$f":"Time!QGD$86","v":0},{"$f":"Time!QGE$86","v":0},{"$f":"Time!QGF$86","v":0},{"$f":"Time!QGG$86","v":0},{"$f":"Time!QGH$86","v":0},{"$f":"Time!QGI$86","v":0},{"$f":"Time!QGJ$86","v":0},{"$f":"Time!QGK$86","v":0},{"$f":"Time!QGL$86","v":0},{"$f":"Time!QGM$86","v":0},{"$f":"Time!QGN$86","v":0},{"$f":"Time!QGO$86","v":0},{"$f":"Time!QGP$86","v":0},{"$f":"Time!QGQ$86","v":0},{"$f":"Time!QGR$86","v":0},{"$f":"Time!QGS$86","v":0},{"$f":"Time!QGT$86","v":0},{"$f":"Time!QGU$86","v":0},{"$f":"Time!QGV$86","v":0},{"$f":"Time!QGW$86","v":0},{"$f":"Time!QGX$86","v":0},{"$f":"Time!QGY$86","v":0},{"$f":"Time!QGZ$86","v":0},{"$f":"Time!QHA$86","v":0},{"$f":"Time!QHB$86","v":0},{"$f":"Time!QHC$86","v":0},{"$f":"Time!QHD$86","v":0},{"$f":"Time!QHE$86","v":0},{"$f":"Time!QHF$86","v":0},{"$f":"Time!QHG$86","v":0},{"$f":"Time!QHH$86","v":0},{"$f":"Time!QHI$86","v":0},{"$f":"Time!QHJ$86","v":0},{"$f":"Time!QHK$86","v":0},{"$f":"Time!QHL$86","v":0},{"$f":"Time!QHM$86","v":0},{"$f":"Time!QHN$86","v":0},{"$f":"Time!QHO$86","v":0},{"$f":"Time!QHP$86","v":0},{"$f":"Time!QHQ$86","v":0},{"$f":"Time!QHR$86","v":0},{"$f":"Time!QHS$86","v":0},{"$f":"Time!QHT$86","v":0},{"$f":"Time!QHU$86","v":0},{"$f":"Time!QHV$86","v":0},{"$f":"Time!QHW$86","v":0},{"$f":"Time!QHX$86","v":0},{"$f":"Time!QHY$86","v":0},{"$f":"Time!QHZ$86","v":0},{"$f":"Time!QIA$86","v":0},{"$f":"Time!QIB$86","v":0},{"$f":"Time!QIC$86","v":0},{"$f":"Time!QID$86","v":0},{"$f":"Time!QIE$86","v":0},{"$f":"Time!QIF$86","v":0},{"$f":"Time!QIG$86","v":0},{"$f":"Time!QIH$86","v":0},{"$f":"Time!QII$86","v":0},{"$f":"Time!QIJ$86","v":0},{"$f":"Time!QIK$86","v":0},{"$f":"Time!QIL$86","v":0},{"$f":"Time!QIM$86","v":0},{"$f":"Time!QIN$86","v":0},{"$f":"Time!QIO$86","v":0},{"$f":"Time!QIP$86","v":0},{"$f":"Time!QIQ$86","v":0},{"$f":"Time!QIR$86","v":0},{"$f":"Time!QIS$86","v":0},{"$f":"Time!QIT$86","v":0},{"$f":"Time!QIU$86","v":0},{"$f":"Time!QIV$86","v":0},{"$f":"Time!QIW$86","v":0},{"$f":"Time!QIX$86","v":0},{"$f":"Time!QIY$86","v":0},{"$f":"Time!QIZ$86","v":0},{"$f":"Time!QJA$86","v":0},{"$f":"Time!QJB$86","v":0},{"$f":"Time!QJC$86","v":0},{"$f":"Time!QJD$86","v":0},{"$f":"Time!QJE$86","v":0},{"$f":"Time!QJF$86","v":0},{"$f":"Time!QJG$86","v":0},{"$f":"Time!QJH$86","v":0},{"$f":"Time!QJI$86","v":0},{"$f":"Time!QJJ$86","v":0},{"$f":"Time!QJK$86","v":0},{"$f":"Time!QJL$86","v":0},{"$f":"Time!QJM$86","v":0},{"$f":"Time!QJN$86","v":0},{"$f":"Time!QJO$86","v":0},{"$f":"Time!QJP$86","v":0},{"$f":"Time!QJQ$86","v":0},{"$f":"Time!QJR$86","v":0},{"$f":"Time!QJS$86","v":0},{"$f":"Time!QJT$86","v":0},{"$f":"Time!QJU$86","v":0},{"$f":"Time!QJV$86","v":0},{"$f":"Time!QJW$86","v":0},{"$f":"Time!QJX$86","v":0},{"$f":"Time!QJY$86","v":0},{"$f":"Time!QJZ$86","v":0},{"$f":"Time!QKA$86","v":0},{"$f":"Time!QKB$86","v":0},{"$f":"Time!QKC$86","v":0},{"$f":"Time!QKD$86","v":0},{"$f":"Time!QKE$86","v":0},{"$f":"Time!QKF$86","v":0},{"$f":"Time!QKG$86","v":0},{"$f":"Time!QKH$86","v":0},{"$f":"Time!QKI$86","v":0},{"$f":"Time!QKJ$86","v":0},{"$f":"Time!QKK$86","v":0},{"$f":"Time!QKL$86","v":0},{"$f":"Time!QKM$86","v":0},{"$f":"Time!QKN$86","v":0},{"$f":"Time!QKO$86","v":0},{"$f":"Time!QKP$86","v":0},{"$f":"Time!QKQ$86","v":0},{"$f":"Time!QKR$86","v":0},{"$f":"Time!QKS$86","v":0},{"$f":"Time!QKT$86","v":0},{"$f":"Time!QKU$86","v":0},{"$f":"Time!QKV$86","v":0},{"$f":"Time!QKW$86","v":0},{"$f":"Time!QKX$86","v":0},{"$f":"Time!QKY$86","v":0},{"$f":"Time!QKZ$86","v":0},{"$f":"Time!QLA$86","v":0},{"$f":"Time!QLB$86","v":0},{"$f":"Time!QLC$86","v":0},{"$f":"Time!QLD$86","v":0},{"$f":"Time!QLE$86","v":0},{"$f":"Time!QLF$86","v":0},{"$f":"Time!QLG$86","v":0},{"$f":"Time!QLH$86","v":0},{"$f":"Time!QLI$86","v":0},{"$f":"Time!QLJ$86","v":0},{"$f":"Time!QLK$86","v":0},{"$f":"Time!QLL$86","v":0},{"$f":"Time!QLM$86","v":0},{"$f":"Time!QLN$86","v":0},{"$f":"Time!QLO$86","v":0},{"$f":"Time!QLP$86","v":0},{"$f":"Time!QLQ$86","v":0},{"$f":"Time!QLR$86","v":0},{"$f":"Time!QLS$86","v":0},{"$f":"Time!QLT$86","v":0},{"$f":"Time!QLU$86","v":0},{"$f":"Time!QLV$86","v":0},{"$f":"Time!QLW$86","v":0},{"$f":"Time!QLX$86","v":0},{"$f":"Time!QLY$86","v":0},{"$f":"Time!QLZ$86","v":0},{"$f":"Time!QMA$86","v":0},{"$f":"Time!QMB$86","v":0},{"$f":"Time!QMC$86","v":0},{"$f":"Time!QMD$86","v":0},{"$f":"Time!QME$86","v":0},{"$f":"Time!QMF$86","v":0},{"$f":"Time!QMG$86","v":0},{"$f":"Time!QMH$86","v":0},{"$f":"Time!QMI$86","v":0},{"$f":"Time!QMJ$86","v":0},{"$f":"Time!QMK$86","v":0},{"$f":"Time!QML$86","v":0},{"$f":"Time!QMM$86","v":0},{"$f":"Time!QMN$86","v":0},{"$f":"Time!QMO$86","v":0},{"$f":"Time!QMP$86","v":0},{"$f":"Time!QMQ$86","v":0},{"$f":"Time!QMR$86","v":0},{"$f":"Time!QMS$86","v":0},{"$f":"Time!QMT$86","v":0},{"$f":"Time!QMU$86","v":0},{"$f":"Time!QMV$86","v":0},{"$f":"Time!QMW$86","v":0},{"$f":"Time!QMX$86","v":0},{"$f":"Time!QMY$86","v":0},{"$f":"Time!QMZ$86","v":0},{"$f":"Time!QNA$86","v":0},{"$f":"Time!QNB$86","v":0},{"$f":"Time!QNC$86","v":0},{"$f":"Time!QND$86","v":0},{"$f":"Time!QNE$86","v":0},{"$f":"Time!QNF$86","v":0},{"$f":"Time!QNG$86","v":0},{"$f":"Time!QNH$86","v":0},{"$f":"Time!QNI$86","v":0},{"$f":"Time!QNJ$86","v":0},{"$f":"Time!QNK$86","v":0},{"$f":"Time!QNL$86","v":0},{"$f":"Time!QNM$86","v":0},{"$f":"Time!QNN$86","v":0},{"$f":"Time!QNO$86","v":0},{"$f":"Time!QNP$86","v":0},{"$f":"Time!QNQ$86","v":0},{"$f":"Time!QNR$86","v":0},{"$f":"Time!QNS$86","v":0},{"$f":"Time!QNT$86","v":0},{"$f":"Time!QNU$86","v":0},{"$f":"Time!QNV$86","v":0},{"$f":"Time!QNW$86","v":0},{"$f":"Time!QNX$86","v":0},{"$f":"Time!QNY$86","v":0},{"$f":"Time!QNZ$86","v":0},{"$f":"Time!QOA$86","v":0},{"$f":"Time!QOB$86","v":0},{"$f":"Time!QOC$86","v":0},{"$f":"Time!QOD$86","v":0},{"$f":"Time!QOE$86","v":0},{"$f":"Time!QOF$86","v":0},{"$f":"Time!QOG$86","v":0},{"$f":"Time!QOH$86","v":0},{"$f":"Time!QOI$86","v":0},{"$f":"Time!QOJ$86","v":0},{"$f":"Time!QOK$86","v":0},{"$f":"Time!QOL$86","v":0},{"$f":"Time!QOM$86","v":0},{"$f":"Time!QON$86","v":0},{"$f":"Time!QOO$86","v":0},{"$f":"Time!QOP$86","v":0},{"$f":"Time!QOQ$86","v":0},{"$f":"Time!QOR$86","v":0},{"$f":"Time!QOS$86","v":0},{"$f":"Time!QOT$86","v":0},{"$f":"Time!QOU$86","v":0},{"$f":"Time!QOV$86","v":0},{"$f":"Time!QOW$86","v":0},{"$f":"Time!QOX$86","v":0},{"$f":"Time!QOY$86","v":0},{"$f":"Time!QOZ$86","v":0},{"$f":"Time!QPA$86","v":0},{"$f":"Time!QPB$86","v":0},{"$f":"Time!QPC$86","v":0},{"$f":"Time!QPD$86","v":0},{"$f":"Time!QPE$86","v":0},{"$f":"Time!QPF$86","v":0},{"$f":"Time!QPG$86","v":0},{"$f":"Time!QPH$86","v":0},{"$f":"Time!QPI$86","v":0},{"$f":"Time!QPJ$86","v":0},{"$f":"Time!QPK$86","v":0},{"$f":"Time!QPL$86","v":0},{"$f":"Time!QPM$86","v":0},{"$f":"Time!QPN$86","v":0},{"$f":"Time!QPO$86","v":0},{"$f":"Time!QPP$86","v":0},{"$f":"Time!QPQ$86","v":0},{"$f":"Time!QPR$86","v":0},{"$f":"Time!QPS$86","v":0},{"$f":"Time!QPT$86","v":0},{"$f":"Time!QPU$86","v":0},{"$f":"Time!QPV$86","v":0},{"$f":"Time!QPW$86","v":0},{"$f":"Time!QPX$86","v":0},{"$f":"Time!QPY$86","v":0},{"$f":"Time!QPZ$86","v":0},{"$f":"Time!QQA$86","v":0},{"$f":"Time!QQB$86","v":0},{"$f":"Time!QQC$86","v":0},{"$f":"Time!QQD$86","v":0},{"$f":"Time!QQE$86","v":0},{"$f":"Time!QQF$86","v":0},{"$f":"Time!QQG$86","v":0},{"$f":"Time!QQH$86","v":0},{"$f":"Time!QQI$86","v":0},{"$f":"Time!QQJ$86","v":0},{"$f":"Time!QQK$86","v":0},{"$f":"Time!QQL$86","v":0},{"$f":"Time!QQM$86","v":0},{"$f":"Time!QQN$86","v":0},{"$f":"Time!QQO$86","v":0},{"$f":"Time!QQP$86","v":0},{"$f":"Time!QQQ$86","v":0},{"$f":"Time!QQR$86","v":0},{"$f":"Time!QQS$86","v":0},{"$f":"Time!QQT$86","v":0},{"$f":"Time!QQU$86","v":0},{"$f":"Time!QQV$86","v":0},{"$f":"Time!QQW$86","v":0},{"$f":"Time!QQX$86","v":0},{"$f":"Time!QQY$86","v":0},{"$f":"Time!QQZ$86","v":0},{"$f":"Time!QRA$86","v":0},{"$f":"Time!QRB$86","v":0},{"$f":"Time!QRC$86","v":0},{"$f":"Time!QRD$86","v":0},{"$f":"Time!QRE$86","v":0},{"$f":"Time!QRF$86","v":0},{"$f":"Time!QRG$86","v":0},{"$f":"Time!QRH$86","v":0},{"$f":"Time!QRI$86","v":0},{"$f":"Time!QRJ$86","v":0},{"$f":"Time!QRK$86","v":0},{"$f":"Time!QRL$86","v":0},{"$f":"Time!QRM$86","v":0},{"$f":"Time!QRN$86","v":0},{"$f":"Time!QRO$86","v":0},{"$f":"Time!QRP$86","v":0},{"$f":"Time!QRQ$86","v":0},{"$f":"Time!QRR$86","v":0},{"$f":"Time!QRS$86","v":0},{"$f":"Time!QRT$86","v":0},{"$f":"Time!QRU$86","v":0},{"$f":"Time!QRV$86","v":0},{"$f":"Time!QRW$86","v":0},{"$f":"Time!QRX$86","v":0},{"$f":"Time!QRY$86","v":0},{"$f":"Time!QRZ$86","v":0},{"$f":"Time!QSA$86","v":0},{"$f":"Time!QSB$86","v":0},{"$f":"Time!QSC$86","v":0},{"$f":"Time!QSD$86","v":0},{"$f":"Time!QSE$86","v":0},{"$f":"Time!QSF$86","v":0},{"$f":"Time!QSG$86","v":0},{"$f":"Time!QSH$86","v":0},{"$f":"Time!QSI$86","v":0},{"$f":"Time!QSJ$86","v":0},{"$f":"Time!QSK$86","v":0},{"$f":"Time!QSL$86","v":0},{"$f":"Time!QSM$86","v":0},{"$f":"Time!QSN$86","v":0},{"$f":"Time!QSO$86","v":0},{"$f":"Time!QSP$86","v":0},{"$f":"Time!QSQ$86","v":0},{"$f":"Time!QSR$86","v":0},{"$f":"Time!QSS$86","v":0},{"$f":"Time!QST$86","v":0},{"$f":"Time!QSU$86","v":0},{"$f":"Time!QSV$86","v":0},{"$f":"Time!QSW$86","v":0},{"$f":"Time!QSX$86","v":0},{"$f":"Time!QSY$86","v":0},{"$f":"Time!QSZ$86","v":0},{"$f":"Time!QTA$86","v":0},{"$f":"Time!QTB$86","v":0},{"$f":"Time!QTC$86","v":0},{"$f":"Time!QTD$86","v":0},{"$f":"Time!QTE$86","v":0},{"$f":"Time!QTF$86","v":0},{"$f":"Time!QTG$86","v":0},{"$f":"Time!QTH$86","v":0},{"$f":"Time!QTI$86","v":0},{"$f":"Time!QTJ$86","v":0},{"$f":"Time!QTK$86","v":0},{"$f":"Time!QTL$86","v":0},{"$f":"Time!QTM$86","v":0},{"$f":"Time!QTN$86","v":0},{"$f":"Time!QTO$86","v":0},{"$f":"Time!QTP$86","v":0},{"$f":"Time!QTQ$86","v":0},{"$f":"Time!QTR$86","v":0},{"$f":"Time!QTS$86","v":0},{"$f":"Time!QTT$86","v":0},{"$f":"Time!QTU$86","v":0},{"$f":"Time!QTV$86","v":0},{"$f":"Time!QTW$86","v":0},{"$f":"Time!QTX$86","v":0},{"$f":"Time!QTY$86","v":0},{"$f":"Time!QTZ$86","v":0},{"$f":"Time!QUA$86","v":0},{"$f":"Time!QUB$86","v":0},{"$f":"Time!QUC$86","v":0},{"$f":"Time!QUD$86","v":0},{"$f":"Time!QUE$86","v":0},{"$f":"Time!QUF$86","v":0},{"$f":"Time!QUG$86","v":0},{"$f":"Time!QUH$86","v":0},{"$f":"Time!QUI$86","v":0},{"$f":"Time!QUJ$86","v":0},{"$f":"Time!QUK$86","v":0},{"$f":"Time!QUL$86","v":0},{"$f":"Time!QUM$86","v":0},{"$f":"Time!QUN$86","v":0},{"$f":"Time!QUO$86","v":0},{"$f":"Time!QUP$86","v":0},{"$f":"Time!QUQ$86","v":0},{"$f":"Time!QUR$86","v":0},{"$f":"Time!QUS$86","v":0},{"$f":"Time!QUT$86","v":0},{"$f":"Time!QUU$86","v":0},{"$f":"Time!QUV$86","v":0},{"$f":"Time!QUW$86","v":0},{"$f":"Time!QUX$86","v":0},{"$f":"Time!QUY$86","v":0},{"$f":"Time!QUZ$86","v":0},{"$f":"Time!QVA$86","v":0},{"$f":"Time!QVB$86","v":0},{"$f":"Time!QVC$86","v":0},{"$f":"Time!QVD$86","v":0},{"$f":"Time!QVE$86","v":0},{"$f":"Time!QVF$86","v":0},{"$f":"Time!QVG$86","v":0},{"$f":"Time!QVH$86","v":0},{"$f":"Time!QVI$86","v":0},{"$f":"Time!QVJ$86","v":0},{"$f":"Time!QVK$86","v":0},{"$f":"Time!QVL$86","v":0},{"$f":"Time!QVM$86","v":0},{"$f":"Time!QVN$86","v":0},{"$f":"Time!QVO$86","v":0},{"$f":"Time!QVP$86","v":0},{"$f":"Time!QVQ$86","v":0},{"$f":"Time!QVR$86","v":0},{"$f":"Time!QVS$86","v":0},{"$f":"Time!QVT$86","v":0},{"$f":"Time!QVU$86","v":0},{"$f":"Time!QVV$86","v":0},{"$f":"Time!QVW$86","v":0},{"$f":"Time!QVX$86","v":0},{"$f":"Time!QVY$86","v":0},{"$f":"Time!QVZ$86","v":0},{"$f":"Time!QWA$86","v":0},{"$f":"Time!QWB$86","v":0},{"$f":"Time!QWC$86","v":0},{"$f":"Time!QWD$86","v":0},{"$f":"Time!QWE$86","v":0},{"$f":"Time!QWF$86","v":0},{"$f":"Time!QWG$86","v":0},{"$f":"Time!QWH$86","v":0},{"$f":"Time!QWI$86","v":0},{"$f":"Time!QWJ$86","v":0},{"$f":"Time!QWK$86","v":0},{"$f":"Time!QWL$86","v":0},{"$f":"Time!QWM$86","v":0},{"$f":"Time!QWN$86","v":0},{"$f":"Time!QWO$86","v":0},{"$f":"Time!QWP$86","v":0},{"$f":"Time!QWQ$86","v":0},{"$f":"Time!QWR$86","v":0},{"$f":"Time!QWS$86","v":0},{"$f":"Time!QWT$86","v":0},{"$f":"Time!QWU$86","v":0},{"$f":"Time!QWV$86","v":0},{"$f":"Time!QWW$86","v":0},{"$f":"Time!QWX$86","v":0},{"$f":"Time!QWY$86","v":0},{"$f":"Time!QWZ$86","v":0},{"$f":"Time!QXA$86","v":0},{"$f":"Time!QXB$86","v":0},{"$f":"Time!QXC$86","v":0},{"$f":"Time!QXD$86","v":0},{"$f":"Time!QXE$86","v":0},{"$f":"Time!QXF$86","v":0},{"$f":"Time!QXG$86","v":0},{"$f":"Time!QXH$86","v":0},{"$f":"Time!QXI$86","v":0},{"$f":"Time!QXJ$86","v":0},{"$f":"Time!QXK$86","v":0},{"$f":"Time!QXL$86","v":0},{"$f":"Time!QXM$86","v":0},{"$f":"Time!QXN$86","v":0},{"$f":"Time!QXO$86","v":0},{"$f":"Time!QXP$86","v":0},{"$f":"Time!QXQ$86","v":0},{"$f":"Time!QXR$86","v":0},{"$f":"Time!QXS$86","v":0},{"$f":"Time!QXT$86","v":0},{"$f":"Time!QXU$86","v":0},{"$f":"Time!QXV$86","v":0},{"$f":"Time!QXW$86","v":0},{"$f":"Time!QXX$86","v":0},{"$f":"Time!QXY$86","v":0},{"$f":"Time!QXZ$86","v":0},{"$f":"Time!QYA$86","v":0},{"$f":"Time!QYB$86","v":0},{"$f":"Time!QYC$86","v":0},{"$f":"Time!QYD$86","v":0},{"$f":"Time!QYE$86","v":0},{"$f":"Time!QYF$86","v":0},{"$f":"Time!QYG$86","v":0},{"$f":"Time!QYH$86","v":0},{"$f":"Time!QYI$86","v":0},{"$f":"Time!QYJ$86","v":0},{"$f":"Time!QYK$86","v":0},{"$f":"Time!QYL$86","v":0},{"$f":"Time!QYM$86","v":0},{"$f":"Time!QYN$86","v":0},{"$f":"Time!QYO$86","v":0},{"$f":"Time!QYP$86","v":0},{"$f":"Time!QYQ$86","v":0},{"$f":"Time!QYR$86","v":0},{"$f":"Time!QYS$86","v":0},{"$f":"Time!QYT$86","v":0},{"$f":"Time!QYU$86","v":0},{"$f":"Time!QYV$86","v":0},{"$f":"Time!QYW$86","v":0},{"$f":"Time!QYX$86","v":0},{"$f":"Time!QYY$86","v":0},{"$f":"Time!QYZ$86","v":0},{"$f":"Time!QZA$86","v":0},{"$f":"Time!QZB$86","v":0},{"$f":"Time!QZC$86","v":0},{"$f":"Time!QZD$86","v":0},{"$f":"Time!QZE$86","v":0},{"$f":"Time!QZF$86","v":0},{"$f":"Time!QZG$86","v":0},{"$f":"Time!QZH$86","v":0},{"$f":"Time!QZI$86","v":0},{"$f":"Time!QZJ$86","v":0},{"$f":"Time!QZK$86","v":0},{"$f":"Time!QZL$86","v":0},{"$f":"Time!QZM$86","v":0},{"$f":"Time!QZN$86","v":0},{"$f":"Time!QZO$86","v":0},{"$f":"Time!QZP$86","v":0},{"$f":"Time!QZQ$86","v":0},{"$f":"Time!QZR$86","v":0},{"$f":"Time!QZS$86","v":0},{"$f":"Time!QZT$86","v":0},{"$f":"Time!QZU$86","v":0},{"$f":"Time!QZV$86","v":0},{"$f":"Time!QZW$86","v":0},{"$f":"Time!QZX$86","v":0},{"$f":"Time!QZY$86","v":0},{"$f":"Time!QZZ$86","v":0},{"$f":"Time!RAA$86","v":0},{"$f":"Time!RAB$86","v":0},{"$f":"Time!RAC$86","v":0},{"$f":"Time!RAD$86","v":0},{"$f":"Time!RAE$86","v":0},{"$f":"Time!RAF$86","v":0},{"$f":"Time!RAG$86","v":0},{"$f":"Time!RAH$86","v":0},{"$f":"Time!RAI$86","v":0},{"$f":"Time!RAJ$86","v":0},{"$f":"Time!RAK$86","v":0},{"$f":"Time!RAL$86","v":0},{"$f":"Time!RAM$86","v":0},{"$f":"Time!RAN$86","v":0},{"$f":"Time!RAO$86","v":0},{"$f":"Time!RAP$86","v":0},{"$f":"Time!RAQ$86","v":0},{"$f":"Time!RAR$86","v":0},{"$f":"Time!RAS$86","v":0},{"$f":"Time!RAT$86","v":0},{"$f":"Time!RAU$86","v":0},{"$f":"Time!RAV$86","v":0},{"$f":"Time!RAW$86","v":0},{"$f":"Time!RAX$86","v":0},{"$f":"Time!RAY$86","v":0},{"$f":"Time!RAZ$86","v":0},{"$f":"Time!RBA$86","v":0},{"$f":"Time!RBB$86","v":0},{"$f":"Time!RBC$86","v":0},{"$f":"Time!RBD$86","v":0},{"$f":"Time!RBE$86","v":0},{"$f":"Time!RBF$86","v":0},{"$f":"Time!RBG$86","v":0},{"$f":"Time!RBH$86","v":0},{"$f":"Time!RBI$86","v":0},{"$f":"Time!RBJ$86","v":0},{"$f":"Time!RBK$86","v":0},{"$f":"Time!RBL$86","v":0},{"$f":"Time!RBM$86","v":0},{"$f":"Time!RBN$86","v":0},{"$f":"Time!RBO$86","v":0},{"$f":"Time!RBP$86","v":0},{"$f":"Time!RBQ$86","v":0},{"$f":"Time!RBR$86","v":0},{"$f":"Time!RBS$86","v":0},{"$f":"Time!RBT$86","v":0},{"$f":"Time!RBU$86","v":0},{"$f":"Time!RBV$86","v":0},{"$f":"Time!RBW$86","v":0},{"$f":"Time!RBX$86","v":0},{"$f":"Time!RBY$86","v":0},{"$f":"Time!RBZ$86","v":0},{"$f":"Time!RCA$86","v":0},{"$f":"Time!RCB$86","v":0},{"$f":"Time!RCC$86","v":0},{"$f":"Time!RCD$86","v":0},{"$f":"Time!RCE$86","v":0},{"$f":"Time!RCF$86","v":0},{"$f":"Time!RCG$86","v":0},{"$f":"Time!RCH$86","v":0},{"$f":"Time!RCI$86","v":0},{"$f":"Time!RCJ$86","v":0},{"$f":"Time!RCK$86","v":0},{"$f":"Time!RCL$86","v":0},{"$f":"Time!RCM$86","v":0},{"$f":"Time!RCN$86","v":0},{"$f":"Time!RCO$86","v":0},{"$f":"Time!RCP$86","v":0},{"$f":"Time!RCQ$86","v":0},{"$f":"Time!RCR$86","v":0},{"$f":"Time!RCS$86","v":0},{"$f":"Time!RCT$86","v":0},{"$f":"Time!RCU$86","v":0},{"$f":"Time!RCV$86","v":0},{"$f":"Time!RCW$86","v":0},{"$f":"Time!RCX$86","v":0},{"$f":"Time!RCY$86","v":0},{"$f":"Time!RCZ$86","v":0},{"$f":"Time!RDA$86","v":0},{"$f":"Time!RDB$86","v":0},{"$f":"Time!RDC$86","v":0},{"$f":"Time!RDD$86","v":0},{"$f":"Time!RDE$86","v":0},{"$f":"Time!RDF$86","v":0},{"$f":"Time!RDG$86","v":0},{"$f":"Time!RDH$86","v":0},{"$f":"Time!RDI$86","v":0},{"$f":"Time!RDJ$86","v":0},{"$f":"Time!RDK$86","v":0},{"$f":"Time!RDL$86","v":0},{"$f":"Time!RDM$86","v":0},{"$f":"Time!RDN$86","v":0},{"$f":"Time!RDO$86","v":0},{"$f":"Time!RDP$86","v":0},{"$f":"Time!RDQ$86","v":0},{"$f":"Time!RDR$86","v":0},{"$f":"Time!RDS$86","v":0},{"$f":"Time!RDT$86","v":0},{"$f":"Time!RDU$86","v":0},{"$f":"Time!RDV$86","v":0},{"$f":"Time!RDW$86","v":0},{"$f":"Time!RDX$86","v":0},{"$f":"Time!RDY$86","v":0},{"$f":"Time!RDZ$86","v":0},{"$f":"Time!REA$86","v":0},{"$f":"Time!REB$86","v":0},{"$f":"Time!REC$86","v":0},{"$f":"Time!RED$86","v":0},{"$f":"Time!REE$86","v":0},{"$f":"Time!REF$86","v":0},{"$f":"Time!REG$86","v":0},{"$f":"Time!REH$86","v":0},{"$f":"Time!REI$86","v":0},{"$f":"Time!REJ$86","v":0},{"$f":"Time!REK$86","v":0},{"$f":"Time!REL$86","v":0},{"$f":"Time!REM$86","v":0},{"$f":"Time!REN$86","v":0},{"$f":"Time!REO$86","v":0},{"$f":"Time!REP$86","v":0},{"$f":"Time!REQ$86","v":0},{"$f":"Time!RER$86","v":0},{"$f":"Time!RES$86","v":0},{"$f":"Time!RET$86","v":0},{"$f":"Time!REU$86","v":0},{"$f":"Time!REV$86","v":0},{"$f":"Time!REW$86","v":0},{"$f":"Time!REX$86","v":0},{"$f":"Time!REY$86","v":0},{"$f":"Time!REZ$86","v":0},{"$f":"Time!RFA$86","v":0},{"$f":"Time!RFB$86","v":0},{"$f":"Time!RFC$86","v":0},{"$f":"Time!RFD$86","v":0},{"$f":"Time!RFE$86","v":0},{"$f":"Time!RFF$86","v":0},{"$f":"Time!RFG$86","v":0},{"$f":"Time!RFH$86","v":0},{"$f":"Time!RFI$86","v":0},{"$f":"Time!RFJ$86","v":0},{"$f":"Time!RFK$86","v":0},{"$f":"Time!RFL$86","v":0},{"$f":"Time!RFM$86","v":0},{"$f":"Time!RFN$86","v":0},{"$f":"Time!RFO$86","v":0},{"$f":"Time!RFP$86","v":0},{"$f":"Time!RFQ$86","v":0},{"$f":"Time!RFR$86","v":0},{"$f":"Time!RFS$86","v":0},{"$f":"Time!RFT$86","v":0},{"$f":"Time!RFU$86","v":0},{"$f":"Time!RFV$86","v":0},{"$f":"Time!RFW$86","v":0},{"$f":"Time!RFX$86","v":0},{"$f":"Time!RFY$86","v":0},{"$f":"Time!RFZ$86","v":0},{"$f":"Time!RGA$86","v":0},{"$f":"Time!RGB$86","v":0},{"$f":"Time!RGC$86","v":0},{"$f":"Time!RGD$86","v":0},{"$f":"Time!RGE$86","v":0},{"$f":"Time!RGF$86","v":0},{"$f":"Time!RGG$86","v":0},{"$f":"Time!RGH$86","v":0},{"$f":"Time!RGI$86","v":0},{"$f":"Time!RGJ$86","v":0},{"$f":"Time!RGK$86","v":0},{"$f":"Time!RGL$86","v":0},{"$f":"Time!RGM$86","v":0},{"$f":"Time!RGN$86","v":0},{"$f":"Time!RGO$86","v":0},{"$f":"Time!RGP$86","v":0},{"$f":"Time!RGQ$86","v":0},{"$f":"Time!RGR$86","v":0},{"$f":"Time!RGS$86","v":0},{"$f":"Time!RGT$86","v":0},{"$f":"Time!RGU$86","v":0},{"$f":"Time!RGV$86","v":0},{"$f":"Time!RGW$86","v":0},{"$f":"Time!RGX$86","v":0},{"$f":"Time!RGY$86","v":0},{"$f":"Time!RGZ$86","v":0},{"$f":"Time!RHA$86","v":0},{"$f":"Time!RHB$86","v":0},{"$f":"Time!RHC$86","v":0},{"$f":"Time!RHD$86","v":0},{"$f":"Time!RHE$86","v":0},{"$f":"Time!RHF$86","v":0},{"$f":"Time!RHG$86","v":0},{"$f":"Time!RHH$86","v":0},{"$f":"Time!RHI$86","v":0},{"$f":"Time!RHJ$86","v":0},{"$f":"Time!RHK$86","v":0},{"$f":"Time!RHL$86","v":0},{"$f":"Time!RHM$86","v":0},{"$f":"Time!RHN$86","v":0},{"$f":"Time!RHO$86","v":0},{"$f":"Time!RHP$86","v":0},{"$f":"Time!RHQ$86","v":0},{"$f":"Time!RHR$86","v":0},{"$f":"Time!RHS$86","v":0},{"$f":"Time!RHT$86","v":0},{"$f":"Time!RHU$86","v":0},{"$f":"Time!RHV$86","v":0},{"$f":"Time!RHW$86","v":0},{"$f":"Time!RHX$86","v":0},{"$f":"Time!RHY$86","v":0},{"$f":"Time!RHZ$86","v":0},{"$f":"Time!RIA$86","v":0},{"$f":"Time!RIB$86","v":0},{"$f":"Time!RIC$86","v":0},{"$f":"Time!RID$86","v":0},{"$f":"Time!RIE$86","v":0},{"$f":"Time!RIF$86","v":0},{"$f":"Time!RIG$86","v":0},{"$f":"Time!RIH$86","v":0},{"$f":"Time!RII$86","v":0},{"$f":"Time!RIJ$86","v":0},{"$f":"Time!RIK$86","v":0},{"$f":"Time!RIL$86","v":0},{"$f":"Time!RIM$86","v":0},{"$f":"Time!RIN$86","v":0},{"$f":"Time!RIO$86","v":0},{"$f":"Time!RIP$86","v":0},{"$f":"Time!RIQ$86","v":0},{"$f":"Time!RIR$86","v":0},{"$f":"Time!RIS$86","v":0},{"$f":"Time!RIT$86","v":0},{"$f":"Time!RIU$86","v":0},{"$f":"Time!RIV$86","v":0},{"$f":"Time!RIW$86","v":0},{"$f":"Time!RIX$86","v":0},{"$f":"Time!RIY$86","v":0},{"$f":"Time!RIZ$86","v":0},{"$f":"Time!RJA$86","v":0},{"$f":"Time!RJB$86","v":0},{"$f":"Time!RJC$86","v":0},{"$f":"Time!RJD$86","v":0},{"$f":"Time!RJE$86","v":0},{"$f":"Time!RJF$86","v":0},{"$f":"Time!RJG$86","v":0},{"$f":"Time!RJH$86","v":0},{"$f":"Time!RJI$86","v":0},{"$f":"Time!RJJ$86","v":0},{"$f":"Time!RJK$86","v":0},{"$f":"Time!RJL$86","v":0},{"$f":"Time!RJM$86","v":0},{"$f":"Time!RJN$86","v":0},{"$f":"Time!RJO$86","v":0},{"$f":"Time!RJP$86","v":0},{"$f":"Time!RJQ$86","v":0},{"$f":"Time!RJR$86","v":0},{"$f":"Time!RJS$86","v":0},{"$f":"Time!RJT$86","v":0},{"$f":"Time!RJU$86","v":0},{"$f":"Time!RJV$86","v":0},{"$f":"Time!RJW$86","v":0},{"$f":"Time!RJX$86","v":0},{"$f":"Time!RJY$86","v":0},{"$f":"Time!RJZ$86","v":0},{"$f":"Time!RKA$86","v":0},{"$f":"Time!RKB$86","v":0},{"$f":"Time!RKC$86","v":0},{"$f":"Time!RKD$86","v":0},{"$f":"Time!RKE$86","v":0},{"$f":"Time!RKF$86","v":0},{"$f":"Time!RKG$86","v":0},{"$f":"Time!RKH$86","v":0},{"$f":"Time!RKI$86","v":0},{"$f":"Time!RKJ$86","v":0},{"$f":"Time!RKK$86","v":0},{"$f":"Time!RKL$86","v":0},{"$f":"Time!RKM$86","v":0},{"$f":"Time!RKN$86","v":0},{"$f":"Time!RKO$86","v":0},{"$f":"Time!RKP$86","v":0},{"$f":"Time!RKQ$86","v":0},{"$f":"Time!RKR$86","v":0},{"$f":"Time!RKS$86","v":0},{"$f":"Time!RKT$86","v":0},{"$f":"Time!RKU$86","v":0},{"$f":"Time!RKV$86","v":0},{"$f":"Time!RKW$86","v":0},{"$f":"Time!RKX$86","v":0},{"$f":"Time!RKY$86","v":0},{"$f":"Time!RKZ$86","v":0},{"$f":"Time!RLA$86","v":0},{"$f":"Time!RLB$86","v":0},{"$f":"Time!RLC$86","v":0},{"$f":"Time!RLD$86","v":0},{"$f":"Time!RLE$86","v":0},{"$f":"Time!RLF$86","v":0},{"$f":"Time!RLG$86","v":0},{"$f":"Time!RLH$86","v":0},{"$f":"Time!RLI$86","v":0},{"$f":"Time!RLJ$86","v":0},{"$f":"Time!RLK$86","v":0},{"$f":"Time!RLL$86","v":0},{"$f":"Time!RLM$86","v":0},{"$f":"Time!RLN$86","v":0},{"$f":"Time!RLO$86","v":0},{"$f":"Time!RLP$86","v":0},{"$f":"Time!RLQ$86","v":0},{"$f":"Time!RLR$86","v":0},{"$f":"Time!RLS$86","v":0},{"$f":"Time!RLT$86","v":0},{"$f":"Time!RLU$86","v":0},{"$f":"Time!RLV$86","v":0},{"$f":"Time!RLW$86","v":0},{"$f":"Time!RLX$86","v":0},{"$f":"Time!RLY$86","v":0},{"$f":"Time!RLZ$86","v":0},{"$f":"Time!RMA$86","v":0},{"$f":"Time!RMB$86","v":0},{"$f":"Time!RMC$86","v":0},{"$f":"Time!RMD$86","v":0},{"$f":"Time!RME$86","v":0},{"$f":"Time!RMF$86","v":0},{"$f":"Time!RMG$86","v":0},{"$f":"Time!RMH$86","v":0},{"$f":"Time!RMI$86","v":0},{"$f":"Time!RMJ$86","v":0},{"$f":"Time!RMK$86","v":0},{"$f":"Time!RML$86","v":0},{"$f":"Time!RMM$86","v":0},{"$f":"Time!RMN$86","v":0},{"$f":"Time!RMO$86","v":0},{"$f":"Time!RMP$86","v":0},{"$f":"Time!RMQ$86","v":0},{"$f":"Time!RMR$86","v":0},{"$f":"Time!RMS$86","v":0},{"$f":"Time!RMT$86","v":0},{"$f":"Time!RMU$86","v":0},{"$f":"Time!RMV$86","v":0},{"$f":"Time!RMW$86","v":0},{"$f":"Time!RMX$86","v":0},{"$f":"Time!RMY$86","v":0},{"$f":"Time!RMZ$86","v":0},{"$f":"Time!RNA$86","v":0},{"$f":"Time!RNB$86","v":0},{"$f":"Time!RNC$86","v":0},{"$f":"Time!RND$86","v":0},{"$f":"Time!RNE$86","v":0},{"$f":"Time!RNF$86","v":0},{"$f":"Time!RNG$86","v":0},{"$f":"Time!RNH$86","v":0},{"$f":"Time!RNI$86","v":0},{"$f":"Time!RNJ$86","v":0},{"$f":"Time!RNK$86","v":0},{"$f":"Time!RNL$86","v":0},{"$f":"Time!RNM$86","v":0},{"$f":"Time!RNN$86","v":0},{"$f":"Time!RNO$86","v":0},{"$f":"Time!RNP$86","v":0},{"$f":"Time!RNQ$86","v":0},{"$f":"Time!RNR$86","v":0},{"$f":"Time!RNS$86","v":0},{"$f":"Time!RNT$86","v":0},{"$f":"Time!RNU$86","v":0},{"$f":"Time!RNV$86","v":0},{"$f":"Time!RNW$86","v":0},{"$f":"Time!RNX$86","v":0},{"$f":"Time!RNY$86","v":0},{"$f":"Time!RNZ$86","v":0},{"$f":"Time!ROA$86","v":0},{"$f":"Time!ROB$86","v":0},{"$f":"Time!ROC$86","v":0},{"$f":"Time!ROD$86","v":0},{"$f":"Time!ROE$86","v":0},{"$f":"Time!ROF$86","v":0},{"$f":"Time!ROG$86","v":0},{"$f":"Time!ROH$86","v":0},{"$f":"Time!ROI$86","v":0},{"$f":"Time!ROJ$86","v":0},{"$f":"Time!ROK$86","v":0},{"$f":"Time!ROL$86","v":0},{"$f":"Time!ROM$86","v":0},{"$f":"Time!RON$86","v":0},{"$f":"Time!ROO$86","v":0},{"$f":"Time!ROP$86","v":0},{"$f":"Time!ROQ$86","v":0},{"$f":"Time!ROR$86","v":0},{"$f":"Time!ROS$86","v":0},{"$f":"Time!ROT$86","v":0},{"$f":"Time!ROU$86","v":0},{"$f":"Time!ROV$86","v":0},{"$f":"Time!ROW$86","v":0},{"$f":"Time!ROX$86","v":0},{"$f":"Time!ROY$86","v":0},{"$f":"Time!ROZ$86","v":0},{"$f":"Time!RPA$86","v":0},{"$f":"Time!RPB$86","v":0},{"$f":"Time!RPC$86","v":0},{"$f":"Time!RPD$86","v":0},{"$f":"Time!RPE$86","v":0},{"$f":"Time!RPF$86","v":0},{"$f":"Time!RPG$86","v":0},{"$f":"Time!RPH$86","v":0},{"$f":"Time!RPI$86","v":0},{"$f":"Time!RPJ$86","v":0},{"$f":"Time!RPK$86","v":0},{"$f":"Time!RPL$86","v":0},{"$f":"Time!RPM$86","v":0},{"$f":"Time!RPN$86","v":0},{"$f":"Time!RPO$86","v":0},{"$f":"Time!RPP$86","v":0},{"$f":"Time!RPQ$86","v":0},{"$f":"Time!RPR$86","v":0},{"$f":"Time!RPS$86","v":0},{"$f":"Time!RPT$86","v":0},{"$f":"Time!RPU$86","v":0},{"$f":"Time!RPV$86","v":0},{"$f":"Time!RPW$86","v":0},{"$f":"Time!RPX$86","v":0},{"$f":"Time!RPY$86","v":0},{"$f":"Time!RPZ$86","v":0},{"$f":"Time!RQA$86","v":0},{"$f":"Time!RQB$86","v":0},{"$f":"Time!RQC$86","v":0},{"$f":"Time!RQD$86","v":0},{"$f":"Time!RQE$86","v":0},{"$f":"Time!RQF$86","v":0},{"$f":"Time!RQG$86","v":0},{"$f":"Time!RQH$86","v":0},{"$f":"Time!RQI$86","v":0},{"$f":"Time!RQJ$86","v":0},{"$f":"Time!RQK$86","v":0},{"$f":"Time!RQL$86","v":0},{"$f":"Time!RQM$86","v":0},{"$f":"Time!RQN$86","v":0},{"$f":"Time!RQO$86","v":0},{"$f":"Time!RQP$86","v":0},{"$f":"Time!RQQ$86","v":0},{"$f":"Time!RQR$86","v":0},{"$f":"Time!RQS$86","v":0},{"$f":"Time!RQT$86","v":0},{"$f":"Time!RQU$86","v":0},{"$f":"Time!RQV$86","v":0},{"$f":"Time!RQW$86","v":0},{"$f":"Time!RQX$86","v":0},{"$f":"Time!RQY$86","v":0},{"$f":"Time!RQZ$86","v":0},{"$f":"Time!RRA$86","v":0},{"$f":"Time!RRB$86","v":0},{"$f":"Time!RRC$86","v":0},{"$f":"Time!RRD$86","v":0},{"$f":"Time!RRE$86","v":0},{"$f":"Time!RRF$86","v":0},{"$f":"Time!RRG$86","v":0},{"$f":"Time!RRH$86","v":0},{"$f":"Time!RRI$86","v":0},{"$f":"Time!RRJ$86","v":0},{"$f":"Time!RRK$86","v":0},{"$f":"Time!RRL$86","v":0},{"$f":"Time!RRM$86","v":0},{"$f":"Time!RRN$86","v":0},{"$f":"Time!RRO$86","v":0},{"$f":"Time!RRP$86","v":0},{"$f":"Time!RRQ$86","v":0},{"$f":"Time!RRR$86","v":0},{"$f":"Time!RRS$86","v":0},{"$f":"Time!RRT$86","v":0},{"$f":"Time!RRU$86","v":0},{"$f":"Time!RRV$86","v":0},{"$f":"Time!RRW$86","v":0},{"$f":"Time!RRX$86","v":0},{"$f":"Time!RRY$86","v":0},{"$f":"Time!RRZ$86","v":0},{"$f":"Time!RSA$86","v":0},{"$f":"Time!RSB$86","v":0},{"$f":"Time!RSC$86","v":0},{"$f":"Time!RSD$86","v":0},{"$f":"Time!RSE$86","v":0},{"$f":"Time!RSF$86","v":0},{"$f":"Time!RSG$86","v":0},{"$f":"Time!RSH$86","v":0},{"$f":"Time!RSI$86","v":0},{"$f":"Time!RSJ$86","v":0},{"$f":"Time!RSK$86","v":0},{"$f":"Time!RSL$86","v":0},{"$f":"Time!RSM$86","v":0},{"$f":"Time!RSN$86","v":0},{"$f":"Time!RSO$86","v":0},{"$f":"Time!RSP$86","v":0},{"$f":"Time!RSQ$86","v":0},{"$f":"Time!RSR$86","v":0},{"$f":"Time!RSS$86","v":0},{"$f":"Time!RST$86","v":0},{"$f":"Time!RSU$86","v":0},{"$f":"Time!RSV$86","v":0},{"$f":"Time!RSW$86","v":0},{"$f":"Time!RSX$86","v":0},{"$f":"Time!RSY$86","v":0},{"$f":"Time!RSZ$86","v":0},{"$f":"Time!RTA$86","v":0},{"$f":"Time!RTB$86","v":0},{"$f":"Time!RTC$86","v":0},{"$f":"Time!RTD$86","v":0},{"$f":"Time!RTE$86","v":0},{"$f":"Time!RTF$86","v":0},{"$f":"Time!RTG$86","v":0},{"$f":"Time!RTH$86","v":0},{"$f":"Time!RTI$86","v":0},{"$f":"Time!RTJ$86","v":0},{"$f":"Time!RTK$86","v":0},{"$f":"Time!RTL$86","v":0},{"$f":"Time!RTM$86","v":0},{"$f":"Time!RTN$86","v":0},{"$f":"Time!RTO$86","v":0},{"$f":"Time!RTP$86","v":0},{"$f":"Time!RTQ$86","v":0},{"$f":"Time!RTR$86","v":0},{"$f":"Time!RTS$86","v":0},{"$f":"Time!RTT$86","v":0},{"$f":"Time!RTU$86","v":0},{"$f":"Time!RTV$86","v":0},{"$f":"Time!RTW$86","v":0},{"$f":"Time!RTX$86","v":0},{"$f":"Time!RTY$86","v":0},{"$f":"Time!RTZ$86","v":0},{"$f":"Time!RUA$86","v":0},{"$f":"Time!RUB$86","v":0},{"$f":"Time!RUC$86","v":0},{"$f":"Time!RUD$86","v":0},{"$f":"Time!RUE$86","v":0},{"$f":"Time!RUF$86","v":0},{"$f":"Time!RUG$86","v":0},{"$f":"Time!RUH$86","v":0},{"$f":"Time!RUI$86","v":0},{"$f":"Time!RUJ$86","v":0},{"$f":"Time!RUK$86","v":0},{"$f":"Time!RUL$86","v":0},{"$f":"Time!RUM$86","v":0},{"$f":"Time!RUN$86","v":0},{"$f":"Time!RUO$86","v":0},{"$f":"Time!RUP$86","v":0},{"$f":"Time!RUQ$86","v":0},{"$f":"Time!RUR$86","v":0},{"$f":"Time!RUS$86","v":0},{"$f":"Time!RUT$86","v":0},{"$f":"Time!RUU$86","v":0},{"$f":"Time!RUV$86","v":0},{"$f":"Time!RUW$86","v":0},{"$f":"Time!RUX$86","v":0},{"$f":"Time!RUY$86","v":0},{"$f":"Time!RUZ$86","v":0},{"$f":"Time!RVA$86","v":0},{"$f":"Time!RVB$86","v":0},{"$f":"Time!RVC$86","v":0},{"$f":"Time!RVD$86","v":0},{"$f":"Time!RVE$86","v":0},{"$f":"Time!RVF$86","v":0},{"$f":"Time!RVG$86","v":0},{"$f":"Time!RVH$86","v":0},{"$f":"Time!RVI$86","v":0},{"$f":"Time!RVJ$86","v":0},{"$f":"Time!RVK$86","v":0},{"$f":"Time!RVL$86","v":0},{"$f":"Time!RVM$86","v":0},{"$f":"Time!RVN$86","v":0},{"$f":"Time!RVO$86","v":0},{"$f":"Time!RVP$86","v":0},{"$f":"Time!RVQ$86","v":0},{"$f":"Time!RVR$86","v":0},{"$f":"Time!RVS$86","v":0},{"$f":"Time!RVT$86","v":0},{"$f":"Time!RVU$86","v":0},{"$f":"Time!RVV$86","v":0},{"$f":"Time!RVW$86","v":0},{"$f":"Time!RVX$86","v":0},{"$f":"Time!RVY$86","v":0},{"$f":"Time!RVZ$86","v":0},{"$f":"Time!RWA$86","v":0},{"$f":"Time!RWB$86","v":0},{"$f":"Time!RWC$86","v":0},{"$f":"Time!RWD$86","v":0},{"$f":"Time!RWE$86","v":0},{"$f":"Time!RWF$86","v":0},{"$f":"Time!RWG$86","v":0},{"$f":"Time!RWH$86","v":0},{"$f":"Time!RWI$86","v":0},{"$f":"Time!RWJ$86","v":0},{"$f":"Time!RWK$86","v":0},{"$f":"Time!RWL$86","v":0},{"$f":"Time!RWM$86","v":0},{"$f":"Time!RWN$86","v":0},{"$f":"Time!RWO$86","v":0},{"$f":"Time!RWP$86","v":0},{"$f":"Time!RWQ$86","v":0},{"$f":"Time!RWR$86","v":0},{"$f":"Time!RWS$86","v":0},{"$f":"Time!RWT$86","v":0},{"$f":"Time!RWU$86","v":0},{"$f":"Time!RWV$86","v":0},{"$f":"Time!RWW$86","v":0},{"$f":"Time!RWX$86","v":0},{"$f":"Time!RWY$86","v":0},{"$f":"Time!RWZ$86","v":0},{"$f":"Time!RXA$86","v":0},{"$f":"Time!RXB$86","v":0},{"$f":"Time!RXC$86","v":0},{"$f":"Time!RXD$86","v":0},{"$f":"Time!RXE$86","v":0},{"$f":"Time!RXF$86","v":0},{"$f":"Time!RXG$86","v":0},{"$f":"Time!RXH$86","v":0},{"$f":"Time!RXI$86","v":0},{"$f":"Time!RXJ$86","v":0},{"$f":"Time!RXK$86","v":0},{"$f":"Time!RXL$86","v":0},{"$f":"Time!RXM$86","v":0},{"$f":"Time!RXN$86","v":0},{"$f":"Time!RXO$86","v":0},{"$f":"Time!RXP$86","v":0},{"$f":"Time!RXQ$86","v":0},{"$f":"Time!RXR$86","v":0},{"$f":"Time!RXS$86","v":0},{"$f":"Time!RXT$86","v":0},{"$f":"Time!RXU$86","v":0},{"$f":"Time!RXV$86","v":0},{"$f":"Time!RXW$86","v":0},{"$f":"Time!RXX$86","v":0},{"$f":"Time!RXY$86","v":0},{"$f":"Time!RXZ$86","v":0},{"$f":"Time!RYA$86","v":0},{"$f":"Time!RYB$86","v":0},{"$f":"Time!RYC$86","v":0},{"$f":"Time!RYD$86","v":0},{"$f":"Time!RYE$86","v":0},{"$f":"Time!RYF$86","v":0},{"$f":"Time!RYG$86","v":0},{"$f":"Time!RYH$86","v":0},{"$f":"Time!RYI$86","v":0},{"$f":"Time!RYJ$86","v":0},{"$f":"Time!RYK$86","v":0},{"$f":"Time!RYL$86","v":0},{"$f":"Time!RYM$86","v":0},{"$f":"Time!RYN$86","v":0},{"$f":"Time!RYO$86","v":0},{"$f":"Time!RYP$86","v":0},{"$f":"Time!RYQ$86","v":0},{"$f":"Time!RYR$86","v":0},{"$f":"Time!RYS$86","v":0},{"$f":"Time!RYT$86","v":0},{"$f":"Time!RYU$86","v":0},{"$f":"Time!RYV$86","v":0},{"$f":"Time!RYW$86","v":0},{"$f":"Time!RYX$86","v":0},{"$f":"Time!RYY$86","v":0},{"$f":"Time!RYZ$86","v":0},{"$f":"Time!RZA$86","v":0},{"$f":"Time!RZB$86","v":0},{"$f":"Time!RZC$86","v":0},{"$f":"Time!RZD$86","v":0},{"$f":"Time!RZE$86","v":0},{"$f":"Time!RZF$86","v":0},{"$f":"Time!RZG$86","v":0},{"$f":"Time!RZH$86","v":0},{"$f":"Time!RZI$86","v":0},{"$f":"Time!RZJ$86","v":0},{"$f":"Time!RZK$86","v":0},{"$f":"Time!RZL$86","v":0},{"$f":"Time!RZM$86","v":0},{"$f":"Time!RZN$86","v":0},{"$f":"Time!RZO$86","v":0},{"$f":"Time!RZP$86","v":0},{"$f":"Time!RZQ$86","v":0},{"$f":"Time!RZR$86","v":0},{"$f":"Time!RZS$86","v":0},{"$f":"Time!RZT$86","v":0},{"$f":"Time!RZU$86","v":0},{"$f":"Time!RZV$86","v":0},{"$f":"Time!RZW$86","v":0},{"$f":"Time!RZX$86","v":0},{"$f":"Time!RZY$86","v":0},{"$f":"Time!RZZ$86","v":0},{"$f":"Time!SAA$86","v":0},{"$f":"Time!SAB$86","v":0},{"$f":"Time!SAC$86","v":0},{"$f":"Time!SAD$86","v":0},{"$f":"Time!SAE$86","v":0},{"$f":"Time!SAF$86","v":0},{"$f":"Time!SAG$86","v":0},{"$f":"Time!SAH$86","v":0},{"$f":"Time!SAI$86","v":0},{"$f":"Time!SAJ$86","v":0},{"$f":"Time!SAK$86","v":0},{"$f":"Time!SAL$86","v":0},{"$f":"Time!SAM$86","v":0},{"$f":"Time!SAN$86","v":0},{"$f":"Time!SAO$86","v":0},{"$f":"Time!SAP$86","v":0},{"$f":"Time!SAQ$86","v":0},{"$f":"Time!SAR$86","v":0},{"$f":"Time!SAS$86","v":0},{"$f":"Time!SAT$86","v":0},{"$f":"Time!SAU$86","v":0},{"$f":"Time!SAV$86","v":0},{"$f":"Time!SAW$86","v":0},{"$f":"Time!SAX$86","v":0},{"$f":"Time!SAY$86","v":0},{"$f":"Time!SAZ$86","v":0},{"$f":"Time!SBA$86","v":0},{"$f":"Time!SBB$86","v":0},{"$f":"Time!SBC$86","v":0},{"$f":"Time!SBD$86","v":0},{"$f":"Time!SBE$86","v":0},{"$f":"Time!SBF$86","v":0},{"$f":"Time!SBG$86","v":0},{"$f":"Time!SBH$86","v":0},{"$f":"Time!SBI$86","v":0},{"$f":"Time!SBJ$86","v":0},{"$f":"Time!SBK$86","v":0},{"$f":"Time!SBL$86","v":0},{"$f":"Time!SBM$86","v":0},{"$f":"Time!SBN$86","v":0},{"$f":"Time!SBO$86","v":0},{"$f":"Time!SBP$86","v":0},{"$f":"Time!SBQ$86","v":0},{"$f":"Time!SBR$86","v":0},{"$f":"Time!SBS$86","v":0},{"$f":"Time!SBT$86","v":0},{"$f":"Time!SBU$86","v":0},{"$f":"Time!SBV$86","v":0},{"$f":"Time!SBW$86","v":0},{"$f":"Time!SBX$86","v":0},{"$f":"Time!SBY$86","v":0},{"$f":"Time!SBZ$86","v":0},{"$f":"Time!SCA$86","v":0},{"$f":"Time!SCB$86","v":0},{"$f":"Time!SCC$86","v":0},{"$f":"Time!SCD$86","v":0},{"$f":"Time!SCE$86","v":0},{"$f":"Time!SCF$86","v":0},{"$f":"Time!SCG$86","v":0},{"$f":"Time!SCH$86","v":0},{"$f":"Time!SCI$86","v":0},{"$f":"Time!SCJ$86","v":0},{"$f":"Time!SCK$86","v":0},{"$f":"Time!SCL$86","v":0},{"$f":"Time!SCM$86","v":0},{"$f":"Time!SCN$86","v":0},{"$f":"Time!SCO$86","v":0},{"$f":"Time!SCP$86","v":0},{"$f":"Time!SCQ$86","v":0},{"$f":"Time!SCR$86","v":0},{"$f":"Time!SCS$86","v":0},{"$f":"Time!SCT$86","v":0},{"$f":"Time!SCU$86","v":0},{"$f":"Time!SCV$86","v":0},{"$f":"Time!SCW$86","v":0},{"$f":"Time!SCX$86","v":0},{"$f":"Time!SCY$86","v":0},{"$f":"Time!SCZ$86","v":0},{"$f":"Time!SDA$86","v":0},{"$f":"Time!SDB$86","v":0},{"$f":"Time!SDC$86","v":0},{"$f":"Time!SDD$86","v":0},{"$f":"Time!SDE$86","v":0},{"$f":"Time!SDF$86","v":0},{"$f":"Time!SDG$86","v":0},{"$f":"Time!SDH$86","v":0},{"$f":"Time!SDI$86","v":0},{"$f":"Time!SDJ$86","v":0},{"$f":"Time!SDK$86","v":0},{"$f":"Time!SDL$86","v":0},{"$f":"Time!SDM$86","v":0},{"$f":"Time!SDN$86","v":0},{"$f":"Time!SDO$86","v":0},{"$f":"Time!SDP$86","v":0},{"$f":"Time!SDQ$86","v":0},{"$f":"Time!SDR$86","v":0},{"$f":"Time!SDS$86","v":0},{"$f":"Time!SDT$86","v":0},{"$f":"Time!SDU$86","v":0},{"$f":"Time!SDV$86","v":0},{"$f":"Time!SDW$86","v":0},{"$f":"Time!SDX$86","v":0},{"$f":"Time!SDY$86","v":0},{"$f":"Time!SDZ$86","v":0},{"$f":"Time!SEA$86","v":0},{"$f":"Time!SEB$86","v":0},{"$f":"Time!SEC$86","v":0},{"$f":"Time!SED$86","v":0},{"$f":"Time!SEE$86","v":0},{"$f":"Time!SEF$86","v":0},{"$f":"Time!SEG$86","v":0},{"$f":"Time!SEH$86","v":0},{"$f":"Time!SEI$86","v":0},{"$f":"Time!SEJ$86","v":0},{"$f":"Time!SEK$86","v":0},{"$f":"Time!SEL$86","v":0},{"$f":"Time!SEM$86","v":0},{"$f":"Time!SEN$86","v":0},{"$f":"Time!SEO$86","v":0},{"$f":"Time!SEP$86","v":0},{"$f":"Time!SEQ$86","v":0},{"$f":"Time!SER$86","v":0},{"$f":"Time!SES$86","v":0},{"$f":"Time!SET$86","v":0},{"$f":"Time!SEU$86","v":0},{"$f":"Time!SEV$86","v":0},{"$f":"Time!SEW$86","v":0},{"$f":"Time!SEX$86","v":0},{"$f":"Time!SEY$86","v":0},{"$f":"Time!SEZ$86","v":0},{"$f":"Time!SFA$86","v":0},{"$f":"Time!SFB$86","v":0},{"$f":"Time!SFC$86","v":0},{"$f":"Time!SFD$86","v":0},{"$f":"Time!SFE$86","v":0},{"$f":"Time!SFF$86","v":0},{"$f":"Time!SFG$86","v":0},{"$f":"Time!SFH$86","v":0},{"$f":"Time!SFI$86","v":0},{"$f":"Time!SFJ$86","v":0},{"$f":"Time!SFK$86","v":0},{"$f":"Time!SFL$86","v":0},{"$f":"Time!SFM$86","v":0},{"$f":"Time!SFN$86","v":0},{"$f":"Time!SFO$86","v":0},{"$f":"Time!SFP$86","v":0},{"$f":"Time!SFQ$86","v":0},{"$f":"Time!SFR$86","v":0},{"$f":"Time!SFS$86","v":0},{"$f":"Time!SFT$86","v":0},{"$f":"Time!SFU$86","v":0},{"$f":"Time!SFV$86","v":0},{"$f":"Time!SFW$86","v":0},{"$f":"Time!SFX$86","v":0},{"$f":"Time!SFY$86","v":0},{"$f":"Time!SFZ$86","v":0},{"$f":"Time!SGA$86","v":0},{"$f":"Time!SGB$86","v":0},{"$f":"Time!SGC$86","v":0},{"$f":"Time!SGD$86","v":0},{"$f":"Time!SGE$86","v":0},{"$f":"Time!SGF$86","v":0},{"$f":"Time!SGG$86","v":0},{"$f":"Time!SGH$86","v":0},{"$f":"Time!SGI$86","v":0},{"$f":"Time!SGJ$86","v":0},{"$f":"Time!SGK$86","v":0},{"$f":"Time!SGL$86","v":0},{"$f":"Time!SGM$86","v":0},{"$f":"Time!SGN$86","v":0},{"$f":"Time!SGO$86","v":0},{"$f":"Time!SGP$86","v":0},{"$f":"Time!SGQ$86","v":0},{"$f":"Time!SGR$86","v":0},{"$f":"Time!SGS$86","v":0},{"$f":"Time!SGT$86","v":0},{"$f":"Time!SGU$86","v":0},{"$f":"Time!SGV$86","v":0},{"$f":"Time!SGW$86","v":0},{"$f":"Time!SGX$86","v":0},{"$f":"Time!SGY$86","v":0},{"$f":"Time!SGZ$86","v":0},{"$f":"Time!SHA$86","v":0},{"$f":"Time!SHB$86","v":0},{"$f":"Time!SHC$86","v":0},{"$f":"Time!SHD$86","v":0},{"$f":"Time!SHE$86","v":0},{"$f":"Time!SHF$86","v":0},{"$f":"Time!SHG$86","v":0},{"$f":"Time!SHH$86","v":0},{"$f":"Time!SHI$86","v":0},{"$f":"Time!SHJ$86","v":0},{"$f":"Time!SHK$86","v":0},{"$f":"Time!SHL$86","v":0},{"$f":"Time!SHM$86","v":0},{"$f":"Time!SHN$86","v":0},{"$f":"Time!SHO$86","v":0},{"$f":"Time!SHP$86","v":0},{"$f":"Time!SHQ$86","v":0},{"$f":"Time!SHR$86","v":0},{"$f":"Time!SHS$86","v":0},{"$f":"Time!SHT$86","v":0},{"$f":"Time!SHU$86","v":0},{"$f":"Time!SHV$86","v":0},{"$f":"Time!SHW$86","v":0},{"$f":"Time!SHX$86","v":0},{"$f":"Time!SHY$86","v":0},{"$f":"Time!SHZ$86","v":0},{"$f":"Time!SIA$86","v":0},{"$f":"Time!SIB$86","v":0},{"$f":"Time!SIC$86","v":0},{"$f":"Time!SID$86","v":0},{"$f":"Time!SIE$86","v":0},{"$f":"Time!SIF$86","v":0},{"$f":"Time!SIG$86","v":0},{"$f":"Time!SIH$86","v":0},{"$f":"Time!SII$86","v":0},{"$f":"Time!SIJ$86","v":0},{"$f":"Time!SIK$86","v":0},{"$f":"Time!SIL$86","v":0},{"$f":"Time!SIM$86","v":0},{"$f":"Time!SIN$86","v":0},{"$f":"Time!SIO$86","v":0},{"$f":"Time!SIP$86","v":0},{"$f":"Time!SIQ$86","v":0},{"$f":"Time!SIR$86","v":0},{"$f":"Time!SIS$86","v":0},{"$f":"Time!SIT$86","v":0},{"$f":"Time!SIU$86","v":0},{"$f":"Time!SIV$86","v":0},{"$f":"Time!SIW$86","v":0},{"$f":"Time!SIX$86","v":0},{"$f":"Time!SIY$86","v":0},{"$f":"Time!SIZ$86","v":0},{"$f":"Time!SJA$86","v":0},{"$f":"Time!SJB$86","v":0},{"$f":"Time!SJC$86","v":0},{"$f":"Time!SJD$86","v":0},{"$f":"Time!SJE$86","v":0},{"$f":"Time!SJF$86","v":0},{"$f":"Time!SJG$86","v":0},{"$f":"Time!SJH$86","v":0},{"$f":"Time!SJI$86","v":0},{"$f":"Time!SJJ$86","v":0},{"$f":"Time!SJK$86","v":0},{"$f":"Time!SJL$86","v":0},{"$f":"Time!SJM$86","v":0},{"$f":"Time!SJN$86","v":0},{"$f":"Time!SJO$86","v":0},{"$f":"Time!SJP$86","v":0},{"$f":"Time!SJQ$86","v":0},{"$f":"Time!SJR$86","v":0},{"$f":"Time!SJS$86","v":0},{"$f":"Time!SJT$86","v":0},{"$f":"Time!SJU$86","v":0},{"$f":"Time!SJV$86","v":0},{"$f":"Time!SJW$86","v":0},{"$f":"Time!SJX$86","v":0},{"$f":"Time!SJY$86","v":0},{"$f":"Time!SJZ$86","v":0},{"$f":"Time!SKA$86","v":0},{"$f":"Time!SKB$86","v":0},{"$f":"Time!SKC$86","v":0},{"$f":"Time!SKD$86","v":0},{"$f":"Time!SKE$86","v":0},{"$f":"Time!SKF$86","v":0},{"$f":"Time!SKG$86","v":0},{"$f":"Time!SKH$86","v":0},{"$f":"Time!SKI$86","v":0},{"$f":"Time!SKJ$86","v":0},{"$f":"Time!SKK$86","v":0},{"$f":"Time!SKL$86","v":0},{"$f":"Time!SKM$86","v":0},{"$f":"Time!SKN$86","v":0},{"$f":"Time!SKO$86","v":0},{"$f":"Time!SKP$86","v":0},{"$f":"Time!SKQ$86","v":0},{"$f":"Time!SKR$86","v":0},{"$f":"Time!SKS$86","v":0},{"$f":"Time!SKT$86","v":0},{"$f":"Time!SKU$86","v":0},{"$f":"Time!SKV$86","v":0},{"$f":"Time!SKW$86","v":0},{"$f":"Time!SKX$86","v":0},{"$f":"Time!SKY$86","v":0},{"$f":"Time!SKZ$86","v":0},{"$f":"Time!SLA$86","v":0},{"$f":"Time!SLB$86","v":0},{"$f":"Time!SLC$86","v":0},{"$f":"Time!SLD$86","v":0},{"$f":"Time!SLE$86","v":0},{"$f":"Time!SLF$86","v":0},{"$f":"Time!SLG$86","v":0},{"$f":"Time!SLH$86","v":0},{"$f":"Time!SLI$86","v":0},{"$f":"Time!SLJ$86","v":0},{"$f":"Time!SLK$86","v":0},{"$f":"Time!SLL$86","v":0},{"$f":"Time!SLM$86","v":0},{"$f":"Time!SLN$86","v":0},{"$f":"Time!SLO$86","v":0},{"$f":"Time!SLP$86","v":0},{"$f":"Time!SLQ$86","v":0},{"$f":"Time!SLR$86","v":0},{"$f":"Time!SLS$86","v":0},{"$f":"Time!SLT$86","v":0},{"$f":"Time!SLU$86","v":0},{"$f":"Time!SLV$86","v":0},{"$f":"Time!SLW$86","v":0},{"$f":"Time!SLX$86","v":0},{"$f":"Time!SLY$86","v":0},{"$f":"Time!SLZ$86","v":0},{"$f":"Time!SMA$86","v":0},{"$f":"Time!SMB$86","v":0},{"$f":"Time!SMC$86","v":0},{"$f":"Time!SMD$86","v":0},{"$f":"Time!SME$86","v":0},{"$f":"Time!SMF$86","v":0},{"$f":"Time!SMG$86","v":0},{"$f":"Time!SMH$86","v":0},{"$f":"Time!SMI$86","v":0},{"$f":"Time!SMJ$86","v":0},{"$f":"Time!SMK$86","v":0},{"$f":"Time!SML$86","v":0},{"$f":"Time!SMM$86","v":0},{"$f":"Time!SMN$86","v":0},{"$f":"Time!SMO$86","v":0},{"$f":"Time!SMP$86","v":0},{"$f":"Time!SMQ$86","v":0},{"$f":"Time!SMR$86","v":0},{"$f":"Time!SMS$86","v":0},{"$f":"Time!SMT$86","v":0},{"$f":"Time!SMU$86","v":0},{"$f":"Time!SMV$86","v":0},{"$f":"Time!SMW$86","v":0},{"$f":"Time!SMX$86","v":0},{"$f":"Time!SMY$86","v":0},{"$f":"Time!SMZ$86","v":0},{"$f":"Time!SNA$86","v":0},{"$f":"Time!SNB$86","v":0},{"$f":"Time!SNC$86","v":0},{"$f":"Time!SND$86","v":0},{"$f":"Time!SNE$86","v":0},{"$f":"Time!SNF$86","v":0},{"$f":"Time!SNG$86","v":0},{"$f":"Time!SNH$86","v":0},{"$f":"Time!SNI$86","v":0},{"$f":"Time!SNJ$86","v":0},{"$f":"Time!SNK$86","v":0},{"$f":"Time!SNL$86","v":0},{"$f":"Time!SNM$86","v":0},{"$f":"Time!SNN$86","v":0},{"$f":"Time!SNO$86","v":0},{"$f":"Time!SNP$86","v":0},{"$f":"Time!SNQ$86","v":0},{"$f":"Time!SNR$86","v":0},{"$f":"Time!SNS$86","v":0},{"$f":"Time!SNT$86","v":0},{"$f":"Time!SNU$86","v":0},{"$f":"Time!SNV$86","v":0},{"$f":"Time!SNW$86","v":0},{"$f":"Time!SNX$86","v":0},{"$f":"Time!SNY$86","v":0},{"$f":"Time!SNZ$86","v":0},{"$f":"Time!SOA$86","v":0},{"$f":"Time!SOB$86","v":0},{"$f":"Time!SOC$86","v":0},{"$f":"Time!SOD$86","v":0},{"$f":"Time!SOE$86","v":0},{"$f":"Time!SOF$86","v":0},{"$f":"Time!SOG$86","v":0},{"$f":"Time!SOH$86","v":0},{"$f":"Time!SOI$86","v":0},{"$f":"Time!SOJ$86","v":0},{"$f":"Time!SOK$86","v":0},{"$f":"Time!SOL$86","v":0},{"$f":"Time!SOM$86","v":0},{"$f":"Time!SON$86","v":0},{"$f":"Time!SOO$86","v":0},{"$f":"Time!SOP$86","v":0},{"$f":"Time!SOQ$86","v":0},{"$f":"Time!SOR$86","v":0},{"$f":"Time!SOS$86","v":0},{"$f":"Time!SOT$86","v":0},{"$f":"Time!SOU$86","v":0},{"$f":"Time!SOV$86","v":0},{"$f":"Time!SOW$86","v":0},{"$f":"Time!SOX$86","v":0},{"$f":"Time!SOY$86","v":0},{"$f":"Time!SOZ$86","v":0},{"$f":"Time!SPA$86","v":0},{"$f":"Time!SPB$86","v":0},{"$f":"Time!SPC$86","v":0},{"$f":"Time!SPD$86","v":0},{"$f":"Time!SPE$86","v":0},{"$f":"Time!SPF$86","v":0},{"$f":"Time!SPG$86","v":0},{"$f":"Time!SPH$86","v":0},{"$f":"Time!SPI$86","v":0},{"$f":"Time!SPJ$86","v":0},{"$f":"Time!SPK$86","v":0},{"$f":"Time!SPL$86","v":0},{"$f":"Time!SPM$86","v":0},{"$f":"Time!SPN$86","v":0},{"$f":"Time!SPO$86","v":0},{"$f":"Time!SPP$86","v":0},{"$f":"Time!SPQ$86","v":0},{"$f":"Time!SPR$86","v":0},{"$f":"Time!SPS$86","v":0},{"$f":"Time!SPT$86","v":0},{"$f":"Time!SPU$86","v":0},{"$f":"Time!SPV$86","v":0},{"$f":"Time!SPW$86","v":0},{"$f":"Time!SPX$86","v":0},{"$f":"Time!SPY$86","v":0},{"$f":"Time!SPZ$86","v":0},{"$f":"Time!SQA$86","v":0},{"$f":"Time!SQB$86","v":0},{"$f":"Time!SQC$86","v":0},{"$f":"Time!SQD$86","v":0},{"$f":"Time!SQE$86","v":0},{"$f":"Time!SQF$86","v":0},{"$f":"Time!SQG$86","v":0},{"$f":"Time!SQH$86","v":0},{"$f":"Time!SQI$86","v":0},{"$f":"Time!SQJ$86","v":0},{"$f":"Time!SQK$86","v":0},{"$f":"Time!SQL$86","v":0},{"$f":"Time!SQM$86","v":0},{"$f":"Time!SQN$86","v":0},{"$f":"Time!SQO$86","v":0},{"$f":"Time!SQP$86","v":0},{"$f":"Time!SQQ$86","v":0},{"$f":"Time!SQR$86","v":0},{"$f":"Time!SQS$86","v":0},{"$f":"Time!SQT$86","v":0},{"$f":"Time!SQU$86","v":0},{"$f":"Time!SQV$86","v":0},{"$f":"Time!SQW$86","v":0},{"$f":"Time!SQX$86","v":0},{"$f":"Time!SQY$86","v":0},{"$f":"Time!SQZ$86","v":0},{"$f":"Time!SRA$86","v":0},{"$f":"Time!SRB$86","v":0},{"$f":"Time!SRC$86","v":0},{"$f":"Time!SRD$86","v":0},{"$f":"Time!SRE$86","v":0},{"$f":"Time!SRF$86","v":0},{"$f":"Time!SRG$86","v":0},{"$f":"Time!SRH$86","v":0},{"$f":"Time!SRI$86","v":0},{"$f":"Time!SRJ$86","v":0},{"$f":"Time!SRK$86","v":0},{"$f":"Time!SRL$86","v":0},{"$f":"Time!SRM$86","v":0},{"$f":"Time!SRN$86","v":0},{"$f":"Time!SRO$86","v":0},{"$f":"Time!SRP$86","v":0},{"$f":"Time!SRQ$86","v":0},{"$f":"Time!SRR$86","v":0},{"$f":"Time!SRS$86","v":0},{"$f":"Time!SRT$86","v":0},{"$f":"Time!SRU$86","v":0},{"$f":"Time!SRV$86","v":0},{"$f":"Time!SRW$86","v":0},{"$f":"Time!SRX$86","v":0},{"$f":"Time!SRY$86","v":0},{"$f":"Time!SRZ$86","v":0},{"$f":"Time!SSA$86","v":0},{"$f":"Time!SSB$86","v":0},{"$f":"Time!SSC$86","v":0},{"$f":"Time!SSD$86","v":0},{"$f":"Time!SSE$86","v":0},{"$f":"Time!SSF$86","v":0},{"$f":"Time!SSG$86","v":0},{"$f":"Time!SSH$86","v":0},{"$f":"Time!SSI$86","v":0},{"$f":"Time!SSJ$86","v":0},{"$f":"Time!SSK$86","v":0},{"$f":"Time!SSL$86","v":0},{"$f":"Time!SSM$86","v":0},{"$f":"Time!SSN$86","v":0},{"$f":"Time!SSO$86","v":0},{"$f":"Time!SSP$86","v":0},{"$f":"Time!SSQ$86","v":0},{"$f":"Time!SSR$86","v":0},{"$f":"Time!SSS$86","v":0},{"$f":"Time!SST$86","v":0},{"$f":"Time!SSU$86","v":0},{"$f":"Time!SSV$86","v":0},{"$f":"Time!SSW$86","v":0},{"$f":"Time!SSX$86","v":0},{"$f":"Time!SSY$86","v":0},{"$f":"Time!SSZ$86","v":0},{"$f":"Time!STA$86","v":0},{"$f":"Time!STB$86","v":0},{"$f":"Time!STC$86","v":0},{"$f":"Time!STD$86","v":0},{"$f":"Time!STE$86","v":0},{"$f":"Time!STF$86","v":0},{"$f":"Time!STG$86","v":0},{"$f":"Time!STH$86","v":0},{"$f":"Time!STI$86","v":0},{"$f":"Time!STJ$86","v":0},{"$f":"Time!STK$86","v":0},{"$f":"Time!STL$86","v":0},{"$f":"Time!STM$86","v":0},{"$f":"Time!STN$86","v":0},{"$f":"Time!STO$86","v":0},{"$f":"Time!STP$86","v":0},{"$f":"Time!STQ$86","v":0},{"$f":"Time!STR$86","v":0},{"$f":"Time!STS$86","v":0},{"$f":"Time!STT$86","v":0},{"$f":"Time!STU$86","v":0},{"$f":"Time!STV$86","v":0},{"$f":"Time!STW$86","v":0},{"$f":"Time!STX$86","v":0},{"$f":"Time!STY$86","v":0},{"$f":"Time!STZ$86","v":0},{"$f":"Time!SUA$86","v":0},{"$f":"Time!SUB$86","v":0},{"$f":"Time!SUC$86","v":0},{"$f":"Time!SUD$86","v":0},{"$f":"Time!SUE$86","v":0},{"$f":"Time!SUF$86","v":0},{"$f":"Time!SUG$86","v":0},{"$f":"Time!SUH$86","v":0},{"$f":"Time!SUI$86","v":0},{"$f":"Time!SUJ$86","v":0},{"$f":"Time!SUK$86","v":0},{"$f":"Time!SUL$86","v":0},{"$f":"Time!SUM$86","v":0},{"$f":"Time!SUN$86","v":0},{"$f":"Time!SUO$86","v":0},{"$f":"Time!SUP$86","v":0},{"$f":"Time!SUQ$86","v":0},{"$f":"Time!SUR$86","v":0},{"$f":"Time!SUS$86","v":0},{"$f":"Time!SUT$86","v":0},{"$f":"Time!SUU$86","v":0},{"$f":"Time!SUV$86","v":0},{"$f":"Time!SUW$86","v":0},{"$f":"Time!SUX$86","v":0},{"$f":"Time!SUY$86","v":0},{"$f":"Time!SUZ$86","v":0},{"$f":"Time!SVA$86","v":0},{"$f":"Time!SVB$86","v":0},{"$f":"Time!SVC$86","v":0},{"$f":"Time!SVD$86","v":0},{"$f":"Time!SVE$86","v":0},{"$f":"Time!SVF$86","v":0},{"$f":"Time!SVG$86","v":0},{"$f":"Time!SVH$86","v":0},{"$f":"Time!SVI$86","v":0},{"$f":"Time!SVJ$86","v":0},{"$f":"Time!SVK$86","v":0},{"$f":"Time!SVL$86","v":0},{"$f":"Time!SVM$86","v":0},{"$f":"Time!SVN$86","v":0},{"$f":"Time!SVO$86","v":0},{"$f":"Time!SVP$86","v":0},{"$f":"Time!SVQ$86","v":0},{"$f":"Time!SVR$86","v":0},{"$f":"Time!SVS$86","v":0},{"$f":"Time!SVT$86","v":0},{"$f":"Time!SVU$86","v":0},{"$f":"Time!SVV$86","v":0},{"$f":"Time!SVW$86","v":0},{"$f":"Time!SVX$86","v":0},{"$f":"Time!SVY$86","v":0},{"$f":"Time!SVZ$86","v":0},{"$f":"Time!SWA$86","v":0},{"$f":"Time!SWB$86","v":0},{"$f":"Time!SWC$86","v":0},{"$f":"Time!SWD$86","v":0},{"$f":"Time!SWE$86","v":0},{"$f":"Time!SWF$86","v":0},{"$f":"Time!SWG$86","v":0},{"$f":"Time!SWH$86","v":0},{"$f":"Time!SWI$86","v":0},{"$f":"Time!SWJ$86","v":0},{"$f":"Time!SWK$86","v":0},{"$f":"Time!SWL$86","v":0},{"$f":"Time!SWM$86","v":0},{"$f":"Time!SWN$86","v":0},{"$f":"Time!SWO$86","v":0},{"$f":"Time!SWP$86","v":0},{"$f":"Time!SWQ$86","v":0},{"$f":"Time!SWR$86","v":0},{"$f":"Time!SWS$86","v":0},{"$f":"Time!SWT$86","v":0},{"$f":"Time!SWU$86","v":0},{"$f":"Time!SWV$86","v":0},{"$f":"Time!SWW$86","v":0},{"$f":"Time!SWX$86","v":0},{"$f":"Time!SWY$86","v":0},{"$f":"Time!SWZ$86","v":0},{"$f":"Time!SXA$86","v":0},{"$f":"Time!SXB$86","v":0},{"$f":"Time!SXC$86","v":0},{"$f":"Time!SXD$86","v":0},{"$f":"Time!SXE$86","v":0},{"$f":"Time!SXF$86","v":0},{"$f":"Time!SXG$86","v":0},{"$f":"Time!SXH$86","v":0},{"$f":"Time!SXI$86","v":0},{"$f":"Time!SXJ$86","v":0},{"$f":"Time!SXK$86","v":0},{"$f":"Time!SXL$86","v":0},{"$f":"Time!SXM$86","v":0},{"$f":"Time!SXN$86","v":0},{"$f":"Time!SXO$86","v":0},{"$f":"Time!SXP$86","v":0},{"$f":"Time!SXQ$86","v":0},{"$f":"Time!SXR$86","v":0},{"$f":"Time!SXS$86","v":0},{"$f":"Time!SXT$86","v":0},{"$f":"Time!SXU$86","v":0},{"$f":"Time!SXV$86","v":0},{"$f":"Time!SXW$86","v":0},{"$f":"Time!SXX$86","v":0},{"$f":"Time!SXY$86","v":0},{"$f":"Time!SXZ$86","v":0},{"$f":"Time!SYA$86","v":0},{"$f":"Time!SYB$86","v":0},{"$f":"Time!SYC$86","v":0},{"$f":"Time!SYD$86","v":0},{"$f":"Time!SYE$86","v":0},{"$f":"Time!SYF$86","v":0},{"$f":"Time!SYG$86","v":0},{"$f":"Time!SYH$86","v":0},{"$f":"Time!SYI$86","v":0},{"$f":"Time!SYJ$86","v":0},{"$f":"Time!SYK$86","v":0},{"$f":"Time!SYL$86","v":0},{"$f":"Time!SYM$86","v":0},{"$f":"Time!SYN$86","v":0},{"$f":"Time!SYO$86","v":0},{"$f":"Time!SYP$86","v":0},{"$f":"Time!SYQ$86","v":0},{"$f":"Time!SYR$86","v":0},{"$f":"Time!SYS$86","v":0},{"$f":"Time!SYT$86","v":0},{"$f":"Time!SYU$86","v":0},{"$f":"Time!SYV$86","v":0},{"$f":"Time!SYW$86","v":0},{"$f":"Time!SYX$86","v":0},{"$f":"Time!SYY$86","v":0},{"$f":"Time!SYZ$86","v":0},{"$f":"Time!SZA$86","v":0},{"$f":"Time!SZB$86","v":0},{"$f":"Time!SZC$86","v":0},{"$f":"Time!SZD$86","v":0},{"$f":"Time!SZE$86","v":0},{"$f":"Time!SZF$86","v":0},{"$f":"Time!SZG$86","v":0},{"$f":"Time!SZH$86","v":0},{"$f":"Time!SZI$86","v":0},{"$f":"Time!SZJ$86","v":0},{"$f":"Time!SZK$86","v":0},{"$f":"Time!SZL$86","v":0},{"$f":"Time!SZM$86","v":0},{"$f":"Time!SZN$86","v":0},{"$f":"Time!SZO$86","v":0},{"$f":"Time!SZP$86","v":0},{"$f":"Time!SZQ$86","v":0},{"$f":"Time!SZR$86","v":0},{"$f":"Time!SZS$86","v":0},{"$f":"Time!SZT$86","v":0},{"$f":"Time!SZU$86","v":0},{"$f":"Time!SZV$86","v":0},{"$f":"Time!SZW$86","v":0},{"$f":"Time!SZX$86","v":0},{"$f":"Time!SZY$86","v":0},{"$f":"Time!SZZ$86","v":0},{"$f":"Time!TAA$86","v":0},{"$f":"Time!TAB$86","v":0},{"$f":"Time!TAC$86","v":0},{"$f":"Time!TAD$86","v":0},{"$f":"Time!TAE$86","v":0},{"$f":"Time!TAF$86","v":0},{"$f":"Time!TAG$86","v":0},{"$f":"Time!TAH$86","v":0},{"$f":"Time!TAI$86","v":0},{"$f":"Time!TAJ$86","v":0},{"$f":"Time!TAK$86","v":0},{"$f":"Time!TAL$86","v":0},{"$f":"Time!TAM$86","v":0},{"$f":"Time!TAN$86","v":0},{"$f":"Time!TAO$86","v":0},{"$f":"Time!TAP$86","v":0},{"$f":"Time!TAQ$86","v":0},{"$f":"Time!TAR$86","v":0},{"$f":"Time!TAS$86","v":0},{"$f":"Time!TAT$86","v":0},{"$f":"Time!TAU$86","v":0},{"$f":"Time!TAV$86","v":0},{"$f":"Time!TAW$86","v":0},{"$f":"Time!TAX$86","v":0},{"$f":"Time!TAY$86","v":0},{"$f":"Time!TAZ$86","v":0},{"$f":"Time!TBA$86","v":0},{"$f":"Time!TBB$86","v":0},{"$f":"Time!TBC$86","v":0},{"$f":"Time!TBD$86","v":0},{"$f":"Time!TBE$86","v":0},{"$f":"Time!TBF$86","v":0},{"$f":"Time!TBG$86","v":0},{"$f":"Time!TBH$86","v":0},{"$f":"Time!TBI$86","v":0},{"$f":"Time!TBJ$86","v":0},{"$f":"Time!TBK$86","v":0},{"$f":"Time!TBL$86","v":0},{"$f":"Time!TBM$86","v":0},{"$f":"Time!TBN$86","v":0},{"$f":"Time!TBO$86","v":0},{"$f":"Time!TBP$86","v":0},{"$f":"Time!TBQ$86","v":0},{"$f":"Time!TBR$86","v":0},{"$f":"Time!TBS$86","v":0},{"$f":"Time!TBT$86","v":0},{"$f":"Time!TBU$86","v":0},{"$f":"Time!TBV$86","v":0},{"$f":"Time!TBW$86","v":0},{"$f":"Time!TBX$86","v":0},{"$f":"Time!TBY$86","v":0},{"$f":"Time!TBZ$86","v":0},{"$f":"Time!TCA$86","v":0},{"$f":"Time!TCB$86","v":0},{"$f":"Time!TCC$86","v":0},{"$f":"Time!TCD$86","v":0},{"$f":"Time!TCE$86","v":0},{"$f":"Time!TCF$86","v":0},{"$f":"Time!TCG$86","v":0},{"$f":"Time!TCH$86","v":0},{"$f":"Time!TCI$86","v":0},{"$f":"Time!TCJ$86","v":0},{"$f":"Time!TCK$86","v":0},{"$f":"Time!TCL$86","v":0},{"$f":"Time!TCM$86","v":0},{"$f":"Time!TCN$86","v":0},{"$f":"Time!TCO$86","v":0},{"$f":"Time!TCP$86","v":0},{"$f":"Time!TCQ$86","v":0},{"$f":"Time!TCR$86","v":0},{"$f":"Time!TCS$86","v":0},{"$f":"Time!TCT$86","v":0},{"$f":"Time!TCU$86","v":0},{"$f":"Time!TCV$86","v":0},{"$f":"Time!TCW$86","v":0},{"$f":"Time!TCX$86","v":0},{"$f":"Time!TCY$86","v":0},{"$f":"Time!TCZ$86","v":0},{"$f":"Time!TDA$86","v":0},{"$f":"Time!TDB$86","v":0},{"$f":"Time!TDC$86","v":0},{"$f":"Time!TDD$86","v":0},{"$f":"Time!TDE$86","v":0},{"$f":"Time!TDF$86","v":0},{"$f":"Time!TDG$86","v":0},{"$f":"Time!TDH$86","v":0},{"$f":"Time!TDI$86","v":0},{"$f":"Time!TDJ$86","v":0},{"$f":"Time!TDK$86","v":0},{"$f":"Time!TDL$86","v":0},{"$f":"Time!TDM$86","v":0},{"$f":"Time!TDN$86","v":0},{"$f":"Time!TDO$86","v":0},{"$f":"Time!TDP$86","v":0},{"$f":"Time!TDQ$86","v":0},{"$f":"Time!TDR$86","v":0},{"$f":"Time!TDS$86","v":0},{"$f":"Time!TDT$86","v":0},{"$f":"Time!TDU$86","v":0},{"$f":"Time!TDV$86","v":0},{"$f":"Time!TDW$86","v":0},{"$f":"Time!TDX$86","v":0},{"$f":"Time!TDY$86","v":0},{"$f":"Time!TDZ$86","v":0},{"$f":"Time!TEA$86","v":0},{"$f":"Time!TEB$86","v":0},{"$f":"Time!TEC$86","v":0},{"$f":"Time!TED$86","v":0},{"$f":"Time!TEE$86","v":0},{"$f":"Time!TEF$86","v":0},{"$f":"Time!TEG$86","v":0},{"$f":"Time!TEH$86","v":0},{"$f":"Time!TEI$86","v":0},{"$f":"Time!TEJ$86","v":0},{"$f":"Time!TEK$86","v":0},{"$f":"Time!TEL$86","v":0},{"$f":"Time!TEM$86","v":0},{"$f":"Time!TEN$86","v":0},{"$f":"Time!TEO$86","v":0},{"$f":"Time!TEP$86","v":0},{"$f":"Time!TEQ$86","v":0},{"$f":"Time!TER$86","v":0},{"$f":"Time!TES$86","v":0},{"$f":"Time!TET$86","v":0},{"$f":"Time!TEU$86","v":0},{"$f":"Time!TEV$86","v":0},{"$f":"Time!TEW$86","v":0},{"$f":"Time!TEX$86","v":0},{"$f":"Time!TEY$86","v":0},{"$f":"Time!TEZ$86","v":0},{"$f":"Time!TFA$86","v":0},{"$f":"Time!TFB$86","v":0},{"$f":"Time!TFC$86","v":0},{"$f":"Time!TFD$86","v":0},{"$f":"Time!TFE$86","v":0},{"$f":"Time!TFF$86","v":0},{"$f":"Time!TFG$86","v":0},{"$f":"Time!TFH$86","v":0},{"$f":"Time!TFI$86","v":0},{"$f":"Time!TFJ$86","v":0},{"$f":"Time!TFK$86","v":0},{"$f":"Time!TFL$86","v":0},{"$f":"Time!TFM$86","v":0},{"$f":"Time!TFN$86","v":0},{"$f":"Time!TFO$86","v":0},{"$f":"Time!TFP$86","v":0},{"$f":"Time!TFQ$86","v":0},{"$f":"Time!TFR$86","v":0},{"$f":"Time!TFS$86","v":0},{"$f":"Time!TFT$86","v":0},{"$f":"Time!TFU$86","v":0},{"$f":"Time!TFV$86","v":0},{"$f":"Time!TFW$86","v":0},{"$f":"Time!TFX$86","v":0},{"$f":"Time!TFY$86","v":0},{"$f":"Time!TFZ$86","v":0},{"$f":"Time!TGA$86","v":0},{"$f":"Time!TGB$86","v":0},{"$f":"Time!TGC$86","v":0},{"$f":"Time!TGD$86","v":0},{"$f":"Time!TGE$86","v":0},{"$f":"Time!TGF$86","v":0},{"$f":"Time!TGG$86","v":0},{"$f":"Time!TGH$86","v":0},{"$f":"Time!TGI$86","v":0},{"$f":"Time!TGJ$86","v":0},{"$f":"Time!TGK$86","v":0},{"$f":"Time!TGL$86","v":0},{"$f":"Time!TGM$86","v":0},{"$f":"Time!TGN$86","v":0},{"$f":"Time!TGO$86","v":0},{"$f":"Time!TGP$86","v":0},{"$f":"Time!TGQ$86","v":0},{"$f":"Time!TGR$86","v":0},{"$f":"Time!TGS$86","v":0},{"$f":"Time!TGT$86","v":0},{"$f":"Time!TGU$86","v":0},{"$f":"Time!TGV$86","v":0},{"$f":"Time!TGW$86","v":0},{"$f":"Time!TGX$86","v":0},{"$f":"Time!TGY$86","v":0},{"$f":"Time!TGZ$86","v":0},{"$f":"Time!THA$86","v":0},{"$f":"Time!THB$86","v":0},{"$f":"Time!THC$86","v":0},{"$f":"Time!THD$86","v":0},{"$f":"Time!THE$86","v":0},{"$f":"Time!THF$86","v":0},{"$f":"Time!THG$86","v":0},{"$f":"Time!THH$86","v":0},{"$f":"Time!THI$86","v":0},{"$f":"Time!THJ$86","v":0},{"$f":"Time!THK$86","v":0},{"$f":"Time!THL$86","v":0},{"$f":"Time!THM$86","v":0},{"$f":"Time!THN$86","v":0},{"$f":"Time!THO$86","v":0},{"$f":"Time!THP$86","v":0},{"$f":"Time!THQ$86","v":0},{"$f":"Time!THR$86","v":0},{"$f":"Time!THS$86","v":0},{"$f":"Time!THT$86","v":0},{"$f":"Time!THU$86","v":0},{"$f":"Time!THV$86","v":0},{"$f":"Time!THW$86","v":0},{"$f":"Time!THX$86","v":0},{"$f":"Time!THY$86","v":0},{"$f":"Time!THZ$86","v":0},{"$f":"Time!TIA$86","v":0},{"$f":"Time!TIB$86","v":0},{"$f":"Time!TIC$86","v":0},{"$f":"Time!TID$86","v":0},{"$f":"Time!TIE$86","v":0},{"$f":"Time!TIF$86","v":0},{"$f":"Time!TIG$86","v":0},{"$f":"Time!TIH$86","v":0},{"$f":"Time!TII$86","v":0},{"$f":"Time!TIJ$86","v":0},{"$f":"Time!TIK$86","v":0},{"$f":"Time!TIL$86","v":0},{"$f":"Time!TIM$86","v":0},{"$f":"Time!TIN$86","v":0},{"$f":"Time!TIO$86","v":0},{"$f":"Time!TIP$86","v":0},{"$f":"Time!TIQ$86","v":0},{"$f":"Time!TIR$86","v":0},{"$f":"Time!TIS$86","v":0},{"$f":"Time!TIT$86","v":0},{"$f":"Time!TIU$86","v":0},{"$f":"Time!TIV$86","v":0},{"$f":"Time!TIW$86","v":0},{"$f":"Time!TIX$86","v":0},{"$f":"Time!TIY$86","v":0},{"$f":"Time!TIZ$86","v":0},{"$f":"Time!TJA$86","v":0},{"$f":"Time!TJB$86","v":0},{"$f":"Time!TJC$86","v":0},{"$f":"Time!TJD$86","v":0},{"$f":"Time!TJE$86","v":0},{"$f":"Time!TJF$86","v":0},{"$f":"Time!TJG$86","v":0},{"$f":"Time!TJH$86","v":0},{"$f":"Time!TJI$86","v":0},{"$f":"Time!TJJ$86","v":0},{"$f":"Time!TJK$86","v":0},{"$f":"Time!TJL$86","v":0},{"$f":"Time!TJM$86","v":0},{"$f":"Time!TJN$86","v":0},{"$f":"Time!TJO$86","v":0},{"$f":"Time!TJP$86","v":0},{"$f":"Time!TJQ$86","v":0},{"$f":"Time!TJR$86","v":0},{"$f":"Time!TJS$86","v":0},{"$f":"Time!TJT$86","v":0},{"$f":"Time!TJU$86","v":0},{"$f":"Time!TJV$86","v":0},{"$f":"Time!TJW$86","v":0},{"$f":"Time!TJX$86","v":0},{"$f":"Time!TJY$86","v":0},{"$f":"Time!TJZ$86","v":0},{"$f":"Time!TKA$86","v":0},{"$f":"Time!TKB$86","v":0},{"$f":"Time!TKC$86","v":0},{"$f":"Time!TKD$86","v":0},{"$f":"Time!TKE$86","v":0},{"$f":"Time!TKF$86","v":0},{"$f":"Time!TKG$86","v":0},{"$f":"Time!TKH$86","v":0},{"$f":"Time!TKI$86","v":0},{"$f":"Time!TKJ$86","v":0},{"$f":"Time!TKK$86","v":0},{"$f":"Time!TKL$86","v":0},{"$f":"Time!TKM$86","v":0},{"$f":"Time!TKN$86","v":0},{"$f":"Time!TKO$86","v":0},{"$f":"Time!TKP$86","v":0},{"$f":"Time!TKQ$86","v":0},{"$f":"Time!TKR$86","v":0},{"$f":"Time!TKS$86","v":0},{"$f":"Time!TKT$86","v":0},{"$f":"Time!TKU$86","v":0},{"$f":"Time!TKV$86","v":0},{"$f":"Time!TKW$86","v":0},{"$f":"Time!TKX$86","v":0},{"$f":"Time!TKY$86","v":0},{"$f":"Time!TKZ$86","v":0},{"$f":"Time!TLA$86","v":0},{"$f":"Time!TLB$86","v":0},{"$f":"Time!TLC$86","v":0},{"$f":"Time!TLD$86","v":0},{"$f":"Time!TLE$86","v":0},{"$f":"Time!TLF$86","v":0},{"$f":"Time!TLG$86","v":0},{"$f":"Time!TLH$86","v":0},{"$f":"Time!TLI$86","v":0},{"$f":"Time!TLJ$86","v":0},{"$f":"Time!TLK$86","v":0},{"$f":"Time!TLL$86","v":0},{"$f":"Time!TLM$86","v":0},{"$f":"Time!TLN$86","v":0},{"$f":"Time!TLO$86","v":0},{"$f":"Time!TLP$86","v":0},{"$f":"Time!TLQ$86","v":0},{"$f":"Time!TLR$86","v":0},{"$f":"Time!TLS$86","v":0},{"$f":"Time!TLT$86","v":0},{"$f":"Time!TLU$86","v":0},{"$f":"Time!TLV$86","v":0},{"$f":"Time!TLW$86","v":0},{"$f":"Time!TLX$86","v":0},{"$f":"Time!TLY$86","v":0},{"$f":"Time!TLZ$86","v":0},{"$f":"Time!TMA$86","v":0},{"$f":"Time!TMB$86","v":0},{"$f":"Time!TMC$86","v":0},{"$f":"Time!TMD$86","v":0},{"$f":"Time!TME$86","v":0},{"$f":"Time!TMF$86","v":0},{"$f":"Time!TMG$86","v":0},{"$f":"Time!TMH$86","v":0},{"$f":"Time!TMI$86","v":0},{"$f":"Time!TMJ$86","v":0},{"$f":"Time!TMK$86","v":0},{"$f":"Time!TML$86","v":0},{"$f":"Time!TMM$86","v":0},{"$f":"Time!TMN$86","v":0},{"$f":"Time!TMO$86","v":0},{"$f":"Time!TMP$86","v":0},{"$f":"Time!TMQ$86","v":0},{"$f":"Time!TMR$86","v":0},{"$f":"Time!TMS$86","v":0},{"$f":"Time!TMT$86","v":0},{"$f":"Time!TMU$86","v":0},{"$f":"Time!TMV$86","v":0},{"$f":"Time!TMW$86","v":0},{"$f":"Time!TMX$86","v":0},{"$f":"Time!TMY$86","v":0},{"$f":"Time!TMZ$86","v":0},{"$f":"Time!TNA$86","v":0},{"$f":"Time!TNB$86","v":0},{"$f":"Time!TNC$86","v":0},{"$f":"Time!TND$86","v":0},{"$f":"Time!TNE$86","v":0},{"$f":"Time!TNF$86","v":0},{"$f":"Time!TNG$86","v":0},{"$f":"Time!TNH$86","v":0},{"$f":"Time!TNI$86","v":0},{"$f":"Time!TNJ$86","v":0},{"$f":"Time!TNK$86","v":0},{"$f":"Time!TNL$86","v":0},{"$f":"Time!TNM$86","v":0},{"$f":"Time!TNN$86","v":0},{"$f":"Time!TNO$86","v":0},{"$f":"Time!TNP$86","v":0},{"$f":"Time!TNQ$86","v":0},{"$f":"Time!TNR$86","v":0},{"$f":"Time!TNS$86","v":0},{"$f":"Time!TNT$86","v":0},{"$f":"Time!TNU$86","v":0},{"$f":"Time!TNV$86","v":0},{"$f":"Time!TNW$86","v":0},{"$f":"Time!TNX$86","v":0},{"$f":"Time!TNY$86","v":0},{"$f":"Time!TNZ$86","v":0},{"$f":"Time!TOA$86","v":0},{"$f":"Time!TOB$86","v":0},{"$f":"Time!TOC$86","v":0},{"$f":"Time!TOD$86","v":0},{"$f":"Time!TOE$86","v":0},{"$f":"Time!TOF$86","v":0},{"$f":"Time!TOG$86","v":0},{"$f":"Time!TOH$86","v":0},{"$f":"Time!TOI$86","v":0},{"$f":"Time!TOJ$86","v":0},{"$f":"Time!TOK$86","v":0},{"$f":"Time!TOL$86","v":0},{"$f":"Time!TOM$86","v":0},{"$f":"Time!TON$86","v":0},{"$f":"Time!TOO$86","v":0},{"$f":"Time!TOP$86","v":0},{"$f":"Time!TOQ$86","v":0},{"$f":"Time!TOR$86","v":0},{"$f":"Time!TOS$86","v":0},{"$f":"Time!TOT$86","v":0},{"$f":"Time!TOU$86","v":0},{"$f":"Time!TOV$86","v":0},{"$f":"Time!TOW$86","v":0},{"$f":"Time!TOX$86","v":0},{"$f":"Time!TOY$86","v":0},{"$f":"Time!TOZ$86","v":0},{"$f":"Time!TPA$86","v":0},{"$f":"Time!TPB$86","v":0},{"$f":"Time!TPC$86","v":0},{"$f":"Time!TPD$86","v":0},{"$f":"Time!TPE$86","v":0},{"$f":"Time!TPF$86","v":0},{"$f":"Time!TPG$86","v":0},{"$f":"Time!TPH$86","v":0},{"$f":"Time!TPI$86","v":0},{"$f":"Time!TPJ$86","v":0},{"$f":"Time!TPK$86","v":0},{"$f":"Time!TPL$86","v":0},{"$f":"Time!TPM$86","v":0},{"$f":"Time!TPN$86","v":0},{"$f":"Time!TPO$86","v":0},{"$f":"Time!TPP$86","v":0},{"$f":"Time!TPQ$86","v":0},{"$f":"Time!TPR$86","v":0},{"$f":"Time!TPS$86","v":0},{"$f":"Time!TPT$86","v":0},{"$f":"Time!TPU$86","v":0},{"$f":"Time!TPV$86","v":0},{"$f":"Time!TPW$86","v":0},{"$f":"Time!TPX$86","v":0},{"$f":"Time!TPY$86","v":0},{"$f":"Time!TPZ$86","v":0},{"$f":"Time!TQA$86","v":0},{"$f":"Time!TQB$86","v":0},{"$f":"Time!TQC$86","v":0},{"$f":"Time!TQD$86","v":0},{"$f":"Time!TQE$86","v":0},{"$f":"Time!TQF$86","v":0},{"$f":"Time!TQG$86","v":0},{"$f":"Time!TQH$86","v":0},{"$f":"Time!TQI$86","v":0},{"$f":"Time!TQJ$86","v":0},{"$f":"Time!TQK$86","v":0},{"$f":"Time!TQL$86","v":0},{"$f":"Time!TQM$86","v":0},{"$f":"Time!TQN$86","v":0},{"$f":"Time!TQO$86","v":0},{"$f":"Time!TQP$86","v":0},{"$f":"Time!TQQ$86","v":0},{"$f":"Time!TQR$86","v":0},{"$f":"Time!TQS$86","v":0},{"$f":"Time!TQT$86","v":0},{"$f":"Time!TQU$86","v":0},{"$f":"Time!TQV$86","v":0},{"$f":"Time!TQW$86","v":0},{"$f":"Time!TQX$86","v":0},{"$f":"Time!TQY$86","v":0},{"$f":"Time!TQZ$86","v":0},{"$f":"Time!TRA$86","v":0},{"$f":"Time!TRB$86","v":0},{"$f":"Time!TRC$86","v":0},{"$f":"Time!TRD$86","v":0},{"$f":"Time!TRE$86","v":0},{"$f":"Time!TRF$86","v":0},{"$f":"Time!TRG$86","v":0},{"$f":"Time!TRH$86","v":0},{"$f":"Time!TRI$86","v":0},{"$f":"Time!TRJ$86","v":0},{"$f":"Time!TRK$86","v":0},{"$f":"Time!TRL$86","v":0},{"$f":"Time!TRM$86","v":0},{"$f":"Time!TRN$86","v":0},{"$f":"Time!TRO$86","v":0},{"$f":"Time!TRP$86","v":0},{"$f":"Time!TRQ$86","v":0},{"$f":"Time!TRR$86","v":0},{"$f":"Time!TRS$86","v":0},{"$f":"Time!TRT$86","v":0},{"$f":"Time!TRU$86","v":0},{"$f":"Time!TRV$86","v":0},{"$f":"Time!TRW$86","v":0},{"$f":"Time!TRX$86","v":0},{"$f":"Time!TRY$86","v":0},{"$f":"Time!TRZ$86","v":0},{"$f":"Time!TSA$86","v":0},{"$f":"Time!TSB$86","v":0},{"$f":"Time!TSC$86","v":0},{"$f":"Time!TSD$86","v":0},{"$f":"Time!TSE$86","v":0},{"$f":"Time!TSF$86","v":0},{"$f":"Time!TSG$86","v":0},{"$f":"Time!TSH$86","v":0},{"$f":"Time!TSI$86","v":0},{"$f":"Time!TSJ$86","v":0},{"$f":"Time!TSK$86","v":0},{"$f":"Time!TSL$86","v":0},{"$f":"Time!TSM$86","v":0},{"$f":"Time!TSN$86","v":0},{"$f":"Time!TSO$86","v":0},{"$f":"Time!TSP$86","v":0},{"$f":"Time!TSQ$86","v":0},{"$f":"Time!TSR$86","v":0},{"$f":"Time!TSS$86","v":0},{"$f":"Time!TST$86","v":0},{"$f":"Time!TSU$86","v":0},{"$f":"Time!TSV$86","v":0},{"$f":"Time!TSW$86","v":0},{"$f":"Time!TSX$86","v":0},{"$f":"Time!TSY$86","v":0},{"$f":"Time!TSZ$86","v":0},{"$f":"Time!TTA$86","v":0},{"$f":"Time!TTB$86","v":0},{"$f":"Time!TTC$86","v":0},{"$f":"Time!TTD$86","v":0},{"$f":"Time!TTE$86","v":0},{"$f":"Time!TTF$86","v":0},{"$f":"Time!TTG$86","v":0},{"$f":"Time!TTH$86","v":0},{"$f":"Time!TTI$86","v":0},{"$f":"Time!TTJ$86","v":0},{"$f":"Time!TTK$86","v":0},{"$f":"Time!TTL$86","v":0},{"$f":"Time!TTM$86","v":0},{"$f":"Time!TTN$86","v":0},{"$f":"Time!TTO$86","v":0},{"$f":"Time!TTP$86","v":0},{"$f":"Time!TTQ$86","v":0},{"$f":"Time!TTR$86","v":0},{"$f":"Time!TTS$86","v":0},{"$f":"Time!TTT$86","v":0},{"$f":"Time!TTU$86","v":0},{"$f":"Time!TTV$86","v":0},{"$f":"Time!TTW$86","v":0},{"$f":"Time!TTX$86","v":0},{"$f":"Time!TTY$86","v":0},{"$f":"Time!TTZ$86","v":0},{"$f":"Time!TUA$86","v":0},{"$f":"Time!TUB$86","v":0},{"$f":"Time!TUC$86","v":0},{"$f":"Time!TUD$86","v":0},{"$f":"Time!TUE$86","v":0},{"$f":"Time!TUF$86","v":0},{"$f":"Time!TUG$86","v":0},{"$f":"Time!TUH$86","v":0},{"$f":"Time!TUI$86","v":0},{"$f":"Time!TUJ$86","v":0},{"$f":"Time!TUK$86","v":0},{"$f":"Time!TUL$86","v":0},{"$f":"Time!TUM$86","v":0},{"$f":"Time!TUN$86","v":0},{"$f":"Time!TUO$86","v":0},{"$f":"Time!TUP$86","v":0},{"$f":"Time!TUQ$86","v":0},{"$f":"Time!TUR$86","v":0},{"$f":"Time!TUS$86","v":0},{"$f":"Time!TUT$86","v":0},{"$f":"Time!TUU$86","v":0},{"$f":"Time!TUV$86","v":0},{"$f":"Time!TUW$86","v":0},{"$f":"Time!TUX$86","v":0},{"$f":"Time!TUY$86","v":0},{"$f":"Time!TUZ$86","v":0},{"$f":"Time!TVA$86","v":0},{"$f":"Time!TVB$86","v":0},{"$f":"Time!TVC$86","v":0},{"$f":"Time!TVD$86","v":0},{"$f":"Time!TVE$86","v":0},{"$f":"Time!TVF$86","v":0},{"$f":"Time!TVG$86","v":0},{"$f":"Time!TVH$86","v":0},{"$f":"Time!TVI$86","v":0},{"$f":"Time!TVJ$86","v":0},{"$f":"Time!TVK$86","v":0},{"$f":"Time!TVL$86","v":0},{"$f":"Time!TVM$86","v":0},{"$f":"Time!TVN$86","v":0},{"$f":"Time!TVO$86","v":0},{"$f":"Time!TVP$86","v":0},{"$f":"Time!TVQ$86","v":0},{"$f":"Time!TVR$86","v":0},{"$f":"Time!TVS$86","v":0},{"$f":"Time!TVT$86","v":0},{"$f":"Time!TVU$86","v":0},{"$f":"Time!TVV$86","v":0},{"$f":"Time!TVW$86","v":0},{"$f":"Time!TVX$86","v":0},{"$f":"Time!TVY$86","v":0},{"$f":"Time!TVZ$86","v":0},{"$f":"Time!TWA$86","v":0},{"$f":"Time!TWB$86","v":0},{"$f":"Time!TWC$86","v":0},{"$f":"Time!TWD$86","v":0},{"$f":"Time!TWE$86","v":0},{"$f":"Time!TWF$86","v":0},{"$f":"Time!TWG$86","v":0},{"$f":"Time!TWH$86","v":0},{"$f":"Time!TWI$86","v":0},{"$f":"Time!TWJ$86","v":0},{"$f":"Time!TWK$86","v":0},{"$f":"Time!TWL$86","v":0},{"$f":"Time!TWM$86","v":0},{"$f":"Time!TWN$86","v":0},{"$f":"Time!TWO$86","v":0},{"$f":"Time!TWP$86","v":0},{"$f":"Time!TWQ$86","v":0},{"$f":"Time!TWR$86","v":0},{"$f":"Time!TWS$86","v":0},{"$f":"Time!TWT$86","v":0},{"$f":"Time!TWU$86","v":0},{"$f":"Time!TWV$86","v":0},{"$f":"Time!TWW$86","v":0},{"$f":"Time!TWX$86","v":0},{"$f":"Time!TWY$86","v":0},{"$f":"Time!TWZ$86","v":0},{"$f":"Time!TXA$86","v":0},{"$f":"Time!TXB$86","v":0},{"$f":"Time!TXC$86","v":0},{"$f":"Time!TXD$86","v":0},{"$f":"Time!TXE$86","v":0},{"$f":"Time!TXF$86","v":0},{"$f":"Time!TXG$86","v":0},{"$f":"Time!TXH$86","v":0},{"$f":"Time!TXI$86","v":0},{"$f":"Time!TXJ$86","v":0},{"$f":"Time!TXK$86","v":0},{"$f":"Time!TXL$86","v":0},{"$f":"Time!TXM$86","v":0},{"$f":"Time!TXN$86","v":0},{"$f":"Time!TXO$86","v":0},{"$f":"Time!TXP$86","v":0},{"$f":"Time!TXQ$86","v":0},{"$f":"Time!TXR$86","v":0},{"$f":"Time!TXS$86","v":0},{"$f":"Time!TXT$86","v":0},{"$f":"Time!TXU$86","v":0},{"$f":"Time!TXV$86","v":0},{"$f":"Time!TXW$86","v":0},{"$f":"Time!TXX$86","v":0},{"$f":"Time!TXY$86","v":0},{"$f":"Time!TXZ$86","v":0},{"$f":"Time!TYA$86","v":0},{"$f":"Time!TYB$86","v":0},{"$f":"Time!TYC$86","v":0},{"$f":"Time!TYD$86","v":0},{"$f":"Time!TYE$86","v":0},{"$f":"Time!TYF$86","v":0},{"$f":"Time!TYG$86","v":0},{"$f":"Time!TYH$86","v":0},{"$f":"Time!TYI$86","v":0},{"$f":"Time!TYJ$86","v":0},{"$f":"Time!TYK$86","v":0},{"$f":"Time!TYL$86","v":0},{"$f":"Time!TYM$86","v":0},{"$f":"Time!TYN$86","v":0},{"$f":"Time!TYO$86","v":0},{"$f":"Time!TYP$86","v":0},{"$f":"Time!TYQ$86","v":0},{"$f":"Time!TYR$86","v":0},{"$f":"Time!TYS$86","v":0},{"$f":"Time!TYT$86","v":0},{"$f":"Time!TYU$86","v":0},{"$f":"Time!TYV$86","v":0},{"$f":"Time!TYW$86","v":0},{"$f":"Time!TYX$86","v":0},{"$f":"Time!TYY$86","v":0},{"$f":"Time!TYZ$86","v":0},{"$f":"Time!TZA$86","v":0},{"$f":"Time!TZB$86","v":0},{"$f":"Time!TZC$86","v":0},{"$f":"Time!TZD$86","v":0},{"$f":"Time!TZE$86","v":0},{"$f":"Time!TZF$86","v":0},{"$f":"Time!TZG$86","v":0},{"$f":"Time!TZH$86","v":0},{"$f":"Time!TZI$86","v":0},{"$f":"Time!TZJ$86","v":0},{"$f":"Time!TZK$86","v":0},{"$f":"Time!TZL$86","v":0},{"$f":"Time!TZM$86","v":0},{"$f":"Time!TZN$86","v":0},{"$f":"Time!TZO$86","v":0},{"$f":"Time!TZP$86","v":0},{"$f":"Time!TZQ$86","v":0},{"$f":"Time!TZR$86","v":0},{"$f":"Time!TZS$86","v":0},{"$f":"Time!TZT$86","v":0},{"$f":"Time!TZU$86","v":0},{"$f":"Time!TZV$86","v":0},{"$f":"Time!TZW$86","v":0},{"$f":"Time!TZX$86","v":0},{"$f":"Time!TZY$86","v":0},{"$f":"Time!TZZ$86","v":0},{"$f":"Time!UAA$86","v":0},{"$f":"Time!UAB$86","v":0},{"$f":"Time!UAC$86","v":0},{"$f":"Time!UAD$86","v":0},{"$f":"Time!UAE$86","v":0},{"$f":"Time!UAF$86","v":0},{"$f":"Time!UAG$86","v":0},{"$f":"Time!UAH$86","v":0},{"$f":"Time!UAI$86","v":0},{"$f":"Time!UAJ$86","v":0},{"$f":"Time!UAK$86","v":0},{"$f":"Time!UAL$86","v":0},{"$f":"Time!UAM$86","v":0},{"$f":"Time!UAN$86","v":0},{"$f":"Time!UAO$86","v":0},{"$f":"Time!UAP$86","v":0},{"$f":"Time!UAQ$86","v":0},{"$f":"Time!UAR$86","v":0},{"$f":"Time!UAS$86","v":0},{"$f":"Time!UAT$86","v":0},{"$f":"Time!UAU$86","v":0},{"$f":"Time!UAV$86","v":0},{"$f":"Time!UAW$86","v":0},{"$f":"Time!UAX$86","v":0},{"$f":"Time!UAY$86","v":0},{"$f":"Time!UAZ$86","v":0},{"$f":"Time!UBA$86","v":0},{"$f":"Time!UBB$86","v":0},{"$f":"Time!UBC$86","v":0},{"$f":"Time!UBD$86","v":0},{"$f":"Time!UBE$86","v":0},{"$f":"Time!UBF$86","v":0},{"$f":"Time!UBG$86","v":0},{"$f":"Time!UBH$86","v":0},{"$f":"Time!UBI$86","v":0},{"$f":"Time!UBJ$86","v":0},{"$f":"Time!UBK$86","v":0},{"$f":"Time!UBL$86","v":0},{"$f":"Time!UBM$86","v":0},{"$f":"Time!UBN$86","v":0},{"$f":"Time!UBO$86","v":0},{"$f":"Time!UBP$86","v":0},{"$f":"Time!UBQ$86","v":0},{"$f":"Time!UBR$86","v":0},{"$f":"Time!UBS$86","v":0},{"$f":"Time!UBT$86","v":0},{"$f":"Time!UBU$86","v":0},{"$f":"Time!UBV$86","v":0},{"$f":"Time!UBW$86","v":0},{"$f":"Time!UBX$86","v":0},{"$f":"Time!UBY$86","v":0},{"$f":"Time!UBZ$86","v":0},{"$f":"Time!UCA$86","v":0},{"$f":"Time!UCB$86","v":0},{"$f":"Time!UCC$86","v":0},{"$f":"Time!UCD$86","v":0},{"$f":"Time!UCE$86","v":0},{"$f":"Time!UCF$86","v":0},{"$f":"Time!UCG$86","v":0},{"$f":"Time!UCH$86","v":0},{"$f":"Time!UCI$86","v":0},{"$f":"Time!UCJ$86","v":0},{"$f":"Time!UCK$86","v":0},{"$f":"Time!UCL$86","v":0},{"$f":"Time!UCM$86","v":0},{"$f":"Time!UCN$86","v":0},{"$f":"Time!UCO$86","v":0},{"$f":"Time!UCP$86","v":0},{"$f":"Time!UCQ$86","v":0},{"$f":"Time!UCR$86","v":0},{"$f":"Time!UCS$86","v":0},{"$f":"Time!UCT$86","v":0},{"$f":"Time!UCU$86","v":0},{"$f":"Time!UCV$86","v":0},{"$f":"Time!UCW$86","v":0},{"$f":"Time!UCX$86","v":0},{"$f":"Time!UCY$86","v":0},{"$f":"Time!UCZ$86","v":0},{"$f":"Time!UDA$86","v":0},{"$f":"Time!UDB$86","v":0},{"$f":"Time!UDC$86","v":0},{"$f":"Time!UDD$86","v":0},{"$f":"Time!UDE$86","v":0},{"$f":"Time!UDF$86","v":0},{"$f":"Time!UDG$86","v":0},{"$f":"Time!UDH$86","v":0},{"$f":"Time!UDI$86","v":0},{"$f":"Time!UDJ$86","v":0},{"$f":"Time!UDK$86","v":0},{"$f":"Time!UDL$86","v":0},{"$f":"Time!UDM$86","v":0},{"$f":"Time!UDN$86","v":0},{"$f":"Time!UDO$86","v":0},{"$f":"Time!UDP$86","v":0},{"$f":"Time!UDQ$86","v":0},{"$f":"Time!UDR$86","v":0},{"$f":"Time!UDS$86","v":0},{"$f":"Time!UDT$86","v":0},{"$f":"Time!UDU$86","v":0},{"$f":"Time!UDV$86","v":0},{"$f":"Time!UDW$86","v":0},{"$f":"Time!UDX$86","v":0},{"$f":"Time!UDY$86","v":0},{"$f":"Time!UDZ$86","v":0},{"$f":"Time!UEA$86","v":0},{"$f":"Time!UEB$86","v":0},{"$f":"Time!UEC$86","v":0},{"$f":"Time!UED$86","v":0},{"$f":"Time!UEE$86","v":0},{"$f":"Time!UEF$86","v":0},{"$f":"Time!UEG$86","v":0},{"$f":"Time!UEH$86","v":0},{"$f":"Time!UEI$86","v":0},{"$f":"Time!UEJ$86","v":0},{"$f":"Time!UEK$86","v":0},{"$f":"Time!UEL$86","v":0},{"$f":"Time!UEM$86","v":0},{"$f":"Time!UEN$86","v":0},{"$f":"Time!UEO$86","v":0},{"$f":"Time!UEP$86","v":0},{"$f":"Time!UEQ$86","v":0},{"$f":"Time!UER$86","v":0},{"$f":"Time!UES$86","v":0},{"$f":"Time!UET$86","v":0},{"$f":"Time!UEU$86","v":0},{"$f":"Time!UEV$86","v":0},{"$f":"Time!UEW$86","v":0},{"$f":"Time!UEX$86","v":0},{"$f":"Time!UEY$86","v":0},{"$f":"Time!UEZ$86","v":0},{"$f":"Time!UFA$86","v":0},{"$f":"Time!UFB$86","v":0},{"$f":"Time!UFC$86","v":0},{"$f":"Time!UFD$86","v":0},{"$f":"Time!UFE$86","v":0},{"$f":"Time!UFF$86","v":0},{"$f":"Time!UFG$86","v":0},{"$f":"Time!UFH$86","v":0},{"$f":"Time!UFI$86","v":0},{"$f":"Time!UFJ$86","v":0},{"$f":"Time!UFK$86","v":0},{"$f":"Time!UFL$86","v":0},{"$f":"Time!UFM$86","v":0},{"$f":"Time!UFN$86","v":0},{"$f":"Time!UFO$86","v":0},{"$f":"Time!UFP$86","v":0},{"$f":"Time!UFQ$86","v":0},{"$f":"Time!UFR$86","v":0},{"$f":"Time!UFS$86","v":0},{"$f":"Time!UFT$86","v":0},{"$f":"Time!UFU$86","v":0},{"$f":"Time!UFV$86","v":0},{"$f":"Time!UFW$86","v":0},{"$f":"Time!UFX$86","v":0},{"$f":"Time!UFY$86","v":0},{"$f":"Time!UFZ$86","v":0},{"$f":"Time!UGA$86","v":0},{"$f":"Time!UGB$86","v":0},{"$f":"Time!UGC$86","v":0},{"$f":"Time!UGD$86","v":0},{"$f":"Time!UGE$86","v":0},{"$f":"Time!UGF$86","v":0},{"$f":"Time!UGG$86","v":0},{"$f":"Time!UGH$86","v":0},{"$f":"Time!UGI$86","v":0},{"$f":"Time!UGJ$86","v":0},{"$f":"Time!UGK$86","v":0},{"$f":"Time!UGL$86","v":0},{"$f":"Time!UGM$86","v":0},{"$f":"Time!UGN$86","v":0},{"$f":"Time!UGO$86","v":0},{"$f":"Time!UGP$86","v":0},{"$f":"Time!UGQ$86","v":0},{"$f":"Time!UGR$86","v":0},{"$f":"Time!UGS$86","v":0},{"$f":"Time!UGT$86","v":0},{"$f":"Time!UGU$86","v":0},{"$f":"Time!UGV$86","v":0},{"$f":"Time!UGW$86","v":0},{"$f":"Time!UGX$86","v":0},{"$f":"Time!UGY$86","v":0},{"$f":"Time!UGZ$86","v":0},{"$f":"Time!UHA$86","v":0},{"$f":"Time!UHB$86","v":0},{"$f":"Time!UHC$86","v":0},{"$f":"Time!UHD$86","v":0},{"$f":"Time!UHE$86","v":0},{"$f":"Time!UHF$86","v":0},{"$f":"Time!UHG$86","v":0},{"$f":"Time!UHH$86","v":0},{"$f":"Time!UHI$86","v":0},{"$f":"Time!UHJ$86","v":0},{"$f":"Time!UHK$86","v":0},{"$f":"Time!UHL$86","v":0},{"$f":"Time!UHM$86","v":0},{"$f":"Time!UHN$86","v":0},{"$f":"Time!UHO$86","v":0},{"$f":"Time!UHP$86","v":0},{"$f":"Time!UHQ$86","v":0},{"$f":"Time!UHR$86","v":0},{"$f":"Time!UHS$86","v":0},{"$f":"Time!UHT$86","v":0},{"$f":"Time!UHU$86","v":0},{"$f":"Time!UHV$86","v":0},{"$f":"Time!UHW$86","v":0},{"$f":"Time!UHX$86","v":0},{"$f":"Time!UHY$86","v":0},{"$f":"Time!UHZ$86","v":0},{"$f":"Time!UIA$86","v":0},{"$f":"Time!UIB$86","v":0},{"$f":"Time!UIC$86","v":0},{"$f":"Time!UID$86","v":0},{"$f":"Time!UIE$86","v":0},{"$f":"Time!UIF$86","v":0},{"$f":"Time!UIG$86","v":0},{"$f":"Time!UIH$86","v":0},{"$f":"Time!UII$86","v":0},{"$f":"Time!UIJ$86","v":0},{"$f":"Time!UIK$86","v":0},{"$f":"Time!UIL$86","v":0},{"$f":"Time!UIM$86","v":0},{"$f":"Time!UIN$86","v":0},{"$f":"Time!UIO$86","v":0},{"$f":"Time!UIP$86","v":0},{"$f":"Time!UIQ$86","v":0},{"$f":"Time!UIR$86","v":0},{"$f":"Time!UIS$86","v":0},{"$f":"Time!UIT$86","v":0},{"$f":"Time!UIU$86","v":0},{"$f":"Time!UIV$86","v":0},{"$f":"Time!UIW$86","v":0},{"$f":"Time!UIX$86","v":0},{"$f":"Time!UIY$86","v":0},{"$f":"Time!UIZ$86","v":0},{"$f":"Time!UJA$86","v":0},{"$f":"Time!UJB$86","v":0},{"$f":"Time!UJC$86","v":0},{"$f":"Time!UJD$86","v":0},{"$f":"Time!UJE$86","v":0},{"$f":"Time!UJF$86","v":0},{"$f":"Time!UJG$86","v":0},{"$f":"Time!UJH$86","v":0},{"$f":"Time!UJI$86","v":0},{"$f":"Time!UJJ$86","v":0},{"$f":"Time!UJK$86","v":0},{"$f":"Time!UJL$86","v":0},{"$f":"Time!UJM$86","v":0},{"$f":"Time!UJN$86","v":0},{"$f":"Time!UJO$86","v":0},{"$f":"Time!UJP$86","v":0},{"$f":"Time!UJQ$86","v":0},{"$f":"Time!UJR$86","v":0},{"$f":"Time!UJS$86","v":0},{"$f":"Time!UJT$86","v":0},{"$f":"Time!UJU$86","v":0},{"$f":"Time!UJV$86","v":0},{"$f":"Time!UJW$86","v":0},{"$f":"Time!UJX$86","v":0},{"$f":"Time!UJY$86","v":0},{"$f":"Time!UJZ$86","v":0},{"$f":"Time!UKA$86","v":0},{"$f":"Time!UKB$86","v":0},{"$f":"Time!UKC$86","v":0},{"$f":"Time!UKD$86","v":0},{"$f":"Time!UKE$86","v":0},{"$f":"Time!UKF$86","v":0},{"$f":"Time!UKG$86","v":0},{"$f":"Time!UKH$86","v":0},{"$f":"Time!UKI$86","v":0},{"$f":"Time!UKJ$86","v":0},{"$f":"Time!UKK$86","v":0},{"$f":"Time!UKL$86","v":0},{"$f":"Time!UKM$86","v":0},{"$f":"Time!UKN$86","v":0},{"$f":"Time!UKO$86","v":0},{"$f":"Time!UKP$86","v":0},{"$f":"Time!UKQ$86","v":0},{"$f":"Time!UKR$86","v":0},{"$f":"Time!UKS$86","v":0},{"$f":"Time!UKT$86","v":0},{"$f":"Time!UKU$86","v":0},{"$f":"Time!UKV$86","v":0},{"$f":"Time!UKW$86","v":0},{"$f":"Time!UKX$86","v":0},{"$f":"Time!UKY$86","v":0},{"$f":"Time!UKZ$86","v":0},{"$f":"Time!ULA$86","v":0},{"$f":"Time!ULB$86","v":0},{"$f":"Time!ULC$86","v":0},{"$f":"Time!ULD$86","v":0},{"$f":"Time!ULE$86","v":0},{"$f":"Time!ULF$86","v":0},{"$f":"Time!ULG$86","v":0},{"$f":"Time!ULH$86","v":0},{"$f":"Time!ULI$86","v":0},{"$f":"Time!ULJ$86","v":0},{"$f":"Time!ULK$86","v":0},{"$f":"Time!ULL$86","v":0},{"$f":"Time!ULM$86","v":0},{"$f":"Time!ULN$86","v":0},{"$f":"Time!ULO$86","v":0},{"$f":"Time!ULP$86","v":0},{"$f":"Time!ULQ$86","v":0},{"$f":"Time!ULR$86","v":0},{"$f":"Time!ULS$86","v":0},{"$f":"Time!ULT$86","v":0},{"$f":"Time!ULU$86","v":0},{"$f":"Time!ULV$86","v":0},{"$f":"Time!ULW$86","v":0},{"$f":"Time!ULX$86","v":0},{"$f":"Time!ULY$86","v":0},{"$f":"Time!ULZ$86","v":0},{"$f":"Time!UMA$86","v":0},{"$f":"Time!UMB$86","v":0},{"$f":"Time!UMC$86","v":0},{"$f":"Time!UMD$86","v":0},{"$f":"Time!UME$86","v":0},{"$f":"Time!UMF$86","v":0},{"$f":"Time!UMG$86","v":0},{"$f":"Time!UMH$86","v":0},{"$f":"Time!UMI$86","v":0},{"$f":"Time!UMJ$86","v":0},{"$f":"Time!UMK$86","v":0},{"$f":"Time!UML$86","v":0},{"$f":"Time!UMM$86","v":0},{"$f":"Time!UMN$86","v":0},{"$f":"Time!UMO$86","v":0},{"$f":"Time!UMP$86","v":0},{"$f":"Time!UMQ$86","v":0},{"$f":"Time!UMR$86","v":0},{"$f":"Time!UMS$86","v":0},{"$f":"Time!UMT$86","v":0},{"$f":"Time!UMU$86","v":0},{"$f":"Time!UMV$86","v":0},{"$f":"Time!UMW$86","v":0},{"$f":"Time!UMX$86","v":0},{"$f":"Time!UMY$86","v":0},{"$f":"Time!UMZ$86","v":0},{"$f":"Time!UNA$86","v":0},{"$f":"Time!UNB$86","v":0},{"$f":"Time!UNC$86","v":0},{"$f":"Time!UND$86","v":0},{"$f":"Time!UNE$86","v":0},{"$f":"Time!UNF$86","v":0},{"$f":"Time!UNG$86","v":0},{"$f":"Time!UNH$86","v":0},{"$f":"Time!UNI$86","v":0},{"$f":"Time!UNJ$86","v":0},{"$f":"Time!UNK$86","v":0},{"$f":"Time!UNL$86","v":0},{"$f":"Time!UNM$86","v":0},{"$f":"Time!UNN$86","v":0},{"$f":"Time!UNO$86","v":0},{"$f":"Time!UNP$86","v":0},{"$f":"Time!UNQ$86","v":0},{"$f":"Time!UNR$86","v":0},{"$f":"Time!UNS$86","v":0},{"$f":"Time!UNT$86","v":0},{"$f":"Time!UNU$86","v":0},{"$f":"Time!UNV$86","v":0},{"$f":"Time!UNW$86","v":0},{"$f":"Time!UNX$86","v":0},{"$f":"Time!UNY$86","v":0},{"$f":"Time!UNZ$86","v":0},{"$f":"Time!UOA$86","v":0},{"$f":"Time!UOB$86","v":0},{"$f":"Time!UOC$86","v":0},{"$f":"Time!UOD$86","v":0},{"$f":"Time!UOE$86","v":0},{"$f":"Time!UOF$86","v":0},{"$f":"Time!UOG$86","v":0},{"$f":"Time!UOH$86","v":0},{"$f":"Time!UOI$86","v":0},{"$f":"Time!UOJ$86","v":0},{"$f":"Time!UOK$86","v":0},{"$f":"Time!UOL$86","v":0},{"$f":"Time!UOM$86","v":0},{"$f":"Time!UON$86","v":0},{"$f":"Time!UOO$86","v":0},{"$f":"Time!UOP$86","v":0},{"$f":"Time!UOQ$86","v":0},{"$f":"Time!UOR$86","v":0},{"$f":"Time!UOS$86","v":0},{"$f":"Time!UOT$86","v":0},{"$f":"Time!UOU$86","v":0},{"$f":"Time!UOV$86","v":0},{"$f":"Time!UOW$86","v":0},{"$f":"Time!UOX$86","v":0},{"$f":"Time!UOY$86","v":0},{"$f":"Time!UOZ$86","v":0},{"$f":"Time!UPA$86","v":0},{"$f":"Time!UPB$86","v":0},{"$f":"Time!UPC$86","v":0},{"$f":"Time!UPD$86","v":0},{"$f":"Time!UPE$86","v":0},{"$f":"Time!UPF$86","v":0},{"$f":"Time!UPG$86","v":0},{"$f":"Time!UPH$86","v":0},{"$f":"Time!UPI$86","v":0},{"$f":"Time!UPJ$86","v":0},{"$f":"Time!UPK$86","v":0},{"$f":"Time!UPL$86","v":0},{"$f":"Time!UPM$86","v":0},{"$f":"Time!UPN$86","v":0},{"$f":"Time!UPO$86","v":0},{"$f":"Time!UPP$86","v":0},{"$f":"Time!UPQ$86","v":0},{"$f":"Time!UPR$86","v":0},{"$f":"Time!UPS$86","v":0},{"$f":"Time!UPT$86","v":0},{"$f":"Time!UPU$86","v":0},{"$f":"Time!UPV$86","v":0},{"$f":"Time!UPW$86","v":0},{"$f":"Time!UPX$86","v":0},{"$f":"Time!UPY$86","v":0},{"$f":"Time!UPZ$86","v":0},{"$f":"Time!UQA$86","v":0},{"$f":"Time!UQB$86","v":0},{"$f":"Time!UQC$86","v":0},{"$f":"Time!UQD$86","v":0},{"$f":"Time!UQE$86","v":0},{"$f":"Time!UQF$86","v":0},{"$f":"Time!UQG$86","v":0},{"$f":"Time!UQH$86","v":0},{"$f":"Time!UQI$86","v":0},{"$f":"Time!UQJ$86","v":0},{"$f":"Time!UQK$86","v":0},{"$f":"Time!UQL$86","v":0},{"$f":"Time!UQM$86","v":0},{"$f":"Time!UQN$86","v":0},{"$f":"Time!UQO$86","v":0},{"$f":"Time!UQP$86","v":0},{"$f":"Time!UQQ$86","v":0},{"$f":"Time!UQR$86","v":0},{"$f":"Time!UQS$86","v":0},{"$f":"Time!UQT$86","v":0},{"$f":"Time!UQU$86","v":0},{"$f":"Time!UQV$86","v":0},{"$f":"Time!UQW$86","v":0},{"$f":"Time!UQX$86","v":0},{"$f":"Time!UQY$86","v":0},{"$f":"Time!UQZ$86","v":0},{"$f":"Time!URA$86","v":0},{"$f":"Time!URB$86","v":0},{"$f":"Time!URC$86","v":0},{"$f":"Time!URD$86","v":0},{"$f":"Time!URE$86","v":0},{"$f":"Time!URF$86","v":0},{"$f":"Time!URG$86","v":0},{"$f":"Time!URH$86","v":0},{"$f":"Time!URI$86","v":0},{"$f":"Time!URJ$86","v":0},{"$f":"Time!URK$86","v":0},{"$f":"Time!URL$86","v":0},{"$f":"Time!URM$86","v":0},{"$f":"Time!URN$86","v":0},{"$f":"Time!URO$86","v":0},{"$f":"Time!URP$86","v":0},{"$f":"Time!URQ$86","v":0},{"$f":"Time!URR$86","v":0},{"$f":"Time!URS$86","v":0},{"$f":"Time!URT$86","v":0},{"$f":"Time!URU$86","v":0},{"$f":"Time!URV$86","v":0},{"$f":"Time!URW$86","v":0},{"$f":"Time!URX$86","v":0},{"$f":"Time!URY$86","v":0},{"$f":"Time!URZ$86","v":0},{"$f":"Time!USA$86","v":0},{"$f":"Time!USB$86","v":0},{"$f":"Time!USC$86","v":0},{"$f":"Time!USD$86","v":0},{"$f":"Time!USE$86","v":0},{"$f":"Time!USF$86","v":0},{"$f":"Time!USG$86","v":0},{"$f":"Time!USH$86","v":0},{"$f":"Time!USI$86","v":0},{"$f":"Time!USJ$86","v":0},{"$f":"Time!USK$86","v":0},{"$f":"Time!USL$86","v":0},{"$f":"Time!USM$86","v":0},{"$f":"Time!USN$86","v":0},{"$f":"Time!USO$86","v":0},{"$f":"Time!USP$86","v":0},{"$f":"Time!USQ$86","v":0},{"$f":"Time!USR$86","v":0},{"$f":"Time!USS$86","v":0},{"$f":"Time!UST$86","v":0},{"$f":"Time!USU$86","v":0},{"$f":"Time!USV$86","v":0},{"$f":"Time!USW$86","v":0},{"$f":"Time!USX$86","v":0},{"$f":"Time!USY$86","v":0},{"$f":"Time!USZ$86","v":0},{"$f":"Time!UTA$86","v":0},{"$f":"Time!UTB$86","v":0},{"$f":"Time!UTC$86","v":0},{"$f":"Time!UTD$86","v":0},{"$f":"Time!UTE$86","v":0},{"$f":"Time!UTF$86","v":0},{"$f":"Time!UTG$86","v":0},{"$f":"Time!UTH$86","v":0},{"$f":"Time!UTI$86","v":0},{"$f":"Time!UTJ$86","v":0},{"$f":"Time!UTK$86","v":0},{"$f":"Time!UTL$86","v":0},{"$f":"Time!UTM$86","v":0},{"$f":"Time!UTN$86","v":0},{"$f":"Time!UTO$86","v":0},{"$f":"Time!UTP$86","v":0},{"$f":"Time!UTQ$86","v":0},{"$f":"Time!UTR$86","v":0},{"$f":"Time!UTS$86","v":0},{"$f":"Time!UTT$86","v":0},{"$f":"Time!UTU$86","v":0},{"$f":"Time!UTV$86","v":0},{"$f":"Time!UTW$86","v":0},{"$f":"Time!UTX$86","v":0},{"$f":"Time!UTY$86","v":0},{"$f":"Time!UTZ$86","v":0},{"$f":"Time!UUA$86","v":0},{"$f":"Time!UUB$86","v":0},{"$f":"Time!UUC$86","v":0},{"$f":"Time!UUD$86","v":0},{"$f":"Time!UUE$86","v":0},{"$f":"Time!UUF$86","v":0},{"$f":"Time!UUG$86","v":0},{"$f":"Time!UUH$86","v":0},{"$f":"Time!UUI$86","v":0},{"$f":"Time!UUJ$86","v":0},{"$f":"Time!UUK$86","v":0},{"$f":"Time!UUL$86","v":0},{"$f":"Time!UUM$86","v":0},{"$f":"Time!UUN$86","v":0},{"$f":"Time!UUO$86","v":0},{"$f":"Time!UUP$86","v":0},{"$f":"Time!UUQ$86","v":0},{"$f":"Time!UUR$86","v":0},{"$f":"Time!UUS$86","v":0},{"$f":"Time!UUT$86","v":0},{"$f":"Time!UUU$86","v":0},{"$f":"Time!UUV$86","v":0},{"$f":"Time!UUW$86","v":0},{"$f":"Time!UUX$86","v":0},{"$f":"Time!UUY$86","v":0},{"$f":"Time!UUZ$86","v":0},{"$f":"Time!UVA$86","v":0},{"$f":"Time!UVB$86","v":0},{"$f":"Time!UVC$86","v":0},{"$f":"Time!UVD$86","v":0},{"$f":"Time!UVE$86","v":0},{"$f":"Time!UVF$86","v":0},{"$f":"Time!UVG$86","v":0},{"$f":"Time!UVH$86","v":0},{"$f":"Time!UVI$86","v":0},{"$f":"Time!UVJ$86","v":0},{"$f":"Time!UVK$86","v":0},{"$f":"Time!UVL$86","v":0},{"$f":"Time!UVM$86","v":0},{"$f":"Time!UVN$86","v":0},{"$f":"Time!UVO$86","v":0},{"$f":"Time!UVP$86","v":0},{"$f":"Time!UVQ$86","v":0},{"$f":"Time!UVR$86","v":0},{"$f":"Time!UVS$86","v":0},{"$f":"Time!UVT$86","v":0},{"$f":"Time!UVU$86","v":0},{"$f":"Time!UVV$86","v":0},{"$f":"Time!UVW$86","v":0},{"$f":"Time!UVX$86","v":0},{"$f":"Time!UVY$86","v":0},{"$f":"Time!UVZ$86","v":0},{"$f":"Time!UWA$86","v":0},{"$f":"Time!UWB$86","v":0},{"$f":"Time!UWC$86","v":0},{"$f":"Time!UWD$86","v":0},{"$f":"Time!UWE$86","v":0},{"$f":"Time!UWF$86","v":0},{"$f":"Time!UWG$86","v":0},{"$f":"Time!UWH$86","v":0},{"$f":"Time!UWI$86","v":0},{"$f":"Time!UWJ$86","v":0},{"$f":"Time!UWK$86","v":0},{"$f":"Time!UWL$86","v":0},{"$f":"Time!UWM$86","v":0},{"$f":"Time!UWN$86","v":0},{"$f":"Time!UWO$86","v":0},{"$f":"Time!UWP$86","v":0},{"$f":"Time!UWQ$86","v":0},{"$f":"Time!UWR$86","v":0},{"$f":"Time!UWS$86","v":0},{"$f":"Time!UWT$86","v":0},{"$f":"Time!UWU$86","v":0},{"$f":"Time!UWV$86","v":0},{"$f":"Time!UWW$86","v":0},{"$f":"Time!UWX$86","v":0},{"$f":"Time!UWY$86","v":0},{"$f":"Time!UWZ$86","v":0},{"$f":"Time!UXA$86","v":0},{"$f":"Time!UXB$86","v":0},{"$f":"Time!UXC$86","v":0},{"$f":"Time!UXD$86","v":0},{"$f":"Time!UXE$86","v":0},{"$f":"Time!UXF$86","v":0},{"$f":"Time!UXG$86","v":0},{"$f":"Time!UXH$86","v":0},{"$f":"Time!UXI$86","v":0},{"$f":"Time!UXJ$86","v":0},{"$f":"Time!UXK$86","v":0},{"$f":"Time!UXL$86","v":0},{"$f":"Time!UXM$86","v":0},{"$f":"Time!UXN$86","v":0},{"$f":"Time!UXO$86","v":0},{"$f":"Time!UXP$86","v":0},{"$f":"Time!UXQ$86","v":0},{"$f":"Time!UXR$86","v":0},{"$f":"Time!UXS$86","v":0},{"$f":"Time!UXT$86","v":0},{"$f":"Time!UXU$86","v":0},{"$f":"Time!UXV$86","v":0},{"$f":"Time!UXW$86","v":0},{"$f":"Time!UXX$86","v":0},{"$f":"Time!UXY$86","v":0},{"$f":"Time!UXZ$86","v":0},{"$f":"Time!UYA$86","v":0},{"$f":"Time!UYB$86","v":0},{"$f":"Time!UYC$86","v":0},{"$f":"Time!UYD$86","v":0},{"$f":"Time!UYE$86","v":0},{"$f":"Time!UYF$86","v":0},{"$f":"Time!UYG$86","v":0},{"$f":"Time!UYH$86","v":0},{"$f":"Time!UYI$86","v":0},{"$f":"Time!UYJ$86","v":0},{"$f":"Time!UYK$86","v":0},{"$f":"Time!UYL$86","v":0},{"$f":"Time!UYM$86","v":0},{"$f":"Time!UYN$86","v":0},{"$f":"Time!UYO$86","v":0},{"$f":"Time!UYP$86","v":0},{"$f":"Time!UYQ$86","v":0},{"$f":"Time!UYR$86","v":0},{"$f":"Time!UYS$86","v":0},{"$f":"Time!UYT$86","v":0},{"$f":"Time!UYU$86","v":0},{"$f":"Time!UYV$86","v":0},{"$f":"Time!UYW$86","v":0},{"$f":"Time!UYX$86","v":0},{"$f":"Time!UYY$86","v":0},{"$f":"Time!UYZ$86","v":0},{"$f":"Time!UZA$86","v":0},{"$f":"Time!UZB$86","v":0},{"$f":"Time!UZC$86","v":0},{"$f":"Time!UZD$86","v":0},{"$f":"Time!UZE$86","v":0},{"$f":"Time!UZF$86","v":0},{"$f":"Time!UZG$86","v":0},{"$f":"Time!UZH$86","v":0},{"$f":"Time!UZI$86","v":0},{"$f":"Time!UZJ$86","v":0},{"$f":"Time!UZK$86","v":0},{"$f":"Time!UZL$86","v":0},{"$f":"Time!UZM$86","v":0},{"$f":"Time!UZN$86","v":0},{"$f":"Time!UZO$86","v":0},{"$f":"Time!UZP$86","v":0},{"$f":"Time!UZQ$86","v":0},{"$f":"Time!UZR$86","v":0},{"$f":"Time!UZS$86","v":0},{"$f":"Time!UZT$86","v":0},{"$f":"Time!UZU$86","v":0},{"$f":"Time!UZV$86","v":0},{"$f":"Time!UZW$86","v":0},{"$f":"Time!UZX$86","v":0},{"$f":"Time!UZY$86","v":0},{"$f":"Time!UZZ$86","v":0},{"$f":"Time!VAA$86","v":0},{"$f":"Time!VAB$86","v":0},{"$f":"Time!VAC$86","v":0},{"$f":"Time!VAD$86","v":0},{"$f":"Time!VAE$86","v":0},{"$f":"Time!VAF$86","v":0},{"$f":"Time!VAG$86","v":0},{"$f":"Time!VAH$86","v":0},{"$f":"Time!VAI$86","v":0},{"$f":"Time!VAJ$86","v":0},{"$f":"Time!VAK$86","v":0},{"$f":"Time!VAL$86","v":0},{"$f":"Time!VAM$86","v":0},{"$f":"Time!VAN$86","v":0},{"$f":"Time!VAO$86","v":0},{"$f":"Time!VAP$86","v":0},{"$f":"Time!VAQ$86","v":0},{"$f":"Time!VAR$86","v":0},{"$f":"Time!VAS$86","v":0},{"$f":"Time!VAT$86","v":0},{"$f":"Time!VAU$86","v":0},{"$f":"Time!VAV$86","v":0},{"$f":"Time!VAW$86","v":0},{"$f":"Time!VAX$86","v":0},{"$f":"Time!VAY$86","v":0},{"$f":"Time!VAZ$86","v":0},{"$f":"Time!VBA$86","v":0},{"$f":"Time!VBB$86","v":0},{"$f":"Time!VBC$86","v":0},{"$f":"Time!VBD$86","v":0},{"$f":"Time!VBE$86","v":0},{"$f":"Time!VBF$86","v":0},{"$f":"Time!VBG$86","v":0},{"$f":"Time!VBH$86","v":0},{"$f":"Time!VBI$86","v":0},{"$f":"Time!VBJ$86","v":0},{"$f":"Time!VBK$86","v":0},{"$f":"Time!VBL$86","v":0},{"$f":"Time!VBM$86","v":0},{"$f":"Time!VBN$86","v":0},{"$f":"Time!VBO$86","v":0},{"$f":"Time!VBP$86","v":0},{"$f":"Time!VBQ$86","v":0},{"$f":"Time!VBR$86","v":0},{"$f":"Time!VBS$86","v":0},{"$f":"Time!VBT$86","v":0},{"$f":"Time!VBU$86","v":0},{"$f":"Time!VBV$86","v":0},{"$f":"Time!VBW$86","v":0},{"$f":"Time!VBX$86","v":0},{"$f":"Time!VBY$86","v":0},{"$f":"Time!VBZ$86","v":0},{"$f":"Time!VCA$86","v":0},{"$f":"Time!VCB$86","v":0},{"$f":"Time!VCC$86","v":0},{"$f":"Time!VCD$86","v":0},{"$f":"Time!VCE$86","v":0},{"$f":"Time!VCF$86","v":0},{"$f":"Time!VCG$86","v":0},{"$f":"Time!VCH$86","v":0},{"$f":"Time!VCI$86","v":0},{"$f":"Time!VCJ$86","v":0},{"$f":"Time!VCK$86","v":0},{"$f":"Time!VCL$86","v":0},{"$f":"Time!VCM$86","v":0},{"$f":"Time!VCN$86","v":0},{"$f":"Time!VCO$86","v":0},{"$f":"Time!VCP$86","v":0},{"$f":"Time!VCQ$86","v":0},{"$f":"Time!VCR$86","v":0},{"$f":"Time!VCS$86","v":0},{"$f":"Time!VCT$86","v":0},{"$f":"Time!VCU$86","v":0},{"$f":"Time!VCV$86","v":0},{"$f":"Time!VCW$86","v":0},{"$f":"Time!VCX$86","v":0},{"$f":"Time!VCY$86","v":0},{"$f":"Time!VCZ$86","v":0},{"$f":"Time!VDA$86","v":0},{"$f":"Time!VDB$86","v":0},{"$f":"Time!VDC$86","v":0},{"$f":"Time!VDD$86","v":0},{"$f":"Time!VDE$86","v":0},{"$f":"Time!VDF$86","v":0},{"$f":"Time!VDG$86","v":0},{"$f":"Time!VDH$86","v":0},{"$f":"Time!VDI$86","v":0},{"$f":"Time!VDJ$86","v":0},{"$f":"Time!VDK$86","v":0},{"$f":"Time!VDL$86","v":0},{"$f":"Time!VDM$86","v":0},{"$f":"Time!VDN$86","v":0},{"$f":"Time!VDO$86","v":0},{"$f":"Time!VDP$86","v":0},{"$f":"Time!VDQ$86","v":0},{"$f":"Time!VDR$86","v":0},{"$f":"Time!VDS$86","v":0},{"$f":"Time!VDT$86","v":0},{"$f":"Time!VDU$86","v":0},{"$f":"Time!VDV$86","v":0},{"$f":"Time!VDW$86","v":0},{"$f":"Time!VDX$86","v":0},{"$f":"Time!VDY$86","v":0},{"$f":"Time!VDZ$86","v":0},{"$f":"Time!VEA$86","v":0},{"$f":"Time!VEB$86","v":0},{"$f":"Time!VEC$86","v":0},{"$f":"Time!VED$86","v":0},{"$f":"Time!VEE$86","v":0},{"$f":"Time!VEF$86","v":0},{"$f":"Time!VEG$86","v":0},{"$f":"Time!VEH$86","v":0},{"$f":"Time!VEI$86","v":0},{"$f":"Time!VEJ$86","v":0},{"$f":"Time!VEK$86","v":0},{"$f":"Time!VEL$86","v":0},{"$f":"Time!VEM$86","v":0},{"$f":"Time!VEN$86","v":0},{"$f":"Time!VEO$86","v":0},{"$f":"Time!VEP$86","v":0},{"$f":"Time!VEQ$86","v":0},{"$f":"Time!VER$86","v":0},{"$f":"Time!VES$86","v":0},{"$f":"Time!VET$86","v":0},{"$f":"Time!VEU$86","v":0},{"$f":"Time!VEV$86","v":0},{"$f":"Time!VEW$86","v":0},{"$f":"Time!VEX$86","v":0},{"$f":"Time!VEY$86","v":0},{"$f":"Time!VEZ$86","v":0},{"$f":"Time!VFA$86","v":0},{"$f":"Time!VFB$86","v":0},{"$f":"Time!VFC$86","v":0},{"$f":"Time!VFD$86","v":0},{"$f":"Time!VFE$86","v":0},{"$f":"Time!VFF$86","v":0},{"$f":"Time!VFG$86","v":0},{"$f":"Time!VFH$86","v":0},{"$f":"Time!VFI$86","v":0},{"$f":"Time!VFJ$86","v":0},{"$f":"Time!VFK$86","v":0},{"$f":"Time!VFL$86","v":0},{"$f":"Time!VFM$86","v":0},{"$f":"Time!VFN$86","v":0},{"$f":"Time!VFO$86","v":0},{"$f":"Time!VFP$86","v":0},{"$f":"Time!VFQ$86","v":0},{"$f":"Time!VFR$86","v":0},{"$f":"Time!VFS$86","v":0},{"$f":"Time!VFT$86","v":0},{"$f":"Time!VFU$86","v":0},{"$f":"Time!VFV$86","v":0},{"$f":"Time!VFW$86","v":0},{"$f":"Time!VFX$86","v":0},{"$f":"Time!VFY$86","v":0},{"$f":"Time!VFZ$86","v":0},{"$f":"Time!VGA$86","v":0},{"$f":"Time!VGB$86","v":0},{"$f":"Time!VGC$86","v":0},{"$f":"Time!VGD$86","v":0},{"$f":"Time!VGE$86","v":0},{"$f":"Time!VGF$86","v":0},{"$f":"Time!VGG$86","v":0},{"$f":"Time!VGH$86","v":0},{"$f":"Time!VGI$86","v":0},{"$f":"Time!VGJ$86","v":0},{"$f":"Time!VGK$86","v":0},{"$f":"Time!VGL$86","v":0},{"$f":"Time!VGM$86","v":0},{"$f":"Time!VGN$86","v":0},{"$f":"Time!VGO$86","v":0},{"$f":"Time!VGP$86","v":0},{"$f":"Time!VGQ$86","v":0},{"$f":"Time!VGR$86","v":0},{"$f":"Time!VGS$86","v":0},{"$f":"Time!VGT$86","v":0},{"$f":"Time!VGU$86","v":0},{"$f":"Time!VGV$86","v":0},{"$f":"Time!VGW$86","v":0},{"$f":"Time!VGX$86","v":0},{"$f":"Time!VGY$86","v":0},{"$f":"Time!VGZ$86","v":0},{"$f":"Time!VHA$86","v":0},{"$f":"Time!VHB$86","v":0},{"$f":"Time!VHC$86","v":0},{"$f":"Time!VHD$86","v":0},{"$f":"Time!VHE$86","v":0},{"$f":"Time!VHF$86","v":0},{"$f":"Time!VHG$86","v":0},{"$f":"Time!VHH$86","v":0},{"$f":"Time!VHI$86","v":0},{"$f":"Time!VHJ$86","v":0},{"$f":"Time!VHK$86","v":0},{"$f":"Time!VHL$86","v":0},{"$f":"Time!VHM$86","v":0},{"$f":"Time!VHN$86","v":0},{"$f":"Time!VHO$86","v":0},{"$f":"Time!VHP$86","v":0},{"$f":"Time!VHQ$86","v":0},{"$f":"Time!VHR$86","v":0},{"$f":"Time!VHS$86","v":0},{"$f":"Time!VHT$86","v":0},{"$f":"Time!VHU$86","v":0},{"$f":"Time!VHV$86","v":0},{"$f":"Time!VHW$86","v":0},{"$f":"Time!VHX$86","v":0},{"$f":"Time!VHY$86","v":0},{"$f":"Time!VHZ$86","v":0},{"$f":"Time!VIA$86","v":0},{"$f":"Time!VIB$86","v":0},{"$f":"Time!VIC$86","v":0},{"$f":"Time!VID$86","v":0},{"$f":"Time!VIE$86","v":0},{"$f":"Time!VIF$86","v":0},{"$f":"Time!VIG$86","v":0},{"$f":"Time!VIH$86","v":0},{"$f":"Time!VII$86","v":0},{"$f":"Time!VIJ$86","v":0},{"$f":"Time!VIK$86","v":0},{"$f":"Time!VIL$86","v":0},{"$f":"Time!VIM$86","v":0},{"$f":"Time!VIN$86","v":0},{"$f":"Time!VIO$86","v":0},{"$f":"Time!VIP$86","v":0},{"$f":"Time!VIQ$86","v":0},{"$f":"Time!VIR$86","v":0},{"$f":"Time!VIS$86","v":0},{"$f":"Time!VIT$86","v":0},{"$f":"Time!VIU$86","v":0},{"$f":"Time!VIV$86","v":0},{"$f":"Time!VIW$86","v":0},{"$f":"Time!VIX$86","v":0},{"$f":"Time!VIY$86","v":0},{"$f":"Time!VIZ$86","v":0},{"$f":"Time!VJA$86","v":0},{"$f":"Time!VJB$86","v":0},{"$f":"Time!VJC$86","v":0},{"$f":"Time!VJD$86","v":0},{"$f":"Time!VJE$86","v":0},{"$f":"Time!VJF$86","v":0},{"$f":"Time!VJG$86","v":0},{"$f":"Time!VJH$86","v":0},{"$f":"Time!VJI$86","v":0},{"$f":"Time!VJJ$86","v":0},{"$f":"Time!VJK$86","v":0},{"$f":"Time!VJL$86","v":0},{"$f":"Time!VJM$86","v":0},{"$f":"Time!VJN$86","v":0},{"$f":"Time!VJO$86","v":0},{"$f":"Time!VJP$86","v":0},{"$f":"Time!VJQ$86","v":0},{"$f":"Time!VJR$86","v":0},{"$f":"Time!VJS$86","v":0},{"$f":"Time!VJT$86","v":0},{"$f":"Time!VJU$86","v":0},{"$f":"Time!VJV$86","v":0},{"$f":"Time!VJW$86","v":0},{"$f":"Time!VJX$86","v":0},{"$f":"Time!VJY$86","v":0},{"$f":"Time!VJZ$86","v":0},{"$f":"Time!VKA$86","v":0},{"$f":"Time!VKB$86","v":0},{"$f":"Time!VKC$86","v":0},{"$f":"Time!VKD$86","v":0},{"$f":"Time!VKE$86","v":0},{"$f":"Time!VKF$86","v":0},{"$f":"Time!VKG$86","v":0},{"$f":"Time!VKH$86","v":0},{"$f":"Time!VKI$86","v":0},{"$f":"Time!VKJ$86","v":0},{"$f":"Time!VKK$86","v":0},{"$f":"Time!VKL$86","v":0},{"$f":"Time!VKM$86","v":0},{"$f":"Time!VKN$86","v":0},{"$f":"Time!VKO$86","v":0},{"$f":"Time!VKP$86","v":0},{"$f":"Time!VKQ$86","v":0},{"$f":"Time!VKR$86","v":0},{"$f":"Time!VKS$86","v":0},{"$f":"Time!VKT$86","v":0},{"$f":"Time!VKU$86","v":0},{"$f":"Time!VKV$86","v":0},{"$f":"Time!VKW$86","v":0},{"$f":"Time!VKX$86","v":0},{"$f":"Time!VKY$86","v":0},{"$f":"Time!VKZ$86","v":0},{"$f":"Time!VLA$86","v":0},{"$f":"Time!VLB$86","v":0},{"$f":"Time!VLC$86","v":0},{"$f":"Time!VLD$86","v":0},{"$f":"Time!VLE$86","v":0},{"$f":"Time!VLF$86","v":0},{"$f":"Time!VLG$86","v":0},{"$f":"Time!VLH$86","v":0},{"$f":"Time!VLI$86","v":0},{"$f":"Time!VLJ$86","v":0},{"$f":"Time!VLK$86","v":0},{"$f":"Time!VLL$86","v":0},{"$f":"Time!VLM$86","v":0},{"$f":"Time!VLN$86","v":0},{"$f":"Time!VLO$86","v":0},{"$f":"Time!VLP$86","v":0},{"$f":"Time!VLQ$86","v":0},{"$f":"Time!VLR$86","v":0},{"$f":"Time!VLS$86","v":0},{"$f":"Time!VLT$86","v":0},{"$f":"Time!VLU$86","v":0},{"$f":"Time!VLV$86","v":0},{"$f":"Time!VLW$86","v":0},{"$f":"Time!VLX$86","v":0},{"$f":"Time!VLY$86","v":0},{"$f":"Time!VLZ$86","v":0},{"$f":"Time!VMA$86","v":0},{"$f":"Time!VMB$86","v":0},{"$f":"Time!VMC$86","v":0},{"$f":"Time!VMD$86","v":0},{"$f":"Time!VME$86","v":0},{"$f":"Time!VMF$86","v":0},{"$f":"Time!VMG$86","v":0},{"$f":"Time!VMH$86","v":0},{"$f":"Time!VMI$86","v":0},{"$f":"Time!VMJ$86","v":0},{"$f":"Time!VMK$86","v":0},{"$f":"Time!VML$86","v":0},{"$f":"Time!VMM$86","v":0},{"$f":"Time!VMN$86","v":0},{"$f":"Time!VMO$86","v":0},{"$f":"Time!VMP$86","v":0},{"$f":"Time!VMQ$86","v":0},{"$f":"Time!VMR$86","v":0},{"$f":"Time!VMS$86","v":0},{"$f":"Time!VMT$86","v":0},{"$f":"Time!VMU$86","v":0},{"$f":"Time!VMV$86","v":0},{"$f":"Time!VMW$86","v":0},{"$f":"Time!VMX$86","v":0},{"$f":"Time!VMY$86","v":0},{"$f":"Time!VMZ$86","v":0},{"$f":"Time!VNA$86","v":0},{"$f":"Time!VNB$86","v":0},{"$f":"Time!VNC$86","v":0},{"$f":"Time!VND$86","v":0},{"$f":"Time!VNE$86","v":0},{"$f":"Time!VNF$86","v":0},{"$f":"Time!VNG$86","v":0},{"$f":"Time!VNH$86","v":0},{"$f":"Time!VNI$86","v":0},{"$f":"Time!VNJ$86","v":0},{"$f":"Time!VNK$86","v":0},{"$f":"Time!VNL$86","v":0},{"$f":"Time!VNM$86","v":0},{"$f":"Time!VNN$86","v":0},{"$f":"Time!VNO$86","v":0},{"$f":"Time!VNP$86","v":0},{"$f":"Time!VNQ$86","v":0},{"$f":"Time!VNR$86","v":0},{"$f":"Time!VNS$86","v":0},{"$f":"Time!VNT$86","v":0},{"$f":"Time!VNU$86","v":0},{"$f":"Time!VNV$86","v":0},{"$f":"Time!VNW$86","v":0},{"$f":"Time!VNX$86","v":0},{"$f":"Time!VNY$86","v":0},{"$f":"Time!VNZ$86","v":0},{"$f":"Time!VOA$86","v":0},{"$f":"Time!VOB$86","v":0},{"$f":"Time!VOC$86","v":0},{"$f":"Time!VOD$86","v":0},{"$f":"Time!VOE$86","v":0},{"$f":"Time!VOF$86","v":0},{"$f":"Time!VOG$86","v":0},{"$f":"Time!VOH$86","v":0},{"$f":"Time!VOI$86","v":0},{"$f":"Time!VOJ$86","v":0},{"$f":"Time!VOK$86","v":0},{"$f":"Time!VOL$86","v":0},{"$f":"Time!VOM$86","v":0},{"$f":"Time!VON$86","v":0},{"$f":"Time!VOO$86","v":0},{"$f":"Time!VOP$86","v":0},{"$f":"Time!VOQ$86","v":0},{"$f":"Time!VOR$86","v":0},{"$f":"Time!VOS$86","v":0},{"$f":"Time!VOT$86","v":0},{"$f":"Time!VOU$86","v":0},{"$f":"Time!VOV$86","v":0},{"$f":"Time!VOW$86","v":0},{"$f":"Time!VOX$86","v":0},{"$f":"Time!VOY$86","v":0},{"$f":"Time!VOZ$86","v":0},{"$f":"Time!VPA$86","v":0},{"$f":"Time!VPB$86","v":0},{"$f":"Time!VPC$86","v":0},{"$f":"Time!VPD$86","v":0},{"$f":"Time!VPE$86","v":0},{"$f":"Time!VPF$86","v":0},{"$f":"Time!VPG$86","v":0},{"$f":"Time!VPH$86","v":0},{"$f":"Time!VPI$86","v":0},{"$f":"Time!VPJ$86","v":0},{"$f":"Time!VPK$86","v":0},{"$f":"Time!VPL$86","v":0},{"$f":"Time!VPM$86","v":0},{"$f":"Time!VPN$86","v":0},{"$f":"Time!VPO$86","v":0},{"$f":"Time!VPP$86","v":0},{"$f":"Time!VPQ$86","v":0},{"$f":"Time!VPR$86","v":0},{"$f":"Time!VPS$86","v":0},{"$f":"Time!VPT$86","v":0},{"$f":"Time!VPU$86","v":0},{"$f":"Time!VPV$86","v":0},{"$f":"Time!VPW$86","v":0},{"$f":"Time!VPX$86","v":0},{"$f":"Time!VPY$86","v":0},{"$f":"Time!VPZ$86","v":0},{"$f":"Time!VQA$86","v":0},{"$f":"Time!VQB$86","v":0},{"$f":"Time!VQC$86","v":0},{"$f":"Time!VQD$86","v":0},{"$f":"Time!VQE$86","v":0},{"$f":"Time!VQF$86","v":0},{"$f":"Time!VQG$86","v":0},{"$f":"Time!VQH$86","v":0},{"$f":"Time!VQI$86","v":0},{"$f":"Time!VQJ$86","v":0},{"$f":"Time!VQK$86","v":0},{"$f":"Time!VQL$86","v":0},{"$f":"Time!VQM$86","v":0},{"$f":"Time!VQN$86","v":0},{"$f":"Time!VQO$86","v":0},{"$f":"Time!VQP$86","v":0},{"$f":"Time!VQQ$86","v":0},{"$f":"Time!VQR$86","v":0},{"$f":"Time!VQS$86","v":0},{"$f":"Time!VQT$86","v":0},{"$f":"Time!VQU$86","v":0},{"$f":"Time!VQV$86","v":0},{"$f":"Time!VQW$86","v":0},{"$f":"Time!VQX$86","v":0},{"$f":"Time!VQY$86","v":0},{"$f":"Time!VQZ$86","v":0},{"$f":"Time!VRA$86","v":0},{"$f":"Time!VRB$86","v":0},{"$f":"Time!VRC$86","v":0},{"$f":"Time!VRD$86","v":0},{"$f":"Time!VRE$86","v":0},{"$f":"Time!VRF$86","v":0},{"$f":"Time!VRG$86","v":0},{"$f":"Time!VRH$86","v":0},{"$f":"Time!VRI$86","v":0},{"$f":"Time!VRJ$86","v":0},{"$f":"Time!VRK$86","v":0},{"$f":"Time!VRL$86","v":0},{"$f":"Time!VRM$86","v":0},{"$f":"Time!VRN$86","v":0},{"$f":"Time!VRO$86","v":0},{"$f":"Time!VRP$86","v":0},{"$f":"Time!VRQ$86","v":0},{"$f":"Time!VRR$86","v":0},{"$f":"Time!VRS$86","v":0},{"$f":"Time!VRT$86","v":0},{"$f":"Time!VRU$86","v":0},{"$f":"Time!VRV$86","v":0},{"$f":"Time!VRW$86","v":0},{"$f":"Time!VRX$86","v":0},{"$f":"Time!VRY$86","v":0},{"$f":"Time!VRZ$86","v":0},{"$f":"Time!VSA$86","v":0},{"$f":"Time!VSB$86","v":0},{"$f":"Time!VSC$86","v":0},{"$f":"Time!VSD$86","v":0},{"$f":"Time!VSE$86","v":0},{"$f":"Time!VSF$86","v":0},{"$f":"Time!VSG$86","v":0},{"$f":"Time!VSH$86","v":0},{"$f":"Time!VSI$86","v":0},{"$f":"Time!VSJ$86","v":0},{"$f":"Time!VSK$86","v":0},{"$f":"Time!VSL$86","v":0},{"$f":"Time!VSM$86","v":0},{"$f":"Time!VSN$86","v":0},{"$f":"Time!VSO$86","v":0},{"$f":"Time!VSP$86","v":0},{"$f":"Time!VSQ$86","v":0},{"$f":"Time!VSR$86","v":0},{"$f":"Time!VSS$86","v":0},{"$f":"Time!VST$86","v":0},{"$f":"Time!VSU$86","v":0},{"$f":"Time!VSV$86","v":0},{"$f":"Time!VSW$86","v":0},{"$f":"Time!VSX$86","v":0},{"$f":"Time!VSY$86","v":0},{"$f":"Time!VSZ$86","v":0},{"$f":"Time!VTA$86","v":0},{"$f":"Time!VTB$86","v":0},{"$f":"Time!VTC$86","v":0},{"$f":"Time!VTD$86","v":0},{"$f":"Time!VTE$86","v":0},{"$f":"Time!VTF$86","v":0},{"$f":"Time!VTG$86","v":0},{"$f":"Time!VTH$86","v":0},{"$f":"Time!VTI$86","v":0},{"$f":"Time!VTJ$86","v":0},{"$f":"Time!VTK$86","v":0},{"$f":"Time!VTL$86","v":0},{"$f":"Time!VTM$86","v":0},{"$f":"Time!VTN$86","v":0},{"$f":"Time!VTO$86","v":0},{"$f":"Time!VTP$86","v":0},{"$f":"Time!VTQ$86","v":0},{"$f":"Time!VTR$86","v":0},{"$f":"Time!VTS$86","v":0},{"$f":"Time!VTT$86","v":0},{"$f":"Time!VTU$86","v":0},{"$f":"Time!VTV$86","v":0},{"$f":"Time!VTW$86","v":0},{"$f":"Time!VTX$86","v":0},{"$f":"Time!VTY$86","v":0},{"$f":"Time!VTZ$86","v":0},{"$f":"Time!VUA$86","v":0},{"$f":"Time!VUB$86","v":0},{"$f":"Time!VUC$86","v":0},{"$f":"Time!VUD$86","v":0},{"$f":"Time!VUE$86","v":0},{"$f":"Time!VUF$86","v":0},{"$f":"Time!VUG$86","v":0},{"$f":"Time!VUH$86","v":0},{"$f":"Time!VUI$86","v":0},{"$f":"Time!VUJ$86","v":0},{"$f":"Time!VUK$86","v":0},{"$f":"Time!VUL$86","v":0},{"$f":"Time!VUM$86","v":0},{"$f":"Time!VUN$86","v":0},{"$f":"Time!VUO$86","v":0},{"$f":"Time!VUP$86","v":0},{"$f":"Time!VUQ$86","v":0},{"$f":"Time!VUR$86","v":0},{"$f":"Time!VUS$86","v":0},{"$f":"Time!VUT$86","v":0},{"$f":"Time!VUU$86","v":0},{"$f":"Time!VUV$86","v":0},{"$f":"Time!VUW$86","v":0},{"$f":"Time!VUX$86","v":0},{"$f":"Time!VUY$86","v":0},{"$f":"Time!VUZ$86","v":0},{"$f":"Time!VVA$86","v":0},{"$f":"Time!VVB$86","v":0},{"$f":"Time!VVC$86","v":0},{"$f":"Time!VVD$86","v":0},{"$f":"Time!VVE$86","v":0},{"$f":"Time!VVF$86","v":0},{"$f":"Time!VVG$86","v":0},{"$f":"Time!VVH$86","v":0},{"$f":"Time!VVI$86","v":0},{"$f":"Time!VVJ$86","v":0},{"$f":"Time!VVK$86","v":0},{"$f":"Time!VVL$86","v":0},{"$f":"Time!VVM$86","v":0},{"$f":"Time!VVN$86","v":0},{"$f":"Time!VVO$86","v":0},{"$f":"Time!VVP$86","v":0},{"$f":"Time!VVQ$86","v":0},{"$f":"Time!VVR$86","v":0},{"$f":"Time!VVS$86","v":0},{"$f":"Time!VVT$86","v":0},{"$f":"Time!VVU$86","v":0},{"$f":"Time!VVV$86","v":0},{"$f":"Time!VVW$86","v":0},{"$f":"Time!VVX$86","v":0},{"$f":"Time!VVY$86","v":0},{"$f":"Time!VVZ$86","v":0},{"$f":"Time!VWA$86","v":0},{"$f":"Time!VWB$86","v":0},{"$f":"Time!VWC$86","v":0},{"$f":"Time!VWD$86","v":0},{"$f":"Time!VWE$86","v":0},{"$f":"Time!VWF$86","v":0},{"$f":"Time!VWG$86","v":0},{"$f":"Time!VWH$86","v":0},{"$f":"Time!VWI$86","v":0},{"$f":"Time!VWJ$86","v":0},{"$f":"Time!VWK$86","v":0},{"$f":"Time!VWL$86","v":0},{"$f":"Time!VWM$86","v":0},{"$f":"Time!VWN$86","v":0},{"$f":"Time!VWO$86","v":0},{"$f":"Time!VWP$86","v":0},{"$f":"Time!VWQ$86","v":0},{"$f":"Time!VWR$86","v":0},{"$f":"Time!VWS$86","v":0},{"$f":"Time!VWT$86","v":0},{"$f":"Time!VWU$86","v":0},{"$f":"Time!VWV$86","v":0},{"$f":"Time!VWW$86","v":0},{"$f":"Time!VWX$86","v":0},{"$f":"Time!VWY$86","v":0},{"$f":"Time!VWZ$86","v":0},{"$f":"Time!VXA$86","v":0},{"$f":"Time!VXB$86","v":0},{"$f":"Time!VXC$86","v":0},{"$f":"Time!VXD$86","v":0},{"$f":"Time!VXE$86","v":0},{"$f":"Time!VXF$86","v":0},{"$f":"Time!VXG$86","v":0},{"$f":"Time!VXH$86","v":0},{"$f":"Time!VXI$86","v":0},{"$f":"Time!VXJ$86","v":0},{"$f":"Time!VXK$86","v":0},{"$f":"Time!VXL$86","v":0},{"$f":"Time!VXM$86","v":0},{"$f":"Time!VXN$86","v":0},{"$f":"Time!VXO$86","v":0},{"$f":"Time!VXP$86","v":0},{"$f":"Time!VXQ$86","v":0},{"$f":"Time!VXR$86","v":0},{"$f":"Time!VXS$86","v":0},{"$f":"Time!VXT$86","v":0},{"$f":"Time!VXU$86","v":0},{"$f":"Time!VXV$86","v":0},{"$f":"Time!VXW$86","v":0},{"$f":"Time!VXX$86","v":0},{"$f":"Time!VXY$86","v":0},{"$f":"Time!VXZ$86","v":0},{"$f":"Time!VYA$86","v":0},{"$f":"Time!VYB$86","v":0},{"$f":"Time!VYC$86","v":0},{"$f":"Time!VYD$86","v":0},{"$f":"Time!VYE$86","v":0},{"$f":"Time!VYF$86","v":0},{"$f":"Time!VYG$86","v":0},{"$f":"Time!VYH$86","v":0},{"$f":"Time!VYI$86","v":0},{"$f":"Time!VYJ$86","v":0},{"$f":"Time!VYK$86","v":0},{"$f":"Time!VYL$86","v":0},{"$f":"Time!VYM$86","v":0},{"$f":"Time!VYN$86","v":0},{"$f":"Time!VYO$86","v":0},{"$f":"Time!VYP$86","v":0},{"$f":"Time!VYQ$86","v":0},{"$f":"Time!VYR$86","v":0},{"$f":"Time!VYS$86","v":0},{"$f":"Time!VYT$86","v":0},{"$f":"Time!VYU$86","v":0},{"$f":"Time!VYV$86","v":0},{"$f":"Time!VYW$86","v":0},{"$f":"Time!VYX$86","v":0},{"$f":"Time!VYY$86","v":0},{"$f":"Time!VYZ$86","v":0},{"$f":"Time!VZA$86","v":0},{"$f":"Time!VZB$86","v":0},{"$f":"Time!VZC$86","v":0},{"$f":"Time!VZD$86","v":0},{"$f":"Time!VZE$86","v":0},{"$f":"Time!VZF$86","v":0},{"$f":"Time!VZG$86","v":0},{"$f":"Time!VZH$86","v":0},{"$f":"Time!VZI$86","v":0},{"$f":"Time!VZJ$86","v":0},{"$f":"Time!VZK$86","v":0},{"$f":"Time!VZL$86","v":0},{"$f":"Time!VZM$86","v":0},{"$f":"Time!VZN$86","v":0},{"$f":"Time!VZO$86","v":0},{"$f":"Time!VZP$86","v":0},{"$f":"Time!VZQ$86","v":0},{"$f":"Time!VZR$86","v":0},{"$f":"Time!VZS$86","v":0},{"$f":"Time!VZT$86","v":0},{"$f":"Time!VZU$86","v":0},{"$f":"Time!VZV$86","v":0},{"$f":"Time!VZW$86","v":0},{"$f":"Time!VZX$86","v":0},{"$f":"Time!VZY$86","v":0},{"$f":"Time!VZZ$86","v":0},{"$f":"Time!WAA$86","v":0},{"$f":"Time!WAB$86","v":0},{"$f":"Time!WAC$86","v":0},{"$f":"Time!WAD$86","v":0},{"$f":"Time!WAE$86","v":0},{"$f":"Time!WAF$86","v":0},{"$f":"Time!WAG$86","v":0},{"$f":"Time!WAH$86","v":0},{"$f":"Time!WAI$86","v":0},{"$f":"Time!WAJ$86","v":0},{"$f":"Time!WAK$86","v":0},{"$f":"Time!WAL$86","v":0},{"$f":"Time!WAM$86","v":0},{"$f":"Time!WAN$86","v":0},{"$f":"Time!WAO$86","v":0},{"$f":"Time!WAP$86","v":0},{"$f":"Time!WAQ$86","v":0},{"$f":"Time!WAR$86","v":0},{"$f":"Time!WAS$86","v":0},{"$f":"Time!WAT$86","v":0},{"$f":"Time!WAU$86","v":0},{"$f":"Time!WAV$86","v":0},{"$f":"Time!WAW$86","v":0},{"$f":"Time!WAX$86","v":0},{"$f":"Time!WAY$86","v":0},{"$f":"Time!WAZ$86","v":0},{"$f":"Time!WBA$86","v":0},{"$f":"Time!WBB$86","v":0},{"$f":"Time!WBC$86","v":0},{"$f":"Time!WBD$86","v":0},{"$f":"Time!WBE$86","v":0},{"$f":"Time!WBF$86","v":0},{"$f":"Time!WBG$86","v":0},{"$f":"Time!WBH$86","v":0},{"$f":"Time!WBI$86","v":0},{"$f":"Time!WBJ$86","v":0},{"$f":"Time!WBK$86","v":0},{"$f":"Time!WBL$86","v":0},{"$f":"Time!WBM$86","v":0},{"$f":"Time!WBN$86","v":0},{"$f":"Time!WBO$86","v":0},{"$f":"Time!WBP$86","v":0},{"$f":"Time!WBQ$86","v":0},{"$f":"Time!WBR$86","v":0},{"$f":"Time!WBS$86","v":0},{"$f":"Time!WBT$86","v":0},{"$f":"Time!WBU$86","v":0},{"$f":"Time!WBV$86","v":0},{"$f":"Time!WBW$86","v":0},{"$f":"Time!WBX$86","v":0},{"$f":"Time!WBY$86","v":0},{"$f":"Time!WBZ$86","v":0},{"$f":"Time!WCA$86","v":0},{"$f":"Time!WCB$86","v":0},{"$f":"Time!WCC$86","v":0},{"$f":"Time!WCD$86","v":0},{"$f":"Time!WCE$86","v":0},{"$f":"Time!WCF$86","v":0},{"$f":"Time!WCG$86","v":0},{"$f":"Time!WCH$86","v":0},{"$f":"Time!WCI$86","v":0},{"$f":"Time!WCJ$86","v":0},{"$f":"Time!WCK$86","v":0},{"$f":"Time!WCL$86","v":0},{"$f":"Time!WCM$86","v":0},{"$f":"Time!WCN$86","v":0},{"$f":"Time!WCO$86","v":0},{"$f":"Time!WCP$86","v":0},{"$f":"Time!WCQ$86","v":0},{"$f":"Time!WCR$86","v":0},{"$f":"Time!WCS$86","v":0},{"$f":"Time!WCT$86","v":0},{"$f":"Time!WCU$86","v":0},{"$f":"Time!WCV$86","v":0},{"$f":"Time!WCW$86","v":0},{"$f":"Time!WCX$86","v":0},{"$f":"Time!WCY$86","v":0},{"$f":"Time!WCZ$86","v":0},{"$f":"Time!WDA$86","v":0},{"$f":"Time!WDB$86","v":0},{"$f":"Time!WDC$86","v":0},{"$f":"Time!WDD$86","v":0},{"$f":"Time!WDE$86","v":0},{"$f":"Time!WDF$86","v":0},{"$f":"Time!WDG$86","v":0},{"$f":"Time!WDH$86","v":0},{"$f":"Time!WDI$86","v":0},{"$f":"Time!WDJ$86","v":0},{"$f":"Time!WDK$86","v":0},{"$f":"Time!WDL$86","v":0},{"$f":"Time!WDM$86","v":0},{"$f":"Time!WDN$86","v":0},{"$f":"Time!WDO$86","v":0},{"$f":"Time!WDP$86","v":0},{"$f":"Time!WDQ$86","v":0},{"$f":"Time!WDR$86","v":0},{"$f":"Time!WDS$86","v":0},{"$f":"Time!WDT$86","v":0},{"$f":"Time!WDU$86","v":0},{"$f":"Time!WDV$86","v":0},{"$f":"Time!WDW$86","v":0},{"$f":"Time!WDX$86","v":0},{"$f":"Time!WDY$86","v":0},{"$f":"Time!WDZ$86","v":0},{"$f":"Time!WEA$86","v":0},{"$f":"Time!WEB$86","v":0},{"$f":"Time!WEC$86","v":0},{"$f":"Time!WED$86","v":0},{"$f":"Time!WEE$86","v":0},{"$f":"Time!WEF$86","v":0},{"$f":"Time!WEG$86","v":0},{"$f":"Time!WEH$86","v":0},{"$f":"Time!WEI$86","v":0},{"$f":"Time!WEJ$86","v":0},{"$f":"Time!WEK$86","v":0},{"$f":"Time!WEL$86","v":0},{"$f":"Time!WEM$86","v":0},{"$f":"Time!WEN$86","v":0},{"$f":"Time!WEO$86","v":0},{"$f":"Time!WEP$86","v":0},{"$f":"Time!WEQ$86","v":0},{"$f":"Time!WER$86","v":0},{"$f":"Time!WES$86","v":0},{"$f":"Time!WET$86","v":0},{"$f":"Time!WEU$86","v":0},{"$f":"Time!WEV$86","v":0},{"$f":"Time!WEW$86","v":0},{"$f":"Time!WEX$86","v":0},{"$f":"Time!WEY$86","v":0},{"$f":"Time!WEZ$86","v":0},{"$f":"Time!WFA$86","v":0},{"$f":"Time!WFB$86","v":0},{"$f":"Time!WFC$86","v":0},{"$f":"Time!WFD$86","v":0},{"$f":"Time!WFE$86","v":0},{"$f":"Time!WFF$86","v":0},{"$f":"Time!WFG$86","v":0},{"$f":"Time!WFH$86","v":0},{"$f":"Time!WFI$86","v":0},{"$f":"Time!WFJ$86","v":0},{"$f":"Time!WFK$86","v":0},{"$f":"Time!WFL$86","v":0},{"$f":"Time!WFM$86","v":0},{"$f":"Time!WFN$86","v":0},{"$f":"Time!WFO$86","v":0},{"$f":"Time!WFP$86","v":0},{"$f":"Time!WFQ$86","v":0},{"$f":"Time!WFR$86","v":0},{"$f":"Time!WFS$86","v":0},{"$f":"Time!WFT$86","v":0},{"$f":"Time!WFU$86","v":0},{"$f":"Time!WFV$86","v":0},{"$f":"Time!WFW$86","v":0},{"$f":"Time!WFX$86","v":0},{"$f":"Time!WFY$86","v":0},{"$f":"Time!WFZ$86","v":0},{"$f":"Time!WGA$86","v":0},{"$f":"Time!WGB$86","v":0},{"$f":"Time!WGC$86","v":0},{"$f":"Time!WGD$86","v":0},{"$f":"Time!WGE$86","v":0},{"$f":"Time!WGF$86","v":0},{"$f":"Time!WGG$86","v":0},{"$f":"Time!WGH$86","v":0},{"$f":"Time!WGI$86","v":0},{"$f":"Time!WGJ$86","v":0},{"$f":"Time!WGK$86","v":0},{"$f":"Time!WGL$86","v":0},{"$f":"Time!WGM$86","v":0},{"$f":"Time!WGN$86","v":0},{"$f":"Time!WGO$86","v":0},{"$f":"Time!WGP$86","v":0},{"$f":"Time!WGQ$86","v":0},{"$f":"Time!WGR$86","v":0},{"$f":"Time!WGS$86","v":0},{"$f":"Time!WGT$86","v":0},{"$f":"Time!WGU$86","v":0},{"$f":"Time!WGV$86","v":0},{"$f":"Time!WGW$86","v":0},{"$f":"Time!WGX$86","v":0},{"$f":"Time!WGY$86","v":0},{"$f":"Time!WGZ$86","v":0},{"$f":"Time!WHA$86","v":0},{"$f":"Time!WHB$86","v":0},{"$f":"Time!WHC$86","v":0},{"$f":"Time!WHD$86","v":0},{"$f":"Time!WHE$86","v":0},{"$f":"Time!WHF$86","v":0},{"$f":"Time!WHG$86","v":0},{"$f":"Time!WHH$86","v":0},{"$f":"Time!WHI$86","v":0},{"$f":"Time!WHJ$86","v":0},{"$f":"Time!WHK$86","v":0},{"$f":"Time!WHL$86","v":0},{"$f":"Time!WHM$86","v":0},{"$f":"Time!WHN$86","v":0},{"$f":"Time!WHO$86","v":0},{"$f":"Time!WHP$86","v":0},{"$f":"Time!WHQ$86","v":0},{"$f":"Time!WHR$86","v":0},{"$f":"Time!WHS$86","v":0},{"$f":"Time!WHT$86","v":0},{"$f":"Time!WHU$86","v":0},{"$f":"Time!WHV$86","v":0},{"$f":"Time!WHW$86","v":0},{"$f":"Time!WHX$86","v":0},{"$f":"Time!WHY$86","v":0},{"$f":"Time!WHZ$86","v":0},{"$f":"Time!WIA$86","v":0},{"$f":"Time!WIB$86","v":0},{"$f":"Time!WIC$86","v":0},{"$f":"Time!WID$86","v":0},{"$f":"Time!WIE$86","v":0},{"$f":"Time!WIF$86","v":0},{"$f":"Time!WIG$86","v":0},{"$f":"Time!WIH$86","v":0},{"$f":"Time!WII$86","v":0},{"$f":"Time!WIJ$86","v":0},{"$f":"Time!WIK$86","v":0},{"$f":"Time!WIL$86","v":0},{"$f":"Time!WIM$86","v":0},{"$f":"Time!WIN$86","v":0},{"$f":"Time!WIO$86","v":0},{"$f":"Time!WIP$86","v":0},{"$f":"Time!WIQ$86","v":0},{"$f":"Time!WIR$86","v":0},{"$f":"Time!WIS$86","v":0},{"$f":"Time!WIT$86","v":0},{"$f":"Time!WIU$86","v":0},{"$f":"Time!WIV$86","v":0},{"$f":"Time!WIW$86","v":0},{"$f":"Time!WIX$86","v":0},{"$f":"Time!WIY$86","v":0},{"$f":"Time!WIZ$86","v":0},{"$f":"Time!WJA$86","v":0},{"$f":"Time!WJB$86","v":0},{"$f":"Time!WJC$86","v":0},{"$f":"Time!WJD$86","v":0},{"$f":"Time!WJE$86","v":0},{"$f":"Time!WJF$86","v":0},{"$f":"Time!WJG$86","v":0},{"$f":"Time!WJH$86","v":0},{"$f":"Time!WJI$86","v":0},{"$f":"Time!WJJ$86","v":0},{"$f":"Time!WJK$86","v":0},{"$f":"Time!WJL$86","v":0},{"$f":"Time!WJM$86","v":0},{"$f":"Time!WJN$86","v":0},{"$f":"Time!WJO$86","v":0},{"$f":"Time!WJP$86","v":0},{"$f":"Time!WJQ$86","v":0},{"$f":"Time!WJR$86","v":0},{"$f":"Time!WJS$86","v":0},{"$f":"Time!WJT$86","v":0},{"$f":"Time!WJU$86","v":0},{"$f":"Time!WJV$86","v":0},{"$f":"Time!WJW$86","v":0},{"$f":"Time!WJX$86","v":0},{"$f":"Time!WJY$86","v":0},{"$f":"Time!WJZ$86","v":0},{"$f":"Time!WKA$86","v":0},{"$f":"Time!WKB$86","v":0},{"$f":"Time!WKC$86","v":0},{"$f":"Time!WKD$86","v":0},{"$f":"Time!WKE$86","v":0},{"$f":"Time!WKF$86","v":0},{"$f":"Time!WKG$86","v":0},{"$f":"Time!WKH$86","v":0},{"$f":"Time!WKI$86","v":0},{"$f":"Time!WKJ$86","v":0},{"$f":"Time!WKK$86","v":0},{"$f":"Time!WKL$86","v":0},{"$f":"Time!WKM$86","v":0},{"$f":"Time!WKN$86","v":0},{"$f":"Time!WKO$86","v":0},{"$f":"Time!WKP$86","v":0},{"$f":"Time!WKQ$86","v":0},{"$f":"Time!WKR$86","v":0},{"$f":"Time!WKS$86","v":0},{"$f":"Time!WKT$86","v":0},{"$f":"Time!WKU$86","v":0},{"$f":"Time!WKV$86","v":0},{"$f":"Time!WKW$86","v":0},{"$f":"Time!WKX$86","v":0},{"$f":"Time!WKY$86","v":0},{"$f":"Time!WKZ$86","v":0},{"$f":"Time!WLA$86","v":0},{"$f":"Time!WLB$86","v":0},{"$f":"Time!WLC$86","v":0},{"$f":"Time!WLD$86","v":0},{"$f":"Time!WLE$86","v":0},{"$f":"Time!WLF$86","v":0},{"$f":"Time!WLG$86","v":0},{"$f":"Time!WLH$86","v":0},{"$f":"Time!WLI$86","v":0},{"$f":"Time!WLJ$86","v":0},{"$f":"Time!WLK$86","v":0},{"$f":"Time!WLL$86","v":0},{"$f":"Time!WLM$86","v":0},{"$f":"Time!WLN$86","v":0},{"$f":"Time!WLO$86","v":0},{"$f":"Time!WLP$86","v":0},{"$f":"Time!WLQ$86","v":0},{"$f":"Time!WLR$86","v":0},{"$f":"Time!WLS$86","v":0},{"$f":"Time!WLT$86","v":0},{"$f":"Time!WLU$86","v":0},{"$f":"Time!WLV$86","v":0},{"$f":"Time!WLW$86","v":0},{"$f":"Time!WLX$86","v":0},{"$f":"Time!WLY$86","v":0},{"$f":"Time!WLZ$86","v":0},{"$f":"Time!WMA$86","v":0},{"$f":"Time!WMB$86","v":0},{"$f":"Time!WMC$86","v":0},{"$f":"Time!WMD$86","v":0},{"$f":"Time!WME$86","v":0},{"$f":"Time!WMF$86","v":0},{"$f":"Time!WMG$86","v":0},{"$f":"Time!WMH$86","v":0},{"$f":"Time!WMI$86","v":0},{"$f":"Time!WMJ$86","v":0},{"$f":"Time!WMK$86","v":0},{"$f":"Time!WML$86","v":0},{"$f":"Time!WMM$86","v":0},{"$f":"Time!WMN$86","v":0},{"$f":"Time!WMO$86","v":0},{"$f":"Time!WMP$86","v":0},{"$f":"Time!WMQ$86","v":0},{"$f":"Time!WMR$86","v":0},{"$f":"Time!WMS$86","v":0},{"$f":"Time!WMT$86","v":0},{"$f":"Time!WMU$86","v":0},{"$f":"Time!WMV$86","v":0},{"$f":"Time!WMW$86","v":0},{"$f":"Time!WMX$86","v":0},{"$f":"Time!WMY$86","v":0},{"$f":"Time!WMZ$86","v":0},{"$f":"Time!WNA$86","v":0},{"$f":"Time!WNB$86","v":0},{"$f":"Time!WNC$86","v":0},{"$f":"Time!WND$86","v":0},{"$f":"Time!WNE$86","v":0},{"$f":"Time!WNF$86","v":0},{"$f":"Time!WNG$86","v":0},{"$f":"Time!WNH$86","v":0},{"$f":"Time!WNI$86","v":0},{"$f":"Time!WNJ$86","v":0},{"$f":"Time!WNK$86","v":0},{"$f":"Time!WNL$86","v":0},{"$f":"Time!WNM$86","v":0},{"$f":"Time!WNN$86","v":0},{"$f":"Time!WNO$86","v":0},{"$f":"Time!WNP$86","v":0},{"$f":"Time!WNQ$86","v":0},{"$f":"Time!WNR$86","v":0},{"$f":"Time!WNS$86","v":0},{"$f":"Time!WNT$86","v":0},{"$f":"Time!WNU$86","v":0},{"$f":"Time!WNV$86","v":0},{"$f":"Time!WNW$86","v":0},{"$f":"Time!WNX$86","v":0},{"$f":"Time!WNY$86","v":0},{"$f":"Time!WNZ$86","v":0},{"$f":"Time!WOA$86","v":0},{"$f":"Time!WOB$86","v":0},{"$f":"Time!WOC$86","v":0},{"$f":"Time!WOD$86","v":0},{"$f":"Time!WOE$86","v":0},{"$f":"Time!WOF$86","v":0},{"$f":"Time!WOG$86","v":0},{"$f":"Time!WOH$86","v":0},{"$f":"Time!WOI$86","v":0},{"$f":"Time!WOJ$86","v":0},{"$f":"Time!WOK$86","v":0},{"$f":"Time!WOL$86","v":0},{"$f":"Time!WOM$86","v":0},{"$f":"Time!WON$86","v":0},{"$f":"Time!WOO$86","v":0},{"$f":"Time!WOP$86","v":0},{"$f":"Time!WOQ$86","v":0},{"$f":"Time!WOR$86","v":0},{"$f":"Time!WOS$86","v":0},{"$f":"Time!WOT$86","v":0},{"$f":"Time!WOU$86","v":0},{"$f":"Time!WOV$86","v":0},{"$f":"Time!WOW$86","v":0},{"$f":"Time!WOX$86","v":0},{"$f":"Time!WOY$86","v":0},{"$f":"Time!WOZ$86","v":0},{"$f":"Time!WPA$86","v":0},{"$f":"Time!WPB$86","v":0},{"$f":"Time!WPC$86","v":0},{"$f":"Time!WPD$86","v":0},{"$f":"Time!WPE$86","v":0},{"$f":"Time!WPF$86","v":0},{"$f":"Time!WPG$86","v":0},{"$f":"Time!WPH$86","v":0},{"$f":"Time!WPI$86","v":0},{"$f":"Time!WPJ$86","v":0},{"$f":"Time!WPK$86","v":0},{"$f":"Time!WPL$86","v":0},{"$f":"Time!WPM$86","v":0},{"$f":"Time!WPN$86","v":0},{"$f":"Time!WPO$86","v":0},{"$f":"Time!WPP$86","v":0},{"$f":"Time!WPQ$86","v":0},{"$f":"Time!WPR$86","v":0},{"$f":"Time!WPS$86","v":0},{"$f":"Time!WPT$86","v":0},{"$f":"Time!WPU$86","v":0},{"$f":"Time!WPV$86","v":0},{"$f":"Time!WPW$86","v":0},{"$f":"Time!WPX$86","v":0},{"$f":"Time!WPY$86","v":0},{"$f":"Time!WPZ$86","v":0},{"$f":"Time!WQA$86","v":0},{"$f":"Time!WQB$86","v":0},{"$f":"Time!WQC$86","v":0},{"$f":"Time!WQD$86","v":0},{"$f":"Time!WQE$86","v":0},{"$f":"Time!WQF$86","v":0},{"$f":"Time!WQG$86","v":0},{"$f":"Time!WQH$86","v":0},{"$f":"Time!WQI$86","v":0},{"$f":"Time!WQJ$86","v":0},{"$f":"Time!WQK$86","v":0},{"$f":"Time!WQL$86","v":0},{"$f":"Time!WQM$86","v":0},{"$f":"Time!WQN$86","v":0},{"$f":"Time!WQO$86","v":0},{"$f":"Time!WQP$86","v":0},{"$f":"Time!WQQ$86","v":0},{"$f":"Time!WQR$86","v":0},{"$f":"Time!WQS$86","v":0},{"$f":"Time!WQT$86","v":0},{"$f":"Time!WQU$86","v":0},{"$f":"Time!WQV$86","v":0},{"$f":"Time!WQW$86","v":0},{"$f":"Time!WQX$86","v":0},{"$f":"Time!WQY$86","v":0},{"$f":"Time!WQZ$86","v":0},{"$f":"Time!WRA$86","v":0},{"$f":"Time!WRB$86","v":0},{"$f":"Time!WRC$86","v":0},{"$f":"Time!WRD$86","v":0},{"$f":"Time!WRE$86","v":0},{"$f":"Time!WRF$86","v":0},{"$f":"Time!WRG$86","v":0},{"$f":"Time!WRH$86","v":0},{"$f":"Time!WRI$86","v":0},{"$f":"Time!WRJ$86","v":0},{"$f":"Time!WRK$86","v":0},{"$f":"Time!WRL$86","v":0},{"$f":"Time!WRM$86","v":0},{"$f":"Time!WRN$86","v":0},{"$f":"Time!WRO$86","v":0},{"$f":"Time!WRP$86","v":0},{"$f":"Time!WRQ$86","v":0},{"$f":"Time!WRR$86","v":0},{"$f":"Time!WRS$86","v":0},{"$f":"Time!WRT$86","v":0},{"$f":"Time!WRU$86","v":0},{"$f":"Time!WRV$86","v":0},{"$f":"Time!WRW$86","v":0},{"$f":"Time!WRX$86","v":0},{"$f":"Time!WRY$86","v":0},{"$f":"Time!WRZ$86","v":0},{"$f":"Time!WSA$86","v":0},{"$f":"Time!WSB$86","v":0},{"$f":"Time!WSC$86","v":0},{"$f":"Time!WSD$86","v":0},{"$f":"Time!WSE$86","v":0},{"$f":"Time!WSF$86","v":0},{"$f":"Time!WSG$86","v":0},{"$f":"Time!WSH$86","v":0},{"$f":"Time!WSI$86","v":0},{"$f":"Time!WSJ$86","v":0},{"$f":"Time!WSK$86","v":0},{"$f":"Time!WSL$86","v":0},{"$f":"Time!WSM$86","v":0},{"$f":"Time!WSN$86","v":0},{"$f":"Time!WSO$86","v":0},{"$f":"Time!WSP$86","v":0},{"$f":"Time!WSQ$86","v":0},{"$f":"Time!WSR$86","v":0},{"$f":"Time!WSS$86","v":0},{"$f":"Time!WST$86","v":0},{"$f":"Time!WSU$86","v":0},{"$f":"Time!WSV$86","v":0},{"$f":"Time!WSW$86","v":0},{"$f":"Time!WSX$86","v":0},{"$f":"Time!WSY$86","v":0},{"$f":"Time!WSZ$86","v":0},{"$f":"Time!WTA$86","v":0},{"$f":"Time!WTB$86","v":0},{"$f":"Time!WTC$86","v":0},{"$f":"Time!WTD$86","v":0},{"$f":"Time!WTE$86","v":0},{"$f":"Time!WTF$86","v":0},{"$f":"Time!WTG$86","v":0},{"$f":"Time!WTH$86","v":0},{"$f":"Time!WTI$86","v":0},{"$f":"Time!WTJ$86","v":0},{"$f":"Time!WTK$86","v":0},{"$f":"Time!WTL$86","v":0},{"$f":"Time!WTM$86","v":0},{"$f":"Time!WTN$86","v":0},{"$f":"Time!WTO$86","v":0},{"$f":"Time!WTP$86","v":0},{"$f":"Time!WTQ$86","v":0},{"$f":"Time!WTR$86","v":0},{"$f":"Time!WTS$86","v":0},{"$f":"Time!WTT$86","v":0},{"$f":"Time!WTU$86","v":0},{"$f":"Time!WTV$86","v":0},{"$f":"Time!WTW$86","v":0},{"$f":"Time!WTX$86","v":0},{"$f":"Time!WTY$86","v":0},{"$f":"Time!WTZ$86","v":0},{"$f":"Time!WUA$86","v":0},{"$f":"Time!WUB$86","v":0},{"$f":"Time!WUC$86","v":0},{"$f":"Time!WUD$86","v":0},{"$f":"Time!WUE$86","v":0},{"$f":"Time!WUF$86","v":0},{"$f":"Time!WUG$86","v":0},{"$f":"Time!WUH$86","v":0},{"$f":"Time!WUI$86","v":0},{"$f":"Time!WUJ$86","v":0},{"$f":"Time!WUK$86","v":0},{"$f":"Time!WUL$86","v":0},{"$f":"Time!WUM$86","v":0},{"$f":"Time!WUN$86","v":0},{"$f":"Time!WUO$86","v":0},{"$f":"Time!WUP$86","v":0},{"$f":"Time!WUQ$86","v":0},{"$f":"Time!WUR$86","v":0},{"$f":"Time!WUS$86","v":0},{"$f":"Time!WUT$86","v":0},{"$f":"Time!WUU$86","v":0},{"$f":"Time!WUV$86","v":0},{"$f":"Time!WUW$86","v":0},{"$f":"Time!WUX$86","v":0},{"$f":"Time!WUY$86","v":0},{"$f":"Time!WUZ$86","v":0},{"$f":"Time!WVA$86","v":0},{"$f":"Time!WVB$86","v":0},{"$f":"Time!WVC$86","v":0},{"$f":"Time!WVD$86","v":0},{"$f":"Time!WVE$86","v":0},{"$f":"Time!WVF$86","v":0},{"$f":"Time!WVG$86","v":0},{"$f":"Time!WVH$86","v":0},{"$f":"Time!WVI$86","v":0},{"$f":"Time!WVJ$86","v":0},{"$f":"Time!WVK$86","v":0},{"$f":"Time!WVL$86","v":0},{"$f":"Time!WVM$86","v":0},{"$f":"Time!WVN$86","v":0},{"$f":"Time!WVO$86","v":0},{"$f":"Time!WVP$86","v":0},{"$f":"Time!WVQ$86","v":0},{"$f":"Time!WVR$86","v":0},{"$f":"Time!WVS$86","v":0},{"$f":"Time!WVT$86","v":0},{"$f":"Time!WVU$86","v":0},{"$f":"Time!WVV$86","v":0},{"$f":"Time!WVW$86","v":0},{"$f":"Time!WVX$86","v":0},{"$f":"Time!WVY$86","v":0},{"$f":"Time!WVZ$86","v":0},{"$f":"Time!WWA$86","v":0},{"$f":"Time!WWB$86","v":0},{"$f":"Time!WWC$86","v":0},{"$f":"Time!WWD$86","v":0},{"$f":"Time!WWE$86","v":0},{"$f":"Time!WWF$86","v":0},{"$f":"Time!WWG$86","v":0},{"$f":"Time!WWH$86","v":0},{"$f":"Time!WWI$86","v":0},{"$f":"Time!WWJ$86","v":0},{"$f":"Time!WWK$86","v":0},{"$f":"Time!WWL$86","v":0},{"$f":"Time!WWM$86","v":0},{"$f":"Time!WWN$86","v":0},{"$f":"Time!WWO$86","v":0},{"$f":"Time!WWP$86","v":0},{"$f":"Time!WWQ$86","v":0},{"$f":"Time!WWR$86","v":0},{"$f":"Time!WWS$86","v":0},{"$f":"Time!WWT$86","v":0},{"$f":"Time!WWU$86","v":0},{"$f":"Time!WWV$86","v":0},{"$f":"Time!WWW$86","v":0},{"$f":"Time!WWX$86","v":0},{"$f":"Time!WWY$86","v":0},{"$f":"Time!WWZ$86","v":0},{"$f":"Time!WXA$86","v":0},{"$f":"Time!WXB$86","v":0},{"$f":"Time!WXC$86","v":0},{"$f":"Time!WXD$86","v":0},{"$f":"Time!WXE$86","v":0},{"$f":"Time!WXF$86","v":0},{"$f":"Time!WXG$86","v":0},{"$f":"Time!WXH$86","v":0},{"$f":"Time!WXI$86","v":0},{"$f":"Time!WXJ$86","v":0},{"$f":"Time!WXK$86","v":0},{"$f":"Time!WXL$86","v":0},{"$f":"Time!WXM$86","v":0},{"$f":"Time!WXN$86","v":0},{"$f":"Time!WXO$86","v":0},{"$f":"Time!WXP$86","v":0},{"$f":"Time!WXQ$86","v":0},{"$f":"Time!WXR$86","v":0},{"$f":"Time!WXS$86","v":0},{"$f":"Time!WXT$86","v":0},{"$f":"Time!WXU$86","v":0},{"$f":"Time!WXV$86","v":0},{"$f":"Time!WXW$86","v":0},{"$f":"Time!WXX$86","v":0},{"$f":"Time!WXY$86","v":0},{"$f":"Time!WXZ$86","v":0},{"$f":"Time!WYA$86","v":0},{"$f":"Time!WYB$86","v":0},{"$f":"Time!WYC$86","v":0},{"$f":"Time!WYD$86","v":0},{"$f":"Time!WYE$86","v":0},{"$f":"Time!WYF$86","v":0},{"$f":"Time!WYG$86","v":0},{"$f":"Time!WYH$86","v":0},{"$f":"Time!WYI$86","v":0},{"$f":"Time!WYJ$86","v":0},{"$f":"Time!WYK$86","v":0},{"$f":"Time!WYL$86","v":0},{"$f":"Time!WYM$86","v":0},{"$f":"Time!WYN$86","v":0},{"$f":"Time!WYO$86","v":0},{"$f":"Time!WYP$86","v":0},{"$f":"Time!WYQ$86","v":0},{"$f":"Time!WYR$86","v":0},{"$f":"Time!WYS$86","v":0},{"$f":"Time!WYT$86","v":0},{"$f":"Time!WYU$86","v":0},{"$f":"Time!WYV$86","v":0},{"$f":"Time!WYW$86","v":0},{"$f":"Time!WYX$86","v":0},{"$f":"Time!WYY$86","v":0},{"$f":"Time!WYZ$86","v":0},{"$f":"Time!WZA$86","v":0},{"$f":"Time!WZB$86","v":0},{"$f":"Time!WZC$86","v":0},{"$f":"Time!WZD$86","v":0},{"$f":"Time!WZE$86","v":0},{"$f":"Time!WZF$86","v":0},{"$f":"Time!WZG$86","v":0},{"$f":"Time!WZH$86","v":0},{"$f":"Time!WZI$86","v":0},{"$f":"Time!WZJ$86","v":0},{"$f":"Time!WZK$86","v":0},{"$f":"Time!WZL$86","v":0},{"$f":"Time!WZM$86","v":0},{"$f":"Time!WZN$86","v":0},{"$f":"Time!WZO$86","v":0},{"$f":"Time!WZP$86","v":0},{"$f":"Time!WZQ$86","v":0},{"$f":"Time!WZR$86","v":0},{"$f":"Time!WZS$86","v":0},{"$f":"Time!WZT$86","v":0},{"$f":"Time!WZU$86","v":0},{"$f":"Time!WZV$86","v":0},{"$f":"Time!WZW$86","v":0},{"$f":"Time!WZX$86","v":0},{"$f":"Time!WZY$86","v":0},{"$f":"Time!WZZ$86","v":0},{"$f":"Time!XAA$86","v":0},{"$f":"Time!XAB$86","v":0},{"$f":"Time!XAC$86","v":0},{"$f":"Time!XAD$86","v":0},{"$f":"Time!XAE$86","v":0},{"$f":"Time!XAF$86","v":0},{"$f":"Time!XAG$86","v":0},{"$f":"Time!XAH$86","v":0},{"$f":"Time!XAI$86","v":0},{"$f":"Time!XAJ$86","v":0},{"$f":"Time!XAK$86","v":0},{"$f":"Time!XAL$86","v":0},{"$f":"Time!XAM$86","v":0},{"$f":"Time!XAN$86","v":0},{"$f":"Time!XAO$86","v":0},{"$f":"Time!XAP$86","v":0},{"$f":"Time!XAQ$86","v":0},{"$f":"Time!XAR$86","v":0},{"$f":"Time!XAS$86","v":0},{"$f":"Time!XAT$86","v":0},{"$f":"Time!XAU$86","v":0},{"$f":"Time!XAV$86","v":0},{"$f":"Time!XAW$86","v":0},{"$f":"Time!XAX$86","v":0},{"$f":"Time!XAY$86","v":0},{"$f":"Time!XAZ$86","v":0},{"$f":"Time!XBA$86","v":0},{"$f":"Time!XBB$86","v":0},{"$f":"Time!XBC$86","v":0},{"$f":"Time!XBD$86","v":0},{"$f":"Time!XBE$86","v":0},{"$f":"Time!XBF$86","v":0},{"$f":"Time!XBG$86","v":0},{"$f":"Time!XBH$86","v":0},{"$f":"Time!XBI$86","v":0},{"$f":"Time!XBJ$86","v":0},{"$f":"Time!XBK$86","v":0},{"$f":"Time!XBL$86","v":0},{"$f":"Time!XBM$86","v":0},{"$f":"Time!XBN$86","v":0},{"$f":"Time!XBO$86","v":0},{"$f":"Time!XBP$86","v":0},{"$f":"Time!XBQ$86","v":0},{"$f":"Time!XBR$86","v":0},{"$f":"Time!XBS$86","v":0},{"$f":"Time!XBT$86","v":0},{"$f":"Time!XBU$86","v":0},{"$f":"Time!XBV$86","v":0},{"$f":"Time!XBW$86","v":0},{"$f":"Time!XBX$86","v":0},{"$f":"Time!XBY$86","v":0},{"$f":"Time!XBZ$86","v":0},{"$f":"Time!XCA$86","v":0},{"$f":"Time!XCB$86","v":0},{"$f":"Time!XCC$86","v":0},{"$f":"Time!XCD$86","v":0},{"$f":"Time!XCE$86","v":0},{"$f":"Time!XCF$86","v":0},{"$f":"Time!XCG$86","v":0},{"$f":"Time!XCH$86","v":0},{"$f":"Time!XCI$86","v":0},{"$f":"Time!XCJ$86","v":0},{"$f":"Time!XCK$86","v":0},{"$f":"Time!XCL$86","v":0},{"$f":"Time!XCM$86","v":0},{"$f":"Time!XCN$86","v":0},{"$f":"Time!XCO$86","v":0},{"$f":"Time!XCP$86","v":0},{"$f":"Time!XCQ$86","v":0},{"$f":"Time!XCR$86","v":0},{"$f":"Time!XCS$86","v":0},{"$f":"Time!XCT$86","v":0},{"$f":"Time!XCU$86","v":0},{"$f":"Time!XCV$86","v":0},{"$f":"Time!XCW$86","v":0},{"$f":"Time!XCX$86","v":0},{"$f":"Time!XCY$86","v":0},{"$f":"Time!XCZ$86","v":0},{"$f":"Time!XDA$86","v":0},{"$f":"Time!XDB$86","v":0},{"$f":"Time!XDC$86","v":0},{"$f":"Time!XDD$86","v":0},{"$f":"Time!XDE$86","v":0},{"$f":"Time!XDF$86","v":0},{"$f":"Time!XDG$86","v":0},{"$f":"Time!XDH$86","v":0},{"$f":"Time!XDI$86","v":0},{"$f":"Time!XDJ$86","v":0},{"$f":"Time!XDK$86","v":0},{"$f":"Time!XDL$86","v":0},{"$f":"Time!XDM$86","v":0},{"$f":"Time!XDN$86","v":0},{"$f":"Time!XDO$86","v":0},{"$f":"Time!XDP$86","v":0},{"$f":"Time!XDQ$86","v":0},{"$f":"Time!XDR$86","v":0},{"$f":"Time!XDS$86","v":0},{"$f":"Time!XDT$86","v":0},{"$f":"Time!XDU$86","v":0},{"$f":"Time!XDV$86","v":0},{"$f":"Time!XDW$86","v":0},{"$f":"Time!XDX$86","v":0},{"$f":"Time!XDY$86","v":0},{"$f":"Time!XDZ$86","v":0},{"$f":"Time!XEA$86","v":0},{"$f":"Time!XEB$86","v":0},{"$f":"Time!XEC$86","v":0},{"$f":"Time!XED$86","v":0},{"$f":"Time!XEE$86","v":0},{"$f":"Time!XEF$86","v":0},{"$f":"Time!XEG$86","v":0},{"$f":"Time!XEH$86","v":0},{"$f":"Time!XEI$86","v":0},{"$f":"Time!XEJ$86","v":0},{"$f":"Time!XEK$86","v":0},{"$f":"Time!XEL$86","v":0},{"$f":"Time!XEM$86","v":0},{"$f":"Time!XEN$86","v":0},{"$f":"Time!XEO$86","v":0},{"$f":"Time!XEP$86","v":0},{"$f":"Time!XEQ$86","v":0},{"$f":"Time!XER$86","v":0},{"$f":"Time!XES$86","v":0},{"$f":"Time!XET$86","v":0},{"$f":"Time!XEU$86","v":0},{"$f":"Time!XEV$86","v":0},{"$f":"Time!XEW$86","v":0},{"$f":"Time!XEX$86","v":0},{"$f":"Time!XEY$86","v":0},{"$f":"Time!XEZ$86","v":0},{"$f":"Time!XFA$86","v":0},{"$f":"Time!XFB$86","v":0},{"$f":"Time!XFC$86","v":0},{"$f":"Time!XFD$86","v":0}]
[null,null,null,null,{"$f":"Time!E$11","v":"Model column counter"},"Constant","Unit","Total",null,{"$f":"Time!J$11","v":1},{"$f":"Time!K$11","v":2},{"$f":"Time!L$11","v":3},{"$f":"Time!M$11","v":4},{"$f":"Time!N$11","v":5},{"$f":"Time!O$11","v":6},{"$f":"Time!P$11","v":7},{"$f":"Time!Q$11","v":8},{"$f":"Time!R$11","v":9},{"$f":"Time!S$11","v":0},{"$f":"Time!T$11","v":0},{"$f":"Time!U$11","v":0},{"$f":"Time!V$11","v":0},{"$f":"Time!W$11","v":0},{"$f":"Time!X$11","v":0},{"$f":"Time!Y$11","v":0},{"$f":"Time!Z$11","v":0},{"$f":"Time!AA$11","v":0},{"$f":"Time!AB$11","v":0},{"$f":"Time!AC$11","v":0},{"$f":"Time!AD$11","v":0},{"$f":"Time!AE$11","v":0},{"$f":"Time!AF$11","v":0},{"$f":"Time!AG$11","v":0},{"$f":"Time!AH$11","v":0},{"$f":"Time!AI$11","v":0},{"$f":"Time!AJ$11","v":0},{"$f":"Time!AK$11","v":0},{"$f":"Time!AL$11","v":0},{"$f":"Time!AM$11","v":0},{"$f":"Time!AN$11","v":0},{"$f":"Time!AO$11","v":0},{"$f":"Time!AP$11","v":0},{"$f":"Time!AQ$11","v":0},{"$f":"Time!AR$11","v":0},{"$f":"Time!AS$11","v":0},{"$f":"Time!AT$11","v":0},{"$f":"Time!AU$11","v":0},{"$f":"Time!AV$11","v":0},{"$f":"Time!AW$11","v":0},{"$f":"Time!AX$11","v":0},{"$f":"Time!AY$11","v":0},{"$f":"Time!AZ$11","v":0},{"$f":"Time!BA$11","v":0},{"$f":"Time!BB$11","v":0},{"$f":"Time!BC$11","v":0},{"$f":"Time!BD$11","v":0},{"$f":"Time!BE$11","v":0},{"$f":"Time!BF$11","v":0},{"$f":"Time!BG$11","v":0},{"$f":"Time!BH$11","v":0},{"$f":"Time!BI$11","v":0},{"$f":"Time!BJ$11","v":0},{"$f":"Time!BK$11","v":0},{"$f":"Time!BL$11","v":0},{"$f":"Time!BM$11","v":0},{"$f":"Time!BN$11","v":0},{"$f":"Time!BO$11","v":0},{"$f":"Time!BP$11","v":0},{"$f":"Time!BQ$11","v":0},{"$f":"Time!BR$11","v":0},{"$f":"Time!BS$11","v":0},{"$f":"Time!BT$11","v":0},{"$f":"Time!BU$11","v":0},{"$f":"Time!BV$11","v":0},{"$f":"Time!BW$11","v":0},{"$f":"Time!BX$11","v":0},{"$f":"Time!BY$11","v":0},{"$f":"Time!BZ$11","v":0},{"$f":"Time!CA$11","v":0},{"$f":"Time!CB$11","v":0},{"$f":"Time!CC$11","v":0},{"$f":"Time!CD$11","v":0},{"$f":"Time!CE$11","v":0},{"$f":"Time!CF$11","v":0},{"$f":"Time!CG$11","v":0},{"$f":"Time!CH$11","v":0},{"$f":"Time!CI$11","v":0},{"$f":"Time!CJ$11","v":0},{"$f":"Time!CK$11","v":0},{"$f":"Time!CL$11","v":0},{"$f":"Time!CM$11","v":0},{"$f":"Time!CN$11","v":0},{"$f":"Time!CO$11","v":0},{"$f":"Time!CP$11","v":0},{"$f":"Time!CQ$11","v":0},{"$f":"Time!CR$11","v":0},{"$f":"Time!CS$11","v":0},{"$f":"Time!CT$11","v":0},{"$f":"Time!CU$11","v":0},{"$f":"Time!CV$11","v":0},{"$f":"Time!CW$11","v":0},{"$f":"Time!CX$11","v":0},{"$f":"Time!CY$11","v":0},{"$f":"Time!CZ$11","v":0},{"$f":"Time!DA$11","v":0},{"$f":"Time!DB$11","v":0},{"$f":"Time!DC$11","v":0},{"$f":"Time!DD$11","v":0},{"$f":"Time!DE$11","v":0},{"$f":"Time!DF$11","v":0},{"$f":"Time!DG$11","v":0},{"$f":"Time!DH$11","v":0},{"$f":"Time!DI$11","v":0},{"$f":"Time!DJ$11","v":0},{"$f":"Time!DK$11","v":0},{"$f":"Time!DL$11","v":0},{"$f":"Time!DM$11","v":0},{"$f":"Time!DN$11","v":0},{"$f":"Time!DO$11","v":0},{"$f":"Time!DP$11","v":0},{"$f":"Time!DQ$11","v":0},{"$f":"Time!DR$11","v":0},{"$f":"Time!DS$11","v":0},{"$f":"Time!DT$11","v":0},{"$f":"Time!DU$11","v":0},{"$f":"Time!DV$11","v":0},{"$f":"Time!DW$11","v":0},{"$f":"Time!DX$11","v":0},{"$f":"Time!DY$11","v":0},{"$f":"Time!DZ$11","v":0},{"$f":"Time!EA$11","v":0},{"$f":"Time!EB$11","v":0},{"$f":"Time!EC$11","v":0},{"$f":"Time!ED$11","v":0},{"$f":"Time!EE$11","v":0},{"$f":"Time!EF$11","v":0},{"$f":"Time!EG$11","v":0},{"$f":"Time!EH$11","v":0},{"$f":"Time!EI$11","v":0},{"$f":"Time!EJ$11","v":0},{"$f":"Time!EK$11","v":0},{"$f":"Time!EL$11","v":0},{"$f":"Time!EM$11","v":0},{"$f":"Time!EN$11","v":0},{"$f":"Time!EO$11","v":0},{"$f":"Time!EP$11","v":0},{"$f":"Time!EQ$11","v":0},{"$f":"Time!ER$11","v":0},{"$f":"Time!ES$11","v":0},{"$f":"Time!ET$11","v":0},{"$f":"Time!EU$11","v":0},{"$f":"Time!EV$11","v":0},{"$f":"Time!EW$11","v":0},{"$f":"Time!EX$11","v":0},{"$f":"Time!EY$11","v":0},{"$f":"Time!EZ$11","v":0},{"$f":"Time!FA$11","v":0},{"$f":"Time!FB$11","v":0},{"$f":"Time!FC$11","v":0},{"$f":"Time!FD$11","v":0},{"$f":"Time!FE$11","v":0},{"$f":"Time!FF$11","v":0},{"$f":"Time!FG$11","v":0},{"$f":"Time!FH$11","v":0},{"$f":"Time!FI$11","v":0},{"$f":"Time!FJ$11","v":0},{"$f":"Time!FK$11","v":0},{"$f":"Time!FL$11","v":0},{"$f":"Time!FM$11","v":0},{"$f":"Time!FN$11","v":0},{"$f":"Time!FO$11","v":0},{"$f":"Time!FP$11","v":0},{"$f":"Time!FQ$11","v":0},{"$f":"Time!FR$11","v":0},{"$f":"Time!FS$11","v":0},{"$f":"Time!FT$11","v":0},{"$f":"Time!FU$11","v":0},{"$f":"Time!FV$11","v":0},{"$f":"Time!FW$11","v":0},{"$f":"Time!FX$11","v":0},{"$f":"Time!FY$11","v":0},{"$f":"Time!FZ$11","v":0},{"$f":"Time!GA$11","v":0},{"$f":"Time!GB$11","v":0},{"$f":"Time!GC$11","v":0},{"$f":"Time!GD$11","v":0},{"$f":"Time!GE$11","v":0},{"$f":"Time!GF$11","v":0},{"$f":"Time!GG$11","v":0},{"$f":"Time!GH$11","v":0},{"$f":"Time!GI$11","v":0},{"$f":"Time!GJ$11","v":0},{"$f":"Time!GK$11","v":0},{"$f":"Time!GL$11","v":0},{"$f":"Time!GM$11","v":0},{"$f":"Time!GN$11","v":0},{"$f":"Time!GO$11","v":0},{"$f":"Time!GP$11","v":0},{"$f":"Time!GQ$11","v":0},{"$f":"Time!GR$11","v":0},{"$f":"Time!GS$11","v":0},{"$f":"Time!GT$11","v":0},{"$f":"Time!GU$11","v":0},{"$f":"Time!GV$11","v":0},{"$f":"Time!GW$11","v":0},{"$f":"Time!GX$11","v":0},{"$f":"Time!GY$11","v":0},{"$f":"Time!GZ$11","v":0},{"$f":"Time!HA$11","v":0},{"$f":"Time!HB$11","v":0},{"$f":"Time!HC$11","v":0},{"$f":"Time!HD$11","v":0},{"$f":"Time!HE$11","v":0},{"$f":"Time!HF$11","v":0},{"$f":"Time!HG$11","v":0},{"$f":"Time!HH$11","v":0},{"$f":"Time!HI$11","v":0},{"$f":"Time!HJ$11","v":0},{"$f":"Time!HK$11","v":0},{"$f":"Time!HL$11","v":0},{"$f":"Time!HM$11","v":0},{"$f":"Time!HN$11","v":0},{"$f":"Time!HO$11","v":0},{"$f":"Time!HP$11","v":0},{"$f":"Time!HQ$11","v":0},{"$f":"Time!HR$11","v":0},{"$f":"Time!HS$11","v":0},{"$f":"Time!HT$11","v":0},{"$f":"Time!HU$11","v":0},{"$f":"Time!HV$11","v":0},{"$f":"Time!HW$11","v":0},{"$f":"Time!HX$11","v":0},{"$f":"Time!HY$11","v":0},{"$f":"Time!HZ$11","v":0},{"$f":"Time!IA$11","v":0},{"$f":"Time!IB$11","v":0},{"$f":"Time!IC$11","v":0},{"$f":"Time!ID$11","v":0},{"$f":"Time!IE$11","v":0},{"$f":"Time!IF$11","v":0},{"$f":"Time!IG$11","v":0},{"$f":"Time!IH$11","v":0},{"$f":"Time!II$11","v":0},{"$f":"Time!IJ$11","v":0},{"$f":"Time!IK$11","v":0},{"$f":"Time!IL$11","v":0},{"$f":"Time!IM$11","v":0},{"$f":"Time!IN$11","v":0},{"$f":"Time!IO$11","v":0},{"$f":"Time!IP$11","v":0},{"$f":"Time!IQ$11","v":0},{"$f":"Time!IR$11","v":0},{"$f":"Time!IS$11","v":0},{"$f":"Time!IT$11","v":0},{"$f":"Time!IU$11","v":0},{"$f":"Time!IV$11","v":0},{"$f":"Time!IW$11","v":0},{"$f":"Time!IX$11","v":0},{"$f":"Time!IY$11","v":0},{"$f":"Time!IZ$11","v":0},{"$f":"Time!JA$11","v":0},{"$f":"Time!JB$11","v":0},{"$f":"Time!JC$11","v":0},{"$f":"Time!JD$11","v":0},{"$f":"Time!JE$11","v":0},{"$f":"Time!JF$11","v":0},{"$f":"Time!JG$11","v":0},{"$f":"Time!JH$11","v":0},{"$f":"Time!JI$11","v":0},{"$f":"Time!JJ$11","v":0},{"$f":"Time!JK$11","v":0},{"$f":"Time!JL$11","v":0},{"$f":"Time!JM$11","v":0},{"$f":"Time!JN$11","v":0},{"$f":"Time!JO$11","v":0},{"$f":"Time!JP$11","v":0},{"$f":"Time!JQ$11","v":0},{"$f":"Time!JR$11","v":0},{"$f":"Time!JS$11","v":0},{"$f":"Time!JT$11","v":0},{"$f":"Time!JU$11","v":0},{"$f":"Time!JV$11","v":0},{"$f":"Time!JW$11","v":0},{"$f":"Time!JX$11","v":0},{"$f":"Time!JY$11","v":0},{"$f":"Time!JZ$11","v":0},{"$f":"Time!KA$11","v":0},{"$f":"Time!KB$11","v":0},{"$f":"Time!KC$11","v":0},{"$f":"Time!KD$11","v":0},{"$f":"Time!KE$11","v":0},{"$f":"Time!KF$11","v":0},{"$f":"Time!KG$11","v":0},{"$f":"Time!KH$11","v":0},{"$f":"Time!KI$11","v":0},{"$f":"Time!KJ$11","v":0},{"$f":"Time!KK$11","v":0},{"$f":"Time!KL$11","v":0},{"$f":"Time!KM$11","v":0},{"$f":"Time!KN$11","v":0},{"$f":"Time!KO$11","v":0},{"$f":"Time!KP$11","v":0},{"$f":"Time!KQ$11","v":0},{"$f":"Time!KR$11","v":0},{"$f":"Time!KS$11","v":0},{"$f":"Time!KT$11","v":0},{"$f":"Time!KU$11","v":0},{"$f":"Time!KV$11","v":0},{"$f":"Time!KW$11","v":0},{"$f":"Time!KX$11","v":0},{"$f":"Time!KY$11","v":0},{"$f":"Time!KZ$11","v":0},{"$f":"Time!LA$11","v":0},{"$f":"Time!LB$11","v":0},{"$f":"Time!LC$11","v":0},{"$f":"Time!LD$11","v":0},{"$f":"Time!LE$11","v":0},{"$f":"Time!LF$11","v":0},{"$f":"Time!LG$11","v":0},{"$f":"Time!LH$11","v":0},{"$f":"Time!LI$11","v":0},{"$f":"Time!LJ$11","v":0},{"$f":"Time!LK$11","v":0},{"$f":"Time!LL$11","v":0},{"$f":"Time!LM$11","v":0},{"$f":"Time!LN$11","v":0},{"$f":"Time!LO$11","v":0},{"$f":"Time!LP$11","v":0},{"$f":"Time!LQ$11","v":0},{"$f":"Time!LR$11","v":0},{"$f":"Time!LS$11","v":0},{"$f":"Time!LT$11","v":0},{"$f":"Time!LU$11","v":0},{"$f":"Time!LV$11","v":0},{"$f":"Time!LW$11","v":0},{"$f":"Time!LX$11","v":0},{"$f":"Time!LY$11","v":0},{"$f":"Time!LZ$11","v":0},{"$f":"Time!MA$11","v":0},{"$f":"Time!MB$11","v":0},{"$f":"Time!MC$11","v":0},{"$f":"Time!MD$11","v":0},{"$f":"Time!ME$11","v":0},{"$f":"Time!MF$11","v":0},{"$f":"Time!MG$11","v":0},{"$f":"Time!MH$11","v":0},{"$f":"Time!MI$11","v":0},{"$f":"Time!MJ$11","v":0},{"$f":"Time!MK$11","v":0},{"$f":"Time!ML$11","v":0},{"$f":"Time!MM$11","v":0},{"$f":"Time!MN$11","v":0},{"$f":"Time!MO$11","v":0},{"$f":"Time!MP$11","v":0},{"$f":"Time!MQ$11","v":0},{"$f":"Time!MR$11","v":0},{"$f":"Time!MS$11","v":0},{"$f":"Time!MT$11","v":0},{"$f":"Time!MU$11","v":0},{"$f":"Time!MV$11","v":0},{"$f":"Time!MW$11","v":0},{"$f":"Time!MX$11","v":0},{"$f":"Time!MY$11","v":0},{"$f":"Time!MZ$11","v":0},{"$f":"Time!NA$11","v":0},{"$f":"Time!NB$11","v":0},{"$f":"Time!NC$11","v":0},{"$f":"Time!ND$11","v":0},{"$f":"Time!NE$11","v":0},{"$f":"Time!NF$11","v":0},{"$f":"Time!NG$11","v":0},{"$f":"Time!NH$11","v":0},{"$f":"Time!NI$11","v":0},{"$f":"Time!NJ$11","v":0},{"$f":"Time!NK$11","v":0},{"$f":"Time!NL$11","v":0},{"$f":"Time!NM$11","v":0},{"$f":"Time!NN$11","v":0},{"$f":"Time!NO$11","v":0},{"$f":"Time!NP$11","v":0},{"$f":"Time!NQ$11","v":0},{"$f":"Time!NR$11","v":0},{"$f":"Time!NS$11","v":0},{"$f":"Time!NT$11","v":0},{"$f":"Time!NU$11","v":0},{"$f":"Time!NV$11","v":0},{"$f":"Time!NW$11","v":0},{"$f":"Time!NX$11","v":0},{"$f":"Time!NY$11","v":0},{"$f":"Time!NZ$11","v":0},{"$f":"Time!OA$11","v":0},{"$f":"Time!OB$11","v":0},{"$f":"Time!OC$11","v":0},{"$f":"Time!OD$11","v":0},{"$f":"Time!OE$11","v":0},{"$f":"Time!OF$11","v":0},{"$f":"Time!OG$11","v":0},{"$f":"Time!OH$11","v":0},{"$f":"Time!OI$11","v":0},{"$f":"Time!OJ$11","v":0},{"$f":"Time!OK$11","v":0},{"$f":"Time!OL$11","v":0},{"$f":"Time!OM$11","v":0},{"$f":"Time!ON$11","v":0},{"$f":"Time!OO$11","v":0},{"$f":"Time!OP$11","v":0},{"$f":"Time!OQ$11","v":0},{"$f":"Time!OR$11","v":0},{"$f":"Time!OS$11","v":0},{"$f":"Time!OT$11","v":0},{"$f":"Time!OU$11","v":0},{"$f":"Time!OV$11","v":0},{"$f":"Time!OW$11","v":0},{"$f":"Time!OX$11","v":0},{"$f":"Time!OY$11","v":0},{"$f":"Time!OZ$11","v":0},{"$f":"Time!PA$11","v":0},{"$f":"Time!PB$11","v":0},{"$f":"Time!PC$11","v":0},{"$f":"Time!PD$11","v":0},{"$f":"Time!PE$11","v":0},{"$f":"Time!PF$11","v":0},{"$f":"Time!PG$11","v":0},{"$f":"Time!PH$11","v":0},{"$f":"Time!PI$11","v":0},{"$f":"Time!PJ$11","v":0},{"$f":"Time!PK$11","v":0},{"$f":"Time!PL$11","v":0},{"$f":"Time!PM$11","v":0},{"$f":"Time!PN$11","v":0},{"$f":"Time!PO$11","v":0},{"$f":"Time!PP$11","v":0},{"$f":"Time!PQ$11","v":0},{"$f":"Time!PR$11","v":0},{"$f":"Time!PS$11","v":0},{"$f":"Time!PT$11","v":0},{"$f":"Time!PU$11","v":0},{"$f":"Time!PV$11","v":0},{"$f":"Time!PW$11","v":0},{"$f":"Time!PX$11","v":0},{"$f":"Time!PY$11","v":0},{"$f":"Time!PZ$11","v":0},{"$f":"Time!QA$11","v":0},{"$f":"Time!QB$11","v":0},{"$f":"Time!QC$11","v":0},{"$f":"Time!QD$11","v":0},{"$f":"Time!QE$11","v":0},{"$f":"Time!QF$11","v":0},{"$f":"Time!QG$11","v":0},{"$f":"Time!QH$11","v":0},{"$f":"Time!QI$11","v":0},{"$f":"Time!QJ$11","v":0},{"$f":"Time!QK$11","v":0},{"$f":"Time!QL$11","v":0},{"$f":"Time!QM$11","v":0},{"$f":"Time!QN$11","v":0},{"$f":"Time!QO$11","v":0},{"$f":"Time!QP$11","v":0},{"$f":"Time!QQ$11","v":0},{"$f":"Time!QR$11","v":0},{"$f":"Time!QS$11","v":0},{"$f":"Time!QT$11","v":0},{"$f":"Time!QU$11","v":0},{"$f":"Time!QV$11","v":0},{"$f":"Time!QW$11","v":0},{"$f":"Time!QX$11","v":0},{"$f":"Time!QY$11","v":0},{"$f":"Time!QZ$11","v":0},{"$f":"Time!RA$11","v":0},{"$f":"Time!RB$11","v":0},{"$f":"Time!RC$11","v":0},{"$f":"Time!RD$11","v":0},{"$f":"Time!RE$11","v":0},{"$f":"Time!RF$11","v":0},{"$f":"Time!RG$11","v":0},{"$f":"Time!RH$11","v":0},{"$f":"Time!RI$11","v":0},{"$f":"Time!RJ$11","v":0},{"$f":"Time!RK$11","v":0},{"$f":"Time!RL$11","v":0},{"$f":"Time!RM$11","v":0},{"$f":"Time!RN$11","v":0},{"$f":"Time!RO$11","v":0},{"$f":"Time!RP$11","v":0},{"$f":"Time!RQ$11","v":0},{"$f":"Time!RR$11","v":0},{"$f":"Time!RS$11","v":0},{"$f":"Time!RT$11","v":0},{"$f":"Time!RU$11","v":0},{"$f":"Time!RV$11","v":0},{"$f":"Time!RW$11","v":0},{"$f":"Time!RX$11","v":0},{"$f":"Time!RY$11","v":0},{"$f":"Time!RZ$11","v":0},{"$f":"Time!SA$11","v":0},{"$f":"Time!SB$11","v":0},{"$f":"Time!SC$11","v":0},{"$f":"Time!SD$11","v":0},{"$f":"Time!SE$11","v":0},{"$f":"Time!SF$11","v":0},{"$f":"Time!SG$11","v":0},{"$f":"Time!SH$11","v":0},{"$f":"Time!SI$11","v":0},{"$f":"Time!SJ$11","v":0},{"$f":"Time!SK$11","v":0},{"$f":"Time!SL$11","v":0},{"$f":"Time!SM$11","v":0},{"$f":"Time!SN$11","v":0},{"$f":"Time!SO$11","v":0},{"$f":"Time!SP$11","v":0},{"$f":"Time!SQ$11","v":0},{"$f":"Time!SR$11","v":0},{"$f":"Time!SS$11","v":0},{"$f":"Time!ST$11","v":0},{"$f":"Time!SU$11","v":0},{"$f":"Time!SV$11","v":0},{"$f":"Time!SW$11","v":0},{"$f":"Time!SX$11","v":0},{"$f":"Time!SY$11","v":0},{"$f":"Time!SZ$11","v":0},{"$f":"Time!TA$11","v":0},{"$f":"Time!TB$11","v":0},{"$f":"Time!TC$11","v":0},{"$f":"Time!TD$11","v":0},{"$f":"Time!TE$11","v":0},{"$f":"Time!TF$11","v":0},{"$f":"Time!TG$11","v":0},{"$f":"Time!TH$11","v":0},{"$f":"Time!TI$11","v":0},{"$f":"Time!TJ$11","v":0},{"$f":"Time!TK$11","v":0},{"$f":"Time!TL$11","v":0},{"$f":"Time!TM$11","v":0},{"$f":"Time!TN$11","v":0},{"$f":"Time!TO$11","v":0},{"$f":"Time!TP$11","v":0},{"$f":"Time!TQ$11","v":0},{"$f":"Time!TR$11","v":0},{"$f":"Time!TS$11","v":0},{"$f":"Time!TT$11","v":0},{"$f":"Time!TU$11","v":0},{"$f":"Time!TV$11","v":0},{"$f":"Time!TW$11","v":0},{"$f":"Time!TX$11","v":0},{"$f":"Time!TY$11","v":0},{"$f":"Time!TZ$11","v":0},{"$f":"Time!UA$11","v":0},{"$f":"Time!UB$11","v":0},{"$f":"Time!UC$11","v":0},{"$f":"Time!UD$11","v":0},{"$f":"Time!UE$11","v":0},{"$f":"Time!UF$11","v":0},{"$f":"Time!UG$11","v":0},{"$f":"Time!UH$11","v":0},{"$f":"Time!UI$11","v":0},{"$f":"Time!UJ$11","v":0},{"$f":"Time!UK$11","v":0},{"$f":"Time!UL$11","v":0},{"$f":"Time!UM$11","v":0},{"$f":"Time!UN$11","v":0},{"$f":"Time!UO$11","v":0},{"$f":"Time!UP$11","v":0},{"$f":"Time!UQ$11","v":0},{"$f":"Time!UR$11","v":0},{"$f":"Time!US$11","v":0},{"$f":"Time!UT$11","v":0},{"$f":"Time!UU$11","v":0},{"$f":"Time!UV$11","v":0},{"$f":"Time!UW$11","v":0},{"$f":"Time!UX$11","v":0},{"$f":"Time!UY$11","v":0},{"$f":"Time!UZ$11","v":0},{"$f":"Time!VA$11","v":0},{"$f":"Time!VB$11","v":0},{"$f":"Time!VC$11","v":0},{"$f":"Time!VD$11","v":0},{"$f":"Time!VE$11","v":0},{"$f":"Time!VF$11","v":0},{"$f":"Time!VG$11","v":0},{"$f":"Time!VH$11","v":0},{"$f":"Time!VI$11","v":0},{"$f":"Time!VJ$11","v":0},{"$f":"Time!VK$11","v":0},{"$f":"Time!VL$11","v":0},{"$f":"Time!VM$11","v":0},{"$f":"Time!VN$11","v":0},{"$f":"Time!VO$11","v":0},{"$f":"Time!VP$11","v":0},{"$f":"Time!VQ$11","v":0},{"$f":"Time!VR$11","v":0},{"$f":"Time!VS$11","v":0},{"$f":"Time!VT$11","v":0},{"$f":"Time!VU$11","v":0},{"$f":"Time!VV$11","v":0},{"$f":"Time!VW$11","v":0},{"$f":"Time!VX$11","v":0},{"$f":"Time!VY$11","v":0},{"$f":"Time!VZ$11","v":0},{"$f":"Time!WA$11","v":0},{"$f":"Time!WB$11","v":0},{"$f":"Time!WC$11","v":0},{"$f":"Time!WD$11","v":0},{"$f":"Time!WE$11","v":0},{"$f":"Time!WF$11","v":0},{"$f":"Time!WG$11","v":0},{"$f":"Time!WH$11","v":0},{"$f":"Time!WI$11","v":0},{"$f":"Time!WJ$11","v":0},{"$f":"Time!WK$11","v":0},{"$f":"Time!WL$11","v":0},{"$f":"Time!WM$11","v":0},{"$f":"Time!WN$11","v":0},{"$f":"Time!WO$11","v":0},{"$f":"Time!WP$11","v":0},{"$f":"Time!WQ$11","v":0},{"$f":"Time!WR$11","v":0},{"$f":"Time!WS$11","v":0},{"$f":"Time!WT$11","v":0},{"$f":"Time!WU$11","v":0},{"$f":"Time!WV$11","v":0},{"$f":"Time!WW$11","v":0},{"$f":"Time!WX$11","v":0},{"$f":"Time!WY$11","v":0},{"$f":"Time!WZ$11","v":0},{"$f":"Time!XA$11","v":0},{"$f":"Time!XB$11","v":0},{"$f":"Time!XC$11","v":0},{"$f":"Time!XD$11","v":0},{"$f":"Time!XE$11","v":0},{"$f":"Time!XF$11","v":0},{"$f":"Time!XG$11","v":0},{"$f":"Time!XH$11","v":0},{"$f":"Time!XI$11","v":0},{"$f":"Time!XJ$11","v":0},{"$f":"Time!XK$11","v":0},{"$f":"Time!XL$11","v":0},{"$f":"Time!XM$11","v":0},{"$f":"Time!XN$11","v":0},{"$f":"Time!XO$11","v":0},{"$f":"Time!XP$11","v":0},{"$f":"Time!XQ$11","v":0},{"$f":"Time!XR$11","v":0},{"$f":"Time!XS$11","v":0},{"$f":"Time!XT$11","v":0},{"$f":"Time!XU$11","v":0},{"$f":"Time!XV$11","v":0},{"$f":"Time!XW$11","v":0},{"$f":"Time!XX$11","v":0},{"$f":"Time!XY$11","v":0},{"$f":"Time!XZ$11","v":0},{"$f":"Time!YA$11","v":0},{"$f":"Time!YB$11","v":0},{"$f":"Time!YC$11","v":0},{"$f":"Time!YD$11","v":0},{"$f":"Time!YE$11","v":0},{"$f":"Time!YF$11","v":0},{"$f":"Time!YG$11","v":0},{"$f":"Time!YH$11","v":0},{"$f":"Time!YI$11","v":0},{"$f":"Time!YJ$11","v":0},{"$f":"Time!YK$11","v":0},{"$f":"Time!YL$11","v":0},{"$f":"Time!YM$11","v":0},{"$f":"Time!YN$11","v":0},{"$f":"Time!YO$11","v":0},{"$f":"Time!YP$11","v":0},{"$f":"Time!YQ$11","v":0},{"$f":"Time!YR$11","v":0},{"$f":"Time!YS$11","v":0},{"$f":"Time!YT$11","v":0},{"$f":"Time!YU$11","v":0},{"$f":"Time!YV$11","v":0},{"$f":"Time!YW$11","v":0},{"$f":"Time!YX$11","v":0},{"$f":"Time!YY$11","v":0},{"$f":"Time!YZ$11","v":0},{"$f":"Time!ZA$11","v":0},{"$f":"Time!ZB$11","v":0},{"$f":"Time!ZC$11","v":0},{"$f":"Time!ZD$11","v":0},{"$f":"Time!ZE$11","v":0},{"$f":"Time!ZF$11","v":0},{"$f":"Time!ZG$11","v":0},{"$f":"Time!ZH$11","v":0},{"$f":"Time!ZI$11","v":0},{"$f":"Time!ZJ$11","v":0},{"$f":"Time!ZK$11","v":0},{"$f":"Time!ZL$11","v":0},{"$f":"Time!ZM$11","v":0},{"$f":"Time!ZN$11","v":0},{"$f":"Time!ZO$11","v":0},{"$f":"Time!ZP$11","v":0},{"$f":"Time!ZQ$11","v":0},{"$f":"Time!ZR$11","v":0},{"$f":"Time!ZS$11","v":0},{"$f":"Time!ZT$11","v":0},{"$f":"Time!ZU$11","v":0},{"$f":"Time!ZV$11","v":0},{"$f":"Time!ZW$11","v":0},{"$f":"Time!ZX$11","v":0},{"$f":"Time!ZY$11","v":0},{"$f":"Time!ZZ$11","v":0},{"$f":"Time!AAA$11","v":0},{"$f":"Time!AAB$11","v":0},{"$f":"Time!AAC$11","v":0},{"$f":"Time!AAD$11","v":0},{"$f":"Time!AAE$11","v":0},{"$f":"Time!AAF$11","v":0},{"$f":"Time!AAG$11","v":0},{"$f":"Time!AAH$11","v":0},{"$f":"Time!AAI$11","v":0},{"$f":"Time!AAJ$11","v":0},{"$f":"Time!AAK$11","v":0},{"$f":"Time!AAL$11","v":0},{"$f":"Time!AAM$11","v":0},{"$f":"Time!AAN$11","v":0},{"$f":"Time!AAO$11","v":0},{"$f":"Time!AAP$11","v":0},{"$f":"Time!AAQ$11","v":0},{"$f":"Time!AAR$11","v":0},{"$f":"Time!AAS$11","v":0},{"$f":"Time!AAT$11","v":0},{"$f":"Time!AAU$11","v":0},{"$f":"Time!AAV$11","v":0},{"$f":"Time!AAW$11","v":0},{"$f":"Time!AAX$11","v":0},{"$f":"Time!AAY$11","v":0},{"$f":"Time!AAZ$11","v":0},{"$f":"Time!ABA$11","v":0},{"$f":"Time!ABB$11","v":0},{"$f":"Time!ABC$11","v":0},{"$f":"Time!ABD$11","v":0},{"$f":"Time!ABE$11","v":0},{"$f":"Time!ABF$11","v":0},{"$f":"Time!ABG$11","v":0},{"$f":"Time!ABH$11","v":0},{"$f":"Time!ABI$11","v":0},{"$f":"Time!ABJ$11","v":0},{"$f":"Time!ABK$11","v":0},{"$f":"Time!ABL$11","v":0},{"$f":"Time!ABM$11","v":0},{"$f":"Time!ABN$11","v":0},{"$f":"Time!ABO$11","v":0},{"$f":"Time!ABP$11","v":0},{"$f":"Time!ABQ$11","v":0},{"$f":"Time!ABR$11","v":0},{"$f":"Time!ABS$11","v":0},{"$f":"Time!ABT$11","v":0},{"$f":"Time!ABU$11","v":0},{"$f":"Time!ABV$11","v":0},{"$f":"Time!ABW$11","v":0},{"$f":"Time!ABX$11","v":0},{"$f":"Time!ABY$11","v":0},{"$f":"Time!ABZ$11","v":0},{"$f":"Time!ACA$11","v":0},{"$f":"Time!ACB$11","v":0},{"$f":"Time!ACC$11","v":0},{"$f":"Time!ACD$11","v":0},{"$f":"Time!ACE$11","v":0},{"$f":"Time!ACF$11","v":0},{"$f":"Time!ACG$11","v":0},{"$f":"Time!ACH$11","v":0},{"$f":"Time!ACI$11","v":0},{"$f":"Time!ACJ$11","v":0},{"$f":"Time!ACK$11","v":0},{"$f":"Time!ACL$11","v":0},{"$f":"Time!ACM$11","v":0},{"$f":"Time!ACN$11","v":0},{"$f":"Time!ACO$11","v":0},{"$f":"Time!ACP$11","v":0},{"$f":"Time!ACQ$11","v":0},{"$f":"Time!ACR$11","v":0},{"$f":"Time!ACS$11","v":0},{"$f":"Time!ACT$11","v":0},{"$f":"Time!ACU$11","v":0},{"$f":"Time!ACV$11","v":0},{"$f":"Time!ACW$11","v":0},{"$f":"Time!ACX$11","v":0},{"$f":"Time!ACY$11","v":0},{"$f":"Time!ACZ$11","v":0},{"$f":"Time!ADA$11","v":0},{"$f":"Time!ADB$11","v":0},{"$f":"Time!ADC$11","v":0},{"$f":"Time!ADD$11","v":0},{"$f":"Time!ADE$11","v":0},{"$f":"Time!ADF$11","v":0},{"$f":"Time!ADG$11","v":0},{"$f":"Time!ADH$11","v":0},{"$f":"Time!ADI$11","v":0},{"$f":"Time!ADJ$11","v":0},{"$f":"Time!ADK$11","v":0},{"$f":"Time!ADL$11","v":0},{"$f":"Time!ADM$11","v":0},{"$f":"Time!ADN$11","v":0},{"$f":"Time!ADO$11","v":0},{"$f":"Time!ADP$11","v":0},{"$f":"Time!ADQ$11","v":0},{"$f":"Time!ADR$11","v":0},{"$f":"Time!ADS$11","v":0},{"$f":"Time!ADT$11","v":0},{"$f":"Time!ADU$11","v":0},{"$f":"Time!ADV$11","v":0},{"$f":"Time!ADW$11","v":0},{"$f":"Time!ADX$11","v":0},{"$f":"Time!ADY$11","v":0},{"$f":"Time!ADZ$11","v":0},{"$f":"Time!AEA$11","v":0},{"$f":"Time!AEB$11","v":0},{"$f":"Time!AEC$11","v":0},{"$f":"Time!AED$11","v":0},{"$f":"Time!AEE$11","v":0},{"$f":"Time!AEF$11","v":0},{"$f":"Time!AEG$11","v":0},{"$f":"Time!AEH$11","v":0},{"$f":"Time!AEI$11","v":0},{"$f":"Time!AEJ$11","v":0},{"$f":"Time!AEK$11","v":0},{"$f":"Time!AEL$11","v":0},{"$f":"Time!AEM$11","v":0},{"$f":"Time!AEN$11","v":0},{"$f":"Time!AEO$11","v":0},{"$f":"Time!AEP$11","v":0},{"$f":"Time!AEQ$11","v":0},{"$f":"Time!AER$11","v":0},{"$f":"Time!AES$11","v":0},{"$f":"Time!AET$11","v":0},{"$f":"Time!AEU$11","v":0},{"$f":"Time!AEV$11","v":0},{"$f":"Time!AEW$11","v":0},{"$f":"Time!AEX$11","v":0},{"$f":"Time!AEY$11","v":0},{"$f":"Time!AEZ$11","v":0},{"$f":"Time!AFA$11","v":0},{"$f":"Time!AFB$11","v":0},{"$f":"Time!AFC$11","v":0},{"$f":"Time!AFD$11","v":0},{"$f":"Time!AFE$11","v":0},{"$f":"Time!AFF$11","v":0},{"$f":"Time!AFG$11","v":0},{"$f":"Time!AFH$11","v":0},{"$f":"Time!AFI$11","v":0},{"$f":"Time!AFJ$11","v":0},{"$f":"Time!AFK$11","v":0},{"$f":"Time!AFL$11","v":0},{"$f":"Time!AFM$11","v":0},{"$f":"Time!AFN$11","v":0},{"$f":"Time!AFO$11","v":0},{"$f":"Time!AFP$11","v":0},{"$f":"Time!AFQ$11","v":0},{"$f":"Time!AFR$11","v":0},{"$f":"Time!AFS$11","v":0},{"$f":"Time!AFT$11","v":0},{"$f":"Time!AFU$11","v":0},{"$f":"Time!AFV$11","v":0},{"$f":"Time!AFW$11","v":0},{"$f":"Time!AFX$11","v":0},{"$f":"Time!AFY$11","v":0},{"$f":"Time!AFZ$11","v":0},{"$f":"Time!AGA$11","v":0},{"$f":"Time!AGB$11","v":0},{"$f":"Time!AGC$11","v":0},{"$f":"Time!AGD$11","v":0},{"$f":"Time!AGE$11","v":0},{"$f":"Time!AGF$11","v":0},{"$f":"Time!AGG$11","v":0},{"$f":"Time!AGH$11","v":0},{"$f":"Time!AGI$11","v":0},{"$f":"Time!AGJ$11","v":0},{"$f":"Time!AGK$11","v":0},{"$f":"Time!AGL$11","v":0},{"$f":"Time!AGM$11","v":0},{"$f":"Time!AGN$11","v":0},{"$f":"Time!AGO$11","v":0},{"$f":"Time!AGP$11","v":0},{"$f":"Time!AGQ$11","v":0},{"$f":"Time!AGR$11","v":0},{"$f":"Time!AGS$11","v":0},{"$f":"Time!AGT$11","v":0},{"$f":"Time!AGU$11","v":0},{"$f":"Time!AGV$11","v":0},{"$f":"Time!AGW$11","v":0},{"$f":"Time!AGX$11","v":0},{"$f":"Time!AGY$11","v":0},{"$f":"Time!AGZ$11","v":0},{"$f":"Time!AHA$11","v":0},{"$f":"Time!AHB$11","v":0},{"$f":"Time!AHC$11","v":0},{"$f":"Time!AHD$11","v":0},{"$f":"Time!AHE$11","v":0},{"$f":"Time!AHF$11","v":0},{"$f":"Time!AHG$11","v":0},{"$f":"Time!AHH$11","v":0},{"$f":"Time!AHI$11","v":0},{"$f":"Time!AHJ$11","v":0},{"$f":"Time!AHK$11","v":0},{"$f":"Time!AHL$11","v":0},{"$f":"Time!AHM$11","v":0},{"$f":"Time!AHN$11","v":0},{"$f":"Time!AHO$11","v":0},{"$f":"Time!AHP$11","v":0},{"$f":"Time!AHQ$11","v":0},{"$f":"Time!AHR$11","v":0},{"$f":"Time!AHS$11","v":0},{"$f":"Time!AHT$11","v":0},{"$f":"Time!AHU$11","v":0},{"$f":"Time!AHV$11","v":0},{"$f":"Time!AHW$11","v":0},{"$f":"Time!AHX$11","v":0},{"$f":"Time!AHY$11","v":0},{"$f":"Time!AHZ$11","v":0},{"$f":"Time!AIA$11","v":0},{"$f":"Time!AIB$11","v":0},{"$f":"Time!AIC$11","v":0},{"$f":"Time!AID$11","v":0},{"$f":"Time!AIE$11","v":0},{"$f":"Time!AIF$11","v":0},{"$f":"Time!AIG$11","v":0},{"$f":"Time!AIH$11","v":0},{"$f":"Time!AII$11","v":0},{"$f":"Time!AIJ$11","v":0},{"$f":"Time!AIK$11","v":0},{"$f":"Time!AIL$11","v":0},{"$f":"Time!AIM$11","v":0},{"$f":"Time!AIN$11","v":0},{"$f":"Time!AIO$11","v":0},{"$f":"Time!AIP$11","v":0},{"$f":"Time!AIQ$11","v":0},{"$f":"Time!AIR$11","v":0},{"$f":"Time!AIS$11","v":0},{"$f":"Time!AIT$11","v":0},{"$f":"Time!AIU$11","v":0},{"$f":"Time!AIV$11","v":0},{"$f":"Time!AIW$11","v":0},{"$f":"Time!AIX$11","v":0},{"$f":"Time!AIY$11","v":0},{"$f":"Time!AIZ$11","v":0},{"$f":"Time!AJA$11","v":0},{"$f":"Time!AJB$11","v":0},{"$f":"Time!AJC$11","v":0},{"$f":"Time!AJD$11","v":0},{"$f":"Time!AJE$11","v":0},{"$f":"Time!AJF$11","v":0},{"$f":"Time!AJG$11","v":0},{"$f":"Time!AJH$11","v":0},{"$f":"Time!AJI$11","v":0},{"$f":"Time!AJJ$11","v":0},{"$f":"Time!AJK$11","v":0},{"$f":"Time!AJL$11","v":0},{"$f":"Time!AJM$11","v":0},{"$f":"Time!AJN$11","v":0},{"$f":"Time!AJO$11","v":0},{"$f":"Time!AJP$11","v":0},{"$f":"Time!AJQ$11","v":0},{"$f":"Time!AJR$11","v":0},{"$f":"Time!AJS$11","v":0},{"$f":"Time!AJT$11","v":0},{"$f":"Time!AJU$11","v":0},{"$f":"Time!AJV$11","v":0},{"$f":"Time!AJW$11","v":0},{"$f":"Time!AJX$11","v":0},{"$f":"Time!AJY$11","v":0},{"$f":"Time!AJZ$11","v":0},{"$f":"Time!AKA$11","v":0},{"$f":"Time!AKB$11","v":0},{"$f":"Time!AKC$11","v":0},{"$f":"Time!AKD$11","v":0},{"$f":"Time!AKE$11","v":0},{"$f":"Time!AKF$11","v":0},{"$f":"Time!AKG$11","v":0},{"$f":"Time!AKH$11","v":0},{"$f":"Time!AKI$11","v":0},{"$f":"Time!AKJ$11","v":0},{"$f":"Time!AKK$11","v":0},{"$f":"Time!AKL$11","v":0},{"$f":"Time!AKM$11","v":0},{"$f":"Time!AKN$11","v":0},{"$f":"Time!AKO$11","v":0},{"$f":"Time!AKP$11","v":0},{"$f":"Time!AKQ$11","v":0},{"$f":"Time!AKR$11","v":0},{"$f":"Time!AKS$11","v":0},{"$f":"Time!AKT$11","v":0},{"$f":"Time!AKU$11","v":0},{"$f":"Time!AKV$11","v":0},{"$f":"Time!AKW$11","v":0},{"$f":"Time!AKX$11","v":0},{"$f":"Time!AKY$11","v":0},{"$f":"Time!AKZ$11","v":0},{"$f":"Time!ALA$11","v":0},{"$f":"Time!ALB$11","v":0},{"$f":"Time!ALC$11","v":0},{"$f":"Time!ALD$11","v":0},{"$f":"Time!ALE$11","v":0},{"$f":"Time!ALF$11","v":0},{"$f":"Time!ALG$11","v":0},{"$f":"Time!ALH$11","v":0},{"$f":"Time!ALI$11","v":0},{"$f":"Time!ALJ$11","v":0},{"$f":"Time!ALK$11","v":0},{"$f":"Time!ALL$11","v":0},{"$f":"Time!ALM$11","v":0},{"$f":"Time!ALN$11","v":0},{"$f":"Time!ALO$11","v":0},{"$f":"Time!ALP$11","v":0},{"$f":"Time!ALQ$11","v":0},{"$f":"Time!ALR$11","v":0},{"$f":"Time!ALS$11","v":0},{"$f":"Time!ALT$11","v":0},{"$f":"Time!ALU$11","v":0},{"$f":"Time!ALV$11","v":0},{"$f":"Time!ALW$11","v":0},{"$f":"Time!ALX$11","v":0},{"$f":"Time!ALY$11","v":0},{"$f":"Time!ALZ$11","v":0},{"$f":"Time!AMA$11","v":0},{"$f":"Time!AMB$11","v":0},{"$f":"Time!AMC$11","v":0},{"$f":"Time!AMD$11","v":0},{"$f":"Time!AME$11","v":0},{"$f":"Time!AMF$11","v":0},{"$f":"Time!AMG$11","v":0},{"$f":"Time!AMH$11","v":0},{"$f":"Time!AMI$11","v":0},{"$f":"Time!AMJ$11","v":0},{"$f":"Time!AMK$11","v":0},{"$f":"Time!AML$11","v":0},{"$f":"Time!AMM$11","v":0},{"$f":"Time!AMN$11","v":0},{"$f":"Time!AMO$11","v":0},{"$f":"Time!AMP$11","v":0},{"$f":"Time!AMQ$11","v":0},{"$f":"Time!AMR$11","v":0},{"$f":"Time!AMS$11","v":0},{"$f":"Time!AMT$11","v":0},{"$f":"Time!AMU$11","v":0},{"$f":"Time!AMV$11","v":0},{"$f":"Time!AMW$11","v":0},{"$f":"Time!AMX$11","v":0},{"$f":"Time!AMY$11","v":0},{"$f":"Time!AMZ$11","v":0},{"$f":"Time!ANA$11","v":0},{"$f":"Time!ANB$11","v":0},{"$f":"Time!ANC$11","v":0},{"$f":"Time!AND$11","v":0},{"$f":"Time!ANE$11","v":0},{"$f":"Time!ANF$11","v":0},{"$f":"Time!ANG$11","v":0},{"$f":"Time!ANH$11","v":0},{"$f":"Time!ANI$11","v":0},{"$f":"Time!ANJ$11","v":0},{"$f":"Time!ANK$11","v":0},{"$f":"Time!ANL$11","v":0},{"$f":"Time!ANM$11","v":0},{"$f":"Time!ANN$11","v":0},{"$f":"Time!ANO$11","v":0},{"$f":"Time!ANP$11","v":0},{"$f":"Time!ANQ$11","v":0},{"$f":"Time!ANR$11","v":0},{"$f":"Time!ANS$11","v":0},{"$f":"Time!ANT$11","v":0},{"$f":"Time!ANU$11","v":0},{"$f":"Time!ANV$11","v":0},{"$f":"Time!ANW$11","v":0},{"$f":"Time!ANX$11","v":0},{"$f":"Time!ANY$11","v":0},{"$f":"Time!ANZ$11","v":0},{"$f":"Time!AOA$11","v":0},{"$f":"Time!AOB$11","v":0},{"$f":"Time!AOC$11","v":0},{"$f":"Time!AOD$11","v":0},{"$f":"Time!AOE$11","v":0},{"$f":"Time!AOF$11","v":0},{"$f":"Time!AOG$11","v":0},{"$f":"Time!AOH$11","v":0},{"$f":"Time!AOI$11","v":0},{"$f":"Time!AOJ$11","v":0},{"$f":"Time!AOK$11","v":0},{"$f":"Time!AOL$11","v":0},{"$f":"Time!AOM$11","v":0},{"$f":"Time!AON$11","v":0},{"$f":"Time!AOO$11","v":0},{"$f":"Time!AOP$11","v":0},{"$f":"Time!AOQ$11","v":0},{"$f":"Time!AOR$11","v":0},{"$f":"Time!AOS$11","v":0},{"$f":"Time!AOT$11","v":0},{"$f":"Time!AOU$11","v":0},{"$f":"Time!AOV$11","v":0},{"$f":"Time!AOW$11","v":0},{"$f":"Time!AOX$11","v":0},{"$f":"Time!AOY$11","v":0},{"$f":"Time!AOZ$11","v":0},{"$f":"Time!APA$11","v":0},{"$f":"Time!APB$11","v":0},{"$f":"Time!APC$11","v":0},{"$f":"Time!APD$11","v":0},{"$f":"Time!APE$11","v":0},{"$f":"Time!APF$11","v":0},{"$f":"Time!APG$11","v":0},{"$f":"Time!APH$11","v":0},{"$f":"Time!API$11","v":0},{"$f":"Time!APJ$11","v":0},{"$f":"Time!APK$11","v":0},{"$f":"Time!APL$11","v":0},{"$f":"Time!APM$11","v":0},{"$f":"Time!APN$11","v":0},{"$f":"Time!APO$11","v":0},{"$f":"Time!APP$11","v":0},{"$f":"Time!APQ$11","v":0},{"$f":"Time!APR$11","v":0},{"$f":"Time!APS$11","v":0},{"$f":"Time!APT$11","v":0},{"$f":"Time!APU$11","v":0},{"$f":"Time!APV$11","v":0},{"$f":"Time!APW$11","v":0},{"$f":"Time!APX$11","v":0},{"$f":"Time!APY$11","v":0},{"$f":"Time!APZ$11","v":0},{"$f":"Time!AQA$11","v":0},{"$f":"Time!AQB$11","v":0},{"$f":"Time!AQC$11","v":0},{"$f":"Time!AQD$11","v":0},{"$f":"Time!AQE$11","v":0},{"$f":"Time!AQF$11","v":0},{"$f":"Time!AQG$11","v":0},{"$f":"Time!AQH$11","v":0},{"$f":"Time!AQI$11","v":0},{"$f":"Time!AQJ$11","v":0},{"$f":"Time!AQK$11","v":0},{"$f":"Time!AQL$11","v":0},{"$f":"Time!AQM$11","v":0},{"$f":"Time!AQN$11","v":0},{"$f":"Time!AQO$11","v":0},{"$f":"Time!AQP$11","v":0},{"$f":"Time!AQQ$11","v":0},{"$f":"Time!AQR$11","v":0},{"$f":"Time!AQS$11","v":0},{"$f":"Time!AQT$11","v":0},{"$f":"Time!AQU$11","v":0},{"$f":"Time!AQV$11","v":0},{"$f":"Time!AQW$11","v":0},{"$f":"Time!AQX$11","v":0},{"$f":"Time!AQY$11","v":0},{"$f":"Time!AQZ$11","v":0},{"$f":"Time!ARA$11","v":0},{"$f":"Time!ARB$11","v":0},{"$f":"Time!ARC$11","v":0},{"$f":"Time!ARD$11","v":0},{"$f":"Time!ARE$11","v":0},{"$f":"Time!ARF$11","v":0},{"$f":"Time!ARG$11","v":0},{"$f":"Time!ARH$11","v":0},{"$f":"Time!ARI$11","v":0},{"$f":"Time!ARJ$11","v":0},{"$f":"Time!ARK$11","v":0},{"$f":"Time!ARL$11","v":0},{"$f":"Time!ARM$11","v":0},{"$f":"Time!ARN$11","v":0},{"$f":"Time!ARO$11","v":0},{"$f":"Time!ARP$11","v":0},{"$f":"Time!ARQ$11","v":0},{"$f":"Time!ARR$11","v":0},{"$f":"Time!ARS$11","v":0},{"$f":"Time!ART$11","v":0},{"$f":"Time!ARU$11","v":0},{"$f":"Time!ARV$11","v":0},{"$f":"Time!ARW$11","v":0},{"$f":"Time!ARX$11","v":0},{"$f":"Time!ARY$11","v":0},{"$f":"Time!ARZ$11","v":0},{"$f":"Time!ASA$11","v":0},{"$f":"Time!ASB$11","v":0},{"$f":"Time!ASC$11","v":0},{"$f":"Time!ASD$11","v":0},{"$f":"Time!ASE$11","v":0},{"$f":"Time!ASF$11","v":0},{"$f":"Time!ASG$11","v":0},{"$f":"Time!ASH$11","v":0},{"$f":"Time!ASI$11","v":0},{"$f":"Time!ASJ$11","v":0},{"$f":"Time!ASK$11","v":0},{"$f":"Time!ASL$11","v":0},{"$f":"Time!ASM$11","v":0},{"$f":"Time!ASN$11","v":0},{"$f":"Time!ASO$11","v":0},{"$f":"Time!ASP$11","v":0},{"$f":"Time!ASQ$11","v":0},{"$f":"Time!ASR$11","v":0},{"$f":"Time!ASS$11","v":0},{"$f":"Time!AST$11","v":0},{"$f":"Time!ASU$11","v":0},{"$f":"Time!ASV$11","v":0},{"$f":"Time!ASW$11","v":0},{"$f":"Time!ASX$11","v":0},{"$f":"Time!ASY$11","v":0},{"$f":"Time!ASZ$11","v":0},{"$f":"Time!ATA$11","v":0},{"$f":"Time!ATB$11","v":0},{"$f":"Time!ATC$11","v":0},{"$f":"Time!ATD$11","v":0},{"$f":"Time!ATE$11","v":0},{"$f":"Time!ATF$11","v":0},{"$f":"Time!ATG$11","v":0},{"$f":"Time!ATH$11","v":0},{"$f":"Time!ATI$11","v":0},{"$f":"Time!ATJ$11","v":0},{"$f":"Time!ATK$11","v":0},{"$f":"Time!ATL$11","v":0},{"$f":"Time!ATM$11","v":0},{"$f":"Time!ATN$11","v":0},{"$f":"Time!ATO$11","v":0},{"$f":"Time!ATP$11","v":0},{"$f":"Time!ATQ$11","v":0},{"$f":"Time!ATR$11","v":0},{"$f":"Time!ATS$11","v":0},{"$f":"Time!ATT$11","v":0},{"$f":"Time!ATU$11","v":0},{"$f":"Time!ATV$11","v":0},{"$f":"Time!ATW$11","v":0},{"$f":"Time!ATX$11","v":0},{"$f":"Time!ATY$11","v":0},{"$f":"Time!ATZ$11","v":0},{"$f":"Time!AUA$11","v":0},{"$f":"Time!AUB$11","v":0},{"$f":"Time!AUC$11","v":0},{"$f":"Time!AUD$11","v":0},{"$f":"Time!AUE$11","v":0},{"$f":"Time!AUF$11","v":0},{"$f":"Time!AUG$11","v":0},{"$f":"Time!AUH$11","v":0},{"$f":"Time!AUI$11","v":0},{"$f":"Time!AUJ$11","v":0},{"$f":"Time!AUK$11","v":0},{"$f":"Time!AUL$11","v":0},{"$f":"Time!AUM$11","v":0},{"$f":"Time!AUN$11","v":0},{"$f":"Time!AUO$11","v":0},{"$f":"Time!AUP$11","v":0},{"$f":"Time!AUQ$11","v":0},{"$f":"Time!AUR$11","v":0},{"$f":"Time!AUS$11","v":0},{"$f":"Time!AUT$11","v":0},{"$f":"Time!AUU$11","v":0},{"$f":"Time!AUV$11","v":0},{"$f":"Time!AUW$11","v":0},{"$f":"Time!AUX$11","v":0},{"$f":"Time!AUY$11","v":0},{"$f":"Time!AUZ$11","v":0},{"$f":"Time!AVA$11","v":0},{"$f":"Time!AVB$11","v":0},{"$f":"Time!AVC$11","v":0},{"$f":"Time!AVD$11","v":0},{"$f":"Time!AVE$11","v":0},{"$f":"Time!AVF$11","v":0},{"$f":"Time!AVG$11","v":0},{"$f":"Time!AVH$11","v":0},{"$f":"Time!AVI$11","v":0},{"$f":"Time!AVJ$11","v":0},{"$f":"Time!AVK$11","v":0},{"$f":"Time!AVL$11","v":0},{"$f":"Time!AVM$11","v":0},{"$f":"Time!AVN$11","v":0},{"$f":"Time!AVO$11","v":0},{"$f":"Time!AVP$11","v":0},{"$f":"Time!AVQ$11","v":0},{"$f":"Time!AVR$11","v":0},{"$f":"Time!AVS$11","v":0},{"$f":"Time!AVT$11","v":0},{"$f":"Time!AVU$11","v":0},{"$f":"Time!AVV$11","v":0},{"$f":"Time!AVW$11","v":0},{"$f":"Time!AVX$11","v":0},{"$f":"Time!AVY$11","v":0},{"$f":"Time!AVZ$11","v":0},{"$f":"Time!AWA$11","v":0},{"$f":"Time!AWB$11","v":0},{"$f":"Time!AWC$11","v":0},{"$f":"Time!AWD$11","v":0},{"$f":"Time!AWE$11","v":0},{"$f":"Time!AWF$11","v":0},{"$f":"Time!AWG$11","v":0},{"$f":"Time!AWH$11","v":0},{"$f":"Time!AWI$11","v":0},{"$f":"Time!AWJ$11","v":0},{"$f":"Time!AWK$11","v":0},{"$f":"Time!AWL$11","v":0},{"$f":"Time!AWM$11","v":0},{"$f":"Time!AWN$11","v":0},{"$f":"Time!AWO$11","v":0},{"$f":"Time!AWP$11","v":0},{"$f":"Time!AWQ$11","v":0},{"$f":"Time!AWR$11","v":0},{"$f":"Time!AWS$11","v":0},{"$f":"Time!AWT$11","v":0},{"$f":"Time!AWU$11","v":0},{"$f":"Time!AWV$11","v":0},{"$f":"Time!AWW$11","v":0},{"$f":"Time!AWX$11","v":0},{"$f":"Time!AWY$11","v":0},{"$f":"Time!AWZ$11","v":0},{"$f":"Time!AXA$11","v":0},{"$f":"Time!AXB$11","v":0},{"$f":"Time!AXC$11","v":0},{"$f":"Time!AXD$11","v":0},{"$f":"Time!AXE$11","v":0},{"$f":"Time!AXF$11","v":0},{"$f":"Time!AXG$11","v":0},{"$f":"Time!AXH$11","v":0},{"$f":"Time!AXI$11","v":0},{"$f":"Time!AXJ$11","v":0},{"$f":"Time!AXK$11","v":0},{"$f":"Time!AXL$11","v":0},{"$f":"Time!AXM$11","v":0},{"$f":"Time!AXN$11","v":0},{"$f":"Time!AXO$11","v":0},{"$f":"Time!AXP$11","v":0},{"$f":"Time!AXQ$11","v":0},{"$f":"Time!AXR$11","v":0},{"$f":"Time!AXS$11","v":0},{"$f":"Time!AXT$11","v":0},{"$f":"Time!AXU$11","v":0},{"$f":"Time!AXV$11","v":0},{"$f":"Time!AXW$11","v":0},{"$f":"Time!AXX$11","v":0},{"$f":"Time!AXY$11","v":0},{"$f":"Time!AXZ$11","v":0},{"$f":"Time!AYA$11","v":0},{"$f":"Time!AYB$11","v":0},{"$f":"Time!AYC$11","v":0},{"$f":"Time!AYD$11","v":0},{"$f":"Time!AYE$11","v":0},{"$f":"Time!AYF$11","v":0},{"$f":"Time!AYG$11","v":0},{"$f":"Time!AYH$11","v":0},{"$f":"Time!AYI$11","v":0},{"$f":"Time!AYJ$11","v":0},{"$f":"Time!AYK$11","v":0},{"$f":"Time!AYL$11","v":0},{"$f":"Time!AYM$11","v":0},{"$f":"Time!AYN$11","v":0},{"$f":"Time!AYO$11","v":0},{"$f":"Time!AYP$11","v":0},{"$f":"Time!AYQ$11","v":0},{"$f":"Time!AYR$11","v":0},{"$f":"Time!AYS$11","v":0},{"$f":"Time!AYT$11","v":0},{"$f":"Time!AYU$11","v":0},{"$f":"Time!AYV$11","v":0},{"$f":"Time!AYW$11","v":0},{"$f":"Time!AYX$11","v":0},{"$f":"Time!AYY$11","v":0},{"$f":"Time!AYZ$11","v":0},{"$f":"Time!AZA$11","v":0},{"$f":"Time!AZB$11","v":0},{"$f":"Time!AZC$11","v":0},{"$f":"Time!AZD$11","v":0},{"$f":"Time!AZE$11","v":0},{"$f":"Time!AZF$11","v":0},{"$f":"Time!AZG$11","v":0},{"$f":"Time!AZH$11","v":0},{"$f":"Time!AZI$11","v":0},{"$f":"Time!AZJ$11","v":0},{"$f":"Time!AZK$11","v":0},{"$f":"Time!AZL$11","v":0},{"$f":"Time!AZM$11","v":0},{"$f":"Time!AZN$11","v":0},{"$f":"Time!AZO$11","v":0},{"$f":"Time!AZP$11","v":0},{"$f":"Time!AZQ$11","v":0},{"$f":"Time!AZR$11","v":0},{"$f":"Time!AZS$11","v":0},{"$f":"Time!AZT$11","v":0},{"$f":"Time!AZU$11","v":0},{"$f":"Time!AZV$11","v":0},{"$f":"Time!AZW$11","v":0},{"$f":"Time!AZX$11","v":0},{"$f":"Time!AZY$11","v":0},{"$f":"Time!AZZ$11","v":0},{"$f":"Time!BAA$11","v":0},{"$f":"Time!BAB$11","v":0},{"$f":"Time!BAC$11","v":0},{"$f":"Time!BAD$11","v":0},{"$f":"Time!BAE$11","v":0},{"$f":"Time!BAF$11","v":0},{"$f":"Time!BAG$11","v":0},{"$f":"Time!BAH$11","v":0},{"$f":"Time!BAI$11","v":0},{"$f":"Time!BAJ$11","v":0},{"$f":"Time!BAK$11","v":0},{"$f":"Time!BAL$11","v":0},{"$f":"Time!BAM$11","v":0},{"$f":"Time!BAN$11","v":0},{"$f":"Time!BAO$11","v":0},{"$f":"Time!BAP$11","v":0},{"$f":"Time!BAQ$11","v":0},{"$f":"Time!BAR$11","v":0},{"$f":"Time!BAS$11","v":0},{"$f":"Time!BAT$11","v":0},{"$f":"Time!BAU$11","v":0},{"$f":"Time!BAV$11","v":0},{"$f":"Time!BAW$11","v":0},{"$f":"Time!BAX$11","v":0},{"$f":"Time!BAY$11","v":0},{"$f":"Time!BAZ$11","v":0},{"$f":"Time!BBA$11","v":0},{"$f":"Time!BBB$11","v":0},{"$f":"Time!BBC$11","v":0},{"$f":"Time!BBD$11","v":0},{"$f":"Time!BBE$11","v":0},{"$f":"Time!BBF$11","v":0},{"$f":"Time!BBG$11","v":0},{"$f":"Time!BBH$11","v":0},{"$f":"Time!BBI$11","v":0},{"$f":"Time!BBJ$11","v":0},{"$f":"Time!BBK$11","v":0},{"$f":"Time!BBL$11","v":0},{"$f":"Time!BBM$11","v":0},{"$f":"Time!BBN$11","v":0},{"$f":"Time!BBO$11","v":0},{"$f":"Time!BBP$11","v":0},{"$f":"Time!BBQ$11","v":0},{"$f":"Time!BBR$11","v":0},{"$f":"Time!BBS$11","v":0},{"$f":"Time!BBT$11","v":0},{"$f":"Time!BBU$11","v":0},{"$f":"Time!BBV$11","v":0},{"$f":"Time!BBW$11","v":0},{"$f":"Time!BBX$11","v":0},{"$f":"Time!BBY$11","v":0},{"$f":"Time!BBZ$11","v":0},{"$f":"Time!BCA$11","v":0},{"$f":"Time!BCB$11","v":0},{"$f":"Time!BCC$11","v":0},{"$f":"Time!BCD$11","v":0},{"$f":"Time!BCE$11","v":0},{"$f":"Time!BCF$11","v":0},{"$f":"Time!BCG$11","v":0},{"$f":"Time!BCH$11","v":0},{"$f":"Time!BCI$11","v":0},{"$f":"Time!BCJ$11","v":0},{"$f":"Time!BCK$11","v":0},{"$f":"Time!BCL$11","v":0},{"$f":"Time!BCM$11","v":0},{"$f":"Time!BCN$11","v":0},{"$f":"Time!BCO$11","v":0},{"$f":"Time!BCP$11","v":0},{"$f":"Time!BCQ$11","v":0},{"$f":"Time!BCR$11","v":0},{"$f":"Time!BCS$11","v":0},{"$f":"Time!BCT$11","v":0},{"$f":"Time!BCU$11","v":0},{"$f":"Time!BCV$11","v":0},{"$f":"Time!BCW$11","v":0},{"$f":"Time!BCX$11","v":0},{"$f":"Time!BCY$11","v":0},{"$f":"Time!BCZ$11","v":0},{"$f":"Time!BDA$11","v":0},{"$f":"Time!BDB$11","v":0},{"$f":"Time!BDC$11","v":0},{"$f":"Time!BDD$11","v":0},{"$f":"Time!BDE$11","v":0},{"$f":"Time!BDF$11","v":0},{"$f":"Time!BDG$11","v":0},{"$f":"Time!BDH$11","v":0},{"$f":"Time!BDI$11","v":0},{"$f":"Time!BDJ$11","v":0},{"$f":"Time!BDK$11","v":0},{"$f":"Time!BDL$11","v":0},{"$f":"Time!BDM$11","v":0},{"$f":"Time!BDN$11","v":0},{"$f":"Time!BDO$11","v":0},{"$f":"Time!BDP$11","v":0},{"$f":"Time!BDQ$11","v":0},{"$f":"Time!BDR$11","v":0},{"$f":"Time!BDS$11","v":0},{"$f":"Time!BDT$11","v":0},{"$f":"Time!BDU$11","v":0},{"$f":"Time!BDV$11","v":0},{"$f":"Time!BDW$11","v":0},{"$f":"Time!BDX$11","v":0},{"$f":"Time!BDY$11","v":0},{"$f":"Time!BDZ$11","v":0},{"$f":"Time!BEA$11","v":0},{"$f":"Time!BEB$11","v":0},{"$f":"Time!BEC$11","v":0},{"$f":"Time!BED$11","v":0},{"$f":"Time!BEE$11","v":0},{"$f":"Time!BEF$11","v":0},{"$f":"Time!BEG$11","v":0},{"$f":"Time!BEH$11","v":0},{"$f":"Time!BEI$11","v":0},{"$f":"Time!BEJ$11","v":0},{"$f":"Time!BEK$11","v":0},{"$f":"Time!BEL$11","v":0},{"$f":"Time!BEM$11","v":0},{"$f":"Time!BEN$11","v":0},{"$f":"Time!BEO$11","v":0},{"$f":"Time!BEP$11","v":0},{"$f":"Time!BEQ$11","v":0},{"$f":"Time!BER$11","v":0},{"$f":"Time!BES$11","v":0},{"$f":"Time!BET$11","v":0},{"$f":"Time!BEU$11","v":0},{"$f":"Time!BEV$11","v":0},{"$f":"Time!BEW$11","v":0},{"$f":"Time!BEX$11","v":0},{"$f":"Time!BEY$11","v":0},{"$f":"Time!BEZ$11","v":0},{"$f":"Time!BFA$11","v":0},{"$f":"Time!BFB$11","v":0},{"$f":"Time!BFC$11","v":0},{"$f":"Time!BFD$11","v":0},{"$f":"Time!BFE$11","v":0},{"$f":"Time!BFF$11","v":0},{"$f":"Time!BFG$11","v":0},{"$f":"Time!BFH$11","v":0},{"$f":"Time!BFI$11","v":0},{"$f":"Time!BFJ$11","v":0},{"$f":"Time!BFK$11","v":0},{"$f":"Time!BFL$11","v":0},{"$f":"Time!BFM$11","v":0},{"$f":"Time!BFN$11","v":0},{"$f":"Time!BFO$11","v":0},{"$f":"Time!BFP$11","v":0},{"$f":"Time!BFQ$11","v":0},{"$f":"Time!BFR$11","v":0},{"$f":"Time!BFS$11","v":0},{"$f":"Time!BFT$11","v":0},{"$f":"Time!BFU$11","v":0},{"$f":"Time!BFV$11","v":0},{"$f":"Time!BFW$11","v":0},{"$f":"Time!BFX$11","v":0},{"$f":"Time!BFY$11","v":0},{"$f":"Time!BFZ$11","v":0},{"$f":"Time!BGA$11","v":0},{"$f":"Time!BGB$11","v":0},{"$f":"Time!BGC$11","v":0},{"$f":"Time!BGD$11","v":0},{"$f":"Time!BGE$11","v":0},{"$f":"Time!BGF$11","v":0},{"$f":"Time!BGG$11","v":0},{"$f":"Time!BGH$11","v":0},{"$f":"Time!BGI$11","v":0},{"$f":"Time!BGJ$11","v":0},{"$f":"Time!BGK$11","v":0},{"$f":"Time!BGL$11","v":0},{"$f":"Time!BGM$11","v":0},{"$f":"Time!BGN$11","v":0},{"$f":"Time!BGO$11","v":0},{"$f":"Time!BGP$11","v":0},{"$f":"Time!BGQ$11","v":0},{"$f":"Time!BGR$11","v":0},{"$f":"Time!BGS$11","v":0},{"$f":"Time!BGT$11","v":0},{"$f":"Time!BGU$11","v":0},{"$f":"Time!BGV$11","v":0},{"$f":"Time!BGW$11","v":0},{"$f":"Time!BGX$11","v":0},{"$f":"Time!BGY$11","v":0},{"$f":"Time!BGZ$11","v":0},{"$f":"Time!BHA$11","v":0},{"$f":"Time!BHB$11","v":0},{"$f":"Time!BHC$11","v":0},{"$f":"Time!BHD$11","v":0},{"$f":"Time!BHE$11","v":0},{"$f":"Time!BHF$11","v":0},{"$f":"Time!BHG$11","v":0},{"$f":"Time!BHH$11","v":0},{"$f":"Time!BHI$11","v":0},{"$f":"Time!BHJ$11","v":0},{"$f":"Time!BHK$11","v":0},{"$f":"Time!BHL$11","v":0},{"$f":"Time!BHM$11","v":0},{"$f":"Time!BHN$11","v":0},{"$f":"Time!BHO$11","v":0},{"$f":"Time!BHP$11","v":0},{"$f":"Time!BHQ$11","v":0},{"$f":"Time!BHR$11","v":0},{"$f":"Time!BHS$11","v":0},{"$f":"Time!BHT$11","v":0},{"$f":"Time!BHU$11","v":0},{"$f":"Time!BHV$11","v":0},{"$f":"Time!BHW$11","v":0},{"$f":"Time!BHX$11","v":0},{"$f":"Time!BHY$11","v":0},{"$f":"Time!BHZ$11","v":0},{"$f":"Time!BIA$11","v":0},{"$f":"Time!BIB$11","v":0},{"$f":"Time!BIC$11","v":0},{"$f":"Time!BID$11","v":0},{"$f":"Time!BIE$11","v":0},{"$f":"Time!BIF$11","v":0},{"$f":"Time!BIG$11","v":0},{"$f":"Time!BIH$11","v":0},{"$f":"Time!BII$11","v":0},{"$f":"Time!BIJ$11","v":0},{"$f":"Time!BIK$11","v":0},{"$f":"Time!BIL$11","v":0},{"$f":"Time!BIM$11","v":0},{"$f":"Time!BIN$11","v":0},{"$f":"Time!BIO$11","v":0},{"$f":"Time!BIP$11","v":0},{"$f":"Time!BIQ$11","v":0},{"$f":"Time!BIR$11","v":0},{"$f":"Time!BIS$11","v":0},{"$f":"Time!BIT$11","v":0},{"$f":"Time!BIU$11","v":0},{"$f":"Time!BIV$11","v":0},{"$f":"Time!BIW$11","v":0},{"$f":"Time!BIX$11","v":0},{"$f":"Time!BIY$11","v":0},{"$f":"Time!BIZ$11","v":0},{"$f":"Time!BJA$11","v":0},{"$f":"Time!BJB$11","v":0},{"$f":"Time!BJC$11","v":0},{"$f":"Time!BJD$11","v":0},{"$f":"Time!BJE$11","v":0},{"$f":"Time!BJF$11","v":0},{"$f":"Time!BJG$11","v":0},{"$f":"Time!BJH$11","v":0},{"$f":"Time!BJI$11","v":0},{"$f":"Time!BJJ$11","v":0},{"$f":"Time!BJK$11","v":0},{"$f":"Time!BJL$11","v":0},{"$f":"Time!BJM$11","v":0},{"$f":"Time!BJN$11","v":0},{"$f":"Time!BJO$11","v":0},{"$f":"Time!BJP$11","v":0},{"$f":"Time!BJQ$11","v":0},{"$f":"Time!BJR$11","v":0},{"$f":"Time!BJS$11","v":0},{"$f":"Time!BJT$11","v":0},{"$f":"Time!BJU$11","v":0},{"$f":"Time!BJV$11","v":0},{"$f":"Time!BJW$11","v":0},{"$f":"Time!BJX$11","v":0},{"$f":"Time!BJY$11","v":0},{"$f":"Time!BJZ$11","v":0},{"$f":"Time!BKA$11","v":0},{"$f":"Time!BKB$11","v":0},{"$f":"Time!BKC$11","v":0},{"$f":"Time!BKD$11","v":0},{"$f":"Time!BKE$11","v":0},{"$f":"Time!BKF$11","v":0},{"$f":"Time!BKG$11","v":0},{"$f":"Time!BKH$11","v":0},{"$f":"Time!BKI$11","v":0},{"$f":"Time!BKJ$11","v":0},{"$f":"Time!BKK$11","v":0},{"$f":"Time!BKL$11","v":0},{"$f":"Time!BKM$11","v":0},{"$f":"Time!BKN$11","v":0},{"$f":"Time!BKO$11","v":0},{"$f":"Time!BKP$11","v":0},{"$f":"Time!BKQ$11","v":0},{"$f":"Time!BKR$11","v":0},{"$f":"Time!BKS$11","v":0},{"$f":"Time!BKT$11","v":0},{"$f":"Time!BKU$11","v":0},{"$f":"Time!BKV$11","v":0},{"$f":"Time!BKW$11","v":0},{"$f":"Time!BKX$11","v":0},{"$f":"Time!BKY$11","v":0},{"$f":"Time!BKZ$11","v":0},{"$f":"Time!BLA$11","v":0},{"$f":"Time!BLB$11","v":0},{"$f":"Time!BLC$11","v":0},{"$f":"Time!BLD$11","v":0},{"$f":"Time!BLE$11","v":0},{"$f":"Time!BLF$11","v":0},{"$f":"Time!BLG$11","v":0},{"$f":"Time!BLH$11","v":0},{"$f":"Time!BLI$11","v":0},{"$f":"Time!BLJ$11","v":0},{"$f":"Time!BLK$11","v":0},{"$f":"Time!BLL$11","v":0},{"$f":"Time!BLM$11","v":0},{"$f":"Time!BLN$11","v":0},{"$f":"Time!BLO$11","v":0},{"$f":"Time!BLP$11","v":0},{"$f":"Time!BLQ$11","v":0},{"$f":"Time!BLR$11","v":0},{"$f":"Time!BLS$11","v":0},{"$f":"Time!BLT$11","v":0},{"$f":"Time!BLU$11","v":0},{"$f":"Time!BLV$11","v":0},{"$f":"Time!BLW$11","v":0},{"$f":"Time!BLX$11","v":0},{"$f":"Time!BLY$11","v":0},{"$f":"Time!BLZ$11","v":0},{"$f":"Time!BMA$11","v":0},{"$f":"Time!BMB$11","v":0},{"$f":"Time!BMC$11","v":0},{"$f":"Time!BMD$11","v":0},{"$f":"Time!BME$11","v":0},{"$f":"Time!BMF$11","v":0},{"$f":"Time!BMG$11","v":0},{"$f":"Time!BMH$11","v":0},{"$f":"Time!BMI$11","v":0},{"$f":"Time!BMJ$11","v":0},{"$f":"Time!BMK$11","v":0},{"$f":"Time!BML$11","v":0},{"$f":"Time!BMM$11","v":0},{"$f":"Time!BMN$11","v":0},{"$f":"Time!BMO$11","v":0},{"$f":"Time!BMP$11","v":0},{"$f":"Time!BMQ$11","v":0},{"$f":"Time!BMR$11","v":0},{"$f":"Time!BMS$11","v":0},{"$f":"Time!BMT$11","v":0},{"$f":"Time!BMU$11","v":0},{"$f":"Time!BMV$11","v":0},{"$f":"Time!BMW$11","v":0},{"$f":"Time!BMX$11","v":0},{"$f":"Time!BMY$11","v":0},{"$f":"Time!BMZ$11","v":0},{"$f":"Time!BNA$11","v":0},{"$f":"Time!BNB$11","v":0},{"$f":"Time!BNC$11","v":0},{"$f":"Time!BND$11","v":0},{"$f":"Time!BNE$11","v":0},{"$f":"Time!BNF$11","v":0},{"$f":"Time!BNG$11","v":0},{"$f":"Time!BNH$11","v":0},{"$f":"Time!BNI$11","v":0},{"$f":"Time!BNJ$11","v":0},{"$f":"Time!BNK$11","v":0},{"$f":"Time!BNL$11","v":0},{"$f":"Time!BNM$11","v":0},{"$f":"Time!BNN$11","v":0},{"$f":"Time!BNO$11","v":0},{"$f":"Time!BNP$11","v":0},{"$f":"Time!BNQ$11","v":0},{"$f":"Time!BNR$11","v":0},{"$f":"Time!BNS$11","v":0},{"$f":"Time!BNT$11","v":0},{"$f":"Time!BNU$11","v":0},{"$f":"Time!BNV$11","v":0},{"$f":"Time!BNW$11","v":0},{"$f":"Time!BNX$11","v":0},{"$f":"Time!BNY$11","v":0},{"$f":"Time!BNZ$11","v":0},{"$f":"Time!BOA$11","v":0},{"$f":"Time!BOB$11","v":0},{"$f":"Time!BOC$11","v":0},{"$f":"Time!BOD$11","v":0},{"$f":"Time!BOE$11","v":0},{"$f":"Time!BOF$11","v":0},{"$f":"Time!BOG$11","v":0},{"$f":"Time!BOH$11","v":0},{"$f":"Time!BOI$11","v":0},{"$f":"Time!BOJ$11","v":0},{"$f":"Time!BOK$11","v":0},{"$f":"Time!BOL$11","v":0},{"$f":"Time!BOM$11","v":0},{"$f":"Time!BON$11","v":0},{"$f":"Time!BOO$11","v":0},{"$f":"Time!BOP$11","v":0},{"$f":"Time!BOQ$11","v":0},{"$f":"Time!BOR$11","v":0},{"$f":"Time!BOS$11","v":0},{"$f":"Time!BOT$11","v":0},{"$f":"Time!BOU$11","v":0},{"$f":"Time!BOV$11","v":0},{"$f":"Time!BOW$11","v":0},{"$f":"Time!BOX$11","v":0},{"$f":"Time!BOY$11","v":0},{"$f":"Time!BOZ$11","v":0},{"$f":"Time!BPA$11","v":0},{"$f":"Time!BPB$11","v":0},{"$f":"Time!BPC$11","v":0},{"$f":"Time!BPD$11","v":0},{"$f":"Time!BPE$11","v":0},{"$f":"Time!BPF$11","v":0},{"$f":"Time!BPG$11","v":0},{"$f":"Time!BPH$11","v":0},{"$f":"Time!BPI$11","v":0},{"$f":"Time!BPJ$11","v":0},{"$f":"Time!BPK$11","v":0},{"$f":"Time!BPL$11","v":0},{"$f":"Time!BPM$11","v":0},{"$f":"Time!BPN$11","v":0},{"$f":"Time!BPO$11","v":0},{"$f":"Time!BPP$11","v":0},{"$f":"Time!BPQ$11","v":0},{"$f":"Time!BPR$11","v":0},{"$f":"Time!BPS$11","v":0},{"$f":"Time!BPT$11","v":0},{"$f":"Time!BPU$11","v":0},{"$f":"Time!BPV$11","v":0},{"$f":"Time!BPW$11","v":0},{"$f":"Time!BPX$11","v":0},{"$f":"Time!BPY$11","v":0},{"$f":"Time!BPZ$11","v":0},{"$f":"Time!BQA$11","v":0},{"$f":"Time!BQB$11","v":0},{"$f":"Time!BQC$11","v":0},{"$f":"Time!BQD$11","v":0},{"$f":"Time!BQE$11","v":0},{"$f":"Time!BQF$11","v":0},{"$f":"Time!BQG$11","v":0},{"$f":"Time!BQH$11","v":0},{"$f":"Time!BQI$11","v":0},{"$f":"Time!BQJ$11","v":0},{"$f":"Time!BQK$11","v":0},{"$f":"Time!BQL$11","v":0},{"$f":"Time!BQM$11","v":0},{"$f":"Time!BQN$11","v":0},{"$f":"Time!BQO$11","v":0},{"$f":"Time!BQP$11","v":0},{"$f":"Time!BQQ$11","v":0},{"$f":"Time!BQR$11","v":0},{"$f":"Time!BQS$11","v":0},{"$f":"Time!BQT$11","v":0},{"$f":"Time!BQU$11","v":0},{"$f":"Time!BQV$11","v":0},{"$f":"Time!BQW$11","v":0},{"$f":"Time!BQX$11","v":0},{"$f":"Time!BQY$11","v":0},{"$f":"Time!BQZ$11","v":0},{"$f":"Time!BRA$11","v":0},{"$f":"Time!BRB$11","v":0},{"$f":"Time!BRC$11","v":0},{"$f":"Time!BRD$11","v":0},{"$f":"Time!BRE$11","v":0},{"$f":"Time!BRF$11","v":0},{"$f":"Time!BRG$11","v":0},{"$f":"Time!BRH$11","v":0},{"$f":"Time!BRI$11","v":0},{"$f":"Time!BRJ$11","v":0},{"$f":"Time!BRK$11","v":0},{"$f":"Time!BRL$11","v":0},{"$f":"Time!BRM$11","v":0},{"$f":"Time!BRN$11","v":0},{"$f":"Time!BRO$11","v":0},{"$f":"Time!BRP$11","v":0},{"$f":"Time!BRQ$11","v":0},{"$f":"Time!BRR$11","v":0},{"$f":"Time!BRS$11","v":0},{"$f":"Time!BRT$11","v":0},{"$f":"Time!BRU$11","v":0},{"$f":"Time!BRV$11","v":0},{"$f":"Time!BRW$11","v":0},{"$f":"Time!BRX$11","v":0},{"$f":"Time!BRY$11","v":0},{"$f":"Time!BRZ$11","v":0},{"$f":"Time!BSA$11","v":0},{"$f":"Time!BSB$11","v":0},{"$f":"Time!BSC$11","v":0},{"$f":"Time!BSD$11","v":0},{"$f":"Time!BSE$11","v":0},{"$f":"Time!BSF$11","v":0},{"$f":"Time!BSG$11","v":0},{"$f":"Time!BSH$11","v":0},{"$f":"Time!BSI$11","v":0},{"$f":"Time!BSJ$11","v":0},{"$f":"Time!BSK$11","v":0},{"$f":"Time!BSL$11","v":0},{"$f":"Time!BSM$11","v":0},{"$f":"Time!BSN$11","v":0},{"$f":"Time!BSO$11","v":0},{"$f":"Time!BSP$11","v":0},{"$f":"Time!BSQ$11","v":0},{"$f":"Time!BSR$11","v":0},{"$f":"Time!BSS$11","v":0},{"$f":"Time!BST$11","v":0},{"$f":"Time!BSU$11","v":0},{"$f":"Time!BSV$11","v":0},{"$f":"Time!BSW$11","v":0},{"$f":"Time!BSX$11","v":0},{"$f":"Time!BSY$11","v":0},{"$f":"Time!BSZ$11","v":0},{"$f":"Time!BTA$11","v":0},{"$f":"Time!BTB$11","v":0},{"$f":"Time!BTC$11","v":0},{"$f":"Time!BTD$11","v":0},{"$f":"Time!BTE$11","v":0},{"$f":"Time!BTF$11","v":0},{"$f":"Time!BTG$11","v":0},{"$f":"Time!BTH$11","v":0},{"$f":"Time!BTI$11","v":0},{"$f":"Time!BTJ$11","v":0},{"$f":"Time!BTK$11","v":0},{"$f":"Time!BTL$11","v":0},{"$f":"Time!BTM$11","v":0},{"$f":"Time!BTN$11","v":0},{"$f":"Time!BTO$11","v":0},{"$f":"Time!BTP$11","v":0},{"$f":"Time!BTQ$11","v":0},{"$f":"Time!BTR$11","v":0},{"$f":"Time!BTS$11","v":0},{"$f":"Time!BTT$11","v":0},{"$f":"Time!BTU$11","v":0},{"$f":"Time!BTV$11","v":0},{"$f":"Time!BTW$11","v":0},{"$f":"Time!BTX$11","v":0},{"$f":"Time!BTY$11","v":0},{"$f":"Time!BTZ$11","v":0},{"$f":"Time!BUA$11","v":0},{"$f":"Time!BUB$11","v":0},{"$f":"Time!BUC$11","v":0},{"$f":"Time!BUD$11","v":0},{"$f":"Time!BUE$11","v":0},{"$f":"Time!BUF$11","v":0},{"$f":"Time!BUG$11","v":0},{"$f":"Time!BUH$11","v":0},{"$f":"Time!BUI$11","v":0},{"$f":"Time!BUJ$11","v":0},{"$f":"Time!BUK$11","v":0},{"$f":"Time!BUL$11","v":0},{"$f":"Time!BUM$11","v":0},{"$f":"Time!BUN$11","v":0},{"$f":"Time!BUO$11","v":0},{"$f":"Time!BUP$11","v":0},{"$f":"Time!BUQ$11","v":0},{"$f":"Time!BUR$11","v":0},{"$f":"Time!BUS$11","v":0},{"$f":"Time!BUT$11","v":0},{"$f":"Time!BUU$11","v":0},{"$f":"Time!BUV$11","v":0},{"$f":"Time!BUW$11","v":0},{"$f":"Time!BUX$11","v":0},{"$f":"Time!BUY$11","v":0},{"$f":"Time!BUZ$11","v":0},{"$f":"Time!BVA$11","v":0},{"$f":"Time!BVB$11","v":0},{"$f":"Time!BVC$11","v":0},{"$f":"Time!BVD$11","v":0},{"$f":"Time!BVE$11","v":0},{"$f":"Time!BVF$11","v":0},{"$f":"Time!BVG$11","v":0},{"$f":"Time!BVH$11","v":0},{"$f":"Time!BVI$11","v":0},{"$f":"Time!BVJ$11","v":0},{"$f":"Time!BVK$11","v":0},{"$f":"Time!BVL$11","v":0},{"$f":"Time!BVM$11","v":0},{"$f":"Time!BVN$11","v":0},{"$f":"Time!BVO$11","v":0},{"$f":"Time!BVP$11","v":0},{"$f":"Time!BVQ$11","v":0},{"$f":"Time!BVR$11","v":0},{"$f":"Time!BVS$11","v":0},{"$f":"Time!BVT$11","v":0},{"$f":"Time!BVU$11","v":0},{"$f":"Time!BVV$11","v":0},{"$f":"Time!BVW$11","v":0},{"$f":"Time!BVX$11","v":0},{"$f":"Time!BVY$11","v":0},{"$f":"Time!BVZ$11","v":0},{"$f":"Time!BWA$11","v":0},{"$f":"Time!BWB$11","v":0},{"$f":"Time!BWC$11","v":0},{"$f":"Time!BWD$11","v":0},{"$f":"Time!BWE$11","v":0},{"$f":"Time!BWF$11","v":0},{"$f":"Time!BWG$11","v":0},{"$f":"Time!BWH$11","v":0},{"$f":"Time!BWI$11","v":0},{"$f":"Time!BWJ$11","v":0},{"$f":"Time!BWK$11","v":0},{"$f":"Time!BWL$11","v":0},{"$f":"Time!BWM$11","v":0},{"$f":"Time!BWN$11","v":0},{"$f":"Time!BWO$11","v":0},{"$f":"Time!BWP$11","v":0},{"$f":"Time!BWQ$11","v":0},{"$f":"Time!BWR$11","v":0},{"$f":"Time!BWS$11","v":0},{"$f":"Time!BWT$11","v":0},{"$f":"Time!BWU$11","v":0},{"$f":"Time!BWV$11","v":0},{"$f":"Time!BWW$11","v":0},{"$f":"Time!BWX$11","v":0},{"$f":"Time!BWY$11","v":0},{"$f":"Time!BWZ$11","v":0},{"$f":"Time!BXA$11","v":0},{"$f":"Time!BXB$11","v":0},{"$f":"Time!BXC$11","v":0},{"$f":"Time!BXD$11","v":0},{"$f":"Time!BXE$11","v":0},{"$f":"Time!BXF$11","v":0},{"$f":"Time!BXG$11","v":0},{"$f":"Time!BXH$11","v":0},{"$f":"Time!BXI$11","v":0},{"$f":"Time!BXJ$11","v":0},{"$f":"Time!BXK$11","v":0},{"$f":"Time!BXL$11","v":0},{"$f":"Time!BXM$11","v":0},{"$f":"Time!BXN$11","v":0},{"$f":"Time!BXO$11","v":0},{"$f":"Time!BXP$11","v":0},{"$f":"Time!BXQ$11","v":0},{"$f":"Time!BXR$11","v":0},{"$f":"Time!BXS$11","v":0},{"$f":"Time!BXT$11","v":0},{"$f":"Time!BXU$11","v":0},{"$f":"Time!BXV$11","v":0},{"$f":"Time!BXW$11","v":0},{"$f":"Time!BXX$11","v":0},{"$f":"Time!BXY$11","v":0},{"$f":"Time!BXZ$11","v":0},{"$f":"Time!BYA$11","v":0},{"$f":"Time!BYB$11","v":0},{"$f":"Time!BYC$11","v":0},{"$f":"Time!BYD$11","v":0},{"$f":"Time!BYE$11","v":0},{"$f":"Time!BYF$11","v":0},{"$f":"Time!BYG$11","v":0},{"$f":"Time!BYH$11","v":0},{"$f":"Time!BYI$11","v":0},{"$f":"Time!BYJ$11","v":0},{"$f":"Time!BYK$11","v":0},{"$f":"Time!BYL$11","v":0},{"$f":"Time!BYM$11","v":0},{"$f":"Time!BYN$11","v":0},{"$f":"Time!BYO$11","v":0},{"$f":"Time!BYP$11","v":0},{"$f":"Time!BYQ$11","v":0},{"$f":"Time!BYR$11","v":0},{"$f":"Time!BYS$11","v":0},{"$f":"Time!BYT$11","v":0},{"$f":"Time!BYU$11","v":0},{"$f":"Time!BYV$11","v":0},{"$f":"Time!BYW$11","v":0},{"$f":"Time!BYX$11","v":0},{"$f":"Time!BYY$11","v":0},{"$f":"Time!BYZ$11","v":0},{"$f":"Time!BZA$11","v":0},{"$f":"Time!BZB$11","v":0},{"$f":"Time!BZC$11","v":0},{"$f":"Time!BZD$11","v":0},{"$f":"Time!BZE$11","v":0},{"$f":"Time!BZF$11","v":0},{"$f":"Time!BZG$11","v":0},{"$f":"Time!BZH$11","v":0},{"$f":"Time!BZI$11","v":0},{"$f":"Time!BZJ$11","v":0},{"$f":"Time!BZK$11","v":0},{"$f":"Time!BZL$11","v":0},{"$f":"Time!BZM$11","v":0},{"$f":"Time!BZN$11","v":0},{"$f":"Time!BZO$11","v":0},{"$f":"Time!BZP$11","v":0},{"$f":"Time!BZQ$11","v":0},{"$f":"Time!BZR$11","v":0},{"$f":"Time!BZS$11","v":0},{"$f":"Time!BZT$11","v":0},{"$f":"Time!BZU$11","v":0},{"$f":"Time!BZV$11","v":0},{"$f":"Time!BZW$11","v":0},{"$f":"Time!BZX$11","v":0},{"$f":"Time!BZY$11","v":0},{"$f":"Time!BZZ$11","v":0},{"$f":"Time!CAA$11","v":0},{"$f":"Time!CAB$11","v":0},{"$f":"Time!CAC$11","v":0},{"$f":"Time!CAD$11","v":0},{"$f":"Time!CAE$11","v":0},{"$f":"Time!CAF$11","v":0},{"$f":"Time!CAG$11","v":0},{"$f":"Time!CAH$11","v":0},{"$f":"Time!CAI$11","v":0},{"$f":"Time!CAJ$11","v":0},{"$f":"Time!CAK$11","v":0},{"$f":"Time!CAL$11","v":0},{"$f":"Time!CAM$11","v":0},{"$f":"Time!CAN$11","v":0},{"$f":"Time!CAO$11","v":0},{"$f":"Time!CAP$11","v":0},{"$f":"Time!CAQ$11","v":0},{"$f":"Time!CAR$11","v":0},{"$f":"Time!CAS$11","v":0},{"$f":"Time!CAT$11","v":0},{"$f":"Time!CAU$11","v":0},{"$f":"Time!CAV$11","v":0},{"$f":"Time!CAW$11","v":0},{"$f":"Time!CAX$11","v":0},{"$f":"Time!CAY$11","v":0},{"$f":"Time!CAZ$11","v":0},{"$f":"Time!CBA$11","v":0},{"$f":"Time!CBB$11","v":0},{"$f":"Time!CBC$11","v":0},{"$f":"Time!CBD$11","v":0},{"$f":"Time!CBE$11","v":0},{"$f":"Time!CBF$11","v":0},{"$f":"Time!CBG$11","v":0},{"$f":"Time!CBH$11","v":0},{"$f":"Time!CBI$11","v":0},{"$f":"Time!CBJ$11","v":0},{"$f":"Time!CBK$11","v":0},{"$f":"Time!CBL$11","v":0},{"$f":"Time!CBM$11","v":0},{"$f":"Time!CBN$11","v":0},{"$f":"Time!CBO$11","v":0},{"$f":"Time!CBP$11","v":0},{"$f":"Time!CBQ$11","v":0},{"$f":"Time!CBR$11","v":0},{"$f":"Time!CBS$11","v":0},{"$f":"Time!CBT$11","v":0},{"$f":"Time!CBU$11","v":0},{"$f":"Time!CBV$11","v":0},{"$f":"Time!CBW$11","v":0},{"$f":"Time!CBX$11","v":0},{"$f":"Time!CBY$11","v":0},{"$f":"Time!CBZ$11","v":0},{"$f":"Time!CCA$11","v":0},{"$f":"Time!CCB$11","v":0},{"$f":"Time!CCC$11","v":0},{"$f":"Time!CCD$11","v":0},{"$f":"Time!CCE$11","v":0},{"$f":"Time!CCF$11","v":0},{"$f":"Time!CCG$11","v":0},{"$f":"Time!CCH$11","v":0},{"$f":"Time!CCI$11","v":0},{"$f":"Time!CCJ$11","v":0},{"$f":"Time!CCK$11","v":0},{"$f":"Time!CCL$11","v":0},{"$f":"Time!CCM$11","v":0},{"$f":"Time!CCN$11","v":0},{"$f":"Time!CCO$11","v":0},{"$f":"Time!CCP$11","v":0},{"$f":"Time!CCQ$11","v":0},{"$f":"Time!CCR$11","v":0},{"$f":"Time!CCS$11","v":0},{"$f":"Time!CCT$11","v":0},{"$f":"Time!CCU$11","v":0},{"$f":"Time!CCV$11","v":0},{"$f":"Time!CCW$11","v":0},{"$f":"Time!CCX$11","v":0},{"$f":"Time!CCY$11","v":0},{"$f":"Time!CCZ$11","v":0},{"$f":"Time!CDA$11","v":0},{"$f":"Time!CDB$11","v":0},{"$f":"Time!CDC$11","v":0},{"$f":"Time!CDD$11","v":0},{"$f":"Time!CDE$11","v":0},{"$f":"Time!CDF$11","v":0},{"$f":"Time!CDG$11","v":0},{"$f":"Time!CDH$11","v":0},{"$f":"Time!CDI$11","v":0},{"$f":"Time!CDJ$11","v":0},{"$f":"Time!CDK$11","v":0},{"$f":"Time!CDL$11","v":0},{"$f":"Time!CDM$11","v":0},{"$f":"Time!CDN$11","v":0},{"$f":"Time!CDO$11","v":0},{"$f":"Time!CDP$11","v":0},{"$f":"Time!CDQ$11","v":0},{"$f":"Time!CDR$11","v":0},{"$f":"Time!CDS$11","v":0},{"$f":"Time!CDT$11","v":0},{"$f":"Time!CDU$11","v":0},{"$f":"Time!CDV$11","v":0},{"$f":"Time!CDW$11","v":0},{"$f":"Time!CDX$11","v":0},{"$f":"Time!CDY$11","v":0},{"$f":"Time!CDZ$11","v":0},{"$f":"Time!CEA$11","v":0},{"$f":"Time!CEB$11","v":0},{"$f":"Time!CEC$11","v":0},{"$f":"Time!CED$11","v":0},{"$f":"Time!CEE$11","v":0},{"$f":"Time!CEF$11","v":0},{"$f":"Time!CEG$11","v":0},{"$f":"Time!CEH$11","v":0},{"$f":"Time!CEI$11","v":0},{"$f":"Time!CEJ$11","v":0},{"$f":"Time!CEK$11","v":0},{"$f":"Time!CEL$11","v":0},{"$f":"Time!CEM$11","v":0},{"$f":"Time!CEN$11","v":0},{"$f":"Time!CEO$11","v":0},{"$f":"Time!CEP$11","v":0},{"$f":"Time!CEQ$11","v":0},{"$f":"Time!CER$11","v":0},{"$f":"Time!CES$11","v":0},{"$f":"Time!CET$11","v":0},{"$f":"Time!CEU$11","v":0},{"$f":"Time!CEV$11","v":0},{"$f":"Time!CEW$11","v":0},{"$f":"Time!CEX$11","v":0},{"$f":"Time!CEY$11","v":0},{"$f":"Time!CEZ$11","v":0},{"$f":"Time!CFA$11","v":0},{"$f":"Time!CFB$11","v":0},{"$f":"Time!CFC$11","v":0},{"$f":"Time!CFD$11","v":0},{"$f":"Time!CFE$11","v":0},{"$f":"Time!CFF$11","v":0},{"$f":"Time!CFG$11","v":0},{"$f":"Time!CFH$11","v":0},{"$f":"Time!CFI$11","v":0},{"$f":"Time!CFJ$11","v":0},{"$f":"Time!CFK$11","v":0},{"$f":"Time!CFL$11","v":0},{"$f":"Time!CFM$11","v":0},{"$f":"Time!CFN$11","v":0},{"$f":"Time!CFO$11","v":0},{"$f":"Time!CFP$11","v":0},{"$f":"Time!CFQ$11","v":0},{"$f":"Time!CFR$11","v":0},{"$f":"Time!CFS$11","v":0},{"$f":"Time!CFT$11","v":0},{"$f":"Time!CFU$11","v":0},{"$f":"Time!CFV$11","v":0},{"$f":"Time!CFW$11","v":0},{"$f":"Time!CFX$11","v":0},{"$f":"Time!CFY$11","v":0},{"$f":"Time!CFZ$11","v":0},{"$f":"Time!CGA$11","v":0},{"$f":"Time!CGB$11","v":0},{"$f":"Time!CGC$11","v":0},{"$f":"Time!CGD$11","v":0},{"$f":"Time!CGE$11","v":0},{"$f":"Time!CGF$11","v":0},{"$f":"Time!CGG$11","v":0},{"$f":"Time!CGH$11","v":0},{"$f":"Time!CGI$11","v":0},{"$f":"Time!CGJ$11","v":0},{"$f":"Time!CGK$11","v":0},{"$f":"Time!CGL$11","v":0},{"$f":"Time!CGM$11","v":0},{"$f":"Time!CGN$11","v":0},{"$f":"Time!CGO$11","v":0},{"$f":"Time!CGP$11","v":0},{"$f":"Time!CGQ$11","v":0},{"$f":"Time!CGR$11","v":0},{"$f":"Time!CGS$11","v":0},{"$f":"Time!CGT$11","v":0},{"$f":"Time!CGU$11","v":0},{"$f":"Time!CGV$11","v":0},{"$f":"Time!CGW$11","v":0},{"$f":"Time!CGX$11","v":0},{"$f":"Time!CGY$11","v":0},{"$f":"Time!CGZ$11","v":0},{"$f":"Time!CHA$11","v":0},{"$f":"Time!CHB$11","v":0},{"$f":"Time!CHC$11","v":0},{"$f":"Time!CHD$11","v":0},{"$f":"Time!CHE$11","v":0},{"$f":"Time!CHF$11","v":0},{"$f":"Time!CHG$11","v":0},{"$f":"Time!CHH$11","v":0},{"$f":"Time!CHI$11","v":0},{"$f":"Time!CHJ$11","v":0},{"$f":"Time!CHK$11","v":0},{"$f":"Time!CHL$11","v":0},{"$f":"Time!CHM$11","v":0},{"$f":"Time!CHN$11","v":0},{"$f":"Time!CHO$11","v":0},{"$f":"Time!CHP$11","v":0},{"$f":"Time!CHQ$11","v":0},{"$f":"Time!CHR$11","v":0},{"$f":"Time!CHS$11","v":0},{"$f":"Time!CHT$11","v":0},{"$f":"Time!CHU$11","v":0},{"$f":"Time!CHV$11","v":0},{"$f":"Time!CHW$11","v":0},{"$f":"Time!CHX$11","v":0},{"$f":"Time!CHY$11","v":0},{"$f":"Time!CHZ$11","v":0},{"$f":"Time!CIA$11","v":0},{"$f":"Time!CIB$11","v":0},{"$f":"Time!CIC$11","v":0},{"$f":"Time!CID$11","v":0},{"$f":"Time!CIE$11","v":0},{"$f":"Time!CIF$11","v":0},{"$f":"Time!CIG$11","v":0},{"$f":"Time!CIH$11","v":0},{"$f":"Time!CII$11","v":0},{"$f":"Time!CIJ$11","v":0},{"$f":"Time!CIK$11","v":0},{"$f":"Time!CIL$11","v":0},{"$f":"Time!CIM$11","v":0},{"$f":"Time!CIN$11","v":0},{"$f":"Time!CIO$11","v":0},{"$f":"Time!CIP$11","v":0},{"$f":"Time!CIQ$11","v":0},{"$f":"Time!CIR$11","v":0},{"$f":"Time!CIS$11","v":0},{"$f":"Time!CIT$11","v":0},{"$f":"Time!CIU$11","v":0},{"$f":"Time!CIV$11","v":0},{"$f":"Time!CIW$11","v":0},{"$f":"Time!CIX$11","v":0},{"$f":"Time!CIY$11","v":0},{"$f":"Time!CIZ$11","v":0},{"$f":"Time!CJA$11","v":0},{"$f":"Time!CJB$11","v":0},{"$f":"Time!CJC$11","v":0},{"$f":"Time!CJD$11","v":0},{"$f":"Time!CJE$11","v":0},{"$f":"Time!CJF$11","v":0},{"$f":"Time!CJG$11","v":0},{"$f":"Time!CJH$11","v":0},{"$f":"Time!CJI$11","v":0},{"$f":"Time!CJJ$11","v":0},{"$f":"Time!CJK$11","v":0},{"$f":"Time!CJL$11","v":0},{"$f":"Time!CJM$11","v":0},{"$f":"Time!CJN$11","v":0},{"$f":"Time!CJO$11","v":0},{"$f":"Time!CJP$11","v":0},{"$f":"Time!CJQ$11","v":0},{"$f":"Time!CJR$11","v":0},{"$f":"Time!CJS$11","v":0},{"$f":"Time!CJT$11","v":0},{"$f":"Time!CJU$11","v":0},{"$f":"Time!CJV$11","v":0},{"$f":"Time!CJW$11","v":0},{"$f":"Time!CJX$11","v":0},{"$f":"Time!CJY$11","v":0},{"$f":"Time!CJZ$11","v":0},{"$f":"Time!CKA$11","v":0},{"$f":"Time!CKB$11","v":0},{"$f":"Time!CKC$11","v":0},{"$f":"Time!CKD$11","v":0},{"$f":"Time!CKE$11","v":0},{"$f":"Time!CKF$11","v":0},{"$f":"Time!CKG$11","v":0},{"$f":"Time!CKH$11","v":0},{"$f":"Time!CKI$11","v":0},{"$f":"Time!CKJ$11","v":0},{"$f":"Time!CKK$11","v":0},{"$f":"Time!CKL$11","v":0},{"$f":"Time!CKM$11","v":0},{"$f":"Time!CKN$11","v":0},{"$f":"Time!CKO$11","v":0},{"$f":"Time!CKP$11","v":0},{"$f":"Time!CKQ$11","v":0},{"$f":"Time!CKR$11","v":0},{"$f":"Time!CKS$11","v":0},{"$f":"Time!CKT$11","v":0},{"$f":"Time!CKU$11","v":0},{"$f":"Time!CKV$11","v":0},{"$f":"Time!CKW$11","v":0},{"$f":"Time!CKX$11","v":0},{"$f":"Time!CKY$11","v":0},{"$f":"Time!CKZ$11","v":0},{"$f":"Time!CLA$11","v":0},{"$f":"Time!CLB$11","v":0},{"$f":"Time!CLC$11","v":0},{"$f":"Time!CLD$11","v":0},{"$f":"Time!CLE$11","v":0},{"$f":"Time!CLF$11","v":0},{"$f":"Time!CLG$11","v":0},{"$f":"Time!CLH$11","v":0},{"$f":"Time!CLI$11","v":0},{"$f":"Time!CLJ$11","v":0},{"$f":"Time!CLK$11","v":0},{"$f":"Time!CLL$11","v":0},{"$f":"Time!CLM$11","v":0},{"$f":"Time!CLN$11","v":0},{"$f":"Time!CLO$11","v":0},{"$f":"Time!CLP$11","v":0},{"$f":"Time!CLQ$11","v":0},{"$f":"Time!CLR$11","v":0},{"$f":"Time!CLS$11","v":0},{"$f":"Time!CLT$11","v":0},{"$f":"Time!CLU$11","v":0},{"$f":"Time!CLV$11","v":0},{"$f":"Time!CLW$11","v":0},{"$f":"Time!CLX$11","v":0},{"$f":"Time!CLY$11","v":0},{"$f":"Time!CLZ$11","v":0},{"$f":"Time!CMA$11","v":0},{"$f":"Time!CMB$11","v":0},{"$f":"Time!CMC$11","v":0},{"$f":"Time!CMD$11","v":0},{"$f":"Time!CME$11","v":0},{"$f":"Time!CMF$11","v":0},{"$f":"Time!CMG$11","v":0},{"$f":"Time!CMH$11","v":0},{"$f":"Time!CMI$11","v":0},{"$f":"Time!CMJ$11","v":0},{"$f":"Time!CMK$11","v":0},{"$f":"Time!CML$11","v":0},{"$f":"Time!CMM$11","v":0},{"$f":"Time!CMN$11","v":0},{"$f":"Time!CMO$11","v":0},{"$f":"Time!CMP$11","v":0},{"$f":"Time!CMQ$11","v":0},{"$f":"Time!CMR$11","v":0},{"$f":"Time!CMS$11","v":0},{"$f":"Time!CMT$11","v":0},{"$f":"Time!CMU$11","v":0},{"$f":"Time!CMV$11","v":0},{"$f":"Time!CMW$11","v":0},{"$f":"Time!CMX$11","v":0},{"$f":"Time!CMY$11","v":0},{"$f":"Time!CMZ$11","v":0},{"$f":"Time!CNA$11","v":0},{"$f":"Time!CNB$11","v":0},{"$f":"Time!CNC$11","v":0},{"$f":"Time!CND$11","v":0},{"$f":"Time!CNE$11","v":0},{"$f":"Time!CNF$11","v":0},{"$f":"Time!CNG$11","v":0},{"$f":"Time!CNH$11","v":0},{"$f":"Time!CNI$11","v":0},{"$f":"Time!CNJ$11","v":0},{"$f":"Time!CNK$11","v":0},{"$f":"Time!CNL$11","v":0},{"$f":"Time!CNM$11","v":0},{"$f":"Time!CNN$11","v":0},{"$f":"Time!CNO$11","v":0},{"$f":"Time!CNP$11","v":0},{"$f":"Time!CNQ$11","v":0},{"$f":"Time!CNR$11","v":0},{"$f":"Time!CNS$11","v":0},{"$f":"Time!CNT$11","v":0},{"$f":"Time!CNU$11","v":0},{"$f":"Time!CNV$11","v":0},{"$f":"Time!CNW$11","v":0},{"$f":"Time!CNX$11","v":0},{"$f":"Time!CNY$11","v":0},{"$f":"Time!CNZ$11","v":0},{"$f":"Time!COA$11","v":0},{"$f":"Time!COB$11","v":0},{"$f":"Time!COC$11","v":0},{"$f":"Time!COD$11","v":0},{"$f":"Time!COE$11","v":0},{"$f":"Time!COF$11","v":0},{"$f":"Time!COG$11","v":0},{"$f":"Time!COH$11","v":0},{"$f":"Time!COI$11","v":0},{"$f":"Time!COJ$11","v":0},{"$f":"Time!COK$11","v":0},{"$f":"Time!COL$11","v":0},{"$f":"Time!COM$11","v":0},{"$f":"Time!CON$11","v":0},{"$f":"Time!COO$11","v":0},{"$f":"Time!COP$11","v":0},{"$f":"Time!COQ$11","v":0},{"$f":"Time!COR$11","v":0},{"$f":"Time!COS$11","v":0},{"$f":"Time!COT$11","v":0},{"$f":"Time!COU$11","v":0},{"$f":"Time!COV$11","v":0},{"$f":"Time!COW$11","v":0},{"$f":"Time!COX$11","v":0},{"$f":"Time!COY$11","v":0},{"$f":"Time!COZ$11","v":0},{"$f":"Time!CPA$11","v":0},{"$f":"Time!CPB$11","v":0},{"$f":"Time!CPC$11","v":0},{"$f":"Time!CPD$11","v":0},{"$f":"Time!CPE$11","v":0},{"$f":"Time!CPF$11","v":0},{"$f":"Time!CPG$11","v":0},{"$f":"Time!CPH$11","v":0},{"$f":"Time!CPI$11","v":0},{"$f":"Time!CPJ$11","v":0},{"$f":"Time!CPK$11","v":0},{"$f":"Time!CPL$11","v":0},{"$f":"Time!CPM$11","v":0},{"$f":"Time!CPN$11","v":0},{"$f":"Time!CPO$11","v":0},{"$f":"Time!CPP$11","v":0},{"$f":"Time!CPQ$11","v":0},{"$f":"Time!CPR$11","v":0},{"$f":"Time!CPS$11","v":0},{"$f":"Time!CPT$11","v":0},{"$f":"Time!CPU$11","v":0},{"$f":"Time!CPV$11","v":0},{"$f":"Time!CPW$11","v":0},{"$f":"Time!CPX$11","v":0},{"$f":"Time!CPY$11","v":0},{"$f":"Time!CPZ$11","v":0},{"$f":"Time!CQA$11","v":0},{"$f":"Time!CQB$11","v":0},{"$f":"Time!CQC$11","v":0},{"$f":"Time!CQD$11","v":0},{"$f":"Time!CQE$11","v":0},{"$f":"Time!CQF$11","v":0},{"$f":"Time!CQG$11","v":0},{"$f":"Time!CQH$11","v":0},{"$f":"Time!CQI$11","v":0},{"$f":"Time!CQJ$11","v":0},{"$f":"Time!CQK$11","v":0},{"$f":"Time!CQL$11","v":0},{"$f":"Time!CQM$11","v":0},{"$f":"Time!CQN$11","v":0},{"$f":"Time!CQO$11","v":0},{"$f":"Time!CQP$11","v":0},{"$f":"Time!CQQ$11","v":0},{"$f":"Time!CQR$11","v":0},{"$f":"Time!CQS$11","v":0},{"$f":"Time!CQT$11","v":0},{"$f":"Time!CQU$11","v":0},{"$f":"Time!CQV$11","v":0},{"$f":"Time!CQW$11","v":0},{"$f":"Time!CQX$11","v":0},{"$f":"Time!CQY$11","v":0},{"$f":"Time!CQZ$11","v":0},{"$f":"Time!CRA$11","v":0},{"$f":"Time!CRB$11","v":0},{"$f":"Time!CRC$11","v":0},{"$f":"Time!CRD$11","v":0},{"$f":"Time!CRE$11","v":0},{"$f":"Time!CRF$11","v":0},{"$f":"Time!CRG$11","v":0},{"$f":"Time!CRH$11","v":0},{"$f":"Time!CRI$11","v":0},{"$f":"Time!CRJ$11","v":0},{"$f":"Time!CRK$11","v":0},{"$f":"Time!CRL$11","v":0},{"$f":"Time!CRM$11","v":0},{"$f":"Time!CRN$11","v":0},{"$f":"Time!CRO$11","v":0},{"$f":"Time!CRP$11","v":0},{"$f":"Time!CRQ$11","v":0},{"$f":"Time!CRR$11","v":0},{"$f":"Time!CRS$11","v":0},{"$f":"Time!CRT$11","v":0},{"$f":"Time!CRU$11","v":0},{"$f":"Time!CRV$11","v":0},{"$f":"Time!CRW$11","v":0},{"$f":"Time!CRX$11","v":0},{"$f":"Time!CRY$11","v":0},{"$f":"Time!CRZ$11","v":0},{"$f":"Time!CSA$11","v":0},{"$f":"Time!CSB$11","v":0},{"$f":"Time!CSC$11","v":0},{"$f":"Time!CSD$11","v":0},{"$f":"Time!CSE$11","v":0},{"$f":"Time!CSF$11","v":0},{"$f":"Time!CSG$11","v":0},{"$f":"Time!CSH$11","v":0},{"$f":"Time!CSI$11","v":0},{"$f":"Time!CSJ$11","v":0},{"$f":"Time!CSK$11","v":0},{"$f":"Time!CSL$11","v":0},{"$f":"Time!CSM$11","v":0},{"$f":"Time!CSN$11","v":0},{"$f":"Time!CSO$11","v":0},{"$f":"Time!CSP$11","v":0},{"$f":"Time!CSQ$11","v":0},{"$f":"Time!CSR$11","v":0},{"$f":"Time!CSS$11","v":0},{"$f":"Time!CST$11","v":0},{"$f":"Time!CSU$11","v":0},{"$f":"Time!CSV$11","v":0},{"$f":"Time!CSW$11","v":0},{"$f":"Time!CSX$11","v":0},{"$f":"Time!CSY$11","v":0},{"$f":"Time!CSZ$11","v":0},{"$f":"Time!CTA$11","v":0},{"$f":"Time!CTB$11","v":0},{"$f":"Time!CTC$11","v":0},{"$f":"Time!CTD$11","v":0},{"$f":"Time!CTE$11","v":0},{"$f":"Time!CTF$11","v":0},{"$f":"Time!CTG$11","v":0},{"$f":"Time!CTH$11","v":0},{"$f":"Time!CTI$11","v":0},{"$f":"Time!CTJ$11","v":0},{"$f":"Time!CTK$11","v":0},{"$f":"Time!CTL$11","v":0},{"$f":"Time!CTM$11","v":0},{"$f":"Time!CTN$11","v":0},{"$f":"Time!CTO$11","v":0},{"$f":"Time!CTP$11","v":0},{"$f":"Time!CTQ$11","v":0},{"$f":"Time!CTR$11","v":0},{"$f":"Time!CTS$11","v":0},{"$f":"Time!CTT$11","v":0},{"$f":"Time!CTU$11","v":0},{"$f":"Time!CTV$11","v":0},{"$f":"Time!CTW$11","v":0},{"$f":"Time!CTX$11","v":0},{"$f":"Time!CTY$11","v":0},{"$f":"Time!CTZ$11","v":0},{"$f":"Time!CUA$11","v":0},{"$f":"Time!CUB$11","v":0},{"$f":"Time!CUC$11","v":0},{"$f":"Time!CUD$11","v":0},{"$f":"Time!CUE$11","v":0},{"$f":"Time!CUF$11","v":0},{"$f":"Time!CUG$11","v":0},{"$f":"Time!CUH$11","v":0},{"$f":"Time!CUI$11","v":0},{"$f":"Time!CUJ$11","v":0},{"$f":"Time!CUK$11","v":0},{"$f":"Time!CUL$11","v":0},{"$f":"Time!CUM$11","v":0},{"$f":"Time!CUN$11","v":0},{"$f":"Time!CUO$11","v":0},{"$f":"Time!CUP$11","v":0},{"$f":"Time!CUQ$11","v":0},{"$f":"Time!CUR$11","v":0},{"$f":"Time!CUS$11","v":0},{"$f":"Time!CUT$11","v":0},{"$f":"Time!CUU$11","v":0},{"$f":"Time!CUV$11","v":0},{"$f":"Time!CUW$11","v":0},{"$f":"Time!CUX$11","v":0},{"$f":"Time!CUY$11","v":0},{"$f":"Time!CUZ$11","v":0},{"$f":"Time!CVA$11","v":0},{"$f":"Time!CVB$11","v":0},{"$f":"Time!CVC$11","v":0},{"$f":"Time!CVD$11","v":0},{"$f":"Time!CVE$11","v":0},{"$f":"Time!CVF$11","v":0},{"$f":"Time!CVG$11","v":0},{"$f":"Time!CVH$11","v":0},{"$f":"Time!CVI$11","v":0},{"$f":"Time!CVJ$11","v":0},{"$f":"Time!CVK$11","v":0},{"$f":"Time!CVL$11","v":0},{"$f":"Time!CVM$11","v":0},{"$f":"Time!CVN$11","v":0},{"$f":"Time!CVO$11","v":0},{"$f":"Time!CVP$11","v":0},{"$f":"Time!CVQ$11","v":0},{"$f":"Time!CVR$11","v":0},{"$f":"Time!CVS$11","v":0},{"$f":"Time!CVT$11","v":0},{"$f":"Time!CVU$11","v":0},{"$f":"Time!CVV$11","v":0},{"$f":"Time!CVW$11","v":0},{"$f":"Time!CVX$11","v":0},{"$f":"Time!CVY$11","v":0},{"$f":"Time!CVZ$11","v":0},{"$f":"Time!CWA$11","v":0},{"$f":"Time!CWB$11","v":0},{"$f":"Time!CWC$11","v":0},{"$f":"Time!CWD$11","v":0},{"$f":"Time!CWE$11","v":0},{"$f":"Time!CWF$11","v":0},{"$f":"Time!CWG$11","v":0},{"$f":"Time!CWH$11","v":0},{"$f":"Time!CWI$11","v":0},{"$f":"Time!CWJ$11","v":0},{"$f":"Time!CWK$11","v":0},{"$f":"Time!CWL$11","v":0},{"$f":"Time!CWM$11","v":0},{"$f":"Time!CWN$11","v":0},{"$f":"Time!CWO$11","v":0},{"$f":"Time!CWP$11","v":0},{"$f":"Time!CWQ$11","v":0},{"$f":"Time!CWR$11","v":0},{"$f":"Time!CWS$11","v":0},{"$f":"Time!CWT$11","v":0},{"$f":"Time!CWU$11","v":0},{"$f":"Time!CWV$11","v":0},{"$f":"Time!CWW$11","v":0},{"$f":"Time!CWX$11","v":0},{"$f":"Time!CWY$11","v":0},{"$f":"Time!CWZ$11","v":0},{"$f":"Time!CXA$11","v":0},{"$f":"Time!CXB$11","v":0},{"$f":"Time!CXC$11","v":0},{"$f":"Time!CXD$11","v":0},{"$f":"Time!CXE$11","v":0},{"$f":"Time!CXF$11","v":0},{"$f":"Time!CXG$11","v":0},{"$f":"Time!CXH$11","v":0},{"$f":"Time!CXI$11","v":0},{"$f":"Time!CXJ$11","v":0},{"$f":"Time!CXK$11","v":0},{"$f":"Time!CXL$11","v":0},{"$f":"Time!CXM$11","v":0},{"$f":"Time!CXN$11","v":0},{"$f":"Time!CXO$11","v":0},{"$f":"Time!CXP$11","v":0},{"$f":"Time!CXQ$11","v":0},{"$f":"Time!CXR$11","v":0},{"$f":"Time!CXS$11","v":0},{"$f":"Time!CXT$11","v":0},{"$f":"Time!CXU$11","v":0},{"$f":"Time!CXV$11","v":0},{"$f":"Time!CXW$11","v":0},{"$f":"Time!CXX$11","v":0},{"$f":"Time!CXY$11","v":0},{"$f":"Time!CXZ$11","v":0},{"$f":"Time!CYA$11","v":0},{"$f":"Time!CYB$11","v":0},{"$f":"Time!CYC$11","v":0},{"$f":"Time!CYD$11","v":0},{"$f":"Time!CYE$11","v":0},{"$f":"Time!CYF$11","v":0},{"$f":"Time!CYG$11","v":0},{"$f":"Time!CYH$11","v":0},{"$f":"Time!CYI$11","v":0},{"$f":"Time!CYJ$11","v":0},{"$f":"Time!CYK$11","v":0},{"$f":"Time!CYL$11","v":0},{"$f":"Time!CYM$11","v":0},{"$f":"Time!CYN$11","v":0},{"$f":"Time!CYO$11","v":0},{"$f":"Time!CYP$11","v":0},{"$f":"Time!CYQ$11","v":0},{"$f":"Time!CYR$11","v":0},{"$f":"Time!CYS$11","v":0},{"$f":"Time!CYT$11","v":0},{"$f":"Time!CYU$11","v":0},{"$f":"Time!CYV$11","v":0},{"$f":"Time!CYW$11","v":0},{"$f":"Time!CYX$11","v":0},{"$f":"Time!CYY$11","v":0},{"$f":"Time!CYZ$11","v":0},{"$f":"Time!CZA$11","v":0},{"$f":"Time!CZB$11","v":0},{"$f":"Time!CZC$11","v":0},{"$f":"Time!CZD$11","v":0},{"$f":"Time!CZE$11","v":0},{"$f":"Time!CZF$11","v":0},{"$f":"Time!CZG$11","v":0},{"$f":"Time!CZH$11","v":0},{"$f":"Time!CZI$11","v":0},{"$f":"Time!CZJ$11","v":0},{"$f":"Time!CZK$11","v":0},{"$f":"Time!CZL$11","v":0},{"$f":"Time!CZM$11","v":0},{"$f":"Time!CZN$11","v":0},{"$f":"Time!CZO$11","v":0},{"$f":"Time!CZP$11","v":0},{"$f":"Time!CZQ$11","v":0},{"$f":"Time!CZR$11","v":0},{"$f":"Time!CZS$11","v":0},{"$f":"Time!CZT$11","v":0},{"$f":"Time!CZU$11","v":0},{"$f":"Time!CZV$11","v":0},{"$f":"Time!CZW$11","v":0},{"$f":"Time!CZX$11","v":0},{"$f":"Time!CZY$11","v":0},{"$f":"Time!CZZ$11","v":0},{"$f":"Time!DAA$11","v":0},{"$f":"Time!DAB$11","v":0},{"$f":"Time!DAC$11","v":0},{"$f":"Time!DAD$11","v":0},{"$f":"Time!DAE$11","v":0},{"$f":"Time!DAF$11","v":0},{"$f":"Time!DAG$11","v":0},{"$f":"Time!DAH$11","v":0},{"$f":"Time!DAI$11","v":0},{"$f":"Time!DAJ$11","v":0},{"$f":"Time!DAK$11","v":0},{"$f":"Time!DAL$11","v":0},{"$f":"Time!DAM$11","v":0},{"$f":"Time!DAN$11","v":0},{"$f":"Time!DAO$11","v":0},{"$f":"Time!DAP$11","v":0},{"$f":"Time!DAQ$11","v":0},{"$f":"Time!DAR$11","v":0},{"$f":"Time!DAS$11","v":0},{"$f":"Time!DAT$11","v":0},{"$f":"Time!DAU$11","v":0},{"$f":"Time!DAV$11","v":0},{"$f":"Time!DAW$11","v":0},{"$f":"Time!DAX$11","v":0},{"$f":"Time!DAY$11","v":0},{"$f":"Time!DAZ$11","v":0},{"$f":"Time!DBA$11","v":0},{"$f":"Time!DBB$11","v":0},{"$f":"Time!DBC$11","v":0},{"$f":"Time!DBD$11","v":0},{"$f":"Time!DBE$11","v":0},{"$f":"Time!DBF$11","v":0},{"$f":"Time!DBG$11","v":0},{"$f":"Time!DBH$11","v":0},{"$f":"Time!DBI$11","v":0},{"$f":"Time!DBJ$11","v":0},{"$f":"Time!DBK$11","v":0},{"$f":"Time!DBL$11","v":0},{"$f":"Time!DBM$11","v":0},{"$f":"Time!DBN$11","v":0},{"$f":"Time!DBO$11","v":0},{"$f":"Time!DBP$11","v":0},{"$f":"Time!DBQ$11","v":0},{"$f":"Time!DBR$11","v":0},{"$f":"Time!DBS$11","v":0},{"$f":"Time!DBT$11","v":0},{"$f":"Time!DBU$11","v":0},{"$f":"Time!DBV$11","v":0},{"$f":"Time!DBW$11","v":0},{"$f":"Time!DBX$11","v":0},{"$f":"Time!DBY$11","v":0},{"$f":"Time!DBZ$11","v":0},{"$f":"Time!DCA$11","v":0},{"$f":"Time!DCB$11","v":0},{"$f":"Time!DCC$11","v":0},{"$f":"Time!DCD$11","v":0},{"$f":"Time!DCE$11","v":0},{"$f":"Time!DCF$11","v":0},{"$f":"Time!DCG$11","v":0},{"$f":"Time!DCH$11","v":0},{"$f":"Time!DCI$11","v":0},{"$f":"Time!DCJ$11","v":0},{"$f":"Time!DCK$11","v":0},{"$f":"Time!DCL$11","v":0},{"$f":"Time!DCM$11","v":0},{"$f":"Time!DCN$11","v":0},{"$f":"Time!DCO$11","v":0},{"$f":"Time!DCP$11","v":0},{"$f":"Time!DCQ$11","v":0},{"$f":"Time!DCR$11","v":0},{"$f":"Time!DCS$11","v":0},{"$f":"Time!DCT$11","v":0},{"$f":"Time!DCU$11","v":0},{"$f":"Time!DCV$11","v":0},{"$f":"Time!DCW$11","v":0},{"$f":"Time!DCX$11","v":0},{"$f":"Time!DCY$11","v":0},{"$f":"Time!DCZ$11","v":0},{"$f":"Time!DDA$11","v":0},{"$f":"Time!DDB$11","v":0},{"$f":"Time!DDC$11","v":0},{"$f":"Time!DDD$11","v":0},{"$f":"Time!DDE$11","v":0},{"$f":"Time!DDF$11","v":0},{"$f":"Time!DDG$11","v":0},{"$f":"Time!DDH$11","v":0},{"$f":"Time!DDI$11","v":0},{"$f":"Time!DDJ$11","v":0},{"$f":"Time!DDK$11","v":0},{"$f":"Time!DDL$11","v":0},{"$f":"Time!DDM$11","v":0},{"$f":"Time!DDN$11","v":0},{"$f":"Time!DDO$11","v":0},{"$f":"Time!DDP$11","v":0},{"$f":"Time!DDQ$11","v":0},{"$f":"Time!DDR$11","v":0},{"$f":"Time!DDS$11","v":0},{"$f":"Time!DDT$11","v":0},{"$f":"Time!DDU$11","v":0},{"$f":"Time!DDV$11","v":0},{"$f":"Time!DDW$11","v":0},{"$f":"Time!DDX$11","v":0},{"$f":"Time!DDY$11","v":0},{"$f":"Time!DDZ$11","v":0},{"$f":"Time!DEA$11","v":0},{"$f":"Time!DEB$11","v":0},{"$f":"Time!DEC$11","v":0},{"$f":"Time!DED$11","v":0},{"$f":"Time!DEE$11","v":0},{"$f":"Time!DEF$11","v":0},{"$f":"Time!DEG$11","v":0},{"$f":"Time!DEH$11","v":0},{"$f":"Time!DEI$11","v":0},{"$f":"Time!DEJ$11","v":0},{"$f":"Time!DEK$11","v":0},{"$f":"Time!DEL$11","v":0},{"$f":"Time!DEM$11","v":0},{"$f":"Time!DEN$11","v":0},{"$f":"Time!DEO$11","v":0},{"$f":"Time!DEP$11","v":0},{"$f":"Time!DEQ$11","v":0},{"$f":"Time!DER$11","v":0},{"$f":"Time!DES$11","v":0},{"$f":"Time!DET$11","v":0},{"$f":"Time!DEU$11","v":0},{"$f":"Time!DEV$11","v":0},{"$f":"Time!DEW$11","v":0},{"$f":"Time!DEX$11","v":0},{"$f":"Time!DEY$11","v":0},{"$f":"Time!DEZ$11","v":0},{"$f":"Time!DFA$11","v":0},{"$f":"Time!DFB$11","v":0},{"$f":"Time!DFC$11","v":0},{"$f":"Time!DFD$11","v":0},{"$f":"Time!DFE$11","v":0},{"$f":"Time!DFF$11","v":0},{"$f":"Time!DFG$11","v":0},{"$f":"Time!DFH$11","v":0},{"$f":"Time!DFI$11","v":0},{"$f":"Time!DFJ$11","v":0},{"$f":"Time!DFK$11","v":0},{"$f":"Time!DFL$11","v":0},{"$f":"Time!DFM$11","v":0},{"$f":"Time!DFN$11","v":0},{"$f":"Time!DFO$11","v":0},{"$f":"Time!DFP$11","v":0},{"$f":"Time!DFQ$11","v":0},{"$f":"Time!DFR$11","v":0},{"$f":"Time!DFS$11","v":0},{"$f":"Time!DFT$11","v":0},{"$f":"Time!DFU$11","v":0},{"$f":"Time!DFV$11","v":0},{"$f":"Time!DFW$11","v":0},{"$f":"Time!DFX$11","v":0},{"$f":"Time!DFY$11","v":0},{"$f":"Time!DFZ$11","v":0},{"$f":"Time!DGA$11","v":0},{"$f":"Time!DGB$11","v":0},{"$f":"Time!DGC$11","v":0},{"$f":"Time!DGD$11","v":0},{"$f":"Time!DGE$11","v":0},{"$f":"Time!DGF$11","v":0},{"$f":"Time!DGG$11","v":0},{"$f":"Time!DGH$11","v":0},{"$f":"Time!DGI$11","v":0},{"$f":"Time!DGJ$11","v":0},{"$f":"Time!DGK$11","v":0},{"$f":"Time!DGL$11","v":0},{"$f":"Time!DGM$11","v":0},{"$f":"Time!DGN$11","v":0},{"$f":"Time!DGO$11","v":0},{"$f":"Time!DGP$11","v":0},{"$f":"Time!DGQ$11","v":0},{"$f":"Time!DGR$11","v":0},{"$f":"Time!DGS$11","v":0},{"$f":"Time!DGT$11","v":0},{"$f":"Time!DGU$11","v":0},{"$f":"Time!DGV$11","v":0},{"$f":"Time!DGW$11","v":0},{"$f":"Time!DGX$11","v":0},{"$f":"Time!DGY$11","v":0},{"$f":"Time!DGZ$11","v":0},{"$f":"Time!DHA$11","v":0},{"$f":"Time!DHB$11","v":0},{"$f":"Time!DHC$11","v":0},{"$f":"Time!DHD$11","v":0},{"$f":"Time!DHE$11","v":0},{"$f":"Time!DHF$11","v":0},{"$f":"Time!DHG$11","v":0},{"$f":"Time!DHH$11","v":0},{"$f":"Time!DHI$11","v":0},{"$f":"Time!DHJ$11","v":0},{"$f":"Time!DHK$11","v":0},{"$f":"Time!DHL$11","v":0},{"$f":"Time!DHM$11","v":0},{"$f":"Time!DHN$11","v":0},{"$f":"Time!DHO$11","v":0},{"$f":"Time!DHP$11","v":0},{"$f":"Time!DHQ$11","v":0},{"$f":"Time!DHR$11","v":0},{"$f":"Time!DHS$11","v":0},{"$f":"Time!DHT$11","v":0},{"$f":"Time!DHU$11","v":0},{"$f":"Time!DHV$11","v":0},{"$f":"Time!DHW$11","v":0},{"$f":"Time!DHX$11","v":0},{"$f":"Time!DHY$11","v":0},{"$f":"Time!DHZ$11","v":0},{"$f":"Time!DIA$11","v":0},{"$f":"Time!DIB$11","v":0},{"$f":"Time!DIC$11","v":0},{"$f":"Time!DID$11","v":0},{"$f":"Time!DIE$11","v":0},{"$f":"Time!DIF$11","v":0},{"$f":"Time!DIG$11","v":0},{"$f":"Time!DIH$11","v":0},{"$f":"Time!DII$11","v":0},{"$f":"Time!DIJ$11","v":0},{"$f":"Time!DIK$11","v":0},{"$f":"Time!DIL$11","v":0},{"$f":"Time!DIM$11","v":0},{"$f":"Time!DIN$11","v":0},{"$f":"Time!DIO$11","v":0},{"$f":"Time!DIP$11","v":0},{"$f":"Time!DIQ$11","v":0},{"$f":"Time!DIR$11","v":0},{"$f":"Time!DIS$11","v":0},{"$f":"Time!DIT$11","v":0},{"$f":"Time!DIU$11","v":0},{"$f":"Time!DIV$11","v":0},{"$f":"Time!DIW$11","v":0},{"$f":"Time!DIX$11","v":0},{"$f":"Time!DIY$11","v":0},{"$f":"Time!DIZ$11","v":0},{"$f":"Time!DJA$11","v":0},{"$f":"Time!DJB$11","v":0},{"$f":"Time!DJC$11","v":0},{"$f":"Time!DJD$11","v":0},{"$f":"Time!DJE$11","v":0},{"$f":"Time!DJF$11","v":0},{"$f":"Time!DJG$11","v":0},{"$f":"Time!DJH$11","v":0},{"$f":"Time!DJI$11","v":0},{"$f":"Time!DJJ$11","v":0},{"$f":"Time!DJK$11","v":0},{"$f":"Time!DJL$11","v":0},{"$f":"Time!DJM$11","v":0},{"$f":"Time!DJN$11","v":0},{"$f":"Time!DJO$11","v":0},{"$f":"Time!DJP$11","v":0},{"$f":"Time!DJQ$11","v":0},{"$f":"Time!DJR$11","v":0},{"$f":"Time!DJS$11","v":0},{"$f":"Time!DJT$11","v":0},{"$f":"Time!DJU$11","v":0},{"$f":"Time!DJV$11","v":0},{"$f":"Time!DJW$11","v":0},{"$f":"Time!DJX$11","v":0},{"$f":"Time!DJY$11","v":0},{"$f":"Time!DJZ$11","v":0},{"$f":"Time!DKA$11","v":0},{"$f":"Time!DKB$11","v":0},{"$f":"Time!DKC$11","v":0},{"$f":"Time!DKD$11","v":0},{"$f":"Time!DKE$11","v":0},{"$f":"Time!DKF$11","v":0},{"$f":"Time!DKG$11","v":0},{"$f":"Time!DKH$11","v":0},{"$f":"Time!DKI$11","v":0},{"$f":"Time!DKJ$11","v":0},{"$f":"Time!DKK$11","v":0},{"$f":"Time!DKL$11","v":0},{"$f":"Time!DKM$11","v":0},{"$f":"Time!DKN$11","v":0},{"$f":"Time!DKO$11","v":0},{"$f":"Time!DKP$11","v":0},{"$f":"Time!DKQ$11","v":0},{"$f":"Time!DKR$11","v":0},{"$f":"Time!DKS$11","v":0},{"$f":"Time!DKT$11","v":0},{"$f":"Time!DKU$11","v":0},{"$f":"Time!DKV$11","v":0},{"$f":"Time!DKW$11","v":0},{"$f":"Time!DKX$11","v":0},{"$f":"Time!DKY$11","v":0},{"$f":"Time!DKZ$11","v":0},{"$f":"Time!DLA$11","v":0},{"$f":"Time!DLB$11","v":0},{"$f":"Time!DLC$11","v":0},{"$f":"Time!DLD$11","v":0},{"$f":"Time!DLE$11","v":0},{"$f":"Time!DLF$11","v":0},{"$f":"Time!DLG$11","v":0},{"$f":"Time!DLH$11","v":0},{"$f":"Time!DLI$11","v":0},{"$f":"Time!DLJ$11","v":0},{"$f":"Time!DLK$11","v":0},{"$f":"Time!DLL$11","v":0},{"$f":"Time!DLM$11","v":0},{"$f":"Time!DLN$11","v":0},{"$f":"Time!DLO$11","v":0},{"$f":"Time!DLP$11","v":0},{"$f":"Time!DLQ$11","v":0},{"$f":"Time!DLR$11","v":0},{"$f":"Time!DLS$11","v":0},{"$f":"Time!DLT$11","v":0},{"$f":"Time!DLU$11","v":0},{"$f":"Time!DLV$11","v":0},{"$f":"Time!DLW$11","v":0},{"$f":"Time!DLX$11","v":0},{"$f":"Time!DLY$11","v":0},{"$f":"Time!DLZ$11","v":0},{"$f":"Time!DMA$11","v":0},{"$f":"Time!DMB$11","v":0},{"$f":"Time!DMC$11","v":0},{"$f":"Time!DMD$11","v":0},{"$f":"Time!DME$11","v":0},{"$f":"Time!DMF$11","v":0},{"$f":"Time!DMG$11","v":0},{"$f":"Time!DMH$11","v":0},{"$f":"Time!DMI$11","v":0},{"$f":"Time!DMJ$11","v":0},{"$f":"Time!DMK$11","v":0},{"$f":"Time!DML$11","v":0},{"$f":"Time!DMM$11","v":0},{"$f":"Time!DMN$11","v":0},{"$f":"Time!DMO$11","v":0},{"$f":"Time!DMP$11","v":0},{"$f":"Time!DMQ$11","v":0},{"$f":"Time!DMR$11","v":0},{"$f":"Time!DMS$11","v":0},{"$f":"Time!DMT$11","v":0},{"$f":"Time!DMU$11","v":0},{"$f":"Time!DMV$11","v":0},{"$f":"Time!DMW$11","v":0},{"$f":"Time!DMX$11","v":0},{"$f":"Time!DMY$11","v":0},{"$f":"Time!DMZ$11","v":0},{"$f":"Time!DNA$11","v":0},{"$f":"Time!DNB$11","v":0},{"$f":"Time!DNC$11","v":0},{"$f":"Time!DND$11","v":0},{"$f":"Time!DNE$11","v":0},{"$f":"Time!DNF$11","v":0},{"$f":"Time!DNG$11","v":0},{"$f":"Time!DNH$11","v":0},{"$f":"Time!DNI$11","v":0},{"$f":"Time!DNJ$11","v":0},{"$f":"Time!DNK$11","v":0},{"$f":"Time!DNL$11","v":0},{"$f":"Time!DNM$11","v":0},{"$f":"Time!DNN$11","v":0},{"$f":"Time!DNO$11","v":0},{"$f":"Time!DNP$11","v":0},{"$f":"Time!DNQ$11","v":0},{"$f":"Time!DNR$11","v":0},{"$f":"Time!DNS$11","v":0},{"$f":"Time!DNT$11","v":0},{"$f":"Time!DNU$11","v":0},{"$f":"Time!DNV$11","v":0},{"$f":"Time!DNW$11","v":0},{"$f":"Time!DNX$11","v":0},{"$f":"Time!DNY$11","v":0},{"$f":"Time!DNZ$11","v":0},{"$f":"Time!DOA$11","v":0},{"$f":"Time!DOB$11","v":0},{"$f":"Time!DOC$11","v":0},{"$f":"Time!DOD$11","v":0},{"$f":"Time!DOE$11","v":0},{"$f":"Time!DOF$11","v":0},{"$f":"Time!DOG$11","v":0},{"$f":"Time!DOH$11","v":0},{"$f":"Time!DOI$11","v":0},{"$f":"Time!DOJ$11","v":0},{"$f":"Time!DOK$11","v":0},{"$f":"Time!DOL$11","v":0},{"$f":"Time!DOM$11","v":0},{"$f":"Time!DON$11","v":0},{"$f":"Time!DOO$11","v":0},{"$f":"Time!DOP$11","v":0},{"$f":"Time!DOQ$11","v":0},{"$f":"Time!DOR$11","v":0},{"$f":"Time!DOS$11","v":0},{"$f":"Time!DOT$11","v":0},{"$f":"Time!DOU$11","v":0},{"$f":"Time!DOV$11","v":0},{"$f":"Time!DOW$11","v":0},{"$f":"Time!DOX$11","v":0},{"$f":"Time!DOY$11","v":0},{"$f":"Time!DOZ$11","v":0},{"$f":"Time!DPA$11","v":0},{"$f":"Time!DPB$11","v":0},{"$f":"Time!DPC$11","v":0},{"$f":"Time!DPD$11","v":0},{"$f":"Time!DPE$11","v":0},{"$f":"Time!DPF$11","v":0},{"$f":"Time!DPG$11","v":0},{"$f":"Time!DPH$11","v":0},{"$f":"Time!DPI$11","v":0},{"$f":"Time!DPJ$11","v":0},{"$f":"Time!DPK$11","v":0},{"$f":"Time!DPL$11","v":0},{"$f":"Time!DPM$11","v":0},{"$f":"Time!DPN$11","v":0},{"$f":"Time!DPO$11","v":0},{"$f":"Time!DPP$11","v":0},{"$f":"Time!DPQ$11","v":0},{"$f":"Time!DPR$11","v":0},{"$f":"Time!DPS$11","v":0},{"$f":"Time!DPT$11","v":0},{"$f":"Time!DPU$11","v":0},{"$f":"Time!DPV$11","v":0},{"$f":"Time!DPW$11","v":0},{"$f":"Time!DPX$11","v":0},{"$f":"Time!DPY$11","v":0},{"$f":"Time!DPZ$11","v":0},{"$f":"Time!DQA$11","v":0},{"$f":"Time!DQB$11","v":0},{"$f":"Time!DQC$11","v":0},{"$f":"Time!DQD$11","v":0},{"$f":"Time!DQE$11","v":0},{"$f":"Time!DQF$11","v":0},{"$f":"Time!DQG$11","v":0},{"$f":"Time!DQH$11","v":0},{"$f":"Time!DQI$11","v":0},{"$f":"Time!DQJ$11","v":0},{"$f":"Time!DQK$11","v":0},{"$f":"Time!DQL$11","v":0},{"$f":"Time!DQM$11","v":0},{"$f":"Time!DQN$11","v":0},{"$f":"Time!DQO$11","v":0},{"$f":"Time!DQP$11","v":0},{"$f":"Time!DQQ$11","v":0},{"$f":"Time!DQR$11","v":0},{"$f":"Time!DQS$11","v":0},{"$f":"Time!DQT$11","v":0},{"$f":"Time!DQU$11","v":0},{"$f":"Time!DQV$11","v":0},{"$f":"Time!DQW$11","v":0},{"$f":"Time!DQX$11","v":0},{"$f":"Time!DQY$11","v":0},{"$f":"Time!DQZ$11","v":0},{"$f":"Time!DRA$11","v":0},{"$f":"Time!DRB$11","v":0},{"$f":"Time!DRC$11","v":0},{"$f":"Time!DRD$11","v":0},{"$f":"Time!DRE$11","v":0},{"$f":"Time!DRF$11","v":0},{"$f":"Time!DRG$11","v":0},{"$f":"Time!DRH$11","v":0},{"$f":"Time!DRI$11","v":0},{"$f":"Time!DRJ$11","v":0},{"$f":"Time!DRK$11","v":0},{"$f":"Time!DRL$11","v":0},{"$f":"Time!DRM$11","v":0},{"$f":"Time!DRN$11","v":0},{"$f":"Time!DRO$11","v":0},{"$f":"Time!DRP$11","v":0},{"$f":"Time!DRQ$11","v":0},{"$f":"Time!DRR$11","v":0},{"$f":"Time!DRS$11","v":0},{"$f":"Time!DRT$11","v":0},{"$f":"Time!DRU$11","v":0},{"$f":"Time!DRV$11","v":0},{"$f":"Time!DRW$11","v":0},{"$f":"Time!DRX$11","v":0},{"$f":"Time!DRY$11","v":0},{"$f":"Time!DRZ$11","v":0},{"$f":"Time!DSA$11","v":0},{"$f":"Time!DSB$11","v":0},{"$f":"Time!DSC$11","v":0},{"$f":"Time!DSD$11","v":0},{"$f":"Time!DSE$11","v":0},{"$f":"Time!DSF$11","v":0},{"$f":"Time!DSG$11","v":0},{"$f":"Time!DSH$11","v":0},{"$f":"Time!DSI$11","v":0},{"$f":"Time!DSJ$11","v":0},{"$f":"Time!DSK$11","v":0},{"$f":"Time!DSL$11","v":0},{"$f":"Time!DSM$11","v":0},{"$f":"Time!DSN$11","v":0},{"$f":"Time!DSO$11","v":0},{"$f":"Time!DSP$11","v":0},{"$f":"Time!DSQ$11","v":0},{"$f":"Time!DSR$11","v":0},{"$f":"Time!DSS$11","v":0},{"$f":"Time!DST$11","v":0},{"$f":"Time!DSU$11","v":0},{"$f":"Time!DSV$11","v":0},{"$f":"Time!DSW$11","v":0},{"$f":"Time!DSX$11","v":0},{"$f":"Time!DSY$11","v":0},{"$f":"Time!DSZ$11","v":0},{"$f":"Time!DTA$11","v":0},{"$f":"Time!DTB$11","v":0},{"$f":"Time!DTC$11","v":0},{"$f":"Time!DTD$11","v":0},{"$f":"Time!DTE$11","v":0},{"$f":"Time!DTF$11","v":0},{"$f":"Time!DTG$11","v":0},{"$f":"Time!DTH$11","v":0},{"$f":"Time!DTI$11","v":0},{"$f":"Time!DTJ$11","v":0},{"$f":"Time!DTK$11","v":0},{"$f":"Time!DTL$11","v":0},{"$f":"Time!DTM$11","v":0},{"$f":"Time!DTN$11","v":0},{"$f":"Time!DTO$11","v":0},{"$f":"Time!DTP$11","v":0},{"$f":"Time!DTQ$11","v":0},{"$f":"Time!DTR$11","v":0},{"$f":"Time!DTS$11","v":0},{"$f":"Time!DTT$11","v":0},{"$f":"Time!DTU$11","v":0},{"$f":"Time!DTV$11","v":0},{"$f":"Time!DTW$11","v":0},{"$f":"Time!DTX$11","v":0},{"$f":"Time!DTY$11","v":0},{"$f":"Time!DTZ$11","v":0},{"$f":"Time!DUA$11","v":0},{"$f":"Time!DUB$11","v":0},{"$f":"Time!DUC$11","v":0},{"$f":"Time!DUD$11","v":0},{"$f":"Time!DUE$11","v":0},{"$f":"Time!DUF$11","v":0},{"$f":"Time!DUG$11","v":0},{"$f":"Time!DUH$11","v":0},{"$f":"Time!DUI$11","v":0},{"$f":"Time!DUJ$11","v":0},{"$f":"Time!DUK$11","v":0},{"$f":"Time!DUL$11","v":0},{"$f":"Time!DUM$11","v":0},{"$f":"Time!DUN$11","v":0},{"$f":"Time!DUO$11","v":0},{"$f":"Time!DUP$11","v":0},{"$f":"Time!DUQ$11","v":0},{"$f":"Time!DUR$11","v":0},{"$f":"Time!DUS$11","v":0},{"$f":"Time!DUT$11","v":0},{"$f":"Time!DUU$11","v":0},{"$f":"Time!DUV$11","v":0},{"$f":"Time!DUW$11","v":0},{"$f":"Time!DUX$11","v":0},{"$f":"Time!DUY$11","v":0},{"$f":"Time!DUZ$11","v":0},{"$f":"Time!DVA$11","v":0},{"$f":"Time!DVB$11","v":0},{"$f":"Time!DVC$11","v":0},{"$f":"Time!DVD$11","v":0},{"$f":"Time!DVE$11","v":0},{"$f":"Time!DVF$11","v":0},{"$f":"Time!DVG$11","v":0},{"$f":"Time!DVH$11","v":0},{"$f":"Time!DVI$11","v":0},{"$f":"Time!DVJ$11","v":0},{"$f":"Time!DVK$11","v":0},{"$f":"Time!DVL$11","v":0},{"$f":"Time!DVM$11","v":0},{"$f":"Time!DVN$11","v":0},{"$f":"Time!DVO$11","v":0},{"$f":"Time!DVP$11","v":0},{"$f":"Time!DVQ$11","v":0},{"$f":"Time!DVR$11","v":0},{"$f":"Time!DVS$11","v":0},{"$f":"Time!DVT$11","v":0},{"$f":"Time!DVU$11","v":0},{"$f":"Time!DVV$11","v":0},{"$f":"Time!DVW$11","v":0},{"$f":"Time!DVX$11","v":0},{"$f":"Time!DVY$11","v":0},{"$f":"Time!DVZ$11","v":0},{"$f":"Time!DWA$11","v":0},{"$f":"Time!DWB$11","v":0},{"$f":"Time!DWC$11","v":0},{"$f":"Time!DWD$11","v":0},{"$f":"Time!DWE$11","v":0},{"$f":"Time!DWF$11","v":0},{"$f":"Time!DWG$11","v":0},{"$f":"Time!DWH$11","v":0},{"$f":"Time!DWI$11","v":0},{"$f":"Time!DWJ$11","v":0},{"$f":"Time!DWK$11","v":0},{"$f":"Time!DWL$11","v":0},{"$f":"Time!DWM$11","v":0},{"$f":"Time!DWN$11","v":0},{"$f":"Time!DWO$11","v":0},{"$f":"Time!DWP$11","v":0},{"$f":"Time!DWQ$11","v":0},{"$f":"Time!DWR$11","v":0},{"$f":"Time!DWS$11","v":0},{"$f":"Time!DWT$11","v":0},{"$f":"Time!DWU$11","v":0},{"$f":"Time!DWV$11","v":0},{"$f":"Time!DWW$11","v":0},{"$f":"Time!DWX$11","v":0},{"$f":"Time!DWY$11","v":0},{"$f":"Time!DWZ$11","v":0},{"$f":"Time!DXA$11","v":0},{"$f":"Time!DXB$11","v":0},{"$f":"Time!DXC$11","v":0},{"$f":"Time!DXD$11","v":0},{"$f":"Time!DXE$11","v":0},{"$f":"Time!DXF$11","v":0},{"$f":"Time!DXG$11","v":0},{"$f":"Time!DXH$11","v":0},{"$f":"Time!DXI$11","v":0},{"$f":"Time!DXJ$11","v":0},{"$f":"Time!DXK$11","v":0},{"$f":"Time!DXL$11","v":0},{"$f":"Time!DXM$11","v":0},{"$f":"Time!DXN$11","v":0},{"$f":"Time!DXO$11","v":0},{"$f":"Time!DXP$11","v":0},{"$f":"Time!DXQ$11","v":0},{"$f":"Time!DXR$11","v":0},{"$f":"Time!DXS$11","v":0},{"$f":"Time!DXT$11","v":0},{"$f":"Time!DXU$11","v":0},{"$f":"Time!DXV$11","v":0},{"$f":"Time!DXW$11","v":0},{"$f":"Time!DXX$11","v":0},{"$f":"Time!DXY$11","v":0},{"$f":"Time!DXZ$11","v":0},{"$f":"Time!DYA$11","v":0},{"$f":"Time!DYB$11","v":0},{"$f":"Time!DYC$11","v":0},{"$f":"Time!DYD$11","v":0},{"$f":"Time!DYE$11","v":0},{"$f":"Time!DYF$11","v":0},{"$f":"Time!DYG$11","v":0},{"$f":"Time!DYH$11","v":0},{"$f":"Time!DYI$11","v":0},{"$f":"Time!DYJ$11","v":0},{"$f":"Time!DYK$11","v":0},{"$f":"Time!DYL$11","v":0},{"$f":"Time!DYM$11","v":0},{"$f":"Time!DYN$11","v":0},{"$f":"Time!DYO$11","v":0},{"$f":"Time!DYP$11","v":0},{"$f":"Time!DYQ$11","v":0},{"$f":"Time!DYR$11","v":0},{"$f":"Time!DYS$11","v":0},{"$f":"Time!DYT$11","v":0},{"$f":"Time!DYU$11","v":0},{"$f":"Time!DYV$11","v":0},{"$f":"Time!DYW$11","v":0},{"$f":"Time!DYX$11","v":0},{"$f":"Time!DYY$11","v":0},{"$f":"Time!DYZ$11","v":0},{"$f":"Time!DZA$11","v":0},{"$f":"Time!DZB$11","v":0},{"$f":"Time!DZC$11","v":0},{"$f":"Time!DZD$11","v":0},{"$f":"Time!DZE$11","v":0},{"$f":"Time!DZF$11","v":0},{"$f":"Time!DZG$11","v":0},{"$f":"Time!DZH$11","v":0},{"$f":"Time!DZI$11","v":0},{"$f":"Time!DZJ$11","v":0},{"$f":"Time!DZK$11","v":0},{"$f":"Time!DZL$11","v":0},{"$f":"Time!DZM$11","v":0},{"$f":"Time!DZN$11","v":0},{"$f":"Time!DZO$11","v":0},{"$f":"Time!DZP$11","v":0},{"$f":"Time!DZQ$11","v":0},{"$f":"Time!DZR$11","v":0},{"$f":"Time!DZS$11","v":0},{"$f":"Time!DZT$11","v":0},{"$f":"Time!DZU$11","v":0},{"$f":"Time!DZV$11","v":0},{"$f":"Time!DZW$11","v":0},{"$f":"Time!DZX$11","v":0},{"$f":"Time!DZY$11","v":0},{"$f":"Time!DZZ$11","v":0},{"$f":"Time!EAA$11","v":0},{"$f":"Time!EAB$11","v":0},{"$f":"Time!EAC$11","v":0},{"$f":"Time!EAD$11","v":0},{"$f":"Time!EAE$11","v":0},{"$f":"Time!EAF$11","v":0},{"$f":"Time!EAG$11","v":0},{"$f":"Time!EAH$11","v":0},{"$f":"Time!EAI$11","v":0},{"$f":"Time!EAJ$11","v":0},{"$f":"Time!EAK$11","v":0},{"$f":"Time!EAL$11","v":0},{"$f":"Time!EAM$11","v":0},{"$f":"Time!EAN$11","v":0},{"$f":"Time!EAO$11","v":0},{"$f":"Time!EAP$11","v":0},{"$f":"Time!EAQ$11","v":0},{"$f":"Time!EAR$11","v":0},{"$f":"Time!EAS$11","v":0},{"$f":"Time!EAT$11","v":0},{"$f":"Time!EAU$11","v":0},{"$f":"Time!EAV$11","v":0},{"$f":"Time!EAW$11","v":0},{"$f":"Time!EAX$11","v":0},{"$f":"Time!EAY$11","v":0},{"$f":"Time!EAZ$11","v":0},{"$f":"Time!EBA$11","v":0},{"$f":"Time!EBB$11","v":0},{"$f":"Time!EBC$11","v":0},{"$f":"Time!EBD$11","v":0},{"$f":"Time!EBE$11","v":0},{"$f":"Time!EBF$11","v":0},{"$f":"Time!EBG$11","v":0},{"$f":"Time!EBH$11","v":0},{"$f":"Time!EBI$11","v":0},{"$f":"Time!EBJ$11","v":0},{"$f":"Time!EBK$11","v":0},{"$f":"Time!EBL$11","v":0},{"$f":"Time!EBM$11","v":0},{"$f":"Time!EBN$11","v":0},{"$f":"Time!EBO$11","v":0},{"$f":"Time!EBP$11","v":0},{"$f":"Time!EBQ$11","v":0},{"$f":"Time!EBR$11","v":0},{"$f":"Time!EBS$11","v":0},{"$f":"Time!EBT$11","v":0},{"$f":"Time!EBU$11","v":0},{"$f":"Time!EBV$11","v":0},{"$f":"Time!EBW$11","v":0},{"$f":"Time!EBX$11","v":0},{"$f":"Time!EBY$11","v":0},{"$f":"Time!EBZ$11","v":0},{"$f":"Time!ECA$11","v":0},{"$f":"Time!ECB$11","v":0},{"$f":"Time!ECC$11","v":0},{"$f":"Time!ECD$11","v":0},{"$f":"Time!ECE$11","v":0},{"$f":"Time!ECF$11","v":0},{"$f":"Time!ECG$11","v":0},{"$f":"Time!ECH$11","v":0},{"$f":"Time!ECI$11","v":0},{"$f":"Time!ECJ$11","v":0},{"$f":"Time!ECK$11","v":0},{"$f":"Time!ECL$11","v":0},{"$f":"Time!ECM$11","v":0},{"$f":"Time!ECN$11","v":0},{"$f":"Time!ECO$11","v":0},{"$f":"Time!ECP$11","v":0},{"$f":"Time!ECQ$11","v":0},{"$f":"Time!ECR$11","v":0},{"$f":"Time!ECS$11","v":0},{"$f":"Time!ECT$11","v":0},{"$f":"Time!ECU$11","v":0},{"$f":"Time!ECV$11","v":0},{"$f":"Time!ECW$11","v":0},{"$f":"Time!ECX$11","v":0},{"$f":"Time!ECY$11","v":0},{"$f":"Time!ECZ$11","v":0},{"$f":"Time!EDA$11","v":0},{"$f":"Time!EDB$11","v":0},{"$f":"Time!EDC$11","v":0},{"$f":"Time!EDD$11","v":0},{"$f":"Time!EDE$11","v":0},{"$f":"Time!EDF$11","v":0},{"$f":"Time!EDG$11","v":0},{"$f":"Time!EDH$11","v":0},{"$f":"Time!EDI$11","v":0},{"$f":"Time!EDJ$11","v":0},{"$f":"Time!EDK$11","v":0},{"$f":"Time!EDL$11","v":0},{"$f":"Time!EDM$11","v":0},{"$f":"Time!EDN$11","v":0},{"$f":"Time!EDO$11","v":0},{"$f":"Time!EDP$11","v":0},{"$f":"Time!EDQ$11","v":0},{"$f":"Time!EDR$11","v":0},{"$f":"Time!EDS$11","v":0},{"$f":"Time!EDT$11","v":0},{"$f":"Time!EDU$11","v":0},{"$f":"Time!EDV$11","v":0},{"$f":"Time!EDW$11","v":0},{"$f":"Time!EDX$11","v":0},{"$f":"Time!EDY$11","v":0},{"$f":"Time!EDZ$11","v":0},{"$f":"Time!EEA$11","v":0},{"$f":"Time!EEB$11","v":0},{"$f":"Time!EEC$11","v":0},{"$f":"Time!EED$11","v":0},{"$f":"Time!EEE$11","v":0},{"$f":"Time!EEF$11","v":0},{"$f":"Time!EEG$11","v":0},{"$f":"Time!EEH$11","v":0},{"$f":"Time!EEI$11","v":0},{"$f":"Time!EEJ$11","v":0},{"$f":"Time!EEK$11","v":0},{"$f":"Time!EEL$11","v":0},{"$f":"Time!EEM$11","v":0},{"$f":"Time!EEN$11","v":0},{"$f":"Time!EEO$11","v":0},{"$f":"Time!EEP$11","v":0},{"$f":"Time!EEQ$11","v":0},{"$f":"Time!EER$11","v":0},{"$f":"Time!EES$11","v":0},{"$f":"Time!EET$11","v":0},{"$f":"Time!EEU$11","v":0},{"$f":"Time!EEV$11","v":0},{"$f":"Time!EEW$11","v":0},{"$f":"Time!EEX$11","v":0},{"$f":"Time!EEY$11","v":0},{"$f":"Time!EEZ$11","v":0},{"$f":"Time!EFA$11","v":0},{"$f":"Time!EFB$11","v":0},{"$f":"Time!EFC$11","v":0},{"$f":"Time!EFD$11","v":0},{"$f":"Time!EFE$11","v":0},{"$f":"Time!EFF$11","v":0},{"$f":"Time!EFG$11","v":0},{"$f":"Time!EFH$11","v":0},{"$f":"Time!EFI$11","v":0},{"$f":"Time!EFJ$11","v":0},{"$f":"Time!EFK$11","v":0},{"$f":"Time!EFL$11","v":0},{"$f":"Time!EFM$11","v":0},{"$f":"Time!EFN$11","v":0},{"$f":"Time!EFO$11","v":0},{"$f":"Time!EFP$11","v":0},{"$f":"Time!EFQ$11","v":0},{"$f":"Time!EFR$11","v":0},{"$f":"Time!EFS$11","v":0},{"$f":"Time!EFT$11","v":0},{"$f":"Time!EFU$11","v":0},{"$f":"Time!EFV$11","v":0},{"$f":"Time!EFW$11","v":0},{"$f":"Time!EFX$11","v":0},{"$f":"Time!EFY$11","v":0},{"$f":"Time!EFZ$11","v":0},{"$f":"Time!EGA$11","v":0},{"$f":"Time!EGB$11","v":0},{"$f":"Time!EGC$11","v":0},{"$f":"Time!EGD$11","v":0},{"$f":"Time!EGE$11","v":0},{"$f":"Time!EGF$11","v":0},{"$f":"Time!EGG$11","v":0},{"$f":"Time!EGH$11","v":0},{"$f":"Time!EGI$11","v":0},{"$f":"Time!EGJ$11","v":0},{"$f":"Time!EGK$11","v":0},{"$f":"Time!EGL$11","v":0},{"$f":"Time!EGM$11","v":0},{"$f":"Time!EGN$11","v":0},{"$f":"Time!EGO$11","v":0},{"$f":"Time!EGP$11","v":0},{"$f":"Time!EGQ$11","v":0},{"$f":"Time!EGR$11","v":0},{"$f":"Time!EGS$11","v":0},{"$f":"Time!EGT$11","v":0},{"$f":"Time!EGU$11","v":0},{"$f":"Time!EGV$11","v":0},{"$f":"Time!EGW$11","v":0},{"$f":"Time!EGX$11","v":0},{"$f":"Time!EGY$11","v":0},{"$f":"Time!EGZ$11","v":0},{"$f":"Time!EHA$11","v":0},{"$f":"Time!EHB$11","v":0},{"$f":"Time!EHC$11","v":0},{"$f":"Time!EHD$11","v":0},{"$f":"Time!EHE$11","v":0},{"$f":"Time!EHF$11","v":0},{"$f":"Time!EHG$11","v":0},{"$f":"Time!EHH$11","v":0},{"$f":"Time!EHI$11","v":0},{"$f":"Time!EHJ$11","v":0},{"$f":"Time!EHK$11","v":0},{"$f":"Time!EHL$11","v":0},{"$f":"Time!EHM$11","v":0},{"$f":"Time!EHN$11","v":0},{"$f":"Time!EHO$11","v":0},{"$f":"Time!EHP$11","v":0},{"$f":"Time!EHQ$11","v":0},{"$f":"Time!EHR$11","v":0},{"$f":"Time!EHS$11","v":0},{"$f":"Time!EHT$11","v":0},{"$f":"Time!EHU$11","v":0},{"$f":"Time!EHV$11","v":0},{"$f":"Time!EHW$11","v":0},{"$f":"Time!EHX$11","v":0},{"$f":"Time!EHY$11","v":0},{"$f":"Time!EHZ$11","v":0},{"$f":"Time!EIA$11","v":0},{"$f":"Time!EIB$11","v":0},{"$f":"Time!EIC$11","v":0},{"$f":"Time!EID$11","v":0},{"$f":"Time!EIE$11","v":0},{"$f":"Time!EIF$11","v":0},{"$f":"Time!EIG$11","v":0},{"$f":"Time!EIH$11","v":0},{"$f":"Time!EII$11","v":0},{"$f":"Time!EIJ$11","v":0},{"$f":"Time!EIK$11","v":0},{"$f":"Time!EIL$11","v":0},{"$f":"Time!EIM$11","v":0},{"$f":"Time!EIN$11","v":0},{"$f":"Time!EIO$11","v":0},{"$f":"Time!EIP$11","v":0},{"$f":"Time!EIQ$11","v":0},{"$f":"Time!EIR$11","v":0},{"$f":"Time!EIS$11","v":0},{"$f":"Time!EIT$11","v":0},{"$f":"Time!EIU$11","v":0},{"$f":"Time!EIV$11","v":0},{"$f":"Time!EIW$11","v":0},{"$f":"Time!EIX$11","v":0},{"$f":"Time!EIY$11","v":0},{"$f":"Time!EIZ$11","v":0},{"$f":"Time!EJA$11","v":0},{"$f":"Time!EJB$11","v":0},{"$f":"Time!EJC$11","v":0},{"$f":"Time!EJD$11","v":0},{"$f":"Time!EJE$11","v":0},{"$f":"Time!EJF$11","v":0},{"$f":"Time!EJG$11","v":0},{"$f":"Time!EJH$11","v":0},{"$f":"Time!EJI$11","v":0},{"$f":"Time!EJJ$11","v":0},{"$f":"Time!EJK$11","v":0},{"$f":"Time!EJL$11","v":0},{"$f":"Time!EJM$11","v":0},{"$f":"Time!EJN$11","v":0},{"$f":"Time!EJO$11","v":0},{"$f":"Time!EJP$11","v":0},{"$f":"Time!EJQ$11","v":0},{"$f":"Time!EJR$11","v":0},{"$f":"Time!EJS$11","v":0},{"$f":"Time!EJT$11","v":0},{"$f":"Time!EJU$11","v":0},{"$f":"Time!EJV$11","v":0},{"$f":"Time!EJW$11","v":0},{"$f":"Time!EJX$11","v":0},{"$f":"Time!EJY$11","v":0},{"$f":"Time!EJZ$11","v":0},{"$f":"Time!EKA$11","v":0},{"$f":"Time!EKB$11","v":0},{"$f":"Time!EKC$11","v":0},{"$f":"Time!EKD$11","v":0},{"$f":"Time!EKE$11","v":0},{"$f":"Time!EKF$11","v":0},{"$f":"Time!EKG$11","v":0},{"$f":"Time!EKH$11","v":0},{"$f":"Time!EKI$11","v":0},{"$f":"Time!EKJ$11","v":0},{"$f":"Time!EKK$11","v":0},{"$f":"Time!EKL$11","v":0},{"$f":"Time!EKM$11","v":0},{"$f":"Time!EKN$11","v":0},{"$f":"Time!EKO$11","v":0},{"$f":"Time!EKP$11","v":0},{"$f":"Time!EKQ$11","v":0},{"$f":"Time!EKR$11","v":0},{"$f":"Time!EKS$11","v":0},{"$f":"Time!EKT$11","v":0},{"$f":"Time!EKU$11","v":0},{"$f":"Time!EKV$11","v":0},{"$f":"Time!EKW$11","v":0},{"$f":"Time!EKX$11","v":0},{"$f":"Time!EKY$11","v":0},{"$f":"Time!EKZ$11","v":0},{"$f":"Time!ELA$11","v":0},{"$f":"Time!ELB$11","v":0},{"$f":"Time!ELC$11","v":0},{"$f":"Time!ELD$11","v":0},{"$f":"Time!ELE$11","v":0},{"$f":"Time!ELF$11","v":0},{"$f":"Time!ELG$11","v":0},{"$f":"Time!ELH$11","v":0},{"$f":"Time!ELI$11","v":0},{"$f":"Time!ELJ$11","v":0},{"$f":"Time!ELK$11","v":0},{"$f":"Time!ELL$11","v":0},{"$f":"Time!ELM$11","v":0},{"$f":"Time!ELN$11","v":0},{"$f":"Time!ELO$11","v":0},{"$f":"Time!ELP$11","v":0},{"$f":"Time!ELQ$11","v":0},{"$f":"Time!ELR$11","v":0},{"$f":"Time!ELS$11","v":0},{"$f":"Time!ELT$11","v":0},{"$f":"Time!ELU$11","v":0},{"$f":"Time!ELV$11","v":0},{"$f":"Time!ELW$11","v":0},{"$f":"Time!ELX$11","v":0},{"$f":"Time!ELY$11","v":0},{"$f":"Time!ELZ$11","v":0},{"$f":"Time!EMA$11","v":0},{"$f":"Time!EMB$11","v":0},{"$f":"Time!EMC$11","v":0},{"$f":"Time!EMD$11","v":0},{"$f":"Time!EME$11","v":0},{"$f":"Time!EMF$11","v":0},{"$f":"Time!EMG$11","v":0},{"$f":"Time!EMH$11","v":0},{"$f":"Time!EMI$11","v":0},{"$f":"Time!EMJ$11","v":0},{"$f":"Time!EMK$11","v":0},{"$f":"Time!EML$11","v":0},{"$f":"Time!EMM$11","v":0},{"$f":"Time!EMN$11","v":0},{"$f":"Time!EMO$11","v":0},{"$f":"Time!EMP$11","v":0},{"$f":"Time!EMQ$11","v":0},{"$f":"Time!EMR$11","v":0},{"$f":"Time!EMS$11","v":0},{"$f":"Time!EMT$11","v":0},{"$f":"Time!EMU$11","v":0},{"$f":"Time!EMV$11","v":0},{"$f":"Time!EMW$11","v":0},{"$f":"Time!EMX$11","v":0},{"$f":"Time!EMY$11","v":0},{"$f":"Time!EMZ$11","v":0},{"$f":"Time!ENA$11","v":0},{"$f":"Time!ENB$11","v":0},{"$f":"Time!ENC$11","v":0},{"$f":"Time!END$11","v":0},{"$f":"Time!ENE$11","v":0},{"$f":"Time!ENF$11","v":0},{"$f":"Time!ENG$11","v":0},{"$f":"Time!ENH$11","v":0},{"$f":"Time!ENI$11","v":0},{"$f":"Time!ENJ$11","v":0},{"$f":"Time!ENK$11","v":0},{"$f":"Time!ENL$11","v":0},{"$f":"Time!ENM$11","v":0},{"$f":"Time!ENN$11","v":0},{"$f":"Time!ENO$11","v":0},{"$f":"Time!ENP$11","v":0},{"$f":"Time!ENQ$11","v":0},{"$f":"Time!ENR$11","v":0},{"$f":"Time!ENS$11","v":0},{"$f":"Time!ENT$11","v":0},{"$f":"Time!ENU$11","v":0},{"$f":"Time!ENV$11","v":0},{"$f":"Time!ENW$11","v":0},{"$f":"Time!ENX$11","v":0},{"$f":"Time!ENY$11","v":0},{"$f":"Time!ENZ$11","v":0},{"$f":"Time!EOA$11","v":0},{"$f":"Time!EOB$11","v":0},{"$f":"Time!EOC$11","v":0},{"$f":"Time!EOD$11","v":0},{"$f":"Time!EOE$11","v":0},{"$f":"Time!EOF$11","v":0},{"$f":"Time!EOG$11","v":0},{"$f":"Time!EOH$11","v":0},{"$f":"Time!EOI$11","v":0},{"$f":"Time!EOJ$11","v":0},{"$f":"Time!EOK$11","v":0},{"$f":"Time!EOL$11","v":0},{"$f":"Time!EOM$11","v":0},{"$f":"Time!EON$11","v":0},{"$f":"Time!EOO$11","v":0},{"$f":"Time!EOP$11","v":0},{"$f":"Time!EOQ$11","v":0},{"$f":"Time!EOR$11","v":0},{"$f":"Time!EOS$11","v":0},{"$f":"Time!EOT$11","v":0},{"$f":"Time!EOU$11","v":0},{"$f":"Time!EOV$11","v":0},{"$f":"Time!EOW$11","v":0},{"$f":"Time!EOX$11","v":0},{"$f":"Time!EOY$11","v":0},{"$f":"Time!EOZ$11","v":0},{"$f":"Time!EPA$11","v":0},{"$f":"Time!EPB$11","v":0},{"$f":"Time!EPC$11","v":0},{"$f":"Time!EPD$11","v":0},{"$f":"Time!EPE$11","v":0},{"$f":"Time!EPF$11","v":0},{"$f":"Time!EPG$11","v":0},{"$f":"Time!EPH$11","v":0},{"$f":"Time!EPI$11","v":0},{"$f":"Time!EPJ$11","v":0},{"$f":"Time!EPK$11","v":0},{"$f":"Time!EPL$11","v":0},{"$f":"Time!EPM$11","v":0},{"$f":"Time!EPN$11","v":0},{"$f":"Time!EPO$11","v":0},{"$f":"Time!EPP$11","v":0},{"$f":"Time!EPQ$11","v":0},{"$f":"Time!EPR$11","v":0},{"$f":"Time!EPS$11","v":0},{"$f":"Time!EPT$11","v":0},{"$f":"Time!EPU$11","v":0},{"$f":"Time!EPV$11","v":0},{"$f":"Time!EPW$11","v":0},{"$f":"Time!EPX$11","v":0},{"$f":"Time!EPY$11","v":0},{"$f":"Time!EPZ$11","v":0},{"$f":"Time!EQA$11","v":0},{"$f":"Time!EQB$11","v":0},{"$f":"Time!EQC$11","v":0},{"$f":"Time!EQD$11","v":0},{"$f":"Time!EQE$11","v":0},{"$f":"Time!EQF$11","v":0},{"$f":"Time!EQG$11","v":0},{"$f":"Time!EQH$11","v":0},{"$f":"Time!EQI$11","v":0},{"$f":"Time!EQJ$11","v":0},{"$f":"Time!EQK$11","v":0},{"$f":"Time!EQL$11","v":0},{"$f":"Time!EQM$11","v":0},{"$f":"Time!EQN$11","v":0},{"$f":"Time!EQO$11","v":0},{"$f":"Time!EQP$11","v":0},{"$f":"Time!EQQ$11","v":0},{"$f":"Time!EQR$11","v":0},{"$f":"Time!EQS$11","v":0},{"$f":"Time!EQT$11","v":0},{"$f":"Time!EQU$11","v":0},{"$f":"Time!EQV$11","v":0},{"$f":"Time!EQW$11","v":0},{"$f":"Time!EQX$11","v":0},{"$f":"Time!EQY$11","v":0},{"$f":"Time!EQZ$11","v":0},{"$f":"Time!ERA$11","v":0},{"$f":"Time!ERB$11","v":0},{"$f":"Time!ERC$11","v":0},{"$f":"Time!ERD$11","v":0},{"$f":"Time!ERE$11","v":0},{"$f":"Time!ERF$11","v":0},{"$f":"Time!ERG$11","v":0},{"$f":"Time!ERH$11","v":0},{"$f":"Time!ERI$11","v":0},{"$f":"Time!ERJ$11","v":0},{"$f":"Time!ERK$11","v":0},{"$f":"Time!ERL$11","v":0},{"$f":"Time!ERM$11","v":0},{"$f":"Time!ERN$11","v":0},{"$f":"Time!ERO$11","v":0},{"$f":"Time!ERP$11","v":0},{"$f":"Time!ERQ$11","v":0},{"$f":"Time!ERR$11","v":0},{"$f":"Time!ERS$11","v":0},{"$f":"Time!ERT$11","v":0},{"$f":"Time!ERU$11","v":0},{"$f":"Time!ERV$11","v":0},{"$f":"Time!ERW$11","v":0},{"$f":"Time!ERX$11","v":0},{"$f":"Time!ERY$11","v":0},{"$f":"Time!ERZ$11","v":0},{"$f":"Time!ESA$11","v":0},{"$f":"Time!ESB$11","v":0},{"$f":"Time!ESC$11","v":0},{"$f":"Time!ESD$11","v":0},{"$f":"Time!ESE$11","v":0},{"$f":"Time!ESF$11","v":0},{"$f":"Time!ESG$11","v":0},{"$f":"Time!ESH$11","v":0},{"$f":"Time!ESI$11","v":0},{"$f":"Time!ESJ$11","v":0},{"$f":"Time!ESK$11","v":0},{"$f":"Time!ESL$11","v":0},{"$f":"Time!ESM$11","v":0},{"$f":"Time!ESN$11","v":0},{"$f":"Time!ESO$11","v":0},{"$f":"Time!ESP$11","v":0},{"$f":"Time!ESQ$11","v":0},{"$f":"Time!ESR$11","v":0},{"$f":"Time!ESS$11","v":0},{"$f":"Time!EST$11","v":0},{"$f":"Time!ESU$11","v":0},{"$f":"Time!ESV$11","v":0},{"$f":"Time!ESW$11","v":0},{"$f":"Time!ESX$11","v":0},{"$f":"Time!ESY$11","v":0},{"$f":"Time!ESZ$11","v":0},{"$f":"Time!ETA$11","v":0},{"$f":"Time!ETB$11","v":0},{"$f":"Time!ETC$11","v":0},{"$f":"Time!ETD$11","v":0},{"$f":"Time!ETE$11","v":0},{"$f":"Time!ETF$11","v":0},{"$f":"Time!ETG$11","v":0},{"$f":"Time!ETH$11","v":0},{"$f":"Time!ETI$11","v":0},{"$f":"Time!ETJ$11","v":0},{"$f":"Time!ETK$11","v":0},{"$f":"Time!ETL$11","v":0},{"$f":"Time!ETM$11","v":0},{"$f":"Time!ETN$11","v":0},{"$f":"Time!ETO$11","v":0},{"$f":"Time!ETP$11","v":0},{"$f":"Time!ETQ$11","v":0},{"$f":"Time!ETR$11","v":0},{"$f":"Time!ETS$11","v":0},{"$f":"Time!ETT$11","v":0},{"$f":"Time!ETU$11","v":0},{"$f":"Time!ETV$11","v":0},{"$f":"Time!ETW$11","v":0},{"$f":"Time!ETX$11","v":0},{"$f":"Time!ETY$11","v":0},{"$f":"Time!ETZ$11","v":0},{"$f":"Time!EUA$11","v":0},{"$f":"Time!EUB$11","v":0},{"$f":"Time!EUC$11","v":0},{"$f":"Time!EUD$11","v":0},{"$f":"Time!EUE$11","v":0},{"$f":"Time!EUF$11","v":0},{"$f":"Time!EUG$11","v":0},{"$f":"Time!EUH$11","v":0},{"$f":"Time!EUI$11","v":0},{"$f":"Time!EUJ$11","v":0},{"$f":"Time!EUK$11","v":0},{"$f":"Time!EUL$11","v":0},{"$f":"Time!EUM$11","v":0},{"$f":"Time!EUN$11","v":0},{"$f":"Time!EUO$11","v":0},{"$f":"Time!EUP$11","v":0},{"$f":"Time!EUQ$11","v":0},{"$f":"Time!EUR$11","v":0},{"$f":"Time!EUS$11","v":0},{"$f":"Time!EUT$11","v":0},{"$f":"Time!EUU$11","v":0},{"$f":"Time!EUV$11","v":0},{"$f":"Time!EUW$11","v":0},{"$f":"Time!EUX$11","v":0},{"$f":"Time!EUY$11","v":0},{"$f":"Time!EUZ$11","v":0},{"$f":"Time!EVA$11","v":0},{"$f":"Time!EVB$11","v":0},{"$f":"Time!EVC$11","v":0},{"$f":"Time!EVD$11","v":0},{"$f":"Time!EVE$11","v":0},{"$f":"Time!EVF$11","v":0},{"$f":"Time!EVG$11","v":0},{"$f":"Time!EVH$11","v":0},{"$f":"Time!EVI$11","v":0},{"$f":"Time!EVJ$11","v":0},{"$f":"Time!EVK$11","v":0},{"$f":"Time!EVL$11","v":0},{"$f":"Time!EVM$11","v":0},{"$f":"Time!EVN$11","v":0},{"$f":"Time!EVO$11","v":0},{"$f":"Time!EVP$11","v":0},{"$f":"Time!EVQ$11","v":0},{"$f":"Time!EVR$11","v":0},{"$f":"Time!EVS$11","v":0},{"$f":"Time!EVT$11","v":0},{"$f":"Time!EVU$11","v":0},{"$f":"Time!EVV$11","v":0},{"$f":"Time!EVW$11","v":0},{"$f":"Time!EVX$11","v":0},{"$f":"Time!EVY$11","v":0},{"$f":"Time!EVZ$11","v":0},{"$f":"Time!EWA$11","v":0},{"$f":"Time!EWB$11","v":0},{"$f":"Time!EWC$11","v":0},{"$f":"Time!EWD$11","v":0},{"$f":"Time!EWE$11","v":0},{"$f":"Time!EWF$11","v":0},{"$f":"Time!EWG$11","v":0},{"$f":"Time!EWH$11","v":0},{"$f":"Time!EWI$11","v":0},{"$f":"Time!EWJ$11","v":0},{"$f":"Time!EWK$11","v":0},{"$f":"Time!EWL$11","v":0},{"$f":"Time!EWM$11","v":0},{"$f":"Time!EWN$11","v":0},{"$f":"Time!EWO$11","v":0},{"$f":"Time!EWP$11","v":0},{"$f":"Time!EWQ$11","v":0},{"$f":"Time!EWR$11","v":0},{"$f":"Time!EWS$11","v":0},{"$f":"Time!EWT$11","v":0},{"$f":"Time!EWU$11","v":0},{"$f":"Time!EWV$11","v":0},{"$f":"Time!EWW$11","v":0},{"$f":"Time!EWX$11","v":0},{"$f":"Time!EWY$11","v":0},{"$f":"Time!EWZ$11","v":0},{"$f":"Time!EXA$11","v":0},{"$f":"Time!EXB$11","v":0},{"$f":"Time!EXC$11","v":0},{"$f":"Time!EXD$11","v":0},{"$f":"Time!EXE$11","v":0},{"$f":"Time!EXF$11","v":0},{"$f":"Time!EXG$11","v":0},{"$f":"Time!EXH$11","v":0},{"$f":"Time!EXI$11","v":0},{"$f":"Time!EXJ$11","v":0},{"$f":"Time!EXK$11","v":0},{"$f":"Time!EXL$11","v":0},{"$f":"Time!EXM$11","v":0},{"$f":"Time!EXN$11","v":0},{"$f":"Time!EXO$11","v":0},{"$f":"Time!EXP$11","v":0},{"$f":"Time!EXQ$11","v":0},{"$f":"Time!EXR$11","v":0},{"$f":"Time!EXS$11","v":0},{"$f":"Time!EXT$11","v":0},{"$f":"Time!EXU$11","v":0},{"$f":"Time!EXV$11","v":0},{"$f":"Time!EXW$11","v":0},{"$f":"Time!EXX$11","v":0},{"$f":"Time!EXY$11","v":0},{"$f":"Time!EXZ$11","v":0},{"$f":"Time!EYA$11","v":0},{"$f":"Time!EYB$11","v":0},{"$f":"Time!EYC$11","v":0},{"$f":"Time!EYD$11","v":0},{"$f":"Time!EYE$11","v":0},{"$f":"Time!EYF$11","v":0},{"$f":"Time!EYG$11","v":0},{"$f":"Time!EYH$11","v":0},{"$f":"Time!EYI$11","v":0},{"$f":"Time!EYJ$11","v":0},{"$f":"Time!EYK$11","v":0},{"$f":"Time!EYL$11","v":0},{"$f":"Time!EYM$11","v":0},{"$f":"Time!EYN$11","v":0},{"$f":"Time!EYO$11","v":0},{"$f":"Time!EYP$11","v":0},{"$f":"Time!EYQ$11","v":0},{"$f":"Time!EYR$11","v":0},{"$f":"Time!EYS$11","v":0},{"$f":"Time!EYT$11","v":0},{"$f":"Time!EYU$11","v":0},{"$f":"Time!EYV$11","v":0},{"$f":"Time!EYW$11","v":0},{"$f":"Time!EYX$11","v":0},{"$f":"Time!EYY$11","v":0},{"$f":"Time!EYZ$11","v":0},{"$f":"Time!EZA$11","v":0},{"$f":"Time!EZB$11","v":0},{"$f":"Time!EZC$11","v":0},{"$f":"Time!EZD$11","v":0},{"$f":"Time!EZE$11","v":0},{"$f":"Time!EZF$11","v":0},{"$f":"Time!EZG$11","v":0},{"$f":"Time!EZH$11","v":0},{"$f":"Time!EZI$11","v":0},{"$f":"Time!EZJ$11","v":0},{"$f":"Time!EZK$11","v":0},{"$f":"Time!EZL$11","v":0},{"$f":"Time!EZM$11","v":0},{"$f":"Time!EZN$11","v":0},{"$f":"Time!EZO$11","v":0},{"$f":"Time!EZP$11","v":0},{"$f":"Time!EZQ$11","v":0},{"$f":"Time!EZR$11","v":0},{"$f":"Time!EZS$11","v":0},{"$f":"Time!EZT$11","v":0},{"$f":"Time!EZU$11","v":0},{"$f":"Time!EZV$11","v":0},{"$f":"Time!EZW$11","v":0},{"$f":"Time!EZX$11","v":0},{"$f":"Time!EZY$11","v":0},{"$f":"Time!EZZ$11","v":0},{"$f":"Time!FAA$11","v":0},{"$f":"Time!FAB$11","v":0},{"$f":"Time!FAC$11","v":0},{"$f":"Time!FAD$11","v":0},{"$f":"Time!FAE$11","v":0},{"$f":"Time!FAF$11","v":0},{"$f":"Time!FAG$11","v":0},{"$f":"Time!FAH$11","v":0},{"$f":"Time!FAI$11","v":0},{"$f":"Time!FAJ$11","v":0},{"$f":"Time!FAK$11","v":0},{"$f":"Time!FAL$11","v":0},{"$f":"Time!FAM$11","v":0},{"$f":"Time!FAN$11","v":0},{"$f":"Time!FAO$11","v":0},{"$f":"Time!FAP$11","v":0},{"$f":"Time!FAQ$11","v":0},{"$f":"Time!FAR$11","v":0},{"$f":"Time!FAS$11","v":0},{"$f":"Time!FAT$11","v":0},{"$f":"Time!FAU$11","v":0},{"$f":"Time!FAV$11","v":0},{"$f":"Time!FAW$11","v":0},{"$f":"Time!FAX$11","v":0},{"$f":"Time!FAY$11","v":0},{"$f":"Time!FAZ$11","v":0},{"$f":"Time!FBA$11","v":0},{"$f":"Time!FBB$11","v":0},{"$f":"Time!FBC$11","v":0},{"$f":"Time!FBD$11","v":0},{"$f":"Time!FBE$11","v":0},{"$f":"Time!FBF$11","v":0},{"$f":"Time!FBG$11","v":0},{"$f":"Time!FBH$11","v":0},{"$f":"Time!FBI$11","v":0},{"$f":"Time!FBJ$11","v":0},{"$f":"Time!FBK$11","v":0},{"$f":"Time!FBL$11","v":0},{"$f":"Time!FBM$11","v":0},{"$f":"Time!FBN$11","v":0},{"$f":"Time!FBO$11","v":0},{"$f":"Time!FBP$11","v":0},{"$f":"Time!FBQ$11","v":0},{"$f":"Time!FBR$11","v":0},{"$f":"Time!FBS$11","v":0},{"$f":"Time!FBT$11","v":0},{"$f":"Time!FBU$11","v":0},{"$f":"Time!FBV$11","v":0},{"$f":"Time!FBW$11","v":0},{"$f":"Time!FBX$11","v":0},{"$f":"Time!FBY$11","v":0},{"$f":"Time!FBZ$11","v":0},{"$f":"Time!FCA$11","v":0},{"$f":"Time!FCB$11","v":0},{"$f":"Time!FCC$11","v":0},{"$f":"Time!FCD$11","v":0},{"$f":"Time!FCE$11","v":0},{"$f":"Time!FCF$11","v":0},{"$f":"Time!FCG$11","v":0},{"$f":"Time!FCH$11","v":0},{"$f":"Time!FCI$11","v":0},{"$f":"Time!FCJ$11","v":0},{"$f":"Time!FCK$11","v":0},{"$f":"Time!FCL$11","v":0},{"$f":"Time!FCM$11","v":0},{"$f":"Time!FCN$11","v":0},{"$f":"Time!FCO$11","v":0},{"$f":"Time!FCP$11","v":0},{"$f":"Time!FCQ$11","v":0},{"$f":"Time!FCR$11","v":0},{"$f":"Time!FCS$11","v":0},{"$f":"Time!FCT$11","v":0},{"$f":"Time!FCU$11","v":0},{"$f":"Time!FCV$11","v":0},{"$f":"Time!FCW$11","v":0},{"$f":"Time!FCX$11","v":0},{"$f":"Time!FCY$11","v":0},{"$f":"Time!FCZ$11","v":0},{"$f":"Time!FDA$11","v":0},{"$f":"Time!FDB$11","v":0},{"$f":"Time!FDC$11","v":0},{"$f":"Time!FDD$11","v":0},{"$f":"Time!FDE$11","v":0},{"$f":"Time!FDF$11","v":0},{"$f":"Time!FDG$11","v":0},{"$f":"Time!FDH$11","v":0},{"$f":"Time!FDI$11","v":0},{"$f":"Time!FDJ$11","v":0},{"$f":"Time!FDK$11","v":0},{"$f":"Time!FDL$11","v":0},{"$f":"Time!FDM$11","v":0},{"$f":"Time!FDN$11","v":0},{"$f":"Time!FDO$11","v":0},{"$f":"Time!FDP$11","v":0},{"$f":"Time!FDQ$11","v":0},{"$f":"Time!FDR$11","v":0},{"$f":"Time!FDS$11","v":0},{"$f":"Time!FDT$11","v":0},{"$f":"Time!FDU$11","v":0},{"$f":"Time!FDV$11","v":0},{"$f":"Time!FDW$11","v":0},{"$f":"Time!FDX$11","v":0},{"$f":"Time!FDY$11","v":0},{"$f":"Time!FDZ$11","v":0},{"$f":"Time!FEA$11","v":0},{"$f":"Time!FEB$11","v":0},{"$f":"Time!FEC$11","v":0},{"$f":"Time!FED$11","v":0},{"$f":"Time!FEE$11","v":0},{"$f":"Time!FEF$11","v":0},{"$f":"Time!FEG$11","v":0},{"$f":"Time!FEH$11","v":0},{"$f":"Time!FEI$11","v":0},{"$f":"Time!FEJ$11","v":0},{"$f":"Time!FEK$11","v":0},{"$f":"Time!FEL$11","v":0},{"$f":"Time!FEM$11","v":0},{"$f":"Time!FEN$11","v":0},{"$f":"Time!FEO$11","v":0},{"$f":"Time!FEP$11","v":0},{"$f":"Time!FEQ$11","v":0},{"$f":"Time!FER$11","v":0},{"$f":"Time!FES$11","v":0},{"$f":"Time!FET$11","v":0},{"$f":"Time!FEU$11","v":0},{"$f":"Time!FEV$11","v":0},{"$f":"Time!FEW$11","v":0},{"$f":"Time!FEX$11","v":0},{"$f":"Time!FEY$11","v":0},{"$f":"Time!FEZ$11","v":0},{"$f":"Time!FFA$11","v":0},{"$f":"Time!FFB$11","v":0},{"$f":"Time!FFC$11","v":0},{"$f":"Time!FFD$11","v":0},{"$f":"Time!FFE$11","v":0},{"$f":"Time!FFF$11","v":0},{"$f":"Time!FFG$11","v":0},{"$f":"Time!FFH$11","v":0},{"$f":"Time!FFI$11","v":0},{"$f":"Time!FFJ$11","v":0},{"$f":"Time!FFK$11","v":0},{"$f":"Time!FFL$11","v":0},{"$f":"Time!FFM$11","v":0},{"$f":"Time!FFN$11","v":0},{"$f":"Time!FFO$11","v":0},{"$f":"Time!FFP$11","v":0},{"$f":"Time!FFQ$11","v":0},{"$f":"Time!FFR$11","v":0},{"$f":"Time!FFS$11","v":0},{"$f":"Time!FFT$11","v":0},{"$f":"Time!FFU$11","v":0},{"$f":"Time!FFV$11","v":0},{"$f":"Time!FFW$11","v":0},{"$f":"Time!FFX$11","v":0},{"$f":"Time!FFY$11","v":0},{"$f":"Time!FFZ$11","v":0},{"$f":"Time!FGA$11","v":0},{"$f":"Time!FGB$11","v":0},{"$f":"Time!FGC$11","v":0},{"$f":"Time!FGD$11","v":0},{"$f":"Time!FGE$11","v":0},{"$f":"Time!FGF$11","v":0},{"$f":"Time!FGG$11","v":0},{"$f":"Time!FGH$11","v":0},{"$f":"Time!FGI$11","v":0},{"$f":"Time!FGJ$11","v":0},{"$f":"Time!FGK$11","v":0},{"$f":"Time!FGL$11","v":0},{"$f":"Time!FGM$11","v":0},{"$f":"Time!FGN$11","v":0},{"$f":"Time!FGO$11","v":0},{"$f":"Time!FGP$11","v":0},{"$f":"Time!FGQ$11","v":0},{"$f":"Time!FGR$11","v":0},{"$f":"Time!FGS$11","v":0},{"$f":"Time!FGT$11","v":0},{"$f":"Time!FGU$11","v":0},{"$f":"Time!FGV$11","v":0},{"$f":"Time!FGW$11","v":0},{"$f":"Time!FGX$11","v":0},{"$f":"Time!FGY$11","v":0},{"$f":"Time!FGZ$11","v":0},{"$f":"Time!FHA$11","v":0},{"$f":"Time!FHB$11","v":0},{"$f":"Time!FHC$11","v":0},{"$f":"Time!FHD$11","v":0},{"$f":"Time!FHE$11","v":0},{"$f":"Time!FHF$11","v":0},{"$f":"Time!FHG$11","v":0},{"$f":"Time!FHH$11","v":0},{"$f":"Time!FHI$11","v":0},{"$f":"Time!FHJ$11","v":0},{"$f":"Time!FHK$11","v":0},{"$f":"Time!FHL$11","v":0},{"$f":"Time!FHM$11","v":0},{"$f":"Time!FHN$11","v":0},{"$f":"Time!FHO$11","v":0},{"$f":"Time!FHP$11","v":0},{"$f":"Time!FHQ$11","v":0},{"$f":"Time!FHR$11","v":0},{"$f":"Time!FHS$11","v":0},{"$f":"Time!FHT$11","v":0},{"$f":"Time!FHU$11","v":0},{"$f":"Time!FHV$11","v":0},{"$f":"Time!FHW$11","v":0},{"$f":"Time!FHX$11","v":0},{"$f":"Time!FHY$11","v":0},{"$f":"Time!FHZ$11","v":0},{"$f":"Time!FIA$11","v":0},{"$f":"Time!FIB$11","v":0},{"$f":"Time!FIC$11","v":0},{"$f":"Time!FID$11","v":0},{"$f":"Time!FIE$11","v":0},{"$f":"Time!FIF$11","v":0},{"$f":"Time!FIG$11","v":0},{"$f":"Time!FIH$11","v":0},{"$f":"Time!FII$11","v":0},{"$f":"Time!FIJ$11","v":0},{"$f":"Time!FIK$11","v":0},{"$f":"Time!FIL$11","v":0},{"$f":"Time!FIM$11","v":0},{"$f":"Time!FIN$11","v":0},{"$f":"Time!FIO$11","v":0},{"$f":"Time!FIP$11","v":0},{"$f":"Time!FIQ$11","v":0},{"$f":"Time!FIR$11","v":0},{"$f":"Time!FIS$11","v":0},{"$f":"Time!FIT$11","v":0},{"$f":"Time!FIU$11","v":0},{"$f":"Time!FIV$11","v":0},{"$f":"Time!FIW$11","v":0},{"$f":"Time!FIX$11","v":0},{"$f":"Time!FIY$11","v":0},{"$f":"Time!FIZ$11","v":0},{"$f":"Time!FJA$11","v":0},{"$f":"Time!FJB$11","v":0},{"$f":"Time!FJC$11","v":0},{"$f":"Time!FJD$11","v":0},{"$f":"Time!FJE$11","v":0},{"$f":"Time!FJF$11","v":0},{"$f":"Time!FJG$11","v":0},{"$f":"Time!FJH$11","v":0},{"$f":"Time!FJI$11","v":0},{"$f":"Time!FJJ$11","v":0},{"$f":"Time!FJK$11","v":0},{"$f":"Time!FJL$11","v":0},{"$f":"Time!FJM$11","v":0},{"$f":"Time!FJN$11","v":0},{"$f":"Time!FJO$11","v":0},{"$f":"Time!FJP$11","v":0},{"$f":"Time!FJQ$11","v":0},{"$f":"Time!FJR$11","v":0},{"$f":"Time!FJS$11","v":0},{"$f":"Time!FJT$11","v":0},{"$f":"Time!FJU$11","v":0},{"$f":"Time!FJV$11","v":0},{"$f":"Time!FJW$11","v":0},{"$f":"Time!FJX$11","v":0},{"$f":"Time!FJY$11","v":0},{"$f":"Time!FJZ$11","v":0},{"$f":"Time!FKA$11","v":0},{"$f":"Time!FKB$11","v":0},{"$f":"Time!FKC$11","v":0},{"$f":"Time!FKD$11","v":0},{"$f":"Time!FKE$11","v":0},{"$f":"Time!FKF$11","v":0},{"$f":"Time!FKG$11","v":0},{"$f":"Time!FKH$11","v":0},{"$f":"Time!FKI$11","v":0},{"$f":"Time!FKJ$11","v":0},{"$f":"Time!FKK$11","v":0},{"$f":"Time!FKL$11","v":0},{"$f":"Time!FKM$11","v":0},{"$f":"Time!FKN$11","v":0},{"$f":"Time!FKO$11","v":0},{"$f":"Time!FKP$11","v":0},{"$f":"Time!FKQ$11","v":0},{"$f":"Time!FKR$11","v":0},{"$f":"Time!FKS$11","v":0},{"$f":"Time!FKT$11","v":0},{"$f":"Time!FKU$11","v":0},{"$f":"Time!FKV$11","v":0},{"$f":"Time!FKW$11","v":0},{"$f":"Time!FKX$11","v":0},{"$f":"Time!FKY$11","v":0},{"$f":"Time!FKZ$11","v":0},{"$f":"Time!FLA$11","v":0},{"$f":"Time!FLB$11","v":0},{"$f":"Time!FLC$11","v":0},{"$f":"Time!FLD$11","v":0},{"$f":"Time!FLE$11","v":0},{"$f":"Time!FLF$11","v":0},{"$f":"Time!FLG$11","v":0},{"$f":"Time!FLH$11","v":0},{"$f":"Time!FLI$11","v":0},{"$f":"Time!FLJ$11","v":0},{"$f":"Time!FLK$11","v":0},{"$f":"Time!FLL$11","v":0},{"$f":"Time!FLM$11","v":0},{"$f":"Time!FLN$11","v":0},{"$f":"Time!FLO$11","v":0},{"$f":"Time!FLP$11","v":0},{"$f":"Time!FLQ$11","v":0},{"$f":"Time!FLR$11","v":0},{"$f":"Time!FLS$11","v":0},{"$f":"Time!FLT$11","v":0},{"$f":"Time!FLU$11","v":0},{"$f":"Time!FLV$11","v":0},{"$f":"Time!FLW$11","v":0},{"$f":"Time!FLX$11","v":0},{"$f":"Time!FLY$11","v":0},{"$f":"Time!FLZ$11","v":0},{"$f":"Time!FMA$11","v":0},{"$f":"Time!FMB$11","v":0},{"$f":"Time!FMC$11","v":0},{"$f":"Time!FMD$11","v":0},{"$f":"Time!FME$11","v":0},{"$f":"Time!FMF$11","v":0},{"$f":"Time!FMG$11","v":0},{"$f":"Time!FMH$11","v":0},{"$f":"Time!FMI$11","v":0},{"$f":"Time!FMJ$11","v":0},{"$f":"Time!FMK$11","v":0},{"$f":"Time!FML$11","v":0},{"$f":"Time!FMM$11","v":0},{"$f":"Time!FMN$11","v":0},{"$f":"Time!FMO$11","v":0},{"$f":"Time!FMP$11","v":0},{"$f":"Time!FMQ$11","v":0},{"$f":"Time!FMR$11","v":0},{"$f":"Time!FMS$11","v":0},{"$f":"Time!FMT$11","v":0},{"$f":"Time!FMU$11","v":0},{"$f":"Time!FMV$11","v":0},{"$f":"Time!FMW$11","v":0},{"$f":"Time!FMX$11","v":0},{"$f":"Time!FMY$11","v":0},{"$f":"Time!FMZ$11","v":0},{"$f":"Time!FNA$11","v":0},{"$f":"Time!FNB$11","v":0},{"$f":"Time!FNC$11","v":0},{"$f":"Time!FND$11","v":0},{"$f":"Time!FNE$11","v":0},{"$f":"Time!FNF$11","v":0},{"$f":"Time!FNG$11","v":0},{"$f":"Time!FNH$11","v":0},{"$f":"Time!FNI$11","v":0},{"$f":"Time!FNJ$11","v":0},{"$f":"Time!FNK$11","v":0},{"$f":"Time!FNL$11","v":0},{"$f":"Time!FNM$11","v":0},{"$f":"Time!FNN$11","v":0},{"$f":"Time!FNO$11","v":0},{"$f":"Time!FNP$11","v":0},{"$f":"Time!FNQ$11","v":0},{"$f":"Time!FNR$11","v":0},{"$f":"Time!FNS$11","v":0},{"$f":"Time!FNT$11","v":0},{"$f":"Time!FNU$11","v":0},{"$f":"Time!FNV$11","v":0},{"$f":"Time!FNW$11","v":0},{"$f":"Time!FNX$11","v":0},{"$f":"Time!FNY$11","v":0},{"$f":"Time!FNZ$11","v":0},{"$f":"Time!FOA$11","v":0},{"$f":"Time!FOB$11","v":0},{"$f":"Time!FOC$11","v":0},{"$f":"Time!FOD$11","v":0},{"$f":"Time!FOE$11","v":0},{"$f":"Time!FOF$11","v":0},{"$f":"Time!FOG$11","v":0},{"$f":"Time!FOH$11","v":0},{"$f":"Time!FOI$11","v":0},{"$f":"Time!FOJ$11","v":0},{"$f":"Time!FOK$11","v":0},{"$f":"Time!FOL$11","v":0},{"$f":"Time!FOM$11","v":0},{"$f":"Time!FON$11","v":0},{"$f":"Time!FOO$11","v":0},{"$f":"Time!FOP$11","v":0},{"$f":"Time!FOQ$11","v":0},{"$f":"Time!FOR$11","v":0},{"$f":"Time!FOS$11","v":0},{"$f":"Time!FOT$11","v":0},{"$f":"Time!FOU$11","v":0},{"$f":"Time!FOV$11","v":0},{"$f":"Time!FOW$11","v":0},{"$f":"Time!FOX$11","v":0},{"$f":"Time!FOY$11","v":0},{"$f":"Time!FOZ$11","v":0},{"$f":"Time!FPA$11","v":0},{"$f":"Time!FPB$11","v":0},{"$f":"Time!FPC$11","v":0},{"$f":"Time!FPD$11","v":0},{"$f":"Time!FPE$11","v":0},{"$f":"Time!FPF$11","v":0},{"$f":"Time!FPG$11","v":0},{"$f":"Time!FPH$11","v":0},{"$f":"Time!FPI$11","v":0},{"$f":"Time!FPJ$11","v":0},{"$f":"Time!FPK$11","v":0},{"$f":"Time!FPL$11","v":0},{"$f":"Time!FPM$11","v":0},{"$f":"Time!FPN$11","v":0},{"$f":"Time!FPO$11","v":0},{"$f":"Time!FPP$11","v":0},{"$f":"Time!FPQ$11","v":0},{"$f":"Time!FPR$11","v":0},{"$f":"Time!FPS$11","v":0},{"$f":"Time!FPT$11","v":0},{"$f":"Time!FPU$11","v":0},{"$f":"Time!FPV$11","v":0},{"$f":"Time!FPW$11","v":0},{"$f":"Time!FPX$11","v":0},{"$f":"Time!FPY$11","v":0},{"$f":"Time!FPZ$11","v":0},{"$f":"Time!FQA$11","v":0},{"$f":"Time!FQB$11","v":0},{"$f":"Time!FQC$11","v":0},{"$f":"Time!FQD$11","v":0},{"$f":"Time!FQE$11","v":0},{"$f":"Time!FQF$11","v":0},{"$f":"Time!FQG$11","v":0},{"$f":"Time!FQH$11","v":0},{"$f":"Time!FQI$11","v":0},{"$f":"Time!FQJ$11","v":0},{"$f":"Time!FQK$11","v":0},{"$f":"Time!FQL$11","v":0},{"$f":"Time!FQM$11","v":0},{"$f":"Time!FQN$11","v":0},{"$f":"Time!FQO$11","v":0},{"$f":"Time!FQP$11","v":0},{"$f":"Time!FQQ$11","v":0},{"$f":"Time!FQR$11","v":0},{"$f":"Time!FQS$11","v":0},{"$f":"Time!FQT$11","v":0},{"$f":"Time!FQU$11","v":0},{"$f":"Time!FQV$11","v":0},{"$f":"Time!FQW$11","v":0},{"$f":"Time!FQX$11","v":0},{"$f":"Time!FQY$11","v":0},{"$f":"Time!FQZ$11","v":0},{"$f":"Time!FRA$11","v":0},{"$f":"Time!FRB$11","v":0},{"$f":"Time!FRC$11","v":0},{"$f":"Time!FRD$11","v":0},{"$f":"Time!FRE$11","v":0},{"$f":"Time!FRF$11","v":0},{"$f":"Time!FRG$11","v":0},{"$f":"Time!FRH$11","v":0},{"$f":"Time!FRI$11","v":0},{"$f":"Time!FRJ$11","v":0},{"$f":"Time!FRK$11","v":0},{"$f":"Time!FRL$11","v":0},{"$f":"Time!FRM$11","v":0},{"$f":"Time!FRN$11","v":0},{"$f":"Time!FRO$11","v":0},{"$f":"Time!FRP$11","v":0},{"$f":"Time!FRQ$11","v":0},{"$f":"Time!FRR$11","v":0},{"$f":"Time!FRS$11","v":0},{"$f":"Time!FRT$11","v":0},{"$f":"Time!FRU$11","v":0},{"$f":"Time!FRV$11","v":0},{"$f":"Time!FRW$11","v":0},{"$f":"Time!FRX$11","v":0},{"$f":"Time!FRY$11","v":0},{"$f":"Time!FRZ$11","v":0},{"$f":"Time!FSA$11","v":0},{"$f":"Time!FSB$11","v":0},{"$f":"Time!FSC$11","v":0},{"$f":"Time!FSD$11","v":0},{"$f":"Time!FSE$11","v":0},{"$f":"Time!FSF$11","v":0},{"$f":"Time!FSG$11","v":0},{"$f":"Time!FSH$11","v":0},{"$f":"Time!FSI$11","v":0},{"$f":"Time!FSJ$11","v":0},{"$f":"Time!FSK$11","v":0},{"$f":"Time!FSL$11","v":0},{"$f":"Time!FSM$11","v":0},{"$f":"Time!FSN$11","v":0},{"$f":"Time!FSO$11","v":0},{"$f":"Time!FSP$11","v":0},{"$f":"Time!FSQ$11","v":0},{"$f":"Time!FSR$11","v":0},{"$f":"Time!FSS$11","v":0},{"$f":"Time!FST$11","v":0},{"$f":"Time!FSU$11","v":0},{"$f":"Time!FSV$11","v":0},{"$f":"Time!FSW$11","v":0},{"$f":"Time!FSX$11","v":0},{"$f":"Time!FSY$11","v":0},{"$f":"Time!FSZ$11","v":0},{"$f":"Time!FTA$11","v":0},{"$f":"Time!FTB$11","v":0},{"$f":"Time!FTC$11","v":0},{"$f":"Time!FTD$11","v":0},{"$f":"Time!FTE$11","v":0},{"$f":"Time!FTF$11","v":0},{"$f":"Time!FTG$11","v":0},{"$f":"Time!FTH$11","v":0},{"$f":"Time!FTI$11","v":0},{"$f":"Time!FTJ$11","v":0},{"$f":"Time!FTK$11","v":0},{"$f":"Time!FTL$11","v":0},{"$f":"Time!FTM$11","v":0},{"$f":"Time!FTN$11","v":0},{"$f":"Time!FTO$11","v":0},{"$f":"Time!FTP$11","v":0},{"$f":"Time!FTQ$11","v":0},{"$f":"Time!FTR$11","v":0},{"$f":"Time!FTS$11","v":0},{"$f":"Time!FTT$11","v":0},{"$f":"Time!FTU$11","v":0},{"$f":"Time!FTV$11","v":0},{"$f":"Time!FTW$11","v":0},{"$f":"Time!FTX$11","v":0},{"$f":"Time!FTY$11","v":0},{"$f":"Time!FTZ$11","v":0},{"$f":"Time!FUA$11","v":0},{"$f":"Time!FUB$11","v":0},{"$f":"Time!FUC$11","v":0},{"$f":"Time!FUD$11","v":0},{"$f":"Time!FUE$11","v":0},{"$f":"Time!FUF$11","v":0},{"$f":"Time!FUG$11","v":0},{"$f":"Time!FUH$11","v":0},{"$f":"Time!FUI$11","v":0},{"$f":"Time!FUJ$11","v":0},{"$f":"Time!FUK$11","v":0},{"$f":"Time!FUL$11","v":0},{"$f":"Time!FUM$11","v":0},{"$f":"Time!FUN$11","v":0},{"$f":"Time!FUO$11","v":0},{"$f":"Time!FUP$11","v":0},{"$f":"Time!FUQ$11","v":0},{"$f":"Time!FUR$11","v":0},{"$f":"Time!FUS$11","v":0},{"$f":"Time!FUT$11","v":0},{"$f":"Time!FUU$11","v":0},{"$f":"Time!FUV$11","v":0},{"$f":"Time!FUW$11","v":0},{"$f":"Time!FUX$11","v":0},{"$f":"Time!FUY$11","v":0},{"$f":"Time!FUZ$11","v":0},{"$f":"Time!FVA$11","v":0},{"$f":"Time!FVB$11","v":0},{"$f":"Time!FVC$11","v":0},{"$f":"Time!FVD$11","v":0},{"$f":"Time!FVE$11","v":0},{"$f":"Time!FVF$11","v":0},{"$f":"Time!FVG$11","v":0},{"$f":"Time!FVH$11","v":0},{"$f":"Time!FVI$11","v":0},{"$f":"Time!FVJ$11","v":0},{"$f":"Time!FVK$11","v":0},{"$f":"Time!FVL$11","v":0},{"$f":"Time!FVM$11","v":0},{"$f":"Time!FVN$11","v":0},{"$f":"Time!FVO$11","v":0},{"$f":"Time!FVP$11","v":0},{"$f":"Time!FVQ$11","v":0},{"$f":"Time!FVR$11","v":0},{"$f":"Time!FVS$11","v":0},{"$f":"Time!FVT$11","v":0},{"$f":"Time!FVU$11","v":0},{"$f":"Time!FVV$11","v":0},{"$f":"Time!FVW$11","v":0},{"$f":"Time!FVX$11","v":0},{"$f":"Time!FVY$11","v":0},{"$f":"Time!FVZ$11","v":0},{"$f":"Time!FWA$11","v":0},{"$f":"Time!FWB$11","v":0},{"$f":"Time!FWC$11","v":0},{"$f":"Time!FWD$11","v":0},{"$f":"Time!FWE$11","v":0},{"$f":"Time!FWF$11","v":0},{"$f":"Time!FWG$11","v":0},{"$f":"Time!FWH$11","v":0},{"$f":"Time!FWI$11","v":0},{"$f":"Time!FWJ$11","v":0},{"$f":"Time!FWK$11","v":0},{"$f":"Time!FWL$11","v":0},{"$f":"Time!FWM$11","v":0},{"$f":"Time!FWN$11","v":0},{"$f":"Time!FWO$11","v":0},{"$f":"Time!FWP$11","v":0},{"$f":"Time!FWQ$11","v":0},{"$f":"Time!FWR$11","v":0},{"$f":"Time!FWS$11","v":0},{"$f":"Time!FWT$11","v":0},{"$f":"Time!FWU$11","v":0},{"$f":"Time!FWV$11","v":0},{"$f":"Time!FWW$11","v":0},{"$f":"Time!FWX$11","v":0},{"$f":"Time!FWY$11","v":0},{"$f":"Time!FWZ$11","v":0},{"$f":"Time!FXA$11","v":0},{"$f":"Time!FXB$11","v":0},{"$f":"Time!FXC$11","v":0},{"$f":"Time!FXD$11","v":0},{"$f":"Time!FXE$11","v":0},{"$f":"Time!FXF$11","v":0},{"$f":"Time!FXG$11","v":0},{"$f":"Time!FXH$11","v":0},{"$f":"Time!FXI$11","v":0},{"$f":"Time!FXJ$11","v":0},{"$f":"Time!FXK$11","v":0},{"$f":"Time!FXL$11","v":0},{"$f":"Time!FXM$11","v":0},{"$f":"Time!FXN$11","v":0},{"$f":"Time!FXO$11","v":0},{"$f":"Time!FXP$11","v":0},{"$f":"Time!FXQ$11","v":0},{"$f":"Time!FXR$11","v":0},{"$f":"Time!FXS$11","v":0},{"$f":"Time!FXT$11","v":0},{"$f":"Time!FXU$11","v":0},{"$f":"Time!FXV$11","v":0},{"$f":"Time!FXW$11","v":0},{"$f":"Time!FXX$11","v":0},{"$f":"Time!FXY$11","v":0},{"$f":"Time!FXZ$11","v":0},{"$f":"Time!FYA$11","v":0},{"$f":"Time!FYB$11","v":0},{"$f":"Time!FYC$11","v":0},{"$f":"Time!FYD$11","v":0},{"$f":"Time!FYE$11","v":0},{"$f":"Time!FYF$11","v":0},{"$f":"Time!FYG$11","v":0},{"$f":"Time!FYH$11","v":0},{"$f":"Time!FYI$11","v":0},{"$f":"Time!FYJ$11","v":0},{"$f":"Time!FYK$11","v":0},{"$f":"Time!FYL$11","v":0},{"$f":"Time!FYM$11","v":0},{"$f":"Time!FYN$11","v":0},{"$f":"Time!FYO$11","v":0},{"$f":"Time!FYP$11","v":0},{"$f":"Time!FYQ$11","v":0},{"$f":"Time!FYR$11","v":0},{"$f":"Time!FYS$11","v":0},{"$f":"Time!FYT$11","v":0},{"$f":"Time!FYU$11","v":0},{"$f":"Time!FYV$11","v":0},{"$f":"Time!FYW$11","v":0},{"$f":"Time!FYX$11","v":0},{"$f":"Time!FYY$11","v":0},{"$f":"Time!FYZ$11","v":0},{"$f":"Time!FZA$11","v":0},{"$f":"Time!FZB$11","v":0},{"$f":"Time!FZC$11","v":0},{"$f":"Time!FZD$11","v":0},{"$f":"Time!FZE$11","v":0},{"$f":"Time!FZF$11","v":0},{"$f":"Time!FZG$11","v":0},{"$f":"Time!FZH$11","v":0},{"$f":"Time!FZI$11","v":0},{"$f":"Time!FZJ$11","v":0},{"$f":"Time!FZK$11","v":0},{"$f":"Time!FZL$11","v":0},{"$f":"Time!FZM$11","v":0},{"$f":"Time!FZN$11","v":0},{"$f":"Time!FZO$11","v":0},{"$f":"Time!FZP$11","v":0},{"$f":"Time!FZQ$11","v":0},{"$f":"Time!FZR$11","v":0},{"$f":"Time!FZS$11","v":0},{"$f":"Time!FZT$11","v":0},{"$f":"Time!FZU$11","v":0},{"$f":"Time!FZV$11","v":0},{"$f":"Time!FZW$11","v":0},{"$f":"Time!FZX$11","v":0},{"$f":"Time!FZY$11","v":0},{"$f":"Time!FZZ$11","v":0},{"$f":"Time!GAA$11","v":0},{"$f":"Time!GAB$11","v":0},{"$f":"Time!GAC$11","v":0},{"$f":"Time!GAD$11","v":0},{"$f":"Time!GAE$11","v":0},{"$f":"Time!GAF$11","v":0},{"$f":"Time!GAG$11","v":0},{"$f":"Time!GAH$11","v":0},{"$f":"Time!GAI$11","v":0},{"$f":"Time!GAJ$11","v":0},{"$f":"Time!GAK$11","v":0},{"$f":"Time!GAL$11","v":0},{"$f":"Time!GAM$11","v":0},{"$f":"Time!GAN$11","v":0},{"$f":"Time!GAO$11","v":0},{"$f":"Time!GAP$11","v":0},{"$f":"Time!GAQ$11","v":0},{"$f":"Time!GAR$11","v":0},{"$f":"Time!GAS$11","v":0},{"$f":"Time!GAT$11","v":0},{"$f":"Time!GAU$11","v":0},{"$f":"Time!GAV$11","v":0},{"$f":"Time!GAW$11","v":0},{"$f":"Time!GAX$11","v":0},{"$f":"Time!GAY$11","v":0},{"$f":"Time!GAZ$11","v":0},{"$f":"Time!GBA$11","v":0},{"$f":"Time!GBB$11","v":0},{"$f":"Time!GBC$11","v":0},{"$f":"Time!GBD$11","v":0},{"$f":"Time!GBE$11","v":0},{"$f":"Time!GBF$11","v":0},{"$f":"Time!GBG$11","v":0},{"$f":"Time!GBH$11","v":0},{"$f":"Time!GBI$11","v":0},{"$f":"Time!GBJ$11","v":0},{"$f":"Time!GBK$11","v":0},{"$f":"Time!GBL$11","v":0},{"$f":"Time!GBM$11","v":0},{"$f":"Time!GBN$11","v":0},{"$f":"Time!GBO$11","v":0},{"$f":"Time!GBP$11","v":0},{"$f":"Time!GBQ$11","v":0},{"$f":"Time!GBR$11","v":0},{"$f":"Time!GBS$11","v":0},{"$f":"Time!GBT$11","v":0},{"$f":"Time!GBU$11","v":0},{"$f":"Time!GBV$11","v":0},{"$f":"Time!GBW$11","v":0},{"$f":"Time!GBX$11","v":0},{"$f":"Time!GBY$11","v":0},{"$f":"Time!GBZ$11","v":0},{"$f":"Time!GCA$11","v":0},{"$f":"Time!GCB$11","v":0},{"$f":"Time!GCC$11","v":0},{"$f":"Time!GCD$11","v":0},{"$f":"Time!GCE$11","v":0},{"$f":"Time!GCF$11","v":0},{"$f":"Time!GCG$11","v":0},{"$f":"Time!GCH$11","v":0},{"$f":"Time!GCI$11","v":0},{"$f":"Time!GCJ$11","v":0},{"$f":"Time!GCK$11","v":0},{"$f":"Time!GCL$11","v":0},{"$f":"Time!GCM$11","v":0},{"$f":"Time!GCN$11","v":0},{"$f":"Time!GCO$11","v":0},{"$f":"Time!GCP$11","v":0},{"$f":"Time!GCQ$11","v":0},{"$f":"Time!GCR$11","v":0},{"$f":"Time!GCS$11","v":0},{"$f":"Time!GCT$11","v":0},{"$f":"Time!GCU$11","v":0},{"$f":"Time!GCV$11","v":0},{"$f":"Time!GCW$11","v":0},{"$f":"Time!GCX$11","v":0},{"$f":"Time!GCY$11","v":0},{"$f":"Time!GCZ$11","v":0},{"$f":"Time!GDA$11","v":0},{"$f":"Time!GDB$11","v":0},{"$f":"Time!GDC$11","v":0},{"$f":"Time!GDD$11","v":0},{"$f":"Time!GDE$11","v":0},{"$f":"Time!GDF$11","v":0},{"$f":"Time!GDG$11","v":0},{"$f":"Time!GDH$11","v":0},{"$f":"Time!GDI$11","v":0},{"$f":"Time!GDJ$11","v":0},{"$f":"Time!GDK$11","v":0},{"$f":"Time!GDL$11","v":0},{"$f":"Time!GDM$11","v":0},{"$f":"Time!GDN$11","v":0},{"$f":"Time!GDO$11","v":0},{"$f":"Time!GDP$11","v":0},{"$f":"Time!GDQ$11","v":0},{"$f":"Time!GDR$11","v":0},{"$f":"Time!GDS$11","v":0},{"$f":"Time!GDT$11","v":0},{"$f":"Time!GDU$11","v":0},{"$f":"Time!GDV$11","v":0},{"$f":"Time!GDW$11","v":0},{"$f":"Time!GDX$11","v":0},{"$f":"Time!GDY$11","v":0},{"$f":"Time!GDZ$11","v":0},{"$f":"Time!GEA$11","v":0},{"$f":"Time!GEB$11","v":0},{"$f":"Time!GEC$11","v":0},{"$f":"Time!GED$11","v":0},{"$f":"Time!GEE$11","v":0},{"$f":"Time!GEF$11","v":0},{"$f":"Time!GEG$11","v":0},{"$f":"Time!GEH$11","v":0},{"$f":"Time!GEI$11","v":0},{"$f":"Time!GEJ$11","v":0},{"$f":"Time!GEK$11","v":0},{"$f":"Time!GEL$11","v":0},{"$f":"Time!GEM$11","v":0},{"$f":"Time!GEN$11","v":0},{"$f":"Time!GEO$11","v":0},{"$f":"Time!GEP$11","v":0},{"$f":"Time!GEQ$11","v":0},{"$f":"Time!GER$11","v":0},{"$f":"Time!GES$11","v":0},{"$f":"Time!GET$11","v":0},{"$f":"Time!GEU$11","v":0},{"$f":"Time!GEV$11","v":0},{"$f":"Time!GEW$11","v":0},{"$f":"Time!GEX$11","v":0},{"$f":"Time!GEY$11","v":0},{"$f":"Time!GEZ$11","v":0},{"$f":"Time!GFA$11","v":0},{"$f":"Time!GFB$11","v":0},{"$f":"Time!GFC$11","v":0},{"$f":"Time!GFD$11","v":0},{"$f":"Time!GFE$11","v":0},{"$f":"Time!GFF$11","v":0},{"$f":"Time!GFG$11","v":0},{"$f":"Time!GFH$11","v":0},{"$f":"Time!GFI$11","v":0},{"$f":"Time!GFJ$11","v":0},{"$f":"Time!GFK$11","v":0},{"$f":"Time!GFL$11","v":0},{"$f":"Time!GFM$11","v":0},{"$f":"Time!GFN$11","v":0},{"$f":"Time!GFO$11","v":0},{"$f":"Time!GFP$11","v":0},{"$f":"Time!GFQ$11","v":0},{"$f":"Time!GFR$11","v":0},{"$f":"Time!GFS$11","v":0},{"$f":"Time!GFT$11","v":0},{"$f":"Time!GFU$11","v":0},{"$f":"Time!GFV$11","v":0},{"$f":"Time!GFW$11","v":0},{"$f":"Time!GFX$11","v":0},{"$f":"Time!GFY$11","v":0},{"$f":"Time!GFZ$11","v":0},{"$f":"Time!GGA$11","v":0},{"$f":"Time!GGB$11","v":0},{"$f":"Time!GGC$11","v":0},{"$f":"Time!GGD$11","v":0},{"$f":"Time!GGE$11","v":0},{"$f":"Time!GGF$11","v":0},{"$f":"Time!GGG$11","v":0},{"$f":"Time!GGH$11","v":0},{"$f":"Time!GGI$11","v":0},{"$f":"Time!GGJ$11","v":0},{"$f":"Time!GGK$11","v":0},{"$f":"Time!GGL$11","v":0},{"$f":"Time!GGM$11","v":0},{"$f":"Time!GGN$11","v":0},{"$f":"Time!GGO$11","v":0},{"$f":"Time!GGP$11","v":0},{"$f":"Time!GGQ$11","v":0},{"$f":"Time!GGR$11","v":0},{"$f":"Time!GGS$11","v":0},{"$f":"Time!GGT$11","v":0},{"$f":"Time!GGU$11","v":0},{"$f":"Time!GGV$11","v":0},{"$f":"Time!GGW$11","v":0},{"$f":"Time!GGX$11","v":0},{"$f":"Time!GGY$11","v":0},{"$f":"Time!GGZ$11","v":0},{"$f":"Time!GHA$11","v":0},{"$f":"Time!GHB$11","v":0},{"$f":"Time!GHC$11","v":0},{"$f":"Time!GHD$11","v":0},{"$f":"Time!GHE$11","v":0},{"$f":"Time!GHF$11","v":0},{"$f":"Time!GHG$11","v":0},{"$f":"Time!GHH$11","v":0},{"$f":"Time!GHI$11","v":0},{"$f":"Time!GHJ$11","v":0},{"$f":"Time!GHK$11","v":0},{"$f":"Time!GHL$11","v":0},{"$f":"Time!GHM$11","v":0},{"$f":"Time!GHN$11","v":0},{"$f":"Time!GHO$11","v":0},{"$f":"Time!GHP$11","v":0},{"$f":"Time!GHQ$11","v":0},{"$f":"Time!GHR$11","v":0},{"$f":"Time!GHS$11","v":0},{"$f":"Time!GHT$11","v":0},{"$f":"Time!GHU$11","v":0},{"$f":"Time!GHV$11","v":0},{"$f":"Time!GHW$11","v":0},{"$f":"Time!GHX$11","v":0},{"$f":"Time!GHY$11","v":0},{"$f":"Time!GHZ$11","v":0},{"$f":"Time!GIA$11","v":0},{"$f":"Time!GIB$11","v":0},{"$f":"Time!GIC$11","v":0},{"$f":"Time!GID$11","v":0},{"$f":"Time!GIE$11","v":0},{"$f":"Time!GIF$11","v":0},{"$f":"Time!GIG$11","v":0},{"$f":"Time!GIH$11","v":0},{"$f":"Time!GII$11","v":0},{"$f":"Time!GIJ$11","v":0},{"$f":"Time!GIK$11","v":0},{"$f":"Time!GIL$11","v":0},{"$f":"Time!GIM$11","v":0},{"$f":"Time!GIN$11","v":0},{"$f":"Time!GIO$11","v":0},{"$f":"Time!GIP$11","v":0},{"$f":"Time!GIQ$11","v":0},{"$f":"Time!GIR$11","v":0},{"$f":"Time!GIS$11","v":0},{"$f":"Time!GIT$11","v":0},{"$f":"Time!GIU$11","v":0},{"$f":"Time!GIV$11","v":0},{"$f":"Time!GIW$11","v":0},{"$f":"Time!GIX$11","v":0},{"$f":"Time!GIY$11","v":0},{"$f":"Time!GIZ$11","v":0},{"$f":"Time!GJA$11","v":0},{"$f":"Time!GJB$11","v":0},{"$f":"Time!GJC$11","v":0},{"$f":"Time!GJD$11","v":0},{"$f":"Time!GJE$11","v":0},{"$f":"Time!GJF$11","v":0},{"$f":"Time!GJG$11","v":0},{"$f":"Time!GJH$11","v":0},{"$f":"Time!GJI$11","v":0},{"$f":"Time!GJJ$11","v":0},{"$f":"Time!GJK$11","v":0},{"$f":"Time!GJL$11","v":0},{"$f":"Time!GJM$11","v":0},{"$f":"Time!GJN$11","v":0},{"$f":"Time!GJO$11","v":0},{"$f":"Time!GJP$11","v":0},{"$f":"Time!GJQ$11","v":0},{"$f":"Time!GJR$11","v":0},{"$f":"Time!GJS$11","v":0},{"$f":"Time!GJT$11","v":0},{"$f":"Time!GJU$11","v":0},{"$f":"Time!GJV$11","v":0},{"$f":"Time!GJW$11","v":0},{"$f":"Time!GJX$11","v":0},{"$f":"Time!GJY$11","v":0},{"$f":"Time!GJZ$11","v":0},{"$f":"Time!GKA$11","v":0},{"$f":"Time!GKB$11","v":0},{"$f":"Time!GKC$11","v":0},{"$f":"Time!GKD$11","v":0},{"$f":"Time!GKE$11","v":0},{"$f":"Time!GKF$11","v":0},{"$f":"Time!GKG$11","v":0},{"$f":"Time!GKH$11","v":0},{"$f":"Time!GKI$11","v":0},{"$f":"Time!GKJ$11","v":0},{"$f":"Time!GKK$11","v":0},{"$f":"Time!GKL$11","v":0},{"$f":"Time!GKM$11","v":0},{"$f":"Time!GKN$11","v":0},{"$f":"Time!GKO$11","v":0},{"$f":"Time!GKP$11","v":0},{"$f":"Time!GKQ$11","v":0},{"$f":"Time!GKR$11","v":0},{"$f":"Time!GKS$11","v":0},{"$f":"Time!GKT$11","v":0},{"$f":"Time!GKU$11","v":0},{"$f":"Time!GKV$11","v":0},{"$f":"Time!GKW$11","v":0},{"$f":"Time!GKX$11","v":0},{"$f":"Time!GKY$11","v":0},{"$f":"Time!GKZ$11","v":0},{"$f":"Time!GLA$11","v":0},{"$f":"Time!GLB$11","v":0},{"$f":"Time!GLC$11","v":0},{"$f":"Time!GLD$11","v":0},{"$f":"Time!GLE$11","v":0},{"$f":"Time!GLF$11","v":0},{"$f":"Time!GLG$11","v":0},{"$f":"Time!GLH$11","v":0},{"$f":"Time!GLI$11","v":0},{"$f":"Time!GLJ$11","v":0},{"$f":"Time!GLK$11","v":0},{"$f":"Time!GLL$11","v":0},{"$f":"Time!GLM$11","v":0},{"$f":"Time!GLN$11","v":0},{"$f":"Time!GLO$11","v":0},{"$f":"Time!GLP$11","v":0},{"$f":"Time!GLQ$11","v":0},{"$f":"Time!GLR$11","v":0},{"$f":"Time!GLS$11","v":0},{"$f":"Time!GLT$11","v":0},{"$f":"Time!GLU$11","v":0},{"$f":"Time!GLV$11","v":0},{"$f":"Time!GLW$11","v":0},{"$f":"Time!GLX$11","v":0},{"$f":"Time!GLY$11","v":0},{"$f":"Time!GLZ$11","v":0},{"$f":"Time!GMA$11","v":0},{"$f":"Time!GMB$11","v":0},{"$f":"Time!GMC$11","v":0},{"$f":"Time!GMD$11","v":0},{"$f":"Time!GME$11","v":0},{"$f":"Time!GMF$11","v":0},{"$f":"Time!GMG$11","v":0},{"$f":"Time!GMH$11","v":0},{"$f":"Time!GMI$11","v":0},{"$f":"Time!GMJ$11","v":0},{"$f":"Time!GMK$11","v":0},{"$f":"Time!GML$11","v":0},{"$f":"Time!GMM$11","v":0},{"$f":"Time!GMN$11","v":0},{"$f":"Time!GMO$11","v":0},{"$f":"Time!GMP$11","v":0},{"$f":"Time!GMQ$11","v":0},{"$f":"Time!GMR$11","v":0},{"$f":"Time!GMS$11","v":0},{"$f":"Time!GMT$11","v":0},{"$f":"Time!GMU$11","v":0},{"$f":"Time!GMV$11","v":0},{"$f":"Time!GMW$11","v":0},{"$f":"Time!GMX$11","v":0},{"$f":"Time!GMY$11","v":0},{"$f":"Time!GMZ$11","v":0},{"$f":"Time!GNA$11","v":0},{"$f":"Time!GNB$11","v":0},{"$f":"Time!GNC$11","v":0},{"$f":"Time!GND$11","v":0},{"$f":"Time!GNE$11","v":0},{"$f":"Time!GNF$11","v":0},{"$f":"Time!GNG$11","v":0},{"$f":"Time!GNH$11","v":0},{"$f":"Time!GNI$11","v":0},{"$f":"Time!GNJ$11","v":0},{"$f":"Time!GNK$11","v":0},{"$f":"Time!GNL$11","v":0},{"$f":"Time!GNM$11","v":0},{"$f":"Time!GNN$11","v":0},{"$f":"Time!GNO$11","v":0},{"$f":"Time!GNP$11","v":0},{"$f":"Time!GNQ$11","v":0},{"$f":"Time!GNR$11","v":0},{"$f":"Time!GNS$11","v":0},{"$f":"Time!GNT$11","v":0},{"$f":"Time!GNU$11","v":0},{"$f":"Time!GNV$11","v":0},{"$f":"Time!GNW$11","v":0},{"$f":"Time!GNX$11","v":0},{"$f":"Time!GNY$11","v":0},{"$f":"Time!GNZ$11","v":0},{"$f":"Time!GOA$11","v":0},{"$f":"Time!GOB$11","v":0},{"$f":"Time!GOC$11","v":0},{"$f":"Time!GOD$11","v":0},{"$f":"Time!GOE$11","v":0},{"$f":"Time!GOF$11","v":0},{"$f":"Time!GOG$11","v":0},{"$f":"Time!GOH$11","v":0},{"$f":"Time!GOI$11","v":0},{"$f":"Time!GOJ$11","v":0},{"$f":"Time!GOK$11","v":0},{"$f":"Time!GOL$11","v":0},{"$f":"Time!GOM$11","v":0},{"$f":"Time!GON$11","v":0},{"$f":"Time!GOO$11","v":0},{"$f":"Time!GOP$11","v":0},{"$f":"Time!GOQ$11","v":0},{"$f":"Time!GOR$11","v":0},{"$f":"Time!GOS$11","v":0},{"$f":"Time!GOT$11","v":0},{"$f":"Time!GOU$11","v":0},{"$f":"Time!GOV$11","v":0},{"$f":"Time!GOW$11","v":0},{"$f":"Time!GOX$11","v":0},{"$f":"Time!GOY$11","v":0},{"$f":"Time!GOZ$11","v":0},{"$f":"Time!GPA$11","v":0},{"$f":"Time!GPB$11","v":0},{"$f":"Time!GPC$11","v":0},{"$f":"Time!GPD$11","v":0},{"$f":"Time!GPE$11","v":0},{"$f":"Time!GPF$11","v":0},{"$f":"Time!GPG$11","v":0},{"$f":"Time!GPH$11","v":0},{"$f":"Time!GPI$11","v":0},{"$f":"Time!GPJ$11","v":0},{"$f":"Time!GPK$11","v":0},{"$f":"Time!GPL$11","v":0},{"$f":"Time!GPM$11","v":0},{"$f":"Time!GPN$11","v":0},{"$f":"Time!GPO$11","v":0},{"$f":"Time!GPP$11","v":0},{"$f":"Time!GPQ$11","v":0},{"$f":"Time!GPR$11","v":0},{"$f":"Time!GPS$11","v":0},{"$f":"Time!GPT$11","v":0},{"$f":"Time!GPU$11","v":0},{"$f":"Time!GPV$11","v":0},{"$f":"Time!GPW$11","v":0},{"$f":"Time!GPX$11","v":0},{"$f":"Time!GPY$11","v":0},{"$f":"Time!GPZ$11","v":0},{"$f":"Time!GQA$11","v":0},{"$f":"Time!GQB$11","v":0},{"$f":"Time!GQC$11","v":0},{"$f":"Time!GQD$11","v":0},{"$f":"Time!GQE$11","v":0},{"$f":"Time!GQF$11","v":0},{"$f":"Time!GQG$11","v":0},{"$f":"Time!GQH$11","v":0},{"$f":"Time!GQI$11","v":0},{"$f":"Time!GQJ$11","v":0},{"$f":"Time!GQK$11","v":0},{"$f":"Time!GQL$11","v":0},{"$f":"Time!GQM$11","v":0},{"$f":"Time!GQN$11","v":0},{"$f":"Time!GQO$11","v":0},{"$f":"Time!GQP$11","v":0},{"$f":"Time!GQQ$11","v":0},{"$f":"Time!GQR$11","v":0},{"$f":"Time!GQS$11","v":0},{"$f":"Time!GQT$11","v":0},{"$f":"Time!GQU$11","v":0},{"$f":"Time!GQV$11","v":0},{"$f":"Time!GQW$11","v":0},{"$f":"Time!GQX$11","v":0},{"$f":"Time!GQY$11","v":0},{"$f":"Time!GQZ$11","v":0},{"$f":"Time!GRA$11","v":0},{"$f":"Time!GRB$11","v":0},{"$f":"Time!GRC$11","v":0},{"$f":"Time!GRD$11","v":0},{"$f":"Time!GRE$11","v":0},{"$f":"Time!GRF$11","v":0},{"$f":"Time!GRG$11","v":0},{"$f":"Time!GRH$11","v":0},{"$f":"Time!GRI$11","v":0},{"$f":"Time!GRJ$11","v":0},{"$f":"Time!GRK$11","v":0},{"$f":"Time!GRL$11","v":0},{"$f":"Time!GRM$11","v":0},{"$f":"Time!GRN$11","v":0},{"$f":"Time!GRO$11","v":0},{"$f":"Time!GRP$11","v":0},{"$f":"Time!GRQ$11","v":0},{"$f":"Time!GRR$11","v":0},{"$f":"Time!GRS$11","v":0},{"$f":"Time!GRT$11","v":0},{"$f":"Time!GRU$11","v":0},{"$f":"Time!GRV$11","v":0},{"$f":"Time!GRW$11","v":0},{"$f":"Time!GRX$11","v":0},{"$f":"Time!GRY$11","v":0},{"$f":"Time!GRZ$11","v":0},{"$f":"Time!GSA$11","v":0},{"$f":"Time!GSB$11","v":0},{"$f":"Time!GSC$11","v":0},{"$f":"Time!GSD$11","v":0},{"$f":"Time!GSE$11","v":0},{"$f":"Time!GSF$11","v":0},{"$f":"Time!GSG$11","v":0},{"$f":"Time!GSH$11","v":0},{"$f":"Time!GSI$11","v":0},{"$f":"Time!GSJ$11","v":0},{"$f":"Time!GSK$11","v":0},{"$f":"Time!GSL$11","v":0},{"$f":"Time!GSM$11","v":0},{"$f":"Time!GSN$11","v":0},{"$f":"Time!GSO$11","v":0},{"$f":"Time!GSP$11","v":0},{"$f":"Time!GSQ$11","v":0},{"$f":"Time!GSR$11","v":0},{"$f":"Time!GSS$11","v":0},{"$f":"Time!GST$11","v":0},{"$f":"Time!GSU$11","v":0},{"$f":"Time!GSV$11","v":0},{"$f":"Time!GSW$11","v":0},{"$f":"Time!GSX$11","v":0},{"$f":"Time!GSY$11","v":0},{"$f":"Time!GSZ$11","v":0},{"$f":"Time!GTA$11","v":0},{"$f":"Time!GTB$11","v":0},{"$f":"Time!GTC$11","v":0},{"$f":"Time!GTD$11","v":0},{"$f":"Time!GTE$11","v":0},{"$f":"Time!GTF$11","v":0},{"$f":"Time!GTG$11","v":0},{"$f":"Time!GTH$11","v":0},{"$f":"Time!GTI$11","v":0},{"$f":"Time!GTJ$11","v":0},{"$f":"Time!GTK$11","v":0},{"$f":"Time!GTL$11","v":0},{"$f":"Time!GTM$11","v":0},{"$f":"Time!GTN$11","v":0},{"$f":"Time!GTO$11","v":0},{"$f":"Time!GTP$11","v":0},{"$f":"Time!GTQ$11","v":0},{"$f":"Time!GTR$11","v":0},{"$f":"Time!GTS$11","v":0},{"$f":"Time!GTT$11","v":0},{"$f":"Time!GTU$11","v":0},{"$f":"Time!GTV$11","v":0},{"$f":"Time!GTW$11","v":0},{"$f":"Time!GTX$11","v":0},{"$f":"Time!GTY$11","v":0},{"$f":"Time!GTZ$11","v":0},{"$f":"Time!GUA$11","v":0},{"$f":"Time!GUB$11","v":0},{"$f":"Time!GUC$11","v":0},{"$f":"Time!GUD$11","v":0},{"$f":"Time!GUE$11","v":0},{"$f":"Time!GUF$11","v":0},{"$f":"Time!GUG$11","v":0},{"$f":"Time!GUH$11","v":0},{"$f":"Time!GUI$11","v":0},{"$f":"Time!GUJ$11","v":0},{"$f":"Time!GUK$11","v":0},{"$f":"Time!GUL$11","v":0},{"$f":"Time!GUM$11","v":0},{"$f":"Time!GUN$11","v":0},{"$f":"Time!GUO$11","v":0},{"$f":"Time!GUP$11","v":0},{"$f":"Time!GUQ$11","v":0},{"$f":"Time!GUR$11","v":0},{"$f":"Time!GUS$11","v":0},{"$f":"Time!GUT$11","v":0},{"$f":"Time!GUU$11","v":0},{"$f":"Time!GUV$11","v":0},{"$f":"Time!GUW$11","v":0},{"$f":"Time!GUX$11","v":0},{"$f":"Time!GUY$11","v":0},{"$f":"Time!GUZ$11","v":0},{"$f":"Time!GVA$11","v":0},{"$f":"Time!GVB$11","v":0},{"$f":"Time!GVC$11","v":0},{"$f":"Time!GVD$11","v":0},{"$f":"Time!GVE$11","v":0},{"$f":"Time!GVF$11","v":0},{"$f":"Time!GVG$11","v":0},{"$f":"Time!GVH$11","v":0},{"$f":"Time!GVI$11","v":0},{"$f":"Time!GVJ$11","v":0},{"$f":"Time!GVK$11","v":0},{"$f":"Time!GVL$11","v":0},{"$f":"Time!GVM$11","v":0},{"$f":"Time!GVN$11","v":0},{"$f":"Time!GVO$11","v":0},{"$f":"Time!GVP$11","v":0},{"$f":"Time!GVQ$11","v":0},{"$f":"Time!GVR$11","v":0},{"$f":"Time!GVS$11","v":0},{"$f":"Time!GVT$11","v":0},{"$f":"Time!GVU$11","v":0},{"$f":"Time!GVV$11","v":0},{"$f":"Time!GVW$11","v":0},{"$f":"Time!GVX$11","v":0},{"$f":"Time!GVY$11","v":0},{"$f":"Time!GVZ$11","v":0},{"$f":"Time!GWA$11","v":0},{"$f":"Time!GWB$11","v":0},{"$f":"Time!GWC$11","v":0},{"$f":"Time!GWD$11","v":0},{"$f":"Time!GWE$11","v":0},{"$f":"Time!GWF$11","v":0},{"$f":"Time!GWG$11","v":0},{"$f":"Time!GWH$11","v":0},{"$f":"Time!GWI$11","v":0},{"$f":"Time!GWJ$11","v":0},{"$f":"Time!GWK$11","v":0},{"$f":"Time!GWL$11","v":0},{"$f":"Time!GWM$11","v":0},{"$f":"Time!GWN$11","v":0},{"$f":"Time!GWO$11","v":0},{"$f":"Time!GWP$11","v":0},{"$f":"Time!GWQ$11","v":0},{"$f":"Time!GWR$11","v":0},{"$f":"Time!GWS$11","v":0},{"$f":"Time!GWT$11","v":0},{"$f":"Time!GWU$11","v":0},{"$f":"Time!GWV$11","v":0},{"$f":"Time!GWW$11","v":0},{"$f":"Time!GWX$11","v":0},{"$f":"Time!GWY$11","v":0},{"$f":"Time!GWZ$11","v":0},{"$f":"Time!GXA$11","v":0},{"$f":"Time!GXB$11","v":0},{"$f":"Time!GXC$11","v":0},{"$f":"Time!GXD$11","v":0},{"$f":"Time!GXE$11","v":0},{"$f":"Time!GXF$11","v":0},{"$f":"Time!GXG$11","v":0},{"$f":"Time!GXH$11","v":0},{"$f":"Time!GXI$11","v":0},{"$f":"Time!GXJ$11","v":0},{"$f":"Time!GXK$11","v":0},{"$f":"Time!GXL$11","v":0},{"$f":"Time!GXM$11","v":0},{"$f":"Time!GXN$11","v":0},{"$f":"Time!GXO$11","v":0},{"$f":"Time!GXP$11","v":0},{"$f":"Time!GXQ$11","v":0},{"$f":"Time!GXR$11","v":0},{"$f":"Time!GXS$11","v":0},{"$f":"Time!GXT$11","v":0},{"$f":"Time!GXU$11","v":0},{"$f":"Time!GXV$11","v":0},{"$f":"Time!GXW$11","v":0},{"$f":"Time!GXX$11","v":0},{"$f":"Time!GXY$11","v":0},{"$f":"Time!GXZ$11","v":0},{"$f":"Time!GYA$11","v":0},{"$f":"Time!GYB$11","v":0},{"$f":"Time!GYC$11","v":0},{"$f":"Time!GYD$11","v":0},{"$f":"Time!GYE$11","v":0},{"$f":"Time!GYF$11","v":0},{"$f":"Time!GYG$11","v":0},{"$f":"Time!GYH$11","v":0},{"$f":"Time!GYI$11","v":0},{"$f":"Time!GYJ$11","v":0},{"$f":"Time!GYK$11","v":0},{"$f":"Time!GYL$11","v":0},{"$f":"Time!GYM$11","v":0},{"$f":"Time!GYN$11","v":0},{"$f":"Time!GYO$11","v":0},{"$f":"Time!GYP$11","v":0},{"$f":"Time!GYQ$11","v":0},{"$f":"Time!GYR$11","v":0},{"$f":"Time!GYS$11","v":0},{"$f":"Time!GYT$11","v":0},{"$f":"Time!GYU$11","v":0},{"$f":"Time!GYV$11","v":0},{"$f":"Time!GYW$11","v":0},{"$f":"Time!GYX$11","v":0},{"$f":"Time!GYY$11","v":0},{"$f":"Time!GYZ$11","v":0},{"$f":"Time!GZA$11","v":0},{"$f":"Time!GZB$11","v":0},{"$f":"Time!GZC$11","v":0},{"$f":"Time!GZD$11","v":0},{"$f":"Time!GZE$11","v":0},{"$f":"Time!GZF$11","v":0},{"$f":"Time!GZG$11","v":0},{"$f":"Time!GZH$11","v":0},{"$f":"Time!GZI$11","v":0},{"$f":"Time!GZJ$11","v":0},{"$f":"Time!GZK$11","v":0},{"$f":"Time!GZL$11","v":0},{"$f":"Time!GZM$11","v":0},{"$f":"Time!GZN$11","v":0},{"$f":"Time!GZO$11","v":0},{"$f":"Time!GZP$11","v":0},{"$f":"Time!GZQ$11","v":0},{"$f":"Time!GZR$11","v":0},{"$f":"Time!GZS$11","v":0},{"$f":"Time!GZT$11","v":0},{"$f":"Time!GZU$11","v":0},{"$f":"Time!GZV$11","v":0},{"$f":"Time!GZW$11","v":0},{"$f":"Time!GZX$11","v":0},{"$f":"Time!GZY$11","v":0},{"$f":"Time!GZZ$11","v":0},{"$f":"Time!HAA$11","v":0},{"$f":"Time!HAB$11","v":0},{"$f":"Time!HAC$11","v":0},{"$f":"Time!HAD$11","v":0},{"$f":"Time!HAE$11","v":0},{"$f":"Time!HAF$11","v":0},{"$f":"Time!HAG$11","v":0},{"$f":"Time!HAH$11","v":0},{"$f":"Time!HAI$11","v":0},{"$f":"Time!HAJ$11","v":0},{"$f":"Time!HAK$11","v":0},{"$f":"Time!HAL$11","v":0},{"$f":"Time!HAM$11","v":0},{"$f":"Time!HAN$11","v":0},{"$f":"Time!HAO$11","v":0},{"$f":"Time!HAP$11","v":0},{"$f":"Time!HAQ$11","v":0},{"$f":"Time!HAR$11","v":0},{"$f":"Time!HAS$11","v":0},{"$f":"Time!HAT$11","v":0},{"$f":"Time!HAU$11","v":0},{"$f":"Time!HAV$11","v":0},{"$f":"Time!HAW$11","v":0},{"$f":"Time!HAX$11","v":0},{"$f":"Time!HAY$11","v":0},{"$f":"Time!HAZ$11","v":0},{"$f":"Time!HBA$11","v":0},{"$f":"Time!HBB$11","v":0},{"$f":"Time!HBC$11","v":0},{"$f":"Time!HBD$11","v":0},{"$f":"Time!HBE$11","v":0},{"$f":"Time!HBF$11","v":0},{"$f":"Time!HBG$11","v":0},{"$f":"Time!HBH$11","v":0},{"$f":"Time!HBI$11","v":0},{"$f":"Time!HBJ$11","v":0},{"$f":"Time!HBK$11","v":0},{"$f":"Time!HBL$11","v":0},{"$f":"Time!HBM$11","v":0},{"$f":"Time!HBN$11","v":0},{"$f":"Time!HBO$11","v":0},{"$f":"Time!HBP$11","v":0},{"$f":"Time!HBQ$11","v":0},{"$f":"Time!HBR$11","v":0},{"$f":"Time!HBS$11","v":0},{"$f":"Time!HBT$11","v":0},{"$f":"Time!HBU$11","v":0},{"$f":"Time!HBV$11","v":0},{"$f":"Time!HBW$11","v":0},{"$f":"Time!HBX$11","v":0},{"$f":"Time!HBY$11","v":0},{"$f":"Time!HBZ$11","v":0},{"$f":"Time!HCA$11","v":0},{"$f":"Time!HCB$11","v":0},{"$f":"Time!HCC$11","v":0},{"$f":"Time!HCD$11","v":0},{"$f":"Time!HCE$11","v":0},{"$f":"Time!HCF$11","v":0},{"$f":"Time!HCG$11","v":0},{"$f":"Time!HCH$11","v":0},{"$f":"Time!HCI$11","v":0},{"$f":"Time!HCJ$11","v":0},{"$f":"Time!HCK$11","v":0},{"$f":"Time!HCL$11","v":0},{"$f":"Time!HCM$11","v":0},{"$f":"Time!HCN$11","v":0},{"$f":"Time!HCO$11","v":0},{"$f":"Time!HCP$11","v":0},{"$f":"Time!HCQ$11","v":0},{"$f":"Time!HCR$11","v":0},{"$f":"Time!HCS$11","v":0},{"$f":"Time!HCT$11","v":0},{"$f":"Time!HCU$11","v":0},{"$f":"Time!HCV$11","v":0},{"$f":"Time!HCW$11","v":0},{"$f":"Time!HCX$11","v":0},{"$f":"Time!HCY$11","v":0},{"$f":"Time!HCZ$11","v":0},{"$f":"Time!HDA$11","v":0},{"$f":"Time!HDB$11","v":0},{"$f":"Time!HDC$11","v":0},{"$f":"Time!HDD$11","v":0},{"$f":"Time!HDE$11","v":0},{"$f":"Time!HDF$11","v":0},{"$f":"Time!HDG$11","v":0},{"$f":"Time!HDH$11","v":0},{"$f":"Time!HDI$11","v":0},{"$f":"Time!HDJ$11","v":0},{"$f":"Time!HDK$11","v":0},{"$f":"Time!HDL$11","v":0},{"$f":"Time!HDM$11","v":0},{"$f":"Time!HDN$11","v":0},{"$f":"Time!HDO$11","v":0},{"$f":"Time!HDP$11","v":0},{"$f":"Time!HDQ$11","v":0},{"$f":"Time!HDR$11","v":0},{"$f":"Time!HDS$11","v":0},{"$f":"Time!HDT$11","v":0},{"$f":"Time!HDU$11","v":0},{"$f":"Time!HDV$11","v":0},{"$f":"Time!HDW$11","v":0},{"$f":"Time!HDX$11","v":0},{"$f":"Time!HDY$11","v":0},{"$f":"Time!HDZ$11","v":0},{"$f":"Time!HEA$11","v":0},{"$f":"Time!HEB$11","v":0},{"$f":"Time!HEC$11","v":0},{"$f":"Time!HED$11","v":0},{"$f":"Time!HEE$11","v":0},{"$f":"Time!HEF$11","v":0},{"$f":"Time!HEG$11","v":0},{"$f":"Time!HEH$11","v":0},{"$f":"Time!HEI$11","v":0},{"$f":"Time!HEJ$11","v":0},{"$f":"Time!HEK$11","v":0},{"$f":"Time!HEL$11","v":0},{"$f":"Time!HEM$11","v":0},{"$f":"Time!HEN$11","v":0},{"$f":"Time!HEO$11","v":0},{"$f":"Time!HEP$11","v":0},{"$f":"Time!HEQ$11","v":0},{"$f":"Time!HER$11","v":0},{"$f":"Time!HES$11","v":0},{"$f":"Time!HET$11","v":0},{"$f":"Time!HEU$11","v":0},{"$f":"Time!HEV$11","v":0},{"$f":"Time!HEW$11","v":0},{"$f":"Time!HEX$11","v":0},{"$f":"Time!HEY$11","v":0},{"$f":"Time!HEZ$11","v":0},{"$f":"Time!HFA$11","v":0},{"$f":"Time!HFB$11","v":0},{"$f":"Time!HFC$11","v":0},{"$f":"Time!HFD$11","v":0},{"$f":"Time!HFE$11","v":0},{"$f":"Time!HFF$11","v":0},{"$f":"Time!HFG$11","v":0},{"$f":"Time!HFH$11","v":0},{"$f":"Time!HFI$11","v":0},{"$f":"Time!HFJ$11","v":0},{"$f":"Time!HFK$11","v":0},{"$f":"Time!HFL$11","v":0},{"$f":"Time!HFM$11","v":0},{"$f":"Time!HFN$11","v":0},{"$f":"Time!HFO$11","v":0},{"$f":"Time!HFP$11","v":0},{"$f":"Time!HFQ$11","v":0},{"$f":"Time!HFR$11","v":0},{"$f":"Time!HFS$11","v":0},{"$f":"Time!HFT$11","v":0},{"$f":"Time!HFU$11","v":0},{"$f":"Time!HFV$11","v":0},{"$f":"Time!HFW$11","v":0},{"$f":"Time!HFX$11","v":0},{"$f":"Time!HFY$11","v":0},{"$f":"Time!HFZ$11","v":0},{"$f":"Time!HGA$11","v":0},{"$f":"Time!HGB$11","v":0},{"$f":"Time!HGC$11","v":0},{"$f":"Time!HGD$11","v":0},{"$f":"Time!HGE$11","v":0},{"$f":"Time!HGF$11","v":0},{"$f":"Time!HGG$11","v":0},{"$f":"Time!HGH$11","v":0},{"$f":"Time!HGI$11","v":0},{"$f":"Time!HGJ$11","v":0},{"$f":"Time!HGK$11","v":0},{"$f":"Time!HGL$11","v":0},{"$f":"Time!HGM$11","v":0},{"$f":"Time!HGN$11","v":0},{"$f":"Time!HGO$11","v":0},{"$f":"Time!HGP$11","v":0},{"$f":"Time!HGQ$11","v":0},{"$f":"Time!HGR$11","v":0},{"$f":"Time!HGS$11","v":0},{"$f":"Time!HGT$11","v":0},{"$f":"Time!HGU$11","v":0},{"$f":"Time!HGV$11","v":0},{"$f":"Time!HGW$11","v":0},{"$f":"Time!HGX$11","v":0},{"$f":"Time!HGY$11","v":0},{"$f":"Time!HGZ$11","v":0},{"$f":"Time!HHA$11","v":0},{"$f":"Time!HHB$11","v":0},{"$f":"Time!HHC$11","v":0},{"$f":"Time!HHD$11","v":0},{"$f":"Time!HHE$11","v":0},{"$f":"Time!HHF$11","v":0},{"$f":"Time!HHG$11","v":0},{"$f":"Time!HHH$11","v":0},{"$f":"Time!HHI$11","v":0},{"$f":"Time!HHJ$11","v":0},{"$f":"Time!HHK$11","v":0},{"$f":"Time!HHL$11","v":0},{"$f":"Time!HHM$11","v":0},{"$f":"Time!HHN$11","v":0},{"$f":"Time!HHO$11","v":0},{"$f":"Time!HHP$11","v":0},{"$f":"Time!HHQ$11","v":0},{"$f":"Time!HHR$11","v":0},{"$f":"Time!HHS$11","v":0},{"$f":"Time!HHT$11","v":0},{"$f":"Time!HHU$11","v":0},{"$f":"Time!HHV$11","v":0},{"$f":"Time!HHW$11","v":0},{"$f":"Time!HHX$11","v":0},{"$f":"Time!HHY$11","v":0},{"$f":"Time!HHZ$11","v":0},{"$f":"Time!HIA$11","v":0},{"$f":"Time!HIB$11","v":0},{"$f":"Time!HIC$11","v":0},{"$f":"Time!HID$11","v":0},{"$f":"Time!HIE$11","v":0},{"$f":"Time!HIF$11","v":0},{"$f":"Time!HIG$11","v":0},{"$f":"Time!HIH$11","v":0},{"$f":"Time!HII$11","v":0},{"$f":"Time!HIJ$11","v":0},{"$f":"Time!HIK$11","v":0},{"$f":"Time!HIL$11","v":0},{"$f":"Time!HIM$11","v":0},{"$f":"Time!HIN$11","v":0},{"$f":"Time!HIO$11","v":0},{"$f":"Time!HIP$11","v":0},{"$f":"Time!HIQ$11","v":0},{"$f":"Time!HIR$11","v":0},{"$f":"Time!HIS$11","v":0},{"$f":"Time!HIT$11","v":0},{"$f":"Time!HIU$11","v":0},{"$f":"Time!HIV$11","v":0},{"$f":"Time!HIW$11","v":0},{"$f":"Time!HIX$11","v":0},{"$f":"Time!HIY$11","v":0},{"$f":"Time!HIZ$11","v":0},{"$f":"Time!HJA$11","v":0},{"$f":"Time!HJB$11","v":0},{"$f":"Time!HJC$11","v":0},{"$f":"Time!HJD$11","v":0},{"$f":"Time!HJE$11","v":0},{"$f":"Time!HJF$11","v":0},{"$f":"Time!HJG$11","v":0},{"$f":"Time!HJH$11","v":0},{"$f":"Time!HJI$11","v":0},{"$f":"Time!HJJ$11","v":0},{"$f":"Time!HJK$11","v":0},{"$f":"Time!HJL$11","v":0},{"$f":"Time!HJM$11","v":0},{"$f":"Time!HJN$11","v":0},{"$f":"Time!HJO$11","v":0},{"$f":"Time!HJP$11","v":0},{"$f":"Time!HJQ$11","v":0},{"$f":"Time!HJR$11","v":0},{"$f":"Time!HJS$11","v":0},{"$f":"Time!HJT$11","v":0},{"$f":"Time!HJU$11","v":0},{"$f":"Time!HJV$11","v":0},{"$f":"Time!HJW$11","v":0},{"$f":"Time!HJX$11","v":0},{"$f":"Time!HJY$11","v":0},{"$f":"Time!HJZ$11","v":0},{"$f":"Time!HKA$11","v":0},{"$f":"Time!HKB$11","v":0},{"$f":"Time!HKC$11","v":0},{"$f":"Time!HKD$11","v":0},{"$f":"Time!HKE$11","v":0},{"$f":"Time!HKF$11","v":0},{"$f":"Time!HKG$11","v":0},{"$f":"Time!HKH$11","v":0},{"$f":"Time!HKI$11","v":0},{"$f":"Time!HKJ$11","v":0},{"$f":"Time!HKK$11","v":0},{"$f":"Time!HKL$11","v":0},{"$f":"Time!HKM$11","v":0},{"$f":"Time!HKN$11","v":0},{"$f":"Time!HKO$11","v":0},{"$f":"Time!HKP$11","v":0},{"$f":"Time!HKQ$11","v":0},{"$f":"Time!HKR$11","v":0},{"$f":"Time!HKS$11","v":0},{"$f":"Time!HKT$11","v":0},{"$f":"Time!HKU$11","v":0},{"$f":"Time!HKV$11","v":0},{"$f":"Time!HKW$11","v":0},{"$f":"Time!HKX$11","v":0},{"$f":"Time!HKY$11","v":0},{"$f":"Time!HKZ$11","v":0},{"$f":"Time!HLA$11","v":0},{"$f":"Time!HLB$11","v":0},{"$f":"Time!HLC$11","v":0},{"$f":"Time!HLD$11","v":0},{"$f":"Time!HLE$11","v":0},{"$f":"Time!HLF$11","v":0},{"$f":"Time!HLG$11","v":0},{"$f":"Time!HLH$11","v":0},{"$f":"Time!HLI$11","v":0},{"$f":"Time!HLJ$11","v":0},{"$f":"Time!HLK$11","v":0},{"$f":"Time!HLL$11","v":0},{"$f":"Time!HLM$11","v":0},{"$f":"Time!HLN$11","v":0},{"$f":"Time!HLO$11","v":0},{"$f":"Time!HLP$11","v":0},{"$f":"Time!HLQ$11","v":0},{"$f":"Time!HLR$11","v":0},{"$f":"Time!HLS$11","v":0},{"$f":"Time!HLT$11","v":0},{"$f":"Time!HLU$11","v":0},{"$f":"Time!HLV$11","v":0},{"$f":"Time!HLW$11","v":0},{"$f":"Time!HLX$11","v":0},{"$f":"Time!HLY$11","v":0},{"$f":"Time!HLZ$11","v":0},{"$f":"Time!HMA$11","v":0},{"$f":"Time!HMB$11","v":0},{"$f":"Time!HMC$11","v":0},{"$f":"Time!HMD$11","v":0},{"$f":"Time!HME$11","v":0},{"$f":"Time!HMF$11","v":0},{"$f":"Time!HMG$11","v":0},{"$f":"Time!HMH$11","v":0},{"$f":"Time!HMI$11","v":0},{"$f":"Time!HMJ$11","v":0},{"$f":"Time!HMK$11","v":0},{"$f":"Time!HML$11","v":0},{"$f":"Time!HMM$11","v":0},{"$f":"Time!HMN$11","v":0},{"$f":"Time!HMO$11","v":0},{"$f":"Time!HMP$11","v":0},{"$f":"Time!HMQ$11","v":0},{"$f":"Time!HMR$11","v":0},{"$f":"Time!HMS$11","v":0},{"$f":"Time!HMT$11","v":0},{"$f":"Time!HMU$11","v":0},{"$f":"Time!HMV$11","v":0},{"$f":"Time!HMW$11","v":0},{"$f":"Time!HMX$11","v":0},{"$f":"Time!HMY$11","v":0},{"$f":"Time!HMZ$11","v":0},{"$f":"Time!HNA$11","v":0},{"$f":"Time!HNB$11","v":0},{"$f":"Time!HNC$11","v":0},{"$f":"Time!HND$11","v":0},{"$f":"Time!HNE$11","v":0},{"$f":"Time!HNF$11","v":0},{"$f":"Time!HNG$11","v":0},{"$f":"Time!HNH$11","v":0},{"$f":"Time!HNI$11","v":0},{"$f":"Time!HNJ$11","v":0},{"$f":"Time!HNK$11","v":0},{"$f":"Time!HNL$11","v":0},{"$f":"Time!HNM$11","v":0},{"$f":"Time!HNN$11","v":0},{"$f":"Time!HNO$11","v":0},{"$f":"Time!HNP$11","v":0},{"$f":"Time!HNQ$11","v":0},{"$f":"Time!HNR$11","v":0},{"$f":"Time!HNS$11","v":0},{"$f":"Time!HNT$11","v":0},{"$f":"Time!HNU$11","v":0},{"$f":"Time!HNV$11","v":0},{"$f":"Time!HNW$11","v":0},{"$f":"Time!HNX$11","v":0},{"$f":"Time!HNY$11","v":0},{"$f":"Time!HNZ$11","v":0},{"$f":"Time!HOA$11","v":0},{"$f":"Time!HOB$11","v":0},{"$f":"Time!HOC$11","v":0},{"$f":"Time!HOD$11","v":0},{"$f":"Time!HOE$11","v":0},{"$f":"Time!HOF$11","v":0},{"$f":"Time!HOG$11","v":0},{"$f":"Time!HOH$11","v":0},{"$f":"Time!HOI$11","v":0},{"$f":"Time!HOJ$11","v":0},{"$f":"Time!HOK$11","v":0},{"$f":"Time!HOL$11","v":0},{"$f":"Time!HOM$11","v":0},{"$f":"Time!HON$11","v":0},{"$f":"Time!HOO$11","v":0},{"$f":"Time!HOP$11","v":0},{"$f":"Time!HOQ$11","v":0},{"$f":"Time!HOR$11","v":0},{"$f":"Time!HOS$11","v":0},{"$f":"Time!HOT$11","v":0},{"$f":"Time!HOU$11","v":0},{"$f":"Time!HOV$11","v":0},{"$f":"Time!HOW$11","v":0},{"$f":"Time!HOX$11","v":0},{"$f":"Time!HOY$11","v":0},{"$f":"Time!HOZ$11","v":0},{"$f":"Time!HPA$11","v":0},{"$f":"Time!HPB$11","v":0},{"$f":"Time!HPC$11","v":0},{"$f":"Time!HPD$11","v":0},{"$f":"Time!HPE$11","v":0},{"$f":"Time!HPF$11","v":0},{"$f":"Time!HPG$11","v":0},{"$f":"Time!HPH$11","v":0},{"$f":"Time!HPI$11","v":0},{"$f":"Time!HPJ$11","v":0},{"$f":"Time!HPK$11","v":0},{"$f":"Time!HPL$11","v":0},{"$f":"Time!HPM$11","v":0},{"$f":"Time!HPN$11","v":0},{"$f":"Time!HPO$11","v":0},{"$f":"Time!HPP$11","v":0},{"$f":"Time!HPQ$11","v":0},{"$f":"Time!HPR$11","v":0},{"$f":"Time!HPS$11","v":0},{"$f":"Time!HPT$11","v":0},{"$f":"Time!HPU$11","v":0},{"$f":"Time!HPV$11","v":0},{"$f":"Time!HPW$11","v":0},{"$f":"Time!HPX$11","v":0},{"$f":"Time!HPY$11","v":0},{"$f":"Time!HPZ$11","v":0},{"$f":"Time!HQA$11","v":0},{"$f":"Time!HQB$11","v":0},{"$f":"Time!HQC$11","v":0},{"$f":"Time!HQD$11","v":0},{"$f":"Time!HQE$11","v":0},{"$f":"Time!HQF$11","v":0},{"$f":"Time!HQG$11","v":0},{"$f":"Time!HQH$11","v":0},{"$f":"Time!HQI$11","v":0},{"$f":"Time!HQJ$11","v":0},{"$f":"Time!HQK$11","v":0},{"$f":"Time!HQL$11","v":0},{"$f":"Time!HQM$11","v":0},{"$f":"Time!HQN$11","v":0},{"$f":"Time!HQO$11","v":0},{"$f":"Time!HQP$11","v":0},{"$f":"Time!HQQ$11","v":0},{"$f":"Time!HQR$11","v":0},{"$f":"Time!HQS$11","v":0},{"$f":"Time!HQT$11","v":0},{"$f":"Time!HQU$11","v":0},{"$f":"Time!HQV$11","v":0},{"$f":"Time!HQW$11","v":0},{"$f":"Time!HQX$11","v":0},{"$f":"Time!HQY$11","v":0},{"$f":"Time!HQZ$11","v":0},{"$f":"Time!HRA$11","v":0},{"$f":"Time!HRB$11","v":0},{"$f":"Time!HRC$11","v":0},{"$f":"Time!HRD$11","v":0},{"$f":"Time!HRE$11","v":0},{"$f":"Time!HRF$11","v":0},{"$f":"Time!HRG$11","v":0},{"$f":"Time!HRH$11","v":0},{"$f":"Time!HRI$11","v":0},{"$f":"Time!HRJ$11","v":0},{"$f":"Time!HRK$11","v":0},{"$f":"Time!HRL$11","v":0},{"$f":"Time!HRM$11","v":0},{"$f":"Time!HRN$11","v":0},{"$f":"Time!HRO$11","v":0},{"$f":"Time!HRP$11","v":0},{"$f":"Time!HRQ$11","v":0},{"$f":"Time!HRR$11","v":0},{"$f":"Time!HRS$11","v":0},{"$f":"Time!HRT$11","v":0},{"$f":"Time!HRU$11","v":0},{"$f":"Time!HRV$11","v":0},{"$f":"Time!HRW$11","v":0},{"$f":"Time!HRX$11","v":0},{"$f":"Time!HRY$11","v":0},{"$f":"Time!HRZ$11","v":0},{"$f":"Time!HSA$11","v":0},{"$f":"Time!HSB$11","v":0},{"$f":"Time!HSC$11","v":0},{"$f":"Time!HSD$11","v":0},{"$f":"Time!HSE$11","v":0},{"$f":"Time!HSF$11","v":0},{"$f":"Time!HSG$11","v":0},{"$f":"Time!HSH$11","v":0},{"$f":"Time!HSI$11","v":0},{"$f":"Time!HSJ$11","v":0},{"$f":"Time!HSK$11","v":0},{"$f":"Time!HSL$11","v":0},{"$f":"Time!HSM$11","v":0},{"$f":"Time!HSN$11","v":0},{"$f":"Time!HSO$11","v":0},{"$f":"Time!HSP$11","v":0},{"$f":"Time!HSQ$11","v":0},{"$f":"Time!HSR$11","v":0},{"$f":"Time!HSS$11","v":0},{"$f":"Time!HST$11","v":0},{"$f":"Time!HSU$11","v":0},{"$f":"Time!HSV$11","v":0},{"$f":"Time!HSW$11","v":0},{"$f":"Time!HSX$11","v":0},{"$f":"Time!HSY$11","v":0},{"$f":"Time!HSZ$11","v":0},{"$f":"Time!HTA$11","v":0},{"$f":"Time!HTB$11","v":0},{"$f":"Time!HTC$11","v":0},{"$f":"Time!HTD$11","v":0},{"$f":"Time!HTE$11","v":0},{"$f":"Time!HTF$11","v":0},{"$f":"Time!HTG$11","v":0},{"$f":"Time!HTH$11","v":0},{"$f":"Time!HTI$11","v":0},{"$f":"Time!HTJ$11","v":0},{"$f":"Time!HTK$11","v":0},{"$f":"Time!HTL$11","v":0},{"$f":"Time!HTM$11","v":0},{"$f":"Time!HTN$11","v":0},{"$f":"Time!HTO$11","v":0},{"$f":"Time!HTP$11","v":0},{"$f":"Time!HTQ$11","v":0},{"$f":"Time!HTR$11","v":0},{"$f":"Time!HTS$11","v":0},{"$f":"Time!HTT$11","v":0},{"$f":"Time!HTU$11","v":0},{"$f":"Time!HTV$11","v":0},{"$f":"Time!HTW$11","v":0},{"$f":"Time!HTX$11","v":0},{"$f":"Time!HTY$11","v":0},{"$f":"Time!HTZ$11","v":0},{"$f":"Time!HUA$11","v":0},{"$f":"Time!HUB$11","v":0},{"$f":"Time!HUC$11","v":0},{"$f":"Time!HUD$11","v":0},{"$f":"Time!HUE$11","v":0},{"$f":"Time!HUF$11","v":0},{"$f":"Time!HUG$11","v":0},{"$f":"Time!HUH$11","v":0},{"$f":"Time!HUI$11","v":0},{"$f":"Time!HUJ$11","v":0},{"$f":"Time!HUK$11","v":0},{"$f":"Time!HUL$11","v":0},{"$f":"Time!HUM$11","v":0},{"$f":"Time!HUN$11","v":0},{"$f":"Time!HUO$11","v":0},{"$f":"Time!HUP$11","v":0},{"$f":"Time!HUQ$11","v":0},{"$f":"Time!HUR$11","v":0},{"$f":"Time!HUS$11","v":0},{"$f":"Time!HUT$11","v":0},{"$f":"Time!HUU$11","v":0},{"$f":"Time!HUV$11","v":0},{"$f":"Time!HUW$11","v":0},{"$f":"Time!HUX$11","v":0},{"$f":"Time!HUY$11","v":0},{"$f":"Time!HUZ$11","v":0},{"$f":"Time!HVA$11","v":0},{"$f":"Time!HVB$11","v":0},{"$f":"Time!HVC$11","v":0},{"$f":"Time!HVD$11","v":0},{"$f":"Time!HVE$11","v":0},{"$f":"Time!HVF$11","v":0},{"$f":"Time!HVG$11","v":0},{"$f":"Time!HVH$11","v":0},{"$f":"Time!HVI$11","v":0},{"$f":"Time!HVJ$11","v":0},{"$f":"Time!HVK$11","v":0},{"$f":"Time!HVL$11","v":0},{"$f":"Time!HVM$11","v":0},{"$f":"Time!HVN$11","v":0},{"$f":"Time!HVO$11","v":0},{"$f":"Time!HVP$11","v":0},{"$f":"Time!HVQ$11","v":0},{"$f":"Time!HVR$11","v":0},{"$f":"Time!HVS$11","v":0},{"$f":"Time!HVT$11","v":0},{"$f":"Time!HVU$11","v":0},{"$f":"Time!HVV$11","v":0},{"$f":"Time!HVW$11","v":0},{"$f":"Time!HVX$11","v":0},{"$f":"Time!HVY$11","v":0},{"$f":"Time!HVZ$11","v":0},{"$f":"Time!HWA$11","v":0},{"$f":"Time!HWB$11","v":0},{"$f":"Time!HWC$11","v":0},{"$f":"Time!HWD$11","v":0},{"$f":"Time!HWE$11","v":0},{"$f":"Time!HWF$11","v":0},{"$f":"Time!HWG$11","v":0},{"$f":"Time!HWH$11","v":0},{"$f":"Time!HWI$11","v":0},{"$f":"Time!HWJ$11","v":0},{"$f":"Time!HWK$11","v":0},{"$f":"Time!HWL$11","v":0},{"$f":"Time!HWM$11","v":0},{"$f":"Time!HWN$11","v":0},{"$f":"Time!HWO$11","v":0},{"$f":"Time!HWP$11","v":0},{"$f":"Time!HWQ$11","v":0},{"$f":"Time!HWR$11","v":0},{"$f":"Time!HWS$11","v":0},{"$f":"Time!HWT$11","v":0},{"$f":"Time!HWU$11","v":0},{"$f":"Time!HWV$11","v":0},{"$f":"Time!HWW$11","v":0},{"$f":"Time!HWX$11","v":0},{"$f":"Time!HWY$11","v":0},{"$f":"Time!HWZ$11","v":0},{"$f":"Time!HXA$11","v":0},{"$f":"Time!HXB$11","v":0},{"$f":"Time!HXC$11","v":0},{"$f":"Time!HXD$11","v":0},{"$f":"Time!HXE$11","v":0},{"$f":"Time!HXF$11","v":0},{"$f":"Time!HXG$11","v":0},{"$f":"Time!HXH$11","v":0},{"$f":"Time!HXI$11","v":0},{"$f":"Time!HXJ$11","v":0},{"$f":"Time!HXK$11","v":0},{"$f":"Time!HXL$11","v":0},{"$f":"Time!HXM$11","v":0},{"$f":"Time!HXN$11","v":0},{"$f":"Time!HXO$11","v":0},{"$f":"Time!HXP$11","v":0},{"$f":"Time!HXQ$11","v":0},{"$f":"Time!HXR$11","v":0},{"$f":"Time!HXS$11","v":0},{"$f":"Time!HXT$11","v":0},{"$f":"Time!HXU$11","v":0},{"$f":"Time!HXV$11","v":0},{"$f":"Time!HXW$11","v":0},{"$f":"Time!HXX$11","v":0},{"$f":"Time!HXY$11","v":0},{"$f":"Time!HXZ$11","v":0},{"$f":"Time!HYA$11","v":0},{"$f":"Time!HYB$11","v":0},{"$f":"Time!HYC$11","v":0},{"$f":"Time!HYD$11","v":0},{"$f":"Time!HYE$11","v":0},{"$f":"Time!HYF$11","v":0},{"$f":"Time!HYG$11","v":0},{"$f":"Time!HYH$11","v":0},{"$f":"Time!HYI$11","v":0},{"$f":"Time!HYJ$11","v":0},{"$f":"Time!HYK$11","v":0},{"$f":"Time!HYL$11","v":0},{"$f":"Time!HYM$11","v":0},{"$f":"Time!HYN$11","v":0},{"$f":"Time!HYO$11","v":0},{"$f":"Time!HYP$11","v":0},{"$f":"Time!HYQ$11","v":0},{"$f":"Time!HYR$11","v":0},{"$f":"Time!HYS$11","v":0},{"$f":"Time!HYT$11","v":0},{"$f":"Time!HYU$11","v":0},{"$f":"Time!HYV$11","v":0},{"$f":"Time!HYW$11","v":0},{"$f":"Time!HYX$11","v":0},{"$f":"Time!HYY$11","v":0},{"$f":"Time!HYZ$11","v":0},{"$f":"Time!HZA$11","v":0},{"$f":"Time!HZB$11","v":0},{"$f":"Time!HZC$11","v":0},{"$f":"Time!HZD$11","v":0},{"$f":"Time!HZE$11","v":0},{"$f":"Time!HZF$11","v":0},{"$f":"Time!HZG$11","v":0},{"$f":"Time!HZH$11","v":0},{"$f":"Time!HZI$11","v":0},{"$f":"Time!HZJ$11","v":0},{"$f":"Time!HZK$11","v":0},{"$f":"Time!HZL$11","v":0},{"$f":"Time!HZM$11","v":0},{"$f":"Time!HZN$11","v":0},{"$f":"Time!HZO$11","v":0},{"$f":"Time!HZP$11","v":0},{"$f":"Time!HZQ$11","v":0},{"$f":"Time!HZR$11","v":0},{"$f":"Time!HZS$11","v":0},{"$f":"Time!HZT$11","v":0},{"$f":"Time!HZU$11","v":0},{"$f":"Time!HZV$11","v":0},{"$f":"Time!HZW$11","v":0},{"$f":"Time!HZX$11","v":0},{"$f":"Time!HZY$11","v":0},{"$f":"Time!HZZ$11","v":0},{"$f":"Time!IAA$11","v":0},{"$f":"Time!IAB$11","v":0},{"$f":"Time!IAC$11","v":0},{"$f":"Time!IAD$11","v":0},{"$f":"Time!IAE$11","v":0},{"$f":"Time!IAF$11","v":0},{"$f":"Time!IAG$11","v":0},{"$f":"Time!IAH$11","v":0},{"$f":"Time!IAI$11","v":0},{"$f":"Time!IAJ$11","v":0},{"$f":"Time!IAK$11","v":0},{"$f":"Time!IAL$11","v":0},{"$f":"Time!IAM$11","v":0},{"$f":"Time!IAN$11","v":0},{"$f":"Time!IAO$11","v":0},{"$f":"Time!IAP$11","v":0},{"$f":"Time!IAQ$11","v":0},{"$f":"Time!IAR$11","v":0},{"$f":"Time!IAS$11","v":0},{"$f":"Time!IAT$11","v":0},{"$f":"Time!IAU$11","v":0},{"$f":"Time!IAV$11","v":0},{"$f":"Time!IAW$11","v":0},{"$f":"Time!IAX$11","v":0},{"$f":"Time!IAY$11","v":0},{"$f":"Time!IAZ$11","v":0},{"$f":"Time!IBA$11","v":0},{"$f":"Time!IBB$11","v":0},{"$f":"Time!IBC$11","v":0},{"$f":"Time!IBD$11","v":0},{"$f":"Time!IBE$11","v":0},{"$f":"Time!IBF$11","v":0},{"$f":"Time!IBG$11","v":0},{"$f":"Time!IBH$11","v":0},{"$f":"Time!IBI$11","v":0},{"$f":"Time!IBJ$11","v":0},{"$f":"Time!IBK$11","v":0},{"$f":"Time!IBL$11","v":0},{"$f":"Time!IBM$11","v":0},{"$f":"Time!IBN$11","v":0},{"$f":"Time!IBO$11","v":0},{"$f":"Time!IBP$11","v":0},{"$f":"Time!IBQ$11","v":0},{"$f":"Time!IBR$11","v":0},{"$f":"Time!IBS$11","v":0},{"$f":"Time!IBT$11","v":0},{"$f":"Time!IBU$11","v":0},{"$f":"Time!IBV$11","v":0},{"$f":"Time!IBW$11","v":0},{"$f":"Time!IBX$11","v":0},{"$f":"Time!IBY$11","v":0},{"$f":"Time!IBZ$11","v":0},{"$f":"Time!ICA$11","v":0},{"$f":"Time!ICB$11","v":0},{"$f":"Time!ICC$11","v":0},{"$f":"Time!ICD$11","v":0},{"$f":"Time!ICE$11","v":0},{"$f":"Time!ICF$11","v":0},{"$f":"Time!ICG$11","v":0},{"$f":"Time!ICH$11","v":0},{"$f":"Time!ICI$11","v":0},{"$f":"Time!ICJ$11","v":0},{"$f":"Time!ICK$11","v":0},{"$f":"Time!ICL$11","v":0},{"$f":"Time!ICM$11","v":0},{"$f":"Time!ICN$11","v":0},{"$f":"Time!ICO$11","v":0},{"$f":"Time!ICP$11","v":0},{"$f":"Time!ICQ$11","v":0},{"$f":"Time!ICR$11","v":0},{"$f":"Time!ICS$11","v":0},{"$f":"Time!ICT$11","v":0},{"$f":"Time!ICU$11","v":0},{"$f":"Time!ICV$11","v":0},{"$f":"Time!ICW$11","v":0},{"$f":"Time!ICX$11","v":0},{"$f":"Time!ICY$11","v":0},{"$f":"Time!ICZ$11","v":0},{"$f":"Time!IDA$11","v":0},{"$f":"Time!IDB$11","v":0},{"$f":"Time!IDC$11","v":0},{"$f":"Time!IDD$11","v":0},{"$f":"Time!IDE$11","v":0},{"$f":"Time!IDF$11","v":0},{"$f":"Time!IDG$11","v":0},{"$f":"Time!IDH$11","v":0},{"$f":"Time!IDI$11","v":0},{"$f":"Time!IDJ$11","v":0},{"$f":"Time!IDK$11","v":0},{"$f":"Time!IDL$11","v":0},{"$f":"Time!IDM$11","v":0},{"$f":"Time!IDN$11","v":0},{"$f":"Time!IDO$11","v":0},{"$f":"Time!IDP$11","v":0},{"$f":"Time!IDQ$11","v":0},{"$f":"Time!IDR$11","v":0},{"$f":"Time!IDS$11","v":0},{"$f":"Time!IDT$11","v":0},{"$f":"Time!IDU$11","v":0},{"$f":"Time!IDV$11","v":0},{"$f":"Time!IDW$11","v":0},{"$f":"Time!IDX$11","v":0},{"$f":"Time!IDY$11","v":0},{"$f":"Time!IDZ$11","v":0},{"$f":"Time!IEA$11","v":0},{"$f":"Time!IEB$11","v":0},{"$f":"Time!IEC$11","v":0},{"$f":"Time!IED$11","v":0},{"$f":"Time!IEE$11","v":0},{"$f":"Time!IEF$11","v":0},{"$f":"Time!IEG$11","v":0},{"$f":"Time!IEH$11","v":0},{"$f":"Time!IEI$11","v":0},{"$f":"Time!IEJ$11","v":0},{"$f":"Time!IEK$11","v":0},{"$f":"Time!IEL$11","v":0},{"$f":"Time!IEM$11","v":0},{"$f":"Time!IEN$11","v":0},{"$f":"Time!IEO$11","v":0},{"$f":"Time!IEP$11","v":0},{"$f":"Time!IEQ$11","v":0},{"$f":"Time!IER$11","v":0},{"$f":"Time!IES$11","v":0},{"$f":"Time!IET$11","v":0},{"$f":"Time!IEU$11","v":0},{"$f":"Time!IEV$11","v":0},{"$f":"Time!IEW$11","v":0},{"$f":"Time!IEX$11","v":0},{"$f":"Time!IEY$11","v":0},{"$f":"Time!IEZ$11","v":0},{"$f":"Time!IFA$11","v":0},{"$f":"Time!IFB$11","v":0},{"$f":"Time!IFC$11","v":0},{"$f":"Time!IFD$11","v":0},{"$f":"Time!IFE$11","v":0},{"$f":"Time!IFF$11","v":0},{"$f":"Time!IFG$11","v":0},{"$f":"Time!IFH$11","v":0},{"$f":"Time!IFI$11","v":0},{"$f":"Time!IFJ$11","v":0},{"$f":"Time!IFK$11","v":0},{"$f":"Time!IFL$11","v":0},{"$f":"Time!IFM$11","v":0},{"$f":"Time!IFN$11","v":0},{"$f":"Time!IFO$11","v":0},{"$f":"Time!IFP$11","v":0},{"$f":"Time!IFQ$11","v":0},{"$f":"Time!IFR$11","v":0},{"$f":"Time!IFS$11","v":0},{"$f":"Time!IFT$11","v":0},{"$f":"Time!IFU$11","v":0},{"$f":"Time!IFV$11","v":0},{"$f":"Time!IFW$11","v":0},{"$f":"Time!IFX$11","v":0},{"$f":"Time!IFY$11","v":0},{"$f":"Time!IFZ$11","v":0},{"$f":"Time!IGA$11","v":0},{"$f":"Time!IGB$11","v":0},{"$f":"Time!IGC$11","v":0},{"$f":"Time!IGD$11","v":0},{"$f":"Time!IGE$11","v":0},{"$f":"Time!IGF$11","v":0},{"$f":"Time!IGG$11","v":0},{"$f":"Time!IGH$11","v":0},{"$f":"Time!IGI$11","v":0},{"$f":"Time!IGJ$11","v":0},{"$f":"Time!IGK$11","v":0},{"$f":"Time!IGL$11","v":0},{"$f":"Time!IGM$11","v":0},{"$f":"Time!IGN$11","v":0},{"$f":"Time!IGO$11","v":0},{"$f":"Time!IGP$11","v":0},{"$f":"Time!IGQ$11","v":0},{"$f":"Time!IGR$11","v":0},{"$f":"Time!IGS$11","v":0},{"$f":"Time!IGT$11","v":0},{"$f":"Time!IGU$11","v":0},{"$f":"Time!IGV$11","v":0},{"$f":"Time!IGW$11","v":0},{"$f":"Time!IGX$11","v":0},{"$f":"Time!IGY$11","v":0},{"$f":"Time!IGZ$11","v":0},{"$f":"Time!IHA$11","v":0},{"$f":"Time!IHB$11","v":0},{"$f":"Time!IHC$11","v":0},{"$f":"Time!IHD$11","v":0},{"$f":"Time!IHE$11","v":0},{"$f":"Time!IHF$11","v":0},{"$f":"Time!IHG$11","v":0},{"$f":"Time!IHH$11","v":0},{"$f":"Time!IHI$11","v":0},{"$f":"Time!IHJ$11","v":0},{"$f":"Time!IHK$11","v":0},{"$f":"Time!IHL$11","v":0},{"$f":"Time!IHM$11","v":0},{"$f":"Time!IHN$11","v":0},{"$f":"Time!IHO$11","v":0},{"$f":"Time!IHP$11","v":0},{"$f":"Time!IHQ$11","v":0},{"$f":"Time!IHR$11","v":0},{"$f":"Time!IHS$11","v":0},{"$f":"Time!IHT$11","v":0},{"$f":"Time!IHU$11","v":0},{"$f":"Time!IHV$11","v":0},{"$f":"Time!IHW$11","v":0},{"$f":"Time!IHX$11","v":0},{"$f":"Time!IHY$11","v":0},{"$f":"Time!IHZ$11","v":0},{"$f":"Time!IIA$11","v":0},{"$f":"Time!IIB$11","v":0},{"$f":"Time!IIC$11","v":0},{"$f":"Time!IID$11","v":0},{"$f":"Time!IIE$11","v":0},{"$f":"Time!IIF$11","v":0},{"$f":"Time!IIG$11","v":0},{"$f":"Time!IIH$11","v":0},{"$f":"Time!III$11","v":0},{"$f":"Time!IIJ$11","v":0},{"$f":"Time!IIK$11","v":0},{"$f":"Time!IIL$11","v":0},{"$f":"Time!IIM$11","v":0},{"$f":"Time!IIN$11","v":0},{"$f":"Time!IIO$11","v":0},{"$f":"Time!IIP$11","v":0},{"$f":"Time!IIQ$11","v":0},{"$f":"Time!IIR$11","v":0},{"$f":"Time!IIS$11","v":0},{"$f":"Time!IIT$11","v":0},{"$f":"Time!IIU$11","v":0},{"$f":"Time!IIV$11","v":0},{"$f":"Time!IIW$11","v":0},{"$f":"Time!IIX$11","v":0},{"$f":"Time!IIY$11","v":0},{"$f":"Time!IIZ$11","v":0},{"$f":"Time!IJA$11","v":0},{"$f":"Time!IJB$11","v":0},{"$f":"Time!IJC$11","v":0},{"$f":"Time!IJD$11","v":0},{"$f":"Time!IJE$11","v":0},{"$f":"Time!IJF$11","v":0},{"$f":"Time!IJG$11","v":0},{"$f":"Time!IJH$11","v":0},{"$f":"Time!IJI$11","v":0},{"$f":"Time!IJJ$11","v":0},{"$f":"Time!IJK$11","v":0},{"$f":"Time!IJL$11","v":0},{"$f":"Time!IJM$11","v":0},{"$f":"Time!IJN$11","v":0},{"$f":"Time!IJO$11","v":0},{"$f":"Time!IJP$11","v":0},{"$f":"Time!IJQ$11","v":0},{"$f":"Time!IJR$11","v":0},{"$f":"Time!IJS$11","v":0},{"$f":"Time!IJT$11","v":0},{"$f":"Time!IJU$11","v":0},{"$f":"Time!IJV$11","v":0},{"$f":"Time!IJW$11","v":0},{"$f":"Time!IJX$11","v":0},{"$f":"Time!IJY$11","v":0},{"$f":"Time!IJZ$11","v":0},{"$f":"Time!IKA$11","v":0},{"$f":"Time!IKB$11","v":0},{"$f":"Time!IKC$11","v":0},{"$f":"Time!IKD$11","v":0},{"$f":"Time!IKE$11","v":0},{"$f":"Time!IKF$11","v":0},{"$f":"Time!IKG$11","v":0},{"$f":"Time!IKH$11","v":0},{"$f":"Time!IKI$11","v":0},{"$f":"Time!IKJ$11","v":0},{"$f":"Time!IKK$11","v":0},{"$f":"Time!IKL$11","v":0},{"$f":"Time!IKM$11","v":0},{"$f":"Time!IKN$11","v":0},{"$f":"Time!IKO$11","v":0},{"$f":"Time!IKP$11","v":0},{"$f":"Time!IKQ$11","v":0},{"$f":"Time!IKR$11","v":0},{"$f":"Time!IKS$11","v":0},{"$f":"Time!IKT$11","v":0},{"$f":"Time!IKU$11","v":0},{"$f":"Time!IKV$11","v":0},{"$f":"Time!IKW$11","v":0},{"$f":"Time!IKX$11","v":0},{"$f":"Time!IKY$11","v":0},{"$f":"Time!IKZ$11","v":0},{"$f":"Time!ILA$11","v":0},{"$f":"Time!ILB$11","v":0},{"$f":"Time!ILC$11","v":0},{"$f":"Time!ILD$11","v":0},{"$f":"Time!ILE$11","v":0},{"$f":"Time!ILF$11","v":0},{"$f":"Time!ILG$11","v":0},{"$f":"Time!ILH$11","v":0},{"$f":"Time!ILI$11","v":0},{"$f":"Time!ILJ$11","v":0},{"$f":"Time!ILK$11","v":0},{"$f":"Time!ILL$11","v":0},{"$f":"Time!ILM$11","v":0},{"$f":"Time!ILN$11","v":0},{"$f":"Time!ILO$11","v":0},{"$f":"Time!ILP$11","v":0},{"$f":"Time!ILQ$11","v":0},{"$f":"Time!ILR$11","v":0},{"$f":"Time!ILS$11","v":0},{"$f":"Time!ILT$11","v":0},{"$f":"Time!ILU$11","v":0},{"$f":"Time!ILV$11","v":0},{"$f":"Time!ILW$11","v":0},{"$f":"Time!ILX$11","v":0},{"$f":"Time!ILY$11","v":0},{"$f":"Time!ILZ$11","v":0},{"$f":"Time!IMA$11","v":0},{"$f":"Time!IMB$11","v":0},{"$f":"Time!IMC$11","v":0},{"$f":"Time!IMD$11","v":0},{"$f":"Time!IME$11","v":0},{"$f":"Time!IMF$11","v":0},{"$f":"Time!IMG$11","v":0},{"$f":"Time!IMH$11","v":0},{"$f":"Time!IMI$11","v":0},{"$f":"Time!IMJ$11","v":0},{"$f":"Time!IMK$11","v":0},{"$f":"Time!IML$11","v":0},{"$f":"Time!IMM$11","v":0},{"$f":"Time!IMN$11","v":0},{"$f":"Time!IMO$11","v":0},{"$f":"Time!IMP$11","v":0},{"$f":"Time!IMQ$11","v":0},{"$f":"Time!IMR$11","v":0},{"$f":"Time!IMS$11","v":0},{"$f":"Time!IMT$11","v":0},{"$f":"Time!IMU$11","v":0},{"$f":"Time!IMV$11","v":0},{"$f":"Time!IMW$11","v":0},{"$f":"Time!IMX$11","v":0},{"$f":"Time!IMY$11","v":0},{"$f":"Time!IMZ$11","v":0},{"$f":"Time!INA$11","v":0},{"$f":"Time!INB$11","v":0},{"$f":"Time!INC$11","v":0},{"$f":"Time!IND$11","v":0},{"$f":"Time!INE$11","v":0},{"$f":"Time!INF$11","v":0},{"$f":"Time!ING$11","v":0},{"$f":"Time!INH$11","v":0},{"$f":"Time!INI$11","v":0},{"$f":"Time!INJ$11","v":0},{"$f":"Time!INK$11","v":0},{"$f":"Time!INL$11","v":0},{"$f":"Time!INM$11","v":0},{"$f":"Time!INN$11","v":0},{"$f":"Time!INO$11","v":0},{"$f":"Time!INP$11","v":0},{"$f":"Time!INQ$11","v":0},{"$f":"Time!INR$11","v":0},{"$f":"Time!INS$11","v":0},{"$f":"Time!INT$11","v":0},{"$f":"Time!INU$11","v":0},{"$f":"Time!INV$11","v":0},{"$f":"Time!INW$11","v":0},{"$f":"Time!INX$11","v":0},{"$f":"Time!INY$11","v":0},{"$f":"Time!INZ$11","v":0},{"$f":"Time!IOA$11","v":0},{"$f":"Time!IOB$11","v":0},{"$f":"Time!IOC$11","v":0},{"$f":"Time!IOD$11","v":0},{"$f":"Time!IOE$11","v":0},{"$f":"Time!IOF$11","v":0},{"$f":"Time!IOG$11","v":0},{"$f":"Time!IOH$11","v":0},{"$f":"Time!IOI$11","v":0},{"$f":"Time!IOJ$11","v":0},{"$f":"Time!IOK$11","v":0},{"$f":"Time!IOL$11","v":0},{"$f":"Time!IOM$11","v":0},{"$f":"Time!ION$11","v":0},{"$f":"Time!IOO$11","v":0},{"$f":"Time!IOP$11","v":0},{"$f":"Time!IOQ$11","v":0},{"$f":"Time!IOR$11","v":0},{"$f":"Time!IOS$11","v":0},{"$f":"Time!IOT$11","v":0},{"$f":"Time!IOU$11","v":0},{"$f":"Time!IOV$11","v":0},{"$f":"Time!IOW$11","v":0},{"$f":"Time!IOX$11","v":0},{"$f":"Time!IOY$11","v":0},{"$f":"Time!IOZ$11","v":0},{"$f":"Time!IPA$11","v":0},{"$f":"Time!IPB$11","v":0},{"$f":"Time!IPC$11","v":0},{"$f":"Time!IPD$11","v":0},{"$f":"Time!IPE$11","v":0},{"$f":"Time!IPF$11","v":0},{"$f":"Time!IPG$11","v":0},{"$f":"Time!IPH$11","v":0},{"$f":"Time!IPI$11","v":0},{"$f":"Time!IPJ$11","v":0},{"$f":"Time!IPK$11","v":0},{"$f":"Time!IPL$11","v":0},{"$f":"Time!IPM$11","v":0},{"$f":"Time!IPN$11","v":0},{"$f":"Time!IPO$11","v":0},{"$f":"Time!IPP$11","v":0},{"$f":"Time!IPQ$11","v":0},{"$f":"Time!IPR$11","v":0},{"$f":"Time!IPS$11","v":0},{"$f":"Time!IPT$11","v":0},{"$f":"Time!IPU$11","v":0},{"$f":"Time!IPV$11","v":0},{"$f":"Time!IPW$11","v":0},{"$f":"Time!IPX$11","v":0},{"$f":"Time!IPY$11","v":0},{"$f":"Time!IPZ$11","v":0},{"$f":"Time!IQA$11","v":0},{"$f":"Time!IQB$11","v":0},{"$f":"Time!IQC$11","v":0},{"$f":"Time!IQD$11","v":0},{"$f":"Time!IQE$11","v":0},{"$f":"Time!IQF$11","v":0},{"$f":"Time!IQG$11","v":0},{"$f":"Time!IQH$11","v":0},{"$f":"Time!IQI$11","v":0},{"$f":"Time!IQJ$11","v":0},{"$f":"Time!IQK$11","v":0},{"$f":"Time!IQL$11","v":0},{"$f":"Time!IQM$11","v":0},{"$f":"Time!IQN$11","v":0},{"$f":"Time!IQO$11","v":0},{"$f":"Time!IQP$11","v":0},{"$f":"Time!IQQ$11","v":0},{"$f":"Time!IQR$11","v":0},{"$f":"Time!IQS$11","v":0},{"$f":"Time!IQT$11","v":0},{"$f":"Time!IQU$11","v":0},{"$f":"Time!IQV$11","v":0},{"$f":"Time!IQW$11","v":0},{"$f":"Time!IQX$11","v":0},{"$f":"Time!IQY$11","v":0},{"$f":"Time!IQZ$11","v":0},{"$f":"Time!IRA$11","v":0},{"$f":"Time!IRB$11","v":0},{"$f":"Time!IRC$11","v":0},{"$f":"Time!IRD$11","v":0},{"$f":"Time!IRE$11","v":0},{"$f":"Time!IRF$11","v":0},{"$f":"Time!IRG$11","v":0},{"$f":"Time!IRH$11","v":0},{"$f":"Time!IRI$11","v":0},{"$f":"Time!IRJ$11","v":0},{"$f":"Time!IRK$11","v":0},{"$f":"Time!IRL$11","v":0},{"$f":"Time!IRM$11","v":0},{"$f":"Time!IRN$11","v":0},{"$f":"Time!IRO$11","v":0},{"$f":"Time!IRP$11","v":0},{"$f":"Time!IRQ$11","v":0},{"$f":"Time!IRR$11","v":0},{"$f":"Time!IRS$11","v":0},{"$f":"Time!IRT$11","v":0},{"$f":"Time!IRU$11","v":0},{"$f":"Time!IRV$11","v":0},{"$f":"Time!IRW$11","v":0},{"$f":"Time!IRX$11","v":0},{"$f":"Time!IRY$11","v":0},{"$f":"Time!IRZ$11","v":0},{"$f":"Time!ISA$11","v":0},{"$f":"Time!ISB$11","v":0},{"$f":"Time!ISC$11","v":0},{"$f":"Time!ISD$11","v":0},{"$f":"Time!ISE$11","v":0},{"$f":"Time!ISF$11","v":0},{"$f":"Time!ISG$11","v":0},{"$f":"Time!ISH$11","v":0},{"$f":"Time!ISI$11","v":0},{"$f":"Time!ISJ$11","v":0},{"$f":"Time!ISK$11","v":0},{"$f":"Time!ISL$11","v":0},{"$f":"Time!ISM$11","v":0},{"$f":"Time!ISN$11","v":0},{"$f":"Time!ISO$11","v":0},{"$f":"Time!ISP$11","v":0},{"$f":"Time!ISQ$11","v":0},{"$f":"Time!ISR$11","v":0},{"$f":"Time!ISS$11","v":0},{"$f":"Time!IST$11","v":0},{"$f":"Time!ISU$11","v":0},{"$f":"Time!ISV$11","v":0},{"$f":"Time!ISW$11","v":0},{"$f":"Time!ISX$11","v":0},{"$f":"Time!ISY$11","v":0},{"$f":"Time!ISZ$11","v":0},{"$f":"Time!ITA$11","v":0},{"$f":"Time!ITB$11","v":0},{"$f":"Time!ITC$11","v":0},{"$f":"Time!ITD$11","v":0},{"$f":"Time!ITE$11","v":0},{"$f":"Time!ITF$11","v":0},{"$f":"Time!ITG$11","v":0},{"$f":"Time!ITH$11","v":0},{"$f":"Time!ITI$11","v":0},{"$f":"Time!ITJ$11","v":0},{"$f":"Time!ITK$11","v":0},{"$f":"Time!ITL$11","v":0},{"$f":"Time!ITM$11","v":0},{"$f":"Time!ITN$11","v":0},{"$f":"Time!ITO$11","v":0},{"$f":"Time!ITP$11","v":0},{"$f":"Time!ITQ$11","v":0},{"$f":"Time!ITR$11","v":0},{"$f":"Time!ITS$11","v":0},{"$f":"Time!ITT$11","v":0},{"$f":"Time!ITU$11","v":0},{"$f":"Time!ITV$11","v":0},{"$f":"Time!ITW$11","v":0},{"$f":"Time!ITX$11","v":0},{"$f":"Time!ITY$11","v":0},{"$f":"Time!ITZ$11","v":0},{"$f":"Time!IUA$11","v":0},{"$f":"Time!IUB$11","v":0},{"$f":"Time!IUC$11","v":0},{"$f":"Time!IUD$11","v":0},{"$f":"Time!IUE$11","v":0},{"$f":"Time!IUF$11","v":0},{"$f":"Time!IUG$11","v":0},{"$f":"Time!IUH$11","v":0},{"$f":"Time!IUI$11","v":0},{"$f":"Time!IUJ$11","v":0},{"$f":"Time!IUK$11","v":0},{"$f":"Time!IUL$11","v":0},{"$f":"Time!IUM$11","v":0},{"$f":"Time!IUN$11","v":0},{"$f":"Time!IUO$11","v":0},{"$f":"Time!IUP$11","v":0},{"$f":"Time!IUQ$11","v":0},{"$f":"Time!IUR$11","v":0},{"$f":"Time!IUS$11","v":0},{"$f":"Time!IUT$11","v":0},{"$f":"Time!IUU$11","v":0},{"$f":"Time!IUV$11","v":0},{"$f":"Time!IUW$11","v":0},{"$f":"Time!IUX$11","v":0},{"$f":"Time!IUY$11","v":0},{"$f":"Time!IUZ$11","v":0},{"$f":"Time!IVA$11","v":0},{"$f":"Time!IVB$11","v":0},{"$f":"Time!IVC$11","v":0},{"$f":"Time!IVD$11","v":0},{"$f":"Time!IVE$11","v":0},{"$f":"Time!IVF$11","v":0},{"$f":"Time!IVG$11","v":0},{"$f":"Time!IVH$11","v":0},{"$f":"Time!IVI$11","v":0},{"$f":"Time!IVJ$11","v":0},{"$f":"Time!IVK$11","v":0},{"$f":"Time!IVL$11","v":0},{"$f":"Time!IVM$11","v":0},{"$f":"Time!IVN$11","v":0},{"$f":"Time!IVO$11","v":0},{"$f":"Time!IVP$11","v":0},{"$f":"Time!IVQ$11","v":0},{"$f":"Time!IVR$11","v":0},{"$f":"Time!IVS$11","v":0},{"$f":"Time!IVT$11","v":0},{"$f":"Time!IVU$11","v":0},{"$f":"Time!IVV$11","v":0},{"$f":"Time!IVW$11","v":0},{"$f":"Time!IVX$11","v":0},{"$f":"Time!IVY$11","v":0},{"$f":"Time!IVZ$11","v":0},{"$f":"Time!IWA$11","v":0},{"$f":"Time!IWB$11","v":0},{"$f":"Time!IWC$11","v":0},{"$f":"Time!IWD$11","v":0},{"$f":"Time!IWE$11","v":0},{"$f":"Time!IWF$11","v":0},{"$f":"Time!IWG$11","v":0},{"$f":"Time!IWH$11","v":0},{"$f":"Time!IWI$11","v":0},{"$f":"Time!IWJ$11","v":0},{"$f":"Time!IWK$11","v":0},{"$f":"Time!IWL$11","v":0},{"$f":"Time!IWM$11","v":0},{"$f":"Time!IWN$11","v":0},{"$f":"Time!IWO$11","v":0},{"$f":"Time!IWP$11","v":0},{"$f":"Time!IWQ$11","v":0},{"$f":"Time!IWR$11","v":0},{"$f":"Time!IWS$11","v":0},{"$f":"Time!IWT$11","v":0},{"$f":"Time!IWU$11","v":0},{"$f":"Time!IWV$11","v":0},{"$f":"Time!IWW$11","v":0},{"$f":"Time!IWX$11","v":0},{"$f":"Time!IWY$11","v":0},{"$f":"Time!IWZ$11","v":0},{"$f":"Time!IXA$11","v":0},{"$f":"Time!IXB$11","v":0},{"$f":"Time!IXC$11","v":0},{"$f":"Time!IXD$11","v":0},{"$f":"Time!IXE$11","v":0},{"$f":"Time!IXF$11","v":0},{"$f":"Time!IXG$11","v":0},{"$f":"Time!IXH$11","v":0},{"$f":"Time!IXI$11","v":0},{"$f":"Time!IXJ$11","v":0},{"$f":"Time!IXK$11","v":0},{"$f":"Time!IXL$11","v":0},{"$f":"Time!IXM$11","v":0},{"$f":"Time!IXN$11","v":0},{"$f":"Time!IXO$11","v":0},{"$f":"Time!IXP$11","v":0},{"$f":"Time!IXQ$11","v":0},{"$f":"Time!IXR$11","v":0},{"$f":"Time!IXS$11","v":0},{"$f":"Time!IXT$11","v":0},{"$f":"Time!IXU$11","v":0},{"$f":"Time!IXV$11","v":0},{"$f":"Time!IXW$11","v":0},{"$f":"Time!IXX$11","v":0},{"$f":"Time!IXY$11","v":0},{"$f":"Time!IXZ$11","v":0},{"$f":"Time!IYA$11","v":0},{"$f":"Time!IYB$11","v":0},{"$f":"Time!IYC$11","v":0},{"$f":"Time!IYD$11","v":0},{"$f":"Time!IYE$11","v":0},{"$f":"Time!IYF$11","v":0},{"$f":"Time!IYG$11","v":0},{"$f":"Time!IYH$11","v":0},{"$f":"Time!IYI$11","v":0},{"$f":"Time!IYJ$11","v":0},{"$f":"Time!IYK$11","v":0},{"$f":"Time!IYL$11","v":0},{"$f":"Time!IYM$11","v":0},{"$f":"Time!IYN$11","v":0},{"$f":"Time!IYO$11","v":0},{"$f":"Time!IYP$11","v":0},{"$f":"Time!IYQ$11","v":0},{"$f":"Time!IYR$11","v":0},{"$f":"Time!IYS$11","v":0},{"$f":"Time!IYT$11","v":0},{"$f":"Time!IYU$11","v":0},{"$f":"Time!IYV$11","v":0},{"$f":"Time!IYW$11","v":0},{"$f":"Time!IYX$11","v":0},{"$f":"Time!IYY$11","v":0},{"$f":"Time!IYZ$11","v":0},{"$f":"Time!IZA$11","v":0},{"$f":"Time!IZB$11","v":0},{"$f":"Time!IZC$11","v":0},{"$f":"Time!IZD$11","v":0},{"$f":"Time!IZE$11","v":0},{"$f":"Time!IZF$11","v":0},{"$f":"Time!IZG$11","v":0},{"$f":"Time!IZH$11","v":0},{"$f":"Time!IZI$11","v":0},{"$f":"Time!IZJ$11","v":0},{"$f":"Time!IZK$11","v":0},{"$f":"Time!IZL$11","v":0},{"$f":"Time!IZM$11","v":0},{"$f":"Time!IZN$11","v":0},{"$f":"Time!IZO$11","v":0},{"$f":"Time!IZP$11","v":0},{"$f":"Time!IZQ$11","v":0},{"$f":"Time!IZR$11","v":0},{"$f":"Time!IZS$11","v":0},{"$f":"Time!IZT$11","v":0},{"$f":"Time!IZU$11","v":0},{"$f":"Time!IZV$11","v":0},{"$f":"Time!IZW$11","v":0},{"$f":"Time!IZX$11","v":0},{"$f":"Time!IZY$11","v":0},{"$f":"Time!IZZ$11","v":0},{"$f":"Time!JAA$11","v":0},{"$f":"Time!JAB$11","v":0},{"$f":"Time!JAC$11","v":0},{"$f":"Time!JAD$11","v":0},{"$f":"Time!JAE$11","v":0},{"$f":"Time!JAF$11","v":0},{"$f":"Time!JAG$11","v":0},{"$f":"Time!JAH$11","v":0},{"$f":"Time!JAI$11","v":0},{"$f":"Time!JAJ$11","v":0},{"$f":"Time!JAK$11","v":0},{"$f":"Time!JAL$11","v":0},{"$f":"Time!JAM$11","v":0},{"$f":"Time!JAN$11","v":0},{"$f":"Time!JAO$11","v":0},{"$f":"Time!JAP$11","v":0},{"$f":"Time!JAQ$11","v":0},{"$f":"Time!JAR$11","v":0},{"$f":"Time!JAS$11","v":0},{"$f":"Time!JAT$11","v":0},{"$f":"Time!JAU$11","v":0},{"$f":"Time!JAV$11","v":0},{"$f":"Time!JAW$11","v":0},{"$f":"Time!JAX$11","v":0},{"$f":"Time!JAY$11","v":0},{"$f":"Time!JAZ$11","v":0},{"$f":"Time!JBA$11","v":0},{"$f":"Time!JBB$11","v":0},{"$f":"Time!JBC$11","v":0},{"$f":"Time!JBD$11","v":0},{"$f":"Time!JBE$11","v":0},{"$f":"Time!JBF$11","v":0},{"$f":"Time!JBG$11","v":0},{"$f":"Time!JBH$11","v":0},{"$f":"Time!JBI$11","v":0},{"$f":"Time!JBJ$11","v":0},{"$f":"Time!JBK$11","v":0},{"$f":"Time!JBL$11","v":0},{"$f":"Time!JBM$11","v":0},{"$f":"Time!JBN$11","v":0},{"$f":"Time!JBO$11","v":0},{"$f":"Time!JBP$11","v":0},{"$f":"Time!JBQ$11","v":0},{"$f":"Time!JBR$11","v":0},{"$f":"Time!JBS$11","v":0},{"$f":"Time!JBT$11","v":0},{"$f":"Time!JBU$11","v":0},{"$f":"Time!JBV$11","v":0},{"$f":"Time!JBW$11","v":0},{"$f":"Time!JBX$11","v":0},{"$f":"Time!JBY$11","v":0},{"$f":"Time!JBZ$11","v":0},{"$f":"Time!JCA$11","v":0},{"$f":"Time!JCB$11","v":0},{"$f":"Time!JCC$11","v":0},{"$f":"Time!JCD$11","v":0},{"$f":"Time!JCE$11","v":0},{"$f":"Time!JCF$11","v":0},{"$f":"Time!JCG$11","v":0},{"$f":"Time!JCH$11","v":0},{"$f":"Time!JCI$11","v":0},{"$f":"Time!JCJ$11","v":0},{"$f":"Time!JCK$11","v":0},{"$f":"Time!JCL$11","v":0},{"$f":"Time!JCM$11","v":0},{"$f":"Time!JCN$11","v":0},{"$f":"Time!JCO$11","v":0},{"$f":"Time!JCP$11","v":0},{"$f":"Time!JCQ$11","v":0},{"$f":"Time!JCR$11","v":0},{"$f":"Time!JCS$11","v":0},{"$f":"Time!JCT$11","v":0},{"$f":"Time!JCU$11","v":0},{"$f":"Time!JCV$11","v":0},{"$f":"Time!JCW$11","v":0},{"$f":"Time!JCX$11","v":0},{"$f":"Time!JCY$11","v":0},{"$f":"Time!JCZ$11","v":0},{"$f":"Time!JDA$11","v":0},{"$f":"Time!JDB$11","v":0},{"$f":"Time!JDC$11","v":0},{"$f":"Time!JDD$11","v":0},{"$f":"Time!JDE$11","v":0},{"$f":"Time!JDF$11","v":0},{"$f":"Time!JDG$11","v":0},{"$f":"Time!JDH$11","v":0},{"$f":"Time!JDI$11","v":0},{"$f":"Time!JDJ$11","v":0},{"$f":"Time!JDK$11","v":0},{"$f":"Time!JDL$11","v":0},{"$f":"Time!JDM$11","v":0},{"$f":"Time!JDN$11","v":0},{"$f":"Time!JDO$11","v":0},{"$f":"Time!JDP$11","v":0},{"$f":"Time!JDQ$11","v":0},{"$f":"Time!JDR$11","v":0},{"$f":"Time!JDS$11","v":0},{"$f":"Time!JDT$11","v":0},{"$f":"Time!JDU$11","v":0},{"$f":"Time!JDV$11","v":0},{"$f":"Time!JDW$11","v":0},{"$f":"Time!JDX$11","v":0},{"$f":"Time!JDY$11","v":0},{"$f":"Time!JDZ$11","v":0},{"$f":"Time!JEA$11","v":0},{"$f":"Time!JEB$11","v":0},{"$f":"Time!JEC$11","v":0},{"$f":"Time!JED$11","v":0},{"$f":"Time!JEE$11","v":0},{"$f":"Time!JEF$11","v":0},{"$f":"Time!JEG$11","v":0},{"$f":"Time!JEH$11","v":0},{"$f":"Time!JEI$11","v":0},{"$f":"Time!JEJ$11","v":0},{"$f":"Time!JEK$11","v":0},{"$f":"Time!JEL$11","v":0},{"$f":"Time!JEM$11","v":0},{"$f":"Time!JEN$11","v":0},{"$f":"Time!JEO$11","v":0},{"$f":"Time!JEP$11","v":0},{"$f":"Time!JEQ$11","v":0},{"$f":"Time!JER$11","v":0},{"$f":"Time!JES$11","v":0},{"$f":"Time!JET$11","v":0},{"$f":"Time!JEU$11","v":0},{"$f":"Time!JEV$11","v":0},{"$f":"Time!JEW$11","v":0},{"$f":"Time!JEX$11","v":0},{"$f":"Time!JEY$11","v":0},{"$f":"Time!JEZ$11","v":0},{"$f":"Time!JFA$11","v":0},{"$f":"Time!JFB$11","v":0},{"$f":"Time!JFC$11","v":0},{"$f":"Time!JFD$11","v":0},{"$f":"Time!JFE$11","v":0},{"$f":"Time!JFF$11","v":0},{"$f":"Time!JFG$11","v":0},{"$f":"Time!JFH$11","v":0},{"$f":"Time!JFI$11","v":0},{"$f":"Time!JFJ$11","v":0},{"$f":"Time!JFK$11","v":0},{"$f":"Time!JFL$11","v":0},{"$f":"Time!JFM$11","v":0},{"$f":"Time!JFN$11","v":0},{"$f":"Time!JFO$11","v":0},{"$f":"Time!JFP$11","v":0},{"$f":"Time!JFQ$11","v":0},{"$f":"Time!JFR$11","v":0},{"$f":"Time!JFS$11","v":0},{"$f":"Time!JFT$11","v":0},{"$f":"Time!JFU$11","v":0},{"$f":"Time!JFV$11","v":0},{"$f":"Time!JFW$11","v":0},{"$f":"Time!JFX$11","v":0},{"$f":"Time!JFY$11","v":0},{"$f":"Time!JFZ$11","v":0},{"$f":"Time!JGA$11","v":0},{"$f":"Time!JGB$11","v":0},{"$f":"Time!JGC$11","v":0},{"$f":"Time!JGD$11","v":0},{"$f":"Time!JGE$11","v":0},{"$f":"Time!JGF$11","v":0},{"$f":"Time!JGG$11","v":0},{"$f":"Time!JGH$11","v":0},{"$f":"Time!JGI$11","v":0},{"$f":"Time!JGJ$11","v":0},{"$f":"Time!JGK$11","v":0},{"$f":"Time!JGL$11","v":0},{"$f":"Time!JGM$11","v":0},{"$f":"Time!JGN$11","v":0},{"$f":"Time!JGO$11","v":0},{"$f":"Time!JGP$11","v":0},{"$f":"Time!JGQ$11","v":0},{"$f":"Time!JGR$11","v":0},{"$f":"Time!JGS$11","v":0},{"$f":"Time!JGT$11","v":0},{"$f":"Time!JGU$11","v":0},{"$f":"Time!JGV$11","v":0},{"$f":"Time!JGW$11","v":0},{"$f":"Time!JGX$11","v":0},{"$f":"Time!JGY$11","v":0},{"$f":"Time!JGZ$11","v":0},{"$f":"Time!JHA$11","v":0},{"$f":"Time!JHB$11","v":0},{"$f":"Time!JHC$11","v":0},{"$f":"Time!JHD$11","v":0},{"$f":"Time!JHE$11","v":0},{"$f":"Time!JHF$11","v":0},{"$f":"Time!JHG$11","v":0},{"$f":"Time!JHH$11","v":0},{"$f":"Time!JHI$11","v":0},{"$f":"Time!JHJ$11","v":0},{"$f":"Time!JHK$11","v":0},{"$f":"Time!JHL$11","v":0},{"$f":"Time!JHM$11","v":0},{"$f":"Time!JHN$11","v":0},{"$f":"Time!JHO$11","v":0},{"$f":"Time!JHP$11","v":0},{"$f":"Time!JHQ$11","v":0},{"$f":"Time!JHR$11","v":0},{"$f":"Time!JHS$11","v":0},{"$f":"Time!JHT$11","v":0},{"$f":"Time!JHU$11","v":0},{"$f":"Time!JHV$11","v":0},{"$f":"Time!JHW$11","v":0},{"$f":"Time!JHX$11","v":0},{"$f":"Time!JHY$11","v":0},{"$f":"Time!JHZ$11","v":0},{"$f":"Time!JIA$11","v":0},{"$f":"Time!JIB$11","v":0},{"$f":"Time!JIC$11","v":0},{"$f":"Time!JID$11","v":0},{"$f":"Time!JIE$11","v":0},{"$f":"Time!JIF$11","v":0},{"$f":"Time!JIG$11","v":0},{"$f":"Time!JIH$11","v":0},{"$f":"Time!JII$11","v":0},{"$f":"Time!JIJ$11","v":0},{"$f":"Time!JIK$11","v":0},{"$f":"Time!JIL$11","v":0},{"$f":"Time!JIM$11","v":0},{"$f":"Time!JIN$11","v":0},{"$f":"Time!JIO$11","v":0},{"$f":"Time!JIP$11","v":0},{"$f":"Time!JIQ$11","v":0},{"$f":"Time!JIR$11","v":0},{"$f":"Time!JIS$11","v":0},{"$f":"Time!JIT$11","v":0},{"$f":"Time!JIU$11","v":0},{"$f":"Time!JIV$11","v":0},{"$f":"Time!JIW$11","v":0},{"$f":"Time!JIX$11","v":0},{"$f":"Time!JIY$11","v":0},{"$f":"Time!JIZ$11","v":0},{"$f":"Time!JJA$11","v":0},{"$f":"Time!JJB$11","v":0},{"$f":"Time!JJC$11","v":0},{"$f":"Time!JJD$11","v":0},{"$f":"Time!JJE$11","v":0},{"$f":"Time!JJF$11","v":0},{"$f":"Time!JJG$11","v":0},{"$f":"Time!JJH$11","v":0},{"$f":"Time!JJI$11","v":0},{"$f":"Time!JJJ$11","v":0},{"$f":"Time!JJK$11","v":0},{"$f":"Time!JJL$11","v":0},{"$f":"Time!JJM$11","v":0},{"$f":"Time!JJN$11","v":0},{"$f":"Time!JJO$11","v":0},{"$f":"Time!JJP$11","v":0},{"$f":"Time!JJQ$11","v":0},{"$f":"Time!JJR$11","v":0},{"$f":"Time!JJS$11","v":0},{"$f":"Time!JJT$11","v":0},{"$f":"Time!JJU$11","v":0},{"$f":"Time!JJV$11","v":0},{"$f":"Time!JJW$11","v":0},{"$f":"Time!JJX$11","v":0},{"$f":"Time!JJY$11","v":0},{"$f":"Time!JJZ$11","v":0},{"$f":"Time!JKA$11","v":0},{"$f":"Time!JKB$11","v":0},{"$f":"Time!JKC$11","v":0},{"$f":"Time!JKD$11","v":0},{"$f":"Time!JKE$11","v":0},{"$f":"Time!JKF$11","v":0},{"$f":"Time!JKG$11","v":0},{"$f":"Time!JKH$11","v":0},{"$f":"Time!JKI$11","v":0},{"$f":"Time!JKJ$11","v":0},{"$f":"Time!JKK$11","v":0},{"$f":"Time!JKL$11","v":0},{"$f":"Time!JKM$11","v":0},{"$f":"Time!JKN$11","v":0},{"$f":"Time!JKO$11","v":0},{"$f":"Time!JKP$11","v":0},{"$f":"Time!JKQ$11","v":0},{"$f":"Time!JKR$11","v":0},{"$f":"Time!JKS$11","v":0},{"$f":"Time!JKT$11","v":0},{"$f":"Time!JKU$11","v":0},{"$f":"Time!JKV$11","v":0},{"$f":"Time!JKW$11","v":0},{"$f":"Time!JKX$11","v":0},{"$f":"Time!JKY$11","v":0},{"$f":"Time!JKZ$11","v":0},{"$f":"Time!JLA$11","v":0},{"$f":"Time!JLB$11","v":0},{"$f":"Time!JLC$11","v":0},{"$f":"Time!JLD$11","v":0},{"$f":"Time!JLE$11","v":0},{"$f":"Time!JLF$11","v":0},{"$f":"Time!JLG$11","v":0},{"$f":"Time!JLH$11","v":0},{"$f":"Time!JLI$11","v":0},{"$f":"Time!JLJ$11","v":0},{"$f":"Time!JLK$11","v":0},{"$f":"Time!JLL$11","v":0},{"$f":"Time!JLM$11","v":0},{"$f":"Time!JLN$11","v":0},{"$f":"Time!JLO$11","v":0},{"$f":"Time!JLP$11","v":0},{"$f":"Time!JLQ$11","v":0},{"$f":"Time!JLR$11","v":0},{"$f":"Time!JLS$11","v":0},{"$f":"Time!JLT$11","v":0},{"$f":"Time!JLU$11","v":0},{"$f":"Time!JLV$11","v":0},{"$f":"Time!JLW$11","v":0},{"$f":"Time!JLX$11","v":0},{"$f":"Time!JLY$11","v":0},{"$f":"Time!JLZ$11","v":0},{"$f":"Time!JMA$11","v":0},{"$f":"Time!JMB$11","v":0},{"$f":"Time!JMC$11","v":0},{"$f":"Time!JMD$11","v":0},{"$f":"Time!JME$11","v":0},{"$f":"Time!JMF$11","v":0},{"$f":"Time!JMG$11","v":0},{"$f":"Time!JMH$11","v":0},{"$f":"Time!JMI$11","v":0},{"$f":"Time!JMJ$11","v":0},{"$f":"Time!JMK$11","v":0},{"$f":"Time!JML$11","v":0},{"$f":"Time!JMM$11","v":0},{"$f":"Time!JMN$11","v":0},{"$f":"Time!JMO$11","v":0},{"$f":"Time!JMP$11","v":0},{"$f":"Time!JMQ$11","v":0},{"$f":"Time!JMR$11","v":0},{"$f":"Time!JMS$11","v":0},{"$f":"Time!JMT$11","v":0},{"$f":"Time!JMU$11","v":0},{"$f":"Time!JMV$11","v":0},{"$f":"Time!JMW$11","v":0},{"$f":"Time!JMX$11","v":0},{"$f":"Time!JMY$11","v":0},{"$f":"Time!JMZ$11","v":0},{"$f":"Time!JNA$11","v":0},{"$f":"Time!JNB$11","v":0},{"$f":"Time!JNC$11","v":0},{"$f":"Time!JND$11","v":0},{"$f":"Time!JNE$11","v":0},{"$f":"Time!JNF$11","v":0},{"$f":"Time!JNG$11","v":0},{"$f":"Time!JNH$11","v":0},{"$f":"Time!JNI$11","v":0},{"$f":"Time!JNJ$11","v":0},{"$f":"Time!JNK$11","v":0},{"$f":"Time!JNL$11","v":0},{"$f":"Time!JNM$11","v":0},{"$f":"Time!JNN$11","v":0},{"$f":"Time!JNO$11","v":0},{"$f":"Time!JNP$11","v":0},{"$f":"Time!JNQ$11","v":0},{"$f":"Time!JNR$11","v":0},{"$f":"Time!JNS$11","v":0},{"$f":"Time!JNT$11","v":0},{"$f":"Time!JNU$11","v":0},{"$f":"Time!JNV$11","v":0},{"$f":"Time!JNW$11","v":0},{"$f":"Time!JNX$11","v":0},{"$f":"Time!JNY$11","v":0},{"$f":"Time!JNZ$11","v":0},{"$f":"Time!JOA$11","v":0},{"$f":"Time!JOB$11","v":0},{"$f":"Time!JOC$11","v":0},{"$f":"Time!JOD$11","v":0},{"$f":"Time!JOE$11","v":0},{"$f":"Time!JOF$11","v":0},{"$f":"Time!JOG$11","v":0},{"$f":"Time!JOH$11","v":0},{"$f":"Time!JOI$11","v":0},{"$f":"Time!JOJ$11","v":0},{"$f":"Time!JOK$11","v":0},{"$f":"Time!JOL$11","v":0},{"$f":"Time!JOM$11","v":0},{"$f":"Time!JON$11","v":0},{"$f":"Time!JOO$11","v":0},{"$f":"Time!JOP$11","v":0},{"$f":"Time!JOQ$11","v":0},{"$f":"Time!JOR$11","v":0},{"$f":"Time!JOS$11","v":0},{"$f":"Time!JOT$11","v":0},{"$f":"Time!JOU$11","v":0},{"$f":"Time!JOV$11","v":0},{"$f":"Time!JOW$11","v":0},{"$f":"Time!JOX$11","v":0},{"$f":"Time!JOY$11","v":0},{"$f":"Time!JOZ$11","v":0},{"$f":"Time!JPA$11","v":0},{"$f":"Time!JPB$11","v":0},{"$f":"Time!JPC$11","v":0},{"$f":"Time!JPD$11","v":0},{"$f":"Time!JPE$11","v":0},{"$f":"Time!JPF$11","v":0},{"$f":"Time!JPG$11","v":0},{"$f":"Time!JPH$11","v":0},{"$f":"Time!JPI$11","v":0},{"$f":"Time!JPJ$11","v":0},{"$f":"Time!JPK$11","v":0},{"$f":"Time!JPL$11","v":0},{"$f":"Time!JPM$11","v":0},{"$f":"Time!JPN$11","v":0},{"$f":"Time!JPO$11","v":0},{"$f":"Time!JPP$11","v":0},{"$f":"Time!JPQ$11","v":0},{"$f":"Time!JPR$11","v":0},{"$f":"Time!JPS$11","v":0},{"$f":"Time!JPT$11","v":0},{"$f":"Time!JPU$11","v":0},{"$f":"Time!JPV$11","v":0},{"$f":"Time!JPW$11","v":0},{"$f":"Time!JPX$11","v":0},{"$f":"Time!JPY$11","v":0},{"$f":"Time!JPZ$11","v":0},{"$f":"Time!JQA$11","v":0},{"$f":"Time!JQB$11","v":0},{"$f":"Time!JQC$11","v":0},{"$f":"Time!JQD$11","v":0},{"$f":"Time!JQE$11","v":0},{"$f":"Time!JQF$11","v":0},{"$f":"Time!JQG$11","v":0},{"$f":"Time!JQH$11","v":0},{"$f":"Time!JQI$11","v":0},{"$f":"Time!JQJ$11","v":0},{"$f":"Time!JQK$11","v":0},{"$f":"Time!JQL$11","v":0},{"$f":"Time!JQM$11","v":0},{"$f":"Time!JQN$11","v":0},{"$f":"Time!JQO$11","v":0},{"$f":"Time!JQP$11","v":0},{"$f":"Time!JQQ$11","v":0},{"$f":"Time!JQR$11","v":0},{"$f":"Time!JQS$11","v":0},{"$f":"Time!JQT$11","v":0},{"$f":"Time!JQU$11","v":0},{"$f":"Time!JQV$11","v":0},{"$f":"Time!JQW$11","v":0},{"$f":"Time!JQX$11","v":0},{"$f":"Time!JQY$11","v":0},{"$f":"Time!JQZ$11","v":0},{"$f":"Time!JRA$11","v":0},{"$f":"Time!JRB$11","v":0},{"$f":"Time!JRC$11","v":0},{"$f":"Time!JRD$11","v":0},{"$f":"Time!JRE$11","v":0},{"$f":"Time!JRF$11","v":0},{"$f":"Time!JRG$11","v":0},{"$f":"Time!JRH$11","v":0},{"$f":"Time!JRI$11","v":0},{"$f":"Time!JRJ$11","v":0},{"$f":"Time!JRK$11","v":0},{"$f":"Time!JRL$11","v":0},{"$f":"Time!JRM$11","v":0},{"$f":"Time!JRN$11","v":0},{"$f":"Time!JRO$11","v":0},{"$f":"Time!JRP$11","v":0},{"$f":"Time!JRQ$11","v":0},{"$f":"Time!JRR$11","v":0},{"$f":"Time!JRS$11","v":0},{"$f":"Time!JRT$11","v":0},{"$f":"Time!JRU$11","v":0},{"$f":"Time!JRV$11","v":0},{"$f":"Time!JRW$11","v":0},{"$f":"Time!JRX$11","v":0},{"$f":"Time!JRY$11","v":0},{"$f":"Time!JRZ$11","v":0},{"$f":"Time!JSA$11","v":0},{"$f":"Time!JSB$11","v":0},{"$f":"Time!JSC$11","v":0},{"$f":"Time!JSD$11","v":0},{"$f":"Time!JSE$11","v":0},{"$f":"Time!JSF$11","v":0},{"$f":"Time!JSG$11","v":0},{"$f":"Time!JSH$11","v":0},{"$f":"Time!JSI$11","v":0},{"$f":"Time!JSJ$11","v":0},{"$f":"Time!JSK$11","v":0},{"$f":"Time!JSL$11","v":0},{"$f":"Time!JSM$11","v":0},{"$f":"Time!JSN$11","v":0},{"$f":"Time!JSO$11","v":0},{"$f":"Time!JSP$11","v":0},{"$f":"Time!JSQ$11","v":0},{"$f":"Time!JSR$11","v":0},{"$f":"Time!JSS$11","v":0},{"$f":"Time!JST$11","v":0},{"$f":"Time!JSU$11","v":0},{"$f":"Time!JSV$11","v":0},{"$f":"Time!JSW$11","v":0},{"$f":"Time!JSX$11","v":0},{"$f":"Time!JSY$11","v":0},{"$f":"Time!JSZ$11","v":0},{"$f":"Time!JTA$11","v":0},{"$f":"Time!JTB$11","v":0},{"$f":"Time!JTC$11","v":0},{"$f":"Time!JTD$11","v":0},{"$f":"Time!JTE$11","v":0},{"$f":"Time!JTF$11","v":0},{"$f":"Time!JTG$11","v":0},{"$f":"Time!JTH$11","v":0},{"$f":"Time!JTI$11","v":0},{"$f":"Time!JTJ$11","v":0},{"$f":"Time!JTK$11","v":0},{"$f":"Time!JTL$11","v":0},{"$f":"Time!JTM$11","v":0},{"$f":"Time!JTN$11","v":0},{"$f":"Time!JTO$11","v":0},{"$f":"Time!JTP$11","v":0},{"$f":"Time!JTQ$11","v":0},{"$f":"Time!JTR$11","v":0},{"$f":"Time!JTS$11","v":0},{"$f":"Time!JTT$11","v":0},{"$f":"Time!JTU$11","v":0},{"$f":"Time!JTV$11","v":0},{"$f":"Time!JTW$11","v":0},{"$f":"Time!JTX$11","v":0},{"$f":"Time!JTY$11","v":0},{"$f":"Time!JTZ$11","v":0},{"$f":"Time!JUA$11","v":0},{"$f":"Time!JUB$11","v":0},{"$f":"Time!JUC$11","v":0},{"$f":"Time!JUD$11","v":0},{"$f":"Time!JUE$11","v":0},{"$f":"Time!JUF$11","v":0},{"$f":"Time!JUG$11","v":0},{"$f":"Time!JUH$11","v":0},{"$f":"Time!JUI$11","v":0},{"$f":"Time!JUJ$11","v":0},{"$f":"Time!JUK$11","v":0},{"$f":"Time!JUL$11","v":0},{"$f":"Time!JUM$11","v":0},{"$f":"Time!JUN$11","v":0},{"$f":"Time!JUO$11","v":0},{"$f":"Time!JUP$11","v":0},{"$f":"Time!JUQ$11","v":0},{"$f":"Time!JUR$11","v":0},{"$f":"Time!JUS$11","v":0},{"$f":"Time!JUT$11","v":0},{"$f":"Time!JUU$11","v":0},{"$f":"Time!JUV$11","v":0},{"$f":"Time!JUW$11","v":0},{"$f":"Time!JUX$11","v":0},{"$f":"Time!JUY$11","v":0},{"$f":"Time!JUZ$11","v":0},{"$f":"Time!JVA$11","v":0},{"$f":"Time!JVB$11","v":0},{"$f":"Time!JVC$11","v":0},{"$f":"Time!JVD$11","v":0},{"$f":"Time!JVE$11","v":0},{"$f":"Time!JVF$11","v":0},{"$f":"Time!JVG$11","v":0},{"$f":"Time!JVH$11","v":0},{"$f":"Time!JVI$11","v":0},{"$f":"Time!JVJ$11","v":0},{"$f":"Time!JVK$11","v":0},{"$f":"Time!JVL$11","v":0},{"$f":"Time!JVM$11","v":0},{"$f":"Time!JVN$11","v":0},{"$f":"Time!JVO$11","v":0},{"$f":"Time!JVP$11","v":0},{"$f":"Time!JVQ$11","v":0},{"$f":"Time!JVR$11","v":0},{"$f":"Time!JVS$11","v":0},{"$f":"Time!JVT$11","v":0},{"$f":"Time!JVU$11","v":0},{"$f":"Time!JVV$11","v":0},{"$f":"Time!JVW$11","v":0},{"$f":"Time!JVX$11","v":0},{"$f":"Time!JVY$11","v":0},{"$f":"Time!JVZ$11","v":0},{"$f":"Time!JWA$11","v":0},{"$f":"Time!JWB$11","v":0},{"$f":"Time!JWC$11","v":0},{"$f":"Time!JWD$11","v":0},{"$f":"Time!JWE$11","v":0},{"$f":"Time!JWF$11","v":0},{"$f":"Time!JWG$11","v":0},{"$f":"Time!JWH$11","v":0},{"$f":"Time!JWI$11","v":0},{"$f":"Time!JWJ$11","v":0},{"$f":"Time!JWK$11","v":0},{"$f":"Time!JWL$11","v":0},{"$f":"Time!JWM$11","v":0},{"$f":"Time!JWN$11","v":0},{"$f":"Time!JWO$11","v":0},{"$f":"Time!JWP$11","v":0},{"$f":"Time!JWQ$11","v":0},{"$f":"Time!JWR$11","v":0},{"$f":"Time!JWS$11","v":0},{"$f":"Time!JWT$11","v":0},{"$f":"Time!JWU$11","v":0},{"$f":"Time!JWV$11","v":0},{"$f":"Time!JWW$11","v":0},{"$f":"Time!JWX$11","v":0},{"$f":"Time!JWY$11","v":0},{"$f":"Time!JWZ$11","v":0},{"$f":"Time!JXA$11","v":0},{"$f":"Time!JXB$11","v":0},{"$f":"Time!JXC$11","v":0},{"$f":"Time!JXD$11","v":0},{"$f":"Time!JXE$11","v":0},{"$f":"Time!JXF$11","v":0},{"$f":"Time!JXG$11","v":0},{"$f":"Time!JXH$11","v":0},{"$f":"Time!JXI$11","v":0},{"$f":"Time!JXJ$11","v":0},{"$f":"Time!JXK$11","v":0},{"$f":"Time!JXL$11","v":0},{"$f":"Time!JXM$11","v":0},{"$f":"Time!JXN$11","v":0},{"$f":"Time!JXO$11","v":0},{"$f":"Time!JXP$11","v":0},{"$f":"Time!JXQ$11","v":0},{"$f":"Time!JXR$11","v":0},{"$f":"Time!JXS$11","v":0},{"$f":"Time!JXT$11","v":0},{"$f":"Time!JXU$11","v":0},{"$f":"Time!JXV$11","v":0},{"$f":"Time!JXW$11","v":0},{"$f":"Time!JXX$11","v":0},{"$f":"Time!JXY$11","v":0},{"$f":"Time!JXZ$11","v":0},{"$f":"Time!JYA$11","v":0},{"$f":"Time!JYB$11","v":0},{"$f":"Time!JYC$11","v":0},{"$f":"Time!JYD$11","v":0},{"$f":"Time!JYE$11","v":0},{"$f":"Time!JYF$11","v":0},{"$f":"Time!JYG$11","v":0},{"$f":"Time!JYH$11","v":0},{"$f":"Time!JYI$11","v":0},{"$f":"Time!JYJ$11","v":0},{"$f":"Time!JYK$11","v":0},{"$f":"Time!JYL$11","v":0},{"$f":"Time!JYM$11","v":0},{"$f":"Time!JYN$11","v":0},{"$f":"Time!JYO$11","v":0},{"$f":"Time!JYP$11","v":0},{"$f":"Time!JYQ$11","v":0},{"$f":"Time!JYR$11","v":0},{"$f":"Time!JYS$11","v":0},{"$f":"Time!JYT$11","v":0},{"$f":"Time!JYU$11","v":0},{"$f":"Time!JYV$11","v":0},{"$f":"Time!JYW$11","v":0},{"$f":"Time!JYX$11","v":0},{"$f":"Time!JYY$11","v":0},{"$f":"Time!JYZ$11","v":0},{"$f":"Time!JZA$11","v":0},{"$f":"Time!JZB$11","v":0},{"$f":"Time!JZC$11","v":0},{"$f":"Time!JZD$11","v":0},{"$f":"Time!JZE$11","v":0},{"$f":"Time!JZF$11","v":0},{"$f":"Time!JZG$11","v":0},{"$f":"Time!JZH$11","v":0},{"$f":"Time!JZI$11","v":0},{"$f":"Time!JZJ$11","v":0},{"$f":"Time!JZK$11","v":0},{"$f":"Time!JZL$11","v":0},{"$f":"Time!JZM$11","v":0},{"$f":"Time!JZN$11","v":0},{"$f":"Time!JZO$11","v":0},{"$f":"Time!JZP$11","v":0},{"$f":"Time!JZQ$11","v":0},{"$f":"Time!JZR$11","v":0},{"$f":"Time!JZS$11","v":0},{"$f":"Time!JZT$11","v":0},{"$f":"Time!JZU$11","v":0},{"$f":"Time!JZV$11","v":0},{"$f":"Time!JZW$11","v":0},{"$f":"Time!JZX$11","v":0},{"$f":"Time!JZY$11","v":0},{"$f":"Time!JZZ$11","v":0},{"$f":"Time!KAA$11","v":0},{"$f":"Time!KAB$11","v":0},{"$f":"Time!KAC$11","v":0},{"$f":"Time!KAD$11","v":0},{"$f":"Time!KAE$11","v":0},{"$f":"Time!KAF$11","v":0},{"$f":"Time!KAG$11","v":0},{"$f":"Time!KAH$11","v":0},{"$f":"Time!KAI$11","v":0},{"$f":"Time!KAJ$11","v":0},{"$f":"Time!KAK$11","v":0},{"$f":"Time!KAL$11","v":0},{"$f":"Time!KAM$11","v":0},{"$f":"Time!KAN$11","v":0},{"$f":"Time!KAO$11","v":0},{"$f":"Time!KAP$11","v":0},{"$f":"Time!KAQ$11","v":0},{"$f":"Time!KAR$11","v":0},{"$f":"Time!KAS$11","v":0},{"$f":"Time!KAT$11","v":0},{"$f":"Time!KAU$11","v":0},{"$f":"Time!KAV$11","v":0},{"$f":"Time!KAW$11","v":0},{"$f":"Time!KAX$11","v":0},{"$f":"Time!KAY$11","v":0},{"$f":"Time!KAZ$11","v":0},{"$f":"Time!KBA$11","v":0},{"$f":"Time!KBB$11","v":0},{"$f":"Time!KBC$11","v":0},{"$f":"Time!KBD$11","v":0},{"$f":"Time!KBE$11","v":0},{"$f":"Time!KBF$11","v":0},{"$f":"Time!KBG$11","v":0},{"$f":"Time!KBH$11","v":0},{"$f":"Time!KBI$11","v":0},{"$f":"Time!KBJ$11","v":0},{"$f":"Time!KBK$11","v":0},{"$f":"Time!KBL$11","v":0},{"$f":"Time!KBM$11","v":0},{"$f":"Time!KBN$11","v":0},{"$f":"Time!KBO$11","v":0},{"$f":"Time!KBP$11","v":0},{"$f":"Time!KBQ$11","v":0},{"$f":"Time!KBR$11","v":0},{"$f":"Time!KBS$11","v":0},{"$f":"Time!KBT$11","v":0},{"$f":"Time!KBU$11","v":0},{"$f":"Time!KBV$11","v":0},{"$f":"Time!KBW$11","v":0},{"$f":"Time!KBX$11","v":0},{"$f":"Time!KBY$11","v":0},{"$f":"Time!KBZ$11","v":0},{"$f":"Time!KCA$11","v":0},{"$f":"Time!KCB$11","v":0},{"$f":"Time!KCC$11","v":0},{"$f":"Time!KCD$11","v":0},{"$f":"Time!KCE$11","v":0},{"$f":"Time!KCF$11","v":0},{"$f":"Time!KCG$11","v":0},{"$f":"Time!KCH$11","v":0},{"$f":"Time!KCI$11","v":0},{"$f":"Time!KCJ$11","v":0},{"$f":"Time!KCK$11","v":0},{"$f":"Time!KCL$11","v":0},{"$f":"Time!KCM$11","v":0},{"$f":"Time!KCN$11","v":0},{"$f":"Time!KCO$11","v":0},{"$f":"Time!KCP$11","v":0},{"$f":"Time!KCQ$11","v":0},{"$f":"Time!KCR$11","v":0},{"$f":"Time!KCS$11","v":0},{"$f":"Time!KCT$11","v":0},{"$f":"Time!KCU$11","v":0},{"$f":"Time!KCV$11","v":0},{"$f":"Time!KCW$11","v":0},{"$f":"Time!KCX$11","v":0},{"$f":"Time!KCY$11","v":0},{"$f":"Time!KCZ$11","v":0},{"$f":"Time!KDA$11","v":0},{"$f":"Time!KDB$11","v":0},{"$f":"Time!KDC$11","v":0},{"$f":"Time!KDD$11","v":0},{"$f":"Time!KDE$11","v":0},{"$f":"Time!KDF$11","v":0},{"$f":"Time!KDG$11","v":0},{"$f":"Time!KDH$11","v":0},{"$f":"Time!KDI$11","v":0},{"$f":"Time!KDJ$11","v":0},{"$f":"Time!KDK$11","v":0},{"$f":"Time!KDL$11","v":0},{"$f":"Time!KDM$11","v":0},{"$f":"Time!KDN$11","v":0},{"$f":"Time!KDO$11","v":0},{"$f":"Time!KDP$11","v":0},{"$f":"Time!KDQ$11","v":0},{"$f":"Time!KDR$11","v":0},{"$f":"Time!KDS$11","v":0},{"$f":"Time!KDT$11","v":0},{"$f":"Time!KDU$11","v":0},{"$f":"Time!KDV$11","v":0},{"$f":"Time!KDW$11","v":0},{"$f":"Time!KDX$11","v":0},{"$f":"Time!KDY$11","v":0},{"$f":"Time!KDZ$11","v":0},{"$f":"Time!KEA$11","v":0},{"$f":"Time!KEB$11","v":0},{"$f":"Time!KEC$11","v":0},{"$f":"Time!KED$11","v":0},{"$f":"Time!KEE$11","v":0},{"$f":"Time!KEF$11","v":0},{"$f":"Time!KEG$11","v":0},{"$f":"Time!KEH$11","v":0},{"$f":"Time!KEI$11","v":0},{"$f":"Time!KEJ$11","v":0},{"$f":"Time!KEK$11","v":0},{"$f":"Time!KEL$11","v":0},{"$f":"Time!KEM$11","v":0},{"$f":"Time!KEN$11","v":0},{"$f":"Time!KEO$11","v":0},{"$f":"Time!KEP$11","v":0},{"$f":"Time!KEQ$11","v":0},{"$f":"Time!KER$11","v":0},{"$f":"Time!KES$11","v":0},{"$f":"Time!KET$11","v":0},{"$f":"Time!KEU$11","v":0},{"$f":"Time!KEV$11","v":0},{"$f":"Time!KEW$11","v":0},{"$f":"Time!KEX$11","v":0},{"$f":"Time!KEY$11","v":0},{"$f":"Time!KEZ$11","v":0},{"$f":"Time!KFA$11","v":0},{"$f":"Time!KFB$11","v":0},{"$f":"Time!KFC$11","v":0},{"$f":"Time!KFD$11","v":0},{"$f":"Time!KFE$11","v":0},{"$f":"Time!KFF$11","v":0},{"$f":"Time!KFG$11","v":0},{"$f":"Time!KFH$11","v":0},{"$f":"Time!KFI$11","v":0},{"$f":"Time!KFJ$11","v":0},{"$f":"Time!KFK$11","v":0},{"$f":"Time!KFL$11","v":0},{"$f":"Time!KFM$11","v":0},{"$f":"Time!KFN$11","v":0},{"$f":"Time!KFO$11","v":0},{"$f":"Time!KFP$11","v":0},{"$f":"Time!KFQ$11","v":0},{"$f":"Time!KFR$11","v":0},{"$f":"Time!KFS$11","v":0},{"$f":"Time!KFT$11","v":0},{"$f":"Time!KFU$11","v":0},{"$f":"Time!KFV$11","v":0},{"$f":"Time!KFW$11","v":0},{"$f":"Time!KFX$11","v":0},{"$f":"Time!KFY$11","v":0},{"$f":"Time!KFZ$11","v":0},{"$f":"Time!KGA$11","v":0},{"$f":"Time!KGB$11","v":0},{"$f":"Time!KGC$11","v":0},{"$f":"Time!KGD$11","v":0},{"$f":"Time!KGE$11","v":0},{"$f":"Time!KGF$11","v":0},{"$f":"Time!KGG$11","v":0},{"$f":"Time!KGH$11","v":0},{"$f":"Time!KGI$11","v":0},{"$f":"Time!KGJ$11","v":0},{"$f":"Time!KGK$11","v":0},{"$f":"Time!KGL$11","v":0},{"$f":"Time!KGM$11","v":0},{"$f":"Time!KGN$11","v":0},{"$f":"Time!KGO$11","v":0},{"$f":"Time!KGP$11","v":0},{"$f":"Time!KGQ$11","v":0},{"$f":"Time!KGR$11","v":0},{"$f":"Time!KGS$11","v":0},{"$f":"Time!KGT$11","v":0},{"$f":"Time!KGU$11","v":0},{"$f":"Time!KGV$11","v":0},{"$f":"Time!KGW$11","v":0},{"$f":"Time!KGX$11","v":0},{"$f":"Time!KGY$11","v":0},{"$f":"Time!KGZ$11","v":0},{"$f":"Time!KHA$11","v":0},{"$f":"Time!KHB$11","v":0},{"$f":"Time!KHC$11","v":0},{"$f":"Time!KHD$11","v":0},{"$f":"Time!KHE$11","v":0},{"$f":"Time!KHF$11","v":0},{"$f":"Time!KHG$11","v":0},{"$f":"Time!KHH$11","v":0},{"$f":"Time!KHI$11","v":0},{"$f":"Time!KHJ$11","v":0},{"$f":"Time!KHK$11","v":0},{"$f":"Time!KHL$11","v":0},{"$f":"Time!KHM$11","v":0},{"$f":"Time!KHN$11","v":0},{"$f":"Time!KHO$11","v":0},{"$f":"Time!KHP$11","v":0},{"$f":"Time!KHQ$11","v":0},{"$f":"Time!KHR$11","v":0},{"$f":"Time!KHS$11","v":0},{"$f":"Time!KHT$11","v":0},{"$f":"Time!KHU$11","v":0},{"$f":"Time!KHV$11","v":0},{"$f":"Time!KHW$11","v":0},{"$f":"Time!KHX$11","v":0},{"$f":"Time!KHY$11","v":0},{"$f":"Time!KHZ$11","v":0},{"$f":"Time!KIA$11","v":0},{"$f":"Time!KIB$11","v":0},{"$f":"Time!KIC$11","v":0},{"$f":"Time!KID$11","v":0},{"$f":"Time!KIE$11","v":0},{"$f":"Time!KIF$11","v":0},{"$f":"Time!KIG$11","v":0},{"$f":"Time!KIH$11","v":0},{"$f":"Time!KII$11","v":0},{"$f":"Time!KIJ$11","v":0},{"$f":"Time!KIK$11","v":0},{"$f":"Time!KIL$11","v":0},{"$f":"Time!KIM$11","v":0},{"$f":"Time!KIN$11","v":0},{"$f":"Time!KIO$11","v":0},{"$f":"Time!KIP$11","v":0},{"$f":"Time!KIQ$11","v":0},{"$f":"Time!KIR$11","v":0},{"$f":"Time!KIS$11","v":0},{"$f":"Time!KIT$11","v":0},{"$f":"Time!KIU$11","v":0},{"$f":"Time!KIV$11","v":0},{"$f":"Time!KIW$11","v":0},{"$f":"Time!KIX$11","v":0},{"$f":"Time!KIY$11","v":0},{"$f":"Time!KIZ$11","v":0},{"$f":"Time!KJA$11","v":0},{"$f":"Time!KJB$11","v":0},{"$f":"Time!KJC$11","v":0},{"$f":"Time!KJD$11","v":0},{"$f":"Time!KJE$11","v":0},{"$f":"Time!KJF$11","v":0},{"$f":"Time!KJG$11","v":0},{"$f":"Time!KJH$11","v":0},{"$f":"Time!KJI$11","v":0},{"$f":"Time!KJJ$11","v":0},{"$f":"Time!KJK$11","v":0},{"$f":"Time!KJL$11","v":0},{"$f":"Time!KJM$11","v":0},{"$f":"Time!KJN$11","v":0},{"$f":"Time!KJO$11","v":0},{"$f":"Time!KJP$11","v":0},{"$f":"Time!KJQ$11","v":0},{"$f":"Time!KJR$11","v":0},{"$f":"Time!KJS$11","v":0},{"$f":"Time!KJT$11","v":0},{"$f":"Time!KJU$11","v":0},{"$f":"Time!KJV$11","v":0},{"$f":"Time!KJW$11","v":0},{"$f":"Time!KJX$11","v":0},{"$f":"Time!KJY$11","v":0},{"$f":"Time!KJZ$11","v":0},{"$f":"Time!KKA$11","v":0},{"$f":"Time!KKB$11","v":0},{"$f":"Time!KKC$11","v":0},{"$f":"Time!KKD$11","v":0},{"$f":"Time!KKE$11","v":0},{"$f":"Time!KKF$11","v":0},{"$f":"Time!KKG$11","v":0},{"$f":"Time!KKH$11","v":0},{"$f":"Time!KKI$11","v":0},{"$f":"Time!KKJ$11","v":0},{"$f":"Time!KKK$11","v":0},{"$f":"Time!KKL$11","v":0},{"$f":"Time!KKM$11","v":0},{"$f":"Time!KKN$11","v":0},{"$f":"Time!KKO$11","v":0},{"$f":"Time!KKP$11","v":0},{"$f":"Time!KKQ$11","v":0},{"$f":"Time!KKR$11","v":0},{"$f":"Time!KKS$11","v":0},{"$f":"Time!KKT$11","v":0},{"$f":"Time!KKU$11","v":0},{"$f":"Time!KKV$11","v":0},{"$f":"Time!KKW$11","v":0},{"$f":"Time!KKX$11","v":0},{"$f":"Time!KKY$11","v":0},{"$f":"Time!KKZ$11","v":0},{"$f":"Time!KLA$11","v":0},{"$f":"Time!KLB$11","v":0},{"$f":"Time!KLC$11","v":0},{"$f":"Time!KLD$11","v":0},{"$f":"Time!KLE$11","v":0},{"$f":"Time!KLF$11","v":0},{"$f":"Time!KLG$11","v":0},{"$f":"Time!KLH$11","v":0},{"$f":"Time!KLI$11","v":0},{"$f":"Time!KLJ$11","v":0},{"$f":"Time!KLK$11","v":0},{"$f":"Time!KLL$11","v":0},{"$f":"Time!KLM$11","v":0},{"$f":"Time!KLN$11","v":0},{"$f":"Time!KLO$11","v":0},{"$f":"Time!KLP$11","v":0},{"$f":"Time!KLQ$11","v":0},{"$f":"Time!KLR$11","v":0},{"$f":"Time!KLS$11","v":0},{"$f":"Time!KLT$11","v":0},{"$f":"Time!KLU$11","v":0},{"$f":"Time!KLV$11","v":0},{"$f":"Time!KLW$11","v":0},{"$f":"Time!KLX$11","v":0},{"$f":"Time!KLY$11","v":0},{"$f":"Time!KLZ$11","v":0},{"$f":"Time!KMA$11","v":0},{"$f":"Time!KMB$11","v":0},{"$f":"Time!KMC$11","v":0},{"$f":"Time!KMD$11","v":0},{"$f":"Time!KME$11","v":0},{"$f":"Time!KMF$11","v":0},{"$f":"Time!KMG$11","v":0},{"$f":"Time!KMH$11","v":0},{"$f":"Time!KMI$11","v":0},{"$f":"Time!KMJ$11","v":0},{"$f":"Time!KMK$11","v":0},{"$f":"Time!KML$11","v":0},{"$f":"Time!KMM$11","v":0},{"$f":"Time!KMN$11","v":0},{"$f":"Time!KMO$11","v":0},{"$f":"Time!KMP$11","v":0},{"$f":"Time!KMQ$11","v":0},{"$f":"Time!KMR$11","v":0},{"$f":"Time!KMS$11","v":0},{"$f":"Time!KMT$11","v":0},{"$f":"Time!KMU$11","v":0},{"$f":"Time!KMV$11","v":0},{"$f":"Time!KMW$11","v":0},{"$f":"Time!KMX$11","v":0},{"$f":"Time!KMY$11","v":0},{"$f":"Time!KMZ$11","v":0},{"$f":"Time!KNA$11","v":0},{"$f":"Time!KNB$11","v":0},{"$f":"Time!KNC$11","v":0},{"$f":"Time!KND$11","v":0},{"$f":"Time!KNE$11","v":0},{"$f":"Time!KNF$11","v":0},{"$f":"Time!KNG$11","v":0},{"$f":"Time!KNH$11","v":0},{"$f":"Time!KNI$11","v":0},{"$f":"Time!KNJ$11","v":0},{"$f":"Time!KNK$11","v":0},{"$f":"Time!KNL$11","v":0},{"$f":"Time!KNM$11","v":0},{"$f":"Time!KNN$11","v":0},{"$f":"Time!KNO$11","v":0},{"$f":"Time!KNP$11","v":0},{"$f":"Time!KNQ$11","v":0},{"$f":"Time!KNR$11","v":0},{"$f":"Time!KNS$11","v":0},{"$f":"Time!KNT$11","v":0},{"$f":"Time!KNU$11","v":0},{"$f":"Time!KNV$11","v":0},{"$f":"Time!KNW$11","v":0},{"$f":"Time!KNX$11","v":0},{"$f":"Time!KNY$11","v":0},{"$f":"Time!KNZ$11","v":0},{"$f":"Time!KOA$11","v":0},{"$f":"Time!KOB$11","v":0},{"$f":"Time!KOC$11","v":0},{"$f":"Time!KOD$11","v":0},{"$f":"Time!KOE$11","v":0},{"$f":"Time!KOF$11","v":0},{"$f":"Time!KOG$11","v":0},{"$f":"Time!KOH$11","v":0},{"$f":"Time!KOI$11","v":0},{"$f":"Time!KOJ$11","v":0},{"$f":"Time!KOK$11","v":0},{"$f":"Time!KOL$11","v":0},{"$f":"Time!KOM$11","v":0},{"$f":"Time!KON$11","v":0},{"$f":"Time!KOO$11","v":0},{"$f":"Time!KOP$11","v":0},{"$f":"Time!KOQ$11","v":0},{"$f":"Time!KOR$11","v":0},{"$f":"Time!KOS$11","v":0},{"$f":"Time!KOT$11","v":0},{"$f":"Time!KOU$11","v":0},{"$f":"Time!KOV$11","v":0},{"$f":"Time!KOW$11","v":0},{"$f":"Time!KOX$11","v":0},{"$f":"Time!KOY$11","v":0},{"$f":"Time!KOZ$11","v":0},{"$f":"Time!KPA$11","v":0},{"$f":"Time!KPB$11","v":0},{"$f":"Time!KPC$11","v":0},{"$f":"Time!KPD$11","v":0},{"$f":"Time!KPE$11","v":0},{"$f":"Time!KPF$11","v":0},{"$f":"Time!KPG$11","v":0},{"$f":"Time!KPH$11","v":0},{"$f":"Time!KPI$11","v":0},{"$f":"Time!KPJ$11","v":0},{"$f":"Time!KPK$11","v":0},{"$f":"Time!KPL$11","v":0},{"$f":"Time!KPM$11","v":0},{"$f":"Time!KPN$11","v":0},{"$f":"Time!KPO$11","v":0},{"$f":"Time!KPP$11","v":0},{"$f":"Time!KPQ$11","v":0},{"$f":"Time!KPR$11","v":0},{"$f":"Time!KPS$11","v":0},{"$f":"Time!KPT$11","v":0},{"$f":"Time!KPU$11","v":0},{"$f":"Time!KPV$11","v":0},{"$f":"Time!KPW$11","v":0},{"$f":"Time!KPX$11","v":0},{"$f":"Time!KPY$11","v":0},{"$f":"Time!KPZ$11","v":0},{"$f":"Time!KQA$11","v":0},{"$f":"Time!KQB$11","v":0},{"$f":"Time!KQC$11","v":0},{"$f":"Time!KQD$11","v":0},{"$f":"Time!KQE$11","v":0},{"$f":"Time!KQF$11","v":0},{"$f":"Time!KQG$11","v":0},{"$f":"Time!KQH$11","v":0},{"$f":"Time!KQI$11","v":0},{"$f":"Time!KQJ$11","v":0},{"$f":"Time!KQK$11","v":0},{"$f":"Time!KQL$11","v":0},{"$f":"Time!KQM$11","v":0},{"$f":"Time!KQN$11","v":0},{"$f":"Time!KQO$11","v":0},{"$f":"Time!KQP$11","v":0},{"$f":"Time!KQQ$11","v":0},{"$f":"Time!KQR$11","v":0},{"$f":"Time!KQS$11","v":0},{"$f":"Time!KQT$11","v":0},{"$f":"Time!KQU$11","v":0},{"$f":"Time!KQV$11","v":0},{"$f":"Time!KQW$11","v":0},{"$f":"Time!KQX$11","v":0},{"$f":"Time!KQY$11","v":0},{"$f":"Time!KQZ$11","v":0},{"$f":"Time!KRA$11","v":0},{"$f":"Time!KRB$11","v":0},{"$f":"Time!KRC$11","v":0},{"$f":"Time!KRD$11","v":0},{"$f":"Time!KRE$11","v":0},{"$f":"Time!KRF$11","v":0},{"$f":"Time!KRG$11","v":0},{"$f":"Time!KRH$11","v":0},{"$f":"Time!KRI$11","v":0},{"$f":"Time!KRJ$11","v":0},{"$f":"Time!KRK$11","v":0},{"$f":"Time!KRL$11","v":0},{"$f":"Time!KRM$11","v":0},{"$f":"Time!KRN$11","v":0},{"$f":"Time!KRO$11","v":0},{"$f":"Time!KRP$11","v":0},{"$f":"Time!KRQ$11","v":0},{"$f":"Time!KRR$11","v":0},{"$f":"Time!KRS$11","v":0},{"$f":"Time!KRT$11","v":0},{"$f":"Time!KRU$11","v":0},{"$f":"Time!KRV$11","v":0},{"$f":"Time!KRW$11","v":0},{"$f":"Time!KRX$11","v":0},{"$f":"Time!KRY$11","v":0},{"$f":"Time!KRZ$11","v":0},{"$f":"Time!KSA$11","v":0},{"$f":"Time!KSB$11","v":0},{"$f":"Time!KSC$11","v":0},{"$f":"Time!KSD$11","v":0},{"$f":"Time!KSE$11","v":0},{"$f":"Time!KSF$11","v":0},{"$f":"Time!KSG$11","v":0},{"$f":"Time!KSH$11","v":0},{"$f":"Time!KSI$11","v":0},{"$f":"Time!KSJ$11","v":0},{"$f":"Time!KSK$11","v":0},{"$f":"Time!KSL$11","v":0},{"$f":"Time!KSM$11","v":0},{"$f":"Time!KSN$11","v":0},{"$f":"Time!KSO$11","v":0},{"$f":"Time!KSP$11","v":0},{"$f":"Time!KSQ$11","v":0},{"$f":"Time!KSR$11","v":0},{"$f":"Time!KSS$11","v":0},{"$f":"Time!KST$11","v":0},{"$f":"Time!KSU$11","v":0},{"$f":"Time!KSV$11","v":0},{"$f":"Time!KSW$11","v":0},{"$f":"Time!KSX$11","v":0},{"$f":"Time!KSY$11","v":0},{"$f":"Time!KSZ$11","v":0},{"$f":"Time!KTA$11","v":0},{"$f":"Time!KTB$11","v":0},{"$f":"Time!KTC$11","v":0},{"$f":"Time!KTD$11","v":0},{"$f":"Time!KTE$11","v":0},{"$f":"Time!KTF$11","v":0},{"$f":"Time!KTG$11","v":0},{"$f":"Time!KTH$11","v":0},{"$f":"Time!KTI$11","v":0},{"$f":"Time!KTJ$11","v":0},{"$f":"Time!KTK$11","v":0},{"$f":"Time!KTL$11","v":0},{"$f":"Time!KTM$11","v":0},{"$f":"Time!KTN$11","v":0},{"$f":"Time!KTO$11","v":0},{"$f":"Time!KTP$11","v":0},{"$f":"Time!KTQ$11","v":0},{"$f":"Time!KTR$11","v":0},{"$f":"Time!KTS$11","v":0},{"$f":"Time!KTT$11","v":0},{"$f":"Time!KTU$11","v":0},{"$f":"Time!KTV$11","v":0},{"$f":"Time!KTW$11","v":0},{"$f":"Time!KTX$11","v":0},{"$f":"Time!KTY$11","v":0},{"$f":"Time!KTZ$11","v":0},{"$f":"Time!KUA$11","v":0},{"$f":"Time!KUB$11","v":0},{"$f":"Time!KUC$11","v":0},{"$f":"Time!KUD$11","v":0},{"$f":"Time!KUE$11","v":0},{"$f":"Time!KUF$11","v":0},{"$f":"Time!KUG$11","v":0},{"$f":"Time!KUH$11","v":0},{"$f":"Time!KUI$11","v":0},{"$f":"Time!KUJ$11","v":0},{"$f":"Time!KUK$11","v":0},{"$f":"Time!KUL$11","v":0},{"$f":"Time!KUM$11","v":0},{"$f":"Time!KUN$11","v":0},{"$f":"Time!KUO$11","v":0},{"$f":"Time!KUP$11","v":0},{"$f":"Time!KUQ$11","v":0},{"$f":"Time!KUR$11","v":0},{"$f":"Time!KUS$11","v":0},{"$f":"Time!KUT$11","v":0},{"$f":"Time!KUU$11","v":0},{"$f":"Time!KUV$11","v":0},{"$f":"Time!KUW$11","v":0},{"$f":"Time!KUX$11","v":0},{"$f":"Time!KUY$11","v":0},{"$f":"Time!KUZ$11","v":0},{"$f":"Time!KVA$11","v":0},{"$f":"Time!KVB$11","v":0},{"$f":"Time!KVC$11","v":0},{"$f":"Time!KVD$11","v":0},{"$f":"Time!KVE$11","v":0},{"$f":"Time!KVF$11","v":0},{"$f":"Time!KVG$11","v":0},{"$f":"Time!KVH$11","v":0},{"$f":"Time!KVI$11","v":0},{"$f":"Time!KVJ$11","v":0},{"$f":"Time!KVK$11","v":0},{"$f":"Time!KVL$11","v":0},{"$f":"Time!KVM$11","v":0},{"$f":"Time!KVN$11","v":0},{"$f":"Time!KVO$11","v":0},{"$f":"Time!KVP$11","v":0},{"$f":"Time!KVQ$11","v":0},{"$f":"Time!KVR$11","v":0},{"$f":"Time!KVS$11","v":0},{"$f":"Time!KVT$11","v":0},{"$f":"Time!KVU$11","v":0},{"$f":"Time!KVV$11","v":0},{"$f":"Time!KVW$11","v":0},{"$f":"Time!KVX$11","v":0},{"$f":"Time!KVY$11","v":0},{"$f":"Time!KVZ$11","v":0},{"$f":"Time!KWA$11","v":0},{"$f":"Time!KWB$11","v":0},{"$f":"Time!KWC$11","v":0},{"$f":"Time!KWD$11","v":0},{"$f":"Time!KWE$11","v":0},{"$f":"Time!KWF$11","v":0},{"$f":"Time!KWG$11","v":0},{"$f":"Time!KWH$11","v":0},{"$f":"Time!KWI$11","v":0},{"$f":"Time!KWJ$11","v":0},{"$f":"Time!KWK$11","v":0},{"$f":"Time!KWL$11","v":0},{"$f":"Time!KWM$11","v":0},{"$f":"Time!KWN$11","v":0},{"$f":"Time!KWO$11","v":0},{"$f":"Time!KWP$11","v":0},{"$f":"Time!KWQ$11","v":0},{"$f":"Time!KWR$11","v":0},{"$f":"Time!KWS$11","v":0},{"$f":"Time!KWT$11","v":0},{"$f":"Time!KWU$11","v":0},{"$f":"Time!KWV$11","v":0},{"$f":"Time!KWW$11","v":0},{"$f":"Time!KWX$11","v":0},{"$f":"Time!KWY$11","v":0},{"$f":"Time!KWZ$11","v":0},{"$f":"Time!KXA$11","v":0},{"$f":"Time!KXB$11","v":0},{"$f":"Time!KXC$11","v":0},{"$f":"Time!KXD$11","v":0},{"$f":"Time!KXE$11","v":0},{"$f":"Time!KXF$11","v":0},{"$f":"Time!KXG$11","v":0},{"$f":"Time!KXH$11","v":0},{"$f":"Time!KXI$11","v":0},{"$f":"Time!KXJ$11","v":0},{"$f":"Time!KXK$11","v":0},{"$f":"Time!KXL$11","v":0},{"$f":"Time!KXM$11","v":0},{"$f":"Time!KXN$11","v":0},{"$f":"Time!KXO$11","v":0},{"$f":"Time!KXP$11","v":0},{"$f":"Time!KXQ$11","v":0},{"$f":"Time!KXR$11","v":0},{"$f":"Time!KXS$11","v":0},{"$f":"Time!KXT$11","v":0},{"$f":"Time!KXU$11","v":0},{"$f":"Time!KXV$11","v":0},{"$f":"Time!KXW$11","v":0},{"$f":"Time!KXX$11","v":0},{"$f":"Time!KXY$11","v":0},{"$f":"Time!KXZ$11","v":0},{"$f":"Time!KYA$11","v":0},{"$f":"Time!KYB$11","v":0},{"$f":"Time!KYC$11","v":0},{"$f":"Time!KYD$11","v":0},{"$f":"Time!KYE$11","v":0},{"$f":"Time!KYF$11","v":0},{"$f":"Time!KYG$11","v":0},{"$f":"Time!KYH$11","v":0},{"$f":"Time!KYI$11","v":0},{"$f":"Time!KYJ$11","v":0},{"$f":"Time!KYK$11","v":0},{"$f":"Time!KYL$11","v":0},{"$f":"Time!KYM$11","v":0},{"$f":"Time!KYN$11","v":0},{"$f":"Time!KYO$11","v":0},{"$f":"Time!KYP$11","v":0},{"$f":"Time!KYQ$11","v":0},{"$f":"Time!KYR$11","v":0},{"$f":"Time!KYS$11","v":0},{"$f":"Time!KYT$11","v":0},{"$f":"Time!KYU$11","v":0},{"$f":"Time!KYV$11","v":0},{"$f":"Time!KYW$11","v":0},{"$f":"Time!KYX$11","v":0},{"$f":"Time!KYY$11","v":0},{"$f":"Time!KYZ$11","v":0},{"$f":"Time!KZA$11","v":0},{"$f":"Time!KZB$11","v":0},{"$f":"Time!KZC$11","v":0},{"$f":"Time!KZD$11","v":0},{"$f":"Time!KZE$11","v":0},{"$f":"Time!KZF$11","v":0},{"$f":"Time!KZG$11","v":0},{"$f":"Time!KZH$11","v":0},{"$f":"Time!KZI$11","v":0},{"$f":"Time!KZJ$11","v":0},{"$f":"Time!KZK$11","v":0},{"$f":"Time!KZL$11","v":0},{"$f":"Time!KZM$11","v":0},{"$f":"Time!KZN$11","v":0},{"$f":"Time!KZO$11","v":0},{"$f":"Time!KZP$11","v":0},{"$f":"Time!KZQ$11","v":0},{"$f":"Time!KZR$11","v":0},{"$f":"Time!KZS$11","v":0},{"$f":"Time!KZT$11","v":0},{"$f":"Time!KZU$11","v":0},{"$f":"Time!KZV$11","v":0},{"$f":"Time!KZW$11","v":0},{"$f":"Time!KZX$11","v":0},{"$f":"Time!KZY$11","v":0},{"$f":"Time!KZZ$11","v":0},{"$f":"Time!LAA$11","v":0},{"$f":"Time!LAB$11","v":0},{"$f":"Time!LAC$11","v":0},{"$f":"Time!LAD$11","v":0},{"$f":"Time!LAE$11","v":0},{"$f":"Time!LAF$11","v":0},{"$f":"Time!LAG$11","v":0},{"$f":"Time!LAH$11","v":0},{"$f":"Time!LAI$11","v":0},{"$f":"Time!LAJ$11","v":0},{"$f":"Time!LAK$11","v":0},{"$f":"Time!LAL$11","v":0},{"$f":"Time!LAM$11","v":0},{"$f":"Time!LAN$11","v":0},{"$f":"Time!LAO$11","v":0},{"$f":"Time!LAP$11","v":0},{"$f":"Time!LAQ$11","v":0},{"$f":"Time!LAR$11","v":0},{"$f":"Time!LAS$11","v":0},{"$f":"Time!LAT$11","v":0},{"$f":"Time!LAU$11","v":0},{"$f":"Time!LAV$11","v":0},{"$f":"Time!LAW$11","v":0},{"$f":"Time!LAX$11","v":0},{"$f":"Time!LAY$11","v":0},{"$f":"Time!LAZ$11","v":0},{"$f":"Time!LBA$11","v":0},{"$f":"Time!LBB$11","v":0},{"$f":"Time!LBC$11","v":0},{"$f":"Time!LBD$11","v":0},{"$f":"Time!LBE$11","v":0},{"$f":"Time!LBF$11","v":0},{"$f":"Time!LBG$11","v":0},{"$f":"Time!LBH$11","v":0},{"$f":"Time!LBI$11","v":0},{"$f":"Time!LBJ$11","v":0},{"$f":"Time!LBK$11","v":0},{"$f":"Time!LBL$11","v":0},{"$f":"Time!LBM$11","v":0},{"$f":"Time!LBN$11","v":0},{"$f":"Time!LBO$11","v":0},{"$f":"Time!LBP$11","v":0},{"$f":"Time!LBQ$11","v":0},{"$f":"Time!LBR$11","v":0},{"$f":"Time!LBS$11","v":0},{"$f":"Time!LBT$11","v":0},{"$f":"Time!LBU$11","v":0},{"$f":"Time!LBV$11","v":0},{"$f":"Time!LBW$11","v":0},{"$f":"Time!LBX$11","v":0},{"$f":"Time!LBY$11","v":0},{"$f":"Time!LBZ$11","v":0},{"$f":"Time!LCA$11","v":0},{"$f":"Time!LCB$11","v":0},{"$f":"Time!LCC$11","v":0},{"$f":"Time!LCD$11","v":0},{"$f":"Time!LCE$11","v":0},{"$f":"Time!LCF$11","v":0},{"$f":"Time!LCG$11","v":0},{"$f":"Time!LCH$11","v":0},{"$f":"Time!LCI$11","v":0},{"$f":"Time!LCJ$11","v":0},{"$f":"Time!LCK$11","v":0},{"$f":"Time!LCL$11","v":0},{"$f":"Time!LCM$11","v":0},{"$f":"Time!LCN$11","v":0},{"$f":"Time!LCO$11","v":0},{"$f":"Time!LCP$11","v":0},{"$f":"Time!LCQ$11","v":0},{"$f":"Time!LCR$11","v":0},{"$f":"Time!LCS$11","v":0},{"$f":"Time!LCT$11","v":0},{"$f":"Time!LCU$11","v":0},{"$f":"Time!LCV$11","v":0},{"$f":"Time!LCW$11","v":0},{"$f":"Time!LCX$11","v":0},{"$f":"Time!LCY$11","v":0},{"$f":"Time!LCZ$11","v":0},{"$f":"Time!LDA$11","v":0},{"$f":"Time!LDB$11","v":0},{"$f":"Time!LDC$11","v":0},{"$f":"Time!LDD$11","v":0},{"$f":"Time!LDE$11","v":0},{"$f":"Time!LDF$11","v":0},{"$f":"Time!LDG$11","v":0},{"$f":"Time!LDH$11","v":0},{"$f":"Time!LDI$11","v":0},{"$f":"Time!LDJ$11","v":0},{"$f":"Time!LDK$11","v":0},{"$f":"Time!LDL$11","v":0},{"$f":"Time!LDM$11","v":0},{"$f":"Time!LDN$11","v":0},{"$f":"Time!LDO$11","v":0},{"$f":"Time!LDP$11","v":0},{"$f":"Time!LDQ$11","v":0},{"$f":"Time!LDR$11","v":0},{"$f":"Time!LDS$11","v":0},{"$f":"Time!LDT$11","v":0},{"$f":"Time!LDU$11","v":0},{"$f":"Time!LDV$11","v":0},{"$f":"Time!LDW$11","v":0},{"$f":"Time!LDX$11","v":0},{"$f":"Time!LDY$11","v":0},{"$f":"Time!LDZ$11","v":0},{"$f":"Time!LEA$11","v":0},{"$f":"Time!LEB$11","v":0},{"$f":"Time!LEC$11","v":0},{"$f":"Time!LED$11","v":0},{"$f":"Time!LEE$11","v":0},{"$f":"Time!LEF$11","v":0},{"$f":"Time!LEG$11","v":0},{"$f":"Time!LEH$11","v":0},{"$f":"Time!LEI$11","v":0},{"$f":"Time!LEJ$11","v":0},{"$f":"Time!LEK$11","v":0},{"$f":"Time!LEL$11","v":0},{"$f":"Time!LEM$11","v":0},{"$f":"Time!LEN$11","v":0},{"$f":"Time!LEO$11","v":0},{"$f":"Time!LEP$11","v":0},{"$f":"Time!LEQ$11","v":0},{"$f":"Time!LER$11","v":0},{"$f":"Time!LES$11","v":0},{"$f":"Time!LET$11","v":0},{"$f":"Time!LEU$11","v":0},{"$f":"Time!LEV$11","v":0},{"$f":"Time!LEW$11","v":0},{"$f":"Time!LEX$11","v":0},{"$f":"Time!LEY$11","v":0},{"$f":"Time!LEZ$11","v":0},{"$f":"Time!LFA$11","v":0},{"$f":"Time!LFB$11","v":0},{"$f":"Time!LFC$11","v":0},{"$f":"Time!LFD$11","v":0},{"$f":"Time!LFE$11","v":0},{"$f":"Time!LFF$11","v":0},{"$f":"Time!LFG$11","v":0},{"$f":"Time!LFH$11","v":0},{"$f":"Time!LFI$11","v":0},{"$f":"Time!LFJ$11","v":0},{"$f":"Time!LFK$11","v":0},{"$f":"Time!LFL$11","v":0},{"$f":"Time!LFM$11","v":0},{"$f":"Time!LFN$11","v":0},{"$f":"Time!LFO$11","v":0},{"$f":"Time!LFP$11","v":0},{"$f":"Time!LFQ$11","v":0},{"$f":"Time!LFR$11","v":0},{"$f":"Time!LFS$11","v":0},{"$f":"Time!LFT$11","v":0},{"$f":"Time!LFU$11","v":0},{"$f":"Time!LFV$11","v":0},{"$f":"Time!LFW$11","v":0},{"$f":"Time!LFX$11","v":0},{"$f":"Time!LFY$11","v":0},{"$f":"Time!LFZ$11","v":0},{"$f":"Time!LGA$11","v":0},{"$f":"Time!LGB$11","v":0},{"$f":"Time!LGC$11","v":0},{"$f":"Time!LGD$11","v":0},{"$f":"Time!LGE$11","v":0},{"$f":"Time!LGF$11","v":0},{"$f":"Time!LGG$11","v":0},{"$f":"Time!LGH$11","v":0},{"$f":"Time!LGI$11","v":0},{"$f":"Time!LGJ$11","v":0},{"$f":"Time!LGK$11","v":0},{"$f":"Time!LGL$11","v":0},{"$f":"Time!LGM$11","v":0},{"$f":"Time!LGN$11","v":0},{"$f":"Time!LGO$11","v":0},{"$f":"Time!LGP$11","v":0},{"$f":"Time!LGQ$11","v":0},{"$f":"Time!LGR$11","v":0},{"$f":"Time!LGS$11","v":0},{"$f":"Time!LGT$11","v":0},{"$f":"Time!LGU$11","v":0},{"$f":"Time!LGV$11","v":0},{"$f":"Time!LGW$11","v":0},{"$f":"Time!LGX$11","v":0},{"$f":"Time!LGY$11","v":0},{"$f":"Time!LGZ$11","v":0},{"$f":"Time!LHA$11","v":0},{"$f":"Time!LHB$11","v":0},{"$f":"Time!LHC$11","v":0},{"$f":"Time!LHD$11","v":0},{"$f":"Time!LHE$11","v":0},{"$f":"Time!LHF$11","v":0},{"$f":"Time!LHG$11","v":0},{"$f":"Time!LHH$11","v":0},{"$f":"Time!LHI$11","v":0},{"$f":"Time!LHJ$11","v":0},{"$f":"Time!LHK$11","v":0},{"$f":"Time!LHL$11","v":0},{"$f":"Time!LHM$11","v":0},{"$f":"Time!LHN$11","v":0},{"$f":"Time!LHO$11","v":0},{"$f":"Time!LHP$11","v":0},{"$f":"Time!LHQ$11","v":0},{"$f":"Time!LHR$11","v":0},{"$f":"Time!LHS$11","v":0},{"$f":"Time!LHT$11","v":0},{"$f":"Time!LHU$11","v":0},{"$f":"Time!LHV$11","v":0},{"$f":"Time!LHW$11","v":0},{"$f":"Time!LHX$11","v":0},{"$f":"Time!LHY$11","v":0},{"$f":"Time!LHZ$11","v":0},{"$f":"Time!LIA$11","v":0},{"$f":"Time!LIB$11","v":0},{"$f":"Time!LIC$11","v":0},{"$f":"Time!LID$11","v":0},{"$f":"Time!LIE$11","v":0},{"$f":"Time!LIF$11","v":0},{"$f":"Time!LIG$11","v":0},{"$f":"Time!LIH$11","v":0},{"$f":"Time!LII$11","v":0},{"$f":"Time!LIJ$11","v":0},{"$f":"Time!LIK$11","v":0},{"$f":"Time!LIL$11","v":0},{"$f":"Time!LIM$11","v":0},{"$f":"Time!LIN$11","v":0},{"$f":"Time!LIO$11","v":0},{"$f":"Time!LIP$11","v":0},{"$f":"Time!LIQ$11","v":0},{"$f":"Time!LIR$11","v":0},{"$f":"Time!LIS$11","v":0},{"$f":"Time!LIT$11","v":0},{"$f":"Time!LIU$11","v":0},{"$f":"Time!LIV$11","v":0},{"$f":"Time!LIW$11","v":0},{"$f":"Time!LIX$11","v":0},{"$f":"Time!LIY$11","v":0},{"$f":"Time!LIZ$11","v":0},{"$f":"Time!LJA$11","v":0},{"$f":"Time!LJB$11","v":0},{"$f":"Time!LJC$11","v":0},{"$f":"Time!LJD$11","v":0},{"$f":"Time!LJE$11","v":0},{"$f":"Time!LJF$11","v":0},{"$f":"Time!LJG$11","v":0},{"$f":"Time!LJH$11","v":0},{"$f":"Time!LJI$11","v":0},{"$f":"Time!LJJ$11","v":0},{"$f":"Time!LJK$11","v":0},{"$f":"Time!LJL$11","v":0},{"$f":"Time!LJM$11","v":0},{"$f":"Time!LJN$11","v":0},{"$f":"Time!LJO$11","v":0},{"$f":"Time!LJP$11","v":0},{"$f":"Time!LJQ$11","v":0},{"$f":"Time!LJR$11","v":0},{"$f":"Time!LJS$11","v":0},{"$f":"Time!LJT$11","v":0},{"$f":"Time!LJU$11","v":0},{"$f":"Time!LJV$11","v":0},{"$f":"Time!LJW$11","v":0},{"$f":"Time!LJX$11","v":0},{"$f":"Time!LJY$11","v":0},{"$f":"Time!LJZ$11","v":0},{"$f":"Time!LKA$11","v":0},{"$f":"Time!LKB$11","v":0},{"$f":"Time!LKC$11","v":0},{"$f":"Time!LKD$11","v":0},{"$f":"Time!LKE$11","v":0},{"$f":"Time!LKF$11","v":0},{"$f":"Time!LKG$11","v":0},{"$f":"Time!LKH$11","v":0},{"$f":"Time!LKI$11","v":0},{"$f":"Time!LKJ$11","v":0},{"$f":"Time!LKK$11","v":0},{"$f":"Time!LKL$11","v":0},{"$f":"Time!LKM$11","v":0},{"$f":"Time!LKN$11","v":0},{"$f":"Time!LKO$11","v":0},{"$f":"Time!LKP$11","v":0},{"$f":"Time!LKQ$11","v":0},{"$f":"Time!LKR$11","v":0},{"$f":"Time!LKS$11","v":0},{"$f":"Time!LKT$11","v":0},{"$f":"Time!LKU$11","v":0},{"$f":"Time!LKV$11","v":0},{"$f":"Time!LKW$11","v":0},{"$f":"Time!LKX$11","v":0},{"$f":"Time!LKY$11","v":0},{"$f":"Time!LKZ$11","v":0},{"$f":"Time!LLA$11","v":0},{"$f":"Time!LLB$11","v":0},{"$f":"Time!LLC$11","v":0},{"$f":"Time!LLD$11","v":0},{"$f":"Time!LLE$11","v":0},{"$f":"Time!LLF$11","v":0},{"$f":"Time!LLG$11","v":0},{"$f":"Time!LLH$11","v":0},{"$f":"Time!LLI$11","v":0},{"$f":"Time!LLJ$11","v":0},{"$f":"Time!LLK$11","v":0},{"$f":"Time!LLL$11","v":0},{"$f":"Time!LLM$11","v":0},{"$f":"Time!LLN$11","v":0},{"$f":"Time!LLO$11","v":0},{"$f":"Time!LLP$11","v":0},{"$f":"Time!LLQ$11","v":0},{"$f":"Time!LLR$11","v":0},{"$f":"Time!LLS$11","v":0},{"$f":"Time!LLT$11","v":0},{"$f":"Time!LLU$11","v":0},{"$f":"Time!LLV$11","v":0},{"$f":"Time!LLW$11","v":0},{"$f":"Time!LLX$11","v":0},{"$f":"Time!LLY$11","v":0},{"$f":"Time!LLZ$11","v":0},{"$f":"Time!LMA$11","v":0},{"$f":"Time!LMB$11","v":0},{"$f":"Time!LMC$11","v":0},{"$f":"Time!LMD$11","v":0},{"$f":"Time!LME$11","v":0},{"$f":"Time!LMF$11","v":0},{"$f":"Time!LMG$11","v":0},{"$f":"Time!LMH$11","v":0},{"$f":"Time!LMI$11","v":0},{"$f":"Time!LMJ$11","v":0},{"$f":"Time!LMK$11","v":0},{"$f":"Time!LML$11","v":0},{"$f":"Time!LMM$11","v":0},{"$f":"Time!LMN$11","v":0},{"$f":"Time!LMO$11","v":0},{"$f":"Time!LMP$11","v":0},{"$f":"Time!LMQ$11","v":0},{"$f":"Time!LMR$11","v":0},{"$f":"Time!LMS$11","v":0},{"$f":"Time!LMT$11","v":0},{"$f":"Time!LMU$11","v":0},{"$f":"Time!LMV$11","v":0},{"$f":"Time!LMW$11","v":0},{"$f":"Time!LMX$11","v":0},{"$f":"Time!LMY$11","v":0},{"$f":"Time!LMZ$11","v":0},{"$f":"Time!LNA$11","v":0},{"$f":"Time!LNB$11","v":0},{"$f":"Time!LNC$11","v":0},{"$f":"Time!LND$11","v":0},{"$f":"Time!LNE$11","v":0},{"$f":"Time!LNF$11","v":0},{"$f":"Time!LNG$11","v":0},{"$f":"Time!LNH$11","v":0},{"$f":"Time!LNI$11","v":0},{"$f":"Time!LNJ$11","v":0},{"$f":"Time!LNK$11","v":0},{"$f":"Time!LNL$11","v":0},{"$f":"Time!LNM$11","v":0},{"$f":"Time!LNN$11","v":0},{"$f":"Time!LNO$11","v":0},{"$f":"Time!LNP$11","v":0},{"$f":"Time!LNQ$11","v":0},{"$f":"Time!LNR$11","v":0},{"$f":"Time!LNS$11","v":0},{"$f":"Time!LNT$11","v":0},{"$f":"Time!LNU$11","v":0},{"$f":"Time!LNV$11","v":0},{"$f":"Time!LNW$11","v":0},{"$f":"Time!LNX$11","v":0},{"$f":"Time!LNY$11","v":0},{"$f":"Time!LNZ$11","v":0},{"$f":"Time!LOA$11","v":0},{"$f":"Time!LOB$11","v":0},{"$f":"Time!LOC$11","v":0},{"$f":"Time!LOD$11","v":0},{"$f":"Time!LOE$11","v":0},{"$f":"Time!LOF$11","v":0},{"$f":"Time!LOG$11","v":0},{"$f":"Time!LOH$11","v":0},{"$f":"Time!LOI$11","v":0},{"$f":"Time!LOJ$11","v":0},{"$f":"Time!LOK$11","v":0},{"$f":"Time!LOL$11","v":0},{"$f":"Time!LOM$11","v":0},{"$f":"Time!LON$11","v":0},{"$f":"Time!LOO$11","v":0},{"$f":"Time!LOP$11","v":0},{"$f":"Time!LOQ$11","v":0},{"$f":"Time!LOR$11","v":0},{"$f":"Time!LOS$11","v":0},{"$f":"Time!LOT$11","v":0},{"$f":"Time!LOU$11","v":0},{"$f":"Time!LOV$11","v":0},{"$f":"Time!LOW$11","v":0},{"$f":"Time!LOX$11","v":0},{"$f":"Time!LOY$11","v":0},{"$f":"Time!LOZ$11","v":0},{"$f":"Time!LPA$11","v":0},{"$f":"Time!LPB$11","v":0},{"$f":"Time!LPC$11","v":0},{"$f":"Time!LPD$11","v":0},{"$f":"Time!LPE$11","v":0},{"$f":"Time!LPF$11","v":0},{"$f":"Time!LPG$11","v":0},{"$f":"Time!LPH$11","v":0},{"$f":"Time!LPI$11","v":0},{"$f":"Time!LPJ$11","v":0},{"$f":"Time!LPK$11","v":0},{"$f":"Time!LPL$11","v":0},{"$f":"Time!LPM$11","v":0},{"$f":"Time!LPN$11","v":0},{"$f":"Time!LPO$11","v":0},{"$f":"Time!LPP$11","v":0},{"$f":"Time!LPQ$11","v":0},{"$f":"Time!LPR$11","v":0},{"$f":"Time!LPS$11","v":0},{"$f":"Time!LPT$11","v":0},{"$f":"Time!LPU$11","v":0},{"$f":"Time!LPV$11","v":0},{"$f":"Time!LPW$11","v":0},{"$f":"Time!LPX$11","v":0},{"$f":"Time!LPY$11","v":0},{"$f":"Time!LPZ$11","v":0},{"$f":"Time!LQA$11","v":0},{"$f":"Time!LQB$11","v":0},{"$f":"Time!LQC$11","v":0},{"$f":"Time!LQD$11","v":0},{"$f":"Time!LQE$11","v":0},{"$f":"Time!LQF$11","v":0},{"$f":"Time!LQG$11","v":0},{"$f":"Time!LQH$11","v":0},{"$f":"Time!LQI$11","v":0},{"$f":"Time!LQJ$11","v":0},{"$f":"Time!LQK$11","v":0},{"$f":"Time!LQL$11","v":0},{"$f":"Time!LQM$11","v":0},{"$f":"Time!LQN$11","v":0},{"$f":"Time!LQO$11","v":0},{"$f":"Time!LQP$11","v":0},{"$f":"Time!LQQ$11","v":0},{"$f":"Time!LQR$11","v":0},{"$f":"Time!LQS$11","v":0},{"$f":"Time!LQT$11","v":0},{"$f":"Time!LQU$11","v":0},{"$f":"Time!LQV$11","v":0},{"$f":"Time!LQW$11","v":0},{"$f":"Time!LQX$11","v":0},{"$f":"Time!LQY$11","v":0},{"$f":"Time!LQZ$11","v":0},{"$f":"Time!LRA$11","v":0},{"$f":"Time!LRB$11","v":0},{"$f":"Time!LRC$11","v":0},{"$f":"Time!LRD$11","v":0},{"$f":"Time!LRE$11","v":0},{"$f":"Time!LRF$11","v":0},{"$f":"Time!LRG$11","v":0},{"$f":"Time!LRH$11","v":0},{"$f":"Time!LRI$11","v":0},{"$f":"Time!LRJ$11","v":0},{"$f":"Time!LRK$11","v":0},{"$f":"Time!LRL$11","v":0},{"$f":"Time!LRM$11","v":0},{"$f":"Time!LRN$11","v":0},{"$f":"Time!LRO$11","v":0},{"$f":"Time!LRP$11","v":0},{"$f":"Time!LRQ$11","v":0},{"$f":"Time!LRR$11","v":0},{"$f":"Time!LRS$11","v":0},{"$f":"Time!LRT$11","v":0},{"$f":"Time!LRU$11","v":0},{"$f":"Time!LRV$11","v":0},{"$f":"Time!LRW$11","v":0},{"$f":"Time!LRX$11","v":0},{"$f":"Time!LRY$11","v":0},{"$f":"Time!LRZ$11","v":0},{"$f":"Time!LSA$11","v":0},{"$f":"Time!LSB$11","v":0},{"$f":"Time!LSC$11","v":0},{"$f":"Time!LSD$11","v":0},{"$f":"Time!LSE$11","v":0},{"$f":"Time!LSF$11","v":0},{"$f":"Time!LSG$11","v":0},{"$f":"Time!LSH$11","v":0},{"$f":"Time!LSI$11","v":0},{"$f":"Time!LSJ$11","v":0},{"$f":"Time!LSK$11","v":0},{"$f":"Time!LSL$11","v":0},{"$f":"Time!LSM$11","v":0},{"$f":"Time!LSN$11","v":0},{"$f":"Time!LSO$11","v":0},{"$f":"Time!LSP$11","v":0},{"$f":"Time!LSQ$11","v":0},{"$f":"Time!LSR$11","v":0},{"$f":"Time!LSS$11","v":0},{"$f":"Time!LST$11","v":0},{"$f":"Time!LSU$11","v":0},{"$f":"Time!LSV$11","v":0},{"$f":"Time!LSW$11","v":0},{"$f":"Time!LSX$11","v":0},{"$f":"Time!LSY$11","v":0},{"$f":"Time!LSZ$11","v":0},{"$f":"Time!LTA$11","v":0},{"$f":"Time!LTB$11","v":0},{"$f":"Time!LTC$11","v":0},{"$f":"Time!LTD$11","v":0},{"$f":"Time!LTE$11","v":0},{"$f":"Time!LTF$11","v":0},{"$f":"Time!LTG$11","v":0},{"$f":"Time!LTH$11","v":0},{"$f":"Time!LTI$11","v":0},{"$f":"Time!LTJ$11","v":0},{"$f":"Time!LTK$11","v":0},{"$f":"Time!LTL$11","v":0},{"$f":"Time!LTM$11","v":0},{"$f":"Time!LTN$11","v":0},{"$f":"Time!LTO$11","v":0},{"$f":"Time!LTP$11","v":0},{"$f":"Time!LTQ$11","v":0},{"$f":"Time!LTR$11","v":0},{"$f":"Time!LTS$11","v":0},{"$f":"Time!LTT$11","v":0},{"$f":"Time!LTU$11","v":0},{"$f":"Time!LTV$11","v":0},{"$f":"Time!LTW$11","v":0},{"$f":"Time!LTX$11","v":0},{"$f":"Time!LTY$11","v":0},{"$f":"Time!LTZ$11","v":0},{"$f":"Time!LUA$11","v":0},{"$f":"Time!LUB$11","v":0},{"$f":"Time!LUC$11","v":0},{"$f":"Time!LUD$11","v":0},{"$f":"Time!LUE$11","v":0},{"$f":"Time!LUF$11","v":0},{"$f":"Time!LUG$11","v":0},{"$f":"Time!LUH$11","v":0},{"$f":"Time!LUI$11","v":0},{"$f":"Time!LUJ$11","v":0},{"$f":"Time!LUK$11","v":0},{"$f":"Time!LUL$11","v":0},{"$f":"Time!LUM$11","v":0},{"$f":"Time!LUN$11","v":0},{"$f":"Time!LUO$11","v":0},{"$f":"Time!LUP$11","v":0},{"$f":"Time!LUQ$11","v":0},{"$f":"Time!LUR$11","v":0},{"$f":"Time!LUS$11","v":0},{"$f":"Time!LUT$11","v":0},{"$f":"Time!LUU$11","v":0},{"$f":"Time!LUV$11","v":0},{"$f":"Time!LUW$11","v":0},{"$f":"Time!LUX$11","v":0},{"$f":"Time!LUY$11","v":0},{"$f":"Time!LUZ$11","v":0},{"$f":"Time!LVA$11","v":0},{"$f":"Time!LVB$11","v":0},{"$f":"Time!LVC$11","v":0},{"$f":"Time!LVD$11","v":0},{"$f":"Time!LVE$11","v":0},{"$f":"Time!LVF$11","v":0},{"$f":"Time!LVG$11","v":0},{"$f":"Time!LVH$11","v":0},{"$f":"Time!LVI$11","v":0},{"$f":"Time!LVJ$11","v":0},{"$f":"Time!LVK$11","v":0},{"$f":"Time!LVL$11","v":0},{"$f":"Time!LVM$11","v":0},{"$f":"Time!LVN$11","v":0},{"$f":"Time!LVO$11","v":0},{"$f":"Time!LVP$11","v":0},{"$f":"Time!LVQ$11","v":0},{"$f":"Time!LVR$11","v":0},{"$f":"Time!LVS$11","v":0},{"$f":"Time!LVT$11","v":0},{"$f":"Time!LVU$11","v":0},{"$f":"Time!LVV$11","v":0},{"$f":"Time!LVW$11","v":0},{"$f":"Time!LVX$11","v":0},{"$f":"Time!LVY$11","v":0},{"$f":"Time!LVZ$11","v":0},{"$f":"Time!LWA$11","v":0},{"$f":"Time!LWB$11","v":0},{"$f":"Time!LWC$11","v":0},{"$f":"Time!LWD$11","v":0},{"$f":"Time!LWE$11","v":0},{"$f":"Time!LWF$11","v":0},{"$f":"Time!LWG$11","v":0},{"$f":"Time!LWH$11","v":0},{"$f":"Time!LWI$11","v":0},{"$f":"Time!LWJ$11","v":0},{"$f":"Time!LWK$11","v":0},{"$f":"Time!LWL$11","v":0},{"$f":"Time!LWM$11","v":0},{"$f":"Time!LWN$11","v":0},{"$f":"Time!LWO$11","v":0},{"$f":"Time!LWP$11","v":0},{"$f":"Time!LWQ$11","v":0},{"$f":"Time!LWR$11","v":0},{"$f":"Time!LWS$11","v":0},{"$f":"Time!LWT$11","v":0},{"$f":"Time!LWU$11","v":0},{"$f":"Time!LWV$11","v":0},{"$f":"Time!LWW$11","v":0},{"$f":"Time!LWX$11","v":0},{"$f":"Time!LWY$11","v":0},{"$f":"Time!LWZ$11","v":0},{"$f":"Time!LXA$11","v":0},{"$f":"Time!LXB$11","v":0},{"$f":"Time!LXC$11","v":0},{"$f":"Time!LXD$11","v":0},{"$f":"Time!LXE$11","v":0},{"$f":"Time!LXF$11","v":0},{"$f":"Time!LXG$11","v":0},{"$f":"Time!LXH$11","v":0},{"$f":"Time!LXI$11","v":0},{"$f":"Time!LXJ$11","v":0},{"$f":"Time!LXK$11","v":0},{"$f":"Time!LXL$11","v":0},{"$f":"Time!LXM$11","v":0},{"$f":"Time!LXN$11","v":0},{"$f":"Time!LXO$11","v":0},{"$f":"Time!LXP$11","v":0},{"$f":"Time!LXQ$11","v":0},{"$f":"Time!LXR$11","v":0},{"$f":"Time!LXS$11","v":0},{"$f":"Time!LXT$11","v":0},{"$f":"Time!LXU$11","v":0},{"$f":"Time!LXV$11","v":0},{"$f":"Time!LXW$11","v":0},{"$f":"Time!LXX$11","v":0},{"$f":"Time!LXY$11","v":0},{"$f":"Time!LXZ$11","v":0},{"$f":"Time!LYA$11","v":0},{"$f":"Time!LYB$11","v":0},{"$f":"Time!LYC$11","v":0},{"$f":"Time!LYD$11","v":0},{"$f":"Time!LYE$11","v":0},{"$f":"Time!LYF$11","v":0},{"$f":"Time!LYG$11","v":0},{"$f":"Time!LYH$11","v":0},{"$f":"Time!LYI$11","v":0},{"$f":"Time!LYJ$11","v":0},{"$f":"Time!LYK$11","v":0},{"$f":"Time!LYL$11","v":0},{"$f":"Time!LYM$11","v":0},{"$f":"Time!LYN$11","v":0},{"$f":"Time!LYO$11","v":0},{"$f":"Time!LYP$11","v":0},{"$f":"Time!LYQ$11","v":0},{"$f":"Time!LYR$11","v":0},{"$f":"Time!LYS$11","v":0},{"$f":"Time!LYT$11","v":0},{"$f":"Time!LYU$11","v":0},{"$f":"Time!LYV$11","v":0},{"$f":"Time!LYW$11","v":0},{"$f":"Time!LYX$11","v":0},{"$f":"Time!LYY$11","v":0},{"$f":"Time!LYZ$11","v":0},{"$f":"Time!LZA$11","v":0},{"$f":"Time!LZB$11","v":0},{"$f":"Time!LZC$11","v":0},{"$f":"Time!LZD$11","v":0},{"$f":"Time!LZE$11","v":0},{"$f":"Time!LZF$11","v":0},{"$f":"Time!LZG$11","v":0},{"$f":"Time!LZH$11","v":0},{"$f":"Time!LZI$11","v":0},{"$f":"Time!LZJ$11","v":0},{"$f":"Time!LZK$11","v":0},{"$f":"Time!LZL$11","v":0},{"$f":"Time!LZM$11","v":0},{"$f":"Time!LZN$11","v":0},{"$f":"Time!LZO$11","v":0},{"$f":"Time!LZP$11","v":0},{"$f":"Time!LZQ$11","v":0},{"$f":"Time!LZR$11","v":0},{"$f":"Time!LZS$11","v":0},{"$f":"Time!LZT$11","v":0},{"$f":"Time!LZU$11","v":0},{"$f":"Time!LZV$11","v":0},{"$f":"Time!LZW$11","v":0},{"$f":"Time!LZX$11","v":0},{"$f":"Time!LZY$11","v":0},{"$f":"Time!LZZ$11","v":0},{"$f":"Time!MAA$11","v":0},{"$f":"Time!MAB$11","v":0},{"$f":"Time!MAC$11","v":0},{"$f":"Time!MAD$11","v":0},{"$f":"Time!MAE$11","v":0},{"$f":"Time!MAF$11","v":0},{"$f":"Time!MAG$11","v":0},{"$f":"Time!MAH$11","v":0},{"$f":"Time!MAI$11","v":0},{"$f":"Time!MAJ$11","v":0},{"$f":"Time!MAK$11","v":0},{"$f":"Time!MAL$11","v":0},{"$f":"Time!MAM$11","v":0},{"$f":"Time!MAN$11","v":0},{"$f":"Time!MAO$11","v":0},{"$f":"Time!MAP$11","v":0},{"$f":"Time!MAQ$11","v":0},{"$f":"Time!MAR$11","v":0},{"$f":"Time!MAS$11","v":0},{"$f":"Time!MAT$11","v":0},{"$f":"Time!MAU$11","v":0},{"$f":"Time!MAV$11","v":0},{"$f":"Time!MAW$11","v":0},{"$f":"Time!MAX$11","v":0},{"$f":"Time!MAY$11","v":0},{"$f":"Time!MAZ$11","v":0},{"$f":"Time!MBA$11","v":0},{"$f":"Time!MBB$11","v":0},{"$f":"Time!MBC$11","v":0},{"$f":"Time!MBD$11","v":0},{"$f":"Time!MBE$11","v":0},{"$f":"Time!MBF$11","v":0},{"$f":"Time!MBG$11","v":0},{"$f":"Time!MBH$11","v":0},{"$f":"Time!MBI$11","v":0},{"$f":"Time!MBJ$11","v":0},{"$f":"Time!MBK$11","v":0},{"$f":"Time!MBL$11","v":0},{"$f":"Time!MBM$11","v":0},{"$f":"Time!MBN$11","v":0},{"$f":"Time!MBO$11","v":0},{"$f":"Time!MBP$11","v":0},{"$f":"Time!MBQ$11","v":0},{"$f":"Time!MBR$11","v":0},{"$f":"Time!MBS$11","v":0},{"$f":"Time!MBT$11","v":0},{"$f":"Time!MBU$11","v":0},{"$f":"Time!MBV$11","v":0},{"$f":"Time!MBW$11","v":0},{"$f":"Time!MBX$11","v":0},{"$f":"Time!MBY$11","v":0},{"$f":"Time!MBZ$11","v":0},{"$f":"Time!MCA$11","v":0},{"$f":"Time!MCB$11","v":0},{"$f":"Time!MCC$11","v":0},{"$f":"Time!MCD$11","v":0},{"$f":"Time!MCE$11","v":0},{"$f":"Time!MCF$11","v":0},{"$f":"Time!MCG$11","v":0},{"$f":"Time!MCH$11","v":0},{"$f":"Time!MCI$11","v":0},{"$f":"Time!MCJ$11","v":0},{"$f":"Time!MCK$11","v":0},{"$f":"Time!MCL$11","v":0},{"$f":"Time!MCM$11","v":0},{"$f":"Time!MCN$11","v":0},{"$f":"Time!MCO$11","v":0},{"$f":"Time!MCP$11","v":0},{"$f":"Time!MCQ$11","v":0},{"$f":"Time!MCR$11","v":0},{"$f":"Time!MCS$11","v":0},{"$f":"Time!MCT$11","v":0},{"$f":"Time!MCU$11","v":0},{"$f":"Time!MCV$11","v":0},{"$f":"Time!MCW$11","v":0},{"$f":"Time!MCX$11","v":0},{"$f":"Time!MCY$11","v":0},{"$f":"Time!MCZ$11","v":0},{"$f":"Time!MDA$11","v":0},{"$f":"Time!MDB$11","v":0},{"$f":"Time!MDC$11","v":0},{"$f":"Time!MDD$11","v":0},{"$f":"Time!MDE$11","v":0},{"$f":"Time!MDF$11","v":0},{"$f":"Time!MDG$11","v":0},{"$f":"Time!MDH$11","v":0},{"$f":"Time!MDI$11","v":0},{"$f":"Time!MDJ$11","v":0},{"$f":"Time!MDK$11","v":0},{"$f":"Time!MDL$11","v":0},{"$f":"Time!MDM$11","v":0},{"$f":"Time!MDN$11","v":0},{"$f":"Time!MDO$11","v":0},{"$f":"Time!MDP$11","v":0},{"$f":"Time!MDQ$11","v":0},{"$f":"Time!MDR$11","v":0},{"$f":"Time!MDS$11","v":0},{"$f":"Time!MDT$11","v":0},{"$f":"Time!MDU$11","v":0},{"$f":"Time!MDV$11","v":0},{"$f":"Time!MDW$11","v":0},{"$f":"Time!MDX$11","v":0},{"$f":"Time!MDY$11","v":0},{"$f":"Time!MDZ$11","v":0},{"$f":"Time!MEA$11","v":0},{"$f":"Time!MEB$11","v":0},{"$f":"Time!MEC$11","v":0},{"$f":"Time!MED$11","v":0},{"$f":"Time!MEE$11","v":0},{"$f":"Time!MEF$11","v":0},{"$f":"Time!MEG$11","v":0},{"$f":"Time!MEH$11","v":0},{"$f":"Time!MEI$11","v":0},{"$f":"Time!MEJ$11","v":0},{"$f":"Time!MEK$11","v":0},{"$f":"Time!MEL$11","v":0},{"$f":"Time!MEM$11","v":0},{"$f":"Time!MEN$11","v":0},{"$f":"Time!MEO$11","v":0},{"$f":"Time!MEP$11","v":0},{"$f":"Time!MEQ$11","v":0},{"$f":"Time!MER$11","v":0},{"$f":"Time!MES$11","v":0},{"$f":"Time!MET$11","v":0},{"$f":"Time!MEU$11","v":0},{"$f":"Time!MEV$11","v":0},{"$f":"Time!MEW$11","v":0},{"$f":"Time!MEX$11","v":0},{"$f":"Time!MEY$11","v":0},{"$f":"Time!MEZ$11","v":0},{"$f":"Time!MFA$11","v":0},{"$f":"Time!MFB$11","v":0},{"$f":"Time!MFC$11","v":0},{"$f":"Time!MFD$11","v":0},{"$f":"Time!MFE$11","v":0},{"$f":"Time!MFF$11","v":0},{"$f":"Time!MFG$11","v":0},{"$f":"Time!MFH$11","v":0},{"$f":"Time!MFI$11","v":0},{"$f":"Time!MFJ$11","v":0},{"$f":"Time!MFK$11","v":0},{"$f":"Time!MFL$11","v":0},{"$f":"Time!MFM$11","v":0},{"$f":"Time!MFN$11","v":0},{"$f":"Time!MFO$11","v":0},{"$f":"Time!MFP$11","v":0},{"$f":"Time!MFQ$11","v":0},{"$f":"Time!MFR$11","v":0},{"$f":"Time!MFS$11","v":0},{"$f":"Time!MFT$11","v":0},{"$f":"Time!MFU$11","v":0},{"$f":"Time!MFV$11","v":0},{"$f":"Time!MFW$11","v":0},{"$f":"Time!MFX$11","v":0},{"$f":"Time!MFY$11","v":0},{"$f":"Time!MFZ$11","v":0},{"$f":"Time!MGA$11","v":0},{"$f":"Time!MGB$11","v":0},{"$f":"Time!MGC$11","v":0},{"$f":"Time!MGD$11","v":0},{"$f":"Time!MGE$11","v":0},{"$f":"Time!MGF$11","v":0},{"$f":"Time!MGG$11","v":0},{"$f":"Time!MGH$11","v":0},{"$f":"Time!MGI$11","v":0},{"$f":"Time!MGJ$11","v":0},{"$f":"Time!MGK$11","v":0},{"$f":"Time!MGL$11","v":0},{"$f":"Time!MGM$11","v":0},{"$f":"Time!MGN$11","v":0},{"$f":"Time!MGO$11","v":0},{"$f":"Time!MGP$11","v":0},{"$f":"Time!MGQ$11","v":0},{"$f":"Time!MGR$11","v":0},{"$f":"Time!MGS$11","v":0},{"$f":"Time!MGT$11","v":0},{"$f":"Time!MGU$11","v":0},{"$f":"Time!MGV$11","v":0},{"$f":"Time!MGW$11","v":0},{"$f":"Time!MGX$11","v":0},{"$f":"Time!MGY$11","v":0},{"$f":"Time!MGZ$11","v":0},{"$f":"Time!MHA$11","v":0},{"$f":"Time!MHB$11","v":0},{"$f":"Time!MHC$11","v":0},{"$f":"Time!MHD$11","v":0},{"$f":"Time!MHE$11","v":0},{"$f":"Time!MHF$11","v":0},{"$f":"Time!MHG$11","v":0},{"$f":"Time!MHH$11","v":0},{"$f":"Time!MHI$11","v":0},{"$f":"Time!MHJ$11","v":0},{"$f":"Time!MHK$11","v":0},{"$f":"Time!MHL$11","v":0},{"$f":"Time!MHM$11","v":0},{"$f":"Time!MHN$11","v":0},{"$f":"Time!MHO$11","v":0},{"$f":"Time!MHP$11","v":0},{"$f":"Time!MHQ$11","v":0},{"$f":"Time!MHR$11","v":0},{"$f":"Time!MHS$11","v":0},{"$f":"Time!MHT$11","v":0},{"$f":"Time!MHU$11","v":0},{"$f":"Time!MHV$11","v":0},{"$f":"Time!MHW$11","v":0},{"$f":"Time!MHX$11","v":0},{"$f":"Time!MHY$11","v":0},{"$f":"Time!MHZ$11","v":0},{"$f":"Time!MIA$11","v":0},{"$f":"Time!MIB$11","v":0},{"$f":"Time!MIC$11","v":0},{"$f":"Time!MID$11","v":0},{"$f":"Time!MIE$11","v":0},{"$f":"Time!MIF$11","v":0},{"$f":"Time!MIG$11","v":0},{"$f":"Time!MIH$11","v":0},{"$f":"Time!MII$11","v":0},{"$f":"Time!MIJ$11","v":0},{"$f":"Time!MIK$11","v":0},{"$f":"Time!MIL$11","v":0},{"$f":"Time!MIM$11","v":0},{"$f":"Time!MIN$11","v":0},{"$f":"Time!MIO$11","v":0},{"$f":"Time!MIP$11","v":0},{"$f":"Time!MIQ$11","v":0},{"$f":"Time!MIR$11","v":0},{"$f":"Time!MIS$11","v":0},{"$f":"Time!MIT$11","v":0},{"$f":"Time!MIU$11","v":0},{"$f":"Time!MIV$11","v":0},{"$f":"Time!MIW$11","v":0},{"$f":"Time!MIX$11","v":0},{"$f":"Time!MIY$11","v":0},{"$f":"Time!MIZ$11","v":0},{"$f":"Time!MJA$11","v":0},{"$f":"Time!MJB$11","v":0},{"$f":"Time!MJC$11","v":0},{"$f":"Time!MJD$11","v":0},{"$f":"Time!MJE$11","v":0},{"$f":"Time!MJF$11","v":0},{"$f":"Time!MJG$11","v":0},{"$f":"Time!MJH$11","v":0},{"$f":"Time!MJI$11","v":0},{"$f":"Time!MJJ$11","v":0},{"$f":"Time!MJK$11","v":0},{"$f":"Time!MJL$11","v":0},{"$f":"Time!MJM$11","v":0},{"$f":"Time!MJN$11","v":0},{"$f":"Time!MJO$11","v":0},{"$f":"Time!MJP$11","v":0},{"$f":"Time!MJQ$11","v":0},{"$f":"Time!MJR$11","v":0},{"$f":"Time!MJS$11","v":0},{"$f":"Time!MJT$11","v":0},{"$f":"Time!MJU$11","v":0},{"$f":"Time!MJV$11","v":0},{"$f":"Time!MJW$11","v":0},{"$f":"Time!MJX$11","v":0},{"$f":"Time!MJY$11","v":0},{"$f":"Time!MJZ$11","v":0},{"$f":"Time!MKA$11","v":0},{"$f":"Time!MKB$11","v":0},{"$f":"Time!MKC$11","v":0},{"$f":"Time!MKD$11","v":0},{"$f":"Time!MKE$11","v":0},{"$f":"Time!MKF$11","v":0},{"$f":"Time!MKG$11","v":0},{"$f":"Time!MKH$11","v":0},{"$f":"Time!MKI$11","v":0},{"$f":"Time!MKJ$11","v":0},{"$f":"Time!MKK$11","v":0},{"$f":"Time!MKL$11","v":0},{"$f":"Time!MKM$11","v":0},{"$f":"Time!MKN$11","v":0},{"$f":"Time!MKO$11","v":0},{"$f":"Time!MKP$11","v":0},{"$f":"Time!MKQ$11","v":0},{"$f":"Time!MKR$11","v":0},{"$f":"Time!MKS$11","v":0},{"$f":"Time!MKT$11","v":0},{"$f":"Time!MKU$11","v":0},{"$f":"Time!MKV$11","v":0},{"$f":"Time!MKW$11","v":0},{"$f":"Time!MKX$11","v":0},{"$f":"Time!MKY$11","v":0},{"$f":"Time!MKZ$11","v":0},{"$f":"Time!MLA$11","v":0},{"$f":"Time!MLB$11","v":0},{"$f":"Time!MLC$11","v":0},{"$f":"Time!MLD$11","v":0},{"$f":"Time!MLE$11","v":0},{"$f":"Time!MLF$11","v":0},{"$f":"Time!MLG$11","v":0},{"$f":"Time!MLH$11","v":0},{"$f":"Time!MLI$11","v":0},{"$f":"Time!MLJ$11","v":0},{"$f":"Time!MLK$11","v":0},{"$f":"Time!MLL$11","v":0},{"$f":"Time!MLM$11","v":0},{"$f":"Time!MLN$11","v":0},{"$f":"Time!MLO$11","v":0},{"$f":"Time!MLP$11","v":0},{"$f":"Time!MLQ$11","v":0},{"$f":"Time!MLR$11","v":0},{"$f":"Time!MLS$11","v":0},{"$f":"Time!MLT$11","v":0},{"$f":"Time!MLU$11","v":0},{"$f":"Time!MLV$11","v":0},{"$f":"Time!MLW$11","v":0},{"$f":"Time!MLX$11","v":0},{"$f":"Time!MLY$11","v":0},{"$f":"Time!MLZ$11","v":0},{"$f":"Time!MMA$11","v":0},{"$f":"Time!MMB$11","v":0},{"$f":"Time!MMC$11","v":0},{"$f":"Time!MMD$11","v":0},{"$f":"Time!MME$11","v":0},{"$f":"Time!MMF$11","v":0},{"$f":"Time!MMG$11","v":0},{"$f":"Time!MMH$11","v":0},{"$f":"Time!MMI$11","v":0},{"$f":"Time!MMJ$11","v":0},{"$f":"Time!MMK$11","v":0},{"$f":"Time!MML$11","v":0},{"$f":"Time!MMM$11","v":0},{"$f":"Time!MMN$11","v":0},{"$f":"Time!MMO$11","v":0},{"$f":"Time!MMP$11","v":0},{"$f":"Time!MMQ$11","v":0},{"$f":"Time!MMR$11","v":0},{"$f":"Time!MMS$11","v":0},{"$f":"Time!MMT$11","v":0},{"$f":"Time!MMU$11","v":0},{"$f":"Time!MMV$11","v":0},{"$f":"Time!MMW$11","v":0},{"$f":"Time!MMX$11","v":0},{"$f":"Time!MMY$11","v":0},{"$f":"Time!MMZ$11","v":0},{"$f":"Time!MNA$11","v":0},{"$f":"Time!MNB$11","v":0},{"$f":"Time!MNC$11","v":0},{"$f":"Time!MND$11","v":0},{"$f":"Time!MNE$11","v":0},{"$f":"Time!MNF$11","v":0},{"$f":"Time!MNG$11","v":0},{"$f":"Time!MNH$11","v":0},{"$f":"Time!MNI$11","v":0},{"$f":"Time!MNJ$11","v":0},{"$f":"Time!MNK$11","v":0},{"$f":"Time!MNL$11","v":0},{"$f":"Time!MNM$11","v":0},{"$f":"Time!MNN$11","v":0},{"$f":"Time!MNO$11","v":0},{"$f":"Time!MNP$11","v":0},{"$f":"Time!MNQ$11","v":0},{"$f":"Time!MNR$11","v":0},{"$f":"Time!MNS$11","v":0},{"$f":"Time!MNT$11","v":0},{"$f":"Time!MNU$11","v":0},{"$f":"Time!MNV$11","v":0},{"$f":"Time!MNW$11","v":0},{"$f":"Time!MNX$11","v":0},{"$f":"Time!MNY$11","v":0},{"$f":"Time!MNZ$11","v":0},{"$f":"Time!MOA$11","v":0},{"$f":"Time!MOB$11","v":0},{"$f":"Time!MOC$11","v":0},{"$f":"Time!MOD$11","v":0},{"$f":"Time!MOE$11","v":0},{"$f":"Time!MOF$11","v":0},{"$f":"Time!MOG$11","v":0},{"$f":"Time!MOH$11","v":0},{"$f":"Time!MOI$11","v":0},{"$f":"Time!MOJ$11","v":0},{"$f":"Time!MOK$11","v":0},{"$f":"Time!MOL$11","v":0},{"$f":"Time!MOM$11","v":0},{"$f":"Time!MON$11","v":0},{"$f":"Time!MOO$11","v":0},{"$f":"Time!MOP$11","v":0},{"$f":"Time!MOQ$11","v":0},{"$f":"Time!MOR$11","v":0},{"$f":"Time!MOS$11","v":0},{"$f":"Time!MOT$11","v":0},{"$f":"Time!MOU$11","v":0},{"$f":"Time!MOV$11","v":0},{"$f":"Time!MOW$11","v":0},{"$f":"Time!MOX$11","v":0},{"$f":"Time!MOY$11","v":0},{"$f":"Time!MOZ$11","v":0},{"$f":"Time!MPA$11","v":0},{"$f":"Time!MPB$11","v":0},{"$f":"Time!MPC$11","v":0},{"$f":"Time!MPD$11","v":0},{"$f":"Time!MPE$11","v":0},{"$f":"Time!MPF$11","v":0},{"$f":"Time!MPG$11","v":0},{"$f":"Time!MPH$11","v":0},{"$f":"Time!MPI$11","v":0},{"$f":"Time!MPJ$11","v":0},{"$f":"Time!MPK$11","v":0},{"$f":"Time!MPL$11","v":0},{"$f":"Time!MPM$11","v":0},{"$f":"Time!MPN$11","v":0},{"$f":"Time!MPO$11","v":0},{"$f":"Time!MPP$11","v":0},{"$f":"Time!MPQ$11","v":0},{"$f":"Time!MPR$11","v":0},{"$f":"Time!MPS$11","v":0},{"$f":"Time!MPT$11","v":0},{"$f":"Time!MPU$11","v":0},{"$f":"Time!MPV$11","v":0},{"$f":"Time!MPW$11","v":0},{"$f":"Time!MPX$11","v":0},{"$f":"Time!MPY$11","v":0},{"$f":"Time!MPZ$11","v":0},{"$f":"Time!MQA$11","v":0},{"$f":"Time!MQB$11","v":0},{"$f":"Time!MQC$11","v":0},{"$f":"Time!MQD$11","v":0},{"$f":"Time!MQE$11","v":0},{"$f":"Time!MQF$11","v":0},{"$f":"Time!MQG$11","v":0},{"$f":"Time!MQH$11","v":0},{"$f":"Time!MQI$11","v":0},{"$f":"Time!MQJ$11","v":0},{"$f":"Time!MQK$11","v":0},{"$f":"Time!MQL$11","v":0},{"$f":"Time!MQM$11","v":0},{"$f":"Time!MQN$11","v":0},{"$f":"Time!MQO$11","v":0},{"$f":"Time!MQP$11","v":0},{"$f":"Time!MQQ$11","v":0},{"$f":"Time!MQR$11","v":0},{"$f":"Time!MQS$11","v":0},{"$f":"Time!MQT$11","v":0},{"$f":"Time!MQU$11","v":0},{"$f":"Time!MQV$11","v":0},{"$f":"Time!MQW$11","v":0},{"$f":"Time!MQX$11","v":0},{"$f":"Time!MQY$11","v":0},{"$f":"Time!MQZ$11","v":0},{"$f":"Time!MRA$11","v":0},{"$f":"Time!MRB$11","v":0},{"$f":"Time!MRC$11","v":0},{"$f":"Time!MRD$11","v":0},{"$f":"Time!MRE$11","v":0},{"$f":"Time!MRF$11","v":0},{"$f":"Time!MRG$11","v":0},{"$f":"Time!MRH$11","v":0},{"$f":"Time!MRI$11","v":0},{"$f":"Time!MRJ$11","v":0},{"$f":"Time!MRK$11","v":0},{"$f":"Time!MRL$11","v":0},{"$f":"Time!MRM$11","v":0},{"$f":"Time!MRN$11","v":0},{"$f":"Time!MRO$11","v":0},{"$f":"Time!MRP$11","v":0},{"$f":"Time!MRQ$11","v":0},{"$f":"Time!MRR$11","v":0},{"$f":"Time!MRS$11","v":0},{"$f":"Time!MRT$11","v":0},{"$f":"Time!MRU$11","v":0},{"$f":"Time!MRV$11","v":0},{"$f":"Time!MRW$11","v":0},{"$f":"Time!MRX$11","v":0},{"$f":"Time!MRY$11","v":0},{"$f":"Time!MRZ$11","v":0},{"$f":"Time!MSA$11","v":0},{"$f":"Time!MSB$11","v":0},{"$f":"Time!MSC$11","v":0},{"$f":"Time!MSD$11","v":0},{"$f":"Time!MSE$11","v":0},{"$f":"Time!MSF$11","v":0},{"$f":"Time!MSG$11","v":0},{"$f":"Time!MSH$11","v":0},{"$f":"Time!MSI$11","v":0},{"$f":"Time!MSJ$11","v":0},{"$f":"Time!MSK$11","v":0},{"$f":"Time!MSL$11","v":0},{"$f":"Time!MSM$11","v":0},{"$f":"Time!MSN$11","v":0},{"$f":"Time!MSO$11","v":0},{"$f":"Time!MSP$11","v":0},{"$f":"Time!MSQ$11","v":0},{"$f":"Time!MSR$11","v":0},{"$f":"Time!MSS$11","v":0},{"$f":"Time!MST$11","v":0},{"$f":"Time!MSU$11","v":0},{"$f":"Time!MSV$11","v":0},{"$f":"Time!MSW$11","v":0},{"$f":"Time!MSX$11","v":0},{"$f":"Time!MSY$11","v":0},{"$f":"Time!MSZ$11","v":0},{"$f":"Time!MTA$11","v":0},{"$f":"Time!MTB$11","v":0},{"$f":"Time!MTC$11","v":0},{"$f":"Time!MTD$11","v":0},{"$f":"Time!MTE$11","v":0},{"$f":"Time!MTF$11","v":0},{"$f":"Time!MTG$11","v":0},{"$f":"Time!MTH$11","v":0},{"$f":"Time!MTI$11","v":0},{"$f":"Time!MTJ$11","v":0},{"$f":"Time!MTK$11","v":0},{"$f":"Time!MTL$11","v":0},{"$f":"Time!MTM$11","v":0},{"$f":"Time!MTN$11","v":0},{"$f":"Time!MTO$11","v":0},{"$f":"Time!MTP$11","v":0},{"$f":"Time!MTQ$11","v":0},{"$f":"Time!MTR$11","v":0},{"$f":"Time!MTS$11","v":0},{"$f":"Time!MTT$11","v":0},{"$f":"Time!MTU$11","v":0},{"$f":"Time!MTV$11","v":0},{"$f":"Time!MTW$11","v":0},{"$f":"Time!MTX$11","v":0},{"$f":"Time!MTY$11","v":0},{"$f":"Time!MTZ$11","v":0},{"$f":"Time!MUA$11","v":0},{"$f":"Time!MUB$11","v":0},{"$f":"Time!MUC$11","v":0},{"$f":"Time!MUD$11","v":0},{"$f":"Time!MUE$11","v":0},{"$f":"Time!MUF$11","v":0},{"$f":"Time!MUG$11","v":0},{"$f":"Time!MUH$11","v":0},{"$f":"Time!MUI$11","v":0},{"$f":"Time!MUJ$11","v":0},{"$f":"Time!MUK$11","v":0},{"$f":"Time!MUL$11","v":0},{"$f":"Time!MUM$11","v":0},{"$f":"Time!MUN$11","v":0},{"$f":"Time!MUO$11","v":0},{"$f":"Time!MUP$11","v":0},{"$f":"Time!MUQ$11","v":0},{"$f":"Time!MUR$11","v":0},{"$f":"Time!MUS$11","v":0},{"$f":"Time!MUT$11","v":0},{"$f":"Time!MUU$11","v":0},{"$f":"Time!MUV$11","v":0},{"$f":"Time!MUW$11","v":0},{"$f":"Time!MUX$11","v":0},{"$f":"Time!MUY$11","v":0},{"$f":"Time!MUZ$11","v":0},{"$f":"Time!MVA$11","v":0},{"$f":"Time!MVB$11","v":0},{"$f":"Time!MVC$11","v":0},{"$f":"Time!MVD$11","v":0},{"$f":"Time!MVE$11","v":0},{"$f":"Time!MVF$11","v":0},{"$f":"Time!MVG$11","v":0},{"$f":"Time!MVH$11","v":0},{"$f":"Time!MVI$11","v":0},{"$f":"Time!MVJ$11","v":0},{"$f":"Time!MVK$11","v":0},{"$f":"Time!MVL$11","v":0},{"$f":"Time!MVM$11","v":0},{"$f":"Time!MVN$11","v":0},{"$f":"Time!MVO$11","v":0},{"$f":"Time!MVP$11","v":0},{"$f":"Time!MVQ$11","v":0},{"$f":"Time!MVR$11","v":0},{"$f":"Time!MVS$11","v":0},{"$f":"Time!MVT$11","v":0},{"$f":"Time!MVU$11","v":0},{"$f":"Time!MVV$11","v":0},{"$f":"Time!MVW$11","v":0},{"$f":"Time!MVX$11","v":0},{"$f":"Time!MVY$11","v":0},{"$f":"Time!MVZ$11","v":0},{"$f":"Time!MWA$11","v":0},{"$f":"Time!MWB$11","v":0},{"$f":"Time!MWC$11","v":0},{"$f":"Time!MWD$11","v":0},{"$f":"Time!MWE$11","v":0},{"$f":"Time!MWF$11","v":0},{"$f":"Time!MWG$11","v":0},{"$f":"Time!MWH$11","v":0},{"$f":"Time!MWI$11","v":0},{"$f":"Time!MWJ$11","v":0},{"$f":"Time!MWK$11","v":0},{"$f":"Time!MWL$11","v":0},{"$f":"Time!MWM$11","v":0},{"$f":"Time!MWN$11","v":0},{"$f":"Time!MWO$11","v":0},{"$f":"Time!MWP$11","v":0},{"$f":"Time!MWQ$11","v":0},{"$f":"Time!MWR$11","v":0},{"$f":"Time!MWS$11","v":0},{"$f":"Time!MWT$11","v":0},{"$f":"Time!MWU$11","v":0},{"$f":"Time!MWV$11","v":0},{"$f":"Time!MWW$11","v":0},{"$f":"Time!MWX$11","v":0},{"$f":"Time!MWY$11","v":0},{"$f":"Time!MWZ$11","v":0},{"$f":"Time!MXA$11","v":0},{"$f":"Time!MXB$11","v":0},{"$f":"Time!MXC$11","v":0},{"$f":"Time!MXD$11","v":0},{"$f":"Time!MXE$11","v":0},{"$f":"Time!MXF$11","v":0},{"$f":"Time!MXG$11","v":0},{"$f":"Time!MXH$11","v":0},{"$f":"Time!MXI$11","v":0},{"$f":"Time!MXJ$11","v":0},{"$f":"Time!MXK$11","v":0},{"$f":"Time!MXL$11","v":0},{"$f":"Time!MXM$11","v":0},{"$f":"Time!MXN$11","v":0},{"$f":"Time!MXO$11","v":0},{"$f":"Time!MXP$11","v":0},{"$f":"Time!MXQ$11","v":0},{"$f":"Time!MXR$11","v":0},{"$f":"Time!MXS$11","v":0},{"$f":"Time!MXT$11","v":0},{"$f":"Time!MXU$11","v":0},{"$f":"Time!MXV$11","v":0},{"$f":"Time!MXW$11","v":0},{"$f":"Time!MXX$11","v":0},{"$f":"Time!MXY$11","v":0},{"$f":"Time!MXZ$11","v":0},{"$f":"Time!MYA$11","v":0},{"$f":"Time!MYB$11","v":0},{"$f":"Time!MYC$11","v":0},{"$f":"Time!MYD$11","v":0},{"$f":"Time!MYE$11","v":0},{"$f":"Time!MYF$11","v":0},{"$f":"Time!MYG$11","v":0},{"$f":"Time!MYH$11","v":0},{"$f":"Time!MYI$11","v":0},{"$f":"Time!MYJ$11","v":0},{"$f":"Time!MYK$11","v":0},{"$f":"Time!MYL$11","v":0},{"$f":"Time!MYM$11","v":0},{"$f":"Time!MYN$11","v":0},{"$f":"Time!MYO$11","v":0},{"$f":"Time!MYP$11","v":0},{"$f":"Time!MYQ$11","v":0},{"$f":"Time!MYR$11","v":0},{"$f":"Time!MYS$11","v":0},{"$f":"Time!MYT$11","v":0},{"$f":"Time!MYU$11","v":0},{"$f":"Time!MYV$11","v":0},{"$f":"Time!MYW$11","v":0},{"$f":"Time!MYX$11","v":0},{"$f":"Time!MYY$11","v":0},{"$f":"Time!MYZ$11","v":0},{"$f":"Time!MZA$11","v":0},{"$f":"Time!MZB$11","v":0},{"$f":"Time!MZC$11","v":0},{"$f":"Time!MZD$11","v":0},{"$f":"Time!MZE$11","v":0},{"$f":"Time!MZF$11","v":0},{"$f":"Time!MZG$11","v":0},{"$f":"Time!MZH$11","v":0},{"$f":"Time!MZI$11","v":0},{"$f":"Time!MZJ$11","v":0},{"$f":"Time!MZK$11","v":0},{"$f":"Time!MZL$11","v":0},{"$f":"Time!MZM$11","v":0},{"$f":"Time!MZN$11","v":0},{"$f":"Time!MZO$11","v":0},{"$f":"Time!MZP$11","v":0},{"$f":"Time!MZQ$11","v":0},{"$f":"Time!MZR$11","v":0},{"$f":"Time!MZS$11","v":0},{"$f":"Time!MZT$11","v":0},{"$f":"Time!MZU$11","v":0},{"$f":"Time!MZV$11","v":0},{"$f":"Time!MZW$11","v":0},{"$f":"Time!MZX$11","v":0},{"$f":"Time!MZY$11","v":0},{"$f":"Time!MZZ$11","v":0},{"$f":"Time!NAA$11","v":0},{"$f":"Time!NAB$11","v":0},{"$f":"Time!NAC$11","v":0},{"$f":"Time!NAD$11","v":0},{"$f":"Time!NAE$11","v":0},{"$f":"Time!NAF$11","v":0},{"$f":"Time!NAG$11","v":0},{"$f":"Time!NAH$11","v":0},{"$f":"Time!NAI$11","v":0},{"$f":"Time!NAJ$11","v":0},{"$f":"Time!NAK$11","v":0},{"$f":"Time!NAL$11","v":0},{"$f":"Time!NAM$11","v":0},{"$f":"Time!NAN$11","v":0},{"$f":"Time!NAO$11","v":0},{"$f":"Time!NAP$11","v":0},{"$f":"Time!NAQ$11","v":0},{"$f":"Time!NAR$11","v":0},{"$f":"Time!NAS$11","v":0},{"$f":"Time!NAT$11","v":0},{"$f":"Time!NAU$11","v":0},{"$f":"Time!NAV$11","v":0},{"$f":"Time!NAW$11","v":0},{"$f":"Time!NAX$11","v":0},{"$f":"Time!NAY$11","v":0},{"$f":"Time!NAZ$11","v":0},{"$f":"Time!NBA$11","v":0},{"$f":"Time!NBB$11","v":0},{"$f":"Time!NBC$11","v":0},{"$f":"Time!NBD$11","v":0},{"$f":"Time!NBE$11","v":0},{"$f":"Time!NBF$11","v":0},{"$f":"Time!NBG$11","v":0},{"$f":"Time!NBH$11","v":0},{"$f":"Time!NBI$11","v":0},{"$f":"Time!NBJ$11","v":0},{"$f":"Time!NBK$11","v":0},{"$f":"Time!NBL$11","v":0},{"$f":"Time!NBM$11","v":0},{"$f":"Time!NBN$11","v":0},{"$f":"Time!NBO$11","v":0},{"$f":"Time!NBP$11","v":0},{"$f":"Time!NBQ$11","v":0},{"$f":"Time!NBR$11","v":0},{"$f":"Time!NBS$11","v":0},{"$f":"Time!NBT$11","v":0},{"$f":"Time!NBU$11","v":0},{"$f":"Time!NBV$11","v":0},{"$f":"Time!NBW$11","v":0},{"$f":"Time!NBX$11","v":0},{"$f":"Time!NBY$11","v":0},{"$f":"Time!NBZ$11","v":0},{"$f":"Time!NCA$11","v":0},{"$f":"Time!NCB$11","v":0},{"$f":"Time!NCC$11","v":0},{"$f":"Time!NCD$11","v":0},{"$f":"Time!NCE$11","v":0},{"$f":"Time!NCF$11","v":0},{"$f":"Time!NCG$11","v":0},{"$f":"Time!NCH$11","v":0},{"$f":"Time!NCI$11","v":0},{"$f":"Time!NCJ$11","v":0},{"$f":"Time!NCK$11","v":0},{"$f":"Time!NCL$11","v":0},{"$f":"Time!NCM$11","v":0},{"$f":"Time!NCN$11","v":0},{"$f":"Time!NCO$11","v":0},{"$f":"Time!NCP$11","v":0},{"$f":"Time!NCQ$11","v":0},{"$f":"Time!NCR$11","v":0},{"$f":"Time!NCS$11","v":0},{"$f":"Time!NCT$11","v":0},{"$f":"Time!NCU$11","v":0},{"$f":"Time!NCV$11","v":0},{"$f":"Time!NCW$11","v":0},{"$f":"Time!NCX$11","v":0},{"$f":"Time!NCY$11","v":0},{"$f":"Time!NCZ$11","v":0},{"$f":"Time!NDA$11","v":0},{"$f":"Time!NDB$11","v":0},{"$f":"Time!NDC$11","v":0},{"$f":"Time!NDD$11","v":0},{"$f":"Time!NDE$11","v":0},{"$f":"Time!NDF$11","v":0},{"$f":"Time!NDG$11","v":0},{"$f":"Time!NDH$11","v":0},{"$f":"Time!NDI$11","v":0},{"$f":"Time!NDJ$11","v":0},{"$f":"Time!NDK$11","v":0},{"$f":"Time!NDL$11","v":0},{"$f":"Time!NDM$11","v":0},{"$f":"Time!NDN$11","v":0},{"$f":"Time!NDO$11","v":0},{"$f":"Time!NDP$11","v":0},{"$f":"Time!NDQ$11","v":0},{"$f":"Time!NDR$11","v":0},{"$f":"Time!NDS$11","v":0},{"$f":"Time!NDT$11","v":0},{"$f":"Time!NDU$11","v":0},{"$f":"Time!NDV$11","v":0},{"$f":"Time!NDW$11","v":0},{"$f":"Time!NDX$11","v":0},{"$f":"Time!NDY$11","v":0},{"$f":"Time!NDZ$11","v":0},{"$f":"Time!NEA$11","v":0},{"$f":"Time!NEB$11","v":0},{"$f":"Time!NEC$11","v":0},{"$f":"Time!NED$11","v":0},{"$f":"Time!NEE$11","v":0},{"$f":"Time!NEF$11","v":0},{"$f":"Time!NEG$11","v":0},{"$f":"Time!NEH$11","v":0},{"$f":"Time!NEI$11","v":0},{"$f":"Time!NEJ$11","v":0},{"$f":"Time!NEK$11","v":0},{"$f":"Time!NEL$11","v":0},{"$f":"Time!NEM$11","v":0},{"$f":"Time!NEN$11","v":0},{"$f":"Time!NEO$11","v":0},{"$f":"Time!NEP$11","v":0},{"$f":"Time!NEQ$11","v":0},{"$f":"Time!NER$11","v":0},{"$f":"Time!NES$11","v":0},{"$f":"Time!NET$11","v":0},{"$f":"Time!NEU$11","v":0},{"$f":"Time!NEV$11","v":0},{"$f":"Time!NEW$11","v":0},{"$f":"Time!NEX$11","v":0},{"$f":"Time!NEY$11","v":0},{"$f":"Time!NEZ$11","v":0},{"$f":"Time!NFA$11","v":0},{"$f":"Time!NFB$11","v":0},{"$f":"Time!NFC$11","v":0},{"$f":"Time!NFD$11","v":0},{"$f":"Time!NFE$11","v":0},{"$f":"Time!NFF$11","v":0},{"$f":"Time!NFG$11","v":0},{"$f":"Time!NFH$11","v":0},{"$f":"Time!NFI$11","v":0},{"$f":"Time!NFJ$11","v":0},{"$f":"Time!NFK$11","v":0},{"$f":"Time!NFL$11","v":0},{"$f":"Time!NFM$11","v":0},{"$f":"Time!NFN$11","v":0},{"$f":"Time!NFO$11","v":0},{"$f":"Time!NFP$11","v":0},{"$f":"Time!NFQ$11","v":0},{"$f":"Time!NFR$11","v":0},{"$f":"Time!NFS$11","v":0},{"$f":"Time!NFT$11","v":0},{"$f":"Time!NFU$11","v":0},{"$f":"Time!NFV$11","v":0},{"$f":"Time!NFW$11","v":0},{"$f":"Time!NFX$11","v":0},{"$f":"Time!NFY$11","v":0},{"$f":"Time!NFZ$11","v":0},{"$f":"Time!NGA$11","v":0},{"$f":"Time!NGB$11","v":0},{"$f":"Time!NGC$11","v":0},{"$f":"Time!NGD$11","v":0},{"$f":"Time!NGE$11","v":0},{"$f":"Time!NGF$11","v":0},{"$f":"Time!NGG$11","v":0},{"$f":"Time!NGH$11","v":0},{"$f":"Time!NGI$11","v":0},{"$f":"Time!NGJ$11","v":0},{"$f":"Time!NGK$11","v":0},{"$f":"Time!NGL$11","v":0},{"$f":"Time!NGM$11","v":0},{"$f":"Time!NGN$11","v":0},{"$f":"Time!NGO$11","v":0},{"$f":"Time!NGP$11","v":0},{"$f":"Time!NGQ$11","v":0},{"$f":"Time!NGR$11","v":0},{"$f":"Time!NGS$11","v":0},{"$f":"Time!NGT$11","v":0},{"$f":"Time!NGU$11","v":0},{"$f":"Time!NGV$11","v":0},{"$f":"Time!NGW$11","v":0},{"$f":"Time!NGX$11","v":0},{"$f":"Time!NGY$11","v":0},{"$f":"Time!NGZ$11","v":0},{"$f":"Time!NHA$11","v":0},{"$f":"Time!NHB$11","v":0},{"$f":"Time!NHC$11","v":0},{"$f":"Time!NHD$11","v":0},{"$f":"Time!NHE$11","v":0},{"$f":"Time!NHF$11","v":0},{"$f":"Time!NHG$11","v":0},{"$f":"Time!NHH$11","v":0},{"$f":"Time!NHI$11","v":0},{"$f":"Time!NHJ$11","v":0},{"$f":"Time!NHK$11","v":0},{"$f":"Time!NHL$11","v":0},{"$f":"Time!NHM$11","v":0},{"$f":"Time!NHN$11","v":0},{"$f":"Time!NHO$11","v":0},{"$f":"Time!NHP$11","v":0},{"$f":"Time!NHQ$11","v":0},{"$f":"Time!NHR$11","v":0},{"$f":"Time!NHS$11","v":0},{"$f":"Time!NHT$11","v":0},{"$f":"Time!NHU$11","v":0},{"$f":"Time!NHV$11","v":0},{"$f":"Time!NHW$11","v":0},{"$f":"Time!NHX$11","v":0},{"$f":"Time!NHY$11","v":0},{"$f":"Time!NHZ$11","v":0},{"$f":"Time!NIA$11","v":0},{"$f":"Time!NIB$11","v":0},{"$f":"Time!NIC$11","v":0},{"$f":"Time!NID$11","v":0},{"$f":"Time!NIE$11","v":0},{"$f":"Time!NIF$11","v":0},{"$f":"Time!NIG$11","v":0},{"$f":"Time!NIH$11","v":0},{"$f":"Time!NII$11","v":0},{"$f":"Time!NIJ$11","v":0},{"$f":"Time!NIK$11","v":0},{"$f":"Time!NIL$11","v":0},{"$f":"Time!NIM$11","v":0},{"$f":"Time!NIN$11","v":0},{"$f":"Time!NIO$11","v":0},{"$f":"Time!NIP$11","v":0},{"$f":"Time!NIQ$11","v":0},{"$f":"Time!NIR$11","v":0},{"$f":"Time!NIS$11","v":0},{"$f":"Time!NIT$11","v":0},{"$f":"Time!NIU$11","v":0},{"$f":"Time!NIV$11","v":0},{"$f":"Time!NIW$11","v":0},{"$f":"Time!NIX$11","v":0},{"$f":"Time!NIY$11","v":0},{"$f":"Time!NIZ$11","v":0},{"$f":"Time!NJA$11","v":0},{"$f":"Time!NJB$11","v":0},{"$f":"Time!NJC$11","v":0},{"$f":"Time!NJD$11","v":0},{"$f":"Time!NJE$11","v":0},{"$f":"Time!NJF$11","v":0},{"$f":"Time!NJG$11","v":0},{"$f":"Time!NJH$11","v":0},{"$f":"Time!NJI$11","v":0},{"$f":"Time!NJJ$11","v":0},{"$f":"Time!NJK$11","v":0},{"$f":"Time!NJL$11","v":0},{"$f":"Time!NJM$11","v":0},{"$f":"Time!NJN$11","v":0},{"$f":"Time!NJO$11","v":0},{"$f":"Time!NJP$11","v":0},{"$f":"Time!NJQ$11","v":0},{"$f":"Time!NJR$11","v":0},{"$f":"Time!NJS$11","v":0},{"$f":"Time!NJT$11","v":0},{"$f":"Time!NJU$11","v":0},{"$f":"Time!NJV$11","v":0},{"$f":"Time!NJW$11","v":0},{"$f":"Time!NJX$11","v":0},{"$f":"Time!NJY$11","v":0},{"$f":"Time!NJZ$11","v":0},{"$f":"Time!NKA$11","v":0},{"$f":"Time!NKB$11","v":0},{"$f":"Time!NKC$11","v":0},{"$f":"Time!NKD$11","v":0},{"$f":"Time!NKE$11","v":0},{"$f":"Time!NKF$11","v":0},{"$f":"Time!NKG$11","v":0},{"$f":"Time!NKH$11","v":0},{"$f":"Time!NKI$11","v":0},{"$f":"Time!NKJ$11","v":0},{"$f":"Time!NKK$11","v":0},{"$f":"Time!NKL$11","v":0},{"$f":"Time!NKM$11","v":0},{"$f":"Time!NKN$11","v":0},{"$f":"Time!NKO$11","v":0},{"$f":"Time!NKP$11","v":0},{"$f":"Time!NKQ$11","v":0},{"$f":"Time!NKR$11","v":0},{"$f":"Time!NKS$11","v":0},{"$f":"Time!NKT$11","v":0},{"$f":"Time!NKU$11","v":0},{"$f":"Time!NKV$11","v":0},{"$f":"Time!NKW$11","v":0},{"$f":"Time!NKX$11","v":0},{"$f":"Time!NKY$11","v":0},{"$f":"Time!NKZ$11","v":0},{"$f":"Time!NLA$11","v":0},{"$f":"Time!NLB$11","v":0},{"$f":"Time!NLC$11","v":0},{"$f":"Time!NLD$11","v":0},{"$f":"Time!NLE$11","v":0},{"$f":"Time!NLF$11","v":0},{"$f":"Time!NLG$11","v":0},{"$f":"Time!NLH$11","v":0},{"$f":"Time!NLI$11","v":0},{"$f":"Time!NLJ$11","v":0},{"$f":"Time!NLK$11","v":0},{"$f":"Time!NLL$11","v":0},{"$f":"Time!NLM$11","v":0},{"$f":"Time!NLN$11","v":0},{"$f":"Time!NLO$11","v":0},{"$f":"Time!NLP$11","v":0},{"$f":"Time!NLQ$11","v":0},{"$f":"Time!NLR$11","v":0},{"$f":"Time!NLS$11","v":0},{"$f":"Time!NLT$11","v":0},{"$f":"Time!NLU$11","v":0},{"$f":"Time!NLV$11","v":0},{"$f":"Time!NLW$11","v":0},{"$f":"Time!NLX$11","v":0},{"$f":"Time!NLY$11","v":0},{"$f":"Time!NLZ$11","v":0},{"$f":"Time!NMA$11","v":0},{"$f":"Time!NMB$11","v":0},{"$f":"Time!NMC$11","v":0},{"$f":"Time!NMD$11","v":0},{"$f":"Time!NME$11","v":0},{"$f":"Time!NMF$11","v":0},{"$f":"Time!NMG$11","v":0},{"$f":"Time!NMH$11","v":0},{"$f":"Time!NMI$11","v":0},{"$f":"Time!NMJ$11","v":0},{"$f":"Time!NMK$11","v":0},{"$f":"Time!NML$11","v":0},{"$f":"Time!NMM$11","v":0},{"$f":"Time!NMN$11","v":0},{"$f":"Time!NMO$11","v":0},{"$f":"Time!NMP$11","v":0},{"$f":"Time!NMQ$11","v":0},{"$f":"Time!NMR$11","v":0},{"$f":"Time!NMS$11","v":0},{"$f":"Time!NMT$11","v":0},{"$f":"Time!NMU$11","v":0},{"$f":"Time!NMV$11","v":0},{"$f":"Time!NMW$11","v":0},{"$f":"Time!NMX$11","v":0},{"$f":"Time!NMY$11","v":0},{"$f":"Time!NMZ$11","v":0},{"$f":"Time!NNA$11","v":0},{"$f":"Time!NNB$11","v":0},{"$f":"Time!NNC$11","v":0},{"$f":"Time!NND$11","v":0},{"$f":"Time!NNE$11","v":0},{"$f":"Time!NNF$11","v":0},{"$f":"Time!NNG$11","v":0},{"$f":"Time!NNH$11","v":0},{"$f":"Time!NNI$11","v":0},{"$f":"Time!NNJ$11","v":0},{"$f":"Time!NNK$11","v":0},{"$f":"Time!NNL$11","v":0},{"$f":"Time!NNM$11","v":0},{"$f":"Time!NNN$11","v":0},{"$f":"Time!NNO$11","v":0},{"$f":"Time!NNP$11","v":0},{"$f":"Time!NNQ$11","v":0},{"$f":"Time!NNR$11","v":0},{"$f":"Time!NNS$11","v":0},{"$f":"Time!NNT$11","v":0},{"$f":"Time!NNU$11","v":0},{"$f":"Time!NNV$11","v":0},{"$f":"Time!NNW$11","v":0},{"$f":"Time!NNX$11","v":0},{"$f":"Time!NNY$11","v":0},{"$f":"Time!NNZ$11","v":0},{"$f":"Time!NOA$11","v":0},{"$f":"Time!NOB$11","v":0},{"$f":"Time!NOC$11","v":0},{"$f":"Time!NOD$11","v":0},{"$f":"Time!NOE$11","v":0},{"$f":"Time!NOF$11","v":0},{"$f":"Time!NOG$11","v":0},{"$f":"Time!NOH$11","v":0},{"$f":"Time!NOI$11","v":0},{"$f":"Time!NOJ$11","v":0},{"$f":"Time!NOK$11","v":0},{"$f":"Time!NOL$11","v":0},{"$f":"Time!NOM$11","v":0},{"$f":"Time!NON$11","v":0},{"$f":"Time!NOO$11","v":0},{"$f":"Time!NOP$11","v":0},{"$f":"Time!NOQ$11","v":0},{"$f":"Time!NOR$11","v":0},{"$f":"Time!NOS$11","v":0},{"$f":"Time!NOT$11","v":0},{"$f":"Time!NOU$11","v":0},{"$f":"Time!NOV$11","v":0},{"$f":"Time!NOW$11","v":0},{"$f":"Time!NOX$11","v":0},{"$f":"Time!NOY$11","v":0},{"$f":"Time!NOZ$11","v":0},{"$f":"Time!NPA$11","v":0},{"$f":"Time!NPB$11","v":0},{"$f":"Time!NPC$11","v":0},{"$f":"Time!NPD$11","v":0},{"$f":"Time!NPE$11","v":0},{"$f":"Time!NPF$11","v":0},{"$f":"Time!NPG$11","v":0},{"$f":"Time!NPH$11","v":0},{"$f":"Time!NPI$11","v":0},{"$f":"Time!NPJ$11","v":0},{"$f":"Time!NPK$11","v":0},{"$f":"Time!NPL$11","v":0},{"$f":"Time!NPM$11","v":0},{"$f":"Time!NPN$11","v":0},{"$f":"Time!NPO$11","v":0},{"$f":"Time!NPP$11","v":0},{"$f":"Time!NPQ$11","v":0},{"$f":"Time!NPR$11","v":0},{"$f":"Time!NPS$11","v":0},{"$f":"Time!NPT$11","v":0},{"$f":"Time!NPU$11","v":0},{"$f":"Time!NPV$11","v":0},{"$f":"Time!NPW$11","v":0},{"$f":"Time!NPX$11","v":0},{"$f":"Time!NPY$11","v":0},{"$f":"Time!NPZ$11","v":0},{"$f":"Time!NQA$11","v":0},{"$f":"Time!NQB$11","v":0},{"$f":"Time!NQC$11","v":0},{"$f":"Time!NQD$11","v":0},{"$f":"Time!NQE$11","v":0},{"$f":"Time!NQF$11","v":0},{"$f":"Time!NQG$11","v":0},{"$f":"Time!NQH$11","v":0},{"$f":"Time!NQI$11","v":0},{"$f":"Time!NQJ$11","v":0},{"$f":"Time!NQK$11","v":0},{"$f":"Time!NQL$11","v":0},{"$f":"Time!NQM$11","v":0},{"$f":"Time!NQN$11","v":0},{"$f":"Time!NQO$11","v":0},{"$f":"Time!NQP$11","v":0},{"$f":"Time!NQQ$11","v":0},{"$f":"Time!NQR$11","v":0},{"$f":"Time!NQS$11","v":0},{"$f":"Time!NQT$11","v":0},{"$f":"Time!NQU$11","v":0},{"$f":"Time!NQV$11","v":0},{"$f":"Time!NQW$11","v":0},{"$f":"Time!NQX$11","v":0},{"$f":"Time!NQY$11","v":0},{"$f":"Time!NQZ$11","v":0},{"$f":"Time!NRA$11","v":0},{"$f":"Time!NRB$11","v":0},{"$f":"Time!NRC$11","v":0},{"$f":"Time!NRD$11","v":0},{"$f":"Time!NRE$11","v":0},{"$f":"Time!NRF$11","v":0},{"$f":"Time!NRG$11","v":0},{"$f":"Time!NRH$11","v":0},{"$f":"Time!NRI$11","v":0},{"$f":"Time!NRJ$11","v":0},{"$f":"Time!NRK$11","v":0},{"$f":"Time!NRL$11","v":0},{"$f":"Time!NRM$11","v":0},{"$f":"Time!NRN$11","v":0},{"$f":"Time!NRO$11","v":0},{"$f":"Time!NRP$11","v":0},{"$f":"Time!NRQ$11","v":0},{"$f":"Time!NRR$11","v":0},{"$f":"Time!NRS$11","v":0},{"$f":"Time!NRT$11","v":0},{"$f":"Time!NRU$11","v":0},{"$f":"Time!NRV$11","v":0},{"$f":"Time!NRW$11","v":0},{"$f":"Time!NRX$11","v":0},{"$f":"Time!NRY$11","v":0},{"$f":"Time!NRZ$11","v":0},{"$f":"Time!NSA$11","v":0},{"$f":"Time!NSB$11","v":0},{"$f":"Time!NSC$11","v":0},{"$f":"Time!NSD$11","v":0},{"$f":"Time!NSE$11","v":0},{"$f":"Time!NSF$11","v":0},{"$f":"Time!NSG$11","v":0},{"$f":"Time!NSH$11","v":0},{"$f":"Time!NSI$11","v":0},{"$f":"Time!NSJ$11","v":0},{"$f":"Time!NSK$11","v":0},{"$f":"Time!NSL$11","v":0},{"$f":"Time!NSM$11","v":0},{"$f":"Time!NSN$11","v":0},{"$f":"Time!NSO$11","v":0},{"$f":"Time!NSP$11","v":0},{"$f":"Time!NSQ$11","v":0},{"$f":"Time!NSR$11","v":0},{"$f":"Time!NSS$11","v":0},{"$f":"Time!NST$11","v":0},{"$f":"Time!NSU$11","v":0},{"$f":"Time!NSV$11","v":0},{"$f":"Time!NSW$11","v":0},{"$f":"Time!NSX$11","v":0},{"$f":"Time!NSY$11","v":0},{"$f":"Time!NSZ$11","v":0},{"$f":"Time!NTA$11","v":0},{"$f":"Time!NTB$11","v":0},{"$f":"Time!NTC$11","v":0},{"$f":"Time!NTD$11","v":0},{"$f":"Time!NTE$11","v":0},{"$f":"Time!NTF$11","v":0},{"$f":"Time!NTG$11","v":0},{"$f":"Time!NTH$11","v":0},{"$f":"Time!NTI$11","v":0},{"$f":"Time!NTJ$11","v":0},{"$f":"Time!NTK$11","v":0},{"$f":"Time!NTL$11","v":0},{"$f":"Time!NTM$11","v":0},{"$f":"Time!NTN$11","v":0},{"$f":"Time!NTO$11","v":0},{"$f":"Time!NTP$11","v":0},{"$f":"Time!NTQ$11","v":0},{"$f":"Time!NTR$11","v":0},{"$f":"Time!NTS$11","v":0},{"$f":"Time!NTT$11","v":0},{"$f":"Time!NTU$11","v":0},{"$f":"Time!NTV$11","v":0},{"$f":"Time!NTW$11","v":0},{"$f":"Time!NTX$11","v":0},{"$f":"Time!NTY$11","v":0},{"$f":"Time!NTZ$11","v":0},{"$f":"Time!NUA$11","v":0},{"$f":"Time!NUB$11","v":0},{"$f":"Time!NUC$11","v":0},{"$f":"Time!NUD$11","v":0},{"$f":"Time!NUE$11","v":0},{"$f":"Time!NUF$11","v":0},{"$f":"Time!NUG$11","v":0},{"$f":"Time!NUH$11","v":0},{"$f":"Time!NUI$11","v":0},{"$f":"Time!NUJ$11","v":0},{"$f":"Time!NUK$11","v":0},{"$f":"Time!NUL$11","v":0},{"$f":"Time!NUM$11","v":0},{"$f":"Time!NUN$11","v":0},{"$f":"Time!NUO$11","v":0},{"$f":"Time!NUP$11","v":0},{"$f":"Time!NUQ$11","v":0},{"$f":"Time!NUR$11","v":0},{"$f":"Time!NUS$11","v":0},{"$f":"Time!NUT$11","v":0},{"$f":"Time!NUU$11","v":0},{"$f":"Time!NUV$11","v":0},{"$f":"Time!NUW$11","v":0},{"$f":"Time!NUX$11","v":0},{"$f":"Time!NUY$11","v":0},{"$f":"Time!NUZ$11","v":0},{"$f":"Time!NVA$11","v":0},{"$f":"Time!NVB$11","v":0},{"$f":"Time!NVC$11","v":0},{"$f":"Time!NVD$11","v":0},{"$f":"Time!NVE$11","v":0},{"$f":"Time!NVF$11","v":0},{"$f":"Time!NVG$11","v":0},{"$f":"Time!NVH$11","v":0},{"$f":"Time!NVI$11","v":0},{"$f":"Time!NVJ$11","v":0},{"$f":"Time!NVK$11","v":0},{"$f":"Time!NVL$11","v":0},{"$f":"Time!NVM$11","v":0},{"$f":"Time!NVN$11","v":0},{"$f":"Time!NVO$11","v":0},{"$f":"Time!NVP$11","v":0},{"$f":"Time!NVQ$11","v":0},{"$f":"Time!NVR$11","v":0},{"$f":"Time!NVS$11","v":0},{"$f":"Time!NVT$11","v":0},{"$f":"Time!NVU$11","v":0},{"$f":"Time!NVV$11","v":0},{"$f":"Time!NVW$11","v":0},{"$f":"Time!NVX$11","v":0},{"$f":"Time!NVY$11","v":0},{"$f":"Time!NVZ$11","v":0},{"$f":"Time!NWA$11","v":0},{"$f":"Time!NWB$11","v":0},{"$f":"Time!NWC$11","v":0},{"$f":"Time!NWD$11","v":0},{"$f":"Time!NWE$11","v":0},{"$f":"Time!NWF$11","v":0},{"$f":"Time!NWG$11","v":0},{"$f":"Time!NWH$11","v":0},{"$f":"Time!NWI$11","v":0},{"$f":"Time!NWJ$11","v":0},{"$f":"Time!NWK$11","v":0},{"$f":"Time!NWL$11","v":0},{"$f":"Time!NWM$11","v":0},{"$f":"Time!NWN$11","v":0},{"$f":"Time!NWO$11","v":0},{"$f":"Time!NWP$11","v":0},{"$f":"Time!NWQ$11","v":0},{"$f":"Time!NWR$11","v":0},{"$f":"Time!NWS$11","v":0},{"$f":"Time!NWT$11","v":0},{"$f":"Time!NWU$11","v":0},{"$f":"Time!NWV$11","v":0},{"$f":"Time!NWW$11","v":0},{"$f":"Time!NWX$11","v":0},{"$f":"Time!NWY$11","v":0},{"$f":"Time!NWZ$11","v":0},{"$f":"Time!NXA$11","v":0},{"$f":"Time!NXB$11","v":0},{"$f":"Time!NXC$11","v":0},{"$f":"Time!NXD$11","v":0},{"$f":"Time!NXE$11","v":0},{"$f":"Time!NXF$11","v":0},{"$f":"Time!NXG$11","v":0},{"$f":"Time!NXH$11","v":0},{"$f":"Time!NXI$11","v":0},{"$f":"Time!NXJ$11","v":0},{"$f":"Time!NXK$11","v":0},{"$f":"Time!NXL$11","v":0},{"$f":"Time!NXM$11","v":0},{"$f":"Time!NXN$11","v":0},{"$f":"Time!NXO$11","v":0},{"$f":"Time!NXP$11","v":0},{"$f":"Time!NXQ$11","v":0},{"$f":"Time!NXR$11","v":0},{"$f":"Time!NXS$11","v":0},{"$f":"Time!NXT$11","v":0},{"$f":"Time!NXU$11","v":0},{"$f":"Time!NXV$11","v":0},{"$f":"Time!NXW$11","v":0},{"$f":"Time!NXX$11","v":0},{"$f":"Time!NXY$11","v":0},{"$f":"Time!NXZ$11","v":0},{"$f":"Time!NYA$11","v":0},{"$f":"Time!NYB$11","v":0},{"$f":"Time!NYC$11","v":0},{"$f":"Time!NYD$11","v":0},{"$f":"Time!NYE$11","v":0},{"$f":"Time!NYF$11","v":0},{"$f":"Time!NYG$11","v":0},{"$f":"Time!NYH$11","v":0},{"$f":"Time!NYI$11","v":0},{"$f":"Time!NYJ$11","v":0},{"$f":"Time!NYK$11","v":0},{"$f":"Time!NYL$11","v":0},{"$f":"Time!NYM$11","v":0},{"$f":"Time!NYN$11","v":0},{"$f":"Time!NYO$11","v":0},{"$f":"Time!NYP$11","v":0},{"$f":"Time!NYQ$11","v":0},{"$f":"Time!NYR$11","v":0},{"$f":"Time!NYS$11","v":0},{"$f":"Time!NYT$11","v":0},{"$f":"Time!NYU$11","v":0},{"$f":"Time!NYV$11","v":0},{"$f":"Time!NYW$11","v":0},{"$f":"Time!NYX$11","v":0},{"$f":"Time!NYY$11","v":0},{"$f":"Time!NYZ$11","v":0},{"$f":"Time!NZA$11","v":0},{"$f":"Time!NZB$11","v":0},{"$f":"Time!NZC$11","v":0},{"$f":"Time!NZD$11","v":0},{"$f":"Time!NZE$11","v":0},{"$f":"Time!NZF$11","v":0},{"$f":"Time!NZG$11","v":0},{"$f":"Time!NZH$11","v":0},{"$f":"Time!NZI$11","v":0},{"$f":"Time!NZJ$11","v":0},{"$f":"Time!NZK$11","v":0},{"$f":"Time!NZL$11","v":0},{"$f":"Time!NZM$11","v":0},{"$f":"Time!NZN$11","v":0},{"$f":"Time!NZO$11","v":0},{"$f":"Time!NZP$11","v":0},{"$f":"Time!NZQ$11","v":0},{"$f":"Time!NZR$11","v":0},{"$f":"Time!NZS$11","v":0},{"$f":"Time!NZT$11","v":0},{"$f":"Time!NZU$11","v":0},{"$f":"Time!NZV$11","v":0},{"$f":"Time!NZW$11","v":0},{"$f":"Time!NZX$11","v":0},{"$f":"Time!NZY$11","v":0},{"$f":"Time!NZZ$11","v":0},{"$f":"Time!OAA$11","v":0},{"$f":"Time!OAB$11","v":0},{"$f":"Time!OAC$11","v":0},{"$f":"Time!OAD$11","v":0},{"$f":"Time!OAE$11","v":0},{"$f":"Time!OAF$11","v":0},{"$f":"Time!OAG$11","v":0},{"$f":"Time!OAH$11","v":0},{"$f":"Time!OAI$11","v":0},{"$f":"Time!OAJ$11","v":0},{"$f":"Time!OAK$11","v":0},{"$f":"Time!OAL$11","v":0},{"$f":"Time!OAM$11","v":0},{"$f":"Time!OAN$11","v":0},{"$f":"Time!OAO$11","v":0},{"$f":"Time!OAP$11","v":0},{"$f":"Time!OAQ$11","v":0},{"$f":"Time!OAR$11","v":0},{"$f":"Time!OAS$11","v":0},{"$f":"Time!OAT$11","v":0},{"$f":"Time!OAU$11","v":0},{"$f":"Time!OAV$11","v":0},{"$f":"Time!OAW$11","v":0},{"$f":"Time!OAX$11","v":0},{"$f":"Time!OAY$11","v":0},{"$f":"Time!OAZ$11","v":0},{"$f":"Time!OBA$11","v":0},{"$f":"Time!OBB$11","v":0},{"$f":"Time!OBC$11","v":0},{"$f":"Time!OBD$11","v":0},{"$f":"Time!OBE$11","v":0},{"$f":"Time!OBF$11","v":0},{"$f":"Time!OBG$11","v":0},{"$f":"Time!OBH$11","v":0},{"$f":"Time!OBI$11","v":0},{"$f":"Time!OBJ$11","v":0},{"$f":"Time!OBK$11","v":0},{"$f":"Time!OBL$11","v":0},{"$f":"Time!OBM$11","v":0},{"$f":"Time!OBN$11","v":0},{"$f":"Time!OBO$11","v":0},{"$f":"Time!OBP$11","v":0},{"$f":"Time!OBQ$11","v":0},{"$f":"Time!OBR$11","v":0},{"$f":"Time!OBS$11","v":0},{"$f":"Time!OBT$11","v":0},{"$f":"Time!OBU$11","v":0},{"$f":"Time!OBV$11","v":0},{"$f":"Time!OBW$11","v":0},{"$f":"Time!OBX$11","v":0},{"$f":"Time!OBY$11","v":0},{"$f":"Time!OBZ$11","v":0},{"$f":"Time!OCA$11","v":0},{"$f":"Time!OCB$11","v":0},{"$f":"Time!OCC$11","v":0},{"$f":"Time!OCD$11","v":0},{"$f":"Time!OCE$11","v":0},{"$f":"Time!OCF$11","v":0},{"$f":"Time!OCG$11","v":0},{"$f":"Time!OCH$11","v":0},{"$f":"Time!OCI$11","v":0},{"$f":"Time!OCJ$11","v":0},{"$f":"Time!OCK$11","v":0},{"$f":"Time!OCL$11","v":0},{"$f":"Time!OCM$11","v":0},{"$f":"Time!OCN$11","v":0},{"$f":"Time!OCO$11","v":0},{"$f":"Time!OCP$11","v":0},{"$f":"Time!OCQ$11","v":0},{"$f":"Time!OCR$11","v":0},{"$f":"Time!OCS$11","v":0},{"$f":"Time!OCT$11","v":0},{"$f":"Time!OCU$11","v":0},{"$f":"Time!OCV$11","v":0},{"$f":"Time!OCW$11","v":0},{"$f":"Time!OCX$11","v":0},{"$f":"Time!OCY$11","v":0},{"$f":"Time!OCZ$11","v":0},{"$f":"Time!ODA$11","v":0},{"$f":"Time!ODB$11","v":0},{"$f":"Time!ODC$11","v":0},{"$f":"Time!ODD$11","v":0},{"$f":"Time!ODE$11","v":0},{"$f":"Time!ODF$11","v":0},{"$f":"Time!ODG$11","v":0},{"$f":"Time!ODH$11","v":0},{"$f":"Time!ODI$11","v":0},{"$f":"Time!ODJ$11","v":0},{"$f":"Time!ODK$11","v":0},{"$f":"Time!ODL$11","v":0},{"$f":"Time!ODM$11","v":0},{"$f":"Time!ODN$11","v":0},{"$f":"Time!ODO$11","v":0},{"$f":"Time!ODP$11","v":0},{"$f":"Time!ODQ$11","v":0},{"$f":"Time!ODR$11","v":0},{"$f":"Time!ODS$11","v":0},{"$f":"Time!ODT$11","v":0},{"$f":"Time!ODU$11","v":0},{"$f":"Time!ODV$11","v":0},{"$f":"Time!ODW$11","v":0},{"$f":"Time!ODX$11","v":0},{"$f":"Time!ODY$11","v":0},{"$f":"Time!ODZ$11","v":0},{"$f":"Time!OEA$11","v":0},{"$f":"Time!OEB$11","v":0},{"$f":"Time!OEC$11","v":0},{"$f":"Time!OED$11","v":0},{"$f":"Time!OEE$11","v":0},{"$f":"Time!OEF$11","v":0},{"$f":"Time!OEG$11","v":0},{"$f":"Time!OEH$11","v":0},{"$f":"Time!OEI$11","v":0},{"$f":"Time!OEJ$11","v":0},{"$f":"Time!OEK$11","v":0},{"$f":"Time!OEL$11","v":0},{"$f":"Time!OEM$11","v":0},{"$f":"Time!OEN$11","v":0},{"$f":"Time!OEO$11","v":0},{"$f":"Time!OEP$11","v":0},{"$f":"Time!OEQ$11","v":0},{"$f":"Time!OER$11","v":0},{"$f":"Time!OES$11","v":0},{"$f":"Time!OET$11","v":0},{"$f":"Time!OEU$11","v":0},{"$f":"Time!OEV$11","v":0},{"$f":"Time!OEW$11","v":0},{"$f":"Time!OEX$11","v":0},{"$f":"Time!OEY$11","v":0},{"$f":"Time!OEZ$11","v":0},{"$f":"Time!OFA$11","v":0},{"$f":"Time!OFB$11","v":0},{"$f":"Time!OFC$11","v":0},{"$f":"Time!OFD$11","v":0},{"$f":"Time!OFE$11","v":0},{"$f":"Time!OFF$11","v":0},{"$f":"Time!OFG$11","v":0},{"$f":"Time!OFH$11","v":0},{"$f":"Time!OFI$11","v":0},{"$f":"Time!OFJ$11","v":0},{"$f":"Time!OFK$11","v":0},{"$f":"Time!OFL$11","v":0},{"$f":"Time!OFM$11","v":0},{"$f":"Time!OFN$11","v":0},{"$f":"Time!OFO$11","v":0},{"$f":"Time!OFP$11","v":0},{"$f":"Time!OFQ$11","v":0},{"$f":"Time!OFR$11","v":0},{"$f":"Time!OFS$11","v":0},{"$f":"Time!OFT$11","v":0},{"$f":"Time!OFU$11","v":0},{"$f":"Time!OFV$11","v":0},{"$f":"Time!OFW$11","v":0},{"$f":"Time!OFX$11","v":0},{"$f":"Time!OFY$11","v":0},{"$f":"Time!OFZ$11","v":0},{"$f":"Time!OGA$11","v":0},{"$f":"Time!OGB$11","v":0},{"$f":"Time!OGC$11","v":0},{"$f":"Time!OGD$11","v":0},{"$f":"Time!OGE$11","v":0},{"$f":"Time!OGF$11","v":0},{"$f":"Time!OGG$11","v":0},{"$f":"Time!OGH$11","v":0},{"$f":"Time!OGI$11","v":0},{"$f":"Time!OGJ$11","v":0},{"$f":"Time!OGK$11","v":0},{"$f":"Time!OGL$11","v":0},{"$f":"Time!OGM$11","v":0},{"$f":"Time!OGN$11","v":0},{"$f":"Time!OGO$11","v":0},{"$f":"Time!OGP$11","v":0},{"$f":"Time!OGQ$11","v":0},{"$f":"Time!OGR$11","v":0},{"$f":"Time!OGS$11","v":0},{"$f":"Time!OGT$11","v":0},{"$f":"Time!OGU$11","v":0},{"$f":"Time!OGV$11","v":0},{"$f":"Time!OGW$11","v":0},{"$f":"Time!OGX$11","v":0},{"$f":"Time!OGY$11","v":0},{"$f":"Time!OGZ$11","v":0},{"$f":"Time!OHA$11","v":0},{"$f":"Time!OHB$11","v":0},{"$f":"Time!OHC$11","v":0},{"$f":"Time!OHD$11","v":0},{"$f":"Time!OHE$11","v":0},{"$f":"Time!OHF$11","v":0},{"$f":"Time!OHG$11","v":0},{"$f":"Time!OHH$11","v":0},{"$f":"Time!OHI$11","v":0},{"$f":"Time!OHJ$11","v":0},{"$f":"Time!OHK$11","v":0},{"$f":"Time!OHL$11","v":0},{"$f":"Time!OHM$11","v":0},{"$f":"Time!OHN$11","v":0},{"$f":"Time!OHO$11","v":0},{"$f":"Time!OHP$11","v":0},{"$f":"Time!OHQ$11","v":0},{"$f":"Time!OHR$11","v":0},{"$f":"Time!OHS$11","v":0},{"$f":"Time!OHT$11","v":0},{"$f":"Time!OHU$11","v":0},{"$f":"Time!OHV$11","v":0},{"$f":"Time!OHW$11","v":0},{"$f":"Time!OHX$11","v":0},{"$f":"Time!OHY$11","v":0},{"$f":"Time!OHZ$11","v":0},{"$f":"Time!OIA$11","v":0},{"$f":"Time!OIB$11","v":0},{"$f":"Time!OIC$11","v":0},{"$f":"Time!OID$11","v":0},{"$f":"Time!OIE$11","v":0},{"$f":"Time!OIF$11","v":0},{"$f":"Time!OIG$11","v":0},{"$f":"Time!OIH$11","v":0},{"$f":"Time!OII$11","v":0},{"$f":"Time!OIJ$11","v":0},{"$f":"Time!OIK$11","v":0},{"$f":"Time!OIL$11","v":0},{"$f":"Time!OIM$11","v":0},{"$f":"Time!OIN$11","v":0},{"$f":"Time!OIO$11","v":0},{"$f":"Time!OIP$11","v":0},{"$f":"Time!OIQ$11","v":0},{"$f":"Time!OIR$11","v":0},{"$f":"Time!OIS$11","v":0},{"$f":"Time!OIT$11","v":0},{"$f":"Time!OIU$11","v":0},{"$f":"Time!OIV$11","v":0},{"$f":"Time!OIW$11","v":0},{"$f":"Time!OIX$11","v":0},{"$f":"Time!OIY$11","v":0},{"$f":"Time!OIZ$11","v":0},{"$f":"Time!OJA$11","v":0},{"$f":"Time!OJB$11","v":0},{"$f":"Time!OJC$11","v":0},{"$f":"Time!OJD$11","v":0},{"$f":"Time!OJE$11","v":0},{"$f":"Time!OJF$11","v":0},{"$f":"Time!OJG$11","v":0},{"$f":"Time!OJH$11","v":0},{"$f":"Time!OJI$11","v":0},{"$f":"Time!OJJ$11","v":0},{"$f":"Time!OJK$11","v":0},{"$f":"Time!OJL$11","v":0},{"$f":"Time!OJM$11","v":0},{"$f":"Time!OJN$11","v":0},{"$f":"Time!OJO$11","v":0},{"$f":"Time!OJP$11","v":0},{"$f":"Time!OJQ$11","v":0},{"$f":"Time!OJR$11","v":0},{"$f":"Time!OJS$11","v":0},{"$f":"Time!OJT$11","v":0},{"$f":"Time!OJU$11","v":0},{"$f":"Time!OJV$11","v":0},{"$f":"Time!OJW$11","v":0},{"$f":"Time!OJX$11","v":0},{"$f":"Time!OJY$11","v":0},{"$f":"Time!OJZ$11","v":0},{"$f":"Time!OKA$11","v":0},{"$f":"Time!OKB$11","v":0},{"$f":"Time!OKC$11","v":0},{"$f":"Time!OKD$11","v":0},{"$f":"Time!OKE$11","v":0},{"$f":"Time!OKF$11","v":0},{"$f":"Time!OKG$11","v":0},{"$f":"Time!OKH$11","v":0},{"$f":"Time!OKI$11","v":0},{"$f":"Time!OKJ$11","v":0},{"$f":"Time!OKK$11","v":0},{"$f":"Time!OKL$11","v":0},{"$f":"Time!OKM$11","v":0},{"$f":"Time!OKN$11","v":0},{"$f":"Time!OKO$11","v":0},{"$f":"Time!OKP$11","v":0},{"$f":"Time!OKQ$11","v":0},{"$f":"Time!OKR$11","v":0},{"$f":"Time!OKS$11","v":0},{"$f":"Time!OKT$11","v":0},{"$f":"Time!OKU$11","v":0},{"$f":"Time!OKV$11","v":0},{"$f":"Time!OKW$11","v":0},{"$f":"Time!OKX$11","v":0},{"$f":"Time!OKY$11","v":0},{"$f":"Time!OKZ$11","v":0},{"$f":"Time!OLA$11","v":0},{"$f":"Time!OLB$11","v":0},{"$f":"Time!OLC$11","v":0},{"$f":"Time!OLD$11","v":0},{"$f":"Time!OLE$11","v":0},{"$f":"Time!OLF$11","v":0},{"$f":"Time!OLG$11","v":0},{"$f":"Time!OLH$11","v":0},{"$f":"Time!OLI$11","v":0},{"$f":"Time!OLJ$11","v":0},{"$f":"Time!OLK$11","v":0},{"$f":"Time!OLL$11","v":0},{"$f":"Time!OLM$11","v":0},{"$f":"Time!OLN$11","v":0},{"$f":"Time!OLO$11","v":0},{"$f":"Time!OLP$11","v":0},{"$f":"Time!OLQ$11","v":0},{"$f":"Time!OLR$11","v":0},{"$f":"Time!OLS$11","v":0},{"$f":"Time!OLT$11","v":0},{"$f":"Time!OLU$11","v":0},{"$f":"Time!OLV$11","v":0},{"$f":"Time!OLW$11","v":0},{"$f":"Time!OLX$11","v":0},{"$f":"Time!OLY$11","v":0},{"$f":"Time!OLZ$11","v":0},{"$f":"Time!OMA$11","v":0},{"$f":"Time!OMB$11","v":0},{"$f":"Time!OMC$11","v":0},{"$f":"Time!OMD$11","v":0},{"$f":"Time!OME$11","v":0},{"$f":"Time!OMF$11","v":0},{"$f":"Time!OMG$11","v":0},{"$f":"Time!OMH$11","v":0},{"$f":"Time!OMI$11","v":0},{"$f":"Time!OMJ$11","v":0},{"$f":"Time!OMK$11","v":0},{"$f":"Time!OML$11","v":0},{"$f":"Time!OMM$11","v":0},{"$f":"Time!OMN$11","v":0},{"$f":"Time!OMO$11","v":0},{"$f":"Time!OMP$11","v":0},{"$f":"Time!OMQ$11","v":0},{"$f":"Time!OMR$11","v":0},{"$f":"Time!OMS$11","v":0},{"$f":"Time!OMT$11","v":0},{"$f":"Time!OMU$11","v":0},{"$f":"Time!OMV$11","v":0},{"$f":"Time!OMW$11","v":0},{"$f":"Time!OMX$11","v":0},{"$f":"Time!OMY$11","v":0},{"$f":"Time!OMZ$11","v":0},{"$f":"Time!ONA$11","v":0},{"$f":"Time!ONB$11","v":0},{"$f":"Time!ONC$11","v":0},{"$f":"Time!OND$11","v":0},{"$f":"Time!ONE$11","v":0},{"$f":"Time!ONF$11","v":0},{"$f":"Time!ONG$11","v":0},{"$f":"Time!ONH$11","v":0},{"$f":"Time!ONI$11","v":0},{"$f":"Time!ONJ$11","v":0},{"$f":"Time!ONK$11","v":0},{"$f":"Time!ONL$11","v":0},{"$f":"Time!ONM$11","v":0},{"$f":"Time!ONN$11","v":0},{"$f":"Time!ONO$11","v":0},{"$f":"Time!ONP$11","v":0},{"$f":"Time!ONQ$11","v":0},{"$f":"Time!ONR$11","v":0},{"$f":"Time!ONS$11","v":0},{"$f":"Time!ONT$11","v":0},{"$f":"Time!ONU$11","v":0},{"$f":"Time!ONV$11","v":0},{"$f":"Time!ONW$11","v":0},{"$f":"Time!ONX$11","v":0},{"$f":"Time!ONY$11","v":0},{"$f":"Time!ONZ$11","v":0},{"$f":"Time!OOA$11","v":0},{"$f":"Time!OOB$11","v":0},{"$f":"Time!OOC$11","v":0},{"$f":"Time!OOD$11","v":0},{"$f":"Time!OOE$11","v":0},{"$f":"Time!OOF$11","v":0},{"$f":"Time!OOG$11","v":0},{"$f":"Time!OOH$11","v":0},{"$f":"Time!OOI$11","v":0},{"$f":"Time!OOJ$11","v":0},{"$f":"Time!OOK$11","v":0},{"$f":"Time!OOL$11","v":0},{"$f":"Time!OOM$11","v":0},{"$f":"Time!OON$11","v":0},{"$f":"Time!OOO$11","v":0},{"$f":"Time!OOP$11","v":0},{"$f":"Time!OOQ$11","v":0},{"$f":"Time!OOR$11","v":0},{"$f":"Time!OOS$11","v":0},{"$f":"Time!OOT$11","v":0},{"$f":"Time!OOU$11","v":0},{"$f":"Time!OOV$11","v":0},{"$f":"Time!OOW$11","v":0},{"$f":"Time!OOX$11","v":0},{"$f":"Time!OOY$11","v":0},{"$f":"Time!OOZ$11","v":0},{"$f":"Time!OPA$11","v":0},{"$f":"Time!OPB$11","v":0},{"$f":"Time!OPC$11","v":0},{"$f":"Time!OPD$11","v":0},{"$f":"Time!OPE$11","v":0},{"$f":"Time!OPF$11","v":0},{"$f":"Time!OPG$11","v":0},{"$f":"Time!OPH$11","v":0},{"$f":"Time!OPI$11","v":0},{"$f":"Time!OPJ$11","v":0},{"$f":"Time!OPK$11","v":0},{"$f":"Time!OPL$11","v":0},{"$f":"Time!OPM$11","v":0},{"$f":"Time!OPN$11","v":0},{"$f":"Time!OPO$11","v":0},{"$f":"Time!OPP$11","v":0},{"$f":"Time!OPQ$11","v":0},{"$f":"Time!OPR$11","v":0},{"$f":"Time!OPS$11","v":0},{"$f":"Time!OPT$11","v":0},{"$f":"Time!OPU$11","v":0},{"$f":"Time!OPV$11","v":0},{"$f":"Time!OPW$11","v":0},{"$f":"Time!OPX$11","v":0},{"$f":"Time!OPY$11","v":0},{"$f":"Time!OPZ$11","v":0},{"$f":"Time!OQA$11","v":0},{"$f":"Time!OQB$11","v":0},{"$f":"Time!OQC$11","v":0},{"$f":"Time!OQD$11","v":0},{"$f":"Time!OQE$11","v":0},{"$f":"Time!OQF$11","v":0},{"$f":"Time!OQG$11","v":0},{"$f":"Time!OQH$11","v":0},{"$f":"Time!OQI$11","v":0},{"$f":"Time!OQJ$11","v":0},{"$f":"Time!OQK$11","v":0},{"$f":"Time!OQL$11","v":0},{"$f":"Time!OQM$11","v":0},{"$f":"Time!OQN$11","v":0},{"$f":"Time!OQO$11","v":0},{"$f":"Time!OQP$11","v":0},{"$f":"Time!OQQ$11","v":0},{"$f":"Time!OQR$11","v":0},{"$f":"Time!OQS$11","v":0},{"$f":"Time!OQT$11","v":0},{"$f":"Time!OQU$11","v":0},{"$f":"Time!OQV$11","v":0},{"$f":"Time!OQW$11","v":0},{"$f":"Time!OQX$11","v":0},{"$f":"Time!OQY$11","v":0},{"$f":"Time!OQZ$11","v":0},{"$f":"Time!ORA$11","v":0},{"$f":"Time!ORB$11","v":0},{"$f":"Time!ORC$11","v":0},{"$f":"Time!ORD$11","v":0},{"$f":"Time!ORE$11","v":0},{"$f":"Time!ORF$11","v":0},{"$f":"Time!ORG$11","v":0},{"$f":"Time!ORH$11","v":0},{"$f":"Time!ORI$11","v":0},{"$f":"Time!ORJ$11","v":0},{"$f":"Time!ORK$11","v":0},{"$f":"Time!ORL$11","v":0},{"$f":"Time!ORM$11","v":0},{"$f":"Time!ORN$11","v":0},{"$f":"Time!ORO$11","v":0},{"$f":"Time!ORP$11","v":0},{"$f":"Time!ORQ$11","v":0},{"$f":"Time!ORR$11","v":0},{"$f":"Time!ORS$11","v":0},{"$f":"Time!ORT$11","v":0},{"$f":"Time!ORU$11","v":0},{"$f":"Time!ORV$11","v":0},{"$f":"Time!ORW$11","v":0},{"$f":"Time!ORX$11","v":0},{"$f":"Time!ORY$11","v":0},{"$f":"Time!ORZ$11","v":0},{"$f":"Time!OSA$11","v":0},{"$f":"Time!OSB$11","v":0},{"$f":"Time!OSC$11","v":0},{"$f":"Time!OSD$11","v":0},{"$f":"Time!OSE$11","v":0},{"$f":"Time!OSF$11","v":0},{"$f":"Time!OSG$11","v":0},{"$f":"Time!OSH$11","v":0},{"$f":"Time!OSI$11","v":0},{"$f":"Time!OSJ$11","v":0},{"$f":"Time!OSK$11","v":0},{"$f":"Time!OSL$11","v":0},{"$f":"Time!OSM$11","v":0},{"$f":"Time!OSN$11","v":0},{"$f":"Time!OSO$11","v":0},{"$f":"Time!OSP$11","v":0},{"$f":"Time!OSQ$11","v":0},{"$f":"Time!OSR$11","v":0},{"$f":"Time!OSS$11","v":0},{"$f":"Time!OST$11","v":0},{"$f":"Time!OSU$11","v":0},{"$f":"Time!OSV$11","v":0},{"$f":"Time!OSW$11","v":0},{"$f":"Time!OSX$11","v":0},{"$f":"Time!OSY$11","v":0},{"$f":"Time!OSZ$11","v":0},{"$f":"Time!OTA$11","v":0},{"$f":"Time!OTB$11","v":0},{"$f":"Time!OTC$11","v":0},{"$f":"Time!OTD$11","v":0},{"$f":"Time!OTE$11","v":0},{"$f":"Time!OTF$11","v":0},{"$f":"Time!OTG$11","v":0},{"$f":"Time!OTH$11","v":0},{"$f":"Time!OTI$11","v":0},{"$f":"Time!OTJ$11","v":0},{"$f":"Time!OTK$11","v":0},{"$f":"Time!OTL$11","v":0},{"$f":"Time!OTM$11","v":0},{"$f":"Time!OTN$11","v":0},{"$f":"Time!OTO$11","v":0},{"$f":"Time!OTP$11","v":0},{"$f":"Time!OTQ$11","v":0},{"$f":"Time!OTR$11","v":0},{"$f":"Time!OTS$11","v":0},{"$f":"Time!OTT$11","v":0},{"$f":"Time!OTU$11","v":0},{"$f":"Time!OTV$11","v":0},{"$f":"Time!OTW$11","v":0},{"$f":"Time!OTX$11","v":0},{"$f":"Time!OTY$11","v":0},{"$f":"Time!OTZ$11","v":0},{"$f":"Time!OUA$11","v":0},{"$f":"Time!OUB$11","v":0},{"$f":"Time!OUC$11","v":0},{"$f":"Time!OUD$11","v":0},{"$f":"Time!OUE$11","v":0},{"$f":"Time!OUF$11","v":0},{"$f":"Time!OUG$11","v":0},{"$f":"Time!OUH$11","v":0},{"$f":"Time!OUI$11","v":0},{"$f":"Time!OUJ$11","v":0},{"$f":"Time!OUK$11","v":0},{"$f":"Time!OUL$11","v":0},{"$f":"Time!OUM$11","v":0},{"$f":"Time!OUN$11","v":0},{"$f":"Time!OUO$11","v":0},{"$f":"Time!OUP$11","v":0},{"$f":"Time!OUQ$11","v":0},{"$f":"Time!OUR$11","v":0},{"$f":"Time!OUS$11","v":0},{"$f":"Time!OUT$11","v":0},{"$f":"Time!OUU$11","v":0},{"$f":"Time!OUV$11","v":0},{"$f":"Time!OUW$11","v":0},{"$f":"Time!OUX$11","v":0},{"$f":"Time!OUY$11","v":0},{"$f":"Time!OUZ$11","v":0},{"$f":"Time!OVA$11","v":0},{"$f":"Time!OVB$11","v":0},{"$f":"Time!OVC$11","v":0},{"$f":"Time!OVD$11","v":0},{"$f":"Time!OVE$11","v":0},{"$f":"Time!OVF$11","v":0},{"$f":"Time!OVG$11","v":0},{"$f":"Time!OVH$11","v":0},{"$f":"Time!OVI$11","v":0},{"$f":"Time!OVJ$11","v":0},{"$f":"Time!OVK$11","v":0},{"$f":"Time!OVL$11","v":0},{"$f":"Time!OVM$11","v":0},{"$f":"Time!OVN$11","v":0},{"$f":"Time!OVO$11","v":0},{"$f":"Time!OVP$11","v":0},{"$f":"Time!OVQ$11","v":0},{"$f":"Time!OVR$11","v":0},{"$f":"Time!OVS$11","v":0},{"$f":"Time!OVT$11","v":0},{"$f":"Time!OVU$11","v":0},{"$f":"Time!OVV$11","v":0},{"$f":"Time!OVW$11","v":0},{"$f":"Time!OVX$11","v":0},{"$f":"Time!OVY$11","v":0},{"$f":"Time!OVZ$11","v":0},{"$f":"Time!OWA$11","v":0},{"$f":"Time!OWB$11","v":0},{"$f":"Time!OWC$11","v":0},{"$f":"Time!OWD$11","v":0},{"$f":"Time!OWE$11","v":0},{"$f":"Time!OWF$11","v":0},{"$f":"Time!OWG$11","v":0},{"$f":"Time!OWH$11","v":0},{"$f":"Time!OWI$11","v":0},{"$f":"Time!OWJ$11","v":0},{"$f":"Time!OWK$11","v":0},{"$f":"Time!OWL$11","v":0},{"$f":"Time!OWM$11","v":0},{"$f":"Time!OWN$11","v":0},{"$f":"Time!OWO$11","v":0},{"$f":"Time!OWP$11","v":0},{"$f":"Time!OWQ$11","v":0},{"$f":"Time!OWR$11","v":0},{"$f":"Time!OWS$11","v":0},{"$f":"Time!OWT$11","v":0},{"$f":"Time!OWU$11","v":0},{"$f":"Time!OWV$11","v":0},{"$f":"Time!OWW$11","v":0},{"$f":"Time!OWX$11","v":0},{"$f":"Time!OWY$11","v":0},{"$f":"Time!OWZ$11","v":0},{"$f":"Time!OXA$11","v":0},{"$f":"Time!OXB$11","v":0},{"$f":"Time!OXC$11","v":0},{"$f":"Time!OXD$11","v":0},{"$f":"Time!OXE$11","v":0},{"$f":"Time!OXF$11","v":0},{"$f":"Time!OXG$11","v":0},{"$f":"Time!OXH$11","v":0},{"$f":"Time!OXI$11","v":0},{"$f":"Time!OXJ$11","v":0},{"$f":"Time!OXK$11","v":0},{"$f":"Time!OXL$11","v":0},{"$f":"Time!OXM$11","v":0},{"$f":"Time!OXN$11","v":0},{"$f":"Time!OXO$11","v":0},{"$f":"Time!OXP$11","v":0},{"$f":"Time!OXQ$11","v":0},{"$f":"Time!OXR$11","v":0},{"$f":"Time!OXS$11","v":0},{"$f":"Time!OXT$11","v":0},{"$f":"Time!OXU$11","v":0},{"$f":"Time!OXV$11","v":0},{"$f":"Time!OXW$11","v":0},{"$f":"Time!OXX$11","v":0},{"$f":"Time!OXY$11","v":0},{"$f":"Time!OXZ$11","v":0},{"$f":"Time!OYA$11","v":0},{"$f":"Time!OYB$11","v":0},{"$f":"Time!OYC$11","v":0},{"$f":"Time!OYD$11","v":0},{"$f":"Time!OYE$11","v":0},{"$f":"Time!OYF$11","v":0},{"$f":"Time!OYG$11","v":0},{"$f":"Time!OYH$11","v":0},{"$f":"Time!OYI$11","v":0},{"$f":"Time!OYJ$11","v":0},{"$f":"Time!OYK$11","v":0},{"$f":"Time!OYL$11","v":0},{"$f":"Time!OYM$11","v":0},{"$f":"Time!OYN$11","v":0},{"$f":"Time!OYO$11","v":0},{"$f":"Time!OYP$11","v":0},{"$f":"Time!OYQ$11","v":0},{"$f":"Time!OYR$11","v":0},{"$f":"Time!OYS$11","v":0},{"$f":"Time!OYT$11","v":0},{"$f":"Time!OYU$11","v":0},{"$f":"Time!OYV$11","v":0},{"$f":"Time!OYW$11","v":0},{"$f":"Time!OYX$11","v":0},{"$f":"Time!OYY$11","v":0},{"$f":"Time!OYZ$11","v":0},{"$f":"Time!OZA$11","v":0},{"$f":"Time!OZB$11","v":0},{"$f":"Time!OZC$11","v":0},{"$f":"Time!OZD$11","v":0},{"$f":"Time!OZE$11","v":0},{"$f":"Time!OZF$11","v":0},{"$f":"Time!OZG$11","v":0},{"$f":"Time!OZH$11","v":0},{"$f":"Time!OZI$11","v":0},{"$f":"Time!OZJ$11","v":0},{"$f":"Time!OZK$11","v":0},{"$f":"Time!OZL$11","v":0},{"$f":"Time!OZM$11","v":0},{"$f":"Time!OZN$11","v":0},{"$f":"Time!OZO$11","v":0},{"$f":"Time!OZP$11","v":0},{"$f":"Time!OZQ$11","v":0},{"$f":"Time!OZR$11","v":0},{"$f":"Time!OZS$11","v":0},{"$f":"Time!OZT$11","v":0},{"$f":"Time!OZU$11","v":0},{"$f":"Time!OZV$11","v":0},{"$f":"Time!OZW$11","v":0},{"$f":"Time!OZX$11","v":0},{"$f":"Time!OZY$11","v":0},{"$f":"Time!OZZ$11","v":0},{"$f":"Time!PAA$11","v":0},{"$f":"Time!PAB$11","v":0},{"$f":"Time!PAC$11","v":0},{"$f":"Time!PAD$11","v":0},{"$f":"Time!PAE$11","v":0},{"$f":"Time!PAF$11","v":0},{"$f":"Time!PAG$11","v":0},{"$f":"Time!PAH$11","v":0},{"$f":"Time!PAI$11","v":0},{"$f":"Time!PAJ$11","v":0},{"$f":"Time!PAK$11","v":0},{"$f":"Time!PAL$11","v":0},{"$f":"Time!PAM$11","v":0},{"$f":"Time!PAN$11","v":0},{"$f":"Time!PAO$11","v":0},{"$f":"Time!PAP$11","v":0},{"$f":"Time!PAQ$11","v":0},{"$f":"Time!PAR$11","v":0},{"$f":"Time!PAS$11","v":0},{"$f":"Time!PAT$11","v":0},{"$f":"Time!PAU$11","v":0},{"$f":"Time!PAV$11","v":0},{"$f":"Time!PAW$11","v":0},{"$f":"Time!PAX$11","v":0},{"$f":"Time!PAY$11","v":0},{"$f":"Time!PAZ$11","v":0},{"$f":"Time!PBA$11","v":0},{"$f":"Time!PBB$11","v":0},{"$f":"Time!PBC$11","v":0},{"$f":"Time!PBD$11","v":0},{"$f":"Time!PBE$11","v":0},{"$f":"Time!PBF$11","v":0},{"$f":"Time!PBG$11","v":0},{"$f":"Time!PBH$11","v":0},{"$f":"Time!PBI$11","v":0},{"$f":"Time!PBJ$11","v":0},{"$f":"Time!PBK$11","v":0},{"$f":"Time!PBL$11","v":0},{"$f":"Time!PBM$11","v":0},{"$f":"Time!PBN$11","v":0},{"$f":"Time!PBO$11","v":0},{"$f":"Time!PBP$11","v":0},{"$f":"Time!PBQ$11","v":0},{"$f":"Time!PBR$11","v":0},{"$f":"Time!PBS$11","v":0},{"$f":"Time!PBT$11","v":0},{"$f":"Time!PBU$11","v":0},{"$f":"Time!PBV$11","v":0},{"$f":"Time!PBW$11","v":0},{"$f":"Time!PBX$11","v":0},{"$f":"Time!PBY$11","v":0},{"$f":"Time!PBZ$11","v":0},{"$f":"Time!PCA$11","v":0},{"$f":"Time!PCB$11","v":0},{"$f":"Time!PCC$11","v":0},{"$f":"Time!PCD$11","v":0},{"$f":"Time!PCE$11","v":0},{"$f":"Time!PCF$11","v":0},{"$f":"Time!PCG$11","v":0},{"$f":"Time!PCH$11","v":0},{"$f":"Time!PCI$11","v":0},{"$f":"Time!PCJ$11","v":0},{"$f":"Time!PCK$11","v":0},{"$f":"Time!PCL$11","v":0},{"$f":"Time!PCM$11","v":0},{"$f":"Time!PCN$11","v":0},{"$f":"Time!PCO$11","v":0},{"$f":"Time!PCP$11","v":0},{"$f":"Time!PCQ$11","v":0},{"$f":"Time!PCR$11","v":0},{"$f":"Time!PCS$11","v":0},{"$f":"Time!PCT$11","v":0},{"$f":"Time!PCU$11","v":0},{"$f":"Time!PCV$11","v":0},{"$f":"Time!PCW$11","v":0},{"$f":"Time!PCX$11","v":0},{"$f":"Time!PCY$11","v":0},{"$f":"Time!PCZ$11","v":0},{"$f":"Time!PDA$11","v":0},{"$f":"Time!PDB$11","v":0},{"$f":"Time!PDC$11","v":0},{"$f":"Time!PDD$11","v":0},{"$f":"Time!PDE$11","v":0},{"$f":"Time!PDF$11","v":0},{"$f":"Time!PDG$11","v":0},{"$f":"Time!PDH$11","v":0},{"$f":"Time!PDI$11","v":0},{"$f":"Time!PDJ$11","v":0},{"$f":"Time!PDK$11","v":0},{"$f":"Time!PDL$11","v":0},{"$f":"Time!PDM$11","v":0},{"$f":"Time!PDN$11","v":0},{"$f":"Time!PDO$11","v":0},{"$f":"Time!PDP$11","v":0},{"$f":"Time!PDQ$11","v":0},{"$f":"Time!PDR$11","v":0},{"$f":"Time!PDS$11","v":0},{"$f":"Time!PDT$11","v":0},{"$f":"Time!PDU$11","v":0},{"$f":"Time!PDV$11","v":0},{"$f":"Time!PDW$11","v":0},{"$f":"Time!PDX$11","v":0},{"$f":"Time!PDY$11","v":0},{"$f":"Time!PDZ$11","v":0},{"$f":"Time!PEA$11","v":0},{"$f":"Time!PEB$11","v":0},{"$f":"Time!PEC$11","v":0},{"$f":"Time!PED$11","v":0},{"$f":"Time!PEE$11","v":0},{"$f":"Time!PEF$11","v":0},{"$f":"Time!PEG$11","v":0},{"$f":"Time!PEH$11","v":0},{"$f":"Time!PEI$11","v":0},{"$f":"Time!PEJ$11","v":0},{"$f":"Time!PEK$11","v":0},{"$f":"Time!PEL$11","v":0},{"$f":"Time!PEM$11","v":0},{"$f":"Time!PEN$11","v":0},{"$f":"Time!PEO$11","v":0},{"$f":"Time!PEP$11","v":0},{"$f":"Time!PEQ$11","v":0},{"$f":"Time!PER$11","v":0},{"$f":"Time!PES$11","v":0},{"$f":"Time!PET$11","v":0},{"$f":"Time!PEU$11","v":0},{"$f":"Time!PEV$11","v":0},{"$f":"Time!PEW$11","v":0},{"$f":"Time!PEX$11","v":0},{"$f":"Time!PEY$11","v":0},{"$f":"Time!PEZ$11","v":0},{"$f":"Time!PFA$11","v":0},{"$f":"Time!PFB$11","v":0},{"$f":"Time!PFC$11","v":0},{"$f":"Time!PFD$11","v":0},{"$f":"Time!PFE$11","v":0},{"$f":"Time!PFF$11","v":0},{"$f":"Time!PFG$11","v":0},{"$f":"Time!PFH$11","v":0},{"$f":"Time!PFI$11","v":0},{"$f":"Time!PFJ$11","v":0},{"$f":"Time!PFK$11","v":0},{"$f":"Time!PFL$11","v":0},{"$f":"Time!PFM$11","v":0},{"$f":"Time!PFN$11","v":0},{"$f":"Time!PFO$11","v":0},{"$f":"Time!PFP$11","v":0},{"$f":"Time!PFQ$11","v":0},{"$f":"Time!PFR$11","v":0},{"$f":"Time!PFS$11","v":0},{"$f":"Time!PFT$11","v":0},{"$f":"Time!PFU$11","v":0},{"$f":"Time!PFV$11","v":0},{"$f":"Time!PFW$11","v":0},{"$f":"Time!PFX$11","v":0},{"$f":"Time!PFY$11","v":0},{"$f":"Time!PFZ$11","v":0},{"$f":"Time!PGA$11","v":0},{"$f":"Time!PGB$11","v":0},{"$f":"Time!PGC$11","v":0},{"$f":"Time!PGD$11","v":0},{"$f":"Time!PGE$11","v":0},{"$f":"Time!PGF$11","v":0},{"$f":"Time!PGG$11","v":0},{"$f":"Time!PGH$11","v":0},{"$f":"Time!PGI$11","v":0},{"$f":"Time!PGJ$11","v":0},{"$f":"Time!PGK$11","v":0},{"$f":"Time!PGL$11","v":0},{"$f":"Time!PGM$11","v":0},{"$f":"Time!PGN$11","v":0},{"$f":"Time!PGO$11","v":0},{"$f":"Time!PGP$11","v":0},{"$f":"Time!PGQ$11","v":0},{"$f":"Time!PGR$11","v":0},{"$f":"Time!PGS$11","v":0},{"$f":"Time!PGT$11","v":0},{"$f":"Time!PGU$11","v":0},{"$f":"Time!PGV$11","v":0},{"$f":"Time!PGW$11","v":0},{"$f":"Time!PGX$11","v":0},{"$f":"Time!PGY$11","v":0},{"$f":"Time!PGZ$11","v":0},{"$f":"Time!PHA$11","v":0},{"$f":"Time!PHB$11","v":0},{"$f":"Time!PHC$11","v":0},{"$f":"Time!PHD$11","v":0},{"$f":"Time!PHE$11","v":0},{"$f":"Time!PHF$11","v":0},{"$f":"Time!PHG$11","v":0},{"$f":"Time!PHH$11","v":0},{"$f":"Time!PHI$11","v":0},{"$f":"Time!PHJ$11","v":0},{"$f":"Time!PHK$11","v":0},{"$f":"Time!PHL$11","v":0},{"$f":"Time!PHM$11","v":0},{"$f":"Time!PHN$11","v":0},{"$f":"Time!PHO$11","v":0},{"$f":"Time!PHP$11","v":0},{"$f":"Time!PHQ$11","v":0},{"$f":"Time!PHR$11","v":0},{"$f":"Time!PHS$11","v":0},{"$f":"Time!PHT$11","v":0},{"$f":"Time!PHU$11","v":0},{"$f":"Time!PHV$11","v":0},{"$f":"Time!PHW$11","v":0},{"$f":"Time!PHX$11","v":0},{"$f":"Time!PHY$11","v":0},{"$f":"Time!PHZ$11","v":0},{"$f":"Time!PIA$11","v":0},{"$f":"Time!PIB$11","v":0},{"$f":"Time!PIC$11","v":0},{"$f":"Time!PID$11","v":0},{"$f":"Time!PIE$11","v":0},{"$f":"Time!PIF$11","v":0},{"$f":"Time!PIG$11","v":0},{"$f":"Time!PIH$11","v":0},{"$f":"Time!PII$11","v":0},{"$f":"Time!PIJ$11","v":0},{"$f":"Time!PIK$11","v":0},{"$f":"Time!PIL$11","v":0},{"$f":"Time!PIM$11","v":0},{"$f":"Time!PIN$11","v":0},{"$f":"Time!PIO$11","v":0},{"$f":"Time!PIP$11","v":0},{"$f":"Time!PIQ$11","v":0},{"$f":"Time!PIR$11","v":0},{"$f":"Time!PIS$11","v":0},{"$f":"Time!PIT$11","v":0},{"$f":"Time!PIU$11","v":0},{"$f":"Time!PIV$11","v":0},{"$f":"Time!PIW$11","v":0},{"$f":"Time!PIX$11","v":0},{"$f":"Time!PIY$11","v":0},{"$f":"Time!PIZ$11","v":0},{"$f":"Time!PJA$11","v":0},{"$f":"Time!PJB$11","v":0},{"$f":"Time!PJC$11","v":0},{"$f":"Time!PJD$11","v":0},{"$f":"Time!PJE$11","v":0},{"$f":"Time!PJF$11","v":0},{"$f":"Time!PJG$11","v":0},{"$f":"Time!PJH$11","v":0},{"$f":"Time!PJI$11","v":0},{"$f":"Time!PJJ$11","v":0},{"$f":"Time!PJK$11","v":0},{"$f":"Time!PJL$11","v":0},{"$f":"Time!PJM$11","v":0},{"$f":"Time!PJN$11","v":0},{"$f":"Time!PJO$11","v":0},{"$f":"Time!PJP$11","v":0},{"$f":"Time!PJQ$11","v":0},{"$f":"Time!PJR$11","v":0},{"$f":"Time!PJS$11","v":0},{"$f":"Time!PJT$11","v":0},{"$f":"Time!PJU$11","v":0},{"$f":"Time!PJV$11","v":0},{"$f":"Time!PJW$11","v":0},{"$f":"Time!PJX$11","v":0},{"$f":"Time!PJY$11","v":0},{"$f":"Time!PJZ$11","v":0},{"$f":"Time!PKA$11","v":0},{"$f":"Time!PKB$11","v":0},{"$f":"Time!PKC$11","v":0},{"$f":"Time!PKD$11","v":0},{"$f":"Time!PKE$11","v":0},{"$f":"Time!PKF$11","v":0},{"$f":"Time!PKG$11","v":0},{"$f":"Time!PKH$11","v":0},{"$f":"Time!PKI$11","v":0},{"$f":"Time!PKJ$11","v":0},{"$f":"Time!PKK$11","v":0},{"$f":"Time!PKL$11","v":0},{"$f":"Time!PKM$11","v":0},{"$f":"Time!PKN$11","v":0},{"$f":"Time!PKO$11","v":0},{"$f":"Time!PKP$11","v":0},{"$f":"Time!PKQ$11","v":0},{"$f":"Time!PKR$11","v":0},{"$f":"Time!PKS$11","v":0},{"$f":"Time!PKT$11","v":0},{"$f":"Time!PKU$11","v":0},{"$f":"Time!PKV$11","v":0},{"$f":"Time!PKW$11","v":0},{"$f":"Time!PKX$11","v":0},{"$f":"Time!PKY$11","v":0},{"$f":"Time!PKZ$11","v":0},{"$f":"Time!PLA$11","v":0},{"$f":"Time!PLB$11","v":0},{"$f":"Time!PLC$11","v":0},{"$f":"Time!PLD$11","v":0},{"$f":"Time!PLE$11","v":0},{"$f":"Time!PLF$11","v":0},{"$f":"Time!PLG$11","v":0},{"$f":"Time!PLH$11","v":0},{"$f":"Time!PLI$11","v":0},{"$f":"Time!PLJ$11","v":0},{"$f":"Time!PLK$11","v":0},{"$f":"Time!PLL$11","v":0},{"$f":"Time!PLM$11","v":0},{"$f":"Time!PLN$11","v":0},{"$f":"Time!PLO$11","v":0},{"$f":"Time!PLP$11","v":0},{"$f":"Time!PLQ$11","v":0},{"$f":"Time!PLR$11","v":0},{"$f":"Time!PLS$11","v":0},{"$f":"Time!PLT$11","v":0},{"$f":"Time!PLU$11","v":0},{"$f":"Time!PLV$11","v":0},{"$f":"Time!PLW$11","v":0},{"$f":"Time!PLX$11","v":0},{"$f":"Time!PLY$11","v":0},{"$f":"Time!PLZ$11","v":0},{"$f":"Time!PMA$11","v":0},{"$f":"Time!PMB$11","v":0},{"$f":"Time!PMC$11","v":0},{"$f":"Time!PMD$11","v":0},{"$f":"Time!PME$11","v":0},{"$f":"Time!PMF$11","v":0},{"$f":"Time!PMG$11","v":0},{"$f":"Time!PMH$11","v":0},{"$f":"Time!PMI$11","v":0},{"$f":"Time!PMJ$11","v":0},{"$f":"Time!PMK$11","v":0},{"$f":"Time!PML$11","v":0},{"$f":"Time!PMM$11","v":0},{"$f":"Time!PMN$11","v":0},{"$f":"Time!PMO$11","v":0},{"$f":"Time!PMP$11","v":0},{"$f":"Time!PMQ$11","v":0},{"$f":"Time!PMR$11","v":0},{"$f":"Time!PMS$11","v":0},{"$f":"Time!PMT$11","v":0},{"$f":"Time!PMU$11","v":0},{"$f":"Time!PMV$11","v":0},{"$f":"Time!PMW$11","v":0},{"$f":"Time!PMX$11","v":0},{"$f":"Time!PMY$11","v":0},{"$f":"Time!PMZ$11","v":0},{"$f":"Time!PNA$11","v":0},{"$f":"Time!PNB$11","v":0},{"$f":"Time!PNC$11","v":0},{"$f":"Time!PND$11","v":0},{"$f":"Time!PNE$11","v":0},{"$f":"Time!PNF$11","v":0},{"$f":"Time!PNG$11","v":0},{"$f":"Time!PNH$11","v":0},{"$f":"Time!PNI$11","v":0},{"$f":"Time!PNJ$11","v":0},{"$f":"Time!PNK$11","v":0},{"$f":"Time!PNL$11","v":0},{"$f":"Time!PNM$11","v":0},{"$f":"Time!PNN$11","v":0},{"$f":"Time!PNO$11","v":0},{"$f":"Time!PNP$11","v":0},{"$f":"Time!PNQ$11","v":0},{"$f":"Time!PNR$11","v":0},{"$f":"Time!PNS$11","v":0},{"$f":"Time!PNT$11","v":0},{"$f":"Time!PNU$11","v":0},{"$f":"Time!PNV$11","v":0},{"$f":"Time!PNW$11","v":0},{"$f":"Time!PNX$11","v":0},{"$f":"Time!PNY$11","v":0},{"$f":"Time!PNZ$11","v":0},{"$f":"Time!POA$11","v":0},{"$f":"Time!POB$11","v":0},{"$f":"Time!POC$11","v":0},{"$f":"Time!POD$11","v":0},{"$f":"Time!POE$11","v":0},{"$f":"Time!POF$11","v":0},{"$f":"Time!POG$11","v":0},{"$f":"Time!POH$11","v":0},{"$f":"Time!POI$11","v":0},{"$f":"Time!POJ$11","v":0},{"$f":"Time!POK$11","v":0},{"$f":"Time!POL$11","v":0},{"$f":"Time!POM$11","v":0},{"$f":"Time!PON$11","v":0},{"$f":"Time!POO$11","v":0},{"$f":"Time!POP$11","v":0},{"$f":"Time!POQ$11","v":0},{"$f":"Time!POR$11","v":0},{"$f":"Time!POS$11","v":0},{"$f":"Time!POT$11","v":0},{"$f":"Time!POU$11","v":0},{"$f":"Time!POV$11","v":0},{"$f":"Time!POW$11","v":0},{"$f":"Time!POX$11","v":0},{"$f":"Time!POY$11","v":0},{"$f":"Time!POZ$11","v":0},{"$f":"Time!PPA$11","v":0},{"$f":"Time!PPB$11","v":0},{"$f":"Time!PPC$11","v":0},{"$f":"Time!PPD$11","v":0},{"$f":"Time!PPE$11","v":0},{"$f":"Time!PPF$11","v":0},{"$f":"Time!PPG$11","v":0},{"$f":"Time!PPH$11","v":0},{"$f":"Time!PPI$11","v":0},{"$f":"Time!PPJ$11","v":0},{"$f":"Time!PPK$11","v":0},{"$f":"Time!PPL$11","v":0},{"$f":"Time!PPM$11","v":0},{"$f":"Time!PPN$11","v":0},{"$f":"Time!PPO$11","v":0},{"$f":"Time!PPP$11","v":0},{"$f":"Time!PPQ$11","v":0},{"$f":"Time!PPR$11","v":0},{"$f":"Time!PPS$11","v":0},{"$f":"Time!PPT$11","v":0},{"$f":"Time!PPU$11","v":0},{"$f":"Time!PPV$11","v":0},{"$f":"Time!PPW$11","v":0},{"$f":"Time!PPX$11","v":0},{"$f":"Time!PPY$11","v":0},{"$f":"Time!PPZ$11","v":0},{"$f":"Time!PQA$11","v":0},{"$f":"Time!PQB$11","v":0},{"$f":"Time!PQC$11","v":0},{"$f":"Time!PQD$11","v":0},{"$f":"Time!PQE$11","v":0},{"$f":"Time!PQF$11","v":0},{"$f":"Time!PQG$11","v":0},{"$f":"Time!PQH$11","v":0},{"$f":"Time!PQI$11","v":0},{"$f":"Time!PQJ$11","v":0},{"$f":"Time!PQK$11","v":0},{"$f":"Time!PQL$11","v":0},{"$f":"Time!PQM$11","v":0},{"$f":"Time!PQN$11","v":0},{"$f":"Time!PQO$11","v":0},{"$f":"Time!PQP$11","v":0},{"$f":"Time!PQQ$11","v":0},{"$f":"Time!PQR$11","v":0},{"$f":"Time!PQS$11","v":0},{"$f":"Time!PQT$11","v":0},{"$f":"Time!PQU$11","v":0},{"$f":"Time!PQV$11","v":0},{"$f":"Time!PQW$11","v":0},{"$f":"Time!PQX$11","v":0},{"$f":"Time!PQY$11","v":0},{"$f":"Time!PQZ$11","v":0},{"$f":"Time!PRA$11","v":0},{"$f":"Time!PRB$11","v":0},{"$f":"Time!PRC$11","v":0},{"$f":"Time!PRD$11","v":0},{"$f":"Time!PRE$11","v":0},{"$f":"Time!PRF$11","v":0},{"$f":"Time!PRG$11","v":0},{"$f":"Time!PRH$11","v":0},{"$f":"Time!PRI$11","v":0},{"$f":"Time!PRJ$11","v":0},{"$f":"Time!PRK$11","v":0},{"$f":"Time!PRL$11","v":0},{"$f":"Time!PRM$11","v":0},{"$f":"Time!PRN$11","v":0},{"$f":"Time!PRO$11","v":0},{"$f":"Time!PRP$11","v":0},{"$f":"Time!PRQ$11","v":0},{"$f":"Time!PRR$11","v":0},{"$f":"Time!PRS$11","v":0},{"$f":"Time!PRT$11","v":0},{"$f":"Time!PRU$11","v":0},{"$f":"Time!PRV$11","v":0},{"$f":"Time!PRW$11","v":0},{"$f":"Time!PRX$11","v":0},{"$f":"Time!PRY$11","v":0},{"$f":"Time!PRZ$11","v":0},{"$f":"Time!PSA$11","v":0},{"$f":"Time!PSB$11","v":0},{"$f":"Time!PSC$11","v":0},{"$f":"Time!PSD$11","v":0},{"$f":"Time!PSE$11","v":0},{"$f":"Time!PSF$11","v":0},{"$f":"Time!PSG$11","v":0},{"$f":"Time!PSH$11","v":0},{"$f":"Time!PSI$11","v":0},{"$f":"Time!PSJ$11","v":0},{"$f":"Time!PSK$11","v":0},{"$f":"Time!PSL$11","v":0},{"$f":"Time!PSM$11","v":0},{"$f":"Time!PSN$11","v":0},{"$f":"Time!PSO$11","v":0},{"$f":"Time!PSP$11","v":0},{"$f":"Time!PSQ$11","v":0},{"$f":"Time!PSR$11","v":0},{"$f":"Time!PSS$11","v":0},{"$f":"Time!PST$11","v":0},{"$f":"Time!PSU$11","v":0},{"$f":"Time!PSV$11","v":0},{"$f":"Time!PSW$11","v":0},{"$f":"Time!PSX$11","v":0},{"$f":"Time!PSY$11","v":0},{"$f":"Time!PSZ$11","v":0},{"$f":"Time!PTA$11","v":0},{"$f":"Time!PTB$11","v":0},{"$f":"Time!PTC$11","v":0},{"$f":"Time!PTD$11","v":0},{"$f":"Time!PTE$11","v":0},{"$f":"Time!PTF$11","v":0},{"$f":"Time!PTG$11","v":0},{"$f":"Time!PTH$11","v":0},{"$f":"Time!PTI$11","v":0},{"$f":"Time!PTJ$11","v":0},{"$f":"Time!PTK$11","v":0},{"$f":"Time!PTL$11","v":0},{"$f":"Time!PTM$11","v":0},{"$f":"Time!PTN$11","v":0},{"$f":"Time!PTO$11","v":0},{"$f":"Time!PTP$11","v":0},{"$f":"Time!PTQ$11","v":0},{"$f":"Time!PTR$11","v":0},{"$f":"Time!PTS$11","v":0},{"$f":"Time!PTT$11","v":0},{"$f":"Time!PTU$11","v":0},{"$f":"Time!PTV$11","v":0},{"$f":"Time!PTW$11","v":0},{"$f":"Time!PTX$11","v":0},{"$f":"Time!PTY$11","v":0},{"$f":"Time!PTZ$11","v":0},{"$f":"Time!PUA$11","v":0},{"$f":"Time!PUB$11","v":0},{"$f":"Time!PUC$11","v":0},{"$f":"Time!PUD$11","v":0},{"$f":"Time!PUE$11","v":0},{"$f":"Time!PUF$11","v":0},{"$f":"Time!PUG$11","v":0},{"$f":"Time!PUH$11","v":0},{"$f":"Time!PUI$11","v":0},{"$f":"Time!PUJ$11","v":0},{"$f":"Time!PUK$11","v":0},{"$f":"Time!PUL$11","v":0},{"$f":"Time!PUM$11","v":0},{"$f":"Time!PUN$11","v":0},{"$f":"Time!PUO$11","v":0},{"$f":"Time!PUP$11","v":0},{"$f":"Time!PUQ$11","v":0},{"$f":"Time!PUR$11","v":0},{"$f":"Time!PUS$11","v":0},{"$f":"Time!PUT$11","v":0},{"$f":"Time!PUU$11","v":0},{"$f":"Time!PUV$11","v":0},{"$f":"Time!PUW$11","v":0},{"$f":"Time!PUX$11","v":0},{"$f":"Time!PUY$11","v":0},{"$f":"Time!PUZ$11","v":0},{"$f":"Time!PVA$11","v":0},{"$f":"Time!PVB$11","v":0},{"$f":"Time!PVC$11","v":0},{"$f":"Time!PVD$11","v":0},{"$f":"Time!PVE$11","v":0},{"$f":"Time!PVF$11","v":0},{"$f":"Time!PVG$11","v":0},{"$f":"Time!PVH$11","v":0},{"$f":"Time!PVI$11","v":0},{"$f":"Time!PVJ$11","v":0},{"$f":"Time!PVK$11","v":0},{"$f":"Time!PVL$11","v":0},{"$f":"Time!PVM$11","v":0},{"$f":"Time!PVN$11","v":0},{"$f":"Time!PVO$11","v":0},{"$f":"Time!PVP$11","v":0},{"$f":"Time!PVQ$11","v":0},{"$f":"Time!PVR$11","v":0},{"$f":"Time!PVS$11","v":0},{"$f":"Time!PVT$11","v":0},{"$f":"Time!PVU$11","v":0},{"$f":"Time!PVV$11","v":0},{"$f":"Time!PVW$11","v":0},{"$f":"Time!PVX$11","v":0},{"$f":"Time!PVY$11","v":0},{"$f":"Time!PVZ$11","v":0},{"$f":"Time!PWA$11","v":0},{"$f":"Time!PWB$11","v":0},{"$f":"Time!PWC$11","v":0},{"$f":"Time!PWD$11","v":0},{"$f":"Time!PWE$11","v":0},{"$f":"Time!PWF$11","v":0},{"$f":"Time!PWG$11","v":0},{"$f":"Time!PWH$11","v":0},{"$f":"Time!PWI$11","v":0},{"$f":"Time!PWJ$11","v":0},{"$f":"Time!PWK$11","v":0},{"$f":"Time!PWL$11","v":0},{"$f":"Time!PWM$11","v":0},{"$f":"Time!PWN$11","v":0},{"$f":"Time!PWO$11","v":0},{"$f":"Time!PWP$11","v":0},{"$f":"Time!PWQ$11","v":0},{"$f":"Time!PWR$11","v":0},{"$f":"Time!PWS$11","v":0},{"$f":"Time!PWT$11","v":0},{"$f":"Time!PWU$11","v":0},{"$f":"Time!PWV$11","v":0},{"$f":"Time!PWW$11","v":0},{"$f":"Time!PWX$11","v":0},{"$f":"Time!PWY$11","v":0},{"$f":"Time!PWZ$11","v":0},{"$f":"Time!PXA$11","v":0},{"$f":"Time!PXB$11","v":0},{"$f":"Time!PXC$11","v":0},{"$f":"Time!PXD$11","v":0},{"$f":"Time!PXE$11","v":0},{"$f":"Time!PXF$11","v":0},{"$f":"Time!PXG$11","v":0},{"$f":"Time!PXH$11","v":0},{"$f":"Time!PXI$11","v":0},{"$f":"Time!PXJ$11","v":0},{"$f":"Time!PXK$11","v":0},{"$f":"Time!PXL$11","v":0},{"$f":"Time!PXM$11","v":0},{"$f":"Time!PXN$11","v":0},{"$f":"Time!PXO$11","v":0},{"$f":"Time!PXP$11","v":0},{"$f":"Time!PXQ$11","v":0},{"$f":"Time!PXR$11","v":0},{"$f":"Time!PXS$11","v":0},{"$f":"Time!PXT$11","v":0},{"$f":"Time!PXU$11","v":0},{"$f":"Time!PXV$11","v":0},{"$f":"Time!PXW$11","v":0},{"$f":"Time!PXX$11","v":0},{"$f":"Time!PXY$11","v":0},{"$f":"Time!PXZ$11","v":0},{"$f":"Time!PYA$11","v":0},{"$f":"Time!PYB$11","v":0},{"$f":"Time!PYC$11","v":0},{"$f":"Time!PYD$11","v":0},{"$f":"Time!PYE$11","v":0},{"$f":"Time!PYF$11","v":0},{"$f":"Time!PYG$11","v":0},{"$f":"Time!PYH$11","v":0},{"$f":"Time!PYI$11","v":0},{"$f":"Time!PYJ$11","v":0},{"$f":"Time!PYK$11","v":0},{"$f":"Time!PYL$11","v":0},{"$f":"Time!PYM$11","v":0},{"$f":"Time!PYN$11","v":0},{"$f":"Time!PYO$11","v":0},{"$f":"Time!PYP$11","v":0},{"$f":"Time!PYQ$11","v":0},{"$f":"Time!PYR$11","v":0},{"$f":"Time!PYS$11","v":0},{"$f":"Time!PYT$11","v":0},{"$f":"Time!PYU$11","v":0},{"$f":"Time!PYV$11","v":0},{"$f":"Time!PYW$11","v":0},{"$f":"Time!PYX$11","v":0},{"$f":"Time!PYY$11","v":0},{"$f":"Time!PYZ$11","v":0},{"$f":"Time!PZA$11","v":0},{"$f":"Time!PZB$11","v":0},{"$f":"Time!PZC$11","v":0},{"$f":"Time!PZD$11","v":0},{"$f":"Time!PZE$11","v":0},{"$f":"Time!PZF$11","v":0},{"$f":"Time!PZG$11","v":0},{"$f":"Time!PZH$11","v":0},{"$f":"Time!PZI$11","v":0},{"$f":"Time!PZJ$11","v":0},{"$f":"Time!PZK$11","v":0},{"$f":"Time!PZL$11","v":0},{"$f":"Time!PZM$11","v":0},{"$f":"Time!PZN$11","v":0},{"$f":"Time!PZO$11","v":0},{"$f":"Time!PZP$11","v":0},{"$f":"Time!PZQ$11","v":0},{"$f":"Time!PZR$11","v":0},{"$f":"Time!PZS$11","v":0},{"$f":"Time!PZT$11","v":0},{"$f":"Time!PZU$11","v":0},{"$f":"Time!PZV$11","v":0},{"$f":"Time!PZW$11","v":0},{"$f":"Time!PZX$11","v":0},{"$f":"Time!PZY$11","v":0},{"$f":"Time!PZZ$11","v":0},{"$f":"Time!QAA$11","v":0},{"$f":"Time!QAB$11","v":0},{"$f":"Time!QAC$11","v":0},{"$f":"Time!QAD$11","v":0},{"$f":"Time!QAE$11","v":0},{"$f":"Time!QAF$11","v":0},{"$f":"Time!QAG$11","v":0},{"$f":"Time!QAH$11","v":0},{"$f":"Time!QAI$11","v":0},{"$f":"Time!QAJ$11","v":0},{"$f":"Time!QAK$11","v":0},{"$f":"Time!QAL$11","v":0},{"$f":"Time!QAM$11","v":0},{"$f":"Time!QAN$11","v":0},{"$f":"Time!QAO$11","v":0},{"$f":"Time!QAP$11","v":0},{"$f":"Time!QAQ$11","v":0},{"$f":"Time!QAR$11","v":0},{"$f":"Time!QAS$11","v":0},{"$f":"Time!QAT$11","v":0},{"$f":"Time!QAU$11","v":0},{"$f":"Time!QAV$11","v":0},{"$f":"Time!QAW$11","v":0},{"$f":"Time!QAX$11","v":0},{"$f":"Time!QAY$11","v":0},{"$f":"Time!QAZ$11","v":0},{"$f":"Time!QBA$11","v":0},{"$f":"Time!QBB$11","v":0},{"$f":"Time!QBC$11","v":0},{"$f":"Time!QBD$11","v":0},{"$f":"Time!QBE$11","v":0},{"$f":"Time!QBF$11","v":0},{"$f":"Time!QBG$11","v":0},{"$f":"Time!QBH$11","v":0},{"$f":"Time!QBI$11","v":0},{"$f":"Time!QBJ$11","v":0},{"$f":"Time!QBK$11","v":0},{"$f":"Time!QBL$11","v":0},{"$f":"Time!QBM$11","v":0},{"$f":"Time!QBN$11","v":0},{"$f":"Time!QBO$11","v":0},{"$f":"Time!QBP$11","v":0},{"$f":"Time!QBQ$11","v":0},{"$f":"Time!QBR$11","v":0},{"$f":"Time!QBS$11","v":0},{"$f":"Time!QBT$11","v":0},{"$f":"Time!QBU$11","v":0},{"$f":"Time!QBV$11","v":0},{"$f":"Time!QBW$11","v":0},{"$f":"Time!QBX$11","v":0},{"$f":"Time!QBY$11","v":0},{"$f":"Time!QBZ$11","v":0},{"$f":"Time!QCA$11","v":0},{"$f":"Time!QCB$11","v":0},{"$f":"Time!QCC$11","v":0},{"$f":"Time!QCD$11","v":0},{"$f":"Time!QCE$11","v":0},{"$f":"Time!QCF$11","v":0},{"$f":"Time!QCG$11","v":0},{"$f":"Time!QCH$11","v":0},{"$f":"Time!QCI$11","v":0},{"$f":"Time!QCJ$11","v":0},{"$f":"Time!QCK$11","v":0},{"$f":"Time!QCL$11","v":0},{"$f":"Time!QCM$11","v":0},{"$f":"Time!QCN$11","v":0},{"$f":"Time!QCO$11","v":0},{"$f":"Time!QCP$11","v":0},{"$f":"Time!QCQ$11","v":0},{"$f":"Time!QCR$11","v":0},{"$f":"Time!QCS$11","v":0},{"$f":"Time!QCT$11","v":0},{"$f":"Time!QCU$11","v":0},{"$f":"Time!QCV$11","v":0},{"$f":"Time!QCW$11","v":0},{"$f":"Time!QCX$11","v":0},{"$f":"Time!QCY$11","v":0},{"$f":"Time!QCZ$11","v":0},{"$f":"Time!QDA$11","v":0},{"$f":"Time!QDB$11","v":0},{"$f":"Time!QDC$11","v":0},{"$f":"Time!QDD$11","v":0},{"$f":"Time!QDE$11","v":0},{"$f":"Time!QDF$11","v":0},{"$f":"Time!QDG$11","v":0},{"$f":"Time!QDH$11","v":0},{"$f":"Time!QDI$11","v":0},{"$f":"Time!QDJ$11","v":0},{"$f":"Time!QDK$11","v":0},{"$f":"Time!QDL$11","v":0},{"$f":"Time!QDM$11","v":0},{"$f":"Time!QDN$11","v":0},{"$f":"Time!QDO$11","v":0},{"$f":"Time!QDP$11","v":0},{"$f":"Time!QDQ$11","v":0},{"$f":"Time!QDR$11","v":0},{"$f":"Time!QDS$11","v":0},{"$f":"Time!QDT$11","v":0},{"$f":"Time!QDU$11","v":0},{"$f":"Time!QDV$11","v":0},{"$f":"Time!QDW$11","v":0},{"$f":"Time!QDX$11","v":0},{"$f":"Time!QDY$11","v":0},{"$f":"Time!QDZ$11","v":0},{"$f":"Time!QEA$11","v":0},{"$f":"Time!QEB$11","v":0},{"$f":"Time!QEC$11","v":0},{"$f":"Time!QED$11","v":0},{"$f":"Time!QEE$11","v":0},{"$f":"Time!QEF$11","v":0},{"$f":"Time!QEG$11","v":0},{"$f":"Time!QEH$11","v":0},{"$f":"Time!QEI$11","v":0},{"$f":"Time!QEJ$11","v":0},{"$f":"Time!QEK$11","v":0},{"$f":"Time!QEL$11","v":0},{"$f":"Time!QEM$11","v":0},{"$f":"Time!QEN$11","v":0},{"$f":"Time!QEO$11","v":0},{"$f":"Time!QEP$11","v":0},{"$f":"Time!QEQ$11","v":0},{"$f":"Time!QER$11","v":0},{"$f":"Time!QES$11","v":0},{"$f":"Time!QET$11","v":0},{"$f":"Time!QEU$11","v":0},{"$f":"Time!QEV$11","v":0},{"$f":"Time!QEW$11","v":0},{"$f":"Time!QEX$11","v":0},{"$f":"Time!QEY$11","v":0},{"$f":"Time!QEZ$11","v":0},{"$f":"Time!QFA$11","v":0},{"$f":"Time!QFB$11","v":0},{"$f":"Time!QFC$11","v":0},{"$f":"Time!QFD$11","v":0},{"$f":"Time!QFE$11","v":0},{"$f":"Time!QFF$11","v":0},{"$f":"Time!QFG$11","v":0},{"$f":"Time!QFH$11","v":0},{"$f":"Time!QFI$11","v":0},{"$f":"Time!QFJ$11","v":0},{"$f":"Time!QFK$11","v":0},{"$f":"Time!QFL$11","v":0},{"$f":"Time!QFM$11","v":0},{"$f":"Time!QFN$11","v":0},{"$f":"Time!QFO$11","v":0},{"$f":"Time!QFP$11","v":0},{"$f":"Time!QFQ$11","v":0},{"$f":"Time!QFR$11","v":0},{"$f":"Time!QFS$11","v":0},{"$f":"Time!QFT$11","v":0},{"$f":"Time!QFU$11","v":0},{"$f":"Time!QFV$11","v":0},{"$f":"Time!QFW$11","v":0},{"$f":"Time!QFX$11","v":0},{"$f":"Time!QFY$11","v":0},{"$f":"Time!QFZ$11","v":0},{"$f":"Time!QGA$11","v":0},{"$f":"Time!QGB$11","v":0},{"$f":"Time!QGC$11","v":0},{"$f":"Time!QGD$11","v":0},{"$f":"Time!QGE$11","v":0},{"$f":"Time!QGF$11","v":0},{"$f":"Time!QGG$11","v":0},{"$f":"Time!QGH$11","v":0},{"$f":"Time!QGI$11","v":0},{"$f":"Time!QGJ$11","v":0},{"$f":"Time!QGK$11","v":0},{"$f":"Time!QGL$11","v":0},{"$f":"Time!QGM$11","v":0},{"$f":"Time!QGN$11","v":0},{"$f":"Time!QGO$11","v":0},{"$f":"Time!QGP$11","v":0},{"$f":"Time!QGQ$11","v":0},{"$f":"Time!QGR$11","v":0},{"$f":"Time!QGS$11","v":0},{"$f":"Time!QGT$11","v":0},{"$f":"Time!QGU$11","v":0},{"$f":"Time!QGV$11","v":0},{"$f":"Time!QGW$11","v":0},{"$f":"Time!QGX$11","v":0},{"$f":"Time!QGY$11","v":0},{"$f":"Time!QGZ$11","v":0},{"$f":"Time!QHA$11","v":0},{"$f":"Time!QHB$11","v":0},{"$f":"Time!QHC$11","v":0},{"$f":"Time!QHD$11","v":0},{"$f":"Time!QHE$11","v":0},{"$f":"Time!QHF$11","v":0},{"$f":"Time!QHG$11","v":0},{"$f":"Time!QHH$11","v":0},{"$f":"Time!QHI$11","v":0},{"$f":"Time!QHJ$11","v":0},{"$f":"Time!QHK$11","v":0},{"$f":"Time!QHL$11","v":0},{"$f":"Time!QHM$11","v":0},{"$f":"Time!QHN$11","v":0},{"$f":"Time!QHO$11","v":0},{"$f":"Time!QHP$11","v":0},{"$f":"Time!QHQ$11","v":0},{"$f":"Time!QHR$11","v":0},{"$f":"Time!QHS$11","v":0},{"$f":"Time!QHT$11","v":0},{"$f":"Time!QHU$11","v":0},{"$f":"Time!QHV$11","v":0},{"$f":"Time!QHW$11","v":0},{"$f":"Time!QHX$11","v":0},{"$f":"Time!QHY$11","v":0},{"$f":"Time!QHZ$11","v":0},{"$f":"Time!QIA$11","v":0},{"$f":"Time!QIB$11","v":0},{"$f":"Time!QIC$11","v":0},{"$f":"Time!QID$11","v":0},{"$f":"Time!QIE$11","v":0},{"$f":"Time!QIF$11","v":0},{"$f":"Time!QIG$11","v":0},{"$f":"Time!QIH$11","v":0},{"$f":"Time!QII$11","v":0},{"$f":"Time!QIJ$11","v":0},{"$f":"Time!QIK$11","v":0},{"$f":"Time!QIL$11","v":0},{"$f":"Time!QIM$11","v":0},{"$f":"Time!QIN$11","v":0},{"$f":"Time!QIO$11","v":0},{"$f":"Time!QIP$11","v":0},{"$f":"Time!QIQ$11","v":0},{"$f":"Time!QIR$11","v":0},{"$f":"Time!QIS$11","v":0},{"$f":"Time!QIT$11","v":0},{"$f":"Time!QIU$11","v":0},{"$f":"Time!QIV$11","v":0},{"$f":"Time!QIW$11","v":0},{"$f":"Time!QIX$11","v":0},{"$f":"Time!QIY$11","v":0},{"$f":"Time!QIZ$11","v":0},{"$f":"Time!QJA$11","v":0},{"$f":"Time!QJB$11","v":0},{"$f":"Time!QJC$11","v":0},{"$f":"Time!QJD$11","v":0},{"$f":"Time!QJE$11","v":0},{"$f":"Time!QJF$11","v":0},{"$f":"Time!QJG$11","v":0},{"$f":"Time!QJH$11","v":0},{"$f":"Time!QJI$11","v":0},{"$f":"Time!QJJ$11","v":0},{"$f":"Time!QJK$11","v":0},{"$f":"Time!QJL$11","v":0},{"$f":"Time!QJM$11","v":0},{"$f":"Time!QJN$11","v":0},{"$f":"Time!QJO$11","v":0},{"$f":"Time!QJP$11","v":0},{"$f":"Time!QJQ$11","v":0},{"$f":"Time!QJR$11","v":0},{"$f":"Time!QJS$11","v":0},{"$f":"Time!QJT$11","v":0},{"$f":"Time!QJU$11","v":0},{"$f":"Time!QJV$11","v":0},{"$f":"Time!QJW$11","v":0},{"$f":"Time!QJX$11","v":0},{"$f":"Time!QJY$11","v":0},{"$f":"Time!QJZ$11","v":0},{"$f":"Time!QKA$11","v":0},{"$f":"Time!QKB$11","v":0},{"$f":"Time!QKC$11","v":0},{"$f":"Time!QKD$11","v":0},{"$f":"Time!QKE$11","v":0},{"$f":"Time!QKF$11","v":0},{"$f":"Time!QKG$11","v":0},{"$f":"Time!QKH$11","v":0},{"$f":"Time!QKI$11","v":0},{"$f":"Time!QKJ$11","v":0},{"$f":"Time!QKK$11","v":0},{"$f":"Time!QKL$11","v":0},{"$f":"Time!QKM$11","v":0},{"$f":"Time!QKN$11","v":0},{"$f":"Time!QKO$11","v":0},{"$f":"Time!QKP$11","v":0},{"$f":"Time!QKQ$11","v":0},{"$f":"Time!QKR$11","v":0},{"$f":"Time!QKS$11","v":0},{"$f":"Time!QKT$11","v":0},{"$f":"Time!QKU$11","v":0},{"$f":"Time!QKV$11","v":0},{"$f":"Time!QKW$11","v":0},{"$f":"Time!QKX$11","v":0},{"$f":"Time!QKY$11","v":0},{"$f":"Time!QKZ$11","v":0},{"$f":"Time!QLA$11","v":0},{"$f":"Time!QLB$11","v":0},{"$f":"Time!QLC$11","v":0},{"$f":"Time!QLD$11","v":0},{"$f":"Time!QLE$11","v":0},{"$f":"Time!QLF$11","v":0},{"$f":"Time!QLG$11","v":0},{"$f":"Time!QLH$11","v":0},{"$f":"Time!QLI$11","v":0},{"$f":"Time!QLJ$11","v":0},{"$f":"Time!QLK$11","v":0},{"$f":"Time!QLL$11","v":0},{"$f":"Time!QLM$11","v":0},{"$f":"Time!QLN$11","v":0},{"$f":"Time!QLO$11","v":0},{"$f":"Time!QLP$11","v":0},{"$f":"Time!QLQ$11","v":0},{"$f":"Time!QLR$11","v":0},{"$f":"Time!QLS$11","v":0},{"$f":"Time!QLT$11","v":0},{"$f":"Time!QLU$11","v":0},{"$f":"Time!QLV$11","v":0},{"$f":"Time!QLW$11","v":0},{"$f":"Time!QLX$11","v":0},{"$f":"Time!QLY$11","v":0},{"$f":"Time!QLZ$11","v":0},{"$f":"Time!QMA$11","v":0},{"$f":"Time!QMB$11","v":0},{"$f":"Time!QMC$11","v":0},{"$f":"Time!QMD$11","v":0},{"$f":"Time!QME$11","v":0},{"$f":"Time!QMF$11","v":0},{"$f":"Time!QMG$11","v":0},{"$f":"Time!QMH$11","v":0},{"$f":"Time!QMI$11","v":0},{"$f":"Time!QMJ$11","v":0},{"$f":"Time!QMK$11","v":0},{"$f":"Time!QML$11","v":0},{"$f":"Time!QMM$11","v":0},{"$f":"Time!QMN$11","v":0},{"$f":"Time!QMO$11","v":0},{"$f":"Time!QMP$11","v":0},{"$f":"Time!QMQ$11","v":0},{"$f":"Time!QMR$11","v":0},{"$f":"Time!QMS$11","v":0},{"$f":"Time!QMT$11","v":0},{"$f":"Time!QMU$11","v":0},{"$f":"Time!QMV$11","v":0},{"$f":"Time!QMW$11","v":0},{"$f":"Time!QMX$11","v":0},{"$f":"Time!QMY$11","v":0},{"$f":"Time!QMZ$11","v":0},{"$f":"Time!QNA$11","v":0},{"$f":"Time!QNB$11","v":0},{"$f":"Time!QNC$11","v":0},{"$f":"Time!QND$11","v":0},{"$f":"Time!QNE$11","v":0},{"$f":"Time!QNF$11","v":0},{"$f":"Time!QNG$11","v":0},{"$f":"Time!QNH$11","v":0},{"$f":"Time!QNI$11","v":0},{"$f":"Time!QNJ$11","v":0},{"$f":"Time!QNK$11","v":0},{"$f":"Time!QNL$11","v":0},{"$f":"Time!QNM$11","v":0},{"$f":"Time!QNN$11","v":0},{"$f":"Time!QNO$11","v":0},{"$f":"Time!QNP$11","v":0},{"$f":"Time!QNQ$11","v":0},{"$f":"Time!QNR$11","v":0},{"$f":"Time!QNS$11","v":0},{"$f":"Time!QNT$11","v":0},{"$f":"Time!QNU$11","v":0},{"$f":"Time!QNV$11","v":0},{"$f":"Time!QNW$11","v":0},{"$f":"Time!QNX$11","v":0},{"$f":"Time!QNY$11","v":0},{"$f":"Time!QNZ$11","v":0},{"$f":"Time!QOA$11","v":0},{"$f":"Time!QOB$11","v":0},{"$f":"Time!QOC$11","v":0},{"$f":"Time!QOD$11","v":0},{"$f":"Time!QOE$11","v":0},{"$f":"Time!QOF$11","v":0},{"$f":"Time!QOG$11","v":0},{"$f":"Time!QOH$11","v":0},{"$f":"Time!QOI$11","v":0},{"$f":"Time!QOJ$11","v":0},{"$f":"Time!QOK$11","v":0},{"$f":"Time!QOL$11","v":0},{"$f":"Time!QOM$11","v":0},{"$f":"Time!QON$11","v":0},{"$f":"Time!QOO$11","v":0},{"$f":"Time!QOP$11","v":0},{"$f":"Time!QOQ$11","v":0},{"$f":"Time!QOR$11","v":0},{"$f":"Time!QOS$11","v":0},{"$f":"Time!QOT$11","v":0},{"$f":"Time!QOU$11","v":0},{"$f":"Time!QOV$11","v":0},{"$f":"Time!QOW$11","v":0},{"$f":"Time!QOX$11","v":0},{"$f":"Time!QOY$11","v":0},{"$f":"Time!QOZ$11","v":0},{"$f":"Time!QPA$11","v":0},{"$f":"Time!QPB$11","v":0},{"$f":"Time!QPC$11","v":0},{"$f":"Time!QPD$11","v":0},{"$f":"Time!QPE$11","v":0},{"$f":"Time!QPF$11","v":0},{"$f":"Time!QPG$11","v":0},{"$f":"Time!QPH$11","v":0},{"$f":"Time!QPI$11","v":0},{"$f":"Time!QPJ$11","v":0},{"$f":"Time!QPK$11","v":0},{"$f":"Time!QPL$11","v":0},{"$f":"Time!QPM$11","v":0},{"$f":"Time!QPN$11","v":0},{"$f":"Time!QPO$11","v":0},{"$f":"Time!QPP$11","v":0},{"$f":"Time!QPQ$11","v":0},{"$f":"Time!QPR$11","v":0},{"$f":"Time!QPS$11","v":0},{"$f":"Time!QPT$11","v":0},{"$f":"Time!QPU$11","v":0},{"$f":"Time!QPV$11","v":0},{"$f":"Time!QPW$11","v":0},{"$f":"Time!QPX$11","v":0},{"$f":"Time!QPY$11","v":0},{"$f":"Time!QPZ$11","v":0},{"$f":"Time!QQA$11","v":0},{"$f":"Time!QQB$11","v":0},{"$f":"Time!QQC$11","v":0},{"$f":"Time!QQD$11","v":0},{"$f":"Time!QQE$11","v":0},{"$f":"Time!QQF$11","v":0},{"$f":"Time!QQG$11","v":0},{"$f":"Time!QQH$11","v":0},{"$f":"Time!QQI$11","v":0},{"$f":"Time!QQJ$11","v":0},{"$f":"Time!QQK$11","v":0},{"$f":"Time!QQL$11","v":0},{"$f":"Time!QQM$11","v":0},{"$f":"Time!QQN$11","v":0},{"$f":"Time!QQO$11","v":0},{"$f":"Time!QQP$11","v":0},{"$f":"Time!QQQ$11","v":0},{"$f":"Time!QQR$11","v":0},{"$f":"Time!QQS$11","v":0},{"$f":"Time!QQT$11","v":0},{"$f":"Time!QQU$11","v":0},{"$f":"Time!QQV$11","v":0},{"$f":"Time!QQW$11","v":0},{"$f":"Time!QQX$11","v":0},{"$f":"Time!QQY$11","v":0},{"$f":"Time!QQZ$11","v":0},{"$f":"Time!QRA$11","v":0},{"$f":"Time!QRB$11","v":0},{"$f":"Time!QRC$11","v":0},{"$f":"Time!QRD$11","v":0},{"$f":"Time!QRE$11","v":0},{"$f":"Time!QRF$11","v":0},{"$f":"Time!QRG$11","v":0},{"$f":"Time!QRH$11","v":0},{"$f":"Time!QRI$11","v":0},{"$f":"Time!QRJ$11","v":0},{"$f":"Time!QRK$11","v":0},{"$f":"Time!QRL$11","v":0},{"$f":"Time!QRM$11","v":0},{"$f":"Time!QRN$11","v":0},{"$f":"Time!QRO$11","v":0},{"$f":"Time!QRP$11","v":0},{"$f":"Time!QRQ$11","v":0},{"$f":"Time!QRR$11","v":0},{"$f":"Time!QRS$11","v":0},{"$f":"Time!QRT$11","v":0},{"$f":"Time!QRU$11","v":0},{"$f":"Time!QRV$11","v":0},{"$f":"Time!QRW$11","v":0},{"$f":"Time!QRX$11","v":0},{"$f":"Time!QRY$11","v":0},{"$f":"Time!QRZ$11","v":0},{"$f":"Time!QSA$11","v":0},{"$f":"Time!QSB$11","v":0},{"$f":"Time!QSC$11","v":0},{"$f":"Time!QSD$11","v":0},{"$f":"Time!QSE$11","v":0},{"$f":"Time!QSF$11","v":0},{"$f":"Time!QSG$11","v":0},{"$f":"Time!QSH$11","v":0},{"$f":"Time!QSI$11","v":0},{"$f":"Time!QSJ$11","v":0},{"$f":"Time!QSK$11","v":0},{"$f":"Time!QSL$11","v":0},{"$f":"Time!QSM$11","v":0},{"$f":"Time!QSN$11","v":0},{"$f":"Time!QSO$11","v":0},{"$f":"Time!QSP$11","v":0},{"$f":"Time!QSQ$11","v":0},{"$f":"Time!QSR$11","v":0},{"$f":"Time!QSS$11","v":0},{"$f":"Time!QST$11","v":0},{"$f":"Time!QSU$11","v":0},{"$f":"Time!QSV$11","v":0},{"$f":"Time!QSW$11","v":0},{"$f":"Time!QSX$11","v":0},{"$f":"Time!QSY$11","v":0},{"$f":"Time!QSZ$11","v":0},{"$f":"Time!QTA$11","v":0},{"$f":"Time!QTB$11","v":0},{"$f":"Time!QTC$11","v":0},{"$f":"Time!QTD$11","v":0},{"$f":"Time!QTE$11","v":0},{"$f":"Time!QTF$11","v":0},{"$f":"Time!QTG$11","v":0},{"$f":"Time!QTH$11","v":0},{"$f":"Time!QTI$11","v":0},{"$f":"Time!QTJ$11","v":0},{"$f":"Time!QTK$11","v":0},{"$f":"Time!QTL$11","v":0},{"$f":"Time!QTM$11","v":0},{"$f":"Time!QTN$11","v":0},{"$f":"Time!QTO$11","v":0},{"$f":"Time!QTP$11","v":0},{"$f":"Time!QTQ$11","v":0},{"$f":"Time!QTR$11","v":0},{"$f":"Time!QTS$11","v":0},{"$f":"Time!QTT$11","v":0},{"$f":"Time!QTU$11","v":0},{"$f":"Time!QTV$11","v":0},{"$f":"Time!QTW$11","v":0},{"$f":"Time!QTX$11","v":0},{"$f":"Time!QTY$11","v":0},{"$f":"Time!QTZ$11","v":0},{"$f":"Time!QUA$11","v":0},{"$f":"Time!QUB$11","v":0},{"$f":"Time!QUC$11","v":0},{"$f":"Time!QUD$11","v":0},{"$f":"Time!QUE$11","v":0},{"$f":"Time!QUF$11","v":0},{"$f":"Time!QUG$11","v":0},{"$f":"Time!QUH$11","v":0},{"$f":"Time!QUI$11","v":0},{"$f":"Time!QUJ$11","v":0},{"$f":"Time!QUK$11","v":0},{"$f":"Time!QUL$11","v":0},{"$f":"Time!QUM$11","v":0},{"$f":"Time!QUN$11","v":0},{"$f":"Time!QUO$11","v":0},{"$f":"Time!QUP$11","v":0},{"$f":"Time!QUQ$11","v":0},{"$f":"Time!QUR$11","v":0},{"$f":"Time!QUS$11","v":0},{"$f":"Time!QUT$11","v":0},{"$f":"Time!QUU$11","v":0},{"$f":"Time!QUV$11","v":0},{"$f":"Time!QUW$11","v":0},{"$f":"Time!QUX$11","v":0},{"$f":"Time!QUY$11","v":0},{"$f":"Time!QUZ$11","v":0},{"$f":"Time!QVA$11","v":0},{"$f":"Time!QVB$11","v":0},{"$f":"Time!QVC$11","v":0},{"$f":"Time!QVD$11","v":0},{"$f":"Time!QVE$11","v":0},{"$f":"Time!QVF$11","v":0},{"$f":"Time!QVG$11","v":0},{"$f":"Time!QVH$11","v":0},{"$f":"Time!QVI$11","v":0},{"$f":"Time!QVJ$11","v":0},{"$f":"Time!QVK$11","v":0},{"$f":"Time!QVL$11","v":0},{"$f":"Time!QVM$11","v":0},{"$f":"Time!QVN$11","v":0},{"$f":"Time!QVO$11","v":0},{"$f":"Time!QVP$11","v":0},{"$f":"Time!QVQ$11","v":0},{"$f":"Time!QVR$11","v":0},{"$f":"Time!QVS$11","v":0},{"$f":"Time!QVT$11","v":0},{"$f":"Time!QVU$11","v":0},{"$f":"Time!QVV$11","v":0},{"$f":"Time!QVW$11","v":0},{"$f":"Time!QVX$11","v":0},{"$f":"Time!QVY$11","v":0},{"$f":"Time!QVZ$11","v":0},{"$f":"Time!QWA$11","v":0},{"$f":"Time!QWB$11","v":0},{"$f":"Time!QWC$11","v":0},{"$f":"Time!QWD$11","v":0},{"$f":"Time!QWE$11","v":0},{"$f":"Time!QWF$11","v":0},{"$f":"Time!QWG$11","v":0},{"$f":"Time!QWH$11","v":0},{"$f":"Time!QWI$11","v":0},{"$f":"Time!QWJ$11","v":0},{"$f":"Time!QWK$11","v":0},{"$f":"Time!QWL$11","v":0},{"$f":"Time!QWM$11","v":0},{"$f":"Time!QWN$11","v":0},{"$f":"Time!QWO$11","v":0},{"$f":"Time!QWP$11","v":0},{"$f":"Time!QWQ$11","v":0},{"$f":"Time!QWR$11","v":0},{"$f":"Time!QWS$11","v":0},{"$f":"Time!QWT$11","v":0},{"$f":"Time!QWU$11","v":0},{"$f":"Time!QWV$11","v":0},{"$f":"Time!QWW$11","v":0},{"$f":"Time!QWX$11","v":0},{"$f":"Time!QWY$11","v":0},{"$f":"Time!QWZ$11","v":0},{"$f":"Time!QXA$11","v":0},{"$f":"Time!QXB$11","v":0},{"$f":"Time!QXC$11","v":0},{"$f":"Time!QXD$11","v":0},{"$f":"Time!QXE$11","v":0},{"$f":"Time!QXF$11","v":0},{"$f":"Time!QXG$11","v":0},{"$f":"Time!QXH$11","v":0},{"$f":"Time!QXI$11","v":0},{"$f":"Time!QXJ$11","v":0},{"$f":"Time!QXK$11","v":0},{"$f":"Time!QXL$11","v":0},{"$f":"Time!QXM$11","v":0},{"$f":"Time!QXN$11","v":0},{"$f":"Time!QXO$11","v":0},{"$f":"Time!QXP$11","v":0},{"$f":"Time!QXQ$11","v":0},{"$f":"Time!QXR$11","v":0},{"$f":"Time!QXS$11","v":0},{"$f":"Time!QXT$11","v":0},{"$f":"Time!QXU$11","v":0},{"$f":"Time!QXV$11","v":0},{"$f":"Time!QXW$11","v":0},{"$f":"Time!QXX$11","v":0},{"$f":"Time!QXY$11","v":0},{"$f":"Time!QXZ$11","v":0},{"$f":"Time!QYA$11","v":0},{"$f":"Time!QYB$11","v":0},{"$f":"Time!QYC$11","v":0},{"$f":"Time!QYD$11","v":0},{"$f":"Time!QYE$11","v":0},{"$f":"Time!QYF$11","v":0},{"$f":"Time!QYG$11","v":0},{"$f":"Time!QYH$11","v":0},{"$f":"Time!QYI$11","v":0},{"$f":"Time!QYJ$11","v":0},{"$f":"Time!QYK$11","v":0},{"$f":"Time!QYL$11","v":0},{"$f":"Time!QYM$11","v":0},{"$f":"Time!QYN$11","v":0},{"$f":"Time!QYO$11","v":0},{"$f":"Time!QYP$11","v":0},{"$f":"Time!QYQ$11","v":0},{"$f":"Time!QYR$11","v":0},{"$f":"Time!QYS$11","v":0},{"$f":"Time!QYT$11","v":0},{"$f":"Time!QYU$11","v":0},{"$f":"Time!QYV$11","v":0},{"$f":"Time!QYW$11","v":0},{"$f":"Time!QYX$11","v":0},{"$f":"Time!QYY$11","v":0},{"$f":"Time!QYZ$11","v":0},{"$f":"Time!QZA$11","v":0},{"$f":"Time!QZB$11","v":0},{"$f":"Time!QZC$11","v":0},{"$f":"Time!QZD$11","v":0},{"$f":"Time!QZE$11","v":0},{"$f":"Time!QZF$11","v":0},{"$f":"Time!QZG$11","v":0},{"$f":"Time!QZH$11","v":0},{"$f":"Time!QZI$11","v":0},{"$f":"Time!QZJ$11","v":0},{"$f":"Time!QZK$11","v":0},{"$f":"Time!QZL$11","v":0},{"$f":"Time!QZM$11","v":0},{"$f":"Time!QZN$11","v":0},{"$f":"Time!QZO$11","v":0},{"$f":"Time!QZP$11","v":0},{"$f":"Time!QZQ$11","v":0},{"$f":"Time!QZR$11","v":0},{"$f":"Time!QZS$11","v":0},{"$f":"Time!QZT$11","v":0},{"$f":"Time!QZU$11","v":0},{"$f":"Time!QZV$11","v":0},{"$f":"Time!QZW$11","v":0},{"$f":"Time!QZX$11","v":0},{"$f":"Time!QZY$11","v":0},{"$f":"Time!QZZ$11","v":0},{"$f":"Time!RAA$11","v":0},{"$f":"Time!RAB$11","v":0},{"$f":"Time!RAC$11","v":0},{"$f":"Time!RAD$11","v":0},{"$f":"Time!RAE$11","v":0},{"$f":"Time!RAF$11","v":0},{"$f":"Time!RAG$11","v":0},{"$f":"Time!RAH$11","v":0},{"$f":"Time!RAI$11","v":0},{"$f":"Time!RAJ$11","v":0},{"$f":"Time!RAK$11","v":0},{"$f":"Time!RAL$11","v":0},{"$f":"Time!RAM$11","v":0},{"$f":"Time!RAN$11","v":0},{"$f":"Time!RAO$11","v":0},{"$f":"Time!RAP$11","v":0},{"$f":"Time!RAQ$11","v":0},{"$f":"Time!RAR$11","v":0},{"$f":"Time!RAS$11","v":0},{"$f":"Time!RAT$11","v":0},{"$f":"Time!RAU$11","v":0},{"$f":"Time!RAV$11","v":0},{"$f":"Time!RAW$11","v":0},{"$f":"Time!RAX$11","v":0},{"$f":"Time!RAY$11","v":0},{"$f":"Time!RAZ$11","v":0},{"$f":"Time!RBA$11","v":0},{"$f":"Time!RBB$11","v":0},{"$f":"Time!RBC$11","v":0},{"$f":"Time!RBD$11","v":0},{"$f":"Time!RBE$11","v":0},{"$f":"Time!RBF$11","v":0},{"$f":"Time!RBG$11","v":0},{"$f":"Time!RBH$11","v":0},{"$f":"Time!RBI$11","v":0},{"$f":"Time!RBJ$11","v":0},{"$f":"Time!RBK$11","v":0},{"$f":"Time!RBL$11","v":0},{"$f":"Time!RBM$11","v":0},{"$f":"Time!RBN$11","v":0},{"$f":"Time!RBO$11","v":0},{"$f":"Time!RBP$11","v":0},{"$f":"Time!RBQ$11","v":0},{"$f":"Time!RBR$11","v":0},{"$f":"Time!RBS$11","v":0},{"$f":"Time!RBT$11","v":0},{"$f":"Time!RBU$11","v":0},{"$f":"Time!RBV$11","v":0},{"$f":"Time!RBW$11","v":0},{"$f":"Time!RBX$11","v":0},{"$f":"Time!RBY$11","v":0},{"$f":"Time!RBZ$11","v":0},{"$f":"Time!RCA$11","v":0},{"$f":"Time!RCB$11","v":0},{"$f":"Time!RCC$11","v":0},{"$f":"Time!RCD$11","v":0},{"$f":"Time!RCE$11","v":0},{"$f":"Time!RCF$11","v":0},{"$f":"Time!RCG$11","v":0},{"$f":"Time!RCH$11","v":0},{"$f":"Time!RCI$11","v":0},{"$f":"Time!RCJ$11","v":0},{"$f":"Time!RCK$11","v":0},{"$f":"Time!RCL$11","v":0},{"$f":"Time!RCM$11","v":0},{"$f":"Time!RCN$11","v":0},{"$f":"Time!RCO$11","v":0},{"$f":"Time!RCP$11","v":0},{"$f":"Time!RCQ$11","v":0},{"$f":"Time!RCR$11","v":0},{"$f":"Time!RCS$11","v":0},{"$f":"Time!RCT$11","v":0},{"$f":"Time!RCU$11","v":0},{"$f":"Time!RCV$11","v":0},{"$f":"Time!RCW$11","v":0},{"$f":"Time!RCX$11","v":0},{"$f":"Time!RCY$11","v":0},{"$f":"Time!RCZ$11","v":0},{"$f":"Time!RDA$11","v":0},{"$f":"Time!RDB$11","v":0},{"$f":"Time!RDC$11","v":0},{"$f":"Time!RDD$11","v":0},{"$f":"Time!RDE$11","v":0},{"$f":"Time!RDF$11","v":0},{"$f":"Time!RDG$11","v":0},{"$f":"Time!RDH$11","v":0},{"$f":"Time!RDI$11","v":0},{"$f":"Time!RDJ$11","v":0},{"$f":"Time!RDK$11","v":0},{"$f":"Time!RDL$11","v":0},{"$f":"Time!RDM$11","v":0},{"$f":"Time!RDN$11","v":0},{"$f":"Time!RDO$11","v":0},{"$f":"Time!RDP$11","v":0},{"$f":"Time!RDQ$11","v":0},{"$f":"Time!RDR$11","v":0},{"$f":"Time!RDS$11","v":0},{"$f":"Time!RDT$11","v":0},{"$f":"Time!RDU$11","v":0},{"$f":"Time!RDV$11","v":0},{"$f":"Time!RDW$11","v":0},{"$f":"Time!RDX$11","v":0},{"$f":"Time!RDY$11","v":0},{"$f":"Time!RDZ$11","v":0},{"$f":"Time!REA$11","v":0},{"$f":"Time!REB$11","v":0},{"$f":"Time!REC$11","v":0},{"$f":"Time!RED$11","v":0},{"$f":"Time!REE$11","v":0},{"$f":"Time!REF$11","v":0},{"$f":"Time!REG$11","v":0},{"$f":"Time!REH$11","v":0},{"$f":"Time!REI$11","v":0},{"$f":"Time!REJ$11","v":0},{"$f":"Time!REK$11","v":0},{"$f":"Time!REL$11","v":0},{"$f":"Time!REM$11","v":0},{"$f":"Time!REN$11","v":0},{"$f":"Time!REO$11","v":0},{"$f":"Time!REP$11","v":0},{"$f":"Time!REQ$11","v":0},{"$f":"Time!RER$11","v":0},{"$f":"Time!RES$11","v":0},{"$f":"Time!RET$11","v":0},{"$f":"Time!REU$11","v":0},{"$f":"Time!REV$11","v":0},{"$f":"Time!REW$11","v":0},{"$f":"Time!REX$11","v":0},{"$f":"Time!REY$11","v":0},{"$f":"Time!REZ$11","v":0},{"$f":"Time!RFA$11","v":0},{"$f":"Time!RFB$11","v":0},{"$f":"Time!RFC$11","v":0},{"$f":"Time!RFD$11","v":0},{"$f":"Time!RFE$11","v":0},{"$f":"Time!RFF$11","v":0},{"$f":"Time!RFG$11","v":0},{"$f":"Time!RFH$11","v":0},{"$f":"Time!RFI$11","v":0},{"$f":"Time!RFJ$11","v":0},{"$f":"Time!RFK$11","v":0},{"$f":"Time!RFL$11","v":0},{"$f":"Time!RFM$11","v":0},{"$f":"Time!RFN$11","v":0},{"$f":"Time!RFO$11","v":0},{"$f":"Time!RFP$11","v":0},{"$f":"Time!RFQ$11","v":0},{"$f":"Time!RFR$11","v":0},{"$f":"Time!RFS$11","v":0},{"$f":"Time!RFT$11","v":0},{"$f":"Time!RFU$11","v":0},{"$f":"Time!RFV$11","v":0},{"$f":"Time!RFW$11","v":0},{"$f":"Time!RFX$11","v":0},{"$f":"Time!RFY$11","v":0},{"$f":"Time!RFZ$11","v":0},{"$f":"Time!RGA$11","v":0},{"$f":"Time!RGB$11","v":0},{"$f":"Time!RGC$11","v":0},{"$f":"Time!RGD$11","v":0},{"$f":"Time!RGE$11","v":0},{"$f":"Time!RGF$11","v":0},{"$f":"Time!RGG$11","v":0},{"$f":"Time!RGH$11","v":0},{"$f":"Time!RGI$11","v":0},{"$f":"Time!RGJ$11","v":0},{"$f":"Time!RGK$11","v":0},{"$f":"Time!RGL$11","v":0},{"$f":"Time!RGM$11","v":0},{"$f":"Time!RGN$11","v":0},{"$f":"Time!RGO$11","v":0},{"$f":"Time!RGP$11","v":0},{"$f":"Time!RGQ$11","v":0},{"$f":"Time!RGR$11","v":0},{"$f":"Time!RGS$11","v":0},{"$f":"Time!RGT$11","v":0},{"$f":"Time!RGU$11","v":0},{"$f":"Time!RGV$11","v":0},{"$f":"Time!RGW$11","v":0},{"$f":"Time!RGX$11","v":0},{"$f":"Time!RGY$11","v":0},{"$f":"Time!RGZ$11","v":0},{"$f":"Time!RHA$11","v":0},{"$f":"Time!RHB$11","v":0},{"$f":"Time!RHC$11","v":0},{"$f":"Time!RHD$11","v":0},{"$f":"Time!RHE$11","v":0},{"$f":"Time!RHF$11","v":0},{"$f":"Time!RHG$11","v":0},{"$f":"Time!RHH$11","v":0},{"$f":"Time!RHI$11","v":0},{"$f":"Time!RHJ$11","v":0},{"$f":"Time!RHK$11","v":0},{"$f":"Time!RHL$11","v":0},{"$f":"Time!RHM$11","v":0},{"$f":"Time!RHN$11","v":0},{"$f":"Time!RHO$11","v":0},{"$f":"Time!RHP$11","v":0},{"$f":"Time!RHQ$11","v":0},{"$f":"Time!RHR$11","v":0},{"$f":"Time!RHS$11","v":0},{"$f":"Time!RHT$11","v":0},{"$f":"Time!RHU$11","v":0},{"$f":"Time!RHV$11","v":0},{"$f":"Time!RHW$11","v":0},{"$f":"Time!RHX$11","v":0},{"$f":"Time!RHY$11","v":0},{"$f":"Time!RHZ$11","v":0},{"$f":"Time!RIA$11","v":0},{"$f":"Time!RIB$11","v":0},{"$f":"Time!RIC$11","v":0},{"$f":"Time!RID$11","v":0},{"$f":"Time!RIE$11","v":0},{"$f":"Time!RIF$11","v":0},{"$f":"Time!RIG$11","v":0},{"$f":"Time!RIH$11","v":0},{"$f":"Time!RII$11","v":0},{"$f":"Time!RIJ$11","v":0},{"$f":"Time!RIK$11","v":0},{"$f":"Time!RIL$11","v":0},{"$f":"Time!RIM$11","v":0},{"$f":"Time!RIN$11","v":0},{"$f":"Time!RIO$11","v":0},{"$f":"Time!RIP$11","v":0},{"$f":"Time!RIQ$11","v":0},{"$f":"Time!RIR$11","v":0},{"$f":"Time!RIS$11","v":0},{"$f":"Time!RIT$11","v":0},{"$f":"Time!RIU$11","v":0},{"$f":"Time!RIV$11","v":0},{"$f":"Time!RIW$11","v":0},{"$f":"Time!RIX$11","v":0},{"$f":"Time!RIY$11","v":0},{"$f":"Time!RIZ$11","v":0},{"$f":"Time!RJA$11","v":0},{"$f":"Time!RJB$11","v":0},{"$f":"Time!RJC$11","v":0},{"$f":"Time!RJD$11","v":0},{"$f":"Time!RJE$11","v":0},{"$f":"Time!RJF$11","v":0},{"$f":"Time!RJG$11","v":0},{"$f":"Time!RJH$11","v":0},{"$f":"Time!RJI$11","v":0},{"$f":"Time!RJJ$11","v":0},{"$f":"Time!RJK$11","v":0},{"$f":"Time!RJL$11","v":0},{"$f":"Time!RJM$11","v":0},{"$f":"Time!RJN$11","v":0},{"$f":"Time!RJO$11","v":0},{"$f":"Time!RJP$11","v":0},{"$f":"Time!RJQ$11","v":0},{"$f":"Time!RJR$11","v":0},{"$f":"Time!RJS$11","v":0},{"$f":"Time!RJT$11","v":0},{"$f":"Time!RJU$11","v":0},{"$f":"Time!RJV$11","v":0},{"$f":"Time!RJW$11","v":0},{"$f":"Time!RJX$11","v":0},{"$f":"Time!RJY$11","v":0},{"$f":"Time!RJZ$11","v":0},{"$f":"Time!RKA$11","v":0},{"$f":"Time!RKB$11","v":0},{"$f":"Time!RKC$11","v":0},{"$f":"Time!RKD$11","v":0},{"$f":"Time!RKE$11","v":0},{"$f":"Time!RKF$11","v":0},{"$f":"Time!RKG$11","v":0},{"$f":"Time!RKH$11","v":0},{"$f":"Time!RKI$11","v":0},{"$f":"Time!RKJ$11","v":0},{"$f":"Time!RKK$11","v":0},{"$f":"Time!RKL$11","v":0},{"$f":"Time!RKM$11","v":0},{"$f":"Time!RKN$11","v":0},{"$f":"Time!RKO$11","v":0},{"$f":"Time!RKP$11","v":0},{"$f":"Time!RKQ$11","v":0},{"$f":"Time!RKR$11","v":0},{"$f":"Time!RKS$11","v":0},{"$f":"Time!RKT$11","v":0},{"$f":"Time!RKU$11","v":0},{"$f":"Time!RKV$11","v":0},{"$f":"Time!RKW$11","v":0},{"$f":"Time!RKX$11","v":0},{"$f":"Time!RKY$11","v":0},{"$f":"Time!RKZ$11","v":0},{"$f":"Time!RLA$11","v":0},{"$f":"Time!RLB$11","v":0},{"$f":"Time!RLC$11","v":0},{"$f":"Time!RLD$11","v":0},{"$f":"Time!RLE$11","v":0},{"$f":"Time!RLF$11","v":0},{"$f":"Time!RLG$11","v":0},{"$f":"Time!RLH$11","v":0},{"$f":"Time!RLI$11","v":0},{"$f":"Time!RLJ$11","v":0},{"$f":"Time!RLK$11","v":0},{"$f":"Time!RLL$11","v":0},{"$f":"Time!RLM$11","v":0},{"$f":"Time!RLN$11","v":0},{"$f":"Time!RLO$11","v":0},{"$f":"Time!RLP$11","v":0},{"$f":"Time!RLQ$11","v":0},{"$f":"Time!RLR$11","v":0},{"$f":"Time!RLS$11","v":0},{"$f":"Time!RLT$11","v":0},{"$f":"Time!RLU$11","v":0},{"$f":"Time!RLV$11","v":0},{"$f":"Time!RLW$11","v":0},{"$f":"Time!RLX$11","v":0},{"$f":"Time!RLY$11","v":0},{"$f":"Time!RLZ$11","v":0},{"$f":"Time!RMA$11","v":0},{"$f":"Time!RMB$11","v":0},{"$f":"Time!RMC$11","v":0},{"$f":"Time!RMD$11","v":0},{"$f":"Time!RME$11","v":0},{"$f":"Time!RMF$11","v":0},{"$f":"Time!RMG$11","v":0},{"$f":"Time!RMH$11","v":0},{"$f":"Time!RMI$11","v":0},{"$f":"Time!RMJ$11","v":0},{"$f":"Time!RMK$11","v":0},{"$f":"Time!RML$11","v":0},{"$f":"Time!RMM$11","v":0},{"$f":"Time!RMN$11","v":0},{"$f":"Time!RMO$11","v":0},{"$f":"Time!RMP$11","v":0},{"$f":"Time!RMQ$11","v":0},{"$f":"Time!RMR$11","v":0},{"$f":"Time!RMS$11","v":0},{"$f":"Time!RMT$11","v":0},{"$f":"Time!RMU$11","v":0},{"$f":"Time!RMV$11","v":0},{"$f":"Time!RMW$11","v":0},{"$f":"Time!RMX$11","v":0},{"$f":"Time!RMY$11","v":0},{"$f":"Time!RMZ$11","v":0},{"$f":"Time!RNA$11","v":0},{"$f":"Time!RNB$11","v":0},{"$f":"Time!RNC$11","v":0},{"$f":"Time!RND$11","v":0},{"$f":"Time!RNE$11","v":0},{"$f":"Time!RNF$11","v":0},{"$f":"Time!RNG$11","v":0},{"$f":"Time!RNH$11","v":0},{"$f":"Time!RNI$11","v":0},{"$f":"Time!RNJ$11","v":0},{"$f":"Time!RNK$11","v":0},{"$f":"Time!RNL$11","v":0},{"$f":"Time!RNM$11","v":0},{"$f":"Time!RNN$11","v":0},{"$f":"Time!RNO$11","v":0},{"$f":"Time!RNP$11","v":0},{"$f":"Time!RNQ$11","v":0},{"$f":"Time!RNR$11","v":0},{"$f":"Time!RNS$11","v":0},{"$f":"Time!RNT$11","v":0},{"$f":"Time!RNU$11","v":0},{"$f":"Time!RNV$11","v":0},{"$f":"Time!RNW$11","v":0},{"$f":"Time!RNX$11","v":0},{"$f":"Time!RNY$11","v":0},{"$f":"Time!RNZ$11","v":0},{"$f":"Time!ROA$11","v":0},{"$f":"Time!ROB$11","v":0},{"$f":"Time!ROC$11","v":0},{"$f":"Time!ROD$11","v":0},{"$f":"Time!ROE$11","v":0},{"$f":"Time!ROF$11","v":0},{"$f":"Time!ROG$11","v":0},{"$f":"Time!ROH$11","v":0},{"$f":"Time!ROI$11","v":0},{"$f":"Time!ROJ$11","v":0},{"$f":"Time!ROK$11","v":0},{"$f":"Time!ROL$11","v":0},{"$f":"Time!ROM$11","v":0},{"$f":"Time!RON$11","v":0},{"$f":"Time!ROO$11","v":0},{"$f":"Time!ROP$11","v":0},{"$f":"Time!ROQ$11","v":0},{"$f":"Time!ROR$11","v":0},{"$f":"Time!ROS$11","v":0},{"$f":"Time!ROT$11","v":0},{"$f":"Time!ROU$11","v":0},{"$f":"Time!ROV$11","v":0},{"$f":"Time!ROW$11","v":0},{"$f":"Time!ROX$11","v":0},{"$f":"Time!ROY$11","v":0},{"$f":"Time!ROZ$11","v":0},{"$f":"Time!RPA$11","v":0},{"$f":"Time!RPB$11","v":0},{"$f":"Time!RPC$11","v":0},{"$f":"Time!RPD$11","v":0},{"$f":"Time!RPE$11","v":0},{"$f":"Time!RPF$11","v":0},{"$f":"Time!RPG$11","v":0},{"$f":"Time!RPH$11","v":0},{"$f":"Time!RPI$11","v":0},{"$f":"Time!RPJ$11","v":0},{"$f":"Time!RPK$11","v":0},{"$f":"Time!RPL$11","v":0},{"$f":"Time!RPM$11","v":0},{"$f":"Time!RPN$11","v":0},{"$f":"Time!RPO$11","v":0},{"$f":"Time!RPP$11","v":0},{"$f":"Time!RPQ$11","v":0},{"$f":"Time!RPR$11","v":0},{"$f":"Time!RPS$11","v":0},{"$f":"Time!RPT$11","v":0},{"$f":"Time!RPU$11","v":0},{"$f":"Time!RPV$11","v":0},{"$f":"Time!RPW$11","v":0},{"$f":"Time!RPX$11","v":0},{"$f":"Time!RPY$11","v":0},{"$f":"Time!RPZ$11","v":0},{"$f":"Time!RQA$11","v":0},{"$f":"Time!RQB$11","v":0},{"$f":"Time!RQC$11","v":0},{"$f":"Time!RQD$11","v":0},{"$f":"Time!RQE$11","v":0},{"$f":"Time!RQF$11","v":0},{"$f":"Time!RQG$11","v":0},{"$f":"Time!RQH$11","v":0},{"$f":"Time!RQI$11","v":0},{"$f":"Time!RQJ$11","v":0},{"$f":"Time!RQK$11","v":0},{"$f":"Time!RQL$11","v":0},{"$f":"Time!RQM$11","v":0},{"$f":"Time!RQN$11","v":0},{"$f":"Time!RQO$11","v":0},{"$f":"Time!RQP$11","v":0},{"$f":"Time!RQQ$11","v":0},{"$f":"Time!RQR$11","v":0},{"$f":"Time!RQS$11","v":0},{"$f":"Time!RQT$11","v":0},{"$f":"Time!RQU$11","v":0},{"$f":"Time!RQV$11","v":0},{"$f":"Time!RQW$11","v":0},{"$f":"Time!RQX$11","v":0},{"$f":"Time!RQY$11","v":0},{"$f":"Time!RQZ$11","v":0},{"$f":"Time!RRA$11","v":0},{"$f":"Time!RRB$11","v":0},{"$f":"Time!RRC$11","v":0},{"$f":"Time!RRD$11","v":0},{"$f":"Time!RRE$11","v":0},{"$f":"Time!RRF$11","v":0},{"$f":"Time!RRG$11","v":0},{"$f":"Time!RRH$11","v":0},{"$f":"Time!RRI$11","v":0},{"$f":"Time!RRJ$11","v":0},{"$f":"Time!RRK$11","v":0},{"$f":"Time!RRL$11","v":0},{"$f":"Time!RRM$11","v":0},{"$f":"Time!RRN$11","v":0},{"$f":"Time!RRO$11","v":0},{"$f":"Time!RRP$11","v":0},{"$f":"Time!RRQ$11","v":0},{"$f":"Time!RRR$11","v":0},{"$f":"Time!RRS$11","v":0},{"$f":"Time!RRT$11","v":0},{"$f":"Time!RRU$11","v":0},{"$f":"Time!RRV$11","v":0},{"$f":"Time!RRW$11","v":0},{"$f":"Time!RRX$11","v":0},{"$f":"Time!RRY$11","v":0},{"$f":"Time!RRZ$11","v":0},{"$f":"Time!RSA$11","v":0},{"$f":"Time!RSB$11","v":0},{"$f":"Time!RSC$11","v":0},{"$f":"Time!RSD$11","v":0},{"$f":"Time!RSE$11","v":0},{"$f":"Time!RSF$11","v":0},{"$f":"Time!RSG$11","v":0},{"$f":"Time!RSH$11","v":0},{"$f":"Time!RSI$11","v":0},{"$f":"Time!RSJ$11","v":0},{"$f":"Time!RSK$11","v":0},{"$f":"Time!RSL$11","v":0},{"$f":"Time!RSM$11","v":0},{"$f":"Time!RSN$11","v":0},{"$f":"Time!RSO$11","v":0},{"$f":"Time!RSP$11","v":0},{"$f":"Time!RSQ$11","v":0},{"$f":"Time!RSR$11","v":0},{"$f":"Time!RSS$11","v":0},{"$f":"Time!RST$11","v":0},{"$f":"Time!RSU$11","v":0},{"$f":"Time!RSV$11","v":0},{"$f":"Time!RSW$11","v":0},{"$f":"Time!RSX$11","v":0},{"$f":"Time!RSY$11","v":0},{"$f":"Time!RSZ$11","v":0},{"$f":"Time!RTA$11","v":0},{"$f":"Time!RTB$11","v":0},{"$f":"Time!RTC$11","v":0},{"$f":"Time!RTD$11","v":0},{"$f":"Time!RTE$11","v":0},{"$f":"Time!RTF$11","v":0},{"$f":"Time!RTG$11","v":0},{"$f":"Time!RTH$11","v":0},{"$f":"Time!RTI$11","v":0},{"$f":"Time!RTJ$11","v":0},{"$f":"Time!RTK$11","v":0},{"$f":"Time!RTL$11","v":0},{"$f":"Time!RTM$11","v":0},{"$f":"Time!RTN$11","v":0},{"$f":"Time!RTO$11","v":0},{"$f":"Time!RTP$11","v":0},{"$f":"Time!RTQ$11","v":0},{"$f":"Time!RTR$11","v":0},{"$f":"Time!RTS$11","v":0},{"$f":"Time!RTT$11","v":0},{"$f":"Time!RTU$11","v":0},{"$f":"Time!RTV$11","v":0},{"$f":"Time!RTW$11","v":0},{"$f":"Time!RTX$11","v":0},{"$f":"Time!RTY$11","v":0},{"$f":"Time!RTZ$11","v":0},{"$f":"Time!RUA$11","v":0},{"$f":"Time!RUB$11","v":0},{"$f":"Time!RUC$11","v":0},{"$f":"Time!RUD$11","v":0},{"$f":"Time!RUE$11","v":0},{"$f":"Time!RUF$11","v":0},{"$f":"Time!RUG$11","v":0},{"$f":"Time!RUH$11","v":0},{"$f":"Time!RUI$11","v":0},{"$f":"Time!RUJ$11","v":0},{"$f":"Time!RUK$11","v":0},{"$f":"Time!RUL$11","v":0},{"$f":"Time!RUM$11","v":0},{"$f":"Time!RUN$11","v":0},{"$f":"Time!RUO$11","v":0},{"$f":"Time!RUP$11","v":0},{"$f":"Time!RUQ$11","v":0},{"$f":"Time!RUR$11","v":0},{"$f":"Time!RUS$11","v":0},{"$f":"Time!RUT$11","v":0},{"$f":"Time!RUU$11","v":0},{"$f":"Time!RUV$11","v":0},{"$f":"Time!RUW$11","v":0},{"$f":"Time!RUX$11","v":0},{"$f":"Time!RUY$11","v":0},{"$f":"Time!RUZ$11","v":0},{"$f":"Time!RVA$11","v":0},{"$f":"Time!RVB$11","v":0},{"$f":"Time!RVC$11","v":0},{"$f":"Time!RVD$11","v":0},{"$f":"Time!RVE$11","v":0},{"$f":"Time!RVF$11","v":0},{"$f":"Time!RVG$11","v":0},{"$f":"Time!RVH$11","v":0},{"$f":"Time!RVI$11","v":0},{"$f":"Time!RVJ$11","v":0},{"$f":"Time!RVK$11","v":0},{"$f":"Time!RVL$11","v":0},{"$f":"Time!RVM$11","v":0},{"$f":"Time!RVN$11","v":0},{"$f":"Time!RVO$11","v":0},{"$f":"Time!RVP$11","v":0},{"$f":"Time!RVQ$11","v":0},{"$f":"Time!RVR$11","v":0},{"$f":"Time!RVS$11","v":0},{"$f":"Time!RVT$11","v":0},{"$f":"Time!RVU$11","v":0},{"$f":"Time!RVV$11","v":0},{"$f":"Time!RVW$11","v":0},{"$f":"Time!RVX$11","v":0},{"$f":"Time!RVY$11","v":0},{"$f":"Time!RVZ$11","v":0},{"$f":"Time!RWA$11","v":0},{"$f":"Time!RWB$11","v":0},{"$f":"Time!RWC$11","v":0},{"$f":"Time!RWD$11","v":0},{"$f":"Time!RWE$11","v":0},{"$f":"Time!RWF$11","v":0},{"$f":"Time!RWG$11","v":0},{"$f":"Time!RWH$11","v":0},{"$f":"Time!RWI$11","v":0},{"$f":"Time!RWJ$11","v":0},{"$f":"Time!RWK$11","v":0},{"$f":"Time!RWL$11","v":0},{"$f":"Time!RWM$11","v":0},{"$f":"Time!RWN$11","v":0},{"$f":"Time!RWO$11","v":0},{"$f":"Time!RWP$11","v":0},{"$f":"Time!RWQ$11","v":0},{"$f":"Time!RWR$11","v":0},{"$f":"Time!RWS$11","v":0},{"$f":"Time!RWT$11","v":0},{"$f":"Time!RWU$11","v":0},{"$f":"Time!RWV$11","v":0},{"$f":"Time!RWW$11","v":0},{"$f":"Time!RWX$11","v":0},{"$f":"Time!RWY$11","v":0},{"$f":"Time!RWZ$11","v":0},{"$f":"Time!RXA$11","v":0},{"$f":"Time!RXB$11","v":0},{"$f":"Time!RXC$11","v":0},{"$f":"Time!RXD$11","v":0},{"$f":"Time!RXE$11","v":0},{"$f":"Time!RXF$11","v":0},{"$f":"Time!RXG$11","v":0},{"$f":"Time!RXH$11","v":0},{"$f":"Time!RXI$11","v":0},{"$f":"Time!RXJ$11","v":0},{"$f":"Time!RXK$11","v":0},{"$f":"Time!RXL$11","v":0},{"$f":"Time!RXM$11","v":0},{"$f":"Time!RXN$11","v":0},{"$f":"Time!RXO$11","v":0},{"$f":"Time!RXP$11","v":0},{"$f":"Time!RXQ$11","v":0},{"$f":"Time!RXR$11","v":0},{"$f":"Time!RXS$11","v":0},{"$f":"Time!RXT$11","v":0},{"$f":"Time!RXU$11","v":0},{"$f":"Time!RXV$11","v":0},{"$f":"Time!RXW$11","v":0},{"$f":"Time!RXX$11","v":0},{"$f":"Time!RXY$11","v":0},{"$f":"Time!RXZ$11","v":0},{"$f":"Time!RYA$11","v":0},{"$f":"Time!RYB$11","v":0},{"$f":"Time!RYC$11","v":0},{"$f":"Time!RYD$11","v":0},{"$f":"Time!RYE$11","v":0},{"$f":"Time!RYF$11","v":0},{"$f":"Time!RYG$11","v":0},{"$f":"Time!RYH$11","v":0},{"$f":"Time!RYI$11","v":0},{"$f":"Time!RYJ$11","v":0},{"$f":"Time!RYK$11","v":0},{"$f":"Time!RYL$11","v":0},{"$f":"Time!RYM$11","v":0},{"$f":"Time!RYN$11","v":0},{"$f":"Time!RYO$11","v":0},{"$f":"Time!RYP$11","v":0},{"$f":"Time!RYQ$11","v":0},{"$f":"Time!RYR$11","v":0},{"$f":"Time!RYS$11","v":0},{"$f":"Time!RYT$11","v":0},{"$f":"Time!RYU$11","v":0},{"$f":"Time!RYV$11","v":0},{"$f":"Time!RYW$11","v":0},{"$f":"Time!RYX$11","v":0},{"$f":"Time!RYY$11","v":0},{"$f":"Time!RYZ$11","v":0},{"$f":"Time!RZA$11","v":0},{"$f":"Time!RZB$11","v":0},{"$f":"Time!RZC$11","v":0},{"$f":"Time!RZD$11","v":0},{"$f":"Time!RZE$11","v":0},{"$f":"Time!RZF$11","v":0},{"$f":"Time!RZG$11","v":0},{"$f":"Time!RZH$11","v":0},{"$f":"Time!RZI$11","v":0},{"$f":"Time!RZJ$11","v":0},{"$f":"Time!RZK$11","v":0},{"$f":"Time!RZL$11","v":0},{"$f":"Time!RZM$11","v":0},{"$f":"Time!RZN$11","v":0},{"$f":"Time!RZO$11","v":0},{"$f":"Time!RZP$11","v":0},{"$f":"Time!RZQ$11","v":0},{"$f":"Time!RZR$11","v":0},{"$f":"Time!RZS$11","v":0},{"$f":"Time!RZT$11","v":0},{"$f":"Time!RZU$11","v":0},{"$f":"Time!RZV$11","v":0},{"$f":"Time!RZW$11","v":0},{"$f":"Time!RZX$11","v":0},{"$f":"Time!RZY$11","v":0},{"$f":"Time!RZZ$11","v":0},{"$f":"Time!SAA$11","v":0},{"$f":"Time!SAB$11","v":0},{"$f":"Time!SAC$11","v":0},{"$f":"Time!SAD$11","v":0},{"$f":"Time!SAE$11","v":0},{"$f":"Time!SAF$11","v":0},{"$f":"Time!SAG$11","v":0},{"$f":"Time!SAH$11","v":0},{"$f":"Time!SAI$11","v":0},{"$f":"Time!SAJ$11","v":0},{"$f":"Time!SAK$11","v":0},{"$f":"Time!SAL$11","v":0},{"$f":"Time!SAM$11","v":0},{"$f":"Time!SAN$11","v":0},{"$f":"Time!SAO$11","v":0},{"$f":"Time!SAP$11","v":0},{"$f":"Time!SAQ$11","v":0},{"$f":"Time!SAR$11","v":0},{"$f":"Time!SAS$11","v":0},{"$f":"Time!SAT$11","v":0},{"$f":"Time!SAU$11","v":0},{"$f":"Time!SAV$11","v":0},{"$f":"Time!SAW$11","v":0},{"$f":"Time!SAX$11","v":0},{"$f":"Time!SAY$11","v":0},{"$f":"Time!SAZ$11","v":0},{"$f":"Time!SBA$11","v":0},{"$f":"Time!SBB$11","v":0},{"$f":"Time!SBC$11","v":0},{"$f":"Time!SBD$11","v":0},{"$f":"Time!SBE$11","v":0},{"$f":"Time!SBF$11","v":0},{"$f":"Time!SBG$11","v":0},{"$f":"Time!SBH$11","v":0},{"$f":"Time!SBI$11","v":0},{"$f":"Time!SBJ$11","v":0},{"$f":"Time!SBK$11","v":0},{"$f":"Time!SBL$11","v":0},{"$f":"Time!SBM$11","v":0},{"$f":"Time!SBN$11","v":0},{"$f":"Time!SBO$11","v":0},{"$f":"Time!SBP$11","v":0},{"$f":"Time!SBQ$11","v":0},{"$f":"Time!SBR$11","v":0},{"$f":"Time!SBS$11","v":0},{"$f":"Time!SBT$11","v":0},{"$f":"Time!SBU$11","v":0},{"$f":"Time!SBV$11","v":0},{"$f":"Time!SBW$11","v":0},{"$f":"Time!SBX$11","v":0},{"$f":"Time!SBY$11","v":0},{"$f":"Time!SBZ$11","v":0},{"$f":"Time!SCA$11","v":0},{"$f":"Time!SCB$11","v":0},{"$f":"Time!SCC$11","v":0},{"$f":"Time!SCD$11","v":0},{"$f":"Time!SCE$11","v":0},{"$f":"Time!SCF$11","v":0},{"$f":"Time!SCG$11","v":0},{"$f":"Time!SCH$11","v":0},{"$f":"Time!SCI$11","v":0},{"$f":"Time!SCJ$11","v":0},{"$f":"Time!SCK$11","v":0},{"$f":"Time!SCL$11","v":0},{"$f":"Time!SCM$11","v":0},{"$f":"Time!SCN$11","v":0},{"$f":"Time!SCO$11","v":0},{"$f":"Time!SCP$11","v":0},{"$f":"Time!SCQ$11","v":0},{"$f":"Time!SCR$11","v":0},{"$f":"Time!SCS$11","v":0},{"$f":"Time!SCT$11","v":0},{"$f":"Time!SCU$11","v":0},{"$f":"Time!SCV$11","v":0},{"$f":"Time!SCW$11","v":0},{"$f":"Time!SCX$11","v":0},{"$f":"Time!SCY$11","v":0},{"$f":"Time!SCZ$11","v":0},{"$f":"Time!SDA$11","v":0},{"$f":"Time!SDB$11","v":0},{"$f":"Time!SDC$11","v":0},{"$f":"Time!SDD$11","v":0},{"$f":"Time!SDE$11","v":0},{"$f":"Time!SDF$11","v":0},{"$f":"Time!SDG$11","v":0},{"$f":"Time!SDH$11","v":0},{"$f":"Time!SDI$11","v":0},{"$f":"Time!SDJ$11","v":0},{"$f":"Time!SDK$11","v":0},{"$f":"Time!SDL$11","v":0},{"$f":"Time!SDM$11","v":0},{"$f":"Time!SDN$11","v":0},{"$f":"Time!SDO$11","v":0},{"$f":"Time!SDP$11","v":0},{"$f":"Time!SDQ$11","v":0},{"$f":"Time!SDR$11","v":0},{"$f":"Time!SDS$11","v":0},{"$f":"Time!SDT$11","v":0},{"$f":"Time!SDU$11","v":0},{"$f":"Time!SDV$11","v":0},{"$f":"Time!SDW$11","v":0},{"$f":"Time!SDX$11","v":0},{"$f":"Time!SDY$11","v":0},{"$f":"Time!SDZ$11","v":0},{"$f":"Time!SEA$11","v":0},{"$f":"Time!SEB$11","v":0},{"$f":"Time!SEC$11","v":0},{"$f":"Time!SED$11","v":0},{"$f":"Time!SEE$11","v":0},{"$f":"Time!SEF$11","v":0},{"$f":"Time!SEG$11","v":0},{"$f":"Time!SEH$11","v":0},{"$f":"Time!SEI$11","v":0},{"$f":"Time!SEJ$11","v":0},{"$f":"Time!SEK$11","v":0},{"$f":"Time!SEL$11","v":0},{"$f":"Time!SEM$11","v":0},{"$f":"Time!SEN$11","v":0},{"$f":"Time!SEO$11","v":0},{"$f":"Time!SEP$11","v":0},{"$f":"Time!SEQ$11","v":0},{"$f":"Time!SER$11","v":0},{"$f":"Time!SES$11","v":0},{"$f":"Time!SET$11","v":0},{"$f":"Time!SEU$11","v":0},{"$f":"Time!SEV$11","v":0},{"$f":"Time!SEW$11","v":0},{"$f":"Time!SEX$11","v":0},{"$f":"Time!SEY$11","v":0},{"$f":"Time!SEZ$11","v":0},{"$f":"Time!SFA$11","v":0},{"$f":"Time!SFB$11","v":0},{"$f":"Time!SFC$11","v":0},{"$f":"Time!SFD$11","v":0},{"$f":"Time!SFE$11","v":0},{"$f":"Time!SFF$11","v":0},{"$f":"Time!SFG$11","v":0},{"$f":"Time!SFH$11","v":0},{"$f":"Time!SFI$11","v":0},{"$f":"Time!SFJ$11","v":0},{"$f":"Time!SFK$11","v":0},{"$f":"Time!SFL$11","v":0},{"$f":"Time!SFM$11","v":0},{"$f":"Time!SFN$11","v":0},{"$f":"Time!SFO$11","v":0},{"$f":"Time!SFP$11","v":0},{"$f":"Time!SFQ$11","v":0},{"$f":"Time!SFR$11","v":0},{"$f":"Time!SFS$11","v":0},{"$f":"Time!SFT$11","v":0},{"$f":"Time!SFU$11","v":0},{"$f":"Time!SFV$11","v":0},{"$f":"Time!SFW$11","v":0},{"$f":"Time!SFX$11","v":0},{"$f":"Time!SFY$11","v":0},{"$f":"Time!SFZ$11","v":0},{"$f":"Time!SGA$11","v":0},{"$f":"Time!SGB$11","v":0},{"$f":"Time!SGC$11","v":0},{"$f":"Time!SGD$11","v":0},{"$f":"Time!SGE$11","v":0},{"$f":"Time!SGF$11","v":0},{"$f":"Time!SGG$11","v":0},{"$f":"Time!SGH$11","v":0},{"$f":"Time!SGI$11","v":0},{"$f":"Time!SGJ$11","v":0},{"$f":"Time!SGK$11","v":0},{"$f":"Time!SGL$11","v":0},{"$f":"Time!SGM$11","v":0},{"$f":"Time!SGN$11","v":0},{"$f":"Time!SGO$11","v":0},{"$f":"Time!SGP$11","v":0},{"$f":"Time!SGQ$11","v":0},{"$f":"Time!SGR$11","v":0},{"$f":"Time!SGS$11","v":0},{"$f":"Time!SGT$11","v":0},{"$f":"Time!SGU$11","v":0},{"$f":"Time!SGV$11","v":0},{"$f":"Time!SGW$11","v":0},{"$f":"Time!SGX$11","v":0},{"$f":"Time!SGY$11","v":0},{"$f":"Time!SGZ$11","v":0},{"$f":"Time!SHA$11","v":0},{"$f":"Time!SHB$11","v":0},{"$f":"Time!SHC$11","v":0},{"$f":"Time!SHD$11","v":0},{"$f":"Time!SHE$11","v":0},{"$f":"Time!SHF$11","v":0},{"$f":"Time!SHG$11","v":0},{"$f":"Time!SHH$11","v":0},{"$f":"Time!SHI$11","v":0},{"$f":"Time!SHJ$11","v":0},{"$f":"Time!SHK$11","v":0},{"$f":"Time!SHL$11","v":0},{"$f":"Time!SHM$11","v":0},{"$f":"Time!SHN$11","v":0},{"$f":"Time!SHO$11","v":0},{"$f":"Time!SHP$11","v":0},{"$f":"Time!SHQ$11","v":0},{"$f":"Time!SHR$11","v":0},{"$f":"Time!SHS$11","v":0},{"$f":"Time!SHT$11","v":0},{"$f":"Time!SHU$11","v":0},{"$f":"Time!SHV$11","v":0},{"$f":"Time!SHW$11","v":0},{"$f":"Time!SHX$11","v":0},{"$f":"Time!SHY$11","v":0},{"$f":"Time!SHZ$11","v":0},{"$f":"Time!SIA$11","v":0},{"$f":"Time!SIB$11","v":0},{"$f":"Time!SIC$11","v":0},{"$f":"Time!SID$11","v":0},{"$f":"Time!SIE$11","v":0},{"$f":"Time!SIF$11","v":0},{"$f":"Time!SIG$11","v":0},{"$f":"Time!SIH$11","v":0},{"$f":"Time!SII$11","v":0},{"$f":"Time!SIJ$11","v":0},{"$f":"Time!SIK$11","v":0},{"$f":"Time!SIL$11","v":0},{"$f":"Time!SIM$11","v":0},{"$f":"Time!SIN$11","v":0},{"$f":"Time!SIO$11","v":0},{"$f":"Time!SIP$11","v":0},{"$f":"Time!SIQ$11","v":0},{"$f":"Time!SIR$11","v":0},{"$f":"Time!SIS$11","v":0},{"$f":"Time!SIT$11","v":0},{"$f":"Time!SIU$11","v":0},{"$f":"Time!SIV$11","v":0},{"$f":"Time!SIW$11","v":0},{"$f":"Time!SIX$11","v":0},{"$f":"Time!SIY$11","v":0},{"$f":"Time!SIZ$11","v":0},{"$f":"Time!SJA$11","v":0},{"$f":"Time!SJB$11","v":0},{"$f":"Time!SJC$11","v":0},{"$f":"Time!SJD$11","v":0},{"$f":"Time!SJE$11","v":0},{"$f":"Time!SJF$11","v":0},{"$f":"Time!SJG$11","v":0},{"$f":"Time!SJH$11","v":0},{"$f":"Time!SJI$11","v":0},{"$f":"Time!SJJ$11","v":0},{"$f":"Time!SJK$11","v":0},{"$f":"Time!SJL$11","v":0},{"$f":"Time!SJM$11","v":0},{"$f":"Time!SJN$11","v":0},{"$f":"Time!SJO$11","v":0},{"$f":"Time!SJP$11","v":0},{"$f":"Time!SJQ$11","v":0},{"$f":"Time!SJR$11","v":0},{"$f":"Time!SJS$11","v":0},{"$f":"Time!SJT$11","v":0},{"$f":"Time!SJU$11","v":0},{"$f":"Time!SJV$11","v":0},{"$f":"Time!SJW$11","v":0},{"$f":"Time!SJX$11","v":0},{"$f":"Time!SJY$11","v":0},{"$f":"Time!SJZ$11","v":0},{"$f":"Time!SKA$11","v":0},{"$f":"Time!SKB$11","v":0},{"$f":"Time!SKC$11","v":0},{"$f":"Time!SKD$11","v":0},{"$f":"Time!SKE$11","v":0},{"$f":"Time!SKF$11","v":0},{"$f":"Time!SKG$11","v":0},{"$f":"Time!SKH$11","v":0},{"$f":"Time!SKI$11","v":0},{"$f":"Time!SKJ$11","v":0},{"$f":"Time!SKK$11","v":0},{"$f":"Time!SKL$11","v":0},{"$f":"Time!SKM$11","v":0},{"$f":"Time!SKN$11","v":0},{"$f":"Time!SKO$11","v":0},{"$f":"Time!SKP$11","v":0},{"$f":"Time!SKQ$11","v":0},{"$f":"Time!SKR$11","v":0},{"$f":"Time!SKS$11","v":0},{"$f":"Time!SKT$11","v":0},{"$f":"Time!SKU$11","v":0},{"$f":"Time!SKV$11","v":0},{"$f":"Time!SKW$11","v":0},{"$f":"Time!SKX$11","v":0},{"$f":"Time!SKY$11","v":0},{"$f":"Time!SKZ$11","v":0},{"$f":"Time!SLA$11","v":0},{"$f":"Time!SLB$11","v":0},{"$f":"Time!SLC$11","v":0},{"$f":"Time!SLD$11","v":0},{"$f":"Time!SLE$11","v":0},{"$f":"Time!SLF$11","v":0},{"$f":"Time!SLG$11","v":0},{"$f":"Time!SLH$11","v":0},{"$f":"Time!SLI$11","v":0},{"$f":"Time!SLJ$11","v":0},{"$f":"Time!SLK$11","v":0},{"$f":"Time!SLL$11","v":0},{"$f":"Time!SLM$11","v":0},{"$f":"Time!SLN$11","v":0},{"$f":"Time!SLO$11","v":0},{"$f":"Time!SLP$11","v":0},{"$f":"Time!SLQ$11","v":0},{"$f":"Time!SLR$11","v":0},{"$f":"Time!SLS$11","v":0},{"$f":"Time!SLT$11","v":0},{"$f":"Time!SLU$11","v":0},{"$f":"Time!SLV$11","v":0},{"$f":"Time!SLW$11","v":0},{"$f":"Time!SLX$11","v":0},{"$f":"Time!SLY$11","v":0},{"$f":"Time!SLZ$11","v":0},{"$f":"Time!SMA$11","v":0},{"$f":"Time!SMB$11","v":0},{"$f":"Time!SMC$11","v":0},{"$f":"Time!SMD$11","v":0},{"$f":"Time!SME$11","v":0},{"$f":"Time!SMF$11","v":0},{"$f":"Time!SMG$11","v":0},{"$f":"Time!SMH$11","v":0},{"$f":"Time!SMI$11","v":0},{"$f":"Time!SMJ$11","v":0},{"$f":"Time!SMK$11","v":0},{"$f":"Time!SML$11","v":0},{"$f":"Time!SMM$11","v":0},{"$f":"Time!SMN$11","v":0},{"$f":"Time!SMO$11","v":0},{"$f":"Time!SMP$11","v":0},{"$f":"Time!SMQ$11","v":0},{"$f":"Time!SMR$11","v":0},{"$f":"Time!SMS$11","v":0},{"$f":"Time!SMT$11","v":0},{"$f":"Time!SMU$11","v":0},{"$f":"Time!SMV$11","v":0},{"$f":"Time!SMW$11","v":0},{"$f":"Time!SMX$11","v":0},{"$f":"Time!SMY$11","v":0},{"$f":"Time!SMZ$11","v":0},{"$f":"Time!SNA$11","v":0},{"$f":"Time!SNB$11","v":0},{"$f":"Time!SNC$11","v":0},{"$f":"Time!SND$11","v":0},{"$f":"Time!SNE$11","v":0},{"$f":"Time!SNF$11","v":0},{"$f":"Time!SNG$11","v":0},{"$f":"Time!SNH$11","v":0},{"$f":"Time!SNI$11","v":0},{"$f":"Time!SNJ$11","v":0},{"$f":"Time!SNK$11","v":0},{"$f":"Time!SNL$11","v":0},{"$f":"Time!SNM$11","v":0},{"$f":"Time!SNN$11","v":0},{"$f":"Time!SNO$11","v":0},{"$f":"Time!SNP$11","v":0},{"$f":"Time!SNQ$11","v":0},{"$f":"Time!SNR$11","v":0},{"$f":"Time!SNS$11","v":0},{"$f":"Time!SNT$11","v":0},{"$f":"Time!SNU$11","v":0},{"$f":"Time!SNV$11","v":0},{"$f":"Time!SNW$11","v":0},{"$f":"Time!SNX$11","v":0},{"$f":"Time!SNY$11","v":0},{"$f":"Time!SNZ$11","v":0},{"$f":"Time!SOA$11","v":0},{"$f":"Time!SOB$11","v":0},{"$f":"Time!SOC$11","v":0},{"$f":"Time!SOD$11","v":0},{"$f":"Time!SOE$11","v":0},{"$f":"Time!SOF$11","v":0},{"$f":"Time!SOG$11","v":0},{"$f":"Time!SOH$11","v":0},{"$f":"Time!SOI$11","v":0},{"$f":"Time!SOJ$11","v":0},{"$f":"Time!SOK$11","v":0},{"$f":"Time!SOL$11","v":0},{"$f":"Time!SOM$11","v":0},{"$f":"Time!SON$11","v":0},{"$f":"Time!SOO$11","v":0},{"$f":"Time!SOP$11","v":0},{"$f":"Time!SOQ$11","v":0},{"$f":"Time!SOR$11","v":0},{"$f":"Time!SOS$11","v":0},{"$f":"Time!SOT$11","v":0},{"$f":"Time!SOU$11","v":0},{"$f":"Time!SOV$11","v":0},{"$f":"Time!SOW$11","v":0},{"$f":"Time!SOX$11","v":0},{"$f":"Time!SOY$11","v":0},{"$f":"Time!SOZ$11","v":0},{"$f":"Time!SPA$11","v":0},{"$f":"Time!SPB$11","v":0},{"$f":"Time!SPC$11","v":0},{"$f":"Time!SPD$11","v":0},{"$f":"Time!SPE$11","v":0},{"$f":"Time!SPF$11","v":0},{"$f":"Time!SPG$11","v":0},{"$f":"Time!SPH$11","v":0},{"$f":"Time!SPI$11","v":0},{"$f":"Time!SPJ$11","v":0},{"$f":"Time!SPK$11","v":0},{"$f":"Time!SPL$11","v":0},{"$f":"Time!SPM$11","v":0},{"$f":"Time!SPN$11","v":0},{"$f":"Time!SPO$11","v":0},{"$f":"Time!SPP$11","v":0},{"$f":"Time!SPQ$11","v":0},{"$f":"Time!SPR$11","v":0},{"$f":"Time!SPS$11","v":0},{"$f":"Time!SPT$11","v":0},{"$f":"Time!SPU$11","v":0},{"$f":"Time!SPV$11","v":0},{"$f":"Time!SPW$11","v":0},{"$f":"Time!SPX$11","v":0},{"$f":"Time!SPY$11","v":0},{"$f":"Time!SPZ$11","v":0},{"$f":"Time!SQA$11","v":0},{"$f":"Time!SQB$11","v":0},{"$f":"Time!SQC$11","v":0},{"$f":"Time!SQD$11","v":0},{"$f":"Time!SQE$11","v":0},{"$f":"Time!SQF$11","v":0},{"$f":"Time!SQG$11","v":0},{"$f":"Time!SQH$11","v":0},{"$f":"Time!SQI$11","v":0},{"$f":"Time!SQJ$11","v":0},{"$f":"Time!SQK$11","v":0},{"$f":"Time!SQL$11","v":0},{"$f":"Time!SQM$11","v":0},{"$f":"Time!SQN$11","v":0},{"$f":"Time!SQO$11","v":0},{"$f":"Time!SQP$11","v":0},{"$f":"Time!SQQ$11","v":0},{"$f":"Time!SQR$11","v":0},{"$f":"Time!SQS$11","v":0},{"$f":"Time!SQT$11","v":0},{"$f":"Time!SQU$11","v":0},{"$f":"Time!SQV$11","v":0},{"$f":"Time!SQW$11","v":0},{"$f":"Time!SQX$11","v":0},{"$f":"Time!SQY$11","v":0},{"$f":"Time!SQZ$11","v":0},{"$f":"Time!SRA$11","v":0},{"$f":"Time!SRB$11","v":0},{"$f":"Time!SRC$11","v":0},{"$f":"Time!SRD$11","v":0},{"$f":"Time!SRE$11","v":0},{"$f":"Time!SRF$11","v":0},{"$f":"Time!SRG$11","v":0},{"$f":"Time!SRH$11","v":0},{"$f":"Time!SRI$11","v":0},{"$f":"Time!SRJ$11","v":0},{"$f":"Time!SRK$11","v":0},{"$f":"Time!SRL$11","v":0},{"$f":"Time!SRM$11","v":0},{"$f":"Time!SRN$11","v":0},{"$f":"Time!SRO$11","v":0},{"$f":"Time!SRP$11","v":0},{"$f":"Time!SRQ$11","v":0},{"$f":"Time!SRR$11","v":0},{"$f":"Time!SRS$11","v":0},{"$f":"Time!SRT$11","v":0},{"$f":"Time!SRU$11","v":0},{"$f":"Time!SRV$11","v":0},{"$f":"Time!SRW$11","v":0},{"$f":"Time!SRX$11","v":0},{"$f":"Time!SRY$11","v":0},{"$f":"Time!SRZ$11","v":0},{"$f":"Time!SSA$11","v":0},{"$f":"Time!SSB$11","v":0},{"$f":"Time!SSC$11","v":0},{"$f":"Time!SSD$11","v":0},{"$f":"Time!SSE$11","v":0},{"$f":"Time!SSF$11","v":0},{"$f":"Time!SSG$11","v":0},{"$f":"Time!SSH$11","v":0},{"$f":"Time!SSI$11","v":0},{"$f":"Time!SSJ$11","v":0},{"$f":"Time!SSK$11","v":0},{"$f":"Time!SSL$11","v":0},{"$f":"Time!SSM$11","v":0},{"$f":"Time!SSN$11","v":0},{"$f":"Time!SSO$11","v":0},{"$f":"Time!SSP$11","v":0},{"$f":"Time!SSQ$11","v":0},{"$f":"Time!SSR$11","v":0},{"$f":"Time!SSS$11","v":0},{"$f":"Time!SST$11","v":0},{"$f":"Time!SSU$11","v":0},{"$f":"Time!SSV$11","v":0},{"$f":"Time!SSW$11","v":0},{"$f":"Time!SSX$11","v":0},{"$f":"Time!SSY$11","v":0},{"$f":"Time!SSZ$11","v":0},{"$f":"Time!STA$11","v":0},{"$f":"Time!STB$11","v":0},{"$f":"Time!STC$11","v":0},{"$f":"Time!STD$11","v":0},{"$f":"Time!STE$11","v":0},{"$f":"Time!STF$11","v":0},{"$f":"Time!STG$11","v":0},{"$f":"Time!STH$11","v":0},{"$f":"Time!STI$11","v":0},{"$f":"Time!STJ$11","v":0},{"$f":"Time!STK$11","v":0},{"$f":"Time!STL$11","v":0},{"$f":"Time!STM$11","v":0},{"$f":"Time!STN$11","v":0},{"$f":"Time!STO$11","v":0},{"$f":"Time!STP$11","v":0},{"$f":"Time!STQ$11","v":0},{"$f":"Time!STR$11","v":0},{"$f":"Time!STS$11","v":0},{"$f":"Time!STT$11","v":0},{"$f":"Time!STU$11","v":0},{"$f":"Time!STV$11","v":0},{"$f":"Time!STW$11","v":0},{"$f":"Time!STX$11","v":0},{"$f":"Time!STY$11","v":0},{"$f":"Time!STZ$11","v":0},{"$f":"Time!SUA$11","v":0},{"$f":"Time!SUB$11","v":0},{"$f":"Time!SUC$11","v":0},{"$f":"Time!SUD$11","v":0},{"$f":"Time!SUE$11","v":0},{"$f":"Time!SUF$11","v":0},{"$f":"Time!SUG$11","v":0},{"$f":"Time!SUH$11","v":0},{"$f":"Time!SUI$11","v":0},{"$f":"Time!SUJ$11","v":0},{"$f":"Time!SUK$11","v":0},{"$f":"Time!SUL$11","v":0},{"$f":"Time!SUM$11","v":0},{"$f":"Time!SUN$11","v":0},{"$f":"Time!SUO$11","v":0},{"$f":"Time!SUP$11","v":0},{"$f":"Time!SUQ$11","v":0},{"$f":"Time!SUR$11","v":0},{"$f":"Time!SUS$11","v":0},{"$f":"Time!SUT$11","v":0},{"$f":"Time!SUU$11","v":0},{"$f":"Time!SUV$11","v":0},{"$f":"Time!SUW$11","v":0},{"$f":"Time!SUX$11","v":0},{"$f":"Time!SUY$11","v":0},{"$f":"Time!SUZ$11","v":0},{"$f":"Time!SVA$11","v":0},{"$f":"Time!SVB$11","v":0},{"$f":"Time!SVC$11","v":0},{"$f":"Time!SVD$11","v":0},{"$f":"Time!SVE$11","v":0},{"$f":"Time!SVF$11","v":0},{"$f":"Time!SVG$11","v":0},{"$f":"Time!SVH$11","v":0},{"$f":"Time!SVI$11","v":0},{"$f":"Time!SVJ$11","v":0},{"$f":"Time!SVK$11","v":0},{"$f":"Time!SVL$11","v":0},{"$f":"Time!SVM$11","v":0},{"$f":"Time!SVN$11","v":0},{"$f":"Time!SVO$11","v":0},{"$f":"Time!SVP$11","v":0},{"$f":"Time!SVQ$11","v":0},{"$f":"Time!SVR$11","v":0},{"$f":"Time!SVS$11","v":0},{"$f":"Time!SVT$11","v":0},{"$f":"Time!SVU$11","v":0},{"$f":"Time!SVV$11","v":0},{"$f":"Time!SVW$11","v":0},{"$f":"Time!SVX$11","v":0},{"$f":"Time!SVY$11","v":0},{"$f":"Time!SVZ$11","v":0},{"$f":"Time!SWA$11","v":0},{"$f":"Time!SWB$11","v":0},{"$f":"Time!SWC$11","v":0},{"$f":"Time!SWD$11","v":0},{"$f":"Time!SWE$11","v":0},{"$f":"Time!SWF$11","v":0},{"$f":"Time!SWG$11","v":0},{"$f":"Time!SWH$11","v":0},{"$f":"Time!SWI$11","v":0},{"$f":"Time!SWJ$11","v":0},{"$f":"Time!SWK$11","v":0},{"$f":"Time!SWL$11","v":0},{"$f":"Time!SWM$11","v":0},{"$f":"Time!SWN$11","v":0},{"$f":"Time!SWO$11","v":0},{"$f":"Time!SWP$11","v":0},{"$f":"Time!SWQ$11","v":0},{"$f":"Time!SWR$11","v":0},{"$f":"Time!SWS$11","v":0},{"$f":"Time!SWT$11","v":0},{"$f":"Time!SWU$11","v":0},{"$f":"Time!SWV$11","v":0},{"$f":"Time!SWW$11","v":0},{"$f":"Time!SWX$11","v":0},{"$f":"Time!SWY$11","v":0},{"$f":"Time!SWZ$11","v":0},{"$f":"Time!SXA$11","v":0},{"$f":"Time!SXB$11","v":0},{"$f":"Time!SXC$11","v":0},{"$f":"Time!SXD$11","v":0},{"$f":"Time!SXE$11","v":0},{"$f":"Time!SXF$11","v":0},{"$f":"Time!SXG$11","v":0},{"$f":"Time!SXH$11","v":0},{"$f":"Time!SXI$11","v":0},{"$f":"Time!SXJ$11","v":0},{"$f":"Time!SXK$11","v":0},{"$f":"Time!SXL$11","v":0},{"$f":"Time!SXM$11","v":0},{"$f":"Time!SXN$11","v":0},{"$f":"Time!SXO$11","v":0},{"$f":"Time!SXP$11","v":0},{"$f":"Time!SXQ$11","v":0},{"$f":"Time!SXR$11","v":0},{"$f":"Time!SXS$11","v":0},{"$f":"Time!SXT$11","v":0},{"$f":"Time!SXU$11","v":0},{"$f":"Time!SXV$11","v":0},{"$f":"Time!SXW$11","v":0},{"$f":"Time!SXX$11","v":0},{"$f":"Time!SXY$11","v":0},{"$f":"Time!SXZ$11","v":0},{"$f":"Time!SYA$11","v":0},{"$f":"Time!SYB$11","v":0},{"$f":"Time!SYC$11","v":0},{"$f":"Time!SYD$11","v":0},{"$f":"Time!SYE$11","v":0},{"$f":"Time!SYF$11","v":0},{"$f":"Time!SYG$11","v":0},{"$f":"Time!SYH$11","v":0},{"$f":"Time!SYI$11","v":0},{"$f":"Time!SYJ$11","v":0},{"$f":"Time!SYK$11","v":0},{"$f":"Time!SYL$11","v":0},{"$f":"Time!SYM$11","v":0},{"$f":"Time!SYN$11","v":0},{"$f":"Time!SYO$11","v":0},{"$f":"Time!SYP$11","v":0},{"$f":"Time!SYQ$11","v":0},{"$f":"Time!SYR$11","v":0},{"$f":"Time!SYS$11","v":0},{"$f":"Time!SYT$11","v":0},{"$f":"Time!SYU$11","v":0},{"$f":"Time!SYV$11","v":0},{"$f":"Time!SYW$11","v":0},{"$f":"Time!SYX$11","v":0},{"$f":"Time!SYY$11","v":0},{"$f":"Time!SYZ$11","v":0},{"$f":"Time!SZA$11","v":0},{"$f":"Time!SZB$11","v":0},{"$f":"Time!SZC$11","v":0},{"$f":"Time!SZD$11","v":0},{"$f":"Time!SZE$11","v":0},{"$f":"Time!SZF$11","v":0},{"$f":"Time!SZG$11","v":0},{"$f":"Time!SZH$11","v":0},{"$f":"Time!SZI$11","v":0},{"$f":"Time!SZJ$11","v":0},{"$f":"Time!SZK$11","v":0},{"$f":"Time!SZL$11","v":0},{"$f":"Time!SZM$11","v":0},{"$f":"Time!SZN$11","v":0},{"$f":"Time!SZO$11","v":0},{"$f":"Time!SZP$11","v":0},{"$f":"Time!SZQ$11","v":0},{"$f":"Time!SZR$11","v":0},{"$f":"Time!SZS$11","v":0},{"$f":"Time!SZT$11","v":0},{"$f":"Time!SZU$11","v":0},{"$f":"Time!SZV$11","v":0},{"$f":"Time!SZW$11","v":0},{"$f":"Time!SZX$11","v":0},{"$f":"Time!SZY$11","v":0},{"$f":"Time!SZZ$11","v":0},{"$f":"Time!TAA$11","v":0},{"$f":"Time!TAB$11","v":0},{"$f":"Time!TAC$11","v":0},{"$f":"Time!TAD$11","v":0},{"$f":"Time!TAE$11","v":0},{"$f":"Time!TAF$11","v":0},{"$f":"Time!TAG$11","v":0},{"$f":"Time!TAH$11","v":0},{"$f":"Time!TAI$11","v":0},{"$f":"Time!TAJ$11","v":0},{"$f":"Time!TAK$11","v":0},{"$f":"Time!TAL$11","v":0},{"$f":"Time!TAM$11","v":0},{"$f":"Time!TAN$11","v":0},{"$f":"Time!TAO$11","v":0},{"$f":"Time!TAP$11","v":0},{"$f":"Time!TAQ$11","v":0},{"$f":"Time!TAR$11","v":0},{"$f":"Time!TAS$11","v":0},{"$f":"Time!TAT$11","v":0},{"$f":"Time!TAU$11","v":0},{"$f":"Time!TAV$11","v":0},{"$f":"Time!TAW$11","v":0},{"$f":"Time!TAX$11","v":0},{"$f":"Time!TAY$11","v":0},{"$f":"Time!TAZ$11","v":0},{"$f":"Time!TBA$11","v":0},{"$f":"Time!TBB$11","v":0},{"$f":"Time!TBC$11","v":0},{"$f":"Time!TBD$11","v":0},{"$f":"Time!TBE$11","v":0},{"$f":"Time!TBF$11","v":0},{"$f":"Time!TBG$11","v":0},{"$f":"Time!TBH$11","v":0},{"$f":"Time!TBI$11","v":0},{"$f":"Time!TBJ$11","v":0},{"$f":"Time!TBK$11","v":0},{"$f":"Time!TBL$11","v":0},{"$f":"Time!TBM$11","v":0},{"$f":"Time!TBN$11","v":0},{"$f":"Time!TBO$11","v":0},{"$f":"Time!TBP$11","v":0},{"$f":"Time!TBQ$11","v":0},{"$f":"Time!TBR$11","v":0},{"$f":"Time!TBS$11","v":0},{"$f":"Time!TBT$11","v":0},{"$f":"Time!TBU$11","v":0},{"$f":"Time!TBV$11","v":0},{"$f":"Time!TBW$11","v":0},{"$f":"Time!TBX$11","v":0},{"$f":"Time!TBY$11","v":0},{"$f":"Time!TBZ$11","v":0},{"$f":"Time!TCA$11","v":0},{"$f":"Time!TCB$11","v":0},{"$f":"Time!TCC$11","v":0},{"$f":"Time!TCD$11","v":0},{"$f":"Time!TCE$11","v":0},{"$f":"Time!TCF$11","v":0},{"$f":"Time!TCG$11","v":0},{"$f":"Time!TCH$11","v":0},{"$f":"Time!TCI$11","v":0},{"$f":"Time!TCJ$11","v":0},{"$f":"Time!TCK$11","v":0},{"$f":"Time!TCL$11","v":0},{"$f":"Time!TCM$11","v":0},{"$f":"Time!TCN$11","v":0},{"$f":"Time!TCO$11","v":0},{"$f":"Time!TCP$11","v":0},{"$f":"Time!TCQ$11","v":0},{"$f":"Time!TCR$11","v":0},{"$f":"Time!TCS$11","v":0},{"$f":"Time!TCT$11","v":0},{"$f":"Time!TCU$11","v":0},{"$f":"Time!TCV$11","v":0},{"$f":"Time!TCW$11","v":0},{"$f":"Time!TCX$11","v":0},{"$f":"Time!TCY$11","v":0},{"$f":"Time!TCZ$11","v":0},{"$f":"Time!TDA$11","v":0},{"$f":"Time!TDB$11","v":0},{"$f":"Time!TDC$11","v":0},{"$f":"Time!TDD$11","v":0},{"$f":"Time!TDE$11","v":0},{"$f":"Time!TDF$11","v":0},{"$f":"Time!TDG$11","v":0},{"$f":"Time!TDH$11","v":0},{"$f":"Time!TDI$11","v":0},{"$f":"Time!TDJ$11","v":0},{"$f":"Time!TDK$11","v":0},{"$f":"Time!TDL$11","v":0},{"$f":"Time!TDM$11","v":0},{"$f":"Time!TDN$11","v":0},{"$f":"Time!TDO$11","v":0},{"$f":"Time!TDP$11","v":0},{"$f":"Time!TDQ$11","v":0},{"$f":"Time!TDR$11","v":0},{"$f":"Time!TDS$11","v":0},{"$f":"Time!TDT$11","v":0},{"$f":"Time!TDU$11","v":0},{"$f":"Time!TDV$11","v":0},{"$f":"Time!TDW$11","v":0},{"$f":"Time!TDX$11","v":0},{"$f":"Time!TDY$11","v":0},{"$f":"Time!TDZ$11","v":0},{"$f":"Time!TEA$11","v":0},{"$f":"Time!TEB$11","v":0},{"$f":"Time!TEC$11","v":0},{"$f":"Time!TED$11","v":0},{"$f":"Time!TEE$11","v":0},{"$f":"Time!TEF$11","v":0},{"$f":"Time!TEG$11","v":0},{"$f":"Time!TEH$11","v":0},{"$f":"Time!TEI$11","v":0},{"$f":"Time!TEJ$11","v":0},{"$f":"Time!TEK$11","v":0},{"$f":"Time!TEL$11","v":0},{"$f":"Time!TEM$11","v":0},{"$f":"Time!TEN$11","v":0},{"$f":"Time!TEO$11","v":0},{"$f":"Time!TEP$11","v":0},{"$f":"Time!TEQ$11","v":0},{"$f":"Time!TER$11","v":0},{"$f":"Time!TES$11","v":0},{"$f":"Time!TET$11","v":0},{"$f":"Time!TEU$11","v":0},{"$f":"Time!TEV$11","v":0},{"$f":"Time!TEW$11","v":0},{"$f":"Time!TEX$11","v":0},{"$f":"Time!TEY$11","v":0},{"$f":"Time!TEZ$11","v":0},{"$f":"Time!TFA$11","v":0},{"$f":"Time!TFB$11","v":0},{"$f":"Time!TFC$11","v":0},{"$f":"Time!TFD$11","v":0},{"$f":"Time!TFE$11","v":0},{"$f":"Time!TFF$11","v":0},{"$f":"Time!TFG$11","v":0},{"$f":"Time!TFH$11","v":0},{"$f":"Time!TFI$11","v":0},{"$f":"Time!TFJ$11","v":0},{"$f":"Time!TFK$11","v":0},{"$f":"Time!TFL$11","v":0},{"$f":"Time!TFM$11","v":0},{"$f":"Time!TFN$11","v":0},{"$f":"Time!TFO$11","v":0},{"$f":"Time!TFP$11","v":0},{"$f":"Time!TFQ$11","v":0},{"$f":"Time!TFR$11","v":0},{"$f":"Time!TFS$11","v":0},{"$f":"Time!TFT$11","v":0},{"$f":"Time!TFU$11","v":0},{"$f":"Time!TFV$11","v":0},{"$f":"Time!TFW$11","v":0},{"$f":"Time!TFX$11","v":0},{"$f":"Time!TFY$11","v":0},{"$f":"Time!TFZ$11","v":0},{"$f":"Time!TGA$11","v":0},{"$f":"Time!TGB$11","v":0},{"$f":"Time!TGC$11","v":0},{"$f":"Time!TGD$11","v":0},{"$f":"Time!TGE$11","v":0},{"$f":"Time!TGF$11","v":0},{"$f":"Time!TGG$11","v":0},{"$f":"Time!TGH$11","v":0},{"$f":"Time!TGI$11","v":0},{"$f":"Time!TGJ$11","v":0},{"$f":"Time!TGK$11","v":0},{"$f":"Time!TGL$11","v":0},{"$f":"Time!TGM$11","v":0},{"$f":"Time!TGN$11","v":0},{"$f":"Time!TGO$11","v":0},{"$f":"Time!TGP$11","v":0},{"$f":"Time!TGQ$11","v":0},{"$f":"Time!TGR$11","v":0},{"$f":"Time!TGS$11","v":0},{"$f":"Time!TGT$11","v":0},{"$f":"Time!TGU$11","v":0},{"$f":"Time!TGV$11","v":0},{"$f":"Time!TGW$11","v":0},{"$f":"Time!TGX$11","v":0},{"$f":"Time!TGY$11","v":0},{"$f":"Time!TGZ$11","v":0},{"$f":"Time!THA$11","v":0},{"$f":"Time!THB$11","v":0},{"$f":"Time!THC$11","v":0},{"$f":"Time!THD$11","v":0},{"$f":"Time!THE$11","v":0},{"$f":"Time!THF$11","v":0},{"$f":"Time!THG$11","v":0},{"$f":"Time!THH$11","v":0},{"$f":"Time!THI$11","v":0},{"$f":"Time!THJ$11","v":0},{"$f":"Time!THK$11","v":0},{"$f":"Time!THL$11","v":0},{"$f":"Time!THM$11","v":0},{"$f":"Time!THN$11","v":0},{"$f":"Time!THO$11","v":0},{"$f":"Time!THP$11","v":0},{"$f":"Time!THQ$11","v":0},{"$f":"Time!THR$11","v":0},{"$f":"Time!THS$11","v":0},{"$f":"Time!THT$11","v":0},{"$f":"Time!THU$11","v":0},{"$f":"Time!THV$11","v":0},{"$f":"Time!THW$11","v":0},{"$f":"Time!THX$11","v":0},{"$f":"Time!THY$11","v":0},{"$f":"Time!THZ$11","v":0},{"$f":"Time!TIA$11","v":0},{"$f":"Time!TIB$11","v":0},{"$f":"Time!TIC$11","v":0},{"$f":"Time!TID$11","v":0},{"$f":"Time!TIE$11","v":0},{"$f":"Time!TIF$11","v":0},{"$f":"Time!TIG$11","v":0},{"$f":"Time!TIH$11","v":0},{"$f":"Time!TII$11","v":0},{"$f":"Time!TIJ$11","v":0},{"$f":"Time!TIK$11","v":0},{"$f":"Time!TIL$11","v":0},{"$f":"Time!TIM$11","v":0},{"$f":"Time!TIN$11","v":0},{"$f":"Time!TIO$11","v":0},{"$f":"Time!TIP$11","v":0},{"$f":"Time!TIQ$11","v":0},{"$f":"Time!TIR$11","v":0},{"$f":"Time!TIS$11","v":0},{"$f":"Time!TIT$11","v":0},{"$f":"Time!TIU$11","v":0},{"$f":"Time!TIV$11","v":0},{"$f":"Time!TIW$11","v":0},{"$f":"Time!TIX$11","v":0},{"$f":"Time!TIY$11","v":0},{"$f":"Time!TIZ$11","v":0},{"$f":"Time!TJA$11","v":0},{"$f":"Time!TJB$11","v":0},{"$f":"Time!TJC$11","v":0},{"$f":"Time!TJD$11","v":0},{"$f":"Time!TJE$11","v":0},{"$f":"Time!TJF$11","v":0},{"$f":"Time!TJG$11","v":0},{"$f":"Time!TJH$11","v":0},{"$f":"Time!TJI$11","v":0},{"$f":"Time!TJJ$11","v":0},{"$f":"Time!TJK$11","v":0},{"$f":"Time!TJL$11","v":0},{"$f":"Time!TJM$11","v":0},{"$f":"Time!TJN$11","v":0},{"$f":"Time!TJO$11","v":0},{"$f":"Time!TJP$11","v":0},{"$f":"Time!TJQ$11","v":0},{"$f":"Time!TJR$11","v":0},{"$f":"Time!TJS$11","v":0},{"$f":"Time!TJT$11","v":0},{"$f":"Time!TJU$11","v":0},{"$f":"Time!TJV$11","v":0},{"$f":"Time!TJW$11","v":0},{"$f":"Time!TJX$11","v":0},{"$f":"Time!TJY$11","v":0},{"$f":"Time!TJZ$11","v":0},{"$f":"Time!TKA$11","v":0},{"$f":"Time!TKB$11","v":0},{"$f":"Time!TKC$11","v":0},{"$f":"Time!TKD$11","v":0},{"$f":"Time!TKE$11","v":0},{"$f":"Time!TKF$11","v":0},{"$f":"Time!TKG$11","v":0},{"$f":"Time!TKH$11","v":0},{"$f":"Time!TKI$11","v":0},{"$f":"Time!TKJ$11","v":0},{"$f":"Time!TKK$11","v":0},{"$f":"Time!TKL$11","v":0},{"$f":"Time!TKM$11","v":0},{"$f":"Time!TKN$11","v":0},{"$f":"Time!TKO$11","v":0},{"$f":"Time!TKP$11","v":0},{"$f":"Time!TKQ$11","v":0},{"$f":"Time!TKR$11","v":0},{"$f":"Time!TKS$11","v":0},{"$f":"Time!TKT$11","v":0},{"$f":"Time!TKU$11","v":0},{"$f":"Time!TKV$11","v":0},{"$f":"Time!TKW$11","v":0},{"$f":"Time!TKX$11","v":0},{"$f":"Time!TKY$11","v":0},{"$f":"Time!TKZ$11","v":0},{"$f":"Time!TLA$11","v":0},{"$f":"Time!TLB$11","v":0},{"$f":"Time!TLC$11","v":0},{"$f":"Time!TLD$11","v":0},{"$f":"Time!TLE$11","v":0},{"$f":"Time!TLF$11","v":0},{"$f":"Time!TLG$11","v":0},{"$f":"Time!TLH$11","v":0},{"$f":"Time!TLI$11","v":0},{"$f":"Time!TLJ$11","v":0},{"$f":"Time!TLK$11","v":0},{"$f":"Time!TLL$11","v":0},{"$f":"Time!TLM$11","v":0},{"$f":"Time!TLN$11","v":0},{"$f":"Time!TLO$11","v":0},{"$f":"Time!TLP$11","v":0},{"$f":"Time!TLQ$11","v":0},{"$f":"Time!TLR$11","v":0},{"$f":"Time!TLS$11","v":0},{"$f":"Time!TLT$11","v":0},{"$f":"Time!TLU$11","v":0},{"$f":"Time!TLV$11","v":0},{"$f":"Time!TLW$11","v":0},{"$f":"Time!TLX$11","v":0},{"$f":"Time!TLY$11","v":0},{"$f":"Time!TLZ$11","v":0},{"$f":"Time!TMA$11","v":0},{"$f":"Time!TMB$11","v":0},{"$f":"Time!TMC$11","v":0},{"$f":"Time!TMD$11","v":0},{"$f":"Time!TME$11","v":0},{"$f":"Time!TMF$11","v":0},{"$f":"Time!TMG$11","v":0},{"$f":"Time!TMH$11","v":0},{"$f":"Time!TMI$11","v":0},{"$f":"Time!TMJ$11","v":0},{"$f":"Time!TMK$11","v":0},{"$f":"Time!TML$11","v":0},{"$f":"Time!TMM$11","v":0},{"$f":"Time!TMN$11","v":0},{"$f":"Time!TMO$11","v":0},{"$f":"Time!TMP$11","v":0},{"$f":"Time!TMQ$11","v":0},{"$f":"Time!TMR$11","v":0},{"$f":"Time!TMS$11","v":0},{"$f":"Time!TMT$11","v":0},{"$f":"Time!TMU$11","v":0},{"$f":"Time!TMV$11","v":0},{"$f":"Time!TMW$11","v":0},{"$f":"Time!TMX$11","v":0},{"$f":"Time!TMY$11","v":0},{"$f":"Time!TMZ$11","v":0},{"$f":"Time!TNA$11","v":0},{"$f":"Time!TNB$11","v":0},{"$f":"Time!TNC$11","v":0},{"$f":"Time!TND$11","v":0},{"$f":"Time!TNE$11","v":0},{"$f":"Time!TNF$11","v":0},{"$f":"Time!TNG$11","v":0},{"$f":"Time!TNH$11","v":0},{"$f":"Time!TNI$11","v":0},{"$f":"Time!TNJ$11","v":0},{"$f":"Time!TNK$11","v":0},{"$f":"Time!TNL$11","v":0},{"$f":"Time!TNM$11","v":0},{"$f":"Time!TNN$11","v":0},{"$f":"Time!TNO$11","v":0},{"$f":"Time!TNP$11","v":0},{"$f":"Time!TNQ$11","v":0},{"$f":"Time!TNR$11","v":0},{"$f":"Time!TNS$11","v":0},{"$f":"Time!TNT$11","v":0},{"$f":"Time!TNU$11","v":0},{"$f":"Time!TNV$11","v":0},{"$f":"Time!TNW$11","v":0},{"$f":"Time!TNX$11","v":0},{"$f":"Time!TNY$11","v":0},{"$f":"Time!TNZ$11","v":0},{"$f":"Time!TOA$11","v":0},{"$f":"Time!TOB$11","v":0},{"$f":"Time!TOC$11","v":0},{"$f":"Time!TOD$11","v":0},{"$f":"Time!TOE$11","v":0},{"$f":"Time!TOF$11","v":0},{"$f":"Time!TOG$11","v":0},{"$f":"Time!TOH$11","v":0},{"$f":"Time!TOI$11","v":0},{"$f":"Time!TOJ$11","v":0},{"$f":"Time!TOK$11","v":0},{"$f":"Time!TOL$11","v":0},{"$f":"Time!TOM$11","v":0},{"$f":"Time!TON$11","v":0},{"$f":"Time!TOO$11","v":0},{"$f":"Time!TOP$11","v":0},{"$f":"Time!TOQ$11","v":0},{"$f":"Time!TOR$11","v":0},{"$f":"Time!TOS$11","v":0},{"$f":"Time!TOT$11","v":0},{"$f":"Time!TOU$11","v":0},{"$f":"Time!TOV$11","v":0},{"$f":"Time!TOW$11","v":0},{"$f":"Time!TOX$11","v":0},{"$f":"Time!TOY$11","v":0},{"$f":"Time!TOZ$11","v":0},{"$f":"Time!TPA$11","v":0},{"$f":"Time!TPB$11","v":0},{"$f":"Time!TPC$11","v":0},{"$f":"Time!TPD$11","v":0},{"$f":"Time!TPE$11","v":0},{"$f":"Time!TPF$11","v":0},{"$f":"Time!TPG$11","v":0},{"$f":"Time!TPH$11","v":0},{"$f":"Time!TPI$11","v":0},{"$f":"Time!TPJ$11","v":0},{"$f":"Time!TPK$11","v":0},{"$f":"Time!TPL$11","v":0},{"$f":"Time!TPM$11","v":0},{"$f":"Time!TPN$11","v":0},{"$f":"Time!TPO$11","v":0},{"$f":"Time!TPP$11","v":0},{"$f":"Time!TPQ$11","v":0},{"$f":"Time!TPR$11","v":0},{"$f":"Time!TPS$11","v":0},{"$f":"Time!TPT$11","v":0},{"$f":"Time!TPU$11","v":0},{"$f":"Time!TPV$11","v":0},{"$f":"Time!TPW$11","v":0},{"$f":"Time!TPX$11","v":0},{"$f":"Time!TPY$11","v":0},{"$f":"Time!TPZ$11","v":0},{"$f":"Time!TQA$11","v":0},{"$f":"Time!TQB$11","v":0},{"$f":"Time!TQC$11","v":0},{"$f":"Time!TQD$11","v":0},{"$f":"Time!TQE$11","v":0},{"$f":"Time!TQF$11","v":0},{"$f":"Time!TQG$11","v":0},{"$f":"Time!TQH$11","v":0},{"$f":"Time!TQI$11","v":0},{"$f":"Time!TQJ$11","v":0},{"$f":"Time!TQK$11","v":0},{"$f":"Time!TQL$11","v":0},{"$f":"Time!TQM$11","v":0},{"$f":"Time!TQN$11","v":0},{"$f":"Time!TQO$11","v":0},{"$f":"Time!TQP$11","v":0},{"$f":"Time!TQQ$11","v":0},{"$f":"Time!TQR$11","v":0},{"$f":"Time!TQS$11","v":0},{"$f":"Time!TQT$11","v":0},{"$f":"Time!TQU$11","v":0},{"$f":"Time!TQV$11","v":0},{"$f":"Time!TQW$11","v":0},{"$f":"Time!TQX$11","v":0},{"$f":"Time!TQY$11","v":0},{"$f":"Time!TQZ$11","v":0},{"$f":"Time!TRA$11","v":0},{"$f":"Time!TRB$11","v":0},{"$f":"Time!TRC$11","v":0},{"$f":"Time!TRD$11","v":0},{"$f":"Time!TRE$11","v":0},{"$f":"Time!TRF$11","v":0},{"$f":"Time!TRG$11","v":0},{"$f":"Time!TRH$11","v":0},{"$f":"Time!TRI$11","v":0},{"$f":"Time!TRJ$11","v":0},{"$f":"Time!TRK$11","v":0},{"$f":"Time!TRL$11","v":0},{"$f":"Time!TRM$11","v":0},{"$f":"Time!TRN$11","v":0},{"$f":"Time!TRO$11","v":0},{"$f":"Time!TRP$11","v":0},{"$f":"Time!TRQ$11","v":0},{"$f":"Time!TRR$11","v":0},{"$f":"Time!TRS$11","v":0},{"$f":"Time!TRT$11","v":0},{"$f":"Time!TRU$11","v":0},{"$f":"Time!TRV$11","v":0},{"$f":"Time!TRW$11","v":0},{"$f":"Time!TRX$11","v":0},{"$f":"Time!TRY$11","v":0},{"$f":"Time!TRZ$11","v":0},{"$f":"Time!TSA$11","v":0},{"$f":"Time!TSB$11","v":0},{"$f":"Time!TSC$11","v":0},{"$f":"Time!TSD$11","v":0},{"$f":"Time!TSE$11","v":0},{"$f":"Time!TSF$11","v":0},{"$f":"Time!TSG$11","v":0},{"$f":"Time!TSH$11","v":0},{"$f":"Time!TSI$11","v":0},{"$f":"Time!TSJ$11","v":0},{"$f":"Time!TSK$11","v":0},{"$f":"Time!TSL$11","v":0},{"$f":"Time!TSM$11","v":0},{"$f":"Time!TSN$11","v":0},{"$f":"Time!TSO$11","v":0},{"$f":"Time!TSP$11","v":0},{"$f":"Time!TSQ$11","v":0},{"$f":"Time!TSR$11","v":0},{"$f":"Time!TSS$11","v":0},{"$f":"Time!TST$11","v":0},{"$f":"Time!TSU$11","v":0},{"$f":"Time!TSV$11","v":0},{"$f":"Time!TSW$11","v":0},{"$f":"Time!TSX$11","v":0},{"$f":"Time!TSY$11","v":0},{"$f":"Time!TSZ$11","v":0},{"$f":"Time!TTA$11","v":0},{"$f":"Time!TTB$11","v":0},{"$f":"Time!TTC$11","v":0},{"$f":"Time!TTD$11","v":0},{"$f":"Time!TTE$11","v":0},{"$f":"Time!TTF$11","v":0},{"$f":"Time!TTG$11","v":0},{"$f":"Time!TTH$11","v":0},{"$f":"Time!TTI$11","v":0},{"$f":"Time!TTJ$11","v":0},{"$f":"Time!TTK$11","v":0},{"$f":"Time!TTL$11","v":0},{"$f":"Time!TTM$11","v":0},{"$f":"Time!TTN$11","v":0},{"$f":"Time!TTO$11","v":0},{"$f":"Time!TTP$11","v":0},{"$f":"Time!TTQ$11","v":0},{"$f":"Time!TTR$11","v":0},{"$f":"Time!TTS$11","v":0},{"$f":"Time!TTT$11","v":0},{"$f":"Time!TTU$11","v":0},{"$f":"Time!TTV$11","v":0},{"$f":"Time!TTW$11","v":0},{"$f":"Time!TTX$11","v":0},{"$f":"Time!TTY$11","v":0},{"$f":"Time!TTZ$11","v":0},{"$f":"Time!TUA$11","v":0},{"$f":"Time!TUB$11","v":0},{"$f":"Time!TUC$11","v":0},{"$f":"Time!TUD$11","v":0},{"$f":"Time!TUE$11","v":0},{"$f":"Time!TUF$11","v":0},{"$f":"Time!TUG$11","v":0},{"$f":"Time!TUH$11","v":0},{"$f":"Time!TUI$11","v":0},{"$f":"Time!TUJ$11","v":0},{"$f":"Time!TUK$11","v":0},{"$f":"Time!TUL$11","v":0},{"$f":"Time!TUM$11","v":0},{"$f":"Time!TUN$11","v":0},{"$f":"Time!TUO$11","v":0},{"$f":"Time!TUP$11","v":0},{"$f":"Time!TUQ$11","v":0},{"$f":"Time!TUR$11","v":0},{"$f":"Time!TUS$11","v":0},{"$f":"Time!TUT$11","v":0},{"$f":"Time!TUU$11","v":0},{"$f":"Time!TUV$11","v":0},{"$f":"Time!TUW$11","v":0},{"$f":"Time!TUX$11","v":0},{"$f":"Time!TUY$11","v":0},{"$f":"Time!TUZ$11","v":0},{"$f":"Time!TVA$11","v":0},{"$f":"Time!TVB$11","v":0},{"$f":"Time!TVC$11","v":0},{"$f":"Time!TVD$11","v":0},{"$f":"Time!TVE$11","v":0},{"$f":"Time!TVF$11","v":0},{"$f":"Time!TVG$11","v":0},{"$f":"Time!TVH$11","v":0},{"$f":"Time!TVI$11","v":0},{"$f":"Time!TVJ$11","v":0},{"$f":"Time!TVK$11","v":0},{"$f":"Time!TVL$11","v":0},{"$f":"Time!TVM$11","v":0},{"$f":"Time!TVN$11","v":0},{"$f":"Time!TVO$11","v":0},{"$f":"Time!TVP$11","v":0},{"$f":"Time!TVQ$11","v":0},{"$f":"Time!TVR$11","v":0},{"$f":"Time!TVS$11","v":0},{"$f":"Time!TVT$11","v":0},{"$f":"Time!TVU$11","v":0},{"$f":"Time!TVV$11","v":0},{"$f":"Time!TVW$11","v":0},{"$f":"Time!TVX$11","v":0},{"$f":"Time!TVY$11","v":0},{"$f":"Time!TVZ$11","v":0},{"$f":"Time!TWA$11","v":0},{"$f":"Time!TWB$11","v":0},{"$f":"Time!TWC$11","v":0},{"$f":"Time!TWD$11","v":0},{"$f":"Time!TWE$11","v":0},{"$f":"Time!TWF$11","v":0},{"$f":"Time!TWG$11","v":0},{"$f":"Time!TWH$11","v":0},{"$f":"Time!TWI$11","v":0},{"$f":"Time!TWJ$11","v":0},{"$f":"Time!TWK$11","v":0},{"$f":"Time!TWL$11","v":0},{"$f":"Time!TWM$11","v":0},{"$f":"Time!TWN$11","v":0},{"$f":"Time!TWO$11","v":0},{"$f":"Time!TWP$11","v":0},{"$f":"Time!TWQ$11","v":0},{"$f":"Time!TWR$11","v":0},{"$f":"Time!TWS$11","v":0},{"$f":"Time!TWT$11","v":0},{"$f":"Time!TWU$11","v":0},{"$f":"Time!TWV$11","v":0},{"$f":"Time!TWW$11","v":0},{"$f":"Time!TWX$11","v":0},{"$f":"Time!TWY$11","v":0},{"$f":"Time!TWZ$11","v":0},{"$f":"Time!TXA$11","v":0},{"$f":"Time!TXB$11","v":0},{"$f":"Time!TXC$11","v":0},{"$f":"Time!TXD$11","v":0},{"$f":"Time!TXE$11","v":0},{"$f":"Time!TXF$11","v":0},{"$f":"Time!TXG$11","v":0},{"$f":"Time!TXH$11","v":0},{"$f":"Time!TXI$11","v":0},{"$f":"Time!TXJ$11","v":0},{"$f":"Time!TXK$11","v":0},{"$f":"Time!TXL$11","v":0},{"$f":"Time!TXM$11","v":0},{"$f":"Time!TXN$11","v":0},{"$f":"Time!TXO$11","v":0},{"$f":"Time!TXP$11","v":0},{"$f":"Time!TXQ$11","v":0},{"$f":"Time!TXR$11","v":0},{"$f":"Time!TXS$11","v":0},{"$f":"Time!TXT$11","v":0},{"$f":"Time!TXU$11","v":0},{"$f":"Time!TXV$11","v":0},{"$f":"Time!TXW$11","v":0},{"$f":"Time!TXX$11","v":0},{"$f":"Time!TXY$11","v":0},{"$f":"Time!TXZ$11","v":0},{"$f":"Time!TYA$11","v":0},{"$f":"Time!TYB$11","v":0},{"$f":"Time!TYC$11","v":0},{"$f":"Time!TYD$11","v":0},{"$f":"Time!TYE$11","v":0},{"$f":"Time!TYF$11","v":0},{"$f":"Time!TYG$11","v":0},{"$f":"Time!TYH$11","v":0},{"$f":"Time!TYI$11","v":0},{"$f":"Time!TYJ$11","v":0},{"$f":"Time!TYK$11","v":0},{"$f":"Time!TYL$11","v":0},{"$f":"Time!TYM$11","v":0},{"$f":"Time!TYN$11","v":0},{"$f":"Time!TYO$11","v":0},{"$f":"Time!TYP$11","v":0},{"$f":"Time!TYQ$11","v":0},{"$f":"Time!TYR$11","v":0},{"$f":"Time!TYS$11","v":0},{"$f":"Time!TYT$11","v":0},{"$f":"Time!TYU$11","v":0},{"$f":"Time!TYV$11","v":0},{"$f":"Time!TYW$11","v":0},{"$f":"Time!TYX$11","v":0},{"$f":"Time!TYY$11","v":0},{"$f":"Time!TYZ$11","v":0},{"$f":"Time!TZA$11","v":0},{"$f":"Time!TZB$11","v":0},{"$f":"Time!TZC$11","v":0},{"$f":"Time!TZD$11","v":0},{"$f":"Time!TZE$11","v":0},{"$f":"Time!TZF$11","v":0},{"$f":"Time!TZG$11","v":0},{"$f":"Time!TZH$11","v":0},{"$f":"Time!TZI$11","v":0},{"$f":"Time!TZJ$11","v":0},{"$f":"Time!TZK$11","v":0},{"$f":"Time!TZL$11","v":0},{"$f":"Time!TZM$11","v":0},{"$f":"Time!TZN$11","v":0},{"$f":"Time!TZO$11","v":0},{"$f":"Time!TZP$11","v":0},{"$f":"Time!TZQ$11","v":0},{"$f":"Time!TZR$11","v":0},{"$f":"Time!TZS$11","v":0},{"$f":"Time!TZT$11","v":0},{"$f":"Time!TZU$11","v":0},{"$f":"Time!TZV$11","v":0},{"$f":"Time!TZW$11","v":0},{"$f":"Time!TZX$11","v":0},{"$f":"Time!TZY$11","v":0},{"$f":"Time!TZZ$11","v":0},{"$f":"Time!UAA$11","v":0},{"$f":"Time!UAB$11","v":0},{"$f":"Time!UAC$11","v":0},{"$f":"Time!UAD$11","v":0},{"$f":"Time!UAE$11","v":0},{"$f":"Time!UAF$11","v":0},{"$f":"Time!UAG$11","v":0},{"$f":"Time!UAH$11","v":0},{"$f":"Time!UAI$11","v":0},{"$f":"Time!UAJ$11","v":0},{"$f":"Time!UAK$11","v":0},{"$f":"Time!UAL$11","v":0},{"$f":"Time!UAM$11","v":0},{"$f":"Time!UAN$11","v":0},{"$f":"Time!UAO$11","v":0},{"$f":"Time!UAP$11","v":0},{"$f":"Time!UAQ$11","v":0},{"$f":"Time!UAR$11","v":0},{"$f":"Time!UAS$11","v":0},{"$f":"Time!UAT$11","v":0},{"$f":"Time!UAU$11","v":0},{"$f":"Time!UAV$11","v":0},{"$f":"Time!UAW$11","v":0},{"$f":"Time!UAX$11","v":0},{"$f":"Time!UAY$11","v":0},{"$f":"Time!UAZ$11","v":0},{"$f":"Time!UBA$11","v":0},{"$f":"Time!UBB$11","v":0},{"$f":"Time!UBC$11","v":0},{"$f":"Time!UBD$11","v":0},{"$f":"Time!UBE$11","v":0},{"$f":"Time!UBF$11","v":0},{"$f":"Time!UBG$11","v":0},{"$f":"Time!UBH$11","v":0},{"$f":"Time!UBI$11","v":0},{"$f":"Time!UBJ$11","v":0},{"$f":"Time!UBK$11","v":0},{"$f":"Time!UBL$11","v":0},{"$f":"Time!UBM$11","v":0},{"$f":"Time!UBN$11","v":0},{"$f":"Time!UBO$11","v":0},{"$f":"Time!UBP$11","v":0},{"$f":"Time!UBQ$11","v":0},{"$f":"Time!UBR$11","v":0},{"$f":"Time!UBS$11","v":0},{"$f":"Time!UBT$11","v":0},{"$f":"Time!UBU$11","v":0},{"$f":"Time!UBV$11","v":0},{"$f":"Time!UBW$11","v":0},{"$f":"Time!UBX$11","v":0},{"$f":"Time!UBY$11","v":0},{"$f":"Time!UBZ$11","v":0},{"$f":"Time!UCA$11","v":0},{"$f":"Time!UCB$11","v":0},{"$f":"Time!UCC$11","v":0},{"$f":"Time!UCD$11","v":0},{"$f":"Time!UCE$11","v":0},{"$f":"Time!UCF$11","v":0},{"$f":"Time!UCG$11","v":0},{"$f":"Time!UCH$11","v":0},{"$f":"Time!UCI$11","v":0},{"$f":"Time!UCJ$11","v":0},{"$f":"Time!UCK$11","v":0},{"$f":"Time!UCL$11","v":0},{"$f":"Time!UCM$11","v":0},{"$f":"Time!UCN$11","v":0},{"$f":"Time!UCO$11","v":0},{"$f":"Time!UCP$11","v":0},{"$f":"Time!UCQ$11","v":0},{"$f":"Time!UCR$11","v":0},{"$f":"Time!UCS$11","v":0},{"$f":"Time!UCT$11","v":0},{"$f":"Time!UCU$11","v":0},{"$f":"Time!UCV$11","v":0},{"$f":"Time!UCW$11","v":0},{"$f":"Time!UCX$11","v":0},{"$f":"Time!UCY$11","v":0},{"$f":"Time!UCZ$11","v":0},{"$f":"Time!UDA$11","v":0},{"$f":"Time!UDB$11","v":0},{"$f":"Time!UDC$11","v":0},{"$f":"Time!UDD$11","v":0},{"$f":"Time!UDE$11","v":0},{"$f":"Time!UDF$11","v":0},{"$f":"Time!UDG$11","v":0},{"$f":"Time!UDH$11","v":0},{"$f":"Time!UDI$11","v":0},{"$f":"Time!UDJ$11","v":0},{"$f":"Time!UDK$11","v":0},{"$f":"Time!UDL$11","v":0},{"$f":"Time!UDM$11","v":0},{"$f":"Time!UDN$11","v":0},{"$f":"Time!UDO$11","v":0},{"$f":"Time!UDP$11","v":0},{"$f":"Time!UDQ$11","v":0},{"$f":"Time!UDR$11","v":0},{"$f":"Time!UDS$11","v":0},{"$f":"Time!UDT$11","v":0},{"$f":"Time!UDU$11","v":0},{"$f":"Time!UDV$11","v":0},{"$f":"Time!UDW$11","v":0},{"$f":"Time!UDX$11","v":0},{"$f":"Time!UDY$11","v":0},{"$f":"Time!UDZ$11","v":0},{"$f":"Time!UEA$11","v":0},{"$f":"Time!UEB$11","v":0},{"$f":"Time!UEC$11","v":0},{"$f":"Time!UED$11","v":0},{"$f":"Time!UEE$11","v":0},{"$f":"Time!UEF$11","v":0},{"$f":"Time!UEG$11","v":0},{"$f":"Time!UEH$11","v":0},{"$f":"Time!UEI$11","v":0},{"$f":"Time!UEJ$11","v":0},{"$f":"Time!UEK$11","v":0},{"$f":"Time!UEL$11","v":0},{"$f":"Time!UEM$11","v":0},{"$f":"Time!UEN$11","v":0},{"$f":"Time!UEO$11","v":0},{"$f":"Time!UEP$11","v":0},{"$f":"Time!UEQ$11","v":0},{"$f":"Time!UER$11","v":0},{"$f":"Time!UES$11","v":0},{"$f":"Time!UET$11","v":0},{"$f":"Time!UEU$11","v":0},{"$f":"Time!UEV$11","v":0},{"$f":"Time!UEW$11","v":0},{"$f":"Time!UEX$11","v":0},{"$f":"Time!UEY$11","v":0},{"$f":"Time!UEZ$11","v":0},{"$f":"Time!UFA$11","v":0},{"$f":"Time!UFB$11","v":0},{"$f":"Time!UFC$11","v":0},{"$f":"Time!UFD$11","v":0},{"$f":"Time!UFE$11","v":0},{"$f":"Time!UFF$11","v":0},{"$f":"Time!UFG$11","v":0},{"$f":"Time!UFH$11","v":0},{"$f":"Time!UFI$11","v":0},{"$f":"Time!UFJ$11","v":0},{"$f":"Time!UFK$11","v":0},{"$f":"Time!UFL$11","v":0},{"$f":"Time!UFM$11","v":0},{"$f":"Time!UFN$11","v":0},{"$f":"Time!UFO$11","v":0},{"$f":"Time!UFP$11","v":0},{"$f":"Time!UFQ$11","v":0},{"$f":"Time!UFR$11","v":0},{"$f":"Time!UFS$11","v":0},{"$f":"Time!UFT$11","v":0},{"$f":"Time!UFU$11","v":0},{"$f":"Time!UFV$11","v":0},{"$f":"Time!UFW$11","v":0},{"$f":"Time!UFX$11","v":0},{"$f":"Time!UFY$11","v":0},{"$f":"Time!UFZ$11","v":0},{"$f":"Time!UGA$11","v":0},{"$f":"Time!UGB$11","v":0},{"$f":"Time!UGC$11","v":0},{"$f":"Time!UGD$11","v":0},{"$f":"Time!UGE$11","v":0},{"$f":"Time!UGF$11","v":0},{"$f":"Time!UGG$11","v":0},{"$f":"Time!UGH$11","v":0},{"$f":"Time!UGI$11","v":0},{"$f":"Time!UGJ$11","v":0},{"$f":"Time!UGK$11","v":0},{"$f":"Time!UGL$11","v":0},{"$f":"Time!UGM$11","v":0},{"$f":"Time!UGN$11","v":0},{"$f":"Time!UGO$11","v":0},{"$f":"Time!UGP$11","v":0},{"$f":"Time!UGQ$11","v":0},{"$f":"Time!UGR$11","v":0},{"$f":"Time!UGS$11","v":0},{"$f":"Time!UGT$11","v":0},{"$f":"Time!UGU$11","v":0},{"$f":"Time!UGV$11","v":0},{"$f":"Time!UGW$11","v":0},{"$f":"Time!UGX$11","v":0},{"$f":"Time!UGY$11","v":0},{"$f":"Time!UGZ$11","v":0},{"$f":"Time!UHA$11","v":0},{"$f":"Time!UHB$11","v":0},{"$f":"Time!UHC$11","v":0},{"$f":"Time!UHD$11","v":0},{"$f":"Time!UHE$11","v":0},{"$f":"Time!UHF$11","v":0},{"$f":"Time!UHG$11","v":0},{"$f":"Time!UHH$11","v":0},{"$f":"Time!UHI$11","v":0},{"$f":"Time!UHJ$11","v":0},{"$f":"Time!UHK$11","v":0},{"$f":"Time!UHL$11","v":0},{"$f":"Time!UHM$11","v":0},{"$f":"Time!UHN$11","v":0},{"$f":"Time!UHO$11","v":0},{"$f":"Time!UHP$11","v":0},{"$f":"Time!UHQ$11","v":0},{"$f":"Time!UHR$11","v":0},{"$f":"Time!UHS$11","v":0},{"$f":"Time!UHT$11","v":0},{"$f":"Time!UHU$11","v":0},{"$f":"Time!UHV$11","v":0},{"$f":"Time!UHW$11","v":0},{"$f":"Time!UHX$11","v":0},{"$f":"Time!UHY$11","v":0},{"$f":"Time!UHZ$11","v":0},{"$f":"Time!UIA$11","v":0},{"$f":"Time!UIB$11","v":0},{"$f":"Time!UIC$11","v":0},{"$f":"Time!UID$11","v":0},{"$f":"Time!UIE$11","v":0},{"$f":"Time!UIF$11","v":0},{"$f":"Time!UIG$11","v":0},{"$f":"Time!UIH$11","v":0},{"$f":"Time!UII$11","v":0},{"$f":"Time!UIJ$11","v":0},{"$f":"Time!UIK$11","v":0},{"$f":"Time!UIL$11","v":0},{"$f":"Time!UIM$11","v":0},{"$f":"Time!UIN$11","v":0},{"$f":"Time!UIO$11","v":0},{"$f":"Time!UIP$11","v":0},{"$f":"Time!UIQ$11","v":0},{"$f":"Time!UIR$11","v":0},{"$f":"Time!UIS$11","v":0},{"$f":"Time!UIT$11","v":0},{"$f":"Time!UIU$11","v":0},{"$f":"Time!UIV$11","v":0},{"$f":"Time!UIW$11","v":0},{"$f":"Time!UIX$11","v":0},{"$f":"Time!UIY$11","v":0},{"$f":"Time!UIZ$11","v":0},{"$f":"Time!UJA$11","v":0},{"$f":"Time!UJB$11","v":0},{"$f":"Time!UJC$11","v":0},{"$f":"Time!UJD$11","v":0},{"$f":"Time!UJE$11","v":0},{"$f":"Time!UJF$11","v":0},{"$f":"Time!UJG$11","v":0},{"$f":"Time!UJH$11","v":0},{"$f":"Time!UJI$11","v":0},{"$f":"Time!UJJ$11","v":0},{"$f":"Time!UJK$11","v":0},{"$f":"Time!UJL$11","v":0},{"$f":"Time!UJM$11","v":0},{"$f":"Time!UJN$11","v":0},{"$f":"Time!UJO$11","v":0},{"$f":"Time!UJP$11","v":0},{"$f":"Time!UJQ$11","v":0},{"$f":"Time!UJR$11","v":0},{"$f":"Time!UJS$11","v":0},{"$f":"Time!UJT$11","v":0},{"$f":"Time!UJU$11","v":0},{"$f":"Time!UJV$11","v":0},{"$f":"Time!UJW$11","v":0},{"$f":"Time!UJX$11","v":0},{"$f":"Time!UJY$11","v":0},{"$f":"Time!UJZ$11","v":0},{"$f":"Time!UKA$11","v":0},{"$f":"Time!UKB$11","v":0},{"$f":"Time!UKC$11","v":0},{"$f":"Time!UKD$11","v":0},{"$f":"Time!UKE$11","v":0},{"$f":"Time!UKF$11","v":0},{"$f":"Time!UKG$11","v":0},{"$f":"Time!UKH$11","v":0},{"$f":"Time!UKI$11","v":0},{"$f":"Time!UKJ$11","v":0},{"$f":"Time!UKK$11","v":0},{"$f":"Time!UKL$11","v":0},{"$f":"Time!UKM$11","v":0},{"$f":"Time!UKN$11","v":0},{"$f":"Time!UKO$11","v":0},{"$f":"Time!UKP$11","v":0},{"$f":"Time!UKQ$11","v":0},{"$f":"Time!UKR$11","v":0},{"$f":"Time!UKS$11","v":0},{"$f":"Time!UKT$11","v":0},{"$f":"Time!UKU$11","v":0},{"$f":"Time!UKV$11","v":0},{"$f":"Time!UKW$11","v":0},{"$f":"Time!UKX$11","v":0},{"$f":"Time!UKY$11","v":0},{"$f":"Time!UKZ$11","v":0},{"$f":"Time!ULA$11","v":0},{"$f":"Time!ULB$11","v":0},{"$f":"Time!ULC$11","v":0},{"$f":"Time!ULD$11","v":0},{"$f":"Time!ULE$11","v":0},{"$f":"Time!ULF$11","v":0},{"$f":"Time!ULG$11","v":0},{"$f":"Time!ULH$11","v":0},{"$f":"Time!ULI$11","v":0},{"$f":"Time!ULJ$11","v":0},{"$f":"Time!ULK$11","v":0},{"$f":"Time!ULL$11","v":0},{"$f":"Time!ULM$11","v":0},{"$f":"Time!ULN$11","v":0},{"$f":"Time!ULO$11","v":0},{"$f":"Time!ULP$11","v":0},{"$f":"Time!ULQ$11","v":0},{"$f":"Time!ULR$11","v":0},{"$f":"Time!ULS$11","v":0},{"$f":"Time!ULT$11","v":0},{"$f":"Time!ULU$11","v":0},{"$f":"Time!ULV$11","v":0},{"$f":"Time!ULW$11","v":0},{"$f":"Time!ULX$11","v":0},{"$f":"Time!ULY$11","v":0},{"$f":"Time!ULZ$11","v":0},{"$f":"Time!UMA$11","v":0},{"$f":"Time!UMB$11","v":0},{"$f":"Time!UMC$11","v":0},{"$f":"Time!UMD$11","v":0},{"$f":"Time!UME$11","v":0},{"$f":"Time!UMF$11","v":0},{"$f":"Time!UMG$11","v":0},{"$f":"Time!UMH$11","v":0},{"$f":"Time!UMI$11","v":0},{"$f":"Time!UMJ$11","v":0},{"$f":"Time!UMK$11","v":0},{"$f":"Time!UML$11","v":0},{"$f":"Time!UMM$11","v":0},{"$f":"Time!UMN$11","v":0},{"$f":"Time!UMO$11","v":0},{"$f":"Time!UMP$11","v":0},{"$f":"Time!UMQ$11","v":0},{"$f":"Time!UMR$11","v":0},{"$f":"Time!UMS$11","v":0},{"$f":"Time!UMT$11","v":0},{"$f":"Time!UMU$11","v":0},{"$f":"Time!UMV$11","v":0},{"$f":"Time!UMW$11","v":0},{"$f":"Time!UMX$11","v":0},{"$f":"Time!UMY$11","v":0},{"$f":"Time!UMZ$11","v":0},{"$f":"Time!UNA$11","v":0},{"$f":"Time!UNB$11","v":0},{"$f":"Time!UNC$11","v":0},{"$f":"Time!UND$11","v":0},{"$f":"Time!UNE$11","v":0},{"$f":"Time!UNF$11","v":0},{"$f":"Time!UNG$11","v":0},{"$f":"Time!UNH$11","v":0},{"$f":"Time!UNI$11","v":0},{"$f":"Time!UNJ$11","v":0},{"$f":"Time!UNK$11","v":0},{"$f":"Time!UNL$11","v":0},{"$f":"Time!UNM$11","v":0},{"$f":"Time!UNN$11","v":0},{"$f":"Time!UNO$11","v":0},{"$f":"Time!UNP$11","v":0},{"$f":"Time!UNQ$11","v":0},{"$f":"Time!UNR$11","v":0},{"$f":"Time!UNS$11","v":0},{"$f":"Time!UNT$11","v":0},{"$f":"Time!UNU$11","v":0},{"$f":"Time!UNV$11","v":0},{"$f":"Time!UNW$11","v":0},{"$f":"Time!UNX$11","v":0},{"$f":"Time!UNY$11","v":0},{"$f":"Time!UNZ$11","v":0},{"$f":"Time!UOA$11","v":0},{"$f":"Time!UOB$11","v":0},{"$f":"Time!UOC$11","v":0},{"$f":"Time!UOD$11","v":0},{"$f":"Time!UOE$11","v":0},{"$f":"Time!UOF$11","v":0},{"$f":"Time!UOG$11","v":0},{"$f":"Time!UOH$11","v":0},{"$f":"Time!UOI$11","v":0},{"$f":"Time!UOJ$11","v":0},{"$f":"Time!UOK$11","v":0},{"$f":"Time!UOL$11","v":0},{"$f":"Time!UOM$11","v":0},{"$f":"Time!UON$11","v":0},{"$f":"Time!UOO$11","v":0},{"$f":"Time!UOP$11","v":0},{"$f":"Time!UOQ$11","v":0},{"$f":"Time!UOR$11","v":0},{"$f":"Time!UOS$11","v":0},{"$f":"Time!UOT$11","v":0},{"$f":"Time!UOU$11","v":0},{"$f":"Time!UOV$11","v":0},{"$f":"Time!UOW$11","v":0},{"$f":"Time!UOX$11","v":0},{"$f":"Time!UOY$11","v":0},{"$f":"Time!UOZ$11","v":0},{"$f":"Time!UPA$11","v":0},{"$f":"Time!UPB$11","v":0},{"$f":"Time!UPC$11","v":0},{"$f":"Time!UPD$11","v":0},{"$f":"Time!UPE$11","v":0},{"$f":"Time!UPF$11","v":0},{"$f":"Time!UPG$11","v":0},{"$f":"Time!UPH$11","v":0},{"$f":"Time!UPI$11","v":0},{"$f":"Time!UPJ$11","v":0},{"$f":"Time!UPK$11","v":0},{"$f":"Time!UPL$11","v":0},{"$f":"Time!UPM$11","v":0},{"$f":"Time!UPN$11","v":0},{"$f":"Time!UPO$11","v":0},{"$f":"Time!UPP$11","v":0},{"$f":"Time!UPQ$11","v":0},{"$f":"Time!UPR$11","v":0},{"$f":"Time!UPS$11","v":0},{"$f":"Time!UPT$11","v":0},{"$f":"Time!UPU$11","v":0},{"$f":"Time!UPV$11","v":0},{"$f":"Time!UPW$11","v":0},{"$f":"Time!UPX$11","v":0},{"$f":"Time!UPY$11","v":0},{"$f":"Time!UPZ$11","v":0},{"$f":"Time!UQA$11","v":0},{"$f":"Time!UQB$11","v":0},{"$f":"Time!UQC$11","v":0},{"$f":"Time!UQD$11","v":0},{"$f":"Time!UQE$11","v":0},{"$f":"Time!UQF$11","v":0},{"$f":"Time!UQG$11","v":0},{"$f":"Time!UQH$11","v":0},{"$f":"Time!UQI$11","v":0},{"$f":"Time!UQJ$11","v":0},{"$f":"Time!UQK$11","v":0},{"$f":"Time!UQL$11","v":0},{"$f":"Time!UQM$11","v":0},{"$f":"Time!UQN$11","v":0},{"$f":"Time!UQO$11","v":0},{"$f":"Time!UQP$11","v":0},{"$f":"Time!UQQ$11","v":0},{"$f":"Time!UQR$11","v":0},{"$f":"Time!UQS$11","v":0},{"$f":"Time!UQT$11","v":0},{"$f":"Time!UQU$11","v":0},{"$f":"Time!UQV$11","v":0},{"$f":"Time!UQW$11","v":0},{"$f":"Time!UQX$11","v":0},{"$f":"Time!UQY$11","v":0},{"$f":"Time!UQZ$11","v":0},{"$f":"Time!URA$11","v":0},{"$f":"Time!URB$11","v":0},{"$f":"Time!URC$11","v":0},{"$f":"Time!URD$11","v":0},{"$f":"Time!URE$11","v":0},{"$f":"Time!URF$11","v":0},{"$f":"Time!URG$11","v":0},{"$f":"Time!URH$11","v":0},{"$f":"Time!URI$11","v":0},{"$f":"Time!URJ$11","v":0},{"$f":"Time!URK$11","v":0},{"$f":"Time!URL$11","v":0},{"$f":"Time!URM$11","v":0},{"$f":"Time!URN$11","v":0},{"$f":"Time!URO$11","v":0},{"$f":"Time!URP$11","v":0},{"$f":"Time!URQ$11","v":0},{"$f":"Time!URR$11","v":0},{"$f":"Time!URS$11","v":0},{"$f":"Time!URT$11","v":0},{"$f":"Time!URU$11","v":0},{"$f":"Time!URV$11","v":0},{"$f":"Time!URW$11","v":0},{"$f":"Time!URX$11","v":0},{"$f":"Time!URY$11","v":0},{"$f":"Time!URZ$11","v":0},{"$f":"Time!USA$11","v":0},{"$f":"Time!USB$11","v":0},{"$f":"Time!USC$11","v":0},{"$f":"Time!USD$11","v":0},{"$f":"Time!USE$11","v":0},{"$f":"Time!USF$11","v":0},{"$f":"Time!USG$11","v":0},{"$f":"Time!USH$11","v":0},{"$f":"Time!USI$11","v":0},{"$f":"Time!USJ$11","v":0},{"$f":"Time!USK$11","v":0},{"$f":"Time!USL$11","v":0},{"$f":"Time!USM$11","v":0},{"$f":"Time!USN$11","v":0},{"$f":"Time!USO$11","v":0},{"$f":"Time!USP$11","v":0},{"$f":"Time!USQ$11","v":0},{"$f":"Time!USR$11","v":0},{"$f":"Time!USS$11","v":0},{"$f":"Time!UST$11","v":0},{"$f":"Time!USU$11","v":0},{"$f":"Time!USV$11","v":0},{"$f":"Time!USW$11","v":0},{"$f":"Time!USX$11","v":0},{"$f":"Time!USY$11","v":0},{"$f":"Time!USZ$11","v":0},{"$f":"Time!UTA$11","v":0},{"$f":"Time!UTB$11","v":0},{"$f":"Time!UTC$11","v":0},{"$f":"Time!UTD$11","v":0},{"$f":"Time!UTE$11","v":0},{"$f":"Time!UTF$11","v":0},{"$f":"Time!UTG$11","v":0},{"$f":"Time!UTH$11","v":0},{"$f":"Time!UTI$11","v":0},{"$f":"Time!UTJ$11","v":0},{"$f":"Time!UTK$11","v":0},{"$f":"Time!UTL$11","v":0},{"$f":"Time!UTM$11","v":0},{"$f":"Time!UTN$11","v":0},{"$f":"Time!UTO$11","v":0},{"$f":"Time!UTP$11","v":0},{"$f":"Time!UTQ$11","v":0},{"$f":"Time!UTR$11","v":0},{"$f":"Time!UTS$11","v":0},{"$f":"Time!UTT$11","v":0},{"$f":"Time!UTU$11","v":0},{"$f":"Time!UTV$11","v":0},{"$f":"Time!UTW$11","v":0},{"$f":"Time!UTX$11","v":0},{"$f":"Time!UTY$11","v":0},{"$f":"Time!UTZ$11","v":0},{"$f":"Time!UUA$11","v":0},{"$f":"Time!UUB$11","v":0},{"$f":"Time!UUC$11","v":0},{"$f":"Time!UUD$11","v":0},{"$f":"Time!UUE$11","v":0},{"$f":"Time!UUF$11","v":0},{"$f":"Time!UUG$11","v":0},{"$f":"Time!UUH$11","v":0},{"$f":"Time!UUI$11","v":0},{"$f":"Time!UUJ$11","v":0},{"$f":"Time!UUK$11","v":0},{"$f":"Time!UUL$11","v":0},{"$f":"Time!UUM$11","v":0},{"$f":"Time!UUN$11","v":0},{"$f":"Time!UUO$11","v":0},{"$f":"Time!UUP$11","v":0},{"$f":"Time!UUQ$11","v":0},{"$f":"Time!UUR$11","v":0},{"$f":"Time!UUS$11","v":0},{"$f":"Time!UUT$11","v":0},{"$f":"Time!UUU$11","v":0},{"$f":"Time!UUV$11","v":0},{"$f":"Time!UUW$11","v":0},{"$f":"Time!UUX$11","v":0},{"$f":"Time!UUY$11","v":0},{"$f":"Time!UUZ$11","v":0},{"$f":"Time!UVA$11","v":0},{"$f":"Time!UVB$11","v":0},{"$f":"Time!UVC$11","v":0},{"$f":"Time!UVD$11","v":0},{"$f":"Time!UVE$11","v":0},{"$f":"Time!UVF$11","v":0},{"$f":"Time!UVG$11","v":0},{"$f":"Time!UVH$11","v":0},{"$f":"Time!UVI$11","v":0},{"$f":"Time!UVJ$11","v":0},{"$f":"Time!UVK$11","v":0},{"$f":"Time!UVL$11","v":0},{"$f":"Time!UVM$11","v":0},{"$f":"Time!UVN$11","v":0},{"$f":"Time!UVO$11","v":0},{"$f":"Time!UVP$11","v":0},{"$f":"Time!UVQ$11","v":0},{"$f":"Time!UVR$11","v":0},{"$f":"Time!UVS$11","v":0},{"$f":"Time!UVT$11","v":0},{"$f":"Time!UVU$11","v":0},{"$f":"Time!UVV$11","v":0},{"$f":"Time!UVW$11","v":0},{"$f":"Time!UVX$11","v":0},{"$f":"Time!UVY$11","v":0},{"$f":"Time!UVZ$11","v":0},{"$f":"Time!UWA$11","v":0},{"$f":"Time!UWB$11","v":0},{"$f":"Time!UWC$11","v":0},{"$f":"Time!UWD$11","v":0},{"$f":"Time!UWE$11","v":0},{"$f":"Time!UWF$11","v":0},{"$f":"Time!UWG$11","v":0},{"$f":"Time!UWH$11","v":0},{"$f":"Time!UWI$11","v":0},{"$f":"Time!UWJ$11","v":0},{"$f":"Time!UWK$11","v":0},{"$f":"Time!UWL$11","v":0},{"$f":"Time!UWM$11","v":0},{"$f":"Time!UWN$11","v":0},{"$f":"Time!UWO$11","v":0},{"$f":"Time!UWP$11","v":0},{"$f":"Time!UWQ$11","v":0},{"$f":"Time!UWR$11","v":0},{"$f":"Time!UWS$11","v":0},{"$f":"Time!UWT$11","v":0},{"$f":"Time!UWU$11","v":0},{"$f":"Time!UWV$11","v":0},{"$f":"Time!UWW$11","v":0},{"$f":"Time!UWX$11","v":0},{"$f":"Time!UWY$11","v":0},{"$f":"Time!UWZ$11","v":0},{"$f":"Time!UXA$11","v":0},{"$f":"Time!UXB$11","v":0},{"$f":"Time!UXC$11","v":0},{"$f":"Time!UXD$11","v":0},{"$f":"Time!UXE$11","v":0},{"$f":"Time!UXF$11","v":0},{"$f":"Time!UXG$11","v":0},{"$f":"Time!UXH$11","v":0},{"$f":"Time!UXI$11","v":0},{"$f":"Time!UXJ$11","v":0},{"$f":"Time!UXK$11","v":0},{"$f":"Time!UXL$11","v":0},{"$f":"Time!UXM$11","v":0},{"$f":"Time!UXN$11","v":0},{"$f":"Time!UXO$11","v":0},{"$f":"Time!UXP$11","v":0},{"$f":"Time!UXQ$11","v":0},{"$f":"Time!UXR$11","v":0},{"$f":"Time!UXS$11","v":0},{"$f":"Time!UXT$11","v":0},{"$f":"Time!UXU$11","v":0},{"$f":"Time!UXV$11","v":0},{"$f":"Time!UXW$11","v":0},{"$f":"Time!UXX$11","v":0},{"$f":"Time!UXY$11","v":0},{"$f":"Time!UXZ$11","v":0},{"$f":"Time!UYA$11","v":0},{"$f":"Time!UYB$11","v":0},{"$f":"Time!UYC$11","v":0},{"$f":"Time!UYD$11","v":0},{"$f":"Time!UYE$11","v":0},{"$f":"Time!UYF$11","v":0},{"$f":"Time!UYG$11","v":0},{"$f":"Time!UYH$11","v":0},{"$f":"Time!UYI$11","v":0},{"$f":"Time!UYJ$11","v":0},{"$f":"Time!UYK$11","v":0},{"$f":"Time!UYL$11","v":0},{"$f":"Time!UYM$11","v":0},{"$f":"Time!UYN$11","v":0},{"$f":"Time!UYO$11","v":0},{"$f":"Time!UYP$11","v":0},{"$f":"Time!UYQ$11","v":0},{"$f":"Time!UYR$11","v":0},{"$f":"Time!UYS$11","v":0},{"$f":"Time!UYT$11","v":0},{"$f":"Time!UYU$11","v":0},{"$f":"Time!UYV$11","v":0},{"$f":"Time!UYW$11","v":0},{"$f":"Time!UYX$11","v":0},{"$f":"Time!UYY$11","v":0},{"$f":"Time!UYZ$11","v":0},{"$f":"Time!UZA$11","v":0},{"$f":"Time!UZB$11","v":0},{"$f":"Time!UZC$11","v":0},{"$f":"Time!UZD$11","v":0},{"$f":"Time!UZE$11","v":0},{"$f":"Time!UZF$11","v":0},{"$f":"Time!UZG$11","v":0},{"$f":"Time!UZH$11","v":0},{"$f":"Time!UZI$11","v":0},{"$f":"Time!UZJ$11","v":0},{"$f":"Time!UZK$11","v":0},{"$f":"Time!UZL$11","v":0},{"$f":"Time!UZM$11","v":0},{"$f":"Time!UZN$11","v":0},{"$f":"Time!UZO$11","v":0},{"$f":"Time!UZP$11","v":0},{"$f":"Time!UZQ$11","v":0},{"$f":"Time!UZR$11","v":0},{"$f":"Time!UZS$11","v":0},{"$f":"Time!UZT$11","v":0},{"$f":"Time!UZU$11","v":0},{"$f":"Time!UZV$11","v":0},{"$f":"Time!UZW$11","v":0},{"$f":"Time!UZX$11","v":0},{"$f":"Time!UZY$11","v":0},{"$f":"Time!UZZ$11","v":0},{"$f":"Time!VAA$11","v":0},{"$f":"Time!VAB$11","v":0},{"$f":"Time!VAC$11","v":0},{"$f":"Time!VAD$11","v":0},{"$f":"Time!VAE$11","v":0},{"$f":"Time!VAF$11","v":0},{"$f":"Time!VAG$11","v":0},{"$f":"Time!VAH$11","v":0},{"$f":"Time!VAI$11","v":0},{"$f":"Time!VAJ$11","v":0},{"$f":"Time!VAK$11","v":0},{"$f":"Time!VAL$11","v":0},{"$f":"Time!VAM$11","v":0},{"$f":"Time!VAN$11","v":0},{"$f":"Time!VAO$11","v":0},{"$f":"Time!VAP$11","v":0},{"$f":"Time!VAQ$11","v":0},{"$f":"Time!VAR$11","v":0},{"$f":"Time!VAS$11","v":0},{"$f":"Time!VAT$11","v":0},{"$f":"Time!VAU$11","v":0},{"$f":"Time!VAV$11","v":0},{"$f":"Time!VAW$11","v":0},{"$f":"Time!VAX$11","v":0},{"$f":"Time!VAY$11","v":0},{"$f":"Time!VAZ$11","v":0},{"$f":"Time!VBA$11","v":0},{"$f":"Time!VBB$11","v":0},{"$f":"Time!VBC$11","v":0},{"$f":"Time!VBD$11","v":0},{"$f":"Time!VBE$11","v":0},{"$f":"Time!VBF$11","v":0},{"$f":"Time!VBG$11","v":0},{"$f":"Time!VBH$11","v":0},{"$f":"Time!VBI$11","v":0},{"$f":"Time!VBJ$11","v":0},{"$f":"Time!VBK$11","v":0},{"$f":"Time!VBL$11","v":0},{"$f":"Time!VBM$11","v":0},{"$f":"Time!VBN$11","v":0},{"$f":"Time!VBO$11","v":0},{"$f":"Time!VBP$11","v":0},{"$f":"Time!VBQ$11","v":0},{"$f":"Time!VBR$11","v":0},{"$f":"Time!VBS$11","v":0},{"$f":"Time!VBT$11","v":0},{"$f":"Time!VBU$11","v":0},{"$f":"Time!VBV$11","v":0},{"$f":"Time!VBW$11","v":0},{"$f":"Time!VBX$11","v":0},{"$f":"Time!VBY$11","v":0},{"$f":"Time!VBZ$11","v":0},{"$f":"Time!VCA$11","v":0},{"$f":"Time!VCB$11","v":0},{"$f":"Time!VCC$11","v":0},{"$f":"Time!VCD$11","v":0},{"$f":"Time!VCE$11","v":0},{"$f":"Time!VCF$11","v":0},{"$f":"Time!VCG$11","v":0},{"$f":"Time!VCH$11","v":0},{"$f":"Time!VCI$11","v":0},{"$f":"Time!VCJ$11","v":0},{"$f":"Time!VCK$11","v":0},{"$f":"Time!VCL$11","v":0},{"$f":"Time!VCM$11","v":0},{"$f":"Time!VCN$11","v":0},{"$f":"Time!VCO$11","v":0},{"$f":"Time!VCP$11","v":0},{"$f":"Time!VCQ$11","v":0},{"$f":"Time!VCR$11","v":0},{"$f":"Time!VCS$11","v":0},{"$f":"Time!VCT$11","v":0},{"$f":"Time!VCU$11","v":0},{"$f":"Time!VCV$11","v":0},{"$f":"Time!VCW$11","v":0},{"$f":"Time!VCX$11","v":0},{"$f":"Time!VCY$11","v":0},{"$f":"Time!VCZ$11","v":0},{"$f":"Time!VDA$11","v":0},{"$f":"Time!VDB$11","v":0},{"$f":"Time!VDC$11","v":0},{"$f":"Time!VDD$11","v":0},{"$f":"Time!VDE$11","v":0},{"$f":"Time!VDF$11","v":0},{"$f":"Time!VDG$11","v":0},{"$f":"Time!VDH$11","v":0},{"$f":"Time!VDI$11","v":0},{"$f":"Time!VDJ$11","v":0},{"$f":"Time!VDK$11","v":0},{"$f":"Time!VDL$11","v":0},{"$f":"Time!VDM$11","v":0},{"$f":"Time!VDN$11","v":0},{"$f":"Time!VDO$11","v":0},{"$f":"Time!VDP$11","v":0},{"$f":"Time!VDQ$11","v":0},{"$f":"Time!VDR$11","v":0},{"$f":"Time!VDS$11","v":0},{"$f":"Time!VDT$11","v":0},{"$f":"Time!VDU$11","v":0},{"$f":"Time!VDV$11","v":0},{"$f":"Time!VDW$11","v":0},{"$f":"Time!VDX$11","v":0},{"$f":"Time!VDY$11","v":0},{"$f":"Time!VDZ$11","v":0},{"$f":"Time!VEA$11","v":0},{"$f":"Time!VEB$11","v":0},{"$f":"Time!VEC$11","v":0},{"$f":"Time!VED$11","v":0},{"$f":"Time!VEE$11","v":0},{"$f":"Time!VEF$11","v":0},{"$f":"Time!VEG$11","v":0},{"$f":"Time!VEH$11","v":0},{"$f":"Time!VEI$11","v":0},{"$f":"Time!VEJ$11","v":0},{"$f":"Time!VEK$11","v":0},{"$f":"Time!VEL$11","v":0},{"$f":"Time!VEM$11","v":0},{"$f":"Time!VEN$11","v":0},{"$f":"Time!VEO$11","v":0},{"$f":"Time!VEP$11","v":0},{"$f":"Time!VEQ$11","v":0},{"$f":"Time!VER$11","v":0},{"$f":"Time!VES$11","v":0},{"$f":"Time!VET$11","v":0},{"$f":"Time!VEU$11","v":0},{"$f":"Time!VEV$11","v":0},{"$f":"Time!VEW$11","v":0},{"$f":"Time!VEX$11","v":0},{"$f":"Time!VEY$11","v":0},{"$f":"Time!VEZ$11","v":0},{"$f":"Time!VFA$11","v":0},{"$f":"Time!VFB$11","v":0},{"$f":"Time!VFC$11","v":0},{"$f":"Time!VFD$11","v":0},{"$f":"Time!VFE$11","v":0},{"$f":"Time!VFF$11","v":0},{"$f":"Time!VFG$11","v":0},{"$f":"Time!VFH$11","v":0},{"$f":"Time!VFI$11","v":0},{"$f":"Time!VFJ$11","v":0},{"$f":"Time!VFK$11","v":0},{"$f":"Time!VFL$11","v":0},{"$f":"Time!VFM$11","v":0},{"$f":"Time!VFN$11","v":0},{"$f":"Time!VFO$11","v":0},{"$f":"Time!VFP$11","v":0},{"$f":"Time!VFQ$11","v":0},{"$f":"Time!VFR$11","v":0},{"$f":"Time!VFS$11","v":0},{"$f":"Time!VFT$11","v":0},{"$f":"Time!VFU$11","v":0},{"$f":"Time!VFV$11","v":0},{"$f":"Time!VFW$11","v":0},{"$f":"Time!VFX$11","v":0},{"$f":"Time!VFY$11","v":0},{"$f":"Time!VFZ$11","v":0},{"$f":"Time!VGA$11","v":0},{"$f":"Time!VGB$11","v":0},{"$f":"Time!VGC$11","v":0},{"$f":"Time!VGD$11","v":0},{"$f":"Time!VGE$11","v":0},{"$f":"Time!VGF$11","v":0},{"$f":"Time!VGG$11","v":0},{"$f":"Time!VGH$11","v":0},{"$f":"Time!VGI$11","v":0},{"$f":"Time!VGJ$11","v":0},{"$f":"Time!VGK$11","v":0},{"$f":"Time!VGL$11","v":0},{"$f":"Time!VGM$11","v":0},{"$f":"Time!VGN$11","v":0},{"$f":"Time!VGO$11","v":0},{"$f":"Time!VGP$11","v":0},{"$f":"Time!VGQ$11","v":0},{"$f":"Time!VGR$11","v":0},{"$f":"Time!VGS$11","v":0},{"$f":"Time!VGT$11","v":0},{"$f":"Time!VGU$11","v":0},{"$f":"Time!VGV$11","v":0},{"$f":"Time!VGW$11","v":0},{"$f":"Time!VGX$11","v":0},{"$f":"Time!VGY$11","v":0},{"$f":"Time!VGZ$11","v":0},{"$f":"Time!VHA$11","v":0},{"$f":"Time!VHB$11","v":0},{"$f":"Time!VHC$11","v":0},{"$f":"Time!VHD$11","v":0},{"$f":"Time!VHE$11","v":0},{"$f":"Time!VHF$11","v":0},{"$f":"Time!VHG$11","v":0},{"$f":"Time!VHH$11","v":0},{"$f":"Time!VHI$11","v":0},{"$f":"Time!VHJ$11","v":0},{"$f":"Time!VHK$11","v":0},{"$f":"Time!VHL$11","v":0},{"$f":"Time!VHM$11","v":0},{"$f":"Time!VHN$11","v":0},{"$f":"Time!VHO$11","v":0},{"$f":"Time!VHP$11","v":0},{"$f":"Time!VHQ$11","v":0},{"$f":"Time!VHR$11","v":0},{"$f":"Time!VHS$11","v":0},{"$f":"Time!VHT$11","v":0},{"$f":"Time!VHU$11","v":0},{"$f":"Time!VHV$11","v":0},{"$f":"Time!VHW$11","v":0},{"$f":"Time!VHX$11","v":0},{"$f":"Time!VHY$11","v":0},{"$f":"Time!VHZ$11","v":0},{"$f":"Time!VIA$11","v":0},{"$f":"Time!VIB$11","v":0},{"$f":"Time!VIC$11","v":0},{"$f":"Time!VID$11","v":0},{"$f":"Time!VIE$11","v":0},{"$f":"Time!VIF$11","v":0},{"$f":"Time!VIG$11","v":0},{"$f":"Time!VIH$11","v":0},{"$f":"Time!VII$11","v":0},{"$f":"Time!VIJ$11","v":0},{"$f":"Time!VIK$11","v":0},{"$f":"Time!VIL$11","v":0},{"$f":"Time!VIM$11","v":0},{"$f":"Time!VIN$11","v":0},{"$f":"Time!VIO$11","v":0},{"$f":"Time!VIP$11","v":0},{"$f":"Time!VIQ$11","v":0},{"$f":"Time!VIR$11","v":0},{"$f":"Time!VIS$11","v":0},{"$f":"Time!VIT$11","v":0},{"$f":"Time!VIU$11","v":0},{"$f":"Time!VIV$11","v":0},{"$f":"Time!VIW$11","v":0},{"$f":"Time!VIX$11","v":0},{"$f":"Time!VIY$11","v":0},{"$f":"Time!VIZ$11","v":0},{"$f":"Time!VJA$11","v":0},{"$f":"Time!VJB$11","v":0},{"$f":"Time!VJC$11","v":0},{"$f":"Time!VJD$11","v":0},{"$f":"Time!VJE$11","v":0},{"$f":"Time!VJF$11","v":0},{"$f":"Time!VJG$11","v":0},{"$f":"Time!VJH$11","v":0},{"$f":"Time!VJI$11","v":0},{"$f":"Time!VJJ$11","v":0},{"$f":"Time!VJK$11","v":0},{"$f":"Time!VJL$11","v":0},{"$f":"Time!VJM$11","v":0},{"$f":"Time!VJN$11","v":0},{"$f":"Time!VJO$11","v":0},{"$f":"Time!VJP$11","v":0},{"$f":"Time!VJQ$11","v":0},{"$f":"Time!VJR$11","v":0},{"$f":"Time!VJS$11","v":0},{"$f":"Time!VJT$11","v":0},{"$f":"Time!VJU$11","v":0},{"$f":"Time!VJV$11","v":0},{"$f":"Time!VJW$11","v":0},{"$f":"Time!VJX$11","v":0},{"$f":"Time!VJY$11","v":0},{"$f":"Time!VJZ$11","v":0},{"$f":"Time!VKA$11","v":0},{"$f":"Time!VKB$11","v":0},{"$f":"Time!VKC$11","v":0},{"$f":"Time!VKD$11","v":0},{"$f":"Time!VKE$11","v":0},{"$f":"Time!VKF$11","v":0},{"$f":"Time!VKG$11","v":0},{"$f":"Time!VKH$11","v":0},{"$f":"Time!VKI$11","v":0},{"$f":"Time!VKJ$11","v":0},{"$f":"Time!VKK$11","v":0},{"$f":"Time!VKL$11","v":0},{"$f":"Time!VKM$11","v":0},{"$f":"Time!VKN$11","v":0},{"$f":"Time!VKO$11","v":0},{"$f":"Time!VKP$11","v":0},{"$f":"Time!VKQ$11","v":0},{"$f":"Time!VKR$11","v":0},{"$f":"Time!VKS$11","v":0},{"$f":"Time!VKT$11","v":0},{"$f":"Time!VKU$11","v":0},{"$f":"Time!VKV$11","v":0},{"$f":"Time!VKW$11","v":0},{"$f":"Time!VKX$11","v":0},{"$f":"Time!VKY$11","v":0},{"$f":"Time!VKZ$11","v":0},{"$f":"Time!VLA$11","v":0},{"$f":"Time!VLB$11","v":0},{"$f":"Time!VLC$11","v":0},{"$f":"Time!VLD$11","v":0},{"$f":"Time!VLE$11","v":0},{"$f":"Time!VLF$11","v":0},{"$f":"Time!VLG$11","v":0},{"$f":"Time!VLH$11","v":0},{"$f":"Time!VLI$11","v":0},{"$f":"Time!VLJ$11","v":0},{"$f":"Time!VLK$11","v":0},{"$f":"Time!VLL$11","v":0},{"$f":"Time!VLM$11","v":0},{"$f":"Time!VLN$11","v":0},{"$f":"Time!VLO$11","v":0},{"$f":"Time!VLP$11","v":0},{"$f":"Time!VLQ$11","v":0},{"$f":"Time!VLR$11","v":0},{"$f":"Time!VLS$11","v":0},{"$f":"Time!VLT$11","v":0},{"$f":"Time!VLU$11","v":0},{"$f":"Time!VLV$11","v":0},{"$f":"Time!VLW$11","v":0},{"$f":"Time!VLX$11","v":0},{"$f":"Time!VLY$11","v":0},{"$f":"Time!VLZ$11","v":0},{"$f":"Time!VMA$11","v":0},{"$f":"Time!VMB$11","v":0},{"$f":"Time!VMC$11","v":0},{"$f":"Time!VMD$11","v":0},{"$f":"Time!VME$11","v":0},{"$f":"Time!VMF$11","v":0},{"$f":"Time!VMG$11","v":0},{"$f":"Time!VMH$11","v":0},{"$f":"Time!VMI$11","v":0},{"$f":"Time!VMJ$11","v":0},{"$f":"Time!VMK$11","v":0},{"$f":"Time!VML$11","v":0},{"$f":"Time!VMM$11","v":0},{"$f":"Time!VMN$11","v":0},{"$f":"Time!VMO$11","v":0},{"$f":"Time!VMP$11","v":0},{"$f":"Time!VMQ$11","v":0},{"$f":"Time!VMR$11","v":0},{"$f":"Time!VMS$11","v":0},{"$f":"Time!VMT$11","v":0},{"$f":"Time!VMU$11","v":0},{"$f":"Time!VMV$11","v":0},{"$f":"Time!VMW$11","v":0},{"$f":"Time!VMX$11","v":0},{"$f":"Time!VMY$11","v":0},{"$f":"Time!VMZ$11","v":0},{"$f":"Time!VNA$11","v":0},{"$f":"Time!VNB$11","v":0},{"$f":"Time!VNC$11","v":0},{"$f":"Time!VND$11","v":0},{"$f":"Time!VNE$11","v":0},{"$f":"Time!VNF$11","v":0},{"$f":"Time!VNG$11","v":0},{"$f":"Time!VNH$11","v":0},{"$f":"Time!VNI$11","v":0},{"$f":"Time!VNJ$11","v":0},{"$f":"Time!VNK$11","v":0},{"$f":"Time!VNL$11","v":0},{"$f":"Time!VNM$11","v":0},{"$f":"Time!VNN$11","v":0},{"$f":"Time!VNO$11","v":0},{"$f":"Time!VNP$11","v":0},{"$f":"Time!VNQ$11","v":0},{"$f":"Time!VNR$11","v":0},{"$f":"Time!VNS$11","v":0},{"$f":"Time!VNT$11","v":0},{"$f":"Time!VNU$11","v":0},{"$f":"Time!VNV$11","v":0},{"$f":"Time!VNW$11","v":0},{"$f":"Time!VNX$11","v":0},{"$f":"Time!VNY$11","v":0},{"$f":"Time!VNZ$11","v":0},{"$f":"Time!VOA$11","v":0},{"$f":"Time!VOB$11","v":0},{"$f":"Time!VOC$11","v":0},{"$f":"Time!VOD$11","v":0},{"$f":"Time!VOE$11","v":0},{"$f":"Time!VOF$11","v":0},{"$f":"Time!VOG$11","v":0},{"$f":"Time!VOH$11","v":0},{"$f":"Time!VOI$11","v":0},{"$f":"Time!VOJ$11","v":0},{"$f":"Time!VOK$11","v":0},{"$f":"Time!VOL$11","v":0},{"$f":"Time!VOM$11","v":0},{"$f":"Time!VON$11","v":0},{"$f":"Time!VOO$11","v":0},{"$f":"Time!VOP$11","v":0},{"$f":"Time!VOQ$11","v":0},{"$f":"Time!VOR$11","v":0},{"$f":"Time!VOS$11","v":0},{"$f":"Time!VOT$11","v":0},{"$f":"Time!VOU$11","v":0},{"$f":"Time!VOV$11","v":0},{"$f":"Time!VOW$11","v":0},{"$f":"Time!VOX$11","v":0},{"$f":"Time!VOY$11","v":0},{"$f":"Time!VOZ$11","v":0},{"$f":"Time!VPA$11","v":0},{"$f":"Time!VPB$11","v":0},{"$f":"Time!VPC$11","v":0},{"$f":"Time!VPD$11","v":0},{"$f":"Time!VPE$11","v":0},{"$f":"Time!VPF$11","v":0},{"$f":"Time!VPG$11","v":0},{"$f":"Time!VPH$11","v":0},{"$f":"Time!VPI$11","v":0},{"$f":"Time!VPJ$11","v":0},{"$f":"Time!VPK$11","v":0},{"$f":"Time!VPL$11","v":0},{"$f":"Time!VPM$11","v":0},{"$f":"Time!VPN$11","v":0},{"$f":"Time!VPO$11","v":0},{"$f":"Time!VPP$11","v":0},{"$f":"Time!VPQ$11","v":0},{"$f":"Time!VPR$11","v":0},{"$f":"Time!VPS$11","v":0},{"$f":"Time!VPT$11","v":0},{"$f":"Time!VPU$11","v":0},{"$f":"Time!VPV$11","v":0},{"$f":"Time!VPW$11","v":0},{"$f":"Time!VPX$11","v":0},{"$f":"Time!VPY$11","v":0},{"$f":"Time!VPZ$11","v":0},{"$f":"Time!VQA$11","v":0},{"$f":"Time!VQB$11","v":0},{"$f":"Time!VQC$11","v":0},{"$f":"Time!VQD$11","v":0},{"$f":"Time!VQE$11","v":0},{"$f":"Time!VQF$11","v":0},{"$f":"Time!VQG$11","v":0},{"$f":"Time!VQH$11","v":0},{"$f":"Time!VQI$11","v":0},{"$f":"Time!VQJ$11","v":0},{"$f":"Time!VQK$11","v":0},{"$f":"Time!VQL$11","v":0},{"$f":"Time!VQM$11","v":0},{"$f":"Time!VQN$11","v":0},{"$f":"Time!VQO$11","v":0},{"$f":"Time!VQP$11","v":0},{"$f":"Time!VQQ$11","v":0},{"$f":"Time!VQR$11","v":0},{"$f":"Time!VQS$11","v":0},{"$f":"Time!VQT$11","v":0},{"$f":"Time!VQU$11","v":0},{"$f":"Time!VQV$11","v":0},{"$f":"Time!VQW$11","v":0},{"$f":"Time!VQX$11","v":0},{"$f":"Time!VQY$11","v":0},{"$f":"Time!VQZ$11","v":0},{"$f":"Time!VRA$11","v":0},{"$f":"Time!VRB$11","v":0},{"$f":"Time!VRC$11","v":0},{"$f":"Time!VRD$11","v":0},{"$f":"Time!VRE$11","v":0},{"$f":"Time!VRF$11","v":0},{"$f":"Time!VRG$11","v":0},{"$f":"Time!VRH$11","v":0},{"$f":"Time!VRI$11","v":0},{"$f":"Time!VRJ$11","v":0},{"$f":"Time!VRK$11","v":0},{"$f":"Time!VRL$11","v":0},{"$f":"Time!VRM$11","v":0},{"$f":"Time!VRN$11","v":0},{"$f":"Time!VRO$11","v":0},{"$f":"Time!VRP$11","v":0},{"$f":"Time!VRQ$11","v":0},{"$f":"Time!VRR$11","v":0},{"$f":"Time!VRS$11","v":0},{"$f":"Time!VRT$11","v":0},{"$f":"Time!VRU$11","v":0},{"$f":"Time!VRV$11","v":0},{"$f":"Time!VRW$11","v":0},{"$f":"Time!VRX$11","v":0},{"$f":"Time!VRY$11","v":0},{"$f":"Time!VRZ$11","v":0},{"$f":"Time!VSA$11","v":0},{"$f":"Time!VSB$11","v":0},{"$f":"Time!VSC$11","v":0},{"$f":"Time!VSD$11","v":0},{"$f":"Time!VSE$11","v":0},{"$f":"Time!VSF$11","v":0},{"$f":"Time!VSG$11","v":0},{"$f":"Time!VSH$11","v":0},{"$f":"Time!VSI$11","v":0},{"$f":"Time!VSJ$11","v":0},{"$f":"Time!VSK$11","v":0},{"$f":"Time!VSL$11","v":0},{"$f":"Time!VSM$11","v":0},{"$f":"Time!VSN$11","v":0},{"$f":"Time!VSO$11","v":0},{"$f":"Time!VSP$11","v":0},{"$f":"Time!VSQ$11","v":0},{"$f":"Time!VSR$11","v":0},{"$f":"Time!VSS$11","v":0},{"$f":"Time!VST$11","v":0},{"$f":"Time!VSU$11","v":0},{"$f":"Time!VSV$11","v":0},{"$f":"Time!VSW$11","v":0},{"$f":"Time!VSX$11","v":0},{"$f":"Time!VSY$11","v":0},{"$f":"Time!VSZ$11","v":0},{"$f":"Time!VTA$11","v":0},{"$f":"Time!VTB$11","v":0},{"$f":"Time!VTC$11","v":0},{"$f":"Time!VTD$11","v":0},{"$f":"Time!VTE$11","v":0},{"$f":"Time!VTF$11","v":0},{"$f":"Time!VTG$11","v":0},{"$f":"Time!VTH$11","v":0},{"$f":"Time!VTI$11","v":0},{"$f":"Time!VTJ$11","v":0},{"$f":"Time!VTK$11","v":0},{"$f":"Time!VTL$11","v":0},{"$f":"Time!VTM$11","v":0},{"$f":"Time!VTN$11","v":0},{"$f":"Time!VTO$11","v":0},{"$f":"Time!VTP$11","v":0},{"$f":"Time!VTQ$11","v":0},{"$f":"Time!VTR$11","v":0},{"$f":"Time!VTS$11","v":0},{"$f":"Time!VTT$11","v":0},{"$f":"Time!VTU$11","v":0},{"$f":"Time!VTV$11","v":0},{"$f":"Time!VTW$11","v":0},{"$f":"Time!VTX$11","v":0},{"$f":"Time!VTY$11","v":0},{"$f":"Time!VTZ$11","v":0},{"$f":"Time!VUA$11","v":0},{"$f":"Time!VUB$11","v":0},{"$f":"Time!VUC$11","v":0},{"$f":"Time!VUD$11","v":0},{"$f":"Time!VUE$11","v":0},{"$f":"Time!VUF$11","v":0},{"$f":"Time!VUG$11","v":0},{"$f":"Time!VUH$11","v":0},{"$f":"Time!VUI$11","v":0},{"$f":"Time!VUJ$11","v":0},{"$f":"Time!VUK$11","v":0},{"$f":"Time!VUL$11","v":0},{"$f":"Time!VUM$11","v":0},{"$f":"Time!VUN$11","v":0},{"$f":"Time!VUO$11","v":0},{"$f":"Time!VUP$11","v":0},{"$f":"Time!VUQ$11","v":0},{"$f":"Time!VUR$11","v":0},{"$f":"Time!VUS$11","v":0},{"$f":"Time!VUT$11","v":0},{"$f":"Time!VUU$11","v":0},{"$f":"Time!VUV$11","v":0},{"$f":"Time!VUW$11","v":0},{"$f":"Time!VUX$11","v":0},{"$f":"Time!VUY$11","v":0},{"$f":"Time!VUZ$11","v":0},{"$f":"Time!VVA$11","v":0},{"$f":"Time!VVB$11","v":0},{"$f":"Time!VVC$11","v":0},{"$f":"Time!VVD$11","v":0},{"$f":"Time!VVE$11","v":0},{"$f":"Time!VVF$11","v":0},{"$f":"Time!VVG$11","v":0},{"$f":"Time!VVH$11","v":0},{"$f":"Time!VVI$11","v":0},{"$f":"Time!VVJ$11","v":0},{"$f":"Time!VVK$11","v":0},{"$f":"Time!VVL$11","v":0},{"$f":"Time!VVM$11","v":0},{"$f":"Time!VVN$11","v":0},{"$f":"Time!VVO$11","v":0},{"$f":"Time!VVP$11","v":0},{"$f":"Time!VVQ$11","v":0},{"$f":"Time!VVR$11","v":0},{"$f":"Time!VVS$11","v":0},{"$f":"Time!VVT$11","v":0},{"$f":"Time!VVU$11","v":0},{"$f":"Time!VVV$11","v":0},{"$f":"Time!VVW$11","v":0},{"$f":"Time!VVX$11","v":0},{"$f":"Time!VVY$11","v":0},{"$f":"Time!VVZ$11","v":0},{"$f":"Time!VWA$11","v":0},{"$f":"Time!VWB$11","v":0},{"$f":"Time!VWC$11","v":0},{"$f":"Time!VWD$11","v":0},{"$f":"Time!VWE$11","v":0},{"$f":"Time!VWF$11","v":0},{"$f":"Time!VWG$11","v":0},{"$f":"Time!VWH$11","v":0},{"$f":"Time!VWI$11","v":0},{"$f":"Time!VWJ$11","v":0},{"$f":"Time!VWK$11","v":0},{"$f":"Time!VWL$11","v":0},{"$f":"Time!VWM$11","v":0},{"$f":"Time!VWN$11","v":0},{"$f":"Time!VWO$11","v":0},{"$f":"Time!VWP$11","v":0},{"$f":"Time!VWQ$11","v":0},{"$f":"Time!VWR$11","v":0},{"$f":"Time!VWS$11","v":0},{"$f":"Time!VWT$11","v":0},{"$f":"Time!VWU$11","v":0},{"$f":"Time!VWV$11","v":0},{"$f":"Time!VWW$11","v":0},{"$f":"Time!VWX$11","v":0},{"$f":"Time!VWY$11","v":0},{"$f":"Time!VWZ$11","v":0},{"$f":"Time!VXA$11","v":0},{"$f":"Time!VXB$11","v":0},{"$f":"Time!VXC$11","v":0},{"$f":"Time!VXD$11","v":0},{"$f":"Time!VXE$11","v":0},{"$f":"Time!VXF$11","v":0},{"$f":"Time!VXG$11","v":0},{"$f":"Time!VXH$11","v":0},{"$f":"Time!VXI$11","v":0},{"$f":"Time!VXJ$11","v":0},{"$f":"Time!VXK$11","v":0},{"$f":"Time!VXL$11","v":0},{"$f":"Time!VXM$11","v":0},{"$f":"Time!VXN$11","v":0},{"$f":"Time!VXO$11","v":0},{"$f":"Time!VXP$11","v":0},{"$f":"Time!VXQ$11","v":0},{"$f":"Time!VXR$11","v":0},{"$f":"Time!VXS$11","v":0},{"$f":"Time!VXT$11","v":0},{"$f":"Time!VXU$11","v":0},{"$f":"Time!VXV$11","v":0},{"$f":"Time!VXW$11","v":0},{"$f":"Time!VXX$11","v":0},{"$f":"Time!VXY$11","v":0},{"$f":"Time!VXZ$11","v":0},{"$f":"Time!VYA$11","v":0},{"$f":"Time!VYB$11","v":0},{"$f":"Time!VYC$11","v":0},{"$f":"Time!VYD$11","v":0},{"$f":"Time!VYE$11","v":0},{"$f":"Time!VYF$11","v":0},{"$f":"Time!VYG$11","v":0},{"$f":"Time!VYH$11","v":0},{"$f":"Time!VYI$11","v":0},{"$f":"Time!VYJ$11","v":0},{"$f":"Time!VYK$11","v":0},{"$f":"Time!VYL$11","v":0},{"$f":"Time!VYM$11","v":0},{"$f":"Time!VYN$11","v":0},{"$f":"Time!VYO$11","v":0},{"$f":"Time!VYP$11","v":0},{"$f":"Time!VYQ$11","v":0},{"$f":"Time!VYR$11","v":0},{"$f":"Time!VYS$11","v":0},{"$f":"Time!VYT$11","v":0},{"$f":"Time!VYU$11","v":0},{"$f":"Time!VYV$11","v":0},{"$f":"Time!VYW$11","v":0},{"$f":"Time!VYX$11","v":0},{"$f":"Time!VYY$11","v":0},{"$f":"Time!VYZ$11","v":0},{"$f":"Time!VZA$11","v":0},{"$f":"Time!VZB$11","v":0},{"$f":"Time!VZC$11","v":0},{"$f":"Time!VZD$11","v":0},{"$f":"Time!VZE$11","v":0},{"$f":"Time!VZF$11","v":0},{"$f":"Time!VZG$11","v":0},{"$f":"Time!VZH$11","v":0},{"$f":"Time!VZI$11","v":0},{"$f":"Time!VZJ$11","v":0},{"$f":"Time!VZK$11","v":0},{"$f":"Time!VZL$11","v":0},{"$f":"Time!VZM$11","v":0},{"$f":"Time!VZN$11","v":0},{"$f":"Time!VZO$11","v":0},{"$f":"Time!VZP$11","v":0},{"$f":"Time!VZQ$11","v":0},{"$f":"Time!VZR$11","v":0},{"$f":"Time!VZS$11","v":0},{"$f":"Time!VZT$11","v":0},{"$f":"Time!VZU$11","v":0},{"$f":"Time!VZV$11","v":0},{"$f":"Time!VZW$11","v":0},{"$f":"Time!VZX$11","v":0},{"$f":"Time!VZY$11","v":0},{"$f":"Time!VZZ$11","v":0},{"$f":"Time!WAA$11","v":0},{"$f":"Time!WAB$11","v":0},{"$f":"Time!WAC$11","v":0},{"$f":"Time!WAD$11","v":0},{"$f":"Time!WAE$11","v":0},{"$f":"Time!WAF$11","v":0},{"$f":"Time!WAG$11","v":0},{"$f":"Time!WAH$11","v":0},{"$f":"Time!WAI$11","v":0},{"$f":"Time!WAJ$11","v":0},{"$f":"Time!WAK$11","v":0},{"$f":"Time!WAL$11","v":0},{"$f":"Time!WAM$11","v":0},{"$f":"Time!WAN$11","v":0},{"$f":"Time!WAO$11","v":0},{"$f":"Time!WAP$11","v":0},{"$f":"Time!WAQ$11","v":0},{"$f":"Time!WAR$11","v":0},{"$f":"Time!WAS$11","v":0},{"$f":"Time!WAT$11","v":0},{"$f":"Time!WAU$11","v":0},{"$f":"Time!WAV$11","v":0},{"$f":"Time!WAW$11","v":0},{"$f":"Time!WAX$11","v":0},{"$f":"Time!WAY$11","v":0},{"$f":"Time!WAZ$11","v":0},{"$f":"Time!WBA$11","v":0},{"$f":"Time!WBB$11","v":0},{"$f":"Time!WBC$11","v":0},{"$f":"Time!WBD$11","v":0},{"$f":"Time!WBE$11","v":0},{"$f":"Time!WBF$11","v":0},{"$f":"Time!WBG$11","v":0},{"$f":"Time!WBH$11","v":0},{"$f":"Time!WBI$11","v":0},{"$f":"Time!WBJ$11","v":0},{"$f":"Time!WBK$11","v":0},{"$f":"Time!WBL$11","v":0},{"$f":"Time!WBM$11","v":0},{"$f":"Time!WBN$11","v":0},{"$f":"Time!WBO$11","v":0},{"$f":"Time!WBP$11","v":0},{"$f":"Time!WBQ$11","v":0},{"$f":"Time!WBR$11","v":0},{"$f":"Time!WBS$11","v":0},{"$f":"Time!WBT$11","v":0},{"$f":"Time!WBU$11","v":0},{"$f":"Time!WBV$11","v":0},{"$f":"Time!WBW$11","v":0},{"$f":"Time!WBX$11","v":0},{"$f":"Time!WBY$11","v":0},{"$f":"Time!WBZ$11","v":0},{"$f":"Time!WCA$11","v":0},{"$f":"Time!WCB$11","v":0},{"$f":"Time!WCC$11","v":0},{"$f":"Time!WCD$11","v":0},{"$f":"Time!WCE$11","v":0},{"$f":"Time!WCF$11","v":0},{"$f":"Time!WCG$11","v":0},{"$f":"Time!WCH$11","v":0},{"$f":"Time!WCI$11","v":0},{"$f":"Time!WCJ$11","v":0},{"$f":"Time!WCK$11","v":0},{"$f":"Time!WCL$11","v":0},{"$f":"Time!WCM$11","v":0},{"$f":"Time!WCN$11","v":0},{"$f":"Time!WCO$11","v":0},{"$f":"Time!WCP$11","v":0},{"$f":"Time!WCQ$11","v":0},{"$f":"Time!WCR$11","v":0},{"$f":"Time!WCS$11","v":0},{"$f":"Time!WCT$11","v":0},{"$f":"Time!WCU$11","v":0},{"$f":"Time!WCV$11","v":0},{"$f":"Time!WCW$11","v":0},{"$f":"Time!WCX$11","v":0},{"$f":"Time!WCY$11","v":0},{"$f":"Time!WCZ$11","v":0},{"$f":"Time!WDA$11","v":0},{"$f":"Time!WDB$11","v":0},{"$f":"Time!WDC$11","v":0},{"$f":"Time!WDD$11","v":0},{"$f":"Time!WDE$11","v":0},{"$f":"Time!WDF$11","v":0},{"$f":"Time!WDG$11","v":0},{"$f":"Time!WDH$11","v":0},{"$f":"Time!WDI$11","v":0},{"$f":"Time!WDJ$11","v":0},{"$f":"Time!WDK$11","v":0},{"$f":"Time!WDL$11","v":0},{"$f":"Time!WDM$11","v":0},{"$f":"Time!WDN$11","v":0},{"$f":"Time!WDO$11","v":0},{"$f":"Time!WDP$11","v":0},{"$f":"Time!WDQ$11","v":0},{"$f":"Time!WDR$11","v":0},{"$f":"Time!WDS$11","v":0},{"$f":"Time!WDT$11","v":0},{"$f":"Time!WDU$11","v":0},{"$f":"Time!WDV$11","v":0},{"$f":"Time!WDW$11","v":0},{"$f":"Time!WDX$11","v":0},{"$f":"Time!WDY$11","v":0},{"$f":"Time!WDZ$11","v":0},{"$f":"Time!WEA$11","v":0},{"$f":"Time!WEB$11","v":0},{"$f":"Time!WEC$11","v":0},{"$f":"Time!WED$11","v":0},{"$f":"Time!WEE$11","v":0},{"$f":"Time!WEF$11","v":0},{"$f":"Time!WEG$11","v":0},{"$f":"Time!WEH$11","v":0},{"$f":"Time!WEI$11","v":0},{"$f":"Time!WEJ$11","v":0},{"$f":"Time!WEK$11","v":0},{"$f":"Time!WEL$11","v":0},{"$f":"Time!WEM$11","v":0},{"$f":"Time!WEN$11","v":0},{"$f":"Time!WEO$11","v":0},{"$f":"Time!WEP$11","v":0},{"$f":"Time!WEQ$11","v":0},{"$f":"Time!WER$11","v":0},{"$f":"Time!WES$11","v":0},{"$f":"Time!WET$11","v":0},{"$f":"Time!WEU$11","v":0},{"$f":"Time!WEV$11","v":0},{"$f":"Time!WEW$11","v":0},{"$f":"Time!WEX$11","v":0},{"$f":"Time!WEY$11","v":0},{"$f":"Time!WEZ$11","v":0},{"$f":"Time!WFA$11","v":0},{"$f":"Time!WFB$11","v":0},{"$f":"Time!WFC$11","v":0},{"$f":"Time!WFD$11","v":0},{"$f":"Time!WFE$11","v":0},{"$f":"Time!WFF$11","v":0},{"$f":"Time!WFG$11","v":0},{"$f":"Time!WFH$11","v":0},{"$f":"Time!WFI$11","v":0},{"$f":"Time!WFJ$11","v":0},{"$f":"Time!WFK$11","v":0},{"$f":"Time!WFL$11","v":0},{"$f":"Time!WFM$11","v":0},{"$f":"Time!WFN$11","v":0},{"$f":"Time!WFO$11","v":0},{"$f":"Time!WFP$11","v":0},{"$f":"Time!WFQ$11","v":0},{"$f":"Time!WFR$11","v":0},{"$f":"Time!WFS$11","v":0},{"$f":"Time!WFT$11","v":0},{"$f":"Time!WFU$11","v":0},{"$f":"Time!WFV$11","v":0},{"$f":"Time!WFW$11","v":0},{"$f":"Time!WFX$11","v":0},{"$f":"Time!WFY$11","v":0},{"$f":"Time!WFZ$11","v":0},{"$f":"Time!WGA$11","v":0},{"$f":"Time!WGB$11","v":0},{"$f":"Time!WGC$11","v":0},{"$f":"Time!WGD$11","v":0},{"$f":"Time!WGE$11","v":0},{"$f":"Time!WGF$11","v":0},{"$f":"Time!WGG$11","v":0},{"$f":"Time!WGH$11","v":0},{"$f":"Time!WGI$11","v":0},{"$f":"Time!WGJ$11","v":0},{"$f":"Time!WGK$11","v":0},{"$f":"Time!WGL$11","v":0},{"$f":"Time!WGM$11","v":0},{"$f":"Time!WGN$11","v":0},{"$f":"Time!WGO$11","v":0},{"$f":"Time!WGP$11","v":0},{"$f":"Time!WGQ$11","v":0},{"$f":"Time!WGR$11","v":0},{"$f":"Time!WGS$11","v":0},{"$f":"Time!WGT$11","v":0},{"$f":"Time!WGU$11","v":0},{"$f":"Time!WGV$11","v":0},{"$f":"Time!WGW$11","v":0},{"$f":"Time!WGX$11","v":0},{"$f":"Time!WGY$11","v":0},{"$f":"Time!WGZ$11","v":0},{"$f":"Time!WHA$11","v":0},{"$f":"Time!WHB$11","v":0},{"$f":"Time!WHC$11","v":0},{"$f":"Time!WHD$11","v":0},{"$f":"Time!WHE$11","v":0},{"$f":"Time!WHF$11","v":0},{"$f":"Time!WHG$11","v":0},{"$f":"Time!WHH$11","v":0},{"$f":"Time!WHI$11","v":0},{"$f":"Time!WHJ$11","v":0},{"$f":"Time!WHK$11","v":0},{"$f":"Time!WHL$11","v":0},{"$f":"Time!WHM$11","v":0},{"$f":"Time!WHN$11","v":0},{"$f":"Time!WHO$11","v":0},{"$f":"Time!WHP$11","v":0},{"$f":"Time!WHQ$11","v":0},{"$f":"Time!WHR$11","v":0},{"$f":"Time!WHS$11","v":0},{"$f":"Time!WHT$11","v":0},{"$f":"Time!WHU$11","v":0},{"$f":"Time!WHV$11","v":0},{"$f":"Time!WHW$11","v":0},{"$f":"Time!WHX$11","v":0},{"$f":"Time!WHY$11","v":0},{"$f":"Time!WHZ$11","v":0},{"$f":"Time!WIA$11","v":0},{"$f":"Time!WIB$11","v":0},{"$f":"Time!WIC$11","v":0},{"$f":"Time!WID$11","v":0},{"$f":"Time!WIE$11","v":0},{"$f":"Time!WIF$11","v":0},{"$f":"Time!WIG$11","v":0},{"$f":"Time!WIH$11","v":0},{"$f":"Time!WII$11","v":0},{"$f":"Time!WIJ$11","v":0},{"$f":"Time!WIK$11","v":0},{"$f":"Time!WIL$11","v":0},{"$f":"Time!WIM$11","v":0},{"$f":"Time!WIN$11","v":0},{"$f":"Time!WIO$11","v":0},{"$f":"Time!WIP$11","v":0},{"$f":"Time!WIQ$11","v":0},{"$f":"Time!WIR$11","v":0},{"$f":"Time!WIS$11","v":0},{"$f":"Time!WIT$11","v":0},{"$f":"Time!WIU$11","v":0},{"$f":"Time!WIV$11","v":0},{"$f":"Time!WIW$11","v":0},{"$f":"Time!WIX$11","v":0},{"$f":"Time!WIY$11","v":0},{"$f":"Time!WIZ$11","v":0},{"$f":"Time!WJA$11","v":0},{"$f":"Time!WJB$11","v":0},{"$f":"Time!WJC$11","v":0},{"$f":"Time!WJD$11","v":0},{"$f":"Time!WJE$11","v":0},{"$f":"Time!WJF$11","v":0},{"$f":"Time!WJG$11","v":0},{"$f":"Time!WJH$11","v":0},{"$f":"Time!WJI$11","v":0},{"$f":"Time!WJJ$11","v":0},{"$f":"Time!WJK$11","v":0},{"$f":"Time!WJL$11","v":0},{"$f":"Time!WJM$11","v":0},{"$f":"Time!WJN$11","v":0},{"$f":"Time!WJO$11","v":0},{"$f":"Time!WJP$11","v":0},{"$f":"Time!WJQ$11","v":0},{"$f":"Time!WJR$11","v":0},{"$f":"Time!WJS$11","v":0},{"$f":"Time!WJT$11","v":0},{"$f":"Time!WJU$11","v":0},{"$f":"Time!WJV$11","v":0},{"$f":"Time!WJW$11","v":0},{"$f":"Time!WJX$11","v":0},{"$f":"Time!WJY$11","v":0},{"$f":"Time!WJZ$11","v":0},{"$f":"Time!WKA$11","v":0},{"$f":"Time!WKB$11","v":0},{"$f":"Time!WKC$11","v":0},{"$f":"Time!WKD$11","v":0},{"$f":"Time!WKE$11","v":0},{"$f":"Time!WKF$11","v":0},{"$f":"Time!WKG$11","v":0},{"$f":"Time!WKH$11","v":0},{"$f":"Time!WKI$11","v":0},{"$f":"Time!WKJ$11","v":0},{"$f":"Time!WKK$11","v":0},{"$f":"Time!WKL$11","v":0},{"$f":"Time!WKM$11","v":0},{"$f":"Time!WKN$11","v":0},{"$f":"Time!WKO$11","v":0},{"$f":"Time!WKP$11","v":0},{"$f":"Time!WKQ$11","v":0},{"$f":"Time!WKR$11","v":0},{"$f":"Time!WKS$11","v":0},{"$f":"Time!WKT$11","v":0},{"$f":"Time!WKU$11","v":0},{"$f":"Time!WKV$11","v":0},{"$f":"Time!WKW$11","v":0},{"$f":"Time!WKX$11","v":0},{"$f":"Time!WKY$11","v":0},{"$f":"Time!WKZ$11","v":0},{"$f":"Time!WLA$11","v":0},{"$f":"Time!WLB$11","v":0},{"$f":"Time!WLC$11","v":0},{"$f":"Time!WLD$11","v":0},{"$f":"Time!WLE$11","v":0},{"$f":"Time!WLF$11","v":0},{"$f":"Time!WLG$11","v":0},{"$f":"Time!WLH$11","v":0},{"$f":"Time!WLI$11","v":0},{"$f":"Time!WLJ$11","v":0},{"$f":"Time!WLK$11","v":0},{"$f":"Time!WLL$11","v":0},{"$f":"Time!WLM$11","v":0},{"$f":"Time!WLN$11","v":0},{"$f":"Time!WLO$11","v":0},{"$f":"Time!WLP$11","v":0},{"$f":"Time!WLQ$11","v":0},{"$f":"Time!WLR$11","v":0},{"$f":"Time!WLS$11","v":0},{"$f":"Time!WLT$11","v":0},{"$f":"Time!WLU$11","v":0},{"$f":"Time!WLV$11","v":0},{"$f":"Time!WLW$11","v":0},{"$f":"Time!WLX$11","v":0},{"$f":"Time!WLY$11","v":0},{"$f":"Time!WLZ$11","v":0},{"$f":"Time!WMA$11","v":0},{"$f":"Time!WMB$11","v":0},{"$f":"Time!WMC$11","v":0},{"$f":"Time!WMD$11","v":0},{"$f":"Time!WME$11","v":0},{"$f":"Time!WMF$11","v":0},{"$f":"Time!WMG$11","v":0},{"$f":"Time!WMH$11","v":0},{"$f":"Time!WMI$11","v":0},{"$f":"Time!WMJ$11","v":0},{"$f":"Time!WMK$11","v":0},{"$f":"Time!WML$11","v":0},{"$f":"Time!WMM$11","v":0},{"$f":"Time!WMN$11","v":0},{"$f":"Time!WMO$11","v":0},{"$f":"Time!WMP$11","v":0},{"$f":"Time!WMQ$11","v":0},{"$f":"Time!WMR$11","v":0},{"$f":"Time!WMS$11","v":0},{"$f":"Time!WMT$11","v":0},{"$f":"Time!WMU$11","v":0},{"$f":"Time!WMV$11","v":0},{"$f":"Time!WMW$11","v":0},{"$f":"Time!WMX$11","v":0},{"$f":"Time!WMY$11","v":0},{"$f":"Time!WMZ$11","v":0},{"$f":"Time!WNA$11","v":0},{"$f":"Time!WNB$11","v":0},{"$f":"Time!WNC$11","v":0},{"$f":"Time!WND$11","v":0},{"$f":"Time!WNE$11","v":0},{"$f":"Time!WNF$11","v":0},{"$f":"Time!WNG$11","v":0},{"$f":"Time!WNH$11","v":0},{"$f":"Time!WNI$11","v":0},{"$f":"Time!WNJ$11","v":0},{"$f":"Time!WNK$11","v":0},{"$f":"Time!WNL$11","v":0},{"$f":"Time!WNM$11","v":0},{"$f":"Time!WNN$11","v":0},{"$f":"Time!WNO$11","v":0},{"$f":"Time!WNP$11","v":0},{"$f":"Time!WNQ$11","v":0},{"$f":"Time!WNR$11","v":0},{"$f":"Time!WNS$11","v":0},{"$f":"Time!WNT$11","v":0},{"$f":"Time!WNU$11","v":0},{"$f":"Time!WNV$11","v":0},{"$f":"Time!WNW$11","v":0},{"$f":"Time!WNX$11","v":0},{"$f":"Time!WNY$11","v":0},{"$f":"Time!WNZ$11","v":0},{"$f":"Time!WOA$11","v":0},{"$f":"Time!WOB$11","v":0},{"$f":"Time!WOC$11","v":0},{"$f":"Time!WOD$11","v":0},{"$f":"Time!WOE$11","v":0},{"$f":"Time!WOF$11","v":0},{"$f":"Time!WOG$11","v":0},{"$f":"Time!WOH$11","v":0},{"$f":"Time!WOI$11","v":0},{"$f":"Time!WOJ$11","v":0},{"$f":"Time!WOK$11","v":0},{"$f":"Time!WOL$11","v":0},{"$f":"Time!WOM$11","v":0},{"$f":"Time!WON$11","v":0},{"$f":"Time!WOO$11","v":0},{"$f":"Time!WOP$11","v":0},{"$f":"Time!WOQ$11","v":0},{"$f":"Time!WOR$11","v":0},{"$f":"Time!WOS$11","v":0},{"$f":"Time!WOT$11","v":0},{"$f":"Time!WOU$11","v":0},{"$f":"Time!WOV$11","v":0},{"$f":"Time!WOW$11","v":0},{"$f":"Time!WOX$11","v":0},{"$f":"Time!WOY$11","v":0},{"$f":"Time!WOZ$11","v":0},{"$f":"Time!WPA$11","v":0},{"$f":"Time!WPB$11","v":0},{"$f":"Time!WPC$11","v":0},{"$f":"Time!WPD$11","v":0},{"$f":"Time!WPE$11","v":0},{"$f":"Time!WPF$11","v":0},{"$f":"Time!WPG$11","v":0},{"$f":"Time!WPH$11","v":0},{"$f":"Time!WPI$11","v":0},{"$f":"Time!WPJ$11","v":0},{"$f":"Time!WPK$11","v":0},{"$f":"Time!WPL$11","v":0},{"$f":"Time!WPM$11","v":0},{"$f":"Time!WPN$11","v":0},{"$f":"Time!WPO$11","v":0},{"$f":"Time!WPP$11","v":0},{"$f":"Time!WPQ$11","v":0},{"$f":"Time!WPR$11","v":0},{"$f":"Time!WPS$11","v":0},{"$f":"Time!WPT$11","v":0},{"$f":"Time!WPU$11","v":0},{"$f":"Time!WPV$11","v":0},{"$f":"Time!WPW$11","v":0},{"$f":"Time!WPX$11","v":0},{"$f":"Time!WPY$11","v":0},{"$f":"Time!WPZ$11","v":0},{"$f":"Time!WQA$11","v":0},{"$f":"Time!WQB$11","v":0},{"$f":"Time!WQC$11","v":0},{"$f":"Time!WQD$11","v":0},{"$f":"Time!WQE$11","v":0},{"$f":"Time!WQF$11","v":0},{"$f":"Time!WQG$11","v":0},{"$f":"Time!WQH$11","v":0},{"$f":"Time!WQI$11","v":0},{"$f":"Time!WQJ$11","v":0},{"$f":"Time!WQK$11","v":0},{"$f":"Time!WQL$11","v":0},{"$f":"Time!WQM$11","v":0},{"$f":"Time!WQN$11","v":0},{"$f":"Time!WQO$11","v":0},{"$f":"Time!WQP$11","v":0},{"$f":"Time!WQQ$11","v":0},{"$f":"Time!WQR$11","v":0},{"$f":"Time!WQS$11","v":0},{"$f":"Time!WQT$11","v":0},{"$f":"Time!WQU$11","v":0},{"$f":"Time!WQV$11","v":0},{"$f":"Time!WQW$11","v":0},{"$f":"Time!WQX$11","v":0},{"$f":"Time!WQY$11","v":0},{"$f":"Time!WQZ$11","v":0},{"$f":"Time!WRA$11","v":0},{"$f":"Time!WRB$11","v":0},{"$f":"Time!WRC$11","v":0},{"$f":"Time!WRD$11","v":0},{"$f":"Time!WRE$11","v":0},{"$f":"Time!WRF$11","v":0},{"$f":"Time!WRG$11","v":0},{"$f":"Time!WRH$11","v":0},{"$f":"Time!WRI$11","v":0},{"$f":"Time!WRJ$11","v":0},{"$f":"Time!WRK$11","v":0},{"$f":"Time!WRL$11","v":0},{"$f":"Time!WRM$11","v":0},{"$f":"Time!WRN$11","v":0},{"$f":"Time!WRO$11","v":0},{"$f":"Time!WRP$11","v":0},{"$f":"Time!WRQ$11","v":0},{"$f":"Time!WRR$11","v":0},{"$f":"Time!WRS$11","v":0},{"$f":"Time!WRT$11","v":0},{"$f":"Time!WRU$11","v":0},{"$f":"Time!WRV$11","v":0},{"$f":"Time!WRW$11","v":0},{"$f":"Time!WRX$11","v":0},{"$f":"Time!WRY$11","v":0},{"$f":"Time!WRZ$11","v":0},{"$f":"Time!WSA$11","v":0},{"$f":"Time!WSB$11","v":0},{"$f":"Time!WSC$11","v":0},{"$f":"Time!WSD$11","v":0},{"$f":"Time!WSE$11","v":0},{"$f":"Time!WSF$11","v":0},{"$f":"Time!WSG$11","v":0},{"$f":"Time!WSH$11","v":0},{"$f":"Time!WSI$11","v":0},{"$f":"Time!WSJ$11","v":0},{"$f":"Time!WSK$11","v":0},{"$f":"Time!WSL$11","v":0},{"$f":"Time!WSM$11","v":0},{"$f":"Time!WSN$11","v":0},{"$f":"Time!WSO$11","v":0},{"$f":"Time!WSP$11","v":0},{"$f":"Time!WSQ$11","v":0},{"$f":"Time!WSR$11","v":0},{"$f":"Time!WSS$11","v":0},{"$f":"Time!WST$11","v":0},{"$f":"Time!WSU$11","v":0},{"$f":"Time!WSV$11","v":0},{"$f":"Time!WSW$11","v":0},{"$f":"Time!WSX$11","v":0},{"$f":"Time!WSY$11","v":0},{"$f":"Time!WSZ$11","v":0},{"$f":"Time!WTA$11","v":0},{"$f":"Time!WTB$11","v":0},{"$f":"Time!WTC$11","v":0},{"$f":"Time!WTD$11","v":0},{"$f":"Time!WTE$11","v":0},{"$f":"Time!WTF$11","v":0},{"$f":"Time!WTG$11","v":0},{"$f":"Time!WTH$11","v":0},{"$f":"Time!WTI$11","v":0},{"$f":"Time!WTJ$11","v":0},{"$f":"Time!WTK$11","v":0},{"$f":"Time!WTL$11","v":0},{"$f":"Time!WTM$11","v":0},{"$f":"Time!WTN$11","v":0},{"$f":"Time!WTO$11","v":0},{"$f":"Time!WTP$11","v":0},{"$f":"Time!WTQ$11","v":0},{"$f":"Time!WTR$11","v":0},{"$f":"Time!WTS$11","v":0},{"$f":"Time!WTT$11","v":0},{"$f":"Time!WTU$11","v":0},{"$f":"Time!WTV$11","v":0},{"$f":"Time!WTW$11","v":0},{"$f":"Time!WTX$11","v":0},{"$f":"Time!WTY$11","v":0},{"$f":"Time!WTZ$11","v":0},{"$f":"Time!WUA$11","v":0},{"$f":"Time!WUB$11","v":0},{"$f":"Time!WUC$11","v":0},{"$f":"Time!WUD$11","v":0},{"$f":"Time!WUE$11","v":0},{"$f":"Time!WUF$11","v":0},{"$f":"Time!WUG$11","v":0},{"$f":"Time!WUH$11","v":0},{"$f":"Time!WUI$11","v":0},{"$f":"Time!WUJ$11","v":0},{"$f":"Time!WUK$11","v":0},{"$f":"Time!WUL$11","v":0},{"$f":"Time!WUM$11","v":0},{"$f":"Time!WUN$11","v":0},{"$f":"Time!WUO$11","v":0},{"$f":"Time!WUP$11","v":0},{"$f":"Time!WUQ$11","v":0},{"$f":"Time!WUR$11","v":0},{"$f":"Time!WUS$11","v":0},{"$f":"Time!WUT$11","v":0},{"$f":"Time!WUU$11","v":0},{"$f":"Time!WUV$11","v":0},{"$f":"Time!WUW$11","v":0},{"$f":"Time!WUX$11","v":0},{"$f":"Time!WUY$11","v":0},{"$f":"Time!WUZ$11","v":0},{"$f":"Time!WVA$11","v":0},{"$f":"Time!WVB$11","v":0},{"$f":"Time!WVC$11","v":0},{"$f":"Time!WVD$11","v":0},{"$f":"Time!WVE$11","v":0},{"$f":"Time!WVF$11","v":0},{"$f":"Time!WVG$11","v":0},{"$f":"Time!WVH$11","v":0},{"$f":"Time!WVI$11","v":0},{"$f":"Time!WVJ$11","v":0},{"$f":"Time!WVK$11","v":0},{"$f":"Time!WVL$11","v":0},{"$f":"Time!WVM$11","v":0},{"$f":"Time!WVN$11","v":0},{"$f":"Time!WVO$11","v":0},{"$f":"Time!WVP$11","v":0},{"$f":"Time!WVQ$11","v":0},{"$f":"Time!WVR$11","v":0},{"$f":"Time!WVS$11","v":0},{"$f":"Time!WVT$11","v":0},{"$f":"Time!WVU$11","v":0},{"$f":"Time!WVV$11","v":0},{"$f":"Time!WVW$11","v":0},{"$f":"Time!WVX$11","v":0},{"$f":"Time!WVY$11","v":0},{"$f":"Time!WVZ$11","v":0},{"$f":"Time!WWA$11","v":0},{"$f":"Time!WWB$11","v":0},{"$f":"Time!WWC$11","v":0},{"$f":"Time!WWD$11","v":0},{"$f":"Time!WWE$11","v":0},{"$f":"Time!WWF$11","v":0},{"$f":"Time!WWG$11","v":0},{"$f":"Time!WWH$11","v":0},{"$f":"Time!WWI$11","v":0},{"$f":"Time!WWJ$11","v":0},{"$f":"Time!WWK$11","v":0},{"$f":"Time!WWL$11","v":0},{"$f":"Time!WWM$11","v":0},{"$f":"Time!WWN$11","v":0},{"$f":"Time!WWO$11","v":0},{"$f":"Time!WWP$11","v":0},{"$f":"Time!WWQ$11","v":0},{"$f":"Time!WWR$11","v":0},{"$f":"Time!WWS$11","v":0},{"$f":"Time!WWT$11","v":0},{"$f":"Time!WWU$11","v":0},{"$f":"Time!WWV$11","v":0},{"$f":"Time!WWW$11","v":0},{"$f":"Time!WWX$11","v":0},{"$f":"Time!WWY$11","v":0},{"$f":"Time!WWZ$11","v":0},{"$f":"Time!WXA$11","v":0},{"$f":"Time!WXB$11","v":0},{"$f":"Time!WXC$11","v":0},{"$f":"Time!WXD$11","v":0},{"$f":"Time!WXE$11","v":0},{"$f":"Time!WXF$11","v":0},{"$f":"Time!WXG$11","v":0},{"$f":"Time!WXH$11","v":0},{"$f":"Time!WXI$11","v":0},{"$f":"Time!WXJ$11","v":0},{"$f":"Time!WXK$11","v":0},{"$f":"Time!WXL$11","v":0},{"$f":"Time!WXM$11","v":0},{"$f":"Time!WXN$11","v":0},{"$f":"Time!WXO$11","v":0},{"$f":"Time!WXP$11","v":0},{"$f":"Time!WXQ$11","v":0},{"$f":"Time!WXR$11","v":0},{"$f":"Time!WXS$11","v":0},{"$f":"Time!WXT$11","v":0},{"$f":"Time!WXU$11","v":0},{"$f":"Time!WXV$11","v":0},{"$f":"Time!WXW$11","v":0},{"$f":"Time!WXX$11","v":0},{"$f":"Time!WXY$11","v":0},{"$f":"Time!WXZ$11","v":0},{"$f":"Time!WYA$11","v":0},{"$f":"Time!WYB$11","v":0},{"$f":"Time!WYC$11","v":0},{"$f":"Time!WYD$11","v":0},{"$f":"Time!WYE$11","v":0},{"$f":"Time!WYF$11","v":0},{"$f":"Time!WYG$11","v":0},{"$f":"Time!WYH$11","v":0},{"$f":"Time!WYI$11","v":0},{"$f":"Time!WYJ$11","v":0},{"$f":"Time!WYK$11","v":0},{"$f":"Time!WYL$11","v":0},{"$f":"Time!WYM$11","v":0},{"$f":"Time!WYN$11","v":0},{"$f":"Time!WYO$11","v":0},{"$f":"Time!WYP$11","v":0},{"$f":"Time!WYQ$11","v":0},{"$f":"Time!WYR$11","v":0},{"$f":"Time!WYS$11","v":0},{"$f":"Time!WYT$11","v":0},{"$f":"Time!WYU$11","v":0},{"$f":"Time!WYV$11","v":0},{"$f":"Time!WYW$11","v":0},{"$f":"Time!WYX$11","v":0},{"$f":"Time!WYY$11","v":0},{"$f":"Time!WYZ$11","v":0},{"$f":"Time!WZA$11","v":0},{"$f":"Time!WZB$11","v":0},{"$f":"Time!WZC$11","v":0},{"$f":"Time!WZD$11","v":0},{"$f":"Time!WZE$11","v":0},{"$f":"Time!WZF$11","v":0},{"$f":"Time!WZG$11","v":0},{"$f":"Time!WZH$11","v":0},{"$f":"Time!WZI$11","v":0},{"$f":"Time!WZJ$11","v":0},{"$f":"Time!WZK$11","v":0},{"$f":"Time!WZL$11","v":0},{"$f":"Time!WZM$11","v":0},{"$f":"Time!WZN$11","v":0},{"$f":"Time!WZO$11","v":0},{"$f":"Time!WZP$11","v":0},{"$f":"Time!WZQ$11","v":0},{"$f":"Time!WZR$11","v":0},{"$f":"Time!WZS$11","v":0},{"$f":"Time!WZT$11","v":0},{"$f":"Time!WZU$11","v":0},{"$f":"Time!WZV$11","v":0},{"$f":"Time!WZW$11","v":0},{"$f":"Time!WZX$11","v":0},{"$f":"Time!WZY$11","v":0},{"$f":"Time!WZZ$11","v":0},{"$f":"Time!XAA$11","v":0},{"$f":"Time!XAB$11","v":0},{"$f":"Time!XAC$11","v":0},{"$f":"Time!XAD$11","v":0},{"$f":"Time!XAE$11","v":0},{"$f":"Time!XAF$11","v":0},{"$f":"Time!XAG$11","v":0},{"$f":"Time!XAH$11","v":0},{"$f":"Time!XAI$11","v":0},{"$f":"Time!XAJ$11","v":0},{"$f":"Time!XAK$11","v":0},{"$f":"Time!XAL$11","v":0},{"$f":"Time!XAM$11","v":0},{"$f":"Time!XAN$11","v":0},{"$f":"Time!XAO$11","v":0},{"$f":"Time!XAP$11","v":0},{"$f":"Time!XAQ$11","v":0},{"$f":"Time!XAR$11","v":0},{"$f":"Time!XAS$11","v":0},{"$f":"Time!XAT$11","v":0},{"$f":"Time!XAU$11","v":0},{"$f":"Time!XAV$11","v":0},{"$f":"Time!XAW$11","v":0},{"$f":"Time!XAX$11","v":0},{"$f":"Time!XAY$11","v":0},{"$f":"Time!XAZ$11","v":0},{"$f":"Time!XBA$11","v":0},{"$f":"Time!XBB$11","v":0},{"$f":"Time!XBC$11","v":0},{"$f":"Time!XBD$11","v":0},{"$f":"Time!XBE$11","v":0},{"$f":"Time!XBF$11","v":0},{"$f":"Time!XBG$11","v":0},{"$f":"Time!XBH$11","v":0},{"$f":"Time!XBI$11","v":0},{"$f":"Time!XBJ$11","v":0},{"$f":"Time!XBK$11","v":0},{"$f":"Time!XBL$11","v":0},{"$f":"Time!XBM$11","v":0},{"$f":"Time!XBN$11","v":0},{"$f":"Time!XBO$11","v":0},{"$f":"Time!XBP$11","v":0},{"$f":"Time!XBQ$11","v":0},{"$f":"Time!XBR$11","v":0},{"$f":"Time!XBS$11","v":0},{"$f":"Time!XBT$11","v":0},{"$f":"Time!XBU$11","v":0},{"$f":"Time!XBV$11","v":0},{"$f":"Time!XBW$11","v":0},{"$f":"Time!XBX$11","v":0},{"$f":"Time!XBY$11","v":0},{"$f":"Time!XBZ$11","v":0},{"$f":"Time!XCA$11","v":0},{"$f":"Time!XCB$11","v":0},{"$f":"Time!XCC$11","v":0},{"$f":"Time!XCD$11","v":0},{"$f":"Time!XCE$11","v":0},{"$f":"Time!XCF$11","v":0},{"$f":"Time!XCG$11","v":0},{"$f":"Time!XCH$11","v":0},{"$f":"Time!XCI$11","v":0},{"$f":"Time!XCJ$11","v":0},{"$f":"Time!XCK$11","v":0},{"$f":"Time!XCL$11","v":0},{"$f":"Time!XCM$11","v":0},{"$f":"Time!XCN$11","v":0},{"$f":"Time!XCO$11","v":0},{"$f":"Time!XCP$11","v":0},{"$f":"Time!XCQ$11","v":0},{"$f":"Time!XCR$11","v":0},{"$f":"Time!XCS$11","v":0},{"$f":"Time!XCT$11","v":0},{"$f":"Time!XCU$11","v":0},{"$f":"Time!XCV$11","v":0},{"$f":"Time!XCW$11","v":0},{"$f":"Time!XCX$11","v":0},{"$f":"Time!XCY$11","v":0},{"$f":"Time!XCZ$11","v":0},{"$f":"Time!XDA$11","v":0},{"$f":"Time!XDB$11","v":0},{"$f":"Time!XDC$11","v":0},{"$f":"Time!XDD$11","v":0},{"$f":"Time!XDE$11","v":0},{"$f":"Time!XDF$11","v":0},{"$f":"Time!XDG$11","v":0},{"$f":"Time!XDH$11","v":0},{"$f":"Time!XDI$11","v":0},{"$f":"Time!XDJ$11","v":0},{"$f":"Time!XDK$11","v":0},{"$f":"Time!XDL$11","v":0},{"$f":"Time!XDM$11","v":0},{"$f":"Time!XDN$11","v":0},{"$f":"Time!XDO$11","v":0},{"$f":"Time!XDP$11","v":0},{"$f":"Time!XDQ$11","v":0},{"$f":"Time!XDR$11","v":0},{"$f":"Time!XDS$11","v":0},{"$f":"Time!XDT$11","v":0},{"$f":"Time!XDU$11","v":0},{"$f":"Time!XDV$11","v":0},{"$f":"Time!XDW$11","v":0},{"$f":"Time!XDX$11","v":0},{"$f":"Time!XDY$11","v":0},{"$f":"Time!XDZ$11","v":0},{"$f":"Time!XEA$11","v":0},{"$f":"Time!XEB$11","v":0},{"$f":"Time!XEC$11","v":0},{"$f":"Time!XED$11","v":0},{"$f":"Time!XEE$11","v":0},{"$f":"Time!XEF$11","v":0},{"$f":"Time!XEG$11","v":0},{"$f":"Time!XEH$11","v":0},{"$f":"Time!XEI$11","v":0},{"$f":"Time!XEJ$11","v":0},{"$f":"Time!XEK$11","v":0},{"$f":"Time!XEL$11","v":0},{"$f":"Time!XEM$11","v":0},{"$f":"Time!XEN$11","v":0},{"$f":"Time!XEO$11","v":0},{"$f":"Time!XEP$11","v":0},{"$f":"Time!XEQ$11","v":0},{"$f":"Time!XER$11","v":0},{"$f":"Time!XES$11","v":0},{"$f":"Time!XET$11","v":0},{"$f":"Time!XEU$11","v":0},{"$f":"Time!XEV$11","v":0},{"$f":"Time!XEW$11","v":0},{"$f":"Time!XEX$11","v":0},{"$f":"Time!XEY$11","v":0},{"$f":"Time!XEZ$11","v":0},{"$f":"Time!XFA$11","v":0},{"$f":"Time!XFB$11","v":0},{"$f":"Time!XFC$11","v":0},{"$f":"Time!XFD$11","v":0}]
[]
["OUTPUTS"]
[]
[null,null,null,null,{"$f":" Calcs!E$55","v":"RCV adjustment (pre time value of money) - WR - real"},{"$f":" Calcs!F$55","v":8.7545447199999984},{"$f":" Calcs!G$55","v":"£m"}]
[null,null,null,null,{"$f":" Calcs!E$56","v":"RCV adjustment (pre time value of money) - WN - real"},{"$f":" Calcs!F$56","v":46.7879152},{"$f":" Calcs!G$56","v":"£m"}]
[null,null,null,null,{"$f":" Calcs!E$57","v":"RCV adjustment (pre time value of money) - WWN - real"},{"$f":" Calcs!F$57","v":0},{"$f":" Calcs!G$57","v":"£m"}]
[null,null,null,null,{"$f":" Calcs!E$58","v":"RCV adjustment (pre time value of money) - BR - real"},{"$f":" Calcs!F$58","v":0},{"$f":" Calcs!G$58","v":"£m"}]
[]
[null,null,null,null,{"$f":" Calcs!E$70","v":"Total TVM adjustment - WR - real"},{"$f":" Calcs!F$70","v":0.39206263548475451},{"$f":" Calcs!G$70","v":"£m"}]
[null,null,null,null,{"$f":" Calcs!E$78","v":"Total TVM adjustment - WN - real"},{"$f":" Calcs!F$78","v":1.8734928400118904},{"$f":" Calcs!G$78","v":"£m"}]
[null,null,null,null,{"$f":" Calcs!E$86","v":"Total TVM adjustment - WWN - real"},{"$f":" Calcs!F$86","v":0},{"$f":" Calcs!G$86","v":"£m"}]
[null,null,null,null,{"$f":" Calcs!E$94","v":"Total TVM adjustment - BR - real"},{"$f":" Calcs!F$94","v":0},{"$f":" Calcs!G$94","v":"£m"}]
[]
[null,null,null,null,"Total RCV adjustment - WR - real",{"$f":" F10 + F15","v":9.1466073554847522},"£m"]
[null,null,null,null,"Total RCV adjustment - WN - real",{"$f":" F11 + F16","v":48.661408040011892},"£m"]
[null,null,null,null,"Total RCV adjustment - WWN - real",{"$f":" F12 + F17","v":0},"£m"]
[null,null,null,null,"Total RCV adjustment - BR - real",{"$f":" F13 + F18","v":0},"£m"]
[]
["END OF SHEET"]

{"sheet":"F_Outputs","index":7,"n_rows":11,"n_cols":6,"rows_kept":11,"cut":false,"hidden":false,"merged":[]}
[null,null,"PR24PD22_OUT"]
["Acronym","Reference","Item description","Unit","Model","2024-25"]
[]
[null,"C_PR24PD22_PD11_17WR_PR24","PR19 Green recovery total RCV adjustment in 2017-18 FYA (CPIH deflated) prices (WR) ","£m","Price Review 2024",{"$f":" Outputs!F20","v":9.1466073554847522}]
[null,"C_PR24PD22_PD11_17WN_PR24","PR19 Green recovery total RCV adjustment in 2017-18 FYA (CPIH deflated) prices (WN) ","£m","Price Review 2024",{"$f":" Outputs!F21","v":48.661408040011892}]
[null,"C_PR24PD22_PD11_17WWN_PR24","PR19 Green recovery total RCV adjustment in 2017-18 FYA (CPIH deflated) prices (WWN) ","£m","Price Review 2024",{"$f":" Outputs!F22","v":0}]
[null,"C_PR24PD22_PD11_17BIO_PR24","PR19 Green recovery total RCV adjustment in 2017-18 FYA (CPIH deflated) prices (BR) ","£m","Price Review 2024",{"$f":" Outputs!F23","v":0}]
[null,"PR24QA_PR24PD22_OUT1","Date & Time for Model - PR24PD22","Text","Price Review 2024",{"$f":"CONCATENATE(\"[…]\", TEXT(NOW(),\"dd/mm/yyy hh:mm:ss\"))","v":"[…]04/12/2024 16:33:00"}]
[null,"PR24QA_PR24PD22_OUT2","Name of Model - PR24PD22","Text","Price Review 2024",{"$f":"MID(CELL(\"filename\"),SEARCH(\"[\",CELL(\"filename\"))+1,SEARCH(\"]\",CELL(\"filename\"))-SEARCH(\"[\",CELL(\"filename\"))-1)","v":"PR24PD22 - Green-recovery-time-value-of-money-adjustment-model-v1.4 UUW.xlsm"}]
[null,"PR24QA_PR24PD22_OUT3","F_Inputs time stamp - PR24PD22","Text","Price Review 2024",{"$f":"F_Inputs!$E$1","v":"Run on 25 Oct 2024 11:52"}]
[null,"PR24QA_PR24PD22_OUT4","Model override switch for - PR24PD22","nr","Price Review 2024",0]